{"text_format":"1","workbook":"xlsx","n_sheets":21,"sheets":["Introduction","User Guide","Options","Results","Evidence","SHEETS TO BE HIDDEN ->","Calculations","Inequalities","Lists","Health outcome totals 2016","Demographic data","Population 2016","Pop2016_in_settlements","NO2 reduction","PM2.5 reduction","RateRatios_accidents","RateRatios_airpollution","RateRatios_PM25_mort","RateRatios_PM25_hosp","RateRatios_NO2_mort","Eligible road length"],"not_rendered":{"charts":0,"images":3,"macros":1,"external_links":1,"defined_names":4,"comments":0,"pivot_tables":0},"unopened":[],"bounds":{"document_bytes":16777216,"sheet_cells":100000,"rows_first":2000,"rows_last":500,"rows_between":2000,"halvings":0,"cell_chars":16384,"cell_head_chars":4096},"cells_cut":0,"cells_raw":0,"read":"whole","date_system":"1900"}

{"sheet":"Introduction","index":0,"n_rows":51,"n_cols":10,"rows_kept":51,"cut":false,"hidden":false,"merged":[]}
[]
[null,"Informing Interventions to reduce health Inequalities ('Triple I'):"]
[null,"Physical Environment intervention"]
[]
[]
[]
[null,"Informing Interventions to reduce health Inequalities ('Triple I') is a collaboration between NHS Health Scotland and the Scottish Public Health Observatory (ScotPHO)."]
[null,"Triple I provides national and local decision makers with practical tools and interpreted results about investing in interventions to reduce health inequalities in Scotland. "]
[null,"It does this by modelling the potential impact of different interventions and policies on overall population health and health inequalities."]
[null,"This tool is part of a set of 9 spreadsheets and associated documentation, produced as an update and extension of our 2014 Triple I work.  "]
[null,"Data and evidence have been updated where applicable, new interventions have been included, and presentation of the results has been improved.  "]
[null,"The tool can be used to produce detailed results for different geographies (Scotland, Local Authorities, Health Boards, City Regions, or Integrated Joint Boards)."]
[null,"Results are provided for three health outcomes: premature mortality, years of life lost, and hospital stays.  "]
[]
[null,"The interventions:"]
[null,"The interventions were chosen based on the highest quality and most generalisable evidence linking them to changes in all-cause mortality and hospital admissions."]
[null,"The topics addressed by the interventions span the determinants of health (including ‘upstream’, ‘downstream’, individual-level and population-wide)."]
[null,"There are 9 Triple I spreadsheet tools (corresponding to the topic areas below)."]
[]
[null,null,"Individual-level interventions: ",null,null,null,null,"Population-wide interventions:"]
[null,null,"(N.B. modelled as being implemented in year 1 only)",null,null,null,null,"(N.B. permanent: modelled as remaining "]
[null,null,"Topic","Intervention(s) ",null,null,null,"in place after implementation in year 1)"]
[null,null,"Mental Health","Interventions for depression",null,null,null,"Topic",null,"Intervention(s) "]
[null,null,"Obesity","Weight management service",null,null,null,"Physical Environment",null,"20 mph speed limits "]
[null,null,"Physical inactivity","Physical activity interventions",null,null,null,"Smoking",null,"Tobacco taxation"]
[null,null,"Smoking","Smoking cessation",null,null,null,"Income",null,"Income-based policies"]
[null,null,"Alcohol consumption","Alcohol Brief Interventions (ABIs)"]
[null,null,"Unemployment","Job provision"]
[]
[null,"Pages in this spreadsheet tool:"]
[null,null,"Introduction",null,">>","Information about the Triple I project"]
[null,null,"User guide",null,">>","How to use this spreadsheet tool"]
[null,null,"Options",null,">>","Where users can change the model options, and see high-level results"]
[null,null,"Results",null,">>","Full results for the chosen model options"]
[null,null,"Evidence",null,">>","Summary of the evidence underpinning the model, and definitions of the policies/interventions"]
[]
[null,"Further information is available on the Triple I website:",null,null,null,null,"Triple I website"]
[null,null,"Interactive results browser",null,">>","An online interactive results browser for comparing different interventions (April 2019)"]
[null,null,"National Overview Report",null,">>","A summary report of the national-level findings (April 2019)"]
[null,null,"Technical Report",null,">>","Details of Triple I's methods and data sources (April 2019)"]
[null,null,"Frequently Asked Questions",null,">>","Answers to frequently-asked questions about Triple I (April 2019)"]
[null,null,"Income-based policies",null,">>","Report and Supplementary Information about the income-based policies work (October 2018)"]
[null,null,"nhs.triple.i@nhs.net",null,">>","Email us for more information."]
[]
[null,"Abbreviations used"]
[null,"IJB","Integrated Joint Board"]
[null,"LA","Local Authority"]
[null,"RII","Relative Index of Inequality"]
[null,"SII","Slope Index of Inequality"]
[null,"SIMD","Scottish Index of Multiple Deprivation"]
[null,"Q1 - Q5","Quintiles of the SIMD: Q1 contains the 20% most deprived areas, and Q5 contains the 20% least deprived areas."]

{"sheet":"User Guide","index":1,"n_rows":72,"n_cols":10,"rows_kept":72,"cut":false,"hidden":false,"merged":[]}
[]
[null,"User Guide"]
[]
[null,"Please note: Macros need to be enabled for the tools to work properly."]
[null,"How to do this in a recent version of Excel: File > Options > Trust Center > Trust Center Settings > Macro Settings > \"Enable all macros\""]
[null,"How to do this in an older version of Excel: Tools > Options > Security > Macro Security > \"Medium\""]
[]
[null,"Changing the intervention details:"]
[null,"You can interact with the Triple I model from the Options tab."]
[null,"Any changes made to the shaded cells (blue) on this tab will cause Excel to recalculate the model and present new results.   "]
[null,"Below are the options available (N.B. not every spreadsheet will have all of these options):"]
[]
[null,"Intervention:"]
[null,"Choose the intervention of interest (only relevant for tools covering more than one intervention: Mental health, Physical activity, and Income-based interventions)"]
[]
[null,"Area:"]
[null,"Choose the area to run the model for.  The available geographies are listed below. "]
[null,null,"1. Health Boards:",null,null,"The 14 territorial NHS health boards responsible for delivery of frontline healthcare services in Scotland (2014 boundaries). "]
[null,null,"2. Local Authorities:",null,null,"The 32 elected councils that provide a range of services to local people, including education and care.  "]
[null,null,null,null,null,"The Gaelic name of Eilean Siar is used for the local authority covering the Western Isles.  "]
[null,null,"3. Integrated Joint Boards:",null,null,"31 integration authorities were created by The Public Bodies (Joint Working) Act 2014, in order to integrate the health and "]
[null,null,null,null,null,"social care functions of health boards and local authorities.  These Integrated Joint Boards (IJBs) or Partnerships "]
[null,null,null,null,null,"correspond to local authority areas, with the exception of Clackmannanshire and Stirling IJB which combines two local "]
[null,null,null,null,null,"authorities.  The Gaelic name of Eilean Siar is used for the IJB covering the Western Isles.  "]
[null,null,"4. City Region Deals: ",null,null,"City Region Deals are agreements between the Scottish Government, the UK Government and local government."]
[null,null,null,null,null,"They have been designed to bring about long-term strategic approaches to improving regional economies.  "]
[null,null,null,null,null,"The following 6 city regions are included:"]
[]
[null,null,null,null,null,"City Region:",null,null,null,"Local Authorities (LAs) included: "]
[null,null,null,null,null,"Aberdeen City Region Deal",null,null,null,"Aberdeen and Aberdeenshire"]
[null,null,null,null,null,"Edinburgh & Southeast Scotland City Region Deal",null,null,null,"Edinburgh, Fife, East Lothian, Midlothian, West Lothian, Borders"]
[null,null,null,null,null,"Glasgow City Region Deal",null,null,null,"East Dunbartonshire, East Renfrewshire, Glasgow City, Inverclyde, "]
[null,null,null,null,null,null,null,null,null,"North Lanarkshire, Renfrewshire, South Lanarkshire, West Dunbartonshire"]
[null,null,null,null,null,"Inverness & Highland City Region Deal",null,null,null,"Highland "]
[null,null,null,null,null,"Stirling and Clackmannanshire City Region Deal",null,null,null,"Stirling and Clackmannanshire "]
[null,null,null,null,null,"Tay Cities Region Deal ",null,null,null,"Dundee, Perth & Kinross, Angus, Fife "]
[]
[null,"Targeting strategy:"]
[null,"The strategy for delivering the individual-level* interventions can be altered by the user.  "]
[null,"*Interventions delivered to individuals: mental health, weight management, physical activity, smoking cessation, alcohol brief interventions, and job provision. "]
[null,"Four options are available:"]
[null,"·       Even distribution: treat the same proportion of the eligible population in each subgroup (i.e., age group, sex and SIMD 2016 quintile)."]
[null,"·       Proportionate to need: the proportion of each subgroup treated is proportionate to the subgroup's prevalence of the exposure (e.g., smoking or depression)."]
[null,"·       Most deprived 20% only**: treat only those in SIMD quintile 1 (even distribution within this quintile).    "]
[null,"·       Most deprived 40% only: treat only those in SIMD quintiles 1 and 2 (even distribution within these quintiles).  "]
[null,"**The Orkney Islands, Shetland Islands and the Western Isles do not have population in SIMD 2016 quintile 1, so targeting to quintile 1 will produce an error message."]
[]
[null,"Number to treat:"]
[null,"For individual-level interventions you can choose the number of people to be treated."]
[null,"·       For information the maximum number of people who are eligible to be treated will be calculated in the preceding cell."]
[null,"·       If a higher number is entered an error message will prevent the calculation from occurring."]
[null,"·       Be aware that the model will run and produce results if changes to another blue cell mean that the number of people then exceeds the new maximum number.  "]
[]
[null,"Number of years:"]
[null,"The interventions are delivered in year 1.  "]
[null,"Their effects can be modelled from year 2 (the first year of follow-up) to year 20."]
[null,"N.B. Individual-level interventions are delivered for a single year, while the population-level interventions are modelled as remaining in place after year 1. "]
[]
[null,"Viewing the results:"]
[null,"Options tab",null,"A summary of the results is shown on the Options tab."]
[null,"Results tab",null,"More detailed results are shown on the Results tab."]
[null,"Technical Report",null,"Further information about how the results are calculated, and how to interpret them, can be found in the Triple I Technical Report.  "]
[]
[null,"For advanced users: How to make more advanced changes to the model"]
[null,"The inner workings of the Triple I tools are described in the Technical Report.  We recommend you consult the report before making any advanced changes."]
[null,"The model data and calculations can be found in a number of 'hidden' tabs."]
[null,"These are hidden to simplify the spreadsheet for users.  "]
[null,"To see the hidden tabs, right-click on any tab, select 'Unhide', then select the tab you want to unhide. "]
[null,"The hidden tabs include population data, prevalence data, targeting calculations, and result calculations."]
[null,"VBA (Visual Basic for Applications) code has been written to create bespoke functions for the calculations.   "]
[null,"The code can be found from the Developer tab > Visual Basic."]
[null,"If the Developer tab is not shown in your version of Excel go to File > Options > Customize Ribbon and switch on the Developer tab (recent Excel versions only)."]

{"sheet":"Options","index":2,"n_rows":31,"n_cols":8,"rows_kept":31,"cut":false,"hidden":false,"merged":[]}
[]
[null,"Options for changing the model:",null,null,"Results summary:"]
[]
[null,"Change the shaded cells (blue) to recalculate.",null,null,"Check the Results tab for a detailed breakdown of the results"]
[null,"N.B. Results may take a few seconds to change.",null,null,"Results shown as cumulative difference from baseline over the follow-up period (% difference in brackets).  "]
[]
[null,"Intervention: (defined on Evidence tab)",null,null,"POLICY IMPACT ON HEALTH*","Whole population","SIMD Q1 & Q2","SIMD Q1"]
[null,"20 mph speed limits (urban)",null,null,"Hospital stays prevented",{"$f":"CONCATENATE(FIXED(Results!E16,0),\" (\",FIXED(Results!F16,2),\"%)\")","v":"283 (0.02%)"},{"$f":"CONCATENATE(FIXED(Results!E17,0),\" (\",FIXED(Results!F17,2),\"%)\")","v":"164 (0.03%)"},{"$f":"IF(OR(Calculations!$E$2=\"Orkney Health Board\",Calculations!$E$2=\"Orkney Islands Local Authority\",Calculations!$E$2=\"Shetland Health Board\",Calculations!$E$2=\"Western Isles Health Board\",Calculations!$E$2=\"Shetland Islands Local Authority\",Calculations!$E$2=\"Eilean Siar Local Authority\"),\"N/A\", CONCATENATE(FIXED(Results!E18,0),\" (\",FIXED(Results!F18,2),\"%)\"))","v":"94 (0.03%)"}]
[null,null,null,null,"Premature deaths prevented",{"$f":"CONCATENATE(FIXED(Results!E20,0),\" (\",FIXED(Results!F20,2),\"%)\")","v":"5 (0.02%)"},{"$f":"CONCATENATE(FIXED(Results!E21,0),\" (\",FIXED(Results!F21,2),\"%)\")","v":"3 (0.03%)"},{"$f":"IF(OR(Calculations!$E$2=\"Orkney Health Board\",Calculations!$E$2=\"Orkney Islands Local Authority\",Calculations!$E$2=\"Shetland Health Board\",Calculations!$E$2=\"Western Isles Health Board\",Calculations!$E$2=\"Shetland Islands Local Authority\",Calculations!$E$2=\"Eilean Siar Local Authority\"),\"N/A\", CONCATENATE(FIXED(Results!E22,0),\" (\",FIXED(Results!F22,2),\"%)\"))","v":"2 (0.03%)"}]
[null,"Choose the area to run the model for:",null,null,"Years of life saved",{"$f":"CONCATENATE(FIXED(Results!E24,0),\" (\",FIXED(Results!F24,2),\"%)\")","v":"146 (0.02%)"},{"$f":"CONCATENATE(FIXED(Results!E25,0),\" (\",FIXED(Results!F25,2),\"%)\")","v":"93 (0.03%)"},{"$f":"IF(OR(Calculations!$E$2=\"Orkney Health Board\",Calculations!$E$2=\"Orkney Islands Local Authority\",Calculations!$E$2=\"Shetland Health Board\",Calculations!$E$2=\"Western Isles Health Board\",Calculations!$E$2=\"Shetland Islands Local Authority\",Calculations!$E$2=\"Eilean Siar Local Authority\"),\"N/A\", CONCATENATE(FIXED(Results!E26,0),\" (\",FIXED(Results!F26,2),\"%)\"))","v":"56 (0.03%)"}]
[null,"Scotland",null,null,"*N.B. a positive figure indicates an improvement in health outcomes."]
[]
[null,"Calculate health impact after this many years:",null,null,"POLICY IMPACT ON HEALTH INEQUALITIES**"]
[null,2,null,null,"Gap between most and least deprived","Absolute","Relative"]
[null,null,null,null,"Hospital stays",{"$f":"CONCATENATE(FIXED(Results!E29,0),\" (\",FIXED(Results!F29,3),\"%)\")","v":"-6 (-0.044%)"},{"$f":"CONCATENATE(FIXED(Results!E33,4),\" (\",FIXED(Results!F33,3),\"%)\")","v":"-0.0002 (-0.009%)"}]
[null,null,null,null,"Premature deaths",{"$f":"CONCATENATE(FIXED(Results!E30,0),\" (\",FIXED(Results!F30,3),\"%)\")","v":"0 (-0.035%)"},{"$f":"CONCATENATE(FIXED(Results!E34,4),\" (\",FIXED(Results!F34,3),\"%)\")","v":"-0.0003 (-0.008%)"}]
[null,null,null,null,"Years of life lost",{"$f":"CONCATENATE(FIXED(Results!E31,0),\" (\",FIXED(Results!F31,3),\"%)\")","v":"-4 (-0.035%)"},{"$f":"CONCATENATE(FIXED(Results!E35,4),\" (\",FIXED(Results!F35,3),\"%)\")","v":"-0.0003 (-0.008%)"}]
[null,null,null,null,"Population-wide inequalities slope","Absolute (SII)","Relative (RII)"]
[null,null,null,null,"Hospital stays",{"$f":"CONCATENATE(FIXED(Results!E37,0),\" (\",FIXED(Results!F37,3),\"%)\")","v":"-7 (-0.046%)"},{"$f":"CONCATENATE(FIXED(Results!E41,4),\" (\",FIXED(Results!F41,3),\"%)\")","v":"-0.0002 (-0.022%)"}]
[null,null,null,null,"Premature deaths",{"$f":"CONCATENATE(FIXED(Results!E38,0),\" (\",FIXED(Results!F38,3),\"%)\")","v":"0 (-0.037%)"},{"$f":"CONCATENATE(FIXED(Results!E42,4),\" (\",FIXED(Results!F42,3),\"%)\")","v":"-0.0002 (-0.012%)"}]
[null,null,null,null,"Years of life lost",{"$f":"CONCATENATE(FIXED(Results!E39,0),\" (\",FIXED(Results!F39,3),\"%)\")","v":"-5 (-0.037%)"},{"$f":"CONCATENATE(FIXED(Results!E43,4),\" (\",FIXED(Results!F43,3),\"%)\")","v":"-0.0002 (-0.012%)"}]
[null,null,null,null,"**N.B. Based on rates per 100,000.  A negative figure indicates reduced inequalities / narrowing of the gap."]
[]
[null,null,null,null,"SELECTED COSTS AND SAVINGS***",null,"£"]
[null,null,null,null,"Direct financial cost of the intervention (£)****:",null,{"$f":"Results!D50","v":35178401.657399997}]
[null,null,null,null,"Direct financial savings from reduced hospitalisations (£):"]
[null,null,null,null,null,"Whole population",{"$f":"CONCATENATE(FIXED(Results!E54,0),\" (\",FIXED(Results!F54,3),\"%)\")","v":"710,963 (0.025%)"}]
[null,null,null,null,null,"SIMD Q1 & Q2",{"$f":"CONCATENATE(FIXED(Results!E55,0),\" (\",FIXED(Results!F55,3),\"%)\")","v":"411,048 (0.030%)"}]
[null,null,null,null,null,"SIMD Q1",{"$f":"IF(OR(Calculations!$E$2=\"Orkney Health Board\",Calculations!$E$2=\"Orkney Islands Local Authority\",Calculations!$E$2=\"Shetland Health Board\",Calculations!$E$2=\"Western Isles Health Board\",Calculations!$E$2=\"Shetland Islands Local Authority\",Calculations!$E$2=\"Eilean Siar Local Authority\"),\"N/A\", CONCATENATE(FIXED(Results!E56,0),\" (\",FIXED(Results!F56,3),\"%)\"))","v":"235,057 (0.032%)"}]
[null,null,null,null,"***Costs/savings from changes to other health outcomes and to health inequalities have not been estimated."]
[null,null,null,null,"***This intervention is assumed to have one-off implementation costs."]

{"sheet":"Results","index":3,"n_rows":59,"n_cols":14,"rows_kept":59,"cut":false,"hidden":false,"merged":[]}
[]
[null,"Detailed results for intervention:",null,{"$f":"Options!B8","v":"20 mph speed limits (urban)"}]
[]
[null,"Area of interest:",{"$f":"Options!B11","v":"Scotland"}]
[null,"Age group:","16+ years"]
[null,"Baseline year (prevalence and population data):",2016,"Health impact calculated after:",{"$f":"CONCATENATE(Options!B14,\" years\")","v":"2 years"}]
[]
[null,"Baseline situation (2016):","Population (16+)","No. all-cause hospital stays","No. all-cause deaths","No. premature all-cause deaths","Years of life lost (all causes)"]
[null,"Whole population",{"$f":"HLOOKUP(Calculations!$E$2,'Population 2016'!$C$3:$BC$17,'Population 2016'!$BD5,FALSE)","v":4488783},{"$f":"HLOOKUP(Calculations!$E$2,'Health outcome totals 2016'!$C$3:$BC$17,'Health outcome totals 2016'!$BD6,FALSE)","v":1125093},{"$f":"HLOOKUP(Calculations!$E$2,'Health outcome totals 2016'!$C$3:$BC$17,'Health outcome totals 2016'!$BD9,FALSE)","v":56725},{"$f":"HLOOKUP(Calculations!$E$2,'Health outcome totals 2016'!$C$3:$BC$17,'Health outcome totals 2016'!$BD12,FALSE)","v":21313},{"$f":"HLOOKUP(Calculations!$E$2,'Health outcome totals 2016'!$C$3:$BC$17,'Health outcome totals 2016'!$BD15,FALSE)","v":708624.04837918223}]
[null,"Most deprived 40% (Q1 & Q2)",{"$f":"HLOOKUP(Calculations!$E$2,'Population 2016'!$C$3:$BC$17,'Population 2016'!$BD6,FALSE)","v":1769266},{"$f":"HLOOKUP(Calculations!$E$2,'Health outcome totals 2016'!$C$3:$BC$17,'Health outcome totals 2016'!$BD8,FALSE)","v":534382},{"$f":"HLOOKUP(Calculations!$E$2,'Health outcome totals 2016'!$C$3:$BC$17,'Health outcome totals 2016'!$BD11,FALSE)","v":26567},{"$f":"HLOOKUP(Calculations!$E$2,'Health outcome totals 2016'!$C$3:$BC$17,'Health outcome totals 2016'!$BD14,FALSE)","v":11618},{"$f":"HLOOKUP(Calculations!$E$2,'Health outcome totals 2016'!$C$3:$BC$17,'Health outcome totals 2016'!$BD17,FALSE)","v":372328.97050476068}]
[null,"Most deprived 20% (Q1)",{"$f":"HLOOKUP(Calculations!$E$2,'Population 2016'!$C$3:$BC$17,'Population 2016'!$BD7,FALSE)","v":872234},{"$f":"IF(OR(Calculations!$E$2=\"Orkney Health Board\",Calculations!$E$2=\"Orkney Islands Local Authority\",Calculations!$E$2=\"Shetland Health Board\",Calculations!$E$2=\"Western Isles Health Board\",Calculations!$E$2=\"Shetland Islands Local Authority\",Calculations!$E$2=\"Eilean Siar Local Authority\"),\"N/A\", HLOOKUP(Calculations!$E$2,'Health outcome totals 2016'!$C$3:$BC$17,'Health outcome totals 2016'!$BD7,FALSE))","v":283718},{"$f":"IF(OR(Calculations!$E$2=\"Orkney Health Board\",Calculations!$E$2=\"Orkney Islands Local Authority\",Calculations!$E$2=\"Shetland Health Board\",Calculations!$E$2=\"Western Isles Health Board\",Calculations!$E$2=\"Shetland Islands Local Authority\",Calculations!$E$2=\"Eilean Siar Local Authority\"),\"N/A\", HLOOKUP(Calculations!$E$2,'Health outcome totals 2016'!$C$3:$BC$17,'Health outcome totals 2016'!$BD10,FALSE))","v":13665},{"$f":"IF(OR(Calculations!$E$2=\"Orkney Health Board\",Calculations!$E$2=\"Orkney Islands Local Authority\",Calculations!$E$2=\"Shetland Health Board\",Calculations!$E$2=\"Western Isles Health Board\",Calculations!$E$2=\"Shetland Islands Local Authority\",Calculations!$E$2=\"Eilean Siar Local Authority\"),\"N/A\", HLOOKUP(Calculations!$E$2,'Health outcome totals 2016'!$C$3:$BC$17,'Health outcome totals 2016'!$BD13,FALSE))","v":6443},{"$f":"IF(OR(Calculations!$E$2=\"Orkney Health Board\",Calculations!$E$2=\"Orkney Islands Local Authority\",Calculations!$E$2=\"Shetland Health Board\",Calculations!$E$2=\"Western Isles Health Board\",Calculations!$E$2=\"Shetland Islands Local Authority\",Calculations!$E$2=\"Eilean Siar Local Authority\"),\"N/A\", HLOOKUP(Calculations!$E$2,'Health outcome totals 2016'!$C$3:$BC$17,'Health outcome totals 2016'!$BD16,FALSE))","v":203545.71069335938}]
[]
[null,"Health impact","Without intervention","With intervention","Difference","Difference","Interpretation",null,"Difference attributable to:"]
[null,"HEALTH OUTCOMES","n","n","n","%",null,null,"RTAs",null,"PM2.5",null,"NO2"]
[null,"Hospital stays",null,null,null,"% prevented",null,null,"n","%","n","%","n ","%"]
[null,"Whole population",{"$f":"Calculations!AO5","v":1143855.727350818},{"$f":"Calculations!AP5","v":1143572.7005618201},{"$f":"C16-D16","v":283.02678899792954},{"$f":"E16*100/C16","v":2.4743224362168696E-2},"Hospital stays prevented",null,{"$f":"Calculations!O5-Calculations!P5","v":255.78873865888454},{"$f":"I16*100/E16","v":90.376158230292376},{"$f":"Calculations!X5-Calculations!Y5","v":27.23805033811368},{"$f":"K16*100/E16","v":9.6238417693785649},{"$f":"Calculations!AG5-Calculations!AH5","v":0},{"$f":"M16*100/E16","v":0}]
[null,"Q1 & Q2",{"$f":"Calculations!AO6","v":542278.73076818697},{"$f":"Calculations!AP6","v":542115.09705243213},{"$f":"C17-D17","v":163.63371575484052},{"$f":"E17*100/C17","v":3.0175204460451275E-2},"(N.B. positive difference = ",null,{"$f":"Calculations!O6-Calculations!P6","v":147.57784009689931},{"$f":"I17*100/E17","v":90.187917212613769},{"$f":"Calculations!X6-Calculations!Y6","v":16.055875658988953},{"$f":"K17*100/E17","v":9.8120827880265242},{"$f":"Calculations!AG6-Calculations!AH6","v":-1.0477378964424133E-9},{"$f":"M17*100/E17","v":-6.4029463097455805E-10}]
[null,"Q1",{"$f":"IF(OR(Calculations!$E$2=\"Orkney Health Board\",Calculations!$E$2=\"Orkney Islands Local Authority\",Calculations!$E$2=\"Shetland Health Board\",Calculations!$E$2=\"Western Isles Health Board\",Calculations!$E$2=\"Shetland Islands Local Authority\",Calculations!$E$2=\"Eilean Siar Local Authority\"),\"N/A\", Calculations!AO7)","v":288715.84006160399},{"$f":"IF(OR(Calculations!$E$2=\"Orkney Health Board\",Calculations!$E$2=\"Orkney Islands Local Authority\",Calculations!$E$2=\"Shetland Health Board\",Calculations!$E$2=\"Western Isles Health Board\",Calculations!$E$2=\"Shetland Islands Local Authority\",Calculations!$E$2=\"Eilean Siar Local Authority\"),\"N/A\", Calculations!AP7)","v":288622.26644751307},{"$f":"IF(OR(Calculations!$E$2=\"Orkney Health Board\",Calculations!$E$2=\"Orkney Islands Local Authority\",Calculations!$E$2=\"Shetland Health Board\",Calculations!$E$2=\"Western Isles Health Board\",Calculations!$E$2=\"Shetland Islands Local Authority\",Calculations!$E$2=\"Eilean Siar Local Authority\"),\"N/A\", C18-D18)","v":93.573614090913907},{"$f":"IF(OR(Calculations!$E$2=\"Orkney Health Board\",Calculations!$E$2=\"Orkney Islands Local Authority\",Calculations!$E$2=\"Shetland Health Board\",Calculations!$E$2=\"Western Isles Health Board\",Calculations!$E$2=\"Shetland Islands Local Authority\",Calculations!$E$2=\"Eilean Siar Local Authority\"),\"N/A\", E18*100/C18)","v":3.2410280665912852E-2},"fewer stays)",null,{"$f":"IF(OR(Calculations!$E$2=\"Orkney Health Board\",Calculations!$E$2=\"Orkney Islands Local Authority\",Calculations!$E$2=\"Shetland Health Board\",Calculations!$E$2=\"Western Isles Health Board\",Calculations!$E$2=\"Shetland Islands Local Authority\",Calculations!$E$2=\"Eilean Siar Local Authority\"),\"N/A\", Calculations!O7-Calculations!P7)","v":84.001514882955234},{"$f":"IF(OR(Calculations!$E$2=\"Orkney Health Board\",Calculations!$E$2=\"Orkney Islands Local Authority\",Calculations!$E$2=\"Shetland Health Board\",Calculations!$E$2=\"Western Isles Health Board\",Calculations!$E$2=\"Shetland Islands Local Authority\",Calculations!$E$2=\"Eilean Siar Local Authority\"),\"N/A\", I18*100/E18)","v":89.770514582605898},{"$f":"IF(OR(Calculations!$E$2=\"Orkney Health Board\",Calculations!$E$2=\"Orkney Islands Local Authority\",Calculations!$E$2=\"Shetland Health Board\",Calculations!$E$2=\"Western Isles Health Board\",Calculations!$E$2=\"Shetland Islands Local Authority\",Calculations!$E$2=\"Eilean Siar Local Authority\"),\"N/A\", Calculations!X7-Calculations!Y7)","v":9.5720992079586722},{"$f":"IF(OR(Calculations!$E$2=\"Orkney Health Board\",Calculations!$E$2=\"Orkney Islands Local Authority\",Calculations!$E$2=\"Shetland Health Board\",Calculations!$E$2=\"Western Isles Health Board\",Calculations!$E$2=\"Shetland Islands Local Authority\",Calculations!$E$2=\"Eilean Siar Local Authority\"),\"N/A\", K18*100/E18)","v":10.229485417394104},{"$f":"IF(OR(Calculations!$E$2=\"Orkney Health Board\",Calculations!$E$2=\"Orkney Islands Local Authority\",Calculations!$E$2=\"Shetland Health Board\",Calculations!$E$2=\"Western Isles Health Board\",Calculations!$E$2=\"Shetland Islands Local Authority\",Calculations!$E$2=\"Eilean Siar Local Authority\"),\"N/A\", Calculations!AG7-Calculations!AH7)","v":0},{"$f":"IF(OR(Calculations!$E$2=\"Orkney Health Board\",Calculations!$E$2=\"Orkney Islands Local Authority\",Calculations!$E$2=\"Shetland Health Board\",Calculations!$E$2=\"Western Isles Health Board\",Calculations!$E$2=\"Shetland Islands Local Authority\",Calculations!$E$2=\"Eilean Siar Local Authority\"),\"N/A\", M18*100/E18)","v":0}]
[null,"Premature deaths (<75 years)",null,null,null,"% prevented"]
[null,"Whole population",{"$f":"Calculations!AQ5","v":21625.303979081},{"$f":"Calculations!AR5","v":21620.065594486998},{"$f":"C20-D20","v":5.2383845940021274},{"$f":"E20*100/C20","v":2.4223403282882965E-2},"Premature deaths prevented",null,{"$f":"Calculations!Q5-Calculations!R5","v":4.8494037050040788},92.574411404549679,{"$f":"Calculations!Z5-Calculations!AA5","v":0.26649069999984931},5.0872687031222794,{"$f":"Calculations!AI5-Calculations!AJ5","v":0.1224901889981993},2.3383198923280424]
[null,"Q1 & Q2",{"$f":"Calculations!AQ6","v":11406.446999612001},{"$f":"Calculations!AR6","v":11403.122412654997},{"$f":"C21-D21","v":3.324586957003703},{"$f":"E21*100/C21","v":2.9146560336595538E-2},"(N.B. positive difference = ",null,{"$f":"Calculations!Q6-Calculations!R6","v":3.0690412750027463},92.313460730434073,{"$f":"Calculations!Z6-Calculations!AA6","v":0.17413245500029007},5.2377169631089338,{"$f":"Calculations!AI6-Calculations!AJ6","v":8.1413227000666666E-2},2.4488223064570001]
[null,"Q1",{"$f":"IF(OR(Calculations!$E$2=\"Orkney Health Board\",Calculations!$E$2=\"Orkney Islands Local Authority\",Calculations!$E$2=\"Shetland Health Board\",Calculations!$E$2=\"Western Isles Health Board\",Calculations!$E$2=\"Shetland Islands Local Authority\",Calculations!$E$2=\"Eilean Siar Local Authority\"),\"N/A\", Calculations!AQ7)","v":6424.7774562129998},{"$f":"IF(OR(Calculations!$E$2=\"Orkney Health Board\",Calculations!$E$2=\"Orkney Islands Local Authority\",Calculations!$E$2=\"Shetland Health Board\",Calculations!$E$2=\"Western Isles Health Board\",Calculations!$E$2=\"Shetland Islands Local Authority\",Calculations!$E$2=\"Eilean Siar Local Authority\"),\"N/A\", Calculations!AR7)","v":6422.7723478910002},{"$f":"IF(OR(Calculations!$E$2=\"Orkney Health Board\",Calculations!$E$2=\"Orkney Islands Local Authority\",Calculations!$E$2=\"Shetland Health Board\",Calculations!$E$2=\"Western Isles Health Board\",Calculations!$E$2=\"Shetland Islands Local Authority\",Calculations!$E$2=\"Eilean Siar Local Authority\"),\"N/A\", C22-D22)","v":2.0051083219996144},{"$f":"IF(OR(Calculations!$E$2=\"Orkney Health Board\",Calculations!$E$2=\"Orkney Islands Local Authority\",Calculations!$E$2=\"Shetland Health Board\",Calculations!$E$2=\"Western Isles Health Board\",Calculations!$E$2=\"Shetland Islands Local Authority\",Calculations!$E$2=\"Eilean Siar Local Authority\"),\"N/A\", E22*100/C22)","v":3.1208992617489027E-2},"fewer premature deaths)",null,{"$f":"IF(OR(Calculations!$E$2=\"Orkney Health Board\",Calculations!$E$2=\"Orkney Islands Local Authority\",Calculations!$E$2=\"Shetland Health Board\",Calculations!$E$2=\"Western Isles Health Board\",Calculations!$E$2=\"Shetland Islands Local Authority\",Calculations!$E$2=\"Eilean Siar Local Authority\"),\"N/A\", Calculations!Q7-Calculations!R7)","v":1.8432355830009328},{"$f":"IF(OR(Calculations!$E$2=\"Orkney Health Board\",Calculations!$E$2=\"Orkney Islands Local Authority\",Calculations!$E$2=\"Shetland Health Board\",Calculations!$E$2=\"Western Isles Health Board\",Calculations!$E$2=\"Shetland Islands Local Authority\",Calculations!$E$2=\"Eilean Siar Local Authority\"),\"N/A\", I22*100/E22)","v":91.926982835657853},{"$f":"IF(OR(Calculations!$E$2=\"Orkney Health Board\",Calculations!$E$2=\"Orkney Islands Local Authority\",Calculations!$E$2=\"Shetland Health Board\",Calculations!$E$2=\"Western Isles Health Board\",Calculations!$E$2=\"Shetland Islands Local Authority\",Calculations!$E$2=\"Eilean Siar Local Authority\"),\"N/A\", Calculations!Z7-Calculations!AA7)","v":0.10980122099954315},{"$f":"IF(OR(Calculations!$E$2=\"Orkney Health Board\",Calculations!$E$2=\"Orkney Islands Local Authority\",Calculations!$E$2=\"Shetland Health Board\",Calculations!$E$2=\"Western Isles Health Board\",Calculations!$E$2=\"Shetland Islands Local Authority\",Calculations!$E$2=\"Eilean Siar Local Authority\"),\"N/A\", K22*100/E22)","v":5.4760742746328424},{"$f":"IF(OR(Calculations!$E$2=\"Orkney Health Board\",Calculations!$E$2=\"Orkney Islands Local Authority\",Calculations!$E$2=\"Shetland Health Board\",Calculations!$E$2=\"Western Isles Health Board\",Calculations!$E$2=\"Shetland Islands Local Authority\",Calculations!$E$2=\"Eilean Siar Local Authority\"),\"N/A\", Calculations!AI7-Calculations!AJ7)","v":5.207151799913845E-2},{"$f":"IF(OR(Calculations!$E$2=\"Orkney Health Board\",Calculations!$E$2=\"Orkney Islands Local Authority\",Calculations!$E$2=\"Shetland Health Board\",Calculations!$E$2=\"Western Isles Health Board\",Calculations!$E$2=\"Shetland Islands Local Authority\",Calculations!$E$2=\"Eilean Siar Local Authority\"),\"N/A\", M22*100/E22)","v":2.5969428897093003}]
[null,"Years of life lost",null,null,null,"% saved"]
[null,"Whole population",{"$f":"Calculations!AM5","v":595692.78734702815},{"$f":"Calculations!AN5","v":595547.21625304385},{"$f":"C24-D24","v":145.57109398429748},{"$f":"E24*100/C24","v":2.4437276575499857E-2},"Years of life saved",null,{"$f":"Calculations!M5-Calculations!N5","v":134.59611843409948},92.460745296465348,{"$f":"Calculations!V5-Calculations!W5","v":7.5232186901848763},5.168071822690564,{"$f":"Calculations!AE5-Calculations!AF5","v":3.4517568600131199},2.371182880844088]
[null,"Q1 & Q2",{"$f":"Calculations!AM6","v":318079.12643892108},{"$f":"Calculations!AN6","v":317986.2268720548},{"$f":"C25-D25","v":92.899566866282839},{"$f":"E25*100/C25","v":2.9206432973564459E-2},"(N.B. positive difference =",null,{"$f":"Calculations!M6-Calculations!N6","v":85.675739437108859},92.22404616851253,{"$f":"Calculations!V6-Calculations!W6","v":4.9248864141409285},5.3013018039467061,{"$f":"Calculations!AE6-Calculations!AF6","v":2.2989410150330514},2.4746520275407589]
[null,"Q1",{"$f":"IF(OR(Calculations!$E$2=\"Orkney Health Board\",Calculations!$E$2=\"Orkney Islands Local Authority\",Calculations!$E$2=\"Shetland Health Board\",Calculations!$E$2=\"Western Isles Health Board\",Calculations!$E$2=\"Shetland Islands Local Authority\",Calculations!$E$2=\"Eilean Siar Local Authority\"),\"N/A\", Calculations!AM7)","v":179614.53273844806},{"$f":"IF(OR(Calculations!$E$2=\"Orkney Health Board\",Calculations!$E$2=\"Orkney Islands Local Authority\",Calculations!$E$2=\"Shetland Health Board\",Calculations!$E$2=\"Western Isles Health Board\",Calculations!$E$2=\"Shetland Islands Local Authority\",Calculations!$E$2=\"Eilean Siar Local Authority\"),\"N/A\", Calculations!AN7)","v":179558.53669392286},{"$f":"IF(OR(Calculations!$E$2=\"Orkney Health Board\",Calculations!$E$2=\"Orkney Islands Local Authority\",Calculations!$E$2=\"Shetland Health Board\",Calculations!$E$2=\"Western Isles Health Board\",Calculations!$E$2=\"Shetland Islands Local Authority\",Calculations!$E$2=\"Eilean Siar Local Authority\"),\"N/A\", C26-D26)","v":55.996044525207253},{"$f":"IF(OR(Calculations!$E$2=\"Orkney Health Board\",Calculations!$E$2=\"Orkney Islands Local Authority\",Calculations!$E$2=\"Shetland Health Board\",Calculations!$E$2=\"Western Isles Health Board\",Calculations!$E$2=\"Shetland Islands Local Authority\",Calculations!$E$2=\"Eilean Siar Local Authority\"),\"N/A\", E26*100/C26)","v":3.1175675860676506E-2},"years of life saved)",null,{"$f":"IF(OR(Calculations!$E$2=\"Orkney Health Board\",Calculations!$E$2=\"Orkney Islands Local Authority\",Calculations!$E$2=\"Shetland Health Board\",Calculations!$E$2=\"Western Isles Health Board\",Calculations!$E$2=\"Shetland Islands Local Authority\",Calculations!$E$2=\"Eilean Siar Local Authority\"),\"N/A\", Calculations!M7-Calculations!N7)","v":51.431054688058794},{"$f":"IF(OR(Calculations!$E$2=\"Orkney Health Board\",Calculations!$E$2=\"Orkney Islands Local Authority\",Calculations!$E$2=\"Shetland Health Board\",Calculations!$E$2=\"Western Isles Health Board\",Calculations!$E$2=\"Shetland Islands Local Authority\",Calculations!$E$2=\"Eilean Siar Local Authority\"),\"N/A\", I26*100/E26)","v":91.847656605292045},{"$f":"IF(OR(Calculations!$E$2=\"Orkney Health Board\",Calculations!$E$2=\"Orkney Islands Local Authority\",Calculations!$E$2=\"Shetland Health Board\",Calculations!$E$2=\"Western Isles Health Board\",Calculations!$E$2=\"Shetland Islands Local Authority\",Calculations!$E$2=\"Eilean Siar Local Authority\"),\"N/A\", Calculations!V7-Calculations!W7)","v":3.0974985440843739},{"$f":"IF(OR(Calculations!$E$2=\"Orkney Health Board\",Calculations!$E$2=\"Orkney Islands Local Authority\",Calculations!$E$2=\"Shetland Health Board\",Calculations!$E$2=\"Western Isles Health Board\",Calculations!$E$2=\"Shetland Islands Local Authority\",Calculations!$E$2=\"Eilean Siar Local Authority\"),\"N/A\", K26*100/E26)","v":5.5316381189924941},{"$f":"IF(OR(Calculations!$E$2=\"Orkney Health Board\",Calculations!$E$2=\"Orkney Islands Local Authority\",Calculations!$E$2=\"Shetland Health Board\",Calculations!$E$2=\"Western Isles Health Board\",Calculations!$E$2=\"Shetland Islands Local Authority\",Calculations!$E$2=\"Eilean Siar Local Authority\"),\"N/A\", Calculations!AE7-Calculations!AF7)","v":1.4674912930640858},{"$f":"IF(OR(Calculations!$E$2=\"Orkney Health Board\",Calculations!$E$2=\"Orkney Islands Local Authority\",Calculations!$E$2=\"Shetland Health Board\",Calculations!$E$2=\"Western Isles Health Board\",Calculations!$E$2=\"Shetland Islands Local Authority\",Calculations!$E$2=\"Eilean Siar Local Authority\"),\"N/A\", M26*100/E26)","v":2.6207052757154621}]
[null,"HEALTH INEQUALITIES ","rate*","rate*","rate*","%"]
[null,"Absolute gap (Q1 minus Q5**)",null,null,null,"% increase"]
[null,"Hospital stays",{"$f":"Inequalities!H17","v":13347.326196374845},{"$f":"Inequalities!J17","v":13341.496946245377},{"$f":"D29-C29","v":-5.8292501294672547},{"$f":"E29*100/C29","v":-4.3673542128988267E-2},"Change in the absolute gap"]
[null,"Premature deaths",{"$f":"Inequalities!N17","v":453.57055865994573},{"$f":"Inequalities!P17","v":453.41028312076662},{"$f":"D30-C30","v":-0.16027553917911064},{"$f":"E30*100/C30","v":-3.5336407118803669E-2},"(N.B. negative = narrower gap)"]
[null,"YLL",{"$f":"Inequalities!T17","v":12492.982660885355},{"$f":"Inequalities!V17","v":12488.571047726709},{"$f":"D31-C31","v":-4.4116131586451957},{"$f":"E31*100/C31","v":-3.531272938093194E-2}]
[null,"Relative gap Q1 to Q5**",null,null,null,"% increase"]
[null,"Hospital stays",{"$f":"Inequalities!H18","v":1.813617170749195},{"$f":"Inequalities!J18","v":1.8134499405085278},{"$f":"D33-C33","v":-1.6723024066722658E-4},{"$f":"E33*100/C33","v":-9.2208126039160024E-3},"Change in the relative gap"]
[null,"Premature deaths",{"$f":"Inequalities!N18","v":3.0049093754983289},{"$f":"Inequalities!P18","v":3.0046571077412887},{"$f":"D34-C34","v":-2.5226775704023652E-4},{"$f":"E34*100/C34","v":-8.3951868597834465E-3},"(N.B. negative = narrower gap)"]
[null,"YLL",{"$f":"Inequalities!T18","v":2.9926401714686914},{"$f":"Inequalities!V18","v":2.9923870557253287},{"$f":"D35-C35","v":-2.5311574336273068E-4},{"$f":"E35*100/C35","v":-8.4579411108589644E-3}]
[null,"Slope Index of Inequality (SII)",null,null,null,"% increase"]
[null,"Hospital stays",{"$f":"Inequalities!H15","v":16090.340555944062},{"$f":"Inequalities!J15","v":16082.859306731933},{"$f":"D37-C37","v":-7.4812492121291143},{"$f":"E37*100/C37","v":-4.6495281974410455E-2},"Change in absolute inequalities"]
[null,"Premature deaths",{"$f":"Inequalities!N15","v":534.29272825330588},{"$f":"Inequalities!P15","v":534.09672426692407},{"$f":"D38-C38","v":-0.19600398638181105},{"$f":"E38*100/C38","v":-3.6684756504656454E-2},"(N.B. negative = decreased inequalities)"]
[null,"YLL",{"$f":"Inequalities!T15","v":14719.145253681092},{"$f":"Inequalities!V15","v":14713.748315555556},{"$f":"D39-C39","v":-5.3969381255355984},{"$f":"E39*100/C39","v":-3.666611092234371E-2}]
[null,"Relative Index of Inequality (RII)",null,null,null,"% increase"]
[null,"Hospital stays",{"$f":"Inequalities!H16","v":0.73338952625809839},{"$f":"Inequalities!J16","v":0.73323140863132186},{"$f":"D41-C41","v":-1.5811762677653274E-4},{"$f":"E41*100/C41","v":-2.1559842500516856E-2},"Change in relative inequalities"]
[null,"Premature deaths",{"$f":"Inequalities!N16","v":1.2860240200792425},{"$f":"Inequalities!P16","v":1.2858683583674495},{"$f":"D42-C42","v":-1.5566171179304256E-4},{"$f":"E42*100/C42","v":-1.2104106094647514E-2},"(N.B. negative = decreased inequalities)"]
[null,"YLL",{"$f":"Inequalities!T16","v":1.2812709958753905},{"$f":"Inequalities!V16","v":1.2811173613658788},{"$f":"D43-C43","v":-1.5363450951166868E-4},{"$f":"E43*100/C43","v":-1.1990789614862269E-2}]
[]
[null,"* European age-standardised rate per 100,000"]
[null,"** or the most and least deprived quintiles in the area"]
[]
[null,"Economic impact","Without intervention","With intervention","Difference","Difference","Interpretation"]
[null,null,"£","£","£"]
[null,"Direct financial cost:",0,{"$f":"Evidence!D174","v":35178401.657399997},{"$f":"D50-C50","v":35178401.657399997},null,"Positive difference = net cost incurred"]
[]
[null,"Direct financial savings:","£","£","£","% saved"]
[null,"Hospital stays"]
[null,"Whole population",{"$f":"Evidence!$D$181*Results!C16","v":2873365587.1052547},{"$f":"Evidence!$D$181*Results!D16","v":2872654623.8112922},{"$f":"C54-D54","v":710963.29396247864},{"$f":"E54*100/C54","v":2.4743224362157548E-2},"Reduction in hospital stay costs"]
[null,"Q1 & Q2",{"$f":"Evidence!$D$181*Results!C17","v":1362204171.6896856},{"$f":"Evidence!$D$181*Results!D17","v":1361793123.7957096},{"$f":"C55-D55","v":411047.89397597313},{"$f":"E55*100/C55","v":3.0175204460437605E-2},"(N.B. positive difference = "]
[null,"Q1",{"$f":"IF(OR(Calculations!$E$2=\"Orkney Health Board\",Calculations!$E$2=\"Orkney Islands Local Authority\",Calculations!$E$2=\"Shetland Health Board\",Calculations!$E$2=\"Western Isles Health Board\",Calculations!$E$2=\"Shetland Islands Local Authority\",Calculations!$E$2=\"Eilean Siar Local Authority\"),\"N/A\", Evidence!$D$181*Results!C18)","v":725254190.2347492},{"$f":"IF(OR(Calculations!$E$2=\"Orkney Health Board\",Calculations!$E$2=\"Orkney Islands Local Authority\",Calculations!$E$2=\"Shetland Health Board\",Calculations!$E$2=\"Western Isles Health Board\",Calculations!$E$2=\"Shetland Islands Local Authority\",Calculations!$E$2=\"Eilean Siar Local Authority\"),\"N/A\", Evidence!$D$181*Results!D18)","v":725019133.31615281},{"$f":"IF(OR(Calculations!$E$2=\"Orkney Health Board\",Calculations!$E$2=\"Orkney Islands Local Authority\",Calculations!$E$2=\"Shetland Health Board\",Calculations!$E$2=\"Western Isles Health Board\",Calculations!$E$2=\"Shetland Islands Local Authority\",Calculations!$E$2=\"Eilean Siar Local Authority\"),\"N/A\", C56-D56)","v":235056.91859638691},{"$f":"IF(OR(Calculations!$E$2=\"Orkney Health Board\",Calculations!$E$2=\"Orkney Islands Local Authority\",Calculations!$E$2=\"Shetland Health Board\",Calculations!$E$2=\"Western Isles Health Board\",Calculations!$E$2=\"Shetland Islands Local Authority\",Calculations!$E$2=\"Eilean Siar Local Authority\"),\"N/A\", E56*100/C56)","v":3.2410280665914393E-2},"money saved)"]
[null,"Premature deaths (<75 years)",null,null,"Savings not estimated"]
[null,"Years of life lost",null,null,"Savings not estimated"]
[null,"Inequalities",null,null,"Savings not estimated"]

{"sheet":"Evidence","index":4,"n_rows":203,"n_cols":8,"rows_kept":203,"cut":false,"hidden":false,"merged":[]}
[]
[null,"The intervention"]
[]
[null,"20 mph speed limits (without physical traffic calming) applied to all roads called 'Local Streets' or 'Minor Roads' within urban settlements in Scotland.   "]
[null,"● This intervention was recommended in the NICE (2017) guideline ‘Air pollution: Outdoor air quality and health’."]
[null,"● 'Major roads' were not included so that a connected network of 30 mph and 40 mph roads would be retained (as in City of Edinburgh Council's city-wide 20 mph "]
[null,"   scheme that began in 2016). "]
[null,"● The road types were identified from Ordnance Survey's MasterMap ITN RoadLink shapefile (2017).  "]
[null,"● Urban settlements were identified using National Records of Scotland classification (2016). "]
[]
[null,"Prevalence of exposure"]
[]
[null,"The entire Scottish population is exposed to the baseline levels of air pollution and accident risk in the absence of the intervention, therefore the Population At Risk "]
[null,"(PAR) includes everyone."]
[]
[null,"Exposure Rate Ratios (ERR)"]
[]
[null,"Because everyone is exposed to accident risk and air pollution at baseline the ERR = 1.0 for mortality and for hospitalisation at baseline."]
[]
[null,"Intervention Rate Ratios (IRR) for 20 mph limits"]
[]
[null,"1. Reduced risk of road traffic accidents (RTAs)"]
[null,"The accident risk reduction depends on average speeds before and after the intervention, according to Elvik's power model (Elvik, 2009)."]
[null,"Evaluations of 20 mph schemes without physical traffic calming in the UK have found average before and after speeds of 22.7 mph and 21.4 mph (Turley 2013, "]
[null,"Atkins 2010, Bristol City Council 2012, Cross River Partnership 2017). "]
[null,"Elvik's power model states that "]
[]
[]
[]
[null,"where exponent = 3 for fatal casualties and 2 for serious casualties. "]
[null,"Applying the power model to the average before and after speeds gives an fatal accident ratio of 0.8378.  This means a 16.22% decrease in fatal casualties."]
[null,"Similarly we found a serious accident ratio of 0.8887, meaning an 11.13% reduction in numbers of serious accident casualties (which we assumed equate "]
[null,"to hospitalisations). To translate these effects into effects on rates of all-cause deaths and hospitalisations we calculated the effect of this rate reduction on "]
[null,"standardised RTA and then all-cause rates.   The risk reduction for RTA deaths (0.8378) was applied to the European Age-Standardised Rate (EASR) for RTAs in "]
[null,"Scottish urban settlements (2.6523 per 100,000, 2012-2016 average, calculated from NRS data) to give a reduction of 0.4302 per 100,000. This was subtracted from "]
[null,"the all-cause mortality EASR for urban settlements (982.5579 per 100,000, 2012-2016) to give a post-intervention all-cause EASR of 982.1277 per 100,000. "]
[null,"The Intervention Rate Ratio we used for all-cause mortality was then calculated as 982.1277/982.5579 = 0.9996"]
[]
[null,"Similarly, the risk reduction for serious RTA casualties (0.8887) was applied to the European Age-Standardised Rate (EASR) for RTAs in Scotland (13.5578 per "]
[null,"100,000, 2014-2016 average, calculated from ISD data) to give a reduction of 1.5090 per 100,000. This was subtracted from the all-cause hospitalisation EASR "]
[null,"for Scotland (3871.8050 per 100,000, 2014-2016) to give a post-intervention all-cause EASR of 3870.2960 per 100,000. The Intervention Rate Ratio we used for "]
[null,"all-cause hospitalisation was then calculated as 3870.2960/3871.8050 = 0.9996"]
[]
[null,"2. Reduced exposure to air pollution"]
[null,"A modelling study (with on-the-ground validation) assessed how emissions of petrol and diesel vehicles differed between 20 mph and 30 mph streets without traffic "]
[null,"calming (Transport and Environmental Analysis Group, 2013).   Results (below) were available for Nitrogen Oxides (NOx) and Particulate Matter with a "]
[null,"diameter < 10 micrometres (PM10). "]
[]
[null,null,"% change in emissions"]
[null,null,"NOx","PM10","Quoted/calculated?"]
[null,"Petrol cars",7.9,-8.3000000000000007,"Quoted "]
[null,"Diesel cars",-8.1999999999999993,-8.3000000000000007,"Quoted "]
[]
[null,"To calculate % change in emissions due to the intervention we applied these figures to the fleet composition in urban Scotland in 2016, according to National "]
[null,"Atmospheric Emissions Inventory (2016).  Fleet composition (miles travelled in urban environments) in Scotland in 2016: 46.1355% petrol and 53.8645% diesel."]
[null,"The fleet composition calculation includes petrol cars and LGVs as 'petrol', and diesel cars, diesel LGVs, HGVs and Public Service Vehicles as 'diesel'.  "]
[null,"Applying the TEAG (2013) changes in emissions to the Scottish fleet composition gives predicted changes of -0.7722% for NOx and -8.300% for PM10:"]
[null,null,"NOx ","(7.9*0.461355) + (-8.2*0.538645) =",null,-0.7722]
[null,null,"PM10","(-8.3*0.461355) + (-8.3*0.538645) =",null,-8.3000000000000007]
[]
[null,"Estimating the reduction in pollution by area, sex, age group and SIMD quintile subgroups:"]
[null,"We calculated the average annual concentrations of PM10 and NOx experienced by the population of the urban settlements in each area, at baseline (2016)."]
[null,"DEFRA air quality maps (1 km x 1 km gridded data, by source) were downloaded for PM10 and NOx in Scotland for 2016 (projections based on 2015 data; "]
[null,"source: https://uk-air.defra.gov.uk/data/laqm-background-home). Each postcode in Scotland was given the concentration of NOx/PM10 from minor roads for the grid "]
[null,"cell it was in (as only pollution from minor roads would be affected by the 20 mph scheme). Each datazone was then given the average pollutant concentration for the "]
[null,"postcodes within it, to reflect average pollution levels where the population of the datazone lived (instead of an average for the whole datazone area). We calculated "]
[null,"population-weighted average pollutant concentrations for each subgroup (sex, age group and SIMD quintile) in each area using population data for each datazone. "]
[null,"The predicted reduction in PM10 and NOx was calculated for each subgroup and area using the predicted changes calculated above (-0.7722% for NOx and "]
[null,"-8.300% for PM10)."]
[]
[null,"Rate ratios for health outcomes (see below) were available for Nitrogen Dioxide (NO2) and Particulate Matter with a diameter < 2.5 micrometres (PM2.5)."]
[null,"We converted the change in NOx to an estimated change in NO2 by multiplying by a factor of 0.275 (DEFRA 2017, data for UK)."]
[null,"We converted the change in PM10 to an estimated change in PM2.5 by multiplying by a factor of 0.630 (Ricardo 2016, data for Scotland)."]
[]
[null,"The risk functions we identified were linear, with no threshold below which no effects are expected:"]
[]
[null,"Health outcome","Exposure","Rate Ratio per 10 μg.m-3 increase","Regression coefficient used to produce Rate Ratio (=(ln(Rate Ratio))/10)","Source","Quoted/calculated?","Comments"]
[null,"All-cause mortality","PM2.5 ",1.0620000000000001,6.015392281974714E-3,"Hoek et al 2013 ","Quoted ","Meta-analysis. Recommended by WHO 2013."]
[null,"All-cause hospitalisation","PM2.5 ",1.1200000000000001,1.1332868530700327E-2,"Makar et al 2017","Quoted ","Single study of 32,119 over-65 year olds.  No other evidence identified."]
[null,"All-cause mortality","NO2",1.0249999999999999,2.4692612590371402E-3,"COMEAP 2015","Quoted ","Meta-analysis.  COMEAP recommends reducing by 33% (to 1.017) to account for possible overlap with PM effects. "]
[null,"All-cause hospitalisation","NO2","-","-","-",null,"No studies identified.  Studies of short-term exposure effects not applicable."]
[]
[null,"N.B. the NO2 coefficient was reduced by 33% (to 0.0017) in the modelling to take account of double-counting of effects associated with PM2.5, as recommended by "]
[null,"COMEAP (2016) and WHO (2013)."]
[]
[null,"Each regression coefficient was then applied to the predicted reduction in the relevant pollutant for each subgroup (by age group, sex, SIMD and area) to produce the "]
[null,"air pollution IRR for that pollutant.  The calculation was: "]
[null,"IRR = ","e((coefficient per 1 ug.m-3 increase in pollutant)*-1*(predicted reduction in pollutant))"]
[null,"For example, 16-19 year old females in SIMD Q1 in Scotland were predicted to experience a 0.0067 ug.m-3 reduction in NO2 as a result of the intervention.  This equates "]
[null,"to an all-cause mortality IRR of:"]
[null,"IRR = ","e(0.002469261*0.67*-1*0.0067)) =",null,{"$f":"EXP(0.002469261*0.67*-1*0.0067)","v":0.99998891554880398}]
[]
[null,"The effects of the intervention due to reductions in RTA rates and changes in PM2.5 and NO2 concentrations were considered additive.  "]
[]
[]
[null,"Change in intervention effect over time"]
[]
[null,"The intervention effect was assumed constant over time. "]
[]
[]
[null,"Treated population"]
[]
[null,"The treated population is defined as the 2016 population of datazones within Scotland's urban settlements, because residents of rural locations are much less likely to "]
[null,"be affected by the 20 mph scheme. The treated population figures used in the model were the number of people in each subgroup (age group, sex, and SIMD quintile) "]
[null,"that lived in urban settlements in each area. The table below provides a summary of the treated population (as % total population) by SIMD and local area only."]
[null,"N.B. The figures for the local authority areas of City of Edinburgh, Fife, and Clackmannanshire have been set to zero because these LAs have already implemented "]
[null,"20 mph schemes on most or all of their residential urban streets.  The populations of these local authorities have been subtracted from the relevant aggregate "]
[null,"geographies (health boards, city regions, IJBs and whole Scotland) The figures could be further improved by removing a % for those areas that have implemented 20 mph "]
[null,"limits on some but not all of their roads, but required data collection and calculation of correction factors was not possible in the timeframe of this study."]
[]
[null,null,"% population able to be treated (i.e., living in urban settlements), by local area and SIMD quintile"]
[null,"Area","Q1 (most deprived)","Q2","Q3","Q4","Q5 (least deprived)","total"]
[null,"Scotland",85.647200177933897,75.422058521881041,56.642451689358111,49.364618925067411,73.521643702393675,67.941756150831978]
[null,"Ayrshire & Arran Health Board",73.885942074389362,58.875582168995344,57.809387276349348,58.258884036445053,65.342917184067247,63.983035734550747]
[null,"Borders Health Board",67.593853335926866,58.940011648223646,46.481603051048801,26.02498680274503,61.003730077992543,43.676199648270661]
[null,"Dumfries & Galloway Health Board",64.743589743589737,37.504314808422507,23.939878477774226,34.485772979588269,64.744153332161062,36.523279271837723]
[null,"Fife Health Board",0,0,0,0,0,0]
[null,"Forth Valley Health Board",82.860665844636245,79.728496274291786,62.921173622370787,57.585156466352814,69.910390561890623,70.361361504586569]
[null,"Grampian Health Board",74.719969100038625,78.372969498656076,52.671316678343985,37.559242543032511,61.842470442392731,55.871979366037891]
[null,"Greater Glasgow & Clyde Health Board",86.919343184784637,86.149712586487468,81.8630748645312,72.893791839690252,79.168016160995137,82.652181018201532]
[null,"Highland Health Board",54.468085106382979,41.131598270376109,16.148077917600414,20.469590778238,45.861909532249364,27.548848114927985]
[null,"Lanarkshire Health Board",90.265046338033244,83.607936809532859,72.557731715006298,64.161617514143202,76.523956647540587,79.196567065751466]
[null,"Lothian Health Board",95.218173639226265,83.689181892718821,73.237263902475732,65.199413401064348,87.375792311989471,80.993661956426635]
[null,"Orkney Health Board","N/A",41.214917339484813,33.739554317548745,15.472048248666203,0,23.693683866041233]
[null,"Shetland Health Board","N/A",0,0,15.119451103579399,"N/A",9.643064269520746]
[null,"Tayside Health Board",96.715153877500398,78.175496748392206,49.817328769757339,38.054770569459407,73.305577561649841,62.638712312533436]
[null,"Western Isles Health Board","N/A",9.4256259204712816,7.6976421636615813,0,"N/A",7.6705174168990391]
[null,"Aberdeen City Local Authority",84.821087482490768,93.657964358807973,78.938209994090229,82.889812889812887,76.202922656528457,82.045764695660168]
[null,"Aberdeenshire Local Authority",34.751773049645394,41.291429271579979,38.773753866908564,27.844767486896124,52.128190206999747,39.433899465120312]
[null,"Angus Local Authority",82.192799761975607,61.29150390625,43.728261210165137,46.022151000040573,65.927500430861144,53.91913468967293]
[null,"Argyll & Bute Local Authority",69.599851796961843,31.191851138915624,7.6217708538749758,8.4039665392499039,36.733342164525105,19.291668922210793]
[null,"Clackmannanshire Local Authority",0,0,0,0,0,0]
[null,"Dumfries & Galloway Local Authority",64.743589743589737,37.504314808422507,23.939878477774226,34.485772979588269,64.744153332161062,36.523279271837723]
[null,"Dundee City Local Authority",98.475602682196808,90.859092733841834,88.113076874645841,58.315174556075853,84.367088607594937,86.515941842614993]
[null,"East Ayrshire Local Authority",71.337194501018331,64.734876773711719,62.839308212117743,55.072145316047752,88.51316468766133,67.893125687282676]
[null,"East Dunbartonshire Local Authority",100,65.408038976857497,48.51430667644901,59.513599607939227,79.517871640610366,72.538036740673959]
[null,"East Lothian Local Authority",52.517985611510788,59.262952525471491,41.970405831791972,32.388847023360967,76.935540683339198,49.863103841317965]
[null,"East Renfrewshire Local Authority",100,90.568818155025056,92.390782525204031,59.269463206541062,80.004561003420747,80.538404215681055]
[null,"Edinburgh, City of Local Authority",0,0,0,0,0,0]
[null,"Eilean Siar Local Authority","N/A",9.4256259204712816,7.6976421636615813,0,"N/A",7.6705174168990391]
[null,"Falkirk Local Authority",86.561285579245876,84.731177066126705,72.54106839905657,67.539454806312776,78.817597077741596,78.319506033383959]
[null,"Fife Local Authority",0,0,0,0,0,0]
[null,"Glasgow City Local Authority",88.657067169804961,90.481746412526718,88.348750779914823,84.551933482908808,92.205688453569408,88.819996012257462]
[null,"Highland Local Authority",48.264600896179843,44.521334792122538,20.306138804295561,23.858049660837636,49.60608530290682,30.68101315208575]
[null,"Inverclyde Local Authority",76.364490710619535,77.043580683156648,74.271798300066848,45.261088795829416,34.143591028693145,65.550679394953931]
[null,"Midlothian Local Authority",100,73.314265564392898,52.20904854598006,47.119193374144757,57.871917622617651,64.516353902350616]
[null,"Moray Local Authority",100,77.782381702162922,43.53805916305916,12.147384322353945,34.634867032503166,35.575726336698388]
[null,"North Ayrshire Local Authority",75.467923353932335,64.50226043790444,58.856756922699084,54.80440562096468,53.782393292682926,65.47861868359908]
[null,"North Lanarkshire Local Authority",90.389574186354452,84.753167321974658,76.852092280035947,67.063704496788006,78.828901640669201,82.153347990336513]
[null,"Orkney Islands Local Authority","N/A",41.214917339484813,33.739554317548745,15.472048248666203,0,23.693683866041233]
[null,"Perth & Kinross Local Authority",100,75.4097207568404,36.116903319763018,25.910729350410307,69.764808362369337,45.800770413582107]
[null,"Renfrewshire Local Authority",88.284038132485946,93.983348751156342,77.187981510015405,76.293370508054522,67.322999581064096,81.474351948265465]
[null,"Scottish Borders Local Authority",67.593853335926866,58.940011648223646,46.481603051048801,26.02498680274503,61.003730077992543,43.676199648270661]
[null,"Shetland Islands Local Authority","N/A",0,0,15.119451103579399,"N/A",9.643064269520746]
[null,"South Ayrshire Local Authority",74.438323946277151,47.876627402355858,52.554854223023746,66.487523992322451,57.855046057293251,58.035054376517792]
[null,"South Lanarkshire Local Authority",90.061071897414436,82.326210129713246,68.378078889558509,62.08691325896018,74.958135448980158,76.083424858136553]
[null,"Stirling Local Authority",79.503481683318199,73.080219403496741,49.245488487865586,46.888909495548958,66.23382458662833,60.812451282313404]
[null,"West Dunbartonshire Local Authority",76.437149150856243,74.577039960085273,65.692850838481903,62.561064338426362,53.658536585365852,71.531526668106238]
[null,"West Lothian Local Authority",91.364744817975961,91.461085879438485,70.078073558461099,54.007961286294098,83.055881203595149,78.62494217078779]
[]
[]
[null,"Intervention costs"]
[]
[null,"We calculated an indicative estimate of the cost per km of implementing 20 km speed limits on local and minor roads.  We based our estimates on the costs "]
[null,"incurred in the Edinburgh 20 mph project (2015-2018), using costs provided by Simon Lievesley, Senior Project Manager for transport projects at Edinburgh Council.  "]
[null,"Costs in 2016/17 and 2017/18 were deflated to 2015/16, using the Hospital and Community Health Service (HCHS) inflation index.  Total cost was £2,727,458, which "]
[null,"included staff time, construction and awareness raising.  The scheme covered 1204 km of roads, resulting in an estimated implementation cost of "]
[null,"£2,727,458/1204 = £2,265 per km. The length of local and minor roads in urban settlements, by local area, was calculated using GIS software, and used to estimate "]
[null,"the cost of the scheme for the area of interest."]
[]
[null,"Area of interest:",null,{"$f":"Results!C4","v":"Scotland"}]
[null,"Length (km) of local and minor roads in local settlements in the area of interest:"]
[null,null,null,{"$f":"VLOOKUP(Calculations!E2,'Eligible road length'!A3:B55,2)","v":15531.303159999999}]
[null,"Cost of 20 mph speed limits in the area of interest:",null,{"$f":"2265*D173","v":35178401.657399997}]
[]
[]
[null,"Hospitalisation costs"]
[]
[null,"The cost of a continuous inpatient stay was estimated to be £2,113 in 2006/07 (Geue et al 2012; based on healthcare resource groups and the English tariff)."]
[null,"This was inflated to £2,512 for 2015/16 using the Hospital and Community Health Service (HCHS) inflation index."]
[null,"Cost of continuous Inpatient stay ",null,2512]
[]
[]
[null,"References"]
[]
[null,"Atkins (2010) ","Interim Evaluation of the Implementation of 20mph Speed Limits in Portsmouth. http://webarchive.nationalarchives.gov.uk/+/http:/www.dft.gov.uk/pgr/roadsafety/research/rsrr/theme4/interimeval20mphspeedlimits.pdf"]
[null,"Bristol City Council (2012) ","20 mph Speed Limit Pilot Areas: Monitoring Report. http://www.bristol20mph.co.uk/wp-content/uploads/2016/06/20mph-Monitoring-Report-pilot-areas2012.pdf"]
[null,"COMEAP (2015)","Nitrogen dioxide: interim view on long-term average concentrations and mortality. https://www.gov.uk/government/publications/nitrogen-dioxide-interim-view-on-long-term-average-concentrations-and-mortality"]
[null,"COMEAP (2016)","Interim statement on quantifying the association of long-term average concentrations of nitrogen dioxide and mortality.  https://assets.publishing.service.gov.uk/government/uploads/system/uploads/attachment_data/file/485373/COMEAP_NO2_Mortality_Interim_Statement.pdf"]
[null,"Cross River Partnership (2017) ","Analysis of impact of 20 mph limits research report. https://crossriverpartnership.org/media/2017/08/170531-Analysis-of-Impact-of-20-mph-Limits-Research-Report-Issue1.pdf"]
[null,"DEFRA (2017)","NOx to NO2 Calculator. https://laqm.defra.gov.uk/review-and-assessment/tools/background-maps.html#NOxNO2calcfNO2 factors"]
[null,"Elvik (2009)","The Power Model of the relationship between speed and road safety.    https://www.toi.no/getfile.php?mmfileid=13206"]
[null,"Geue et al (2012)","Spoilt for choice: implications of using alternative methods of costing hospital episode statistics. Health Economics 21: 1201-1216. https://onlinelibrary.wiley.com/doi/abs/10.1002/hec.1785"]
[null,"Hoek, G. et al (2013)","Long-term air pollution exposure and cardio-respiratory mortality: a review. Environmental Health, 12:43. https://ehjournal.biomedcentral.com/articles/10.1186/1476-069X-12-43"]
[null,"ISD data","Hospitalisation data from Scottish Morbidity Records SMR01 and SMR04, obtained from NHS Information Services Division.  http://www.ndc.scot.nhs.uk/Data-Dictionary/SMR-Datasets/"]
[null,"Makar et al (2017)","Estimating the causal effects of low levels of fine particulate matter on hospitalization. Epidemiology 28: 627-634. https://www.ncbi.nlm.nih.gov/pubmed/28768298"]
[null,"NAEI (2016)","Vehicle fleet composition projections (base 2016). National Atmospheric Emissions Inventory. http://naei.beis.gov.uk/data/ef-transport"]
[null,"NICE (2017) ","NICE guideline ‘Air pollution: Outdoor air quality and health’.  https://www.nice.org.uk/guidance/ng70"]
[null,"NRS data","Mortality records from the National Records of Scotland, used with permission of the  Registrar General for Scotland. https://www.nrscotland.gov.uk/statistics-and-data/statistics/statistics-by-theme/vital-events/deaths"]
[null,"Ricardo (2016)","PM2.5 and PM10 in Scotland. Report for the Scottish Government. http://www.scottishairquality.co.uk/assets/documents/technical%20reports/pm2.5-pm10ratio_29Mar2016-FINAL_Version_Approved.pdf"]
[null,"TEAG (2013)","An evaluation of the estimated impacts on vehicle emissions of a 20 mph speed restriction in central London. Transport and Environmental Analysis Group. Centre for Transport Studies, Imperial College London.  https://www.cityoflondon.gov.uk/business/environmental-health/environmental-protection/air-quality/Documents/speed-restriction-air-quality-report-2013-for-web.pdf"]
[null,"Turley, M. (2013) ","South Central Edinburgh 20mph Limit Pilot Evaluation, Transport & Environment Committee.  http://www.edinburgh.gov.uk/downloads/file/7820/south_central_edinburgh_20mph_limit_pilot_evaluation%20_2013"]
[null,"WHO Europe HRAPIE (2013)","Health risks of air pollution in Europe - HRAPIE project.  http://www.euro.who.int/__data/assets/pdf_file/0006/238956/Health_risks_air_pollution_HRAPIE_project.pdf?ua=1"]

{"sheet":"SHEETS TO BE HIDDEN ->","index":5,"n_rows":0,"n_cols":0,"rows_kept":0,"cut":false,"hidden":true,"merged":[]}

{"sheet":"Calculations","index":6,"n_rows":249,"n_cols":69,"rows_kept":249,"cut":false,"hidden":true,"merged":[]}
["Calculating the deaths, years of life lost, hospital stays, and premature deaths for each group ",null,null,null,null,null,null,null,null,null,"COUNTS (ACCIDENTS)",null,null,null,null,null,null,null,null,"COUNTS (PM2.5)",null,null,null,null,null,null,null,null,"COUNTS (NO2)",null,null,null,null,null,null,null,"TOTAL COUNTS",null,null,null,null,null,null,null,null,null,null,null,null,null,null,null,null,null,null,null,null,null,null,null,null,"EUROPEAN AGE-STANDARDISED RATE (EASR) PER 100000"]
["AREA:",{"$f":"Options!B11","v":"Scotland"},"EQUIVALENT AREA:",null,{"$f":"VLOOKUP(B2,Lists!D2:E85,2)","v":"Scotland"},null,null,null,null,null,"CUMULATIVE INCIDENCE (DEATHS)",null,"YEARS OF LIFE LOST",null,"HOSPITALISATIONS",null,"PREMATURE MORTALITY",null,null,"CUMULATIVE INCIDENCE (DEATHS)",null,"YEARS OF LIFE LOST",null,"HOSPITALISATIONS",null,"PREMATURE MORTALITY",null,null,"CUMULATIVE INCIDENCE (DEATHS)",null,"YEARS OF LIFE LOST",null,"HOSPITALISATIONS",null,"PREMATURE MORTALITY",null,"CUMULATIVE INCIDENCE (DEATHS)",null,"YEARS OF LIFE LOST",null,"HOSPITALISATIONS",null,"PREMATURE MORTALITY",null,"AGE STANDARDISED RATE (ASR)",null,null,null,null,null,null,null,"ASR*EUROPEAN STANDARD POPULATION (ESP2013)",null,null,null,null,null,null,null,null,"CUMULATIVE INCIDENCE (DEATHS)",null,"YEARS OF LIFE LOST",null,"HOSPITALISATIONS",null,"PREMATURE MORTALITY"]
["SIMD","group","mean age (2016)","life exp (2014-16)","sex","SIMD","prevalence exposure","population (2016)","no. treated at base","additional no. treated under policy","Baseline","Policy","Baseline","Policy","Baseline","Policy","Baseline","Policy",null,"Baseline","Policy","Baseline","Policy","Baseline","Policy","Baseline","Policy",null,"Baseline","Policy","Baseline","Policy","Baseline","Policy","Baseline","Policy","Baseline","Policy","Baseline","Policy","Baseline","Policy","Baseline","Policy","CI_BASE","CI_POLICY","YLL_BASE","YLL_POLICY","HOSP_BASE","HOSP_POLICY","PREM_BASE","PREM_POLICY","CI_BASE","CI_POLICY","YLL_BASE","YLL_POLICY","HOSP_BASE","HOSP_POLICY","PREM_BASE","PREM_POLICY","ESP2013","Baseline","Policy","Baseline","Policy","Baseline","Policy","Baseline","Policy"]
[]
["All quintiles","16+ Males and Females","N/A",null,"BOTH","ALL",null,{"$f":"SUM(H7:H11)","v":4488783},{"$f":"SUM(I7:I11)","v":0},{"$f":"SUM(J7:J11)","v":2435905},{"$f":"SUMIF(K7:K11,\">0\")","v":44528.108256230997},44518.211697279999,595692.78734702815,595558.19122859405,1143855.727350818,1143599.9386121591,21625.303979081,21620.454575375996,{"$f":"K5-T5","v":0},{"$f":"SUMIF(T7:T11,\">0\")","v":44528.108256230997},44527.566929385997,595692.78734702815,595685.26412833796,1143855.727350818,1143828.4893004799,21625.303979081,21625.037488381,null,{"$f":"SUMIF(AC7:AC11,\">0\")","v":44528.108256230997},44527.859373243002,595692.78734702815,595689.33559016814,1143855.727350818,1143855.7273508171,21625.303979081,21625.181488892002,{"$f":"K5","v":44528.108256230997},{"$f":"AK5-((AK5-L5)+(AK5-U5)+(AK5-AD5))","v":44517.421487447005},{"$f":"M5","v":595692.78734702815},{"$f":"AM5-((AM5-N5)+(AM5-W5)+(AM5-AF5))","v":595547.21625304385},{"$f":"O5","v":1143855.727350818},{"$f":"AO5-((AO5-P5)+(AO5-Y5)+(AO5-AH5))","v":1143572.7005618201},{"$f":"Q5","v":21625.303979081},{"$f":"AQ5-((AQ5-R5)+(AQ5-AA5)+(AQ5-AJ5))","v":21620.065594486998},null,null,null,null,null,null,null,null,{"$f":"SUMIF(BA7:BA11,\">0\")","v":906634178.3699379},{"$f":"SUMIF(BB7:BB11,\">0\")","v":906414383.13447654},{"$f":"SUMIF(BC7:BC11,\">0\")","v":11487925115.814137},11485090093.438679,21939692318.81485,21934220380.374622,415460924.45488197,415358789.09487933,{"$f":"SUM(BI7:BI11)","v":1000000},{"$f":"BA5/$BI5","v":906.6341783699379},{"$f":"BB5/$BI5","v":906.41438313447657},{"$f":"BC5/$BI5","v":11487.925115814136},11485.090093438679,21939.69231881485,21934.220380374623,415.46092445488199,415.35878909487934]
["Q1 and Q2","16+ Males and Females","N/A",null,"BOTH","Q1&2",null,{"$f":"SUM(H7:H8)","v":1769266},0,1199669,23420.625096725998,23414.424676908002,318079.12643892108,317993.45069948398,542278.73076818697,542131.15292809007,11406.446999612001,11403.377958336998,null,{"$f":"SUM(T7:T8)","v":23420.625096725998},23420.272992561,318079.12643892108,318074.20155250694,542278.73076818697,542262.67489252798,11406.446999612001,11406.272867157,null,{"$f":"SUM(AC7:AC8)","v":23420.625096725998},23420.460710277002,318079.12643892108,318076.82749790605,542278.73076818697,542278.73076818802,11406.446999612001,11406.365586385,23420.625096725998,{"$f":"AK6-((AK6-L6)+(AK6-U6)+(AK6-AD6))","v":23413.908186294007},318079.12643892108,317986.2268720548,{"$f":"O6","v":542278.73076818697},542115.09705243213,11406.446999612001,11403.122412654997,null,null,null,null,null,null,null,null,{"$f":"SUMIF(BA7:BA8,\">0\")","v":502859944.29797828},{"$f":"SUMIF(BB7:BB8,\">0\")","v":502715876.98405033},6393049558.6752815,6391181438.2658997,10787710810.29191,10784452280.981823,231459232.79294431,231391613.31742764,{"$f":"SUM(BI7:BI8)","v":400000},{"$f":"BA6/$BI6","v":1257.1498607449457},1256.7896924601259,15982.623896688205,15977.953595664749,26969.277025729774,26961.130702454557,578.64808198236074,578.47903329356905]
["SIMD Q1 (most deprived)","16+ Males and Females","N/A",null,"BOTH",1,null,{"$f":"H12+H17","v":872234},0,635946,12912.34650908,12908.719847776001,{"$f":"M12+M17","v":179614.53273844806},179563.10168376,288715.84006160399,288631.83854672103,6424.7774562129998,6422.9342206299989,null,{"$f":"T12+T17","v":12912.34650908},12912.128979142999,179614.53273844806,179611.43523990398,288715.84006160399,288706.26796239603,6424.7774562129998,6424.6676549920003,null,{"$f":"AC12+AC17","v":12912.34650908},12912.243357387,179614.53273844806,179613.065247155,288715.84006160399,288715.84006160399,6424.7774562129998,6424.7253846950007,12912.34650908,12908.399166146,179614.53273844806,179558.53669392286,288715.84006160399,288622.26644751307,6424.7774562129998,6422.7723478910002,null,null,null,null,null,null,null,null,{"$f":"BA12+BA17","v":294492379.93299007},{"$f":"BB12+BB17","v":294402952.47466946},3752509088.9712358,3751343218.2100506,5950449632.4839668,5948525075.3939285,135960102.81796616,135917751.18457004,{"$f":"BI12+BI17","v":200000},{"$f":"BA7/$BI7","v":1472.4618996649504},1472.0147623733474,{"$f":"BC7/$BI7","v":18762.54544485618},{"$f":"BD7/$BI7","v":18756.716091050253},{"$f":"BE7/$BI7","v":29752.248162419834},{"$f":"BF7/$BI7","v":29742.625376969641},{"$f":"BG7/$BI7","v":679.80051408983081},{"$f":"BH7/$BI7","v":679.58875592285017}]
["SIMD Q2",null,"N/A",null,"BOTH",2,null,{"$f":"H13+H18","v":897032},0,563723,{"$f":"K13+K18","v":10508.278587646},10505.704829132001,138464.59370047299,138430.34901572397,253562.89070658298,253499.31438136901,4981.6695433990008,4980.4437377069989,null,{"$f":"T13+T18","v":10508.278587646},10508.144013418001,138464.59370047299,138462.76631260297,253562.89070658298,253556.40693013201,4981.6695433990008,4981.605212165,null,{"$f":"AC13+AC18","v":10508.278587646},10508.21735289,138464.59370047299,138463.76225075102,253562.89070658298,253562.890706584,4981.6695433990008,4981.6402016900001,10508.278587646,10505.509020148002,138464.59370047299,138427.69017813198,253562.89070658298,253492.83060491906,4981.6695433990008,4980.3500647639976,null,null,null,null,null,null,null,null,{"$f":"BA13+BA18","v":208367564.36498818},{"$f":"BB13+BB18","v":208312924.50938088},2640540469.7040453,2639838220.0558491,4837261177.8079433,4835927205.5878944,95499129.974978164,95473862.132857591,{"$f":"BI13+BI18","v":200000},1041.8378218249409,1041.5646225469043,13202.702348520226,13199.191100279246,24186.305889039715,24179.636027939472,477.49564987489083,477.36931066428798]
["SIMD Q3",null,"N/A",null,"BOTH",3,null,907978,0,411689,8992.8570035550001,8991.3103073390012,117531.42679061599,117510.99867031001,227312.98226707298,227272.69147336698,4322.4536250149995,4321.7174776890006,null,{"$f":"T14+T19","v":8992.8570035550001},8992.7824321949993,117531.42679061599,117530.38567776201,227312.98226707298,227308.984806097,4322.4536250149995,4322.4170805069998,null,{"$f":"AC14+AC19","v":8992.8570035550001},8992.8243592229992,117531.42679061599,117530.97443664201,227312.98226707298,227312.98226707196,4322.4536250149995,4322.4376881480002,8992.8570035550001,8991.2030916469994,117531.42679061599,117509.50520348204,227312.98226707298,227268.69401238998,4322.4536250149995,4321.6649963140017,null,null,null,null,null,null,null,null,{"$f":"BA14+BA19","v":169292162.7500006},{"$f":"BB14+BB19","v":169261188.72826234},2140035869.9883657,2139637178.0664282,4182172524.5569873,4181358758.3494802,77334119.23497355,77320009.431596398,{"$f":"BI14+BI19","v":200000},846.46081375000301,846.30594364131173,10700.179349941829,10698.185890332141,20910.862622784938,20906.793791747401,386.67059617486774,386.60004715798198]
["SIMD Q4",null,"N/A",null,"BOTH",4,null,910792,0,364554,7033.2165525679993,7032.1212370310004,93245.919604846,93231.387717257006,200119.056113114,200087.41739527998,3452.2212044819998,3451.6915635260002,null,{"$f":"T15+T20","v":7033.2165525679993},7033.1617100840003,93245.919604846,93245.166551315007,200119.056113114,200115.88804529796,3452.2212044819998,3452.1944112530005,null,{"$f":"AC15+AC20","v":7033.2165525679993},7033.1920391350004,93245.919604846,93245.583941812016,200119.056113114,200119.056113114,3452.2212044819998,3452.2092304149996,7033.2165525679993,7032.0418811140025,93245.919604846,93230.29900069203,200119.056113114,200084.24932746394,3452.2212044819998,3451.6527962300006,null,null,null,null,null,null,null,null,{"$f":"BA15+BA20","v":134849788.32098472},{"$f":"BB15+BB20","v":134827370.10978639},1700927130.3563244,1700642468.4416423,3688824590.7569547,3688183654.898468,61421581.340987086,61411471.785438597,{"$f":"BI15+BI20","v":200000},674.24894160492363,674.13685054893199,8504.6356517816221,8503.2123422082113,18444.122953784772,18440.918274492342,307.10790670493543,307.05735892719298]
["SIMD Q5 (least deprived)",null,"N/A",null,"BOTH",5,null,900747,0,459993,5081.4096033820006,5080.3554760019997,66836.314512645011,66822.354141543008,174144.95820244402,174108.67681542202,2444.1821499719999,2443.6675758239999,null,{"$f":"T16+T21","v":5081.4096033820006},5081.3497945460003,66836.314512645011,66835.510346754003,174144.95820244402,174140.94155655702,2444.1821499719999,2444.1531294639999,null,{"$f":"AC16+AC21","v":5081.4096033820006},5081.3822646080007,66836.314512645011,66835.94971380799,174144.95820244402,174144.95820244303,2444.1821499719999,2444.168983944,5081.4096033820006,5080.2683283919996,66836.314512645011,66821.185176814979,174144.95820244402,174104.66016953404,2444.1821499719999,2443.625389288,null,null,null,null,null,null,null,null,{"$f":"BA16+BA21","v":99632283.000974268},{"$f":"BB16+BB21","v":99609947.312377438},{"$f":"BC16+BC21","v":1253912556.7941651},1253629008.6647089,3280984393.2089977,3280225686.1448531,45245991.085977018,45235694.560416713,{"$f":"BI16+BI21","v":200000},{"$f":"BA11/$BI11","v":498.16141500487134},498.04973656188719,6269.5627839708259,6268.1450433235441,16404.921966044989,16401.128430724264,226.22995542988508,226.17847280208358]
["SIMD Q1 (most deprived)","16+ Females","N/A",null,"female",1,null,{"$f":"SUM(H60:H78)","v":457633},{"$f":"SUM(I60:I78)","v":0},{"$f":"SUM(J60:J78)","v":334352},{"$f":"SUMIF(K60:K78,\">0\")","v":6432.8111757830002},6430.9985363600008,82592.818821520021,82569.061719486999,155037.89085937801,154992.59164480501,2639.1209026829997,2638.3580208379999,null,{"$f":"SUMIF(T60:T78,\">0\")","v":6432.8111757830002},6432.7023541520002,82592.818821520021,82591.402475355004,155037.89085937801,155032.75697818704,2639.1209026829997,2639.0761046719999,null,{"$f":"SUMIF(AC60:AC78,\">0\")","v":6432.8111757830002},6432.759397926,82592.818821520021,82592.144430961009,155037.89085937801,155037.89085937801,2639.1209026829997,2639.0995389499999,6432.8111757830002,6430.8379368720007,82592.818821520021,82566.97098276297,155037.89085937801,154987.45776361405,2639.1209026829997,2638.2918590940003,null,null,null,null,null,null,null,null,{"$f":"SUMIF(BA60:BA78,\">0\")","v":124146962.13298215},{"$f":"SUMIF(BB60:BB78,\">0\")","v":124108891.62627058},{"$f":"SUMIF(BC60:BC78,\">0\")","v":1590536995.820271},1590039491.2761359,2906076588.3480043,2905131863.961,53087226.462978467,53070567.049827375,{"$f":"SUM(BI60:BI78)","v":100000},1241.4696213298214,1241.0889162627059,15905.369958202709,15900.39491276136,29060.765883480042,29051.318639609999,530.87226462978469,530.70567049827378]
["SIMD Q2",null,"N/A",null,"female",2,null,{"$f":"SUM(H98:H116)","v":469079},{"$f":"SUM(I98:I116)","v":0},{"$f":"SUM(J98:J116)","v":296328},{"$f":"SUMIF(K98:K116,\">0\")","v":5243.3710037219998},5242.0717200460003,64052.630913232999,64036.596574987998,134904.85907071698,134870.71245102002,2052.8845794700001,2052.3709893309997,null,{"$f":"SUMIF(T98:T116,\">0\")","v":5243.3710037219998},5243.3030498760008,64052.630913232999,64051.786831798992,134904.85907071698,134901.382758817,2052.8845794700001,2052.8580330980003,null,{"$f":"SUMIF(AC98:AC116,\">0\")","v":5243.3710037219998},5243.3400654350007,64052.630913232999,64052.245778974997,134904.85907071698,134904.859070718,2052.8845794700001,2052.8724347100001,5243.3710037219998,5241.9728279130022,64052.630913232999,64035.367359295989,134904.85907071698,134867.23613912106,2052.8845794700001,2052.332298199,null,null,null,null,null,null,null,null,{"$f":"SUMIF(BA98:BA116,\">0\")","v":87786605.433977827},{"$f":"SUMIF(BB98:BB116,\">0\")","v":87763199.248952419},1118817948.298315,1118516379.6930461,2362418359.7929773,2361759907.3291469,37264432.328983374,37254405.825196937,{"$f":"SUM(BI98:BI116)","v":100000},877.86605433977832,877.63199248952424,11188.179482983151,11185.163796930461,23624.183597929772,23617.599073291469,372.64432328983372,372.54405825196937]
["SIMD Q3",null,"N/A",null,"female",3,null,{"$f":"SUM(H136:H154)","v":469093},{"$f":"SUM(I136:I154)","v":0},{"$f":"SUM(J136:J154)","v":214810},{"$f":"SUMIF(K136:K154,\">0\")","v":4357.5373684240003},4356.7660337060006,53304.663133386006,53295.209906875003,118438.08137411899,118416.66463787999,1753.3797897250001,1753.074573376,null,{"$f":"SUMIF(T136:T154,\">0\")","v":4357.5373684240003},4357.5004886839997,53304.663133386006,53304.195821306006,118438.08137411899,118435.96144653,1753.3797897250001,1753.3650435769998,null,{"$f":"SUMIF(AC136:AC154,\">0\")","v":4357.5373684240003},4357.5211440629992,53304.663133386006,53304.458741709001,118438.08137411899,118438.08137411799,1753.3797897250001,1753.3733237709998,4357.5373684240003,4356.7129296049989,53304.663133386006,53294.538203117998,118438.08137411899,118414.54471028999,1753.3797897250001,1753.0533612739994,null,null,null,null,null,null,null,null,{"$f":"SUMIF(BA136:BA154,\">0\")","v":71304264.787963793},{"$f":"SUMIF(BB136:BB154,\">0\")","v":71290776.570806026},906603792.29249299,906431453.25405777,2042486603.9890082,2042080317.6756678,30167484.037962977,30161862.144423872,{"$f":"SUM(BI136:BI154)","v":100000},713.04264787963791,712.90776570806031,9066.0379229249302,9064.3145325405785,20424.866039890083,20420.803176756679,301.67484037962976,301.61862144423873]
["SIMD Q4",null,"N/A",null,"female",4,null,{"$f":"SUM(H174:H192)","v":468792},{"$f":"SUM(I174:I192)","v":0},{"$f":"SUM(J174:J192)","v":189530},{"$f":"SUMIF(K174:K192,\">0\")","v":3355.0680011779996},3354.5308328020001,41832.926307925001,41826.281363040012,103630.270589145,103613.60225369799,1387.5527887339999,1387.3360839900001,null,{"$f":"SUMIF(T174:T192,\">0\")","v":3355.0680011779996},3355.0411497109999,41832.926307925001,41832.58793409801,103630.270589145,103628.59782861598,1387.5527887339999,1387.5420051380001,null,{"$f":"SUMIF(AC174:AC192,\">0\")","v":3355.0680011779996},3355.0559847180002,41832.926307925001,41832.775104251006,103630.270589145,103630.270589145,1387.5527887339999,1387.5479589689999,3355.0680011779996,3354.491964875001,41832.926307925001,41825.791785539026,103630.270589145,103611.92949316897,1387.5527887339999,1387.3204706290003,null,null,null,null,null,null,null,null,{"$f":"SUMIF(BA174:BA192,\">0\")","v":56783705.379999816},{"$f":"SUMIF(BB174:BB192,\">0\")","v":56773955.570518866},720477771.77167177,720354821.51512623,1801545672.0019732,1801226647.2934456,23953976.369995687,23949963.82053392,{"$f":"SUM(BI174:BI192)","v":100000},567.83705379999822,567.73955570518865,7204.7777177167181,7203.5482151512624,18015.456720019731,18012.266472934454,239.53976369995686,239.49963820533921]
["SIMD Q5 (least deprived)",null,"N/A",null,"female",5,null,{"$f":"SUM(H212:H230)","v":465079},{"$f":"SUM(I212:I230)","v":0},{"$f":"SUM(J212:J230)","v":238297},{"$f":"SUMIF(K212:K230,\">0\")","v":2446.2997538200002},2445.7927284820003,30221.279533966997,30214.942247390001,90811.93648539501,90793.010715236,993.58633149599996,993.3764319500001,null,{"$f":"SUMIF(T212:T230,\">0\")","v":2446.2997538200002},2446.2707278399998,30221.279533966997,30220.916473834,90811.93648539501,90809.827391265993,993.58633149599996,993.57456426699991,null,{"$f":"SUMIF(AC212:AC230,\">0\")","v":2446.2997538200002},2446.2864476220002,30221.279533966997,30221.114145193998,90811.93648539501,90811.93648539501,993.58633149599996,993.58097722399998,2446.2997538200002,2445.7503963039999,30221.279533966997,30214.413798484005,90811.93648539501,90790.901621106983,993.58633149599996,993.35931044900008,null,null,null,null,null,null,null,null,{"$f":"SUMIF(BA212:BA230,\">0\")","v":41943638.828988798},{"$f":"SUMIF(BB212:BB230,\">0\")","v":41934209.365948759},531054803.90633106,530934181.34327114,1602364950.7030139,1601994016.1886847,17641017.063990742,17636989.543592703,{"$f":"SUM(BI212:BI230)","v":100000},419.43638828988799,419.3420936594876,5310.5480390633102,5309.3418134327112,16023.649507030139,16019.940161886847,176.41017063990742,176.36989543592702]
["SIMD Q1 (most deprived)","16+ Males","N/A",null,"male",1,null,{"$f":"SUM(H79:H97)","v":414601},{"$f":"SUM(I79:I97)","v":0},{"$f":"SUM(J79:J97)","v":301594},{"$f":"SUMIF(K79:K97,\">0\")","v":6479.5353332969999},6477.7213114160004,97021.713916928027,96994.039964273019,133677.94920222598,133639.24690191599,3785.6565535299997,3784.5761997919994,null,{"$f":"SUMIF(T79:T97,\">0\")","v":6479.5353332969999},6479.4266249909997,97021.713916928027,97020.032764548974,133677.94920222598,133673.51098420899,3785.6565535299997,3785.5915503200004,null,{"$f":"SUMIF(AC79:AC97,\">0\")","v":6479.5353332969999},6479.4839594610003,97021.713916928027,97020.92081619399,133677.94920222598,133677.94920222598,3785.6565535299997,3785.6258457450003,6479.5353332969999,6477.5612292740007,97021.713916928027,96991.565711159928,133677.94920222598,133634.808683899,3785.6565535299997,3784.4804887970008,null,null,null,null,null,null,null,null,{"$f":"SUMIF(BA79:BA97,\">0\")","v":170345417.80000791},{"$f":"SUMIF(BB79:BB97,\">0\")","v":170294060.84839886},2161972093.1509647,2161303726.9339147,3044373044.135962,3043393211.4329281,82872876.354987681,82847184.134742677,{"$f":"SUM(BI79:BI97)","v":100000},1703.4541780000791,1702.9406084839886,21619.720931509648,21613.037269339147,30443.730441359621,30433.93211432928,828.72876354987682,828.47184134742679]
["SIMD Q2",null,"N/A",null,"male",2,null,{"$f":"SUM(H117:H135)","v":427953},{"$f":"SUM(I117:I135)","v":0},{"$f":"SUM(J117:J135)","v":267395},{"$f":"SUMIF(K117:K135,\">0\")","v":5264.9075839240013},5263.6331090860003,74411.962787239987,74393.752440735989,118658.03163586601,118628.60193034899,2928.7849639290002,2928.0727483759997,null,{"$f":"SUMIF(T117:T135,\">0\")","v":5264.9075839240013},5264.8409635419994,74411.962787239987,74410.979480803988,118658.03163586601,118655.024171315,2928.7849639290002,2928.7471790669997,null,{"$f":"SUMIF(AC117:AC135,\">0\")","v":5264.9075839240013},5264.8772874549995,74411.962787239987,74411.51647177602,118658.03163586601,118658.03163586601,2928.7849639290002,2928.76776698,5264.9075839240013,5263.5361922349966,74411.962787239987,74392.322818836023,118658.03163586601,118625.59446579799,2928.7849639290002,2928.017766564999,null,null,null,null,null,null,null,null,{"$f":"SUMIF(BA117:BA135,\">0\")","v":120580958.93101035},{"$f":"SUMIF(BB117:BB135,\">0\")","v":120549725.26042846},1521722521.4057305,1521321840.3628032,2474842818.0149655,2474167298.2587471,58234697.64599479,58219456.307660647,{"$f":"SUM(BI117:BI135)","v":100000},1205.8095893101035,1205.4972526042845,15217.225214057305,15213.218403628032,24748.428180149655,24741.672982587472,582.34697645994788,582.19456307660641]
["SIMD Q3",null,"N/A",null,"male",3,null,{"$f":"SUM(H155:H173)","v":438885},{"$f":"SUM(I155:I173)","v":0},{"$f":"SUM(J155:J173)","v":196879},{"$f":"SUMIF(K155:K173,\">0\")","v":4635.3196351309998},4634.5442736330006,64226.763657229989,64215.788763435005,108874.90089295399,108856.02683548699,2569.0738352899998,2568.6429043130001,null,{"$f":"SUMIF(T155:T173,\">0\")","v":4635.3196351309998},4635.2819435110005,64226.763657229989,64226.189856456003,108874.90089295399,108873.023359567,2569.0738352899998,2569.0520369299998,null,{"$f":"SUMIF(AC155:AC173,\">0\")","v":4635.3196351309998},4635.30321516,64226.763657229989,64226.515694933005,108874.90089295399,108874.90089295399,2569.0738352899998,2569.0643643769999,4635.3196351309998,4634.4901620420014,64226.763657229989,64214.967000364035,108874.90089295399,108854.14930210001,2569.0738352899998,2568.6116350400002,null,null,null,null,null,null,null,null,{"$f":"SUMIF(BA155:BA173,\">0\")","v":97987897.962036788},{"$f":"SUMIF(BB155:BB173,\">0\")","v":97970412.157456309},1233432077.6958725,1233205724.8123703,2139685920.5679791,2139278440.6738124,47166635.197010569,47158147.287172526,{"$f":"SUM(BI155:BI173)","v":100000},{"$f":"BA19/$BI19","v":979.87897962036789},{"$f":"BB19/$BI19","v":979.70412157456303},{"$f":"BC19/$BI19","v":12334.320776958726},{"$f":"BD19/$BI19","v":12332.057248123703},21396.85920567979,21392.784406738123,471.66635197010567,471.58147287172528]
["SIMD Q4",null,"N/A",null,"male",4,null,{"$f":"SUM(H193:H211)","v":442000},{"$f":"SUM(I193:I211)","v":0},{"$f":"SUM(J193:J211)","v":175024},{"$f":"SUMIF(K193:K211,\">0\")","v":3678.1485513900002},3677.5904042289999,51412.993296920999,51405.106354216994,96488.785523968996,96473.815141582003,2064.6684157479999,2064.3554795360001,null,{"$f":"SUMIF(T193:T211,\">0\")","v":3678.1485513900002},3678.1205603730004,51412.993296920999,51412.578617216997,96488.785523968996,96487.290216681984,2064.6684157479999,2064.6524061150003,null,{"$f":"SUMIF(AC193:AC211,\">0\")","v":3678.1485513900002},3678.1360544170002,51412.993296920999,51412.808837561002,96488.785523968996,96488.785523968996,2064.6684157479999,2064.6612714459998,3678.1485513900002,3677.5499162390001,51412.993296920999,51404.507215152997,96488.785523968996,96472.319834294991,2064.6684157479999,2064.3323256010003,null,null,null,null,null,null,null,null,{"$f":"SUMIF(BA193:BA211,\">0\")","v":78066082.94098489},{"$f":"SUMIF(BB193:BB211,\">0\")","v":78053414.53926754},980449358.58465266,980287646.92651618,1887278918.7549815,1886957007.6050224,37467604.970991403,37461507.964904673,{"$f":"SUM(BI193:BI211)","v":100000},780.66082940984893,780.53414539267544,9804.4935858465269,9802.8764692651621,18872.789187549814,18869.570076050226,374.67604970991403,374.61507964904672]
["SIMD Q5 (least deprived)",null,"N/A",null,"male",5,null,{"$f":"SUM(H231:H249)","v":435668},{"$f":"SUM(I231:I249)","v":0},{"$f":"SUM(J231:J249)","v":221696},{"$f":"SUMIF(K231:K249,\">0\")","v":2635.1098495619999},2634.5627475199999,36615.034978678006,36607.411894153003,83333.021717049021,83315.666100186005,1450.5958184760002,1450.291143874,null,{"$f":"SUMIF(T231:T249,\">0\")","v":2635.1098495619999},2635.079066706,36615.034978678006,36614.593872920006,83333.021717049021,83331.114165291016,1450.5958184760002,1450.578565197,null,{"$f":"SUMIF(AC231:AC249,\">0\")","v":2635.1098495619999},2635.095816986,36615.034978678006,36614.835568613998,83333.021717049021,83333.021717048003,1450.5958184760002,1450.5880067200001,2635.1098495619999,2634.5179320880002,36615.034978678006,36606.771378330996,83333.021717049021,83313.75854842698,1450.5958184760002,1450.2660788389996,null,null,null,null,null,null,null,null,{"$f":"SUMIF(BA231:BA249,\">0\")","v":57688644.171985477},{"$f":"SUMIF(BB231:BB249,\">0\")","v":57675737.946428679},{"$f":"SUMIF(BC231:BC249,\">0\")","v":722857752.88783395},722694827.32143772,1678619442.5059838,1678231669.9561684,27604974.02198628,27598705.016824007,{"$f":"SUM(BI231:BI249)","v":100000},{"$f":"BA21/$BI21","v":576.88644171985482},576.75737946428683,7228.5775288783398,7226.948273214377,16786.194425059839,16782.316699561685,276.04974021986277,275.98705016824005]
[null,"Female 0-4",2.0384007,81.468401,"female","ALL",null,{"$f":"SUM(H60,H98,H136,H174,H212)","v":0},0,0,{"$f":"SUM(K60,K98,K136,K174,K212)","v":{"$error":"#VALUE!"}},{"$error":"#VALUE!"},{"$error":"#VALUE!"},{"$error":"#VALUE!"},{"$error":"#VALUE!"},{"$error":"#VALUE!"},{"$error":"#VALUE!"},{"$error":"#VALUE!"},null,{"$f":"SUM(T60,T98,T136,T174,T212)","v":{"$error":"#VALUE!"}},{"$error":"#VALUE!"},{"$error":"#VALUE!"},{"$error":"#VALUE!"},{"$error":"#VALUE!"},{"$error":"#VALUE!"},{"$error":"#VALUE!"},{"$error":"#VALUE!"},null,{"$f":"SUM(AC60,AC98,AC136,AC174,AC212)","v":{"$error":"#VALUE!"}},{"$error":"#VALUE!"},{"$error":"#VALUE!"},{"$error":"#VALUE!"},{"$error":"#VALUE!"},{"$error":"#VALUE!"},{"$error":"#VALUE!"},{"$error":"#VALUE!"},{"$error":"#VALUE!"},{"$error":"#VALUE!"},{"$error":"#VALUE!"},{"$error":"#VALUE!"},{"$error":"#VALUE!"},{"$error":"#VALUE!"},{"$error":"#VALUE!"},{"$error":"#VALUE!"},null,null,null,null,null,null,null,null,{"$f":"SUM(BA60,BA98,BA136,BA174,BA212)","v":{"$error":"#VALUE!"}},{"$error":"#VALUE!"},{"$error":"#VALUE!"},{"$error":"#VALUE!"},{"$error":"#VALUE!"},{"$error":"#VALUE!"},{"$error":"#VALUE!"},{"$error":"#VALUE!"},25000,{"$error":"#VALUE!"},{"$error":"#VALUE!"},{"$error":"#VALUE!"},{"$error":"#VALUE!"},{"$error":"#VALUE!"},{"$error":"#VALUE!"},{"$error":"#VALUE!"},{"$error":"#VALUE!"}]
[null,"Female 5-9",6.9792794999999996,81.439279999999997,"female","ALL",null,{"$f":"SUM(H61,H99,H137,H175,H213)","v":0},0,0,{"$f":"SUM(K61,K99,K137,K175,K213)","v":{"$error":"#VALUE!"}},{"$error":"#VALUE!"},{"$f":"SUM(M61,M99,M137,M175,M213)","v":{"$error":"#VALUE!"}},{"$error":"#VALUE!"},{"$error":"#VALUE!"},{"$error":"#VALUE!"},{"$error":"#VALUE!"},{"$error":"#VALUE!"},null,{"$f":"SUM(T61,T99,T137,T175,T213)","v":{"$error":"#VALUE!"}},{"$error":"#VALUE!"},{"$error":"#VALUE!"},{"$error":"#VALUE!"},{"$error":"#VALUE!"},{"$error":"#VALUE!"},{"$error":"#VALUE!"},{"$error":"#VALUE!"},null,{"$f":"SUM(AC61,AC99,AC137,AC175,AC213)","v":{"$error":"#VALUE!"}},{"$error":"#VALUE!"},{"$error":"#VALUE!"},{"$error":"#VALUE!"},{"$error":"#VALUE!"},{"$error":"#VALUE!"},{"$error":"#VALUE!"},{"$error":"#VALUE!"},{"$error":"#VALUE!"},{"$error":"#VALUE!"},{"$error":"#VALUE!"},{"$error":"#VALUE!"},{"$error":"#VALUE!"},{"$error":"#VALUE!"},{"$error":"#VALUE!"},{"$error":"#VALUE!"},null,null,null,null,null,null,null,null,{"$f":"SUM(BA61,BA99,BA137,BA175,BA213)","v":{"$error":"#VALUE!"}},{"$error":"#VALUE!"},{"$error":"#VALUE!"},{"$error":"#VALUE!"},{"$error":"#VALUE!"},{"$error":"#VALUE!"},{"$error":"#VALUE!"},{"$error":"#VALUE!"},27500,{"$error":"#VALUE!"},{"$error":"#VALUE!"},{"$error":"#VALUE!"},{"$error":"#VALUE!"},{"$error":"#VALUE!"},{"$error":"#VALUE!"},{"$error":"#VALUE!"},{"$error":"#VALUE!"}]
[null,"Female 10-15",12.478312000000001,81.948309999999992,"female","ALL",null,{"$f":"SUM(H62,H100,H138,H176,H214)","v":0},0,0,{"$f":"SUM(K62,K100,K138,K176,K214)","v":{"$error":"#VALUE!"}},{"$f":"SUM(L62,L100,L138,L176,L214)","v":{"$error":"#VALUE!"}},{"$error":"#VALUE!"},{"$error":"#VALUE!"},{"$f":"SUM(O62,O100,O138,O176,O214)","v":{"$error":"#VALUE!"}},{"$f":"SUM(P62,P100,P138,P176,P214)","v":{"$error":"#VALUE!"}},{"$error":"#VALUE!"},{"$error":"#VALUE!"},null,{"$f":"SUM(T62,T100,T138,T176,T214)","v":{"$error":"#VALUE!"}},{"$error":"#VALUE!"},{"$error":"#VALUE!"},{"$error":"#VALUE!"},{"$error":"#VALUE!"},{"$error":"#VALUE!"},{"$error":"#VALUE!"},{"$error":"#VALUE!"},null,{"$f":"SUM(AC62,AC100,AC138,AC176,AC214)","v":{"$error":"#VALUE!"}},{"$error":"#VALUE!"},{"$error":"#VALUE!"},{"$error":"#VALUE!"},{"$error":"#VALUE!"},{"$error":"#VALUE!"},{"$error":"#VALUE!"},{"$error":"#VALUE!"},{"$error":"#VALUE!"},{"$error":"#VALUE!"},{"$error":"#VALUE!"},{"$error":"#VALUE!"},{"$error":"#VALUE!"},{"$error":"#VALUE!"},{"$error":"#VALUE!"},{"$error":"#VALUE!"},null,null,null,null,null,null,null,null,{"$f":"SUM(BA62,BA100,BA138,BA176,BA214)","v":{"$error":"#VALUE!"}},{"$error":"#VALUE!"},{"$error":"#VALUE!"},{"$error":"#VALUE!"},{"$error":"#VALUE!"},{"$error":"#VALUE!"},{"$error":"#VALUE!"},{"$error":"#VALUE!"},33000,{"$error":"#VALUE!"},{"$error":"#VALUE!"},{"$error":"#VALUE!"},{"$error":"#VALUE!"},{"$error":"#VALUE!"},{"$error":"#VALUE!"},{"$error":"#VALUE!"},{"$error":"#VALUE!"}]
["All quintiles","Female 16-19",17.570053000000001,81.100049999999996,"female","ALL",null,{"$f":"SUM(H63,H101,H139,H177,H215)","v":118803},0,65206,22.937576581000002,22.932163646000003,1434.2865947970001,1433.9481239880001,12465.290273102,12462.435088204,22.937576581000002,22.932163646000003,null,{"$f":"SUM(T63,T101,T139,T177,T215)","v":22.937576581000002},22.937250603999999,1434.2865947970001,1434.2662114570001,12465.290273102,12464.964867304998,22.937576581000002,22.937250603999999,null,{"$f":"SUM(AC63,AC101,AC139,AC177,AC215)","v":22.937576581000002},22.937432293000001,1434.2865947970001,1434.277572469,12465.290273102,12465.290273102,22.937576581000002,22.937432293000001,22.937576581000002,22.931693380999999,1434.2865947970001,1433.9187183199999,12465.290273102,12462.109682406997,22.937576581000002,22.931693380999999,null,null,null,null,null,null,null,null,{"$f":"SUM(BA63,BA101,BA139,BA177,BA215)","v":426138.94399813836},426029.8060183475,26646466.889783498,26639642.492257942,231245008.49998069,231186056.46236467,426138.94399813836,426029.8060183475,22000,19.369951999915379,19.364991182652158,1211.2030404447044,1210.8928405571792,10511.136749999123,10508.457111925667,19.369951999915379,19.364991182652158]
[null,"Female 20-24",22.077057,81.667060000000006,"female","ALL",null,{"$f":"SUM(H64,H102,H140,H178,H216)","v":182279},0,102042,51.981037822999994,51.968523297000004,3045.5691619920003,3044.8359358769994,21506.627044281999,21501.605101433001,51.981037822999994,51.968523297000004,null,{"$f":"SUM(T64,T102,T140,T178,T216)","v":51.981037822999994},51.980138259,3045.5691619920003,3045.5164565350001,21506.627044281999,21505.936194636,51.981037822999994,51.980138259,null,{"$f":"SUM(AC64,AC102,AC140,AC178,AC216)","v":51.981037822999994},51.980652904000003,3045.5691619920003,3045.5466095869997,21506.627044281999,21506.627044282999,51.981037822999994,51.980652904000003,51.981037822999994,51.967238814000019,3045.5691619920003,3044.7606780149986,21506.627044281999,21500.914251788003,51.981037822999994,51.967238814000019,null,null,null,null,null,null,null,null,{"$f":"SUM(BA64,BA102,BA140,BA178,BA216)","v":852530.33999799041},852304.89125216228,49949755.178061321,49936546.135395668,353188002.7799837,353094492.07261854,852530.33999799041,852304.89125216228,30000,28.417677999933012,28.410163041738741,1664.9918392687107,1664.5515378465223,11772.933425999458,11769.816402420618,28.417677999933012,28.410163041738741]
[null,"Female 25-29",26.975186999999998,81.645189999999999,"female","ALL",null,{"$f":"SUM(H65,H103,H141,H179,H217)","v":187975},0,105952,84.83343604400001,84.812958088999991,4553.010766982,4551.9117150759994,25701.254892727,25695.220836512995,84.83343604400001,84.812958088999991,null,{"$f":"SUM(T65,T103,T141,T179,T217)","v":84.83343604400001},84.832021302000015,4553.010766982,4552.9348377739998,25701.254892727,25700.460802307,84.83343604400001,84.832021302000015,null,{"$f":"SUM(AC65,AC103,AC141,AC179,AC217)","v":84.83343604400001},84.832804010000004,4553.010766982,4552.9768457150003,25701.254892727,25701.254892727,84.83343604400001,84.832804010000004,84.83343604400001,84.810911312999991,4553.010766982,4551.8018646009996,25701.254892727,25694.426746092995,84.83343604400001,84.810911312999991,null,null,null,null,null,null,null,null,{"$f":"SUM(BA65,BA103,BA141,BA179,BA217)","v":1293015.1799866469},1292679.734177825,69396128.588934273,69378125.211349085,399497115.36001158,399393451.57778823,1293015.1799866469,1292679.734177825,30000,43.100505999554898,43.089324472594171,2313.2042862978092,2312.6041737116361,13316.570512000386,13313.115052592941,43.100505999554898,43.089324472594171]
[null,"Female 30-34",31.999904999999998,81.799899999999994,"female","ALL",null,{"$f":"SUM(H66,H104,H142,H180,H218)","v":179608},0,99040,122.85550268300001,122.826452995,5995.3479166529996,5993.9302920230002,27681.461214471001,27675.098211535998,122.85550268300001,122.826452995,null,{"$f":"SUM(T66,T104,T142,T180,T218)","v":122.85550268300001},122.85363026300001,5995.3479166529996,5995.2565425659996,27681.461214471001,27680.684214605,122.85550268300001,122.85363026300001,null,{"$f":"SUM(AC66,AC104,AC142,AC180,AC218)","v":122.85550268300001},122.85465121999999,5995.3479166529996,5995.3063652630008,27681.461214471001,27681.461214471001,122.85550268300001,122.85465121999999,122.85550268300001,122.82372911199998,5995.3479166529996,5993.7973665460013,27681.461214471001,27674.321211669998,122.85550268300001,122.82372911199998,null,null,null,null,null,null,null,null,{"$f":"SUM(BA66,BA104,BA142,BA180,BA218)","v":2147409.3550013253},2146863.7123897239,104793565.78702031,104766938.43028456,491095913.10001147,490971501.59768158,2147409.3550013253,2146863.7123897239,32500,66.074134000040772,66.057344996606886,3224.4174088313944,3223.5981055472171,15110.643480000354,15106.815433774818,66.074134000040772,66.057344996606886]
[null,"Female 35-39",36.918118,81.898120000000006,"female","ALL",null,{"$f":"SUM(H67,H105,H143,H181,H219)","v":166485},0,90548,168.23702589500002,168.19778345100002,7399.0647353369995,7397.3388525709997,28578.845994546002,28572.367210692002,168.23702589500002,168.19778345100002,null,{"$f":"SUM(T67,T105,T143,T181,T219)","v":168.23702589500002},168.23465471200001,7399.0647353369995,7398.9604507019994,28578.845994546002,28578.107869068997,168.23702589500002,168.23465471200001,null,{"$f":"SUM(AC67,AC105,AC143,AC181,AC219)","v":168.23702589500002},168.235937885,7399.0647353369995,7399.0168846550005,28578.845994546002,28578.845994546002,168.23702589500002,168.235937885,168.23702589500002,168.19432425799999,7399.0647353369995,7397.1867172540005,28578.845994546002,28571.629085214998,168.23702589500002,168.19432425799999,null,null,null,null,null,null,null,null,{"$f":"SUM(BA67,BA105,BA143,BA181,BA219)","v":3513065.9899960044},3512179.6775463619,154504649.26617473,154465669.24281603,598519214.23001468,598368924.56629992,3513065.9899960044,3512179.6775463619,35000,100.37331399988584,100.34799078703891,4414.4185504621355,4413.3048355090295,17100.548978000421,17096.254987608569,100.37331399988584,100.34799078703891]
[null,"Female 40-44",42.077438000000001,82.30744,"female","ALL",null,{"$f":"SUM(H68,H106,H144,H182,H220)","v":172709},0,93415,265.85440953800003,265.79287511500002,10429.469017883999,10427.055022347,33419.637561233998,33412.112643879998,265.85440953800003,265.79287511500002,null,{"$f":"SUM(T68,T106,T144,T182,T220)","v":265.85440953800003},265.85090858399997,10429.469017883999,10429.331675451,33419.637561233998,33418.833491389996,265.85440953800003,265.85090858399997,null,{"$f":"SUM(AC68,AC106,AC144,AC182,AC220)","v":265.85440953800003},265.85279894100006,10429.469017883999,10429.405834161,33419.637561233998,33419.637561233998,265.85440953800003,265.85279894100006,265.85440953800003,265.78776356399999,10429.469017883999,10426.854496191001,33419.637561233998,33411.308574035997,265.85440953800003,265.78776356399999,null,null,null,null,null,null,null,null,{"$f":"SUM(BA68,BA106,BA144,BA182,BA220)","v":5446621.109973859},5445250.5617349111,213670957.0375056,213617190.42735693,681457961.73000026,681287423.65431106,5446621.109973859,5445250.5617349111,35000,155.61774599925312,155.57858747814032,6104.8844867858743,6103.3482979244836,19470.227478000008,19465.354961551744,155.61774599925312,155.57858747814032]
[null,"Female 45-49",47.025772000000003,82.585769999999997,"female","ALL",null,{"$f":"SUM(H69,H107,H145,H183,H221)","v":202829},0,110536,475.69588320700001,475.58526764099997,16440.048772241,16436.225898501998,44462.663781812997,44452.588850099004,475.69588320700001,475.58526764099997,null,{"$f":"SUM(T69,T107,T145,T183,T221)","v":475.69588320700001},475.68977766299997,16440.048772241,16439.837764653999,44462.663781812997,44461.621148270002,475.69588320700001,475.68977766299997,null,{"$f":"SUM(AC69,AC107,AC145,AC183,AC221)","v":475.69588320700001},475.69305776200002,16440.048772241,16439.951124869,44462.663781812997,44462.663781812997,475.69588320700001,475.69305776200002,475.69588320700001,475.57633665199995,16440.048772241,16435.917243542997,44462.663781812997,44451.546216556009,475.69588320700001,475.57633665199995,null,null,null,null,null,null,null,null,{"$f":"SUM(BA69,BA107,BA145,BA183,BA221)","v":8292959.3600014998},8290863.1581033487,286604658.89571381,286532214.16236764,771783001.00999177,771588868.32850623,8292959.3600014998,8290863.1581033487,35000,236.94169600004284,236.88180451723852,8188.7045398775372,8186.6346903533613,22050.942885999764,22045.39623795732,236.94169600004284,236.88180451723852]
[null,"Female 50-54",51.990825999999998,82.980829999999997,"female","ALL",null,{"$f":"SUM(H70,H108,H146,H184,H222)","v":209262},0,113884,746.9114440589999,746.73820924100005,22399.877194974997,22394.681882090001,51924.448520960999,51912.702093938002,746.9114440589999,746.73820924100005,null,{"$f":"SUM(T70,T108,T146,T184,T222)","v":746.9114440589999},746.90189375599994,22399.877194974997,22399.590781349998,51924.448520960999,51923.234652136998,746.9114440589999,746.90189375599994,null,{"$f":"SUM(AC70,AC108,AC146,AC184,AC222)","v":746.9114440589999},746.90701197600004,22399.877194974997,22399.744276789002,51924.448520960999,51924.448520959995,746.9114440589999,746.90701197600004,746.9114440589999,746.72422685500021,22399.877194974997,22394.262550279007,51924.448520960999,51911.488225112997,746.9114440589999,746.72422685500021,null,null,null,null,null,null,null,null,{"$f":"SUM(BA70,BA108,BA146,BA184,BA222)","v":12641612.479996474},12638415.988736089,379122008.84154129,379026146.05586863,874448019.83001161,874227833.94447148,12641612.479996474,12638415.988736089,35000,361.18892799989925,361.09759967817399,10832.057395472608,10829.318458739104,24984.22913800033,24977.938112699187,361.18892799989925,361.09759967817399]
[null,"Female 55-59",56.953040999999999,83.473039999999997,"female","ALL",null,{"$f":"SUM(H71,H109,H147,H185,H223)","v":190084},0,103805,1032.7918129559998,1032.552457067,26356.846033844995,26350.737671797,53414.873338731006,53402.769450605003,1032.7918129559998,1032.552457067,null,{"$f":"SUM(T71,T109,T147,T185,T223)","v":1032.7918129559998},1032.778666706,26356.846033844995,26356.510541558,53414.873338731006,53413.627630768002,1032.7918129559998,1032.778666706,null,{"$f":"SUM(AC71,AC109,AC147,AC185,AC223)","v":1032.7918129559998},1032.7857170089999,26356.846033844995,26356.690465285003,53414.873338731006,53414.873338731006,1032.7918129559998,1032.7857170089999,1032.7918129559998,1032.5332148700002,26356.846033844995,26350.246610950013,53414.873338731006,53401.523742641999,1032.7918129559998,1032.5332148700002,null,null,null,null,null,null,null,null,{"$f":"SUM(BA71,BA109,BA147,BA185,BA223)","v":17883143.06999502},17878621.392933525,456377793.26312417,456262400.06905806,919934892.56500494,919702761.7222451,17883143.06999502,17878621.392933525,32500,550.25055599984671,550.1114274748777,14042.393638865358,14038.84307904794,28305.689002000152,28298.546514530619,550.25055599984671,550.1114274748777]
[null,"Female 60-64",61.947387999999997,84.167389999999997,"female","ALL",null,{"$f":"SUM(H72,H110,H148,H186,H224)","v":165146},0,88628,1358.666238988,1358.3574254569999,28830.900308657001,28824.347284912001,52377.011972581,52365.349900378002,1358.666238988,1358.3574254569999,null,{"$f":"SUM(T72,T110,T148,T186,T224)","v":1358.666238988},1358.6496866140001,28830.900308657001,28830.549067248998,52377.011972581,52375.840291197004,1358.666238988,1358.6496866140001,null,{"$f":"SUM(AC72,AC110,AC148,AC186,AC224)","v":1358.666238988},1358.658580587,28830.900308657001,28830.737797372996,52377.011972581,52377.011972581,1358.666238988,1358.658580587,1358.666238988,1358.3332146819998,28830.900308657001,28823.833532219993,52377.011972581,52364.178218994006,1358.666238988,1358.3332146819998,null,null,null,null,null,null,null,null,{"$f":"SUM(BA72,BA110,BA148,BA186,BA224)","v":25202404.859990694},25196127.958158746,534795081.53379619,534661885.66441596,962839226.39997578,962599625.61765194,25202404.859990694,25196127.958158746,30000,840.08016199968984,839.87093193862484,17826.502717793206,17822.062855480533,32094.640879999191,32086.654187255066,840.08016199968984,839.87093193862484]
[null,"Female 65-69",67.063927000000007,85.193929999999995,"female","ALL",null,{"$f":"SUM(H73,H111,H149,H187,H225)","v":164057},0,86621,2067.3619805879998,2066.900388778,35413.916929559004,35406.009860466998,58973.220499181996,58960.292870098005,2067.3619805879998,2066.900388778,null,{"$f":"SUM(T73,T111,T149,T187,T225)","v":2067.3619805879998},2067.3376539209999,35413.916929559004,35413.500213681,58973.220499181996,58971.944311771003,2067.3619805879998,2067.3376539209999,null,{"$f":"SUM(AC73,AC111,AC149,AC187,AC225)","v":2067.3619805879998},2067.3507388079997,35413.916929559004,35413.724357833002,58973.220499181996,58973.220499181996,2067.3619805879998,2067.3507388079997,2067.3619805879998,2066.8648203309999,35413.916929559004,35405.400572862993,58973.220499181996,58959.016682687012,2067.3619805879998,2066.8648203309999,null,null,null,null,null,null,null,null,{"$f":"SUM(BA73,BA111,BA149,BA187,BA225)","v":35605067.574978635},35596322.724539019,609914914.37459719,609765115.06029594,1003826931.0299985,1003580189.9964271,35605067.574978635,35596322.724539019,27500,1294.7297299992231,1294.4117354377825,22178.724159076261,22173.27691128349,36502.797491999947,36493.825090779166,1294.7297299992231,1294.4117354377825]
[null,"Female 70-74",71.938164,86.248159999999999,"female","ALL",null,{"$f":"SUM(H74,H112,H150,H188,H226)","v":127150},0,68000,2428.3980437460004,2427.8515947080004,32321.968248667999,32314.695014157998,51815.942235666,51804.441430047998,2428.3980437460004,2427.8515947080004,null,{"$f":"SUM(T74,T112,T150,T188,T226)","v":2428.3980437460004},2428.3694683680001,32321.968248667999,32321.587910499995,51815.942235666,51814.817070899997,2428.3980437460004,2428.3694683680001,null,{"$f":"SUM(AC74,AC112,AC150,AC188,AC226)","v":2428.3980437460004},2428.3848502290002,32321.968248667999,32321.792643007997,51815.942235666,51815.942235666,2428.3980437460004,2428.3848502290002,2428.3980437460004,2427.8098258129999,32321.968248667999,32314.139070329991,51815.942235666,51803.316265281996,2428.3980437460004,2427.8098258129999,null,null,null,null,null,null,null,null,{"$f":"SUM(BA74,BA112,BA150,BA188,BA226)","v":48810167.999994963},48798128.777984753,649663140.83927941,649502898.84242916,1031603609.1999797,1031347827.3661925,48810167.999994963,48798128.777984753,25000,1952.4067199997985,1951.9251511193902,25986.525633571178,25980.115953697168,41264.144367999186,41253.913094647702,1952.4067199997985,1951.9251511193902]
[null,"Female 75-79",76.942824999999999,87.812830000000005,"female","ALL",null,{"$f":"SUM(H75,H113,H151,H189,H227)","v":104331},0,57964,3079.3830758720001,3078.6695270590003,30393.526355770999,30386.483625419998,48655.393329047998,48644.187153716004,0,0,null,{"$f":"SUM(T75,T113,T151,T189,T227)","v":3079.3830758720001},3079.3446178439999,30393.526355770999,30393.146774844001,48655.393329047998,48654.263938243006,0,0,null,{"$f":"SUM(AC75,AC113,AC151,AC189,AC227)","v":3079.3830758720001},3079.3653057490001,30393.526355770999,30393.350964568999,48655.393329047998,48655.393329047998,0,0,{"$f":"K37","v":3079.3830758720001},3078.6132989080002,{"$f":"M37","v":30393.526355770999},30385.928653291001,{"$f":"O37","v":48655.393329047998},48643.057762911012,{"$f":"Q37","v":0},0,null,null,null,null,null,null,null,null,{"$f":"SUM(BA75,BA113,BA151,BA189,BA227)","v":59413070.320006385},59398108.219554454,586407301.12379539,586259625.11759138,935996664.24000549,935757762.2389046,0,0,20000,2970.6535160003191,2969.9054109777226,29320.36505618977,29312.981255879567,46799.833212000274,46787.888111945227,0,0]
[null,"Female 80-84",81.856712000000002,89.736710000000002,"female","ALL",null,{"$f":"SUM(H76,H114,H152,H190,H228)","v":80217},0,45092,3572.447119291,3571.6179411229996,24578.429035828001,24572.724291691,42391.156082703004,42381.278175561005,0,0,null,{"$f":"SUM(T76,T114,T152,T190,T228)","v":3572.447119291},3572.4016667349997,24578.429035828001,24578.116322333997,42391.156082703004,42390.141937320004,0,0,null,{"$f":"SUM(AC76,AC114,AC152,AC190,AC228)","v":3572.447119291},3572.4261086059996,24578.429035828001,24578.284482357001,42391.156082703004,42391.156082703004,0,0,3572.447119291,3571.5514778819988,24578.429035828001,24572.267024725996,42391.156082703004,42380.264030178005,0,0,null,null,null,null,null,null,null,null,{"$f":"SUM(BA76,BA114,BA152,BA190,BA228)","v":55901264.724995494},55887187.669683903,384600589.50544208,384503739.39306074,661963668.95000625,661792943.51582539,0,0,12500,4472.1011779996397,4470.9750135747126,30768.047160435366,30760.299151444859,52957.093516000503,52943.435481266031,0,0]
[null,"Female 85-89",86.730819999999994,92.220819999999989,"female","ALL",null,{"$f":"SUM(H77,H115,H153,H191,H229)","v":49691},0,27105,3276.500044422,3275.771291605,14711.485199453999,14708.213099306,29525.065473963001,29518.381350495001,0,0,null,{"$f":"SUM(T77,T115,T153,T191,T229)","v":3276.500044422},3276.459240701,14711.485199453999,14711.301990748001,29525.065473963001,29524.363258926998,0,0,null,{"$f":"SUM(AC77,AC115,AC153,AC191,AC229)","v":3276.500044422},3276.4812755500002,14711.485199453999,14711.400927218001,29525.065473963001,29525.065473963001,0,0,3276.500044422,3275.7117190120002,14711.485199453999,14707.945618364005,29525.065473963001,29517.679135458999,0,0,null,null,null,null,null,null,null,null,{"$f":"SUM(BA77,BA115,BA153,BA191,BA229)","v":50101859.864996985},50089690.336520337,224957350.79382408,224902709.6109789,448983820.05000317,448870431.06713247,0,0,7500,6680.2479819995979,6678.6253782027115,29994.313439176545,29987.027948130519,59864.509340000426,59849.390808950993,0,0]
[null,"Female 90+",92.779342999999997,96.279340000000005,"female","ALL",null,{"$f":"SUM(H78,H116,H154,H192,H230)","v":29050},0,15479,3080.2326712339996,3079.5849921240001,7700.5724373880003,7698.9532415549993,19930.146163744004,19925.751335443001,0,0,null,{"$f":"SUM(T78,T116,T154,T192,T230)","v":3080.2326712339996},3080.1964942310001,7700.5724373880003,7700.4819949889998,19930.146163744004,19929.684724571001,0,0,null,{"$f":"SUM(AC78,AC116,AC154,AC192,AC230)","v":3080.2326712339996},3080.2161162350003,7700.5724373880003,7700.5310499390007,19930.146163744004,19930.146163744004,0,0,3080.2326712339996,3079.5322601220014,7700.5724373880003,7698.8214117069992,19930.146163744004,19925.289896269998,0,0,null,null,null,null,null,null,null,null,{"$f":"SUM(BA78,BA116,BA154,BA192,BA230)","v":54434845.390002303},54422257.773163162,136086950.17048818,136055481.16611061,348509125.85999691,348422658.71952391,0,0,5000,10886.96907800046,10884.451554632633,27217.390034097636,27211.096233222121,69701.825171999386,69684.531743904779,0,0]
[null,"Male 0-4",2.0320822999999999,77.402082000000007,"male","ALL",null,{"$f":"SUM(H79,H117,H155,H193,H231)","v":0},0,0,{"$error":"#VALUE!"},{"$error":"#VALUE!"},{"$error":"#VALUE!"},{"$error":"#VALUE!"},{"$error":"#VALUE!"},{"$error":"#VALUE!"},{"$error":"#VALUE!"},{"$error":"#VALUE!"},null,{"$f":"SUM(T79,T117,T155,T193,T231)","v":{"$error":"#VALUE!"}},{"$error":"#VALUE!"},{"$error":"#VALUE!"},{"$error":"#VALUE!"},{"$error":"#VALUE!"},{"$error":"#VALUE!"},{"$error":"#VALUE!"},{"$error":"#VALUE!"},null,{"$f":"SUM(AC79,AC117,AC155,AC193,AC231)","v":{"$error":"#VALUE!"}},{"$error":"#VALUE!"},{"$error":"#VALUE!"},{"$error":"#VALUE!"},{"$error":"#VALUE!"},{"$error":"#VALUE!"},{"$error":"#VALUE!"},{"$error":"#VALUE!"},{"$error":"#VALUE!"},{"$error":"#VALUE!"},{"$error":"#VALUE!"},{"$error":"#VALUE!"},{"$error":"#VALUE!"},{"$error":"#VALUE!"},{"$error":"#VALUE!"},{"$error":"#VALUE!"},null,null,null,null,null,null,null,null,{"$f":"SUM(BA79,BA117,BA155,BA193,BA231)","v":{"$error":"#VALUE!"}},{"$error":"#VALUE!"},{"$error":"#VALUE!"},{"$error":"#VALUE!"},{"$error":"#VALUE!"},{"$error":"#VALUE!"},{"$error":"#VALUE!"},{"$error":"#VALUE!"},25000,{"$error":"#VALUE!"},{"$error":"#VALUE!"},{"$error":"#VALUE!"},{"$error":"#VALUE!"},{"$error":"#VALUE!"},{"$error":"#VALUE!"},{"$error":"#VALUE!"},{"$error":"#VALUE!"}]
[null,"Male 5-9",6.9784756000000003,77.398476000000002,"male","ALL",null,{"$f":"SUM(H80,H118,H156,H194,H232)","v":0},0,0,{"$error":"#VALUE!"},{"$error":"#VALUE!"},{"$error":"#VALUE!"},{"$error":"#VALUE!"},{"$error":"#VALUE!"},{"$error":"#VALUE!"},{"$error":"#VALUE!"},{"$error":"#VALUE!"},null,{"$f":"SUM(T80,T118,T156,T194,T232)","v":{"$error":"#VALUE!"}},{"$error":"#VALUE!"},{"$error":"#VALUE!"},{"$error":"#VALUE!"},{"$error":"#VALUE!"},{"$error":"#VALUE!"},{"$error":"#VALUE!"},{"$error":"#VALUE!"},null,{"$f":"SUM(AC80,AC118,AC156,AC194,AC232)","v":{"$error":"#VALUE!"}},{"$error":"#VALUE!"},{"$error":"#VALUE!"},{"$error":"#VALUE!"},{"$error":"#VALUE!"},{"$error":"#VALUE!"},{"$error":"#VALUE!"},{"$error":"#VALUE!"},{"$error":"#VALUE!"},{"$error":"#VALUE!"},{"$error":"#VALUE!"},{"$error":"#VALUE!"},{"$error":"#VALUE!"},{"$error":"#VALUE!"},{"$error":"#VALUE!"},{"$error":"#VALUE!"},null,null,null,null,null,null,null,null,{"$f":"SUM(BA80,BA118,BA156,BA194,BA232)","v":{"$error":"#VALUE!"}},{"$error":"#VALUE!"},{"$error":"#VALUE!"},{"$error":"#VALUE!"},{"$error":"#VALUE!"},{"$error":"#VALUE!"},{"$error":"#VALUE!"},{"$error":"#VALUE!"},27500,{"$error":"#VALUE!"},{"$error":"#VALUE!"},{"$error":"#VALUE!"},{"$error":"#VALUE!"},{"$error":"#VALUE!"},{"$error":"#VALUE!"},{"$error":"#VALUE!"},{"$error":"#VALUE!"}]
[null,"Male 10-15",12.471144000000001,77.921140000000008,"male","ALL",null,{"$f":"SUM(H81,H119,H157,H195,H233)","v":0},0,0,{"$error":"#VALUE!"},{"$error":"#VALUE!"},{"$error":"#VALUE!"},{"$error":"#VALUE!"},{"$error":"#VALUE!"},{"$error":"#VALUE!"},{"$error":"#VALUE!"},{"$error":"#VALUE!"},null,{"$f":"SUM(T81,T119,T157,T195,T233)","v":{"$error":"#VALUE!"}},{"$error":"#VALUE!"},{"$error":"#VALUE!"},{"$error":"#VALUE!"},{"$error":"#VALUE!"},{"$error":"#VALUE!"},{"$error":"#VALUE!"},{"$error":"#VALUE!"},null,{"$f":"SUM(AC81,AC119,AC157,AC195,AC233)","v":{"$error":"#VALUE!"}},{"$error":"#VALUE!"},{"$error":"#VALUE!"},{"$error":"#VALUE!"},{"$error":"#VALUE!"},{"$error":"#VALUE!"},{"$error":"#VALUE!"},{"$error":"#VALUE!"},{"$error":"#VALUE!"},{"$error":"#VALUE!"},{"$error":"#VALUE!"},{"$error":"#VALUE!"},{"$error":"#VALUE!"},{"$error":"#VALUE!"},{"$error":"#VALUE!"},{"$error":"#VALUE!"},null,null,null,null,null,null,null,null,{"$f":"SUM(BA81,BA119,BA157,BA195,BA233)","v":{"$error":"#VALUE!"}},{"$error":"#VALUE!"},{"$error":"#VALUE!"},{"$error":"#VALUE!"},{"$error":"#VALUE!"},{"$error":"#VALUE!"},{"$error":"#VALUE!"},{"$error":"#VALUE!"},33000,{"$error":"#VALUE!"},{"$error":"#VALUE!"},{"$error":"#VALUE!"},{"$error":"#VALUE!"},{"$error":"#VALUE!"},{"$error":"#VALUE!"},{"$error":"#VALUE!"},{"$error":"#VALUE!"}]
[null,"Male 16-19",17.556318000000001,77.07632000000001,"male","ALL",null,{"$f":"SUM(H82,H120,H158,H196,H234)","v":124418},0,68107,56.98461183900001,56.971147156999997,3334.7395987869995,3333.951645569,8826.189231454,8824.1688596989989,56.98461183900001,56.971147156999997,null,{"$f":"SUM(T82,T120,T158,T196,T234)","v":56.98461183900001},56.983831103,3334.7395987869995,3334.6939101159996,8826.189231454,8825.9692448359983,56.98461183900001,56.983831103,null,{"$f":"SUM(AC82,AC120,AC158,AC196,AC234)","v":56.98461183900001},56.984256505999994,3334.7395987869995,3334.7188047,8826.189231454,8826.189231454,56.98461183900001,56.984256505999994,56.98461183900001,56.970011087999971,3334.7395987869995,3333.8851628110006,8826.189231454,8823.9488730809971,56.98461183900001,56.970011087999971,null,null,null,null,null,null,null,null,{"$f":"SUM(BA82,BA120,BA158,BA196,BA234)","v":1013135.5959969511},1012876.361505375,59288697.104002893,59273526.701070137,156551621.59998593,156511904.95826182,1013135.5959969511,1012876.361505375,22000,46.051617999861413,46.039834613880686,2694.9407774546771,2694.2512136850064,7115.9827999993604,7114.1774981028102,46.051617999861413,46.039834613880686]
[null,"Male 20-24",22.054632000000002,77.704629999999995,"male","ALL",null,{"$f":"SUM(H83,H121,H159,H197,H235)","v":181688},0,101998,117.53368395699998,117.50526086799999,6423.2155931829993,6421.6622714260002,15171.573362272,15168.015751855999,117.53368395699998,117.50526086799999,null,{"$f":"SUM(T83,T121,T159,T197,T235)","v":117.53368395699998},117.53173027100001,6423.2155931829993,6423.1088242450005,15171.573362272,15171.107272705,117.53368395699998,117.53173027100001,null,{"$f":"SUM(AC83,AC121,AC159,AC197,AC235)","v":117.53368395699998},117.532834931,6423.2155931829993,6423.1691939130005,15171.573362272,15171.573362272,117.53368395699998,117.532834931,117.53368395699998,117.50245815600005,6423.2155931829993,6421.5091032180026,15171.573362272,15167.549662288999,117.53368395699998,117.50245815600005,null,null,null,null,null,null,null,null,{"$f":"SUM(BA83,BA121,BA159,BA197,BA235)","v":1940044.3199935113},1939530.1400353799,106023418.20756204,105995318.27383257,250437460.62000126,250371164.41878691,1940044.3199935113,1939530.1400353799,30000,64.668143999783709,64.651004667845996,3534.113940252068,3533.1772757944191,8347.9153540000425,8345.7054806262313,64.668143999783709,64.651004667845996]
[null,"Male 25-29",26.959762999999999,77.789760000000001,"male","ALL",null,{"$f":"SUM(H84,H122,H160,H198,H236)","v":186149},0,105461,180.077048937,180.03338072100001,8973.2388083000005,8971.0628212280008,18844.707746337001,18840.262306967001,180.077048937,180.03338072100001,null,{"$f":"SUM(T84,T122,T160,T198,T236)","v":180.077048937},180.07397546899998,8973.2388083000005,8973.085657398,18844.707746337001,18844.113091809002,180.077048937,180.07397546899998,null,{"$f":"SUM(AC84,AC122,AC160,AC198,AC236)","v":180.077048937},180.07568801100004,8973.2388083000005,8973.1709933609982,18844.707746337001,18844.707746337001,180.077048937,180.07568801100004,180.077048937,180.02894632700003,8973.2388083000005,8970.8418553869978,18844.707746337001,18839.667652439002,180.077048937,180.02894632700003,null,null,null,null,null,null,null,null,{"$f":"SUM(BA84,BA122,BA160,BA198,BA236)","v":2809119.9000131772},2808382.4086722955,139978436.1903033,139941686.99898621,298066844.88000041,297988511.2236926,2809119.9000131772,2808382.4086722955,30000,93.637330000439235,93.612746955743177,4665.94787301011,4664.7228999662075,9935.561496000013,9932.9503741230874,93.637330000439235,93.612746955743177]
[null,"Male 30-34",31.981521999999998,78.061520000000002,"male","ALL",null,{"$f":"SUM(H85,H123,H161,H199,H237)","v":172305},0,95787,242.75386127599995,242.69608111699998,10943.343580814997,10940.738851361999,20810.113014795999,20805.293858616002,242.75386127599995,242.69608111699998,null,{"$f":"SUM(T85,T123,T161,T199,T237)","v":242.75386127599995},242.74993793800002,10943.343580814997,10943.166716743997,20810.113014795999,20809.492602063001,242.75386127599995,242.74993793800002,null,{"$f":"SUM(AC85,AC123,AC161,AC199,AC237)","v":242.75386127599995},242.752101074,10943.343580814997,10943.264230912,20810.113014795999,20810.113014795999,242.75386127599995,242.752101074,242.75386127599995,242.69039757700008,10943.343580814997,10940.482637388002,20810.113014795999,20804.673445883003,242.75386127599995,242.69039757700008,null,null,null,null,null,null,null,null,{"$f":"SUM(BA85,BA123,BA161,BA199,BA237)","v":4445082.2649877584},4443935.8873697314,200384299.61549616,200332620.91471013,385911765.13498396,385812325.59953058,4445082.2649877584,4443935.8873697314,32500,136.77176199962332,136.73648884214558,6165.6707573998819,6164.0806435295426,11874.208157999507,11871.148479985557,136.77176199962332,136.73648884214558]
[null,"Male 35-39",36.926009999999998,78.336009999999987,"male","ALL",null,{"$f":"SUM(H86,H124,H162,H200,H238)","v":161268},0,87062,321.686056603,321.61166417800001,12999.333547328002,12996.327349432,22880.108764238998,22874.961901223,321.686056603,321.61166417800001,null,{"$f":"SUM(T86,T124,T162,T200,T238)","v":321.686056603},321.68131089800005,12999.333547328002,12999.141773388001,22880.108764238998,22879.489019861001,321.686056603,321.68131089800005,null,{"$f":"SUM(AC86,AC124,AC162,AC200,AC238)","v":321.686056603},321.68390838699997,12999.333547328002,12999.246737917998,22880.108764238998,22880.108764238998,321.686056603,321.68390838699997,321.686056603,321.60477025700004,12999.333547328002,12996.048766081994,22880.108764238998,22874.342156845003,321.686056603,321.60477025700004,null,null,null,null,null,null,null,null,{"$f":"SUM(BA86,BA124,BA162,BA200,BA238)","v":6950751.8499850761},6949000.0611848319,280879882.25791353,280809092.47240597,495329032.52000868,495204511.3784498,6950751.8499850761,6949000.0611848319,35000,198.59290999957361,198.54285889099521,8025.1394930832439,8023.1169277830277,14152.258072000248,14148.700325098565,198.59290999957361,198.54285889099521]
[null,"Male 40-44",42.067703000000002,78.907700000000006,"male","ALL",null,{"$f":"SUM(H87,H125,H163,H201,H239)","v":164929},0,87643,475.99493662300006,475.886818113,17059.657100583001,17055.782133508001,27796.411228543999,27790.263357753,475.99493662300006,475.886818113,null,{"$f":"SUM(T87,T125,T163,T201,T239)","v":475.99493662300006},475.98844084999996,17059.657100583001,17059.424292098,27796.411228543999,27795.717421629,475.99493662300006,475.98844084999996,null,{"$f":"SUM(AC87,AC125,AC163,AC201,AC239)","v":475.99493662300006},475.99198317399998,17059.657100583001,17059.551248979002,27796.411228543999,27796.411228543999,475.99493662300006,475.99198317399998,475.99493662300006,475.87736889099983,17059.657100583001,17055.443473419,27796.411228543999,27789.569550838001,475.99493662300006,475.87736889099983,null,null,null,null,null,null,null,null,{"$f":"SUM(BA87,BA125,BA163,BA201,BA239)","v":10242001.490003439},10239457.868977439,367073302.67570806,366982139.30572599,594504097.52997255,594356919.91977954,10242001.490003439,10239457.868977439,35000,292.62861400009825,292.5559391136411,10487.808647877373,10485.2039801636,16985.831357999217,16981.626283422273,292.62861400009825,292.5559391136411]
[null,"Male 45-49",47.038155000000003,79.418149999999997,"male","ALL",null,{"$f":"SUM(H88,H126,H164,H202,H240)","v":189422},0,100951,794.88529953299985,794.70447985599992,24943.496724918998,24937.822604359004,38076.879094206997,38068.434832284998,794.88529953299985,794.70447985599992,null,{"$f":"SUM(T88,T126,T164,T202,T240)","v":794.88529953299985},794.87490993599999,24943.496724918998,24943.170699417999,38076.879094206997,38075.969573702998,794.88529953299985,794.87490993599999,null,{"$f":"SUM(AC88,AC126,AC164,AC202,AC240)","v":794.88529953299985},794.88054174700005,24943.496724918998,24943.347425617998,38076.879094206997,38076.879094206997,794.88529953299985,794.88054174700005,794.88529953299985,794.68933247300026,24943.496724918998,24937.347279557005,38076.879094206997,38067.525311780999,794.88529953299985,794.68933247300026,null,null,null,null,null,null,null,null,{"$f":"SUM(BA88,BA126,BA164,BA202,BA240)","v":14894504.870007982},14890803.219143048,467389488.34832519,467273330.56271142,709212168.13998103,709036520.58783722,14894504.870007982,14890803.219143048,35000,425.5572820002281,425.45152054694421,13353.98538138072,13350.666587506041,20263.204803999459,20258.186302509635,425.5572820002281,425.45152054694421]
[null,"Male 50-54",51.998646000000001,79.988649999999993,"male","ALL",null,{"$f":"SUM(H89,H127,H165,H203,H241)","v":197429},0,105202,1202.3623530289999,1202.089608537,32451.764717703001,32444.403342771999,47294.710130007006,47284.231211324004,1202.3623530289999,1202.089608537,null,{"$f":"SUM(T89,T127,T165,T203,T241)","v":1202.3623530289999},1202.346931344,32451.764717703001,32451.348486362,47294.710130007006,47293.600634452996,1202.3623530289999,1202.346931344,null,{"$f":"SUM(AC89,AC127,AC165,AC203,AC241)","v":1202.3623530289999},1202.355267748,32451.764717703001,32451.573485939,47294.710130007006,47294.710130007006,1202.3623530289999,1202.355267748,1202.3623530289999,1202.0671015710002,32451.764717703001,32443.795879666995,47294.710130007006,47283.121715769994,1202.3623530289999,1202.0671015710002,null,null,null,null,null,null,null,null,{"$f":"SUM(BA89,BA127,BA165,BA203,BA241)","v":21636714.050006393},21631339.667763997,583974998.75654447,583829944.15826094,845753788.73998022,845544149.88598001,21636714.050006393,21631339.667763997,35000,618.19183000018268,618.03827622182848,16684.9999644727,16680.855547378884,24164.393963999435,24158.404282456573,618.19183000018268,618.03827622182848]
[null,"Male 55-59",56.950867000000002,80.660870000000003,"male","ALL",null,{"$f":"SUM(H90,H128,H166,H204,H242)","v":180737},0,96764,1595.6936722869998,1595.3312777470001,36238.208084717997,36229.978103627996,51591.136928718006,51579.663332200995,1595.6936722869998,1595.3312777470001,null,{"$f":"SUM(T90,T128,T166,T204,T242)","v":1595.6936722869998},1595.6735302,36238.208084717997,36237.750657863005,51591.136928718006,51589.941852614997,1595.6936722869998,1595.6735302,null,{"$f":"SUM(AC90,AC128,AC166,AC204,AC242)","v":1595.6936722869998},1595.6844032409999,36238.208084717997,36237.997584656005,51591.136928718006,51591.136928718006,1595.6936722869998,1595.6844032409999,1595.6936722869998,1595.3018666140003,36238.208084717997,36229.310176711013,51591.136928718006,51578.468256097985,1595.6936722869998,1595.3018666140003,null,null,null,null,null,null,null,null,{"$f":"SUM(BA90,BA128,BA166,BA204,BA242)","v":29153067.514980108},29145815.03310404,662066250.72438622,661901546.83926654,936266656.78002,936033753.42966866,29153067.514980108,29145815.03310404,32500,897.01746199938793,896.79430871089357,20371.269253058039,20366.201441208203,28808.204824000615,28801.038567066727,897.01746199938793,896.79430871089357]
[null,"Male 60-64",61.942988999999997,81.612989999999996,"male","ALL",null,{"$f":"SUM(H91,H129,H167,H205,H243)","v":156406},0,82275,1990.5883415989999,1990.1467508420001,37164.286328242,37156.041828367008,53033.320728336003,53021.755667303994,1990.5883415989999,1990.1467508420001,null,{"$f":"SUM(T91,T129,T167,T205,T243)","v":1990.5883415989999},1990.5640276459999,37164.286328242,37163.832386714996,53033.320728336003,53032.128588009,1990.5883415989999,1990.5640276459999,null,{"$f":"SUM(AC91,AC129,AC167,AC205,AC243)","v":1990.5883415989999},1990.5771745240004,37164.286328242,37164.077838939003,53033.320728336003,53033.320728336003,1990.5883415989999,1990.5771745240004,1990.5883415989999,1990.1112698140005,37164.286328242,37155.379397537006,53033.320728336003,53020.563526976992,1990.5883415989999,1990.1112698140005,null,null,null,null,null,null,null,null,{"$f":"SUM(BA91,BA129,BA167,BA205,BA243)","v":39136617.899980195},39127052.530207269,730680695.32925308,730502109.86599422,1031793595.7400091,1031540583.2328792,39136617.899980195,39127052.530207269,30000,1304.5539299993397,1304.2350843402423,24356.023177641768,24350.070328866474,34393.119858000304,34384.686107762638,1304.5539299993397,1304.2350843402423]
[null,"Male 65-69",67.054419999999993,82.954419999999999,"male","ALL",null,{"$f":"SUM(H92,H130,H168,H206,H244)","v":153467},0,79033,2845.4399102360003,2844.8233905300003,42397.054662516995,42387.868518897005,62174.331774444996,62161.047426890997,2845.4399102360003,2844.8233905300003,null,{"$f":"SUM(T92,T130,T168,T206,T244)","v":2845.4399102360003},2845.4070316759999,42397.054662516995,42396.564771972997,62174.331774444996,62173.005599935997,2845.4399102360003,2845.4070316759999,null,{"$f":"SUM(AC92,AC130,AC168,AC206,AC244)","v":2845.4399102360003},2845.4247852350004,42397.054662516995,42396.829300002006,62174.331774444996,62174.331774444996,2845.4399102360003,2845.4247852350004,2845.4399102360003,2844.775386969,42397.054662516995,42387.153265838017,62174.331774444996,62159.721252381998,2845.4399102360003,2844.775386969,null,null,null,null,null,null,null,null,{"$f":"SUM(BA92,BA130,BA168,BA206,BA244)","v":52584699.034994714},52572102.567155175,783512015.62143242,783324328.25061309,1133962873.1750021,1133689745.9512503,52584699.034994714,52572102.567155175,27500,1912.1708739998078,1911.7128206238247,28491.346022597543,28484.521027295021,41235.013570000076,41225.081670954554,1912.1708739998078,1911.7128206238247]
[null,"Male 70-74",71.891098,84.341099999999997,"male","ALL",null,{"$f":"SUM(H93,H131,H169,H207,H245)","v":111869},0,57545,2974.7798110539998,2974.1386162250001,34061.234786127003,34053.893104053001,53814.804399198998,53803.309880809997,2974.7798110539998,2974.1386162250001,null,{"$f":"SUM(T93,T131,T169,T207,T245)","v":2974.7798110539998},2974.7460802979999,34061.234786127003,34060.848568903995,53814.804399198998,53813.674214094004,2974.7798110539998,2974.7460802979999,null,{"$f":"SUM(AC93,AC131,AC169,AC207,AC245)","v":2974.7798110539998},2974.7643106899995,34061.234786127003,34061.057306928,53814.804399198998,53814.804399197994,2974.7798110539998,2974.7643106899995,2974.7798110539998,2974.089385105,34061.234786127003,34053.32940763099,53814.804399198998,53802.179695703999,2974.7798110539998,2974.089385105,null,null,null,null,null,null,null,null,{"$f":"SUM(BA93,BA131,BA169,BA207,BA245)","v":68541049.400021419},68524704.966185957,784795152.7123239,784608008.91223907,1223954579.8000047,1223659739.3280959,68541049.400021419,68524704.966185957,25000,2741.6419760008566,2740.9881986474384,31391.806108492958,31384.320356489563,48958.183192000186,48946.389573123837,2741.6419760008566,2740.9881986474384]
[null,"Male 75-79",76.907700000000006,86.357700000000008,"male","ALL",null,{"$f":"SUM(H94,H132,H170,H208,H246)","v":82515},0,43868,3204.9415322619998,3204.2357773280005,27081.755947613001,27075.792318420998,47629.863037837,47619.369516862003,0,0,null,{"$f":"SUM(T94,T132,T170,T208,T246)","v":3204.9415322619998},3204.9042082159999,27081.755947613001,27081.440559426002,47629.863037837,47628.825302086996,0,0,null,{"$f":"SUM(AC94,AC132,AC170,AC208,AC246)","v":3204.9415322619998},3204.9243703850002,27081.755947613001,27081.610929753002,47629.863037837,47629.863037837,0,0,3204.9415322619998,3204.181291405001,27081.755947613001,27075.331912374,47629.863037837,47618.331781112,0,0,null,null,null,null,null,null,null,null,{"$f":"SUM(BA94,BA132,BA170,BA208,BA246)","v":79500841.639979348},79481585.01978609,671782111.85780168,671619393.41724372,1170005851.5600059,1169716739.8698049,0,0,20000,3975.0420819989672,3974.0792509893045,33589.105592890082,33580.969670862185,58500.292578000292,58485.836993490244,0,0]
[null,"Male 80-84",81.797089,88.627089999999995,"male","ALL",null,{"$f":"SUM(H95,H133,H171,H209,H247)","v":56201},0,29965,3103.9484791940004,3103.2692086950001,18096.022737649,18092.062589961002,38436.063031122998,38427.561152674003,0,0,null,{"$f":"SUM(T95,T133,T171,T209,T247)","v":3103.9484791940004},3103.9121720410003,18096.022737649,18095.811066910999,38436.063031122998,38435.211793597999,0,0,null,{"$f":"SUM(AC95,AC133,AC171,AC209,AC247)","v":3103.9484791940004},3103.9317871210001,18096.022737649,18095.925422847002,38436.063031122998,38436.063031122998,0,0,3103.9484791940004,3103.2162094689998,18096.022737649,18091.753604421003,38436.063031122998,38426.709915149004,0,0,null,null,null,null,null,null,null,null,{"$f":"SUM(BA95,BA133,BA171,BA209,BA247)","v":71140704.025005788},71123568.437274784,414750375.60647625,414650475.11289549,869840774.22496367,869624644.86034465,0,0,12500,5691.2563220004631,5689.885474981983,33180.0300485181,33172.038009031639,69587.2619379971,69569.971588827568,0,0]
[null,"Male 85-89",86.630752999999999,91.420750000000012,"male","ALL",null,{"$f":"SUM(H96,H134,H172,H210,H248)","v":28287},0,14822,2197.8595526200002,2197.3926719679998,8329.8811108509999,8328.1116345800001,22836.691699645002,22831.717335404999,0,0,null,{"$f":"SUM(T96,T134,T172,T210,T248)","v":2197.8595526200002},2197.8344004110004,8329.8811108509999,8329.7857840560009,22836.691699645002,22836.188544711,0,0,null,{"$f":"SUM(AC96,AC134,AC172,AC210,AC248)","v":2197.8595526200002},2197.8480524020001,8329.8811108509999,8329.8375250610006,22836.691699645002,22836.691699645002,0,0,2197.8595526200002,2197.356019541,8329.8811108509999,8327.9727219950018,22836.691699645002,22831.214180470997,0,0,null,null,null,null,null,null,null,null,{"$f":"SUM(BA96,BA134,BA172,BA210,BA248)","v":60596740.920006841},60582479.170488991,229661466.29659745,229607414.30879265,619589003.44500673,619436166.25991321,0,0,7500,8079.5654560009125,8077.6638893985319,30621.528839546329,30614.321907839021,82611.8671260009,82591.488834655087,0,0]
[null,"Male 90+",92.215477000000007,95.515479999999997,"male","ALL",null,{"$f":"SUM(H97,H135,H173,H211,H249)","v":12017},0,{"$f":"SUM(J97,J135,J173,J211,J249)","v":6105},1387.491802255,1387.2157120020001,3191.2353076620002,3190.6002992509998,11815.784800905001,11813.300517649999,0,0,null,{"$f":"SUM(T97,T135,T173,T211,T249)","v":1387.491802255},1387.476640826,3191.2353076620002,3191.2004363289998,11815.784800905001,11815.528140954999,0,0,null,{"$f":"SUM(AC97,AC135,AC173,AC211,AC249)","v":1387.491802255},1387.484868303,3191.2353076620002,3191.2193595519998,11815.784800905001,11815.784800905001,0,0,1387.491802255,1387.193616621,3191.2353076620002,3190.549479807999,11815.784800905001,11813.043857699997,0,0,null,null,null,null,null,null,null,null,{"$f":"SUM(BA97,BA135,BA173,BA211,BA249)","v":60083927.030062705},60070717.413125448,138193212.42092726,138162830.26229429,503620030.08994544,503500247.02240407,0,0,5000,{"$f":"BA59/$BI59","v":12016.785406012541},12014.14348262509,{"$f":"BC59/$BI59","v":27638.64248418545},27632.56605245886,100724.00601798909,100700.04940448081,0,0]
[null,"Female 0-4",2.0384007,81.468401,"female",1,1,{"$f":"HLOOKUP(Calculations!$E$2,'Population 2016'!$C$3:$BC$249,'Population 2016'!BD60,FALSE)","v":0},0,{"$f":"HLOOKUP(Calculations!$E$2,Pop2016_in_settlements!$C$3:$BC$249,Pop2016_in_settlements!$BD60,FALSE)","v":0},{"$f":"IF(AND(OR(Calculations!$E$2=\"Orkney Health Board\",Calculations!$E$2=\"Orkney Islands Local Authority\"),$F60=1),0,IF(AND(OR(Calculations!$E$2=\"Shetland Health Board\",Calculations!$E$2=\"Western Isles Health Board\",Calculations!$E$2=\"Shetland Islands Local Authority\",Calculations!$E$2=\"Eilean Siar Local Authority\"),OR($F60=1,$F60=5)),0,new_ci(VALUE(LEFT(Options!$B$14,2)),$C60,$E60,$F60,2016,$I60/10,1,$H60/10,$G60*$H60/10,RateRatios_accidents!$B$5)*10))","v":{"$error":"#VALUE!"}},{"$f":"IF(AND(OR(Calculations!$E$2=\"Orkney Health Board\",Calculations!$E$2=\"Orkney Islands Local Authority\"),$F60=1),0,IF(AND(OR(Calculations!$E$2=\"Shetland Health Board\",Calculations!$E$2=\"Western Isles Health Board\",Calculations!$E$2=\"Shetland Islands Local Authority\",Calculations!$E$2=\"Eilean Siar Local Authority\"),OR($F60=1,$F60=5)),0,new_ci(VALUE(LEFT(Options!$B$14,2)),$C60,$E60,$F60,2016,$I60/10+$J60/10,1,$H60/10,$G60*$H60/10,RateRatios_accidents!$B$5)*10))","v":{"$error":"#VALUE!"}},{"$f":"IF(AND(OR(Calculations!$E$2=\"Orkney Health Board\",Calculations!$E$2=\"Orkney Islands Local Authority\"),$F60=1),0,IF(AND(OR(Calculations!$E$2=\"Shetland Health Board\",Calculations!$E$2=\"Western Isles Health Board\",Calculations!$E$2=\"Shetland Islands Local Authority\",Calculations!$E$2=\"Eilean Siar Local Authority\"),OR($F60=1,$F60=5)),0,new_yllv2(VALUE(LEFT(Options!$B$14,2)),$C60,$D60,$E60,$F60,2016,$I60/10,1,$H60/10,$G60*$H60/10,RateRatios_accidents!$B$5)*10))","v":{"$error":"#VALUE!"}},{"$f":"IF(AND(OR(Calculations!$E$2=\"Orkney Health Board\",Calculations!$E$2=\"Orkney Islands Local Authority\"),$F60=1),0,IF(AND(OR(Calculations!$E$2=\"Shetland Health Board\",Calculations!$E$2=\"Western Isles Health Board\",Calculations!$E$2=\"Shetland Islands Local Authority\",Calculations!$E$2=\"Eilean Siar Local Authority\"),OR($F60=1,$F60=5)),0,new_yllv2(VALUE(LEFT(Options!$B$14,2)),$C60,$D60,$E60,$F60,2016,$I60/10+$J60/10,1,$H60/10,$G60*$H60/10,RateRatios_accidents!$B$5)*10))","v":{"$error":"#VALUE!"}},{"$f":"IF(AND(OR(Calculations!$E$2=\"Orkney Health Board\",Calculations!$E$2=\"Orkney Islands Local Authority\"),$F60=1),0,IF(AND(OR(Calculations!$E$2=\"Shetland Health Board\",Calculations!$E$2=\"Western Isles Health Board\",Calculations!$E$2=\"Shetland Islands Local Authority\",Calculations!$E$2=\"Eilean Siar Local Authority\"),OR($F60=1,$F60=5)),0,hosp_count(VALUE(LEFT(Options!$B$14,2)),$C60,$E60,$F60,2016,$I60/10,1,$H60/10,$G60*$H60/10, RateRatios_accidents!$B$4, RateRatios_accidents!$B$5)*10))","v":{"$error":"#VALUE!"}},{"$f":"IF(AND(OR(Calculations!$E$2=\"Orkney Health Board\",Calculations!$E$2=\"Orkney Islands Local Authority\"),$F60=1),0,IF(AND(OR(Calculations!$E$2=\"Shetland Health Board\",Calculations!$E$2=\"Western Isles Health Board\",Calculations!$E$2=\"Shetland Islands Local Authority\",Calculations!$E$2=\"Eilean Siar Local Authority\"),OR($F60=1,$F60=5)),0,hosp_count(VALUE(LEFT(Options!$B$14,2)),$C60,$E60,$F60,2016,$I60/10+$J60/10,1,$H60/10,$G60*$H60/10, RateRatios_accidents!$B$4, RateRatios_accidents!$B$5)*10))","v":{"$error":"#VALUE!"}},{"$f":"IF(AND(OR(Calculations!$E$2=\"Orkney Health Board\",Calculations!$E$2=\"Orkney Islands Local Authority\"),$F60=1),0,IF(AND(OR(Calculations!$E$2=\"Shetland Health Board\",Calculations!$E$2=\"Western Isles Health Board\",Calculations!$E$2=\"Shetland Islands Local Authority\",Calculations!$E$2=\"Eilean Siar Local Authority\"),OR($F60=1,$F60=5)),0,prem_mort(VALUE(LEFT(Options!$B$14,2)),$C60,$E60,$F60,2016,$I60/10,1,$H60/10,$G60*$H60/10,RateRatios_accidents!$B$5)*10))","v":{"$error":"#VALUE!"}},{"$f":"IF(AND(OR(Calculations!$E$2=\"Orkney Health Board\",Calculations!$E$2=\"Orkney Islands Local Authority\"),$F60=1),0,IF(AND(OR(Calculations!$E$2=\"Shetland Health Board\",Calculations!$E$2=\"Western Isles Health Board\",Calculations!$E$2=\"Shetland Islands Local Authority\",Calculations!$E$2=\"Eilean Siar Local Authority\"),OR($F60=1,$F60=5)),0,prem_mort(VALUE(LEFT(Options!$B$14,2)),$C60,$E60,$F60,2016,$I60/10+$J60/10,1,$H60/10,$G60*$H60/10,RateRatios_accidents!$B$5)*10))","v":{"$error":"#VALUE!"}},null,{"$f":"IF(AND(OR(Calculations!$E$2=\"Orkney Health Board\",Calculations!$E$2=\"Orkney Islands Local Authority\"),$F60=1),0,IF(AND(OR(Calculations!$E$2=\"Shetland Health Board\",Calculations!$E$2=\"Western Isles Health Board\",Calculations!$E$2=\"Shetland Islands Local Authority\",Calculations!$E$2=\"Eilean Siar Local Authority\"),OR($F60=1,$F60=5)),0,new_ci(VALUE(LEFT(Options!$B$14,2)),$C60,$E60,$F60,2016,$I60/10,1,$H60/10,$G60*$H60/10,RateRatios_airpollution!$C60)*10))","v":{"$error":"#VALUE!"}},{"$f":"IF(AND(OR(Calculations!$E$2=\"Orkney Health Board\",Calculations!$E$2=\"Orkney Islands Local Authority\"),$F60=1),0,IF(AND(OR(Calculations!$E$2=\"Shetland Health Board\",Calculations!$E$2=\"Western Isles Health Board\",Calculations!$E$2=\"Shetland Islands Local Authority\",Calculations!$E$2=\"Eilean Siar Local Authority\"),OR($F60=1,$F60=5)),0,new_ci(VALUE(LEFT(Options!$B$14,2)),$C60,$E60,$F60,2016,$I60/10+$J60/10,1,$H60/10,$G60*$H60/10,RateRatios_airpollution!$C60)*10))","v":{"$error":"#VALUE!"}},{"$f":"IF(AND(OR(Calculations!$E$2=\"Orkney Health Board\",Calculations!$E$2=\"Orkney Islands Local Authority\"),$F60=1),0,IF(AND(OR(Calculations!$E$2=\"Shetland Health Board\",Calculations!$E$2=\"Western Isles Health Board\",Calculations!$E$2=\"Shetland Islands Local Authority\",Calculations!$E$2=\"Eilean Siar Local Authority\"),OR($F60=1,$F60=5)),0,new_yllv2(VALUE(LEFT(Options!$B$14,2)),$C60,$D60,$E60,$F60,2016,$I60/10,1,$H60/10,$G60*$H60/10,RateRatios_airpollution!$C60)*10))","v":{"$error":"#VALUE!"}},{"$f":"IF(AND(OR(Calculations!$E$2=\"Orkney Health Board\",Calculations!$E$2=\"Orkney Islands Local Authority\"),$F60=1),0,IF(AND(OR(Calculations!$E$2=\"Shetland Health Board\",Calculations!$E$2=\"Western Isles Health Board\",Calculations!$E$2=\"Shetland Islands Local Authority\",Calculations!$E$2=\"Eilean Siar Local Authority\"),OR($F60=1,$F60=5)),0,new_yllv2(VALUE(LEFT(Options!$B$14,2)),$C60,$D60,$E60,$F60,2016,$I60/10+$J60/10,1,$H60/10,$G60*$H60/10,RateRatios_airpollution!$C60)*10))","v":{"$error":"#VALUE!"}},{"$f":"IF(AND(OR(Calculations!$E$2=\"Orkney Health Board\",Calculations!$E$2=\"Orkney Islands Local Authority\"),$F60=1),0,IF(AND(OR(Calculations!$E$2=\"Shetland Health Board\",Calculations!$E$2=\"Western Isles Health Board\",Calculations!$E$2=\"Shetland Islands Local Authority\",Calculations!$E$2=\"Eilean Siar Local Authority\"),OR($F60=1,$F60=5)),0,hosp_count(VALUE(LEFT(Options!$B$14,2)),$C60,$E60,$F60,2016,$I60/10,1,$H60/10,$G60*$H60/10, RateRatios_airpollution!$D60, RateRatios_airpollution!$C60)*10))","v":{"$error":"#VALUE!"}},{"$f":"IF(AND(OR(Calculations!$E$2=\"Orkney Health Board\",Calculations!$E$2=\"Orkney Islands Local Authority\"),$F60=1),0,IF(AND(OR(Calculations!$E$2=\"Shetland Health Board\",Calculations!$E$2=\"Western Isles Health Board\",Calculations!$E$2=\"Shetland Islands Local Authority\",Calculations!$E$2=\"Eilean Siar Local Authority\"),OR($F60=1,$F60=5)),0,hosp_count(VALUE(LEFT(Options!$B$14,2)),$C60,$E60,$F60,2016,$I60/10+$J60/10,1,$H60/10,$G60*$H60/10, RateRatios_airpollution!$D60, RateRatios_airpollution!$C60)*10))","v":{"$error":"#VALUE!"}},{"$f":"IF(AND(OR(Calculations!$E$2=\"Orkney Health Board\",Calculations!$E$2=\"Orkney Islands Local Authority\"),$F60=1),0,IF(AND(OR(Calculations!$E$2=\"Shetland Health Board\",Calculations!$E$2=\"Western Isles Health Board\",Calculations!$E$2=\"Shetland Islands Local Authority\",Calculations!$E$2=\"Eilean Siar Local Authority\"),OR($F60=1,$F60=5)),0,prem_mort(VALUE(LEFT(Options!$B$14,2)),$C60,$E60,$F60,2016,$I60/10,1,$H60/10,$G60*$H60/10,RateRatios_airpollution!$C60)*10))","v":{"$error":"#VALUE!"}},{"$f":"IF(AND(OR(Calculations!$E$2=\"Orkney Health Board\",Calculations!$E$2=\"Orkney Islands Local Authority\"),$F60=1),0,IF(AND(OR(Calculations!$E$2=\"Shetland Health Board\",Calculations!$E$2=\"Western Isles Health Board\",Calculations!$E$2=\"Shetland Islands Local Authority\",Calculations!$E$2=\"Eilean Siar Local Authority\"),OR($F60=1,$F60=5)),0,prem_mort(VALUE(LEFT(Options!$B$14,2)),$C60,$E60,$F60,2016,$I60/10+$J60/10,1,$H60/10,$G60*$H60/10,RateRatios_airpollution!$C60)*10))","v":{"$error":"#VALUE!"}},null,{"$f":"IF(AND(OR(Calculations!$E$2=\"Orkney Health Board\",Calculations!$E$2=\"Orkney Islands Local Authority\"),$F60=1),0,IF(AND(OR(Calculations!$E$2=\"Shetland Health Board\",Calculations!$E$2=\"Western Isles Health Board\",Calculations!$E$2=\"Shetland Islands Local Authority\",Calculations!$E$2=\"Eilean Siar Local Authority\"),OR($F60=1,$F60=5)),0,new_ci(VALUE(LEFT(Options!$B$14,2)),$C60,$E60,$F60,2016,$I60/10,1,$H60/10,$G60*$H60/10,RateRatios_airpollution!$E60)*10))","v":{"$error":"#VALUE!"}},{"$f":"IF(AND(OR(Calculations!$E$2=\"Orkney Health Board\",Calculations!$E$2=\"Orkney Islands Local Authority\"),$F60=1),0,IF(AND(OR(Calculations!$E$2=\"Shetland Health Board\",Calculations!$E$2=\"Western Isles Health Board\",Calculations!$E$2=\"Shetland Islands Local Authority\",Calculations!$E$2=\"Eilean Siar Local Authority\"),OR($F60=1,$F60=5)),0,new_ci(VALUE(LEFT(Options!$B$14,2)),$C60,$E60,$F60,2016,$I60/10+$J60/10,1,$H60/10,$G60*$H60/10,RateRatios_airpollution!$E60)*10))","v":{"$error":"#VALUE!"}},{"$f":"IF(AND(OR(Calculations!$E$2=\"Orkney Health Board\",Calculations!$E$2=\"Orkney Islands Local Authority\"),$F60=1),0,IF(AND(OR(Calculations!$E$2=\"Shetland Health Board\",Calculations!$E$2=\"Western Isles Health Board\",Calculations!$E$2=\"Shetland Islands Local Authority\",Calculations!$E$2=\"Eilean Siar Local Authority\"),OR($F60=1,$F60=5)),0,new_yllv2(VALUE(LEFT(Options!$B$14,2)),$C60,$D60,$E60,$F60,2016,$I60/10,1,$H60/10,$G60*$H60/10,RateRatios_airpollution!$E60)*10))","v":{"$error":"#VALUE!"}},{"$f":"IF(AND(OR(Calculations!$E$2=\"Orkney Health Board\",Calculations!$E$2=\"Orkney Islands Local Authority\"),$F60=1),0,IF(AND(OR(Calculations!$E$2=\"Shetland Health Board\",Calculations!$E$2=\"Western Isles Health Board\",Calculations!$E$2=\"Shetland Islands Local Authority\",Calculations!$E$2=\"Eilean Siar Local Authority\"),OR($F60=1,$F60=5)),0,new_yllv2(VALUE(LEFT(Options!$B$14,2)),$C60,$D60,$E60,$F60,2016,$I60/10+$J60/10,1,$H60/10,$G60*$H60/10,RateRatios_airpollution!$E60)*10))","v":{"$error":"#VALUE!"}},{"$f":"IF(AND(OR(Calculations!$E$2=\"Orkney Health Board\",Calculations!$E$2=\"Orkney Islands Local Authority\"),$F60=1),0,IF(AND(OR(Calculations!$E$2=\"Shetland Health Board\",Calculations!$E$2=\"Western Isles Health Board\",Calculations!$E$2=\"Shetland Islands Local Authority\",Calculations!$E$2=\"Eilean Siar Local Authority\"),OR($F60=1,$F60=5)),0,hosp_count(VALUE(LEFT(Options!$B$14,2)),$C60,$E60,$F60,2016,$I60/10,1,$H60/10,$G60*$H60/10, RateRatios_airpollution!$F60, RateRatios_airpollution!$E60)*10))","v":{"$error":"#VALUE!"}},{"$f":"IF(AND(OR(Calculations!$E$2=\"Orkney Health Board\",Calculations!$E$2=\"Orkney Islands Local Authority\"),$F60=1),0,IF(AND(OR(Calculations!$E$2=\"Shetland Health Board\",Calculations!$E$2=\"Western Isles Health Board\",Calculations!$E$2=\"Shetland Islands Local Authority\",Calculations!$E$2=\"Eilean Siar Local Authority\"),OR($F60=1,$F60=5)),0,hosp_count(VALUE(LEFT(Options!$B$14,2)),$C60,$E60,$F60,2016,$I60/10+$J60/10,1,$H60/10,$G60*$H60/10, RateRatios_airpollution!$F60, RateRatios_airpollution!$E60)*10))","v":{"$error":"#VALUE!"}},{"$f":"IF(AND(OR(Calculations!$E$2=\"Orkney Health Board\",Calculations!$E$2=\"Orkney Islands Local Authority\"),$F60=1),0,IF(AND(OR(Calculations!$E$2=\"Shetland Health Board\",Calculations!$E$2=\"Western Isles Health Board\",Calculations!$E$2=\"Shetland Islands Local Authority\",Calculations!$E$2=\"Eilean Siar Local Authority\"),OR($F60=1,$F60=5)),0,prem_mort(VALUE(LEFT(Options!$B$14,2)),$C60,$E60,$F60,2016,$I60/10,1,$H60/10,$G60*$H60/10,RateRatios_airpollution!$E60)*10))","v":{"$error":"#VALUE!"}},{"$f":"IF(AND(OR(Calculations!$E$2=\"Orkney Health Board\",Calculations!$E$2=\"Orkney Islands Local Authority\"),$F60=1),0,IF(AND(OR(Calculations!$E$2=\"Shetland Health Board\",Calculations!$E$2=\"Western Isles Health Board\",Calculations!$E$2=\"Shetland Islands Local Authority\",Calculations!$E$2=\"Eilean Siar Local Authority\"),OR($F60=1,$F60=5)),0,prem_mort(VALUE(LEFT(Options!$B$14,2)),$C60,$E60,$F60,2016,$I60/10+$J60/10,1,$H60/10,$G60*$H60/10,RateRatios_airpollution!$E60)*10))","v":{"$error":"#VALUE!"}},{"$error":"#VALUE!"},{"$error":"#VALUE!"},{"$error":"#VALUE!"},{"$error":"#VALUE!"},{"$error":"#VALUE!"},{"$error":"#VALUE!"},{"$error":"#VALUE!"},{"$error":"#VALUE!"},{"$f":"K60*100000/$H60","v":{"$error":"#VALUE!"}},{"$f":"L60*100000/$H60","v":{"$error":"#VALUE!"}},{"$f":"M60*100000/$H60","v":{"$error":"#VALUE!"}},{"$f":"N60*100000/$H60","v":{"$error":"#VALUE!"}},{"$f":"O60*100000/$H60","v":{"$error":"#VALUE!"}},{"$f":"P60*100000/$H60","v":{"$error":"#VALUE!"}},{"$f":"Q60*100000/$H60","v":{"$error":"#VALUE!"}},{"$f":"R60*100000/$H60","v":{"$error":"#VALUE!"}},{"$f":"AS60*$BI60","v":{"$error":"#VALUE!"}},{"$f":"AT60*$BI60","v":{"$error":"#VALUE!"}},{"$f":"AU60*$BI60","v":{"$error":"#VALUE!"}},{"$f":"AV60*$BI60","v":{"$error":"#VALUE!"}},{"$f":"AW60*$BI60","v":{"$error":"#VALUE!"}},{"$f":"AX60*$BI60","v":{"$error":"#VALUE!"}},{"$f":"AY60*$BI60","v":{"$error":"#VALUE!"}},{"$f":"AZ60*$BI60","v":{"$error":"#VALUE!"}},5000]
[null,"Female 5-9",6.9792794999999996,81.439279999999997,"female",1,1,{"$f":"HLOOKUP(Calculations!$E$2,'Population 2016'!$C$3:$BC$249,'Population 2016'!BD61,FALSE)","v":0},0,{"$f":"HLOOKUP(Calculations!$E$2,Pop2016_in_settlements!$C$3:$BC$249,Pop2016_in_settlements!$BD61,FALSE)","v":0},{"$f":"IF(AND(OR(Calculations!$E$2=\"Orkney Health Board\",Calculations!$E$2=\"Orkney Islands Local Authority\"),$F61=1),0,IF(AND(OR(Calculations!$E$2=\"Shetland Health Board\",Calculations!$E$2=\"Western Isles Health Board\",Calculations!$E$2=\"Shetland Islands Local Authority\",Calculations!$E$2=\"Eilean Siar Local Authority\"),OR($F61=1,$F61=5)),0,new_ci(VALUE(LEFT(Options!$B$14,2)),$C61,$E61,$F61,2016,$I61/10,1,$H61/10,$G61*$H61/10,RateRatios_accidents!$B$5)*10))","v":{"$error":"#VALUE!"}},{"$f":"IF(AND(OR(Calculations!$E$2=\"Orkney Health Board\",Calculations!$E$2=\"Orkney Islands Local Authority\"),$F61=1),0,IF(AND(OR(Calculations!$E$2=\"Shetland Health Board\",Calculations!$E$2=\"Western Isles Health Board\",Calculations!$E$2=\"Shetland Islands Local Authority\",Calculations!$E$2=\"Eilean Siar Local Authority\"),OR($F61=1,$F61=5)),0,new_ci(VALUE(LEFT(Options!$B$14,2)),$C61,$E61,$F61,2016,$I61/10+$J61/10,1,$H61/10,$G61*$H61/10,RateRatios_accidents!$B$5)*10))","v":{"$error":"#VALUE!"}},{"$f":"IF(AND(OR(Calculations!$E$2=\"Orkney Health Board\",Calculations!$E$2=\"Orkney Islands Local Authority\"),$F61=1),0,IF(AND(OR(Calculations!$E$2=\"Shetland Health Board\",Calculations!$E$2=\"Western Isles Health Board\",Calculations!$E$2=\"Shetland Islands Local Authority\",Calculations!$E$2=\"Eilean Siar Local Authority\"),OR($F61=1,$F61=5)),0,new_yllv2(VALUE(LEFT(Options!$B$14,2)),$C61,$D61,$E61,$F61,2016,$I61/10,1,$H61/10,$G61*$H61/10,RateRatios_accidents!$B$5)*10))","v":{"$error":"#VALUE!"}},{"$f":"IF(AND(OR(Calculations!$E$2=\"Orkney Health Board\",Calculations!$E$2=\"Orkney Islands Local Authority\"),$F61=1),0,IF(AND(OR(Calculations!$E$2=\"Shetland Health Board\",Calculations!$E$2=\"Western Isles Health Board\",Calculations!$E$2=\"Shetland Islands Local Authority\",Calculations!$E$2=\"Eilean Siar Local Authority\"),OR($F61=1,$F61=5)),0,new_yllv2(VALUE(LEFT(Options!$B$14,2)),$C61,$D61,$E61,$F61,2016,$I61/10+$J61/10,1,$H61/10,$G61*$H61/10,RateRatios_accidents!$B$5)*10))","v":{"$error":"#VALUE!"}},{"$f":"IF(AND(OR(Calculations!$E$2=\"Orkney Health Board\",Calculations!$E$2=\"Orkney Islands Local Authority\"),$F61=1),0,IF(AND(OR(Calculations!$E$2=\"Shetland Health Board\",Calculations!$E$2=\"Western Isles Health Board\",Calculations!$E$2=\"Shetland Islands Local Authority\",Calculations!$E$2=\"Eilean Siar Local Authority\"),OR($F61=1,$F61=5)),0,hosp_count(VALUE(LEFT(Options!$B$14,2)),$C61,$E61,$F61,2016,$I61/10,1,$H61/10,$G61*$H61/10, RateRatios_accidents!$B$4, RateRatios_accidents!$B$5)*10))","v":{"$error":"#VALUE!"}},{"$f":"IF(AND(OR(Calculations!$E$2=\"Orkney Health Board\",Calculations!$E$2=\"Orkney Islands Local Authority\"),$F61=1),0,IF(AND(OR(Calculations!$E$2=\"Shetland Health Board\",Calculations!$E$2=\"Western Isles Health Board\",Calculations!$E$2=\"Shetland Islands Local Authority\",Calculations!$E$2=\"Eilean Siar Local Authority\"),OR($F61=1,$F61=5)),0,hosp_count(VALUE(LEFT(Options!$B$14,2)),$C61,$E61,$F61,2016,$I61/10+$J61/10,1,$H61/10,$G61*$H61/10, RateRatios_accidents!$B$4, RateRatios_accidents!$B$5)*10))","v":{"$error":"#VALUE!"}},{"$f":"IF(AND(OR(Calculations!$E$2=\"Orkney Health Board\",Calculations!$E$2=\"Orkney Islands Local Authority\"),$F61=1),0,IF(AND(OR(Calculations!$E$2=\"Shetland Health Board\",Calculations!$E$2=\"Western Isles Health Board\",Calculations!$E$2=\"Shetland Islands Local Authority\",Calculations!$E$2=\"Eilean Siar Local Authority\"),OR($F61=1,$F61=5)),0,prem_mort(VALUE(LEFT(Options!$B$14,2)),$C61,$E61,$F61,2016,$I61/10,1,$H61/10,$G61*$H61/10,RateRatios_accidents!$B$5)*10))","v":{"$error":"#VALUE!"}},{"$f":"IF(AND(OR(Calculations!$E$2=\"Orkney Health Board\",Calculations!$E$2=\"Orkney Islands Local Authority\"),$F61=1),0,IF(AND(OR(Calculations!$E$2=\"Shetland Health Board\",Calculations!$E$2=\"Western Isles Health Board\",Calculations!$E$2=\"Shetland Islands Local Authority\",Calculations!$E$2=\"Eilean Siar Local Authority\"),OR($F61=1,$F61=5)),0,prem_mort(VALUE(LEFT(Options!$B$14,2)),$C61,$E61,$F61,2016,$I61/10+$J61/10,1,$H61/10,$G61*$H61/10,RateRatios_accidents!$B$5)*10))","v":{"$error":"#VALUE!"}},null,{"$f":"IF(AND(OR(Calculations!$E$2=\"Orkney Health Board\",Calculations!$E$2=\"Orkney Islands Local Authority\"),$F61=1),0,IF(AND(OR(Calculations!$E$2=\"Shetland Health Board\",Calculations!$E$2=\"Western Isles Health Board\",Calculations!$E$2=\"Shetland Islands Local Authority\",Calculations!$E$2=\"Eilean Siar Local Authority\"),OR($F61=1,$F61=5)),0,new_ci(VALUE(LEFT(Options!$B$14,2)),$C61,$E61,$F61,2016,$I61/10,1,$H61/10,$G61*$H61/10,RateRatios_airpollution!$C61)*10))","v":{"$error":"#VALUE!"}},{"$f":"IF(AND(OR(Calculations!$E$2=\"Orkney Health Board\",Calculations!$E$2=\"Orkney Islands Local Authority\"),$F61=1),0,IF(AND(OR(Calculations!$E$2=\"Shetland Health Board\",Calculations!$E$2=\"Western Isles Health Board\",Calculations!$E$2=\"Shetland Islands Local Authority\",Calculations!$E$2=\"Eilean Siar Local Authority\"),OR($F61=1,$F61=5)),0,new_ci(VALUE(LEFT(Options!$B$14,2)),$C61,$E61,$F61,2016,$I61/10+$J61/10,1,$H61/10,$G61*$H61/10,RateRatios_airpollution!$C61)*10))","v":{"$error":"#VALUE!"}},{"$f":"IF(AND(OR(Calculations!$E$2=\"Orkney Health Board\",Calculations!$E$2=\"Orkney Islands Local Authority\"),$F61=1),0,IF(AND(OR(Calculations!$E$2=\"Shetland Health Board\",Calculations!$E$2=\"Western Isles Health Board\",Calculations!$E$2=\"Shetland Islands Local Authority\",Calculations!$E$2=\"Eilean Siar Local Authority\"),OR($F61=1,$F61=5)),0,new_yllv2(VALUE(LEFT(Options!$B$14,2)),$C61,$D61,$E61,$F61,2016,$I61/10,1,$H61/10,$G61*$H61/10,RateRatios_airpollution!$C61)*10))","v":{"$error":"#VALUE!"}},{"$f":"IF(AND(OR(Calculations!$E$2=\"Orkney Health Board\",Calculations!$E$2=\"Orkney Islands Local Authority\"),$F61=1),0,IF(AND(OR(Calculations!$E$2=\"Shetland Health Board\",Calculations!$E$2=\"Western Isles Health Board\",Calculations!$E$2=\"Shetland Islands Local Authority\",Calculations!$E$2=\"Eilean Siar Local Authority\"),OR($F61=1,$F61=5)),0,new_yllv2(VALUE(LEFT(Options!$B$14,2)),$C61,$D61,$E61,$F61,2016,$I61/10+$J61/10,1,$H61/10,$G61*$H61/10,RateRatios_airpollution!$C61)*10))","v":{"$error":"#VALUE!"}},{"$f":"IF(AND(OR(Calculations!$E$2=\"Orkney Health Board\",Calculations!$E$2=\"Orkney Islands Local Authority\"),$F61=1),0,IF(AND(OR(Calculations!$E$2=\"Shetland Health Board\",Calculations!$E$2=\"Western Isles Health Board\",Calculations!$E$2=\"Shetland Islands Local Authority\",Calculations!$E$2=\"Eilean Siar Local Authority\"),OR($F61=1,$F61=5)),0,hosp_count(VALUE(LEFT(Options!$B$14,2)),$C61,$E61,$F61,2016,$I61/10,1,$H61/10,$G61*$H61/10, RateRatios_airpollution!$D61, RateRatios_airpollution!$C61)*10))","v":{"$error":"#VALUE!"}},{"$f":"IF(AND(OR(Calculations!$E$2=\"Orkney Health Board\",Calculations!$E$2=\"Orkney Islands Local Authority\"),$F61=1),0,IF(AND(OR(Calculations!$E$2=\"Shetland Health Board\",Calculations!$E$2=\"Western Isles Health Board\",Calculations!$E$2=\"Shetland Islands Local Authority\",Calculations!$E$2=\"Eilean Siar Local Authority\"),OR($F61=1,$F61=5)),0,hosp_count(VALUE(LEFT(Options!$B$14,2)),$C61,$E61,$F61,2016,$I61/10+$J61/10,1,$H61/10,$G61*$H61/10, RateRatios_airpollution!$D61, RateRatios_airpollution!$C61)*10))","v":{"$error":"#VALUE!"}},{"$f":"IF(AND(OR(Calculations!$E$2=\"Orkney Health Board\",Calculations!$E$2=\"Orkney Islands Local Authority\"),$F61=1),0,IF(AND(OR(Calculations!$E$2=\"Shetland Health Board\",Calculations!$E$2=\"Western Isles Health Board\",Calculations!$E$2=\"Shetland Islands Local Authority\",Calculations!$E$2=\"Eilean Siar Local Authority\"),OR($F61=1,$F61=5)),0,prem_mort(VALUE(LEFT(Options!$B$14,2)),$C61,$E61,$F61,2016,$I61/10,1,$H61/10,$G61*$H61/10,RateRatios_airpollution!$C61)*10))","v":{"$error":"#VALUE!"}},{"$f":"IF(AND(OR(Calculations!$E$2=\"Orkney Health Board\",Calculations!$E$2=\"Orkney Islands Local Authority\"),$F61=1),0,IF(AND(OR(Calculations!$E$2=\"Shetland Health Board\",Calculations!$E$2=\"Western Isles Health Board\",Calculations!$E$2=\"Shetland Islands Local Authority\",Calculations!$E$2=\"Eilean Siar Local Authority\"),OR($F61=1,$F61=5)),0,prem_mort(VALUE(LEFT(Options!$B$14,2)),$C61,$E61,$F61,2016,$I61/10+$J61/10,1,$H61/10,$G61*$H61/10,RateRatios_airpollution!$C61)*10))","v":{"$error":"#VALUE!"}},null,{"$f":"IF(AND(OR(Calculations!$E$2=\"Orkney Health Board\",Calculations!$E$2=\"Orkney Islands Local Authority\"),$F61=1),0,IF(AND(OR(Calculations!$E$2=\"Shetland Health Board\",Calculations!$E$2=\"Western Isles Health Board\",Calculations!$E$2=\"Shetland Islands Local Authority\",Calculations!$E$2=\"Eilean Siar Local Authority\"),OR($F61=1,$F61=5)),0,new_ci(VALUE(LEFT(Options!$B$14,2)),$C61,$E61,$F61,2016,$I61/10,1,$H61/10,$G61*$H61/10,RateRatios_airpollution!$E61)*10))","v":{"$error":"#VALUE!"}},{"$f":"IF(AND(OR(Calculations!$E$2=\"Orkney Health Board\",Calculations!$E$2=\"Orkney Islands Local Authority\"),$F61=1),0,IF(AND(OR(Calculations!$E$2=\"Shetland Health Board\",Calculations!$E$2=\"Western Isles Health Board\",Calculations!$E$2=\"Shetland Islands Local Authority\",Calculations!$E$2=\"Eilean Siar Local Authority\"),OR($F61=1,$F61=5)),0,new_ci(VALUE(LEFT(Options!$B$14,2)),$C61,$E61,$F61,2016,$I61/10+$J61/10,1,$H61/10,$G61*$H61/10,RateRatios_airpollution!$E61)*10))","v":{"$error":"#VALUE!"}},{"$f":"IF(AND(OR(Calculations!$E$2=\"Orkney Health Board\",Calculations!$E$2=\"Orkney Islands Local Authority\"),$F61=1),0,IF(AND(OR(Calculations!$E$2=\"Shetland Health Board\",Calculations!$E$2=\"Western Isles Health Board\",Calculations!$E$2=\"Shetland Islands Local Authority\",Calculations!$E$2=\"Eilean Siar Local Authority\"),OR($F61=1,$F61=5)),0,new_yllv2(VALUE(LEFT(Options!$B$14,2)),$C61,$D61,$E61,$F61,2016,$I61/10,1,$H61/10,$G61*$H61/10,RateRatios_airpollution!$E61)*10))","v":{"$error":"#VALUE!"}},{"$f":"IF(AND(OR(Calculations!$E$2=\"Orkney Health Board\",Calculations!$E$2=\"Orkney Islands Local Authority\"),$F61=1),0,IF(AND(OR(Calculations!$E$2=\"Shetland Health Board\",Calculations!$E$2=\"Western Isles Health Board\",Calculations!$E$2=\"Shetland Islands Local Authority\",Calculations!$E$2=\"Eilean Siar Local Authority\"),OR($F61=1,$F61=5)),0,new_yllv2(VALUE(LEFT(Options!$B$14,2)),$C61,$D61,$E61,$F61,2016,$I61/10+$J61/10,1,$H61/10,$G61*$H61/10,RateRatios_airpollution!$E61)*10))","v":{"$error":"#VALUE!"}},{"$f":"IF(AND(OR(Calculations!$E$2=\"Orkney Health Board\",Calculations!$E$2=\"Orkney Islands Local Authority\"),$F61=1),0,IF(AND(OR(Calculations!$E$2=\"Shetland Health Board\",Calculations!$E$2=\"Western Isles Health Board\",Calculations!$E$2=\"Shetland Islands Local Authority\",Calculations!$E$2=\"Eilean Siar Local Authority\"),OR($F61=1,$F61=5)),0,hosp_count(VALUE(LEFT(Options!$B$14,2)),$C61,$E61,$F61,2016,$I61/10,1,$H61/10,$G61*$H61/10, RateRatios_airpollution!$F61, RateRatios_airpollution!$E61)*10))","v":{"$error":"#VALUE!"}},{"$f":"IF(AND(OR(Calculations!$E$2=\"Orkney Health Board\",Calculations!$E$2=\"Orkney Islands Local Authority\"),$F61=1),0,IF(AND(OR(Calculations!$E$2=\"Shetland Health Board\",Calculations!$E$2=\"Western Isles Health Board\",Calculations!$E$2=\"Shetland Islands Local Authority\",Calculations!$E$2=\"Eilean Siar Local Authority\"),OR($F61=1,$F61=5)),0,hosp_count(VALUE(LEFT(Options!$B$14,2)),$C61,$E61,$F61,2016,$I61/10+$J61/10,1,$H61/10,$G61*$H61/10, RateRatios_airpollution!$F61, RateRatios_airpollution!$E61)*10))","v":{"$error":"#VALUE!"}},{"$f":"IF(AND(OR(Calculations!$E$2=\"Orkney Health Board\",Calculations!$E$2=\"Orkney Islands Local Authority\"),$F61=1),0,IF(AND(OR(Calculations!$E$2=\"Shetland Health Board\",Calculations!$E$2=\"Western Isles Health Board\",Calculations!$E$2=\"Shetland Islands Local Authority\",Calculations!$E$2=\"Eilean Siar Local Authority\"),OR($F61=1,$F61=5)),0,prem_mort(VALUE(LEFT(Options!$B$14,2)),$C61,$E61,$F61,2016,$I61/10,1,$H61/10,$G61*$H61/10,RateRatios_airpollution!$E61)*10))","v":{"$error":"#VALUE!"}},{"$f":"IF(AND(OR(Calculations!$E$2=\"Orkney Health Board\",Calculations!$E$2=\"Orkney Islands Local Authority\"),$F61=1),0,IF(AND(OR(Calculations!$E$2=\"Shetland Health Board\",Calculations!$E$2=\"Western Isles Health Board\",Calculations!$E$2=\"Shetland Islands Local Authority\",Calculations!$E$2=\"Eilean Siar Local Authority\"),OR($F61=1,$F61=5)),0,prem_mort(VALUE(LEFT(Options!$B$14,2)),$C61,$E61,$F61,2016,$I61/10+$J61/10,1,$H61/10,$G61*$H61/10,RateRatios_airpollution!$E61)*10))","v":{"$error":"#VALUE!"}},{"$f":"K61","v":{"$error":"#VALUE!"}},{"$error":"#VALUE!"},{"$f":"M61","v":{"$error":"#VALUE!"}},{"$error":"#VALUE!"},{"$f":"O61","v":{"$error":"#VALUE!"}},{"$error":"#VALUE!"},{"$f":"Q61","v":{"$error":"#VALUE!"}},{"$error":"#VALUE!"},{"$error":"#VALUE!"},{"$error":"#VALUE!"},{"$error":"#VALUE!"},{"$error":"#VALUE!"},{"$error":"#VALUE!"},{"$error":"#VALUE!"},{"$error":"#VALUE!"},{"$error":"#VALUE!"},{"$f":"AS61*$BI61","v":{"$error":"#VALUE!"}},{"$f":"AT61*$BI61","v":{"$error":"#VALUE!"}},{"$f":"AU61*$BI61","v":{"$error":"#VALUE!"}},{"$error":"#VALUE!"},{"$error":"#VALUE!"},{"$error":"#VALUE!"},{"$error":"#VALUE!"},{"$error":"#VALUE!"},5500]
[null,"Female 10-15",12.478312000000001,81.948309999999992,"female",1,1,{"$f":"HLOOKUP(Calculations!$E$2,'Population 2016'!$C$3:$BC$249,'Population 2016'!BD62,FALSE)","v":0},0,{"$f":"HLOOKUP(Calculations!$E$2,Pop2016_in_settlements!$C$3:$BC$249,Pop2016_in_settlements!$BD62,FALSE)","v":0},{"$f":"IF(AND(OR(Calculations!$E$2=\"Orkney Health Board\",Calculations!$E$2=\"Orkney Islands Local Authority\"),$F62=1),0,IF(AND(OR(Calculations!$E$2=\"Shetland Health Board\",Calculations!$E$2=\"Western Isles Health Board\",Calculations!$E$2=\"Shetland Islands Local Authority\",Calculations!$E$2=\"Eilean Siar Local Authority\"),OR($F62=1,$F62=5)),0,new_ci(VALUE(LEFT(Options!$B$14,2)),$C62,$E62,$F62,2016,$I62/10,1,$H62/10,$G62*$H62/10,RateRatios_accidents!$B$5)*10))","v":{"$error":"#VALUE!"}},{"$f":"IF(AND(OR(Calculations!$E$2=\"Orkney Health Board\",Calculations!$E$2=\"Orkney Islands Local Authority\"),$F62=1),0,IF(AND(OR(Calculations!$E$2=\"Shetland Health Board\",Calculations!$E$2=\"Western Isles Health Board\",Calculations!$E$2=\"Shetland Islands Local Authority\",Calculations!$E$2=\"Eilean Siar Local Authority\"),OR($F62=1,$F62=5)),0,new_ci(VALUE(LEFT(Options!$B$14,2)),$C62,$E62,$F62,2016,$I62/10+$J62/10,1,$H62/10,$G62*$H62/10,RateRatios_accidents!$B$5)*10))","v":{"$error":"#VALUE!"}},{"$f":"IF(AND(OR(Calculations!$E$2=\"Orkney Health Board\",Calculations!$E$2=\"Orkney Islands Local Authority\"),$F62=1),0,IF(AND(OR(Calculations!$E$2=\"Shetland Health Board\",Calculations!$E$2=\"Western Isles Health Board\",Calculations!$E$2=\"Shetland Islands Local Authority\",Calculations!$E$2=\"Eilean Siar Local Authority\"),OR($F62=1,$F62=5)),0,new_yllv2(VALUE(LEFT(Options!$B$14,2)),$C62,$D62,$E62,$F62,2016,$I62/10,1,$H62/10,$G62*$H62/10,RateRatios_accidents!$B$5)*10))","v":{"$error":"#VALUE!"}},{"$f":"IF(AND(OR(Calculations!$E$2=\"Orkney Health Board\",Calculations!$E$2=\"Orkney Islands Local Authority\"),$F62=1),0,IF(AND(OR(Calculations!$E$2=\"Shetland Health Board\",Calculations!$E$2=\"Western Isles Health Board\",Calculations!$E$2=\"Shetland Islands Local Authority\",Calculations!$E$2=\"Eilean Siar Local Authority\"),OR($F62=1,$F62=5)),0,new_yllv2(VALUE(LEFT(Options!$B$14,2)),$C62,$D62,$E62,$F62,2016,$I62/10+$J62/10,1,$H62/10,$G62*$H62/10,RateRatios_accidents!$B$5)*10))","v":{"$error":"#VALUE!"}},{"$f":"IF(AND(OR(Calculations!$E$2=\"Orkney Health Board\",Calculations!$E$2=\"Orkney Islands Local Authority\"),$F62=1),0,IF(AND(OR(Calculations!$E$2=\"Shetland Health Board\",Calculations!$E$2=\"Western Isles Health Board\",Calculations!$E$2=\"Shetland Islands Local Authority\",Calculations!$E$2=\"Eilean Siar Local Authority\"),OR($F62=1,$F62=5)),0,hosp_count(VALUE(LEFT(Options!$B$14,2)),$C62,$E62,$F62,2016,$I62/10,1,$H62/10,$G62*$H62/10, RateRatios_accidents!$B$4, RateRatios_accidents!$B$5)*10))","v":{"$error":"#VALUE!"}},{"$f":"IF(AND(OR(Calculations!$E$2=\"Orkney Health Board\",Calculations!$E$2=\"Orkney Islands Local Authority\"),$F62=1),0,IF(AND(OR(Calculations!$E$2=\"Shetland Health Board\",Calculations!$E$2=\"Western Isles Health Board\",Calculations!$E$2=\"Shetland Islands Local Authority\",Calculations!$E$2=\"Eilean Siar Local Authority\"),OR($F62=1,$F62=5)),0,hosp_count(VALUE(LEFT(Options!$B$14,2)),$C62,$E62,$F62,2016,$I62/10+$J62/10,1,$H62/10,$G62*$H62/10, RateRatios_accidents!$B$4, RateRatios_accidents!$B$5)*10))","v":{"$error":"#VALUE!"}},{"$f":"IF(AND(OR(Calculations!$E$2=\"Orkney Health Board\",Calculations!$E$2=\"Orkney Islands Local Authority\"),$F62=1),0,IF(AND(OR(Calculations!$E$2=\"Shetland Health Board\",Calculations!$E$2=\"Western Isles Health Board\",Calculations!$E$2=\"Shetland Islands Local Authority\",Calculations!$E$2=\"Eilean Siar Local Authority\"),OR($F62=1,$F62=5)),0,prem_mort(VALUE(LEFT(Options!$B$14,2)),$C62,$E62,$F62,2016,$I62/10,1,$H62/10,$G62*$H62/10,RateRatios_accidents!$B$5)*10))","v":{"$error":"#VALUE!"}},{"$f":"IF(AND(OR(Calculations!$E$2=\"Orkney Health Board\",Calculations!$E$2=\"Orkney Islands Local Authority\"),$F62=1),0,IF(AND(OR(Calculations!$E$2=\"Shetland Health Board\",Calculations!$E$2=\"Western Isles Health Board\",Calculations!$E$2=\"Shetland Islands Local Authority\",Calculations!$E$2=\"Eilean Siar Local Authority\"),OR($F62=1,$F62=5)),0,prem_mort(VALUE(LEFT(Options!$B$14,2)),$C62,$E62,$F62,2016,$I62/10+$J62/10,1,$H62/10,$G62*$H62/10,RateRatios_accidents!$B$5)*10))","v":{"$error":"#VALUE!"}},null,{"$f":"IF(AND(OR(Calculations!$E$2=\"Orkney Health Board\",Calculations!$E$2=\"Orkney Islands Local Authority\"),$F62=1),0,IF(AND(OR(Calculations!$E$2=\"Shetland Health Board\",Calculations!$E$2=\"Western Isles Health Board\",Calculations!$E$2=\"Shetland Islands Local Authority\",Calculations!$E$2=\"Eilean Siar Local Authority\"),OR($F62=1,$F62=5)),0,new_ci(VALUE(LEFT(Options!$B$14,2)),$C62,$E62,$F62,2016,$I62/10,1,$H62/10,$G62*$H62/10,RateRatios_airpollution!$C62)*10))","v":{"$error":"#VALUE!"}},{"$f":"IF(AND(OR(Calculations!$E$2=\"Orkney Health Board\",Calculations!$E$2=\"Orkney Islands Local Authority\"),$F62=1),0,IF(AND(OR(Calculations!$E$2=\"Shetland Health Board\",Calculations!$E$2=\"Western Isles Health Board\",Calculations!$E$2=\"Shetland Islands Local Authority\",Calculations!$E$2=\"Eilean Siar Local Authority\"),OR($F62=1,$F62=5)),0,new_ci(VALUE(LEFT(Options!$B$14,2)),$C62,$E62,$F62,2016,$I62/10+$J62/10,1,$H62/10,$G62*$H62/10,RateRatios_airpollution!$C62)*10))","v":{"$error":"#VALUE!"}},{"$f":"IF(AND(OR(Calculations!$E$2=\"Orkney Health Board\",Calculations!$E$2=\"Orkney Islands Local Authority\"),$F62=1),0,IF(AND(OR(Calculations!$E$2=\"Shetland Health Board\",Calculations!$E$2=\"Western Isles Health Board\",Calculations!$E$2=\"Shetland Islands Local Authority\",Calculations!$E$2=\"Eilean Siar Local Authority\"),OR($F62=1,$F62=5)),0,new_yllv2(VALUE(LEFT(Options!$B$14,2)),$C62,$D62,$E62,$F62,2016,$I62/10,1,$H62/10,$G62*$H62/10,RateRatios_airpollution!$C62)*10))","v":{"$error":"#VALUE!"}},{"$f":"IF(AND(OR(Calculations!$E$2=\"Orkney Health Board\",Calculations!$E$2=\"Orkney Islands Local Authority\"),$F62=1),0,IF(AND(OR(Calculations!$E$2=\"Shetland Health Board\",Calculations!$E$2=\"Western Isles Health Board\",Calculations!$E$2=\"Shetland Islands Local Authority\",Calculations!$E$2=\"Eilean Siar Local Authority\"),OR($F62=1,$F62=5)),0,new_yllv2(VALUE(LEFT(Options!$B$14,2)),$C62,$D62,$E62,$F62,2016,$I62/10+$J62/10,1,$H62/10,$G62*$H62/10,RateRatios_airpollution!$C62)*10))","v":{"$error":"#VALUE!"}},{"$f":"IF(AND(OR(Calculations!$E$2=\"Orkney Health Board\",Calculations!$E$2=\"Orkney Islands Local Authority\"),$F62=1),0,IF(AND(OR(Calculations!$E$2=\"Shetland Health Board\",Calculations!$E$2=\"Western Isles Health Board\",Calculations!$E$2=\"Shetland Islands Local Authority\",Calculations!$E$2=\"Eilean Siar Local Authority\"),OR($F62=1,$F62=5)),0,hosp_count(VALUE(LEFT(Options!$B$14,2)),$C62,$E62,$F62,2016,$I62/10,1,$H62/10,$G62*$H62/10, RateRatios_airpollution!$D62, RateRatios_airpollution!$C62)*10))","v":{"$error":"#VALUE!"}},{"$f":"IF(AND(OR(Calculations!$E$2=\"Orkney Health Board\",Calculations!$E$2=\"Orkney Islands Local Authority\"),$F62=1),0,IF(AND(OR(Calculations!$E$2=\"Shetland Health Board\",Calculations!$E$2=\"Western Isles Health Board\",Calculations!$E$2=\"Shetland Islands Local Authority\",Calculations!$E$2=\"Eilean Siar Local Authority\"),OR($F62=1,$F62=5)),0,hosp_count(VALUE(LEFT(Options!$B$14,2)),$C62,$E62,$F62,2016,$I62/10+$J62/10,1,$H62/10,$G62*$H62/10, RateRatios_airpollution!$D62, RateRatios_airpollution!$C62)*10))","v":{"$error":"#VALUE!"}},{"$f":"IF(AND(OR(Calculations!$E$2=\"Orkney Health Board\",Calculations!$E$2=\"Orkney Islands Local Authority\"),$F62=1),0,IF(AND(OR(Calculations!$E$2=\"Shetland Health Board\",Calculations!$E$2=\"Western Isles Health Board\",Calculations!$E$2=\"Shetland Islands Local Authority\",Calculations!$E$2=\"Eilean Siar Local Authority\"),OR($F62=1,$F62=5)),0,prem_mort(VALUE(LEFT(Options!$B$14,2)),$C62,$E62,$F62,2016,$I62/10,1,$H62/10,$G62*$H62/10,RateRatios_airpollution!$C62)*10))","v":{"$error":"#VALUE!"}},{"$f":"IF(AND(OR(Calculations!$E$2=\"Orkney Health Board\",Calculations!$E$2=\"Orkney Islands Local Authority\"),$F62=1),0,IF(AND(OR(Calculations!$E$2=\"Shetland Health Board\",Calculations!$E$2=\"Western Isles Health Board\",Calculations!$E$2=\"Shetland Islands Local Authority\",Calculations!$E$2=\"Eilean Siar Local Authority\"),OR($F62=1,$F62=5)),0,prem_mort(VALUE(LEFT(Options!$B$14,2)),$C62,$E62,$F62,2016,$I62/10+$J62/10,1,$H62/10,$G62*$H62/10,RateRatios_airpollution!$C62)*10))","v":{"$error":"#VALUE!"}},null,{"$f":"IF(AND(OR(Calculations!$E$2=\"Orkney Health Board\",Calculations!$E$2=\"Orkney Islands Local Authority\"),$F62=1),0,IF(AND(OR(Calculations!$E$2=\"Shetland Health Board\",Calculations!$E$2=\"Western Isles Health Board\",Calculations!$E$2=\"Shetland Islands Local Authority\",Calculations!$E$2=\"Eilean Siar Local Authority\"),OR($F62=1,$F62=5)),0,new_ci(VALUE(LEFT(Options!$B$14,2)),$C62,$E62,$F62,2016,$I62/10,1,$H62/10,$G62*$H62/10,RateRatios_airpollution!$E62)*10))","v":{"$error":"#VALUE!"}},{"$f":"IF(AND(OR(Calculations!$E$2=\"Orkney Health Board\",Calculations!$E$2=\"Orkney Islands Local Authority\"),$F62=1),0,IF(AND(OR(Calculations!$E$2=\"Shetland Health Board\",Calculations!$E$2=\"Western Isles Health Board\",Calculations!$E$2=\"Shetland Islands Local Authority\",Calculations!$E$2=\"Eilean Siar Local Authority\"),OR($F62=1,$F62=5)),0,new_ci(VALUE(LEFT(Options!$B$14,2)),$C62,$E62,$F62,2016,$I62/10+$J62/10,1,$H62/10,$G62*$H62/10,RateRatios_airpollution!$E62)*10))","v":{"$error":"#VALUE!"}},{"$f":"IF(AND(OR(Calculations!$E$2=\"Orkney Health Board\",Calculations!$E$2=\"Orkney Islands Local Authority\"),$F62=1),0,IF(AND(OR(Calculations!$E$2=\"Shetland Health Board\",Calculations!$E$2=\"Western Isles Health Board\",Calculations!$E$2=\"Shetland Islands Local Authority\",Calculations!$E$2=\"Eilean Siar Local Authority\"),OR($F62=1,$F62=5)),0,new_yllv2(VALUE(LEFT(Options!$B$14,2)),$C62,$D62,$E62,$F62,2016,$I62/10,1,$H62/10,$G62*$H62/10,RateRatios_airpollution!$E62)*10))","v":{"$error":"#VALUE!"}},{"$f":"IF(AND(OR(Calculations!$E$2=\"Orkney Health Board\",Calculations!$E$2=\"Orkney Islands Local Authority\"),$F62=1),0,IF(AND(OR(Calculations!$E$2=\"Shetland Health Board\",Calculations!$E$2=\"Western Isles Health Board\",Calculations!$E$2=\"Shetland Islands Local Authority\",Calculations!$E$2=\"Eilean Siar Local Authority\"),OR($F62=1,$F62=5)),0,new_yllv2(VALUE(LEFT(Options!$B$14,2)),$C62,$D62,$E62,$F62,2016,$I62/10+$J62/10,1,$H62/10,$G62*$H62/10,RateRatios_airpollution!$E62)*10))","v":{"$error":"#VALUE!"}},{"$f":"IF(AND(OR(Calculations!$E$2=\"Orkney Health Board\",Calculations!$E$2=\"Orkney Islands Local Authority\"),$F62=1),0,IF(AND(OR(Calculations!$E$2=\"Shetland Health Board\",Calculations!$E$2=\"Western Isles Health Board\",Calculations!$E$2=\"Shetland Islands Local Authority\",Calculations!$E$2=\"Eilean Siar Local Authority\"),OR($F62=1,$F62=5)),0,hosp_count(VALUE(LEFT(Options!$B$14,2)),$C62,$E62,$F62,2016,$I62/10,1,$H62/10,$G62*$H62/10, RateRatios_airpollution!$F62, RateRatios_airpollution!$E62)*10))","v":{"$error":"#VALUE!"}},{"$f":"IF(AND(OR(Calculations!$E$2=\"Orkney Health Board\",Calculations!$E$2=\"Orkney Islands Local Authority\"),$F62=1),0,IF(AND(OR(Calculations!$E$2=\"Shetland Health Board\",Calculations!$E$2=\"Western Isles Health Board\",Calculations!$E$2=\"Shetland Islands Local Authority\",Calculations!$E$2=\"Eilean Siar Local Authority\"),OR($F62=1,$F62=5)),0,hosp_count(VALUE(LEFT(Options!$B$14,2)),$C62,$E62,$F62,2016,$I62/10+$J62/10,1,$H62/10,$G62*$H62/10, RateRatios_airpollution!$F62, RateRatios_airpollution!$E62)*10))","v":{"$error":"#VALUE!"}},{"$f":"IF(AND(OR(Calculations!$E$2=\"Orkney Health Board\",Calculations!$E$2=\"Orkney Islands Local Authority\"),$F62=1),0,IF(AND(OR(Calculations!$E$2=\"Shetland Health Board\",Calculations!$E$2=\"Western Isles Health Board\",Calculations!$E$2=\"Shetland Islands Local Authority\",Calculations!$E$2=\"Eilean Siar Local Authority\"),OR($F62=1,$F62=5)),0,prem_mort(VALUE(LEFT(Options!$B$14,2)),$C62,$E62,$F62,2016,$I62/10,1,$H62/10,$G62*$H62/10,RateRatios_airpollution!$E62)*10))","v":{"$error":"#VALUE!"}},{"$f":"IF(AND(OR(Calculations!$E$2=\"Orkney Health Board\",Calculations!$E$2=\"Orkney Islands Local Authority\"),$F62=1),0,IF(AND(OR(Calculations!$E$2=\"Shetland Health Board\",Calculations!$E$2=\"Western Isles Health Board\",Calculations!$E$2=\"Shetland Islands Local Authority\",Calculations!$E$2=\"Eilean Siar Local Authority\"),OR($F62=1,$F62=5)),0,prem_mort(VALUE(LEFT(Options!$B$14,2)),$C62,$E62,$F62,2016,$I62/10+$J62/10,1,$H62/10,$G62*$H62/10,RateRatios_airpollution!$E62)*10))","v":{"$error":"#VALUE!"}},{"$error":"#VALUE!"},{"$error":"#VALUE!"},{"$error":"#VALUE!"},{"$error":"#VALUE!"},{"$error":"#VALUE!"},{"$error":"#VALUE!"},{"$error":"#VALUE!"},{"$error":"#VALUE!"},{"$error":"#VALUE!"},{"$error":"#VALUE!"},{"$error":"#VALUE!"},{"$error":"#VALUE!"},{"$error":"#VALUE!"},{"$error":"#VALUE!"},{"$error":"#VALUE!"},{"$error":"#VALUE!"},{"$error":"#VALUE!"},{"$error":"#VALUE!"},{"$error":"#VALUE!"},{"$error":"#VALUE!"},{"$error":"#VALUE!"},{"$error":"#VALUE!"},{"$error":"#VALUE!"},{"$error":"#VALUE!"},6600]
["SIMD Q1 (most deprived)","Female 16-19",17.570053000000001,81.100049999999996,"female",1,1,{"$f":"HLOOKUP(Calculations!$E$2,'Population 2016'!$C$3:$BC$249,'Population 2016'!BD63,FALSE)","v":24142},0,{"$f":"HLOOKUP(Calculations!$E$2,Pop2016_in_settlements!$C$3:$BC$249,Pop2016_in_settlements!$BD63,FALSE)","v":17676},{"$f":"IF(AND(OR(Calculations!$E$2=\"Orkney Health Board\",Calculations!$E$2=\"Orkney Islands Local Authority\"),$F63=1),0,IF(AND(OR(Calculations!$E$2=\"Shetland Health Board\",Calculations!$E$2=\"Western Isles Health Board\",Calculations!$E$2=\"Shetland Islands Local Authority\",Calculations!$E$2=\"Eilean Siar Local Authority\"),OR($F63=1,$F63=5)),0,new_ci(VALUE(LEFT(Options!$B$14,2)),$C63,$E63,$F63,2016,$I63/10,1,$H63/10,$G63*$H63/10,RateRatios_accidents!$B$5)*10))","v":7.6777040230000004},{"$f":"IF(AND(OR(Calculations!$E$2=\"Orkney Health Board\",Calculations!$E$2=\"Orkney Islands Local Authority\"),$F63=1),0,IF(AND(OR(Calculations!$E$2=\"Shetland Health Board\",Calculations!$E$2=\"Western Isles Health Board\",Calculations!$E$2=\"Shetland Islands Local Authority\",Calculations!$E$2=\"Eilean Siar Local Authority\"),OR($F63=1,$F63=5)),0,new_ci(VALUE(LEFT(Options!$B$14,2)),$C63,$E63,$F63,2016,$I63/10+$J63/10,1,$H63/10,$G63*$H63/10,RateRatios_accidents!$B$5)*10))","v":7.6754574040000003},{"$f":"IF(AND(OR(Calculations!$E$2=\"Orkney Health Board\",Calculations!$E$2=\"Orkney Islands Local Authority\"),$F63=1),0,IF(AND(OR(Calculations!$E$2=\"Shetland Health Board\",Calculations!$E$2=\"Western Isles Health Board\",Calculations!$E$2=\"Shetland Islands Local Authority\",Calculations!$E$2=\"Eilean Siar Local Authority\"),OR($F63=1,$F63=5)),0,new_yllv2(VALUE(LEFT(Options!$B$14,2)),$C63,$D63,$E63,$F63,2016,$I63/10,1,$H63/10,$G63*$H63/10,RateRatios_accidents!$B$5)*10))","v":480.08680952500004},{"$f":"IF(AND(OR(Calculations!$E$2=\"Orkney Health Board\",Calculations!$E$2=\"Orkney Islands Local Authority\"),$F63=1),0,IF(AND(OR(Calculations!$E$2=\"Shetland Health Board\",Calculations!$E$2=\"Western Isles Health Board\",Calculations!$E$2=\"Shetland Islands Local Authority\",Calculations!$E$2=\"Eilean Siar Local Authority\"),OR($F63=1,$F63=5)),0,new_yllv2(VALUE(LEFT(Options!$B$14,2)),$C63,$D63,$E63,$F63,2016,$I63/10+$J63/10,1,$H63/10,$G63*$H63/10,RateRatios_accidents!$B$5)*10))","v":479.946328446},{"$f":"IF(AND(OR(Calculations!$E$2=\"Orkney Health Board\",Calculations!$E$2=\"Orkney Islands Local Authority\"),$F63=1),0,IF(AND(OR(Calculations!$E$2=\"Shetland Health Board\",Calculations!$E$2=\"Western Isles Health Board\",Calculations!$E$2=\"Shetland Islands Local Authority\",Calculations!$E$2=\"Eilean Siar Local Authority\"),OR($F63=1,$F63=5)),0,hosp_count(VALUE(LEFT(Options!$B$14,2)),$C63,$E63,$F63,2016,$I63/10,1,$H63/10,$G63*$H63/10, RateRatios_accidents!$B$4, RateRatios_accidents!$B$5)*10))","v":3441.2180067129998},{"$f":"IF(AND(OR(Calculations!$E$2=\"Orkney Health Board\",Calculations!$E$2=\"Orkney Islands Local Authority\"),$F63=1),0,IF(AND(OR(Calculations!$E$2=\"Shetland Health Board\",Calculations!$E$2=\"Western Isles Health Board\",Calculations!$E$2=\"Shetland Islands Local Authority\",Calculations!$E$2=\"Eilean Siar Local Authority\"),OR($F63=1,$F63=5)),0,hosp_count(VALUE(LEFT(Options!$B$14,2)),$C63,$E63,$F63,2016,$I63/10+$J63/10,1,$H63/10,$G63*$H63/10, RateRatios_accidents!$B$4, RateRatios_accidents!$B$5)*10))","v":3440.2101865949999},{"$f":"IF(AND(OR(Calculations!$E$2=\"Orkney Health Board\",Calculations!$E$2=\"Orkney Islands Local Authority\"),$F63=1),0,IF(AND(OR(Calculations!$E$2=\"Shetland Health Board\",Calculations!$E$2=\"Western Isles Health Board\",Calculations!$E$2=\"Shetland Islands Local Authority\",Calculations!$E$2=\"Eilean Siar Local Authority\"),OR($F63=1,$F63=5)),0,prem_mort(VALUE(LEFT(Options!$B$14,2)),$C63,$E63,$F63,2016,$I63/10,1,$H63/10,$G63*$H63/10,RateRatios_accidents!$B$5)*10))","v":7.6777040230000004},{"$f":"IF(AND(OR(Calculations!$E$2=\"Orkney Health Board\",Calculations!$E$2=\"Orkney Islands Local Authority\"),$F63=1),0,IF(AND(OR(Calculations!$E$2=\"Shetland Health Board\",Calculations!$E$2=\"Western Isles Health Board\",Calculations!$E$2=\"Shetland Islands Local Authority\",Calculations!$E$2=\"Eilean Siar Local Authority\"),OR($F63=1,$F63=5)),0,prem_mort(VALUE(LEFT(Options!$B$14,2)),$C63,$E63,$F63,2016,$I63/10+$J63/10,1,$H63/10,$G63*$H63/10,RateRatios_accidents!$B$5)*10))","v":7.6754574040000003},null,{"$f":"IF(AND(OR(Calculations!$E$2=\"Orkney Health Board\",Calculations!$E$2=\"Orkney Islands Local Authority\"),$F63=1),0,IF(AND(OR(Calculations!$E$2=\"Shetland Health Board\",Calculations!$E$2=\"Western Isles Health Board\",Calculations!$E$2=\"Shetland Islands Local Authority\",Calculations!$E$2=\"Eilean Siar Local Authority\"),OR($F63=1,$F63=5)),0,new_ci(VALUE(LEFT(Options!$B$14,2)),$C63,$E63,$F63,2016,$I63/10,1,$H63/10,$G63*$H63/10,RateRatios_airpollution!$C63)*10))","v":7.6777040230000004},{"$f":"IF(AND(OR(Calculations!$E$2=\"Orkney Health Board\",Calculations!$E$2=\"Orkney Islands Local Authority\"),$F63=1),0,IF(AND(OR(Calculations!$E$2=\"Shetland Health Board\",Calculations!$E$2=\"Western Isles Health Board\",Calculations!$E$2=\"Shetland Islands Local Authority\",Calculations!$E$2=\"Eilean Siar Local Authority\"),OR($F63=1,$F63=5)),0,new_ci(VALUE(LEFT(Options!$B$14,2)),$C63,$E63,$F63,2016,$I63/10+$J63/10,1,$H63/10,$G63*$H63/10,RateRatios_airpollution!$C63)*10))","v":7.6775714530000005},{"$f":"IF(AND(OR(Calculations!$E$2=\"Orkney Health Board\",Calculations!$E$2=\"Orkney Islands Local Authority\"),$F63=1),0,IF(AND(OR(Calculations!$E$2=\"Shetland Health Board\",Calculations!$E$2=\"Western Isles Health Board\",Calculations!$E$2=\"Shetland Islands Local Authority\",Calculations!$E$2=\"Eilean Siar Local Authority\"),OR($F63=1,$F63=5)),0,new_yllv2(VALUE(LEFT(Options!$B$14,2)),$C63,$D63,$E63,$F63,2016,$I63/10,1,$H63/10,$G63*$H63/10,RateRatios_airpollution!$C63)*10))","v":480.08680952500004},{"$f":"IF(AND(OR(Calculations!$E$2=\"Orkney Health Board\",Calculations!$E$2=\"Orkney Islands Local Authority\"),$F63=1),0,IF(AND(OR(Calculations!$E$2=\"Shetland Health Board\",Calculations!$E$2=\"Western Isles Health Board\",Calculations!$E$2=\"Shetland Islands Local Authority\",Calculations!$E$2=\"Eilean Siar Local Authority\"),OR($F63=1,$F63=5)),0,new_yllv2(VALUE(LEFT(Options!$B$14,2)),$C63,$D63,$E63,$F63,2016,$I63/10+$J63/10,1,$H63/10,$G63*$H63/10,RateRatios_airpollution!$C63)*10))","v":480.07851992299999},{"$f":"IF(AND(OR(Calculations!$E$2=\"Orkney Health Board\",Calculations!$E$2=\"Orkney Islands Local Authority\"),$F63=1),0,IF(AND(OR(Calculations!$E$2=\"Shetland Health Board\",Calculations!$E$2=\"Western Isles Health Board\",Calculations!$E$2=\"Shetland Islands Local Authority\",Calculations!$E$2=\"Eilean Siar Local Authority\"),OR($F63=1,$F63=5)),0,hosp_count(VALUE(LEFT(Options!$B$14,2)),$C63,$E63,$F63,2016,$I63/10,1,$H63/10,$G63*$H63/10, RateRatios_airpollution!$D63, RateRatios_airpollution!$C63)*10))","v":3441.2180067129998},{"$f":"IF(AND(OR(Calculations!$E$2=\"Orkney Health Board\",Calculations!$E$2=\"Orkney Islands Local Authority\"),$F63=1),0,IF(AND(OR(Calculations!$E$2=\"Shetland Health Board\",Calculations!$E$2=\"Western Isles Health Board\",Calculations!$E$2=\"Shetland Islands Local Authority\",Calculations!$E$2=\"Eilean Siar Local Authority\"),OR($F63=1,$F63=5)),0,hosp_count(VALUE(LEFT(Options!$B$14,2)),$C63,$E63,$F63,2016,$I63/10+$J63/10,1,$H63/10,$G63*$H63/10, RateRatios_airpollution!$D63, RateRatios_airpollution!$C63)*10))","v":3441.1061388450003},{"$f":"IF(AND(OR(Calculations!$E$2=\"Orkney Health Board\",Calculations!$E$2=\"Orkney Islands Local Authority\"),$F63=1),0,IF(AND(OR(Calculations!$E$2=\"Shetland Health Board\",Calculations!$E$2=\"Western Isles Health Board\",Calculations!$E$2=\"Shetland Islands Local Authority\",Calculations!$E$2=\"Eilean Siar Local Authority\"),OR($F63=1,$F63=5)),0,prem_mort(VALUE(LEFT(Options!$B$14,2)),$C63,$E63,$F63,2016,$I63/10,1,$H63/10,$G63*$H63/10,RateRatios_airpollution!$C63)*10))","v":7.6777040230000004},{"$f":"IF(AND(OR(Calculations!$E$2=\"Orkney Health Board\",Calculations!$E$2=\"Orkney Islands Local Authority\"),$F63=1),0,IF(AND(OR(Calculations!$E$2=\"Shetland Health Board\",Calculations!$E$2=\"Western Isles Health Board\",Calculations!$E$2=\"Shetland Islands Local Authority\",Calculations!$E$2=\"Eilean Siar Local Authority\"),OR($F63=1,$F63=5)),0,prem_mort(VALUE(LEFT(Options!$B$14,2)),$C63,$E63,$F63,2016,$I63/10+$J63/10,1,$H63/10,$G63*$H63/10,RateRatios_airpollution!$C63)*10))","v":7.6775714530000005},null,{"$f":"IF(AND(OR(Calculations!$E$2=\"Orkney Health Board\",Calculations!$E$2=\"Orkney Islands Local Authority\"),$F63=1),0,IF(AND(OR(Calculations!$E$2=\"Shetland Health Board\",Calculations!$E$2=\"Western Isles Health Board\",Calculations!$E$2=\"Shetland Islands Local Authority\",Calculations!$E$2=\"Eilean Siar Local Authority\"),OR($F63=1,$F63=5)),0,new_ci(VALUE(LEFT(Options!$B$14,2)),$C63,$E63,$F63,2016,$I63/10,1,$H63/10,$G63*$H63/10,RateRatios_airpollution!$E63)*10))","v":7.6777040230000004},{"$f":"IF(AND(OR(Calculations!$E$2=\"Orkney Health Board\",Calculations!$E$2=\"Orkney Islands Local Authority\"),$F63=1),0,IF(AND(OR(Calculations!$E$2=\"Shetland Health Board\",Calculations!$E$2=\"Western Isles Health Board\",Calculations!$E$2=\"Shetland Islands Local Authority\",Calculations!$E$2=\"Eilean Siar Local Authority\"),OR($F63=1,$F63=5)),0,new_ci(VALUE(LEFT(Options!$B$14,2)),$C63,$E63,$F63,2016,$I63/10+$J63/10,1,$H63/10,$G63*$H63/10,RateRatios_airpollution!$E63)*10))","v":7.6776421569999993},{"$f":"IF(AND(OR(Calculations!$E$2=\"Orkney Health Board\",Calculations!$E$2=\"Orkney Islands Local Authority\"),$F63=1),0,IF(AND(OR(Calculations!$E$2=\"Shetland Health Board\",Calculations!$E$2=\"Western Isles Health Board\",Calculations!$E$2=\"Shetland Islands Local Authority\",Calculations!$E$2=\"Eilean Siar Local Authority\"),OR($F63=1,$F63=5)),0,new_yllv2(VALUE(LEFT(Options!$B$14,2)),$C63,$D63,$E63,$F63,2016,$I63/10,1,$H63/10,$G63*$H63/10,RateRatios_airpollution!$E63)*10))","v":480.08680952500004},{"$f":"IF(AND(OR(Calculations!$E$2=\"Orkney Health Board\",Calculations!$E$2=\"Orkney Islands Local Authority\"),$F63=1),0,IF(AND(OR(Calculations!$E$2=\"Shetland Health Board\",Calculations!$E$2=\"Western Isles Health Board\",Calculations!$E$2=\"Shetland Islands Local Authority\",Calculations!$E$2=\"Eilean Siar Local Authority\"),OR($F63=1,$F63=5)),0,new_yllv2(VALUE(LEFT(Options!$B$14,2)),$C63,$D63,$E63,$F63,2016,$I63/10+$J63/10,1,$H63/10,$G63*$H63/10,RateRatios_airpollution!$E63)*10))","v":480.08294104399999},{"$f":"IF(AND(OR(Calculations!$E$2=\"Orkney Health Board\",Calculations!$E$2=\"Orkney Islands Local Authority\"),$F63=1),0,IF(AND(OR(Calculations!$E$2=\"Shetland Health Board\",Calculations!$E$2=\"Western Isles Health Board\",Calculations!$E$2=\"Shetland Islands Local Authority\",Calculations!$E$2=\"Eilean Siar Local Authority\"),OR($F63=1,$F63=5)),0,hosp_count(VALUE(LEFT(Options!$B$14,2)),$C63,$E63,$F63,2016,$I63/10,1,$H63/10,$G63*$H63/10, RateRatios_airpollution!$F63, RateRatios_airpollution!$E63)*10))","v":3441.2180067129998},{"$f":"IF(AND(OR(Calculations!$E$2=\"Orkney Health Board\",Calculations!$E$2=\"Orkney Islands Local Authority\"),$F63=1),0,IF(AND(OR(Calculations!$E$2=\"Shetland Health Board\",Calculations!$E$2=\"Western Isles Health Board\",Calculations!$E$2=\"Shetland Islands Local Authority\",Calculations!$E$2=\"Eilean Siar Local Authority\"),OR($F63=1,$F63=5)),0,hosp_count(VALUE(LEFT(Options!$B$14,2)),$C63,$E63,$F63,2016,$I63/10+$J63/10,1,$H63/10,$G63*$H63/10, RateRatios_airpollution!$F63, RateRatios_airpollution!$E63)*10))","v":3441.2180067129998},{"$f":"IF(AND(OR(Calculations!$E$2=\"Orkney Health Board\",Calculations!$E$2=\"Orkney Islands Local Authority\"),$F63=1),0,IF(AND(OR(Calculations!$E$2=\"Shetland Health Board\",Calculations!$E$2=\"Western Isles Health Board\",Calculations!$E$2=\"Shetland Islands Local Authority\",Calculations!$E$2=\"Eilean Siar Local Authority\"),OR($F63=1,$F63=5)),0,prem_mort(VALUE(LEFT(Options!$B$14,2)),$C63,$E63,$F63,2016,$I63/10,1,$H63/10,$G63*$H63/10,RateRatios_airpollution!$E63)*10))","v":7.6777040230000004},{"$f":"IF(AND(OR(Calculations!$E$2=\"Orkney Health Board\",Calculations!$E$2=\"Orkney Islands Local Authority\"),$F63=1),0,IF(AND(OR(Calculations!$E$2=\"Shetland Health Board\",Calculations!$E$2=\"Western Isles Health Board\",Calculations!$E$2=\"Shetland Islands Local Authority\",Calculations!$E$2=\"Eilean Siar Local Authority\"),OR($F63=1,$F63=5)),0,prem_mort(VALUE(LEFT(Options!$B$14,2)),$C63,$E63,$F63,2016,$I63/10+$J63/10,1,$H63/10,$G63*$H63/10,RateRatios_airpollution!$E63)*10))","v":7.6776421569999993},7.6777040230000004,7.6752629679999993,480.08680952500004,479.93417036299991,3441.2180067129998,{"$f":"AO63-((AO63-P63)+(AO63-Y63)+(AO63-AH63))","v":3440.0983187270003},7.6777040230000004,{"$f":"AQ63-((AQ63-R63)+(AQ63-AA63)+(AQ63-AJ63))","v":7.6752629679999993},{"$f":"AK63*100000/$H63","v":31.802269998343139},{"$f":"AL63*100000/$H63","v":31.792158760666055},1988.5958475892635,1987.9635919269319,14254.071769998343,14249.433844449508,31.802269998343139,31.792158760666055,{"$f":"AS63*$BI63","v":139929.98799270982},139885.49854693064,8749821.7293927595,8747039.8044785,62717915.787992708,62697508.915577836,139929.98799270982,{"$f":"AZ63*$BI63","v":139885.49854693064},4400]
[null,"Female 20-24",22.077057,81.667060000000006,"female",1,1,{"$f":"HLOOKUP(Calculations!$E$2,'Population 2016'!$C$3:$BC$249,'Population 2016'!BD64,FALSE)","v":37624},0,{"$f":"HLOOKUP(Calculations!$E$2,Pop2016_in_settlements!$C$3:$BC$249,Pop2016_in_settlements!$BD64,FALSE)","v":27907},{"$f":"IF(AND(OR(Calculations!$E$2=\"Orkney Health Board\",Calculations!$E$2=\"Orkney Islands Local Authority\"),$F64=1),0,IF(AND(OR(Calculations!$E$2=\"Shetland Health Board\",Calculations!$E$2=\"Western Isles Health Board\",Calculations!$E$2=\"Shetland Islands Local Authority\",Calculations!$E$2=\"Eilean Siar Local Authority\"),OR($F64=1,$F64=5)),0,new_ci(VALUE(LEFT(Options!$B$14,2)),$C64,$E64,$F64,2016,$I64/10,1,$H64/10,$G64*$H64/10,RateRatios_accidents!$B$5)*10))","v":17.553891063999998},{"$f":"IF(AND(OR(Calculations!$E$2=\"Orkney Health Board\",Calculations!$E$2=\"Orkney Islands Local Authority\"),$F64=1),0,IF(AND(OR(Calculations!$E$2=\"Shetland Health Board\",Calculations!$E$2=\"Western Isles Health Board\",Calculations!$E$2=\"Shetland Islands Local Authority\",Calculations!$E$2=\"Eilean Siar Local Authority\"),OR($F64=1,$F64=5)),0,new_ci(VALUE(LEFT(Options!$B$14,2)),$C64,$E64,$F64,2016,$I64/10+$J64/10,1,$H64/10,$G64*$H64/10,RateRatios_accidents!$B$5)*10))","v":17.548683618000002},{"$f":"IF(AND(OR(Calculations!$E$2=\"Orkney Health Board\",Calculations!$E$2=\"Orkney Islands Local Authority\"),$F64=1),0,IF(AND(OR(Calculations!$E$2=\"Shetland Health Board\",Calculations!$E$2=\"Western Isles Health Board\",Calculations!$E$2=\"Shetland Islands Local Authority\",Calculations!$E$2=\"Eilean Siar Local Authority\"),OR($F64=1,$F64=5)),0,new_yllv2(VALUE(LEFT(Options!$B$14,2)),$C64,$D64,$E64,$F64,2016,$I64/10,1,$H64/10,$G64*$H64/10,RateRatios_accidents!$B$5)*10))","v":1028.4825301010001},{"$f":"IF(AND(OR(Calculations!$E$2=\"Orkney Health Board\",Calculations!$E$2=\"Orkney Islands Local Authority\"),$F64=1),0,IF(AND(OR(Calculations!$E$2=\"Shetland Health Board\",Calculations!$E$2=\"Western Isles Health Board\",Calculations!$E$2=\"Shetland Islands Local Authority\",Calculations!$E$2=\"Eilean Siar Local Authority\"),OR($F64=1,$F64=5)),0,new_yllv2(VALUE(LEFT(Options!$B$14,2)),$C64,$D64,$E64,$F64,2016,$I64/10+$J64/10,1,$H64/10,$G64*$H64/10,RateRatios_accidents!$B$5)*10))","v":1028.177425825},{"$f":"IF(AND(OR(Calculations!$E$2=\"Orkney Health Board\",Calculations!$E$2=\"Orkney Islands Local Authority\"),$F64=1),0,IF(AND(OR(Calculations!$E$2=\"Shetland Health Board\",Calculations!$E$2=\"Western Isles Health Board\",Calculations!$E$2=\"Shetland Islands Local Authority\",Calculations!$E$2=\"Eilean Siar Local Authority\"),OR($F64=1,$F64=5)),0,hosp_count(VALUE(LEFT(Options!$B$14,2)),$C64,$E64,$F64,2016,$I64/10,1,$H64/10,$G64*$H64/10, RateRatios_accidents!$B$4, RateRatios_accidents!$B$5)*10))","v":6006.7410350919999},{"$f":"IF(AND(OR(Calculations!$E$2=\"Orkney Health Board\",Calculations!$E$2=\"Orkney Islands Local Authority\"),$F64=1),0,IF(AND(OR(Calculations!$E$2=\"Shetland Health Board\",Calculations!$E$2=\"Western Isles Health Board\",Calculations!$E$2=\"Shetland Islands Local Authority\",Calculations!$E$2=\"Eilean Siar Local Authority\"),OR($F64=1,$F64=5)),0,hosp_count(VALUE(LEFT(Options!$B$14,2)),$C64,$E64,$F64,2016,$I64/10+$J64/10,1,$H64/10,$G64*$H64/10, RateRatios_accidents!$B$4, RateRatios_accidents!$B$5)*10))","v":6004.9588745370002},{"$f":"IF(AND(OR(Calculations!$E$2=\"Orkney Health Board\",Calculations!$E$2=\"Orkney Islands Local Authority\"),$F64=1),0,IF(AND(OR(Calculations!$E$2=\"Shetland Health Board\",Calculations!$E$2=\"Western Isles Health Board\",Calculations!$E$2=\"Shetland Islands Local Authority\",Calculations!$E$2=\"Eilean Siar Local Authority\"),OR($F64=1,$F64=5)),0,prem_mort(VALUE(LEFT(Options!$B$14,2)),$C64,$E64,$F64,2016,$I64/10,1,$H64/10,$G64*$H64/10,RateRatios_accidents!$B$5)*10))","v":17.553891063999998},{"$f":"IF(AND(OR(Calculations!$E$2=\"Orkney Health Board\",Calculations!$E$2=\"Orkney Islands Local Authority\"),$F64=1),0,IF(AND(OR(Calculations!$E$2=\"Shetland Health Board\",Calculations!$E$2=\"Western Isles Health Board\",Calculations!$E$2=\"Shetland Islands Local Authority\",Calculations!$E$2=\"Eilean Siar Local Authority\"),OR($F64=1,$F64=5)),0,prem_mort(VALUE(LEFT(Options!$B$14,2)),$C64,$E64,$F64,2016,$I64/10+$J64/10,1,$H64/10,$G64*$H64/10,RateRatios_accidents!$B$5)*10))","v":17.548683618000002},null,{"$f":"IF(AND(OR(Calculations!$E$2=\"Orkney Health Board\",Calculations!$E$2=\"Orkney Islands Local Authority\"),$F64=1),0,IF(AND(OR(Calculations!$E$2=\"Shetland Health Board\",Calculations!$E$2=\"Western Isles Health Board\",Calculations!$E$2=\"Shetland Islands Local Authority\",Calculations!$E$2=\"Eilean Siar Local Authority\"),OR($F64=1,$F64=5)),0,new_ci(VALUE(LEFT(Options!$B$14,2)),$C64,$E64,$F64,2016,$I64/10,1,$H64/10,$G64*$H64/10,RateRatios_airpollution!$C64)*10))","v":17.553891063999998},{"$f":"IF(AND(OR(Calculations!$E$2=\"Orkney Health Board\",Calculations!$E$2=\"Orkney Islands Local Authority\"),$F64=1),0,IF(AND(OR(Calculations!$E$2=\"Shetland Health Board\",Calculations!$E$2=\"Western Isles Health Board\",Calculations!$E$2=\"Shetland Islands Local Authority\",Calculations!$E$2=\"Eilean Siar Local Authority\"),OR($F64=1,$F64=5)),0,new_ci(VALUE(LEFT(Options!$B$14,2)),$C64,$E64,$F64,2016,$I64/10+$J64/10,1,$H64/10,$G64*$H64/10,RateRatios_airpollution!$C64)*10))","v":17.553558971000001},{"$f":"IF(AND(OR(Calculations!$E$2=\"Orkney Health Board\",Calculations!$E$2=\"Orkney Islands Local Authority\"),$F64=1),0,IF(AND(OR(Calculations!$E$2=\"Shetland Health Board\",Calculations!$E$2=\"Western Isles Health Board\",Calculations!$E$2=\"Shetland Islands Local Authority\",Calculations!$E$2=\"Eilean Siar Local Authority\"),OR($F64=1,$F64=5)),0,new_yllv2(VALUE(LEFT(Options!$B$14,2)),$C64,$D64,$E64,$F64,2016,$I64/10,1,$H64/10,$G64*$H64/10,RateRatios_airpollution!$C64)*10))","v":1028.4825301010001},{"$f":"IF(AND(OR(Calculations!$E$2=\"Orkney Health Board\",Calculations!$E$2=\"Orkney Islands Local Authority\"),$F64=1),0,IF(AND(OR(Calculations!$E$2=\"Shetland Health Board\",Calculations!$E$2=\"Western Isles Health Board\",Calculations!$E$2=\"Shetland Islands Local Authority\",Calculations!$E$2=\"Eilean Siar Local Authority\"),OR($F64=1,$F64=5)),0,new_yllv2(VALUE(LEFT(Options!$B$14,2)),$C64,$D64,$E64,$F64,2016,$I64/10+$J64/10,1,$H64/10,$G64*$H64/10,RateRatios_airpollution!$C64)*10))","v":1028.463072772},{"$f":"IF(AND(OR(Calculations!$E$2=\"Orkney Health Board\",Calculations!$E$2=\"Orkney Islands Local Authority\"),$F64=1),0,IF(AND(OR(Calculations!$E$2=\"Shetland Health Board\",Calculations!$E$2=\"Western Isles Health Board\",Calculations!$E$2=\"Shetland Islands Local Authority\",Calculations!$E$2=\"Eilean Siar Local Authority\"),OR($F64=1,$F64=5)),0,hosp_count(VALUE(LEFT(Options!$B$14,2)),$C64,$E64,$F64,2016,$I64/10,1,$H64/10,$G64*$H64/10, RateRatios_airpollution!$D64, RateRatios_airpollution!$C64)*10))","v":6006.7410350919999},{"$f":"IF(AND(OR(Calculations!$E$2=\"Orkney Health Board\",Calculations!$E$2=\"Orkney Islands Local Authority\"),$F64=1),0,IF(AND(OR(Calculations!$E$2=\"Shetland Health Board\",Calculations!$E$2=\"Western Isles Health Board\",Calculations!$E$2=\"Shetland Islands Local Authority\",Calculations!$E$2=\"Eilean Siar Local Authority\"),OR($F64=1,$F64=5)),0,hosp_count(VALUE(LEFT(Options!$B$14,2)),$C64,$E64,$F64,2016,$I64/10+$J64/10,1,$H64/10,$G64*$H64/10, RateRatios_airpollution!$D64, RateRatios_airpollution!$C64)*10))","v":6006.527660961},{"$f":"IF(AND(OR(Calculations!$E$2=\"Orkney Health Board\",Calculations!$E$2=\"Orkney Islands Local Authority\"),$F64=1),0,IF(AND(OR(Calculations!$E$2=\"Shetland Health Board\",Calculations!$E$2=\"Western Isles Health Board\",Calculations!$E$2=\"Shetland Islands Local Authority\",Calculations!$E$2=\"Eilean Siar Local Authority\"),OR($F64=1,$F64=5)),0,prem_mort(VALUE(LEFT(Options!$B$14,2)),$C64,$E64,$F64,2016,$I64/10,1,$H64/10,$G64*$H64/10,RateRatios_airpollution!$C64)*10))","v":17.553891063999998},{"$f":"IF(AND(OR(Calculations!$E$2=\"Orkney Health Board\",Calculations!$E$2=\"Orkney Islands Local Authority\"),$F64=1),0,IF(AND(OR(Calculations!$E$2=\"Shetland Health Board\",Calculations!$E$2=\"Western Isles Health Board\",Calculations!$E$2=\"Shetland Islands Local Authority\",Calculations!$E$2=\"Eilean Siar Local Authority\"),OR($F64=1,$F64=5)),0,prem_mort(VALUE(LEFT(Options!$B$14,2)),$C64,$E64,$F64,2016,$I64/10+$J64/10,1,$H64/10,$G64*$H64/10,RateRatios_airpollution!$C64)*10))","v":17.553558971000001},null,{"$f":"IF(AND(OR(Calculations!$E$2=\"Orkney Health Board\",Calculations!$E$2=\"Orkney Islands Local Authority\"),$F64=1),0,IF(AND(OR(Calculations!$E$2=\"Shetland Health Board\",Calculations!$E$2=\"Western Isles Health Board\",Calculations!$E$2=\"Shetland Islands Local Authority\",Calculations!$E$2=\"Eilean Siar Local Authority\"),OR($F64=1,$F64=5)),0,new_ci(VALUE(LEFT(Options!$B$14,2)),$C64,$E64,$F64,2016,$I64/10,1,$H64/10,$G64*$H64/10,RateRatios_airpollution!$E64)*10))","v":17.553891063999998},{"$f":"IF(AND(OR(Calculations!$E$2=\"Orkney Health Board\",Calculations!$E$2=\"Orkney Islands Local Authority\"),$F64=1),0,IF(AND(OR(Calculations!$E$2=\"Shetland Health Board\",Calculations!$E$2=\"Western Isles Health Board\",Calculations!$E$2=\"Shetland Islands Local Authority\",Calculations!$E$2=\"Eilean Siar Local Authority\"),OR($F64=1,$F64=5)),0,new_ci(VALUE(LEFT(Options!$B$14,2)),$C64,$E64,$F64,2016,$I64/10+$J64/10,1,$H64/10,$G64*$H64/10,RateRatios_airpollution!$E64)*10))","v":17.553737576},{"$f":"IF(AND(OR(Calculations!$E$2=\"Orkney Health Board\",Calculations!$E$2=\"Orkney Islands Local Authority\"),$F64=1),0,IF(AND(OR(Calculations!$E$2=\"Shetland Health Board\",Calculations!$E$2=\"Western Isles Health Board\",Calculations!$E$2=\"Shetland Islands Local Authority\",Calculations!$E$2=\"Eilean Siar Local Authority\"),OR($F64=1,$F64=5)),0,new_yllv2(VALUE(LEFT(Options!$B$14,2)),$C64,$D64,$E64,$F64,2016,$I64/10,1,$H64/10,$G64*$H64/10,RateRatios_airpollution!$E64)*10))","v":1028.4825301010001},{"$f":"IF(AND(OR(Calculations!$E$2=\"Orkney Health Board\",Calculations!$E$2=\"Orkney Islands Local Authority\"),$F64=1),0,IF(AND(OR(Calculations!$E$2=\"Shetland Health Board\",Calculations!$E$2=\"Western Isles Health Board\",Calculations!$E$2=\"Shetland Islands Local Authority\",Calculations!$E$2=\"Eilean Siar Local Authority\"),OR($F64=1,$F64=5)),0,new_yllv2(VALUE(LEFT(Options!$B$14,2)),$C64,$D64,$E64,$F64,2016,$I64/10+$J64/10,1,$H64/10,$G64*$H64/10,RateRatios_airpollution!$E64)*10))","v":1028.4735372390001},{"$f":"IF(AND(OR(Calculations!$E$2=\"Orkney Health Board\",Calculations!$E$2=\"Orkney Islands Local Authority\"),$F64=1),0,IF(AND(OR(Calculations!$E$2=\"Shetland Health Board\",Calculations!$E$2=\"Western Isles Health Board\",Calculations!$E$2=\"Shetland Islands Local Authority\",Calculations!$E$2=\"Eilean Siar Local Authority\"),OR($F64=1,$F64=5)),0,hosp_count(VALUE(LEFT(Options!$B$14,2)),$C64,$E64,$F64,2016,$I64/10,1,$H64/10,$G64*$H64/10, RateRatios_airpollution!$F64, RateRatios_airpollution!$E64)*10))","v":6006.7410350919999},{"$f":"IF(AND(OR(Calculations!$E$2=\"Orkney Health Board\",Calculations!$E$2=\"Orkney Islands Local Authority\"),$F64=1),0,IF(AND(OR(Calculations!$E$2=\"Shetland Health Board\",Calculations!$E$2=\"Western Isles Health Board\",Calculations!$E$2=\"Shetland Islands Local Authority\",Calculations!$E$2=\"Eilean Siar Local Authority\"),OR($F64=1,$F64=5)),0,hosp_count(VALUE(LEFT(Options!$B$14,2)),$C64,$E64,$F64,2016,$I64/10+$J64/10,1,$H64/10,$G64*$H64/10, RateRatios_airpollution!$F64, RateRatios_airpollution!$E64)*10))","v":6006.7410350919999},{"$f":"IF(AND(OR(Calculations!$E$2=\"Orkney Health Board\",Calculations!$E$2=\"Orkney Islands Local Authority\"),$F64=1),0,IF(AND(OR(Calculations!$E$2=\"Shetland Health Board\",Calculations!$E$2=\"Western Isles Health Board\",Calculations!$E$2=\"Shetland Islands Local Authority\",Calculations!$E$2=\"Eilean Siar Local Authority\"),OR($F64=1,$F64=5)),0,prem_mort(VALUE(LEFT(Options!$B$14,2)),$C64,$E64,$F64,2016,$I64/10,1,$H64/10,$G64*$H64/10,RateRatios_airpollution!$E64)*10))","v":17.553891063999998},{"$f":"IF(AND(OR(Calculations!$E$2=\"Orkney Health Board\",Calculations!$E$2=\"Orkney Islands Local Authority\"),$F64=1),0,IF(AND(OR(Calculations!$E$2=\"Shetland Health Board\",Calculations!$E$2=\"Western Isles Health Board\",Calculations!$E$2=\"Shetland Islands Local Authority\",Calculations!$E$2=\"Eilean Siar Local Authority\"),OR($F64=1,$F64=5)),0,prem_mort(VALUE(LEFT(Options!$B$14,2)),$C64,$E64,$F64,2016,$I64/10+$J64/10,1,$H64/10,$G64*$H64/10,RateRatios_airpollution!$E64)*10))","v":17.553737576},17.553891063999998,17.548198037000006,1028.4825301010001,1028.148975634,6006.7410350919999,6004.7455004060002,17.553891063999998,17.548198037000006,{"$f":"AK64*100000/$H64","v":46.656099999999995},{"$f":"AL64*100000/$H64","v":46.64096862906657},{"$f":"AM64*100000/$H64","v":2733.5810389671487},{"$f":"AN64*100000/$H64","v":2732.6944919041039},{"$f":"AO64*100000/$H64","v":15965.18455},{"$f":"AP64*100000/$H64","v":15959.880662359134},{"$f":"AQ64*100000/$H64","v":46.656099999999995},{"$f":"AR64*100000/$H64","v":46.64096862906657},279936.59999999998,279845.81177439942,16401486.233802892,16396166.951424623,95791107.299999997,95759283.9741548,279936.59999999998,279845.81177439942,6000]
[null,"Female 25-29",26.975186999999998,81.645189999999999,"female",1,1,{"$f":"HLOOKUP(Calculations!$E$2,'Population 2016'!$C$3:$BC$249,'Population 2016'!BD65,FALSE)","v":45129},0,{"$f":"HLOOKUP(Calculations!$E$2,Pop2016_in_settlements!$C$3:$BC$249,Pop2016_in_settlements!$BD65,FALSE)","v":32950},{"$f":"IF(AND(OR(Calculations!$E$2=\"Orkney Health Board\",Calculations!$E$2=\"Orkney Islands Local Authority\"),$F65=1),0,IF(AND(OR(Calculations!$E$2=\"Shetland Health Board\",Calculations!$E$2=\"Western Isles Health Board\",Calculations!$E$2=\"Shetland Islands Local Authority\",Calculations!$E$2=\"Eilean Siar Local Authority\"),OR($F65=1,$F65=5)),0,new_ci(VALUE(LEFT(Options!$B$14,2)),$C65,$E65,$F65,2016,$I65/10,1,$H65/10,$G65*$H65/10,RateRatios_accidents!$B$5)*10))","v":31.933167576999999},{"$f":"IF(AND(OR(Calculations!$E$2=\"Orkney Health Board\",Calculations!$E$2=\"Orkney Islands Local Authority\"),$F65=1),0,IF(AND(OR(Calculations!$E$2=\"Shetland Health Board\",Calculations!$E$2=\"Western Isles Health Board\",Calculations!$E$2=\"Shetland Islands Local Authority\",Calculations!$E$2=\"Eilean Siar Local Authority\"),OR($F65=1,$F65=5)),0,new_ci(VALUE(LEFT(Options!$B$14,2)),$C65,$E65,$F65,2016,$I65/10+$J65/10,1,$H65/10,$G65*$H65/10,RateRatios_accidents!$B$5)*10))","v":31.923842727},{"$f":"IF(AND(OR(Calculations!$E$2=\"Orkney Health Board\",Calculations!$E$2=\"Orkney Islands Local Authority\"),$F65=1),0,IF(AND(OR(Calculations!$E$2=\"Shetland Health Board\",Calculations!$E$2=\"Western Isles Health Board\",Calculations!$E$2=\"Shetland Islands Local Authority\",Calculations!$E$2=\"Eilean Siar Local Authority\"),OR($F65=1,$F65=5)),0,new_yllv2(VALUE(LEFT(Options!$B$14,2)),$C65,$D65,$E65,$F65,2016,$I65/10,1,$H65/10,$G65*$H65/10,RateRatios_accidents!$B$5)*10))","v":1713.853199657},{"$f":"IF(AND(OR(Calculations!$E$2=\"Orkney Health Board\",Calculations!$E$2=\"Orkney Islands Local Authority\"),$F65=1),0,IF(AND(OR(Calculations!$E$2=\"Shetland Health Board\",Calculations!$E$2=\"Western Isles Health Board\",Calculations!$E$2=\"Shetland Islands Local Authority\",Calculations!$E$2=\"Eilean Siar Local Authority\"),OR($F65=1,$F65=5)),0,new_yllv2(VALUE(LEFT(Options!$B$14,2)),$C65,$D65,$E65,$F65,2016,$I65/10+$J65/10,1,$H65/10,$G65*$H65/10,RateRatios_accidents!$B$5)*10))","v":1713.3527349299998},{"$f":"IF(AND(OR(Calculations!$E$2=\"Orkney Health Board\",Calculations!$E$2=\"Orkney Islands Local Authority\"),$F65=1),0,IF(AND(OR(Calculations!$E$2=\"Shetland Health Board\",Calculations!$E$2=\"Western Isles Health Board\",Calculations!$E$2=\"Shetland Islands Local Authority\",Calculations!$E$2=\"Eilean Siar Local Authority\"),OR($F65=1,$F65=5)),0,hosp_count(VALUE(LEFT(Options!$B$14,2)),$C65,$E65,$F65,2016,$I65/10,1,$H65/10,$G65*$H65/10, RateRatios_accidents!$B$4, RateRatios_accidents!$B$5)*10))","v":8149.6199866330007},{"$f":"IF(AND(OR(Calculations!$E$2=\"Orkney Health Board\",Calculations!$E$2=\"Orkney Islands Local Authority\"),$F65=1),0,IF(AND(OR(Calculations!$E$2=\"Shetland Health Board\",Calculations!$E$2=\"Western Isles Health Board\",Calculations!$E$2=\"Shetland Islands Local Authority\",Calculations!$E$2=\"Eilean Siar Local Authority\"),OR($F65=1,$F65=5)),0,hosp_count(VALUE(LEFT(Options!$B$14,2)),$C65,$E65,$F65,2016,$I65/10+$J65/10,1,$H65/10,$G65*$H65/10, RateRatios_accidents!$B$4, RateRatios_accidents!$B$5)*10))","v":8147.2398763330002},{"$f":"IF(AND(OR(Calculations!$E$2=\"Orkney Health Board\",Calculations!$E$2=\"Orkney Islands Local Authority\"),$F65=1),0,IF(AND(OR(Calculations!$E$2=\"Shetland Health Board\",Calculations!$E$2=\"Western Isles Health Board\",Calculations!$E$2=\"Shetland Islands Local Authority\",Calculations!$E$2=\"Eilean Siar Local Authority\"),OR($F65=1,$F65=5)),0,prem_mort(VALUE(LEFT(Options!$B$14,2)),$C65,$E65,$F65,2016,$I65/10,1,$H65/10,$G65*$H65/10,RateRatios_accidents!$B$5)*10))","v":31.933167576999999},{"$f":"IF(AND(OR(Calculations!$E$2=\"Orkney Health Board\",Calculations!$E$2=\"Orkney Islands Local Authority\"),$F65=1),0,IF(AND(OR(Calculations!$E$2=\"Shetland Health Board\",Calculations!$E$2=\"Western Isles Health Board\",Calculations!$E$2=\"Shetland Islands Local Authority\",Calculations!$E$2=\"Eilean Siar Local Authority\"),OR($F65=1,$F65=5)),0,prem_mort(VALUE(LEFT(Options!$B$14,2)),$C65,$E65,$F65,2016,$I65/10+$J65/10,1,$H65/10,$G65*$H65/10,RateRatios_accidents!$B$5)*10))","v":31.923842727},null,{"$f":"IF(AND(OR(Calculations!$E$2=\"Orkney Health Board\",Calculations!$E$2=\"Orkney Islands Local Authority\"),$F65=1),0,IF(AND(OR(Calculations!$E$2=\"Shetland Health Board\",Calculations!$E$2=\"Western Isles Health Board\",Calculations!$E$2=\"Shetland Islands Local Authority\",Calculations!$E$2=\"Eilean Siar Local Authority\"),OR($F65=1,$F65=5)),0,new_ci(VALUE(LEFT(Options!$B$14,2)),$C65,$E65,$F65,2016,$I65/10,1,$H65/10,$G65*$H65/10,RateRatios_airpollution!$C65)*10))","v":31.933167576999999},{"$f":"IF(AND(OR(Calculations!$E$2=\"Orkney Health Board\",Calculations!$E$2=\"Orkney Islands Local Authority\"),$F65=1),0,IF(AND(OR(Calculations!$E$2=\"Shetland Health Board\",Calculations!$E$2=\"Western Isles Health Board\",Calculations!$E$2=\"Shetland Islands Local Authority\",Calculations!$E$2=\"Eilean Siar Local Authority\"),OR($F65=1,$F65=5)),0,new_ci(VALUE(LEFT(Options!$B$14,2)),$C65,$E65,$F65,2016,$I65/10+$J65/10,1,$H65/10,$G65*$H65/10,RateRatios_airpollution!$C65)*10))","v":31.932554707000001},{"$f":"IF(AND(OR(Calculations!$E$2=\"Orkney Health Board\",Calculations!$E$2=\"Orkney Islands Local Authority\"),$F65=1),0,IF(AND(OR(Calculations!$E$2=\"Shetland Health Board\",Calculations!$E$2=\"Western Isles Health Board\",Calculations!$E$2=\"Shetland Islands Local Authority\",Calculations!$E$2=\"Eilean Siar Local Authority\"),OR($F65=1,$F65=5)),0,new_yllv2(VALUE(LEFT(Options!$B$14,2)),$C65,$D65,$E65,$F65,2016,$I65/10,1,$H65/10,$G65*$H65/10,RateRatios_airpollution!$C65)*10))","v":1713.853199657},{"$f":"IF(AND(OR(Calculations!$E$2=\"Orkney Health Board\",Calculations!$E$2=\"Orkney Islands Local Authority\"),$F65=1),0,IF(AND(OR(Calculations!$E$2=\"Shetland Health Board\",Calculations!$E$2=\"Western Isles Health Board\",Calculations!$E$2=\"Shetland Islands Local Authority\",Calculations!$E$2=\"Eilean Siar Local Authority\"),OR($F65=1,$F65=5)),0,new_yllv2(VALUE(LEFT(Options!$B$14,2)),$C65,$D65,$E65,$F65,2016,$I65/10+$J65/10,1,$H65/10,$G65*$H65/10,RateRatios_airpollution!$C65)*10))","v":1713.8203069220001},{"$f":"IF(AND(OR(Calculations!$E$2=\"Orkney Health Board\",Calculations!$E$2=\"Orkney Islands Local Authority\"),$F65=1),0,IF(AND(OR(Calculations!$E$2=\"Shetland Health Board\",Calculations!$E$2=\"Western Isles Health Board\",Calculations!$E$2=\"Shetland Islands Local Authority\",Calculations!$E$2=\"Eilean Siar Local Authority\"),OR($F65=1,$F65=5)),0,hosp_count(VALUE(LEFT(Options!$B$14,2)),$C65,$E65,$F65,2016,$I65/10,1,$H65/10,$G65*$H65/10, RateRatios_airpollution!$D65, RateRatios_airpollution!$C65)*10))","v":8149.6199866330007},{"$f":"IF(AND(OR(Calculations!$E$2=\"Orkney Health Board\",Calculations!$E$2=\"Orkney Islands Local Authority\"),$F65=1),0,IF(AND(OR(Calculations!$E$2=\"Shetland Health Board\",Calculations!$E$2=\"Western Isles Health Board\",Calculations!$E$2=\"Shetland Islands Local Authority\",Calculations!$E$2=\"Eilean Siar Local Authority\"),OR($F65=1,$F65=5)),0,hosp_count(VALUE(LEFT(Options!$B$14,2)),$C65,$E65,$F65,2016,$I65/10+$J65/10,1,$H65/10,$G65*$H65/10, RateRatios_airpollution!$D65, RateRatios_airpollution!$C65)*10))","v":8149.3261846630003},{"$f":"IF(AND(OR(Calculations!$E$2=\"Orkney Health Board\",Calculations!$E$2=\"Orkney Islands Local Authority\"),$F65=1),0,IF(AND(OR(Calculations!$E$2=\"Shetland Health Board\",Calculations!$E$2=\"Western Isles Health Board\",Calculations!$E$2=\"Shetland Islands Local Authority\",Calculations!$E$2=\"Eilean Siar Local Authority\"),OR($F65=1,$F65=5)),0,prem_mort(VALUE(LEFT(Options!$B$14,2)),$C65,$E65,$F65,2016,$I65/10,1,$H65/10,$G65*$H65/10,RateRatios_airpollution!$C65)*10))","v":31.933167576999999},{"$f":"IF(AND(OR(Calculations!$E$2=\"Orkney Health Board\",Calculations!$E$2=\"Orkney Islands Local Authority\"),$F65=1),0,IF(AND(OR(Calculations!$E$2=\"Shetland Health Board\",Calculations!$E$2=\"Western Isles Health Board\",Calculations!$E$2=\"Shetland Islands Local Authority\",Calculations!$E$2=\"Eilean Siar Local Authority\"),OR($F65=1,$F65=5)),0,prem_mort(VALUE(LEFT(Options!$B$14,2)),$C65,$E65,$F65,2016,$I65/10+$J65/10,1,$H65/10,$G65*$H65/10,RateRatios_airpollution!$C65)*10))","v":31.932554707000001},null,{"$f":"IF(AND(OR(Calculations!$E$2=\"Orkney Health Board\",Calculations!$E$2=\"Orkney Islands Local Authority\"),$F65=1),0,IF(AND(OR(Calculations!$E$2=\"Shetland Health Board\",Calculations!$E$2=\"Western Isles Health Board\",Calculations!$E$2=\"Shetland Islands Local Authority\",Calculations!$E$2=\"Eilean Siar Local Authority\"),OR($F65=1,$F65=5)),0,new_ci(VALUE(LEFT(Options!$B$14,2)),$C65,$E65,$F65,2016,$I65/10,1,$H65/10,$G65*$H65/10,RateRatios_airpollution!$E65)*10))","v":31.933167576999999},{"$f":"IF(AND(OR(Calculations!$E$2=\"Orkney Health Board\",Calculations!$E$2=\"Orkney Islands Local Authority\"),$F65=1),0,IF(AND(OR(Calculations!$E$2=\"Shetland Health Board\",Calculations!$E$2=\"Western Isles Health Board\",Calculations!$E$2=\"Shetland Islands Local Authority\",Calculations!$E$2=\"Eilean Siar Local Authority\"),OR($F65=1,$F65=5)),0,new_ci(VALUE(LEFT(Options!$B$14,2)),$C65,$E65,$F65,2016,$I65/10+$J65/10,1,$H65/10,$G65*$H65/10,RateRatios_airpollution!$E65)*10))","v":31.932880911999998},{"$f":"IF(AND(OR(Calculations!$E$2=\"Orkney Health Board\",Calculations!$E$2=\"Orkney Islands Local Authority\"),$F65=1),0,IF(AND(OR(Calculations!$E$2=\"Shetland Health Board\",Calculations!$E$2=\"Western Isles Health Board\",Calculations!$E$2=\"Shetland Islands Local Authority\",Calculations!$E$2=\"Eilean Siar Local Authority\"),OR($F65=1,$F65=5)),0,new_yllv2(VALUE(LEFT(Options!$B$14,2)),$C65,$D65,$E65,$F65,2016,$I65/10,1,$H65/10,$G65*$H65/10,RateRatios_airpollution!$E65)*10))","v":1713.853199657},{"$f":"IF(AND(OR(Calculations!$E$2=\"Orkney Health Board\",Calculations!$E$2=\"Orkney Islands Local Authority\"),$F65=1),0,IF(AND(OR(Calculations!$E$2=\"Shetland Health Board\",Calculations!$E$2=\"Western Isles Health Board\",Calculations!$E$2=\"Shetland Islands Local Authority\",Calculations!$E$2=\"Eilean Siar Local Authority\"),OR($F65=1,$F65=5)),0,new_yllv2(VALUE(LEFT(Options!$B$14,2)),$C65,$D65,$E65,$F65,2016,$I65/10+$J65/10,1,$H65/10,$G65*$H65/10,RateRatios_airpollution!$E65)*10))","v":1713.837814346},{"$f":"IF(AND(OR(Calculations!$E$2=\"Orkney Health Board\",Calculations!$E$2=\"Orkney Islands Local Authority\"),$F65=1),0,IF(AND(OR(Calculations!$E$2=\"Shetland Health Board\",Calculations!$E$2=\"Western Isles Health Board\",Calculations!$E$2=\"Shetland Islands Local Authority\",Calculations!$E$2=\"Eilean Siar Local Authority\"),OR($F65=1,$F65=5)),0,hosp_count(VALUE(LEFT(Options!$B$14,2)),$C65,$E65,$F65,2016,$I65/10,1,$H65/10,$G65*$H65/10, RateRatios_airpollution!$F65, RateRatios_airpollution!$E65)*10))","v":8149.6199866330007},{"$f":"IF(AND(OR(Calculations!$E$2=\"Orkney Health Board\",Calculations!$E$2=\"Orkney Islands Local Authority\"),$F65=1),0,IF(AND(OR(Calculations!$E$2=\"Shetland Health Board\",Calculations!$E$2=\"Western Isles Health Board\",Calculations!$E$2=\"Shetland Islands Local Authority\",Calculations!$E$2=\"Eilean Siar Local Authority\"),OR($F65=1,$F65=5)),0,hosp_count(VALUE(LEFT(Options!$B$14,2)),$C65,$E65,$F65,2016,$I65/10+$J65/10,1,$H65/10,$G65*$H65/10, RateRatios_airpollution!$F65, RateRatios_airpollution!$E65)*10))","v":8149.6199866330007},{"$f":"IF(AND(OR(Calculations!$E$2=\"Orkney Health Board\",Calculations!$E$2=\"Orkney Islands Local Authority\"),$F65=1),0,IF(AND(OR(Calculations!$E$2=\"Shetland Health Board\",Calculations!$E$2=\"Western Isles Health Board\",Calculations!$E$2=\"Shetland Islands Local Authority\",Calculations!$E$2=\"Eilean Siar Local Authority\"),OR($F65=1,$F65=5)),0,prem_mort(VALUE(LEFT(Options!$B$14,2)),$C65,$E65,$F65,2016,$I65/10,1,$H65/10,$G65*$H65/10,RateRatios_airpollution!$E65)*10))","v":31.933167576999999},{"$f":"IF(AND(OR(Calculations!$E$2=\"Orkney Health Board\",Calculations!$E$2=\"Orkney Islands Local Authority\"),$F65=1),0,IF(AND(OR(Calculations!$E$2=\"Shetland Health Board\",Calculations!$E$2=\"Western Isles Health Board\",Calculations!$E$2=\"Shetland Islands Local Authority\",Calculations!$E$2=\"Eilean Siar Local Authority\"),OR($F65=1,$F65=5)),0,prem_mort(VALUE(LEFT(Options!$B$14,2)),$C65,$E65,$F65,2016,$I65/10+$J65/10,1,$H65/10,$G65*$H65/10,RateRatios_airpollution!$E65)*10))","v":31.932880911999998},31.933167576999999,31.922943192000002,1713.853199657,1713.3044568839998,8149.6199866330007,8146.9460743629998,31.933167576999999,31.922943192000002,70.759749998892062,70.737094090274553,3797.6759947195815,3796.460052037492,18058.498940000889,18052.573897855036,70.759749998892062,70.737094090274553,424558.49999335239,{"$f":"AT65*$BI65","v":424422.56454164733},22786055.96831749,22778760.312224951,108350993.64000534,108315443.38713022,424558.49999335239,424422.56454164733,6000]
[null,"Female 30-34",31.999904999999998,81.799899999999994,"female",1,1,{"$f":"HLOOKUP(Calculations!$E$2,'Population 2016'!$C$3:$BC$249,'Population 2016'!BD66,FALSE)","v":41240},0,{"$f":"HLOOKUP(Calculations!$E$2,Pop2016_in_settlements!$C$3:$BC$249,Pop2016_in_settlements!$BD66,FALSE)","v":29725},{"$f":"IF(AND(OR(Calculations!$E$2=\"Orkney Health Board\",Calculations!$E$2=\"Orkney Islands Local Authority\"),$F66=1),0,IF(AND(OR(Calculations!$E$2=\"Shetland Health Board\",Calculations!$E$2=\"Western Isles Health Board\",Calculations!$E$2=\"Shetland Islands Local Authority\",Calculations!$E$2=\"Eilean Siar Local Authority\"),OR($F66=1,$F66=5)),0,new_ci(VALUE(LEFT(Options!$B$14,2)),$C66,$E66,$F66,2016,$I66/10,1,$H66/10,$G66*$H66/10,RateRatios_accidents!$B$5)*10))","v":44.733118728000001},{"$f":"IF(AND(OR(Calculations!$E$2=\"Orkney Health Board\",Calculations!$E$2=\"Orkney Islands Local Authority\"),$F66=1),0,IF(AND(OR(Calculations!$E$2=\"Shetland Health Board\",Calculations!$E$2=\"Western Isles Health Board\",Calculations!$E$2=\"Shetland Islands Local Authority\",Calculations!$E$2=\"Eilean Siar Local Authority\"),OR($F66=1,$F66=5)),0,new_ci(VALUE(LEFT(Options!$B$14,2)),$C66,$E66,$F66,2016,$I66/10+$J66/10,1,$H66/10,$G66*$H66/10,RateRatios_accidents!$B$5)*10))","v":44.720229967999998},{"$f":"IF(AND(OR(Calculations!$E$2=\"Orkney Health Board\",Calculations!$E$2=\"Orkney Islands Local Authority\"),$F66=1),0,IF(AND(OR(Calculations!$E$2=\"Shetland Health Board\",Calculations!$E$2=\"Western Isles Health Board\",Calculations!$E$2=\"Shetland Islands Local Authority\",Calculations!$E$2=\"Eilean Siar Local Authority\"),OR($F66=1,$F66=5)),0,new_yllv2(VALUE(LEFT(Options!$B$14,2)),$C66,$D66,$E66,$F66,2016,$I66/10,1,$H66/10,$G66*$H66/10,RateRatios_accidents!$B$5)*10))","v":2182.9759702609999},{"$f":"IF(AND(OR(Calculations!$E$2=\"Orkney Health Board\",Calculations!$E$2=\"Orkney Islands Local Authority\"),$F66=1),0,IF(AND(OR(Calculations!$E$2=\"Shetland Health Board\",Calculations!$E$2=\"Western Isles Health Board\",Calculations!$E$2=\"Shetland Islands Local Authority\",Calculations!$E$2=\"Eilean Siar Local Authority\"),OR($F66=1,$F66=5)),0,new_yllv2(VALUE(LEFT(Options!$B$14,2)),$C66,$D66,$E66,$F66,2016,$I66/10+$J66/10,1,$H66/10,$G66*$H66/10,RateRatios_accidents!$B$5)*10))","v":2182.3469988369998},{"$f":"IF(AND(OR(Calculations!$E$2=\"Orkney Health Board\",Calculations!$E$2=\"Orkney Islands Local Authority\"),$F66=1),0,IF(AND(OR(Calculations!$E$2=\"Shetland Health Board\",Calculations!$E$2=\"Western Isles Health Board\",Calculations!$E$2=\"Shetland Islands Local Authority\",Calculations!$E$2=\"Eilean Siar Local Authority\"),OR($F66=1,$F66=5)),0,hosp_count(VALUE(LEFT(Options!$B$14,2)),$C66,$E66,$F66,2016,$I66/10,1,$H66/10,$G66*$H66/10, RateRatios_accidents!$B$4, RateRatios_accidents!$B$5)*10))","v":8450.6647051239997},{"$f":"IF(AND(OR(Calculations!$E$2=\"Orkney Health Board\",Calculations!$E$2=\"Orkney Islands Local Authority\"),$F66=1),0,IF(AND(OR(Calculations!$E$2=\"Shetland Health Board\",Calculations!$E$2=\"Western Isles Health Board\",Calculations!$E$2=\"Shetland Islands Local Authority\",Calculations!$E$2=\"Eilean Siar Local Authority\"),OR($F66=1,$F66=5)),0,hosp_count(VALUE(LEFT(Options!$B$14,2)),$C66,$E66,$F66,2016,$I66/10+$J66/10,1,$H66/10,$G66*$H66/10, RateRatios_accidents!$B$4, RateRatios_accidents!$B$5)*10))","v":8448.2282746919991},{"$f":"IF(AND(OR(Calculations!$E$2=\"Orkney Health Board\",Calculations!$E$2=\"Orkney Islands Local Authority\"),$F66=1),0,IF(AND(OR(Calculations!$E$2=\"Shetland Health Board\",Calculations!$E$2=\"Western Isles Health Board\",Calculations!$E$2=\"Shetland Islands Local Authority\",Calculations!$E$2=\"Eilean Siar Local Authority\"),OR($F66=1,$F66=5)),0,prem_mort(VALUE(LEFT(Options!$B$14,2)),$C66,$E66,$F66,2016,$I66/10,1,$H66/10,$G66*$H66/10,RateRatios_accidents!$B$5)*10))","v":44.733118728000001},{"$f":"IF(AND(OR(Calculations!$E$2=\"Orkney Health Board\",Calculations!$E$2=\"Orkney Islands Local Authority\"),$F66=1),0,IF(AND(OR(Calculations!$E$2=\"Shetland Health Board\",Calculations!$E$2=\"Western Isles Health Board\",Calculations!$E$2=\"Shetland Islands Local Authority\",Calculations!$E$2=\"Eilean Siar Local Authority\"),OR($F66=1,$F66=5)),0,prem_mort(VALUE(LEFT(Options!$B$14,2)),$C66,$E66,$F66,2016,$I66/10+$J66/10,1,$H66/10,$G66*$H66/10,RateRatios_accidents!$B$5)*10))","v":44.720229967999998},null,{"$f":"IF(AND(OR(Calculations!$E$2=\"Orkney Health Board\",Calculations!$E$2=\"Orkney Islands Local Authority\"),$F66=1),0,IF(AND(OR(Calculations!$E$2=\"Shetland Health Board\",Calculations!$E$2=\"Western Isles Health Board\",Calculations!$E$2=\"Shetland Islands Local Authority\",Calculations!$E$2=\"Eilean Siar Local Authority\"),OR($F66=1,$F66=5)),0,new_ci(VALUE(LEFT(Options!$B$14,2)),$C66,$E66,$F66,2016,$I66/10,1,$H66/10,$G66*$H66/10,RateRatios_airpollution!$C66)*10))","v":44.733118728000001},{"$f":"IF(AND(OR(Calculations!$E$2=\"Orkney Health Board\",Calculations!$E$2=\"Orkney Islands Local Authority\"),$F66=1),0,IF(AND(OR(Calculations!$E$2=\"Shetland Health Board\",Calculations!$E$2=\"Western Isles Health Board\",Calculations!$E$2=\"Shetland Islands Local Authority\",Calculations!$E$2=\"Eilean Siar Local Authority\"),OR($F66=1,$F66=5)),0,new_ci(VALUE(LEFT(Options!$B$14,2)),$C66,$E66,$F66,2016,$I66/10+$J66/10,1,$H66/10,$G66*$H66/10,RateRatios_airpollution!$C66)*10))","v":44.732301290000002},{"$f":"IF(AND(OR(Calculations!$E$2=\"Orkney Health Board\",Calculations!$E$2=\"Orkney Islands Local Authority\"),$F66=1),0,IF(AND(OR(Calculations!$E$2=\"Shetland Health Board\",Calculations!$E$2=\"Western Isles Health Board\",Calculations!$E$2=\"Shetland Islands Local Authority\",Calculations!$E$2=\"Eilean Siar Local Authority\"),OR($F66=1,$F66=5)),0,new_yllv2(VALUE(LEFT(Options!$B$14,2)),$C66,$D66,$E66,$F66,2016,$I66/10,1,$H66/10,$G66*$H66/10,RateRatios_airpollution!$C66)*10))","v":2182.9759702609999},{"$f":"IF(AND(OR(Calculations!$E$2=\"Orkney Health Board\",Calculations!$E$2=\"Orkney Islands Local Authority\"),$F66=1),0,IF(AND(OR(Calculations!$E$2=\"Shetland Health Board\",Calculations!$E$2=\"Western Isles Health Board\",Calculations!$E$2=\"Shetland Islands Local Authority\",Calculations!$E$2=\"Eilean Siar Local Authority\"),OR($F66=1,$F66=5)),0,new_yllv2(VALUE(LEFT(Options!$B$14,2)),$C66,$D66,$E66,$F66,2016,$I66/10+$J66/10,1,$H66/10,$G66*$H66/10,RateRatios_airpollution!$C66)*10))","v":2182.9360792899997},{"$f":"IF(AND(OR(Calculations!$E$2=\"Orkney Health Board\",Calculations!$E$2=\"Orkney Islands Local Authority\"),$F66=1),0,IF(AND(OR(Calculations!$E$2=\"Shetland Health Board\",Calculations!$E$2=\"Western Isles Health Board\",Calculations!$E$2=\"Shetland Islands Local Authority\",Calculations!$E$2=\"Eilean Siar Local Authority\"),OR($F66=1,$F66=5)),0,hosp_count(VALUE(LEFT(Options!$B$14,2)),$C66,$E66,$F66,2016,$I66/10,1,$H66/10,$G66*$H66/10, RateRatios_airpollution!$D66, RateRatios_airpollution!$C66)*10))","v":8450.6647051239997},{"$f":"IF(AND(OR(Calculations!$E$2=\"Orkney Health Board\",Calculations!$E$2=\"Orkney Islands Local Authority\"),$F66=1),0,IF(AND(OR(Calculations!$E$2=\"Shetland Health Board\",Calculations!$E$2=\"Western Isles Health Board\",Calculations!$E$2=\"Shetland Islands Local Authority\",Calculations!$E$2=\"Eilean Siar Local Authority\"),OR($F66=1,$F66=5)),0,hosp_count(VALUE(LEFT(Options!$B$14,2)),$C66,$E66,$F66,2016,$I66/10+$J66/10,1,$H66/10,$G66*$H66/10, RateRatios_airpollution!$D66, RateRatios_airpollution!$C66)*10))","v":8450.3732752790002},{"$f":"IF(AND(OR(Calculations!$E$2=\"Orkney Health Board\",Calculations!$E$2=\"Orkney Islands Local Authority\"),$F66=1),0,IF(AND(OR(Calculations!$E$2=\"Shetland Health Board\",Calculations!$E$2=\"Western Isles Health Board\",Calculations!$E$2=\"Shetland Islands Local Authority\",Calculations!$E$2=\"Eilean Siar Local Authority\"),OR($F66=1,$F66=5)),0,prem_mort(VALUE(LEFT(Options!$B$14,2)),$C66,$E66,$F66,2016,$I66/10,1,$H66/10,$G66*$H66/10,RateRatios_airpollution!$C66)*10))","v":44.733118728000001},{"$f":"IF(AND(OR(Calculations!$E$2=\"Orkney Health Board\",Calculations!$E$2=\"Orkney Islands Local Authority\"),$F66=1),0,IF(AND(OR(Calculations!$E$2=\"Shetland Health Board\",Calculations!$E$2=\"Western Isles Health Board\",Calculations!$E$2=\"Shetland Islands Local Authority\",Calculations!$E$2=\"Eilean Siar Local Authority\"),OR($F66=1,$F66=5)),0,prem_mort(VALUE(LEFT(Options!$B$14,2)),$C66,$E66,$F66,2016,$I66/10+$J66/10,1,$H66/10,$G66*$H66/10,RateRatios_airpollution!$C66)*10))","v":44.732301290000002},null,{"$f":"IF(AND(OR(Calculations!$E$2=\"Orkney Health Board\",Calculations!$E$2=\"Orkney Islands Local Authority\"),$F66=1),0,IF(AND(OR(Calculations!$E$2=\"Shetland Health Board\",Calculations!$E$2=\"Western Isles Health Board\",Calculations!$E$2=\"Shetland Islands Local Authority\",Calculations!$E$2=\"Eilean Siar Local Authority\"),OR($F66=1,$F66=5)),0,new_ci(VALUE(LEFT(Options!$B$14,2)),$C66,$E66,$F66,2016,$I66/10,1,$H66/10,$G66*$H66/10,RateRatios_airpollution!$E66)*10))","v":44.733118728000001},{"$f":"IF(AND(OR(Calculations!$E$2=\"Orkney Health Board\",Calculations!$E$2=\"Orkney Islands Local Authority\"),$F66=1),0,IF(AND(OR(Calculations!$E$2=\"Shetland Health Board\",Calculations!$E$2=\"Western Isles Health Board\",Calculations!$E$2=\"Shetland Islands Local Authority\",Calculations!$E$2=\"Eilean Siar Local Authority\"),OR($F66=1,$F66=5)),0,new_ci(VALUE(LEFT(Options!$B$14,2)),$C66,$E66,$F66,2016,$I66/10+$J66/10,1,$H66/10,$G66*$H66/10,RateRatios_airpollution!$E66)*10))","v":44.732732303000006},{"$f":"IF(AND(OR(Calculations!$E$2=\"Orkney Health Board\",Calculations!$E$2=\"Orkney Islands Local Authority\"),$F66=1),0,IF(AND(OR(Calculations!$E$2=\"Shetland Health Board\",Calculations!$E$2=\"Western Isles Health Board\",Calculations!$E$2=\"Shetland Islands Local Authority\",Calculations!$E$2=\"Eilean Siar Local Authority\"),OR($F66=1,$F66=5)),0,new_yllv2(VALUE(LEFT(Options!$B$14,2)),$C66,$D66,$E66,$F66,2016,$I66/10,1,$H66/10,$G66*$H66/10,RateRatios_airpollution!$E66)*10))","v":2182.9759702609999},{"$f":"IF(AND(OR(Calculations!$E$2=\"Orkney Health Board\",Calculations!$E$2=\"Orkney Islands Local Authority\"),$F66=1),0,IF(AND(OR(Calculations!$E$2=\"Shetland Health Board\",Calculations!$E$2=\"Western Isles Health Board\",Calculations!$E$2=\"Shetland Islands Local Authority\",Calculations!$E$2=\"Eilean Siar Local Authority\"),OR($F66=1,$F66=5)),0,new_yllv2(VALUE(LEFT(Options!$B$14,2)),$C66,$D66,$E66,$F66,2016,$I66/10+$J66/10,1,$H66/10,$G66*$H66/10,RateRatios_airpollution!$E66)*10))","v":2182.9571127230001},{"$f":"IF(AND(OR(Calculations!$E$2=\"Orkney Health Board\",Calculations!$E$2=\"Orkney Islands Local Authority\"),$F66=1),0,IF(AND(OR(Calculations!$E$2=\"Shetland Health Board\",Calculations!$E$2=\"Western Isles Health Board\",Calculations!$E$2=\"Shetland Islands Local Authority\",Calculations!$E$2=\"Eilean Siar Local Authority\"),OR($F66=1,$F66=5)),0,hosp_count(VALUE(LEFT(Options!$B$14,2)),$C66,$E66,$F66,2016,$I66/10,1,$H66/10,$G66*$H66/10, RateRatios_airpollution!$F66, RateRatios_airpollution!$E66)*10))","v":8450.6647051239997},{"$f":"IF(AND(OR(Calculations!$E$2=\"Orkney Health Board\",Calculations!$E$2=\"Orkney Islands Local Authority\"),$F66=1),0,IF(AND(OR(Calculations!$E$2=\"Shetland Health Board\",Calculations!$E$2=\"Western Isles Health Board\",Calculations!$E$2=\"Shetland Islands Local Authority\",Calculations!$E$2=\"Eilean Siar Local Authority\"),OR($F66=1,$F66=5)),0,hosp_count(VALUE(LEFT(Options!$B$14,2)),$C66,$E66,$F66,2016,$I66/10+$J66/10,1,$H66/10,$G66*$H66/10, RateRatios_airpollution!$F66, RateRatios_airpollution!$E66)*10))","v":8450.6647051239997},{"$f":"IF(AND(OR(Calculations!$E$2=\"Orkney Health Board\",Calculations!$E$2=\"Orkney Islands Local Authority\"),$F66=1),0,IF(AND(OR(Calculations!$E$2=\"Shetland Health Board\",Calculations!$E$2=\"Western Isles Health Board\",Calculations!$E$2=\"Shetland Islands Local Authority\",Calculations!$E$2=\"Eilean Siar Local Authority\"),OR($F66=1,$F66=5)),0,prem_mort(VALUE(LEFT(Options!$B$14,2)),$C66,$E66,$F66,2016,$I66/10,1,$H66/10,$G66*$H66/10,RateRatios_airpollution!$E66)*10))","v":44.733118728000001},{"$f":"IF(AND(OR(Calculations!$E$2=\"Orkney Health Board\",Calculations!$E$2=\"Orkney Islands Local Authority\"),$F66=1),0,IF(AND(OR(Calculations!$E$2=\"Shetland Health Board\",Calculations!$E$2=\"Western Isles Health Board\",Calculations!$E$2=\"Shetland Islands Local Authority\",Calculations!$E$2=\"Eilean Siar Local Authority\"),OR($F66=1,$F66=5)),0,prem_mort(VALUE(LEFT(Options!$B$14,2)),$C66,$E66,$F66,2016,$I66/10+$J66/10,1,$H66/10,$G66*$H66/10,RateRatios_airpollution!$E66)*10))","v":44.732732303000006},44.733118728000001,44.719026105000005,2182.9759702609999,2182.2882503279998,8450.6647051239997,8447.9368448469995,44.733118728000001,44.719026105000005,108.47022,108.43604778128032,5293.3461936493686,5291.6785895441317,20491.427510000001,20484.812911850146,108.47022,108.43604778128032,705056.42999999993,704834.31057832215,34406750.258720897,34395910.832036853,133194278.81500001,133151283.92702594,705056.42999999993,704834.31057832215,6500]
[null,"Female 35-39",36.918118,81.898120000000006,"female",1,1,{"$f":"HLOOKUP(Calculations!$E$2,'Population 2016'!$C$3:$BC$249,'Population 2016'!BD67,FALSE)","v":35038},0,{"$f":"HLOOKUP(Calculations!$E$2,Pop2016_in_settlements!$C$3:$BC$249,Pop2016_in_settlements!$BD67,FALSE)","v":25255},{"$f":"IF(AND(OR(Calculations!$E$2=\"Orkney Health Board\",Calculations!$E$2=\"Orkney Islands Local Authority\"),$F67=1),0,IF(AND(OR(Calculations!$E$2=\"Shetland Health Board\",Calculations!$E$2=\"Western Isles Health Board\",Calculations!$E$2=\"Shetland Islands Local Authority\",Calculations!$E$2=\"Eilean Siar Local Authority\"),OR($F67=1,$F67=5)),0,new_ci(VALUE(LEFT(Options!$B$14,2)),$C67,$E67,$F67,2016,$I67/10,1,$H67/10,$G67*$H67/10,RateRatios_accidents!$B$5)*10))","v":57.729726511999999},{"$f":"IF(AND(OR(Calculations!$E$2=\"Orkney Health Board\",Calculations!$E$2=\"Orkney Islands Local Authority\"),$F67=1),0,IF(AND(OR(Calculations!$E$2=\"Shetland Health Board\",Calculations!$E$2=\"Western Isles Health Board\",Calculations!$E$2=\"Shetland Islands Local Authority\",Calculations!$E$2=\"Eilean Siar Local Authority\"),OR($F67=1,$F67=5)),0,new_ci(VALUE(LEFT(Options!$B$14,2)),$C67,$E67,$F67,2016,$I67/10+$J67/10,1,$H67/10,$G67*$H67/10,RateRatios_accidents!$B$5)*10))","v":57.713093568999994},{"$f":"IF(AND(OR(Calculations!$E$2=\"Orkney Health Board\",Calculations!$E$2=\"Orkney Islands Local Authority\"),$F67=1),0,IF(AND(OR(Calculations!$E$2=\"Shetland Health Board\",Calculations!$E$2=\"Western Isles Health Board\",Calculations!$E$2=\"Shetland Islands Local Authority\",Calculations!$E$2=\"Eilean Siar Local Authority\"),OR($F67=1,$F67=5)),0,new_yllv2(VALUE(LEFT(Options!$B$14,2)),$C67,$D67,$E67,$F67,2016,$I67/10,1,$H67/10,$G67*$H67/10,RateRatios_accidents!$B$5)*10))","v":2538.9534874569999},{"$f":"IF(AND(OR(Calculations!$E$2=\"Orkney Health Board\",Calculations!$E$2=\"Orkney Islands Local Authority\"),$F67=1),0,IF(AND(OR(Calculations!$E$2=\"Shetland Health Board\",Calculations!$E$2=\"Western Isles Health Board\",Calculations!$E$2=\"Shetland Islands Local Authority\",Calculations!$E$2=\"Eilean Siar Local Authority\"),OR($F67=1,$F67=5)),0,new_yllv2(VALUE(LEFT(Options!$B$14,2)),$C67,$D67,$E67,$F67,2016,$I67/10+$J67/10,1,$H67/10,$G67*$H67/10,RateRatios_accidents!$B$5)*10))","v":2538.2219705910002},{"$f":"IF(AND(OR(Calculations!$E$2=\"Orkney Health Board\",Calculations!$E$2=\"Orkney Islands Local Authority\"),$F67=1),0,IF(AND(OR(Calculations!$E$2=\"Shetland Health Board\",Calculations!$E$2=\"Western Isles Health Board\",Calculations!$E$2=\"Shetland Islands Local Authority\",Calculations!$E$2=\"Eilean Siar Local Authority\"),OR($F67=1,$F67=5)),0,hosp_count(VALUE(LEFT(Options!$B$14,2)),$C67,$E67,$F67,2016,$I67/10,1,$H67/10,$G67*$H67/10, RateRatios_accidents!$B$4, RateRatios_accidents!$B$5)*10))","v":8125.2852417630002},{"$f":"IF(AND(OR(Calculations!$E$2=\"Orkney Health Board\",Calculations!$E$2=\"Orkney Islands Local Authority\"),$F67=1),0,IF(AND(OR(Calculations!$E$2=\"Shetland Health Board\",Calculations!$E$2=\"Western Isles Health Board\",Calculations!$E$2=\"Shetland Islands Local Authority\",Calculations!$E$2=\"Eilean Siar Local Authority\"),OR($F67=1,$F67=5)),0,hosp_count(VALUE(LEFT(Options!$B$14,2)),$C67,$E67,$F67,2016,$I67/10+$J67/10,1,$H67/10,$G67*$H67/10, RateRatios_accidents!$B$4, RateRatios_accidents!$B$5)*10))","v":8122.9425955389997},{"$f":"IF(AND(OR(Calculations!$E$2=\"Orkney Health Board\",Calculations!$E$2=\"Orkney Islands Local Authority\"),$F67=1),0,IF(AND(OR(Calculations!$E$2=\"Shetland Health Board\",Calculations!$E$2=\"Western Isles Health Board\",Calculations!$E$2=\"Shetland Islands Local Authority\",Calculations!$E$2=\"Eilean Siar Local Authority\"),OR($F67=1,$F67=5)),0,prem_mort(VALUE(LEFT(Options!$B$14,2)),$C67,$E67,$F67,2016,$I67/10,1,$H67/10,$G67*$H67/10,RateRatios_accidents!$B$5)*10))","v":57.729726511999999},{"$f":"IF(AND(OR(Calculations!$E$2=\"Orkney Health Board\",Calculations!$E$2=\"Orkney Islands Local Authority\"),$F67=1),0,IF(AND(OR(Calculations!$E$2=\"Shetland Health Board\",Calculations!$E$2=\"Western Isles Health Board\",Calculations!$E$2=\"Shetland Islands Local Authority\",Calculations!$E$2=\"Eilean Siar Local Authority\"),OR($F67=1,$F67=5)),0,prem_mort(VALUE(LEFT(Options!$B$14,2)),$C67,$E67,$F67,2016,$I67/10+$J67/10,1,$H67/10,$G67*$H67/10,RateRatios_accidents!$B$5)*10))","v":57.713093568999994},null,{"$f":"IF(AND(OR(Calculations!$E$2=\"Orkney Health Board\",Calculations!$E$2=\"Orkney Islands Local Authority\"),$F67=1),0,IF(AND(OR(Calculations!$E$2=\"Shetland Health Board\",Calculations!$E$2=\"Western Isles Health Board\",Calculations!$E$2=\"Shetland Islands Local Authority\",Calculations!$E$2=\"Eilean Siar Local Authority\"),OR($F67=1,$F67=5)),0,new_ci(VALUE(LEFT(Options!$B$14,2)),$C67,$E67,$F67,2016,$I67/10,1,$H67/10,$G67*$H67/10,RateRatios_airpollution!$C67)*10))","v":57.729726511999999},{"$f":"IF(AND(OR(Calculations!$E$2=\"Orkney Health Board\",Calculations!$E$2=\"Orkney Islands Local Authority\"),$F67=1),0,IF(AND(OR(Calculations!$E$2=\"Shetland Health Board\",Calculations!$E$2=\"Western Isles Health Board\",Calculations!$E$2=\"Shetland Islands Local Authority\",Calculations!$E$2=\"Eilean Siar Local Authority\"),OR($F67=1,$F67=5)),0,new_ci(VALUE(LEFT(Options!$B$14,2)),$C67,$E67,$F67,2016,$I67/10+$J67/10,1,$H67/10,$G67*$H67/10,RateRatios_airpollution!$C67)*10))","v":57.728696108000001},{"$f":"IF(AND(OR(Calculations!$E$2=\"Orkney Health Board\",Calculations!$E$2=\"Orkney Islands Local Authority\"),$F67=1),0,IF(AND(OR(Calculations!$E$2=\"Shetland Health Board\",Calculations!$E$2=\"Western Isles Health Board\",Calculations!$E$2=\"Shetland Islands Local Authority\",Calculations!$E$2=\"Eilean Siar Local Authority\"),OR($F67=1,$F67=5)),0,new_yllv2(VALUE(LEFT(Options!$B$14,2)),$C67,$D67,$E67,$F67,2016,$I67/10,1,$H67/10,$G67*$H67/10,RateRatios_airpollution!$C67)*10))","v":2538.9534874569999},{"$f":"IF(AND(OR(Calculations!$E$2=\"Orkney Health Board\",Calculations!$E$2=\"Orkney Islands Local Authority\"),$F67=1),0,IF(AND(OR(Calculations!$E$2=\"Shetland Health Board\",Calculations!$E$2=\"Western Isles Health Board\",Calculations!$E$2=\"Shetland Islands Local Authority\",Calculations!$E$2=\"Eilean Siar Local Authority\"),OR($F67=1,$F67=5)),0,new_yllv2(VALUE(LEFT(Options!$B$14,2)),$C67,$D67,$E67,$F67,2016,$I67/10+$J67/10,1,$H67/10,$G67*$H67/10,RateRatios_airpollution!$C67)*10))","v":2538.9081702870003},{"$f":"IF(AND(OR(Calculations!$E$2=\"Orkney Health Board\",Calculations!$E$2=\"Orkney Islands Local Authority\"),$F67=1),0,IF(AND(OR(Calculations!$E$2=\"Shetland Health Board\",Calculations!$E$2=\"Western Isles Health Board\",Calculations!$E$2=\"Shetland Islands Local Authority\",Calculations!$E$2=\"Eilean Siar Local Authority\"),OR($F67=1,$F67=5)),0,hosp_count(VALUE(LEFT(Options!$B$14,2)),$C67,$E67,$F67,2016,$I67/10,1,$H67/10,$G67*$H67/10, RateRatios_airpollution!$D67, RateRatios_airpollution!$C67)*10))","v":8125.2852417630002},{"$f":"IF(AND(OR(Calculations!$E$2=\"Orkney Health Board\",Calculations!$E$2=\"Orkney Islands Local Authority\"),$F67=1),0,IF(AND(OR(Calculations!$E$2=\"Shetland Health Board\",Calculations!$E$2=\"Western Isles Health Board\",Calculations!$E$2=\"Shetland Islands Local Authority\",Calculations!$E$2=\"Eilean Siar Local Authority\"),OR($F67=1,$F67=5)),0,hosp_count(VALUE(LEFT(Options!$B$14,2)),$C67,$E67,$F67,2016,$I67/10+$J67/10,1,$H67/10,$G67*$H67/10, RateRatios_airpollution!$D67, RateRatios_airpollution!$C67)*10))","v":8125.0123362329996},{"$f":"IF(AND(OR(Calculations!$E$2=\"Orkney Health Board\",Calculations!$E$2=\"Orkney Islands Local Authority\"),$F67=1),0,IF(AND(OR(Calculations!$E$2=\"Shetland Health Board\",Calculations!$E$2=\"Western Isles Health Board\",Calculations!$E$2=\"Shetland Islands Local Authority\",Calculations!$E$2=\"Eilean Siar Local Authority\"),OR($F67=1,$F67=5)),0,prem_mort(VALUE(LEFT(Options!$B$14,2)),$C67,$E67,$F67,2016,$I67/10,1,$H67/10,$G67*$H67/10,RateRatios_airpollution!$C67)*10))","v":57.729726511999999},{"$f":"IF(AND(OR(Calculations!$E$2=\"Orkney Health Board\",Calculations!$E$2=\"Orkney Islands Local Authority\"),$F67=1),0,IF(AND(OR(Calculations!$E$2=\"Shetland Health Board\",Calculations!$E$2=\"Western Isles Health Board\",Calculations!$E$2=\"Shetland Islands Local Authority\",Calculations!$E$2=\"Eilean Siar Local Authority\"),OR($F67=1,$F67=5)),0,prem_mort(VALUE(LEFT(Options!$B$14,2)),$C67,$E67,$F67,2016,$I67/10+$J67/10,1,$H67/10,$G67*$H67/10,RateRatios_airpollution!$C67)*10))","v":57.728696108000001},null,{"$f":"IF(AND(OR(Calculations!$E$2=\"Orkney Health Board\",Calculations!$E$2=\"Orkney Islands Local Authority\"),$F67=1),0,IF(AND(OR(Calculations!$E$2=\"Shetland Health Board\",Calculations!$E$2=\"Western Isles Health Board\",Calculations!$E$2=\"Shetland Islands Local Authority\",Calculations!$E$2=\"Eilean Siar Local Authority\"),OR($F67=1,$F67=5)),0,new_ci(VALUE(LEFT(Options!$B$14,2)),$C67,$E67,$F67,2016,$I67/10,1,$H67/10,$G67*$H67/10,RateRatios_airpollution!$E67)*10))","v":57.729726511999999},{"$f":"IF(AND(OR(Calculations!$E$2=\"Orkney Health Board\",Calculations!$E$2=\"Orkney Islands Local Authority\"),$F67=1),0,IF(AND(OR(Calculations!$E$2=\"Shetland Health Board\",Calculations!$E$2=\"Western Isles Health Board\",Calculations!$E$2=\"Shetland Islands Local Authority\",Calculations!$E$2=\"Eilean Siar Local Authority\"),OR($F67=1,$F67=5)),0,new_ci(VALUE(LEFT(Options!$B$14,2)),$C67,$E67,$F67,2016,$I67/10+$J67/10,1,$H67/10,$G67*$H67/10,RateRatios_airpollution!$E67)*10))","v":57.729236564999994},{"$f":"IF(AND(OR(Calculations!$E$2=\"Orkney Health Board\",Calculations!$E$2=\"Orkney Islands Local Authority\"),$F67=1),0,IF(AND(OR(Calculations!$E$2=\"Shetland Health Board\",Calculations!$E$2=\"Western Isles Health Board\",Calculations!$E$2=\"Shetland Islands Local Authority\",Calculations!$E$2=\"Eilean Siar Local Authority\"),OR($F67=1,$F67=5)),0,new_yllv2(VALUE(LEFT(Options!$B$14,2)),$C67,$D67,$E67,$F67,2016,$I67/10,1,$H67/10,$G67*$H67/10,RateRatios_airpollution!$E67)*10))","v":2538.9534874569999},{"$f":"IF(AND(OR(Calculations!$E$2=\"Orkney Health Board\",Calculations!$E$2=\"Orkney Islands Local Authority\"),$F67=1),0,IF(AND(OR(Calculations!$E$2=\"Shetland Health Board\",Calculations!$E$2=\"Western Isles Health Board\",Calculations!$E$2=\"Shetland Islands Local Authority\",Calculations!$E$2=\"Eilean Siar Local Authority\"),OR($F67=1,$F67=5)),0,new_yllv2(VALUE(LEFT(Options!$B$14,2)),$C67,$D67,$E67,$F67,2016,$I67/10+$J67/10,1,$H67/10,$G67*$H67/10,RateRatios_airpollution!$E67)*10))","v":2538.9319395870002},{"$f":"IF(AND(OR(Calculations!$E$2=\"Orkney Health Board\",Calculations!$E$2=\"Orkney Islands Local Authority\"),$F67=1),0,IF(AND(OR(Calculations!$E$2=\"Shetland Health Board\",Calculations!$E$2=\"Western Isles Health Board\",Calculations!$E$2=\"Shetland Islands Local Authority\",Calculations!$E$2=\"Eilean Siar Local Authority\"),OR($F67=1,$F67=5)),0,hosp_count(VALUE(LEFT(Options!$B$14,2)),$C67,$E67,$F67,2016,$I67/10,1,$H67/10,$G67*$H67/10, RateRatios_airpollution!$F67, RateRatios_airpollution!$E67)*10))","v":8125.2852417630002},{"$f":"IF(AND(OR(Calculations!$E$2=\"Orkney Health Board\",Calculations!$E$2=\"Orkney Islands Local Authority\"),$F67=1),0,IF(AND(OR(Calculations!$E$2=\"Shetland Health Board\",Calculations!$E$2=\"Western Isles Health Board\",Calculations!$E$2=\"Shetland Islands Local Authority\",Calculations!$E$2=\"Eilean Siar Local Authority\"),OR($F67=1,$F67=5)),0,hosp_count(VALUE(LEFT(Options!$B$14,2)),$C67,$E67,$F67,2016,$I67/10+$J67/10,1,$H67/10,$G67*$H67/10, RateRatios_airpollution!$F67, RateRatios_airpollution!$E67)*10))","v":8125.2852417630002},{"$f":"IF(AND(OR(Calculations!$E$2=\"Orkney Health Board\",Calculations!$E$2=\"Orkney Islands Local Authority\"),$F67=1),0,IF(AND(OR(Calculations!$E$2=\"Shetland Health Board\",Calculations!$E$2=\"Western Isles Health Board\",Calculations!$E$2=\"Shetland Islands Local Authority\",Calculations!$E$2=\"Eilean Siar Local Authority\"),OR($F67=1,$F67=5)),0,prem_mort(VALUE(LEFT(Options!$B$14,2)),$C67,$E67,$F67,2016,$I67/10,1,$H67/10,$G67*$H67/10,RateRatios_airpollution!$E67)*10))","v":57.729726511999999},{"$f":"IF(AND(OR(Calculations!$E$2=\"Orkney Health Board\",Calculations!$E$2=\"Orkney Islands Local Authority\"),$F67=1),0,IF(AND(OR(Calculations!$E$2=\"Shetland Health Board\",Calculations!$E$2=\"Western Isles Health Board\",Calculations!$E$2=\"Shetland Islands Local Authority\",Calculations!$E$2=\"Eilean Siar Local Authority\"),OR($F67=1,$F67=5)),0,prem_mort(VALUE(LEFT(Options!$B$14,2)),$C67,$E67,$F67,2016,$I67/10+$J67/10,1,$H67/10,$G67*$H67/10,RateRatios_airpollution!$E67)*10))","v":57.729236564999994},57.729726511999999,57.711573217999991,2538.9534874569999,2538.1551055510008,8125.2852417630002,8122.6696900089992,57.729726511999999,57.711573217999991,164.76318999942919,164.71137969632969,7246.2854257006675,7244.0068084679515,23189.923060000572,23182.458159737995,164.76318999942919,164.71137969632969,1153342.3299960042,1152979.6578743078,50723997.979904674,50708047.659275658,162329461.42000401,162277207.11816597,1153342.3299960042,1152979.6578743078,7000]
[null,"Female 40-44",42.077438000000001,82.30744,"female",1,1,{"$f":"HLOOKUP(Calculations!$E$2,'Population 2016'!$C$3:$BC$249,'Population 2016'!BD68,FALSE)","v":33663},0,{"$f":"HLOOKUP(Calculations!$E$2,Pop2016_in_settlements!$C$3:$BC$249,Pop2016_in_settlements!$BD68,FALSE)","v":24487},{"$f":"IF(AND(OR(Calculations!$E$2=\"Orkney Health Board\",Calculations!$E$2=\"Orkney Islands Local Authority\"),$F68=1),0,IF(AND(OR(Calculations!$E$2=\"Shetland Health Board\",Calculations!$E$2=\"Western Isles Health Board\",Calculations!$E$2=\"Shetland Islands Local Authority\",Calculations!$E$2=\"Eilean Siar Local Authority\"),OR($F68=1,$F68=5)),0,new_ci(VALUE(LEFT(Options!$B$14,2)),$C68,$E68,$F68,2016,$I68/10,1,$H68/10,$G68*$H68/10,RateRatios_accidents!$B$5)*10))","v":85.979321362000007},{"$f":"IF(AND(OR(Calculations!$E$2=\"Orkney Health Board\",Calculations!$E$2=\"Orkney Islands Local Authority\"),$F68=1),0,IF(AND(OR(Calculations!$E$2=\"Shetland Health Board\",Calculations!$E$2=\"Western Isles Health Board\",Calculations!$E$2=\"Shetland Islands Local Authority\",Calculations!$E$2=\"Eilean Siar Local Authority\"),OR($F68=1,$F68=5)),0,new_ci(VALUE(LEFT(Options!$B$14,2)),$C68,$E68,$F68,2016,$I68/10+$J68/10,1,$H68/10,$G68*$H68/10,RateRatios_accidents!$B$5)*10))","v":85.954334827000011},{"$f":"IF(AND(OR(Calculations!$E$2=\"Orkney Health Board\",Calculations!$E$2=\"Orkney Islands Local Authority\"),$F68=1),0,IF(AND(OR(Calculations!$E$2=\"Shetland Health Board\",Calculations!$E$2=\"Western Isles Health Board\",Calculations!$E$2=\"Shetland Islands Local Authority\",Calculations!$E$2=\"Eilean Siar Local Authority\"),OR($F68=1,$F68=5)),0,new_yllv2(VALUE(LEFT(Options!$B$14,2)),$C68,$D68,$E68,$F68,2016,$I68/10,1,$H68/10,$G68*$H68/10,RateRatios_accidents!$B$5)*10))","v":3372.9689489900002},{"$f":"IF(AND(OR(Calculations!$E$2=\"Orkney Health Board\",Calculations!$E$2=\"Orkney Islands Local Authority\"),$F68=1),0,IF(AND(OR(Calculations!$E$2=\"Shetland Health Board\",Calculations!$E$2=\"Western Isles Health Board\",Calculations!$E$2=\"Shetland Islands Local Authority\",Calculations!$E$2=\"Eilean Siar Local Authority\"),OR($F68=1,$F68=5)),0,new_yllv2(VALUE(LEFT(Options!$B$14,2)),$C68,$D68,$E68,$F68,2016,$I68/10+$J68/10,1,$H68/10,$G68*$H68/10,RateRatios_accidents!$B$5)*10))","v":3371.9887271719999},{"$f":"IF(AND(OR(Calculations!$E$2=\"Orkney Health Board\",Calculations!$E$2=\"Orkney Islands Local Authority\"),$F68=1),0,IF(AND(OR(Calculations!$E$2=\"Shetland Health Board\",Calculations!$E$2=\"Western Isles Health Board\",Calculations!$E$2=\"Shetland Islands Local Authority\",Calculations!$E$2=\"Eilean Siar Local Authority\"),OR($F68=1,$F68=5)),0,hosp_count(VALUE(LEFT(Options!$B$14,2)),$C68,$E68,$F68,2016,$I68/10,1,$H68/10,$G68*$H68/10, RateRatios_accidents!$B$4, RateRatios_accidents!$B$5)*10))","v":8888.1852506180003},{"$f":"IF(AND(OR(Calculations!$E$2=\"Orkney Health Board\",Calculations!$E$2=\"Orkney Islands Local Authority\"),$F68=1),0,IF(AND(OR(Calculations!$E$2=\"Shetland Health Board\",Calculations!$E$2=\"Western Isles Health Board\",Calculations!$E$2=\"Shetland Islands Local Authority\",Calculations!$E$2=\"Eilean Siar Local Authority\"),OR($F68=1,$F68=5)),0,hosp_count(VALUE(LEFT(Options!$B$14,2)),$C68,$E68,$F68,2016,$I68/10+$J68/10,1,$H68/10,$G68*$H68/10, RateRatios_accidents!$B$4, RateRatios_accidents!$B$5)*10))","v":8885.5990879460005},{"$f":"IF(AND(OR(Calculations!$E$2=\"Orkney Health Board\",Calculations!$E$2=\"Orkney Islands Local Authority\"),$F68=1),0,IF(AND(OR(Calculations!$E$2=\"Shetland Health Board\",Calculations!$E$2=\"Western Isles Health Board\",Calculations!$E$2=\"Shetland Islands Local Authority\",Calculations!$E$2=\"Eilean Siar Local Authority\"),OR($F68=1,$F68=5)),0,prem_mort(VALUE(LEFT(Options!$B$14,2)),$C68,$E68,$F68,2016,$I68/10,1,$H68/10,$G68*$H68/10,RateRatios_accidents!$B$5)*10))","v":85.979321362000007},{"$f":"IF(AND(OR(Calculations!$E$2=\"Orkney Health Board\",Calculations!$E$2=\"Orkney Islands Local Authority\"),$F68=1),0,IF(AND(OR(Calculations!$E$2=\"Shetland Health Board\",Calculations!$E$2=\"Western Isles Health Board\",Calculations!$E$2=\"Shetland Islands Local Authority\",Calculations!$E$2=\"Eilean Siar Local Authority\"),OR($F68=1,$F68=5)),0,prem_mort(VALUE(LEFT(Options!$B$14,2)),$C68,$E68,$F68,2016,$I68/10+$J68/10,1,$H68/10,$G68*$H68/10,RateRatios_accidents!$B$5)*10))","v":85.954334827000011},null,{"$f":"IF(AND(OR(Calculations!$E$2=\"Orkney Health Board\",Calculations!$E$2=\"Orkney Islands Local Authority\"),$F68=1),0,IF(AND(OR(Calculations!$E$2=\"Shetland Health Board\",Calculations!$E$2=\"Western Isles Health Board\",Calculations!$E$2=\"Shetland Islands Local Authority\",Calculations!$E$2=\"Eilean Siar Local Authority\"),OR($F68=1,$F68=5)),0,new_ci(VALUE(LEFT(Options!$B$14,2)),$C68,$E68,$F68,2016,$I68/10,1,$H68/10,$G68*$H68/10,RateRatios_airpollution!$C68)*10))","v":85.979321362000007},{"$f":"IF(AND(OR(Calculations!$E$2=\"Orkney Health Board\",Calculations!$E$2=\"Orkney Islands Local Authority\"),$F68=1),0,IF(AND(OR(Calculations!$E$2=\"Shetland Health Board\",Calculations!$E$2=\"Western Isles Health Board\",Calculations!$E$2=\"Shetland Islands Local Authority\",Calculations!$E$2=\"Eilean Siar Local Authority\"),OR($F68=1,$F68=5)),0,new_ci(VALUE(LEFT(Options!$B$14,2)),$C68,$E68,$F68,2016,$I68/10+$J68/10,1,$H68/10,$G68*$H68/10,RateRatios_airpollution!$C68)*10))","v":85.977827654999999},{"$f":"IF(AND(OR(Calculations!$E$2=\"Orkney Health Board\",Calculations!$E$2=\"Orkney Islands Local Authority\"),$F68=1),0,IF(AND(OR(Calculations!$E$2=\"Shetland Health Board\",Calculations!$E$2=\"Western Isles Health Board\",Calculations!$E$2=\"Shetland Islands Local Authority\",Calculations!$E$2=\"Eilean Siar Local Authority\"),OR($F68=1,$F68=5)),0,new_yllv2(VALUE(LEFT(Options!$B$14,2)),$C68,$D68,$E68,$F68,2016,$I68/10,1,$H68/10,$G68*$H68/10,RateRatios_airpollution!$C68)*10))","v":3372.9689489900002},{"$f":"IF(AND(OR(Calculations!$E$2=\"Orkney Health Board\",Calculations!$E$2=\"Orkney Islands Local Authority\"),$F68=1),0,IF(AND(OR(Calculations!$E$2=\"Shetland Health Board\",Calculations!$E$2=\"Western Isles Health Board\",Calculations!$E$2=\"Shetland Islands Local Authority\",Calculations!$E$2=\"Eilean Siar Local Authority\"),OR($F68=1,$F68=5)),0,new_yllv2(VALUE(LEFT(Options!$B$14,2)),$C68,$D68,$E68,$F68,2016,$I68/10+$J68/10,1,$H68/10,$G68*$H68/10,RateRatios_airpollution!$C68)*10))","v":3372.9103508610001},{"$f":"IF(AND(OR(Calculations!$E$2=\"Orkney Health Board\",Calculations!$E$2=\"Orkney Islands Local Authority\"),$F68=1),0,IF(AND(OR(Calculations!$E$2=\"Shetland Health Board\",Calculations!$E$2=\"Western Isles Health Board\",Calculations!$E$2=\"Shetland Islands Local Authority\",Calculations!$E$2=\"Eilean Siar Local Authority\"),OR($F68=1,$F68=5)),0,hosp_count(VALUE(LEFT(Options!$B$14,2)),$C68,$E68,$F68,2016,$I68/10,1,$H68/10,$G68*$H68/10, RateRatios_airpollution!$D68, RateRatios_airpollution!$C68)*10))","v":8888.1852506180003},{"$f":"IF(AND(OR(Calculations!$E$2=\"Orkney Health Board\",Calculations!$E$2=\"Orkney Islands Local Authority\"),$F68=1),0,IF(AND(OR(Calculations!$E$2=\"Shetland Health Board\",Calculations!$E$2=\"Western Isles Health Board\",Calculations!$E$2=\"Shetland Islands Local Authority\",Calculations!$E$2=\"Eilean Siar Local Authority\"),OR($F68=1,$F68=5)),0,hosp_count(VALUE(LEFT(Options!$B$14,2)),$C68,$E68,$F68,2016,$I68/10+$J68/10,1,$H68/10,$G68*$H68/10, RateRatios_airpollution!$D68, RateRatios_airpollution!$C68)*10))","v":8887.8943181220002},{"$f":"IF(AND(OR(Calculations!$E$2=\"Orkney Health Board\",Calculations!$E$2=\"Orkney Islands Local Authority\"),$F68=1),0,IF(AND(OR(Calculations!$E$2=\"Shetland Health Board\",Calculations!$E$2=\"Western Isles Health Board\",Calculations!$E$2=\"Shetland Islands Local Authority\",Calculations!$E$2=\"Eilean Siar Local Authority\"),OR($F68=1,$F68=5)),0,prem_mort(VALUE(LEFT(Options!$B$14,2)),$C68,$E68,$F68,2016,$I68/10,1,$H68/10,$G68*$H68/10,RateRatios_airpollution!$C68)*10))","v":85.979321362000007},{"$f":"IF(AND(OR(Calculations!$E$2=\"Orkney Health Board\",Calculations!$E$2=\"Orkney Islands Local Authority\"),$F68=1),0,IF(AND(OR(Calculations!$E$2=\"Shetland Health Board\",Calculations!$E$2=\"Western Isles Health Board\",Calculations!$E$2=\"Shetland Islands Local Authority\",Calculations!$E$2=\"Eilean Siar Local Authority\"),OR($F68=1,$F68=5)),0,prem_mort(VALUE(LEFT(Options!$B$14,2)),$C68,$E68,$F68,2016,$I68/10+$J68/10,1,$H68/10,$G68*$H68/10,RateRatios_airpollution!$C68)*10))","v":85.977827654999999},null,{"$f":"IF(AND(OR(Calculations!$E$2=\"Orkney Health Board\",Calculations!$E$2=\"Orkney Islands Local Authority\"),$F68=1),0,IF(AND(OR(Calculations!$E$2=\"Shetland Health Board\",Calculations!$E$2=\"Western Isles Health Board\",Calculations!$E$2=\"Shetland Islands Local Authority\",Calculations!$E$2=\"Eilean Siar Local Authority\"),OR($F68=1,$F68=5)),0,new_ci(VALUE(LEFT(Options!$B$14,2)),$C68,$E68,$F68,2016,$I68/10,1,$H68/10,$G68*$H68/10,RateRatios_airpollution!$E68)*10))","v":85.979321362000007},{"$f":"IF(AND(OR(Calculations!$E$2=\"Orkney Health Board\",Calculations!$E$2=\"Orkney Islands Local Authority\"),$F68=1),0,IF(AND(OR(Calculations!$E$2=\"Shetland Health Board\",Calculations!$E$2=\"Western Isles Health Board\",Calculations!$E$2=\"Shetland Islands Local Authority\",Calculations!$E$2=\"Eilean Siar Local Authority\"),OR($F68=1,$F68=5)),0,new_ci(VALUE(LEFT(Options!$B$14,2)),$C68,$E68,$F68,2016,$I68/10+$J68/10,1,$H68/10,$G68*$H68/10,RateRatios_airpollution!$E68)*10))","v":85.97860879000001},{"$f":"IF(AND(OR(Calculations!$E$2=\"Orkney Health Board\",Calculations!$E$2=\"Orkney Islands Local Authority\"),$F68=1),0,IF(AND(OR(Calculations!$E$2=\"Shetland Health Board\",Calculations!$E$2=\"Western Isles Health Board\",Calculations!$E$2=\"Shetland Islands Local Authority\",Calculations!$E$2=\"Eilean Siar Local Authority\"),OR($F68=1,$F68=5)),0,new_yllv2(VALUE(LEFT(Options!$B$14,2)),$C68,$D68,$E68,$F68,2016,$I68/10,1,$H68/10,$G68*$H68/10,RateRatios_airpollution!$E68)*10))","v":3372.9689489900002},{"$f":"IF(AND(OR(Calculations!$E$2=\"Orkney Health Board\",Calculations!$E$2=\"Orkney Islands Local Authority\"),$F68=1),0,IF(AND(OR(Calculations!$E$2=\"Shetland Health Board\",Calculations!$E$2=\"Western Isles Health Board\",Calculations!$E$2=\"Shetland Islands Local Authority\",Calculations!$E$2=\"Eilean Siar Local Authority\"),OR($F68=1,$F68=5)),0,new_yllv2(VALUE(LEFT(Options!$B$14,2)),$C68,$D68,$E68,$F68,2016,$I68/10+$J68/10,1,$H68/10,$G68*$H68/10,RateRatios_airpollution!$E68)*10))","v":3372.9409947890003},{"$f":"IF(AND(OR(Calculations!$E$2=\"Orkney Health Board\",Calculations!$E$2=\"Orkney Islands Local Authority\"),$F68=1),0,IF(AND(OR(Calculations!$E$2=\"Shetland Health Board\",Calculations!$E$2=\"Western Isles Health Board\",Calculations!$E$2=\"Shetland Islands Local Authority\",Calculations!$E$2=\"Eilean Siar Local Authority\"),OR($F68=1,$F68=5)),0,hosp_count(VALUE(LEFT(Options!$B$14,2)),$C68,$E68,$F68,2016,$I68/10,1,$H68/10,$G68*$H68/10, RateRatios_airpollution!$F68, RateRatios_airpollution!$E68)*10))","v":8888.1852506180003},{"$f":"IF(AND(OR(Calculations!$E$2=\"Orkney Health Board\",Calculations!$E$2=\"Orkney Islands Local Authority\"),$F68=1),0,IF(AND(OR(Calculations!$E$2=\"Shetland Health Board\",Calculations!$E$2=\"Western Isles Health Board\",Calculations!$E$2=\"Shetland Islands Local Authority\",Calculations!$E$2=\"Eilean Siar Local Authority\"),OR($F68=1,$F68=5)),0,hosp_count(VALUE(LEFT(Options!$B$14,2)),$C68,$E68,$F68,2016,$I68/10+$J68/10,1,$H68/10,$G68*$H68/10, RateRatios_airpollution!$F68, RateRatios_airpollution!$E68)*10))","v":8888.1852506180003},{"$f":"IF(AND(OR(Calculations!$E$2=\"Orkney Health Board\",Calculations!$E$2=\"Orkney Islands Local Authority\"),$F68=1),0,IF(AND(OR(Calculations!$E$2=\"Shetland Health Board\",Calculations!$E$2=\"Western Isles Health Board\",Calculations!$E$2=\"Shetland Islands Local Authority\",Calculations!$E$2=\"Eilean Siar Local Authority\"),OR($F68=1,$F68=5)),0,prem_mort(VALUE(LEFT(Options!$B$14,2)),$C68,$E68,$F68,2016,$I68/10,1,$H68/10,$G68*$H68/10,RateRatios_airpollution!$E68)*10))","v":85.979321362000007},{"$f":"IF(AND(OR(Calculations!$E$2=\"Orkney Health Board\",Calculations!$E$2=\"Orkney Islands Local Authority\"),$F68=1),0,IF(AND(OR(Calculations!$E$2=\"Shetland Health Board\",Calculations!$E$2=\"Western Isles Health Board\",Calculations!$E$2=\"Shetland Islands Local Authority\",Calculations!$E$2=\"Eilean Siar Local Authority\"),OR($F68=1,$F68=5)),0,prem_mort(VALUE(LEFT(Options!$B$14,2)),$C68,$E68,$F68,2016,$I68/10+$J68/10,1,$H68/10,$G68*$H68/10,RateRatios_airpollution!$E68)*10))","v":85.97860879000001},85.979321362000007,85.952128548000005,3372.9689489900002,3371.902174842,8888.1852506180003,8885.3081554500004,85.979321362000007,85.952128548000005,255.41193999940592,255.33116046698157,10019.810917000861,10016.641935781125,26403.425869999704,26394.879111932984,255.41193999940592,255.33116046698157,1787883.5799958415,1787318.1232688711,70138676.419006035,70116493.550467879,184823981.08999792,184764153.78353089,1787883.5799958415,1787318.1232688711,7000]
[null,"Female 45-49",47.025772000000003,82.585769999999997,"female",1,1,{"$f":"HLOOKUP(Calculations!$E$2,'Population 2016'!$C$3:$BC$249,'Population 2016'!BD69,FALSE)","v":39197},0,{"$f":"HLOOKUP(Calculations!$E$2,Pop2016_in_settlements!$C$3:$BC$249,Pop2016_in_settlements!$BD69,FALSE)","v":28713},{"$f":"IF(AND(OR(Calculations!$E$2=\"Orkney Health Board\",Calculations!$E$2=\"Orkney Islands Local Authority\"),$F69=1),0,IF(AND(OR(Calculations!$E$2=\"Shetland Health Board\",Calculations!$E$2=\"Western Isles Health Board\",Calculations!$E$2=\"Shetland Islands Local Authority\",Calculations!$E$2=\"Eilean Siar Local Authority\"),OR($F69=1,$F69=5)),0,new_ci(VALUE(LEFT(Options!$B$14,2)),$C69,$E69,$F69,2016,$I69/10,1,$H69/10,$G69*$H69/10,RateRatios_accidents!$B$5)*10))","v":152.40114623400001},{"$f":"IF(AND(OR(Calculations!$E$2=\"Orkney Health Board\",Calculations!$E$2=\"Orkney Islands Local Authority\"),$F69=1),0,IF(AND(OR(Calculations!$E$2=\"Shetland Health Board\",Calculations!$E$2=\"Western Isles Health Board\",Calculations!$E$2=\"Shetland Islands Local Authority\",Calculations!$E$2=\"Eilean Siar Local Authority\"),OR($F69=1,$F69=5)),0,new_ci(VALUE(LEFT(Options!$B$14,2)),$C69,$E69,$F69,2016,$I69/10+$J69/10,1,$H69/10,$G69*$H69/10,RateRatios_accidents!$B$5)*10))","v":152.35657791599999},{"$f":"IF(AND(OR(Calculations!$E$2=\"Orkney Health Board\",Calculations!$E$2=\"Orkney Islands Local Authority\"),$F69=1),0,IF(AND(OR(Calculations!$E$2=\"Shetland Health Board\",Calculations!$E$2=\"Western Isles Health Board\",Calculations!$E$2=\"Shetland Islands Local Authority\",Calculations!$E$2=\"Eilean Siar Local Authority\"),OR($F69=1,$F69=5)),0,new_yllv2(VALUE(LEFT(Options!$B$14,2)),$C69,$D69,$E69,$F69,2016,$I69/10,1,$H69/10,$G69*$H69/10,RateRatios_accidents!$B$5)*10))","v":5266.9833090450002},{"$f":"IF(AND(OR(Calculations!$E$2=\"Orkney Health Board\",Calculations!$E$2=\"Orkney Islands Local Authority\"),$F69=1),0,IF(AND(OR(Calculations!$E$2=\"Shetland Health Board\",Calculations!$E$2=\"Western Isles Health Board\",Calculations!$E$2=\"Shetland Islands Local Authority\",Calculations!$E$2=\"Eilean Siar Local Authority\"),OR($F69=1,$F69=5)),0,new_yllv2(VALUE(LEFT(Options!$B$14,2)),$C69,$D69,$E69,$F69,2016,$I69/10+$J69/10,1,$H69/10,$G69*$H69/10,RateRatios_accidents!$B$5)*10))","v":5265.4430280639999},{"$f":"IF(AND(OR(Calculations!$E$2=\"Orkney Health Board\",Calculations!$E$2=\"Orkney Islands Local Authority\"),$F69=1),0,IF(AND(OR(Calculations!$E$2=\"Shetland Health Board\",Calculations!$E$2=\"Western Isles Health Board\",Calculations!$E$2=\"Shetland Islands Local Authority\",Calculations!$E$2=\"Eilean Siar Local Authority\"),OR($F69=1,$F69=5)),0,hosp_count(VALUE(LEFT(Options!$B$14,2)),$C69,$E69,$F69,2016,$I69/10,1,$H69/10,$G69*$H69/10, RateRatios_accidents!$B$4, RateRatios_accidents!$B$5)*10))","v":11721.123672973999},{"$f":"IF(AND(OR(Calculations!$E$2=\"Orkney Health Board\",Calculations!$E$2=\"Orkney Islands Local Authority\"),$F69=1),0,IF(AND(OR(Calculations!$E$2=\"Shetland Health Board\",Calculations!$E$2=\"Western Isles Health Board\",Calculations!$E$2=\"Shetland Islands Local Authority\",Calculations!$E$2=\"Eilean Siar Local Authority\"),OR($F69=1,$F69=5)),0,hosp_count(VALUE(LEFT(Options!$B$14,2)),$C69,$E69,$F69,2016,$I69/10+$J69/10,1,$H69/10,$G69*$H69/10, RateRatios_accidents!$B$4, RateRatios_accidents!$B$5)*10))","v":11717.689239261999},{"$f":"IF(AND(OR(Calculations!$E$2=\"Orkney Health Board\",Calculations!$E$2=\"Orkney Islands Local Authority\"),$F69=1),0,IF(AND(OR(Calculations!$E$2=\"Shetland Health Board\",Calculations!$E$2=\"Western Isles Health Board\",Calculations!$E$2=\"Shetland Islands Local Authority\",Calculations!$E$2=\"Eilean Siar Local Authority\"),OR($F69=1,$F69=5)),0,prem_mort(VALUE(LEFT(Options!$B$14,2)),$C69,$E69,$F69,2016,$I69/10,1,$H69/10,$G69*$H69/10,RateRatios_accidents!$B$5)*10))","v":152.40114623400001},{"$f":"IF(AND(OR(Calculations!$E$2=\"Orkney Health Board\",Calculations!$E$2=\"Orkney Islands Local Authority\"),$F69=1),0,IF(AND(OR(Calculations!$E$2=\"Shetland Health Board\",Calculations!$E$2=\"Western Isles Health Board\",Calculations!$E$2=\"Shetland Islands Local Authority\",Calculations!$E$2=\"Eilean Siar Local Authority\"),OR($F69=1,$F69=5)),0,prem_mort(VALUE(LEFT(Options!$B$14,2)),$C69,$E69,$F69,2016,$I69/10+$J69/10,1,$H69/10,$G69*$H69/10,RateRatios_accidents!$B$5)*10))","v":152.35657791599999},null,{"$f":"IF(AND(OR(Calculations!$E$2=\"Orkney Health Board\",Calculations!$E$2=\"Orkney Islands Local Authority\"),$F69=1),0,IF(AND(OR(Calculations!$E$2=\"Shetland Health Board\",Calculations!$E$2=\"Western Isles Health Board\",Calculations!$E$2=\"Shetland Islands Local Authority\",Calculations!$E$2=\"Eilean Siar Local Authority\"),OR($F69=1,$F69=5)),0,new_ci(VALUE(LEFT(Options!$B$14,2)),$C69,$E69,$F69,2016,$I69/10,1,$H69/10,$G69*$H69/10,RateRatios_airpollution!$C69)*10))","v":152.40114623400001},{"$f":"IF(AND(OR(Calculations!$E$2=\"Orkney Health Board\",Calculations!$E$2=\"Orkney Islands Local Authority\"),$F69=1),0,IF(AND(OR(Calculations!$E$2=\"Shetland Health Board\",Calculations!$E$2=\"Western Isles Health Board\",Calculations!$E$2=\"Shetland Islands Local Authority\",Calculations!$E$2=\"Eilean Siar Local Authority\"),OR($F69=1,$F69=5)),0,new_ci(VALUE(LEFT(Options!$B$14,2)),$C69,$E69,$F69,2016,$I69/10+$J69/10,1,$H69/10,$G69*$H69/10,RateRatios_airpollution!$C69)*10))","v":152.39851325199999},{"$f":"IF(AND(OR(Calculations!$E$2=\"Orkney Health Board\",Calculations!$E$2=\"Orkney Islands Local Authority\"),$F69=1),0,IF(AND(OR(Calculations!$E$2=\"Shetland Health Board\",Calculations!$E$2=\"Western Isles Health Board\",Calculations!$E$2=\"Shetland Islands Local Authority\",Calculations!$E$2=\"Eilean Siar Local Authority\"),OR($F69=1,$F69=5)),0,new_yllv2(VALUE(LEFT(Options!$B$14,2)),$C69,$D69,$E69,$F69,2016,$I69/10,1,$H69/10,$G69*$H69/10,RateRatios_airpollution!$C69)*10))","v":5266.9833090450002},{"$f":"IF(AND(OR(Calculations!$E$2=\"Orkney Health Board\",Calculations!$E$2=\"Orkney Islands Local Authority\"),$F69=1),0,IF(AND(OR(Calculations!$E$2=\"Shetland Health Board\",Calculations!$E$2=\"Western Isles Health Board\",Calculations!$E$2=\"Shetland Islands Local Authority\",Calculations!$E$2=\"Eilean Siar Local Authority\"),OR($F69=1,$F69=5)),0,new_yllv2(VALUE(LEFT(Options!$B$14,2)),$C69,$D69,$E69,$F69,2016,$I69/10+$J69/10,1,$H69/10,$G69*$H69/10,RateRatios_airpollution!$C69)*10))","v":5266.8923131920001},{"$f":"IF(AND(OR(Calculations!$E$2=\"Orkney Health Board\",Calculations!$E$2=\"Orkney Islands Local Authority\"),$F69=1),0,IF(AND(OR(Calculations!$E$2=\"Shetland Health Board\",Calculations!$E$2=\"Western Isles Health Board\",Calculations!$E$2=\"Shetland Islands Local Authority\",Calculations!$E$2=\"Eilean Siar Local Authority\"),OR($F69=1,$F69=5)),0,hosp_count(VALUE(LEFT(Options!$B$14,2)),$C69,$E69,$F69,2016,$I69/10,1,$H69/10,$G69*$H69/10, RateRatios_airpollution!$D69, RateRatios_airpollution!$C69)*10))","v":11721.123672973999},{"$f":"IF(AND(OR(Calculations!$E$2=\"Orkney Health Board\",Calculations!$E$2=\"Orkney Islands Local Authority\"),$F69=1),0,IF(AND(OR(Calculations!$E$2=\"Shetland Health Board\",Calculations!$E$2=\"Western Isles Health Board\",Calculations!$E$2=\"Shetland Islands Local Authority\",Calculations!$E$2=\"Eilean Siar Local Authority\"),OR($F69=1,$F69=5)),0,hosp_count(VALUE(LEFT(Options!$B$14,2)),$C69,$E69,$F69,2016,$I69/10+$J69/10,1,$H69/10,$G69*$H69/10, RateRatios_airpollution!$D69, RateRatios_airpollution!$C69)*10))","v":11720.741376607},{"$f":"IF(AND(OR(Calculations!$E$2=\"Orkney Health Board\",Calculations!$E$2=\"Orkney Islands Local Authority\"),$F69=1),0,IF(AND(OR(Calculations!$E$2=\"Shetland Health Board\",Calculations!$E$2=\"Western Isles Health Board\",Calculations!$E$2=\"Shetland Islands Local Authority\",Calculations!$E$2=\"Eilean Siar Local Authority\"),OR($F69=1,$F69=5)),0,prem_mort(VALUE(LEFT(Options!$B$14,2)),$C69,$E69,$F69,2016,$I69/10,1,$H69/10,$G69*$H69/10,RateRatios_airpollution!$C69)*10))","v":152.40114623400001},{"$f":"IF(AND(OR(Calculations!$E$2=\"Orkney Health Board\",Calculations!$E$2=\"Orkney Islands Local Authority\"),$F69=1),0,IF(AND(OR(Calculations!$E$2=\"Shetland Health Board\",Calculations!$E$2=\"Western Isles Health Board\",Calculations!$E$2=\"Shetland Islands Local Authority\",Calculations!$E$2=\"Eilean Siar Local Authority\"),OR($F69=1,$F69=5)),0,prem_mort(VALUE(LEFT(Options!$B$14,2)),$C69,$E69,$F69,2016,$I69/10+$J69/10,1,$H69/10,$G69*$H69/10,RateRatios_airpollution!$C69)*10))","v":152.39851325199999},null,{"$f":"IF(AND(OR(Calculations!$E$2=\"Orkney Health Board\",Calculations!$E$2=\"Orkney Islands Local Authority\"),$F69=1),0,IF(AND(OR(Calculations!$E$2=\"Shetland Health Board\",Calculations!$E$2=\"Western Isles Health Board\",Calculations!$E$2=\"Shetland Islands Local Authority\",Calculations!$E$2=\"Eilean Siar Local Authority\"),OR($F69=1,$F69=5)),0,new_ci(VALUE(LEFT(Options!$B$14,2)),$C69,$E69,$F69,2016,$I69/10,1,$H69/10,$G69*$H69/10,RateRatios_airpollution!$E69)*10))","v":152.40114623400001},{"$f":"IF(AND(OR(Calculations!$E$2=\"Orkney Health Board\",Calculations!$E$2=\"Orkney Islands Local Authority\"),$F69=1),0,IF(AND(OR(Calculations!$E$2=\"Shetland Health Board\",Calculations!$E$2=\"Western Isles Health Board\",Calculations!$E$2=\"Shetland Islands Local Authority\",Calculations!$E$2=\"Eilean Siar Local Authority\"),OR($F69=1,$F69=5)),0,new_ci(VALUE(LEFT(Options!$B$14,2)),$C69,$E69,$F69,2016,$I69/10+$J69/10,1,$H69/10,$G69*$H69/10,RateRatios_airpollution!$E69)*10))","v":152.399888605},{"$f":"IF(AND(OR(Calculations!$E$2=\"Orkney Health Board\",Calculations!$E$2=\"Orkney Islands Local Authority\"),$F69=1),0,IF(AND(OR(Calculations!$E$2=\"Shetland Health Board\",Calculations!$E$2=\"Western Isles Health Board\",Calculations!$E$2=\"Shetland Islands Local Authority\",Calculations!$E$2=\"Eilean Siar Local Authority\"),OR($F69=1,$F69=5)),0,new_yllv2(VALUE(LEFT(Options!$B$14,2)),$C69,$D69,$E69,$F69,2016,$I69/10,1,$H69/10,$G69*$H69/10,RateRatios_airpollution!$E69)*10))","v":5266.9833090450002},{"$f":"IF(AND(OR(Calculations!$E$2=\"Orkney Health Board\",Calculations!$E$2=\"Orkney Islands Local Authority\"),$F69=1),0,IF(AND(OR(Calculations!$E$2=\"Shetland Health Board\",Calculations!$E$2=\"Western Isles Health Board\",Calculations!$E$2=\"Shetland Islands Local Authority\",Calculations!$E$2=\"Eilean Siar Local Authority\"),OR($F69=1,$F69=5)),0,new_yllv2(VALUE(LEFT(Options!$B$14,2)),$C69,$D69,$E69,$F69,2016,$I69/10+$J69/10,1,$H69/10,$G69*$H69/10,RateRatios_airpollution!$E69)*10))","v":5266.9398453890008},{"$f":"IF(AND(OR(Calculations!$E$2=\"Orkney Health Board\",Calculations!$E$2=\"Orkney Islands Local Authority\"),$F69=1),0,IF(AND(OR(Calculations!$E$2=\"Shetland Health Board\",Calculations!$E$2=\"Western Isles Health Board\",Calculations!$E$2=\"Shetland Islands Local Authority\",Calculations!$E$2=\"Eilean Siar Local Authority\"),OR($F69=1,$F69=5)),0,hosp_count(VALUE(LEFT(Options!$B$14,2)),$C69,$E69,$F69,2016,$I69/10,1,$H69/10,$G69*$H69/10, RateRatios_airpollution!$F69, RateRatios_airpollution!$E69)*10))","v":11721.123672973999},{"$f":"IF(AND(OR(Calculations!$E$2=\"Orkney Health Board\",Calculations!$E$2=\"Orkney Islands Local Authority\"),$F69=1),0,IF(AND(OR(Calculations!$E$2=\"Shetland Health Board\",Calculations!$E$2=\"Western Isles Health Board\",Calculations!$E$2=\"Shetland Islands Local Authority\",Calculations!$E$2=\"Eilean Siar Local Authority\"),OR($F69=1,$F69=5)),0,hosp_count(VALUE(LEFT(Options!$B$14,2)),$C69,$E69,$F69,2016,$I69/10+$J69/10,1,$H69/10,$G69*$H69/10, RateRatios_airpollution!$F69, RateRatios_airpollution!$E69)*10))","v":11721.123672973999},{"$f":"IF(AND(OR(Calculations!$E$2=\"Orkney Health Board\",Calculations!$E$2=\"Orkney Islands Local Authority\"),$F69=1),0,IF(AND(OR(Calculations!$E$2=\"Shetland Health Board\",Calculations!$E$2=\"Western Isles Health Board\",Calculations!$E$2=\"Shetland Islands Local Authority\",Calculations!$E$2=\"Eilean Siar Local Authority\"),OR($F69=1,$F69=5)),0,prem_mort(VALUE(LEFT(Options!$B$14,2)),$C69,$E69,$F69,2016,$I69/10,1,$H69/10,$G69*$H69/10,RateRatios_airpollution!$E69)*10))","v":152.40114623400001},{"$f":"IF(AND(OR(Calculations!$E$2=\"Orkney Health Board\",Calculations!$E$2=\"Orkney Islands Local Authority\"),$F69=1),0,IF(AND(OR(Calculations!$E$2=\"Shetland Health Board\",Calculations!$E$2=\"Western Isles Health Board\",Calculations!$E$2=\"Shetland Islands Local Authority\",Calculations!$E$2=\"Eilean Siar Local Authority\"),OR($F69=1,$F69=5)),0,prem_mort(VALUE(LEFT(Options!$B$14,2)),$C69,$E69,$F69,2016,$I69/10+$J69/10,1,$H69/10,$G69*$H69/10,RateRatios_airpollution!$E69)*10))","v":152.399888605},152.40114623400001,{"$f":"AK69-((AK69-L69)+(AK69-U69)+(AK69-AD69))","v":152.35268730499996},5266.9833090450002,{"$f":"AM69-((AM69-N69)+(AM69-W69)+(AM69-AF69))","v":5265.3085685550004},11721.123672973999,{"$f":"AO69-((AO69-P69)+(AO69-Y69)+(AO69-AH69))","v":11717.306942895},152.40114623400001,{"$f":"AQ69-((AQ69-R69)+(AQ69-AA69)+(AQ69-AJ69))","v":152.35268730499996},388.80818999923468,388.68456082098112,13437.210268757814,13432.937644602904,29903.1142,29893.376898474373,388.80818999923468,388.68456082098112,2721657.3299946426,2720791.9257468679,94060471.881304696,94030563.512220323,209321799.40000001,209253638.28932062,2721657.3299946426,2720791.9257468679,7000]
[null,"Female 50-54",51.990825999999998,82.980829999999997,"female",1,1,{"$f":"HLOOKUP(Calculations!$E$2,'Population 2016'!$C$3:$BC$249,'Population 2016'!BD70,FALSE)","v":39704},0,{"$f":"HLOOKUP(Calculations!$E$2,Pop2016_in_settlements!$C$3:$BC$249,Pop2016_in_settlements!$BD70,FALSE)","v":29381},{"$f":"IF(AND(OR(Calculations!$E$2=\"Orkney Health Board\",Calculations!$E$2=\"Orkney Islands Local Authority\"),$F70=1),0,IF(AND(OR(Calculations!$E$2=\"Shetland Health Board\",Calculations!$E$2=\"Western Isles Health Board\",Calculations!$E$2=\"Shetland Islands Local Authority\",Calculations!$E$2=\"Eilean Siar Local Authority\"),OR($F70=1,$F70=5)),0,new_ci(VALUE(LEFT(Options!$B$14,2)),$C70,$E70,$F70,2016,$I70/10,1,$H70/10,$G70*$H70/10,RateRatios_accidents!$B$5)*10))","v":235.24900707299997},{"$f":"IF(AND(OR(Calculations!$E$2=\"Orkney Health Board\",Calculations!$E$2=\"Orkney Islands Local Authority\"),$F70=1),0,IF(AND(OR(Calculations!$E$2=\"Shetland Health Board\",Calculations!$E$2=\"Western Isles Health Board\",Calculations!$E$2=\"Shetland Islands Local Authority\",Calculations!$E$2=\"Eilean Siar Local Authority\"),OR($F70=1,$F70=5)),0,new_ci(VALUE(LEFT(Options!$B$14,2)),$C70,$E70,$F70,2016,$I70/10+$J70/10,1,$H70/10,$G70*$H70/10,RateRatios_accidents!$B$5)*10))","v":235.17957976999998},{"$f":"IF(AND(OR(Calculations!$E$2=\"Orkney Health Board\",Calculations!$E$2=\"Orkney Islands Local Authority\"),$F70=1),0,IF(AND(OR(Calculations!$E$2=\"Shetland Health Board\",Calculations!$E$2=\"Western Isles Health Board\",Calculations!$E$2=\"Shetland Islands Local Authority\",Calculations!$E$2=\"Eilean Siar Local Authority\"),OR($F70=1,$F70=5)),0,new_yllv2(VALUE(LEFT(Options!$B$14,2)),$C70,$D70,$E70,$F70,2016,$I70/10,1,$H70/10,$G70*$H70/10,RateRatios_accidents!$B$5)*10))","v":7055.1186631149994},{"$f":"IF(AND(OR(Calculations!$E$2=\"Orkney Health Board\",Calculations!$E$2=\"Orkney Islands Local Authority\"),$F70=1),0,IF(AND(OR(Calculations!$E$2=\"Shetland Health Board\",Calculations!$E$2=\"Western Isles Health Board\",Calculations!$E$2=\"Shetland Islands Local Authority\",Calculations!$E$2=\"Eilean Siar Local Authority\"),OR($F70=1,$F70=5)),0,new_yllv2(VALUE(LEFT(Options!$B$14,2)),$C70,$D70,$E70,$F70,2016,$I70/10+$J70/10,1,$H70/10,$G70*$H70/10,RateRatios_accidents!$B$5)*10))","v":7053.0365380210005},{"$f":"IF(AND(OR(Calculations!$E$2=\"Orkney Health Board\",Calculations!$E$2=\"Orkney Islands Local Authority\"),$F70=1),0,IF(AND(OR(Calculations!$E$2=\"Shetland Health Board\",Calculations!$E$2=\"Western Isles Health Board\",Calculations!$E$2=\"Shetland Islands Local Authority\",Calculations!$E$2=\"Eilean Siar Local Authority\"),OR($F70=1,$F70=5)),0,hosp_count(VALUE(LEFT(Options!$B$14,2)),$C70,$E70,$F70,2016,$I70/10,1,$H70/10,$G70*$H70/10, RateRatios_accidents!$B$4, RateRatios_accidents!$B$5)*10))","v":13452.080933396001},{"$f":"IF(AND(OR(Calculations!$E$2=\"Orkney Health Board\",Calculations!$E$2=\"Orkney Islands Local Authority\"),$F70=1),0,IF(AND(OR(Calculations!$E$2=\"Shetland Health Board\",Calculations!$E$2=\"Western Isles Health Board\",Calculations!$E$2=\"Shetland Islands Local Authority\",Calculations!$E$2=\"Eilean Siar Local Authority\"),OR($F70=1,$F70=5)),0,hosp_count(VALUE(LEFT(Options!$B$14,2)),$C70,$E70,$F70,2016,$I70/10+$J70/10,1,$H70/10,$G70*$H70/10, RateRatios_accidents!$B$4, RateRatios_accidents!$B$5)*10))","v":13448.099111566},{"$f":"IF(AND(OR(Calculations!$E$2=\"Orkney Health Board\",Calculations!$E$2=\"Orkney Islands Local Authority\"),$F70=1),0,IF(AND(OR(Calculations!$E$2=\"Shetland Health Board\",Calculations!$E$2=\"Western Isles Health Board\",Calculations!$E$2=\"Shetland Islands Local Authority\",Calculations!$E$2=\"Eilean Siar Local Authority\"),OR($F70=1,$F70=5)),0,prem_mort(VALUE(LEFT(Options!$B$14,2)),$C70,$E70,$F70,2016,$I70/10,1,$H70/10,$G70*$H70/10,RateRatios_accidents!$B$5)*10))","v":235.24900707299997},{"$f":"IF(AND(OR(Calculations!$E$2=\"Orkney Health Board\",Calculations!$E$2=\"Orkney Islands Local Authority\"),$F70=1),0,IF(AND(OR(Calculations!$E$2=\"Shetland Health Board\",Calculations!$E$2=\"Western Isles Health Board\",Calculations!$E$2=\"Shetland Islands Local Authority\",Calculations!$E$2=\"Eilean Siar Local Authority\"),OR($F70=1,$F70=5)),0,prem_mort(VALUE(LEFT(Options!$B$14,2)),$C70,$E70,$F70,2016,$I70/10+$J70/10,1,$H70/10,$G70*$H70/10,RateRatios_accidents!$B$5)*10))","v":235.17957976999998},null,{"$f":"IF(AND(OR(Calculations!$E$2=\"Orkney Health Board\",Calculations!$E$2=\"Orkney Islands Local Authority\"),$F70=1),0,IF(AND(OR(Calculations!$E$2=\"Shetland Health Board\",Calculations!$E$2=\"Western Isles Health Board\",Calculations!$E$2=\"Shetland Islands Local Authority\",Calculations!$E$2=\"Eilean Siar Local Authority\"),OR($F70=1,$F70=5)),0,new_ci(VALUE(LEFT(Options!$B$14,2)),$C70,$E70,$F70,2016,$I70/10,1,$H70/10,$G70*$H70/10,RateRatios_airpollution!$C70)*10))","v":235.24900707299997},{"$f":"IF(AND(OR(Calculations!$E$2=\"Orkney Health Board\",Calculations!$E$2=\"Orkney Islands Local Authority\"),$F70=1),0,IF(AND(OR(Calculations!$E$2=\"Shetland Health Board\",Calculations!$E$2=\"Western Isles Health Board\",Calculations!$E$2=\"Shetland Islands Local Authority\",Calculations!$E$2=\"Eilean Siar Local Authority\"),OR($F70=1,$F70=5)),0,new_ci(VALUE(LEFT(Options!$B$14,2)),$C70,$E70,$F70,2016,$I70/10+$J70/10,1,$H70/10,$G70*$H70/10,RateRatios_airpollution!$C70)*10))","v":235.244893733},{"$f":"IF(AND(OR(Calculations!$E$2=\"Orkney Health Board\",Calculations!$E$2=\"Orkney Islands Local Authority\"),$F70=1),0,IF(AND(OR(Calculations!$E$2=\"Shetland Health Board\",Calculations!$E$2=\"Western Isles Health Board\",Calculations!$E$2=\"Shetland Islands Local Authority\",Calculations!$E$2=\"Eilean Siar Local Authority\"),OR($F70=1,$F70=5)),0,new_yllv2(VALUE(LEFT(Options!$B$14,2)),$C70,$D70,$E70,$F70,2016,$I70/10,1,$H70/10,$G70*$H70/10,RateRatios_airpollution!$C70)*10))","v":7055.1186631149994},{"$f":"IF(AND(OR(Calculations!$E$2=\"Orkney Health Board\",Calculations!$E$2=\"Orkney Islands Local Authority\"),$F70=1),0,IF(AND(OR(Calculations!$E$2=\"Shetland Health Board\",Calculations!$E$2=\"Western Isles Health Board\",Calculations!$E$2=\"Shetland Islands Local Authority\",Calculations!$E$2=\"Eilean Siar Local Authority\"),OR($F70=1,$F70=5)),0,new_yllv2(VALUE(LEFT(Options!$B$14,2)),$C70,$D70,$E70,$F70,2016,$I70/10+$J70/10,1,$H70/10,$G70*$H70/10,RateRatios_airpollution!$C70)*10))","v":7054.9953040319997},{"$f":"IF(AND(OR(Calculations!$E$2=\"Orkney Health Board\",Calculations!$E$2=\"Orkney Islands Local Authority\"),$F70=1),0,IF(AND(OR(Calculations!$E$2=\"Shetland Health Board\",Calculations!$E$2=\"Western Isles Health Board\",Calculations!$E$2=\"Shetland Islands Local Authority\",Calculations!$E$2=\"Eilean Siar Local Authority\"),OR($F70=1,$F70=5)),0,hosp_count(VALUE(LEFT(Options!$B$14,2)),$C70,$E70,$F70,2016,$I70/10,1,$H70/10,$G70*$H70/10, RateRatios_airpollution!$D70, RateRatios_airpollution!$C70)*10))","v":13452.080933396001},{"$f":"IF(AND(OR(Calculations!$E$2=\"Orkney Health Board\",Calculations!$E$2=\"Orkney Islands Local Authority\"),$F70=1),0,IF(AND(OR(Calculations!$E$2=\"Shetland Health Board\",Calculations!$E$2=\"Western Isles Health Board\",Calculations!$E$2=\"Shetland Islands Local Authority\",Calculations!$E$2=\"Eilean Siar Local Authority\"),OR($F70=1,$F70=5)),0,hosp_count(VALUE(LEFT(Options!$B$14,2)),$C70,$E70,$F70,2016,$I70/10+$J70/10,1,$H70/10,$G70*$H70/10, RateRatios_airpollution!$D70, RateRatios_airpollution!$C70)*10))","v":13451.636116808},{"$f":"IF(AND(OR(Calculations!$E$2=\"Orkney Health Board\",Calculations!$E$2=\"Orkney Islands Local Authority\"),$F70=1),0,IF(AND(OR(Calculations!$E$2=\"Shetland Health Board\",Calculations!$E$2=\"Western Isles Health Board\",Calculations!$E$2=\"Shetland Islands Local Authority\",Calculations!$E$2=\"Eilean Siar Local Authority\"),OR($F70=1,$F70=5)),0,prem_mort(VALUE(LEFT(Options!$B$14,2)),$C70,$E70,$F70,2016,$I70/10,1,$H70/10,$G70*$H70/10,RateRatios_airpollution!$C70)*10))","v":235.24900707299997},{"$f":"IF(AND(OR(Calculations!$E$2=\"Orkney Health Board\",Calculations!$E$2=\"Orkney Islands Local Authority\"),$F70=1),0,IF(AND(OR(Calculations!$E$2=\"Shetland Health Board\",Calculations!$E$2=\"Western Isles Health Board\",Calculations!$E$2=\"Shetland Islands Local Authority\",Calculations!$E$2=\"Eilean Siar Local Authority\"),OR($F70=1,$F70=5)),0,prem_mort(VALUE(LEFT(Options!$B$14,2)),$C70,$E70,$F70,2016,$I70/10+$J70/10,1,$H70/10,$G70*$H70/10,RateRatios_airpollution!$C70)*10))","v":235.244893733},null,{"$f":"IF(AND(OR(Calculations!$E$2=\"Orkney Health Board\",Calculations!$E$2=\"Orkney Islands Local Authority\"),$F70=1),0,IF(AND(OR(Calculations!$E$2=\"Shetland Health Board\",Calculations!$E$2=\"Western Isles Health Board\",Calculations!$E$2=\"Shetland Islands Local Authority\",Calculations!$E$2=\"Eilean Siar Local Authority\"),OR($F70=1,$F70=5)),0,new_ci(VALUE(LEFT(Options!$B$14,2)),$C70,$E70,$F70,2016,$I70/10,1,$H70/10,$G70*$H70/10,RateRatios_airpollution!$E70)*10))","v":235.24900707299997},{"$f":"IF(AND(OR(Calculations!$E$2=\"Orkney Health Board\",Calculations!$E$2=\"Orkney Islands Local Authority\"),$F70=1),0,IF(AND(OR(Calculations!$E$2=\"Shetland Health Board\",Calculations!$E$2=\"Western Isles Health Board\",Calculations!$E$2=\"Shetland Islands Local Authority\",Calculations!$E$2=\"Eilean Siar Local Authority\"),OR($F70=1,$F70=5)),0,new_ci(VALUE(LEFT(Options!$B$14,2)),$C70,$E70,$F70,2016,$I70/10+$J70/10,1,$H70/10,$G70*$H70/10,RateRatios_airpollution!$E70)*10))","v":235.24704148400002},{"$f":"IF(AND(OR(Calculations!$E$2=\"Orkney Health Board\",Calculations!$E$2=\"Orkney Islands Local Authority\"),$F70=1),0,IF(AND(OR(Calculations!$E$2=\"Shetland Health Board\",Calculations!$E$2=\"Western Isles Health Board\",Calculations!$E$2=\"Shetland Islands Local Authority\",Calculations!$E$2=\"Eilean Siar Local Authority\"),OR($F70=1,$F70=5)),0,new_yllv2(VALUE(LEFT(Options!$B$14,2)),$C70,$D70,$E70,$F70,2016,$I70/10,1,$H70/10,$G70*$H70/10,RateRatios_airpollution!$E70)*10))","v":7055.1186631149994},{"$f":"IF(AND(OR(Calculations!$E$2=\"Orkney Health Board\",Calculations!$E$2=\"Orkney Islands Local Authority\"),$F70=1),0,IF(AND(OR(Calculations!$E$2=\"Shetland Health Board\",Calculations!$E$2=\"Western Isles Health Board\",Calculations!$E$2=\"Shetland Islands Local Authority\",Calculations!$E$2=\"Eilean Siar Local Authority\"),OR($F70=1,$F70=5)),0,new_yllv2(VALUE(LEFT(Options!$B$14,2)),$C70,$D70,$E70,$F70,2016,$I70/10+$J70/10,1,$H70/10,$G70*$H70/10,RateRatios_airpollution!$E70)*10))","v":7055.0597150930007},{"$f":"IF(AND(OR(Calculations!$E$2=\"Orkney Health Board\",Calculations!$E$2=\"Orkney Islands Local Authority\"),$F70=1),0,IF(AND(OR(Calculations!$E$2=\"Shetland Health Board\",Calculations!$E$2=\"Western Isles Health Board\",Calculations!$E$2=\"Shetland Islands Local Authority\",Calculations!$E$2=\"Eilean Siar Local Authority\"),OR($F70=1,$F70=5)),0,hosp_count(VALUE(LEFT(Options!$B$14,2)),$C70,$E70,$F70,2016,$I70/10,1,$H70/10,$G70*$H70/10, RateRatios_airpollution!$F70, RateRatios_airpollution!$E70)*10))","v":13452.080933396001},{"$f":"IF(AND(OR(Calculations!$E$2=\"Orkney Health Board\",Calculations!$E$2=\"Orkney Islands Local Authority\"),$F70=1),0,IF(AND(OR(Calculations!$E$2=\"Shetland Health Board\",Calculations!$E$2=\"Western Isles Health Board\",Calculations!$E$2=\"Shetland Islands Local Authority\",Calculations!$E$2=\"Eilean Siar Local Authority\"),OR($F70=1,$F70=5)),0,hosp_count(VALUE(LEFT(Options!$B$14,2)),$C70,$E70,$F70,2016,$I70/10+$J70/10,1,$H70/10,$G70*$H70/10, RateRatios_airpollution!$F70, RateRatios_airpollution!$E70)*10))","v":13452.080933396001},{"$f":"IF(AND(OR(Calculations!$E$2=\"Orkney Health Board\",Calculations!$E$2=\"Orkney Islands Local Authority\"),$F70=1),0,IF(AND(OR(Calculations!$E$2=\"Shetland Health Board\",Calculations!$E$2=\"Western Isles Health Board\",Calculations!$E$2=\"Shetland Islands Local Authority\",Calculations!$E$2=\"Eilean Siar Local Authority\"),OR($F70=1,$F70=5)),0,prem_mort(VALUE(LEFT(Options!$B$14,2)),$C70,$E70,$F70,2016,$I70/10,1,$H70/10,$G70*$H70/10,RateRatios_airpollution!$E70)*10))","v":235.24900707299997},{"$f":"IF(AND(OR(Calculations!$E$2=\"Orkney Health Board\",Calculations!$E$2=\"Orkney Islands Local Authority\"),$F70=1),0,IF(AND(OR(Calculations!$E$2=\"Shetland Health Board\",Calculations!$E$2=\"Western Isles Health Board\",Calculations!$E$2=\"Shetland Islands Local Authority\",Calculations!$E$2=\"Eilean Siar Local Authority\"),OR($F70=1,$F70=5)),0,prem_mort(VALUE(LEFT(Options!$B$14,2)),$C70,$E70,$F70,2016,$I70/10+$J70/10,1,$H70/10,$G70*$H70/10,RateRatios_airpollution!$E70)*10))","v":235.24704148400002},235.24900707299997,235.17350084100005,7055.1186631149994,7052.8542309160021,13452.080933396001,13447.654294978,235.24900707299997,235.17350084100005,592.50707000050363,592.31689714134609,17769.289399342633,17763.586114537582,33880.921150000002,33869.772050619584,592.50707000050363,592.31689714134609,4147549.4900035253,4146218.2799894228,124385025.79539843,124345102.80176307,237166448.05000001,237088404.3543371,4147549.4900035253,4146218.2799894228,7000]
[null,"Female 55-59",56.953040999999999,83.473039999999997,"female",1,1,{"$f":"HLOOKUP(Calculations!$E$2,'Population 2016'!$C$3:$BC$249,'Population 2016'!BD71,FALSE)","v":35528},0,{"$f":"HLOOKUP(Calculations!$E$2,Pop2016_in_settlements!$C$3:$BC$249,Pop2016_in_settlements!$BD71,FALSE)","v":26138},{"$f":"IF(AND(OR(Calculations!$E$2=\"Orkney Health Board\",Calculations!$E$2=\"Orkney Islands Local Authority\"),$F71=1),0,IF(AND(OR(Calculations!$E$2=\"Shetland Health Board\",Calculations!$E$2=\"Western Isles Health Board\",Calculations!$E$2=\"Shetland Islands Local Authority\",Calculations!$E$2=\"Eilean Siar Local Authority\"),OR($F71=1,$F71=5)),0,new_ci(VALUE(LEFT(Options!$B$14,2)),$C71,$E71,$F71,2016,$I71/10,1,$H71/10,$G71*$H71/10,RateRatios_accidents!$B$5)*10))","v":320.54200771399996},{"$f":"IF(AND(OR(Calculations!$E$2=\"Orkney Health Board\",Calculations!$E$2=\"Orkney Islands Local Authority\"),$F71=1),0,IF(AND(OR(Calculations!$E$2=\"Shetland Health Board\",Calculations!$E$2=\"Western Isles Health Board\",Calculations!$E$2=\"Shetland Islands Local Authority\",Calculations!$E$2=\"Eilean Siar Local Authority\"),OR($F71=1,$F71=5)),0,new_ci(VALUE(LEFT(Options!$B$14,2)),$C71,$E71,$F71,2016,$I71/10+$J71/10,1,$H71/10,$G71*$H71/10,RateRatios_accidents!$B$5)*10))","v":320.44810433499998},{"$f":"IF(AND(OR(Calculations!$E$2=\"Orkney Health Board\",Calculations!$E$2=\"Orkney Islands Local Authority\"),$F71=1),0,IF(AND(OR(Calculations!$E$2=\"Shetland Health Board\",Calculations!$E$2=\"Western Isles Health Board\",Calculations!$E$2=\"Shetland Islands Local Authority\",Calculations!$E$2=\"Eilean Siar Local Authority\"),OR($F71=1,$F71=5)),0,new_yllv2(VALUE(LEFT(Options!$B$14,2)),$C71,$D71,$E71,$F71,2016,$I71/10,1,$H71/10,$G71*$H71/10,RateRatios_accidents!$B$5)*10))","v":8180.231716319},{"$f":"IF(AND(OR(Calculations!$E$2=\"Orkney Health Board\",Calculations!$E$2=\"Orkney Islands Local Authority\"),$F71=1),0,IF(AND(OR(Calculations!$E$2=\"Shetland Health Board\",Calculations!$E$2=\"Western Isles Health Board\",Calculations!$E$2=\"Shetland Islands Local Authority\",Calculations!$E$2=\"Eilean Siar Local Authority\"),OR($F71=1,$F71=5)),0,new_yllv2(VALUE(LEFT(Options!$B$14,2)),$C71,$D71,$E71,$F71,2016,$I71/10+$J71/10,1,$H71/10,$G71*$H71/10,RateRatios_accidents!$B$5)*10))","v":8177.8353021810008},{"$f":"IF(AND(OR(Calculations!$E$2=\"Orkney Health Board\",Calculations!$E$2=\"Orkney Islands Local Authority\"),$F71=1),0,IF(AND(OR(Calculations!$E$2=\"Shetland Health Board\",Calculations!$E$2=\"Western Isles Health Board\",Calculations!$E$2=\"Shetland Islands Local Authority\",Calculations!$E$2=\"Eilean Siar Local Authority\"),OR($F71=1,$F71=5)),0,hosp_count(VALUE(LEFT(Options!$B$14,2)),$C71,$E71,$F71,2016,$I71/10,1,$H71/10,$G71*$H71/10, RateRatios_accidents!$B$4, RateRatios_accidents!$B$5)*10))","v":13637.468044908001},{"$f":"IF(AND(OR(Calculations!$E$2=\"Orkney Health Board\",Calculations!$E$2=\"Orkney Islands Local Authority\"),$F71=1),0,IF(AND(OR(Calculations!$E$2=\"Shetland Health Board\",Calculations!$E$2=\"Western Isles Health Board\",Calculations!$E$2=\"Shetland Islands Local Authority\",Calculations!$E$2=\"Eilean Siar Local Authority\"),OR($F71=1,$F71=5)),0,hosp_count(VALUE(LEFT(Options!$B$14,2)),$C71,$E71,$F71,2016,$I71/10+$J71/10,1,$H71/10,$G71*$H71/10, RateRatios_accidents!$B$4, RateRatios_accidents!$B$5)*10))","v":13633.454803319},{"$f":"IF(AND(OR(Calculations!$E$2=\"Orkney Health Board\",Calculations!$E$2=\"Orkney Islands Local Authority\"),$F71=1),0,IF(AND(OR(Calculations!$E$2=\"Shetland Health Board\",Calculations!$E$2=\"Western Isles Health Board\",Calculations!$E$2=\"Shetland Islands Local Authority\",Calculations!$E$2=\"Eilean Siar Local Authority\"),OR($F71=1,$F71=5)),0,prem_mort(VALUE(LEFT(Options!$B$14,2)),$C71,$E71,$F71,2016,$I71/10,1,$H71/10,$G71*$H71/10,RateRatios_accidents!$B$5)*10))","v":320.54200771399996},{"$f":"IF(AND(OR(Calculations!$E$2=\"Orkney Health Board\",Calculations!$E$2=\"Orkney Islands Local Authority\"),$F71=1),0,IF(AND(OR(Calculations!$E$2=\"Shetland Health Board\",Calculations!$E$2=\"Western Isles Health Board\",Calculations!$E$2=\"Shetland Islands Local Authority\",Calculations!$E$2=\"Eilean Siar Local Authority\"),OR($F71=1,$F71=5)),0,prem_mort(VALUE(LEFT(Options!$B$14,2)),$C71,$E71,$F71,2016,$I71/10+$J71/10,1,$H71/10,$G71*$H71/10,RateRatios_accidents!$B$5)*10))","v":320.44810433499998},null,{"$f":"IF(AND(OR(Calculations!$E$2=\"Orkney Health Board\",Calculations!$E$2=\"Orkney Islands Local Authority\"),$F71=1),0,IF(AND(OR(Calculations!$E$2=\"Shetland Health Board\",Calculations!$E$2=\"Western Isles Health Board\",Calculations!$E$2=\"Shetland Islands Local Authority\",Calculations!$E$2=\"Eilean Siar Local Authority\"),OR($F71=1,$F71=5)),0,new_ci(VALUE(LEFT(Options!$B$14,2)),$C71,$E71,$F71,2016,$I71/10,1,$H71/10,$G71*$H71/10,RateRatios_airpollution!$C71)*10))","v":320.54200771399996},{"$f":"IF(AND(OR(Calculations!$E$2=\"Orkney Health Board\",Calculations!$E$2=\"Orkney Islands Local Authority\"),$F71=1),0,IF(AND(OR(Calculations!$E$2=\"Shetland Health Board\",Calculations!$E$2=\"Western Isles Health Board\",Calculations!$E$2=\"Shetland Islands Local Authority\",Calculations!$E$2=\"Eilean Siar Local Authority\"),OR($F71=1,$F71=5)),0,new_ci(VALUE(LEFT(Options!$B$14,2)),$C71,$E71,$F71,2016,$I71/10+$J71/10,1,$H71/10,$G71*$H71/10,RateRatios_airpollution!$C71)*10))","v":320.53645338899997},{"$f":"IF(AND(OR(Calculations!$E$2=\"Orkney Health Board\",Calculations!$E$2=\"Orkney Islands Local Authority\"),$F71=1),0,IF(AND(OR(Calculations!$E$2=\"Shetland Health Board\",Calculations!$E$2=\"Western Isles Health Board\",Calculations!$E$2=\"Shetland Islands Local Authority\",Calculations!$E$2=\"Eilean Siar Local Authority\"),OR($F71=1,$F71=5)),0,new_yllv2(VALUE(LEFT(Options!$B$14,2)),$C71,$D71,$E71,$F71,2016,$I71/10,1,$H71/10,$G71*$H71/10,RateRatios_airpollution!$C71)*10))","v":8180.231716319},{"$f":"IF(AND(OR(Calculations!$E$2=\"Orkney Health Board\",Calculations!$E$2=\"Orkney Islands Local Authority\"),$F71=1),0,IF(AND(OR(Calculations!$E$2=\"Shetland Health Board\",Calculations!$E$2=\"Western Isles Health Board\",Calculations!$E$2=\"Shetland Islands Local Authority\",Calculations!$E$2=\"Eilean Siar Local Authority\"),OR($F71=1,$F71=5)),0,new_yllv2(VALUE(LEFT(Options!$B$14,2)),$C71,$D71,$E71,$F71,2016,$I71/10+$J71/10,1,$H71/10,$G71*$H71/10,RateRatios_airpollution!$C71)*10))","v":8180.0899699510001},{"$f":"IF(AND(OR(Calculations!$E$2=\"Orkney Health Board\",Calculations!$E$2=\"Orkney Islands Local Authority\"),$F71=1),0,IF(AND(OR(Calculations!$E$2=\"Shetland Health Board\",Calculations!$E$2=\"Western Isles Health Board\",Calculations!$E$2=\"Shetland Islands Local Authority\",Calculations!$E$2=\"Eilean Siar Local Authority\"),OR($F71=1,$F71=5)),0,hosp_count(VALUE(LEFT(Options!$B$14,2)),$C71,$E71,$F71,2016,$I71/10,1,$H71/10,$G71*$H71/10, RateRatios_airpollution!$D71, RateRatios_airpollution!$C71)*10))","v":13637.468044908001},{"$f":"IF(AND(OR(Calculations!$E$2=\"Orkney Health Board\",Calculations!$E$2=\"Orkney Islands Local Authority\"),$F71=1),0,IF(AND(OR(Calculations!$E$2=\"Shetland Health Board\",Calculations!$E$2=\"Western Isles Health Board\",Calculations!$E$2=\"Shetland Islands Local Authority\",Calculations!$E$2=\"Eilean Siar Local Authority\"),OR($F71=1,$F71=5)),0,hosp_count(VALUE(LEFT(Options!$B$14,2)),$C71,$E71,$F71,2016,$I71/10+$J71/10,1,$H71/10,$G71*$H71/10, RateRatios_airpollution!$D71, RateRatios_airpollution!$C71)*10))","v":13637.020849866001},{"$f":"IF(AND(OR(Calculations!$E$2=\"Orkney Health Board\",Calculations!$E$2=\"Orkney Islands Local Authority\"),$F71=1),0,IF(AND(OR(Calculations!$E$2=\"Shetland Health Board\",Calculations!$E$2=\"Western Isles Health Board\",Calculations!$E$2=\"Shetland Islands Local Authority\",Calculations!$E$2=\"Eilean Siar Local Authority\"),OR($F71=1,$F71=5)),0,prem_mort(VALUE(LEFT(Options!$B$14,2)),$C71,$E71,$F71,2016,$I71/10,1,$H71/10,$G71*$H71/10,RateRatios_airpollution!$C71)*10))","v":320.54200771399996},{"$f":"IF(AND(OR(Calculations!$E$2=\"Orkney Health Board\",Calculations!$E$2=\"Orkney Islands Local Authority\"),$F71=1),0,IF(AND(OR(Calculations!$E$2=\"Shetland Health Board\",Calculations!$E$2=\"Western Isles Health Board\",Calculations!$E$2=\"Shetland Islands Local Authority\",Calculations!$E$2=\"Eilean Siar Local Authority\"),OR($F71=1,$F71=5)),0,prem_mort(VALUE(LEFT(Options!$B$14,2)),$C71,$E71,$F71,2016,$I71/10+$J71/10,1,$H71/10,$G71*$H71/10,RateRatios_airpollution!$C71)*10))","v":320.53645338899997},null,{"$f":"IF(AND(OR(Calculations!$E$2=\"Orkney Health Board\",Calculations!$E$2=\"Orkney Islands Local Authority\"),$F71=1),0,IF(AND(OR(Calculations!$E$2=\"Shetland Health Board\",Calculations!$E$2=\"Western Isles Health Board\",Calculations!$E$2=\"Shetland Islands Local Authority\",Calculations!$E$2=\"Eilean Siar Local Authority\"),OR($F71=1,$F71=5)),0,new_ci(VALUE(LEFT(Options!$B$14,2)),$C71,$E71,$F71,2016,$I71/10,1,$H71/10,$G71*$H71/10,RateRatios_airpollution!$E71)*10))","v":320.54200771399996},{"$f":"IF(AND(OR(Calculations!$E$2=\"Orkney Health Board\",Calculations!$E$2=\"Orkney Islands Local Authority\"),$F71=1),0,IF(AND(OR(Calculations!$E$2=\"Shetland Health Board\",Calculations!$E$2=\"Western Isles Health Board\",Calculations!$E$2=\"Shetland Islands Local Authority\",Calculations!$E$2=\"Eilean Siar Local Authority\"),OR($F71=1,$F71=5)),0,new_ci(VALUE(LEFT(Options!$B$14,2)),$C71,$E71,$F71,2016,$I71/10+$J71/10,1,$H71/10,$G71*$H71/10,RateRatios_airpollution!$E71)*10))","v":320.53934947899995},{"$f":"IF(AND(OR(Calculations!$E$2=\"Orkney Health Board\",Calculations!$E$2=\"Orkney Islands Local Authority\"),$F71=1),0,IF(AND(OR(Calculations!$E$2=\"Shetland Health Board\",Calculations!$E$2=\"Western Isles Health Board\",Calculations!$E$2=\"Shetland Islands Local Authority\",Calculations!$E$2=\"Eilean Siar Local Authority\"),OR($F71=1,$F71=5)),0,new_yllv2(VALUE(LEFT(Options!$B$14,2)),$C71,$D71,$E71,$F71,2016,$I71/10,1,$H71/10,$G71*$H71/10,RateRatios_airpollution!$E71)*10))","v":8180.231716319},{"$f":"IF(AND(OR(Calculations!$E$2=\"Orkney Health Board\",Calculations!$E$2=\"Orkney Islands Local Authority\"),$F71=1),0,IF(AND(OR(Calculations!$E$2=\"Shetland Health Board\",Calculations!$E$2=\"Western Isles Health Board\",Calculations!$E$2=\"Shetland Islands Local Authority\",Calculations!$E$2=\"Eilean Siar Local Authority\"),OR($F71=1,$F71=5)),0,new_yllv2(VALUE(LEFT(Options!$B$14,2)),$C71,$D71,$E71,$F71,2016,$I71/10+$J71/10,1,$H71/10,$G71*$H71/10,RateRatios_airpollution!$E71)*10))","v":8180.1638781649999},{"$f":"IF(AND(OR(Calculations!$E$2=\"Orkney Health Board\",Calculations!$E$2=\"Orkney Islands Local Authority\"),$F71=1),0,IF(AND(OR(Calculations!$E$2=\"Shetland Health Board\",Calculations!$E$2=\"Western Isles Health Board\",Calculations!$E$2=\"Shetland Islands Local Authority\",Calculations!$E$2=\"Eilean Siar Local Authority\"),OR($F71=1,$F71=5)),0,hosp_count(VALUE(LEFT(Options!$B$14,2)),$C71,$E71,$F71,2016,$I71/10,1,$H71/10,$G71*$H71/10, RateRatios_airpollution!$F71, RateRatios_airpollution!$E71)*10))","v":13637.468044908001},{"$f":"IF(AND(OR(Calculations!$E$2=\"Orkney Health Board\",Calculations!$E$2=\"Orkney Islands Local Authority\"),$F71=1),0,IF(AND(OR(Calculations!$E$2=\"Shetland Health Board\",Calculations!$E$2=\"Western Isles Health Board\",Calculations!$E$2=\"Shetland Islands Local Authority\",Calculations!$E$2=\"Eilean Siar Local Authority\"),OR($F71=1,$F71=5)),0,hosp_count(VALUE(LEFT(Options!$B$14,2)),$C71,$E71,$F71,2016,$I71/10+$J71/10,1,$H71/10,$G71*$H71/10, RateRatios_airpollution!$F71, RateRatios_airpollution!$E71)*10))","v":13637.468044908001},{"$f":"IF(AND(OR(Calculations!$E$2=\"Orkney Health Board\",Calculations!$E$2=\"Orkney Islands Local Authority\"),$F71=1),0,IF(AND(OR(Calculations!$E$2=\"Shetland Health Board\",Calculations!$E$2=\"Western Isles Health Board\",Calculations!$E$2=\"Shetland Islands Local Authority\",Calculations!$E$2=\"Eilean Siar Local Authority\"),OR($F71=1,$F71=5)),0,prem_mort(VALUE(LEFT(Options!$B$14,2)),$C71,$E71,$F71,2016,$I71/10,1,$H71/10,$G71*$H71/10,RateRatios_airpollution!$E71)*10))","v":320.54200771399996},{"$f":"IF(AND(OR(Calculations!$E$2=\"Orkney Health Board\",Calculations!$E$2=\"Orkney Islands Local Authority\"),$F71=1),0,IF(AND(OR(Calculations!$E$2=\"Shetland Health Board\",Calculations!$E$2=\"Western Isles Health Board\",Calculations!$E$2=\"Shetland Islands Local Authority\",Calculations!$E$2=\"Eilean Siar Local Authority\"),OR($F71=1,$F71=5)),0,prem_mort(VALUE(LEFT(Options!$B$14,2)),$C71,$E71,$F71,2016,$I71/10+$J71/10,1,$H71/10,$G71*$H71/10,RateRatios_airpollution!$E71)*10))","v":320.53934947899995},320.54200771399996,320.43989177499998,8180.231716319,8177.6257176590007,13637.468044908001,13633.007608277001,320.54200771399996,320.43989177499998,902.22362000112582,901.93619616921865,23024.745880204344,23017.410824304774,38385.127350000002,38372.572642076673,902.22362000112582,901.93619616921865,5864453.5300073177,5862585.275099921,149660848.22132823,149613170.35798103,249503327.77500001,249421722.17349836,5864453.5300073177,5862585.275099921,6500]
[null,"Female 60-64",61.947387999999997,84.167389999999997,"female",1,1,{"$f":"HLOOKUP(Calculations!$E$2,'Population 2016'!$C$3:$BC$249,'Population 2016'!BD72,FALSE)","v":29212},0,{"$f":"HLOOKUP(Calculations!$E$2,Pop2016_in_settlements!$C$3:$BC$249,Pop2016_in_settlements!$BD72,FALSE)","v":21284},{"$f":"IF(AND(OR(Calculations!$E$2=\"Orkney Health Board\",Calculations!$E$2=\"Orkney Islands Local Authority\"),$F72=1),0,IF(AND(OR(Calculations!$E$2=\"Shetland Health Board\",Calculations!$E$2=\"Western Isles Health Board\",Calculations!$E$2=\"Shetland Islands Local Authority\",Calculations!$E$2=\"Eilean Siar Local Authority\"),OR($F72=1,$F72=5)),0,new_ci(VALUE(LEFT(Options!$B$14,2)),$C72,$E72,$F72,2016,$I72/10,1,$H72/10,$G72*$H72/10,RateRatios_accidents!$B$5)*10))","v":402.08712216399999},{"$f":"IF(AND(OR(Calculations!$E$2=\"Orkney Health Board\",Calculations!$E$2=\"Orkney Islands Local Authority\"),$F72=1),0,IF(AND(OR(Calculations!$E$2=\"Shetland Health Board\",Calculations!$E$2=\"Western Isles Health Board\",Calculations!$E$2=\"Shetland Islands Local Authority\",Calculations!$E$2=\"Eilean Siar Local Authority\"),OR($F72=1,$F72=5)),0,new_ci(VALUE(LEFT(Options!$B$14,2)),$C72,$E72,$F72,2016,$I72/10+$J72/10,1,$H72/10,$G72*$H72/10,RateRatios_accidents!$B$5)*10))","v":401.97074763700004},{"$f":"IF(AND(OR(Calculations!$E$2=\"Orkney Health Board\",Calculations!$E$2=\"Orkney Islands Local Authority\"),$F72=1),0,IF(AND(OR(Calculations!$E$2=\"Shetland Health Board\",Calculations!$E$2=\"Western Isles Health Board\",Calculations!$E$2=\"Shetland Islands Local Authority\",Calculations!$E$2=\"Eilean Siar Local Authority\"),OR($F72=1,$F72=5)),0,new_yllv2(VALUE(LEFT(Options!$B$14,2)),$C72,$D72,$E72,$F72,2016,$I72/10,1,$H72/10,$G72*$H72/10,RateRatios_accidents!$B$5)*10))","v":8532.2895364939995},{"$f":"IF(AND(OR(Calculations!$E$2=\"Orkney Health Board\",Calculations!$E$2=\"Orkney Islands Local Authority\"),$F72=1),0,IF(AND(OR(Calculations!$E$2=\"Shetland Health Board\",Calculations!$E$2=\"Western Isles Health Board\",Calculations!$E$2=\"Shetland Islands Local Authority\",Calculations!$E$2=\"Eilean Siar Local Authority\"),OR($F72=1,$F72=5)),0,new_yllv2(VALUE(LEFT(Options!$B$14,2)),$C72,$D72,$E72,$F72,2016,$I72/10+$J72/10,1,$H72/10,$G72*$H72/10,RateRatios_accidents!$B$5)*10))","v":8529.8200687990011},{"$f":"IF(AND(OR(Calculations!$E$2=\"Orkney Health Board\",Calculations!$E$2=\"Orkney Islands Local Authority\"),$F72=1),0,IF(AND(OR(Calculations!$E$2=\"Shetland Health Board\",Calculations!$E$2=\"Western Isles Health Board\",Calculations!$E$2=\"Shetland Islands Local Authority\",Calculations!$E$2=\"Eilean Siar Local Authority\"),OR($F72=1,$F72=5)),0,hosp_count(VALUE(LEFT(Options!$B$14,2)),$C72,$E72,$F72,2016,$I72/10,1,$H72/10,$G72*$H72/10, RateRatios_accidents!$B$4, RateRatios_accidents!$B$5)*10))","v":12714.025189544},{"$f":"IF(AND(OR(Calculations!$E$2=\"Orkney Health Board\",Calculations!$E$2=\"Orkney Islands Local Authority\"),$F72=1),0,IF(AND(OR(Calculations!$E$2=\"Shetland Health Board\",Calculations!$E$2=\"Western Isles Health Board\",Calculations!$E$2=\"Shetland Islands Local Authority\",Calculations!$E$2=\"Eilean Siar Local Authority\"),OR($F72=1,$F72=5)),0,hosp_count(VALUE(LEFT(Options!$B$14,2)),$C72,$E72,$F72,2016,$I72/10+$J72/10,1,$H72/10,$G72*$H72/10, RateRatios_accidents!$B$4, RateRatios_accidents!$B$5)*10))","v":12710.319789876001},{"$f":"IF(AND(OR(Calculations!$E$2=\"Orkney Health Board\",Calculations!$E$2=\"Orkney Islands Local Authority\"),$F72=1),0,IF(AND(OR(Calculations!$E$2=\"Shetland Health Board\",Calculations!$E$2=\"Western Isles Health Board\",Calculations!$E$2=\"Shetland Islands Local Authority\",Calculations!$E$2=\"Eilean Siar Local Authority\"),OR($F72=1,$F72=5)),0,prem_mort(VALUE(LEFT(Options!$B$14,2)),$C72,$E72,$F72,2016,$I72/10,1,$H72/10,$G72*$H72/10,RateRatios_accidents!$B$5)*10))","v":402.08712216399999},{"$f":"IF(AND(OR(Calculations!$E$2=\"Orkney Health Board\",Calculations!$E$2=\"Orkney Islands Local Authority\"),$F72=1),0,IF(AND(OR(Calculations!$E$2=\"Shetland Health Board\",Calculations!$E$2=\"Western Isles Health Board\",Calculations!$E$2=\"Shetland Islands Local Authority\",Calculations!$E$2=\"Eilean Siar Local Authority\"),OR($F72=1,$F72=5)),0,prem_mort(VALUE(LEFT(Options!$B$14,2)),$C72,$E72,$F72,2016,$I72/10+$J72/10,1,$H72/10,$G72*$H72/10,RateRatios_accidents!$B$5)*10))","v":401.97074763700004},null,{"$f":"IF(AND(OR(Calculations!$E$2=\"Orkney Health Board\",Calculations!$E$2=\"Orkney Islands Local Authority\"),$F72=1),0,IF(AND(OR(Calculations!$E$2=\"Shetland Health Board\",Calculations!$E$2=\"Western Isles Health Board\",Calculations!$E$2=\"Shetland Islands Local Authority\",Calculations!$E$2=\"Eilean Siar Local Authority\"),OR($F72=1,$F72=5)),0,new_ci(VALUE(LEFT(Options!$B$14,2)),$C72,$E72,$F72,2016,$I72/10,1,$H72/10,$G72*$H72/10,RateRatios_airpollution!$C72)*10))","v":402.08712216399999},{"$f":"IF(AND(OR(Calculations!$E$2=\"Orkney Health Board\",Calculations!$E$2=\"Orkney Islands Local Authority\"),$F72=1),0,IF(AND(OR(Calculations!$E$2=\"Shetland Health Board\",Calculations!$E$2=\"Western Isles Health Board\",Calculations!$E$2=\"Shetland Islands Local Authority\",Calculations!$E$2=\"Eilean Siar Local Authority\"),OR($F72=1,$F72=5)),0,new_ci(VALUE(LEFT(Options!$B$14,2)),$C72,$E72,$F72,2016,$I72/10+$J72/10,1,$H72/10,$G72*$H72/10,RateRatios_airpollution!$C72)*10))","v":402.08035172300004},{"$f":"IF(AND(OR(Calculations!$E$2=\"Orkney Health Board\",Calculations!$E$2=\"Orkney Islands Local Authority\"),$F72=1),0,IF(AND(OR(Calculations!$E$2=\"Shetland Health Board\",Calculations!$E$2=\"Western Isles Health Board\",Calculations!$E$2=\"Shetland Islands Local Authority\",Calculations!$E$2=\"Eilean Siar Local Authority\"),OR($F72=1,$F72=5)),0,new_yllv2(VALUE(LEFT(Options!$B$14,2)),$C72,$D72,$E72,$F72,2016,$I72/10,1,$H72/10,$G72*$H72/10,RateRatios_airpollution!$C72)*10))","v":8532.2895364939995},{"$f":"IF(AND(OR(Calculations!$E$2=\"Orkney Health Board\",Calculations!$E$2=\"Orkney Islands Local Authority\"),$F72=1),0,IF(AND(OR(Calculations!$E$2=\"Shetland Health Board\",Calculations!$E$2=\"Western Isles Health Board\",Calculations!$E$2=\"Shetland Islands Local Authority\",Calculations!$E$2=\"Eilean Siar Local Authority\"),OR($F72=1,$F72=5)),0,new_yllv2(VALUE(LEFT(Options!$B$14,2)),$C72,$D72,$E72,$F72,2016,$I72/10+$J72/10,1,$H72/10,$G72*$H72/10,RateRatios_airpollution!$C72)*10))","v":8532.1458677230003},{"$f":"IF(AND(OR(Calculations!$E$2=\"Orkney Health Board\",Calculations!$E$2=\"Orkney Islands Local Authority\"),$F72=1),0,IF(AND(OR(Calculations!$E$2=\"Shetland Health Board\",Calculations!$E$2=\"Western Isles Health Board\",Calculations!$E$2=\"Shetland Islands Local Authority\",Calculations!$E$2=\"Eilean Siar Local Authority\"),OR($F72=1,$F72=5)),0,hosp_count(VALUE(LEFT(Options!$B$14,2)),$C72,$E72,$F72,2016,$I72/10,1,$H72/10,$G72*$H72/10, RateRatios_airpollution!$D72, RateRatios_airpollution!$C72)*10))","v":12714.025189544},{"$f":"IF(AND(OR(Calculations!$E$2=\"Orkney Health Board\",Calculations!$E$2=\"Orkney Islands Local Authority\"),$F72=1),0,IF(AND(OR(Calculations!$E$2=\"Shetland Health Board\",Calculations!$E$2=\"Western Isles Health Board\",Calculations!$E$2=\"Shetland Islands Local Authority\",Calculations!$E$2=\"Eilean Siar Local Authority\"),OR($F72=1,$F72=5)),0,hosp_count(VALUE(LEFT(Options!$B$14,2)),$C72,$E72,$F72,2016,$I72/10+$J72/10,1,$H72/10,$G72*$H72/10, RateRatios_airpollution!$D72, RateRatios_airpollution!$C72)*10))","v":12713.619048256001},{"$f":"IF(AND(OR(Calculations!$E$2=\"Orkney Health Board\",Calculations!$E$2=\"Orkney Islands Local Authority\"),$F72=1),0,IF(AND(OR(Calculations!$E$2=\"Shetland Health Board\",Calculations!$E$2=\"Western Isles Health Board\",Calculations!$E$2=\"Shetland Islands Local Authority\",Calculations!$E$2=\"Eilean Siar Local Authority\"),OR($F72=1,$F72=5)),0,prem_mort(VALUE(LEFT(Options!$B$14,2)),$C72,$E72,$F72,2016,$I72/10,1,$H72/10,$G72*$H72/10,RateRatios_airpollution!$C72)*10))","v":402.08712216399999},{"$f":"IF(AND(OR(Calculations!$E$2=\"Orkney Health Board\",Calculations!$E$2=\"Orkney Islands Local Authority\"),$F72=1),0,IF(AND(OR(Calculations!$E$2=\"Shetland Health Board\",Calculations!$E$2=\"Western Isles Health Board\",Calculations!$E$2=\"Shetland Islands Local Authority\",Calculations!$E$2=\"Eilean Siar Local Authority\"),OR($F72=1,$F72=5)),0,prem_mort(VALUE(LEFT(Options!$B$14,2)),$C72,$E72,$F72,2016,$I72/10+$J72/10,1,$H72/10,$G72*$H72/10,RateRatios_airpollution!$C72)*10))","v":402.08035172300004},null,{"$f":"IF(AND(OR(Calculations!$E$2=\"Orkney Health Board\",Calculations!$E$2=\"Orkney Islands Local Authority\"),$F72=1),0,IF(AND(OR(Calculations!$E$2=\"Shetland Health Board\",Calculations!$E$2=\"Western Isles Health Board\",Calculations!$E$2=\"Shetland Islands Local Authority\",Calculations!$E$2=\"Eilean Siar Local Authority\"),OR($F72=1,$F72=5)),0,new_ci(VALUE(LEFT(Options!$B$14,2)),$C72,$E72,$F72,2016,$I72/10,1,$H72/10,$G72*$H72/10,RateRatios_airpollution!$E72)*10))","v":402.08712216399999},{"$f":"IF(AND(OR(Calculations!$E$2=\"Orkney Health Board\",Calculations!$E$2=\"Orkney Islands Local Authority\"),$F72=1),0,IF(AND(OR(Calculations!$E$2=\"Shetland Health Board\",Calculations!$E$2=\"Western Isles Health Board\",Calculations!$E$2=\"Shetland Islands Local Authority\",Calculations!$E$2=\"Eilean Siar Local Authority\"),OR($F72=1,$F72=5)),0,new_ci(VALUE(LEFT(Options!$B$14,2)),$C72,$E72,$F72,2016,$I72/10+$J72/10,1,$H72/10,$G72*$H72/10,RateRatios_airpollution!$E72)*10))","v":402.08388912399994},{"$f":"IF(AND(OR(Calculations!$E$2=\"Orkney Health Board\",Calculations!$E$2=\"Orkney Islands Local Authority\"),$F72=1),0,IF(AND(OR(Calculations!$E$2=\"Shetland Health Board\",Calculations!$E$2=\"Western Isles Health Board\",Calculations!$E$2=\"Shetland Islands Local Authority\",Calculations!$E$2=\"Eilean Siar Local Authority\"),OR($F72=1,$F72=5)),0,new_yllv2(VALUE(LEFT(Options!$B$14,2)),$C72,$D72,$E72,$F72,2016,$I72/10,1,$H72/10,$G72*$H72/10,RateRatios_airpollution!$E72)*10))","v":8532.2895364939995},{"$f":"IF(AND(OR(Calculations!$E$2=\"Orkney Health Board\",Calculations!$E$2=\"Orkney Islands Local Authority\"),$F72=1),0,IF(AND(OR(Calculations!$E$2=\"Shetland Health Board\",Calculations!$E$2=\"Western Isles Health Board\",Calculations!$E$2=\"Shetland Islands Local Authority\",Calculations!$E$2=\"Eilean Siar Local Authority\"),OR($F72=1,$F72=5)),0,new_yllv2(VALUE(LEFT(Options!$B$14,2)),$C72,$D72,$E72,$F72,2016,$I72/10+$J72/10,1,$H72/10,$G72*$H72/10,RateRatios_airpollution!$E72)*10))","v":8532.220931378999},{"$f":"IF(AND(OR(Calculations!$E$2=\"Orkney Health Board\",Calculations!$E$2=\"Orkney Islands Local Authority\"),$F72=1),0,IF(AND(OR(Calculations!$E$2=\"Shetland Health Board\",Calculations!$E$2=\"Western Isles Health Board\",Calculations!$E$2=\"Shetland Islands Local Authority\",Calculations!$E$2=\"Eilean Siar Local Authority\"),OR($F72=1,$F72=5)),0,hosp_count(VALUE(LEFT(Options!$B$14,2)),$C72,$E72,$F72,2016,$I72/10,1,$H72/10,$G72*$H72/10, RateRatios_airpollution!$F72, RateRatios_airpollution!$E72)*10))","v":12714.025189544},{"$f":"IF(AND(OR(Calculations!$E$2=\"Orkney Health Board\",Calculations!$E$2=\"Orkney Islands Local Authority\"),$F72=1),0,IF(AND(OR(Calculations!$E$2=\"Shetland Health Board\",Calculations!$E$2=\"Western Isles Health Board\",Calculations!$E$2=\"Shetland Islands Local Authority\",Calculations!$E$2=\"Eilean Siar Local Authority\"),OR($F72=1,$F72=5)),0,hosp_count(VALUE(LEFT(Options!$B$14,2)),$C72,$E72,$F72,2016,$I72/10+$J72/10,1,$H72/10,$G72*$H72/10, RateRatios_airpollution!$F72, RateRatios_airpollution!$E72)*10))","v":12714.025189544},{"$f":"IF(AND(OR(Calculations!$E$2=\"Orkney Health Board\",Calculations!$E$2=\"Orkney Islands Local Authority\"),$F72=1),0,IF(AND(OR(Calculations!$E$2=\"Shetland Health Board\",Calculations!$E$2=\"Western Isles Health Board\",Calculations!$E$2=\"Shetland Islands Local Authority\",Calculations!$E$2=\"Eilean Siar Local Authority\"),OR($F72=1,$F72=5)),0,prem_mort(VALUE(LEFT(Options!$B$14,2)),$C72,$E72,$F72,2016,$I72/10,1,$H72/10,$G72*$H72/10,RateRatios_airpollution!$E72)*10))","v":402.08712216399999},{"$f":"IF(AND(OR(Calculations!$E$2=\"Orkney Health Board\",Calculations!$E$2=\"Orkney Islands Local Authority\"),$F72=1),0,IF(AND(OR(Calculations!$E$2=\"Shetland Health Board\",Calculations!$E$2=\"Western Isles Health Board\",Calculations!$E$2=\"Shetland Islands Local Authority\",Calculations!$E$2=\"Eilean Siar Local Authority\"),OR($F72=1,$F72=5)),0,prem_mort(VALUE(LEFT(Options!$B$14,2)),$C72,$E72,$F72,2016,$I72/10+$J72/10,1,$H72/10,$G72*$H72/10,RateRatios_airpollution!$E72)*10))","v":402.08388912399994},402.08712216399999,401.96074415600003,8532.2895364939995,8529.6077949130013,12714.025189544,12709.913648588003,402.08712216399999,401.96074415600003,1376.4450300013691,1376.0124063946323,29208.166289518005,29198.986015722996,43523.295869998634,43509.221034465292,1376.4450300013691,1376.0124063946323,8258670.1800082149,8256074.4383677943,175248997.73710802,175193916.09433797,261139775.2199918,261055326.20679176,8258670.1800082149,8256074.4383677943,6000]
[null,"Female 65-69",67.063927000000007,85.193929999999995,"female",1,1,{"$f":"HLOOKUP(Calculations!$E$2,'Population 2016'!$C$3:$BC$249,'Population 2016'!BD73,FALSE)","v":27762},0,{"$f":"HLOOKUP(Calculations!$E$2,Pop2016_in_settlements!$C$3:$BC$249,Pop2016_in_settlements!$BD73,FALSE)","v":20124},{"$f":"IF(AND(OR(Calculations!$E$2=\"Orkney Health Board\",Calculations!$E$2=\"Orkney Islands Local Authority\"),$F73=1),0,IF(AND(OR(Calculations!$E$2=\"Shetland Health Board\",Calculations!$E$2=\"Western Isles Health Board\",Calculations!$E$2=\"Shetland Islands Local Authority\",Calculations!$E$2=\"Eilean Siar Local Authority\"),OR($F73=1,$F73=5)),0,new_ci(VALUE(LEFT(Options!$B$14,2)),$C73,$E73,$F73,2016,$I73/10,1,$H73/10,$G73*$H73/10,RateRatios_accidents!$B$5)*10))","v":588.26276296599997},{"$f":"IF(AND(OR(Calculations!$E$2=\"Orkney Health Board\",Calculations!$E$2=\"Orkney Islands Local Authority\"),$F73=1),0,IF(AND(OR(Calculations!$E$2=\"Shetland Health Board\",Calculations!$E$2=\"Western Isles Health Board\",Calculations!$E$2=\"Shetland Islands Local Authority\",Calculations!$E$2=\"Eilean Siar Local Authority\"),OR($F73=1,$F73=5)),0,new_ci(VALUE(LEFT(Options!$B$14,2)),$C73,$E73,$F73,2016,$I73/10+$J73/10,1,$H73/10,$G73*$H73/10,RateRatios_accidents!$B$5)*10))","v":588.09401316399999},{"$f":"IF(AND(OR(Calculations!$E$2=\"Orkney Health Board\",Calculations!$E$2=\"Orkney Islands Local Authority\"),$F73=1),0,IF(AND(OR(Calculations!$E$2=\"Shetland Health Board\",Calculations!$E$2=\"Western Isles Health Board\",Calculations!$E$2=\"Shetland Islands Local Authority\",Calculations!$E$2=\"Eilean Siar Local Authority\"),OR($F73=1,$F73=5)),0,new_yllv2(VALUE(LEFT(Options!$B$14,2)),$C73,$D73,$E73,$F73,2016,$I73/10,1,$H73/10,$G73*$H73/10,RateRatios_accidents!$B$5)*10))","v":10076.942894395999},{"$f":"IF(AND(OR(Calculations!$E$2=\"Orkney Health Board\",Calculations!$E$2=\"Orkney Islands Local Authority\"),$F73=1),0,IF(AND(OR(Calculations!$E$2=\"Shetland Health Board\",Calculations!$E$2=\"Western Isles Health Board\",Calculations!$E$2=\"Shetland Islands Local Authority\",Calculations!$E$2=\"Eilean Siar Local Authority\"),OR($F73=1,$F73=5)),0,new_yllv2(VALUE(LEFT(Options!$B$14,2)),$C73,$D73,$E73,$F73,2016,$I73/10+$J73/10,1,$H73/10,$G73*$H73/10,RateRatios_accidents!$B$5)*10))","v":10074.052209781001},{"$f":"IF(AND(OR(Calculations!$E$2=\"Orkney Health Board\",Calculations!$E$2=\"Orkney Islands Local Authority\"),$F73=1),0,IF(AND(OR(Calculations!$E$2=\"Shetland Health Board\",Calculations!$E$2=\"Western Isles Health Board\",Calculations!$E$2=\"Shetland Islands Local Authority\",Calculations!$E$2=\"Eilean Siar Local Authority\"),OR($F73=1,$F73=5)),0,hosp_count(VALUE(LEFT(Options!$B$14,2)),$C73,$E73,$F73,2016,$I73/10,1,$H73/10,$G73*$H73/10, RateRatios_accidents!$B$4, RateRatios_accidents!$B$5)*10))","v":13742.512922032},{"$f":"IF(AND(OR(Calculations!$E$2=\"Orkney Health Board\",Calculations!$E$2=\"Orkney Islands Local Authority\"),$F73=1),0,IF(AND(OR(Calculations!$E$2=\"Shetland Health Board\",Calculations!$E$2=\"Western Isles Health Board\",Calculations!$E$2=\"Shetland Islands Local Authority\",Calculations!$E$2=\"Eilean Siar Local Authority\"),OR($F73=1,$F73=5)),0,hosp_count(VALUE(LEFT(Options!$B$14,2)),$C73,$E73,$F73,2016,$I73/10+$J73/10,1,$H73/10,$G73*$H73/10, RateRatios_accidents!$B$4, RateRatios_accidents!$B$5)*10))","v":13738.528275449},{"$f":"IF(AND(OR(Calculations!$E$2=\"Orkney Health Board\",Calculations!$E$2=\"Orkney Islands Local Authority\"),$F73=1),0,IF(AND(OR(Calculations!$E$2=\"Shetland Health Board\",Calculations!$E$2=\"Western Isles Health Board\",Calculations!$E$2=\"Shetland Islands Local Authority\",Calculations!$E$2=\"Eilean Siar Local Authority\"),OR($F73=1,$F73=5)),0,prem_mort(VALUE(LEFT(Options!$B$14,2)),$C73,$E73,$F73,2016,$I73/10,1,$H73/10,$G73*$H73/10,RateRatios_accidents!$B$5)*10))","v":588.26276296599997},{"$f":"IF(AND(OR(Calculations!$E$2=\"Orkney Health Board\",Calculations!$E$2=\"Orkney Islands Local Authority\"),$F73=1),0,IF(AND(OR(Calculations!$E$2=\"Shetland Health Board\",Calculations!$E$2=\"Western Isles Health Board\",Calculations!$E$2=\"Shetland Islands Local Authority\",Calculations!$E$2=\"Eilean Siar Local Authority\"),OR($F73=1,$F73=5)),0,prem_mort(VALUE(LEFT(Options!$B$14,2)),$C73,$E73,$F73,2016,$I73/10+$J73/10,1,$H73/10,$G73*$H73/10,RateRatios_accidents!$B$5)*10))","v":588.09401316399999},null,{"$f":"IF(AND(OR(Calculations!$E$2=\"Orkney Health Board\",Calculations!$E$2=\"Orkney Islands Local Authority\"),$F73=1),0,IF(AND(OR(Calculations!$E$2=\"Shetland Health Board\",Calculations!$E$2=\"Western Isles Health Board\",Calculations!$E$2=\"Shetland Islands Local Authority\",Calculations!$E$2=\"Eilean Siar Local Authority\"),OR($F73=1,$F73=5)),0,new_ci(VALUE(LEFT(Options!$B$14,2)),$C73,$E73,$F73,2016,$I73/10,1,$H73/10,$G73*$H73/10,RateRatios_airpollution!$C73)*10))","v":588.26276296599997},{"$f":"IF(AND(OR(Calculations!$E$2=\"Orkney Health Board\",Calculations!$E$2=\"Orkney Islands Local Authority\"),$F73=1),0,IF(AND(OR(Calculations!$E$2=\"Shetland Health Board\",Calculations!$E$2=\"Western Isles Health Board\",Calculations!$E$2=\"Shetland Islands Local Authority\",Calculations!$E$2=\"Eilean Siar Local Authority\"),OR($F73=1,$F73=5)),0,new_ci(VALUE(LEFT(Options!$B$14,2)),$C73,$E73,$F73,2016,$I73/10+$J73/10,1,$H73/10,$G73*$H73/10,RateRatios_airpollution!$C73)*10))","v":588.25299678900001},{"$f":"IF(AND(OR(Calculations!$E$2=\"Orkney Health Board\",Calculations!$E$2=\"Orkney Islands Local Authority\"),$F73=1),0,IF(AND(OR(Calculations!$E$2=\"Shetland Health Board\",Calculations!$E$2=\"Western Isles Health Board\",Calculations!$E$2=\"Shetland Islands Local Authority\",Calculations!$E$2=\"Eilean Siar Local Authority\"),OR($F73=1,$F73=5)),0,new_yllv2(VALUE(LEFT(Options!$B$14,2)),$C73,$D73,$E73,$F73,2016,$I73/10,1,$H73/10,$G73*$H73/10,RateRatios_airpollution!$C73)*10))","v":10076.942894395999},{"$f":"IF(AND(OR(Calculations!$E$2=\"Orkney Health Board\",Calculations!$E$2=\"Orkney Islands Local Authority\"),$F73=1),0,IF(AND(OR(Calculations!$E$2=\"Shetland Health Board\",Calculations!$E$2=\"Western Isles Health Board\",Calculations!$E$2=\"Shetland Islands Local Authority\",Calculations!$E$2=\"Eilean Siar Local Authority\"),OR($F73=1,$F73=5)),0,new_yllv2(VALUE(LEFT(Options!$B$14,2)),$C73,$D73,$E73,$F73,2016,$I73/10+$J73/10,1,$H73/10,$G73*$H73/10,RateRatios_airpollution!$C73)*10))","v":10076.775599754999},{"$f":"IF(AND(OR(Calculations!$E$2=\"Orkney Health Board\",Calculations!$E$2=\"Orkney Islands Local Authority\"),$F73=1),0,IF(AND(OR(Calculations!$E$2=\"Shetland Health Board\",Calculations!$E$2=\"Western Isles Health Board\",Calculations!$E$2=\"Shetland Islands Local Authority\",Calculations!$E$2=\"Eilean Siar Local Authority\"),OR($F73=1,$F73=5)),0,hosp_count(VALUE(LEFT(Options!$B$14,2)),$C73,$E73,$F73,2016,$I73/10,1,$H73/10,$G73*$H73/10, RateRatios_airpollution!$D73, RateRatios_airpollution!$C73)*10))","v":13742.512922032},{"$f":"IF(AND(OR(Calculations!$E$2=\"Orkney Health Board\",Calculations!$E$2=\"Orkney Islands Local Authority\"),$F73=1),0,IF(AND(OR(Calculations!$E$2=\"Shetland Health Board\",Calculations!$E$2=\"Western Isles Health Board\",Calculations!$E$2=\"Shetland Islands Local Authority\",Calculations!$E$2=\"Eilean Siar Local Authority\"),OR($F73=1,$F73=5)),0,hosp_count(VALUE(LEFT(Options!$B$14,2)),$C73,$E73,$F73,2016,$I73/10+$J73/10,1,$H73/10,$G73*$H73/10, RateRatios_airpollution!$D73, RateRatios_airpollution!$C73)*10))","v":13742.078517318001},{"$f":"IF(AND(OR(Calculations!$E$2=\"Orkney Health Board\",Calculations!$E$2=\"Orkney Islands Local Authority\"),$F73=1),0,IF(AND(OR(Calculations!$E$2=\"Shetland Health Board\",Calculations!$E$2=\"Western Isles Health Board\",Calculations!$E$2=\"Shetland Islands Local Authority\",Calculations!$E$2=\"Eilean Siar Local Authority\"),OR($F73=1,$F73=5)),0,prem_mort(VALUE(LEFT(Options!$B$14,2)),$C73,$E73,$F73,2016,$I73/10,1,$H73/10,$G73*$H73/10,RateRatios_airpollution!$C73)*10))","v":588.26276296599997},{"$f":"IF(AND(OR(Calculations!$E$2=\"Orkney Health Board\",Calculations!$E$2=\"Orkney Islands Local Authority\"),$F73=1),0,IF(AND(OR(Calculations!$E$2=\"Shetland Health Board\",Calculations!$E$2=\"Western Isles Health Board\",Calculations!$E$2=\"Shetland Islands Local Authority\",Calculations!$E$2=\"Eilean Siar Local Authority\"),OR($F73=1,$F73=5)),0,prem_mort(VALUE(LEFT(Options!$B$14,2)),$C73,$E73,$F73,2016,$I73/10+$J73/10,1,$H73/10,$G73*$H73/10,RateRatios_airpollution!$C73)*10))","v":588.25299678900001},null,{"$f":"IF(AND(OR(Calculations!$E$2=\"Orkney Health Board\",Calculations!$E$2=\"Orkney Islands Local Authority\"),$F73=1),0,IF(AND(OR(Calculations!$E$2=\"Shetland Health Board\",Calculations!$E$2=\"Western Isles Health Board\",Calculations!$E$2=\"Shetland Islands Local Authority\",Calculations!$E$2=\"Eilean Siar Local Authority\"),OR($F73=1,$F73=5)),0,new_ci(VALUE(LEFT(Options!$B$14,2)),$C73,$E73,$F73,2016,$I73/10,1,$H73/10,$G73*$H73/10,RateRatios_airpollution!$E73)*10))","v":588.26276296599997},{"$f":"IF(AND(OR(Calculations!$E$2=\"Orkney Health Board\",Calculations!$E$2=\"Orkney Islands Local Authority\"),$F73=1),0,IF(AND(OR(Calculations!$E$2=\"Shetland Health Board\",Calculations!$E$2=\"Western Isles Health Board\",Calculations!$E$2=\"Shetland Islands Local Authority\",Calculations!$E$2=\"Eilean Siar Local Authority\"),OR($F73=1,$F73=5)),0,new_ci(VALUE(LEFT(Options!$B$14,2)),$C73,$E73,$F73,2016,$I73/10+$J73/10,1,$H73/10,$G73*$H73/10,RateRatios_airpollution!$E73)*10))","v":588.25810425999998},{"$f":"IF(AND(OR(Calculations!$E$2=\"Orkney Health Board\",Calculations!$E$2=\"Orkney Islands Local Authority\"),$F73=1),0,IF(AND(OR(Calculations!$E$2=\"Shetland Health Board\",Calculations!$E$2=\"Western Isles Health Board\",Calculations!$E$2=\"Shetland Islands Local Authority\",Calculations!$E$2=\"Eilean Siar Local Authority\"),OR($F73=1,$F73=5)),0,new_yllv2(VALUE(LEFT(Options!$B$14,2)),$C73,$D73,$E73,$F73,2016,$I73/10,1,$H73/10,$G73*$H73/10,RateRatios_airpollution!$E73)*10))","v":10076.942894395999},{"$f":"IF(AND(OR(Calculations!$E$2=\"Orkney Health Board\",Calculations!$E$2=\"Orkney Islands Local Authority\"),$F73=1),0,IF(AND(OR(Calculations!$E$2=\"Shetland Health Board\",Calculations!$E$2=\"Western Isles Health Board\",Calculations!$E$2=\"Shetland Islands Local Authority\",Calculations!$E$2=\"Eilean Siar Local Authority\"),OR($F73=1,$F73=5)),0,new_yllv2(VALUE(LEFT(Options!$B$14,2)),$C73,$D73,$E73,$F73,2016,$I73/10+$J73/10,1,$H73/10,$G73*$H73/10,RateRatios_airpollution!$E73)*10))","v":10076.863090748},{"$f":"IF(AND(OR(Calculations!$E$2=\"Orkney Health Board\",Calculations!$E$2=\"Orkney Islands Local Authority\"),$F73=1),0,IF(AND(OR(Calculations!$E$2=\"Shetland Health Board\",Calculations!$E$2=\"Western Isles Health Board\",Calculations!$E$2=\"Shetland Islands Local Authority\",Calculations!$E$2=\"Eilean Siar Local Authority\"),OR($F73=1,$F73=5)),0,hosp_count(VALUE(LEFT(Options!$B$14,2)),$C73,$E73,$F73,2016,$I73/10,1,$H73/10,$G73*$H73/10, RateRatios_airpollution!$F73, RateRatios_airpollution!$E73)*10))","v":13742.512922032},{"$f":"IF(AND(OR(Calculations!$E$2=\"Orkney Health Board\",Calculations!$E$2=\"Orkney Islands Local Authority\"),$F73=1),0,IF(AND(OR(Calculations!$E$2=\"Shetland Health Board\",Calculations!$E$2=\"Western Isles Health Board\",Calculations!$E$2=\"Shetland Islands Local Authority\",Calculations!$E$2=\"Eilean Siar Local Authority\"),OR($F73=1,$F73=5)),0,hosp_count(VALUE(LEFT(Options!$B$14,2)),$C73,$E73,$F73,2016,$I73/10+$J73/10,1,$H73/10,$G73*$H73/10, RateRatios_airpollution!$F73, RateRatios_airpollution!$E73)*10))","v":13742.512922032},{"$f":"IF(AND(OR(Calculations!$E$2=\"Orkney Health Board\",Calculations!$E$2=\"Orkney Islands Local Authority\"),$F73=1),0,IF(AND(OR(Calculations!$E$2=\"Shetland Health Board\",Calculations!$E$2=\"Western Isles Health Board\",Calculations!$E$2=\"Shetland Islands Local Authority\",Calculations!$E$2=\"Eilean Siar Local Authority\"),OR($F73=1,$F73=5)),0,prem_mort(VALUE(LEFT(Options!$B$14,2)),$C73,$E73,$F73,2016,$I73/10,1,$H73/10,$G73*$H73/10,RateRatios_airpollution!$E73)*10))","v":588.26276296599997},{"$f":"IF(AND(OR(Calculations!$E$2=\"Orkney Health Board\",Calculations!$E$2=\"Orkney Islands Local Authority\"),$F73=1),0,IF(AND(OR(Calculations!$E$2=\"Shetland Health Board\",Calculations!$E$2=\"Western Isles Health Board\",Calculations!$E$2=\"Shetland Islands Local Authority\",Calculations!$E$2=\"Eilean Siar Local Authority\"),OR($F73=1,$F73=5)),0,prem_mort(VALUE(LEFT(Options!$B$14,2)),$C73,$E73,$F73,2016,$I73/10+$J73/10,1,$H73/10,$G73*$H73/10,RateRatios_airpollution!$E73)*10))","v":588.25810425999998},588.26276296599997,588.07958828100004,10076.942894395999,10073.805111492002,13742.512922032,13738.093870735001,588.26276296599997,588.07958828100004,2118.9495099992796,2118.2897063648152,36297.611463136658,36286.309024897346,49501.163180001437,49485.245554120746,2118.9495099992796,2118.2897063648152,11654222.304996038,11650593.385006484,199636863.04725161,199574699.63693541,272256397.49000788,272168850.54766411,11654222.304996038,11650593.385006484,5500]
[null,"Female 70-74",71.938164,86.248159999999999,"female",1,1,{"$f":"HLOOKUP(Calculations!$E$2,'Population 2016'!$C$3:$BC$249,'Population 2016'!BD74,FALSE)","v":21786},0,{"$f":"HLOOKUP(Calculations!$E$2,Pop2016_in_settlements!$C$3:$BC$249,Pop2016_in_settlements!$BD74,FALSE)","v":15817},{"$f":"IF(AND(OR(Calculations!$E$2=\"Orkney Health Board\",Calculations!$E$2=\"Orkney Islands Local Authority\"),$F74=1),0,IF(AND(OR(Calculations!$E$2=\"Shetland Health Board\",Calculations!$E$2=\"Western Isles Health Board\",Calculations!$E$2=\"Shetland Islands Local Authority\",Calculations!$E$2=\"Eilean Siar Local Authority\"),OR($F74=1,$F74=5)),0,new_ci(VALUE(LEFT(Options!$B$14,2)),$C74,$E74,$F74,2016,$I74/10,1,$H74/10,$G74*$H74/10,RateRatios_accidents!$B$5)*10))","v":694.97192726600008},{"$f":"IF(AND(OR(Calculations!$E$2=\"Orkney Health Board\",Calculations!$E$2=\"Orkney Islands Local Authority\"),$F74=1),0,IF(AND(OR(Calculations!$E$2=\"Shetland Health Board\",Calculations!$E$2=\"Western Isles Health Board\",Calculations!$E$2=\"Shetland Islands Local Authority\",Calculations!$E$2=\"Eilean Siar Local Authority\"),OR($F74=1,$F74=5)),0,new_ci(VALUE(LEFT(Options!$B$14,2)),$C74,$E74,$F74,2016,$I74/10+$J74/10,1,$H74/10,$G74*$H74/10,RateRatios_accidents!$B$5)*10))","v":694.77335590300004},{"$f":"IF(AND(OR(Calculations!$E$2=\"Orkney Health Board\",Calculations!$E$2=\"Orkney Islands Local Authority\"),$F74=1),0,IF(AND(OR(Calculations!$E$2=\"Shetland Health Board\",Calculations!$E$2=\"Western Isles Health Board\",Calculations!$E$2=\"Shetland Islands Local Authority\",Calculations!$E$2=\"Eilean Siar Local Authority\"),OR($F74=1,$F74=5)),0,new_yllv2(VALUE(LEFT(Options!$B$14,2)),$C74,$D74,$E74,$F74,2016,$I74/10,1,$H74/10,$G74*$H74/10,RateRatios_accidents!$B$5)*10))","v":9250.0735720230005},{"$f":"IF(AND(OR(Calculations!$E$2=\"Orkney Health Board\",Calculations!$E$2=\"Orkney Islands Local Authority\"),$F74=1),0,IF(AND(OR(Calculations!$E$2=\"Shetland Health Board\",Calculations!$E$2=\"Western Isles Health Board\",Calculations!$E$2=\"Shetland Islands Local Authority\",Calculations!$E$2=\"Eilean Siar Local Authority\"),OR($F74=1,$F74=5)),0,new_yllv2(VALUE(LEFT(Options!$B$14,2)),$C74,$D74,$E74,$F74,2016,$I74/10+$J74/10,1,$H74/10,$G74*$H74/10,RateRatios_accidents!$B$5)*10))","v":9247.4305879759995},{"$f":"IF(AND(OR(Calculations!$E$2=\"Orkney Health Board\",Calculations!$E$2=\"Orkney Islands Local Authority\"),$F74=1),0,IF(AND(OR(Calculations!$E$2=\"Shetland Health Board\",Calculations!$E$2=\"Western Isles Health Board\",Calculations!$E$2=\"Shetland Islands Local Authority\",Calculations!$E$2=\"Eilean Siar Local Authority\"),OR($F74=1,$F74=5)),0,hosp_count(VALUE(LEFT(Options!$B$14,2)),$C74,$E74,$F74,2016,$I74/10,1,$H74/10,$G74*$H74/10, RateRatios_accidents!$B$4, RateRatios_accidents!$B$5)*10))","v":12191.007503147001},{"$f":"IF(AND(OR(Calculations!$E$2=\"Orkney Health Board\",Calculations!$E$2=\"Orkney Islands Local Authority\"),$F74=1),0,IF(AND(OR(Calculations!$E$2=\"Shetland Health Board\",Calculations!$E$2=\"Western Isles Health Board\",Calculations!$E$2=\"Shetland Islands Local Authority\",Calculations!$E$2=\"Eilean Siar Local Authority\"),OR($F74=1,$F74=5)),0,hosp_count(VALUE(LEFT(Options!$B$14,2)),$C74,$E74,$F74,2016,$I74/10+$J74/10,1,$H74/10,$G74*$H74/10, RateRatios_accidents!$B$4, RateRatios_accidents!$B$5)*10))","v":12187.467152403002},{"$f":"IF(AND(OR(Calculations!$E$2=\"Orkney Health Board\",Calculations!$E$2=\"Orkney Islands Local Authority\"),$F74=1),0,IF(AND(OR(Calculations!$E$2=\"Shetland Health Board\",Calculations!$E$2=\"Western Isles Health Board\",Calculations!$E$2=\"Shetland Islands Local Authority\",Calculations!$E$2=\"Eilean Siar Local Authority\"),OR($F74=1,$F74=5)),0,prem_mort(VALUE(LEFT(Options!$B$14,2)),$C74,$E74,$F74,2016,$I74/10,1,$H74/10,$G74*$H74/10,RateRatios_accidents!$B$5)*10))","v":694.97192726600008},{"$f":"IF(AND(OR(Calculations!$E$2=\"Orkney Health Board\",Calculations!$E$2=\"Orkney Islands Local Authority\"),$F74=1),0,IF(AND(OR(Calculations!$E$2=\"Shetland Health Board\",Calculations!$E$2=\"Western Isles Health Board\",Calculations!$E$2=\"Shetland Islands Local Authority\",Calculations!$E$2=\"Eilean Siar Local Authority\"),OR($F74=1,$F74=5)),0,prem_mort(VALUE(LEFT(Options!$B$14,2)),$C74,$E74,$F74,2016,$I74/10+$J74/10,1,$H74/10,$G74*$H74/10,RateRatios_accidents!$B$5)*10))","v":694.77335590300004},null,{"$f":"IF(AND(OR(Calculations!$E$2=\"Orkney Health Board\",Calculations!$E$2=\"Orkney Islands Local Authority\"),$F74=1),0,IF(AND(OR(Calculations!$E$2=\"Shetland Health Board\",Calculations!$E$2=\"Western Isles Health Board\",Calculations!$E$2=\"Shetland Islands Local Authority\",Calculations!$E$2=\"Eilean Siar Local Authority\"),OR($F74=1,$F74=5)),0,new_ci(VALUE(LEFT(Options!$B$14,2)),$C74,$E74,$F74,2016,$I74/10,1,$H74/10,$G74*$H74/10,RateRatios_airpollution!$C74)*10))","v":694.97192726600008},{"$f":"IF(AND(OR(Calculations!$E$2=\"Orkney Health Board\",Calculations!$E$2=\"Orkney Islands Local Authority\"),$F74=1),0,IF(AND(OR(Calculations!$E$2=\"Shetland Health Board\",Calculations!$E$2=\"Western Isles Health Board\",Calculations!$E$2=\"Shetland Islands Local Authority\",Calculations!$E$2=\"Eilean Siar Local Authority\"),OR($F74=1,$F74=5)),0,new_ci(VALUE(LEFT(Options!$B$14,2)),$C74,$E74,$F74,2016,$I74/10+$J74/10,1,$H74/10,$G74*$H74/10,RateRatios_airpollution!$C74)*10))","v":694.96038560200009},{"$f":"IF(AND(OR(Calculations!$E$2=\"Orkney Health Board\",Calculations!$E$2=\"Orkney Islands Local Authority\"),$F74=1),0,IF(AND(OR(Calculations!$E$2=\"Shetland Health Board\",Calculations!$E$2=\"Western Isles Health Board\",Calculations!$E$2=\"Shetland Islands Local Authority\",Calculations!$E$2=\"Eilean Siar Local Authority\"),OR($F74=1,$F74=5)),0,new_yllv2(VALUE(LEFT(Options!$B$14,2)),$C74,$D74,$E74,$F74,2016,$I74/10,1,$H74/10,$G74*$H74/10,RateRatios_airpollution!$C74)*10))","v":9250.0735720230005},{"$f":"IF(AND(OR(Calculations!$E$2=\"Orkney Health Board\",Calculations!$E$2=\"Orkney Islands Local Authority\"),$F74=1),0,IF(AND(OR(Calculations!$E$2=\"Shetland Health Board\",Calculations!$E$2=\"Western Isles Health Board\",Calculations!$E$2=\"Shetland Islands Local Authority\",Calculations!$E$2=\"Eilean Siar Local Authority\"),OR($F74=1,$F74=5)),0,new_yllv2(VALUE(LEFT(Options!$B$14,2)),$C74,$D74,$E74,$F74,2016,$I74/10+$J74/10,1,$H74/10,$G74*$H74/10,RateRatios_airpollution!$C74)*10))","v":9249.9199525209988},{"$f":"IF(AND(OR(Calculations!$E$2=\"Orkney Health Board\",Calculations!$E$2=\"Orkney Islands Local Authority\"),$F74=1),0,IF(AND(OR(Calculations!$E$2=\"Shetland Health Board\",Calculations!$E$2=\"Western Isles Health Board\",Calculations!$E$2=\"Shetland Islands Local Authority\",Calculations!$E$2=\"Eilean Siar Local Authority\"),OR($F74=1,$F74=5)),0,hosp_count(VALUE(LEFT(Options!$B$14,2)),$C74,$E74,$F74,2016,$I74/10,1,$H74/10,$G74*$H74/10, RateRatios_airpollution!$D74, RateRatios_airpollution!$C74)*10))","v":12191.007503147001},{"$f":"IF(AND(OR(Calculations!$E$2=\"Orkney Health Board\",Calculations!$E$2=\"Orkney Islands Local Authority\"),$F74=1),0,IF(AND(OR(Calculations!$E$2=\"Shetland Health Board\",Calculations!$E$2=\"Western Isles Health Board\",Calculations!$E$2=\"Shetland Islands Local Authority\",Calculations!$E$2=\"Eilean Siar Local Authority\"),OR($F74=1,$F74=5)),0,hosp_count(VALUE(LEFT(Options!$B$14,2)),$C74,$E74,$F74,2016,$I74/10+$J74/10,1,$H74/10,$G74*$H74/10, RateRatios_airpollution!$D74, RateRatios_airpollution!$C74)*10))","v":12190.619841131},{"$f":"IF(AND(OR(Calculations!$E$2=\"Orkney Health Board\",Calculations!$E$2=\"Orkney Islands Local Authority\"),$F74=1),0,IF(AND(OR(Calculations!$E$2=\"Shetland Health Board\",Calculations!$E$2=\"Western Isles Health Board\",Calculations!$E$2=\"Shetland Islands Local Authority\",Calculations!$E$2=\"Eilean Siar Local Authority\"),OR($F74=1,$F74=5)),0,prem_mort(VALUE(LEFT(Options!$B$14,2)),$C74,$E74,$F74,2016,$I74/10,1,$H74/10,$G74*$H74/10,RateRatios_airpollution!$C74)*10))","v":694.97192726600008},{"$f":"IF(AND(OR(Calculations!$E$2=\"Orkney Health Board\",Calculations!$E$2=\"Orkney Islands Local Authority\"),$F74=1),0,IF(AND(OR(Calculations!$E$2=\"Shetland Health Board\",Calculations!$E$2=\"Western Isles Health Board\",Calculations!$E$2=\"Shetland Islands Local Authority\",Calculations!$E$2=\"Eilean Siar Local Authority\"),OR($F74=1,$F74=5)),0,prem_mort(VALUE(LEFT(Options!$B$14,2)),$C74,$E74,$F74,2016,$I74/10+$J74/10,1,$H74/10,$G74*$H74/10,RateRatios_airpollution!$C74)*10))","v":694.96038560200009},null,{"$f":"IF(AND(OR(Calculations!$E$2=\"Orkney Health Board\",Calculations!$E$2=\"Orkney Islands Local Authority\"),$F74=1),0,IF(AND(OR(Calculations!$E$2=\"Shetland Health Board\",Calculations!$E$2=\"Western Isles Health Board\",Calculations!$E$2=\"Shetland Islands Local Authority\",Calculations!$E$2=\"Eilean Siar Local Authority\"),OR($F74=1,$F74=5)),0,new_ci(VALUE(LEFT(Options!$B$14,2)),$C74,$E74,$F74,2016,$I74/10,1,$H74/10,$G74*$H74/10,RateRatios_airpollution!$E74)*10))","v":694.97192726600008},{"$f":"IF(AND(OR(Calculations!$E$2=\"Orkney Health Board\",Calculations!$E$2=\"Orkney Islands Local Authority\"),$F74=1),0,IF(AND(OR(Calculations!$E$2=\"Shetland Health Board\",Calculations!$E$2=\"Western Isles Health Board\",Calculations!$E$2=\"Shetland Islands Local Authority\",Calculations!$E$2=\"Eilean Siar Local Authority\"),OR($F74=1,$F74=5)),0,new_ci(VALUE(LEFT(Options!$B$14,2)),$C74,$E74,$F74,2016,$I74/10+$J74/10,1,$H74/10,$G74*$H74/10,RateRatios_airpollution!$E74)*10))","v":694.96642769499999},{"$f":"IF(AND(OR(Calculations!$E$2=\"Orkney Health Board\",Calculations!$E$2=\"Orkney Islands Local Authority\"),$F74=1),0,IF(AND(OR(Calculations!$E$2=\"Shetland Health Board\",Calculations!$E$2=\"Western Isles Health Board\",Calculations!$E$2=\"Shetland Islands Local Authority\",Calculations!$E$2=\"Eilean Siar Local Authority\"),OR($F74=1,$F74=5)),0,new_yllv2(VALUE(LEFT(Options!$B$14,2)),$C74,$D74,$E74,$F74,2016,$I74/10,1,$H74/10,$G74*$H74/10,RateRatios_airpollution!$E74)*10))","v":9250.0735720230005},{"$f":"IF(AND(OR(Calculations!$E$2=\"Orkney Health Board\",Calculations!$E$2=\"Orkney Islands Local Authority\"),$F74=1),0,IF(AND(OR(Calculations!$E$2=\"Shetland Health Board\",Calculations!$E$2=\"Western Isles Health Board\",Calculations!$E$2=\"Shetland Islands Local Authority\",Calculations!$E$2=\"Eilean Siar Local Authority\"),OR($F74=1,$F74=5)),0,new_yllv2(VALUE(LEFT(Options!$B$14,2)),$C74,$D74,$E74,$F74,2016,$I74/10+$J74/10,1,$H74/10,$G74*$H74/10,RateRatios_airpollution!$E74)*10))","v":9250.0003727549993},{"$f":"IF(AND(OR(Calculations!$E$2=\"Orkney Health Board\",Calculations!$E$2=\"Orkney Islands Local Authority\"),$F74=1),0,IF(AND(OR(Calculations!$E$2=\"Shetland Health Board\",Calculations!$E$2=\"Western Isles Health Board\",Calculations!$E$2=\"Shetland Islands Local Authority\",Calculations!$E$2=\"Eilean Siar Local Authority\"),OR($F74=1,$F74=5)),0,hosp_count(VALUE(LEFT(Options!$B$14,2)),$C74,$E74,$F74,2016,$I74/10,1,$H74/10,$G74*$H74/10, RateRatios_airpollution!$F74, RateRatios_airpollution!$E74)*10))","v":12191.007503147001},{"$f":"IF(AND(OR(Calculations!$E$2=\"Orkney Health Board\",Calculations!$E$2=\"Orkney Islands Local Authority\"),$F74=1),0,IF(AND(OR(Calculations!$E$2=\"Shetland Health Board\",Calculations!$E$2=\"Western Isles Health Board\",Calculations!$E$2=\"Shetland Islands Local Authority\",Calculations!$E$2=\"Eilean Siar Local Authority\"),OR($F74=1,$F74=5)),0,hosp_count(VALUE(LEFT(Options!$B$14,2)),$C74,$E74,$F74,2016,$I74/10+$J74/10,1,$H74/10,$G74*$H74/10, RateRatios_airpollution!$F74, RateRatios_airpollution!$E74)*10))","v":12191.007503147001},{"$f":"IF(AND(OR(Calculations!$E$2=\"Orkney Health Board\",Calculations!$E$2=\"Orkney Islands Local Authority\"),$F74=1),0,IF(AND(OR(Calculations!$E$2=\"Shetland Health Board\",Calculations!$E$2=\"Western Isles Health Board\",Calculations!$E$2=\"Shetland Islands Local Authority\",Calculations!$E$2=\"Eilean Siar Local Authority\"),OR($F74=1,$F74=5)),0,prem_mort(VALUE(LEFT(Options!$B$14,2)),$C74,$E74,$F74,2016,$I74/10,1,$H74/10,$G74*$H74/10,RateRatios_airpollution!$E74)*10))","v":694.97192726600008},{"$f":"IF(AND(OR(Calculations!$E$2=\"Orkney Health Board\",Calculations!$E$2=\"Orkney Islands Local Authority\"),$F74=1),0,IF(AND(OR(Calculations!$E$2=\"Shetland Health Board\",Calculations!$E$2=\"Western Isles Health Board\",Calculations!$E$2=\"Shetland Islands Local Authority\",Calculations!$E$2=\"Eilean Siar Local Authority\"),OR($F74=1,$F74=5)),0,prem_mort(VALUE(LEFT(Options!$B$14,2)),$C74,$E74,$F74,2016,$I74/10+$J74/10,1,$H74/10,$G74*$H74/10,RateRatios_airpollution!$E74)*10))","v":694.96642769499999},694.97192726600008,694.75631466799996,9250.0735720230005,9247.2037692059967,12191.007503147001,12187.079490387001,694.97192726600008,694.75631466799996,3189.9932399981644,3189.0035558064806,42458.797264403751,42445.624571770852,55957.989089998169,55939.959103952082,3189.9932399981644,3189.0035558064806,15949966.199990822,15945017.779032404,212293986.32201874,212228122.85885426,279789945.44999087,279699795.51976043,15949966.199990822,15945017.779032404,5000]
[null,"Female 75-79",76.942824999999999,87.812830000000005,"female",1,1,{"$f":"HLOOKUP(Calculations!$E$2,'Population 2016'!$C$3:$BC$249,'Population 2016'!BD75,FALSE)","v":19138},0,{"$f":"HLOOKUP(Calculations!$E$2,Pop2016_in_settlements!$C$3:$BC$249,Pop2016_in_settlements!$BD75,FALSE)","v":14129},{"$f":"IF(AND(OR(Calculations!$E$2=\"Orkney Health Board\",Calculations!$E$2=\"Orkney Islands Local Authority\"),$F75=1),0,IF(AND(OR(Calculations!$E$2=\"Shetland Health Board\",Calculations!$E$2=\"Western Isles Health Board\",Calculations!$E$2=\"Shetland Islands Local Authority\",Calculations!$E$2=\"Eilean Siar Local Authority\"),OR($F75=1,$F75=5)),0,new_ci(VALUE(LEFT(Options!$B$14,2)),$C75,$E75,$F75,2016,$I75/10,1,$H75/10,$G75*$H75/10,RateRatios_accidents!$B$5)*10))","v":926.49207771500005},{"$f":"IF(AND(OR(Calculations!$E$2=\"Orkney Health Board\",Calculations!$E$2=\"Orkney Islands Local Authority\"),$F75=1),0,IF(AND(OR(Calculations!$E$2=\"Shetland Health Board\",Calculations!$E$2=\"Western Isles Health Board\",Calculations!$E$2=\"Shetland Islands Local Authority\",Calculations!$E$2=\"Eilean Siar Local Authority\"),OR($F75=1,$F75=5)),0,new_ci(VALUE(LEFT(Options!$B$14,2)),$C75,$E75,$F75,2016,$I75/10+$J75/10,1,$H75/10,$G75*$H75/10,RateRatios_accidents!$B$5)*10))","v":926.22520633799991},{"$f":"IF(AND(OR(Calculations!$E$2=\"Orkney Health Board\",Calculations!$E$2=\"Orkney Islands Local Authority\"),$F75=1),0,IF(AND(OR(Calculations!$E$2=\"Shetland Health Board\",Calculations!$E$2=\"Western Isles Health Board\",Calculations!$E$2=\"Shetland Islands Local Authority\",Calculations!$E$2=\"Eilean Siar Local Authority\"),OR($F75=1,$F75=5)),0,new_yllv2(VALUE(LEFT(Options!$B$14,2)),$C75,$D75,$E75,$F75,2016,$I75/10,1,$H75/10,$G75*$H75/10,RateRatios_accidents!$B$5)*10))","v":9144.4814395070007},{"$f":"IF(AND(OR(Calculations!$E$2=\"Orkney Health Board\",Calculations!$E$2=\"Orkney Islands Local Authority\"),$F75=1),0,IF(AND(OR(Calculations!$E$2=\"Shetland Health Board\",Calculations!$E$2=\"Western Isles Health Board\",Calculations!$E$2=\"Shetland Islands Local Authority\",Calculations!$E$2=\"Eilean Siar Local Authority\"),OR($F75=1,$F75=5)),0,new_yllv2(VALUE(LEFT(Options!$B$14,2)),$C75,$D75,$E75,$F75,2016,$I75/10+$J75/10,1,$H75/10,$G75*$H75/10,RateRatios_accidents!$B$5)*10))","v":9141.847417682},{"$f":"IF(AND(OR(Calculations!$E$2=\"Orkney Health Board\",Calculations!$E$2=\"Orkney Islands Local Authority\"),$F75=1),0,IF(AND(OR(Calculations!$E$2=\"Shetland Health Board\",Calculations!$E$2=\"Western Isles Health Board\",Calculations!$E$2=\"Shetland Islands Local Authority\",Calculations!$E$2=\"Eilean Siar Local Authority\"),OR($F75=1,$F75=5)),0,hosp_count(VALUE(LEFT(Options!$B$14,2)),$C75,$E75,$F75,2016,$I75/10,1,$H75/10,$G75*$H75/10, RateRatios_accidents!$B$4, RateRatios_accidents!$B$5)*10))","v":12145.911451996},{"$f":"IF(AND(OR(Calculations!$E$2=\"Orkney Health Board\",Calculations!$E$2=\"Orkney Islands Local Authority\"),$F75=1),0,IF(AND(OR(Calculations!$E$2=\"Shetland Health Board\",Calculations!$E$2=\"Western Isles Health Board\",Calculations!$E$2=\"Shetland Islands Local Authority\",Calculations!$E$2=\"Eilean Siar Local Authority\"),OR($F75=1,$F75=5)),0,hosp_count(VALUE(LEFT(Options!$B$14,2)),$C75,$E75,$F75,2016,$I75/10+$J75/10,1,$H75/10,$G75*$H75/10, RateRatios_accidents!$B$4, RateRatios_accidents!$B$5)*10))","v":12142.324669707999},{"$f":"IF(AND(OR(Calculations!$E$2=\"Orkney Health Board\",Calculations!$E$2=\"Orkney Islands Local Authority\"),$F75=1),0,IF(AND(OR(Calculations!$E$2=\"Shetland Health Board\",Calculations!$E$2=\"Western Isles Health Board\",Calculations!$E$2=\"Shetland Islands Local Authority\",Calculations!$E$2=\"Eilean Siar Local Authority\"),OR($F75=1,$F75=5)),0,prem_mort(VALUE(LEFT(Options!$B$14,2)),$C75,$E75,$F75,2016,$I75/10,1,$H75/10,$G75*$H75/10,RateRatios_accidents!$B$5)*10))","v":0},{"$f":"IF(AND(OR(Calculations!$E$2=\"Orkney Health Board\",Calculations!$E$2=\"Orkney Islands Local Authority\"),$F75=1),0,IF(AND(OR(Calculations!$E$2=\"Shetland Health Board\",Calculations!$E$2=\"Western Isles Health Board\",Calculations!$E$2=\"Shetland Islands Local Authority\",Calculations!$E$2=\"Eilean Siar Local Authority\"),OR($F75=1,$F75=5)),0,prem_mort(VALUE(LEFT(Options!$B$14,2)),$C75,$E75,$F75,2016,$I75/10+$J75/10,1,$H75/10,$G75*$H75/10,RateRatios_accidents!$B$5)*10))","v":0},null,{"$f":"IF(AND(OR(Calculations!$E$2=\"Orkney Health Board\",Calculations!$E$2=\"Orkney Islands Local Authority\"),$F75=1),0,IF(AND(OR(Calculations!$E$2=\"Shetland Health Board\",Calculations!$E$2=\"Western Isles Health Board\",Calculations!$E$2=\"Shetland Islands Local Authority\",Calculations!$E$2=\"Eilean Siar Local Authority\"),OR($F75=1,$F75=5)),0,new_ci(VALUE(LEFT(Options!$B$14,2)),$C75,$E75,$F75,2016,$I75/10,1,$H75/10,$G75*$H75/10,RateRatios_airpollution!$C75)*10))","v":926.49207771500005},{"$f":"IF(AND(OR(Calculations!$E$2=\"Orkney Health Board\",Calculations!$E$2=\"Orkney Islands Local Authority\"),$F75=1),0,IF(AND(OR(Calculations!$E$2=\"Shetland Health Board\",Calculations!$E$2=\"Western Isles Health Board\",Calculations!$E$2=\"Shetland Islands Local Authority\",Calculations!$E$2=\"Eilean Siar Local Authority\"),OR($F75=1,$F75=5)),0,new_ci(VALUE(LEFT(Options!$B$14,2)),$C75,$E75,$F75,2016,$I75/10+$J75/10,1,$H75/10,$G75*$H75/10,RateRatios_airpollution!$C75)*10))","v":926.47608368700003},{"$f":"IF(AND(OR(Calculations!$E$2=\"Orkney Health Board\",Calculations!$E$2=\"Orkney Islands Local Authority\"),$F75=1),0,IF(AND(OR(Calculations!$E$2=\"Shetland Health Board\",Calculations!$E$2=\"Western Isles Health Board\",Calculations!$E$2=\"Shetland Islands Local Authority\",Calculations!$E$2=\"Eilean Siar Local Authority\"),OR($F75=1,$F75=5)),0,new_yllv2(VALUE(LEFT(Options!$B$14,2)),$C75,$D75,$E75,$F75,2016,$I75/10,1,$H75/10,$G75*$H75/10,RateRatios_airpollution!$C75)*10))","v":9144.4814395070007},{"$f":"IF(AND(OR(Calculations!$E$2=\"Orkney Health Board\",Calculations!$E$2=\"Orkney Islands Local Authority\"),$F75=1),0,IF(AND(OR(Calculations!$E$2=\"Shetland Health Board\",Calculations!$E$2=\"Western Isles Health Board\",Calculations!$E$2=\"Shetland Islands Local Authority\",Calculations!$E$2=\"Eilean Siar Local Authority\"),OR($F75=1,$F75=5)),0,new_yllv2(VALUE(LEFT(Options!$B$14,2)),$C75,$D75,$E75,$F75,2016,$I75/10+$J75/10,1,$H75/10,$G75*$H75/10,RateRatios_airpollution!$C75)*10))","v":9144.3235783710006},{"$f":"IF(AND(OR(Calculations!$E$2=\"Orkney Health Board\",Calculations!$E$2=\"Orkney Islands Local Authority\"),$F75=1),0,IF(AND(OR(Calculations!$E$2=\"Shetland Health Board\",Calculations!$E$2=\"Western Isles Health Board\",Calculations!$E$2=\"Shetland Islands Local Authority\",Calculations!$E$2=\"Eilean Siar Local Authority\"),OR($F75=1,$F75=5)),0,hosp_count(VALUE(LEFT(Options!$B$14,2)),$C75,$E75,$F75,2016,$I75/10,1,$H75/10,$G75*$H75/10, RateRatios_airpollution!$D75, RateRatios_airpollution!$C75)*10))","v":12145.911451996},{"$f":"IF(AND(OR(Calculations!$E$2=\"Orkney Health Board\",Calculations!$E$2=\"Orkney Islands Local Authority\"),$F75=1),0,IF(AND(OR(Calculations!$E$2=\"Shetland Health Board\",Calculations!$E$2=\"Western Isles Health Board\",Calculations!$E$2=\"Shetland Islands Local Authority\",Calculations!$E$2=\"Eilean Siar Local Authority\"),OR($F75=1,$F75=5)),0,hosp_count(VALUE(LEFT(Options!$B$14,2)),$C75,$E75,$F75,2016,$I75/10+$J75/10,1,$H75/10,$G75*$H75/10, RateRatios_airpollution!$D75, RateRatios_airpollution!$C75)*10))","v":12145.506475295002},{"$f":"IF(AND(OR(Calculations!$E$2=\"Orkney Health Board\",Calculations!$E$2=\"Orkney Islands Local Authority\"),$F75=1),0,IF(AND(OR(Calculations!$E$2=\"Shetland Health Board\",Calculations!$E$2=\"Western Isles Health Board\",Calculations!$E$2=\"Shetland Islands Local Authority\",Calculations!$E$2=\"Eilean Siar Local Authority\"),OR($F75=1,$F75=5)),0,prem_mort(VALUE(LEFT(Options!$B$14,2)),$C75,$E75,$F75,2016,$I75/10,1,$H75/10,$G75*$H75/10,RateRatios_airpollution!$C75)*10))","v":0},{"$f":"IF(AND(OR(Calculations!$E$2=\"Orkney Health Board\",Calculations!$E$2=\"Orkney Islands Local Authority\"),$F75=1),0,IF(AND(OR(Calculations!$E$2=\"Shetland Health Board\",Calculations!$E$2=\"Western Isles Health Board\",Calculations!$E$2=\"Shetland Islands Local Authority\",Calculations!$E$2=\"Eilean Siar Local Authority\"),OR($F75=1,$F75=5)),0,prem_mort(VALUE(LEFT(Options!$B$14,2)),$C75,$E75,$F75,2016,$I75/10+$J75/10,1,$H75/10,$G75*$H75/10,RateRatios_airpollution!$C75)*10))","v":0},null,{"$f":"IF(AND(OR(Calculations!$E$2=\"Orkney Health Board\",Calculations!$E$2=\"Orkney Islands Local Authority\"),$F75=1),0,IF(AND(OR(Calculations!$E$2=\"Shetland Health Board\",Calculations!$E$2=\"Western Isles Health Board\",Calculations!$E$2=\"Shetland Islands Local Authority\",Calculations!$E$2=\"Eilean Siar Local Authority\"),OR($F75=1,$F75=5)),0,new_ci(VALUE(LEFT(Options!$B$14,2)),$C75,$E75,$F75,2016,$I75/10,1,$H75/10,$G75*$H75/10,RateRatios_airpollution!$E75)*10))","v":926.49207771500005},{"$f":"IF(AND(OR(Calculations!$E$2=\"Orkney Health Board\",Calculations!$E$2=\"Orkney Islands Local Authority\"),$F75=1),0,IF(AND(OR(Calculations!$E$2=\"Shetland Health Board\",Calculations!$E$2=\"Western Isles Health Board\",Calculations!$E$2=\"Shetland Islands Local Authority\",Calculations!$E$2=\"Eilean Siar Local Authority\"),OR($F75=1,$F75=5)),0,new_ci(VALUE(LEFT(Options!$B$14,2)),$C75,$E75,$F75,2016,$I75/10+$J75/10,1,$H75/10,$G75*$H75/10,RateRatios_airpollution!$E75)*10))","v":926.48446783599991},{"$f":"IF(AND(OR(Calculations!$E$2=\"Orkney Health Board\",Calculations!$E$2=\"Orkney Islands Local Authority\"),$F75=1),0,IF(AND(OR(Calculations!$E$2=\"Shetland Health Board\",Calculations!$E$2=\"Western Isles Health Board\",Calculations!$E$2=\"Shetland Islands Local Authority\",Calculations!$E$2=\"Eilean Siar Local Authority\"),OR($F75=1,$F75=5)),0,new_yllv2(VALUE(LEFT(Options!$B$14,2)),$C75,$D75,$E75,$F75,2016,$I75/10,1,$H75/10,$G75*$H75/10,RateRatios_airpollution!$E75)*10))","v":9144.4814395070007},{"$f":"IF(AND(OR(Calculations!$E$2=\"Orkney Health Board\",Calculations!$E$2=\"Orkney Islands Local Authority\"),$F75=1),0,IF(AND(OR(Calculations!$E$2=\"Shetland Health Board\",Calculations!$E$2=\"Western Isles Health Board\",Calculations!$E$2=\"Shetland Islands Local Authority\",Calculations!$E$2=\"Eilean Siar Local Authority\"),OR($F75=1,$F75=5)),0,new_yllv2(VALUE(LEFT(Options!$B$14,2)),$C75,$D75,$E75,$F75,2016,$I75/10+$J75/10,1,$H75/10,$G75*$H75/10,RateRatios_airpollution!$E75)*10))","v":9144.4063299640002},{"$f":"IF(AND(OR(Calculations!$E$2=\"Orkney Health Board\",Calculations!$E$2=\"Orkney Islands Local Authority\"),$F75=1),0,IF(AND(OR(Calculations!$E$2=\"Shetland Health Board\",Calculations!$E$2=\"Western Isles Health Board\",Calculations!$E$2=\"Shetland Islands Local Authority\",Calculations!$E$2=\"Eilean Siar Local Authority\"),OR($F75=1,$F75=5)),0,hosp_count(VALUE(LEFT(Options!$B$14,2)),$C75,$E75,$F75,2016,$I75/10,1,$H75/10,$G75*$H75/10, RateRatios_airpollution!$F75, RateRatios_airpollution!$E75)*10))","v":12145.911451996},{"$f":"IF(AND(OR(Calculations!$E$2=\"Orkney Health Board\",Calculations!$E$2=\"Orkney Islands Local Authority\"),$F75=1),0,IF(AND(OR(Calculations!$E$2=\"Shetland Health Board\",Calculations!$E$2=\"Western Isles Health Board\",Calculations!$E$2=\"Shetland Islands Local Authority\",Calculations!$E$2=\"Eilean Siar Local Authority\"),OR($F75=1,$F75=5)),0,hosp_count(VALUE(LEFT(Options!$B$14,2)),$C75,$E75,$F75,2016,$I75/10+$J75/10,1,$H75/10,$G75*$H75/10, RateRatios_airpollution!$F75, RateRatios_airpollution!$E75)*10))","v":12145.911451996},{"$f":"IF(AND(OR(Calculations!$E$2=\"Orkney Health Board\",Calculations!$E$2=\"Orkney Islands Local Authority\"),$F75=1),0,IF(AND(OR(Calculations!$E$2=\"Shetland Health Board\",Calculations!$E$2=\"Western Isles Health Board\",Calculations!$E$2=\"Shetland Islands Local Authority\",Calculations!$E$2=\"Eilean Siar Local Authority\"),OR($F75=1,$F75=5)),0,prem_mort(VALUE(LEFT(Options!$B$14,2)),$C75,$E75,$F75,2016,$I75/10,1,$H75/10,$G75*$H75/10,RateRatios_airpollution!$E75)*10))","v":0},{"$f":"IF(AND(OR(Calculations!$E$2=\"Orkney Health Board\",Calculations!$E$2=\"Orkney Islands Local Authority\"),$F75=1),0,IF(AND(OR(Calculations!$E$2=\"Shetland Health Board\",Calculations!$E$2=\"Western Isles Health Board\",Calculations!$E$2=\"Shetland Islands Local Authority\",Calculations!$E$2=\"Eilean Siar Local Authority\"),OR($F75=1,$F75=5)),0,prem_mort(VALUE(LEFT(Options!$B$14,2)),$C75,$E75,$F75,2016,$I75/10+$J75/10,1,$H75/10,$G75*$H75/10,RateRatios_airpollution!$E75)*10))","v":0},926.49207771500005,926.20160243099974,9144.4814395070007,9141.6144470029994,12145.911451996,12141.919693007001,0,0,4841.1123299979099,4839.5945366861724,47781.80290263873,47766.822275070539,63464.894200000002,63444.036435400783,0,0,19364449.319991641,19358378.146744691,191127211.61055493,191067289.10028216,253859576.80000001,253776145.74160314,0,0,4000]
[null,"Female 80-84",81.856712000000002,89.736710000000002,"female",1,1,{"$f":"HLOOKUP(Calculations!$E$2,'Population 2016'!$C$3:$BC$249,'Population 2016'!BD76,FALSE)","v":14776},0,{"$f":"HLOOKUP(Calculations!$E$2,Pop2016_in_settlements!$C$3:$BC$249,Pop2016_in_settlements!$BD76,FALSE)","v":10913},{"$f":"IF(AND(OR(Calculations!$E$2=\"Orkney Health Board\",Calculations!$E$2=\"Orkney Islands Local Authority\"),$F76=1),0,IF(AND(OR(Calculations!$E$2=\"Shetland Health Board\",Calculations!$E$2=\"Western Isles Health Board\",Calculations!$E$2=\"Shetland Islands Local Authority\",Calculations!$E$2=\"Eilean Siar Local Authority\"),OR($F76=1,$F76=5)),0,new_ci(VALUE(LEFT(Options!$B$14,2)),$C76,$E76,$F76,2016,$I76/10,1,$H76/10,$G76*$H76/10,RateRatios_accidents!$B$5)*10))","v":1072.7087764569999},{"$f":"IF(AND(OR(Calculations!$E$2=\"Orkney Health Board\",Calculations!$E$2=\"Orkney Islands Local Authority\"),$F76=1),0,IF(AND(OR(Calculations!$E$2=\"Shetland Health Board\",Calculations!$E$2=\"Western Isles Health Board\",Calculations!$E$2=\"Shetland Islands Local Authority\",Calculations!$E$2=\"Eilean Siar Local Authority\"),OR($F76=1,$F76=5)),0,new_ci(VALUE(LEFT(Options!$B$14,2)),$C76,$E76,$F76,2016,$I76/10+$J76/10,1,$H76/10,$G76*$H76/10,RateRatios_accidents!$B$5)*10))","v":1072.4036587979999},{"$f":"IF(AND(OR(Calculations!$E$2=\"Orkney Health Board\",Calculations!$E$2=\"Orkney Islands Local Authority\"),$F76=1),0,IF(AND(OR(Calculations!$E$2=\"Shetland Health Board\",Calculations!$E$2=\"Western Isles Health Board\",Calculations!$E$2=\"Shetland Islands Local Authority\",Calculations!$E$2=\"Eilean Siar Local Authority\"),OR($F76=1,$F76=5)),0,new_yllv2(VALUE(LEFT(Options!$B$14,2)),$C76,$D76,$E76,$F76,2016,$I76/10,1,$H76/10,$G76*$H76/10,RateRatios_accidents!$B$5)*10))","v":7380.2342366070006},{"$f":"IF(AND(OR(Calculations!$E$2=\"Orkney Health Board\",Calculations!$E$2=\"Orkney Islands Local Authority\"),$F76=1),0,IF(AND(OR(Calculations!$E$2=\"Shetland Health Board\",Calculations!$E$2=\"Western Isles Health Board\",Calculations!$E$2=\"Shetland Islands Local Authority\",Calculations!$E$2=\"Eilean Siar Local Authority\"),OR($F76=1,$F76=5)),0,new_yllv2(VALUE(LEFT(Options!$B$14,2)),$C76,$D76,$E76,$F76,2016,$I76/10+$J76/10,1,$H76/10,$G76*$H76/10,RateRatios_accidents!$B$5)*10))","v":7378.1350277230003},{"$f":"IF(AND(OR(Calculations!$E$2=\"Orkney Health Board\",Calculations!$E$2=\"Orkney Islands Local Authority\"),$F76=1),0,IF(AND(OR(Calculations!$E$2=\"Shetland Health Board\",Calculations!$E$2=\"Western Isles Health Board\",Calculations!$E$2=\"Shetland Islands Local Authority\",Calculations!$E$2=\"Eilean Siar Local Authority\"),OR($F76=1,$F76=5)),0,hosp_count(VALUE(LEFT(Options!$B$14,2)),$C76,$E76,$F76,2016,$I76/10,1,$H76/10,$G76*$H76/10, RateRatios_accidents!$B$4, RateRatios_accidents!$B$5)*10))","v":10611.341192021},{"$f":"IF(AND(OR(Calculations!$E$2=\"Orkney Health Board\",Calculations!$E$2=\"Orkney Islands Local Authority\"),$F76=1),0,IF(AND(OR(Calculations!$E$2=\"Shetland Health Board\",Calculations!$E$2=\"Western Isles Health Board\",Calculations!$E$2=\"Shetland Islands Local Authority\",Calculations!$E$2=\"Eilean Siar Local Authority\"),OR($F76=1,$F76=5)),0,hosp_count(VALUE(LEFT(Options!$B$14,2)),$C76,$E76,$F76,2016,$I76/10+$J76/10,1,$H76/10,$G76*$H76/10, RateRatios_accidents!$B$4, RateRatios_accidents!$B$5)*10))","v":10608.206336736001},{"$f":"IF(AND(OR(Calculations!$E$2=\"Orkney Health Board\",Calculations!$E$2=\"Orkney Islands Local Authority\"),$F76=1),0,IF(AND(OR(Calculations!$E$2=\"Shetland Health Board\",Calculations!$E$2=\"Western Isles Health Board\",Calculations!$E$2=\"Shetland Islands Local Authority\",Calculations!$E$2=\"Eilean Siar Local Authority\"),OR($F76=1,$F76=5)),0,prem_mort(VALUE(LEFT(Options!$B$14,2)),$C76,$E76,$F76,2016,$I76/10,1,$H76/10,$G76*$H76/10,RateRatios_accidents!$B$5)*10))","v":0},{"$f":"IF(AND(OR(Calculations!$E$2=\"Orkney Health Board\",Calculations!$E$2=\"Orkney Islands Local Authority\"),$F76=1),0,IF(AND(OR(Calculations!$E$2=\"Shetland Health Board\",Calculations!$E$2=\"Western Isles Health Board\",Calculations!$E$2=\"Shetland Islands Local Authority\",Calculations!$E$2=\"Eilean Siar Local Authority\"),OR($F76=1,$F76=5)),0,prem_mort(VALUE(LEFT(Options!$B$14,2)),$C76,$E76,$F76,2016,$I76/10+$J76/10,1,$H76/10,$G76*$H76/10,RateRatios_accidents!$B$5)*10))","v":0},null,{"$f":"IF(AND(OR(Calculations!$E$2=\"Orkney Health Board\",Calculations!$E$2=\"Orkney Islands Local Authority\"),$F76=1),0,IF(AND(OR(Calculations!$E$2=\"Shetland Health Board\",Calculations!$E$2=\"Western Isles Health Board\",Calculations!$E$2=\"Shetland Islands Local Authority\",Calculations!$E$2=\"Eilean Siar Local Authority\"),OR($F76=1,$F76=5)),0,new_ci(VALUE(LEFT(Options!$B$14,2)),$C76,$E76,$F76,2016,$I76/10,1,$H76/10,$G76*$H76/10,RateRatios_airpollution!$C76)*10))","v":1072.7087764569999},{"$f":"IF(AND(OR(Calculations!$E$2=\"Orkney Health Board\",Calculations!$E$2=\"Orkney Islands Local Authority\"),$F76=1),0,IF(AND(OR(Calculations!$E$2=\"Shetland Health Board\",Calculations!$E$2=\"Western Isles Health Board\",Calculations!$E$2=\"Shetland Islands Local Authority\",Calculations!$E$2=\"Eilean Siar Local Authority\"),OR($F76=1,$F76=5)),0,new_ci(VALUE(LEFT(Options!$B$14,2)),$C76,$E76,$F76,2016,$I76/10+$J76/10,1,$H76/10,$G76*$H76/10,RateRatios_airpollution!$C76)*10))","v":1072.6902570960001},{"$f":"IF(AND(OR(Calculations!$E$2=\"Orkney Health Board\",Calculations!$E$2=\"Orkney Islands Local Authority\"),$F76=1),0,IF(AND(OR(Calculations!$E$2=\"Shetland Health Board\",Calculations!$E$2=\"Western Isles Health Board\",Calculations!$E$2=\"Shetland Islands Local Authority\",Calculations!$E$2=\"Eilean Siar Local Authority\"),OR($F76=1,$F76=5)),0,new_yllv2(VALUE(LEFT(Options!$B$14,2)),$C76,$D76,$E76,$F76,2016,$I76/10,1,$H76/10,$G76*$H76/10,RateRatios_airpollution!$C76)*10))","v":7380.2342366070006},{"$f":"IF(AND(OR(Calculations!$E$2=\"Orkney Health Board\",Calculations!$E$2=\"Orkney Islands Local Authority\"),$F76=1),0,IF(AND(OR(Calculations!$E$2=\"Shetland Health Board\",Calculations!$E$2=\"Western Isles Health Board\",Calculations!$E$2=\"Shetland Islands Local Authority\",Calculations!$E$2=\"Eilean Siar Local Authority\"),OR($F76=1,$F76=5)),0,new_yllv2(VALUE(LEFT(Options!$B$14,2)),$C76,$D76,$E76,$F76,2016,$I76/10+$J76/10,1,$H76/10,$G76*$H76/10,RateRatios_airpollution!$C76)*10))","v":7380.10682344},{"$f":"IF(AND(OR(Calculations!$E$2=\"Orkney Health Board\",Calculations!$E$2=\"Orkney Islands Local Authority\"),$F76=1),0,IF(AND(OR(Calculations!$E$2=\"Shetland Health Board\",Calculations!$E$2=\"Western Isles Health Board\",Calculations!$E$2=\"Shetland Islands Local Authority\",Calculations!$E$2=\"Eilean Siar Local Authority\"),OR($F76=1,$F76=5)),0,hosp_count(VALUE(LEFT(Options!$B$14,2)),$C76,$E76,$F76,2016,$I76/10,1,$H76/10,$G76*$H76/10, RateRatios_airpollution!$D76, RateRatios_airpollution!$C76)*10))","v":10611.341192021},{"$f":"IF(AND(OR(Calculations!$E$2=\"Orkney Health Board\",Calculations!$E$2=\"Orkney Islands Local Authority\"),$F76=1),0,IF(AND(OR(Calculations!$E$2=\"Shetland Health Board\",Calculations!$E$2=\"Western Isles Health Board\",Calculations!$E$2=\"Shetland Islands Local Authority\",Calculations!$E$2=\"Eilean Siar Local Authority\"),OR($F76=1,$F76=5)),0,hosp_count(VALUE(LEFT(Options!$B$14,2)),$C76,$E76,$F76,2016,$I76/10+$J76/10,1,$H76/10,$G76*$H76/10, RateRatios_airpollution!$D76, RateRatios_airpollution!$C76)*10))","v":10610.982719614001},{"$f":"IF(AND(OR(Calculations!$E$2=\"Orkney Health Board\",Calculations!$E$2=\"Orkney Islands Local Authority\"),$F76=1),0,IF(AND(OR(Calculations!$E$2=\"Shetland Health Board\",Calculations!$E$2=\"Western Isles Health Board\",Calculations!$E$2=\"Shetland Islands Local Authority\",Calculations!$E$2=\"Eilean Siar Local Authority\"),OR($F76=1,$F76=5)),0,prem_mort(VALUE(LEFT(Options!$B$14,2)),$C76,$E76,$F76,2016,$I76/10,1,$H76/10,$G76*$H76/10,RateRatios_airpollution!$C76)*10))","v":0},{"$f":"IF(AND(OR(Calculations!$E$2=\"Orkney Health Board\",Calculations!$E$2=\"Orkney Islands Local Authority\"),$F76=1),0,IF(AND(OR(Calculations!$E$2=\"Shetland Health Board\",Calculations!$E$2=\"Western Isles Health Board\",Calculations!$E$2=\"Shetland Islands Local Authority\",Calculations!$E$2=\"Eilean Siar Local Authority\"),OR($F76=1,$F76=5)),0,prem_mort(VALUE(LEFT(Options!$B$14,2)),$C76,$E76,$F76,2016,$I76/10+$J76/10,1,$H76/10,$G76*$H76/10,RateRatios_airpollution!$C76)*10))","v":0},null,{"$f":"IF(AND(OR(Calculations!$E$2=\"Orkney Health Board\",Calculations!$E$2=\"Orkney Islands Local Authority\"),$F76=1),0,IF(AND(OR(Calculations!$E$2=\"Shetland Health Board\",Calculations!$E$2=\"Western Isles Health Board\",Calculations!$E$2=\"Shetland Islands Local Authority\",Calculations!$E$2=\"Eilean Siar Local Authority\"),OR($F76=1,$F76=5)),0,new_ci(VALUE(LEFT(Options!$B$14,2)),$C76,$E76,$F76,2016,$I76/10,1,$H76/10,$G76*$H76/10,RateRatios_airpollution!$E76)*10))","v":1072.7087764569999},{"$f":"IF(AND(OR(Calculations!$E$2=\"Orkney Health Board\",Calculations!$E$2=\"Orkney Islands Local Authority\"),$F76=1),0,IF(AND(OR(Calculations!$E$2=\"Shetland Health Board\",Calculations!$E$2=\"Western Isles Health Board\",Calculations!$E$2=\"Shetland Islands Local Authority\",Calculations!$E$2=\"Eilean Siar Local Authority\"),OR($F76=1,$F76=5)),0,new_ci(VALUE(LEFT(Options!$B$14,2)),$C76,$E76,$F76,2016,$I76/10+$J76/10,1,$H76/10,$G76*$H76/10,RateRatios_airpollution!$E76)*10))","v":1072.699969666},{"$f":"IF(AND(OR(Calculations!$E$2=\"Orkney Health Board\",Calculations!$E$2=\"Orkney Islands Local Authority\"),$F76=1),0,IF(AND(OR(Calculations!$E$2=\"Shetland Health Board\",Calculations!$E$2=\"Western Isles Health Board\",Calculations!$E$2=\"Shetland Islands Local Authority\",Calculations!$E$2=\"Eilean Siar Local Authority\"),OR($F76=1,$F76=5)),0,new_yllv2(VALUE(LEFT(Options!$B$14,2)),$C76,$D76,$E76,$F76,2016,$I76/10,1,$H76/10,$G76*$H76/10,RateRatios_airpollution!$E76)*10))","v":7380.2342366070006},{"$f":"IF(AND(OR(Calculations!$E$2=\"Orkney Health Board\",Calculations!$E$2=\"Orkney Islands Local Authority\"),$F76=1),0,IF(AND(OR(Calculations!$E$2=\"Shetland Health Board\",Calculations!$E$2=\"Western Isles Health Board\",Calculations!$E$2=\"Shetland Islands Local Authority\",Calculations!$E$2=\"Eilean Siar Local Authority\"),OR($F76=1,$F76=5)),0,new_yllv2(VALUE(LEFT(Options!$B$14,2)),$C76,$D76,$E76,$F76,2016,$I76/10+$J76/10,1,$H76/10,$G76*$H76/10,RateRatios_airpollution!$E76)*10))","v":7380.1736459020003},{"$f":"IF(AND(OR(Calculations!$E$2=\"Orkney Health Board\",Calculations!$E$2=\"Orkney Islands Local Authority\"),$F76=1),0,IF(AND(OR(Calculations!$E$2=\"Shetland Health Board\",Calculations!$E$2=\"Western Isles Health Board\",Calculations!$E$2=\"Shetland Islands Local Authority\",Calculations!$E$2=\"Eilean Siar Local Authority\"),OR($F76=1,$F76=5)),0,hosp_count(VALUE(LEFT(Options!$B$14,2)),$C76,$E76,$F76,2016,$I76/10,1,$H76/10,$G76*$H76/10, RateRatios_airpollution!$F76, RateRatios_airpollution!$E76)*10))","v":10611.341192021},{"$f":"IF(AND(OR(Calculations!$E$2=\"Orkney Health Board\",Calculations!$E$2=\"Orkney Islands Local Authority\"),$F76=1),0,IF(AND(OR(Calculations!$E$2=\"Shetland Health Board\",Calculations!$E$2=\"Western Isles Health Board\",Calculations!$E$2=\"Shetland Islands Local Authority\",Calculations!$E$2=\"Eilean Siar Local Authority\"),OR($F76=1,$F76=5)),0,hosp_count(VALUE(LEFT(Options!$B$14,2)),$C76,$E76,$F76,2016,$I76/10+$J76/10,1,$H76/10,$G76*$H76/10, RateRatios_airpollution!$F76, RateRatios_airpollution!$E76)*10))","v":10611.341192021},{"$f":"IF(AND(OR(Calculations!$E$2=\"Orkney Health Board\",Calculations!$E$2=\"Orkney Islands Local Authority\"),$F76=1),0,IF(AND(OR(Calculations!$E$2=\"Shetland Health Board\",Calculations!$E$2=\"Western Isles Health Board\",Calculations!$E$2=\"Shetland Islands Local Authority\",Calculations!$E$2=\"Eilean Siar Local Authority\"),OR($F76=1,$F76=5)),0,prem_mort(VALUE(LEFT(Options!$B$14,2)),$C76,$E76,$F76,2016,$I76/10,1,$H76/10,$G76*$H76/10,RateRatios_airpollution!$E76)*10))","v":0},{"$f":"IF(AND(OR(Calculations!$E$2=\"Orkney Health Board\",Calculations!$E$2=\"Orkney Islands Local Authority\"),$F76=1),0,IF(AND(OR(Calculations!$E$2=\"Shetland Health Board\",Calculations!$E$2=\"Western Isles Health Board\",Calculations!$E$2=\"Shetland Islands Local Authority\",Calculations!$E$2=\"Eilean Siar Local Authority\"),OR($F76=1,$F76=5)),0,prem_mort(VALUE(LEFT(Options!$B$14,2)),$C76,$E76,$F76,2016,$I76/10+$J76/10,1,$H76/10,$G76*$H76/10,RateRatios_airpollution!$E76)*10))","v":0},1072.7087764569999,1072.3763326460003,7380.2342366070006,7377.9470238509994,10611.341192021,10607.847864329002,0,0,7259.8049300013527,7257.5550395641594,49947.443398802119,49931.964157085808,71814.707580001355,71791.065676292652,0,0,18149512.325003382,18143887.598910399,124868608.4970053,124829910.39271452,179536768.95000339,179477664.19073164,0,0,2500]
[null,"Female 85-89",86.730819999999994,92.220819999999989,"female",1,1,{"$f":"HLOOKUP(Calculations!$E$2,'Population 2016'!$C$3:$BC$249,'Population 2016'!BD77,FALSE)","v":8869},0,{"$f":"HLOOKUP(Calculations!$E$2,Pop2016_in_settlements!$C$3:$BC$249,Pop2016_in_settlements!$BD77,FALSE)","v":6427},{"$f":"IF(AND(OR(Calculations!$E$2=\"Orkney Health Board\",Calculations!$E$2=\"Orkney Islands Local Authority\"),$F77=1),0,IF(AND(OR(Calculations!$E$2=\"Shetland Health Board\",Calculations!$E$2=\"Western Isles Health Board\",Calculations!$E$2=\"Shetland Islands Local Authority\",Calculations!$E$2=\"Eilean Siar Local Authority\"),OR($F77=1,$F77=5)),0,new_ci(VALUE(LEFT(Options!$B$14,2)),$C77,$E77,$F77,2016,$I77/10,1,$H77/10,$G77*$H77/10,RateRatios_accidents!$B$5)*10))","v":956.24194746000001},{"$f":"IF(AND(OR(Calculations!$E$2=\"Orkney Health Board\",Calculations!$E$2=\"Orkney Islands Local Authority\"),$F77=1),0,IF(AND(OR(Calculations!$E$2=\"Shetland Health Board\",Calculations!$E$2=\"Western Isles Health Board\",Calculations!$E$2=\"Shetland Islands Local Authority\",Calculations!$E$2=\"Eilean Siar Local Authority\"),OR($F77=1,$F77=5)),0,new_ci(VALUE(LEFT(Options!$B$14,2)),$C77,$E77,$F77,2016,$I77/10+$J77/10,1,$H77/10,$G77*$H77/10,RateRatios_accidents!$B$5)*10))","v":955.98027215499997},{"$f":"IF(AND(OR(Calculations!$E$2=\"Orkney Health Board\",Calculations!$E$2=\"Orkney Islands Local Authority\"),$F77=1),0,IF(AND(OR(Calculations!$E$2=\"Shetland Health Board\",Calculations!$E$2=\"Western Isles Health Board\",Calculations!$E$2=\"Shetland Islands Local Authority\",Calculations!$E$2=\"Eilean Siar Local Authority\"),OR($F77=1,$F77=5)),0,new_yllv2(VALUE(LEFT(Options!$B$14,2)),$C77,$D77,$E77,$F77,2016,$I77/10,1,$H77/10,$G77*$H77/10,RateRatios_accidents!$B$5)*10))","v":4293.5263440950002},{"$f":"IF(AND(OR(Calculations!$E$2=\"Orkney Health Board\",Calculations!$E$2=\"Orkney Islands Local Authority\"),$F77=1),0,IF(AND(OR(Calculations!$E$2=\"Shetland Health Board\",Calculations!$E$2=\"Western Isles Health Board\",Calculations!$E$2=\"Shetland Islands Local Authority\",Calculations!$E$2=\"Eilean Siar Local Authority\"),OR($F77=1,$F77=5)),0,new_yllv2(VALUE(LEFT(Options!$B$14,2)),$C77,$D77,$E77,$F77,2016,$I77/10+$J77/10,1,$H77/10,$G77*$H77/10,RateRatios_accidents!$B$5)*10))","v":4292.351421976},{"$f":"IF(AND(OR(Calculations!$E$2=\"Orkney Health Board\",Calculations!$E$2=\"Orkney Islands Local Authority\"),$F77=1),0,IF(AND(OR(Calculations!$E$2=\"Shetland Health Board\",Calculations!$E$2=\"Western Isles Health Board\",Calculations!$E$2=\"Shetland Islands Local Authority\",Calculations!$E$2=\"Eilean Siar Local Authority\"),OR($F77=1,$F77=5)),0,hosp_count(VALUE(LEFT(Options!$B$14,2)),$C77,$E77,$F77,2016,$I77/10,1,$H77/10,$G77*$H77/10, RateRatios_accidents!$B$4, RateRatios_accidents!$B$5)*10))","v":7200.0139395589995},{"$f":"IF(AND(OR(Calculations!$E$2=\"Orkney Health Board\",Calculations!$E$2=\"Orkney Islands Local Authority\"),$F77=1),0,IF(AND(OR(Calculations!$E$2=\"Shetland Health Board\",Calculations!$E$2=\"Western Isles Health Board\",Calculations!$E$2=\"Shetland Islands Local Authority\",Calculations!$E$2=\"Eilean Siar Local Authority\"),OR($F77=1,$F77=5)),0,hosp_count(VALUE(LEFT(Options!$B$14,2)),$C77,$E77,$F77,2016,$I77/10+$J77/10,1,$H77/10,$G77*$H77/10, RateRatios_accidents!$B$4, RateRatios_accidents!$B$5)*10))","v":7197.9269178449995},{"$f":"IF(AND(OR(Calculations!$E$2=\"Orkney Health Board\",Calculations!$E$2=\"Orkney Islands Local Authority\"),$F77=1),0,IF(AND(OR(Calculations!$E$2=\"Shetland Health Board\",Calculations!$E$2=\"Western Isles Health Board\",Calculations!$E$2=\"Shetland Islands Local Authority\",Calculations!$E$2=\"Eilean Siar Local Authority\"),OR($F77=1,$F77=5)),0,prem_mort(VALUE(LEFT(Options!$B$14,2)),$C77,$E77,$F77,2016,$I77/10,1,$H77/10,$G77*$H77/10,RateRatios_accidents!$B$5)*10))","v":0},{"$f":"IF(AND(OR(Calculations!$E$2=\"Orkney Health Board\",Calculations!$E$2=\"Orkney Islands Local Authority\"),$F77=1),0,IF(AND(OR(Calculations!$E$2=\"Shetland Health Board\",Calculations!$E$2=\"Western Isles Health Board\",Calculations!$E$2=\"Shetland Islands Local Authority\",Calculations!$E$2=\"Eilean Siar Local Authority\"),OR($F77=1,$F77=5)),0,prem_mort(VALUE(LEFT(Options!$B$14,2)),$C77,$E77,$F77,2016,$I77/10+$J77/10,1,$H77/10,$G77*$H77/10,RateRatios_accidents!$B$5)*10))","v":0},null,{"$f":"IF(AND(OR(Calculations!$E$2=\"Orkney Health Board\",Calculations!$E$2=\"Orkney Islands Local Authority\"),$F77=1),0,IF(AND(OR(Calculations!$E$2=\"Shetland Health Board\",Calculations!$E$2=\"Western Isles Health Board\",Calculations!$E$2=\"Shetland Islands Local Authority\",Calculations!$E$2=\"Eilean Siar Local Authority\"),OR($F77=1,$F77=5)),0,new_ci(VALUE(LEFT(Options!$B$14,2)),$C77,$E77,$F77,2016,$I77/10,1,$H77/10,$G77*$H77/10,RateRatios_airpollution!$C77)*10))","v":956.24194746000001},{"$f":"IF(AND(OR(Calculations!$E$2=\"Orkney Health Board\",Calculations!$E$2=\"Orkney Islands Local Authority\"),$F77=1),0,IF(AND(OR(Calculations!$E$2=\"Shetland Health Board\",Calculations!$E$2=\"Western Isles Health Board\",Calculations!$E$2=\"Shetland Islands Local Authority\",Calculations!$E$2=\"Eilean Siar Local Authority\"),OR($F77=1,$F77=5)),0,new_ci(VALUE(LEFT(Options!$B$14,2)),$C77,$E77,$F77,2016,$I77/10+$J77/10,1,$H77/10,$G77*$H77/10,RateRatios_airpollution!$C77)*10))","v":956.22578355499991},{"$f":"IF(AND(OR(Calculations!$E$2=\"Orkney Health Board\",Calculations!$E$2=\"Orkney Islands Local Authority\"),$F77=1),0,IF(AND(OR(Calculations!$E$2=\"Shetland Health Board\",Calculations!$E$2=\"Western Isles Health Board\",Calculations!$E$2=\"Shetland Islands Local Authority\",Calculations!$E$2=\"Eilean Siar Local Authority\"),OR($F77=1,$F77=5)),0,new_yllv2(VALUE(LEFT(Options!$B$14,2)),$C77,$D77,$E77,$F77,2016,$I77/10,1,$H77/10,$G77*$H77/10,RateRatios_airpollution!$C77)*10))","v":4293.5263440950002},{"$f":"IF(AND(OR(Calculations!$E$2=\"Orkney Health Board\",Calculations!$E$2=\"Orkney Islands Local Authority\"),$F77=1),0,IF(AND(OR(Calculations!$E$2=\"Shetland Health Board\",Calculations!$E$2=\"Western Isles Health Board\",Calculations!$E$2=\"Shetland Islands Local Authority\",Calculations!$E$2=\"Eilean Siar Local Authority\"),OR($F77=1,$F77=5)),0,new_yllv2(VALUE(LEFT(Options!$B$14,2)),$C77,$D77,$E77,$F77,2016,$I77/10+$J77/10,1,$H77/10,$G77*$H77/10,RateRatios_airpollution!$C77)*10))","v":4293.4537681619995},{"$f":"IF(AND(OR(Calculations!$E$2=\"Orkney Health Board\",Calculations!$E$2=\"Orkney Islands Local Authority\"),$F77=1),0,IF(AND(OR(Calculations!$E$2=\"Shetland Health Board\",Calculations!$E$2=\"Western Isles Health Board\",Calculations!$E$2=\"Shetland Islands Local Authority\",Calculations!$E$2=\"Eilean Siar Local Authority\"),OR($F77=1,$F77=5)),0,hosp_count(VALUE(LEFT(Options!$B$14,2)),$C77,$E77,$F77,2016,$I77/10,1,$H77/10,$G77*$H77/10, RateRatios_airpollution!$D77, RateRatios_airpollution!$C77)*10))","v":7200.0139395589995},{"$f":"IF(AND(OR(Calculations!$E$2=\"Orkney Health Board\",Calculations!$E$2=\"Orkney Islands Local Authority\"),$F77=1),0,IF(AND(OR(Calculations!$E$2=\"Shetland Health Board\",Calculations!$E$2=\"Western Isles Health Board\",Calculations!$E$2=\"Shetland Islands Local Authority\",Calculations!$E$2=\"Eilean Siar Local Authority\"),OR($F77=1,$F77=5)),0,hosp_count(VALUE(LEFT(Options!$B$14,2)),$C77,$E77,$F77,2016,$I77/10+$J77/10,1,$H77/10,$G77*$H77/10, RateRatios_airpollution!$D77, RateRatios_airpollution!$C77)*10))","v":7199.771063229},{"$f":"IF(AND(OR(Calculations!$E$2=\"Orkney Health Board\",Calculations!$E$2=\"Orkney Islands Local Authority\"),$F77=1),0,IF(AND(OR(Calculations!$E$2=\"Shetland Health Board\",Calculations!$E$2=\"Western Isles Health Board\",Calculations!$E$2=\"Shetland Islands Local Authority\",Calculations!$E$2=\"Eilean Siar Local Authority\"),OR($F77=1,$F77=5)),0,prem_mort(VALUE(LEFT(Options!$B$14,2)),$C77,$E77,$F77,2016,$I77/10,1,$H77/10,$G77*$H77/10,RateRatios_airpollution!$C77)*10))","v":0},{"$f":"IF(AND(OR(Calculations!$E$2=\"Orkney Health Board\",Calculations!$E$2=\"Orkney Islands Local Authority\"),$F77=1),0,IF(AND(OR(Calculations!$E$2=\"Shetland Health Board\",Calculations!$E$2=\"Western Isles Health Board\",Calculations!$E$2=\"Shetland Islands Local Authority\",Calculations!$E$2=\"Eilean Siar Local Authority\"),OR($F77=1,$F77=5)),0,prem_mort(VALUE(LEFT(Options!$B$14,2)),$C77,$E77,$F77,2016,$I77/10+$J77/10,1,$H77/10,$G77*$H77/10,RateRatios_airpollution!$C77)*10))","v":0},null,{"$f":"IF(AND(OR(Calculations!$E$2=\"Orkney Health Board\",Calculations!$E$2=\"Orkney Islands Local Authority\"),$F77=1),0,IF(AND(OR(Calculations!$E$2=\"Shetland Health Board\",Calculations!$E$2=\"Western Isles Health Board\",Calculations!$E$2=\"Shetland Islands Local Authority\",Calculations!$E$2=\"Eilean Siar Local Authority\"),OR($F77=1,$F77=5)),0,new_ci(VALUE(LEFT(Options!$B$14,2)),$C77,$E77,$F77,2016,$I77/10,1,$H77/10,$G77*$H77/10,RateRatios_airpollution!$E77)*10))","v":956.24194746000001},{"$f":"IF(AND(OR(Calculations!$E$2=\"Orkney Health Board\",Calculations!$E$2=\"Orkney Islands Local Authority\"),$F77=1),0,IF(AND(OR(Calculations!$E$2=\"Shetland Health Board\",Calculations!$E$2=\"Western Isles Health Board\",Calculations!$E$2=\"Shetland Islands Local Authority\",Calculations!$E$2=\"Eilean Siar Local Authority\"),OR($F77=1,$F77=5)),0,new_ci(VALUE(LEFT(Options!$B$14,2)),$C77,$E77,$F77,2016,$I77/10+$J77/10,1,$H77/10,$G77*$H77/10,RateRatios_airpollution!$E77)*10))","v":956.23429290299998},{"$f":"IF(AND(OR(Calculations!$E$2=\"Orkney Health Board\",Calculations!$E$2=\"Orkney Islands Local Authority\"),$F77=1),0,IF(AND(OR(Calculations!$E$2=\"Shetland Health Board\",Calculations!$E$2=\"Western Isles Health Board\",Calculations!$E$2=\"Shetland Islands Local Authority\",Calculations!$E$2=\"Eilean Siar Local Authority\"),OR($F77=1,$F77=5)),0,new_yllv2(VALUE(LEFT(Options!$B$14,2)),$C77,$D77,$E77,$F77,2016,$I77/10,1,$H77/10,$G77*$H77/10,RateRatios_airpollution!$E77)*10))","v":4293.5263440950002},{"$f":"IF(AND(OR(Calculations!$E$2=\"Orkney Health Board\",Calculations!$E$2=\"Orkney Islands Local Authority\"),$F77=1),0,IF(AND(OR(Calculations!$E$2=\"Shetland Health Board\",Calculations!$E$2=\"Western Isles Health Board\",Calculations!$E$2=\"Shetland Islands Local Authority\",Calculations!$E$2=\"Eilean Siar Local Authority\"),OR($F77=1,$F77=5)),0,new_yllv2(VALUE(LEFT(Options!$B$14,2)),$C77,$D77,$E77,$F77,2016,$I77/10+$J77/10,1,$H77/10,$G77*$H77/10,RateRatios_airpollution!$E77)*10))","v":4293.4919751340003},{"$f":"IF(AND(OR(Calculations!$E$2=\"Orkney Health Board\",Calculations!$E$2=\"Orkney Islands Local Authority\"),$F77=1),0,IF(AND(OR(Calculations!$E$2=\"Shetland Health Board\",Calculations!$E$2=\"Western Isles Health Board\",Calculations!$E$2=\"Shetland Islands Local Authority\",Calculations!$E$2=\"Eilean Siar Local Authority\"),OR($F77=1,$F77=5)),0,hosp_count(VALUE(LEFT(Options!$B$14,2)),$C77,$E77,$F77,2016,$I77/10,1,$H77/10,$G77*$H77/10, RateRatios_airpollution!$F77, RateRatios_airpollution!$E77)*10))","v":7200.0139395589995},{"$f":"IF(AND(OR(Calculations!$E$2=\"Orkney Health Board\",Calculations!$E$2=\"Orkney Islands Local Authority\"),$F77=1),0,IF(AND(OR(Calculations!$E$2=\"Shetland Health Board\",Calculations!$E$2=\"Western Isles Health Board\",Calculations!$E$2=\"Shetland Islands Local Authority\",Calculations!$E$2=\"Eilean Siar Local Authority\"),OR($F77=1,$F77=5)),0,hosp_count(VALUE(LEFT(Options!$B$14,2)),$C77,$E77,$F77,2016,$I77/10+$J77/10,1,$H77/10,$G77*$H77/10, RateRatios_airpollution!$F77, RateRatios_airpollution!$E77)*10))","v":7200.0139395589995},{"$f":"IF(AND(OR(Calculations!$E$2=\"Orkney Health Board\",Calculations!$E$2=\"Orkney Islands Local Authority\"),$F77=1),0,IF(AND(OR(Calculations!$E$2=\"Shetland Health Board\",Calculations!$E$2=\"Western Isles Health Board\",Calculations!$E$2=\"Shetland Islands Local Authority\",Calculations!$E$2=\"Eilean Siar Local Authority\"),OR($F77=1,$F77=5)),0,prem_mort(VALUE(LEFT(Options!$B$14,2)),$C77,$E77,$F77,2016,$I77/10,1,$H77/10,$G77*$H77/10,RateRatios_airpollution!$E77)*10))","v":0},{"$f":"IF(AND(OR(Calculations!$E$2=\"Orkney Health Board\",Calculations!$E$2=\"Orkney Islands Local Authority\"),$F77=1),0,IF(AND(OR(Calculations!$E$2=\"Shetland Health Board\",Calculations!$E$2=\"Western Isles Health Board\",Calculations!$E$2=\"Shetland Islands Local Authority\",Calculations!$E$2=\"Eilean Siar Local Authority\"),OR($F77=1,$F77=5)),0,prem_mort(VALUE(LEFT(Options!$B$14,2)),$C77,$E77,$F77,2016,$I77/10+$J77/10,1,$H77/10,$G77*$H77/10,RateRatios_airpollution!$E77)*10))","v":0},956.24194746000001,955.95645369299984,4293.5263440950002,4292.2444770819993,7200.0139395589995,7197.684041515,0,0,10781.846289998874,10778.627282591046,48410.489842090428,48396.036498838643,81181.801099999997,81155.53096758372,0,0,16172769.434998311,16167940.923886567,72615734.763135642,72594054.748257965,121772701.64999999,121733296.45137557,0,0,1500]
[null,"Female 90+",92.779342999999997,96.279340000000005,"female",1,1,{"$f":"HLOOKUP(Calculations!$E$2,'Population 2016'!$C$3:$BC$249,'Population 2016'!BD78,FALSE)","v":4825},0,{"$f":"HLOOKUP(Calculations!$E$2,Pop2016_in_settlements!$C$3:$BC$249,Pop2016_in_settlements!$BD78,FALSE)","v":3426},{"$f":"IF(AND(OR(Calculations!$E$2=\"Orkney Health Board\",Calculations!$E$2=\"Orkney Islands Local Authority\"),$F78=1),0,IF(AND(OR(Calculations!$E$2=\"Shetland Health Board\",Calculations!$E$2=\"Western Isles Health Board\",Calculations!$E$2=\"Shetland Islands Local Authority\",Calculations!$E$2=\"Eilean Siar Local Authority\"),OR($F78=1,$F78=5)),0,new_ci(VALUE(LEFT(Options!$B$14,2)),$C78,$E78,$F78,2016,$I78/10,1,$H78/10,$G78*$H78/10,RateRatios_accidents!$B$5)*10))","v":838.24747146799996},{"$f":"IF(AND(OR(Calculations!$E$2=\"Orkney Health Board\",Calculations!$E$2=\"Orkney Islands Local Authority\"),$F78=1),0,IF(AND(OR(Calculations!$E$2=\"Shetland Health Board\",Calculations!$E$2=\"Western Isles Health Board\",Calculations!$E$2=\"Shetland Islands Local Authority\",Calculations!$E$2=\"Eilean Siar Local Authority\"),OR($F78=1,$F78=5)),0,new_ci(VALUE(LEFT(Options!$B$14,2)),$C78,$E78,$F78,2016,$I78/10+$J78/10,1,$H78/10,$G78*$H78/10,RateRatios_accidents!$B$5)*10))","v":838.03137823099996},{"$f":"IF(AND(OR(Calculations!$E$2=\"Orkney Health Board\",Calculations!$E$2=\"Orkney Islands Local Authority\"),$F78=1),0,IF(AND(OR(Calculations!$E$2=\"Shetland Health Board\",Calculations!$E$2=\"Western Isles Health Board\",Calculations!$E$2=\"Shetland Islands Local Authority\",Calculations!$E$2=\"Eilean Siar Local Authority\"),OR($F78=1,$F78=5)),0,new_yllv2(VALUE(LEFT(Options!$B$14,2)),$C78,$D78,$E78,$F78,2016,$I78/10,1,$H78/10,$G78*$H78/10,RateRatios_accidents!$B$5)*10))","v":2095.6161639279999},{"$f":"IF(AND(OR(Calculations!$E$2=\"Orkney Health Board\",Calculations!$E$2=\"Orkney Islands Local Authority\"),$F78=1),0,IF(AND(OR(Calculations!$E$2=\"Shetland Health Board\",Calculations!$E$2=\"Western Isles Health Board\",Calculations!$E$2=\"Shetland Islands Local Authority\",Calculations!$E$2=\"Eilean Siar Local Authority\"),OR($F78=1,$F78=5)),0,new_yllv2(VALUE(LEFT(Options!$B$14,2)),$C78,$D78,$E78,$F78,2016,$I78/10+$J78/10,1,$H78/10,$G78*$H78/10,RateRatios_accidents!$B$5)*10))","v":2095.0759314830002},{"$f":"IF(AND(OR(Calculations!$E$2=\"Orkney Health Board\",Calculations!$E$2=\"Orkney Islands Local Authority\"),$F78=1),0,IF(AND(OR(Calculations!$E$2=\"Shetland Health Board\",Calculations!$E$2=\"Western Isles Health Board\",Calculations!$E$2=\"Shetland Islands Local Authority\",Calculations!$E$2=\"Eilean Siar Local Authority\"),OR($F78=1,$F78=5)),0,hosp_count(VALUE(LEFT(Options!$B$14,2)),$C78,$E78,$F78,2016,$I78/10,1,$H78/10,$G78*$H78/10, RateRatios_accidents!$B$4, RateRatios_accidents!$B$5)*10))","v":4560.6917838580002},{"$f":"IF(AND(OR(Calculations!$E$2=\"Orkney Health Board\",Calculations!$E$2=\"Orkney Islands Local Authority\"),$F78=1),0,IF(AND(OR(Calculations!$E$2=\"Shetland Health Board\",Calculations!$E$2=\"Western Isles Health Board\",Calculations!$E$2=\"Shetland Islands Local Authority\",Calculations!$E$2=\"Eilean Siar Local Authority\"),OR($F78=1,$F78=5)),0,hosp_count(VALUE(LEFT(Options!$B$14,2)),$C78,$E78,$F78,2016,$I78/10+$J78/10,1,$H78/10,$G78*$H78/10, RateRatios_accidents!$B$4, RateRatios_accidents!$B$5)*10))","v":4559.3964529989998},{"$f":"IF(AND(OR(Calculations!$E$2=\"Orkney Health Board\",Calculations!$E$2=\"Orkney Islands Local Authority\"),$F78=1),0,IF(AND(OR(Calculations!$E$2=\"Shetland Health Board\",Calculations!$E$2=\"Western Isles Health Board\",Calculations!$E$2=\"Shetland Islands Local Authority\",Calculations!$E$2=\"Eilean Siar Local Authority\"),OR($F78=1,$F78=5)),0,prem_mort(VALUE(LEFT(Options!$B$14,2)),$C78,$E78,$F78,2016,$I78/10,1,$H78/10,$G78*$H78/10,RateRatios_accidents!$B$5)*10))","v":0},{"$f":"IF(AND(OR(Calculations!$E$2=\"Orkney Health Board\",Calculations!$E$2=\"Orkney Islands Local Authority\"),$F78=1),0,IF(AND(OR(Calculations!$E$2=\"Shetland Health Board\",Calculations!$E$2=\"Western Isles Health Board\",Calculations!$E$2=\"Shetland Islands Local Authority\",Calculations!$E$2=\"Eilean Siar Local Authority\"),OR($F78=1,$F78=5)),0,prem_mort(VALUE(LEFT(Options!$B$14,2)),$C78,$E78,$F78,2016,$I78/10+$J78/10,1,$H78/10,$G78*$H78/10,RateRatios_accidents!$B$5)*10))","v":0},null,{"$f":"IF(AND(OR(Calculations!$E$2=\"Orkney Health Board\",Calculations!$E$2=\"Orkney Islands Local Authority\"),$F78=1),0,IF(AND(OR(Calculations!$E$2=\"Shetland Health Board\",Calculations!$E$2=\"Western Isles Health Board\",Calculations!$E$2=\"Shetland Islands Local Authority\",Calculations!$E$2=\"Eilean Siar Local Authority\"),OR($F78=1,$F78=5)),0,new_ci(VALUE(LEFT(Options!$B$14,2)),$C78,$E78,$F78,2016,$I78/10,1,$H78/10,$G78*$H78/10,RateRatios_airpollution!$C78)*10))","v":838.24747146799996},{"$f":"IF(AND(OR(Calculations!$E$2=\"Orkney Health Board\",Calculations!$E$2=\"Orkney Islands Local Authority\"),$F78=1),0,IF(AND(OR(Calculations!$E$2=\"Shetland Health Board\",Calculations!$E$2=\"Western Isles Health Board\",Calculations!$E$2=\"Shetland Islands Local Authority\",Calculations!$E$2=\"Eilean Siar Local Authority\"),OR($F78=1,$F78=5)),0,new_ci(VALUE(LEFT(Options!$B$14,2)),$C78,$E78,$F78,2016,$I78/10+$J78/10,1,$H78/10,$G78*$H78/10,RateRatios_airpollution!$C78)*10))","v":838.23412514200004},{"$f":"IF(AND(OR(Calculations!$E$2=\"Orkney Health Board\",Calculations!$E$2=\"Orkney Islands Local Authority\"),$F78=1),0,IF(AND(OR(Calculations!$E$2=\"Shetland Health Board\",Calculations!$E$2=\"Western Isles Health Board\",Calculations!$E$2=\"Shetland Islands Local Authority\",Calculations!$E$2=\"Eilean Siar Local Authority\"),OR($F78=1,$F78=5)),0,new_yllv2(VALUE(LEFT(Options!$B$14,2)),$C78,$D78,$E78,$F78,2016,$I78/10,1,$H78/10,$G78*$H78/10,RateRatios_airpollution!$C78)*10))","v":2095.6161639279999},{"$f":"IF(AND(OR(Calculations!$E$2=\"Orkney Health Board\",Calculations!$E$2=\"Orkney Islands Local Authority\"),$F78=1),0,IF(AND(OR(Calculations!$E$2=\"Shetland Health Board\",Calculations!$E$2=\"Western Isles Health Board\",Calculations!$E$2=\"Shetland Islands Local Authority\",Calculations!$E$2=\"Eilean Siar Local Authority\"),OR($F78=1,$F78=5)),0,new_yllv2(VALUE(LEFT(Options!$B$14,2)),$C78,$D78,$E78,$F78,2016,$I78/10+$J78/10,1,$H78/10,$G78*$H78/10,RateRatios_airpollution!$C78)*10))","v":2095.5827981530001},{"$f":"IF(AND(OR(Calculations!$E$2=\"Orkney Health Board\",Calculations!$E$2=\"Orkney Islands Local Authority\"),$F78=1),0,IF(AND(OR(Calculations!$E$2=\"Shetland Health Board\",Calculations!$E$2=\"Western Isles Health Board\",Calculations!$E$2=\"Shetland Islands Local Authority\",Calculations!$E$2=\"Eilean Siar Local Authority\"),OR($F78=1,$F78=5)),0,hosp_count(VALUE(LEFT(Options!$B$14,2)),$C78,$E78,$F78,2016,$I78/10,1,$H78/10,$G78*$H78/10, RateRatios_airpollution!$D78, RateRatios_airpollution!$C78)*10))","v":4560.6917838580002},{"$f":"IF(AND(OR(Calculations!$E$2=\"Orkney Health Board\",Calculations!$E$2=\"Orkney Islands Local Authority\"),$F78=1),0,IF(AND(OR(Calculations!$E$2=\"Shetland Health Board\",Calculations!$E$2=\"Western Isles Health Board\",Calculations!$E$2=\"Shetland Islands Local Authority\",Calculations!$E$2=\"Eilean Siar Local Authority\"),OR($F78=1,$F78=5)),0,hosp_count(VALUE(LEFT(Options!$B$14,2)),$C78,$E78,$F78,2016,$I78/10+$J78/10,1,$H78/10,$G78*$H78/10, RateRatios_airpollution!$D78, RateRatios_airpollution!$C78)*10))","v":4560.5410559600004},{"$f":"IF(AND(OR(Calculations!$E$2=\"Orkney Health Board\",Calculations!$E$2=\"Orkney Islands Local Authority\"),$F78=1),0,IF(AND(OR(Calculations!$E$2=\"Shetland Health Board\",Calculations!$E$2=\"Western Isles Health Board\",Calculations!$E$2=\"Shetland Islands Local Authority\",Calculations!$E$2=\"Eilean Siar Local Authority\"),OR($F78=1,$F78=5)),0,prem_mort(VALUE(LEFT(Options!$B$14,2)),$C78,$E78,$F78,2016,$I78/10,1,$H78/10,$G78*$H78/10,RateRatios_airpollution!$C78)*10))","v":0},{"$f":"IF(AND(OR(Calculations!$E$2=\"Orkney Health Board\",Calculations!$E$2=\"Orkney Islands Local Authority\"),$F78=1),0,IF(AND(OR(Calculations!$E$2=\"Shetland Health Board\",Calculations!$E$2=\"Western Isles Health Board\",Calculations!$E$2=\"Shetland Islands Local Authority\",Calculations!$E$2=\"Eilean Siar Local Authority\"),OR($F78=1,$F78=5)),0,prem_mort(VALUE(LEFT(Options!$B$14,2)),$C78,$E78,$F78,2016,$I78/10+$J78/10,1,$H78/10,$G78*$H78/10,RateRatios_airpollution!$C78)*10))","v":0},null,{"$f":"IF(AND(OR(Calculations!$E$2=\"Orkney Health Board\",Calculations!$E$2=\"Orkney Islands Local Authority\"),$F78=1),0,IF(AND(OR(Calculations!$E$2=\"Shetland Health Board\",Calculations!$E$2=\"Western Isles Health Board\",Calculations!$E$2=\"Shetland Islands Local Authority\",Calculations!$E$2=\"Eilean Siar Local Authority\"),OR($F78=1,$F78=5)),0,new_ci(VALUE(LEFT(Options!$B$14,2)),$C78,$E78,$F78,2016,$I78/10,1,$H78/10,$G78*$H78/10,RateRatios_airpollution!$E78)*10))","v":838.24747146799996},{"$f":"IF(AND(OR(Calculations!$E$2=\"Orkney Health Board\",Calculations!$E$2=\"Orkney Islands Local Authority\"),$F78=1),0,IF(AND(OR(Calculations!$E$2=\"Shetland Health Board\",Calculations!$E$2=\"Western Isles Health Board\",Calculations!$E$2=\"Shetland Islands Local Authority\",Calculations!$E$2=\"Eilean Siar Local Authority\"),OR($F78=1,$F78=5)),0,new_ci(VALUE(LEFT(Options!$B$14,2)),$C78,$E78,$F78,2016,$I78/10+$J78/10,1,$H78/10,$G78*$H78/10,RateRatios_airpollution!$E78)*10))","v":838.24112857099999},{"$f":"IF(AND(OR(Calculations!$E$2=\"Orkney Health Board\",Calculations!$E$2=\"Orkney Islands Local Authority\"),$F78=1),0,IF(AND(OR(Calculations!$E$2=\"Shetland Health Board\",Calculations!$E$2=\"Western Isles Health Board\",Calculations!$E$2=\"Shetland Islands Local Authority\",Calculations!$E$2=\"Eilean Siar Local Authority\"),OR($F78=1,$F78=5)),0,new_yllv2(VALUE(LEFT(Options!$B$14,2)),$C78,$D78,$E78,$F78,2016,$I78/10,1,$H78/10,$G78*$H78/10,RateRatios_airpollution!$E78)*10))","v":2095.6161639279999},{"$f":"IF(AND(OR(Calculations!$E$2=\"Orkney Health Board\",Calculations!$E$2=\"Orkney Islands Local Authority\"),$F78=1),0,IF(AND(OR(Calculations!$E$2=\"Shetland Health Board\",Calculations!$E$2=\"Western Isles Health Board\",Calculations!$E$2=\"Shetland Islands Local Authority\",Calculations!$E$2=\"Eilean Siar Local Authority\"),OR($F78=1,$F78=5)),0,new_yllv2(VALUE(LEFT(Options!$B$14,2)),$C78,$D78,$E78,$F78,2016,$I78/10+$J78/10,1,$H78/10,$G78*$H78/10,RateRatios_airpollution!$E78)*10))","v":2095.6003067040001},{"$f":"IF(AND(OR(Calculations!$E$2=\"Orkney Health Board\",Calculations!$E$2=\"Orkney Islands Local Authority\"),$F78=1),0,IF(AND(OR(Calculations!$E$2=\"Shetland Health Board\",Calculations!$E$2=\"Western Isles Health Board\",Calculations!$E$2=\"Shetland Islands Local Authority\",Calculations!$E$2=\"Eilean Siar Local Authority\"),OR($F78=1,$F78=5)),0,hosp_count(VALUE(LEFT(Options!$B$14,2)),$C78,$E78,$F78,2016,$I78/10,1,$H78/10,$G78*$H78/10, RateRatios_airpollution!$F78, RateRatios_airpollution!$E78)*10))","v":4560.6917838580002},{"$f":"IF(AND(OR(Calculations!$E$2=\"Orkney Health Board\",Calculations!$E$2=\"Orkney Islands Local Authority\"),$F78=1),0,IF(AND(OR(Calculations!$E$2=\"Shetland Health Board\",Calculations!$E$2=\"Western Isles Health Board\",Calculations!$E$2=\"Shetland Islands Local Authority\",Calculations!$E$2=\"Eilean Siar Local Authority\"),OR($F78=1,$F78=5)),0,hosp_count(VALUE(LEFT(Options!$B$14,2)),$C78,$E78,$F78,2016,$I78/10+$J78/10,1,$H78/10,$G78*$H78/10, RateRatios_airpollution!$F78, RateRatios_airpollution!$E78)*10))","v":4560.6917838580002},{"$f":"IF(AND(OR(Calculations!$E$2=\"Orkney Health Board\",Calculations!$E$2=\"Orkney Islands Local Authority\"),$F78=1),0,IF(AND(OR(Calculations!$E$2=\"Shetland Health Board\",Calculations!$E$2=\"Western Isles Health Board\",Calculations!$E$2=\"Shetland Islands Local Authority\",Calculations!$E$2=\"Eilean Siar Local Authority\"),OR($F78=1,$F78=5)),0,prem_mort(VALUE(LEFT(Options!$B$14,2)),$C78,$E78,$F78,2016,$I78/10,1,$H78/10,$G78*$H78/10,RateRatios_airpollution!$E78)*10))","v":0},{"$f":"IF(AND(OR(Calculations!$E$2=\"Orkney Health Board\",Calculations!$E$2=\"Orkney Islands Local Authority\"),$F78=1),0,IF(AND(OR(Calculations!$E$2=\"Shetland Health Board\",Calculations!$E$2=\"Western Isles Health Board\",Calculations!$E$2=\"Shetland Islands Local Authority\",Calculations!$E$2=\"Eilean Siar Local Authority\"),OR($F78=1,$F78=5)),0,prem_mort(VALUE(LEFT(Options!$B$14,2)),$C78,$E78,$F78,2016,$I78/10+$J78/10,1,$H78/10,$G78*$H78/10,RateRatios_airpollution!$E78)*10))","v":0},838.24747146799996,838.01168900800008,2095.6161639279999,2095.0267084840007,4560.6917838580002,4559.2457251010001,0,0,17373.004590010361,17368.117906901556,43432.459356020721,43420.242662880839,94522.10951001037,94492.139380331602,0,0,17373004.59001036,17368117.906901557,43432459.356020719,43420242.662880838,94522109.510010377,94492139.380331606,0,0,1000]
[null,"Male 0-4",2.0320822999999999,77.402082000000007,"male",1,1,{"$f":"HLOOKUP(Calculations!$E$2,'Population 2016'!$C$3:$BC$249,'Population 2016'!BD79,FALSE)","v":0},0,{"$f":"HLOOKUP(Calculations!$E$2,Pop2016_in_settlements!$C$3:$BC$249,Pop2016_in_settlements!$BD79,FALSE)","v":0},{"$f":"IF(AND(OR(Calculations!$E$2=\"Orkney Health Board\",Calculations!$E$2=\"Orkney Islands Local Authority\"),$F79=1),0,IF(AND(OR(Calculations!$E$2=\"Shetland Health Board\",Calculations!$E$2=\"Western Isles Health Board\",Calculations!$E$2=\"Shetland Islands Local Authority\",Calculations!$E$2=\"Eilean Siar Local Authority\"),OR($F79=1,$F79=5)),0,new_ci(VALUE(LEFT(Options!$B$14,2)),$C79,$E79,$F79,2016,$I79/10,1,$H79/10,$G79*$H79/10,RateRatios_accidents!$B$5)*10))","v":{"$error":"#VALUE!"}},{"$f":"IF(AND(OR(Calculations!$E$2=\"Orkney Health Board\",Calculations!$E$2=\"Orkney Islands Local Authority\"),$F79=1),0,IF(AND(OR(Calculations!$E$2=\"Shetland Health Board\",Calculations!$E$2=\"Western Isles Health Board\",Calculations!$E$2=\"Shetland Islands Local Authority\",Calculations!$E$2=\"Eilean Siar Local Authority\"),OR($F79=1,$F79=5)),0,new_ci(VALUE(LEFT(Options!$B$14,2)),$C79,$E79,$F79,2016,$I79/10+$J79/10,1,$H79/10,$G79*$H79/10,RateRatios_accidents!$B$5)*10))","v":{"$error":"#VALUE!"}},{"$f":"IF(AND(OR(Calculations!$E$2=\"Orkney Health Board\",Calculations!$E$2=\"Orkney Islands Local Authority\"),$F79=1),0,IF(AND(OR(Calculations!$E$2=\"Shetland Health Board\",Calculations!$E$2=\"Western Isles Health Board\",Calculations!$E$2=\"Shetland Islands Local Authority\",Calculations!$E$2=\"Eilean Siar Local Authority\"),OR($F79=1,$F79=5)),0,new_yllv2(VALUE(LEFT(Options!$B$14,2)),$C79,$D79,$E79,$F79,2016,$I79/10,1,$H79/10,$G79*$H79/10,RateRatios_accidents!$B$5)*10))","v":{"$error":"#VALUE!"}},{"$f":"IF(AND(OR(Calculations!$E$2=\"Orkney Health Board\",Calculations!$E$2=\"Orkney Islands Local Authority\"),$F79=1),0,IF(AND(OR(Calculations!$E$2=\"Shetland Health Board\",Calculations!$E$2=\"Western Isles Health Board\",Calculations!$E$2=\"Shetland Islands Local Authority\",Calculations!$E$2=\"Eilean Siar Local Authority\"),OR($F79=1,$F79=5)),0,new_yllv2(VALUE(LEFT(Options!$B$14,2)),$C79,$D79,$E79,$F79,2016,$I79/10+$J79/10,1,$H79/10,$G79*$H79/10,RateRatios_accidents!$B$5)*10))","v":{"$error":"#VALUE!"}},{"$f":"IF(AND(OR(Calculations!$E$2=\"Orkney Health Board\",Calculations!$E$2=\"Orkney Islands Local Authority\"),$F79=1),0,IF(AND(OR(Calculations!$E$2=\"Shetland Health Board\",Calculations!$E$2=\"Western Isles Health Board\",Calculations!$E$2=\"Shetland Islands Local Authority\",Calculations!$E$2=\"Eilean Siar Local Authority\"),OR($F79=1,$F79=5)),0,hosp_count(VALUE(LEFT(Options!$B$14,2)),$C79,$E79,$F79,2016,$I79/10,1,$H79/10,$G79*$H79/10, RateRatios_accidents!$B$4, RateRatios_accidents!$B$5)*10))","v":{"$error":"#VALUE!"}},{"$f":"IF(AND(OR(Calculations!$E$2=\"Orkney Health Board\",Calculations!$E$2=\"Orkney Islands Local Authority\"),$F79=1),0,IF(AND(OR(Calculations!$E$2=\"Shetland Health Board\",Calculations!$E$2=\"Western Isles Health Board\",Calculations!$E$2=\"Shetland Islands Local Authority\",Calculations!$E$2=\"Eilean Siar Local Authority\"),OR($F79=1,$F79=5)),0,hosp_count(VALUE(LEFT(Options!$B$14,2)),$C79,$E79,$F79,2016,$I79/10+$J79/10,1,$H79/10,$G79*$H79/10, RateRatios_accidents!$B$4, RateRatios_accidents!$B$5)*10))","v":{"$error":"#VALUE!"}},{"$f":"IF(AND(OR(Calculations!$E$2=\"Orkney Health Board\",Calculations!$E$2=\"Orkney Islands Local Authority\"),$F79=1),0,IF(AND(OR(Calculations!$E$2=\"Shetland Health Board\",Calculations!$E$2=\"Western Isles Health Board\",Calculations!$E$2=\"Shetland Islands Local Authority\",Calculations!$E$2=\"Eilean Siar Local Authority\"),OR($F79=1,$F79=5)),0,prem_mort(VALUE(LEFT(Options!$B$14,2)),$C79,$E79,$F79,2016,$I79/10,1,$H79/10,$G79*$H79/10,RateRatios_accidents!$B$5)*10))","v":{"$error":"#VALUE!"}},{"$f":"IF(AND(OR(Calculations!$E$2=\"Orkney Health Board\",Calculations!$E$2=\"Orkney Islands Local Authority\"),$F79=1),0,IF(AND(OR(Calculations!$E$2=\"Shetland Health Board\",Calculations!$E$2=\"Western Isles Health Board\",Calculations!$E$2=\"Shetland Islands Local Authority\",Calculations!$E$2=\"Eilean Siar Local Authority\"),OR($F79=1,$F79=5)),0,prem_mort(VALUE(LEFT(Options!$B$14,2)),$C79,$E79,$F79,2016,$I79/10+$J79/10,1,$H79/10,$G79*$H79/10,RateRatios_accidents!$B$5)*10))","v":{"$error":"#VALUE!"}},null,{"$f":"IF(AND(OR(Calculations!$E$2=\"Orkney Health Board\",Calculations!$E$2=\"Orkney Islands Local Authority\"),$F79=1),0,IF(AND(OR(Calculations!$E$2=\"Shetland Health Board\",Calculations!$E$2=\"Western Isles Health Board\",Calculations!$E$2=\"Shetland Islands Local Authority\",Calculations!$E$2=\"Eilean Siar Local Authority\"),OR($F79=1,$F79=5)),0,new_ci(VALUE(LEFT(Options!$B$14,2)),$C79,$E79,$F79,2016,$I79/10,1,$H79/10,$G79*$H79/10,RateRatios_airpollution!$C79)*10))","v":{"$error":"#VALUE!"}},{"$f":"IF(AND(OR(Calculations!$E$2=\"Orkney Health Board\",Calculations!$E$2=\"Orkney Islands Local Authority\"),$F79=1),0,IF(AND(OR(Calculations!$E$2=\"Shetland Health Board\",Calculations!$E$2=\"Western Isles Health Board\",Calculations!$E$2=\"Shetland Islands Local Authority\",Calculations!$E$2=\"Eilean Siar Local Authority\"),OR($F79=1,$F79=5)),0,new_ci(VALUE(LEFT(Options!$B$14,2)),$C79,$E79,$F79,2016,$I79/10+$J79/10,1,$H79/10,$G79*$H79/10,RateRatios_airpollution!$C79)*10))","v":{"$error":"#VALUE!"}},{"$f":"IF(AND(OR(Calculations!$E$2=\"Orkney Health Board\",Calculations!$E$2=\"Orkney Islands Local Authority\"),$F79=1),0,IF(AND(OR(Calculations!$E$2=\"Shetland Health Board\",Calculations!$E$2=\"Western Isles Health Board\",Calculations!$E$2=\"Shetland Islands Local Authority\",Calculations!$E$2=\"Eilean Siar Local Authority\"),OR($F79=1,$F79=5)),0,new_yllv2(VALUE(LEFT(Options!$B$14,2)),$C79,$D79,$E79,$F79,2016,$I79/10,1,$H79/10,$G79*$H79/10,RateRatios_airpollution!$C79)*10))","v":{"$error":"#VALUE!"}},{"$f":"IF(AND(OR(Calculations!$E$2=\"Orkney Health Board\",Calculations!$E$2=\"Orkney Islands Local Authority\"),$F79=1),0,IF(AND(OR(Calculations!$E$2=\"Shetland Health Board\",Calculations!$E$2=\"Western Isles Health Board\",Calculations!$E$2=\"Shetland Islands Local Authority\",Calculations!$E$2=\"Eilean Siar Local Authority\"),OR($F79=1,$F79=5)),0,new_yllv2(VALUE(LEFT(Options!$B$14,2)),$C79,$D79,$E79,$F79,2016,$I79/10+$J79/10,1,$H79/10,$G79*$H79/10,RateRatios_airpollution!$C79)*10))","v":{"$error":"#VALUE!"}},{"$f":"IF(AND(OR(Calculations!$E$2=\"Orkney Health Board\",Calculations!$E$2=\"Orkney Islands Local Authority\"),$F79=1),0,IF(AND(OR(Calculations!$E$2=\"Shetland Health Board\",Calculations!$E$2=\"Western Isles Health Board\",Calculations!$E$2=\"Shetland Islands Local Authority\",Calculations!$E$2=\"Eilean Siar Local Authority\"),OR($F79=1,$F79=5)),0,hosp_count(VALUE(LEFT(Options!$B$14,2)),$C79,$E79,$F79,2016,$I79/10,1,$H79/10,$G79*$H79/10, RateRatios_airpollution!$D79, RateRatios_airpollution!$C79)*10))","v":{"$error":"#VALUE!"}},{"$f":"IF(AND(OR(Calculations!$E$2=\"Orkney Health Board\",Calculations!$E$2=\"Orkney Islands Local Authority\"),$F79=1),0,IF(AND(OR(Calculations!$E$2=\"Shetland Health Board\",Calculations!$E$2=\"Western Isles Health Board\",Calculations!$E$2=\"Shetland Islands Local Authority\",Calculations!$E$2=\"Eilean Siar Local Authority\"),OR($F79=1,$F79=5)),0,hosp_count(VALUE(LEFT(Options!$B$14,2)),$C79,$E79,$F79,2016,$I79/10+$J79/10,1,$H79/10,$G79*$H79/10, RateRatios_airpollution!$D79, RateRatios_airpollution!$C79)*10))","v":{"$error":"#VALUE!"}},{"$f":"IF(AND(OR(Calculations!$E$2=\"Orkney Health Board\",Calculations!$E$2=\"Orkney Islands Local Authority\"),$F79=1),0,IF(AND(OR(Calculations!$E$2=\"Shetland Health Board\",Calculations!$E$2=\"Western Isles Health Board\",Calculations!$E$2=\"Shetland Islands Local Authority\",Calculations!$E$2=\"Eilean Siar Local Authority\"),OR($F79=1,$F79=5)),0,prem_mort(VALUE(LEFT(Options!$B$14,2)),$C79,$E79,$F79,2016,$I79/10,1,$H79/10,$G79*$H79/10,RateRatios_airpollution!$C79)*10))","v":{"$error":"#VALUE!"}},{"$f":"IF(AND(OR(Calculations!$E$2=\"Orkney Health Board\",Calculations!$E$2=\"Orkney Islands Local Authority\"),$F79=1),0,IF(AND(OR(Calculations!$E$2=\"Shetland Health Board\",Calculations!$E$2=\"Western Isles Health Board\",Calculations!$E$2=\"Shetland Islands Local Authority\",Calculations!$E$2=\"Eilean Siar Local Authority\"),OR($F79=1,$F79=5)),0,prem_mort(VALUE(LEFT(Options!$B$14,2)),$C79,$E79,$F79,2016,$I79/10+$J79/10,1,$H79/10,$G79*$H79/10,RateRatios_airpollution!$C79)*10))","v":{"$error":"#VALUE!"}},null,{"$f":"IF(AND(OR(Calculations!$E$2=\"Orkney Health Board\",Calculations!$E$2=\"Orkney Islands Local Authority\"),$F79=1),0,IF(AND(OR(Calculations!$E$2=\"Shetland Health Board\",Calculations!$E$2=\"Western Isles Health Board\",Calculations!$E$2=\"Shetland Islands Local Authority\",Calculations!$E$2=\"Eilean Siar Local Authority\"),OR($F79=1,$F79=5)),0,new_ci(VALUE(LEFT(Options!$B$14,2)),$C79,$E79,$F79,2016,$I79/10,1,$H79/10,$G79*$H79/10,RateRatios_airpollution!$E79)*10))","v":{"$error":"#VALUE!"}},{"$f":"IF(AND(OR(Calculations!$E$2=\"Orkney Health Board\",Calculations!$E$2=\"Orkney Islands Local Authority\"),$F79=1),0,IF(AND(OR(Calculations!$E$2=\"Shetland Health Board\",Calculations!$E$2=\"Western Isles Health Board\",Calculations!$E$2=\"Shetland Islands Local Authority\",Calculations!$E$2=\"Eilean Siar Local Authority\"),OR($F79=1,$F79=5)),0,new_ci(VALUE(LEFT(Options!$B$14,2)),$C79,$E79,$F79,2016,$I79/10+$J79/10,1,$H79/10,$G79*$H79/10,RateRatios_airpollution!$E79)*10))","v":{"$error":"#VALUE!"}},{"$f":"IF(AND(OR(Calculations!$E$2=\"Orkney Health Board\",Calculations!$E$2=\"Orkney Islands Local Authority\"),$F79=1),0,IF(AND(OR(Calculations!$E$2=\"Shetland Health Board\",Calculations!$E$2=\"Western Isles Health Board\",Calculations!$E$2=\"Shetland Islands Local Authority\",Calculations!$E$2=\"Eilean Siar Local Authority\"),OR($F79=1,$F79=5)),0,new_yllv2(VALUE(LEFT(Options!$B$14,2)),$C79,$D79,$E79,$F79,2016,$I79/10,1,$H79/10,$G79*$H79/10,RateRatios_airpollution!$E79)*10))","v":{"$error":"#VALUE!"}},{"$f":"IF(AND(OR(Calculations!$E$2=\"Orkney Health Board\",Calculations!$E$2=\"Orkney Islands Local Authority\"),$F79=1),0,IF(AND(OR(Calculations!$E$2=\"Shetland Health Board\",Calculations!$E$2=\"Western Isles Health Board\",Calculations!$E$2=\"Shetland Islands Local Authority\",Calculations!$E$2=\"Eilean Siar Local Authority\"),OR($F79=1,$F79=5)),0,new_yllv2(VALUE(LEFT(Options!$B$14,2)),$C79,$D79,$E79,$F79,2016,$I79/10+$J79/10,1,$H79/10,$G79*$H79/10,RateRatios_airpollution!$E79)*10))","v":{"$error":"#VALUE!"}},{"$f":"IF(AND(OR(Calculations!$E$2=\"Orkney Health Board\",Calculations!$E$2=\"Orkney Islands Local Authority\"),$F79=1),0,IF(AND(OR(Calculations!$E$2=\"Shetland Health Board\",Calculations!$E$2=\"Western Isles Health Board\",Calculations!$E$2=\"Shetland Islands Local Authority\",Calculations!$E$2=\"Eilean Siar Local Authority\"),OR($F79=1,$F79=5)),0,hosp_count(VALUE(LEFT(Options!$B$14,2)),$C79,$E79,$F79,2016,$I79/10,1,$H79/10,$G79*$H79/10, RateRatios_airpollution!$F79, RateRatios_airpollution!$E79)*10))","v":{"$error":"#VALUE!"}},{"$f":"IF(AND(OR(Calculations!$E$2=\"Orkney Health Board\",Calculations!$E$2=\"Orkney Islands Local Authority\"),$F79=1),0,IF(AND(OR(Calculations!$E$2=\"Shetland Health Board\",Calculations!$E$2=\"Western Isles Health Board\",Calculations!$E$2=\"Shetland Islands Local Authority\",Calculations!$E$2=\"Eilean Siar Local Authority\"),OR($F79=1,$F79=5)),0,hosp_count(VALUE(LEFT(Options!$B$14,2)),$C79,$E79,$F79,2016,$I79/10+$J79/10,1,$H79/10,$G79*$H79/10, RateRatios_airpollution!$F79, RateRatios_airpollution!$E79)*10))","v":{"$error":"#VALUE!"}},{"$f":"IF(AND(OR(Calculations!$E$2=\"Orkney Health Board\",Calculations!$E$2=\"Orkney Islands Local Authority\"),$F79=1),0,IF(AND(OR(Calculations!$E$2=\"Shetland Health Board\",Calculations!$E$2=\"Western Isles Health Board\",Calculations!$E$2=\"Shetland Islands Local Authority\",Calculations!$E$2=\"Eilean Siar Local Authority\"),OR($F79=1,$F79=5)),0,prem_mort(VALUE(LEFT(Options!$B$14,2)),$C79,$E79,$F79,2016,$I79/10,1,$H79/10,$G79*$H79/10,RateRatios_airpollution!$E79)*10))","v":{"$error":"#VALUE!"}},{"$f":"IF(AND(OR(Calculations!$E$2=\"Orkney Health Board\",Calculations!$E$2=\"Orkney Islands Local Authority\"),$F79=1),0,IF(AND(OR(Calculations!$E$2=\"Shetland Health Board\",Calculations!$E$2=\"Western Isles Health Board\",Calculations!$E$2=\"Shetland Islands Local Authority\",Calculations!$E$2=\"Eilean Siar Local Authority\"),OR($F79=1,$F79=5)),0,prem_mort(VALUE(LEFT(Options!$B$14,2)),$C79,$E79,$F79,2016,$I79/10+$J79/10,1,$H79/10,$G79*$H79/10,RateRatios_airpollution!$E79)*10))","v":{"$error":"#VALUE!"}},{"$error":"#VALUE!"},{"$error":"#VALUE!"},{"$error":"#VALUE!"},{"$error":"#VALUE!"},{"$error":"#VALUE!"},{"$error":"#VALUE!"},{"$error":"#VALUE!"},{"$error":"#VALUE!"},{"$error":"#VALUE!"},{"$error":"#VALUE!"},{"$error":"#VALUE!"},{"$error":"#VALUE!"},{"$error":"#VALUE!"},{"$error":"#VALUE!"},{"$error":"#VALUE!"},{"$error":"#VALUE!"},{"$error":"#VALUE!"},{"$error":"#VALUE!"},{"$error":"#VALUE!"},{"$error":"#VALUE!"},{"$error":"#VALUE!"},{"$error":"#VALUE!"},{"$error":"#VALUE!"},{"$error":"#VALUE!"},5000]
[null,"Male 5-9",6.9784756000000003,77.398476000000002,"male",1,1,{"$f":"HLOOKUP(Calculations!$E$2,'Population 2016'!$C$3:$BC$249,'Population 2016'!BD80,FALSE)","v":0},0,{"$f":"HLOOKUP(Calculations!$E$2,Pop2016_in_settlements!$C$3:$BC$249,Pop2016_in_settlements!$BD80,FALSE)","v":0},{"$f":"IF(AND(OR(Calculations!$E$2=\"Orkney Health Board\",Calculations!$E$2=\"Orkney Islands Local Authority\"),$F80=1),0,IF(AND(OR(Calculations!$E$2=\"Shetland Health Board\",Calculations!$E$2=\"Western Isles Health Board\",Calculations!$E$2=\"Shetland Islands Local Authority\",Calculations!$E$2=\"Eilean Siar Local Authority\"),OR($F80=1,$F80=5)),0,new_ci(VALUE(LEFT(Options!$B$14,2)),$C80,$E80,$F80,2016,$I80/10,1,$H80/10,$G80*$H80/10,RateRatios_accidents!$B$5)*10))","v":{"$error":"#VALUE!"}},{"$f":"IF(AND(OR(Calculations!$E$2=\"Orkney Health Board\",Calculations!$E$2=\"Orkney Islands Local Authority\"),$F80=1),0,IF(AND(OR(Calculations!$E$2=\"Shetland Health Board\",Calculations!$E$2=\"Western Isles Health Board\",Calculations!$E$2=\"Shetland Islands Local Authority\",Calculations!$E$2=\"Eilean Siar Local Authority\"),OR($F80=1,$F80=5)),0,new_ci(VALUE(LEFT(Options!$B$14,2)),$C80,$E80,$F80,2016,$I80/10+$J80/10,1,$H80/10,$G80*$H80/10,RateRatios_accidents!$B$5)*10))","v":{"$error":"#VALUE!"}},{"$f":"IF(AND(OR(Calculations!$E$2=\"Orkney Health Board\",Calculations!$E$2=\"Orkney Islands Local Authority\"),$F80=1),0,IF(AND(OR(Calculations!$E$2=\"Shetland Health Board\",Calculations!$E$2=\"Western Isles Health Board\",Calculations!$E$2=\"Shetland Islands Local Authority\",Calculations!$E$2=\"Eilean Siar Local Authority\"),OR($F80=1,$F80=5)),0,new_yllv2(VALUE(LEFT(Options!$B$14,2)),$C80,$D80,$E80,$F80,2016,$I80/10,1,$H80/10,$G80*$H80/10,RateRatios_accidents!$B$5)*10))","v":{"$error":"#VALUE!"}},{"$f":"IF(AND(OR(Calculations!$E$2=\"Orkney Health Board\",Calculations!$E$2=\"Orkney Islands Local Authority\"),$F80=1),0,IF(AND(OR(Calculations!$E$2=\"Shetland Health Board\",Calculations!$E$2=\"Western Isles Health Board\",Calculations!$E$2=\"Shetland Islands Local Authority\",Calculations!$E$2=\"Eilean Siar Local Authority\"),OR($F80=1,$F80=5)),0,new_yllv2(VALUE(LEFT(Options!$B$14,2)),$C80,$D80,$E80,$F80,2016,$I80/10+$J80/10,1,$H80/10,$G80*$H80/10,RateRatios_accidents!$B$5)*10))","v":{"$error":"#VALUE!"}},{"$f":"IF(AND(OR(Calculations!$E$2=\"Orkney Health Board\",Calculations!$E$2=\"Orkney Islands Local Authority\"),$F80=1),0,IF(AND(OR(Calculations!$E$2=\"Shetland Health Board\",Calculations!$E$2=\"Western Isles Health Board\",Calculations!$E$2=\"Shetland Islands Local Authority\",Calculations!$E$2=\"Eilean Siar Local Authority\"),OR($F80=1,$F80=5)),0,hosp_count(VALUE(LEFT(Options!$B$14,2)),$C80,$E80,$F80,2016,$I80/10,1,$H80/10,$G80*$H80/10, RateRatios_accidents!$B$4, RateRatios_accidents!$B$5)*10))","v":{"$error":"#VALUE!"}},{"$f":"IF(AND(OR(Calculations!$E$2=\"Orkney Health Board\",Calculations!$E$2=\"Orkney Islands Local Authority\"),$F80=1),0,IF(AND(OR(Calculations!$E$2=\"Shetland Health Board\",Calculations!$E$2=\"Western Isles Health Board\",Calculations!$E$2=\"Shetland Islands Local Authority\",Calculations!$E$2=\"Eilean Siar Local Authority\"),OR($F80=1,$F80=5)),0,hosp_count(VALUE(LEFT(Options!$B$14,2)),$C80,$E80,$F80,2016,$I80/10+$J80/10,1,$H80/10,$G80*$H80/10, RateRatios_accidents!$B$4, RateRatios_accidents!$B$5)*10))","v":{"$error":"#VALUE!"}},{"$f":"IF(AND(OR(Calculations!$E$2=\"Orkney Health Board\",Calculations!$E$2=\"Orkney Islands Local Authority\"),$F80=1),0,IF(AND(OR(Calculations!$E$2=\"Shetland Health Board\",Calculations!$E$2=\"Western Isles Health Board\",Calculations!$E$2=\"Shetland Islands Local Authority\",Calculations!$E$2=\"Eilean Siar Local Authority\"),OR($F80=1,$F80=5)),0,prem_mort(VALUE(LEFT(Options!$B$14,2)),$C80,$E80,$F80,2016,$I80/10,1,$H80/10,$G80*$H80/10,RateRatios_accidents!$B$5)*10))","v":{"$error":"#VALUE!"}},{"$f":"IF(AND(OR(Calculations!$E$2=\"Orkney Health Board\",Calculations!$E$2=\"Orkney Islands Local Authority\"),$F80=1),0,IF(AND(OR(Calculations!$E$2=\"Shetland Health Board\",Calculations!$E$2=\"Western Isles Health Board\",Calculations!$E$2=\"Shetland Islands Local Authority\",Calculations!$E$2=\"Eilean Siar Local Authority\"),OR($F80=1,$F80=5)),0,prem_mort(VALUE(LEFT(Options!$B$14,2)),$C80,$E80,$F80,2016,$I80/10+$J80/10,1,$H80/10,$G80*$H80/10,RateRatios_accidents!$B$5)*10))","v":{"$error":"#VALUE!"}},null,{"$f":"IF(AND(OR(Calculations!$E$2=\"Orkney Health Board\",Calculations!$E$2=\"Orkney Islands Local Authority\"),$F80=1),0,IF(AND(OR(Calculations!$E$2=\"Shetland Health Board\",Calculations!$E$2=\"Western Isles Health Board\",Calculations!$E$2=\"Shetland Islands Local Authority\",Calculations!$E$2=\"Eilean Siar Local Authority\"),OR($F80=1,$F80=5)),0,new_ci(VALUE(LEFT(Options!$B$14,2)),$C80,$E80,$F80,2016,$I80/10,1,$H80/10,$G80*$H80/10,RateRatios_airpollution!$C80)*10))","v":{"$error":"#VALUE!"}},{"$f":"IF(AND(OR(Calculations!$E$2=\"Orkney Health Board\",Calculations!$E$2=\"Orkney Islands Local Authority\"),$F80=1),0,IF(AND(OR(Calculations!$E$2=\"Shetland Health Board\",Calculations!$E$2=\"Western Isles Health Board\",Calculations!$E$2=\"Shetland Islands Local Authority\",Calculations!$E$2=\"Eilean Siar Local Authority\"),OR($F80=1,$F80=5)),0,new_ci(VALUE(LEFT(Options!$B$14,2)),$C80,$E80,$F80,2016,$I80/10+$J80/10,1,$H80/10,$G80*$H80/10,RateRatios_airpollution!$C80)*10))","v":{"$error":"#VALUE!"}},{"$f":"IF(AND(OR(Calculations!$E$2=\"Orkney Health Board\",Calculations!$E$2=\"Orkney Islands Local Authority\"),$F80=1),0,IF(AND(OR(Calculations!$E$2=\"Shetland Health Board\",Calculations!$E$2=\"Western Isles Health Board\",Calculations!$E$2=\"Shetland Islands Local Authority\",Calculations!$E$2=\"Eilean Siar Local Authority\"),OR($F80=1,$F80=5)),0,new_yllv2(VALUE(LEFT(Options!$B$14,2)),$C80,$D80,$E80,$F80,2016,$I80/10,1,$H80/10,$G80*$H80/10,RateRatios_airpollution!$C80)*10))","v":{"$error":"#VALUE!"}},{"$f":"IF(AND(OR(Calculations!$E$2=\"Orkney Health Board\",Calculations!$E$2=\"Orkney Islands Local Authority\"),$F80=1),0,IF(AND(OR(Calculations!$E$2=\"Shetland Health Board\",Calculations!$E$2=\"Western Isles Health Board\",Calculations!$E$2=\"Shetland Islands Local Authority\",Calculations!$E$2=\"Eilean Siar Local Authority\"),OR($F80=1,$F80=5)),0,new_yllv2(VALUE(LEFT(Options!$B$14,2)),$C80,$D80,$E80,$F80,2016,$I80/10+$J80/10,1,$H80/10,$G80*$H80/10,RateRatios_airpollution!$C80)*10))","v":{"$error":"#VALUE!"}},{"$f":"IF(AND(OR(Calculations!$E$2=\"Orkney Health Board\",Calculations!$E$2=\"Orkney Islands Local Authority\"),$F80=1),0,IF(AND(OR(Calculations!$E$2=\"Shetland Health Board\",Calculations!$E$2=\"Western Isles Health Board\",Calculations!$E$2=\"Shetland Islands Local Authority\",Calculations!$E$2=\"Eilean Siar Local Authority\"),OR($F80=1,$F80=5)),0,hosp_count(VALUE(LEFT(Options!$B$14,2)),$C80,$E80,$F80,2016,$I80/10,1,$H80/10,$G80*$H80/10, RateRatios_airpollution!$D80, RateRatios_airpollution!$C80)*10))","v":{"$error":"#VALUE!"}},{"$f":"IF(AND(OR(Calculations!$E$2=\"Orkney Health Board\",Calculations!$E$2=\"Orkney Islands Local Authority\"),$F80=1),0,IF(AND(OR(Calculations!$E$2=\"Shetland Health Board\",Calculations!$E$2=\"Western Isles Health Board\",Calculations!$E$2=\"Shetland Islands Local Authority\",Calculations!$E$2=\"Eilean Siar Local Authority\"),OR($F80=1,$F80=5)),0,hosp_count(VALUE(LEFT(Options!$B$14,2)),$C80,$E80,$F80,2016,$I80/10+$J80/10,1,$H80/10,$G80*$H80/10, RateRatios_airpollution!$D80, RateRatios_airpollution!$C80)*10))","v":{"$error":"#VALUE!"}},{"$f":"IF(AND(OR(Calculations!$E$2=\"Orkney Health Board\",Calculations!$E$2=\"Orkney Islands Local Authority\"),$F80=1),0,IF(AND(OR(Calculations!$E$2=\"Shetland Health Board\",Calculations!$E$2=\"Western Isles Health Board\",Calculations!$E$2=\"Shetland Islands Local Authority\",Calculations!$E$2=\"Eilean Siar Local Authority\"),OR($F80=1,$F80=5)),0,prem_mort(VALUE(LEFT(Options!$B$14,2)),$C80,$E80,$F80,2016,$I80/10,1,$H80/10,$G80*$H80/10,RateRatios_airpollution!$C80)*10))","v":{"$error":"#VALUE!"}},{"$f":"IF(AND(OR(Calculations!$E$2=\"Orkney Health Board\",Calculations!$E$2=\"Orkney Islands Local Authority\"),$F80=1),0,IF(AND(OR(Calculations!$E$2=\"Shetland Health Board\",Calculations!$E$2=\"Western Isles Health Board\",Calculations!$E$2=\"Shetland Islands Local Authority\",Calculations!$E$2=\"Eilean Siar Local Authority\"),OR($F80=1,$F80=5)),0,prem_mort(VALUE(LEFT(Options!$B$14,2)),$C80,$E80,$F80,2016,$I80/10+$J80/10,1,$H80/10,$G80*$H80/10,RateRatios_airpollution!$C80)*10))","v":{"$error":"#VALUE!"}},null,{"$f":"IF(AND(OR(Calculations!$E$2=\"Orkney Health Board\",Calculations!$E$2=\"Orkney Islands Local Authority\"),$F80=1),0,IF(AND(OR(Calculations!$E$2=\"Shetland Health Board\",Calculations!$E$2=\"Western Isles Health Board\",Calculations!$E$2=\"Shetland Islands Local Authority\",Calculations!$E$2=\"Eilean Siar Local Authority\"),OR($F80=1,$F80=5)),0,new_ci(VALUE(LEFT(Options!$B$14,2)),$C80,$E80,$F80,2016,$I80/10,1,$H80/10,$G80*$H80/10,RateRatios_airpollution!$E80)*10))","v":{"$error":"#VALUE!"}},{"$f":"IF(AND(OR(Calculations!$E$2=\"Orkney Health Board\",Calculations!$E$2=\"Orkney Islands Local Authority\"),$F80=1),0,IF(AND(OR(Calculations!$E$2=\"Shetland Health Board\",Calculations!$E$2=\"Western Isles Health Board\",Calculations!$E$2=\"Shetland Islands Local Authority\",Calculations!$E$2=\"Eilean Siar Local Authority\"),OR($F80=1,$F80=5)),0,new_ci(VALUE(LEFT(Options!$B$14,2)),$C80,$E80,$F80,2016,$I80/10+$J80/10,1,$H80/10,$G80*$H80/10,RateRatios_airpollution!$E80)*10))","v":{"$error":"#VALUE!"}},{"$f":"IF(AND(OR(Calculations!$E$2=\"Orkney Health Board\",Calculations!$E$2=\"Orkney Islands Local Authority\"),$F80=1),0,IF(AND(OR(Calculations!$E$2=\"Shetland Health Board\",Calculations!$E$2=\"Western Isles Health Board\",Calculations!$E$2=\"Shetland Islands Local Authority\",Calculations!$E$2=\"Eilean Siar Local Authority\"),OR($F80=1,$F80=5)),0,new_yllv2(VALUE(LEFT(Options!$B$14,2)),$C80,$D80,$E80,$F80,2016,$I80/10,1,$H80/10,$G80*$H80/10,RateRatios_airpollution!$E80)*10))","v":{"$error":"#VALUE!"}},{"$f":"IF(AND(OR(Calculations!$E$2=\"Orkney Health Board\",Calculations!$E$2=\"Orkney Islands Local Authority\"),$F80=1),0,IF(AND(OR(Calculations!$E$2=\"Shetland Health Board\",Calculations!$E$2=\"Western Isles Health Board\",Calculations!$E$2=\"Shetland Islands Local Authority\",Calculations!$E$2=\"Eilean Siar Local Authority\"),OR($F80=1,$F80=5)),0,new_yllv2(VALUE(LEFT(Options!$B$14,2)),$C80,$D80,$E80,$F80,2016,$I80/10+$J80/10,1,$H80/10,$G80*$H80/10,RateRatios_airpollution!$E80)*10))","v":{"$error":"#VALUE!"}},{"$f":"IF(AND(OR(Calculations!$E$2=\"Orkney Health Board\",Calculations!$E$2=\"Orkney Islands Local Authority\"),$F80=1),0,IF(AND(OR(Calculations!$E$2=\"Shetland Health Board\",Calculations!$E$2=\"Western Isles Health Board\",Calculations!$E$2=\"Shetland Islands Local Authority\",Calculations!$E$2=\"Eilean Siar Local Authority\"),OR($F80=1,$F80=5)),0,hosp_count(VALUE(LEFT(Options!$B$14,2)),$C80,$E80,$F80,2016,$I80/10,1,$H80/10,$G80*$H80/10, RateRatios_airpollution!$F80, RateRatios_airpollution!$E80)*10))","v":{"$error":"#VALUE!"}},{"$f":"IF(AND(OR(Calculations!$E$2=\"Orkney Health Board\",Calculations!$E$2=\"Orkney Islands Local Authority\"),$F80=1),0,IF(AND(OR(Calculations!$E$2=\"Shetland Health Board\",Calculations!$E$2=\"Western Isles Health Board\",Calculations!$E$2=\"Shetland Islands Local Authority\",Calculations!$E$2=\"Eilean Siar Local Authority\"),OR($F80=1,$F80=5)),0,hosp_count(VALUE(LEFT(Options!$B$14,2)),$C80,$E80,$F80,2016,$I80/10+$J80/10,1,$H80/10,$G80*$H80/10, RateRatios_airpollution!$F80, RateRatios_airpollution!$E80)*10))","v":{"$error":"#VALUE!"}},{"$f":"IF(AND(OR(Calculations!$E$2=\"Orkney Health Board\",Calculations!$E$2=\"Orkney Islands Local Authority\"),$F80=1),0,IF(AND(OR(Calculations!$E$2=\"Shetland Health Board\",Calculations!$E$2=\"Western Isles Health Board\",Calculations!$E$2=\"Shetland Islands Local Authority\",Calculations!$E$2=\"Eilean Siar Local Authority\"),OR($F80=1,$F80=5)),0,prem_mort(VALUE(LEFT(Options!$B$14,2)),$C80,$E80,$F80,2016,$I80/10,1,$H80/10,$G80*$H80/10,RateRatios_airpollution!$E80)*10))","v":{"$error":"#VALUE!"}},{"$f":"IF(AND(OR(Calculations!$E$2=\"Orkney Health Board\",Calculations!$E$2=\"Orkney Islands Local Authority\"),$F80=1),0,IF(AND(OR(Calculations!$E$2=\"Shetland Health Board\",Calculations!$E$2=\"Western Isles Health Board\",Calculations!$E$2=\"Shetland Islands Local Authority\",Calculations!$E$2=\"Eilean Siar Local Authority\"),OR($F80=1,$F80=5)),0,prem_mort(VALUE(LEFT(Options!$B$14,2)),$C80,$E80,$F80,2016,$I80/10+$J80/10,1,$H80/10,$G80*$H80/10,RateRatios_airpollution!$E80)*10))","v":{"$error":"#VALUE!"}},{"$error":"#VALUE!"},{"$error":"#VALUE!"},{"$error":"#VALUE!"},{"$error":"#VALUE!"},{"$error":"#VALUE!"},{"$error":"#VALUE!"},{"$error":"#VALUE!"},{"$error":"#VALUE!"},{"$error":"#VALUE!"},{"$error":"#VALUE!"},{"$error":"#VALUE!"},{"$error":"#VALUE!"},{"$error":"#VALUE!"},{"$error":"#VALUE!"},{"$error":"#VALUE!"},{"$error":"#VALUE!"},{"$error":"#VALUE!"},{"$error":"#VALUE!"},{"$error":"#VALUE!"},{"$error":"#VALUE!"},{"$error":"#VALUE!"},{"$error":"#VALUE!"},{"$error":"#VALUE!"},{"$error":"#VALUE!"},5500]
[null,"Male 10-15",12.471144000000001,77.921140000000008,"male",1,1,{"$f":"HLOOKUP(Calculations!$E$2,'Population 2016'!$C$3:$BC$249,'Population 2016'!BD81,FALSE)","v":0},0,{"$f":"HLOOKUP(Calculations!$E$2,Pop2016_in_settlements!$C$3:$BC$249,Pop2016_in_settlements!$BD81,FALSE)","v":0},{"$f":"IF(AND(OR(Calculations!$E$2=\"Orkney Health Board\",Calculations!$E$2=\"Orkney Islands Local Authority\"),$F81=1),0,IF(AND(OR(Calculations!$E$2=\"Shetland Health Board\",Calculations!$E$2=\"Western Isles Health Board\",Calculations!$E$2=\"Shetland Islands Local Authority\",Calculations!$E$2=\"Eilean Siar Local Authority\"),OR($F81=1,$F81=5)),0,new_ci(VALUE(LEFT(Options!$B$14,2)),$C81,$E81,$F81,2016,$I81/10,1,$H81/10,$G81*$H81/10,RateRatios_accidents!$B$5)*10))","v":{"$error":"#VALUE!"}},{"$f":"IF(AND(OR(Calculations!$E$2=\"Orkney Health Board\",Calculations!$E$2=\"Orkney Islands Local Authority\"),$F81=1),0,IF(AND(OR(Calculations!$E$2=\"Shetland Health Board\",Calculations!$E$2=\"Western Isles Health Board\",Calculations!$E$2=\"Shetland Islands Local Authority\",Calculations!$E$2=\"Eilean Siar Local Authority\"),OR($F81=1,$F81=5)),0,new_ci(VALUE(LEFT(Options!$B$14,2)),$C81,$E81,$F81,2016,$I81/10+$J81/10,1,$H81/10,$G81*$H81/10,RateRatios_accidents!$B$5)*10))","v":{"$error":"#VALUE!"}},{"$f":"IF(AND(OR(Calculations!$E$2=\"Orkney Health Board\",Calculations!$E$2=\"Orkney Islands Local Authority\"),$F81=1),0,IF(AND(OR(Calculations!$E$2=\"Shetland Health Board\",Calculations!$E$2=\"Western Isles Health Board\",Calculations!$E$2=\"Shetland Islands Local Authority\",Calculations!$E$2=\"Eilean Siar Local Authority\"),OR($F81=1,$F81=5)),0,new_yllv2(VALUE(LEFT(Options!$B$14,2)),$C81,$D81,$E81,$F81,2016,$I81/10,1,$H81/10,$G81*$H81/10,RateRatios_accidents!$B$5)*10))","v":{"$error":"#VALUE!"}},{"$f":"IF(AND(OR(Calculations!$E$2=\"Orkney Health Board\",Calculations!$E$2=\"Orkney Islands Local Authority\"),$F81=1),0,IF(AND(OR(Calculations!$E$2=\"Shetland Health Board\",Calculations!$E$2=\"Western Isles Health Board\",Calculations!$E$2=\"Shetland Islands Local Authority\",Calculations!$E$2=\"Eilean Siar Local Authority\"),OR($F81=1,$F81=5)),0,new_yllv2(VALUE(LEFT(Options!$B$14,2)),$C81,$D81,$E81,$F81,2016,$I81/10+$J81/10,1,$H81/10,$G81*$H81/10,RateRatios_accidents!$B$5)*10))","v":{"$error":"#VALUE!"}},{"$f":"IF(AND(OR(Calculations!$E$2=\"Orkney Health Board\",Calculations!$E$2=\"Orkney Islands Local Authority\"),$F81=1),0,IF(AND(OR(Calculations!$E$2=\"Shetland Health Board\",Calculations!$E$2=\"Western Isles Health Board\",Calculations!$E$2=\"Shetland Islands Local Authority\",Calculations!$E$2=\"Eilean Siar Local Authority\"),OR($F81=1,$F81=5)),0,hosp_count(VALUE(LEFT(Options!$B$14,2)),$C81,$E81,$F81,2016,$I81/10,1,$H81/10,$G81*$H81/10, RateRatios_accidents!$B$4, RateRatios_accidents!$B$5)*10))","v":{"$error":"#VALUE!"}},{"$f":"IF(AND(OR(Calculations!$E$2=\"Orkney Health Board\",Calculations!$E$2=\"Orkney Islands Local Authority\"),$F81=1),0,IF(AND(OR(Calculations!$E$2=\"Shetland Health Board\",Calculations!$E$2=\"Western Isles Health Board\",Calculations!$E$2=\"Shetland Islands Local Authority\",Calculations!$E$2=\"Eilean Siar Local Authority\"),OR($F81=1,$F81=5)),0,hosp_count(VALUE(LEFT(Options!$B$14,2)),$C81,$E81,$F81,2016,$I81/10+$J81/10,1,$H81/10,$G81*$H81/10, RateRatios_accidents!$B$4, RateRatios_accidents!$B$5)*10))","v":{"$error":"#VALUE!"}},{"$f":"IF(AND(OR(Calculations!$E$2=\"Orkney Health Board\",Calculations!$E$2=\"Orkney Islands Local Authority\"),$F81=1),0,IF(AND(OR(Calculations!$E$2=\"Shetland Health Board\",Calculations!$E$2=\"Western Isles Health Board\",Calculations!$E$2=\"Shetland Islands Local Authority\",Calculations!$E$2=\"Eilean Siar Local Authority\"),OR($F81=1,$F81=5)),0,prem_mort(VALUE(LEFT(Options!$B$14,2)),$C81,$E81,$F81,2016,$I81/10,1,$H81/10,$G81*$H81/10,RateRatios_accidents!$B$5)*10))","v":{"$error":"#VALUE!"}},{"$f":"IF(AND(OR(Calculations!$E$2=\"Orkney Health Board\",Calculations!$E$2=\"Orkney Islands Local Authority\"),$F81=1),0,IF(AND(OR(Calculations!$E$2=\"Shetland Health Board\",Calculations!$E$2=\"Western Isles Health Board\",Calculations!$E$2=\"Shetland Islands Local Authority\",Calculations!$E$2=\"Eilean Siar Local Authority\"),OR($F81=1,$F81=5)),0,prem_mort(VALUE(LEFT(Options!$B$14,2)),$C81,$E81,$F81,2016,$I81/10+$J81/10,1,$H81/10,$G81*$H81/10,RateRatios_accidents!$B$5)*10))","v":{"$error":"#VALUE!"}},null,{"$f":"IF(AND(OR(Calculations!$E$2=\"Orkney Health Board\",Calculations!$E$2=\"Orkney Islands Local Authority\"),$F81=1),0,IF(AND(OR(Calculations!$E$2=\"Shetland Health Board\",Calculations!$E$2=\"Western Isles Health Board\",Calculations!$E$2=\"Shetland Islands Local Authority\",Calculations!$E$2=\"Eilean Siar Local Authority\"),OR($F81=1,$F81=5)),0,new_ci(VALUE(LEFT(Options!$B$14,2)),$C81,$E81,$F81,2016,$I81/10,1,$H81/10,$G81*$H81/10,RateRatios_airpollution!$C81)*10))","v":{"$error":"#VALUE!"}},{"$f":"IF(AND(OR(Calculations!$E$2=\"Orkney Health Board\",Calculations!$E$2=\"Orkney Islands Local Authority\"),$F81=1),0,IF(AND(OR(Calculations!$E$2=\"Shetland Health Board\",Calculations!$E$2=\"Western Isles Health Board\",Calculations!$E$2=\"Shetland Islands Local Authority\",Calculations!$E$2=\"Eilean Siar Local Authority\"),OR($F81=1,$F81=5)),0,new_ci(VALUE(LEFT(Options!$B$14,2)),$C81,$E81,$F81,2016,$I81/10+$J81/10,1,$H81/10,$G81*$H81/10,RateRatios_airpollution!$C81)*10))","v":{"$error":"#VALUE!"}},{"$f":"IF(AND(OR(Calculations!$E$2=\"Orkney Health Board\",Calculations!$E$2=\"Orkney Islands Local Authority\"),$F81=1),0,IF(AND(OR(Calculations!$E$2=\"Shetland Health Board\",Calculations!$E$2=\"Western Isles Health Board\",Calculations!$E$2=\"Shetland Islands Local Authority\",Calculations!$E$2=\"Eilean Siar Local Authority\"),OR($F81=1,$F81=5)),0,new_yllv2(VALUE(LEFT(Options!$B$14,2)),$C81,$D81,$E81,$F81,2016,$I81/10,1,$H81/10,$G81*$H81/10,RateRatios_airpollution!$C81)*10))","v":{"$error":"#VALUE!"}},{"$f":"IF(AND(OR(Calculations!$E$2=\"Orkney Health Board\",Calculations!$E$2=\"Orkney Islands Local Authority\"),$F81=1),0,IF(AND(OR(Calculations!$E$2=\"Shetland Health Board\",Calculations!$E$2=\"Western Isles Health Board\",Calculations!$E$2=\"Shetland Islands Local Authority\",Calculations!$E$2=\"Eilean Siar Local Authority\"),OR($F81=1,$F81=5)),0,new_yllv2(VALUE(LEFT(Options!$B$14,2)),$C81,$D81,$E81,$F81,2016,$I81/10+$J81/10,1,$H81/10,$G81*$H81/10,RateRatios_airpollution!$C81)*10))","v":{"$error":"#VALUE!"}},{"$f":"IF(AND(OR(Calculations!$E$2=\"Orkney Health Board\",Calculations!$E$2=\"Orkney Islands Local Authority\"),$F81=1),0,IF(AND(OR(Calculations!$E$2=\"Shetland Health Board\",Calculations!$E$2=\"Western Isles Health Board\",Calculations!$E$2=\"Shetland Islands Local Authority\",Calculations!$E$2=\"Eilean Siar Local Authority\"),OR($F81=1,$F81=5)),0,hosp_count(VALUE(LEFT(Options!$B$14,2)),$C81,$E81,$F81,2016,$I81/10,1,$H81/10,$G81*$H81/10, RateRatios_airpollution!$D81, RateRatios_airpollution!$C81)*10))","v":{"$error":"#VALUE!"}},{"$f":"IF(AND(OR(Calculations!$E$2=\"Orkney Health Board\",Calculations!$E$2=\"Orkney Islands Local Authority\"),$F81=1),0,IF(AND(OR(Calculations!$E$2=\"Shetland Health Board\",Calculations!$E$2=\"Western Isles Health Board\",Calculations!$E$2=\"Shetland Islands Local Authority\",Calculations!$E$2=\"Eilean Siar Local Authority\"),OR($F81=1,$F81=5)),0,hosp_count(VALUE(LEFT(Options!$B$14,2)),$C81,$E81,$F81,2016,$I81/10+$J81/10,1,$H81/10,$G81*$H81/10, RateRatios_airpollution!$D81, RateRatios_airpollution!$C81)*10))","v":{"$error":"#VALUE!"}},{"$f":"IF(AND(OR(Calculations!$E$2=\"Orkney Health Board\",Calculations!$E$2=\"Orkney Islands Local Authority\"),$F81=1),0,IF(AND(OR(Calculations!$E$2=\"Shetland Health Board\",Calculations!$E$2=\"Western Isles Health Board\",Calculations!$E$2=\"Shetland Islands Local Authority\",Calculations!$E$2=\"Eilean Siar Local Authority\"),OR($F81=1,$F81=5)),0,prem_mort(VALUE(LEFT(Options!$B$14,2)),$C81,$E81,$F81,2016,$I81/10,1,$H81/10,$G81*$H81/10,RateRatios_airpollution!$C81)*10))","v":{"$error":"#VALUE!"}},{"$f":"IF(AND(OR(Calculations!$E$2=\"Orkney Health Board\",Calculations!$E$2=\"Orkney Islands Local Authority\"),$F81=1),0,IF(AND(OR(Calculations!$E$2=\"Shetland Health Board\",Calculations!$E$2=\"Western Isles Health Board\",Calculations!$E$2=\"Shetland Islands Local Authority\",Calculations!$E$2=\"Eilean Siar Local Authority\"),OR($F81=1,$F81=5)),0,prem_mort(VALUE(LEFT(Options!$B$14,2)),$C81,$E81,$F81,2016,$I81/10+$J81/10,1,$H81/10,$G81*$H81/10,RateRatios_airpollution!$C81)*10))","v":{"$error":"#VALUE!"}},null,{"$f":"IF(AND(OR(Calculations!$E$2=\"Orkney Health Board\",Calculations!$E$2=\"Orkney Islands Local Authority\"),$F81=1),0,IF(AND(OR(Calculations!$E$2=\"Shetland Health Board\",Calculations!$E$2=\"Western Isles Health Board\",Calculations!$E$2=\"Shetland Islands Local Authority\",Calculations!$E$2=\"Eilean Siar Local Authority\"),OR($F81=1,$F81=5)),0,new_ci(VALUE(LEFT(Options!$B$14,2)),$C81,$E81,$F81,2016,$I81/10,1,$H81/10,$G81*$H81/10,RateRatios_airpollution!$E81)*10))","v":{"$error":"#VALUE!"}},{"$f":"IF(AND(OR(Calculations!$E$2=\"Orkney Health Board\",Calculations!$E$2=\"Orkney Islands Local Authority\"),$F81=1),0,IF(AND(OR(Calculations!$E$2=\"Shetland Health Board\",Calculations!$E$2=\"Western Isles Health Board\",Calculations!$E$2=\"Shetland Islands Local Authority\",Calculations!$E$2=\"Eilean Siar Local Authority\"),OR($F81=1,$F81=5)),0,new_ci(VALUE(LEFT(Options!$B$14,2)),$C81,$E81,$F81,2016,$I81/10+$J81/10,1,$H81/10,$G81*$H81/10,RateRatios_airpollution!$E81)*10))","v":{"$error":"#VALUE!"}},{"$f":"IF(AND(OR(Calculations!$E$2=\"Orkney Health Board\",Calculations!$E$2=\"Orkney Islands Local Authority\"),$F81=1),0,IF(AND(OR(Calculations!$E$2=\"Shetland Health Board\",Calculations!$E$2=\"Western Isles Health Board\",Calculations!$E$2=\"Shetland Islands Local Authority\",Calculations!$E$2=\"Eilean Siar Local Authority\"),OR($F81=1,$F81=5)),0,new_yllv2(VALUE(LEFT(Options!$B$14,2)),$C81,$D81,$E81,$F81,2016,$I81/10,1,$H81/10,$G81*$H81/10,RateRatios_airpollution!$E81)*10))","v":{"$error":"#VALUE!"}},{"$f":"IF(AND(OR(Calculations!$E$2=\"Orkney Health Board\",Calculations!$E$2=\"Orkney Islands Local Authority\"),$F81=1),0,IF(AND(OR(Calculations!$E$2=\"Shetland Health Board\",Calculations!$E$2=\"Western Isles Health Board\",Calculations!$E$2=\"Shetland Islands Local Authority\",Calculations!$E$2=\"Eilean Siar Local Authority\"),OR($F81=1,$F81=5)),0,new_yllv2(VALUE(LEFT(Options!$B$14,2)),$C81,$D81,$E81,$F81,2016,$I81/10+$J81/10,1,$H81/10,$G81*$H81/10,RateRatios_airpollution!$E81)*10))","v":{"$error":"#VALUE!"}},{"$f":"IF(AND(OR(Calculations!$E$2=\"Orkney Health Board\",Calculations!$E$2=\"Orkney Islands Local Authority\"),$F81=1),0,IF(AND(OR(Calculations!$E$2=\"Shetland Health Board\",Calculations!$E$2=\"Western Isles Health Board\",Calculations!$E$2=\"Shetland Islands Local Authority\",Calculations!$E$2=\"Eilean Siar Local Authority\"),OR($F81=1,$F81=5)),0,hosp_count(VALUE(LEFT(Options!$B$14,2)),$C81,$E81,$F81,2016,$I81/10,1,$H81/10,$G81*$H81/10, RateRatios_airpollution!$F81, RateRatios_airpollution!$E81)*10))","v":{"$error":"#VALUE!"}},{"$f":"IF(AND(OR(Calculations!$E$2=\"Orkney Health Board\",Calculations!$E$2=\"Orkney Islands Local Authority\"),$F81=1),0,IF(AND(OR(Calculations!$E$2=\"Shetland Health Board\",Calculations!$E$2=\"Western Isles Health Board\",Calculations!$E$2=\"Shetland Islands Local Authority\",Calculations!$E$2=\"Eilean Siar Local Authority\"),OR($F81=1,$F81=5)),0,hosp_count(VALUE(LEFT(Options!$B$14,2)),$C81,$E81,$F81,2016,$I81/10+$J81/10,1,$H81/10,$G81*$H81/10, RateRatios_airpollution!$F81, RateRatios_airpollution!$E81)*10))","v":{"$error":"#VALUE!"}},{"$f":"IF(AND(OR(Calculations!$E$2=\"Orkney Health Board\",Calculations!$E$2=\"Orkney Islands Local Authority\"),$F81=1),0,IF(AND(OR(Calculations!$E$2=\"Shetland Health Board\",Calculations!$E$2=\"Western Isles Health Board\",Calculations!$E$2=\"Shetland Islands Local Authority\",Calculations!$E$2=\"Eilean Siar Local Authority\"),OR($F81=1,$F81=5)),0,prem_mort(VALUE(LEFT(Options!$B$14,2)),$C81,$E81,$F81,2016,$I81/10,1,$H81/10,$G81*$H81/10,RateRatios_airpollution!$E81)*10))","v":{"$error":"#VALUE!"}},{"$f":"IF(AND(OR(Calculations!$E$2=\"Orkney Health Board\",Calculations!$E$2=\"Orkney Islands Local Authority\"),$F81=1),0,IF(AND(OR(Calculations!$E$2=\"Shetland Health Board\",Calculations!$E$2=\"Western Isles Health Board\",Calculations!$E$2=\"Shetland Islands Local Authority\",Calculations!$E$2=\"Eilean Siar Local Authority\"),OR($F81=1,$F81=5)),0,prem_mort(VALUE(LEFT(Options!$B$14,2)),$C81,$E81,$F81,2016,$I81/10+$J81/10,1,$H81/10,$G81*$H81/10,RateRatios_airpollution!$E81)*10))","v":{"$error":"#VALUE!"}},{"$error":"#VALUE!"},{"$error":"#VALUE!"},{"$error":"#VALUE!"},{"$error":"#VALUE!"},{"$error":"#VALUE!"},{"$error":"#VALUE!"},{"$error":"#VALUE!"},{"$error":"#VALUE!"},{"$error":"#VALUE!"},{"$error":"#VALUE!"},{"$error":"#VALUE!"},{"$error":"#VALUE!"},{"$error":"#VALUE!"},{"$error":"#VALUE!"},{"$error":"#VALUE!"},{"$error":"#VALUE!"},{"$error":"#VALUE!"},{"$error":"#VALUE!"},{"$error":"#VALUE!"},{"$error":"#VALUE!"},{"$error":"#VALUE!"},{"$error":"#VALUE!"},{"$error":"#VALUE!"},{"$error":"#VALUE!"},6600]
[null,"Male 16-19",17.556318000000001,77.07632000000001,"male",1,1,{"$f":"HLOOKUP(Calculations!$E$2,'Population 2016'!$C$3:$BC$249,'Population 2016'!BD82,FALSE)","v":25359},0,{"$f":"HLOOKUP(Calculations!$E$2,Pop2016_in_settlements!$C$3:$BC$249,Pop2016_in_settlements!$BD82,FALSE)","v":18873},{"$f":"IF(AND(OR(Calculations!$E$2=\"Orkney Health Board\",Calculations!$E$2=\"Orkney Islands Local Authority\"),$F82=1),0,IF(AND(OR(Calculations!$E$2=\"Shetland Health Board\",Calculations!$E$2=\"Western Isles Health Board\",Calculations!$E$2=\"Shetland Islands Local Authority\",Calculations!$E$2=\"Eilean Siar Local Authority\"),OR($F82=1,$F82=5)),0,new_ci(VALUE(LEFT(Options!$B$14,2)),$C82,$E82,$F82,2016,$I82/10,1,$H82/10,$G82*$H82/10,RateRatios_accidents!$B$5)*10))","v":19.172456398000001},{"$f":"IF(AND(OR(Calculations!$E$2=\"Orkney Health Board\",Calculations!$E$2=\"Orkney Islands Local Authority\"),$F82=1),0,IF(AND(OR(Calculations!$E$2=\"Shetland Health Board\",Calculations!$E$2=\"Western Isles Health Board\",Calculations!$E$2=\"Shetland Islands Local Authority\",Calculations!$E$2=\"Eilean Siar Local Authority\"),OR($F82=1,$F82=5)),0,new_ci(VALUE(LEFT(Options!$B$14,2)),$C82,$E82,$F82,2016,$I82/10+$J82/10,1,$H82/10,$G82*$H82/10,RateRatios_accidents!$B$5)*10))","v":19.166749202999998},{"$f":"IF(AND(OR(Calculations!$E$2=\"Orkney Health Board\",Calculations!$E$2=\"Orkney Islands Local Authority\"),$F82=1),0,IF(AND(OR(Calculations!$E$2=\"Shetland Health Board\",Calculations!$E$2=\"Western Isles Health Board\",Calculations!$E$2=\"Shetland Islands Local Authority\",Calculations!$E$2=\"Eilean Siar Local Authority\"),OR($F82=1,$F82=5)),0,new_yllv2(VALUE(LEFT(Options!$B$14,2)),$C82,$D82,$E82,$F82,2016,$I82/10,1,$H82/10,$G82*$H82/10,RateRatios_accidents!$B$5)*10))","v":1121.9721867559999},{"$f":"IF(AND(OR(Calculations!$E$2=\"Orkney Health Board\",Calculations!$E$2=\"Orkney Islands Local Authority\"),$F82=1),0,IF(AND(OR(Calculations!$E$2=\"Shetland Health Board\",Calculations!$E$2=\"Western Isles Health Board\",Calculations!$E$2=\"Shetland Islands Local Authority\",Calculations!$E$2=\"Eilean Siar Local Authority\"),OR($F82=1,$F82=5)),0,new_yllv2(VALUE(LEFT(Options!$B$14,2)),$C82,$D82,$E82,$F82,2016,$I82/10+$J82/10,1,$H82/10,$G82*$H82/10,RateRatios_accidents!$B$5)*10))","v":1121.6382016929999},{"$f":"IF(AND(OR(Calculations!$E$2=\"Orkney Health Board\",Calculations!$E$2=\"Orkney Islands Local Authority\"),$F82=1),0,IF(AND(OR(Calculations!$E$2=\"Shetland Health Board\",Calculations!$E$2=\"Western Isles Health Board\",Calculations!$E$2=\"Shetland Islands Local Authority\",Calculations!$E$2=\"Eilean Siar Local Authority\"),OR($F82=1,$F82=5)),0,hosp_count(VALUE(LEFT(Options!$B$14,2)),$C82,$E82,$F82,2016,$I82/10,1,$H82/10,$G82*$H82/10, RateRatios_accidents!$B$4, RateRatios_accidents!$B$5)*10))","v":2447.1256447280002},{"$f":"IF(AND(OR(Calculations!$E$2=\"Orkney Health Board\",Calculations!$E$2=\"Orkney Islands Local Authority\"),$F82=1),0,IF(AND(OR(Calculations!$E$2=\"Shetland Health Board\",Calculations!$E$2=\"Western Isles Health Board\",Calculations!$E$2=\"Shetland Islands Local Authority\",Calculations!$E$2=\"Eilean Siar Local Authority\"),OR($F82=1,$F82=5)),0,hosp_count(VALUE(LEFT(Options!$B$14,2)),$C82,$E82,$F82,2016,$I82/10+$J82/10,1,$H82/10,$G82*$H82/10, RateRatios_accidents!$B$4, RateRatios_accidents!$B$5)*10))","v":2446.3971525900001},{"$f":"IF(AND(OR(Calculations!$E$2=\"Orkney Health Board\",Calculations!$E$2=\"Orkney Islands Local Authority\"),$F82=1),0,IF(AND(OR(Calculations!$E$2=\"Shetland Health Board\",Calculations!$E$2=\"Western Isles Health Board\",Calculations!$E$2=\"Shetland Islands Local Authority\",Calculations!$E$2=\"Eilean Siar Local Authority\"),OR($F82=1,$F82=5)),0,prem_mort(VALUE(LEFT(Options!$B$14,2)),$C82,$E82,$F82,2016,$I82/10,1,$H82/10,$G82*$H82/10,RateRatios_accidents!$B$5)*10))","v":19.172456398000001},{"$f":"IF(AND(OR(Calculations!$E$2=\"Orkney Health Board\",Calculations!$E$2=\"Orkney Islands Local Authority\"),$F82=1),0,IF(AND(OR(Calculations!$E$2=\"Shetland Health Board\",Calculations!$E$2=\"Western Isles Health Board\",Calculations!$E$2=\"Shetland Islands Local Authority\",Calculations!$E$2=\"Eilean Siar Local Authority\"),OR($F82=1,$F82=5)),0,prem_mort(VALUE(LEFT(Options!$B$14,2)),$C82,$E82,$F82,2016,$I82/10+$J82/10,1,$H82/10,$G82*$H82/10,RateRatios_accidents!$B$5)*10))","v":19.166749202999998},null,{"$f":"IF(AND(OR(Calculations!$E$2=\"Orkney Health Board\",Calculations!$E$2=\"Orkney Islands Local Authority\"),$F82=1),0,IF(AND(OR(Calculations!$E$2=\"Shetland Health Board\",Calculations!$E$2=\"Western Isles Health Board\",Calculations!$E$2=\"Shetland Islands Local Authority\",Calculations!$E$2=\"Eilean Siar Local Authority\"),OR($F82=1,$F82=5)),0,new_ci(VALUE(LEFT(Options!$B$14,2)),$C82,$E82,$F82,2016,$I82/10,1,$H82/10,$G82*$H82/10,RateRatios_airpollution!$C82)*10))","v":19.172456398000001},{"$f":"IF(AND(OR(Calculations!$E$2=\"Orkney Health Board\",Calculations!$E$2=\"Orkney Islands Local Authority\"),$F82=1),0,IF(AND(OR(Calculations!$E$2=\"Shetland Health Board\",Calculations!$E$2=\"Western Isles Health Board\",Calculations!$E$2=\"Shetland Islands Local Authority\",Calculations!$E$2=\"Eilean Siar Local Authority\"),OR($F82=1,$F82=5)),0,new_ci(VALUE(LEFT(Options!$B$14,2)),$C82,$E82,$F82,2016,$I82/10+$J82/10,1,$H82/10,$G82*$H82/10,RateRatios_airpollution!$C82)*10))","v":19.172118572000002},{"$f":"IF(AND(OR(Calculations!$E$2=\"Orkney Health Board\",Calculations!$E$2=\"Orkney Islands Local Authority\"),$F82=1),0,IF(AND(OR(Calculations!$E$2=\"Shetland Health Board\",Calculations!$E$2=\"Western Isles Health Board\",Calculations!$E$2=\"Shetland Islands Local Authority\",Calculations!$E$2=\"Eilean Siar Local Authority\"),OR($F82=1,$F82=5)),0,new_yllv2(VALUE(LEFT(Options!$B$14,2)),$C82,$D82,$E82,$F82,2016,$I82/10,1,$H82/10,$G82*$H82/10,RateRatios_airpollution!$C82)*10))","v":1121.9721867559999},{"$f":"IF(AND(OR(Calculations!$E$2=\"Orkney Health Board\",Calculations!$E$2=\"Orkney Islands Local Authority\"),$F82=1),0,IF(AND(OR(Calculations!$E$2=\"Shetland Health Board\",Calculations!$E$2=\"Western Isles Health Board\",Calculations!$E$2=\"Shetland Islands Local Authority\",Calculations!$E$2=\"Eilean Siar Local Authority\"),OR($F82=1,$F82=5)),0,new_yllv2(VALUE(LEFT(Options!$B$14,2)),$C82,$D82,$E82,$F82,2016,$I82/10+$J82/10,1,$H82/10,$G82*$H82/10,RateRatios_airpollution!$C82)*10))","v":1121.9524171779999},{"$f":"IF(AND(OR(Calculations!$E$2=\"Orkney Health Board\",Calculations!$E$2=\"Orkney Islands Local Authority\"),$F82=1),0,IF(AND(OR(Calculations!$E$2=\"Shetland Health Board\",Calculations!$E$2=\"Western Isles Health Board\",Calculations!$E$2=\"Shetland Islands Local Authority\",Calculations!$E$2=\"Eilean Siar Local Authority\"),OR($F82=1,$F82=5)),0,hosp_count(VALUE(LEFT(Options!$B$14,2)),$C82,$E82,$F82,2016,$I82/10,1,$H82/10,$G82*$H82/10, RateRatios_airpollution!$D82, RateRatios_airpollution!$C82)*10))","v":2447.1256447280002},{"$f":"IF(AND(OR(Calculations!$E$2=\"Orkney Health Board\",Calculations!$E$2=\"Orkney Islands Local Authority\"),$F82=1),0,IF(AND(OR(Calculations!$E$2=\"Shetland Health Board\",Calculations!$E$2=\"Western Isles Health Board\",Calculations!$E$2=\"Shetland Islands Local Authority\",Calculations!$E$2=\"Eilean Siar Local Authority\"),OR($F82=1,$F82=5)),0,hosp_count(VALUE(LEFT(Options!$B$14,2)),$C82,$E82,$F82,2016,$I82/10+$J82/10,1,$H82/10,$G82*$H82/10, RateRatios_airpollution!$D82, RateRatios_airpollution!$C82)*10))","v":2447.0445946300001},{"$f":"IF(AND(OR(Calculations!$E$2=\"Orkney Health Board\",Calculations!$E$2=\"Orkney Islands Local Authority\"),$F82=1),0,IF(AND(OR(Calculations!$E$2=\"Shetland Health Board\",Calculations!$E$2=\"Western Isles Health Board\",Calculations!$E$2=\"Shetland Islands Local Authority\",Calculations!$E$2=\"Eilean Siar Local Authority\"),OR($F82=1,$F82=5)),0,prem_mort(VALUE(LEFT(Options!$B$14,2)),$C82,$E82,$F82,2016,$I82/10,1,$H82/10,$G82*$H82/10,RateRatios_airpollution!$C82)*10))","v":19.172456398000001},{"$f":"IF(AND(OR(Calculations!$E$2=\"Orkney Health Board\",Calculations!$E$2=\"Orkney Islands Local Authority\"),$F82=1),0,IF(AND(OR(Calculations!$E$2=\"Shetland Health Board\",Calculations!$E$2=\"Western Isles Health Board\",Calculations!$E$2=\"Shetland Islands Local Authority\",Calculations!$E$2=\"Eilean Siar Local Authority\"),OR($F82=1,$F82=5)),0,prem_mort(VALUE(LEFT(Options!$B$14,2)),$C82,$E82,$F82,2016,$I82/10+$J82/10,1,$H82/10,$G82*$H82/10,RateRatios_airpollution!$C82)*10))","v":19.172118572000002},null,{"$f":"IF(AND(OR(Calculations!$E$2=\"Orkney Health Board\",Calculations!$E$2=\"Orkney Islands Local Authority\"),$F82=1),0,IF(AND(OR(Calculations!$E$2=\"Shetland Health Board\",Calculations!$E$2=\"Western Isles Health Board\",Calculations!$E$2=\"Shetland Islands Local Authority\",Calculations!$E$2=\"Eilean Siar Local Authority\"),OR($F82=1,$F82=5)),0,new_ci(VALUE(LEFT(Options!$B$14,2)),$C82,$E82,$F82,2016,$I82/10,1,$H82/10,$G82*$H82/10,RateRatios_airpollution!$E82)*10))","v":19.172456398000001},{"$f":"IF(AND(OR(Calculations!$E$2=\"Orkney Health Board\",Calculations!$E$2=\"Orkney Islands Local Authority\"),$F82=1),0,IF(AND(OR(Calculations!$E$2=\"Shetland Health Board\",Calculations!$E$2=\"Western Isles Health Board\",Calculations!$E$2=\"Shetland Islands Local Authority\",Calculations!$E$2=\"Eilean Siar Local Authority\"),OR($F82=1,$F82=5)),0,new_ci(VALUE(LEFT(Options!$B$14,2)),$C82,$E82,$F82,2016,$I82/10+$J82/10,1,$H82/10,$G82*$H82/10,RateRatios_airpollution!$E82)*10))","v":19.172295978000001},{"$f":"IF(AND(OR(Calculations!$E$2=\"Orkney Health Board\",Calculations!$E$2=\"Orkney Islands Local Authority\"),$F82=1),0,IF(AND(OR(Calculations!$E$2=\"Shetland Health Board\",Calculations!$E$2=\"Western Isles Health Board\",Calculations!$E$2=\"Shetland Islands Local Authority\",Calculations!$E$2=\"Eilean Siar Local Authority\"),OR($F82=1,$F82=5)),0,new_yllv2(VALUE(LEFT(Options!$B$14,2)),$C82,$D82,$E82,$F82,2016,$I82/10,1,$H82/10,$G82*$H82/10,RateRatios_airpollution!$E82)*10))","v":1121.9721867559999},{"$f":"IF(AND(OR(Calculations!$E$2=\"Orkney Health Board\",Calculations!$E$2=\"Orkney Islands Local Authority\"),$F82=1),0,IF(AND(OR(Calculations!$E$2=\"Shetland Health Board\",Calculations!$E$2=\"Western Isles Health Board\",Calculations!$E$2=\"Shetland Islands Local Authority\",Calculations!$E$2=\"Eilean Siar Local Authority\"),OR($F82=1,$F82=5)),0,new_yllv2(VALUE(LEFT(Options!$B$14,2)),$C82,$D82,$E82,$F82,2016,$I82/10+$J82/10,1,$H82/10,$G82*$H82/10,RateRatios_airpollution!$E82)*10))","v":1121.9627989769999},{"$f":"IF(AND(OR(Calculations!$E$2=\"Orkney Health Board\",Calculations!$E$2=\"Orkney Islands Local Authority\"),$F82=1),0,IF(AND(OR(Calculations!$E$2=\"Shetland Health Board\",Calculations!$E$2=\"Western Isles Health Board\",Calculations!$E$2=\"Shetland Islands Local Authority\",Calculations!$E$2=\"Eilean Siar Local Authority\"),OR($F82=1,$F82=5)),0,hosp_count(VALUE(LEFT(Options!$B$14,2)),$C82,$E82,$F82,2016,$I82/10,1,$H82/10,$G82*$H82/10, RateRatios_airpollution!$F82, RateRatios_airpollution!$E82)*10))","v":2447.1256447280002},{"$f":"IF(AND(OR(Calculations!$E$2=\"Orkney Health Board\",Calculations!$E$2=\"Orkney Islands Local Authority\"),$F82=1),0,IF(AND(OR(Calculations!$E$2=\"Shetland Health Board\",Calculations!$E$2=\"Western Isles Health Board\",Calculations!$E$2=\"Shetland Islands Local Authority\",Calculations!$E$2=\"Eilean Siar Local Authority\"),OR($F82=1,$F82=5)),0,hosp_count(VALUE(LEFT(Options!$B$14,2)),$C82,$E82,$F82,2016,$I82/10+$J82/10,1,$H82/10,$G82*$H82/10, RateRatios_airpollution!$F82, RateRatios_airpollution!$E82)*10))","v":2447.1256447280002},{"$f":"IF(AND(OR(Calculations!$E$2=\"Orkney Health Board\",Calculations!$E$2=\"Orkney Islands Local Authority\"),$F82=1),0,IF(AND(OR(Calculations!$E$2=\"Shetland Health Board\",Calculations!$E$2=\"Western Isles Health Board\",Calculations!$E$2=\"Shetland Islands Local Authority\",Calculations!$E$2=\"Eilean Siar Local Authority\"),OR($F82=1,$F82=5)),0,prem_mort(VALUE(LEFT(Options!$B$14,2)),$C82,$E82,$F82,2016,$I82/10,1,$H82/10,$G82*$H82/10,RateRatios_airpollution!$E82)*10))","v":19.172456398000001},{"$f":"IF(AND(OR(Calculations!$E$2=\"Orkney Health Board\",Calculations!$E$2=\"Orkney Islands Local Authority\"),$F82=1),0,IF(AND(OR(Calculations!$E$2=\"Shetland Health Board\",Calculations!$E$2=\"Western Isles Health Board\",Calculations!$E$2=\"Shetland Islands Local Authority\",Calculations!$E$2=\"Eilean Siar Local Authority\"),OR($F82=1,$F82=5)),0,prem_mort(VALUE(LEFT(Options!$B$14,2)),$C82,$E82,$F82,2016,$I82/10+$J82/10,1,$H82/10,$G82*$H82/10,RateRatios_airpollution!$E82)*10))","v":19.172295978000001},19.172456398000001,19.166250956999999,1121.9721867559999,1121.6090443359999,2447.1256447280002,2446.316102492,19.172456398000001,19.166250956999999,75.604149998028319,75.579679628534251,4424.3550090934186,4422.9230030206236,9649.9295899996068,9646.7372628731428,75.604149998028319,75.579679628534251,332658.25999132462,332550.59036555071,19467162.040011041,19460861.213290744,42459690.195998266,42445643.956641831,332658.25999132462,332550.59036555071,4400]
[null,"Male 20-24",22.054632000000002,77.704629999999995,"male",1,1,{"$f":"HLOOKUP(Calculations!$E$2,'Population 2016'!$C$3:$BC$249,'Population 2016'!BD83,FALSE)","v":37180},0,{"$f":"HLOOKUP(Calculations!$E$2,Pop2016_in_settlements!$C$3:$BC$249,Pop2016_in_settlements!$BD83,FALSE)","v":27730},{"$f":"IF(AND(OR(Calculations!$E$2=\"Orkney Health Board\",Calculations!$E$2=\"Orkney Islands Local Authority\"),$F83=1),0,IF(AND(OR(Calculations!$E$2=\"Shetland Health Board\",Calculations!$E$2=\"Western Isles Health Board\",Calculations!$E$2=\"Shetland Islands Local Authority\",Calculations!$E$2=\"Eilean Siar Local Authority\"),OR($F83=1,$F83=5)),0,new_ci(VALUE(LEFT(Options!$B$14,2)),$C83,$E83,$F83,2016,$I83/10,1,$H83/10,$G83*$H83/10,RateRatios_accidents!$B$5)*10))","v":39.471202628},{"$f":"IF(AND(OR(Calculations!$E$2=\"Orkney Health Board\",Calculations!$E$2=\"Orkney Islands Local Authority\"),$F83=1),0,IF(AND(OR(Calculations!$E$2=\"Shetland Health Board\",Calculations!$E$2=\"Western Isles Health Board\",Calculations!$E$2=\"Shetland Islands Local Authority\",Calculations!$E$2=\"Eilean Siar Local Authority\"),OR($F83=1,$F83=5)),0,new_ci(VALUE(LEFT(Options!$B$14,2)),$C83,$E83,$F83,2016,$I83/10+$J83/10,1,$H83/10,$G83*$H83/10,RateRatios_accidents!$B$5)*10))","v":39.459434016000003},{"$f":"IF(AND(OR(Calculations!$E$2=\"Orkney Health Board\",Calculations!$E$2=\"Orkney Islands Local Authority\"),$F83=1),0,IF(AND(OR(Calculations!$E$2=\"Shetland Health Board\",Calculations!$E$2=\"Western Isles Health Board\",Calculations!$E$2=\"Shetland Islands Local Authority\",Calculations!$E$2=\"Eilean Siar Local Authority\"),OR($F83=1,$F83=5)),0,new_yllv2(VALUE(LEFT(Options!$B$14,2)),$C83,$D83,$E83,$F83,2016,$I83/10,1,$H83/10,$G83*$H83/10,RateRatios_accidents!$B$5)*10))","v":2157.1011446779999},{"$f":"IF(AND(OR(Calculations!$E$2=\"Orkney Health Board\",Calculations!$E$2=\"Orkney Islands Local Authority\"),$F83=1),0,IF(AND(OR(Calculations!$E$2=\"Shetland Health Board\",Calculations!$E$2=\"Western Isles Health Board\",Calculations!$E$2=\"Shetland Islands Local Authority\",Calculations!$E$2=\"Eilean Siar Local Authority\"),OR($F83=1,$F83=5)),0,new_yllv2(VALUE(LEFT(Options!$B$14,2)),$C83,$D83,$E83,$F83,2016,$I83/10+$J83/10,1,$H83/10,$G83*$H83/10,RateRatios_accidents!$B$5)*10))","v":2156.4579900560002},{"$f":"IF(AND(OR(Calculations!$E$2=\"Orkney Health Board\",Calculations!$E$2=\"Orkney Islands Local Authority\"),$F83=1),0,IF(AND(OR(Calculations!$E$2=\"Shetland Health Board\",Calculations!$E$2=\"Western Isles Health Board\",Calculations!$E$2=\"Shetland Islands Local Authority\",Calculations!$E$2=\"Eilean Siar Local Authority\"),OR($F83=1,$F83=5)),0,hosp_count(VALUE(LEFT(Options!$B$14,2)),$C83,$E83,$F83,2016,$I83/10,1,$H83/10,$G83*$H83/10, RateRatios_accidents!$B$4, RateRatios_accidents!$B$5)*10))","v":4208.9782071480004},{"$f":"IF(AND(OR(Calculations!$E$2=\"Orkney Health Board\",Calculations!$E$2=\"Orkney Islands Local Authority\"),$F83=1),0,IF(AND(OR(Calculations!$E$2=\"Shetland Health Board\",Calculations!$E$2=\"Western Isles Health Board\",Calculations!$E$2=\"Shetland Islands Local Authority\",Calculations!$E$2=\"Eilean Siar Local Authority\"),OR($F83=1,$F83=5)),0,hosp_count(VALUE(LEFT(Options!$B$14,2)),$C83,$E83,$F83,2016,$I83/10+$J83/10,1,$H83/10,$G83*$H83/10, RateRatios_accidents!$B$4, RateRatios_accidents!$B$5)*10))","v":4207.7225317419998},{"$f":"IF(AND(OR(Calculations!$E$2=\"Orkney Health Board\",Calculations!$E$2=\"Orkney Islands Local Authority\"),$F83=1),0,IF(AND(OR(Calculations!$E$2=\"Shetland Health Board\",Calculations!$E$2=\"Western Isles Health Board\",Calculations!$E$2=\"Shetland Islands Local Authority\",Calculations!$E$2=\"Eilean Siar Local Authority\"),OR($F83=1,$F83=5)),0,prem_mort(VALUE(LEFT(Options!$B$14,2)),$C83,$E83,$F83,2016,$I83/10,1,$H83/10,$G83*$H83/10,RateRatios_accidents!$B$5)*10))","v":39.471202628},{"$f":"IF(AND(OR(Calculations!$E$2=\"Orkney Health Board\",Calculations!$E$2=\"Orkney Islands Local Authority\"),$F83=1),0,IF(AND(OR(Calculations!$E$2=\"Shetland Health Board\",Calculations!$E$2=\"Western Isles Health Board\",Calculations!$E$2=\"Shetland Islands Local Authority\",Calculations!$E$2=\"Eilean Siar Local Authority\"),OR($F83=1,$F83=5)),0,prem_mort(VALUE(LEFT(Options!$B$14,2)),$C83,$E83,$F83,2016,$I83/10+$J83/10,1,$H83/10,$G83*$H83/10,RateRatios_accidents!$B$5)*10))","v":39.459434016000003},null,{"$f":"IF(AND(OR(Calculations!$E$2=\"Orkney Health Board\",Calculations!$E$2=\"Orkney Islands Local Authority\"),$F83=1),0,IF(AND(OR(Calculations!$E$2=\"Shetland Health Board\",Calculations!$E$2=\"Western Isles Health Board\",Calculations!$E$2=\"Shetland Islands Local Authority\",Calculations!$E$2=\"Eilean Siar Local Authority\"),OR($F83=1,$F83=5)),0,new_ci(VALUE(LEFT(Options!$B$14,2)),$C83,$E83,$F83,2016,$I83/10,1,$H83/10,$G83*$H83/10,RateRatios_airpollution!$C83)*10))","v":39.471202628},{"$f":"IF(AND(OR(Calculations!$E$2=\"Orkney Health Board\",Calculations!$E$2=\"Orkney Islands Local Authority\"),$F83=1),0,IF(AND(OR(Calculations!$E$2=\"Shetland Health Board\",Calculations!$E$2=\"Western Isles Health Board\",Calculations!$E$2=\"Shetland Islands Local Authority\",Calculations!$E$2=\"Eilean Siar Local Authority\"),OR($F83=1,$F83=5)),0,new_ci(VALUE(LEFT(Options!$B$14,2)),$C83,$E83,$F83,2016,$I83/10+$J83/10,1,$H83/10,$G83*$H83/10,RateRatios_airpollution!$C83)*10))","v":39.470456691000003},{"$f":"IF(AND(OR(Calculations!$E$2=\"Orkney Health Board\",Calculations!$E$2=\"Orkney Islands Local Authority\"),$F83=1),0,IF(AND(OR(Calculations!$E$2=\"Shetland Health Board\",Calculations!$E$2=\"Western Isles Health Board\",Calculations!$E$2=\"Shetland Islands Local Authority\",Calculations!$E$2=\"Eilean Siar Local Authority\"),OR($F83=1,$F83=5)),0,new_yllv2(VALUE(LEFT(Options!$B$14,2)),$C83,$D83,$E83,$F83,2016,$I83/10,1,$H83/10,$G83*$H83/10,RateRatios_airpollution!$C83)*10))","v":2157.1011446779999},{"$f":"IF(AND(OR(Calculations!$E$2=\"Orkney Health Board\",Calculations!$E$2=\"Orkney Islands Local Authority\"),$F83=1),0,IF(AND(OR(Calculations!$E$2=\"Shetland Health Board\",Calculations!$E$2=\"Western Isles Health Board\",Calculations!$E$2=\"Shetland Islands Local Authority\",Calculations!$E$2=\"Eilean Siar Local Authority\"),OR($F83=1,$F83=5)),0,new_yllv2(VALUE(LEFT(Options!$B$14,2)),$C83,$D83,$E83,$F83,2016,$I83/10+$J83/10,1,$H83/10,$G83*$H83/10,RateRatios_airpollution!$C83)*10))","v":2157.0603792219999},{"$f":"IF(AND(OR(Calculations!$E$2=\"Orkney Health Board\",Calculations!$E$2=\"Orkney Islands Local Authority\"),$F83=1),0,IF(AND(OR(Calculations!$E$2=\"Shetland Health Board\",Calculations!$E$2=\"Western Isles Health Board\",Calculations!$E$2=\"Shetland Islands Local Authority\",Calculations!$E$2=\"Eilean Siar Local Authority\"),OR($F83=1,$F83=5)),0,hosp_count(VALUE(LEFT(Options!$B$14,2)),$C83,$E83,$F83,2016,$I83/10,1,$H83/10,$G83*$H83/10, RateRatios_airpollution!$D83, RateRatios_airpollution!$C83)*10))","v":4208.9782071480004},{"$f":"IF(AND(OR(Calculations!$E$2=\"Orkney Health Board\",Calculations!$E$2=\"Orkney Islands Local Authority\"),$F83=1),0,IF(AND(OR(Calculations!$E$2=\"Shetland Health Board\",Calculations!$E$2=\"Western Isles Health Board\",Calculations!$E$2=\"Shetland Islands Local Authority\",Calculations!$E$2=\"Eilean Siar Local Authority\"),OR($F83=1,$F83=5)),0,hosp_count(VALUE(LEFT(Options!$B$14,2)),$C83,$E83,$F83,2016,$I83/10+$J83/10,1,$H83/10,$G83*$H83/10, RateRatios_airpollution!$D83, RateRatios_airpollution!$C83)*10))","v":4208.8280797009993},{"$f":"IF(AND(OR(Calculations!$E$2=\"Orkney Health Board\",Calculations!$E$2=\"Orkney Islands Local Authority\"),$F83=1),0,IF(AND(OR(Calculations!$E$2=\"Shetland Health Board\",Calculations!$E$2=\"Western Isles Health Board\",Calculations!$E$2=\"Shetland Islands Local Authority\",Calculations!$E$2=\"Eilean Siar Local Authority\"),OR($F83=1,$F83=5)),0,prem_mort(VALUE(LEFT(Options!$B$14,2)),$C83,$E83,$F83,2016,$I83/10,1,$H83/10,$G83*$H83/10,RateRatios_airpollution!$C83)*10))","v":39.471202628},{"$f":"IF(AND(OR(Calculations!$E$2=\"Orkney Health Board\",Calculations!$E$2=\"Orkney Islands Local Authority\"),$F83=1),0,IF(AND(OR(Calculations!$E$2=\"Shetland Health Board\",Calculations!$E$2=\"Western Isles Health Board\",Calculations!$E$2=\"Shetland Islands Local Authority\",Calculations!$E$2=\"Eilean Siar Local Authority\"),OR($F83=1,$F83=5)),0,prem_mort(VALUE(LEFT(Options!$B$14,2)),$C83,$E83,$F83,2016,$I83/10+$J83/10,1,$H83/10,$G83*$H83/10,RateRatios_airpollution!$C83)*10))","v":39.470456691000003},null,{"$f":"IF(AND(OR(Calculations!$E$2=\"Orkney Health Board\",Calculations!$E$2=\"Orkney Islands Local Authority\"),$F83=1),0,IF(AND(OR(Calculations!$E$2=\"Shetland Health Board\",Calculations!$E$2=\"Western Isles Health Board\",Calculations!$E$2=\"Shetland Islands Local Authority\",Calculations!$E$2=\"Eilean Siar Local Authority\"),OR($F83=1,$F83=5)),0,new_ci(VALUE(LEFT(Options!$B$14,2)),$C83,$E83,$F83,2016,$I83/10,1,$H83/10,$G83*$H83/10,RateRatios_airpollution!$E83)*10))","v":39.471202628},{"$f":"IF(AND(OR(Calculations!$E$2=\"Orkney Health Board\",Calculations!$E$2=\"Orkney Islands Local Authority\"),$F83=1),0,IF(AND(OR(Calculations!$E$2=\"Shetland Health Board\",Calculations!$E$2=\"Western Isles Health Board\",Calculations!$E$2=\"Shetland Islands Local Authority\",Calculations!$E$2=\"Eilean Siar Local Authority\"),OR($F83=1,$F83=5)),0,new_ci(VALUE(LEFT(Options!$B$14,2)),$C83,$E83,$F83,2016,$I83/10+$J83/10,1,$H83/10,$G83*$H83/10,RateRatios_airpollution!$E83)*10))","v":39.470856003000002},{"$f":"IF(AND(OR(Calculations!$E$2=\"Orkney Health Board\",Calculations!$E$2=\"Orkney Islands Local Authority\"),$F83=1),0,IF(AND(OR(Calculations!$E$2=\"Shetland Health Board\",Calculations!$E$2=\"Western Isles Health Board\",Calculations!$E$2=\"Shetland Islands Local Authority\",Calculations!$E$2=\"Eilean Siar Local Authority\"),OR($F83=1,$F83=5)),0,new_yllv2(VALUE(LEFT(Options!$B$14,2)),$C83,$D83,$E83,$F83,2016,$I83/10,1,$H83/10,$G83*$H83/10,RateRatios_airpollution!$E83)*10))","v":2157.1011446779999},{"$f":"IF(AND(OR(Calculations!$E$2=\"Orkney Health Board\",Calculations!$E$2=\"Orkney Islands Local Authority\"),$F83=1),0,IF(AND(OR(Calculations!$E$2=\"Shetland Health Board\",Calculations!$E$2=\"Western Isles Health Board\",Calculations!$E$2=\"Shetland Islands Local Authority\",Calculations!$E$2=\"Eilean Siar Local Authority\"),OR($F83=1,$F83=5)),0,new_yllv2(VALUE(LEFT(Options!$B$14,2)),$C83,$D83,$E83,$F83,2016,$I83/10+$J83/10,1,$H83/10,$G83*$H83/10,RateRatios_airpollution!$E83)*10))","v":2157.082201622},{"$f":"IF(AND(OR(Calculations!$E$2=\"Orkney Health Board\",Calculations!$E$2=\"Orkney Islands Local Authority\"),$F83=1),0,IF(AND(OR(Calculations!$E$2=\"Shetland Health Board\",Calculations!$E$2=\"Western Isles Health Board\",Calculations!$E$2=\"Shetland Islands Local Authority\",Calculations!$E$2=\"Eilean Siar Local Authority\"),OR($F83=1,$F83=5)),0,hosp_count(VALUE(LEFT(Options!$B$14,2)),$C83,$E83,$F83,2016,$I83/10,1,$H83/10,$G83*$H83/10, RateRatios_airpollution!$F83, RateRatios_airpollution!$E83)*10))","v":4208.9782071480004},{"$f":"IF(AND(OR(Calculations!$E$2=\"Orkney Health Board\",Calculations!$E$2=\"Orkney Islands Local Authority\"),$F83=1),0,IF(AND(OR(Calculations!$E$2=\"Shetland Health Board\",Calculations!$E$2=\"Western Isles Health Board\",Calculations!$E$2=\"Shetland Islands Local Authority\",Calculations!$E$2=\"Eilean Siar Local Authority\"),OR($F83=1,$F83=5)),0,hosp_count(VALUE(LEFT(Options!$B$14,2)),$C83,$E83,$F83,2016,$I83/10+$J83/10,1,$H83/10,$G83*$H83/10, RateRatios_airpollution!$F83, RateRatios_airpollution!$E83)*10))","v":4208.9782071480004},{"$f":"IF(AND(OR(Calculations!$E$2=\"Orkney Health Board\",Calculations!$E$2=\"Orkney Islands Local Authority\"),$F83=1),0,IF(AND(OR(Calculations!$E$2=\"Shetland Health Board\",Calculations!$E$2=\"Western Isles Health Board\",Calculations!$E$2=\"Shetland Islands Local Authority\",Calculations!$E$2=\"Eilean Siar Local Authority\"),OR($F83=1,$F83=5)),0,prem_mort(VALUE(LEFT(Options!$B$14,2)),$C83,$E83,$F83,2016,$I83/10,1,$H83/10,$G83*$H83/10,RateRatios_airpollution!$E83)*10))","v":39.471202628},{"$f":"IF(AND(OR(Calculations!$E$2=\"Orkney Health Board\",Calculations!$E$2=\"Orkney Islands Local Authority\"),$F83=1),0,IF(AND(OR(Calculations!$E$2=\"Shetland Health Board\",Calculations!$E$2=\"Western Isles Health Board\",Calculations!$E$2=\"Shetland Islands Local Authority\",Calculations!$E$2=\"Eilean Siar Local Authority\"),OR($F83=1,$F83=5)),0,prem_mort(VALUE(LEFT(Options!$B$14,2)),$C83,$E83,$F83,2016,$I83/10+$J83/10,1,$H83/10,$G83*$H83/10,RateRatios_airpollution!$E83)*10))","v":39.470856003000002},39.471202628,39.458341454000006,2157.1011446779999,2156.3982815440004,4208.9782071480004,4207.5724042949987,39.471202628,39.458341454000006,106.16246000000001,106.12786835395376,5801.7782266756321,5799.8877932867144,11320.543860000002,11316.762787237758,106.16246000000001,106.12786835395376,636974.76,636767.21012372256,34810669.360053793,34799326.759720288,67923263.160000011,67900576.723426551,636974.76,636767.21012372256,6000]
[null,"Male 25-29",26.959762999999999,77.789760000000001,"male",1,1,{"$f":"HLOOKUP(Calculations!$E$2,'Population 2016'!$C$3:$BC$249,'Population 2016'!BD84,FALSE)","v":42600},0,{"$f":"HLOOKUP(Calculations!$E$2,Pop2016_in_settlements!$C$3:$BC$249,Pop2016_in_settlements!$BD84,FALSE)","v":31356},{"$f":"IF(AND(OR(Calculations!$E$2=\"Orkney Health Board\",Calculations!$E$2=\"Orkney Islands Local Authority\"),$F84=1),0,IF(AND(OR(Calculations!$E$2=\"Shetland Health Board\",Calculations!$E$2=\"Western Isles Health Board\",Calculations!$E$2=\"Shetland Islands Local Authority\",Calculations!$E$2=\"Eilean Siar Local Authority\"),OR($F84=1,$F84=5)),0,new_ci(VALUE(LEFT(Options!$B$14,2)),$C84,$E84,$F84,2016,$I84/10,1,$H84/10,$G84*$H84/10,RateRatios_accidents!$B$5)*10))","v":65.479876380000007},{"$f":"IF(AND(OR(Calculations!$E$2=\"Orkney Health Board\",Calculations!$E$2=\"Orkney Islands Local Authority\"),$F84=1),0,IF(AND(OR(Calculations!$E$2=\"Shetland Health Board\",Calculations!$E$2=\"Western Isles Health Board\",Calculations!$E$2=\"Shetland Islands Local Authority\",Calculations!$E$2=\"Eilean Siar Local Authority\"),OR($F84=1,$F84=5)),0,new_ci(VALUE(LEFT(Options!$B$14,2)),$C84,$E84,$F84,2016,$I84/10+$J84/10,1,$H84/10,$G84*$H84/10,RateRatios_accidents!$B$5)*10))","v":65.460611254},{"$f":"IF(AND(OR(Calculations!$E$2=\"Orkney Health Board\",Calculations!$E$2=\"Orkney Islands Local Authority\"),$F84=1),0,IF(AND(OR(Calculations!$E$2=\"Shetland Health Board\",Calculations!$E$2=\"Western Isles Health Board\",Calculations!$E$2=\"Shetland Islands Local Authority\",Calculations!$E$2=\"Eilean Siar Local Authority\"),OR($F84=1,$F84=5)),0,new_yllv2(VALUE(LEFT(Options!$B$14,2)),$C84,$D84,$E84,$F84,2016,$I84/10,1,$H84/10,$G84*$H84/10,RateRatios_accidents!$B$5)*10))","v":3262.8620435760004},{"$f":"IF(AND(OR(Calculations!$E$2=\"Orkney Health Board\",Calculations!$E$2=\"Orkney Islands Local Authority\"),$F84=1),0,IF(AND(OR(Calculations!$E$2=\"Shetland Health Board\",Calculations!$E$2=\"Western Isles Health Board\",Calculations!$E$2=\"Shetland Islands Local Authority\",Calculations!$E$2=\"Eilean Siar Local Authority\"),OR($F84=1,$F84=5)),0,new_yllv2(VALUE(LEFT(Options!$B$14,2)),$C84,$D84,$E84,$F84,2016,$I84/10+$J84/10,1,$H84/10,$G84*$H84/10,RateRatios_accidents!$B$5)*10))","v":3261.9020624049999},{"$f":"IF(AND(OR(Calculations!$E$2=\"Orkney Health Board\",Calculations!$E$2=\"Orkney Islands Local Authority\"),$F84=1),0,IF(AND(OR(Calculations!$E$2=\"Shetland Health Board\",Calculations!$E$2=\"Western Isles Health Board\",Calculations!$E$2=\"Shetland Islands Local Authority\",Calculations!$E$2=\"Eilean Siar Local Authority\"),OR($F84=1,$F84=5)),0,hosp_count(VALUE(LEFT(Options!$B$14,2)),$C84,$E84,$F84,2016,$I84/10,1,$H84/10,$G84*$H84/10, RateRatios_accidents!$B$4, RateRatios_accidents!$B$5)*10))","v":5739.7274435999998},{"$f":"IF(AND(OR(Calculations!$E$2=\"Orkney Health Board\",Calculations!$E$2=\"Orkney Islands Local Authority\"),$F84=1),0,IF(AND(OR(Calculations!$E$2=\"Shetland Health Board\",Calculations!$E$2=\"Western Isles Health Board\",Calculations!$E$2=\"Shetland Islands Local Authority\",Calculations!$E$2=\"Eilean Siar Local Authority\"),OR($F84=1,$F84=5)),0,hosp_count(VALUE(LEFT(Options!$B$14,2)),$C84,$E84,$F84,2016,$I84/10+$J84/10,1,$H84/10,$G84*$H84/10, RateRatios_accidents!$B$4, RateRatios_accidents!$B$5)*10))","v":5738.0375370649999},{"$f":"IF(AND(OR(Calculations!$E$2=\"Orkney Health Board\",Calculations!$E$2=\"Orkney Islands Local Authority\"),$F84=1),0,IF(AND(OR(Calculations!$E$2=\"Shetland Health Board\",Calculations!$E$2=\"Western Isles Health Board\",Calculations!$E$2=\"Shetland Islands Local Authority\",Calculations!$E$2=\"Eilean Siar Local Authority\"),OR($F84=1,$F84=5)),0,prem_mort(VALUE(LEFT(Options!$B$14,2)),$C84,$E84,$F84,2016,$I84/10,1,$H84/10,$G84*$H84/10,RateRatios_accidents!$B$5)*10))","v":65.479876380000007},{"$f":"IF(AND(OR(Calculations!$E$2=\"Orkney Health Board\",Calculations!$E$2=\"Orkney Islands Local Authority\"),$F84=1),0,IF(AND(OR(Calculations!$E$2=\"Shetland Health Board\",Calculations!$E$2=\"Western Isles Health Board\",Calculations!$E$2=\"Shetland Islands Local Authority\",Calculations!$E$2=\"Eilean Siar Local Authority\"),OR($F84=1,$F84=5)),0,prem_mort(VALUE(LEFT(Options!$B$14,2)),$C84,$E84,$F84,2016,$I84/10+$J84/10,1,$H84/10,$G84*$H84/10,RateRatios_accidents!$B$5)*10))","v":65.460611254},null,{"$f":"IF(AND(OR(Calculations!$E$2=\"Orkney Health Board\",Calculations!$E$2=\"Orkney Islands Local Authority\"),$F84=1),0,IF(AND(OR(Calculations!$E$2=\"Shetland Health Board\",Calculations!$E$2=\"Western Isles Health Board\",Calculations!$E$2=\"Shetland Islands Local Authority\",Calculations!$E$2=\"Eilean Siar Local Authority\"),OR($F84=1,$F84=5)),0,new_ci(VALUE(LEFT(Options!$B$14,2)),$C84,$E84,$F84,2016,$I84/10,1,$H84/10,$G84*$H84/10,RateRatios_airpollution!$C84)*10))","v":65.479876380000007},{"$f":"IF(AND(OR(Calculations!$E$2=\"Orkney Health Board\",Calculations!$E$2=\"Orkney Islands Local Authority\"),$F84=1),0,IF(AND(OR(Calculations!$E$2=\"Shetland Health Board\",Calculations!$E$2=\"Western Isles Health Board\",Calculations!$E$2=\"Shetland Islands Local Authority\",Calculations!$E$2=\"Eilean Siar Local Authority\"),OR($F84=1,$F84=5)),0,new_ci(VALUE(LEFT(Options!$B$14,2)),$C84,$E84,$F84,2016,$I84/10+$J84/10,1,$H84/10,$G84*$H84/10,RateRatios_airpollution!$C84)*10))","v":65.478581376999998},{"$f":"IF(AND(OR(Calculations!$E$2=\"Orkney Health Board\",Calculations!$E$2=\"Orkney Islands Local Authority\"),$F84=1),0,IF(AND(OR(Calculations!$E$2=\"Shetland Health Board\",Calculations!$E$2=\"Western Isles Health Board\",Calculations!$E$2=\"Shetland Islands Local Authority\",Calculations!$E$2=\"Eilean Siar Local Authority\"),OR($F84=1,$F84=5)),0,new_yllv2(VALUE(LEFT(Options!$B$14,2)),$C84,$D84,$E84,$F84,2016,$I84/10,1,$H84/10,$G84*$H84/10,RateRatios_airpollution!$C84)*10))","v":3262.8620435760004},{"$f":"IF(AND(OR(Calculations!$E$2=\"Orkney Health Board\",Calculations!$E$2=\"Orkney Islands Local Authority\"),$F84=1),0,IF(AND(OR(Calculations!$E$2=\"Shetland Health Board\",Calculations!$E$2=\"Western Isles Health Board\",Calculations!$E$2=\"Shetland Islands Local Authority\",Calculations!$E$2=\"Eilean Siar Local Authority\"),OR($F84=1,$F84=5)),0,new_yllv2(VALUE(LEFT(Options!$B$14,2)),$C84,$D84,$E84,$F84,2016,$I84/10+$J84/10,1,$H84/10,$G84*$H84/10,RateRatios_airpollution!$C84)*10))","v":3262.7975135799998},{"$f":"IF(AND(OR(Calculations!$E$2=\"Orkney Health Board\",Calculations!$E$2=\"Orkney Islands Local Authority\"),$F84=1),0,IF(AND(OR(Calculations!$E$2=\"Shetland Health Board\",Calculations!$E$2=\"Western Isles Health Board\",Calculations!$E$2=\"Shetland Islands Local Authority\",Calculations!$E$2=\"Eilean Siar Local Authority\"),OR($F84=1,$F84=5)),0,hosp_count(VALUE(LEFT(Options!$B$14,2)),$C84,$E84,$F84,2016,$I84/10,1,$H84/10,$G84*$H84/10, RateRatios_airpollution!$D84, RateRatios_airpollution!$C84)*10))","v":5739.7274435999998},{"$f":"IF(AND(OR(Calculations!$E$2=\"Orkney Health Board\",Calculations!$E$2=\"Orkney Islands Local Authority\"),$F84=1),0,IF(AND(OR(Calculations!$E$2=\"Shetland Health Board\",Calculations!$E$2=\"Western Isles Health Board\",Calculations!$E$2=\"Shetland Islands Local Authority\",Calculations!$E$2=\"Eilean Siar Local Authority\"),OR($F84=1,$F84=5)),0,hosp_count(VALUE(LEFT(Options!$B$14,2)),$C84,$E84,$F84,2016,$I84/10+$J84/10,1,$H84/10,$G84*$H84/10, RateRatios_airpollution!$D84, RateRatios_airpollution!$C84)*10))","v":5739.5141350029999},{"$f":"IF(AND(OR(Calculations!$E$2=\"Orkney Health Board\",Calculations!$E$2=\"Orkney Islands Local Authority\"),$F84=1),0,IF(AND(OR(Calculations!$E$2=\"Shetland Health Board\",Calculations!$E$2=\"Western Isles Health Board\",Calculations!$E$2=\"Shetland Islands Local Authority\",Calculations!$E$2=\"Eilean Siar Local Authority\"),OR($F84=1,$F84=5)),0,prem_mort(VALUE(LEFT(Options!$B$14,2)),$C84,$E84,$F84,2016,$I84/10,1,$H84/10,$G84*$H84/10,RateRatios_airpollution!$C84)*10))","v":65.479876380000007},{"$f":"IF(AND(OR(Calculations!$E$2=\"Orkney Health Board\",Calculations!$E$2=\"Orkney Islands Local Authority\"),$F84=1),0,IF(AND(OR(Calculations!$E$2=\"Shetland Health Board\",Calculations!$E$2=\"Western Isles Health Board\",Calculations!$E$2=\"Shetland Islands Local Authority\",Calculations!$E$2=\"Eilean Siar Local Authority\"),OR($F84=1,$F84=5)),0,prem_mort(VALUE(LEFT(Options!$B$14,2)),$C84,$E84,$F84,2016,$I84/10+$J84/10,1,$H84/10,$G84*$H84/10,RateRatios_airpollution!$C84)*10))","v":65.478581376999998},null,{"$f":"IF(AND(OR(Calculations!$E$2=\"Orkney Health Board\",Calculations!$E$2=\"Orkney Islands Local Authority\"),$F84=1),0,IF(AND(OR(Calculations!$E$2=\"Shetland Health Board\",Calculations!$E$2=\"Western Isles Health Board\",Calculations!$E$2=\"Shetland Islands Local Authority\",Calculations!$E$2=\"Eilean Siar Local Authority\"),OR($F84=1,$F84=5)),0,new_ci(VALUE(LEFT(Options!$B$14,2)),$C84,$E84,$F84,2016,$I84/10,1,$H84/10,$G84*$H84/10,RateRatios_airpollution!$E84)*10))","v":65.479876380000007},{"$f":"IF(AND(OR(Calculations!$E$2=\"Orkney Health Board\",Calculations!$E$2=\"Orkney Islands Local Authority\"),$F84=1),0,IF(AND(OR(Calculations!$E$2=\"Shetland Health Board\",Calculations!$E$2=\"Western Isles Health Board\",Calculations!$E$2=\"Shetland Islands Local Authority\",Calculations!$E$2=\"Eilean Siar Local Authority\"),OR($F84=1,$F84=5)),0,new_ci(VALUE(LEFT(Options!$B$14,2)),$C84,$E84,$F84,2016,$I84/10+$J84/10,1,$H84/10,$G84*$H84/10,RateRatios_airpollution!$E84)*10))","v":65.479274344999993},{"$f":"IF(AND(OR(Calculations!$E$2=\"Orkney Health Board\",Calculations!$E$2=\"Orkney Islands Local Authority\"),$F84=1),0,IF(AND(OR(Calculations!$E$2=\"Shetland Health Board\",Calculations!$E$2=\"Western Isles Health Board\",Calculations!$E$2=\"Shetland Islands Local Authority\",Calculations!$E$2=\"Eilean Siar Local Authority\"),OR($F84=1,$F84=5)),0,new_yllv2(VALUE(LEFT(Options!$B$14,2)),$C84,$D84,$E84,$F84,2016,$I84/10,1,$H84/10,$G84*$H84/10,RateRatios_airpollution!$E84)*10))","v":3262.8620435760004},{"$f":"IF(AND(OR(Calculations!$E$2=\"Orkney Health Board\",Calculations!$E$2=\"Orkney Islands Local Authority\"),$F84=1),0,IF(AND(OR(Calculations!$E$2=\"Shetland Health Board\",Calculations!$E$2=\"Western Isles Health Board\",Calculations!$E$2=\"Shetland Islands Local Authority\",Calculations!$E$2=\"Eilean Siar Local Authority\"),OR($F84=1,$F84=5)),0,new_yllv2(VALUE(LEFT(Options!$B$14,2)),$C84,$D84,$E84,$F84,2016,$I84/10+$J84/10,1,$H84/10,$G84*$H84/10,RateRatios_airpollution!$E84)*10))","v":3262.8320441739997},{"$f":"IF(AND(OR(Calculations!$E$2=\"Orkney Health Board\",Calculations!$E$2=\"Orkney Islands Local Authority\"),$F84=1),0,IF(AND(OR(Calculations!$E$2=\"Shetland Health Board\",Calculations!$E$2=\"Western Isles Health Board\",Calculations!$E$2=\"Shetland Islands Local Authority\",Calculations!$E$2=\"Eilean Siar Local Authority\"),OR($F84=1,$F84=5)),0,hosp_count(VALUE(LEFT(Options!$B$14,2)),$C84,$E84,$F84,2016,$I84/10,1,$H84/10,$G84*$H84/10, RateRatios_airpollution!$F84, RateRatios_airpollution!$E84)*10))","v":5739.7274435999998},{"$f":"IF(AND(OR(Calculations!$E$2=\"Orkney Health Board\",Calculations!$E$2=\"Orkney Islands Local Authority\"),$F84=1),0,IF(AND(OR(Calculations!$E$2=\"Shetland Health Board\",Calculations!$E$2=\"Western Isles Health Board\",Calculations!$E$2=\"Shetland Islands Local Authority\",Calculations!$E$2=\"Eilean Siar Local Authority\"),OR($F84=1,$F84=5)),0,hosp_count(VALUE(LEFT(Options!$B$14,2)),$C84,$E84,$F84,2016,$I84/10+$J84/10,1,$H84/10,$G84*$H84/10, RateRatios_airpollution!$F84, RateRatios_airpollution!$E84)*10))","v":5739.7274435999998},{"$f":"IF(AND(OR(Calculations!$E$2=\"Orkney Health Board\",Calculations!$E$2=\"Orkney Islands Local Authority\"),$F84=1),0,IF(AND(OR(Calculations!$E$2=\"Shetland Health Board\",Calculations!$E$2=\"Western Isles Health Board\",Calculations!$E$2=\"Shetland Islands Local Authority\",Calculations!$E$2=\"Eilean Siar Local Authority\"),OR($F84=1,$F84=5)),0,prem_mort(VALUE(LEFT(Options!$B$14,2)),$C84,$E84,$F84,2016,$I84/10,1,$H84/10,$G84*$H84/10,RateRatios_airpollution!$E84)*10))","v":65.479876380000007},{"$f":"IF(AND(OR(Calculations!$E$2=\"Orkney Health Board\",Calculations!$E$2=\"Orkney Islands Local Authority\"),$F84=1),0,IF(AND(OR(Calculations!$E$2=\"Shetland Health Board\",Calculations!$E$2=\"Western Isles Health Board\",Calculations!$E$2=\"Shetland Islands Local Authority\",Calculations!$E$2=\"Eilean Siar Local Authority\"),OR($F84=1,$F84=5)),0,prem_mort(VALUE(LEFT(Options!$B$14,2)),$C84,$E84,$F84,2016,$I84/10+$J84/10,1,$H84/10,$G84*$H84/10,RateRatios_airpollution!$E84)*10))","v":65.479274344999993},65.479876380000007,65.458714215999976,3262.8620435760004,3261.8075330069987,5739.7274435999998,5737.824228468,65.479876380000007,65.458714215999976,153.70863000000003,153.65895355868537,7659.3005717746482,7656.8251948521101,13473.5386,13469.07095884507,153.70863000000003,153.65895355868537,922251.78000000014,921953.72135211225,45955803.430647887,45940951.16911266,80841231.599999994,80814425.753070414,922251.78000000014,921953.72135211225,6000]
[null,"Male 30-34",31.981521999999998,78.061520000000002,"male",1,1,{"$f":"HLOOKUP(Calculations!$E$2,'Population 2016'!$C$3:$BC$249,'Population 2016'!BD85,FALSE)","v":38006},0,{"$f":"HLOOKUP(Calculations!$E$2,Pop2016_in_settlements!$C$3:$BC$249,Pop2016_in_settlements!$BD85,FALSE)","v":27657},{"$f":"IF(AND(OR(Calculations!$E$2=\"Orkney Health Board\",Calculations!$E$2=\"Orkney Islands Local Authority\"),$F85=1),0,IF(AND(OR(Calculations!$E$2=\"Shetland Health Board\",Calculations!$E$2=\"Western Isles Health Board\",Calculations!$E$2=\"Shetland Islands Local Authority\",Calculations!$E$2=\"Eilean Siar Local Authority\"),OR($F85=1,$F85=5)),0,new_ci(VALUE(LEFT(Options!$B$14,2)),$C85,$E85,$F85,2016,$I85/10,1,$H85/10,$G85*$H85/10,RateRatios_accidents!$B$5)*10))","v":85.320045658999987},{"$f":"IF(AND(OR(Calculations!$E$2=\"Orkney Health Board\",Calculations!$E$2=\"Orkney Islands Local Authority\"),$F85=1),0,IF(AND(OR(Calculations!$E$2=\"Shetland Health Board\",Calculations!$E$2=\"Western Isles Health Board\",Calculations!$E$2=\"Shetland Islands Local Authority\",Calculations!$E$2=\"Eilean Siar Local Authority\"),OR($F85=1,$F85=5)),0,new_ci(VALUE(LEFT(Options!$B$14,2)),$C85,$E85,$F85,2016,$I85/10+$J85/10,1,$H85/10,$G85*$H85/10,RateRatios_accidents!$B$5)*10))","v":85.295237329999992},{"$f":"IF(AND(OR(Calculations!$E$2=\"Orkney Health Board\",Calculations!$E$2=\"Orkney Islands Local Authority\"),$F85=1),0,IF(AND(OR(Calculations!$E$2=\"Shetland Health Board\",Calculations!$E$2=\"Western Isles Health Board\",Calculations!$E$2=\"Shetland Islands Local Authority\",Calculations!$E$2=\"Eilean Siar Local Authority\"),OR($F85=1,$F85=5)),0,new_yllv2(VALUE(LEFT(Options!$B$14,2)),$C85,$D85,$E85,$F85,2016,$I85/10,1,$H85/10,$G85*$H85/10,RateRatios_accidents!$B$5)*10))","v":3846.2274876679999},{"$f":"IF(AND(OR(Calculations!$E$2=\"Orkney Health Board\",Calculations!$E$2=\"Orkney Islands Local Authority\"),$F85=1),0,IF(AND(OR(Calculations!$E$2=\"Shetland Health Board\",Calculations!$E$2=\"Western Isles Health Board\",Calculations!$E$2=\"Shetland Islands Local Authority\",Calculations!$E$2=\"Eilean Siar Local Authority\"),OR($F85=1,$F85=5)),0,new_yllv2(VALUE(LEFT(Options!$B$14,2)),$C85,$D85,$E85,$F85,2016,$I85/10+$J85/10,1,$H85/10,$G85*$H85/10,RateRatios_accidents!$B$5)*10))","v":3845.1091282459997},{"$f":"IF(AND(OR(Calculations!$E$2=\"Orkney Health Board\",Calculations!$E$2=\"Orkney Islands Local Authority\"),$F85=1),0,IF(AND(OR(Calculations!$E$2=\"Shetland Health Board\",Calculations!$E$2=\"Western Isles Health Board\",Calculations!$E$2=\"Shetland Islands Local Authority\",Calculations!$E$2=\"Eilean Siar Local Authority\"),OR($F85=1,$F85=5)),0,hosp_count(VALUE(LEFT(Options!$B$14,2)),$C85,$E85,$F85,2016,$I85/10,1,$H85/10,$G85*$H85/10, RateRatios_accidents!$B$4, RateRatios_accidents!$B$5)*10))","v":6119.924678546},{"$f":"IF(AND(OR(Calculations!$E$2=\"Orkney Health Board\",Calculations!$E$2=\"Orkney Islands Local Authority\"),$F85=1),0,IF(AND(OR(Calculations!$E$2=\"Shetland Health Board\",Calculations!$E$2=\"Western Isles Health Board\",Calculations!$E$2=\"Shetland Islands Local Authority\",Calculations!$E$2=\"Eilean Siar Local Authority\"),OR($F85=1,$F85=5)),0,hosp_count(VALUE(LEFT(Options!$B$14,2)),$C85,$E85,$F85,2016,$I85/10+$J85/10,1,$H85/10,$G85*$H85/10, RateRatios_accidents!$B$4, RateRatios_accidents!$B$5)*10))","v":6118.143288411},{"$f":"IF(AND(OR(Calculations!$E$2=\"Orkney Health Board\",Calculations!$E$2=\"Orkney Islands Local Authority\"),$F85=1),0,IF(AND(OR(Calculations!$E$2=\"Shetland Health Board\",Calculations!$E$2=\"Western Isles Health Board\",Calculations!$E$2=\"Shetland Islands Local Authority\",Calculations!$E$2=\"Eilean Siar Local Authority\"),OR($F85=1,$F85=5)),0,prem_mort(VALUE(LEFT(Options!$B$14,2)),$C85,$E85,$F85,2016,$I85/10,1,$H85/10,$G85*$H85/10,RateRatios_accidents!$B$5)*10))","v":85.320045658999987},{"$f":"IF(AND(OR(Calculations!$E$2=\"Orkney Health Board\",Calculations!$E$2=\"Orkney Islands Local Authority\"),$F85=1),0,IF(AND(OR(Calculations!$E$2=\"Shetland Health Board\",Calculations!$E$2=\"Western Isles Health Board\",Calculations!$E$2=\"Shetland Islands Local Authority\",Calculations!$E$2=\"Eilean Siar Local Authority\"),OR($F85=1,$F85=5)),0,prem_mort(VALUE(LEFT(Options!$B$14,2)),$C85,$E85,$F85,2016,$I85/10+$J85/10,1,$H85/10,$G85*$H85/10,RateRatios_accidents!$B$5)*10))","v":85.295237329999992},null,{"$f":"IF(AND(OR(Calculations!$E$2=\"Orkney Health Board\",Calculations!$E$2=\"Orkney Islands Local Authority\"),$F85=1),0,IF(AND(OR(Calculations!$E$2=\"Shetland Health Board\",Calculations!$E$2=\"Western Isles Health Board\",Calculations!$E$2=\"Shetland Islands Local Authority\",Calculations!$E$2=\"Eilean Siar Local Authority\"),OR($F85=1,$F85=5)),0,new_ci(VALUE(LEFT(Options!$B$14,2)),$C85,$E85,$F85,2016,$I85/10,1,$H85/10,$G85*$H85/10,RateRatios_airpollution!$C85)*10))","v":85.320045658999987},{"$f":"IF(AND(OR(Calculations!$E$2=\"Orkney Health Board\",Calculations!$E$2=\"Orkney Islands Local Authority\"),$F85=1),0,IF(AND(OR(Calculations!$E$2=\"Shetland Health Board\",Calculations!$E$2=\"Western Isles Health Board\",Calculations!$E$2=\"Shetland Islands Local Authority\",Calculations!$E$2=\"Eilean Siar Local Authority\"),OR($F85=1,$F85=5)),0,new_ci(VALUE(LEFT(Options!$B$14,2)),$C85,$E85,$F85,2016,$I85/10+$J85/10,1,$H85/10,$G85*$H85/10,RateRatios_airpollution!$C85)*10))","v":85.318394537000003},{"$f":"IF(AND(OR(Calculations!$E$2=\"Orkney Health Board\",Calculations!$E$2=\"Orkney Islands Local Authority\"),$F85=1),0,IF(AND(OR(Calculations!$E$2=\"Shetland Health Board\",Calculations!$E$2=\"Western Isles Health Board\",Calculations!$E$2=\"Shetland Islands Local Authority\",Calculations!$E$2=\"Eilean Siar Local Authority\"),OR($F85=1,$F85=5)),0,new_yllv2(VALUE(LEFT(Options!$B$14,2)),$C85,$D85,$E85,$F85,2016,$I85/10,1,$H85/10,$G85*$H85/10,RateRatios_airpollution!$C85)*10))","v":3846.2274876679999},{"$f":"IF(AND(OR(Calculations!$E$2=\"Orkney Health Board\",Calculations!$E$2=\"Orkney Islands Local Authority\"),$F85=1),0,IF(AND(OR(Calculations!$E$2=\"Shetland Health Board\",Calculations!$E$2=\"Western Isles Health Board\",Calculations!$E$2=\"Shetland Islands Local Authority\",Calculations!$E$2=\"Eilean Siar Local Authority\"),OR($F85=1,$F85=5)),0,new_yllv2(VALUE(LEFT(Options!$B$14,2)),$C85,$D85,$E85,$F85,2016,$I85/10+$J85/10,1,$H85/10,$G85*$H85/10,RateRatios_airpollution!$C85)*10))","v":3846.1530550909997},{"$f":"IF(AND(OR(Calculations!$E$2=\"Orkney Health Board\",Calculations!$E$2=\"Orkney Islands Local Authority\"),$F85=1),0,IF(AND(OR(Calculations!$E$2=\"Shetland Health Board\",Calculations!$E$2=\"Western Isles Health Board\",Calculations!$E$2=\"Shetland Islands Local Authority\",Calculations!$E$2=\"Eilean Siar Local Authority\"),OR($F85=1,$F85=5)),0,hosp_count(VALUE(LEFT(Options!$B$14,2)),$C85,$E85,$F85,2016,$I85/10,1,$H85/10,$G85*$H85/10, RateRatios_airpollution!$D85, RateRatios_airpollution!$C85)*10))","v":6119.924678546},{"$f":"IF(AND(OR(Calculations!$E$2=\"Orkney Health Board\",Calculations!$E$2=\"Orkney Islands Local Authority\"),$F85=1),0,IF(AND(OR(Calculations!$E$2=\"Shetland Health Board\",Calculations!$E$2=\"Western Isles Health Board\",Calculations!$E$2=\"Shetland Islands Local Authority\",Calculations!$E$2=\"Eilean Siar Local Authority\"),OR($F85=1,$F85=5)),0,hosp_count(VALUE(LEFT(Options!$B$14,2)),$C85,$E85,$F85,2016,$I85/10+$J85/10,1,$H85/10,$G85*$H85/10, RateRatios_airpollution!$D85, RateRatios_airpollution!$C85)*10))","v":6119.7013316770008},{"$f":"IF(AND(OR(Calculations!$E$2=\"Orkney Health Board\",Calculations!$E$2=\"Orkney Islands Local Authority\"),$F85=1),0,IF(AND(OR(Calculations!$E$2=\"Shetland Health Board\",Calculations!$E$2=\"Western Isles Health Board\",Calculations!$E$2=\"Shetland Islands Local Authority\",Calculations!$E$2=\"Eilean Siar Local Authority\"),OR($F85=1,$F85=5)),0,prem_mort(VALUE(LEFT(Options!$B$14,2)),$C85,$E85,$F85,2016,$I85/10,1,$H85/10,$G85*$H85/10,RateRatios_airpollution!$C85)*10))","v":85.320045658999987},{"$f":"IF(AND(OR(Calculations!$E$2=\"Orkney Health Board\",Calculations!$E$2=\"Orkney Islands Local Authority\"),$F85=1),0,IF(AND(OR(Calculations!$E$2=\"Shetland Health Board\",Calculations!$E$2=\"Western Isles Health Board\",Calculations!$E$2=\"Shetland Islands Local Authority\",Calculations!$E$2=\"Eilean Siar Local Authority\"),OR($F85=1,$F85=5)),0,prem_mort(VALUE(LEFT(Options!$B$14,2)),$C85,$E85,$F85,2016,$I85/10+$J85/10,1,$H85/10,$G85*$H85/10,RateRatios_airpollution!$C85)*10))","v":85.318394537000003},null,{"$f":"IF(AND(OR(Calculations!$E$2=\"Orkney Health Board\",Calculations!$E$2=\"Orkney Islands Local Authority\"),$F85=1),0,IF(AND(OR(Calculations!$E$2=\"Shetland Health Board\",Calculations!$E$2=\"Western Isles Health Board\",Calculations!$E$2=\"Shetland Islands Local Authority\",Calculations!$E$2=\"Eilean Siar Local Authority\"),OR($F85=1,$F85=5)),0,new_ci(VALUE(LEFT(Options!$B$14,2)),$C85,$E85,$F85,2016,$I85/10,1,$H85/10,$G85*$H85/10,RateRatios_airpollution!$E85)*10))","v":85.320045658999987},{"$f":"IF(AND(OR(Calculations!$E$2=\"Orkney Health Board\",Calculations!$E$2=\"Orkney Islands Local Authority\"),$F85=1),0,IF(AND(OR(Calculations!$E$2=\"Shetland Health Board\",Calculations!$E$2=\"Western Isles Health Board\",Calculations!$E$2=\"Shetland Islands Local Authority\",Calculations!$E$2=\"Eilean Siar Local Authority\"),OR($F85=1,$F85=5)),0,new_ci(VALUE(LEFT(Options!$B$14,2)),$C85,$E85,$F85,2016,$I85/10+$J85/10,1,$H85/10,$G85*$H85/10,RateRatios_airpollution!$E85)*10))","v":85.319276795000007},{"$f":"IF(AND(OR(Calculations!$E$2=\"Orkney Health Board\",Calculations!$E$2=\"Orkney Islands Local Authority\"),$F85=1),0,IF(AND(OR(Calculations!$E$2=\"Shetland Health Board\",Calculations!$E$2=\"Western Isles Health Board\",Calculations!$E$2=\"Shetland Islands Local Authority\",Calculations!$E$2=\"Eilean Siar Local Authority\"),OR($F85=1,$F85=5)),0,new_yllv2(VALUE(LEFT(Options!$B$14,2)),$C85,$D85,$E85,$F85,2016,$I85/10,1,$H85/10,$G85*$H85/10,RateRatios_airpollution!$E85)*10))","v":3846.2274876679999},{"$f":"IF(AND(OR(Calculations!$E$2=\"Orkney Health Board\",Calculations!$E$2=\"Orkney Islands Local Authority\"),$F85=1),0,IF(AND(OR(Calculations!$E$2=\"Shetland Health Board\",Calculations!$E$2=\"Western Isles Health Board\",Calculations!$E$2=\"Shetland Islands Local Authority\",Calculations!$E$2=\"Eilean Siar Local Authority\"),OR($F85=1,$F85=5)),0,new_yllv2(VALUE(LEFT(Options!$B$14,2)),$C85,$D85,$E85,$F85,2016,$I85/10+$J85/10,1,$H85/10,$G85*$H85/10,RateRatios_airpollution!$E85)*10))","v":3846.1928272799996},{"$f":"IF(AND(OR(Calculations!$E$2=\"Orkney Health Board\",Calculations!$E$2=\"Orkney Islands Local Authority\"),$F85=1),0,IF(AND(OR(Calculations!$E$2=\"Shetland Health Board\",Calculations!$E$2=\"Western Isles Health Board\",Calculations!$E$2=\"Shetland Islands Local Authority\",Calculations!$E$2=\"Eilean Siar Local Authority\"),OR($F85=1,$F85=5)),0,hosp_count(VALUE(LEFT(Options!$B$14,2)),$C85,$E85,$F85,2016,$I85/10,1,$H85/10,$G85*$H85/10, RateRatios_airpollution!$F85, RateRatios_airpollution!$E85)*10))","v":6119.924678546},{"$f":"IF(AND(OR(Calculations!$E$2=\"Orkney Health Board\",Calculations!$E$2=\"Orkney Islands Local Authority\"),$F85=1),0,IF(AND(OR(Calculations!$E$2=\"Shetland Health Board\",Calculations!$E$2=\"Western Isles Health Board\",Calculations!$E$2=\"Shetland Islands Local Authority\",Calculations!$E$2=\"Eilean Siar Local Authority\"),OR($F85=1,$F85=5)),0,hosp_count(VALUE(LEFT(Options!$B$14,2)),$C85,$E85,$F85,2016,$I85/10+$J85/10,1,$H85/10,$G85*$H85/10, RateRatios_airpollution!$F85, RateRatios_airpollution!$E85)*10))","v":6119.924678546},{"$f":"IF(AND(OR(Calculations!$E$2=\"Orkney Health Board\",Calculations!$E$2=\"Orkney Islands Local Authority\"),$F85=1),0,IF(AND(OR(Calculations!$E$2=\"Shetland Health Board\",Calculations!$E$2=\"Western Isles Health Board\",Calculations!$E$2=\"Shetland Islands Local Authority\",Calculations!$E$2=\"Eilean Siar Local Authority\"),OR($F85=1,$F85=5)),0,prem_mort(VALUE(LEFT(Options!$B$14,2)),$C85,$E85,$F85,2016,$I85/10,1,$H85/10,$G85*$H85/10,RateRatios_airpollution!$E85)*10))","v":85.320045658999987},{"$f":"IF(AND(OR(Calculations!$E$2=\"Orkney Health Board\",Calculations!$E$2=\"Orkney Islands Local Authority\"),$F85=1),0,IF(AND(OR(Calculations!$E$2=\"Shetland Health Board\",Calculations!$E$2=\"Western Isles Health Board\",Calculations!$E$2=\"Shetland Islands Local Authority\",Calculations!$E$2=\"Eilean Siar Local Authority\"),OR($F85=1,$F85=5)),0,prem_mort(VALUE(LEFT(Options!$B$14,2)),$C85,$E85,$F85,2016,$I85/10+$J85/10,1,$H85/10,$G85*$H85/10,RateRatios_airpollution!$E85)*10))","v":85.319276795000007},85.320045658999987,85.292817344000028,3846.2274876679999,3845.0000352809993,6119.924678546,6117.9199415420007,85.320045658999987,85.292817344000028,224.49098999894747,224.41934785033948,10120.053380171552,10116.823752252274,16102.522439998946,16097.247649165924,224.49098999894747,224.41934785033948,1459191.4349931586,1458725.7610272067,65780346.97111509,65759354.38963978,104666395.85999314,104632109.7195785,1459191.4349931586,1458725.7610272067,6500]
[null,"Male 35-39",36.926009999999998,78.336009999999987,"male",1,1,{"$f":"HLOOKUP(Calculations!$E$2,'Population 2016'!$C$3:$BC$249,'Population 2016'!BD86,FALSE)","v":32984},0,{"$f":"HLOOKUP(Calculations!$E$2,Pop2016_in_settlements!$C$3:$BC$249,Pop2016_in_settlements!$BD86,FALSE)","v":23627},{"$f":"IF(AND(OR(Calculations!$E$2=\"Orkney Health Board\",Calculations!$E$2=\"Orkney Islands Local Authority\"),$F86=1),0,IF(AND(OR(Calculations!$E$2=\"Shetland Health Board\",Calculations!$E$2=\"Western Isles Health Board\",Calculations!$E$2=\"Shetland Islands Local Authority\",Calculations!$E$2=\"Eilean Siar Local Authority\"),OR($F86=1,$F86=5)),0,new_ci(VALUE(LEFT(Options!$B$14,2)),$C86,$E86,$F86,2016,$I86/10,1,$H86/10,$G86*$H86/10,RateRatios_accidents!$B$5)*10))","v":107.49853701399999},{"$f":"IF(AND(OR(Calculations!$E$2=\"Orkney Health Board\",Calculations!$E$2=\"Orkney Islands Local Authority\"),$F86=1),0,IF(AND(OR(Calculations!$E$2=\"Shetland Health Board\",Calculations!$E$2=\"Western Isles Health Board\",Calculations!$E$2=\"Shetland Islands Local Authority\",Calculations!$E$2=\"Eilean Siar Local Authority\"),OR($F86=1,$F86=5)),0,new_ci(VALUE(LEFT(Options!$B$14,2)),$C86,$E86,$F86,2016,$I86/10+$J86/10,1,$H86/10,$G86*$H86/10,RateRatios_accidents!$B$5)*10))","v":107.46778647399999},{"$f":"IF(AND(OR(Calculations!$E$2=\"Orkney Health Board\",Calculations!$E$2=\"Orkney Islands Local Authority\"),$F86=1),0,IF(AND(OR(Calculations!$E$2=\"Shetland Health Board\",Calculations!$E$2=\"Western Isles Health Board\",Calculations!$E$2=\"Shetland Islands Local Authority\",Calculations!$E$2=\"Eilean Siar Local Authority\"),OR($F86=1,$F86=5)),0,new_yllv2(VALUE(LEFT(Options!$B$14,2)),$C86,$D86,$E86,$F86,2016,$I86/10,1,$H86/10,$G86*$H86/10,RateRatios_accidents!$B$5)*10))","v":4344.0158807360003},{"$f":"IF(AND(OR(Calculations!$E$2=\"Orkney Health Board\",Calculations!$E$2=\"Orkney Islands Local Authority\"),$F86=1),0,IF(AND(OR(Calculations!$E$2=\"Shetland Health Board\",Calculations!$E$2=\"Western Isles Health Board\",Calculations!$E$2=\"Shetland Islands Local Authority\",Calculations!$E$2=\"Eilean Siar Local Authority\"),OR($F86=1,$F86=5)),0,new_yllv2(VALUE(LEFT(Options!$B$14,2)),$C86,$D86,$E86,$F86,2016,$I86/10+$J86/10,1,$H86/10,$G86*$H86/10,RateRatios_accidents!$B$5)*10))","v":4342.7732514139998},{"$f":"IF(AND(OR(Calculations!$E$2=\"Orkney Health Board\",Calculations!$E$2=\"Orkney Islands Local Authority\"),$F86=1),0,IF(AND(OR(Calculations!$E$2=\"Shetland Health Board\",Calculations!$E$2=\"Western Isles Health Board\",Calculations!$E$2=\"Shetland Islands Local Authority\",Calculations!$E$2=\"Eilean Siar Local Authority\"),OR($F86=1,$F86=5)),0,hosp_count(VALUE(LEFT(Options!$B$14,2)),$C86,$E86,$F86,2016,$I86/10,1,$H86/10,$G86*$H86/10, RateRatios_accidents!$B$4, RateRatios_accidents!$B$5)*10))","v":6330.2128956529996},{"$f":"IF(AND(OR(Calculations!$E$2=\"Orkney Health Board\",Calculations!$E$2=\"Orkney Islands Local Authority\"),$F86=1),0,IF(AND(OR(Calculations!$E$2=\"Shetland Health Board\",Calculations!$E$2=\"Western Isles Health Board\",Calculations!$E$2=\"Shetland Islands Local Authority\",Calculations!$E$2=\"Eilean Siar Local Authority\"),OR($F86=1,$F86=5)),0,hosp_count(VALUE(LEFT(Options!$B$14,2)),$C86,$E86,$F86,2016,$I86/10+$J86/10,1,$H86/10,$G86*$H86/10, RateRatios_accidents!$B$4, RateRatios_accidents!$B$5)*10))","v":6328.3991193810007},{"$f":"IF(AND(OR(Calculations!$E$2=\"Orkney Health Board\",Calculations!$E$2=\"Orkney Islands Local Authority\"),$F86=1),0,IF(AND(OR(Calculations!$E$2=\"Shetland Health Board\",Calculations!$E$2=\"Western Isles Health Board\",Calculations!$E$2=\"Shetland Islands Local Authority\",Calculations!$E$2=\"Eilean Siar Local Authority\"),OR($F86=1,$F86=5)),0,prem_mort(VALUE(LEFT(Options!$B$14,2)),$C86,$E86,$F86,2016,$I86/10,1,$H86/10,$G86*$H86/10,RateRatios_accidents!$B$5)*10))","v":107.49853701399999},{"$f":"IF(AND(OR(Calculations!$E$2=\"Orkney Health Board\",Calculations!$E$2=\"Orkney Islands Local Authority\"),$F86=1),0,IF(AND(OR(Calculations!$E$2=\"Shetland Health Board\",Calculations!$E$2=\"Western Isles Health Board\",Calculations!$E$2=\"Shetland Islands Local Authority\",Calculations!$E$2=\"Eilean Siar Local Authority\"),OR($F86=1,$F86=5)),0,prem_mort(VALUE(LEFT(Options!$B$14,2)),$C86,$E86,$F86,2016,$I86/10+$J86/10,1,$H86/10,$G86*$H86/10,RateRatios_accidents!$B$5)*10))","v":107.46778647399999},null,{"$f":"IF(AND(OR(Calculations!$E$2=\"Orkney Health Board\",Calculations!$E$2=\"Orkney Islands Local Authority\"),$F86=1),0,IF(AND(OR(Calculations!$E$2=\"Shetland Health Board\",Calculations!$E$2=\"Western Isles Health Board\",Calculations!$E$2=\"Shetland Islands Local Authority\",Calculations!$E$2=\"Eilean Siar Local Authority\"),OR($F86=1,$F86=5)),0,new_ci(VALUE(LEFT(Options!$B$14,2)),$C86,$E86,$F86,2016,$I86/10,1,$H86/10,$G86*$H86/10,RateRatios_airpollution!$C86)*10))","v":107.49853701399999},{"$f":"IF(AND(OR(Calculations!$E$2=\"Orkney Health Board\",Calculations!$E$2=\"Orkney Islands Local Authority\"),$F86=1),0,IF(AND(OR(Calculations!$E$2=\"Shetland Health Board\",Calculations!$E$2=\"Western Isles Health Board\",Calculations!$E$2=\"Shetland Islands Local Authority\",Calculations!$E$2=\"Eilean Siar Local Authority\"),OR($F86=1,$F86=5)),0,new_ci(VALUE(LEFT(Options!$B$14,2)),$C86,$E86,$F86,2016,$I86/10+$J86/10,1,$H86/10,$G86*$H86/10,RateRatios_airpollution!$C86)*10))","v":107.496552346},{"$f":"IF(AND(OR(Calculations!$E$2=\"Orkney Health Board\",Calculations!$E$2=\"Orkney Islands Local Authority\"),$F86=1),0,IF(AND(OR(Calculations!$E$2=\"Shetland Health Board\",Calculations!$E$2=\"Western Isles Health Board\",Calculations!$E$2=\"Shetland Islands Local Authority\",Calculations!$E$2=\"Eilean Siar Local Authority\"),OR($F86=1,$F86=5)),0,new_yllv2(VALUE(LEFT(Options!$B$14,2)),$C86,$D86,$E86,$F86,2016,$I86/10,1,$H86/10,$G86*$H86/10,RateRatios_airpollution!$C86)*10))","v":4344.0158807360003},{"$f":"IF(AND(OR(Calculations!$E$2=\"Orkney Health Board\",Calculations!$E$2=\"Orkney Islands Local Authority\"),$F86=1),0,IF(AND(OR(Calculations!$E$2=\"Shetland Health Board\",Calculations!$E$2=\"Western Isles Health Board\",Calculations!$E$2=\"Shetland Islands Local Authority\",Calculations!$E$2=\"Eilean Siar Local Authority\"),OR($F86=1,$F86=5)),0,new_yllv2(VALUE(LEFT(Options!$B$14,2)),$C86,$D86,$E86,$F86,2016,$I86/10+$J86/10,1,$H86/10,$G86*$H86/10,RateRatios_airpollution!$C86)*10))","v":4343.935680302},{"$f":"IF(AND(OR(Calculations!$E$2=\"Orkney Health Board\",Calculations!$E$2=\"Orkney Islands Local Authority\"),$F86=1),0,IF(AND(OR(Calculations!$E$2=\"Shetland Health Board\",Calculations!$E$2=\"Western Isles Health Board\",Calculations!$E$2=\"Shetland Islands Local Authority\",Calculations!$E$2=\"Eilean Siar Local Authority\"),OR($F86=1,$F86=5)),0,hosp_count(VALUE(LEFT(Options!$B$14,2)),$C86,$E86,$F86,2016,$I86/10,1,$H86/10,$G86*$H86/10, RateRatios_airpollution!$D86, RateRatios_airpollution!$C86)*10))","v":6330.2128956529996},{"$f":"IF(AND(OR(Calculations!$E$2=\"Orkney Health Board\",Calculations!$E$2=\"Orkney Islands Local Authority\"),$F86=1),0,IF(AND(OR(Calculations!$E$2=\"Shetland Health Board\",Calculations!$E$2=\"Western Isles Health Board\",Calculations!$E$2=\"Shetland Islands Local Authority\",Calculations!$E$2=\"Eilean Siar Local Authority\"),OR($F86=1,$F86=5)),0,hosp_count(VALUE(LEFT(Options!$B$14,2)),$C86,$E86,$F86,2016,$I86/10+$J86/10,1,$H86/10,$G86*$H86/10, RateRatios_airpollution!$D86, RateRatios_airpollution!$C86)*10))","v":6329.9922005710005},{"$f":"IF(AND(OR(Calculations!$E$2=\"Orkney Health Board\",Calculations!$E$2=\"Orkney Islands Local Authority\"),$F86=1),0,IF(AND(OR(Calculations!$E$2=\"Shetland Health Board\",Calculations!$E$2=\"Western Isles Health Board\",Calculations!$E$2=\"Shetland Islands Local Authority\",Calculations!$E$2=\"Eilean Siar Local Authority\"),OR($F86=1,$F86=5)),0,prem_mort(VALUE(LEFT(Options!$B$14,2)),$C86,$E86,$F86,2016,$I86/10,1,$H86/10,$G86*$H86/10,RateRatios_airpollution!$C86)*10))","v":107.49853701399999},{"$f":"IF(AND(OR(Calculations!$E$2=\"Orkney Health Board\",Calculations!$E$2=\"Orkney Islands Local Authority\"),$F86=1),0,IF(AND(OR(Calculations!$E$2=\"Shetland Health Board\",Calculations!$E$2=\"Western Isles Health Board\",Calculations!$E$2=\"Shetland Islands Local Authority\",Calculations!$E$2=\"Eilean Siar Local Authority\"),OR($F86=1,$F86=5)),0,prem_mort(VALUE(LEFT(Options!$B$14,2)),$C86,$E86,$F86,2016,$I86/10+$J86/10,1,$H86/10,$G86*$H86/10,RateRatios_airpollution!$C86)*10))","v":107.496552346},null,{"$f":"IF(AND(OR(Calculations!$E$2=\"Orkney Health Board\",Calculations!$E$2=\"Orkney Islands Local Authority\"),$F86=1),0,IF(AND(OR(Calculations!$E$2=\"Shetland Health Board\",Calculations!$E$2=\"Western Isles Health Board\",Calculations!$E$2=\"Shetland Islands Local Authority\",Calculations!$E$2=\"Eilean Siar Local Authority\"),OR($F86=1,$F86=5)),0,new_ci(VALUE(LEFT(Options!$B$14,2)),$C86,$E86,$F86,2016,$I86/10,1,$H86/10,$G86*$H86/10,RateRatios_airpollution!$E86)*10))","v":107.49853701399999},{"$f":"IF(AND(OR(Calculations!$E$2=\"Orkney Health Board\",Calculations!$E$2=\"Orkney Islands Local Authority\"),$F86=1),0,IF(AND(OR(Calculations!$E$2=\"Shetland Health Board\",Calculations!$E$2=\"Western Isles Health Board\",Calculations!$E$2=\"Shetland Islands Local Authority\",Calculations!$E$2=\"Eilean Siar Local Authority\"),OR($F86=1,$F86=5)),0,new_ci(VALUE(LEFT(Options!$B$14,2)),$C86,$E86,$F86,2016,$I86/10+$J86/10,1,$H86/10,$G86*$H86/10,RateRatios_airpollution!$E86)*10))","v":107.49760847299999},{"$f":"IF(AND(OR(Calculations!$E$2=\"Orkney Health Board\",Calculations!$E$2=\"Orkney Islands Local Authority\"),$F86=1),0,IF(AND(OR(Calculations!$E$2=\"Shetland Health Board\",Calculations!$E$2=\"Western Isles Health Board\",Calculations!$E$2=\"Shetland Islands Local Authority\",Calculations!$E$2=\"Eilean Siar Local Authority\"),OR($F86=1,$F86=5)),0,new_yllv2(VALUE(LEFT(Options!$B$14,2)),$C86,$D86,$E86,$F86,2016,$I86/10,1,$H86/10,$G86*$H86/10,RateRatios_airpollution!$E86)*10))","v":4344.0158807360003},{"$f":"IF(AND(OR(Calculations!$E$2=\"Orkney Health Board\",Calculations!$E$2=\"Orkney Islands Local Authority\"),$F86=1),0,IF(AND(OR(Calculations!$E$2=\"Shetland Health Board\",Calculations!$E$2=\"Western Isles Health Board\",Calculations!$E$2=\"Shetland Islands Local Authority\",Calculations!$E$2=\"Eilean Siar Local Authority\"),OR($F86=1,$F86=5)),0,new_yllv2(VALUE(LEFT(Options!$B$14,2)),$C86,$D86,$E86,$F86,2016,$I86/10+$J86/10,1,$H86/10,$G86*$H86/10,RateRatios_airpollution!$E86)*10))","v":4343.9783583939998},{"$f":"IF(AND(OR(Calculations!$E$2=\"Orkney Health Board\",Calculations!$E$2=\"Orkney Islands Local Authority\"),$F86=1),0,IF(AND(OR(Calculations!$E$2=\"Shetland Health Board\",Calculations!$E$2=\"Western Isles Health Board\",Calculations!$E$2=\"Shetland Islands Local Authority\",Calculations!$E$2=\"Eilean Siar Local Authority\"),OR($F86=1,$F86=5)),0,hosp_count(VALUE(LEFT(Options!$B$14,2)),$C86,$E86,$F86,2016,$I86/10,1,$H86/10,$G86*$H86/10, RateRatios_airpollution!$F86, RateRatios_airpollution!$E86)*10))","v":6330.2128956529996},{"$f":"IF(AND(OR(Calculations!$E$2=\"Orkney Health Board\",Calculations!$E$2=\"Orkney Islands Local Authority\"),$F86=1),0,IF(AND(OR(Calculations!$E$2=\"Shetland Health Board\",Calculations!$E$2=\"Western Isles Health Board\",Calculations!$E$2=\"Shetland Islands Local Authority\",Calculations!$E$2=\"Eilean Siar Local Authority\"),OR($F86=1,$F86=5)),0,hosp_count(VALUE(LEFT(Options!$B$14,2)),$C86,$E86,$F86,2016,$I86/10+$J86/10,1,$H86/10,$G86*$H86/10, RateRatios_airpollution!$F86, RateRatios_airpollution!$E86)*10))","v":6330.2128956529996},{"$f":"IF(AND(OR(Calculations!$E$2=\"Orkney Health Board\",Calculations!$E$2=\"Orkney Islands Local Authority\"),$F86=1),0,IF(AND(OR(Calculations!$E$2=\"Shetland Health Board\",Calculations!$E$2=\"Western Isles Health Board\",Calculations!$E$2=\"Shetland Islands Local Authority\",Calculations!$E$2=\"Eilean Siar Local Authority\"),OR($F86=1,$F86=5)),0,prem_mort(VALUE(LEFT(Options!$B$14,2)),$C86,$E86,$F86,2016,$I86/10,1,$H86/10,$G86*$H86/10,RateRatios_airpollution!$E86)*10))","v":107.49853701399999},{"$f":"IF(AND(OR(Calculations!$E$2=\"Orkney Health Board\",Calculations!$E$2=\"Orkney Islands Local Authority\"),$F86=1),0,IF(AND(OR(Calculations!$E$2=\"Shetland Health Board\",Calculations!$E$2=\"Western Isles Health Board\",Calculations!$E$2=\"Shetland Islands Local Authority\",Calculations!$E$2=\"Eilean Siar Local Authority\"),OR($F86=1,$F86=5)),0,prem_mort(VALUE(LEFT(Options!$B$14,2)),$C86,$E86,$F86,2016,$I86/10+$J86/10,1,$H86/10,$G86*$H86/10,RateRatios_airpollution!$E86)*10))","v":107.49760847299999},107.49853701399999,107.46487326499999,4344.0158807360003,4342.6555286379989,6330.2128956529996,6328.1784242990016,107.49853701399999,107.46487326499999,325.91115999878724,325.80909915413531,13170.069975551784,13165.945696816634,19191.768420000604,19185.600364719263,325.91115999878724,325.80909915413531,2281378.1199915106,2280663.694078947,92190489.828862488,92161619.877716437,134342378.94000423,134299202.55303484,2281378.1199915106,2280663.694078947,7000]
[null,"Male 40-44",42.067703000000002,78.907700000000006,"male",1,1,{"$f":"HLOOKUP(Calculations!$E$2,'Population 2016'!$C$3:$BC$249,'Population 2016'!BD87,FALSE)","v":31623},0,{"$f":"HLOOKUP(Calculations!$E$2,Pop2016_in_settlements!$C$3:$BC$249,Pop2016_in_settlements!$BD87,FALSE)","v":22598},{"$f":"IF(AND(OR(Calculations!$E$2=\"Orkney Health Board\",Calculations!$E$2=\"Orkney Islands Local Authority\"),$F87=1),0,IF(AND(OR(Calculations!$E$2=\"Shetland Health Board\",Calculations!$E$2=\"Western Isles Health Board\",Calculations!$E$2=\"Shetland Islands Local Authority\",Calculations!$E$2=\"Eilean Siar Local Authority\"),OR($F87=1,$F87=5)),0,new_ci(VALUE(LEFT(Options!$B$14,2)),$C87,$E87,$F87,2016,$I87/10,1,$H87/10,$G87*$H87/10,RateRatios_accidents!$B$5)*10))","v":151.82852468900001},{"$f":"IF(AND(OR(Calculations!$E$2=\"Orkney Health Board\",Calculations!$E$2=\"Orkney Islands Local Authority\"),$F87=1),0,IF(AND(OR(Calculations!$E$2=\"Shetland Health Board\",Calculations!$E$2=\"Western Isles Health Board\",Calculations!$E$2=\"Shetland Islands Local Authority\",Calculations!$E$2=\"Eilean Siar Local Authority\"),OR($F87=1,$F87=5)),0,new_ci(VALUE(LEFT(Options!$B$14,2)),$C87,$E87,$F87,2016,$I87/10+$J87/10,1,$H87/10,$G87*$H87/10,RateRatios_accidents!$B$5)*10))","v":151.78522918100001},{"$f":"IF(AND(OR(Calculations!$E$2=\"Orkney Health Board\",Calculations!$E$2=\"Orkney Islands Local Authority\"),$F87=1),0,IF(AND(OR(Calculations!$E$2=\"Shetland Health Board\",Calculations!$E$2=\"Western Isles Health Board\",Calculations!$E$2=\"Shetland Islands Local Authority\",Calculations!$E$2=\"Eilean Siar Local Authority\"),OR($F87=1,$F87=5)),0,new_yllv2(VALUE(LEFT(Options!$B$14,2)),$C87,$D87,$E87,$F87,2016,$I87/10,1,$H87/10,$G87*$H87/10,RateRatios_accidents!$B$5)*10))","v":5441.5338693679996},{"$f":"IF(AND(OR(Calculations!$E$2=\"Orkney Health Board\",Calculations!$E$2=\"Orkney Islands Local Authority\"),$F87=1),0,IF(AND(OR(Calculations!$E$2=\"Shetland Health Board\",Calculations!$E$2=\"Western Isles Health Board\",Calculations!$E$2=\"Shetland Islands Local Authority\",Calculations!$E$2=\"Eilean Siar Local Authority\"),OR($F87=1,$F87=5)),0,new_yllv2(VALUE(LEFT(Options!$B$14,2)),$C87,$D87,$E87,$F87,2016,$I87/10+$J87/10,1,$H87/10,$G87*$H87/10,RateRatios_accidents!$B$5)*10))","v":5439.9821584910005},{"$f":"IF(AND(OR(Calculations!$E$2=\"Orkney Health Board\",Calculations!$E$2=\"Orkney Islands Local Authority\"),$F87=1),0,IF(AND(OR(Calculations!$E$2=\"Shetland Health Board\",Calculations!$E$2=\"Western Isles Health Board\",Calculations!$E$2=\"Shetland Islands Local Authority\",Calculations!$E$2=\"Eilean Siar Local Authority\"),OR($F87=1,$F87=5)),0,hosp_count(VALUE(LEFT(Options!$B$14,2)),$C87,$E87,$F87,2016,$I87/10,1,$H87/10,$G87*$H87/10, RateRatios_accidents!$B$4, RateRatios_accidents!$B$5)*10))","v":7284.1542018170003},{"$f":"IF(AND(OR(Calculations!$E$2=\"Orkney Health Board\",Calculations!$E$2=\"Orkney Islands Local Authority\"),$F87=1),0,IF(AND(OR(Calculations!$E$2=\"Shetland Health Board\",Calculations!$E$2=\"Western Isles Health Board\",Calculations!$E$2=\"Shetland Islands Local Authority\",Calculations!$E$2=\"Eilean Siar Local Authority\"),OR($F87=1,$F87=5)),0,hosp_count(VALUE(LEFT(Options!$B$14,2)),$C87,$E87,$F87,2016,$I87/10+$J87/10,1,$H87/10,$G87*$H87/10, RateRatios_accidents!$B$4, RateRatios_accidents!$B$5)*10))","v":7282.072080852},{"$f":"IF(AND(OR(Calculations!$E$2=\"Orkney Health Board\",Calculations!$E$2=\"Orkney Islands Local Authority\"),$F87=1),0,IF(AND(OR(Calculations!$E$2=\"Shetland Health Board\",Calculations!$E$2=\"Western Isles Health Board\",Calculations!$E$2=\"Shetland Islands Local Authority\",Calculations!$E$2=\"Eilean Siar Local Authority\"),OR($F87=1,$F87=5)),0,prem_mort(VALUE(LEFT(Options!$B$14,2)),$C87,$E87,$F87,2016,$I87/10,1,$H87/10,$G87*$H87/10,RateRatios_accidents!$B$5)*10))","v":151.82852468900001},{"$f":"IF(AND(OR(Calculations!$E$2=\"Orkney Health Board\",Calculations!$E$2=\"Orkney Islands Local Authority\"),$F87=1),0,IF(AND(OR(Calculations!$E$2=\"Shetland Health Board\",Calculations!$E$2=\"Western Isles Health Board\",Calculations!$E$2=\"Shetland Islands Local Authority\",Calculations!$E$2=\"Eilean Siar Local Authority\"),OR($F87=1,$F87=5)),0,prem_mort(VALUE(LEFT(Options!$B$14,2)),$C87,$E87,$F87,2016,$I87/10+$J87/10,1,$H87/10,$G87*$H87/10,RateRatios_accidents!$B$5)*10))","v":151.78522918100001},null,{"$f":"IF(AND(OR(Calculations!$E$2=\"Orkney Health Board\",Calculations!$E$2=\"Orkney Islands Local Authority\"),$F87=1),0,IF(AND(OR(Calculations!$E$2=\"Shetland Health Board\",Calculations!$E$2=\"Western Isles Health Board\",Calculations!$E$2=\"Shetland Islands Local Authority\",Calculations!$E$2=\"Eilean Siar Local Authority\"),OR($F87=1,$F87=5)),0,new_ci(VALUE(LEFT(Options!$B$14,2)),$C87,$E87,$F87,2016,$I87/10,1,$H87/10,$G87*$H87/10,RateRatios_airpollution!$C87)*10))","v":151.82852468900001},{"$f":"IF(AND(OR(Calculations!$E$2=\"Orkney Health Board\",Calculations!$E$2=\"Orkney Islands Local Authority\"),$F87=1),0,IF(AND(OR(Calculations!$E$2=\"Shetland Health Board\",Calculations!$E$2=\"Western Isles Health Board\",Calculations!$E$2=\"Shetland Islands Local Authority\",Calculations!$E$2=\"Eilean Siar Local Authority\"),OR($F87=1,$F87=5)),0,new_ci(VALUE(LEFT(Options!$B$14,2)),$C87,$E87,$F87,2016,$I87/10+$J87/10,1,$H87/10,$G87*$H87/10,RateRatios_airpollution!$C87)*10))","v":151.82580389},{"$f":"IF(AND(OR(Calculations!$E$2=\"Orkney Health Board\",Calculations!$E$2=\"Orkney Islands Local Authority\"),$F87=1),0,IF(AND(OR(Calculations!$E$2=\"Shetland Health Board\",Calculations!$E$2=\"Western Isles Health Board\",Calculations!$E$2=\"Shetland Islands Local Authority\",Calculations!$E$2=\"Eilean Siar Local Authority\"),OR($F87=1,$F87=5)),0,new_yllv2(VALUE(LEFT(Options!$B$14,2)),$C87,$D87,$E87,$F87,2016,$I87/10,1,$H87/10,$G87*$H87/10,RateRatios_airpollution!$C87)*10))","v":5441.5338693679996},{"$f":"IF(AND(OR(Calculations!$E$2=\"Orkney Health Board\",Calculations!$E$2=\"Orkney Islands Local Authority\"),$F87=1),0,IF(AND(OR(Calculations!$E$2=\"Shetland Health Board\",Calculations!$E$2=\"Western Isles Health Board\",Calculations!$E$2=\"Shetland Islands Local Authority\",Calculations!$E$2=\"Eilean Siar Local Authority\"),OR($F87=1,$F87=5)),0,new_yllv2(VALUE(LEFT(Options!$B$14,2)),$C87,$D87,$E87,$F87,2016,$I87/10+$J87/10,1,$H87/10,$G87*$H87/10,RateRatios_airpollution!$C87)*10))","v":5441.4363559399999},{"$f":"IF(AND(OR(Calculations!$E$2=\"Orkney Health Board\",Calculations!$E$2=\"Orkney Islands Local Authority\"),$F87=1),0,IF(AND(OR(Calculations!$E$2=\"Shetland Health Board\",Calculations!$E$2=\"Western Isles Health Board\",Calculations!$E$2=\"Shetland Islands Local Authority\",Calculations!$E$2=\"Eilean Siar Local Authority\"),OR($F87=1,$F87=5)),0,hosp_count(VALUE(LEFT(Options!$B$14,2)),$C87,$E87,$F87,2016,$I87/10,1,$H87/10,$G87*$H87/10, RateRatios_airpollution!$D87, RateRatios_airpollution!$C87)*10))","v":7284.1542018170003},{"$f":"IF(AND(OR(Calculations!$E$2=\"Orkney Health Board\",Calculations!$E$2=\"Orkney Islands Local Authority\"),$F87=1),0,IF(AND(OR(Calculations!$E$2=\"Shetland Health Board\",Calculations!$E$2=\"Western Isles Health Board\",Calculations!$E$2=\"Shetland Islands Local Authority\",Calculations!$E$2=\"Eilean Siar Local Authority\"),OR($F87=1,$F87=5)),0,hosp_count(VALUE(LEFT(Options!$B$14,2)),$C87,$E87,$F87,2016,$I87/10+$J87/10,1,$H87/10,$G87*$H87/10, RateRatios_airpollution!$D87, RateRatios_airpollution!$C87)*10))","v":7283.9077344709995},{"$f":"IF(AND(OR(Calculations!$E$2=\"Orkney Health Board\",Calculations!$E$2=\"Orkney Islands Local Authority\"),$F87=1),0,IF(AND(OR(Calculations!$E$2=\"Shetland Health Board\",Calculations!$E$2=\"Western Isles Health Board\",Calculations!$E$2=\"Shetland Islands Local Authority\",Calculations!$E$2=\"Eilean Siar Local Authority\"),OR($F87=1,$F87=5)),0,prem_mort(VALUE(LEFT(Options!$B$14,2)),$C87,$E87,$F87,2016,$I87/10,1,$H87/10,$G87*$H87/10,RateRatios_airpollution!$C87)*10))","v":151.82852468900001},{"$f":"IF(AND(OR(Calculations!$E$2=\"Orkney Health Board\",Calculations!$E$2=\"Orkney Islands Local Authority\"),$F87=1),0,IF(AND(OR(Calculations!$E$2=\"Shetland Health Board\",Calculations!$E$2=\"Western Isles Health Board\",Calculations!$E$2=\"Shetland Islands Local Authority\",Calculations!$E$2=\"Eilean Siar Local Authority\"),OR($F87=1,$F87=5)),0,prem_mort(VALUE(LEFT(Options!$B$14,2)),$C87,$E87,$F87,2016,$I87/10+$J87/10,1,$H87/10,$G87*$H87/10,RateRatios_airpollution!$C87)*10))","v":151.82580389},null,{"$f":"IF(AND(OR(Calculations!$E$2=\"Orkney Health Board\",Calculations!$E$2=\"Orkney Islands Local Authority\"),$F87=1),0,IF(AND(OR(Calculations!$E$2=\"Shetland Health Board\",Calculations!$E$2=\"Western Isles Health Board\",Calculations!$E$2=\"Shetland Islands Local Authority\",Calculations!$E$2=\"Eilean Siar Local Authority\"),OR($F87=1,$F87=5)),0,new_ci(VALUE(LEFT(Options!$B$14,2)),$C87,$E87,$F87,2016,$I87/10,1,$H87/10,$G87*$H87/10,RateRatios_airpollution!$E87)*10))","v":151.82852468900001},{"$f":"IF(AND(OR(Calculations!$E$2=\"Orkney Health Board\",Calculations!$E$2=\"Orkney Islands Local Authority\"),$F87=1),0,IF(AND(OR(Calculations!$E$2=\"Shetland Health Board\",Calculations!$E$2=\"Western Isles Health Board\",Calculations!$E$2=\"Shetland Islands Local Authority\",Calculations!$E$2=\"Eilean Siar Local Authority\"),OR($F87=1,$F87=5)),0,new_ci(VALUE(LEFT(Options!$B$14,2)),$C87,$E87,$F87,2016,$I87/10+$J87/10,1,$H87/10,$G87*$H87/10,RateRatios_airpollution!$E87)*10))","v":151.82725016199998},{"$f":"IF(AND(OR(Calculations!$E$2=\"Orkney Health Board\",Calculations!$E$2=\"Orkney Islands Local Authority\"),$F87=1),0,IF(AND(OR(Calculations!$E$2=\"Shetland Health Board\",Calculations!$E$2=\"Western Isles Health Board\",Calculations!$E$2=\"Shetland Islands Local Authority\",Calculations!$E$2=\"Eilean Siar Local Authority\"),OR($F87=1,$F87=5)),0,new_yllv2(VALUE(LEFT(Options!$B$14,2)),$C87,$D87,$E87,$F87,2016,$I87/10,1,$H87/10,$G87*$H87/10,RateRatios_airpollution!$E87)*10))","v":5441.5338693679996},{"$f":"IF(AND(OR(Calculations!$E$2=\"Orkney Health Board\",Calculations!$E$2=\"Orkney Islands Local Authority\"),$F87=1),0,IF(AND(OR(Calculations!$E$2=\"Shetland Health Board\",Calculations!$E$2=\"Western Isles Health Board\",Calculations!$E$2=\"Shetland Islands Local Authority\",Calculations!$E$2=\"Eilean Siar Local Authority\"),OR($F87=1,$F87=5)),0,new_yllv2(VALUE(LEFT(Options!$B$14,2)),$C87,$D87,$E87,$F87,2016,$I87/10+$J87/10,1,$H87/10,$G87*$H87/10,RateRatios_airpollution!$E87)*10))","v":5441.4881903239993},{"$f":"IF(AND(OR(Calculations!$E$2=\"Orkney Health Board\",Calculations!$E$2=\"Orkney Islands Local Authority\"),$F87=1),0,IF(AND(OR(Calculations!$E$2=\"Shetland Health Board\",Calculations!$E$2=\"Western Isles Health Board\",Calculations!$E$2=\"Shetland Islands Local Authority\",Calculations!$E$2=\"Eilean Siar Local Authority\"),OR($F87=1,$F87=5)),0,hosp_count(VALUE(LEFT(Options!$B$14,2)),$C87,$E87,$F87,2016,$I87/10,1,$H87/10,$G87*$H87/10, RateRatios_airpollution!$F87, RateRatios_airpollution!$E87)*10))","v":7284.1542018170003},{"$f":"IF(AND(OR(Calculations!$E$2=\"Orkney Health Board\",Calculations!$E$2=\"Orkney Islands Local Authority\"),$F87=1),0,IF(AND(OR(Calculations!$E$2=\"Shetland Health Board\",Calculations!$E$2=\"Western Isles Health Board\",Calculations!$E$2=\"Shetland Islands Local Authority\",Calculations!$E$2=\"Eilean Siar Local Authority\"),OR($F87=1,$F87=5)),0,hosp_count(VALUE(LEFT(Options!$B$14,2)),$C87,$E87,$F87,2016,$I87/10+$J87/10,1,$H87/10,$G87*$H87/10, RateRatios_airpollution!$F87, RateRatios_airpollution!$E87)*10))","v":7284.1542018170003},{"$f":"IF(AND(OR(Calculations!$E$2=\"Orkney Health Board\",Calculations!$E$2=\"Orkney Islands Local Authority\"),$F87=1),0,IF(AND(OR(Calculations!$E$2=\"Shetland Health Board\",Calculations!$E$2=\"Western Isles Health Board\",Calculations!$E$2=\"Shetland Islands Local Authority\",Calculations!$E$2=\"Eilean Siar Local Authority\"),OR($F87=1,$F87=5)),0,prem_mort(VALUE(LEFT(Options!$B$14,2)),$C87,$E87,$F87,2016,$I87/10,1,$H87/10,$G87*$H87/10,RateRatios_airpollution!$E87)*10))","v":151.82852468900001},{"$f":"IF(AND(OR(Calculations!$E$2=\"Orkney Health Board\",Calculations!$E$2=\"Orkney Islands Local Authority\"),$F87=1),0,IF(AND(OR(Calculations!$E$2=\"Shetland Health Board\",Calculations!$E$2=\"Western Isles Health Board\",Calculations!$E$2=\"Shetland Islands Local Authority\",Calculations!$E$2=\"Eilean Siar Local Authority\"),OR($F87=1,$F87=5)),0,prem_mort(VALUE(LEFT(Options!$B$14,2)),$C87,$E87,$F87,2016,$I87/10+$J87/10,1,$H87/10,$G87*$H87/10,RateRatios_airpollution!$E87)*10))","v":151.82725016199998},151.82852468900001,151.78123385499998,5441.5338693679996,5439.8389660190005,7284.1542018170003,7281.8256135059992,151.82852468900001,151.78123385499998,480.12056000063245,479.97101430920532,17207.519430060398,17202.159712927303,23034.355379998735,23026.99178922303,480.12056000063245,479.97101430920532,3360843.920004427,3359797.1001644372,120452636.01042278,120415117.99049112,161240487.65999115,161188942.5245612,3360843.920004427,3359797.1001644372,7000]
[null,"Male 45-49",47.038155000000003,79.418149999999997,"male",1,1,{"$f":"HLOOKUP(Calculations!$E$2,'Population 2016'!$C$3:$BC$249,'Population 2016'!BD88,FALSE)","v":35878},0,{"$f":"HLOOKUP(Calculations!$E$2,Pop2016_in_settlements!$C$3:$BC$249,Pop2016_in_settlements!$BD88,FALSE)","v":26023},{"$f":"IF(AND(OR(Calculations!$E$2=\"Orkney Health Board\",Calculations!$E$2=\"Orkney Islands Local Authority\"),$F88=1),0,IF(AND(OR(Calculations!$E$2=\"Shetland Health Board\",Calculations!$E$2=\"Western Isles Health Board\",Calculations!$E$2=\"Shetland Islands Local Authority\",Calculations!$E$2=\"Eilean Siar Local Authority\"),OR($F88=1,$F88=5)),0,new_ci(VALUE(LEFT(Options!$B$14,2)),$C88,$E88,$F88,2016,$I88/10,1,$H88/10,$G88*$H88/10,RateRatios_accidents!$B$5)*10))","v":250.423725631},{"$f":"IF(AND(OR(Calculations!$E$2=\"Orkney Health Board\",Calculations!$E$2=\"Orkney Islands Local Authority\"),$F88=1),0,IF(AND(OR(Calculations!$E$2=\"Shetland Health Board\",Calculations!$E$2=\"Western Isles Health Board\",Calculations!$E$2=\"Shetland Islands Local Authority\",Calculations!$E$2=\"Eilean Siar Local Authority\"),OR($F88=1,$F88=5)),0,new_ci(VALUE(LEFT(Options!$B$14,2)),$C88,$E88,$F88,2016,$I88/10+$J88/10,1,$H88/10,$G88*$H88/10,RateRatios_accidents!$B$5)*10))","v":250.35132443999998},{"$f":"IF(AND(OR(Calculations!$E$2=\"Orkney Health Board\",Calculations!$E$2=\"Orkney Islands Local Authority\"),$F88=1),0,IF(AND(OR(Calculations!$E$2=\"Shetland Health Board\",Calculations!$E$2=\"Western Isles Health Board\",Calculations!$E$2=\"Shetland Islands Local Authority\",Calculations!$E$2=\"Eilean Siar Local Authority\"),OR($F88=1,$F88=5)),0,new_yllv2(VALUE(LEFT(Options!$B$14,2)),$C88,$D88,$E88,$F88,2016,$I88/10,1,$H88/10,$G88*$H88/10,RateRatios_accidents!$B$5)*10))","v":7858.2952581819991},{"$f":"IF(AND(OR(Calculations!$E$2=\"Orkney Health Board\",Calculations!$E$2=\"Orkney Islands Local Authority\"),$F88=1),0,IF(AND(OR(Calculations!$E$2=\"Shetland Health Board\",Calculations!$E$2=\"Western Isles Health Board\",Calculations!$E$2=\"Shetland Islands Local Authority\",Calculations!$E$2=\"Eilean Siar Local Authority\"),OR($F88=1,$F88=5)),0,new_yllv2(VALUE(LEFT(Options!$B$14,2)),$C88,$D88,$E88,$F88,2016,$I88/10+$J88/10,1,$H88/10,$G88*$H88/10,RateRatios_accidents!$B$5)*10))","v":7856.0233091709997},{"$f":"IF(AND(OR(Calculations!$E$2=\"Orkney Health Board\",Calculations!$E$2=\"Orkney Islands Local Authority\"),$F88=1),0,IF(AND(OR(Calculations!$E$2=\"Shetland Health Board\",Calculations!$E$2=\"Western Isles Health Board\",Calculations!$E$2=\"Shetland Islands Local Authority\",Calculations!$E$2=\"Eilean Siar Local Authority\"),OR($F88=1,$F88=5)),0,hosp_count(VALUE(LEFT(Options!$B$14,2)),$C88,$E88,$F88,2016,$I88/10,1,$H88/10,$G88*$H88/10, RateRatios_accidents!$B$4, RateRatios_accidents!$B$5)*10))","v":9858.8353716769998},{"$f":"IF(AND(OR(Calculations!$E$2=\"Orkney Health Board\",Calculations!$E$2=\"Orkney Islands Local Authority\"),$F88=1),0,IF(AND(OR(Calculations!$E$2=\"Shetland Health Board\",Calculations!$E$2=\"Western Isles Health Board\",Calculations!$E$2=\"Shetland Islands Local Authority\",Calculations!$E$2=\"Eilean Siar Local Authority\"),OR($F88=1,$F88=5)),0,hosp_count(VALUE(LEFT(Options!$B$14,2)),$C88,$E88,$F88,2016,$I88/10+$J88/10,1,$H88/10,$G88*$H88/10, RateRatios_accidents!$B$4, RateRatios_accidents!$B$5)*10))","v":9855.97505103},{"$f":"IF(AND(OR(Calculations!$E$2=\"Orkney Health Board\",Calculations!$E$2=\"Orkney Islands Local Authority\"),$F88=1),0,IF(AND(OR(Calculations!$E$2=\"Shetland Health Board\",Calculations!$E$2=\"Western Isles Health Board\",Calculations!$E$2=\"Shetland Islands Local Authority\",Calculations!$E$2=\"Eilean Siar Local Authority\"),OR($F88=1,$F88=5)),0,prem_mort(VALUE(LEFT(Options!$B$14,2)),$C88,$E88,$F88,2016,$I88/10,1,$H88/10,$G88*$H88/10,RateRatios_accidents!$B$5)*10))","v":250.423725631},{"$f":"IF(AND(OR(Calculations!$E$2=\"Orkney Health Board\",Calculations!$E$2=\"Orkney Islands Local Authority\"),$F88=1),0,IF(AND(OR(Calculations!$E$2=\"Shetland Health Board\",Calculations!$E$2=\"Western Isles Health Board\",Calculations!$E$2=\"Shetland Islands Local Authority\",Calculations!$E$2=\"Eilean Siar Local Authority\"),OR($F88=1,$F88=5)),0,prem_mort(VALUE(LEFT(Options!$B$14,2)),$C88,$E88,$F88,2016,$I88/10+$J88/10,1,$H88/10,$G88*$H88/10,RateRatios_accidents!$B$5)*10))","v":250.35132443999998},null,{"$f":"IF(AND(OR(Calculations!$E$2=\"Orkney Health Board\",Calculations!$E$2=\"Orkney Islands Local Authority\"),$F88=1),0,IF(AND(OR(Calculations!$E$2=\"Shetland Health Board\",Calculations!$E$2=\"Western Isles Health Board\",Calculations!$E$2=\"Shetland Islands Local Authority\",Calculations!$E$2=\"Eilean Siar Local Authority\"),OR($F88=1,$F88=5)),0,new_ci(VALUE(LEFT(Options!$B$14,2)),$C88,$E88,$F88,2016,$I88/10,1,$H88/10,$G88*$H88/10,RateRatios_airpollution!$C88)*10))","v":250.423725631},{"$f":"IF(AND(OR(Calculations!$E$2=\"Orkney Health Board\",Calculations!$E$2=\"Orkney Islands Local Authority\"),$F88=1),0,IF(AND(OR(Calculations!$E$2=\"Shetland Health Board\",Calculations!$E$2=\"Western Isles Health Board\",Calculations!$E$2=\"Shetland Islands Local Authority\",Calculations!$E$2=\"Eilean Siar Local Authority\"),OR($F88=1,$F88=5)),0,new_ci(VALUE(LEFT(Options!$B$14,2)),$C88,$E88,$F88,2016,$I88/10+$J88/10,1,$H88/10,$G88*$H88/10,RateRatios_airpollution!$C88)*10))","v":250.41929131199998},{"$f":"IF(AND(OR(Calculations!$E$2=\"Orkney Health Board\",Calculations!$E$2=\"Orkney Islands Local Authority\"),$F88=1),0,IF(AND(OR(Calculations!$E$2=\"Shetland Health Board\",Calculations!$E$2=\"Western Isles Health Board\",Calculations!$E$2=\"Shetland Islands Local Authority\",Calculations!$E$2=\"Eilean Siar Local Authority\"),OR($F88=1,$F88=5)),0,new_yllv2(VALUE(LEFT(Options!$B$14,2)),$C88,$D88,$E88,$F88,2016,$I88/10,1,$H88/10,$G88*$H88/10,RateRatios_airpollution!$C88)*10))","v":7858.2952581819991},{"$f":"IF(AND(OR(Calculations!$E$2=\"Orkney Health Board\",Calculations!$E$2=\"Orkney Islands Local Authority\"),$F88=1),0,IF(AND(OR(Calculations!$E$2=\"Shetland Health Board\",Calculations!$E$2=\"Western Isles Health Board\",Calculations!$E$2=\"Shetland Islands Local Authority\",Calculations!$E$2=\"Eilean Siar Local Authority\"),OR($F88=1,$F88=5)),0,new_yllv2(VALUE(LEFT(Options!$B$14,2)),$C88,$D88,$E88,$F88,2016,$I88/10+$J88/10,1,$H88/10,$G88*$H88/10,RateRatios_airpollution!$C88)*10))","v":7858.1561092740003},{"$f":"IF(AND(OR(Calculations!$E$2=\"Orkney Health Board\",Calculations!$E$2=\"Orkney Islands Local Authority\"),$F88=1),0,IF(AND(OR(Calculations!$E$2=\"Shetland Health Board\",Calculations!$E$2=\"Western Isles Health Board\",Calculations!$E$2=\"Shetland Islands Local Authority\",Calculations!$E$2=\"Eilean Siar Local Authority\"),OR($F88=1,$F88=5)),0,hosp_count(VALUE(LEFT(Options!$B$14,2)),$C88,$E88,$F88,2016,$I88/10,1,$H88/10,$G88*$H88/10, RateRatios_airpollution!$D88, RateRatios_airpollution!$C88)*10))","v":9858.8353716769998},{"$f":"IF(AND(OR(Calculations!$E$2=\"Orkney Health Board\",Calculations!$E$2=\"Orkney Islands Local Authority\"),$F88=1),0,IF(AND(OR(Calculations!$E$2=\"Shetland Health Board\",Calculations!$E$2=\"Western Isles Health Board\",Calculations!$E$2=\"Shetland Islands Local Authority\",Calculations!$E$2=\"Eilean Siar Local Authority\"),OR($F88=1,$F88=5)),0,hosp_count(VALUE(LEFT(Options!$B$14,2)),$C88,$E88,$F88,2016,$I88/10+$J88/10,1,$H88/10,$G88*$H88/10, RateRatios_airpollution!$D88, RateRatios_airpollution!$C88)*10))","v":9858.5053271729994},{"$f":"IF(AND(OR(Calculations!$E$2=\"Orkney Health Board\",Calculations!$E$2=\"Orkney Islands Local Authority\"),$F88=1),0,IF(AND(OR(Calculations!$E$2=\"Shetland Health Board\",Calculations!$E$2=\"Western Isles Health Board\",Calculations!$E$2=\"Shetland Islands Local Authority\",Calculations!$E$2=\"Eilean Siar Local Authority\"),OR($F88=1,$F88=5)),0,prem_mort(VALUE(LEFT(Options!$B$14,2)),$C88,$E88,$F88,2016,$I88/10,1,$H88/10,$G88*$H88/10,RateRatios_airpollution!$C88)*10))","v":250.423725631},{"$f":"IF(AND(OR(Calculations!$E$2=\"Orkney Health Board\",Calculations!$E$2=\"Orkney Islands Local Authority\"),$F88=1),0,IF(AND(OR(Calculations!$E$2=\"Shetland Health Board\",Calculations!$E$2=\"Western Isles Health Board\",Calculations!$E$2=\"Shetland Islands Local Authority\",Calculations!$E$2=\"Eilean Siar Local Authority\"),OR($F88=1,$F88=5)),0,prem_mort(VALUE(LEFT(Options!$B$14,2)),$C88,$E88,$F88,2016,$I88/10+$J88/10,1,$H88/10,$G88*$H88/10,RateRatios_airpollution!$C88)*10))","v":250.41929131199998},null,{"$f":"IF(AND(OR(Calculations!$E$2=\"Orkney Health Board\",Calculations!$E$2=\"Orkney Islands Local Authority\"),$F88=1),0,IF(AND(OR(Calculations!$E$2=\"Shetland Health Board\",Calculations!$E$2=\"Western Isles Health Board\",Calculations!$E$2=\"Shetland Islands Local Authority\",Calculations!$E$2=\"Eilean Siar Local Authority\"),OR($F88=1,$F88=5)),0,new_ci(VALUE(LEFT(Options!$B$14,2)),$C88,$E88,$F88,2016,$I88/10,1,$H88/10,$G88*$H88/10,RateRatios_airpollution!$E88)*10))","v":250.423725631},{"$f":"IF(AND(OR(Calculations!$E$2=\"Orkney Health Board\",Calculations!$E$2=\"Orkney Islands Local Authority\"),$F88=1),0,IF(AND(OR(Calculations!$E$2=\"Shetland Health Board\",Calculations!$E$2=\"Western Isles Health Board\",Calculations!$E$2=\"Shetland Islands Local Authority\",Calculations!$E$2=\"Eilean Siar Local Authority\"),OR($F88=1,$F88=5)),0,new_ci(VALUE(LEFT(Options!$B$14,2)),$C88,$E88,$F88,2016,$I88/10+$J88/10,1,$H88/10,$G88*$H88/10,RateRatios_airpollution!$E88)*10))","v":250.421630779},{"$f":"IF(AND(OR(Calculations!$E$2=\"Orkney Health Board\",Calculations!$E$2=\"Orkney Islands Local Authority\"),$F88=1),0,IF(AND(OR(Calculations!$E$2=\"Shetland Health Board\",Calculations!$E$2=\"Western Isles Health Board\",Calculations!$E$2=\"Shetland Islands Local Authority\",Calculations!$E$2=\"Eilean Siar Local Authority\"),OR($F88=1,$F88=5)),0,new_yllv2(VALUE(LEFT(Options!$B$14,2)),$C88,$D88,$E88,$F88,2016,$I88/10,1,$H88/10,$G88*$H88/10,RateRatios_airpollution!$E88)*10))","v":7858.2952581819991},{"$f":"IF(AND(OR(Calculations!$E$2=\"Orkney Health Board\",Calculations!$E$2=\"Orkney Islands Local Authority\"),$F88=1),0,IF(AND(OR(Calculations!$E$2=\"Shetland Health Board\",Calculations!$E$2=\"Western Isles Health Board\",Calculations!$E$2=\"Shetland Islands Local Authority\",Calculations!$E$2=\"Eilean Siar Local Authority\"),OR($F88=1,$F88=5)),0,new_yllv2(VALUE(LEFT(Options!$B$14,2)),$C88,$D88,$E88,$F88,2016,$I88/10+$J88/10,1,$H88/10,$G88*$H88/10,RateRatios_airpollution!$E88)*10))","v":7858.2295217369992},{"$f":"IF(AND(OR(Calculations!$E$2=\"Orkney Health Board\",Calculations!$E$2=\"Orkney Islands Local Authority\"),$F88=1),0,IF(AND(OR(Calculations!$E$2=\"Shetland Health Board\",Calculations!$E$2=\"Western Isles Health Board\",Calculations!$E$2=\"Shetland Islands Local Authority\",Calculations!$E$2=\"Eilean Siar Local Authority\"),OR($F88=1,$F88=5)),0,hosp_count(VALUE(LEFT(Options!$B$14,2)),$C88,$E88,$F88,2016,$I88/10,1,$H88/10,$G88*$H88/10, RateRatios_airpollution!$F88, RateRatios_airpollution!$E88)*10))","v":9858.8353716769998},{"$f":"IF(AND(OR(Calculations!$E$2=\"Orkney Health Board\",Calculations!$E$2=\"Orkney Islands Local Authority\"),$F88=1),0,IF(AND(OR(Calculations!$E$2=\"Shetland Health Board\",Calculations!$E$2=\"Western Isles Health Board\",Calculations!$E$2=\"Shetland Islands Local Authority\",Calculations!$E$2=\"Eilean Siar Local Authority\"),OR($F88=1,$F88=5)),0,hosp_count(VALUE(LEFT(Options!$B$14,2)),$C88,$E88,$F88,2016,$I88/10+$J88/10,1,$H88/10,$G88*$H88/10, RateRatios_airpollution!$F88, RateRatios_airpollution!$E88)*10))","v":9858.8353716769998},{"$f":"IF(AND(OR(Calculations!$E$2=\"Orkney Health Board\",Calculations!$E$2=\"Orkney Islands Local Authority\"),$F88=1),0,IF(AND(OR(Calculations!$E$2=\"Shetland Health Board\",Calculations!$E$2=\"Western Isles Health Board\",Calculations!$E$2=\"Shetland Islands Local Authority\",Calculations!$E$2=\"Eilean Siar Local Authority\"),OR($F88=1,$F88=5)),0,prem_mort(VALUE(LEFT(Options!$B$14,2)),$C88,$E88,$F88,2016,$I88/10,1,$H88/10,$G88*$H88/10,RateRatios_airpollution!$E88)*10))","v":250.423725631},{"$f":"IF(AND(OR(Calculations!$E$2=\"Orkney Health Board\",Calculations!$E$2=\"Orkney Islands Local Authority\"),$F88=1),0,IF(AND(OR(Calculations!$E$2=\"Shetland Health Board\",Calculations!$E$2=\"Western Isles Health Board\",Calculations!$E$2=\"Shetland Islands Local Authority\",Calculations!$E$2=\"Eilean Siar Local Authority\"),OR($F88=1,$F88=5)),0,prem_mort(VALUE(LEFT(Options!$B$14,2)),$C88,$E88,$F88,2016,$I88/10+$J88/10,1,$H88/10,$G88*$H88/10,RateRatios_airpollution!$E88)*10))","v":250.421630779},250.423725631,250.34479526899997,7858.2952581819991,7855.8184238180011,9858.8353716769998,9855.6450065259996,250.423725631,250.34479526899997,697.98686000055739,697.7668634511399,21902.824176882765,21895.920686264566,27478.776329998884,27469.884069697306,697.98686000055739,697.7668634511399,4885908.0200039018,4884368.0441579791,153319769.23817936,153271444.80385196,192351434.30999219,192289188.48788115,4885908.0200039018,4884368.0441579791,7000]
[null,"Male 50-54",51.998646000000001,79.988649999999993,"male",1,1,{"$f":"HLOOKUP(Calculations!$E$2,'Population 2016'!$C$3:$BC$249,'Population 2016'!BD89,FALSE)","v":36922},0,{"$f":"HLOOKUP(Calculations!$E$2,Pop2016_in_settlements!$C$3:$BC$249,Pop2016_in_settlements!$BD89,FALSE)","v":26870},{"$f":"IF(AND(OR(Calculations!$E$2=\"Orkney Health Board\",Calculations!$E$2=\"Orkney Islands Local Authority\"),$F89=1),0,IF(AND(OR(Calculations!$E$2=\"Shetland Health Board\",Calculations!$E$2=\"Western Isles Health Board\",Calculations!$E$2=\"Shetland Islands Local Authority\",Calculations!$E$2=\"Eilean Siar Local Authority\"),OR($F89=1,$F89=5)),0,new_ci(VALUE(LEFT(Options!$B$14,2)),$C89,$E89,$F89,2016,$I89/10,1,$H89/10,$G89*$H89/10,RateRatios_accidents!$B$5)*10))","v":374.18664405800001},{"$f":"IF(AND(OR(Calculations!$E$2=\"Orkney Health Board\",Calculations!$E$2=\"Orkney Islands Local Authority\"),$F89=1),0,IF(AND(OR(Calculations!$E$2=\"Shetland Health Board\",Calculations!$E$2=\"Western Isles Health Board\",Calculations!$E$2=\"Shetland Islands Local Authority\",Calculations!$E$2=\"Eilean Siar Local Authority\"),OR($F89=1,$F89=5)),0,new_ci(VALUE(LEFT(Options!$B$14,2)),$C89,$E89,$F89,2016,$I89/10+$J89/10,1,$H89/10,$G89*$H89/10,RateRatios_accidents!$B$5)*10))","v":374.07826928699996},{"$f":"IF(AND(OR(Calculations!$E$2=\"Orkney Health Board\",Calculations!$E$2=\"Orkney Islands Local Authority\"),$F89=1),0,IF(AND(OR(Calculations!$E$2=\"Shetland Health Board\",Calculations!$E$2=\"Western Isles Health Board\",Calculations!$E$2=\"Shetland Islands Local Authority\",Calculations!$E$2=\"Eilean Siar Local Authority\"),OR($F89=1,$F89=5)),0,new_yllv2(VALUE(LEFT(Options!$B$14,2)),$C89,$D89,$E89,$F89,2016,$I89/10,1,$H89/10,$G89*$H89/10,RateRatios_accidents!$B$5)*10))","v":10099.299019872},{"$f":"IF(AND(OR(Calculations!$E$2=\"Orkney Health Board\",Calculations!$E$2=\"Orkney Islands Local Authority\"),$F89=1),0,IF(AND(OR(Calculations!$E$2=\"Shetland Health Board\",Calculations!$E$2=\"Western Isles Health Board\",Calculations!$E$2=\"Shetland Islands Local Authority\",Calculations!$E$2=\"Eilean Siar Local Authority\"),OR($F89=1,$F89=5)),0,new_yllv2(VALUE(LEFT(Options!$B$14,2)),$C89,$D89,$E89,$F89,2016,$I89/10+$J89/10,1,$H89/10,$G89*$H89/10,RateRatios_accidents!$B$5)*10))","v":10096.373984369},{"$f":"IF(AND(OR(Calculations!$E$2=\"Orkney Health Board\",Calculations!$E$2=\"Orkney Islands Local Authority\"),$F89=1),0,IF(AND(OR(Calculations!$E$2=\"Shetland Health Board\",Calculations!$E$2=\"Western Isles Health Board\",Calculations!$E$2=\"Shetland Islands Local Authority\",Calculations!$E$2=\"Eilean Siar Local Authority\"),OR($F89=1,$F89=5)),0,hosp_count(VALUE(LEFT(Options!$B$14,2)),$C89,$E89,$F89,2016,$I89/10,1,$H89/10,$G89*$H89/10, RateRatios_accidents!$B$4, RateRatios_accidents!$B$5)*10))","v":12099.025182703001},{"$f":"IF(AND(OR(Calculations!$E$2=\"Orkney Health Board\",Calculations!$E$2=\"Orkney Islands Local Authority\"),$F89=1),0,IF(AND(OR(Calculations!$E$2=\"Shetland Health Board\",Calculations!$E$2=\"Western Isles Health Board\",Calculations!$E$2=\"Shetland Islands Local Authority\",Calculations!$E$2=\"Eilean Siar Local Authority\"),OR($F89=1,$F89=5)),0,hosp_count(VALUE(LEFT(Options!$B$14,2)),$C89,$E89,$F89,2016,$I89/10+$J89/10,1,$H89/10,$G89*$H89/10, RateRatios_accidents!$B$4, RateRatios_accidents!$B$5)*10))","v":12095.503154461001},{"$f":"IF(AND(OR(Calculations!$E$2=\"Orkney Health Board\",Calculations!$E$2=\"Orkney Islands Local Authority\"),$F89=1),0,IF(AND(OR(Calculations!$E$2=\"Shetland Health Board\",Calculations!$E$2=\"Western Isles Health Board\",Calculations!$E$2=\"Shetland Islands Local Authority\",Calculations!$E$2=\"Eilean Siar Local Authority\"),OR($F89=1,$F89=5)),0,prem_mort(VALUE(LEFT(Options!$B$14,2)),$C89,$E89,$F89,2016,$I89/10,1,$H89/10,$G89*$H89/10,RateRatios_accidents!$B$5)*10))","v":374.18664405800001},{"$f":"IF(AND(OR(Calculations!$E$2=\"Orkney Health Board\",Calculations!$E$2=\"Orkney Islands Local Authority\"),$F89=1),0,IF(AND(OR(Calculations!$E$2=\"Shetland Health Board\",Calculations!$E$2=\"Western Isles Health Board\",Calculations!$E$2=\"Shetland Islands Local Authority\",Calculations!$E$2=\"Eilean Siar Local Authority\"),OR($F89=1,$F89=5)),0,prem_mort(VALUE(LEFT(Options!$B$14,2)),$C89,$E89,$F89,2016,$I89/10+$J89/10,1,$H89/10,$G89*$H89/10,RateRatios_accidents!$B$5)*10))","v":374.07826928699996},null,{"$f":"IF(AND(OR(Calculations!$E$2=\"Orkney Health Board\",Calculations!$E$2=\"Orkney Islands Local Authority\"),$F89=1),0,IF(AND(OR(Calculations!$E$2=\"Shetland Health Board\",Calculations!$E$2=\"Western Isles Health Board\",Calculations!$E$2=\"Shetland Islands Local Authority\",Calculations!$E$2=\"Eilean Siar Local Authority\"),OR($F89=1,$F89=5)),0,new_ci(VALUE(LEFT(Options!$B$14,2)),$C89,$E89,$F89,2016,$I89/10,1,$H89/10,$G89*$H89/10,RateRatios_airpollution!$C89)*10))","v":374.18664405800001},{"$f":"IF(AND(OR(Calculations!$E$2=\"Orkney Health Board\",Calculations!$E$2=\"Orkney Islands Local Authority\"),$F89=1),0,IF(AND(OR(Calculations!$E$2=\"Shetland Health Board\",Calculations!$E$2=\"Western Isles Health Board\",Calculations!$E$2=\"Shetland Islands Local Authority\",Calculations!$E$2=\"Eilean Siar Local Authority\"),OR($F89=1,$F89=5)),0,new_ci(VALUE(LEFT(Options!$B$14,2)),$C89,$E89,$F89,2016,$I89/10+$J89/10,1,$H89/10,$G89*$H89/10,RateRatios_airpollution!$C89)*10))","v":374.18004747300006},{"$f":"IF(AND(OR(Calculations!$E$2=\"Orkney Health Board\",Calculations!$E$2=\"Orkney Islands Local Authority\"),$F89=1),0,IF(AND(OR(Calculations!$E$2=\"Shetland Health Board\",Calculations!$E$2=\"Western Isles Health Board\",Calculations!$E$2=\"Shetland Islands Local Authority\",Calculations!$E$2=\"Eilean Siar Local Authority\"),OR($F89=1,$F89=5)),0,new_yllv2(VALUE(LEFT(Options!$B$14,2)),$C89,$D89,$E89,$F89,2016,$I89/10,1,$H89/10,$G89*$H89/10,RateRatios_airpollution!$C89)*10))","v":10099.299019872},{"$f":"IF(AND(OR(Calculations!$E$2=\"Orkney Health Board\",Calculations!$E$2=\"Orkney Islands Local Authority\"),$F89=1),0,IF(AND(OR(Calculations!$E$2=\"Shetland Health Board\",Calculations!$E$2=\"Western Isles Health Board\",Calculations!$E$2=\"Shetland Islands Local Authority\",Calculations!$E$2=\"Eilean Siar Local Authority\"),OR($F89=1,$F89=5)),0,new_yllv2(VALUE(LEFT(Options!$B$14,2)),$C89,$D89,$E89,$F89,2016,$I89/10+$J89/10,1,$H89/10,$G89*$H89/10,RateRatios_airpollution!$C89)*10))","v":10099.120978016001},{"$f":"IF(AND(OR(Calculations!$E$2=\"Orkney Health Board\",Calculations!$E$2=\"Orkney Islands Local Authority\"),$F89=1),0,IF(AND(OR(Calculations!$E$2=\"Shetland Health Board\",Calculations!$E$2=\"Western Isles Health Board\",Calculations!$E$2=\"Shetland Islands Local Authority\",Calculations!$E$2=\"Eilean Siar Local Authority\"),OR($F89=1,$F89=5)),0,hosp_count(VALUE(LEFT(Options!$B$14,2)),$C89,$E89,$F89,2016,$I89/10,1,$H89/10,$G89*$H89/10, RateRatios_airpollution!$D89, RateRatios_airpollution!$C89)*10))","v":12099.025182703001},{"$f":"IF(AND(OR(Calculations!$E$2=\"Orkney Health Board\",Calculations!$E$2=\"Orkney Islands Local Authority\"),$F89=1),0,IF(AND(OR(Calculations!$E$2=\"Shetland Health Board\",Calculations!$E$2=\"Western Isles Health Board\",Calculations!$E$2=\"Shetland Islands Local Authority\",Calculations!$E$2=\"Eilean Siar Local Authority\"),OR($F89=1,$F89=5)),0,hosp_count(VALUE(LEFT(Options!$B$14,2)),$C89,$E89,$F89,2016,$I89/10+$J89/10,1,$H89/10,$G89*$H89/10, RateRatios_airpollution!$D89, RateRatios_airpollution!$C89)*10))","v":12098.621280924001},{"$f":"IF(AND(OR(Calculations!$E$2=\"Orkney Health Board\",Calculations!$E$2=\"Orkney Islands Local Authority\"),$F89=1),0,IF(AND(OR(Calculations!$E$2=\"Shetland Health Board\",Calculations!$E$2=\"Western Isles Health Board\",Calculations!$E$2=\"Shetland Islands Local Authority\",Calculations!$E$2=\"Eilean Siar Local Authority\"),OR($F89=1,$F89=5)),0,prem_mort(VALUE(LEFT(Options!$B$14,2)),$C89,$E89,$F89,2016,$I89/10,1,$H89/10,$G89*$H89/10,RateRatios_airpollution!$C89)*10))","v":374.18664405800001},{"$f":"IF(AND(OR(Calculations!$E$2=\"Orkney Health Board\",Calculations!$E$2=\"Orkney Islands Local Authority\"),$F89=1),0,IF(AND(OR(Calculations!$E$2=\"Shetland Health Board\",Calculations!$E$2=\"Western Isles Health Board\",Calculations!$E$2=\"Shetland Islands Local Authority\",Calculations!$E$2=\"Eilean Siar Local Authority\"),OR($F89=1,$F89=5)),0,prem_mort(VALUE(LEFT(Options!$B$14,2)),$C89,$E89,$F89,2016,$I89/10+$J89/10,1,$H89/10,$G89*$H89/10,RateRatios_airpollution!$C89)*10))","v":374.18004747300006},null,{"$f":"IF(AND(OR(Calculations!$E$2=\"Orkney Health Board\",Calculations!$E$2=\"Orkney Islands Local Authority\"),$F89=1),0,IF(AND(OR(Calculations!$E$2=\"Shetland Health Board\",Calculations!$E$2=\"Western Isles Health Board\",Calculations!$E$2=\"Shetland Islands Local Authority\",Calculations!$E$2=\"Eilean Siar Local Authority\"),OR($F89=1,$F89=5)),0,new_ci(VALUE(LEFT(Options!$B$14,2)),$C89,$E89,$F89,2016,$I89/10,1,$H89/10,$G89*$H89/10,RateRatios_airpollution!$E89)*10))","v":374.18664405800001},{"$f":"IF(AND(OR(Calculations!$E$2=\"Orkney Health Board\",Calculations!$E$2=\"Orkney Islands Local Authority\"),$F89=1),0,IF(AND(OR(Calculations!$E$2=\"Shetland Health Board\",Calculations!$E$2=\"Western Isles Health Board\",Calculations!$E$2=\"Shetland Islands Local Authority\",Calculations!$E$2=\"Eilean Siar Local Authority\"),OR($F89=1,$F89=5)),0,new_ci(VALUE(LEFT(Options!$B$14,2)),$C89,$E89,$F89,2016,$I89/10+$J89/10,1,$H89/10,$G89*$H89/10,RateRatios_airpollution!$E89)*10))","v":374.18352445099998},{"$f":"IF(AND(OR(Calculations!$E$2=\"Orkney Health Board\",Calculations!$E$2=\"Orkney Islands Local Authority\"),$F89=1),0,IF(AND(OR(Calculations!$E$2=\"Shetland Health Board\",Calculations!$E$2=\"Western Isles Health Board\",Calculations!$E$2=\"Shetland Islands Local Authority\",Calculations!$E$2=\"Eilean Siar Local Authority\"),OR($F89=1,$F89=5)),0,new_yllv2(VALUE(LEFT(Options!$B$14,2)),$C89,$D89,$E89,$F89,2016,$I89/10,1,$H89/10,$G89*$H89/10,RateRatios_airpollution!$E89)*10))","v":10099.299019872},{"$f":"IF(AND(OR(Calculations!$E$2=\"Orkney Health Board\",Calculations!$E$2=\"Orkney Islands Local Authority\"),$F89=1),0,IF(AND(OR(Calculations!$E$2=\"Shetland Health Board\",Calculations!$E$2=\"Western Isles Health Board\",Calculations!$E$2=\"Shetland Islands Local Authority\",Calculations!$E$2=\"Eilean Siar Local Authority\"),OR($F89=1,$F89=5)),0,new_yllv2(VALUE(LEFT(Options!$B$14,2)),$C89,$D89,$E89,$F89,2016,$I89/10+$J89/10,1,$H89/10,$G89*$H89/10,RateRatios_airpollution!$E89)*10))","v":10099.214821666999},{"$f":"IF(AND(OR(Calculations!$E$2=\"Orkney Health Board\",Calculations!$E$2=\"Orkney Islands Local Authority\"),$F89=1),0,IF(AND(OR(Calculations!$E$2=\"Shetland Health Board\",Calculations!$E$2=\"Western Isles Health Board\",Calculations!$E$2=\"Shetland Islands Local Authority\",Calculations!$E$2=\"Eilean Siar Local Authority\"),OR($F89=1,$F89=5)),0,hosp_count(VALUE(LEFT(Options!$B$14,2)),$C89,$E89,$F89,2016,$I89/10,1,$H89/10,$G89*$H89/10, RateRatios_airpollution!$F89, RateRatios_airpollution!$E89)*10))","v":12099.025182703001},{"$f":"IF(AND(OR(Calculations!$E$2=\"Orkney Health Board\",Calculations!$E$2=\"Orkney Islands Local Authority\"),$F89=1),0,IF(AND(OR(Calculations!$E$2=\"Shetland Health Board\",Calculations!$E$2=\"Western Isles Health Board\",Calculations!$E$2=\"Shetland Islands Local Authority\",Calculations!$E$2=\"Eilean Siar Local Authority\"),OR($F89=1,$F89=5)),0,hosp_count(VALUE(LEFT(Options!$B$14,2)),$C89,$E89,$F89,2016,$I89/10+$J89/10,1,$H89/10,$G89*$H89/10, RateRatios_airpollution!$F89, RateRatios_airpollution!$E89)*10))","v":12099.025182703001},{"$f":"IF(AND(OR(Calculations!$E$2=\"Orkney Health Board\",Calculations!$E$2=\"Orkney Islands Local Authority\"),$F89=1),0,IF(AND(OR(Calculations!$E$2=\"Shetland Health Board\",Calculations!$E$2=\"Western Isles Health Board\",Calculations!$E$2=\"Shetland Islands Local Authority\",Calculations!$E$2=\"Eilean Siar Local Authority\"),OR($F89=1,$F89=5)),0,prem_mort(VALUE(LEFT(Options!$B$14,2)),$C89,$E89,$F89,2016,$I89/10,1,$H89/10,$G89*$H89/10,RateRatios_airpollution!$E89)*10))","v":374.18664405800001},{"$f":"IF(AND(OR(Calculations!$E$2=\"Orkney Health Board\",Calculations!$E$2=\"Orkney Islands Local Authority\"),$F89=1),0,IF(AND(OR(Calculations!$E$2=\"Shetland Health Board\",Calculations!$E$2=\"Western Isles Health Board\",Calculations!$E$2=\"Shetland Islands Local Authority\",Calculations!$E$2=\"Eilean Siar Local Authority\"),OR($F89=1,$F89=5)),0,prem_mort(VALUE(LEFT(Options!$B$14,2)),$C89,$E89,$F89,2016,$I89/10+$J89/10,1,$H89/10,$G89*$H89/10,RateRatios_airpollution!$E89)*10))","v":374.18352445099998},374.18664405800001,374.06855309499997,10099.299019872,10096.111744308,12099.025182703001,12095.099252682001,374.18664405800001,374.06855309499997,1013.4517199989166,1013.13188097882,27353.065976577651,27344.433520145169,32769.148969998918,32758.51593272846,1013.4517199989166,1013.13188097882,7094162.0399924163,7091923.1668517403,191471461.83604357,191411034.64101619,229384042.78999242,229309611.52909923,7094162.0399924163,7091923.1668517403,7000]
[null,"Male 55-59",56.950867000000002,80.660870000000003,"male",1,1,{"$f":"HLOOKUP(Calculations!$E$2,'Population 2016'!$C$3:$BC$249,'Population 2016'!BD90,FALSE)","v":33251},0,{"$f":"HLOOKUP(Calculations!$E$2,Pop2016_in_settlements!$C$3:$BC$249,Pop2016_in_settlements!$BD90,FALSE)","v":24324},{"$f":"IF(AND(OR(Calculations!$E$2=\"Orkney Health Board\",Calculations!$E$2=\"Orkney Islands Local Authority\"),$F90=1),0,IF(AND(OR(Calculations!$E$2=\"Shetland Health Board\",Calculations!$E$2=\"Western Isles Health Board\",Calculations!$E$2=\"Shetland Islands Local Authority\",Calculations!$E$2=\"Eilean Siar Local Authority\"),OR($F90=1,$F90=5)),0,new_ci(VALUE(LEFT(Options!$B$14,2)),$C90,$E90,$F90,2016,$I90/10,1,$H90/10,$G90*$H90/10,RateRatios_accidents!$B$5)*10))","v":488.631727824},{"$f":"IF(AND(OR(Calculations!$E$2=\"Orkney Health Board\",Calculations!$E$2=\"Orkney Islands Local Authority\"),$F90=1),0,IF(AND(OR(Calculations!$E$2=\"Shetland Health Board\",Calculations!$E$2=\"Western Isles Health Board\",Calculations!$E$2=\"Shetland Islands Local Authority\",Calculations!$E$2=\"Eilean Siar Local Authority\"),OR($F90=1,$F90=5)),0,new_ci(VALUE(LEFT(Options!$B$14,2)),$C90,$E90,$F90,2016,$I90/10+$J90/10,1,$H90/10,$G90*$H90/10,RateRatios_accidents!$B$5)*10))","v":488.48980458100004},{"$f":"IF(AND(OR(Calculations!$E$2=\"Orkney Health Board\",Calculations!$E$2=\"Orkney Islands Local Authority\"),$F90=1),0,IF(AND(OR(Calculations!$E$2=\"Shetland Health Board\",Calculations!$E$2=\"Western Isles Health Board\",Calculations!$E$2=\"Shetland Islands Local Authority\",Calculations!$E$2=\"Eilean Siar Local Authority\"),OR($F90=1,$F90=5)),0,new_yllv2(VALUE(LEFT(Options!$B$14,2)),$C90,$D90,$E90,$F90,2016,$I90/10,1,$H90/10,$G90*$H90/10,RateRatios_accidents!$B$5)*10))","v":11096.828004777999},{"$f":"IF(AND(OR(Calculations!$E$2=\"Orkney Health Board\",Calculations!$E$2=\"Orkney Islands Local Authority\"),$F90=1),0,IF(AND(OR(Calculations!$E$2=\"Shetland Health Board\",Calculations!$E$2=\"Western Isles Health Board\",Calculations!$E$2=\"Shetland Islands Local Authority\",Calculations!$E$2=\"Eilean Siar Local Authority\"),OR($F90=1,$F90=5)),0,new_yllv2(VALUE(LEFT(Options!$B$14,2)),$C90,$D90,$E90,$F90,2016,$I90/10+$J90/10,1,$H90/10,$G90*$H90/10,RateRatios_accidents!$B$5)*10))","v":11093.604927504},{"$f":"IF(AND(OR(Calculations!$E$2=\"Orkney Health Board\",Calculations!$E$2=\"Orkney Islands Local Authority\"),$F90=1),0,IF(AND(OR(Calculations!$E$2=\"Shetland Health Board\",Calculations!$E$2=\"Western Isles Health Board\",Calculations!$E$2=\"Shetland Islands Local Authority\",Calculations!$E$2=\"Eilean Siar Local Authority\"),OR($F90=1,$F90=5)),0,hosp_count(VALUE(LEFT(Options!$B$14,2)),$C90,$E90,$F90,2016,$I90/10,1,$H90/10,$G90*$H90/10, RateRatios_accidents!$B$4, RateRatios_accidents!$B$5)*10))","v":12990.030241527},{"$f":"IF(AND(OR(Calculations!$E$2=\"Orkney Health Board\",Calculations!$E$2=\"Orkney Islands Local Authority\"),$F90=1),0,IF(AND(OR(Calculations!$E$2=\"Shetland Health Board\",Calculations!$E$2=\"Western Isles Health Board\",Calculations!$E$2=\"Shetland Islands Local Authority\",Calculations!$E$2=\"Eilean Siar Local Authority\"),OR($F90=1,$F90=5)),0,hosp_count(VALUE(LEFT(Options!$B$14,2)),$C90,$E90,$F90,2016,$I90/10+$J90/10,1,$H90/10,$G90*$H90/10, RateRatios_accidents!$B$4, RateRatios_accidents!$B$5)*10))","v":12986.229220046},{"$f":"IF(AND(OR(Calculations!$E$2=\"Orkney Health Board\",Calculations!$E$2=\"Orkney Islands Local Authority\"),$F90=1),0,IF(AND(OR(Calculations!$E$2=\"Shetland Health Board\",Calculations!$E$2=\"Western Isles Health Board\",Calculations!$E$2=\"Shetland Islands Local Authority\",Calculations!$E$2=\"Eilean Siar Local Authority\"),OR($F90=1,$F90=5)),0,prem_mort(VALUE(LEFT(Options!$B$14,2)),$C90,$E90,$F90,2016,$I90/10,1,$H90/10,$G90*$H90/10,RateRatios_accidents!$B$5)*10))","v":488.631727824},{"$f":"IF(AND(OR(Calculations!$E$2=\"Orkney Health Board\",Calculations!$E$2=\"Orkney Islands Local Authority\"),$F90=1),0,IF(AND(OR(Calculations!$E$2=\"Shetland Health Board\",Calculations!$E$2=\"Western Isles Health Board\",Calculations!$E$2=\"Shetland Islands Local Authority\",Calculations!$E$2=\"Eilean Siar Local Authority\"),OR($F90=1,$F90=5)),0,prem_mort(VALUE(LEFT(Options!$B$14,2)),$C90,$E90,$F90,2016,$I90/10+$J90/10,1,$H90/10,$G90*$H90/10,RateRatios_accidents!$B$5)*10))","v":488.48980458100004},null,{"$f":"IF(AND(OR(Calculations!$E$2=\"Orkney Health Board\",Calculations!$E$2=\"Orkney Islands Local Authority\"),$F90=1),0,IF(AND(OR(Calculations!$E$2=\"Shetland Health Board\",Calculations!$E$2=\"Western Isles Health Board\",Calculations!$E$2=\"Shetland Islands Local Authority\",Calculations!$E$2=\"Eilean Siar Local Authority\"),OR($F90=1,$F90=5)),0,new_ci(VALUE(LEFT(Options!$B$14,2)),$C90,$E90,$F90,2016,$I90/10,1,$H90/10,$G90*$H90/10,RateRatios_airpollution!$C90)*10))","v":488.631727824},{"$f":"IF(AND(OR(Calculations!$E$2=\"Orkney Health Board\",Calculations!$E$2=\"Orkney Islands Local Authority\"),$F90=1),0,IF(AND(OR(Calculations!$E$2=\"Shetland Health Board\",Calculations!$E$2=\"Western Isles Health Board\",Calculations!$E$2=\"Shetland Islands Local Authority\",Calculations!$E$2=\"Eilean Siar Local Authority\"),OR($F90=1,$F90=5)),0,new_ci(VALUE(LEFT(Options!$B$14,2)),$C90,$E90,$F90,2016,$I90/10+$J90/10,1,$H90/10,$G90*$H90/10,RateRatios_airpollution!$C90)*10))","v":488.623253342},{"$f":"IF(AND(OR(Calculations!$E$2=\"Orkney Health Board\",Calculations!$E$2=\"Orkney Islands Local Authority\"),$F90=1),0,IF(AND(OR(Calculations!$E$2=\"Shetland Health Board\",Calculations!$E$2=\"Western Isles Health Board\",Calculations!$E$2=\"Shetland Islands Local Authority\",Calculations!$E$2=\"Eilean Siar Local Authority\"),OR($F90=1,$F90=5)),0,new_yllv2(VALUE(LEFT(Options!$B$14,2)),$C90,$D90,$E90,$F90,2016,$I90/10,1,$H90/10,$G90*$H90/10,RateRatios_airpollution!$C90)*10))","v":11096.828004777999},{"$f":"IF(AND(OR(Calculations!$E$2=\"Orkney Health Board\",Calculations!$E$2=\"Orkney Islands Local Authority\"),$F90=1),0,IF(AND(OR(Calculations!$E$2=\"Shetland Health Board\",Calculations!$E$2=\"Western Isles Health Board\",Calculations!$E$2=\"Shetland Islands Local Authority\",Calculations!$E$2=\"Eilean Siar Local Authority\"),OR($F90=1,$F90=5)),0,new_yllv2(VALUE(LEFT(Options!$B$14,2)),$C90,$D90,$E90,$F90,2016,$I90/10+$J90/10,1,$H90/10,$G90*$H90/10,RateRatios_airpollution!$C90)*10))","v":11096.635549267001},{"$f":"IF(AND(OR(Calculations!$E$2=\"Orkney Health Board\",Calculations!$E$2=\"Orkney Islands Local Authority\"),$F90=1),0,IF(AND(OR(Calculations!$E$2=\"Shetland Health Board\",Calculations!$E$2=\"Western Isles Health Board\",Calculations!$E$2=\"Shetland Islands Local Authority\",Calculations!$E$2=\"Eilean Siar Local Authority\"),OR($F90=1,$F90=5)),0,hosp_count(VALUE(LEFT(Options!$B$14,2)),$C90,$E90,$F90,2016,$I90/10,1,$H90/10,$G90*$H90/10, RateRatios_airpollution!$D90, RateRatios_airpollution!$C90)*10))","v":12990.030241527},{"$f":"IF(AND(OR(Calculations!$E$2=\"Orkney Health Board\",Calculations!$E$2=\"Orkney Islands Local Authority\"),$F90=1),0,IF(AND(OR(Calculations!$E$2=\"Shetland Health Board\",Calculations!$E$2=\"Western Isles Health Board\",Calculations!$E$2=\"Shetland Islands Local Authority\",Calculations!$E$2=\"Eilean Siar Local Authority\"),OR($F90=1,$F90=5)),0,hosp_count(VALUE(LEFT(Options!$B$14,2)),$C90,$E90,$F90,2016,$I90/10+$J90/10,1,$H90/10,$G90*$H90/10, RateRatios_airpollution!$D90, RateRatios_airpollution!$C90)*10))","v":12989.602628039},{"$f":"IF(AND(OR(Calculations!$E$2=\"Orkney Health Board\",Calculations!$E$2=\"Orkney Islands Local Authority\"),$F90=1),0,IF(AND(OR(Calculations!$E$2=\"Shetland Health Board\",Calculations!$E$2=\"Western Isles Health Board\",Calculations!$E$2=\"Shetland Islands Local Authority\",Calculations!$E$2=\"Eilean Siar Local Authority\"),OR($F90=1,$F90=5)),0,prem_mort(VALUE(LEFT(Options!$B$14,2)),$C90,$E90,$F90,2016,$I90/10,1,$H90/10,$G90*$H90/10,RateRatios_airpollution!$C90)*10))","v":488.631727824},{"$f":"IF(AND(OR(Calculations!$E$2=\"Orkney Health Board\",Calculations!$E$2=\"Orkney Islands Local Authority\"),$F90=1),0,IF(AND(OR(Calculations!$E$2=\"Shetland Health Board\",Calculations!$E$2=\"Western Isles Health Board\",Calculations!$E$2=\"Shetland Islands Local Authority\",Calculations!$E$2=\"Eilean Siar Local Authority\"),OR($F90=1,$F90=5)),0,prem_mort(VALUE(LEFT(Options!$B$14,2)),$C90,$E90,$F90,2016,$I90/10+$J90/10,1,$H90/10,$G90*$H90/10,RateRatios_airpollution!$C90)*10))","v":488.623253342},null,{"$f":"IF(AND(OR(Calculations!$E$2=\"Orkney Health Board\",Calculations!$E$2=\"Orkney Islands Local Authority\"),$F90=1),0,IF(AND(OR(Calculations!$E$2=\"Shetland Health Board\",Calculations!$E$2=\"Western Isles Health Board\",Calculations!$E$2=\"Shetland Islands Local Authority\",Calculations!$E$2=\"Eilean Siar Local Authority\"),OR($F90=1,$F90=5)),0,new_ci(VALUE(LEFT(Options!$B$14,2)),$C90,$E90,$F90,2016,$I90/10,1,$H90/10,$G90*$H90/10,RateRatios_airpollution!$E90)*10))","v":488.631727824},{"$f":"IF(AND(OR(Calculations!$E$2=\"Orkney Health Board\",Calculations!$E$2=\"Orkney Islands Local Authority\"),$F90=1),0,IF(AND(OR(Calculations!$E$2=\"Shetland Health Board\",Calculations!$E$2=\"Western Isles Health Board\",Calculations!$E$2=\"Shetland Islands Local Authority\",Calculations!$E$2=\"Eilean Siar Local Authority\"),OR($F90=1,$F90=5)),0,new_ci(VALUE(LEFT(Options!$B$14,2)),$C90,$E90,$F90,2016,$I90/10+$J90/10,1,$H90/10,$G90*$H90/10,RateRatios_airpollution!$E90)*10))","v":488.62771193199995},{"$f":"IF(AND(OR(Calculations!$E$2=\"Orkney Health Board\",Calculations!$E$2=\"Orkney Islands Local Authority\"),$F90=1),0,IF(AND(OR(Calculations!$E$2=\"Shetland Health Board\",Calculations!$E$2=\"Western Isles Health Board\",Calculations!$E$2=\"Shetland Islands Local Authority\",Calculations!$E$2=\"Eilean Siar Local Authority\"),OR($F90=1,$F90=5)),0,new_yllv2(VALUE(LEFT(Options!$B$14,2)),$C90,$D90,$E90,$F90,2016,$I90/10,1,$H90/10,$G90*$H90/10,RateRatios_airpollution!$E90)*10))","v":11096.828004777999},{"$f":"IF(AND(OR(Calculations!$E$2=\"Orkney Health Board\",Calculations!$E$2=\"Orkney Islands Local Authority\"),$F90=1),0,IF(AND(OR(Calculations!$E$2=\"Shetland Health Board\",Calculations!$E$2=\"Western Isles Health Board\",Calculations!$E$2=\"Shetland Islands Local Authority\",Calculations!$E$2=\"Eilean Siar Local Authority\"),OR($F90=1,$F90=5)),0,new_yllv2(VALUE(LEFT(Options!$B$14,2)),$C90,$D90,$E90,$F90,2016,$I90/10+$J90/10,1,$H90/10,$G90*$H90/10,RateRatios_airpollution!$E90)*10))","v":11096.736803859001},{"$f":"IF(AND(OR(Calculations!$E$2=\"Orkney Health Board\",Calculations!$E$2=\"Orkney Islands Local Authority\"),$F90=1),0,IF(AND(OR(Calculations!$E$2=\"Shetland Health Board\",Calculations!$E$2=\"Western Isles Health Board\",Calculations!$E$2=\"Shetland Islands Local Authority\",Calculations!$E$2=\"Eilean Siar Local Authority\"),OR($F90=1,$F90=5)),0,hosp_count(VALUE(LEFT(Options!$B$14,2)),$C90,$E90,$F90,2016,$I90/10,1,$H90/10,$G90*$H90/10, RateRatios_airpollution!$F90, RateRatios_airpollution!$E90)*10))","v":12990.030241527},{"$f":"IF(AND(OR(Calculations!$E$2=\"Orkney Health Board\",Calculations!$E$2=\"Orkney Islands Local Authority\"),$F90=1),0,IF(AND(OR(Calculations!$E$2=\"Shetland Health Board\",Calculations!$E$2=\"Western Isles Health Board\",Calculations!$E$2=\"Shetland Islands Local Authority\",Calculations!$E$2=\"Eilean Siar Local Authority\"),OR($F90=1,$F90=5)),0,hosp_count(VALUE(LEFT(Options!$B$14,2)),$C90,$E90,$F90,2016,$I90/10+$J90/10,1,$H90/10,$G90*$H90/10, RateRatios_airpollution!$F90, RateRatios_airpollution!$E90)*10))","v":12990.030241527},{"$f":"IF(AND(OR(Calculations!$E$2=\"Orkney Health Board\",Calculations!$E$2=\"Orkney Islands Local Authority\"),$F90=1),0,IF(AND(OR(Calculations!$E$2=\"Shetland Health Board\",Calculations!$E$2=\"Western Isles Health Board\",Calculations!$E$2=\"Shetland Islands Local Authority\",Calculations!$E$2=\"Eilean Siar Local Authority\"),OR($F90=1,$F90=5)),0,prem_mort(VALUE(LEFT(Options!$B$14,2)),$C90,$E90,$F90,2016,$I90/10,1,$H90/10,$G90*$H90/10,RateRatios_airpollution!$E90)*10))","v":488.631727824},{"$f":"IF(AND(OR(Calculations!$E$2=\"Orkney Health Board\",Calculations!$E$2=\"Orkney Islands Local Authority\"),$F90=1),0,IF(AND(OR(Calculations!$E$2=\"Shetland Health Board\",Calculations!$E$2=\"Western Isles Health Board\",Calculations!$E$2=\"Shetland Islands Local Authority\",Calculations!$E$2=\"Eilean Siar Local Authority\"),OR($F90=1,$F90=5)),0,prem_mort(VALUE(LEFT(Options!$B$14,2)),$C90,$E90,$F90,2016,$I90/10+$J90/10,1,$H90/10,$G90*$H90/10,RateRatios_airpollution!$E90)*10))","v":488.62771193199995},488.631727824,488.47731420700001,11096.828004777999,11093.321271074004,12990.030241527,12985.801606558,488.631727824,488.47731420700001,1469.5249099996993,1469.0605221106132,33372.915114667223,33362.368864316872,39066.585190000296,39053.867873321098,1469.5249099996993,1469.0605221106132,9551911.9149980452,9548893.3937189858,216923948.24533695,216855397.61805966,253932803.73500192,253850141.17658713,9551911.9149980452,9548893.3937189858,6500]
[null,"Male 60-64",61.942988999999997,81.612989999999996,"male",1,1,{"$f":"HLOOKUP(Calculations!$E$2,'Population 2016'!$C$3:$BC$249,'Population 2016'!BD91,FALSE)","v":27358},0,{"$f":"HLOOKUP(Calculations!$E$2,Pop2016_in_settlements!$C$3:$BC$249,Pop2016_in_settlements!$BD91,FALSE)","v":19717},{"$f":"IF(AND(OR(Calculations!$E$2=\"Orkney Health Board\",Calculations!$E$2=\"Orkney Islands Local Authority\"),$F91=1),0,IF(AND(OR(Calculations!$E$2=\"Shetland Health Board\",Calculations!$E$2=\"Western Isles Health Board\",Calculations!$E$2=\"Shetland Islands Local Authority\",Calculations!$E$2=\"Eilean Siar Local Authority\"),OR($F91=1,$F91=5)),0,new_ci(VALUE(LEFT(Options!$B$14,2)),$C91,$E91,$F91,2016,$I91/10,1,$H91/10,$G91*$H91/10,RateRatios_accidents!$B$5)*10))","v":584.08642767000003},{"$f":"IF(AND(OR(Calculations!$E$2=\"Orkney Health Board\",Calculations!$E$2=\"Orkney Islands Local Authority\"),$F91=1),0,IF(AND(OR(Calculations!$E$2=\"Shetland Health Board\",Calculations!$E$2=\"Western Isles Health Board\",Calculations!$E$2=\"Shetland Islands Local Authority\",Calculations!$E$2=\"Eilean Siar Local Authority\"),OR($F91=1,$F91=5)),0,new_ci(VALUE(LEFT(Options!$B$14,2)),$C91,$E91,$F91,2016,$I91/10+$J91/10,1,$H91/10,$G91*$H91/10,RateRatios_accidents!$B$5)*10))","v":583.91985845399995},{"$f":"IF(AND(OR(Calculations!$E$2=\"Orkney Health Board\",Calculations!$E$2=\"Orkney Islands Local Authority\"),$F91=1),0,IF(AND(OR(Calculations!$E$2=\"Shetland Health Board\",Calculations!$E$2=\"Western Isles Health Board\",Calculations!$E$2=\"Shetland Islands Local Authority\",Calculations!$E$2=\"Eilean Siar Local Authority\"),OR($F91=1,$F91=5)),0,new_yllv2(VALUE(LEFT(Options!$B$14,2)),$C91,$D91,$E91,$F91,2016,$I91/10,1,$H91/10,$G91*$H91/10,RateRatios_accidents!$B$5)*10))","v":10904.894188685001},{"$f":"IF(AND(OR(Calculations!$E$2=\"Orkney Health Board\",Calculations!$E$2=\"Orkney Islands Local Authority\"),$F91=1),0,IF(AND(OR(Calculations!$E$2=\"Shetland Health Board\",Calculations!$E$2=\"Western Isles Health Board\",Calculations!$E$2=\"Shetland Islands Local Authority\",Calculations!$E$2=\"Eilean Siar Local Authority\"),OR($F91=1,$F91=5)),0,new_yllv2(VALUE(LEFT(Options!$B$14,2)),$C91,$D91,$E91,$F91,2016,$I91/10+$J91/10,1,$H91/10,$G91*$H91/10,RateRatios_accidents!$B$5)*10))","v":10901.784341256},{"$f":"IF(AND(OR(Calculations!$E$2=\"Orkney Health Board\",Calculations!$E$2=\"Orkney Islands Local Authority\"),$F91=1),0,IF(AND(OR(Calculations!$E$2=\"Shetland Health Board\",Calculations!$E$2=\"Western Isles Health Board\",Calculations!$E$2=\"Shetland Islands Local Authority\",Calculations!$E$2=\"Eilean Siar Local Authority\"),OR($F91=1,$F91=5)),0,hosp_count(VALUE(LEFT(Options!$B$14,2)),$C91,$E91,$F91,2016,$I91/10,1,$H91/10,$G91*$H91/10, RateRatios_accidents!$B$4, RateRatios_accidents!$B$5)*10))","v":12759.838377568998},{"$f":"IF(AND(OR(Calculations!$E$2=\"Orkney Health Board\",Calculations!$E$2=\"Orkney Islands Local Authority\"),$F91=1),0,IF(AND(OR(Calculations!$E$2=\"Shetland Health Board\",Calculations!$E$2=\"Western Isles Health Board\",Calculations!$E$2=\"Shetland Islands Local Authority\",Calculations!$E$2=\"Eilean Siar Local Authority\"),OR($F91=1,$F91=5)),0,hosp_count(VALUE(LEFT(Options!$B$14,2)),$C91,$E91,$F91,2016,$I91/10+$J91/10,1,$H91/10,$G91*$H91/10, RateRatios_accidents!$B$4, RateRatios_accidents!$B$5)*10))","v":12756.159954331999},{"$f":"IF(AND(OR(Calculations!$E$2=\"Orkney Health Board\",Calculations!$E$2=\"Orkney Islands Local Authority\"),$F91=1),0,IF(AND(OR(Calculations!$E$2=\"Shetland Health Board\",Calculations!$E$2=\"Western Isles Health Board\",Calculations!$E$2=\"Shetland Islands Local Authority\",Calculations!$E$2=\"Eilean Siar Local Authority\"),OR($F91=1,$F91=5)),0,prem_mort(VALUE(LEFT(Options!$B$14,2)),$C91,$E91,$F91,2016,$I91/10,1,$H91/10,$G91*$H91/10,RateRatios_accidents!$B$5)*10))","v":584.08642767000003},{"$f":"IF(AND(OR(Calculations!$E$2=\"Orkney Health Board\",Calculations!$E$2=\"Orkney Islands Local Authority\"),$F91=1),0,IF(AND(OR(Calculations!$E$2=\"Shetland Health Board\",Calculations!$E$2=\"Western Isles Health Board\",Calculations!$E$2=\"Shetland Islands Local Authority\",Calculations!$E$2=\"Eilean Siar Local Authority\"),OR($F91=1,$F91=5)),0,prem_mort(VALUE(LEFT(Options!$B$14,2)),$C91,$E91,$F91,2016,$I91/10+$J91/10,1,$H91/10,$G91*$H91/10,RateRatios_accidents!$B$5)*10))","v":583.91985845399995},null,{"$f":"IF(AND(OR(Calculations!$E$2=\"Orkney Health Board\",Calculations!$E$2=\"Orkney Islands Local Authority\"),$F91=1),0,IF(AND(OR(Calculations!$E$2=\"Shetland Health Board\",Calculations!$E$2=\"Western Isles Health Board\",Calculations!$E$2=\"Shetland Islands Local Authority\",Calculations!$E$2=\"Eilean Siar Local Authority\"),OR($F91=1,$F91=5)),0,new_ci(VALUE(LEFT(Options!$B$14,2)),$C91,$E91,$F91,2016,$I91/10,1,$H91/10,$G91*$H91/10,RateRatios_airpollution!$C91)*10))","v":584.08642767000003},{"$f":"IF(AND(OR(Calculations!$E$2=\"Orkney Health Board\",Calculations!$E$2=\"Orkney Islands Local Authority\"),$F91=1),0,IF(AND(OR(Calculations!$E$2=\"Shetland Health Board\",Calculations!$E$2=\"Western Isles Health Board\",Calculations!$E$2=\"Shetland Islands Local Authority\",Calculations!$E$2=\"Eilean Siar Local Authority\"),OR($F91=1,$F91=5)),0,new_ci(VALUE(LEFT(Options!$B$14,2)),$C91,$E91,$F91,2016,$I91/10+$J91/10,1,$H91/10,$G91*$H91/10,RateRatios_airpollution!$C91)*10))","v":584.07641734999993},{"$f":"IF(AND(OR(Calculations!$E$2=\"Orkney Health Board\",Calculations!$E$2=\"Orkney Islands Local Authority\"),$F91=1),0,IF(AND(OR(Calculations!$E$2=\"Shetland Health Board\",Calculations!$E$2=\"Western Isles Health Board\",Calculations!$E$2=\"Shetland Islands Local Authority\",Calculations!$E$2=\"Eilean Siar Local Authority\"),OR($F91=1,$F91=5)),0,new_yllv2(VALUE(LEFT(Options!$B$14,2)),$C91,$D91,$E91,$F91,2016,$I91/10,1,$H91/10,$G91*$H91/10,RateRatios_airpollution!$C91)*10))","v":10904.894188685001},{"$f":"IF(AND(OR(Calculations!$E$2=\"Orkney Health Board\",Calculations!$E$2=\"Orkney Islands Local Authority\"),$F91=1),0,IF(AND(OR(Calculations!$E$2=\"Shetland Health Board\",Calculations!$E$2=\"Western Isles Health Board\",Calculations!$E$2=\"Shetland Islands Local Authority\",Calculations!$E$2=\"Eilean Siar Local Authority\"),OR($F91=1,$F91=5)),0,new_yllv2(VALUE(LEFT(Options!$B$14,2)),$C91,$D91,$E91,$F91,2016,$I91/10+$J91/10,1,$H91/10,$G91*$H91/10,RateRatios_airpollution!$C91)*10))","v":10904.707296000999},{"$f":"IF(AND(OR(Calculations!$E$2=\"Orkney Health Board\",Calculations!$E$2=\"Orkney Islands Local Authority\"),$F91=1),0,IF(AND(OR(Calculations!$E$2=\"Shetland Health Board\",Calculations!$E$2=\"Western Isles Health Board\",Calculations!$E$2=\"Shetland Islands Local Authority\",Calculations!$E$2=\"Eilean Siar Local Authority\"),OR($F91=1,$F91=5)),0,hosp_count(VALUE(LEFT(Options!$B$14,2)),$C91,$E91,$F91,2016,$I91/10,1,$H91/10,$G91*$H91/10, RateRatios_airpollution!$D91, RateRatios_airpollution!$C91)*10))","v":12759.838377568998},{"$f":"IF(AND(OR(Calculations!$E$2=\"Orkney Health Board\",Calculations!$E$2=\"Orkney Islands Local Authority\"),$F91=1),0,IF(AND(OR(Calculations!$E$2=\"Shetland Health Board\",Calculations!$E$2=\"Western Isles Health Board\",Calculations!$E$2=\"Shetland Islands Local Authority\",Calculations!$E$2=\"Eilean Siar Local Authority\"),OR($F91=1,$F91=5)),0,hosp_count(VALUE(LEFT(Options!$B$14,2)),$C91,$E91,$F91,2016,$I91/10+$J91/10,1,$H91/10,$G91*$H91/10, RateRatios_airpollution!$D91, RateRatios_airpollution!$C91)*10))","v":12759.421877632998},{"$f":"IF(AND(OR(Calculations!$E$2=\"Orkney Health Board\",Calculations!$E$2=\"Orkney Islands Local Authority\"),$F91=1),0,IF(AND(OR(Calculations!$E$2=\"Shetland Health Board\",Calculations!$E$2=\"Western Isles Health Board\",Calculations!$E$2=\"Shetland Islands Local Authority\",Calculations!$E$2=\"Eilean Siar Local Authority\"),OR($F91=1,$F91=5)),0,prem_mort(VALUE(LEFT(Options!$B$14,2)),$C91,$E91,$F91,2016,$I91/10,1,$H91/10,$G91*$H91/10,RateRatios_airpollution!$C91)*10))","v":584.08642767000003},{"$f":"IF(AND(OR(Calculations!$E$2=\"Orkney Health Board\",Calculations!$E$2=\"Orkney Islands Local Authority\"),$F91=1),0,IF(AND(OR(Calculations!$E$2=\"Shetland Health Board\",Calculations!$E$2=\"Western Isles Health Board\",Calculations!$E$2=\"Shetland Islands Local Authority\",Calculations!$E$2=\"Eilean Siar Local Authority\"),OR($F91=1,$F91=5)),0,prem_mort(VALUE(LEFT(Options!$B$14,2)),$C91,$E91,$F91,2016,$I91/10+$J91/10,1,$H91/10,$G91*$H91/10,RateRatios_airpollution!$C91)*10))","v":584.07641734999993},null,{"$f":"IF(AND(OR(Calculations!$E$2=\"Orkney Health Board\",Calculations!$E$2=\"Orkney Islands Local Authority\"),$F91=1),0,IF(AND(OR(Calculations!$E$2=\"Shetland Health Board\",Calculations!$E$2=\"Western Isles Health Board\",Calculations!$E$2=\"Shetland Islands Local Authority\",Calculations!$E$2=\"Eilean Siar Local Authority\"),OR($F91=1,$F91=5)),0,new_ci(VALUE(LEFT(Options!$B$14,2)),$C91,$E91,$F91,2016,$I91/10,1,$H91/10,$G91*$H91/10,RateRatios_airpollution!$E91)*10))","v":584.08642767000003},{"$f":"IF(AND(OR(Calculations!$E$2=\"Orkney Health Board\",Calculations!$E$2=\"Orkney Islands Local Authority\"),$F91=1),0,IF(AND(OR(Calculations!$E$2=\"Shetland Health Board\",Calculations!$E$2=\"Western Isles Health Board\",Calculations!$E$2=\"Shetland Islands Local Authority\",Calculations!$E$2=\"Eilean Siar Local Authority\"),OR($F91=1,$F91=5)),0,new_ci(VALUE(LEFT(Options!$B$14,2)),$C91,$E91,$F91,2016,$I91/10+$J91/10,1,$H91/10,$G91*$H91/10,RateRatios_airpollution!$E91)*10))","v":584.08169953399999},{"$f":"IF(AND(OR(Calculations!$E$2=\"Orkney Health Board\",Calculations!$E$2=\"Orkney Islands Local Authority\"),$F91=1),0,IF(AND(OR(Calculations!$E$2=\"Shetland Health Board\",Calculations!$E$2=\"Western Isles Health Board\",Calculations!$E$2=\"Shetland Islands Local Authority\",Calculations!$E$2=\"Eilean Siar Local Authority\"),OR($F91=1,$F91=5)),0,new_yllv2(VALUE(LEFT(Options!$B$14,2)),$C91,$D91,$E91,$F91,2016,$I91/10,1,$H91/10,$G91*$H91/10,RateRatios_airpollution!$E91)*10))","v":10904.894188685001},{"$f":"IF(AND(OR(Calculations!$E$2=\"Orkney Health Board\",Calculations!$E$2=\"Orkney Islands Local Authority\"),$F91=1),0,IF(AND(OR(Calculations!$E$2=\"Shetland Health Board\",Calculations!$E$2=\"Western Isles Health Board\",Calculations!$E$2=\"Shetland Islands Local Authority\",Calculations!$E$2=\"Eilean Siar Local Authority\"),OR($F91=1,$F91=5)),0,new_yllv2(VALUE(LEFT(Options!$B$14,2)),$C91,$D91,$E91,$F91,2016,$I91/10+$J91/10,1,$H91/10,$G91*$H91/10,RateRatios_airpollution!$E91)*10))","v":10904.805914380999},{"$f":"IF(AND(OR(Calculations!$E$2=\"Orkney Health Board\",Calculations!$E$2=\"Orkney Islands Local Authority\"),$F91=1),0,IF(AND(OR(Calculations!$E$2=\"Shetland Health Board\",Calculations!$E$2=\"Western Isles Health Board\",Calculations!$E$2=\"Shetland Islands Local Authority\",Calculations!$E$2=\"Eilean Siar Local Authority\"),OR($F91=1,$F91=5)),0,hosp_count(VALUE(LEFT(Options!$B$14,2)),$C91,$E91,$F91,2016,$I91/10,1,$H91/10,$G91*$H91/10, RateRatios_airpollution!$F91, RateRatios_airpollution!$E91)*10))","v":12759.838377568998},{"$f":"IF(AND(OR(Calculations!$E$2=\"Orkney Health Board\",Calculations!$E$2=\"Orkney Islands Local Authority\"),$F91=1),0,IF(AND(OR(Calculations!$E$2=\"Shetland Health Board\",Calculations!$E$2=\"Western Isles Health Board\",Calculations!$E$2=\"Shetland Islands Local Authority\",Calculations!$E$2=\"Eilean Siar Local Authority\"),OR($F91=1,$F91=5)),0,hosp_count(VALUE(LEFT(Options!$B$14,2)),$C91,$E91,$F91,2016,$I91/10+$J91/10,1,$H91/10,$G91*$H91/10, RateRatios_airpollution!$F91, RateRatios_airpollution!$E91)*10))","v":12759.838377568998},{"$f":"IF(AND(OR(Calculations!$E$2=\"Orkney Health Board\",Calculations!$E$2=\"Orkney Islands Local Authority\"),$F91=1),0,IF(AND(OR(Calculations!$E$2=\"Shetland Health Board\",Calculations!$E$2=\"Western Isles Health Board\",Calculations!$E$2=\"Shetland Islands Local Authority\",Calculations!$E$2=\"Eilean Siar Local Authority\"),OR($F91=1,$F91=5)),0,prem_mort(VALUE(LEFT(Options!$B$14,2)),$C91,$E91,$F91,2016,$I91/10,1,$H91/10,$G91*$H91/10,RateRatios_airpollution!$E91)*10))","v":584.08642767000003},{"$f":"IF(AND(OR(Calculations!$E$2=\"Orkney Health Board\",Calculations!$E$2=\"Orkney Islands Local Authority\"),$F91=1),0,IF(AND(OR(Calculations!$E$2=\"Shetland Health Board\",Calculations!$E$2=\"Western Isles Health Board\",Calculations!$E$2=\"Shetland Islands Local Authority\",Calculations!$E$2=\"Eilean Siar Local Authority\"),OR($F91=1,$F91=5)),0,prem_mort(VALUE(LEFT(Options!$B$14,2)),$C91,$E91,$F91,2016,$I91/10+$J91/10,1,$H91/10,$G91*$H91/10,RateRatios_airpollution!$E91)*10))","v":584.08169953399999},584.08642767000003,583.9051199979998,10904.894188685001,10901.509174267996,12759.838377568998,12755.743454395999,584.08642767000003,583.9051199979998,2134.9748799985382,2134.3121573141307,39859.983144546386,39847.610111367772,46640.245549999992,46625.277631391182,2134.9748799985382,2134.3121573141307,12809849.27999123,12805872.943884784,239159898.86727831,239085660.66820663,279841473.29999995,279751665.78834707,12809849.27999123,12805872.943884784,6000]
[null,"Male 65-69",67.054419999999993,82.954419999999999,"male",1,1,{"$f":"HLOOKUP(Calculations!$E$2,'Population 2016'!$C$3:$BC$249,'Population 2016'!BD92,FALSE)","v":25567},0,{"$f":"HLOOKUP(Calculations!$E$2,Pop2016_in_settlements!$C$3:$BC$249,Pop2016_in_settlements!$BD92,FALSE)","v":18312},{"$f":"IF(AND(OR(Calculations!$E$2=\"Orkney Health Board\",Calculations!$E$2=\"Orkney Islands Local Authority\"),$F92=1),0,IF(AND(OR(Calculations!$E$2=\"Shetland Health Board\",Calculations!$E$2=\"Western Isles Health Board\",Calculations!$E$2=\"Shetland Islands Local Authority\",Calculations!$E$2=\"Eilean Siar Local Authority\"),OR($F92=1,$F92=5)),0,new_ci(VALUE(LEFT(Options!$B$14,2)),$C92,$E92,$F92,2016,$I92/10,1,$H92/10,$G92*$H92/10,RateRatios_accidents!$B$5)*10))","v":798.85918262199993},{"$f":"IF(AND(OR(Calculations!$E$2=\"Orkney Health Board\",Calculations!$E$2=\"Orkney Islands Local Authority\"),$F92=1),0,IF(AND(OR(Calculations!$E$2=\"Shetland Health Board\",Calculations!$E$2=\"Western Isles Health Board\",Calculations!$E$2=\"Shetland Islands Local Authority\",Calculations!$E$2=\"Eilean Siar Local Authority\"),OR($F92=1,$F92=5)),0,new_ci(VALUE(LEFT(Options!$B$14,2)),$C92,$E92,$F92,2016,$I92/10+$J92/10,1,$H92/10,$G92*$H92/10,RateRatios_accidents!$B$5)*10))","v":798.63392670899998},{"$f":"IF(AND(OR(Calculations!$E$2=\"Orkney Health Board\",Calculations!$E$2=\"Orkney Islands Local Authority\"),$F92=1),0,IF(AND(OR(Calculations!$E$2=\"Shetland Health Board\",Calculations!$E$2=\"Western Isles Health Board\",Calculations!$E$2=\"Shetland Islands Local Authority\",Calculations!$E$2=\"Eilean Siar Local Authority\"),OR($F92=1,$F92=5)),0,new_yllv2(VALUE(LEFT(Options!$B$14,2)),$C92,$D92,$E92,$F92,2016,$I92/10,1,$H92/10,$G92*$H92/10,RateRatios_accidents!$B$5)*10))","v":11903.001821068001},{"$f":"IF(AND(OR(Calculations!$E$2=\"Orkney Health Board\",Calculations!$E$2=\"Orkney Islands Local Authority\"),$F92=1),0,IF(AND(OR(Calculations!$E$2=\"Shetland Health Board\",Calculations!$E$2=\"Western Isles Health Board\",Calculations!$E$2=\"Shetland Islands Local Authority\",Calculations!$E$2=\"Eilean Siar Local Authority\"),OR($F92=1,$F92=5)),0,new_yllv2(VALUE(LEFT(Options!$B$14,2)),$C92,$D92,$E92,$F92,2016,$I92/10+$J92/10,1,$H92/10,$G92*$H92/10,RateRatios_accidents!$B$5)*10))","v":11899.645507964},{"$f":"IF(AND(OR(Calculations!$E$2=\"Orkney Health Board\",Calculations!$E$2=\"Orkney Islands Local Authority\"),$F92=1),0,IF(AND(OR(Calculations!$E$2=\"Shetland Health Board\",Calculations!$E$2=\"Western Isles Health Board\",Calculations!$E$2=\"Shetland Islands Local Authority\",Calculations!$E$2=\"Eilean Siar Local Authority\"),OR($F92=1,$F92=5)),0,hosp_count(VALUE(LEFT(Options!$B$14,2)),$C92,$E92,$F92,2016,$I92/10,1,$H92/10,$G92*$H92/10, RateRatios_accidents!$B$4, RateRatios_accidents!$B$5)*10))","v":14296.679070176999},{"$f":"IF(AND(OR(Calculations!$E$2=\"Orkney Health Board\",Calculations!$E$2=\"Orkney Islands Local Authority\"),$F92=1),0,IF(AND(OR(Calculations!$E$2=\"Shetland Health Board\",Calculations!$E$2=\"Western Isles Health Board\",Calculations!$E$2=\"Shetland Islands Local Authority\",Calculations!$E$2=\"Eilean Siar Local Authority\"),OR($F92=1,$F92=5)),0,hosp_count(VALUE(LEFT(Options!$B$14,2)),$C92,$E92,$F92,2016,$I92/10+$J92/10,1,$H92/10,$G92*$H92/10, RateRatios_accidents!$B$4, RateRatios_accidents!$B$5)*10))","v":14292.583153719999},{"$f":"IF(AND(OR(Calculations!$E$2=\"Orkney Health Board\",Calculations!$E$2=\"Orkney Islands Local Authority\"),$F92=1),0,IF(AND(OR(Calculations!$E$2=\"Shetland Health Board\",Calculations!$E$2=\"Western Isles Health Board\",Calculations!$E$2=\"Shetland Islands Local Authority\",Calculations!$E$2=\"Eilean Siar Local Authority\"),OR($F92=1,$F92=5)),0,prem_mort(VALUE(LEFT(Options!$B$14,2)),$C92,$E92,$F92,2016,$I92/10,1,$H92/10,$G92*$H92/10,RateRatios_accidents!$B$5)*10))","v":798.85918262199993},{"$f":"IF(AND(OR(Calculations!$E$2=\"Orkney Health Board\",Calculations!$E$2=\"Orkney Islands Local Authority\"),$F92=1),0,IF(AND(OR(Calculations!$E$2=\"Shetland Health Board\",Calculations!$E$2=\"Western Isles Health Board\",Calculations!$E$2=\"Shetland Islands Local Authority\",Calculations!$E$2=\"Eilean Siar Local Authority\"),OR($F92=1,$F92=5)),0,prem_mort(VALUE(LEFT(Options!$B$14,2)),$C92,$E92,$F92,2016,$I92/10+$J92/10,1,$H92/10,$G92*$H92/10,RateRatios_accidents!$B$5)*10))","v":798.63392670899998},null,{"$f":"IF(AND(OR(Calculations!$E$2=\"Orkney Health Board\",Calculations!$E$2=\"Orkney Islands Local Authority\"),$F92=1),0,IF(AND(OR(Calculations!$E$2=\"Shetland Health Board\",Calculations!$E$2=\"Western Isles Health Board\",Calculations!$E$2=\"Shetland Islands Local Authority\",Calculations!$E$2=\"Eilean Siar Local Authority\"),OR($F92=1,$F92=5)),0,new_ci(VALUE(LEFT(Options!$B$14,2)),$C92,$E92,$F92,2016,$I92/10,1,$H92/10,$G92*$H92/10,RateRatios_airpollution!$C92)*10))","v":798.85918262199993},{"$f":"IF(AND(OR(Calculations!$E$2=\"Orkney Health Board\",Calculations!$E$2=\"Orkney Islands Local Authority\"),$F92=1),0,IF(AND(OR(Calculations!$E$2=\"Shetland Health Board\",Calculations!$E$2=\"Western Isles Health Board\",Calculations!$E$2=\"Shetland Islands Local Authority\",Calculations!$E$2=\"Eilean Siar Local Authority\"),OR($F92=1,$F92=5)),0,new_ci(VALUE(LEFT(Options!$B$14,2)),$C92,$E92,$F92,2016,$I92/10+$J92/10,1,$H92/10,$G92*$H92/10,RateRatios_airpollution!$C92)*10))","v":798.84594304500001},{"$f":"IF(AND(OR(Calculations!$E$2=\"Orkney Health Board\",Calculations!$E$2=\"Orkney Islands Local Authority\"),$F92=1),0,IF(AND(OR(Calculations!$E$2=\"Shetland Health Board\",Calculations!$E$2=\"Western Isles Health Board\",Calculations!$E$2=\"Shetland Islands Local Authority\",Calculations!$E$2=\"Eilean Siar Local Authority\"),OR($F92=1,$F92=5)),0,new_yllv2(VALUE(LEFT(Options!$B$14,2)),$C92,$D92,$E92,$F92,2016,$I92/10,1,$H92/10,$G92*$H92/10,RateRatios_airpollution!$C92)*10))","v":11903.001821068001},{"$f":"IF(AND(OR(Calculations!$E$2=\"Orkney Health Board\",Calculations!$E$2=\"Orkney Islands Local Authority\"),$F92=1),0,IF(AND(OR(Calculations!$E$2=\"Shetland Health Board\",Calculations!$E$2=\"Western Isles Health Board\",Calculations!$E$2=\"Shetland Islands Local Authority\",Calculations!$E$2=\"Eilean Siar Local Authority\"),OR($F92=1,$F92=5)),0,new_yllv2(VALUE(LEFT(Options!$B$14,2)),$C92,$D92,$E92,$F92,2016,$I92/10+$J92/10,1,$H92/10,$G92*$H92/10,RateRatios_airpollution!$C92)*10))","v":11902.804551371},{"$f":"IF(AND(OR(Calculations!$E$2=\"Orkney Health Board\",Calculations!$E$2=\"Orkney Islands Local Authority\"),$F92=1),0,IF(AND(OR(Calculations!$E$2=\"Shetland Health Board\",Calculations!$E$2=\"Western Isles Health Board\",Calculations!$E$2=\"Shetland Islands Local Authority\",Calculations!$E$2=\"Eilean Siar Local Authority\"),OR($F92=1,$F92=5)),0,hosp_count(VALUE(LEFT(Options!$B$14,2)),$C92,$E92,$F92,2016,$I92/10,1,$H92/10,$G92*$H92/10, RateRatios_airpollution!$D92, RateRatios_airpollution!$C92)*10))","v":14296.679070176999},{"$f":"IF(AND(OR(Calculations!$E$2=\"Orkney Health Board\",Calculations!$E$2=\"Orkney Islands Local Authority\"),$F92=1),0,IF(AND(OR(Calculations!$E$2=\"Shetland Health Board\",Calculations!$E$2=\"Western Isles Health Board\",Calculations!$E$2=\"Shetland Islands Local Authority\",Calculations!$E$2=\"Eilean Siar Local Authority\"),OR($F92=1,$F92=5)),0,hosp_count(VALUE(LEFT(Options!$B$14,2)),$C92,$E92,$F92,2016,$I92/10+$J92/10,1,$H92/10,$G92*$H92/10, RateRatios_airpollution!$D92, RateRatios_airpollution!$C92)*10))","v":14296.225536873},{"$f":"IF(AND(OR(Calculations!$E$2=\"Orkney Health Board\",Calculations!$E$2=\"Orkney Islands Local Authority\"),$F92=1),0,IF(AND(OR(Calculations!$E$2=\"Shetland Health Board\",Calculations!$E$2=\"Western Isles Health Board\",Calculations!$E$2=\"Shetland Islands Local Authority\",Calculations!$E$2=\"Eilean Siar Local Authority\"),OR($F92=1,$F92=5)),0,prem_mort(VALUE(LEFT(Options!$B$14,2)),$C92,$E92,$F92,2016,$I92/10,1,$H92/10,$G92*$H92/10,RateRatios_airpollution!$C92)*10))","v":798.85918262199993},{"$f":"IF(AND(OR(Calculations!$E$2=\"Orkney Health Board\",Calculations!$E$2=\"Orkney Islands Local Authority\"),$F92=1),0,IF(AND(OR(Calculations!$E$2=\"Shetland Health Board\",Calculations!$E$2=\"Western Isles Health Board\",Calculations!$E$2=\"Shetland Islands Local Authority\",Calculations!$E$2=\"Eilean Siar Local Authority\"),OR($F92=1,$F92=5)),0,prem_mort(VALUE(LEFT(Options!$B$14,2)),$C92,$E92,$F92,2016,$I92/10+$J92/10,1,$H92/10,$G92*$H92/10,RateRatios_airpollution!$C92)*10))","v":798.84594304500001},null,{"$f":"IF(AND(OR(Calculations!$E$2=\"Orkney Health Board\",Calculations!$E$2=\"Orkney Islands Local Authority\"),$F92=1),0,IF(AND(OR(Calculations!$E$2=\"Shetland Health Board\",Calculations!$E$2=\"Western Isles Health Board\",Calculations!$E$2=\"Shetland Islands Local Authority\",Calculations!$E$2=\"Eilean Siar Local Authority\"),OR($F92=1,$F92=5)),0,new_ci(VALUE(LEFT(Options!$B$14,2)),$C92,$E92,$F92,2016,$I92/10,1,$H92/10,$G92*$H92/10,RateRatios_airpollution!$E92)*10))","v":798.85918262199993},{"$f":"IF(AND(OR(Calculations!$E$2=\"Orkney Health Board\",Calculations!$E$2=\"Orkney Islands Local Authority\"),$F92=1),0,IF(AND(OR(Calculations!$E$2=\"Shetland Health Board\",Calculations!$E$2=\"Western Isles Health Board\",Calculations!$E$2=\"Shetland Islands Local Authority\",Calculations!$E$2=\"Eilean Siar Local Authority\"),OR($F92=1,$F92=5)),0,new_ci(VALUE(LEFT(Options!$B$14,2)),$C92,$E92,$F92,2016,$I92/10+$J92/10,1,$H92/10,$G92*$H92/10,RateRatios_airpollution!$E92)*10))","v":798.85289977400009},{"$f":"IF(AND(OR(Calculations!$E$2=\"Orkney Health Board\",Calculations!$E$2=\"Orkney Islands Local Authority\"),$F92=1),0,IF(AND(OR(Calculations!$E$2=\"Shetland Health Board\",Calculations!$E$2=\"Western Isles Health Board\",Calculations!$E$2=\"Shetland Islands Local Authority\",Calculations!$E$2=\"Eilean Siar Local Authority\"),OR($F92=1,$F92=5)),0,new_yllv2(VALUE(LEFT(Options!$B$14,2)),$C92,$D92,$E92,$F92,2016,$I92/10,1,$H92/10,$G92*$H92/10,RateRatios_airpollution!$E92)*10))","v":11903.001821068001},{"$f":"IF(AND(OR(Calculations!$E$2=\"Orkney Health Board\",Calculations!$E$2=\"Orkney Islands Local Authority\"),$F92=1),0,IF(AND(OR(Calculations!$E$2=\"Shetland Health Board\",Calculations!$E$2=\"Western Isles Health Board\",Calculations!$E$2=\"Shetland Islands Local Authority\",Calculations!$E$2=\"Eilean Siar Local Authority\"),OR($F92=1,$F92=5)),0,new_yllv2(VALUE(LEFT(Options!$B$14,2)),$C92,$D92,$E92,$F92,2016,$I92/10+$J92/10,1,$H92/10,$G92*$H92/10,RateRatios_airpollution!$E92)*10))","v":11902.908206633001},{"$f":"IF(AND(OR(Calculations!$E$2=\"Orkney Health Board\",Calculations!$E$2=\"Orkney Islands Local Authority\"),$F92=1),0,IF(AND(OR(Calculations!$E$2=\"Shetland Health Board\",Calculations!$E$2=\"Western Isles Health Board\",Calculations!$E$2=\"Shetland Islands Local Authority\",Calculations!$E$2=\"Eilean Siar Local Authority\"),OR($F92=1,$F92=5)),0,hosp_count(VALUE(LEFT(Options!$B$14,2)),$C92,$E92,$F92,2016,$I92/10,1,$H92/10,$G92*$H92/10, RateRatios_airpollution!$F92, RateRatios_airpollution!$E92)*10))","v":14296.679070176999},{"$f":"IF(AND(OR(Calculations!$E$2=\"Orkney Health Board\",Calculations!$E$2=\"Orkney Islands Local Authority\"),$F92=1),0,IF(AND(OR(Calculations!$E$2=\"Shetland Health Board\",Calculations!$E$2=\"Western Isles Health Board\",Calculations!$E$2=\"Shetland Islands Local Authority\",Calculations!$E$2=\"Eilean Siar Local Authority\"),OR($F92=1,$F92=5)),0,hosp_count(VALUE(LEFT(Options!$B$14,2)),$C92,$E92,$F92,2016,$I92/10+$J92/10,1,$H92/10,$G92*$H92/10, RateRatios_airpollution!$F92, RateRatios_airpollution!$E92)*10))","v":14296.679070176999},{"$f":"IF(AND(OR(Calculations!$E$2=\"Orkney Health Board\",Calculations!$E$2=\"Orkney Islands Local Authority\"),$F92=1),0,IF(AND(OR(Calculations!$E$2=\"Shetland Health Board\",Calculations!$E$2=\"Western Isles Health Board\",Calculations!$E$2=\"Shetland Islands Local Authority\",Calculations!$E$2=\"Eilean Siar Local Authority\"),OR($F92=1,$F92=5)),0,prem_mort(VALUE(LEFT(Options!$B$14,2)),$C92,$E92,$F92,2016,$I92/10,1,$H92/10,$G92*$H92/10,RateRatios_airpollution!$E92)*10))","v":798.85918262199993},{"$f":"IF(AND(OR(Calculations!$E$2=\"Orkney Health Board\",Calculations!$E$2=\"Orkney Islands Local Authority\"),$F92=1),0,IF(AND(OR(Calculations!$E$2=\"Shetland Health Board\",Calculations!$E$2=\"Western Isles Health Board\",Calculations!$E$2=\"Shetland Islands Local Authority\",Calculations!$E$2=\"Eilean Siar Local Authority\"),OR($F92=1,$F92=5)),0,prem_mort(VALUE(LEFT(Options!$B$14,2)),$C92,$E92,$F92,2016,$I92/10+$J92/10,1,$H92/10,$G92*$H92/10,RateRatios_airpollution!$E92)*10))","v":798.85289977400009},798.85918262199993,798.61440428400022,11903.001821068001,11899.354623832,14296.679070176999,14292.129620416001,798.85918262199993,798.61440428400022,3124.5714500019558,3123.6140504713117,46556.114605029921,46541.849352024088,55918.485040000778,55900.690814002424,3124.5714500019558,3123.6140504713117,17185142.975010756,17179877.277592216,256058630.32766455,255980171.43613249,{"$f":"AW92*$BI92","v":307551667.72000426},{"$f":"AX92*$BI92","v":307453799.47701335},{"$f":"AY92*$BI92","v":17185142.975010756},{"$f":"AZ92*$BI92","v":17179877.277592216},5500]
[null,"Male 70-74",71.891098,84.341099999999997,"male",1,1,{"$f":"HLOOKUP(Calculations!$E$2,'Population 2016'!$C$3:$BC$249,'Population 2016'!BD93,FALSE)","v":18358},0,{"$f":"HLOOKUP(Calculations!$E$2,Pop2016_in_settlements!$C$3:$BC$249,Pop2016_in_settlements!$BD93,FALSE)","v":13174},{"$f":"IF(AND(OR(Calculations!$E$2=\"Orkney Health Board\",Calculations!$E$2=\"Orkney Islands Local Authority\"),$F93=1),0,IF(AND(OR(Calculations!$E$2=\"Shetland Health Board\",Calculations!$E$2=\"Western Isles Health Board\",Calculations!$E$2=\"Shetland Islands Local Authority\",Calculations!$E$2=\"Eilean Siar Local Authority\"),OR($F93=1,$F93=5)),0,new_ci(VALUE(LEFT(Options!$B$14,2)),$C93,$E93,$F93,2016,$I93/10,1,$H93/10,$G93*$H93/10,RateRatios_accidents!$B$5)*10))","v":820.69820295699992},{"$f":"IF(AND(OR(Calculations!$E$2=\"Orkney Health Board\",Calculations!$E$2=\"Orkney Islands Local Authority\"),$F93=1),0,IF(AND(OR(Calculations!$E$2=\"Shetland Health Board\",Calculations!$E$2=\"Western Isles Health Board\",Calculations!$E$2=\"Shetland Islands Local Authority\",Calculations!$E$2=\"Eilean Siar Local Authority\"),OR($F93=1,$F93=5)),0,new_ci(VALUE(LEFT(Options!$B$14,2)),$C93,$E93,$F93,2016,$I93/10+$J93/10,1,$H93/10,$G93*$H93/10,RateRatios_accidents!$B$5)*10))","v":820.46796886300001},{"$f":"IF(AND(OR(Calculations!$E$2=\"Orkney Health Board\",Calculations!$E$2=\"Orkney Islands Local Authority\"),$F93=1),0,IF(AND(OR(Calculations!$E$2=\"Shetland Health Board\",Calculations!$E$2=\"Western Isles Health Board\",Calculations!$E$2=\"Shetland Islands Local Authority\",Calculations!$E$2=\"Eilean Siar Local Authority\"),OR($F93=1,$F93=5)),0,new_yllv2(VALUE(LEFT(Options!$B$14,2)),$C93,$D93,$E93,$F93,2016,$I93/10,1,$H93/10,$G93*$H93/10,RateRatios_accidents!$B$5)*10))","v":9396.9960652539994},{"$f":"IF(AND(OR(Calculations!$E$2=\"Orkney Health Board\",Calculations!$E$2=\"Orkney Islands Local Authority\"),$F93=1),0,IF(AND(OR(Calculations!$E$2=\"Shetland Health Board\",Calculations!$E$2=\"Western Isles Health Board\",Calculations!$E$2=\"Shetland Islands Local Authority\",Calculations!$E$2=\"Eilean Siar Local Authority\"),OR($F93=1,$F93=5)),0,new_yllv2(VALUE(LEFT(Options!$B$14,2)),$C93,$D93,$E93,$F93,2016,$I93/10+$J93/10,1,$H93/10,$G93*$H93/10,RateRatios_accidents!$B$5)*10))","v":9394.359884417001},{"$f":"IF(AND(OR(Calculations!$E$2=\"Orkney Health Board\",Calculations!$E$2=\"Orkney Islands Local Authority\"),$F93=1),0,IF(AND(OR(Calculations!$E$2=\"Shetland Health Board\",Calculations!$E$2=\"Western Isles Health Board\",Calculations!$E$2=\"Shetland Islands Local Authority\",Calculations!$E$2=\"Eilean Siar Local Authority\"),OR($F93=1,$F93=5)),0,hosp_count(VALUE(LEFT(Options!$B$14,2)),$C93,$E93,$F93,2016,$I93/10,1,$H93/10,$G93*$H93/10, RateRatios_accidents!$B$4, RateRatios_accidents!$B$5)*10))","v":12188.209584952001},{"$f":"IF(AND(OR(Calculations!$E$2=\"Orkney Health Board\",Calculations!$E$2=\"Orkney Islands Local Authority\"),$F93=1),0,IF(AND(OR(Calculations!$E$2=\"Shetland Health Board\",Calculations!$E$2=\"Western Isles Health Board\",Calculations!$E$2=\"Shetland Islands Local Authority\",Calculations!$E$2=\"Eilean Siar Local Authority\"),OR($F93=1,$F93=5)),0,hosp_count(VALUE(LEFT(Options!$B$14,2)),$C93,$E93,$F93,2016,$I93/10+$J93/10,1,$H93/10,$G93*$H93/10, RateRatios_accidents!$B$4, RateRatios_accidents!$B$5)*10))","v":12184.711001341},{"$f":"IF(AND(OR(Calculations!$E$2=\"Orkney Health Board\",Calculations!$E$2=\"Orkney Islands Local Authority\"),$F93=1),0,IF(AND(OR(Calculations!$E$2=\"Shetland Health Board\",Calculations!$E$2=\"Western Isles Health Board\",Calculations!$E$2=\"Shetland Islands Local Authority\",Calculations!$E$2=\"Eilean Siar Local Authority\"),OR($F93=1,$F93=5)),0,prem_mort(VALUE(LEFT(Options!$B$14,2)),$C93,$E93,$F93,2016,$I93/10,1,$H93/10,$G93*$H93/10,RateRatios_accidents!$B$5)*10))","v":820.69820295699992},{"$f":"IF(AND(OR(Calculations!$E$2=\"Orkney Health Board\",Calculations!$E$2=\"Orkney Islands Local Authority\"),$F93=1),0,IF(AND(OR(Calculations!$E$2=\"Shetland Health Board\",Calculations!$E$2=\"Western Isles Health Board\",Calculations!$E$2=\"Shetland Islands Local Authority\",Calculations!$E$2=\"Eilean Siar Local Authority\"),OR($F93=1,$F93=5)),0,prem_mort(VALUE(LEFT(Options!$B$14,2)),$C93,$E93,$F93,2016,$I93/10+$J93/10,1,$H93/10,$G93*$H93/10,RateRatios_accidents!$B$5)*10))","v":820.46796886300001},null,{"$f":"IF(AND(OR(Calculations!$E$2=\"Orkney Health Board\",Calculations!$E$2=\"Orkney Islands Local Authority\"),$F93=1),0,IF(AND(OR(Calculations!$E$2=\"Shetland Health Board\",Calculations!$E$2=\"Western Isles Health Board\",Calculations!$E$2=\"Shetland Islands Local Authority\",Calculations!$E$2=\"Eilean Siar Local Authority\"),OR($F93=1,$F93=5)),0,new_ci(VALUE(LEFT(Options!$B$14,2)),$C93,$E93,$F93,2016,$I93/10,1,$H93/10,$G93*$H93/10,RateRatios_airpollution!$C93)*10))","v":820.69820295699992},{"$f":"IF(AND(OR(Calculations!$E$2=\"Orkney Health Board\",Calculations!$E$2=\"Orkney Islands Local Authority\"),$F93=1),0,IF(AND(OR(Calculations!$E$2=\"Shetland Health Board\",Calculations!$E$2=\"Western Isles Health Board\",Calculations!$E$2=\"Shetland Islands Local Authority\",Calculations!$E$2=\"Eilean Siar Local Authority\"),OR($F93=1,$F93=5)),0,new_ci(VALUE(LEFT(Options!$B$14,2)),$C93,$E93,$F93,2016,$I93/10+$J93/10,1,$H93/10,$G93*$H93/10,RateRatios_airpollution!$C93)*10))","v":820.68469038499995},{"$f":"IF(AND(OR(Calculations!$E$2=\"Orkney Health Board\",Calculations!$E$2=\"Orkney Islands Local Authority\"),$F93=1),0,IF(AND(OR(Calculations!$E$2=\"Shetland Health Board\",Calculations!$E$2=\"Western Isles Health Board\",Calculations!$E$2=\"Shetland Islands Local Authority\",Calculations!$E$2=\"Eilean Siar Local Authority\"),OR($F93=1,$F93=5)),0,new_yllv2(VALUE(LEFT(Options!$B$14,2)),$C93,$D93,$E93,$F93,2016,$I93/10,1,$H93/10,$G93*$H93/10,RateRatios_airpollution!$C93)*10))","v":9396.9960652539994},{"$f":"IF(AND(OR(Calculations!$E$2=\"Orkney Health Board\",Calculations!$E$2=\"Orkney Islands Local Authority\"),$F93=1),0,IF(AND(OR(Calculations!$E$2=\"Shetland Health Board\",Calculations!$E$2=\"Western Isles Health Board\",Calculations!$E$2=\"Shetland Islands Local Authority\",Calculations!$E$2=\"Eilean Siar Local Authority\"),OR($F93=1,$F93=5)),0,new_yllv2(VALUE(LEFT(Options!$B$14,2)),$C93,$D93,$E93,$F93,2016,$I93/10+$J93/10,1,$H93/10,$G93*$H93/10,RateRatios_airpollution!$C93)*10))","v":9396.841346277999},{"$f":"IF(AND(OR(Calculations!$E$2=\"Orkney Health Board\",Calculations!$E$2=\"Orkney Islands Local Authority\"),$F93=1),0,IF(AND(OR(Calculations!$E$2=\"Shetland Health Board\",Calculations!$E$2=\"Western Isles Health Board\",Calculations!$E$2=\"Shetland Islands Local Authority\",Calculations!$E$2=\"Eilean Siar Local Authority\"),OR($F93=1,$F93=5)),0,hosp_count(VALUE(LEFT(Options!$B$14,2)),$C93,$E93,$F93,2016,$I93/10,1,$H93/10,$G93*$H93/10, RateRatios_airpollution!$D93, RateRatios_airpollution!$C93)*10))","v":12188.209584952001},{"$f":"IF(AND(OR(Calculations!$E$2=\"Orkney Health Board\",Calculations!$E$2=\"Orkney Islands Local Authority\"),$F93=1),0,IF(AND(OR(Calculations!$E$2=\"Shetland Health Board\",Calculations!$E$2=\"Western Isles Health Board\",Calculations!$E$2=\"Shetland Islands Local Authority\",Calculations!$E$2=\"Eilean Siar Local Authority\"),OR($F93=1,$F93=5)),0,hosp_count(VALUE(LEFT(Options!$B$14,2)),$C93,$E93,$F93,2016,$I93/10+$J93/10,1,$H93/10,$G93*$H93/10, RateRatios_airpollution!$D93, RateRatios_airpollution!$C93)*10))","v":12187.822750202999},{"$f":"IF(AND(OR(Calculations!$E$2=\"Orkney Health Board\",Calculations!$E$2=\"Orkney Islands Local Authority\"),$F93=1),0,IF(AND(OR(Calculations!$E$2=\"Shetland Health Board\",Calculations!$E$2=\"Western Isles Health Board\",Calculations!$E$2=\"Shetland Islands Local Authority\",Calculations!$E$2=\"Eilean Siar Local Authority\"),OR($F93=1,$F93=5)),0,prem_mort(VALUE(LEFT(Options!$B$14,2)),$C93,$E93,$F93,2016,$I93/10,1,$H93/10,$G93*$H93/10,RateRatios_airpollution!$C93)*10))","v":820.69820295699992},{"$f":"IF(AND(OR(Calculations!$E$2=\"Orkney Health Board\",Calculations!$E$2=\"Orkney Islands Local Authority\"),$F93=1),0,IF(AND(OR(Calculations!$E$2=\"Shetland Health Board\",Calculations!$E$2=\"Western Isles Health Board\",Calculations!$E$2=\"Shetland Islands Local Authority\",Calculations!$E$2=\"Eilean Siar Local Authority\"),OR($F93=1,$F93=5)),0,prem_mort(VALUE(LEFT(Options!$B$14,2)),$C93,$E93,$F93,2016,$I93/10+$J93/10,1,$H93/10,$G93*$H93/10,RateRatios_airpollution!$C93)*10))","v":820.68469038499995},null,{"$f":"IF(AND(OR(Calculations!$E$2=\"Orkney Health Board\",Calculations!$E$2=\"Orkney Islands Local Authority\"),$F93=1),0,IF(AND(OR(Calculations!$E$2=\"Shetland Health Board\",Calculations!$E$2=\"Western Isles Health Board\",Calculations!$E$2=\"Shetland Islands Local Authority\",Calculations!$E$2=\"Eilean Siar Local Authority\"),OR($F93=1,$F93=5)),0,new_ci(VALUE(LEFT(Options!$B$14,2)),$C93,$E93,$F93,2016,$I93/10,1,$H93/10,$G93*$H93/10,RateRatios_airpollution!$E93)*10))","v":820.69820295699992},{"$f":"IF(AND(OR(Calculations!$E$2=\"Orkney Health Board\",Calculations!$E$2=\"Orkney Islands Local Authority\"),$F93=1),0,IF(AND(OR(Calculations!$E$2=\"Shetland Health Board\",Calculations!$E$2=\"Western Isles Health Board\",Calculations!$E$2=\"Shetland Islands Local Authority\",Calculations!$E$2=\"Eilean Siar Local Authority\"),OR($F93=1,$F93=5)),0,new_ci(VALUE(LEFT(Options!$B$14,2)),$C93,$E93,$F93,2016,$I93/10+$J93/10,1,$H93/10,$G93*$H93/10,RateRatios_airpollution!$E93)*10))","v":820.6918175190001},{"$f":"IF(AND(OR(Calculations!$E$2=\"Orkney Health Board\",Calculations!$E$2=\"Orkney Islands Local Authority\"),$F93=1),0,IF(AND(OR(Calculations!$E$2=\"Shetland Health Board\",Calculations!$E$2=\"Western Isles Health Board\",Calculations!$E$2=\"Shetland Islands Local Authority\",Calculations!$E$2=\"Eilean Siar Local Authority\"),OR($F93=1,$F93=5)),0,new_yllv2(VALUE(LEFT(Options!$B$14,2)),$C93,$D93,$E93,$F93,2016,$I93/10,1,$H93/10,$G93*$H93/10,RateRatios_airpollution!$E93)*10))","v":9396.9960652539994},{"$f":"IF(AND(OR(Calculations!$E$2=\"Orkney Health Board\",Calculations!$E$2=\"Orkney Islands Local Authority\"),$F93=1),0,IF(AND(OR(Calculations!$E$2=\"Shetland Health Board\",Calculations!$E$2=\"Western Isles Health Board\",Calculations!$E$2=\"Shetland Islands Local Authority\",Calculations!$E$2=\"Eilean Siar Local Authority\"),OR($F93=1,$F93=5)),0,new_yllv2(VALUE(LEFT(Options!$B$14,2)),$C93,$D93,$E93,$F93,2016,$I93/10+$J93/10,1,$H93/10,$G93*$H93/10,RateRatios_airpollution!$E93)*10))","v":9396.9229519759992},{"$f":"IF(AND(OR(Calculations!$E$2=\"Orkney Health Board\",Calculations!$E$2=\"Orkney Islands Local Authority\"),$F93=1),0,IF(AND(OR(Calculations!$E$2=\"Shetland Health Board\",Calculations!$E$2=\"Western Isles Health Board\",Calculations!$E$2=\"Shetland Islands Local Authority\",Calculations!$E$2=\"Eilean Siar Local Authority\"),OR($F93=1,$F93=5)),0,hosp_count(VALUE(LEFT(Options!$B$14,2)),$C93,$E93,$F93,2016,$I93/10,1,$H93/10,$G93*$H93/10, RateRatios_airpollution!$F93, RateRatios_airpollution!$E93)*10))","v":12188.209584952001},{"$f":"IF(AND(OR(Calculations!$E$2=\"Orkney Health Board\",Calculations!$E$2=\"Orkney Islands Local Authority\"),$F93=1),0,IF(AND(OR(Calculations!$E$2=\"Shetland Health Board\",Calculations!$E$2=\"Western Isles Health Board\",Calculations!$E$2=\"Shetland Islands Local Authority\",Calculations!$E$2=\"Eilean Siar Local Authority\"),OR($F93=1,$F93=5)),0,hosp_count(VALUE(LEFT(Options!$B$14,2)),$C93,$E93,$F93,2016,$I93/10+$J93/10,1,$H93/10,$G93*$H93/10, RateRatios_airpollution!$F93, RateRatios_airpollution!$E93)*10))","v":12188.209584952001},{"$f":"IF(AND(OR(Calculations!$E$2=\"Orkney Health Board\",Calculations!$E$2=\"Orkney Islands Local Authority\"),$F93=1),0,IF(AND(OR(Calculations!$E$2=\"Shetland Health Board\",Calculations!$E$2=\"Western Isles Health Board\",Calculations!$E$2=\"Shetland Islands Local Authority\",Calculations!$E$2=\"Eilean Siar Local Authority\"),OR($F93=1,$F93=5)),0,prem_mort(VALUE(LEFT(Options!$B$14,2)),$C93,$E93,$F93,2016,$I93/10,1,$H93/10,$G93*$H93/10,RateRatios_airpollution!$E93)*10))","v":820.69820295699992},{"$f":"IF(AND(OR(Calculations!$E$2=\"Orkney Health Board\",Calculations!$E$2=\"Orkney Islands Local Authority\"),$F93=1),0,IF(AND(OR(Calculations!$E$2=\"Shetland Health Board\",Calculations!$E$2=\"Western Isles Health Board\",Calculations!$E$2=\"Shetland Islands Local Authority\",Calculations!$E$2=\"Eilean Siar Local Authority\"),OR($F93=1,$F93=5)),0,prem_mort(VALUE(LEFT(Options!$B$14,2)),$C93,$E93,$F93,2016,$I93/10+$J93/10,1,$H93/10,$G93*$H93/10,RateRatios_airpollution!$E93)*10))","v":820.6918175190001},820.69820295699992,820.44807085300022,9396.9960652539994,9394.1320521630005,12188.209584952001,12184.324166591998,820.69820295699992,820.44807085300022,4470.5207700021792,4469.1582462850001,51187.471757566178,51171.87085827977,66391.816020002181,66370.651305109481,4470.5207700021792,4469.1582462850001,22352603.850010898,22345791.231425002,255937358.78783089,255859354.29139885,331959080.10001093,331853256.52554739,22352603.850010898,22345791.231425002,5000]
[null,"Male 75-79",76.907700000000006,86.357700000000008,"male",1,1,{"$f":"HLOOKUP(Calculations!$E$2,'Population 2016'!$C$3:$BC$249,'Population 2016'!BD94,FALSE)","v":13914},0,{"$f":"HLOOKUP(Calculations!$E$2,Pop2016_in_settlements!$C$3:$BC$249,Pop2016_in_settlements!$BD94,FALSE)","v":10107},{"$f":"IF(AND(OR(Calculations!$E$2=\"Orkney Health Board\",Calculations!$E$2=\"Orkney Islands Local Authority\"),$F94=1),0,IF(AND(OR(Calculations!$E$2=\"Shetland Health Board\",Calculations!$E$2=\"Western Isles Health Board\",Calculations!$E$2=\"Shetland Islands Local Authority\",Calculations!$E$2=\"Eilean Siar Local Authority\"),OR($F94=1,$F94=5)),0,new_ci(VALUE(LEFT(Options!$B$14,2)),$C94,$E94,$F94,2016,$I94/10,1,$H94/10,$G94*$H94/10,RateRatios_accidents!$B$5)*10))","v":899.0124644230001},{"$f":"IF(AND(OR(Calculations!$E$2=\"Orkney Health Board\",Calculations!$E$2=\"Orkney Islands Local Authority\"),$F94=1),0,IF(AND(OR(Calculations!$E$2=\"Shetland Health Board\",Calculations!$E$2=\"Western Isles Health Board\",Calculations!$E$2=\"Shetland Islands Local Authority\",Calculations!$E$2=\"Eilean Siar Local Authority\"),OR($F94=1,$F94=5)),0,new_ci(VALUE(LEFT(Options!$B$14,2)),$C94,$E94,$F94,2016,$I94/10+$J94/10,1,$H94/10,$G94*$H94/10,RateRatios_accidents!$B$5)*10))","v":898.75987432200009},{"$f":"IF(AND(OR(Calculations!$E$2=\"Orkney Health Board\",Calculations!$E$2=\"Orkney Islands Local Authority\"),$F94=1),0,IF(AND(OR(Calculations!$E$2=\"Shetland Health Board\",Calculations!$E$2=\"Western Isles Health Board\",Calculations!$E$2=\"Shetland Islands Local Authority\",Calculations!$E$2=\"Eilean Siar Local Authority\"),OR($F94=1,$F94=5)),0,new_yllv2(VALUE(LEFT(Options!$B$14,2)),$C94,$D94,$E94,$F94,2016,$I94/10,1,$H94/10,$G94*$H94/10,RateRatios_accidents!$B$5)*10))","v":7596.655324374},{"$f":"IF(AND(OR(Calculations!$E$2=\"Orkney Health Board\",Calculations!$E$2=\"Orkney Islands Local Authority\"),$F94=1),0,IF(AND(OR(Calculations!$E$2=\"Shetland Health Board\",Calculations!$E$2=\"Western Isles Health Board\",Calculations!$E$2=\"Shetland Islands Local Authority\",Calculations!$E$2=\"Eilean Siar Local Authority\"),OR($F94=1,$F94=5)),0,new_yllv2(VALUE(LEFT(Options!$B$14,2)),$C94,$D94,$E94,$F94,2016,$I94/10+$J94/10,1,$H94/10,$G94*$H94/10,RateRatios_accidents!$B$5)*10))","v":7594.5209380209999},{"$f":"IF(AND(OR(Calculations!$E$2=\"Orkney Health Board\",Calculations!$E$2=\"Orkney Islands Local Authority\"),$F94=1),0,IF(AND(OR(Calculations!$E$2=\"Shetland Health Board\",Calculations!$E$2=\"Western Isles Health Board\",Calculations!$E$2=\"Shetland Islands Local Authority\",Calculations!$E$2=\"Eilean Siar Local Authority\"),OR($F94=1,$F94=5)),0,hosp_count(VALUE(LEFT(Options!$B$14,2)),$C94,$E94,$F94,2016,$I94/10,1,$H94/10,$G94*$H94/10, RateRatios_accidents!$B$4, RateRatios_accidents!$B$5)*10))","v":11038.226266582002},{"$f":"IF(AND(OR(Calculations!$E$2=\"Orkney Health Board\",Calculations!$E$2=\"Orkney Islands Local Authority\"),$F94=1),0,IF(AND(OR(Calculations!$E$2=\"Shetland Health Board\",Calculations!$E$2=\"Western Isles Health Board\",Calculations!$E$2=\"Shetland Islands Local Authority\",Calculations!$E$2=\"Eilean Siar Local Authority\"),OR($F94=1,$F94=5)),0,hosp_count(VALUE(LEFT(Options!$B$14,2)),$C94,$E94,$F94,2016,$I94/10+$J94/10,1,$H94/10,$G94*$H94/10, RateRatios_accidents!$B$4, RateRatios_accidents!$B$5)*10))","v":11035.019040571999},{"$f":"IF(AND(OR(Calculations!$E$2=\"Orkney Health Board\",Calculations!$E$2=\"Orkney Islands Local Authority\"),$F94=1),0,IF(AND(OR(Calculations!$E$2=\"Shetland Health Board\",Calculations!$E$2=\"Western Isles Health Board\",Calculations!$E$2=\"Shetland Islands Local Authority\",Calculations!$E$2=\"Eilean Siar Local Authority\"),OR($F94=1,$F94=5)),0,prem_mort(VALUE(LEFT(Options!$B$14,2)),$C94,$E94,$F94,2016,$I94/10,1,$H94/10,$G94*$H94/10,RateRatios_accidents!$B$5)*10))","v":0},{"$f":"IF(AND(OR(Calculations!$E$2=\"Orkney Health Board\",Calculations!$E$2=\"Orkney Islands Local Authority\"),$F94=1),0,IF(AND(OR(Calculations!$E$2=\"Shetland Health Board\",Calculations!$E$2=\"Western Isles Health Board\",Calculations!$E$2=\"Shetland Islands Local Authority\",Calculations!$E$2=\"Eilean Siar Local Authority\"),OR($F94=1,$F94=5)),0,prem_mort(VALUE(LEFT(Options!$B$14,2)),$C94,$E94,$F94,2016,$I94/10+$J94/10,1,$H94/10,$G94*$H94/10,RateRatios_accidents!$B$5)*10))","v":0},null,{"$f":"IF(AND(OR(Calculations!$E$2=\"Orkney Health Board\",Calculations!$E$2=\"Orkney Islands Local Authority\"),$F94=1),0,IF(AND(OR(Calculations!$E$2=\"Shetland Health Board\",Calculations!$E$2=\"Western Isles Health Board\",Calculations!$E$2=\"Shetland Islands Local Authority\",Calculations!$E$2=\"Eilean Siar Local Authority\"),OR($F94=1,$F94=5)),0,new_ci(VALUE(LEFT(Options!$B$14,2)),$C94,$E94,$F94,2016,$I94/10,1,$H94/10,$G94*$H94/10,RateRatios_airpollution!$C94)*10))","v":899.0124644230001},{"$f":"IF(AND(OR(Calculations!$E$2=\"Orkney Health Board\",Calculations!$E$2=\"Orkney Islands Local Authority\"),$F94=1),0,IF(AND(OR(Calculations!$E$2=\"Shetland Health Board\",Calculations!$E$2=\"Western Isles Health Board\",Calculations!$E$2=\"Shetland Islands Local Authority\",Calculations!$E$2=\"Eilean Siar Local Authority\"),OR($F94=1,$F94=5)),0,new_ci(VALUE(LEFT(Options!$B$14,2)),$C94,$E94,$F94,2016,$I94/10+$J94/10,1,$H94/10,$G94*$H94/10,RateRatios_airpollution!$C94)*10))","v":898.99756266200006},{"$f":"IF(AND(OR(Calculations!$E$2=\"Orkney Health Board\",Calculations!$E$2=\"Orkney Islands Local Authority\"),$F94=1),0,IF(AND(OR(Calculations!$E$2=\"Shetland Health Board\",Calculations!$E$2=\"Western Isles Health Board\",Calculations!$E$2=\"Shetland Islands Local Authority\",Calculations!$E$2=\"Eilean Siar Local Authority\"),OR($F94=1,$F94=5)),0,new_yllv2(VALUE(LEFT(Options!$B$14,2)),$C94,$D94,$E94,$F94,2016,$I94/10,1,$H94/10,$G94*$H94/10,RateRatios_airpollution!$C94)*10))","v":7596.655324374},{"$f":"IF(AND(OR(Calculations!$E$2=\"Orkney Health Board\",Calculations!$E$2=\"Orkney Islands Local Authority\"),$F94=1),0,IF(AND(OR(Calculations!$E$2=\"Shetland Health Board\",Calculations!$E$2=\"Western Isles Health Board\",Calculations!$E$2=\"Shetland Islands Local Authority\",Calculations!$E$2=\"Eilean Siar Local Authority\"),OR($F94=1,$F94=5)),0,new_yllv2(VALUE(LEFT(Options!$B$14,2)),$C94,$D94,$E94,$F94,2016,$I94/10+$J94/10,1,$H94/10,$G94*$H94/10,RateRatios_airpollution!$C94)*10))","v":7596.5294044940001},{"$f":"IF(AND(OR(Calculations!$E$2=\"Orkney Health Board\",Calculations!$E$2=\"Orkney Islands Local Authority\"),$F94=1),0,IF(AND(OR(Calculations!$E$2=\"Shetland Health Board\",Calculations!$E$2=\"Western Isles Health Board\",Calculations!$E$2=\"Shetland Islands Local Authority\",Calculations!$E$2=\"Eilean Siar Local Authority\"),OR($F94=1,$F94=5)),0,hosp_count(VALUE(LEFT(Options!$B$14,2)),$C94,$E94,$F94,2016,$I94/10,1,$H94/10,$G94*$H94/10, RateRatios_airpollution!$D94, RateRatios_airpollution!$C94)*10))","v":11038.226266582002},{"$f":"IF(AND(OR(Calculations!$E$2=\"Orkney Health Board\",Calculations!$E$2=\"Orkney Islands Local Authority\"),$F94=1),0,IF(AND(OR(Calculations!$E$2=\"Shetland Health Board\",Calculations!$E$2=\"Western Isles Health Board\",Calculations!$E$2=\"Shetland Islands Local Authority\",Calculations!$E$2=\"Eilean Siar Local Authority\"),OR($F94=1,$F94=5)),0,hosp_count(VALUE(LEFT(Options!$B$14,2)),$C94,$E94,$F94,2016,$I94/10+$J94/10,1,$H94/10,$G94*$H94/10, RateRatios_airpollution!$D94, RateRatios_airpollution!$C94)*10))","v":11037.869788649001},{"$f":"IF(AND(OR(Calculations!$E$2=\"Orkney Health Board\",Calculations!$E$2=\"Orkney Islands Local Authority\"),$F94=1),0,IF(AND(OR(Calculations!$E$2=\"Shetland Health Board\",Calculations!$E$2=\"Western Isles Health Board\",Calculations!$E$2=\"Shetland Islands Local Authority\",Calculations!$E$2=\"Eilean Siar Local Authority\"),OR($F94=1,$F94=5)),0,prem_mort(VALUE(LEFT(Options!$B$14,2)),$C94,$E94,$F94,2016,$I94/10,1,$H94/10,$G94*$H94/10,RateRatios_airpollution!$C94)*10))","v":0},{"$f":"IF(AND(OR(Calculations!$E$2=\"Orkney Health Board\",Calculations!$E$2=\"Orkney Islands Local Authority\"),$F94=1),0,IF(AND(OR(Calculations!$E$2=\"Shetland Health Board\",Calculations!$E$2=\"Western Isles Health Board\",Calculations!$E$2=\"Shetland Islands Local Authority\",Calculations!$E$2=\"Eilean Siar Local Authority\"),OR($F94=1,$F94=5)),0,prem_mort(VALUE(LEFT(Options!$B$14,2)),$C94,$E94,$F94,2016,$I94/10+$J94/10,1,$H94/10,$G94*$H94/10,RateRatios_airpollution!$C94)*10))","v":0},null,{"$f":"IF(AND(OR(Calculations!$E$2=\"Orkney Health Board\",Calculations!$E$2=\"Orkney Islands Local Authority\"),$F94=1),0,IF(AND(OR(Calculations!$E$2=\"Shetland Health Board\",Calculations!$E$2=\"Western Isles Health Board\",Calculations!$E$2=\"Shetland Islands Local Authority\",Calculations!$E$2=\"Eilean Siar Local Authority\"),OR($F94=1,$F94=5)),0,new_ci(VALUE(LEFT(Options!$B$14,2)),$C94,$E94,$F94,2016,$I94/10,1,$H94/10,$G94*$H94/10,RateRatios_airpollution!$E94)*10))","v":899.0124644230001},{"$f":"IF(AND(OR(Calculations!$E$2=\"Orkney Health Board\",Calculations!$E$2=\"Orkney Islands Local Authority\"),$F94=1),0,IF(AND(OR(Calculations!$E$2=\"Shetland Health Board\",Calculations!$E$2=\"Western Isles Health Board\",Calculations!$E$2=\"Shetland Islands Local Authority\",Calculations!$E$2=\"Eilean Siar Local Authority\"),OR($F94=1,$F94=5)),0,new_ci(VALUE(LEFT(Options!$B$14,2)),$C94,$E94,$F94,2016,$I94/10+$J94/10,1,$H94/10,$G94*$H94/10,RateRatios_airpollution!$E94)*10))","v":899.00542085500001},{"$f":"IF(AND(OR(Calculations!$E$2=\"Orkney Health Board\",Calculations!$E$2=\"Orkney Islands Local Authority\"),$F94=1),0,IF(AND(OR(Calculations!$E$2=\"Shetland Health Board\",Calculations!$E$2=\"Western Isles Health Board\",Calculations!$E$2=\"Shetland Islands Local Authority\",Calculations!$E$2=\"Eilean Siar Local Authority\"),OR($F94=1,$F94=5)),0,new_yllv2(VALUE(LEFT(Options!$B$14,2)),$C94,$D94,$E94,$F94,2016,$I94/10,1,$H94/10,$G94*$H94/10,RateRatios_airpollution!$E94)*10))","v":7596.655324374},{"$f":"IF(AND(OR(Calculations!$E$2=\"Orkney Health Board\",Calculations!$E$2=\"Orkney Islands Local Authority\"),$F94=1),0,IF(AND(OR(Calculations!$E$2=\"Shetland Health Board\",Calculations!$E$2=\"Western Isles Health Board\",Calculations!$E$2=\"Shetland Islands Local Authority\",Calculations!$E$2=\"Eilean Siar Local Authority\"),OR($F94=1,$F94=5)),0,new_yllv2(VALUE(LEFT(Options!$B$14,2)),$C94,$D94,$E94,$F94,2016,$I94/10+$J94/10,1,$H94/10,$G94*$H94/10,RateRatios_airpollution!$E94)*10))","v":7596.5958062250002},{"$f":"IF(AND(OR(Calculations!$E$2=\"Orkney Health Board\",Calculations!$E$2=\"Orkney Islands Local Authority\"),$F94=1),0,IF(AND(OR(Calculations!$E$2=\"Shetland Health Board\",Calculations!$E$2=\"Western Isles Health Board\",Calculations!$E$2=\"Shetland Islands Local Authority\",Calculations!$E$2=\"Eilean Siar Local Authority\"),OR($F94=1,$F94=5)),0,hosp_count(VALUE(LEFT(Options!$B$14,2)),$C94,$E94,$F94,2016,$I94/10,1,$H94/10,$G94*$H94/10, RateRatios_airpollution!$F94, RateRatios_airpollution!$E94)*10))","v":11038.226266582002},{"$f":"IF(AND(OR(Calculations!$E$2=\"Orkney Health Board\",Calculations!$E$2=\"Orkney Islands Local Authority\"),$F94=1),0,IF(AND(OR(Calculations!$E$2=\"Shetland Health Board\",Calculations!$E$2=\"Western Isles Health Board\",Calculations!$E$2=\"Shetland Islands Local Authority\",Calculations!$E$2=\"Eilean Siar Local Authority\"),OR($F94=1,$F94=5)),0,hosp_count(VALUE(LEFT(Options!$B$14,2)),$C94,$E94,$F94,2016,$I94/10+$J94/10,1,$H94/10,$G94*$H94/10, RateRatios_airpollution!$F94, RateRatios_airpollution!$E94)*10))","v":11038.226266582002},{"$f":"IF(AND(OR(Calculations!$E$2=\"Orkney Health Board\",Calculations!$E$2=\"Orkney Islands Local Authority\"),$F94=1),0,IF(AND(OR(Calculations!$E$2=\"Shetland Health Board\",Calculations!$E$2=\"Western Isles Health Board\",Calculations!$E$2=\"Shetland Islands Local Authority\",Calculations!$E$2=\"Eilean Siar Local Authority\"),OR($F94=1,$F94=5)),0,prem_mort(VALUE(LEFT(Options!$B$14,2)),$C94,$E94,$F94,2016,$I94/10,1,$H94/10,$G94*$H94/10,RateRatios_airpollution!$E94)*10))","v":0},{"$f":"IF(AND(OR(Calculations!$E$2=\"Orkney Health Board\",Calculations!$E$2=\"Orkney Islands Local Authority\"),$F94=1),0,IF(AND(OR(Calculations!$E$2=\"Shetland Health Board\",Calculations!$E$2=\"Western Isles Health Board\",Calculations!$E$2=\"Shetland Islands Local Authority\",Calculations!$E$2=\"Eilean Siar Local Authority\"),OR($F94=1,$F94=5)),0,prem_mort(VALUE(LEFT(Options!$B$14,2)),$C94,$E94,$F94,2016,$I94/10+$J94/10,1,$H94/10,$G94*$H94/10,RateRatios_airpollution!$E94)*10))","v":0},899.0124644230001,898.73792899299997,7596.655324374,7594.3354999920002,11038.226266582002,11034.662562638998,0,0,6461.2078799985629,6459.23479224522,54597.206585985339,54580.533994480378,79331.797229998585,79306.184868758064,0,0,25844831.519994251,25836939.168980882,218388826.34394136,218322135.97792152,317327188.91999435,317224739.47503227,0,0,4000]
[null,"Male 80-84",81.797089,88.627089999999995,"male",1,1,{"$f":"HLOOKUP(Calculations!$E$2,'Population 2016'!$C$3:$BC$249,'Population 2016'!BD95,FALSE)","v":9236},0,{"$f":"HLOOKUP(Calculations!$E$2,Pop2016_in_settlements!$C$3:$BC$249,Pop2016_in_settlements!$BD95,FALSE)","v":6687},{"$f":"IF(AND(OR(Calculations!$E$2=\"Orkney Health Board\",Calculations!$E$2=\"Orkney Islands Local Authority\"),$F95=1),0,IF(AND(OR(Calculations!$E$2=\"Shetland Health Board\",Calculations!$E$2=\"Western Isles Health Board\",Calculations!$E$2=\"Shetland Islands Local Authority\",Calculations!$E$2=\"Eilean Siar Local Authority\"),OR($F95=1,$F95=5)),0,new_ci(VALUE(LEFT(Options!$B$14,2)),$C95,$E95,$F95,2016,$I95/10,1,$H95/10,$G95*$H95/10,RateRatios_accidents!$B$5)*10))","v":850.59802610500003},{"$f":"IF(AND(OR(Calculations!$E$2=\"Orkney Health Board\",Calculations!$E$2=\"Orkney Islands Local Authority\"),$F95=1),0,IF(AND(OR(Calculations!$E$2=\"Shetland Health Board\",Calculations!$E$2=\"Western Isles Health Board\",Calculations!$E$2=\"Shetland Islands Local Authority\",Calculations!$E$2=\"Eilean Siar Local Authority\"),OR($F95=1,$F95=5)),0,new_ci(VALUE(LEFT(Options!$B$14,2)),$C95,$E95,$F95,2016,$I95/10+$J95/10,1,$H95/10,$G95*$H95/10,RateRatios_accidents!$B$5)*10))","v":850.36339197999996},{"$f":"IF(AND(OR(Calculations!$E$2=\"Orkney Health Board\",Calculations!$E$2=\"Orkney Islands Local Authority\"),$F95=1),0,IF(AND(OR(Calculations!$E$2=\"Shetland Health Board\",Calculations!$E$2=\"Western Isles Health Board\",Calculations!$E$2=\"Shetland Islands Local Authority\",Calculations!$E$2=\"Eilean Siar Local Authority\"),OR($F95=1,$F95=5)),0,new_yllv2(VALUE(LEFT(Options!$B$14,2)),$C95,$D95,$E95,$F95,2016,$I95/10,1,$H95/10,$G95*$H95/10,RateRatios_accidents!$B$5)*10))","v":4958.9873427900002},{"$f":"IF(AND(OR(Calculations!$E$2=\"Orkney Health Board\",Calculations!$E$2=\"Orkney Islands Local Authority\"),$F95=1),0,IF(AND(OR(Calculations!$E$2=\"Shetland Health Board\",Calculations!$E$2=\"Western Isles Health Board\",Calculations!$E$2=\"Shetland Islands Local Authority\",Calculations!$E$2=\"Eilean Siar Local Authority\"),OR($F95=1,$F95=5)),0,new_yllv2(VALUE(LEFT(Options!$B$14,2)),$C95,$D95,$E95,$F95,2016,$I95/10+$J95/10,1,$H95/10,$G95*$H95/10,RateRatios_accidents!$B$5)*10))","v":4957.6194256070003},{"$f":"IF(AND(OR(Calculations!$E$2=\"Orkney Health Board\",Calculations!$E$2=\"Orkney Islands Local Authority\"),$F95=1),0,IF(AND(OR(Calculations!$E$2=\"Shetland Health Board\",Calculations!$E$2=\"Western Isles Health Board\",Calculations!$E$2=\"Shetland Islands Local Authority\",Calculations!$E$2=\"Eilean Siar Local Authority\"),OR($F95=1,$F95=5)),0,hosp_count(VALUE(LEFT(Options!$B$14,2)),$C95,$E95,$F95,2016,$I95/10,1,$H95/10,$G95*$H95/10, RateRatios_accidents!$B$4, RateRatios_accidents!$B$5)*10))","v":8715.7131399080008},{"$f":"IF(AND(OR(Calculations!$E$2=\"Orkney Health Board\",Calculations!$E$2=\"Orkney Islands Local Authority\"),$F95=1),0,IF(AND(OR(Calculations!$E$2=\"Shetland Health Board\",Calculations!$E$2=\"Western Isles Health Board\",Calculations!$E$2=\"Shetland Islands Local Authority\",Calculations!$E$2=\"Eilean Siar Local Authority\"),OR($F95=1,$F95=5)),0,hosp_count(VALUE(LEFT(Options!$B$14,2)),$C95,$E95,$F95,2016,$I95/10+$J95/10,1,$H95/10,$G95*$H95/10, RateRatios_accidents!$B$4, RateRatios_accidents!$B$5)*10))","v":8713.1890180789997},{"$f":"IF(AND(OR(Calculations!$E$2=\"Orkney Health Board\",Calculations!$E$2=\"Orkney Islands Local Authority\"),$F95=1),0,IF(AND(OR(Calculations!$E$2=\"Shetland Health Board\",Calculations!$E$2=\"Western Isles Health Board\",Calculations!$E$2=\"Shetland Islands Local Authority\",Calculations!$E$2=\"Eilean Siar Local Authority\"),OR($F95=1,$F95=5)),0,prem_mort(VALUE(LEFT(Options!$B$14,2)),$C95,$E95,$F95,2016,$I95/10,1,$H95/10,$G95*$H95/10,RateRatios_accidents!$B$5)*10))","v":0},{"$f":"IF(AND(OR(Calculations!$E$2=\"Orkney Health Board\",Calculations!$E$2=\"Orkney Islands Local Authority\"),$F95=1),0,IF(AND(OR(Calculations!$E$2=\"Shetland Health Board\",Calculations!$E$2=\"Western Isles Health Board\",Calculations!$E$2=\"Shetland Islands Local Authority\",Calculations!$E$2=\"Eilean Siar Local Authority\"),OR($F95=1,$F95=5)),0,prem_mort(VALUE(LEFT(Options!$B$14,2)),$C95,$E95,$F95,2016,$I95/10+$J95/10,1,$H95/10,$G95*$H95/10,RateRatios_accidents!$B$5)*10))","v":0},null,{"$f":"IF(AND(OR(Calculations!$E$2=\"Orkney Health Board\",Calculations!$E$2=\"Orkney Islands Local Authority\"),$F95=1),0,IF(AND(OR(Calculations!$E$2=\"Shetland Health Board\",Calculations!$E$2=\"Western Isles Health Board\",Calculations!$E$2=\"Shetland Islands Local Authority\",Calculations!$E$2=\"Eilean Siar Local Authority\"),OR($F95=1,$F95=5)),0,new_ci(VALUE(LEFT(Options!$B$14,2)),$C95,$E95,$F95,2016,$I95/10,1,$H95/10,$G95*$H95/10,RateRatios_airpollution!$C95)*10))","v":850.59802610500003},{"$f":"IF(AND(OR(Calculations!$E$2=\"Orkney Health Board\",Calculations!$E$2=\"Orkney Islands Local Authority\"),$F95=1),0,IF(AND(OR(Calculations!$E$2=\"Shetland Health Board\",Calculations!$E$2=\"Western Isles Health Board\",Calculations!$E$2=\"Shetland Islands Local Authority\",Calculations!$E$2=\"Eilean Siar Local Authority\"),OR($F95=1,$F95=5)),0,new_ci(VALUE(LEFT(Options!$B$14,2)),$C95,$E95,$F95,2016,$I95/10+$J95/10,1,$H95/10,$G95*$H95/10,RateRatios_airpollution!$C95)*10))","v":850.58403957600012},{"$f":"IF(AND(OR(Calculations!$E$2=\"Orkney Health Board\",Calculations!$E$2=\"Orkney Islands Local Authority\"),$F95=1),0,IF(AND(OR(Calculations!$E$2=\"Shetland Health Board\",Calculations!$E$2=\"Western Isles Health Board\",Calculations!$E$2=\"Shetland Islands Local Authority\",Calculations!$E$2=\"Eilean Siar Local Authority\"),OR($F95=1,$F95=5)),0,new_yllv2(VALUE(LEFT(Options!$B$14,2)),$C95,$D95,$E95,$F95,2016,$I95/10,1,$H95/10,$G95*$H95/10,RateRatios_airpollution!$C95)*10))","v":4958.9873427900002},{"$f":"IF(AND(OR(Calculations!$E$2=\"Orkney Health Board\",Calculations!$E$2=\"Orkney Islands Local Authority\"),$F95=1),0,IF(AND(OR(Calculations!$E$2=\"Shetland Health Board\",Calculations!$E$2=\"Western Isles Health Board\",Calculations!$E$2=\"Shetland Islands Local Authority\",Calculations!$E$2=\"Eilean Siar Local Authority\"),OR($F95=1,$F95=5)),0,new_yllv2(VALUE(LEFT(Options!$B$14,2)),$C95,$D95,$E95,$F95,2016,$I95/10+$J95/10,1,$H95/10,$G95*$H95/10,RateRatios_airpollution!$C95)*10))","v":4958.9058013120002},{"$f":"IF(AND(OR(Calculations!$E$2=\"Orkney Health Board\",Calculations!$E$2=\"Orkney Islands Local Authority\"),$F95=1),0,IF(AND(OR(Calculations!$E$2=\"Shetland Health Board\",Calculations!$E$2=\"Western Isles Health Board\",Calculations!$E$2=\"Shetland Islands Local Authority\",Calculations!$E$2=\"Eilean Siar Local Authority\"),OR($F95=1,$F95=5)),0,hosp_count(VALUE(LEFT(Options!$B$14,2)),$C95,$E95,$F95,2016,$I95/10,1,$H95/10,$G95*$H95/10, RateRatios_airpollution!$D95, RateRatios_airpollution!$C95)*10))","v":8715.7131399080008},{"$f":"IF(AND(OR(Calculations!$E$2=\"Orkney Health Board\",Calculations!$E$2=\"Orkney Islands Local Authority\"),$F95=1),0,IF(AND(OR(Calculations!$E$2=\"Shetland Health Board\",Calculations!$E$2=\"Western Isles Health Board\",Calculations!$E$2=\"Shetland Islands Local Authority\",Calculations!$E$2=\"Eilean Siar Local Authority\"),OR($F95=1,$F95=5)),0,hosp_count(VALUE(LEFT(Options!$B$14,2)),$C95,$E95,$F95,2016,$I95/10+$J95/10,1,$H95/10,$G95*$H95/10, RateRatios_airpollution!$D95, RateRatios_airpollution!$C95)*10))","v":8715.4296786470004},{"$f":"IF(AND(OR(Calculations!$E$2=\"Orkney Health Board\",Calculations!$E$2=\"Orkney Islands Local Authority\"),$F95=1),0,IF(AND(OR(Calculations!$E$2=\"Shetland Health Board\",Calculations!$E$2=\"Western Isles Health Board\",Calculations!$E$2=\"Shetland Islands Local Authority\",Calculations!$E$2=\"Eilean Siar Local Authority\"),OR($F95=1,$F95=5)),0,prem_mort(VALUE(LEFT(Options!$B$14,2)),$C95,$E95,$F95,2016,$I95/10,1,$H95/10,$G95*$H95/10,RateRatios_airpollution!$C95)*10))","v":0},{"$f":"IF(AND(OR(Calculations!$E$2=\"Orkney Health Board\",Calculations!$E$2=\"Orkney Islands Local Authority\"),$F95=1),0,IF(AND(OR(Calculations!$E$2=\"Shetland Health Board\",Calculations!$E$2=\"Western Isles Health Board\",Calculations!$E$2=\"Shetland Islands Local Authority\",Calculations!$E$2=\"Eilean Siar Local Authority\"),OR($F95=1,$F95=5)),0,prem_mort(VALUE(LEFT(Options!$B$14,2)),$C95,$E95,$F95,2016,$I95/10+$J95/10,1,$H95/10,$G95*$H95/10,RateRatios_airpollution!$C95)*10))","v":0},null,{"$f":"IF(AND(OR(Calculations!$E$2=\"Orkney Health Board\",Calculations!$E$2=\"Orkney Islands Local Authority\"),$F95=1),0,IF(AND(OR(Calculations!$E$2=\"Shetland Health Board\",Calculations!$E$2=\"Western Isles Health Board\",Calculations!$E$2=\"Shetland Islands Local Authority\",Calculations!$E$2=\"Eilean Siar Local Authority\"),OR($F95=1,$F95=5)),0,new_ci(VALUE(LEFT(Options!$B$14,2)),$C95,$E95,$F95,2016,$I95/10,1,$H95/10,$G95*$H95/10,RateRatios_airpollution!$E95)*10))","v":850.59802610500003},{"$f":"IF(AND(OR(Calculations!$E$2=\"Orkney Health Board\",Calculations!$E$2=\"Orkney Islands Local Authority\"),$F95=1),0,IF(AND(OR(Calculations!$E$2=\"Shetland Health Board\",Calculations!$E$2=\"Western Isles Health Board\",Calculations!$E$2=\"Shetland Islands Local Authority\",Calculations!$E$2=\"Eilean Siar Local Authority\"),OR($F95=1,$F95=5)),0,new_ci(VALUE(LEFT(Options!$B$14,2)),$C95,$E95,$F95,2016,$I95/10+$J95/10,1,$H95/10,$G95*$H95/10,RateRatios_airpollution!$E95)*10))","v":850.59140597500004},{"$f":"IF(AND(OR(Calculations!$E$2=\"Orkney Health Board\",Calculations!$E$2=\"Orkney Islands Local Authority\"),$F95=1),0,IF(AND(OR(Calculations!$E$2=\"Shetland Health Board\",Calculations!$E$2=\"Western Isles Health Board\",Calculations!$E$2=\"Shetland Islands Local Authority\",Calculations!$E$2=\"Eilean Siar Local Authority\"),OR($F95=1,$F95=5)),0,new_yllv2(VALUE(LEFT(Options!$B$14,2)),$C95,$D95,$E95,$F95,2016,$I95/10,1,$H95/10,$G95*$H95/10,RateRatios_airpollution!$E95)*10))","v":4958.9873427900002},{"$f":"IF(AND(OR(Calculations!$E$2=\"Orkney Health Board\",Calculations!$E$2=\"Orkney Islands Local Authority\"),$F95=1),0,IF(AND(OR(Calculations!$E$2=\"Shetland Health Board\",Calculations!$E$2=\"Western Isles Health Board\",Calculations!$E$2=\"Shetland Islands Local Authority\",Calculations!$E$2=\"Eilean Siar Local Authority\"),OR($F95=1,$F95=5)),0,new_yllv2(VALUE(LEFT(Options!$B$14,2)),$C95,$D95,$E95,$F95,2016,$I95/10+$J95/10,1,$H95/10,$G95*$H95/10,RateRatios_airpollution!$E95)*10))","v":4958.9487474260004},{"$f":"IF(AND(OR(Calculations!$E$2=\"Orkney Health Board\",Calculations!$E$2=\"Orkney Islands Local Authority\"),$F95=1),0,IF(AND(OR(Calculations!$E$2=\"Shetland Health Board\",Calculations!$E$2=\"Western Isles Health Board\",Calculations!$E$2=\"Shetland Islands Local Authority\",Calculations!$E$2=\"Eilean Siar Local Authority\"),OR($F95=1,$F95=5)),0,hosp_count(VALUE(LEFT(Options!$B$14,2)),$C95,$E95,$F95,2016,$I95/10,1,$H95/10,$G95*$H95/10, RateRatios_airpollution!$F95, RateRatios_airpollution!$E95)*10))","v":8715.7131399080008},{"$f":"IF(AND(OR(Calculations!$E$2=\"Orkney Health Board\",Calculations!$E$2=\"Orkney Islands Local Authority\"),$F95=1),0,IF(AND(OR(Calculations!$E$2=\"Shetland Health Board\",Calculations!$E$2=\"Western Isles Health Board\",Calculations!$E$2=\"Shetland Islands Local Authority\",Calculations!$E$2=\"Eilean Siar Local Authority\"),OR($F95=1,$F95=5)),0,hosp_count(VALUE(LEFT(Options!$B$14,2)),$C95,$E95,$F95,2016,$I95/10+$J95/10,1,$H95/10,$G95*$H95/10, RateRatios_airpollution!$F95, RateRatios_airpollution!$E95)*10))","v":8715.7131399080008},{"$f":"IF(AND(OR(Calculations!$E$2=\"Orkney Health Board\",Calculations!$E$2=\"Orkney Islands Local Authority\"),$F95=1),0,IF(AND(OR(Calculations!$E$2=\"Shetland Health Board\",Calculations!$E$2=\"Western Isles Health Board\",Calculations!$E$2=\"Shetland Islands Local Authority\",Calculations!$E$2=\"Eilean Siar Local Authority\"),OR($F95=1,$F95=5)),0,prem_mort(VALUE(LEFT(Options!$B$14,2)),$C95,$E95,$F95,2016,$I95/10,1,$H95/10,$G95*$H95/10,RateRatios_airpollution!$E95)*10))","v":0},{"$f":"IF(AND(OR(Calculations!$E$2=\"Orkney Health Board\",Calculations!$E$2=\"Orkney Islands Local Authority\"),$F95=1),0,IF(AND(OR(Calculations!$E$2=\"Shetland Health Board\",Calculations!$E$2=\"Western Isles Health Board\",Calculations!$E$2=\"Shetland Islands Local Authority\",Calculations!$E$2=\"Eilean Siar Local Authority\"),OR($F95=1,$F95=5)),0,prem_mort(VALUE(LEFT(Options!$B$14,2)),$C95,$E95,$F95,2016,$I95/10+$J95/10,1,$H95/10,$G95*$H95/10,RateRatios_airpollution!$E95)*10))","v":0},850.59802610500003,850.34278532100006,4958.9873427900002,4957.4992887650005,8715.7131399080008,8712.9055568179992,0,0,9209.5931800021663,9206.8296375162408,53691.937449003904,53675.825993557824,94366.751189995673,94336.352932200069,0,0,23023982.950005416,23017074.093790602,134229843.62250975,134189564.98389456,235916877.97498918,235840882.33050019,0,0,2500]
[null,"Male 85-89",86.630752999999999,91.420750000000012,"male",1,1,{"$f":"HLOOKUP(Calculations!$E$2,'Population 2016'!$C$3:$BC$249,'Population 2016'!BD96,FALSE)","v":4449},0,{"$f":"HLOOKUP(Calculations!$E$2,Pop2016_in_settlements!$C$3:$BC$249,Pop2016_in_settlements!$BD96,FALSE)","v":3223},{"$f":"IF(AND(OR(Calculations!$E$2=\"Orkney Health Board\",Calculations!$E$2=\"Orkney Islands Local Authority\"),$F96=1),0,IF(AND(OR(Calculations!$E$2=\"Shetland Health Board\",Calculations!$E$2=\"Western Isles Health Board\",Calculations!$E$2=\"Shetland Islands Local Authority\",Calculations!$E$2=\"Eilean Siar Local Authority\"),OR($F96=1,$F96=5)),0,new_ci(VALUE(LEFT(Options!$B$14,2)),$C96,$E96,$F96,2016,$I96/10,1,$H96/10,$G96*$H96/10,RateRatios_accidents!$B$5)*10))","v":578.00526786600005},{"$f":"IF(AND(OR(Calculations!$E$2=\"Orkney Health Board\",Calculations!$E$2=\"Orkney Islands Local Authority\"),$F96=1),0,IF(AND(OR(Calculations!$E$2=\"Shetland Health Board\",Calculations!$E$2=\"Western Isles Health Board\",Calculations!$E$2=\"Shetland Islands Local Authority\",Calculations!$E$2=\"Eilean Siar Local Authority\"),OR($F96=1,$F96=5)),0,new_ci(VALUE(LEFT(Options!$B$14,2)),$C96,$E96,$F96,2016,$I96/10+$J96/10,1,$H96/10,$G96*$H96/10,RateRatios_accidents!$B$5)*10))","v":577.84915734800006},{"$f":"IF(AND(OR(Calculations!$E$2=\"Orkney Health Board\",Calculations!$E$2=\"Orkney Islands Local Authority\"),$F96=1),0,IF(AND(OR(Calculations!$E$2=\"Shetland Health Board\",Calculations!$E$2=\"Western Isles Health Board\",Calculations!$E$2=\"Shetland Islands Local Authority\",Calculations!$E$2=\"Eilean Siar Local Authority\"),OR($F96=1,$F96=5)),0,new_yllv2(VALUE(LEFT(Options!$B$14,2)),$C96,$D96,$E96,$F96,2016,$I96/10,1,$H96/10,$G96*$H96/10,RateRatios_accidents!$B$5)*10))","v":2190.6382311959997},{"$f":"IF(AND(OR(Calculations!$E$2=\"Orkney Health Board\",Calculations!$E$2=\"Orkney Islands Local Authority\"),$F96=1),0,IF(AND(OR(Calculations!$E$2=\"Shetland Health Board\",Calculations!$E$2=\"Western Isles Health Board\",Calculations!$E$2=\"Shetland Islands Local Authority\",Calculations!$E$2=\"Eilean Siar Local Authority\"),OR($F96=1,$F96=5)),0,new_yllv2(VALUE(LEFT(Options!$B$14,2)),$C96,$D96,$E96,$F96,2016,$I96/10+$J96/10,1,$H96/10,$G96*$H96/10,RateRatios_accidents!$B$5)*10))","v":2190.0465728009999},{"$f":"IF(AND(OR(Calculations!$E$2=\"Orkney Health Board\",Calculations!$E$2=\"Orkney Islands Local Authority\"),$F96=1),0,IF(AND(OR(Calculations!$E$2=\"Shetland Health Board\",Calculations!$E$2=\"Western Isles Health Board\",Calculations!$E$2=\"Shetland Islands Local Authority\",Calculations!$E$2=\"Eilean Siar Local Authority\"),OR($F96=1,$F96=5)),0,hosp_count(VALUE(LEFT(Options!$B$14,2)),$C96,$E96,$F96,2016,$I96/10,1,$H96/10,$G96*$H96/10, RateRatios_accidents!$B$4, RateRatios_accidents!$B$5)*10))","v":4984.1843667180001},{"$f":"IF(AND(OR(Calculations!$E$2=\"Orkney Health Board\",Calculations!$E$2=\"Orkney Islands Local Authority\"),$F96=1),0,IF(AND(OR(Calculations!$E$2=\"Shetland Health Board\",Calculations!$E$2=\"Western Isles Health Board\",Calculations!$E$2=\"Shetland Islands Local Authority\",Calculations!$E$2=\"Eilean Siar Local Authority\"),OR($F96=1,$F96=5)),0,hosp_count(VALUE(LEFT(Options!$B$14,2)),$C96,$E96,$F96,2016,$I96/10+$J96/10,1,$H96/10,$G96*$H96/10, RateRatios_accidents!$B$4, RateRatios_accidents!$B$5)*10))","v":4982.7400846600003},{"$f":"IF(AND(OR(Calculations!$E$2=\"Orkney Health Board\",Calculations!$E$2=\"Orkney Islands Local Authority\"),$F96=1),0,IF(AND(OR(Calculations!$E$2=\"Shetland Health Board\",Calculations!$E$2=\"Western Isles Health Board\",Calculations!$E$2=\"Shetland Islands Local Authority\",Calculations!$E$2=\"Eilean Siar Local Authority\"),OR($F96=1,$F96=5)),0,prem_mort(VALUE(LEFT(Options!$B$14,2)),$C96,$E96,$F96,2016,$I96/10,1,$H96/10,$G96*$H96/10,RateRatios_accidents!$B$5)*10))","v":0},{"$f":"IF(AND(OR(Calculations!$E$2=\"Orkney Health Board\",Calculations!$E$2=\"Orkney Islands Local Authority\"),$F96=1),0,IF(AND(OR(Calculations!$E$2=\"Shetland Health Board\",Calculations!$E$2=\"Western Isles Health Board\",Calculations!$E$2=\"Shetland Islands Local Authority\",Calculations!$E$2=\"Eilean Siar Local Authority\"),OR($F96=1,$F96=5)),0,prem_mort(VALUE(LEFT(Options!$B$14,2)),$C96,$E96,$F96,2016,$I96/10+$J96/10,1,$H96/10,$G96*$H96/10,RateRatios_accidents!$B$5)*10))","v":0},null,{"$f":"IF(AND(OR(Calculations!$E$2=\"Orkney Health Board\",Calculations!$E$2=\"Orkney Islands Local Authority\"),$F96=1),0,IF(AND(OR(Calculations!$E$2=\"Shetland Health Board\",Calculations!$E$2=\"Western Isles Health Board\",Calculations!$E$2=\"Shetland Islands Local Authority\",Calculations!$E$2=\"Eilean Siar Local Authority\"),OR($F96=1,$F96=5)),0,new_ci(VALUE(LEFT(Options!$B$14,2)),$C96,$E96,$F96,2016,$I96/10,1,$H96/10,$G96*$H96/10,RateRatios_airpollution!$C96)*10))","v":578.00526786600005},{"$f":"IF(AND(OR(Calculations!$E$2=\"Orkney Health Board\",Calculations!$E$2=\"Orkney Islands Local Authority\"),$F96=1),0,IF(AND(OR(Calculations!$E$2=\"Shetland Health Board\",Calculations!$E$2=\"Western Isles Health Board\",Calculations!$E$2=\"Shetland Islands Local Authority\",Calculations!$E$2=\"Eilean Siar Local Authority\"),OR($F96=1,$F96=5)),0,new_ci(VALUE(LEFT(Options!$B$14,2)),$C96,$E96,$F96,2016,$I96/10+$J96/10,1,$H96/10,$G96*$H96/10,RateRatios_airpollution!$C96)*10))","v":577.99595694100003},{"$f":"IF(AND(OR(Calculations!$E$2=\"Orkney Health Board\",Calculations!$E$2=\"Orkney Islands Local Authority\"),$F96=1),0,IF(AND(OR(Calculations!$E$2=\"Shetland Health Board\",Calculations!$E$2=\"Western Isles Health Board\",Calculations!$E$2=\"Shetland Islands Local Authority\",Calculations!$E$2=\"Eilean Siar Local Authority\"),OR($F96=1,$F96=5)),0,new_yllv2(VALUE(LEFT(Options!$B$14,2)),$C96,$D96,$E96,$F96,2016,$I96/10,1,$H96/10,$G96*$H96/10,RateRatios_airpollution!$C96)*10))","v":2190.6382311959997},{"$f":"IF(AND(OR(Calculations!$E$2=\"Orkney Health Board\",Calculations!$E$2=\"Orkney Islands Local Authority\"),$F96=1),0,IF(AND(OR(Calculations!$E$2=\"Shetland Health Board\",Calculations!$E$2=\"Western Isles Health Board\",Calculations!$E$2=\"Shetland Islands Local Authority\",Calculations!$E$2=\"Eilean Siar Local Authority\"),OR($F96=1,$F96=5)),0,new_yllv2(VALUE(LEFT(Options!$B$14,2)),$C96,$D96,$E96,$F96,2016,$I96/10+$J96/10,1,$H96/10,$G96*$H96/10,RateRatios_airpollution!$C96)*10))","v":2190.602942819},{"$f":"IF(AND(OR(Calculations!$E$2=\"Orkney Health Board\",Calculations!$E$2=\"Orkney Islands Local Authority\"),$F96=1),0,IF(AND(OR(Calculations!$E$2=\"Shetland Health Board\",Calculations!$E$2=\"Western Isles Health Board\",Calculations!$E$2=\"Shetland Islands Local Authority\",Calculations!$E$2=\"Eilean Siar Local Authority\"),OR($F96=1,$F96=5)),0,hosp_count(VALUE(LEFT(Options!$B$14,2)),$C96,$E96,$F96,2016,$I96/10,1,$H96/10,$G96*$H96/10, RateRatios_airpollution!$D96, RateRatios_airpollution!$C96)*10))","v":4984.1843667180001},{"$f":"IF(AND(OR(Calculations!$E$2=\"Orkney Health Board\",Calculations!$E$2=\"Orkney Islands Local Authority\"),$F96=1),0,IF(AND(OR(Calculations!$E$2=\"Shetland Health Board\",Calculations!$E$2=\"Western Isles Health Board\",Calculations!$E$2=\"Shetland Islands Local Authority\",Calculations!$E$2=\"Eilean Siar Local Authority\"),OR($F96=1,$F96=5)),0,hosp_count(VALUE(LEFT(Options!$B$14,2)),$C96,$E96,$F96,2016,$I96/10+$J96/10,1,$H96/10,$G96*$H96/10, RateRatios_airpollution!$D96, RateRatios_airpollution!$C96)*10))","v":4984.0220770650003},{"$f":"IF(AND(OR(Calculations!$E$2=\"Orkney Health Board\",Calculations!$E$2=\"Orkney Islands Local Authority\"),$F96=1),0,IF(AND(OR(Calculations!$E$2=\"Shetland Health Board\",Calculations!$E$2=\"Western Isles Health Board\",Calculations!$E$2=\"Shetland Islands Local Authority\",Calculations!$E$2=\"Eilean Siar Local Authority\"),OR($F96=1,$F96=5)),0,prem_mort(VALUE(LEFT(Options!$B$14,2)),$C96,$E96,$F96,2016,$I96/10,1,$H96/10,$G96*$H96/10,RateRatios_airpollution!$C96)*10))","v":0},{"$f":"IF(AND(OR(Calculations!$E$2=\"Orkney Health Board\",Calculations!$E$2=\"Orkney Islands Local Authority\"),$F96=1),0,IF(AND(OR(Calculations!$E$2=\"Shetland Health Board\",Calculations!$E$2=\"Western Isles Health Board\",Calculations!$E$2=\"Shetland Islands Local Authority\",Calculations!$E$2=\"Eilean Siar Local Authority\"),OR($F96=1,$F96=5)),0,prem_mort(VALUE(LEFT(Options!$B$14,2)),$C96,$E96,$F96,2016,$I96/10+$J96/10,1,$H96/10,$G96*$H96/10,RateRatios_airpollution!$C96)*10))","v":0},null,{"$f":"IF(AND(OR(Calculations!$E$2=\"Orkney Health Board\",Calculations!$E$2=\"Orkney Islands Local Authority\"),$F96=1),0,IF(AND(OR(Calculations!$E$2=\"Shetland Health Board\",Calculations!$E$2=\"Western Isles Health Board\",Calculations!$E$2=\"Shetland Islands Local Authority\",Calculations!$E$2=\"Eilean Siar Local Authority\"),OR($F96=1,$F96=5)),0,new_ci(VALUE(LEFT(Options!$B$14,2)),$C96,$E96,$F96,2016,$I96/10,1,$H96/10,$G96*$H96/10,RateRatios_airpollution!$E96)*10))","v":578.00526786600005},{"$f":"IF(AND(OR(Calculations!$E$2=\"Orkney Health Board\",Calculations!$E$2=\"Orkney Islands Local Authority\"),$F96=1),0,IF(AND(OR(Calculations!$E$2=\"Shetland Health Board\",Calculations!$E$2=\"Western Isles Health Board\",Calculations!$E$2=\"Shetland Islands Local Authority\",Calculations!$E$2=\"Eilean Siar Local Authority\"),OR($F96=1,$F96=5)),0,new_ci(VALUE(LEFT(Options!$B$14,2)),$C96,$E96,$F96,2016,$I96/10+$J96/10,1,$H96/10,$G96*$H96/10,RateRatios_airpollution!$E96)*10))","v":578.00087040400001},{"$f":"IF(AND(OR(Calculations!$E$2=\"Orkney Health Board\",Calculations!$E$2=\"Orkney Islands Local Authority\"),$F96=1),0,IF(AND(OR(Calculations!$E$2=\"Shetland Health Board\",Calculations!$E$2=\"Western Isles Health Board\",Calculations!$E$2=\"Shetland Islands Local Authority\",Calculations!$E$2=\"Eilean Siar Local Authority\"),OR($F96=1,$F96=5)),0,new_yllv2(VALUE(LEFT(Options!$B$14,2)),$C96,$D96,$E96,$F96,2016,$I96/10,1,$H96/10,$G96*$H96/10,RateRatios_airpollution!$E96)*10))","v":2190.6382311959997},{"$f":"IF(AND(OR(Calculations!$E$2=\"Orkney Health Board\",Calculations!$E$2=\"Orkney Islands Local Authority\"),$F96=1),0,IF(AND(OR(Calculations!$E$2=\"Shetland Health Board\",Calculations!$E$2=\"Western Isles Health Board\",Calculations!$E$2=\"Shetland Islands Local Authority\",Calculations!$E$2=\"Eilean Siar Local Authority\"),OR($F96=1,$F96=5)),0,new_yllv2(VALUE(LEFT(Options!$B$14,2)),$C96,$D96,$E96,$F96,2016,$I96/10+$J96/10,1,$H96/10,$G96*$H96/10,RateRatios_airpollution!$E96)*10))","v":2190.6215648289999},{"$f":"IF(AND(OR(Calculations!$E$2=\"Orkney Health Board\",Calculations!$E$2=\"Orkney Islands Local Authority\"),$F96=1),0,IF(AND(OR(Calculations!$E$2=\"Shetland Health Board\",Calculations!$E$2=\"Western Isles Health Board\",Calculations!$E$2=\"Shetland Islands Local Authority\",Calculations!$E$2=\"Eilean Siar Local Authority\"),OR($F96=1,$F96=5)),0,hosp_count(VALUE(LEFT(Options!$B$14,2)),$C96,$E96,$F96,2016,$I96/10,1,$H96/10,$G96*$H96/10, RateRatios_airpollution!$F96, RateRatios_airpollution!$E96)*10))","v":4984.1843667180001},{"$f":"IF(AND(OR(Calculations!$E$2=\"Orkney Health Board\",Calculations!$E$2=\"Orkney Islands Local Authority\"),$F96=1),0,IF(AND(OR(Calculations!$E$2=\"Shetland Health Board\",Calculations!$E$2=\"Western Isles Health Board\",Calculations!$E$2=\"Shetland Islands Local Authority\",Calculations!$E$2=\"Eilean Siar Local Authority\"),OR($F96=1,$F96=5)),0,hosp_count(VALUE(LEFT(Options!$B$14,2)),$C96,$E96,$F96,2016,$I96/10+$J96/10,1,$H96/10,$G96*$H96/10, RateRatios_airpollution!$F96, RateRatios_airpollution!$E96)*10))","v":4984.1843667180001},{"$f":"IF(AND(OR(Calculations!$E$2=\"Orkney Health Board\",Calculations!$E$2=\"Orkney Islands Local Authority\"),$F96=1),0,IF(AND(OR(Calculations!$E$2=\"Shetland Health Board\",Calculations!$E$2=\"Western Isles Health Board\",Calculations!$E$2=\"Shetland Islands Local Authority\",Calculations!$E$2=\"Eilean Siar Local Authority\"),OR($F96=1,$F96=5)),0,prem_mort(VALUE(LEFT(Options!$B$14,2)),$C96,$E96,$F96,2016,$I96/10,1,$H96/10,$G96*$H96/10,RateRatios_airpollution!$E96)*10))","v":0},{"$f":"IF(AND(OR(Calculations!$E$2=\"Orkney Health Board\",Calculations!$E$2=\"Orkney Islands Local Authority\"),$F96=1),0,IF(AND(OR(Calculations!$E$2=\"Shetland Health Board\",Calculations!$E$2=\"Western Isles Health Board\",Calculations!$E$2=\"Shetland Islands Local Authority\",Calculations!$E$2=\"Eilean Siar Local Authority\"),OR($F96=1,$F96=5)),0,prem_mort(VALUE(LEFT(Options!$B$14,2)),$C96,$E96,$F96,2016,$I96/10+$J96/10,1,$H96/10,$G96*$H96/10,RateRatios_airpollution!$E96)*10))","v":0},578.00526786600005,577.835448961,2190.6382311959997,2189.9946180570005,4984.1843667180001,4982.5777950070005,0,0,12991.801930006744,12987.984917082491,49238.890339312195,49224.423871813895,112029.31820000001,111993.20735012363,0,0,19487702.895010117,19481977.375623737,73858335.508968294,73836635.80772084,168043977.30000001,167989811.02518544,0,0,1500]
[null,"Male 90+",92.215477000000007,95.515479999999997,"male",1,1,{"$f":"HLOOKUP(Calculations!$E$2,'Population 2016'!$C$3:$BC$249,'Population 2016'!BD97,FALSE)","v":1916},0,{"$f":"HLOOKUP(Calculations!$E$2,Pop2016_in_settlements!$C$3:$BC$249,Pop2016_in_settlements!$BD97,FALSE)","v":1316},{"$f":"IF(AND(OR(Calculations!$E$2=\"Orkney Health Board\",Calculations!$E$2=\"Orkney Islands Local Authority\"),$F97=1),0,IF(AND(OR(Calculations!$E$2=\"Shetland Health Board\",Calculations!$E$2=\"Western Isles Health Board\",Calculations!$E$2=\"Shetland Islands Local Authority\",Calculations!$E$2=\"Eilean Siar Local Authority\"),OR($F97=1,$F97=5)),0,new_ci(VALUE(LEFT(Options!$B$14,2)),$C97,$E97,$F97,2016,$I97/10,1,$H97/10,$G97*$H97/10,RateRatios_accidents!$B$5)*10))","v":366.26302137300002},{"$f":"IF(AND(OR(Calculations!$E$2=\"Orkney Health Board\",Calculations!$E$2=\"Orkney Islands Local Authority\"),$F97=1),0,IF(AND(OR(Calculations!$E$2=\"Shetland Health Board\",Calculations!$E$2=\"Western Isles Health Board\",Calculations!$E$2=\"Shetland Islands Local Authority\",Calculations!$E$2=\"Eilean Siar Local Authority\"),OR($F97=1,$F97=5)),0,new_ci(VALUE(LEFT(Options!$B$14,2)),$C97,$E97,$F97,2016,$I97/10+$J97/10,1,$H97/10,$G97*$H97/10,RateRatios_accidents!$B$5)*10))","v":366.17268797400004},{"$f":"IF(AND(OR(Calculations!$E$2=\"Orkney Health Board\",Calculations!$E$2=\"Orkney Islands Local Authority\"),$F97=1),0,IF(AND(OR(Calculations!$E$2=\"Shetland Health Board\",Calculations!$E$2=\"Western Isles Health Board\",Calculations!$E$2=\"Shetland Islands Local Authority\",Calculations!$E$2=\"Eilean Siar Local Authority\"),OR($F97=1,$F97=5)),0,new_yllv2(VALUE(LEFT(Options!$B$14,2)),$C97,$D97,$E97,$F97,2016,$I97/10,1,$H97/10,$G97*$H97/10,RateRatios_accidents!$B$5)*10))","v":842.40604794700005},{"$f":"IF(AND(OR(Calculations!$E$2=\"Orkney Health Board\",Calculations!$E$2=\"Orkney Islands Local Authority\"),$F97=1),0,IF(AND(OR(Calculations!$E$2=\"Shetland Health Board\",Calculations!$E$2=\"Western Isles Health Board\",Calculations!$E$2=\"Shetland Islands Local Authority\",Calculations!$E$2=\"Eilean Siar Local Authority\"),OR($F97=1,$F97=5)),0,new_yllv2(VALUE(LEFT(Options!$B$14,2)),$C97,$D97,$E97,$F97,2016,$I97/10+$J97/10,1,$H97/10,$G97*$H97/10,RateRatios_accidents!$B$5)*10))","v":842.19828085800009},{"$f":"IF(AND(OR(Calculations!$E$2=\"Orkney Health Board\",Calculations!$E$2=\"Orkney Islands Local Authority\"),$F97=1),0,IF(AND(OR(Calculations!$E$2=\"Shetland Health Board\",Calculations!$E$2=\"Western Isles Health Board\",Calculations!$E$2=\"Shetland Islands Local Authority\",Calculations!$E$2=\"Eilean Siar Local Authority\"),OR($F97=1,$F97=5)),0,hosp_count(VALUE(LEFT(Options!$B$14,2)),$C97,$E97,$F97,2016,$I97/10,1,$H97/10,$G97*$H97/10, RateRatios_accidents!$B$4, RateRatios_accidents!$B$5)*10))","v":2617.0845289210001},{"$f":"IF(AND(OR(Calculations!$E$2=\"Orkney Health Board\",Calculations!$E$2=\"Orkney Islands Local Authority\"),$F97=1),0,IF(AND(OR(Calculations!$E$2=\"Shetland Health Board\",Calculations!$E$2=\"Western Isles Health Board\",Calculations!$E$2=\"Shetland Islands Local Authority\",Calculations!$E$2=\"Eilean Siar Local Authority\"),OR($F97=1,$F97=5)),0,hosp_count(VALUE(LEFT(Options!$B$14,2)),$C97,$E97,$F97,2016,$I97/10+$J97/10,1,$H97/10,$G97*$H97/10, RateRatios_accidents!$B$4, RateRatios_accidents!$B$5)*10))","v":2616.3655136339999},{"$f":"IF(AND(OR(Calculations!$E$2=\"Orkney Health Board\",Calculations!$E$2=\"Orkney Islands Local Authority\"),$F97=1),0,IF(AND(OR(Calculations!$E$2=\"Shetland Health Board\",Calculations!$E$2=\"Western Isles Health Board\",Calculations!$E$2=\"Shetland Islands Local Authority\",Calculations!$E$2=\"Eilean Siar Local Authority\"),OR($F97=1,$F97=5)),0,prem_mort(VALUE(LEFT(Options!$B$14,2)),$C97,$E97,$F97,2016,$I97/10,1,$H97/10,$G97*$H97/10,RateRatios_accidents!$B$5)*10))","v":0},{"$f":"IF(AND(OR(Calculations!$E$2=\"Orkney Health Board\",Calculations!$E$2=\"Orkney Islands Local Authority\"),$F97=1),0,IF(AND(OR(Calculations!$E$2=\"Shetland Health Board\",Calculations!$E$2=\"Western Isles Health Board\",Calculations!$E$2=\"Shetland Islands Local Authority\",Calculations!$E$2=\"Eilean Siar Local Authority\"),OR($F97=1,$F97=5)),0,prem_mort(VALUE(LEFT(Options!$B$14,2)),$C97,$E97,$F97,2016,$I97/10+$J97/10,1,$H97/10,$G97*$H97/10,RateRatios_accidents!$B$5)*10))","v":0},null,{"$f":"IF(AND(OR(Calculations!$E$2=\"Orkney Health Board\",Calculations!$E$2=\"Orkney Islands Local Authority\"),$F97=1),0,IF(AND(OR(Calculations!$E$2=\"Shetland Health Board\",Calculations!$E$2=\"Western Isles Health Board\",Calculations!$E$2=\"Shetland Islands Local Authority\",Calculations!$E$2=\"Eilean Siar Local Authority\"),OR($F97=1,$F97=5)),0,new_ci(VALUE(LEFT(Options!$B$14,2)),$C97,$E97,$F97,2016,$I97/10,1,$H97/10,$G97*$H97/10,RateRatios_airpollution!$C97)*10))","v":366.26302137300002},{"$f":"IF(AND(OR(Calculations!$E$2=\"Orkney Health Board\",Calculations!$E$2=\"Orkney Islands Local Authority\"),$F97=1),0,IF(AND(OR(Calculations!$E$2=\"Shetland Health Board\",Calculations!$E$2=\"Western Isles Health Board\",Calculations!$E$2=\"Shetland Islands Local Authority\",Calculations!$E$2=\"Eilean Siar Local Authority\"),OR($F97=1,$F97=5)),0,new_ci(VALUE(LEFT(Options!$B$14,2)),$C97,$E97,$F97,2016,$I97/10+$J97/10,1,$H97/10,$G97*$H97/10,RateRatios_airpollution!$C97)*10))","v":366.25751549199998},{"$f":"IF(AND(OR(Calculations!$E$2=\"Orkney Health Board\",Calculations!$E$2=\"Orkney Islands Local Authority\"),$F97=1),0,IF(AND(OR(Calculations!$E$2=\"Shetland Health Board\",Calculations!$E$2=\"Western Isles Health Board\",Calculations!$E$2=\"Shetland Islands Local Authority\",Calculations!$E$2=\"Eilean Siar Local Authority\"),OR($F97=1,$F97=5)),0,new_yllv2(VALUE(LEFT(Options!$B$14,2)),$C97,$D97,$E97,$F97,2016,$I97/10,1,$H97/10,$G97*$H97/10,RateRatios_airpollution!$C97)*10))","v":842.40604794700005},{"$f":"IF(AND(OR(Calculations!$E$2=\"Orkney Health Board\",Calculations!$E$2=\"Orkney Islands Local Authority\"),$F97=1),0,IF(AND(OR(Calculations!$E$2=\"Shetland Health Board\",Calculations!$E$2=\"Western Isles Health Board\",Calculations!$E$2=\"Shetland Islands Local Authority\",Calculations!$E$2=\"Eilean Siar Local Authority\"),OR($F97=1,$F97=5)),0,new_yllv2(VALUE(LEFT(Options!$B$14,2)),$C97,$D97,$E97,$F97,2016,$I97/10+$J97/10,1,$H97/10,$G97*$H97/10,RateRatios_airpollution!$C97)*10))","v":842.39338440400002},{"$f":"IF(AND(OR(Calculations!$E$2=\"Orkney Health Board\",Calculations!$E$2=\"Orkney Islands Local Authority\"),$F97=1),0,IF(AND(OR(Calculations!$E$2=\"Shetland Health Board\",Calculations!$E$2=\"Western Isles Health Board\",Calculations!$E$2=\"Shetland Islands Local Authority\",Calculations!$E$2=\"Eilean Siar Local Authority\"),OR($F97=1,$F97=5)),0,hosp_count(VALUE(LEFT(Options!$B$14,2)),$C97,$E97,$F97,2016,$I97/10,1,$H97/10,$G97*$H97/10, RateRatios_airpollution!$D97, RateRatios_airpollution!$C97)*10))","v":2617.0845289210001},{"$f":"IF(AND(OR(Calculations!$E$2=\"Orkney Health Board\",Calculations!$E$2=\"Orkney Islands Local Authority\"),$F97=1),0,IF(AND(OR(Calculations!$E$2=\"Shetland Health Board\",Calculations!$E$2=\"Western Isles Health Board\",Calculations!$E$2=\"Shetland Islands Local Authority\",Calculations!$E$2=\"Eilean Siar Local Authority\"),OR($F97=1,$F97=5)),0,hosp_count(VALUE(LEFT(Options!$B$14,2)),$C97,$E97,$F97,2016,$I97/10+$J97/10,1,$H97/10,$G97*$H97/10, RateRatios_airpollution!$D97, RateRatios_airpollution!$C97)*10))","v":2617.0019629500002},{"$f":"IF(AND(OR(Calculations!$E$2=\"Orkney Health Board\",Calculations!$E$2=\"Orkney Islands Local Authority\"),$F97=1),0,IF(AND(OR(Calculations!$E$2=\"Shetland Health Board\",Calculations!$E$2=\"Western Isles Health Board\",Calculations!$E$2=\"Shetland Islands Local Authority\",Calculations!$E$2=\"Eilean Siar Local Authority\"),OR($F97=1,$F97=5)),0,prem_mort(VALUE(LEFT(Options!$B$14,2)),$C97,$E97,$F97,2016,$I97/10,1,$H97/10,$G97*$H97/10,RateRatios_airpollution!$C97)*10))","v":0},{"$f":"IF(AND(OR(Calculations!$E$2=\"Orkney Health Board\",Calculations!$E$2=\"Orkney Islands Local Authority\"),$F97=1),0,IF(AND(OR(Calculations!$E$2=\"Shetland Health Board\",Calculations!$E$2=\"Western Isles Health Board\",Calculations!$E$2=\"Shetland Islands Local Authority\",Calculations!$E$2=\"Eilean Siar Local Authority\"),OR($F97=1,$F97=5)),0,prem_mort(VALUE(LEFT(Options!$B$14,2)),$C97,$E97,$F97,2016,$I97/10+$J97/10,1,$H97/10,$G97*$H97/10,RateRatios_airpollution!$C97)*10))","v":0},null,{"$f":"IF(AND(OR(Calculations!$E$2=\"Orkney Health Board\",Calculations!$E$2=\"Orkney Islands Local Authority\"),$F97=1),0,IF(AND(OR(Calculations!$E$2=\"Shetland Health Board\",Calculations!$E$2=\"Western Isles Health Board\",Calculations!$E$2=\"Shetland Islands Local Authority\",Calculations!$E$2=\"Eilean Siar Local Authority\"),OR($F97=1,$F97=5)),0,new_ci(VALUE(LEFT(Options!$B$14,2)),$C97,$E97,$F97,2016,$I97/10,1,$H97/10,$G97*$H97/10,RateRatios_airpollution!$E97)*10))","v":366.26302137300002},{"$f":"IF(AND(OR(Calculations!$E$2=\"Orkney Health Board\",Calculations!$E$2=\"Orkney Islands Local Authority\"),$F97=1),0,IF(AND(OR(Calculations!$E$2=\"Shetland Health Board\",Calculations!$E$2=\"Western Isles Health Board\",Calculations!$E$2=\"Shetland Islands Local Authority\",Calculations!$E$2=\"Eilean Siar Local Authority\"),OR($F97=1,$F97=5)),0,new_ci(VALUE(LEFT(Options!$B$14,2)),$C97,$E97,$F97,2016,$I97/10+$J97/10,1,$H97/10,$G97*$H97/10,RateRatios_airpollution!$E97)*10))","v":366.26041648199998},{"$f":"IF(AND(OR(Calculations!$E$2=\"Orkney Health Board\",Calculations!$E$2=\"Orkney Islands Local Authority\"),$F97=1),0,IF(AND(OR(Calculations!$E$2=\"Shetland Health Board\",Calculations!$E$2=\"Western Isles Health Board\",Calculations!$E$2=\"Shetland Islands Local Authority\",Calculations!$E$2=\"Eilean Siar Local Authority\"),OR($F97=1,$F97=5)),0,new_yllv2(VALUE(LEFT(Options!$B$14,2)),$C97,$D97,$E97,$F97,2016,$I97/10,1,$H97/10,$G97*$H97/10,RateRatios_airpollution!$E97)*10))","v":842.40604794700005},{"$f":"IF(AND(OR(Calculations!$E$2=\"Orkney Health Board\",Calculations!$E$2=\"Orkney Islands Local Authority\"),$F97=1),0,IF(AND(OR(Calculations!$E$2=\"Shetland Health Board\",Calculations!$E$2=\"Western Isles Health Board\",Calculations!$E$2=\"Shetland Islands Local Authority\",Calculations!$E$2=\"Eilean Siar Local Authority\"),OR($F97=1,$F97=5)),0,new_yllv2(VALUE(LEFT(Options!$B$14,2)),$C97,$D97,$E97,$F97,2016,$I97/10+$J97/10,1,$H97/10,$G97*$H97/10,RateRatios_airpollution!$E97)*10))","v":842.40005668999993},{"$f":"IF(AND(OR(Calculations!$E$2=\"Orkney Health Board\",Calculations!$E$2=\"Orkney Islands Local Authority\"),$F97=1),0,IF(AND(OR(Calculations!$E$2=\"Shetland Health Board\",Calculations!$E$2=\"Western Isles Health Board\",Calculations!$E$2=\"Shetland Islands Local Authority\",Calculations!$E$2=\"Eilean Siar Local Authority\"),OR($F97=1,$F97=5)),0,hosp_count(VALUE(LEFT(Options!$B$14,2)),$C97,$E97,$F97,2016,$I97/10,1,$H97/10,$G97*$H97/10, RateRatios_airpollution!$F97, RateRatios_airpollution!$E97)*10))","v":2617.0845289210001},{"$f":"IF(AND(OR(Calculations!$E$2=\"Orkney Health Board\",Calculations!$E$2=\"Orkney Islands Local Authority\"),$F97=1),0,IF(AND(OR(Calculations!$E$2=\"Shetland Health Board\",Calculations!$E$2=\"Western Isles Health Board\",Calculations!$E$2=\"Shetland Islands Local Authority\",Calculations!$E$2=\"Eilean Siar Local Authority\"),OR($F97=1,$F97=5)),0,hosp_count(VALUE(LEFT(Options!$B$14,2)),$C97,$E97,$F97,2016,$I97/10+$J97/10,1,$H97/10,$G97*$H97/10, RateRatios_airpollution!$F97, RateRatios_airpollution!$E97)*10))","v":2617.0845289210001},{"$f":"IF(AND(OR(Calculations!$E$2=\"Orkney Health Board\",Calculations!$E$2=\"Orkney Islands Local Authority\"),$F97=1),0,IF(AND(OR(Calculations!$E$2=\"Shetland Health Board\",Calculations!$E$2=\"Western Isles Health Board\",Calculations!$E$2=\"Shetland Islands Local Authority\",Calculations!$E$2=\"Eilean Siar Local Authority\"),OR($F97=1,$F97=5)),0,prem_mort(VALUE(LEFT(Options!$B$14,2)),$C97,$E97,$F97,2016,$I97/10,1,$H97/10,$G97*$H97/10,RateRatios_airpollution!$E97)*10))","v":0},{"$f":"IF(AND(OR(Calculations!$E$2=\"Orkney Health Board\",Calculations!$E$2=\"Orkney Islands Local Authority\"),$F97=1),0,IF(AND(OR(Calculations!$E$2=\"Shetland Health Board\",Calculations!$E$2=\"Western Isles Health Board\",Calculations!$E$2=\"Shetland Islands Local Authority\",Calculations!$E$2=\"Eilean Siar Local Authority\"),OR($F97=1,$F97=5)),0,prem_mort(VALUE(LEFT(Options!$B$14,2)),$C97,$E97,$F97,2016,$I97/10+$J97/10,1,$H97/10,$G97*$H97/10,RateRatios_airpollution!$E97)*10))","v":0},366.26302137300002,366.16457720199998,842.40604794700005,842.17962605799994,2617.0845289210001,2616.282947663,0,0,19116.024080010437,19110.886075260958,43966.912732098128,43955.095305741124,136591.05056998957,136549.2143874217,0,0,19116024.080010436,19110886.07526096,43966912.732098125,43955095.305741124,136591050.56998956,136549214.3874217,0,0,1000]
[null,"Female 0-4",2.0384007,81.468401,"female",2,1,{"$f":"HLOOKUP(Calculations!$E$2,'Population 2016'!$C$3:$BC$249,'Population 2016'!BD98,FALSE)","v":0},0,{"$f":"HLOOKUP(Calculations!$E$2,Pop2016_in_settlements!$C$3:$BC$249,Pop2016_in_settlements!$BD98,FALSE)","v":0},{"$f":"IF(AND(OR(Calculations!$E$2=\"Orkney Health Board\",Calculations!$E$2=\"Orkney Islands Local Authority\"),$F98=1),0,IF(AND(OR(Calculations!$E$2=\"Shetland Health Board\",Calculations!$E$2=\"Western Isles Health Board\",Calculations!$E$2=\"Shetland Islands Local Authority\",Calculations!$E$2=\"Eilean Siar Local Authority\"),OR($F98=1,$F98=5)),0,new_ci(VALUE(LEFT(Options!$B$14,2)),$C98,$E98,$F98,2016,$I98/10,1,$H98/10,$G98*$H98/10,RateRatios_accidents!$B$5)*10))","v":{"$error":"#VALUE!"}},{"$f":"IF(AND(OR(Calculations!$E$2=\"Orkney Health Board\",Calculations!$E$2=\"Orkney Islands Local Authority\"),$F98=1),0,IF(AND(OR(Calculations!$E$2=\"Shetland Health Board\",Calculations!$E$2=\"Western Isles Health Board\",Calculations!$E$2=\"Shetland Islands Local Authority\",Calculations!$E$2=\"Eilean Siar Local Authority\"),OR($F98=1,$F98=5)),0,new_ci(VALUE(LEFT(Options!$B$14,2)),$C98,$E98,$F98,2016,$I98/10+$J98/10,1,$H98/10,$G98*$H98/10,RateRatios_accidents!$B$5)*10))","v":{"$error":"#VALUE!"}},{"$f":"IF(AND(OR(Calculations!$E$2=\"Orkney Health Board\",Calculations!$E$2=\"Orkney Islands Local Authority\"),$F98=1),0,IF(AND(OR(Calculations!$E$2=\"Shetland Health Board\",Calculations!$E$2=\"Western Isles Health Board\",Calculations!$E$2=\"Shetland Islands Local Authority\",Calculations!$E$2=\"Eilean Siar Local Authority\"),OR($F98=1,$F98=5)),0,new_yllv2(VALUE(LEFT(Options!$B$14,2)),$C98,$D98,$E98,$F98,2016,$I98/10,1,$H98/10,$G98*$H98/10,RateRatios_accidents!$B$5)*10))","v":{"$error":"#VALUE!"}},{"$f":"IF(AND(OR(Calculations!$E$2=\"Orkney Health Board\",Calculations!$E$2=\"Orkney Islands Local Authority\"),$F98=1),0,IF(AND(OR(Calculations!$E$2=\"Shetland Health Board\",Calculations!$E$2=\"Western Isles Health Board\",Calculations!$E$2=\"Shetland Islands Local Authority\",Calculations!$E$2=\"Eilean Siar Local Authority\"),OR($F98=1,$F98=5)),0,new_yllv2(VALUE(LEFT(Options!$B$14,2)),$C98,$D98,$E98,$F98,2016,$I98/10+$J98/10,1,$H98/10,$G98*$H98/10,RateRatios_accidents!$B$5)*10))","v":{"$error":"#VALUE!"}},{"$f":"IF(AND(OR(Calculations!$E$2=\"Orkney Health Board\",Calculations!$E$2=\"Orkney Islands Local Authority\"),$F98=1),0,IF(AND(OR(Calculations!$E$2=\"Shetland Health Board\",Calculations!$E$2=\"Western Isles Health Board\",Calculations!$E$2=\"Shetland Islands Local Authority\",Calculations!$E$2=\"Eilean Siar Local Authority\"),OR($F98=1,$F98=5)),0,hosp_count(VALUE(LEFT(Options!$B$14,2)),$C98,$E98,$F98,2016,$I98/10,1,$H98/10,$G98*$H98/10, RateRatios_accidents!$B$4, RateRatios_accidents!$B$5)*10))","v":{"$error":"#VALUE!"}},{"$f":"IF(AND(OR(Calculations!$E$2=\"Orkney Health Board\",Calculations!$E$2=\"Orkney Islands Local Authority\"),$F98=1),0,IF(AND(OR(Calculations!$E$2=\"Shetland Health Board\",Calculations!$E$2=\"Western Isles Health Board\",Calculations!$E$2=\"Shetland Islands Local Authority\",Calculations!$E$2=\"Eilean Siar Local Authority\"),OR($F98=1,$F98=5)),0,hosp_count(VALUE(LEFT(Options!$B$14,2)),$C98,$E98,$F98,2016,$I98/10+$J98/10,1,$H98/10,$G98*$H98/10, RateRatios_accidents!$B$4, RateRatios_accidents!$B$5)*10))","v":{"$error":"#VALUE!"}},{"$f":"IF(AND(OR(Calculations!$E$2=\"Orkney Health Board\",Calculations!$E$2=\"Orkney Islands Local Authority\"),$F98=1),0,IF(AND(OR(Calculations!$E$2=\"Shetland Health Board\",Calculations!$E$2=\"Western Isles Health Board\",Calculations!$E$2=\"Shetland Islands Local Authority\",Calculations!$E$2=\"Eilean Siar Local Authority\"),OR($F98=1,$F98=5)),0,prem_mort(VALUE(LEFT(Options!$B$14,2)),$C98,$E98,$F98,2016,$I98/10,1,$H98/10,$G98*$H98/10,RateRatios_accidents!$B$5)*10))","v":{"$error":"#VALUE!"}},{"$f":"IF(AND(OR(Calculations!$E$2=\"Orkney Health Board\",Calculations!$E$2=\"Orkney Islands Local Authority\"),$F98=1),0,IF(AND(OR(Calculations!$E$2=\"Shetland Health Board\",Calculations!$E$2=\"Western Isles Health Board\",Calculations!$E$2=\"Shetland Islands Local Authority\",Calculations!$E$2=\"Eilean Siar Local Authority\"),OR($F98=1,$F98=5)),0,prem_mort(VALUE(LEFT(Options!$B$14,2)),$C98,$E98,$F98,2016,$I98/10+$J98/10,1,$H98/10,$G98*$H98/10,RateRatios_accidents!$B$5)*10))","v":{"$error":"#VALUE!"}},null,{"$f":"IF(AND(OR(Calculations!$E$2=\"Orkney Health Board\",Calculations!$E$2=\"Orkney Islands Local Authority\"),$F98=1),0,IF(AND(OR(Calculations!$E$2=\"Shetland Health Board\",Calculations!$E$2=\"Western Isles Health Board\",Calculations!$E$2=\"Shetland Islands Local Authority\",Calculations!$E$2=\"Eilean Siar Local Authority\"),OR($F98=1,$F98=5)),0,new_ci(VALUE(LEFT(Options!$B$14,2)),$C98,$E98,$F98,2016,$I98/10,1,$H98/10,$G98*$H98/10,RateRatios_airpollution!$C98)*10))","v":{"$error":"#VALUE!"}},{"$f":"IF(AND(OR(Calculations!$E$2=\"Orkney Health Board\",Calculations!$E$2=\"Orkney Islands Local Authority\"),$F98=1),0,IF(AND(OR(Calculations!$E$2=\"Shetland Health Board\",Calculations!$E$2=\"Western Isles Health Board\",Calculations!$E$2=\"Shetland Islands Local Authority\",Calculations!$E$2=\"Eilean Siar Local Authority\"),OR($F98=1,$F98=5)),0,new_ci(VALUE(LEFT(Options!$B$14,2)),$C98,$E98,$F98,2016,$I98/10+$J98/10,1,$H98/10,$G98*$H98/10,RateRatios_airpollution!$C98)*10))","v":{"$error":"#VALUE!"}},{"$f":"IF(AND(OR(Calculations!$E$2=\"Orkney Health Board\",Calculations!$E$2=\"Orkney Islands Local Authority\"),$F98=1),0,IF(AND(OR(Calculations!$E$2=\"Shetland Health Board\",Calculations!$E$2=\"Western Isles Health Board\",Calculations!$E$2=\"Shetland Islands Local Authority\",Calculations!$E$2=\"Eilean Siar Local Authority\"),OR($F98=1,$F98=5)),0,new_yllv2(VALUE(LEFT(Options!$B$14,2)),$C98,$D98,$E98,$F98,2016,$I98/10,1,$H98/10,$G98*$H98/10,RateRatios_airpollution!$C98)*10))","v":{"$error":"#VALUE!"}},{"$f":"IF(AND(OR(Calculations!$E$2=\"Orkney Health Board\",Calculations!$E$2=\"Orkney Islands Local Authority\"),$F98=1),0,IF(AND(OR(Calculations!$E$2=\"Shetland Health Board\",Calculations!$E$2=\"Western Isles Health Board\",Calculations!$E$2=\"Shetland Islands Local Authority\",Calculations!$E$2=\"Eilean Siar Local Authority\"),OR($F98=1,$F98=5)),0,new_yllv2(VALUE(LEFT(Options!$B$14,2)),$C98,$D98,$E98,$F98,2016,$I98/10+$J98/10,1,$H98/10,$G98*$H98/10,RateRatios_airpollution!$C98)*10))","v":{"$error":"#VALUE!"}},{"$f":"IF(AND(OR(Calculations!$E$2=\"Orkney Health Board\",Calculations!$E$2=\"Orkney Islands Local Authority\"),$F98=1),0,IF(AND(OR(Calculations!$E$2=\"Shetland Health Board\",Calculations!$E$2=\"Western Isles Health Board\",Calculations!$E$2=\"Shetland Islands Local Authority\",Calculations!$E$2=\"Eilean Siar Local Authority\"),OR($F98=1,$F98=5)),0,hosp_count(VALUE(LEFT(Options!$B$14,2)),$C98,$E98,$F98,2016,$I98/10,1,$H98/10,$G98*$H98/10, RateRatios_airpollution!$D98, RateRatios_airpollution!$C98)*10))","v":{"$error":"#VALUE!"}},{"$f":"IF(AND(OR(Calculations!$E$2=\"Orkney Health Board\",Calculations!$E$2=\"Orkney Islands Local Authority\"),$F98=1),0,IF(AND(OR(Calculations!$E$2=\"Shetland Health Board\",Calculations!$E$2=\"Western Isles Health Board\",Calculations!$E$2=\"Shetland Islands Local Authority\",Calculations!$E$2=\"Eilean Siar Local Authority\"),OR($F98=1,$F98=5)),0,hosp_count(VALUE(LEFT(Options!$B$14,2)),$C98,$E98,$F98,2016,$I98/10+$J98/10,1,$H98/10,$G98*$H98/10, RateRatios_airpollution!$D98, RateRatios_airpollution!$C98)*10))","v":{"$error":"#VALUE!"}},{"$f":"IF(AND(OR(Calculations!$E$2=\"Orkney Health Board\",Calculations!$E$2=\"Orkney Islands Local Authority\"),$F98=1),0,IF(AND(OR(Calculations!$E$2=\"Shetland Health Board\",Calculations!$E$2=\"Western Isles Health Board\",Calculations!$E$2=\"Shetland Islands Local Authority\",Calculations!$E$2=\"Eilean Siar Local Authority\"),OR($F98=1,$F98=5)),0,prem_mort(VALUE(LEFT(Options!$B$14,2)),$C98,$E98,$F98,2016,$I98/10,1,$H98/10,$G98*$H98/10,RateRatios_airpollution!$C98)*10))","v":{"$error":"#VALUE!"}},{"$f":"IF(AND(OR(Calculations!$E$2=\"Orkney Health Board\",Calculations!$E$2=\"Orkney Islands Local Authority\"),$F98=1),0,IF(AND(OR(Calculations!$E$2=\"Shetland Health Board\",Calculations!$E$2=\"Western Isles Health Board\",Calculations!$E$2=\"Shetland Islands Local Authority\",Calculations!$E$2=\"Eilean Siar Local Authority\"),OR($F98=1,$F98=5)),0,prem_mort(VALUE(LEFT(Options!$B$14,2)),$C98,$E98,$F98,2016,$I98/10+$J98/10,1,$H98/10,$G98*$H98/10,RateRatios_airpollution!$C98)*10))","v":{"$error":"#VALUE!"}},null,{"$f":"IF(AND(OR(Calculations!$E$2=\"Orkney Health Board\",Calculations!$E$2=\"Orkney Islands Local Authority\"),$F98=1),0,IF(AND(OR(Calculations!$E$2=\"Shetland Health Board\",Calculations!$E$2=\"Western Isles Health Board\",Calculations!$E$2=\"Shetland Islands Local Authority\",Calculations!$E$2=\"Eilean Siar Local Authority\"),OR($F98=1,$F98=5)),0,new_ci(VALUE(LEFT(Options!$B$14,2)),$C98,$E98,$F98,2016,$I98/10,1,$H98/10,$G98*$H98/10,RateRatios_airpollution!$E98)*10))","v":{"$error":"#VALUE!"}},{"$f":"IF(AND(OR(Calculations!$E$2=\"Orkney Health Board\",Calculations!$E$2=\"Orkney Islands Local Authority\"),$F98=1),0,IF(AND(OR(Calculations!$E$2=\"Shetland Health Board\",Calculations!$E$2=\"Western Isles Health Board\",Calculations!$E$2=\"Shetland Islands Local Authority\",Calculations!$E$2=\"Eilean Siar Local Authority\"),OR($F98=1,$F98=5)),0,new_ci(VALUE(LEFT(Options!$B$14,2)),$C98,$E98,$F98,2016,$I98/10+$J98/10,1,$H98/10,$G98*$H98/10,RateRatios_airpollution!$E98)*10))","v":{"$error":"#VALUE!"}},{"$f":"IF(AND(OR(Calculations!$E$2=\"Orkney Health Board\",Calculations!$E$2=\"Orkney Islands Local Authority\"),$F98=1),0,IF(AND(OR(Calculations!$E$2=\"Shetland Health Board\",Calculations!$E$2=\"Western Isles Health Board\",Calculations!$E$2=\"Shetland Islands Local Authority\",Calculations!$E$2=\"Eilean Siar Local Authority\"),OR($F98=1,$F98=5)),0,new_yllv2(VALUE(LEFT(Options!$B$14,2)),$C98,$D98,$E98,$F98,2016,$I98/10,1,$H98/10,$G98*$H98/10,RateRatios_airpollution!$E98)*10))","v":{"$error":"#VALUE!"}},{"$f":"IF(AND(OR(Calculations!$E$2=\"Orkney Health Board\",Calculations!$E$2=\"Orkney Islands Local Authority\"),$F98=1),0,IF(AND(OR(Calculations!$E$2=\"Shetland Health Board\",Calculations!$E$2=\"Western Isles Health Board\",Calculations!$E$2=\"Shetland Islands Local Authority\",Calculations!$E$2=\"Eilean Siar Local Authority\"),OR($F98=1,$F98=5)),0,new_yllv2(VALUE(LEFT(Options!$B$14,2)),$C98,$D98,$E98,$F98,2016,$I98/10+$J98/10,1,$H98/10,$G98*$H98/10,RateRatios_airpollution!$E98)*10))","v":{"$error":"#VALUE!"}},{"$f":"IF(AND(OR(Calculations!$E$2=\"Orkney Health Board\",Calculations!$E$2=\"Orkney Islands Local Authority\"),$F98=1),0,IF(AND(OR(Calculations!$E$2=\"Shetland Health Board\",Calculations!$E$2=\"Western Isles Health Board\",Calculations!$E$2=\"Shetland Islands Local Authority\",Calculations!$E$2=\"Eilean Siar Local Authority\"),OR($F98=1,$F98=5)),0,hosp_count(VALUE(LEFT(Options!$B$14,2)),$C98,$E98,$F98,2016,$I98/10,1,$H98/10,$G98*$H98/10, RateRatios_airpollution!$F98, RateRatios_airpollution!$E98)*10))","v":{"$error":"#VALUE!"}},{"$f":"IF(AND(OR(Calculations!$E$2=\"Orkney Health Board\",Calculations!$E$2=\"Orkney Islands Local Authority\"),$F98=1),0,IF(AND(OR(Calculations!$E$2=\"Shetland Health Board\",Calculations!$E$2=\"Western Isles Health Board\",Calculations!$E$2=\"Shetland Islands Local Authority\",Calculations!$E$2=\"Eilean Siar Local Authority\"),OR($F98=1,$F98=5)),0,hosp_count(VALUE(LEFT(Options!$B$14,2)),$C98,$E98,$F98,2016,$I98/10+$J98/10,1,$H98/10,$G98*$H98/10, RateRatios_airpollution!$F98, RateRatios_airpollution!$E98)*10))","v":{"$error":"#VALUE!"}},{"$f":"IF(AND(OR(Calculations!$E$2=\"Orkney Health Board\",Calculations!$E$2=\"Orkney Islands Local Authority\"),$F98=1),0,IF(AND(OR(Calculations!$E$2=\"Shetland Health Board\",Calculations!$E$2=\"Western Isles Health Board\",Calculations!$E$2=\"Shetland Islands Local Authority\",Calculations!$E$2=\"Eilean Siar Local Authority\"),OR($F98=1,$F98=5)),0,prem_mort(VALUE(LEFT(Options!$B$14,2)),$C98,$E98,$F98,2016,$I98/10,1,$H98/10,$G98*$H98/10,RateRatios_airpollution!$E98)*10))","v":{"$error":"#VALUE!"}},{"$f":"IF(AND(OR(Calculations!$E$2=\"Orkney Health Board\",Calculations!$E$2=\"Orkney Islands Local Authority\"),$F98=1),0,IF(AND(OR(Calculations!$E$2=\"Shetland Health Board\",Calculations!$E$2=\"Western Isles Health Board\",Calculations!$E$2=\"Shetland Islands Local Authority\",Calculations!$E$2=\"Eilean Siar Local Authority\"),OR($F98=1,$F98=5)),0,prem_mort(VALUE(LEFT(Options!$B$14,2)),$C98,$E98,$F98,2016,$I98/10+$J98/10,1,$H98/10,$G98*$H98/10,RateRatios_airpollution!$E98)*10))","v":{"$error":"#VALUE!"}},{"$error":"#VALUE!"},{"$error":"#VALUE!"},{"$error":"#VALUE!"},{"$error":"#VALUE!"},{"$error":"#VALUE!"},{"$error":"#VALUE!"},{"$error":"#VALUE!"},{"$error":"#VALUE!"},{"$error":"#VALUE!"},{"$error":"#VALUE!"},{"$error":"#VALUE!"},{"$error":"#VALUE!"},{"$error":"#VALUE!"},{"$error":"#VALUE!"},{"$error":"#VALUE!"},{"$error":"#VALUE!"},{"$error":"#VALUE!"},{"$error":"#VALUE!"},{"$error":"#VALUE!"},{"$error":"#VALUE!"},{"$error":"#VALUE!"},{"$error":"#VALUE!"},{"$error":"#VALUE!"},{"$error":"#VALUE!"},5000]
[null,"Female 5-9",6.9792794999999996,81.439279999999997,"female",2,1,{"$f":"HLOOKUP(Calculations!$E$2,'Population 2016'!$C$3:$BC$249,'Population 2016'!BD99,FALSE)","v":0},0,{"$f":"HLOOKUP(Calculations!$E$2,Pop2016_in_settlements!$C$3:$BC$249,Pop2016_in_settlements!$BD99,FALSE)","v":0},{"$f":"IF(AND(OR(Calculations!$E$2=\"Orkney Health Board\",Calculations!$E$2=\"Orkney Islands Local Authority\"),$F99=1),0,IF(AND(OR(Calculations!$E$2=\"Shetland Health Board\",Calculations!$E$2=\"Western Isles Health Board\",Calculations!$E$2=\"Shetland Islands Local Authority\",Calculations!$E$2=\"Eilean Siar Local Authority\"),OR($F99=1,$F99=5)),0,new_ci(VALUE(LEFT(Options!$B$14,2)),$C99,$E99,$F99,2016,$I99/10,1,$H99/10,$G99*$H99/10,RateRatios_accidents!$B$5)*10))","v":{"$error":"#VALUE!"}},{"$f":"IF(AND(OR(Calculations!$E$2=\"Orkney Health Board\",Calculations!$E$2=\"Orkney Islands Local Authority\"),$F99=1),0,IF(AND(OR(Calculations!$E$2=\"Shetland Health Board\",Calculations!$E$2=\"Western Isles Health Board\",Calculations!$E$2=\"Shetland Islands Local Authority\",Calculations!$E$2=\"Eilean Siar Local Authority\"),OR($F99=1,$F99=5)),0,new_ci(VALUE(LEFT(Options!$B$14,2)),$C99,$E99,$F99,2016,$I99/10+$J99/10,1,$H99/10,$G99*$H99/10,RateRatios_accidents!$B$5)*10))","v":{"$error":"#VALUE!"}},{"$f":"IF(AND(OR(Calculations!$E$2=\"Orkney Health Board\",Calculations!$E$2=\"Orkney Islands Local Authority\"),$F99=1),0,IF(AND(OR(Calculations!$E$2=\"Shetland Health Board\",Calculations!$E$2=\"Western Isles Health Board\",Calculations!$E$2=\"Shetland Islands Local Authority\",Calculations!$E$2=\"Eilean Siar Local Authority\"),OR($F99=1,$F99=5)),0,new_yllv2(VALUE(LEFT(Options!$B$14,2)),$C99,$D99,$E99,$F99,2016,$I99/10,1,$H99/10,$G99*$H99/10,RateRatios_accidents!$B$5)*10))","v":{"$error":"#VALUE!"}},{"$f":"IF(AND(OR(Calculations!$E$2=\"Orkney Health Board\",Calculations!$E$2=\"Orkney Islands Local Authority\"),$F99=1),0,IF(AND(OR(Calculations!$E$2=\"Shetland Health Board\",Calculations!$E$2=\"Western Isles Health Board\",Calculations!$E$2=\"Shetland Islands Local Authority\",Calculations!$E$2=\"Eilean Siar Local Authority\"),OR($F99=1,$F99=5)),0,new_yllv2(VALUE(LEFT(Options!$B$14,2)),$C99,$D99,$E99,$F99,2016,$I99/10+$J99/10,1,$H99/10,$G99*$H99/10,RateRatios_accidents!$B$5)*10))","v":{"$error":"#VALUE!"}},{"$f":"IF(AND(OR(Calculations!$E$2=\"Orkney Health Board\",Calculations!$E$2=\"Orkney Islands Local Authority\"),$F99=1),0,IF(AND(OR(Calculations!$E$2=\"Shetland Health Board\",Calculations!$E$2=\"Western Isles Health Board\",Calculations!$E$2=\"Shetland Islands Local Authority\",Calculations!$E$2=\"Eilean Siar Local Authority\"),OR($F99=1,$F99=5)),0,hosp_count(VALUE(LEFT(Options!$B$14,2)),$C99,$E99,$F99,2016,$I99/10,1,$H99/10,$G99*$H99/10, RateRatios_accidents!$B$4, RateRatios_accidents!$B$5)*10))","v":{"$error":"#VALUE!"}},{"$f":"IF(AND(OR(Calculations!$E$2=\"Orkney Health Board\",Calculations!$E$2=\"Orkney Islands Local Authority\"),$F99=1),0,IF(AND(OR(Calculations!$E$2=\"Shetland Health Board\",Calculations!$E$2=\"Western Isles Health Board\",Calculations!$E$2=\"Shetland Islands Local Authority\",Calculations!$E$2=\"Eilean Siar Local Authority\"),OR($F99=1,$F99=5)),0,hosp_count(VALUE(LEFT(Options!$B$14,2)),$C99,$E99,$F99,2016,$I99/10+$J99/10,1,$H99/10,$G99*$H99/10, RateRatios_accidents!$B$4, RateRatios_accidents!$B$5)*10))","v":{"$error":"#VALUE!"}},{"$f":"IF(AND(OR(Calculations!$E$2=\"Orkney Health Board\",Calculations!$E$2=\"Orkney Islands Local Authority\"),$F99=1),0,IF(AND(OR(Calculations!$E$2=\"Shetland Health Board\",Calculations!$E$2=\"Western Isles Health Board\",Calculations!$E$2=\"Shetland Islands Local Authority\",Calculations!$E$2=\"Eilean Siar Local Authority\"),OR($F99=1,$F99=5)),0,prem_mort(VALUE(LEFT(Options!$B$14,2)),$C99,$E99,$F99,2016,$I99/10,1,$H99/10,$G99*$H99/10,RateRatios_accidents!$B$5)*10))","v":{"$error":"#VALUE!"}},{"$f":"IF(AND(OR(Calculations!$E$2=\"Orkney Health Board\",Calculations!$E$2=\"Orkney Islands Local Authority\"),$F99=1),0,IF(AND(OR(Calculations!$E$2=\"Shetland Health Board\",Calculations!$E$2=\"Western Isles Health Board\",Calculations!$E$2=\"Shetland Islands Local Authority\",Calculations!$E$2=\"Eilean Siar Local Authority\"),OR($F99=1,$F99=5)),0,prem_mort(VALUE(LEFT(Options!$B$14,2)),$C99,$E99,$F99,2016,$I99/10+$J99/10,1,$H99/10,$G99*$H99/10,RateRatios_accidents!$B$5)*10))","v":{"$error":"#VALUE!"}},null,{"$f":"IF(AND(OR(Calculations!$E$2=\"Orkney Health Board\",Calculations!$E$2=\"Orkney Islands Local Authority\"),$F99=1),0,IF(AND(OR(Calculations!$E$2=\"Shetland Health Board\",Calculations!$E$2=\"Western Isles Health Board\",Calculations!$E$2=\"Shetland Islands Local Authority\",Calculations!$E$2=\"Eilean Siar Local Authority\"),OR($F99=1,$F99=5)),0,new_ci(VALUE(LEFT(Options!$B$14,2)),$C99,$E99,$F99,2016,$I99/10,1,$H99/10,$G99*$H99/10,RateRatios_airpollution!$C99)*10))","v":{"$error":"#VALUE!"}},{"$f":"IF(AND(OR(Calculations!$E$2=\"Orkney Health Board\",Calculations!$E$2=\"Orkney Islands Local Authority\"),$F99=1),0,IF(AND(OR(Calculations!$E$2=\"Shetland Health Board\",Calculations!$E$2=\"Western Isles Health Board\",Calculations!$E$2=\"Shetland Islands Local Authority\",Calculations!$E$2=\"Eilean Siar Local Authority\"),OR($F99=1,$F99=5)),0,new_ci(VALUE(LEFT(Options!$B$14,2)),$C99,$E99,$F99,2016,$I99/10+$J99/10,1,$H99/10,$G99*$H99/10,RateRatios_airpollution!$C99)*10))","v":{"$error":"#VALUE!"}},{"$f":"IF(AND(OR(Calculations!$E$2=\"Orkney Health Board\",Calculations!$E$2=\"Orkney Islands Local Authority\"),$F99=1),0,IF(AND(OR(Calculations!$E$2=\"Shetland Health Board\",Calculations!$E$2=\"Western Isles Health Board\",Calculations!$E$2=\"Shetland Islands Local Authority\",Calculations!$E$2=\"Eilean Siar Local Authority\"),OR($F99=1,$F99=5)),0,new_yllv2(VALUE(LEFT(Options!$B$14,2)),$C99,$D99,$E99,$F99,2016,$I99/10,1,$H99/10,$G99*$H99/10,RateRatios_airpollution!$C99)*10))","v":{"$error":"#VALUE!"}},{"$f":"IF(AND(OR(Calculations!$E$2=\"Orkney Health Board\",Calculations!$E$2=\"Orkney Islands Local Authority\"),$F99=1),0,IF(AND(OR(Calculations!$E$2=\"Shetland Health Board\",Calculations!$E$2=\"Western Isles Health Board\",Calculations!$E$2=\"Shetland Islands Local Authority\",Calculations!$E$2=\"Eilean Siar Local Authority\"),OR($F99=1,$F99=5)),0,new_yllv2(VALUE(LEFT(Options!$B$14,2)),$C99,$D99,$E99,$F99,2016,$I99/10+$J99/10,1,$H99/10,$G99*$H99/10,RateRatios_airpollution!$C99)*10))","v":{"$error":"#VALUE!"}},{"$f":"IF(AND(OR(Calculations!$E$2=\"Orkney Health Board\",Calculations!$E$2=\"Orkney Islands Local Authority\"),$F99=1),0,IF(AND(OR(Calculations!$E$2=\"Shetland Health Board\",Calculations!$E$2=\"Western Isles Health Board\",Calculations!$E$2=\"Shetland Islands Local Authority\",Calculations!$E$2=\"Eilean Siar Local Authority\"),OR($F99=1,$F99=5)),0,hosp_count(VALUE(LEFT(Options!$B$14,2)),$C99,$E99,$F99,2016,$I99/10,1,$H99/10,$G99*$H99/10, RateRatios_airpollution!$D99, RateRatios_airpollution!$C99)*10))","v":{"$error":"#VALUE!"}},{"$f":"IF(AND(OR(Calculations!$E$2=\"Orkney Health Board\",Calculations!$E$2=\"Orkney Islands Local Authority\"),$F99=1),0,IF(AND(OR(Calculations!$E$2=\"Shetland Health Board\",Calculations!$E$2=\"Western Isles Health Board\",Calculations!$E$2=\"Shetland Islands Local Authority\",Calculations!$E$2=\"Eilean Siar Local Authority\"),OR($F99=1,$F99=5)),0,hosp_count(VALUE(LEFT(Options!$B$14,2)),$C99,$E99,$F99,2016,$I99/10+$J99/10,1,$H99/10,$G99*$H99/10, RateRatios_airpollution!$D99, RateRatios_airpollution!$C99)*10))","v":{"$error":"#VALUE!"}},{"$f":"IF(AND(OR(Calculations!$E$2=\"Orkney Health Board\",Calculations!$E$2=\"Orkney Islands Local Authority\"),$F99=1),0,IF(AND(OR(Calculations!$E$2=\"Shetland Health Board\",Calculations!$E$2=\"Western Isles Health Board\",Calculations!$E$2=\"Shetland Islands Local Authority\",Calculations!$E$2=\"Eilean Siar Local Authority\"),OR($F99=1,$F99=5)),0,prem_mort(VALUE(LEFT(Options!$B$14,2)),$C99,$E99,$F99,2016,$I99/10,1,$H99/10,$G99*$H99/10,RateRatios_airpollution!$C99)*10))","v":{"$error":"#VALUE!"}},{"$f":"IF(AND(OR(Calculations!$E$2=\"Orkney Health Board\",Calculations!$E$2=\"Orkney Islands Local Authority\"),$F99=1),0,IF(AND(OR(Calculations!$E$2=\"Shetland Health Board\",Calculations!$E$2=\"Western Isles Health Board\",Calculations!$E$2=\"Shetland Islands Local Authority\",Calculations!$E$2=\"Eilean Siar Local Authority\"),OR($F99=1,$F99=5)),0,prem_mort(VALUE(LEFT(Options!$B$14,2)),$C99,$E99,$F99,2016,$I99/10+$J99/10,1,$H99/10,$G99*$H99/10,RateRatios_airpollution!$C99)*10))","v":{"$error":"#VALUE!"}},null,{"$f":"IF(AND(OR(Calculations!$E$2=\"Orkney Health Board\",Calculations!$E$2=\"Orkney Islands Local Authority\"),$F99=1),0,IF(AND(OR(Calculations!$E$2=\"Shetland Health Board\",Calculations!$E$2=\"Western Isles Health Board\",Calculations!$E$2=\"Shetland Islands Local Authority\",Calculations!$E$2=\"Eilean Siar Local Authority\"),OR($F99=1,$F99=5)),0,new_ci(VALUE(LEFT(Options!$B$14,2)),$C99,$E99,$F99,2016,$I99/10,1,$H99/10,$G99*$H99/10,RateRatios_airpollution!$E99)*10))","v":{"$error":"#VALUE!"}},{"$f":"IF(AND(OR(Calculations!$E$2=\"Orkney Health Board\",Calculations!$E$2=\"Orkney Islands Local Authority\"),$F99=1),0,IF(AND(OR(Calculations!$E$2=\"Shetland Health Board\",Calculations!$E$2=\"Western Isles Health Board\",Calculations!$E$2=\"Shetland Islands Local Authority\",Calculations!$E$2=\"Eilean Siar Local Authority\"),OR($F99=1,$F99=5)),0,new_ci(VALUE(LEFT(Options!$B$14,2)),$C99,$E99,$F99,2016,$I99/10+$J99/10,1,$H99/10,$G99*$H99/10,RateRatios_airpollution!$E99)*10))","v":{"$error":"#VALUE!"}},{"$f":"IF(AND(OR(Calculations!$E$2=\"Orkney Health Board\",Calculations!$E$2=\"Orkney Islands Local Authority\"),$F99=1),0,IF(AND(OR(Calculations!$E$2=\"Shetland Health Board\",Calculations!$E$2=\"Western Isles Health Board\",Calculations!$E$2=\"Shetland Islands Local Authority\",Calculations!$E$2=\"Eilean Siar Local Authority\"),OR($F99=1,$F99=5)),0,new_yllv2(VALUE(LEFT(Options!$B$14,2)),$C99,$D99,$E99,$F99,2016,$I99/10,1,$H99/10,$G99*$H99/10,RateRatios_airpollution!$E99)*10))","v":{"$error":"#VALUE!"}},{"$f":"IF(AND(OR(Calculations!$E$2=\"Orkney Health Board\",Calculations!$E$2=\"Orkney Islands Local Authority\"),$F99=1),0,IF(AND(OR(Calculations!$E$2=\"Shetland Health Board\",Calculations!$E$2=\"Western Isles Health Board\",Calculations!$E$2=\"Shetland Islands Local Authority\",Calculations!$E$2=\"Eilean Siar Local Authority\"),OR($F99=1,$F99=5)),0,new_yllv2(VALUE(LEFT(Options!$B$14,2)),$C99,$D99,$E99,$F99,2016,$I99/10+$J99/10,1,$H99/10,$G99*$H99/10,RateRatios_airpollution!$E99)*10))","v":{"$error":"#VALUE!"}},{"$f":"IF(AND(OR(Calculations!$E$2=\"Orkney Health Board\",Calculations!$E$2=\"Orkney Islands Local Authority\"),$F99=1),0,IF(AND(OR(Calculations!$E$2=\"Shetland Health Board\",Calculations!$E$2=\"Western Isles Health Board\",Calculations!$E$2=\"Shetland Islands Local Authority\",Calculations!$E$2=\"Eilean Siar Local Authority\"),OR($F99=1,$F99=5)),0,hosp_count(VALUE(LEFT(Options!$B$14,2)),$C99,$E99,$F99,2016,$I99/10,1,$H99/10,$G99*$H99/10, RateRatios_airpollution!$F99, RateRatios_airpollution!$E99)*10))","v":{"$error":"#VALUE!"}},{"$f":"IF(AND(OR(Calculations!$E$2=\"Orkney Health Board\",Calculations!$E$2=\"Orkney Islands Local Authority\"),$F99=1),0,IF(AND(OR(Calculations!$E$2=\"Shetland Health Board\",Calculations!$E$2=\"Western Isles Health Board\",Calculations!$E$2=\"Shetland Islands Local Authority\",Calculations!$E$2=\"Eilean Siar Local Authority\"),OR($F99=1,$F99=5)),0,hosp_count(VALUE(LEFT(Options!$B$14,2)),$C99,$E99,$F99,2016,$I99/10+$J99/10,1,$H99/10,$G99*$H99/10, RateRatios_airpollution!$F99, RateRatios_airpollution!$E99)*10))","v":{"$error":"#VALUE!"}},{"$f":"IF(AND(OR(Calculations!$E$2=\"Orkney Health Board\",Calculations!$E$2=\"Orkney Islands Local Authority\"),$F99=1),0,IF(AND(OR(Calculations!$E$2=\"Shetland Health Board\",Calculations!$E$2=\"Western Isles Health Board\",Calculations!$E$2=\"Shetland Islands Local Authority\",Calculations!$E$2=\"Eilean Siar Local Authority\"),OR($F99=1,$F99=5)),0,prem_mort(VALUE(LEFT(Options!$B$14,2)),$C99,$E99,$F99,2016,$I99/10,1,$H99/10,$G99*$H99/10,RateRatios_airpollution!$E99)*10))","v":{"$error":"#VALUE!"}},{"$f":"IF(AND(OR(Calculations!$E$2=\"Orkney Health Board\",Calculations!$E$2=\"Orkney Islands Local Authority\"),$F99=1),0,IF(AND(OR(Calculations!$E$2=\"Shetland Health Board\",Calculations!$E$2=\"Western Isles Health Board\",Calculations!$E$2=\"Shetland Islands Local Authority\",Calculations!$E$2=\"Eilean Siar Local Authority\"),OR($F99=1,$F99=5)),0,prem_mort(VALUE(LEFT(Options!$B$14,2)),$C99,$E99,$F99,2016,$I99/10+$J99/10,1,$H99/10,$G99*$H99/10,RateRatios_airpollution!$E99)*10))","v":{"$error":"#VALUE!"}},{"$error":"#VALUE!"},{"$error":"#VALUE!"},{"$error":"#VALUE!"},{"$error":"#VALUE!"},{"$error":"#VALUE!"},{"$error":"#VALUE!"},{"$error":"#VALUE!"},{"$error":"#VALUE!"},{"$error":"#VALUE!"},{"$error":"#VALUE!"},{"$error":"#VALUE!"},{"$error":"#VALUE!"},{"$error":"#VALUE!"},{"$error":"#VALUE!"},{"$error":"#VALUE!"},{"$error":"#VALUE!"},{"$error":"#VALUE!"},{"$error":"#VALUE!"},{"$error":"#VALUE!"},{"$error":"#VALUE!"},{"$error":"#VALUE!"},{"$error":"#VALUE!"},{"$error":"#VALUE!"},{"$error":"#VALUE!"},5500]
[null,"Female 10-15",12.478312000000001,81.948309999999992,"female",2,1,{"$f":"HLOOKUP(Calculations!$E$2,'Population 2016'!$C$3:$BC$249,'Population 2016'!BD100,FALSE)","v":0},0,{"$f":"HLOOKUP(Calculations!$E$2,Pop2016_in_settlements!$C$3:$BC$249,Pop2016_in_settlements!$BD100,FALSE)","v":0},{"$f":"IF(AND(OR(Calculations!$E$2=\"Orkney Health Board\",Calculations!$E$2=\"Orkney Islands Local Authority\"),$F100=1),0,IF(AND(OR(Calculations!$E$2=\"Shetland Health Board\",Calculations!$E$2=\"Western Isles Health Board\",Calculations!$E$2=\"Shetland Islands Local Authority\",Calculations!$E$2=\"Eilean Siar Local Authority\"),OR($F100=1,$F100=5)),0,new_ci(VALUE(LEFT(Options!$B$14,2)),$C100,$E100,$F100,2016,$I100/10,1,$H100/10,$G100*$H100/10,RateRatios_accidents!$B$5)*10))","v":{"$error":"#VALUE!"}},{"$f":"IF(AND(OR(Calculations!$E$2=\"Orkney Health Board\",Calculations!$E$2=\"Orkney Islands Local Authority\"),$F100=1),0,IF(AND(OR(Calculations!$E$2=\"Shetland Health Board\",Calculations!$E$2=\"Western Isles Health Board\",Calculations!$E$2=\"Shetland Islands Local Authority\",Calculations!$E$2=\"Eilean Siar Local Authority\"),OR($F100=1,$F100=5)),0,new_ci(VALUE(LEFT(Options!$B$14,2)),$C100,$E100,$F100,2016,$I100/10+$J100/10,1,$H100/10,$G100*$H100/10,RateRatios_accidents!$B$5)*10))","v":{"$error":"#VALUE!"}},{"$f":"IF(AND(OR(Calculations!$E$2=\"Orkney Health Board\",Calculations!$E$2=\"Orkney Islands Local Authority\"),$F100=1),0,IF(AND(OR(Calculations!$E$2=\"Shetland Health Board\",Calculations!$E$2=\"Western Isles Health Board\",Calculations!$E$2=\"Shetland Islands Local Authority\",Calculations!$E$2=\"Eilean Siar Local Authority\"),OR($F100=1,$F100=5)),0,new_yllv2(VALUE(LEFT(Options!$B$14,2)),$C100,$D100,$E100,$F100,2016,$I100/10,1,$H100/10,$G100*$H100/10,RateRatios_accidents!$B$5)*10))","v":{"$error":"#VALUE!"}},{"$f":"IF(AND(OR(Calculations!$E$2=\"Orkney Health Board\",Calculations!$E$2=\"Orkney Islands Local Authority\"),$F100=1),0,IF(AND(OR(Calculations!$E$2=\"Shetland Health Board\",Calculations!$E$2=\"Western Isles Health Board\",Calculations!$E$2=\"Shetland Islands Local Authority\",Calculations!$E$2=\"Eilean Siar Local Authority\"),OR($F100=1,$F100=5)),0,new_yllv2(VALUE(LEFT(Options!$B$14,2)),$C100,$D100,$E100,$F100,2016,$I100/10+$J100/10,1,$H100/10,$G100*$H100/10,RateRatios_accidents!$B$5)*10))","v":{"$error":"#VALUE!"}},{"$f":"IF(AND(OR(Calculations!$E$2=\"Orkney Health Board\",Calculations!$E$2=\"Orkney Islands Local Authority\"),$F100=1),0,IF(AND(OR(Calculations!$E$2=\"Shetland Health Board\",Calculations!$E$2=\"Western Isles Health Board\",Calculations!$E$2=\"Shetland Islands Local Authority\",Calculations!$E$2=\"Eilean Siar Local Authority\"),OR($F100=1,$F100=5)),0,hosp_count(VALUE(LEFT(Options!$B$14,2)),$C100,$E100,$F100,2016,$I100/10,1,$H100/10,$G100*$H100/10, RateRatios_accidents!$B$4, RateRatios_accidents!$B$5)*10))","v":{"$error":"#VALUE!"}},{"$f":"IF(AND(OR(Calculations!$E$2=\"Orkney Health Board\",Calculations!$E$2=\"Orkney Islands Local Authority\"),$F100=1),0,IF(AND(OR(Calculations!$E$2=\"Shetland Health Board\",Calculations!$E$2=\"Western Isles Health Board\",Calculations!$E$2=\"Shetland Islands Local Authority\",Calculations!$E$2=\"Eilean Siar Local Authority\"),OR($F100=1,$F100=5)),0,hosp_count(VALUE(LEFT(Options!$B$14,2)),$C100,$E100,$F100,2016,$I100/10+$J100/10,1,$H100/10,$G100*$H100/10, RateRatios_accidents!$B$4, RateRatios_accidents!$B$5)*10))","v":{"$error":"#VALUE!"}},{"$f":"IF(AND(OR(Calculations!$E$2=\"Orkney Health Board\",Calculations!$E$2=\"Orkney Islands Local Authority\"),$F100=1),0,IF(AND(OR(Calculations!$E$2=\"Shetland Health Board\",Calculations!$E$2=\"Western Isles Health Board\",Calculations!$E$2=\"Shetland Islands Local Authority\",Calculations!$E$2=\"Eilean Siar Local Authority\"),OR($F100=1,$F100=5)),0,prem_mort(VALUE(LEFT(Options!$B$14,2)),$C100,$E100,$F100,2016,$I100/10,1,$H100/10,$G100*$H100/10,RateRatios_accidents!$B$5)*10))","v":{"$error":"#VALUE!"}},{"$f":"IF(AND(OR(Calculations!$E$2=\"Orkney Health Board\",Calculations!$E$2=\"Orkney Islands Local Authority\"),$F100=1),0,IF(AND(OR(Calculations!$E$2=\"Shetland Health Board\",Calculations!$E$2=\"Western Isles Health Board\",Calculations!$E$2=\"Shetland Islands Local Authority\",Calculations!$E$2=\"Eilean Siar Local Authority\"),OR($F100=1,$F100=5)),0,prem_mort(VALUE(LEFT(Options!$B$14,2)),$C100,$E100,$F100,2016,$I100/10+$J100/10,1,$H100/10,$G100*$H100/10,RateRatios_accidents!$B$5)*10))","v":{"$error":"#VALUE!"}},null,{"$f":"IF(AND(OR(Calculations!$E$2=\"Orkney Health Board\",Calculations!$E$2=\"Orkney Islands Local Authority\"),$F100=1),0,IF(AND(OR(Calculations!$E$2=\"Shetland Health Board\",Calculations!$E$2=\"Western Isles Health Board\",Calculations!$E$2=\"Shetland Islands Local Authority\",Calculations!$E$2=\"Eilean Siar Local Authority\"),OR($F100=1,$F100=5)),0,new_ci(VALUE(LEFT(Options!$B$14,2)),$C100,$E100,$F100,2016,$I100/10,1,$H100/10,$G100*$H100/10,RateRatios_airpollution!$C100)*10))","v":{"$error":"#VALUE!"}},{"$f":"IF(AND(OR(Calculations!$E$2=\"Orkney Health Board\",Calculations!$E$2=\"Orkney Islands Local Authority\"),$F100=1),0,IF(AND(OR(Calculations!$E$2=\"Shetland Health Board\",Calculations!$E$2=\"Western Isles Health Board\",Calculations!$E$2=\"Shetland Islands Local Authority\",Calculations!$E$2=\"Eilean Siar Local Authority\"),OR($F100=1,$F100=5)),0,new_ci(VALUE(LEFT(Options!$B$14,2)),$C100,$E100,$F100,2016,$I100/10+$J100/10,1,$H100/10,$G100*$H100/10,RateRatios_airpollution!$C100)*10))","v":{"$error":"#VALUE!"}},{"$f":"IF(AND(OR(Calculations!$E$2=\"Orkney Health Board\",Calculations!$E$2=\"Orkney Islands Local Authority\"),$F100=1),0,IF(AND(OR(Calculations!$E$2=\"Shetland Health Board\",Calculations!$E$2=\"Western Isles Health Board\",Calculations!$E$2=\"Shetland Islands Local Authority\",Calculations!$E$2=\"Eilean Siar Local Authority\"),OR($F100=1,$F100=5)),0,new_yllv2(VALUE(LEFT(Options!$B$14,2)),$C100,$D100,$E100,$F100,2016,$I100/10,1,$H100/10,$G100*$H100/10,RateRatios_airpollution!$C100)*10))","v":{"$error":"#VALUE!"}},{"$f":"IF(AND(OR(Calculations!$E$2=\"Orkney Health Board\",Calculations!$E$2=\"Orkney Islands Local Authority\"),$F100=1),0,IF(AND(OR(Calculations!$E$2=\"Shetland Health Board\",Calculations!$E$2=\"Western Isles Health Board\",Calculations!$E$2=\"Shetland Islands Local Authority\",Calculations!$E$2=\"Eilean Siar Local Authority\"),OR($F100=1,$F100=5)),0,new_yllv2(VALUE(LEFT(Options!$B$14,2)),$C100,$D100,$E100,$F100,2016,$I100/10+$J100/10,1,$H100/10,$G100*$H100/10,RateRatios_airpollution!$C100)*10))","v":{"$error":"#VALUE!"}},{"$f":"IF(AND(OR(Calculations!$E$2=\"Orkney Health Board\",Calculations!$E$2=\"Orkney Islands Local Authority\"),$F100=1),0,IF(AND(OR(Calculations!$E$2=\"Shetland Health Board\",Calculations!$E$2=\"Western Isles Health Board\",Calculations!$E$2=\"Shetland Islands Local Authority\",Calculations!$E$2=\"Eilean Siar Local Authority\"),OR($F100=1,$F100=5)),0,hosp_count(VALUE(LEFT(Options!$B$14,2)),$C100,$E100,$F100,2016,$I100/10,1,$H100/10,$G100*$H100/10, RateRatios_airpollution!$D100, RateRatios_airpollution!$C100)*10))","v":{"$error":"#VALUE!"}},{"$f":"IF(AND(OR(Calculations!$E$2=\"Orkney Health Board\",Calculations!$E$2=\"Orkney Islands Local Authority\"),$F100=1),0,IF(AND(OR(Calculations!$E$2=\"Shetland Health Board\",Calculations!$E$2=\"Western Isles Health Board\",Calculations!$E$2=\"Shetland Islands Local Authority\",Calculations!$E$2=\"Eilean Siar Local Authority\"),OR($F100=1,$F100=5)),0,hosp_count(VALUE(LEFT(Options!$B$14,2)),$C100,$E100,$F100,2016,$I100/10+$J100/10,1,$H100/10,$G100*$H100/10, RateRatios_airpollution!$D100, RateRatios_airpollution!$C100)*10))","v":{"$error":"#VALUE!"}},{"$f":"IF(AND(OR(Calculations!$E$2=\"Orkney Health Board\",Calculations!$E$2=\"Orkney Islands Local Authority\"),$F100=1),0,IF(AND(OR(Calculations!$E$2=\"Shetland Health Board\",Calculations!$E$2=\"Western Isles Health Board\",Calculations!$E$2=\"Shetland Islands Local Authority\",Calculations!$E$2=\"Eilean Siar Local Authority\"),OR($F100=1,$F100=5)),0,prem_mort(VALUE(LEFT(Options!$B$14,2)),$C100,$E100,$F100,2016,$I100/10,1,$H100/10,$G100*$H100/10,RateRatios_airpollution!$C100)*10))","v":{"$error":"#VALUE!"}},{"$f":"IF(AND(OR(Calculations!$E$2=\"Orkney Health Board\",Calculations!$E$2=\"Orkney Islands Local Authority\"),$F100=1),0,IF(AND(OR(Calculations!$E$2=\"Shetland Health Board\",Calculations!$E$2=\"Western Isles Health Board\",Calculations!$E$2=\"Shetland Islands Local Authority\",Calculations!$E$2=\"Eilean Siar Local Authority\"),OR($F100=1,$F100=5)),0,prem_mort(VALUE(LEFT(Options!$B$14,2)),$C100,$E100,$F100,2016,$I100/10+$J100/10,1,$H100/10,$G100*$H100/10,RateRatios_airpollution!$C100)*10))","v":{"$error":"#VALUE!"}},null,{"$f":"IF(AND(OR(Calculations!$E$2=\"Orkney Health Board\",Calculations!$E$2=\"Orkney Islands Local Authority\"),$F100=1),0,IF(AND(OR(Calculations!$E$2=\"Shetland Health Board\",Calculations!$E$2=\"Western Isles Health Board\",Calculations!$E$2=\"Shetland Islands Local Authority\",Calculations!$E$2=\"Eilean Siar Local Authority\"),OR($F100=1,$F100=5)),0,new_ci(VALUE(LEFT(Options!$B$14,2)),$C100,$E100,$F100,2016,$I100/10,1,$H100/10,$G100*$H100/10,RateRatios_airpollution!$E100)*10))","v":{"$error":"#VALUE!"}},{"$f":"IF(AND(OR(Calculations!$E$2=\"Orkney Health Board\",Calculations!$E$2=\"Orkney Islands Local Authority\"),$F100=1),0,IF(AND(OR(Calculations!$E$2=\"Shetland Health Board\",Calculations!$E$2=\"Western Isles Health Board\",Calculations!$E$2=\"Shetland Islands Local Authority\",Calculations!$E$2=\"Eilean Siar Local Authority\"),OR($F100=1,$F100=5)),0,new_ci(VALUE(LEFT(Options!$B$14,2)),$C100,$E100,$F100,2016,$I100/10+$J100/10,1,$H100/10,$G100*$H100/10,RateRatios_airpollution!$E100)*10))","v":{"$error":"#VALUE!"}},{"$f":"IF(AND(OR(Calculations!$E$2=\"Orkney Health Board\",Calculations!$E$2=\"Orkney Islands Local Authority\"),$F100=1),0,IF(AND(OR(Calculations!$E$2=\"Shetland Health Board\",Calculations!$E$2=\"Western Isles Health Board\",Calculations!$E$2=\"Shetland Islands Local Authority\",Calculations!$E$2=\"Eilean Siar Local Authority\"),OR($F100=1,$F100=5)),0,new_yllv2(VALUE(LEFT(Options!$B$14,2)),$C100,$D100,$E100,$F100,2016,$I100/10,1,$H100/10,$G100*$H100/10,RateRatios_airpollution!$E100)*10))","v":{"$error":"#VALUE!"}},{"$f":"IF(AND(OR(Calculations!$E$2=\"Orkney Health Board\",Calculations!$E$2=\"Orkney Islands Local Authority\"),$F100=1),0,IF(AND(OR(Calculations!$E$2=\"Shetland Health Board\",Calculations!$E$2=\"Western Isles Health Board\",Calculations!$E$2=\"Shetland Islands Local Authority\",Calculations!$E$2=\"Eilean Siar Local Authority\"),OR($F100=1,$F100=5)),0,new_yllv2(VALUE(LEFT(Options!$B$14,2)),$C100,$D100,$E100,$F100,2016,$I100/10+$J100/10,1,$H100/10,$G100*$H100/10,RateRatios_airpollution!$E100)*10))","v":{"$error":"#VALUE!"}},{"$f":"IF(AND(OR(Calculations!$E$2=\"Orkney Health Board\",Calculations!$E$2=\"Orkney Islands Local Authority\"),$F100=1),0,IF(AND(OR(Calculations!$E$2=\"Shetland Health Board\",Calculations!$E$2=\"Western Isles Health Board\",Calculations!$E$2=\"Shetland Islands Local Authority\",Calculations!$E$2=\"Eilean Siar Local Authority\"),OR($F100=1,$F100=5)),0,hosp_count(VALUE(LEFT(Options!$B$14,2)),$C100,$E100,$F100,2016,$I100/10,1,$H100/10,$G100*$H100/10, RateRatios_airpollution!$F100, RateRatios_airpollution!$E100)*10))","v":{"$error":"#VALUE!"}},{"$f":"IF(AND(OR(Calculations!$E$2=\"Orkney Health Board\",Calculations!$E$2=\"Orkney Islands Local Authority\"),$F100=1),0,IF(AND(OR(Calculations!$E$2=\"Shetland Health Board\",Calculations!$E$2=\"Western Isles Health Board\",Calculations!$E$2=\"Shetland Islands Local Authority\",Calculations!$E$2=\"Eilean Siar Local Authority\"),OR($F100=1,$F100=5)),0,hosp_count(VALUE(LEFT(Options!$B$14,2)),$C100,$E100,$F100,2016,$I100/10+$J100/10,1,$H100/10,$G100*$H100/10, RateRatios_airpollution!$F100, RateRatios_airpollution!$E100)*10))","v":{"$error":"#VALUE!"}},{"$f":"IF(AND(OR(Calculations!$E$2=\"Orkney Health Board\",Calculations!$E$2=\"Orkney Islands Local Authority\"),$F100=1),0,IF(AND(OR(Calculations!$E$2=\"Shetland Health Board\",Calculations!$E$2=\"Western Isles Health Board\",Calculations!$E$2=\"Shetland Islands Local Authority\",Calculations!$E$2=\"Eilean Siar Local Authority\"),OR($F100=1,$F100=5)),0,prem_mort(VALUE(LEFT(Options!$B$14,2)),$C100,$E100,$F100,2016,$I100/10,1,$H100/10,$G100*$H100/10,RateRatios_airpollution!$E100)*10))","v":{"$error":"#VALUE!"}},{"$f":"IF(AND(OR(Calculations!$E$2=\"Orkney Health Board\",Calculations!$E$2=\"Orkney Islands Local Authority\"),$F100=1),0,IF(AND(OR(Calculations!$E$2=\"Shetland Health Board\",Calculations!$E$2=\"Western Isles Health Board\",Calculations!$E$2=\"Shetland Islands Local Authority\",Calculations!$E$2=\"Eilean Siar Local Authority\"),OR($F100=1,$F100=5)),0,prem_mort(VALUE(LEFT(Options!$B$14,2)),$C100,$E100,$F100,2016,$I100/10+$J100/10,1,$H100/10,$G100*$H100/10,RateRatios_airpollution!$E100)*10))","v":{"$error":"#VALUE!"}},{"$error":"#VALUE!"},{"$error":"#VALUE!"},{"$error":"#VALUE!"},{"$error":"#VALUE!"},{"$error":"#VALUE!"},{"$error":"#VALUE!"},{"$error":"#VALUE!"},{"$error":"#VALUE!"},{"$error":"#VALUE!"},{"$error":"#VALUE!"},{"$error":"#VALUE!"},{"$error":"#VALUE!"},{"$error":"#VALUE!"},{"$error":"#VALUE!"},{"$error":"#VALUE!"},{"$error":"#VALUE!"},{"$error":"#VALUE!"},{"$error":"#VALUE!"},{"$error":"#VALUE!"},{"$error":"#VALUE!"},{"$error":"#VALUE!"},{"$error":"#VALUE!"},{"$error":"#VALUE!"},{"$error":"#VALUE!"},6600]
["SIMD Q2","Female 16-19",17.570053000000001,81.100049999999996,"female",2,1,{"$f":"HLOOKUP(Calculations!$E$2,'Population 2016'!$C$3:$BC$249,'Population 2016'!BD101,FALSE)","v":23121},0,{"$f":"HLOOKUP(Calculations!$E$2,Pop2016_in_settlements!$C$3:$BC$249,Pop2016_in_settlements!$BD101,FALSE)","v":14764},{"$f":"IF(AND(OR(Calculations!$E$2=\"Orkney Health Board\",Calculations!$E$2=\"Orkney Islands Local Authority\"),$F101=1),0,IF(AND(OR(Calculations!$E$2=\"Shetland Health Board\",Calculations!$E$2=\"Western Isles Health Board\",Calculations!$E$2=\"Shetland Islands Local Authority\",Calculations!$E$2=\"Eilean Siar Local Authority\"),OR($F101=1,$F101=5)),0,new_ci(VALUE(LEFT(Options!$B$14,2)),$C101,$E101,$F101,2016,$I101/10,1,$H101/10,$G101*$H101/10,RateRatios_accidents!$B$5)*10))","v":5.1474767840000002},{"$f":"IF(AND(OR(Calculations!$E$2=\"Orkney Health Board\",Calculations!$E$2=\"Orkney Islands Local Authority\"),$F101=1),0,IF(AND(OR(Calculations!$E$2=\"Shetland Health Board\",Calculations!$E$2=\"Western Isles Health Board\",Calculations!$E$2=\"Shetland Islands Local Authority\",Calculations!$E$2=\"Eilean Siar Local Authority\"),OR($F101=1,$F101=5)),0,new_ci(VALUE(LEFT(Options!$B$14,2)),$C101,$E101,$F101,2016,$I101/10+$J101/10,1,$H101/10,$G101*$H101/10,RateRatios_accidents!$B$5)*10))","v":5.1461627880000007},{"$f":"IF(AND(OR(Calculations!$E$2=\"Orkney Health Board\",Calculations!$E$2=\"Orkney Islands Local Authority\"),$F101=1),0,IF(AND(OR(Calculations!$E$2=\"Shetland Health Board\",Calculations!$E$2=\"Western Isles Health Board\",Calculations!$E$2=\"Shetland Islands Local Authority\",Calculations!$E$2=\"Eilean Siar Local Authority\"),OR($F101=1,$F101=5)),0,new_yllv2(VALUE(LEFT(Options!$B$14,2)),$C101,$D101,$E101,$F101,2016,$I101/10,1,$H101/10,$G101*$H101/10,RateRatios_accidents!$B$5)*10))","v":321.871707861},{"$f":"IF(AND(OR(Calculations!$E$2=\"Orkney Health Board\",Calculations!$E$2=\"Orkney Islands Local Authority\"),$F101=1),0,IF(AND(OR(Calculations!$E$2=\"Shetland Health Board\",Calculations!$E$2=\"Western Isles Health Board\",Calculations!$E$2=\"Shetland Islands Local Authority\",Calculations!$E$2=\"Eilean Siar Local Authority\"),OR($F101=1,$F101=5)),0,new_yllv2(VALUE(LEFT(Options!$B$14,2)),$C101,$D101,$E101,$F101,2016,$I101/10+$J101/10,1,$H101/10,$G101*$H101/10,RateRatios_accidents!$B$5)*10))","v":321.78954369499996},{"$f":"IF(AND(OR(Calculations!$E$2=\"Orkney Health Board\",Calculations!$E$2=\"Orkney Islands Local Authority\"),$F101=1),0,IF(AND(OR(Calculations!$E$2=\"Shetland Health Board\",Calculations!$E$2=\"Western Isles Health Board\",Calculations!$E$2=\"Shetland Islands Local Authority\",Calculations!$E$2=\"Eilean Siar Local Authority\"),OR($F101=1,$F101=5)),0,hosp_count(VALUE(LEFT(Options!$B$14,2)),$C101,$E101,$F101,2016,$I101/10,1,$H101/10,$G101*$H101/10, RateRatios_accidents!$B$4, RateRatios_accidents!$B$5)*10))","v":2679.1393826230001},{"$f":"IF(AND(OR(Calculations!$E$2=\"Orkney Health Board\",Calculations!$E$2=\"Orkney Islands Local Authority\"),$F101=1),0,IF(AND(OR(Calculations!$E$2=\"Shetland Health Board\",Calculations!$E$2=\"Western Isles Health Board\",Calculations!$E$2=\"Shetland Islands Local Authority\",Calculations!$E$2=\"Eilean Siar Local Authority\"),OR($F101=1,$F101=5)),0,hosp_count(VALUE(LEFT(Options!$B$14,2)),$C101,$E101,$F101,2016,$I101/10+$J101/10,1,$H101/10,$G101*$H101/10, RateRatios_accidents!$B$4, RateRatios_accidents!$B$5)*10))","v":2678.4550726999996},{"$f":"IF(AND(OR(Calculations!$E$2=\"Orkney Health Board\",Calculations!$E$2=\"Orkney Islands Local Authority\"),$F101=1),0,IF(AND(OR(Calculations!$E$2=\"Shetland Health Board\",Calculations!$E$2=\"Western Isles Health Board\",Calculations!$E$2=\"Shetland Islands Local Authority\",Calculations!$E$2=\"Eilean Siar Local Authority\"),OR($F101=1,$F101=5)),0,prem_mort(VALUE(LEFT(Options!$B$14,2)),$C101,$E101,$F101,2016,$I101/10,1,$H101/10,$G101*$H101/10,RateRatios_accidents!$B$5)*10))","v":5.1474767840000002},{"$f":"IF(AND(OR(Calculations!$E$2=\"Orkney Health Board\",Calculations!$E$2=\"Orkney Islands Local Authority\"),$F101=1),0,IF(AND(OR(Calculations!$E$2=\"Shetland Health Board\",Calculations!$E$2=\"Western Isles Health Board\",Calculations!$E$2=\"Shetland Islands Local Authority\",Calculations!$E$2=\"Eilean Siar Local Authority\"),OR($F101=1,$F101=5)),0,prem_mort(VALUE(LEFT(Options!$B$14,2)),$C101,$E101,$F101,2016,$I101/10+$J101/10,1,$H101/10,$G101*$H101/10,RateRatios_accidents!$B$5)*10))","v":5.1461627880000007},null,{"$f":"IF(AND(OR(Calculations!$E$2=\"Orkney Health Board\",Calculations!$E$2=\"Orkney Islands Local Authority\"),$F101=1),0,IF(AND(OR(Calculations!$E$2=\"Shetland Health Board\",Calculations!$E$2=\"Western Isles Health Board\",Calculations!$E$2=\"Shetland Islands Local Authority\",Calculations!$E$2=\"Eilean Siar Local Authority\"),OR($F101=1,$F101=5)),0,new_ci(VALUE(LEFT(Options!$B$14,2)),$C101,$E101,$F101,2016,$I101/10,1,$H101/10,$G101*$H101/10,RateRatios_airpollution!$C101)*10))","v":5.1474767840000002},{"$f":"IF(AND(OR(Calculations!$E$2=\"Orkney Health Board\",Calculations!$E$2=\"Orkney Islands Local Authority\"),$F101=1),0,IF(AND(OR(Calculations!$E$2=\"Shetland Health Board\",Calculations!$E$2=\"Western Isles Health Board\",Calculations!$E$2=\"Shetland Islands Local Authority\",Calculations!$E$2=\"Eilean Siar Local Authority\"),OR($F101=1,$F101=5)),0,new_ci(VALUE(LEFT(Options!$B$14,2)),$C101,$E101,$F101,2016,$I101/10+$J101/10,1,$H101/10,$G101*$H101/10,RateRatios_airpollution!$C101)*10))","v":5.1474029639999994},{"$f":"IF(AND(OR(Calculations!$E$2=\"Orkney Health Board\",Calculations!$E$2=\"Orkney Islands Local Authority\"),$F101=1),0,IF(AND(OR(Calculations!$E$2=\"Shetland Health Board\",Calculations!$E$2=\"Western Isles Health Board\",Calculations!$E$2=\"Shetland Islands Local Authority\",Calculations!$E$2=\"Eilean Siar Local Authority\"),OR($F101=1,$F101=5)),0,new_yllv2(VALUE(LEFT(Options!$B$14,2)),$C101,$D101,$E101,$F101,2016,$I101/10,1,$H101/10,$G101*$H101/10,RateRatios_airpollution!$C101)*10))","v":321.871707861},{"$f":"IF(AND(OR(Calculations!$E$2=\"Orkney Health Board\",Calculations!$E$2=\"Orkney Islands Local Authority\"),$F101=1),0,IF(AND(OR(Calculations!$E$2=\"Shetland Health Board\",Calculations!$E$2=\"Western Isles Health Board\",Calculations!$E$2=\"Shetland Islands Local Authority\",Calculations!$E$2=\"Eilean Siar Local Authority\"),OR($F101=1,$F101=5)),0,new_yllv2(VALUE(LEFT(Options!$B$14,2)),$C101,$D101,$E101,$F101,2016,$I101/10+$J101/10,1,$H101/10,$G101*$H101/10,RateRatios_airpollution!$C101)*10))","v":321.86709189699997},{"$f":"IF(AND(OR(Calculations!$E$2=\"Orkney Health Board\",Calculations!$E$2=\"Orkney Islands Local Authority\"),$F101=1),0,IF(AND(OR(Calculations!$E$2=\"Shetland Health Board\",Calculations!$E$2=\"Western Isles Health Board\",Calculations!$E$2=\"Shetland Islands Local Authority\",Calculations!$E$2=\"Eilean Siar Local Authority\"),OR($F101=1,$F101=5)),0,hosp_count(VALUE(LEFT(Options!$B$14,2)),$C101,$E101,$F101,2016,$I101/10,1,$H101/10,$G101*$H101/10, RateRatios_airpollution!$D101, RateRatios_airpollution!$C101)*10))","v":2679.1393826230001},{"$f":"IF(AND(OR(Calculations!$E$2=\"Orkney Health Board\",Calculations!$E$2=\"Orkney Islands Local Authority\"),$F101=1),0,IF(AND(OR(Calculations!$E$2=\"Shetland Health Board\",Calculations!$E$2=\"Western Isles Health Board\",Calculations!$E$2=\"Shetland Islands Local Authority\",Calculations!$E$2=\"Eilean Siar Local Authority\"),OR($F101=1,$F101=5)),0,hosp_count(VALUE(LEFT(Options!$B$14,2)),$C101,$E101,$F101,2016,$I101/10+$J101/10,1,$H101/10,$G101*$H101/10, RateRatios_airpollution!$D101, RateRatios_airpollution!$C101)*10))","v":2679.0657767009998},{"$f":"IF(AND(OR(Calculations!$E$2=\"Orkney Health Board\",Calculations!$E$2=\"Orkney Islands Local Authority\"),$F101=1),0,IF(AND(OR(Calculations!$E$2=\"Shetland Health Board\",Calculations!$E$2=\"Western Isles Health Board\",Calculations!$E$2=\"Shetland Islands Local Authority\",Calculations!$E$2=\"Eilean Siar Local Authority\"),OR($F101=1,$F101=5)),0,prem_mort(VALUE(LEFT(Options!$B$14,2)),$C101,$E101,$F101,2016,$I101/10,1,$H101/10,$G101*$H101/10,RateRatios_airpollution!$C101)*10))","v":5.1474767840000002},{"$f":"IF(AND(OR(Calculations!$E$2=\"Orkney Health Board\",Calculations!$E$2=\"Orkney Islands Local Authority\"),$F101=1),0,IF(AND(OR(Calculations!$E$2=\"Shetland Health Board\",Calculations!$E$2=\"Western Isles Health Board\",Calculations!$E$2=\"Shetland Islands Local Authority\",Calculations!$E$2=\"Eilean Siar Local Authority\"),OR($F101=1,$F101=5)),0,prem_mort(VALUE(LEFT(Options!$B$14,2)),$C101,$E101,$F101,2016,$I101/10+$J101/10,1,$H101/10,$G101*$H101/10,RateRatios_airpollution!$C101)*10))","v":5.1474029639999994},null,{"$f":"IF(AND(OR(Calculations!$E$2=\"Orkney Health Board\",Calculations!$E$2=\"Orkney Islands Local Authority\"),$F101=1),0,IF(AND(OR(Calculations!$E$2=\"Shetland Health Board\",Calculations!$E$2=\"Western Isles Health Board\",Calculations!$E$2=\"Shetland Islands Local Authority\",Calculations!$E$2=\"Eilean Siar Local Authority\"),OR($F101=1,$F101=5)),0,new_ci(VALUE(LEFT(Options!$B$14,2)),$C101,$E101,$F101,2016,$I101/10,1,$H101/10,$G101*$H101/10,RateRatios_airpollution!$E101)*10))","v":5.1474767840000002},{"$f":"IF(AND(OR(Calculations!$E$2=\"Orkney Health Board\",Calculations!$E$2=\"Orkney Islands Local Authority\"),$F101=1),0,IF(AND(OR(Calculations!$E$2=\"Shetland Health Board\",Calculations!$E$2=\"Western Isles Health Board\",Calculations!$E$2=\"Shetland Islands Local Authority\",Calculations!$E$2=\"Eilean Siar Local Authority\"),OR($F101=1,$F101=5)),0,new_ci(VALUE(LEFT(Options!$B$14,2)),$C101,$E101,$F101,2016,$I101/10+$J101/10,1,$H101/10,$G101*$H101/10,RateRatios_airpollution!$E101)*10))","v":5.1474443030000003},{"$f":"IF(AND(OR(Calculations!$E$2=\"Orkney Health Board\",Calculations!$E$2=\"Orkney Islands Local Authority\"),$F101=1),0,IF(AND(OR(Calculations!$E$2=\"Shetland Health Board\",Calculations!$E$2=\"Western Isles Health Board\",Calculations!$E$2=\"Shetland Islands Local Authority\",Calculations!$E$2=\"Eilean Siar Local Authority\"),OR($F101=1,$F101=5)),0,new_yllv2(VALUE(LEFT(Options!$B$14,2)),$C101,$D101,$E101,$F101,2016,$I101/10,1,$H101/10,$G101*$H101/10,RateRatios_airpollution!$E101)*10))","v":321.871707861},{"$f":"IF(AND(OR(Calculations!$E$2=\"Orkney Health Board\",Calculations!$E$2=\"Orkney Islands Local Authority\"),$F101=1),0,IF(AND(OR(Calculations!$E$2=\"Shetland Health Board\",Calculations!$E$2=\"Western Isles Health Board\",Calculations!$E$2=\"Shetland Islands Local Authority\",Calculations!$E$2=\"Eilean Siar Local Authority\"),OR($F101=1,$F101=5)),0,new_yllv2(VALUE(LEFT(Options!$B$14,2)),$C101,$D101,$E101,$F101,2016,$I101/10+$J101/10,1,$H101/10,$G101*$H101/10,RateRatios_airpollution!$E101)*10))","v":321.86967682400001},{"$f":"IF(AND(OR(Calculations!$E$2=\"Orkney Health Board\",Calculations!$E$2=\"Orkney Islands Local Authority\"),$F101=1),0,IF(AND(OR(Calculations!$E$2=\"Shetland Health Board\",Calculations!$E$2=\"Western Isles Health Board\",Calculations!$E$2=\"Shetland Islands Local Authority\",Calculations!$E$2=\"Eilean Siar Local Authority\"),OR($F101=1,$F101=5)),0,hosp_count(VALUE(LEFT(Options!$B$14,2)),$C101,$E101,$F101,2016,$I101/10,1,$H101/10,$G101*$H101/10, RateRatios_airpollution!$F101, RateRatios_airpollution!$E101)*10))","v":2679.1393826230001},{"$f":"IF(AND(OR(Calculations!$E$2=\"Orkney Health Board\",Calculations!$E$2=\"Orkney Islands Local Authority\"),$F101=1),0,IF(AND(OR(Calculations!$E$2=\"Shetland Health Board\",Calculations!$E$2=\"Western Isles Health Board\",Calculations!$E$2=\"Shetland Islands Local Authority\",Calculations!$E$2=\"Eilean Siar Local Authority\"),OR($F101=1,$F101=5)),0,hosp_count(VALUE(LEFT(Options!$B$14,2)),$C101,$E101,$F101,2016,$I101/10+$J101/10,1,$H101/10,$G101*$H101/10, RateRatios_airpollution!$F101, RateRatios_airpollution!$E101)*10))","v":2679.1393826230001},{"$f":"IF(AND(OR(Calculations!$E$2=\"Orkney Health Board\",Calculations!$E$2=\"Orkney Islands Local Authority\"),$F101=1),0,IF(AND(OR(Calculations!$E$2=\"Shetland Health Board\",Calculations!$E$2=\"Western Isles Health Board\",Calculations!$E$2=\"Shetland Islands Local Authority\",Calculations!$E$2=\"Eilean Siar Local Authority\"),OR($F101=1,$F101=5)),0,prem_mort(VALUE(LEFT(Options!$B$14,2)),$C101,$E101,$F101,2016,$I101/10,1,$H101/10,$G101*$H101/10,RateRatios_airpollution!$E101)*10))","v":5.1474767840000002},{"$f":"IF(AND(OR(Calculations!$E$2=\"Orkney Health Board\",Calculations!$E$2=\"Orkney Islands Local Authority\"),$F101=1),0,IF(AND(OR(Calculations!$E$2=\"Shetland Health Board\",Calculations!$E$2=\"Western Isles Health Board\",Calculations!$E$2=\"Shetland Islands Local Authority\",Calculations!$E$2=\"Eilean Siar Local Authority\"),OR($F101=1,$F101=5)),0,prem_mort(VALUE(LEFT(Options!$B$14,2)),$C101,$E101,$F101,2016,$I101/10+$J101/10,1,$H101/10,$G101*$H101/10,RateRatios_airpollution!$E101)*10))","v":5.1474443030000003},5.1474767840000002,5.1460564870000001,321.871707861,321.78289669399993,2679.1393826230001,2678.3814667779993,5.1474767840000002,5.1460564870000001,22.263209999567493,22.25706711214913,1392.1184544829375,1391.7343397517404,11587.471919999136,11584.193879062323,22.263209999567493,22.25706711214913,97958.123998096969,97931.095293456179,6125321.1997249248,6123631.0949076582,50984876.447996199,50970453.067874223,97958.123998096969,97931.095293456179,4400]
[null,"Female 20-24",22.077057,81.667060000000006,"female",2,1,{"$f":"HLOOKUP(Calculations!$E$2,'Population 2016'!$C$3:$BC$249,'Population 2016'!BD102,FALSE)","v":36899},0,{"$f":"HLOOKUP(Calculations!$E$2,Pop2016_in_settlements!$C$3:$BC$249,Pop2016_in_settlements!$BD102,FALSE)","v":23124},{"$f":"IF(AND(OR(Calculations!$E$2=\"Orkney Health Board\",Calculations!$E$2=\"Orkney Islands Local Authority\"),$F102=1),0,IF(AND(OR(Calculations!$E$2=\"Shetland Health Board\",Calculations!$E$2=\"Western Isles Health Board\",Calculations!$E$2=\"Shetland Islands Local Authority\",Calculations!$E$2=\"Eilean Siar Local Authority\"),OR($F102=1,$F102=5)),0,new_ci(VALUE(LEFT(Options!$B$14,2)),$C102,$E102,$F102,2016,$I102/10,1,$H102/10,$G102*$H102/10,RateRatios_accidents!$B$5)*10))","v":12.052087906000001},{"$f":"IF(AND(OR(Calculations!$E$2=\"Orkney Health Board\",Calculations!$E$2=\"Orkney Islands Local Authority\"),$F102=1),0,IF(AND(OR(Calculations!$E$2=\"Shetland Health Board\",Calculations!$E$2=\"Western Isles Health Board\",Calculations!$E$2=\"Shetland Islands Local Authority\",Calculations!$E$2=\"Eilean Siar Local Authority\"),OR($F102=1,$F102=5)),0,new_ci(VALUE(LEFT(Options!$B$14,2)),$C102,$E102,$F102,2016,$I102/10+$J102/10,1,$H102/10,$G102*$H102/10,RateRatios_accidents!$B$5)*10))","v":12.049067912},{"$f":"IF(AND(OR(Calculations!$E$2=\"Orkney Health Board\",Calculations!$E$2=\"Orkney Islands Local Authority\"),$F102=1),0,IF(AND(OR(Calculations!$E$2=\"Shetland Health Board\",Calculations!$E$2=\"Western Isles Health Board\",Calculations!$E$2=\"Shetland Islands Local Authority\",Calculations!$E$2=\"Eilean Siar Local Authority\"),OR($F102=1,$F102=5)),0,new_yllv2(VALUE(LEFT(Options!$B$14,2)),$C102,$D102,$E102,$F102,2016,$I102/10,1,$H102/10,$G102*$H102/10,RateRatios_accidents!$B$5)*10))","v":706.13186656899995},{"$f":"IF(AND(OR(Calculations!$E$2=\"Orkney Health Board\",Calculations!$E$2=\"Orkney Islands Local Authority\"),$F102=1),0,IF(AND(OR(Calculations!$E$2=\"Shetland Health Board\",Calculations!$E$2=\"Western Isles Health Board\",Calculations!$E$2=\"Shetland Islands Local Authority\",Calculations!$E$2=\"Eilean Siar Local Authority\"),OR($F102=1,$F102=5)),0,new_yllv2(VALUE(LEFT(Options!$B$14,2)),$C102,$D102,$E102,$F102,2016,$I102/10+$J102/10,1,$H102/10,$G102*$H102/10,RateRatios_accidents!$B$5)*10))","v":705.95492511100008},{"$f":"IF(AND(OR(Calculations!$E$2=\"Orkney Health Board\",Calculations!$E$2=\"Orkney Islands Local Authority\"),$F102=1),0,IF(AND(OR(Calculations!$E$2=\"Shetland Health Board\",Calculations!$E$2=\"Western Isles Health Board\",Calculations!$E$2=\"Shetland Islands Local Authority\",Calculations!$E$2=\"Eilean Siar Local Authority\"),OR($F102=1,$F102=5)),0,hosp_count(VALUE(LEFT(Options!$B$14,2)),$C102,$E102,$F102,2016,$I102/10,1,$H102/10,$G102*$H102/10, RateRatios_accidents!$B$4, RateRatios_accidents!$B$5)*10))","v":4788.9278407900001},{"$f":"IF(AND(OR(Calculations!$E$2=\"Orkney Health Board\",Calculations!$E$2=\"Orkney Islands Local Authority\"),$F102=1),0,IF(AND(OR(Calculations!$E$2=\"Shetland Health Board\",Calculations!$E$2=\"Western Isles Health Board\",Calculations!$E$2=\"Shetland Islands Local Authority\",Calculations!$E$2=\"Eilean Siar Local Authority\"),OR($F102=1,$F102=5)),0,hosp_count(VALUE(LEFT(Options!$B$14,2)),$C102,$E102,$F102,2016,$I102/10+$J102/10,1,$H102/10,$G102*$H102/10, RateRatios_accidents!$B$4, RateRatios_accidents!$B$5)*10))","v":4787.727383767},{"$f":"IF(AND(OR(Calculations!$E$2=\"Orkney Health Board\",Calculations!$E$2=\"Orkney Islands Local Authority\"),$F102=1),0,IF(AND(OR(Calculations!$E$2=\"Shetland Health Board\",Calculations!$E$2=\"Western Isles Health Board\",Calculations!$E$2=\"Shetland Islands Local Authority\",Calculations!$E$2=\"Eilean Siar Local Authority\"),OR($F102=1,$F102=5)),0,prem_mort(VALUE(LEFT(Options!$B$14,2)),$C102,$E102,$F102,2016,$I102/10,1,$H102/10,$G102*$H102/10,RateRatios_accidents!$B$5)*10))","v":12.052087906000001},{"$f":"IF(AND(OR(Calculations!$E$2=\"Orkney Health Board\",Calculations!$E$2=\"Orkney Islands Local Authority\"),$F102=1),0,IF(AND(OR(Calculations!$E$2=\"Shetland Health Board\",Calculations!$E$2=\"Western Isles Health Board\",Calculations!$E$2=\"Shetland Islands Local Authority\",Calculations!$E$2=\"Eilean Siar Local Authority\"),OR($F102=1,$F102=5)),0,prem_mort(VALUE(LEFT(Options!$B$14,2)),$C102,$E102,$F102,2016,$I102/10+$J102/10,1,$H102/10,$G102*$H102/10,RateRatios_accidents!$B$5)*10))","v":12.049067912},null,{"$f":"IF(AND(OR(Calculations!$E$2=\"Orkney Health Board\",Calculations!$E$2=\"Orkney Islands Local Authority\"),$F102=1),0,IF(AND(OR(Calculations!$E$2=\"Shetland Health Board\",Calculations!$E$2=\"Western Isles Health Board\",Calculations!$E$2=\"Shetland Islands Local Authority\",Calculations!$E$2=\"Eilean Siar Local Authority\"),OR($F102=1,$F102=5)),0,new_ci(VALUE(LEFT(Options!$B$14,2)),$C102,$E102,$F102,2016,$I102/10,1,$H102/10,$G102*$H102/10,RateRatios_airpollution!$C102)*10))","v":12.052087906000001},{"$f":"IF(AND(OR(Calculations!$E$2=\"Orkney Health Board\",Calculations!$E$2=\"Orkney Islands Local Authority\"),$F102=1),0,IF(AND(OR(Calculations!$E$2=\"Shetland Health Board\",Calculations!$E$2=\"Western Isles Health Board\",Calculations!$E$2=\"Shetland Islands Local Authority\",Calculations!$E$2=\"Eilean Siar Local Authority\"),OR($F102=1,$F102=5)),0,new_ci(VALUE(LEFT(Options!$B$14,2)),$C102,$E102,$F102,2016,$I102/10+$J102/10,1,$H102/10,$G102*$H102/10,RateRatios_airpollution!$C102)*10))","v":12.051879789999999},{"$f":"IF(AND(OR(Calculations!$E$2=\"Orkney Health Board\",Calculations!$E$2=\"Orkney Islands Local Authority\"),$F102=1),0,IF(AND(OR(Calculations!$E$2=\"Shetland Health Board\",Calculations!$E$2=\"Western Isles Health Board\",Calculations!$E$2=\"Shetland Islands Local Authority\",Calculations!$E$2=\"Eilean Siar Local Authority\"),OR($F102=1,$F102=5)),0,new_yllv2(VALUE(LEFT(Options!$B$14,2)),$C102,$D102,$E102,$F102,2016,$I102/10,1,$H102/10,$G102*$H102/10,RateRatios_airpollution!$C102)*10))","v":706.13186656899995},{"$f":"IF(AND(OR(Calculations!$E$2=\"Orkney Health Board\",Calculations!$E$2=\"Orkney Islands Local Authority\"),$F102=1),0,IF(AND(OR(Calculations!$E$2=\"Shetland Health Board\",Calculations!$E$2=\"Western Isles Health Board\",Calculations!$E$2=\"Shetland Islands Local Authority\",Calculations!$E$2=\"Eilean Siar Local Authority\"),OR($F102=1,$F102=5)),0,new_yllv2(VALUE(LEFT(Options!$B$14,2)),$C102,$D102,$E102,$F102,2016,$I102/10+$J102/10,1,$H102/10,$G102*$H102/10,RateRatios_airpollution!$C102)*10))","v":706.11967305199994},{"$f":"IF(AND(OR(Calculations!$E$2=\"Orkney Health Board\",Calculations!$E$2=\"Orkney Islands Local Authority\"),$F102=1),0,IF(AND(OR(Calculations!$E$2=\"Shetland Health Board\",Calculations!$E$2=\"Western Isles Health Board\",Calculations!$E$2=\"Shetland Islands Local Authority\",Calculations!$E$2=\"Eilean Siar Local Authority\"),OR($F102=1,$F102=5)),0,hosp_count(VALUE(LEFT(Options!$B$14,2)),$C102,$E102,$F102,2016,$I102/10,1,$H102/10,$G102*$H102/10, RateRatios_airpollution!$D102, RateRatios_airpollution!$C102)*10))","v":4788.9278407900001},{"$f":"IF(AND(OR(Calculations!$E$2=\"Orkney Health Board\",Calculations!$E$2=\"Orkney Islands Local Authority\"),$F102=1),0,IF(AND(OR(Calculations!$E$2=\"Shetland Health Board\",Calculations!$E$2=\"Western Isles Health Board\",Calculations!$E$2=\"Shetland Islands Local Authority\",Calculations!$E$2=\"Eilean Siar Local Authority\"),OR($F102=1,$F102=5)),0,hosp_count(VALUE(LEFT(Options!$B$14,2)),$C102,$E102,$F102,2016,$I102/10+$J102/10,1,$H102/10,$G102*$H102/10, RateRatios_airpollution!$D102, RateRatios_airpollution!$C102)*10))","v":4788.7713375579997},{"$f":"IF(AND(OR(Calculations!$E$2=\"Orkney Health Board\",Calculations!$E$2=\"Orkney Islands Local Authority\"),$F102=1),0,IF(AND(OR(Calculations!$E$2=\"Shetland Health Board\",Calculations!$E$2=\"Western Isles Health Board\",Calculations!$E$2=\"Shetland Islands Local Authority\",Calculations!$E$2=\"Eilean Siar Local Authority\"),OR($F102=1,$F102=5)),0,prem_mort(VALUE(LEFT(Options!$B$14,2)),$C102,$E102,$F102,2016,$I102/10,1,$H102/10,$G102*$H102/10,RateRatios_airpollution!$C102)*10))","v":12.052087906000001},{"$f":"IF(AND(OR(Calculations!$E$2=\"Orkney Health Board\",Calculations!$E$2=\"Orkney Islands Local Authority\"),$F102=1),0,IF(AND(OR(Calculations!$E$2=\"Shetland Health Board\",Calculations!$E$2=\"Western Isles Health Board\",Calculations!$E$2=\"Shetland Islands Local Authority\",Calculations!$E$2=\"Eilean Siar Local Authority\"),OR($F102=1,$F102=5)),0,prem_mort(VALUE(LEFT(Options!$B$14,2)),$C102,$E102,$F102,2016,$I102/10+$J102/10,1,$H102/10,$G102*$H102/10,RateRatios_airpollution!$C102)*10))","v":12.051879789999999},null,{"$f":"IF(AND(OR(Calculations!$E$2=\"Orkney Health Board\",Calculations!$E$2=\"Orkney Islands Local Authority\"),$F102=1),0,IF(AND(OR(Calculations!$E$2=\"Shetland Health Board\",Calculations!$E$2=\"Western Isles Health Board\",Calculations!$E$2=\"Shetland Islands Local Authority\",Calculations!$E$2=\"Eilean Siar Local Authority\"),OR($F102=1,$F102=5)),0,new_ci(VALUE(LEFT(Options!$B$14,2)),$C102,$E102,$F102,2016,$I102/10,1,$H102/10,$G102*$H102/10,RateRatios_airpollution!$E102)*10))","v":12.052087906000001},{"$f":"IF(AND(OR(Calculations!$E$2=\"Orkney Health Board\",Calculations!$E$2=\"Orkney Islands Local Authority\"),$F102=1),0,IF(AND(OR(Calculations!$E$2=\"Shetland Health Board\",Calculations!$E$2=\"Western Isles Health Board\",Calculations!$E$2=\"Shetland Islands Local Authority\",Calculations!$E$2=\"Eilean Siar Local Authority\"),OR($F102=1,$F102=5)),0,new_ci(VALUE(LEFT(Options!$B$14,2)),$C102,$E102,$F102,2016,$I102/10+$J102/10,1,$H102/10,$G102*$H102/10,RateRatios_airpollution!$E102)*10))","v":12.052000034999999},{"$f":"IF(AND(OR(Calculations!$E$2=\"Orkney Health Board\",Calculations!$E$2=\"Orkney Islands Local Authority\"),$F102=1),0,IF(AND(OR(Calculations!$E$2=\"Shetland Health Board\",Calculations!$E$2=\"Western Isles Health Board\",Calculations!$E$2=\"Shetland Islands Local Authority\",Calculations!$E$2=\"Eilean Siar Local Authority\"),OR($F102=1,$F102=5)),0,new_yllv2(VALUE(LEFT(Options!$B$14,2)),$C102,$D102,$E102,$F102,2016,$I102/10,1,$H102/10,$G102*$H102/10,RateRatios_airpollution!$E102)*10))","v":706.13186656899995},{"$f":"IF(AND(OR(Calculations!$E$2=\"Orkney Health Board\",Calculations!$E$2=\"Orkney Islands Local Authority\"),$F102=1),0,IF(AND(OR(Calculations!$E$2=\"Shetland Health Board\",Calculations!$E$2=\"Western Isles Health Board\",Calculations!$E$2=\"Shetland Islands Local Authority\",Calculations!$E$2=\"Eilean Siar Local Authority\"),OR($F102=1,$F102=5)),0,new_yllv2(VALUE(LEFT(Options!$B$14,2)),$C102,$D102,$E102,$F102,2016,$I102/10+$J102/10,1,$H102/10,$G102*$H102/10,RateRatios_airpollution!$E102)*10))","v":706.12671820700007},{"$f":"IF(AND(OR(Calculations!$E$2=\"Orkney Health Board\",Calculations!$E$2=\"Orkney Islands Local Authority\"),$F102=1),0,IF(AND(OR(Calculations!$E$2=\"Shetland Health Board\",Calculations!$E$2=\"Western Isles Health Board\",Calculations!$E$2=\"Shetland Islands Local Authority\",Calculations!$E$2=\"Eilean Siar Local Authority\"),OR($F102=1,$F102=5)),0,hosp_count(VALUE(LEFT(Options!$B$14,2)),$C102,$E102,$F102,2016,$I102/10,1,$H102/10,$G102*$H102/10, RateRatios_airpollution!$F102, RateRatios_airpollution!$E102)*10))","v":4788.9278407900001},{"$f":"IF(AND(OR(Calculations!$E$2=\"Orkney Health Board\",Calculations!$E$2=\"Orkney Islands Local Authority\"),$F102=1),0,IF(AND(OR(Calculations!$E$2=\"Shetland Health Board\",Calculations!$E$2=\"Western Isles Health Board\",Calculations!$E$2=\"Shetland Islands Local Authority\",Calculations!$E$2=\"Eilean Siar Local Authority\"),OR($F102=1,$F102=5)),0,hosp_count(VALUE(LEFT(Options!$B$14,2)),$C102,$E102,$F102,2016,$I102/10+$J102/10,1,$H102/10,$G102*$H102/10, RateRatios_airpollution!$F102, RateRatios_airpollution!$E102)*10))","v":4788.9278407910006},{"$f":"IF(AND(OR(Calculations!$E$2=\"Orkney Health Board\",Calculations!$E$2=\"Orkney Islands Local Authority\"),$F102=1),0,IF(AND(OR(Calculations!$E$2=\"Shetland Health Board\",Calculations!$E$2=\"Western Isles Health Board\",Calculations!$E$2=\"Shetland Islands Local Authority\",Calculations!$E$2=\"Eilean Siar Local Authority\"),OR($F102=1,$F102=5)),0,prem_mort(VALUE(LEFT(Options!$B$14,2)),$C102,$E102,$F102,2016,$I102/10,1,$H102/10,$G102*$H102/10,RateRatios_airpollution!$E102)*10))","v":12.052087906000001},{"$f":"IF(AND(OR(Calculations!$E$2=\"Orkney Health Board\",Calculations!$E$2=\"Orkney Islands Local Authority\"),$F102=1),0,IF(AND(OR(Calculations!$E$2=\"Shetland Health Board\",Calculations!$E$2=\"Western Isles Health Board\",Calculations!$E$2=\"Shetland Islands Local Authority\",Calculations!$E$2=\"Eilean Siar Local Authority\"),OR($F102=1,$F102=5)),0,prem_mort(VALUE(LEFT(Options!$B$14,2)),$C102,$E102,$F102,2016,$I102/10+$J102/10,1,$H102/10,$G102*$H102/10,RateRatios_airpollution!$E102)*10))","v":12.052000034999999},12.052087906000001,12.048771924999997,706.13186656899995,705.93758323200018,4788.9278407900001,4787.570880536,12.052087906000001,12.048771924999997,32.662369999186971,32.653383357272546,1913.6883562400062,1913.1618288625712,12978.475949998645,12974.798451275103,32.662369999186971,32.653383357272546,195974.21999512182,195920.30014363528,11482130.137440037,11478970.973175427,77870855.699991867,77848790.707650617,195974.21999512182,195920.30014363528,6000]
[null,"Female 25-29",26.975186999999998,81.645189999999999,"female",2,1,{"$f":"HLOOKUP(Calculations!$E$2,'Population 2016'!$C$3:$BC$249,'Population 2016'!BD103,FALSE)","v":40610},0,{"$f":"HLOOKUP(Calculations!$E$2,Pop2016_in_settlements!$C$3:$BC$249,Pop2016_in_settlements!$BD103,FALSE)","v":25595},{"$f":"IF(AND(OR(Calculations!$E$2=\"Orkney Health Board\",Calculations!$E$2=\"Orkney Islands Local Authority\"),$F103=1),0,IF(AND(OR(Calculations!$E$2=\"Shetland Health Board\",Calculations!$E$2=\"Western Isles Health Board\",Calculations!$E$2=\"Shetland Islands Local Authority\",Calculations!$E$2=\"Eilean Siar Local Authority\"),OR($F103=1,$F103=5)),0,new_ci(VALUE(LEFT(Options!$B$14,2)),$C103,$E103,$F103,2016,$I103/10,1,$H103/10,$G103*$H103/10,RateRatios_accidents!$B$5)*10))","v":20.117515813000001},{"$f":"IF(AND(OR(Calculations!$E$2=\"Orkney Health Board\",Calculations!$E$2=\"Orkney Islands Local Authority\"),$F103=1),0,IF(AND(OR(Calculations!$E$2=\"Shetland Health Board\",Calculations!$E$2=\"Western Isles Health Board\",Calculations!$E$2=\"Shetland Islands Local Authority\",Calculations!$E$2=\"Eilean Siar Local Authority\"),OR($F103=1,$F103=5)),0,new_ci(VALUE(LEFT(Options!$B$14,2)),$C103,$E103,$F103,2016,$I103/10+$J103/10,1,$H103/10,$G103*$H103/10,RateRatios_accidents!$B$5)*10))","v":20.112445443999999},{"$f":"IF(AND(OR(Calculations!$E$2=\"Orkney Health Board\",Calculations!$E$2=\"Orkney Islands Local Authority\"),$F103=1),0,IF(AND(OR(Calculations!$E$2=\"Shetland Health Board\",Calculations!$E$2=\"Western Isles Health Board\",Calculations!$E$2=\"Shetland Islands Local Authority\",Calculations!$E$2=\"Eilean Siar Local Authority\"),OR($F103=1,$F103=5)),0,new_yllv2(VALUE(LEFT(Options!$B$14,2)),$C103,$D103,$E103,$F103,2016,$I103/10,1,$H103/10,$G103*$H103/10,RateRatios_accidents!$B$5)*10))","v":1079.7071340360001},{"$f":"IF(AND(OR(Calculations!$E$2=\"Orkney Health Board\",Calculations!$E$2=\"Orkney Islands Local Authority\"),$F103=1),0,IF(AND(OR(Calculations!$E$2=\"Shetland Health Board\",Calculations!$E$2=\"Western Isles Health Board\",Calculations!$E$2=\"Shetland Islands Local Authority\",Calculations!$E$2=\"Eilean Siar Local Authority\"),OR($F103=1,$F103=5)),0,new_yllv2(VALUE(LEFT(Options!$B$14,2)),$C103,$D103,$E103,$F103,2016,$I103/10+$J103/10,1,$H103/10,$G103*$H103/10,RateRatios_accidents!$B$5)*10))","v":1079.4350073169999},{"$f":"IF(AND(OR(Calculations!$E$2=\"Orkney Health Board\",Calculations!$E$2=\"Orkney Islands Local Authority\"),$F103=1),0,IF(AND(OR(Calculations!$E$2=\"Shetland Health Board\",Calculations!$E$2=\"Western Isles Health Board\",Calculations!$E$2=\"Shetland Islands Local Authority\",Calculations!$E$2=\"Eilean Siar Local Authority\"),OR($F103=1,$F103=5)),0,hosp_count(VALUE(LEFT(Options!$B$14,2)),$C103,$E103,$F103,2016,$I103/10,1,$H103/10,$G103*$H103/10, RateRatios_accidents!$B$4, RateRatios_accidents!$B$5)*10))","v":5961.6213822700001},{"$f":"IF(AND(OR(Calculations!$E$2=\"Orkney Health Board\",Calculations!$E$2=\"Orkney Islands Local Authority\"),$F103=1),0,IF(AND(OR(Calculations!$E$2=\"Shetland Health Board\",Calculations!$E$2=\"Western Isles Health Board\",Calculations!$E$2=\"Shetland Islands Local Authority\",Calculations!$E$2=\"Eilean Siar Local Authority\"),OR($F103=1,$F103=5)),0,hosp_count(VALUE(LEFT(Options!$B$14,2)),$C103,$E103,$F103,2016,$I103/10+$J103/10,1,$H103/10,$G103*$H103/10, RateRatios_accidents!$B$4, RateRatios_accidents!$B$5)*10))","v":5960.1184259540005},{"$f":"IF(AND(OR(Calculations!$E$2=\"Orkney Health Board\",Calculations!$E$2=\"Orkney Islands Local Authority\"),$F103=1),0,IF(AND(OR(Calculations!$E$2=\"Shetland Health Board\",Calculations!$E$2=\"Western Isles Health Board\",Calculations!$E$2=\"Shetland Islands Local Authority\",Calculations!$E$2=\"Eilean Siar Local Authority\"),OR($F103=1,$F103=5)),0,prem_mort(VALUE(LEFT(Options!$B$14,2)),$C103,$E103,$F103,2016,$I103/10,1,$H103/10,$G103*$H103/10,RateRatios_accidents!$B$5)*10))","v":20.117515813000001},{"$f":"IF(AND(OR(Calculations!$E$2=\"Orkney Health Board\",Calculations!$E$2=\"Orkney Islands Local Authority\"),$F103=1),0,IF(AND(OR(Calculations!$E$2=\"Shetland Health Board\",Calculations!$E$2=\"Western Isles Health Board\",Calculations!$E$2=\"Shetland Islands Local Authority\",Calculations!$E$2=\"Eilean Siar Local Authority\"),OR($F103=1,$F103=5)),0,prem_mort(VALUE(LEFT(Options!$B$14,2)),$C103,$E103,$F103,2016,$I103/10+$J103/10,1,$H103/10,$G103*$H103/10,RateRatios_accidents!$B$5)*10))","v":20.112445443999999},null,{"$f":"IF(AND(OR(Calculations!$E$2=\"Orkney Health Board\",Calculations!$E$2=\"Orkney Islands Local Authority\"),$F103=1),0,IF(AND(OR(Calculations!$E$2=\"Shetland Health Board\",Calculations!$E$2=\"Western Isles Health Board\",Calculations!$E$2=\"Shetland Islands Local Authority\",Calculations!$E$2=\"Eilean Siar Local Authority\"),OR($F103=1,$F103=5)),0,new_ci(VALUE(LEFT(Options!$B$14,2)),$C103,$E103,$F103,2016,$I103/10,1,$H103/10,$G103*$H103/10,RateRatios_airpollution!$C103)*10))","v":20.117515813000001},{"$f":"IF(AND(OR(Calculations!$E$2=\"Orkney Health Board\",Calculations!$E$2=\"Orkney Islands Local Authority\"),$F103=1),0,IF(AND(OR(Calculations!$E$2=\"Shetland Health Board\",Calculations!$E$2=\"Western Isles Health Board\",Calculations!$E$2=\"Shetland Islands Local Authority\",Calculations!$E$2=\"Eilean Siar Local Authority\"),OR($F103=1,$F103=5)),0,new_ci(VALUE(LEFT(Options!$B$14,2)),$C103,$E103,$F103,2016,$I103/10+$J103/10,1,$H103/10,$G103*$H103/10,RateRatios_airpollution!$C103)*10))","v":20.117185637000002},{"$f":"IF(AND(OR(Calculations!$E$2=\"Orkney Health Board\",Calculations!$E$2=\"Orkney Islands Local Authority\"),$F103=1),0,IF(AND(OR(Calculations!$E$2=\"Shetland Health Board\",Calculations!$E$2=\"Western Isles Health Board\",Calculations!$E$2=\"Shetland Islands Local Authority\",Calculations!$E$2=\"Eilean Siar Local Authority\"),OR($F103=1,$F103=5)),0,new_yllv2(VALUE(LEFT(Options!$B$14,2)),$C103,$D103,$E103,$F103,2016,$I103/10,1,$H103/10,$G103*$H103/10,RateRatios_airpollution!$C103)*10))","v":1079.7071340360001},{"$f":"IF(AND(OR(Calculations!$E$2=\"Orkney Health Board\",Calculations!$E$2=\"Orkney Islands Local Authority\"),$F103=1),0,IF(AND(OR(Calculations!$E$2=\"Shetland Health Board\",Calculations!$E$2=\"Western Isles Health Board\",Calculations!$E$2=\"Shetland Islands Local Authority\",Calculations!$E$2=\"Eilean Siar Local Authority\"),OR($F103=1,$F103=5)),0,new_yllv2(VALUE(LEFT(Options!$B$14,2)),$C103,$D103,$E103,$F103,2016,$I103/10+$J103/10,1,$H103/10,$G103*$H103/10,RateRatios_airpollution!$C103)*10))","v":1079.6894134890001},{"$f":"IF(AND(OR(Calculations!$E$2=\"Orkney Health Board\",Calculations!$E$2=\"Orkney Islands Local Authority\"),$F103=1),0,IF(AND(OR(Calculations!$E$2=\"Shetland Health Board\",Calculations!$E$2=\"Western Isles Health Board\",Calculations!$E$2=\"Shetland Islands Local Authority\",Calculations!$E$2=\"Eilean Siar Local Authority\"),OR($F103=1,$F103=5)),0,hosp_count(VALUE(LEFT(Options!$B$14,2)),$C103,$E103,$F103,2016,$I103/10,1,$H103/10,$G103*$H103/10, RateRatios_airpollution!$D103, RateRatios_airpollution!$C103)*10))","v":5961.6213822700001},{"$f":"IF(AND(OR(Calculations!$E$2=\"Orkney Health Board\",Calculations!$E$2=\"Orkney Islands Local Authority\"),$F103=1),0,IF(AND(OR(Calculations!$E$2=\"Shetland Health Board\",Calculations!$E$2=\"Western Isles Health Board\",Calculations!$E$2=\"Shetland Islands Local Authority\",Calculations!$E$2=\"Eilean Siar Local Authority\"),OR($F103=1,$F103=5)),0,hosp_count(VALUE(LEFT(Options!$B$14,2)),$C103,$E103,$F103,2016,$I103/10+$J103/10,1,$H103/10,$G103*$H103/10, RateRatios_airpollution!$D103, RateRatios_airpollution!$C103)*10))","v":5961.4361922070002},{"$f":"IF(AND(OR(Calculations!$E$2=\"Orkney Health Board\",Calculations!$E$2=\"Orkney Islands Local Authority\"),$F103=1),0,IF(AND(OR(Calculations!$E$2=\"Shetland Health Board\",Calculations!$E$2=\"Western Isles Health Board\",Calculations!$E$2=\"Shetland Islands Local Authority\",Calculations!$E$2=\"Eilean Siar Local Authority\"),OR($F103=1,$F103=5)),0,prem_mort(VALUE(LEFT(Options!$B$14,2)),$C103,$E103,$F103,2016,$I103/10,1,$H103/10,$G103*$H103/10,RateRatios_airpollution!$C103)*10))","v":20.117515813000001},{"$f":"IF(AND(OR(Calculations!$E$2=\"Orkney Health Board\",Calculations!$E$2=\"Orkney Islands Local Authority\"),$F103=1),0,IF(AND(OR(Calculations!$E$2=\"Shetland Health Board\",Calculations!$E$2=\"Western Isles Health Board\",Calculations!$E$2=\"Shetland Islands Local Authority\",Calculations!$E$2=\"Eilean Siar Local Authority\"),OR($F103=1,$F103=5)),0,prem_mort(VALUE(LEFT(Options!$B$14,2)),$C103,$E103,$F103,2016,$I103/10+$J103/10,1,$H103/10,$G103*$H103/10,RateRatios_airpollution!$C103)*10))","v":20.117185637000002},null,{"$f":"IF(AND(OR(Calculations!$E$2=\"Orkney Health Board\",Calculations!$E$2=\"Orkney Islands Local Authority\"),$F103=1),0,IF(AND(OR(Calculations!$E$2=\"Shetland Health Board\",Calculations!$E$2=\"Western Isles Health Board\",Calculations!$E$2=\"Shetland Islands Local Authority\",Calculations!$E$2=\"Eilean Siar Local Authority\"),OR($F103=1,$F103=5)),0,new_ci(VALUE(LEFT(Options!$B$14,2)),$C103,$E103,$F103,2016,$I103/10,1,$H103/10,$G103*$H103/10,RateRatios_airpollution!$E103)*10))","v":20.117515813000001},{"$f":"IF(AND(OR(Calculations!$E$2=\"Orkney Health Board\",Calculations!$E$2=\"Orkney Islands Local Authority\"),$F103=1),0,IF(AND(OR(Calculations!$E$2=\"Shetland Health Board\",Calculations!$E$2=\"Western Isles Health Board\",Calculations!$E$2=\"Shetland Islands Local Authority\",Calculations!$E$2=\"Eilean Siar Local Authority\"),OR($F103=1,$F103=5)),0,new_ci(VALUE(LEFT(Options!$B$14,2)),$C103,$E103,$F103,2016,$I103/10+$J103/10,1,$H103/10,$G103*$H103/10,RateRatios_airpollution!$E103)*10))","v":20.117369921999998},{"$f":"IF(AND(OR(Calculations!$E$2=\"Orkney Health Board\",Calculations!$E$2=\"Orkney Islands Local Authority\"),$F103=1),0,IF(AND(OR(Calculations!$E$2=\"Shetland Health Board\",Calculations!$E$2=\"Western Isles Health Board\",Calculations!$E$2=\"Shetland Islands Local Authority\",Calculations!$E$2=\"Eilean Siar Local Authority\"),OR($F103=1,$F103=5)),0,new_yllv2(VALUE(LEFT(Options!$B$14,2)),$C103,$D103,$E103,$F103,2016,$I103/10,1,$H103/10,$G103*$H103/10,RateRatios_airpollution!$E103)*10))","v":1079.7071340360001},{"$f":"IF(AND(OR(Calculations!$E$2=\"Orkney Health Board\",Calculations!$E$2=\"Orkney Islands Local Authority\"),$F103=1),0,IF(AND(OR(Calculations!$E$2=\"Shetland Health Board\",Calculations!$E$2=\"Western Isles Health Board\",Calculations!$E$2=\"Shetland Islands Local Authority\",Calculations!$E$2=\"Eilean Siar Local Authority\"),OR($F103=1,$F103=5)),0,new_yllv2(VALUE(LEFT(Options!$B$14,2)),$C103,$D103,$E103,$F103,2016,$I103/10+$J103/10,1,$H103/10,$G103*$H103/10,RateRatios_airpollution!$E103)*10))","v":1079.699304066},{"$f":"IF(AND(OR(Calculations!$E$2=\"Orkney Health Board\",Calculations!$E$2=\"Orkney Islands Local Authority\"),$F103=1),0,IF(AND(OR(Calculations!$E$2=\"Shetland Health Board\",Calculations!$E$2=\"Western Isles Health Board\",Calculations!$E$2=\"Shetland Islands Local Authority\",Calculations!$E$2=\"Eilean Siar Local Authority\"),OR($F103=1,$F103=5)),0,hosp_count(VALUE(LEFT(Options!$B$14,2)),$C103,$E103,$F103,2016,$I103/10,1,$H103/10,$G103*$H103/10, RateRatios_airpollution!$F103, RateRatios_airpollution!$E103)*10))","v":5961.6213822700001},{"$f":"IF(AND(OR(Calculations!$E$2=\"Orkney Health Board\",Calculations!$E$2=\"Orkney Islands Local Authority\"),$F103=1),0,IF(AND(OR(Calculations!$E$2=\"Shetland Health Board\",Calculations!$E$2=\"Western Isles Health Board\",Calculations!$E$2=\"Shetland Islands Local Authority\",Calculations!$E$2=\"Eilean Siar Local Authority\"),OR($F103=1,$F103=5)),0,hosp_count(VALUE(LEFT(Options!$B$14,2)),$C103,$E103,$F103,2016,$I103/10+$J103/10,1,$H103/10,$G103*$H103/10, RateRatios_airpollution!$F103, RateRatios_airpollution!$E103)*10))","v":5961.6213822700001},{"$f":"IF(AND(OR(Calculations!$E$2=\"Orkney Health Board\",Calculations!$E$2=\"Orkney Islands Local Authority\"),$F103=1),0,IF(AND(OR(Calculations!$E$2=\"Shetland Health Board\",Calculations!$E$2=\"Western Isles Health Board\",Calculations!$E$2=\"Shetland Islands Local Authority\",Calculations!$E$2=\"Eilean Siar Local Authority\"),OR($F103=1,$F103=5)),0,prem_mort(VALUE(LEFT(Options!$B$14,2)),$C103,$E103,$F103,2016,$I103/10,1,$H103/10,$G103*$H103/10,RateRatios_airpollution!$E103)*10))","v":20.117515813000001},{"$f":"IF(AND(OR(Calculations!$E$2=\"Orkney Health Board\",Calculations!$E$2=\"Orkney Islands Local Authority\"),$F103=1),0,IF(AND(OR(Calculations!$E$2=\"Shetland Health Board\",Calculations!$E$2=\"Western Isles Health Board\",Calculations!$E$2=\"Shetland Islands Local Authority\",Calculations!$E$2=\"Eilean Siar Local Authority\"),OR($F103=1,$F103=5)),0,prem_mort(VALUE(LEFT(Options!$B$14,2)),$C103,$E103,$F103,2016,$I103/10+$J103/10,1,$H103/10,$G103*$H103/10,RateRatios_airpollution!$E103)*10))","v":20.117369921999998},20.117515813000001,20.111969376999998,1079.7071340360001,1079.4094567999998,5961.6213822700001,5959.9332358910005,20.117515813000001,20.111969376999998,49.538330000000002,49.524672191578418,2658.7223197143562,2657.989305097266,14680.180700000001,14676.023727877369,49.538330000000002,49.524672191578418,297229.98000000004,297148.03314947052,15952333.918286137,15947935.830583597,88081084.200000003,88056142.367264211,297229.98000000004,297148.03314947052,6000]
[null,"Female 30-34",31.999904999999998,81.799899999999994,"female",2,1,{"$f":"HLOOKUP(Calculations!$E$2,'Population 2016'!$C$3:$BC$249,'Population 2016'!BD104,FALSE)","v":38102},0,{"$f":"HLOOKUP(Calculations!$E$2,Pop2016_in_settlements!$C$3:$BC$249,Pop2016_in_settlements!$BD104,FALSE)","v":23909},{"$f":"IF(AND(OR(Calculations!$E$2=\"Orkney Health Board\",Calculations!$E$2=\"Orkney Islands Local Authority\"),$F104=1),0,IF(AND(OR(Calculations!$E$2=\"Shetland Health Board\",Calculations!$E$2=\"Western Isles Health Board\",Calculations!$E$2=\"Shetland Islands Local Authority\",Calculations!$E$2=\"Eilean Siar Local Authority\"),OR($F104=1,$F104=5)),0,new_ci(VALUE(LEFT(Options!$B$14,2)),$C104,$E104,$F104,2016,$I104/10,1,$H104/10,$G104*$H104/10,RateRatios_accidents!$B$5)*10))","v":28.935965699},{"$f":"IF(AND(OR(Calculations!$E$2=\"Orkney Health Board\",Calculations!$E$2=\"Orkney Islands Local Authority\"),$F104=1),0,IF(AND(OR(Calculations!$E$2=\"Shetland Health Board\",Calculations!$E$2=\"Western Isles Health Board\",Calculations!$E$2=\"Shetland Islands Local Authority\",Calculations!$E$2=\"Eilean Siar Local Authority\"),OR($F104=1,$F104=5)),0,new_ci(VALUE(LEFT(Options!$B$14,2)),$C104,$E104,$F104,2016,$I104/10+$J104/10,1,$H104/10,$G104*$H104/10,RateRatios_accidents!$B$5)*10))","v":28.928704535000001},{"$f":"IF(AND(OR(Calculations!$E$2=\"Orkney Health Board\",Calculations!$E$2=\"Orkney Islands Local Authority\"),$F104=1),0,IF(AND(OR(Calculations!$E$2=\"Shetland Health Board\",Calculations!$E$2=\"Western Isles Health Board\",Calculations!$E$2=\"Shetland Islands Local Authority\",Calculations!$E$2=\"Eilean Siar Local Authority\"),OR($F104=1,$F104=5)),0,new_yllv2(VALUE(LEFT(Options!$B$14,2)),$C104,$D104,$E104,$F104,2016,$I104/10,1,$H104/10,$G104*$H104/10,RateRatios_accidents!$B$5)*10))","v":1412.074981431},{"$f":"IF(AND(OR(Calculations!$E$2=\"Orkney Health Board\",Calculations!$E$2=\"Orkney Islands Local Authority\"),$F104=1),0,IF(AND(OR(Calculations!$E$2=\"Shetland Health Board\",Calculations!$E$2=\"Western Isles Health Board\",Calculations!$E$2=\"Shetland Islands Local Authority\",Calculations!$E$2=\"Eilean Siar Local Authority\"),OR($F104=1,$F104=5)),0,new_yllv2(VALUE(LEFT(Options!$B$14,2)),$C104,$D104,$E104,$F104,2016,$I104/10+$J104/10,1,$H104/10,$G104*$H104/10,RateRatios_accidents!$B$5)*10))","v":1411.7206366639998},{"$f":"IF(AND(OR(Calculations!$E$2=\"Orkney Health Board\",Calculations!$E$2=\"Orkney Islands Local Authority\"),$F104=1),0,IF(AND(OR(Calculations!$E$2=\"Shetland Health Board\",Calculations!$E$2=\"Western Isles Health Board\",Calculations!$E$2=\"Shetland Islands Local Authority\",Calculations!$E$2=\"Eilean Siar Local Authority\"),OR($F104=1,$F104=5)),0,hosp_count(VALUE(LEFT(Options!$B$14,2)),$C104,$E104,$F104,2016,$I104/10,1,$H104/10,$G104*$H104/10, RateRatios_accidents!$B$4, RateRatios_accidents!$B$5)*10))","v":6347.0181481669997},{"$f":"IF(AND(OR(Calculations!$E$2=\"Orkney Health Board\",Calculations!$E$2=\"Orkney Islands Local Authority\"),$F104=1),0,IF(AND(OR(Calculations!$E$2=\"Shetland Health Board\",Calculations!$E$2=\"Western Isles Health Board\",Calculations!$E$2=\"Shetland Islands Local Authority\",Calculations!$E$2=\"Eilean Siar Local Authority\"),OR($F104=1,$F104=5)),0,hosp_count(VALUE(LEFT(Options!$B$14,2)),$C104,$E104,$F104,2016,$I104/10+$J104/10,1,$H104/10,$G104*$H104/10, RateRatios_accidents!$B$4, RateRatios_accidents!$B$5)*10))","v":6345.4250460699996},{"$f":"IF(AND(OR(Calculations!$E$2=\"Orkney Health Board\",Calculations!$E$2=\"Orkney Islands Local Authority\"),$F104=1),0,IF(AND(OR(Calculations!$E$2=\"Shetland Health Board\",Calculations!$E$2=\"Western Isles Health Board\",Calculations!$E$2=\"Shetland Islands Local Authority\",Calculations!$E$2=\"Eilean Siar Local Authority\"),OR($F104=1,$F104=5)),0,prem_mort(VALUE(LEFT(Options!$B$14,2)),$C104,$E104,$F104,2016,$I104/10,1,$H104/10,$G104*$H104/10,RateRatios_accidents!$B$5)*10))","v":28.935965699},{"$f":"IF(AND(OR(Calculations!$E$2=\"Orkney Health Board\",Calculations!$E$2=\"Orkney Islands Local Authority\"),$F104=1),0,IF(AND(OR(Calculations!$E$2=\"Shetland Health Board\",Calculations!$E$2=\"Western Isles Health Board\",Calculations!$E$2=\"Shetland Islands Local Authority\",Calculations!$E$2=\"Eilean Siar Local Authority\"),OR($F104=1,$F104=5)),0,prem_mort(VALUE(LEFT(Options!$B$14,2)),$C104,$E104,$F104,2016,$I104/10+$J104/10,1,$H104/10,$G104*$H104/10,RateRatios_accidents!$B$5)*10))","v":28.928704535000001},null,{"$f":"IF(AND(OR(Calculations!$E$2=\"Orkney Health Board\",Calculations!$E$2=\"Orkney Islands Local Authority\"),$F104=1),0,IF(AND(OR(Calculations!$E$2=\"Shetland Health Board\",Calculations!$E$2=\"Western Isles Health Board\",Calculations!$E$2=\"Shetland Islands Local Authority\",Calculations!$E$2=\"Eilean Siar Local Authority\"),OR($F104=1,$F104=5)),0,new_ci(VALUE(LEFT(Options!$B$14,2)),$C104,$E104,$F104,2016,$I104/10,1,$H104/10,$G104*$H104/10,RateRatios_airpollution!$C104)*10))","v":28.935965699},{"$f":"IF(AND(OR(Calculations!$E$2=\"Orkney Health Board\",Calculations!$E$2=\"Orkney Islands Local Authority\"),$F104=1),0,IF(AND(OR(Calculations!$E$2=\"Shetland Health Board\",Calculations!$E$2=\"Western Isles Health Board\",Calculations!$E$2=\"Shetland Islands Local Authority\",Calculations!$E$2=\"Eilean Siar Local Authority\"),OR($F104=1,$F104=5)),0,new_ci(VALUE(LEFT(Options!$B$14,2)),$C104,$E104,$F104,2016,$I104/10+$J104/10,1,$H104/10,$G104*$H104/10,RateRatios_airpollution!$C104)*10))","v":28.935518600000002},{"$f":"IF(AND(OR(Calculations!$E$2=\"Orkney Health Board\",Calculations!$E$2=\"Orkney Islands Local Authority\"),$F104=1),0,IF(AND(OR(Calculations!$E$2=\"Shetland Health Board\",Calculations!$E$2=\"Western Isles Health Board\",Calculations!$E$2=\"Shetland Islands Local Authority\",Calculations!$E$2=\"Eilean Siar Local Authority\"),OR($F104=1,$F104=5)),0,new_yllv2(VALUE(LEFT(Options!$B$14,2)),$C104,$D104,$E104,$F104,2016,$I104/10,1,$H104/10,$G104*$H104/10,RateRatios_airpollution!$C104)*10))","v":1412.074981431},{"$f":"IF(AND(OR(Calculations!$E$2=\"Orkney Health Board\",Calculations!$E$2=\"Orkney Islands Local Authority\"),$F104=1),0,IF(AND(OR(Calculations!$E$2=\"Shetland Health Board\",Calculations!$E$2=\"Western Isles Health Board\",Calculations!$E$2=\"Shetland Islands Local Authority\",Calculations!$E$2=\"Eilean Siar Local Authority\"),OR($F104=1,$F104=5)),0,new_yllv2(VALUE(LEFT(Options!$B$14,2)),$C104,$D104,$E104,$F104,2016,$I104/10+$J104/10,1,$H104/10,$G104*$H104/10,RateRatios_airpollution!$C104)*10))","v":1412.053163002},{"$f":"IF(AND(OR(Calculations!$E$2=\"Orkney Health Board\",Calculations!$E$2=\"Orkney Islands Local Authority\"),$F104=1),0,IF(AND(OR(Calculations!$E$2=\"Shetland Health Board\",Calculations!$E$2=\"Western Isles Health Board\",Calculations!$E$2=\"Shetland Islands Local Authority\",Calculations!$E$2=\"Eilean Siar Local Authority\"),OR($F104=1,$F104=5)),0,hosp_count(VALUE(LEFT(Options!$B$14,2)),$C104,$E104,$F104,2016,$I104/10,1,$H104/10,$G104*$H104/10, RateRatios_airpollution!$D104, RateRatios_airpollution!$C104)*10))","v":6347.0181481669997},{"$f":"IF(AND(OR(Calculations!$E$2=\"Orkney Health Board\",Calculations!$E$2=\"Orkney Islands Local Authority\"),$F104=1),0,IF(AND(OR(Calculations!$E$2=\"Shetland Health Board\",Calculations!$E$2=\"Western Isles Health Board\",Calculations!$E$2=\"Shetland Islands Local Authority\",Calculations!$E$2=\"Eilean Siar Local Authority\"),OR($F104=1,$F104=5)),0,hosp_count(VALUE(LEFT(Options!$B$14,2)),$C104,$E104,$F104,2016,$I104/10+$J104/10,1,$H104/10,$G104*$H104/10, RateRatios_airpollution!$D104, RateRatios_airpollution!$C104)*10))","v":6346.8335874229997},{"$f":"IF(AND(OR(Calculations!$E$2=\"Orkney Health Board\",Calculations!$E$2=\"Orkney Islands Local Authority\"),$F104=1),0,IF(AND(OR(Calculations!$E$2=\"Shetland Health Board\",Calculations!$E$2=\"Western Isles Health Board\",Calculations!$E$2=\"Shetland Islands Local Authority\",Calculations!$E$2=\"Eilean Siar Local Authority\"),OR($F104=1,$F104=5)),0,prem_mort(VALUE(LEFT(Options!$B$14,2)),$C104,$E104,$F104,2016,$I104/10,1,$H104/10,$G104*$H104/10,RateRatios_airpollution!$C104)*10))","v":28.935965699},{"$f":"IF(AND(OR(Calculations!$E$2=\"Orkney Health Board\",Calculations!$E$2=\"Orkney Islands Local Authority\"),$F104=1),0,IF(AND(OR(Calculations!$E$2=\"Shetland Health Board\",Calculations!$E$2=\"Western Isles Health Board\",Calculations!$E$2=\"Shetland Islands Local Authority\",Calculations!$E$2=\"Eilean Siar Local Authority\"),OR($F104=1,$F104=5)),0,prem_mort(VALUE(LEFT(Options!$B$14,2)),$C104,$E104,$F104,2016,$I104/10+$J104/10,1,$H104/10,$G104*$H104/10,RateRatios_airpollution!$C104)*10))","v":28.935518600000002},null,{"$f":"IF(AND(OR(Calculations!$E$2=\"Orkney Health Board\",Calculations!$E$2=\"Orkney Islands Local Authority\"),$F104=1),0,IF(AND(OR(Calculations!$E$2=\"Shetland Health Board\",Calculations!$E$2=\"Western Isles Health Board\",Calculations!$E$2=\"Shetland Islands Local Authority\",Calculations!$E$2=\"Eilean Siar Local Authority\"),OR($F104=1,$F104=5)),0,new_ci(VALUE(LEFT(Options!$B$14,2)),$C104,$E104,$F104,2016,$I104/10,1,$H104/10,$G104*$H104/10,RateRatios_airpollution!$E104)*10))","v":28.935965699},{"$f":"IF(AND(OR(Calculations!$E$2=\"Orkney Health Board\",Calculations!$E$2=\"Orkney Islands Local Authority\"),$F104=1),0,IF(AND(OR(Calculations!$E$2=\"Shetland Health Board\",Calculations!$E$2=\"Western Isles Health Board\",Calculations!$E$2=\"Shetland Islands Local Authority\",Calculations!$E$2=\"Eilean Siar Local Authority\"),OR($F104=1,$F104=5)),0,new_ci(VALUE(LEFT(Options!$B$14,2)),$C104,$E104,$F104,2016,$I104/10+$J104/10,1,$H104/10,$G104*$H104/10,RateRatios_airpollution!$E104)*10))","v":28.935762472},{"$f":"IF(AND(OR(Calculations!$E$2=\"Orkney Health Board\",Calculations!$E$2=\"Orkney Islands Local Authority\"),$F104=1),0,IF(AND(OR(Calculations!$E$2=\"Shetland Health Board\",Calculations!$E$2=\"Western Isles Health Board\",Calculations!$E$2=\"Shetland Islands Local Authority\",Calculations!$E$2=\"Eilean Siar Local Authority\"),OR($F104=1,$F104=5)),0,new_yllv2(VALUE(LEFT(Options!$B$14,2)),$C104,$D104,$E104,$F104,2016,$I104/10,1,$H104/10,$G104*$H104/10,RateRatios_airpollution!$E104)*10))","v":1412.074981431},{"$f":"IF(AND(OR(Calculations!$E$2=\"Orkney Health Board\",Calculations!$E$2=\"Orkney Islands Local Authority\"),$F104=1),0,IF(AND(OR(Calculations!$E$2=\"Shetland Health Board\",Calculations!$E$2=\"Western Isles Health Board\",Calculations!$E$2=\"Shetland Islands Local Authority\",Calculations!$E$2=\"Eilean Siar Local Authority\"),OR($F104=1,$F104=5)),0,new_yllv2(VALUE(LEFT(Options!$B$14,2)),$C104,$D104,$E104,$F104,2016,$I104/10+$J104/10,1,$H104/10,$G104*$H104/10,RateRatios_airpollution!$E104)*10))","v":1412.0650639550001},{"$f":"IF(AND(OR(Calculations!$E$2=\"Orkney Health Board\",Calculations!$E$2=\"Orkney Islands Local Authority\"),$F104=1),0,IF(AND(OR(Calculations!$E$2=\"Shetland Health Board\",Calculations!$E$2=\"Western Isles Health Board\",Calculations!$E$2=\"Shetland Islands Local Authority\",Calculations!$E$2=\"Eilean Siar Local Authority\"),OR($F104=1,$F104=5)),0,hosp_count(VALUE(LEFT(Options!$B$14,2)),$C104,$E104,$F104,2016,$I104/10,1,$H104/10,$G104*$H104/10, RateRatios_airpollution!$F104, RateRatios_airpollution!$E104)*10))","v":6347.0181481669997},{"$f":"IF(AND(OR(Calculations!$E$2=\"Orkney Health Board\",Calculations!$E$2=\"Orkney Islands Local Authority\"),$F104=1),0,IF(AND(OR(Calculations!$E$2=\"Shetland Health Board\",Calculations!$E$2=\"Western Isles Health Board\",Calculations!$E$2=\"Shetland Islands Local Authority\",Calculations!$E$2=\"Eilean Siar Local Authority\"),OR($F104=1,$F104=5)),0,hosp_count(VALUE(LEFT(Options!$B$14,2)),$C104,$E104,$F104,2016,$I104/10+$J104/10,1,$H104/10,$G104*$H104/10, RateRatios_airpollution!$F104, RateRatios_airpollution!$E104)*10))","v":6347.0181481669997},{"$f":"IF(AND(OR(Calculations!$E$2=\"Orkney Health Board\",Calculations!$E$2=\"Orkney Islands Local Authority\"),$F104=1),0,IF(AND(OR(Calculations!$E$2=\"Shetland Health Board\",Calculations!$E$2=\"Western Isles Health Board\",Calculations!$E$2=\"Shetland Islands Local Authority\",Calculations!$E$2=\"Eilean Siar Local Authority\"),OR($F104=1,$F104=5)),0,prem_mort(VALUE(LEFT(Options!$B$14,2)),$C104,$E104,$F104,2016,$I104/10,1,$H104/10,$G104*$H104/10,RateRatios_airpollution!$E104)*10))","v":28.935965699},{"$f":"IF(AND(OR(Calculations!$E$2=\"Orkney Health Board\",Calculations!$E$2=\"Orkney Islands Local Authority\"),$F104=1),0,IF(AND(OR(Calculations!$E$2=\"Shetland Health Board\",Calculations!$E$2=\"Western Isles Health Board\",Calculations!$E$2=\"Shetland Islands Local Authority\",Calculations!$E$2=\"Eilean Siar Local Authority\"),OR($F104=1,$F104=5)),0,prem_mort(VALUE(LEFT(Options!$B$14,2)),$C104,$E104,$F104,2016,$I104/10+$J104/10,1,$H104/10,$G104*$H104/10,RateRatios_airpollution!$E104)*10))","v":28.935762472},28.935965699,28.928054209000003,1412.074981431,1411.688900759,6347.0181481669997,6345.2404853259995,28.935965699,28.928054209000003,75.943430001049819,75.922666025405491,3706.0390043331058,3705.0257224266447,16657.965850000001,16653.300313175161,75.943430001049819,75.922666025405491,493632.29500682384,493497.32916513568,24089253.528165188,24082667.195773192,108276778.02500001,108246452.03563854,493632.29500682384,493497.32916513568,6500]
[null,"Female 35-39",36.918118,81.898120000000006,"female",2,1,{"$f":"HLOOKUP(Calculations!$E$2,'Population 2016'!$C$3:$BC$249,'Population 2016'!BD105,FALSE)","v":33014},0,{"$f":"HLOOKUP(Calculations!$E$2,Pop2016_in_settlements!$C$3:$BC$249,Pop2016_in_settlements!$BD105,FALSE)","v":20843},{"$f":"IF(AND(OR(Calculations!$E$2=\"Orkney Health Board\",Calculations!$E$2=\"Orkney Islands Local Authority\"),$F105=1),0,IF(AND(OR(Calculations!$E$2=\"Shetland Health Board\",Calculations!$E$2=\"Western Isles Health Board\",Calculations!$E$2=\"Shetland Islands Local Authority\",Calculations!$E$2=\"Eilean Siar Local Authority\"),OR($F105=1,$F105=5)),0,new_ci(VALUE(LEFT(Options!$B$14,2)),$C105,$E105,$F105,2016,$I105/10,1,$H105/10,$G105*$H105/10,RateRatios_accidents!$B$5)*10))","v":38.086815690999998},{"$f":"IF(AND(OR(Calculations!$E$2=\"Orkney Health Board\",Calculations!$E$2=\"Orkney Islands Local Authority\"),$F105=1),0,IF(AND(OR(Calculations!$E$2=\"Shetland Health Board\",Calculations!$E$2=\"Western Isles Health Board\",Calculations!$E$2=\"Shetland Islands Local Authority\",Calculations!$E$2=\"Eilean Siar Local Authority\"),OR($F105=1,$F105=5)),0,new_ci(VALUE(LEFT(Options!$B$14,2)),$C105,$E105,$F105,2016,$I105/10+$J105/10,1,$H105/10,$G105*$H105/10,RateRatios_accidents!$B$5)*10))","v":38.077204984000005},{"$f":"IF(AND(OR(Calculations!$E$2=\"Orkney Health Board\",Calculations!$E$2=\"Orkney Islands Local Authority\"),$F105=1),0,IF(AND(OR(Calculations!$E$2=\"Shetland Health Board\",Calculations!$E$2=\"Western Isles Health Board\",Calculations!$E$2=\"Shetland Islands Local Authority\",Calculations!$E$2=\"Eilean Siar Local Authority\"),OR($F105=1,$F105=5)),0,new_yllv2(VALUE(LEFT(Options!$B$14,2)),$C105,$D105,$E105,$F105,2016,$I105/10,1,$H105/10,$G105*$H105/10,RateRatios_accidents!$B$5)*10))","v":1675.058230264},{"$f":"IF(AND(OR(Calculations!$E$2=\"Orkney Health Board\",Calculations!$E$2=\"Orkney Islands Local Authority\"),$F105=1),0,IF(AND(OR(Calculations!$E$2=\"Shetland Health Board\",Calculations!$E$2=\"Western Isles Health Board\",Calculations!$E$2=\"Shetland Islands Local Authority\",Calculations!$E$2=\"Eilean Siar Local Authority\"),OR($F105=1,$F105=5)),0,new_yllv2(VALUE(LEFT(Options!$B$14,2)),$C105,$D105,$E105,$F105,2016,$I105/10+$J105/10,1,$H105/10,$G105*$H105/10,RateRatios_accidents!$B$5)*10))","v":1674.635551351},{"$f":"IF(AND(OR(Calculations!$E$2=\"Orkney Health Board\",Calculations!$E$2=\"Orkney Islands Local Authority\"),$F105=1),0,IF(AND(OR(Calculations!$E$2=\"Shetland Health Board\",Calculations!$E$2=\"Western Isles Health Board\",Calculations!$E$2=\"Shetland Islands Local Authority\",Calculations!$E$2=\"Eilean Siar Local Authority\"),OR($F105=1,$F105=5)),0,hosp_count(VALUE(LEFT(Options!$B$14,2)),$C105,$E105,$F105,2016,$I105/10,1,$H105/10,$G105*$H105/10, RateRatios_accidents!$B$4, RateRatios_accidents!$B$5)*10))","v":6223.6793335350003},{"$f":"IF(AND(OR(Calculations!$E$2=\"Orkney Health Board\",Calculations!$E$2=\"Orkney Islands Local Authority\"),$F105=1),0,IF(AND(OR(Calculations!$E$2=\"Shetland Health Board\",Calculations!$E$2=\"Western Isles Health Board\",Calculations!$E$2=\"Shetland Islands Local Authority\",Calculations!$E$2=\"Eilean Siar Local Authority\"),OR($F105=1,$F105=5)),0,hosp_count(VALUE(LEFT(Options!$B$14,2)),$C105,$E105,$F105,2016,$I105/10+$J105/10,1,$H105/10,$G105*$H105/10, RateRatios_accidents!$B$4, RateRatios_accidents!$B$5)*10))","v":6222.1076358560003},{"$f":"IF(AND(OR(Calculations!$E$2=\"Orkney Health Board\",Calculations!$E$2=\"Orkney Islands Local Authority\"),$F105=1),0,IF(AND(OR(Calculations!$E$2=\"Shetland Health Board\",Calculations!$E$2=\"Western Isles Health Board\",Calculations!$E$2=\"Shetland Islands Local Authority\",Calculations!$E$2=\"Eilean Siar Local Authority\"),OR($F105=1,$F105=5)),0,prem_mort(VALUE(LEFT(Options!$B$14,2)),$C105,$E105,$F105,2016,$I105/10,1,$H105/10,$G105*$H105/10,RateRatios_accidents!$B$5)*10))","v":38.086815690999998},{"$f":"IF(AND(OR(Calculations!$E$2=\"Orkney Health Board\",Calculations!$E$2=\"Orkney Islands Local Authority\"),$F105=1),0,IF(AND(OR(Calculations!$E$2=\"Shetland Health Board\",Calculations!$E$2=\"Western Isles Health Board\",Calculations!$E$2=\"Shetland Islands Local Authority\",Calculations!$E$2=\"Eilean Siar Local Authority\"),OR($F105=1,$F105=5)),0,prem_mort(VALUE(LEFT(Options!$B$14,2)),$C105,$E105,$F105,2016,$I105/10+$J105/10,1,$H105/10,$G105*$H105/10,RateRatios_accidents!$B$5)*10))","v":38.077204984000005},null,{"$f":"IF(AND(OR(Calculations!$E$2=\"Orkney Health Board\",Calculations!$E$2=\"Orkney Islands Local Authority\"),$F105=1),0,IF(AND(OR(Calculations!$E$2=\"Shetland Health Board\",Calculations!$E$2=\"Western Isles Health Board\",Calculations!$E$2=\"Shetland Islands Local Authority\",Calculations!$E$2=\"Eilean Siar Local Authority\"),OR($F105=1,$F105=5)),0,new_ci(VALUE(LEFT(Options!$B$14,2)),$C105,$E105,$F105,2016,$I105/10,1,$H105/10,$G105*$H105/10,RateRatios_airpollution!$C105)*10))","v":38.086815690999998},{"$f":"IF(AND(OR(Calculations!$E$2=\"Orkney Health Board\",Calculations!$E$2=\"Orkney Islands Local Authority\"),$F105=1),0,IF(AND(OR(Calculations!$E$2=\"Shetland Health Board\",Calculations!$E$2=\"Western Isles Health Board\",Calculations!$E$2=\"Shetland Islands Local Authority\",Calculations!$E$2=\"Eilean Siar Local Authority\"),OR($F105=1,$F105=5)),0,new_ci(VALUE(LEFT(Options!$B$14,2)),$C105,$E105,$F105,2016,$I105/10+$J105/10,1,$H105/10,$G105*$H105/10,RateRatios_airpollution!$C105)*10))","v":38.086263352000003},{"$f":"IF(AND(OR(Calculations!$E$2=\"Orkney Health Board\",Calculations!$E$2=\"Orkney Islands Local Authority\"),$F105=1),0,IF(AND(OR(Calculations!$E$2=\"Shetland Health Board\",Calculations!$E$2=\"Western Isles Health Board\",Calculations!$E$2=\"Shetland Islands Local Authority\",Calculations!$E$2=\"Eilean Siar Local Authority\"),OR($F105=1,$F105=5)),0,new_yllv2(VALUE(LEFT(Options!$B$14,2)),$C105,$D105,$E105,$F105,2016,$I105/10,1,$H105/10,$G105*$H105/10,RateRatios_airpollution!$C105)*10))","v":1675.058230264},{"$f":"IF(AND(OR(Calculations!$E$2=\"Orkney Health Board\",Calculations!$E$2=\"Orkney Islands Local Authority\"),$F105=1),0,IF(AND(OR(Calculations!$E$2=\"Shetland Health Board\",Calculations!$E$2=\"Western Isles Health Board\",Calculations!$E$2=\"Shetland Islands Local Authority\",Calculations!$E$2=\"Eilean Siar Local Authority\"),OR($F105=1,$F105=5)),0,new_yllv2(VALUE(LEFT(Options!$B$14,2)),$C105,$D105,$E105,$F105,2016,$I105/10+$J105/10,1,$H105/10,$G105*$H105/10,RateRatios_airpollution!$C105)*10))","v":1675.033938393},{"$f":"IF(AND(OR(Calculations!$E$2=\"Orkney Health Board\",Calculations!$E$2=\"Orkney Islands Local Authority\"),$F105=1),0,IF(AND(OR(Calculations!$E$2=\"Shetland Health Board\",Calculations!$E$2=\"Western Isles Health Board\",Calculations!$E$2=\"Shetland Islands Local Authority\",Calculations!$E$2=\"Eilean Siar Local Authority\"),OR($F105=1,$F105=5)),0,hosp_count(VALUE(LEFT(Options!$B$14,2)),$C105,$E105,$F105,2016,$I105/10,1,$H105/10,$G105*$H105/10, RateRatios_airpollution!$D105, RateRatios_airpollution!$C105)*10))","v":6223.6793335350003},{"$f":"IF(AND(OR(Calculations!$E$2=\"Orkney Health Board\",Calculations!$E$2=\"Orkney Islands Local Authority\"),$F105=1),0,IF(AND(OR(Calculations!$E$2=\"Shetland Health Board\",Calculations!$E$2=\"Western Isles Health Board\",Calculations!$E$2=\"Shetland Islands Local Authority\",Calculations!$E$2=\"Eilean Siar Local Authority\"),OR($F105=1,$F105=5)),0,hosp_count(VALUE(LEFT(Options!$B$14,2)),$C105,$E105,$F105,2016,$I105/10+$J105/10,1,$H105/10,$G105*$H105/10, RateRatios_airpollution!$D105, RateRatios_airpollution!$C105)*10))","v":6223.5087481699993},{"$f":"IF(AND(OR(Calculations!$E$2=\"Orkney Health Board\",Calculations!$E$2=\"Orkney Islands Local Authority\"),$F105=1),0,IF(AND(OR(Calculations!$E$2=\"Shetland Health Board\",Calculations!$E$2=\"Western Isles Health Board\",Calculations!$E$2=\"Shetland Islands Local Authority\",Calculations!$E$2=\"Eilean Siar Local Authority\"),OR($F105=1,$F105=5)),0,prem_mort(VALUE(LEFT(Options!$B$14,2)),$C105,$E105,$F105,2016,$I105/10,1,$H105/10,$G105*$H105/10,RateRatios_airpollution!$C105)*10))","v":38.086815690999998},{"$f":"IF(AND(OR(Calculations!$E$2=\"Orkney Health Board\",Calculations!$E$2=\"Orkney Islands Local Authority\"),$F105=1),0,IF(AND(OR(Calculations!$E$2=\"Shetland Health Board\",Calculations!$E$2=\"Western Isles Health Board\",Calculations!$E$2=\"Shetland Islands Local Authority\",Calculations!$E$2=\"Eilean Siar Local Authority\"),OR($F105=1,$F105=5)),0,prem_mort(VALUE(LEFT(Options!$B$14,2)),$C105,$E105,$F105,2016,$I105/10+$J105/10,1,$H105/10,$G105*$H105/10,RateRatios_airpollution!$C105)*10))","v":38.086263352000003},null,{"$f":"IF(AND(OR(Calculations!$E$2=\"Orkney Health Board\",Calculations!$E$2=\"Orkney Islands Local Authority\"),$F105=1),0,IF(AND(OR(Calculations!$E$2=\"Shetland Health Board\",Calculations!$E$2=\"Western Isles Health Board\",Calculations!$E$2=\"Shetland Islands Local Authority\",Calculations!$E$2=\"Eilean Siar Local Authority\"),OR($F105=1,$F105=5)),0,new_ci(VALUE(LEFT(Options!$B$14,2)),$C105,$E105,$F105,2016,$I105/10,1,$H105/10,$G105*$H105/10,RateRatios_airpollution!$E105)*10))","v":38.086815690999998},{"$f":"IF(AND(OR(Calculations!$E$2=\"Orkney Health Board\",Calculations!$E$2=\"Orkney Islands Local Authority\"),$F105=1),0,IF(AND(OR(Calculations!$E$2=\"Shetland Health Board\",Calculations!$E$2=\"Western Isles Health Board\",Calculations!$E$2=\"Shetland Islands Local Authority\",Calculations!$E$2=\"Eilean Siar Local Authority\"),OR($F105=1,$F105=5)),0,new_ci(VALUE(LEFT(Options!$B$14,2)),$C105,$E105,$F105,2016,$I105/10+$J105/10,1,$H105/10,$G105*$H105/10,RateRatios_airpollution!$E105)*10))","v":38.086563491},{"$f":"IF(AND(OR(Calculations!$E$2=\"Orkney Health Board\",Calculations!$E$2=\"Orkney Islands Local Authority\"),$F105=1),0,IF(AND(OR(Calculations!$E$2=\"Shetland Health Board\",Calculations!$E$2=\"Western Isles Health Board\",Calculations!$E$2=\"Shetland Islands Local Authority\",Calculations!$E$2=\"Eilean Siar Local Authority\"),OR($F105=1,$F105=5)),0,new_yllv2(VALUE(LEFT(Options!$B$14,2)),$C105,$D105,$E105,$F105,2016,$I105/10,1,$H105/10,$G105*$H105/10,RateRatios_airpollution!$E105)*10))","v":1675.058230264},{"$f":"IF(AND(OR(Calculations!$E$2=\"Orkney Health Board\",Calculations!$E$2=\"Orkney Islands Local Authority\"),$F105=1),0,IF(AND(OR(Calculations!$E$2=\"Shetland Health Board\",Calculations!$E$2=\"Western Isles Health Board\",Calculations!$E$2=\"Shetland Islands Local Authority\",Calculations!$E$2=\"Eilean Siar Local Authority\"),OR($F105=1,$F105=5)),0,new_yllv2(VALUE(LEFT(Options!$B$14,2)),$C105,$D105,$E105,$F105,2016,$I105/10+$J105/10,1,$H105/10,$G105*$H105/10,RateRatios_airpollution!$E105)*10))","v":1675.047138507},{"$f":"IF(AND(OR(Calculations!$E$2=\"Orkney Health Board\",Calculations!$E$2=\"Orkney Islands Local Authority\"),$F105=1),0,IF(AND(OR(Calculations!$E$2=\"Shetland Health Board\",Calculations!$E$2=\"Western Isles Health Board\",Calculations!$E$2=\"Shetland Islands Local Authority\",Calculations!$E$2=\"Eilean Siar Local Authority\"),OR($F105=1,$F105=5)),0,hosp_count(VALUE(LEFT(Options!$B$14,2)),$C105,$E105,$F105,2016,$I105/10,1,$H105/10,$G105*$H105/10, RateRatios_airpollution!$F105, RateRatios_airpollution!$E105)*10))","v":6223.6793335350003},{"$f":"IF(AND(OR(Calculations!$E$2=\"Orkney Health Board\",Calculations!$E$2=\"Orkney Islands Local Authority\"),$F105=1),0,IF(AND(OR(Calculations!$E$2=\"Shetland Health Board\",Calculations!$E$2=\"Western Isles Health Board\",Calculations!$E$2=\"Shetland Islands Local Authority\",Calculations!$E$2=\"Eilean Siar Local Authority\"),OR($F105=1,$F105=5)),0,hosp_count(VALUE(LEFT(Options!$B$14,2)),$C105,$E105,$F105,2016,$I105/10+$J105/10,1,$H105/10,$G105*$H105/10, RateRatios_airpollution!$F105, RateRatios_airpollution!$E105)*10))","v":6223.6793335350003},{"$f":"IF(AND(OR(Calculations!$E$2=\"Orkney Health Board\",Calculations!$E$2=\"Orkney Islands Local Authority\"),$F105=1),0,IF(AND(OR(Calculations!$E$2=\"Shetland Health Board\",Calculations!$E$2=\"Western Isles Health Board\",Calculations!$E$2=\"Shetland Islands Local Authority\",Calculations!$E$2=\"Eilean Siar Local Authority\"),OR($F105=1,$F105=5)),0,prem_mort(VALUE(LEFT(Options!$B$14,2)),$C105,$E105,$F105,2016,$I105/10,1,$H105/10,$G105*$H105/10,RateRatios_airpollution!$E105)*10))","v":38.086815690999998},{"$f":"IF(AND(OR(Calculations!$E$2=\"Orkney Health Board\",Calculations!$E$2=\"Orkney Islands Local Authority\"),$F105=1),0,IF(AND(OR(Calculations!$E$2=\"Shetland Health Board\",Calculations!$E$2=\"Western Isles Health Board\",Calculations!$E$2=\"Shetland Islands Local Authority\",Calculations!$E$2=\"Eilean Siar Local Authority\"),OR($F105=1,$F105=5)),0,prem_mort(VALUE(LEFT(Options!$B$14,2)),$C105,$E105,$F105,2016,$I105/10+$J105/10,1,$H105/10,$G105*$H105/10,RateRatios_airpollution!$E105)*10))","v":38.086563491},38.086815690999998,38.076400445000012,1675.058230264,1674.6001677229999,6223.6793335350003,6221.9370504909994,38.086815690999998,38.076400445000012,115.36565,115.33410203247111,5073.7815177318716,5072.3940380535532,18851.636679999396,18846.359273311322,115.36565,115.33410203247111,807559.55,807338.71422729781,35516470.624123104,35506758.266374871,131961456.75999577,131924514.91317925,807559.55,807338.71422729781,7000]
[null,"Female 40-44",42.077438000000001,82.30744,"female",2,1,{"$f":"HLOOKUP(Calculations!$E$2,'Population 2016'!$C$3:$BC$249,'Population 2016'!BD106,FALSE)","v":33442},0,{"$f":"HLOOKUP(Calculations!$E$2,Pop2016_in_settlements!$C$3:$BC$249,Pop2016_in_settlements!$BD106,FALSE)","v":21013},{"$f":"IF(AND(OR(Calculations!$E$2=\"Orkney Health Board\",Calculations!$E$2=\"Orkney Islands Local Authority\"),$F106=1),0,IF(AND(OR(Calculations!$E$2=\"Shetland Health Board\",Calculations!$E$2=\"Western Isles Health Board\",Calculations!$E$2=\"Shetland Islands Local Authority\",Calculations!$E$2=\"Eilean Siar Local Authority\"),OR($F106=1,$F106=5)),0,new_ci(VALUE(LEFT(Options!$B$14,2)),$C106,$E106,$F106,2016,$I106/10,1,$H106/10,$G106*$H106/10,RateRatios_accidents!$B$5)*10))","v":59.814836076000006},{"$f":"IF(AND(OR(Calculations!$E$2=\"Orkney Health Board\",Calculations!$E$2=\"Orkney Islands Local Authority\"),$F106=1),0,IF(AND(OR(Calculations!$E$2=\"Shetland Health Board\",Calculations!$E$2=\"Western Isles Health Board\",Calculations!$E$2=\"Shetland Islands Local Authority\",Calculations!$E$2=\"Eilean Siar Local Authority\"),OR($F106=1,$F106=5)),0,new_ci(VALUE(LEFT(Options!$B$14,2)),$C106,$E106,$F106,2016,$I106/10+$J106/10,1,$H106/10,$G106*$H106/10,RateRatios_accidents!$B$5)*10))","v":59.799815984000006},{"$f":"IF(AND(OR(Calculations!$E$2=\"Orkney Health Board\",Calculations!$E$2=\"Orkney Islands Local Authority\"),$F106=1),0,IF(AND(OR(Calculations!$E$2=\"Shetland Health Board\",Calculations!$E$2=\"Western Isles Health Board\",Calculations!$E$2=\"Shetland Islands Local Authority\",Calculations!$E$2=\"Eilean Siar Local Authority\"),OR($F106=1,$F106=5)),0,new_yllv2(VALUE(LEFT(Options!$B$14,2)),$C106,$D106,$E106,$F106,2016,$I106/10,1,$H106/10,$G106*$H106/10,RateRatios_accidents!$B$5)*10))","v":2346.5361388910001},{"$f":"IF(AND(OR(Calculations!$E$2=\"Orkney Health Board\",Calculations!$E$2=\"Orkney Islands Local Authority\"),$F106=1),0,IF(AND(OR(Calculations!$E$2=\"Shetland Health Board\",Calculations!$E$2=\"Western Isles Health Board\",Calculations!$E$2=\"Shetland Islands Local Authority\",Calculations!$E$2=\"Eilean Siar Local Authority\"),OR($F106=1,$F106=5)),0,new_yllv2(VALUE(LEFT(Options!$B$14,2)),$C106,$D106,$E106,$F106,2016,$I106/10+$J106/10,1,$H106/10,$G106*$H106/10,RateRatios_accidents!$B$5)*10))","v":2345.9469006520003},{"$f":"IF(AND(OR(Calculations!$E$2=\"Orkney Health Board\",Calculations!$E$2=\"Orkney Islands Local Authority\"),$F106=1),0,IF(AND(OR(Calculations!$E$2=\"Shetland Health Board\",Calculations!$E$2=\"Western Isles Health Board\",Calculations!$E$2=\"Shetland Islands Local Authority\",Calculations!$E$2=\"Eilean Siar Local Authority\"),OR($F106=1,$F106=5)),0,hosp_count(VALUE(LEFT(Options!$B$14,2)),$C106,$E106,$F106,2016,$I106/10,1,$H106/10,$G106*$H106/10, RateRatios_accidents!$B$4, RateRatios_accidents!$B$5)*10))","v":7177.9805397339996},{"$f":"IF(AND(OR(Calculations!$E$2=\"Orkney Health Board\",Calculations!$E$2=\"Orkney Islands Local Authority\"),$F106=1),0,IF(AND(OR(Calculations!$E$2=\"Shetland Health Board\",Calculations!$E$2=\"Western Isles Health Board\",Calculations!$E$2=\"Shetland Islands Local Authority\",Calculations!$E$2=\"Eilean Siar Local Authority\"),OR($F106=1,$F106=5)),0,hosp_count(VALUE(LEFT(Options!$B$14,2)),$C106,$E106,$F106,2016,$I106/10+$J106/10,1,$H106/10,$G106*$H106/10, RateRatios_accidents!$B$4, RateRatios_accidents!$B$5)*10))","v":7176.1764497069998},{"$f":"IF(AND(OR(Calculations!$E$2=\"Orkney Health Board\",Calculations!$E$2=\"Orkney Islands Local Authority\"),$F106=1),0,IF(AND(OR(Calculations!$E$2=\"Shetland Health Board\",Calculations!$E$2=\"Western Isles Health Board\",Calculations!$E$2=\"Shetland Islands Local Authority\",Calculations!$E$2=\"Eilean Siar Local Authority\"),OR($F106=1,$F106=5)),0,prem_mort(VALUE(LEFT(Options!$B$14,2)),$C106,$E106,$F106,2016,$I106/10,1,$H106/10,$G106*$H106/10,RateRatios_accidents!$B$5)*10))","v":59.814836076000006},{"$f":"IF(AND(OR(Calculations!$E$2=\"Orkney Health Board\",Calculations!$E$2=\"Orkney Islands Local Authority\"),$F106=1),0,IF(AND(OR(Calculations!$E$2=\"Shetland Health Board\",Calculations!$E$2=\"Western Isles Health Board\",Calculations!$E$2=\"Shetland Islands Local Authority\",Calculations!$E$2=\"Eilean Siar Local Authority\"),OR($F106=1,$F106=5)),0,prem_mort(VALUE(LEFT(Options!$B$14,2)),$C106,$E106,$F106,2016,$I106/10+$J106/10,1,$H106/10,$G106*$H106/10,RateRatios_accidents!$B$5)*10))","v":59.799815984000006},null,{"$f":"IF(AND(OR(Calculations!$E$2=\"Orkney Health Board\",Calculations!$E$2=\"Orkney Islands Local Authority\"),$F106=1),0,IF(AND(OR(Calculations!$E$2=\"Shetland Health Board\",Calculations!$E$2=\"Western Isles Health Board\",Calculations!$E$2=\"Shetland Islands Local Authority\",Calculations!$E$2=\"Eilean Siar Local Authority\"),OR($F106=1,$F106=5)),0,new_ci(VALUE(LEFT(Options!$B$14,2)),$C106,$E106,$F106,2016,$I106/10,1,$H106/10,$G106*$H106/10,RateRatios_airpollution!$C106)*10))","v":59.814836076000006},{"$f":"IF(AND(OR(Calculations!$E$2=\"Orkney Health Board\",Calculations!$E$2=\"Orkney Islands Local Authority\"),$F106=1),0,IF(AND(OR(Calculations!$E$2=\"Shetland Health Board\",Calculations!$E$2=\"Western Isles Health Board\",Calculations!$E$2=\"Shetland Islands Local Authority\",Calculations!$E$2=\"Eilean Siar Local Authority\"),OR($F106=1,$F106=5)),0,new_ci(VALUE(LEFT(Options!$B$14,2)),$C106,$E106,$F106,2016,$I106/10+$J106/10,1,$H106/10,$G106*$H106/10,RateRatios_airpollution!$C106)*10))","v":59.814016569000003},{"$f":"IF(AND(OR(Calculations!$E$2=\"Orkney Health Board\",Calculations!$E$2=\"Orkney Islands Local Authority\"),$F106=1),0,IF(AND(OR(Calculations!$E$2=\"Shetland Health Board\",Calculations!$E$2=\"Western Isles Health Board\",Calculations!$E$2=\"Shetland Islands Local Authority\",Calculations!$E$2=\"Eilean Siar Local Authority\"),OR($F106=1,$F106=5)),0,new_yllv2(VALUE(LEFT(Options!$B$14,2)),$C106,$D106,$E106,$F106,2016,$I106/10,1,$H106/10,$G106*$H106/10,RateRatios_airpollution!$C106)*10))","v":2346.5361388910001},{"$f":"IF(AND(OR(Calculations!$E$2=\"Orkney Health Board\",Calculations!$E$2=\"Orkney Islands Local Authority\"),$F106=1),0,IF(AND(OR(Calculations!$E$2=\"Shetland Health Board\",Calculations!$E$2=\"Western Isles Health Board\",Calculations!$E$2=\"Shetland Islands Local Authority\",Calculations!$E$2=\"Eilean Siar Local Authority\"),OR($F106=1,$F106=5)),0,new_yllv2(VALUE(LEFT(Options!$B$14,2)),$C106,$D106,$E106,$F106,2016,$I106/10+$J106/10,1,$H106/10,$G106*$H106/10,RateRatios_airpollution!$C106)*10))","v":2346.50398963},{"$f":"IF(AND(OR(Calculations!$E$2=\"Orkney Health Board\",Calculations!$E$2=\"Orkney Islands Local Authority\"),$F106=1),0,IF(AND(OR(Calculations!$E$2=\"Shetland Health Board\",Calculations!$E$2=\"Western Isles Health Board\",Calculations!$E$2=\"Shetland Islands Local Authority\",Calculations!$E$2=\"Eilean Siar Local Authority\"),OR($F106=1,$F106=5)),0,hosp_count(VALUE(LEFT(Options!$B$14,2)),$C106,$E106,$F106,2016,$I106/10,1,$H106/10,$G106*$H106/10, RateRatios_airpollution!$D106, RateRatios_airpollution!$C106)*10))","v":7177.9805397339996},{"$f":"IF(AND(OR(Calculations!$E$2=\"Orkney Health Board\",Calculations!$E$2=\"Orkney Islands Local Authority\"),$F106=1),0,IF(AND(OR(Calculations!$E$2=\"Shetland Health Board\",Calculations!$E$2=\"Western Isles Health Board\",Calculations!$E$2=\"Shetland Islands Local Authority\",Calculations!$E$2=\"Eilean Siar Local Authority\"),OR($F106=1,$F106=5)),0,hosp_count(VALUE(LEFT(Options!$B$14,2)),$C106,$E106,$F106,2016,$I106/10+$J106/10,1,$H106/10,$G106*$H106/10, RateRatios_airpollution!$D106, RateRatios_airpollution!$C106)*10))","v":7177.7948688659999},{"$f":"IF(AND(OR(Calculations!$E$2=\"Orkney Health Board\",Calculations!$E$2=\"Orkney Islands Local Authority\"),$F106=1),0,IF(AND(OR(Calculations!$E$2=\"Shetland Health Board\",Calculations!$E$2=\"Western Isles Health Board\",Calculations!$E$2=\"Shetland Islands Local Authority\",Calculations!$E$2=\"Eilean Siar Local Authority\"),OR($F106=1,$F106=5)),0,prem_mort(VALUE(LEFT(Options!$B$14,2)),$C106,$E106,$F106,2016,$I106/10,1,$H106/10,$G106*$H106/10,RateRatios_airpollution!$C106)*10))","v":59.814836076000006},{"$f":"IF(AND(OR(Calculations!$E$2=\"Orkney Health Board\",Calculations!$E$2=\"Orkney Islands Local Authority\"),$F106=1),0,IF(AND(OR(Calculations!$E$2=\"Shetland Health Board\",Calculations!$E$2=\"Western Isles Health Board\",Calculations!$E$2=\"Shetland Islands Local Authority\",Calculations!$E$2=\"Eilean Siar Local Authority\"),OR($F106=1,$F106=5)),0,prem_mort(VALUE(LEFT(Options!$B$14,2)),$C106,$E106,$F106,2016,$I106/10+$J106/10,1,$H106/10,$G106*$H106/10,RateRatios_airpollution!$C106)*10))","v":59.814016569000003},null,{"$f":"IF(AND(OR(Calculations!$E$2=\"Orkney Health Board\",Calculations!$E$2=\"Orkney Islands Local Authority\"),$F106=1),0,IF(AND(OR(Calculations!$E$2=\"Shetland Health Board\",Calculations!$E$2=\"Western Isles Health Board\",Calculations!$E$2=\"Shetland Islands Local Authority\",Calculations!$E$2=\"Eilean Siar Local Authority\"),OR($F106=1,$F106=5)),0,new_ci(VALUE(LEFT(Options!$B$14,2)),$C106,$E106,$F106,2016,$I106/10,1,$H106/10,$G106*$H106/10,RateRatios_airpollution!$E106)*10))","v":59.814836076000006},{"$f":"IF(AND(OR(Calculations!$E$2=\"Orkney Health Board\",Calculations!$E$2=\"Orkney Islands Local Authority\"),$F106=1),0,IF(AND(OR(Calculations!$E$2=\"Shetland Health Board\",Calculations!$E$2=\"Western Isles Health Board\",Calculations!$E$2=\"Shetland Islands Local Authority\",Calculations!$E$2=\"Eilean Siar Local Authority\"),OR($F106=1,$F106=5)),0,new_ci(VALUE(LEFT(Options!$B$14,2)),$C106,$E106,$F106,2016,$I106/10+$J106/10,1,$H106/10,$G106*$H106/10,RateRatios_airpollution!$E106)*10))","v":59.814464145999999},{"$f":"IF(AND(OR(Calculations!$E$2=\"Orkney Health Board\",Calculations!$E$2=\"Orkney Islands Local Authority\"),$F106=1),0,IF(AND(OR(Calculations!$E$2=\"Shetland Health Board\",Calculations!$E$2=\"Western Isles Health Board\",Calculations!$E$2=\"Shetland Islands Local Authority\",Calculations!$E$2=\"Eilean Siar Local Authority\"),OR($F106=1,$F106=5)),0,new_yllv2(VALUE(LEFT(Options!$B$14,2)),$C106,$D106,$E106,$F106,2016,$I106/10,1,$H106/10,$G106*$H106/10,RateRatios_airpollution!$E106)*10))","v":2346.5361388910001},{"$f":"IF(AND(OR(Calculations!$E$2=\"Orkney Health Board\",Calculations!$E$2=\"Orkney Islands Local Authority\"),$F106=1),0,IF(AND(OR(Calculations!$E$2=\"Shetland Health Board\",Calculations!$E$2=\"Western Isles Health Board\",Calculations!$E$2=\"Shetland Islands Local Authority\",Calculations!$E$2=\"Eilean Siar Local Authority\"),OR($F106=1,$F106=5)),0,new_yllv2(VALUE(LEFT(Options!$B$14,2)),$C106,$D106,$E106,$F106,2016,$I106/10+$J106/10,1,$H106/10,$G106*$H106/10,RateRatios_airpollution!$E106)*10))","v":2346.5215480769998},{"$f":"IF(AND(OR(Calculations!$E$2=\"Orkney Health Board\",Calculations!$E$2=\"Orkney Islands Local Authority\"),$F106=1),0,IF(AND(OR(Calculations!$E$2=\"Shetland Health Board\",Calculations!$E$2=\"Western Isles Health Board\",Calculations!$E$2=\"Shetland Islands Local Authority\",Calculations!$E$2=\"Eilean Siar Local Authority\"),OR($F106=1,$F106=5)),0,hosp_count(VALUE(LEFT(Options!$B$14,2)),$C106,$E106,$F106,2016,$I106/10,1,$H106/10,$G106*$H106/10, RateRatios_airpollution!$F106, RateRatios_airpollution!$E106)*10))","v":7177.9805397339996},{"$f":"IF(AND(OR(Calculations!$E$2=\"Orkney Health Board\",Calculations!$E$2=\"Orkney Islands Local Authority\"),$F106=1),0,IF(AND(OR(Calculations!$E$2=\"Shetland Health Board\",Calculations!$E$2=\"Western Isles Health Board\",Calculations!$E$2=\"Shetland Islands Local Authority\",Calculations!$E$2=\"Eilean Siar Local Authority\"),OR($F106=1,$F106=5)),0,hosp_count(VALUE(LEFT(Options!$B$14,2)),$C106,$E106,$F106,2016,$I106/10+$J106/10,1,$H106/10,$G106*$H106/10, RateRatios_airpollution!$F106, RateRatios_airpollution!$E106)*10))","v":7177.9805397339996},{"$f":"IF(AND(OR(Calculations!$E$2=\"Orkney Health Board\",Calculations!$E$2=\"Orkney Islands Local Authority\"),$F106=1),0,IF(AND(OR(Calculations!$E$2=\"Shetland Health Board\",Calculations!$E$2=\"Western Isles Health Board\",Calculations!$E$2=\"Shetland Islands Local Authority\",Calculations!$E$2=\"Eilean Siar Local Authority\"),OR($F106=1,$F106=5)),0,prem_mort(VALUE(LEFT(Options!$B$14,2)),$C106,$E106,$F106,2016,$I106/10,1,$H106/10,$G106*$H106/10,RateRatios_airpollution!$E106)*10))","v":59.814836076000006},{"$f":"IF(AND(OR(Calculations!$E$2=\"Orkney Health Board\",Calculations!$E$2=\"Orkney Islands Local Authority\"),$F106=1),0,IF(AND(OR(Calculations!$E$2=\"Shetland Health Board\",Calculations!$E$2=\"Western Isles Health Board\",Calculations!$E$2=\"Shetland Islands Local Authority\",Calculations!$E$2=\"Eilean Siar Local Authority\"),OR($F106=1,$F106=5)),0,prem_mort(VALUE(LEFT(Options!$B$14,2)),$C106,$E106,$F106,2016,$I106/10+$J106/10,1,$H106/10,$G106*$H106/10,RateRatios_airpollution!$E106)*10))","v":59.814464145999999},59.814836076000006,59.798624546999996,2346.5361388910001,2345.900160577,7177.9805397339996,7175.9907788390001,59.814836076000006,59.798624546999996,178.86141999880391,178.81294344536809,7016.7338642754621,7014.8321289904916,21463.969080001196,21458.019193944743,178.86141999880391,178.81294344536809,1252029.9399916274,1251690.6041175767,49117137.049928233,49103824.902933441,150247783.56000838,150206134.35761321,1252029.9399916274,1251690.6041175767,7000]
[null,"Female 45-49",47.025772000000003,82.585769999999997,"female",2,1,{"$f":"HLOOKUP(Calculations!$E$2,'Population 2016'!$C$3:$BC$249,'Population 2016'!BD107,FALSE)","v":39170},0,{"$f":"HLOOKUP(Calculations!$E$2,Pop2016_in_settlements!$C$3:$BC$249,Pop2016_in_settlements!$BD107,FALSE)","v":25001},{"$f":"IF(AND(OR(Calculations!$E$2=\"Orkney Health Board\",Calculations!$E$2=\"Orkney Islands Local Authority\"),$F107=1),0,IF(AND(OR(Calculations!$E$2=\"Shetland Health Board\",Calculations!$E$2=\"Western Isles Health Board\",Calculations!$E$2=\"Shetland Islands Local Authority\",Calculations!$E$2=\"Eilean Siar Local Authority\"),OR($F107=1,$F107=5)),0,new_ci(VALUE(LEFT(Options!$B$14,2)),$C107,$E107,$F107,2016,$I107/10,1,$H107/10,$G107*$H107/10,RateRatios_accidents!$B$5)*10))","v":106.672275969},{"$f":"IF(AND(OR(Calculations!$E$2=\"Orkney Health Board\",Calculations!$E$2=\"Orkney Islands Local Authority\"),$F107=1),0,IF(AND(OR(Calculations!$E$2=\"Shetland Health Board\",Calculations!$E$2=\"Western Isles Health Board\",Calculations!$E$2=\"Shetland Islands Local Authority\",Calculations!$E$2=\"Eilean Siar Local Authority\"),OR($F107=1,$F107=5)),0,new_ci(VALUE(LEFT(Options!$B$14,2)),$C107,$E107,$F107,2016,$I107/10+$J107/10,1,$H107/10,$G107*$H107/10,RateRatios_accidents!$B$5)*10))","v":106.645079881},{"$f":"IF(AND(OR(Calculations!$E$2=\"Orkney Health Board\",Calculations!$E$2=\"Orkney Islands Local Authority\"),$F107=1),0,IF(AND(OR(Calculations!$E$2=\"Shetland Health Board\",Calculations!$E$2=\"Western Isles Health Board\",Calculations!$E$2=\"Shetland Islands Local Authority\",Calculations!$E$2=\"Eilean Siar Local Authority\"),OR($F107=1,$F107=5)),0,new_yllv2(VALUE(LEFT(Options!$B$14,2)),$C107,$D107,$E107,$F107,2016,$I107/10,1,$H107/10,$G107*$H107/10,RateRatios_accidents!$B$5)*10))","v":3686.5936441439999},{"$f":"IF(AND(OR(Calculations!$E$2=\"Orkney Health Board\",Calculations!$E$2=\"Orkney Islands Local Authority\"),$F107=1),0,IF(AND(OR(Calculations!$E$2=\"Shetland Health Board\",Calculations!$E$2=\"Western Isles Health Board\",Calculations!$E$2=\"Shetland Islands Local Authority\",Calculations!$E$2=\"Eilean Siar Local Authority\"),OR($F107=1,$F107=5)),0,new_yllv2(VALUE(LEFT(Options!$B$14,2)),$C107,$D107,$E107,$F107,2016,$I107/10+$J107/10,1,$H107/10,$G107*$H107/10,RateRatios_accidents!$B$5)*10))","v":3685.6537473970002},{"$f":"IF(AND(OR(Calculations!$E$2=\"Orkney Health Board\",Calculations!$E$2=\"Orkney Islands Local Authority\"),$F107=1),0,IF(AND(OR(Calculations!$E$2=\"Shetland Health Board\",Calculations!$E$2=\"Western Isles Health Board\",Calculations!$E$2=\"Shetland Islands Local Authority\",Calculations!$E$2=\"Eilean Siar Local Authority\"),OR($F107=1,$F107=5)),0,hosp_count(VALUE(LEFT(Options!$B$14,2)),$C107,$E107,$F107,2016,$I107/10,1,$H107/10,$G107*$H107/10, RateRatios_accidents!$B$4, RateRatios_accidents!$B$5)*10))","v":9521.8151117819998},{"$f":"IF(AND(OR(Calculations!$E$2=\"Orkney Health Board\",Calculations!$E$2=\"Orkney Islands Local Authority\"),$F107=1),0,IF(AND(OR(Calculations!$E$2=\"Shetland Health Board\",Calculations!$E$2=\"Western Isles Health Board\",Calculations!$E$2=\"Shetland Islands Local Authority\",Calculations!$E$2=\"Eilean Siar Local Authority\"),OR($F107=1,$F107=5)),0,hosp_count(VALUE(LEFT(Options!$B$14,2)),$C107,$E107,$F107,2016,$I107/10+$J107/10,1,$H107/10,$G107*$H107/10, RateRatios_accidents!$B$4, RateRatios_accidents!$B$5)*10))","v":9519.3841195460009},{"$f":"IF(AND(OR(Calculations!$E$2=\"Orkney Health Board\",Calculations!$E$2=\"Orkney Islands Local Authority\"),$F107=1),0,IF(AND(OR(Calculations!$E$2=\"Shetland Health Board\",Calculations!$E$2=\"Western Isles Health Board\",Calculations!$E$2=\"Shetland Islands Local Authority\",Calculations!$E$2=\"Eilean Siar Local Authority\"),OR($F107=1,$F107=5)),0,prem_mort(VALUE(LEFT(Options!$B$14,2)),$C107,$E107,$F107,2016,$I107/10,1,$H107/10,$G107*$H107/10,RateRatios_accidents!$B$5)*10))","v":106.672275969},{"$f":"IF(AND(OR(Calculations!$E$2=\"Orkney Health Board\",Calculations!$E$2=\"Orkney Islands Local Authority\"),$F107=1),0,IF(AND(OR(Calculations!$E$2=\"Shetland Health Board\",Calculations!$E$2=\"Western Isles Health Board\",Calculations!$E$2=\"Shetland Islands Local Authority\",Calculations!$E$2=\"Eilean Siar Local Authority\"),OR($F107=1,$F107=5)),0,prem_mort(VALUE(LEFT(Options!$B$14,2)),$C107,$E107,$F107,2016,$I107/10+$J107/10,1,$H107/10,$G107*$H107/10,RateRatios_accidents!$B$5)*10))","v":106.645079881},null,{"$f":"IF(AND(OR(Calculations!$E$2=\"Orkney Health Board\",Calculations!$E$2=\"Orkney Islands Local Authority\"),$F107=1),0,IF(AND(OR(Calculations!$E$2=\"Shetland Health Board\",Calculations!$E$2=\"Western Isles Health Board\",Calculations!$E$2=\"Shetland Islands Local Authority\",Calculations!$E$2=\"Eilean Siar Local Authority\"),OR($F107=1,$F107=5)),0,new_ci(VALUE(LEFT(Options!$B$14,2)),$C107,$E107,$F107,2016,$I107/10,1,$H107/10,$G107*$H107/10,RateRatios_airpollution!$C107)*10))","v":106.672275969},{"$f":"IF(AND(OR(Calculations!$E$2=\"Orkney Health Board\",Calculations!$E$2=\"Orkney Islands Local Authority\"),$F107=1),0,IF(AND(OR(Calculations!$E$2=\"Shetland Health Board\",Calculations!$E$2=\"Western Isles Health Board\",Calculations!$E$2=\"Shetland Islands Local Authority\",Calculations!$E$2=\"Eilean Siar Local Authority\"),OR($F107=1,$F107=5)),0,new_ci(VALUE(LEFT(Options!$B$14,2)),$C107,$E107,$F107,2016,$I107/10+$J107/10,1,$H107/10,$G107*$H107/10,RateRatios_airpollution!$C107)*10))","v":106.67083841199999},{"$f":"IF(AND(OR(Calculations!$E$2=\"Orkney Health Board\",Calculations!$E$2=\"Orkney Islands Local Authority\"),$F107=1),0,IF(AND(OR(Calculations!$E$2=\"Shetland Health Board\",Calculations!$E$2=\"Western Isles Health Board\",Calculations!$E$2=\"Shetland Islands Local Authority\",Calculations!$E$2=\"Eilean Siar Local Authority\"),OR($F107=1,$F107=5)),0,new_yllv2(VALUE(LEFT(Options!$B$14,2)),$C107,$D107,$E107,$F107,2016,$I107/10,1,$H107/10,$G107*$H107/10,RateRatios_airpollution!$C107)*10))","v":3686.5936441439999},{"$f":"IF(AND(OR(Calculations!$E$2=\"Orkney Health Board\",Calculations!$E$2=\"Orkney Islands Local Authority\"),$F107=1),0,IF(AND(OR(Calculations!$E$2=\"Shetland Health Board\",Calculations!$E$2=\"Western Isles Health Board\",Calculations!$E$2=\"Shetland Islands Local Authority\",Calculations!$E$2=\"Eilean Siar Local Authority\"),OR($F107=1,$F107=5)),0,new_yllv2(VALUE(LEFT(Options!$B$14,2)),$C107,$D107,$E107,$F107,2016,$I107/10+$J107/10,1,$H107/10,$G107*$H107/10,RateRatios_airpollution!$C107)*10))","v":3686.5439621770001},{"$f":"IF(AND(OR(Calculations!$E$2=\"Orkney Health Board\",Calculations!$E$2=\"Orkney Islands Local Authority\"),$F107=1),0,IF(AND(OR(Calculations!$E$2=\"Shetland Health Board\",Calculations!$E$2=\"Western Isles Health Board\",Calculations!$E$2=\"Shetland Islands Local Authority\",Calculations!$E$2=\"Eilean Siar Local Authority\"),OR($F107=1,$F107=5)),0,hosp_count(VALUE(LEFT(Options!$B$14,2)),$C107,$E107,$F107,2016,$I107/10,1,$H107/10,$G107*$H107/10, RateRatios_airpollution!$D107, RateRatios_airpollution!$C107)*10))","v":9521.8151117819998},{"$f":"IF(AND(OR(Calculations!$E$2=\"Orkney Health Board\",Calculations!$E$2=\"Orkney Islands Local Authority\"),$F107=1),0,IF(AND(OR(Calculations!$E$2=\"Shetland Health Board\",Calculations!$E$2=\"Western Isles Health Board\",Calculations!$E$2=\"Shetland Islands Local Authority\",Calculations!$E$2=\"Eilean Siar Local Authority\"),OR($F107=1,$F107=5)),0,hosp_count(VALUE(LEFT(Options!$B$14,2)),$C107,$E107,$F107,2016,$I107/10+$J107/10,1,$H107/10,$G107*$H107/10, RateRatios_airpollution!$D107, RateRatios_airpollution!$C107)*10))","v":9521.5729145940004},{"$f":"IF(AND(OR(Calculations!$E$2=\"Orkney Health Board\",Calculations!$E$2=\"Orkney Islands Local Authority\"),$F107=1),0,IF(AND(OR(Calculations!$E$2=\"Shetland Health Board\",Calculations!$E$2=\"Western Isles Health Board\",Calculations!$E$2=\"Shetland Islands Local Authority\",Calculations!$E$2=\"Eilean Siar Local Authority\"),OR($F107=1,$F107=5)),0,prem_mort(VALUE(LEFT(Options!$B$14,2)),$C107,$E107,$F107,2016,$I107/10,1,$H107/10,$G107*$H107/10,RateRatios_airpollution!$C107)*10))","v":106.672275969},{"$f":"IF(AND(OR(Calculations!$E$2=\"Orkney Health Board\",Calculations!$E$2=\"Orkney Islands Local Authority\"),$F107=1),0,IF(AND(OR(Calculations!$E$2=\"Shetland Health Board\",Calculations!$E$2=\"Western Isles Health Board\",Calculations!$E$2=\"Shetland Islands Local Authority\",Calculations!$E$2=\"Eilean Siar Local Authority\"),OR($F107=1,$F107=5)),0,prem_mort(VALUE(LEFT(Options!$B$14,2)),$C107,$E107,$F107,2016,$I107/10+$J107/10,1,$H107/10,$G107*$H107/10,RateRatios_airpollution!$C107)*10))","v":106.67083841199999},null,{"$f":"IF(AND(OR(Calculations!$E$2=\"Orkney Health Board\",Calculations!$E$2=\"Orkney Islands Local Authority\"),$F107=1),0,IF(AND(OR(Calculations!$E$2=\"Shetland Health Board\",Calculations!$E$2=\"Western Isles Health Board\",Calculations!$E$2=\"Shetland Islands Local Authority\",Calculations!$E$2=\"Eilean Siar Local Authority\"),OR($F107=1,$F107=5)),0,new_ci(VALUE(LEFT(Options!$B$14,2)),$C107,$E107,$F107,2016,$I107/10,1,$H107/10,$G107*$H107/10,RateRatios_airpollution!$E107)*10))","v":106.672275969},{"$f":"IF(AND(OR(Calculations!$E$2=\"Orkney Health Board\",Calculations!$E$2=\"Orkney Islands Local Authority\"),$F107=1),0,IF(AND(OR(Calculations!$E$2=\"Shetland Health Board\",Calculations!$E$2=\"Western Isles Health Board\",Calculations!$E$2=\"Shetland Islands Local Authority\",Calculations!$E$2=\"Eilean Siar Local Authority\"),OR($F107=1,$F107=5)),0,new_ci(VALUE(LEFT(Options!$B$14,2)),$C107,$E107,$F107,2016,$I107/10+$J107/10,1,$H107/10,$G107*$H107/10,RateRatios_airpollution!$E107)*10))","v":106.671618443},{"$f":"IF(AND(OR(Calculations!$E$2=\"Orkney Health Board\",Calculations!$E$2=\"Orkney Islands Local Authority\"),$F107=1),0,IF(AND(OR(Calculations!$E$2=\"Shetland Health Board\",Calculations!$E$2=\"Western Isles Health Board\",Calculations!$E$2=\"Shetland Islands Local Authority\",Calculations!$E$2=\"Eilean Siar Local Authority\"),OR($F107=1,$F107=5)),0,new_yllv2(VALUE(LEFT(Options!$B$14,2)),$C107,$D107,$E107,$F107,2016,$I107/10,1,$H107/10,$G107*$H107/10,RateRatios_airpollution!$E107)*10))","v":3686.5936441439999},{"$f":"IF(AND(OR(Calculations!$E$2=\"Orkney Health Board\",Calculations!$E$2=\"Orkney Islands Local Authority\"),$F107=1),0,IF(AND(OR(Calculations!$E$2=\"Shetland Health Board\",Calculations!$E$2=\"Western Isles Health Board\",Calculations!$E$2=\"Shetland Islands Local Authority\",Calculations!$E$2=\"Eilean Siar Local Authority\"),OR($F107=1,$F107=5)),0,new_yllv2(VALUE(LEFT(Options!$B$14,2)),$C107,$D107,$E107,$F107,2016,$I107/10+$J107/10,1,$H107/10,$G107*$H107/10,RateRatios_airpollution!$E107)*10))","v":3686.5709200470001},{"$f":"IF(AND(OR(Calculations!$E$2=\"Orkney Health Board\",Calculations!$E$2=\"Orkney Islands Local Authority\"),$F107=1),0,IF(AND(OR(Calculations!$E$2=\"Shetland Health Board\",Calculations!$E$2=\"Western Isles Health Board\",Calculations!$E$2=\"Shetland Islands Local Authority\",Calculations!$E$2=\"Eilean Siar Local Authority\"),OR($F107=1,$F107=5)),0,hosp_count(VALUE(LEFT(Options!$B$14,2)),$C107,$E107,$F107,2016,$I107/10,1,$H107/10,$G107*$H107/10, RateRatios_airpollution!$F107, RateRatios_airpollution!$E107)*10))","v":9521.8151117819998},{"$f":"IF(AND(OR(Calculations!$E$2=\"Orkney Health Board\",Calculations!$E$2=\"Orkney Islands Local Authority\"),$F107=1),0,IF(AND(OR(Calculations!$E$2=\"Shetland Health Board\",Calculations!$E$2=\"Western Isles Health Board\",Calculations!$E$2=\"Shetland Islands Local Authority\",Calculations!$E$2=\"Eilean Siar Local Authority\"),OR($F107=1,$F107=5)),0,hosp_count(VALUE(LEFT(Options!$B$14,2)),$C107,$E107,$F107,2016,$I107/10+$J107/10,1,$H107/10,$G107*$H107/10, RateRatios_airpollution!$F107, RateRatios_airpollution!$E107)*10))","v":9521.8151117819998},{"$f":"IF(AND(OR(Calculations!$E$2=\"Orkney Health Board\",Calculations!$E$2=\"Orkney Islands Local Authority\"),$F107=1),0,IF(AND(OR(Calculations!$E$2=\"Shetland Health Board\",Calculations!$E$2=\"Western Isles Health Board\",Calculations!$E$2=\"Shetland Islands Local Authority\",Calculations!$E$2=\"Eilean Siar Local Authority\"),OR($F107=1,$F107=5)),0,prem_mort(VALUE(LEFT(Options!$B$14,2)),$C107,$E107,$F107,2016,$I107/10,1,$H107/10,$G107*$H107/10,RateRatios_airpollution!$E107)*10))","v":106.672275969},{"$f":"IF(AND(OR(Calculations!$E$2=\"Orkney Health Board\",Calculations!$E$2=\"Orkney Islands Local Authority\"),$F107=1),0,IF(AND(OR(Calculations!$E$2=\"Shetland Health Board\",Calculations!$E$2=\"Western Isles Health Board\",Calculations!$E$2=\"Shetland Islands Local Authority\",Calculations!$E$2=\"Eilean Siar Local Authority\"),OR($F107=1,$F107=5)),0,prem_mort(VALUE(LEFT(Options!$B$14,2)),$C107,$E107,$F107,2016,$I107/10+$J107/10,1,$H107/10,$G107*$H107/10,RateRatios_airpollution!$E107)*10))","v":106.671618443},106.672275969,106.642984798,3686.5936441439999,3685.5813413330006,9521.8151117819998,9519.1419223580015,106.672275969,106.642984798,272.33157,272.25679039571105,9411.7785145366342,9409.1941315624226,24308.94846,24302.123876328827,272.33157,272.25679039571105,1906320.99,1905797.5327699773,65882449.601756439,65864358.920936957,170162639.22,170114867.13430178,1906320.99,1905797.5327699773,7000]
[null,"Female 50-54",51.990825999999998,82.980829999999997,"female",2,1,{"$f":"HLOOKUP(Calculations!$E$2,'Population 2016'!$C$3:$BC$249,'Population 2016'!BD108,FALSE)","v":40518},0,{"$f":"HLOOKUP(Calculations!$E$2,Pop2016_in_settlements!$C$3:$BC$249,Pop2016_in_settlements!$BD108,FALSE)","v":25514},{"$f":"IF(AND(OR(Calculations!$E$2=\"Orkney Health Board\",Calculations!$E$2=\"Orkney Islands Local Authority\"),$F108=1),0,IF(AND(OR(Calculations!$E$2=\"Shetland Health Board\",Calculations!$E$2=\"Western Isles Health Board\",Calculations!$E$2=\"Shetland Islands Local Authority\",Calculations!$E$2=\"Eilean Siar Local Authority\"),OR($F108=1,$F108=5)),0,new_ci(VALUE(LEFT(Options!$B$14,2)),$C108,$E108,$F108,2016,$I108/10,1,$H108/10,$G108*$H108/10,RateRatios_accidents!$B$5)*10))","v":168.20437498899997},{"$f":"IF(AND(OR(Calculations!$E$2=\"Orkney Health Board\",Calculations!$E$2=\"Orkney Islands Local Authority\"),$F108=1),0,IF(AND(OR(Calculations!$E$2=\"Shetland Health Board\",Calculations!$E$2=\"Western Isles Health Board\",Calculations!$E$2=\"Shetland Islands Local Authority\",Calculations!$E$2=\"Eilean Siar Local Authority\"),OR($F108=1,$F108=5)),0,new_ci(VALUE(LEFT(Options!$B$14,2)),$C108,$E108,$F108,2016,$I108/10+$J108/10,1,$H108/10,$G108*$H108/10,RateRatios_accidents!$B$5)*10))","v":168.16209573999998},{"$f":"IF(AND(OR(Calculations!$E$2=\"Orkney Health Board\",Calculations!$E$2=\"Orkney Islands Local Authority\"),$F108=1),0,IF(AND(OR(Calculations!$E$2=\"Shetland Health Board\",Calculations!$E$2=\"Western Isles Health Board\",Calculations!$E$2=\"Shetland Islands Local Authority\",Calculations!$E$2=\"Eilean Siar Local Authority\"),OR($F108=1,$F108=5)),0,new_yllv2(VALUE(LEFT(Options!$B$14,2)),$C108,$D108,$E108,$F108,2016,$I108/10,1,$H108/10,$G108*$H108/10,RateRatios_accidents!$B$5)*10))","v":5044.4498787379998},{"$f":"IF(AND(OR(Calculations!$E$2=\"Orkney Health Board\",Calculations!$E$2=\"Orkney Islands Local Authority\"),$F108=1),0,IF(AND(OR(Calculations!$E$2=\"Shetland Health Board\",Calculations!$E$2=\"Western Isles Health Board\",Calculations!$E$2=\"Shetland Islands Local Authority\",Calculations!$E$2=\"Eilean Siar Local Authority\"),OR($F108=1,$F108=5)),0,new_yllv2(VALUE(LEFT(Options!$B$14,2)),$C108,$D108,$E108,$F108,2016,$I108/10+$J108/10,1,$H108/10,$G108*$H108/10,RateRatios_accidents!$B$5)*10))","v":5043.1819238909993},{"$f":"IF(AND(OR(Calculations!$E$2=\"Orkney Health Board\",Calculations!$E$2=\"Orkney Islands Local Authority\"),$F108=1),0,IF(AND(OR(Calculations!$E$2=\"Shetland Health Board\",Calculations!$E$2=\"Western Isles Health Board\",Calculations!$E$2=\"Shetland Islands Local Authority\",Calculations!$E$2=\"Eilean Siar Local Authority\"),OR($F108=1,$F108=5)),0,hosp_count(VALUE(LEFT(Options!$B$14,2)),$C108,$E108,$F108,2016,$I108/10,1,$H108/10,$G108*$H108/10, RateRatios_accidents!$B$4, RateRatios_accidents!$B$5)*10))","v":11159.711381116998},{"$f":"IF(AND(OR(Calculations!$E$2=\"Orkney Health Board\",Calculations!$E$2=\"Orkney Islands Local Authority\"),$F108=1),0,IF(AND(OR(Calculations!$E$2=\"Shetland Health Board\",Calculations!$E$2=\"Western Isles Health Board\",Calculations!$E$2=\"Shetland Islands Local Authority\",Calculations!$E$2=\"Eilean Siar Local Authority\"),OR($F108=1,$F108=5)),0,hosp_count(VALUE(LEFT(Options!$B$14,2)),$C108,$E108,$F108,2016,$I108/10+$J108/10,1,$H108/10,$G108*$H108/10, RateRatios_accidents!$B$4, RateRatios_accidents!$B$5)*10))","v":11156.900493531},{"$f":"IF(AND(OR(Calculations!$E$2=\"Orkney Health Board\",Calculations!$E$2=\"Orkney Islands Local Authority\"),$F108=1),0,IF(AND(OR(Calculations!$E$2=\"Shetland Health Board\",Calculations!$E$2=\"Western Isles Health Board\",Calculations!$E$2=\"Shetland Islands Local Authority\",Calculations!$E$2=\"Eilean Siar Local Authority\"),OR($F108=1,$F108=5)),0,prem_mort(VALUE(LEFT(Options!$B$14,2)),$C108,$E108,$F108,2016,$I108/10,1,$H108/10,$G108*$H108/10,RateRatios_accidents!$B$5)*10))","v":168.20437498899997},{"$f":"IF(AND(OR(Calculations!$E$2=\"Orkney Health Board\",Calculations!$E$2=\"Orkney Islands Local Authority\"),$F108=1),0,IF(AND(OR(Calculations!$E$2=\"Shetland Health Board\",Calculations!$E$2=\"Western Isles Health Board\",Calculations!$E$2=\"Shetland Islands Local Authority\",Calculations!$E$2=\"Eilean Siar Local Authority\"),OR($F108=1,$F108=5)),0,prem_mort(VALUE(LEFT(Options!$B$14,2)),$C108,$E108,$F108,2016,$I108/10+$J108/10,1,$H108/10,$G108*$H108/10,RateRatios_accidents!$B$5)*10))","v":168.16209573999998},null,{"$f":"IF(AND(OR(Calculations!$E$2=\"Orkney Health Board\",Calculations!$E$2=\"Orkney Islands Local Authority\"),$F108=1),0,IF(AND(OR(Calculations!$E$2=\"Shetland Health Board\",Calculations!$E$2=\"Western Isles Health Board\",Calculations!$E$2=\"Shetland Islands Local Authority\",Calculations!$E$2=\"Eilean Siar Local Authority\"),OR($F108=1,$F108=5)),0,new_ci(VALUE(LEFT(Options!$B$14,2)),$C108,$E108,$F108,2016,$I108/10,1,$H108/10,$G108*$H108/10,RateRatios_airpollution!$C108)*10))","v":168.20437498899997},{"$f":"IF(AND(OR(Calculations!$E$2=\"Orkney Health Board\",Calculations!$E$2=\"Orkney Islands Local Authority\"),$F108=1),0,IF(AND(OR(Calculations!$E$2=\"Shetland Health Board\",Calculations!$E$2=\"Western Isles Health Board\",Calculations!$E$2=\"Shetland Islands Local Authority\",Calculations!$E$2=\"Eilean Siar Local Authority\"),OR($F108=1,$F108=5)),0,new_ci(VALUE(LEFT(Options!$B$14,2)),$C108,$E108,$F108,2016,$I108/10+$J108/10,1,$H108/10,$G108*$H108/10,RateRatios_airpollution!$C108)*10))","v":168.20214761700001},{"$f":"IF(AND(OR(Calculations!$E$2=\"Orkney Health Board\",Calculations!$E$2=\"Orkney Islands Local Authority\"),$F108=1),0,IF(AND(OR(Calculations!$E$2=\"Shetland Health Board\",Calculations!$E$2=\"Western Isles Health Board\",Calculations!$E$2=\"Shetland Islands Local Authority\",Calculations!$E$2=\"Eilean Siar Local Authority\"),OR($F108=1,$F108=5)),0,new_yllv2(VALUE(LEFT(Options!$B$14,2)),$C108,$D108,$E108,$F108,2016,$I108/10,1,$H108/10,$G108*$H108/10,RateRatios_airpollution!$C108)*10))","v":5044.4498787379998},{"$f":"IF(AND(OR(Calculations!$E$2=\"Orkney Health Board\",Calculations!$E$2=\"Orkney Islands Local Authority\"),$F108=1),0,IF(AND(OR(Calculations!$E$2=\"Shetland Health Board\",Calculations!$E$2=\"Western Isles Health Board\",Calculations!$E$2=\"Shetland Islands Local Authority\",Calculations!$E$2=\"Eilean Siar Local Authority\"),OR($F108=1,$F108=5)),0,new_yllv2(VALUE(LEFT(Options!$B$14,2)),$C108,$D108,$E108,$F108,2016,$I108/10+$J108/10,1,$H108/10,$G108*$H108/10,RateRatios_airpollution!$C108)*10))","v":5044.3830798419995},{"$f":"IF(AND(OR(Calculations!$E$2=\"Orkney Health Board\",Calculations!$E$2=\"Orkney Islands Local Authority\"),$F108=1),0,IF(AND(OR(Calculations!$E$2=\"Shetland Health Board\",Calculations!$E$2=\"Western Isles Health Board\",Calculations!$E$2=\"Shetland Islands Local Authority\",Calculations!$E$2=\"Eilean Siar Local Authority\"),OR($F108=1,$F108=5)),0,hosp_count(VALUE(LEFT(Options!$B$14,2)),$C108,$E108,$F108,2016,$I108/10,1,$H108/10,$G108*$H108/10, RateRatios_airpollution!$D108, RateRatios_airpollution!$C108)*10))","v":11159.711381116998},{"$f":"IF(AND(OR(Calculations!$E$2=\"Orkney Health Board\",Calculations!$E$2=\"Orkney Islands Local Authority\"),$F108=1),0,IF(AND(OR(Calculations!$E$2=\"Shetland Health Board\",Calculations!$E$2=\"Western Isles Health Board\",Calculations!$E$2=\"Shetland Islands Local Authority\",Calculations!$E$2=\"Eilean Siar Local Authority\"),OR($F108=1,$F108=5)),0,hosp_count(VALUE(LEFT(Options!$B$14,2)),$C108,$E108,$F108,2016,$I108/10+$J108/10,1,$H108/10,$G108*$H108/10, RateRatios_airpollution!$D108, RateRatios_airpollution!$C108)*10))","v":11159.432324293},{"$f":"IF(AND(OR(Calculations!$E$2=\"Orkney Health Board\",Calculations!$E$2=\"Orkney Islands Local Authority\"),$F108=1),0,IF(AND(OR(Calculations!$E$2=\"Shetland Health Board\",Calculations!$E$2=\"Western Isles Health Board\",Calculations!$E$2=\"Shetland Islands Local Authority\",Calculations!$E$2=\"Eilean Siar Local Authority\"),OR($F108=1,$F108=5)),0,prem_mort(VALUE(LEFT(Options!$B$14,2)),$C108,$E108,$F108,2016,$I108/10,1,$H108/10,$G108*$H108/10,RateRatios_airpollution!$C108)*10))","v":168.20437498899997},{"$f":"IF(AND(OR(Calculations!$E$2=\"Orkney Health Board\",Calculations!$E$2=\"Orkney Islands Local Authority\"),$F108=1),0,IF(AND(OR(Calculations!$E$2=\"Shetland Health Board\",Calculations!$E$2=\"Western Isles Health Board\",Calculations!$E$2=\"Shetland Islands Local Authority\",Calculations!$E$2=\"Eilean Siar Local Authority\"),OR($F108=1,$F108=5)),0,prem_mort(VALUE(LEFT(Options!$B$14,2)),$C108,$E108,$F108,2016,$I108/10+$J108/10,1,$H108/10,$G108*$H108/10,RateRatios_airpollution!$C108)*10))","v":168.20214761700001},null,{"$f":"IF(AND(OR(Calculations!$E$2=\"Orkney Health Board\",Calculations!$E$2=\"Orkney Islands Local Authority\"),$F108=1),0,IF(AND(OR(Calculations!$E$2=\"Shetland Health Board\",Calculations!$E$2=\"Western Isles Health Board\",Calculations!$E$2=\"Shetland Islands Local Authority\",Calculations!$E$2=\"Eilean Siar Local Authority\"),OR($F108=1,$F108=5)),0,new_ci(VALUE(LEFT(Options!$B$14,2)),$C108,$E108,$F108,2016,$I108/10,1,$H108/10,$G108*$H108/10,RateRatios_airpollution!$E108)*10))","v":168.20437498899997},{"$f":"IF(AND(OR(Calculations!$E$2=\"Orkney Health Board\",Calculations!$E$2=\"Orkney Islands Local Authority\"),$F108=1),0,IF(AND(OR(Calculations!$E$2=\"Shetland Health Board\",Calculations!$E$2=\"Western Isles Health Board\",Calculations!$E$2=\"Shetland Islands Local Authority\",Calculations!$E$2=\"Eilean Siar Local Authority\"),OR($F108=1,$F108=5)),0,new_ci(VALUE(LEFT(Options!$B$14,2)),$C108,$E108,$F108,2016,$I108/10+$J108/10,1,$H108/10,$G108*$H108/10,RateRatios_airpollution!$E108)*10))","v":168.20334932600002},{"$f":"IF(AND(OR(Calculations!$E$2=\"Orkney Health Board\",Calculations!$E$2=\"Orkney Islands Local Authority\"),$F108=1),0,IF(AND(OR(Calculations!$E$2=\"Shetland Health Board\",Calculations!$E$2=\"Western Isles Health Board\",Calculations!$E$2=\"Shetland Islands Local Authority\",Calculations!$E$2=\"Eilean Siar Local Authority\"),OR($F108=1,$F108=5)),0,new_yllv2(VALUE(LEFT(Options!$B$14,2)),$C108,$D108,$E108,$F108,2016,$I108/10,1,$H108/10,$G108*$H108/10,RateRatios_airpollution!$E108)*10))","v":5044.4498787379998},{"$f":"IF(AND(OR(Calculations!$E$2=\"Orkney Health Board\",Calculations!$E$2=\"Orkney Islands Local Authority\"),$F108=1),0,IF(AND(OR(Calculations!$E$2=\"Shetland Health Board\",Calculations!$E$2=\"Western Isles Health Board\",Calculations!$E$2=\"Shetland Islands Local Authority\",Calculations!$E$2=\"Eilean Siar Local Authority\"),OR($F108=1,$F108=5)),0,new_yllv2(VALUE(LEFT(Options!$B$14,2)),$C108,$D108,$E108,$F108,2016,$I108/10+$J108/10,1,$H108/10,$G108*$H108/10,RateRatios_airpollution!$E108)*10))","v":5044.4191191},{"$f":"IF(AND(OR(Calculations!$E$2=\"Orkney Health Board\",Calculations!$E$2=\"Orkney Islands Local Authority\"),$F108=1),0,IF(AND(OR(Calculations!$E$2=\"Shetland Health Board\",Calculations!$E$2=\"Western Isles Health Board\",Calculations!$E$2=\"Shetland Islands Local Authority\",Calculations!$E$2=\"Eilean Siar Local Authority\"),OR($F108=1,$F108=5)),0,hosp_count(VALUE(LEFT(Options!$B$14,2)),$C108,$E108,$F108,2016,$I108/10,1,$H108/10,$G108*$H108/10, RateRatios_airpollution!$F108, RateRatios_airpollution!$E108)*10))","v":11159.711381116998},{"$f":"IF(AND(OR(Calculations!$E$2=\"Orkney Health Board\",Calculations!$E$2=\"Orkney Islands Local Authority\"),$F108=1),0,IF(AND(OR(Calculations!$E$2=\"Shetland Health Board\",Calculations!$E$2=\"Western Isles Health Board\",Calculations!$E$2=\"Shetland Islands Local Authority\",Calculations!$E$2=\"Eilean Siar Local Authority\"),OR($F108=1,$F108=5)),0,hosp_count(VALUE(LEFT(Options!$B$14,2)),$C108,$E108,$F108,2016,$I108/10+$J108/10,1,$H108/10,$G108*$H108/10, RateRatios_airpollution!$F108, RateRatios_airpollution!$E108)*10))","v":11159.711381116998},{"$f":"IF(AND(OR(Calculations!$E$2=\"Orkney Health Board\",Calculations!$E$2=\"Orkney Islands Local Authority\"),$F108=1),0,IF(AND(OR(Calculations!$E$2=\"Shetland Health Board\",Calculations!$E$2=\"Western Isles Health Board\",Calculations!$E$2=\"Shetland Islands Local Authority\",Calculations!$E$2=\"Eilean Siar Local Authority\"),OR($F108=1,$F108=5)),0,prem_mort(VALUE(LEFT(Options!$B$14,2)),$C108,$E108,$F108,2016,$I108/10,1,$H108/10,$G108*$H108/10,RateRatios_airpollution!$E108)*10))","v":168.20437498899997},{"$f":"IF(AND(OR(Calculations!$E$2=\"Orkney Health Board\",Calculations!$E$2=\"Orkney Islands Local Authority\"),$F108=1),0,IF(AND(OR(Calculations!$E$2=\"Shetland Health Board\",Calculations!$E$2=\"Western Isles Health Board\",Calculations!$E$2=\"Shetland Islands Local Authority\",Calculations!$E$2=\"Eilean Siar Local Authority\"),OR($F108=1,$F108=5)),0,prem_mort(VALUE(LEFT(Options!$B$14,2)),$C108,$E108,$F108,2016,$I108/10+$J108/10,1,$H108/10,$G108*$H108/10,RateRatios_airpollution!$E108)*10))","v":168.20334932600002},168.20437498899997,168.15884270500007,5044.4498787379998,5043.0843653569991,11159.711381116998,11156.621436707002,168.20437498899997,168.15884270500007,415.13493999950629,415.02256455155754,12449.898511125919,12446.528370988201,27542.601760000489,27534.97565700924,415.13493999950629,415.02256455155754,2905944.5799965439,2905157.9518609028,87149289.577881426,87125698.596917406,192798212.32000342,192744829.59906468,2905944.5799965439,2905157.9518609028,7000]
[null,"Female 55-59",56.953040999999999,83.473039999999997,"female",2,1,{"$f":"HLOOKUP(Calculations!$E$2,'Population 2016'!$C$3:$BC$249,'Population 2016'!BD109,FALSE)","v":37275},0,{"$f":"HLOOKUP(Calculations!$E$2,Pop2016_in_settlements!$C$3:$BC$249,Pop2016_in_settlements!$BD109,FALSE)","v":23516},{"$f":"IF(AND(OR(Calculations!$E$2=\"Orkney Health Board\",Calculations!$E$2=\"Orkney Islands Local Authority\"),$F109=1),0,IF(AND(OR(Calculations!$E$2=\"Shetland Health Board\",Calculations!$E$2=\"Western Isles Health Board\",Calculations!$E$2=\"Shetland Islands Local Authority\",Calculations!$E$2=\"Eilean Siar Local Authority\"),OR($F109=1,$F109=5)),0,new_ci(VALUE(LEFT(Options!$B$14,2)),$C109,$E109,$F109,2016,$I109/10,1,$H109/10,$G109*$H109/10,RateRatios_accidents!$B$5)*10))","v":235.738457692},{"$f":"IF(AND(OR(Calculations!$E$2=\"Orkney Health Board\",Calculations!$E$2=\"Orkney Islands Local Authority\"),$F109=1),0,IF(AND(OR(Calculations!$E$2=\"Shetland Health Board\",Calculations!$E$2=\"Western Isles Health Board\",Calculations!$E$2=\"Shetland Islands Local Authority\",Calculations!$E$2=\"Eilean Siar Local Authority\"),OR($F109=1,$F109=5)),0,new_ci(VALUE(LEFT(Options!$B$14,2)),$C109,$E109,$F109,2016,$I109/10+$J109/10,1,$H109/10,$G109*$H109/10,RateRatios_accidents!$B$5)*10))","v":235.67915504399997},{"$f":"IF(AND(OR(Calculations!$E$2=\"Orkney Health Board\",Calculations!$E$2=\"Orkney Islands Local Authority\"),$F109=1),0,IF(AND(OR(Calculations!$E$2=\"Shetland Health Board\",Calculations!$E$2=\"Western Isles Health Board\",Calculations!$E$2=\"Shetland Islands Local Authority\",Calculations!$E$2=\"Eilean Siar Local Authority\"),OR($F109=1,$F109=5)),0,new_yllv2(VALUE(LEFT(Options!$B$14,2)),$C109,$D109,$E109,$F109,2016,$I109/10,1,$H109/10,$G109*$H109/10,RateRatios_accidents!$B$5)*10))","v":6016.045204561},{"$f":"IF(AND(OR(Calculations!$E$2=\"Orkney Health Board\",Calculations!$E$2=\"Orkney Islands Local Authority\"),$F109=1),0,IF(AND(OR(Calculations!$E$2=\"Shetland Health Board\",Calculations!$E$2=\"Western Isles Health Board\",Calculations!$E$2=\"Shetland Islands Local Authority\",Calculations!$E$2=\"Eilean Siar Local Authority\"),OR($F109=1,$F109=5)),0,new_yllv2(VALUE(LEFT(Options!$B$14,2)),$C109,$D109,$E109,$F109,2016,$I109/10+$J109/10,1,$H109/10,$G109*$H109/10,RateRatios_accidents!$B$5)*10))","v":6014.5318010439996},{"$f":"IF(AND(OR(Calculations!$E$2=\"Orkney Health Board\",Calculations!$E$2=\"Orkney Islands Local Authority\"),$F109=1),0,IF(AND(OR(Calculations!$E$2=\"Shetland Health Board\",Calculations!$E$2=\"Western Isles Health Board\",Calculations!$E$2=\"Shetland Islands Local Authority\",Calculations!$E$2=\"Eilean Siar Local Authority\"),OR($F109=1,$F109=5)),0,hosp_count(VALUE(LEFT(Options!$B$14,2)),$C109,$E109,$F109,2016,$I109/10,1,$H109/10,$G109*$H109/10, RateRatios_accidents!$B$4, RateRatios_accidents!$B$5)*10))","v":11631.357148215},{"$f":"IF(AND(OR(Calculations!$E$2=\"Orkney Health Board\",Calculations!$E$2=\"Orkney Islands Local Authority\"),$F109=1),0,IF(AND(OR(Calculations!$E$2=\"Shetland Health Board\",Calculations!$E$2=\"Western Isles Health Board\",Calculations!$E$2=\"Shetland Islands Local Authority\",Calculations!$E$2=\"Eilean Siar Local Authority\"),OR($F109=1,$F109=5)),0,hosp_count(VALUE(LEFT(Options!$B$14,2)),$C109,$E109,$F109,2016,$I109/10+$J109/10,1,$H109/10,$G109*$H109/10, RateRatios_accidents!$B$4, RateRatios_accidents!$B$5)*10))","v":11628.421958698},{"$f":"IF(AND(OR(Calculations!$E$2=\"Orkney Health Board\",Calculations!$E$2=\"Orkney Islands Local Authority\"),$F109=1),0,IF(AND(OR(Calculations!$E$2=\"Shetland Health Board\",Calculations!$E$2=\"Western Isles Health Board\",Calculations!$E$2=\"Shetland Islands Local Authority\",Calculations!$E$2=\"Eilean Siar Local Authority\"),OR($F109=1,$F109=5)),0,prem_mort(VALUE(LEFT(Options!$B$14,2)),$C109,$E109,$F109,2016,$I109/10,1,$H109/10,$G109*$H109/10,RateRatios_accidents!$B$5)*10))","v":235.738457692},{"$f":"IF(AND(OR(Calculations!$E$2=\"Orkney Health Board\",Calculations!$E$2=\"Orkney Islands Local Authority\"),$F109=1),0,IF(AND(OR(Calculations!$E$2=\"Shetland Health Board\",Calculations!$E$2=\"Western Isles Health Board\",Calculations!$E$2=\"Shetland Islands Local Authority\",Calculations!$E$2=\"Eilean Siar Local Authority\"),OR($F109=1,$F109=5)),0,prem_mort(VALUE(LEFT(Options!$B$14,2)),$C109,$E109,$F109,2016,$I109/10+$J109/10,1,$H109/10,$G109*$H109/10,RateRatios_accidents!$B$5)*10))","v":235.67915504399997},null,{"$f":"IF(AND(OR(Calculations!$E$2=\"Orkney Health Board\",Calculations!$E$2=\"Orkney Islands Local Authority\"),$F109=1),0,IF(AND(OR(Calculations!$E$2=\"Shetland Health Board\",Calculations!$E$2=\"Western Isles Health Board\",Calculations!$E$2=\"Shetland Islands Local Authority\",Calculations!$E$2=\"Eilean Siar Local Authority\"),OR($F109=1,$F109=5)),0,new_ci(VALUE(LEFT(Options!$B$14,2)),$C109,$E109,$F109,2016,$I109/10,1,$H109/10,$G109*$H109/10,RateRatios_airpollution!$C109)*10))","v":235.738457692},{"$f":"IF(AND(OR(Calculations!$E$2=\"Orkney Health Board\",Calculations!$E$2=\"Orkney Islands Local Authority\"),$F109=1),0,IF(AND(OR(Calculations!$E$2=\"Shetland Health Board\",Calculations!$E$2=\"Western Isles Health Board\",Calculations!$E$2=\"Shetland Islands Local Authority\",Calculations!$E$2=\"Eilean Siar Local Authority\"),OR($F109=1,$F109=5)),0,new_ci(VALUE(LEFT(Options!$B$14,2)),$C109,$E109,$F109,2016,$I109/10+$J109/10,1,$H109/10,$G109*$H109/10,RateRatios_airpollution!$C109)*10))","v":235.73534887699998},{"$f":"IF(AND(OR(Calculations!$E$2=\"Orkney Health Board\",Calculations!$E$2=\"Orkney Islands Local Authority\"),$F109=1),0,IF(AND(OR(Calculations!$E$2=\"Shetland Health Board\",Calculations!$E$2=\"Western Isles Health Board\",Calculations!$E$2=\"Shetland Islands Local Authority\",Calculations!$E$2=\"Eilean Siar Local Authority\"),OR($F109=1,$F109=5)),0,new_yllv2(VALUE(LEFT(Options!$B$14,2)),$C109,$D109,$E109,$F109,2016,$I109/10,1,$H109/10,$G109*$H109/10,RateRatios_airpollution!$C109)*10))","v":6016.045204561},{"$f":"IF(AND(OR(Calculations!$E$2=\"Orkney Health Board\",Calculations!$E$2=\"Orkney Islands Local Authority\"),$F109=1),0,IF(AND(OR(Calculations!$E$2=\"Shetland Health Board\",Calculations!$E$2=\"Western Isles Health Board\",Calculations!$E$2=\"Shetland Islands Local Authority\",Calculations!$E$2=\"Eilean Siar Local Authority\"),OR($F109=1,$F109=5)),0,new_yllv2(VALUE(LEFT(Options!$B$14,2)),$C109,$D109,$E109,$F109,2016,$I109/10+$J109/10,1,$H109/10,$G109*$H109/10,RateRatios_airpollution!$C109)*10))","v":6015.9658676059998},{"$f":"IF(AND(OR(Calculations!$E$2=\"Orkney Health Board\",Calculations!$E$2=\"Orkney Islands Local Authority\"),$F109=1),0,IF(AND(OR(Calculations!$E$2=\"Shetland Health Board\",Calculations!$E$2=\"Western Isles Health Board\",Calculations!$E$2=\"Shetland Islands Local Authority\",Calculations!$E$2=\"Eilean Siar Local Authority\"),OR($F109=1,$F109=5)),0,hosp_count(VALUE(LEFT(Options!$B$14,2)),$C109,$E109,$F109,2016,$I109/10,1,$H109/10,$G109*$H109/10, RateRatios_airpollution!$D109, RateRatios_airpollution!$C109)*10))","v":11631.357148215},{"$f":"IF(AND(OR(Calculations!$E$2=\"Orkney Health Board\",Calculations!$E$2=\"Orkney Islands Local Authority\"),$F109=1),0,IF(AND(OR(Calculations!$E$2=\"Shetland Health Board\",Calculations!$E$2=\"Western Isles Health Board\",Calculations!$E$2=\"Shetland Islands Local Authority\",Calculations!$E$2=\"Eilean Siar Local Authority\"),OR($F109=1,$F109=5)),0,hosp_count(VALUE(LEFT(Options!$B$14,2)),$C109,$E109,$F109,2016,$I109/10+$J109/10,1,$H109/10,$G109*$H109/10, RateRatios_airpollution!$D109, RateRatios_airpollution!$C109)*10))","v":11631.067442853},{"$f":"IF(AND(OR(Calculations!$E$2=\"Orkney Health Board\",Calculations!$E$2=\"Orkney Islands Local Authority\"),$F109=1),0,IF(AND(OR(Calculations!$E$2=\"Shetland Health Board\",Calculations!$E$2=\"Western Isles Health Board\",Calculations!$E$2=\"Shetland Islands Local Authority\",Calculations!$E$2=\"Eilean Siar Local Authority\"),OR($F109=1,$F109=5)),0,prem_mort(VALUE(LEFT(Options!$B$14,2)),$C109,$E109,$F109,2016,$I109/10,1,$H109/10,$G109*$H109/10,RateRatios_airpollution!$C109)*10))","v":235.738457692},{"$f":"IF(AND(OR(Calculations!$E$2=\"Orkney Health Board\",Calculations!$E$2=\"Orkney Islands Local Authority\"),$F109=1),0,IF(AND(OR(Calculations!$E$2=\"Shetland Health Board\",Calculations!$E$2=\"Western Isles Health Board\",Calculations!$E$2=\"Shetland Islands Local Authority\",Calculations!$E$2=\"Eilean Siar Local Authority\"),OR($F109=1,$F109=5)),0,prem_mort(VALUE(LEFT(Options!$B$14,2)),$C109,$E109,$F109,2016,$I109/10+$J109/10,1,$H109/10,$G109*$H109/10,RateRatios_airpollution!$C109)*10))","v":235.73534887699998},null,{"$f":"IF(AND(OR(Calculations!$E$2=\"Orkney Health Board\",Calculations!$E$2=\"Orkney Islands Local Authority\"),$F109=1),0,IF(AND(OR(Calculations!$E$2=\"Shetland Health Board\",Calculations!$E$2=\"Western Isles Health Board\",Calculations!$E$2=\"Shetland Islands Local Authority\",Calculations!$E$2=\"Eilean Siar Local Authority\"),OR($F109=1,$F109=5)),0,new_ci(VALUE(LEFT(Options!$B$14,2)),$C109,$E109,$F109,2016,$I109/10,1,$H109/10,$G109*$H109/10,RateRatios_airpollution!$E109)*10))","v":235.738457692},{"$f":"IF(AND(OR(Calculations!$E$2=\"Orkney Health Board\",Calculations!$E$2=\"Orkney Islands Local Authority\"),$F109=1),0,IF(AND(OR(Calculations!$E$2=\"Shetland Health Board\",Calculations!$E$2=\"Western Isles Health Board\",Calculations!$E$2=\"Shetland Islands Local Authority\",Calculations!$E$2=\"Eilean Siar Local Authority\"),OR($F109=1,$F109=5)),0,new_ci(VALUE(LEFT(Options!$B$14,2)),$C109,$E109,$F109,2016,$I109/10+$J109/10,1,$H109/10,$G109*$H109/10,RateRatios_airpollution!$E109)*10))","v":235.73703027099998},{"$f":"IF(AND(OR(Calculations!$E$2=\"Orkney Health Board\",Calculations!$E$2=\"Orkney Islands Local Authority\"),$F109=1),0,IF(AND(OR(Calculations!$E$2=\"Shetland Health Board\",Calculations!$E$2=\"Western Isles Health Board\",Calculations!$E$2=\"Shetland Islands Local Authority\",Calculations!$E$2=\"Eilean Siar Local Authority\"),OR($F109=1,$F109=5)),0,new_yllv2(VALUE(LEFT(Options!$B$14,2)),$C109,$D109,$E109,$F109,2016,$I109/10,1,$H109/10,$G109*$H109/10,RateRatios_airpollution!$E109)*10))","v":6016.045204561},{"$f":"IF(AND(OR(Calculations!$E$2=\"Orkney Health Board\",Calculations!$E$2=\"Orkney Islands Local Authority\"),$F109=1),0,IF(AND(OR(Calculations!$E$2=\"Shetland Health Board\",Calculations!$E$2=\"Western Isles Health Board\",Calculations!$E$2=\"Shetland Islands Local Authority\",Calculations!$E$2=\"Eilean Siar Local Authority\"),OR($F109=1,$F109=5)),0,new_yllv2(VALUE(LEFT(Options!$B$14,2)),$C109,$D109,$E109,$F109,2016,$I109/10+$J109/10,1,$H109/10,$G109*$H109/10,RateRatios_airpollution!$E109)*10))","v":6016.0087767790001},{"$f":"IF(AND(OR(Calculations!$E$2=\"Orkney Health Board\",Calculations!$E$2=\"Orkney Islands Local Authority\"),$F109=1),0,IF(AND(OR(Calculations!$E$2=\"Shetland Health Board\",Calculations!$E$2=\"Western Isles Health Board\",Calculations!$E$2=\"Shetland Islands Local Authority\",Calculations!$E$2=\"Eilean Siar Local Authority\"),OR($F109=1,$F109=5)),0,hosp_count(VALUE(LEFT(Options!$B$14,2)),$C109,$E109,$F109,2016,$I109/10,1,$H109/10,$G109*$H109/10, RateRatios_airpollution!$F109, RateRatios_airpollution!$E109)*10))","v":11631.357148215},{"$f":"IF(AND(OR(Calculations!$E$2=\"Orkney Health Board\",Calculations!$E$2=\"Orkney Islands Local Authority\"),$F109=1),0,IF(AND(OR(Calculations!$E$2=\"Shetland Health Board\",Calculations!$E$2=\"Western Isles Health Board\",Calculations!$E$2=\"Shetland Islands Local Authority\",Calculations!$E$2=\"Eilean Siar Local Authority\"),OR($F109=1,$F109=5)),0,hosp_count(VALUE(LEFT(Options!$B$14,2)),$C109,$E109,$F109,2016,$I109/10+$J109/10,1,$H109/10,$G109*$H109/10, RateRatios_airpollution!$F109, RateRatios_airpollution!$E109)*10))","v":11631.357148215},{"$f":"IF(AND(OR(Calculations!$E$2=\"Orkney Health Board\",Calculations!$E$2=\"Orkney Islands Local Authority\"),$F109=1),0,IF(AND(OR(Calculations!$E$2=\"Shetland Health Board\",Calculations!$E$2=\"Western Isles Health Board\",Calculations!$E$2=\"Shetland Islands Local Authority\",Calculations!$E$2=\"Eilean Siar Local Authority\"),OR($F109=1,$F109=5)),0,prem_mort(VALUE(LEFT(Options!$B$14,2)),$C109,$E109,$F109,2016,$I109/10,1,$H109/10,$G109*$H109/10,RateRatios_airpollution!$E109)*10))","v":235.738457692},{"$f":"IF(AND(OR(Calculations!$E$2=\"Orkney Health Board\",Calculations!$E$2=\"Orkney Islands Local Authority\"),$F109=1),0,IF(AND(OR(Calculations!$E$2=\"Shetland Health Board\",Calculations!$E$2=\"Western Isles Health Board\",Calculations!$E$2=\"Shetland Islands Local Authority\",Calculations!$E$2=\"Eilean Siar Local Authority\"),OR($F109=1,$F109=5)),0,prem_mort(VALUE(LEFT(Options!$B$14,2)),$C109,$E109,$F109,2016,$I109/10+$J109/10,1,$H109/10,$G109*$H109/10,RateRatios_airpollution!$E109)*10))","v":235.73703027099998},235.738457692,235.67461880799993,6016.045204561,6014.4160363069996,11631.357148215,11628.132253336,235.738457692,235.67461880799993,632.43046999865862,632.25920538698847,16139.624961934273,16135.254289220657,31204.177460000003,31195.525830545943,632.43046999865862,632.25920538698847,4110798.0549912811,4109684.835015425,104907562.25257277,104879152.87993427,202827153.49000001,202770917.89854863,4110798.0549912811,4109684.835015425,6500]
[null,"Female 60-64",61.947387999999997,84.167389999999997,"female",2,1,{"$f":"HLOOKUP(Calculations!$E$2,'Population 2016'!$C$3:$BC$249,'Population 2016'!BD110,FALSE)","v":32644},0,{"$f":"HLOOKUP(Calculations!$E$2,Pop2016_in_settlements!$C$3:$BC$249,Pop2016_in_settlements!$BD110,FALSE)","v":20520},{"$f":"IF(AND(OR(Calculations!$E$2=\"Orkney Health Board\",Calculations!$E$2=\"Orkney Islands Local Authority\"),$F110=1),0,IF(AND(OR(Calculations!$E$2=\"Shetland Health Board\",Calculations!$E$2=\"Western Isles Health Board\",Calculations!$E$2=\"Shetland Islands Local Authority\",Calculations!$E$2=\"Eilean Siar Local Authority\"),OR($F110=1,$F110=5)),0,new_ci(VALUE(LEFT(Options!$B$14,2)),$C110,$E110,$F110,2016,$I110/10,1,$H110/10,$G110*$H110/10,RateRatios_accidents!$B$5)*10))","v":315.18989827999997},{"$f":"IF(AND(OR(Calculations!$E$2=\"Orkney Health Board\",Calculations!$E$2=\"Orkney Islands Local Authority\"),$F110=1),0,IF(AND(OR(Calculations!$E$2=\"Shetland Health Board\",Calculations!$E$2=\"Western Isles Health Board\",Calculations!$E$2=\"Shetland Islands Local Authority\",Calculations!$E$2=\"Eilean Siar Local Authority\"),OR($F110=1,$F110=5)),0,new_ci(VALUE(LEFT(Options!$B$14,2)),$C110,$E110,$F110,2016,$I110/10+$J110/10,1,$H110/10,$G110*$H110/10,RateRatios_accidents!$B$5)*10))","v":315.11102965999999},{"$f":"IF(AND(OR(Calculations!$E$2=\"Orkney Health Board\",Calculations!$E$2=\"Orkney Islands Local Authority\"),$F110=1),0,IF(AND(OR(Calculations!$E$2=\"Shetland Health Board\",Calculations!$E$2=\"Western Isles Health Board\",Calculations!$E$2=\"Shetland Islands Local Authority\",Calculations!$E$2=\"Eilean Siar Local Authority\"),OR($F110=1,$F110=5)),0,new_yllv2(VALUE(LEFT(Options!$B$14,2)),$C110,$D110,$E110,$F110,2016,$I110/10,1,$H110/10,$G110*$H110/10,RateRatios_accidents!$B$5)*10))","v":6688.330271881},{"$f":"IF(AND(OR(Calculations!$E$2=\"Orkney Health Board\",Calculations!$E$2=\"Orkney Islands Local Authority\"),$F110=1),0,IF(AND(OR(Calculations!$E$2=\"Shetland Health Board\",Calculations!$E$2=\"Western Isles Health Board\",Calculations!$E$2=\"Shetland Islands Local Authority\",Calculations!$E$2=\"Eilean Siar Local Authority\"),OR($F110=1,$F110=5)),0,new_yllv2(VALUE(LEFT(Options!$B$14,2)),$C110,$D110,$E110,$F110,2016,$I110/10+$J110/10,1,$H110/10,$G110*$H110/10,RateRatios_accidents!$B$5)*10))","v":6686.6566796070001},{"$f":"IF(AND(OR(Calculations!$E$2=\"Orkney Health Board\",Calculations!$E$2=\"Orkney Islands Local Authority\"),$F110=1),0,IF(AND(OR(Calculations!$E$2=\"Shetland Health Board\",Calculations!$E$2=\"Western Isles Health Board\",Calculations!$E$2=\"Shetland Islands Local Authority\",Calculations!$E$2=\"Eilean Siar Local Authority\"),OR($F110=1,$F110=5)),0,hosp_count(VALUE(LEFT(Options!$B$14,2)),$C110,$E110,$F110,2016,$I110/10,1,$H110/10,$G110*$H110/10, RateRatios_accidents!$B$4, RateRatios_accidents!$B$5)*10))","v":11549.811549476999},{"$f":"IF(AND(OR(Calculations!$E$2=\"Orkney Health Board\",Calculations!$E$2=\"Orkney Islands Local Authority\"),$F110=1),0,IF(AND(OR(Calculations!$E$2=\"Shetland Health Board\",Calculations!$E$2=\"Western Isles Health Board\",Calculations!$E$2=\"Shetland Islands Local Authority\",Calculations!$E$2=\"Eilean Siar Local Authority\"),OR($F110=1,$F110=5)),0,hosp_count(VALUE(LEFT(Options!$B$14,2)),$C110,$E110,$F110,2016,$I110/10+$J110/10,1,$H110/10,$G110*$H110/10, RateRatios_accidents!$B$4, RateRatios_accidents!$B$5)*10))","v":11546.907466737001},{"$f":"IF(AND(OR(Calculations!$E$2=\"Orkney Health Board\",Calculations!$E$2=\"Orkney Islands Local Authority\"),$F110=1),0,IF(AND(OR(Calculations!$E$2=\"Shetland Health Board\",Calculations!$E$2=\"Western Isles Health Board\",Calculations!$E$2=\"Shetland Islands Local Authority\",Calculations!$E$2=\"Eilean Siar Local Authority\"),OR($F110=1,$F110=5)),0,prem_mort(VALUE(LEFT(Options!$B$14,2)),$C110,$E110,$F110,2016,$I110/10,1,$H110/10,$G110*$H110/10,RateRatios_accidents!$B$5)*10))","v":315.18989827999997},{"$f":"IF(AND(OR(Calculations!$E$2=\"Orkney Health Board\",Calculations!$E$2=\"Orkney Islands Local Authority\"),$F110=1),0,IF(AND(OR(Calculations!$E$2=\"Shetland Health Board\",Calculations!$E$2=\"Western Isles Health Board\",Calculations!$E$2=\"Shetland Islands Local Authority\",Calculations!$E$2=\"Eilean Siar Local Authority\"),OR($F110=1,$F110=5)),0,prem_mort(VALUE(LEFT(Options!$B$14,2)),$C110,$E110,$F110,2016,$I110/10+$J110/10,1,$H110/10,$G110*$H110/10,RateRatios_accidents!$B$5)*10))","v":315.11102965999999},null,{"$f":"IF(AND(OR(Calculations!$E$2=\"Orkney Health Board\",Calculations!$E$2=\"Orkney Islands Local Authority\"),$F110=1),0,IF(AND(OR(Calculations!$E$2=\"Shetland Health Board\",Calculations!$E$2=\"Western Isles Health Board\",Calculations!$E$2=\"Shetland Islands Local Authority\",Calculations!$E$2=\"Eilean Siar Local Authority\"),OR($F110=1,$F110=5)),0,new_ci(VALUE(LEFT(Options!$B$14,2)),$C110,$E110,$F110,2016,$I110/10,1,$H110/10,$G110*$H110/10,RateRatios_airpollution!$C110)*10))","v":315.18989827999997},{"$f":"IF(AND(OR(Calculations!$E$2=\"Orkney Health Board\",Calculations!$E$2=\"Orkney Islands Local Authority\"),$F110=1),0,IF(AND(OR(Calculations!$E$2=\"Shetland Health Board\",Calculations!$E$2=\"Western Isles Health Board\",Calculations!$E$2=\"Shetland Islands Local Authority\",Calculations!$E$2=\"Eilean Siar Local Authority\"),OR($F110=1,$F110=5)),0,new_ci(VALUE(LEFT(Options!$B$14,2)),$C110,$E110,$F110,2016,$I110/10+$J110/10,1,$H110/10,$G110*$H110/10,RateRatios_airpollution!$C110)*10))","v":315.18585583999999},{"$f":"IF(AND(OR(Calculations!$E$2=\"Orkney Health Board\",Calculations!$E$2=\"Orkney Islands Local Authority\"),$F110=1),0,IF(AND(OR(Calculations!$E$2=\"Shetland Health Board\",Calculations!$E$2=\"Western Isles Health Board\",Calculations!$E$2=\"Shetland Islands Local Authority\",Calculations!$E$2=\"Eilean Siar Local Authority\"),OR($F110=1,$F110=5)),0,new_yllv2(VALUE(LEFT(Options!$B$14,2)),$C110,$D110,$E110,$F110,2016,$I110/10,1,$H110/10,$G110*$H110/10,RateRatios_airpollution!$C110)*10))","v":6688.330271881},{"$f":"IF(AND(OR(Calculations!$E$2=\"Orkney Health Board\",Calculations!$E$2=\"Orkney Islands Local Authority\"),$F110=1),0,IF(AND(OR(Calculations!$E$2=\"Shetland Health Board\",Calculations!$E$2=\"Western Isles Health Board\",Calculations!$E$2=\"Shetland Islands Local Authority\",Calculations!$E$2=\"Eilean Siar Local Authority\"),OR($F110=1,$F110=5)),0,new_yllv2(VALUE(LEFT(Options!$B$14,2)),$C110,$D110,$E110,$F110,2016,$I110/10+$J110/10,1,$H110/10,$G110*$H110/10,RateRatios_airpollution!$C110)*10))","v":6688.2444912970004},{"$f":"IF(AND(OR(Calculations!$E$2=\"Orkney Health Board\",Calculations!$E$2=\"Orkney Islands Local Authority\"),$F110=1),0,IF(AND(OR(Calculations!$E$2=\"Shetland Health Board\",Calculations!$E$2=\"Western Isles Health Board\",Calculations!$E$2=\"Shetland Islands Local Authority\",Calculations!$E$2=\"Eilean Siar Local Authority\"),OR($F110=1,$F110=5)),0,hosp_count(VALUE(LEFT(Options!$B$14,2)),$C110,$E110,$F110,2016,$I110/10,1,$H110/10,$G110*$H110/10, RateRatios_airpollution!$D110, RateRatios_airpollution!$C110)*10))","v":11549.811549476999},{"$f":"IF(AND(OR(Calculations!$E$2=\"Orkney Health Board\",Calculations!$E$2=\"Orkney Islands Local Authority\"),$F110=1),0,IF(AND(OR(Calculations!$E$2=\"Shetland Health Board\",Calculations!$E$2=\"Western Isles Health Board\",Calculations!$E$2=\"Shetland Islands Local Authority\",Calculations!$E$2=\"Eilean Siar Local Authority\"),OR($F110=1,$F110=5)),0,hosp_count(VALUE(LEFT(Options!$B$14,2)),$C110,$E110,$F110,2016,$I110/10+$J110/10,1,$H110/10,$G110*$H110/10, RateRatios_airpollution!$D110, RateRatios_airpollution!$C110)*10))","v":11549.531166249},{"$f":"IF(AND(OR(Calculations!$E$2=\"Orkney Health Board\",Calculations!$E$2=\"Orkney Islands Local Authority\"),$F110=1),0,IF(AND(OR(Calculations!$E$2=\"Shetland Health Board\",Calculations!$E$2=\"Western Isles Health Board\",Calculations!$E$2=\"Shetland Islands Local Authority\",Calculations!$E$2=\"Eilean Siar Local Authority\"),OR($F110=1,$F110=5)),0,prem_mort(VALUE(LEFT(Options!$B$14,2)),$C110,$E110,$F110,2016,$I110/10,1,$H110/10,$G110*$H110/10,RateRatios_airpollution!$C110)*10))","v":315.18989827999997},{"$f":"IF(AND(OR(Calculations!$E$2=\"Orkney Health Board\",Calculations!$E$2=\"Orkney Islands Local Authority\"),$F110=1),0,IF(AND(OR(Calculations!$E$2=\"Shetland Health Board\",Calculations!$E$2=\"Western Isles Health Board\",Calculations!$E$2=\"Shetland Islands Local Authority\",Calculations!$E$2=\"Eilean Siar Local Authority\"),OR($F110=1,$F110=5)),0,prem_mort(VALUE(LEFT(Options!$B$14,2)),$C110,$E110,$F110,2016,$I110/10+$J110/10,1,$H110/10,$G110*$H110/10,RateRatios_airpollution!$C110)*10))","v":315.18585583999999},null,{"$f":"IF(AND(OR(Calculations!$E$2=\"Orkney Health Board\",Calculations!$E$2=\"Orkney Islands Local Authority\"),$F110=1),0,IF(AND(OR(Calculations!$E$2=\"Shetland Health Board\",Calculations!$E$2=\"Western Isles Health Board\",Calculations!$E$2=\"Shetland Islands Local Authority\",Calculations!$E$2=\"Eilean Siar Local Authority\"),OR($F110=1,$F110=5)),0,new_ci(VALUE(LEFT(Options!$B$14,2)),$C110,$E110,$F110,2016,$I110/10,1,$H110/10,$G110*$H110/10,RateRatios_airpollution!$E110)*10))","v":315.18989827999997},{"$f":"IF(AND(OR(Calculations!$E$2=\"Orkney Health Board\",Calculations!$E$2=\"Orkney Islands Local Authority\"),$F110=1),0,IF(AND(OR(Calculations!$E$2=\"Shetland Health Board\",Calculations!$E$2=\"Western Isles Health Board\",Calculations!$E$2=\"Shetland Islands Local Authority\",Calculations!$E$2=\"Eilean Siar Local Authority\"),OR($F110=1,$F110=5)),0,new_ci(VALUE(LEFT(Options!$B$14,2)),$C110,$E110,$F110,2016,$I110/10+$J110/10,1,$H110/10,$G110*$H110/10,RateRatios_airpollution!$E110)*10))","v":315.18804532400003},{"$f":"IF(AND(OR(Calculations!$E$2=\"Orkney Health Board\",Calculations!$E$2=\"Orkney Islands Local Authority\"),$F110=1),0,IF(AND(OR(Calculations!$E$2=\"Shetland Health Board\",Calculations!$E$2=\"Western Isles Health Board\",Calculations!$E$2=\"Shetland Islands Local Authority\",Calculations!$E$2=\"Eilean Siar Local Authority\"),OR($F110=1,$F110=5)),0,new_yllv2(VALUE(LEFT(Options!$B$14,2)),$C110,$D110,$E110,$F110,2016,$I110/10,1,$H110/10,$G110*$H110/10,RateRatios_airpollution!$E110)*10))","v":6688.330271881},{"$f":"IF(AND(OR(Calculations!$E$2=\"Orkney Health Board\",Calculations!$E$2=\"Orkney Islands Local Authority\"),$F110=1),0,IF(AND(OR(Calculations!$E$2=\"Shetland Health Board\",Calculations!$E$2=\"Western Isles Health Board\",Calculations!$E$2=\"Shetland Islands Local Authority\",Calculations!$E$2=\"Eilean Siar Local Authority\"),OR($F110=1,$F110=5)),0,new_yllv2(VALUE(LEFT(Options!$B$14,2)),$C110,$D110,$E110,$F110,2016,$I110/10+$J110/10,1,$H110/10,$G110*$H110/10,RateRatios_airpollution!$E110)*10))","v":6688.2909521510001},{"$f":"IF(AND(OR(Calculations!$E$2=\"Orkney Health Board\",Calculations!$E$2=\"Orkney Islands Local Authority\"),$F110=1),0,IF(AND(OR(Calculations!$E$2=\"Shetland Health Board\",Calculations!$E$2=\"Western Isles Health Board\",Calculations!$E$2=\"Shetland Islands Local Authority\",Calculations!$E$2=\"Eilean Siar Local Authority\"),OR($F110=1,$F110=5)),0,hosp_count(VALUE(LEFT(Options!$B$14,2)),$C110,$E110,$F110,2016,$I110/10,1,$H110/10,$G110*$H110/10, RateRatios_airpollution!$F110, RateRatios_airpollution!$E110)*10))","v":11549.811549476999},{"$f":"IF(AND(OR(Calculations!$E$2=\"Orkney Health Board\",Calculations!$E$2=\"Orkney Islands Local Authority\"),$F110=1),0,IF(AND(OR(Calculations!$E$2=\"Shetland Health Board\",Calculations!$E$2=\"Western Isles Health Board\",Calculations!$E$2=\"Shetland Islands Local Authority\",Calculations!$E$2=\"Eilean Siar Local Authority\"),OR($F110=1,$F110=5)),0,hosp_count(VALUE(LEFT(Options!$B$14,2)),$C110,$E110,$F110,2016,$I110/10+$J110/10,1,$H110/10,$G110*$H110/10, RateRatios_airpollution!$F110, RateRatios_airpollution!$E110)*10))","v":11549.811549476999},{"$f":"IF(AND(OR(Calculations!$E$2=\"Orkney Health Board\",Calculations!$E$2=\"Orkney Islands Local Authority\"),$F110=1),0,IF(AND(OR(Calculations!$E$2=\"Shetland Health Board\",Calculations!$E$2=\"Western Isles Health Board\",Calculations!$E$2=\"Shetland Islands Local Authority\",Calculations!$E$2=\"Eilean Siar Local Authority\"),OR($F110=1,$F110=5)),0,prem_mort(VALUE(LEFT(Options!$B$14,2)),$C110,$E110,$F110,2016,$I110/10,1,$H110/10,$G110*$H110/10,RateRatios_airpollution!$E110)*10))","v":315.18989827999997},{"$f":"IF(AND(OR(Calculations!$E$2=\"Orkney Health Board\",Calculations!$E$2=\"Orkney Islands Local Authority\"),$F110=1),0,IF(AND(OR(Calculations!$E$2=\"Shetland Health Board\",Calculations!$E$2=\"Western Isles Health Board\",Calculations!$E$2=\"Shetland Islands Local Authority\",Calculations!$E$2=\"Eilean Siar Local Authority\"),OR($F110=1,$F110=5)),0,prem_mort(VALUE(LEFT(Options!$B$14,2)),$C110,$E110,$F110,2016,$I110/10+$J110/10,1,$H110/10,$G110*$H110/10,RateRatios_airpollution!$E110)*10))","v":315.18804532400003},315.18989827999997,315.10513426400007,6688.330271881,6686.5315792930005,11549.811549476999,11546.627083509002,315.18989827999997,315.10513426400007,965.53699999999992,965.27733814483543,20488.697071072784,20483.187045990078,35381.116129999391,35371.360995922689,965.53699999999992,965.27733814483543,5793221.9999999991,5791664.0288690124,122932182.42643671,122899122.27594046,212286696.77999634,212228165.97553614,5793221.9999999991,5791664.0288690124,6000]
[null,"Female 65-69",67.063927000000007,85.193929999999995,"female",2,1,{"$f":"HLOOKUP(Calculations!$E$2,'Population 2016'!$C$3:$BC$249,'Population 2016'!BD111,FALSE)","v":32580},0,{"$f":"HLOOKUP(Calculations!$E$2,Pop2016_in_settlements!$C$3:$BC$249,Pop2016_in_settlements!$BD111,FALSE)","v":20294},{"$f":"IF(AND(OR(Calculations!$E$2=\"Orkney Health Board\",Calculations!$E$2=\"Orkney Islands Local Authority\"),$F111=1),0,IF(AND(OR(Calculations!$E$2=\"Shetland Health Board\",Calculations!$E$2=\"Western Isles Health Board\",Calculations!$E$2=\"Shetland Islands Local Authority\",Calculations!$E$2=\"Eilean Siar Local Authority\"),OR($F111=1,$F111=5)),0,new_ci(VALUE(LEFT(Options!$B$14,2)),$C111,$E111,$F111,2016,$I111/10,1,$H111/10,$G111*$H111/10,RateRatios_accidents!$B$5)*10))","v":484.80997732200001},{"$f":"IF(AND(OR(Calculations!$E$2=\"Orkney Health Board\",Calculations!$E$2=\"Orkney Islands Local Authority\"),$F111=1),0,IF(AND(OR(Calculations!$E$2=\"Shetland Health Board\",Calculations!$E$2=\"Western Isles Health Board\",Calculations!$E$2=\"Shetland Islands Local Authority\",Calculations!$E$2=\"Eilean Siar Local Authority\"),OR($F111=1,$F111=5)),0,new_ci(VALUE(LEFT(Options!$B$14,2)),$C111,$E111,$F111,2016,$I111/10+$J111/10,1,$H111/10,$G111*$H111/10,RateRatios_accidents!$B$5)*10))","v":484.69008442899997},{"$f":"IF(AND(OR(Calculations!$E$2=\"Orkney Health Board\",Calculations!$E$2=\"Orkney Islands Local Authority\"),$F111=1),0,IF(AND(OR(Calculations!$E$2=\"Shetland Health Board\",Calculations!$E$2=\"Western Isles Health Board\",Calculations!$E$2=\"Shetland Islands Local Authority\",Calculations!$E$2=\"Eilean Siar Local Authority\"),OR($F111=1,$F111=5)),0,new_yllv2(VALUE(LEFT(Options!$B$14,2)),$C111,$D111,$E111,$F111,2016,$I111/10,1,$H111/10,$G111*$H111/10,RateRatios_accidents!$B$5)*10))","v":8304.796365956001},{"$f":"IF(AND(OR(Calculations!$E$2=\"Orkney Health Board\",Calculations!$E$2=\"Orkney Islands Local Authority\"),$F111=1),0,IF(AND(OR(Calculations!$E$2=\"Shetland Health Board\",Calculations!$E$2=\"Western Isles Health Board\",Calculations!$E$2=\"Shetland Islands Local Authority\",Calculations!$E$2=\"Eilean Siar Local Authority\"),OR($F111=1,$F111=5)),0,new_yllv2(VALUE(LEFT(Options!$B$14,2)),$C111,$D111,$E111,$F111,2016,$I111/10+$J111/10,1,$H111/10,$G111*$H111/10,RateRatios_accidents!$B$5)*10))","v":8302.7426003389992},{"$f":"IF(AND(OR(Calculations!$E$2=\"Orkney Health Board\",Calculations!$E$2=\"Orkney Islands Local Authority\"),$F111=1),0,IF(AND(OR(Calculations!$E$2=\"Shetland Health Board\",Calculations!$E$2=\"Western Isles Health Board\",Calculations!$E$2=\"Shetland Islands Local Authority\",Calculations!$E$2=\"Eilean Siar Local Authority\"),OR($F111=1,$F111=5)),0,hosp_count(VALUE(LEFT(Options!$B$14,2)),$C111,$E111,$F111,2016,$I111/10,1,$H111/10,$G111*$H111/10, RateRatios_accidents!$B$4, RateRatios_accidents!$B$5)*10))","v":13110.408911123999},{"$f":"IF(AND(OR(Calculations!$E$2=\"Orkney Health Board\",Calculations!$E$2=\"Orkney Islands Local Authority\"),$F111=1),0,IF(AND(OR(Calculations!$E$2=\"Shetland Health Board\",Calculations!$E$2=\"Western Isles Health Board\",Calculations!$E$2=\"Shetland Islands Local Authority\",Calculations!$E$2=\"Eilean Siar Local Authority\"),OR($F111=1,$F111=5)),0,hosp_count(VALUE(LEFT(Options!$B$14,2)),$C111,$E111,$F111,2016,$I111/10+$J111/10,1,$H111/10,$G111*$H111/10, RateRatios_accidents!$B$4, RateRatios_accidents!$B$5)*10))","v":13107.14233409},{"$f":"IF(AND(OR(Calculations!$E$2=\"Orkney Health Board\",Calculations!$E$2=\"Orkney Islands Local Authority\"),$F111=1),0,IF(AND(OR(Calculations!$E$2=\"Shetland Health Board\",Calculations!$E$2=\"Western Isles Health Board\",Calculations!$E$2=\"Shetland Islands Local Authority\",Calculations!$E$2=\"Eilean Siar Local Authority\"),OR($F111=1,$F111=5)),0,prem_mort(VALUE(LEFT(Options!$B$14,2)),$C111,$E111,$F111,2016,$I111/10,1,$H111/10,$G111*$H111/10,RateRatios_accidents!$B$5)*10))","v":484.80997732200001},{"$f":"IF(AND(OR(Calculations!$E$2=\"Orkney Health Board\",Calculations!$E$2=\"Orkney Islands Local Authority\"),$F111=1),0,IF(AND(OR(Calculations!$E$2=\"Shetland Health Board\",Calculations!$E$2=\"Western Isles Health Board\",Calculations!$E$2=\"Shetland Islands Local Authority\",Calculations!$E$2=\"Eilean Siar Local Authority\"),OR($F111=1,$F111=5)),0,prem_mort(VALUE(LEFT(Options!$B$14,2)),$C111,$E111,$F111,2016,$I111/10+$J111/10,1,$H111/10,$G111*$H111/10,RateRatios_accidents!$B$5)*10))","v":484.69008442899997},null,{"$f":"IF(AND(OR(Calculations!$E$2=\"Orkney Health Board\",Calculations!$E$2=\"Orkney Islands Local Authority\"),$F111=1),0,IF(AND(OR(Calculations!$E$2=\"Shetland Health Board\",Calculations!$E$2=\"Western Isles Health Board\",Calculations!$E$2=\"Shetland Islands Local Authority\",Calculations!$E$2=\"Eilean Siar Local Authority\"),OR($F111=1,$F111=5)),0,new_ci(VALUE(LEFT(Options!$B$14,2)),$C111,$E111,$F111,2016,$I111/10,1,$H111/10,$G111*$H111/10,RateRatios_airpollution!$C111)*10))","v":484.80997732200001},{"$f":"IF(AND(OR(Calculations!$E$2=\"Orkney Health Board\",Calculations!$E$2=\"Orkney Islands Local Authority\"),$F111=1),0,IF(AND(OR(Calculations!$E$2=\"Shetland Health Board\",Calculations!$E$2=\"Western Isles Health Board\",Calculations!$E$2=\"Shetland Islands Local Authority\",Calculations!$E$2=\"Eilean Siar Local Authority\"),OR($F111=1,$F111=5)),0,new_ci(VALUE(LEFT(Options!$B$14,2)),$C111,$E111,$F111,2016,$I111/10+$J111/10,1,$H111/10,$G111*$H111/10,RateRatios_airpollution!$C111)*10))","v":484.80393376899997},{"$f":"IF(AND(OR(Calculations!$E$2=\"Orkney Health Board\",Calculations!$E$2=\"Orkney Islands Local Authority\"),$F111=1),0,IF(AND(OR(Calculations!$E$2=\"Shetland Health Board\",Calculations!$E$2=\"Western Isles Health Board\",Calculations!$E$2=\"Shetland Islands Local Authority\",Calculations!$E$2=\"Eilean Siar Local Authority\"),OR($F111=1,$F111=5)),0,new_yllv2(VALUE(LEFT(Options!$B$14,2)),$C111,$D111,$E111,$F111,2016,$I111/10,1,$H111/10,$G111*$H111/10,RateRatios_airpollution!$C111)*10))","v":8304.796365956001},{"$f":"IF(AND(OR(Calculations!$E$2=\"Orkney Health Board\",Calculations!$E$2=\"Orkney Islands Local Authority\"),$F111=1),0,IF(AND(OR(Calculations!$E$2=\"Shetland Health Board\",Calculations!$E$2=\"Western Isles Health Board\",Calculations!$E$2=\"Shetland Islands Local Authority\",Calculations!$E$2=\"Eilean Siar Local Authority\"),OR($F111=1,$F111=5)),0,new_yllv2(VALUE(LEFT(Options!$B$14,2)),$C111,$D111,$E111,$F111,2016,$I111/10+$J111/10,1,$H111/10,$G111*$H111/10,RateRatios_airpollution!$C111)*10))","v":8304.6928398750006},{"$f":"IF(AND(OR(Calculations!$E$2=\"Orkney Health Board\",Calculations!$E$2=\"Orkney Islands Local Authority\"),$F111=1),0,IF(AND(OR(Calculations!$E$2=\"Shetland Health Board\",Calculations!$E$2=\"Western Isles Health Board\",Calculations!$E$2=\"Shetland Islands Local Authority\",Calculations!$E$2=\"Eilean Siar Local Authority\"),OR($F111=1,$F111=5)),0,hosp_count(VALUE(LEFT(Options!$B$14,2)),$C111,$E111,$F111,2016,$I111/10,1,$H111/10,$G111*$H111/10, RateRatios_airpollution!$D111, RateRatios_airpollution!$C111)*10))","v":13110.408911123999},{"$f":"IF(AND(OR(Calculations!$E$2=\"Orkney Health Board\",Calculations!$E$2=\"Orkney Islands Local Authority\"),$F111=1),0,IF(AND(OR(Calculations!$E$2=\"Shetland Health Board\",Calculations!$E$2=\"Western Isles Health Board\",Calculations!$E$2=\"Shetland Islands Local Authority\",Calculations!$E$2=\"Eilean Siar Local Authority\"),OR($F111=1,$F111=5)),0,hosp_count(VALUE(LEFT(Options!$B$14,2)),$C111,$E111,$F111,2016,$I111/10+$J111/10,1,$H111/10,$G111*$H111/10, RateRatios_airpollution!$D111, RateRatios_airpollution!$C111)*10))","v":13110.098751834001},{"$f":"IF(AND(OR(Calculations!$E$2=\"Orkney Health Board\",Calculations!$E$2=\"Orkney Islands Local Authority\"),$F111=1),0,IF(AND(OR(Calculations!$E$2=\"Shetland Health Board\",Calculations!$E$2=\"Western Isles Health Board\",Calculations!$E$2=\"Shetland Islands Local Authority\",Calculations!$E$2=\"Eilean Siar Local Authority\"),OR($F111=1,$F111=5)),0,prem_mort(VALUE(LEFT(Options!$B$14,2)),$C111,$E111,$F111,2016,$I111/10,1,$H111/10,$G111*$H111/10,RateRatios_airpollution!$C111)*10))","v":484.80997732200001},{"$f":"IF(AND(OR(Calculations!$E$2=\"Orkney Health Board\",Calculations!$E$2=\"Orkney Islands Local Authority\"),$F111=1),0,IF(AND(OR(Calculations!$E$2=\"Shetland Health Board\",Calculations!$E$2=\"Western Isles Health Board\",Calculations!$E$2=\"Shetland Islands Local Authority\",Calculations!$E$2=\"Eilean Siar Local Authority\"),OR($F111=1,$F111=5)),0,prem_mort(VALUE(LEFT(Options!$B$14,2)),$C111,$E111,$F111,2016,$I111/10+$J111/10,1,$H111/10,$G111*$H111/10,RateRatios_airpollution!$C111)*10))","v":484.80393376899997},null,{"$f":"IF(AND(OR(Calculations!$E$2=\"Orkney Health Board\",Calculations!$E$2=\"Orkney Islands Local Authority\"),$F111=1),0,IF(AND(OR(Calculations!$E$2=\"Shetland Health Board\",Calculations!$E$2=\"Western Isles Health Board\",Calculations!$E$2=\"Shetland Islands Local Authority\",Calculations!$E$2=\"Eilean Siar Local Authority\"),OR($F111=1,$F111=5)),0,new_ci(VALUE(LEFT(Options!$B$14,2)),$C111,$E111,$F111,2016,$I111/10,1,$H111/10,$G111*$H111/10,RateRatios_airpollution!$E111)*10))","v":484.80997732200001},{"$f":"IF(AND(OR(Calculations!$E$2=\"Orkney Health Board\",Calculations!$E$2=\"Orkney Islands Local Authority\"),$F111=1),0,IF(AND(OR(Calculations!$E$2=\"Shetland Health Board\",Calculations!$E$2=\"Western Isles Health Board\",Calculations!$E$2=\"Shetland Islands Local Authority\",Calculations!$E$2=\"Eilean Siar Local Authority\"),OR($F111=1,$F111=5)),0,new_ci(VALUE(LEFT(Options!$B$14,2)),$C111,$E111,$F111,2016,$I111/10+$J111/10,1,$H111/10,$G111*$H111/10,RateRatios_airpollution!$E111)*10))","v":484.80720922},{"$f":"IF(AND(OR(Calculations!$E$2=\"Orkney Health Board\",Calculations!$E$2=\"Orkney Islands Local Authority\"),$F111=1),0,IF(AND(OR(Calculations!$E$2=\"Shetland Health Board\",Calculations!$E$2=\"Western Isles Health Board\",Calculations!$E$2=\"Shetland Islands Local Authority\",Calculations!$E$2=\"Eilean Siar Local Authority\"),OR($F111=1,$F111=5)),0,new_yllv2(VALUE(LEFT(Options!$B$14,2)),$C111,$D111,$E111,$F111,2016,$I111/10,1,$H111/10,$G111*$H111/10,RateRatios_airpollution!$E111)*10))","v":8304.796365956001},{"$f":"IF(AND(OR(Calculations!$E$2=\"Orkney Health Board\",Calculations!$E$2=\"Orkney Islands Local Authority\"),$F111=1),0,IF(AND(OR(Calculations!$E$2=\"Shetland Health Board\",Calculations!$E$2=\"Western Isles Health Board\",Calculations!$E$2=\"Shetland Islands Local Authority\",Calculations!$E$2=\"Eilean Siar Local Authority\"),OR($F111=1,$F111=5)),0,new_yllv2(VALUE(LEFT(Options!$B$14,2)),$C111,$D111,$E111,$F111,2016,$I111/10+$J111/10,1,$H111/10,$G111*$H111/10,RateRatios_airpollution!$E111)*10))","v":8304.7489483600002},{"$f":"IF(AND(OR(Calculations!$E$2=\"Orkney Health Board\",Calculations!$E$2=\"Orkney Islands Local Authority\"),$F111=1),0,IF(AND(OR(Calculations!$E$2=\"Shetland Health Board\",Calculations!$E$2=\"Western Isles Health Board\",Calculations!$E$2=\"Shetland Islands Local Authority\",Calculations!$E$2=\"Eilean Siar Local Authority\"),OR($F111=1,$F111=5)),0,hosp_count(VALUE(LEFT(Options!$B$14,2)),$C111,$E111,$F111,2016,$I111/10,1,$H111/10,$G111*$H111/10, RateRatios_airpollution!$F111, RateRatios_airpollution!$E111)*10))","v":13110.408911123999},{"$f":"IF(AND(OR(Calculations!$E$2=\"Orkney Health Board\",Calculations!$E$2=\"Orkney Islands Local Authority\"),$F111=1),0,IF(AND(OR(Calculations!$E$2=\"Shetland Health Board\",Calculations!$E$2=\"Western Isles Health Board\",Calculations!$E$2=\"Shetland Islands Local Authority\",Calculations!$E$2=\"Eilean Siar Local Authority\"),OR($F111=1,$F111=5)),0,hosp_count(VALUE(LEFT(Options!$B$14,2)),$C111,$E111,$F111,2016,$I111/10+$J111/10,1,$H111/10,$G111*$H111/10, RateRatios_airpollution!$F111, RateRatios_airpollution!$E111)*10))","v":13110.408911123999},{"$f":"IF(AND(OR(Calculations!$E$2=\"Orkney Health Board\",Calculations!$E$2=\"Orkney Islands Local Authority\"),$F111=1),0,IF(AND(OR(Calculations!$E$2=\"Shetland Health Board\",Calculations!$E$2=\"Western Isles Health Board\",Calculations!$E$2=\"Shetland Islands Local Authority\",Calculations!$E$2=\"Eilean Siar Local Authority\"),OR($F111=1,$F111=5)),0,prem_mort(VALUE(LEFT(Options!$B$14,2)),$C111,$E111,$F111,2016,$I111/10,1,$H111/10,$G111*$H111/10,RateRatios_airpollution!$E111)*10))","v":484.80997732200001},{"$f":"IF(AND(OR(Calculations!$E$2=\"Orkney Health Board\",Calculations!$E$2=\"Orkney Islands Local Authority\"),$F111=1),0,IF(AND(OR(Calculations!$E$2=\"Shetland Health Board\",Calculations!$E$2=\"Western Isles Health Board\",Calculations!$E$2=\"Shetland Islands Local Authority\",Calculations!$E$2=\"Eilean Siar Local Authority\"),OR($F111=1,$F111=5)),0,prem_mort(VALUE(LEFT(Options!$B$14,2)),$C111,$E111,$F111,2016,$I111/10+$J111/10,1,$H111/10,$G111*$H111/10,RateRatios_airpollution!$E111)*10))","v":484.80720922},484.80997732200001,484.68127277399992,8304.796365956001,8302.5916566619981,13110.408911123999,13106.832174800002,484.80997732200001,484.68127277399992,1488.0600900000002,1487.665048416206,25490.473805880913,25483.706742363407,40240.665779999996,40229.687461019035,1488.0600900000002,1487.665048416206,8184330.495000001,8182157.7662891326,140197605.93234503,140160387.08299875,221323661.78999996,221263281.03560469,8184330.495000001,8182157.7662891326,5500]
[null,"Female 70-74",71.938164,86.248159999999999,"female",2,1,{"$f":"HLOOKUP(Calculations!$E$2,'Population 2016'!$C$3:$BC$249,'Population 2016'!BD112,FALSE)","v":25764},0,{"$f":"HLOOKUP(Calculations!$E$2,Pop2016_in_settlements!$C$3:$BC$249,Pop2016_in_settlements!$BD112,FALSE)","v":16312},{"$f":"IF(AND(OR(Calculations!$E$2=\"Orkney Health Board\",Calculations!$E$2=\"Orkney Islands Local Authority\"),$F112=1),0,IF(AND(OR(Calculations!$E$2=\"Shetland Health Board\",Calculations!$E$2=\"Western Isles Health Board\",Calculations!$E$2=\"Shetland Islands Local Authority\",Calculations!$E$2=\"Eilean Siar Local Authority\"),OR($F112=1,$F112=5)),0,new_ci(VALUE(LEFT(Options!$B$14,2)),$C112,$E112,$F112,2016,$I112/10,1,$H112/10,$G112*$H112/10,RateRatios_accidents!$B$5)*10))","v":578.11489724900002},{"$f":"IF(AND(OR(Calculations!$E$2=\"Orkney Health Board\",Calculations!$E$2=\"Orkney Islands Local Authority\"),$F112=1),0,IF(AND(OR(Calculations!$E$2=\"Shetland Health Board\",Calculations!$E$2=\"Western Isles Health Board\",Calculations!$E$2=\"Shetland Islands Local Authority\",Calculations!$E$2=\"Eilean Siar Local Authority\"),OR($F112=1,$F112=5)),0,new_ci(VALUE(LEFT(Options!$B$14,2)),$C112,$E112,$F112,2016,$I112/10+$J112/10,1,$H112/10,$G112*$H112/10,RateRatios_accidents!$B$5)*10))","v":577.97014292999995},{"$f":"IF(AND(OR(Calculations!$E$2=\"Orkney Health Board\",Calculations!$E$2=\"Orkney Islands Local Authority\"),$F112=1),0,IF(AND(OR(Calculations!$E$2=\"Shetland Health Board\",Calculations!$E$2=\"Western Isles Health Board\",Calculations!$E$2=\"Shetland Islands Local Authority\",Calculations!$E$2=\"Eilean Siar Local Authority\"),OR($F112=1,$F112=5)),0,new_yllv2(VALUE(LEFT(Options!$B$14,2)),$C112,$D112,$E112,$F112,2016,$I112/10,1,$H112/10,$G112*$H112/10,RateRatios_accidents!$B$5)*10))","v":7694.7069699250005},{"$f":"IF(AND(OR(Calculations!$E$2=\"Orkney Health Board\",Calculations!$E$2=\"Orkney Islands Local Authority\"),$F112=1),0,IF(AND(OR(Calculations!$E$2=\"Shetland Health Board\",Calculations!$E$2=\"Western Isles Health Board\",Calculations!$E$2=\"Shetland Islands Local Authority\",Calculations!$E$2=\"Eilean Siar Local Authority\"),OR($F112=1,$F112=5)),0,new_yllv2(VALUE(LEFT(Options!$B$14,2)),$C112,$D112,$E112,$F112,2016,$I112/10+$J112/10,1,$H112/10,$G112*$H112/10,RateRatios_accidents!$B$5)*10))","v":7692.7802905179997},{"$f":"IF(AND(OR(Calculations!$E$2=\"Orkney Health Board\",Calculations!$E$2=\"Orkney Islands Local Authority\"),$F112=1),0,IF(AND(OR(Calculations!$E$2=\"Shetland Health Board\",Calculations!$E$2=\"Western Isles Health Board\",Calculations!$E$2=\"Shetland Islands Local Authority\",Calculations!$E$2=\"Eilean Siar Local Authority\"),OR($F112=1,$F112=5)),0,hosp_count(VALUE(LEFT(Options!$B$14,2)),$C112,$E112,$F112,2016,$I112/10,1,$H112/10,$G112*$H112/10, RateRatios_accidents!$B$4, RateRatios_accidents!$B$5)*10))","v":11719.933384184002},{"$f":"IF(AND(OR(Calculations!$E$2=\"Orkney Health Board\",Calculations!$E$2=\"Orkney Islands Local Authority\"),$F112=1),0,IF(AND(OR(Calculations!$E$2=\"Shetland Health Board\",Calculations!$E$2=\"Western Isles Health Board\",Calculations!$E$2=\"Shetland Islands Local Authority\",Calculations!$E$2=\"Eilean Siar Local Authority\"),OR($F112=1,$F112=5)),0,hosp_count(VALUE(LEFT(Options!$B$14,2)),$C112,$E112,$F112,2016,$I112/10+$J112/10,1,$H112/10,$G112*$H112/10, RateRatios_accidents!$B$4, RateRatios_accidents!$B$5)*10))","v":11716.965280394999},{"$f":"IF(AND(OR(Calculations!$E$2=\"Orkney Health Board\",Calculations!$E$2=\"Orkney Islands Local Authority\"),$F112=1),0,IF(AND(OR(Calculations!$E$2=\"Shetland Health Board\",Calculations!$E$2=\"Western Isles Health Board\",Calculations!$E$2=\"Shetland Islands Local Authority\",Calculations!$E$2=\"Eilean Siar Local Authority\"),OR($F112=1,$F112=5)),0,prem_mort(VALUE(LEFT(Options!$B$14,2)),$C112,$E112,$F112,2016,$I112/10,1,$H112/10,$G112*$H112/10,RateRatios_accidents!$B$5)*10))","v":578.11489724900002},{"$f":"IF(AND(OR(Calculations!$E$2=\"Orkney Health Board\",Calculations!$E$2=\"Orkney Islands Local Authority\"),$F112=1),0,IF(AND(OR(Calculations!$E$2=\"Shetland Health Board\",Calculations!$E$2=\"Western Isles Health Board\",Calculations!$E$2=\"Shetland Islands Local Authority\",Calculations!$E$2=\"Eilean Siar Local Authority\"),OR($F112=1,$F112=5)),0,prem_mort(VALUE(LEFT(Options!$B$14,2)),$C112,$E112,$F112,2016,$I112/10+$J112/10,1,$H112/10,$G112*$H112/10,RateRatios_accidents!$B$5)*10))","v":577.97014292999995},null,{"$f":"IF(AND(OR(Calculations!$E$2=\"Orkney Health Board\",Calculations!$E$2=\"Orkney Islands Local Authority\"),$F112=1),0,IF(AND(OR(Calculations!$E$2=\"Shetland Health Board\",Calculations!$E$2=\"Western Isles Health Board\",Calculations!$E$2=\"Shetland Islands Local Authority\",Calculations!$E$2=\"Eilean Siar Local Authority\"),OR($F112=1,$F112=5)),0,new_ci(VALUE(LEFT(Options!$B$14,2)),$C112,$E112,$F112,2016,$I112/10,1,$H112/10,$G112*$H112/10,RateRatios_airpollution!$C112)*10))","v":578.11489724900002},{"$f":"IF(AND(OR(Calculations!$E$2=\"Orkney Health Board\",Calculations!$E$2=\"Orkney Islands Local Authority\"),$F112=1),0,IF(AND(OR(Calculations!$E$2=\"Shetland Health Board\",Calculations!$E$2=\"Western Isles Health Board\",Calculations!$E$2=\"Shetland Islands Local Authority\",Calculations!$E$2=\"Eilean Siar Local Authority\"),OR($F112=1,$F112=5)),0,new_ci(VALUE(LEFT(Options!$B$14,2)),$C112,$E112,$F112,2016,$I112/10+$J112/10,1,$H112/10,$G112*$H112/10,RateRatios_airpollution!$C112)*10))","v":578.10764167100001},{"$f":"IF(AND(OR(Calculations!$E$2=\"Orkney Health Board\",Calculations!$E$2=\"Orkney Islands Local Authority\"),$F112=1),0,IF(AND(OR(Calculations!$E$2=\"Shetland Health Board\",Calculations!$E$2=\"Western Isles Health Board\",Calculations!$E$2=\"Shetland Islands Local Authority\",Calculations!$E$2=\"Eilean Siar Local Authority\"),OR($F112=1,$F112=5)),0,new_yllv2(VALUE(LEFT(Options!$B$14,2)),$C112,$D112,$E112,$F112,2016,$I112/10,1,$H112/10,$G112*$H112/10,RateRatios_airpollution!$C112)*10))","v":7694.7069699250005},{"$f":"IF(AND(OR(Calculations!$E$2=\"Orkney Health Board\",Calculations!$E$2=\"Orkney Islands Local Authority\"),$F112=1),0,IF(AND(OR(Calculations!$E$2=\"Shetland Health Board\",Calculations!$E$2=\"Western Isles Health Board\",Calculations!$E$2=\"Shetland Islands Local Authority\",Calculations!$E$2=\"Eilean Siar Local Authority\"),OR($F112=1,$F112=5)),0,new_yllv2(VALUE(LEFT(Options!$B$14,2)),$C112,$D112,$E112,$F112,2016,$I112/10+$J112/10,1,$H112/10,$G112*$H112/10,RateRatios_airpollution!$C112)*10))","v":7694.6103982099994},{"$f":"IF(AND(OR(Calculations!$E$2=\"Orkney Health Board\",Calculations!$E$2=\"Orkney Islands Local Authority\"),$F112=1),0,IF(AND(OR(Calculations!$E$2=\"Shetland Health Board\",Calculations!$E$2=\"Western Isles Health Board\",Calculations!$E$2=\"Shetland Islands Local Authority\",Calculations!$E$2=\"Eilean Siar Local Authority\"),OR($F112=1,$F112=5)),0,hosp_count(VALUE(LEFT(Options!$B$14,2)),$C112,$E112,$F112,2016,$I112/10,1,$H112/10,$G112*$H112/10, RateRatios_airpollution!$D112, RateRatios_airpollution!$C112)*10))","v":11719.933384184002},{"$f":"IF(AND(OR(Calculations!$E$2=\"Orkney Health Board\",Calculations!$E$2=\"Orkney Islands Local Authority\"),$F112=1),0,IF(AND(OR(Calculations!$E$2=\"Shetland Health Board\",Calculations!$E$2=\"Western Isles Health Board\",Calculations!$E$2=\"Shetland Islands Local Authority\",Calculations!$E$2=\"Eilean Siar Local Authority\"),OR($F112=1,$F112=5)),0,hosp_count(VALUE(LEFT(Options!$B$14,2)),$C112,$E112,$F112,2016,$I112/10+$J112/10,1,$H112/10,$G112*$H112/10, RateRatios_airpollution!$D112, RateRatios_airpollution!$C112)*10))","v":11719.653065727},{"$f":"IF(AND(OR(Calculations!$E$2=\"Orkney Health Board\",Calculations!$E$2=\"Orkney Islands Local Authority\"),$F112=1),0,IF(AND(OR(Calculations!$E$2=\"Shetland Health Board\",Calculations!$E$2=\"Western Isles Health Board\",Calculations!$E$2=\"Shetland Islands Local Authority\",Calculations!$E$2=\"Eilean Siar Local Authority\"),OR($F112=1,$F112=5)),0,prem_mort(VALUE(LEFT(Options!$B$14,2)),$C112,$E112,$F112,2016,$I112/10,1,$H112/10,$G112*$H112/10,RateRatios_airpollution!$C112)*10))","v":578.11489724900002},{"$f":"IF(AND(OR(Calculations!$E$2=\"Orkney Health Board\",Calculations!$E$2=\"Orkney Islands Local Authority\"),$F112=1),0,IF(AND(OR(Calculations!$E$2=\"Shetland Health Board\",Calculations!$E$2=\"Western Isles Health Board\",Calculations!$E$2=\"Shetland Islands Local Authority\",Calculations!$E$2=\"Eilean Siar Local Authority\"),OR($F112=1,$F112=5)),0,prem_mort(VALUE(LEFT(Options!$B$14,2)),$C112,$E112,$F112,2016,$I112/10+$J112/10,1,$H112/10,$G112*$H112/10,RateRatios_airpollution!$C112)*10))","v":578.10764167100001},null,{"$f":"IF(AND(OR(Calculations!$E$2=\"Orkney Health Board\",Calculations!$E$2=\"Orkney Islands Local Authority\"),$F112=1),0,IF(AND(OR(Calculations!$E$2=\"Shetland Health Board\",Calculations!$E$2=\"Western Isles Health Board\",Calculations!$E$2=\"Shetland Islands Local Authority\",Calculations!$E$2=\"Eilean Siar Local Authority\"),OR($F112=1,$F112=5)),0,new_ci(VALUE(LEFT(Options!$B$14,2)),$C112,$E112,$F112,2016,$I112/10,1,$H112/10,$G112*$H112/10,RateRatios_airpollution!$E112)*10))","v":578.11489724900002},{"$f":"IF(AND(OR(Calculations!$E$2=\"Orkney Health Board\",Calculations!$E$2=\"Orkney Islands Local Authority\"),$F112=1),0,IF(AND(OR(Calculations!$E$2=\"Shetland Health Board\",Calculations!$E$2=\"Western Isles Health Board\",Calculations!$E$2=\"Shetland Islands Local Authority\",Calculations!$E$2=\"Eilean Siar Local Authority\"),OR($F112=1,$F112=5)),0,new_ci(VALUE(LEFT(Options!$B$14,2)),$C112,$E112,$F112,2016,$I112/10+$J112/10,1,$H112/10,$G112*$H112/10,RateRatios_airpollution!$E112)*10))","v":578.11157775700008},{"$f":"IF(AND(OR(Calculations!$E$2=\"Orkney Health Board\",Calculations!$E$2=\"Orkney Islands Local Authority\"),$F112=1),0,IF(AND(OR(Calculations!$E$2=\"Shetland Health Board\",Calculations!$E$2=\"Western Isles Health Board\",Calculations!$E$2=\"Shetland Islands Local Authority\",Calculations!$E$2=\"Eilean Siar Local Authority\"),OR($F112=1,$F112=5)),0,new_yllv2(VALUE(LEFT(Options!$B$14,2)),$C112,$D112,$E112,$F112,2016,$I112/10,1,$H112/10,$G112*$H112/10,RateRatios_airpollution!$E112)*10))","v":7694.7069699250005},{"$f":"IF(AND(OR(Calculations!$E$2=\"Orkney Health Board\",Calculations!$E$2=\"Orkney Islands Local Authority\"),$F112=1),0,IF(AND(OR(Calculations!$E$2=\"Shetland Health Board\",Calculations!$E$2=\"Western Isles Health Board\",Calculations!$E$2=\"Shetland Islands Local Authority\",Calculations!$E$2=\"Eilean Siar Local Authority\"),OR($F112=1,$F112=5)),0,new_yllv2(VALUE(LEFT(Options!$B$14,2)),$C112,$D112,$E112,$F112,2016,$I112/10+$J112/10,1,$H112/10,$G112*$H112/10,RateRatios_airpollution!$E112)*10))","v":7694.6627874989999},{"$f":"IF(AND(OR(Calculations!$E$2=\"Orkney Health Board\",Calculations!$E$2=\"Orkney Islands Local Authority\"),$F112=1),0,IF(AND(OR(Calculations!$E$2=\"Shetland Health Board\",Calculations!$E$2=\"Western Isles Health Board\",Calculations!$E$2=\"Shetland Islands Local Authority\",Calculations!$E$2=\"Eilean Siar Local Authority\"),OR($F112=1,$F112=5)),0,hosp_count(VALUE(LEFT(Options!$B$14,2)),$C112,$E112,$F112,2016,$I112/10,1,$H112/10,$G112*$H112/10, RateRatios_airpollution!$F112, RateRatios_airpollution!$E112)*10))","v":11719.933384184002},{"$f":"IF(AND(OR(Calculations!$E$2=\"Orkney Health Board\",Calculations!$E$2=\"Orkney Islands Local Authority\"),$F112=1),0,IF(AND(OR(Calculations!$E$2=\"Shetland Health Board\",Calculations!$E$2=\"Western Isles Health Board\",Calculations!$E$2=\"Shetland Islands Local Authority\",Calculations!$E$2=\"Eilean Siar Local Authority\"),OR($F112=1,$F112=5)),0,hosp_count(VALUE(LEFT(Options!$B$14,2)),$C112,$E112,$F112,2016,$I112/10+$J112/10,1,$H112/10,$G112*$H112/10, RateRatios_airpollution!$F112, RateRatios_airpollution!$E112)*10))","v":11719.933384184002},{"$f":"IF(AND(OR(Calculations!$E$2=\"Orkney Health Board\",Calculations!$E$2=\"Orkney Islands Local Authority\"),$F112=1),0,IF(AND(OR(Calculations!$E$2=\"Shetland Health Board\",Calculations!$E$2=\"Western Isles Health Board\",Calculations!$E$2=\"Shetland Islands Local Authority\",Calculations!$E$2=\"Eilean Siar Local Authority\"),OR($F112=1,$F112=5)),0,prem_mort(VALUE(LEFT(Options!$B$14,2)),$C112,$E112,$F112,2016,$I112/10,1,$H112/10,$G112*$H112/10,RateRatios_airpollution!$E112)*10))","v":578.11489724900002},{"$f":"IF(AND(OR(Calculations!$E$2=\"Orkney Health Board\",Calculations!$E$2=\"Orkney Islands Local Authority\"),$F112=1),0,IF(AND(OR(Calculations!$E$2=\"Shetland Health Board\",Calculations!$E$2=\"Western Isles Health Board\",Calculations!$E$2=\"Shetland Islands Local Authority\",Calculations!$E$2=\"Eilean Siar Local Authority\"),OR($F112=1,$F112=5)),0,prem_mort(VALUE(LEFT(Options!$B$14,2)),$C112,$E112,$F112,2016,$I112/10+$J112/10,1,$H112/10,$G112*$H112/10,RateRatios_airpollution!$E112)*10))","v":578.11157775700008},578.11489724900002,577.95956785999999,7694.7069699250005,7692.639536376998,11719.933384184002,11716.684961937997,578.11489724900002,577.95956785999999,2243.8864200007761,2243.2835268591834,29866.119274666202,29858.094769356459,45489.572209998449,45476.963833015048,2243.8864200007761,2243.2835268591834,11219432.10000388,11216417.634295918,149330596.37333101,149290473.8467823,227447861.04999223,227384819.16507524,11219432.10000388,11216417.634295918,5000]
[null,"Female 75-79",76.942824999999999,87.812830000000005,"female",2,1,{"$f":"HLOOKUP(Calculations!$E$2,'Population 2016'!$C$3:$BC$249,'Population 2016'!BD113,FALSE)","v":22167},0,{"$f":"HLOOKUP(Calculations!$E$2,Pop2016_in_settlements!$C$3:$BC$249,Pop2016_in_settlements!$BD113,FALSE)","v":14227},{"$f":"IF(AND(OR(Calculations!$E$2=\"Orkney Health Board\",Calculations!$E$2=\"Orkney Islands Local Authority\"),$F113=1),0,IF(AND(OR(Calculations!$E$2=\"Shetland Health Board\",Calculations!$E$2=\"Western Isles Health Board\",Calculations!$E$2=\"Shetland Islands Local Authority\",Calculations!$E$2=\"Eilean Siar Local Authority\"),OR($F113=1,$F113=5)),0,new_ci(VALUE(LEFT(Options!$B$14,2)),$C113,$E113,$F113,2016,$I113/10,1,$H113/10,$G113*$H113/10,RateRatios_accidents!$B$5)*10))","v":756.78189870799997},{"$f":"IF(AND(OR(Calculations!$E$2=\"Orkney Health Board\",Calculations!$E$2=\"Orkney Islands Local Authority\"),$F113=1),0,IF(AND(OR(Calculations!$E$2=\"Shetland Health Board\",Calculations!$E$2=\"Western Isles Health Board\",Calculations!$E$2=\"Shetland Islands Local Authority\",Calculations!$E$2=\"Eilean Siar Local Authority\"),OR($F113=1,$F113=5)),0,new_ci(VALUE(LEFT(Options!$B$14,2)),$C113,$E113,$F113,2016,$I113/10+$J113/10,1,$H113/10,$G113*$H113/10,RateRatios_accidents!$B$5)*10))","v":756.59096667699998},{"$f":"IF(AND(OR(Calculations!$E$2=\"Orkney Health Board\",Calculations!$E$2=\"Orkney Islands Local Authority\"),$F113=1),0,IF(AND(OR(Calculations!$E$2=\"Shetland Health Board\",Calculations!$E$2=\"Western Isles Health Board\",Calculations!$E$2=\"Shetland Islands Local Authority\",Calculations!$E$2=\"Eilean Siar Local Authority\"),OR($F113=1,$F113=5)),0,new_yllv2(VALUE(LEFT(Options!$B$14,2)),$C113,$D113,$E113,$F113,2016,$I113/10,1,$H113/10,$G113*$H113/10,RateRatios_accidents!$B$5)*10))","v":7469.4411241570006},{"$f":"IF(AND(OR(Calculations!$E$2=\"Orkney Health Board\",Calculations!$E$2=\"Orkney Islands Local Authority\"),$F113=1),0,IF(AND(OR(Calculations!$E$2=\"Shetland Health Board\",Calculations!$E$2=\"Western Isles Health Board\",Calculations!$E$2=\"Shetland Islands Local Authority\",Calculations!$E$2=\"Eilean Siar Local Authority\"),OR($F113=1,$F113=5)),0,new_yllv2(VALUE(LEFT(Options!$B$14,2)),$C113,$D113,$E113,$F113,2016,$I113/10+$J113/10,1,$H113/10,$G113*$H113/10,RateRatios_accidents!$B$5)*10))","v":7467.5566240570006},{"$f":"IF(AND(OR(Calculations!$E$2=\"Orkney Health Board\",Calculations!$E$2=\"Orkney Islands Local Authority\"),$F113=1),0,IF(AND(OR(Calculations!$E$2=\"Shetland Health Board\",Calculations!$E$2=\"Western Isles Health Board\",Calculations!$E$2=\"Shetland Islands Local Authority\",Calculations!$E$2=\"Eilean Siar Local Authority\"),OR($F113=1,$F113=5)),0,hosp_count(VALUE(LEFT(Options!$B$14,2)),$C113,$E113,$F113,2016,$I113/10,1,$H113/10,$G113*$H113/10, RateRatios_accidents!$B$4, RateRatios_accidents!$B$5)*10))","v":11436.423651026},{"$f":"IF(AND(OR(Calculations!$E$2=\"Orkney Health Board\",Calculations!$E$2=\"Orkney Islands Local Authority\"),$F113=1),0,IF(AND(OR(Calculations!$E$2=\"Shetland Health Board\",Calculations!$E$2=\"Western Isles Health Board\",Calculations!$E$2=\"Shetland Islands Local Authority\",Calculations!$E$2=\"Eilean Siar Local Authority\"),OR($F113=1,$F113=5)),0,hosp_count(VALUE(LEFT(Options!$B$14,2)),$C113,$E113,$F113,2016,$I113/10+$J113/10,1,$H113/10,$G113*$H113/10, RateRatios_accidents!$B$4, RateRatios_accidents!$B$5)*10))","v":11433.487646377},{"$f":"IF(AND(OR(Calculations!$E$2=\"Orkney Health Board\",Calculations!$E$2=\"Orkney Islands Local Authority\"),$F113=1),0,IF(AND(OR(Calculations!$E$2=\"Shetland Health Board\",Calculations!$E$2=\"Western Isles Health Board\",Calculations!$E$2=\"Shetland Islands Local Authority\",Calculations!$E$2=\"Eilean Siar Local Authority\"),OR($F113=1,$F113=5)),0,prem_mort(VALUE(LEFT(Options!$B$14,2)),$C113,$E113,$F113,2016,$I113/10,1,$H113/10,$G113*$H113/10,RateRatios_accidents!$B$5)*10))","v":0},{"$f":"IF(AND(OR(Calculations!$E$2=\"Orkney Health Board\",Calculations!$E$2=\"Orkney Islands Local Authority\"),$F113=1),0,IF(AND(OR(Calculations!$E$2=\"Shetland Health Board\",Calculations!$E$2=\"Western Isles Health Board\",Calculations!$E$2=\"Shetland Islands Local Authority\",Calculations!$E$2=\"Eilean Siar Local Authority\"),OR($F113=1,$F113=5)),0,prem_mort(VALUE(LEFT(Options!$B$14,2)),$C113,$E113,$F113,2016,$I113/10+$J113/10,1,$H113/10,$G113*$H113/10,RateRatios_accidents!$B$5)*10))","v":0},null,{"$f":"IF(AND(OR(Calculations!$E$2=\"Orkney Health Board\",Calculations!$E$2=\"Orkney Islands Local Authority\"),$F113=1),0,IF(AND(OR(Calculations!$E$2=\"Shetland Health Board\",Calculations!$E$2=\"Western Isles Health Board\",Calculations!$E$2=\"Shetland Islands Local Authority\",Calculations!$E$2=\"Eilean Siar Local Authority\"),OR($F113=1,$F113=5)),0,new_ci(VALUE(LEFT(Options!$B$14,2)),$C113,$E113,$F113,2016,$I113/10,1,$H113/10,$G113*$H113/10,RateRatios_airpollution!$C113)*10))","v":756.78189870799997},{"$f":"IF(AND(OR(Calculations!$E$2=\"Orkney Health Board\",Calculations!$E$2=\"Orkney Islands Local Authority\"),$F113=1),0,IF(AND(OR(Calculations!$E$2=\"Shetland Health Board\",Calculations!$E$2=\"Western Isles Health Board\",Calculations!$E$2=\"Shetland Islands Local Authority\",Calculations!$E$2=\"Eilean Siar Local Authority\"),OR($F113=1,$F113=5)),0,new_ci(VALUE(LEFT(Options!$B$14,2)),$C113,$E113,$F113,2016,$I113/10+$J113/10,1,$H113/10,$G113*$H113/10,RateRatios_airpollution!$C113)*10))","v":756.77200240700006},{"$f":"IF(AND(OR(Calculations!$E$2=\"Orkney Health Board\",Calculations!$E$2=\"Orkney Islands Local Authority\"),$F113=1),0,IF(AND(OR(Calculations!$E$2=\"Shetland Health Board\",Calculations!$E$2=\"Western Isles Health Board\",Calculations!$E$2=\"Shetland Islands Local Authority\",Calculations!$E$2=\"Eilean Siar Local Authority\"),OR($F113=1,$F113=5)),0,new_yllv2(VALUE(LEFT(Options!$B$14,2)),$C113,$D113,$E113,$F113,2016,$I113/10,1,$H113/10,$G113*$H113/10,RateRatios_airpollution!$C113)*10))","v":7469.4411241570006},{"$f":"IF(AND(OR(Calculations!$E$2=\"Orkney Health Board\",Calculations!$E$2=\"Orkney Islands Local Authority\"),$F113=1),0,IF(AND(OR(Calculations!$E$2=\"Shetland Health Board\",Calculations!$E$2=\"Western Isles Health Board\",Calculations!$E$2=\"Shetland Islands Local Authority\",Calculations!$E$2=\"Eilean Siar Local Authority\"),OR($F113=1,$F113=5)),0,new_yllv2(VALUE(LEFT(Options!$B$14,2)),$C113,$D113,$E113,$F113,2016,$I113/10+$J113/10,1,$H113/10,$G113*$H113/10,RateRatios_airpollution!$C113)*10))","v":7469.3434476170005},{"$f":"IF(AND(OR(Calculations!$E$2=\"Orkney Health Board\",Calculations!$E$2=\"Orkney Islands Local Authority\"),$F113=1),0,IF(AND(OR(Calculations!$E$2=\"Shetland Health Board\",Calculations!$E$2=\"Western Isles Health Board\",Calculations!$E$2=\"Shetland Islands Local Authority\",Calculations!$E$2=\"Eilean Siar Local Authority\"),OR($F113=1,$F113=5)),0,hosp_count(VALUE(LEFT(Options!$B$14,2)),$C113,$E113,$F113,2016,$I113/10,1,$H113/10,$G113*$H113/10, RateRatios_airpollution!$D113, RateRatios_airpollution!$C113)*10))","v":11436.423651026},{"$f":"IF(AND(OR(Calculations!$E$2=\"Orkney Health Board\",Calculations!$E$2=\"Orkney Islands Local Authority\"),$F113=1),0,IF(AND(OR(Calculations!$E$2=\"Shetland Health Board\",Calculations!$E$2=\"Western Isles Health Board\",Calculations!$E$2=\"Shetland Islands Local Authority\",Calculations!$E$2=\"Eilean Siar Local Authority\"),OR($F113=1,$F113=5)),0,hosp_count(VALUE(LEFT(Options!$B$14,2)),$C113,$E113,$F113,2016,$I113/10+$J113/10,1,$H113/10,$G113*$H113/10, RateRatios_airpollution!$D113, RateRatios_airpollution!$C113)*10))","v":11436.136939986},{"$f":"IF(AND(OR(Calculations!$E$2=\"Orkney Health Board\",Calculations!$E$2=\"Orkney Islands Local Authority\"),$F113=1),0,IF(AND(OR(Calculations!$E$2=\"Shetland Health Board\",Calculations!$E$2=\"Western Isles Health Board\",Calculations!$E$2=\"Shetland Islands Local Authority\",Calculations!$E$2=\"Eilean Siar Local Authority\"),OR($F113=1,$F113=5)),0,prem_mort(VALUE(LEFT(Options!$B$14,2)),$C113,$E113,$F113,2016,$I113/10,1,$H113/10,$G113*$H113/10,RateRatios_airpollution!$C113)*10))","v":0},{"$f":"IF(AND(OR(Calculations!$E$2=\"Orkney Health Board\",Calculations!$E$2=\"Orkney Islands Local Authority\"),$F113=1),0,IF(AND(OR(Calculations!$E$2=\"Shetland Health Board\",Calculations!$E$2=\"Western Isles Health Board\",Calculations!$E$2=\"Shetland Islands Local Authority\",Calculations!$E$2=\"Eilean Siar Local Authority\"),OR($F113=1,$F113=5)),0,prem_mort(VALUE(LEFT(Options!$B$14,2)),$C113,$E113,$F113,2016,$I113/10+$J113/10,1,$H113/10,$G113*$H113/10,RateRatios_airpollution!$C113)*10))","v":0},null,{"$f":"IF(AND(OR(Calculations!$E$2=\"Orkney Health Board\",Calculations!$E$2=\"Orkney Islands Local Authority\"),$F113=1),0,IF(AND(OR(Calculations!$E$2=\"Shetland Health Board\",Calculations!$E$2=\"Western Isles Health Board\",Calculations!$E$2=\"Shetland Islands Local Authority\",Calculations!$E$2=\"Eilean Siar Local Authority\"),OR($F113=1,$F113=5)),0,new_ci(VALUE(LEFT(Options!$B$14,2)),$C113,$E113,$F113,2016,$I113/10,1,$H113/10,$G113*$H113/10,RateRatios_airpollution!$E113)*10))","v":756.78189870799997},{"$f":"IF(AND(OR(Calculations!$E$2=\"Orkney Health Board\",Calculations!$E$2=\"Orkney Islands Local Authority\"),$F113=1),0,IF(AND(OR(Calculations!$E$2=\"Shetland Health Board\",Calculations!$E$2=\"Western Isles Health Board\",Calculations!$E$2=\"Shetland Islands Local Authority\",Calculations!$E$2=\"Eilean Siar Local Authority\"),OR($F113=1,$F113=5)),0,new_ci(VALUE(LEFT(Options!$B$14,2)),$C113,$E113,$F113,2016,$I113/10+$J113/10,1,$H113/10,$G113*$H113/10,RateRatios_airpollution!$E113)*10))","v":756.77737594400003},{"$f":"IF(AND(OR(Calculations!$E$2=\"Orkney Health Board\",Calculations!$E$2=\"Orkney Islands Local Authority\"),$F113=1),0,IF(AND(OR(Calculations!$E$2=\"Shetland Health Board\",Calculations!$E$2=\"Western Isles Health Board\",Calculations!$E$2=\"Shetland Islands Local Authority\",Calculations!$E$2=\"Eilean Siar Local Authority\"),OR($F113=1,$F113=5)),0,new_yllv2(VALUE(LEFT(Options!$B$14,2)),$C113,$D113,$E113,$F113,2016,$I113/10,1,$H113/10,$G113*$H113/10,RateRatios_airpollution!$E113)*10))","v":7469.4411241570006},{"$f":"IF(AND(OR(Calculations!$E$2=\"Orkney Health Board\",Calculations!$E$2=\"Orkney Islands Local Authority\"),$F113=1),0,IF(AND(OR(Calculations!$E$2=\"Shetland Health Board\",Calculations!$E$2=\"Western Isles Health Board\",Calculations!$E$2=\"Shetland Islands Local Authority\",Calculations!$E$2=\"Eilean Siar Local Authority\"),OR($F113=1,$F113=5)),0,new_yllv2(VALUE(LEFT(Options!$B$14,2)),$C113,$D113,$E113,$F113,2016,$I113/10+$J113/10,1,$H113/10,$G113*$H113/10,RateRatios_airpollution!$E113)*10))","v":7469.3964844540005},{"$f":"IF(AND(OR(Calculations!$E$2=\"Orkney Health Board\",Calculations!$E$2=\"Orkney Islands Local Authority\"),$F113=1),0,IF(AND(OR(Calculations!$E$2=\"Shetland Health Board\",Calculations!$E$2=\"Western Isles Health Board\",Calculations!$E$2=\"Shetland Islands Local Authority\",Calculations!$E$2=\"Eilean Siar Local Authority\"),OR($F113=1,$F113=5)),0,hosp_count(VALUE(LEFT(Options!$B$14,2)),$C113,$E113,$F113,2016,$I113/10,1,$H113/10,$G113*$H113/10, RateRatios_airpollution!$F113, RateRatios_airpollution!$E113)*10))","v":11436.423651026},{"$f":"IF(AND(OR(Calculations!$E$2=\"Orkney Health Board\",Calculations!$E$2=\"Orkney Islands Local Authority\"),$F113=1),0,IF(AND(OR(Calculations!$E$2=\"Shetland Health Board\",Calculations!$E$2=\"Western Isles Health Board\",Calculations!$E$2=\"Shetland Islands Local Authority\",Calculations!$E$2=\"Eilean Siar Local Authority\"),OR($F113=1,$F113=5)),0,hosp_count(VALUE(LEFT(Options!$B$14,2)),$C113,$E113,$F113,2016,$I113/10+$J113/10,1,$H113/10,$G113*$H113/10, RateRatios_airpollution!$F113, RateRatios_airpollution!$E113)*10))","v":11436.423651026},{"$f":"IF(AND(OR(Calculations!$E$2=\"Orkney Health Board\",Calculations!$E$2=\"Orkney Islands Local Authority\"),$F113=1),0,IF(AND(OR(Calculations!$E$2=\"Shetland Health Board\",Calculations!$E$2=\"Western Isles Health Board\",Calculations!$E$2=\"Shetland Islands Local Authority\",Calculations!$E$2=\"Eilean Siar Local Authority\"),OR($F113=1,$F113=5)),0,prem_mort(VALUE(LEFT(Options!$B$14,2)),$C113,$E113,$F113,2016,$I113/10,1,$H113/10,$G113*$H113/10,RateRatios_airpollution!$E113)*10))","v":0},{"$f":"IF(AND(OR(Calculations!$E$2=\"Orkney Health Board\",Calculations!$E$2=\"Orkney Islands Local Authority\"),$F113=1),0,IF(AND(OR(Calculations!$E$2=\"Shetland Health Board\",Calculations!$E$2=\"Western Isles Health Board\",Calculations!$E$2=\"Shetland Islands Local Authority\",Calculations!$E$2=\"Eilean Siar Local Authority\"),OR($F113=1,$F113=5)),0,prem_mort(VALUE(LEFT(Options!$B$14,2)),$C113,$E113,$F113,2016,$I113/10+$J113/10,1,$H113/10,$G113*$H113/10,RateRatios_airpollution!$E113)*10))","v":0},756.78189870799997,756.57654761200013,7469.4411241570006,7467.4143078140005,11436.423651026,11433.200935336999,0,0,3414.0023400009022,3413.0759580096546,33696.220165818566,33687.076770938787,51592.112829999554,51577.574481603282,0,0,13656009.360003609,13652303.832038619,134784880.66327426,134748307.08375514,206368451.3199982,206310297.92641312,0,0,4000]
[null,"Female 80-84",81.856712000000002,89.736710000000002,"female",2,1,{"$f":"HLOOKUP(Calculations!$E$2,'Population 2016'!$C$3:$BC$249,'Population 2016'!BD114,FALSE)","v":17470},0,{"$f":"HLOOKUP(Calculations!$E$2,Pop2016_in_settlements!$C$3:$BC$249,Pop2016_in_settlements!$BD114,FALSE)","v":11384},{"$f":"IF(AND(OR(Calculations!$E$2=\"Orkney Health Board\",Calculations!$E$2=\"Orkney Islands Local Authority\"),$F114=1),0,IF(AND(OR(Calculations!$E$2=\"Shetland Health Board\",Calculations!$E$2=\"Western Isles Health Board\",Calculations!$E$2=\"Shetland Islands Local Authority\",Calculations!$E$2=\"Eilean Siar Local Authority\"),OR($F114=1,$F114=5)),0,new_ci(VALUE(LEFT(Options!$B$14,2)),$C114,$E114,$F114,2016,$I114/10,1,$H114/10,$G114*$H114/10,RateRatios_accidents!$B$5)*10))","v":897.80893023700003},{"$f":"IF(AND(OR(Calculations!$E$2=\"Orkney Health Board\",Calculations!$E$2=\"Orkney Islands Local Authority\"),$F114=1),0,IF(AND(OR(Calculations!$E$2=\"Shetland Health Board\",Calculations!$E$2=\"Western Isles Health Board\",Calculations!$E$2=\"Shetland Islands Local Authority\",Calculations!$E$2=\"Eilean Siar Local Authority\"),OR($F114=1,$F114=5)),0,new_ci(VALUE(LEFT(Options!$B$14,2)),$C114,$E114,$F114,2016,$I114/10+$J114/10,1,$H114/10,$G114*$H114/10,RateRatios_accidents!$B$5)*10))","v":897.58102938700006},{"$f":"IF(AND(OR(Calculations!$E$2=\"Orkney Health Board\",Calculations!$E$2=\"Orkney Islands Local Authority\"),$F114=1),0,IF(AND(OR(Calculations!$E$2=\"Shetland Health Board\",Calculations!$E$2=\"Western Isles Health Board\",Calculations!$E$2=\"Shetland Islands Local Authority\",Calculations!$E$2=\"Eilean Siar Local Authority\"),OR($F114=1,$F114=5)),0,new_yllv2(VALUE(LEFT(Options!$B$14,2)),$C114,$D114,$E114,$F114,2016,$I114/10,1,$H114/10,$G114*$H114/10,RateRatios_accidents!$B$5)*10))","v":6176.9236444130001},{"$f":"IF(AND(OR(Calculations!$E$2=\"Orkney Health Board\",Calculations!$E$2=\"Orkney Islands Local Authority\"),$F114=1),0,IF(AND(OR(Calculations!$E$2=\"Shetland Health Board\",Calculations!$E$2=\"Western Isles Health Board\",Calculations!$E$2=\"Shetland Islands Local Authority\",Calculations!$E$2=\"Eilean Siar Local Authority\"),OR($F114=1,$F114=5)),0,new_yllv2(VALUE(LEFT(Options!$B$14,2)),$C114,$D114,$E114,$F114,2016,$I114/10+$J114/10,1,$H114/10,$G114*$H114/10,RateRatios_accidents!$B$5)*10))","v":6175.3556870210004},{"$f":"IF(AND(OR(Calculations!$E$2=\"Orkney Health Board\",Calculations!$E$2=\"Orkney Islands Local Authority\"),$F114=1),0,IF(AND(OR(Calculations!$E$2=\"Shetland Health Board\",Calculations!$E$2=\"Western Isles Health Board\",Calculations!$E$2=\"Shetland Islands Local Authority\",Calculations!$E$2=\"Eilean Siar Local Authority\"),OR($F114=1,$F114=5)),0,hosp_count(VALUE(LEFT(Options!$B$14,2)),$C114,$E114,$F114,2016,$I114/10,1,$H114/10,$G114*$H114/10, RateRatios_accidents!$B$4, RateRatios_accidents!$B$5)*10))","v":10198.963905691},{"$f":"IF(AND(OR(Calculations!$E$2=\"Orkney Health Board\",Calculations!$E$2=\"Orkney Islands Local Authority\"),$F114=1),0,IF(AND(OR(Calculations!$E$2=\"Shetland Health Board\",Calculations!$E$2=\"Western Isles Health Board\",Calculations!$E$2=\"Shetland Islands Local Authority\",Calculations!$E$2=\"Eilean Siar Local Authority\"),OR($F114=1,$F114=5)),0,hosp_count(VALUE(LEFT(Options!$B$14,2)),$C114,$E114,$F114,2016,$I114/10+$J114/10,1,$H114/10,$G114*$H114/10, RateRatios_accidents!$B$4, RateRatios_accidents!$B$5)*10))","v":10196.305519702999},{"$f":"IF(AND(OR(Calculations!$E$2=\"Orkney Health Board\",Calculations!$E$2=\"Orkney Islands Local Authority\"),$F114=1),0,IF(AND(OR(Calculations!$E$2=\"Shetland Health Board\",Calculations!$E$2=\"Western Isles Health Board\",Calculations!$E$2=\"Shetland Islands Local Authority\",Calculations!$E$2=\"Eilean Siar Local Authority\"),OR($F114=1,$F114=5)),0,prem_mort(VALUE(LEFT(Options!$B$14,2)),$C114,$E114,$F114,2016,$I114/10,1,$H114/10,$G114*$H114/10,RateRatios_accidents!$B$5)*10))","v":0},{"$f":"IF(AND(OR(Calculations!$E$2=\"Orkney Health Board\",Calculations!$E$2=\"Orkney Islands Local Authority\"),$F114=1),0,IF(AND(OR(Calculations!$E$2=\"Shetland Health Board\",Calculations!$E$2=\"Western Isles Health Board\",Calculations!$E$2=\"Shetland Islands Local Authority\",Calculations!$E$2=\"Eilean Siar Local Authority\"),OR($F114=1,$F114=5)),0,prem_mort(VALUE(LEFT(Options!$B$14,2)),$C114,$E114,$F114,2016,$I114/10+$J114/10,1,$H114/10,$G114*$H114/10,RateRatios_accidents!$B$5)*10))","v":0},null,{"$f":"IF(AND(OR(Calculations!$E$2=\"Orkney Health Board\",Calculations!$E$2=\"Orkney Islands Local Authority\"),$F114=1),0,IF(AND(OR(Calculations!$E$2=\"Shetland Health Board\",Calculations!$E$2=\"Western Isles Health Board\",Calculations!$E$2=\"Shetland Islands Local Authority\",Calculations!$E$2=\"Eilean Siar Local Authority\"),OR($F114=1,$F114=5)),0,new_ci(VALUE(LEFT(Options!$B$14,2)),$C114,$E114,$F114,2016,$I114/10,1,$H114/10,$G114*$H114/10,RateRatios_airpollution!$C114)*10))","v":897.80893023700003},{"$f":"IF(AND(OR(Calculations!$E$2=\"Orkney Health Board\",Calculations!$E$2=\"Orkney Islands Local Authority\"),$F114=1),0,IF(AND(OR(Calculations!$E$2=\"Shetland Health Board\",Calculations!$E$2=\"Western Isles Health Board\",Calculations!$E$2=\"Shetland Islands Local Authority\",Calculations!$E$2=\"Eilean Siar Local Authority\"),OR($F114=1,$F114=5)),0,new_ci(VALUE(LEFT(Options!$B$14,2)),$C114,$E114,$F114,2016,$I114/10+$J114/10,1,$H114/10,$G114*$H114/10,RateRatios_airpollution!$C114)*10))","v":897.79702940300001},{"$f":"IF(AND(OR(Calculations!$E$2=\"Orkney Health Board\",Calculations!$E$2=\"Orkney Islands Local Authority\"),$F114=1),0,IF(AND(OR(Calculations!$E$2=\"Shetland Health Board\",Calculations!$E$2=\"Western Isles Health Board\",Calculations!$E$2=\"Shetland Islands Local Authority\",Calculations!$E$2=\"Eilean Siar Local Authority\"),OR($F114=1,$F114=5)),0,new_yllv2(VALUE(LEFT(Options!$B$14,2)),$C114,$D114,$E114,$F114,2016,$I114/10,1,$H114/10,$G114*$H114/10,RateRatios_airpollution!$C114)*10))","v":6176.9236444130001},{"$f":"IF(AND(OR(Calculations!$E$2=\"Orkney Health Board\",Calculations!$E$2=\"Orkney Islands Local Authority\"),$F114=1),0,IF(AND(OR(Calculations!$E$2=\"Shetland Health Board\",Calculations!$E$2=\"Western Isles Health Board\",Calculations!$E$2=\"Shetland Islands Local Authority\",Calculations!$E$2=\"Eilean Siar Local Authority\"),OR($F114=1,$F114=5)),0,new_yllv2(VALUE(LEFT(Options!$B$14,2)),$C114,$D114,$E114,$F114,2016,$I114/10+$J114/10,1,$H114/10,$G114*$H114/10,RateRatios_airpollution!$C114)*10))","v":6176.8417666989999},{"$f":"IF(AND(OR(Calculations!$E$2=\"Orkney Health Board\",Calculations!$E$2=\"Orkney Islands Local Authority\"),$F114=1),0,IF(AND(OR(Calculations!$E$2=\"Shetland Health Board\",Calculations!$E$2=\"Western Isles Health Board\",Calculations!$E$2=\"Shetland Islands Local Authority\",Calculations!$E$2=\"Eilean Siar Local Authority\"),OR($F114=1,$F114=5)),0,hosp_count(VALUE(LEFT(Options!$B$14,2)),$C114,$E114,$F114,2016,$I114/10,1,$H114/10,$G114*$H114/10, RateRatios_airpollution!$D114, RateRatios_airpollution!$C114)*10))","v":10198.963905691},{"$f":"IF(AND(OR(Calculations!$E$2=\"Orkney Health Board\",Calculations!$E$2=\"Orkney Islands Local Authority\"),$F114=1),0,IF(AND(OR(Calculations!$E$2=\"Shetland Health Board\",Calculations!$E$2=\"Western Isles Health Board\",Calculations!$E$2=\"Shetland Islands Local Authority\",Calculations!$E$2=\"Eilean Siar Local Authority\"),OR($F114=1,$F114=5)),0,hosp_count(VALUE(LEFT(Options!$B$14,2)),$C114,$E114,$F114,2016,$I114/10+$J114/10,1,$H114/10,$G114*$H114/10, RateRatios_airpollution!$D114, RateRatios_airpollution!$C114)*10))","v":10198.702398134999},{"$f":"IF(AND(OR(Calculations!$E$2=\"Orkney Health Board\",Calculations!$E$2=\"Orkney Islands Local Authority\"),$F114=1),0,IF(AND(OR(Calculations!$E$2=\"Shetland Health Board\",Calculations!$E$2=\"Western Isles Health Board\",Calculations!$E$2=\"Shetland Islands Local Authority\",Calculations!$E$2=\"Eilean Siar Local Authority\"),OR($F114=1,$F114=5)),0,prem_mort(VALUE(LEFT(Options!$B$14,2)),$C114,$E114,$F114,2016,$I114/10,1,$H114/10,$G114*$H114/10,RateRatios_airpollution!$C114)*10))","v":0},{"$f":"IF(AND(OR(Calculations!$E$2=\"Orkney Health Board\",Calculations!$E$2=\"Orkney Islands Local Authority\"),$F114=1),0,IF(AND(OR(Calculations!$E$2=\"Shetland Health Board\",Calculations!$E$2=\"Western Isles Health Board\",Calculations!$E$2=\"Shetland Islands Local Authority\",Calculations!$E$2=\"Eilean Siar Local Authority\"),OR($F114=1,$F114=5)),0,prem_mort(VALUE(LEFT(Options!$B$14,2)),$C114,$E114,$F114,2016,$I114/10+$J114/10,1,$H114/10,$G114*$H114/10,RateRatios_airpollution!$C114)*10))","v":0},null,{"$f":"IF(AND(OR(Calculations!$E$2=\"Orkney Health Board\",Calculations!$E$2=\"Orkney Islands Local Authority\"),$F114=1),0,IF(AND(OR(Calculations!$E$2=\"Shetland Health Board\",Calculations!$E$2=\"Western Isles Health Board\",Calculations!$E$2=\"Shetland Islands Local Authority\",Calculations!$E$2=\"Eilean Siar Local Authority\"),OR($F114=1,$F114=5)),0,new_ci(VALUE(LEFT(Options!$B$14,2)),$C114,$E114,$F114,2016,$I114/10,1,$H114/10,$G114*$H114/10,RateRatios_airpollution!$E114)*10))","v":897.80893023700003},{"$f":"IF(AND(OR(Calculations!$E$2=\"Orkney Health Board\",Calculations!$E$2=\"Orkney Islands Local Authority\"),$F114=1),0,IF(AND(OR(Calculations!$E$2=\"Shetland Health Board\",Calculations!$E$2=\"Western Isles Health Board\",Calculations!$E$2=\"Shetland Islands Local Authority\",Calculations!$E$2=\"Eilean Siar Local Authority\"),OR($F114=1,$F114=5)),0,new_ci(VALUE(LEFT(Options!$B$14,2)),$C114,$E114,$F114,2016,$I114/10+$J114/10,1,$H114/10,$G114*$H114/10,RateRatios_airpollution!$E114)*10))","v":897.80348868500005},{"$f":"IF(AND(OR(Calculations!$E$2=\"Orkney Health Board\",Calculations!$E$2=\"Orkney Islands Local Authority\"),$F114=1),0,IF(AND(OR(Calculations!$E$2=\"Shetland Health Board\",Calculations!$E$2=\"Western Isles Health Board\",Calculations!$E$2=\"Shetland Islands Local Authority\",Calculations!$E$2=\"Eilean Siar Local Authority\"),OR($F114=1,$F114=5)),0,new_yllv2(VALUE(LEFT(Options!$B$14,2)),$C114,$D114,$E114,$F114,2016,$I114/10,1,$H114/10,$G114*$H114/10,RateRatios_airpollution!$E114)*10))","v":6176.9236444130001},{"$f":"IF(AND(OR(Calculations!$E$2=\"Orkney Health Board\",Calculations!$E$2=\"Orkney Islands Local Authority\"),$F114=1),0,IF(AND(OR(Calculations!$E$2=\"Shetland Health Board\",Calculations!$E$2=\"Western Isles Health Board\",Calculations!$E$2=\"Shetland Islands Local Authority\",Calculations!$E$2=\"Eilean Siar Local Authority\"),OR($F114=1,$F114=5)),0,new_yllv2(VALUE(LEFT(Options!$B$14,2)),$C114,$D114,$E114,$F114,2016,$I114/10+$J114/10,1,$H114/10,$G114*$H114/10,RateRatios_airpollution!$E114)*10))","v":6176.8862065459998},{"$f":"IF(AND(OR(Calculations!$E$2=\"Orkney Health Board\",Calculations!$E$2=\"Orkney Islands Local Authority\"),$F114=1),0,IF(AND(OR(Calculations!$E$2=\"Shetland Health Board\",Calculations!$E$2=\"Western Isles Health Board\",Calculations!$E$2=\"Shetland Islands Local Authority\",Calculations!$E$2=\"Eilean Siar Local Authority\"),OR($F114=1,$F114=5)),0,hosp_count(VALUE(LEFT(Options!$B$14,2)),$C114,$E114,$F114,2016,$I114/10,1,$H114/10,$G114*$H114/10, RateRatios_airpollution!$F114, RateRatios_airpollution!$E114)*10))","v":10198.963905691},{"$f":"IF(AND(OR(Calculations!$E$2=\"Orkney Health Board\",Calculations!$E$2=\"Orkney Islands Local Authority\"),$F114=1),0,IF(AND(OR(Calculations!$E$2=\"Shetland Health Board\",Calculations!$E$2=\"Western Isles Health Board\",Calculations!$E$2=\"Shetland Islands Local Authority\",Calculations!$E$2=\"Eilean Siar Local Authority\"),OR($F114=1,$F114=5)),0,hosp_count(VALUE(LEFT(Options!$B$14,2)),$C114,$E114,$F114,2016,$I114/10+$J114/10,1,$H114/10,$G114*$H114/10, RateRatios_airpollution!$F114, RateRatios_airpollution!$E114)*10))","v":10198.963905691},{"$f":"IF(AND(OR(Calculations!$E$2=\"Orkney Health Board\",Calculations!$E$2=\"Orkney Islands Local Authority\"),$F114=1),0,IF(AND(OR(Calculations!$E$2=\"Shetland Health Board\",Calculations!$E$2=\"Western Isles Health Board\",Calculations!$E$2=\"Shetland Islands Local Authority\",Calculations!$E$2=\"Eilean Siar Local Authority\"),OR($F114=1,$F114=5)),0,prem_mort(VALUE(LEFT(Options!$B$14,2)),$C114,$E114,$F114,2016,$I114/10,1,$H114/10,$G114*$H114/10,RateRatios_airpollution!$E114)*10))","v":0},{"$f":"IF(AND(OR(Calculations!$E$2=\"Orkney Health Board\",Calculations!$E$2=\"Orkney Islands Local Authority\"),$F114=1),0,IF(AND(OR(Calculations!$E$2=\"Shetland Health Board\",Calculations!$E$2=\"Western Isles Health Board\",Calculations!$E$2=\"Shetland Islands Local Authority\",Calculations!$E$2=\"Eilean Siar Local Authority\"),OR($F114=1,$F114=5)),0,prem_mort(VALUE(LEFT(Options!$B$14,2)),$C114,$E114,$F114,2016,$I114/10+$J114/10,1,$H114/10,$G114*$H114/10,RateRatios_airpollution!$E114)*10))","v":0},897.80893023700003,897.56368700100006,6176.9236444130001,6175.2363714399999,10198.963905691,10196.044012146998,0,0,5139.14671,5137.7429135718376,35357.319086508302,35347.660969891236,58379.873530000004,58363.159771877494,0,0,12847866.775,12844357.283929594,88393297.71627076,88369152.424728096,145949683.82500002,145907899.42969373,0,0,2500]
[null,"Female 85-89",86.730819999999994,92.220819999999989,"female",2,1,{"$f":"HLOOKUP(Calculations!$E$2,'Population 2016'!$C$3:$BC$249,'Population 2016'!BD115,FALSE)","v":10411},0,{"$f":"HLOOKUP(Calculations!$E$2,Pop2016_in_settlements!$C$3:$BC$249,Pop2016_in_settlements!$BD115,FALSE)","v":6678},{"$f":"IF(AND(OR(Calculations!$E$2=\"Orkney Health Board\",Calculations!$E$2=\"Orkney Islands Local Authority\"),$F115=1),0,IF(AND(OR(Calculations!$E$2=\"Shetland Health Board\",Calculations!$E$2=\"Western Isles Health Board\",Calculations!$E$2=\"Shetland Islands Local Authority\",Calculations!$E$2=\"Eilean Siar Local Authority\"),OR($F115=1,$F115=5)),0,new_ci(VALUE(LEFT(Options!$B$14,2)),$C115,$E115,$F115,2016,$I115/10,1,$H115/10,$G115*$H115/10,RateRatios_accidents!$B$5)*10))","v":799.10903140599999},{"$f":"IF(AND(OR(Calculations!$E$2=\"Orkney Health Board\",Calculations!$E$2=\"Orkney Islands Local Authority\"),$F115=1),0,IF(AND(OR(Calculations!$E$2=\"Shetland Health Board\",Calculations!$E$2=\"Western Isles Health Board\",Calculations!$E$2=\"Shetland Islands Local Authority\",Calculations!$E$2=\"Eilean Siar Local Authority\"),OR($F115=1,$F115=5)),0,new_ci(VALUE(LEFT(Options!$B$14,2)),$C115,$E115,$F115,2016,$I115/10+$J115/10,1,$H115/10,$G115*$H115/10,RateRatios_accidents!$B$5)*10))","v":798.91207514899997},{"$f":"IF(AND(OR(Calculations!$E$2=\"Orkney Health Board\",Calculations!$E$2=\"Orkney Islands Local Authority\"),$F115=1),0,IF(AND(OR(Calculations!$E$2=\"Shetland Health Board\",Calculations!$E$2=\"Western Isles Health Board\",Calculations!$E$2=\"Shetland Islands Local Authority\",Calculations!$E$2=\"Eilean Siar Local Authority\"),OR($F115=1,$F115=5)),0,new_yllv2(VALUE(LEFT(Options!$B$14,2)),$C115,$D115,$E115,$F115,2016,$I115/10,1,$H115/10,$G115*$H115/10,RateRatios_accidents!$B$5)*10))","v":3587.9995510129997},{"$f":"IF(AND(OR(Calculations!$E$2=\"Orkney Health Board\",Calculations!$E$2=\"Orkney Islands Local Authority\"),$F115=1),0,IF(AND(OR(Calculations!$E$2=\"Shetland Health Board\",Calculations!$E$2=\"Western Isles Health Board\",Calculations!$E$2=\"Shetland Islands Local Authority\",Calculations!$E$2=\"Eilean Siar Local Authority\"),OR($F115=1,$F115=5)),0,new_yllv2(VALUE(LEFT(Options!$B$14,2)),$C115,$D115,$E115,$F115,2016,$I115/10+$J115/10,1,$H115/10,$G115*$H115/10,RateRatios_accidents!$B$5)*10))","v":3587.1152174190001},{"$f":"IF(AND(OR(Calculations!$E$2=\"Orkney Health Board\",Calculations!$E$2=\"Orkney Islands Local Authority\"),$F115=1),0,IF(AND(OR(Calculations!$E$2=\"Shetland Health Board\",Calculations!$E$2=\"Western Isles Health Board\",Calculations!$E$2=\"Shetland Islands Local Authority\",Calculations!$E$2=\"Eilean Siar Local Authority\"),OR($F115=1,$F115=5)),0,hosp_count(VALUE(LEFT(Options!$B$14,2)),$C115,$E115,$F115,2016,$I115/10,1,$H115/10,$G115*$H115/10, RateRatios_accidents!$B$4, RateRatios_accidents!$B$5)*10))","v":6870.6983567420002},{"$f":"IF(AND(OR(Calculations!$E$2=\"Orkney Health Board\",Calculations!$E$2=\"Orkney Islands Local Authority\"),$F115=1),0,IF(AND(OR(Calculations!$E$2=\"Shetland Health Board\",Calculations!$E$2=\"Western Isles Health Board\",Calculations!$E$2=\"Shetland Islands Local Authority\",Calculations!$E$2=\"Eilean Siar Local Authority\"),OR($F115=1,$F115=5)),0,hosp_count(VALUE(LEFT(Options!$B$14,2)),$C115,$E115,$F115,2016,$I115/10+$J115/10,1,$H115/10,$G115*$H115/10, RateRatios_accidents!$B$4, RateRatios_accidents!$B$5)*10))","v":6868.9355089870005},{"$f":"IF(AND(OR(Calculations!$E$2=\"Orkney Health Board\",Calculations!$E$2=\"Orkney Islands Local Authority\"),$F115=1),0,IF(AND(OR(Calculations!$E$2=\"Shetland Health Board\",Calculations!$E$2=\"Western Isles Health Board\",Calculations!$E$2=\"Shetland Islands Local Authority\",Calculations!$E$2=\"Eilean Siar Local Authority\"),OR($F115=1,$F115=5)),0,prem_mort(VALUE(LEFT(Options!$B$14,2)),$C115,$E115,$F115,2016,$I115/10,1,$H115/10,$G115*$H115/10,RateRatios_accidents!$B$5)*10))","v":0},{"$f":"IF(AND(OR(Calculations!$E$2=\"Orkney Health Board\",Calculations!$E$2=\"Orkney Islands Local Authority\"),$F115=1),0,IF(AND(OR(Calculations!$E$2=\"Shetland Health Board\",Calculations!$E$2=\"Western Isles Health Board\",Calculations!$E$2=\"Shetland Islands Local Authority\",Calculations!$E$2=\"Eilean Siar Local Authority\"),OR($F115=1,$F115=5)),0,prem_mort(VALUE(LEFT(Options!$B$14,2)),$C115,$E115,$F115,2016,$I115/10+$J115/10,1,$H115/10,$G115*$H115/10,RateRatios_accidents!$B$5)*10))","v":0},null,{"$f":"IF(AND(OR(Calculations!$E$2=\"Orkney Health Board\",Calculations!$E$2=\"Orkney Islands Local Authority\"),$F115=1),0,IF(AND(OR(Calculations!$E$2=\"Shetland Health Board\",Calculations!$E$2=\"Western Isles Health Board\",Calculations!$E$2=\"Shetland Islands Local Authority\",Calculations!$E$2=\"Eilean Siar Local Authority\"),OR($F115=1,$F115=5)),0,new_ci(VALUE(LEFT(Options!$B$14,2)),$C115,$E115,$F115,2016,$I115/10,1,$H115/10,$G115*$H115/10,RateRatios_airpollution!$C115)*10))","v":799.10903140599999},{"$f":"IF(AND(OR(Calculations!$E$2=\"Orkney Health Board\",Calculations!$E$2=\"Orkney Islands Local Authority\"),$F115=1),0,IF(AND(OR(Calculations!$E$2=\"Shetland Health Board\",Calculations!$E$2=\"Western Isles Health Board\",Calculations!$E$2=\"Shetland Islands Local Authority\",Calculations!$E$2=\"Eilean Siar Local Authority\"),OR($F115=1,$F115=5)),0,new_ci(VALUE(LEFT(Options!$B$14,2)),$C115,$E115,$F115,2016,$I115/10+$J115/10,1,$H115/10,$G115*$H115/10,RateRatios_airpollution!$C115)*10))","v":799.09847081699991},{"$f":"IF(AND(OR(Calculations!$E$2=\"Orkney Health Board\",Calculations!$E$2=\"Orkney Islands Local Authority\"),$F115=1),0,IF(AND(OR(Calculations!$E$2=\"Shetland Health Board\",Calculations!$E$2=\"Western Isles Health Board\",Calculations!$E$2=\"Shetland Islands Local Authority\",Calculations!$E$2=\"Eilean Siar Local Authority\"),OR($F115=1,$F115=5)),0,new_yllv2(VALUE(LEFT(Options!$B$14,2)),$C115,$D115,$E115,$F115,2016,$I115/10,1,$H115/10,$G115*$H115/10,RateRatios_airpollution!$C115)*10))","v":3587.9995510129997},{"$f":"IF(AND(OR(Calculations!$E$2=\"Orkney Health Board\",Calculations!$E$2=\"Orkney Islands Local Authority\"),$F115=1),0,IF(AND(OR(Calculations!$E$2=\"Shetland Health Board\",Calculations!$E$2=\"Western Isles Health Board\",Calculations!$E$2=\"Shetland Islands Local Authority\",Calculations!$E$2=\"Eilean Siar Local Authority\"),OR($F115=1,$F115=5)),0,new_yllv2(VALUE(LEFT(Options!$B$14,2)),$C115,$D115,$E115,$F115,2016,$I115/10+$J115/10,1,$H115/10,$G115*$H115/10,RateRatios_airpollution!$C115)*10))","v":3587.9521339680005},{"$f":"IF(AND(OR(Calculations!$E$2=\"Orkney Health Board\",Calculations!$E$2=\"Orkney Islands Local Authority\"),$F115=1),0,IF(AND(OR(Calculations!$E$2=\"Shetland Health Board\",Calculations!$E$2=\"Western Isles Health Board\",Calculations!$E$2=\"Shetland Islands Local Authority\",Calculations!$E$2=\"Eilean Siar Local Authority\"),OR($F115=1,$F115=5)),0,hosp_count(VALUE(LEFT(Options!$B$14,2)),$C115,$E115,$F115,2016,$I115/10,1,$H115/10,$G115*$H115/10, RateRatios_airpollution!$D115, RateRatios_airpollution!$C115)*10))","v":6870.6983567420002},{"$f":"IF(AND(OR(Calculations!$E$2=\"Orkney Health Board\",Calculations!$E$2=\"Orkney Islands Local Authority\"),$F115=1),0,IF(AND(OR(Calculations!$E$2=\"Shetland Health Board\",Calculations!$E$2=\"Western Isles Health Board\",Calculations!$E$2=\"Shetland Islands Local Authority\",Calculations!$E$2=\"Eilean Siar Local Authority\"),OR($F115=1,$F115=5)),0,hosp_count(VALUE(LEFT(Options!$B$14,2)),$C115,$E115,$F115,2016,$I115/10+$J115/10,1,$H115/10,$G115*$H115/10, RateRatios_airpollution!$D115, RateRatios_airpollution!$C115)*10))","v":6870.5202845329995},{"$f":"IF(AND(OR(Calculations!$E$2=\"Orkney Health Board\",Calculations!$E$2=\"Orkney Islands Local Authority\"),$F115=1),0,IF(AND(OR(Calculations!$E$2=\"Shetland Health Board\",Calculations!$E$2=\"Western Isles Health Board\",Calculations!$E$2=\"Shetland Islands Local Authority\",Calculations!$E$2=\"Eilean Siar Local Authority\"),OR($F115=1,$F115=5)),0,prem_mort(VALUE(LEFT(Options!$B$14,2)),$C115,$E115,$F115,2016,$I115/10,1,$H115/10,$G115*$H115/10,RateRatios_airpollution!$C115)*10))","v":0},{"$f":"IF(AND(OR(Calculations!$E$2=\"Orkney Health Board\",Calculations!$E$2=\"Orkney Islands Local Authority\"),$F115=1),0,IF(AND(OR(Calculations!$E$2=\"Shetland Health Board\",Calculations!$E$2=\"Western Isles Health Board\",Calculations!$E$2=\"Shetland Islands Local Authority\",Calculations!$E$2=\"Eilean Siar Local Authority\"),OR($F115=1,$F115=5)),0,prem_mort(VALUE(LEFT(Options!$B$14,2)),$C115,$E115,$F115,2016,$I115/10+$J115/10,1,$H115/10,$G115*$H115/10,RateRatios_airpollution!$C115)*10))","v":0},null,{"$f":"IF(AND(OR(Calculations!$E$2=\"Orkney Health Board\",Calculations!$E$2=\"Orkney Islands Local Authority\"),$F115=1),0,IF(AND(OR(Calculations!$E$2=\"Shetland Health Board\",Calculations!$E$2=\"Western Isles Health Board\",Calculations!$E$2=\"Shetland Islands Local Authority\",Calculations!$E$2=\"Eilean Siar Local Authority\"),OR($F115=1,$F115=5)),0,new_ci(VALUE(LEFT(Options!$B$14,2)),$C115,$E115,$F115,2016,$I115/10,1,$H115/10,$G115*$H115/10,RateRatios_airpollution!$E115)*10))","v":799.10903140599999},{"$f":"IF(AND(OR(Calculations!$E$2=\"Orkney Health Board\",Calculations!$E$2=\"Orkney Islands Local Authority\"),$F115=1),0,IF(AND(OR(Calculations!$E$2=\"Shetland Health Board\",Calculations!$E$2=\"Western Isles Health Board\",Calculations!$E$2=\"Shetland Islands Local Authority\",Calculations!$E$2=\"Eilean Siar Local Authority\"),OR($F115=1,$F115=5)),0,new_ci(VALUE(LEFT(Options!$B$14,2)),$C115,$E115,$F115,2016,$I115/10+$J115/10,1,$H115/10,$G115*$H115/10,RateRatios_airpollution!$E115)*10))","v":799.10423593500002},{"$f":"IF(AND(OR(Calculations!$E$2=\"Orkney Health Board\",Calculations!$E$2=\"Orkney Islands Local Authority\"),$F115=1),0,IF(AND(OR(Calculations!$E$2=\"Shetland Health Board\",Calculations!$E$2=\"Western Isles Health Board\",Calculations!$E$2=\"Shetland Islands Local Authority\",Calculations!$E$2=\"Eilean Siar Local Authority\"),OR($F115=1,$F115=5)),0,new_yllv2(VALUE(LEFT(Options!$B$14,2)),$C115,$D115,$E115,$F115,2016,$I115/10,1,$H115/10,$G115*$H115/10,RateRatios_airpollution!$E115)*10))","v":3587.9995510129997},{"$f":"IF(AND(OR(Calculations!$E$2=\"Orkney Health Board\",Calculations!$E$2=\"Orkney Islands Local Authority\"),$F115=1),0,IF(AND(OR(Calculations!$E$2=\"Shetland Health Board\",Calculations!$E$2=\"Western Isles Health Board\",Calculations!$E$2=\"Shetland Islands Local Authority\",Calculations!$E$2=\"Eilean Siar Local Authority\"),OR($F115=1,$F115=5)),0,new_yllv2(VALUE(LEFT(Options!$B$14,2)),$C115,$D115,$E115,$F115,2016,$I115/10+$J115/10,1,$H115/10,$G115*$H115/10,RateRatios_airpollution!$E115)*10))","v":3587.9780193480001},{"$f":"IF(AND(OR(Calculations!$E$2=\"Orkney Health Board\",Calculations!$E$2=\"Orkney Islands Local Authority\"),$F115=1),0,IF(AND(OR(Calculations!$E$2=\"Shetland Health Board\",Calculations!$E$2=\"Western Isles Health Board\",Calculations!$E$2=\"Shetland Islands Local Authority\",Calculations!$E$2=\"Eilean Siar Local Authority\"),OR($F115=1,$F115=5)),0,hosp_count(VALUE(LEFT(Options!$B$14,2)),$C115,$E115,$F115,2016,$I115/10,1,$H115/10,$G115*$H115/10, RateRatios_airpollution!$F115, RateRatios_airpollution!$E115)*10))","v":6870.6983567420002},{"$f":"IF(AND(OR(Calculations!$E$2=\"Orkney Health Board\",Calculations!$E$2=\"Orkney Islands Local Authority\"),$F115=1),0,IF(AND(OR(Calculations!$E$2=\"Shetland Health Board\",Calculations!$E$2=\"Western Isles Health Board\",Calculations!$E$2=\"Shetland Islands Local Authority\",Calculations!$E$2=\"Eilean Siar Local Authority\"),OR($F115=1,$F115=5)),0,hosp_count(VALUE(LEFT(Options!$B$14,2)),$C115,$E115,$F115,2016,$I115/10+$J115/10,1,$H115/10,$G115*$H115/10, RateRatios_airpollution!$F115, RateRatios_airpollution!$E115)*10))","v":6870.6983567420002},{"$f":"IF(AND(OR(Calculations!$E$2=\"Orkney Health Board\",Calculations!$E$2=\"Orkney Islands Local Authority\"),$F115=1),0,IF(AND(OR(Calculations!$E$2=\"Shetland Health Board\",Calculations!$E$2=\"Western Isles Health Board\",Calculations!$E$2=\"Shetland Islands Local Authority\",Calculations!$E$2=\"Eilean Siar Local Authority\"),OR($F115=1,$F115=5)),0,prem_mort(VALUE(LEFT(Options!$B$14,2)),$C115,$E115,$F115,2016,$I115/10,1,$H115/10,$G115*$H115/10,RateRatios_airpollution!$E115)*10))","v":0},{"$f":"IF(AND(OR(Calculations!$E$2=\"Orkney Health Board\",Calculations!$E$2=\"Orkney Islands Local Authority\"),$F115=1),0,IF(AND(OR(Calculations!$E$2=\"Shetland Health Board\",Calculations!$E$2=\"Western Isles Health Board\",Calculations!$E$2=\"Shetland Islands Local Authority\",Calculations!$E$2=\"Eilean Siar Local Authority\"),OR($F115=1,$F115=5)),0,prem_mort(VALUE(LEFT(Options!$B$14,2)),$C115,$E115,$F115,2016,$I115/10+$J115/10,1,$H115/10,$G115*$H115/10,RateRatios_airpollution!$E115)*10))","v":0},799.10903140599999,798.89671908899993,3587.9995510129997,3587.0462687090012,6870.6983567420002,6868.7574367779998,0,0,7675.6222399961571,7673.582932369608,34463.543857583325,34454.387366333693,65994.605290000967,65975.962316569014,0,0,11513433.359994236,11510374.398554413,51695315.786374986,51681581.04950054,98991907.935001448,98963943.474853516,0,0,1500]
[null,"Female 90+",92.779342999999997,96.279340000000005,"female",2,1,{"$f":"HLOOKUP(Calculations!$E$2,'Population 2016'!$C$3:$BC$249,'Population 2016'!BD116,FALSE)","v":5892},0,{"$f":"HLOOKUP(Calculations!$E$2,Pop2016_in_settlements!$C$3:$BC$249,Pop2016_in_settlements!$BD116,FALSE)","v":3634},{"$f":"IF(AND(OR(Calculations!$E$2=\"Orkney Health Board\",Calculations!$E$2=\"Orkney Islands Local Authority\"),$F116=1),0,IF(AND(OR(Calculations!$E$2=\"Shetland Health Board\",Calculations!$E$2=\"Western Isles Health Board\",Calculations!$E$2=\"Shetland Islands Local Authority\",Calculations!$E$2=\"Eilean Siar Local Authority\"),OR($F116=1,$F116=5)),0,new_ci(VALUE(LEFT(Options!$B$14,2)),$C116,$E116,$F116,2016,$I116/10,1,$H116/10,$G116*$H116/10,RateRatios_accidents!$B$5)*10))","v":736.78656390100002},{"$f":"IF(AND(OR(Calculations!$E$2=\"Orkney Health Board\",Calculations!$E$2=\"Orkney Islands Local Authority\"),$F116=1),0,IF(AND(OR(Calculations!$E$2=\"Shetland Health Board\",Calculations!$E$2=\"Western Isles Health Board\",Calculations!$E$2=\"Shetland Islands Local Authority\",Calculations!$E$2=\"Eilean Siar Local Authority\"),OR($F116=1,$F116=5)),0,new_ci(VALUE(LEFT(Options!$B$14,2)),$C116,$E116,$F116,2016,$I116/10+$J116/10,1,$H116/10,$G116*$H116/10,RateRatios_accidents!$B$5)*10))","v":736.61665950200006},{"$f":"IF(AND(OR(Calculations!$E$2=\"Orkney Health Board\",Calculations!$E$2=\"Orkney Islands Local Authority\"),$F116=1),0,IF(AND(OR(Calculations!$E$2=\"Shetland Health Board\",Calculations!$E$2=\"Western Isles Health Board\",Calculations!$E$2=\"Shetland Islands Local Authority\",Calculations!$E$2=\"Eilean Siar Local Authority\"),OR($F116=1,$F116=5)),0,new_yllv2(VALUE(LEFT(Options!$B$14,2)),$C116,$D116,$E116,$F116,2016,$I116/10,1,$H116/10,$G116*$H116/10,RateRatios_accidents!$B$5)*10))","v":1841.9641993929999},{"$f":"IF(AND(OR(Calculations!$E$2=\"Orkney Health Board\",Calculations!$E$2=\"Orkney Islands Local Authority\"),$F116=1),0,IF(AND(OR(Calculations!$E$2=\"Shetland Health Board\",Calculations!$E$2=\"Western Isles Health Board\",Calculations!$E$2=\"Shetland Islands Local Authority\",Calculations!$E$2=\"Eilean Siar Local Authority\"),OR($F116=1,$F116=5)),0,new_yllv2(VALUE(LEFT(Options!$B$14,2)),$C116,$D116,$E116,$F116,2016,$I116/10+$J116/10,1,$H116/10,$G116*$H116/10,RateRatios_accidents!$B$5)*10))","v":1841.5394389049998},{"$f":"IF(AND(OR(Calculations!$E$2=\"Orkney Health Board\",Calculations!$E$2=\"Orkney Islands Local Authority\"),$F116=1),0,IF(AND(OR(Calculations!$E$2=\"Shetland Health Board\",Calculations!$E$2=\"Western Isles Health Board\",Calculations!$E$2=\"Shetland Islands Local Authority\",Calculations!$E$2=\"Eilean Siar Local Authority\"),OR($F116=1,$F116=5)),0,hosp_count(VALUE(LEFT(Options!$B$14,2)),$C116,$E116,$F116,2016,$I116/10,1,$H116/10,$G116*$H116/10, RateRatios_accidents!$B$4, RateRatios_accidents!$B$5)*10))","v":4527.3690442400002},{"$f":"IF(AND(OR(Calculations!$E$2=\"Orkney Health Board\",Calculations!$E$2=\"Orkney Islands Local Authority\"),$F116=1),0,IF(AND(OR(Calculations!$E$2=\"Shetland Health Board\",Calculations!$E$2=\"Western Isles Health Board\",Calculations!$E$2=\"Shetland Islands Local Authority\",Calculations!$E$2=\"Eilean Siar Local Authority\"),OR($F116=1,$F116=5)),0,hosp_count(VALUE(LEFT(Options!$B$14,2)),$C116,$E116,$F116,2016,$I116/10+$J116/10,1,$H116/10,$G116*$H116/10, RateRatios_accidents!$B$4, RateRatios_accidents!$B$5)*10))","v":4526.2521089020001},{"$f":"IF(AND(OR(Calculations!$E$2=\"Orkney Health Board\",Calculations!$E$2=\"Orkney Islands Local Authority\"),$F116=1),0,IF(AND(OR(Calculations!$E$2=\"Shetland Health Board\",Calculations!$E$2=\"Western Isles Health Board\",Calculations!$E$2=\"Shetland Islands Local Authority\",Calculations!$E$2=\"Eilean Siar Local Authority\"),OR($F116=1,$F116=5)),0,prem_mort(VALUE(LEFT(Options!$B$14,2)),$C116,$E116,$F116,2016,$I116/10,1,$H116/10,$G116*$H116/10,RateRatios_accidents!$B$5)*10))","v":0},{"$f":"IF(AND(OR(Calculations!$E$2=\"Orkney Health Board\",Calculations!$E$2=\"Orkney Islands Local Authority\"),$F116=1),0,IF(AND(OR(Calculations!$E$2=\"Shetland Health Board\",Calculations!$E$2=\"Western Isles Health Board\",Calculations!$E$2=\"Shetland Islands Local Authority\",Calculations!$E$2=\"Eilean Siar Local Authority\"),OR($F116=1,$F116=5)),0,prem_mort(VALUE(LEFT(Options!$B$14,2)),$C116,$E116,$F116,2016,$I116/10+$J116/10,1,$H116/10,$G116*$H116/10,RateRatios_accidents!$B$5)*10))","v":0},null,{"$f":"IF(AND(OR(Calculations!$E$2=\"Orkney Health Board\",Calculations!$E$2=\"Orkney Islands Local Authority\"),$F116=1),0,IF(AND(OR(Calculations!$E$2=\"Shetland Health Board\",Calculations!$E$2=\"Western Isles Health Board\",Calculations!$E$2=\"Shetland Islands Local Authority\",Calculations!$E$2=\"Eilean Siar Local Authority\"),OR($F116=1,$F116=5)),0,new_ci(VALUE(LEFT(Options!$B$14,2)),$C116,$E116,$F116,2016,$I116/10,1,$H116/10,$G116*$H116/10,RateRatios_airpollution!$C116)*10))","v":736.78656390100002},{"$f":"IF(AND(OR(Calculations!$E$2=\"Orkney Health Board\",Calculations!$E$2=\"Orkney Islands Local Authority\"),$F116=1),0,IF(AND(OR(Calculations!$E$2=\"Shetland Health Board\",Calculations!$E$2=\"Western Isles Health Board\",Calculations!$E$2=\"Shetland Islands Local Authority\",Calculations!$E$2=\"Eilean Siar Local Authority\"),OR($F116=1,$F116=5)),0,new_ci(VALUE(LEFT(Options!$B$14,2)),$C116,$E116,$F116,2016,$I116/10+$J116/10,1,$H116/10,$G116*$H116/10,RateRatios_airpollution!$C116)*10))","v":736.7775141510001},{"$f":"IF(AND(OR(Calculations!$E$2=\"Orkney Health Board\",Calculations!$E$2=\"Orkney Islands Local Authority\"),$F116=1),0,IF(AND(OR(Calculations!$E$2=\"Shetland Health Board\",Calculations!$E$2=\"Western Isles Health Board\",Calculations!$E$2=\"Shetland Islands Local Authority\",Calculations!$E$2=\"Eilean Siar Local Authority\"),OR($F116=1,$F116=5)),0,new_yllv2(VALUE(LEFT(Options!$B$14,2)),$C116,$D116,$E116,$F116,2016,$I116/10,1,$H116/10,$G116*$H116/10,RateRatios_airpollution!$C116)*10))","v":1841.9641993929999},{"$f":"IF(AND(OR(Calculations!$E$2=\"Orkney Health Board\",Calculations!$E$2=\"Orkney Islands Local Authority\"),$F116=1),0,IF(AND(OR(Calculations!$E$2=\"Shetland Health Board\",Calculations!$E$2=\"Western Isles Health Board\",Calculations!$E$2=\"Shetland Islands Local Authority\",Calculations!$E$2=\"Eilean Siar Local Authority\"),OR($F116=1,$F116=5)),0,new_yllv2(VALUE(LEFT(Options!$B$14,2)),$C116,$D116,$E116,$F116,2016,$I116/10+$J116/10,1,$H116/10,$G116*$H116/10,RateRatios_airpollution!$C116)*10))","v":1841.941575045},{"$f":"IF(AND(OR(Calculations!$E$2=\"Orkney Health Board\",Calculations!$E$2=\"Orkney Islands Local Authority\"),$F116=1),0,IF(AND(OR(Calculations!$E$2=\"Shetland Health Board\",Calculations!$E$2=\"Western Isles Health Board\",Calculations!$E$2=\"Shetland Islands Local Authority\",Calculations!$E$2=\"Eilean Siar Local Authority\"),OR($F116=1,$F116=5)),0,hosp_count(VALUE(LEFT(Options!$B$14,2)),$C116,$E116,$F116,2016,$I116/10,1,$H116/10,$G116*$H116/10, RateRatios_airpollution!$D116, RateRatios_airpollution!$C116)*10))","v":4527.3690442400002},{"$f":"IF(AND(OR(Calculations!$E$2=\"Orkney Health Board\",Calculations!$E$2=\"Orkney Islands Local Authority\"),$F116=1),0,IF(AND(OR(Calculations!$E$2=\"Shetland Health Board\",Calculations!$E$2=\"Western Isles Health Board\",Calculations!$E$2=\"Shetland Islands Local Authority\",Calculations!$E$2=\"Eilean Siar Local Authority\"),OR($F116=1,$F116=5)),0,hosp_count(VALUE(LEFT(Options!$B$14,2)),$C116,$E116,$F116,2016,$I116/10+$J116/10,1,$H116/10,$G116*$H116/10, RateRatios_airpollution!$D116, RateRatios_airpollution!$C116)*10))","v":4527.2569596880003},{"$f":"IF(AND(OR(Calculations!$E$2=\"Orkney Health Board\",Calculations!$E$2=\"Orkney Islands Local Authority\"),$F116=1),0,IF(AND(OR(Calculations!$E$2=\"Shetland Health Board\",Calculations!$E$2=\"Western Isles Health Board\",Calculations!$E$2=\"Shetland Islands Local Authority\",Calculations!$E$2=\"Eilean Siar Local Authority\"),OR($F116=1,$F116=5)),0,prem_mort(VALUE(LEFT(Options!$B$14,2)),$C116,$E116,$F116,2016,$I116/10,1,$H116/10,$G116*$H116/10,RateRatios_airpollution!$C116)*10))","v":0},{"$f":"IF(AND(OR(Calculations!$E$2=\"Orkney Health Board\",Calculations!$E$2=\"Orkney Islands Local Authority\"),$F116=1),0,IF(AND(OR(Calculations!$E$2=\"Shetland Health Board\",Calculations!$E$2=\"Western Isles Health Board\",Calculations!$E$2=\"Shetland Islands Local Authority\",Calculations!$E$2=\"Eilean Siar Local Authority\"),OR($F116=1,$F116=5)),0,prem_mort(VALUE(LEFT(Options!$B$14,2)),$C116,$E116,$F116,2016,$I116/10+$J116/10,1,$H116/10,$G116*$H116/10,RateRatios_airpollution!$C116)*10))","v":0},null,{"$f":"IF(AND(OR(Calculations!$E$2=\"Orkney Health Board\",Calculations!$E$2=\"Orkney Islands Local Authority\"),$F116=1),0,IF(AND(OR(Calculations!$E$2=\"Shetland Health Board\",Calculations!$E$2=\"Western Isles Health Board\",Calculations!$E$2=\"Shetland Islands Local Authority\",Calculations!$E$2=\"Eilean Siar Local Authority\"),OR($F116=1,$F116=5)),0,new_ci(VALUE(LEFT(Options!$B$14,2)),$C116,$E116,$F116,2016,$I116/10,1,$H116/10,$G116*$H116/10,RateRatios_airpollution!$E116)*10))","v":736.78656390100002},{"$f":"IF(AND(OR(Calculations!$E$2=\"Orkney Health Board\",Calculations!$E$2=\"Orkney Islands Local Authority\"),$F116=1),0,IF(AND(OR(Calculations!$E$2=\"Shetland Health Board\",Calculations!$E$2=\"Western Isles Health Board\",Calculations!$E$2=\"Shetland Islands Local Authority\",Calculations!$E$2=\"Eilean Siar Local Authority\"),OR($F116=1,$F116=5)),0,new_ci(VALUE(LEFT(Options!$B$14,2)),$C116,$E116,$F116,2016,$I116/10+$J116/10,1,$H116/10,$G116*$H116/10,RateRatios_airpollution!$E116)*10))","v":736.78253016100007},{"$f":"IF(AND(OR(Calculations!$E$2=\"Orkney Health Board\",Calculations!$E$2=\"Orkney Islands Local Authority\"),$F116=1),0,IF(AND(OR(Calculations!$E$2=\"Shetland Health Board\",Calculations!$E$2=\"Western Isles Health Board\",Calculations!$E$2=\"Shetland Islands Local Authority\",Calculations!$E$2=\"Eilean Siar Local Authority\"),OR($F116=1,$F116=5)),0,new_yllv2(VALUE(LEFT(Options!$B$14,2)),$C116,$D116,$E116,$F116,2016,$I116/10,1,$H116/10,$G116*$H116/10,RateRatios_airpollution!$E116)*10))","v":1841.9641993929999},{"$f":"IF(AND(OR(Calculations!$E$2=\"Orkney Health Board\",Calculations!$E$2=\"Orkney Islands Local Authority\"),$F116=1),0,IF(AND(OR(Calculations!$E$2=\"Shetland Health Board\",Calculations!$E$2=\"Western Isles Health Board\",Calculations!$E$2=\"Shetland Islands Local Authority\",Calculations!$E$2=\"Eilean Siar Local Authority\"),OR($F116=1,$F116=5)),0,new_yllv2(VALUE(LEFT(Options!$B$14,2)),$C116,$D116,$E116,$F116,2016,$I116/10+$J116/10,1,$H116/10,$G116*$H116/10,RateRatios_airpollution!$E116)*10))","v":1841.9541150550001},{"$f":"IF(AND(OR(Calculations!$E$2=\"Orkney Health Board\",Calculations!$E$2=\"Orkney Islands Local Authority\"),$F116=1),0,IF(AND(OR(Calculations!$E$2=\"Shetland Health Board\",Calculations!$E$2=\"Western Isles Health Board\",Calculations!$E$2=\"Shetland Islands Local Authority\",Calculations!$E$2=\"Eilean Siar Local Authority\"),OR($F116=1,$F116=5)),0,hosp_count(VALUE(LEFT(Options!$B$14,2)),$C116,$E116,$F116,2016,$I116/10,1,$H116/10,$G116*$H116/10, RateRatios_airpollution!$F116, RateRatios_airpollution!$E116)*10))","v":4527.3690442400002},{"$f":"IF(AND(OR(Calculations!$E$2=\"Orkney Health Board\",Calculations!$E$2=\"Orkney Islands Local Authority\"),$F116=1),0,IF(AND(OR(Calculations!$E$2=\"Shetland Health Board\",Calculations!$E$2=\"Western Isles Health Board\",Calculations!$E$2=\"Shetland Islands Local Authority\",Calculations!$E$2=\"Eilean Siar Local Authority\"),OR($F116=1,$F116=5)),0,hosp_count(VALUE(LEFT(Options!$B$14,2)),$C116,$E116,$F116,2016,$I116/10+$J116/10,1,$H116/10,$G116*$H116/10, RateRatios_airpollution!$F116, RateRatios_airpollution!$E116)*10))","v":4527.3690442400002},{"$f":"IF(AND(OR(Calculations!$E$2=\"Orkney Health Board\",Calculations!$E$2=\"Orkney Islands Local Authority\"),$F116=1),0,IF(AND(OR(Calculations!$E$2=\"Shetland Health Board\",Calculations!$E$2=\"Western Isles Health Board\",Calculations!$E$2=\"Shetland Islands Local Authority\",Calculations!$E$2=\"Eilean Siar Local Authority\"),OR($F116=1,$F116=5)),0,prem_mort(VALUE(LEFT(Options!$B$14,2)),$C116,$E116,$F116,2016,$I116/10,1,$H116/10,$G116*$H116/10,RateRatios_airpollution!$E116)*10))","v":0},{"$f":"IF(AND(OR(Calculations!$E$2=\"Orkney Health Board\",Calculations!$E$2=\"Orkney Islands Local Authority\"),$F116=1),0,IF(AND(OR(Calculations!$E$2=\"Shetland Health Board\",Calculations!$E$2=\"Western Isles Health Board\",Calculations!$E$2=\"Shetland Islands Local Authority\",Calculations!$E$2=\"Eilean Siar Local Authority\"),OR($F116=1,$F116=5)),0,prem_mort(VALUE(LEFT(Options!$B$14,2)),$C116,$E116,$F116,2016,$I116/10+$J116/10,1,$H116/10,$G116*$H116/10,RateRatios_airpollution!$E116)*10))","v":0},736.78656390100002,736.60357601200019,1841.9641993929999,1841.506730219,4527.3690442400002,4526.1400243500002,0,0,12504.863609996606,12501.75790923286,31262.121510403937,31254.3572678038,76839.257369993211,76818.398240835028,0,0,12504863.609996606,12501757.90923286,31262121.510403935,31254357.267803799,76839257.36999321,76818398.240835026,0,0,1000]
[null,"Male 0-4",2.0320822999999999,77.402082000000007,"male",2,1,{"$f":"HLOOKUP(Calculations!$E$2,'Population 2016'!$C$3:$BC$249,'Population 2016'!BD117,FALSE)","v":0},0,{"$f":"HLOOKUP(Calculations!$E$2,Pop2016_in_settlements!$C$3:$BC$249,Pop2016_in_settlements!$BD117,FALSE)","v":0},{"$f":"IF(AND(OR(Calculations!$E$2=\"Orkney Health Board\",Calculations!$E$2=\"Orkney Islands Local Authority\"),$F117=1),0,IF(AND(OR(Calculations!$E$2=\"Shetland Health Board\",Calculations!$E$2=\"Western Isles Health Board\",Calculations!$E$2=\"Shetland Islands Local Authority\",Calculations!$E$2=\"Eilean Siar Local Authority\"),OR($F117=1,$F117=5)),0,new_ci(VALUE(LEFT(Options!$B$14,2)),$C117,$E117,$F117,2016,$I117/10,1,$H117/10,$G117*$H117/10,RateRatios_accidents!$B$5)*10))","v":{"$error":"#VALUE!"}},{"$f":"IF(AND(OR(Calculations!$E$2=\"Orkney Health Board\",Calculations!$E$2=\"Orkney Islands Local Authority\"),$F117=1),0,IF(AND(OR(Calculations!$E$2=\"Shetland Health Board\",Calculations!$E$2=\"Western Isles Health Board\",Calculations!$E$2=\"Shetland Islands Local Authority\",Calculations!$E$2=\"Eilean Siar Local Authority\"),OR($F117=1,$F117=5)),0,new_ci(VALUE(LEFT(Options!$B$14,2)),$C117,$E117,$F117,2016,$I117/10+$J117/10,1,$H117/10,$G117*$H117/10,RateRatios_accidents!$B$5)*10))","v":{"$error":"#VALUE!"}},{"$f":"IF(AND(OR(Calculations!$E$2=\"Orkney Health Board\",Calculations!$E$2=\"Orkney Islands Local Authority\"),$F117=1),0,IF(AND(OR(Calculations!$E$2=\"Shetland Health Board\",Calculations!$E$2=\"Western Isles Health Board\",Calculations!$E$2=\"Shetland Islands Local Authority\",Calculations!$E$2=\"Eilean Siar Local Authority\"),OR($F117=1,$F117=5)),0,new_yllv2(VALUE(LEFT(Options!$B$14,2)),$C117,$D117,$E117,$F117,2016,$I117/10,1,$H117/10,$G117*$H117/10,RateRatios_accidents!$B$5)*10))","v":{"$error":"#VALUE!"}},{"$f":"IF(AND(OR(Calculations!$E$2=\"Orkney Health Board\",Calculations!$E$2=\"Orkney Islands Local Authority\"),$F117=1),0,IF(AND(OR(Calculations!$E$2=\"Shetland Health Board\",Calculations!$E$2=\"Western Isles Health Board\",Calculations!$E$2=\"Shetland Islands Local Authority\",Calculations!$E$2=\"Eilean Siar Local Authority\"),OR($F117=1,$F117=5)),0,new_yllv2(VALUE(LEFT(Options!$B$14,2)),$C117,$D117,$E117,$F117,2016,$I117/10+$J117/10,1,$H117/10,$G117*$H117/10,RateRatios_accidents!$B$5)*10))","v":{"$error":"#VALUE!"}},{"$f":"IF(AND(OR(Calculations!$E$2=\"Orkney Health Board\",Calculations!$E$2=\"Orkney Islands Local Authority\"),$F117=1),0,IF(AND(OR(Calculations!$E$2=\"Shetland Health Board\",Calculations!$E$2=\"Western Isles Health Board\",Calculations!$E$2=\"Shetland Islands Local Authority\",Calculations!$E$2=\"Eilean Siar Local Authority\"),OR($F117=1,$F117=5)),0,hosp_count(VALUE(LEFT(Options!$B$14,2)),$C117,$E117,$F117,2016,$I117/10,1,$H117/10,$G117*$H117/10, RateRatios_accidents!$B$4, RateRatios_accidents!$B$5)*10))","v":{"$error":"#VALUE!"}},{"$f":"IF(AND(OR(Calculations!$E$2=\"Orkney Health Board\",Calculations!$E$2=\"Orkney Islands Local Authority\"),$F117=1),0,IF(AND(OR(Calculations!$E$2=\"Shetland Health Board\",Calculations!$E$2=\"Western Isles Health Board\",Calculations!$E$2=\"Shetland Islands Local Authority\",Calculations!$E$2=\"Eilean Siar Local Authority\"),OR($F117=1,$F117=5)),0,hosp_count(VALUE(LEFT(Options!$B$14,2)),$C117,$E117,$F117,2016,$I117/10+$J117/10,1,$H117/10,$G117*$H117/10, RateRatios_accidents!$B$4, RateRatios_accidents!$B$5)*10))","v":{"$error":"#VALUE!"}},{"$f":"IF(AND(OR(Calculations!$E$2=\"Orkney Health Board\",Calculations!$E$2=\"Orkney Islands Local Authority\"),$F117=1),0,IF(AND(OR(Calculations!$E$2=\"Shetland Health Board\",Calculations!$E$2=\"Western Isles Health Board\",Calculations!$E$2=\"Shetland Islands Local Authority\",Calculations!$E$2=\"Eilean Siar Local Authority\"),OR($F117=1,$F117=5)),0,prem_mort(VALUE(LEFT(Options!$B$14,2)),$C117,$E117,$F117,2016,$I117/10,1,$H117/10,$G117*$H117/10,RateRatios_accidents!$B$5)*10))","v":{"$error":"#VALUE!"}},{"$f":"IF(AND(OR(Calculations!$E$2=\"Orkney Health Board\",Calculations!$E$2=\"Orkney Islands Local Authority\"),$F117=1),0,IF(AND(OR(Calculations!$E$2=\"Shetland Health Board\",Calculations!$E$2=\"Western Isles Health Board\",Calculations!$E$2=\"Shetland Islands Local Authority\",Calculations!$E$2=\"Eilean Siar Local Authority\"),OR($F117=1,$F117=5)),0,prem_mort(VALUE(LEFT(Options!$B$14,2)),$C117,$E117,$F117,2016,$I117/10+$J117/10,1,$H117/10,$G117*$H117/10,RateRatios_accidents!$B$5)*10))","v":{"$error":"#VALUE!"}},null,{"$f":"IF(AND(OR(Calculations!$E$2=\"Orkney Health Board\",Calculations!$E$2=\"Orkney Islands Local Authority\"),$F117=1),0,IF(AND(OR(Calculations!$E$2=\"Shetland Health Board\",Calculations!$E$2=\"Western Isles Health Board\",Calculations!$E$2=\"Shetland Islands Local Authority\",Calculations!$E$2=\"Eilean Siar Local Authority\"),OR($F117=1,$F117=5)),0,new_ci(VALUE(LEFT(Options!$B$14,2)),$C117,$E117,$F117,2016,$I117/10,1,$H117/10,$G117*$H117/10,RateRatios_airpollution!$C117)*10))","v":{"$error":"#VALUE!"}},{"$f":"IF(AND(OR(Calculations!$E$2=\"Orkney Health Board\",Calculations!$E$2=\"Orkney Islands Local Authority\"),$F117=1),0,IF(AND(OR(Calculations!$E$2=\"Shetland Health Board\",Calculations!$E$2=\"Western Isles Health Board\",Calculations!$E$2=\"Shetland Islands Local Authority\",Calculations!$E$2=\"Eilean Siar Local Authority\"),OR($F117=1,$F117=5)),0,new_ci(VALUE(LEFT(Options!$B$14,2)),$C117,$E117,$F117,2016,$I117/10+$J117/10,1,$H117/10,$G117*$H117/10,RateRatios_airpollution!$C117)*10))","v":{"$error":"#VALUE!"}},{"$f":"IF(AND(OR(Calculations!$E$2=\"Orkney Health Board\",Calculations!$E$2=\"Orkney Islands Local Authority\"),$F117=1),0,IF(AND(OR(Calculations!$E$2=\"Shetland Health Board\",Calculations!$E$2=\"Western Isles Health Board\",Calculations!$E$2=\"Shetland Islands Local Authority\",Calculations!$E$2=\"Eilean Siar Local Authority\"),OR($F117=1,$F117=5)),0,new_yllv2(VALUE(LEFT(Options!$B$14,2)),$C117,$D117,$E117,$F117,2016,$I117/10,1,$H117/10,$G117*$H117/10,RateRatios_airpollution!$C117)*10))","v":{"$error":"#VALUE!"}},{"$f":"IF(AND(OR(Calculations!$E$2=\"Orkney Health Board\",Calculations!$E$2=\"Orkney Islands Local Authority\"),$F117=1),0,IF(AND(OR(Calculations!$E$2=\"Shetland Health Board\",Calculations!$E$2=\"Western Isles Health Board\",Calculations!$E$2=\"Shetland Islands Local Authority\",Calculations!$E$2=\"Eilean Siar Local Authority\"),OR($F117=1,$F117=5)),0,new_yllv2(VALUE(LEFT(Options!$B$14,2)),$C117,$D117,$E117,$F117,2016,$I117/10+$J117/10,1,$H117/10,$G117*$H117/10,RateRatios_airpollution!$C117)*10))","v":{"$error":"#VALUE!"}},{"$f":"IF(AND(OR(Calculations!$E$2=\"Orkney Health Board\",Calculations!$E$2=\"Orkney Islands Local Authority\"),$F117=1),0,IF(AND(OR(Calculations!$E$2=\"Shetland Health Board\",Calculations!$E$2=\"Western Isles Health Board\",Calculations!$E$2=\"Shetland Islands Local Authority\",Calculations!$E$2=\"Eilean Siar Local Authority\"),OR($F117=1,$F117=5)),0,hosp_count(VALUE(LEFT(Options!$B$14,2)),$C117,$E117,$F117,2016,$I117/10,1,$H117/10,$G117*$H117/10, RateRatios_airpollution!$D117, RateRatios_airpollution!$C117)*10))","v":{"$error":"#VALUE!"}},{"$f":"IF(AND(OR(Calculations!$E$2=\"Orkney Health Board\",Calculations!$E$2=\"Orkney Islands Local Authority\"),$F117=1),0,IF(AND(OR(Calculations!$E$2=\"Shetland Health Board\",Calculations!$E$2=\"Western Isles Health Board\",Calculations!$E$2=\"Shetland Islands Local Authority\",Calculations!$E$2=\"Eilean Siar Local Authority\"),OR($F117=1,$F117=5)),0,hosp_count(VALUE(LEFT(Options!$B$14,2)),$C117,$E117,$F117,2016,$I117/10+$J117/10,1,$H117/10,$G117*$H117/10, RateRatios_airpollution!$D117, RateRatios_airpollution!$C117)*10))","v":{"$error":"#VALUE!"}},{"$f":"IF(AND(OR(Calculations!$E$2=\"Orkney Health Board\",Calculations!$E$2=\"Orkney Islands Local Authority\"),$F117=1),0,IF(AND(OR(Calculations!$E$2=\"Shetland Health Board\",Calculations!$E$2=\"Western Isles Health Board\",Calculations!$E$2=\"Shetland Islands Local Authority\",Calculations!$E$2=\"Eilean Siar Local Authority\"),OR($F117=1,$F117=5)),0,prem_mort(VALUE(LEFT(Options!$B$14,2)),$C117,$E117,$F117,2016,$I117/10,1,$H117/10,$G117*$H117/10,RateRatios_airpollution!$C117)*10))","v":{"$error":"#VALUE!"}},{"$f":"IF(AND(OR(Calculations!$E$2=\"Orkney Health Board\",Calculations!$E$2=\"Orkney Islands Local Authority\"),$F117=1),0,IF(AND(OR(Calculations!$E$2=\"Shetland Health Board\",Calculations!$E$2=\"Western Isles Health Board\",Calculations!$E$2=\"Shetland Islands Local Authority\",Calculations!$E$2=\"Eilean Siar Local Authority\"),OR($F117=1,$F117=5)),0,prem_mort(VALUE(LEFT(Options!$B$14,2)),$C117,$E117,$F117,2016,$I117/10+$J117/10,1,$H117/10,$G117*$H117/10,RateRatios_airpollution!$C117)*10))","v":{"$error":"#VALUE!"}},null,{"$f":"IF(AND(OR(Calculations!$E$2=\"Orkney Health Board\",Calculations!$E$2=\"Orkney Islands Local Authority\"),$F117=1),0,IF(AND(OR(Calculations!$E$2=\"Shetland Health Board\",Calculations!$E$2=\"Western Isles Health Board\",Calculations!$E$2=\"Shetland Islands Local Authority\",Calculations!$E$2=\"Eilean Siar Local Authority\"),OR($F117=1,$F117=5)),0,new_ci(VALUE(LEFT(Options!$B$14,2)),$C117,$E117,$F117,2016,$I117/10,1,$H117/10,$G117*$H117/10,RateRatios_airpollution!$E117)*10))","v":{"$error":"#VALUE!"}},{"$f":"IF(AND(OR(Calculations!$E$2=\"Orkney Health Board\",Calculations!$E$2=\"Orkney Islands Local Authority\"),$F117=1),0,IF(AND(OR(Calculations!$E$2=\"Shetland Health Board\",Calculations!$E$2=\"Western Isles Health Board\",Calculations!$E$2=\"Shetland Islands Local Authority\",Calculations!$E$2=\"Eilean Siar Local Authority\"),OR($F117=1,$F117=5)),0,new_ci(VALUE(LEFT(Options!$B$14,2)),$C117,$E117,$F117,2016,$I117/10+$J117/10,1,$H117/10,$G117*$H117/10,RateRatios_airpollution!$E117)*10))","v":{"$error":"#VALUE!"}},{"$f":"IF(AND(OR(Calculations!$E$2=\"Orkney Health Board\",Calculations!$E$2=\"Orkney Islands Local Authority\"),$F117=1),0,IF(AND(OR(Calculations!$E$2=\"Shetland Health Board\",Calculations!$E$2=\"Western Isles Health Board\",Calculations!$E$2=\"Shetland Islands Local Authority\",Calculations!$E$2=\"Eilean Siar Local Authority\"),OR($F117=1,$F117=5)),0,new_yllv2(VALUE(LEFT(Options!$B$14,2)),$C117,$D117,$E117,$F117,2016,$I117/10,1,$H117/10,$G117*$H117/10,RateRatios_airpollution!$E117)*10))","v":{"$error":"#VALUE!"}},{"$f":"IF(AND(OR(Calculations!$E$2=\"Orkney Health Board\",Calculations!$E$2=\"Orkney Islands Local Authority\"),$F117=1),0,IF(AND(OR(Calculations!$E$2=\"Shetland Health Board\",Calculations!$E$2=\"Western Isles Health Board\",Calculations!$E$2=\"Shetland Islands Local Authority\",Calculations!$E$2=\"Eilean Siar Local Authority\"),OR($F117=1,$F117=5)),0,new_yllv2(VALUE(LEFT(Options!$B$14,2)),$C117,$D117,$E117,$F117,2016,$I117/10+$J117/10,1,$H117/10,$G117*$H117/10,RateRatios_airpollution!$E117)*10))","v":{"$error":"#VALUE!"}},{"$f":"IF(AND(OR(Calculations!$E$2=\"Orkney Health Board\",Calculations!$E$2=\"Orkney Islands Local Authority\"),$F117=1),0,IF(AND(OR(Calculations!$E$2=\"Shetland Health Board\",Calculations!$E$2=\"Western Isles Health Board\",Calculations!$E$2=\"Shetland Islands Local Authority\",Calculations!$E$2=\"Eilean Siar Local Authority\"),OR($F117=1,$F117=5)),0,hosp_count(VALUE(LEFT(Options!$B$14,2)),$C117,$E117,$F117,2016,$I117/10,1,$H117/10,$G117*$H117/10, RateRatios_airpollution!$F117, RateRatios_airpollution!$E117)*10))","v":{"$error":"#VALUE!"}},{"$f":"IF(AND(OR(Calculations!$E$2=\"Orkney Health Board\",Calculations!$E$2=\"Orkney Islands Local Authority\"),$F117=1),0,IF(AND(OR(Calculations!$E$2=\"Shetland Health Board\",Calculations!$E$2=\"Western Isles Health Board\",Calculations!$E$2=\"Shetland Islands Local Authority\",Calculations!$E$2=\"Eilean Siar Local Authority\"),OR($F117=1,$F117=5)),0,hosp_count(VALUE(LEFT(Options!$B$14,2)),$C117,$E117,$F117,2016,$I117/10+$J117/10,1,$H117/10,$G117*$H117/10, RateRatios_airpollution!$F117, RateRatios_airpollution!$E117)*10))","v":{"$error":"#VALUE!"}},{"$f":"IF(AND(OR(Calculations!$E$2=\"Orkney Health Board\",Calculations!$E$2=\"Orkney Islands Local Authority\"),$F117=1),0,IF(AND(OR(Calculations!$E$2=\"Shetland Health Board\",Calculations!$E$2=\"Western Isles Health Board\",Calculations!$E$2=\"Shetland Islands Local Authority\",Calculations!$E$2=\"Eilean Siar Local Authority\"),OR($F117=1,$F117=5)),0,prem_mort(VALUE(LEFT(Options!$B$14,2)),$C117,$E117,$F117,2016,$I117/10,1,$H117/10,$G117*$H117/10,RateRatios_airpollution!$E117)*10))","v":{"$error":"#VALUE!"}},{"$f":"IF(AND(OR(Calculations!$E$2=\"Orkney Health Board\",Calculations!$E$2=\"Orkney Islands Local Authority\"),$F117=1),0,IF(AND(OR(Calculations!$E$2=\"Shetland Health Board\",Calculations!$E$2=\"Western Isles Health Board\",Calculations!$E$2=\"Shetland Islands Local Authority\",Calculations!$E$2=\"Eilean Siar Local Authority\"),OR($F117=1,$F117=5)),0,prem_mort(VALUE(LEFT(Options!$B$14,2)),$C117,$E117,$F117,2016,$I117/10+$J117/10,1,$H117/10,$G117*$H117/10,RateRatios_airpollution!$E117)*10))","v":{"$error":"#VALUE!"}},{"$error":"#VALUE!"},{"$error":"#VALUE!"},{"$error":"#VALUE!"},{"$error":"#VALUE!"},{"$error":"#VALUE!"},{"$error":"#VALUE!"},{"$error":"#VALUE!"},{"$error":"#VALUE!"},{"$error":"#VALUE!"},{"$error":"#VALUE!"},{"$error":"#VALUE!"},{"$error":"#VALUE!"},{"$error":"#VALUE!"},{"$error":"#VALUE!"},{"$error":"#VALUE!"},{"$error":"#VALUE!"},{"$error":"#VALUE!"},{"$error":"#VALUE!"},{"$error":"#VALUE!"},{"$error":"#VALUE!"},{"$error":"#VALUE!"},{"$error":"#VALUE!"},{"$error":"#VALUE!"},{"$error":"#VALUE!"},5000]
[null,"Male 5-9",6.9784756000000003,77.398476000000002,"male",2,1,{"$f":"HLOOKUP(Calculations!$E$2,'Population 2016'!$C$3:$BC$249,'Population 2016'!BD118,FALSE)","v":0},0,{"$f":"HLOOKUP(Calculations!$E$2,Pop2016_in_settlements!$C$3:$BC$249,Pop2016_in_settlements!$BD118,FALSE)","v":0},{"$f":"IF(AND(OR(Calculations!$E$2=\"Orkney Health Board\",Calculations!$E$2=\"Orkney Islands Local Authority\"),$F118=1),0,IF(AND(OR(Calculations!$E$2=\"Shetland Health Board\",Calculations!$E$2=\"Western Isles Health Board\",Calculations!$E$2=\"Shetland Islands Local Authority\",Calculations!$E$2=\"Eilean Siar Local Authority\"),OR($F118=1,$F118=5)),0,new_ci(VALUE(LEFT(Options!$B$14,2)),$C118,$E118,$F118,2016,$I118/10,1,$H118/10,$G118*$H118/10,RateRatios_accidents!$B$5)*10))","v":{"$error":"#VALUE!"}},{"$f":"IF(AND(OR(Calculations!$E$2=\"Orkney Health Board\",Calculations!$E$2=\"Orkney Islands Local Authority\"),$F118=1),0,IF(AND(OR(Calculations!$E$2=\"Shetland Health Board\",Calculations!$E$2=\"Western Isles Health Board\",Calculations!$E$2=\"Shetland Islands Local Authority\",Calculations!$E$2=\"Eilean Siar Local Authority\"),OR($F118=1,$F118=5)),0,new_ci(VALUE(LEFT(Options!$B$14,2)),$C118,$E118,$F118,2016,$I118/10+$J118/10,1,$H118/10,$G118*$H118/10,RateRatios_accidents!$B$5)*10))","v":{"$error":"#VALUE!"}},{"$f":"IF(AND(OR(Calculations!$E$2=\"Orkney Health Board\",Calculations!$E$2=\"Orkney Islands Local Authority\"),$F118=1),0,IF(AND(OR(Calculations!$E$2=\"Shetland Health Board\",Calculations!$E$2=\"Western Isles Health Board\",Calculations!$E$2=\"Shetland Islands Local Authority\",Calculations!$E$2=\"Eilean Siar Local Authority\"),OR($F118=1,$F118=5)),0,new_yllv2(VALUE(LEFT(Options!$B$14,2)),$C118,$D118,$E118,$F118,2016,$I118/10,1,$H118/10,$G118*$H118/10,RateRatios_accidents!$B$5)*10))","v":{"$error":"#VALUE!"}},{"$f":"IF(AND(OR(Calculations!$E$2=\"Orkney Health Board\",Calculations!$E$2=\"Orkney Islands Local Authority\"),$F118=1),0,IF(AND(OR(Calculations!$E$2=\"Shetland Health Board\",Calculations!$E$2=\"Western Isles Health Board\",Calculations!$E$2=\"Shetland Islands Local Authority\",Calculations!$E$2=\"Eilean Siar Local Authority\"),OR($F118=1,$F118=5)),0,new_yllv2(VALUE(LEFT(Options!$B$14,2)),$C118,$D118,$E118,$F118,2016,$I118/10+$J118/10,1,$H118/10,$G118*$H118/10,RateRatios_accidents!$B$5)*10))","v":{"$error":"#VALUE!"}},{"$f":"IF(AND(OR(Calculations!$E$2=\"Orkney Health Board\",Calculations!$E$2=\"Orkney Islands Local Authority\"),$F118=1),0,IF(AND(OR(Calculations!$E$2=\"Shetland Health Board\",Calculations!$E$2=\"Western Isles Health Board\",Calculations!$E$2=\"Shetland Islands Local Authority\",Calculations!$E$2=\"Eilean Siar Local Authority\"),OR($F118=1,$F118=5)),0,hosp_count(VALUE(LEFT(Options!$B$14,2)),$C118,$E118,$F118,2016,$I118/10,1,$H118/10,$G118*$H118/10, RateRatios_accidents!$B$4, RateRatios_accidents!$B$5)*10))","v":{"$error":"#VALUE!"}},{"$f":"IF(AND(OR(Calculations!$E$2=\"Orkney Health Board\",Calculations!$E$2=\"Orkney Islands Local Authority\"),$F118=1),0,IF(AND(OR(Calculations!$E$2=\"Shetland Health Board\",Calculations!$E$2=\"Western Isles Health Board\",Calculations!$E$2=\"Shetland Islands Local Authority\",Calculations!$E$2=\"Eilean Siar Local Authority\"),OR($F118=1,$F118=5)),0,hosp_count(VALUE(LEFT(Options!$B$14,2)),$C118,$E118,$F118,2016,$I118/10+$J118/10,1,$H118/10,$G118*$H118/10, RateRatios_accidents!$B$4, RateRatios_accidents!$B$5)*10))","v":{"$error":"#VALUE!"}},{"$f":"IF(AND(OR(Calculations!$E$2=\"Orkney Health Board\",Calculations!$E$2=\"Orkney Islands Local Authority\"),$F118=1),0,IF(AND(OR(Calculations!$E$2=\"Shetland Health Board\",Calculations!$E$2=\"Western Isles Health Board\",Calculations!$E$2=\"Shetland Islands Local Authority\",Calculations!$E$2=\"Eilean Siar Local Authority\"),OR($F118=1,$F118=5)),0,prem_mort(VALUE(LEFT(Options!$B$14,2)),$C118,$E118,$F118,2016,$I118/10,1,$H118/10,$G118*$H118/10,RateRatios_accidents!$B$5)*10))","v":{"$error":"#VALUE!"}},{"$f":"IF(AND(OR(Calculations!$E$2=\"Orkney Health Board\",Calculations!$E$2=\"Orkney Islands Local Authority\"),$F118=1),0,IF(AND(OR(Calculations!$E$2=\"Shetland Health Board\",Calculations!$E$2=\"Western Isles Health Board\",Calculations!$E$2=\"Shetland Islands Local Authority\",Calculations!$E$2=\"Eilean Siar Local Authority\"),OR($F118=1,$F118=5)),0,prem_mort(VALUE(LEFT(Options!$B$14,2)),$C118,$E118,$F118,2016,$I118/10+$J118/10,1,$H118/10,$G118*$H118/10,RateRatios_accidents!$B$5)*10))","v":{"$error":"#VALUE!"}},null,{"$f":"IF(AND(OR(Calculations!$E$2=\"Orkney Health Board\",Calculations!$E$2=\"Orkney Islands Local Authority\"),$F118=1),0,IF(AND(OR(Calculations!$E$2=\"Shetland Health Board\",Calculations!$E$2=\"Western Isles Health Board\",Calculations!$E$2=\"Shetland Islands Local Authority\",Calculations!$E$2=\"Eilean Siar Local Authority\"),OR($F118=1,$F118=5)),0,new_ci(VALUE(LEFT(Options!$B$14,2)),$C118,$E118,$F118,2016,$I118/10,1,$H118/10,$G118*$H118/10,RateRatios_airpollution!$C118)*10))","v":{"$error":"#VALUE!"}},{"$f":"IF(AND(OR(Calculations!$E$2=\"Orkney Health Board\",Calculations!$E$2=\"Orkney Islands Local Authority\"),$F118=1),0,IF(AND(OR(Calculations!$E$2=\"Shetland Health Board\",Calculations!$E$2=\"Western Isles Health Board\",Calculations!$E$2=\"Shetland Islands Local Authority\",Calculations!$E$2=\"Eilean Siar Local Authority\"),OR($F118=1,$F118=5)),0,new_ci(VALUE(LEFT(Options!$B$14,2)),$C118,$E118,$F118,2016,$I118/10+$J118/10,1,$H118/10,$G118*$H118/10,RateRatios_airpollution!$C118)*10))","v":{"$error":"#VALUE!"}},{"$f":"IF(AND(OR(Calculations!$E$2=\"Orkney Health Board\",Calculations!$E$2=\"Orkney Islands Local Authority\"),$F118=1),0,IF(AND(OR(Calculations!$E$2=\"Shetland Health Board\",Calculations!$E$2=\"Western Isles Health Board\",Calculations!$E$2=\"Shetland Islands Local Authority\",Calculations!$E$2=\"Eilean Siar Local Authority\"),OR($F118=1,$F118=5)),0,new_yllv2(VALUE(LEFT(Options!$B$14,2)),$C118,$D118,$E118,$F118,2016,$I118/10,1,$H118/10,$G118*$H118/10,RateRatios_airpollution!$C118)*10))","v":{"$error":"#VALUE!"}},{"$f":"IF(AND(OR(Calculations!$E$2=\"Orkney Health Board\",Calculations!$E$2=\"Orkney Islands Local Authority\"),$F118=1),0,IF(AND(OR(Calculations!$E$2=\"Shetland Health Board\",Calculations!$E$2=\"Western Isles Health Board\",Calculations!$E$2=\"Shetland Islands Local Authority\",Calculations!$E$2=\"Eilean Siar Local Authority\"),OR($F118=1,$F118=5)),0,new_yllv2(VALUE(LEFT(Options!$B$14,2)),$C118,$D118,$E118,$F118,2016,$I118/10+$J118/10,1,$H118/10,$G118*$H118/10,RateRatios_airpollution!$C118)*10))","v":{"$error":"#VALUE!"}},{"$f":"IF(AND(OR(Calculations!$E$2=\"Orkney Health Board\",Calculations!$E$2=\"Orkney Islands Local Authority\"),$F118=1),0,IF(AND(OR(Calculations!$E$2=\"Shetland Health Board\",Calculations!$E$2=\"Western Isles Health Board\",Calculations!$E$2=\"Shetland Islands Local Authority\",Calculations!$E$2=\"Eilean Siar Local Authority\"),OR($F118=1,$F118=5)),0,hosp_count(VALUE(LEFT(Options!$B$14,2)),$C118,$E118,$F118,2016,$I118/10,1,$H118/10,$G118*$H118/10, RateRatios_airpollution!$D118, RateRatios_airpollution!$C118)*10))","v":{"$error":"#VALUE!"}},{"$f":"IF(AND(OR(Calculations!$E$2=\"Orkney Health Board\",Calculations!$E$2=\"Orkney Islands Local Authority\"),$F118=1),0,IF(AND(OR(Calculations!$E$2=\"Shetland Health Board\",Calculations!$E$2=\"Western Isles Health Board\",Calculations!$E$2=\"Shetland Islands Local Authority\",Calculations!$E$2=\"Eilean Siar Local Authority\"),OR($F118=1,$F118=5)),0,hosp_count(VALUE(LEFT(Options!$B$14,2)),$C118,$E118,$F118,2016,$I118/10+$J118/10,1,$H118/10,$G118*$H118/10, RateRatios_airpollution!$D118, RateRatios_airpollution!$C118)*10))","v":{"$error":"#VALUE!"}},{"$f":"IF(AND(OR(Calculations!$E$2=\"Orkney Health Board\",Calculations!$E$2=\"Orkney Islands Local Authority\"),$F118=1),0,IF(AND(OR(Calculations!$E$2=\"Shetland Health Board\",Calculations!$E$2=\"Western Isles Health Board\",Calculations!$E$2=\"Shetland Islands Local Authority\",Calculations!$E$2=\"Eilean Siar Local Authority\"),OR($F118=1,$F118=5)),0,prem_mort(VALUE(LEFT(Options!$B$14,2)),$C118,$E118,$F118,2016,$I118/10,1,$H118/10,$G118*$H118/10,RateRatios_airpollution!$C118)*10))","v":{"$error":"#VALUE!"}},{"$f":"IF(AND(OR(Calculations!$E$2=\"Orkney Health Board\",Calculations!$E$2=\"Orkney Islands Local Authority\"),$F118=1),0,IF(AND(OR(Calculations!$E$2=\"Shetland Health Board\",Calculations!$E$2=\"Western Isles Health Board\",Calculations!$E$2=\"Shetland Islands Local Authority\",Calculations!$E$2=\"Eilean Siar Local Authority\"),OR($F118=1,$F118=5)),0,prem_mort(VALUE(LEFT(Options!$B$14,2)),$C118,$E118,$F118,2016,$I118/10+$J118/10,1,$H118/10,$G118*$H118/10,RateRatios_airpollution!$C118)*10))","v":{"$error":"#VALUE!"}},null,{"$f":"IF(AND(OR(Calculations!$E$2=\"Orkney Health Board\",Calculations!$E$2=\"Orkney Islands Local Authority\"),$F118=1),0,IF(AND(OR(Calculations!$E$2=\"Shetland Health Board\",Calculations!$E$2=\"Western Isles Health Board\",Calculations!$E$2=\"Shetland Islands Local Authority\",Calculations!$E$2=\"Eilean Siar Local Authority\"),OR($F118=1,$F118=5)),0,new_ci(VALUE(LEFT(Options!$B$14,2)),$C118,$E118,$F118,2016,$I118/10,1,$H118/10,$G118*$H118/10,RateRatios_airpollution!$E118)*10))","v":{"$error":"#VALUE!"}},{"$f":"IF(AND(OR(Calculations!$E$2=\"Orkney Health Board\",Calculations!$E$2=\"Orkney Islands Local Authority\"),$F118=1),0,IF(AND(OR(Calculations!$E$2=\"Shetland Health Board\",Calculations!$E$2=\"Western Isles Health Board\",Calculations!$E$2=\"Shetland Islands Local Authority\",Calculations!$E$2=\"Eilean Siar Local Authority\"),OR($F118=1,$F118=5)),0,new_ci(VALUE(LEFT(Options!$B$14,2)),$C118,$E118,$F118,2016,$I118/10+$J118/10,1,$H118/10,$G118*$H118/10,RateRatios_airpollution!$E118)*10))","v":{"$error":"#VALUE!"}},{"$f":"IF(AND(OR(Calculations!$E$2=\"Orkney Health Board\",Calculations!$E$2=\"Orkney Islands Local Authority\"),$F118=1),0,IF(AND(OR(Calculations!$E$2=\"Shetland Health Board\",Calculations!$E$2=\"Western Isles Health Board\",Calculations!$E$2=\"Shetland Islands Local Authority\",Calculations!$E$2=\"Eilean Siar Local Authority\"),OR($F118=1,$F118=5)),0,new_yllv2(VALUE(LEFT(Options!$B$14,2)),$C118,$D118,$E118,$F118,2016,$I118/10,1,$H118/10,$G118*$H118/10,RateRatios_airpollution!$E118)*10))","v":{"$error":"#VALUE!"}},{"$f":"IF(AND(OR(Calculations!$E$2=\"Orkney Health Board\",Calculations!$E$2=\"Orkney Islands Local Authority\"),$F118=1),0,IF(AND(OR(Calculations!$E$2=\"Shetland Health Board\",Calculations!$E$2=\"Western Isles Health Board\",Calculations!$E$2=\"Shetland Islands Local Authority\",Calculations!$E$2=\"Eilean Siar Local Authority\"),OR($F118=1,$F118=5)),0,new_yllv2(VALUE(LEFT(Options!$B$14,2)),$C118,$D118,$E118,$F118,2016,$I118/10+$J118/10,1,$H118/10,$G118*$H118/10,RateRatios_airpollution!$E118)*10))","v":{"$error":"#VALUE!"}},{"$f":"IF(AND(OR(Calculations!$E$2=\"Orkney Health Board\",Calculations!$E$2=\"Orkney Islands Local Authority\"),$F118=1),0,IF(AND(OR(Calculations!$E$2=\"Shetland Health Board\",Calculations!$E$2=\"Western Isles Health Board\",Calculations!$E$2=\"Shetland Islands Local Authority\",Calculations!$E$2=\"Eilean Siar Local Authority\"),OR($F118=1,$F118=5)),0,hosp_count(VALUE(LEFT(Options!$B$14,2)),$C118,$E118,$F118,2016,$I118/10,1,$H118/10,$G118*$H118/10, RateRatios_airpollution!$F118, RateRatios_airpollution!$E118)*10))","v":{"$error":"#VALUE!"}},{"$f":"IF(AND(OR(Calculations!$E$2=\"Orkney Health Board\",Calculations!$E$2=\"Orkney Islands Local Authority\"),$F118=1),0,IF(AND(OR(Calculations!$E$2=\"Shetland Health Board\",Calculations!$E$2=\"Western Isles Health Board\",Calculations!$E$2=\"Shetland Islands Local Authority\",Calculations!$E$2=\"Eilean Siar Local Authority\"),OR($F118=1,$F118=5)),0,hosp_count(VALUE(LEFT(Options!$B$14,2)),$C118,$E118,$F118,2016,$I118/10+$J118/10,1,$H118/10,$G118*$H118/10, RateRatios_airpollution!$F118, RateRatios_airpollution!$E118)*10))","v":{"$error":"#VALUE!"}},{"$f":"IF(AND(OR(Calculations!$E$2=\"Orkney Health Board\",Calculations!$E$2=\"Orkney Islands Local Authority\"),$F118=1),0,IF(AND(OR(Calculations!$E$2=\"Shetland Health Board\",Calculations!$E$2=\"Western Isles Health Board\",Calculations!$E$2=\"Shetland Islands Local Authority\",Calculations!$E$2=\"Eilean Siar Local Authority\"),OR($F118=1,$F118=5)),0,prem_mort(VALUE(LEFT(Options!$B$14,2)),$C118,$E118,$F118,2016,$I118/10,1,$H118/10,$G118*$H118/10,RateRatios_airpollution!$E118)*10))","v":{"$error":"#VALUE!"}},{"$f":"IF(AND(OR(Calculations!$E$2=\"Orkney Health Board\",Calculations!$E$2=\"Orkney Islands Local Authority\"),$F118=1),0,IF(AND(OR(Calculations!$E$2=\"Shetland Health Board\",Calculations!$E$2=\"Western Isles Health Board\",Calculations!$E$2=\"Shetland Islands Local Authority\",Calculations!$E$2=\"Eilean Siar Local Authority\"),OR($F118=1,$F118=5)),0,prem_mort(VALUE(LEFT(Options!$B$14,2)),$C118,$E118,$F118,2016,$I118/10+$J118/10,1,$H118/10,$G118*$H118/10,RateRatios_airpollution!$E118)*10))","v":{"$error":"#VALUE!"}},{"$error":"#VALUE!"},{"$error":"#VALUE!"},{"$error":"#VALUE!"},{"$error":"#VALUE!"},{"$error":"#VALUE!"},{"$error":"#VALUE!"},{"$error":"#VALUE!"},{"$error":"#VALUE!"},{"$error":"#VALUE!"},{"$error":"#VALUE!"},{"$error":"#VALUE!"},{"$error":"#VALUE!"},{"$error":"#VALUE!"},{"$error":"#VALUE!"},{"$error":"#VALUE!"},{"$error":"#VALUE!"},{"$error":"#VALUE!"},{"$error":"#VALUE!"},{"$error":"#VALUE!"},{"$error":"#VALUE!"},{"$error":"#VALUE!"},{"$error":"#VALUE!"},{"$error":"#VALUE!"},{"$error":"#VALUE!"},5500]
[null,"Male 10-15",12.471144000000001,77.921140000000008,"male",2,1,{"$f":"HLOOKUP(Calculations!$E$2,'Population 2016'!$C$3:$BC$249,'Population 2016'!BD119,FALSE)","v":0},0,{"$f":"HLOOKUP(Calculations!$E$2,Pop2016_in_settlements!$C$3:$BC$249,Pop2016_in_settlements!$BD119,FALSE)","v":0},{"$f":"IF(AND(OR(Calculations!$E$2=\"Orkney Health Board\",Calculations!$E$2=\"Orkney Islands Local Authority\"),$F119=1),0,IF(AND(OR(Calculations!$E$2=\"Shetland Health Board\",Calculations!$E$2=\"Western Isles Health Board\",Calculations!$E$2=\"Shetland Islands Local Authority\",Calculations!$E$2=\"Eilean Siar Local Authority\"),OR($F119=1,$F119=5)),0,new_ci(VALUE(LEFT(Options!$B$14,2)),$C119,$E119,$F119,2016,$I119/10,1,$H119/10,$G119*$H119/10,RateRatios_accidents!$B$5)*10))","v":{"$error":"#VALUE!"}},{"$f":"IF(AND(OR(Calculations!$E$2=\"Orkney Health Board\",Calculations!$E$2=\"Orkney Islands Local Authority\"),$F119=1),0,IF(AND(OR(Calculations!$E$2=\"Shetland Health Board\",Calculations!$E$2=\"Western Isles Health Board\",Calculations!$E$2=\"Shetland Islands Local Authority\",Calculations!$E$2=\"Eilean Siar Local Authority\"),OR($F119=1,$F119=5)),0,new_ci(VALUE(LEFT(Options!$B$14,2)),$C119,$E119,$F119,2016,$I119/10+$J119/10,1,$H119/10,$G119*$H119/10,RateRatios_accidents!$B$5)*10))","v":{"$error":"#VALUE!"}},{"$f":"IF(AND(OR(Calculations!$E$2=\"Orkney Health Board\",Calculations!$E$2=\"Orkney Islands Local Authority\"),$F119=1),0,IF(AND(OR(Calculations!$E$2=\"Shetland Health Board\",Calculations!$E$2=\"Western Isles Health Board\",Calculations!$E$2=\"Shetland Islands Local Authority\",Calculations!$E$2=\"Eilean Siar Local Authority\"),OR($F119=1,$F119=5)),0,new_yllv2(VALUE(LEFT(Options!$B$14,2)),$C119,$D119,$E119,$F119,2016,$I119/10,1,$H119/10,$G119*$H119/10,RateRatios_accidents!$B$5)*10))","v":{"$error":"#VALUE!"}},{"$f":"IF(AND(OR(Calculations!$E$2=\"Orkney Health Board\",Calculations!$E$2=\"Orkney Islands Local Authority\"),$F119=1),0,IF(AND(OR(Calculations!$E$2=\"Shetland Health Board\",Calculations!$E$2=\"Western Isles Health Board\",Calculations!$E$2=\"Shetland Islands Local Authority\",Calculations!$E$2=\"Eilean Siar Local Authority\"),OR($F119=1,$F119=5)),0,new_yllv2(VALUE(LEFT(Options!$B$14,2)),$C119,$D119,$E119,$F119,2016,$I119/10+$J119/10,1,$H119/10,$G119*$H119/10,RateRatios_accidents!$B$5)*10))","v":{"$error":"#VALUE!"}},{"$f":"IF(AND(OR(Calculations!$E$2=\"Orkney Health Board\",Calculations!$E$2=\"Orkney Islands Local Authority\"),$F119=1),0,IF(AND(OR(Calculations!$E$2=\"Shetland Health Board\",Calculations!$E$2=\"Western Isles Health Board\",Calculations!$E$2=\"Shetland Islands Local Authority\",Calculations!$E$2=\"Eilean Siar Local Authority\"),OR($F119=1,$F119=5)),0,hosp_count(VALUE(LEFT(Options!$B$14,2)),$C119,$E119,$F119,2016,$I119/10,1,$H119/10,$G119*$H119/10, RateRatios_accidents!$B$4, RateRatios_accidents!$B$5)*10))","v":{"$error":"#VALUE!"}},{"$f":"IF(AND(OR(Calculations!$E$2=\"Orkney Health Board\",Calculations!$E$2=\"Orkney Islands Local Authority\"),$F119=1),0,IF(AND(OR(Calculations!$E$2=\"Shetland Health Board\",Calculations!$E$2=\"Western Isles Health Board\",Calculations!$E$2=\"Shetland Islands Local Authority\",Calculations!$E$2=\"Eilean Siar Local Authority\"),OR($F119=1,$F119=5)),0,hosp_count(VALUE(LEFT(Options!$B$14,2)),$C119,$E119,$F119,2016,$I119/10+$J119/10,1,$H119/10,$G119*$H119/10, RateRatios_accidents!$B$4, RateRatios_accidents!$B$5)*10))","v":{"$error":"#VALUE!"}},{"$f":"IF(AND(OR(Calculations!$E$2=\"Orkney Health Board\",Calculations!$E$2=\"Orkney Islands Local Authority\"),$F119=1),0,IF(AND(OR(Calculations!$E$2=\"Shetland Health Board\",Calculations!$E$2=\"Western Isles Health Board\",Calculations!$E$2=\"Shetland Islands Local Authority\",Calculations!$E$2=\"Eilean Siar Local Authority\"),OR($F119=1,$F119=5)),0,prem_mort(VALUE(LEFT(Options!$B$14,2)),$C119,$E119,$F119,2016,$I119/10,1,$H119/10,$G119*$H119/10,RateRatios_accidents!$B$5)*10))","v":{"$error":"#VALUE!"}},{"$f":"IF(AND(OR(Calculations!$E$2=\"Orkney Health Board\",Calculations!$E$2=\"Orkney Islands Local Authority\"),$F119=1),0,IF(AND(OR(Calculations!$E$2=\"Shetland Health Board\",Calculations!$E$2=\"Western Isles Health Board\",Calculations!$E$2=\"Shetland Islands Local Authority\",Calculations!$E$2=\"Eilean Siar Local Authority\"),OR($F119=1,$F119=5)),0,prem_mort(VALUE(LEFT(Options!$B$14,2)),$C119,$E119,$F119,2016,$I119/10+$J119/10,1,$H119/10,$G119*$H119/10,RateRatios_accidents!$B$5)*10))","v":{"$error":"#VALUE!"}},null,{"$f":"IF(AND(OR(Calculations!$E$2=\"Orkney Health Board\",Calculations!$E$2=\"Orkney Islands Local Authority\"),$F119=1),0,IF(AND(OR(Calculations!$E$2=\"Shetland Health Board\",Calculations!$E$2=\"Western Isles Health Board\",Calculations!$E$2=\"Shetland Islands Local Authority\",Calculations!$E$2=\"Eilean Siar Local Authority\"),OR($F119=1,$F119=5)),0,new_ci(VALUE(LEFT(Options!$B$14,2)),$C119,$E119,$F119,2016,$I119/10,1,$H119/10,$G119*$H119/10,RateRatios_airpollution!$C119)*10))","v":{"$error":"#VALUE!"}},{"$f":"IF(AND(OR(Calculations!$E$2=\"Orkney Health Board\",Calculations!$E$2=\"Orkney Islands Local Authority\"),$F119=1),0,IF(AND(OR(Calculations!$E$2=\"Shetland Health Board\",Calculations!$E$2=\"Western Isles Health Board\",Calculations!$E$2=\"Shetland Islands Local Authority\",Calculations!$E$2=\"Eilean Siar Local Authority\"),OR($F119=1,$F119=5)),0,new_ci(VALUE(LEFT(Options!$B$14,2)),$C119,$E119,$F119,2016,$I119/10+$J119/10,1,$H119/10,$G119*$H119/10,RateRatios_airpollution!$C119)*10))","v":{"$error":"#VALUE!"}},{"$f":"IF(AND(OR(Calculations!$E$2=\"Orkney Health Board\",Calculations!$E$2=\"Orkney Islands Local Authority\"),$F119=1),0,IF(AND(OR(Calculations!$E$2=\"Shetland Health Board\",Calculations!$E$2=\"Western Isles Health Board\",Calculations!$E$2=\"Shetland Islands Local Authority\",Calculations!$E$2=\"Eilean Siar Local Authority\"),OR($F119=1,$F119=5)),0,new_yllv2(VALUE(LEFT(Options!$B$14,2)),$C119,$D119,$E119,$F119,2016,$I119/10,1,$H119/10,$G119*$H119/10,RateRatios_airpollution!$C119)*10))","v":{"$error":"#VALUE!"}},{"$f":"IF(AND(OR(Calculations!$E$2=\"Orkney Health Board\",Calculations!$E$2=\"Orkney Islands Local Authority\"),$F119=1),0,IF(AND(OR(Calculations!$E$2=\"Shetland Health Board\",Calculations!$E$2=\"Western Isles Health Board\",Calculations!$E$2=\"Shetland Islands Local Authority\",Calculations!$E$2=\"Eilean Siar Local Authority\"),OR($F119=1,$F119=5)),0,new_yllv2(VALUE(LEFT(Options!$B$14,2)),$C119,$D119,$E119,$F119,2016,$I119/10+$J119/10,1,$H119/10,$G119*$H119/10,RateRatios_airpollution!$C119)*10))","v":{"$error":"#VALUE!"}},{"$f":"IF(AND(OR(Calculations!$E$2=\"Orkney Health Board\",Calculations!$E$2=\"Orkney Islands Local Authority\"),$F119=1),0,IF(AND(OR(Calculations!$E$2=\"Shetland Health Board\",Calculations!$E$2=\"Western Isles Health Board\",Calculations!$E$2=\"Shetland Islands Local Authority\",Calculations!$E$2=\"Eilean Siar Local Authority\"),OR($F119=1,$F119=5)),0,hosp_count(VALUE(LEFT(Options!$B$14,2)),$C119,$E119,$F119,2016,$I119/10,1,$H119/10,$G119*$H119/10, RateRatios_airpollution!$D119, RateRatios_airpollution!$C119)*10))","v":{"$error":"#VALUE!"}},{"$f":"IF(AND(OR(Calculations!$E$2=\"Orkney Health Board\",Calculations!$E$2=\"Orkney Islands Local Authority\"),$F119=1),0,IF(AND(OR(Calculations!$E$2=\"Shetland Health Board\",Calculations!$E$2=\"Western Isles Health Board\",Calculations!$E$2=\"Shetland Islands Local Authority\",Calculations!$E$2=\"Eilean Siar Local Authority\"),OR($F119=1,$F119=5)),0,hosp_count(VALUE(LEFT(Options!$B$14,2)),$C119,$E119,$F119,2016,$I119/10+$J119/10,1,$H119/10,$G119*$H119/10, RateRatios_airpollution!$D119, RateRatios_airpollution!$C119)*10))","v":{"$error":"#VALUE!"}},{"$f":"IF(AND(OR(Calculations!$E$2=\"Orkney Health Board\",Calculations!$E$2=\"Orkney Islands Local Authority\"),$F119=1),0,IF(AND(OR(Calculations!$E$2=\"Shetland Health Board\",Calculations!$E$2=\"Western Isles Health Board\",Calculations!$E$2=\"Shetland Islands Local Authority\",Calculations!$E$2=\"Eilean Siar Local Authority\"),OR($F119=1,$F119=5)),0,prem_mort(VALUE(LEFT(Options!$B$14,2)),$C119,$E119,$F119,2016,$I119/10,1,$H119/10,$G119*$H119/10,RateRatios_airpollution!$C119)*10))","v":{"$error":"#VALUE!"}},{"$f":"IF(AND(OR(Calculations!$E$2=\"Orkney Health Board\",Calculations!$E$2=\"Orkney Islands Local Authority\"),$F119=1),0,IF(AND(OR(Calculations!$E$2=\"Shetland Health Board\",Calculations!$E$2=\"Western Isles Health Board\",Calculations!$E$2=\"Shetland Islands Local Authority\",Calculations!$E$2=\"Eilean Siar Local Authority\"),OR($F119=1,$F119=5)),0,prem_mort(VALUE(LEFT(Options!$B$14,2)),$C119,$E119,$F119,2016,$I119/10+$J119/10,1,$H119/10,$G119*$H119/10,RateRatios_airpollution!$C119)*10))","v":{"$error":"#VALUE!"}},null,{"$f":"IF(AND(OR(Calculations!$E$2=\"Orkney Health Board\",Calculations!$E$2=\"Orkney Islands Local Authority\"),$F119=1),0,IF(AND(OR(Calculations!$E$2=\"Shetland Health Board\",Calculations!$E$2=\"Western Isles Health Board\",Calculations!$E$2=\"Shetland Islands Local Authority\",Calculations!$E$2=\"Eilean Siar Local Authority\"),OR($F119=1,$F119=5)),0,new_ci(VALUE(LEFT(Options!$B$14,2)),$C119,$E119,$F119,2016,$I119/10,1,$H119/10,$G119*$H119/10,RateRatios_airpollution!$E119)*10))","v":{"$error":"#VALUE!"}},{"$f":"IF(AND(OR(Calculations!$E$2=\"Orkney Health Board\",Calculations!$E$2=\"Orkney Islands Local Authority\"),$F119=1),0,IF(AND(OR(Calculations!$E$2=\"Shetland Health Board\",Calculations!$E$2=\"Western Isles Health Board\",Calculations!$E$2=\"Shetland Islands Local Authority\",Calculations!$E$2=\"Eilean Siar Local Authority\"),OR($F119=1,$F119=5)),0,new_ci(VALUE(LEFT(Options!$B$14,2)),$C119,$E119,$F119,2016,$I119/10+$J119/10,1,$H119/10,$G119*$H119/10,RateRatios_airpollution!$E119)*10))","v":{"$error":"#VALUE!"}},{"$f":"IF(AND(OR(Calculations!$E$2=\"Orkney Health Board\",Calculations!$E$2=\"Orkney Islands Local Authority\"),$F119=1),0,IF(AND(OR(Calculations!$E$2=\"Shetland Health Board\",Calculations!$E$2=\"Western Isles Health Board\",Calculations!$E$2=\"Shetland Islands Local Authority\",Calculations!$E$2=\"Eilean Siar Local Authority\"),OR($F119=1,$F119=5)),0,new_yllv2(VALUE(LEFT(Options!$B$14,2)),$C119,$D119,$E119,$F119,2016,$I119/10,1,$H119/10,$G119*$H119/10,RateRatios_airpollution!$E119)*10))","v":{"$error":"#VALUE!"}},{"$f":"IF(AND(OR(Calculations!$E$2=\"Orkney Health Board\",Calculations!$E$2=\"Orkney Islands Local Authority\"),$F119=1),0,IF(AND(OR(Calculations!$E$2=\"Shetland Health Board\",Calculations!$E$2=\"Western Isles Health Board\",Calculations!$E$2=\"Shetland Islands Local Authority\",Calculations!$E$2=\"Eilean Siar Local Authority\"),OR($F119=1,$F119=5)),0,new_yllv2(VALUE(LEFT(Options!$B$14,2)),$C119,$D119,$E119,$F119,2016,$I119/10+$J119/10,1,$H119/10,$G119*$H119/10,RateRatios_airpollution!$E119)*10))","v":{"$error":"#VALUE!"}},{"$f":"IF(AND(OR(Calculations!$E$2=\"Orkney Health Board\",Calculations!$E$2=\"Orkney Islands Local Authority\"),$F119=1),0,IF(AND(OR(Calculations!$E$2=\"Shetland Health Board\",Calculations!$E$2=\"Western Isles Health Board\",Calculations!$E$2=\"Shetland Islands Local Authority\",Calculations!$E$2=\"Eilean Siar Local Authority\"),OR($F119=1,$F119=5)),0,hosp_count(VALUE(LEFT(Options!$B$14,2)),$C119,$E119,$F119,2016,$I119/10,1,$H119/10,$G119*$H119/10, RateRatios_airpollution!$F119, RateRatios_airpollution!$E119)*10))","v":{"$error":"#VALUE!"}},{"$f":"IF(AND(OR(Calculations!$E$2=\"Orkney Health Board\",Calculations!$E$2=\"Orkney Islands Local Authority\"),$F119=1),0,IF(AND(OR(Calculations!$E$2=\"Shetland Health Board\",Calculations!$E$2=\"Western Isles Health Board\",Calculations!$E$2=\"Shetland Islands Local Authority\",Calculations!$E$2=\"Eilean Siar Local Authority\"),OR($F119=1,$F119=5)),0,hosp_count(VALUE(LEFT(Options!$B$14,2)),$C119,$E119,$F119,2016,$I119/10+$J119/10,1,$H119/10,$G119*$H119/10, RateRatios_airpollution!$F119, RateRatios_airpollution!$E119)*10))","v":{"$error":"#VALUE!"}},{"$f":"IF(AND(OR(Calculations!$E$2=\"Orkney Health Board\",Calculations!$E$2=\"Orkney Islands Local Authority\"),$F119=1),0,IF(AND(OR(Calculations!$E$2=\"Shetland Health Board\",Calculations!$E$2=\"Western Isles Health Board\",Calculations!$E$2=\"Shetland Islands Local Authority\",Calculations!$E$2=\"Eilean Siar Local Authority\"),OR($F119=1,$F119=5)),0,prem_mort(VALUE(LEFT(Options!$B$14,2)),$C119,$E119,$F119,2016,$I119/10,1,$H119/10,$G119*$H119/10,RateRatios_airpollution!$E119)*10))","v":{"$error":"#VALUE!"}},{"$f":"IF(AND(OR(Calculations!$E$2=\"Orkney Health Board\",Calculations!$E$2=\"Orkney Islands Local Authority\"),$F119=1),0,IF(AND(OR(Calculations!$E$2=\"Shetland Health Board\",Calculations!$E$2=\"Western Isles Health Board\",Calculations!$E$2=\"Shetland Islands Local Authority\",Calculations!$E$2=\"Eilean Siar Local Authority\"),OR($F119=1,$F119=5)),0,prem_mort(VALUE(LEFT(Options!$B$14,2)),$C119,$E119,$F119,2016,$I119/10+$J119/10,1,$H119/10,$G119*$H119/10,RateRatios_airpollution!$E119)*10))","v":{"$error":"#VALUE!"}},{"$error":"#VALUE!"},{"$error":"#VALUE!"},{"$error":"#VALUE!"},{"$error":"#VALUE!"},{"$error":"#VALUE!"},{"$error":"#VALUE!"},{"$error":"#VALUE!"},{"$error":"#VALUE!"},{"$error":"#VALUE!"},{"$error":"#VALUE!"},{"$error":"#VALUE!"},{"$error":"#VALUE!"},{"$error":"#VALUE!"},{"$error":"#VALUE!"},{"$error":"#VALUE!"},{"$error":"#VALUE!"},{"$error":"#VALUE!"},{"$error":"#VALUE!"},{"$error":"#VALUE!"},{"$error":"#VALUE!"},{"$error":"#VALUE!"},{"$error":"#VALUE!"},{"$error":"#VALUE!"},{"$error":"#VALUE!"},6600]
[null,"Male 16-19",17.556318000000001,77.07632000000001,"male",2,1,{"$f":"HLOOKUP(Calculations!$E$2,'Population 2016'!$C$3:$BC$249,'Population 2016'!BD120,FALSE)","v":23693},0,{"$f":"HLOOKUP(Calculations!$E$2,Pop2016_in_settlements!$C$3:$BC$249,Pop2016_in_settlements!$BD120,FALSE)","v":15175},{"$f":"IF(AND(OR(Calculations!$E$2=\"Orkney Health Board\",Calculations!$E$2=\"Orkney Islands Local Authority\"),$F120=1),0,IF(AND(OR(Calculations!$E$2=\"Shetland Health Board\",Calculations!$E$2=\"Western Isles Health Board\",Calculations!$E$2=\"Shetland Islands Local Authority\",Calculations!$E$2=\"Eilean Siar Local Authority\"),OR($F120=1,$F120=5)),0,new_ci(VALUE(LEFT(Options!$B$14,2)),$C120,$E120,$F120,2016,$I120/10,1,$H120/10,$G120*$H120/10,RateRatios_accidents!$B$5)*10))","v":12.540761762999999},{"$f":"IF(AND(OR(Calculations!$E$2=\"Orkney Health Board\",Calculations!$E$2=\"Orkney Islands Local Authority\"),$F120=1),0,IF(AND(OR(Calculations!$E$2=\"Shetland Health Board\",Calculations!$E$2=\"Western Isles Health Board\",Calculations!$E$2=\"Shetland Islands Local Authority\",Calculations!$E$2=\"Eilean Siar Local Authority\"),OR($F120=1,$F120=5)),0,new_ci(VALUE(LEFT(Options!$B$14,2)),$C120,$E120,$F120,2016,$I120/10+$J120/10,1,$H120/10,$G120*$H120/10,RateRatios_accidents!$B$5)*10))","v":12.537549215999999},{"$f":"IF(AND(OR(Calculations!$E$2=\"Orkney Health Board\",Calculations!$E$2=\"Orkney Islands Local Authority\"),$F120=1),0,IF(AND(OR(Calculations!$E$2=\"Shetland Health Board\",Calculations!$E$2=\"Western Isles Health Board\",Calculations!$E$2=\"Shetland Islands Local Authority\",Calculations!$E$2=\"Eilean Siar Local Authority\"),OR($F120=1,$F120=5)),0,new_yllv2(VALUE(LEFT(Options!$B$14,2)),$C120,$D120,$E120,$F120,2016,$I120/10,1,$H120/10,$G120*$H120/10,RateRatios_accidents!$B$5)*10))","v":733.88540345199999},{"$f":"IF(AND(OR(Calculations!$E$2=\"Orkney Health Board\",Calculations!$E$2=\"Orkney Islands Local Authority\"),$F120=1),0,IF(AND(OR(Calculations!$E$2=\"Shetland Health Board\",Calculations!$E$2=\"Western Isles Health Board\",Calculations!$E$2=\"Shetland Islands Local Authority\",Calculations!$E$2=\"Eilean Siar Local Authority\"),OR($F120=1,$F120=5)),0,new_yllv2(VALUE(LEFT(Options!$B$14,2)),$C120,$D120,$E120,$F120,2016,$I120/10+$J120/10,1,$H120/10,$G120*$H120/10,RateRatios_accidents!$B$5)*10))","v":733.69740519499999},{"$f":"IF(AND(OR(Calculations!$E$2=\"Orkney Health Board\",Calculations!$E$2=\"Orkney Islands Local Authority\"),$F120=1),0,IF(AND(OR(Calculations!$E$2=\"Shetland Health Board\",Calculations!$E$2=\"Western Isles Health Board\",Calculations!$E$2=\"Shetland Islands Local Authority\",Calculations!$E$2=\"Eilean Siar Local Authority\"),OR($F120=1,$F120=5)),0,hosp_count(VALUE(LEFT(Options!$B$14,2)),$C120,$E120,$F120,2016,$I120/10,1,$H120/10,$G120*$H120/10, RateRatios_accidents!$B$4, RateRatios_accidents!$B$5)*10))","v":1858.6343223869999},{"$f":"IF(AND(OR(Calculations!$E$2=\"Orkney Health Board\",Calculations!$E$2=\"Orkney Islands Local Authority\"),$F120=1),0,IF(AND(OR(Calculations!$E$2=\"Shetland Health Board\",Calculations!$E$2=\"Western Isles Health Board\",Calculations!$E$2=\"Shetland Islands Local Authority\",Calculations!$E$2=\"Eilean Siar Local Authority\"),OR($F120=1,$F120=5)),0,hosp_count(VALUE(LEFT(Options!$B$14,2)),$C120,$E120,$F120,2016,$I120/10+$J120/10,1,$H120/10,$G120*$H120/10, RateRatios_accidents!$B$4, RateRatios_accidents!$B$5)*10))","v":1858.1581521320002},{"$f":"IF(AND(OR(Calculations!$E$2=\"Orkney Health Board\",Calculations!$E$2=\"Orkney Islands Local Authority\"),$F120=1),0,IF(AND(OR(Calculations!$E$2=\"Shetland Health Board\",Calculations!$E$2=\"Western Isles Health Board\",Calculations!$E$2=\"Shetland Islands Local Authority\",Calculations!$E$2=\"Eilean Siar Local Authority\"),OR($F120=1,$F120=5)),0,prem_mort(VALUE(LEFT(Options!$B$14,2)),$C120,$E120,$F120,2016,$I120/10,1,$H120/10,$G120*$H120/10,RateRatios_accidents!$B$5)*10))","v":12.540761762999999},{"$f":"IF(AND(OR(Calculations!$E$2=\"Orkney Health Board\",Calculations!$E$2=\"Orkney Islands Local Authority\"),$F120=1),0,IF(AND(OR(Calculations!$E$2=\"Shetland Health Board\",Calculations!$E$2=\"Western Isles Health Board\",Calculations!$E$2=\"Shetland Islands Local Authority\",Calculations!$E$2=\"Eilean Siar Local Authority\"),OR($F120=1,$F120=5)),0,prem_mort(VALUE(LEFT(Options!$B$14,2)),$C120,$E120,$F120,2016,$I120/10+$J120/10,1,$H120/10,$G120*$H120/10,RateRatios_accidents!$B$5)*10))","v":12.537549215999999},null,{"$f":"IF(AND(OR(Calculations!$E$2=\"Orkney Health Board\",Calculations!$E$2=\"Orkney Islands Local Authority\"),$F120=1),0,IF(AND(OR(Calculations!$E$2=\"Shetland Health Board\",Calculations!$E$2=\"Western Isles Health Board\",Calculations!$E$2=\"Shetland Islands Local Authority\",Calculations!$E$2=\"Eilean Siar Local Authority\"),OR($F120=1,$F120=5)),0,new_ci(VALUE(LEFT(Options!$B$14,2)),$C120,$E120,$F120,2016,$I120/10,1,$H120/10,$G120*$H120/10,RateRatios_airpollution!$C120)*10))","v":12.540761762999999},{"$f":"IF(AND(OR(Calculations!$E$2=\"Orkney Health Board\",Calculations!$E$2=\"Orkney Islands Local Authority\"),$F120=1),0,IF(AND(OR(Calculations!$E$2=\"Shetland Health Board\",Calculations!$E$2=\"Western Isles Health Board\",Calculations!$E$2=\"Shetland Islands Local Authority\",Calculations!$E$2=\"Eilean Siar Local Authority\"),OR($F120=1,$F120=5)),0,new_ci(VALUE(LEFT(Options!$B$14,2)),$C120,$E120,$F120,2016,$I120/10+$J120/10,1,$H120/10,$G120*$H120/10,RateRatios_airpollution!$C120)*10))","v":12.540585733},{"$f":"IF(AND(OR(Calculations!$E$2=\"Orkney Health Board\",Calculations!$E$2=\"Orkney Islands Local Authority\"),$F120=1),0,IF(AND(OR(Calculations!$E$2=\"Shetland Health Board\",Calculations!$E$2=\"Western Isles Health Board\",Calculations!$E$2=\"Shetland Islands Local Authority\",Calculations!$E$2=\"Eilean Siar Local Authority\"),OR($F120=1,$F120=5)),0,new_yllv2(VALUE(LEFT(Options!$B$14,2)),$C120,$D120,$E120,$F120,2016,$I120/10,1,$H120/10,$G120*$H120/10,RateRatios_airpollution!$C120)*10))","v":733.88540345199999},{"$f":"IF(AND(OR(Calculations!$E$2=\"Orkney Health Board\",Calculations!$E$2=\"Orkney Islands Local Authority\"),$F120=1),0,IF(AND(OR(Calculations!$E$2=\"Shetland Health Board\",Calculations!$E$2=\"Western Isles Health Board\",Calculations!$E$2=\"Shetland Islands Local Authority\",Calculations!$E$2=\"Eilean Siar Local Authority\"),OR($F120=1,$F120=5)),0,new_yllv2(VALUE(LEFT(Options!$B$14,2)),$C120,$D120,$E120,$F120,2016,$I120/10+$J120/10,1,$H120/10,$G120*$H120/10,RateRatios_airpollution!$C120)*10))","v":733.87510217599993},{"$f":"IF(AND(OR(Calculations!$E$2=\"Orkney Health Board\",Calculations!$E$2=\"Orkney Islands Local Authority\"),$F120=1),0,IF(AND(OR(Calculations!$E$2=\"Shetland Health Board\",Calculations!$E$2=\"Western Isles Health Board\",Calculations!$E$2=\"Shetland Islands Local Authority\",Calculations!$E$2=\"Eilean Siar Local Authority\"),OR($F120=1,$F120=5)),0,hosp_count(VALUE(LEFT(Options!$B$14,2)),$C120,$E120,$F120,2016,$I120/10,1,$H120/10,$G120*$H120/10, RateRatios_airpollution!$D120, RateRatios_airpollution!$C120)*10))","v":1858.6343223869999},{"$f":"IF(AND(OR(Calculations!$E$2=\"Orkney Health Board\",Calculations!$E$2=\"Orkney Islands Local Authority\"),$F120=1),0,IF(AND(OR(Calculations!$E$2=\"Shetland Health Board\",Calculations!$E$2=\"Western Isles Health Board\",Calculations!$E$2=\"Shetland Islands Local Authority\",Calculations!$E$2=\"Eilean Siar Local Authority\"),OR($F120=1,$F120=5)),0,hosp_count(VALUE(LEFT(Options!$B$14,2)),$C120,$E120,$F120,2016,$I120/10+$J120/10,1,$H120/10,$G120*$H120/10, RateRatios_airpollution!$D120, RateRatios_airpollution!$C120)*10))","v":1858.585231262},{"$f":"IF(AND(OR(Calculations!$E$2=\"Orkney Health Board\",Calculations!$E$2=\"Orkney Islands Local Authority\"),$F120=1),0,IF(AND(OR(Calculations!$E$2=\"Shetland Health Board\",Calculations!$E$2=\"Western Isles Health Board\",Calculations!$E$2=\"Shetland Islands Local Authority\",Calculations!$E$2=\"Eilean Siar Local Authority\"),OR($F120=1,$F120=5)),0,prem_mort(VALUE(LEFT(Options!$B$14,2)),$C120,$E120,$F120,2016,$I120/10,1,$H120/10,$G120*$H120/10,RateRatios_airpollution!$C120)*10))","v":12.540761762999999},{"$f":"IF(AND(OR(Calculations!$E$2=\"Orkney Health Board\",Calculations!$E$2=\"Orkney Islands Local Authority\"),$F120=1),0,IF(AND(OR(Calculations!$E$2=\"Shetland Health Board\",Calculations!$E$2=\"Western Isles Health Board\",Calculations!$E$2=\"Shetland Islands Local Authority\",Calculations!$E$2=\"Eilean Siar Local Authority\"),OR($F120=1,$F120=5)),0,prem_mort(VALUE(LEFT(Options!$B$14,2)),$C120,$E120,$F120,2016,$I120/10+$J120/10,1,$H120/10,$G120*$H120/10,RateRatios_airpollution!$C120)*10))","v":12.540585733},null,{"$f":"IF(AND(OR(Calculations!$E$2=\"Orkney Health Board\",Calculations!$E$2=\"Orkney Islands Local Authority\"),$F120=1),0,IF(AND(OR(Calculations!$E$2=\"Shetland Health Board\",Calculations!$E$2=\"Western Isles Health Board\",Calculations!$E$2=\"Shetland Islands Local Authority\",Calculations!$E$2=\"Eilean Siar Local Authority\"),OR($F120=1,$F120=5)),0,new_ci(VALUE(LEFT(Options!$B$14,2)),$C120,$E120,$F120,2016,$I120/10,1,$H120/10,$G120*$H120/10,RateRatios_airpollution!$E120)*10))","v":12.540761762999999},{"$f":"IF(AND(OR(Calculations!$E$2=\"Orkney Health Board\",Calculations!$E$2=\"Orkney Islands Local Authority\"),$F120=1),0,IF(AND(OR(Calculations!$E$2=\"Shetland Health Board\",Calculations!$E$2=\"Western Isles Health Board\",Calculations!$E$2=\"Shetland Islands Local Authority\",Calculations!$E$2=\"Eilean Siar Local Authority\"),OR($F120=1,$F120=5)),0,new_ci(VALUE(LEFT(Options!$B$14,2)),$C120,$E120,$F120,2016,$I120/10+$J120/10,1,$H120/10,$G120*$H120/10,RateRatios_airpollution!$E120)*10))","v":12.540681335999999},{"$f":"IF(AND(OR(Calculations!$E$2=\"Orkney Health Board\",Calculations!$E$2=\"Orkney Islands Local Authority\"),$F120=1),0,IF(AND(OR(Calculations!$E$2=\"Shetland Health Board\",Calculations!$E$2=\"Western Isles Health Board\",Calculations!$E$2=\"Shetland Islands Local Authority\",Calculations!$E$2=\"Eilean Siar Local Authority\"),OR($F120=1,$F120=5)),0,new_yllv2(VALUE(LEFT(Options!$B$14,2)),$C120,$D120,$E120,$F120,2016,$I120/10,1,$H120/10,$G120*$H120/10,RateRatios_airpollution!$E120)*10))","v":733.88540345199999},{"$f":"IF(AND(OR(Calculations!$E$2=\"Orkney Health Board\",Calculations!$E$2=\"Orkney Islands Local Authority\"),$F120=1),0,IF(AND(OR(Calculations!$E$2=\"Shetland Health Board\",Calculations!$E$2=\"Western Isles Health Board\",Calculations!$E$2=\"Shetland Islands Local Authority\",Calculations!$E$2=\"Eilean Siar Local Authority\"),OR($F120=1,$F120=5)),0,new_yllv2(VALUE(LEFT(Options!$B$14,2)),$C120,$D120,$E120,$F120,2016,$I120/10+$J120/10,1,$H120/10,$G120*$H120/10,RateRatios_airpollution!$E120)*10))","v":733.88069686400002},{"$f":"IF(AND(OR(Calculations!$E$2=\"Orkney Health Board\",Calculations!$E$2=\"Orkney Islands Local Authority\"),$F120=1),0,IF(AND(OR(Calculations!$E$2=\"Shetland Health Board\",Calculations!$E$2=\"Western Isles Health Board\",Calculations!$E$2=\"Shetland Islands Local Authority\",Calculations!$E$2=\"Eilean Siar Local Authority\"),OR($F120=1,$F120=5)),0,hosp_count(VALUE(LEFT(Options!$B$14,2)),$C120,$E120,$F120,2016,$I120/10,1,$H120/10,$G120*$H120/10, RateRatios_airpollution!$F120, RateRatios_airpollution!$E120)*10))","v":1858.6343223869999},{"$f":"IF(AND(OR(Calculations!$E$2=\"Orkney Health Board\",Calculations!$E$2=\"Orkney Islands Local Authority\"),$F120=1),0,IF(AND(OR(Calculations!$E$2=\"Shetland Health Board\",Calculations!$E$2=\"Western Isles Health Board\",Calculations!$E$2=\"Shetland Islands Local Authority\",Calculations!$E$2=\"Eilean Siar Local Authority\"),OR($F120=1,$F120=5)),0,hosp_count(VALUE(LEFT(Options!$B$14,2)),$C120,$E120,$F120,2016,$I120/10+$J120/10,1,$H120/10,$G120*$H120/10, RateRatios_airpollution!$F120, RateRatios_airpollution!$E120)*10))","v":1858.6343223869999},{"$f":"IF(AND(OR(Calculations!$E$2=\"Orkney Health Board\",Calculations!$E$2=\"Orkney Islands Local Authority\"),$F120=1),0,IF(AND(OR(Calculations!$E$2=\"Shetland Health Board\",Calculations!$E$2=\"Western Isles Health Board\",Calculations!$E$2=\"Shetland Islands Local Authority\",Calculations!$E$2=\"Eilean Siar Local Authority\"),OR($F120=1,$F120=5)),0,prem_mort(VALUE(LEFT(Options!$B$14,2)),$C120,$E120,$F120,2016,$I120/10,1,$H120/10,$G120*$H120/10,RateRatios_airpollution!$E120)*10))","v":12.540761762999999},{"$f":"IF(AND(OR(Calculations!$E$2=\"Orkney Health Board\",Calculations!$E$2=\"Orkney Islands Local Authority\"),$F120=1),0,IF(AND(OR(Calculations!$E$2=\"Shetland Health Board\",Calculations!$E$2=\"Western Isles Health Board\",Calculations!$E$2=\"Shetland Islands Local Authority\",Calculations!$E$2=\"Eilean Siar Local Authority\"),OR($F120=1,$F120=5)),0,prem_mort(VALUE(LEFT(Options!$B$14,2)),$C120,$E120,$F120,2016,$I120/10+$J120/10,1,$H120/10,$G120*$H120/10,RateRatios_airpollution!$E120)*10))","v":12.540681335999999},12.540761762999999,12.537292759,733.88540345199999,733.68239733099995,1858.6343223869999,1858.1090610070003,12.540761762999999,12.537292759,52.930239999155866,52.915598526991097,3097.4777506098849,3096.6209316295949,7844.6558999999997,7842.4389524627532,52.930239999155866,52.915598526991097,232893.05599628581,232828.63351876082,13628902.102683494,13625132.099170217,34516485.960000001,34506731.390836112,232893.05599628581,232828.63351876082,4400]
[null,"Male 20-24",22.054632000000002,77.704629999999995,"male",2,1,{"$f":"HLOOKUP(Calculations!$E$2,'Population 2016'!$C$3:$BC$249,'Population 2016'!BD121,FALSE)","v":35964},0,{"$f":"HLOOKUP(Calculations!$E$2,Pop2016_in_settlements!$C$3:$BC$249,Pop2016_in_settlements!$BD121,FALSE)","v":23459},{"$f":"IF(AND(OR(Calculations!$E$2=\"Orkney Health Board\",Calculations!$E$2=\"Orkney Islands Local Authority\"),$F121=1),0,IF(AND(OR(Calculations!$E$2=\"Shetland Health Board\",Calculations!$E$2=\"Western Isles Health Board\",Calculations!$E$2=\"Shetland Islands Local Authority\",Calculations!$E$2=\"Eilean Siar Local Authority\"),OR($F121=1,$F121=5)),0,new_ci(VALUE(LEFT(Options!$B$14,2)),$C121,$E121,$F121,2016,$I121/10,1,$H121/10,$G121*$H121/10,RateRatios_accidents!$B$5)*10))","v":26.731116925000002},{"$f":"IF(AND(OR(Calculations!$E$2=\"Orkney Health Board\",Calculations!$E$2=\"Orkney Islands Local Authority\"),$F121=1),0,IF(AND(OR(Calculations!$E$2=\"Shetland Health Board\",Calculations!$E$2=\"Western Isles Health Board\",Calculations!$E$2=\"Shetland Islands Local Authority\",Calculations!$E$2=\"Eilean Siar Local Authority\"),OR($F121=1,$F121=5)),0,new_ci(VALUE(LEFT(Options!$B$14,2)),$C121,$E121,$F121,2016,$I121/10+$J121/10,1,$H121/10,$G121*$H121/10,RateRatios_accidents!$B$5)*10))","v":26.724147255999998},{"$f":"IF(AND(OR(Calculations!$E$2=\"Orkney Health Board\",Calculations!$E$2=\"Orkney Islands Local Authority\"),$F121=1),0,IF(AND(OR(Calculations!$E$2=\"Shetland Health Board\",Calculations!$E$2=\"Western Isles Health Board\",Calculations!$E$2=\"Shetland Islands Local Authority\",Calculations!$E$2=\"Eilean Siar Local Authority\"),OR($F121=1,$F121=5)),0,new_yllv2(VALUE(LEFT(Options!$B$14,2)),$C121,$D121,$E121,$F121,2016,$I121/10,1,$H121/10,$G121*$H121/10,RateRatios_accidents!$B$5)*10))","v":1460.8554864889998},{"$f":"IF(AND(OR(Calculations!$E$2=\"Orkney Health Board\",Calculations!$E$2=\"Orkney Islands Local Authority\"),$F121=1),0,IF(AND(OR(Calculations!$E$2=\"Shetland Health Board\",Calculations!$E$2=\"Western Isles Health Board\",Calculations!$E$2=\"Shetland Islands Local Authority\",Calculations!$E$2=\"Eilean Siar Local Authority\"),OR($F121=1,$F121=5)),0,new_yllv2(VALUE(LEFT(Options!$B$14,2)),$C121,$D121,$E121,$F121,2016,$I121/10+$J121/10,1,$H121/10,$G121*$H121/10,RateRatios_accidents!$B$5)*10))","v":1460.474594092},{"$f":"IF(AND(OR(Calculations!$E$2=\"Orkney Health Board\",Calculations!$E$2=\"Orkney Islands Local Authority\"),$F121=1),0,IF(AND(OR(Calculations!$E$2=\"Shetland Health Board\",Calculations!$E$2=\"Western Isles Health Board\",Calculations!$E$2=\"Shetland Islands Local Authority\",Calculations!$E$2=\"Eilean Siar Local Authority\"),OR($F121=1,$F121=5)),0,hosp_count(VALUE(LEFT(Options!$B$14,2)),$C121,$E121,$F121,2016,$I121/10,1,$H121/10,$G121*$H121/10, RateRatios_accidents!$B$4, RateRatios_accidents!$B$5)*10))","v":3309.6725972169997},{"$f":"IF(AND(OR(Calculations!$E$2=\"Orkney Health Board\",Calculations!$E$2=\"Orkney Islands Local Authority\"),$F121=1),0,IF(AND(OR(Calculations!$E$2=\"Shetland Health Board\",Calculations!$E$2=\"Western Isles Health Board\",Calculations!$E$2=\"Shetland Islands Local Authority\",Calculations!$E$2=\"Eilean Siar Local Authority\"),OR($F121=1,$F121=5)),0,hosp_count(VALUE(LEFT(Options!$B$14,2)),$C121,$E121,$F121,2016,$I121/10+$J121/10,1,$H121/10,$G121*$H121/10, RateRatios_accidents!$B$4, RateRatios_accidents!$B$5)*10))","v":3308.809047968},{"$f":"IF(AND(OR(Calculations!$E$2=\"Orkney Health Board\",Calculations!$E$2=\"Orkney Islands Local Authority\"),$F121=1),0,IF(AND(OR(Calculations!$E$2=\"Shetland Health Board\",Calculations!$E$2=\"Western Isles Health Board\",Calculations!$E$2=\"Shetland Islands Local Authority\",Calculations!$E$2=\"Eilean Siar Local Authority\"),OR($F121=1,$F121=5)),0,prem_mort(VALUE(LEFT(Options!$B$14,2)),$C121,$E121,$F121,2016,$I121/10,1,$H121/10,$G121*$H121/10,RateRatios_accidents!$B$5)*10))","v":26.731116925000002},{"$f":"IF(AND(OR(Calculations!$E$2=\"Orkney Health Board\",Calculations!$E$2=\"Orkney Islands Local Authority\"),$F121=1),0,IF(AND(OR(Calculations!$E$2=\"Shetland Health Board\",Calculations!$E$2=\"Western Isles Health Board\",Calculations!$E$2=\"Shetland Islands Local Authority\",Calculations!$E$2=\"Eilean Siar Local Authority\"),OR($F121=1,$F121=5)),0,prem_mort(VALUE(LEFT(Options!$B$14,2)),$C121,$E121,$F121,2016,$I121/10+$J121/10,1,$H121/10,$G121*$H121/10,RateRatios_accidents!$B$5)*10))","v":26.724147255999998},null,{"$f":"IF(AND(OR(Calculations!$E$2=\"Orkney Health Board\",Calculations!$E$2=\"Orkney Islands Local Authority\"),$F121=1),0,IF(AND(OR(Calculations!$E$2=\"Shetland Health Board\",Calculations!$E$2=\"Western Isles Health Board\",Calculations!$E$2=\"Shetland Islands Local Authority\",Calculations!$E$2=\"Eilean Siar Local Authority\"),OR($F121=1,$F121=5)),0,new_ci(VALUE(LEFT(Options!$B$14,2)),$C121,$E121,$F121,2016,$I121/10,1,$H121/10,$G121*$H121/10,RateRatios_airpollution!$C121)*10))","v":26.731116925000002},{"$f":"IF(AND(OR(Calculations!$E$2=\"Orkney Health Board\",Calculations!$E$2=\"Orkney Islands Local Authority\"),$F121=1),0,IF(AND(OR(Calculations!$E$2=\"Shetland Health Board\",Calculations!$E$2=\"Western Isles Health Board\",Calculations!$E$2=\"Shetland Islands Local Authority\",Calculations!$E$2=\"Eilean Siar Local Authority\"),OR($F121=1,$F121=5)),0,new_ci(VALUE(LEFT(Options!$B$14,2)),$C121,$E121,$F121,2016,$I121/10+$J121/10,1,$H121/10,$G121*$H121/10,RateRatios_airpollution!$C121)*10))","v":26.730661820999998},{"$f":"IF(AND(OR(Calculations!$E$2=\"Orkney Health Board\",Calculations!$E$2=\"Orkney Islands Local Authority\"),$F121=1),0,IF(AND(OR(Calculations!$E$2=\"Shetland Health Board\",Calculations!$E$2=\"Western Isles Health Board\",Calculations!$E$2=\"Shetland Islands Local Authority\",Calculations!$E$2=\"Eilean Siar Local Authority\"),OR($F121=1,$F121=5)),0,new_yllv2(VALUE(LEFT(Options!$B$14,2)),$C121,$D121,$E121,$F121,2016,$I121/10,1,$H121/10,$G121*$H121/10,RateRatios_airpollution!$C121)*10))","v":1460.8554864889998},{"$f":"IF(AND(OR(Calculations!$E$2=\"Orkney Health Board\",Calculations!$E$2=\"Orkney Islands Local Authority\"),$F121=1),0,IF(AND(OR(Calculations!$E$2=\"Shetland Health Board\",Calculations!$E$2=\"Western Isles Health Board\",Calculations!$E$2=\"Shetland Islands Local Authority\",Calculations!$E$2=\"Eilean Siar Local Authority\"),OR($F121=1,$F121=5)),0,new_yllv2(VALUE(LEFT(Options!$B$14,2)),$C121,$D121,$E121,$F121,2016,$I121/10+$J121/10,1,$H121/10,$G121*$H121/10,RateRatios_airpollution!$C121)*10))","v":1460.8306150559999},{"$f":"IF(AND(OR(Calculations!$E$2=\"Orkney Health Board\",Calculations!$E$2=\"Orkney Islands Local Authority\"),$F121=1),0,IF(AND(OR(Calculations!$E$2=\"Shetland Health Board\",Calculations!$E$2=\"Western Isles Health Board\",Calculations!$E$2=\"Shetland Islands Local Authority\",Calculations!$E$2=\"Eilean Siar Local Authority\"),OR($F121=1,$F121=5)),0,hosp_count(VALUE(LEFT(Options!$B$14,2)),$C121,$E121,$F121,2016,$I121/10,1,$H121/10,$G121*$H121/10, RateRatios_airpollution!$D121, RateRatios_airpollution!$C121)*10))","v":3309.6725972169997},{"$f":"IF(AND(OR(Calculations!$E$2=\"Orkney Health Board\",Calculations!$E$2=\"Orkney Islands Local Authority\"),$F121=1),0,IF(AND(OR(Calculations!$E$2=\"Shetland Health Board\",Calculations!$E$2=\"Western Isles Health Board\",Calculations!$E$2=\"Shetland Islands Local Authority\",Calculations!$E$2=\"Eilean Siar Local Authority\"),OR($F121=1,$F121=5)),0,hosp_count(VALUE(LEFT(Options!$B$14,2)),$C121,$E121,$F121,2016,$I121/10+$J121/10,1,$H121/10,$G121*$H121/10, RateRatios_airpollution!$D121, RateRatios_airpollution!$C121)*10))","v":3309.566264608},{"$f":"IF(AND(OR(Calculations!$E$2=\"Orkney Health Board\",Calculations!$E$2=\"Orkney Islands Local Authority\"),$F121=1),0,IF(AND(OR(Calculations!$E$2=\"Shetland Health Board\",Calculations!$E$2=\"Western Isles Health Board\",Calculations!$E$2=\"Shetland Islands Local Authority\",Calculations!$E$2=\"Eilean Siar Local Authority\"),OR($F121=1,$F121=5)),0,prem_mort(VALUE(LEFT(Options!$B$14,2)),$C121,$E121,$F121,2016,$I121/10,1,$H121/10,$G121*$H121/10,RateRatios_airpollution!$C121)*10))","v":26.731116925000002},{"$f":"IF(AND(OR(Calculations!$E$2=\"Orkney Health Board\",Calculations!$E$2=\"Orkney Islands Local Authority\"),$F121=1),0,IF(AND(OR(Calculations!$E$2=\"Shetland Health Board\",Calculations!$E$2=\"Western Isles Health Board\",Calculations!$E$2=\"Shetland Islands Local Authority\",Calculations!$E$2=\"Eilean Siar Local Authority\"),OR($F121=1,$F121=5)),0,prem_mort(VALUE(LEFT(Options!$B$14,2)),$C121,$E121,$F121,2016,$I121/10+$J121/10,1,$H121/10,$G121*$H121/10,RateRatios_airpollution!$C121)*10))","v":26.730661820999998},null,{"$f":"IF(AND(OR(Calculations!$E$2=\"Orkney Health Board\",Calculations!$E$2=\"Orkney Islands Local Authority\"),$F121=1),0,IF(AND(OR(Calculations!$E$2=\"Shetland Health Board\",Calculations!$E$2=\"Western Isles Health Board\",Calculations!$E$2=\"Shetland Islands Local Authority\",Calculations!$E$2=\"Eilean Siar Local Authority\"),OR($F121=1,$F121=5)),0,new_ci(VALUE(LEFT(Options!$B$14,2)),$C121,$E121,$F121,2016,$I121/10,1,$H121/10,$G121*$H121/10,RateRatios_airpollution!$E121)*10))","v":26.731116925000002},{"$f":"IF(AND(OR(Calculations!$E$2=\"Orkney Health Board\",Calculations!$E$2=\"Orkney Islands Local Authority\"),$F121=1),0,IF(AND(OR(Calculations!$E$2=\"Shetland Health Board\",Calculations!$E$2=\"Western Isles Health Board\",Calculations!$E$2=\"Shetland Islands Local Authority\",Calculations!$E$2=\"Eilean Siar Local Authority\"),OR($F121=1,$F121=5)),0,new_ci(VALUE(LEFT(Options!$B$14,2)),$C121,$E121,$F121,2016,$I121/10+$J121/10,1,$H121/10,$G121*$H121/10,RateRatios_airpollution!$E121)*10))","v":26.730919869999997},{"$f":"IF(AND(OR(Calculations!$E$2=\"Orkney Health Board\",Calculations!$E$2=\"Orkney Islands Local Authority\"),$F121=1),0,IF(AND(OR(Calculations!$E$2=\"Shetland Health Board\",Calculations!$E$2=\"Western Isles Health Board\",Calculations!$E$2=\"Shetland Islands Local Authority\",Calculations!$E$2=\"Eilean Siar Local Authority\"),OR($F121=1,$F121=5)),0,new_yllv2(VALUE(LEFT(Options!$B$14,2)),$C121,$D121,$E121,$F121,2016,$I121/10,1,$H121/10,$G121*$H121/10,RateRatios_airpollution!$E121)*10))","v":1460.8554864889998},{"$f":"IF(AND(OR(Calculations!$E$2=\"Orkney Health Board\",Calculations!$E$2=\"Orkney Islands Local Authority\"),$F121=1),0,IF(AND(OR(Calculations!$E$2=\"Shetland Health Board\",Calculations!$E$2=\"Western Isles Health Board\",Calculations!$E$2=\"Shetland Islands Local Authority\",Calculations!$E$2=\"Eilean Siar Local Authority\"),OR($F121=1,$F121=5)),0,new_yllv2(VALUE(LEFT(Options!$B$14,2)),$C121,$D121,$E121,$F121,2016,$I121/10+$J121/10,1,$H121/10,$G121*$H121/10,RateRatios_airpollution!$E121)*10))","v":1460.8447174339999},{"$f":"IF(AND(OR(Calculations!$E$2=\"Orkney Health Board\",Calculations!$E$2=\"Orkney Islands Local Authority\"),$F121=1),0,IF(AND(OR(Calculations!$E$2=\"Shetland Health Board\",Calculations!$E$2=\"Western Isles Health Board\",Calculations!$E$2=\"Shetland Islands Local Authority\",Calculations!$E$2=\"Eilean Siar Local Authority\"),OR($F121=1,$F121=5)),0,hosp_count(VALUE(LEFT(Options!$B$14,2)),$C121,$E121,$F121,2016,$I121/10,1,$H121/10,$G121*$H121/10, RateRatios_airpollution!$F121, RateRatios_airpollution!$E121)*10))","v":3309.6725972169997},{"$f":"IF(AND(OR(Calculations!$E$2=\"Orkney Health Board\",Calculations!$E$2=\"Orkney Islands Local Authority\"),$F121=1),0,IF(AND(OR(Calculations!$E$2=\"Shetland Health Board\",Calculations!$E$2=\"Western Isles Health Board\",Calculations!$E$2=\"Shetland Islands Local Authority\",Calculations!$E$2=\"Eilean Siar Local Authority\"),OR($F121=1,$F121=5)),0,hosp_count(VALUE(LEFT(Options!$B$14,2)),$C121,$E121,$F121,2016,$I121/10+$J121/10,1,$H121/10,$G121*$H121/10, RateRatios_airpollution!$F121, RateRatios_airpollution!$E121)*10))","v":3309.6725972169997},{"$f":"IF(AND(OR(Calculations!$E$2=\"Orkney Health Board\",Calculations!$E$2=\"Orkney Islands Local Authority\"),$F121=1),0,IF(AND(OR(Calculations!$E$2=\"Shetland Health Board\",Calculations!$E$2=\"Western Isles Health Board\",Calculations!$E$2=\"Shetland Islands Local Authority\",Calculations!$E$2=\"Eilean Siar Local Authority\"),OR($F121=1,$F121=5)),0,prem_mort(VALUE(LEFT(Options!$B$14,2)),$C121,$E121,$F121,2016,$I121/10,1,$H121/10,$G121*$H121/10,RateRatios_airpollution!$E121)*10))","v":26.731116925000002},{"$f":"IF(AND(OR(Calculations!$E$2=\"Orkney Health Board\",Calculations!$E$2=\"Orkney Islands Local Authority\"),$F121=1),0,IF(AND(OR(Calculations!$E$2=\"Shetland Health Board\",Calculations!$E$2=\"Western Isles Health Board\",Calculations!$E$2=\"Shetland Islands Local Authority\",Calculations!$E$2=\"Eilean Siar Local Authority\"),OR($F121=1,$F121=5)),0,prem_mort(VALUE(LEFT(Options!$B$14,2)),$C121,$E121,$F121,2016,$I121/10+$J121/10,1,$H121/10,$G121*$H121/10,RateRatios_airpollution!$E121)*10))","v":26.730919869999997},26.731116925000002,26.72349509699999,1460.8554864889998,1460.4389536040003,3309.6725972169997,3308.7027153590002,26.731116925000002,26.72349509699999,74.327429999443893,74.306237062062024,4061.993900814703,4060.835706829052,9202.7377299994423,9200.0409169141367,74.327429999443893,74.306237062062024,445964.57999666338,445837.42237237212,24371963.404888216,24365014.240974311,55216426.379996657,55200245.501484819,445964.57999666338,445837.42237237212,6000]
[null,"Male 25-29",26.959762999999999,77.789760000000001,"male",2,1,{"$f":"HLOOKUP(Calculations!$E$2,'Population 2016'!$C$3:$BC$249,'Population 2016'!BD122,FALSE)","v":39611},0,{"$f":"HLOOKUP(Calculations!$E$2,Pop2016_in_settlements!$C$3:$BC$249,Pop2016_in_settlements!$BD122,FALSE)","v":25088},{"$f":"IF(AND(OR(Calculations!$E$2=\"Orkney Health Board\",Calculations!$E$2=\"Orkney Islands Local Authority\"),$F122=1),0,IF(AND(OR(Calculations!$E$2=\"Shetland Health Board\",Calculations!$E$2=\"Western Isles Health Board\",Calculations!$E$2=\"Shetland Islands Local Authority\",Calculations!$E$2=\"Eilean Siar Local Authority\"),OR($F122=1,$F122=5)),0,new_ci(VALUE(LEFT(Options!$B$14,2)),$C122,$E122,$F122,2016,$I122/10,1,$H122/10,$G122*$H122/10,RateRatios_accidents!$B$5)*10))","v":42.630768351999997},{"$f":"IF(AND(OR(Calculations!$E$2=\"Orkney Health Board\",Calculations!$E$2=\"Orkney Islands Local Authority\"),$F122=1),0,IF(AND(OR(Calculations!$E$2=\"Shetland Health Board\",Calculations!$E$2=\"Western Isles Health Board\",Calculations!$E$2=\"Shetland Islands Local Authority\",Calculations!$E$2=\"Eilean Siar Local Authority\"),OR($F122=1,$F122=5)),0,new_ci(VALUE(LEFT(Options!$B$14,2)),$C122,$E122,$F122,2016,$I122/10+$J122/10,1,$H122/10,$G122*$H122/10,RateRatios_accidents!$B$5)*10))","v":42.619975494000002},{"$f":"IF(AND(OR(Calculations!$E$2=\"Orkney Health Board\",Calculations!$E$2=\"Orkney Islands Local Authority\"),$F122=1),0,IF(AND(OR(Calculations!$E$2=\"Shetland Health Board\",Calculations!$E$2=\"Western Isles Health Board\",Calculations!$E$2=\"Shetland Islands Local Authority\",Calculations!$E$2=\"Eilean Siar Local Authority\"),OR($F122=1,$F122=5)),0,new_yllv2(VALUE(LEFT(Options!$B$14,2)),$C122,$D122,$E122,$F122,2016,$I122/10,1,$H122/10,$G122*$H122/10,RateRatios_accidents!$B$5)*10))","v":2124.2910590880001},{"$f":"IF(AND(OR(Calculations!$E$2=\"Orkney Health Board\",Calculations!$E$2=\"Orkney Islands Local Authority\"),$F122=1),0,IF(AND(OR(Calculations!$E$2=\"Shetland Health Board\",Calculations!$E$2=\"Western Isles Health Board\",Calculations!$E$2=\"Shetland Islands Local Authority\",Calculations!$E$2=\"Eilean Siar Local Authority\"),OR($F122=1,$F122=5)),0,new_yllv2(VALUE(LEFT(Options!$B$14,2)),$C122,$D122,$E122,$F122,2016,$I122/10+$J122/10,1,$H122/10,$G122*$H122/10,RateRatios_accidents!$B$5)*10))","v":2123.753251006},{"$f":"IF(AND(OR(Calculations!$E$2=\"Orkney Health Board\",Calculations!$E$2=\"Orkney Islands Local Authority\"),$F122=1),0,IF(AND(OR(Calculations!$E$2=\"Shetland Health Board\",Calculations!$E$2=\"Western Isles Health Board\",Calculations!$E$2=\"Shetland Islands Local Authority\",Calculations!$E$2=\"Eilean Siar Local Authority\"),OR($F122=1,$F122=5)),0,hosp_count(VALUE(LEFT(Options!$B$14,2)),$C122,$E122,$F122,2016,$I122/10,1,$H122/10,$G122*$H122/10, RateRatios_accidents!$B$4, RateRatios_accidents!$B$5)*10))","v":4338.5762131860001},{"$f":"IF(AND(OR(Calculations!$E$2=\"Orkney Health Board\",Calculations!$E$2=\"Orkney Islands Local Authority\"),$F122=1),0,IF(AND(OR(Calculations!$E$2=\"Shetland Health Board\",Calculations!$E$2=\"Western Isles Health Board\",Calculations!$E$2=\"Shetland Islands Local Authority\",Calculations!$E$2=\"Eilean Siar Local Authority\"),OR($F122=1,$F122=5)),0,hosp_count(VALUE(LEFT(Options!$B$14,2)),$C122,$E122,$F122,2016,$I122/10+$J122/10,1,$H122/10,$G122*$H122/10, RateRatios_accidents!$B$4, RateRatios_accidents!$B$5)*10))","v":4337.4770627470007},{"$f":"IF(AND(OR(Calculations!$E$2=\"Orkney Health Board\",Calculations!$E$2=\"Orkney Islands Local Authority\"),$F122=1),0,IF(AND(OR(Calculations!$E$2=\"Shetland Health Board\",Calculations!$E$2=\"Western Isles Health Board\",Calculations!$E$2=\"Shetland Islands Local Authority\",Calculations!$E$2=\"Eilean Siar Local Authority\"),OR($F122=1,$F122=5)),0,prem_mort(VALUE(LEFT(Options!$B$14,2)),$C122,$E122,$F122,2016,$I122/10,1,$H122/10,$G122*$H122/10,RateRatios_accidents!$B$5)*10))","v":42.630768351999997},{"$f":"IF(AND(OR(Calculations!$E$2=\"Orkney Health Board\",Calculations!$E$2=\"Orkney Islands Local Authority\"),$F122=1),0,IF(AND(OR(Calculations!$E$2=\"Shetland Health Board\",Calculations!$E$2=\"Western Isles Health Board\",Calculations!$E$2=\"Shetland Islands Local Authority\",Calculations!$E$2=\"Eilean Siar Local Authority\"),OR($F122=1,$F122=5)),0,prem_mort(VALUE(LEFT(Options!$B$14,2)),$C122,$E122,$F122,2016,$I122/10+$J122/10,1,$H122/10,$G122*$H122/10,RateRatios_accidents!$B$5)*10))","v":42.619975494000002},null,{"$f":"IF(AND(OR(Calculations!$E$2=\"Orkney Health Board\",Calculations!$E$2=\"Orkney Islands Local Authority\"),$F122=1),0,IF(AND(OR(Calculations!$E$2=\"Shetland Health Board\",Calculations!$E$2=\"Western Isles Health Board\",Calculations!$E$2=\"Shetland Islands Local Authority\",Calculations!$E$2=\"Eilean Siar Local Authority\"),OR($F122=1,$F122=5)),0,new_ci(VALUE(LEFT(Options!$B$14,2)),$C122,$E122,$F122,2016,$I122/10,1,$H122/10,$G122*$H122/10,RateRatios_airpollution!$C122)*10))","v":42.630768351999997},{"$f":"IF(AND(OR(Calculations!$E$2=\"Orkney Health Board\",Calculations!$E$2=\"Orkney Islands Local Authority\"),$F122=1),0,IF(AND(OR(Calculations!$E$2=\"Shetland Health Board\",Calculations!$E$2=\"Western Isles Health Board\",Calculations!$E$2=\"Shetland Islands Local Authority\",Calculations!$E$2=\"Eilean Siar Local Authority\"),OR($F122=1,$F122=5)),0,new_ci(VALUE(LEFT(Options!$B$14,2)),$C122,$E122,$F122,2016,$I122/10+$J122/10,1,$H122/10,$G122*$H122/10,RateRatios_airpollution!$C122)*10))","v":42.630048326000001},{"$f":"IF(AND(OR(Calculations!$E$2=\"Orkney Health Board\",Calculations!$E$2=\"Orkney Islands Local Authority\"),$F122=1),0,IF(AND(OR(Calculations!$E$2=\"Shetland Health Board\",Calculations!$E$2=\"Western Isles Health Board\",Calculations!$E$2=\"Shetland Islands Local Authority\",Calculations!$E$2=\"Eilean Siar Local Authority\"),OR($F122=1,$F122=5)),0,new_yllv2(VALUE(LEFT(Options!$B$14,2)),$C122,$D122,$E122,$F122,2016,$I122/10,1,$H122/10,$G122*$H122/10,RateRatios_airpollution!$C122)*10))","v":2124.2910590880001},{"$f":"IF(AND(OR(Calculations!$E$2=\"Orkney Health Board\",Calculations!$E$2=\"Orkney Islands Local Authority\"),$F122=1),0,IF(AND(OR(Calculations!$E$2=\"Shetland Health Board\",Calculations!$E$2=\"Western Isles Health Board\",Calculations!$E$2=\"Shetland Islands Local Authority\",Calculations!$E$2=\"Eilean Siar Local Authority\"),OR($F122=1,$F122=5)),0,new_yllv2(VALUE(LEFT(Options!$B$14,2)),$C122,$D122,$E122,$F122,2016,$I122/10+$J122/10,1,$H122/10,$G122*$H122/10,RateRatios_airpollution!$C122)*10))","v":2124.2551801939999},{"$f":"IF(AND(OR(Calculations!$E$2=\"Orkney Health Board\",Calculations!$E$2=\"Orkney Islands Local Authority\"),$F122=1),0,IF(AND(OR(Calculations!$E$2=\"Shetland Health Board\",Calculations!$E$2=\"Western Isles Health Board\",Calculations!$E$2=\"Shetland Islands Local Authority\",Calculations!$E$2=\"Eilean Siar Local Authority\"),OR($F122=1,$F122=5)),0,hosp_count(VALUE(LEFT(Options!$B$14,2)),$C122,$E122,$F122,2016,$I122/10,1,$H122/10,$G122*$H122/10, RateRatios_airpollution!$D122, RateRatios_airpollution!$C122)*10))","v":4338.5762131860001},{"$f":"IF(AND(OR(Calculations!$E$2=\"Orkney Health Board\",Calculations!$E$2=\"Orkney Islands Local Authority\"),$F122=1),0,IF(AND(OR(Calculations!$E$2=\"Shetland Health Board\",Calculations!$E$2=\"Western Isles Health Board\",Calculations!$E$2=\"Shetland Islands Local Authority\",Calculations!$E$2=\"Eilean Siar Local Authority\"),OR($F122=1,$F122=5)),0,hosp_count(VALUE(LEFT(Options!$B$14,2)),$C122,$E122,$F122,2016,$I122/10+$J122/10,1,$H122/10,$G122*$H122/10, RateRatios_airpollution!$D122, RateRatios_airpollution!$C122)*10))","v":4338.437501634},{"$f":"IF(AND(OR(Calculations!$E$2=\"Orkney Health Board\",Calculations!$E$2=\"Orkney Islands Local Authority\"),$F122=1),0,IF(AND(OR(Calculations!$E$2=\"Shetland Health Board\",Calculations!$E$2=\"Western Isles Health Board\",Calculations!$E$2=\"Shetland Islands Local Authority\",Calculations!$E$2=\"Eilean Siar Local Authority\"),OR($F122=1,$F122=5)),0,prem_mort(VALUE(LEFT(Options!$B$14,2)),$C122,$E122,$F122,2016,$I122/10,1,$H122/10,$G122*$H122/10,RateRatios_airpollution!$C122)*10))","v":42.630768351999997},{"$f":"IF(AND(OR(Calculations!$E$2=\"Orkney Health Board\",Calculations!$E$2=\"Orkney Islands Local Authority\"),$F122=1),0,IF(AND(OR(Calculations!$E$2=\"Shetland Health Board\",Calculations!$E$2=\"Western Isles Health Board\",Calculations!$E$2=\"Shetland Islands Local Authority\",Calculations!$E$2=\"Eilean Siar Local Authority\"),OR($F122=1,$F122=5)),0,prem_mort(VALUE(LEFT(Options!$B$14,2)),$C122,$E122,$F122,2016,$I122/10+$J122/10,1,$H122/10,$G122*$H122/10,RateRatios_airpollution!$C122)*10))","v":42.630048326000001},null,{"$f":"IF(AND(OR(Calculations!$E$2=\"Orkney Health Board\",Calculations!$E$2=\"Orkney Islands Local Authority\"),$F122=1),0,IF(AND(OR(Calculations!$E$2=\"Shetland Health Board\",Calculations!$E$2=\"Western Isles Health Board\",Calculations!$E$2=\"Shetland Islands Local Authority\",Calculations!$E$2=\"Eilean Siar Local Authority\"),OR($F122=1,$F122=5)),0,new_ci(VALUE(LEFT(Options!$B$14,2)),$C122,$E122,$F122,2016,$I122/10,1,$H122/10,$G122*$H122/10,RateRatios_airpollution!$E122)*10))","v":42.630768351999997},{"$f":"IF(AND(OR(Calculations!$E$2=\"Orkney Health Board\",Calculations!$E$2=\"Orkney Islands Local Authority\"),$F122=1),0,IF(AND(OR(Calculations!$E$2=\"Shetland Health Board\",Calculations!$E$2=\"Western Isles Health Board\",Calculations!$E$2=\"Shetland Islands Local Authority\",Calculations!$E$2=\"Eilean Siar Local Authority\"),OR($F122=1,$F122=5)),0,new_ci(VALUE(LEFT(Options!$B$14,2)),$C122,$E122,$F122,2016,$I122/10+$J122/10,1,$H122/10,$G122*$H122/10,RateRatios_airpollution!$E122)*10))","v":42.630452243000001},{"$f":"IF(AND(OR(Calculations!$E$2=\"Orkney Health Board\",Calculations!$E$2=\"Orkney Islands Local Authority\"),$F122=1),0,IF(AND(OR(Calculations!$E$2=\"Shetland Health Board\",Calculations!$E$2=\"Western Isles Health Board\",Calculations!$E$2=\"Shetland Islands Local Authority\",Calculations!$E$2=\"Eilean Siar Local Authority\"),OR($F122=1,$F122=5)),0,new_yllv2(VALUE(LEFT(Options!$B$14,2)),$C122,$D122,$E122,$F122,2016,$I122/10,1,$H122/10,$G122*$H122/10,RateRatios_airpollution!$E122)*10))","v":2124.2910590880001},{"$f":"IF(AND(OR(Calculations!$E$2=\"Orkney Health Board\",Calculations!$E$2=\"Orkney Islands Local Authority\"),$F122=1),0,IF(AND(OR(Calculations!$E$2=\"Shetland Health Board\",Calculations!$E$2=\"Western Isles Health Board\",Calculations!$E$2=\"Shetland Islands Local Authority\",Calculations!$E$2=\"Eilean Siar Local Authority\"),OR($F122=1,$F122=5)),0,new_yllv2(VALUE(LEFT(Options!$B$14,2)),$C122,$D122,$E122,$F122,2016,$I122/10+$J122/10,1,$H122/10,$G122*$H122/10,RateRatios_airpollution!$E122)*10))","v":2124.275307377},{"$f":"IF(AND(OR(Calculations!$E$2=\"Orkney Health Board\",Calculations!$E$2=\"Orkney Islands Local Authority\"),$F122=1),0,IF(AND(OR(Calculations!$E$2=\"Shetland Health Board\",Calculations!$E$2=\"Western Isles Health Board\",Calculations!$E$2=\"Shetland Islands Local Authority\",Calculations!$E$2=\"Eilean Siar Local Authority\"),OR($F122=1,$F122=5)),0,hosp_count(VALUE(LEFT(Options!$B$14,2)),$C122,$E122,$F122,2016,$I122/10,1,$H122/10,$G122*$H122/10, RateRatios_airpollution!$F122, RateRatios_airpollution!$E122)*10))","v":4338.5762131860001},{"$f":"IF(AND(OR(Calculations!$E$2=\"Orkney Health Board\",Calculations!$E$2=\"Orkney Islands Local Authority\"),$F122=1),0,IF(AND(OR(Calculations!$E$2=\"Shetland Health Board\",Calculations!$E$2=\"Western Isles Health Board\",Calculations!$E$2=\"Shetland Islands Local Authority\",Calculations!$E$2=\"Eilean Siar Local Authority\"),OR($F122=1,$F122=5)),0,hosp_count(VALUE(LEFT(Options!$B$14,2)),$C122,$E122,$F122,2016,$I122/10+$J122/10,1,$H122/10,$G122*$H122/10, RateRatios_airpollution!$F122, RateRatios_airpollution!$E122)*10))","v":4338.5762131860001},{"$f":"IF(AND(OR(Calculations!$E$2=\"Orkney Health Board\",Calculations!$E$2=\"Orkney Islands Local Authority\"),$F122=1),0,IF(AND(OR(Calculations!$E$2=\"Shetland Health Board\",Calculations!$E$2=\"Western Isles Health Board\",Calculations!$E$2=\"Shetland Islands Local Authority\",Calculations!$E$2=\"Eilean Siar Local Authority\"),OR($F122=1,$F122=5)),0,prem_mort(VALUE(LEFT(Options!$B$14,2)),$C122,$E122,$F122,2016,$I122/10,1,$H122/10,$G122*$H122/10,RateRatios_airpollution!$E122)*10))","v":42.630768351999997},{"$f":"IF(AND(OR(Calculations!$E$2=\"Orkney Health Board\",Calculations!$E$2=\"Orkney Islands Local Authority\"),$F122=1),0,IF(AND(OR(Calculations!$E$2=\"Shetland Health Board\",Calculations!$E$2=\"Western Isles Health Board\",Calculations!$E$2=\"Shetland Islands Local Authority\",Calculations!$E$2=\"Eilean Siar Local Authority\"),OR($F122=1,$F122=5)),0,prem_mort(VALUE(LEFT(Options!$B$14,2)),$C122,$E122,$F122,2016,$I122/10+$J122/10,1,$H122/10,$G122*$H122/10,RateRatios_airpollution!$E122)*10))","v":42.630452243000001},42.630768351999997,42.618939359000009,2124.2910590880001,2123.7016204009997,4338.5762131860001,4337.3383511950005,42.630768351999997,42.618939359000009,107.62356000100981,107.59369710181518,5362.8816719800061,5361.393603799449,10952.958050001262,10949.833003950924,107.62356000100981,107.59369710181518,645741.36000605882,645562.18261089106,32177290.031880036,32168361.622796696,65717748.300007567,65698998.023705542,645741.36000605882,645562.18261089106,6000]
[null,"Male 30-34",31.981521999999998,78.061520000000002,"male",2,1,{"$f":"HLOOKUP(Calculations!$E$2,'Population 2016'!$C$3:$BC$249,'Population 2016'!BD123,FALSE)","v":37146},0,{"$f":"HLOOKUP(Calculations!$E$2,Pop2016_in_settlements!$C$3:$BC$249,Pop2016_in_settlements!$BD123,FALSE)","v":23489},{"$f":"IF(AND(OR(Calculations!$E$2=\"Orkney Health Board\",Calculations!$E$2=\"Orkney Islands Local Authority\"),$F123=1),0,IF(AND(OR(Calculations!$E$2=\"Shetland Health Board\",Calculations!$E$2=\"Western Isles Health Board\",Calculations!$E$2=\"Shetland Islands Local Authority\",Calculations!$E$2=\"Eilean Siar Local Authority\"),OR($F123=1,$F123=5)),0,new_ci(VALUE(LEFT(Options!$B$14,2)),$C123,$E123,$F123,2016,$I123/10,1,$H123/10,$G123*$H123/10,RateRatios_accidents!$B$5)*10))","v":58.393742304999996},{"$f":"IF(AND(OR(Calculations!$E$2=\"Orkney Health Board\",Calculations!$E$2=\"Orkney Islands Local Authority\"),$F123=1),0,IF(AND(OR(Calculations!$E$2=\"Shetland Health Board\",Calculations!$E$2=\"Western Isles Health Board\",Calculations!$E$2=\"Shetland Islands Local Authority\",Calculations!$E$2=\"Eilean Siar Local Authority\"),OR($F123=1,$F123=5)),0,new_ci(VALUE(LEFT(Options!$B$14,2)),$C123,$E123,$F123,2016,$I123/10+$J123/10,1,$H123/10,$G123*$H123/10,RateRatios_accidents!$B$5)*10))","v":58.378984165999995},{"$f":"IF(AND(OR(Calculations!$E$2=\"Orkney Health Board\",Calculations!$E$2=\"Orkney Islands Local Authority\"),$F123=1),0,IF(AND(OR(Calculations!$E$2=\"Shetland Health Board\",Calculations!$E$2=\"Western Isles Health Board\",Calculations!$E$2=\"Shetland Islands Local Authority\",Calculations!$E$2=\"Eilean Siar Local Authority\"),OR($F123=1,$F123=5)),0,new_yllv2(VALUE(LEFT(Options!$B$14,2)),$C123,$D123,$E123,$F123,2016,$I123/10,1,$H123/10,$G123*$H123/10,RateRatios_accidents!$B$5)*10))","v":2632.389786322},{"$f":"IF(AND(OR(Calculations!$E$2=\"Orkney Health Board\",Calculations!$E$2=\"Orkney Islands Local Authority\"),$F123=1),0,IF(AND(OR(Calculations!$E$2=\"Shetland Health Board\",Calculations!$E$2=\"Western Isles Health Board\",Calculations!$E$2=\"Shetland Islands Local Authority\",Calculations!$E$2=\"Eilean Siar Local Authority\"),OR($F123=1,$F123=5)),0,new_yllv2(VALUE(LEFT(Options!$B$14,2)),$C123,$D123,$E123,$F123,2016,$I123/10+$J123/10,1,$H123/10,$G123*$H123/10,RateRatios_accidents!$B$5)*10))","v":2631.724489445},{"$f":"IF(AND(OR(Calculations!$E$2=\"Orkney Health Board\",Calculations!$E$2=\"Orkney Islands Local Authority\"),$F123=1),0,IF(AND(OR(Calculations!$E$2=\"Shetland Health Board\",Calculations!$E$2=\"Western Isles Health Board\",Calculations!$E$2=\"Shetland Islands Local Authority\",Calculations!$E$2=\"Eilean Siar Local Authority\"),OR($F123=1,$F123=5)),0,hosp_count(VALUE(LEFT(Options!$B$14,2)),$C123,$E123,$F123,2016,$I123/10,1,$H123/10,$G123*$H123/10, RateRatios_accidents!$B$4, RateRatios_accidents!$B$5)*10))","v":4862.4564060940002},{"$f":"IF(AND(OR(Calculations!$E$2=\"Orkney Health Board\",Calculations!$E$2=\"Orkney Islands Local Authority\"),$F123=1),0,IF(AND(OR(Calculations!$E$2=\"Shetland Health Board\",Calculations!$E$2=\"Western Isles Health Board\",Calculations!$E$2=\"Shetland Islands Local Authority\",Calculations!$E$2=\"Eilean Siar Local Authority\"),OR($F123=1,$F123=5)),0,hosp_count(VALUE(LEFT(Options!$B$14,2)),$C123,$E123,$F123,2016,$I123/10+$J123/10,1,$H123/10,$G123*$H123/10, RateRatios_accidents!$B$4, RateRatios_accidents!$B$5)*10))","v":4861.2265103089994},{"$f":"IF(AND(OR(Calculations!$E$2=\"Orkney Health Board\",Calculations!$E$2=\"Orkney Islands Local Authority\"),$F123=1),0,IF(AND(OR(Calculations!$E$2=\"Shetland Health Board\",Calculations!$E$2=\"Western Isles Health Board\",Calculations!$E$2=\"Shetland Islands Local Authority\",Calculations!$E$2=\"Eilean Siar Local Authority\"),OR($F123=1,$F123=5)),0,prem_mort(VALUE(LEFT(Options!$B$14,2)),$C123,$E123,$F123,2016,$I123/10,1,$H123/10,$G123*$H123/10,RateRatios_accidents!$B$5)*10))","v":58.393742304999996},{"$f":"IF(AND(OR(Calculations!$E$2=\"Orkney Health Board\",Calculations!$E$2=\"Orkney Islands Local Authority\"),$F123=1),0,IF(AND(OR(Calculations!$E$2=\"Shetland Health Board\",Calculations!$E$2=\"Western Isles Health Board\",Calculations!$E$2=\"Shetland Islands Local Authority\",Calculations!$E$2=\"Eilean Siar Local Authority\"),OR($F123=1,$F123=5)),0,prem_mort(VALUE(LEFT(Options!$B$14,2)),$C123,$E123,$F123,2016,$I123/10+$J123/10,1,$H123/10,$G123*$H123/10,RateRatios_accidents!$B$5)*10))","v":58.378984165999995},null,{"$f":"IF(AND(OR(Calculations!$E$2=\"Orkney Health Board\",Calculations!$E$2=\"Orkney Islands Local Authority\"),$F123=1),0,IF(AND(OR(Calculations!$E$2=\"Shetland Health Board\",Calculations!$E$2=\"Western Isles Health Board\",Calculations!$E$2=\"Shetland Islands Local Authority\",Calculations!$E$2=\"Eilean Siar Local Authority\"),OR($F123=1,$F123=5)),0,new_ci(VALUE(LEFT(Options!$B$14,2)),$C123,$E123,$F123,2016,$I123/10,1,$H123/10,$G123*$H123/10,RateRatios_airpollution!$C123)*10))","v":58.393742304999996},{"$f":"IF(AND(OR(Calculations!$E$2=\"Orkney Health Board\",Calculations!$E$2=\"Orkney Islands Local Authority\"),$F123=1),0,IF(AND(OR(Calculations!$E$2=\"Shetland Health Board\",Calculations!$E$2=\"Western Isles Health Board\",Calculations!$E$2=\"Shetland Islands Local Authority\",Calculations!$E$2=\"Eilean Siar Local Authority\"),OR($F123=1,$F123=5)),0,new_ci(VALUE(LEFT(Options!$B$14,2)),$C123,$E123,$F123,2016,$I123/10+$J123/10,1,$H123/10,$G123*$H123/10,RateRatios_airpollution!$C123)*10))","v":58.392791000999999},{"$f":"IF(AND(OR(Calculations!$E$2=\"Orkney Health Board\",Calculations!$E$2=\"Orkney Islands Local Authority\"),$F123=1),0,IF(AND(OR(Calculations!$E$2=\"Shetland Health Board\",Calculations!$E$2=\"Western Isles Health Board\",Calculations!$E$2=\"Shetland Islands Local Authority\",Calculations!$E$2=\"Eilean Siar Local Authority\"),OR($F123=1,$F123=5)),0,new_yllv2(VALUE(LEFT(Options!$B$14,2)),$C123,$D123,$E123,$F123,2016,$I123/10,1,$H123/10,$G123*$H123/10,RateRatios_airpollution!$C123)*10))","v":2632.389786322},{"$f":"IF(AND(OR(Calculations!$E$2=\"Orkney Health Board\",Calculations!$E$2=\"Orkney Islands Local Authority\"),$F123=1),0,IF(AND(OR(Calculations!$E$2=\"Shetland Health Board\",Calculations!$E$2=\"Western Isles Health Board\",Calculations!$E$2=\"Shetland Islands Local Authority\",Calculations!$E$2=\"Eilean Siar Local Authority\"),OR($F123=1,$F123=5)),0,new_yllv2(VALUE(LEFT(Options!$B$14,2)),$C123,$D123,$E123,$F123,2016,$I123/10+$J123/10,1,$H123/10,$G123*$H123/10,RateRatios_airpollution!$C123)*10))","v":2632.3469015389996},{"$f":"IF(AND(OR(Calculations!$E$2=\"Orkney Health Board\",Calculations!$E$2=\"Orkney Islands Local Authority\"),$F123=1),0,IF(AND(OR(Calculations!$E$2=\"Shetland Health Board\",Calculations!$E$2=\"Western Isles Health Board\",Calculations!$E$2=\"Shetland Islands Local Authority\",Calculations!$E$2=\"Eilean Siar Local Authority\"),OR($F123=1,$F123=5)),0,hosp_count(VALUE(LEFT(Options!$B$14,2)),$C123,$E123,$F123,2016,$I123/10,1,$H123/10,$G123*$H123/10, RateRatios_airpollution!$D123, RateRatios_airpollution!$C123)*10))","v":4862.4564060940002},{"$f":"IF(AND(OR(Calculations!$E$2=\"Orkney Health Board\",Calculations!$E$2=\"Orkney Islands Local Authority\"),$F123=1),0,IF(AND(OR(Calculations!$E$2=\"Shetland Health Board\",Calculations!$E$2=\"Western Isles Health Board\",Calculations!$E$2=\"Shetland Islands Local Authority\",Calculations!$E$2=\"Eilean Siar Local Authority\"),OR($F123=1,$F123=5)),0,hosp_count(VALUE(LEFT(Options!$B$14,2)),$C123,$E123,$F123,2016,$I123/10+$J123/10,1,$H123/10,$G123*$H123/10, RateRatios_airpollution!$D123, RateRatios_airpollution!$C123)*10))","v":4862.3070324959999},{"$f":"IF(AND(OR(Calculations!$E$2=\"Orkney Health Board\",Calculations!$E$2=\"Orkney Islands Local Authority\"),$F123=1),0,IF(AND(OR(Calculations!$E$2=\"Shetland Health Board\",Calculations!$E$2=\"Western Isles Health Board\",Calculations!$E$2=\"Shetland Islands Local Authority\",Calculations!$E$2=\"Eilean Siar Local Authority\"),OR($F123=1,$F123=5)),0,prem_mort(VALUE(LEFT(Options!$B$14,2)),$C123,$E123,$F123,2016,$I123/10,1,$H123/10,$G123*$H123/10,RateRatios_airpollution!$C123)*10))","v":58.393742304999996},{"$f":"IF(AND(OR(Calculations!$E$2=\"Orkney Health Board\",Calculations!$E$2=\"Orkney Islands Local Authority\"),$F123=1),0,IF(AND(OR(Calculations!$E$2=\"Shetland Health Board\",Calculations!$E$2=\"Western Isles Health Board\",Calculations!$E$2=\"Shetland Islands Local Authority\",Calculations!$E$2=\"Eilean Siar Local Authority\"),OR($F123=1,$F123=5)),0,prem_mort(VALUE(LEFT(Options!$B$14,2)),$C123,$E123,$F123,2016,$I123/10+$J123/10,1,$H123/10,$G123*$H123/10,RateRatios_airpollution!$C123)*10))","v":58.392791000999999},null,{"$f":"IF(AND(OR(Calculations!$E$2=\"Orkney Health Board\",Calculations!$E$2=\"Orkney Islands Local Authority\"),$F123=1),0,IF(AND(OR(Calculations!$E$2=\"Shetland Health Board\",Calculations!$E$2=\"Western Isles Health Board\",Calculations!$E$2=\"Shetland Islands Local Authority\",Calculations!$E$2=\"Eilean Siar Local Authority\"),OR($F123=1,$F123=5)),0,new_ci(VALUE(LEFT(Options!$B$14,2)),$C123,$E123,$F123,2016,$I123/10,1,$H123/10,$G123*$H123/10,RateRatios_airpollution!$E123)*10))","v":58.393742304999996},{"$f":"IF(AND(OR(Calculations!$E$2=\"Orkney Health Board\",Calculations!$E$2=\"Orkney Islands Local Authority\"),$F123=1),0,IF(AND(OR(Calculations!$E$2=\"Shetland Health Board\",Calculations!$E$2=\"Western Isles Health Board\",Calculations!$E$2=\"Shetland Islands Local Authority\",Calculations!$E$2=\"Eilean Siar Local Authority\"),OR($F123=1,$F123=5)),0,new_ci(VALUE(LEFT(Options!$B$14,2)),$C123,$E123,$F123,2016,$I123/10+$J123/10,1,$H123/10,$G123*$H123/10,RateRatios_airpollution!$E123)*10))","v":58.393317154000002},{"$f":"IF(AND(OR(Calculations!$E$2=\"Orkney Health Board\",Calculations!$E$2=\"Orkney Islands Local Authority\"),$F123=1),0,IF(AND(OR(Calculations!$E$2=\"Shetland Health Board\",Calculations!$E$2=\"Western Isles Health Board\",Calculations!$E$2=\"Shetland Islands Local Authority\",Calculations!$E$2=\"Eilean Siar Local Authority\"),OR($F123=1,$F123=5)),0,new_yllv2(VALUE(LEFT(Options!$B$14,2)),$C123,$D123,$E123,$F123,2016,$I123/10,1,$H123/10,$G123*$H123/10,RateRatios_airpollution!$E123)*10))","v":2632.389786322},{"$f":"IF(AND(OR(Calculations!$E$2=\"Orkney Health Board\",Calculations!$E$2=\"Orkney Islands Local Authority\"),$F123=1),0,IF(AND(OR(Calculations!$E$2=\"Shetland Health Board\",Calculations!$E$2=\"Western Isles Health Board\",Calculations!$E$2=\"Shetland Islands Local Authority\",Calculations!$E$2=\"Eilean Siar Local Authority\"),OR($F123=1,$F123=5)),0,new_yllv2(VALUE(LEFT(Options!$B$14,2)),$C123,$D123,$E123,$F123,2016,$I123/10+$J123/10,1,$H123/10,$G123*$H123/10,RateRatios_airpollution!$E123)*10))","v":2632.3706205159997},{"$f":"IF(AND(OR(Calculations!$E$2=\"Orkney Health Board\",Calculations!$E$2=\"Orkney Islands Local Authority\"),$F123=1),0,IF(AND(OR(Calculations!$E$2=\"Shetland Health Board\",Calculations!$E$2=\"Western Isles Health Board\",Calculations!$E$2=\"Shetland Islands Local Authority\",Calculations!$E$2=\"Eilean Siar Local Authority\"),OR($F123=1,$F123=5)),0,hosp_count(VALUE(LEFT(Options!$B$14,2)),$C123,$E123,$F123,2016,$I123/10,1,$H123/10,$G123*$H123/10, RateRatios_airpollution!$F123, RateRatios_airpollution!$E123)*10))","v":4862.4564060940002},{"$f":"IF(AND(OR(Calculations!$E$2=\"Orkney Health Board\",Calculations!$E$2=\"Orkney Islands Local Authority\"),$F123=1),0,IF(AND(OR(Calculations!$E$2=\"Shetland Health Board\",Calculations!$E$2=\"Western Isles Health Board\",Calculations!$E$2=\"Shetland Islands Local Authority\",Calculations!$E$2=\"Eilean Siar Local Authority\"),OR($F123=1,$F123=5)),0,hosp_count(VALUE(LEFT(Options!$B$14,2)),$C123,$E123,$F123,2016,$I123/10+$J123/10,1,$H123/10,$G123*$H123/10, RateRatios_airpollution!$F123, RateRatios_airpollution!$E123)*10))","v":4862.4564060940002},{"$f":"IF(AND(OR(Calculations!$E$2=\"Orkney Health Board\",Calculations!$E$2=\"Orkney Islands Local Authority\"),$F123=1),0,IF(AND(OR(Calculations!$E$2=\"Shetland Health Board\",Calculations!$E$2=\"Western Isles Health Board\",Calculations!$E$2=\"Shetland Islands Local Authority\",Calculations!$E$2=\"Eilean Siar Local Authority\"),OR($F123=1,$F123=5)),0,prem_mort(VALUE(LEFT(Options!$B$14,2)),$C123,$E123,$F123,2016,$I123/10,1,$H123/10,$G123*$H123/10,RateRatios_airpollution!$E123)*10))","v":58.393742304999996},{"$f":"IF(AND(OR(Calculations!$E$2=\"Orkney Health Board\",Calculations!$E$2=\"Orkney Islands Local Authority\"),$F123=1),0,IF(AND(OR(Calculations!$E$2=\"Shetland Health Board\",Calculations!$E$2=\"Western Isles Health Board\",Calculations!$E$2=\"Shetland Islands Local Authority\",Calculations!$E$2=\"Eilean Siar Local Authority\"),OR($F123=1,$F123=5)),0,prem_mort(VALUE(LEFT(Options!$B$14,2)),$C123,$E123,$F123,2016,$I123/10+$J123/10,1,$H123/10,$G123*$H123/10,RateRatios_airpollution!$E123)*10))","v":58.393317154000002},58.393742304999996,58.377607711000003,2632.389786322,2631.6624388559994,4862.4564060940002,4861.0771367109992,58.393742304999996,58.377607711000003,157.20061999946157,157.1571843832445,7086.6036351747161,7084.645557680502,13090.121160001077,13086.408056617131,157.20061999946157,157.1571843832445,1021804.0299965002,1021521.6984910893,46062923.628635652,46050196.124923259,85085787.54000701,85061652.368011355,1021804.0299965002,1021521.6984910893,6500]
[null,"Male 35-39",36.926009999999998,78.336009999999987,"male",2,1,{"$f":"HLOOKUP(Calculations!$E$2,'Population 2016'!$C$3:$BC$249,'Population 2016'!BD124,FALSE)","v":32341},0,{"$f":"HLOOKUP(Calculations!$E$2,Pop2016_in_settlements!$C$3:$BC$249,Pop2016_in_settlements!$BD124,FALSE)","v":20242},{"$f":"IF(AND(OR(Calculations!$E$2=\"Orkney Health Board\",Calculations!$E$2=\"Orkney Islands Local Authority\"),$F124=1),0,IF(AND(OR(Calculations!$E$2=\"Shetland Health Board\",Calculations!$E$2=\"Western Isles Health Board\",Calculations!$E$2=\"Shetland Islands Local Authority\",Calculations!$E$2=\"Eilean Siar Local Authority\"),OR($F124=1,$F124=5)),0,new_ci(VALUE(LEFT(Options!$B$14,2)),$C124,$E124,$F124,2016,$I124/10,1,$H124/10,$G124*$H124/10,RateRatios_accidents!$B$5)*10))","v":73.820027167999996},{"$f":"IF(AND(OR(Calculations!$E$2=\"Orkney Health Board\",Calculations!$E$2=\"Orkney Islands Local Authority\"),$F124=1),0,IF(AND(OR(Calculations!$E$2=\"Shetland Health Board\",Calculations!$E$2=\"Western Isles Health Board\",Calculations!$E$2=\"Shetland Islands Local Authority\",Calculations!$E$2=\"Eilean Siar Local Authority\"),OR($F124=1,$F124=5)),0,new_ci(VALUE(LEFT(Options!$B$14,2)),$C124,$E124,$F124,2016,$I124/10+$J124/10,1,$H124/10,$G124*$H124/10,RateRatios_accidents!$B$5)*10))","v":73.80156646399999},{"$f":"IF(AND(OR(Calculations!$E$2=\"Orkney Health Board\",Calculations!$E$2=\"Orkney Islands Local Authority\"),$F124=1),0,IF(AND(OR(Calculations!$E$2=\"Shetland Health Board\",Calculations!$E$2=\"Western Isles Health Board\",Calculations!$E$2=\"Shetland Islands Local Authority\",Calculations!$E$2=\"Eilean Siar Local Authority\"),OR($F124=1,$F124=5)),0,new_yllv2(VALUE(LEFT(Options!$B$14,2)),$C124,$D124,$E124,$F124,2016,$I124/10,1,$H124/10,$G124*$H124/10,RateRatios_accidents!$B$5)*10))","v":2983.0672978590001},{"$f":"IF(AND(OR(Calculations!$E$2=\"Orkney Health Board\",Calculations!$E$2=\"Orkney Islands Local Authority\"),$F124=1),0,IF(AND(OR(Calculations!$E$2=\"Shetland Health Board\",Calculations!$E$2=\"Western Isles Health Board\",Calculations!$E$2=\"Shetland Islands Local Authority\",Calculations!$E$2=\"Eilean Siar Local Authority\"),OR($F124=1,$F124=5)),0,new_yllv2(VALUE(LEFT(Options!$B$14,2)),$C124,$D124,$E124,$F124,2016,$I124/10+$J124/10,1,$H124/10,$G124*$H124/10,RateRatios_accidents!$B$5)*10))","v":2982.3213008099997},{"$f":"IF(AND(OR(Calculations!$E$2=\"Orkney Health Board\",Calculations!$E$2=\"Orkney Islands Local Authority\"),$F124=1),0,IF(AND(OR(Calculations!$E$2=\"Shetland Health Board\",Calculations!$E$2=\"Western Isles Health Board\",Calculations!$E$2=\"Shetland Islands Local Authority\",Calculations!$E$2=\"Eilean Siar Local Authority\"),OR($F124=1,$F124=5)),0,hosp_count(VALUE(LEFT(Options!$B$14,2)),$C124,$E124,$F124,2016,$I124/10,1,$H124/10,$G124*$H124/10, RateRatios_accidents!$B$4, RateRatios_accidents!$B$5)*10))","v":5045.6624380720004},{"$f":"IF(AND(OR(Calculations!$E$2=\"Orkney Health Board\",Calculations!$E$2=\"Orkney Islands Local Authority\"),$F124=1),0,IF(AND(OR(Calculations!$E$2=\"Shetland Health Board\",Calculations!$E$2=\"Western Isles Health Board\",Calculations!$E$2=\"Shetland Islands Local Authority\",Calculations!$E$2=\"Eilean Siar Local Authority\"),OR($F124=1,$F124=5)),0,hosp_count(VALUE(LEFT(Options!$B$14,2)),$C124,$E124,$F124,2016,$I124/10+$J124/10,1,$H124/10,$G124*$H124/10, RateRatios_accidents!$B$4, RateRatios_accidents!$B$5)*10))","v":5044.3992198690003},{"$f":"IF(AND(OR(Calculations!$E$2=\"Orkney Health Board\",Calculations!$E$2=\"Orkney Islands Local Authority\"),$F124=1),0,IF(AND(OR(Calculations!$E$2=\"Shetland Health Board\",Calculations!$E$2=\"Western Isles Health Board\",Calculations!$E$2=\"Shetland Islands Local Authority\",Calculations!$E$2=\"Eilean Siar Local Authority\"),OR($F124=1,$F124=5)),0,prem_mort(VALUE(LEFT(Options!$B$14,2)),$C124,$E124,$F124,2016,$I124/10,1,$H124/10,$G124*$H124/10,RateRatios_accidents!$B$5)*10))","v":73.820027167999996},{"$f":"IF(AND(OR(Calculations!$E$2=\"Orkney Health Board\",Calculations!$E$2=\"Orkney Islands Local Authority\"),$F124=1),0,IF(AND(OR(Calculations!$E$2=\"Shetland Health Board\",Calculations!$E$2=\"Western Isles Health Board\",Calculations!$E$2=\"Shetland Islands Local Authority\",Calculations!$E$2=\"Eilean Siar Local Authority\"),OR($F124=1,$F124=5)),0,prem_mort(VALUE(LEFT(Options!$B$14,2)),$C124,$E124,$F124,2016,$I124/10+$J124/10,1,$H124/10,$G124*$H124/10,RateRatios_accidents!$B$5)*10))","v":73.80156646399999},null,{"$f":"IF(AND(OR(Calculations!$E$2=\"Orkney Health Board\",Calculations!$E$2=\"Orkney Islands Local Authority\"),$F124=1),0,IF(AND(OR(Calculations!$E$2=\"Shetland Health Board\",Calculations!$E$2=\"Western Isles Health Board\",Calculations!$E$2=\"Shetland Islands Local Authority\",Calculations!$E$2=\"Eilean Siar Local Authority\"),OR($F124=1,$F124=5)),0,new_ci(VALUE(LEFT(Options!$B$14,2)),$C124,$E124,$F124,2016,$I124/10,1,$H124/10,$G124*$H124/10,RateRatios_airpollution!$C124)*10))","v":73.820027167999996},{"$f":"IF(AND(OR(Calculations!$E$2=\"Orkney Health Board\",Calculations!$E$2=\"Orkney Islands Local Authority\"),$F124=1),0,IF(AND(OR(Calculations!$E$2=\"Shetland Health Board\",Calculations!$E$2=\"Western Isles Health Board\",Calculations!$E$2=\"Shetland Islands Local Authority\",Calculations!$E$2=\"Eilean Siar Local Authority\"),OR($F124=1,$F124=5)),0,new_ci(VALUE(LEFT(Options!$B$14,2)),$C124,$E124,$F124,2016,$I124/10+$J124/10,1,$H124/10,$G124*$H124/10,RateRatios_airpollution!$C124)*10))","v":73.818903736999999},{"$f":"IF(AND(OR(Calculations!$E$2=\"Orkney Health Board\",Calculations!$E$2=\"Orkney Islands Local Authority\"),$F124=1),0,IF(AND(OR(Calculations!$E$2=\"Shetland Health Board\",Calculations!$E$2=\"Western Isles Health Board\",Calculations!$E$2=\"Shetland Islands Local Authority\",Calculations!$E$2=\"Eilean Siar Local Authority\"),OR($F124=1,$F124=5)),0,new_yllv2(VALUE(LEFT(Options!$B$14,2)),$C124,$D124,$E124,$F124,2016,$I124/10,1,$H124/10,$G124*$H124/10,RateRatios_airpollution!$C124)*10))","v":2983.0672978590001},{"$f":"IF(AND(OR(Calculations!$E$2=\"Orkney Health Board\",Calculations!$E$2=\"Orkney Islands Local Authority\"),$F124=1),0,IF(AND(OR(Calculations!$E$2=\"Shetland Health Board\",Calculations!$E$2=\"Western Isles Health Board\",Calculations!$E$2=\"Shetland Islands Local Authority\",Calculations!$E$2=\"Eilean Siar Local Authority\"),OR($F124=1,$F124=5)),0,new_yllv2(VALUE(LEFT(Options!$B$14,2)),$C124,$D124,$E124,$F124,2016,$I124/10+$J124/10,1,$H124/10,$G124*$H124/10,RateRatios_airpollution!$C124)*10))","v":2983.0219000120001},{"$f":"IF(AND(OR(Calculations!$E$2=\"Orkney Health Board\",Calculations!$E$2=\"Orkney Islands Local Authority\"),$F124=1),0,IF(AND(OR(Calculations!$E$2=\"Shetland Health Board\",Calculations!$E$2=\"Western Isles Health Board\",Calculations!$E$2=\"Shetland Islands Local Authority\",Calculations!$E$2=\"Eilean Siar Local Authority\"),OR($F124=1,$F124=5)),0,hosp_count(VALUE(LEFT(Options!$B$14,2)),$C124,$E124,$F124,2016,$I124/10,1,$H124/10,$G124*$H124/10, RateRatios_airpollution!$D124, RateRatios_airpollution!$C124)*10))","v":5045.6624380720004},{"$f":"IF(AND(OR(Calculations!$E$2=\"Orkney Health Board\",Calculations!$E$2=\"Orkney Islands Local Authority\"),$F124=1),0,IF(AND(OR(Calculations!$E$2=\"Shetland Health Board\",Calculations!$E$2=\"Western Isles Health Board\",Calculations!$E$2=\"Shetland Islands Local Authority\",Calculations!$E$2=\"Eilean Siar Local Authority\"),OR($F124=1,$F124=5)),0,hosp_count(VALUE(LEFT(Options!$B$14,2)),$C124,$E124,$F124,2016,$I124/10+$J124/10,1,$H124/10,$G124*$H124/10, RateRatios_airpollution!$D124, RateRatios_airpollution!$C124)*10))","v":5045.5178029099998},{"$f":"IF(AND(OR(Calculations!$E$2=\"Orkney Health Board\",Calculations!$E$2=\"Orkney Islands Local Authority\"),$F124=1),0,IF(AND(OR(Calculations!$E$2=\"Shetland Health Board\",Calculations!$E$2=\"Western Isles Health Board\",Calculations!$E$2=\"Shetland Islands Local Authority\",Calculations!$E$2=\"Eilean Siar Local Authority\"),OR($F124=1,$F124=5)),0,prem_mort(VALUE(LEFT(Options!$B$14,2)),$C124,$E124,$F124,2016,$I124/10,1,$H124/10,$G124*$H124/10,RateRatios_airpollution!$C124)*10))","v":73.820027167999996},{"$f":"IF(AND(OR(Calculations!$E$2=\"Orkney Health Board\",Calculations!$E$2=\"Orkney Islands Local Authority\"),$F124=1),0,IF(AND(OR(Calculations!$E$2=\"Shetland Health Board\",Calculations!$E$2=\"Western Isles Health Board\",Calculations!$E$2=\"Shetland Islands Local Authority\",Calculations!$E$2=\"Eilean Siar Local Authority\"),OR($F124=1,$F124=5)),0,prem_mort(VALUE(LEFT(Options!$B$14,2)),$C124,$E124,$F124,2016,$I124/10+$J124/10,1,$H124/10,$G124*$H124/10,RateRatios_airpollution!$C124)*10))","v":73.818903736999999},null,{"$f":"IF(AND(OR(Calculations!$E$2=\"Orkney Health Board\",Calculations!$E$2=\"Orkney Islands Local Authority\"),$F124=1),0,IF(AND(OR(Calculations!$E$2=\"Shetland Health Board\",Calculations!$E$2=\"Western Isles Health Board\",Calculations!$E$2=\"Shetland Islands Local Authority\",Calculations!$E$2=\"Eilean Siar Local Authority\"),OR($F124=1,$F124=5)),0,new_ci(VALUE(LEFT(Options!$B$14,2)),$C124,$E124,$F124,2016,$I124/10,1,$H124/10,$G124*$H124/10,RateRatios_airpollution!$E124)*10))","v":73.820027167999996},{"$f":"IF(AND(OR(Calculations!$E$2=\"Orkney Health Board\",Calculations!$E$2=\"Orkney Islands Local Authority\"),$F124=1),0,IF(AND(OR(Calculations!$E$2=\"Shetland Health Board\",Calculations!$E$2=\"Western Isles Health Board\",Calculations!$E$2=\"Shetland Islands Local Authority\",Calculations!$E$2=\"Eilean Siar Local Authority\"),OR($F124=1,$F124=5)),0,new_ci(VALUE(LEFT(Options!$B$14,2)),$C124,$E124,$F124,2016,$I124/10+$J124/10,1,$H124/10,$G124*$H124/10,RateRatios_airpollution!$E124)*10))","v":73.819521118000011},{"$f":"IF(AND(OR(Calculations!$E$2=\"Orkney Health Board\",Calculations!$E$2=\"Orkney Islands Local Authority\"),$F124=1),0,IF(AND(OR(Calculations!$E$2=\"Shetland Health Board\",Calculations!$E$2=\"Western Isles Health Board\",Calculations!$E$2=\"Shetland Islands Local Authority\",Calculations!$E$2=\"Eilean Siar Local Authority\"),OR($F124=1,$F124=5)),0,new_yllv2(VALUE(LEFT(Options!$B$14,2)),$C124,$D124,$E124,$F124,2016,$I124/10,1,$H124/10,$G124*$H124/10,RateRatios_airpollution!$E124)*10))","v":2983.0672978590001},{"$f":"IF(AND(OR(Calculations!$E$2=\"Orkney Health Board\",Calculations!$E$2=\"Orkney Islands Local Authority\"),$F124=1),0,IF(AND(OR(Calculations!$E$2=\"Shetland Health Board\",Calculations!$E$2=\"Western Isles Health Board\",Calculations!$E$2=\"Shetland Islands Local Authority\",Calculations!$E$2=\"Eilean Siar Local Authority\"),OR($F124=1,$F124=5)),0,new_yllv2(VALUE(LEFT(Options!$B$14,2)),$C124,$D124,$E124,$F124,2016,$I124/10+$J124/10,1,$H124/10,$G124*$H124/10,RateRatios_airpollution!$E124)*10))","v":2983.0468483779996},{"$f":"IF(AND(OR(Calculations!$E$2=\"Orkney Health Board\",Calculations!$E$2=\"Orkney Islands Local Authority\"),$F124=1),0,IF(AND(OR(Calculations!$E$2=\"Shetland Health Board\",Calculations!$E$2=\"Western Isles Health Board\",Calculations!$E$2=\"Shetland Islands Local Authority\",Calculations!$E$2=\"Eilean Siar Local Authority\"),OR($F124=1,$F124=5)),0,hosp_count(VALUE(LEFT(Options!$B$14,2)),$C124,$E124,$F124,2016,$I124/10,1,$H124/10,$G124*$H124/10, RateRatios_airpollution!$F124, RateRatios_airpollution!$E124)*10))","v":5045.6624380720004},{"$f":"IF(AND(OR(Calculations!$E$2=\"Orkney Health Board\",Calculations!$E$2=\"Orkney Islands Local Authority\"),$F124=1),0,IF(AND(OR(Calculations!$E$2=\"Shetland Health Board\",Calculations!$E$2=\"Western Isles Health Board\",Calculations!$E$2=\"Shetland Islands Local Authority\",Calculations!$E$2=\"Eilean Siar Local Authority\"),OR($F124=1,$F124=5)),0,hosp_count(VALUE(LEFT(Options!$B$14,2)),$C124,$E124,$F124,2016,$I124/10+$J124/10,1,$H124/10,$G124*$H124/10, RateRatios_airpollution!$F124, RateRatios_airpollution!$E124)*10))","v":5045.6624380720004},{"$f":"IF(AND(OR(Calculations!$E$2=\"Orkney Health Board\",Calculations!$E$2=\"Orkney Islands Local Authority\"),$F124=1),0,IF(AND(OR(Calculations!$E$2=\"Shetland Health Board\",Calculations!$E$2=\"Western Isles Health Board\",Calculations!$E$2=\"Shetland Islands Local Authority\",Calculations!$E$2=\"Eilean Siar Local Authority\"),OR($F124=1,$F124=5)),0,prem_mort(VALUE(LEFT(Options!$B$14,2)),$C124,$E124,$F124,2016,$I124/10,1,$H124/10,$G124*$H124/10,RateRatios_airpollution!$E124)*10))","v":73.820027167999996},{"$f":"IF(AND(OR(Calculations!$E$2=\"Orkney Health Board\",Calculations!$E$2=\"Orkney Islands Local Authority\"),$F124=1),0,IF(AND(OR(Calculations!$E$2=\"Shetland Health Board\",Calculations!$E$2=\"Western Isles Health Board\",Calculations!$E$2=\"Shetland Islands Local Authority\",Calculations!$E$2=\"Eilean Siar Local Authority\"),OR($F124=1,$F124=5)),0,prem_mort(VALUE(LEFT(Options!$B$14,2)),$C124,$E124,$F124,2016,$I124/10+$J124/10,1,$H124/10,$G124*$H124/10,RateRatios_airpollution!$E124)*10))","v":73.819521118000011},73.820027167999996,73.799936983000009,2983.0672978590001,2982.2554534819992,5045.6624380720004,5044.2545847069996,73.820027167999996,73.799936983000009,228.25523999876316,228.19312013543185,9223.7942483503903,9221.2839846696115,15601.442249998454,15597.089096524534,228.25523999876316,228.19312013543185,1597786.6799913421,1597351.8409480229,{"$f":"AU124*$BI124","v":64566559.738452733},{"$f":"AV124*$BI124","v":64548987.892687283},{"$f":"AW124*$BI124","v":109210095.74998918},{"$f":"AX124*$BI124","v":109179623.67567174},{"$f":"AY124*$BI124","v":1597786.6799913421},{"$f":"AZ124*$BI124","v":1597351.8409480229},7000]
[null,"Male 40-44",42.067703000000002,78.907700000000006,"male",2,1,{"$f":"HLOOKUP(Calculations!$E$2,'Population 2016'!$C$3:$BC$249,'Population 2016'!BD125,FALSE)","v":32014},0,{"$f":"HLOOKUP(Calculations!$E$2,Pop2016_in_settlements!$C$3:$BC$249,Pop2016_in_settlements!$BD125,FALSE)","v":19812},{"$f":"IF(AND(OR(Calculations!$E$2=\"Orkney Health Board\",Calculations!$E$2=\"Orkney Islands Local Authority\"),$F125=1),0,IF(AND(OR(Calculations!$E$2=\"Shetland Health Board\",Calculations!$E$2=\"Western Isles Health Board\",Calculations!$E$2=\"Shetland Islands Local Authority\",Calculations!$E$2=\"Eilean Siar Local Authority\"),OR($F125=1,$F125=5)),0,new_ci(VALUE(LEFT(Options!$B$14,2)),$C125,$E125,$F125,2016,$I125/10,1,$H125/10,$G125*$H125/10,RateRatios_accidents!$B$5)*10))","v":107.67441175499999},{"$f":"IF(AND(OR(Calculations!$E$2=\"Orkney Health Board\",Calculations!$E$2=\"Orkney Islands Local Authority\"),$F125=1),0,IF(AND(OR(Calculations!$E$2=\"Shetland Health Board\",Calculations!$E$2=\"Western Isles Health Board\",Calculations!$E$2=\"Shetland Islands Local Authority\",Calculations!$E$2=\"Eilean Siar Local Authority\"),OR($F125=1,$F125=5)),0,new_ci(VALUE(LEFT(Options!$B$14,2)),$C125,$E125,$F125,2016,$I125/10+$J125/10,1,$H125/10,$G125*$H125/10,RateRatios_accidents!$B$5)*10))","v":107.647802257},{"$f":"IF(AND(OR(Calculations!$E$2=\"Orkney Health Board\",Calculations!$E$2=\"Orkney Islands Local Authority\"),$F125=1),0,IF(AND(OR(Calculations!$E$2=\"Shetland Health Board\",Calculations!$E$2=\"Western Isles Health Board\",Calculations!$E$2=\"Shetland Islands Local Authority\",Calculations!$E$2=\"Eilean Siar Local Authority\"),OR($F125=1,$F125=5)),0,new_yllv2(VALUE(LEFT(Options!$B$14,2)),$C125,$D125,$E125,$F125,2016,$I125/10,1,$H125/10,$G125*$H125/10,RateRatios_accidents!$B$5)*10))","v":3859.0505942760001},{"$f":"IF(AND(OR(Calculations!$E$2=\"Orkney Health Board\",Calculations!$E$2=\"Orkney Islands Local Authority\"),$F125=1),0,IF(AND(OR(Calculations!$E$2=\"Shetland Health Board\",Calculations!$E$2=\"Western Isles Health Board\",Calculations!$E$2=\"Shetland Islands Local Authority\",Calculations!$E$2=\"Eilean Siar Local Authority\"),OR($F125=1,$F125=5)),0,new_yllv2(VALUE(LEFT(Options!$B$14,2)),$C125,$D125,$E125,$F125,2016,$I125/10+$J125/10,1,$H125/10,$G125*$H125/10,RateRatios_accidents!$B$5)*10))","v":3858.0969099470003},{"$f":"IF(AND(OR(Calculations!$E$2=\"Orkney Health Board\",Calculations!$E$2=\"Orkney Islands Local Authority\"),$F125=1),0,IF(AND(OR(Calculations!$E$2=\"Shetland Health Board\",Calculations!$E$2=\"Western Isles Health Board\",Calculations!$E$2=\"Shetland Islands Local Authority\",Calculations!$E$2=\"Eilean Siar Local Authority\"),OR($F125=1,$F125=5)),0,hosp_count(VALUE(LEFT(Options!$B$14,2)),$C125,$E125,$F125,2016,$I125/10,1,$H125/10,$G125*$H125/10, RateRatios_accidents!$B$4, RateRatios_accidents!$B$5)*10))","v":5994.6765736839998},{"$f":"IF(AND(OR(Calculations!$E$2=\"Orkney Health Board\",Calculations!$E$2=\"Orkney Islands Local Authority\"),$F125=1),0,IF(AND(OR(Calculations!$E$2=\"Shetland Health Board\",Calculations!$E$2=\"Western Isles Health Board\",Calculations!$E$2=\"Shetland Islands Local Authority\",Calculations!$E$2=\"Eilean Siar Local Authority\"),OR($F125=1,$F125=5)),0,hosp_count(VALUE(LEFT(Options!$B$14,2)),$C125,$E125,$F125,2016,$I125/10+$J125/10,1,$H125/10,$G125*$H125/10, RateRatios_accidents!$B$4, RateRatios_accidents!$B$5)*10))","v":5993.1926410159995},{"$f":"IF(AND(OR(Calculations!$E$2=\"Orkney Health Board\",Calculations!$E$2=\"Orkney Islands Local Authority\"),$F125=1),0,IF(AND(OR(Calculations!$E$2=\"Shetland Health Board\",Calculations!$E$2=\"Western Isles Health Board\",Calculations!$E$2=\"Shetland Islands Local Authority\",Calculations!$E$2=\"Eilean Siar Local Authority\"),OR($F125=1,$F125=5)),0,prem_mort(VALUE(LEFT(Options!$B$14,2)),$C125,$E125,$F125,2016,$I125/10,1,$H125/10,$G125*$H125/10,RateRatios_accidents!$B$5)*10))","v":107.67441175499999},{"$f":"IF(AND(OR(Calculations!$E$2=\"Orkney Health Board\",Calculations!$E$2=\"Orkney Islands Local Authority\"),$F125=1),0,IF(AND(OR(Calculations!$E$2=\"Shetland Health Board\",Calculations!$E$2=\"Western Isles Health Board\",Calculations!$E$2=\"Shetland Islands Local Authority\",Calculations!$E$2=\"Eilean Siar Local Authority\"),OR($F125=1,$F125=5)),0,prem_mort(VALUE(LEFT(Options!$B$14,2)),$C125,$E125,$F125,2016,$I125/10+$J125/10,1,$H125/10,$G125*$H125/10,RateRatios_accidents!$B$5)*10))","v":107.647802257},null,{"$f":"IF(AND(OR(Calculations!$E$2=\"Orkney Health Board\",Calculations!$E$2=\"Orkney Islands Local Authority\"),$F125=1),0,IF(AND(OR(Calculations!$E$2=\"Shetland Health Board\",Calculations!$E$2=\"Western Isles Health Board\",Calculations!$E$2=\"Shetland Islands Local Authority\",Calculations!$E$2=\"Eilean Siar Local Authority\"),OR($F125=1,$F125=5)),0,new_ci(VALUE(LEFT(Options!$B$14,2)),$C125,$E125,$F125,2016,$I125/10,1,$H125/10,$G125*$H125/10,RateRatios_airpollution!$C125)*10))","v":107.67441175499999},{"$f":"IF(AND(OR(Calculations!$E$2=\"Orkney Health Board\",Calculations!$E$2=\"Orkney Islands Local Authority\"),$F125=1),0,IF(AND(OR(Calculations!$E$2=\"Shetland Health Board\",Calculations!$E$2=\"Western Isles Health Board\",Calculations!$E$2=\"Shetland Islands Local Authority\",Calculations!$E$2=\"Eilean Siar Local Authority\"),OR($F125=1,$F125=5)),0,new_ci(VALUE(LEFT(Options!$B$14,2)),$C125,$E125,$F125,2016,$I125/10+$J125/10,1,$H125/10,$G125*$H125/10,RateRatios_airpollution!$C125)*10))","v":107.672880287},{"$f":"IF(AND(OR(Calculations!$E$2=\"Orkney Health Board\",Calculations!$E$2=\"Orkney Islands Local Authority\"),$F125=1),0,IF(AND(OR(Calculations!$E$2=\"Shetland Health Board\",Calculations!$E$2=\"Western Isles Health Board\",Calculations!$E$2=\"Shetland Islands Local Authority\",Calculations!$E$2=\"Eilean Siar Local Authority\"),OR($F125=1,$F125=5)),0,new_yllv2(VALUE(LEFT(Options!$B$14,2)),$C125,$D125,$E125,$F125,2016,$I125/10,1,$H125/10,$G125*$H125/10,RateRatios_airpollution!$C125)*10))","v":3859.0505942760001},{"$f":"IF(AND(OR(Calculations!$E$2=\"Orkney Health Board\",Calculations!$E$2=\"Orkney Islands Local Authority\"),$F125=1),0,IF(AND(OR(Calculations!$E$2=\"Shetland Health Board\",Calculations!$E$2=\"Western Isles Health Board\",Calculations!$E$2=\"Shetland Islands Local Authority\",Calculations!$E$2=\"Eilean Siar Local Authority\"),OR($F125=1,$F125=5)),0,new_yllv2(VALUE(LEFT(Options!$B$14,2)),$C125,$D125,$E125,$F125,2016,$I125/10+$J125/10,1,$H125/10,$G125*$H125/10,RateRatios_airpollution!$C125)*10))","v":3858.9957064669998},{"$f":"IF(AND(OR(Calculations!$E$2=\"Orkney Health Board\",Calculations!$E$2=\"Orkney Islands Local Authority\"),$F125=1),0,IF(AND(OR(Calculations!$E$2=\"Shetland Health Board\",Calculations!$E$2=\"Western Isles Health Board\",Calculations!$E$2=\"Shetland Islands Local Authority\",Calculations!$E$2=\"Eilean Siar Local Authority\"),OR($F125=1,$F125=5)),0,hosp_count(VALUE(LEFT(Options!$B$14,2)),$C125,$E125,$F125,2016,$I125/10,1,$H125/10,$G125*$H125/10, RateRatios_airpollution!$D125, RateRatios_airpollution!$C125)*10))","v":5994.6765736839998},{"$f":"IF(AND(OR(Calculations!$E$2=\"Orkney Health Board\",Calculations!$E$2=\"Orkney Islands Local Authority\"),$F125=1),0,IF(AND(OR(Calculations!$E$2=\"Shetland Health Board\",Calculations!$E$2=\"Western Isles Health Board\",Calculations!$E$2=\"Shetland Islands Local Authority\",Calculations!$E$2=\"Eilean Siar Local Authority\"),OR($F125=1,$F125=5)),0,hosp_count(VALUE(LEFT(Options!$B$14,2)),$C125,$E125,$F125,2016,$I125/10+$J125/10,1,$H125/10,$G125*$H125/10, RateRatios_airpollution!$D125, RateRatios_airpollution!$C125)*10))","v":5994.5156725070001},{"$f":"IF(AND(OR(Calculations!$E$2=\"Orkney Health Board\",Calculations!$E$2=\"Orkney Islands Local Authority\"),$F125=1),0,IF(AND(OR(Calculations!$E$2=\"Shetland Health Board\",Calculations!$E$2=\"Western Isles Health Board\",Calculations!$E$2=\"Shetland Islands Local Authority\",Calculations!$E$2=\"Eilean Siar Local Authority\"),OR($F125=1,$F125=5)),0,prem_mort(VALUE(LEFT(Options!$B$14,2)),$C125,$E125,$F125,2016,$I125/10,1,$H125/10,$G125*$H125/10,RateRatios_airpollution!$C125)*10))","v":107.67441175499999},{"$f":"IF(AND(OR(Calculations!$E$2=\"Orkney Health Board\",Calculations!$E$2=\"Orkney Islands Local Authority\"),$F125=1),0,IF(AND(OR(Calculations!$E$2=\"Shetland Health Board\",Calculations!$E$2=\"Western Isles Health Board\",Calculations!$E$2=\"Shetland Islands Local Authority\",Calculations!$E$2=\"Eilean Siar Local Authority\"),OR($F125=1,$F125=5)),0,prem_mort(VALUE(LEFT(Options!$B$14,2)),$C125,$E125,$F125,2016,$I125/10+$J125/10,1,$H125/10,$G125*$H125/10,RateRatios_airpollution!$C125)*10))","v":107.672880287},null,{"$f":"IF(AND(OR(Calculations!$E$2=\"Orkney Health Board\",Calculations!$E$2=\"Orkney Islands Local Authority\"),$F125=1),0,IF(AND(OR(Calculations!$E$2=\"Shetland Health Board\",Calculations!$E$2=\"Western Isles Health Board\",Calculations!$E$2=\"Shetland Islands Local Authority\",Calculations!$E$2=\"Eilean Siar Local Authority\"),OR($F125=1,$F125=5)),0,new_ci(VALUE(LEFT(Options!$B$14,2)),$C125,$E125,$F125,2016,$I125/10,1,$H125/10,$G125*$H125/10,RateRatios_airpollution!$E125)*10))","v":107.67441175499999},{"$f":"IF(AND(OR(Calculations!$E$2=\"Orkney Health Board\",Calculations!$E$2=\"Orkney Islands Local Authority\"),$F125=1),0,IF(AND(OR(Calculations!$E$2=\"Shetland Health Board\",Calculations!$E$2=\"Western Isles Health Board\",Calculations!$E$2=\"Shetland Islands Local Authority\",Calculations!$E$2=\"Eilean Siar Local Authority\"),OR($F125=1,$F125=5)),0,new_ci(VALUE(LEFT(Options!$B$14,2)),$C125,$E125,$F125,2016,$I125/10+$J125/10,1,$H125/10,$G125*$H125/10,RateRatios_airpollution!$E125)*10))","v":107.673718335},{"$f":"IF(AND(OR(Calculations!$E$2=\"Orkney Health Board\",Calculations!$E$2=\"Orkney Islands Local Authority\"),$F125=1),0,IF(AND(OR(Calculations!$E$2=\"Shetland Health Board\",Calculations!$E$2=\"Western Isles Health Board\",Calculations!$E$2=\"Shetland Islands Local Authority\",Calculations!$E$2=\"Eilean Siar Local Authority\"),OR($F125=1,$F125=5)),0,new_yllv2(VALUE(LEFT(Options!$B$14,2)),$C125,$D125,$E125,$F125,2016,$I125/10,1,$H125/10,$G125*$H125/10,RateRatios_airpollution!$E125)*10))","v":3859.0505942760001},{"$f":"IF(AND(OR(Calculations!$E$2=\"Orkney Health Board\",Calculations!$E$2=\"Orkney Islands Local Authority\"),$F125=1),0,IF(AND(OR(Calculations!$E$2=\"Shetland Health Board\",Calculations!$E$2=\"Western Isles Health Board\",Calculations!$E$2=\"Shetland Islands Local Authority\",Calculations!$E$2=\"Eilean Siar Local Authority\"),OR($F125=1,$F125=5)),0,new_yllv2(VALUE(LEFT(Options!$B$14,2)),$C125,$D125,$E125,$F125,2016,$I125/10+$J125/10,1,$H125/10,$G125*$H125/10,RateRatios_airpollution!$E125)*10))","v":3859.0257421050001},{"$f":"IF(AND(OR(Calculations!$E$2=\"Orkney Health Board\",Calculations!$E$2=\"Orkney Islands Local Authority\"),$F125=1),0,IF(AND(OR(Calculations!$E$2=\"Shetland Health Board\",Calculations!$E$2=\"Western Isles Health Board\",Calculations!$E$2=\"Shetland Islands Local Authority\",Calculations!$E$2=\"Eilean Siar Local Authority\"),OR($F125=1,$F125=5)),0,hosp_count(VALUE(LEFT(Options!$B$14,2)),$C125,$E125,$F125,2016,$I125/10,1,$H125/10,$G125*$H125/10, RateRatios_airpollution!$F125, RateRatios_airpollution!$E125)*10))","v":5994.6765736839998},{"$f":"IF(AND(OR(Calculations!$E$2=\"Orkney Health Board\",Calculations!$E$2=\"Orkney Islands Local Authority\"),$F125=1),0,IF(AND(OR(Calculations!$E$2=\"Shetland Health Board\",Calculations!$E$2=\"Western Isles Health Board\",Calculations!$E$2=\"Shetland Islands Local Authority\",Calculations!$E$2=\"Eilean Siar Local Authority\"),OR($F125=1,$F125=5)),0,hosp_count(VALUE(LEFT(Options!$B$14,2)),$C125,$E125,$F125,2016,$I125/10+$J125/10,1,$H125/10,$G125*$H125/10, RateRatios_airpollution!$F125, RateRatios_airpollution!$E125)*10))","v":5994.6765736839998},{"$f":"IF(AND(OR(Calculations!$E$2=\"Orkney Health Board\",Calculations!$E$2=\"Orkney Islands Local Authority\"),$F125=1),0,IF(AND(OR(Calculations!$E$2=\"Shetland Health Board\",Calculations!$E$2=\"Western Isles Health Board\",Calculations!$E$2=\"Shetland Islands Local Authority\",Calculations!$E$2=\"Eilean Siar Local Authority\"),OR($F125=1,$F125=5)),0,prem_mort(VALUE(LEFT(Options!$B$14,2)),$C125,$E125,$F125,2016,$I125/10,1,$H125/10,$G125*$H125/10,RateRatios_airpollution!$E125)*10))","v":107.67441175499999},{"$f":"IF(AND(OR(Calculations!$E$2=\"Orkney Health Board\",Calculations!$E$2=\"Orkney Islands Local Authority\"),$F125=1),0,IF(AND(OR(Calculations!$E$2=\"Shetland Health Board\",Calculations!$E$2=\"Western Isles Health Board\",Calculations!$E$2=\"Shetland Islands Local Authority\",Calculations!$E$2=\"Eilean Siar Local Authority\"),OR($F125=1,$F125=5)),0,prem_mort(VALUE(LEFT(Options!$B$14,2)),$C125,$E125,$F125,2016,$I125/10+$J125/10,1,$H125/10,$G125*$H125/10,RateRatios_airpollution!$E125)*10))","v":107.673718335},{"$f":"K125","v":107.67441175499999},107.64557736900001,{"$f":"M125","v":3859.0505942760001},3858.017169967,{"$f":"O125","v":5994.6765736839998},5993.0317398389998,{"$f":"Q125","v":107.67441175499999},107.64557736900001,336.33539000124944,336.24532194977201,12054.259368638721,12051.031329940026,18725.172029999376,18720.034172046602,336.33539000124944,336.24532194977201,{"$f":"AS125*$BI125","v":2354347.730008746},{"$f":"AT125*$BI125","v":2353717.253648404},84379815.580471039,84357219.309580177,131076204.20999563,131040239.20432621,2354347.730008746,2353717.253648404,7000]
[null,"Male 45-49",47.038155000000003,79.418149999999997,"male",2,1,{"$f":"HLOOKUP(Calculations!$E$2,'Population 2016'!$C$3:$BC$249,'Population 2016'!BD126,FALSE)","v":36688},0,{"$f":"HLOOKUP(Calculations!$E$2,Pop2016_in_settlements!$C$3:$BC$249,Pop2016_in_settlements!$BD126,FALSE)","v":22717},{"$f":"IF(AND(OR(Calculations!$E$2=\"Orkney Health Board\",Calculations!$E$2=\"Orkney Islands Local Authority\"),$F126=1),0,IF(AND(OR(Calculations!$E$2=\"Shetland Health Board\",Calculations!$E$2=\"Western Isles Health Board\",Calculations!$E$2=\"Shetland Islands Local Authority\",Calculations!$E$2=\"Eilean Siar Local Authority\"),OR($F126=1,$F126=5)),0,new_ci(VALUE(LEFT(Options!$B$14,2)),$C126,$E126,$F126,2016,$I126/10,1,$H126/10,$G126*$H126/10,RateRatios_accidents!$B$5)*10))","v":179.44694045},{"$f":"IF(AND(OR(Calculations!$E$2=\"Orkney Health Board\",Calculations!$E$2=\"Orkney Islands Local Authority\"),$F126=1),0,IF(AND(OR(Calculations!$E$2=\"Shetland Health Board\",Calculations!$E$2=\"Western Isles Health Board\",Calculations!$E$2=\"Shetland Islands Local Authority\",Calculations!$E$2=\"Eilean Siar Local Authority\"),OR($F126=1,$F126=5)),0,new_ci(VALUE(LEFT(Options!$B$14,2)),$C126,$E126,$F126,2016,$I126/10+$J126/10,1,$H126/10,$G126*$H126/10,RateRatios_accidents!$B$5)*10))","v":179.40260595200002},{"$f":"IF(AND(OR(Calculations!$E$2=\"Orkney Health Board\",Calculations!$E$2=\"Orkney Islands Local Authority\"),$F126=1),0,IF(AND(OR(Calculations!$E$2=\"Shetland Health Board\",Calculations!$E$2=\"Western Isles Health Board\",Calculations!$E$2=\"Shetland Islands Local Authority\",Calculations!$E$2=\"Eilean Siar Local Authority\"),OR($F126=1,$F126=5)),0,new_yllv2(VALUE(LEFT(Options!$B$14,2)),$C126,$D126,$E126,$F126,2016,$I126/10,1,$H126/10,$G126*$H126/10,RateRatios_accidents!$B$5)*10))","v":5631.0440940859999},{"$f":"IF(AND(OR(Calculations!$E$2=\"Orkney Health Board\",Calculations!$E$2=\"Orkney Islands Local Authority\"),$F126=1),0,IF(AND(OR(Calculations!$E$2=\"Shetland Health Board\",Calculations!$E$2=\"Western Isles Health Board\",Calculations!$E$2=\"Shetland Islands Local Authority\",Calculations!$E$2=\"Eilean Siar Local Authority\"),OR($F126=1,$F126=5)),0,new_yllv2(VALUE(LEFT(Options!$B$14,2)),$C126,$D126,$E126,$F126,2016,$I126/10+$J126/10,1,$H126/10,$G126*$H126/10,RateRatios_accidents!$B$5)*10))","v":5629.6528777610001},{"$f":"IF(AND(OR(Calculations!$E$2=\"Orkney Health Board\",Calculations!$E$2=\"Orkney Islands Local Authority\"),$F126=1),0,IF(AND(OR(Calculations!$E$2=\"Shetland Health Board\",Calculations!$E$2=\"Western Isles Health Board\",Calculations!$E$2=\"Shetland Islands Local Authority\",Calculations!$E$2=\"Eilean Siar Local Authority\"),OR($F126=1,$F126=5)),0,hosp_count(VALUE(LEFT(Options!$B$14,2)),$C126,$E126,$F126,2016,$I126/10,1,$H126/10,$G126*$H126/10, RateRatios_accidents!$B$4, RateRatios_accidents!$B$5)*10))","v":8195.4193310029987},{"$f":"IF(AND(OR(Calculations!$E$2=\"Orkney Health Board\",Calculations!$E$2=\"Orkney Islands Local Authority\"),$F126=1),0,IF(AND(OR(Calculations!$E$2=\"Shetland Health Board\",Calculations!$E$2=\"Western Isles Health Board\",Calculations!$E$2=\"Shetland Islands Local Authority\",Calculations!$E$2=\"Eilean Siar Local Authority\"),OR($F126=1,$F126=5)),0,hosp_count(VALUE(LEFT(Options!$B$14,2)),$C126,$E126,$F126,2016,$I126/10+$J126/10,1,$H126/10,$G126*$H126/10, RateRatios_accidents!$B$4, RateRatios_accidents!$B$5)*10))","v":8193.389507988999},{"$f":"IF(AND(OR(Calculations!$E$2=\"Orkney Health Board\",Calculations!$E$2=\"Orkney Islands Local Authority\"),$F126=1),0,IF(AND(OR(Calculations!$E$2=\"Shetland Health Board\",Calculations!$E$2=\"Western Isles Health Board\",Calculations!$E$2=\"Shetland Islands Local Authority\",Calculations!$E$2=\"Eilean Siar Local Authority\"),OR($F126=1,$F126=5)),0,prem_mort(VALUE(LEFT(Options!$B$14,2)),$C126,$E126,$F126,2016,$I126/10,1,$H126/10,$G126*$H126/10,RateRatios_accidents!$B$5)*10))","v":179.44694045},{"$f":"IF(AND(OR(Calculations!$E$2=\"Orkney Health Board\",Calculations!$E$2=\"Orkney Islands Local Authority\"),$F126=1),0,IF(AND(OR(Calculations!$E$2=\"Shetland Health Board\",Calculations!$E$2=\"Western Isles Health Board\",Calculations!$E$2=\"Shetland Islands Local Authority\",Calculations!$E$2=\"Eilean Siar Local Authority\"),OR($F126=1,$F126=5)),0,prem_mort(VALUE(LEFT(Options!$B$14,2)),$C126,$E126,$F126,2016,$I126/10+$J126/10,1,$H126/10,$G126*$H126/10,RateRatios_accidents!$B$5)*10))","v":179.40260595200002},null,{"$f":"IF(AND(OR(Calculations!$E$2=\"Orkney Health Board\",Calculations!$E$2=\"Orkney Islands Local Authority\"),$F126=1),0,IF(AND(OR(Calculations!$E$2=\"Shetland Health Board\",Calculations!$E$2=\"Western Isles Health Board\",Calculations!$E$2=\"Shetland Islands Local Authority\",Calculations!$E$2=\"Eilean Siar Local Authority\"),OR($F126=1,$F126=5)),0,new_ci(VALUE(LEFT(Options!$B$14,2)),$C126,$E126,$F126,2016,$I126/10,1,$H126/10,$G126*$H126/10,RateRatios_airpollution!$C126)*10))","v":179.44694045},{"$f":"IF(AND(OR(Calculations!$E$2=\"Orkney Health Board\",Calculations!$E$2=\"Orkney Islands Local Authority\"),$F126=1),0,IF(AND(OR(Calculations!$E$2=\"Shetland Health Board\",Calculations!$E$2=\"Western Isles Health Board\",Calculations!$E$2=\"Shetland Islands Local Authority\",Calculations!$E$2=\"Eilean Siar Local Authority\"),OR($F126=1,$F126=5)),0,new_ci(VALUE(LEFT(Options!$B$14,2)),$C126,$E126,$F126,2016,$I126/10+$J126/10,1,$H126/10,$G126*$H126/10,RateRatios_airpollution!$C126)*10))","v":179.44449382900001},{"$f":"IF(AND(OR(Calculations!$E$2=\"Orkney Health Board\",Calculations!$E$2=\"Orkney Islands Local Authority\"),$F126=1),0,IF(AND(OR(Calculations!$E$2=\"Shetland Health Board\",Calculations!$E$2=\"Western Isles Health Board\",Calculations!$E$2=\"Shetland Islands Local Authority\",Calculations!$E$2=\"Eilean Siar Local Authority\"),OR($F126=1,$F126=5)),0,new_yllv2(VALUE(LEFT(Options!$B$14,2)),$C126,$D126,$E126,$F126,2016,$I126/10,1,$H126/10,$G126*$H126/10,RateRatios_airpollution!$C126)*10))","v":5631.0440940859999},{"$f":"IF(AND(OR(Calculations!$E$2=\"Orkney Health Board\",Calculations!$E$2=\"Orkney Islands Local Authority\"),$F126=1),0,IF(AND(OR(Calculations!$E$2=\"Shetland Health Board\",Calculations!$E$2=\"Western Isles Health Board\",Calculations!$E$2=\"Shetland Islands Local Authority\",Calculations!$E$2=\"Eilean Siar Local Authority\"),OR($F126=1,$F126=5)),0,new_yllv2(VALUE(LEFT(Options!$B$14,2)),$C126,$D126,$E126,$F126,2016,$I126/10+$J126/10,1,$H126/10,$G126*$H126/10,RateRatios_airpollution!$C126)*10))","v":5630.9673191319998},{"$f":"IF(AND(OR(Calculations!$E$2=\"Orkney Health Board\",Calculations!$E$2=\"Orkney Islands Local Authority\"),$F126=1),0,IF(AND(OR(Calculations!$E$2=\"Shetland Health Board\",Calculations!$E$2=\"Western Isles Health Board\",Calculations!$E$2=\"Shetland Islands Local Authority\",Calculations!$E$2=\"Eilean Siar Local Authority\"),OR($F126=1,$F126=5)),0,hosp_count(VALUE(LEFT(Options!$B$14,2)),$C126,$E126,$F126,2016,$I126/10,1,$H126/10,$G126*$H126/10, RateRatios_airpollution!$D126, RateRatios_airpollution!$C126)*10))","v":8195.4193310029987},{"$f":"IF(AND(OR(Calculations!$E$2=\"Orkney Health Board\",Calculations!$E$2=\"Orkney Islands Local Authority\"),$F126=1),0,IF(AND(OR(Calculations!$E$2=\"Shetland Health Board\",Calculations!$E$2=\"Western Isles Health Board\",Calculations!$E$2=\"Shetland Islands Local Authority\",Calculations!$E$2=\"Eilean Siar Local Authority\"),OR($F126=1,$F126=5)),0,hosp_count(VALUE(LEFT(Options!$B$14,2)),$C126,$E126,$F126,2016,$I126/10+$J126/10,1,$H126/10,$G126*$H126/10, RateRatios_airpollution!$D126, RateRatios_airpollution!$C126)*10))","v":8195.2082900730002},{"$f":"IF(AND(OR(Calculations!$E$2=\"Orkney Health Board\",Calculations!$E$2=\"Orkney Islands Local Authority\"),$F126=1),0,IF(AND(OR(Calculations!$E$2=\"Shetland Health Board\",Calculations!$E$2=\"Western Isles Health Board\",Calculations!$E$2=\"Shetland Islands Local Authority\",Calculations!$E$2=\"Eilean Siar Local Authority\"),OR($F126=1,$F126=5)),0,prem_mort(VALUE(LEFT(Options!$B$14,2)),$C126,$E126,$F126,2016,$I126/10,1,$H126/10,$G126*$H126/10,RateRatios_airpollution!$C126)*10))","v":179.44694045},{"$f":"IF(AND(OR(Calculations!$E$2=\"Orkney Health Board\",Calculations!$E$2=\"Orkney Islands Local Authority\"),$F126=1),0,IF(AND(OR(Calculations!$E$2=\"Shetland Health Board\",Calculations!$E$2=\"Western Isles Health Board\",Calculations!$E$2=\"Shetland Islands Local Authority\",Calculations!$E$2=\"Eilean Siar Local Authority\"),OR($F126=1,$F126=5)),0,prem_mort(VALUE(LEFT(Options!$B$14,2)),$C126,$E126,$F126,2016,$I126/10+$J126/10,1,$H126/10,$G126*$H126/10,RateRatios_airpollution!$C126)*10))","v":179.44449382900001},null,{"$f":"IF(AND(OR(Calculations!$E$2=\"Orkney Health Board\",Calculations!$E$2=\"Orkney Islands Local Authority\"),$F126=1),0,IF(AND(OR(Calculations!$E$2=\"Shetland Health Board\",Calculations!$E$2=\"Western Isles Health Board\",Calculations!$E$2=\"Shetland Islands Local Authority\",Calculations!$E$2=\"Eilean Siar Local Authority\"),OR($F126=1,$F126=5)),0,new_ci(VALUE(LEFT(Options!$B$14,2)),$C126,$E126,$F126,2016,$I126/10,1,$H126/10,$G126*$H126/10,RateRatios_airpollution!$E126)*10))","v":179.44694045},{"$f":"IF(AND(OR(Calculations!$E$2=\"Orkney Health Board\",Calculations!$E$2=\"Orkney Islands Local Authority\"),$F126=1),0,IF(AND(OR(Calculations!$E$2=\"Shetland Health Board\",Calculations!$E$2=\"Western Isles Health Board\",Calculations!$E$2=\"Shetland Islands Local Authority\",Calculations!$E$2=\"Eilean Siar Local Authority\"),OR($F126=1,$F126=5)),0,new_ci(VALUE(LEFT(Options!$B$14,2)),$C126,$E126,$F126,2016,$I126/10+$J126/10,1,$H126/10,$G126*$H126/10,RateRatios_airpollution!$E126)*10))","v":179.44582958800001},{"$f":"IF(AND(OR(Calculations!$E$2=\"Orkney Health Board\",Calculations!$E$2=\"Orkney Islands Local Authority\"),$F126=1),0,IF(AND(OR(Calculations!$E$2=\"Shetland Health Board\",Calculations!$E$2=\"Western Isles Health Board\",Calculations!$E$2=\"Shetland Islands Local Authority\",Calculations!$E$2=\"Eilean Siar Local Authority\"),OR($F126=1,$F126=5)),0,new_yllv2(VALUE(LEFT(Options!$B$14,2)),$C126,$D126,$E126,$F126,2016,$I126/10,1,$H126/10,$G126*$H126/10,RateRatios_airpollution!$E126)*10))","v":5631.0440940859999},{"$f":"IF(AND(OR(Calculations!$E$2=\"Orkney Health Board\",Calculations!$E$2=\"Orkney Islands Local Authority\"),$F126=1),0,IF(AND(OR(Calculations!$E$2=\"Shetland Health Board\",Calculations!$E$2=\"Western Isles Health Board\",Calculations!$E$2=\"Shetland Islands Local Authority\",Calculations!$E$2=\"Eilean Siar Local Authority\"),OR($F126=1,$F126=5)),0,new_yllv2(VALUE(LEFT(Options!$B$14,2)),$C126,$D126,$E126,$F126,2016,$I126/10+$J126/10,1,$H126/10,$G126*$H126/10,RateRatios_airpollution!$E126)*10))","v":5631.0092352419997},{"$f":"IF(AND(OR(Calculations!$E$2=\"Orkney Health Board\",Calculations!$E$2=\"Orkney Islands Local Authority\"),$F126=1),0,IF(AND(OR(Calculations!$E$2=\"Shetland Health Board\",Calculations!$E$2=\"Western Isles Health Board\",Calculations!$E$2=\"Shetland Islands Local Authority\",Calculations!$E$2=\"Eilean Siar Local Authority\"),OR($F126=1,$F126=5)),0,hosp_count(VALUE(LEFT(Options!$B$14,2)),$C126,$E126,$F126,2016,$I126/10,1,$H126/10,$G126*$H126/10, RateRatios_airpollution!$F126, RateRatios_airpollution!$E126)*10))","v":8195.4193310029987},{"$f":"IF(AND(OR(Calculations!$E$2=\"Orkney Health Board\",Calculations!$E$2=\"Orkney Islands Local Authority\"),$F126=1),0,IF(AND(OR(Calculations!$E$2=\"Shetland Health Board\",Calculations!$E$2=\"Western Isles Health Board\",Calculations!$E$2=\"Shetland Islands Local Authority\",Calculations!$E$2=\"Eilean Siar Local Authority\"),OR($F126=1,$F126=5)),0,hosp_count(VALUE(LEFT(Options!$B$14,2)),$C126,$E126,$F126,2016,$I126/10+$J126/10,1,$H126/10,$G126*$H126/10, RateRatios_airpollution!$F126, RateRatios_airpollution!$E126)*10))","v":8195.4193310029987},{"$f":"IF(AND(OR(Calculations!$E$2=\"Orkney Health Board\",Calculations!$E$2=\"Orkney Islands Local Authority\"),$F126=1),0,IF(AND(OR(Calculations!$E$2=\"Shetland Health Board\",Calculations!$E$2=\"Western Isles Health Board\",Calculations!$E$2=\"Shetland Islands Local Authority\",Calculations!$E$2=\"Eilean Siar Local Authority\"),OR($F126=1,$F126=5)),0,prem_mort(VALUE(LEFT(Options!$B$14,2)),$C126,$E126,$F126,2016,$I126/10,1,$H126/10,$G126*$H126/10,RateRatios_airpollution!$E126)*10))","v":179.44694045},{"$f":"IF(AND(OR(Calculations!$E$2=\"Orkney Health Board\",Calculations!$E$2=\"Orkney Islands Local Authority\"),$F126=1),0,IF(AND(OR(Calculations!$E$2=\"Shetland Health Board\",Calculations!$E$2=\"Western Isles Health Board\",Calculations!$E$2=\"Shetland Islands Local Authority\",Calculations!$E$2=\"Eilean Siar Local Authority\"),OR($F126=1,$F126=5)),0,prem_mort(VALUE(LEFT(Options!$B$14,2)),$C126,$E126,$F126,2016,$I126/10+$J126/10,1,$H126/10,$G126*$H126/10,RateRatios_airpollution!$E126)*10))","v":179.44582958800001},179.44694045,179.39904846900004,5631.0440940859999,5629.5412439629999,8195.4193310029987,8193.1784670590005,179.44694045,179.39904846900004,489.11617000109032,488.98563145715235,15348.462969052551,15344.366670200065,22338.146889999451,22332.038996562911,489.11617000109032,488.98563145715235,3423813.1900076321,3422899.4202000666,107439240.78336786,107410566.69140045,156367028.22999614,156324272.97594038,3423813.1900076321,3422899.4202000666,7000]
[null,"Male 50-54",51.998646000000001,79.988649999999993,"male",2,1,{"$f":"HLOOKUP(Calculations!$E$2,'Population 2016'!$C$3:$BC$249,'Population 2016'!BD127,FALSE)","v":37819},0,{"$f":"HLOOKUP(Calculations!$E$2,Pop2016_in_settlements!$C$3:$BC$249,Pop2016_in_settlements!$BD127,FALSE)","v":23481},{"$f":"IF(AND(OR(Calculations!$E$2=\"Orkney Health Board\",Calculations!$E$2=\"Orkney Islands Local Authority\"),$F127=1),0,IF(AND(OR(Calculations!$E$2=\"Shetland Health Board\",Calculations!$E$2=\"Western Isles Health Board\",Calculations!$E$2=\"Shetland Islands Local Authority\",Calculations!$E$2=\"Eilean Siar Local Authority\"),OR($F127=1,$F127=5)),0,new_ci(VALUE(LEFT(Options!$B$14,2)),$C127,$E127,$F127,2016,$I127/10,1,$H127/10,$G127*$H127/10,RateRatios_accidents!$B$5)*10))","v":268.71050743199999},{"$f":"IF(AND(OR(Calculations!$E$2=\"Orkney Health Board\",Calculations!$E$2=\"Orkney Islands Local Authority\"),$F127=1),0,IF(AND(OR(Calculations!$E$2=\"Shetland Health Board\",Calculations!$E$2=\"Western Isles Health Board\",Calculations!$E$2=\"Shetland Islands Local Authority\",Calculations!$E$2=\"Eilean Siar Local Authority\"),OR($F127=1,$F127=5)),0,new_ci(VALUE(LEFT(Options!$B$14,2)),$C127,$E127,$F127,2016,$I127/10+$J127/10,1,$H127/10,$G127*$H127/10,RateRatios_accidents!$B$5)*10))","v":268.64400924},{"$f":"IF(AND(OR(Calculations!$E$2=\"Orkney Health Board\",Calculations!$E$2=\"Orkney Islands Local Authority\"),$F127=1),0,IF(AND(OR(Calculations!$E$2=\"Shetland Health Board\",Calculations!$E$2=\"Western Isles Health Board\",Calculations!$E$2=\"Shetland Islands Local Authority\",Calculations!$E$2=\"Eilean Siar Local Authority\"),OR($F127=1,$F127=5)),0,new_yllv2(VALUE(LEFT(Options!$B$14,2)),$C127,$D127,$E127,$F127,2016,$I127/10,1,$H127/10,$G127*$H127/10,RateRatios_accidents!$B$5)*10))","v":7252.4976704319997},{"$f":"IF(AND(OR(Calculations!$E$2=\"Orkney Health Board\",Calculations!$E$2=\"Orkney Islands Local Authority\"),$F127=1),0,IF(AND(OR(Calculations!$E$2=\"Shetland Health Board\",Calculations!$E$2=\"Western Isles Health Board\",Calculations!$E$2=\"Shetland Islands Local Authority\",Calculations!$E$2=\"Eilean Siar Local Authority\"),OR($F127=1,$F127=5)),0,new_yllv2(VALUE(LEFT(Options!$B$14,2)),$C127,$D127,$E127,$F127,2016,$I127/10+$J127/10,1,$H127/10,$G127*$H127/10,RateRatios_accidents!$B$5)*10))","v":7250.7028839639997},{"$f":"IF(AND(OR(Calculations!$E$2=\"Orkney Health Board\",Calculations!$E$2=\"Orkney Islands Local Authority\"),$F127=1),0,IF(AND(OR(Calculations!$E$2=\"Shetland Health Board\",Calculations!$E$2=\"Western Isles Health Board\",Calculations!$E$2=\"Shetland Islands Local Authority\",Calculations!$E$2=\"Eilean Siar Local Authority\"),OR($F127=1,$F127=5)),0,hosp_count(VALUE(LEFT(Options!$B$14,2)),$C127,$E127,$F127,2016,$I127/10,1,$H127/10,$G127*$H127/10, RateRatios_accidents!$B$4, RateRatios_accidents!$B$5)*10))","v":10074.533773875},{"$f":"IF(AND(OR(Calculations!$E$2=\"Orkney Health Board\",Calculations!$E$2=\"Orkney Islands Local Authority\"),$F127=1),0,IF(AND(OR(Calculations!$E$2=\"Shetland Health Board\",Calculations!$E$2=\"Western Isles Health Board\",Calculations!$E$2=\"Shetland Islands Local Authority\",Calculations!$E$2=\"Eilean Siar Local Authority\"),OR($F127=1,$F127=5)),0,hosp_count(VALUE(LEFT(Options!$B$14,2)),$C127,$E127,$F127,2016,$I127/10+$J127/10,1,$H127/10,$G127*$H127/10, RateRatios_accidents!$B$4, RateRatios_accidents!$B$5)*10))","v":10072.031748875999},{"$f":"IF(AND(OR(Calculations!$E$2=\"Orkney Health Board\",Calculations!$E$2=\"Orkney Islands Local Authority\"),$F127=1),0,IF(AND(OR(Calculations!$E$2=\"Shetland Health Board\",Calculations!$E$2=\"Western Isles Health Board\",Calculations!$E$2=\"Shetland Islands Local Authority\",Calculations!$E$2=\"Eilean Siar Local Authority\"),OR($F127=1,$F127=5)),0,prem_mort(VALUE(LEFT(Options!$B$14,2)),$C127,$E127,$F127,2016,$I127/10,1,$H127/10,$G127*$H127/10,RateRatios_accidents!$B$5)*10))","v":268.71050743199999},{"$f":"IF(AND(OR(Calculations!$E$2=\"Orkney Health Board\",Calculations!$E$2=\"Orkney Islands Local Authority\"),$F127=1),0,IF(AND(OR(Calculations!$E$2=\"Shetland Health Board\",Calculations!$E$2=\"Western Isles Health Board\",Calculations!$E$2=\"Shetland Islands Local Authority\",Calculations!$E$2=\"Eilean Siar Local Authority\"),OR($F127=1,$F127=5)),0,prem_mort(VALUE(LEFT(Options!$B$14,2)),$C127,$E127,$F127,2016,$I127/10+$J127/10,1,$H127/10,$G127*$H127/10,RateRatios_accidents!$B$5)*10))","v":268.64400924},null,{"$f":"IF(AND(OR(Calculations!$E$2=\"Orkney Health Board\",Calculations!$E$2=\"Orkney Islands Local Authority\"),$F127=1),0,IF(AND(OR(Calculations!$E$2=\"Shetland Health Board\",Calculations!$E$2=\"Western Isles Health Board\",Calculations!$E$2=\"Shetland Islands Local Authority\",Calculations!$E$2=\"Eilean Siar Local Authority\"),OR($F127=1,$F127=5)),0,new_ci(VALUE(LEFT(Options!$B$14,2)),$C127,$E127,$F127,2016,$I127/10,1,$H127/10,$G127*$H127/10,RateRatios_airpollution!$C127)*10))","v":268.71050743199999},{"$f":"IF(AND(OR(Calculations!$E$2=\"Orkney Health Board\",Calculations!$E$2=\"Orkney Islands Local Authority\"),$F127=1),0,IF(AND(OR(Calculations!$E$2=\"Shetland Health Board\",Calculations!$E$2=\"Western Isles Health Board\",Calculations!$E$2=\"Shetland Islands Local Authority\",Calculations!$E$2=\"Eilean Siar Local Authority\"),OR($F127=1,$F127=5)),0,new_ci(VALUE(LEFT(Options!$B$14,2)),$C127,$E127,$F127,2016,$I127/10+$J127/10,1,$H127/10,$G127*$H127/10,RateRatios_airpollution!$C127)*10))","v":268.70692657900003},{"$f":"IF(AND(OR(Calculations!$E$2=\"Orkney Health Board\",Calculations!$E$2=\"Orkney Islands Local Authority\"),$F127=1),0,IF(AND(OR(Calculations!$E$2=\"Shetland Health Board\",Calculations!$E$2=\"Western Isles Health Board\",Calculations!$E$2=\"Shetland Islands Local Authority\",Calculations!$E$2=\"Eilean Siar Local Authority\"),OR($F127=1,$F127=5)),0,new_yllv2(VALUE(LEFT(Options!$B$14,2)),$C127,$D127,$E127,$F127,2016,$I127/10,1,$H127/10,$G127*$H127/10,RateRatios_airpollution!$C127)*10))","v":7252.4976704319997},{"$f":"IF(AND(OR(Calculations!$E$2=\"Orkney Health Board\",Calculations!$E$2=\"Orkney Islands Local Authority\"),$F127=1),0,IF(AND(OR(Calculations!$E$2=\"Shetland Health Board\",Calculations!$E$2=\"Western Isles Health Board\",Calculations!$E$2=\"Shetland Islands Local Authority\",Calculations!$E$2=\"Eilean Siar Local Authority\"),OR($F127=1,$F127=5)),0,new_yllv2(VALUE(LEFT(Options!$B$14,2)),$C127,$D127,$E127,$F127,2016,$I127/10+$J127/10,1,$H127/10,$G127*$H127/10,RateRatios_airpollution!$C127)*10))","v":7252.4010231949997},{"$f":"IF(AND(OR(Calculations!$E$2=\"Orkney Health Board\",Calculations!$E$2=\"Orkney Islands Local Authority\"),$F127=1),0,IF(AND(OR(Calculations!$E$2=\"Shetland Health Board\",Calculations!$E$2=\"Western Isles Health Board\",Calculations!$E$2=\"Shetland Islands Local Authority\",Calculations!$E$2=\"Eilean Siar Local Authority\"),OR($F127=1,$F127=5)),0,hosp_count(VALUE(LEFT(Options!$B$14,2)),$C127,$E127,$F127,2016,$I127/10,1,$H127/10,$G127*$H127/10, RateRatios_airpollution!$D127, RateRatios_airpollution!$C127)*10))","v":10074.533773875},{"$f":"IF(AND(OR(Calculations!$E$2=\"Orkney Health Board\",Calculations!$E$2=\"Orkney Islands Local Authority\"),$F127=1),0,IF(AND(OR(Calculations!$E$2=\"Shetland Health Board\",Calculations!$E$2=\"Western Isles Health Board\",Calculations!$E$2=\"Shetland Islands Local Authority\",Calculations!$E$2=\"Eilean Siar Local Authority\"),OR($F127=1,$F127=5)),0,hosp_count(VALUE(LEFT(Options!$B$14,2)),$C127,$E127,$F127,2016,$I127/10+$J127/10,1,$H127/10,$G127*$H127/10, RateRatios_airpollution!$D127, RateRatios_airpollution!$C127)*10))","v":10074.280118025001},{"$f":"IF(AND(OR(Calculations!$E$2=\"Orkney Health Board\",Calculations!$E$2=\"Orkney Islands Local Authority\"),$F127=1),0,IF(AND(OR(Calculations!$E$2=\"Shetland Health Board\",Calculations!$E$2=\"Western Isles Health Board\",Calculations!$E$2=\"Shetland Islands Local Authority\",Calculations!$E$2=\"Eilean Siar Local Authority\"),OR($F127=1,$F127=5)),0,prem_mort(VALUE(LEFT(Options!$B$14,2)),$C127,$E127,$F127,2016,$I127/10,1,$H127/10,$G127*$H127/10,RateRatios_airpollution!$C127)*10))","v":268.71050743199999},{"$f":"IF(AND(OR(Calculations!$E$2=\"Orkney Health Board\",Calculations!$E$2=\"Orkney Islands Local Authority\"),$F127=1),0,IF(AND(OR(Calculations!$E$2=\"Shetland Health Board\",Calculations!$E$2=\"Western Isles Health Board\",Calculations!$E$2=\"Shetland Islands Local Authority\",Calculations!$E$2=\"Eilean Siar Local Authority\"),OR($F127=1,$F127=5)),0,prem_mort(VALUE(LEFT(Options!$B$14,2)),$C127,$E127,$F127,2016,$I127/10+$J127/10,1,$H127/10,$G127*$H127/10,RateRatios_airpollution!$C127)*10))","v":268.70692657900003},null,{"$f":"IF(AND(OR(Calculations!$E$2=\"Orkney Health Board\",Calculations!$E$2=\"Orkney Islands Local Authority\"),$F127=1),0,IF(AND(OR(Calculations!$E$2=\"Shetland Health Board\",Calculations!$E$2=\"Western Isles Health Board\",Calculations!$E$2=\"Shetland Islands Local Authority\",Calculations!$E$2=\"Eilean Siar Local Authority\"),OR($F127=1,$F127=5)),0,new_ci(VALUE(LEFT(Options!$B$14,2)),$C127,$E127,$F127,2016,$I127/10,1,$H127/10,$G127*$H127/10,RateRatios_airpollution!$E127)*10))","v":268.71050743199999},{"$f":"IF(AND(OR(Calculations!$E$2=\"Orkney Health Board\",Calculations!$E$2=\"Orkney Islands Local Authority\"),$F127=1),0,IF(AND(OR(Calculations!$E$2=\"Shetland Health Board\",Calculations!$E$2=\"Western Isles Health Board\",Calculations!$E$2=\"Shetland Islands Local Authority\",Calculations!$E$2=\"Eilean Siar Local Authority\"),OR($F127=1,$F127=5)),0,new_ci(VALUE(LEFT(Options!$B$14,2)),$C127,$E127,$F127,2016,$I127/10+$J127/10,1,$H127/10,$G127*$H127/10,RateRatios_airpollution!$E127)*10))","v":268.70887550200001},{"$f":"IF(AND(OR(Calculations!$E$2=\"Orkney Health Board\",Calculations!$E$2=\"Orkney Islands Local Authority\"),$F127=1),0,IF(AND(OR(Calculations!$E$2=\"Shetland Health Board\",Calculations!$E$2=\"Western Isles Health Board\",Calculations!$E$2=\"Shetland Islands Local Authority\",Calculations!$E$2=\"Eilean Siar Local Authority\"),OR($F127=1,$F127=5)),0,new_yllv2(VALUE(LEFT(Options!$B$14,2)),$C127,$D127,$E127,$F127,2016,$I127/10,1,$H127/10,$G127*$H127/10,RateRatios_airpollution!$E127)*10))","v":7252.4976704319997},{"$f":"IF(AND(OR(Calculations!$E$2=\"Orkney Health Board\",Calculations!$E$2=\"Orkney Islands Local Authority\"),$F127=1),0,IF(AND(OR(Calculations!$E$2=\"Shetland Health Board\",Calculations!$E$2=\"Western Isles Health Board\",Calculations!$E$2=\"Shetland Islands Local Authority\",Calculations!$E$2=\"Eilean Siar Local Authority\"),OR($F127=1,$F127=5)),0,new_yllv2(VALUE(LEFT(Options!$B$14,2)),$C127,$D127,$E127,$F127,2016,$I127/10+$J127/10,1,$H127/10,$G127*$H127/10,RateRatios_airpollution!$E127)*10))","v":7252.4536246340003},{"$f":"IF(AND(OR(Calculations!$E$2=\"Orkney Health Board\",Calculations!$E$2=\"Orkney Islands Local Authority\"),$F127=1),0,IF(AND(OR(Calculations!$E$2=\"Shetland Health Board\",Calculations!$E$2=\"Western Isles Health Board\",Calculations!$E$2=\"Shetland Islands Local Authority\",Calculations!$E$2=\"Eilean Siar Local Authority\"),OR($F127=1,$F127=5)),0,hosp_count(VALUE(LEFT(Options!$B$14,2)),$C127,$E127,$F127,2016,$I127/10,1,$H127/10,$G127*$H127/10, RateRatios_airpollution!$F127, RateRatios_airpollution!$E127)*10))","v":10074.533773875},{"$f":"IF(AND(OR(Calculations!$E$2=\"Orkney Health Board\",Calculations!$E$2=\"Orkney Islands Local Authority\"),$F127=1),0,IF(AND(OR(Calculations!$E$2=\"Shetland Health Board\",Calculations!$E$2=\"Western Isles Health Board\",Calculations!$E$2=\"Shetland Islands Local Authority\",Calculations!$E$2=\"Eilean Siar Local Authority\"),OR($F127=1,$F127=5)),0,hosp_count(VALUE(LEFT(Options!$B$14,2)),$C127,$E127,$F127,2016,$I127/10+$J127/10,1,$H127/10,$G127*$H127/10, RateRatios_airpollution!$F127, RateRatios_airpollution!$E127)*10))","v":10074.533773875},{"$f":"IF(AND(OR(Calculations!$E$2=\"Orkney Health Board\",Calculations!$E$2=\"Orkney Islands Local Authority\"),$F127=1),0,IF(AND(OR(Calculations!$E$2=\"Shetland Health Board\",Calculations!$E$2=\"Western Isles Health Board\",Calculations!$E$2=\"Shetland Islands Local Authority\",Calculations!$E$2=\"Eilean Siar Local Authority\"),OR($F127=1,$F127=5)),0,prem_mort(VALUE(LEFT(Options!$B$14,2)),$C127,$E127,$F127,2016,$I127/10,1,$H127/10,$G127*$H127/10,RateRatios_airpollution!$E127)*10))","v":268.71050743199999},{"$f":"IF(AND(OR(Calculations!$E$2=\"Orkney Health Board\",Calculations!$E$2=\"Orkney Islands Local Authority\"),$F127=1),0,IF(AND(OR(Calculations!$E$2=\"Shetland Health Board\",Calculations!$E$2=\"Western Isles Health Board\",Calculations!$E$2=\"Shetland Islands Local Authority\",Calculations!$E$2=\"Eilean Siar Local Authority\"),OR($F127=1,$F127=5)),0,prem_mort(VALUE(LEFT(Options!$B$14,2)),$C127,$E127,$F127,2016,$I127/10+$J127/10,1,$H127/10,$G127*$H127/10,RateRatios_airpollution!$E127)*10))","v":268.70887550200001},268.71050743199999,268.63879645700007,7252.4976704319997,7250.5621909290003,10074.533773875,10071.778093026,268.71050743199999,268.63879645700007,710.51722000052882,710.3276037362175,19176.86260988392,19171.744866149293,26638.815869999209,26631.529371548691,710.51722000052882,710.3276037362175,4973620.540003702,4972293.2261535227,134238038.26918745,134202214.06304505,186471711.08999446,186420705.60084084,4973620.540003702,4972293.2261535227,7000]
[null,"Male 55-59",56.950867000000002,80.660870000000003,"male",2,1,{"$f":"HLOOKUP(Calculations!$E$2,'Population 2016'!$C$3:$BC$249,'Population 2016'!BD128,FALSE)","v":35036},0,{"$f":"HLOOKUP(Calculations!$E$2,Pop2016_in_settlements!$C$3:$BC$249,Pop2016_in_settlements!$BD128,FALSE)","v":21853},{"$f":"IF(AND(OR(Calculations!$E$2=\"Orkney Health Board\",Calculations!$E$2=\"Orkney Islands Local Authority\"),$F128=1),0,IF(AND(OR(Calculations!$E$2=\"Shetland Health Board\",Calculations!$E$2=\"Western Isles Health Board\",Calculations!$E$2=\"Shetland Islands Local Authority\",Calculations!$E$2=\"Eilean Siar Local Authority\"),OR($F128=1,$F128=5)),0,new_ci(VALUE(LEFT(Options!$B$14,2)),$C128,$E128,$F128,2016,$I128/10,1,$H128/10,$G128*$H128/10,RateRatios_accidents!$B$5)*10))","v":361.21250260399995},{"$f":"IF(AND(OR(Calculations!$E$2=\"Orkney Health Board\",Calculations!$E$2=\"Orkney Islands Local Authority\"),$F128=1),0,IF(AND(OR(Calculations!$E$2=\"Shetland Health Board\",Calculations!$E$2=\"Western Isles Health Board\",Calculations!$E$2=\"Shetland Islands Local Authority\",Calculations!$E$2=\"Eilean Siar Local Authority\"),OR($F128=1,$F128=5)),0,new_ci(VALUE(LEFT(Options!$B$14,2)),$C128,$E128,$F128,2016,$I128/10+$J128/10,1,$H128/10,$G128*$H128/10,RateRatios_accidents!$B$5)*10))","v":361.122848487},{"$f":"IF(AND(OR(Calculations!$E$2=\"Orkney Health Board\",Calculations!$E$2=\"Orkney Islands Local Authority\"),$F128=1),0,IF(AND(OR(Calculations!$E$2=\"Shetland Health Board\",Calculations!$E$2=\"Western Isles Health Board\",Calculations!$E$2=\"Shetland Islands Local Authority\",Calculations!$E$2=\"Eilean Siar Local Authority\"),OR($F128=1,$F128=5)),0,new_yllv2(VALUE(LEFT(Options!$B$14,2)),$C128,$D128,$E128,$F128,2016,$I128/10,1,$H128/10,$G128*$H128/10,RateRatios_accidents!$B$5)*10))","v":8203.1370177739991},{"$f":"IF(AND(OR(Calculations!$E$2=\"Orkney Health Board\",Calculations!$E$2=\"Orkney Islands Local Authority\"),$F128=1),0,IF(AND(OR(Calculations!$E$2=\"Shetland Health Board\",Calculations!$E$2=\"Western Isles Health Board\",Calculations!$E$2=\"Shetland Islands Local Authority\",Calculations!$E$2=\"Eilean Siar Local Authority\"),OR($F128=1,$F128=5)),0,new_yllv2(VALUE(LEFT(Options!$B$14,2)),$C128,$D128,$E128,$F128,2016,$I128/10+$J128/10,1,$H128/10,$G128*$H128/10,RateRatios_accidents!$B$5)*10))","v":8201.1009725080003},{"$f":"IF(AND(OR(Calculations!$E$2=\"Orkney Health Board\",Calculations!$E$2=\"Orkney Islands Local Authority\"),$F128=1),0,IF(AND(OR(Calculations!$E$2=\"Shetland Health Board\",Calculations!$E$2=\"Western Isles Health Board\",Calculations!$E$2=\"Shetland Islands Local Authority\",Calculations!$E$2=\"Eilean Siar Local Authority\"),OR($F128=1,$F128=5)),0,hosp_count(VALUE(LEFT(Options!$B$14,2)),$C128,$E128,$F128,2016,$I128/10,1,$H128/10,$G128*$H128/10, RateRatios_accidents!$B$4, RateRatios_accidents!$B$5)*10))","v":11126.785665238001},{"$f":"IF(AND(OR(Calculations!$E$2=\"Orkney Health Board\",Calculations!$E$2=\"Orkney Islands Local Authority\"),$F128=1),0,IF(AND(OR(Calculations!$E$2=\"Shetland Health Board\",Calculations!$E$2=\"Western Isles Health Board\",Calculations!$E$2=\"Shetland Islands Local Authority\",Calculations!$E$2=\"Eilean Siar Local Authority\"),OR($F128=1,$F128=5)),0,hosp_count(VALUE(LEFT(Options!$B$14,2)),$C128,$E128,$F128,2016,$I128/10+$J128/10,1,$H128/10,$G128*$H128/10, RateRatios_accidents!$B$4, RateRatios_accidents!$B$5)*10))","v":11124.00962183},{"$f":"IF(AND(OR(Calculations!$E$2=\"Orkney Health Board\",Calculations!$E$2=\"Orkney Islands Local Authority\"),$F128=1),0,IF(AND(OR(Calculations!$E$2=\"Shetland Health Board\",Calculations!$E$2=\"Western Isles Health Board\",Calculations!$E$2=\"Shetland Islands Local Authority\",Calculations!$E$2=\"Eilean Siar Local Authority\"),OR($F128=1,$F128=5)),0,prem_mort(VALUE(LEFT(Options!$B$14,2)),$C128,$E128,$F128,2016,$I128/10,1,$H128/10,$G128*$H128/10,RateRatios_accidents!$B$5)*10))","v":361.21250260399995},{"$f":"IF(AND(OR(Calculations!$E$2=\"Orkney Health Board\",Calculations!$E$2=\"Orkney Islands Local Authority\"),$F128=1),0,IF(AND(OR(Calculations!$E$2=\"Shetland Health Board\",Calculations!$E$2=\"Western Isles Health Board\",Calculations!$E$2=\"Shetland Islands Local Authority\",Calculations!$E$2=\"Eilean Siar Local Authority\"),OR($F128=1,$F128=5)),0,prem_mort(VALUE(LEFT(Options!$B$14,2)),$C128,$E128,$F128,2016,$I128/10+$J128/10,1,$H128/10,$G128*$H128/10,RateRatios_accidents!$B$5)*10))","v":361.122848487},null,{"$f":"IF(AND(OR(Calculations!$E$2=\"Orkney Health Board\",Calculations!$E$2=\"Orkney Islands Local Authority\"),$F128=1),0,IF(AND(OR(Calculations!$E$2=\"Shetland Health Board\",Calculations!$E$2=\"Western Isles Health Board\",Calculations!$E$2=\"Shetland Islands Local Authority\",Calculations!$E$2=\"Eilean Siar Local Authority\"),OR($F128=1,$F128=5)),0,new_ci(VALUE(LEFT(Options!$B$14,2)),$C128,$E128,$F128,2016,$I128/10,1,$H128/10,$G128*$H128/10,RateRatios_airpollution!$C128)*10))","v":361.21250260399995},{"$f":"IF(AND(OR(Calculations!$E$2=\"Orkney Health Board\",Calculations!$E$2=\"Orkney Islands Local Authority\"),$F128=1),0,IF(AND(OR(Calculations!$E$2=\"Shetland Health Board\",Calculations!$E$2=\"Western Isles Health Board\",Calculations!$E$2=\"Shetland Islands Local Authority\",Calculations!$E$2=\"Eilean Siar Local Authority\"),OR($F128=1,$F128=5)),0,new_ci(VALUE(LEFT(Options!$B$14,2)),$C128,$E128,$F128,2016,$I128/10+$J128/10,1,$H128/10,$G128*$H128/10,RateRatios_airpollution!$C128)*10))","v":361.20774083599997},{"$f":"IF(AND(OR(Calculations!$E$2=\"Orkney Health Board\",Calculations!$E$2=\"Orkney Islands Local Authority\"),$F128=1),0,IF(AND(OR(Calculations!$E$2=\"Shetland Health Board\",Calculations!$E$2=\"Western Isles Health Board\",Calculations!$E$2=\"Shetland Islands Local Authority\",Calculations!$E$2=\"Eilean Siar Local Authority\"),OR($F128=1,$F128=5)),0,new_yllv2(VALUE(LEFT(Options!$B$14,2)),$C128,$D128,$E128,$F128,2016,$I128/10,1,$H128/10,$G128*$H128/10,RateRatios_airpollution!$C128)*10))","v":8203.1370177739991},{"$f":"IF(AND(OR(Calculations!$E$2=\"Orkney Health Board\",Calculations!$E$2=\"Orkney Islands Local Authority\"),$F128=1),0,IF(AND(OR(Calculations!$E$2=\"Shetland Health Board\",Calculations!$E$2=\"Western Isles Health Board\",Calculations!$E$2=\"Shetland Islands Local Authority\",Calculations!$E$2=\"Eilean Siar Local Authority\"),OR($F128=1,$F128=5)),0,new_yllv2(VALUE(LEFT(Options!$B$14,2)),$C128,$D128,$E128,$F128,2016,$I128/10+$J128/10,1,$H128/10,$G128*$H128/10,RateRatios_airpollution!$C128)*10))","v":8203.0288780089995},{"$f":"IF(AND(OR(Calculations!$E$2=\"Orkney Health Board\",Calculations!$E$2=\"Orkney Islands Local Authority\"),$F128=1),0,IF(AND(OR(Calculations!$E$2=\"Shetland Health Board\",Calculations!$E$2=\"Western Isles Health Board\",Calculations!$E$2=\"Shetland Islands Local Authority\",Calculations!$E$2=\"Eilean Siar Local Authority\"),OR($F128=1,$F128=5)),0,hosp_count(VALUE(LEFT(Options!$B$14,2)),$C128,$E128,$F128,2016,$I128/10,1,$H128/10,$G128*$H128/10, RateRatios_airpollution!$D128, RateRatios_airpollution!$C128)*10))","v":11126.785665238001},{"$f":"IF(AND(OR(Calculations!$E$2=\"Orkney Health Board\",Calculations!$E$2=\"Orkney Islands Local Authority\"),$F128=1),0,IF(AND(OR(Calculations!$E$2=\"Shetland Health Board\",Calculations!$E$2=\"Western Isles Health Board\",Calculations!$E$2=\"Shetland Islands Local Authority\",Calculations!$E$2=\"Eilean Siar Local Authority\"),OR($F128=1,$F128=5)),0,hosp_count(VALUE(LEFT(Options!$B$14,2)),$C128,$E128,$F128,2016,$I128/10+$J128/10,1,$H128/10,$G128*$H128/10, RateRatios_airpollution!$D128, RateRatios_airpollution!$C128)*10))","v":11126.507981351999},{"$f":"IF(AND(OR(Calculations!$E$2=\"Orkney Health Board\",Calculations!$E$2=\"Orkney Islands Local Authority\"),$F128=1),0,IF(AND(OR(Calculations!$E$2=\"Shetland Health Board\",Calculations!$E$2=\"Western Isles Health Board\",Calculations!$E$2=\"Shetland Islands Local Authority\",Calculations!$E$2=\"Eilean Siar Local Authority\"),OR($F128=1,$F128=5)),0,prem_mort(VALUE(LEFT(Options!$B$14,2)),$C128,$E128,$F128,2016,$I128/10,1,$H128/10,$G128*$H128/10,RateRatios_airpollution!$C128)*10))","v":361.21250260399995},{"$f":"IF(AND(OR(Calculations!$E$2=\"Orkney Health Board\",Calculations!$E$2=\"Orkney Islands Local Authority\"),$F128=1),0,IF(AND(OR(Calculations!$E$2=\"Shetland Health Board\",Calculations!$E$2=\"Western Isles Health Board\",Calculations!$E$2=\"Shetland Islands Local Authority\",Calculations!$E$2=\"Eilean Siar Local Authority\"),OR($F128=1,$F128=5)),0,prem_mort(VALUE(LEFT(Options!$B$14,2)),$C128,$E128,$F128,2016,$I128/10+$J128/10,1,$H128/10,$G128*$H128/10,RateRatios_airpollution!$C128)*10))","v":361.20774083599997},null,{"$f":"IF(AND(OR(Calculations!$E$2=\"Orkney Health Board\",Calculations!$E$2=\"Orkney Islands Local Authority\"),$F128=1),0,IF(AND(OR(Calculations!$E$2=\"Shetland Health Board\",Calculations!$E$2=\"Western Isles Health Board\",Calculations!$E$2=\"Shetland Islands Local Authority\",Calculations!$E$2=\"Eilean Siar Local Authority\"),OR($F128=1,$F128=5)),0,new_ci(VALUE(LEFT(Options!$B$14,2)),$C128,$E128,$F128,2016,$I128/10,1,$H128/10,$G128*$H128/10,RateRatios_airpollution!$E128)*10))","v":361.21250260399995},{"$f":"IF(AND(OR(Calculations!$E$2=\"Orkney Health Board\",Calculations!$E$2=\"Orkney Islands Local Authority\"),$F128=1),0,IF(AND(OR(Calculations!$E$2=\"Shetland Health Board\",Calculations!$E$2=\"Western Isles Health Board\",Calculations!$E$2=\"Shetland Islands Local Authority\",Calculations!$E$2=\"Eilean Siar Local Authority\"),OR($F128=1,$F128=5)),0,new_ci(VALUE(LEFT(Options!$B$14,2)),$C128,$E128,$F128,2016,$I128/10+$J128/10,1,$H128/10,$G128*$H128/10,RateRatios_airpollution!$E128)*10))","v":361.21032823100001},{"$f":"IF(AND(OR(Calculations!$E$2=\"Orkney Health Board\",Calculations!$E$2=\"Orkney Islands Local Authority\"),$F128=1),0,IF(AND(OR(Calculations!$E$2=\"Shetland Health Board\",Calculations!$E$2=\"Western Isles Health Board\",Calculations!$E$2=\"Shetland Islands Local Authority\",Calculations!$E$2=\"Eilean Siar Local Authority\"),OR($F128=1,$F128=5)),0,new_yllv2(VALUE(LEFT(Options!$B$14,2)),$C128,$D128,$E128,$F128,2016,$I128/10,1,$H128/10,$G128*$H128/10,RateRatios_airpollution!$E128)*10))","v":8203.1370177739991},{"$f":"IF(AND(OR(Calculations!$E$2=\"Orkney Health Board\",Calculations!$E$2=\"Orkney Islands Local Authority\"),$F128=1),0,IF(AND(OR(Calculations!$E$2=\"Shetland Health Board\",Calculations!$E$2=\"Western Isles Health Board\",Calculations!$E$2=\"Shetland Islands Local Authority\",Calculations!$E$2=\"Eilean Siar Local Authority\"),OR($F128=1,$F128=5)),0,new_yllv2(VALUE(LEFT(Options!$B$14,2)),$C128,$D128,$E128,$F128,2016,$I128/10+$J128/10,1,$H128/10,$G128*$H128/10,RateRatios_airpollution!$E128)*10))","v":8203.0876377570003},{"$f":"IF(AND(OR(Calculations!$E$2=\"Orkney Health Board\",Calculations!$E$2=\"Orkney Islands Local Authority\"),$F128=1),0,IF(AND(OR(Calculations!$E$2=\"Shetland Health Board\",Calculations!$E$2=\"Western Isles Health Board\",Calculations!$E$2=\"Shetland Islands Local Authority\",Calculations!$E$2=\"Eilean Siar Local Authority\"),OR($F128=1,$F128=5)),0,hosp_count(VALUE(LEFT(Options!$B$14,2)),$C128,$E128,$F128,2016,$I128/10,1,$H128/10,$G128*$H128/10, RateRatios_airpollution!$F128, RateRatios_airpollution!$E128)*10))","v":11126.785665238001},{"$f":"IF(AND(OR(Calculations!$E$2=\"Orkney Health Board\",Calculations!$E$2=\"Orkney Islands Local Authority\"),$F128=1),0,IF(AND(OR(Calculations!$E$2=\"Shetland Health Board\",Calculations!$E$2=\"Western Isles Health Board\",Calculations!$E$2=\"Shetland Islands Local Authority\",Calculations!$E$2=\"Eilean Siar Local Authority\"),OR($F128=1,$F128=5)),0,hosp_count(VALUE(LEFT(Options!$B$14,2)),$C128,$E128,$F128,2016,$I128/10+$J128/10,1,$H128/10,$G128*$H128/10, RateRatios_airpollution!$F128, RateRatios_airpollution!$E128)*10))","v":11126.785665238001},{"$f":"IF(AND(OR(Calculations!$E$2=\"Orkney Health Board\",Calculations!$E$2=\"Orkney Islands Local Authority\"),$F128=1),0,IF(AND(OR(Calculations!$E$2=\"Shetland Health Board\",Calculations!$E$2=\"Western Isles Health Board\",Calculations!$E$2=\"Shetland Islands Local Authority\",Calculations!$E$2=\"Eilean Siar Local Authority\"),OR($F128=1,$F128=5)),0,prem_mort(VALUE(LEFT(Options!$B$14,2)),$C128,$E128,$F128,2016,$I128/10,1,$H128/10,$G128*$H128/10,RateRatios_airpollution!$E128)*10))","v":361.21250260399995},{"$f":"IF(AND(OR(Calculations!$E$2=\"Orkney Health Board\",Calculations!$E$2=\"Orkney Islands Local Authority\"),$F128=1),0,IF(AND(OR(Calculations!$E$2=\"Shetland Health Board\",Calculations!$E$2=\"Western Isles Health Board\",Calculations!$E$2=\"Shetland Islands Local Authority\",Calculations!$E$2=\"Eilean Siar Local Authority\"),OR($F128=1,$F128=5)),0,prem_mort(VALUE(LEFT(Options!$B$14,2)),$C128,$E128,$F128,2016,$I128/10+$J128/10,1,$H128/10,$G128*$H128/10,RateRatios_airpollution!$E128)*10))","v":361.21032823100001},361.21250260399995,361.11591234600007,8203.1370177739991,8200.9434527260019,11126.785665238001,11123.731937943998,361.21250260399995,361.11591234600007,{"$f":"AK128*100000/$H128","v":1030.9752899988582},{"$f":"AL128*100000/$H128","v":1030.6996013985618},{"$f":"AM128*100000/$H128","v":23413.451928798946},{"$f":"AN128*100000/$H128","v":23407.19103986186},{"$f":"AO128*100000/$H128","v":31758.150660001145},{"$f":"AP128*100000/$H128","v":31749.434689873266},{"$f":"AQ128*100000/$H128","v":1030.9752899988582},{"$f":"AR128*100000/$H128","v":1030.6996013985618},6701339.3849925781,6699547.4090906512,152187437.53719315,152146741.75910211,206427979.29000744,206371325.48417622,6701339.3849925781,6699547.4090906512,6500]
[null,"Male 60-64",61.942988999999997,81.612989999999996,"male",2,1,{"$f":"HLOOKUP(Calculations!$E$2,'Population 2016'!$C$3:$BC$249,'Population 2016'!BD129,FALSE)","v":29980},0,{"$f":"HLOOKUP(Calculations!$E$2,Pop2016_in_settlements!$C$3:$BC$249,Pop2016_in_settlements!$BD129,FALSE)","v":18286},{"$f":"IF(AND(OR(Calculations!$E$2=\"Orkney Health Board\",Calculations!$E$2=\"Orkney Islands Local Authority\"),$F129=1),0,IF(AND(OR(Calculations!$E$2=\"Shetland Health Board\",Calculations!$E$2=\"Western Isles Health Board\",Calculations!$E$2=\"Shetland Islands Local Authority\",Calculations!$E$2=\"Eilean Siar Local Authority\"),OR($F129=1,$F129=5)),0,new_ci(VALUE(LEFT(Options!$B$14,2)),$C129,$E129,$F129,2016,$I129/10,1,$H129/10,$G129*$H129/10,RateRatios_accidents!$B$5)*10))","v":449.50534585600002},{"$f":"IF(AND(OR(Calculations!$E$2=\"Orkney Health Board\",Calculations!$E$2=\"Orkney Islands Local Authority\"),$F129=1),0,IF(AND(OR(Calculations!$E$2=\"Shetland Health Board\",Calculations!$E$2=\"Western Isles Health Board\",Calculations!$E$2=\"Shetland Islands Local Authority\",Calculations!$E$2=\"Eilean Siar Local Authority\"),OR($F129=1,$F129=5)),0,new_ci(VALUE(LEFT(Options!$B$14,2)),$C129,$E129,$F129,2016,$I129/10+$J129/10,1,$H129/10,$G129*$H129/10,RateRatios_accidents!$B$5)*10))","v":449.39650392700003},{"$f":"IF(AND(OR(Calculations!$E$2=\"Orkney Health Board\",Calculations!$E$2=\"Orkney Islands Local Authority\"),$F129=1),0,IF(AND(OR(Calculations!$E$2=\"Shetland Health Board\",Calculations!$E$2=\"Western Isles Health Board\",Calculations!$E$2=\"Shetland Islands Local Authority\",Calculations!$E$2=\"Eilean Siar Local Authority\"),OR($F129=1,$F129=5)),0,new_yllv2(VALUE(LEFT(Options!$B$14,2)),$C129,$D129,$E129,$F129,2016,$I129/10,1,$H129/10,$G129*$H129/10,RateRatios_accidents!$B$5)*10))","v":8392.2652566369998},{"$f":"IF(AND(OR(Calculations!$E$2=\"Orkney Health Board\",Calculations!$E$2=\"Orkney Islands Local Authority\"),$F129=1),0,IF(AND(OR(Calculations!$E$2=\"Shetland Health Board\",Calculations!$E$2=\"Western Isles Health Board\",Calculations!$E$2=\"Shetland Islands Local Authority\",Calculations!$E$2=\"Eilean Siar Local Authority\"),OR($F129=1,$F129=5)),0,new_yllv2(VALUE(LEFT(Options!$B$14,2)),$C129,$D129,$E129,$F129,2016,$I129/10+$J129/10,1,$H129/10,$G129*$H129/10,RateRatios_accidents!$B$5)*10))","v":8390.2331777140007},{"$f":"IF(AND(OR(Calculations!$E$2=\"Orkney Health Board\",Calculations!$E$2=\"Orkney Islands Local Authority\"),$F129=1),0,IF(AND(OR(Calculations!$E$2=\"Shetland Health Board\",Calculations!$E$2=\"Western Isles Health Board\",Calculations!$E$2=\"Shetland Islands Local Authority\",Calculations!$E$2=\"Eilean Siar Local Authority\"),OR($F129=1,$F129=5)),0,hosp_count(VALUE(LEFT(Options!$B$14,2)),$C129,$E129,$F129,2016,$I129/10,1,$H129/10,$G129*$H129/10, RateRatios_accidents!$B$4, RateRatios_accidents!$B$5)*10))","v":11366.904471358001},{"$f":"IF(AND(OR(Calculations!$E$2=\"Orkney Health Board\",Calculations!$E$2=\"Orkney Islands Local Authority\"),$F129=1),0,IF(AND(OR(Calculations!$E$2=\"Shetland Health Board\",Calculations!$E$2=\"Western Isles Health Board\",Calculations!$E$2=\"Shetland Islands Local Authority\",Calculations!$E$2=\"Eilean Siar Local Authority\"),OR($F129=1,$F129=5)),0,hosp_count(VALUE(LEFT(Options!$B$14,2)),$C129,$E129,$F129,2016,$I129/10+$J129/10,1,$H129/10,$G129*$H129/10, RateRatios_accidents!$B$4, RateRatios_accidents!$B$5)*10))","v":11364.131220255},{"$f":"IF(AND(OR(Calculations!$E$2=\"Orkney Health Board\",Calculations!$E$2=\"Orkney Islands Local Authority\"),$F129=1),0,IF(AND(OR(Calculations!$E$2=\"Shetland Health Board\",Calculations!$E$2=\"Western Isles Health Board\",Calculations!$E$2=\"Shetland Islands Local Authority\",Calculations!$E$2=\"Eilean Siar Local Authority\"),OR($F129=1,$F129=5)),0,prem_mort(VALUE(LEFT(Options!$B$14,2)),$C129,$E129,$F129,2016,$I129/10,1,$H129/10,$G129*$H129/10,RateRatios_accidents!$B$5)*10))","v":449.50534585600002},{"$f":"IF(AND(OR(Calculations!$E$2=\"Orkney Health Board\",Calculations!$E$2=\"Orkney Islands Local Authority\"),$F129=1),0,IF(AND(OR(Calculations!$E$2=\"Shetland Health Board\",Calculations!$E$2=\"Western Isles Health Board\",Calculations!$E$2=\"Shetland Islands Local Authority\",Calculations!$E$2=\"Eilean Siar Local Authority\"),OR($F129=1,$F129=5)),0,prem_mort(VALUE(LEFT(Options!$B$14,2)),$C129,$E129,$F129,2016,$I129/10+$J129/10,1,$H129/10,$G129*$H129/10,RateRatios_accidents!$B$5)*10))","v":449.39650392700003},null,{"$f":"IF(AND(OR(Calculations!$E$2=\"Orkney Health Board\",Calculations!$E$2=\"Orkney Islands Local Authority\"),$F129=1),0,IF(AND(OR(Calculations!$E$2=\"Shetland Health Board\",Calculations!$E$2=\"Western Isles Health Board\",Calculations!$E$2=\"Shetland Islands Local Authority\",Calculations!$E$2=\"Eilean Siar Local Authority\"),OR($F129=1,$F129=5)),0,new_ci(VALUE(LEFT(Options!$B$14,2)),$C129,$E129,$F129,2016,$I129/10,1,$H129/10,$G129*$H129/10,RateRatios_airpollution!$C129)*10))","v":449.50534585600002},{"$f":"IF(AND(OR(Calculations!$E$2=\"Orkney Health Board\",Calculations!$E$2=\"Orkney Islands Local Authority\"),$F129=1),0,IF(AND(OR(Calculations!$E$2=\"Shetland Health Board\",Calculations!$E$2=\"Western Isles Health Board\",Calculations!$E$2=\"Shetland Islands Local Authority\",Calculations!$E$2=\"Eilean Siar Local Authority\"),OR($F129=1,$F129=5)),0,new_ci(VALUE(LEFT(Options!$B$14,2)),$C129,$E129,$F129,2016,$I129/10+$J129/10,1,$H129/10,$G129*$H129/10,RateRatios_airpollution!$C129)*10))","v":449.49965159599998},{"$f":"IF(AND(OR(Calculations!$E$2=\"Orkney Health Board\",Calculations!$E$2=\"Orkney Islands Local Authority\"),$F129=1),0,IF(AND(OR(Calculations!$E$2=\"Shetland Health Board\",Calculations!$E$2=\"Western Isles Health Board\",Calculations!$E$2=\"Shetland Islands Local Authority\",Calculations!$E$2=\"Eilean Siar Local Authority\"),OR($F129=1,$F129=5)),0,new_yllv2(VALUE(LEFT(Options!$B$14,2)),$C129,$D129,$E129,$F129,2016,$I129/10,1,$H129/10,$G129*$H129/10,RateRatios_airpollution!$C129)*10))","v":8392.2652566369998},{"$f":"IF(AND(OR(Calculations!$E$2=\"Orkney Health Board\",Calculations!$E$2=\"Orkney Islands Local Authority\"),$F129=1),0,IF(AND(OR(Calculations!$E$2=\"Shetland Health Board\",Calculations!$E$2=\"Western Isles Health Board\",Calculations!$E$2=\"Shetland Islands Local Authority\",Calculations!$E$2=\"Eilean Siar Local Authority\"),OR($F129=1,$F129=5)),0,new_yllv2(VALUE(LEFT(Options!$B$14,2)),$C129,$D129,$E129,$F129,2016,$I129/10+$J129/10,1,$H129/10,$G129*$H129/10,RateRatios_airpollution!$C129)*10))","v":8392.158944797},{"$f":"IF(AND(OR(Calculations!$E$2=\"Orkney Health Board\",Calculations!$E$2=\"Orkney Islands Local Authority\"),$F129=1),0,IF(AND(OR(Calculations!$E$2=\"Shetland Health Board\",Calculations!$E$2=\"Western Isles Health Board\",Calculations!$E$2=\"Shetland Islands Local Authority\",Calculations!$E$2=\"Eilean Siar Local Authority\"),OR($F129=1,$F129=5)),0,hosp_count(VALUE(LEFT(Options!$B$14,2)),$C129,$E129,$F129,2016,$I129/10,1,$H129/10,$G129*$H129/10, RateRatios_airpollution!$D129, RateRatios_airpollution!$C129)*10))","v":11366.904471358001},{"$f":"IF(AND(OR(Calculations!$E$2=\"Orkney Health Board\",Calculations!$E$2=\"Orkney Islands Local Authority\"),$F129=1),0,IF(AND(OR(Calculations!$E$2=\"Shetland Health Board\",Calculations!$E$2=\"Western Isles Health Board\",Calculations!$E$2=\"Shetland Islands Local Authority\",Calculations!$E$2=\"Eilean Siar Local Authority\"),OR($F129=1,$F129=5)),0,hosp_count(VALUE(LEFT(Options!$B$14,2)),$C129,$E129,$F129,2016,$I129/10+$J129/10,1,$H129/10,$G129*$H129/10, RateRatios_airpollution!$D129, RateRatios_airpollution!$C129)*10))","v":11366.631095657998},{"$f":"IF(AND(OR(Calculations!$E$2=\"Orkney Health Board\",Calculations!$E$2=\"Orkney Islands Local Authority\"),$F129=1),0,IF(AND(OR(Calculations!$E$2=\"Shetland Health Board\",Calculations!$E$2=\"Western Isles Health Board\",Calculations!$E$2=\"Shetland Islands Local Authority\",Calculations!$E$2=\"Eilean Siar Local Authority\"),OR($F129=1,$F129=5)),0,prem_mort(VALUE(LEFT(Options!$B$14,2)),$C129,$E129,$F129,2016,$I129/10,1,$H129/10,$G129*$H129/10,RateRatios_airpollution!$C129)*10))","v":449.50534585600002},{"$f":"IF(AND(OR(Calculations!$E$2=\"Orkney Health Board\",Calculations!$E$2=\"Orkney Islands Local Authority\"),$F129=1),0,IF(AND(OR(Calculations!$E$2=\"Shetland Health Board\",Calculations!$E$2=\"Western Isles Health Board\",Calculations!$E$2=\"Shetland Islands Local Authority\",Calculations!$E$2=\"Eilean Siar Local Authority\"),OR($F129=1,$F129=5)),0,prem_mort(VALUE(LEFT(Options!$B$14,2)),$C129,$E129,$F129,2016,$I129/10+$J129/10,1,$H129/10,$G129*$H129/10,RateRatios_airpollution!$C129)*10))","v":449.49965159599998},null,{"$f":"IF(AND(OR(Calculations!$E$2=\"Orkney Health Board\",Calculations!$E$2=\"Orkney Islands Local Authority\"),$F129=1),0,IF(AND(OR(Calculations!$E$2=\"Shetland Health Board\",Calculations!$E$2=\"Western Isles Health Board\",Calculations!$E$2=\"Shetland Islands Local Authority\",Calculations!$E$2=\"Eilean Siar Local Authority\"),OR($F129=1,$F129=5)),0,new_ci(VALUE(LEFT(Options!$B$14,2)),$C129,$E129,$F129,2016,$I129/10,1,$H129/10,$G129*$H129/10,RateRatios_airpollution!$E129)*10))","v":449.50534585600002},{"$f":"IF(AND(OR(Calculations!$E$2=\"Orkney Health Board\",Calculations!$E$2=\"Orkney Islands Local Authority\"),$F129=1),0,IF(AND(OR(Calculations!$E$2=\"Shetland Health Board\",Calculations!$E$2=\"Western Isles Health Board\",Calculations!$E$2=\"Shetland Islands Local Authority\",Calculations!$E$2=\"Eilean Siar Local Authority\"),OR($F129=1,$F129=5)),0,new_ci(VALUE(LEFT(Options!$B$14,2)),$C129,$E129,$F129,2016,$I129/10+$J129/10,1,$H129/10,$G129*$H129/10,RateRatios_airpollution!$E129)*10))","v":449.50274192999996},{"$f":"IF(AND(OR(Calculations!$E$2=\"Orkney Health Board\",Calculations!$E$2=\"Orkney Islands Local Authority\"),$F129=1),0,IF(AND(OR(Calculations!$E$2=\"Shetland Health Board\",Calculations!$E$2=\"Western Isles Health Board\",Calculations!$E$2=\"Shetland Islands Local Authority\",Calculations!$E$2=\"Eilean Siar Local Authority\"),OR($F129=1,$F129=5)),0,new_yllv2(VALUE(LEFT(Options!$B$14,2)),$C129,$D129,$E129,$F129,2016,$I129/10,1,$H129/10,$G129*$H129/10,RateRatios_airpollution!$E129)*10))","v":8392.2652566369998},{"$f":"IF(AND(OR(Calculations!$E$2=\"Orkney Health Board\",Calculations!$E$2=\"Orkney Islands Local Authority\"),$F129=1),0,IF(AND(OR(Calculations!$E$2=\"Shetland Health Board\",Calculations!$E$2=\"Western Isles Health Board\",Calculations!$E$2=\"Shetland Islands Local Authority\",Calculations!$E$2=\"Eilean Siar Local Authority\"),OR($F129=1,$F129=5)),0,new_yllv2(VALUE(LEFT(Options!$B$14,2)),$C129,$D129,$E129,$F129,2016,$I129/10+$J129/10,1,$H129/10,$G129*$H129/10,RateRatios_airpollution!$E129)*10))","v":8392.216641336001},{"$f":"IF(AND(OR(Calculations!$E$2=\"Orkney Health Board\",Calculations!$E$2=\"Orkney Islands Local Authority\"),$F129=1),0,IF(AND(OR(Calculations!$E$2=\"Shetland Health Board\",Calculations!$E$2=\"Western Isles Health Board\",Calculations!$E$2=\"Shetland Islands Local Authority\",Calculations!$E$2=\"Eilean Siar Local Authority\"),OR($F129=1,$F129=5)),0,hosp_count(VALUE(LEFT(Options!$B$14,2)),$C129,$E129,$F129,2016,$I129/10,1,$H129/10,$G129*$H129/10, RateRatios_airpollution!$F129, RateRatios_airpollution!$E129)*10))","v":11366.904471358001},{"$f":"IF(AND(OR(Calculations!$E$2=\"Orkney Health Board\",Calculations!$E$2=\"Orkney Islands Local Authority\"),$F129=1),0,IF(AND(OR(Calculations!$E$2=\"Shetland Health Board\",Calculations!$E$2=\"Western Isles Health Board\",Calculations!$E$2=\"Shetland Islands Local Authority\",Calculations!$E$2=\"Eilean Siar Local Authority\"),OR($F129=1,$F129=5)),0,hosp_count(VALUE(LEFT(Options!$B$14,2)),$C129,$E129,$F129,2016,$I129/10+$J129/10,1,$H129/10,$G129*$H129/10, RateRatios_airpollution!$F129, RateRatios_airpollution!$E129)*10))","v":11366.904471358001},{"$f":"IF(AND(OR(Calculations!$E$2=\"Orkney Health Board\",Calculations!$E$2=\"Orkney Islands Local Authority\"),$F129=1),0,IF(AND(OR(Calculations!$E$2=\"Shetland Health Board\",Calculations!$E$2=\"Western Isles Health Board\",Calculations!$E$2=\"Shetland Islands Local Authority\",Calculations!$E$2=\"Eilean Siar Local Authority\"),OR($F129=1,$F129=5)),0,prem_mort(VALUE(LEFT(Options!$B$14,2)),$C129,$E129,$F129,2016,$I129/10,1,$H129/10,$G129*$H129/10,RateRatios_airpollution!$E129)*10))","v":449.50534585600002},{"$f":"IF(AND(OR(Calculations!$E$2=\"Orkney Health Board\",Calculations!$E$2=\"Orkney Islands Local Authority\"),$F129=1),0,IF(AND(OR(Calculations!$E$2=\"Shetland Health Board\",Calculations!$E$2=\"Western Isles Health Board\",Calculations!$E$2=\"Shetland Islands Local Authority\",Calculations!$E$2=\"Eilean Siar Local Authority\"),OR($F129=1,$F129=5)),0,prem_mort(VALUE(LEFT(Options!$B$14,2)),$C129,$E129,$F129,2016,$I129/10+$J129/10,1,$H129/10,$G129*$H129/10,RateRatios_airpollution!$E129)*10))","v":449.50274192999996},449.50534585600002,449.38820574099992,8392.2652566369998,8390.0782505730022,11366.904471358001,11363.857844554997,449.50534585600002,449.38820574099992,1499.3507200000001,1498.9599924649765,27992.879441751167,27985.584558282197,37914.958210000004,37904.796012525003,1499.3507200000001,1498.9599924649765,8996104.3200000003,8993759.9547898583,167957276.650507,167913507.34969318,227489749.26000002,227428776.07515001,8996104.3200000003,8993759.9547898583,6000]
[null,"Male 65-69",67.054419999999993,82.954419999999999,"male",2,1,{"$f":"HLOOKUP(Calculations!$E$2,'Population 2016'!$C$3:$BC$249,'Population 2016'!BD130,FALSE)","v":29727},0,{"$f":"HLOOKUP(Calculations!$E$2,Pop2016_in_settlements!$C$3:$BC$249,Pop2016_in_settlements!$BD130,FALSE)","v":17893},{"$f":"IF(AND(OR(Calculations!$E$2=\"Orkney Health Board\",Calculations!$E$2=\"Orkney Islands Local Authority\"),$F130=1),0,IF(AND(OR(Calculations!$E$2=\"Shetland Health Board\",Calculations!$E$2=\"Western Isles Health Board\",Calculations!$E$2=\"Shetland Islands Local Authority\",Calculations!$E$2=\"Eilean Siar Local Authority\"),OR($F130=1,$F130=5)),0,new_ci(VALUE(LEFT(Options!$B$14,2)),$C130,$E130,$F130,2016,$I130/10,1,$H130/10,$G130*$H130/10,RateRatios_accidents!$B$5)*10))","v":653.29456828000002},{"$f":"IF(AND(OR(Calculations!$E$2=\"Orkney Health Board\",Calculations!$E$2=\"Orkney Islands Local Authority\"),$F130=1),0,IF(AND(OR(Calculations!$E$2=\"Shetland Health Board\",Calculations!$E$2=\"Western Isles Health Board\",Calculations!$E$2=\"Shetland Islands Local Authority\",Calculations!$E$2=\"Eilean Siar Local Authority\"),OR($F130=1,$F130=5)),0,new_ci(VALUE(LEFT(Options!$B$14,2)),$C130,$E130,$F130,2016,$I130/10+$J130/10,1,$H130/10,$G130*$H130/10,RateRatios_accidents!$B$5)*10))","v":653.13901727399991},{"$f":"IF(AND(OR(Calculations!$E$2=\"Orkney Health Board\",Calculations!$E$2=\"Orkney Islands Local Authority\"),$F130=1),0,IF(AND(OR(Calculations!$E$2=\"Shetland Health Board\",Calculations!$E$2=\"Western Isles Health Board\",Calculations!$E$2=\"Shetland Islands Local Authority\",Calculations!$E$2=\"Eilean Siar Local Authority\"),OR($F130=1,$F130=5)),0,new_yllv2(VALUE(LEFT(Options!$B$14,2)),$C130,$D130,$E130,$F130,2016,$I130/10,1,$H130/10,$G130*$H130/10,RateRatios_accidents!$B$5)*10))","v":9734.0890673720005},{"$f":"IF(AND(OR(Calculations!$E$2=\"Orkney Health Board\",Calculations!$E$2=\"Orkney Islands Local Authority\"),$F130=1),0,IF(AND(OR(Calculations!$E$2=\"Shetland Health Board\",Calculations!$E$2=\"Western Isles Health Board\",Calculations!$E$2=\"Shetland Islands Local Authority\",Calculations!$E$2=\"Eilean Siar Local Authority\"),OR($F130=1,$F130=5)),0,new_yllv2(VALUE(LEFT(Options!$B$14,2)),$C130,$D130,$E130,$F130,2016,$I130/10+$J130/10,1,$H130/10,$G130*$H130/10,RateRatios_accidents!$B$5)*10))","v":9731.7713573830006},{"$f":"IF(AND(OR(Calculations!$E$2=\"Orkney Health Board\",Calculations!$E$2=\"Orkney Islands Local Authority\"),$F130=1),0,IF(AND(OR(Calculations!$E$2=\"Shetland Health Board\",Calculations!$E$2=\"Western Isles Health Board\",Calculations!$E$2=\"Shetland Islands Local Authority\",Calculations!$E$2=\"Eilean Siar Local Authority\"),OR($F130=1,$F130=5)),0,hosp_count(VALUE(LEFT(Options!$B$14,2)),$C130,$E130,$F130,2016,$I130/10,1,$H130/10,$G130*$H130/10, RateRatios_accidents!$B$4, RateRatios_accidents!$B$5)*10))","v":13513.138667486},{"$f":"IF(AND(OR(Calculations!$E$2=\"Orkney Health Board\",Calculations!$E$2=\"Orkney Islands Local Authority\"),$F130=1),0,IF(AND(OR(Calculations!$E$2=\"Shetland Health Board\",Calculations!$E$2=\"Western Isles Health Board\",Calculations!$E$2=\"Shetland Islands Local Authority\",Calculations!$E$2=\"Eilean Siar Local Authority\"),OR($F130=1,$F130=5)),0,hosp_count(VALUE(LEFT(Options!$B$14,2)),$C130,$E130,$F130,2016,$I130/10+$J130/10,1,$H130/10,$G130*$H130/10, RateRatios_accidents!$B$4, RateRatios_accidents!$B$5)*10))","v":13509.885186874999},{"$f":"IF(AND(OR(Calculations!$E$2=\"Orkney Health Board\",Calculations!$E$2=\"Orkney Islands Local Authority\"),$F130=1),0,IF(AND(OR(Calculations!$E$2=\"Shetland Health Board\",Calculations!$E$2=\"Western Isles Health Board\",Calculations!$E$2=\"Shetland Islands Local Authority\",Calculations!$E$2=\"Eilean Siar Local Authority\"),OR($F130=1,$F130=5)),0,prem_mort(VALUE(LEFT(Options!$B$14,2)),$C130,$E130,$F130,2016,$I130/10,1,$H130/10,$G130*$H130/10,RateRatios_accidents!$B$5)*10))","v":653.29456828000002},{"$f":"IF(AND(OR(Calculations!$E$2=\"Orkney Health Board\",Calculations!$E$2=\"Orkney Islands Local Authority\"),$F130=1),0,IF(AND(OR(Calculations!$E$2=\"Shetland Health Board\",Calculations!$E$2=\"Western Isles Health Board\",Calculations!$E$2=\"Shetland Islands Local Authority\",Calculations!$E$2=\"Eilean Siar Local Authority\"),OR($F130=1,$F130=5)),0,prem_mort(VALUE(LEFT(Options!$B$14,2)),$C130,$E130,$F130,2016,$I130/10+$J130/10,1,$H130/10,$G130*$H130/10,RateRatios_accidents!$B$5)*10))","v":653.13901727399991},null,{"$f":"IF(AND(OR(Calculations!$E$2=\"Orkney Health Board\",Calculations!$E$2=\"Orkney Islands Local Authority\"),$F130=1),0,IF(AND(OR(Calculations!$E$2=\"Shetland Health Board\",Calculations!$E$2=\"Western Isles Health Board\",Calculations!$E$2=\"Shetland Islands Local Authority\",Calculations!$E$2=\"Eilean Siar Local Authority\"),OR($F130=1,$F130=5)),0,new_ci(VALUE(LEFT(Options!$B$14,2)),$C130,$E130,$F130,2016,$I130/10,1,$H130/10,$G130*$H130/10,RateRatios_airpollution!$C130)*10))","v":653.29456828000002},{"$f":"IF(AND(OR(Calculations!$E$2=\"Orkney Health Board\",Calculations!$E$2=\"Orkney Islands Local Authority\"),$F130=1),0,IF(AND(OR(Calculations!$E$2=\"Shetland Health Board\",Calculations!$E$2=\"Western Isles Health Board\",Calculations!$E$2=\"Shetland Islands Local Authority\",Calculations!$E$2=\"Eilean Siar Local Authority\"),OR($F130=1,$F130=5)),0,new_ci(VALUE(LEFT(Options!$B$14,2)),$C130,$E130,$F130,2016,$I130/10+$J130/10,1,$H130/10,$G130*$H130/10,RateRatios_airpollution!$C130)*10))","v":653.28666315299995},{"$f":"IF(AND(OR(Calculations!$E$2=\"Orkney Health Board\",Calculations!$E$2=\"Orkney Islands Local Authority\"),$F130=1),0,IF(AND(OR(Calculations!$E$2=\"Shetland Health Board\",Calculations!$E$2=\"Western Isles Health Board\",Calculations!$E$2=\"Shetland Islands Local Authority\",Calculations!$E$2=\"Eilean Siar Local Authority\"),OR($F130=1,$F130=5)),0,new_yllv2(VALUE(LEFT(Options!$B$14,2)),$C130,$D130,$E130,$F130,2016,$I130/10,1,$H130/10,$G130*$H130/10,RateRatios_airpollution!$C130)*10))","v":9734.0890673720005},{"$f":"IF(AND(OR(Calculations!$E$2=\"Orkney Health Board\",Calculations!$E$2=\"Orkney Islands Local Authority\"),$F130=1),0,IF(AND(OR(Calculations!$E$2=\"Shetland Health Board\",Calculations!$E$2=\"Western Isles Health Board\",Calculations!$E$2=\"Shetland Islands Local Authority\",Calculations!$E$2=\"Eilean Siar Local Authority\"),OR($F130=1,$F130=5)),0,new_yllv2(VALUE(LEFT(Options!$B$14,2)),$C130,$D130,$E130,$F130,2016,$I130/10+$J130/10,1,$H130/10,$G130*$H130/10,RateRatios_airpollution!$C130)*10))","v":9733.9712809800003},{"$f":"IF(AND(OR(Calculations!$E$2=\"Orkney Health Board\",Calculations!$E$2=\"Orkney Islands Local Authority\"),$F130=1),0,IF(AND(OR(Calculations!$E$2=\"Shetland Health Board\",Calculations!$E$2=\"Western Isles Health Board\",Calculations!$E$2=\"Shetland Islands Local Authority\",Calculations!$E$2=\"Eilean Siar Local Authority\"),OR($F130=1,$F130=5)),0,hosp_count(VALUE(LEFT(Options!$B$14,2)),$C130,$E130,$F130,2016,$I130/10,1,$H130/10,$G130*$H130/10, RateRatios_airpollution!$D130, RateRatios_airpollution!$C130)*10))","v":13513.138667486},{"$f":"IF(AND(OR(Calculations!$E$2=\"Orkney Health Board\",Calculations!$E$2=\"Orkney Islands Local Authority\"),$F130=1),0,IF(AND(OR(Calculations!$E$2=\"Shetland Health Board\",Calculations!$E$2=\"Western Isles Health Board\",Calculations!$E$2=\"Shetland Islands Local Authority\",Calculations!$E$2=\"Eilean Siar Local Authority\"),OR($F130=1,$F130=5)),0,hosp_count(VALUE(LEFT(Options!$B$14,2)),$C130,$E130,$F130,2016,$I130/10+$J130/10,1,$H130/10,$G130*$H130/10, RateRatios_airpollution!$D130, RateRatios_airpollution!$C130)*10))","v":13512.827127094999},{"$f":"IF(AND(OR(Calculations!$E$2=\"Orkney Health Board\",Calculations!$E$2=\"Orkney Islands Local Authority\"),$F130=1),0,IF(AND(OR(Calculations!$E$2=\"Shetland Health Board\",Calculations!$E$2=\"Western Isles Health Board\",Calculations!$E$2=\"Shetland Islands Local Authority\",Calculations!$E$2=\"Eilean Siar Local Authority\"),OR($F130=1,$F130=5)),0,prem_mort(VALUE(LEFT(Options!$B$14,2)),$C130,$E130,$F130,2016,$I130/10,1,$H130/10,$G130*$H130/10,RateRatios_airpollution!$C130)*10))","v":653.29456828000002},{"$f":"IF(AND(OR(Calculations!$E$2=\"Orkney Health Board\",Calculations!$E$2=\"Orkney Islands Local Authority\"),$F130=1),0,IF(AND(OR(Calculations!$E$2=\"Shetland Health Board\",Calculations!$E$2=\"Western Isles Health Board\",Calculations!$E$2=\"Shetland Islands Local Authority\",Calculations!$E$2=\"Eilean Siar Local Authority\"),OR($F130=1,$F130=5)),0,prem_mort(VALUE(LEFT(Options!$B$14,2)),$C130,$E130,$F130,2016,$I130/10+$J130/10,1,$H130/10,$G130*$H130/10,RateRatios_airpollution!$C130)*10))","v":653.28666315299995},null,{"$f":"IF(AND(OR(Calculations!$E$2=\"Orkney Health Board\",Calculations!$E$2=\"Orkney Islands Local Authority\"),$F130=1),0,IF(AND(OR(Calculations!$E$2=\"Shetland Health Board\",Calculations!$E$2=\"Western Isles Health Board\",Calculations!$E$2=\"Shetland Islands Local Authority\",Calculations!$E$2=\"Eilean Siar Local Authority\"),OR($F130=1,$F130=5)),0,new_ci(VALUE(LEFT(Options!$B$14,2)),$C130,$E130,$F130,2016,$I130/10,1,$H130/10,$G130*$H130/10,RateRatios_airpollution!$E130)*10))","v":653.29456828000002},{"$f":"IF(AND(OR(Calculations!$E$2=\"Orkney Health Board\",Calculations!$E$2=\"Orkney Islands Local Authority\"),$F130=1),0,IF(AND(OR(Calculations!$E$2=\"Shetland Health Board\",Calculations!$E$2=\"Western Isles Health Board\",Calculations!$E$2=\"Shetland Islands Local Authority\",Calculations!$E$2=\"Eilean Siar Local Authority\"),OR($F130=1,$F130=5)),0,new_ci(VALUE(LEFT(Options!$B$14,2)),$C130,$E130,$F130,2016,$I130/10+$J130/10,1,$H130/10,$G130*$H130/10,RateRatios_airpollution!$E130)*10))","v":653.29096284100001},{"$f":"IF(AND(OR(Calculations!$E$2=\"Orkney Health Board\",Calculations!$E$2=\"Orkney Islands Local Authority\"),$F130=1),0,IF(AND(OR(Calculations!$E$2=\"Shetland Health Board\",Calculations!$E$2=\"Western Isles Health Board\",Calculations!$E$2=\"Shetland Islands Local Authority\",Calculations!$E$2=\"Eilean Siar Local Authority\"),OR($F130=1,$F130=5)),0,new_yllv2(VALUE(LEFT(Options!$B$14,2)),$C130,$D130,$E130,$F130,2016,$I130/10,1,$H130/10,$G130*$H130/10,RateRatios_airpollution!$E130)*10))","v":9734.0890673720005},{"$f":"IF(AND(OR(Calculations!$E$2=\"Orkney Health Board\",Calculations!$E$2=\"Orkney Islands Local Authority\"),$F130=1),0,IF(AND(OR(Calculations!$E$2=\"Shetland Health Board\",Calculations!$E$2=\"Western Isles Health Board\",Calculations!$E$2=\"Shetland Islands Local Authority\",Calculations!$E$2=\"Eilean Siar Local Authority\"),OR($F130=1,$F130=5)),0,new_yllv2(VALUE(LEFT(Options!$B$14,2)),$C130,$D130,$E130,$F130,2016,$I130/10+$J130/10,1,$H130/10,$G130*$H130/10,RateRatios_airpollution!$E130)*10))","v":9734.0353463310003},{"$f":"IF(AND(OR(Calculations!$E$2=\"Orkney Health Board\",Calculations!$E$2=\"Orkney Islands Local Authority\"),$F130=1),0,IF(AND(OR(Calculations!$E$2=\"Shetland Health Board\",Calculations!$E$2=\"Western Isles Health Board\",Calculations!$E$2=\"Shetland Islands Local Authority\",Calculations!$E$2=\"Eilean Siar Local Authority\"),OR($F130=1,$F130=5)),0,hosp_count(VALUE(LEFT(Options!$B$14,2)),$C130,$E130,$F130,2016,$I130/10,1,$H130/10,$G130*$H130/10, RateRatios_airpollution!$F130, RateRatios_airpollution!$E130)*10))","v":13513.138667486},{"$f":"IF(AND(OR(Calculations!$E$2=\"Orkney Health Board\",Calculations!$E$2=\"Orkney Islands Local Authority\"),$F130=1),0,IF(AND(OR(Calculations!$E$2=\"Shetland Health Board\",Calculations!$E$2=\"Western Isles Health Board\",Calculations!$E$2=\"Shetland Islands Local Authority\",Calculations!$E$2=\"Eilean Siar Local Authority\"),OR($F130=1,$F130=5)),0,hosp_count(VALUE(LEFT(Options!$B$14,2)),$C130,$E130,$F130,2016,$I130/10+$J130/10,1,$H130/10,$G130*$H130/10, RateRatios_airpollution!$F130, RateRatios_airpollution!$E130)*10))","v":13513.138667486},{"$f":"IF(AND(OR(Calculations!$E$2=\"Orkney Health Board\",Calculations!$E$2=\"Orkney Islands Local Authority\"),$F130=1),0,IF(AND(OR(Calculations!$E$2=\"Shetland Health Board\",Calculations!$E$2=\"Western Isles Health Board\",Calculations!$E$2=\"Shetland Islands Local Authority\",Calculations!$E$2=\"Eilean Siar Local Authority\"),OR($F130=1,$F130=5)),0,prem_mort(VALUE(LEFT(Options!$B$14,2)),$C130,$E130,$F130,2016,$I130/10,1,$H130/10,$G130*$H130/10,RateRatios_airpollution!$E130)*10))","v":653.29456828000002},{"$f":"IF(AND(OR(Calculations!$E$2=\"Orkney Health Board\",Calculations!$E$2=\"Orkney Islands Local Authority\"),$F130=1),0,IF(AND(OR(Calculations!$E$2=\"Shetland Health Board\",Calculations!$E$2=\"Western Isles Health Board\",Calculations!$E$2=\"Shetland Islands Local Authority\",Calculations!$E$2=\"Eilean Siar Local Authority\"),OR($F130=1,$F130=5)),0,prem_mort(VALUE(LEFT(Options!$B$14,2)),$C130,$E130,$F130,2016,$I130/10+$J130/10,1,$H130/10,$G130*$H130/10,RateRatios_airpollution!$E130)*10))","v":653.29096284100001},653.29456828000002,653.12750670799983,9734.0890673720005,9731.5998499500001,13513.138667486,13509.573646483997,653.29456828000002,653.12750670799983,2197.6471499983181,2197.0851640192413,32744.94253497494,32736.568943889393,45457.458429999664,45445.465894587403,2197.6471499983181,2197.0851640192413,12087059.324990749,12083968.402105827,180097183.94236216,180051129.19139168,250016021.36499816,249950062.42023072,12087059.324990749,12083968.402105827,5500]
[null,"Male 70-74",71.891098,84.341099999999997,"male",2,1,{"$f":"HLOOKUP(Calculations!$E$2,'Population 2016'!$C$3:$BC$249,'Population 2016'!BD131,FALSE)","v":22052},0,{"$f":"HLOOKUP(Calculations!$E$2,Pop2016_in_settlements!$C$3:$BC$249,Pop2016_in_settlements!$BD131,FALSE)","v":13427},{"$f":"IF(AND(OR(Calculations!$E$2=\"Orkney Health Board\",Calculations!$E$2=\"Orkney Islands Local Authority\"),$F131=1),0,IF(AND(OR(Calculations!$E$2=\"Shetland Health Board\",Calculations!$E$2=\"Western Isles Health Board\",Calculations!$E$2=\"Shetland Islands Local Authority\",Calculations!$E$2=\"Eilean Siar Local Authority\"),OR($F131=1,$F131=5)),0,new_ci(VALUE(LEFT(Options!$B$14,2)),$C131,$E131,$F131,2016,$I131/10,1,$H131/10,$G131*$H131/10,RateRatios_accidents!$B$5)*10))","v":694.824271039},{"$f":"IF(AND(OR(Calculations!$E$2=\"Orkney Health Board\",Calculations!$E$2=\"Orkney Islands Local Authority\"),$F131=1),0,IF(AND(OR(Calculations!$E$2=\"Shetland Health Board\",Calculations!$E$2=\"Western Isles Health Board\",Calculations!$E$2=\"Shetland Islands Local Authority\",Calculations!$E$2=\"Eilean Siar Local Authority\"),OR($F131=1,$F131=5)),0,new_ci(VALUE(LEFT(Options!$B$14,2)),$C131,$E131,$F131,2016,$I131/10+$J131/10,1,$H131/10,$G131*$H131/10,RateRatios_accidents!$B$5)*10))","v":694.65773864300002},{"$f":"IF(AND(OR(Calculations!$E$2=\"Orkney Health Board\",Calculations!$E$2=\"Orkney Islands Local Authority\"),$F131=1),0,IF(AND(OR(Calculations!$E$2=\"Shetland Health Board\",Calculations!$E$2=\"Western Isles Health Board\",Calculations!$E$2=\"Shetland Islands Local Authority\",Calculations!$E$2=\"Eilean Siar Local Authority\"),OR($F131=1,$F131=5)),0,new_yllv2(VALUE(LEFT(Options!$B$14,2)),$C131,$D131,$E131,$F131,2016,$I131/10,1,$H131/10,$G131*$H131/10,RateRatios_accidents!$B$5)*10))","v":7955.7392930449996},{"$f":"IF(AND(OR(Calculations!$E$2=\"Orkney Health Board\",Calculations!$E$2=\"Orkney Islands Local Authority\"),$F131=1),0,IF(AND(OR(Calculations!$E$2=\"Shetland Health Board\",Calculations!$E$2=\"Western Isles Health Board\",Calculations!$E$2=\"Shetland Islands Local Authority\",Calculations!$E$2=\"Eilean Siar Local Authority\"),OR($F131=1,$F131=5)),0,new_yllv2(VALUE(LEFT(Options!$B$14,2)),$C131,$D131,$E131,$F131,2016,$I131/10+$J131/10,1,$H131/10,$G131*$H131/10,RateRatios_accidents!$B$5)*10))","v":7953.8324967779999},{"$f":"IF(AND(OR(Calculations!$E$2=\"Orkney Health Board\",Calculations!$E$2=\"Orkney Islands Local Authority\"),$F131=1),0,IF(AND(OR(Calculations!$E$2=\"Shetland Health Board\",Calculations!$E$2=\"Western Isles Health Board\",Calculations!$E$2=\"Shetland Islands Local Authority\",Calculations!$E$2=\"Eilean Siar Local Authority\"),OR($F131=1,$F131=5)),0,hosp_count(VALUE(LEFT(Options!$B$14,2)),$C131,$E131,$F131,2016,$I131/10,1,$H131/10,$G131*$H131/10, RateRatios_accidents!$B$4, RateRatios_accidents!$B$5)*10))","v":11901.790057319999},{"$f":"IF(AND(OR(Calculations!$E$2=\"Orkney Health Board\",Calculations!$E$2=\"Orkney Islands Local Authority\"),$F131=1),0,IF(AND(OR(Calculations!$E$2=\"Shetland Health Board\",Calculations!$E$2=\"Western Isles Health Board\",Calculations!$E$2=\"Shetland Islands Local Authority\",Calculations!$E$2=\"Eilean Siar Local Authority\"),OR($F131=1,$F131=5)),0,hosp_count(VALUE(LEFT(Options!$B$14,2)),$C131,$E131,$F131,2016,$I131/10+$J131/10,1,$H131/10,$G131*$H131/10, RateRatios_accidents!$B$4, RateRatios_accidents!$B$5)*10))","v":11898.891357340999},{"$f":"IF(AND(OR(Calculations!$E$2=\"Orkney Health Board\",Calculations!$E$2=\"Orkney Islands Local Authority\"),$F131=1),0,IF(AND(OR(Calculations!$E$2=\"Shetland Health Board\",Calculations!$E$2=\"Western Isles Health Board\",Calculations!$E$2=\"Shetland Islands Local Authority\",Calculations!$E$2=\"Eilean Siar Local Authority\"),OR($F131=1,$F131=5)),0,prem_mort(VALUE(LEFT(Options!$B$14,2)),$C131,$E131,$F131,2016,$I131/10,1,$H131/10,$G131*$H131/10,RateRatios_accidents!$B$5)*10))","v":694.824271039},{"$f":"IF(AND(OR(Calculations!$E$2=\"Orkney Health Board\",Calculations!$E$2=\"Orkney Islands Local Authority\"),$F131=1),0,IF(AND(OR(Calculations!$E$2=\"Shetland Health Board\",Calculations!$E$2=\"Western Isles Health Board\",Calculations!$E$2=\"Shetland Islands Local Authority\",Calculations!$E$2=\"Eilean Siar Local Authority\"),OR($F131=1,$F131=5)),0,prem_mort(VALUE(LEFT(Options!$B$14,2)),$C131,$E131,$F131,2016,$I131/10+$J131/10,1,$H131/10,$G131*$H131/10,RateRatios_accidents!$B$5)*10))","v":694.65773864300002},null,{"$f":"IF(AND(OR(Calculations!$E$2=\"Orkney Health Board\",Calculations!$E$2=\"Orkney Islands Local Authority\"),$F131=1),0,IF(AND(OR(Calculations!$E$2=\"Shetland Health Board\",Calculations!$E$2=\"Western Isles Health Board\",Calculations!$E$2=\"Shetland Islands Local Authority\",Calculations!$E$2=\"Eilean Siar Local Authority\"),OR($F131=1,$F131=5)),0,new_ci(VALUE(LEFT(Options!$B$14,2)),$C131,$E131,$F131,2016,$I131/10,1,$H131/10,$G131*$H131/10,RateRatios_airpollution!$C131)*10))","v":694.824271039},{"$f":"IF(AND(OR(Calculations!$E$2=\"Orkney Health Board\",Calculations!$E$2=\"Orkney Islands Local Authority\"),$F131=1),0,IF(AND(OR(Calculations!$E$2=\"Shetland Health Board\",Calculations!$E$2=\"Western Isles Health Board\",Calculations!$E$2=\"Shetland Islands Local Authority\",Calculations!$E$2=\"Eilean Siar Local Authority\"),OR($F131=1,$F131=5)),0,new_ci(VALUE(LEFT(Options!$B$14,2)),$C131,$E131,$F131,2016,$I131/10+$J131/10,1,$H131/10,$G131*$H131/10,RateRatios_airpollution!$C131)*10))","v":694.81583216900003},{"$f":"IF(AND(OR(Calculations!$E$2=\"Orkney Health Board\",Calculations!$E$2=\"Orkney Islands Local Authority\"),$F131=1),0,IF(AND(OR(Calculations!$E$2=\"Shetland Health Board\",Calculations!$E$2=\"Western Isles Health Board\",Calculations!$E$2=\"Shetland Islands Local Authority\",Calculations!$E$2=\"Eilean Siar Local Authority\"),OR($F131=1,$F131=5)),0,new_yllv2(VALUE(LEFT(Options!$B$14,2)),$C131,$D131,$E131,$F131,2016,$I131/10,1,$H131/10,$G131*$H131/10,RateRatios_airpollution!$C131)*10))","v":7955.7392930449996},{"$f":"IF(AND(OR(Calculations!$E$2=\"Orkney Health Board\",Calculations!$E$2=\"Orkney Islands Local Authority\"),$F131=1),0,IF(AND(OR(Calculations!$E$2=\"Shetland Health Board\",Calculations!$E$2=\"Western Isles Health Board\",Calculations!$E$2=\"Shetland Islands Local Authority\",Calculations!$E$2=\"Eilean Siar Local Authority\"),OR($F131=1,$F131=5)),0,new_yllv2(VALUE(LEFT(Options!$B$14,2)),$C131,$D131,$E131,$F131,2016,$I131/10+$J131/10,1,$H131/10,$G131*$H131/10,RateRatios_airpollution!$C131)*10))","v":7955.6426679670003},{"$f":"IF(AND(OR(Calculations!$E$2=\"Orkney Health Board\",Calculations!$E$2=\"Orkney Islands Local Authority\"),$F131=1),0,IF(AND(OR(Calculations!$E$2=\"Shetland Health Board\",Calculations!$E$2=\"Western Isles Health Board\",Calculations!$E$2=\"Shetland Islands Local Authority\",Calculations!$E$2=\"Eilean Siar Local Authority\"),OR($F131=1,$F131=5)),0,hosp_count(VALUE(LEFT(Options!$B$14,2)),$C131,$E131,$F131,2016,$I131/10,1,$H131/10,$G131*$H131/10, RateRatios_airpollution!$D131, RateRatios_airpollution!$C131)*10))","v":11901.790057319999},{"$f":"IF(AND(OR(Calculations!$E$2=\"Orkney Health Board\",Calculations!$E$2=\"Orkney Islands Local Authority\"),$F131=1),0,IF(AND(OR(Calculations!$E$2=\"Shetland Health Board\",Calculations!$E$2=\"Western Isles Health Board\",Calculations!$E$2=\"Shetland Islands Local Authority\",Calculations!$E$2=\"Eilean Siar Local Authority\"),OR($F131=1,$F131=5)),0,hosp_count(VALUE(LEFT(Options!$B$14,2)),$C131,$E131,$F131,2016,$I131/10+$J131/10,1,$H131/10,$G131*$H131/10, RateRatios_airpollution!$D131, RateRatios_airpollution!$C131)*10))","v":11901.513330877999},{"$f":"IF(AND(OR(Calculations!$E$2=\"Orkney Health Board\",Calculations!$E$2=\"Orkney Islands Local Authority\"),$F131=1),0,IF(AND(OR(Calculations!$E$2=\"Shetland Health Board\",Calculations!$E$2=\"Western Isles Health Board\",Calculations!$E$2=\"Shetland Islands Local Authority\",Calculations!$E$2=\"Eilean Siar Local Authority\"),OR($F131=1,$F131=5)),0,prem_mort(VALUE(LEFT(Options!$B$14,2)),$C131,$E131,$F131,2016,$I131/10,1,$H131/10,$G131*$H131/10,RateRatios_airpollution!$C131)*10))","v":694.824271039},{"$f":"IF(AND(OR(Calculations!$E$2=\"Orkney Health Board\",Calculations!$E$2=\"Orkney Islands Local Authority\"),$F131=1),0,IF(AND(OR(Calculations!$E$2=\"Shetland Health Board\",Calculations!$E$2=\"Western Isles Health Board\",Calculations!$E$2=\"Shetland Islands Local Authority\",Calculations!$E$2=\"Eilean Siar Local Authority\"),OR($F131=1,$F131=5)),0,prem_mort(VALUE(LEFT(Options!$B$14,2)),$C131,$E131,$F131,2016,$I131/10+$J131/10,1,$H131/10,$G131*$H131/10,RateRatios_airpollution!$C131)*10))","v":694.81583216900003},null,{"$f":"IF(AND(OR(Calculations!$E$2=\"Orkney Health Board\",Calculations!$E$2=\"Orkney Islands Local Authority\"),$F131=1),0,IF(AND(OR(Calculations!$E$2=\"Shetland Health Board\",Calculations!$E$2=\"Western Isles Health Board\",Calculations!$E$2=\"Shetland Islands Local Authority\",Calculations!$E$2=\"Eilean Siar Local Authority\"),OR($F131=1,$F131=5)),0,new_ci(VALUE(LEFT(Options!$B$14,2)),$C131,$E131,$F131,2016,$I131/10,1,$H131/10,$G131*$H131/10,RateRatios_airpollution!$E131)*10))","v":694.824271039},{"$f":"IF(AND(OR(Calculations!$E$2=\"Orkney Health Board\",Calculations!$E$2=\"Orkney Islands Local Authority\"),$F131=1),0,IF(AND(OR(Calculations!$E$2=\"Shetland Health Board\",Calculations!$E$2=\"Western Isles Health Board\",Calculations!$E$2=\"Shetland Islands Local Authority\",Calculations!$E$2=\"Eilean Siar Local Authority\"),OR($F131=1,$F131=5)),0,new_ci(VALUE(LEFT(Options!$B$14,2)),$C131,$E131,$F131,2016,$I131/10+$J131/10,1,$H131/10,$G131*$H131/10,RateRatios_airpollution!$E131)*10))","v":694.82041883199997},{"$f":"IF(AND(OR(Calculations!$E$2=\"Orkney Health Board\",Calculations!$E$2=\"Orkney Islands Local Authority\"),$F131=1),0,IF(AND(OR(Calculations!$E$2=\"Shetland Health Board\",Calculations!$E$2=\"Western Isles Health Board\",Calculations!$E$2=\"Shetland Islands Local Authority\",Calculations!$E$2=\"Eilean Siar Local Authority\"),OR($F131=1,$F131=5)),0,new_yllv2(VALUE(LEFT(Options!$B$14,2)),$C131,$D131,$E131,$F131,2016,$I131/10,1,$H131/10,$G131*$H131/10,RateRatios_airpollution!$E131)*10))","v":7955.7392930449996},{"$f":"IF(AND(OR(Calculations!$E$2=\"Orkney Health Board\",Calculations!$E$2=\"Orkney Islands Local Authority\"),$F131=1),0,IF(AND(OR(Calculations!$E$2=\"Shetland Health Board\",Calculations!$E$2=\"Western Isles Health Board\",Calculations!$E$2=\"Shetland Islands Local Authority\",Calculations!$E$2=\"Eilean Siar Local Authority\"),OR($F131=1,$F131=5)),0,new_yllv2(VALUE(LEFT(Options!$B$14,2)),$C131,$D131,$E131,$F131,2016,$I131/10+$J131/10,1,$H131/10,$G131*$H131/10,RateRatios_airpollution!$E131)*10))","v":7955.6951852669999},{"$f":"IF(AND(OR(Calculations!$E$2=\"Orkney Health Board\",Calculations!$E$2=\"Orkney Islands Local Authority\"),$F131=1),0,IF(AND(OR(Calculations!$E$2=\"Shetland Health Board\",Calculations!$E$2=\"Western Isles Health Board\",Calculations!$E$2=\"Shetland Islands Local Authority\",Calculations!$E$2=\"Eilean Siar Local Authority\"),OR($F131=1,$F131=5)),0,hosp_count(VALUE(LEFT(Options!$B$14,2)),$C131,$E131,$F131,2016,$I131/10,1,$H131/10,$G131*$H131/10, RateRatios_airpollution!$F131, RateRatios_airpollution!$E131)*10))","v":11901.790057319999},{"$f":"IF(AND(OR(Calculations!$E$2=\"Orkney Health Board\",Calculations!$E$2=\"Orkney Islands Local Authority\"),$F131=1),0,IF(AND(OR(Calculations!$E$2=\"Shetland Health Board\",Calculations!$E$2=\"Western Isles Health Board\",Calculations!$E$2=\"Shetland Islands Local Authority\",Calculations!$E$2=\"Eilean Siar Local Authority\"),OR($F131=1,$F131=5)),0,hosp_count(VALUE(LEFT(Options!$B$14,2)),$C131,$E131,$F131,2016,$I131/10+$J131/10,1,$H131/10,$G131*$H131/10, RateRatios_airpollution!$F131, RateRatios_airpollution!$E131)*10))","v":11901.790057319999},{"$f":"IF(AND(OR(Calculations!$E$2=\"Orkney Health Board\",Calculations!$E$2=\"Orkney Islands Local Authority\"),$F131=1),0,IF(AND(OR(Calculations!$E$2=\"Shetland Health Board\",Calculations!$E$2=\"Western Isles Health Board\",Calculations!$E$2=\"Shetland Islands Local Authority\",Calculations!$E$2=\"Eilean Siar Local Authority\"),OR($F131=1,$F131=5)),0,prem_mort(VALUE(LEFT(Options!$B$14,2)),$C131,$E131,$F131,2016,$I131/10,1,$H131/10,$G131*$H131/10,RateRatios_airpollution!$E131)*10))","v":694.824271039},{"$f":"IF(AND(OR(Calculations!$E$2=\"Orkney Health Board\",Calculations!$E$2=\"Orkney Islands Local Authority\"),$F131=1),0,IF(AND(OR(Calculations!$E$2=\"Shetland Health Board\",Calculations!$E$2=\"Western Isles Health Board\",Calculations!$E$2=\"Shetland Islands Local Authority\",Calculations!$E$2=\"Eilean Siar Local Authority\"),OR($F131=1,$F131=5)),0,prem_mort(VALUE(LEFT(Options!$B$14,2)),$C131,$E131,$F131,2016,$I131/10+$J131/10,1,$H131/10,$G131*$H131/10,RateRatios_airpollution!$E131)*10))","v":694.82041883199997},694.824271039,694.64544756600003,7955.7392930449996,7953.691763922001,11901.790057319999,11898.614630898999,694.824271039,694.64544756600003,3150.8446900009071,3150.0337727462365,36077.178002199347,36067.892998013791,53971.476769998182,53957.077049242696,3150.8446900009071,3150.0337727462365,15754223.450004535,15750168.863731183,180385890.01099673,180339464.99006894,269857383.8499909,269785385.2462135,15754223.450004535,15750168.863731183,5000]
[null,"Male 75-79",76.907700000000006,86.357700000000008,"male",2,1,{"$f":"HLOOKUP(Calculations!$E$2,'Population 2016'!$C$3:$BC$249,'Population 2016'!BD132,FALSE)","v":16695},0,{"$f":"HLOOKUP(Calculations!$E$2,Pop2016_in_settlements!$C$3:$BC$249,Pop2016_in_settlements!$BD132,FALSE)","v":10356},{"$f":"IF(AND(OR(Calculations!$E$2=\"Orkney Health Board\",Calculations!$E$2=\"Orkney Islands Local Authority\"),$F132=1),0,IF(AND(OR(Calculations!$E$2=\"Shetland Health Board\",Calculations!$E$2=\"Western Isles Health Board\",Calculations!$E$2=\"Shetland Islands Local Authority\",Calculations!$E$2=\"Eilean Siar Local Authority\"),OR($F132=1,$F132=5)),0,new_ci(VALUE(LEFT(Options!$B$14,2)),$C132,$E132,$F132,2016,$I132/10,1,$H132/10,$G132*$H132/10,RateRatios_accidents!$B$5)*10))","v":762.63883907399997},{"$f":"IF(AND(OR(Calculations!$E$2=\"Orkney Health Board\",Calculations!$E$2=\"Orkney Islands Local Authority\"),$F132=1),0,IF(AND(OR(Calculations!$E$2=\"Shetland Health Board\",Calculations!$E$2=\"Western Isles Health Board\",Calculations!$E$2=\"Shetland Islands Local Authority\",Calculations!$E$2=\"Eilean Siar Local Authority\"),OR($F132=1,$F132=5)),0,new_ci(VALUE(LEFT(Options!$B$14,2)),$C132,$E132,$F132,2016,$I132/10+$J132/10,1,$H132/10,$G132*$H132/10,RateRatios_accidents!$B$5)*10))","v":762.45399897200002},{"$f":"IF(AND(OR(Calculations!$E$2=\"Orkney Health Board\",Calculations!$E$2=\"Orkney Islands Local Authority\"),$F132=1),0,IF(AND(OR(Calculations!$E$2=\"Shetland Health Board\",Calculations!$E$2=\"Western Isles Health Board\",Calculations!$E$2=\"Shetland Islands Local Authority\",Calculations!$E$2=\"Eilean Siar Local Authority\"),OR($F132=1,$F132=5)),0,new_yllv2(VALUE(LEFT(Options!$B$14,2)),$C132,$D132,$E132,$F132,2016,$I132/10,1,$H132/10,$G132*$H132/10,RateRatios_accidents!$B$5)*10))","v":6444.2981901749999},{"$f":"IF(AND(OR(Calculations!$E$2=\"Orkney Health Board\",Calculations!$E$2=\"Orkney Islands Local Authority\"),$F132=1),0,IF(AND(OR(Calculations!$E$2=\"Shetland Health Board\",Calculations!$E$2=\"Western Isles Health Board\",Calculations!$E$2=\"Shetland Islands Local Authority\",Calculations!$E$2=\"Eilean Siar Local Authority\"),OR($F132=1,$F132=5)),0,new_yllv2(VALUE(LEFT(Options!$B$14,2)),$C132,$D132,$E132,$F132,2016,$I132/10+$J132/10,1,$H132/10,$G132*$H132/10,RateRatios_accidents!$B$5)*10))","v":6442.736291313},{"$f":"IF(AND(OR(Calculations!$E$2=\"Orkney Health Board\",Calculations!$E$2=\"Orkney Islands Local Authority\"),$F132=1),0,IF(AND(OR(Calculations!$E$2=\"Shetland Health Board\",Calculations!$E$2=\"Western Isles Health Board\",Calculations!$E$2=\"Shetland Islands Local Authority\",Calculations!$E$2=\"Eilean Siar Local Authority\"),OR($F132=1,$F132=5)),0,hosp_count(VALUE(LEFT(Options!$B$14,2)),$C132,$E132,$F132,2016,$I132/10,1,$H132/10,$G132*$H132/10, RateRatios_accidents!$B$4, RateRatios_accidents!$B$5)*10))","v":10766.7212648},{"$f":"IF(AND(OR(Calculations!$E$2=\"Orkney Health Board\",Calculations!$E$2=\"Orkney Islands Local Authority\"),$F132=1),0,IF(AND(OR(Calculations!$E$2=\"Shetland Health Board\",Calculations!$E$2=\"Western Isles Health Board\",Calculations!$E$2=\"Shetland Islands Local Authority\",Calculations!$E$2=\"Eilean Siar Local Authority\"),OR($F132=1,$F132=5)),0,hosp_count(VALUE(LEFT(Options!$B$14,2)),$C132,$E132,$F132,2016,$I132/10+$J132/10,1,$H132/10,$G132*$H132/10, RateRatios_accidents!$B$4, RateRatios_accidents!$B$5)*10))","v":10764.049802043},{"$f":"IF(AND(OR(Calculations!$E$2=\"Orkney Health Board\",Calculations!$E$2=\"Orkney Islands Local Authority\"),$F132=1),0,IF(AND(OR(Calculations!$E$2=\"Shetland Health Board\",Calculations!$E$2=\"Western Isles Health Board\",Calculations!$E$2=\"Shetland Islands Local Authority\",Calculations!$E$2=\"Eilean Siar Local Authority\"),OR($F132=1,$F132=5)),0,prem_mort(VALUE(LEFT(Options!$B$14,2)),$C132,$E132,$F132,2016,$I132/10,1,$H132/10,$G132*$H132/10,RateRatios_accidents!$B$5)*10))","v":0},{"$f":"IF(AND(OR(Calculations!$E$2=\"Orkney Health Board\",Calculations!$E$2=\"Orkney Islands Local Authority\"),$F132=1),0,IF(AND(OR(Calculations!$E$2=\"Shetland Health Board\",Calculations!$E$2=\"Western Isles Health Board\",Calculations!$E$2=\"Shetland Islands Local Authority\",Calculations!$E$2=\"Eilean Siar Local Authority\"),OR($F132=1,$F132=5)),0,prem_mort(VALUE(LEFT(Options!$B$14,2)),$C132,$E132,$F132,2016,$I132/10+$J132/10,1,$H132/10,$G132*$H132/10,RateRatios_accidents!$B$5)*10))","v":0},null,{"$f":"IF(AND(OR(Calculations!$E$2=\"Orkney Health Board\",Calculations!$E$2=\"Orkney Islands Local Authority\"),$F132=1),0,IF(AND(OR(Calculations!$E$2=\"Shetland Health Board\",Calculations!$E$2=\"Western Isles Health Board\",Calculations!$E$2=\"Shetland Islands Local Authority\",Calculations!$E$2=\"Eilean Siar Local Authority\"),OR($F132=1,$F132=5)),0,new_ci(VALUE(LEFT(Options!$B$14,2)),$C132,$E132,$F132,2016,$I132/10,1,$H132/10,$G132*$H132/10,RateRatios_airpollution!$C132)*10))","v":762.63883907399997},{"$f":"IF(AND(OR(Calculations!$E$2=\"Orkney Health Board\",Calculations!$E$2=\"Orkney Islands Local Authority\"),$F132=1),0,IF(AND(OR(Calculations!$E$2=\"Shetland Health Board\",Calculations!$E$2=\"Western Isles Health Board\",Calculations!$E$2=\"Shetland Islands Local Authority\",Calculations!$E$2=\"Eilean Siar Local Authority\"),OR($F132=1,$F132=5)),0,new_ci(VALUE(LEFT(Options!$B$14,2)),$C132,$E132,$F132,2016,$I132/10+$J132/10,1,$H132/10,$G132*$H132/10,RateRatios_airpollution!$C132)*10))","v":762.62941615},{"$f":"IF(AND(OR(Calculations!$E$2=\"Orkney Health Board\",Calculations!$E$2=\"Orkney Islands Local Authority\"),$F132=1),0,IF(AND(OR(Calculations!$E$2=\"Shetland Health Board\",Calculations!$E$2=\"Western Isles Health Board\",Calculations!$E$2=\"Shetland Islands Local Authority\",Calculations!$E$2=\"Eilean Siar Local Authority\"),OR($F132=1,$F132=5)),0,new_yllv2(VALUE(LEFT(Options!$B$14,2)),$C132,$D132,$E132,$F132,2016,$I132/10,1,$H132/10,$G132*$H132/10,RateRatios_airpollution!$C132)*10))","v":6444.2981901749999},{"$f":"IF(AND(OR(Calculations!$E$2=\"Orkney Health Board\",Calculations!$E$2=\"Orkney Islands Local Authority\"),$F132=1),0,IF(AND(OR(Calculations!$E$2=\"Shetland Health Board\",Calculations!$E$2=\"Western Isles Health Board\",Calculations!$E$2=\"Shetland Islands Local Authority\",Calculations!$E$2=\"Eilean Siar Local Authority\"),OR($F132=1,$F132=5)),0,new_yllv2(VALUE(LEFT(Options!$B$14,2)),$C132,$D132,$E132,$F132,2016,$I132/10+$J132/10,1,$H132/10,$G132*$H132/10,RateRatios_airpollution!$C132)*10))","v":6444.2185664680001},{"$f":"IF(AND(OR(Calculations!$E$2=\"Orkney Health Board\",Calculations!$E$2=\"Orkney Islands Local Authority\"),$F132=1),0,IF(AND(OR(Calculations!$E$2=\"Shetland Health Board\",Calculations!$E$2=\"Western Isles Health Board\",Calculations!$E$2=\"Shetland Islands Local Authority\",Calculations!$E$2=\"Eilean Siar Local Authority\"),OR($F132=1,$F132=5)),0,hosp_count(VALUE(LEFT(Options!$B$14,2)),$C132,$E132,$F132,2016,$I132/10,1,$H132/10,$G132*$H132/10, RateRatios_airpollution!$D132, RateRatios_airpollution!$C132)*10))","v":10766.7212648},{"$f":"IF(AND(OR(Calculations!$E$2=\"Orkney Health Board\",Calculations!$E$2=\"Orkney Islands Local Authority\"),$F132=1),0,IF(AND(OR(Calculations!$E$2=\"Shetland Health Board\",Calculations!$E$2=\"Western Isles Health Board\",Calculations!$E$2=\"Shetland Islands Local Authority\",Calculations!$E$2=\"Eilean Siar Local Authority\"),OR($F132=1,$F132=5)),0,hosp_count(VALUE(LEFT(Options!$B$14,2)),$C132,$E132,$F132,2016,$I132/10+$J132/10,1,$H132/10,$G132*$H132/10, RateRatios_airpollution!$D132, RateRatios_airpollution!$C132)*10))","v":10766.464719754},{"$f":"IF(AND(OR(Calculations!$E$2=\"Orkney Health Board\",Calculations!$E$2=\"Orkney Islands Local Authority\"),$F132=1),0,IF(AND(OR(Calculations!$E$2=\"Shetland Health Board\",Calculations!$E$2=\"Western Isles Health Board\",Calculations!$E$2=\"Shetland Islands Local Authority\",Calculations!$E$2=\"Eilean Siar Local Authority\"),OR($F132=1,$F132=5)),0,prem_mort(VALUE(LEFT(Options!$B$14,2)),$C132,$E132,$F132,2016,$I132/10,1,$H132/10,$G132*$H132/10,RateRatios_airpollution!$C132)*10))","v":0},{"$f":"IF(AND(OR(Calculations!$E$2=\"Orkney Health Board\",Calculations!$E$2=\"Orkney Islands Local Authority\"),$F132=1),0,IF(AND(OR(Calculations!$E$2=\"Shetland Health Board\",Calculations!$E$2=\"Western Isles Health Board\",Calculations!$E$2=\"Shetland Islands Local Authority\",Calculations!$E$2=\"Eilean Siar Local Authority\"),OR($F132=1,$F132=5)),0,prem_mort(VALUE(LEFT(Options!$B$14,2)),$C132,$E132,$F132,2016,$I132/10+$J132/10,1,$H132/10,$G132*$H132/10,RateRatios_airpollution!$C132)*10))","v":0},null,{"$f":"IF(AND(OR(Calculations!$E$2=\"Orkney Health Board\",Calculations!$E$2=\"Orkney Islands Local Authority\"),$F132=1),0,IF(AND(OR(Calculations!$E$2=\"Shetland Health Board\",Calculations!$E$2=\"Western Isles Health Board\",Calculations!$E$2=\"Shetland Islands Local Authority\",Calculations!$E$2=\"Eilean Siar Local Authority\"),OR($F132=1,$F132=5)),0,new_ci(VALUE(LEFT(Options!$B$14,2)),$C132,$E132,$F132,2016,$I132/10,1,$H132/10,$G132*$H132/10,RateRatios_airpollution!$E132)*10))","v":762.63883907399997},{"$f":"IF(AND(OR(Calculations!$E$2=\"Orkney Health Board\",Calculations!$E$2=\"Orkney Islands Local Authority\"),$F132=1),0,IF(AND(OR(Calculations!$E$2=\"Shetland Health Board\",Calculations!$E$2=\"Western Isles Health Board\",Calculations!$E$2=\"Shetland Islands Local Authority\",Calculations!$E$2=\"Eilean Siar Local Authority\"),OR($F132=1,$F132=5)),0,new_ci(VALUE(LEFT(Options!$B$14,2)),$C132,$E132,$F132,2016,$I132/10+$J132/10,1,$H132/10,$G132*$H132/10,RateRatios_airpollution!$E132)*10))","v":762.63453926300008},{"$f":"IF(AND(OR(Calculations!$E$2=\"Orkney Health Board\",Calculations!$E$2=\"Orkney Islands Local Authority\"),$F132=1),0,IF(AND(OR(Calculations!$E$2=\"Shetland Health Board\",Calculations!$E$2=\"Western Isles Health Board\",Calculations!$E$2=\"Shetland Islands Local Authority\",Calculations!$E$2=\"Eilean Siar Local Authority\"),OR($F132=1,$F132=5)),0,new_yllv2(VALUE(LEFT(Options!$B$14,2)),$C132,$D132,$E132,$F132,2016,$I132/10,1,$H132/10,$G132*$H132/10,RateRatios_airpollution!$E132)*10))","v":6444.2981901749999},{"$f":"IF(AND(OR(Calculations!$E$2=\"Orkney Health Board\",Calculations!$E$2=\"Orkney Islands Local Authority\"),$F132=1),0,IF(AND(OR(Calculations!$E$2=\"Shetland Health Board\",Calculations!$E$2=\"Western Isles Health Board\",Calculations!$E$2=\"Shetland Islands Local Authority\",Calculations!$E$2=\"Eilean Siar Local Authority\"),OR($F132=1,$F132=5)),0,new_yllv2(VALUE(LEFT(Options!$B$14,2)),$C132,$D132,$E132,$F132,2016,$I132/10+$J132/10,1,$H132/10,$G132*$H132/10,RateRatios_airpollution!$E132)*10))","v":6444.2618567720001},{"$f":"IF(AND(OR(Calculations!$E$2=\"Orkney Health Board\",Calculations!$E$2=\"Orkney Islands Local Authority\"),$F132=1),0,IF(AND(OR(Calculations!$E$2=\"Shetland Health Board\",Calculations!$E$2=\"Western Isles Health Board\",Calculations!$E$2=\"Shetland Islands Local Authority\",Calculations!$E$2=\"Eilean Siar Local Authority\"),OR($F132=1,$F132=5)),0,hosp_count(VALUE(LEFT(Options!$B$14,2)),$C132,$E132,$F132,2016,$I132/10,1,$H132/10,$G132*$H132/10, RateRatios_airpollution!$F132, RateRatios_airpollution!$E132)*10))","v":10766.7212648},{"$f":"IF(AND(OR(Calculations!$E$2=\"Orkney Health Board\",Calculations!$E$2=\"Orkney Islands Local Authority\"),$F132=1),0,IF(AND(OR(Calculations!$E$2=\"Shetland Health Board\",Calculations!$E$2=\"Western Isles Health Board\",Calculations!$E$2=\"Shetland Islands Local Authority\",Calculations!$E$2=\"Eilean Siar Local Authority\"),OR($F132=1,$F132=5)),0,hosp_count(VALUE(LEFT(Options!$B$14,2)),$C132,$E132,$F132,2016,$I132/10+$J132/10,1,$H132/10,$G132*$H132/10, RateRatios_airpollution!$F132, RateRatios_airpollution!$E132)*10))","v":10766.7212648},{"$f":"IF(AND(OR(Calculations!$E$2=\"Orkney Health Board\",Calculations!$E$2=\"Orkney Islands Local Authority\"),$F132=1),0,IF(AND(OR(Calculations!$E$2=\"Shetland Health Board\",Calculations!$E$2=\"Western Isles Health Board\",Calculations!$E$2=\"Shetland Islands Local Authority\",Calculations!$E$2=\"Eilean Siar Local Authority\"),OR($F132=1,$F132=5)),0,prem_mort(VALUE(LEFT(Options!$B$14,2)),$C132,$E132,$F132,2016,$I132/10,1,$H132/10,$G132*$H132/10,RateRatios_airpollution!$E132)*10))","v":0},{"$f":"IF(AND(OR(Calculations!$E$2=\"Orkney Health Board\",Calculations!$E$2=\"Orkney Islands Local Authority\"),$F132=1),0,IF(AND(OR(Calculations!$E$2=\"Shetland Health Board\",Calculations!$E$2=\"Western Isles Health Board\",Calculations!$E$2=\"Shetland Islands Local Authority\",Calculations!$E$2=\"Eilean Siar Local Authority\"),OR($F132=1,$F132=5)),0,prem_mort(VALUE(LEFT(Options!$B$14,2)),$C132,$E132,$F132,2016,$I132/10+$J132/10,1,$H132/10,$G132*$H132/10,RateRatios_airpollution!$E132)*10))","v":0},762.63883907399997,762.44027623700015,6444.2981901749999,6442.6203342030003,10766.7212648,10763.793256997,0,0,4568.0673200000001,4566.8779648817017,38600.168853998206,38590.118803252473,64490.693410002998,64473.155178179091,0,0,18272269.280000001,18267511.859526806,154400675.41599283,154360475.21300989,257962773.640012,257892620.71271637,0,0,4000]
[null,"Male 80-84",81.797089,88.627089999999995,"male",2,1,{"$f":"HLOOKUP(Calculations!$E$2,'Population 2016'!$C$3:$BC$249,'Population 2016'!BD133,FALSE)","v":11333},0,{"$f":"HLOOKUP(Calculations!$E$2,Pop2016_in_settlements!$C$3:$BC$249,Pop2016_in_settlements!$BD133,FALSE)","v":7208},{"$f":"IF(AND(OR(Calculations!$E$2=\"Orkney Health Board\",Calculations!$E$2=\"Orkney Islands Local Authority\"),$F133=1),0,IF(AND(OR(Calculations!$E$2=\"Shetland Health Board\",Calculations!$E$2=\"Western Isles Health Board\",Calculations!$E$2=\"Shetland Islands Local Authority\",Calculations!$E$2=\"Eilean Siar Local Authority\"),OR($F133=1,$F133=5)),0,new_ci(VALUE(LEFT(Options!$B$14,2)),$C133,$E133,$F133,2016,$I133/10,1,$H133/10,$G133*$H133/10,RateRatios_accidents!$B$5)*10))","v":741.14265064599999},{"$f":"IF(AND(OR(Calculations!$E$2=\"Orkney Health Board\",Calculations!$E$2=\"Orkney Islands Local Authority\"),$F133=1),0,IF(AND(OR(Calculations!$E$2=\"Shetland Health Board\",Calculations!$E$2=\"Western Isles Health Board\",Calculations!$E$2=\"Shetland Islands Local Authority\",Calculations!$E$2=\"Eilean Siar Local Authority\"),OR($F133=1,$F133=5)),0,new_ci(VALUE(LEFT(Options!$B$14,2)),$C133,$E133,$F133,2016,$I133/10+$J133/10,1,$H133/10,$G133*$H133/10,RateRatios_accidents!$B$5)*10))","v":740.96039997000003},{"$f":"IF(AND(OR(Calculations!$E$2=\"Orkney Health Board\",Calculations!$E$2=\"Orkney Islands Local Authority\"),$F133=1),0,IF(AND(OR(Calculations!$E$2=\"Shetland Health Board\",Calculations!$E$2=\"Western Isles Health Board\",Calculations!$E$2=\"Shetland Islands Local Authority\",Calculations!$E$2=\"Eilean Siar Local Authority\"),OR($F133=1,$F133=5)),0,new_yllv2(VALUE(LEFT(Options!$B$14,2)),$C133,$D133,$E133,$F133,2016,$I133/10,1,$H133/10,$G133*$H133/10,RateRatios_accidents!$B$5)*10))","v":4320.8623944089995},{"$f":"IF(AND(OR(Calculations!$E$2=\"Orkney Health Board\",Calculations!$E$2=\"Orkney Islands Local Authority\"),$F133=1),0,IF(AND(OR(Calculations!$E$2=\"Shetland Health Board\",Calculations!$E$2=\"Western Isles Health Board\",Calculations!$E$2=\"Shetland Islands Local Authority\",Calculations!$E$2=\"Eilean Siar Local Authority\"),OR($F133=1,$F133=5)),0,new_yllv2(VALUE(LEFT(Options!$B$14,2)),$C133,$D133,$E133,$F133,2016,$I133/10+$J133/10,1,$H133/10,$G133*$H133/10,RateRatios_accidents!$B$5)*10))","v":4319.7998727849999},{"$f":"IF(AND(OR(Calculations!$E$2=\"Orkney Health Board\",Calculations!$E$2=\"Orkney Islands Local Authority\"),$F133=1),0,IF(AND(OR(Calculations!$E$2=\"Shetland Health Board\",Calculations!$E$2=\"Western Isles Health Board\",Calculations!$E$2=\"Shetland Islands Local Authority\",Calculations!$E$2=\"Eilean Siar Local Authority\"),OR($F133=1,$F133=5)),0,hosp_count(VALUE(LEFT(Options!$B$14,2)),$C133,$E133,$F133,2016,$I133/10,1,$H133/10,$G133*$H133/10, RateRatios_accidents!$B$4, RateRatios_accidents!$B$5)*10))","v":8693.8800865899993},{"$f":"IF(AND(OR(Calculations!$E$2=\"Orkney Health Board\",Calculations!$E$2=\"Orkney Islands Local Authority\"),$F133=1),0,IF(AND(OR(Calculations!$E$2=\"Shetland Health Board\",Calculations!$E$2=\"Western Isles Health Board\",Calculations!$E$2=\"Shetland Islands Local Authority\",Calculations!$E$2=\"Eilean Siar Local Authority\"),OR($F133=1,$F133=5)),0,hosp_count(VALUE(LEFT(Options!$B$14,2)),$C133,$E133,$F133,2016,$I133/10+$J133/10,1,$H133/10,$G133*$H133/10, RateRatios_accidents!$B$4, RateRatios_accidents!$B$5)*10))","v":8691.668298094999},{"$f":"IF(AND(OR(Calculations!$E$2=\"Orkney Health Board\",Calculations!$E$2=\"Orkney Islands Local Authority\"),$F133=1),0,IF(AND(OR(Calculations!$E$2=\"Shetland Health Board\",Calculations!$E$2=\"Western Isles Health Board\",Calculations!$E$2=\"Shetland Islands Local Authority\",Calculations!$E$2=\"Eilean Siar Local Authority\"),OR($F133=1,$F133=5)),0,prem_mort(VALUE(LEFT(Options!$B$14,2)),$C133,$E133,$F133,2016,$I133/10,1,$H133/10,$G133*$H133/10,RateRatios_accidents!$B$5)*10))","v":0},{"$f":"IF(AND(OR(Calculations!$E$2=\"Orkney Health Board\",Calculations!$E$2=\"Orkney Islands Local Authority\"),$F133=1),0,IF(AND(OR(Calculations!$E$2=\"Shetland Health Board\",Calculations!$E$2=\"Western Isles Health Board\",Calculations!$E$2=\"Shetland Islands Local Authority\",Calculations!$E$2=\"Eilean Siar Local Authority\"),OR($F133=1,$F133=5)),0,prem_mort(VALUE(LEFT(Options!$B$14,2)),$C133,$E133,$F133,2016,$I133/10+$J133/10,1,$H133/10,$G133*$H133/10,RateRatios_accidents!$B$5)*10))","v":0},null,{"$f":"IF(AND(OR(Calculations!$E$2=\"Orkney Health Board\",Calculations!$E$2=\"Orkney Islands Local Authority\"),$F133=1),0,IF(AND(OR(Calculations!$E$2=\"Shetland Health Board\",Calculations!$E$2=\"Western Isles Health Board\",Calculations!$E$2=\"Shetland Islands Local Authority\",Calculations!$E$2=\"Eilean Siar Local Authority\"),OR($F133=1,$F133=5)),0,new_ci(VALUE(LEFT(Options!$B$14,2)),$C133,$E133,$F133,2016,$I133/10,1,$H133/10,$G133*$H133/10,RateRatios_airpollution!$C133)*10))","v":741.14265064599999},{"$f":"IF(AND(OR(Calculations!$E$2=\"Orkney Health Board\",Calculations!$E$2=\"Orkney Islands Local Authority\"),$F133=1),0,IF(AND(OR(Calculations!$E$2=\"Shetland Health Board\",Calculations!$E$2=\"Western Isles Health Board\",Calculations!$E$2=\"Shetland Islands Local Authority\",Calculations!$E$2=\"Eilean Siar Local Authority\"),OR($F133=1,$F133=5)),0,new_ci(VALUE(LEFT(Options!$B$14,2)),$C133,$E133,$F133,2016,$I133/10+$J133/10,1,$H133/10,$G133*$H133/10,RateRatios_airpollution!$C133)*10))","v":741.13330691499993},{"$f":"IF(AND(OR(Calculations!$E$2=\"Orkney Health Board\",Calculations!$E$2=\"Orkney Islands Local Authority\"),$F133=1),0,IF(AND(OR(Calculations!$E$2=\"Shetland Health Board\",Calculations!$E$2=\"Western Isles Health Board\",Calculations!$E$2=\"Shetland Islands Local Authority\",Calculations!$E$2=\"Eilean Siar Local Authority\"),OR($F133=1,$F133=5)),0,new_yllv2(VALUE(LEFT(Options!$B$14,2)),$C133,$D133,$E133,$F133,2016,$I133/10,1,$H133/10,$G133*$H133/10,RateRatios_airpollution!$C133)*10))","v":4320.8623944089995},{"$f":"IF(AND(OR(Calculations!$E$2=\"Orkney Health Board\",Calculations!$E$2=\"Orkney Islands Local Authority\"),$F133=1),0,IF(AND(OR(Calculations!$E$2=\"Shetland Health Board\",Calculations!$E$2=\"Western Isles Health Board\",Calculations!$E$2=\"Shetland Islands Local Authority\",Calculations!$E$2=\"Eilean Siar Local Authority\"),OR($F133=1,$F133=5)),0,new_yllv2(VALUE(LEFT(Options!$B$14,2)),$C133,$D133,$E133,$F133,2016,$I133/10+$J133/10,1,$H133/10,$G133*$H133/10,RateRatios_airpollution!$C133)*10))","v":4320.807920448},{"$f":"IF(AND(OR(Calculations!$E$2=\"Orkney Health Board\",Calculations!$E$2=\"Orkney Islands Local Authority\"),$F133=1),0,IF(AND(OR(Calculations!$E$2=\"Shetland Health Board\",Calculations!$E$2=\"Western Isles Health Board\",Calculations!$E$2=\"Shetland Islands Local Authority\",Calculations!$E$2=\"Eilean Siar Local Authority\"),OR($F133=1,$F133=5)),0,hosp_count(VALUE(LEFT(Options!$B$14,2)),$C133,$E133,$F133,2016,$I133/10,1,$H133/10,$G133*$H133/10, RateRatios_airpollution!$D133, RateRatios_airpollution!$C133)*10))","v":8693.8800865899993},{"$f":"IF(AND(OR(Calculations!$E$2=\"Orkney Health Board\",Calculations!$E$2=\"Orkney Islands Local Authority\"),$F133=1),0,IF(AND(OR(Calculations!$E$2=\"Shetland Health Board\",Calculations!$E$2=\"Western Isles Health Board\",Calculations!$E$2=\"Shetland Islands Local Authority\",Calculations!$E$2=\"Eilean Siar Local Authority\"),OR($F133=1,$F133=5)),0,hosp_count(VALUE(LEFT(Options!$B$14,2)),$C133,$E133,$F133,2016,$I133/10+$J133/10,1,$H133/10,$G133*$H133/10, RateRatios_airpollution!$D133, RateRatios_airpollution!$C133)*10))","v":8693.6664515619996},{"$f":"IF(AND(OR(Calculations!$E$2=\"Orkney Health Board\",Calculations!$E$2=\"Orkney Islands Local Authority\"),$F133=1),0,IF(AND(OR(Calculations!$E$2=\"Shetland Health Board\",Calculations!$E$2=\"Western Isles Health Board\",Calculations!$E$2=\"Shetland Islands Local Authority\",Calculations!$E$2=\"Eilean Siar Local Authority\"),OR($F133=1,$F133=5)),0,prem_mort(VALUE(LEFT(Options!$B$14,2)),$C133,$E133,$F133,2016,$I133/10,1,$H133/10,$G133*$H133/10,RateRatios_airpollution!$C133)*10))","v":0},{"$f":"IF(AND(OR(Calculations!$E$2=\"Orkney Health Board\",Calculations!$E$2=\"Orkney Islands Local Authority\"),$F133=1),0,IF(AND(OR(Calculations!$E$2=\"Shetland Health Board\",Calculations!$E$2=\"Western Isles Health Board\",Calculations!$E$2=\"Shetland Islands Local Authority\",Calculations!$E$2=\"Eilean Siar Local Authority\"),OR($F133=1,$F133=5)),0,prem_mort(VALUE(LEFT(Options!$B$14,2)),$C133,$E133,$F133,2016,$I133/10+$J133/10,1,$H133/10,$G133*$H133/10,RateRatios_airpollution!$C133)*10))","v":0},null,{"$f":"IF(AND(OR(Calculations!$E$2=\"Orkney Health Board\",Calculations!$E$2=\"Orkney Islands Local Authority\"),$F133=1),0,IF(AND(OR(Calculations!$E$2=\"Shetland Health Board\",Calculations!$E$2=\"Western Isles Health Board\",Calculations!$E$2=\"Shetland Islands Local Authority\",Calculations!$E$2=\"Eilean Siar Local Authority\"),OR($F133=1,$F133=5)),0,new_ci(VALUE(LEFT(Options!$B$14,2)),$C133,$E133,$F133,2016,$I133/10,1,$H133/10,$G133*$H133/10,RateRatios_airpollution!$E133)*10))","v":741.14265064599999},{"$f":"IF(AND(OR(Calculations!$E$2=\"Orkney Health Board\",Calculations!$E$2=\"Orkney Islands Local Authority\"),$F133=1),0,IF(AND(OR(Calculations!$E$2=\"Shetland Health Board\",Calculations!$E$2=\"Western Isles Health Board\",Calculations!$E$2=\"Shetland Islands Local Authority\",Calculations!$E$2=\"Eilean Siar Local Authority\"),OR($F133=1,$F133=5)),0,new_ci(VALUE(LEFT(Options!$B$14,2)),$C133,$E133,$F133,2016,$I133/10+$J133/10,1,$H133/10,$G133*$H133/10,RateRatios_airpollution!$E133)*10))","v":741.13840225000001},{"$f":"IF(AND(OR(Calculations!$E$2=\"Orkney Health Board\",Calculations!$E$2=\"Orkney Islands Local Authority\"),$F133=1),0,IF(AND(OR(Calculations!$E$2=\"Shetland Health Board\",Calculations!$E$2=\"Western Isles Health Board\",Calculations!$E$2=\"Shetland Islands Local Authority\",Calculations!$E$2=\"Eilean Siar Local Authority\"),OR($F133=1,$F133=5)),0,new_yllv2(VALUE(LEFT(Options!$B$14,2)),$C133,$D133,$E133,$F133,2016,$I133/10,1,$H133/10,$G133*$H133/10,RateRatios_airpollution!$E133)*10))","v":4320.8623944089995},{"$f":"IF(AND(OR(Calculations!$E$2=\"Orkney Health Board\",Calculations!$E$2=\"Orkney Islands Local Authority\"),$F133=1),0,IF(AND(OR(Calculations!$E$2=\"Shetland Health Board\",Calculations!$E$2=\"Western Isles Health Board\",Calculations!$E$2=\"Shetland Islands Local Authority\",Calculations!$E$2=\"Eilean Siar Local Authority\"),OR($F133=1,$F133=5)),0,new_yllv2(VALUE(LEFT(Options!$B$14,2)),$C133,$D133,$E133,$F133,2016,$I133/10+$J133/10,1,$H133/10,$G133*$H133/10,RateRatios_airpollution!$E133)*10))","v":4320.8376262559996},{"$f":"IF(AND(OR(Calculations!$E$2=\"Orkney Health Board\",Calculations!$E$2=\"Orkney Islands Local Authority\"),$F133=1),0,IF(AND(OR(Calculations!$E$2=\"Shetland Health Board\",Calculations!$E$2=\"Western Isles Health Board\",Calculations!$E$2=\"Shetland Islands Local Authority\",Calculations!$E$2=\"Eilean Siar Local Authority\"),OR($F133=1,$F133=5)),0,hosp_count(VALUE(LEFT(Options!$B$14,2)),$C133,$E133,$F133,2016,$I133/10,1,$H133/10,$G133*$H133/10, RateRatios_airpollution!$F133, RateRatios_airpollution!$E133)*10))","v":8693.8800865899993},{"$f":"IF(AND(OR(Calculations!$E$2=\"Orkney Health Board\",Calculations!$E$2=\"Orkney Islands Local Authority\"),$F133=1),0,IF(AND(OR(Calculations!$E$2=\"Shetland Health Board\",Calculations!$E$2=\"Western Isles Health Board\",Calculations!$E$2=\"Shetland Islands Local Authority\",Calculations!$E$2=\"Eilean Siar Local Authority\"),OR($F133=1,$F133=5)),0,hosp_count(VALUE(LEFT(Options!$B$14,2)),$C133,$E133,$F133,2016,$I133/10+$J133/10,1,$H133/10,$G133*$H133/10, RateRatios_airpollution!$F133, RateRatios_airpollution!$E133)*10))","v":8693.8800865899993},{"$f":"IF(AND(OR(Calculations!$E$2=\"Orkney Health Board\",Calculations!$E$2=\"Orkney Islands Local Authority\"),$F133=1),0,IF(AND(OR(Calculations!$E$2=\"Shetland Health Board\",Calculations!$E$2=\"Western Isles Health Board\",Calculations!$E$2=\"Shetland Islands Local Authority\",Calculations!$E$2=\"Eilean Siar Local Authority\"),OR($F133=1,$F133=5)),0,prem_mort(VALUE(LEFT(Options!$B$14,2)),$C133,$E133,$F133,2016,$I133/10,1,$H133/10,$G133*$H133/10,RateRatios_airpollution!$E133)*10))","v":0},{"$f":"IF(AND(OR(Calculations!$E$2=\"Orkney Health Board\",Calculations!$E$2=\"Orkney Islands Local Authority\"),$F133=1),0,IF(AND(OR(Calculations!$E$2=\"Shetland Health Board\",Calculations!$E$2=\"Western Isles Health Board\",Calculations!$E$2=\"Shetland Islands Local Authority\",Calculations!$E$2=\"Eilean Siar Local Authority\"),OR($F133=1,$F133=5)),0,prem_mort(VALUE(LEFT(Options!$B$14,2)),$C133,$E133,$F133,2016,$I133/10+$J133/10,1,$H133/10,$G133*$H133/10,RateRatios_airpollution!$E133)*10))","v":0},741.14265064599999,{"$f":"AK133-((AK133-L133)+(AK133-U133)+(AK133-AD133))","v":740.94680784299999},4320.8623944089995,{"$f":"AM133-((AM133-N133)+(AM133-W133)+(AM133-AF133))","v":4319.7206306710004},8693.8800865899993,{"$f":"AO133-((AO133-P133)+(AO133-Y133)+(AO133-AH133))","v":8691.4546630669993},0,{"$f":"AQ133-((AQ133-R133)+(AQ133-AA133)+(AQ133-AJ133))","v":0},6539.6863200035305,6537.9582444454245,38126.377785308388,38116.303103070684,76712.962909997339,76691.561484752485,0,0,16349215.800008826,16344895.611113561,95315944.463270977,95290757.757676706,191782407.27499336,191728903.71188122,0,0,2500]
[null,"Male 85-89",86.630752999999999,91.420750000000012,"male",2,1,{"$f":"HLOOKUP(Calculations!$E$2,'Population 2016'!$C$3:$BC$249,'Population 2016'!BD134,FALSE)","v":5568},0,{"$f":"HLOOKUP(Calculations!$E$2,Pop2016_in_settlements!$C$3:$BC$249,Pop2016_in_settlements!$BD134,FALSE)","v":3545},{"$f":"IF(AND(OR(Calculations!$E$2=\"Orkney Health Board\",Calculations!$E$2=\"Orkney Islands Local Authority\"),$F134=1),0,IF(AND(OR(Calculations!$E$2=\"Shetland Health Board\",Calculations!$E$2=\"Western Isles Health Board\",Calculations!$E$2=\"Shetland Islands Local Authority\",Calculations!$E$2=\"Eilean Siar Local Authority\"),OR($F134=1,$F134=5)),0,new_ci(VALUE(LEFT(Options!$B$14,2)),$C134,$E134,$F134,2016,$I134/10,1,$H134/10,$G134*$H134/10,RateRatios_accidents!$B$5)*10))","v":516.84978541400005},{"$f":"IF(AND(OR(Calculations!$E$2=\"Orkney Health Board\",Calculations!$E$2=\"Orkney Islands Local Authority\"),$F134=1),0,IF(AND(OR(Calculations!$E$2=\"Shetland Health Board\",Calculations!$E$2=\"Western Isles Health Board\",Calculations!$E$2=\"Shetland Islands Local Authority\",Calculations!$E$2=\"Eilean Siar Local Authority\"),OR($F134=1,$F134=5)),0,new_ci(VALUE(LEFT(Options!$B$14,2)),$C134,$E134,$F134,2016,$I134/10+$J134/10,1,$H134/10,$G134*$H134/10,RateRatios_accidents!$B$5)*10))","v":516.72446434699998},{"$f":"IF(AND(OR(Calculations!$E$2=\"Orkney Health Board\",Calculations!$E$2=\"Orkney Islands Local Authority\"),$F134=1),0,IF(AND(OR(Calculations!$E$2=\"Shetland Health Board\",Calculations!$E$2=\"Western Isles Health Board\",Calculations!$E$2=\"Shetland Islands Local Authority\",Calculations!$E$2=\"Eilean Siar Local Authority\"),OR($F134=1,$F134=5)),0,new_yllv2(VALUE(LEFT(Options!$B$14,2)),$C134,$D134,$E134,$F134,2016,$I134/10,1,$H134/10,$G134*$H134/10,RateRatios_accidents!$B$5)*10))","v":1958.8591361700001},{"$f":"IF(AND(OR(Calculations!$E$2=\"Orkney Health Board\",Calculations!$E$2=\"Orkney Islands Local Authority\"),$F134=1),0,IF(AND(OR(Calculations!$E$2=\"Shetland Health Board\",Calculations!$E$2=\"Western Isles Health Board\",Calculations!$E$2=\"Shetland Islands Local Authority\",Calculations!$E$2=\"Eilean Siar Local Authority\"),OR($F134=1,$F134=5)),0,new_yllv2(VALUE(LEFT(Options!$B$14,2)),$C134,$D134,$E134,$F134,2016,$I134/10+$J134/10,1,$H134/10,$G134*$H134/10,RateRatios_accidents!$B$5)*10))","v":1958.384169702},{"$f":"IF(AND(OR(Calculations!$E$2=\"Orkney Health Board\",Calculations!$E$2=\"Orkney Islands Local Authority\"),$F134=1),0,IF(AND(OR(Calculations!$E$2=\"Shetland Health Board\",Calculations!$E$2=\"Western Isles Health Board\",Calculations!$E$2=\"Shetland Islands Local Authority\",Calculations!$E$2=\"Eilean Siar Local Authority\"),OR($F134=1,$F134=5)),0,hosp_count(VALUE(LEFT(Options!$B$14,2)),$C134,$E134,$F134,2016,$I134/10,1,$H134/10,$G134*$H134/10, RateRatios_accidents!$B$4, RateRatios_accidents!$B$5)*10))","v":5070.8489366590002},{"$f":"IF(AND(OR(Calculations!$E$2=\"Orkney Health Board\",Calculations!$E$2=\"Orkney Islands Local Authority\"),$F134=1),0,IF(AND(OR(Calculations!$E$2=\"Shetland Health Board\",Calculations!$E$2=\"Western Isles Health Board\",Calculations!$E$2=\"Shetland Islands Local Authority\",Calculations!$E$2=\"Eilean Siar Local Authority\"),OR($F134=1,$F134=5)),0,hosp_count(VALUE(LEFT(Options!$B$14,2)),$C134,$E134,$F134,2016,$I134/10+$J134/10,1,$H134/10,$G134*$H134/10, RateRatios_accidents!$B$4, RateRatios_accidents!$B$5)*10))","v":5069.5575459800002},{"$f":"IF(AND(OR(Calculations!$E$2=\"Orkney Health Board\",Calculations!$E$2=\"Orkney Islands Local Authority\"),$F134=1),0,IF(AND(OR(Calculations!$E$2=\"Shetland Health Board\",Calculations!$E$2=\"Western Isles Health Board\",Calculations!$E$2=\"Shetland Islands Local Authority\",Calculations!$E$2=\"Eilean Siar Local Authority\"),OR($F134=1,$F134=5)),0,prem_mort(VALUE(LEFT(Options!$B$14,2)),$C134,$E134,$F134,2016,$I134/10,1,$H134/10,$G134*$H134/10,RateRatios_accidents!$B$5)*10))","v":0},{"$f":"IF(AND(OR(Calculations!$E$2=\"Orkney Health Board\",Calculations!$E$2=\"Orkney Islands Local Authority\"),$F134=1),0,IF(AND(OR(Calculations!$E$2=\"Shetland Health Board\",Calculations!$E$2=\"Western Isles Health Board\",Calculations!$E$2=\"Shetland Islands Local Authority\",Calculations!$E$2=\"Eilean Siar Local Authority\"),OR($F134=1,$F134=5)),0,prem_mort(VALUE(LEFT(Options!$B$14,2)),$C134,$E134,$F134,2016,$I134/10+$J134/10,1,$H134/10,$G134*$H134/10,RateRatios_accidents!$B$5)*10))","v":0},null,{"$f":"IF(AND(OR(Calculations!$E$2=\"Orkney Health Board\",Calculations!$E$2=\"Orkney Islands Local Authority\"),$F134=1),0,IF(AND(OR(Calculations!$E$2=\"Shetland Health Board\",Calculations!$E$2=\"Western Isles Health Board\",Calculations!$E$2=\"Shetland Islands Local Authority\",Calculations!$E$2=\"Eilean Siar Local Authority\"),OR($F134=1,$F134=5)),0,new_ci(VALUE(LEFT(Options!$B$14,2)),$C134,$E134,$F134,2016,$I134/10,1,$H134/10,$G134*$H134/10,RateRatios_airpollution!$C134)*10))","v":516.84978541400005},{"$f":"IF(AND(OR(Calculations!$E$2=\"Orkney Health Board\",Calculations!$E$2=\"Orkney Islands Local Authority\"),$F134=1),0,IF(AND(OR(Calculations!$E$2=\"Shetland Health Board\",Calculations!$E$2=\"Western Isles Health Board\",Calculations!$E$2=\"Shetland Islands Local Authority\",Calculations!$E$2=\"Eilean Siar Local Authority\"),OR($F134=1,$F134=5)),0,new_ci(VALUE(LEFT(Options!$B$14,2)),$C134,$E134,$F134,2016,$I134/10+$J134/10,1,$H134/10,$G134*$H134/10,RateRatios_airpollution!$C134)*10))","v":516.84338066300006},{"$f":"IF(AND(OR(Calculations!$E$2=\"Orkney Health Board\",Calculations!$E$2=\"Orkney Islands Local Authority\"),$F134=1),0,IF(AND(OR(Calculations!$E$2=\"Shetland Health Board\",Calculations!$E$2=\"Western Isles Health Board\",Calculations!$E$2=\"Shetland Islands Local Authority\",Calculations!$E$2=\"Eilean Siar Local Authority\"),OR($F134=1,$F134=5)),0,new_yllv2(VALUE(LEFT(Options!$B$14,2)),$C134,$D134,$E134,$F134,2016,$I134/10,1,$H134/10,$G134*$H134/10,RateRatios_airpollution!$C134)*10))","v":1958.8591361700001},{"$f":"IF(AND(OR(Calculations!$E$2=\"Orkney Health Board\",Calculations!$E$2=\"Orkney Islands Local Authority\"),$F134=1),0,IF(AND(OR(Calculations!$E$2=\"Shetland Health Board\",Calculations!$E$2=\"Western Isles Health Board\",Calculations!$E$2=\"Shetland Islands Local Authority\",Calculations!$E$2=\"Eilean Siar Local Authority\"),OR($F134=1,$F134=5)),0,new_yllv2(VALUE(LEFT(Options!$B$14,2)),$C134,$D134,$E134,$F134,2016,$I134/10+$J134/10,1,$H134/10,$G134*$H134/10,RateRatios_airpollution!$C134)*10))","v":1958.834862183},{"$f":"IF(AND(OR(Calculations!$E$2=\"Orkney Health Board\",Calculations!$E$2=\"Orkney Islands Local Authority\"),$F134=1),0,IF(AND(OR(Calculations!$E$2=\"Shetland Health Board\",Calculations!$E$2=\"Western Isles Health Board\",Calculations!$E$2=\"Shetland Islands Local Authority\",Calculations!$E$2=\"Eilean Siar Local Authority\"),OR($F134=1,$F134=5)),0,hosp_count(VALUE(LEFT(Options!$B$14,2)),$C134,$E134,$F134,2016,$I134/10,1,$H134/10,$G134*$H134/10, RateRatios_airpollution!$D134, RateRatios_airpollution!$C134)*10))","v":5070.8489366590002},{"$f":"IF(AND(OR(Calculations!$E$2=\"Orkney Health Board\",Calculations!$E$2=\"Orkney Islands Local Authority\"),$F134=1),0,IF(AND(OR(Calculations!$E$2=\"Shetland Health Board\",Calculations!$E$2=\"Western Isles Health Board\",Calculations!$E$2=\"Shetland Islands Local Authority\",Calculations!$E$2=\"Eilean Siar Local Authority\"),OR($F134=1,$F134=5)),0,hosp_count(VALUE(LEFT(Options!$B$14,2)),$C134,$E134,$F134,2016,$I134/10+$J134/10,1,$H134/10,$G134*$H134/10, RateRatios_airpollution!$D134, RateRatios_airpollution!$C134)*10))","v":5070.7245954299997},{"$f":"IF(AND(OR(Calculations!$E$2=\"Orkney Health Board\",Calculations!$E$2=\"Orkney Islands Local Authority\"),$F134=1),0,IF(AND(OR(Calculations!$E$2=\"Shetland Health Board\",Calculations!$E$2=\"Western Isles Health Board\",Calculations!$E$2=\"Shetland Islands Local Authority\",Calculations!$E$2=\"Eilean Siar Local Authority\"),OR($F134=1,$F134=5)),0,prem_mort(VALUE(LEFT(Options!$B$14,2)),$C134,$E134,$F134,2016,$I134/10,1,$H134/10,$G134*$H134/10,RateRatios_airpollution!$C134)*10))","v":0},{"$f":"IF(AND(OR(Calculations!$E$2=\"Orkney Health Board\",Calculations!$E$2=\"Orkney Islands Local Authority\"),$F134=1),0,IF(AND(OR(Calculations!$E$2=\"Shetland Health Board\",Calculations!$E$2=\"Western Isles Health Board\",Calculations!$E$2=\"Shetland Islands Local Authority\",Calculations!$E$2=\"Eilean Siar Local Authority\"),OR($F134=1,$F134=5)),0,prem_mort(VALUE(LEFT(Options!$B$14,2)),$C134,$E134,$F134,2016,$I134/10+$J134/10,1,$H134/10,$G134*$H134/10,RateRatios_airpollution!$C134)*10))","v":0},null,{"$f":"IF(AND(OR(Calculations!$E$2=\"Orkney Health Board\",Calculations!$E$2=\"Orkney Islands Local Authority\"),$F134=1),0,IF(AND(OR(Calculations!$E$2=\"Shetland Health Board\",Calculations!$E$2=\"Western Isles Health Board\",Calculations!$E$2=\"Shetland Islands Local Authority\",Calculations!$E$2=\"Eilean Siar Local Authority\"),OR($F134=1,$F134=5)),0,new_ci(VALUE(LEFT(Options!$B$14,2)),$C134,$E134,$F134,2016,$I134/10,1,$H134/10,$G134*$H134/10,RateRatios_airpollution!$E134)*10))","v":516.84978541400005},{"$f":"IF(AND(OR(Calculations!$E$2=\"Orkney Health Board\",Calculations!$E$2=\"Orkney Islands Local Authority\"),$F134=1),0,IF(AND(OR(Calculations!$E$2=\"Shetland Health Board\",Calculations!$E$2=\"Western Isles Health Board\",Calculations!$E$2=\"Shetland Islands Local Authority\",Calculations!$E$2=\"Eilean Siar Local Authority\"),OR($F134=1,$F134=5)),0,new_ci(VALUE(LEFT(Options!$B$14,2)),$C134,$E134,$F134,2016,$I134/10+$J134/10,1,$H134/10,$G134*$H134/10,RateRatios_airpollution!$E134)*10))","v":516.84688454100001},{"$f":"IF(AND(OR(Calculations!$E$2=\"Orkney Health Board\",Calculations!$E$2=\"Orkney Islands Local Authority\"),$F134=1),0,IF(AND(OR(Calculations!$E$2=\"Shetland Health Board\",Calculations!$E$2=\"Western Isles Health Board\",Calculations!$E$2=\"Shetland Islands Local Authority\",Calculations!$E$2=\"Eilean Siar Local Authority\"),OR($F134=1,$F134=5)),0,new_yllv2(VALUE(LEFT(Options!$B$14,2)),$C134,$D134,$E134,$F134,2016,$I134/10,1,$H134/10,$G134*$H134/10,RateRatios_airpollution!$E134)*10))","v":1958.8591361700001},{"$f":"IF(AND(OR(Calculations!$E$2=\"Orkney Health Board\",Calculations!$E$2=\"Orkney Islands Local Authority\"),$F134=1),0,IF(AND(OR(Calculations!$E$2=\"Shetland Health Board\",Calculations!$E$2=\"Western Isles Health Board\",Calculations!$E$2=\"Shetland Islands Local Authority\",Calculations!$E$2=\"Eilean Siar Local Authority\"),OR($F134=1,$F134=5)),0,new_yllv2(VALUE(LEFT(Options!$B$14,2)),$C134,$D134,$E134,$F134,2016,$I134/10+$J134/10,1,$H134/10,$G134*$H134/10,RateRatios_airpollution!$E134)*10))","v":1958.8481418699998},{"$f":"IF(AND(OR(Calculations!$E$2=\"Orkney Health Board\",Calculations!$E$2=\"Orkney Islands Local Authority\"),$F134=1),0,IF(AND(OR(Calculations!$E$2=\"Shetland Health Board\",Calculations!$E$2=\"Western Isles Health Board\",Calculations!$E$2=\"Shetland Islands Local Authority\",Calculations!$E$2=\"Eilean Siar Local Authority\"),OR($F134=1,$F134=5)),0,hosp_count(VALUE(LEFT(Options!$B$14,2)),$C134,$E134,$F134,2016,$I134/10,1,$H134/10,$G134*$H134/10, RateRatios_airpollution!$F134, RateRatios_airpollution!$E134)*10))","v":5070.8489366590002},{"$f":"IF(AND(OR(Calculations!$E$2=\"Orkney Health Board\",Calculations!$E$2=\"Orkney Islands Local Authority\"),$F134=1),0,IF(AND(OR(Calculations!$E$2=\"Shetland Health Board\",Calculations!$E$2=\"Western Isles Health Board\",Calculations!$E$2=\"Shetland Islands Local Authority\",Calculations!$E$2=\"Eilean Siar Local Authority\"),OR($F134=1,$F134=5)),0,hosp_count(VALUE(LEFT(Options!$B$14,2)),$C134,$E134,$F134,2016,$I134/10+$J134/10,1,$H134/10,$G134*$H134/10, RateRatios_airpollution!$F134, RateRatios_airpollution!$E134)*10))","v":5070.8489366590002},{"$f":"IF(AND(OR(Calculations!$E$2=\"Orkney Health Board\",Calculations!$E$2=\"Orkney Islands Local Authority\"),$F134=1),0,IF(AND(OR(Calculations!$E$2=\"Shetland Health Board\",Calculations!$E$2=\"Western Isles Health Board\",Calculations!$E$2=\"Shetland Islands Local Authority\",Calculations!$E$2=\"Eilean Siar Local Authority\"),OR($F134=1,$F134=5)),0,prem_mort(VALUE(LEFT(Options!$B$14,2)),$C134,$E134,$F134,2016,$I134/10,1,$H134/10,$G134*$H134/10,RateRatios_airpollution!$E134)*10))","v":0},{"$f":"IF(AND(OR(Calculations!$E$2=\"Orkney Health Board\",Calculations!$E$2=\"Orkney Islands Local Authority\"),$F134=1),0,IF(AND(OR(Calculations!$E$2=\"Shetland Health Board\",Calculations!$E$2=\"Western Isles Health Board\",Calculations!$E$2=\"Shetland Islands Local Authority\",Calculations!$E$2=\"Eilean Siar Local Authority\"),OR($F134=1,$F134=5)),0,prem_mort(VALUE(LEFT(Options!$B$14,2)),$C134,$E134,$F134,2016,$I134/10+$J134/10,1,$H134/10,$G134*$H134/10,RateRatios_airpollution!$E134)*10))","v":0},516.84978541400005,516.71515872299994,1958.8591361700001,1958.3489014149998,5070.8489366590002,5069.4332047509997,0,0,9282.5033299928182,9280.0854655711191,35180.659773168103,35171.496074263647,91071.2811899964,91045.854970384331,0,0,13923754.994989228,13920128.198356679,52770989.659752153,52757244.111395471,136606921.7849946,136568782.45557651,0,0,1500]
[null,"Male 90+",92.215477000000007,95.515479999999997,"male",2,1,{"$f":"HLOOKUP(Calculations!$E$2,'Population 2016'!$C$3:$BC$249,'Population 2016'!BD135,FALSE)","v":2286},0,{"$f":"HLOOKUP(Calculations!$E$2,Pop2016_in_settlements!$C$3:$BC$249,Pop2016_in_settlements!$BD135,FALSE)","v":1364},{"$f":"IF(AND(OR(Calculations!$E$2=\"Orkney Health Board\",Calculations!$E$2=\"Orkney Islands Local Authority\"),$F135=1),0,IF(AND(OR(Calculations!$E$2=\"Shetland Health Board\",Calculations!$E$2=\"Western Isles Health Board\",Calculations!$E$2=\"Shetland Islands Local Authority\",Calculations!$E$2=\"Eilean Siar Local Authority\"),OR($F135=1,$F135=5)),0,new_ci(VALUE(LEFT(Options!$B$14,2)),$C135,$E135,$F135,2016,$I135/10,1,$H135/10,$G135*$H135/10,RateRatios_accidents!$B$5)*10))","v":315.49134486100002},{"$f":"IF(AND(OR(Calculations!$E$2=\"Orkney Health Board\",Calculations!$E$2=\"Orkney Islands Local Authority\"),$F135=1),0,IF(AND(OR(Calculations!$E$2=\"Shetland Health Board\",Calculations!$E$2=\"Western Isles Health Board\",Calculations!$E$2=\"Shetland Islands Local Authority\",Calculations!$E$2=\"Eilean Siar Local Authority\"),OR($F135=1,$F135=5)),0,new_ci(VALUE(LEFT(Options!$B$14,2)),$C135,$E135,$F135,2016,$I135/10+$J135/10,1,$H135/10,$G135*$H135/10,RateRatios_accidents!$B$5)*10))","v":315.42149742100003},{"$f":"IF(AND(OR(Calculations!$E$2=\"Orkney Health Board\",Calculations!$E$2=\"Orkney Islands Local Authority\"),$F135=1),0,IF(AND(OR(Calculations!$E$2=\"Shetland Health Board\",Calculations!$E$2=\"Western Isles Health Board\",Calculations!$E$2=\"Shetland Islands Local Authority\",Calculations!$E$2=\"Eilean Siar Local Authority\"),OR($F135=1,$F135=5)),0,new_yllv2(VALUE(LEFT(Options!$B$14,2)),$C135,$D135,$E135,$F135,2016,$I135/10,1,$H135/10,$G135*$H135/10,RateRatios_accidents!$B$5)*10))","v":725.63103965400001},{"$f":"IF(AND(OR(Calculations!$E$2=\"Orkney Health Board\",Calculations!$E$2=\"Orkney Islands Local Authority\"),$F135=1),0,IF(AND(OR(Calculations!$E$2=\"Shetland Health Board\",Calculations!$E$2=\"Western Isles Health Board\",Calculations!$E$2=\"Shetland Islands Local Authority\",Calculations!$E$2=\"Eilean Siar Local Authority\"),OR($F135=1,$F135=5)),0,new_yllv2(VALUE(LEFT(Options!$B$14,2)),$C135,$D135,$E135,$F135,2016,$I135/10+$J135/10,1,$H135/10,$G135*$H135/10,RateRatios_accidents!$B$5)*10))","v":725.47039033299995},{"$f":"IF(AND(OR(Calculations!$E$2=\"Orkney Health Board\",Calculations!$E$2=\"Orkney Islands Local Authority\"),$F135=1),0,IF(AND(OR(Calculations!$E$2=\"Shetland Health Board\",Calculations!$E$2=\"Western Isles Health Board\",Calculations!$E$2=\"Shetland Islands Local Authority\",Calculations!$E$2=\"Eilean Siar Local Authority\"),OR($F135=1,$F135=5)),0,hosp_count(VALUE(LEFT(Options!$B$14,2)),$C135,$E135,$F135,2016,$I135/10,1,$H135/10,$G135*$H135/10, RateRatios_accidents!$B$4, RateRatios_accidents!$B$5)*10))","v":2538.3308308969999},{"$f":"IF(AND(OR(Calculations!$E$2=\"Orkney Health Board\",Calculations!$E$2=\"Orkney Islands Local Authority\"),$F135=1),0,IF(AND(OR(Calculations!$E$2=\"Shetland Health Board\",Calculations!$E$2=\"Western Isles Health Board\",Calculations!$E$2=\"Shetland Islands Local Authority\",Calculations!$E$2=\"Eilean Siar Local Authority\"),OR($F135=1,$F135=5)),0,hosp_count(VALUE(LEFT(Options!$B$14,2)),$C135,$E135,$F135,2016,$I135/10+$J135/10,1,$H135/10,$G135*$H135/10, RateRatios_accidents!$B$4, RateRatios_accidents!$B$5)*10))","v":2537.7250070240002},{"$f":"IF(AND(OR(Calculations!$E$2=\"Orkney Health Board\",Calculations!$E$2=\"Orkney Islands Local Authority\"),$F135=1),0,IF(AND(OR(Calculations!$E$2=\"Shetland Health Board\",Calculations!$E$2=\"Western Isles Health Board\",Calculations!$E$2=\"Shetland Islands Local Authority\",Calculations!$E$2=\"Eilean Siar Local Authority\"),OR($F135=1,$F135=5)),0,prem_mort(VALUE(LEFT(Options!$B$14,2)),$C135,$E135,$F135,2016,$I135/10,1,$H135/10,$G135*$H135/10,RateRatios_accidents!$B$5)*10))","v":0},{"$f":"IF(AND(OR(Calculations!$E$2=\"Orkney Health Board\",Calculations!$E$2=\"Orkney Islands Local Authority\"),$F135=1),0,IF(AND(OR(Calculations!$E$2=\"Shetland Health Board\",Calculations!$E$2=\"Western Isles Health Board\",Calculations!$E$2=\"Shetland Islands Local Authority\",Calculations!$E$2=\"Eilean Siar Local Authority\"),OR($F135=1,$F135=5)),0,prem_mort(VALUE(LEFT(Options!$B$14,2)),$C135,$E135,$F135,2016,$I135/10+$J135/10,1,$H135/10,$G135*$H135/10,RateRatios_accidents!$B$5)*10))","v":0},null,{"$f":"IF(AND(OR(Calculations!$E$2=\"Orkney Health Board\",Calculations!$E$2=\"Orkney Islands Local Authority\"),$F135=1),0,IF(AND(OR(Calculations!$E$2=\"Shetland Health Board\",Calculations!$E$2=\"Western Isles Health Board\",Calculations!$E$2=\"Shetland Islands Local Authority\",Calculations!$E$2=\"Eilean Siar Local Authority\"),OR($F135=1,$F135=5)),0,new_ci(VALUE(LEFT(Options!$B$14,2)),$C135,$E135,$F135,2016,$I135/10,1,$H135/10,$G135*$H135/10,RateRatios_airpollution!$C135)*10))","v":315.49134486100002},{"$f":"IF(AND(OR(Calculations!$E$2=\"Orkney Health Board\",Calculations!$E$2=\"Orkney Islands Local Authority\"),$F135=1),0,IF(AND(OR(Calculations!$E$2=\"Shetland Health Board\",Calculations!$E$2=\"Western Isles Health Board\",Calculations!$E$2=\"Shetland Islands Local Authority\",Calculations!$E$2=\"Eilean Siar Local Authority\"),OR($F135=1,$F135=5)),0,new_ci(VALUE(LEFT(Options!$B$14,2)),$C135,$E135,$F135,2016,$I135/10+$J135/10,1,$H135/10,$G135*$H135/10,RateRatios_airpollution!$C135)*10))","v":315.48768074700001},{"$f":"IF(AND(OR(Calculations!$E$2=\"Orkney Health Board\",Calculations!$E$2=\"Orkney Islands Local Authority\"),$F135=1),0,IF(AND(OR(Calculations!$E$2=\"Shetland Health Board\",Calculations!$E$2=\"Western Isles Health Board\",Calculations!$E$2=\"Shetland Islands Local Authority\",Calculations!$E$2=\"Eilean Siar Local Authority\"),OR($F135=1,$F135=5)),0,new_yllv2(VALUE(LEFT(Options!$B$14,2)),$C135,$D135,$E135,$F135,2016,$I135/10,1,$H135/10,$G135*$H135/10,RateRatios_airpollution!$C135)*10))","v":725.63103965400001},{"$f":"IF(AND(OR(Calculations!$E$2=\"Orkney Health Board\",Calculations!$E$2=\"Orkney Islands Local Authority\"),$F135=1),0,IF(AND(OR(Calculations!$E$2=\"Shetland Health Board\",Calculations!$E$2=\"Western Isles Health Board\",Calculations!$E$2=\"Shetland Islands Local Authority\",Calculations!$E$2=\"Eilean Siar Local Authority\"),OR($F135=1,$F135=5)),0,new_yllv2(VALUE(LEFT(Options!$B$14,2)),$C135,$D135,$E135,$F135,2016,$I135/10+$J135/10,1,$H135/10,$G135*$H135/10,RateRatios_airpollution!$C135)*10))","v":725.62261218100002},{"$f":"IF(AND(OR(Calculations!$E$2=\"Orkney Health Board\",Calculations!$E$2=\"Orkney Islands Local Authority\"),$F135=1),0,IF(AND(OR(Calculations!$E$2=\"Shetland Health Board\",Calculations!$E$2=\"Western Isles Health Board\",Calculations!$E$2=\"Shetland Islands Local Authority\",Calculations!$E$2=\"Eilean Siar Local Authority\"),OR($F135=1,$F135=5)),0,hosp_count(VALUE(LEFT(Options!$B$14,2)),$C135,$E135,$F135,2016,$I135/10,1,$H135/10,$G135*$H135/10, RateRatios_airpollution!$D135, RateRatios_airpollution!$C135)*10))","v":2538.3308308969999},{"$f":"IF(AND(OR(Calculations!$E$2=\"Orkney Health Board\",Calculations!$E$2=\"Orkney Islands Local Authority\"),$F135=1),0,IF(AND(OR(Calculations!$E$2=\"Shetland Health Board\",Calculations!$E$2=\"Western Isles Health Board\",Calculations!$E$2=\"Shetland Islands Local Authority\",Calculations!$E$2=\"Eilean Siar Local Authority\"),OR($F135=1,$F135=5)),0,hosp_count(VALUE(LEFT(Options!$B$14,2)),$C135,$E135,$F135,2016,$I135/10+$J135/10,1,$H135/10,$G135*$H135/10, RateRatios_airpollution!$D135, RateRatios_airpollution!$C135)*10))","v":2538.270956071},{"$f":"IF(AND(OR(Calculations!$E$2=\"Orkney Health Board\",Calculations!$E$2=\"Orkney Islands Local Authority\"),$F135=1),0,IF(AND(OR(Calculations!$E$2=\"Shetland Health Board\",Calculations!$E$2=\"Western Isles Health Board\",Calculations!$E$2=\"Shetland Islands Local Authority\",Calculations!$E$2=\"Eilean Siar Local Authority\"),OR($F135=1,$F135=5)),0,prem_mort(VALUE(LEFT(Options!$B$14,2)),$C135,$E135,$F135,2016,$I135/10,1,$H135/10,$G135*$H135/10,RateRatios_airpollution!$C135)*10))","v":0},{"$f":"IF(AND(OR(Calculations!$E$2=\"Orkney Health Board\",Calculations!$E$2=\"Orkney Islands Local Authority\"),$F135=1),0,IF(AND(OR(Calculations!$E$2=\"Shetland Health Board\",Calculations!$E$2=\"Western Isles Health Board\",Calculations!$E$2=\"Shetland Islands Local Authority\",Calculations!$E$2=\"Eilean Siar Local Authority\"),OR($F135=1,$F135=5)),0,prem_mort(VALUE(LEFT(Options!$B$14,2)),$C135,$E135,$F135,2016,$I135/10+$J135/10,1,$H135/10,$G135*$H135/10,RateRatios_airpollution!$C135)*10))","v":0},null,{"$f":"IF(AND(OR(Calculations!$E$2=\"Orkney Health Board\",Calculations!$E$2=\"Orkney Islands Local Authority\"),$F135=1),0,IF(AND(OR(Calculations!$E$2=\"Shetland Health Board\",Calculations!$E$2=\"Western Isles Health Board\",Calculations!$E$2=\"Shetland Islands Local Authority\",Calculations!$E$2=\"Eilean Siar Local Authority\"),OR($F135=1,$F135=5)),0,new_ci(VALUE(LEFT(Options!$B$14,2)),$C135,$E135,$F135,2016,$I135/10,1,$H135/10,$G135*$H135/10,RateRatios_airpollution!$E135)*10))","v":315.49134486100002},{"$f":"IF(AND(OR(Calculations!$E$2=\"Orkney Health Board\",Calculations!$E$2=\"Orkney Islands Local Authority\"),$F135=1),0,IF(AND(OR(Calculations!$E$2=\"Shetland Health Board\",Calculations!$E$2=\"Western Isles Health Board\",Calculations!$E$2=\"Shetland Islands Local Authority\",Calculations!$E$2=\"Eilean Siar Local Authority\"),OR($F135=1,$F135=5)),0,new_ci(VALUE(LEFT(Options!$B$14,2)),$C135,$E135,$F135,2016,$I135/10+$J135/10,1,$H135/10,$G135*$H135/10,RateRatios_airpollution!$E135)*10))","v":315.48969442099997},{"$f":"IF(AND(OR(Calculations!$E$2=\"Orkney Health Board\",Calculations!$E$2=\"Orkney Islands Local Authority\"),$F135=1),0,IF(AND(OR(Calculations!$E$2=\"Shetland Health Board\",Calculations!$E$2=\"Western Isles Health Board\",Calculations!$E$2=\"Shetland Islands Local Authority\",Calculations!$E$2=\"Eilean Siar Local Authority\"),OR($F135=1,$F135=5)),0,new_yllv2(VALUE(LEFT(Options!$B$14,2)),$C135,$D135,$E135,$F135,2016,$I135/10,1,$H135/10,$G135*$H135/10,RateRatios_airpollution!$E135)*10))","v":725.63103965400001},{"$f":"IF(AND(OR(Calculations!$E$2=\"Orkney Health Board\",Calculations!$E$2=\"Orkney Islands Local Authority\"),$F135=1),0,IF(AND(OR(Calculations!$E$2=\"Shetland Health Board\",Calculations!$E$2=\"Western Isles Health Board\",Calculations!$E$2=\"Shetland Islands Local Authority\",Calculations!$E$2=\"Eilean Siar Local Authority\"),OR($F135=1,$F135=5)),0,new_yllv2(VALUE(LEFT(Options!$B$14,2)),$C135,$D135,$E135,$F135,2016,$I135/10+$J135/10,1,$H135/10,$G135*$H135/10,RateRatios_airpollution!$E135)*10))","v":725.62724363699999},{"$f":"IF(AND(OR(Calculations!$E$2=\"Orkney Health Board\",Calculations!$E$2=\"Orkney Islands Local Authority\"),$F135=1),0,IF(AND(OR(Calculations!$E$2=\"Shetland Health Board\",Calculations!$E$2=\"Western Isles Health Board\",Calculations!$E$2=\"Shetland Islands Local Authority\",Calculations!$E$2=\"Eilean Siar Local Authority\"),OR($F135=1,$F135=5)),0,hosp_count(VALUE(LEFT(Options!$B$14,2)),$C135,$E135,$F135,2016,$I135/10,1,$H135/10,$G135*$H135/10, RateRatios_airpollution!$F135, RateRatios_airpollution!$E135)*10))","v":2538.3308308969999},{"$f":"IF(AND(OR(Calculations!$E$2=\"Orkney Health Board\",Calculations!$E$2=\"Orkney Islands Local Authority\"),$F135=1),0,IF(AND(OR(Calculations!$E$2=\"Shetland Health Board\",Calculations!$E$2=\"Western Isles Health Board\",Calculations!$E$2=\"Shetland Islands Local Authority\",Calculations!$E$2=\"Eilean Siar Local Authority\"),OR($F135=1,$F135=5)),0,hosp_count(VALUE(LEFT(Options!$B$14,2)),$C135,$E135,$F135,2016,$I135/10+$J135/10,1,$H135/10,$G135*$H135/10, RateRatios_airpollution!$F135, RateRatios_airpollution!$E135)*10))","v":2538.3308308969999},{"$f":"IF(AND(OR(Calculations!$E$2=\"Orkney Health Board\",Calculations!$E$2=\"Orkney Islands Local Authority\"),$F135=1),0,IF(AND(OR(Calculations!$E$2=\"Shetland Health Board\",Calculations!$E$2=\"Western Isles Health Board\",Calculations!$E$2=\"Shetland Islands Local Authority\",Calculations!$E$2=\"Eilean Siar Local Authority\"),OR($F135=1,$F135=5)),0,prem_mort(VALUE(LEFT(Options!$B$14,2)),$C135,$E135,$F135,2016,$I135/10,1,$H135/10,$G135*$H135/10,RateRatios_airpollution!$E135)*10))","v":0},{"$f":"IF(AND(OR(Calculations!$E$2=\"Orkney Health Board\",Calculations!$E$2=\"Orkney Islands Local Authority\"),$F135=1),0,IF(AND(OR(Calculations!$E$2=\"Shetland Health Board\",Calculations!$E$2=\"Western Isles Health Board\",Calculations!$E$2=\"Shetland Islands Local Authority\",Calculations!$E$2=\"Eilean Siar Local Authority\"),OR($F135=1,$F135=5)),0,prem_mort(VALUE(LEFT(Options!$B$14,2)),$C135,$E135,$F135,2016,$I135/10+$J135/10,1,$H135/10,$G135*$H135/10,RateRatios_airpollution!$E135)*10))","v":0},315.49134486100002,315.41618286699997,725.63103965400001,725.45816684299996,2538.3308308969999,2537.6651321980003,0,0,13801.021210017499,13797.733283770778,31742.390186089237,31734.82794588801,111038.09408998249,111008.97341198601,0,0,13801021.210017499,13797733.283770777,31742390.186089236,31734827.945888009,111038094.08998249,111008973.41198601,0,0,1000]
[null,"Female 0-4",2.0384007,81.468401,"female",3,1,{"$f":"HLOOKUP(Calculations!$E$2,'Population 2016'!$C$3:$BC$249,'Population 2016'!BD136,FALSE)","v":0},0,{"$f":"HLOOKUP(Calculations!$E$2,Pop2016_in_settlements!$C$3:$BC$249,Pop2016_in_settlements!$BD136,FALSE)","v":0},{"$f":"IF(AND(OR(Calculations!$E$2=\"Orkney Health Board\",Calculations!$E$2=\"Orkney Islands Local Authority\"),$F136=1),0,IF(AND(OR(Calculations!$E$2=\"Shetland Health Board\",Calculations!$E$2=\"Western Isles Health Board\",Calculations!$E$2=\"Shetland Islands Local Authority\",Calculations!$E$2=\"Eilean Siar Local Authority\"),OR($F136=1,$F136=5)),0,new_ci(VALUE(LEFT(Options!$B$14,2)),$C136,$E136,$F136,2016,$I136/10,1,$H136/10,$G136*$H136/10,RateRatios_accidents!$B$5)*10))","v":{"$error":"#VALUE!"}},{"$f":"IF(AND(OR(Calculations!$E$2=\"Orkney Health Board\",Calculations!$E$2=\"Orkney Islands Local Authority\"),$F136=1),0,IF(AND(OR(Calculations!$E$2=\"Shetland Health Board\",Calculations!$E$2=\"Western Isles Health Board\",Calculations!$E$2=\"Shetland Islands Local Authority\",Calculations!$E$2=\"Eilean Siar Local Authority\"),OR($F136=1,$F136=5)),0,new_ci(VALUE(LEFT(Options!$B$14,2)),$C136,$E136,$F136,2016,$I136/10+$J136/10,1,$H136/10,$G136*$H136/10,RateRatios_accidents!$B$5)*10))","v":{"$error":"#VALUE!"}},{"$f":"IF(AND(OR(Calculations!$E$2=\"Orkney Health Board\",Calculations!$E$2=\"Orkney Islands Local Authority\"),$F136=1),0,IF(AND(OR(Calculations!$E$2=\"Shetland Health Board\",Calculations!$E$2=\"Western Isles Health Board\",Calculations!$E$2=\"Shetland Islands Local Authority\",Calculations!$E$2=\"Eilean Siar Local Authority\"),OR($F136=1,$F136=5)),0,new_yllv2(VALUE(LEFT(Options!$B$14,2)),$C136,$D136,$E136,$F136,2016,$I136/10,1,$H136/10,$G136*$H136/10,RateRatios_accidents!$B$5)*10))","v":{"$error":"#VALUE!"}},{"$f":"IF(AND(OR(Calculations!$E$2=\"Orkney Health Board\",Calculations!$E$2=\"Orkney Islands Local Authority\"),$F136=1),0,IF(AND(OR(Calculations!$E$2=\"Shetland Health Board\",Calculations!$E$2=\"Western Isles Health Board\",Calculations!$E$2=\"Shetland Islands Local Authority\",Calculations!$E$2=\"Eilean Siar Local Authority\"),OR($F136=1,$F136=5)),0,new_yllv2(VALUE(LEFT(Options!$B$14,2)),$C136,$D136,$E136,$F136,2016,$I136/10+$J136/10,1,$H136/10,$G136*$H136/10,RateRatios_accidents!$B$5)*10))","v":{"$error":"#VALUE!"}},{"$f":"IF(AND(OR(Calculations!$E$2=\"Orkney Health Board\",Calculations!$E$2=\"Orkney Islands Local Authority\"),$F136=1),0,IF(AND(OR(Calculations!$E$2=\"Shetland Health Board\",Calculations!$E$2=\"Western Isles Health Board\",Calculations!$E$2=\"Shetland Islands Local Authority\",Calculations!$E$2=\"Eilean Siar Local Authority\"),OR($F136=1,$F136=5)),0,hosp_count(VALUE(LEFT(Options!$B$14,2)),$C136,$E136,$F136,2016,$I136/10,1,$H136/10,$G136*$H136/10, RateRatios_accidents!$B$4, RateRatios_accidents!$B$5)*10))","v":{"$error":"#VALUE!"}},{"$f":"IF(AND(OR(Calculations!$E$2=\"Orkney Health Board\",Calculations!$E$2=\"Orkney Islands Local Authority\"),$F136=1),0,IF(AND(OR(Calculations!$E$2=\"Shetland Health Board\",Calculations!$E$2=\"Western Isles Health Board\",Calculations!$E$2=\"Shetland Islands Local Authority\",Calculations!$E$2=\"Eilean Siar Local Authority\"),OR($F136=1,$F136=5)),0,hosp_count(VALUE(LEFT(Options!$B$14,2)),$C136,$E136,$F136,2016,$I136/10+$J136/10,1,$H136/10,$G136*$H136/10, RateRatios_accidents!$B$4, RateRatios_accidents!$B$5)*10))","v":{"$error":"#VALUE!"}},{"$f":"IF(AND(OR(Calculations!$E$2=\"Orkney Health Board\",Calculations!$E$2=\"Orkney Islands Local Authority\"),$F136=1),0,IF(AND(OR(Calculations!$E$2=\"Shetland Health Board\",Calculations!$E$2=\"Western Isles Health Board\",Calculations!$E$2=\"Shetland Islands Local Authority\",Calculations!$E$2=\"Eilean Siar Local Authority\"),OR($F136=1,$F136=5)),0,prem_mort(VALUE(LEFT(Options!$B$14,2)),$C136,$E136,$F136,2016,$I136/10,1,$H136/10,$G136*$H136/10,RateRatios_accidents!$B$5)*10))","v":{"$error":"#VALUE!"}},{"$f":"IF(AND(OR(Calculations!$E$2=\"Orkney Health Board\",Calculations!$E$2=\"Orkney Islands Local Authority\"),$F136=1),0,IF(AND(OR(Calculations!$E$2=\"Shetland Health Board\",Calculations!$E$2=\"Western Isles Health Board\",Calculations!$E$2=\"Shetland Islands Local Authority\",Calculations!$E$2=\"Eilean Siar Local Authority\"),OR($F136=1,$F136=5)),0,prem_mort(VALUE(LEFT(Options!$B$14,2)),$C136,$E136,$F136,2016,$I136/10+$J136/10,1,$H136/10,$G136*$H136/10,RateRatios_accidents!$B$5)*10))","v":{"$error":"#VALUE!"}},null,{"$f":"IF(AND(OR(Calculations!$E$2=\"Orkney Health Board\",Calculations!$E$2=\"Orkney Islands Local Authority\"),$F136=1),0,IF(AND(OR(Calculations!$E$2=\"Shetland Health Board\",Calculations!$E$2=\"Western Isles Health Board\",Calculations!$E$2=\"Shetland Islands Local Authority\",Calculations!$E$2=\"Eilean Siar Local Authority\"),OR($F136=1,$F136=5)),0,new_ci(VALUE(LEFT(Options!$B$14,2)),$C136,$E136,$F136,2016,$I136/10,1,$H136/10,$G136*$H136/10,RateRatios_airpollution!$C136)*10))","v":{"$error":"#VALUE!"}},{"$f":"IF(AND(OR(Calculations!$E$2=\"Orkney Health Board\",Calculations!$E$2=\"Orkney Islands Local Authority\"),$F136=1),0,IF(AND(OR(Calculations!$E$2=\"Shetland Health Board\",Calculations!$E$2=\"Western Isles Health Board\",Calculations!$E$2=\"Shetland Islands Local Authority\",Calculations!$E$2=\"Eilean Siar Local Authority\"),OR($F136=1,$F136=5)),0,new_ci(VALUE(LEFT(Options!$B$14,2)),$C136,$E136,$F136,2016,$I136/10+$J136/10,1,$H136/10,$G136*$H136/10,RateRatios_airpollution!$C136)*10))","v":{"$error":"#VALUE!"}},{"$f":"IF(AND(OR(Calculations!$E$2=\"Orkney Health Board\",Calculations!$E$2=\"Orkney Islands Local Authority\"),$F136=1),0,IF(AND(OR(Calculations!$E$2=\"Shetland Health Board\",Calculations!$E$2=\"Western Isles Health Board\",Calculations!$E$2=\"Shetland Islands Local Authority\",Calculations!$E$2=\"Eilean Siar Local Authority\"),OR($F136=1,$F136=5)),0,new_yllv2(VALUE(LEFT(Options!$B$14,2)),$C136,$D136,$E136,$F136,2016,$I136/10,1,$H136/10,$G136*$H136/10,RateRatios_airpollution!$C136)*10))","v":{"$error":"#VALUE!"}},{"$f":"IF(AND(OR(Calculations!$E$2=\"Orkney Health Board\",Calculations!$E$2=\"Orkney Islands Local Authority\"),$F136=1),0,IF(AND(OR(Calculations!$E$2=\"Shetland Health Board\",Calculations!$E$2=\"Western Isles Health Board\",Calculations!$E$2=\"Shetland Islands Local Authority\",Calculations!$E$2=\"Eilean Siar Local Authority\"),OR($F136=1,$F136=5)),0,new_yllv2(VALUE(LEFT(Options!$B$14,2)),$C136,$D136,$E136,$F136,2016,$I136/10+$J136/10,1,$H136/10,$G136*$H136/10,RateRatios_airpollution!$C136)*10))","v":{"$error":"#VALUE!"}},{"$f":"IF(AND(OR(Calculations!$E$2=\"Orkney Health Board\",Calculations!$E$2=\"Orkney Islands Local Authority\"),$F136=1),0,IF(AND(OR(Calculations!$E$2=\"Shetland Health Board\",Calculations!$E$2=\"Western Isles Health Board\",Calculations!$E$2=\"Shetland Islands Local Authority\",Calculations!$E$2=\"Eilean Siar Local Authority\"),OR($F136=1,$F136=5)),0,hosp_count(VALUE(LEFT(Options!$B$14,2)),$C136,$E136,$F136,2016,$I136/10,1,$H136/10,$G136*$H136/10, RateRatios_airpollution!$D136, RateRatios_airpollution!$C136)*10))","v":{"$error":"#VALUE!"}},{"$f":"IF(AND(OR(Calculations!$E$2=\"Orkney Health Board\",Calculations!$E$2=\"Orkney Islands Local Authority\"),$F136=1),0,IF(AND(OR(Calculations!$E$2=\"Shetland Health Board\",Calculations!$E$2=\"Western Isles Health Board\",Calculations!$E$2=\"Shetland Islands Local Authority\",Calculations!$E$2=\"Eilean Siar Local Authority\"),OR($F136=1,$F136=5)),0,hosp_count(VALUE(LEFT(Options!$B$14,2)),$C136,$E136,$F136,2016,$I136/10+$J136/10,1,$H136/10,$G136*$H136/10, RateRatios_airpollution!$D136, RateRatios_airpollution!$C136)*10))","v":{"$error":"#VALUE!"}},{"$f":"IF(AND(OR(Calculations!$E$2=\"Orkney Health Board\",Calculations!$E$2=\"Orkney Islands Local Authority\"),$F136=1),0,IF(AND(OR(Calculations!$E$2=\"Shetland Health Board\",Calculations!$E$2=\"Western Isles Health Board\",Calculations!$E$2=\"Shetland Islands Local Authority\",Calculations!$E$2=\"Eilean Siar Local Authority\"),OR($F136=1,$F136=5)),0,prem_mort(VALUE(LEFT(Options!$B$14,2)),$C136,$E136,$F136,2016,$I136/10,1,$H136/10,$G136*$H136/10,RateRatios_airpollution!$C136)*10))","v":{"$error":"#VALUE!"}},{"$f":"IF(AND(OR(Calculations!$E$2=\"Orkney Health Board\",Calculations!$E$2=\"Orkney Islands Local Authority\"),$F136=1),0,IF(AND(OR(Calculations!$E$2=\"Shetland Health Board\",Calculations!$E$2=\"Western Isles Health Board\",Calculations!$E$2=\"Shetland Islands Local Authority\",Calculations!$E$2=\"Eilean Siar Local Authority\"),OR($F136=1,$F136=5)),0,prem_mort(VALUE(LEFT(Options!$B$14,2)),$C136,$E136,$F136,2016,$I136/10+$J136/10,1,$H136/10,$G136*$H136/10,RateRatios_airpollution!$C136)*10))","v":{"$error":"#VALUE!"}},null,{"$f":"IF(AND(OR(Calculations!$E$2=\"Orkney Health Board\",Calculations!$E$2=\"Orkney Islands Local Authority\"),$F136=1),0,IF(AND(OR(Calculations!$E$2=\"Shetland Health Board\",Calculations!$E$2=\"Western Isles Health Board\",Calculations!$E$2=\"Shetland Islands Local Authority\",Calculations!$E$2=\"Eilean Siar Local Authority\"),OR($F136=1,$F136=5)),0,new_ci(VALUE(LEFT(Options!$B$14,2)),$C136,$E136,$F136,2016,$I136/10,1,$H136/10,$G136*$H136/10,RateRatios_airpollution!$E136)*10))","v":{"$error":"#VALUE!"}},{"$f":"IF(AND(OR(Calculations!$E$2=\"Orkney Health Board\",Calculations!$E$2=\"Orkney Islands Local Authority\"),$F136=1),0,IF(AND(OR(Calculations!$E$2=\"Shetland Health Board\",Calculations!$E$2=\"Western Isles Health Board\",Calculations!$E$2=\"Shetland Islands Local Authority\",Calculations!$E$2=\"Eilean Siar Local Authority\"),OR($F136=1,$F136=5)),0,new_ci(VALUE(LEFT(Options!$B$14,2)),$C136,$E136,$F136,2016,$I136/10+$J136/10,1,$H136/10,$G136*$H136/10,RateRatios_airpollution!$E136)*10))","v":{"$error":"#VALUE!"}},{"$f":"IF(AND(OR(Calculations!$E$2=\"Orkney Health Board\",Calculations!$E$2=\"Orkney Islands Local Authority\"),$F136=1),0,IF(AND(OR(Calculations!$E$2=\"Shetland Health Board\",Calculations!$E$2=\"Western Isles Health Board\",Calculations!$E$2=\"Shetland Islands Local Authority\",Calculations!$E$2=\"Eilean Siar Local Authority\"),OR($F136=1,$F136=5)),0,new_yllv2(VALUE(LEFT(Options!$B$14,2)),$C136,$D136,$E136,$F136,2016,$I136/10,1,$H136/10,$G136*$H136/10,RateRatios_airpollution!$E136)*10))","v":{"$error":"#VALUE!"}},{"$f":"IF(AND(OR(Calculations!$E$2=\"Orkney Health Board\",Calculations!$E$2=\"Orkney Islands Local Authority\"),$F136=1),0,IF(AND(OR(Calculations!$E$2=\"Shetland Health Board\",Calculations!$E$2=\"Western Isles Health Board\",Calculations!$E$2=\"Shetland Islands Local Authority\",Calculations!$E$2=\"Eilean Siar Local Authority\"),OR($F136=1,$F136=5)),0,new_yllv2(VALUE(LEFT(Options!$B$14,2)),$C136,$D136,$E136,$F136,2016,$I136/10+$J136/10,1,$H136/10,$G136*$H136/10,RateRatios_airpollution!$E136)*10))","v":{"$error":"#VALUE!"}},{"$f":"IF(AND(OR(Calculations!$E$2=\"Orkney Health Board\",Calculations!$E$2=\"Orkney Islands Local Authority\"),$F136=1),0,IF(AND(OR(Calculations!$E$2=\"Shetland Health Board\",Calculations!$E$2=\"Western Isles Health Board\",Calculations!$E$2=\"Shetland Islands Local Authority\",Calculations!$E$2=\"Eilean Siar Local Authority\"),OR($F136=1,$F136=5)),0,hosp_count(VALUE(LEFT(Options!$B$14,2)),$C136,$E136,$F136,2016,$I136/10,1,$H136/10,$G136*$H136/10, RateRatios_airpollution!$F136, RateRatios_airpollution!$E136)*10))","v":{"$error":"#VALUE!"}},{"$f":"IF(AND(OR(Calculations!$E$2=\"Orkney Health Board\",Calculations!$E$2=\"Orkney Islands Local Authority\"),$F136=1),0,IF(AND(OR(Calculations!$E$2=\"Shetland Health Board\",Calculations!$E$2=\"Western Isles Health Board\",Calculations!$E$2=\"Shetland Islands Local Authority\",Calculations!$E$2=\"Eilean Siar Local Authority\"),OR($F136=1,$F136=5)),0,hosp_count(VALUE(LEFT(Options!$B$14,2)),$C136,$E136,$F136,2016,$I136/10+$J136/10,1,$H136/10,$G136*$H136/10, RateRatios_airpollution!$F136, RateRatios_airpollution!$E136)*10))","v":{"$error":"#VALUE!"}},{"$f":"IF(AND(OR(Calculations!$E$2=\"Orkney Health Board\",Calculations!$E$2=\"Orkney Islands Local Authority\"),$F136=1),0,IF(AND(OR(Calculations!$E$2=\"Shetland Health Board\",Calculations!$E$2=\"Western Isles Health Board\",Calculations!$E$2=\"Shetland Islands Local Authority\",Calculations!$E$2=\"Eilean Siar Local Authority\"),OR($F136=1,$F136=5)),0,prem_mort(VALUE(LEFT(Options!$B$14,2)),$C136,$E136,$F136,2016,$I136/10,1,$H136/10,$G136*$H136/10,RateRatios_airpollution!$E136)*10))","v":{"$error":"#VALUE!"}},{"$f":"IF(AND(OR(Calculations!$E$2=\"Orkney Health Board\",Calculations!$E$2=\"Orkney Islands Local Authority\"),$F136=1),0,IF(AND(OR(Calculations!$E$2=\"Shetland Health Board\",Calculations!$E$2=\"Western Isles Health Board\",Calculations!$E$2=\"Shetland Islands Local Authority\",Calculations!$E$2=\"Eilean Siar Local Authority\"),OR($F136=1,$F136=5)),0,prem_mort(VALUE(LEFT(Options!$B$14,2)),$C136,$E136,$F136,2016,$I136/10+$J136/10,1,$H136/10,$G136*$H136/10,RateRatios_airpollution!$E136)*10))","v":{"$error":"#VALUE!"}},{"$error":"#VALUE!"},{"$error":"#VALUE!"},{"$error":"#VALUE!"},{"$error":"#VALUE!"},{"$error":"#VALUE!"},{"$error":"#VALUE!"},{"$error":"#VALUE!"},{"$error":"#VALUE!"},{"$error":"#VALUE!"},{"$error":"#VALUE!"},{"$error":"#VALUE!"},{"$error":"#VALUE!"},{"$error":"#VALUE!"},{"$error":"#VALUE!"},{"$error":"#VALUE!"},{"$error":"#VALUE!"},{"$error":"#VALUE!"},{"$error":"#VALUE!"},{"$error":"#VALUE!"},{"$error":"#VALUE!"},{"$error":"#VALUE!"},{"$error":"#VALUE!"},{"$error":"#VALUE!"},{"$error":"#VALUE!"},5000]
[null,"Female 5-9",6.9792794999999996,81.439279999999997,"female",3,1,{"$f":"HLOOKUP(Calculations!$E$2,'Population 2016'!$C$3:$BC$249,'Population 2016'!BD137,FALSE)","v":0},0,{"$f":"HLOOKUP(Calculations!$E$2,Pop2016_in_settlements!$C$3:$BC$249,Pop2016_in_settlements!$BD137,FALSE)","v":0},{"$f":"IF(AND(OR(Calculations!$E$2=\"Orkney Health Board\",Calculations!$E$2=\"Orkney Islands Local Authority\"),$F137=1),0,IF(AND(OR(Calculations!$E$2=\"Shetland Health Board\",Calculations!$E$2=\"Western Isles Health Board\",Calculations!$E$2=\"Shetland Islands Local Authority\",Calculations!$E$2=\"Eilean Siar Local Authority\"),OR($F137=1,$F137=5)),0,new_ci(VALUE(LEFT(Options!$B$14,2)),$C137,$E137,$F137,2016,$I137/10,1,$H137/10,$G137*$H137/10,RateRatios_accidents!$B$5)*10))","v":{"$error":"#VALUE!"}},{"$f":"IF(AND(OR(Calculations!$E$2=\"Orkney Health Board\",Calculations!$E$2=\"Orkney Islands Local Authority\"),$F137=1),0,IF(AND(OR(Calculations!$E$2=\"Shetland Health Board\",Calculations!$E$2=\"Western Isles Health Board\",Calculations!$E$2=\"Shetland Islands Local Authority\",Calculations!$E$2=\"Eilean Siar Local Authority\"),OR($F137=1,$F137=5)),0,new_ci(VALUE(LEFT(Options!$B$14,2)),$C137,$E137,$F137,2016,$I137/10+$J137/10,1,$H137/10,$G137*$H137/10,RateRatios_accidents!$B$5)*10))","v":{"$error":"#VALUE!"}},{"$f":"IF(AND(OR(Calculations!$E$2=\"Orkney Health Board\",Calculations!$E$2=\"Orkney Islands Local Authority\"),$F137=1),0,IF(AND(OR(Calculations!$E$2=\"Shetland Health Board\",Calculations!$E$2=\"Western Isles Health Board\",Calculations!$E$2=\"Shetland Islands Local Authority\",Calculations!$E$2=\"Eilean Siar Local Authority\"),OR($F137=1,$F137=5)),0,new_yllv2(VALUE(LEFT(Options!$B$14,2)),$C137,$D137,$E137,$F137,2016,$I137/10,1,$H137/10,$G137*$H137/10,RateRatios_accidents!$B$5)*10))","v":{"$error":"#VALUE!"}},{"$f":"IF(AND(OR(Calculations!$E$2=\"Orkney Health Board\",Calculations!$E$2=\"Orkney Islands Local Authority\"),$F137=1),0,IF(AND(OR(Calculations!$E$2=\"Shetland Health Board\",Calculations!$E$2=\"Western Isles Health Board\",Calculations!$E$2=\"Shetland Islands Local Authority\",Calculations!$E$2=\"Eilean Siar Local Authority\"),OR($F137=1,$F137=5)),0,new_yllv2(VALUE(LEFT(Options!$B$14,2)),$C137,$D137,$E137,$F137,2016,$I137/10+$J137/10,1,$H137/10,$G137*$H137/10,RateRatios_accidents!$B$5)*10))","v":{"$error":"#VALUE!"}},{"$f":"IF(AND(OR(Calculations!$E$2=\"Orkney Health Board\",Calculations!$E$2=\"Orkney Islands Local Authority\"),$F137=1),0,IF(AND(OR(Calculations!$E$2=\"Shetland Health Board\",Calculations!$E$2=\"Western Isles Health Board\",Calculations!$E$2=\"Shetland Islands Local Authority\",Calculations!$E$2=\"Eilean Siar Local Authority\"),OR($F137=1,$F137=5)),0,hosp_count(VALUE(LEFT(Options!$B$14,2)),$C137,$E137,$F137,2016,$I137/10,1,$H137/10,$G137*$H137/10, RateRatios_accidents!$B$4, RateRatios_accidents!$B$5)*10))","v":{"$error":"#VALUE!"}},{"$f":"IF(AND(OR(Calculations!$E$2=\"Orkney Health Board\",Calculations!$E$2=\"Orkney Islands Local Authority\"),$F137=1),0,IF(AND(OR(Calculations!$E$2=\"Shetland Health Board\",Calculations!$E$2=\"Western Isles Health Board\",Calculations!$E$2=\"Shetland Islands Local Authority\",Calculations!$E$2=\"Eilean Siar Local Authority\"),OR($F137=1,$F137=5)),0,hosp_count(VALUE(LEFT(Options!$B$14,2)),$C137,$E137,$F137,2016,$I137/10+$J137/10,1,$H137/10,$G137*$H137/10, RateRatios_accidents!$B$4, RateRatios_accidents!$B$5)*10))","v":{"$error":"#VALUE!"}},{"$f":"IF(AND(OR(Calculations!$E$2=\"Orkney Health Board\",Calculations!$E$2=\"Orkney Islands Local Authority\"),$F137=1),0,IF(AND(OR(Calculations!$E$2=\"Shetland Health Board\",Calculations!$E$2=\"Western Isles Health Board\",Calculations!$E$2=\"Shetland Islands Local Authority\",Calculations!$E$2=\"Eilean Siar Local Authority\"),OR($F137=1,$F137=5)),0,prem_mort(VALUE(LEFT(Options!$B$14,2)),$C137,$E137,$F137,2016,$I137/10,1,$H137/10,$G137*$H137/10,RateRatios_accidents!$B$5)*10))","v":{"$error":"#VALUE!"}},{"$f":"IF(AND(OR(Calculations!$E$2=\"Orkney Health Board\",Calculations!$E$2=\"Orkney Islands Local Authority\"),$F137=1),0,IF(AND(OR(Calculations!$E$2=\"Shetland Health Board\",Calculations!$E$2=\"Western Isles Health Board\",Calculations!$E$2=\"Shetland Islands Local Authority\",Calculations!$E$2=\"Eilean Siar Local Authority\"),OR($F137=1,$F137=5)),0,prem_mort(VALUE(LEFT(Options!$B$14,2)),$C137,$E137,$F137,2016,$I137/10+$J137/10,1,$H137/10,$G137*$H137/10,RateRatios_accidents!$B$5)*10))","v":{"$error":"#VALUE!"}},null,{"$f":"IF(AND(OR(Calculations!$E$2=\"Orkney Health Board\",Calculations!$E$2=\"Orkney Islands Local Authority\"),$F137=1),0,IF(AND(OR(Calculations!$E$2=\"Shetland Health Board\",Calculations!$E$2=\"Western Isles Health Board\",Calculations!$E$2=\"Shetland Islands Local Authority\",Calculations!$E$2=\"Eilean Siar Local Authority\"),OR($F137=1,$F137=5)),0,new_ci(VALUE(LEFT(Options!$B$14,2)),$C137,$E137,$F137,2016,$I137/10,1,$H137/10,$G137*$H137/10,RateRatios_airpollution!$C137)*10))","v":{"$error":"#VALUE!"}},{"$f":"IF(AND(OR(Calculations!$E$2=\"Orkney Health Board\",Calculations!$E$2=\"Orkney Islands Local Authority\"),$F137=1),0,IF(AND(OR(Calculations!$E$2=\"Shetland Health Board\",Calculations!$E$2=\"Western Isles Health Board\",Calculations!$E$2=\"Shetland Islands Local Authority\",Calculations!$E$2=\"Eilean Siar Local Authority\"),OR($F137=1,$F137=5)),0,new_ci(VALUE(LEFT(Options!$B$14,2)),$C137,$E137,$F137,2016,$I137/10+$J137/10,1,$H137/10,$G137*$H137/10,RateRatios_airpollution!$C137)*10))","v":{"$error":"#VALUE!"}},{"$f":"IF(AND(OR(Calculations!$E$2=\"Orkney Health Board\",Calculations!$E$2=\"Orkney Islands Local Authority\"),$F137=1),0,IF(AND(OR(Calculations!$E$2=\"Shetland Health Board\",Calculations!$E$2=\"Western Isles Health Board\",Calculations!$E$2=\"Shetland Islands Local Authority\",Calculations!$E$2=\"Eilean Siar Local Authority\"),OR($F137=1,$F137=5)),0,new_yllv2(VALUE(LEFT(Options!$B$14,2)),$C137,$D137,$E137,$F137,2016,$I137/10,1,$H137/10,$G137*$H137/10,RateRatios_airpollution!$C137)*10))","v":{"$error":"#VALUE!"}},{"$f":"IF(AND(OR(Calculations!$E$2=\"Orkney Health Board\",Calculations!$E$2=\"Orkney Islands Local Authority\"),$F137=1),0,IF(AND(OR(Calculations!$E$2=\"Shetland Health Board\",Calculations!$E$2=\"Western Isles Health Board\",Calculations!$E$2=\"Shetland Islands Local Authority\",Calculations!$E$2=\"Eilean Siar Local Authority\"),OR($F137=1,$F137=5)),0,new_yllv2(VALUE(LEFT(Options!$B$14,2)),$C137,$D137,$E137,$F137,2016,$I137/10+$J137/10,1,$H137/10,$G137*$H137/10,RateRatios_airpollution!$C137)*10))","v":{"$error":"#VALUE!"}},{"$f":"IF(AND(OR(Calculations!$E$2=\"Orkney Health Board\",Calculations!$E$2=\"Orkney Islands Local Authority\"),$F137=1),0,IF(AND(OR(Calculations!$E$2=\"Shetland Health Board\",Calculations!$E$2=\"Western Isles Health Board\",Calculations!$E$2=\"Shetland Islands Local Authority\",Calculations!$E$2=\"Eilean Siar Local Authority\"),OR($F137=1,$F137=5)),0,hosp_count(VALUE(LEFT(Options!$B$14,2)),$C137,$E137,$F137,2016,$I137/10,1,$H137/10,$G137*$H137/10, RateRatios_airpollution!$D137, RateRatios_airpollution!$C137)*10))","v":{"$error":"#VALUE!"}},{"$f":"IF(AND(OR(Calculations!$E$2=\"Orkney Health Board\",Calculations!$E$2=\"Orkney Islands Local Authority\"),$F137=1),0,IF(AND(OR(Calculations!$E$2=\"Shetland Health Board\",Calculations!$E$2=\"Western Isles Health Board\",Calculations!$E$2=\"Shetland Islands Local Authority\",Calculations!$E$2=\"Eilean Siar Local Authority\"),OR($F137=1,$F137=5)),0,hosp_count(VALUE(LEFT(Options!$B$14,2)),$C137,$E137,$F137,2016,$I137/10+$J137/10,1,$H137/10,$G137*$H137/10, RateRatios_airpollution!$D137, RateRatios_airpollution!$C137)*10))","v":{"$error":"#VALUE!"}},{"$f":"IF(AND(OR(Calculations!$E$2=\"Orkney Health Board\",Calculations!$E$2=\"Orkney Islands Local Authority\"),$F137=1),0,IF(AND(OR(Calculations!$E$2=\"Shetland Health Board\",Calculations!$E$2=\"Western Isles Health Board\",Calculations!$E$2=\"Shetland Islands Local Authority\",Calculations!$E$2=\"Eilean Siar Local Authority\"),OR($F137=1,$F137=5)),0,prem_mort(VALUE(LEFT(Options!$B$14,2)),$C137,$E137,$F137,2016,$I137/10,1,$H137/10,$G137*$H137/10,RateRatios_airpollution!$C137)*10))","v":{"$error":"#VALUE!"}},{"$f":"IF(AND(OR(Calculations!$E$2=\"Orkney Health Board\",Calculations!$E$2=\"Orkney Islands Local Authority\"),$F137=1),0,IF(AND(OR(Calculations!$E$2=\"Shetland Health Board\",Calculations!$E$2=\"Western Isles Health Board\",Calculations!$E$2=\"Shetland Islands Local Authority\",Calculations!$E$2=\"Eilean Siar Local Authority\"),OR($F137=1,$F137=5)),0,prem_mort(VALUE(LEFT(Options!$B$14,2)),$C137,$E137,$F137,2016,$I137/10+$J137/10,1,$H137/10,$G137*$H137/10,RateRatios_airpollution!$C137)*10))","v":{"$error":"#VALUE!"}},null,{"$f":"IF(AND(OR(Calculations!$E$2=\"Orkney Health Board\",Calculations!$E$2=\"Orkney Islands Local Authority\"),$F137=1),0,IF(AND(OR(Calculations!$E$2=\"Shetland Health Board\",Calculations!$E$2=\"Western Isles Health Board\",Calculations!$E$2=\"Shetland Islands Local Authority\",Calculations!$E$2=\"Eilean Siar Local Authority\"),OR($F137=1,$F137=5)),0,new_ci(VALUE(LEFT(Options!$B$14,2)),$C137,$E137,$F137,2016,$I137/10,1,$H137/10,$G137*$H137/10,RateRatios_airpollution!$E137)*10))","v":{"$error":"#VALUE!"}},{"$f":"IF(AND(OR(Calculations!$E$2=\"Orkney Health Board\",Calculations!$E$2=\"Orkney Islands Local Authority\"),$F137=1),0,IF(AND(OR(Calculations!$E$2=\"Shetland Health Board\",Calculations!$E$2=\"Western Isles Health Board\",Calculations!$E$2=\"Shetland Islands Local Authority\",Calculations!$E$2=\"Eilean Siar Local Authority\"),OR($F137=1,$F137=5)),0,new_ci(VALUE(LEFT(Options!$B$14,2)),$C137,$E137,$F137,2016,$I137/10+$J137/10,1,$H137/10,$G137*$H137/10,RateRatios_airpollution!$E137)*10))","v":{"$error":"#VALUE!"}},{"$f":"IF(AND(OR(Calculations!$E$2=\"Orkney Health Board\",Calculations!$E$2=\"Orkney Islands Local Authority\"),$F137=1),0,IF(AND(OR(Calculations!$E$2=\"Shetland Health Board\",Calculations!$E$2=\"Western Isles Health Board\",Calculations!$E$2=\"Shetland Islands Local Authority\",Calculations!$E$2=\"Eilean Siar Local Authority\"),OR($F137=1,$F137=5)),0,new_yllv2(VALUE(LEFT(Options!$B$14,2)),$C137,$D137,$E137,$F137,2016,$I137/10,1,$H137/10,$G137*$H137/10,RateRatios_airpollution!$E137)*10))","v":{"$error":"#VALUE!"}},{"$f":"IF(AND(OR(Calculations!$E$2=\"Orkney Health Board\",Calculations!$E$2=\"Orkney Islands Local Authority\"),$F137=1),0,IF(AND(OR(Calculations!$E$2=\"Shetland Health Board\",Calculations!$E$2=\"Western Isles Health Board\",Calculations!$E$2=\"Shetland Islands Local Authority\",Calculations!$E$2=\"Eilean Siar Local Authority\"),OR($F137=1,$F137=5)),0,new_yllv2(VALUE(LEFT(Options!$B$14,2)),$C137,$D137,$E137,$F137,2016,$I137/10+$J137/10,1,$H137/10,$G137*$H137/10,RateRatios_airpollution!$E137)*10))","v":{"$error":"#VALUE!"}},{"$f":"IF(AND(OR(Calculations!$E$2=\"Orkney Health Board\",Calculations!$E$2=\"Orkney Islands Local Authority\"),$F137=1),0,IF(AND(OR(Calculations!$E$2=\"Shetland Health Board\",Calculations!$E$2=\"Western Isles Health Board\",Calculations!$E$2=\"Shetland Islands Local Authority\",Calculations!$E$2=\"Eilean Siar Local Authority\"),OR($F137=1,$F137=5)),0,hosp_count(VALUE(LEFT(Options!$B$14,2)),$C137,$E137,$F137,2016,$I137/10,1,$H137/10,$G137*$H137/10, RateRatios_airpollution!$F137, RateRatios_airpollution!$E137)*10))","v":{"$error":"#VALUE!"}},{"$f":"IF(AND(OR(Calculations!$E$2=\"Orkney Health Board\",Calculations!$E$2=\"Orkney Islands Local Authority\"),$F137=1),0,IF(AND(OR(Calculations!$E$2=\"Shetland Health Board\",Calculations!$E$2=\"Western Isles Health Board\",Calculations!$E$2=\"Shetland Islands Local Authority\",Calculations!$E$2=\"Eilean Siar Local Authority\"),OR($F137=1,$F137=5)),0,hosp_count(VALUE(LEFT(Options!$B$14,2)),$C137,$E137,$F137,2016,$I137/10+$J137/10,1,$H137/10,$G137*$H137/10, RateRatios_airpollution!$F137, RateRatios_airpollution!$E137)*10))","v":{"$error":"#VALUE!"}},{"$f":"IF(AND(OR(Calculations!$E$2=\"Orkney Health Board\",Calculations!$E$2=\"Orkney Islands Local Authority\"),$F137=1),0,IF(AND(OR(Calculations!$E$2=\"Shetland Health Board\",Calculations!$E$2=\"Western Isles Health Board\",Calculations!$E$2=\"Shetland Islands Local Authority\",Calculations!$E$2=\"Eilean Siar Local Authority\"),OR($F137=1,$F137=5)),0,prem_mort(VALUE(LEFT(Options!$B$14,2)),$C137,$E137,$F137,2016,$I137/10,1,$H137/10,$G137*$H137/10,RateRatios_airpollution!$E137)*10))","v":{"$error":"#VALUE!"}},{"$f":"IF(AND(OR(Calculations!$E$2=\"Orkney Health Board\",Calculations!$E$2=\"Orkney Islands Local Authority\"),$F137=1),0,IF(AND(OR(Calculations!$E$2=\"Shetland Health Board\",Calculations!$E$2=\"Western Isles Health Board\",Calculations!$E$2=\"Shetland Islands Local Authority\",Calculations!$E$2=\"Eilean Siar Local Authority\"),OR($F137=1,$F137=5)),0,prem_mort(VALUE(LEFT(Options!$B$14,2)),$C137,$E137,$F137,2016,$I137/10+$J137/10,1,$H137/10,$G137*$H137/10,RateRatios_airpollution!$E137)*10))","v":{"$error":"#VALUE!"}},{"$error":"#VALUE!"},{"$error":"#VALUE!"},{"$error":"#VALUE!"},{"$error":"#VALUE!"},{"$error":"#VALUE!"},{"$error":"#VALUE!"},{"$error":"#VALUE!"},{"$error":"#VALUE!"},{"$error":"#VALUE!"},{"$error":"#VALUE!"},{"$error":"#VALUE!"},{"$error":"#VALUE!"},{"$error":"#VALUE!"},{"$error":"#VALUE!"},{"$error":"#VALUE!"},{"$error":"#VALUE!"},{"$error":"#VALUE!"},{"$error":"#VALUE!"},{"$error":"#VALUE!"},{"$error":"#VALUE!"},{"$error":"#VALUE!"},{"$error":"#VALUE!"},{"$error":"#VALUE!"},{"$error":"#VALUE!"},5500]
[null,"Female 10-15",12.478312000000001,81.948309999999992,"female",3,1,{"$f":"HLOOKUP(Calculations!$E$2,'Population 2016'!$C$3:$BC$249,'Population 2016'!BD138,FALSE)","v":0},0,{"$f":"HLOOKUP(Calculations!$E$2,Pop2016_in_settlements!$C$3:$BC$249,Pop2016_in_settlements!$BD138,FALSE)","v":0},{"$f":"IF(AND(OR(Calculations!$E$2=\"Orkney Health Board\",Calculations!$E$2=\"Orkney Islands Local Authority\"),$F138=1),0,IF(AND(OR(Calculations!$E$2=\"Shetland Health Board\",Calculations!$E$2=\"Western Isles Health Board\",Calculations!$E$2=\"Shetland Islands Local Authority\",Calculations!$E$2=\"Eilean Siar Local Authority\"),OR($F138=1,$F138=5)),0,new_ci(VALUE(LEFT(Options!$B$14,2)),$C138,$E138,$F138,2016,$I138/10,1,$H138/10,$G138*$H138/10,RateRatios_accidents!$B$5)*10))","v":{"$error":"#VALUE!"}},{"$f":"IF(AND(OR(Calculations!$E$2=\"Orkney Health Board\",Calculations!$E$2=\"Orkney Islands Local Authority\"),$F138=1),0,IF(AND(OR(Calculations!$E$2=\"Shetland Health Board\",Calculations!$E$2=\"Western Isles Health Board\",Calculations!$E$2=\"Shetland Islands Local Authority\",Calculations!$E$2=\"Eilean Siar Local Authority\"),OR($F138=1,$F138=5)),0,new_ci(VALUE(LEFT(Options!$B$14,2)),$C138,$E138,$F138,2016,$I138/10+$J138/10,1,$H138/10,$G138*$H138/10,RateRatios_accidents!$B$5)*10))","v":{"$error":"#VALUE!"}},{"$f":"IF(AND(OR(Calculations!$E$2=\"Orkney Health Board\",Calculations!$E$2=\"Orkney Islands Local Authority\"),$F138=1),0,IF(AND(OR(Calculations!$E$2=\"Shetland Health Board\",Calculations!$E$2=\"Western Isles Health Board\",Calculations!$E$2=\"Shetland Islands Local Authority\",Calculations!$E$2=\"Eilean Siar Local Authority\"),OR($F138=1,$F138=5)),0,new_yllv2(VALUE(LEFT(Options!$B$14,2)),$C138,$D138,$E138,$F138,2016,$I138/10,1,$H138/10,$G138*$H138/10,RateRatios_accidents!$B$5)*10))","v":{"$error":"#VALUE!"}},{"$f":"IF(AND(OR(Calculations!$E$2=\"Orkney Health Board\",Calculations!$E$2=\"Orkney Islands Local Authority\"),$F138=1),0,IF(AND(OR(Calculations!$E$2=\"Shetland Health Board\",Calculations!$E$2=\"Western Isles Health Board\",Calculations!$E$2=\"Shetland Islands Local Authority\",Calculations!$E$2=\"Eilean Siar Local Authority\"),OR($F138=1,$F138=5)),0,new_yllv2(VALUE(LEFT(Options!$B$14,2)),$C138,$D138,$E138,$F138,2016,$I138/10+$J138/10,1,$H138/10,$G138*$H138/10,RateRatios_accidents!$B$5)*10))","v":{"$error":"#VALUE!"}},{"$f":"IF(AND(OR(Calculations!$E$2=\"Orkney Health Board\",Calculations!$E$2=\"Orkney Islands Local Authority\"),$F138=1),0,IF(AND(OR(Calculations!$E$2=\"Shetland Health Board\",Calculations!$E$2=\"Western Isles Health Board\",Calculations!$E$2=\"Shetland Islands Local Authority\",Calculations!$E$2=\"Eilean Siar Local Authority\"),OR($F138=1,$F138=5)),0,hosp_count(VALUE(LEFT(Options!$B$14,2)),$C138,$E138,$F138,2016,$I138/10,1,$H138/10,$G138*$H138/10, RateRatios_accidents!$B$4, RateRatios_accidents!$B$5)*10))","v":{"$error":"#VALUE!"}},{"$f":"IF(AND(OR(Calculations!$E$2=\"Orkney Health Board\",Calculations!$E$2=\"Orkney Islands Local Authority\"),$F138=1),0,IF(AND(OR(Calculations!$E$2=\"Shetland Health Board\",Calculations!$E$2=\"Western Isles Health Board\",Calculations!$E$2=\"Shetland Islands Local Authority\",Calculations!$E$2=\"Eilean Siar Local Authority\"),OR($F138=1,$F138=5)),0,hosp_count(VALUE(LEFT(Options!$B$14,2)),$C138,$E138,$F138,2016,$I138/10+$J138/10,1,$H138/10,$G138*$H138/10, RateRatios_accidents!$B$4, RateRatios_accidents!$B$5)*10))","v":{"$error":"#VALUE!"}},{"$f":"IF(AND(OR(Calculations!$E$2=\"Orkney Health Board\",Calculations!$E$2=\"Orkney Islands Local Authority\"),$F138=1),0,IF(AND(OR(Calculations!$E$2=\"Shetland Health Board\",Calculations!$E$2=\"Western Isles Health Board\",Calculations!$E$2=\"Shetland Islands Local Authority\",Calculations!$E$2=\"Eilean Siar Local Authority\"),OR($F138=1,$F138=5)),0,prem_mort(VALUE(LEFT(Options!$B$14,2)),$C138,$E138,$F138,2016,$I138/10,1,$H138/10,$G138*$H138/10,RateRatios_accidents!$B$5)*10))","v":{"$error":"#VALUE!"}},{"$f":"IF(AND(OR(Calculations!$E$2=\"Orkney Health Board\",Calculations!$E$2=\"Orkney Islands Local Authority\"),$F138=1),0,IF(AND(OR(Calculations!$E$2=\"Shetland Health Board\",Calculations!$E$2=\"Western Isles Health Board\",Calculations!$E$2=\"Shetland Islands Local Authority\",Calculations!$E$2=\"Eilean Siar Local Authority\"),OR($F138=1,$F138=5)),0,prem_mort(VALUE(LEFT(Options!$B$14,2)),$C138,$E138,$F138,2016,$I138/10+$J138/10,1,$H138/10,$G138*$H138/10,RateRatios_accidents!$B$5)*10))","v":{"$error":"#VALUE!"}},null,{"$f":"IF(AND(OR(Calculations!$E$2=\"Orkney Health Board\",Calculations!$E$2=\"Orkney Islands Local Authority\"),$F138=1),0,IF(AND(OR(Calculations!$E$2=\"Shetland Health Board\",Calculations!$E$2=\"Western Isles Health Board\",Calculations!$E$2=\"Shetland Islands Local Authority\",Calculations!$E$2=\"Eilean Siar Local Authority\"),OR($F138=1,$F138=5)),0,new_ci(VALUE(LEFT(Options!$B$14,2)),$C138,$E138,$F138,2016,$I138/10,1,$H138/10,$G138*$H138/10,RateRatios_airpollution!$C138)*10))","v":{"$error":"#VALUE!"}},{"$f":"IF(AND(OR(Calculations!$E$2=\"Orkney Health Board\",Calculations!$E$2=\"Orkney Islands Local Authority\"),$F138=1),0,IF(AND(OR(Calculations!$E$2=\"Shetland Health Board\",Calculations!$E$2=\"Western Isles Health Board\",Calculations!$E$2=\"Shetland Islands Local Authority\",Calculations!$E$2=\"Eilean Siar Local Authority\"),OR($F138=1,$F138=5)),0,new_ci(VALUE(LEFT(Options!$B$14,2)),$C138,$E138,$F138,2016,$I138/10+$J138/10,1,$H138/10,$G138*$H138/10,RateRatios_airpollution!$C138)*10))","v":{"$error":"#VALUE!"}},{"$f":"IF(AND(OR(Calculations!$E$2=\"Orkney Health Board\",Calculations!$E$2=\"Orkney Islands Local Authority\"),$F138=1),0,IF(AND(OR(Calculations!$E$2=\"Shetland Health Board\",Calculations!$E$2=\"Western Isles Health Board\",Calculations!$E$2=\"Shetland Islands Local Authority\",Calculations!$E$2=\"Eilean Siar Local Authority\"),OR($F138=1,$F138=5)),0,new_yllv2(VALUE(LEFT(Options!$B$14,2)),$C138,$D138,$E138,$F138,2016,$I138/10,1,$H138/10,$G138*$H138/10,RateRatios_airpollution!$C138)*10))","v":{"$error":"#VALUE!"}},{"$f":"IF(AND(OR(Calculations!$E$2=\"Orkney Health Board\",Calculations!$E$2=\"Orkney Islands Local Authority\"),$F138=1),0,IF(AND(OR(Calculations!$E$2=\"Shetland Health Board\",Calculations!$E$2=\"Western Isles Health Board\",Calculations!$E$2=\"Shetland Islands Local Authority\",Calculations!$E$2=\"Eilean Siar Local Authority\"),OR($F138=1,$F138=5)),0,new_yllv2(VALUE(LEFT(Options!$B$14,2)),$C138,$D138,$E138,$F138,2016,$I138/10+$J138/10,1,$H138/10,$G138*$H138/10,RateRatios_airpollution!$C138)*10))","v":{"$error":"#VALUE!"}},{"$f":"IF(AND(OR(Calculations!$E$2=\"Orkney Health Board\",Calculations!$E$2=\"Orkney Islands Local Authority\"),$F138=1),0,IF(AND(OR(Calculations!$E$2=\"Shetland Health Board\",Calculations!$E$2=\"Western Isles Health Board\",Calculations!$E$2=\"Shetland Islands Local Authority\",Calculations!$E$2=\"Eilean Siar Local Authority\"),OR($F138=1,$F138=5)),0,hosp_count(VALUE(LEFT(Options!$B$14,2)),$C138,$E138,$F138,2016,$I138/10,1,$H138/10,$G138*$H138/10, RateRatios_airpollution!$D138, RateRatios_airpollution!$C138)*10))","v":{"$error":"#VALUE!"}},{"$f":"IF(AND(OR(Calculations!$E$2=\"Orkney Health Board\",Calculations!$E$2=\"Orkney Islands Local Authority\"),$F138=1),0,IF(AND(OR(Calculations!$E$2=\"Shetland Health Board\",Calculations!$E$2=\"Western Isles Health Board\",Calculations!$E$2=\"Shetland Islands Local Authority\",Calculations!$E$2=\"Eilean Siar Local Authority\"),OR($F138=1,$F138=5)),0,hosp_count(VALUE(LEFT(Options!$B$14,2)),$C138,$E138,$F138,2016,$I138/10+$J138/10,1,$H138/10,$G138*$H138/10, RateRatios_airpollution!$D138, RateRatios_airpollution!$C138)*10))","v":{"$error":"#VALUE!"}},{"$f":"IF(AND(OR(Calculations!$E$2=\"Orkney Health Board\",Calculations!$E$2=\"Orkney Islands Local Authority\"),$F138=1),0,IF(AND(OR(Calculations!$E$2=\"Shetland Health Board\",Calculations!$E$2=\"Western Isles Health Board\",Calculations!$E$2=\"Shetland Islands Local Authority\",Calculations!$E$2=\"Eilean Siar Local Authority\"),OR($F138=1,$F138=5)),0,prem_mort(VALUE(LEFT(Options!$B$14,2)),$C138,$E138,$F138,2016,$I138/10,1,$H138/10,$G138*$H138/10,RateRatios_airpollution!$C138)*10))","v":{"$error":"#VALUE!"}},{"$f":"IF(AND(OR(Calculations!$E$2=\"Orkney Health Board\",Calculations!$E$2=\"Orkney Islands Local Authority\"),$F138=1),0,IF(AND(OR(Calculations!$E$2=\"Shetland Health Board\",Calculations!$E$2=\"Western Isles Health Board\",Calculations!$E$2=\"Shetland Islands Local Authority\",Calculations!$E$2=\"Eilean Siar Local Authority\"),OR($F138=1,$F138=5)),0,prem_mort(VALUE(LEFT(Options!$B$14,2)),$C138,$E138,$F138,2016,$I138/10+$J138/10,1,$H138/10,$G138*$H138/10,RateRatios_airpollution!$C138)*10))","v":{"$error":"#VALUE!"}},null,{"$f":"IF(AND(OR(Calculations!$E$2=\"Orkney Health Board\",Calculations!$E$2=\"Orkney Islands Local Authority\"),$F138=1),0,IF(AND(OR(Calculations!$E$2=\"Shetland Health Board\",Calculations!$E$2=\"Western Isles Health Board\",Calculations!$E$2=\"Shetland Islands Local Authority\",Calculations!$E$2=\"Eilean Siar Local Authority\"),OR($F138=1,$F138=5)),0,new_ci(VALUE(LEFT(Options!$B$14,2)),$C138,$E138,$F138,2016,$I138/10,1,$H138/10,$G138*$H138/10,RateRatios_airpollution!$E138)*10))","v":{"$error":"#VALUE!"}},{"$f":"IF(AND(OR(Calculations!$E$2=\"Orkney Health Board\",Calculations!$E$2=\"Orkney Islands Local Authority\"),$F138=1),0,IF(AND(OR(Calculations!$E$2=\"Shetland Health Board\",Calculations!$E$2=\"Western Isles Health Board\",Calculations!$E$2=\"Shetland Islands Local Authority\",Calculations!$E$2=\"Eilean Siar Local Authority\"),OR($F138=1,$F138=5)),0,new_ci(VALUE(LEFT(Options!$B$14,2)),$C138,$E138,$F138,2016,$I138/10+$J138/10,1,$H138/10,$G138*$H138/10,RateRatios_airpollution!$E138)*10))","v":{"$error":"#VALUE!"}},{"$f":"IF(AND(OR(Calculations!$E$2=\"Orkney Health Board\",Calculations!$E$2=\"Orkney Islands Local Authority\"),$F138=1),0,IF(AND(OR(Calculations!$E$2=\"Shetland Health Board\",Calculations!$E$2=\"Western Isles Health Board\",Calculations!$E$2=\"Shetland Islands Local Authority\",Calculations!$E$2=\"Eilean Siar Local Authority\"),OR($F138=1,$F138=5)),0,new_yllv2(VALUE(LEFT(Options!$B$14,2)),$C138,$D138,$E138,$F138,2016,$I138/10,1,$H138/10,$G138*$H138/10,RateRatios_airpollution!$E138)*10))","v":{"$error":"#VALUE!"}},{"$f":"IF(AND(OR(Calculations!$E$2=\"Orkney Health Board\",Calculations!$E$2=\"Orkney Islands Local Authority\"),$F138=1),0,IF(AND(OR(Calculations!$E$2=\"Shetland Health Board\",Calculations!$E$2=\"Western Isles Health Board\",Calculations!$E$2=\"Shetland Islands Local Authority\",Calculations!$E$2=\"Eilean Siar Local Authority\"),OR($F138=1,$F138=5)),0,new_yllv2(VALUE(LEFT(Options!$B$14,2)),$C138,$D138,$E138,$F138,2016,$I138/10+$J138/10,1,$H138/10,$G138*$H138/10,RateRatios_airpollution!$E138)*10))","v":{"$error":"#VALUE!"}},{"$f":"IF(AND(OR(Calculations!$E$2=\"Orkney Health Board\",Calculations!$E$2=\"Orkney Islands Local Authority\"),$F138=1),0,IF(AND(OR(Calculations!$E$2=\"Shetland Health Board\",Calculations!$E$2=\"Western Isles Health Board\",Calculations!$E$2=\"Shetland Islands Local Authority\",Calculations!$E$2=\"Eilean Siar Local Authority\"),OR($F138=1,$F138=5)),0,hosp_count(VALUE(LEFT(Options!$B$14,2)),$C138,$E138,$F138,2016,$I138/10,1,$H138/10,$G138*$H138/10, RateRatios_airpollution!$F138, RateRatios_airpollution!$E138)*10))","v":{"$error":"#VALUE!"}},{"$f":"IF(AND(OR(Calculations!$E$2=\"Orkney Health Board\",Calculations!$E$2=\"Orkney Islands Local Authority\"),$F138=1),0,IF(AND(OR(Calculations!$E$2=\"Shetland Health Board\",Calculations!$E$2=\"Western Isles Health Board\",Calculations!$E$2=\"Shetland Islands Local Authority\",Calculations!$E$2=\"Eilean Siar Local Authority\"),OR($F138=1,$F138=5)),0,hosp_count(VALUE(LEFT(Options!$B$14,2)),$C138,$E138,$F138,2016,$I138/10+$J138/10,1,$H138/10,$G138*$H138/10, RateRatios_airpollution!$F138, RateRatios_airpollution!$E138)*10))","v":{"$error":"#VALUE!"}},{"$f":"IF(AND(OR(Calculations!$E$2=\"Orkney Health Board\",Calculations!$E$2=\"Orkney Islands Local Authority\"),$F138=1),0,IF(AND(OR(Calculations!$E$2=\"Shetland Health Board\",Calculations!$E$2=\"Western Isles Health Board\",Calculations!$E$2=\"Shetland Islands Local Authority\",Calculations!$E$2=\"Eilean Siar Local Authority\"),OR($F138=1,$F138=5)),0,prem_mort(VALUE(LEFT(Options!$B$14,2)),$C138,$E138,$F138,2016,$I138/10,1,$H138/10,$G138*$H138/10,RateRatios_airpollution!$E138)*10))","v":{"$error":"#VALUE!"}},{"$f":"IF(AND(OR(Calculations!$E$2=\"Orkney Health Board\",Calculations!$E$2=\"Orkney Islands Local Authority\"),$F138=1),0,IF(AND(OR(Calculations!$E$2=\"Shetland Health Board\",Calculations!$E$2=\"Western Isles Health Board\",Calculations!$E$2=\"Shetland Islands Local Authority\",Calculations!$E$2=\"Eilean Siar Local Authority\"),OR($F138=1,$F138=5)),0,prem_mort(VALUE(LEFT(Options!$B$14,2)),$C138,$E138,$F138,2016,$I138/10+$J138/10,1,$H138/10,$G138*$H138/10,RateRatios_airpollution!$E138)*10))","v":{"$error":"#VALUE!"}},{"$error":"#VALUE!"},{"$error":"#VALUE!"},{"$error":"#VALUE!"},{"$error":"#VALUE!"},{"$error":"#VALUE!"},{"$error":"#VALUE!"},{"$error":"#VALUE!"},{"$error":"#VALUE!"},{"$error":"#VALUE!"},{"$error":"#VALUE!"},{"$error":"#VALUE!"},{"$error":"#VALUE!"},{"$error":"#VALUE!"},{"$error":"#VALUE!"},{"$error":"#VALUE!"},{"$error":"#VALUE!"},{"$error":"#VALUE!"},{"$error":"#VALUE!"},{"$error":"#VALUE!"},{"$error":"#VALUE!"},{"$error":"#VALUE!"},{"$error":"#VALUE!"},{"$error":"#VALUE!"},{"$error":"#VALUE!"},6600]
["SIMD Q3","Female 16-19",17.570053000000001,81.100049999999996,"female",3,1,{"$f":"HLOOKUP(Calculations!$E$2,'Population 2016'!$C$3:$BC$249,'Population 2016'!BD139,FALSE)","v":22864},0,{"$f":"HLOOKUP(Calculations!$E$2,Pop2016_in_settlements!$C$3:$BC$249,Pop2016_in_settlements!$BD139,FALSE)","v":11176},{"$f":"IF(AND(OR(Calculations!$E$2=\"Orkney Health Board\",Calculations!$E$2=\"Orkney Islands Local Authority\"),$F139=1),0,IF(AND(OR(Calculations!$E$2=\"Shetland Health Board\",Calculations!$E$2=\"Western Isles Health Board\",Calculations!$E$2=\"Shetland Islands Local Authority\",Calculations!$E$2=\"Eilean Siar Local Authority\"),OR($F139=1,$F139=5)),0,new_ci(VALUE(LEFT(Options!$B$14,2)),$C139,$E139,$F139,2016,$I139/10,1,$H139/10,$G139*$H139/10,RateRatios_accidents!$B$5)*10))","v":4.1158446690000003},{"$f":"IF(AND(OR(Calculations!$E$2=\"Orkney Health Board\",Calculations!$E$2=\"Orkney Islands Local Authority\"),$F139=1),0,IF(AND(OR(Calculations!$E$2=\"Shetland Health Board\",Calculations!$E$2=\"Western Isles Health Board\",Calculations!$E$2=\"Shetland Islands Local Authority\",Calculations!$E$2=\"Eilean Siar Local Authority\"),OR($F139=1,$F139=5)),0,new_ci(VALUE(LEFT(Options!$B$14,2)),$C139,$E139,$F139,2016,$I139/10+$J139/10,1,$H139/10,$G139*$H139/10,RateRatios_accidents!$B$5)*10))","v":4.1150399970000002},{"$f":"IF(AND(OR(Calculations!$E$2=\"Orkney Health Board\",Calculations!$E$2=\"Orkney Islands Local Authority\"),$F139=1),0,IF(AND(OR(Calculations!$E$2=\"Shetland Health Board\",Calculations!$E$2=\"Western Isles Health Board\",Calculations!$E$2=\"Shetland Islands Local Authority\",Calculations!$E$2=\"Eilean Siar Local Authority\"),OR($F139=1,$F139=5)),0,new_yllv2(VALUE(LEFT(Options!$B$14,2)),$C139,$D139,$E139,$F139,2016,$I139/10,1,$H139/10,$G139*$H139/10,RateRatios_accidents!$B$5)*10))","v":257.36375480499999},{"$f":"IF(AND(OR(Calculations!$E$2=\"Orkney Health Board\",Calculations!$E$2=\"Orkney Islands Local Authority\"),$F139=1),0,IF(AND(OR(Calculations!$E$2=\"Shetland Health Board\",Calculations!$E$2=\"Western Isles Health Board\",Calculations!$E$2=\"Shetland Islands Local Authority\",Calculations!$E$2=\"Eilean Siar Local Authority\"),OR($F139=1,$F139=5)),0,new_yllv2(VALUE(LEFT(Options!$B$14,2)),$C139,$D139,$E139,$F139,2016,$I139/10+$J139/10,1,$H139/10,$G139*$H139/10,RateRatios_accidents!$B$5)*10))","v":257.31343866700001},{"$f":"IF(AND(OR(Calculations!$E$2=\"Orkney Health Board\",Calculations!$E$2=\"Orkney Islands Local Authority\"),$F139=1),0,IF(AND(OR(Calculations!$E$2=\"Shetland Health Board\",Calculations!$E$2=\"Western Isles Health Board\",Calculations!$E$2=\"Shetland Islands Local Authority\",Calculations!$E$2=\"Eilean Siar Local Authority\"),OR($F139=1,$F139=5)),0,hosp_count(VALUE(LEFT(Options!$B$14,2)),$C139,$E139,$F139,2016,$I139/10,1,$H139/10,$G139*$H139/10, RateRatios_accidents!$B$4, RateRatios_accidents!$B$5)*10))","v":2290.5686582220001},{"$f":"IF(AND(OR(Calculations!$E$2=\"Orkney Health Board\",Calculations!$E$2=\"Orkney Islands Local Authority\"),$F139=1),0,IF(AND(OR(Calculations!$E$2=\"Shetland Health Board\",Calculations!$E$2=\"Western Isles Health Board\",Calculations!$E$2=\"Shetland Islands Local Authority\",Calculations!$E$2=\"Eilean Siar Local Authority\"),OR($F139=1,$F139=5)),0,hosp_count(VALUE(LEFT(Options!$B$14,2)),$C139,$E139,$F139,2016,$I139/10+$J139/10,1,$H139/10,$G139*$H139/10, RateRatios_accidents!$B$4, RateRatios_accidents!$B$5)*10))","v":2290.1208034920001},{"$f":"IF(AND(OR(Calculations!$E$2=\"Orkney Health Board\",Calculations!$E$2=\"Orkney Islands Local Authority\"),$F139=1),0,IF(AND(OR(Calculations!$E$2=\"Shetland Health Board\",Calculations!$E$2=\"Western Isles Health Board\",Calculations!$E$2=\"Shetland Islands Local Authority\",Calculations!$E$2=\"Eilean Siar Local Authority\"),OR($F139=1,$F139=5)),0,prem_mort(VALUE(LEFT(Options!$B$14,2)),$C139,$E139,$F139,2016,$I139/10,1,$H139/10,$G139*$H139/10,RateRatios_accidents!$B$5)*10))","v":4.1158446690000003},{"$f":"IF(AND(OR(Calculations!$E$2=\"Orkney Health Board\",Calculations!$E$2=\"Orkney Islands Local Authority\"),$F139=1),0,IF(AND(OR(Calculations!$E$2=\"Shetland Health Board\",Calculations!$E$2=\"Western Isles Health Board\",Calculations!$E$2=\"Shetland Islands Local Authority\",Calculations!$E$2=\"Eilean Siar Local Authority\"),OR($F139=1,$F139=5)),0,prem_mort(VALUE(LEFT(Options!$B$14,2)),$C139,$E139,$F139,2016,$I139/10+$J139/10,1,$H139/10,$G139*$H139/10,RateRatios_accidents!$B$5)*10))","v":4.1150399970000002},null,{"$f":"IF(AND(OR(Calculations!$E$2=\"Orkney Health Board\",Calculations!$E$2=\"Orkney Islands Local Authority\"),$F139=1),0,IF(AND(OR(Calculations!$E$2=\"Shetland Health Board\",Calculations!$E$2=\"Western Isles Health Board\",Calculations!$E$2=\"Shetland Islands Local Authority\",Calculations!$E$2=\"Eilean Siar Local Authority\"),OR($F139=1,$F139=5)),0,new_ci(VALUE(LEFT(Options!$B$14,2)),$C139,$E139,$F139,2016,$I139/10,1,$H139/10,$G139*$H139/10,RateRatios_airpollution!$C139)*10))","v":4.1158446690000003},{"$f":"IF(AND(OR(Calculations!$E$2=\"Orkney Health Board\",Calculations!$E$2=\"Orkney Islands Local Authority\"),$F139=1),0,IF(AND(OR(Calculations!$E$2=\"Shetland Health Board\",Calculations!$E$2=\"Western Isles Health Board\",Calculations!$E$2=\"Shetland Islands Local Authority\",Calculations!$E$2=\"Eilean Siar Local Authority\"),OR($F139=1,$F139=5)),0,new_ci(VALUE(LEFT(Options!$B$14,2)),$C139,$E139,$F139,2016,$I139/10+$J139/10,1,$H139/10,$G139*$H139/10,RateRatios_airpollution!$C139)*10))","v":4.1157899059999998},{"$f":"IF(AND(OR(Calculations!$E$2=\"Orkney Health Board\",Calculations!$E$2=\"Orkney Islands Local Authority\"),$F139=1),0,IF(AND(OR(Calculations!$E$2=\"Shetland Health Board\",Calculations!$E$2=\"Western Isles Health Board\",Calculations!$E$2=\"Shetland Islands Local Authority\",Calculations!$E$2=\"Eilean Siar Local Authority\"),OR($F139=1,$F139=5)),0,new_yllv2(VALUE(LEFT(Options!$B$14,2)),$C139,$D139,$E139,$F139,2016,$I139/10,1,$H139/10,$G139*$H139/10,RateRatios_airpollution!$C139)*10))","v":257.36375480499999},{"$f":"IF(AND(OR(Calculations!$E$2=\"Orkney Health Board\",Calculations!$E$2=\"Orkney Islands Local Authority\"),$F139=1),0,IF(AND(OR(Calculations!$E$2=\"Shetland Health Board\",Calculations!$E$2=\"Western Isles Health Board\",Calculations!$E$2=\"Shetland Islands Local Authority\",Calculations!$E$2=\"Eilean Siar Local Authority\"),OR($F139=1,$F139=5)),0,new_yllv2(VALUE(LEFT(Options!$B$14,2)),$C139,$D139,$E139,$F139,2016,$I139/10+$J139/10,1,$H139/10,$G139*$H139/10,RateRatios_airpollution!$C139)*10))","v":257.36033047500001},{"$f":"IF(AND(OR(Calculations!$E$2=\"Orkney Health Board\",Calculations!$E$2=\"Orkney Islands Local Authority\"),$F139=1),0,IF(AND(OR(Calculations!$E$2=\"Shetland Health Board\",Calculations!$E$2=\"Western Isles Health Board\",Calculations!$E$2=\"Shetland Islands Local Authority\",Calculations!$E$2=\"Eilean Siar Local Authority\"),OR($F139=1,$F139=5)),0,hosp_count(VALUE(LEFT(Options!$B$14,2)),$C139,$E139,$F139,2016,$I139/10,1,$H139/10,$G139*$H139/10, RateRatios_airpollution!$D139, RateRatios_airpollution!$C139)*10))","v":2290.5686582220001},{"$f":"IF(AND(OR(Calculations!$E$2=\"Orkney Health Board\",Calculations!$E$2=\"Orkney Islands Local Authority\"),$F139=1),0,IF(AND(OR(Calculations!$E$2=\"Shetland Health Board\",Calculations!$E$2=\"Western Isles Health Board\",Calculations!$E$2=\"Shetland Islands Local Authority\",Calculations!$E$2=\"Eilean Siar Local Authority\"),OR($F139=1,$F139=5)),0,hosp_count(VALUE(LEFT(Options!$B$14,2)),$C139,$E139,$F139,2016,$I139/10+$J139/10,1,$H139/10,$G139*$H139/10, RateRatios_airpollution!$D139, RateRatios_airpollution!$C139)*10))","v":2290.5110571180003},{"$f":"IF(AND(OR(Calculations!$E$2=\"Orkney Health Board\",Calculations!$E$2=\"Orkney Islands Local Authority\"),$F139=1),0,IF(AND(OR(Calculations!$E$2=\"Shetland Health Board\",Calculations!$E$2=\"Western Isles Health Board\",Calculations!$E$2=\"Shetland Islands Local Authority\",Calculations!$E$2=\"Eilean Siar Local Authority\"),OR($F139=1,$F139=5)),0,prem_mort(VALUE(LEFT(Options!$B$14,2)),$C139,$E139,$F139,2016,$I139/10,1,$H139/10,$G139*$H139/10,RateRatios_airpollution!$C139)*10))","v":4.1158446690000003},{"$f":"IF(AND(OR(Calculations!$E$2=\"Orkney Health Board\",Calculations!$E$2=\"Orkney Islands Local Authority\"),$F139=1),0,IF(AND(OR(Calculations!$E$2=\"Shetland Health Board\",Calculations!$E$2=\"Western Isles Health Board\",Calculations!$E$2=\"Shetland Islands Local Authority\",Calculations!$E$2=\"Eilean Siar Local Authority\"),OR($F139=1,$F139=5)),0,prem_mort(VALUE(LEFT(Options!$B$14,2)),$C139,$E139,$F139,2016,$I139/10+$J139/10,1,$H139/10,$G139*$H139/10,RateRatios_airpollution!$C139)*10))","v":4.1157899059999998},null,{"$f":"IF(AND(OR(Calculations!$E$2=\"Orkney Health Board\",Calculations!$E$2=\"Orkney Islands Local Authority\"),$F139=1),0,IF(AND(OR(Calculations!$E$2=\"Shetland Health Board\",Calculations!$E$2=\"Western Isles Health Board\",Calculations!$E$2=\"Shetland Islands Local Authority\",Calculations!$E$2=\"Eilean Siar Local Authority\"),OR($F139=1,$F139=5)),0,new_ci(VALUE(LEFT(Options!$B$14,2)),$C139,$E139,$F139,2016,$I139/10,1,$H139/10,$G139*$H139/10,RateRatios_airpollution!$E139)*10))","v":4.1158446690000003},{"$f":"IF(AND(OR(Calculations!$E$2=\"Orkney Health Board\",Calculations!$E$2=\"Orkney Islands Local Authority\"),$F139=1),0,IF(AND(OR(Calculations!$E$2=\"Shetland Health Board\",Calculations!$E$2=\"Western Isles Health Board\",Calculations!$E$2=\"Shetland Islands Local Authority\",Calculations!$E$2=\"Eilean Siar Local Authority\"),OR($F139=1,$F139=5)),0,new_ci(VALUE(LEFT(Options!$B$14,2)),$C139,$E139,$F139,2016,$I139/10+$J139/10,1,$H139/10,$G139*$H139/10,RateRatios_airpollution!$E139)*10))","v":4.1158234340000002},{"$f":"IF(AND(OR(Calculations!$E$2=\"Orkney Health Board\",Calculations!$E$2=\"Orkney Islands Local Authority\"),$F139=1),0,IF(AND(OR(Calculations!$E$2=\"Shetland Health Board\",Calculations!$E$2=\"Western Isles Health Board\",Calculations!$E$2=\"Shetland Islands Local Authority\",Calculations!$E$2=\"Eilean Siar Local Authority\"),OR($F139=1,$F139=5)),0,new_yllv2(VALUE(LEFT(Options!$B$14,2)),$C139,$D139,$E139,$F139,2016,$I139/10,1,$H139/10,$G139*$H139/10,RateRatios_airpollution!$E139)*10))","v":257.36375480499999},{"$f":"IF(AND(OR(Calculations!$E$2=\"Orkney Health Board\",Calculations!$E$2=\"Orkney Islands Local Authority\"),$F139=1),0,IF(AND(OR(Calculations!$E$2=\"Shetland Health Board\",Calculations!$E$2=\"Western Isles Health Board\",Calculations!$E$2=\"Shetland Islands Local Authority\",Calculations!$E$2=\"Eilean Siar Local Authority\"),OR($F139=1,$F139=5)),0,new_yllv2(VALUE(LEFT(Options!$B$14,2)),$C139,$D139,$E139,$F139,2016,$I139/10+$J139/10,1,$H139/10,$G139*$H139/10,RateRatios_airpollution!$E139)*10))","v":257.362426981},{"$f":"IF(AND(OR(Calculations!$E$2=\"Orkney Health Board\",Calculations!$E$2=\"Orkney Islands Local Authority\"),$F139=1),0,IF(AND(OR(Calculations!$E$2=\"Shetland Health Board\",Calculations!$E$2=\"Western Isles Health Board\",Calculations!$E$2=\"Shetland Islands Local Authority\",Calculations!$E$2=\"Eilean Siar Local Authority\"),OR($F139=1,$F139=5)),0,hosp_count(VALUE(LEFT(Options!$B$14,2)),$C139,$E139,$F139,2016,$I139/10,1,$H139/10,$G139*$H139/10, RateRatios_airpollution!$F139, RateRatios_airpollution!$E139)*10))","v":2290.5686582220001},{"$f":"IF(AND(OR(Calculations!$E$2=\"Orkney Health Board\",Calculations!$E$2=\"Orkney Islands Local Authority\"),$F139=1),0,IF(AND(OR(Calculations!$E$2=\"Shetland Health Board\",Calculations!$E$2=\"Western Isles Health Board\",Calculations!$E$2=\"Shetland Islands Local Authority\",Calculations!$E$2=\"Eilean Siar Local Authority\"),OR($F139=1,$F139=5)),0,hosp_count(VALUE(LEFT(Options!$B$14,2)),$C139,$E139,$F139,2016,$I139/10+$J139/10,1,$H139/10,$G139*$H139/10, RateRatios_airpollution!$F139, RateRatios_airpollution!$E139)*10))","v":2290.5686582220001},{"$f":"IF(AND(OR(Calculations!$E$2=\"Orkney Health Board\",Calculations!$E$2=\"Orkney Islands Local Authority\"),$F139=1),0,IF(AND(OR(Calculations!$E$2=\"Shetland Health Board\",Calculations!$E$2=\"Western Isles Health Board\",Calculations!$E$2=\"Shetland Islands Local Authority\",Calculations!$E$2=\"Eilean Siar Local Authority\"),OR($F139=1,$F139=5)),0,prem_mort(VALUE(LEFT(Options!$B$14,2)),$C139,$E139,$F139,2016,$I139/10,1,$H139/10,$G139*$H139/10,RateRatios_airpollution!$E139)*10))","v":4.1158446690000003},{"$f":"IF(AND(OR(Calculations!$E$2=\"Orkney Health Board\",Calculations!$E$2=\"Orkney Islands Local Authority\"),$F139=1),0,IF(AND(OR(Calculations!$E$2=\"Shetland Health Board\",Calculations!$E$2=\"Western Isles Health Board\",Calculations!$E$2=\"Shetland Islands Local Authority\",Calculations!$E$2=\"Eilean Siar Local Authority\"),OR($F139=1,$F139=5)),0,prem_mort(VALUE(LEFT(Options!$B$14,2)),$C139,$E139,$F139,2016,$I139/10+$J139/10,1,$H139/10,$G139*$H139/10,RateRatios_airpollution!$E139)*10))","v":4.1158234340000002},4.1158446690000003,4.1149639989999995,257.36375480499999,257.30868651300005,2290.5686582220001,2290.0632023880003,4.1158446690000003,4.1149639989999995,18.001420000874742,17.997568225157451,1125.6287386502797,1125.3878871282368,10018.232409998251,10016.02170393632,18.001420000874742,17.997568225157451,79206.248003848857,79189.300190692782,4952766.4500612309,4951706.7033642419,44080222.603992306,44070495.49731981,79206.248003848857,79189.300190692782,4400]
[null,"Female 20-24",22.077057,81.667060000000006,"female",3,1,{"$f":"HLOOKUP(Calculations!$E$2,'Population 2016'!$C$3:$BC$249,'Population 2016'!BD140,FALSE)","v":34910},0,{"$f":"HLOOKUP(Calculations!$E$2,Pop2016_in_settlements!$C$3:$BC$249,Pop2016_in_settlements!$BD140,FALSE)","v":17838},{"$f":"IF(AND(OR(Calculations!$E$2=\"Orkney Health Board\",Calculations!$E$2=\"Orkney Islands Local Authority\"),$F140=1),0,IF(AND(OR(Calculations!$E$2=\"Shetland Health Board\",Calculations!$E$2=\"Western Isles Health Board\",Calculations!$E$2=\"Shetland Islands Local Authority\",Calculations!$E$2=\"Eilean Siar Local Authority\"),OR($F140=1,$F140=5)),0,new_ci(VALUE(LEFT(Options!$B$14,2)),$C140,$E140,$F140,2016,$I140/10,1,$H140/10,$G140*$H140/10,RateRatios_accidents!$B$5)*10))","v":9.2197868559999989},{"$f":"IF(AND(OR(Calculations!$E$2=\"Orkney Health Board\",Calculations!$E$2=\"Orkney Islands Local Authority\"),$F140=1),0,IF(AND(OR(Calculations!$E$2=\"Shetland Health Board\",Calculations!$E$2=\"Western Isles Health Board\",Calculations!$E$2=\"Shetland Islands Local Authority\",Calculations!$E$2=\"Eilean Siar Local Authority\"),OR($F140=1,$F140=5)),0,new_ci(VALUE(LEFT(Options!$B$14,2)),$C140,$E140,$F140,2016,$I140/10+$J140/10,1,$H140/10,$G140*$H140/10,RateRatios_accidents!$B$5)*10))","v":9.2179013790000006},{"$f":"IF(AND(OR(Calculations!$E$2=\"Orkney Health Board\",Calculations!$E$2=\"Orkney Islands Local Authority\"),$F140=1),0,IF(AND(OR(Calculations!$E$2=\"Shetland Health Board\",Calculations!$E$2=\"Western Isles Health Board\",Calculations!$E$2=\"Shetland Islands Local Authority\",Calculations!$E$2=\"Eilean Siar Local Authority\"),OR($F140=1,$F140=5)),0,new_yllv2(VALUE(LEFT(Options!$B$14,2)),$C140,$D140,$E140,$F140,2016,$I140/10,1,$H140/10,$G140*$H140/10,RateRatios_accidents!$B$5)*10))","v":540.18733955200003},{"$f":"IF(AND(OR(Calculations!$E$2=\"Orkney Health Board\",Calculations!$E$2=\"Orkney Islands Local Authority\"),$F140=1),0,IF(AND(OR(Calculations!$E$2=\"Shetland Health Board\",Calculations!$E$2=\"Western Isles Health Board\",Calculations!$E$2=\"Shetland Islands Local Authority\",Calculations!$E$2=\"Eilean Siar Local Authority\"),OR($F140=1,$F140=5)),0,new_yllv2(VALUE(LEFT(Options!$B$14,2)),$C140,$D140,$E140,$F140,2016,$I140/10+$J140/10,1,$H140/10,$G140*$H140/10,RateRatios_accidents!$B$5)*10))","v":540.07686944900001},{"$f":"IF(AND(OR(Calculations!$E$2=\"Orkney Health Board\",Calculations!$E$2=\"Orkney Islands Local Authority\"),$F140=1),0,IF(AND(OR(Calculations!$E$2=\"Shetland Health Board\",Calculations!$E$2=\"Western Isles Health Board\",Calculations!$E$2=\"Shetland Islands Local Authority\",Calculations!$E$2=\"Eilean Siar Local Authority\"),OR($F140=1,$F140=5)),0,hosp_count(VALUE(LEFT(Options!$B$14,2)),$C140,$E140,$F140,2016,$I140/10,1,$H140/10,$G140*$H140/10, RateRatios_accidents!$B$4, RateRatios_accidents!$B$5)*10))","v":3917.2018699179998},{"$f":"IF(AND(OR(Calculations!$E$2=\"Orkney Health Board\",Calculations!$E$2=\"Orkney Islands Local Authority\"),$F140=1),0,IF(AND(OR(Calculations!$E$2=\"Shetland Health Board\",Calculations!$E$2=\"Western Isles Health Board\",Calculations!$E$2=\"Shetland Islands Local Authority\",Calculations!$E$2=\"Eilean Siar Local Authority\"),OR($F140=1,$F140=5)),0,hosp_count(VALUE(LEFT(Options!$B$14,2)),$C140,$E140,$F140,2016,$I140/10+$J140/10,1,$H140/10,$G140*$H140/10, RateRatios_accidents!$B$4, RateRatios_accidents!$B$5)*10))","v":3916.4012398289997},{"$f":"IF(AND(OR(Calculations!$E$2=\"Orkney Health Board\",Calculations!$E$2=\"Orkney Islands Local Authority\"),$F140=1),0,IF(AND(OR(Calculations!$E$2=\"Shetland Health Board\",Calculations!$E$2=\"Western Isles Health Board\",Calculations!$E$2=\"Shetland Islands Local Authority\",Calculations!$E$2=\"Eilean Siar Local Authority\"),OR($F140=1,$F140=5)),0,prem_mort(VALUE(LEFT(Options!$B$14,2)),$C140,$E140,$F140,2016,$I140/10,1,$H140/10,$G140*$H140/10,RateRatios_accidents!$B$5)*10))","v":9.2197868559999989},{"$f":"IF(AND(OR(Calculations!$E$2=\"Orkney Health Board\",Calculations!$E$2=\"Orkney Islands Local Authority\"),$F140=1),0,IF(AND(OR(Calculations!$E$2=\"Shetland Health Board\",Calculations!$E$2=\"Western Isles Health Board\",Calculations!$E$2=\"Shetland Islands Local Authority\",Calculations!$E$2=\"Eilean Siar Local Authority\"),OR($F140=1,$F140=5)),0,prem_mort(VALUE(LEFT(Options!$B$14,2)),$C140,$E140,$F140,2016,$I140/10+$J140/10,1,$H140/10,$G140*$H140/10,RateRatios_accidents!$B$5)*10))","v":9.2179013790000006},null,{"$f":"IF(AND(OR(Calculations!$E$2=\"Orkney Health Board\",Calculations!$E$2=\"Orkney Islands Local Authority\"),$F140=1),0,IF(AND(OR(Calculations!$E$2=\"Shetland Health Board\",Calculations!$E$2=\"Western Isles Health Board\",Calculations!$E$2=\"Shetland Islands Local Authority\",Calculations!$E$2=\"Eilean Siar Local Authority\"),OR($F140=1,$F140=5)),0,new_ci(VALUE(LEFT(Options!$B$14,2)),$C140,$E140,$F140,2016,$I140/10,1,$H140/10,$G140*$H140/10,RateRatios_airpollution!$C140)*10))","v":9.2197868559999989},{"$f":"IF(AND(OR(Calculations!$E$2=\"Orkney Health Board\",Calculations!$E$2=\"Orkney Islands Local Authority\"),$F140=1),0,IF(AND(OR(Calculations!$E$2=\"Shetland Health Board\",Calculations!$E$2=\"Western Isles Health Board\",Calculations!$E$2=\"Shetland Islands Local Authority\",Calculations!$E$2=\"Eilean Siar Local Authority\"),OR($F140=1,$F140=5)),0,new_ci(VALUE(LEFT(Options!$B$14,2)),$C140,$E140,$F140,2016,$I140/10+$J140/10,1,$H140/10,$G140*$H140/10,RateRatios_airpollution!$C140)*10))","v":9.2196191790000004},{"$f":"IF(AND(OR(Calculations!$E$2=\"Orkney Health Board\",Calculations!$E$2=\"Orkney Islands Local Authority\"),$F140=1),0,IF(AND(OR(Calculations!$E$2=\"Shetland Health Board\",Calculations!$E$2=\"Western Isles Health Board\",Calculations!$E$2=\"Shetland Islands Local Authority\",Calculations!$E$2=\"Eilean Siar Local Authority\"),OR($F140=1,$F140=5)),0,new_yllv2(VALUE(LEFT(Options!$B$14,2)),$C140,$D140,$E140,$F140,2016,$I140/10,1,$H140/10,$G140*$H140/10,RateRatios_airpollution!$C140)*10))","v":540.18733955200003},{"$f":"IF(AND(OR(Calculations!$E$2=\"Orkney Health Board\",Calculations!$E$2=\"Orkney Islands Local Authority\"),$F140=1),0,IF(AND(OR(Calculations!$E$2=\"Shetland Health Board\",Calculations!$E$2=\"Western Isles Health Board\",Calculations!$E$2=\"Shetland Islands Local Authority\",Calculations!$E$2=\"Eilean Siar Local Authority\"),OR($F140=1,$F140=5)),0,new_yllv2(VALUE(LEFT(Options!$B$14,2)),$C140,$D140,$E140,$F140,2016,$I140/10+$J140/10,1,$H140/10,$G140*$H140/10,RateRatios_airpollution!$C140)*10))","v":540.17751535599996},{"$f":"IF(AND(OR(Calculations!$E$2=\"Orkney Health Board\",Calculations!$E$2=\"Orkney Islands Local Authority\"),$F140=1),0,IF(AND(OR(Calculations!$E$2=\"Shetland Health Board\",Calculations!$E$2=\"Western Isles Health Board\",Calculations!$E$2=\"Shetland Islands Local Authority\",Calculations!$E$2=\"Eilean Siar Local Authority\"),OR($F140=1,$F140=5)),0,hosp_count(VALUE(LEFT(Options!$B$14,2)),$C140,$E140,$F140,2016,$I140/10,1,$H140/10,$G140*$H140/10, RateRatios_airpollution!$D140, RateRatios_airpollution!$C140)*10))","v":3917.2018699179998},{"$f":"IF(AND(OR(Calculations!$E$2=\"Orkney Health Board\",Calculations!$E$2=\"Orkney Islands Local Authority\"),$F140=1),0,IF(AND(OR(Calculations!$E$2=\"Shetland Health Board\",Calculations!$E$2=\"Western Isles Health Board\",Calculations!$E$2=\"Shetland Islands Local Authority\",Calculations!$E$2=\"Eilean Siar Local Authority\"),OR($F140=1,$F140=5)),0,hosp_count(VALUE(LEFT(Options!$B$14,2)),$C140,$E140,$F140,2016,$I140/10+$J140/10,1,$H140/10,$G140*$H140/10, RateRatios_airpollution!$D140, RateRatios_airpollution!$C140)*10))","v":3917.0680974049997},{"$f":"IF(AND(OR(Calculations!$E$2=\"Orkney Health Board\",Calculations!$E$2=\"Orkney Islands Local Authority\"),$F140=1),0,IF(AND(OR(Calculations!$E$2=\"Shetland Health Board\",Calculations!$E$2=\"Western Isles Health Board\",Calculations!$E$2=\"Shetland Islands Local Authority\",Calculations!$E$2=\"Eilean Siar Local Authority\"),OR($F140=1,$F140=5)),0,prem_mort(VALUE(LEFT(Options!$B$14,2)),$C140,$E140,$F140,2016,$I140/10,1,$H140/10,$G140*$H140/10,RateRatios_airpollution!$C140)*10))","v":9.2197868559999989},{"$f":"IF(AND(OR(Calculations!$E$2=\"Orkney Health Board\",Calculations!$E$2=\"Orkney Islands Local Authority\"),$F140=1),0,IF(AND(OR(Calculations!$E$2=\"Shetland Health Board\",Calculations!$E$2=\"Western Isles Health Board\",Calculations!$E$2=\"Shetland Islands Local Authority\",Calculations!$E$2=\"Eilean Siar Local Authority\"),OR($F140=1,$F140=5)),0,prem_mort(VALUE(LEFT(Options!$B$14,2)),$C140,$E140,$F140,2016,$I140/10+$J140/10,1,$H140/10,$G140*$H140/10,RateRatios_airpollution!$C140)*10))","v":9.2196191790000004},null,{"$f":"IF(AND(OR(Calculations!$E$2=\"Orkney Health Board\",Calculations!$E$2=\"Orkney Islands Local Authority\"),$F140=1),0,IF(AND(OR(Calculations!$E$2=\"Shetland Health Board\",Calculations!$E$2=\"Western Isles Health Board\",Calculations!$E$2=\"Shetland Islands Local Authority\",Calculations!$E$2=\"Eilean Siar Local Authority\"),OR($F140=1,$F140=5)),0,new_ci(VALUE(LEFT(Options!$B$14,2)),$C140,$E140,$F140,2016,$I140/10,1,$H140/10,$G140*$H140/10,RateRatios_airpollution!$E140)*10))","v":9.2197868559999989},{"$f":"IF(AND(OR(Calculations!$E$2=\"Orkney Health Board\",Calculations!$E$2=\"Orkney Islands Local Authority\"),$F140=1),0,IF(AND(OR(Calculations!$E$2=\"Shetland Health Board\",Calculations!$E$2=\"Western Isles Health Board\",Calculations!$E$2=\"Shetland Islands Local Authority\",Calculations!$E$2=\"Eilean Siar Local Authority\"),OR($F140=1,$F140=5)),0,new_ci(VALUE(LEFT(Options!$B$14,2)),$C140,$E140,$F140,2016,$I140/10+$J140/10,1,$H140/10,$G140*$H140/10,RateRatios_airpollution!$E140)*10))","v":9.2197226390000004},{"$f":"IF(AND(OR(Calculations!$E$2=\"Orkney Health Board\",Calculations!$E$2=\"Orkney Islands Local Authority\"),$F140=1),0,IF(AND(OR(Calculations!$E$2=\"Shetland Health Board\",Calculations!$E$2=\"Western Isles Health Board\",Calculations!$E$2=\"Shetland Islands Local Authority\",Calculations!$E$2=\"Eilean Siar Local Authority\"),OR($F140=1,$F140=5)),0,new_yllv2(VALUE(LEFT(Options!$B$14,2)),$C140,$D140,$E140,$F140,2016,$I140/10,1,$H140/10,$G140*$H140/10,RateRatios_airpollution!$E140)*10))","v":540.18733955200003},{"$f":"IF(AND(OR(Calculations!$E$2=\"Orkney Health Board\",Calculations!$E$2=\"Orkney Islands Local Authority\"),$F140=1),0,IF(AND(OR(Calculations!$E$2=\"Shetland Health Board\",Calculations!$E$2=\"Western Isles Health Board\",Calculations!$E$2=\"Shetland Islands Local Authority\",Calculations!$E$2=\"Eilean Siar Local Authority\"),OR($F140=1,$F140=5)),0,new_yllv2(VALUE(LEFT(Options!$B$14,2)),$C140,$D140,$E140,$F140,2016,$I140/10+$J140/10,1,$H140/10,$G140*$H140/10,RateRatios_airpollution!$E140)*10))","v":540.18357707799998},{"$f":"IF(AND(OR(Calculations!$E$2=\"Orkney Health Board\",Calculations!$E$2=\"Orkney Islands Local Authority\"),$F140=1),0,IF(AND(OR(Calculations!$E$2=\"Shetland Health Board\",Calculations!$E$2=\"Western Isles Health Board\",Calculations!$E$2=\"Shetland Islands Local Authority\",Calculations!$E$2=\"Eilean Siar Local Authority\"),OR($F140=1,$F140=5)),0,hosp_count(VALUE(LEFT(Options!$B$14,2)),$C140,$E140,$F140,2016,$I140/10,1,$H140/10,$G140*$H140/10, RateRatios_airpollution!$F140, RateRatios_airpollution!$E140)*10))","v":3917.2018699179998},{"$f":"IF(AND(OR(Calculations!$E$2=\"Orkney Health Board\",Calculations!$E$2=\"Orkney Islands Local Authority\"),$F140=1),0,IF(AND(OR(Calculations!$E$2=\"Shetland Health Board\",Calculations!$E$2=\"Western Isles Health Board\",Calculations!$E$2=\"Shetland Islands Local Authority\",Calculations!$E$2=\"Eilean Siar Local Authority\"),OR($F140=1,$F140=5)),0,hosp_count(VALUE(LEFT(Options!$B$14,2)),$C140,$E140,$F140,2016,$I140/10+$J140/10,1,$H140/10,$G140*$H140/10, RateRatios_airpollution!$F140, RateRatios_airpollution!$E140)*10))","v":3917.2018699179998},{"$f":"IF(AND(OR(Calculations!$E$2=\"Orkney Health Board\",Calculations!$E$2=\"Orkney Islands Local Authority\"),$F140=1),0,IF(AND(OR(Calculations!$E$2=\"Shetland Health Board\",Calculations!$E$2=\"Western Isles Health Board\",Calculations!$E$2=\"Shetland Islands Local Authority\",Calculations!$E$2=\"Eilean Siar Local Authority\"),OR($F140=1,$F140=5)),0,prem_mort(VALUE(LEFT(Options!$B$14,2)),$C140,$E140,$F140,2016,$I140/10,1,$H140/10,$G140*$H140/10,RateRatios_airpollution!$E140)*10))","v":9.2197868559999989},{"$f":"IF(AND(OR(Calculations!$E$2=\"Orkney Health Board\",Calculations!$E$2=\"Orkney Islands Local Authority\"),$F140=1),0,IF(AND(OR(Calculations!$E$2=\"Shetland Health Board\",Calculations!$E$2=\"Western Isles Health Board\",Calculations!$E$2=\"Shetland Islands Local Authority\",Calculations!$E$2=\"Eilean Siar Local Authority\"),OR($F140=1,$F140=5)),0,prem_mort(VALUE(LEFT(Options!$B$14,2)),$C140,$E140,$F140,2016,$I140/10+$J140/10,1,$H140/10,$G140*$H140/10,RateRatios_airpollution!$E140)*10))","v":9.2197226390000004},9.2197868559999989,9.2176694850000036,540.18733955200003,540.06328277899991,3917.2018699179998,3916.2674673159995,9.2197868559999989,9.2176694850000036,26.410159999999994,26.404094772271566,1547.3713536293326,1547.0159919192206,11220.858980000001,11218.182375582925,26.410159999999994,26.404094772271566,158460.95999999996,158424.56863362939,9284228.1217759959,9282095.9515153244,67325153.88000001,67309094.253497541,158460.95999999996,158424.56863362939,6000]
[null,"Female 25-29",26.975186999999998,81.645189999999999,"female",3,1,{"$f":"HLOOKUP(Calculations!$E$2,'Population 2016'!$C$3:$BC$249,'Population 2016'!BD141,FALSE)","v":36432},0,{"$f":"HLOOKUP(Calculations!$E$2,Pop2016_in_settlements!$C$3:$BC$249,Pop2016_in_settlements!$BD141,FALSE)","v":17513},{"$f":"IF(AND(OR(Calculations!$E$2=\"Orkney Health Board\",Calculations!$E$2=\"Orkney Islands Local Authority\"),$F141=1),0,IF(AND(OR(Calculations!$E$2=\"Shetland Health Board\",Calculations!$E$2=\"Western Isles Health Board\",Calculations!$E$2=\"Shetland Islands Local Authority\",Calculations!$E$2=\"Eilean Siar Local Authority\"),OR($F141=1,$F141=5)),0,new_ci(VALUE(LEFT(Options!$B$14,2)),$C141,$E141,$F141,2016,$I141/10,1,$H141/10,$G141*$H141/10,RateRatios_accidents!$B$5)*10))","v":14.593336718},{"$f":"IF(AND(OR(Calculations!$E$2=\"Orkney Health Board\",Calculations!$E$2=\"Orkney Islands Local Authority\"),$F141=1),0,IF(AND(OR(Calculations!$E$2=\"Shetland Health Board\",Calculations!$E$2=\"Western Isles Health Board\",Calculations!$E$2=\"Shetland Islands Local Authority\",Calculations!$E$2=\"Eilean Siar Local Authority\"),OR($F141=1,$F141=5)),0,new_ci(VALUE(LEFT(Options!$B$14,2)),$C141,$E141,$F141,2016,$I141/10+$J141/10,1,$H141/10,$G141*$H141/10,RateRatios_accidents!$B$5)*10))","v":14.590531135999999},{"$f":"IF(AND(OR(Calculations!$E$2=\"Orkney Health Board\",Calculations!$E$2=\"Orkney Islands Local Authority\"),$F141=1),0,IF(AND(OR(Calculations!$E$2=\"Shetland Health Board\",Calculations!$E$2=\"Western Isles Health Board\",Calculations!$E$2=\"Shetland Islands Local Authority\",Calculations!$E$2=\"Eilean Siar Local Authority\"),OR($F141=1,$F141=5)),0,new_yllv2(VALUE(LEFT(Options!$B$14,2)),$C141,$D141,$E141,$F141,2016,$I141/10,1,$H141/10,$G141*$H141/10,RateRatios_accidents!$B$5)*10))","v":783.22442543500006},{"$f":"IF(AND(OR(Calculations!$E$2=\"Orkney Health Board\",Calculations!$E$2=\"Orkney Islands Local Authority\"),$F141=1),0,IF(AND(OR(Calculations!$E$2=\"Shetland Health Board\",Calculations!$E$2=\"Western Isles Health Board\",Calculations!$E$2=\"Shetland Islands Local Authority\",Calculations!$E$2=\"Eilean Siar Local Authority\"),OR($F141=1,$F141=5)),0,new_yllv2(VALUE(LEFT(Options!$B$14,2)),$C141,$D141,$E141,$F141,2016,$I141/10+$J141/10,1,$H141/10,$G141*$H141/10,RateRatios_accidents!$B$5)*10))","v":783.07384984099997},{"$f":"IF(AND(OR(Calculations!$E$2=\"Orkney Health Board\",Calculations!$E$2=\"Orkney Islands Local Authority\"),$F141=1),0,IF(AND(OR(Calculations!$E$2=\"Shetland Health Board\",Calculations!$E$2=\"Western Isles Health Board\",Calculations!$E$2=\"Shetland Islands Local Authority\",Calculations!$E$2=\"Eilean Siar Local Authority\"),OR($F141=1,$F141=5)),0,hosp_count(VALUE(LEFT(Options!$B$14,2)),$C141,$E141,$F141,2016,$I141/10,1,$H141/10,$G141*$H141/10, RateRatios_accidents!$B$4, RateRatios_accidents!$B$5)*10))","v":4623.9893221100001},{"$f":"IF(AND(OR(Calculations!$E$2=\"Orkney Health Board\",Calculations!$E$2=\"Orkney Islands Local Authority\"),$F141=1),0,IF(AND(OR(Calculations!$E$2=\"Shetland Health Board\",Calculations!$E$2=\"Western Isles Health Board\",Calculations!$E$2=\"Shetland Islands Local Authority\",Calculations!$E$2=\"Eilean Siar Local Authority\"),OR($F141=1,$F141=5)),0,hosp_count(VALUE(LEFT(Options!$B$14,2)),$C141,$E141,$F141,2016,$I141/10+$J141/10,1,$H141/10,$G141*$H141/10, RateRatios_accidents!$B$4, RateRatios_accidents!$B$5)*10))","v":4623.1002151209996},{"$f":"IF(AND(OR(Calculations!$E$2=\"Orkney Health Board\",Calculations!$E$2=\"Orkney Islands Local Authority\"),$F141=1),0,IF(AND(OR(Calculations!$E$2=\"Shetland Health Board\",Calculations!$E$2=\"Western Isles Health Board\",Calculations!$E$2=\"Shetland Islands Local Authority\",Calculations!$E$2=\"Eilean Siar Local Authority\"),OR($F141=1,$F141=5)),0,prem_mort(VALUE(LEFT(Options!$B$14,2)),$C141,$E141,$F141,2016,$I141/10,1,$H141/10,$G141*$H141/10,RateRatios_accidents!$B$5)*10))","v":14.593336718},{"$f":"IF(AND(OR(Calculations!$E$2=\"Orkney Health Board\",Calculations!$E$2=\"Orkney Islands Local Authority\"),$F141=1),0,IF(AND(OR(Calculations!$E$2=\"Shetland Health Board\",Calculations!$E$2=\"Western Isles Health Board\",Calculations!$E$2=\"Shetland Islands Local Authority\",Calculations!$E$2=\"Eilean Siar Local Authority\"),OR($F141=1,$F141=5)),0,prem_mort(VALUE(LEFT(Options!$B$14,2)),$C141,$E141,$F141,2016,$I141/10+$J141/10,1,$H141/10,$G141*$H141/10,RateRatios_accidents!$B$5)*10))","v":14.590531135999999},null,{"$f":"IF(AND(OR(Calculations!$E$2=\"Orkney Health Board\",Calculations!$E$2=\"Orkney Islands Local Authority\"),$F141=1),0,IF(AND(OR(Calculations!$E$2=\"Shetland Health Board\",Calculations!$E$2=\"Western Isles Health Board\",Calculations!$E$2=\"Shetland Islands Local Authority\",Calculations!$E$2=\"Eilean Siar Local Authority\"),OR($F141=1,$F141=5)),0,new_ci(VALUE(LEFT(Options!$B$14,2)),$C141,$E141,$F141,2016,$I141/10,1,$H141/10,$G141*$H141/10,RateRatios_airpollution!$C141)*10))","v":14.593336718},{"$f":"IF(AND(OR(Calculations!$E$2=\"Orkney Health Board\",Calculations!$E$2=\"Orkney Islands Local Authority\"),$F141=1),0,IF(AND(OR(Calculations!$E$2=\"Shetland Health Board\",Calculations!$E$2=\"Western Isles Health Board\",Calculations!$E$2=\"Shetland Islands Local Authority\",Calculations!$E$2=\"Eilean Siar Local Authority\"),OR($F141=1,$F141=5)),0,new_ci(VALUE(LEFT(Options!$B$14,2)),$C141,$E141,$F141,2016,$I141/10+$J141/10,1,$H141/10,$G141*$H141/10,RateRatios_airpollution!$C141)*10))","v":14.593119557000001},{"$f":"IF(AND(OR(Calculations!$E$2=\"Orkney Health Board\",Calculations!$E$2=\"Orkney Islands Local Authority\"),$F141=1),0,IF(AND(OR(Calculations!$E$2=\"Shetland Health Board\",Calculations!$E$2=\"Western Isles Health Board\",Calculations!$E$2=\"Shetland Islands Local Authority\",Calculations!$E$2=\"Eilean Siar Local Authority\"),OR($F141=1,$F141=5)),0,new_yllv2(VALUE(LEFT(Options!$B$14,2)),$C141,$D141,$E141,$F141,2016,$I141/10,1,$H141/10,$G141*$H141/10,RateRatios_airpollution!$C141)*10))","v":783.22442543500006},{"$f":"IF(AND(OR(Calculations!$E$2=\"Orkney Health Board\",Calculations!$E$2=\"Orkney Islands Local Authority\"),$F141=1),0,IF(AND(OR(Calculations!$E$2=\"Shetland Health Board\",Calculations!$E$2=\"Western Isles Health Board\",Calculations!$E$2=\"Shetland Islands Local Authority\",Calculations!$E$2=\"Eilean Siar Local Authority\"),OR($F141=1,$F141=5)),0,new_yllv2(VALUE(LEFT(Options!$B$14,2)),$C141,$D141,$E141,$F141,2016,$I141/10+$J141/10,1,$H141/10,$G141*$H141/10,RateRatios_airpollution!$C141)*10))","v":783.21277040400003},{"$f":"IF(AND(OR(Calculations!$E$2=\"Orkney Health Board\",Calculations!$E$2=\"Orkney Islands Local Authority\"),$F141=1),0,IF(AND(OR(Calculations!$E$2=\"Shetland Health Board\",Calculations!$E$2=\"Western Isles Health Board\",Calculations!$E$2=\"Shetland Islands Local Authority\",Calculations!$E$2=\"Eilean Siar Local Authority\"),OR($F141=1,$F141=5)),0,hosp_count(VALUE(LEFT(Options!$B$14,2)),$C141,$E141,$F141,2016,$I141/10,1,$H141/10,$G141*$H141/10, RateRatios_airpollution!$D141, RateRatios_airpollution!$C141)*10))","v":4623.9893221100001},{"$f":"IF(AND(OR(Calculations!$E$2=\"Orkney Health Board\",Calculations!$E$2=\"Orkney Islands Local Authority\"),$F141=1),0,IF(AND(OR(Calculations!$E$2=\"Shetland Health Board\",Calculations!$E$2=\"Western Isles Health Board\",Calculations!$E$2=\"Shetland Islands Local Authority\",Calculations!$E$2=\"Eilean Siar Local Authority\"),OR($F141=1,$F141=5)),0,hosp_count(VALUE(LEFT(Options!$B$14,2)),$C141,$E141,$F141,2016,$I141/10+$J141/10,1,$H141/10,$G141*$H141/10, RateRatios_airpollution!$D141, RateRatios_airpollution!$C141)*10))","v":4623.8597959620001},{"$f":"IF(AND(OR(Calculations!$E$2=\"Orkney Health Board\",Calculations!$E$2=\"Orkney Islands Local Authority\"),$F141=1),0,IF(AND(OR(Calculations!$E$2=\"Shetland Health Board\",Calculations!$E$2=\"Western Isles Health Board\",Calculations!$E$2=\"Shetland Islands Local Authority\",Calculations!$E$2=\"Eilean Siar Local Authority\"),OR($F141=1,$F141=5)),0,prem_mort(VALUE(LEFT(Options!$B$14,2)),$C141,$E141,$F141,2016,$I141/10,1,$H141/10,$G141*$H141/10,RateRatios_airpollution!$C141)*10))","v":14.593336718},{"$f":"IF(AND(OR(Calculations!$E$2=\"Orkney Health Board\",Calculations!$E$2=\"Orkney Islands Local Authority\"),$F141=1),0,IF(AND(OR(Calculations!$E$2=\"Shetland Health Board\",Calculations!$E$2=\"Western Isles Health Board\",Calculations!$E$2=\"Shetland Islands Local Authority\",Calculations!$E$2=\"Eilean Siar Local Authority\"),OR($F141=1,$F141=5)),0,prem_mort(VALUE(LEFT(Options!$B$14,2)),$C141,$E141,$F141,2016,$I141/10+$J141/10,1,$H141/10,$G141*$H141/10,RateRatios_airpollution!$C141)*10))","v":14.593119557000001},null,{"$f":"IF(AND(OR(Calculations!$E$2=\"Orkney Health Board\",Calculations!$E$2=\"Orkney Islands Local Authority\"),$F141=1),0,IF(AND(OR(Calculations!$E$2=\"Shetland Health Board\",Calculations!$E$2=\"Western Isles Health Board\",Calculations!$E$2=\"Shetland Islands Local Authority\",Calculations!$E$2=\"Eilean Siar Local Authority\"),OR($F141=1,$F141=5)),0,new_ci(VALUE(LEFT(Options!$B$14,2)),$C141,$E141,$F141,2016,$I141/10,1,$H141/10,$G141*$H141/10,RateRatios_airpollution!$E141)*10))","v":14.593336718},{"$f":"IF(AND(OR(Calculations!$E$2=\"Orkney Health Board\",Calculations!$E$2=\"Orkney Islands Local Authority\"),$F141=1),0,IF(AND(OR(Calculations!$E$2=\"Shetland Health Board\",Calculations!$E$2=\"Western Isles Health Board\",Calculations!$E$2=\"Shetland Islands Local Authority\",Calculations!$E$2=\"Eilean Siar Local Authority\"),OR($F141=1,$F141=5)),0,new_ci(VALUE(LEFT(Options!$B$14,2)),$C141,$E141,$F141,2016,$I141/10+$J141/10,1,$H141/10,$G141*$H141/10,RateRatios_airpollution!$E141)*10))","v":14.593247401999999},{"$f":"IF(AND(OR(Calculations!$E$2=\"Orkney Health Board\",Calculations!$E$2=\"Orkney Islands Local Authority\"),$F141=1),0,IF(AND(OR(Calculations!$E$2=\"Shetland Health Board\",Calculations!$E$2=\"Western Isles Health Board\",Calculations!$E$2=\"Shetland Islands Local Authority\",Calculations!$E$2=\"Eilean Siar Local Authority\"),OR($F141=1,$F141=5)),0,new_yllv2(VALUE(LEFT(Options!$B$14,2)),$C141,$D141,$E141,$F141,2016,$I141/10,1,$H141/10,$G141*$H141/10,RateRatios_airpollution!$E141)*10))","v":783.22442543500006},{"$f":"IF(AND(OR(Calculations!$E$2=\"Orkney Health Board\",Calculations!$E$2=\"Orkney Islands Local Authority\"),$F141=1),0,IF(AND(OR(Calculations!$E$2=\"Shetland Health Board\",Calculations!$E$2=\"Western Isles Health Board\",Calculations!$E$2=\"Shetland Islands Local Authority\",Calculations!$E$2=\"Eilean Siar Local Authority\"),OR($F141=1,$F141=5)),0,new_yllv2(VALUE(LEFT(Options!$B$14,2)),$C141,$D141,$E141,$F141,2016,$I141/10+$J141/10,1,$H141/10,$G141*$H141/10,RateRatios_airpollution!$E141)*10))","v":783.21963184500009},{"$f":"IF(AND(OR(Calculations!$E$2=\"Orkney Health Board\",Calculations!$E$2=\"Orkney Islands Local Authority\"),$F141=1),0,IF(AND(OR(Calculations!$E$2=\"Shetland Health Board\",Calculations!$E$2=\"Western Isles Health Board\",Calculations!$E$2=\"Shetland Islands Local Authority\",Calculations!$E$2=\"Eilean Siar Local Authority\"),OR($F141=1,$F141=5)),0,hosp_count(VALUE(LEFT(Options!$B$14,2)),$C141,$E141,$F141,2016,$I141/10,1,$H141/10,$G141*$H141/10, RateRatios_airpollution!$F141, RateRatios_airpollution!$E141)*10))","v":4623.9893221100001},{"$f":"IF(AND(OR(Calculations!$E$2=\"Orkney Health Board\",Calculations!$E$2=\"Orkney Islands Local Authority\"),$F141=1),0,IF(AND(OR(Calculations!$E$2=\"Shetland Health Board\",Calculations!$E$2=\"Western Isles Health Board\",Calculations!$E$2=\"Shetland Islands Local Authority\",Calculations!$E$2=\"Eilean Siar Local Authority\"),OR($F141=1,$F141=5)),0,hosp_count(VALUE(LEFT(Options!$B$14,2)),$C141,$E141,$F141,2016,$I141/10+$J141/10,1,$H141/10,$G141*$H141/10, RateRatios_airpollution!$F141, RateRatios_airpollution!$E141)*10))","v":4623.9893221100001},{"$f":"IF(AND(OR(Calculations!$E$2=\"Orkney Health Board\",Calculations!$E$2=\"Orkney Islands Local Authority\"),$F141=1),0,IF(AND(OR(Calculations!$E$2=\"Shetland Health Board\",Calculations!$E$2=\"Western Isles Health Board\",Calculations!$E$2=\"Shetland Islands Local Authority\",Calculations!$E$2=\"Eilean Siar Local Authority\"),OR($F141=1,$F141=5)),0,prem_mort(VALUE(LEFT(Options!$B$14,2)),$C141,$E141,$F141,2016,$I141/10,1,$H141/10,$G141*$H141/10,RateRatios_airpollution!$E141)*10))","v":14.593336718},{"$f":"IF(AND(OR(Calculations!$E$2=\"Orkney Health Board\",Calculations!$E$2=\"Orkney Islands Local Authority\"),$F141=1),0,IF(AND(OR(Calculations!$E$2=\"Shetland Health Board\",Calculations!$E$2=\"Western Isles Health Board\",Calculations!$E$2=\"Shetland Islands Local Authority\",Calculations!$E$2=\"Eilean Siar Local Authority\"),OR($F141=1,$F141=5)),0,prem_mort(VALUE(LEFT(Options!$B$14,2)),$C141,$E141,$F141,2016,$I141/10+$J141/10,1,$H141/10,$G141*$H141/10,RateRatios_airpollution!$E141)*10))","v":14.593247401999999},14.593336718,14.590224659,783.22442543500006,783.05740121999997,4623.9893221100001,4622.9706889729996,14.593336718,14.590224659,40.056369998902063,40.047827895805881,2149.8254980099914,2149.3670433135703,12692.109469998903,12689.313485323341,40.056369998902063,40.047827895805881,240338.21999341238,240286.96737483528,12898952.988059949,12896202.259881422,76152656.819993421,76135880.911940038,240338.21999341238,240286.96737483528,6000]
[null,"Female 30-34",31.999904999999998,81.799899999999994,"female",3,1,{"$f":"HLOOKUP(Calculations!$E$2,'Population 2016'!$C$3:$BC$249,'Population 2016'!BD142,FALSE)","v":34795},0,{"$f":"HLOOKUP(Calculations!$E$2,Pop2016_in_settlements!$C$3:$BC$249,Pop2016_in_settlements!$BD142,FALSE)","v":16449},{"$f":"IF(AND(OR(Calculations!$E$2=\"Orkney Health Board\",Calculations!$E$2=\"Orkney Islands Local Authority\"),$F142=1),0,IF(AND(OR(Calculations!$E$2=\"Shetland Health Board\",Calculations!$E$2=\"Western Isles Health Board\",Calculations!$E$2=\"Shetland Islands Local Authority\",Calculations!$E$2=\"Eilean Siar Local Authority\"),OR($F142=1,$F142=5)),0,new_ci(VALUE(LEFT(Options!$B$14,2)),$C142,$E142,$F142,2016,$I142/10,1,$H142/10,$G142*$H142/10,RateRatios_accidents!$B$5)*10))","v":21.367230234000001},{"$f":"IF(AND(OR(Calculations!$E$2=\"Orkney Health Board\",Calculations!$E$2=\"Orkney Islands Local Authority\"),$F142=1),0,IF(AND(OR(Calculations!$E$2=\"Shetland Health Board\",Calculations!$E$2=\"Western Isles Health Board\",Calculations!$E$2=\"Shetland Islands Local Authority\",Calculations!$E$2=\"Eilean Siar Local Authority\"),OR($F142=1,$F142=5)),0,new_ci(VALUE(LEFT(Options!$B$14,2)),$C142,$E142,$F142,2016,$I142/10+$J142/10,1,$H142/10,$G142*$H142/10,RateRatios_accidents!$B$5)*10))","v":21.363190360000001},{"$f":"IF(AND(OR(Calculations!$E$2=\"Orkney Health Board\",Calculations!$E$2=\"Orkney Islands Local Authority\"),$F142=1),0,IF(AND(OR(Calculations!$E$2=\"Shetland Health Board\",Calculations!$E$2=\"Western Isles Health Board\",Calculations!$E$2=\"Shetland Islands Local Authority\",Calculations!$E$2=\"Eilean Siar Local Authority\"),OR($F142=1,$F142=5)),0,new_yllv2(VALUE(LEFT(Options!$B$14,2)),$C142,$D142,$E142,$F142,2016,$I142/10,1,$H142/10,$G142*$H142/10,RateRatios_accidents!$B$5)*10))","v":1042.720728583},{"$f":"IF(AND(OR(Calculations!$E$2=\"Orkney Health Board\",Calculations!$E$2=\"Orkney Islands Local Authority\"),$F142=1),0,IF(AND(OR(Calculations!$E$2=\"Shetland Health Board\",Calculations!$E$2=\"Western Isles Health Board\",Calculations!$E$2=\"Shetland Islands Local Authority\",Calculations!$E$2=\"Eilean Siar Local Authority\"),OR($F142=1,$F142=5)),0,new_yllv2(VALUE(LEFT(Options!$B$14,2)),$C142,$D142,$E142,$F142,2016,$I142/10+$J142/10,1,$H142/10,$G142*$H142/10,RateRatios_accidents!$B$5)*10))","v":1042.523582752},{"$f":"IF(AND(OR(Calculations!$E$2=\"Orkney Health Board\",Calculations!$E$2=\"Orkney Islands Local Authority\"),$F142=1),0,IF(AND(OR(Calculations!$E$2=\"Shetland Health Board\",Calculations!$E$2=\"Western Isles Health Board\",Calculations!$E$2=\"Shetland Islands Local Authority\",Calculations!$E$2=\"Eilean Siar Local Authority\"),OR($F142=1,$F142=5)),0,hosp_count(VALUE(LEFT(Options!$B$14,2)),$C142,$E142,$F142,2016,$I142/10,1,$H142/10,$G142*$H142/10, RateRatios_accidents!$B$4, RateRatios_accidents!$B$5)*10))","v":5011.1939968799998},{"$f":"IF(AND(OR(Calculations!$E$2=\"Orkney Health Board\",Calculations!$E$2=\"Orkney Islands Local Authority\"),$F142=1),0,IF(AND(OR(Calculations!$E$2=\"Shetland Health Board\",Calculations!$E$2=\"Western Isles Health Board\",Calculations!$E$2=\"Shetland Islands Local Authority\",Calculations!$E$2=\"Eilean Siar Local Authority\"),OR($F142=1,$F142=5)),0,hosp_count(VALUE(LEFT(Options!$B$14,2)),$C142,$E142,$F142,2016,$I142/10+$J142/10,1,$H142/10,$G142*$H142/10, RateRatios_accidents!$B$4, RateRatios_accidents!$B$5)*10))","v":5010.2463995980006},{"$f":"IF(AND(OR(Calculations!$E$2=\"Orkney Health Board\",Calculations!$E$2=\"Orkney Islands Local Authority\"),$F142=1),0,IF(AND(OR(Calculations!$E$2=\"Shetland Health Board\",Calculations!$E$2=\"Western Isles Health Board\",Calculations!$E$2=\"Shetland Islands Local Authority\",Calculations!$E$2=\"Eilean Siar Local Authority\"),OR($F142=1,$F142=5)),0,prem_mort(VALUE(LEFT(Options!$B$14,2)),$C142,$E142,$F142,2016,$I142/10,1,$H142/10,$G142*$H142/10,RateRatios_accidents!$B$5)*10))","v":21.367230234000001},{"$f":"IF(AND(OR(Calculations!$E$2=\"Orkney Health Board\",Calculations!$E$2=\"Orkney Islands Local Authority\"),$F142=1),0,IF(AND(OR(Calculations!$E$2=\"Shetland Health Board\",Calculations!$E$2=\"Western Isles Health Board\",Calculations!$E$2=\"Shetland Islands Local Authority\",Calculations!$E$2=\"Eilean Siar Local Authority\"),OR($F142=1,$F142=5)),0,prem_mort(VALUE(LEFT(Options!$B$14,2)),$C142,$E142,$F142,2016,$I142/10+$J142/10,1,$H142/10,$G142*$H142/10,RateRatios_accidents!$B$5)*10))","v":21.363190360000001},null,{"$f":"IF(AND(OR(Calculations!$E$2=\"Orkney Health Board\",Calculations!$E$2=\"Orkney Islands Local Authority\"),$F142=1),0,IF(AND(OR(Calculations!$E$2=\"Shetland Health Board\",Calculations!$E$2=\"Western Isles Health Board\",Calculations!$E$2=\"Shetland Islands Local Authority\",Calculations!$E$2=\"Eilean Siar Local Authority\"),OR($F142=1,$F142=5)),0,new_ci(VALUE(LEFT(Options!$B$14,2)),$C142,$E142,$F142,2016,$I142/10,1,$H142/10,$G142*$H142/10,RateRatios_airpollution!$C142)*10))","v":21.367230234000001},{"$f":"IF(AND(OR(Calculations!$E$2=\"Orkney Health Board\",Calculations!$E$2=\"Orkney Islands Local Authority\"),$F142=1),0,IF(AND(OR(Calculations!$E$2=\"Shetland Health Board\",Calculations!$E$2=\"Western Isles Health Board\",Calculations!$E$2=\"Shetland Islands Local Authority\",Calculations!$E$2=\"Eilean Siar Local Authority\"),OR($F142=1,$F142=5)),0,new_ci(VALUE(LEFT(Options!$B$14,2)),$C142,$E142,$F142,2016,$I142/10+$J142/10,1,$H142/10,$G142*$H142/10,RateRatios_airpollution!$C142)*10))","v":21.366962116},{"$f":"IF(AND(OR(Calculations!$E$2=\"Orkney Health Board\",Calculations!$E$2=\"Orkney Islands Local Authority\"),$F142=1),0,IF(AND(OR(Calculations!$E$2=\"Shetland Health Board\",Calculations!$E$2=\"Western Isles Health Board\",Calculations!$E$2=\"Shetland Islands Local Authority\",Calculations!$E$2=\"Eilean Siar Local Authority\"),OR($F142=1,$F142=5)),0,new_yllv2(VALUE(LEFT(Options!$B$14,2)),$C142,$D142,$E142,$F142,2016,$I142/10,1,$H142/10,$G142*$H142/10,RateRatios_airpollution!$C142)*10))","v":1042.720728583},{"$f":"IF(AND(OR(Calculations!$E$2=\"Orkney Health Board\",Calculations!$E$2=\"Orkney Islands Local Authority\"),$F142=1),0,IF(AND(OR(Calculations!$E$2=\"Shetland Health Board\",Calculations!$E$2=\"Western Isles Health Board\",Calculations!$E$2=\"Shetland Islands Local Authority\",Calculations!$E$2=\"Eilean Siar Local Authority\"),OR($F142=1,$F142=5)),0,new_yllv2(VALUE(LEFT(Options!$B$14,2)),$C142,$D142,$E142,$F142,2016,$I142/10+$J142/10,1,$H142/10,$G142*$H142/10,RateRatios_airpollution!$C142)*10))","v":1042.7076444259999},{"$f":"IF(AND(OR(Calculations!$E$2=\"Orkney Health Board\",Calculations!$E$2=\"Orkney Islands Local Authority\"),$F142=1),0,IF(AND(OR(Calculations!$E$2=\"Shetland Health Board\",Calculations!$E$2=\"Western Isles Health Board\",Calculations!$E$2=\"Shetland Islands Local Authority\",Calculations!$E$2=\"Eilean Siar Local Authority\"),OR($F142=1,$F142=5)),0,hosp_count(VALUE(LEFT(Options!$B$14,2)),$C142,$E142,$F142,2016,$I142/10,1,$H142/10,$G142*$H142/10, RateRatios_airpollution!$D142, RateRatios_airpollution!$C142)*10))","v":5011.1939968799998},{"$f":"IF(AND(OR(Calculations!$E$2=\"Orkney Health Board\",Calculations!$E$2=\"Orkney Islands Local Authority\"),$F142=1),0,IF(AND(OR(Calculations!$E$2=\"Shetland Health Board\",Calculations!$E$2=\"Western Isles Health Board\",Calculations!$E$2=\"Shetland Islands Local Authority\",Calculations!$E$2=\"Eilean Siar Local Authority\"),OR($F142=1,$F142=5)),0,hosp_count(VALUE(LEFT(Options!$B$14,2)),$C142,$E142,$F142,2016,$I142/10+$J142/10,1,$H142/10,$G142*$H142/10, RateRatios_airpollution!$D142, RateRatios_airpollution!$C142)*10))","v":5011.0755986220001},{"$f":"IF(AND(OR(Calculations!$E$2=\"Orkney Health Board\",Calculations!$E$2=\"Orkney Islands Local Authority\"),$F142=1),0,IF(AND(OR(Calculations!$E$2=\"Shetland Health Board\",Calculations!$E$2=\"Western Isles Health Board\",Calculations!$E$2=\"Shetland Islands Local Authority\",Calculations!$E$2=\"Eilean Siar Local Authority\"),OR($F142=1,$F142=5)),0,prem_mort(VALUE(LEFT(Options!$B$14,2)),$C142,$E142,$F142,2016,$I142/10,1,$H142/10,$G142*$H142/10,RateRatios_airpollution!$C142)*10))","v":21.367230234000001},{"$f":"IF(AND(OR(Calculations!$E$2=\"Orkney Health Board\",Calculations!$E$2=\"Orkney Islands Local Authority\"),$F142=1),0,IF(AND(OR(Calculations!$E$2=\"Shetland Health Board\",Calculations!$E$2=\"Western Isles Health Board\",Calculations!$E$2=\"Shetland Islands Local Authority\",Calculations!$E$2=\"Eilean Siar Local Authority\"),OR($F142=1,$F142=5)),0,prem_mort(VALUE(LEFT(Options!$B$14,2)),$C142,$E142,$F142,2016,$I142/10+$J142/10,1,$H142/10,$G142*$H142/10,RateRatios_airpollution!$C142)*10))","v":21.366962116},null,{"$f":"IF(AND(OR(Calculations!$E$2=\"Orkney Health Board\",Calculations!$E$2=\"Orkney Islands Local Authority\"),$F142=1),0,IF(AND(OR(Calculations!$E$2=\"Shetland Health Board\",Calculations!$E$2=\"Western Isles Health Board\",Calculations!$E$2=\"Shetland Islands Local Authority\",Calculations!$E$2=\"Eilean Siar Local Authority\"),OR($F142=1,$F142=5)),0,new_ci(VALUE(LEFT(Options!$B$14,2)),$C142,$E142,$F142,2016,$I142/10,1,$H142/10,$G142*$H142/10,RateRatios_airpollution!$E142)*10))","v":21.367230234000001},{"$f":"IF(AND(OR(Calculations!$E$2=\"Orkney Health Board\",Calculations!$E$2=\"Orkney Islands Local Authority\"),$F142=1),0,IF(AND(OR(Calculations!$E$2=\"Shetland Health Board\",Calculations!$E$2=\"Western Isles Health Board\",Calculations!$E$2=\"Shetland Islands Local Authority\",Calculations!$E$2=\"Eilean Siar Local Authority\"),OR($F142=1,$F142=5)),0,new_ci(VALUE(LEFT(Options!$B$14,2)),$C142,$E142,$F142,2016,$I142/10+$J142/10,1,$H142/10,$G142*$H142/10,RateRatios_airpollution!$E142)*10))","v":21.367116736},{"$f":"IF(AND(OR(Calculations!$E$2=\"Orkney Health Board\",Calculations!$E$2=\"Orkney Islands Local Authority\"),$F142=1),0,IF(AND(OR(Calculations!$E$2=\"Shetland Health Board\",Calculations!$E$2=\"Western Isles Health Board\",Calculations!$E$2=\"Shetland Islands Local Authority\",Calculations!$E$2=\"Eilean Siar Local Authority\"),OR($F142=1,$F142=5)),0,new_yllv2(VALUE(LEFT(Options!$B$14,2)),$C142,$D142,$E142,$F142,2016,$I142/10,1,$H142/10,$G142*$H142/10,RateRatios_airpollution!$E142)*10))","v":1042.720728583},{"$f":"IF(AND(OR(Calculations!$E$2=\"Orkney Health Board\",Calculations!$E$2=\"Orkney Islands Local Authority\"),$F142=1),0,IF(AND(OR(Calculations!$E$2=\"Shetland Health Board\",Calculations!$E$2=\"Western Isles Health Board\",Calculations!$E$2=\"Shetland Islands Local Authority\",Calculations!$E$2=\"Eilean Siar Local Authority\"),OR($F142=1,$F142=5)),0,new_yllv2(VALUE(LEFT(Options!$B$14,2)),$C142,$D142,$E142,$F142,2016,$I142/10+$J142/10,1,$H142/10,$G142*$H142/10,RateRatios_airpollution!$E142)*10))","v":1042.715189881},{"$f":"IF(AND(OR(Calculations!$E$2=\"Orkney Health Board\",Calculations!$E$2=\"Orkney Islands Local Authority\"),$F142=1),0,IF(AND(OR(Calculations!$E$2=\"Shetland Health Board\",Calculations!$E$2=\"Western Isles Health Board\",Calculations!$E$2=\"Shetland Islands Local Authority\",Calculations!$E$2=\"Eilean Siar Local Authority\"),OR($F142=1,$F142=5)),0,hosp_count(VALUE(LEFT(Options!$B$14,2)),$C142,$E142,$F142,2016,$I142/10,1,$H142/10,$G142*$H142/10, RateRatios_airpollution!$F142, RateRatios_airpollution!$E142)*10))","v":5011.1939968799998},{"$f":"IF(AND(OR(Calculations!$E$2=\"Orkney Health Board\",Calculations!$E$2=\"Orkney Islands Local Authority\"),$F142=1),0,IF(AND(OR(Calculations!$E$2=\"Shetland Health Board\",Calculations!$E$2=\"Western Isles Health Board\",Calculations!$E$2=\"Shetland Islands Local Authority\",Calculations!$E$2=\"Eilean Siar Local Authority\"),OR($F142=1,$F142=5)),0,hosp_count(VALUE(LEFT(Options!$B$14,2)),$C142,$E142,$F142,2016,$I142/10+$J142/10,1,$H142/10,$G142*$H142/10, RateRatios_airpollution!$F142, RateRatios_airpollution!$E142)*10))","v":5011.1939968799998},{"$f":"IF(AND(OR(Calculations!$E$2=\"Orkney Health Board\",Calculations!$E$2=\"Orkney Islands Local Authority\"),$F142=1),0,IF(AND(OR(Calculations!$E$2=\"Shetland Health Board\",Calculations!$E$2=\"Western Isles Health Board\",Calculations!$E$2=\"Shetland Islands Local Authority\",Calculations!$E$2=\"Eilean Siar Local Authority\"),OR($F142=1,$F142=5)),0,prem_mort(VALUE(LEFT(Options!$B$14,2)),$C142,$E142,$F142,2016,$I142/10,1,$H142/10,$G142*$H142/10,RateRatios_airpollution!$E142)*10))","v":21.367230234000001},{"$f":"IF(AND(OR(Calculations!$E$2=\"Orkney Health Board\",Calculations!$E$2=\"Orkney Islands Local Authority\"),$F142=1),0,IF(AND(OR(Calculations!$E$2=\"Shetland Health Board\",Calculations!$E$2=\"Western Isles Health Board\",Calculations!$E$2=\"Shetland Islands Local Authority\",Calculations!$E$2=\"Eilean Siar Local Authority\"),OR($F142=1,$F142=5)),0,prem_mort(VALUE(LEFT(Options!$B$14,2)),$C142,$E142,$F142,2016,$I142/10+$J142/10,1,$H142/10,$G142*$H142/10,RateRatios_airpollution!$E142)*10))","v":21.367116736},21.367230234000001,21.362808743999999,1042.720728583,1042.504959893,5011.1939968799998,5010.128001340001,21.367230234000001,21.362808743999999,61.408909998563018,61.396202741773244,2996.7545008851848,2996.1343868170716,14402.052010001436,14398.98836424774,61.408909998563018,61.396202741773244,399157.91499065963,399075.31782152609,19478904.2557537,19474873.514310963,93613338.065009341,93593424.367610306,399157.91499065963,399075.31782152609,6500]
[null,"Female 35-39",36.918118,81.898120000000006,"female",3,1,{"$f":"HLOOKUP(Calculations!$E$2,'Population 2016'!$C$3:$BC$249,'Population 2016'!BD143,FALSE)","v":31957},0,{"$f":"HLOOKUP(Calculations!$E$2,Pop2016_in_settlements!$C$3:$BC$249,Pop2016_in_settlements!$BD143,FALSE)","v":14804},{"$f":"IF(AND(OR(Calculations!$E$2=\"Orkney Health Board\",Calculations!$E$2=\"Orkney Islands Local Authority\"),$F143=1),0,IF(AND(OR(Calculations!$E$2=\"Shetland Health Board\",Calculations!$E$2=\"Western Isles Health Board\",Calculations!$E$2=\"Shetland Islands Local Authority\",Calculations!$E$2=\"Eilean Siar Local Authority\"),OR($F143=1,$F143=5)),0,new_ci(VALUE(LEFT(Options!$B$14,2)),$C143,$E143,$F143,2016,$I143/10,1,$H143/10,$G143*$H143/10,RateRatios_accidents!$B$5)*10))","v":29.812621386},{"$f":"IF(AND(OR(Calculations!$E$2=\"Orkney Health Board\",Calculations!$E$2=\"Orkney Islands Local Authority\"),$F143=1),0,IF(AND(OR(Calculations!$E$2=\"Shetland Health Board\",Calculations!$E$2=\"Western Isles Health Board\",Calculations!$E$2=\"Shetland Islands Local Authority\",Calculations!$E$2=\"Eilean Siar Local Authority\"),OR($F143=1,$F143=5)),0,new_ci(VALUE(LEFT(Options!$B$14,2)),$C143,$E143,$F143,2016,$I143/10+$J143/10,1,$H143/10,$G143*$H143/10,RateRatios_accidents!$B$5)*10))","v":29.807098014000001},{"$f":"IF(AND(OR(Calculations!$E$2=\"Orkney Health Board\",Calculations!$E$2=\"Orkney Islands Local Authority\"),$F143=1),0,IF(AND(OR(Calculations!$E$2=\"Shetland Health Board\",Calculations!$E$2=\"Western Isles Health Board\",Calculations!$E$2=\"Shetland Islands Local Authority\",Calculations!$E$2=\"Eilean Siar Local Authority\"),OR($F143=1,$F143=5)),0,new_yllv2(VALUE(LEFT(Options!$B$14,2)),$C143,$D143,$E143,$F143,2016,$I143/10,1,$H143/10,$G143*$H143/10,RateRatios_accidents!$B$5)*10))","v":1311.1591481820001},{"$f":"IF(AND(OR(Calculations!$E$2=\"Orkney Health Board\",Calculations!$E$2=\"Orkney Islands Local Authority\"),$F143=1),0,IF(AND(OR(Calculations!$E$2=\"Shetland Health Board\",Calculations!$E$2=\"Western Isles Health Board\",Calculations!$E$2=\"Shetland Islands Local Authority\",Calculations!$E$2=\"Eilean Siar Local Authority\"),OR($F143=1,$F143=5)),0,new_yllv2(VALUE(LEFT(Options!$B$14,2)),$C143,$D143,$E143,$F143,2016,$I143/10+$J143/10,1,$H143/10,$G143*$H143/10,RateRatios_accidents!$B$5)*10))","v":1310.9162302699999},{"$f":"IF(AND(OR(Calculations!$E$2=\"Orkney Health Board\",Calculations!$E$2=\"Orkney Islands Local Authority\"),$F143=1),0,IF(AND(OR(Calculations!$E$2=\"Shetland Health Board\",Calculations!$E$2=\"Western Isles Health Board\",Calculations!$E$2=\"Shetland Islands Local Authority\",Calculations!$E$2=\"Eilean Siar Local Authority\"),OR($F143=1,$F143=5)),0,hosp_count(VALUE(LEFT(Options!$B$14,2)),$C143,$E143,$F143,2016,$I143/10,1,$H143/10,$G143*$H143/10, RateRatios_accidents!$B$4, RateRatios_accidents!$B$5)*10))","v":5208.5576023619997},{"$f":"IF(AND(OR(Calculations!$E$2=\"Orkney Health Board\",Calculations!$E$2=\"Orkney Islands Local Authority\"),$F143=1),0,IF(AND(OR(Calculations!$E$2=\"Shetland Health Board\",Calculations!$E$2=\"Western Isles Health Board\",Calculations!$E$2=\"Shetland Islands Local Authority\",Calculations!$E$2=\"Eilean Siar Local Authority\"),OR($F143=1,$F143=5)),0,hosp_count(VALUE(LEFT(Options!$B$14,2)),$C143,$E143,$F143,2016,$I143/10+$J143/10,1,$H143/10,$G143*$H143/10, RateRatios_accidents!$B$4, RateRatios_accidents!$B$5)*10))","v":5207.5924615029999},{"$f":"IF(AND(OR(Calculations!$E$2=\"Orkney Health Board\",Calculations!$E$2=\"Orkney Islands Local Authority\"),$F143=1),0,IF(AND(OR(Calculations!$E$2=\"Shetland Health Board\",Calculations!$E$2=\"Western Isles Health Board\",Calculations!$E$2=\"Shetland Islands Local Authority\",Calculations!$E$2=\"Eilean Siar Local Authority\"),OR($F143=1,$F143=5)),0,prem_mort(VALUE(LEFT(Options!$B$14,2)),$C143,$E143,$F143,2016,$I143/10,1,$H143/10,$G143*$H143/10,RateRatios_accidents!$B$5)*10))","v":29.812621386},{"$f":"IF(AND(OR(Calculations!$E$2=\"Orkney Health Board\",Calculations!$E$2=\"Orkney Islands Local Authority\"),$F143=1),0,IF(AND(OR(Calculations!$E$2=\"Shetland Health Board\",Calculations!$E$2=\"Western Isles Health Board\",Calculations!$E$2=\"Shetland Islands Local Authority\",Calculations!$E$2=\"Eilean Siar Local Authority\"),OR($F143=1,$F143=5)),0,prem_mort(VALUE(LEFT(Options!$B$14,2)),$C143,$E143,$F143,2016,$I143/10+$J143/10,1,$H143/10,$G143*$H143/10,RateRatios_accidents!$B$5)*10))","v":29.807098014000001},null,{"$f":"IF(AND(OR(Calculations!$E$2=\"Orkney Health Board\",Calculations!$E$2=\"Orkney Islands Local Authority\"),$F143=1),0,IF(AND(OR(Calculations!$E$2=\"Shetland Health Board\",Calculations!$E$2=\"Western Isles Health Board\",Calculations!$E$2=\"Shetland Islands Local Authority\",Calculations!$E$2=\"Eilean Siar Local Authority\"),OR($F143=1,$F143=5)),0,new_ci(VALUE(LEFT(Options!$B$14,2)),$C143,$E143,$F143,2016,$I143/10,1,$H143/10,$G143*$H143/10,RateRatios_airpollution!$C143)*10))","v":29.812621386},{"$f":"IF(AND(OR(Calculations!$E$2=\"Orkney Health Board\",Calculations!$E$2=\"Orkney Islands Local Authority\"),$F143=1),0,IF(AND(OR(Calculations!$E$2=\"Shetland Health Board\",Calculations!$E$2=\"Western Isles Health Board\",Calculations!$E$2=\"Shetland Islands Local Authority\",Calculations!$E$2=\"Eilean Siar Local Authority\"),OR($F143=1,$F143=5)),0,new_ci(VALUE(LEFT(Options!$B$14,2)),$C143,$E143,$F143,2016,$I143/10+$J143/10,1,$H143/10,$G143*$H143/10,RateRatios_airpollution!$C143)*10))","v":29.812289776},{"$f":"IF(AND(OR(Calculations!$E$2=\"Orkney Health Board\",Calculations!$E$2=\"Orkney Islands Local Authority\"),$F143=1),0,IF(AND(OR(Calculations!$E$2=\"Shetland Health Board\",Calculations!$E$2=\"Western Isles Health Board\",Calculations!$E$2=\"Shetland Islands Local Authority\",Calculations!$E$2=\"Eilean Siar Local Authority\"),OR($F143=1,$F143=5)),0,new_yllv2(VALUE(LEFT(Options!$B$14,2)),$C143,$D143,$E143,$F143,2016,$I143/10,1,$H143/10,$G143*$H143/10,RateRatios_airpollution!$C143)*10))","v":1311.1591481820001},{"$f":"IF(AND(OR(Calculations!$E$2=\"Orkney Health Board\",Calculations!$E$2=\"Orkney Islands Local Authority\"),$F143=1),0,IF(AND(OR(Calculations!$E$2=\"Shetland Health Board\",Calculations!$E$2=\"Western Isles Health Board\",Calculations!$E$2=\"Shetland Islands Local Authority\",Calculations!$E$2=\"Eilean Siar Local Authority\"),OR($F143=1,$F143=5)),0,new_yllv2(VALUE(LEFT(Options!$B$14,2)),$C143,$D143,$E143,$F143,2016,$I143/10+$J143/10,1,$H143/10,$G143*$H143/10,RateRatios_airpollution!$C143)*10))","v":1311.144563973},{"$f":"IF(AND(OR(Calculations!$E$2=\"Orkney Health Board\",Calculations!$E$2=\"Orkney Islands Local Authority\"),$F143=1),0,IF(AND(OR(Calculations!$E$2=\"Shetland Health Board\",Calculations!$E$2=\"Western Isles Health Board\",Calculations!$E$2=\"Shetland Islands Local Authority\",Calculations!$E$2=\"Eilean Siar Local Authority\"),OR($F143=1,$F143=5)),0,hosp_count(VALUE(LEFT(Options!$B$14,2)),$C143,$E143,$F143,2016,$I143/10,1,$H143/10,$G143*$H143/10, RateRatios_airpollution!$D143, RateRatios_airpollution!$C143)*10))","v":5208.5576023619997},{"$f":"IF(AND(OR(Calculations!$E$2=\"Orkney Health Board\",Calculations!$E$2=\"Orkney Islands Local Authority\"),$F143=1),0,IF(AND(OR(Calculations!$E$2=\"Shetland Health Board\",Calculations!$E$2=\"Western Isles Health Board\",Calculations!$E$2=\"Shetland Islands Local Authority\",Calculations!$E$2=\"Eilean Siar Local Authority\"),OR($F143=1,$F143=5)),0,hosp_count(VALUE(LEFT(Options!$B$14,2)),$C143,$E143,$F143,2016,$I143/10+$J143/10,1,$H143/10,$G143*$H143/10, RateRatios_airpollution!$D143, RateRatios_airpollution!$C143)*10))","v":5208.4485827449998},{"$f":"IF(AND(OR(Calculations!$E$2=\"Orkney Health Board\",Calculations!$E$2=\"Orkney Islands Local Authority\"),$F143=1),0,IF(AND(OR(Calculations!$E$2=\"Shetland Health Board\",Calculations!$E$2=\"Western Isles Health Board\",Calculations!$E$2=\"Shetland Islands Local Authority\",Calculations!$E$2=\"Eilean Siar Local Authority\"),OR($F143=1,$F143=5)),0,prem_mort(VALUE(LEFT(Options!$B$14,2)),$C143,$E143,$F143,2016,$I143/10,1,$H143/10,$G143*$H143/10,RateRatios_airpollution!$C143)*10))","v":29.812621386},{"$f":"IF(AND(OR(Calculations!$E$2=\"Orkney Health Board\",Calculations!$E$2=\"Orkney Islands Local Authority\"),$F143=1),0,IF(AND(OR(Calculations!$E$2=\"Shetland Health Board\",Calculations!$E$2=\"Western Isles Health Board\",Calculations!$E$2=\"Shetland Islands Local Authority\",Calculations!$E$2=\"Eilean Siar Local Authority\"),OR($F143=1,$F143=5)),0,prem_mort(VALUE(LEFT(Options!$B$14,2)),$C143,$E143,$F143,2016,$I143/10+$J143/10,1,$H143/10,$G143*$H143/10,RateRatios_airpollution!$C143)*10))","v":29.812289776},null,{"$f":"IF(AND(OR(Calculations!$E$2=\"Orkney Health Board\",Calculations!$E$2=\"Orkney Islands Local Authority\"),$F143=1),0,IF(AND(OR(Calculations!$E$2=\"Shetland Health Board\",Calculations!$E$2=\"Western Isles Health Board\",Calculations!$E$2=\"Shetland Islands Local Authority\",Calculations!$E$2=\"Eilean Siar Local Authority\"),OR($F143=1,$F143=5)),0,new_ci(VALUE(LEFT(Options!$B$14,2)),$C143,$E143,$F143,2016,$I143/10,1,$H143/10,$G143*$H143/10,RateRatios_airpollution!$E143)*10))","v":29.812621386},{"$f":"IF(AND(OR(Calculations!$E$2=\"Orkney Health Board\",Calculations!$E$2=\"Orkney Islands Local Authority\"),$F143=1),0,IF(AND(OR(Calculations!$E$2=\"Shetland Health Board\",Calculations!$E$2=\"Western Isles Health Board\",Calculations!$E$2=\"Shetland Islands Local Authority\",Calculations!$E$2=\"Eilean Siar Local Authority\"),OR($F143=1,$F143=5)),0,new_ci(VALUE(LEFT(Options!$B$14,2)),$C143,$E143,$F143,2016,$I143/10+$J143/10,1,$H143/10,$G143*$H143/10,RateRatios_airpollution!$E143)*10))","v":29.812479268000001},{"$f":"IF(AND(OR(Calculations!$E$2=\"Orkney Health Board\",Calculations!$E$2=\"Orkney Islands Local Authority\"),$F143=1),0,IF(AND(OR(Calculations!$E$2=\"Shetland Health Board\",Calculations!$E$2=\"Western Isles Health Board\",Calculations!$E$2=\"Shetland Islands Local Authority\",Calculations!$E$2=\"Eilean Siar Local Authority\"),OR($F143=1,$F143=5)),0,new_yllv2(VALUE(LEFT(Options!$B$14,2)),$C143,$D143,$E143,$F143,2016,$I143/10,1,$H143/10,$G143*$H143/10,RateRatios_airpollution!$E143)*10))","v":1311.1591481820001},{"$f":"IF(AND(OR(Calculations!$E$2=\"Orkney Health Board\",Calculations!$E$2=\"Orkney Islands Local Authority\"),$F143=1),0,IF(AND(OR(Calculations!$E$2=\"Shetland Health Board\",Calculations!$E$2=\"Western Isles Health Board\",Calculations!$E$2=\"Shetland Islands Local Authority\",Calculations!$E$2=\"Eilean Siar Local Authority\"),OR($F143=1,$F143=5)),0,new_yllv2(VALUE(LEFT(Options!$B$14,2)),$C143,$D143,$E143,$F143,2016,$I143/10+$J143/10,1,$H143/10,$G143*$H143/10,RateRatios_airpollution!$E143)*10))","v":1311.1528978320002},{"$f":"IF(AND(OR(Calculations!$E$2=\"Orkney Health Board\",Calculations!$E$2=\"Orkney Islands Local Authority\"),$F143=1),0,IF(AND(OR(Calculations!$E$2=\"Shetland Health Board\",Calculations!$E$2=\"Western Isles Health Board\",Calculations!$E$2=\"Shetland Islands Local Authority\",Calculations!$E$2=\"Eilean Siar Local Authority\"),OR($F143=1,$F143=5)),0,hosp_count(VALUE(LEFT(Options!$B$14,2)),$C143,$E143,$F143,2016,$I143/10,1,$H143/10,$G143*$H143/10, RateRatios_airpollution!$F143, RateRatios_airpollution!$E143)*10))","v":5208.5576023619997},{"$f":"IF(AND(OR(Calculations!$E$2=\"Orkney Health Board\",Calculations!$E$2=\"Orkney Islands Local Authority\"),$F143=1),0,IF(AND(OR(Calculations!$E$2=\"Shetland Health Board\",Calculations!$E$2=\"Western Isles Health Board\",Calculations!$E$2=\"Shetland Islands Local Authority\",Calculations!$E$2=\"Eilean Siar Local Authority\"),OR($F143=1,$F143=5)),0,hosp_count(VALUE(LEFT(Options!$B$14,2)),$C143,$E143,$F143,2016,$I143/10+$J143/10,1,$H143/10,$G143*$H143/10, RateRatios_airpollution!$F143, RateRatios_airpollution!$E143)*10))","v":5208.5576023619997},{"$f":"IF(AND(OR(Calculations!$E$2=\"Orkney Health Board\",Calculations!$E$2=\"Orkney Islands Local Authority\"),$F143=1),0,IF(AND(OR(Calculations!$E$2=\"Shetland Health Board\",Calculations!$E$2=\"Western Isles Health Board\",Calculations!$E$2=\"Shetland Islands Local Authority\",Calculations!$E$2=\"Eilean Siar Local Authority\"),OR($F143=1,$F143=5)),0,prem_mort(VALUE(LEFT(Options!$B$14,2)),$C143,$E143,$F143,2016,$I143/10,1,$H143/10,$G143*$H143/10,RateRatios_airpollution!$E143)*10))","v":29.812621386},{"$f":"IF(AND(OR(Calculations!$E$2=\"Orkney Health Board\",Calculations!$E$2=\"Orkney Islands Local Authority\"),$F143=1),0,IF(AND(OR(Calculations!$E$2=\"Shetland Health Board\",Calculations!$E$2=\"Western Isles Health Board\",Calculations!$E$2=\"Shetland Islands Local Authority\",Calculations!$E$2=\"Eilean Siar Local Authority\"),OR($F143=1,$F143=5)),0,prem_mort(VALUE(LEFT(Options!$B$14,2)),$C143,$E143,$F143,2016,$I143/10+$J143/10,1,$H143/10,$G143*$H143/10,RateRatios_airpollution!$E143)*10))","v":29.812479268000001},29.812621386,29.806624286000002,1311.1591481820001,1310.895395711,5208.5576023619997,5207.483441886,29.812621386,29.806624286000002,93.2898,93.271033845479877,4102.8855905810933,4102.0602550646181,16298.643810000938,16295.282541809307,93.2898,93.271033845479877,653028.6,652897.23691835918,28720199.134067655,28714421.785452325,114090506.67000657,114066977.79266515,653028.6,652897.23691835918,7000]
[null,"Female 40-44",42.077438000000001,82.30744,"female",3,1,{"$f":"HLOOKUP(Calculations!$E$2,'Population 2016'!$C$3:$BC$249,'Population 2016'!BD144,FALSE)","v":33291},0,{"$f":"HLOOKUP(Calculations!$E$2,Pop2016_in_settlements!$C$3:$BC$249,Pop2016_in_settlements!$BD144,FALSE)","v":15187},{"$f":"IF(AND(OR(Calculations!$E$2=\"Orkney Health Board\",Calculations!$E$2=\"Orkney Islands Local Authority\"),$F144=1),0,IF(AND(OR(Calculations!$E$2=\"Shetland Health Board\",Calculations!$E$2=\"Western Isles Health Board\",Calculations!$E$2=\"Shetland Islands Local Authority\",Calculations!$E$2=\"Eilean Siar Local Authority\"),OR($F144=1,$F144=5)),0,new_ci(VALUE(LEFT(Options!$B$14,2)),$C144,$E144,$F144,2016,$I144/10,1,$H144/10,$G144*$H144/10,RateRatios_accidents!$B$5)*10))","v":48.153467331000002},{"$f":"IF(AND(OR(Calculations!$E$2=\"Orkney Health Board\",Calculations!$E$2=\"Orkney Islands Local Authority\"),$F144=1),0,IF(AND(OR(Calculations!$E$2=\"Shetland Health Board\",Calculations!$E$2=\"Western Isles Health Board\",Calculations!$E$2=\"Shetland Islands Local Authority\",Calculations!$E$2=\"Eilean Siar Local Authority\"),OR($F144=1,$F144=5)),0,new_ci(VALUE(LEFT(Options!$B$14,2)),$C144,$E144,$F144,2016,$I144/10+$J144/10,1,$H144/10,$G144*$H144/10,RateRatios_accidents!$B$5)*10))","v":48.144686207999996},{"$f":"IF(AND(OR(Calculations!$E$2=\"Orkney Health Board\",Calculations!$E$2=\"Orkney Islands Local Authority\"),$F144=1),0,IF(AND(OR(Calculations!$E$2=\"Shetland Health Board\",Calculations!$E$2=\"Western Isles Health Board\",Calculations!$E$2=\"Shetland Islands Local Authority\",Calculations!$E$2=\"Eilean Siar Local Authority\"),OR($F144=1,$F144=5)),0,new_yllv2(VALUE(LEFT(Options!$B$14,2)),$C144,$D144,$E144,$F144,2016,$I144/10,1,$H144/10,$G144*$H144/10,RateRatios_accidents!$B$5)*10))","v":1889.0606197019999},{"$f":"IF(AND(OR(Calculations!$E$2=\"Orkney Health Board\",Calculations!$E$2=\"Orkney Islands Local Authority\"),$F144=1),0,IF(AND(OR(Calculations!$E$2=\"Shetland Health Board\",Calculations!$E$2=\"Western Isles Health Board\",Calculations!$E$2=\"Shetland Islands Local Authority\",Calculations!$E$2=\"Eilean Siar Local Authority\"),OR($F144=1,$F144=5)),0,new_yllv2(VALUE(LEFT(Options!$B$14,2)),$C144,$D144,$E144,$F144,2016,$I144/10+$J144/10,1,$H144/10,$G144*$H144/10,RateRatios_accidents!$B$5)*10))","v":1888.7161362290001},{"$f":"IF(AND(OR(Calculations!$E$2=\"Orkney Health Board\",Calculations!$E$2=\"Orkney Islands Local Authority\"),$F144=1),0,IF(AND(OR(Calculations!$E$2=\"Shetland Health Board\",Calculations!$E$2=\"Western Isles Health Board\",Calculations!$E$2=\"Shetland Islands Local Authority\",Calculations!$E$2=\"Eilean Siar Local Authority\"),OR($F144=1,$F144=5)),0,hosp_count(VALUE(LEFT(Options!$B$14,2)),$C144,$E144,$F144,2016,$I144/10,1,$H144/10,$G144*$H144/10, RateRatios_accidents!$B$4, RateRatios_accidents!$B$5)*10))","v":6177.8773554559993},{"$f":"IF(AND(OR(Calculations!$E$2=\"Orkney Health Board\",Calculations!$E$2=\"Orkney Islands Local Authority\"),$F144=1),0,IF(AND(OR(Calculations!$E$2=\"Shetland Health Board\",Calculations!$E$2=\"Western Isles Health Board\",Calculations!$E$2=\"Shetland Islands Local Authority\",Calculations!$E$2=\"Eilean Siar Local Authority\"),OR($F144=1,$F144=5)),0,hosp_count(VALUE(LEFT(Options!$B$14,2)),$C144,$E144,$F144,2016,$I144/10+$J144/10,1,$H144/10,$G144*$H144/10, RateRatios_accidents!$B$4, RateRatios_accidents!$B$5)*10))","v":6176.7500426699999},{"$f":"IF(AND(OR(Calculations!$E$2=\"Orkney Health Board\",Calculations!$E$2=\"Orkney Islands Local Authority\"),$F144=1),0,IF(AND(OR(Calculations!$E$2=\"Shetland Health Board\",Calculations!$E$2=\"Western Isles Health Board\",Calculations!$E$2=\"Shetland Islands Local Authority\",Calculations!$E$2=\"Eilean Siar Local Authority\"),OR($F144=1,$F144=5)),0,prem_mort(VALUE(LEFT(Options!$B$14,2)),$C144,$E144,$F144,2016,$I144/10,1,$H144/10,$G144*$H144/10,RateRatios_accidents!$B$5)*10))","v":48.153467331000002},{"$f":"IF(AND(OR(Calculations!$E$2=\"Orkney Health Board\",Calculations!$E$2=\"Orkney Islands Local Authority\"),$F144=1),0,IF(AND(OR(Calculations!$E$2=\"Shetland Health Board\",Calculations!$E$2=\"Western Isles Health Board\",Calculations!$E$2=\"Shetland Islands Local Authority\",Calculations!$E$2=\"Eilean Siar Local Authority\"),OR($F144=1,$F144=5)),0,prem_mort(VALUE(LEFT(Options!$B$14,2)),$C144,$E144,$F144,2016,$I144/10+$J144/10,1,$H144/10,$G144*$H144/10,RateRatios_accidents!$B$5)*10))","v":48.144686207999996},null,{"$f":"IF(AND(OR(Calculations!$E$2=\"Orkney Health Board\",Calculations!$E$2=\"Orkney Islands Local Authority\"),$F144=1),0,IF(AND(OR(Calculations!$E$2=\"Shetland Health Board\",Calculations!$E$2=\"Western Isles Health Board\",Calculations!$E$2=\"Shetland Islands Local Authority\",Calculations!$E$2=\"Eilean Siar Local Authority\"),OR($F144=1,$F144=5)),0,new_ci(VALUE(LEFT(Options!$B$14,2)),$C144,$E144,$F144,2016,$I144/10,1,$H144/10,$G144*$H144/10,RateRatios_airpollution!$C144)*10))","v":48.153467331000002},{"$f":"IF(AND(OR(Calculations!$E$2=\"Orkney Health Board\",Calculations!$E$2=\"Orkney Islands Local Authority\"),$F144=1),0,IF(AND(OR(Calculations!$E$2=\"Shetland Health Board\",Calculations!$E$2=\"Western Isles Health Board\",Calculations!$E$2=\"Shetland Islands Local Authority\",Calculations!$E$2=\"Eilean Siar Local Authority\"),OR($F144=1,$F144=5)),0,new_ci(VALUE(LEFT(Options!$B$14,2)),$C144,$E144,$F144,2016,$I144/10+$J144/10,1,$H144/10,$G144*$H144/10,RateRatios_airpollution!$C144)*10))","v":48.152999570999995},{"$f":"IF(AND(OR(Calculations!$E$2=\"Orkney Health Board\",Calculations!$E$2=\"Orkney Islands Local Authority\"),$F144=1),0,IF(AND(OR(Calculations!$E$2=\"Shetland Health Board\",Calculations!$E$2=\"Western Isles Health Board\",Calculations!$E$2=\"Shetland Islands Local Authority\",Calculations!$E$2=\"Eilean Siar Local Authority\"),OR($F144=1,$F144=5)),0,new_yllv2(VALUE(LEFT(Options!$B$14,2)),$C144,$D144,$E144,$F144,2016,$I144/10,1,$H144/10,$G144*$H144/10,RateRatios_airpollution!$C144)*10))","v":1889.0606197019999},{"$f":"IF(AND(OR(Calculations!$E$2=\"Orkney Health Board\",Calculations!$E$2=\"Orkney Islands Local Authority\"),$F144=1),0,IF(AND(OR(Calculations!$E$2=\"Shetland Health Board\",Calculations!$E$2=\"Western Isles Health Board\",Calculations!$E$2=\"Shetland Islands Local Authority\",Calculations!$E$2=\"Eilean Siar Local Authority\"),OR($F144=1,$F144=5)),0,new_yllv2(VALUE(LEFT(Options!$B$14,2)),$C144,$D144,$E144,$F144,2016,$I144/10+$J144/10,1,$H144/10,$G144*$H144/10,RateRatios_airpollution!$C144)*10))","v":1889.042269476},{"$f":"IF(AND(OR(Calculations!$E$2=\"Orkney Health Board\",Calculations!$E$2=\"Orkney Islands Local Authority\"),$F144=1),0,IF(AND(OR(Calculations!$E$2=\"Shetland Health Board\",Calculations!$E$2=\"Western Isles Health Board\",Calculations!$E$2=\"Shetland Islands Local Authority\",Calculations!$E$2=\"Eilean Siar Local Authority\"),OR($F144=1,$F144=5)),0,hosp_count(VALUE(LEFT(Options!$B$14,2)),$C144,$E144,$F144,2016,$I144/10,1,$H144/10,$G144*$H144/10, RateRatios_airpollution!$D144, RateRatios_airpollution!$C144)*10))","v":6177.8773554559993},{"$f":"IF(AND(OR(Calculations!$E$2=\"Orkney Health Board\",Calculations!$E$2=\"Orkney Islands Local Authority\"),$F144=1),0,IF(AND(OR(Calculations!$E$2=\"Shetland Health Board\",Calculations!$E$2=\"Western Isles Health Board\",Calculations!$E$2=\"Shetland Islands Local Authority\",Calculations!$E$2=\"Eilean Siar Local Authority\"),OR($F144=1,$F144=5)),0,hosp_count(VALUE(LEFT(Options!$B$14,2)),$C144,$E144,$F144,2016,$I144/10+$J144/10,1,$H144/10,$G144*$H144/10, RateRatios_airpollution!$D144, RateRatios_airpollution!$C144)*10))","v":6177.7641956000007},{"$f":"IF(AND(OR(Calculations!$E$2=\"Orkney Health Board\",Calculations!$E$2=\"Orkney Islands Local Authority\"),$F144=1),0,IF(AND(OR(Calculations!$E$2=\"Shetland Health Board\",Calculations!$E$2=\"Western Isles Health Board\",Calculations!$E$2=\"Shetland Islands Local Authority\",Calculations!$E$2=\"Eilean Siar Local Authority\"),OR($F144=1,$F144=5)),0,prem_mort(VALUE(LEFT(Options!$B$14,2)),$C144,$E144,$F144,2016,$I144/10,1,$H144/10,$G144*$H144/10,RateRatios_airpollution!$C144)*10))","v":48.153467331000002},{"$f":"IF(AND(OR(Calculations!$E$2=\"Orkney Health Board\",Calculations!$E$2=\"Orkney Islands Local Authority\"),$F144=1),0,IF(AND(OR(Calculations!$E$2=\"Shetland Health Board\",Calculations!$E$2=\"Western Isles Health Board\",Calculations!$E$2=\"Shetland Islands Local Authority\",Calculations!$E$2=\"Eilean Siar Local Authority\"),OR($F144=1,$F144=5)),0,prem_mort(VALUE(LEFT(Options!$B$14,2)),$C144,$E144,$F144,2016,$I144/10+$J144/10,1,$H144/10,$G144*$H144/10,RateRatios_airpollution!$C144)*10))","v":48.152999570999995},null,{"$f":"IF(AND(OR(Calculations!$E$2=\"Orkney Health Board\",Calculations!$E$2=\"Orkney Islands Local Authority\"),$F144=1),0,IF(AND(OR(Calculations!$E$2=\"Shetland Health Board\",Calculations!$E$2=\"Western Isles Health Board\",Calculations!$E$2=\"Shetland Islands Local Authority\",Calculations!$E$2=\"Eilean Siar Local Authority\"),OR($F144=1,$F144=5)),0,new_ci(VALUE(LEFT(Options!$B$14,2)),$C144,$E144,$F144,2016,$I144/10,1,$H144/10,$G144*$H144/10,RateRatios_airpollution!$E144)*10))","v":48.153467331000002},{"$f":"IF(AND(OR(Calculations!$E$2=\"Orkney Health Board\",Calculations!$E$2=\"Orkney Islands Local Authority\"),$F144=1),0,IF(AND(OR(Calculations!$E$2=\"Shetland Health Board\",Calculations!$E$2=\"Western Isles Health Board\",Calculations!$E$2=\"Shetland Islands Local Authority\",Calculations!$E$2=\"Eilean Siar Local Authority\"),OR($F144=1,$F144=5)),0,new_ci(VALUE(LEFT(Options!$B$14,2)),$C144,$E144,$F144,2016,$I144/10+$J144/10,1,$H144/10,$G144*$H144/10,RateRatios_airpollution!$E144)*10))","v":48.153263825000003},{"$f":"IF(AND(OR(Calculations!$E$2=\"Orkney Health Board\",Calculations!$E$2=\"Orkney Islands Local Authority\"),$F144=1),0,IF(AND(OR(Calculations!$E$2=\"Shetland Health Board\",Calculations!$E$2=\"Western Isles Health Board\",Calculations!$E$2=\"Shetland Islands Local Authority\",Calculations!$E$2=\"Eilean Siar Local Authority\"),OR($F144=1,$F144=5)),0,new_yllv2(VALUE(LEFT(Options!$B$14,2)),$C144,$D144,$E144,$F144,2016,$I144/10,1,$H144/10,$G144*$H144/10,RateRatios_airpollution!$E144)*10))","v":1889.0606197019999},{"$f":"IF(AND(OR(Calculations!$E$2=\"Orkney Health Board\",Calculations!$E$2=\"Orkney Islands Local Authority\"),$F144=1),0,IF(AND(OR(Calculations!$E$2=\"Shetland Health Board\",Calculations!$E$2=\"Western Isles Health Board\",Calculations!$E$2=\"Shetland Islands Local Authority\",Calculations!$E$2=\"Eilean Siar Local Authority\"),OR($F144=1,$F144=5)),0,new_yllv2(VALUE(LEFT(Options!$B$14,2)),$C144,$D144,$E144,$F144,2016,$I144/10+$J144/10,1,$H144/10,$G144*$H144/10,RateRatios_airpollution!$E144)*10))","v":1889.052636161},{"$f":"IF(AND(OR(Calculations!$E$2=\"Orkney Health Board\",Calculations!$E$2=\"Orkney Islands Local Authority\"),$F144=1),0,IF(AND(OR(Calculations!$E$2=\"Shetland Health Board\",Calculations!$E$2=\"Western Isles Health Board\",Calculations!$E$2=\"Shetland Islands Local Authority\",Calculations!$E$2=\"Eilean Siar Local Authority\"),OR($F144=1,$F144=5)),0,hosp_count(VALUE(LEFT(Options!$B$14,2)),$C144,$E144,$F144,2016,$I144/10,1,$H144/10,$G144*$H144/10, RateRatios_airpollution!$F144, RateRatios_airpollution!$E144)*10))","v":6177.8773554559993},{"$f":"IF(AND(OR(Calculations!$E$2=\"Orkney Health Board\",Calculations!$E$2=\"Orkney Islands Local Authority\"),$F144=1),0,IF(AND(OR(Calculations!$E$2=\"Shetland Health Board\",Calculations!$E$2=\"Western Isles Health Board\",Calculations!$E$2=\"Shetland Islands Local Authority\",Calculations!$E$2=\"Eilean Siar Local Authority\"),OR($F144=1,$F144=5)),0,hosp_count(VALUE(LEFT(Options!$B$14,2)),$C144,$E144,$F144,2016,$I144/10+$J144/10,1,$H144/10,$G144*$H144/10, RateRatios_airpollution!$F144, RateRatios_airpollution!$E144)*10))","v":6177.8773554559993},{"$f":"IF(AND(OR(Calculations!$E$2=\"Orkney Health Board\",Calculations!$E$2=\"Orkney Islands Local Authority\"),$F144=1),0,IF(AND(OR(Calculations!$E$2=\"Shetland Health Board\",Calculations!$E$2=\"Western Isles Health Board\",Calculations!$E$2=\"Shetland Islands Local Authority\",Calculations!$E$2=\"Eilean Siar Local Authority\"),OR($F144=1,$F144=5)),0,prem_mort(VALUE(LEFT(Options!$B$14,2)),$C144,$E144,$F144,2016,$I144/10,1,$H144/10,$G144*$H144/10,RateRatios_airpollution!$E144)*10))","v":48.153467331000002},{"$f":"IF(AND(OR(Calculations!$E$2=\"Orkney Health Board\",Calculations!$E$2=\"Orkney Islands Local Authority\"),$F144=1),0,IF(AND(OR(Calculations!$E$2=\"Shetland Health Board\",Calculations!$E$2=\"Western Isles Health Board\",Calculations!$E$2=\"Shetland Islands Local Authority\",Calculations!$E$2=\"Eilean Siar Local Authority\"),OR($F144=1,$F144=5)),0,prem_mort(VALUE(LEFT(Options!$B$14,2)),$C144,$E144,$F144,2016,$I144/10+$J144/10,1,$H144/10,$G144*$H144/10,RateRatios_airpollution!$E144)*10))","v":48.153263825000003},48.153467331000002,48.144014941999991,1889.0606197019999,1888.6898024620002,6177.8773554559993,6176.6368828140012,48.153467331000002,48.144014941999991,144.64410000000001,144.61570677360243,5674.3883322880056,5673.2744659577675,18557.199709999699,18553.473559863029,144.64410000000001,144.61570677360243,1012508.7000000001,1012309.9474152169,39720718.326016039,39712921.26170437,129900397.9699979,129874314.9190412,1012508.7000000001,1012309.9474152169,7000]
[null,"Female 45-49",47.025772000000003,82.585769999999997,"female",3,1,{"$f":"HLOOKUP(Calculations!$E$2,'Population 2016'!$C$3:$BC$249,'Population 2016'!BD145,FALSE)","v":40488},0,{"$f":"HLOOKUP(Calculations!$E$2,Pop2016_in_settlements!$C$3:$BC$249,Pop2016_in_settlements!$BD145,FALSE)","v":18038},{"$f":"IF(AND(OR(Calculations!$E$2=\"Orkney Health Board\",Calculations!$E$2=\"Orkney Islands Local Authority\"),$F145=1),0,IF(AND(OR(Calculations!$E$2=\"Shetland Health Board\",Calculations!$E$2=\"Western Isles Health Board\",Calculations!$E$2=\"Shetland Islands Local Authority\",Calculations!$E$2=\"Eilean Siar Local Authority\"),OR($F145=1,$F145=5)),0,new_ci(VALUE(LEFT(Options!$B$14,2)),$C145,$E145,$F145,2016,$I145/10,1,$H145/10,$G145*$H145/10,RateRatios_accidents!$B$5)*10))","v":89.175856492999998},{"$f":"IF(AND(OR(Calculations!$E$2=\"Orkney Health Board\",Calculations!$E$2=\"Orkney Islands Local Authority\"),$F145=1),0,IF(AND(OR(Calculations!$E$2=\"Shetland Health Board\",Calculations!$E$2=\"Western Isles Health Board\",Calculations!$E$2=\"Shetland Islands Local Authority\",Calculations!$E$2=\"Eilean Siar Local Authority\"),OR($F145=1,$F145=5)),0,new_ci(VALUE(LEFT(Options!$B$14,2)),$C145,$E145,$F145,2016,$I145/10+$J145/10,1,$H145/10,$G145*$H145/10,RateRatios_accidents!$B$5)*10))","v":89.159981248999998},{"$f":"IF(AND(OR(Calculations!$E$2=\"Orkney Health Board\",Calculations!$E$2=\"Orkney Islands Local Authority\"),$F145=1),0,IF(AND(OR(Calculations!$E$2=\"Shetland Health Board\",Calculations!$E$2=\"Western Isles Health Board\",Calculations!$E$2=\"Shetland Islands Local Authority\",Calculations!$E$2=\"Eilean Siar Local Authority\"),OR($F145=1,$F145=5)),0,new_yllv2(VALUE(LEFT(Options!$B$14,2)),$C145,$D145,$E145,$F145,2016,$I145/10,1,$H145/10,$G145*$H145/10,RateRatios_accidents!$B$5)*10))","v":3081.917422046},{"$f":"IF(AND(OR(Calculations!$E$2=\"Orkney Health Board\",Calculations!$E$2=\"Orkney Islands Local Authority\"),$F145=1),0,IF(AND(OR(Calculations!$E$2=\"Shetland Health Board\",Calculations!$E$2=\"Western Isles Health Board\",Calculations!$E$2=\"Shetland Islands Local Authority\",Calculations!$E$2=\"Eilean Siar Local Authority\"),OR($F145=1,$F145=5)),0,new_yllv2(VALUE(LEFT(Options!$B$14,2)),$C145,$D145,$E145,$F145,2016,$I145/10+$J145/10,1,$H145/10,$G145*$H145/10,RateRatios_accidents!$B$5)*10))","v":3081.3687736449997},{"$f":"IF(AND(OR(Calculations!$E$2=\"Orkney Health Board\",Calculations!$E$2=\"Orkney Islands Local Authority\"),$F145=1),0,IF(AND(OR(Calculations!$E$2=\"Shetland Health Board\",Calculations!$E$2=\"Western Isles Health Board\",Calculations!$E$2=\"Shetland Islands Local Authority\",Calculations!$E$2=\"Eilean Siar Local Authority\"),OR($F145=1,$F145=5)),0,hosp_count(VALUE(LEFT(Options!$B$14,2)),$C145,$E145,$F145,2016,$I145/10,1,$H145/10,$G145*$H145/10, RateRatios_accidents!$B$4, RateRatios_accidents!$B$5)*10))","v":8509.3209577489997},{"$f":"IF(AND(OR(Calculations!$E$2=\"Orkney Health Board\",Calculations!$E$2=\"Orkney Islands Local Authority\"),$F145=1),0,IF(AND(OR(Calculations!$E$2=\"Shetland Health Board\",Calculations!$E$2=\"Western Isles Health Board\",Calculations!$E$2=\"Shetland Islands Local Authority\",Calculations!$E$2=\"Eilean Siar Local Authority\"),OR($F145=1,$F145=5)),0,hosp_count(VALUE(LEFT(Options!$B$14,2)),$C145,$E145,$F145,2016,$I145/10+$J145/10,1,$H145/10,$G145*$H145/10, RateRatios_accidents!$B$4, RateRatios_accidents!$B$5)*10))","v":8507.8045463800008},{"$f":"IF(AND(OR(Calculations!$E$2=\"Orkney Health Board\",Calculations!$E$2=\"Orkney Islands Local Authority\"),$F145=1),0,IF(AND(OR(Calculations!$E$2=\"Shetland Health Board\",Calculations!$E$2=\"Western Isles Health Board\",Calculations!$E$2=\"Shetland Islands Local Authority\",Calculations!$E$2=\"Eilean Siar Local Authority\"),OR($F145=1,$F145=5)),0,prem_mort(VALUE(LEFT(Options!$B$14,2)),$C145,$E145,$F145,2016,$I145/10,1,$H145/10,$G145*$H145/10,RateRatios_accidents!$B$5)*10))","v":89.175856492999998},{"$f":"IF(AND(OR(Calculations!$E$2=\"Orkney Health Board\",Calculations!$E$2=\"Orkney Islands Local Authority\"),$F145=1),0,IF(AND(OR(Calculations!$E$2=\"Shetland Health Board\",Calculations!$E$2=\"Western Isles Health Board\",Calculations!$E$2=\"Shetland Islands Local Authority\",Calculations!$E$2=\"Eilean Siar Local Authority\"),OR($F145=1,$F145=5)),0,prem_mort(VALUE(LEFT(Options!$B$14,2)),$C145,$E145,$F145,2016,$I145/10+$J145/10,1,$H145/10,$G145*$H145/10,RateRatios_accidents!$B$5)*10))","v":89.159981248999998},null,{"$f":"IF(AND(OR(Calculations!$E$2=\"Orkney Health Board\",Calculations!$E$2=\"Orkney Islands Local Authority\"),$F145=1),0,IF(AND(OR(Calculations!$E$2=\"Shetland Health Board\",Calculations!$E$2=\"Western Isles Health Board\",Calculations!$E$2=\"Shetland Islands Local Authority\",Calculations!$E$2=\"Eilean Siar Local Authority\"),OR($F145=1,$F145=5)),0,new_ci(VALUE(LEFT(Options!$B$14,2)),$C145,$E145,$F145,2016,$I145/10,1,$H145/10,$G145*$H145/10,RateRatios_airpollution!$C145)*10))","v":89.175856492999998},{"$f":"IF(AND(OR(Calculations!$E$2=\"Orkney Health Board\",Calculations!$E$2=\"Orkney Islands Local Authority\"),$F145=1),0,IF(AND(OR(Calculations!$E$2=\"Shetland Health Board\",Calculations!$E$2=\"Western Isles Health Board\",Calculations!$E$2=\"Shetland Islands Local Authority\",Calculations!$E$2=\"Eilean Siar Local Authority\"),OR($F145=1,$F145=5)),0,new_ci(VALUE(LEFT(Options!$B$14,2)),$C145,$E145,$F145,2016,$I145/10+$J145/10,1,$H145/10,$G145*$H145/10,RateRatios_airpollution!$C145)*10))","v":89.175062820999997},{"$f":"IF(AND(OR(Calculations!$E$2=\"Orkney Health Board\",Calculations!$E$2=\"Orkney Islands Local Authority\"),$F145=1),0,IF(AND(OR(Calculations!$E$2=\"Shetland Health Board\",Calculations!$E$2=\"Western Isles Health Board\",Calculations!$E$2=\"Shetland Islands Local Authority\",Calculations!$E$2=\"Eilean Siar Local Authority\"),OR($F145=1,$F145=5)),0,new_yllv2(VALUE(LEFT(Options!$B$14,2)),$C145,$D145,$E145,$F145,2016,$I145/10,1,$H145/10,$G145*$H145/10,RateRatios_airpollution!$C145)*10))","v":3081.917422046},{"$f":"IF(AND(OR(Calculations!$E$2=\"Orkney Health Board\",Calculations!$E$2=\"Orkney Islands Local Authority\"),$F145=1),0,IF(AND(OR(Calculations!$E$2=\"Shetland Health Board\",Calculations!$E$2=\"Western Isles Health Board\",Calculations!$E$2=\"Shetland Islands Local Authority\",Calculations!$E$2=\"Eilean Siar Local Authority\"),OR($F145=1,$F145=5)),0,new_yllv2(VALUE(LEFT(Options!$B$14,2)),$C145,$D145,$E145,$F145,2016,$I145/10+$J145/10,1,$H145/10,$G145*$H145/10,RateRatios_airpollution!$C145)*10))","v":3081.8899927439998},{"$f":"IF(AND(OR(Calculations!$E$2=\"Orkney Health Board\",Calculations!$E$2=\"Orkney Islands Local Authority\"),$F145=1),0,IF(AND(OR(Calculations!$E$2=\"Shetland Health Board\",Calculations!$E$2=\"Western Isles Health Board\",Calculations!$E$2=\"Shetland Islands Local Authority\",Calculations!$E$2=\"Eilean Siar Local Authority\"),OR($F145=1,$F145=5)),0,hosp_count(VALUE(LEFT(Options!$B$14,2)),$C145,$E145,$F145,2016,$I145/10,1,$H145/10,$G145*$H145/10, RateRatios_airpollution!$D145, RateRatios_airpollution!$C145)*10))","v":8509.3209577489997},{"$f":"IF(AND(OR(Calculations!$E$2=\"Orkney Health Board\",Calculations!$E$2=\"Orkney Islands Local Authority\"),$F145=1),0,IF(AND(OR(Calculations!$E$2=\"Shetland Health Board\",Calculations!$E$2=\"Western Isles Health Board\",Calculations!$E$2=\"Shetland Islands Local Authority\",Calculations!$E$2=\"Eilean Siar Local Authority\"),OR($F145=1,$F145=5)),0,hosp_count(VALUE(LEFT(Options!$B$14,2)),$C145,$E145,$F145,2016,$I145/10+$J145/10,1,$H145/10,$G145*$H145/10, RateRatios_airpollution!$D145, RateRatios_airpollution!$C145)*10))","v":8509.1783042259995},{"$f":"IF(AND(OR(Calculations!$E$2=\"Orkney Health Board\",Calculations!$E$2=\"Orkney Islands Local Authority\"),$F145=1),0,IF(AND(OR(Calculations!$E$2=\"Shetland Health Board\",Calculations!$E$2=\"Western Isles Health Board\",Calculations!$E$2=\"Shetland Islands Local Authority\",Calculations!$E$2=\"Eilean Siar Local Authority\"),OR($F145=1,$F145=5)),0,prem_mort(VALUE(LEFT(Options!$B$14,2)),$C145,$E145,$F145,2016,$I145/10,1,$H145/10,$G145*$H145/10,RateRatios_airpollution!$C145)*10))","v":89.175856492999998},{"$f":"IF(AND(OR(Calculations!$E$2=\"Orkney Health Board\",Calculations!$E$2=\"Orkney Islands Local Authority\"),$F145=1),0,IF(AND(OR(Calculations!$E$2=\"Shetland Health Board\",Calculations!$E$2=\"Western Isles Health Board\",Calculations!$E$2=\"Shetland Islands Local Authority\",Calculations!$E$2=\"Eilean Siar Local Authority\"),OR($F145=1,$F145=5)),0,prem_mort(VALUE(LEFT(Options!$B$14,2)),$C145,$E145,$F145,2016,$I145/10+$J145/10,1,$H145/10,$G145*$H145/10,RateRatios_airpollution!$C145)*10))","v":89.175062820999997},null,{"$f":"IF(AND(OR(Calculations!$E$2=\"Orkney Health Board\",Calculations!$E$2=\"Orkney Islands Local Authority\"),$F145=1),0,IF(AND(OR(Calculations!$E$2=\"Shetland Health Board\",Calculations!$E$2=\"Western Isles Health Board\",Calculations!$E$2=\"Shetland Islands Local Authority\",Calculations!$E$2=\"Eilean Siar Local Authority\"),OR($F145=1,$F145=5)),0,new_ci(VALUE(LEFT(Options!$B$14,2)),$C145,$E145,$F145,2016,$I145/10,1,$H145/10,$G145*$H145/10,RateRatios_airpollution!$E145)*10))","v":89.175856492999998},{"$f":"IF(AND(OR(Calculations!$E$2=\"Orkney Health Board\",Calculations!$E$2=\"Orkney Islands Local Authority\"),$F145=1),0,IF(AND(OR(Calculations!$E$2=\"Shetland Health Board\",Calculations!$E$2=\"Western Isles Health Board\",Calculations!$E$2=\"Shetland Islands Local Authority\",Calculations!$E$2=\"Eilean Siar Local Authority\"),OR($F145=1,$F145=5)),0,new_ci(VALUE(LEFT(Options!$B$14,2)),$C145,$E145,$F145,2016,$I145/10+$J145/10,1,$H145/10,$G145*$H145/10,RateRatios_airpollution!$E145)*10))","v":89.175506555999988},{"$f":"IF(AND(OR(Calculations!$E$2=\"Orkney Health Board\",Calculations!$E$2=\"Orkney Islands Local Authority\"),$F145=1),0,IF(AND(OR(Calculations!$E$2=\"Shetland Health Board\",Calculations!$E$2=\"Western Isles Health Board\",Calculations!$E$2=\"Shetland Islands Local Authority\",Calculations!$E$2=\"Eilean Siar Local Authority\"),OR($F145=1,$F145=5)),0,new_yllv2(VALUE(LEFT(Options!$B$14,2)),$C145,$D145,$E145,$F145,2016,$I145/10,1,$H145/10,$G145*$H145/10,RateRatios_airpollution!$E145)*10))","v":3081.917422046},{"$f":"IF(AND(OR(Calculations!$E$2=\"Orkney Health Board\",Calculations!$E$2=\"Orkney Islands Local Authority\"),$F145=1),0,IF(AND(OR(Calculations!$E$2=\"Shetland Health Board\",Calculations!$E$2=\"Western Isles Health Board\",Calculations!$E$2=\"Shetland Islands Local Authority\",Calculations!$E$2=\"Eilean Siar Local Authority\"),OR($F145=1,$F145=5)),0,new_yllv2(VALUE(LEFT(Options!$B$14,2)),$C145,$D145,$E145,$F145,2016,$I145/10+$J145/10,1,$H145/10,$G145*$H145/10,RateRatios_airpollution!$E145)*10))","v":3081.9053282239997},{"$f":"IF(AND(OR(Calculations!$E$2=\"Orkney Health Board\",Calculations!$E$2=\"Orkney Islands Local Authority\"),$F145=1),0,IF(AND(OR(Calculations!$E$2=\"Shetland Health Board\",Calculations!$E$2=\"Western Isles Health Board\",Calculations!$E$2=\"Shetland Islands Local Authority\",Calculations!$E$2=\"Eilean Siar Local Authority\"),OR($F145=1,$F145=5)),0,hosp_count(VALUE(LEFT(Options!$B$14,2)),$C145,$E145,$F145,2016,$I145/10,1,$H145/10,$G145*$H145/10, RateRatios_airpollution!$F145, RateRatios_airpollution!$E145)*10))","v":8509.3209577489997},{"$f":"IF(AND(OR(Calculations!$E$2=\"Orkney Health Board\",Calculations!$E$2=\"Orkney Islands Local Authority\"),$F145=1),0,IF(AND(OR(Calculations!$E$2=\"Shetland Health Board\",Calculations!$E$2=\"Western Isles Health Board\",Calculations!$E$2=\"Shetland Islands Local Authority\",Calculations!$E$2=\"Eilean Siar Local Authority\"),OR($F145=1,$F145=5)),0,hosp_count(VALUE(LEFT(Options!$B$14,2)),$C145,$E145,$F145,2016,$I145/10+$J145/10,1,$H145/10,$G145*$H145/10, RateRatios_airpollution!$F145, RateRatios_airpollution!$E145)*10))","v":8509.3209577489997},{"$f":"IF(AND(OR(Calculations!$E$2=\"Orkney Health Board\",Calculations!$E$2=\"Orkney Islands Local Authority\"),$F145=1),0,IF(AND(OR(Calculations!$E$2=\"Shetland Health Board\",Calculations!$E$2=\"Western Isles Health Board\",Calculations!$E$2=\"Shetland Islands Local Authority\",Calculations!$E$2=\"Eilean Siar Local Authority\"),OR($F145=1,$F145=5)),0,prem_mort(VALUE(LEFT(Options!$B$14,2)),$C145,$E145,$F145,2016,$I145/10,1,$H145/10,$G145*$H145/10,RateRatios_airpollution!$E145)*10))","v":89.175856492999998},{"$f":"IF(AND(OR(Calculations!$E$2=\"Orkney Health Board\",Calculations!$E$2=\"Orkney Islands Local Authority\"),$F145=1),0,IF(AND(OR(Calculations!$E$2=\"Shetland Health Board\",Calculations!$E$2=\"Western Isles Health Board\",Calculations!$E$2=\"Shetland Islands Local Authority\",Calculations!$E$2=\"Eilean Siar Local Authority\"),OR($F145=1,$F145=5)),0,prem_mort(VALUE(LEFT(Options!$B$14,2)),$C145,$E145,$F145,2016,$I145/10+$J145/10,1,$H145/10,$G145*$H145/10,RateRatios_airpollution!$E145)*10))","v":89.175506555999988},89.175856492999998,89.158837639999987,3081.917422046,3081.3292505209993,8509.3209577489997,8507.6618928570006,89.175856492999998,89.158837639999987,220.25256000049396,220.21052568662316,7611.9280331110449,7610.4753273093247,21016.896260000492,21012.798589352402,220.25256000049396,220.21052568662316,1541767.9200034577,1541473.6798063621,53283496.231777318,53273327.29116527,147118273.82000345,147089590.12546682,1541767.9200034577,1541473.6798063621,7000]
[null,"Female 50-54",51.990825999999998,82.980829999999997,"female",3,1,{"$f":"HLOOKUP(Calculations!$E$2,'Population 2016'!$C$3:$BC$249,'Population 2016'!BD146,FALSE)","v":42537},0,{"$f":"HLOOKUP(Calculations!$E$2,Pop2016_in_settlements!$C$3:$BC$249,Pop2016_in_settlements!$BD146,FALSE)","v":18849},{"$f":"IF(AND(OR(Calculations!$E$2=\"Orkney Health Board\",Calculations!$E$2=\"Orkney Islands Local Authority\"),$F146=1),0,IF(AND(OR(Calculations!$E$2=\"Shetland Health Board\",Calculations!$E$2=\"Western Isles Health Board\",Calculations!$E$2=\"Shetland Islands Local Authority\",Calculations!$E$2=\"Eilean Siar Local Authority\"),OR($F146=1,$F146=5)),0,new_ci(VALUE(LEFT(Options!$B$14,2)),$C146,$E146,$F146,2016,$I146/10,1,$H146/10,$G146*$H146/10,RateRatios_accidents!$B$5)*10))","v":142.83630669300001},{"$f":"IF(AND(OR(Calculations!$E$2=\"Orkney Health Board\",Calculations!$E$2=\"Orkney Islands Local Authority\"),$F146=1),0,IF(AND(OR(Calculations!$E$2=\"Shetland Health Board\",Calculations!$E$2=\"Western Isles Health Board\",Calculations!$E$2=\"Shetland Islands Local Authority\",Calculations!$E$2=\"Eilean Siar Local Authority\"),OR($F146=1,$F146=5)),0,new_ci(VALUE(LEFT(Options!$B$14,2)),$C146,$E146,$F146,2016,$I146/10+$J146/10,1,$H146/10,$G146*$H146/10,RateRatios_accidents!$B$5)*10))","v":142.81103206899999},{"$f":"IF(AND(OR(Calculations!$E$2=\"Orkney Health Board\",Calculations!$E$2=\"Orkney Islands Local Authority\"),$F146=1),0,IF(AND(OR(Calculations!$E$2=\"Shetland Health Board\",Calculations!$E$2=\"Western Isles Health Board\",Calculations!$E$2=\"Shetland Islands Local Authority\",Calculations!$E$2=\"Eilean Siar Local Authority\"),OR($F146=1,$F146=5)),0,new_yllv2(VALUE(LEFT(Options!$B$14,2)),$C146,$D146,$E146,$F146,2016,$I146/10,1,$H146/10,$G146*$H146/10,RateRatios_accidents!$B$5)*10))","v":4283.6614090680005},{"$f":"IF(AND(OR(Calculations!$E$2=\"Orkney Health Board\",Calculations!$E$2=\"Orkney Islands Local Authority\"),$F146=1),0,IF(AND(OR(Calculations!$E$2=\"Shetland Health Board\",Calculations!$E$2=\"Western Isles Health Board\",Calculations!$E$2=\"Shetland Islands Local Authority\",Calculations!$E$2=\"Eilean Siar Local Authority\"),OR($F146=1,$F146=5)),0,new_yllv2(VALUE(LEFT(Options!$B$14,2)),$C146,$D146,$E146,$F146,2016,$I146/10+$J146/10,1,$H146/10,$G146*$H146/10,RateRatios_accidents!$B$5)*10))","v":4282.9034229930003},{"$f":"IF(AND(OR(Calculations!$E$2=\"Orkney Health Board\",Calculations!$E$2=\"Orkney Islands Local Authority\"),$F146=1),0,IF(AND(OR(Calculations!$E$2=\"Shetland Health Board\",Calculations!$E$2=\"Western Isles Health Board\",Calculations!$E$2=\"Shetland Islands Local Authority\",Calculations!$E$2=\"Eilean Siar Local Authority\"),OR($F146=1,$F146=5)),0,hosp_count(VALUE(LEFT(Options!$B$14,2)),$C146,$E146,$F146,2016,$I146/10,1,$H146/10,$G146*$H146/10, RateRatios_accidents!$B$4, RateRatios_accidents!$B$5)*10))","v":10129.178571979999},{"$f":"IF(AND(OR(Calculations!$E$2=\"Orkney Health Board\",Calculations!$E$2=\"Orkney Islands Local Authority\"),$F146=1),0,IF(AND(OR(Calculations!$E$2=\"Shetland Health Board\",Calculations!$E$2=\"Western Isles Health Board\",Calculations!$E$2=\"Shetland Islands Local Authority\",Calculations!$E$2=\"Eilean Siar Local Authority\"),OR($F146=1,$F146=5)),0,hosp_count(VALUE(LEFT(Options!$B$14,2)),$C146,$E146,$F146,2016,$I146/10+$J146/10,1,$H146/10,$G146*$H146/10, RateRatios_accidents!$B$4, RateRatios_accidents!$B$5)*10))","v":10127.383195304999},{"$f":"IF(AND(OR(Calculations!$E$2=\"Orkney Health Board\",Calculations!$E$2=\"Orkney Islands Local Authority\"),$F146=1),0,IF(AND(OR(Calculations!$E$2=\"Shetland Health Board\",Calculations!$E$2=\"Western Isles Health Board\",Calculations!$E$2=\"Shetland Islands Local Authority\",Calculations!$E$2=\"Eilean Siar Local Authority\"),OR($F146=1,$F146=5)),0,prem_mort(VALUE(LEFT(Options!$B$14,2)),$C146,$E146,$F146,2016,$I146/10,1,$H146/10,$G146*$H146/10,RateRatios_accidents!$B$5)*10))","v":142.83630669300001},{"$f":"IF(AND(OR(Calculations!$E$2=\"Orkney Health Board\",Calculations!$E$2=\"Orkney Islands Local Authority\"),$F146=1),0,IF(AND(OR(Calculations!$E$2=\"Shetland Health Board\",Calculations!$E$2=\"Western Isles Health Board\",Calculations!$E$2=\"Shetland Islands Local Authority\",Calculations!$E$2=\"Eilean Siar Local Authority\"),OR($F146=1,$F146=5)),0,prem_mort(VALUE(LEFT(Options!$B$14,2)),$C146,$E146,$F146,2016,$I146/10+$J146/10,1,$H146/10,$G146*$H146/10,RateRatios_accidents!$B$5)*10))","v":142.81103206899999},null,{"$f":"IF(AND(OR(Calculations!$E$2=\"Orkney Health Board\",Calculations!$E$2=\"Orkney Islands Local Authority\"),$F146=1),0,IF(AND(OR(Calculations!$E$2=\"Shetland Health Board\",Calculations!$E$2=\"Western Isles Health Board\",Calculations!$E$2=\"Shetland Islands Local Authority\",Calculations!$E$2=\"Eilean Siar Local Authority\"),OR($F146=1,$F146=5)),0,new_ci(VALUE(LEFT(Options!$B$14,2)),$C146,$E146,$F146,2016,$I146/10,1,$H146/10,$G146*$H146/10,RateRatios_airpollution!$C146)*10))","v":142.83630669300001},{"$f":"IF(AND(OR(Calculations!$E$2=\"Orkney Health Board\",Calculations!$E$2=\"Orkney Islands Local Authority\"),$F146=1),0,IF(AND(OR(Calculations!$E$2=\"Shetland Health Board\",Calculations!$E$2=\"Western Isles Health Board\",Calculations!$E$2=\"Shetland Islands Local Authority\",Calculations!$E$2=\"Eilean Siar Local Authority\"),OR($F146=1,$F146=5)),0,new_ci(VALUE(LEFT(Options!$B$14,2)),$C146,$E146,$F146,2016,$I146/10+$J146/10,1,$H146/10,$G146*$H146/10,RateRatios_airpollution!$C146)*10))","v":142.835053235},{"$f":"IF(AND(OR(Calculations!$E$2=\"Orkney Health Board\",Calculations!$E$2=\"Orkney Islands Local Authority\"),$F146=1),0,IF(AND(OR(Calculations!$E$2=\"Shetland Health Board\",Calculations!$E$2=\"Western Isles Health Board\",Calculations!$E$2=\"Shetland Islands Local Authority\",Calculations!$E$2=\"Eilean Siar Local Authority\"),OR($F146=1,$F146=5)),0,new_yllv2(VALUE(LEFT(Options!$B$14,2)),$C146,$D146,$E146,$F146,2016,$I146/10,1,$H146/10,$G146*$H146/10,RateRatios_airpollution!$C146)*10))","v":4283.6614090680005},{"$f":"IF(AND(OR(Calculations!$E$2=\"Orkney Health Board\",Calculations!$E$2=\"Orkney Islands Local Authority\"),$F146=1),0,IF(AND(OR(Calculations!$E$2=\"Shetland Health Board\",Calculations!$E$2=\"Western Isles Health Board\",Calculations!$E$2=\"Shetland Islands Local Authority\",Calculations!$E$2=\"Eilean Siar Local Authority\"),OR($F146=1,$F146=5)),0,new_yllv2(VALUE(LEFT(Options!$B$14,2)),$C146,$D146,$E146,$F146,2016,$I146/10+$J146/10,1,$H146/10,$G146*$H146/10,RateRatios_airpollution!$C146)*10))","v":4283.6238178579997},{"$f":"IF(AND(OR(Calculations!$E$2=\"Orkney Health Board\",Calculations!$E$2=\"Orkney Islands Local Authority\"),$F146=1),0,IF(AND(OR(Calculations!$E$2=\"Shetland Health Board\",Calculations!$E$2=\"Western Isles Health Board\",Calculations!$E$2=\"Shetland Islands Local Authority\",Calculations!$E$2=\"Eilean Siar Local Authority\"),OR($F146=1,$F146=5)),0,hosp_count(VALUE(LEFT(Options!$B$14,2)),$C146,$E146,$F146,2016,$I146/10,1,$H146/10,$G146*$H146/10, RateRatios_airpollution!$D146, RateRatios_airpollution!$C146)*10))","v":10129.178571979999},{"$f":"IF(AND(OR(Calculations!$E$2=\"Orkney Health Board\",Calculations!$E$2=\"Orkney Islands Local Authority\"),$F146=1),0,IF(AND(OR(Calculations!$E$2=\"Shetland Health Board\",Calculations!$E$2=\"Western Isles Health Board\",Calculations!$E$2=\"Shetland Islands Local Authority\",Calculations!$E$2=\"Eilean Siar Local Authority\"),OR($F146=1,$F146=5)),0,hosp_count(VALUE(LEFT(Options!$B$14,2)),$C146,$E146,$F146,2016,$I146/10+$J146/10,1,$H146/10,$G146*$H146/10, RateRatios_airpollution!$D146, RateRatios_airpollution!$C146)*10))","v":10129.010761217},{"$f":"IF(AND(OR(Calculations!$E$2=\"Orkney Health Board\",Calculations!$E$2=\"Orkney Islands Local Authority\"),$F146=1),0,IF(AND(OR(Calculations!$E$2=\"Shetland Health Board\",Calculations!$E$2=\"Western Isles Health Board\",Calculations!$E$2=\"Shetland Islands Local Authority\",Calculations!$E$2=\"Eilean Siar Local Authority\"),OR($F146=1,$F146=5)),0,prem_mort(VALUE(LEFT(Options!$B$14,2)),$C146,$E146,$F146,2016,$I146/10,1,$H146/10,$G146*$H146/10,RateRatios_airpollution!$C146)*10))","v":142.83630669300001},{"$f":"IF(AND(OR(Calculations!$E$2=\"Orkney Health Board\",Calculations!$E$2=\"Orkney Islands Local Authority\"),$F146=1),0,IF(AND(OR(Calculations!$E$2=\"Shetland Health Board\",Calculations!$E$2=\"Western Isles Health Board\",Calculations!$E$2=\"Shetland Islands Local Authority\",Calculations!$E$2=\"Eilean Siar Local Authority\"),OR($F146=1,$F146=5)),0,prem_mort(VALUE(LEFT(Options!$B$14,2)),$C146,$E146,$F146,2016,$I146/10+$J146/10,1,$H146/10,$G146*$H146/10,RateRatios_airpollution!$C146)*10))","v":142.835053235},null,{"$f":"IF(AND(OR(Calculations!$E$2=\"Orkney Health Board\",Calculations!$E$2=\"Orkney Islands Local Authority\"),$F146=1),0,IF(AND(OR(Calculations!$E$2=\"Shetland Health Board\",Calculations!$E$2=\"Western Isles Health Board\",Calculations!$E$2=\"Shetland Islands Local Authority\",Calculations!$E$2=\"Eilean Siar Local Authority\"),OR($F146=1,$F146=5)),0,new_ci(VALUE(LEFT(Options!$B$14,2)),$C146,$E146,$F146,2016,$I146/10,1,$H146/10,$G146*$H146/10,RateRatios_airpollution!$E146)*10))","v":142.83630669300001},{"$f":"IF(AND(OR(Calculations!$E$2=\"Orkney Health Board\",Calculations!$E$2=\"Orkney Islands Local Authority\"),$F146=1),0,IF(AND(OR(Calculations!$E$2=\"Shetland Health Board\",Calculations!$E$2=\"Western Isles Health Board\",Calculations!$E$2=\"Shetland Islands Local Authority\",Calculations!$E$2=\"Eilean Siar Local Authority\"),OR($F146=1,$F146=5)),0,new_ci(VALUE(LEFT(Options!$B$14,2)),$C146,$E146,$F146,2016,$I146/10+$J146/10,1,$H146/10,$G146*$H146/10,RateRatios_airpollution!$E146)*10))","v":142.835752533},{"$f":"IF(AND(OR(Calculations!$E$2=\"Orkney Health Board\",Calculations!$E$2=\"Orkney Islands Local Authority\"),$F146=1),0,IF(AND(OR(Calculations!$E$2=\"Shetland Health Board\",Calculations!$E$2=\"Western Isles Health Board\",Calculations!$E$2=\"Shetland Islands Local Authority\",Calculations!$E$2=\"Eilean Siar Local Authority\"),OR($F146=1,$F146=5)),0,new_yllv2(VALUE(LEFT(Options!$B$14,2)),$C146,$D146,$E146,$F146,2016,$I146/10,1,$H146/10,$G146*$H146/10,RateRatios_airpollution!$E146)*10))","v":4283.6614090680005},{"$f":"IF(AND(OR(Calculations!$E$2=\"Orkney Health Board\",Calculations!$E$2=\"Orkney Islands Local Authority\"),$F146=1),0,IF(AND(OR(Calculations!$E$2=\"Shetland Health Board\",Calculations!$E$2=\"Western Isles Health Board\",Calculations!$E$2=\"Shetland Islands Local Authority\",Calculations!$E$2=\"Eilean Siar Local Authority\"),OR($F146=1,$F146=5)),0,new_yllv2(VALUE(LEFT(Options!$B$14,2)),$C146,$D146,$E146,$F146,2016,$I146/10+$J146/10,1,$H146/10,$G146*$H146/10,RateRatios_airpollution!$E146)*10))","v":4283.6447898080005},{"$f":"IF(AND(OR(Calculations!$E$2=\"Orkney Health Board\",Calculations!$E$2=\"Orkney Islands Local Authority\"),$F146=1),0,IF(AND(OR(Calculations!$E$2=\"Shetland Health Board\",Calculations!$E$2=\"Western Isles Health Board\",Calculations!$E$2=\"Shetland Islands Local Authority\",Calculations!$E$2=\"Eilean Siar Local Authority\"),OR($F146=1,$F146=5)),0,hosp_count(VALUE(LEFT(Options!$B$14,2)),$C146,$E146,$F146,2016,$I146/10,1,$H146/10,$G146*$H146/10, RateRatios_airpollution!$F146, RateRatios_airpollution!$E146)*10))","v":10129.178571979999},{"$f":"IF(AND(OR(Calculations!$E$2=\"Orkney Health Board\",Calculations!$E$2=\"Orkney Islands Local Authority\"),$F146=1),0,IF(AND(OR(Calculations!$E$2=\"Shetland Health Board\",Calculations!$E$2=\"Western Isles Health Board\",Calculations!$E$2=\"Shetland Islands Local Authority\",Calculations!$E$2=\"Eilean Siar Local Authority\"),OR($F146=1,$F146=5)),0,hosp_count(VALUE(LEFT(Options!$B$14,2)),$C146,$E146,$F146,2016,$I146/10+$J146/10,1,$H146/10,$G146*$H146/10, RateRatios_airpollution!$F146, RateRatios_airpollution!$E146)*10))","v":10129.178571979},{"$f":"IF(AND(OR(Calculations!$E$2=\"Orkney Health Board\",Calculations!$E$2=\"Orkney Islands Local Authority\"),$F146=1),0,IF(AND(OR(Calculations!$E$2=\"Shetland Health Board\",Calculations!$E$2=\"Western Isles Health Board\",Calculations!$E$2=\"Shetland Islands Local Authority\",Calculations!$E$2=\"Eilean Siar Local Authority\"),OR($F146=1,$F146=5)),0,prem_mort(VALUE(LEFT(Options!$B$14,2)),$C146,$E146,$F146,2016,$I146/10,1,$H146/10,$G146*$H146/10,RateRatios_airpollution!$E146)*10))","v":142.83630669300001},{"$f":"IF(AND(OR(Calculations!$E$2=\"Orkney Health Board\",Calculations!$E$2=\"Orkney Islands Local Authority\"),$F146=1),0,IF(AND(OR(Calculations!$E$2=\"Shetland Health Board\",Calculations!$E$2=\"Western Isles Health Board\",Calculations!$E$2=\"Shetland Islands Local Authority\",Calculations!$E$2=\"Eilean Siar Local Authority\"),OR($F146=1,$F146=5)),0,prem_mort(VALUE(LEFT(Options!$B$14,2)),$C146,$E146,$F146,2016,$I146/10+$J146/10,1,$H146/10,$G146*$H146/10,RateRatios_airpollution!$E146)*10))","v":142.835752533},142.83630669300001,142.80922445099998,4283.6614090680005,4282.8492125229996,10129.178571979999,10127.215384541001,142.83630669300001,142.80922445099998,335.79308999929475,335.72942250511318,10070.436112250512,10068.526723847473,23812.630350001175,23808.015103418205,335.79308999929475,335.72942250511318,2350551.6299950634,2350105.9575357921,70493052.785753593,70479687.066932321,166688412.45000821,166656105.72392744,2350551.6299950634,2350105.9575357921,7000]
[null,"Female 55-59",56.953040999999999,83.473039999999997,"female",3,1,{"$f":"HLOOKUP(Calculations!$E$2,'Population 2016'!$C$3:$BC$249,'Population 2016'!BD147,FALSE)","v":39153},0,{"$f":"HLOOKUP(Calculations!$E$2,Pop2016_in_settlements!$C$3:$BC$249,Pop2016_in_settlements!$BD147,FALSE)","v":17363},{"$f":"IF(AND(OR(Calculations!$E$2=\"Orkney Health Board\",Calculations!$E$2=\"Orkney Islands Local Authority\"),$F147=1),0,IF(AND(OR(Calculations!$E$2=\"Shetland Health Board\",Calculations!$E$2=\"Western Isles Health Board\",Calculations!$E$2=\"Shetland Islands Local Authority\",Calculations!$E$2=\"Eilean Siar Local Authority\"),OR($F147=1,$F147=5)),0,new_ci(VALUE(LEFT(Options!$B$14,2)),$C147,$E147,$F147,2016,$I147/10,1,$H147/10,$G147*$H147/10,RateRatios_accidents!$B$5)*10))","v":200.33229141700002},{"$f":"IF(AND(OR(Calculations!$E$2=\"Orkney Health Board\",Calculations!$E$2=\"Orkney Islands Local Authority\"),$F147=1),0,IF(AND(OR(Calculations!$E$2=\"Shetland Health Board\",Calculations!$E$2=\"Western Isles Health Board\",Calculations!$E$2=\"Shetland Islands Local Authority\",Calculations!$E$2=\"Eilean Siar Local Authority\"),OR($F147=1,$F147=5)),0,new_ci(VALUE(LEFT(Options!$B$14,2)),$C147,$E147,$F147,2016,$I147/10+$J147/10,1,$H147/10,$G147*$H147/10,RateRatios_accidents!$B$5)*10))","v":200.29684658899998},{"$f":"IF(AND(OR(Calculations!$E$2=\"Orkney Health Board\",Calculations!$E$2=\"Orkney Islands Local Authority\"),$F147=1),0,IF(AND(OR(Calculations!$E$2=\"Shetland Health Board\",Calculations!$E$2=\"Western Isles Health Board\",Calculations!$E$2=\"Shetland Islands Local Authority\",Calculations!$E$2=\"Eilean Siar Local Authority\"),OR($F147=1,$F147=5)),0,new_yllv2(VALUE(LEFT(Options!$B$14,2)),$C147,$D147,$E147,$F147,2016,$I147/10,1,$H147/10,$G147*$H147/10,RateRatios_accidents!$B$5)*10))","v":5112.47987663},{"$f":"IF(AND(OR(Calculations!$E$2=\"Orkney Health Board\",Calculations!$E$2=\"Orkney Islands Local Authority\"),$F147=1),0,IF(AND(OR(Calculations!$E$2=\"Shetland Health Board\",Calculations!$E$2=\"Western Isles Health Board\",Calculations!$E$2=\"Shetland Islands Local Authority\",Calculations!$E$2=\"Eilean Siar Local Authority\"),OR($F147=1,$F147=5)),0,new_yllv2(VALUE(LEFT(Options!$B$14,2)),$C147,$D147,$E147,$F147,2016,$I147/10+$J147/10,1,$H147/10,$G147*$H147/10,RateRatios_accidents!$B$5)*10))","v":5111.5753246539998},{"$f":"IF(AND(OR(Calculations!$E$2=\"Orkney Health Board\",Calculations!$E$2=\"Orkney Islands Local Authority\"),$F147=1),0,IF(AND(OR(Calculations!$E$2=\"Shetland Health Board\",Calculations!$E$2=\"Western Isles Health Board\",Calculations!$E$2=\"Shetland Islands Local Authority\",Calculations!$E$2=\"Eilean Siar Local Authority\"),OR($F147=1,$F147=5)),0,hosp_count(VALUE(LEFT(Options!$B$14,2)),$C147,$E147,$F147,2016,$I147/10,1,$H147/10,$G147*$H147/10, RateRatios_accidents!$B$4, RateRatios_accidents!$B$5)*10))","v":10562.827592602},{"$f":"IF(AND(OR(Calculations!$E$2=\"Orkney Health Board\",Calculations!$E$2=\"Orkney Islands Local Authority\"),$F147=1),0,IF(AND(OR(Calculations!$E$2=\"Shetland Health Board\",Calculations!$E$2=\"Western Isles Health Board\",Calculations!$E$2=\"Shetland Islands Local Authority\",Calculations!$E$2=\"Eilean Siar Local Authority\"),OR($F147=1,$F147=5)),0,hosp_count(VALUE(LEFT(Options!$B$14,2)),$C147,$E147,$F147,2016,$I147/10+$J147/10,1,$H147/10,$G147*$H147/10, RateRatios_accidents!$B$4, RateRatios_accidents!$B$5)*10))","v":10560.953893974},{"$f":"IF(AND(OR(Calculations!$E$2=\"Orkney Health Board\",Calculations!$E$2=\"Orkney Islands Local Authority\"),$F147=1),0,IF(AND(OR(Calculations!$E$2=\"Shetland Health Board\",Calculations!$E$2=\"Western Isles Health Board\",Calculations!$E$2=\"Shetland Islands Local Authority\",Calculations!$E$2=\"Eilean Siar Local Authority\"),OR($F147=1,$F147=5)),0,prem_mort(VALUE(LEFT(Options!$B$14,2)),$C147,$E147,$F147,2016,$I147/10,1,$H147/10,$G147*$H147/10,RateRatios_accidents!$B$5)*10))","v":200.33229141700002},{"$f":"IF(AND(OR(Calculations!$E$2=\"Orkney Health Board\",Calculations!$E$2=\"Orkney Islands Local Authority\"),$F147=1),0,IF(AND(OR(Calculations!$E$2=\"Shetland Health Board\",Calculations!$E$2=\"Western Isles Health Board\",Calculations!$E$2=\"Shetland Islands Local Authority\",Calculations!$E$2=\"Eilean Siar Local Authority\"),OR($F147=1,$F147=5)),0,prem_mort(VALUE(LEFT(Options!$B$14,2)),$C147,$E147,$F147,2016,$I147/10+$J147/10,1,$H147/10,$G147*$H147/10,RateRatios_accidents!$B$5)*10))","v":200.29684658899998},null,{"$f":"IF(AND(OR(Calculations!$E$2=\"Orkney Health Board\",Calculations!$E$2=\"Orkney Islands Local Authority\"),$F147=1),0,IF(AND(OR(Calculations!$E$2=\"Shetland Health Board\",Calculations!$E$2=\"Western Isles Health Board\",Calculations!$E$2=\"Shetland Islands Local Authority\",Calculations!$E$2=\"Eilean Siar Local Authority\"),OR($F147=1,$F147=5)),0,new_ci(VALUE(LEFT(Options!$B$14,2)),$C147,$E147,$F147,2016,$I147/10,1,$H147/10,$G147*$H147/10,RateRatios_airpollution!$C147)*10))","v":200.33229141700002},{"$f":"IF(AND(OR(Calculations!$E$2=\"Orkney Health Board\",Calculations!$E$2=\"Orkney Islands Local Authority\"),$F147=1),0,IF(AND(OR(Calculations!$E$2=\"Shetland Health Board\",Calculations!$E$2=\"Western Isles Health Board\",Calculations!$E$2=\"Shetland Islands Local Authority\",Calculations!$E$2=\"Eilean Siar Local Authority\"),OR($F147=1,$F147=5)),0,new_ci(VALUE(LEFT(Options!$B$14,2)),$C147,$E147,$F147,2016,$I147/10+$J147/10,1,$H147/10,$G147*$H147/10,RateRatios_airpollution!$C147)*10))","v":200.33053948999998},{"$f":"IF(AND(OR(Calculations!$E$2=\"Orkney Health Board\",Calculations!$E$2=\"Orkney Islands Local Authority\"),$F147=1),0,IF(AND(OR(Calculations!$E$2=\"Shetland Health Board\",Calculations!$E$2=\"Western Isles Health Board\",Calculations!$E$2=\"Shetland Islands Local Authority\",Calculations!$E$2=\"Eilean Siar Local Authority\"),OR($F147=1,$F147=5)),0,new_yllv2(VALUE(LEFT(Options!$B$14,2)),$C147,$D147,$E147,$F147,2016,$I147/10,1,$H147/10,$G147*$H147/10,RateRatios_airpollution!$C147)*10))","v":5112.47987663},{"$f":"IF(AND(OR(Calculations!$E$2=\"Orkney Health Board\",Calculations!$E$2=\"Orkney Islands Local Authority\"),$F147=1),0,IF(AND(OR(Calculations!$E$2=\"Shetland Health Board\",Calculations!$E$2=\"Western Isles Health Board\",Calculations!$E$2=\"Shetland Islands Local Authority\",Calculations!$E$2=\"Eilean Siar Local Authority\"),OR($F147=1,$F147=5)),0,new_yllv2(VALUE(LEFT(Options!$B$14,2)),$C147,$D147,$E147,$F147,2016,$I147/10+$J147/10,1,$H147/10,$G147*$H147/10,RateRatios_airpollution!$C147)*10))","v":5112.4351674539994},{"$f":"IF(AND(OR(Calculations!$E$2=\"Orkney Health Board\",Calculations!$E$2=\"Orkney Islands Local Authority\"),$F147=1),0,IF(AND(OR(Calculations!$E$2=\"Shetland Health Board\",Calculations!$E$2=\"Western Isles Health Board\",Calculations!$E$2=\"Shetland Islands Local Authority\",Calculations!$E$2=\"Eilean Siar Local Authority\"),OR($F147=1,$F147=5)),0,hosp_count(VALUE(LEFT(Options!$B$14,2)),$C147,$E147,$F147,2016,$I147/10,1,$H147/10,$G147*$H147/10, RateRatios_airpollution!$D147, RateRatios_airpollution!$C147)*10))","v":10562.827592602},{"$f":"IF(AND(OR(Calculations!$E$2=\"Orkney Health Board\",Calculations!$E$2=\"Orkney Islands Local Authority\"),$F147=1),0,IF(AND(OR(Calculations!$E$2=\"Shetland Health Board\",Calculations!$E$2=\"Western Isles Health Board\",Calculations!$E$2=\"Shetland Islands Local Authority\",Calculations!$E$2=\"Eilean Siar Local Authority\"),OR($F147=1,$F147=5)),0,hosp_count(VALUE(LEFT(Options!$B$14,2)),$C147,$E147,$F147,2016,$I147/10+$J147/10,1,$H147/10,$G147*$H147/10, RateRatios_airpollution!$D147, RateRatios_airpollution!$C147)*10))","v":10562.653226411001},{"$f":"IF(AND(OR(Calculations!$E$2=\"Orkney Health Board\",Calculations!$E$2=\"Orkney Islands Local Authority\"),$F147=1),0,IF(AND(OR(Calculations!$E$2=\"Shetland Health Board\",Calculations!$E$2=\"Western Isles Health Board\",Calculations!$E$2=\"Shetland Islands Local Authority\",Calculations!$E$2=\"Eilean Siar Local Authority\"),OR($F147=1,$F147=5)),0,prem_mort(VALUE(LEFT(Options!$B$14,2)),$C147,$E147,$F147,2016,$I147/10,1,$H147/10,$G147*$H147/10,RateRatios_airpollution!$C147)*10))","v":200.33229141700002},{"$f":"IF(AND(OR(Calculations!$E$2=\"Orkney Health Board\",Calculations!$E$2=\"Orkney Islands Local Authority\"),$F147=1),0,IF(AND(OR(Calculations!$E$2=\"Shetland Health Board\",Calculations!$E$2=\"Western Isles Health Board\",Calculations!$E$2=\"Shetland Islands Local Authority\",Calculations!$E$2=\"Eilean Siar Local Authority\"),OR($F147=1,$F147=5)),0,prem_mort(VALUE(LEFT(Options!$B$14,2)),$C147,$E147,$F147,2016,$I147/10+$J147/10,1,$H147/10,$G147*$H147/10,RateRatios_airpollution!$C147)*10))","v":200.33053948999998},null,{"$f":"IF(AND(OR(Calculations!$E$2=\"Orkney Health Board\",Calculations!$E$2=\"Orkney Islands Local Authority\"),$F147=1),0,IF(AND(OR(Calculations!$E$2=\"Shetland Health Board\",Calculations!$E$2=\"Western Isles Health Board\",Calculations!$E$2=\"Shetland Islands Local Authority\",Calculations!$E$2=\"Eilean Siar Local Authority\"),OR($F147=1,$F147=5)),0,new_ci(VALUE(LEFT(Options!$B$14,2)),$C147,$E147,$F147,2016,$I147/10,1,$H147/10,$G147*$H147/10,RateRatios_airpollution!$E147)*10))","v":200.33229141700002},{"$f":"IF(AND(OR(Calculations!$E$2=\"Orkney Health Board\",Calculations!$E$2=\"Orkney Islands Local Authority\"),$F147=1),0,IF(AND(OR(Calculations!$E$2=\"Shetland Health Board\",Calculations!$E$2=\"Western Isles Health Board\",Calculations!$E$2=\"Shetland Islands Local Authority\",Calculations!$E$2=\"Eilean Siar Local Authority\"),OR($F147=1,$F147=5)),0,new_ci(VALUE(LEFT(Options!$B$14,2)),$C147,$E147,$F147,2016,$I147/10+$J147/10,1,$H147/10,$G147*$H147/10,RateRatios_airpollution!$E147)*10))","v":200.33151702699999},{"$f":"IF(AND(OR(Calculations!$E$2=\"Orkney Health Board\",Calculations!$E$2=\"Orkney Islands Local Authority\"),$F147=1),0,IF(AND(OR(Calculations!$E$2=\"Shetland Health Board\",Calculations!$E$2=\"Western Isles Health Board\",Calculations!$E$2=\"Shetland Islands Local Authority\",Calculations!$E$2=\"Eilean Siar Local Authority\"),OR($F147=1,$F147=5)),0,new_yllv2(VALUE(LEFT(Options!$B$14,2)),$C147,$D147,$E147,$F147,2016,$I147/10,1,$H147/10,$G147*$H147/10,RateRatios_airpollution!$E147)*10))","v":5112.47987663},{"$f":"IF(AND(OR(Calculations!$E$2=\"Orkney Health Board\",Calculations!$E$2=\"Orkney Islands Local Authority\"),$F147=1),0,IF(AND(OR(Calculations!$E$2=\"Shetland Health Board\",Calculations!$E$2=\"Western Isles Health Board\",Calculations!$E$2=\"Shetland Islands Local Authority\",Calculations!$E$2=\"Eilean Siar Local Authority\"),OR($F147=1,$F147=5)),0,new_yllv2(VALUE(LEFT(Options!$B$14,2)),$C147,$D147,$E147,$F147,2016,$I147/10+$J147/10,1,$H147/10,$G147*$H147/10,RateRatios_airpollution!$E147)*10))","v":5112.4601141980002},{"$f":"IF(AND(OR(Calculations!$E$2=\"Orkney Health Board\",Calculations!$E$2=\"Orkney Islands Local Authority\"),$F147=1),0,IF(AND(OR(Calculations!$E$2=\"Shetland Health Board\",Calculations!$E$2=\"Western Isles Health Board\",Calculations!$E$2=\"Shetland Islands Local Authority\",Calculations!$E$2=\"Eilean Siar Local Authority\"),OR($F147=1,$F147=5)),0,hosp_count(VALUE(LEFT(Options!$B$14,2)),$C147,$E147,$F147,2016,$I147/10,1,$H147/10,$G147*$H147/10, RateRatios_airpollution!$F147, RateRatios_airpollution!$E147)*10))","v":10562.827592602},{"$f":"IF(AND(OR(Calculations!$E$2=\"Orkney Health Board\",Calculations!$E$2=\"Orkney Islands Local Authority\"),$F147=1),0,IF(AND(OR(Calculations!$E$2=\"Shetland Health Board\",Calculations!$E$2=\"Western Isles Health Board\",Calculations!$E$2=\"Shetland Islands Local Authority\",Calculations!$E$2=\"Eilean Siar Local Authority\"),OR($F147=1,$F147=5)),0,hosp_count(VALUE(LEFT(Options!$B$14,2)),$C147,$E147,$F147,2016,$I147/10+$J147/10,1,$H147/10,$G147*$H147/10, RateRatios_airpollution!$F147, RateRatios_airpollution!$E147)*10))","v":10562.827592602},{"$f":"IF(AND(OR(Calculations!$E$2=\"Orkney Health Board\",Calculations!$E$2=\"Orkney Islands Local Authority\"),$F147=1),0,IF(AND(OR(Calculations!$E$2=\"Shetland Health Board\",Calculations!$E$2=\"Western Isles Health Board\",Calculations!$E$2=\"Shetland Islands Local Authority\",Calculations!$E$2=\"Eilean Siar Local Authority\"),OR($F147=1,$F147=5)),0,prem_mort(VALUE(LEFT(Options!$B$14,2)),$C147,$E147,$F147,2016,$I147/10,1,$H147/10,$G147*$H147/10,RateRatios_airpollution!$E147)*10))","v":200.33229141700002},{"$f":"IF(AND(OR(Calculations!$E$2=\"Orkney Health Board\",Calculations!$E$2=\"Orkney Islands Local Authority\"),$F147=1),0,IF(AND(OR(Calculations!$E$2=\"Shetland Health Board\",Calculations!$E$2=\"Western Isles Health Board\",Calculations!$E$2=\"Shetland Islands Local Authority\",Calculations!$E$2=\"Eilean Siar Local Authority\"),OR($F147=1,$F147=5)),0,prem_mort(VALUE(LEFT(Options!$B$14,2)),$C147,$E147,$F147,2016,$I147/10+$J147/10,1,$H147/10,$G147*$H147/10,RateRatios_airpollution!$E147)*10))","v":200.33151702699999},200.33229141700002,200.29432027199991,5112.47987663,5111.5108530459993,10562.827592602,10560.779527783001,200.33229141700002,200.29432027199991,511.66523999948924,511.56825855489978,13057.696413122876,13055.221446749929,26978.335230000255,26973.104303075117,511.66523999948924,511.56825855489978,3325824.0599966799,3325193.6806068486,84875026.685298696,84858939.403874531,175359178.99500167,175325177.96998826,3325824.0599966799,3325193.6806068486,6500]
[null,"Female 60-64",61.947387999999997,84.167389999999997,"female",3,1,{"$f":"HLOOKUP(Calculations!$E$2,'Population 2016'!$C$3:$BC$249,'Population 2016'!BD148,FALSE)","v":34585},0,{"$f":"HLOOKUP(Calculations!$E$2,Pop2016_in_settlements!$C$3:$BC$249,Pop2016_in_settlements!$BD148,FALSE)","v":14917},{"$f":"IF(AND(OR(Calculations!$E$2=\"Orkney Health Board\",Calculations!$E$2=\"Orkney Islands Local Authority\"),$F148=1),0,IF(AND(OR(Calculations!$E$2=\"Shetland Health Board\",Calculations!$E$2=\"Western Isles Health Board\",Calculations!$E$2=\"Shetland Islands Local Authority\",Calculations!$E$2=\"Eilean Siar Local Authority\"),OR($F148=1,$F148=5)),0,new_ci(VALUE(LEFT(Options!$B$14,2)),$C148,$E148,$F148,2016,$I148/10,1,$H148/10,$G148*$H148/10,RateRatios_accidents!$B$5)*10))","v":270.25210452800002},{"$f":"IF(AND(OR(Calculations!$E$2=\"Orkney Health Board\",Calculations!$E$2=\"Orkney Islands Local Authority\"),$F148=1),0,IF(AND(OR(Calculations!$E$2=\"Shetland Health Board\",Calculations!$E$2=\"Western Isles Health Board\",Calculations!$E$2=\"Shetland Islands Local Authority\",Calculations!$E$2=\"Eilean Siar Local Authority\"),OR($F148=1,$F148=5)),0,new_ci(VALUE(LEFT(Options!$B$14,2)),$C148,$E148,$F148,2016,$I148/10+$J148/10,1,$H148/10,$G148*$H148/10,RateRatios_accidents!$B$5)*10))","v":270.20566194100002},{"$f":"IF(AND(OR(Calculations!$E$2=\"Orkney Health Board\",Calculations!$E$2=\"Orkney Islands Local Authority\"),$F148=1),0,IF(AND(OR(Calculations!$E$2=\"Shetland Health Board\",Calculations!$E$2=\"Western Isles Health Board\",Calculations!$E$2=\"Shetland Islands Local Authority\",Calculations!$E$2=\"Eilean Siar Local Authority\"),OR($F148=1,$F148=5)),0,new_yllv2(VALUE(LEFT(Options!$B$14,2)),$C148,$D148,$E148,$F148,2016,$I148/10,1,$H148/10,$G148*$H148/10,RateRatios_accidents!$B$5)*10))","v":5734.7501985879999},{"$f":"IF(AND(OR(Calculations!$E$2=\"Orkney Health Board\",Calculations!$E$2=\"Orkney Islands Local Authority\"),$F148=1),0,IF(AND(OR(Calculations!$E$2=\"Shetland Health Board\",Calculations!$E$2=\"Western Isles Health Board\",Calculations!$E$2=\"Shetland Islands Local Authority\",Calculations!$E$2=\"Eilean Siar Local Authority\"),OR($F148=1,$F148=5)),0,new_yllv2(VALUE(LEFT(Options!$B$14,2)),$C148,$D148,$E148,$F148,2016,$I148/10+$J148/10,1,$H148/10,$G148*$H148/10,RateRatios_accidents!$B$5)*10))","v":5733.7646867989997},{"$f":"IF(AND(OR(Calculations!$E$2=\"Orkney Health Board\",Calculations!$E$2=\"Orkney Islands Local Authority\"),$F148=1),0,IF(AND(OR(Calculations!$E$2=\"Shetland Health Board\",Calculations!$E$2=\"Western Isles Health Board\",Calculations!$E$2=\"Shetland Islands Local Authority\",Calculations!$E$2=\"Eilean Siar Local Authority\"),OR($F148=1,$F148=5)),0,hosp_count(VALUE(LEFT(Options!$B$14,2)),$C148,$E148,$F148,2016,$I148/10,1,$H148/10,$G148*$H148/10, RateRatios_accidents!$B$4, RateRatios_accidents!$B$5)*10))","v":10579.416535496001},{"$f":"IF(AND(OR(Calculations!$E$2=\"Orkney Health Board\",Calculations!$E$2=\"Orkney Islands Local Authority\"),$F148=1),0,IF(AND(OR(Calculations!$E$2=\"Shetland Health Board\",Calculations!$E$2=\"Western Isles Health Board\",Calculations!$E$2=\"Shetland Islands Local Authority\",Calculations!$E$2=\"Eilean Siar Local Authority\"),OR($F148=1,$F148=5)),0,hosp_count(VALUE(LEFT(Options!$B$14,2)),$C148,$E148,$F148,2016,$I148/10+$J148/10,1,$H148/10,$G148*$H148/10, RateRatios_accidents!$B$4, RateRatios_accidents!$B$5)*10))","v":10577.591315243},{"$f":"IF(AND(OR(Calculations!$E$2=\"Orkney Health Board\",Calculations!$E$2=\"Orkney Islands Local Authority\"),$F148=1),0,IF(AND(OR(Calculations!$E$2=\"Shetland Health Board\",Calculations!$E$2=\"Western Isles Health Board\",Calculations!$E$2=\"Shetland Islands Local Authority\",Calculations!$E$2=\"Eilean Siar Local Authority\"),OR($F148=1,$F148=5)),0,prem_mort(VALUE(LEFT(Options!$B$14,2)),$C148,$E148,$F148,2016,$I148/10,1,$H148/10,$G148*$H148/10,RateRatios_accidents!$B$5)*10))","v":270.25210452800002},{"$f":"IF(AND(OR(Calculations!$E$2=\"Orkney Health Board\",Calculations!$E$2=\"Orkney Islands Local Authority\"),$F148=1),0,IF(AND(OR(Calculations!$E$2=\"Shetland Health Board\",Calculations!$E$2=\"Western Isles Health Board\",Calculations!$E$2=\"Shetland Islands Local Authority\",Calculations!$E$2=\"Eilean Siar Local Authority\"),OR($F148=1,$F148=5)),0,prem_mort(VALUE(LEFT(Options!$B$14,2)),$C148,$E148,$F148,2016,$I148/10+$J148/10,1,$H148/10,$G148*$H148/10,RateRatios_accidents!$B$5)*10))","v":270.20566194100002},null,{"$f":"IF(AND(OR(Calculations!$E$2=\"Orkney Health Board\",Calculations!$E$2=\"Orkney Islands Local Authority\"),$F148=1),0,IF(AND(OR(Calculations!$E$2=\"Shetland Health Board\",Calculations!$E$2=\"Western Isles Health Board\",Calculations!$E$2=\"Shetland Islands Local Authority\",Calculations!$E$2=\"Eilean Siar Local Authority\"),OR($F148=1,$F148=5)),0,new_ci(VALUE(LEFT(Options!$B$14,2)),$C148,$E148,$F148,2016,$I148/10,1,$H148/10,$G148*$H148/10,RateRatios_airpollution!$C148)*10))","v":270.25210452800002},{"$f":"IF(AND(OR(Calculations!$E$2=\"Orkney Health Board\",Calculations!$E$2=\"Orkney Islands Local Authority\"),$F148=1),0,IF(AND(OR(Calculations!$E$2=\"Shetland Health Board\",Calculations!$E$2=\"Western Isles Health Board\",Calculations!$E$2=\"Shetland Islands Local Authority\",Calculations!$E$2=\"Eilean Siar Local Authority\"),OR($F148=1,$F148=5)),0,new_ci(VALUE(LEFT(Options!$B$14,2)),$C148,$E148,$F148,2016,$I148/10+$J148/10,1,$H148/10,$G148*$H148/10,RateRatios_airpollution!$C148)*10))","v":270.249886371},{"$f":"IF(AND(OR(Calculations!$E$2=\"Orkney Health Board\",Calculations!$E$2=\"Orkney Islands Local Authority\"),$F148=1),0,IF(AND(OR(Calculations!$E$2=\"Shetland Health Board\",Calculations!$E$2=\"Western Isles Health Board\",Calculations!$E$2=\"Shetland Islands Local Authority\",Calculations!$E$2=\"Eilean Siar Local Authority\"),OR($F148=1,$F148=5)),0,new_yllv2(VALUE(LEFT(Options!$B$14,2)),$C148,$D148,$E148,$F148,2016,$I148/10,1,$H148/10,$G148*$H148/10,RateRatios_airpollution!$C148)*10))","v":5734.7501985879999},{"$f":"IF(AND(OR(Calculations!$E$2=\"Orkney Health Board\",Calculations!$E$2=\"Orkney Islands Local Authority\"),$F148=1),0,IF(AND(OR(Calculations!$E$2=\"Shetland Health Board\",Calculations!$E$2=\"Western Isles Health Board\",Calculations!$E$2=\"Shetland Islands Local Authority\",Calculations!$E$2=\"Eilean Siar Local Authority\"),OR($F148=1,$F148=5)),0,new_yllv2(VALUE(LEFT(Options!$B$14,2)),$C148,$D148,$E148,$F148,2016,$I148/10+$J148/10,1,$H148/10,$G148*$H148/10,RateRatios_airpollution!$C148)*10))","v":5734.7031292920001},{"$f":"IF(AND(OR(Calculations!$E$2=\"Orkney Health Board\",Calculations!$E$2=\"Orkney Islands Local Authority\"),$F148=1),0,IF(AND(OR(Calculations!$E$2=\"Shetland Health Board\",Calculations!$E$2=\"Western Isles Health Board\",Calculations!$E$2=\"Shetland Islands Local Authority\",Calculations!$E$2=\"Eilean Siar Local Authority\"),OR($F148=1,$F148=5)),0,hosp_count(VALUE(LEFT(Options!$B$14,2)),$C148,$E148,$F148,2016,$I148/10,1,$H148/10,$G148*$H148/10, RateRatios_airpollution!$D148, RateRatios_airpollution!$C148)*10))","v":10579.416535496001},{"$f":"IF(AND(OR(Calculations!$E$2=\"Orkney Health Board\",Calculations!$E$2=\"Orkney Islands Local Authority\"),$F148=1),0,IF(AND(OR(Calculations!$E$2=\"Shetland Health Board\",Calculations!$E$2=\"Western Isles Health Board\",Calculations!$E$2=\"Shetland Islands Local Authority\",Calculations!$E$2=\"Eilean Siar Local Authority\"),OR($F148=1,$F148=5)),0,hosp_count(VALUE(LEFT(Options!$B$14,2)),$C148,$E148,$F148,2016,$I148/10+$J148/10,1,$H148/10,$G148*$H148/10, RateRatios_airpollution!$D148, RateRatios_airpollution!$C148)*10))","v":10579.252241149999},{"$f":"IF(AND(OR(Calculations!$E$2=\"Orkney Health Board\",Calculations!$E$2=\"Orkney Islands Local Authority\"),$F148=1),0,IF(AND(OR(Calculations!$E$2=\"Shetland Health Board\",Calculations!$E$2=\"Western Isles Health Board\",Calculations!$E$2=\"Shetland Islands Local Authority\",Calculations!$E$2=\"Eilean Siar Local Authority\"),OR($F148=1,$F148=5)),0,prem_mort(VALUE(LEFT(Options!$B$14,2)),$C148,$E148,$F148,2016,$I148/10,1,$H148/10,$G148*$H148/10,RateRatios_airpollution!$C148)*10))","v":270.25210452800002},{"$f":"IF(AND(OR(Calculations!$E$2=\"Orkney Health Board\",Calculations!$E$2=\"Orkney Islands Local Authority\"),$F148=1),0,IF(AND(OR(Calculations!$E$2=\"Shetland Health Board\",Calculations!$E$2=\"Western Isles Health Board\",Calculations!$E$2=\"Shetland Islands Local Authority\",Calculations!$E$2=\"Eilean Siar Local Authority\"),OR($F148=1,$F148=5)),0,prem_mort(VALUE(LEFT(Options!$B$14,2)),$C148,$E148,$F148,2016,$I148/10+$J148/10,1,$H148/10,$G148*$H148/10,RateRatios_airpollution!$C148)*10))","v":270.249886371},null,{"$f":"IF(AND(OR(Calculations!$E$2=\"Orkney Health Board\",Calculations!$E$2=\"Orkney Islands Local Authority\"),$F148=1),0,IF(AND(OR(Calculations!$E$2=\"Shetland Health Board\",Calculations!$E$2=\"Western Isles Health Board\",Calculations!$E$2=\"Shetland Islands Local Authority\",Calculations!$E$2=\"Eilean Siar Local Authority\"),OR($F148=1,$F148=5)),0,new_ci(VALUE(LEFT(Options!$B$14,2)),$C148,$E148,$F148,2016,$I148/10,1,$H148/10,$G148*$H148/10,RateRatios_airpollution!$E148)*10))","v":270.25210452800002},{"$f":"IF(AND(OR(Calculations!$E$2=\"Orkney Health Board\",Calculations!$E$2=\"Orkney Islands Local Authority\"),$F148=1),0,IF(AND(OR(Calculations!$E$2=\"Shetland Health Board\",Calculations!$E$2=\"Western Isles Health Board\",Calculations!$E$2=\"Shetland Islands Local Authority\",Calculations!$E$2=\"Eilean Siar Local Authority\"),OR($F148=1,$F148=5)),0,new_ci(VALUE(LEFT(Options!$B$14,2)),$C148,$E148,$F148,2016,$I148/10+$J148/10,1,$H148/10,$G148*$H148/10,RateRatios_airpollution!$E148)*10))","v":270.25112895699999},{"$f":"IF(AND(OR(Calculations!$E$2=\"Orkney Health Board\",Calculations!$E$2=\"Orkney Islands Local Authority\"),$F148=1),0,IF(AND(OR(Calculations!$E$2=\"Shetland Health Board\",Calculations!$E$2=\"Western Isles Health Board\",Calculations!$E$2=\"Shetland Islands Local Authority\",Calculations!$E$2=\"Eilean Siar Local Authority\"),OR($F148=1,$F148=5)),0,new_yllv2(VALUE(LEFT(Options!$B$14,2)),$C148,$D148,$E148,$F148,2016,$I148/10,1,$H148/10,$G148*$H148/10,RateRatios_airpollution!$E148)*10))","v":5734.7501985879999},{"$f":"IF(AND(OR(Calculations!$E$2=\"Orkney Health Board\",Calculations!$E$2=\"Orkney Islands Local Authority\"),$F148=1),0,IF(AND(OR(Calculations!$E$2=\"Shetland Health Board\",Calculations!$E$2=\"Western Isles Health Board\",Calculations!$E$2=\"Shetland Islands Local Authority\",Calculations!$E$2=\"Eilean Siar Local Authority\"),OR($F148=1,$F148=5)),0,new_yllv2(VALUE(LEFT(Options!$B$14,2)),$C148,$D148,$E148,$F148,2016,$I148/10+$J148/10,1,$H148/10,$G148*$H148/10,RateRatios_airpollution!$E148)*10))","v":5734.7294969699997},{"$f":"IF(AND(OR(Calculations!$E$2=\"Orkney Health Board\",Calculations!$E$2=\"Orkney Islands Local Authority\"),$F148=1),0,IF(AND(OR(Calculations!$E$2=\"Shetland Health Board\",Calculations!$E$2=\"Western Isles Health Board\",Calculations!$E$2=\"Shetland Islands Local Authority\",Calculations!$E$2=\"Eilean Siar Local Authority\"),OR($F148=1,$F148=5)),0,hosp_count(VALUE(LEFT(Options!$B$14,2)),$C148,$E148,$F148,2016,$I148/10,1,$H148/10,$G148*$H148/10, RateRatios_airpollution!$F148, RateRatios_airpollution!$E148)*10))","v":10579.416535496001},{"$f":"IF(AND(OR(Calculations!$E$2=\"Orkney Health Board\",Calculations!$E$2=\"Orkney Islands Local Authority\"),$F148=1),0,IF(AND(OR(Calculations!$E$2=\"Shetland Health Board\",Calculations!$E$2=\"Western Isles Health Board\",Calculations!$E$2=\"Shetland Islands Local Authority\",Calculations!$E$2=\"Eilean Siar Local Authority\"),OR($F148=1,$F148=5)),0,hosp_count(VALUE(LEFT(Options!$B$14,2)),$C148,$E148,$F148,2016,$I148/10+$J148/10,1,$H148/10,$G148*$H148/10, RateRatios_airpollution!$F148, RateRatios_airpollution!$E148)*10))","v":10579.416535496001},{"$f":"IF(AND(OR(Calculations!$E$2=\"Orkney Health Board\",Calculations!$E$2=\"Orkney Islands Local Authority\"),$F148=1),0,IF(AND(OR(Calculations!$E$2=\"Shetland Health Board\",Calculations!$E$2=\"Western Isles Health Board\",Calculations!$E$2=\"Shetland Islands Local Authority\",Calculations!$E$2=\"Eilean Siar Local Authority\"),OR($F148=1,$F148=5)),0,prem_mort(VALUE(LEFT(Options!$B$14,2)),$C148,$E148,$F148,2016,$I148/10,1,$H148/10,$G148*$H148/10,RateRatios_airpollution!$E148)*10))","v":270.25210452800002},{"$f":"IF(AND(OR(Calculations!$E$2=\"Orkney Health Board\",Calculations!$E$2=\"Orkney Islands Local Authority\"),$F148=1),0,IF(AND(OR(Calculations!$E$2=\"Shetland Health Board\",Calculations!$E$2=\"Western Isles Health Board\",Calculations!$E$2=\"Shetland Islands Local Authority\",Calculations!$E$2=\"Eilean Siar Local Authority\"),OR($F148=1,$F148=5)),0,prem_mort(VALUE(LEFT(Options!$B$14,2)),$C148,$E148,$F148,2016,$I148/10+$J148/10,1,$H148/10,$G148*$H148/10,RateRatios_airpollution!$E148)*10))","v":270.25112895699999},270.25210452800002,270.20246821299997,5734.7501985879999,5733.6969158849997,10579.416535496001,10577.427020896999,270.25210452800002,270.20246821299997,781.41420999855438,781.27069022119406,16581.611098996673,16578.565609035712,30589.609759999999,30583.857223932337,781.41420999855438,781.27069022119406,4688485.2599913264,4687624.1413271641,99489666.593980044,99471393.654214263,183537658.56,183503143.34359401,4688485.2599913264,4687624.1413271641,6000]
[null,"Female 65-69",67.063927000000007,85.193929999999995,"female",3,1,{"$f":"HLOOKUP(Calculations!$E$2,'Population 2016'!$C$3:$BC$249,'Population 2016'!BD149,FALSE)","v":35061},0,{"$f":"HLOOKUP(Calculations!$E$2,Pop2016_in_settlements!$C$3:$BC$249,Pop2016_in_settlements!$BD149,FALSE)","v":15010},{"$f":"IF(AND(OR(Calculations!$E$2=\"Orkney Health Board\",Calculations!$E$2=\"Orkney Islands Local Authority\"),$F149=1),0,IF(AND(OR(Calculations!$E$2=\"Shetland Health Board\",Calculations!$E$2=\"Western Isles Health Board\",Calculations!$E$2=\"Shetland Islands Local Authority\",Calculations!$E$2=\"Eilean Siar Local Authority\"),OR($F149=1,$F149=5)),0,new_ci(VALUE(LEFT(Options!$B$14,2)),$C149,$E149,$F149,2016,$I149/10,1,$H149/10,$G149*$H149/10,RateRatios_accidents!$B$5)*10))","v":422.45091811599997},{"$f":"IF(AND(OR(Calculations!$E$2=\"Orkney Health Board\",Calculations!$E$2=\"Orkney Islands Local Authority\"),$F149=1),0,IF(AND(OR(Calculations!$E$2=\"Shetland Health Board\",Calculations!$E$2=\"Western Isles Health Board\",Calculations!$E$2=\"Shetland Islands Local Authority\",Calculations!$E$2=\"Eilean Siar Local Authority\"),OR($F149=1,$F149=5)),0,new_ci(VALUE(LEFT(Options!$B$14,2)),$C149,$E149,$F149,2016,$I149/10+$J149/10,1,$H149/10,$G149*$H149/10,RateRatios_accidents!$B$5)*10))","v":422.37901271099997},{"$f":"IF(AND(OR(Calculations!$E$2=\"Orkney Health Board\",Calculations!$E$2=\"Orkney Islands Local Authority\"),$F149=1),0,IF(AND(OR(Calculations!$E$2=\"Shetland Health Board\",Calculations!$E$2=\"Western Isles Health Board\",Calculations!$E$2=\"Shetland Islands Local Authority\",Calculations!$E$2=\"Eilean Siar Local Authority\"),OR($F149=1,$F149=5)),0,new_yllv2(VALUE(LEFT(Options!$B$14,2)),$C149,$D149,$E149,$F149,2016,$I149/10,1,$H149/10,$G149*$H149/10,RateRatios_accidents!$B$5)*10))","v":7236.5854946800009},{"$f":"IF(AND(OR(Calculations!$E$2=\"Orkney Health Board\",Calculations!$E$2=\"Orkney Islands Local Authority\"),$F149=1),0,IF(AND(OR(Calculations!$E$2=\"Shetland Health Board\",Calculations!$E$2=\"Western Isles Health Board\",Calculations!$E$2=\"Shetland Islands Local Authority\",Calculations!$E$2=\"Eilean Siar Local Authority\"),OR($F149=1,$F149=5)),0,new_yllv2(VALUE(LEFT(Options!$B$14,2)),$C149,$D149,$E149,$F149,2016,$I149/10+$J149/10,1,$H149/10,$G149*$H149/10,RateRatios_accidents!$B$5)*10))","v":7235.3537548760005},{"$f":"IF(AND(OR(Calculations!$E$2=\"Orkney Health Board\",Calculations!$E$2=\"Orkney Islands Local Authority\"),$F149=1),0,IF(AND(OR(Calculations!$E$2=\"Shetland Health Board\",Calculations!$E$2=\"Western Isles Health Board\",Calculations!$E$2=\"Shetland Islands Local Authority\",Calculations!$E$2=\"Eilean Siar Local Authority\"),OR($F149=1,$F149=5)),0,hosp_count(VALUE(LEFT(Options!$B$14,2)),$C149,$E149,$F149,2016,$I149/10,1,$H149/10,$G149*$H149/10, RateRatios_accidents!$B$4, RateRatios_accidents!$B$5)*10))","v":12198.090860927001},{"$f":"IF(AND(OR(Calculations!$E$2=\"Orkney Health Board\",Calculations!$E$2=\"Orkney Islands Local Authority\"),$F149=1),0,IF(AND(OR(Calculations!$E$2=\"Shetland Health Board\",Calculations!$E$2=\"Western Isles Health Board\",Calculations!$E$2=\"Shetland Islands Local Authority\",Calculations!$E$2=\"Eilean Siar Local Authority\"),OR($F149=1,$F149=5)),0,hosp_count(VALUE(LEFT(Options!$B$14,2)),$C149,$E149,$F149,2016,$I149/10+$J149/10,1,$H149/10,$G149*$H149/10, RateRatios_accidents!$B$4, RateRatios_accidents!$B$5)*10))","v":12196.002006285},{"$f":"IF(AND(OR(Calculations!$E$2=\"Orkney Health Board\",Calculations!$E$2=\"Orkney Islands Local Authority\"),$F149=1),0,IF(AND(OR(Calculations!$E$2=\"Shetland Health Board\",Calculations!$E$2=\"Western Isles Health Board\",Calculations!$E$2=\"Shetland Islands Local Authority\",Calculations!$E$2=\"Eilean Siar Local Authority\"),OR($F149=1,$F149=5)),0,prem_mort(VALUE(LEFT(Options!$B$14,2)),$C149,$E149,$F149,2016,$I149/10,1,$H149/10,$G149*$H149/10,RateRatios_accidents!$B$5)*10))","v":422.45091811599997},{"$f":"IF(AND(OR(Calculations!$E$2=\"Orkney Health Board\",Calculations!$E$2=\"Orkney Islands Local Authority\"),$F149=1),0,IF(AND(OR(Calculations!$E$2=\"Shetland Health Board\",Calculations!$E$2=\"Western Isles Health Board\",Calculations!$E$2=\"Shetland Islands Local Authority\",Calculations!$E$2=\"Eilean Siar Local Authority\"),OR($F149=1,$F149=5)),0,prem_mort(VALUE(LEFT(Options!$B$14,2)),$C149,$E149,$F149,2016,$I149/10+$J149/10,1,$H149/10,$G149*$H149/10,RateRatios_accidents!$B$5)*10))","v":422.37901271099997},null,{"$f":"IF(AND(OR(Calculations!$E$2=\"Orkney Health Board\",Calculations!$E$2=\"Orkney Islands Local Authority\"),$F149=1),0,IF(AND(OR(Calculations!$E$2=\"Shetland Health Board\",Calculations!$E$2=\"Western Isles Health Board\",Calculations!$E$2=\"Shetland Islands Local Authority\",Calculations!$E$2=\"Eilean Siar Local Authority\"),OR($F149=1,$F149=5)),0,new_ci(VALUE(LEFT(Options!$B$14,2)),$C149,$E149,$F149,2016,$I149/10,1,$H149/10,$G149*$H149/10,RateRatios_airpollution!$C149)*10))","v":422.45091811599997},{"$f":"IF(AND(OR(Calculations!$E$2=\"Orkney Health Board\",Calculations!$E$2=\"Orkney Islands Local Authority\"),$F149=1),0,IF(AND(OR(Calculations!$E$2=\"Shetland Health Board\",Calculations!$E$2=\"Western Isles Health Board\",Calculations!$E$2=\"Shetland Islands Local Authority\",Calculations!$E$2=\"Eilean Siar Local Authority\"),OR($F149=1,$F149=5)),0,new_ci(VALUE(LEFT(Options!$B$14,2)),$C149,$E149,$F149,2016,$I149/10+$J149/10,1,$H149/10,$G149*$H149/10,RateRatios_airpollution!$C149)*10))","v":422.44760991299995},{"$f":"IF(AND(OR(Calculations!$E$2=\"Orkney Health Board\",Calculations!$E$2=\"Orkney Islands Local Authority\"),$F149=1),0,IF(AND(OR(Calculations!$E$2=\"Shetland Health Board\",Calculations!$E$2=\"Western Isles Health Board\",Calculations!$E$2=\"Shetland Islands Local Authority\",Calculations!$E$2=\"Eilean Siar Local Authority\"),OR($F149=1,$F149=5)),0,new_yllv2(VALUE(LEFT(Options!$B$14,2)),$C149,$D149,$E149,$F149,2016,$I149/10,1,$H149/10,$G149*$H149/10,RateRatios_airpollution!$C149)*10))","v":7236.5854946800009},{"$f":"IF(AND(OR(Calculations!$E$2=\"Orkney Health Board\",Calculations!$E$2=\"Orkney Islands Local Authority\"),$F149=1),0,IF(AND(OR(Calculations!$E$2=\"Shetland Health Board\",Calculations!$E$2=\"Western Isles Health Board\",Calculations!$E$2=\"Shetland Islands Local Authority\",Calculations!$E$2=\"Eilean Siar Local Authority\"),OR($F149=1,$F149=5)),0,new_yllv2(VALUE(LEFT(Options!$B$14,2)),$C149,$D149,$E149,$F149,2016,$I149/10+$J149/10,1,$H149/10,$G149*$H149/10,RateRatios_airpollution!$C149)*10))","v":7236.5288251530001},{"$f":"IF(AND(OR(Calculations!$E$2=\"Orkney Health Board\",Calculations!$E$2=\"Orkney Islands Local Authority\"),$F149=1),0,IF(AND(OR(Calculations!$E$2=\"Shetland Health Board\",Calculations!$E$2=\"Western Isles Health Board\",Calculations!$E$2=\"Shetland Islands Local Authority\",Calculations!$E$2=\"Eilean Siar Local Authority\"),OR($F149=1,$F149=5)),0,hosp_count(VALUE(LEFT(Options!$B$14,2)),$C149,$E149,$F149,2016,$I149/10,1,$H149/10,$G149*$H149/10, RateRatios_airpollution!$D149, RateRatios_airpollution!$C149)*10))","v":12198.090860927001},{"$f":"IF(AND(OR(Calculations!$E$2=\"Orkney Health Board\",Calculations!$E$2=\"Orkney Islands Local Authority\"),$F149=1),0,IF(AND(OR(Calculations!$E$2=\"Shetland Health Board\",Calculations!$E$2=\"Western Isles Health Board\",Calculations!$E$2=\"Shetland Islands Local Authority\",Calculations!$E$2=\"Eilean Siar Local Authority\"),OR($F149=1,$F149=5)),0,hosp_count(VALUE(LEFT(Options!$B$14,2)),$C149,$E149,$F149,2016,$I149/10+$J149/10,1,$H149/10,$G149*$H149/10, RateRatios_airpollution!$D149, RateRatios_airpollution!$C149)*10))","v":12197.909756270999},{"$f":"IF(AND(OR(Calculations!$E$2=\"Orkney Health Board\",Calculations!$E$2=\"Orkney Islands Local Authority\"),$F149=1),0,IF(AND(OR(Calculations!$E$2=\"Shetland Health Board\",Calculations!$E$2=\"Western Isles Health Board\",Calculations!$E$2=\"Shetland Islands Local Authority\",Calculations!$E$2=\"Eilean Siar Local Authority\"),OR($F149=1,$F149=5)),0,prem_mort(VALUE(LEFT(Options!$B$14,2)),$C149,$E149,$F149,2016,$I149/10,1,$H149/10,$G149*$H149/10,RateRatios_airpollution!$C149)*10))","v":422.45091811599997},{"$f":"IF(AND(OR(Calculations!$E$2=\"Orkney Health Board\",Calculations!$E$2=\"Orkney Islands Local Authority\"),$F149=1),0,IF(AND(OR(Calculations!$E$2=\"Shetland Health Board\",Calculations!$E$2=\"Western Isles Health Board\",Calculations!$E$2=\"Shetland Islands Local Authority\",Calculations!$E$2=\"Eilean Siar Local Authority\"),OR($F149=1,$F149=5)),0,prem_mort(VALUE(LEFT(Options!$B$14,2)),$C149,$E149,$F149,2016,$I149/10+$J149/10,1,$H149/10,$G149*$H149/10,RateRatios_airpollution!$C149)*10))","v":422.44760991299995},null,{"$f":"IF(AND(OR(Calculations!$E$2=\"Orkney Health Board\",Calculations!$E$2=\"Orkney Islands Local Authority\"),$F149=1),0,IF(AND(OR(Calculations!$E$2=\"Shetland Health Board\",Calculations!$E$2=\"Western Isles Health Board\",Calculations!$E$2=\"Shetland Islands Local Authority\",Calculations!$E$2=\"Eilean Siar Local Authority\"),OR($F149=1,$F149=5)),0,new_ci(VALUE(LEFT(Options!$B$14,2)),$C149,$E149,$F149,2016,$I149/10,1,$H149/10,$G149*$H149/10,RateRatios_airpollution!$E149)*10))","v":422.45091811599997},{"$f":"IF(AND(OR(Calculations!$E$2=\"Orkney Health Board\",Calculations!$E$2=\"Orkney Islands Local Authority\"),$F149=1),0,IF(AND(OR(Calculations!$E$2=\"Shetland Health Board\",Calculations!$E$2=\"Western Isles Health Board\",Calculations!$E$2=\"Shetland Islands Local Authority\",Calculations!$E$2=\"Eilean Siar Local Authority\"),OR($F149=1,$F149=5)),0,new_ci(VALUE(LEFT(Options!$B$14,2)),$C149,$E149,$F149,2016,$I149/10+$J149/10,1,$H149/10,$G149*$H149/10,RateRatios_airpollution!$E149)*10))","v":422.44946364800001},{"$f":"IF(AND(OR(Calculations!$E$2=\"Orkney Health Board\",Calculations!$E$2=\"Orkney Islands Local Authority\"),$F149=1),0,IF(AND(OR(Calculations!$E$2=\"Shetland Health Board\",Calculations!$E$2=\"Western Isles Health Board\",Calculations!$E$2=\"Shetland Islands Local Authority\",Calculations!$E$2=\"Eilean Siar Local Authority\"),OR($F149=1,$F149=5)),0,new_yllv2(VALUE(LEFT(Options!$B$14,2)),$C149,$D149,$E149,$F149,2016,$I149/10,1,$H149/10,$G149*$H149/10,RateRatios_airpollution!$E149)*10))","v":7236.5854946800009},{"$f":"IF(AND(OR(Calculations!$E$2=\"Orkney Health Board\",Calculations!$E$2=\"Orkney Islands Local Authority\"),$F149=1),0,IF(AND(OR(Calculations!$E$2=\"Shetland Health Board\",Calculations!$E$2=\"Western Isles Health Board\",Calculations!$E$2=\"Shetland Islands Local Authority\",Calculations!$E$2=\"Eilean Siar Local Authority\"),OR($F149=1,$F149=5)),0,new_yllv2(VALUE(LEFT(Options!$B$14,2)),$C149,$D149,$E149,$F149,2016,$I149/10+$J149/10,1,$H149/10,$G149*$H149/10,RateRatios_airpollution!$E149)*10))","v":7236.560579639},{"$f":"IF(AND(OR(Calculations!$E$2=\"Orkney Health Board\",Calculations!$E$2=\"Orkney Islands Local Authority\"),$F149=1),0,IF(AND(OR(Calculations!$E$2=\"Shetland Health Board\",Calculations!$E$2=\"Western Isles Health Board\",Calculations!$E$2=\"Shetland Islands Local Authority\",Calculations!$E$2=\"Eilean Siar Local Authority\"),OR($F149=1,$F149=5)),0,hosp_count(VALUE(LEFT(Options!$B$14,2)),$C149,$E149,$F149,2016,$I149/10,1,$H149/10,$G149*$H149/10, RateRatios_airpollution!$F149, RateRatios_airpollution!$E149)*10))","v":12198.090860927001},{"$f":"IF(AND(OR(Calculations!$E$2=\"Orkney Health Board\",Calculations!$E$2=\"Orkney Islands Local Authority\"),$F149=1),0,IF(AND(OR(Calculations!$E$2=\"Shetland Health Board\",Calculations!$E$2=\"Western Isles Health Board\",Calculations!$E$2=\"Shetland Islands Local Authority\",Calculations!$E$2=\"Eilean Siar Local Authority\"),OR($F149=1,$F149=5)),0,hosp_count(VALUE(LEFT(Options!$B$14,2)),$C149,$E149,$F149,2016,$I149/10+$J149/10,1,$H149/10,$G149*$H149/10, RateRatios_airpollution!$F149, RateRatios_airpollution!$E149)*10))","v":12198.090860927001},{"$f":"IF(AND(OR(Calculations!$E$2=\"Orkney Health Board\",Calculations!$E$2=\"Orkney Islands Local Authority\"),$F149=1),0,IF(AND(OR(Calculations!$E$2=\"Shetland Health Board\",Calculations!$E$2=\"Western Isles Health Board\",Calculations!$E$2=\"Shetland Islands Local Authority\",Calculations!$E$2=\"Eilean Siar Local Authority\"),OR($F149=1,$F149=5)),0,prem_mort(VALUE(LEFT(Options!$B$14,2)),$C149,$E149,$F149,2016,$I149/10,1,$H149/10,$G149*$H149/10,RateRatios_airpollution!$E149)*10))","v":422.45091811599997},{"$f":"IF(AND(OR(Calculations!$E$2=\"Orkney Health Board\",Calculations!$E$2=\"Orkney Islands Local Authority\"),$F149=1),0,IF(AND(OR(Calculations!$E$2=\"Shetland Health Board\",Calculations!$E$2=\"Western Isles Health Board\",Calculations!$E$2=\"Shetland Islands Local Authority\",Calculations!$E$2=\"Eilean Siar Local Authority\"),OR($F149=1,$F149=5)),0,prem_mort(VALUE(LEFT(Options!$B$14,2)),$C149,$E149,$F149,2016,$I149/10+$J149/10,1,$H149/10,$G149*$H149/10,RateRatios_airpollution!$E149)*10))","v":422.44946364800001},422.45091811599997,422.37425003999999,7236.5854946800009,7235.2721703079987,12198.090860927001,12195.820901628998,422.45091811599997,422.37425003999999,1204.9026499985739,1204.6839794643622,20639.986009183995,20636.240182276601,34791.05233999886,34784.578025809293,1204.9026499985739,1204.6839794643622,6626964.5749921566,6625761.8870539926,113519923.05051197,113499321.00252131,191350787.86999372,191315179.14195111,6626964.5749921566,6625761.8870539926,5500]
[null,"Female 70-74",71.938164,86.248159999999999,"female",3,1,{"$f":"HLOOKUP(Calculations!$E$2,'Population 2016'!$C$3:$BC$249,'Population 2016'!BD150,FALSE)","v":27558},0,{"$f":"HLOOKUP(Calculations!$E$2,Pop2016_in_settlements!$C$3:$BC$249,Pop2016_in_settlements!$BD150,FALSE)","v":11994},{"$f":"IF(AND(OR(Calculations!$E$2=\"Orkney Health Board\",Calculations!$E$2=\"Orkney Islands Local Authority\"),$F150=1),0,IF(AND(OR(Calculations!$E$2=\"Shetland Health Board\",Calculations!$E$2=\"Western Isles Health Board\",Calculations!$E$2=\"Shetland Islands Local Authority\",Calculations!$E$2=\"Eilean Siar Local Authority\"),OR($F150=1,$F150=5)),0,new_ci(VALUE(LEFT(Options!$B$14,2)),$C150,$E150,$F150,2016,$I150/10,1,$H150/10,$G150*$H150/10,RateRatios_accidents!$B$5)*10))","v":501.07002528400005},{"$f":"IF(AND(OR(Calculations!$E$2=\"Orkney Health Board\",Calculations!$E$2=\"Orkney Islands Local Authority\"),$F150=1),0,IF(AND(OR(Calculations!$E$2=\"Shetland Health Board\",Calculations!$E$2=\"Western Isles Health Board\",Calculations!$E$2=\"Shetland Islands Local Authority\",Calculations!$E$2=\"Eilean Siar Local Authority\"),OR($F150=1,$F150=5)),0,new_ci(VALUE(LEFT(Options!$B$14,2)),$C150,$E150,$F150,2016,$I150/10+$J150/10,1,$H150/10,$G150*$H150/10,RateRatios_accidents!$B$5)*10))","v":500.98359172300002},{"$f":"IF(AND(OR(Calculations!$E$2=\"Orkney Health Board\",Calculations!$E$2=\"Orkney Islands Local Authority\"),$F150=1),0,IF(AND(OR(Calculations!$E$2=\"Shetland Health Board\",Calculations!$E$2=\"Western Isles Health Board\",Calculations!$E$2=\"Shetland Islands Local Authority\",Calculations!$E$2=\"Eilean Siar Local Authority\"),OR($F150=1,$F150=5)),0,new_yllv2(VALUE(LEFT(Options!$B$14,2)),$C150,$D150,$E150,$F150,2016,$I150/10,1,$H150/10,$G150*$H150/10,RateRatios_accidents!$B$5)*10))","v":6669.2400322499998},{"$f":"IF(AND(OR(Calculations!$E$2=\"Orkney Health Board\",Calculations!$E$2=\"Orkney Islands Local Authority\"),$F150=1),0,IF(AND(OR(Calculations!$E$2=\"Shetland Health Board\",Calculations!$E$2=\"Western Isles Health Board\",Calculations!$E$2=\"Shetland Islands Local Authority\",Calculations!$E$2=\"Eilean Siar Local Authority\"),OR($F150=1,$F150=5)),0,new_yllv2(VALUE(LEFT(Options!$B$14,2)),$C150,$D150,$E150,$F150,2016,$I150/10+$J150/10,1,$H150/10,$G150*$H150/10,RateRatios_accidents!$B$5)*10))","v":6668.0896018989997},{"$f":"IF(AND(OR(Calculations!$E$2=\"Orkney Health Board\",Calculations!$E$2=\"Orkney Islands Local Authority\"),$F150=1),0,IF(AND(OR(Calculations!$E$2=\"Shetland Health Board\",Calculations!$E$2=\"Western Isles Health Board\",Calculations!$E$2=\"Shetland Islands Local Authority\",Calculations!$E$2=\"Eilean Siar Local Authority\"),OR($F150=1,$F150=5)),0,hosp_count(VALUE(LEFT(Options!$B$14,2)),$C150,$E150,$F150,2016,$I150/10,1,$H150/10,$G150*$H150/10, RateRatios_accidents!$B$4, RateRatios_accidents!$B$5)*10))","v":10838.319669491},{"$f":"IF(AND(OR(Calculations!$E$2=\"Orkney Health Board\",Calculations!$E$2=\"Orkney Islands Local Authority\"),$F150=1),0,IF(AND(OR(Calculations!$E$2=\"Shetland Health Board\",Calculations!$E$2=\"Western Isles Health Board\",Calculations!$E$2=\"Shetland Islands Local Authority\",Calculations!$E$2=\"Eilean Siar Local Authority\"),OR($F150=1,$F150=5)),0,hosp_count(VALUE(LEFT(Options!$B$14,2)),$C150,$E150,$F150,2016,$I150/10+$J150/10,1,$H150/10,$G150*$H150/10, RateRatios_accidents!$B$4, RateRatios_accidents!$B$5)*10))","v":10836.432815390001},{"$f":"IF(AND(OR(Calculations!$E$2=\"Orkney Health Board\",Calculations!$E$2=\"Orkney Islands Local Authority\"),$F150=1),0,IF(AND(OR(Calculations!$E$2=\"Shetland Health Board\",Calculations!$E$2=\"Western Isles Health Board\",Calculations!$E$2=\"Shetland Islands Local Authority\",Calculations!$E$2=\"Eilean Siar Local Authority\"),OR($F150=1,$F150=5)),0,prem_mort(VALUE(LEFT(Options!$B$14,2)),$C150,$E150,$F150,2016,$I150/10,1,$H150/10,$G150*$H150/10,RateRatios_accidents!$B$5)*10))","v":501.07002528400005},{"$f":"IF(AND(OR(Calculations!$E$2=\"Orkney Health Board\",Calculations!$E$2=\"Orkney Islands Local Authority\"),$F150=1),0,IF(AND(OR(Calculations!$E$2=\"Shetland Health Board\",Calculations!$E$2=\"Western Isles Health Board\",Calculations!$E$2=\"Shetland Islands Local Authority\",Calculations!$E$2=\"Eilean Siar Local Authority\"),OR($F150=1,$F150=5)),0,prem_mort(VALUE(LEFT(Options!$B$14,2)),$C150,$E150,$F150,2016,$I150/10+$J150/10,1,$H150/10,$G150*$H150/10,RateRatios_accidents!$B$5)*10))","v":500.98359172300002},null,{"$f":"IF(AND(OR(Calculations!$E$2=\"Orkney Health Board\",Calculations!$E$2=\"Orkney Islands Local Authority\"),$F150=1),0,IF(AND(OR(Calculations!$E$2=\"Shetland Health Board\",Calculations!$E$2=\"Western Isles Health Board\",Calculations!$E$2=\"Shetland Islands Local Authority\",Calculations!$E$2=\"Eilean Siar Local Authority\"),OR($F150=1,$F150=5)),0,new_ci(VALUE(LEFT(Options!$B$14,2)),$C150,$E150,$F150,2016,$I150/10,1,$H150/10,$G150*$H150/10,RateRatios_airpollution!$C150)*10))","v":501.07002528400005},{"$f":"IF(AND(OR(Calculations!$E$2=\"Orkney Health Board\",Calculations!$E$2=\"Orkney Islands Local Authority\"),$F150=1),0,IF(AND(OR(Calculations!$E$2=\"Shetland Health Board\",Calculations!$E$2=\"Western Isles Health Board\",Calculations!$E$2=\"Shetland Islands Local Authority\",Calculations!$E$2=\"Eilean Siar Local Authority\"),OR($F150=1,$F150=5)),0,new_ci(VALUE(LEFT(Options!$B$14,2)),$C150,$E150,$F150,2016,$I150/10+$J150/10,1,$H150/10,$G150*$H150/10,RateRatios_airpollution!$C150)*10))","v":501.06611164199995},{"$f":"IF(AND(OR(Calculations!$E$2=\"Orkney Health Board\",Calculations!$E$2=\"Orkney Islands Local Authority\"),$F150=1),0,IF(AND(OR(Calculations!$E$2=\"Shetland Health Board\",Calculations!$E$2=\"Western Isles Health Board\",Calculations!$E$2=\"Shetland Islands Local Authority\",Calculations!$E$2=\"Eilean Siar Local Authority\"),OR($F150=1,$F150=5)),0,new_yllv2(VALUE(LEFT(Options!$B$14,2)),$C150,$D150,$E150,$F150,2016,$I150/10,1,$H150/10,$G150*$H150/10,RateRatios_airpollution!$C150)*10))","v":6669.2400322499998},{"$f":"IF(AND(OR(Calculations!$E$2=\"Orkney Health Board\",Calculations!$E$2=\"Orkney Islands Local Authority\"),$F150=1),0,IF(AND(OR(Calculations!$E$2=\"Shetland Health Board\",Calculations!$E$2=\"Western Isles Health Board\",Calculations!$E$2=\"Shetland Islands Local Authority\",Calculations!$E$2=\"Eilean Siar Local Authority\"),OR($F150=1,$F150=5)),0,new_yllv2(VALUE(LEFT(Options!$B$14,2)),$C150,$D150,$E150,$F150,2016,$I150/10+$J150/10,1,$H150/10,$G150*$H150/10,RateRatios_airpollution!$C150)*10))","v":6669.1879416909997},{"$f":"IF(AND(OR(Calculations!$E$2=\"Orkney Health Board\",Calculations!$E$2=\"Orkney Islands Local Authority\"),$F150=1),0,IF(AND(OR(Calculations!$E$2=\"Shetland Health Board\",Calculations!$E$2=\"Western Isles Health Board\",Calculations!$E$2=\"Shetland Islands Local Authority\",Calculations!$E$2=\"Eilean Siar Local Authority\"),OR($F150=1,$F150=5)),0,hosp_count(VALUE(LEFT(Options!$B$14,2)),$C150,$E150,$F150,2016,$I150/10,1,$H150/10,$G150*$H150/10, RateRatios_airpollution!$D150, RateRatios_airpollution!$C150)*10))","v":10838.319669491},{"$f":"IF(AND(OR(Calculations!$E$2=\"Orkney Health Board\",Calculations!$E$2=\"Orkney Islands Local Authority\"),$F150=1),0,IF(AND(OR(Calculations!$E$2=\"Shetland Health Board\",Calculations!$E$2=\"Western Isles Health Board\",Calculations!$E$2=\"Shetland Islands Local Authority\",Calculations!$E$2=\"Eilean Siar Local Authority\"),OR($F150=1,$F150=5)),0,hosp_count(VALUE(LEFT(Options!$B$14,2)),$C150,$E150,$F150,2016,$I150/10+$J150/10,1,$H150/10,$G150*$H150/10, RateRatios_airpollution!$D150, RateRatios_airpollution!$C150)*10))","v":10838.158680025999},{"$f":"IF(AND(OR(Calculations!$E$2=\"Orkney Health Board\",Calculations!$E$2=\"Orkney Islands Local Authority\"),$F150=1),0,IF(AND(OR(Calculations!$E$2=\"Shetland Health Board\",Calculations!$E$2=\"Western Isles Health Board\",Calculations!$E$2=\"Shetland Islands Local Authority\",Calculations!$E$2=\"Eilean Siar Local Authority\"),OR($F150=1,$F150=5)),0,prem_mort(VALUE(LEFT(Options!$B$14,2)),$C150,$E150,$F150,2016,$I150/10,1,$H150/10,$G150*$H150/10,RateRatios_airpollution!$C150)*10))","v":501.07002528400005},{"$f":"IF(AND(OR(Calculations!$E$2=\"Orkney Health Board\",Calculations!$E$2=\"Orkney Islands Local Authority\"),$F150=1),0,IF(AND(OR(Calculations!$E$2=\"Shetland Health Board\",Calculations!$E$2=\"Western Isles Health Board\",Calculations!$E$2=\"Shetland Islands Local Authority\",Calculations!$E$2=\"Eilean Siar Local Authority\"),OR($F150=1,$F150=5)),0,prem_mort(VALUE(LEFT(Options!$B$14,2)),$C150,$E150,$F150,2016,$I150/10+$J150/10,1,$H150/10,$G150*$H150/10,RateRatios_airpollution!$C150)*10))","v":501.06611164199995},null,{"$f":"IF(AND(OR(Calculations!$E$2=\"Orkney Health Board\",Calculations!$E$2=\"Orkney Islands Local Authority\"),$F150=1),0,IF(AND(OR(Calculations!$E$2=\"Shetland Health Board\",Calculations!$E$2=\"Western Isles Health Board\",Calculations!$E$2=\"Shetland Islands Local Authority\",Calculations!$E$2=\"Eilean Siar Local Authority\"),OR($F150=1,$F150=5)),0,new_ci(VALUE(LEFT(Options!$B$14,2)),$C150,$E150,$F150,2016,$I150/10,1,$H150/10,$G150*$H150/10,RateRatios_airpollution!$E150)*10))","v":501.07002528400005},{"$f":"IF(AND(OR(Calculations!$E$2=\"Orkney Health Board\",Calculations!$E$2=\"Orkney Islands Local Authority\"),$F150=1),0,IF(AND(OR(Calculations!$E$2=\"Shetland Health Board\",Calculations!$E$2=\"Western Isles Health Board\",Calculations!$E$2=\"Shetland Islands Local Authority\",Calculations!$E$2=\"Eilean Siar Local Authority\"),OR($F150=1,$F150=5)),0,new_ci(VALUE(LEFT(Options!$B$14,2)),$C150,$E150,$F150,2016,$I150/10+$J150/10,1,$H150/10,$G150*$H150/10,RateRatios_airpollution!$E150)*10))","v":501.06830174599997},{"$f":"IF(AND(OR(Calculations!$E$2=\"Orkney Health Board\",Calculations!$E$2=\"Orkney Islands Local Authority\"),$F150=1),0,IF(AND(OR(Calculations!$E$2=\"Shetland Health Board\",Calculations!$E$2=\"Western Isles Health Board\",Calculations!$E$2=\"Shetland Islands Local Authority\",Calculations!$E$2=\"Eilean Siar Local Authority\"),OR($F150=1,$F150=5)),0,new_yllv2(VALUE(LEFT(Options!$B$14,2)),$C150,$D150,$E150,$F150,2016,$I150/10,1,$H150/10,$G150*$H150/10,RateRatios_airpollution!$E150)*10))","v":6669.2400322499998},{"$f":"IF(AND(OR(Calculations!$E$2=\"Orkney Health Board\",Calculations!$E$2=\"Orkney Islands Local Authority\"),$F150=1),0,IF(AND(OR(Calculations!$E$2=\"Shetland Health Board\",Calculations!$E$2=\"Western Isles Health Board\",Calculations!$E$2=\"Shetland Islands Local Authority\",Calculations!$E$2=\"Eilean Siar Local Authority\"),OR($F150=1,$F150=5)),0,new_yllv2(VALUE(LEFT(Options!$B$14,2)),$C150,$D150,$E150,$F150,2016,$I150/10+$J150/10,1,$H150/10,$G150*$H150/10,RateRatios_airpollution!$E150)*10))","v":6669.2170919660002},{"$f":"IF(AND(OR(Calculations!$E$2=\"Orkney Health Board\",Calculations!$E$2=\"Orkney Islands Local Authority\"),$F150=1),0,IF(AND(OR(Calculations!$E$2=\"Shetland Health Board\",Calculations!$E$2=\"Western Isles Health Board\",Calculations!$E$2=\"Shetland Islands Local Authority\",Calculations!$E$2=\"Eilean Siar Local Authority\"),OR($F150=1,$F150=5)),0,hosp_count(VALUE(LEFT(Options!$B$14,2)),$C150,$E150,$F150,2016,$I150/10,1,$H150/10,$G150*$H150/10, RateRatios_airpollution!$F150, RateRatios_airpollution!$E150)*10))","v":10838.319669491},{"$f":"IF(AND(OR(Calculations!$E$2=\"Orkney Health Board\",Calculations!$E$2=\"Orkney Islands Local Authority\"),$F150=1),0,IF(AND(OR(Calculations!$E$2=\"Shetland Health Board\",Calculations!$E$2=\"Western Isles Health Board\",Calculations!$E$2=\"Shetland Islands Local Authority\",Calculations!$E$2=\"Eilean Siar Local Authority\"),OR($F150=1,$F150=5)),0,hosp_count(VALUE(LEFT(Options!$B$14,2)),$C150,$E150,$F150,2016,$I150/10+$J150/10,1,$H150/10,$G150*$H150/10, RateRatios_airpollution!$F150, RateRatios_airpollution!$E150)*10))","v":10838.319669491},{"$f":"IF(AND(OR(Calculations!$E$2=\"Orkney Health Board\",Calculations!$E$2=\"Orkney Islands Local Authority\"),$F150=1),0,IF(AND(OR(Calculations!$E$2=\"Shetland Health Board\",Calculations!$E$2=\"Western Isles Health Board\",Calculations!$E$2=\"Shetland Islands Local Authority\",Calculations!$E$2=\"Eilean Siar Local Authority\"),OR($F150=1,$F150=5)),0,prem_mort(VALUE(LEFT(Options!$B$14,2)),$C150,$E150,$F150,2016,$I150/10,1,$H150/10,$G150*$H150/10,RateRatios_airpollution!$E150)*10))","v":501.07002528400005},{"$f":"IF(AND(OR(Calculations!$E$2=\"Orkney Health Board\",Calculations!$E$2=\"Orkney Islands Local Authority\"),$F150=1),0,IF(AND(OR(Calculations!$E$2=\"Shetland Health Board\",Calculations!$E$2=\"Western Isles Health Board\",Calculations!$E$2=\"Shetland Islands Local Authority\",Calculations!$E$2=\"Eilean Siar Local Authority\"),OR($F150=1,$F150=5)),0,prem_mort(VALUE(LEFT(Options!$B$14,2)),$C150,$E150,$F150,2016,$I150/10+$J150/10,1,$H150/10,$G150*$H150/10,RateRatios_airpollution!$E150)*10))","v":501.06830174599997},501.07002528400005,500.97795454299984,6669.2400322499998,6668.014571056,10838.319669491,10836.271825925,501.07002528400005,500.97795454299984,1818.2379899992743,1817.9038919478912,24200.740373938603,24196.293530212643,39329.122829998552,39321.691798842439,1818.2379899992743,1817.9038919478912,9091189.9499963708,9089519.459739456,121003701.86969301,120981467.65106322,196645614.14999276,196608458.99421221,9091189.9499963708,9089519.459739456,5000]
[null,"Female 75-79",76.942824999999999,87.812830000000005,"female",3,1,{"$f":"HLOOKUP(Calculations!$E$2,'Population 2016'!$C$3:$BC$249,'Population 2016'!BD151,FALSE)","v":22028},0,{"$f":"HLOOKUP(Calculations!$E$2,Pop2016_in_settlements!$C$3:$BC$249,Pop2016_in_settlements!$BD151,FALSE)","v":10121},{"$f":"IF(AND(OR(Calculations!$E$2=\"Orkney Health Board\",Calculations!$E$2=\"Orkney Islands Local Authority\"),$F151=1),0,IF(AND(OR(Calculations!$E$2=\"Shetland Health Board\",Calculations!$E$2=\"Western Isles Health Board\",Calculations!$E$2=\"Shetland Islands Local Authority\",Calculations!$E$2=\"Eilean Siar Local Authority\"),OR($F151=1,$F151=5)),0,new_ci(VALUE(LEFT(Options!$B$14,2)),$C151,$E151,$F151,2016,$I151/10,1,$H151/10,$G151*$H151/10,RateRatios_accidents!$B$5)*10))","v":610.077502708},{"$f":"IF(AND(OR(Calculations!$E$2=\"Orkney Health Board\",Calculations!$E$2=\"Orkney Islands Local Authority\"),$F151=1),0,IF(AND(OR(Calculations!$E$2=\"Shetland Health Board\",Calculations!$E$2=\"Western Isles Health Board\",Calculations!$E$2=\"Shetland Islands Local Authority\",Calculations!$E$2=\"Eilean Siar Local Authority\"),OR($F151=1,$F151=5)),0,new_ci(VALUE(LEFT(Options!$B$14,2)),$C151,$E151,$F151,2016,$I151/10+$J151/10,1,$H151/10,$G151*$H151/10,RateRatios_accidents!$B$5)*10))","v":609.96694697600003},{"$f":"IF(AND(OR(Calculations!$E$2=\"Orkney Health Board\",Calculations!$E$2=\"Orkney Islands Local Authority\"),$F151=1),0,IF(AND(OR(Calculations!$E$2=\"Shetland Health Board\",Calculations!$E$2=\"Western Isles Health Board\",Calculations!$E$2=\"Shetland Islands Local Authority\",Calculations!$E$2=\"Eilean Siar Local Authority\"),OR($F151=1,$F151=5)),0,new_yllv2(VALUE(LEFT(Options!$B$14,2)),$C151,$D151,$E151,$F151,2016,$I151/10,1,$H151/10,$G151*$H151/10,RateRatios_accidents!$B$5)*10))","v":6021.4680021149998},{"$f":"IF(AND(OR(Calculations!$E$2=\"Orkney Health Board\",Calculations!$E$2=\"Orkney Islands Local Authority\"),$F151=1),0,IF(AND(OR(Calculations!$E$2=\"Shetland Health Board\",Calculations!$E$2=\"Western Isles Health Board\",Calculations!$E$2=\"Shetland Islands Local Authority\",Calculations!$E$2=\"Eilean Siar Local Authority\"),OR($F151=1,$F151=5)),0,new_yllv2(VALUE(LEFT(Options!$B$14,2)),$C151,$D151,$E151,$F151,2016,$I151/10+$J151/10,1,$H151/10,$G151*$H151/10,RateRatios_accidents!$B$5)*10))","v":6020.3768164880003},{"$f":"IF(AND(OR(Calculations!$E$2=\"Orkney Health Board\",Calculations!$E$2=\"Orkney Islands Local Authority\"),$F151=1),0,IF(AND(OR(Calculations!$E$2=\"Shetland Health Board\",Calculations!$E$2=\"Western Isles Health Board\",Calculations!$E$2=\"Shetland Islands Local Authority\",Calculations!$E$2=\"Eilean Siar Local Authority\"),OR($F151=1,$F151=5)),0,hosp_count(VALUE(LEFT(Options!$B$14,2)),$C151,$E151,$F151,2016,$I151/10,1,$H151/10,$G151*$H151/10, RateRatios_accidents!$B$4, RateRatios_accidents!$B$5)*10))","v":9825.638670028},{"$f":"IF(AND(OR(Calculations!$E$2=\"Orkney Health Board\",Calculations!$E$2=\"Orkney Islands Local Authority\"),$F151=1),0,IF(AND(OR(Calculations!$E$2=\"Shetland Health Board\",Calculations!$E$2=\"Western Isles Health Board\",Calculations!$E$2=\"Shetland Islands Local Authority\",Calculations!$E$2=\"Eilean Siar Local Authority\"),OR($F151=1,$F151=5)),0,hosp_count(VALUE(LEFT(Options!$B$14,2)),$C151,$E151,$F151,2016,$I151/10+$J151/10,1,$H151/10,$G151*$H151/10, RateRatios_accidents!$B$4, RateRatios_accidents!$B$5)*10))","v":9823.8328720989994},{"$f":"IF(AND(OR(Calculations!$E$2=\"Orkney Health Board\",Calculations!$E$2=\"Orkney Islands Local Authority\"),$F151=1),0,IF(AND(OR(Calculations!$E$2=\"Shetland Health Board\",Calculations!$E$2=\"Western Isles Health Board\",Calculations!$E$2=\"Shetland Islands Local Authority\",Calculations!$E$2=\"Eilean Siar Local Authority\"),OR($F151=1,$F151=5)),0,prem_mort(VALUE(LEFT(Options!$B$14,2)),$C151,$E151,$F151,2016,$I151/10,1,$H151/10,$G151*$H151/10,RateRatios_accidents!$B$5)*10))","v":0},{"$f":"IF(AND(OR(Calculations!$E$2=\"Orkney Health Board\",Calculations!$E$2=\"Orkney Islands Local Authority\"),$F151=1),0,IF(AND(OR(Calculations!$E$2=\"Shetland Health Board\",Calculations!$E$2=\"Western Isles Health Board\",Calculations!$E$2=\"Shetland Islands Local Authority\",Calculations!$E$2=\"Eilean Siar Local Authority\"),OR($F151=1,$F151=5)),0,prem_mort(VALUE(LEFT(Options!$B$14,2)),$C151,$E151,$F151,2016,$I151/10+$J151/10,1,$H151/10,$G151*$H151/10,RateRatios_accidents!$B$5)*10))","v":0},null,{"$f":"IF(AND(OR(Calculations!$E$2=\"Orkney Health Board\",Calculations!$E$2=\"Orkney Islands Local Authority\"),$F151=1),0,IF(AND(OR(Calculations!$E$2=\"Shetland Health Board\",Calculations!$E$2=\"Western Isles Health Board\",Calculations!$E$2=\"Shetland Islands Local Authority\",Calculations!$E$2=\"Eilean Siar Local Authority\"),OR($F151=1,$F151=5)),0,new_ci(VALUE(LEFT(Options!$B$14,2)),$C151,$E151,$F151,2016,$I151/10,1,$H151/10,$G151*$H151/10,RateRatios_airpollution!$C151)*10))","v":610.077502708},{"$f":"IF(AND(OR(Calculations!$E$2=\"Orkney Health Board\",Calculations!$E$2=\"Orkney Islands Local Authority\"),$F151=1),0,IF(AND(OR(Calculations!$E$2=\"Shetland Health Board\",Calculations!$E$2=\"Western Isles Health Board\",Calculations!$E$2=\"Shetland Islands Local Authority\",Calculations!$E$2=\"Eilean Siar Local Authority\"),OR($F151=1,$F151=5)),0,new_ci(VALUE(LEFT(Options!$B$14,2)),$C151,$E151,$F151,2016,$I151/10+$J151/10,1,$H151/10,$G151*$H151/10,RateRatios_airpollution!$C151)*10))","v":610.07242702600001},{"$f":"IF(AND(OR(Calculations!$E$2=\"Orkney Health Board\",Calculations!$E$2=\"Orkney Islands Local Authority\"),$F151=1),0,IF(AND(OR(Calculations!$E$2=\"Shetland Health Board\",Calculations!$E$2=\"Western Isles Health Board\",Calculations!$E$2=\"Shetland Islands Local Authority\",Calculations!$E$2=\"Eilean Siar Local Authority\"),OR($F151=1,$F151=5)),0,new_yllv2(VALUE(LEFT(Options!$B$14,2)),$C151,$D151,$E151,$F151,2016,$I151/10,1,$H151/10,$G151*$H151/10,RateRatios_airpollution!$C151)*10))","v":6021.4680021149998},{"$f":"IF(AND(OR(Calculations!$E$2=\"Orkney Health Board\",Calculations!$E$2=\"Orkney Islands Local Authority\"),$F151=1),0,IF(AND(OR(Calculations!$E$2=\"Shetland Health Board\",Calculations!$E$2=\"Western Isles Health Board\",Calculations!$E$2=\"Shetland Islands Local Authority\",Calculations!$E$2=\"Eilean Siar Local Authority\"),OR($F151=1,$F151=5)),0,new_yllv2(VALUE(LEFT(Options!$B$14,2)),$C151,$D151,$E151,$F151,2016,$I151/10+$J151/10,1,$H151/10,$G151*$H151/10,RateRatios_airpollution!$C151)*10))","v":6021.4179051090005},{"$f":"IF(AND(OR(Calculations!$E$2=\"Orkney Health Board\",Calculations!$E$2=\"Orkney Islands Local Authority\"),$F151=1),0,IF(AND(OR(Calculations!$E$2=\"Shetland Health Board\",Calculations!$E$2=\"Western Isles Health Board\",Calculations!$E$2=\"Shetland Islands Local Authority\",Calculations!$E$2=\"Eilean Siar Local Authority\"),OR($F151=1,$F151=5)),0,hosp_count(VALUE(LEFT(Options!$B$14,2)),$C151,$E151,$F151,2016,$I151/10,1,$H151/10,$G151*$H151/10, RateRatios_airpollution!$D151, RateRatios_airpollution!$C151)*10))","v":9825.638670028},{"$f":"IF(AND(OR(Calculations!$E$2=\"Orkney Health Board\",Calculations!$E$2=\"Orkney Islands Local Authority\"),$F151=1),0,IF(AND(OR(Calculations!$E$2=\"Shetland Health Board\",Calculations!$E$2=\"Western Isles Health Board\",Calculations!$E$2=\"Shetland Islands Local Authority\",Calculations!$E$2=\"Eilean Siar Local Authority\"),OR($F151=1,$F151=5)),0,hosp_count(VALUE(LEFT(Options!$B$14,2)),$C151,$E151,$F151,2016,$I151/10+$J151/10,1,$H151/10,$G151*$H151/10, RateRatios_airpollution!$D151, RateRatios_airpollution!$C151)*10))","v":9825.4824716229996},{"$f":"IF(AND(OR(Calculations!$E$2=\"Orkney Health Board\",Calculations!$E$2=\"Orkney Islands Local Authority\"),$F151=1),0,IF(AND(OR(Calculations!$E$2=\"Shetland Health Board\",Calculations!$E$2=\"Western Isles Health Board\",Calculations!$E$2=\"Shetland Islands Local Authority\",Calculations!$E$2=\"Eilean Siar Local Authority\"),OR($F151=1,$F151=5)),0,prem_mort(VALUE(LEFT(Options!$B$14,2)),$C151,$E151,$F151,2016,$I151/10,1,$H151/10,$G151*$H151/10,RateRatios_airpollution!$C151)*10))","v":0},{"$f":"IF(AND(OR(Calculations!$E$2=\"Orkney Health Board\",Calculations!$E$2=\"Orkney Islands Local Authority\"),$F151=1),0,IF(AND(OR(Calculations!$E$2=\"Shetland Health Board\",Calculations!$E$2=\"Western Isles Health Board\",Calculations!$E$2=\"Shetland Islands Local Authority\",Calculations!$E$2=\"Eilean Siar Local Authority\"),OR($F151=1,$F151=5)),0,prem_mort(VALUE(LEFT(Options!$B$14,2)),$C151,$E151,$F151,2016,$I151/10+$J151/10,1,$H151/10,$G151*$H151/10,RateRatios_airpollution!$C151)*10))","v":0},null,{"$f":"IF(AND(OR(Calculations!$E$2=\"Orkney Health Board\",Calculations!$E$2=\"Orkney Islands Local Authority\"),$F151=1),0,IF(AND(OR(Calculations!$E$2=\"Shetland Health Board\",Calculations!$E$2=\"Western Isles Health Board\",Calculations!$E$2=\"Shetland Islands Local Authority\",Calculations!$E$2=\"Eilean Siar Local Authority\"),OR($F151=1,$F151=5)),0,new_ci(VALUE(LEFT(Options!$B$14,2)),$C151,$E151,$F151,2016,$I151/10,1,$H151/10,$G151*$H151/10,RateRatios_airpollution!$E151)*10))","v":610.077502708},{"$f":"IF(AND(OR(Calculations!$E$2=\"Orkney Health Board\",Calculations!$E$2=\"Orkney Islands Local Authority\"),$F151=1),0,IF(AND(OR(Calculations!$E$2=\"Shetland Health Board\",Calculations!$E$2=\"Western Isles Health Board\",Calculations!$E$2=\"Shetland Islands Local Authority\",Calculations!$E$2=\"Eilean Siar Local Authority\"),OR($F151=1,$F151=5)),0,new_ci(VALUE(LEFT(Options!$B$14,2)),$C151,$E151,$F151,2016,$I151/10+$J151/10,1,$H151/10,$G151*$H151/10,RateRatios_airpollution!$E151)*10))","v":610.07526697899993},{"$f":"IF(AND(OR(Calculations!$E$2=\"Orkney Health Board\",Calculations!$E$2=\"Orkney Islands Local Authority\"),$F151=1),0,IF(AND(OR(Calculations!$E$2=\"Shetland Health Board\",Calculations!$E$2=\"Western Isles Health Board\",Calculations!$E$2=\"Shetland Islands Local Authority\",Calculations!$E$2=\"Eilean Siar Local Authority\"),OR($F151=1,$F151=5)),0,new_yllv2(VALUE(LEFT(Options!$B$14,2)),$C151,$D151,$E151,$F151,2016,$I151/10,1,$H151/10,$G151*$H151/10,RateRatios_airpollution!$E151)*10))","v":6021.4680021149998},{"$f":"IF(AND(OR(Calculations!$E$2=\"Orkney Health Board\",Calculations!$E$2=\"Orkney Islands Local Authority\"),$F151=1),0,IF(AND(OR(Calculations!$E$2=\"Shetland Health Board\",Calculations!$E$2=\"Western Isles Health Board\",Calculations!$E$2=\"Shetland Islands Local Authority\",Calculations!$E$2=\"Eilean Siar Local Authority\"),OR($F151=1,$F151=5)),0,new_yllv2(VALUE(LEFT(Options!$B$14,2)),$C151,$D151,$E151,$F151,2016,$I151/10+$J151/10,1,$H151/10,$G151*$H151/10,RateRatios_airpollution!$E151)*10))","v":6021.4459354589999},{"$f":"IF(AND(OR(Calculations!$E$2=\"Orkney Health Board\",Calculations!$E$2=\"Orkney Islands Local Authority\"),$F151=1),0,IF(AND(OR(Calculations!$E$2=\"Shetland Health Board\",Calculations!$E$2=\"Western Isles Health Board\",Calculations!$E$2=\"Shetland Islands Local Authority\",Calculations!$E$2=\"Eilean Siar Local Authority\"),OR($F151=1,$F151=5)),0,hosp_count(VALUE(LEFT(Options!$B$14,2)),$C151,$E151,$F151,2016,$I151/10,1,$H151/10,$G151*$H151/10, RateRatios_airpollution!$F151, RateRatios_airpollution!$E151)*10))","v":9825.638670028},{"$f":"IF(AND(OR(Calculations!$E$2=\"Orkney Health Board\",Calculations!$E$2=\"Orkney Islands Local Authority\"),$F151=1),0,IF(AND(OR(Calculations!$E$2=\"Shetland Health Board\",Calculations!$E$2=\"Western Isles Health Board\",Calculations!$E$2=\"Shetland Islands Local Authority\",Calculations!$E$2=\"Eilean Siar Local Authority\"),OR($F151=1,$F151=5)),0,hosp_count(VALUE(LEFT(Options!$B$14,2)),$C151,$E151,$F151,2016,$I151/10+$J151/10,1,$H151/10,$G151*$H151/10, RateRatios_airpollution!$F151, RateRatios_airpollution!$E151)*10))","v":9825.638670028},{"$f":"IF(AND(OR(Calculations!$E$2=\"Orkney Health Board\",Calculations!$E$2=\"Orkney Islands Local Authority\"),$F151=1),0,IF(AND(OR(Calculations!$E$2=\"Shetland Health Board\",Calculations!$E$2=\"Western Isles Health Board\",Calculations!$E$2=\"Shetland Islands Local Authority\",Calculations!$E$2=\"Eilean Siar Local Authority\"),OR($F151=1,$F151=5)),0,prem_mort(VALUE(LEFT(Options!$B$14,2)),$C151,$E151,$F151,2016,$I151/10,1,$H151/10,$G151*$H151/10,RateRatios_airpollution!$E151)*10))","v":0},{"$f":"IF(AND(OR(Calculations!$E$2=\"Orkney Health Board\",Calculations!$E$2=\"Orkney Islands Local Authority\"),$F151=1),0,IF(AND(OR(Calculations!$E$2=\"Shetland Health Board\",Calculations!$E$2=\"Western Isles Health Board\",Calculations!$E$2=\"Shetland Islands Local Authority\",Calculations!$E$2=\"Eilean Siar Local Authority\"),OR($F151=1,$F151=5)),0,prem_mort(VALUE(LEFT(Options!$B$14,2)),$C151,$E151,$F151,2016,$I151/10+$J151/10,1,$H151/10,$G151*$H151/10,RateRatios_airpollution!$E151)*10))","v":0},610.077502708,609.95963556499999,6021.4680021149998,6020.3046528260011,9825.638670028,9823.676673693999,0,0,2769.5546700018158,2769.0195912702015,27335.51844068912,27330.237210940628,44605.223670001818,44596.316840811691,0,0,11078218.680007264,11076078.365080805,109342073.76275648,109320948.84376252,178420894.68000728,178385267.36324677,0,0,4000]
[null,"Female 80-84",81.856712000000002,89.736710000000002,"female",3,1,{"$f":"HLOOKUP(Calculations!$E$2,'Population 2016'!$C$3:$BC$249,'Population 2016'!BD152,FALSE)","v":16697},0,{"$f":"HLOOKUP(Calculations!$E$2,Pop2016_in_settlements!$C$3:$BC$249,Pop2016_in_settlements!$BD152,FALSE)","v":7924},{"$f":"IF(AND(OR(Calculations!$E$2=\"Orkney Health Board\",Calculations!$E$2=\"Orkney Islands Local Authority\"),$F152=1),0,IF(AND(OR(Calculations!$E$2=\"Shetland Health Board\",Calculations!$E$2=\"Western Isles Health Board\",Calculations!$E$2=\"Shetland Islands Local Authority\",Calculations!$E$2=\"Eilean Siar Local Authority\"),OR($F152=1,$F152=5)),0,new_ci(VALUE(LEFT(Options!$B$14,2)),$C152,$E152,$F152,2016,$I152/10,1,$H152/10,$G152*$H152/10,RateRatios_accidents!$B$5)*10))","v":697.29242169200006},{"$f":"IF(AND(OR(Calculations!$E$2=\"Orkney Health Board\",Calculations!$E$2=\"Orkney Islands Local Authority\"),$F152=1),0,IF(AND(OR(Calculations!$E$2=\"Shetland Health Board\",Calculations!$E$2=\"Western Isles Health Board\",Calculations!$E$2=\"Shetland Islands Local Authority\",Calculations!$E$2=\"Eilean Siar Local Authority\"),OR($F152=1,$F152=5)),0,new_ci(VALUE(LEFT(Options!$B$14,2)),$C152,$E152,$F152,2016,$I152/10+$J152/10,1,$H152/10,$G152*$H152/10,RateRatios_accidents!$B$5)*10))","v":697.16285636799989},{"$f":"IF(AND(OR(Calculations!$E$2=\"Orkney Health Board\",Calculations!$E$2=\"Orkney Islands Local Authority\"),$F152=1),0,IF(AND(OR(Calculations!$E$2=\"Shetland Health Board\",Calculations!$E$2=\"Western Isles Health Board\",Calculations!$E$2=\"Shetland Islands Local Authority\",Calculations!$E$2=\"Eilean Siar Local Authority\"),OR($F152=1,$F152=5)),0,new_yllv2(VALUE(LEFT(Options!$B$14,2)),$C152,$D152,$E152,$F152,2016,$I152/10,1,$H152/10,$G152*$H152/10,RateRatios_accidents!$B$5)*10))","v":4797.3704666560006},{"$f":"IF(AND(OR(Calculations!$E$2=\"Orkney Health Board\",Calculations!$E$2=\"Orkney Islands Local Authority\"),$F152=1),0,IF(AND(OR(Calculations!$E$2=\"Shetland Health Board\",Calculations!$E$2=\"Western Isles Health Board\",Calculations!$E$2=\"Shetland Islands Local Authority\",Calculations!$E$2=\"Eilean Siar Local Authority\"),OR($F152=1,$F152=5)),0,new_yllv2(VALUE(LEFT(Options!$B$14,2)),$C152,$D152,$E152,$F152,2016,$I152/10+$J152/10,1,$H152/10,$G152*$H152/10,RateRatios_accidents!$B$5)*10))","v":4796.4790574859999},{"$f":"IF(AND(OR(Calculations!$E$2=\"Orkney Health Board\",Calculations!$E$2=\"Orkney Islands Local Authority\"),$F152=1),0,IF(AND(OR(Calculations!$E$2=\"Shetland Health Board\",Calculations!$E$2=\"Western Isles Health Board\",Calculations!$E$2=\"Shetland Islands Local Authority\",Calculations!$E$2=\"Eilean Siar Local Authority\"),OR($F152=1,$F152=5)),0,hosp_count(VALUE(LEFT(Options!$B$14,2)),$C152,$E152,$F152,2016,$I152/10,1,$H152/10,$G152*$H152/10, RateRatios_accidents!$B$4, RateRatios_accidents!$B$5)*10))","v":8427.6017503120001},{"$f":"IF(AND(OR(Calculations!$E$2=\"Orkney Health Board\",Calculations!$E$2=\"Orkney Islands Local Authority\"),$F152=1),0,IF(AND(OR(Calculations!$E$2=\"Shetland Health Board\",Calculations!$E$2=\"Western Isles Health Board\",Calculations!$E$2=\"Shetland Islands Local Authority\",Calculations!$E$2=\"Eilean Siar Local Authority\"),OR($F152=1,$F152=5)),0,hosp_count(VALUE(LEFT(Options!$B$14,2)),$C152,$E152,$F152,2016,$I152/10+$J152/10,1,$H152/10,$G152*$H152/10, RateRatios_accidents!$B$4, RateRatios_accidents!$B$5)*10))","v":8426.001934332},{"$f":"IF(AND(OR(Calculations!$E$2=\"Orkney Health Board\",Calculations!$E$2=\"Orkney Islands Local Authority\"),$F152=1),0,IF(AND(OR(Calculations!$E$2=\"Shetland Health Board\",Calculations!$E$2=\"Western Isles Health Board\",Calculations!$E$2=\"Shetland Islands Local Authority\",Calculations!$E$2=\"Eilean Siar Local Authority\"),OR($F152=1,$F152=5)),0,prem_mort(VALUE(LEFT(Options!$B$14,2)),$C152,$E152,$F152,2016,$I152/10,1,$H152/10,$G152*$H152/10,RateRatios_accidents!$B$5)*10))","v":0},{"$f":"IF(AND(OR(Calculations!$E$2=\"Orkney Health Board\",Calculations!$E$2=\"Orkney Islands Local Authority\"),$F152=1),0,IF(AND(OR(Calculations!$E$2=\"Shetland Health Board\",Calculations!$E$2=\"Western Isles Health Board\",Calculations!$E$2=\"Shetland Islands Local Authority\",Calculations!$E$2=\"Eilean Siar Local Authority\"),OR($F152=1,$F152=5)),0,prem_mort(VALUE(LEFT(Options!$B$14,2)),$C152,$E152,$F152,2016,$I152/10+$J152/10,1,$H152/10,$G152*$H152/10,RateRatios_accidents!$B$5)*10))","v":0},null,{"$f":"IF(AND(OR(Calculations!$E$2=\"Orkney Health Board\",Calculations!$E$2=\"Orkney Islands Local Authority\"),$F152=1),0,IF(AND(OR(Calculations!$E$2=\"Shetland Health Board\",Calculations!$E$2=\"Western Isles Health Board\",Calculations!$E$2=\"Shetland Islands Local Authority\",Calculations!$E$2=\"Eilean Siar Local Authority\"),OR($F152=1,$F152=5)),0,new_ci(VALUE(LEFT(Options!$B$14,2)),$C152,$E152,$F152,2016,$I152/10,1,$H152/10,$G152*$H152/10,RateRatios_airpollution!$C152)*10))","v":697.29242169200006},{"$f":"IF(AND(OR(Calculations!$E$2=\"Orkney Health Board\",Calculations!$E$2=\"Orkney Islands Local Authority\"),$F152=1),0,IF(AND(OR(Calculations!$E$2=\"Shetland Health Board\",Calculations!$E$2=\"Western Isles Health Board\",Calculations!$E$2=\"Shetland Islands Local Authority\",Calculations!$E$2=\"Eilean Siar Local Authority\"),OR($F152=1,$F152=5)),0,new_ci(VALUE(LEFT(Options!$B$14,2)),$C152,$E152,$F152,2016,$I152/10+$J152/10,1,$H152/10,$G152*$H152/10,RateRatios_airpollution!$C152)*10))","v":697.286249688},{"$f":"IF(AND(OR(Calculations!$E$2=\"Orkney Health Board\",Calculations!$E$2=\"Orkney Islands Local Authority\"),$F152=1),0,IF(AND(OR(Calculations!$E$2=\"Shetland Health Board\",Calculations!$E$2=\"Western Isles Health Board\",Calculations!$E$2=\"Shetland Islands Local Authority\",Calculations!$E$2=\"Eilean Siar Local Authority\"),OR($F152=1,$F152=5)),0,new_yllv2(VALUE(LEFT(Options!$B$14,2)),$C152,$D152,$E152,$F152,2016,$I152/10,1,$H152/10,$G152*$H152/10,RateRatios_airpollution!$C152)*10))","v":4797.3704666560006},{"$f":"IF(AND(OR(Calculations!$E$2=\"Orkney Health Board\",Calculations!$E$2=\"Orkney Islands Local Authority\"),$F152=1),0,IF(AND(OR(Calculations!$E$2=\"Shetland Health Board\",Calculations!$E$2=\"Western Isles Health Board\",Calculations!$E$2=\"Shetland Islands Local Authority\",Calculations!$E$2=\"Eilean Siar Local Authority\"),OR($F152=1,$F152=5)),0,new_yllv2(VALUE(LEFT(Options!$B$14,2)),$C152,$D152,$E152,$F152,2016,$I152/10+$J152/10,1,$H152/10,$G152*$H152/10,RateRatios_airpollution!$C152)*10))","v":4797.3280032809998},{"$f":"IF(AND(OR(Calculations!$E$2=\"Orkney Health Board\",Calculations!$E$2=\"Orkney Islands Local Authority\"),$F152=1),0,IF(AND(OR(Calculations!$E$2=\"Shetland Health Board\",Calculations!$E$2=\"Western Isles Health Board\",Calculations!$E$2=\"Shetland Islands Local Authority\",Calculations!$E$2=\"Eilean Siar Local Authority\"),OR($F152=1,$F152=5)),0,hosp_count(VALUE(LEFT(Options!$B$14,2)),$C152,$E152,$F152,2016,$I152/10,1,$H152/10,$G152*$H152/10, RateRatios_airpollution!$D152, RateRatios_airpollution!$C152)*10))","v":8427.6017503120001},{"$f":"IF(AND(OR(Calculations!$E$2=\"Orkney Health Board\",Calculations!$E$2=\"Orkney Islands Local Authority\"),$F152=1),0,IF(AND(OR(Calculations!$E$2=\"Shetland Health Board\",Calculations!$E$2=\"Western Isles Health Board\",Calculations!$E$2=\"Shetland Islands Local Authority\",Calculations!$E$2=\"Eilean Siar Local Authority\"),OR($F152=1,$F152=5)),0,hosp_count(VALUE(LEFT(Options!$B$14,2)),$C152,$E152,$F152,2016,$I152/10+$J152/10,1,$H152/10,$G152*$H152/10, RateRatios_airpollution!$D152, RateRatios_airpollution!$C152)*10))","v":8427.4581785249993},{"$f":"IF(AND(OR(Calculations!$E$2=\"Orkney Health Board\",Calculations!$E$2=\"Orkney Islands Local Authority\"),$F152=1),0,IF(AND(OR(Calculations!$E$2=\"Shetland Health Board\",Calculations!$E$2=\"Western Isles Health Board\",Calculations!$E$2=\"Shetland Islands Local Authority\",Calculations!$E$2=\"Eilean Siar Local Authority\"),OR($F152=1,$F152=5)),0,prem_mort(VALUE(LEFT(Options!$B$14,2)),$C152,$E152,$F152,2016,$I152/10,1,$H152/10,$G152*$H152/10,RateRatios_airpollution!$C152)*10))","v":0},{"$f":"IF(AND(OR(Calculations!$E$2=\"Orkney Health Board\",Calculations!$E$2=\"Orkney Islands Local Authority\"),$F152=1),0,IF(AND(OR(Calculations!$E$2=\"Shetland Health Board\",Calculations!$E$2=\"Western Isles Health Board\",Calculations!$E$2=\"Shetland Islands Local Authority\",Calculations!$E$2=\"Eilean Siar Local Authority\"),OR($F152=1,$F152=5)),0,prem_mort(VALUE(LEFT(Options!$B$14,2)),$C152,$E152,$F152,2016,$I152/10+$J152/10,1,$H152/10,$G152*$H152/10,RateRatios_airpollution!$C152)*10))","v":0},null,{"$f":"IF(AND(OR(Calculations!$E$2=\"Orkney Health Board\",Calculations!$E$2=\"Orkney Islands Local Authority\"),$F152=1),0,IF(AND(OR(Calculations!$E$2=\"Shetland Health Board\",Calculations!$E$2=\"Western Isles Health Board\",Calculations!$E$2=\"Shetland Islands Local Authority\",Calculations!$E$2=\"Eilean Siar Local Authority\"),OR($F152=1,$F152=5)),0,new_ci(VALUE(LEFT(Options!$B$14,2)),$C152,$E152,$F152,2016,$I152/10,1,$H152/10,$G152*$H152/10,RateRatios_airpollution!$E152)*10))","v":697.29242169200006},{"$f":"IF(AND(OR(Calculations!$E$2=\"Orkney Health Board\",Calculations!$E$2=\"Orkney Islands Local Authority\"),$F152=1),0,IF(AND(OR(Calculations!$E$2=\"Shetland Health Board\",Calculations!$E$2=\"Western Isles Health Board\",Calculations!$E$2=\"Shetland Islands Local Authority\",Calculations!$E$2=\"Eilean Siar Local Authority\"),OR($F152=1,$F152=5)),0,new_ci(VALUE(LEFT(Options!$B$14,2)),$C152,$E152,$F152,2016,$I152/10+$J152/10,1,$H152/10,$G152*$H152/10,RateRatios_airpollution!$E152)*10))","v":697.28968949700004},{"$f":"IF(AND(OR(Calculations!$E$2=\"Orkney Health Board\",Calculations!$E$2=\"Orkney Islands Local Authority\"),$F152=1),0,IF(AND(OR(Calculations!$E$2=\"Shetland Health Board\",Calculations!$E$2=\"Western Isles Health Board\",Calculations!$E$2=\"Shetland Islands Local Authority\",Calculations!$E$2=\"Eilean Siar Local Authority\"),OR($F152=1,$F152=5)),0,new_yllv2(VALUE(LEFT(Options!$B$14,2)),$C152,$D152,$E152,$F152,2016,$I152/10,1,$H152/10,$G152*$H152/10,RateRatios_airpollution!$E152)*10))","v":4797.3704666560006},{"$f":"IF(AND(OR(Calculations!$E$2=\"Orkney Health Board\",Calculations!$E$2=\"Orkney Islands Local Authority\"),$F152=1),0,IF(AND(OR(Calculations!$E$2=\"Shetland Health Board\",Calculations!$E$2=\"Western Isles Health Board\",Calculations!$E$2=\"Shetland Islands Local Authority\",Calculations!$E$2=\"Eilean Siar Local Authority\"),OR($F152=1,$F152=5)),0,new_yllv2(VALUE(LEFT(Options!$B$14,2)),$C152,$D152,$E152,$F152,2016,$I152/10+$J152/10,1,$H152/10,$G152*$H152/10,RateRatios_airpollution!$E152)*10))","v":4797.3516691599998},{"$f":"IF(AND(OR(Calculations!$E$2=\"Orkney Health Board\",Calculations!$E$2=\"Orkney Islands Local Authority\"),$F152=1),0,IF(AND(OR(Calculations!$E$2=\"Shetland Health Board\",Calculations!$E$2=\"Western Isles Health Board\",Calculations!$E$2=\"Shetland Islands Local Authority\",Calculations!$E$2=\"Eilean Siar Local Authority\"),OR($F152=1,$F152=5)),0,hosp_count(VALUE(LEFT(Options!$B$14,2)),$C152,$E152,$F152,2016,$I152/10,1,$H152/10,$G152*$H152/10, RateRatios_airpollution!$F152, RateRatios_airpollution!$E152)*10))","v":8427.6017503120001},{"$f":"IF(AND(OR(Calculations!$E$2=\"Orkney Health Board\",Calculations!$E$2=\"Orkney Islands Local Authority\"),$F152=1),0,IF(AND(OR(Calculations!$E$2=\"Shetland Health Board\",Calculations!$E$2=\"Western Isles Health Board\",Calculations!$E$2=\"Shetland Islands Local Authority\",Calculations!$E$2=\"Eilean Siar Local Authority\"),OR($F152=1,$F152=5)),0,hosp_count(VALUE(LEFT(Options!$B$14,2)),$C152,$E152,$F152,2016,$I152/10+$J152/10,1,$H152/10,$G152*$H152/10, RateRatios_airpollution!$F152, RateRatios_airpollution!$E152)*10))","v":8427.6017503120001},{"$f":"IF(AND(OR(Calculations!$E$2=\"Orkney Health Board\",Calculations!$E$2=\"Orkney Islands Local Authority\"),$F152=1),0,IF(AND(OR(Calculations!$E$2=\"Shetland Health Board\",Calculations!$E$2=\"Western Isles Health Board\",Calculations!$E$2=\"Shetland Islands Local Authority\",Calculations!$E$2=\"Eilean Siar Local Authority\"),OR($F152=1,$F152=5)),0,prem_mort(VALUE(LEFT(Options!$B$14,2)),$C152,$E152,$F152,2016,$I152/10,1,$H152/10,$G152*$H152/10,RateRatios_airpollution!$E152)*10))","v":0},{"$f":"IF(AND(OR(Calculations!$E$2=\"Orkney Health Board\",Calculations!$E$2=\"Orkney Islands Local Authority\"),$F152=1),0,IF(AND(OR(Calculations!$E$2=\"Shetland Health Board\",Calculations!$E$2=\"Western Isles Health Board\",Calculations!$E$2=\"Shetland Islands Local Authority\",Calculations!$E$2=\"Eilean Siar Local Authority\"),OR($F152=1,$F152=5)),0,prem_mort(VALUE(LEFT(Options!$B$14,2)),$C152,$E152,$F152,2016,$I152/10+$J152/10,1,$H152/10,$G152*$H152/10,RateRatios_airpollution!$E152)*10))","v":0},697.29242169200006,697.15395216899981,4797.3704666560006,4796.4177966149982,8427.6017503120001,8425.8583625449992,0,0,4176.153929999401,4175.3246222015914,28731.930686087326,28726.225050098808,50473.748280002401,50463.306956608969,0,0,10440384.824998502,10438311.555503979,71829826.71521832,71815562.625247017,126184370.70000601,126158267.39152242,0,0,2500]
[null,"Female 85-89",86.730819999999994,92.220819999999989,"female",3,1,{"$f":"HLOOKUP(Calculations!$E$2,'Population 2016'!$C$3:$BC$249,'Population 2016'!BD153,FALSE)","v":10459},0,{"$f":"HLOOKUP(Calculations!$E$2,Pop2016_in_settlements!$C$3:$BC$249,Pop2016_in_settlements!$BD153,FALSE)","v":4791},{"$f":"IF(AND(OR(Calculations!$E$2=\"Orkney Health Board\",Calculations!$E$2=\"Orkney Islands Local Authority\"),$F153=1),0,IF(AND(OR(Calculations!$E$2=\"Shetland Health Board\",Calculations!$E$2=\"Western Isles Health Board\",Calculations!$E$2=\"Shetland Islands Local Authority\",Calculations!$E$2=\"Eilean Siar Local Authority\"),OR($F153=1,$F153=5)),0,new_ci(VALUE(LEFT(Options!$B$14,2)),$C153,$E153,$F153,2016,$I153/10,1,$H153/10,$G153*$H153/10,RateRatios_accidents!$B$5)*10))","v":654.023621929},{"$f":"IF(AND(OR(Calculations!$E$2=\"Orkney Health Board\",Calculations!$E$2=\"Orkney Islands Local Authority\"),$F153=1),0,IF(AND(OR(Calculations!$E$2=\"Shetland Health Board\",Calculations!$E$2=\"Western Isles Health Board\",Calculations!$E$2=\"Shetland Islands Local Authority\",Calculations!$E$2=\"Eilean Siar Local Authority\"),OR($F153=1,$F153=5)),0,new_ci(VALUE(LEFT(Options!$B$14,2)),$C153,$E153,$F153,2016,$I153/10+$J153/10,1,$H153/10,$G153*$H153/10,RateRatios_accidents!$B$5)*10))","v":653.90761121799994},{"$f":"IF(AND(OR(Calculations!$E$2=\"Orkney Health Board\",Calculations!$E$2=\"Orkney Islands Local Authority\"),$F153=1),0,IF(AND(OR(Calculations!$E$2=\"Shetland Health Board\",Calculations!$E$2=\"Western Isles Health Board\",Calculations!$E$2=\"Shetland Islands Local Authority\",Calculations!$E$2=\"Eilean Siar Local Authority\"),OR($F153=1,$F153=5)),0,new_yllv2(VALUE(LEFT(Options!$B$14,2)),$C153,$D153,$E153,$F153,2016,$I153/10,1,$H153/10,$G153*$H153/10,RateRatios_accidents!$B$5)*10))","v":2936.566062461},{"$f":"IF(AND(OR(Calculations!$E$2=\"Orkney Health Board\",Calculations!$E$2=\"Orkney Islands Local Authority\"),$F153=1),0,IF(AND(OR(Calculations!$E$2=\"Shetland Health Board\",Calculations!$E$2=\"Western Isles Health Board\",Calculations!$E$2=\"Shetland Islands Local Authority\",Calculations!$E$2=\"Eilean Siar Local Authority\"),OR($F153=1,$F153=5)),0,new_yllv2(VALUE(LEFT(Options!$B$14,2)),$C153,$D153,$E153,$F153,2016,$I153/10+$J153/10,1,$H153/10,$G153*$H153/10,RateRatios_accidents!$B$5)*10))","v":2936.0451743690001},{"$f":"IF(AND(OR(Calculations!$E$2=\"Orkney Health Board\",Calculations!$E$2=\"Orkney Islands Local Authority\"),$F153=1),0,IF(AND(OR(Calculations!$E$2=\"Shetland Health Board\",Calculations!$E$2=\"Western Isles Health Board\",Calculations!$E$2=\"Shetland Islands Local Authority\",Calculations!$E$2=\"Eilean Siar Local Authority\"),OR($F153=1,$F153=5)),0,hosp_count(VALUE(LEFT(Options!$B$14,2)),$C153,$E153,$F153,2016,$I153/10,1,$H153/10,$G153*$H153/10, RateRatios_accidents!$B$4, RateRatios_accidents!$B$5)*10))","v":5967.617878952},{"$f":"IF(AND(OR(Calculations!$E$2=\"Orkney Health Board\",Calculations!$E$2=\"Orkney Islands Local Authority\"),$F153=1),0,IF(AND(OR(Calculations!$E$2=\"Shetland Health Board\",Calculations!$E$2=\"Western Isles Health Board\",Calculations!$E$2=\"Shetland Islands Local Authority\",Calculations!$E$2=\"Eilean Siar Local Authority\"),OR($F153=1,$F153=5)),0,hosp_count(VALUE(LEFT(Options!$B$14,2)),$C153,$E153,$F153,2016,$I153/10+$J153/10,1,$H153/10,$G153*$H153/10, RateRatios_accidents!$B$4, RateRatios_accidents!$B$5)*10))","v":5966.5244338130005},{"$f":"IF(AND(OR(Calculations!$E$2=\"Orkney Health Board\",Calculations!$E$2=\"Orkney Islands Local Authority\"),$F153=1),0,IF(AND(OR(Calculations!$E$2=\"Shetland Health Board\",Calculations!$E$2=\"Western Isles Health Board\",Calculations!$E$2=\"Shetland Islands Local Authority\",Calculations!$E$2=\"Eilean Siar Local Authority\"),OR($F153=1,$F153=5)),0,prem_mort(VALUE(LEFT(Options!$B$14,2)),$C153,$E153,$F153,2016,$I153/10,1,$H153/10,$G153*$H153/10,RateRatios_accidents!$B$5)*10))","v":0},{"$f":"IF(AND(OR(Calculations!$E$2=\"Orkney Health Board\",Calculations!$E$2=\"Orkney Islands Local Authority\"),$F153=1),0,IF(AND(OR(Calculations!$E$2=\"Shetland Health Board\",Calculations!$E$2=\"Western Isles Health Board\",Calculations!$E$2=\"Shetland Islands Local Authority\",Calculations!$E$2=\"Eilean Siar Local Authority\"),OR($F153=1,$F153=5)),0,prem_mort(VALUE(LEFT(Options!$B$14,2)),$C153,$E153,$F153,2016,$I153/10+$J153/10,1,$H153/10,$G153*$H153/10,RateRatios_accidents!$B$5)*10))","v":0},null,{"$f":"IF(AND(OR(Calculations!$E$2=\"Orkney Health Board\",Calculations!$E$2=\"Orkney Islands Local Authority\"),$F153=1),0,IF(AND(OR(Calculations!$E$2=\"Shetland Health Board\",Calculations!$E$2=\"Western Isles Health Board\",Calculations!$E$2=\"Shetland Islands Local Authority\",Calculations!$E$2=\"Eilean Siar Local Authority\"),OR($F153=1,$F153=5)),0,new_ci(VALUE(LEFT(Options!$B$14,2)),$C153,$E153,$F153,2016,$I153/10,1,$H153/10,$G153*$H153/10,RateRatios_airpollution!$C153)*10))","v":654.023621929},{"$f":"IF(AND(OR(Calculations!$E$2=\"Orkney Health Board\",Calculations!$E$2=\"Orkney Islands Local Authority\"),$F153=1),0,IF(AND(OR(Calculations!$E$2=\"Shetland Health Board\",Calculations!$E$2=\"Western Isles Health Board\",Calculations!$E$2=\"Shetland Islands Local Authority\",Calculations!$E$2=\"Eilean Siar Local Authority\"),OR($F153=1,$F153=5)),0,new_ci(VALUE(LEFT(Options!$B$14,2)),$C153,$E153,$F153,2016,$I153/10+$J153/10,1,$H153/10,$G153*$H153/10,RateRatios_airpollution!$C153)*10))","v":654.01806628500003},{"$f":"IF(AND(OR(Calculations!$E$2=\"Orkney Health Board\",Calculations!$E$2=\"Orkney Islands Local Authority\"),$F153=1),0,IF(AND(OR(Calculations!$E$2=\"Shetland Health Board\",Calculations!$E$2=\"Western Isles Health Board\",Calculations!$E$2=\"Shetland Islands Local Authority\",Calculations!$E$2=\"Eilean Siar Local Authority\"),OR($F153=1,$F153=5)),0,new_yllv2(VALUE(LEFT(Options!$B$14,2)),$C153,$D153,$E153,$F153,2016,$I153/10,1,$H153/10,$G153*$H153/10,RateRatios_airpollution!$C153)*10))","v":2936.566062461},{"$f":"IF(AND(OR(Calculations!$E$2=\"Orkney Health Board\",Calculations!$E$2=\"Orkney Islands Local Authority\"),$F153=1),0,IF(AND(OR(Calculations!$E$2=\"Shetland Health Board\",Calculations!$E$2=\"Western Isles Health Board\",Calculations!$E$2=\"Shetland Islands Local Authority\",Calculations!$E$2=\"Eilean Siar Local Authority\"),OR($F153=1,$F153=5)),0,new_yllv2(VALUE(LEFT(Options!$B$14,2)),$C153,$D153,$E153,$F153,2016,$I153/10+$J153/10,1,$H153/10,$G153*$H153/10,RateRatios_airpollution!$C153)*10))","v":2936.54111762},{"$f":"IF(AND(OR(Calculations!$E$2=\"Orkney Health Board\",Calculations!$E$2=\"Orkney Islands Local Authority\"),$F153=1),0,IF(AND(OR(Calculations!$E$2=\"Shetland Health Board\",Calculations!$E$2=\"Western Isles Health Board\",Calculations!$E$2=\"Shetland Islands Local Authority\",Calculations!$E$2=\"Eilean Siar Local Authority\"),OR($F153=1,$F153=5)),0,hosp_count(VALUE(LEFT(Options!$B$14,2)),$C153,$E153,$F153,2016,$I153/10,1,$H153/10,$G153*$H153/10, RateRatios_airpollution!$D153, RateRatios_airpollution!$C153)*10))","v":5967.617878952},{"$f":"IF(AND(OR(Calculations!$E$2=\"Orkney Health Board\",Calculations!$E$2=\"Orkney Islands Local Authority\"),$F153=1),0,IF(AND(OR(Calculations!$E$2=\"Shetland Health Board\",Calculations!$E$2=\"Western Isles Health Board\",Calculations!$E$2=\"Shetland Islands Local Authority\",Calculations!$E$2=\"Eilean Siar Local Authority\"),OR($F153=1,$F153=5)),0,hosp_count(VALUE(LEFT(Options!$B$14,2)),$C153,$E153,$F153,2016,$I153/10+$J153/10,1,$H153/10,$G153*$H153/10, RateRatios_airpollution!$D153, RateRatios_airpollution!$C153)*10))","v":5967.5192284300001},{"$f":"IF(AND(OR(Calculations!$E$2=\"Orkney Health Board\",Calculations!$E$2=\"Orkney Islands Local Authority\"),$F153=1),0,IF(AND(OR(Calculations!$E$2=\"Shetland Health Board\",Calculations!$E$2=\"Western Isles Health Board\",Calculations!$E$2=\"Shetland Islands Local Authority\",Calculations!$E$2=\"Eilean Siar Local Authority\"),OR($F153=1,$F153=5)),0,prem_mort(VALUE(LEFT(Options!$B$14,2)),$C153,$E153,$F153,2016,$I153/10,1,$H153/10,$G153*$H153/10,RateRatios_airpollution!$C153)*10))","v":0},{"$f":"IF(AND(OR(Calculations!$E$2=\"Orkney Health Board\",Calculations!$E$2=\"Orkney Islands Local Authority\"),$F153=1),0,IF(AND(OR(Calculations!$E$2=\"Shetland Health Board\",Calculations!$E$2=\"Western Isles Health Board\",Calculations!$E$2=\"Shetland Islands Local Authority\",Calculations!$E$2=\"Eilean Siar Local Authority\"),OR($F153=1,$F153=5)),0,prem_mort(VALUE(LEFT(Options!$B$14,2)),$C153,$E153,$F153,2016,$I153/10+$J153/10,1,$H153/10,$G153*$H153/10,RateRatios_airpollution!$C153)*10))","v":0},null,{"$f":"IF(AND(OR(Calculations!$E$2=\"Orkney Health Board\",Calculations!$E$2=\"Orkney Islands Local Authority\"),$F153=1),0,IF(AND(OR(Calculations!$E$2=\"Shetland Health Board\",Calculations!$E$2=\"Western Isles Health Board\",Calculations!$E$2=\"Shetland Islands Local Authority\",Calculations!$E$2=\"Eilean Siar Local Authority\"),OR($F153=1,$F153=5)),0,new_ci(VALUE(LEFT(Options!$B$14,2)),$C153,$E153,$F153,2016,$I153/10,1,$H153/10,$G153*$H153/10,RateRatios_airpollution!$E153)*10))","v":654.023621929},{"$f":"IF(AND(OR(Calculations!$E$2=\"Orkney Health Board\",Calculations!$E$2=\"Orkney Islands Local Authority\"),$F153=1),0,IF(AND(OR(Calculations!$E$2=\"Shetland Health Board\",Calculations!$E$2=\"Western Isles Health Board\",Calculations!$E$2=\"Shetland Islands Local Authority\",Calculations!$E$2=\"Eilean Siar Local Authority\"),OR($F153=1,$F153=5)),0,new_ci(VALUE(LEFT(Options!$B$14,2)),$C153,$E153,$F153,2016,$I153/10+$J153/10,1,$H153/10,$G153*$H153/10,RateRatios_airpollution!$E153)*10))","v":654.02117851900005},{"$f":"IF(AND(OR(Calculations!$E$2=\"Orkney Health Board\",Calculations!$E$2=\"Orkney Islands Local Authority\"),$F153=1),0,IF(AND(OR(Calculations!$E$2=\"Shetland Health Board\",Calculations!$E$2=\"Western Isles Health Board\",Calculations!$E$2=\"Shetland Islands Local Authority\",Calculations!$E$2=\"Eilean Siar Local Authority\"),OR($F153=1,$F153=5)),0,new_yllv2(VALUE(LEFT(Options!$B$14,2)),$C153,$D153,$E153,$F153,2016,$I153/10,1,$H153/10,$G153*$H153/10,RateRatios_airpollution!$E153)*10))","v":2936.566062461},{"$f":"IF(AND(OR(Calculations!$E$2=\"Orkney Health Board\",Calculations!$E$2=\"Orkney Islands Local Authority\"),$F153=1),0,IF(AND(OR(Calculations!$E$2=\"Shetland Health Board\",Calculations!$E$2=\"Western Isles Health Board\",Calculations!$E$2=\"Shetland Islands Local Authority\",Calculations!$E$2=\"Eilean Siar Local Authority\"),OR($F153=1,$F153=5)),0,new_yllv2(VALUE(LEFT(Options!$B$14,2)),$C153,$D153,$E153,$F153,2016,$I153/10+$J153/10,1,$H153/10,$G153*$H153/10,RateRatios_airpollution!$E153)*10))","v":2936.5550915499998},{"$f":"IF(AND(OR(Calculations!$E$2=\"Orkney Health Board\",Calculations!$E$2=\"Orkney Islands Local Authority\"),$F153=1),0,IF(AND(OR(Calculations!$E$2=\"Shetland Health Board\",Calculations!$E$2=\"Western Isles Health Board\",Calculations!$E$2=\"Shetland Islands Local Authority\",Calculations!$E$2=\"Eilean Siar Local Authority\"),OR($F153=1,$F153=5)),0,hosp_count(VALUE(LEFT(Options!$B$14,2)),$C153,$E153,$F153,2016,$I153/10,1,$H153/10,$G153*$H153/10, RateRatios_airpollution!$F153, RateRatios_airpollution!$E153)*10))","v":5967.617878952},{"$f":"IF(AND(OR(Calculations!$E$2=\"Orkney Health Board\",Calculations!$E$2=\"Orkney Islands Local Authority\"),$F153=1),0,IF(AND(OR(Calculations!$E$2=\"Shetland Health Board\",Calculations!$E$2=\"Western Isles Health Board\",Calculations!$E$2=\"Shetland Islands Local Authority\",Calculations!$E$2=\"Eilean Siar Local Authority\"),OR($F153=1,$F153=5)),0,hosp_count(VALUE(LEFT(Options!$B$14,2)),$C153,$E153,$F153,2016,$I153/10+$J153/10,1,$H153/10,$G153*$H153/10, RateRatios_airpollution!$F153, RateRatios_airpollution!$E153)*10))","v":5967.617878952},{"$f":"IF(AND(OR(Calculations!$E$2=\"Orkney Health Board\",Calculations!$E$2=\"Orkney Islands Local Authority\"),$F153=1),0,IF(AND(OR(Calculations!$E$2=\"Shetland Health Board\",Calculations!$E$2=\"Western Isles Health Board\",Calculations!$E$2=\"Shetland Islands Local Authority\",Calculations!$E$2=\"Eilean Siar Local Authority\"),OR($F153=1,$F153=5)),0,prem_mort(VALUE(LEFT(Options!$B$14,2)),$C153,$E153,$F153,2016,$I153/10,1,$H153/10,$G153*$H153/10,RateRatios_airpollution!$E153)*10))","v":0},{"$f":"IF(AND(OR(Calculations!$E$2=\"Orkney Health Board\",Calculations!$E$2=\"Orkney Islands Local Authority\"),$F153=1),0,IF(AND(OR(Calculations!$E$2=\"Shetland Health Board\",Calculations!$E$2=\"Western Isles Health Board\",Calculations!$E$2=\"Shetland Islands Local Authority\",Calculations!$E$2=\"Eilean Siar Local Authority\"),OR($F153=1,$F153=5)),0,prem_mort(VALUE(LEFT(Options!$B$14,2)),$C153,$E153,$F153,2016,$I153/10+$J153/10,1,$H153/10,$G153*$H153/10,RateRatios_airpollution!$E153)*10))","v":0},654.023621929,653.89961216400002,2936.566062461,2936.0092586169999,5967.617878952,5966.4257832910007,0,0,6253.2137100009559,6252.0280348408078,28076.929557902287,28071.605876441343,57057.250969997134,57045.853172301366,0,0,9379820.5650014337,9378042.052261211,42115394.33685343,42107408.814662017,85585876.454995707,85568779.758452043,0,0,1500]
[null,"Female 90+",92.779342999999997,96.279340000000005,"female",3,1,{"$f":"HLOOKUP(Calculations!$E$2,'Population 2016'!$C$3:$BC$249,'Population 2016'!BD154,FALSE)","v":6278},0,{"$f":"HLOOKUP(Calculations!$E$2,Pop2016_in_settlements!$C$3:$BC$249,Pop2016_in_settlements!$BD154,FALSE)","v":2836},{"$f":"IF(AND(OR(Calculations!$E$2=\"Orkney Health Board\",Calculations!$E$2=\"Orkney Islands Local Authority\"),$F154=1),0,IF(AND(OR(Calculations!$E$2=\"Shetland Health Board\",Calculations!$E$2=\"Western Isles Health Board\",Calculations!$E$2=\"Shetland Islands Local Authority\",Calculations!$E$2=\"Eilean Siar Local Authority\"),OR($F154=1,$F154=5)),0,new_ci(VALUE(LEFT(Options!$B$14,2)),$C154,$E154,$F154,2016,$I154/10,1,$H154/10,$G154*$H154/10,RateRatios_accidents!$B$5)*10))","v":642.76403237},{"$f":"IF(AND(OR(Calculations!$E$2=\"Orkney Health Board\",Calculations!$E$2=\"Orkney Islands Local Authority\"),$F154=1),0,IF(AND(OR(Calculations!$E$2=\"Shetland Health Board\",Calculations!$E$2=\"Western Isles Health Board\",Calculations!$E$2=\"Shetland Islands Local Authority\",Calculations!$E$2=\"Eilean Siar Local Authority\"),OR($F154=1,$F154=5)),0,new_ci(VALUE(LEFT(Options!$B$14,2)),$C154,$E154,$F154,2016,$I154/10+$J154/10,1,$H154/10,$G154*$H154/10,RateRatios_accidents!$B$5)*10))","v":642.65404576799995},{"$f":"IF(AND(OR(Calculations!$E$2=\"Orkney Health Board\",Calculations!$E$2=\"Orkney Islands Local Authority\"),$F154=1),0,IF(AND(OR(Calculations!$E$2=\"Shetland Health Board\",Calculations!$E$2=\"Western Isles Health Board\",Calculations!$E$2=\"Shetland Islands Local Authority\",Calculations!$E$2=\"Eilean Siar Local Authority\"),OR($F154=1,$F154=5)),0,new_yllv2(VALUE(LEFT(Options!$B$14,2)),$C154,$D154,$E154,$F154,2016,$I154/10,1,$H154/10,$G154*$H154/10,RateRatios_accidents!$B$5)*10))","v":1606.9081526330001},{"$f":"IF(AND(OR(Calculations!$E$2=\"Orkney Health Board\",Calculations!$E$2=\"Orkney Islands Local Authority\"),$F154=1),0,IF(AND(OR(Calculations!$E$2=\"Shetland Health Board\",Calculations!$E$2=\"Western Isles Health Board\",Calculations!$E$2=\"Shetland Islands Local Authority\",Calculations!$E$2=\"Eilean Siar Local Authority\"),OR($F154=1,$F154=5)),0,new_yllv2(VALUE(LEFT(Options!$B$14,2)),$C154,$D154,$E154,$F154,2016,$I154/10+$J154/10,1,$H154/10,$G154*$H154/10,RateRatios_accidents!$B$5)*10))","v":1606.633186458},{"$f":"IF(AND(OR(Calculations!$E$2=\"Orkney Health Board\",Calculations!$E$2=\"Orkney Islands Local Authority\"),$F154=1),0,IF(AND(OR(Calculations!$E$2=\"Shetland Health Board\",Calculations!$E$2=\"Western Isles Health Board\",Calculations!$E$2=\"Shetland Islands Local Authority\",Calculations!$E$2=\"Eilean Siar Local Authority\"),OR($F154=1,$F154=5)),0,hosp_count(VALUE(LEFT(Options!$B$14,2)),$C154,$E154,$F154,2016,$I154/10,1,$H154/10,$G154*$H154/10, RateRatios_accidents!$B$4, RateRatios_accidents!$B$5)*10))","v":4170.6800816340001},{"$f":"IF(AND(OR(Calculations!$E$2=\"Orkney Health Board\",Calculations!$E$2=\"Orkney Islands Local Authority\"),$F154=1),0,IF(AND(OR(Calculations!$E$2=\"Shetland Health Board\",Calculations!$E$2=\"Western Isles Health Board\",Calculations!$E$2=\"Shetland Islands Local Authority\",Calculations!$E$2=\"Eilean Siar Local Authority\"),OR($F154=1,$F154=5)),0,hosp_count(VALUE(LEFT(Options!$B$14,2)),$C154,$E154,$F154,2016,$I154/10+$J154/10,1,$H154/10,$G154*$H154/10, RateRatios_accidents!$B$4, RateRatios_accidents!$B$5)*10))","v":4169.9264628460005},{"$f":"IF(AND(OR(Calculations!$E$2=\"Orkney Health Board\",Calculations!$E$2=\"Orkney Islands Local Authority\"),$F154=1),0,IF(AND(OR(Calculations!$E$2=\"Shetland Health Board\",Calculations!$E$2=\"Western Isles Health Board\",Calculations!$E$2=\"Shetland Islands Local Authority\",Calculations!$E$2=\"Eilean Siar Local Authority\"),OR($F154=1,$F154=5)),0,prem_mort(VALUE(LEFT(Options!$B$14,2)),$C154,$E154,$F154,2016,$I154/10,1,$H154/10,$G154*$H154/10,RateRatios_accidents!$B$5)*10))","v":0},{"$f":"IF(AND(OR(Calculations!$E$2=\"Orkney Health Board\",Calculations!$E$2=\"Orkney Islands Local Authority\"),$F154=1),0,IF(AND(OR(Calculations!$E$2=\"Shetland Health Board\",Calculations!$E$2=\"Western Isles Health Board\",Calculations!$E$2=\"Shetland Islands Local Authority\",Calculations!$E$2=\"Eilean Siar Local Authority\"),OR($F154=1,$F154=5)),0,prem_mort(VALUE(LEFT(Options!$B$14,2)),$C154,$E154,$F154,2016,$I154/10+$J154/10,1,$H154/10,$G154*$H154/10,RateRatios_accidents!$B$5)*10))","v":0},null,{"$f":"IF(AND(OR(Calculations!$E$2=\"Orkney Health Board\",Calculations!$E$2=\"Orkney Islands Local Authority\"),$F154=1),0,IF(AND(OR(Calculations!$E$2=\"Shetland Health Board\",Calculations!$E$2=\"Western Isles Health Board\",Calculations!$E$2=\"Shetland Islands Local Authority\",Calculations!$E$2=\"Eilean Siar Local Authority\"),OR($F154=1,$F154=5)),0,new_ci(VALUE(LEFT(Options!$B$14,2)),$C154,$E154,$F154,2016,$I154/10,1,$H154/10,$G154*$H154/10,RateRatios_airpollution!$C154)*10))","v":642.76403237},{"$f":"IF(AND(OR(Calculations!$E$2=\"Orkney Health Board\",Calculations!$E$2=\"Orkney Islands Local Authority\"),$F154=1),0,IF(AND(OR(Calculations!$E$2=\"Shetland Health Board\",Calculations!$E$2=\"Western Isles Health Board\",Calculations!$E$2=\"Shetland Islands Local Authority\",Calculations!$E$2=\"Eilean Siar Local Authority\"),OR($F154=1,$F154=5)),0,new_ci(VALUE(LEFT(Options!$B$14,2)),$C154,$E154,$F154,2016,$I154/10+$J154/10,1,$H154/10,$G154*$H154/10,RateRatios_airpollution!$C154)*10))","v":642.75870210799997},{"$f":"IF(AND(OR(Calculations!$E$2=\"Orkney Health Board\",Calculations!$E$2=\"Orkney Islands Local Authority\"),$F154=1),0,IF(AND(OR(Calculations!$E$2=\"Shetland Health Board\",Calculations!$E$2=\"Western Isles Health Board\",Calculations!$E$2=\"Shetland Islands Local Authority\",Calculations!$E$2=\"Eilean Siar Local Authority\"),OR($F154=1,$F154=5)),0,new_yllv2(VALUE(LEFT(Options!$B$14,2)),$C154,$D154,$E154,$F154,2016,$I154/10,1,$H154/10,$G154*$H154/10,RateRatios_airpollution!$C154)*10))","v":1606.9081526330001},{"$f":"IF(AND(OR(Calculations!$E$2=\"Orkney Health Board\",Calculations!$E$2=\"Orkney Islands Local Authority\"),$F154=1),0,IF(AND(OR(Calculations!$E$2=\"Shetland Health Board\",Calculations!$E$2=\"Western Isles Health Board\",Calculations!$E$2=\"Shetland Islands Local Authority\",Calculations!$E$2=\"Eilean Siar Local Authority\"),OR($F154=1,$F154=5)),0,new_yllv2(VALUE(LEFT(Options!$B$14,2)),$C154,$D154,$E154,$F154,2016,$I154/10+$J154/10,1,$H154/10,$G154*$H154/10,RateRatios_airpollution!$C154)*10))","v":1606.8948269940001},{"$f":"IF(AND(OR(Calculations!$E$2=\"Orkney Health Board\",Calculations!$E$2=\"Orkney Islands Local Authority\"),$F154=1),0,IF(AND(OR(Calculations!$E$2=\"Shetland Health Board\",Calculations!$E$2=\"Western Isles Health Board\",Calculations!$E$2=\"Shetland Islands Local Authority\",Calculations!$E$2=\"Eilean Siar Local Authority\"),OR($F154=1,$F154=5)),0,hosp_count(VALUE(LEFT(Options!$B$14,2)),$C154,$E154,$F154,2016,$I154/10,1,$H154/10,$G154*$H154/10, RateRatios_airpollution!$D154, RateRatios_airpollution!$C154)*10))","v":4170.6800816340001},{"$f":"IF(AND(OR(Calculations!$E$2=\"Orkney Health Board\",Calculations!$E$2=\"Orkney Islands Local Authority\"),$F154=1),0,IF(AND(OR(Calculations!$E$2=\"Shetland Health Board\",Calculations!$E$2=\"Western Isles Health Board\",Calculations!$E$2=\"Shetland Islands Local Authority\",Calculations!$E$2=\"Eilean Siar Local Authority\"),OR($F154=1,$F154=5)),0,hosp_count(VALUE(LEFT(Options!$B$14,2)),$C154,$E154,$F154,2016,$I154/10+$J154/10,1,$H154/10,$G154*$H154/10, RateRatios_airpollution!$D154, RateRatios_airpollution!$C154)*10))","v":4170.6112711989999},{"$f":"IF(AND(OR(Calculations!$E$2=\"Orkney Health Board\",Calculations!$E$2=\"Orkney Islands Local Authority\"),$F154=1),0,IF(AND(OR(Calculations!$E$2=\"Shetland Health Board\",Calculations!$E$2=\"Western Isles Health Board\",Calculations!$E$2=\"Shetland Islands Local Authority\",Calculations!$E$2=\"Eilean Siar Local Authority\"),OR($F154=1,$F154=5)),0,prem_mort(VALUE(LEFT(Options!$B$14,2)),$C154,$E154,$F154,2016,$I154/10,1,$H154/10,$G154*$H154/10,RateRatios_airpollution!$C154)*10))","v":0},{"$f":"IF(AND(OR(Calculations!$E$2=\"Orkney Health Board\",Calculations!$E$2=\"Orkney Islands Local Authority\"),$F154=1),0,IF(AND(OR(Calculations!$E$2=\"Shetland Health Board\",Calculations!$E$2=\"Western Isles Health Board\",Calculations!$E$2=\"Shetland Islands Local Authority\",Calculations!$E$2=\"Eilean Siar Local Authority\"),OR($F154=1,$F154=5)),0,prem_mort(VALUE(LEFT(Options!$B$14,2)),$C154,$E154,$F154,2016,$I154/10+$J154/10,1,$H154/10,$G154*$H154/10,RateRatios_airpollution!$C154)*10))","v":0},null,{"$f":"IF(AND(OR(Calculations!$E$2=\"Orkney Health Board\",Calculations!$E$2=\"Orkney Islands Local Authority\"),$F154=1),0,IF(AND(OR(Calculations!$E$2=\"Shetland Health Board\",Calculations!$E$2=\"Western Isles Health Board\",Calculations!$E$2=\"Shetland Islands Local Authority\",Calculations!$E$2=\"Eilean Siar Local Authority\"),OR($F154=1,$F154=5)),0,new_ci(VALUE(LEFT(Options!$B$14,2)),$C154,$E154,$F154,2016,$I154/10,1,$H154/10,$G154*$H154/10,RateRatios_airpollution!$E154)*10))","v":642.76403237},{"$f":"IF(AND(OR(Calculations!$E$2=\"Orkney Health Board\",Calculations!$E$2=\"Orkney Islands Local Authority\"),$F154=1),0,IF(AND(OR(Calculations!$E$2=\"Shetland Health Board\",Calculations!$E$2=\"Western Isles Health Board\",Calculations!$E$2=\"Shetland Islands Local Authority\",Calculations!$E$2=\"Eilean Siar Local Authority\"),OR($F154=1,$F154=5)),0,new_ci(VALUE(LEFT(Options!$B$14,2)),$C154,$E154,$F154,2016,$I154/10+$J154/10,1,$H154/10,$G154*$H154/10,RateRatios_airpollution!$E154)*10))","v":642.76168529699999},{"$f":"IF(AND(OR(Calculations!$E$2=\"Orkney Health Board\",Calculations!$E$2=\"Orkney Islands Local Authority\"),$F154=1),0,IF(AND(OR(Calculations!$E$2=\"Shetland Health Board\",Calculations!$E$2=\"Western Isles Health Board\",Calculations!$E$2=\"Shetland Islands Local Authority\",Calculations!$E$2=\"Eilean Siar Local Authority\"),OR($F154=1,$F154=5)),0,new_yllv2(VALUE(LEFT(Options!$B$14,2)),$C154,$D154,$E154,$F154,2016,$I154/10,1,$H154/10,$G154*$H154/10,RateRatios_airpollution!$E154)*10))","v":1606.9081526330001},{"$f":"IF(AND(OR(Calculations!$E$2=\"Orkney Health Board\",Calculations!$E$2=\"Orkney Islands Local Authority\"),$F154=1),0,IF(AND(OR(Calculations!$E$2=\"Shetland Health Board\",Calculations!$E$2=\"Western Isles Health Board\",Calculations!$E$2=\"Shetland Islands Local Authority\",Calculations!$E$2=\"Eilean Siar Local Authority\"),OR($F154=1,$F154=5)),0,new_yllv2(VALUE(LEFT(Options!$B$14,2)),$C154,$D154,$E154,$F154,2016,$I154/10+$J154/10,1,$H154/10,$G154*$H154/10,RateRatios_airpollution!$E154)*10))","v":1606.9022849570001},{"$f":"IF(AND(OR(Calculations!$E$2=\"Orkney Health Board\",Calculations!$E$2=\"Orkney Islands Local Authority\"),$F154=1),0,IF(AND(OR(Calculations!$E$2=\"Shetland Health Board\",Calculations!$E$2=\"Western Isles Health Board\",Calculations!$E$2=\"Shetland Islands Local Authority\",Calculations!$E$2=\"Eilean Siar Local Authority\"),OR($F154=1,$F154=5)),0,hosp_count(VALUE(LEFT(Options!$B$14,2)),$C154,$E154,$F154,2016,$I154/10,1,$H154/10,$G154*$H154/10, RateRatios_airpollution!$F154, RateRatios_airpollution!$E154)*10))","v":4170.6800816340001},{"$f":"IF(AND(OR(Calculations!$E$2=\"Orkney Health Board\",Calculations!$E$2=\"Orkney Islands Local Authority\"),$F154=1),0,IF(AND(OR(Calculations!$E$2=\"Shetland Health Board\",Calculations!$E$2=\"Western Isles Health Board\",Calculations!$E$2=\"Shetland Islands Local Authority\",Calculations!$E$2=\"Eilean Siar Local Authority\"),OR($F154=1,$F154=5)),0,hosp_count(VALUE(LEFT(Options!$B$14,2)),$C154,$E154,$F154,2016,$I154/10+$J154/10,1,$H154/10,$G154*$H154/10, RateRatios_airpollution!$F154, RateRatios_airpollution!$E154)*10))","v":4170.6800816340001},{"$f":"IF(AND(OR(Calculations!$E$2=\"Orkney Health Board\",Calculations!$E$2=\"Orkney Islands Local Authority\"),$F154=1),0,IF(AND(OR(Calculations!$E$2=\"Shetland Health Board\",Calculations!$E$2=\"Western Isles Health Board\",Calculations!$E$2=\"Shetland Islands Local Authority\",Calculations!$E$2=\"Eilean Siar Local Authority\"),OR($F154=1,$F154=5)),0,prem_mort(VALUE(LEFT(Options!$B$14,2)),$C154,$E154,$F154,2016,$I154/10,1,$H154/10,$G154*$H154/10,RateRatios_airpollution!$E154)*10))","v":0},{"$f":"IF(AND(OR(Calculations!$E$2=\"Orkney Health Board\",Calculations!$E$2=\"Orkney Islands Local Authority\"),$F154=1),0,IF(AND(OR(Calculations!$E$2=\"Shetland Health Board\",Calculations!$E$2=\"Western Isles Health Board\",Calculations!$E$2=\"Shetland Islands Local Authority\",Calculations!$E$2=\"Eilean Siar Local Authority\"),OR($F154=1,$F154=5)),0,prem_mort(VALUE(LEFT(Options!$B$14,2)),$C154,$E154,$F154,2016,$I154/10+$J154/10,1,$H154/10,$G154*$H154/10,RateRatios_airpollution!$E154)*10))","v":0},642.76403237,642.64636843299991,1606.9081526330001,1606.613993143,4170.6800816340001,4169.8576524110003,0,0,10238.356679993627,10236.482453536157,25595.86098491558,25591.175424386747,66433.260299999994,66420.160121232882,0,0,10238356.679993628,10236482.453536157,25595860.984915581,25591175.424386747,66433260.299999997,66420160.121232882,0,0,1000]
[null,"Male 0-4",2.0320822999999999,77.402082000000007,"male",3,1,{"$f":"HLOOKUP(Calculations!$E$2,'Population 2016'!$C$3:$BC$249,'Population 2016'!BD155,FALSE)","v":0},0,{"$f":"HLOOKUP(Calculations!$E$2,Pop2016_in_settlements!$C$3:$BC$249,Pop2016_in_settlements!$BD155,FALSE)","v":0},{"$f":"IF(AND(OR(Calculations!$E$2=\"Orkney Health Board\",Calculations!$E$2=\"Orkney Islands Local Authority\"),$F155=1),0,IF(AND(OR(Calculations!$E$2=\"Shetland Health Board\",Calculations!$E$2=\"Western Isles Health Board\",Calculations!$E$2=\"Shetland Islands Local Authority\",Calculations!$E$2=\"Eilean Siar Local Authority\"),OR($F155=1,$F155=5)),0,new_ci(VALUE(LEFT(Options!$B$14,2)),$C155,$E155,$F155,2016,$I155/10,1,$H155/10,$G155*$H155/10,RateRatios_accidents!$B$5)*10))","v":{"$error":"#VALUE!"}},{"$f":"IF(AND(OR(Calculations!$E$2=\"Orkney Health Board\",Calculations!$E$2=\"Orkney Islands Local Authority\"),$F155=1),0,IF(AND(OR(Calculations!$E$2=\"Shetland Health Board\",Calculations!$E$2=\"Western Isles Health Board\",Calculations!$E$2=\"Shetland Islands Local Authority\",Calculations!$E$2=\"Eilean Siar Local Authority\"),OR($F155=1,$F155=5)),0,new_ci(VALUE(LEFT(Options!$B$14,2)),$C155,$E155,$F155,2016,$I155/10+$J155/10,1,$H155/10,$G155*$H155/10,RateRatios_accidents!$B$5)*10))","v":{"$error":"#VALUE!"}},{"$f":"IF(AND(OR(Calculations!$E$2=\"Orkney Health Board\",Calculations!$E$2=\"Orkney Islands Local Authority\"),$F155=1),0,IF(AND(OR(Calculations!$E$2=\"Shetland Health Board\",Calculations!$E$2=\"Western Isles Health Board\",Calculations!$E$2=\"Shetland Islands Local Authority\",Calculations!$E$2=\"Eilean Siar Local Authority\"),OR($F155=1,$F155=5)),0,new_yllv2(VALUE(LEFT(Options!$B$14,2)),$C155,$D155,$E155,$F155,2016,$I155/10,1,$H155/10,$G155*$H155/10,RateRatios_accidents!$B$5)*10))","v":{"$error":"#VALUE!"}},{"$f":"IF(AND(OR(Calculations!$E$2=\"Orkney Health Board\",Calculations!$E$2=\"Orkney Islands Local Authority\"),$F155=1),0,IF(AND(OR(Calculations!$E$2=\"Shetland Health Board\",Calculations!$E$2=\"Western Isles Health Board\",Calculations!$E$2=\"Shetland Islands Local Authority\",Calculations!$E$2=\"Eilean Siar Local Authority\"),OR($F155=1,$F155=5)),0,new_yllv2(VALUE(LEFT(Options!$B$14,2)),$C155,$D155,$E155,$F155,2016,$I155/10+$J155/10,1,$H155/10,$G155*$H155/10,RateRatios_accidents!$B$5)*10))","v":{"$error":"#VALUE!"}},{"$f":"IF(AND(OR(Calculations!$E$2=\"Orkney Health Board\",Calculations!$E$2=\"Orkney Islands Local Authority\"),$F155=1),0,IF(AND(OR(Calculations!$E$2=\"Shetland Health Board\",Calculations!$E$2=\"Western Isles Health Board\",Calculations!$E$2=\"Shetland Islands Local Authority\",Calculations!$E$2=\"Eilean Siar Local Authority\"),OR($F155=1,$F155=5)),0,hosp_count(VALUE(LEFT(Options!$B$14,2)),$C155,$E155,$F155,2016,$I155/10,1,$H155/10,$G155*$H155/10, RateRatios_accidents!$B$4, RateRatios_accidents!$B$5)*10))","v":{"$error":"#VALUE!"}},{"$f":"IF(AND(OR(Calculations!$E$2=\"Orkney Health Board\",Calculations!$E$2=\"Orkney Islands Local Authority\"),$F155=1),0,IF(AND(OR(Calculations!$E$2=\"Shetland Health Board\",Calculations!$E$2=\"Western Isles Health Board\",Calculations!$E$2=\"Shetland Islands Local Authority\",Calculations!$E$2=\"Eilean Siar Local Authority\"),OR($F155=1,$F155=5)),0,hosp_count(VALUE(LEFT(Options!$B$14,2)),$C155,$E155,$F155,2016,$I155/10+$J155/10,1,$H155/10,$G155*$H155/10, RateRatios_accidents!$B$4, RateRatios_accidents!$B$5)*10))","v":{"$error":"#VALUE!"}},{"$f":"IF(AND(OR(Calculations!$E$2=\"Orkney Health Board\",Calculations!$E$2=\"Orkney Islands Local Authority\"),$F155=1),0,IF(AND(OR(Calculations!$E$2=\"Shetland Health Board\",Calculations!$E$2=\"Western Isles Health Board\",Calculations!$E$2=\"Shetland Islands Local Authority\",Calculations!$E$2=\"Eilean Siar Local Authority\"),OR($F155=1,$F155=5)),0,prem_mort(VALUE(LEFT(Options!$B$14,2)),$C155,$E155,$F155,2016,$I155/10,1,$H155/10,$G155*$H155/10,RateRatios_accidents!$B$5)*10))","v":{"$error":"#VALUE!"}},{"$f":"IF(AND(OR(Calculations!$E$2=\"Orkney Health Board\",Calculations!$E$2=\"Orkney Islands Local Authority\"),$F155=1),0,IF(AND(OR(Calculations!$E$2=\"Shetland Health Board\",Calculations!$E$2=\"Western Isles Health Board\",Calculations!$E$2=\"Shetland Islands Local Authority\",Calculations!$E$2=\"Eilean Siar Local Authority\"),OR($F155=1,$F155=5)),0,prem_mort(VALUE(LEFT(Options!$B$14,2)),$C155,$E155,$F155,2016,$I155/10+$J155/10,1,$H155/10,$G155*$H155/10,RateRatios_accidents!$B$5)*10))","v":{"$error":"#VALUE!"}},null,{"$f":"IF(AND(OR(Calculations!$E$2=\"Orkney Health Board\",Calculations!$E$2=\"Orkney Islands Local Authority\"),$F155=1),0,IF(AND(OR(Calculations!$E$2=\"Shetland Health Board\",Calculations!$E$2=\"Western Isles Health Board\",Calculations!$E$2=\"Shetland Islands Local Authority\",Calculations!$E$2=\"Eilean Siar Local Authority\"),OR($F155=1,$F155=5)),0,new_ci(VALUE(LEFT(Options!$B$14,2)),$C155,$E155,$F155,2016,$I155/10,1,$H155/10,$G155*$H155/10,RateRatios_airpollution!$C155)*10))","v":{"$error":"#VALUE!"}},{"$f":"IF(AND(OR(Calculations!$E$2=\"Orkney Health Board\",Calculations!$E$2=\"Orkney Islands Local Authority\"),$F155=1),0,IF(AND(OR(Calculations!$E$2=\"Shetland Health Board\",Calculations!$E$2=\"Western Isles Health Board\",Calculations!$E$2=\"Shetland Islands Local Authority\",Calculations!$E$2=\"Eilean Siar Local Authority\"),OR($F155=1,$F155=5)),0,new_ci(VALUE(LEFT(Options!$B$14,2)),$C155,$E155,$F155,2016,$I155/10+$J155/10,1,$H155/10,$G155*$H155/10,RateRatios_airpollution!$C155)*10))","v":{"$error":"#VALUE!"}},{"$f":"IF(AND(OR(Calculations!$E$2=\"Orkney Health Board\",Calculations!$E$2=\"Orkney Islands Local Authority\"),$F155=1),0,IF(AND(OR(Calculations!$E$2=\"Shetland Health Board\",Calculations!$E$2=\"Western Isles Health Board\",Calculations!$E$2=\"Shetland Islands Local Authority\",Calculations!$E$2=\"Eilean Siar Local Authority\"),OR($F155=1,$F155=5)),0,new_yllv2(VALUE(LEFT(Options!$B$14,2)),$C155,$D155,$E155,$F155,2016,$I155/10,1,$H155/10,$G155*$H155/10,RateRatios_airpollution!$C155)*10))","v":{"$error":"#VALUE!"}},{"$f":"IF(AND(OR(Calculations!$E$2=\"Orkney Health Board\",Calculations!$E$2=\"Orkney Islands Local Authority\"),$F155=1),0,IF(AND(OR(Calculations!$E$2=\"Shetland Health Board\",Calculations!$E$2=\"Western Isles Health Board\",Calculations!$E$2=\"Shetland Islands Local Authority\",Calculations!$E$2=\"Eilean Siar Local Authority\"),OR($F155=1,$F155=5)),0,new_yllv2(VALUE(LEFT(Options!$B$14,2)),$C155,$D155,$E155,$F155,2016,$I155/10+$J155/10,1,$H155/10,$G155*$H155/10,RateRatios_airpollution!$C155)*10))","v":{"$error":"#VALUE!"}},{"$f":"IF(AND(OR(Calculations!$E$2=\"Orkney Health Board\",Calculations!$E$2=\"Orkney Islands Local Authority\"),$F155=1),0,IF(AND(OR(Calculations!$E$2=\"Shetland Health Board\",Calculations!$E$2=\"Western Isles Health Board\",Calculations!$E$2=\"Shetland Islands Local Authority\",Calculations!$E$2=\"Eilean Siar Local Authority\"),OR($F155=1,$F155=5)),0,hosp_count(VALUE(LEFT(Options!$B$14,2)),$C155,$E155,$F155,2016,$I155/10,1,$H155/10,$G155*$H155/10, RateRatios_airpollution!$D155, RateRatios_airpollution!$C155)*10))","v":{"$error":"#VALUE!"}},{"$f":"IF(AND(OR(Calculations!$E$2=\"Orkney Health Board\",Calculations!$E$2=\"Orkney Islands Local Authority\"),$F155=1),0,IF(AND(OR(Calculations!$E$2=\"Shetland Health Board\",Calculations!$E$2=\"Western Isles Health Board\",Calculations!$E$2=\"Shetland Islands Local Authority\",Calculations!$E$2=\"Eilean Siar Local Authority\"),OR($F155=1,$F155=5)),0,hosp_count(VALUE(LEFT(Options!$B$14,2)),$C155,$E155,$F155,2016,$I155/10+$J155/10,1,$H155/10,$G155*$H155/10, RateRatios_airpollution!$D155, RateRatios_airpollution!$C155)*10))","v":{"$error":"#VALUE!"}},{"$f":"IF(AND(OR(Calculations!$E$2=\"Orkney Health Board\",Calculations!$E$2=\"Orkney Islands Local Authority\"),$F155=1),0,IF(AND(OR(Calculations!$E$2=\"Shetland Health Board\",Calculations!$E$2=\"Western Isles Health Board\",Calculations!$E$2=\"Shetland Islands Local Authority\",Calculations!$E$2=\"Eilean Siar Local Authority\"),OR($F155=1,$F155=5)),0,prem_mort(VALUE(LEFT(Options!$B$14,2)),$C155,$E155,$F155,2016,$I155/10,1,$H155/10,$G155*$H155/10,RateRatios_airpollution!$C155)*10))","v":{"$error":"#VALUE!"}},{"$f":"IF(AND(OR(Calculations!$E$2=\"Orkney Health Board\",Calculations!$E$2=\"Orkney Islands Local Authority\"),$F155=1),0,IF(AND(OR(Calculations!$E$2=\"Shetland Health Board\",Calculations!$E$2=\"Western Isles Health Board\",Calculations!$E$2=\"Shetland Islands Local Authority\",Calculations!$E$2=\"Eilean Siar Local Authority\"),OR($F155=1,$F155=5)),0,prem_mort(VALUE(LEFT(Options!$B$14,2)),$C155,$E155,$F155,2016,$I155/10+$J155/10,1,$H155/10,$G155*$H155/10,RateRatios_airpollution!$C155)*10))","v":{"$error":"#VALUE!"}},null,{"$f":"IF(AND(OR(Calculations!$E$2=\"Orkney Health Board\",Calculations!$E$2=\"Orkney Islands Local Authority\"),$F155=1),0,IF(AND(OR(Calculations!$E$2=\"Shetland Health Board\",Calculations!$E$2=\"Western Isles Health Board\",Calculations!$E$2=\"Shetland Islands Local Authority\",Calculations!$E$2=\"Eilean Siar Local Authority\"),OR($F155=1,$F155=5)),0,new_ci(VALUE(LEFT(Options!$B$14,2)),$C155,$E155,$F155,2016,$I155/10,1,$H155/10,$G155*$H155/10,RateRatios_airpollution!$E155)*10))","v":{"$error":"#VALUE!"}},{"$f":"IF(AND(OR(Calculations!$E$2=\"Orkney Health Board\",Calculations!$E$2=\"Orkney Islands Local Authority\"),$F155=1),0,IF(AND(OR(Calculations!$E$2=\"Shetland Health Board\",Calculations!$E$2=\"Western Isles Health Board\",Calculations!$E$2=\"Shetland Islands Local Authority\",Calculations!$E$2=\"Eilean Siar Local Authority\"),OR($F155=1,$F155=5)),0,new_ci(VALUE(LEFT(Options!$B$14,2)),$C155,$E155,$F155,2016,$I155/10+$J155/10,1,$H155/10,$G155*$H155/10,RateRatios_airpollution!$E155)*10))","v":{"$error":"#VALUE!"}},{"$f":"IF(AND(OR(Calculations!$E$2=\"Orkney Health Board\",Calculations!$E$2=\"Orkney Islands Local Authority\"),$F155=1),0,IF(AND(OR(Calculations!$E$2=\"Shetland Health Board\",Calculations!$E$2=\"Western Isles Health Board\",Calculations!$E$2=\"Shetland Islands Local Authority\",Calculations!$E$2=\"Eilean Siar Local Authority\"),OR($F155=1,$F155=5)),0,new_yllv2(VALUE(LEFT(Options!$B$14,2)),$C155,$D155,$E155,$F155,2016,$I155/10,1,$H155/10,$G155*$H155/10,RateRatios_airpollution!$E155)*10))","v":{"$error":"#VALUE!"}},{"$f":"IF(AND(OR(Calculations!$E$2=\"Orkney Health Board\",Calculations!$E$2=\"Orkney Islands Local Authority\"),$F155=1),0,IF(AND(OR(Calculations!$E$2=\"Shetland Health Board\",Calculations!$E$2=\"Western Isles Health Board\",Calculations!$E$2=\"Shetland Islands Local Authority\",Calculations!$E$2=\"Eilean Siar Local Authority\"),OR($F155=1,$F155=5)),0,new_yllv2(VALUE(LEFT(Options!$B$14,2)),$C155,$D155,$E155,$F155,2016,$I155/10+$J155/10,1,$H155/10,$G155*$H155/10,RateRatios_airpollution!$E155)*10))","v":{"$error":"#VALUE!"}},{"$f":"IF(AND(OR(Calculations!$E$2=\"Orkney Health Board\",Calculations!$E$2=\"Orkney Islands Local Authority\"),$F155=1),0,IF(AND(OR(Calculations!$E$2=\"Shetland Health Board\",Calculations!$E$2=\"Western Isles Health Board\",Calculations!$E$2=\"Shetland Islands Local Authority\",Calculations!$E$2=\"Eilean Siar Local Authority\"),OR($F155=1,$F155=5)),0,hosp_count(VALUE(LEFT(Options!$B$14,2)),$C155,$E155,$F155,2016,$I155/10,1,$H155/10,$G155*$H155/10, RateRatios_airpollution!$F155, RateRatios_airpollution!$E155)*10))","v":{"$error":"#VALUE!"}},{"$f":"IF(AND(OR(Calculations!$E$2=\"Orkney Health Board\",Calculations!$E$2=\"Orkney Islands Local Authority\"),$F155=1),0,IF(AND(OR(Calculations!$E$2=\"Shetland Health Board\",Calculations!$E$2=\"Western Isles Health Board\",Calculations!$E$2=\"Shetland Islands Local Authority\",Calculations!$E$2=\"Eilean Siar Local Authority\"),OR($F155=1,$F155=5)),0,hosp_count(VALUE(LEFT(Options!$B$14,2)),$C155,$E155,$F155,2016,$I155/10+$J155/10,1,$H155/10,$G155*$H155/10, RateRatios_airpollution!$F155, RateRatios_airpollution!$E155)*10))","v":{"$error":"#VALUE!"}},{"$f":"IF(AND(OR(Calculations!$E$2=\"Orkney Health Board\",Calculations!$E$2=\"Orkney Islands Local Authority\"),$F155=1),0,IF(AND(OR(Calculations!$E$2=\"Shetland Health Board\",Calculations!$E$2=\"Western Isles Health Board\",Calculations!$E$2=\"Shetland Islands Local Authority\",Calculations!$E$2=\"Eilean Siar Local Authority\"),OR($F155=1,$F155=5)),0,prem_mort(VALUE(LEFT(Options!$B$14,2)),$C155,$E155,$F155,2016,$I155/10,1,$H155/10,$G155*$H155/10,RateRatios_airpollution!$E155)*10))","v":{"$error":"#VALUE!"}},{"$f":"IF(AND(OR(Calculations!$E$2=\"Orkney Health Board\",Calculations!$E$2=\"Orkney Islands Local Authority\"),$F155=1),0,IF(AND(OR(Calculations!$E$2=\"Shetland Health Board\",Calculations!$E$2=\"Western Isles Health Board\",Calculations!$E$2=\"Shetland Islands Local Authority\",Calculations!$E$2=\"Eilean Siar Local Authority\"),OR($F155=1,$F155=5)),0,prem_mort(VALUE(LEFT(Options!$B$14,2)),$C155,$E155,$F155,2016,$I155/10+$J155/10,1,$H155/10,$G155*$H155/10,RateRatios_airpollution!$E155)*10))","v":{"$error":"#VALUE!"}},{"$error":"#VALUE!"},{"$error":"#VALUE!"},{"$error":"#VALUE!"},{"$error":"#VALUE!"},{"$error":"#VALUE!"},{"$error":"#VALUE!"},{"$error":"#VALUE!"},{"$error":"#VALUE!"},{"$error":"#VALUE!"},{"$error":"#VALUE!"},{"$error":"#VALUE!"},{"$error":"#VALUE!"},{"$error":"#VALUE!"},{"$error":"#VALUE!"},{"$error":"#VALUE!"},{"$error":"#VALUE!"},{"$error":"#VALUE!"},{"$error":"#VALUE!"},{"$error":"#VALUE!"},{"$error":"#VALUE!"},{"$error":"#VALUE!"},{"$error":"#VALUE!"},{"$error":"#VALUE!"},{"$error":"#VALUE!"},5000]
[null,"Male 5-9",6.9784756000000003,77.398476000000002,"male",3,1,{"$f":"HLOOKUP(Calculations!$E$2,'Population 2016'!$C$3:$BC$249,'Population 2016'!BD156,FALSE)","v":0},0,{"$f":"HLOOKUP(Calculations!$E$2,Pop2016_in_settlements!$C$3:$BC$249,Pop2016_in_settlements!$BD156,FALSE)","v":0},{"$f":"IF(AND(OR(Calculations!$E$2=\"Orkney Health Board\",Calculations!$E$2=\"Orkney Islands Local Authority\"),$F156=1),0,IF(AND(OR(Calculations!$E$2=\"Shetland Health Board\",Calculations!$E$2=\"Western Isles Health Board\",Calculations!$E$2=\"Shetland Islands Local Authority\",Calculations!$E$2=\"Eilean Siar Local Authority\"),OR($F156=1,$F156=5)),0,new_ci(VALUE(LEFT(Options!$B$14,2)),$C156,$E156,$F156,2016,$I156/10,1,$H156/10,$G156*$H156/10,RateRatios_accidents!$B$5)*10))","v":{"$error":"#VALUE!"}},{"$f":"IF(AND(OR(Calculations!$E$2=\"Orkney Health Board\",Calculations!$E$2=\"Orkney Islands Local Authority\"),$F156=1),0,IF(AND(OR(Calculations!$E$2=\"Shetland Health Board\",Calculations!$E$2=\"Western Isles Health Board\",Calculations!$E$2=\"Shetland Islands Local Authority\",Calculations!$E$2=\"Eilean Siar Local Authority\"),OR($F156=1,$F156=5)),0,new_ci(VALUE(LEFT(Options!$B$14,2)),$C156,$E156,$F156,2016,$I156/10+$J156/10,1,$H156/10,$G156*$H156/10,RateRatios_accidents!$B$5)*10))","v":{"$error":"#VALUE!"}},{"$f":"IF(AND(OR(Calculations!$E$2=\"Orkney Health Board\",Calculations!$E$2=\"Orkney Islands Local Authority\"),$F156=1),0,IF(AND(OR(Calculations!$E$2=\"Shetland Health Board\",Calculations!$E$2=\"Western Isles Health Board\",Calculations!$E$2=\"Shetland Islands Local Authority\",Calculations!$E$2=\"Eilean Siar Local Authority\"),OR($F156=1,$F156=5)),0,new_yllv2(VALUE(LEFT(Options!$B$14,2)),$C156,$D156,$E156,$F156,2016,$I156/10,1,$H156/10,$G156*$H156/10,RateRatios_accidents!$B$5)*10))","v":{"$error":"#VALUE!"}},{"$f":"IF(AND(OR(Calculations!$E$2=\"Orkney Health Board\",Calculations!$E$2=\"Orkney Islands Local Authority\"),$F156=1),0,IF(AND(OR(Calculations!$E$2=\"Shetland Health Board\",Calculations!$E$2=\"Western Isles Health Board\",Calculations!$E$2=\"Shetland Islands Local Authority\",Calculations!$E$2=\"Eilean Siar Local Authority\"),OR($F156=1,$F156=5)),0,new_yllv2(VALUE(LEFT(Options!$B$14,2)),$C156,$D156,$E156,$F156,2016,$I156/10+$J156/10,1,$H156/10,$G156*$H156/10,RateRatios_accidents!$B$5)*10))","v":{"$error":"#VALUE!"}},{"$f":"IF(AND(OR(Calculations!$E$2=\"Orkney Health Board\",Calculations!$E$2=\"Orkney Islands Local Authority\"),$F156=1),0,IF(AND(OR(Calculations!$E$2=\"Shetland Health Board\",Calculations!$E$2=\"Western Isles Health Board\",Calculations!$E$2=\"Shetland Islands Local Authority\",Calculations!$E$2=\"Eilean Siar Local Authority\"),OR($F156=1,$F156=5)),0,hosp_count(VALUE(LEFT(Options!$B$14,2)),$C156,$E156,$F156,2016,$I156/10,1,$H156/10,$G156*$H156/10, RateRatios_accidents!$B$4, RateRatios_accidents!$B$5)*10))","v":{"$error":"#VALUE!"}},{"$f":"IF(AND(OR(Calculations!$E$2=\"Orkney Health Board\",Calculations!$E$2=\"Orkney Islands Local Authority\"),$F156=1),0,IF(AND(OR(Calculations!$E$2=\"Shetland Health Board\",Calculations!$E$2=\"Western Isles Health Board\",Calculations!$E$2=\"Shetland Islands Local Authority\",Calculations!$E$2=\"Eilean Siar Local Authority\"),OR($F156=1,$F156=5)),0,hosp_count(VALUE(LEFT(Options!$B$14,2)),$C156,$E156,$F156,2016,$I156/10+$J156/10,1,$H156/10,$G156*$H156/10, RateRatios_accidents!$B$4, RateRatios_accidents!$B$5)*10))","v":{"$error":"#VALUE!"}},{"$f":"IF(AND(OR(Calculations!$E$2=\"Orkney Health Board\",Calculations!$E$2=\"Orkney Islands Local Authority\"),$F156=1),0,IF(AND(OR(Calculations!$E$2=\"Shetland Health Board\",Calculations!$E$2=\"Western Isles Health Board\",Calculations!$E$2=\"Shetland Islands Local Authority\",Calculations!$E$2=\"Eilean Siar Local Authority\"),OR($F156=1,$F156=5)),0,prem_mort(VALUE(LEFT(Options!$B$14,2)),$C156,$E156,$F156,2016,$I156/10,1,$H156/10,$G156*$H156/10,RateRatios_accidents!$B$5)*10))","v":{"$error":"#VALUE!"}},{"$f":"IF(AND(OR(Calculations!$E$2=\"Orkney Health Board\",Calculations!$E$2=\"Orkney Islands Local Authority\"),$F156=1),0,IF(AND(OR(Calculations!$E$2=\"Shetland Health Board\",Calculations!$E$2=\"Western Isles Health Board\",Calculations!$E$2=\"Shetland Islands Local Authority\",Calculations!$E$2=\"Eilean Siar Local Authority\"),OR($F156=1,$F156=5)),0,prem_mort(VALUE(LEFT(Options!$B$14,2)),$C156,$E156,$F156,2016,$I156/10+$J156/10,1,$H156/10,$G156*$H156/10,RateRatios_accidents!$B$5)*10))","v":{"$error":"#VALUE!"}},null,{"$f":"IF(AND(OR(Calculations!$E$2=\"Orkney Health Board\",Calculations!$E$2=\"Orkney Islands Local Authority\"),$F156=1),0,IF(AND(OR(Calculations!$E$2=\"Shetland Health Board\",Calculations!$E$2=\"Western Isles Health Board\",Calculations!$E$2=\"Shetland Islands Local Authority\",Calculations!$E$2=\"Eilean Siar Local Authority\"),OR($F156=1,$F156=5)),0,new_ci(VALUE(LEFT(Options!$B$14,2)),$C156,$E156,$F156,2016,$I156/10,1,$H156/10,$G156*$H156/10,RateRatios_airpollution!$C156)*10))","v":{"$error":"#VALUE!"}},{"$f":"IF(AND(OR(Calculations!$E$2=\"Orkney Health Board\",Calculations!$E$2=\"Orkney Islands Local Authority\"),$F156=1),0,IF(AND(OR(Calculations!$E$2=\"Shetland Health Board\",Calculations!$E$2=\"Western Isles Health Board\",Calculations!$E$2=\"Shetland Islands Local Authority\",Calculations!$E$2=\"Eilean Siar Local Authority\"),OR($F156=1,$F156=5)),0,new_ci(VALUE(LEFT(Options!$B$14,2)),$C156,$E156,$F156,2016,$I156/10+$J156/10,1,$H156/10,$G156*$H156/10,RateRatios_airpollution!$C156)*10))","v":{"$error":"#VALUE!"}},{"$f":"IF(AND(OR(Calculations!$E$2=\"Orkney Health Board\",Calculations!$E$2=\"Orkney Islands Local Authority\"),$F156=1),0,IF(AND(OR(Calculations!$E$2=\"Shetland Health Board\",Calculations!$E$2=\"Western Isles Health Board\",Calculations!$E$2=\"Shetland Islands Local Authority\",Calculations!$E$2=\"Eilean Siar Local Authority\"),OR($F156=1,$F156=5)),0,new_yllv2(VALUE(LEFT(Options!$B$14,2)),$C156,$D156,$E156,$F156,2016,$I156/10,1,$H156/10,$G156*$H156/10,RateRatios_airpollution!$C156)*10))","v":{"$error":"#VALUE!"}},{"$f":"IF(AND(OR(Calculations!$E$2=\"Orkney Health Board\",Calculations!$E$2=\"Orkney Islands Local Authority\"),$F156=1),0,IF(AND(OR(Calculations!$E$2=\"Shetland Health Board\",Calculations!$E$2=\"Western Isles Health Board\",Calculations!$E$2=\"Shetland Islands Local Authority\",Calculations!$E$2=\"Eilean Siar Local Authority\"),OR($F156=1,$F156=5)),0,new_yllv2(VALUE(LEFT(Options!$B$14,2)),$C156,$D156,$E156,$F156,2016,$I156/10+$J156/10,1,$H156/10,$G156*$H156/10,RateRatios_airpollution!$C156)*10))","v":{"$error":"#VALUE!"}},{"$f":"IF(AND(OR(Calculations!$E$2=\"Orkney Health Board\",Calculations!$E$2=\"Orkney Islands Local Authority\"),$F156=1),0,IF(AND(OR(Calculations!$E$2=\"Shetland Health Board\",Calculations!$E$2=\"Western Isles Health Board\",Calculations!$E$2=\"Shetland Islands Local Authority\",Calculations!$E$2=\"Eilean Siar Local Authority\"),OR($F156=1,$F156=5)),0,hosp_count(VALUE(LEFT(Options!$B$14,2)),$C156,$E156,$F156,2016,$I156/10,1,$H156/10,$G156*$H156/10, RateRatios_airpollution!$D156, RateRatios_airpollution!$C156)*10))","v":{"$error":"#VALUE!"}},{"$f":"IF(AND(OR(Calculations!$E$2=\"Orkney Health Board\",Calculations!$E$2=\"Orkney Islands Local Authority\"),$F156=1),0,IF(AND(OR(Calculations!$E$2=\"Shetland Health Board\",Calculations!$E$2=\"Western Isles Health Board\",Calculations!$E$2=\"Shetland Islands Local Authority\",Calculations!$E$2=\"Eilean Siar Local Authority\"),OR($F156=1,$F156=5)),0,hosp_count(VALUE(LEFT(Options!$B$14,2)),$C156,$E156,$F156,2016,$I156/10+$J156/10,1,$H156/10,$G156*$H156/10, RateRatios_airpollution!$D156, RateRatios_airpollution!$C156)*10))","v":{"$error":"#VALUE!"}},{"$f":"IF(AND(OR(Calculations!$E$2=\"Orkney Health Board\",Calculations!$E$2=\"Orkney Islands Local Authority\"),$F156=1),0,IF(AND(OR(Calculations!$E$2=\"Shetland Health Board\",Calculations!$E$2=\"Western Isles Health Board\",Calculations!$E$2=\"Shetland Islands Local Authority\",Calculations!$E$2=\"Eilean Siar Local Authority\"),OR($F156=1,$F156=5)),0,prem_mort(VALUE(LEFT(Options!$B$14,2)),$C156,$E156,$F156,2016,$I156/10,1,$H156/10,$G156*$H156/10,RateRatios_airpollution!$C156)*10))","v":{"$error":"#VALUE!"}},{"$f":"IF(AND(OR(Calculations!$E$2=\"Orkney Health Board\",Calculations!$E$2=\"Orkney Islands Local Authority\"),$F156=1),0,IF(AND(OR(Calculations!$E$2=\"Shetland Health Board\",Calculations!$E$2=\"Western Isles Health Board\",Calculations!$E$2=\"Shetland Islands Local Authority\",Calculations!$E$2=\"Eilean Siar Local Authority\"),OR($F156=1,$F156=5)),0,prem_mort(VALUE(LEFT(Options!$B$14,2)),$C156,$E156,$F156,2016,$I156/10+$J156/10,1,$H156/10,$G156*$H156/10,RateRatios_airpollution!$C156)*10))","v":{"$error":"#VALUE!"}},null,{"$f":"IF(AND(OR(Calculations!$E$2=\"Orkney Health Board\",Calculations!$E$2=\"Orkney Islands Local Authority\"),$F156=1),0,IF(AND(OR(Calculations!$E$2=\"Shetland Health Board\",Calculations!$E$2=\"Western Isles Health Board\",Calculations!$E$2=\"Shetland Islands Local Authority\",Calculations!$E$2=\"Eilean Siar Local Authority\"),OR($F156=1,$F156=5)),0,new_ci(VALUE(LEFT(Options!$B$14,2)),$C156,$E156,$F156,2016,$I156/10,1,$H156/10,$G156*$H156/10,RateRatios_airpollution!$E156)*10))","v":{"$error":"#VALUE!"}},{"$f":"IF(AND(OR(Calculations!$E$2=\"Orkney Health Board\",Calculations!$E$2=\"Orkney Islands Local Authority\"),$F156=1),0,IF(AND(OR(Calculations!$E$2=\"Shetland Health Board\",Calculations!$E$2=\"Western Isles Health Board\",Calculations!$E$2=\"Shetland Islands Local Authority\",Calculations!$E$2=\"Eilean Siar Local Authority\"),OR($F156=1,$F156=5)),0,new_ci(VALUE(LEFT(Options!$B$14,2)),$C156,$E156,$F156,2016,$I156/10+$J156/10,1,$H156/10,$G156*$H156/10,RateRatios_airpollution!$E156)*10))","v":{"$error":"#VALUE!"}},{"$f":"IF(AND(OR(Calculations!$E$2=\"Orkney Health Board\",Calculations!$E$2=\"Orkney Islands Local Authority\"),$F156=1),0,IF(AND(OR(Calculations!$E$2=\"Shetland Health Board\",Calculations!$E$2=\"Western Isles Health Board\",Calculations!$E$2=\"Shetland Islands Local Authority\",Calculations!$E$2=\"Eilean Siar Local Authority\"),OR($F156=1,$F156=5)),0,new_yllv2(VALUE(LEFT(Options!$B$14,2)),$C156,$D156,$E156,$F156,2016,$I156/10,1,$H156/10,$G156*$H156/10,RateRatios_airpollution!$E156)*10))","v":{"$error":"#VALUE!"}},{"$f":"IF(AND(OR(Calculations!$E$2=\"Orkney Health Board\",Calculations!$E$2=\"Orkney Islands Local Authority\"),$F156=1),0,IF(AND(OR(Calculations!$E$2=\"Shetland Health Board\",Calculations!$E$2=\"Western Isles Health Board\",Calculations!$E$2=\"Shetland Islands Local Authority\",Calculations!$E$2=\"Eilean Siar Local Authority\"),OR($F156=1,$F156=5)),0,new_yllv2(VALUE(LEFT(Options!$B$14,2)),$C156,$D156,$E156,$F156,2016,$I156/10+$J156/10,1,$H156/10,$G156*$H156/10,RateRatios_airpollution!$E156)*10))","v":{"$error":"#VALUE!"}},{"$f":"IF(AND(OR(Calculations!$E$2=\"Orkney Health Board\",Calculations!$E$2=\"Orkney Islands Local Authority\"),$F156=1),0,IF(AND(OR(Calculations!$E$2=\"Shetland Health Board\",Calculations!$E$2=\"Western Isles Health Board\",Calculations!$E$2=\"Shetland Islands Local Authority\",Calculations!$E$2=\"Eilean Siar Local Authority\"),OR($F156=1,$F156=5)),0,hosp_count(VALUE(LEFT(Options!$B$14,2)),$C156,$E156,$F156,2016,$I156/10,1,$H156/10,$G156*$H156/10, RateRatios_airpollution!$F156, RateRatios_airpollution!$E156)*10))","v":{"$error":"#VALUE!"}},{"$f":"IF(AND(OR(Calculations!$E$2=\"Orkney Health Board\",Calculations!$E$2=\"Orkney Islands Local Authority\"),$F156=1),0,IF(AND(OR(Calculations!$E$2=\"Shetland Health Board\",Calculations!$E$2=\"Western Isles Health Board\",Calculations!$E$2=\"Shetland Islands Local Authority\",Calculations!$E$2=\"Eilean Siar Local Authority\"),OR($F156=1,$F156=5)),0,hosp_count(VALUE(LEFT(Options!$B$14,2)),$C156,$E156,$F156,2016,$I156/10+$J156/10,1,$H156/10,$G156*$H156/10, RateRatios_airpollution!$F156, RateRatios_airpollution!$E156)*10))","v":{"$error":"#VALUE!"}},{"$f":"IF(AND(OR(Calculations!$E$2=\"Orkney Health Board\",Calculations!$E$2=\"Orkney Islands Local Authority\"),$F156=1),0,IF(AND(OR(Calculations!$E$2=\"Shetland Health Board\",Calculations!$E$2=\"Western Isles Health Board\",Calculations!$E$2=\"Shetland Islands Local Authority\",Calculations!$E$2=\"Eilean Siar Local Authority\"),OR($F156=1,$F156=5)),0,prem_mort(VALUE(LEFT(Options!$B$14,2)),$C156,$E156,$F156,2016,$I156/10,1,$H156/10,$G156*$H156/10,RateRatios_airpollution!$E156)*10))","v":{"$error":"#VALUE!"}},{"$f":"IF(AND(OR(Calculations!$E$2=\"Orkney Health Board\",Calculations!$E$2=\"Orkney Islands Local Authority\"),$F156=1),0,IF(AND(OR(Calculations!$E$2=\"Shetland Health Board\",Calculations!$E$2=\"Western Isles Health Board\",Calculations!$E$2=\"Shetland Islands Local Authority\",Calculations!$E$2=\"Eilean Siar Local Authority\"),OR($F156=1,$F156=5)),0,prem_mort(VALUE(LEFT(Options!$B$14,2)),$C156,$E156,$F156,2016,$I156/10+$J156/10,1,$H156/10,$G156*$H156/10,RateRatios_airpollution!$E156)*10))","v":{"$error":"#VALUE!"}},{"$error":"#VALUE!"},{"$error":"#VALUE!"},{"$error":"#VALUE!"},{"$error":"#VALUE!"},{"$error":"#VALUE!"},{"$error":"#VALUE!"},{"$error":"#VALUE!"},{"$error":"#VALUE!"},{"$error":"#VALUE!"},{"$error":"#VALUE!"},{"$error":"#VALUE!"},{"$error":"#VALUE!"},{"$error":"#VALUE!"},{"$error":"#VALUE!"},{"$error":"#VALUE!"},{"$error":"#VALUE!"},{"$error":"#VALUE!"},{"$error":"#VALUE!"},{"$error":"#VALUE!"},{"$error":"#VALUE!"},{"$f":"AW156*$BI156","v":{"$error":"#VALUE!"}},{"$f":"AX156*$BI156","v":{"$error":"#VALUE!"}},{"$f":"AY156*$BI156","v":{"$error":"#VALUE!"}},{"$f":"AZ156*$BI156","v":{"$error":"#VALUE!"}},5500]
[null,"Male 10-15",12.471144000000001,77.921140000000008,"male",3,1,{"$f":"HLOOKUP(Calculations!$E$2,'Population 2016'!$C$3:$BC$249,'Population 2016'!BD157,FALSE)","v":0},0,{"$f":"HLOOKUP(Calculations!$E$2,Pop2016_in_settlements!$C$3:$BC$249,Pop2016_in_settlements!$BD157,FALSE)","v":0},{"$f":"IF(AND(OR(Calculations!$E$2=\"Orkney Health Board\",Calculations!$E$2=\"Orkney Islands Local Authority\"),$F157=1),0,IF(AND(OR(Calculations!$E$2=\"Shetland Health Board\",Calculations!$E$2=\"Western Isles Health Board\",Calculations!$E$2=\"Shetland Islands Local Authority\",Calculations!$E$2=\"Eilean Siar Local Authority\"),OR($F157=1,$F157=5)),0,new_ci(VALUE(LEFT(Options!$B$14,2)),$C157,$E157,$F157,2016,$I157/10,1,$H157/10,$G157*$H157/10,RateRatios_accidents!$B$5)*10))","v":{"$error":"#VALUE!"}},{"$f":"IF(AND(OR(Calculations!$E$2=\"Orkney Health Board\",Calculations!$E$2=\"Orkney Islands Local Authority\"),$F157=1),0,IF(AND(OR(Calculations!$E$2=\"Shetland Health Board\",Calculations!$E$2=\"Western Isles Health Board\",Calculations!$E$2=\"Shetland Islands Local Authority\",Calculations!$E$2=\"Eilean Siar Local Authority\"),OR($F157=1,$F157=5)),0,new_ci(VALUE(LEFT(Options!$B$14,2)),$C157,$E157,$F157,2016,$I157/10+$J157/10,1,$H157/10,$G157*$H157/10,RateRatios_accidents!$B$5)*10))","v":{"$error":"#VALUE!"}},{"$f":"IF(AND(OR(Calculations!$E$2=\"Orkney Health Board\",Calculations!$E$2=\"Orkney Islands Local Authority\"),$F157=1),0,IF(AND(OR(Calculations!$E$2=\"Shetland Health Board\",Calculations!$E$2=\"Western Isles Health Board\",Calculations!$E$2=\"Shetland Islands Local Authority\",Calculations!$E$2=\"Eilean Siar Local Authority\"),OR($F157=1,$F157=5)),0,new_yllv2(VALUE(LEFT(Options!$B$14,2)),$C157,$D157,$E157,$F157,2016,$I157/10,1,$H157/10,$G157*$H157/10,RateRatios_accidents!$B$5)*10))","v":{"$error":"#VALUE!"}},{"$f":"IF(AND(OR(Calculations!$E$2=\"Orkney Health Board\",Calculations!$E$2=\"Orkney Islands Local Authority\"),$F157=1),0,IF(AND(OR(Calculations!$E$2=\"Shetland Health Board\",Calculations!$E$2=\"Western Isles Health Board\",Calculations!$E$2=\"Shetland Islands Local Authority\",Calculations!$E$2=\"Eilean Siar Local Authority\"),OR($F157=1,$F157=5)),0,new_yllv2(VALUE(LEFT(Options!$B$14,2)),$C157,$D157,$E157,$F157,2016,$I157/10+$J157/10,1,$H157/10,$G157*$H157/10,RateRatios_accidents!$B$5)*10))","v":{"$error":"#VALUE!"}},{"$f":"IF(AND(OR(Calculations!$E$2=\"Orkney Health Board\",Calculations!$E$2=\"Orkney Islands Local Authority\"),$F157=1),0,IF(AND(OR(Calculations!$E$2=\"Shetland Health Board\",Calculations!$E$2=\"Western Isles Health Board\",Calculations!$E$2=\"Shetland Islands Local Authority\",Calculations!$E$2=\"Eilean Siar Local Authority\"),OR($F157=1,$F157=5)),0,hosp_count(VALUE(LEFT(Options!$B$14,2)),$C157,$E157,$F157,2016,$I157/10,1,$H157/10,$G157*$H157/10, RateRatios_accidents!$B$4, RateRatios_accidents!$B$5)*10))","v":{"$error":"#VALUE!"}},{"$f":"IF(AND(OR(Calculations!$E$2=\"Orkney Health Board\",Calculations!$E$2=\"Orkney Islands Local Authority\"),$F157=1),0,IF(AND(OR(Calculations!$E$2=\"Shetland Health Board\",Calculations!$E$2=\"Western Isles Health Board\",Calculations!$E$2=\"Shetland Islands Local Authority\",Calculations!$E$2=\"Eilean Siar Local Authority\"),OR($F157=1,$F157=5)),0,hosp_count(VALUE(LEFT(Options!$B$14,2)),$C157,$E157,$F157,2016,$I157/10+$J157/10,1,$H157/10,$G157*$H157/10, RateRatios_accidents!$B$4, RateRatios_accidents!$B$5)*10))","v":{"$error":"#VALUE!"}},{"$f":"IF(AND(OR(Calculations!$E$2=\"Orkney Health Board\",Calculations!$E$2=\"Orkney Islands Local Authority\"),$F157=1),0,IF(AND(OR(Calculations!$E$2=\"Shetland Health Board\",Calculations!$E$2=\"Western Isles Health Board\",Calculations!$E$2=\"Shetland Islands Local Authority\",Calculations!$E$2=\"Eilean Siar Local Authority\"),OR($F157=1,$F157=5)),0,prem_mort(VALUE(LEFT(Options!$B$14,2)),$C157,$E157,$F157,2016,$I157/10,1,$H157/10,$G157*$H157/10,RateRatios_accidents!$B$5)*10))","v":{"$error":"#VALUE!"}},{"$f":"IF(AND(OR(Calculations!$E$2=\"Orkney Health Board\",Calculations!$E$2=\"Orkney Islands Local Authority\"),$F157=1),0,IF(AND(OR(Calculations!$E$2=\"Shetland Health Board\",Calculations!$E$2=\"Western Isles Health Board\",Calculations!$E$2=\"Shetland Islands Local Authority\",Calculations!$E$2=\"Eilean Siar Local Authority\"),OR($F157=1,$F157=5)),0,prem_mort(VALUE(LEFT(Options!$B$14,2)),$C157,$E157,$F157,2016,$I157/10+$J157/10,1,$H157/10,$G157*$H157/10,RateRatios_accidents!$B$5)*10))","v":{"$error":"#VALUE!"}},null,{"$f":"IF(AND(OR(Calculations!$E$2=\"Orkney Health Board\",Calculations!$E$2=\"Orkney Islands Local Authority\"),$F157=1),0,IF(AND(OR(Calculations!$E$2=\"Shetland Health Board\",Calculations!$E$2=\"Western Isles Health Board\",Calculations!$E$2=\"Shetland Islands Local Authority\",Calculations!$E$2=\"Eilean Siar Local Authority\"),OR($F157=1,$F157=5)),0,new_ci(VALUE(LEFT(Options!$B$14,2)),$C157,$E157,$F157,2016,$I157/10,1,$H157/10,$G157*$H157/10,RateRatios_airpollution!$C157)*10))","v":{"$error":"#VALUE!"}},{"$f":"IF(AND(OR(Calculations!$E$2=\"Orkney Health Board\",Calculations!$E$2=\"Orkney Islands Local Authority\"),$F157=1),0,IF(AND(OR(Calculations!$E$2=\"Shetland Health Board\",Calculations!$E$2=\"Western Isles Health Board\",Calculations!$E$2=\"Shetland Islands Local Authority\",Calculations!$E$2=\"Eilean Siar Local Authority\"),OR($F157=1,$F157=5)),0,new_ci(VALUE(LEFT(Options!$B$14,2)),$C157,$E157,$F157,2016,$I157/10+$J157/10,1,$H157/10,$G157*$H157/10,RateRatios_airpollution!$C157)*10))","v":{"$error":"#VALUE!"}},{"$f":"IF(AND(OR(Calculations!$E$2=\"Orkney Health Board\",Calculations!$E$2=\"Orkney Islands Local Authority\"),$F157=1),0,IF(AND(OR(Calculations!$E$2=\"Shetland Health Board\",Calculations!$E$2=\"Western Isles Health Board\",Calculations!$E$2=\"Shetland Islands Local Authority\",Calculations!$E$2=\"Eilean Siar Local Authority\"),OR($F157=1,$F157=5)),0,new_yllv2(VALUE(LEFT(Options!$B$14,2)),$C157,$D157,$E157,$F157,2016,$I157/10,1,$H157/10,$G157*$H157/10,RateRatios_airpollution!$C157)*10))","v":{"$error":"#VALUE!"}},{"$f":"IF(AND(OR(Calculations!$E$2=\"Orkney Health Board\",Calculations!$E$2=\"Orkney Islands Local Authority\"),$F157=1),0,IF(AND(OR(Calculations!$E$2=\"Shetland Health Board\",Calculations!$E$2=\"Western Isles Health Board\",Calculations!$E$2=\"Shetland Islands Local Authority\",Calculations!$E$2=\"Eilean Siar Local Authority\"),OR($F157=1,$F157=5)),0,new_yllv2(VALUE(LEFT(Options!$B$14,2)),$C157,$D157,$E157,$F157,2016,$I157/10+$J157/10,1,$H157/10,$G157*$H157/10,RateRatios_airpollution!$C157)*10))","v":{"$error":"#VALUE!"}},{"$f":"IF(AND(OR(Calculations!$E$2=\"Orkney Health Board\",Calculations!$E$2=\"Orkney Islands Local Authority\"),$F157=1),0,IF(AND(OR(Calculations!$E$2=\"Shetland Health Board\",Calculations!$E$2=\"Western Isles Health Board\",Calculations!$E$2=\"Shetland Islands Local Authority\",Calculations!$E$2=\"Eilean Siar Local Authority\"),OR($F157=1,$F157=5)),0,hosp_count(VALUE(LEFT(Options!$B$14,2)),$C157,$E157,$F157,2016,$I157/10,1,$H157/10,$G157*$H157/10, RateRatios_airpollution!$D157, RateRatios_airpollution!$C157)*10))","v":{"$error":"#VALUE!"}},{"$f":"IF(AND(OR(Calculations!$E$2=\"Orkney Health Board\",Calculations!$E$2=\"Orkney Islands Local Authority\"),$F157=1),0,IF(AND(OR(Calculations!$E$2=\"Shetland Health Board\",Calculations!$E$2=\"Western Isles Health Board\",Calculations!$E$2=\"Shetland Islands Local Authority\",Calculations!$E$2=\"Eilean Siar Local Authority\"),OR($F157=1,$F157=5)),0,hosp_count(VALUE(LEFT(Options!$B$14,2)),$C157,$E157,$F157,2016,$I157/10+$J157/10,1,$H157/10,$G157*$H157/10, RateRatios_airpollution!$D157, RateRatios_airpollution!$C157)*10))","v":{"$error":"#VALUE!"}},{"$f":"IF(AND(OR(Calculations!$E$2=\"Orkney Health Board\",Calculations!$E$2=\"Orkney Islands Local Authority\"),$F157=1),0,IF(AND(OR(Calculations!$E$2=\"Shetland Health Board\",Calculations!$E$2=\"Western Isles Health Board\",Calculations!$E$2=\"Shetland Islands Local Authority\",Calculations!$E$2=\"Eilean Siar Local Authority\"),OR($F157=1,$F157=5)),0,prem_mort(VALUE(LEFT(Options!$B$14,2)),$C157,$E157,$F157,2016,$I157/10,1,$H157/10,$G157*$H157/10,RateRatios_airpollution!$C157)*10))","v":{"$error":"#VALUE!"}},{"$f":"IF(AND(OR(Calculations!$E$2=\"Orkney Health Board\",Calculations!$E$2=\"Orkney Islands Local Authority\"),$F157=1),0,IF(AND(OR(Calculations!$E$2=\"Shetland Health Board\",Calculations!$E$2=\"Western Isles Health Board\",Calculations!$E$2=\"Shetland Islands Local Authority\",Calculations!$E$2=\"Eilean Siar Local Authority\"),OR($F157=1,$F157=5)),0,prem_mort(VALUE(LEFT(Options!$B$14,2)),$C157,$E157,$F157,2016,$I157/10+$J157/10,1,$H157/10,$G157*$H157/10,RateRatios_airpollution!$C157)*10))","v":{"$error":"#VALUE!"}},null,{"$f":"IF(AND(OR(Calculations!$E$2=\"Orkney Health Board\",Calculations!$E$2=\"Orkney Islands Local Authority\"),$F157=1),0,IF(AND(OR(Calculations!$E$2=\"Shetland Health Board\",Calculations!$E$2=\"Western Isles Health Board\",Calculations!$E$2=\"Shetland Islands Local Authority\",Calculations!$E$2=\"Eilean Siar Local Authority\"),OR($F157=1,$F157=5)),0,new_ci(VALUE(LEFT(Options!$B$14,2)),$C157,$E157,$F157,2016,$I157/10,1,$H157/10,$G157*$H157/10,RateRatios_airpollution!$E157)*10))","v":{"$error":"#VALUE!"}},{"$f":"IF(AND(OR(Calculations!$E$2=\"Orkney Health Board\",Calculations!$E$2=\"Orkney Islands Local Authority\"),$F157=1),0,IF(AND(OR(Calculations!$E$2=\"Shetland Health Board\",Calculations!$E$2=\"Western Isles Health Board\",Calculations!$E$2=\"Shetland Islands Local Authority\",Calculations!$E$2=\"Eilean Siar Local Authority\"),OR($F157=1,$F157=5)),0,new_ci(VALUE(LEFT(Options!$B$14,2)),$C157,$E157,$F157,2016,$I157/10+$J157/10,1,$H157/10,$G157*$H157/10,RateRatios_airpollution!$E157)*10))","v":{"$error":"#VALUE!"}},{"$f":"IF(AND(OR(Calculations!$E$2=\"Orkney Health Board\",Calculations!$E$2=\"Orkney Islands Local Authority\"),$F157=1),0,IF(AND(OR(Calculations!$E$2=\"Shetland Health Board\",Calculations!$E$2=\"Western Isles Health Board\",Calculations!$E$2=\"Shetland Islands Local Authority\",Calculations!$E$2=\"Eilean Siar Local Authority\"),OR($F157=1,$F157=5)),0,new_yllv2(VALUE(LEFT(Options!$B$14,2)),$C157,$D157,$E157,$F157,2016,$I157/10,1,$H157/10,$G157*$H157/10,RateRatios_airpollution!$E157)*10))","v":{"$error":"#VALUE!"}},{"$f":"IF(AND(OR(Calculations!$E$2=\"Orkney Health Board\",Calculations!$E$2=\"Orkney Islands Local Authority\"),$F157=1),0,IF(AND(OR(Calculations!$E$2=\"Shetland Health Board\",Calculations!$E$2=\"Western Isles Health Board\",Calculations!$E$2=\"Shetland Islands Local Authority\",Calculations!$E$2=\"Eilean Siar Local Authority\"),OR($F157=1,$F157=5)),0,new_yllv2(VALUE(LEFT(Options!$B$14,2)),$C157,$D157,$E157,$F157,2016,$I157/10+$J157/10,1,$H157/10,$G157*$H157/10,RateRatios_airpollution!$E157)*10))","v":{"$error":"#VALUE!"}},{"$f":"IF(AND(OR(Calculations!$E$2=\"Orkney Health Board\",Calculations!$E$2=\"Orkney Islands Local Authority\"),$F157=1),0,IF(AND(OR(Calculations!$E$2=\"Shetland Health Board\",Calculations!$E$2=\"Western Isles Health Board\",Calculations!$E$2=\"Shetland Islands Local Authority\",Calculations!$E$2=\"Eilean Siar Local Authority\"),OR($F157=1,$F157=5)),0,hosp_count(VALUE(LEFT(Options!$B$14,2)),$C157,$E157,$F157,2016,$I157/10,1,$H157/10,$G157*$H157/10, RateRatios_airpollution!$F157, RateRatios_airpollution!$E157)*10))","v":{"$error":"#VALUE!"}},{"$f":"IF(AND(OR(Calculations!$E$2=\"Orkney Health Board\",Calculations!$E$2=\"Orkney Islands Local Authority\"),$F157=1),0,IF(AND(OR(Calculations!$E$2=\"Shetland Health Board\",Calculations!$E$2=\"Western Isles Health Board\",Calculations!$E$2=\"Shetland Islands Local Authority\",Calculations!$E$2=\"Eilean Siar Local Authority\"),OR($F157=1,$F157=5)),0,hosp_count(VALUE(LEFT(Options!$B$14,2)),$C157,$E157,$F157,2016,$I157/10+$J157/10,1,$H157/10,$G157*$H157/10, RateRatios_airpollution!$F157, RateRatios_airpollution!$E157)*10))","v":{"$error":"#VALUE!"}},{"$f":"IF(AND(OR(Calculations!$E$2=\"Orkney Health Board\",Calculations!$E$2=\"Orkney Islands Local Authority\"),$F157=1),0,IF(AND(OR(Calculations!$E$2=\"Shetland Health Board\",Calculations!$E$2=\"Western Isles Health Board\",Calculations!$E$2=\"Shetland Islands Local Authority\",Calculations!$E$2=\"Eilean Siar Local Authority\"),OR($F157=1,$F157=5)),0,prem_mort(VALUE(LEFT(Options!$B$14,2)),$C157,$E157,$F157,2016,$I157/10,1,$H157/10,$G157*$H157/10,RateRatios_airpollution!$E157)*10))","v":{"$error":"#VALUE!"}},{"$f":"IF(AND(OR(Calculations!$E$2=\"Orkney Health Board\",Calculations!$E$2=\"Orkney Islands Local Authority\"),$F157=1),0,IF(AND(OR(Calculations!$E$2=\"Shetland Health Board\",Calculations!$E$2=\"Western Isles Health Board\",Calculations!$E$2=\"Shetland Islands Local Authority\",Calculations!$E$2=\"Eilean Siar Local Authority\"),OR($F157=1,$F157=5)),0,prem_mort(VALUE(LEFT(Options!$B$14,2)),$C157,$E157,$F157,2016,$I157/10+$J157/10,1,$H157/10,$G157*$H157/10,RateRatios_airpollution!$E157)*10))","v":{"$error":"#VALUE!"}},{"$error":"#VALUE!"},{"$error":"#VALUE!"},{"$error":"#VALUE!"},{"$error":"#VALUE!"},{"$error":"#VALUE!"},{"$error":"#VALUE!"},{"$error":"#VALUE!"},{"$error":"#VALUE!"},{"$error":"#VALUE!"},{"$error":"#VALUE!"},{"$error":"#VALUE!"},{"$error":"#VALUE!"},{"$error":"#VALUE!"},{"$error":"#VALUE!"},{"$error":"#VALUE!"},{"$error":"#VALUE!"},{"$error":"#VALUE!"},{"$error":"#VALUE!"},{"$error":"#VALUE!"},{"$error":"#VALUE!"},{"$error":"#VALUE!"},{"$error":"#VALUE!"},{"$error":"#VALUE!"},{"$error":"#VALUE!"},6600]
[null,"Male 16-19",17.556318000000001,77.07632000000001,"male",3,1,{"$f":"HLOOKUP(Calculations!$E$2,'Population 2016'!$C$3:$BC$249,'Population 2016'!BD158,FALSE)","v":23727},0,{"$f":"HLOOKUP(Calculations!$E$2,Pop2016_in_settlements!$C$3:$BC$249,Pop2016_in_settlements!$BD158,FALSE)","v":11071},{"$f":"IF(AND(OR(Calculations!$E$2=\"Orkney Health Board\",Calculations!$E$2=\"Orkney Islands Local Authority\"),$F158=1),0,IF(AND(OR(Calculations!$E$2=\"Shetland Health Board\",Calculations!$E$2=\"Western Isles Health Board\",Calculations!$E$2=\"Shetland Islands Local Authority\",Calculations!$E$2=\"Eilean Siar Local Authority\"),OR($F158=1,$F158=5)),0,new_ci(VALUE(LEFT(Options!$B$14,2)),$C158,$E158,$F158,2016,$I158/10,1,$H158/10,$G158*$H158/10,RateRatios_accidents!$B$5)*10))","v":10.154961439000001},{"$f":"IF(AND(OR(Calculations!$E$2=\"Orkney Health Board\",Calculations!$E$2=\"Orkney Islands Local Authority\"),$F158=1),0,IF(AND(OR(Calculations!$E$2=\"Shetland Health Board\",Calculations!$E$2=\"Western Isles Health Board\",Calculations!$E$2=\"Shetland Islands Local Authority\",Calculations!$E$2=\"Eilean Siar Local Authority\"),OR($F158=1,$F158=5)),0,new_ci(VALUE(LEFT(Options!$B$14,2)),$C158,$E158,$F158,2016,$I158/10+$J158/10,1,$H158/10,$G158*$H158/10,RateRatios_accidents!$B$5)*10))","v":10.15306719},{"$f":"IF(AND(OR(Calculations!$E$2=\"Orkney Health Board\",Calculations!$E$2=\"Orkney Islands Local Authority\"),$F158=1),0,IF(AND(OR(Calculations!$E$2=\"Shetland Health Board\",Calculations!$E$2=\"Western Isles Health Board\",Calculations!$E$2=\"Shetland Islands Local Authority\",Calculations!$E$2=\"Eilean Siar Local Authority\"),OR($F158=1,$F158=5)),0,new_yllv2(VALUE(LEFT(Options!$B$14,2)),$C158,$D158,$E158,$F158,2016,$I158/10,1,$H158/10,$G158*$H158/10,RateRatios_accidents!$B$5)*10))","v":594.26836372000002},{"$f":"IF(AND(OR(Calculations!$E$2=\"Orkney Health Board\",Calculations!$E$2=\"Orkney Islands Local Authority\"),$F158=1),0,IF(AND(OR(Calculations!$E$2=\"Shetland Health Board\",Calculations!$E$2=\"Western Isles Health Board\",Calculations!$E$2=\"Shetland Islands Local Authority\",Calculations!$E$2=\"Eilean Siar Local Authority\"),OR($F158=1,$F158=5)),0,new_yllv2(VALUE(LEFT(Options!$B$14,2)),$C158,$D158,$E158,$F158,2016,$I158/10+$J158/10,1,$H158/10,$G158*$H158/10,RateRatios_accidents!$B$5)*10))","v":594.15751226500004},{"$f":"IF(AND(OR(Calculations!$E$2=\"Orkney Health Board\",Calculations!$E$2=\"Orkney Islands Local Authority\"),$F158=1),0,IF(AND(OR(Calculations!$E$2=\"Shetland Health Board\",Calculations!$E$2=\"Western Isles Health Board\",Calculations!$E$2=\"Shetland Islands Local Authority\",Calculations!$E$2=\"Eilean Siar Local Authority\"),OR($F158=1,$F158=5)),0,hosp_count(VALUE(LEFT(Options!$B$14,2)),$C158,$E158,$F158,2016,$I158/10,1,$H158/10,$G158*$H158/10, RateRatios_accidents!$B$4, RateRatios_accidents!$B$5)*10))","v":1609.233763229},{"$f":"IF(AND(OR(Calculations!$E$2=\"Orkney Health Board\",Calculations!$E$2=\"Orkney Islands Local Authority\"),$F158=1),0,IF(AND(OR(Calculations!$E$2=\"Shetland Health Board\",Calculations!$E$2=\"Western Isles Health Board\",Calculations!$E$2=\"Shetland Islands Local Authority\",Calculations!$E$2=\"Eilean Siar Local Authority\"),OR($F158=1,$F158=5)),0,hosp_count(VALUE(LEFT(Options!$B$14,2)),$C158,$E158,$F158,2016,$I158/10+$J158/10,1,$H158/10,$G158*$H158/10, RateRatios_accidents!$B$4, RateRatios_accidents!$B$5)*10))","v":1608.933415856},{"$f":"IF(AND(OR(Calculations!$E$2=\"Orkney Health Board\",Calculations!$E$2=\"Orkney Islands Local Authority\"),$F158=1),0,IF(AND(OR(Calculations!$E$2=\"Shetland Health Board\",Calculations!$E$2=\"Western Isles Health Board\",Calculations!$E$2=\"Shetland Islands Local Authority\",Calculations!$E$2=\"Eilean Siar Local Authority\"),OR($F158=1,$F158=5)),0,prem_mort(VALUE(LEFT(Options!$B$14,2)),$C158,$E158,$F158,2016,$I158/10,1,$H158/10,$G158*$H158/10,RateRatios_accidents!$B$5)*10))","v":10.154961439000001},{"$f":"IF(AND(OR(Calculations!$E$2=\"Orkney Health Board\",Calculations!$E$2=\"Orkney Islands Local Authority\"),$F158=1),0,IF(AND(OR(Calculations!$E$2=\"Shetland Health Board\",Calculations!$E$2=\"Western Isles Health Board\",Calculations!$E$2=\"Shetland Islands Local Authority\",Calculations!$E$2=\"Eilean Siar Local Authority\"),OR($F158=1,$F158=5)),0,prem_mort(VALUE(LEFT(Options!$B$14,2)),$C158,$E158,$F158,2016,$I158/10+$J158/10,1,$H158/10,$G158*$H158/10,RateRatios_accidents!$B$5)*10))","v":10.15306719},null,{"$f":"IF(AND(OR(Calculations!$E$2=\"Orkney Health Board\",Calculations!$E$2=\"Orkney Islands Local Authority\"),$F158=1),0,IF(AND(OR(Calculations!$E$2=\"Shetland Health Board\",Calculations!$E$2=\"Western Isles Health Board\",Calculations!$E$2=\"Shetland Islands Local Authority\",Calculations!$E$2=\"Eilean Siar Local Authority\"),OR($F158=1,$F158=5)),0,new_ci(VALUE(LEFT(Options!$B$14,2)),$C158,$E158,$F158,2016,$I158/10,1,$H158/10,$G158*$H158/10,RateRatios_airpollution!$C158)*10))","v":10.154961439000001},{"$f":"IF(AND(OR(Calculations!$E$2=\"Orkney Health Board\",Calculations!$E$2=\"Orkney Islands Local Authority\"),$F158=1),0,IF(AND(OR(Calculations!$E$2=\"Shetland Health Board\",Calculations!$E$2=\"Western Isles Health Board\",Calculations!$E$2=\"Shetland Islands Local Authority\",Calculations!$E$2=\"Eilean Siar Local Authority\"),OR($F158=1,$F158=5)),0,new_ci(VALUE(LEFT(Options!$B$14,2)),$C158,$E158,$F158,2016,$I158/10+$J158/10,1,$H158/10,$G158*$H158/10,RateRatios_airpollution!$C158)*10))","v":10.154846299999999},{"$f":"IF(AND(OR(Calculations!$E$2=\"Orkney Health Board\",Calculations!$E$2=\"Orkney Islands Local Authority\"),$F158=1),0,IF(AND(OR(Calculations!$E$2=\"Shetland Health Board\",Calculations!$E$2=\"Western Isles Health Board\",Calculations!$E$2=\"Shetland Islands Local Authority\",Calculations!$E$2=\"Eilean Siar Local Authority\"),OR($F158=1,$F158=5)),0,new_yllv2(VALUE(LEFT(Options!$B$14,2)),$C158,$D158,$E158,$F158,2016,$I158/10,1,$H158/10,$G158*$H158/10,RateRatios_airpollution!$C158)*10))","v":594.26836372000002},{"$f":"IF(AND(OR(Calculations!$E$2=\"Orkney Health Board\",Calculations!$E$2=\"Orkney Islands Local Authority\"),$F158=1),0,IF(AND(OR(Calculations!$E$2=\"Shetland Health Board\",Calculations!$E$2=\"Western Isles Health Board\",Calculations!$E$2=\"Shetland Islands Local Authority\",Calculations!$E$2=\"Eilean Siar Local Authority\"),OR($F158=1,$F158=5)),0,new_yllv2(VALUE(LEFT(Options!$B$14,2)),$C158,$D158,$E158,$F158,2016,$I158/10+$J158/10,1,$H158/10,$G158*$H158/10,RateRatios_airpollution!$C158)*10))","v":594.26162578599997},{"$f":"IF(AND(OR(Calculations!$E$2=\"Orkney Health Board\",Calculations!$E$2=\"Orkney Islands Local Authority\"),$F158=1),0,IF(AND(OR(Calculations!$E$2=\"Shetland Health Board\",Calculations!$E$2=\"Western Isles Health Board\",Calculations!$E$2=\"Shetland Islands Local Authority\",Calculations!$E$2=\"Eilean Siar Local Authority\"),OR($F158=1,$F158=5)),0,hosp_count(VALUE(LEFT(Options!$B$14,2)),$C158,$E158,$F158,2016,$I158/10,1,$H158/10,$G158*$H158/10, RateRatios_airpollution!$D158, RateRatios_airpollution!$C158)*10))","v":1609.233763229},{"$f":"IF(AND(OR(Calculations!$E$2=\"Orkney Health Board\",Calculations!$E$2=\"Orkney Islands Local Authority\"),$F158=1),0,IF(AND(OR(Calculations!$E$2=\"Shetland Health Board\",Calculations!$E$2=\"Western Isles Health Board\",Calculations!$E$2=\"Shetland Islands Local Authority\",Calculations!$E$2=\"Eilean Siar Local Authority\"),OR($F158=1,$F158=5)),0,hosp_count(VALUE(LEFT(Options!$B$14,2)),$C158,$E158,$F158,2016,$I158/10+$J158/10,1,$H158/10,$G158*$H158/10, RateRatios_airpollution!$D158, RateRatios_airpollution!$C158)*10))","v":1609.1994088089998},{"$f":"IF(AND(OR(Calculations!$E$2=\"Orkney Health Board\",Calculations!$E$2=\"Orkney Islands Local Authority\"),$F158=1),0,IF(AND(OR(Calculations!$E$2=\"Shetland Health Board\",Calculations!$E$2=\"Western Isles Health Board\",Calculations!$E$2=\"Shetland Islands Local Authority\",Calculations!$E$2=\"Eilean Siar Local Authority\"),OR($F158=1,$F158=5)),0,prem_mort(VALUE(LEFT(Options!$B$14,2)),$C158,$E158,$F158,2016,$I158/10,1,$H158/10,$G158*$H158/10,RateRatios_airpollution!$C158)*10))","v":10.154961439000001},{"$f":"IF(AND(OR(Calculations!$E$2=\"Orkney Health Board\",Calculations!$E$2=\"Orkney Islands Local Authority\"),$F158=1),0,IF(AND(OR(Calculations!$E$2=\"Shetland Health Board\",Calculations!$E$2=\"Western Isles Health Board\",Calculations!$E$2=\"Shetland Islands Local Authority\",Calculations!$E$2=\"Eilean Siar Local Authority\"),OR($F158=1,$F158=5)),0,prem_mort(VALUE(LEFT(Options!$B$14,2)),$C158,$E158,$F158,2016,$I158/10+$J158/10,1,$H158/10,$G158*$H158/10,RateRatios_airpollution!$C158)*10))","v":10.154846299999999},null,{"$f":"IF(AND(OR(Calculations!$E$2=\"Orkney Health Board\",Calculations!$E$2=\"Orkney Islands Local Authority\"),$F158=1),0,IF(AND(OR(Calculations!$E$2=\"Shetland Health Board\",Calculations!$E$2=\"Western Isles Health Board\",Calculations!$E$2=\"Shetland Islands Local Authority\",Calculations!$E$2=\"Eilean Siar Local Authority\"),OR($F158=1,$F158=5)),0,new_ci(VALUE(LEFT(Options!$B$14,2)),$C158,$E158,$F158,2016,$I158/10,1,$H158/10,$G158*$H158/10,RateRatios_airpollution!$E158)*10))","v":10.154961439000001},{"$f":"IF(AND(OR(Calculations!$E$2=\"Orkney Health Board\",Calculations!$E$2=\"Orkney Islands Local Authority\"),$F158=1),0,IF(AND(OR(Calculations!$E$2=\"Shetland Health Board\",Calculations!$E$2=\"Western Isles Health Board\",Calculations!$E$2=\"Shetland Islands Local Authority\",Calculations!$E$2=\"Eilean Siar Local Authority\"),OR($F158=1,$F158=5)),0,new_ci(VALUE(LEFT(Options!$B$14,2)),$C158,$E158,$F158,2016,$I158/10+$J158/10,1,$H158/10,$G158*$H158/10,RateRatios_airpollution!$E158)*10))","v":10.154914939999999},{"$f":"IF(AND(OR(Calculations!$E$2=\"Orkney Health Board\",Calculations!$E$2=\"Orkney Islands Local Authority\"),$F158=1),0,IF(AND(OR(Calculations!$E$2=\"Shetland Health Board\",Calculations!$E$2=\"Western Isles Health Board\",Calculations!$E$2=\"Shetland Islands Local Authority\",Calculations!$E$2=\"Eilean Siar Local Authority\"),OR($F158=1,$F158=5)),0,new_yllv2(VALUE(LEFT(Options!$B$14,2)),$C158,$D158,$E158,$F158,2016,$I158/10,1,$H158/10,$G158*$H158/10,RateRatios_airpollution!$E158)*10))","v":594.26836372000002},{"$f":"IF(AND(OR(Calculations!$E$2=\"Orkney Health Board\",Calculations!$E$2=\"Orkney Islands Local Authority\"),$F158=1),0,IF(AND(OR(Calculations!$E$2=\"Shetland Health Board\",Calculations!$E$2=\"Western Isles Health Board\",Calculations!$E$2=\"Shetland Islands Local Authority\",Calculations!$E$2=\"Eilean Siar Local Authority\"),OR($F158=1,$F158=5)),0,new_yllv2(VALUE(LEFT(Options!$B$14,2)),$C158,$D158,$E158,$F158,2016,$I158/10+$J158/10,1,$H158/10,$G158*$H158/10,RateRatios_airpollution!$E158)*10))","v":594.26564259899999},{"$f":"IF(AND(OR(Calculations!$E$2=\"Orkney Health Board\",Calculations!$E$2=\"Orkney Islands Local Authority\"),$F158=1),0,IF(AND(OR(Calculations!$E$2=\"Shetland Health Board\",Calculations!$E$2=\"Western Isles Health Board\",Calculations!$E$2=\"Shetland Islands Local Authority\",Calculations!$E$2=\"Eilean Siar Local Authority\"),OR($F158=1,$F158=5)),0,hosp_count(VALUE(LEFT(Options!$B$14,2)),$C158,$E158,$F158,2016,$I158/10,1,$H158/10,$G158*$H158/10, RateRatios_airpollution!$F158, RateRatios_airpollution!$E158)*10))","v":1609.233763229},{"$f":"IF(AND(OR(Calculations!$E$2=\"Orkney Health Board\",Calculations!$E$2=\"Orkney Islands Local Authority\"),$F158=1),0,IF(AND(OR(Calculations!$E$2=\"Shetland Health Board\",Calculations!$E$2=\"Western Isles Health Board\",Calculations!$E$2=\"Shetland Islands Local Authority\",Calculations!$E$2=\"Eilean Siar Local Authority\"),OR($F158=1,$F158=5)),0,hosp_count(VALUE(LEFT(Options!$B$14,2)),$C158,$E158,$F158,2016,$I158/10+$J158/10,1,$H158/10,$G158*$H158/10, RateRatios_airpollution!$F158, RateRatios_airpollution!$E158)*10))","v":1609.233763229},{"$f":"IF(AND(OR(Calculations!$E$2=\"Orkney Health Board\",Calculations!$E$2=\"Orkney Islands Local Authority\"),$F158=1),0,IF(AND(OR(Calculations!$E$2=\"Shetland Health Board\",Calculations!$E$2=\"Western Isles Health Board\",Calculations!$E$2=\"Shetland Islands Local Authority\",Calculations!$E$2=\"Eilean Siar Local Authority\"),OR($F158=1,$F158=5)),0,prem_mort(VALUE(LEFT(Options!$B$14,2)),$C158,$E158,$F158,2016,$I158/10,1,$H158/10,$G158*$H158/10,RateRatios_airpollution!$E158)*10))","v":10.154961439000001},{"$f":"IF(AND(OR(Calculations!$E$2=\"Orkney Health Board\",Calculations!$E$2=\"Orkney Islands Local Authority\"),$F158=1),0,IF(AND(OR(Calculations!$E$2=\"Shetland Health Board\",Calculations!$E$2=\"Western Isles Health Board\",Calculations!$E$2=\"Shetland Islands Local Authority\",Calculations!$E$2=\"Eilean Siar Local Authority\"),OR($F158=1,$F158=5)),0,prem_mort(VALUE(LEFT(Options!$B$14,2)),$C158,$E158,$F158,2016,$I158/10+$J158/10,1,$H158/10,$G158*$H158/10,RateRatios_airpollution!$E158)*10))","v":10.154914939999999},10.154961439000001,10.152905551999996,594.26836372000002,594.14805320999994,1609.233763229,1608.8990614359998,10.154961439000001,10.152905551999996,42.799180001685848,42.790515244236509,2504.6080992961606,2504.1010376785939,6782.2892199983144,6780.8785832005724,42.799180001685848,42.790515244236509,188316.39200741774,188278.26707464064,11020275.636903107,11018044.565785814,29842072.567992583,29835865.766082518,188316.39200741774,188278.26707464064,4400]
[null,"Male 20-24",22.054632000000002,77.704629999999995,"male",3,1,{"$f":"HLOOKUP(Calculations!$E$2,'Population 2016'!$C$3:$BC$249,'Population 2016'!BD159,FALSE)","v":35247},0,{"$f":"HLOOKUP(Calculations!$E$2,Pop2016_in_settlements!$C$3:$BC$249,Pop2016_in_settlements!$BD159,FALSE)","v":17681},{"$f":"IF(AND(OR(Calculations!$E$2=\"Orkney Health Board\",Calculations!$E$2=\"Orkney Islands Local Authority\"),$F159=1),0,IF(AND(OR(Calculations!$E$2=\"Shetland Health Board\",Calculations!$E$2=\"Western Isles Health Board\",Calculations!$E$2=\"Shetland Islands Local Authority\",Calculations!$E$2=\"Eilean Siar Local Authority\"),OR($F159=1,$F159=5)),0,new_ci(VALUE(LEFT(Options!$B$14,2)),$C159,$E159,$F159,2016,$I159/10,1,$H159/10,$G159*$H159/10,RateRatios_accidents!$B$5)*10))","v":21.184187186999999},{"$f":"IF(AND(OR(Calculations!$E$2=\"Orkney Health Board\",Calculations!$E$2=\"Orkney Islands Local Authority\"),$F159=1),0,IF(AND(OR(Calculations!$E$2=\"Shetland Health Board\",Calculations!$E$2=\"Western Isles Health Board\",Calculations!$E$2=\"Shetland Islands Local Authority\",Calculations!$E$2=\"Eilean Siar Local Authority\"),OR($F159=1,$F159=5)),0,new_ci(VALUE(LEFT(Options!$B$14,2)),$C159,$E159,$F159,2016,$I159/10+$J159/10,1,$H159/10,$G159*$H159/10,RateRatios_accidents!$B$5)*10))","v":21.179938442999998},{"$f":"IF(AND(OR(Calculations!$E$2=\"Orkney Health Board\",Calculations!$E$2=\"Orkney Islands Local Authority\"),$F159=1),0,IF(AND(OR(Calculations!$E$2=\"Shetland Health Board\",Calculations!$E$2=\"Western Isles Health Board\",Calculations!$E$2=\"Shetland Islands Local Authority\",Calculations!$E$2=\"Eilean Siar Local Authority\"),OR($F159=1,$F159=5)),0,new_yllv2(VALUE(LEFT(Options!$B$14,2)),$C159,$D159,$E159,$F159,2016,$I159/10,1,$H159/10,$G159*$H159/10,RateRatios_accidents!$B$5)*10))","v":1157.7157874009999},{"$f":"IF(AND(OR(Calculations!$E$2=\"Orkney Health Board\",Calculations!$E$2=\"Orkney Islands Local Authority\"),$F159=1),0,IF(AND(OR(Calculations!$E$2=\"Shetland Health Board\",Calculations!$E$2=\"Western Isles Health Board\",Calculations!$E$2=\"Shetland Islands Local Authority\",Calculations!$E$2=\"Eilean Siar Local Authority\"),OR($F159=1,$F159=5)),0,new_yllv2(VALUE(LEFT(Options!$B$14,2)),$C159,$D159,$E159,$F159,2016,$I159/10+$J159/10,1,$H159/10,$G159*$H159/10,RateRatios_accidents!$B$5)*10))","v":1157.48359355},{"$f":"IF(AND(OR(Calculations!$E$2=\"Orkney Health Board\",Calculations!$E$2=\"Orkney Islands Local Authority\"),$F159=1),0,IF(AND(OR(Calculations!$E$2=\"Shetland Health Board\",Calculations!$E$2=\"Western Isles Health Board\",Calculations!$E$2=\"Shetland Islands Local Authority\",Calculations!$E$2=\"Eilean Siar Local Authority\"),OR($F159=1,$F159=5)),0,hosp_count(VALUE(LEFT(Options!$B$14,2)),$C159,$E159,$F159,2016,$I159/10,1,$H159/10,$G159*$H159/10, RateRatios_accidents!$B$4, RateRatios_accidents!$B$5)*10))","v":2804.4106752120001},{"$f":"IF(AND(OR(Calculations!$E$2=\"Orkney Health Board\",Calculations!$E$2=\"Orkney Islands Local Authority\"),$F159=1),0,IF(AND(OR(Calculations!$E$2=\"Shetland Health Board\",Calculations!$E$2=\"Western Isles Health Board\",Calculations!$E$2=\"Shetland Islands Local Authority\",Calculations!$E$2=\"Eilean Siar Local Authority\"),OR($F159=1,$F159=5)),0,hosp_count(VALUE(LEFT(Options!$B$14,2)),$C159,$E159,$F159,2016,$I159/10+$J159/10,1,$H159/10,$G159*$H159/10, RateRatios_accidents!$B$4, RateRatios_accidents!$B$5)*10))","v":2803.8479632420003},{"$f":"IF(AND(OR(Calculations!$E$2=\"Orkney Health Board\",Calculations!$E$2=\"Orkney Islands Local Authority\"),$F159=1),0,IF(AND(OR(Calculations!$E$2=\"Shetland Health Board\",Calculations!$E$2=\"Western Isles Health Board\",Calculations!$E$2=\"Shetland Islands Local Authority\",Calculations!$E$2=\"Eilean Siar Local Authority\"),OR($F159=1,$F159=5)),0,prem_mort(VALUE(LEFT(Options!$B$14,2)),$C159,$E159,$F159,2016,$I159/10,1,$H159/10,$G159*$H159/10,RateRatios_accidents!$B$5)*10))","v":21.184187186999999},{"$f":"IF(AND(OR(Calculations!$E$2=\"Orkney Health Board\",Calculations!$E$2=\"Orkney Islands Local Authority\"),$F159=1),0,IF(AND(OR(Calculations!$E$2=\"Shetland Health Board\",Calculations!$E$2=\"Western Isles Health Board\",Calculations!$E$2=\"Shetland Islands Local Authority\",Calculations!$E$2=\"Eilean Siar Local Authority\"),OR($F159=1,$F159=5)),0,prem_mort(VALUE(LEFT(Options!$B$14,2)),$C159,$E159,$F159,2016,$I159/10+$J159/10,1,$H159/10,$G159*$H159/10,RateRatios_accidents!$B$5)*10))","v":21.179938442999998},null,{"$f":"IF(AND(OR(Calculations!$E$2=\"Orkney Health Board\",Calculations!$E$2=\"Orkney Islands Local Authority\"),$F159=1),0,IF(AND(OR(Calculations!$E$2=\"Shetland Health Board\",Calculations!$E$2=\"Western Isles Health Board\",Calculations!$E$2=\"Shetland Islands Local Authority\",Calculations!$E$2=\"Eilean Siar Local Authority\"),OR($F159=1,$F159=5)),0,new_ci(VALUE(LEFT(Options!$B$14,2)),$C159,$E159,$F159,2016,$I159/10,1,$H159/10,$G159*$H159/10,RateRatios_airpollution!$C159)*10))","v":21.184187186999999},{"$f":"IF(AND(OR(Calculations!$E$2=\"Orkney Health Board\",Calculations!$E$2=\"Orkney Islands Local Authority\"),$F159=1),0,IF(AND(OR(Calculations!$E$2=\"Shetland Health Board\",Calculations!$E$2=\"Western Isles Health Board\",Calculations!$E$2=\"Shetland Islands Local Authority\",Calculations!$E$2=\"Eilean Siar Local Authority\"),OR($F159=1,$F159=5)),0,new_ci(VALUE(LEFT(Options!$B$14,2)),$C159,$E159,$F159,2016,$I159/10+$J159/10,1,$H159/10,$G159*$H159/10,RateRatios_airpollution!$C159)*10))","v":21.183838870999999},{"$f":"IF(AND(OR(Calculations!$E$2=\"Orkney Health Board\",Calculations!$E$2=\"Orkney Islands Local Authority\"),$F159=1),0,IF(AND(OR(Calculations!$E$2=\"Shetland Health Board\",Calculations!$E$2=\"Western Isles Health Board\",Calculations!$E$2=\"Shetland Islands Local Authority\",Calculations!$E$2=\"Eilean Siar Local Authority\"),OR($F159=1,$F159=5)),0,new_yllv2(VALUE(LEFT(Options!$B$14,2)),$C159,$D159,$E159,$F159,2016,$I159/10,1,$H159/10,$G159*$H159/10,RateRatios_airpollution!$C159)*10))","v":1157.7157874009999},{"$f":"IF(AND(OR(Calculations!$E$2=\"Orkney Health Board\",Calculations!$E$2=\"Orkney Islands Local Authority\"),$F159=1),0,IF(AND(OR(Calculations!$E$2=\"Shetland Health Board\",Calculations!$E$2=\"Western Isles Health Board\",Calculations!$E$2=\"Shetland Islands Local Authority\",Calculations!$E$2=\"Eilean Siar Local Authority\"),OR($F159=1,$F159=5)),0,new_yllv2(VALUE(LEFT(Options!$B$14,2)),$C159,$D159,$E159,$F159,2016,$I159/10+$J159/10,1,$H159/10,$G159*$H159/10,RateRatios_airpollution!$C159)*10))","v":1157.6967519320001},{"$f":"IF(AND(OR(Calculations!$E$2=\"Orkney Health Board\",Calculations!$E$2=\"Orkney Islands Local Authority\"),$F159=1),0,IF(AND(OR(Calculations!$E$2=\"Shetland Health Board\",Calculations!$E$2=\"Western Isles Health Board\",Calculations!$E$2=\"Shetland Islands Local Authority\",Calculations!$E$2=\"Eilean Siar Local Authority\"),OR($F159=1,$F159=5)),0,hosp_count(VALUE(LEFT(Options!$B$14,2)),$C159,$E159,$F159,2016,$I159/10,1,$H159/10,$G159*$H159/10, RateRatios_airpollution!$D159, RateRatios_airpollution!$C159)*10))","v":2804.4106752120001},{"$f":"IF(AND(OR(Calculations!$E$2=\"Orkney Health Board\",Calculations!$E$2=\"Orkney Islands Local Authority\"),$F159=1),0,IF(AND(OR(Calculations!$E$2=\"Shetland Health Board\",Calculations!$E$2=\"Western Isles Health Board\",Calculations!$E$2=\"Shetland Islands Local Authority\",Calculations!$E$2=\"Eilean Siar Local Authority\"),OR($F159=1,$F159=5)),0,hosp_count(VALUE(LEFT(Options!$B$14,2)),$C159,$E159,$F159,2016,$I159/10+$J159/10,1,$H159/10,$G159*$H159/10, RateRatios_airpollution!$D159, RateRatios_airpollution!$C159)*10))","v":2804.3237890099999},{"$f":"IF(AND(OR(Calculations!$E$2=\"Orkney Health Board\",Calculations!$E$2=\"Orkney Islands Local Authority\"),$F159=1),0,IF(AND(OR(Calculations!$E$2=\"Shetland Health Board\",Calculations!$E$2=\"Western Isles Health Board\",Calculations!$E$2=\"Shetland Islands Local Authority\",Calculations!$E$2=\"Eilean Siar Local Authority\"),OR($F159=1,$F159=5)),0,prem_mort(VALUE(LEFT(Options!$B$14,2)),$C159,$E159,$F159,2016,$I159/10,1,$H159/10,$G159*$H159/10,RateRatios_airpollution!$C159)*10))","v":21.184187186999999},{"$f":"IF(AND(OR(Calculations!$E$2=\"Orkney Health Board\",Calculations!$E$2=\"Orkney Islands Local Authority\"),$F159=1),0,IF(AND(OR(Calculations!$E$2=\"Shetland Health Board\",Calculations!$E$2=\"Western Isles Health Board\",Calculations!$E$2=\"Shetland Islands Local Authority\",Calculations!$E$2=\"Eilean Siar Local Authority\"),OR($F159=1,$F159=5)),0,prem_mort(VALUE(LEFT(Options!$B$14,2)),$C159,$E159,$F159,2016,$I159/10+$J159/10,1,$H159/10,$G159*$H159/10,RateRatios_airpollution!$C159)*10))","v":21.183838870999999},null,{"$f":"IF(AND(OR(Calculations!$E$2=\"Orkney Health Board\",Calculations!$E$2=\"Orkney Islands Local Authority\"),$F159=1),0,IF(AND(OR(Calculations!$E$2=\"Shetland Health Board\",Calculations!$E$2=\"Western Isles Health Board\",Calculations!$E$2=\"Shetland Islands Local Authority\",Calculations!$E$2=\"Eilean Siar Local Authority\"),OR($F159=1,$F159=5)),0,new_ci(VALUE(LEFT(Options!$B$14,2)),$C159,$E159,$F159,2016,$I159/10,1,$H159/10,$G159*$H159/10,RateRatios_airpollution!$E159)*10))","v":21.184187186999999},{"$f":"IF(AND(OR(Calculations!$E$2=\"Orkney Health Board\",Calculations!$E$2=\"Orkney Islands Local Authority\"),$F159=1),0,IF(AND(OR(Calculations!$E$2=\"Shetland Health Board\",Calculations!$E$2=\"Western Isles Health Board\",Calculations!$E$2=\"Shetland Islands Local Authority\",Calculations!$E$2=\"Eilean Siar Local Authority\"),OR($F159=1,$F159=5)),0,new_ci(VALUE(LEFT(Options!$B$14,2)),$C159,$E159,$F159,2016,$I159/10+$J159/10,1,$H159/10,$G159*$H159/10,RateRatios_airpollution!$E159)*10))","v":21.184052810999997},{"$f":"IF(AND(OR(Calculations!$E$2=\"Orkney Health Board\",Calculations!$E$2=\"Orkney Islands Local Authority\"),$F159=1),0,IF(AND(OR(Calculations!$E$2=\"Shetland Health Board\",Calculations!$E$2=\"Western Isles Health Board\",Calculations!$E$2=\"Shetland Islands Local Authority\",Calculations!$E$2=\"Eilean Siar Local Authority\"),OR($F159=1,$F159=5)),0,new_yllv2(VALUE(LEFT(Options!$B$14,2)),$C159,$D159,$E159,$F159,2016,$I159/10,1,$H159/10,$G159*$H159/10,RateRatios_airpollution!$E159)*10))","v":1157.7157874009999},{"$f":"IF(AND(OR(Calculations!$E$2=\"Orkney Health Board\",Calculations!$E$2=\"Orkney Islands Local Authority\"),$F159=1),0,IF(AND(OR(Calculations!$E$2=\"Shetland Health Board\",Calculations!$E$2=\"Western Isles Health Board\",Calculations!$E$2=\"Shetland Islands Local Authority\",Calculations!$E$2=\"Eilean Siar Local Authority\"),OR($F159=1,$F159=5)),0,new_yllv2(VALUE(LEFT(Options!$B$14,2)),$C159,$D159,$E159,$F159,2016,$I159/10+$J159/10,1,$H159/10,$G159*$H159/10,RateRatios_airpollution!$E159)*10))","v":1157.708443753},{"$f":"IF(AND(OR(Calculations!$E$2=\"Orkney Health Board\",Calculations!$E$2=\"Orkney Islands Local Authority\"),$F159=1),0,IF(AND(OR(Calculations!$E$2=\"Shetland Health Board\",Calculations!$E$2=\"Western Isles Health Board\",Calculations!$E$2=\"Shetland Islands Local Authority\",Calculations!$E$2=\"Eilean Siar Local Authority\"),OR($F159=1,$F159=5)),0,hosp_count(VALUE(LEFT(Options!$B$14,2)),$C159,$E159,$F159,2016,$I159/10,1,$H159/10,$G159*$H159/10, RateRatios_airpollution!$F159, RateRatios_airpollution!$E159)*10))","v":2804.4106752120001},{"$f":"IF(AND(OR(Calculations!$E$2=\"Orkney Health Board\",Calculations!$E$2=\"Orkney Islands Local Authority\"),$F159=1),0,IF(AND(OR(Calculations!$E$2=\"Shetland Health Board\",Calculations!$E$2=\"Western Isles Health Board\",Calculations!$E$2=\"Shetland Islands Local Authority\",Calculations!$E$2=\"Eilean Siar Local Authority\"),OR($F159=1,$F159=5)),0,hosp_count(VALUE(LEFT(Options!$B$14,2)),$C159,$E159,$F159,2016,$I159/10+$J159/10,1,$H159/10,$G159*$H159/10, RateRatios_airpollution!$F159, RateRatios_airpollution!$E159)*10))","v":2804.4106752120001},{"$f":"IF(AND(OR(Calculations!$E$2=\"Orkney Health Board\",Calculations!$E$2=\"Orkney Islands Local Authority\"),$F159=1),0,IF(AND(OR(Calculations!$E$2=\"Shetland Health Board\",Calculations!$E$2=\"Western Isles Health Board\",Calculations!$E$2=\"Shetland Islands Local Authority\",Calculations!$E$2=\"Eilean Siar Local Authority\"),OR($F159=1,$F159=5)),0,prem_mort(VALUE(LEFT(Options!$B$14,2)),$C159,$E159,$F159,2016,$I159/10,1,$H159/10,$G159*$H159/10,RateRatios_airpollution!$E159)*10))","v":21.184187186999999},{"$f":"IF(AND(OR(Calculations!$E$2=\"Orkney Health Board\",Calculations!$E$2=\"Orkney Islands Local Authority\"),$F159=1),0,IF(AND(OR(Calculations!$E$2=\"Shetland Health Board\",Calculations!$E$2=\"Western Isles Health Board\",Calculations!$E$2=\"Shetland Islands Local Authority\",Calculations!$E$2=\"Eilean Siar Local Authority\"),OR($F159=1,$F159=5)),0,prem_mort(VALUE(LEFT(Options!$B$14,2)),$C159,$E159,$F159,2016,$I159/10+$J159/10,1,$H159/10,$G159*$H159/10,RateRatios_airpollution!$E159)*10))","v":21.184052810999997},21.184187186999999,21.179455750999995,1157.7157874009999,1157.4572144330002,2804.4106752120001,2803.7610770400001,21.184187186999999,21.179455750999995,60.1021,60.088676344086011,3284.5796447953016,3283.8460420262722,7956.4521100008515,7954.6091214571452,60.1021,60.088676344086011,360612.6,360532.05806451605,19707477.86877181,19703076.252157632,47738712.660005108,47727654.728742868,360612.6,360532.05806451605,6000]
[null,"Male 25-29",26.959762999999999,77.789760000000001,"male",3,1,{"$f":"HLOOKUP(Calculations!$E$2,'Population 2016'!$C$3:$BC$249,'Population 2016'!BD160,FALSE)","v":35940},0,{"$f":"HLOOKUP(Calculations!$E$2,Pop2016_in_settlements!$C$3:$BC$249,Pop2016_in_settlements!$BD160,FALSE)","v":17778},{"$f":"IF(AND(OR(Calculations!$E$2=\"Orkney Health Board\",Calculations!$E$2=\"Orkney Islands Local Authority\"),$F160=1),0,IF(AND(OR(Calculations!$E$2=\"Shetland Health Board\",Calculations!$E$2=\"Western Isles Health Board\",Calculations!$E$2=\"Shetland Islands Local Authority\",Calculations!$E$2=\"Eilean Siar Local Authority\"),OR($F160=1,$F160=5)),0,new_ci(VALUE(LEFT(Options!$B$14,2)),$C160,$E160,$F160,2016,$I160/10,1,$H160/10,$G160*$H160/10,RateRatios_accidents!$B$5)*10))","v":31.278064464000003},{"$f":"IF(AND(OR(Calculations!$E$2=\"Orkney Health Board\",Calculations!$E$2=\"Orkney Islands Local Authority\"),$F160=1),0,IF(AND(OR(Calculations!$E$2=\"Shetland Health Board\",Calculations!$E$2=\"Western Isles Health Board\",Calculations!$E$2=\"Shetland Islands Local Authority\",Calculations!$E$2=\"Eilean Siar Local Authority\"),OR($F160=1,$F160=5)),0,new_ci(VALUE(LEFT(Options!$B$14,2)),$C160,$E160,$F160,2016,$I160/10+$J160/10,1,$H160/10,$G160*$H160/10,RateRatios_accidents!$B$5)*10))","v":31.271877719999999},{"$f":"IF(AND(OR(Calculations!$E$2=\"Orkney Health Board\",Calculations!$E$2=\"Orkney Islands Local Authority\"),$F160=1),0,IF(AND(OR(Calculations!$E$2=\"Shetland Health Board\",Calculations!$E$2=\"Western Isles Health Board\",Calculations!$E$2=\"Shetland Islands Local Authority\",Calculations!$E$2=\"Eilean Siar Local Authority\"),OR($F160=1,$F160=5)),0,new_yllv2(VALUE(LEFT(Options!$B$14,2)),$C160,$D160,$E160,$F160,2016,$I160/10,1,$H160/10,$G160*$H160/10,RateRatios_accidents!$B$5)*10))","v":1558.5858584069999},{"$f":"IF(AND(OR(Calculations!$E$2=\"Orkney Health Board\",Calculations!$E$2=\"Orkney Islands Local Authority\"),$F160=1),0,IF(AND(OR(Calculations!$E$2=\"Shetland Health Board\",Calculations!$E$2=\"Western Isles Health Board\",Calculations!$E$2=\"Shetland Islands Local Authority\",Calculations!$E$2=\"Eilean Siar Local Authority\"),OR($F160=1,$F160=5)),0,new_yllv2(VALUE(LEFT(Options!$B$14,2)),$C160,$D160,$E160,$F160,2016,$I160/10+$J160/10,1,$H160/10,$G160*$H160/10,RateRatios_accidents!$B$5)*10))","v":1558.2775729720001},{"$f":"IF(AND(OR(Calculations!$E$2=\"Orkney Health Board\",Calculations!$E$2=\"Orkney Islands Local Authority\"),$F160=1),0,IF(AND(OR(Calculations!$E$2=\"Shetland Health Board\",Calculations!$E$2=\"Western Isles Health Board\",Calculations!$E$2=\"Shetland Islands Local Authority\",Calculations!$E$2=\"Eilean Siar Local Authority\"),OR($F160=1,$F160=5)),0,hosp_count(VALUE(LEFT(Options!$B$14,2)),$C160,$E160,$F160,2016,$I160/10,1,$H160/10,$G160*$H160/10, RateRatios_accidents!$B$4, RateRatios_accidents!$B$5)*10))","v":3403.3914588540001},{"$f":"IF(AND(OR(Calculations!$E$2=\"Orkney Health Board\",Calculations!$E$2=\"Orkney Islands Local Authority\"),$F160=1),0,IF(AND(OR(Calculations!$E$2=\"Shetland Health Board\",Calculations!$E$2=\"Western Isles Health Board\",Calculations!$E$2=\"Shetland Islands Local Authority\",Calculations!$E$2=\"Eilean Siar Local Authority\"),OR($F160=1,$F160=5)),0,hosp_count(VALUE(LEFT(Options!$B$14,2)),$C160,$E160,$F160,2016,$I160/10+$J160/10,1,$H160/10,$G160*$H160/10, RateRatios_accidents!$B$4, RateRatios_accidents!$B$5)*10))","v":3402.7180531029999},{"$f":"IF(AND(OR(Calculations!$E$2=\"Orkney Health Board\",Calculations!$E$2=\"Orkney Islands Local Authority\"),$F160=1),0,IF(AND(OR(Calculations!$E$2=\"Shetland Health Board\",Calculations!$E$2=\"Western Isles Health Board\",Calculations!$E$2=\"Shetland Islands Local Authority\",Calculations!$E$2=\"Eilean Siar Local Authority\"),OR($F160=1,$F160=5)),0,prem_mort(VALUE(LEFT(Options!$B$14,2)),$C160,$E160,$F160,2016,$I160/10,1,$H160/10,$G160*$H160/10,RateRatios_accidents!$B$5)*10))","v":31.278064464000003},{"$f":"IF(AND(OR(Calculations!$E$2=\"Orkney Health Board\",Calculations!$E$2=\"Orkney Islands Local Authority\"),$F160=1),0,IF(AND(OR(Calculations!$E$2=\"Shetland Health Board\",Calculations!$E$2=\"Western Isles Health Board\",Calculations!$E$2=\"Shetland Islands Local Authority\",Calculations!$E$2=\"Eilean Siar Local Authority\"),OR($F160=1,$F160=5)),0,prem_mort(VALUE(LEFT(Options!$B$14,2)),$C160,$E160,$F160,2016,$I160/10+$J160/10,1,$H160/10,$G160*$H160/10,RateRatios_accidents!$B$5)*10))","v":31.271877719999999},null,{"$f":"IF(AND(OR(Calculations!$E$2=\"Orkney Health Board\",Calculations!$E$2=\"Orkney Islands Local Authority\"),$F160=1),0,IF(AND(OR(Calculations!$E$2=\"Shetland Health Board\",Calculations!$E$2=\"Western Isles Health Board\",Calculations!$E$2=\"Shetland Islands Local Authority\",Calculations!$E$2=\"Eilean Siar Local Authority\"),OR($F160=1,$F160=5)),0,new_ci(VALUE(LEFT(Options!$B$14,2)),$C160,$E160,$F160,2016,$I160/10,1,$H160/10,$G160*$H160/10,RateRatios_airpollution!$C160)*10))","v":31.278064464000003},{"$f":"IF(AND(OR(Calculations!$E$2=\"Orkney Health Board\",Calculations!$E$2=\"Orkney Islands Local Authority\"),$F160=1),0,IF(AND(OR(Calculations!$E$2=\"Shetland Health Board\",Calculations!$E$2=\"Western Isles Health Board\",Calculations!$E$2=\"Shetland Islands Local Authority\",Calculations!$E$2=\"Eilean Siar Local Authority\"),OR($F160=1,$F160=5)),0,new_ci(VALUE(LEFT(Options!$B$14,2)),$C160,$E160,$F160,2016,$I160/10+$J160/10,1,$H160/10,$G160*$H160/10,RateRatios_airpollution!$C160)*10))","v":31.277575569},{"$f":"IF(AND(OR(Calculations!$E$2=\"Orkney Health Board\",Calculations!$E$2=\"Orkney Islands Local Authority\"),$F160=1),0,IF(AND(OR(Calculations!$E$2=\"Shetland Health Board\",Calculations!$E$2=\"Western Isles Health Board\",Calculations!$E$2=\"Shetland Islands Local Authority\",Calculations!$E$2=\"Eilean Siar Local Authority\"),OR($F160=1,$F160=5)),0,new_yllv2(VALUE(LEFT(Options!$B$14,2)),$C160,$D160,$E160,$F160,2016,$I160/10,1,$H160/10,$G160*$H160/10,RateRatios_airpollution!$C160)*10))","v":1558.5858584069999},{"$f":"IF(AND(OR(Calculations!$E$2=\"Orkney Health Board\",Calculations!$E$2=\"Orkney Islands Local Authority\"),$F160=1),0,IF(AND(OR(Calculations!$E$2=\"Shetland Health Board\",Calculations!$E$2=\"Western Isles Health Board\",Calculations!$E$2=\"Shetland Islands Local Authority\",Calculations!$E$2=\"Eilean Siar Local Authority\"),OR($F160=1,$F160=5)),0,new_yllv2(VALUE(LEFT(Options!$B$14,2)),$C160,$D160,$E160,$F160,2016,$I160/10+$J160/10,1,$H160/10,$G160*$H160/10,RateRatios_airpollution!$C160)*10))","v":1558.5614967710001},{"$f":"IF(AND(OR(Calculations!$E$2=\"Orkney Health Board\",Calculations!$E$2=\"Orkney Islands Local Authority\"),$F160=1),0,IF(AND(OR(Calculations!$E$2=\"Shetland Health Board\",Calculations!$E$2=\"Western Isles Health Board\",Calculations!$E$2=\"Shetland Islands Local Authority\",Calculations!$E$2=\"Eilean Siar Local Authority\"),OR($F160=1,$F160=5)),0,hosp_count(VALUE(LEFT(Options!$B$14,2)),$C160,$E160,$F160,2016,$I160/10,1,$H160/10,$G160*$H160/10, RateRatios_airpollution!$D160, RateRatios_airpollution!$C160)*10))","v":3403.3914588540001},{"$f":"IF(AND(OR(Calculations!$E$2=\"Orkney Health Board\",Calculations!$E$2=\"Orkney Islands Local Authority\"),$F160=1),0,IF(AND(OR(Calculations!$E$2=\"Shetland Health Board\",Calculations!$E$2=\"Western Isles Health Board\",Calculations!$E$2=\"Shetland Islands Local Authority\",Calculations!$E$2=\"Eilean Siar Local Authority\"),OR($F160=1,$F160=5)),0,hosp_count(VALUE(LEFT(Options!$B$14,2)),$C160,$E160,$F160,2016,$I160/10+$J160/10,1,$H160/10,$G160*$H160/10, RateRatios_airpollution!$D160, RateRatios_airpollution!$C160)*10))","v":3403.2913562690001},{"$f":"IF(AND(OR(Calculations!$E$2=\"Orkney Health Board\",Calculations!$E$2=\"Orkney Islands Local Authority\"),$F160=1),0,IF(AND(OR(Calculations!$E$2=\"Shetland Health Board\",Calculations!$E$2=\"Western Isles Health Board\",Calculations!$E$2=\"Shetland Islands Local Authority\",Calculations!$E$2=\"Eilean Siar Local Authority\"),OR($F160=1,$F160=5)),0,prem_mort(VALUE(LEFT(Options!$B$14,2)),$C160,$E160,$F160,2016,$I160/10,1,$H160/10,$G160*$H160/10,RateRatios_airpollution!$C160)*10))","v":31.278064464000003},{"$f":"IF(AND(OR(Calculations!$E$2=\"Orkney Health Board\",Calculations!$E$2=\"Orkney Islands Local Authority\"),$F160=1),0,IF(AND(OR(Calculations!$E$2=\"Shetland Health Board\",Calculations!$E$2=\"Western Isles Health Board\",Calculations!$E$2=\"Shetland Islands Local Authority\",Calculations!$E$2=\"Eilean Siar Local Authority\"),OR($F160=1,$F160=5)),0,prem_mort(VALUE(LEFT(Options!$B$14,2)),$C160,$E160,$F160,2016,$I160/10+$J160/10,1,$H160/10,$G160*$H160/10,RateRatios_airpollution!$C160)*10))","v":31.277575569},null,{"$f":"IF(AND(OR(Calculations!$E$2=\"Orkney Health Board\",Calculations!$E$2=\"Orkney Islands Local Authority\"),$F160=1),0,IF(AND(OR(Calculations!$E$2=\"Shetland Health Board\",Calculations!$E$2=\"Western Isles Health Board\",Calculations!$E$2=\"Shetland Islands Local Authority\",Calculations!$E$2=\"Eilean Siar Local Authority\"),OR($F160=1,$F160=5)),0,new_ci(VALUE(LEFT(Options!$B$14,2)),$C160,$E160,$F160,2016,$I160/10,1,$H160/10,$G160*$H160/10,RateRatios_airpollution!$E160)*10))","v":31.278064464000003},{"$f":"IF(AND(OR(Calculations!$E$2=\"Orkney Health Board\",Calculations!$E$2=\"Orkney Islands Local Authority\"),$F160=1),0,IF(AND(OR(Calculations!$E$2=\"Shetland Health Board\",Calculations!$E$2=\"Western Isles Health Board\",Calculations!$E$2=\"Shetland Islands Local Authority\",Calculations!$E$2=\"Eilean Siar Local Authority\"),OR($F160=1,$F160=5)),0,new_ci(VALUE(LEFT(Options!$B$14,2)),$C160,$E160,$F160,2016,$I160/10+$J160/10,1,$H160/10,$G160*$H160/10,RateRatios_airpollution!$E160)*10))","v":31.277865349999999},{"$f":"IF(AND(OR(Calculations!$E$2=\"Orkney Health Board\",Calculations!$E$2=\"Orkney Islands Local Authority\"),$F160=1),0,IF(AND(OR(Calculations!$E$2=\"Shetland Health Board\",Calculations!$E$2=\"Western Isles Health Board\",Calculations!$E$2=\"Shetland Islands Local Authority\",Calculations!$E$2=\"Eilean Siar Local Authority\"),OR($F160=1,$F160=5)),0,new_yllv2(VALUE(LEFT(Options!$B$14,2)),$C160,$D160,$E160,$F160,2016,$I160/10,1,$H160/10,$G160*$H160/10,RateRatios_airpollution!$E160)*10))","v":1558.5858584069999},{"$f":"IF(AND(OR(Calculations!$E$2=\"Orkney Health Board\",Calculations!$E$2=\"Orkney Islands Local Authority\"),$F160=1),0,IF(AND(OR(Calculations!$E$2=\"Shetland Health Board\",Calculations!$E$2=\"Western Isles Health Board\",Calculations!$E$2=\"Shetland Islands Local Authority\",Calculations!$E$2=\"Eilean Siar Local Authority\"),OR($F160=1,$F160=5)),0,new_yllv2(VALUE(LEFT(Options!$B$14,2)),$C160,$D160,$E160,$F160,2016,$I160/10+$J160/10,1,$H160/10,$G160*$H160/10,RateRatios_airpollution!$E160)*10))","v":1558.5759365569997},{"$f":"IF(AND(OR(Calculations!$E$2=\"Orkney Health Board\",Calculations!$E$2=\"Orkney Islands Local Authority\"),$F160=1),0,IF(AND(OR(Calculations!$E$2=\"Shetland Health Board\",Calculations!$E$2=\"Western Isles Health Board\",Calculations!$E$2=\"Shetland Islands Local Authority\",Calculations!$E$2=\"Eilean Siar Local Authority\"),OR($F160=1,$F160=5)),0,hosp_count(VALUE(LEFT(Options!$B$14,2)),$C160,$E160,$F160,2016,$I160/10,1,$H160/10,$G160*$H160/10, RateRatios_airpollution!$F160, RateRatios_airpollution!$E160)*10))","v":3403.3914588540001},{"$f":"IF(AND(OR(Calculations!$E$2=\"Orkney Health Board\",Calculations!$E$2=\"Orkney Islands Local Authority\"),$F160=1),0,IF(AND(OR(Calculations!$E$2=\"Shetland Health Board\",Calculations!$E$2=\"Western Isles Health Board\",Calculations!$E$2=\"Shetland Islands Local Authority\",Calculations!$E$2=\"Eilean Siar Local Authority\"),OR($F160=1,$F160=5)),0,hosp_count(VALUE(LEFT(Options!$B$14,2)),$C160,$E160,$F160,2016,$I160/10+$J160/10,1,$H160/10,$G160*$H160/10, RateRatios_airpollution!$F160, RateRatios_airpollution!$E160)*10))","v":3403.3914588540001},{"$f":"IF(AND(OR(Calculations!$E$2=\"Orkney Health Board\",Calculations!$E$2=\"Orkney Islands Local Authority\"),$F160=1),0,IF(AND(OR(Calculations!$E$2=\"Shetland Health Board\",Calculations!$E$2=\"Western Isles Health Board\",Calculations!$E$2=\"Shetland Islands Local Authority\",Calculations!$E$2=\"Eilean Siar Local Authority\"),OR($F160=1,$F160=5)),0,prem_mort(VALUE(LEFT(Options!$B$14,2)),$C160,$E160,$F160,2016,$I160/10,1,$H160/10,$G160*$H160/10,RateRatios_airpollution!$E160)*10))","v":31.278064464000003},{"$f":"IF(AND(OR(Calculations!$E$2=\"Orkney Health Board\",Calculations!$E$2=\"Orkney Islands Local Authority\"),$F160=1),0,IF(AND(OR(Calculations!$E$2=\"Shetland Health Board\",Calculations!$E$2=\"Western Isles Health Board\",Calculations!$E$2=\"Shetland Islands Local Authority\",Calculations!$E$2=\"Eilean Siar Local Authority\"),OR($F160=1,$F160=5)),0,prem_mort(VALUE(LEFT(Options!$B$14,2)),$C160,$E160,$F160,2016,$I160/10+$J160/10,1,$H160/10,$G160*$H160/10,RateRatios_airpollution!$E160)*10))","v":31.277865349999999},31.278064464000003,31.271189710999991,1558.5858584069999,1558.2432894860001,3403.3914588540001,3402.6179505179998,31.278064464000003,31.271189710999991,87.028560000000013,87.009431583194186,4336.6328837145238,4335.6797147634952,9469.6479099999997,9467.4956886978289,87.028560000000013,87.009431583194186,522171.3600000001,522056.58949916513,26019797.302287143,26014078.288580973,56817887.460000001,56804974.132186972,522171.3600000001,522056.58949916513,6000]
[null,"Male 30-34",31.981521999999998,78.061520000000002,"male",3,1,{"$f":"HLOOKUP(Calculations!$E$2,'Population 2016'!$C$3:$BC$249,'Population 2016'!BD161,FALSE)","v":34643},0,{"$f":"HLOOKUP(Calculations!$E$2,Pop2016_in_settlements!$C$3:$BC$249,Pop2016_in_settlements!$BD161,FALSE)","v":16772},{"$f":"IF(AND(OR(Calculations!$E$2=\"Orkney Health Board\",Calculations!$E$2=\"Orkney Islands Local Authority\"),$F161=1),0,IF(AND(OR(Calculations!$E$2=\"Shetland Health Board\",Calculations!$E$2=\"Western Isles Health Board\",Calculations!$E$2=\"Shetland Islands Local Authority\",Calculations!$E$2=\"Eilean Siar Local Authority\"),OR($F161=1,$F161=5)),0,new_ci(VALUE(LEFT(Options!$B$14,2)),$C161,$E161,$F161,2016,$I161/10,1,$H161/10,$G161*$H161/10,RateRatios_accidents!$B$5)*10))","v":44.039743999000002},{"$f":"IF(AND(OR(Calculations!$E$2=\"Orkney Health Board\",Calculations!$E$2=\"Orkney Islands Local Authority\"),$F161=1),0,IF(AND(OR(Calculations!$E$2=\"Shetland Health Board\",Calculations!$E$2=\"Western Isles Health Board\",Calculations!$E$2=\"Shetland Islands Local Authority\",Calculations!$E$2=\"Eilean Siar Local Authority\"),OR($F161=1,$F161=5)),0,new_ci(VALUE(LEFT(Options!$B$14,2)),$C161,$E161,$F161,2016,$I161/10+$J161/10,1,$H161/10,$G161*$H161/10,RateRatios_accidents!$B$5)*10))","v":44.031218792000004},{"$f":"IF(AND(OR(Calculations!$E$2=\"Orkney Health Board\",Calculations!$E$2=\"Orkney Islands Local Authority\"),$F161=1),0,IF(AND(OR(Calculations!$E$2=\"Shetland Health Board\",Calculations!$E$2=\"Western Isles Health Board\",Calculations!$E$2=\"Shetland Islands Local Authority\",Calculations!$E$2=\"Eilean Siar Local Authority\"),OR($F161=1,$F161=5)),0,new_yllv2(VALUE(LEFT(Options!$B$14,2)),$C161,$D161,$E161,$F161,2016,$I161/10,1,$H161/10,$G161*$H161/10,RateRatios_accidents!$B$5)*10))","v":1985.3115713950001},{"$f":"IF(AND(OR(Calculations!$E$2=\"Orkney Health Board\",Calculations!$E$2=\"Orkney Islands Local Authority\"),$F161=1),0,IF(AND(OR(Calculations!$E$2=\"Shetland Health Board\",Calculations!$E$2=\"Western Isles Health Board\",Calculations!$E$2=\"Shetland Islands Local Authority\",Calculations!$E$2=\"Eilean Siar Local Authority\"),OR($F161=1,$F161=5)),0,new_yllv2(VALUE(LEFT(Options!$B$14,2)),$C161,$D161,$E161,$F161,2016,$I161/10+$J161/10,1,$H161/10,$G161*$H161/10,RateRatios_accidents!$B$5)*10))","v":1984.9272550809999},{"$f":"IF(AND(OR(Calculations!$E$2=\"Orkney Health Board\",Calculations!$E$2=\"Orkney Islands Local Authority\"),$F161=1),0,IF(AND(OR(Calculations!$E$2=\"Shetland Health Board\",Calculations!$E$2=\"Western Isles Health Board\",Calculations!$E$2=\"Shetland Islands Local Authority\",Calculations!$E$2=\"Eilean Siar Local Authority\"),OR($F161=1,$F161=5)),0,hosp_count(VALUE(LEFT(Options!$B$14,2)),$C161,$E161,$F161,2016,$I161/10,1,$H161/10,$G161*$H161/10, RateRatios_accidents!$B$4, RateRatios_accidents!$B$5)*10))","v":3920.681540049},{"$f":"IF(AND(OR(Calculations!$E$2=\"Orkney Health Board\",Calculations!$E$2=\"Orkney Islands Local Authority\"),$F161=1),0,IF(AND(OR(Calculations!$E$2=\"Shetland Health Board\",Calculations!$E$2=\"Western Isles Health Board\",Calculations!$E$2=\"Shetland Islands Local Authority\",Calculations!$E$2=\"Eilean Siar Local Authority\"),OR($F161=1,$F161=5)),0,hosp_count(VALUE(LEFT(Options!$B$14,2)),$C161,$E161,$F161,2016,$I161/10+$J161/10,1,$H161/10,$G161*$H161/10, RateRatios_accidents!$B$4, RateRatios_accidents!$B$5)*10))","v":3919.9222799950003},{"$f":"IF(AND(OR(Calculations!$E$2=\"Orkney Health Board\",Calculations!$E$2=\"Orkney Islands Local Authority\"),$F161=1),0,IF(AND(OR(Calculations!$E$2=\"Shetland Health Board\",Calculations!$E$2=\"Western Isles Health Board\",Calculations!$E$2=\"Shetland Islands Local Authority\",Calculations!$E$2=\"Eilean Siar Local Authority\"),OR($F161=1,$F161=5)),0,prem_mort(VALUE(LEFT(Options!$B$14,2)),$C161,$E161,$F161,2016,$I161/10,1,$H161/10,$G161*$H161/10,RateRatios_accidents!$B$5)*10))","v":44.039743999000002},{"$f":"IF(AND(OR(Calculations!$E$2=\"Orkney Health Board\",Calculations!$E$2=\"Orkney Islands Local Authority\"),$F161=1),0,IF(AND(OR(Calculations!$E$2=\"Shetland Health Board\",Calculations!$E$2=\"Western Isles Health Board\",Calculations!$E$2=\"Shetland Islands Local Authority\",Calculations!$E$2=\"Eilean Siar Local Authority\"),OR($F161=1,$F161=5)),0,prem_mort(VALUE(LEFT(Options!$B$14,2)),$C161,$E161,$F161,2016,$I161/10+$J161/10,1,$H161/10,$G161*$H161/10,RateRatios_accidents!$B$5)*10))","v":44.031218792000004},null,{"$f":"IF(AND(OR(Calculations!$E$2=\"Orkney Health Board\",Calculations!$E$2=\"Orkney Islands Local Authority\"),$F161=1),0,IF(AND(OR(Calculations!$E$2=\"Shetland Health Board\",Calculations!$E$2=\"Western Isles Health Board\",Calculations!$E$2=\"Shetland Islands Local Authority\",Calculations!$E$2=\"Eilean Siar Local Authority\"),OR($F161=1,$F161=5)),0,new_ci(VALUE(LEFT(Options!$B$14,2)),$C161,$E161,$F161,2016,$I161/10,1,$H161/10,$G161*$H161/10,RateRatios_airpollution!$C161)*10))","v":44.039743999000002},{"$f":"IF(AND(OR(Calculations!$E$2=\"Orkney Health Board\",Calculations!$E$2=\"Orkney Islands Local Authority\"),$F161=1),0,IF(AND(OR(Calculations!$E$2=\"Shetland Health Board\",Calculations!$E$2=\"Western Isles Health Board\",Calculations!$E$2=\"Shetland Islands Local Authority\",Calculations!$E$2=\"Eilean Siar Local Authority\"),OR($F161=1,$F161=5)),0,new_ci(VALUE(LEFT(Options!$B$14,2)),$C161,$E161,$F161,2016,$I161/10+$J161/10,1,$H161/10,$G161*$H161/10,RateRatios_airpollution!$C161)*10))","v":44.039131820999998},{"$f":"IF(AND(OR(Calculations!$E$2=\"Orkney Health Board\",Calculations!$E$2=\"Orkney Islands Local Authority\"),$F161=1),0,IF(AND(OR(Calculations!$E$2=\"Shetland Health Board\",Calculations!$E$2=\"Western Isles Health Board\",Calculations!$E$2=\"Shetland Islands Local Authority\",Calculations!$E$2=\"Eilean Siar Local Authority\"),OR($F161=1,$F161=5)),0,new_yllv2(VALUE(LEFT(Options!$B$14,2)),$C161,$D161,$E161,$F161,2016,$I161/10,1,$H161/10,$G161*$H161/10,RateRatios_airpollution!$C161)*10))","v":1985.3115713950001},{"$f":"IF(AND(OR(Calculations!$E$2=\"Orkney Health Board\",Calculations!$E$2=\"Orkney Islands Local Authority\"),$F161=1),0,IF(AND(OR(Calculations!$E$2=\"Shetland Health Board\",Calculations!$E$2=\"Western Isles Health Board\",Calculations!$E$2=\"Shetland Islands Local Authority\",Calculations!$E$2=\"Eilean Siar Local Authority\"),OR($F161=1,$F161=5)),0,new_yllv2(VALUE(LEFT(Options!$B$14,2)),$C161,$D161,$E161,$F161,2016,$I161/10+$J161/10,1,$H161/10,$G161*$H161/10,RateRatios_airpollution!$C161)*10))","v":1985.2839744120001},{"$f":"IF(AND(OR(Calculations!$E$2=\"Orkney Health Board\",Calculations!$E$2=\"Orkney Islands Local Authority\"),$F161=1),0,IF(AND(OR(Calculations!$E$2=\"Shetland Health Board\",Calculations!$E$2=\"Western Isles Health Board\",Calculations!$E$2=\"Shetland Islands Local Authority\",Calculations!$E$2=\"Eilean Siar Local Authority\"),OR($F161=1,$F161=5)),0,hosp_count(VALUE(LEFT(Options!$B$14,2)),$C161,$E161,$F161,2016,$I161/10,1,$H161/10,$G161*$H161/10, RateRatios_airpollution!$D161, RateRatios_airpollution!$C161)*10))","v":3920.681540049},{"$f":"IF(AND(OR(Calculations!$E$2=\"Orkney Health Board\",Calculations!$E$2=\"Orkney Islands Local Authority\"),$F161=1),0,IF(AND(OR(Calculations!$E$2=\"Shetland Health Board\",Calculations!$E$2=\"Western Isles Health Board\",Calculations!$E$2=\"Shetland Islands Local Authority\",Calculations!$E$2=\"Eilean Siar Local Authority\"),OR($F161=1,$F161=5)),0,hosp_count(VALUE(LEFT(Options!$B$14,2)),$C161,$E161,$F161,2016,$I161/10+$J161/10,1,$H161/10,$G161*$H161/10, RateRatios_airpollution!$D161, RateRatios_airpollution!$C161)*10))","v":3920.5790430029997},{"$f":"IF(AND(OR(Calculations!$E$2=\"Orkney Health Board\",Calculations!$E$2=\"Orkney Islands Local Authority\"),$F161=1),0,IF(AND(OR(Calculations!$E$2=\"Shetland Health Board\",Calculations!$E$2=\"Western Isles Health Board\",Calculations!$E$2=\"Shetland Islands Local Authority\",Calculations!$E$2=\"Eilean Siar Local Authority\"),OR($F161=1,$F161=5)),0,prem_mort(VALUE(LEFT(Options!$B$14,2)),$C161,$E161,$F161,2016,$I161/10,1,$H161/10,$G161*$H161/10,RateRatios_airpollution!$C161)*10))","v":44.039743999000002},{"$f":"IF(AND(OR(Calculations!$E$2=\"Orkney Health Board\",Calculations!$E$2=\"Orkney Islands Local Authority\"),$F161=1),0,IF(AND(OR(Calculations!$E$2=\"Shetland Health Board\",Calculations!$E$2=\"Western Isles Health Board\",Calculations!$E$2=\"Shetland Islands Local Authority\",Calculations!$E$2=\"Eilean Siar Local Authority\"),OR($F161=1,$F161=5)),0,prem_mort(VALUE(LEFT(Options!$B$14,2)),$C161,$E161,$F161,2016,$I161/10+$J161/10,1,$H161/10,$G161*$H161/10,RateRatios_airpollution!$C161)*10))","v":44.039131820999998},null,{"$f":"IF(AND(OR(Calculations!$E$2=\"Orkney Health Board\",Calculations!$E$2=\"Orkney Islands Local Authority\"),$F161=1),0,IF(AND(OR(Calculations!$E$2=\"Shetland Health Board\",Calculations!$E$2=\"Western Isles Health Board\",Calculations!$E$2=\"Shetland Islands Local Authority\",Calculations!$E$2=\"Eilean Siar Local Authority\"),OR($F161=1,$F161=5)),0,new_ci(VALUE(LEFT(Options!$B$14,2)),$C161,$E161,$F161,2016,$I161/10,1,$H161/10,$G161*$H161/10,RateRatios_airpollution!$E161)*10))","v":44.039743999000002},{"$f":"IF(AND(OR(Calculations!$E$2=\"Orkney Health Board\",Calculations!$E$2=\"Orkney Islands Local Authority\"),$F161=1),0,IF(AND(OR(Calculations!$E$2=\"Shetland Health Board\",Calculations!$E$2=\"Western Isles Health Board\",Calculations!$E$2=\"Shetland Islands Local Authority\",Calculations!$E$2=\"Eilean Siar Local Authority\"),OR($F161=1,$F161=5)),0,new_ci(VALUE(LEFT(Options!$B$14,2)),$C161,$E161,$F161,2016,$I161/10+$J161/10,1,$H161/10,$G161*$H161/10,RateRatios_airpollution!$E161)*10))","v":44.039485710000001},{"$f":"IF(AND(OR(Calculations!$E$2=\"Orkney Health Board\",Calculations!$E$2=\"Orkney Islands Local Authority\"),$F161=1),0,IF(AND(OR(Calculations!$E$2=\"Shetland Health Board\",Calculations!$E$2=\"Western Isles Health Board\",Calculations!$E$2=\"Shetland Islands Local Authority\",Calculations!$E$2=\"Eilean Siar Local Authority\"),OR($F161=1,$F161=5)),0,new_yllv2(VALUE(LEFT(Options!$B$14,2)),$C161,$D161,$E161,$F161,2016,$I161/10,1,$H161/10,$G161*$H161/10,RateRatios_airpollution!$E161)*10))","v":1985.3115713950001},{"$f":"IF(AND(OR(Calculations!$E$2=\"Orkney Health Board\",Calculations!$E$2=\"Orkney Islands Local Authority\"),$F161=1),0,IF(AND(OR(Calculations!$E$2=\"Shetland Health Board\",Calculations!$E$2=\"Western Isles Health Board\",Calculations!$E$2=\"Shetland Islands Local Authority\",Calculations!$E$2=\"Eilean Siar Local Authority\"),OR($F161=1,$F161=5)),0,new_yllv2(VALUE(LEFT(Options!$B$14,2)),$C161,$D161,$E161,$F161,2016,$I161/10+$J161/10,1,$H161/10,$G161*$H161/10,RateRatios_airpollution!$E161)*10))","v":1985.2999277280001},{"$f":"IF(AND(OR(Calculations!$E$2=\"Orkney Health Board\",Calculations!$E$2=\"Orkney Islands Local Authority\"),$F161=1),0,IF(AND(OR(Calculations!$E$2=\"Shetland Health Board\",Calculations!$E$2=\"Western Isles Health Board\",Calculations!$E$2=\"Shetland Islands Local Authority\",Calculations!$E$2=\"Eilean Siar Local Authority\"),OR($F161=1,$F161=5)),0,hosp_count(VALUE(LEFT(Options!$B$14,2)),$C161,$E161,$F161,2016,$I161/10,1,$H161/10,$G161*$H161/10, RateRatios_airpollution!$F161, RateRatios_airpollution!$E161)*10))","v":3920.681540049},{"$f":"IF(AND(OR(Calculations!$E$2=\"Orkney Health Board\",Calculations!$E$2=\"Orkney Islands Local Authority\"),$F161=1),0,IF(AND(OR(Calculations!$E$2=\"Shetland Health Board\",Calculations!$E$2=\"Western Isles Health Board\",Calculations!$E$2=\"Shetland Islands Local Authority\",Calculations!$E$2=\"Eilean Siar Local Authority\"),OR($F161=1,$F161=5)),0,hosp_count(VALUE(LEFT(Options!$B$14,2)),$C161,$E161,$F161,2016,$I161/10+$J161/10,1,$H161/10,$G161*$H161/10, RateRatios_airpollution!$F161, RateRatios_airpollution!$E161)*10))","v":3920.681540049},{"$f":"IF(AND(OR(Calculations!$E$2=\"Orkney Health Board\",Calculations!$E$2=\"Orkney Islands Local Authority\"),$F161=1),0,IF(AND(OR(Calculations!$E$2=\"Shetland Health Board\",Calculations!$E$2=\"Western Isles Health Board\",Calculations!$E$2=\"Shetland Islands Local Authority\",Calculations!$E$2=\"Eilean Siar Local Authority\"),OR($F161=1,$F161=5)),0,prem_mort(VALUE(LEFT(Options!$B$14,2)),$C161,$E161,$F161,2016,$I161/10,1,$H161/10,$G161*$H161/10,RateRatios_airpollution!$E161)*10))","v":44.039743999000002},{"$f":"IF(AND(OR(Calculations!$E$2=\"Orkney Health Board\",Calculations!$E$2=\"Orkney Islands Local Authority\"),$F161=1),0,IF(AND(OR(Calculations!$E$2=\"Shetland Health Board\",Calculations!$E$2=\"Western Isles Health Board\",Calculations!$E$2=\"Shetland Islands Local Authority\",Calculations!$E$2=\"Eilean Siar Local Authority\"),OR($F161=1,$F161=5)),0,prem_mort(VALUE(LEFT(Options!$B$14,2)),$C161,$E161,$F161,2016,$I161/10+$J161/10,1,$H161/10,$G161*$H161/10,RateRatios_airpollution!$E161)*10))","v":44.039485710000001},44.039743999000002,44.030348324999999,1985.3115713950001,1984.8880144309999,3920.681540049,3919.819782949,44.039743999000002,44.030348324999999,127.12450999913403,127.09738857777904,5730.772656510695,5729.5500228935134,11317.384579998845,11314.897043988685,127.12450999913403,127.09738857777904,826309.31499437126,826133.02575556375,37250022.267319515,37242075.148807839,73562999.769992486,73546830.785926461,826309.31499437126,826133.02575556375,6500]
[null,"Male 35-39",36.926009999999998,78.336009999999987,"male",3,1,{"$f":"HLOOKUP(Calculations!$E$2,'Population 2016'!$C$3:$BC$249,'Population 2016'!BD162,FALSE)","v":32007},0,{"$f":"HLOOKUP(Calculations!$E$2,Pop2016_in_settlements!$C$3:$BC$249,Pop2016_in_settlements!$BD162,FALSE)","v":15042},{"$f":"IF(AND(OR(Calculations!$E$2=\"Orkney Health Board\",Calculations!$E$2=\"Orkney Islands Local Authority\"),$F162=1),0,IF(AND(OR(Calculations!$E$2=\"Shetland Health Board\",Calculations!$E$2=\"Western Isles Health Board\",Calculations!$E$2=\"Shetland Islands Local Authority\",Calculations!$E$2=\"Eilean Siar Local Authority\"),OR($F162=1,$F162=5)),0,new_ci(VALUE(LEFT(Options!$B$14,2)),$C162,$E162,$F162,2016,$I162/10,1,$H162/10,$G162*$H162/10,RateRatios_accidents!$B$5)*10))","v":59.084057811000001},{"$f":"IF(AND(OR(Calculations!$E$2=\"Orkney Health Board\",Calculations!$E$2=\"Orkney Islands Local Authority\"),$F162=1),0,IF(AND(OR(Calculations!$E$2=\"Shetland Health Board\",Calculations!$E$2=\"Western Isles Health Board\",Calculations!$E$2=\"Shetland Islands Local Authority\",Calculations!$E$2=\"Eilean Siar Local Authority\"),OR($F162=1,$F162=5)),0,new_ci(VALUE(LEFT(Options!$B$14,2)),$C162,$E162,$F162,2016,$I162/10+$J162/10,1,$H162/10,$G162*$H162/10,RateRatios_accidents!$B$5)*10))","v":59.072962832000002},{"$f":"IF(AND(OR(Calculations!$E$2=\"Orkney Health Board\",Calculations!$E$2=\"Orkney Islands Local Authority\"),$F162=1),0,IF(AND(OR(Calculations!$E$2=\"Shetland Health Board\",Calculations!$E$2=\"Western Isles Health Board\",Calculations!$E$2=\"Shetland Islands Local Authority\",Calculations!$E$2=\"Eilean Siar Local Authority\"),OR($F162=1,$F162=5)),0,new_yllv2(VALUE(LEFT(Options!$B$14,2)),$C162,$D162,$E162,$F162,2016,$I162/10,1,$H162/10,$G162*$H162/10,RateRatios_accidents!$B$5)*10))","v":2387.586776143},{"$f":"IF(AND(OR(Calculations!$E$2=\"Orkney Health Board\",Calculations!$E$2=\"Orkney Islands Local Authority\"),$F162=1),0,IF(AND(OR(Calculations!$E$2=\"Shetland Health Board\",Calculations!$E$2=\"Western Isles Health Board\",Calculations!$E$2=\"Shetland Islands Local Authority\",Calculations!$E$2=\"Eilean Siar Local Authority\"),OR($F162=1,$F162=5)),0,new_yllv2(VALUE(LEFT(Options!$B$14,2)),$C162,$D162,$E162,$F162,2016,$I162/10+$J162/10,1,$H162/10,$G162*$H162/10,RateRatios_accidents!$B$5)*10))","v":2387.1384280410002},{"$f":"IF(AND(OR(Calculations!$E$2=\"Orkney Health Board\",Calculations!$E$2=\"Orkney Islands Local Authority\"),$F162=1),0,IF(AND(OR(Calculations!$E$2=\"Shetland Health Board\",Calculations!$E$2=\"Western Isles Health Board\",Calculations!$E$2=\"Shetland Islands Local Authority\",Calculations!$E$2=\"Eilean Siar Local Authority\"),OR($F162=1,$F162=5)),0,hosp_count(VALUE(LEFT(Options!$B$14,2)),$C162,$E162,$F162,2016,$I162/10,1,$H162/10,$G162*$H162/10, RateRatios_accidents!$B$4, RateRatios_accidents!$B$5)*10))","v":4317.2989802080001},{"$f":"IF(AND(OR(Calculations!$E$2=\"Orkney Health Board\",Calculations!$E$2=\"Orkney Islands Local Authority\"),$F162=1),0,IF(AND(OR(Calculations!$E$2=\"Shetland Health Board\",Calculations!$E$2=\"Western Isles Health Board\",Calculations!$E$2=\"Shetland Islands Local Authority\",Calculations!$E$2=\"Eilean Siar Local Authority\"),OR($F162=1,$F162=5)),0,hosp_count(VALUE(LEFT(Options!$B$14,2)),$C162,$E162,$F162,2016,$I162/10+$J162/10,1,$H162/10,$G162*$H162/10, RateRatios_accidents!$B$4, RateRatios_accidents!$B$5)*10))","v":4316.4873981230003},{"$f":"IF(AND(OR(Calculations!$E$2=\"Orkney Health Board\",Calculations!$E$2=\"Orkney Islands Local Authority\"),$F162=1),0,IF(AND(OR(Calculations!$E$2=\"Shetland Health Board\",Calculations!$E$2=\"Western Isles Health Board\",Calculations!$E$2=\"Shetland Islands Local Authority\",Calculations!$E$2=\"Eilean Siar Local Authority\"),OR($F162=1,$F162=5)),0,prem_mort(VALUE(LEFT(Options!$B$14,2)),$C162,$E162,$F162,2016,$I162/10,1,$H162/10,$G162*$H162/10,RateRatios_accidents!$B$5)*10))","v":59.084057811000001},{"$f":"IF(AND(OR(Calculations!$E$2=\"Orkney Health Board\",Calculations!$E$2=\"Orkney Islands Local Authority\"),$F162=1),0,IF(AND(OR(Calculations!$E$2=\"Shetland Health Board\",Calculations!$E$2=\"Western Isles Health Board\",Calculations!$E$2=\"Shetland Islands Local Authority\",Calculations!$E$2=\"Eilean Siar Local Authority\"),OR($F162=1,$F162=5)),0,prem_mort(VALUE(LEFT(Options!$B$14,2)),$C162,$E162,$F162,2016,$I162/10+$J162/10,1,$H162/10,$G162*$H162/10,RateRatios_accidents!$B$5)*10))","v":59.072962832000002},null,{"$f":"IF(AND(OR(Calculations!$E$2=\"Orkney Health Board\",Calculations!$E$2=\"Orkney Islands Local Authority\"),$F162=1),0,IF(AND(OR(Calculations!$E$2=\"Shetland Health Board\",Calculations!$E$2=\"Western Isles Health Board\",Calculations!$E$2=\"Shetland Islands Local Authority\",Calculations!$E$2=\"Eilean Siar Local Authority\"),OR($F162=1,$F162=5)),0,new_ci(VALUE(LEFT(Options!$B$14,2)),$C162,$E162,$F162,2016,$I162/10,1,$H162/10,$G162*$H162/10,RateRatios_airpollution!$C162)*10))","v":59.084057811000001},{"$f":"IF(AND(OR(Calculations!$E$2=\"Orkney Health Board\",Calculations!$E$2=\"Orkney Islands Local Authority\"),$F162=1),0,IF(AND(OR(Calculations!$E$2=\"Shetland Health Board\",Calculations!$E$2=\"Western Isles Health Board\",Calculations!$E$2=\"Shetland Islands Local Authority\",Calculations!$E$2=\"Eilean Siar Local Authority\"),OR($F162=1,$F162=5)),0,new_ci(VALUE(LEFT(Options!$B$14,2)),$C162,$E162,$F162,2016,$I162/10+$J162/10,1,$H162/10,$G162*$H162/10,RateRatios_airpollution!$C162)*10))","v":59.083337299},{"$f":"IF(AND(OR(Calculations!$E$2=\"Orkney Health Board\",Calculations!$E$2=\"Orkney Islands Local Authority\"),$F162=1),0,IF(AND(OR(Calculations!$E$2=\"Shetland Health Board\",Calculations!$E$2=\"Western Isles Health Board\",Calculations!$E$2=\"Shetland Islands Local Authority\",Calculations!$E$2=\"Eilean Siar Local Authority\"),OR($F162=1,$F162=5)),0,new_yllv2(VALUE(LEFT(Options!$B$14,2)),$C162,$D162,$E162,$F162,2016,$I162/10,1,$H162/10,$G162*$H162/10,RateRatios_airpollution!$C162)*10))","v":2387.586776143},{"$f":"IF(AND(OR(Calculations!$E$2=\"Orkney Health Board\",Calculations!$E$2=\"Orkney Islands Local Authority\"),$F162=1),0,IF(AND(OR(Calculations!$E$2=\"Shetland Health Board\",Calculations!$E$2=\"Western Isles Health Board\",Calculations!$E$2=\"Shetland Islands Local Authority\",Calculations!$E$2=\"Eilean Siar Local Authority\"),OR($F162=1,$F162=5)),0,new_yllv2(VALUE(LEFT(Options!$B$14,2)),$C162,$D162,$E162,$F162,2016,$I162/10+$J162/10,1,$H162/10,$G162*$H162/10,RateRatios_airpollution!$C162)*10))","v":2387.557660253},{"$f":"IF(AND(OR(Calculations!$E$2=\"Orkney Health Board\",Calculations!$E$2=\"Orkney Islands Local Authority\"),$F162=1),0,IF(AND(OR(Calculations!$E$2=\"Shetland Health Board\",Calculations!$E$2=\"Western Isles Health Board\",Calculations!$E$2=\"Shetland Islands Local Authority\",Calculations!$E$2=\"Eilean Siar Local Authority\"),OR($F162=1,$F162=5)),0,hosp_count(VALUE(LEFT(Options!$B$14,2)),$C162,$E162,$F162,2016,$I162/10,1,$H162/10,$G162*$H162/10, RateRatios_airpollution!$D162, RateRatios_airpollution!$C162)*10))","v":4317.2989802080001},{"$f":"IF(AND(OR(Calculations!$E$2=\"Orkney Health Board\",Calculations!$E$2=\"Orkney Islands Local Authority\"),$F162=1),0,IF(AND(OR(Calculations!$E$2=\"Shetland Health Board\",Calculations!$E$2=\"Western Isles Health Board\",Calculations!$E$2=\"Shetland Islands Local Authority\",Calculations!$E$2=\"Eilean Siar Local Authority\"),OR($F162=1,$F162=5)),0,hosp_count(VALUE(LEFT(Options!$B$14,2)),$C162,$E162,$F162,2016,$I162/10+$J162/10,1,$H162/10,$G162*$H162/10, RateRatios_airpollution!$D162, RateRatios_airpollution!$C162)*10))","v":4317.1997225619998},{"$f":"IF(AND(OR(Calculations!$E$2=\"Orkney Health Board\",Calculations!$E$2=\"Orkney Islands Local Authority\"),$F162=1),0,IF(AND(OR(Calculations!$E$2=\"Shetland Health Board\",Calculations!$E$2=\"Western Isles Health Board\",Calculations!$E$2=\"Shetland Islands Local Authority\",Calculations!$E$2=\"Eilean Siar Local Authority\"),OR($F162=1,$F162=5)),0,prem_mort(VALUE(LEFT(Options!$B$14,2)),$C162,$E162,$F162,2016,$I162/10,1,$H162/10,$G162*$H162/10,RateRatios_airpollution!$C162)*10))","v":59.084057811000001},{"$f":"IF(AND(OR(Calculations!$E$2=\"Orkney Health Board\",Calculations!$E$2=\"Orkney Islands Local Authority\"),$F162=1),0,IF(AND(OR(Calculations!$E$2=\"Shetland Health Board\",Calculations!$E$2=\"Western Isles Health Board\",Calculations!$E$2=\"Shetland Islands Local Authority\",Calculations!$E$2=\"Eilean Siar Local Authority\"),OR($F162=1,$F162=5)),0,prem_mort(VALUE(LEFT(Options!$B$14,2)),$C162,$E162,$F162,2016,$I162/10+$J162/10,1,$H162/10,$G162*$H162/10,RateRatios_airpollution!$C162)*10))","v":59.083337299},null,{"$f":"IF(AND(OR(Calculations!$E$2=\"Orkney Health Board\",Calculations!$E$2=\"Orkney Islands Local Authority\"),$F162=1),0,IF(AND(OR(Calculations!$E$2=\"Shetland Health Board\",Calculations!$E$2=\"Western Isles Health Board\",Calculations!$E$2=\"Shetland Islands Local Authority\",Calculations!$E$2=\"Eilean Siar Local Authority\"),OR($F162=1,$F162=5)),0,new_ci(VALUE(LEFT(Options!$B$14,2)),$C162,$E162,$F162,2016,$I162/10,1,$H162/10,$G162*$H162/10,RateRatios_airpollution!$E162)*10))","v":59.084057811000001},{"$f":"IF(AND(OR(Calculations!$E$2=\"Orkney Health Board\",Calculations!$E$2=\"Orkney Islands Local Authority\"),$F162=1),0,IF(AND(OR(Calculations!$E$2=\"Shetland Health Board\",Calculations!$E$2=\"Western Isles Health Board\",Calculations!$E$2=\"Shetland Islands Local Authority\",Calculations!$E$2=\"Eilean Siar Local Authority\"),OR($F162=1,$F162=5)),0,new_ci(VALUE(LEFT(Options!$B$14,2)),$C162,$E162,$F162,2016,$I162/10+$J162/10,1,$H162/10,$G162*$H162/10,RateRatios_airpollution!$E162)*10))","v":59.083749449999999},{"$f":"IF(AND(OR(Calculations!$E$2=\"Orkney Health Board\",Calculations!$E$2=\"Orkney Islands Local Authority\"),$F162=1),0,IF(AND(OR(Calculations!$E$2=\"Shetland Health Board\",Calculations!$E$2=\"Western Isles Health Board\",Calculations!$E$2=\"Shetland Islands Local Authority\",Calculations!$E$2=\"Eilean Siar Local Authority\"),OR($F162=1,$F162=5)),0,new_yllv2(VALUE(LEFT(Options!$B$14,2)),$C162,$D162,$E162,$F162,2016,$I162/10,1,$H162/10,$G162*$H162/10,RateRatios_airpollution!$E162)*10))","v":2387.586776143},{"$f":"IF(AND(OR(Calculations!$E$2=\"Orkney Health Board\",Calculations!$E$2=\"Orkney Islands Local Authority\"),$F162=1),0,IF(AND(OR(Calculations!$E$2=\"Shetland Health Board\",Calculations!$E$2=\"Western Isles Health Board\",Calculations!$E$2=\"Shetland Islands Local Authority\",Calculations!$E$2=\"Eilean Siar Local Authority\"),OR($F162=1,$F162=5)),0,new_yllv2(VALUE(LEFT(Options!$B$14,2)),$C162,$D162,$E162,$F162,2016,$I162/10+$J162/10,1,$H162/10,$G162*$H162/10,RateRatios_airpollution!$E162)*10))","v":2387.5743152740001},{"$f":"IF(AND(OR(Calculations!$E$2=\"Orkney Health Board\",Calculations!$E$2=\"Orkney Islands Local Authority\"),$F162=1),0,IF(AND(OR(Calculations!$E$2=\"Shetland Health Board\",Calculations!$E$2=\"Western Isles Health Board\",Calculations!$E$2=\"Shetland Islands Local Authority\",Calculations!$E$2=\"Eilean Siar Local Authority\"),OR($F162=1,$F162=5)),0,hosp_count(VALUE(LEFT(Options!$B$14,2)),$C162,$E162,$F162,2016,$I162/10,1,$H162/10,$G162*$H162/10, RateRatios_airpollution!$F162, RateRatios_airpollution!$E162)*10))","v":4317.2989802080001},{"$f":"IF(AND(OR(Calculations!$E$2=\"Orkney Health Board\",Calculations!$E$2=\"Orkney Islands Local Authority\"),$F162=1),0,IF(AND(OR(Calculations!$E$2=\"Shetland Health Board\",Calculations!$E$2=\"Western Isles Health Board\",Calculations!$E$2=\"Shetland Islands Local Authority\",Calculations!$E$2=\"Eilean Siar Local Authority\"),OR($F162=1,$F162=5)),0,hosp_count(VALUE(LEFT(Options!$B$14,2)),$C162,$E162,$F162,2016,$I162/10+$J162/10,1,$H162/10,$G162*$H162/10, RateRatios_airpollution!$F162, RateRatios_airpollution!$E162)*10))","v":4317.2989802080001},{"$f":"IF(AND(OR(Calculations!$E$2=\"Orkney Health Board\",Calculations!$E$2=\"Orkney Islands Local Authority\"),$F162=1),0,IF(AND(OR(Calculations!$E$2=\"Shetland Health Board\",Calculations!$E$2=\"Western Isles Health Board\",Calculations!$E$2=\"Shetland Islands Local Authority\",Calculations!$E$2=\"Eilean Siar Local Authority\"),OR($F162=1,$F162=5)),0,prem_mort(VALUE(LEFT(Options!$B$14,2)),$C162,$E162,$F162,2016,$I162/10,1,$H162/10,$G162*$H162/10,RateRatios_airpollution!$E162)*10))","v":59.084057811000001},{"$f":"IF(AND(OR(Calculations!$E$2=\"Orkney Health Board\",Calculations!$E$2=\"Orkney Islands Local Authority\"),$F162=1),0,IF(AND(OR(Calculations!$E$2=\"Shetland Health Board\",Calculations!$E$2=\"Western Isles Health Board\",Calculations!$E$2=\"Shetland Islands Local Authority\",Calculations!$E$2=\"Eilean Siar Local Authority\"),OR($F162=1,$F162=5)),0,prem_mort(VALUE(LEFT(Options!$B$14,2)),$C162,$E162,$F162,2016,$I162/10+$J162/10,1,$H162/10,$G162*$H162/10,RateRatios_airpollution!$E162)*10))","v":59.083749449999999},59.084057811000001,59.071933958999999,2387.586776143,2387.0968512820004,4317.2989802080001,4316.388140477,59.084057811000001,59.071933958999999,184.59730000000002,184.55942124847689,7459.5768930015302,7458.0462126472348,13488.608680001249,13485.762928350048,184.59730000000002,184.55942124847689,1292181.1000000001,1291915.9487393382,52217038.251010709,52206323.488530643,94420260.760008737,94400340.498450339,1292181.1000000001,1291915.9487393382,7000]
[null,"Male 40-44",42.067703000000002,78.907700000000006,"male",3,1,{"$f":"HLOOKUP(Calculations!$E$2,'Population 2016'!$C$3:$BC$249,'Population 2016'!BD163,FALSE)","v":31831},0,{"$f":"HLOOKUP(Calculations!$E$2,Pop2016_in_settlements!$C$3:$BC$249,Pop2016_in_settlements!$BD163,FALSE)","v":14307},{"$f":"IF(AND(OR(Calculations!$E$2=\"Orkney Health Board\",Calculations!$E$2=\"Orkney Islands Local Authority\"),$F163=1),0,IF(AND(OR(Calculations!$E$2=\"Shetland Health Board\",Calculations!$E$2=\"Western Isles Health Board\",Calculations!$E$2=\"Shetland Islands Local Authority\",Calculations!$E$2=\"Eilean Siar Local Authority\"),OR($F163=1,$F163=5)),0,new_ci(VALUE(LEFT(Options!$B$14,2)),$C163,$E163,$F163,2016,$I163/10,1,$H163/10,$G163*$H163/10,RateRatios_accidents!$B$5)*10))","v":86.590945188000006},{"$f":"IF(AND(OR(Calculations!$E$2=\"Orkney Health Board\",Calculations!$E$2=\"Orkney Islands Local Authority\"),$F163=1),0,IF(AND(OR(Calculations!$E$2=\"Shetland Health Board\",Calculations!$E$2=\"Western Isles Health Board\",Calculations!$E$2=\"Shetland Islands Local Authority\",Calculations!$E$2=\"Eilean Siar Local Authority\"),OR($F163=1,$F163=5)),0,new_ci(VALUE(LEFT(Options!$B$14,2)),$C163,$E163,$F163,2016,$I163/10+$J163/10,1,$H163/10,$G163*$H163/10,RateRatios_accidents!$B$5)*10))","v":86.575396340000012},{"$f":"IF(AND(OR(Calculations!$E$2=\"Orkney Health Board\",Calculations!$E$2=\"Orkney Islands Local Authority\"),$F163=1),0,IF(AND(OR(Calculations!$E$2=\"Shetland Health Board\",Calculations!$E$2=\"Western Isles Health Board\",Calculations!$E$2=\"Shetland Islands Local Authority\",Calculations!$E$2=\"Eilean Siar Local Authority\"),OR($F163=1,$F163=5)),0,new_yllv2(VALUE(LEFT(Options!$B$14,2)),$C163,$D163,$E163,$F163,2016,$I163/10,1,$H163/10,$G163*$H163/10,RateRatios_accidents!$B$5)*10))","v":3103.419215765},{"$f":"IF(AND(OR(Calculations!$E$2=\"Orkney Health Board\",Calculations!$E$2=\"Orkney Islands Local Authority\"),$F163=1),0,IF(AND(OR(Calculations!$E$2=\"Shetland Health Board\",Calculations!$E$2=\"Western Isles Health Board\",Calculations!$E$2=\"Shetland Islands Local Authority\",Calculations!$E$2=\"Eilean Siar Local Authority\"),OR($F163=1,$F163=5)),0,new_yllv2(VALUE(LEFT(Options!$B$14,2)),$C163,$D163,$E163,$F163,2016,$I163/10+$J163/10,1,$H163/10,$G163*$H163/10,RateRatios_accidents!$B$5)*10))","v":3102.861945099},{"$f":"IF(AND(OR(Calculations!$E$2=\"Orkney Health Board\",Calculations!$E$2=\"Orkney Islands Local Authority\"),$F163=1),0,IF(AND(OR(Calculations!$E$2=\"Shetland Health Board\",Calculations!$E$2=\"Western Isles Health Board\",Calculations!$E$2=\"Shetland Islands Local Authority\",Calculations!$E$2=\"Eilean Siar Local Authority\"),OR($F163=1,$F163=5)),0,hosp_count(VALUE(LEFT(Options!$B$14,2)),$C163,$E163,$F163,2016,$I163/10,1,$H163/10,$G163*$H163/10, RateRatios_accidents!$B$4, RateRatios_accidents!$B$5)*10))","v":5153.2179005499993},{"$f":"IF(AND(OR(Calculations!$E$2=\"Orkney Health Board\",Calculations!$E$2=\"Orkney Islands Local Authority\"),$F163=1),0,IF(AND(OR(Calculations!$E$2=\"Shetland Health Board\",Calculations!$E$2=\"Western Isles Health Board\",Calculations!$E$2=\"Shetland Islands Local Authority\",Calculations!$E$2=\"Eilean Siar Local Authority\"),OR($F163=1,$F163=5)),0,hosp_count(VALUE(LEFT(Options!$B$14,2)),$C163,$E163,$F163,2016,$I163/10+$J163/10,1,$H163/10,$G163*$H163/10, RateRatios_accidents!$B$4, RateRatios_accidents!$B$5)*10))","v":5152.2914192899998},{"$f":"IF(AND(OR(Calculations!$E$2=\"Orkney Health Board\",Calculations!$E$2=\"Orkney Islands Local Authority\"),$F163=1),0,IF(AND(OR(Calculations!$E$2=\"Shetland Health Board\",Calculations!$E$2=\"Western Isles Health Board\",Calculations!$E$2=\"Shetland Islands Local Authority\",Calculations!$E$2=\"Eilean Siar Local Authority\"),OR($F163=1,$F163=5)),0,prem_mort(VALUE(LEFT(Options!$B$14,2)),$C163,$E163,$F163,2016,$I163/10,1,$H163/10,$G163*$H163/10,RateRatios_accidents!$B$5)*10))","v":86.590945188000006},{"$f":"IF(AND(OR(Calculations!$E$2=\"Orkney Health Board\",Calculations!$E$2=\"Orkney Islands Local Authority\"),$F163=1),0,IF(AND(OR(Calculations!$E$2=\"Shetland Health Board\",Calculations!$E$2=\"Western Isles Health Board\",Calculations!$E$2=\"Shetland Islands Local Authority\",Calculations!$E$2=\"Eilean Siar Local Authority\"),OR($F163=1,$F163=5)),0,prem_mort(VALUE(LEFT(Options!$B$14,2)),$C163,$E163,$F163,2016,$I163/10+$J163/10,1,$H163/10,$G163*$H163/10,RateRatios_accidents!$B$5)*10))","v":86.575396340000012},null,{"$f":"IF(AND(OR(Calculations!$E$2=\"Orkney Health Board\",Calculations!$E$2=\"Orkney Islands Local Authority\"),$F163=1),0,IF(AND(OR(Calculations!$E$2=\"Shetland Health Board\",Calculations!$E$2=\"Western Isles Health Board\",Calculations!$E$2=\"Shetland Islands Local Authority\",Calculations!$E$2=\"Eilean Siar Local Authority\"),OR($F163=1,$F163=5)),0,new_ci(VALUE(LEFT(Options!$B$14,2)),$C163,$E163,$F163,2016,$I163/10,1,$H163/10,$G163*$H163/10,RateRatios_airpollution!$C163)*10))","v":86.590945188000006},{"$f":"IF(AND(OR(Calculations!$E$2=\"Orkney Health Board\",Calculations!$E$2=\"Orkney Islands Local Authority\"),$F163=1),0,IF(AND(OR(Calculations!$E$2=\"Shetland Health Board\",Calculations!$E$2=\"Western Isles Health Board\",Calculations!$E$2=\"Shetland Islands Local Authority\",Calculations!$E$2=\"Eilean Siar Local Authority\"),OR($F163=1,$F163=5)),0,new_ci(VALUE(LEFT(Options!$B$14,2)),$C163,$E163,$F163,2016,$I163/10+$J163/10,1,$H163/10,$G163*$H163/10,RateRatios_airpollution!$C163)*10))","v":86.59004384699999},{"$f":"IF(AND(OR(Calculations!$E$2=\"Orkney Health Board\",Calculations!$E$2=\"Orkney Islands Local Authority\"),$F163=1),0,IF(AND(OR(Calculations!$E$2=\"Shetland Health Board\",Calculations!$E$2=\"Western Isles Health Board\",Calculations!$E$2=\"Shetland Islands Local Authority\",Calculations!$E$2=\"Eilean Siar Local Authority\"),OR($F163=1,$F163=5)),0,new_yllv2(VALUE(LEFT(Options!$B$14,2)),$C163,$D163,$E163,$F163,2016,$I163/10,1,$H163/10,$G163*$H163/10,RateRatios_airpollution!$C163)*10))","v":3103.419215765},{"$f":"IF(AND(OR(Calculations!$E$2=\"Orkney Health Board\",Calculations!$E$2=\"Orkney Islands Local Authority\"),$F163=1),0,IF(AND(OR(Calculations!$E$2=\"Shetland Health Board\",Calculations!$E$2=\"Western Isles Health Board\",Calculations!$E$2=\"Shetland Islands Local Authority\",Calculations!$E$2=\"Eilean Siar Local Authority\"),OR($F163=1,$F163=5)),0,new_yllv2(VALUE(LEFT(Options!$B$14,2)),$C163,$D163,$E163,$F163,2016,$I163/10+$J163/10,1,$H163/10,$G163*$H163/10,RateRatios_airpollution!$C163)*10))","v":3103.3869117059999},{"$f":"IF(AND(OR(Calculations!$E$2=\"Orkney Health Board\",Calculations!$E$2=\"Orkney Islands Local Authority\"),$F163=1),0,IF(AND(OR(Calculations!$E$2=\"Shetland Health Board\",Calculations!$E$2=\"Western Isles Health Board\",Calculations!$E$2=\"Shetland Islands Local Authority\",Calculations!$E$2=\"Eilean Siar Local Authority\"),OR($F163=1,$F163=5)),0,hosp_count(VALUE(LEFT(Options!$B$14,2)),$C163,$E163,$F163,2016,$I163/10,1,$H163/10,$G163*$H163/10, RateRatios_airpollution!$D163, RateRatios_airpollution!$C163)*10))","v":5153.2179005499993},{"$f":"IF(AND(OR(Calculations!$E$2=\"Orkney Health Board\",Calculations!$E$2=\"Orkney Islands Local Authority\"),$F163=1),0,IF(AND(OR(Calculations!$E$2=\"Shetland Health Board\",Calculations!$E$2=\"Western Isles Health Board\",Calculations!$E$2=\"Shetland Islands Local Authority\",Calculations!$E$2=\"Eilean Siar Local Authority\"),OR($F163=1,$F163=5)),0,hosp_count(VALUE(LEFT(Options!$B$14,2)),$C163,$E163,$F163,2016,$I163/10+$J163/10,1,$H163/10,$G163*$H163/10, RateRatios_airpollution!$D163, RateRatios_airpollution!$C163)*10))","v":5153.116813011},{"$f":"IF(AND(OR(Calculations!$E$2=\"Orkney Health Board\",Calculations!$E$2=\"Orkney Islands Local Authority\"),$F163=1),0,IF(AND(OR(Calculations!$E$2=\"Shetland Health Board\",Calculations!$E$2=\"Western Isles Health Board\",Calculations!$E$2=\"Shetland Islands Local Authority\",Calculations!$E$2=\"Eilean Siar Local Authority\"),OR($F163=1,$F163=5)),0,prem_mort(VALUE(LEFT(Options!$B$14,2)),$C163,$E163,$F163,2016,$I163/10,1,$H163/10,$G163*$H163/10,RateRatios_airpollution!$C163)*10))","v":86.590945188000006},{"$f":"IF(AND(OR(Calculations!$E$2=\"Orkney Health Board\",Calculations!$E$2=\"Orkney Islands Local Authority\"),$F163=1),0,IF(AND(OR(Calculations!$E$2=\"Shetland Health Board\",Calculations!$E$2=\"Western Isles Health Board\",Calculations!$E$2=\"Shetland Islands Local Authority\",Calculations!$E$2=\"Eilean Siar Local Authority\"),OR($F163=1,$F163=5)),0,prem_mort(VALUE(LEFT(Options!$B$14,2)),$C163,$E163,$F163,2016,$I163/10+$J163/10,1,$H163/10,$G163*$H163/10,RateRatios_airpollution!$C163)*10))","v":86.59004384699999},null,{"$f":"IF(AND(OR(Calculations!$E$2=\"Orkney Health Board\",Calculations!$E$2=\"Orkney Islands Local Authority\"),$F163=1),0,IF(AND(OR(Calculations!$E$2=\"Shetland Health Board\",Calculations!$E$2=\"Western Isles Health Board\",Calculations!$E$2=\"Shetland Islands Local Authority\",Calculations!$E$2=\"Eilean Siar Local Authority\"),OR($F163=1,$F163=5)),0,new_ci(VALUE(LEFT(Options!$B$14,2)),$C163,$E163,$F163,2016,$I163/10,1,$H163/10,$G163*$H163/10,RateRatios_airpollution!$E163)*10))","v":86.590945188000006},{"$f":"IF(AND(OR(Calculations!$E$2=\"Orkney Health Board\",Calculations!$E$2=\"Orkney Islands Local Authority\"),$F163=1),0,IF(AND(OR(Calculations!$E$2=\"Shetland Health Board\",Calculations!$E$2=\"Western Isles Health Board\",Calculations!$E$2=\"Shetland Islands Local Authority\",Calculations!$E$2=\"Eilean Siar Local Authority\"),OR($F163=1,$F163=5)),0,new_ci(VALUE(LEFT(Options!$B$14,2)),$C163,$E163,$F163,2016,$I163/10+$J163/10,1,$H163/10,$G163*$H163/10,RateRatios_airpollution!$E163)*10))","v":86.590556036999999},{"$f":"IF(AND(OR(Calculations!$E$2=\"Orkney Health Board\",Calculations!$E$2=\"Orkney Islands Local Authority\"),$F163=1),0,IF(AND(OR(Calculations!$E$2=\"Shetland Health Board\",Calculations!$E$2=\"Western Isles Health Board\",Calculations!$E$2=\"Shetland Islands Local Authority\",Calculations!$E$2=\"Eilean Siar Local Authority\"),OR($F163=1,$F163=5)),0,new_yllv2(VALUE(LEFT(Options!$B$14,2)),$C163,$D163,$E163,$F163,2016,$I163/10,1,$H163/10,$G163*$H163/10,RateRatios_airpollution!$E163)*10))","v":3103.419215765},{"$f":"IF(AND(OR(Calculations!$E$2=\"Orkney Health Board\",Calculations!$E$2=\"Orkney Islands Local Authority\"),$F163=1),0,IF(AND(OR(Calculations!$E$2=\"Shetland Health Board\",Calculations!$E$2=\"Western Isles Health Board\",Calculations!$E$2=\"Shetland Islands Local Authority\",Calculations!$E$2=\"Eilean Siar Local Authority\"),OR($F163=1,$F163=5)),0,new_yllv2(VALUE(LEFT(Options!$B$14,2)),$C163,$D163,$E163,$F163,2016,$I163/10+$J163/10,1,$H163/10,$G163*$H163/10,RateRatios_airpollution!$E163)*10))","v":3103.4052685939996},{"$f":"IF(AND(OR(Calculations!$E$2=\"Orkney Health Board\",Calculations!$E$2=\"Orkney Islands Local Authority\"),$F163=1),0,IF(AND(OR(Calculations!$E$2=\"Shetland Health Board\",Calculations!$E$2=\"Western Isles Health Board\",Calculations!$E$2=\"Shetland Islands Local Authority\",Calculations!$E$2=\"Eilean Siar Local Authority\"),OR($F163=1,$F163=5)),0,hosp_count(VALUE(LEFT(Options!$B$14,2)),$C163,$E163,$F163,2016,$I163/10,1,$H163/10,$G163*$H163/10, RateRatios_airpollution!$F163, RateRatios_airpollution!$E163)*10))","v":5153.2179005499993},{"$f":"IF(AND(OR(Calculations!$E$2=\"Orkney Health Board\",Calculations!$E$2=\"Orkney Islands Local Authority\"),$F163=1),0,IF(AND(OR(Calculations!$E$2=\"Shetland Health Board\",Calculations!$E$2=\"Western Isles Health Board\",Calculations!$E$2=\"Shetland Islands Local Authority\",Calculations!$E$2=\"Eilean Siar Local Authority\"),OR($F163=1,$F163=5)),0,hosp_count(VALUE(LEFT(Options!$B$14,2)),$C163,$E163,$F163,2016,$I163/10+$J163/10,1,$H163/10,$G163*$H163/10, RateRatios_airpollution!$F163, RateRatios_airpollution!$E163)*10))","v":5153.2179005499993},{"$f":"IF(AND(OR(Calculations!$E$2=\"Orkney Health Board\",Calculations!$E$2=\"Orkney Islands Local Authority\"),$F163=1),0,IF(AND(OR(Calculations!$E$2=\"Shetland Health Board\",Calculations!$E$2=\"Western Isles Health Board\",Calculations!$E$2=\"Shetland Islands Local Authority\",Calculations!$E$2=\"Eilean Siar Local Authority\"),OR($F163=1,$F163=5)),0,prem_mort(VALUE(LEFT(Options!$B$14,2)),$C163,$E163,$F163,2016,$I163/10,1,$H163/10,$G163*$H163/10,RateRatios_airpollution!$E163)*10))","v":86.590945188000006},{"$f":"IF(AND(OR(Calculations!$E$2=\"Orkney Health Board\",Calculations!$E$2=\"Orkney Islands Local Authority\"),$F163=1),0,IF(AND(OR(Calculations!$E$2=\"Shetland Health Board\",Calculations!$E$2=\"Western Isles Health Board\",Calculations!$E$2=\"Shetland Islands Local Authority\",Calculations!$E$2=\"Eilean Siar Local Authority\"),OR($F163=1,$F163=5)),0,prem_mort(VALUE(LEFT(Options!$B$14,2)),$C163,$E163,$F163,2016,$I163/10+$J163/10,1,$H163/10,$G163*$H163/10,RateRatios_airpollution!$E163)*10))","v":86.590556036999999},86.590945188000006,86.574105847999988,3103.419215765,3102.8156938689995,5153.2179005499993,5152.1903317510005,86.590945188000006,86.574105847999988,272.03338000062831,271.98047767270896,9749.6755231221141,9747.779503845306,16189.305709999684,16186.07750856398,272.03338000062831,271.98047767270896,1904233.6600043981,1903863.3437089627,68247728.661854804,68234456.526917145,113325139.96999779,113302542.55994786,1904233.6600043981,1903863.3437089627,7000]
[null,"Male 45-49",47.038155000000003,79.418149999999997,"male",3,1,{"$f":"HLOOKUP(Calculations!$E$2,'Population 2016'!$C$3:$BC$249,'Population 2016'!BD164,FALSE)","v":37651},0,{"$f":"HLOOKUP(Calculations!$E$2,Pop2016_in_settlements!$C$3:$BC$249,Pop2016_in_settlements!$BD164,FALSE)","v":16508},{"$f":"IF(AND(OR(Calculations!$E$2=\"Orkney Health Board\",Calculations!$E$2=\"Orkney Islands Local Authority\"),$F164=1),0,IF(AND(OR(Calculations!$E$2=\"Shetland Health Board\",Calculations!$E$2=\"Western Isles Health Board\",Calculations!$E$2=\"Shetland Islands Local Authority\",Calculations!$E$2=\"Eilean Siar Local Authority\"),OR($F164=1,$F164=5)),0,new_ci(VALUE(LEFT(Options!$B$14,2)),$C164,$E164,$F164,2016,$I164/10,1,$H164/10,$G164*$H164/10,RateRatios_accidents!$B$5)*10))","v":148.97104224399999},{"$f":"IF(AND(OR(Calculations!$E$2=\"Orkney Health Board\",Calculations!$E$2=\"Orkney Islands Local Authority\"),$F164=1),0,IF(AND(OR(Calculations!$E$2=\"Shetland Health Board\",Calculations!$E$2=\"Western Isles Health Board\",Calculations!$E$2=\"Shetland Islands Local Authority\",Calculations!$E$2=\"Eilean Siar Local Authority\"),OR($F164=1,$F164=5)),0,new_ci(VALUE(LEFT(Options!$B$14,2)),$C164,$E164,$F164,2016,$I164/10+$J164/10,1,$H164/10,$G164*$H164/10,RateRatios_accidents!$B$5)*10))","v":148.94496785799998},{"$f":"IF(AND(OR(Calculations!$E$2=\"Orkney Health Board\",Calculations!$E$2=\"Orkney Islands Local Authority\"),$F164=1),0,IF(AND(OR(Calculations!$E$2=\"Shetland Health Board\",Calculations!$E$2=\"Western Isles Health Board\",Calculations!$E$2=\"Shetland Islands Local Authority\",Calculations!$E$2=\"Eilean Siar Local Authority\"),OR($F164=1,$F164=5)),0,new_yllv2(VALUE(LEFT(Options!$B$14,2)),$C164,$D164,$E164,$F164,2016,$I164/10,1,$H164/10,$G164*$H164/10,RateRatios_accidents!$B$5)*10))","v":4674.7105607619997},{"$f":"IF(AND(OR(Calculations!$E$2=\"Orkney Health Board\",Calculations!$E$2=\"Orkney Islands Local Authority\"),$F164=1),0,IF(AND(OR(Calculations!$E$2=\"Shetland Health Board\",Calculations!$E$2=\"Western Isles Health Board\",Calculations!$E$2=\"Shetland Islands Local Authority\",Calculations!$E$2=\"Eilean Siar Local Authority\"),OR($F164=1,$F164=5)),0,new_yllv2(VALUE(LEFT(Options!$B$14,2)),$C164,$D164,$E164,$F164,2016,$I164/10+$J164/10,1,$H164/10,$G164*$H164/10,RateRatios_accidents!$B$5)*10))","v":4673.8923466590004},{"$f":"IF(AND(OR(Calculations!$E$2=\"Orkney Health Board\",Calculations!$E$2=\"Orkney Islands Local Authority\"),$F164=1),0,IF(AND(OR(Calculations!$E$2=\"Shetland Health Board\",Calculations!$E$2=\"Western Isles Health Board\",Calculations!$E$2=\"Shetland Islands Local Authority\",Calculations!$E$2=\"Eilean Siar Local Authority\"),OR($F164=1,$F164=5)),0,hosp_count(VALUE(LEFT(Options!$B$14,2)),$C164,$E164,$F164,2016,$I164/10,1,$H164/10,$G164*$H164/10, RateRatios_accidents!$B$4, RateRatios_accidents!$B$5)*10))","v":7271.5344409600002},{"$f":"IF(AND(OR(Calculations!$E$2=\"Orkney Health Board\",Calculations!$E$2=\"Orkney Islands Local Authority\"),$F164=1),0,IF(AND(OR(Calculations!$E$2=\"Shetland Health Board\",Calculations!$E$2=\"Western Isles Health Board\",Calculations!$E$2=\"Shetland Islands Local Authority\",Calculations!$E$2=\"Eilean Siar Local Authority\"),OR($F164=1,$F164=5)),0,hosp_count(VALUE(LEFT(Options!$B$14,2)),$C164,$E164,$F164,2016,$I164/10+$J164/10,1,$H164/10,$G164*$H164/10, RateRatios_accidents!$B$4, RateRatios_accidents!$B$5)*10))","v":7270.2591649440001},{"$f":"IF(AND(OR(Calculations!$E$2=\"Orkney Health Board\",Calculations!$E$2=\"Orkney Islands Local Authority\"),$F164=1),0,IF(AND(OR(Calculations!$E$2=\"Shetland Health Board\",Calculations!$E$2=\"Western Isles Health Board\",Calculations!$E$2=\"Shetland Islands Local Authority\",Calculations!$E$2=\"Eilean Siar Local Authority\"),OR($F164=1,$F164=5)),0,prem_mort(VALUE(LEFT(Options!$B$14,2)),$C164,$E164,$F164,2016,$I164/10,1,$H164/10,$G164*$H164/10,RateRatios_accidents!$B$5)*10))","v":148.97104224399999},{"$f":"IF(AND(OR(Calculations!$E$2=\"Orkney Health Board\",Calculations!$E$2=\"Orkney Islands Local Authority\"),$F164=1),0,IF(AND(OR(Calculations!$E$2=\"Shetland Health Board\",Calculations!$E$2=\"Western Isles Health Board\",Calculations!$E$2=\"Shetland Islands Local Authority\",Calculations!$E$2=\"Eilean Siar Local Authority\"),OR($F164=1,$F164=5)),0,prem_mort(VALUE(LEFT(Options!$B$14,2)),$C164,$E164,$F164,2016,$I164/10+$J164/10,1,$H164/10,$G164*$H164/10,RateRatios_accidents!$B$5)*10))","v":148.94496785799998},null,{"$f":"IF(AND(OR(Calculations!$E$2=\"Orkney Health Board\",Calculations!$E$2=\"Orkney Islands Local Authority\"),$F164=1),0,IF(AND(OR(Calculations!$E$2=\"Shetland Health Board\",Calculations!$E$2=\"Western Isles Health Board\",Calculations!$E$2=\"Shetland Islands Local Authority\",Calculations!$E$2=\"Eilean Siar Local Authority\"),OR($F164=1,$F164=5)),0,new_ci(VALUE(LEFT(Options!$B$14,2)),$C164,$E164,$F164,2016,$I164/10,1,$H164/10,$G164*$H164/10,RateRatios_airpollution!$C164)*10))","v":148.97104224399999},{"$f":"IF(AND(OR(Calculations!$E$2=\"Orkney Health Board\",Calculations!$E$2=\"Orkney Islands Local Authority\"),$F164=1),0,IF(AND(OR(Calculations!$E$2=\"Shetland Health Board\",Calculations!$E$2=\"Western Isles Health Board\",Calculations!$E$2=\"Shetland Islands Local Authority\",Calculations!$E$2=\"Eilean Siar Local Authority\"),OR($F164=1,$F164=5)),0,new_ci(VALUE(LEFT(Options!$B$14,2)),$C164,$E164,$F164,2016,$I164/10+$J164/10,1,$H164/10,$G164*$H164/10,RateRatios_airpollution!$C164)*10))","v":148.969647318},{"$f":"IF(AND(OR(Calculations!$E$2=\"Orkney Health Board\",Calculations!$E$2=\"Orkney Islands Local Authority\"),$F164=1),0,IF(AND(OR(Calculations!$E$2=\"Shetland Health Board\",Calculations!$E$2=\"Western Isles Health Board\",Calculations!$E$2=\"Shetland Islands Local Authority\",Calculations!$E$2=\"Eilean Siar Local Authority\"),OR($F164=1,$F164=5)),0,new_yllv2(VALUE(LEFT(Options!$B$14,2)),$C164,$D164,$E164,$F164,2016,$I164/10,1,$H164/10,$G164*$H164/10,RateRatios_airpollution!$C164)*10))","v":4674.7105607619997},{"$f":"IF(AND(OR(Calculations!$E$2=\"Orkney Health Board\",Calculations!$E$2=\"Orkney Islands Local Authority\"),$F164=1),0,IF(AND(OR(Calculations!$E$2=\"Shetland Health Board\",Calculations!$E$2=\"Western Isles Health Board\",Calculations!$E$2=\"Shetland Islands Local Authority\",Calculations!$E$2=\"Eilean Siar Local Authority\"),OR($F164=1,$F164=5)),0,new_yllv2(VALUE(LEFT(Options!$B$14,2)),$C164,$D164,$E164,$F164,2016,$I164/10+$J164/10,1,$H164/10,$G164*$H164/10,RateRatios_airpollution!$C164)*10))","v":4674.6667879910001},{"$f":"IF(AND(OR(Calculations!$E$2=\"Orkney Health Board\",Calculations!$E$2=\"Orkney Islands Local Authority\"),$F164=1),0,IF(AND(OR(Calculations!$E$2=\"Shetland Health Board\",Calculations!$E$2=\"Western Isles Health Board\",Calculations!$E$2=\"Shetland Islands Local Authority\",Calculations!$E$2=\"Eilean Siar Local Authority\"),OR($F164=1,$F164=5)),0,hosp_count(VALUE(LEFT(Options!$B$14,2)),$C164,$E164,$F164,2016,$I164/10,1,$H164/10,$G164*$H164/10, RateRatios_airpollution!$D164, RateRatios_airpollution!$C164)*10))","v":7271.5344409600002},{"$f":"IF(AND(OR(Calculations!$E$2=\"Orkney Health Board\",Calculations!$E$2=\"Orkney Islands Local Authority\"),$F164=1),0,IF(AND(OR(Calculations!$E$2=\"Shetland Health Board\",Calculations!$E$2=\"Western Isles Health Board\",Calculations!$E$2=\"Shetland Islands Local Authority\",Calculations!$E$2=\"Eilean Siar Local Authority\"),OR($F164=1,$F164=5)),0,hosp_count(VALUE(LEFT(Options!$B$14,2)),$C164,$E164,$F164,2016,$I164/10+$J164/10,1,$H164/10,$G164*$H164/10, RateRatios_airpollution!$D164, RateRatios_airpollution!$C164)*10))","v":7271.4057792589992},{"$f":"IF(AND(OR(Calculations!$E$2=\"Orkney Health Board\",Calculations!$E$2=\"Orkney Islands Local Authority\"),$F164=1),0,IF(AND(OR(Calculations!$E$2=\"Shetland Health Board\",Calculations!$E$2=\"Western Isles Health Board\",Calculations!$E$2=\"Shetland Islands Local Authority\",Calculations!$E$2=\"Eilean Siar Local Authority\"),OR($F164=1,$F164=5)),0,prem_mort(VALUE(LEFT(Options!$B$14,2)),$C164,$E164,$F164,2016,$I164/10,1,$H164/10,$G164*$H164/10,RateRatios_airpollution!$C164)*10))","v":148.97104224399999},{"$f":"IF(AND(OR(Calculations!$E$2=\"Orkney Health Board\",Calculations!$E$2=\"Orkney Islands Local Authority\"),$F164=1),0,IF(AND(OR(Calculations!$E$2=\"Shetland Health Board\",Calculations!$E$2=\"Western Isles Health Board\",Calculations!$E$2=\"Shetland Islands Local Authority\",Calculations!$E$2=\"Eilean Siar Local Authority\"),OR($F164=1,$F164=5)),0,prem_mort(VALUE(LEFT(Options!$B$14,2)),$C164,$E164,$F164,2016,$I164/10+$J164/10,1,$H164/10,$G164*$H164/10,RateRatios_airpollution!$C164)*10))","v":148.969647318},null,{"$f":"IF(AND(OR(Calculations!$E$2=\"Orkney Health Board\",Calculations!$E$2=\"Orkney Islands Local Authority\"),$F164=1),0,IF(AND(OR(Calculations!$E$2=\"Shetland Health Board\",Calculations!$E$2=\"Western Isles Health Board\",Calculations!$E$2=\"Shetland Islands Local Authority\",Calculations!$E$2=\"Eilean Siar Local Authority\"),OR($F164=1,$F164=5)),0,new_ci(VALUE(LEFT(Options!$B$14,2)),$C164,$E164,$F164,2016,$I164/10,1,$H164/10,$G164*$H164/10,RateRatios_airpollution!$E164)*10))","v":148.97104224399999},{"$f":"IF(AND(OR(Calculations!$E$2=\"Orkney Health Board\",Calculations!$E$2=\"Orkney Islands Local Authority\"),$F164=1),0,IF(AND(OR(Calculations!$E$2=\"Shetland Health Board\",Calculations!$E$2=\"Western Isles Health Board\",Calculations!$E$2=\"Shetland Islands Local Authority\",Calculations!$E$2=\"Eilean Siar Local Authority\"),OR($F164=1,$F164=5)),0,new_ci(VALUE(LEFT(Options!$B$14,2)),$C164,$E164,$F164,2016,$I164/10+$J164/10,1,$H164/10,$G164*$H164/10,RateRatios_airpollution!$E164)*10))","v":148.97043970199999},{"$f":"IF(AND(OR(Calculations!$E$2=\"Orkney Health Board\",Calculations!$E$2=\"Orkney Islands Local Authority\"),$F164=1),0,IF(AND(OR(Calculations!$E$2=\"Shetland Health Board\",Calculations!$E$2=\"Western Isles Health Board\",Calculations!$E$2=\"Shetland Islands Local Authority\",Calculations!$E$2=\"Eilean Siar Local Authority\"),OR($F164=1,$F164=5)),0,new_yllv2(VALUE(LEFT(Options!$B$14,2)),$C164,$D164,$E164,$F164,2016,$I164/10,1,$H164/10,$G164*$H164/10,RateRatios_airpollution!$E164)*10))","v":4674.7105607619997},{"$f":"IF(AND(OR(Calculations!$E$2=\"Orkney Health Board\",Calculations!$E$2=\"Orkney Islands Local Authority\"),$F164=1),0,IF(AND(OR(Calculations!$E$2=\"Shetland Health Board\",Calculations!$E$2=\"Western Isles Health Board\",Calculations!$E$2=\"Shetland Islands Local Authority\",Calculations!$E$2=\"Eilean Siar Local Authority\"),OR($F164=1,$F164=5)),0,new_yllv2(VALUE(LEFT(Options!$B$14,2)),$C164,$D164,$E164,$F164,2016,$I164/10+$J164/10,1,$H164/10,$G164*$H164/10,RateRatios_airpollution!$E164)*10))","v":4674.6916529970003},{"$f":"IF(AND(OR(Calculations!$E$2=\"Orkney Health Board\",Calculations!$E$2=\"Orkney Islands Local Authority\"),$F164=1),0,IF(AND(OR(Calculations!$E$2=\"Shetland Health Board\",Calculations!$E$2=\"Western Isles Health Board\",Calculations!$E$2=\"Shetland Islands Local Authority\",Calculations!$E$2=\"Eilean Siar Local Authority\"),OR($F164=1,$F164=5)),0,hosp_count(VALUE(LEFT(Options!$B$14,2)),$C164,$E164,$F164,2016,$I164/10,1,$H164/10,$G164*$H164/10, RateRatios_airpollution!$F164, RateRatios_airpollution!$E164)*10))","v":7271.5344409600002},{"$f":"IF(AND(OR(Calculations!$E$2=\"Orkney Health Board\",Calculations!$E$2=\"Orkney Islands Local Authority\"),$F164=1),0,IF(AND(OR(Calculations!$E$2=\"Shetland Health Board\",Calculations!$E$2=\"Western Isles Health Board\",Calculations!$E$2=\"Shetland Islands Local Authority\",Calculations!$E$2=\"Eilean Siar Local Authority\"),OR($F164=1,$F164=5)),0,hosp_count(VALUE(LEFT(Options!$B$14,2)),$C164,$E164,$F164,2016,$I164/10+$J164/10,1,$H164/10,$G164*$H164/10, RateRatios_airpollution!$F164, RateRatios_airpollution!$E164)*10))","v":7271.5344409600002},{"$f":"IF(AND(OR(Calculations!$E$2=\"Orkney Health Board\",Calculations!$E$2=\"Orkney Islands Local Authority\"),$F164=1),0,IF(AND(OR(Calculations!$E$2=\"Shetland Health Board\",Calculations!$E$2=\"Western Isles Health Board\",Calculations!$E$2=\"Shetland Islands Local Authority\",Calculations!$E$2=\"Eilean Siar Local Authority\"),OR($F164=1,$F164=5)),0,prem_mort(VALUE(LEFT(Options!$B$14,2)),$C164,$E164,$F164,2016,$I164/10,1,$H164/10,$G164*$H164/10,RateRatios_airpollution!$E164)*10))","v":148.97104224399999},{"$f":"IF(AND(OR(Calculations!$E$2=\"Orkney Health Board\",Calculations!$E$2=\"Orkney Islands Local Authority\"),$F164=1),0,IF(AND(OR(Calculations!$E$2=\"Shetland Health Board\",Calculations!$E$2=\"Western Isles Health Board\",Calculations!$E$2=\"Shetland Islands Local Authority\",Calculations!$E$2=\"Eilean Siar Local Authority\"),OR($F164=1,$F164=5)),0,prem_mort(VALUE(LEFT(Options!$B$14,2)),$C164,$E164,$F164,2016,$I164/10+$J164/10,1,$H164/10,$G164*$H164/10,RateRatios_airpollution!$E164)*10))","v":148.97043970199999},148.97104224399999,148.94297039,4674.7105607619997,4673.8296661230015,7271.5344409600002,7270.1305032429991,148.97104224399999,148.94297039,395.66290999973438,395.58835194284353,12415.900137478418,12413.560506023749,19312.991529999206,19309.262710799179,395.66290999973438,395.58835194284353,2769640.3699981407,2769118.4635999049,86911300.962348923,86894923.542166233,135190940.70999444,135164838.97559425,2769640.3699981407,2769118.4635999049,7000]
[null,"Male 50-54",51.998646000000001,79.988649999999993,"male",3,1,{"$f":"HLOOKUP(Calculations!$E$2,'Population 2016'!$C$3:$BC$249,'Population 2016'!BD165,FALSE)","v":40386},0,{"$f":"HLOOKUP(Calculations!$E$2,Pop2016_in_settlements!$C$3:$BC$249,Pop2016_in_settlements!$BD165,FALSE)","v":17453},{"$f":"IF(AND(OR(Calculations!$E$2=\"Orkney Health Board\",Calculations!$E$2=\"Orkney Islands Local Authority\"),$F165=1),0,IF(AND(OR(Calculations!$E$2=\"Shetland Health Board\",Calculations!$E$2=\"Western Isles Health Board\",Calculations!$E$2=\"Shetland Islands Local Authority\",Calculations!$E$2=\"Eilean Siar Local Authority\"),OR($F165=1,$F165=5)),0,new_ci(VALUE(LEFT(Options!$B$14,2)),$C165,$E165,$F165,2016,$I165/10,1,$H165/10,$G165*$H165/10,RateRatios_accidents!$B$5)*10))","v":232.17272493500002},{"$f":"IF(AND(OR(Calculations!$E$2=\"Orkney Health Board\",Calculations!$E$2=\"Orkney Islands Local Authority\"),$F165=1),0,IF(AND(OR(Calculations!$E$2=\"Shetland Health Board\",Calculations!$E$2=\"Western Isles Health Board\",Calculations!$E$2=\"Shetland Islands Local Authority\",Calculations!$E$2=\"Eilean Siar Local Authority\"),OR($F165=1,$F165=5)),0,new_ci(VALUE(LEFT(Options!$B$14,2)),$C165,$E165,$F165,2016,$I165/10+$J165/10,1,$H165/10,$G165*$H165/10,RateRatios_accidents!$B$5)*10))","v":232.13270695099999},{"$f":"IF(AND(OR(Calculations!$E$2=\"Orkney Health Board\",Calculations!$E$2=\"Orkney Islands Local Authority\"),$F165=1),0,IF(AND(OR(Calculations!$E$2=\"Shetland Health Board\",Calculations!$E$2=\"Western Isles Health Board\",Calculations!$E$2=\"Shetland Islands Local Authority\",Calculations!$E$2=\"Eilean Siar Local Authority\"),OR($F165=1,$F165=5)),0,new_yllv2(VALUE(LEFT(Options!$B$14,2)),$C165,$D165,$E165,$F165,2016,$I165/10,1,$H165/10,$G165*$H165/10,RateRatios_accidents!$B$5)*10))","v":6266.3427746870002},{"$f":"IF(AND(OR(Calculations!$E$2=\"Orkney Health Board\",Calculations!$E$2=\"Orkney Islands Local Authority\"),$F165=1),0,IF(AND(OR(Calculations!$E$2=\"Shetland Health Board\",Calculations!$E$2=\"Western Isles Health Board\",Calculations!$E$2=\"Shetland Islands Local Authority\",Calculations!$E$2=\"Eilean Siar Local Authority\"),OR($F165=1,$F165=5)),0,new_yllv2(VALUE(LEFT(Options!$B$14,2)),$C165,$D165,$E165,$F165,2016,$I165/10+$J165/10,1,$H165/10,$G165*$H165/10,RateRatios_accidents!$B$5)*10))","v":6265.2626891379996},{"$f":"IF(AND(OR(Calculations!$E$2=\"Orkney Health Board\",Calculations!$E$2=\"Orkney Islands Local Authority\"),$F165=1),0,IF(AND(OR(Calculations!$E$2=\"Shetland Health Board\",Calculations!$E$2=\"Western Isles Health Board\",Calculations!$E$2=\"Shetland Islands Local Authority\",Calculations!$E$2=\"Eilean Siar Local Authority\"),OR($F165=1,$F165=5)),0,hosp_count(VALUE(LEFT(Options!$B$14,2)),$C165,$E165,$F165,2016,$I165/10,1,$H165/10,$G165*$H165/10, RateRatios_accidents!$B$4, RateRatios_accidents!$B$5)*10))","v":9301.3966469789993},{"$f":"IF(AND(OR(Calculations!$E$2=\"Orkney Health Board\",Calculations!$E$2=\"Orkney Islands Local Authority\"),$F165=1),0,IF(AND(OR(Calculations!$E$2=\"Shetland Health Board\",Calculations!$E$2=\"Western Isles Health Board\",Calculations!$E$2=\"Shetland Islands Local Authority\",Calculations!$E$2=\"Eilean Siar Local Authority\"),OR($F165=1,$F165=5)),0,hosp_count(VALUE(LEFT(Options!$B$14,2)),$C165,$E165,$F165,2016,$I165/10+$J165/10,1,$H165/10,$G165*$H165/10, RateRatios_accidents!$B$4, RateRatios_accidents!$B$5)*10))","v":9299.7887893539992},{"$f":"IF(AND(OR(Calculations!$E$2=\"Orkney Health Board\",Calculations!$E$2=\"Orkney Islands Local Authority\"),$F165=1),0,IF(AND(OR(Calculations!$E$2=\"Shetland Health Board\",Calculations!$E$2=\"Western Isles Health Board\",Calculations!$E$2=\"Shetland Islands Local Authority\",Calculations!$E$2=\"Eilean Siar Local Authority\"),OR($F165=1,$F165=5)),0,prem_mort(VALUE(LEFT(Options!$B$14,2)),$C165,$E165,$F165,2016,$I165/10,1,$H165/10,$G165*$H165/10,RateRatios_accidents!$B$5)*10))","v":232.17272493500002},{"$f":"IF(AND(OR(Calculations!$E$2=\"Orkney Health Board\",Calculations!$E$2=\"Orkney Islands Local Authority\"),$F165=1),0,IF(AND(OR(Calculations!$E$2=\"Shetland Health Board\",Calculations!$E$2=\"Western Isles Health Board\",Calculations!$E$2=\"Shetland Islands Local Authority\",Calculations!$E$2=\"Eilean Siar Local Authority\"),OR($F165=1,$F165=5)),0,prem_mort(VALUE(LEFT(Options!$B$14,2)),$C165,$E165,$F165,2016,$I165/10+$J165/10,1,$H165/10,$G165*$H165/10,RateRatios_accidents!$B$5)*10))","v":232.13270695099999},null,{"$f":"IF(AND(OR(Calculations!$E$2=\"Orkney Health Board\",Calculations!$E$2=\"Orkney Islands Local Authority\"),$F165=1),0,IF(AND(OR(Calculations!$E$2=\"Shetland Health Board\",Calculations!$E$2=\"Western Isles Health Board\",Calculations!$E$2=\"Shetland Islands Local Authority\",Calculations!$E$2=\"Eilean Siar Local Authority\"),OR($F165=1,$F165=5)),0,new_ci(VALUE(LEFT(Options!$B$14,2)),$C165,$E165,$F165,2016,$I165/10,1,$H165/10,$G165*$H165/10,RateRatios_airpollution!$C165)*10))","v":232.17272493500002},{"$f":"IF(AND(OR(Calculations!$E$2=\"Orkney Health Board\",Calculations!$E$2=\"Orkney Islands Local Authority\"),$F165=1),0,IF(AND(OR(Calculations!$E$2=\"Shetland Health Board\",Calculations!$E$2=\"Western Isles Health Board\",Calculations!$E$2=\"Shetland Islands Local Authority\",Calculations!$E$2=\"Eilean Siar Local Authority\"),OR($F165=1,$F165=5)),0,new_ci(VALUE(LEFT(Options!$B$14,2)),$C165,$E165,$F165,2016,$I165/10+$J165/10,1,$H165/10,$G165*$H165/10,RateRatios_airpollution!$C165)*10))","v":232.17064802799999},{"$f":"IF(AND(OR(Calculations!$E$2=\"Orkney Health Board\",Calculations!$E$2=\"Orkney Islands Local Authority\"),$F165=1),0,IF(AND(OR(Calculations!$E$2=\"Shetland Health Board\",Calculations!$E$2=\"Western Isles Health Board\",Calculations!$E$2=\"Shetland Islands Local Authority\",Calculations!$E$2=\"Eilean Siar Local Authority\"),OR($F165=1,$F165=5)),0,new_yllv2(VALUE(LEFT(Options!$B$14,2)),$C165,$D165,$E165,$F165,2016,$I165/10,1,$H165/10,$G165*$H165/10,RateRatios_airpollution!$C165)*10))","v":6266.3427746870002},{"$f":"IF(AND(OR(Calculations!$E$2=\"Orkney Health Board\",Calculations!$E$2=\"Orkney Islands Local Authority\"),$F165=1),0,IF(AND(OR(Calculations!$E$2=\"Shetland Health Board\",Calculations!$E$2=\"Western Isles Health Board\",Calculations!$E$2=\"Shetland Islands Local Authority\",Calculations!$E$2=\"Eilean Siar Local Authority\"),OR($F165=1,$F165=5)),0,new_yllv2(VALUE(LEFT(Options!$B$14,2)),$C165,$D165,$E165,$F165,2016,$I165/10+$J165/10,1,$H165/10,$G165*$H165/10,RateRatios_airpollution!$C165)*10))","v":6266.2867189580002},{"$f":"IF(AND(OR(Calculations!$E$2=\"Orkney Health Board\",Calculations!$E$2=\"Orkney Islands Local Authority\"),$F165=1),0,IF(AND(OR(Calculations!$E$2=\"Shetland Health Board\",Calculations!$E$2=\"Western Isles Health Board\",Calculations!$E$2=\"Shetland Islands Local Authority\",Calculations!$E$2=\"Eilean Siar Local Authority\"),OR($F165=1,$F165=5)),0,hosp_count(VALUE(LEFT(Options!$B$14,2)),$C165,$E165,$F165,2016,$I165/10,1,$H165/10,$G165*$H165/10, RateRatios_airpollution!$D165, RateRatios_airpollution!$C165)*10))","v":9301.3966469789993},{"$f":"IF(AND(OR(Calculations!$E$2=\"Orkney Health Board\",Calculations!$E$2=\"Orkney Islands Local Authority\"),$F165=1),0,IF(AND(OR(Calculations!$E$2=\"Shetland Health Board\",Calculations!$E$2=\"Western Isles Health Board\",Calculations!$E$2=\"Shetland Islands Local Authority\",Calculations!$E$2=\"Eilean Siar Local Authority\"),OR($F165=1,$F165=5)),0,hosp_count(VALUE(LEFT(Options!$B$14,2)),$C165,$E165,$F165,2016,$I165/10+$J165/10,1,$H165/10,$G165*$H165/10, RateRatios_airpollution!$D165, RateRatios_airpollution!$C165)*10))","v":9301.2394722419995},{"$f":"IF(AND(OR(Calculations!$E$2=\"Orkney Health Board\",Calculations!$E$2=\"Orkney Islands Local Authority\"),$F165=1),0,IF(AND(OR(Calculations!$E$2=\"Shetland Health Board\",Calculations!$E$2=\"Western Isles Health Board\",Calculations!$E$2=\"Shetland Islands Local Authority\",Calculations!$E$2=\"Eilean Siar Local Authority\"),OR($F165=1,$F165=5)),0,prem_mort(VALUE(LEFT(Options!$B$14,2)),$C165,$E165,$F165,2016,$I165/10,1,$H165/10,$G165*$H165/10,RateRatios_airpollution!$C165)*10))","v":232.17272493500002},{"$f":"IF(AND(OR(Calculations!$E$2=\"Orkney Health Board\",Calculations!$E$2=\"Orkney Islands Local Authority\"),$F165=1),0,IF(AND(OR(Calculations!$E$2=\"Shetland Health Board\",Calculations!$E$2=\"Western Isles Health Board\",Calculations!$E$2=\"Shetland Islands Local Authority\",Calculations!$E$2=\"Eilean Siar Local Authority\"),OR($F165=1,$F165=5)),0,prem_mort(VALUE(LEFT(Options!$B$14,2)),$C165,$E165,$F165,2016,$I165/10+$J165/10,1,$H165/10,$G165*$H165/10,RateRatios_airpollution!$C165)*10))","v":232.17064802799999},null,{"$f":"IF(AND(OR(Calculations!$E$2=\"Orkney Health Board\",Calculations!$E$2=\"Orkney Islands Local Authority\"),$F165=1),0,IF(AND(OR(Calculations!$E$2=\"Shetland Health Board\",Calculations!$E$2=\"Western Isles Health Board\",Calculations!$E$2=\"Shetland Islands Local Authority\",Calculations!$E$2=\"Eilean Siar Local Authority\"),OR($F165=1,$F165=5)),0,new_ci(VALUE(LEFT(Options!$B$14,2)),$C165,$E165,$F165,2016,$I165/10,1,$H165/10,$G165*$H165/10,RateRatios_airpollution!$E165)*10))","v":232.17272493500002},{"$f":"IF(AND(OR(Calculations!$E$2=\"Orkney Health Board\",Calculations!$E$2=\"Orkney Islands Local Authority\"),$F165=1),0,IF(AND(OR(Calculations!$E$2=\"Shetland Health Board\",Calculations!$E$2=\"Western Isles Health Board\",Calculations!$E$2=\"Shetland Islands Local Authority\",Calculations!$E$2=\"Eilean Siar Local Authority\"),OR($F165=1,$F165=5)),0,new_ci(VALUE(LEFT(Options!$B$14,2)),$C165,$E165,$F165,2016,$I165/10+$J165/10,1,$H165/10,$G165*$H165/10,RateRatios_airpollution!$E165)*10))","v":232.17181563299999},{"$f":"IF(AND(OR(Calculations!$E$2=\"Orkney Health Board\",Calculations!$E$2=\"Orkney Islands Local Authority\"),$F165=1),0,IF(AND(OR(Calculations!$E$2=\"Shetland Health Board\",Calculations!$E$2=\"Western Isles Health Board\",Calculations!$E$2=\"Shetland Islands Local Authority\",Calculations!$E$2=\"Eilean Siar Local Authority\"),OR($F165=1,$F165=5)),0,new_yllv2(VALUE(LEFT(Options!$B$14,2)),$C165,$D165,$E165,$F165,2016,$I165/10,1,$H165/10,$G165*$H165/10,RateRatios_airpollution!$E165)*10))","v":6266.3427746870002},{"$f":"IF(AND(OR(Calculations!$E$2=\"Orkney Health Board\",Calculations!$E$2=\"Orkney Islands Local Authority\"),$F165=1),0,IF(AND(OR(Calculations!$E$2=\"Shetland Health Board\",Calculations!$E$2=\"Western Isles Health Board\",Calculations!$E$2=\"Shetland Islands Local Authority\",Calculations!$E$2=\"Eilean Siar Local Authority\"),OR($F165=1,$F165=5)),0,new_yllv2(VALUE(LEFT(Options!$B$14,2)),$C165,$D165,$E165,$F165,2016,$I165/10+$J165/10,1,$H165/10,$G165*$H165/10,RateRatios_airpollution!$E165)*10))","v":6266.3182326219994},{"$f":"IF(AND(OR(Calculations!$E$2=\"Orkney Health Board\",Calculations!$E$2=\"Orkney Islands Local Authority\"),$F165=1),0,IF(AND(OR(Calculations!$E$2=\"Shetland Health Board\",Calculations!$E$2=\"Western Isles Health Board\",Calculations!$E$2=\"Shetland Islands Local Authority\",Calculations!$E$2=\"Eilean Siar Local Authority\"),OR($F165=1,$F165=5)),0,hosp_count(VALUE(LEFT(Options!$B$14,2)),$C165,$E165,$F165,2016,$I165/10,1,$H165/10,$G165*$H165/10, RateRatios_airpollution!$F165, RateRatios_airpollution!$E165)*10))","v":9301.3966469789993},{"$f":"IF(AND(OR(Calculations!$E$2=\"Orkney Health Board\",Calculations!$E$2=\"Orkney Islands Local Authority\"),$F165=1),0,IF(AND(OR(Calculations!$E$2=\"Shetland Health Board\",Calculations!$E$2=\"Western Isles Health Board\",Calculations!$E$2=\"Shetland Islands Local Authority\",Calculations!$E$2=\"Eilean Siar Local Authority\"),OR($F165=1,$F165=5)),0,hosp_count(VALUE(LEFT(Options!$B$14,2)),$C165,$E165,$F165,2016,$I165/10+$J165/10,1,$H165/10,$G165*$H165/10, RateRatios_airpollution!$F165, RateRatios_airpollution!$E165)*10))","v":9301.3966469789993},{"$f":"IF(AND(OR(Calculations!$E$2=\"Orkney Health Board\",Calculations!$E$2=\"Orkney Islands Local Authority\"),$F165=1),0,IF(AND(OR(Calculations!$E$2=\"Shetland Health Board\",Calculations!$E$2=\"Western Isles Health Board\",Calculations!$E$2=\"Shetland Islands Local Authority\",Calculations!$E$2=\"Eilean Siar Local Authority\"),OR($F165=1,$F165=5)),0,prem_mort(VALUE(LEFT(Options!$B$14,2)),$C165,$E165,$F165,2016,$I165/10,1,$H165/10,$G165*$H165/10,RateRatios_airpollution!$E165)*10))","v":232.17272493500002},{"$f":"IF(AND(OR(Calculations!$E$2=\"Orkney Health Board\",Calculations!$E$2=\"Orkney Islands Local Authority\"),$F165=1),0,IF(AND(OR(Calculations!$E$2=\"Shetland Health Board\",Calculations!$E$2=\"Western Isles Health Board\",Calculations!$E$2=\"Shetland Islands Local Authority\",Calculations!$E$2=\"Eilean Siar Local Authority\"),OR($F165=1,$F165=5)),0,prem_mort(VALUE(LEFT(Options!$B$14,2)),$C165,$E165,$F165,2016,$I165/10+$J165/10,1,$H165/10,$G165*$H165/10,RateRatios_airpollution!$E165)*10))","v":232.17181563299999},232.17272493500002,232.12972074199993,6266.3427746870002,6265.1820913439988,9301.3966469789993,9299.6316146169993,232.17272493500002,232.12972074199993,574.88418000049523,574.77769707819527,15516.126317751203,15513.252343247657,23031.240149999998,23026.869743517556,574.88418000049523,574.77769707819527,4024189.2600034666,4023443.8795473669,108612884.22425842,108592766.40273359,161218681.04999998,161188088.20462289,4024189.2600034666,4023443.8795473669,7000]
[null,"Male 55-59",56.950867000000002,80.660870000000003,"male",3,1,{"$f":"HLOOKUP(Calculations!$E$2,'Population 2016'!$C$3:$BC$249,'Population 2016'!BD166,FALSE)","v":37545},0,{"$f":"HLOOKUP(Calculations!$E$2,Pop2016_in_settlements!$C$3:$BC$249,Pop2016_in_settlements!$BD166,FALSE)","v":15989},{"$f":"IF(AND(OR(Calculations!$E$2=\"Orkney Health Board\",Calculations!$E$2=\"Orkney Islands Local Authority\"),$F166=1),0,IF(AND(OR(Calculations!$E$2=\"Shetland Health Board\",Calculations!$E$2=\"Western Isles Health Board\",Calculations!$E$2=\"Shetland Islands Local Authority\",Calculations!$E$2=\"Eilean Siar Local Authority\"),OR($F166=1,$F166=5)),0,new_ci(VALUE(LEFT(Options!$B$14,2)),$C166,$E166,$F166,2016,$I166/10,1,$H166/10,$G166*$H166/10,RateRatios_accidents!$B$5)*10))","v":313.28539188000002},{"$f":"IF(AND(OR(Calculations!$E$2=\"Orkney Health Board\",Calculations!$E$2=\"Orkney Islands Local Authority\"),$F166=1),0,IF(AND(OR(Calculations!$E$2=\"Shetland Health Board\",Calculations!$E$2=\"Western Isles Health Board\",Calculations!$E$2=\"Shetland Islands Local Authority\",Calculations!$E$2=\"Eilean Siar Local Authority\"),OR($F166=1,$F166=5)),0,new_ci(VALUE(LEFT(Options!$B$14,2)),$C166,$E166,$F166,2016,$I166/10+$J166/10,1,$H166/10,$G166*$H166/10,RateRatios_accidents!$B$5)*10))","v":313.23224924099998},{"$f":"IF(AND(OR(Calculations!$E$2=\"Orkney Health Board\",Calculations!$E$2=\"Orkney Islands Local Authority\"),$F166=1),0,IF(AND(OR(Calculations!$E$2=\"Shetland Health Board\",Calculations!$E$2=\"Western Isles Health Board\",Calculations!$E$2=\"Shetland Islands Local Authority\",Calculations!$E$2=\"Eilean Siar Local Authority\"),OR($F166=1,$F166=5)),0,new_yllv2(VALUE(LEFT(Options!$B$14,2)),$C166,$D166,$E166,$F166,2016,$I166/10,1,$H166/10,$G166*$H166/10,RateRatios_accidents!$B$5)*10))","v":7114.7121894510001},{"$f":"IF(AND(OR(Calculations!$E$2=\"Orkney Health Board\",Calculations!$E$2=\"Orkney Islands Local Authority\"),$F166=1),0,IF(AND(OR(Calculations!$E$2=\"Shetland Health Board\",Calculations!$E$2=\"Western Isles Health Board\",Calculations!$E$2=\"Shetland Islands Local Authority\",Calculations!$E$2=\"Eilean Siar Local Authority\"),OR($F166=1,$F166=5)),0,new_yllv2(VALUE(LEFT(Options!$B$14,2)),$C166,$D166,$E166,$F166,2016,$I166/10+$J166/10,1,$H166/10,$G166*$H166/10,RateRatios_accidents!$B$5)*10))","v":7113.5053199599997},{"$f":"IF(AND(OR(Calculations!$E$2=\"Orkney Health Board\",Calculations!$E$2=\"Orkney Islands Local Authority\"),$F166=1),0,IF(AND(OR(Calculations!$E$2=\"Shetland Health Board\",Calculations!$E$2=\"Western Isles Health Board\",Calculations!$E$2=\"Shetland Islands Local Authority\",Calculations!$E$2=\"Eilean Siar Local Authority\"),OR($F166=1,$F166=5)),0,hosp_count(VALUE(LEFT(Options!$B$14,2)),$C166,$E166,$F166,2016,$I166/10,1,$H166/10,$G166*$H166/10, RateRatios_accidents!$B$4, RateRatios_accidents!$B$5)*10))","v":10308.838145090001},{"$f":"IF(AND(OR(Calculations!$E$2=\"Orkney Health Board\",Calculations!$E$2=\"Orkney Islands Local Authority\"),$F166=1),0,IF(AND(OR(Calculations!$E$2=\"Shetland Health Board\",Calculations!$E$2=\"Western Isles Health Board\",Calculations!$E$2=\"Shetland Islands Local Authority\",Calculations!$E$2=\"Eilean Siar Local Authority\"),OR($F166=1,$F166=5)),0,hosp_count(VALUE(LEFT(Options!$B$14,2)),$C166,$E166,$F166,2016,$I166/10+$J166/10,1,$H166/10,$G166*$H166/10, RateRatios_accidents!$B$4, RateRatios_accidents!$B$5)*10))","v":10307.082087609999},{"$f":"IF(AND(OR(Calculations!$E$2=\"Orkney Health Board\",Calculations!$E$2=\"Orkney Islands Local Authority\"),$F166=1),0,IF(AND(OR(Calculations!$E$2=\"Shetland Health Board\",Calculations!$E$2=\"Western Isles Health Board\",Calculations!$E$2=\"Shetland Islands Local Authority\",Calculations!$E$2=\"Eilean Siar Local Authority\"),OR($F166=1,$F166=5)),0,prem_mort(VALUE(LEFT(Options!$B$14,2)),$C166,$E166,$F166,2016,$I166/10,1,$H166/10,$G166*$H166/10,RateRatios_accidents!$B$5)*10))","v":313.28539188000002},{"$f":"IF(AND(OR(Calculations!$E$2=\"Orkney Health Board\",Calculations!$E$2=\"Orkney Islands Local Authority\"),$F166=1),0,IF(AND(OR(Calculations!$E$2=\"Shetland Health Board\",Calculations!$E$2=\"Western Isles Health Board\",Calculations!$E$2=\"Shetland Islands Local Authority\",Calculations!$E$2=\"Eilean Siar Local Authority\"),OR($F166=1,$F166=5)),0,prem_mort(VALUE(LEFT(Options!$B$14,2)),$C166,$E166,$F166,2016,$I166/10+$J166/10,1,$H166/10,$G166*$H166/10,RateRatios_accidents!$B$5)*10))","v":313.23224924099998},null,{"$f":"IF(AND(OR(Calculations!$E$2=\"Orkney Health Board\",Calculations!$E$2=\"Orkney Islands Local Authority\"),$F166=1),0,IF(AND(OR(Calculations!$E$2=\"Shetland Health Board\",Calculations!$E$2=\"Western Isles Health Board\",Calculations!$E$2=\"Shetland Islands Local Authority\",Calculations!$E$2=\"Eilean Siar Local Authority\"),OR($F166=1,$F166=5)),0,new_ci(VALUE(LEFT(Options!$B$14,2)),$C166,$E166,$F166,2016,$I166/10,1,$H166/10,$G166*$H166/10,RateRatios_airpollution!$C166)*10))","v":313.28539188000002},{"$f":"IF(AND(OR(Calculations!$E$2=\"Orkney Health Board\",Calculations!$E$2=\"Orkney Islands Local Authority\"),$F166=1),0,IF(AND(OR(Calculations!$E$2=\"Shetland Health Board\",Calculations!$E$2=\"Western Isles Health Board\",Calculations!$E$2=\"Shetland Islands Local Authority\",Calculations!$E$2=\"Eilean Siar Local Authority\"),OR($F166=1,$F166=5)),0,new_ci(VALUE(LEFT(Options!$B$14,2)),$C166,$E166,$F166,2016,$I166/10+$J166/10,1,$H166/10,$G166*$H166/10,RateRatios_airpollution!$C166)*10))","v":313.282681744},{"$f":"IF(AND(OR(Calculations!$E$2=\"Orkney Health Board\",Calculations!$E$2=\"Orkney Islands Local Authority\"),$F166=1),0,IF(AND(OR(Calculations!$E$2=\"Shetland Health Board\",Calculations!$E$2=\"Western Isles Health Board\",Calculations!$E$2=\"Shetland Islands Local Authority\",Calculations!$E$2=\"Eilean Siar Local Authority\"),OR($F166=1,$F166=5)),0,new_yllv2(VALUE(LEFT(Options!$B$14,2)),$C166,$D166,$E166,$F166,2016,$I166/10,1,$H166/10,$G166*$H166/10,RateRatios_airpollution!$C166)*10))","v":7114.7121894510001},{"$f":"IF(AND(OR(Calculations!$E$2=\"Orkney Health Board\",Calculations!$E$2=\"Orkney Islands Local Authority\"),$F166=1),0,IF(AND(OR(Calculations!$E$2=\"Shetland Health Board\",Calculations!$E$2=\"Western Isles Health Board\",Calculations!$E$2=\"Shetland Islands Local Authority\",Calculations!$E$2=\"Eilean Siar Local Authority\"),OR($F166=1,$F166=5)),0,new_yllv2(VALUE(LEFT(Options!$B$14,2)),$C166,$D166,$E166,$F166,2016,$I166/10+$J166/10,1,$H166/10,$G166*$H166/10,RateRatios_airpollution!$C166)*10))","v":7114.6506422540006},{"$f":"IF(AND(OR(Calculations!$E$2=\"Orkney Health Board\",Calculations!$E$2=\"Orkney Islands Local Authority\"),$F166=1),0,IF(AND(OR(Calculations!$E$2=\"Shetland Health Board\",Calculations!$E$2=\"Western Isles Health Board\",Calculations!$E$2=\"Shetland Islands Local Authority\",Calculations!$E$2=\"Eilean Siar Local Authority\"),OR($F166=1,$F166=5)),0,hosp_count(VALUE(LEFT(Options!$B$14,2)),$C166,$E166,$F166,2016,$I166/10,1,$H166/10,$G166*$H166/10, RateRatios_airpollution!$D166, RateRatios_airpollution!$C166)*10))","v":10308.838145090001},{"$f":"IF(AND(OR(Calculations!$E$2=\"Orkney Health Board\",Calculations!$E$2=\"Orkney Islands Local Authority\"),$F166=1),0,IF(AND(OR(Calculations!$E$2=\"Shetland Health Board\",Calculations!$E$2=\"Western Isles Health Board\",Calculations!$E$2=\"Shetland Islands Local Authority\",Calculations!$E$2=\"Eilean Siar Local Authority\"),OR($F166=1,$F166=5)),0,hosp_count(VALUE(LEFT(Options!$B$14,2)),$C166,$E166,$F166,2016,$I166/10+$J166/10,1,$H166/10,$G166*$H166/10, RateRatios_airpollution!$D166, RateRatios_airpollution!$C166)*10))","v":10308.669374798999},{"$f":"IF(AND(OR(Calculations!$E$2=\"Orkney Health Board\",Calculations!$E$2=\"Orkney Islands Local Authority\"),$F166=1),0,IF(AND(OR(Calculations!$E$2=\"Shetland Health Board\",Calculations!$E$2=\"Western Isles Health Board\",Calculations!$E$2=\"Shetland Islands Local Authority\",Calculations!$E$2=\"Eilean Siar Local Authority\"),OR($F166=1,$F166=5)),0,prem_mort(VALUE(LEFT(Options!$B$14,2)),$C166,$E166,$F166,2016,$I166/10,1,$H166/10,$G166*$H166/10,RateRatios_airpollution!$C166)*10))","v":313.28539188000002},{"$f":"IF(AND(OR(Calculations!$E$2=\"Orkney Health Board\",Calculations!$E$2=\"Orkney Islands Local Authority\"),$F166=1),0,IF(AND(OR(Calculations!$E$2=\"Shetland Health Board\",Calculations!$E$2=\"Western Isles Health Board\",Calculations!$E$2=\"Shetland Islands Local Authority\",Calculations!$E$2=\"Eilean Siar Local Authority\"),OR($F166=1,$F166=5)),0,prem_mort(VALUE(LEFT(Options!$B$14,2)),$C166,$E166,$F166,2016,$I166/10+$J166/10,1,$H166/10,$G166*$H166/10,RateRatios_airpollution!$C166)*10))","v":313.282681744},null,{"$f":"IF(AND(OR(Calculations!$E$2=\"Orkney Health Board\",Calculations!$E$2=\"Orkney Islands Local Authority\"),$F166=1),0,IF(AND(OR(Calculations!$E$2=\"Shetland Health Board\",Calculations!$E$2=\"Western Isles Health Board\",Calculations!$E$2=\"Shetland Islands Local Authority\",Calculations!$E$2=\"Eilean Siar Local Authority\"),OR($F166=1,$F166=5)),0,new_ci(VALUE(LEFT(Options!$B$14,2)),$C166,$E166,$F166,2016,$I166/10,1,$H166/10,$G166*$H166/10,RateRatios_airpollution!$E166)*10))","v":313.28539188000002},{"$f":"IF(AND(OR(Calculations!$E$2=\"Orkney Health Board\",Calculations!$E$2=\"Orkney Islands Local Authority\"),$F166=1),0,IF(AND(OR(Calculations!$E$2=\"Shetland Health Board\",Calculations!$E$2=\"Western Isles Health Board\",Calculations!$E$2=\"Shetland Islands Local Authority\",Calculations!$E$2=\"Eilean Siar Local Authority\"),OR($F166=1,$F166=5)),0,new_ci(VALUE(LEFT(Options!$B$14,2)),$C166,$E166,$F166,2016,$I166/10+$J166/10,1,$H166/10,$G166*$H166/10,RateRatios_airpollution!$E166)*10))","v":313.28420869399997},{"$f":"IF(AND(OR(Calculations!$E$2=\"Orkney Health Board\",Calculations!$E$2=\"Orkney Islands Local Authority\"),$F166=1),0,IF(AND(OR(Calculations!$E$2=\"Shetland Health Board\",Calculations!$E$2=\"Western Isles Health Board\",Calculations!$E$2=\"Shetland Islands Local Authority\",Calculations!$E$2=\"Eilean Siar Local Authority\"),OR($F166=1,$F166=5)),0,new_yllv2(VALUE(LEFT(Options!$B$14,2)),$C166,$D166,$E166,$F166,2016,$I166/10,1,$H166/10,$G166*$H166/10,RateRatios_airpollution!$E166)*10))","v":7114.7121894510001},{"$f":"IF(AND(OR(Calculations!$E$2=\"Orkney Health Board\",Calculations!$E$2=\"Orkney Islands Local Authority\"),$F166=1),0,IF(AND(OR(Calculations!$E$2=\"Shetland Health Board\",Calculations!$E$2=\"Western Isles Health Board\",Calculations!$E$2=\"Shetland Islands Local Authority\",Calculations!$E$2=\"Eilean Siar Local Authority\"),OR($F166=1,$F166=5)),0,new_yllv2(VALUE(LEFT(Options!$B$14,2)),$C166,$D166,$E166,$F166,2016,$I166/10+$J166/10,1,$H166/10,$G166*$H166/10,RateRatios_airpollution!$E166)*10))","v":7114.6853192929993},{"$f":"IF(AND(OR(Calculations!$E$2=\"Orkney Health Board\",Calculations!$E$2=\"Orkney Islands Local Authority\"),$F166=1),0,IF(AND(OR(Calculations!$E$2=\"Shetland Health Board\",Calculations!$E$2=\"Western Isles Health Board\",Calculations!$E$2=\"Shetland Islands Local Authority\",Calculations!$E$2=\"Eilean Siar Local Authority\"),OR($F166=1,$F166=5)),0,hosp_count(VALUE(LEFT(Options!$B$14,2)),$C166,$E166,$F166,2016,$I166/10,1,$H166/10,$G166*$H166/10, RateRatios_airpollution!$F166, RateRatios_airpollution!$E166)*10))","v":10308.838145090001},{"$f":"IF(AND(OR(Calculations!$E$2=\"Orkney Health Board\",Calculations!$E$2=\"Orkney Islands Local Authority\"),$F166=1),0,IF(AND(OR(Calculations!$E$2=\"Shetland Health Board\",Calculations!$E$2=\"Western Isles Health Board\",Calculations!$E$2=\"Shetland Islands Local Authority\",Calculations!$E$2=\"Eilean Siar Local Authority\"),OR($F166=1,$F166=5)),0,hosp_count(VALUE(LEFT(Options!$B$14,2)),$C166,$E166,$F166,2016,$I166/10+$J166/10,1,$H166/10,$G166*$H166/10, RateRatios_airpollution!$F166, RateRatios_airpollution!$E166)*10))","v":10308.838145090001},{"$f":"IF(AND(OR(Calculations!$E$2=\"Orkney Health Board\",Calculations!$E$2=\"Orkney Islands Local Authority\"),$F166=1),0,IF(AND(OR(Calculations!$E$2=\"Shetland Health Board\",Calculations!$E$2=\"Western Isles Health Board\",Calculations!$E$2=\"Shetland Islands Local Authority\",Calculations!$E$2=\"Eilean Siar Local Authority\"),OR($F166=1,$F166=5)),0,prem_mort(VALUE(LEFT(Options!$B$14,2)),$C166,$E166,$F166,2016,$I166/10,1,$H166/10,$G166*$H166/10,RateRatios_airpollution!$E166)*10))","v":313.28539188000002},{"$f":"IF(AND(OR(Calculations!$E$2=\"Orkney Health Board\",Calculations!$E$2=\"Orkney Islands Local Authority\"),$F166=1),0,IF(AND(OR(Calculations!$E$2=\"Shetland Health Board\",Calculations!$E$2=\"Western Isles Health Board\",Calculations!$E$2=\"Shetland Islands Local Authority\",Calculations!$E$2=\"Eilean Siar Local Authority\"),OR($F166=1,$F166=5)),0,prem_mort(VALUE(LEFT(Options!$B$14,2)),$C166,$E166,$F166,2016,$I166/10+$J166/10,1,$H166/10,$G166*$H166/10,RateRatios_airpollution!$E166)*10))","v":313.28420869399997},313.28539188000002,313.22835591899991,7114.7121894510001,7113.4169026049994,10308.838145090001,10306.913317318997,313.28539188000002,313.22835591899991,834.42640000000006,834.27448640031935,18949.826047279264,18946.376088973229,27457.286310001338,27452.159588011709,834.42640000000006,834.27448640031935,5423771.6000000006,5422784.1616020761,123173869.30731522,123151444.57832599,178472361.01500869,178439037.32207611,5423771.6000000006,5422784.1616020761,6500]
[null,"Male 60-64",61.942988999999997,81.612989999999996,"male",3,1,{"$f":"HLOOKUP(Calculations!$E$2,'Population 2016'!$C$3:$BC$249,'Population 2016'!BD167,FALSE)","v":33247},0,{"$f":"HLOOKUP(Calculations!$E$2,Pop2016_in_settlements!$C$3:$BC$249,Pop2016_in_settlements!$BD167,FALSE)","v":13932},{"$f":"IF(AND(OR(Calculations!$E$2=\"Orkney Health Board\",Calculations!$E$2=\"Orkney Islands Local Authority\"),$F167=1),0,IF(AND(OR(Calculations!$E$2=\"Shetland Health Board\",Calculations!$E$2=\"Western Isles Health Board\",Calculations!$E$2=\"Shetland Islands Local Authority\",Calculations!$E$2=\"Eilean Siar Local Authority\"),OR($F167=1,$F167=5)),0,new_ci(VALUE(LEFT(Options!$B$14,2)),$C167,$E167,$F167,2016,$I167/10,1,$H167/10,$G167*$H167/10,RateRatios_accidents!$B$5)*10))","v":403.63789318199997},{"$f":"IF(AND(OR(Calculations!$E$2=\"Orkney Health Board\",Calculations!$E$2=\"Orkney Islands Local Authority\"),$F167=1),0,IF(AND(OR(Calculations!$E$2=\"Shetland Health Board\",Calculations!$E$2=\"Western Isles Health Board\",Calculations!$E$2=\"Shetland Islands Local Authority\",Calculations!$E$2=\"Eilean Siar Local Authority\"),OR($F167=1,$F167=5)),0,new_ci(VALUE(LEFT(Options!$B$14,2)),$C167,$E167,$F167,2016,$I167/10+$J167/10,1,$H167/10,$G167*$H167/10,RateRatios_accidents!$B$5)*10))","v":403.57064759799994},{"$f":"IF(AND(OR(Calculations!$E$2=\"Orkney Health Board\",Calculations!$E$2=\"Orkney Islands Local Authority\"),$F167=1),0,IF(AND(OR(Calculations!$E$2=\"Shetland Health Board\",Calculations!$E$2=\"Western Isles Health Board\",Calculations!$E$2=\"Shetland Islands Local Authority\",Calculations!$E$2=\"Eilean Siar Local Authority\"),OR($F167=1,$F167=5)),0,new_yllv2(VALUE(LEFT(Options!$B$14,2)),$C167,$D167,$E167,$F167,2016,$I167/10,1,$H167/10,$G167*$H167/10,RateRatios_accidents!$B$5)*10))","v":7535.9198693459994},{"$f":"IF(AND(OR(Calculations!$E$2=\"Orkney Health Board\",Calculations!$E$2=\"Orkney Islands Local Authority\"),$F167=1),0,IF(AND(OR(Calculations!$E$2=\"Shetland Health Board\",Calculations!$E$2=\"Western Isles Health Board\",Calculations!$E$2=\"Shetland Islands Local Authority\",Calculations!$E$2=\"Eilean Siar Local Authority\"),OR($F167=1,$F167=5)),0,new_yllv2(VALUE(LEFT(Options!$B$14,2)),$C167,$D167,$E167,$F167,2016,$I167/10+$J167/10,1,$H167/10,$G167*$H167/10,RateRatios_accidents!$B$5)*10))","v":7534.6643942250003},{"$f":"IF(AND(OR(Calculations!$E$2=\"Orkney Health Board\",Calculations!$E$2=\"Orkney Islands Local Authority\"),$F167=1),0,IF(AND(OR(Calculations!$E$2=\"Shetland Health Board\",Calculations!$E$2=\"Western Isles Health Board\",Calculations!$E$2=\"Shetland Islands Local Authority\",Calculations!$E$2=\"Eilean Siar Local Authority\"),OR($F167=1,$F167=5)),0,hosp_count(VALUE(LEFT(Options!$B$14,2)),$C167,$E167,$F167,2016,$I167/10,1,$H167/10,$G167*$H167/10, RateRatios_accidents!$B$4, RateRatios_accidents!$B$5)*10))","v":10898.467983401999},{"$f":"IF(AND(OR(Calculations!$E$2=\"Orkney Health Board\",Calculations!$E$2=\"Orkney Islands Local Authority\"),$F167=1),0,IF(AND(OR(Calculations!$E$2=\"Shetland Health Board\",Calculations!$E$2=\"Western Isles Health Board\",Calculations!$E$2=\"Shetland Islands Local Authority\",Calculations!$E$2=\"Eilean Siar Local Authority\"),OR($F167=1,$F167=5)),0,hosp_count(VALUE(LEFT(Options!$B$14,2)),$C167,$E167,$F167,2016,$I167/10+$J167/10,1,$H167/10,$G167*$H167/10, RateRatios_accidents!$B$4, RateRatios_accidents!$B$5)*10))","v":10896.641202843},{"$f":"IF(AND(OR(Calculations!$E$2=\"Orkney Health Board\",Calculations!$E$2=\"Orkney Islands Local Authority\"),$F167=1),0,IF(AND(OR(Calculations!$E$2=\"Shetland Health Board\",Calculations!$E$2=\"Western Isles Health Board\",Calculations!$E$2=\"Shetland Islands Local Authority\",Calculations!$E$2=\"Eilean Siar Local Authority\"),OR($F167=1,$F167=5)),0,prem_mort(VALUE(LEFT(Options!$B$14,2)),$C167,$E167,$F167,2016,$I167/10,1,$H167/10,$G167*$H167/10,RateRatios_accidents!$B$5)*10))","v":403.63789318199997},{"$f":"IF(AND(OR(Calculations!$E$2=\"Orkney Health Board\",Calculations!$E$2=\"Orkney Islands Local Authority\"),$F167=1),0,IF(AND(OR(Calculations!$E$2=\"Shetland Health Board\",Calculations!$E$2=\"Western Isles Health Board\",Calculations!$E$2=\"Shetland Islands Local Authority\",Calculations!$E$2=\"Eilean Siar Local Authority\"),OR($F167=1,$F167=5)),0,prem_mort(VALUE(LEFT(Options!$B$14,2)),$C167,$E167,$F167,2016,$I167/10+$J167/10,1,$H167/10,$G167*$H167/10,RateRatios_accidents!$B$5)*10))","v":403.57064759799994},null,{"$f":"IF(AND(OR(Calculations!$E$2=\"Orkney Health Board\",Calculations!$E$2=\"Orkney Islands Local Authority\"),$F167=1),0,IF(AND(OR(Calculations!$E$2=\"Shetland Health Board\",Calculations!$E$2=\"Western Isles Health Board\",Calculations!$E$2=\"Shetland Islands Local Authority\",Calculations!$E$2=\"Eilean Siar Local Authority\"),OR($F167=1,$F167=5)),0,new_ci(VALUE(LEFT(Options!$B$14,2)),$C167,$E167,$F167,2016,$I167/10,1,$H167/10,$G167*$H167/10,RateRatios_airpollution!$C167)*10))","v":403.63789318199997},{"$f":"IF(AND(OR(Calculations!$E$2=\"Orkney Health Board\",Calculations!$E$2=\"Orkney Islands Local Authority\"),$F167=1),0,IF(AND(OR(Calculations!$E$2=\"Shetland Health Board\",Calculations!$E$2=\"Western Isles Health Board\",Calculations!$E$2=\"Shetland Islands Local Authority\",Calculations!$E$2=\"Eilean Siar Local Authority\"),OR($F167=1,$F167=5)),0,new_ci(VALUE(LEFT(Options!$B$14,2)),$C167,$E167,$F167,2016,$I167/10+$J167/10,1,$H167/10,$G167*$H167/10,RateRatios_airpollution!$C167)*10))","v":403.63456204099998},{"$f":"IF(AND(OR(Calculations!$E$2=\"Orkney Health Board\",Calculations!$E$2=\"Orkney Islands Local Authority\"),$F167=1),0,IF(AND(OR(Calculations!$E$2=\"Shetland Health Board\",Calculations!$E$2=\"Western Isles Health Board\",Calculations!$E$2=\"Shetland Islands Local Authority\",Calculations!$E$2=\"Eilean Siar Local Authority\"),OR($F167=1,$F167=5)),0,new_yllv2(VALUE(LEFT(Options!$B$14,2)),$C167,$D167,$E167,$F167,2016,$I167/10,1,$H167/10,$G167*$H167/10,RateRatios_airpollution!$C167)*10))","v":7535.9198693459994},{"$f":"IF(AND(OR(Calculations!$E$2=\"Orkney Health Board\",Calculations!$E$2=\"Orkney Islands Local Authority\"),$F167=1),0,IF(AND(OR(Calculations!$E$2=\"Shetland Health Board\",Calculations!$E$2=\"Western Isles Health Board\",Calculations!$E$2=\"Shetland Islands Local Authority\",Calculations!$E$2=\"Eilean Siar Local Authority\"),OR($F167=1,$F167=5)),0,new_yllv2(VALUE(LEFT(Options!$B$14,2)),$C167,$D167,$E167,$F167,2016,$I167/10+$J167/10,1,$H167/10,$G167*$H167/10,RateRatios_airpollution!$C167)*10))","v":7535.8576769399997},{"$f":"IF(AND(OR(Calculations!$E$2=\"Orkney Health Board\",Calculations!$E$2=\"Orkney Islands Local Authority\"),$F167=1),0,IF(AND(OR(Calculations!$E$2=\"Shetland Health Board\",Calculations!$E$2=\"Western Isles Health Board\",Calculations!$E$2=\"Shetland Islands Local Authority\",Calculations!$E$2=\"Eilean Siar Local Authority\"),OR($F167=1,$F167=5)),0,hosp_count(VALUE(LEFT(Options!$B$14,2)),$C167,$E167,$F167,2016,$I167/10,1,$H167/10,$G167*$H167/10, RateRatios_airpollution!$D167, RateRatios_airpollution!$C167)*10))","v":10898.467983401999},{"$f":"IF(AND(OR(Calculations!$E$2=\"Orkney Health Board\",Calculations!$E$2=\"Orkney Islands Local Authority\"),$F167=1),0,IF(AND(OR(Calculations!$E$2=\"Shetland Health Board\",Calculations!$E$2=\"Western Isles Health Board\",Calculations!$E$2=\"Shetland Islands Local Authority\",Calculations!$E$2=\"Eilean Siar Local Authority\"),OR($F167=1,$F167=5)),0,hosp_count(VALUE(LEFT(Options!$B$14,2)),$C167,$E167,$F167,2016,$I167/10+$J167/10,1,$H167/10,$G167*$H167/10, RateRatios_airpollution!$D167, RateRatios_airpollution!$C167)*10))","v":10898.297543492999},{"$f":"IF(AND(OR(Calculations!$E$2=\"Orkney Health Board\",Calculations!$E$2=\"Orkney Islands Local Authority\"),$F167=1),0,IF(AND(OR(Calculations!$E$2=\"Shetland Health Board\",Calculations!$E$2=\"Western Isles Health Board\",Calculations!$E$2=\"Shetland Islands Local Authority\",Calculations!$E$2=\"Eilean Siar Local Authority\"),OR($F167=1,$F167=5)),0,prem_mort(VALUE(LEFT(Options!$B$14,2)),$C167,$E167,$F167,2016,$I167/10,1,$H167/10,$G167*$H167/10,RateRatios_airpollution!$C167)*10))","v":403.63789318199997},{"$f":"IF(AND(OR(Calculations!$E$2=\"Orkney Health Board\",Calculations!$E$2=\"Orkney Islands Local Authority\"),$F167=1),0,IF(AND(OR(Calculations!$E$2=\"Shetland Health Board\",Calculations!$E$2=\"Western Isles Health Board\",Calculations!$E$2=\"Shetland Islands Local Authority\",Calculations!$E$2=\"Eilean Siar Local Authority\"),OR($F167=1,$F167=5)),0,prem_mort(VALUE(LEFT(Options!$B$14,2)),$C167,$E167,$F167,2016,$I167/10+$J167/10,1,$H167/10,$G167*$H167/10,RateRatios_airpollution!$C167)*10))","v":403.63456204099998},null,{"$f":"IF(AND(OR(Calculations!$E$2=\"Orkney Health Board\",Calculations!$E$2=\"Orkney Islands Local Authority\"),$F167=1),0,IF(AND(OR(Calculations!$E$2=\"Shetland Health Board\",Calculations!$E$2=\"Western Isles Health Board\",Calculations!$E$2=\"Shetland Islands Local Authority\",Calculations!$E$2=\"Eilean Siar Local Authority\"),OR($F167=1,$F167=5)),0,new_ci(VALUE(LEFT(Options!$B$14,2)),$C167,$E167,$F167,2016,$I167/10,1,$H167/10,$G167*$H167/10,RateRatios_airpollution!$E167)*10))","v":403.63789318199997},{"$f":"IF(AND(OR(Calculations!$E$2=\"Orkney Health Board\",Calculations!$E$2=\"Orkney Islands Local Authority\"),$F167=1),0,IF(AND(OR(Calculations!$E$2=\"Shetland Health Board\",Calculations!$E$2=\"Western Isles Health Board\",Calculations!$E$2=\"Shetland Islands Local Authority\",Calculations!$E$2=\"Eilean Siar Local Authority\"),OR($F167=1,$F167=5)),0,new_ci(VALUE(LEFT(Options!$B$14,2)),$C167,$E167,$F167,2016,$I167/10+$J167/10,1,$H167/10,$G167*$H167/10,RateRatios_airpollution!$E167)*10))","v":403.636438682},{"$f":"IF(AND(OR(Calculations!$E$2=\"Orkney Health Board\",Calculations!$E$2=\"Orkney Islands Local Authority\"),$F167=1),0,IF(AND(OR(Calculations!$E$2=\"Shetland Health Board\",Calculations!$E$2=\"Western Isles Health Board\",Calculations!$E$2=\"Shetland Islands Local Authority\",Calculations!$E$2=\"Eilean Siar Local Authority\"),OR($F167=1,$F167=5)),0,new_yllv2(VALUE(LEFT(Options!$B$14,2)),$C167,$D167,$E167,$F167,2016,$I167/10,1,$H167/10,$G167*$H167/10,RateRatios_airpollution!$E167)*10))","v":7535.9198693459994},{"$f":"IF(AND(OR(Calculations!$E$2=\"Orkney Health Board\",Calculations!$E$2=\"Orkney Islands Local Authority\"),$F167=1),0,IF(AND(OR(Calculations!$E$2=\"Shetland Health Board\",Calculations!$E$2=\"Western Isles Health Board\",Calculations!$E$2=\"Shetland Islands Local Authority\",Calculations!$E$2=\"Eilean Siar Local Authority\"),OR($F167=1,$F167=5)),0,new_yllv2(VALUE(LEFT(Options!$B$14,2)),$C167,$D167,$E167,$F167,2016,$I167/10+$J167/10,1,$H167/10,$G167*$H167/10,RateRatios_airpollution!$E167)*10))","v":7535.8927138290001},{"$f":"IF(AND(OR(Calculations!$E$2=\"Orkney Health Board\",Calculations!$E$2=\"Orkney Islands Local Authority\"),$F167=1),0,IF(AND(OR(Calculations!$E$2=\"Shetland Health Board\",Calculations!$E$2=\"Western Isles Health Board\",Calculations!$E$2=\"Shetland Islands Local Authority\",Calculations!$E$2=\"Eilean Siar Local Authority\"),OR($F167=1,$F167=5)),0,hosp_count(VALUE(LEFT(Options!$B$14,2)),$C167,$E167,$F167,2016,$I167/10,1,$H167/10,$G167*$H167/10, RateRatios_airpollution!$F167, RateRatios_airpollution!$E167)*10))","v":10898.467983401999},{"$f":"IF(AND(OR(Calculations!$E$2=\"Orkney Health Board\",Calculations!$E$2=\"Orkney Islands Local Authority\"),$F167=1),0,IF(AND(OR(Calculations!$E$2=\"Shetland Health Board\",Calculations!$E$2=\"Western Isles Health Board\",Calculations!$E$2=\"Shetland Islands Local Authority\",Calculations!$E$2=\"Eilean Siar Local Authority\"),OR($F167=1,$F167=5)),0,hosp_count(VALUE(LEFT(Options!$B$14,2)),$C167,$E167,$F167,2016,$I167/10+$J167/10,1,$H167/10,$G167*$H167/10, RateRatios_airpollution!$F167, RateRatios_airpollution!$E167)*10))","v":10898.467983401999},{"$f":"IF(AND(OR(Calculations!$E$2=\"Orkney Health Board\",Calculations!$E$2=\"Orkney Islands Local Authority\"),$F167=1),0,IF(AND(OR(Calculations!$E$2=\"Shetland Health Board\",Calculations!$E$2=\"Western Isles Health Board\",Calculations!$E$2=\"Shetland Islands Local Authority\",Calculations!$E$2=\"Eilean Siar Local Authority\"),OR($F167=1,$F167=5)),0,prem_mort(VALUE(LEFT(Options!$B$14,2)),$C167,$E167,$F167,2016,$I167/10,1,$H167/10,$G167*$H167/10,RateRatios_airpollution!$E167)*10))","v":403.63789318199997},{"$f":"IF(AND(OR(Calculations!$E$2=\"Orkney Health Board\",Calculations!$E$2=\"Orkney Islands Local Authority\"),$F167=1),0,IF(AND(OR(Calculations!$E$2=\"Shetland Health Board\",Calculations!$E$2=\"Western Isles Health Board\",Calculations!$E$2=\"Shetland Islands Local Authority\",Calculations!$E$2=\"Eilean Siar Local Authority\"),OR($F167=1,$F167=5)),0,prem_mort(VALUE(LEFT(Options!$B$14,2)),$C167,$E167,$F167,2016,$I167/10+$J167/10,1,$H167/10,$G167*$H167/10,RateRatios_airpollution!$E167)*10))","v":403.636438682},403.63789318199997,403.56586195699998,7535.9198693459994,7534.5750463020013,10898.467983401999,10896.470762934001,403.63789318199997,403.56586195699998,1214.0580899990975,1213.8414351881372,22666.465754341742,22662.420808800798,32780.304940000598,32774.297719896531,1214.0580899990975,1213.8414351881372,7284348.5399945853,7283048.6111288229,135998794.52605045,135974524.85280478,196681829.64000359,196645786.31937918,7284348.5399945853,7283048.6111288229,6000]
[null,"Male 65-69",67.054419999999993,82.954419999999999,"male",3,1,{"$f":"HLOOKUP(Calculations!$E$2,'Population 2016'!$C$3:$BC$249,'Population 2016'!BD168,FALSE)","v":33371},0,{"$f":"HLOOKUP(Calculations!$E$2,Pop2016_in_settlements!$C$3:$BC$249,Pop2016_in_settlements!$BD168,FALSE)","v":13657},{"$f":"IF(AND(OR(Calculations!$E$2=\"Orkney Health Board\",Calculations!$E$2=\"Orkney Islands Local Authority\"),$F168=1),0,IF(AND(OR(Calculations!$E$2=\"Shetland Health Board\",Calculations!$E$2=\"Western Isles Health Board\",Calculations!$E$2=\"Shetland Islands Local Authority\",Calculations!$E$2=\"Eilean Siar Local Authority\"),OR($F168=1,$F168=5)),0,new_ci(VALUE(LEFT(Options!$B$14,2)),$C168,$E168,$F168,2016,$I168/10,1,$H168/10,$G168*$H168/10,RateRatios_accidents!$B$5)*10))","v":594.23402652900006},{"$f":"IF(AND(OR(Calculations!$E$2=\"Orkney Health Board\",Calculations!$E$2=\"Orkney Islands Local Authority\"),$F168=1),0,IF(AND(OR(Calculations!$E$2=\"Shetland Health Board\",Calculations!$E$2=\"Western Isles Health Board\",Calculations!$E$2=\"Shetland Islands Local Authority\",Calculations!$E$2=\"Eilean Siar Local Authority\"),OR($F168=1,$F168=5)),0,new_ci(VALUE(LEFT(Options!$B$14,2)),$C168,$E168,$F168,2016,$I168/10+$J168/10,1,$H168/10,$G168*$H168/10,RateRatios_accidents!$B$5)*10))","v":594.13762176600005},{"$f":"IF(AND(OR(Calculations!$E$2=\"Orkney Health Board\",Calculations!$E$2=\"Orkney Islands Local Authority\"),$F168=1),0,IF(AND(OR(Calculations!$E$2=\"Shetland Health Board\",Calculations!$E$2=\"Western Isles Health Board\",Calculations!$E$2=\"Shetland Islands Local Authority\",Calculations!$E$2=\"Eilean Siar Local Authority\"),OR($F168=1,$F168=5)),0,new_yllv2(VALUE(LEFT(Options!$B$14,2)),$C168,$D168,$E168,$F168,2016,$I168/10,1,$H168/10,$G168*$H168/10,RateRatios_accidents!$B$5)*10))","v":8854.0869952819994},{"$f":"IF(AND(OR(Calculations!$E$2=\"Orkney Health Board\",Calculations!$E$2=\"Orkney Islands Local Authority\"),$F168=1),0,IF(AND(OR(Calculations!$E$2=\"Shetland Health Board\",Calculations!$E$2=\"Western Isles Health Board\",Calculations!$E$2=\"Shetland Islands Local Authority\",Calculations!$E$2=\"Eilean Siar Local Authority\"),OR($F168=1,$F168=5)),0,new_yllv2(VALUE(LEFT(Options!$B$14,2)),$C168,$D168,$E168,$F168,2016,$I168/10+$J168/10,1,$H168/10,$G168*$H168/10,RateRatios_accidents!$B$5)*10))","v":8852.6505643130004},{"$f":"IF(AND(OR(Calculations!$E$2=\"Orkney Health Board\",Calculations!$E$2=\"Orkney Islands Local Authority\"),$F168=1),0,IF(AND(OR(Calculations!$E$2=\"Shetland Health Board\",Calculations!$E$2=\"Western Isles Health Board\",Calculations!$E$2=\"Shetland Islands Local Authority\",Calculations!$E$2=\"Eilean Siar Local Authority\"),OR($F168=1,$F168=5)),0,hosp_count(VALUE(LEFT(Options!$B$14,2)),$C168,$E168,$F168,2016,$I168/10,1,$H168/10,$G168*$H168/10, RateRatios_accidents!$B$4, RateRatios_accidents!$B$5)*10))","v":13115.256204877001},{"$f":"IF(AND(OR(Calculations!$E$2=\"Orkney Health Board\",Calculations!$E$2=\"Orkney Islands Local Authority\"),$F168=1),0,IF(AND(OR(Calculations!$E$2=\"Shetland Health Board\",Calculations!$E$2=\"Western Isles Health Board\",Calculations!$E$2=\"Shetland Islands Local Authority\",Calculations!$E$2=\"Eilean Siar Local Authority\"),OR($F168=1,$F168=5)),0,hosp_count(VALUE(LEFT(Options!$B$14,2)),$C168,$E168,$F168,2016,$I168/10+$J168/10,1,$H168/10,$G168*$H168/10, RateRatios_accidents!$B$4, RateRatios_accidents!$B$5)*10))","v":13113.109250729001},{"$f":"IF(AND(OR(Calculations!$E$2=\"Orkney Health Board\",Calculations!$E$2=\"Orkney Islands Local Authority\"),$F168=1),0,IF(AND(OR(Calculations!$E$2=\"Shetland Health Board\",Calculations!$E$2=\"Western Isles Health Board\",Calculations!$E$2=\"Shetland Islands Local Authority\",Calculations!$E$2=\"Eilean Siar Local Authority\"),OR($F168=1,$F168=5)),0,prem_mort(VALUE(LEFT(Options!$B$14,2)),$C168,$E168,$F168,2016,$I168/10,1,$H168/10,$G168*$H168/10,RateRatios_accidents!$B$5)*10))","v":594.23402652900006},{"$f":"IF(AND(OR(Calculations!$E$2=\"Orkney Health Board\",Calculations!$E$2=\"Orkney Islands Local Authority\"),$F168=1),0,IF(AND(OR(Calculations!$E$2=\"Shetland Health Board\",Calculations!$E$2=\"Western Isles Health Board\",Calculations!$E$2=\"Shetland Islands Local Authority\",Calculations!$E$2=\"Eilean Siar Local Authority\"),OR($F168=1,$F168=5)),0,prem_mort(VALUE(LEFT(Options!$B$14,2)),$C168,$E168,$F168,2016,$I168/10+$J168/10,1,$H168/10,$G168*$H168/10,RateRatios_accidents!$B$5)*10))","v":594.13762176600005},null,{"$f":"IF(AND(OR(Calculations!$E$2=\"Orkney Health Board\",Calculations!$E$2=\"Orkney Islands Local Authority\"),$F168=1),0,IF(AND(OR(Calculations!$E$2=\"Shetland Health Board\",Calculations!$E$2=\"Western Isles Health Board\",Calculations!$E$2=\"Shetland Islands Local Authority\",Calculations!$E$2=\"Eilean Siar Local Authority\"),OR($F168=1,$F168=5)),0,new_ci(VALUE(LEFT(Options!$B$14,2)),$C168,$E168,$F168,2016,$I168/10,1,$H168/10,$G168*$H168/10,RateRatios_airpollution!$C168)*10))","v":594.23402652900006},{"$f":"IF(AND(OR(Calculations!$E$2=\"Orkney Health Board\",Calculations!$E$2=\"Orkney Islands Local Authority\"),$F168=1),0,IF(AND(OR(Calculations!$E$2=\"Shetland Health Board\",Calculations!$E$2=\"Western Isles Health Board\",Calculations!$E$2=\"Shetland Islands Local Authority\",Calculations!$E$2=\"Eilean Siar Local Authority\"),OR($F168=1,$F168=5)),0,new_ci(VALUE(LEFT(Options!$B$14,2)),$C168,$E168,$F168,2016,$I168/10+$J168/10,1,$H168/10,$G168*$H168/10,RateRatios_airpollution!$C168)*10))","v":594.22950059900006},{"$f":"IF(AND(OR(Calculations!$E$2=\"Orkney Health Board\",Calculations!$E$2=\"Orkney Islands Local Authority\"),$F168=1),0,IF(AND(OR(Calculations!$E$2=\"Shetland Health Board\",Calculations!$E$2=\"Western Isles Health Board\",Calculations!$E$2=\"Shetland Islands Local Authority\",Calculations!$E$2=\"Eilean Siar Local Authority\"),OR($F168=1,$F168=5)),0,new_yllv2(VALUE(LEFT(Options!$B$14,2)),$C168,$D168,$E168,$F168,2016,$I168/10,1,$H168/10,$G168*$H168/10,RateRatios_airpollution!$C168)*10))","v":8854.0869952819994},{"$f":"IF(AND(OR(Calculations!$E$2=\"Orkney Health Board\",Calculations!$E$2=\"Orkney Islands Local Authority\"),$F168=1),0,IF(AND(OR(Calculations!$E$2=\"Shetland Health Board\",Calculations!$E$2=\"Western Isles Health Board\",Calculations!$E$2=\"Shetland Islands Local Authority\",Calculations!$E$2=\"Eilean Siar Local Authority\"),OR($F168=1,$F168=5)),0,new_yllv2(VALUE(LEFT(Options!$B$14,2)),$C168,$D168,$E168,$F168,2016,$I168/10+$J168/10,1,$H168/10,$G168*$H168/10,RateRatios_airpollution!$C168)*10))","v":8854.0195589249997},{"$f":"IF(AND(OR(Calculations!$E$2=\"Orkney Health Board\",Calculations!$E$2=\"Orkney Islands Local Authority\"),$F168=1),0,IF(AND(OR(Calculations!$E$2=\"Shetland Health Board\",Calculations!$E$2=\"Western Isles Health Board\",Calculations!$E$2=\"Shetland Islands Local Authority\",Calculations!$E$2=\"Eilean Siar Local Authority\"),OR($F168=1,$F168=5)),0,hosp_count(VALUE(LEFT(Options!$B$14,2)),$C168,$E168,$F168,2016,$I168/10,1,$H168/10,$G168*$H168/10, RateRatios_airpollution!$D168, RateRatios_airpollution!$C168)*10))","v":13115.256204877001},{"$f":"IF(AND(OR(Calculations!$E$2=\"Orkney Health Board\",Calculations!$E$2=\"Orkney Islands Local Authority\"),$F168=1),0,IF(AND(OR(Calculations!$E$2=\"Shetland Health Board\",Calculations!$E$2=\"Western Isles Health Board\",Calculations!$E$2=\"Shetland Islands Local Authority\",Calculations!$E$2=\"Eilean Siar Local Authority\"),OR($F168=1,$F168=5)),0,hosp_count(VALUE(LEFT(Options!$B$14,2)),$C168,$E168,$F168,2016,$I168/10+$J168/10,1,$H168/10,$G168*$H168/10, RateRatios_airpollution!$D168, RateRatios_airpollution!$C168)*10))","v":13115.066331605998},{"$f":"IF(AND(OR(Calculations!$E$2=\"Orkney Health Board\",Calculations!$E$2=\"Orkney Islands Local Authority\"),$F168=1),0,IF(AND(OR(Calculations!$E$2=\"Shetland Health Board\",Calculations!$E$2=\"Western Isles Health Board\",Calculations!$E$2=\"Shetland Islands Local Authority\",Calculations!$E$2=\"Eilean Siar Local Authority\"),OR($F168=1,$F168=5)),0,prem_mort(VALUE(LEFT(Options!$B$14,2)),$C168,$E168,$F168,2016,$I168/10,1,$H168/10,$G168*$H168/10,RateRatios_airpollution!$C168)*10))","v":594.23402652900006},{"$f":"IF(AND(OR(Calculations!$E$2=\"Orkney Health Board\",Calculations!$E$2=\"Orkney Islands Local Authority\"),$F168=1),0,IF(AND(OR(Calculations!$E$2=\"Shetland Health Board\",Calculations!$E$2=\"Western Isles Health Board\",Calculations!$E$2=\"Shetland Islands Local Authority\",Calculations!$E$2=\"Eilean Siar Local Authority\"),OR($F168=1,$F168=5)),0,prem_mort(VALUE(LEFT(Options!$B$14,2)),$C168,$E168,$F168,2016,$I168/10+$J168/10,1,$H168/10,$G168*$H168/10,RateRatios_airpollution!$C168)*10))","v":594.22950059900006},null,{"$f":"IF(AND(OR(Calculations!$E$2=\"Orkney Health Board\",Calculations!$E$2=\"Orkney Islands Local Authority\"),$F168=1),0,IF(AND(OR(Calculations!$E$2=\"Shetland Health Board\",Calculations!$E$2=\"Western Isles Health Board\",Calculations!$E$2=\"Shetland Islands Local Authority\",Calculations!$E$2=\"Eilean Siar Local Authority\"),OR($F168=1,$F168=5)),0,new_ci(VALUE(LEFT(Options!$B$14,2)),$C168,$E168,$F168,2016,$I168/10,1,$H168/10,$G168*$H168/10,RateRatios_airpollution!$E168)*10))","v":594.23402652900006},{"$f":"IF(AND(OR(Calculations!$E$2=\"Orkney Health Board\",Calculations!$E$2=\"Orkney Islands Local Authority\"),$F168=1),0,IF(AND(OR(Calculations!$E$2=\"Shetland Health Board\",Calculations!$E$2=\"Western Isles Health Board\",Calculations!$E$2=\"Shetland Islands Local Authority\",Calculations!$E$2=\"Eilean Siar Local Authority\"),OR($F168=1,$F168=5)),0,new_ci(VALUE(LEFT(Options!$B$14,2)),$C168,$E168,$F168,2016,$I168/10+$J168/10,1,$H168/10,$G168*$H168/10,RateRatios_airpollution!$E168)*10))","v":594.23204489800003},{"$f":"IF(AND(OR(Calculations!$E$2=\"Orkney Health Board\",Calculations!$E$2=\"Orkney Islands Local Authority\"),$F168=1),0,IF(AND(OR(Calculations!$E$2=\"Shetland Health Board\",Calculations!$E$2=\"Western Isles Health Board\",Calculations!$E$2=\"Shetland Islands Local Authority\",Calculations!$E$2=\"Eilean Siar Local Authority\"),OR($F168=1,$F168=5)),0,new_yllv2(VALUE(LEFT(Options!$B$14,2)),$C168,$D168,$E168,$F168,2016,$I168/10,1,$H168/10,$G168*$H168/10,RateRatios_airpollution!$E168)*10))","v":8854.0869952819994},{"$f":"IF(AND(OR(Calculations!$E$2=\"Orkney Health Board\",Calculations!$E$2=\"Orkney Islands Local Authority\"),$F168=1),0,IF(AND(OR(Calculations!$E$2=\"Shetland Health Board\",Calculations!$E$2=\"Western Isles Health Board\",Calculations!$E$2=\"Shetland Islands Local Authority\",Calculations!$E$2=\"Eilean Siar Local Authority\"),OR($F168=1,$F168=5)),0,new_yllv2(VALUE(LEFT(Options!$B$14,2)),$C168,$D168,$E168,$F168,2016,$I168/10+$J168/10,1,$H168/10,$G168*$H168/10,RateRatios_airpollution!$E168)*10))","v":8854.0574689799996},{"$f":"IF(AND(OR(Calculations!$E$2=\"Orkney Health Board\",Calculations!$E$2=\"Orkney Islands Local Authority\"),$F168=1),0,IF(AND(OR(Calculations!$E$2=\"Shetland Health Board\",Calculations!$E$2=\"Western Isles Health Board\",Calculations!$E$2=\"Shetland Islands Local Authority\",Calculations!$E$2=\"Eilean Siar Local Authority\"),OR($F168=1,$F168=5)),0,hosp_count(VALUE(LEFT(Options!$B$14,2)),$C168,$E168,$F168,2016,$I168/10,1,$H168/10,$G168*$H168/10, RateRatios_airpollution!$F168, RateRatios_airpollution!$E168)*10))","v":13115.256204877001},{"$f":"IF(AND(OR(Calculations!$E$2=\"Orkney Health Board\",Calculations!$E$2=\"Orkney Islands Local Authority\"),$F168=1),0,IF(AND(OR(Calculations!$E$2=\"Shetland Health Board\",Calculations!$E$2=\"Western Isles Health Board\",Calculations!$E$2=\"Shetland Islands Local Authority\",Calculations!$E$2=\"Eilean Siar Local Authority\"),OR($F168=1,$F168=5)),0,hosp_count(VALUE(LEFT(Options!$B$14,2)),$C168,$E168,$F168,2016,$I168/10+$J168/10,1,$H168/10,$G168*$H168/10, RateRatios_airpollution!$F168, RateRatios_airpollution!$E168)*10))","v":13115.256204877001},{"$f":"IF(AND(OR(Calculations!$E$2=\"Orkney Health Board\",Calculations!$E$2=\"Orkney Islands Local Authority\"),$F168=1),0,IF(AND(OR(Calculations!$E$2=\"Shetland Health Board\",Calculations!$E$2=\"Western Isles Health Board\",Calculations!$E$2=\"Shetland Islands Local Authority\",Calculations!$E$2=\"Eilean Siar Local Authority\"),OR($F168=1,$F168=5)),0,prem_mort(VALUE(LEFT(Options!$B$14,2)),$C168,$E168,$F168,2016,$I168/10,1,$H168/10,$G168*$H168/10,RateRatios_airpollution!$E168)*10))","v":594.23402652900006},{"$f":"IF(AND(OR(Calculations!$E$2=\"Orkney Health Board\",Calculations!$E$2=\"Orkney Islands Local Authority\"),$F168=1),0,IF(AND(OR(Calculations!$E$2=\"Shetland Health Board\",Calculations!$E$2=\"Western Isles Health Board\",Calculations!$E$2=\"Shetland Islands Local Authority\",Calculations!$E$2=\"Eilean Siar Local Authority\"),OR($F168=1,$F168=5)),0,prem_mort(VALUE(LEFT(Options!$B$14,2)),$C168,$E168,$F168,2016,$I168/10+$J168/10,1,$H168/10,$G168*$H168/10,RateRatios_airpollution!$E168)*10))","v":594.23204489800003},594.23402652900006,594.13111420500002,8854.0869952819994,8852.5536016540009,13115.256204877001,13112.919377457998,594.23402652900006,594.13111420500002,1780.6899000000001,1780.3815115069972,26532.279509999698,26527.684521452764,39301.358080000609,39294.355510646965,1780.6899000000001,1780.3815115069972,9793794.4500000011,9792098.3132884838,145927537.30499834,145902264.8679902,216157469.44000337,216118955.30855832,9793794.4500000011,9792098.3132884838,5500]
[null,"Male 70-74",71.891098,84.341099999999997,"male",3,1,{"$f":"HLOOKUP(Calculations!$E$2,'Population 2016'!$C$3:$BC$249,'Population 2016'!BD169,FALSE)","v":24436},0,{"$f":"HLOOKUP(Calculations!$E$2,Pop2016_in_settlements!$C$3:$BC$249,Pop2016_in_settlements!$BD169,FALSE)","v":9965},{"$f":"IF(AND(OR(Calculations!$E$2=\"Orkney Health Board\",Calculations!$E$2=\"Orkney Islands Local Authority\"),$F169=1),0,IF(AND(OR(Calculations!$E$2=\"Shetland Health Board\",Calculations!$E$2=\"Western Isles Health Board\",Calculations!$E$2=\"Shetland Islands Local Authority\",Calculations!$E$2=\"Eilean Siar Local Authority\"),OR($F169=1,$F169=5)),0,new_ci(VALUE(LEFT(Options!$B$14,2)),$C169,$E169,$F169,2016,$I169/10,1,$H169/10,$G169*$H169/10,RateRatios_accidents!$B$5)*10))","v":624.44079643199996},{"$f":"IF(AND(OR(Calculations!$E$2=\"Orkney Health Board\",Calculations!$E$2=\"Orkney Islands Local Authority\"),$F169=1),0,IF(AND(OR(Calculations!$E$2=\"Shetland Health Board\",Calculations!$E$2=\"Western Isles Health Board\",Calculations!$E$2=\"Shetland Islands Local Authority\",Calculations!$E$2=\"Eilean Siar Local Authority\"),OR($F169=1,$F169=5)),0,new_ci(VALUE(LEFT(Options!$B$14,2)),$C169,$E169,$F169,2016,$I169/10+$J169/10,1,$H169/10,$G169*$H169/10,RateRatios_accidents!$B$5)*10))","v":624.34024958199996},{"$f":"IF(AND(OR(Calculations!$E$2=\"Orkney Health Board\",Calculations!$E$2=\"Orkney Islands Local Authority\"),$F169=1),0,IF(AND(OR(Calculations!$E$2=\"Shetland Health Board\",Calculations!$E$2=\"Western Isles Health Board\",Calculations!$E$2=\"Shetland Islands Local Authority\",Calculations!$E$2=\"Eilean Siar Local Authority\"),OR($F169=1,$F169=5)),0,new_yllv2(VALUE(LEFT(Options!$B$14,2)),$C169,$D169,$E169,$F169,2016,$I169/10,1,$H169/10,$G169*$H169/10,RateRatios_accidents!$B$5)*10))","v":7149.8483680280006},{"$f":"IF(AND(OR(Calculations!$E$2=\"Orkney Health Board\",Calculations!$E$2=\"Orkney Islands Local Authority\"),$F169=1),0,IF(AND(OR(Calculations!$E$2=\"Shetland Health Board\",Calculations!$E$2=\"Western Isles Health Board\",Calculations!$E$2=\"Shetland Islands Local Authority\",Calculations!$E$2=\"Eilean Siar Local Authority\"),OR($F169=1,$F169=5)),0,new_yllv2(VALUE(LEFT(Options!$B$14,2)),$C169,$D169,$E169,$F169,2016,$I169/10+$J169/10,1,$H169/10,$G169*$H169/10,RateRatios_accidents!$B$5)*10))","v":7148.697106394},{"$f":"IF(AND(OR(Calculations!$E$2=\"Orkney Health Board\",Calculations!$E$2=\"Orkney Islands Local Authority\"),$F169=1),0,IF(AND(OR(Calculations!$E$2=\"Shetland Health Board\",Calculations!$E$2=\"Western Isles Health Board\",Calculations!$E$2=\"Shetland Islands Local Authority\",Calculations!$E$2=\"Eilean Siar Local Authority\"),OR($F169=1,$F169=5)),0,hosp_count(VALUE(LEFT(Options!$B$14,2)),$C169,$E169,$F169,2016,$I169/10,1,$H169/10,$G169*$H169/10, RateRatios_accidents!$B$4, RateRatios_accidents!$B$5)*10))","v":11402.414531515999},{"$f":"IF(AND(OR(Calculations!$E$2=\"Orkney Health Board\",Calculations!$E$2=\"Orkney Islands Local Authority\"),$F169=1),0,IF(AND(OR(Calculations!$E$2=\"Shetland Health Board\",Calculations!$E$2=\"Western Isles Health Board\",Calculations!$E$2=\"Shetland Islands Local Authority\",Calculations!$E$2=\"Eilean Siar Local Authority\"),OR($F169=1,$F169=5)),0,hosp_count(VALUE(LEFT(Options!$B$14,2)),$C169,$E169,$F169,2016,$I169/10+$J169/10,1,$H169/10,$G169*$H169/10, RateRatios_accidents!$B$4, RateRatios_accidents!$B$5)*10))","v":11400.554570245},{"$f":"IF(AND(OR(Calculations!$E$2=\"Orkney Health Board\",Calculations!$E$2=\"Orkney Islands Local Authority\"),$F169=1),0,IF(AND(OR(Calculations!$E$2=\"Shetland Health Board\",Calculations!$E$2=\"Western Isles Health Board\",Calculations!$E$2=\"Shetland Islands Local Authority\",Calculations!$E$2=\"Eilean Siar Local Authority\"),OR($F169=1,$F169=5)),0,prem_mort(VALUE(LEFT(Options!$B$14,2)),$C169,$E169,$F169,2016,$I169/10,1,$H169/10,$G169*$H169/10,RateRatios_accidents!$B$5)*10))","v":624.44079643199996},{"$f":"IF(AND(OR(Calculations!$E$2=\"Orkney Health Board\",Calculations!$E$2=\"Orkney Islands Local Authority\"),$F169=1),0,IF(AND(OR(Calculations!$E$2=\"Shetland Health Board\",Calculations!$E$2=\"Western Isles Health Board\",Calculations!$E$2=\"Shetland Islands Local Authority\",Calculations!$E$2=\"Eilean Siar Local Authority\"),OR($F169=1,$F169=5)),0,prem_mort(VALUE(LEFT(Options!$B$14,2)),$C169,$E169,$F169,2016,$I169/10+$J169/10,1,$H169/10,$G169*$H169/10,RateRatios_accidents!$B$5)*10))","v":624.34024958199996},null,{"$f":"IF(AND(OR(Calculations!$E$2=\"Orkney Health Board\",Calculations!$E$2=\"Orkney Islands Local Authority\"),$F169=1),0,IF(AND(OR(Calculations!$E$2=\"Shetland Health Board\",Calculations!$E$2=\"Western Isles Health Board\",Calculations!$E$2=\"Shetland Islands Local Authority\",Calculations!$E$2=\"Eilean Siar Local Authority\"),OR($F169=1,$F169=5)),0,new_ci(VALUE(LEFT(Options!$B$14,2)),$C169,$E169,$F169,2016,$I169/10,1,$H169/10,$G169*$H169/10,RateRatios_airpollution!$C169)*10))","v":624.44079643199996},{"$f":"IF(AND(OR(Calculations!$E$2=\"Orkney Health Board\",Calculations!$E$2=\"Orkney Islands Local Authority\"),$F169=1),0,IF(AND(OR(Calculations!$E$2=\"Shetland Health Board\",Calculations!$E$2=\"Western Isles Health Board\",Calculations!$E$2=\"Shetland Islands Local Authority\",Calculations!$E$2=\"Eilean Siar Local Authority\"),OR($F169=1,$F169=5)),0,new_ci(VALUE(LEFT(Options!$B$14,2)),$C169,$E169,$F169,2016,$I169/10+$J169/10,1,$H169/10,$G169*$H169/10,RateRatios_airpollution!$C169)*10))","v":624.43622349299994},{"$f":"IF(AND(OR(Calculations!$E$2=\"Orkney Health Board\",Calculations!$E$2=\"Orkney Islands Local Authority\"),$F169=1),0,IF(AND(OR(Calculations!$E$2=\"Shetland Health Board\",Calculations!$E$2=\"Western Isles Health Board\",Calculations!$E$2=\"Shetland Islands Local Authority\",Calculations!$E$2=\"Eilean Siar Local Authority\"),OR($F169=1,$F169=5)),0,new_yllv2(VALUE(LEFT(Options!$B$14,2)),$C169,$D169,$E169,$F169,2016,$I169/10,1,$H169/10,$G169*$H169/10,RateRatios_airpollution!$C169)*10))","v":7149.8483680280006},{"$f":"IF(AND(OR(Calculations!$E$2=\"Orkney Health Board\",Calculations!$E$2=\"Orkney Islands Local Authority\"),$F169=1),0,IF(AND(OR(Calculations!$E$2=\"Shetland Health Board\",Calculations!$E$2=\"Western Isles Health Board\",Calculations!$E$2=\"Shetland Islands Local Authority\",Calculations!$E$2=\"Eilean Siar Local Authority\"),OR($F169=1,$F169=5)),0,new_yllv2(VALUE(LEFT(Options!$B$14,2)),$C169,$D169,$E169,$F169,2016,$I169/10+$J169/10,1,$H169/10,$G169*$H169/10,RateRatios_airpollution!$C169)*10))","v":7149.7960078669994},{"$f":"IF(AND(OR(Calculations!$E$2=\"Orkney Health Board\",Calculations!$E$2=\"Orkney Islands Local Authority\"),$F169=1),0,IF(AND(OR(Calculations!$E$2=\"Shetland Health Board\",Calculations!$E$2=\"Western Isles Health Board\",Calculations!$E$2=\"Shetland Islands Local Authority\",Calculations!$E$2=\"Eilean Siar Local Authority\"),OR($F169=1,$F169=5)),0,hosp_count(VALUE(LEFT(Options!$B$14,2)),$C169,$E169,$F169,2016,$I169/10,1,$H169/10,$G169*$H169/10, RateRatios_airpollution!$D169, RateRatios_airpollution!$C169)*10))","v":11402.414531515999},{"$f":"IF(AND(OR(Calculations!$E$2=\"Orkney Health Board\",Calculations!$E$2=\"Orkney Islands Local Authority\"),$F169=1),0,IF(AND(OR(Calculations!$E$2=\"Shetland Health Board\",Calculations!$E$2=\"Western Isles Health Board\",Calculations!$E$2=\"Shetland Islands Local Authority\",Calculations!$E$2=\"Eilean Siar Local Authority\"),OR($F169=1,$F169=5)),0,hosp_count(VALUE(LEFT(Options!$B$14,2)),$C169,$E169,$F169,2016,$I169/10+$J169/10,1,$H169/10,$G169*$H169/10, RateRatios_airpollution!$D169, RateRatios_airpollution!$C169)*10))","v":11402.255177215},{"$f":"IF(AND(OR(Calculations!$E$2=\"Orkney Health Board\",Calculations!$E$2=\"Orkney Islands Local Authority\"),$F169=1),0,IF(AND(OR(Calculations!$E$2=\"Shetland Health Board\",Calculations!$E$2=\"Western Isles Health Board\",Calculations!$E$2=\"Shetland Islands Local Authority\",Calculations!$E$2=\"Eilean Siar Local Authority\"),OR($F169=1,$F169=5)),0,prem_mort(VALUE(LEFT(Options!$B$14,2)),$C169,$E169,$F169,2016,$I169/10,1,$H169/10,$G169*$H169/10,RateRatios_airpollution!$C169)*10))","v":624.44079643199996},{"$f":"IF(AND(OR(Calculations!$E$2=\"Orkney Health Board\",Calculations!$E$2=\"Orkney Islands Local Authority\"),$F169=1),0,IF(AND(OR(Calculations!$E$2=\"Shetland Health Board\",Calculations!$E$2=\"Western Isles Health Board\",Calculations!$E$2=\"Shetland Islands Local Authority\",Calculations!$E$2=\"Eilean Siar Local Authority\"),OR($F169=1,$F169=5)),0,prem_mort(VALUE(LEFT(Options!$B$14,2)),$C169,$E169,$F169,2016,$I169/10+$J169/10,1,$H169/10,$G169*$H169/10,RateRatios_airpollution!$C169)*10))","v":624.43622349299994},null,{"$f":"IF(AND(OR(Calculations!$E$2=\"Orkney Health Board\",Calculations!$E$2=\"Orkney Islands Local Authority\"),$F169=1),0,IF(AND(OR(Calculations!$E$2=\"Shetland Health Board\",Calculations!$E$2=\"Western Isles Health Board\",Calculations!$E$2=\"Shetland Islands Local Authority\",Calculations!$E$2=\"Eilean Siar Local Authority\"),OR($F169=1,$F169=5)),0,new_ci(VALUE(LEFT(Options!$B$14,2)),$C169,$E169,$F169,2016,$I169/10,1,$H169/10,$G169*$H169/10,RateRatios_airpollution!$E169)*10))","v":624.44079643199996},{"$f":"IF(AND(OR(Calculations!$E$2=\"Orkney Health Board\",Calculations!$E$2=\"Orkney Islands Local Authority\"),$F169=1),0,IF(AND(OR(Calculations!$E$2=\"Shetland Health Board\",Calculations!$E$2=\"Western Isles Health Board\",Calculations!$E$2=\"Shetland Islands Local Authority\",Calculations!$E$2=\"Eilean Siar Local Authority\"),OR($F169=1,$F169=5)),0,new_ci(VALUE(LEFT(Options!$B$14,2)),$C169,$E169,$F169,2016,$I169/10+$J169/10,1,$H169/10,$G169*$H169/10,RateRatios_airpollution!$E169)*10))","v":624.43879246999995},{"$f":"IF(AND(OR(Calculations!$E$2=\"Orkney Health Board\",Calculations!$E$2=\"Orkney Islands Local Authority\"),$F169=1),0,IF(AND(OR(Calculations!$E$2=\"Shetland Health Board\",Calculations!$E$2=\"Western Isles Health Board\",Calculations!$E$2=\"Shetland Islands Local Authority\",Calculations!$E$2=\"Eilean Siar Local Authority\"),OR($F169=1,$F169=5)),0,new_yllv2(VALUE(LEFT(Options!$B$14,2)),$C169,$D169,$E169,$F169,2016,$I169/10,1,$H169/10,$G169*$H169/10,RateRatios_airpollution!$E169)*10))","v":7149.8483680280006},{"$f":"IF(AND(OR(Calculations!$E$2=\"Orkney Health Board\",Calculations!$E$2=\"Orkney Islands Local Authority\"),$F169=1),0,IF(AND(OR(Calculations!$E$2=\"Shetland Health Board\",Calculations!$E$2=\"Western Isles Health Board\",Calculations!$E$2=\"Shetland Islands Local Authority\",Calculations!$E$2=\"Eilean Siar Local Authority\"),OR($F169=1,$F169=5)),0,new_yllv2(VALUE(LEFT(Options!$B$14,2)),$C169,$D169,$E169,$F169,2016,$I169/10+$J169/10,1,$H169/10,$G169*$H169/10,RateRatios_airpollution!$E169)*10))","v":7149.8254226589997},{"$f":"IF(AND(OR(Calculations!$E$2=\"Orkney Health Board\",Calculations!$E$2=\"Orkney Islands Local Authority\"),$F169=1),0,IF(AND(OR(Calculations!$E$2=\"Shetland Health Board\",Calculations!$E$2=\"Western Isles Health Board\",Calculations!$E$2=\"Shetland Islands Local Authority\",Calculations!$E$2=\"Eilean Siar Local Authority\"),OR($F169=1,$F169=5)),0,hosp_count(VALUE(LEFT(Options!$B$14,2)),$C169,$E169,$F169,2016,$I169/10,1,$H169/10,$G169*$H169/10, RateRatios_airpollution!$F169, RateRatios_airpollution!$E169)*10))","v":11402.414531515999},{"$f":"IF(AND(OR(Calculations!$E$2=\"Orkney Health Board\",Calculations!$E$2=\"Orkney Islands Local Authority\"),$F169=1),0,IF(AND(OR(Calculations!$E$2=\"Shetland Health Board\",Calculations!$E$2=\"Western Isles Health Board\",Calculations!$E$2=\"Shetland Islands Local Authority\",Calculations!$E$2=\"Eilean Siar Local Authority\"),OR($F169=1,$F169=5)),0,hosp_count(VALUE(LEFT(Options!$B$14,2)),$C169,$E169,$F169,2016,$I169/10+$J169/10,1,$H169/10,$G169*$H169/10, RateRatios_airpollution!$F169, RateRatios_airpollution!$E169)*10))","v":11402.414531515999},{"$f":"IF(AND(OR(Calculations!$E$2=\"Orkney Health Board\",Calculations!$E$2=\"Orkney Islands Local Authority\"),$F169=1),0,IF(AND(OR(Calculations!$E$2=\"Shetland Health Board\",Calculations!$E$2=\"Western Isles Health Board\",Calculations!$E$2=\"Shetland Islands Local Authority\",Calculations!$E$2=\"Eilean Siar Local Authority\"),OR($F169=1,$F169=5)),0,prem_mort(VALUE(LEFT(Options!$B$14,2)),$C169,$E169,$F169,2016,$I169/10,1,$H169/10,$G169*$H169/10,RateRatios_airpollution!$E169)*10))","v":624.44079643199996},{"$f":"IF(AND(OR(Calculations!$E$2=\"Orkney Health Board\",Calculations!$E$2=\"Orkney Islands Local Authority\"),$F169=1),0,IF(AND(OR(Calculations!$E$2=\"Shetland Health Board\",Calculations!$E$2=\"Western Isles Health Board\",Calculations!$E$2=\"Shetland Islands Local Authority\",Calculations!$E$2=\"Eilean Siar Local Authority\"),OR($F169=1,$F169=5)),0,prem_mort(VALUE(LEFT(Options!$B$14,2)),$C169,$E169,$F169,2016,$I169/10+$J169/10,1,$H169/10,$G169*$H169/10,RateRatios_airpollution!$E169)*10))","v":624.43879246999995},624.44079643199996,624.33367268099994,7149.8483680280006,7148.621800863998,11402.414531515999,11400.395215944001,624.44079643199996,624.33367268099994,2555.4133100016365,2554.9749250327382,29259.487510345396,29254.468001571444,46662.360989998357,46654.097298837791,2555.4133100016365,2554.9749250327382,12777066.550008183,12774874.625163691,146297437.55172697,146272340.00785723,233311804.94999179,233270486.49418896,12777066.550008183,12774874.625163691,5000]
[null,"Male 75-79",76.907700000000006,86.357700000000008,"male",3,1,{"$f":"HLOOKUP(Calculations!$E$2,'Population 2016'!$C$3:$BC$249,'Population 2016'!BD170,FALSE)","v":18146},0,{"$f":"HLOOKUP(Calculations!$E$2,Pop2016_in_settlements!$C$3:$BC$249,Pop2016_in_settlements!$BD170,FALSE)","v":7774},{"$f":"IF(AND(OR(Calculations!$E$2=\"Orkney Health Board\",Calculations!$E$2=\"Orkney Islands Local Authority\"),$F170=1),0,IF(AND(OR(Calculations!$E$2=\"Shetland Health Board\",Calculations!$E$2=\"Western Isles Health Board\",Calculations!$E$2=\"Shetland Islands Local Authority\",Calculations!$E$2=\"Eilean Siar Local Authority\"),OR($F170=1,$F170=5)),0,new_ci(VALUE(LEFT(Options!$B$14,2)),$C170,$E170,$F170,2016,$I170/10,1,$H170/10,$G170*$H170/10,RateRatios_accidents!$B$5)*10))","v":673.2139524989999},{"$f":"IF(AND(OR(Calculations!$E$2=\"Orkney Health Board\",Calculations!$E$2=\"Orkney Islands Local Authority\"),$F170=1),0,IF(AND(OR(Calculations!$E$2=\"Shetland Health Board\",Calculations!$E$2=\"Western Isles Health Board\",Calculations!$E$2=\"Shetland Islands Local Authority\",Calculations!$E$2=\"Eilean Siar Local Authority\"),OR($F170=1,$F170=5)),0,new_ci(VALUE(LEFT(Options!$B$14,2)),$C170,$E170,$F170,2016,$I170/10+$J170/10,1,$H170/10,$G170*$H170/10,RateRatios_accidents!$B$5)*10))","v":673.10075295199999},{"$f":"IF(AND(OR(Calculations!$E$2=\"Orkney Health Board\",Calculations!$E$2=\"Orkney Islands Local Authority\"),$F170=1),0,IF(AND(OR(Calculations!$E$2=\"Shetland Health Board\",Calculations!$E$2=\"Western Isles Health Board\",Calculations!$E$2=\"Shetland Islands Local Authority\",Calculations!$E$2=\"Eilean Siar Local Authority\"),OR($F170=1,$F170=5)),0,new_yllv2(VALUE(LEFT(Options!$B$14,2)),$C170,$D170,$E170,$F170,2016,$I170/10,1,$H170/10,$G170*$H170/10,RateRatios_accidents!$B$5)*10))","v":5688.6578986170007},{"$f":"IF(AND(OR(Calculations!$E$2=\"Orkney Health Board\",Calculations!$E$2=\"Orkney Islands Local Authority\"),$F170=1),0,IF(AND(OR(Calculations!$E$2=\"Shetland Health Board\",Calculations!$E$2=\"Western Isles Health Board\",Calculations!$E$2=\"Shetland Islands Local Authority\",Calculations!$E$2=\"Eilean Siar Local Authority\"),OR($F170=1,$F170=5)),0,new_yllv2(VALUE(LEFT(Options!$B$14,2)),$C170,$D170,$E170,$F170,2016,$I170/10+$J170/10,1,$H170/10,$G170*$H170/10,RateRatios_accidents!$B$5)*10))","v":5687.7013624439996},{"$f":"IF(AND(OR(Calculations!$E$2=\"Orkney Health Board\",Calculations!$E$2=\"Orkney Islands Local Authority\"),$F170=1),0,IF(AND(OR(Calculations!$E$2=\"Shetland Health Board\",Calculations!$E$2=\"Western Isles Health Board\",Calculations!$E$2=\"Shetland Islands Local Authority\",Calculations!$E$2=\"Eilean Siar Local Authority\"),OR($F170=1,$F170=5)),0,hosp_count(VALUE(LEFT(Options!$B$14,2)),$C170,$E170,$F170,2016,$I170/10,1,$H170/10,$G170*$H170/10, RateRatios_accidents!$B$4, RateRatios_accidents!$B$5)*10))","v":10117.666517439},{"$f":"IF(AND(OR(Calculations!$E$2=\"Orkney Health Board\",Calculations!$E$2=\"Orkney Islands Local Authority\"),$F170=1),0,IF(AND(OR(Calculations!$E$2=\"Shetland Health Board\",Calculations!$E$2=\"Western Isles Health Board\",Calculations!$E$2=\"Shetland Islands Local Authority\",Calculations!$E$2=\"Eilean Siar Local Authority\"),OR($F170=1,$F170=5)),0,hosp_count(VALUE(LEFT(Options!$B$14,2)),$C170,$E170,$F170,2016,$I170/10+$J170/10,1,$H170/10,$G170*$H170/10, RateRatios_accidents!$B$4, RateRatios_accidents!$B$5)*10))","v":10115.932697767001},{"$f":"IF(AND(OR(Calculations!$E$2=\"Orkney Health Board\",Calculations!$E$2=\"Orkney Islands Local Authority\"),$F170=1),0,IF(AND(OR(Calculations!$E$2=\"Shetland Health Board\",Calculations!$E$2=\"Western Isles Health Board\",Calculations!$E$2=\"Shetland Islands Local Authority\",Calculations!$E$2=\"Eilean Siar Local Authority\"),OR($F170=1,$F170=5)),0,prem_mort(VALUE(LEFT(Options!$B$14,2)),$C170,$E170,$F170,2016,$I170/10,1,$H170/10,$G170*$H170/10,RateRatios_accidents!$B$5)*10))","v":0},{"$f":"IF(AND(OR(Calculations!$E$2=\"Orkney Health Board\",Calculations!$E$2=\"Orkney Islands Local Authority\"),$F170=1),0,IF(AND(OR(Calculations!$E$2=\"Shetland Health Board\",Calculations!$E$2=\"Western Isles Health Board\",Calculations!$E$2=\"Shetland Islands Local Authority\",Calculations!$E$2=\"Eilean Siar Local Authority\"),OR($F170=1,$F170=5)),0,prem_mort(VALUE(LEFT(Options!$B$14,2)),$C170,$E170,$F170,2016,$I170/10+$J170/10,1,$H170/10,$G170*$H170/10,RateRatios_accidents!$B$5)*10))","v":0},null,{"$f":"IF(AND(OR(Calculations!$E$2=\"Orkney Health Board\",Calculations!$E$2=\"Orkney Islands Local Authority\"),$F170=1),0,IF(AND(OR(Calculations!$E$2=\"Shetland Health Board\",Calculations!$E$2=\"Western Isles Health Board\",Calculations!$E$2=\"Shetland Islands Local Authority\",Calculations!$E$2=\"Eilean Siar Local Authority\"),OR($F170=1,$F170=5)),0,new_ci(VALUE(LEFT(Options!$B$14,2)),$C170,$E170,$F170,2016,$I170/10,1,$H170/10,$G170*$H170/10,RateRatios_airpollution!$C170)*10))","v":673.2139524989999},{"$f":"IF(AND(OR(Calculations!$E$2=\"Orkney Health Board\",Calculations!$E$2=\"Orkney Islands Local Authority\"),$F170=1),0,IF(AND(OR(Calculations!$E$2=\"Shetland Health Board\",Calculations!$E$2=\"Western Isles Health Board\",Calculations!$E$2=\"Shetland Islands Local Authority\",Calculations!$E$2=\"Eilean Siar Local Authority\"),OR($F170=1,$F170=5)),0,new_ci(VALUE(LEFT(Options!$B$14,2)),$C170,$E170,$F170,2016,$I170/10+$J170/10,1,$H170/10,$G170*$H170/10,RateRatios_airpollution!$C170)*10))","v":673.20878978500002},{"$f":"IF(AND(OR(Calculations!$E$2=\"Orkney Health Board\",Calculations!$E$2=\"Orkney Islands Local Authority\"),$F170=1),0,IF(AND(OR(Calculations!$E$2=\"Shetland Health Board\",Calculations!$E$2=\"Western Isles Health Board\",Calculations!$E$2=\"Shetland Islands Local Authority\",Calculations!$E$2=\"Eilean Siar Local Authority\"),OR($F170=1,$F170=5)),0,new_yllv2(VALUE(LEFT(Options!$B$14,2)),$C170,$D170,$E170,$F170,2016,$I170/10,1,$H170/10,$G170*$H170/10,RateRatios_airpollution!$C170)*10))","v":5688.6578986170007},{"$f":"IF(AND(OR(Calculations!$E$2=\"Orkney Health Board\",Calculations!$E$2=\"Orkney Islands Local Authority\"),$F170=1),0,IF(AND(OR(Calculations!$E$2=\"Shetland Health Board\",Calculations!$E$2=\"Western Isles Health Board\",Calculations!$E$2=\"Shetland Islands Local Authority\",Calculations!$E$2=\"Eilean Siar Local Authority\"),OR($F170=1,$F170=5)),0,new_yllv2(VALUE(LEFT(Options!$B$14,2)),$C170,$D170,$E170,$F170,2016,$I170/10+$J170/10,1,$H170/10,$G170*$H170/10,RateRatios_airpollution!$C170)*10))","v":5688.6142736830006},{"$f":"IF(AND(OR(Calculations!$E$2=\"Orkney Health Board\",Calculations!$E$2=\"Orkney Islands Local Authority\"),$F170=1),0,IF(AND(OR(Calculations!$E$2=\"Shetland Health Board\",Calculations!$E$2=\"Western Isles Health Board\",Calculations!$E$2=\"Shetland Islands Local Authority\",Calculations!$E$2=\"Eilean Siar Local Authority\"),OR($F170=1,$F170=5)),0,hosp_count(VALUE(LEFT(Options!$B$14,2)),$C170,$E170,$F170,2016,$I170/10,1,$H170/10,$G170*$H170/10, RateRatios_airpollution!$D170, RateRatios_airpollution!$C170)*10))","v":10117.666517439},{"$f":"IF(AND(OR(Calculations!$E$2=\"Orkney Health Board\",Calculations!$E$2=\"Orkney Islands Local Authority\"),$F170=1),0,IF(AND(OR(Calculations!$E$2=\"Shetland Health Board\",Calculations!$E$2=\"Western Isles Health Board\",Calculations!$E$2=\"Shetland Islands Local Authority\",Calculations!$E$2=\"Eilean Siar Local Authority\"),OR($F170=1,$F170=5)),0,hosp_count(VALUE(LEFT(Options!$B$14,2)),$C170,$E170,$F170,2016,$I170/10+$J170/10,1,$H170/10,$G170*$H170/10, RateRatios_airpollution!$D170, RateRatios_airpollution!$C170)*10))","v":10117.517555938},{"$f":"IF(AND(OR(Calculations!$E$2=\"Orkney Health Board\",Calculations!$E$2=\"Orkney Islands Local Authority\"),$F170=1),0,IF(AND(OR(Calculations!$E$2=\"Shetland Health Board\",Calculations!$E$2=\"Western Isles Health Board\",Calculations!$E$2=\"Shetland Islands Local Authority\",Calculations!$E$2=\"Eilean Siar Local Authority\"),OR($F170=1,$F170=5)),0,prem_mort(VALUE(LEFT(Options!$B$14,2)),$C170,$E170,$F170,2016,$I170/10,1,$H170/10,$G170*$H170/10,RateRatios_airpollution!$C170)*10))","v":0},{"$f":"IF(AND(OR(Calculations!$E$2=\"Orkney Health Board\",Calculations!$E$2=\"Orkney Islands Local Authority\"),$F170=1),0,IF(AND(OR(Calculations!$E$2=\"Shetland Health Board\",Calculations!$E$2=\"Western Isles Health Board\",Calculations!$E$2=\"Shetland Islands Local Authority\",Calculations!$E$2=\"Eilean Siar Local Authority\"),OR($F170=1,$F170=5)),0,prem_mort(VALUE(LEFT(Options!$B$14,2)),$C170,$E170,$F170,2016,$I170/10+$J170/10,1,$H170/10,$G170*$H170/10,RateRatios_airpollution!$C170)*10))","v":0},null,{"$f":"IF(AND(OR(Calculations!$E$2=\"Orkney Health Board\",Calculations!$E$2=\"Orkney Islands Local Authority\"),$F170=1),0,IF(AND(OR(Calculations!$E$2=\"Shetland Health Board\",Calculations!$E$2=\"Western Isles Health Board\",Calculations!$E$2=\"Shetland Islands Local Authority\",Calculations!$E$2=\"Eilean Siar Local Authority\"),OR($F170=1,$F170=5)),0,new_ci(VALUE(LEFT(Options!$B$14,2)),$C170,$E170,$F170,2016,$I170/10,1,$H170/10,$G170*$H170/10,RateRatios_airpollution!$E170)*10))","v":673.2139524989999},{"$f":"IF(AND(OR(Calculations!$E$2=\"Orkney Health Board\",Calculations!$E$2=\"Orkney Islands Local Authority\"),$F170=1),0,IF(AND(OR(Calculations!$E$2=\"Shetland Health Board\",Calculations!$E$2=\"Western Isles Health Board\",Calculations!$E$2=\"Shetland Islands Local Authority\",Calculations!$E$2=\"Eilean Siar Local Authority\"),OR($F170=1,$F170=5)),0,new_ci(VALUE(LEFT(Options!$B$14,2)),$C170,$E170,$F170,2016,$I170/10+$J170/10,1,$H170/10,$G170*$H170/10,RateRatios_airpollution!$E170)*10))","v":673.21168482299993},{"$f":"IF(AND(OR(Calculations!$E$2=\"Orkney Health Board\",Calculations!$E$2=\"Orkney Islands Local Authority\"),$F170=1),0,IF(AND(OR(Calculations!$E$2=\"Shetland Health Board\",Calculations!$E$2=\"Western Isles Health Board\",Calculations!$E$2=\"Shetland Islands Local Authority\",Calculations!$E$2=\"Eilean Siar Local Authority\"),OR($F170=1,$F170=5)),0,new_yllv2(VALUE(LEFT(Options!$B$14,2)),$C170,$D170,$E170,$F170,2016,$I170/10,1,$H170/10,$G170*$H170/10,RateRatios_airpollution!$E170)*10))","v":5688.6578986170007},{"$f":"IF(AND(OR(Calculations!$E$2=\"Orkney Health Board\",Calculations!$E$2=\"Orkney Islands Local Authority\"),$F170=1),0,IF(AND(OR(Calculations!$E$2=\"Shetland Health Board\",Calculations!$E$2=\"Western Isles Health Board\",Calculations!$E$2=\"Shetland Islands Local Authority\",Calculations!$E$2=\"Eilean Siar Local Authority\"),OR($F170=1,$F170=5)),0,new_yllv2(VALUE(LEFT(Options!$B$14,2)),$C170,$D170,$E170,$F170,2016,$I170/10+$J170/10,1,$H170/10,$G170*$H170/10,RateRatios_airpollution!$E170)*10))","v":5688.6387367540001},{"$f":"IF(AND(OR(Calculations!$E$2=\"Orkney Health Board\",Calculations!$E$2=\"Orkney Islands Local Authority\"),$F170=1),0,IF(AND(OR(Calculations!$E$2=\"Shetland Health Board\",Calculations!$E$2=\"Western Isles Health Board\",Calculations!$E$2=\"Shetland Islands Local Authority\",Calculations!$E$2=\"Eilean Siar Local Authority\"),OR($F170=1,$F170=5)),0,hosp_count(VALUE(LEFT(Options!$B$14,2)),$C170,$E170,$F170,2016,$I170/10,1,$H170/10,$G170*$H170/10, RateRatios_airpollution!$F170, RateRatios_airpollution!$E170)*10))","v":10117.666517439},{"$f":"IF(AND(OR(Calculations!$E$2=\"Orkney Health Board\",Calculations!$E$2=\"Orkney Islands Local Authority\"),$F170=1),0,IF(AND(OR(Calculations!$E$2=\"Shetland Health Board\",Calculations!$E$2=\"Western Isles Health Board\",Calculations!$E$2=\"Shetland Islands Local Authority\",Calculations!$E$2=\"Eilean Siar Local Authority\"),OR($F170=1,$F170=5)),0,hosp_count(VALUE(LEFT(Options!$B$14,2)),$C170,$E170,$F170,2016,$I170/10+$J170/10,1,$H170/10,$G170*$H170/10, RateRatios_airpollution!$F170, RateRatios_airpollution!$E170)*10))","v":10117.666517439},{"$f":"IF(AND(OR(Calculations!$E$2=\"Orkney Health Board\",Calculations!$E$2=\"Orkney Islands Local Authority\"),$F170=1),0,IF(AND(OR(Calculations!$E$2=\"Shetland Health Board\",Calculations!$E$2=\"Western Isles Health Board\",Calculations!$E$2=\"Shetland Islands Local Authority\",Calculations!$E$2=\"Eilean Siar Local Authority\"),OR($F170=1,$F170=5)),0,prem_mort(VALUE(LEFT(Options!$B$14,2)),$C170,$E170,$F170,2016,$I170/10,1,$H170/10,$G170*$H170/10,RateRatios_airpollution!$E170)*10))","v":0},{"$f":"IF(AND(OR(Calculations!$E$2=\"Orkney Health Board\",Calculations!$E$2=\"Orkney Islands Local Authority\"),$F170=1),0,IF(AND(OR(Calculations!$E$2=\"Shetland Health Board\",Calculations!$E$2=\"Western Isles Health Board\",Calculations!$E$2=\"Shetland Islands Local Authority\",Calculations!$E$2=\"Eilean Siar Local Authority\"),OR($F170=1,$F170=5)),0,prem_mort(VALUE(LEFT(Options!$B$14,2)),$C170,$E170,$F170,2016,$I170/10+$J170/10,1,$H170/10,$G170*$H170/10,RateRatios_airpollution!$E170)*10))","v":0},673.2139524989999,673.09332256200014,5688.6578986170007,5687.638575646999,10117.666517439,10115.783736266001,0,0,3709.9854100022035,3709.3206357434156,31349.37671452111,31343.759372021377,55757.007150000005,55746.631413347299,0,0,14839941.640008815,14837282.542973662,125397506.85808444,125375037.48808551,223028028.60000002,222986525.65338919,0,0,4000]
[null,"Male 80-84",81.797089,88.627089999999995,"male",3,1,{"$f":"HLOOKUP(Calculations!$E$2,'Population 2016'!$C$3:$BC$249,'Population 2016'!BD171,FALSE)","v":12096},0,{"$f":"HLOOKUP(Calculations!$E$2,Pop2016_in_settlements!$C$3:$BC$249,Pop2016_in_settlements!$BD171,FALSE)","v":5273},{"$f":"IF(AND(OR(Calculations!$E$2=\"Orkney Health Board\",Calculations!$E$2=\"Orkney Islands Local Authority\"),$F171=1),0,IF(AND(OR(Calculations!$E$2=\"Shetland Health Board\",Calculations!$E$2=\"Western Isles Health Board\",Calculations!$E$2=\"Shetland Islands Local Authority\",Calculations!$E$2=\"Eilean Siar Local Authority\"),OR($F171=1,$F171=5)),0,new_ci(VALUE(LEFT(Options!$B$14,2)),$C171,$E171,$F171,2016,$I171/10,1,$H171/10,$G171*$H171/10,RateRatios_accidents!$B$5)*10))","v":643.71155829100007},{"$f":"IF(AND(OR(Calculations!$E$2=\"Orkney Health Board\",Calculations!$E$2=\"Orkney Islands Local Authority\"),$F171=1),0,IF(AND(OR(Calculations!$E$2=\"Shetland Health Board\",Calculations!$E$2=\"Western Isles Health Board\",Calculations!$E$2=\"Shetland Islands Local Authority\",Calculations!$E$2=\"Eilean Siar Local Authority\"),OR($F171=1,$F171=5)),0,new_ci(VALUE(LEFT(Options!$B$14,2)),$C171,$E171,$F171,2016,$I171/10+$J171/10,1,$H171/10,$G171*$H171/10,RateRatios_accidents!$B$5)*10))","v":643.60235287899991},{"$f":"IF(AND(OR(Calculations!$E$2=\"Orkney Health Board\",Calculations!$E$2=\"Orkney Islands Local Authority\"),$F171=1),0,IF(AND(OR(Calculations!$E$2=\"Shetland Health Board\",Calculations!$E$2=\"Western Isles Health Board\",Calculations!$E$2=\"Shetland Islands Local Authority\",Calculations!$E$2=\"Eilean Siar Local Authority\"),OR($F171=1,$F171=5)),0,new_yllv2(VALUE(LEFT(Options!$B$14,2)),$C171,$D171,$E171,$F171,2016,$I171/10,1,$H171/10,$G171*$H171/10,RateRatios_accidents!$B$5)*10))","v":3752.839028548},{"$f":"IF(AND(OR(Calculations!$E$2=\"Orkney Health Board\",Calculations!$E$2=\"Orkney Islands Local Authority\"),$F171=1),0,IF(AND(OR(Calculations!$E$2=\"Shetland Health Board\",Calculations!$E$2=\"Western Isles Health Board\",Calculations!$E$2=\"Shetland Islands Local Authority\",Calculations!$E$2=\"Eilean Siar Local Authority\"),OR($F171=1,$F171=5)),0,new_yllv2(VALUE(LEFT(Options!$B$14,2)),$C171,$D171,$E171,$F171,2016,$I171/10+$J171/10,1,$H171/10,$G171*$H171/10,RateRatios_accidents!$B$5)*10))","v":3752.2023608869999},{"$f":"IF(AND(OR(Calculations!$E$2=\"Orkney Health Board\",Calculations!$E$2=\"Orkney Islands Local Authority\"),$F171=1),0,IF(AND(OR(Calculations!$E$2=\"Shetland Health Board\",Calculations!$E$2=\"Western Isles Health Board\",Calculations!$E$2=\"Shetland Islands Local Authority\",Calculations!$E$2=\"Eilean Siar Local Authority\"),OR($F171=1,$F171=5)),0,hosp_count(VALUE(LEFT(Options!$B$14,2)),$C171,$E171,$F171,2016,$I171/10,1,$H171/10,$G171*$H171/10, RateRatios_accidents!$B$4, RateRatios_accidents!$B$5)*10))","v":8022.5594273659999},{"$f":"IF(AND(OR(Calculations!$E$2=\"Orkney Health Board\",Calculations!$E$2=\"Orkney Islands Local Authority\"),$F171=1),0,IF(AND(OR(Calculations!$E$2=\"Shetland Health Board\",Calculations!$E$2=\"Western Isles Health Board\",Calculations!$E$2=\"Shetland Islands Local Authority\",Calculations!$E$2=\"Eilean Siar Local Authority\"),OR($F171=1,$F171=5)),0,hosp_count(VALUE(LEFT(Options!$B$14,2)),$C171,$E171,$F171,2016,$I171/10+$J171/10,1,$H171/10,$G171*$H171/10, RateRatios_accidents!$B$4, RateRatios_accidents!$B$5)*10))","v":8021.1605199760006},{"$f":"IF(AND(OR(Calculations!$E$2=\"Orkney Health Board\",Calculations!$E$2=\"Orkney Islands Local Authority\"),$F171=1),0,IF(AND(OR(Calculations!$E$2=\"Shetland Health Board\",Calculations!$E$2=\"Western Isles Health Board\",Calculations!$E$2=\"Shetland Islands Local Authority\",Calculations!$E$2=\"Eilean Siar Local Authority\"),OR($F171=1,$F171=5)),0,prem_mort(VALUE(LEFT(Options!$B$14,2)),$C171,$E171,$F171,2016,$I171/10,1,$H171/10,$G171*$H171/10,RateRatios_accidents!$B$5)*10))","v":0},{"$f":"IF(AND(OR(Calculations!$E$2=\"Orkney Health Board\",Calculations!$E$2=\"Orkney Islands Local Authority\"),$F171=1),0,IF(AND(OR(Calculations!$E$2=\"Shetland Health Board\",Calculations!$E$2=\"Western Isles Health Board\",Calculations!$E$2=\"Shetland Islands Local Authority\",Calculations!$E$2=\"Eilean Siar Local Authority\"),OR($F171=1,$F171=5)),0,prem_mort(VALUE(LEFT(Options!$B$14,2)),$C171,$E171,$F171,2016,$I171/10+$J171/10,1,$H171/10,$G171*$H171/10,RateRatios_accidents!$B$5)*10))","v":0},null,{"$f":"IF(AND(OR(Calculations!$E$2=\"Orkney Health Board\",Calculations!$E$2=\"Orkney Islands Local Authority\"),$F171=1),0,IF(AND(OR(Calculations!$E$2=\"Shetland Health Board\",Calculations!$E$2=\"Western Isles Health Board\",Calculations!$E$2=\"Shetland Islands Local Authority\",Calculations!$E$2=\"Eilean Siar Local Authority\"),OR($F171=1,$F171=5)),0,new_ci(VALUE(LEFT(Options!$B$14,2)),$C171,$E171,$F171,2016,$I171/10,1,$H171/10,$G171*$H171/10,RateRatios_airpollution!$C171)*10))","v":643.71155829100007},{"$f":"IF(AND(OR(Calculations!$E$2=\"Orkney Health Board\",Calculations!$E$2=\"Orkney Islands Local Authority\"),$F171=1),0,IF(AND(OR(Calculations!$E$2=\"Shetland Health Board\",Calculations!$E$2=\"Western Isles Health Board\",Calculations!$E$2=\"Shetland Islands Local Authority\",Calculations!$E$2=\"Eilean Siar Local Authority\"),OR($F171=1,$F171=5)),0,new_ci(VALUE(LEFT(Options!$B$14,2)),$C171,$E171,$F171,2016,$I171/10+$J171/10,1,$H171/10,$G171*$H171/10,RateRatios_airpollution!$C171)*10))","v":643.70653312200011},{"$f":"IF(AND(OR(Calculations!$E$2=\"Orkney Health Board\",Calculations!$E$2=\"Orkney Islands Local Authority\"),$F171=1),0,IF(AND(OR(Calculations!$E$2=\"Shetland Health Board\",Calculations!$E$2=\"Western Isles Health Board\",Calculations!$E$2=\"Shetland Islands Local Authority\",Calculations!$E$2=\"Eilean Siar Local Authority\"),OR($F171=1,$F171=5)),0,new_yllv2(VALUE(LEFT(Options!$B$14,2)),$C171,$D171,$E171,$F171,2016,$I171/10,1,$H171/10,$G171*$H171/10,RateRatios_airpollution!$C171)*10))","v":3752.839028548},{"$f":"IF(AND(OR(Calculations!$E$2=\"Orkney Health Board\",Calculations!$E$2=\"Orkney Islands Local Authority\"),$F171=1),0,IF(AND(OR(Calculations!$E$2=\"Shetland Health Board\",Calculations!$E$2=\"Western Isles Health Board\",Calculations!$E$2=\"Shetland Islands Local Authority\",Calculations!$E$2=\"Eilean Siar Local Authority\"),OR($F171=1,$F171=5)),0,new_yllv2(VALUE(LEFT(Options!$B$14,2)),$C171,$D171,$E171,$F171,2016,$I171/10+$J171/10,1,$H171/10,$G171*$H171/10,RateRatios_airpollution!$C171)*10))","v":3752.8097318079999},{"$f":"IF(AND(OR(Calculations!$E$2=\"Orkney Health Board\",Calculations!$E$2=\"Orkney Islands Local Authority\"),$F171=1),0,IF(AND(OR(Calculations!$E$2=\"Shetland Health Board\",Calculations!$E$2=\"Western Isles Health Board\",Calculations!$E$2=\"Shetland Islands Local Authority\",Calculations!$E$2=\"Eilean Siar Local Authority\"),OR($F171=1,$F171=5)),0,hosp_count(VALUE(LEFT(Options!$B$14,2)),$C171,$E171,$F171,2016,$I171/10,1,$H171/10,$G171*$H171/10, RateRatios_airpollution!$D171, RateRatios_airpollution!$C171)*10))","v":8022.5594273659999},{"$f":"IF(AND(OR(Calculations!$E$2=\"Orkney Health Board\",Calculations!$E$2=\"Orkney Islands Local Authority\"),$F171=1),0,IF(AND(OR(Calculations!$E$2=\"Shetland Health Board\",Calculations!$E$2=\"Western Isles Health Board\",Calculations!$E$2=\"Shetland Islands Local Authority\",Calculations!$E$2=\"Eilean Siar Local Authority\"),OR($F171=1,$F171=5)),0,hosp_count(VALUE(LEFT(Options!$B$14,2)),$C171,$E171,$F171,2016,$I171/10+$J171/10,1,$H171/10,$G171*$H171/10, RateRatios_airpollution!$D171, RateRatios_airpollution!$C171)*10))","v":8022.4381457300005},{"$f":"IF(AND(OR(Calculations!$E$2=\"Orkney Health Board\",Calculations!$E$2=\"Orkney Islands Local Authority\"),$F171=1),0,IF(AND(OR(Calculations!$E$2=\"Shetland Health Board\",Calculations!$E$2=\"Western Isles Health Board\",Calculations!$E$2=\"Shetland Islands Local Authority\",Calculations!$E$2=\"Eilean Siar Local Authority\"),OR($F171=1,$F171=5)),0,prem_mort(VALUE(LEFT(Options!$B$14,2)),$C171,$E171,$F171,2016,$I171/10,1,$H171/10,$G171*$H171/10,RateRatios_airpollution!$C171)*10))","v":0},{"$f":"IF(AND(OR(Calculations!$E$2=\"Orkney Health Board\",Calculations!$E$2=\"Orkney Islands Local Authority\"),$F171=1),0,IF(AND(OR(Calculations!$E$2=\"Shetland Health Board\",Calculations!$E$2=\"Western Isles Health Board\",Calculations!$E$2=\"Shetland Islands Local Authority\",Calculations!$E$2=\"Eilean Siar Local Authority\"),OR($F171=1,$F171=5)),0,prem_mort(VALUE(LEFT(Options!$B$14,2)),$C171,$E171,$F171,2016,$I171/10+$J171/10,1,$H171/10,$G171*$H171/10,RateRatios_airpollution!$C171)*10))","v":0},null,{"$f":"IF(AND(OR(Calculations!$E$2=\"Orkney Health Board\",Calculations!$E$2=\"Orkney Islands Local Authority\"),$F171=1),0,IF(AND(OR(Calculations!$E$2=\"Shetland Health Board\",Calculations!$E$2=\"Western Isles Health Board\",Calculations!$E$2=\"Shetland Islands Local Authority\",Calculations!$E$2=\"Eilean Siar Local Authority\"),OR($F171=1,$F171=5)),0,new_ci(VALUE(LEFT(Options!$B$14,2)),$C171,$E171,$F171,2016,$I171/10,1,$H171/10,$G171*$H171/10,RateRatios_airpollution!$E171)*10))","v":643.71155829100007},{"$f":"IF(AND(OR(Calculations!$E$2=\"Orkney Health Board\",Calculations!$E$2=\"Orkney Islands Local Authority\"),$F171=1),0,IF(AND(OR(Calculations!$E$2=\"Shetland Health Board\",Calculations!$E$2=\"Western Isles Health Board\",Calculations!$E$2=\"Shetland Islands Local Authority\",Calculations!$E$2=\"Eilean Siar Local Authority\"),OR($F171=1,$F171=5)),0,new_ci(VALUE(LEFT(Options!$B$14,2)),$C171,$E171,$F171,2016,$I171/10+$J171/10,1,$H171/10,$G171*$H171/10,RateRatios_airpollution!$E171)*10))","v":643.70935944999997},{"$f":"IF(AND(OR(Calculations!$E$2=\"Orkney Health Board\",Calculations!$E$2=\"Orkney Islands Local Authority\"),$F171=1),0,IF(AND(OR(Calculations!$E$2=\"Shetland Health Board\",Calculations!$E$2=\"Western Isles Health Board\",Calculations!$E$2=\"Shetland Islands Local Authority\",Calculations!$E$2=\"Eilean Siar Local Authority\"),OR($F171=1,$F171=5)),0,new_yllv2(VALUE(LEFT(Options!$B$14,2)),$C171,$D171,$E171,$F171,2016,$I171/10,1,$H171/10,$G171*$H171/10,RateRatios_airpollution!$E171)*10))","v":3752.839028548},{"$f":"IF(AND(OR(Calculations!$E$2=\"Orkney Health Board\",Calculations!$E$2=\"Orkney Islands Local Authority\"),$F171=1),0,IF(AND(OR(Calculations!$E$2=\"Shetland Health Board\",Calculations!$E$2=\"Western Isles Health Board\",Calculations!$E$2=\"Shetland Islands Local Authority\",Calculations!$E$2=\"Eilean Siar Local Authority\"),OR($F171=1,$F171=5)),0,new_yllv2(VALUE(LEFT(Options!$B$14,2)),$C171,$D171,$E171,$F171,2016,$I171/10+$J171/10,1,$H171/10,$G171*$H171/10,RateRatios_airpollution!$E171)*10))","v":3752.8262093030003},{"$f":"IF(AND(OR(Calculations!$E$2=\"Orkney Health Board\",Calculations!$E$2=\"Orkney Islands Local Authority\"),$F171=1),0,IF(AND(OR(Calculations!$E$2=\"Shetland Health Board\",Calculations!$E$2=\"Western Isles Health Board\",Calculations!$E$2=\"Shetland Islands Local Authority\",Calculations!$E$2=\"Eilean Siar Local Authority\"),OR($F171=1,$F171=5)),0,hosp_count(VALUE(LEFT(Options!$B$14,2)),$C171,$E171,$F171,2016,$I171/10,1,$H171/10,$G171*$H171/10, RateRatios_airpollution!$F171, RateRatios_airpollution!$E171)*10))","v":8022.5594273659999},{"$f":"IF(AND(OR(Calculations!$E$2=\"Orkney Health Board\",Calculations!$E$2=\"Orkney Islands Local Authority\"),$F171=1),0,IF(AND(OR(Calculations!$E$2=\"Shetland Health Board\",Calculations!$E$2=\"Western Isles Health Board\",Calculations!$E$2=\"Shetland Islands Local Authority\",Calculations!$E$2=\"Eilean Siar Local Authority\"),OR($F171=1,$F171=5)),0,hosp_count(VALUE(LEFT(Options!$B$14,2)),$C171,$E171,$F171,2016,$I171/10+$J171/10,1,$H171/10,$G171*$H171/10, RateRatios_airpollution!$F171, RateRatios_airpollution!$E171)*10))","v":8022.5594273659999},{"$f":"IF(AND(OR(Calculations!$E$2=\"Orkney Health Board\",Calculations!$E$2=\"Orkney Islands Local Authority\"),$F171=1),0,IF(AND(OR(Calculations!$E$2=\"Shetland Health Board\",Calculations!$E$2=\"Western Isles Health Board\",Calculations!$E$2=\"Shetland Islands Local Authority\",Calculations!$E$2=\"Eilean Siar Local Authority\"),OR($F171=1,$F171=5)),0,prem_mort(VALUE(LEFT(Options!$B$14,2)),$C171,$E171,$F171,2016,$I171/10,1,$H171/10,$G171*$H171/10,RateRatios_airpollution!$E171)*10))","v":0},{"$f":"IF(AND(OR(Calculations!$E$2=\"Orkney Health Board\",Calculations!$E$2=\"Orkney Islands Local Authority\"),$F171=1),0,IF(AND(OR(Calculations!$E$2=\"Shetland Health Board\",Calculations!$E$2=\"Western Isles Health Board\",Calculations!$E$2=\"Shetland Islands Local Authority\",Calculations!$E$2=\"Eilean Siar Local Authority\"),OR($F171=1,$F171=5)),0,prem_mort(VALUE(LEFT(Options!$B$14,2)),$C171,$E171,$F171,2016,$I171/10+$J171/10,1,$H171/10,$G171*$H171/10,RateRatios_airpollution!$E171)*10))","v":0},643.71155829100007,643.59512886899984,3752.839028548,3752.1602449020002,8022.5594273659999,8021.0392383400012,0,0,5321.6894699983468,5320.7269251736097,31025.454931779099,31019.84329449405,66324.069339996699,66311.501639715614,0,0,13304223.674995868,13301817.312934024,77563637.329447746,77549608.236235127,165810173.34999174,165778754.09928903,0,0,2500]
[null,"Male 85-89",86.630752999999999,91.420750000000012,"male",3,1,{"$f":"HLOOKUP(Calculations!$E$2,'Population 2016'!$C$3:$BC$249,'Population 2016'!BD172,FALSE)","v":6019},0,{"$f":"HLOOKUP(Calculations!$E$2,Pop2016_in_settlements!$C$3:$BC$249,Pop2016_in_settlements!$BD172,FALSE)","v":2568},{"$f":"IF(AND(OR(Calculations!$E$2=\"Orkney Health Board\",Calculations!$E$2=\"Orkney Islands Local Authority\"),$F172=1),0,IF(AND(OR(Calculations!$E$2=\"Shetland Health Board\",Calculations!$E$2=\"Western Isles Health Board\",Calculations!$E$2=\"Shetland Islands Local Authority\",Calculations!$E$2=\"Eilean Siar Local Authority\"),OR($F172=1,$F172=5)),0,new_ci(VALUE(LEFT(Options!$B$14,2)),$C172,$E172,$F172,2016,$I172/10,1,$H172/10,$G172*$H172/10,RateRatios_accidents!$B$5)*10))","v":455.92095464800002},{"$f":"IF(AND(OR(Calculations!$E$2=\"Orkney Health Board\",Calculations!$E$2=\"Orkney Islands Local Authority\"),$F172=1),0,IF(AND(OR(Calculations!$E$2=\"Shetland Health Board\",Calculations!$E$2=\"Western Isles Health Board\",Calculations!$E$2=\"Shetland Islands Local Authority\",Calculations!$E$2=\"Eilean Siar Local Authority\"),OR($F172=1,$F172=5)),0,new_ci(VALUE(LEFT(Options!$B$14,2)),$C172,$E172,$F172,2016,$I172/10+$J172/10,1,$H172/10,$G172*$H172/10,RateRatios_accidents!$B$5)*10))","v":455.846170379},{"$f":"IF(AND(OR(Calculations!$E$2=\"Orkney Health Board\",Calculations!$E$2=\"Orkney Islands Local Authority\"),$F172=1),0,IF(AND(OR(Calculations!$E$2=\"Shetland Health Board\",Calculations!$E$2=\"Western Isles Health Board\",Calculations!$E$2=\"Shetland Islands Local Authority\",Calculations!$E$2=\"Eilean Siar Local Authority\"),OR($F172=1,$F172=5)),0,new_yllv2(VALUE(LEFT(Options!$B$14,2)),$C172,$D172,$E172,$F172,2016,$I172/10,1,$H172/10,$G172*$H172/10,RateRatios_accidents!$B$5)*10))","v":1727.9390503530001},{"$f":"IF(AND(OR(Calculations!$E$2=\"Orkney Health Board\",Calculations!$E$2=\"Orkney Islands Local Authority\"),$F172=1),0,IF(AND(OR(Calculations!$E$2=\"Shetland Health Board\",Calculations!$E$2=\"Western Isles Health Board\",Calculations!$E$2=\"Shetland Islands Local Authority\",Calculations!$E$2=\"Eilean Siar Local Authority\"),OR($F172=1,$F172=5)),0,new_yllv2(VALUE(LEFT(Options!$B$14,2)),$C172,$D172,$E172,$F172,2016,$I172/10+$J172/10,1,$H172/10,$G172*$H172/10,RateRatios_accidents!$B$5)*10))","v":1727.6556181980002},{"$f":"IF(AND(OR(Calculations!$E$2=\"Orkney Health Board\",Calculations!$E$2=\"Orkney Islands Local Authority\"),$F172=1),0,IF(AND(OR(Calculations!$E$2=\"Shetland Health Board\",Calculations!$E$2=\"Western Isles Health Board\",Calculations!$E$2=\"Shetland Islands Local Authority\",Calculations!$E$2=\"Eilean Siar Local Authority\"),OR($F172=1,$F172=5)),0,hosp_count(VALUE(LEFT(Options!$B$14,2)),$C172,$E172,$F172,2016,$I172/10,1,$H172/10,$G172*$H172/10, RateRatios_accidents!$B$4, RateRatios_accidents!$B$5)*10))","v":4739.2344881059998},{"$f":"IF(AND(OR(Calculations!$E$2=\"Orkney Health Board\",Calculations!$E$2=\"Orkney Islands Local Authority\"),$F172=1),0,IF(AND(OR(Calculations!$E$2=\"Shetland Health Board\",Calculations!$E$2=\"Western Isles Health Board\",Calculations!$E$2=\"Shetland Islands Local Authority\",Calculations!$E$2=\"Eilean Siar Local Authority\"),OR($F172=1,$F172=5)),0,hosp_count(VALUE(LEFT(Options!$B$14,2)),$C172,$E172,$F172,2016,$I172/10+$J172/10,1,$H172/10,$G172*$H172/10, RateRatios_accidents!$B$4, RateRatios_accidents!$B$5)*10))","v":4738.4256923980001},{"$f":"IF(AND(OR(Calculations!$E$2=\"Orkney Health Board\",Calculations!$E$2=\"Orkney Islands Local Authority\"),$F172=1),0,IF(AND(OR(Calculations!$E$2=\"Shetland Health Board\",Calculations!$E$2=\"Western Isles Health Board\",Calculations!$E$2=\"Shetland Islands Local Authority\",Calculations!$E$2=\"Eilean Siar Local Authority\"),OR($F172=1,$F172=5)),0,prem_mort(VALUE(LEFT(Options!$B$14,2)),$C172,$E172,$F172,2016,$I172/10,1,$H172/10,$G172*$H172/10,RateRatios_accidents!$B$5)*10))","v":0},{"$f":"IF(AND(OR(Calculations!$E$2=\"Orkney Health Board\",Calculations!$E$2=\"Orkney Islands Local Authority\"),$F172=1),0,IF(AND(OR(Calculations!$E$2=\"Shetland Health Board\",Calculations!$E$2=\"Western Isles Health Board\",Calculations!$E$2=\"Shetland Islands Local Authority\",Calculations!$E$2=\"Eilean Siar Local Authority\"),OR($F172=1,$F172=5)),0,prem_mort(VALUE(LEFT(Options!$B$14,2)),$C172,$E172,$F172,2016,$I172/10+$J172/10,1,$H172/10,$G172*$H172/10,RateRatios_accidents!$B$5)*10))","v":0},null,{"$f":"IF(AND(OR(Calculations!$E$2=\"Orkney Health Board\",Calculations!$E$2=\"Orkney Islands Local Authority\"),$F172=1),0,IF(AND(OR(Calculations!$E$2=\"Shetland Health Board\",Calculations!$E$2=\"Western Isles Health Board\",Calculations!$E$2=\"Shetland Islands Local Authority\",Calculations!$E$2=\"Eilean Siar Local Authority\"),OR($F172=1,$F172=5)),0,new_ci(VALUE(LEFT(Options!$B$14,2)),$C172,$E172,$F172,2016,$I172/10,1,$H172/10,$G172*$H172/10,RateRatios_airpollution!$C172)*10))","v":455.92095464800002},{"$f":"IF(AND(OR(Calculations!$E$2=\"Orkney Health Board\",Calculations!$E$2=\"Orkney Islands Local Authority\"),$F172=1),0,IF(AND(OR(Calculations!$E$2=\"Shetland Health Board\",Calculations!$E$2=\"Western Isles Health Board\",Calculations!$E$2=\"Shetland Islands Local Authority\",Calculations!$E$2=\"Eilean Siar Local Authority\"),OR($F172=1,$F172=5)),0,new_ci(VALUE(LEFT(Options!$B$14,2)),$C172,$E172,$F172,2016,$I172/10+$J172/10,1,$H172/10,$G172*$H172/10,RateRatios_airpollution!$C172)*10))","v":455.91743777200003},{"$f":"IF(AND(OR(Calculations!$E$2=\"Orkney Health Board\",Calculations!$E$2=\"Orkney Islands Local Authority\"),$F172=1),0,IF(AND(OR(Calculations!$E$2=\"Shetland Health Board\",Calculations!$E$2=\"Western Isles Health Board\",Calculations!$E$2=\"Shetland Islands Local Authority\",Calculations!$E$2=\"Eilean Siar Local Authority\"),OR($F172=1,$F172=5)),0,new_yllv2(VALUE(LEFT(Options!$B$14,2)),$C172,$D172,$E172,$F172,2016,$I172/10,1,$H172/10,$G172*$H172/10,RateRatios_airpollution!$C172)*10))","v":1727.9390503530001},{"$f":"IF(AND(OR(Calculations!$E$2=\"Orkney Health Board\",Calculations!$E$2=\"Orkney Islands Local Authority\"),$F172=1),0,IF(AND(OR(Calculations!$E$2=\"Shetland Health Board\",Calculations!$E$2=\"Western Isles Health Board\",Calculations!$E$2=\"Shetland Islands Local Authority\",Calculations!$E$2=\"Eilean Siar Local Authority\"),OR($F172=1,$F172=5)),0,new_yllv2(VALUE(LEFT(Options!$B$14,2)),$C172,$D172,$E172,$F172,2016,$I172/10+$J172/10,1,$H172/10,$G172*$H172/10,RateRatios_airpollution!$C172)*10))","v":1727.9257214040001},{"$f":"IF(AND(OR(Calculations!$E$2=\"Orkney Health Board\",Calculations!$E$2=\"Orkney Islands Local Authority\"),$F172=1),0,IF(AND(OR(Calculations!$E$2=\"Shetland Health Board\",Calculations!$E$2=\"Western Isles Health Board\",Calculations!$E$2=\"Shetland Islands Local Authority\",Calculations!$E$2=\"Eilean Siar Local Authority\"),OR($F172=1,$F172=5)),0,hosp_count(VALUE(LEFT(Options!$B$14,2)),$C172,$E172,$F172,2016,$I172/10,1,$H172/10,$G172*$H172/10, RateRatios_airpollution!$D172, RateRatios_airpollution!$C172)*10))","v":4739.2344881059998},{"$f":"IF(AND(OR(Calculations!$E$2=\"Orkney Health Board\",Calculations!$E$2=\"Orkney Islands Local Authority\"),$F172=1),0,IF(AND(OR(Calculations!$E$2=\"Shetland Health Board\",Calculations!$E$2=\"Western Isles Health Board\",Calculations!$E$2=\"Shetland Islands Local Authority\",Calculations!$E$2=\"Eilean Siar Local Authority\"),OR($F172=1,$F172=5)),0,hosp_count(VALUE(LEFT(Options!$B$14,2)),$C172,$E172,$F172,2016,$I172/10+$J172/10,1,$H172/10,$G172*$H172/10, RateRatios_airpollution!$D172, RateRatios_airpollution!$C172)*10))","v":4739.1628265259997},{"$f":"IF(AND(OR(Calculations!$E$2=\"Orkney Health Board\",Calculations!$E$2=\"Orkney Islands Local Authority\"),$F172=1),0,IF(AND(OR(Calculations!$E$2=\"Shetland Health Board\",Calculations!$E$2=\"Western Isles Health Board\",Calculations!$E$2=\"Shetland Islands Local Authority\",Calculations!$E$2=\"Eilean Siar Local Authority\"),OR($F172=1,$F172=5)),0,prem_mort(VALUE(LEFT(Options!$B$14,2)),$C172,$E172,$F172,2016,$I172/10,1,$H172/10,$G172*$H172/10,RateRatios_airpollution!$C172)*10))","v":0},{"$f":"IF(AND(OR(Calculations!$E$2=\"Orkney Health Board\",Calculations!$E$2=\"Orkney Islands Local Authority\"),$F172=1),0,IF(AND(OR(Calculations!$E$2=\"Shetland Health Board\",Calculations!$E$2=\"Western Isles Health Board\",Calculations!$E$2=\"Shetland Islands Local Authority\",Calculations!$E$2=\"Eilean Siar Local Authority\"),OR($F172=1,$F172=5)),0,prem_mort(VALUE(LEFT(Options!$B$14,2)),$C172,$E172,$F172,2016,$I172/10+$J172/10,1,$H172/10,$G172*$H172/10,RateRatios_airpollution!$C172)*10))","v":0},null,{"$f":"IF(AND(OR(Calculations!$E$2=\"Orkney Health Board\",Calculations!$E$2=\"Orkney Islands Local Authority\"),$F172=1),0,IF(AND(OR(Calculations!$E$2=\"Shetland Health Board\",Calculations!$E$2=\"Western Isles Health Board\",Calculations!$E$2=\"Shetland Islands Local Authority\",Calculations!$E$2=\"Eilean Siar Local Authority\"),OR($F172=1,$F172=5)),0,new_ci(VALUE(LEFT(Options!$B$14,2)),$C172,$E172,$F172,2016,$I172/10,1,$H172/10,$G172*$H172/10,RateRatios_airpollution!$E172)*10))","v":455.92095464800002},{"$f":"IF(AND(OR(Calculations!$E$2=\"Orkney Health Board\",Calculations!$E$2=\"Orkney Islands Local Authority\"),$F172=1),0,IF(AND(OR(Calculations!$E$2=\"Shetland Health Board\",Calculations!$E$2=\"Western Isles Health Board\",Calculations!$E$2=\"Shetland Islands Local Authority\",Calculations!$E$2=\"Eilean Siar Local Authority\"),OR($F172=1,$F172=5)),0,new_ci(VALUE(LEFT(Options!$B$14,2)),$C172,$E172,$F172,2016,$I172/10+$J172/10,1,$H172/10,$G172*$H172/10,RateRatios_airpollution!$E172)*10))","v":455.91942052399997},{"$f":"IF(AND(OR(Calculations!$E$2=\"Orkney Health Board\",Calculations!$E$2=\"Orkney Islands Local Authority\"),$F172=1),0,IF(AND(OR(Calculations!$E$2=\"Shetland Health Board\",Calculations!$E$2=\"Western Isles Health Board\",Calculations!$E$2=\"Shetland Islands Local Authority\",Calculations!$E$2=\"Eilean Siar Local Authority\"),OR($F172=1,$F172=5)),0,new_yllv2(VALUE(LEFT(Options!$B$14,2)),$C172,$D172,$E172,$F172,2016,$I172/10,1,$H172/10,$G172*$H172/10,RateRatios_airpollution!$E172)*10))","v":1727.9390503530001},{"$f":"IF(AND(OR(Calculations!$E$2=\"Orkney Health Board\",Calculations!$E$2=\"Orkney Islands Local Authority\"),$F172=1),0,IF(AND(OR(Calculations!$E$2=\"Shetland Health Board\",Calculations!$E$2=\"Western Isles Health Board\",Calculations!$E$2=\"Shetland Islands Local Authority\",Calculations!$E$2=\"Eilean Siar Local Authority\"),OR($F172=1,$F172=5)),0,new_yllv2(VALUE(LEFT(Options!$B$14,2)),$C172,$D172,$E172,$F172,2016,$I172/10+$J172/10,1,$H172/10,$G172*$H172/10,RateRatios_airpollution!$E172)*10))","v":1727.933236028},{"$f":"IF(AND(OR(Calculations!$E$2=\"Orkney Health Board\",Calculations!$E$2=\"Orkney Islands Local Authority\"),$F172=1),0,IF(AND(OR(Calculations!$E$2=\"Shetland Health Board\",Calculations!$E$2=\"Western Isles Health Board\",Calculations!$E$2=\"Shetland Islands Local Authority\",Calculations!$E$2=\"Eilean Siar Local Authority\"),OR($F172=1,$F172=5)),0,hosp_count(VALUE(LEFT(Options!$B$14,2)),$C172,$E172,$F172,2016,$I172/10,1,$H172/10,$G172*$H172/10, RateRatios_airpollution!$F172, RateRatios_airpollution!$E172)*10))","v":4739.2344881059998},{"$f":"IF(AND(OR(Calculations!$E$2=\"Orkney Health Board\",Calculations!$E$2=\"Orkney Islands Local Authority\"),$F172=1),0,IF(AND(OR(Calculations!$E$2=\"Shetland Health Board\",Calculations!$E$2=\"Western Isles Health Board\",Calculations!$E$2=\"Shetland Islands Local Authority\",Calculations!$E$2=\"Eilean Siar Local Authority\"),OR($F172=1,$F172=5)),0,hosp_count(VALUE(LEFT(Options!$B$14,2)),$C172,$E172,$F172,2016,$I172/10+$J172/10,1,$H172/10,$G172*$H172/10, RateRatios_airpollution!$F172, RateRatios_airpollution!$E172)*10))","v":4739.2344881059998},{"$f":"IF(AND(OR(Calculations!$E$2=\"Orkney Health Board\",Calculations!$E$2=\"Orkney Islands Local Authority\"),$F172=1),0,IF(AND(OR(Calculations!$E$2=\"Shetland Health Board\",Calculations!$E$2=\"Western Isles Health Board\",Calculations!$E$2=\"Shetland Islands Local Authority\",Calculations!$E$2=\"Eilean Siar Local Authority\"),OR($F172=1,$F172=5)),0,prem_mort(VALUE(LEFT(Options!$B$14,2)),$C172,$E172,$F172,2016,$I172/10,1,$H172/10,$G172*$H172/10,RateRatios_airpollution!$E172)*10))","v":0},{"$f":"IF(AND(OR(Calculations!$E$2=\"Orkney Health Board\",Calculations!$E$2=\"Orkney Islands Local Authority\"),$F172=1),0,IF(AND(OR(Calculations!$E$2=\"Shetland Health Board\",Calculations!$E$2=\"Western Isles Health Board\",Calculations!$E$2=\"Shetland Islands Local Authority\",Calculations!$E$2=\"Eilean Siar Local Authority\"),OR($F172=1,$F172=5)),0,prem_mort(VALUE(LEFT(Options!$B$14,2)),$C172,$E172,$F172,2016,$I172/10+$J172/10,1,$H172/10,$G172*$H172/10,RateRatios_airpollution!$E172)*10))","v":0},455.92095464800002,455.84111937899996,1727.9390503530001,1727.6364749240001,4739.2344881059998,4738.354030818,0,0,7574.6960400066455,7573.3696524173447,28708.07526753614,28703.048262568536,78737.904769995017,78723.276803754779,0,0,11362044.060009968,11360054.478626017,43062112.901304208,43054572.393852808,118106857.15499252,118084915.20563217,0,0,1500]
[null,"Male 90+",92.215477000000007,95.515479999999997,"male",3,1,{"$f":"HLOOKUP(Calculations!$E$2,'Population 2016'!$C$3:$BC$249,'Population 2016'!BD173,FALSE)","v":2593},0,{"$f":"HLOOKUP(Calculations!$E$2,Pop2016_in_settlements!$C$3:$BC$249,Pop2016_in_settlements!$BD173,FALSE)","v":1109},{"$f":"IF(AND(OR(Calculations!$E$2=\"Orkney Health Board\",Calculations!$E$2=\"Orkney Islands Local Authority\"),$F173=1),0,IF(AND(OR(Calculations!$E$2=\"Shetland Health Board\",Calculations!$E$2=\"Western Isles Health Board\",Calculations!$E$2=\"Shetland Islands Local Authority\",Calculations!$E$2=\"Eilean Siar Local Authority\"),OR($F173=1,$F173=5)),0,new_ci(VALUE(LEFT(Options!$B$14,2)),$C173,$E173,$F173,2016,$I173/10,1,$H173/10,$G173*$H173/10,RateRatios_accidents!$B$5)*10))","v":293.39933440300001},{"$f":"IF(AND(OR(Calculations!$E$2=\"Orkney Health Board\",Calculations!$E$2=\"Orkney Islands Local Authority\"),$F173=1),0,IF(AND(OR(Calculations!$E$2=\"Shetland Health Board\",Calculations!$E$2=\"Western Isles Health Board\",Calculations!$E$2=\"Shetland Islands Local Authority\",Calculations!$E$2=\"Eilean Siar Local Authority\"),OR($F173=1,$F173=5)),0,new_ci(VALUE(LEFT(Options!$B$14,2)),$C173,$E173,$F173,2016,$I173/10+$J173/10,1,$H173/10,$G173*$H173/10,RateRatios_accidents!$B$5)*10))","v":293.35209311},{"$f":"IF(AND(OR(Calculations!$E$2=\"Orkney Health Board\",Calculations!$E$2=\"Orkney Islands Local Authority\"),$F173=1),0,IF(AND(OR(Calculations!$E$2=\"Shetland Health Board\",Calculations!$E$2=\"Western Isles Health Board\",Calculations!$E$2=\"Shetland Islands Local Authority\",Calculations!$E$2=\"Eilean Siar Local Authority\"),OR($F173=1,$F173=5)),0,new_yllv2(VALUE(LEFT(Options!$B$14,2)),$C173,$D173,$E173,$F173,2016,$I173/10,1,$H173/10,$G173*$H173/10,RateRatios_accidents!$B$5)*10))","v":674.81934932499996},{"$f":"IF(AND(OR(Calculations!$E$2=\"Orkney Health Board\",Calculations!$E$2=\"Orkney Islands Local Authority\"),$F173=1),0,IF(AND(OR(Calculations!$E$2=\"Shetland Health Board\",Calculations!$E$2=\"Western Isles Health Board\",Calculations!$E$2=\"Shetland Islands Local Authority\",Calculations!$E$2=\"Eilean Siar Local Authority\"),OR($F173=1,$F173=5)),0,new_yllv2(VALUE(LEFT(Options!$B$14,2)),$C173,$D173,$E173,$F173,2016,$I173/10+$J173/10,1,$H173/10,$G173*$H173/10,RateRatios_accidents!$B$5)*10))","v":674.71069420899994},{"$f":"IF(AND(OR(Calculations!$E$2=\"Orkney Health Board\",Calculations!$E$2=\"Orkney Islands Local Authority\"),$F173=1),0,IF(AND(OR(Calculations!$E$2=\"Shetland Health Board\",Calculations!$E$2=\"Western Isles Health Board\",Calculations!$E$2=\"Shetland Islands Local Authority\",Calculations!$E$2=\"Eilean Siar Local Authority\"),OR($F173=1,$F173=5)),0,hosp_count(VALUE(LEFT(Options!$B$14,2)),$C173,$E173,$F173,2016,$I173/10,1,$H173/10,$G173*$H173/10, RateRatios_accidents!$B$4, RateRatios_accidents!$B$5)*10))","v":2489.2981891170002},{"$f":"IF(AND(OR(Calculations!$E$2=\"Orkney Health Board\",Calculations!$E$2=\"Orkney Islands Local Authority\"),$F173=1),0,IF(AND(OR(Calculations!$E$2=\"Shetland Health Board\",Calculations!$E$2=\"Western Isles Health Board\",Calculations!$E$2=\"Shetland Islands Local Authority\",Calculations!$E$2=\"Eilean Siar Local Authority\"),OR($F173=1,$F173=5)),0,hosp_count(VALUE(LEFT(Options!$B$14,2)),$C173,$E173,$F173,2016,$I173/10+$J173/10,1,$H173/10,$G173*$H173/10, RateRatios_accidents!$B$4, RateRatios_accidents!$B$5)*10))","v":2488.872330012},{"$f":"IF(AND(OR(Calculations!$E$2=\"Orkney Health Board\",Calculations!$E$2=\"Orkney Islands Local Authority\"),$F173=1),0,IF(AND(OR(Calculations!$E$2=\"Shetland Health Board\",Calculations!$E$2=\"Western Isles Health Board\",Calculations!$E$2=\"Shetland Islands Local Authority\",Calculations!$E$2=\"Eilean Siar Local Authority\"),OR($F173=1,$F173=5)),0,prem_mort(VALUE(LEFT(Options!$B$14,2)),$C173,$E173,$F173,2016,$I173/10,1,$H173/10,$G173*$H173/10,RateRatios_accidents!$B$5)*10))","v":0},{"$f":"IF(AND(OR(Calculations!$E$2=\"Orkney Health Board\",Calculations!$E$2=\"Orkney Islands Local Authority\"),$F173=1),0,IF(AND(OR(Calculations!$E$2=\"Shetland Health Board\",Calculations!$E$2=\"Western Isles Health Board\",Calculations!$E$2=\"Shetland Islands Local Authority\",Calculations!$E$2=\"Eilean Siar Local Authority\"),OR($F173=1,$F173=5)),0,prem_mort(VALUE(LEFT(Options!$B$14,2)),$C173,$E173,$F173,2016,$I173/10+$J173/10,1,$H173/10,$G173*$H173/10,RateRatios_accidents!$B$5)*10))","v":0},null,{"$f":"IF(AND(OR(Calculations!$E$2=\"Orkney Health Board\",Calculations!$E$2=\"Orkney Islands Local Authority\"),$F173=1),0,IF(AND(OR(Calculations!$E$2=\"Shetland Health Board\",Calculations!$E$2=\"Western Isles Health Board\",Calculations!$E$2=\"Shetland Islands Local Authority\",Calculations!$E$2=\"Eilean Siar Local Authority\"),OR($F173=1,$F173=5)),0,new_ci(VALUE(LEFT(Options!$B$14,2)),$C173,$E173,$F173,2016,$I173/10,1,$H173/10,$G173*$H173/10,RateRatios_airpollution!$C173)*10))","v":293.39933440300001},{"$f":"IF(AND(OR(Calculations!$E$2=\"Orkney Health Board\",Calculations!$E$2=\"Orkney Islands Local Authority\"),$F173=1),0,IF(AND(OR(Calculations!$E$2=\"Shetland Health Board\",Calculations!$E$2=\"Western Isles Health Board\",Calculations!$E$2=\"Shetland Islands Local Authority\",Calculations!$E$2=\"Eilean Siar Local Authority\"),OR($F173=1,$F173=5)),0,new_ci(VALUE(LEFT(Options!$B$14,2)),$C173,$E173,$F173,2016,$I173/10+$J173/10,1,$H173/10,$G173*$H173/10,RateRatios_airpollution!$C173)*10))","v":293.39714590199998},{"$f":"IF(AND(OR(Calculations!$E$2=\"Orkney Health Board\",Calculations!$E$2=\"Orkney Islands Local Authority\"),$F173=1),0,IF(AND(OR(Calculations!$E$2=\"Shetland Health Board\",Calculations!$E$2=\"Western Isles Health Board\",Calculations!$E$2=\"Shetland Islands Local Authority\",Calculations!$E$2=\"Eilean Siar Local Authority\"),OR($F173=1,$F173=5)),0,new_yllv2(VALUE(LEFT(Options!$B$14,2)),$C173,$D173,$E173,$F173,2016,$I173/10,1,$H173/10,$G173*$H173/10,RateRatios_airpollution!$C173)*10))","v":674.81934932499996},{"$f":"IF(AND(OR(Calculations!$E$2=\"Orkney Health Board\",Calculations!$E$2=\"Orkney Islands Local Authority\"),$F173=1),0,IF(AND(OR(Calculations!$E$2=\"Shetland Health Board\",Calculations!$E$2=\"Western Isles Health Board\",Calculations!$E$2=\"Shetland Islands Local Authority\",Calculations!$E$2=\"Eilean Siar Local Authority\"),OR($F173=1,$F173=5)),0,new_yllv2(VALUE(LEFT(Options!$B$14,2)),$C173,$D173,$E173,$F173,2016,$I173/10+$J173/10,1,$H173/10,$G173*$H173/10,RateRatios_airpollution!$C173)*10))","v":674.81431576600005},{"$f":"IF(AND(OR(Calculations!$E$2=\"Orkney Health Board\",Calculations!$E$2=\"Orkney Islands Local Authority\"),$F173=1),0,IF(AND(OR(Calculations!$E$2=\"Shetland Health Board\",Calculations!$E$2=\"Western Isles Health Board\",Calculations!$E$2=\"Shetland Islands Local Authority\",Calculations!$E$2=\"Eilean Siar Local Authority\"),OR($F173=1,$F173=5)),0,hosp_count(VALUE(LEFT(Options!$B$14,2)),$C173,$E173,$F173,2016,$I173/10,1,$H173/10,$G173*$H173/10, RateRatios_airpollution!$D173, RateRatios_airpollution!$C173)*10))","v":2489.2981891170002},{"$f":"IF(AND(OR(Calculations!$E$2=\"Orkney Health Board\",Calculations!$E$2=\"Orkney Islands Local Authority\"),$F173=1),0,IF(AND(OR(Calculations!$E$2=\"Shetland Health Board\",Calculations!$E$2=\"Western Isles Health Board\",Calculations!$E$2=\"Shetland Islands Local Authority\",Calculations!$E$2=\"Eilean Siar Local Authority\"),OR($F173=1,$F173=5)),0,hosp_count(VALUE(LEFT(Options!$B$14,2)),$C173,$E173,$F173,2016,$I173/10+$J173/10,1,$H173/10,$G173*$H173/10, RateRatios_airpollution!$D173, RateRatios_airpollution!$C173)*10))","v":2489.2610200949998},{"$f":"IF(AND(OR(Calculations!$E$2=\"Orkney Health Board\",Calculations!$E$2=\"Orkney Islands Local Authority\"),$F173=1),0,IF(AND(OR(Calculations!$E$2=\"Shetland Health Board\",Calculations!$E$2=\"Western Isles Health Board\",Calculations!$E$2=\"Shetland Islands Local Authority\",Calculations!$E$2=\"Eilean Siar Local Authority\"),OR($F173=1,$F173=5)),0,prem_mort(VALUE(LEFT(Options!$B$14,2)),$C173,$E173,$F173,2016,$I173/10,1,$H173/10,$G173*$H173/10,RateRatios_airpollution!$C173)*10))","v":0},{"$f":"IF(AND(OR(Calculations!$E$2=\"Orkney Health Board\",Calculations!$E$2=\"Orkney Islands Local Authority\"),$F173=1),0,IF(AND(OR(Calculations!$E$2=\"Shetland Health Board\",Calculations!$E$2=\"Western Isles Health Board\",Calculations!$E$2=\"Shetland Islands Local Authority\",Calculations!$E$2=\"Eilean Siar Local Authority\"),OR($F173=1,$F173=5)),0,prem_mort(VALUE(LEFT(Options!$B$14,2)),$C173,$E173,$F173,2016,$I173/10+$J173/10,1,$H173/10,$G173*$H173/10,RateRatios_airpollution!$C173)*10))","v":0},null,{"$f":"IF(AND(OR(Calculations!$E$2=\"Orkney Health Board\",Calculations!$E$2=\"Orkney Islands Local Authority\"),$F173=1),0,IF(AND(OR(Calculations!$E$2=\"Shetland Health Board\",Calculations!$E$2=\"Western Isles Health Board\",Calculations!$E$2=\"Shetland Islands Local Authority\",Calculations!$E$2=\"Eilean Siar Local Authority\"),OR($F173=1,$F173=5)),0,new_ci(VALUE(LEFT(Options!$B$14,2)),$C173,$E173,$F173,2016,$I173/10,1,$H173/10,$G173*$H173/10,RateRatios_airpollution!$E173)*10))","v":293.39933440300001},{"$f":"IF(AND(OR(Calculations!$E$2=\"Orkney Health Board\",Calculations!$E$2=\"Orkney Islands Local Authority\"),$F173=1),0,IF(AND(OR(Calculations!$E$2=\"Shetland Health Board\",Calculations!$E$2=\"Western Isles Health Board\",Calculations!$E$2=\"Shetland Islands Local Authority\",Calculations!$E$2=\"Eilean Siar Local Authority\"),OR($F173=1,$F173=5)),0,new_ci(VALUE(LEFT(Options!$B$14,2)),$C173,$E173,$F173,2016,$I173/10+$J173/10,1,$H173/10,$G173*$H173/10,RateRatios_airpollution!$E173)*10))","v":293.39838598599999},{"$f":"IF(AND(OR(Calculations!$E$2=\"Orkney Health Board\",Calculations!$E$2=\"Orkney Islands Local Authority\"),$F173=1),0,IF(AND(OR(Calculations!$E$2=\"Shetland Health Board\",Calculations!$E$2=\"Western Isles Health Board\",Calculations!$E$2=\"Shetland Islands Local Authority\",Calculations!$E$2=\"Eilean Siar Local Authority\"),OR($F173=1,$F173=5)),0,new_yllv2(VALUE(LEFT(Options!$B$14,2)),$C173,$D173,$E173,$F173,2016,$I173/10,1,$H173/10,$G173*$H173/10,RateRatios_airpollution!$E173)*10))","v":674.81934932499996},{"$f":"IF(AND(OR(Calculations!$E$2=\"Orkney Health Board\",Calculations!$E$2=\"Orkney Islands Local Authority\"),$F173=1),0,IF(AND(OR(Calculations!$E$2=\"Shetland Health Board\",Calculations!$E$2=\"Western Isles Health Board\",Calculations!$E$2=\"Shetland Islands Local Authority\",Calculations!$E$2=\"Eilean Siar Local Authority\"),OR($F173=1,$F173=5)),0,new_yllv2(VALUE(LEFT(Options!$B$14,2)),$C173,$D173,$E173,$F173,2016,$I173/10+$J173/10,1,$H173/10,$G173*$H173/10,RateRatios_airpollution!$E173)*10))","v":674.81716796300009},{"$f":"IF(AND(OR(Calculations!$E$2=\"Orkney Health Board\",Calculations!$E$2=\"Orkney Islands Local Authority\"),$F173=1),0,IF(AND(OR(Calculations!$E$2=\"Shetland Health Board\",Calculations!$E$2=\"Western Isles Health Board\",Calculations!$E$2=\"Shetland Islands Local Authority\",Calculations!$E$2=\"Eilean Siar Local Authority\"),OR($F173=1,$F173=5)),0,hosp_count(VALUE(LEFT(Options!$B$14,2)),$C173,$E173,$F173,2016,$I173/10,1,$H173/10,$G173*$H173/10, RateRatios_airpollution!$F173, RateRatios_airpollution!$E173)*10))","v":2489.2981891170002},{"$f":"IF(AND(OR(Calculations!$E$2=\"Orkney Health Board\",Calculations!$E$2=\"Orkney Islands Local Authority\"),$F173=1),0,IF(AND(OR(Calculations!$E$2=\"Shetland Health Board\",Calculations!$E$2=\"Western Isles Health Board\",Calculations!$E$2=\"Shetland Islands Local Authority\",Calculations!$E$2=\"Eilean Siar Local Authority\"),OR($F173=1,$F173=5)),0,hosp_count(VALUE(LEFT(Options!$B$14,2)),$C173,$E173,$F173,2016,$I173/10+$J173/10,1,$H173/10,$G173*$H173/10, RateRatios_airpollution!$F173, RateRatios_airpollution!$E173)*10))","v":2489.2981891170002},{"$f":"IF(AND(OR(Calculations!$E$2=\"Orkney Health Board\",Calculations!$E$2=\"Orkney Islands Local Authority\"),$F173=1),0,IF(AND(OR(Calculations!$E$2=\"Shetland Health Board\",Calculations!$E$2=\"Western Isles Health Board\",Calculations!$E$2=\"Shetland Islands Local Authority\",Calculations!$E$2=\"Eilean Siar Local Authority\"),OR($F173=1,$F173=5)),0,prem_mort(VALUE(LEFT(Options!$B$14,2)),$C173,$E173,$F173,2016,$I173/10,1,$H173/10,$G173*$H173/10,RateRatios_airpollution!$E173)*10))","v":0},{"$f":"IF(AND(OR(Calculations!$E$2=\"Orkney Health Board\",Calculations!$E$2=\"Orkney Islands Local Authority\"),$F173=1),0,IF(AND(OR(Calculations!$E$2=\"Shetland Health Board\",Calculations!$E$2=\"Western Isles Health Board\",Calculations!$E$2=\"Shetland Islands Local Authority\",Calculations!$E$2=\"Eilean Siar Local Authority\"),OR($F173=1,$F173=5)),0,prem_mort(VALUE(LEFT(Options!$B$14,2)),$C173,$E173,$F173,2016,$I173/10+$J173/10,1,$H173/10,$G173*$H173/10,RateRatios_airpollution!$E173)*10))","v":0},293.39933440300001,293.34895619199995,674.81934932499996,674.70347928800015,2489.2981891170002,2488.8351609899996,0,0,11315.053390011572,11313.110535750095,26024.656742190509,26020.188171538764,96000.701469996144,95982.844619745447,0,0,11315053.390011571,11313110.535750095,26024656.74219051,26020188.171538763,96000701.469996139,95982844.619745448,0,0,1000]
[null,"Female 0-4",2.0384007,81.468401,"female",4,1,{"$f":"HLOOKUP(Calculations!$E$2,'Population 2016'!$C$3:$BC$249,'Population 2016'!BD174,FALSE)","v":0},0,{"$f":"HLOOKUP(Calculations!$E$2,Pop2016_in_settlements!$C$3:$BC$249,Pop2016_in_settlements!$BD174,FALSE)","v":0},{"$f":"IF(AND(OR(Calculations!$E$2=\"Orkney Health Board\",Calculations!$E$2=\"Orkney Islands Local Authority\"),$F174=1),0,IF(AND(OR(Calculations!$E$2=\"Shetland Health Board\",Calculations!$E$2=\"Western Isles Health Board\",Calculations!$E$2=\"Shetland Islands Local Authority\",Calculations!$E$2=\"Eilean Siar Local Authority\"),OR($F174=1,$F174=5)),0,new_ci(VALUE(LEFT(Options!$B$14,2)),$C174,$E174,$F174,2016,$I174/10,1,$H174/10,$G174*$H174/10,RateRatios_accidents!$B$5)*10))","v":{"$error":"#VALUE!"}},{"$f":"IF(AND(OR(Calculations!$E$2=\"Orkney Health Board\",Calculations!$E$2=\"Orkney Islands Local Authority\"),$F174=1),0,IF(AND(OR(Calculations!$E$2=\"Shetland Health Board\",Calculations!$E$2=\"Western Isles Health Board\",Calculations!$E$2=\"Shetland Islands Local Authority\",Calculations!$E$2=\"Eilean Siar Local Authority\"),OR($F174=1,$F174=5)),0,new_ci(VALUE(LEFT(Options!$B$14,2)),$C174,$E174,$F174,2016,$I174/10+$J174/10,1,$H174/10,$G174*$H174/10,RateRatios_accidents!$B$5)*10))","v":{"$error":"#VALUE!"}},{"$f":"IF(AND(OR(Calculations!$E$2=\"Orkney Health Board\",Calculations!$E$2=\"Orkney Islands Local Authority\"),$F174=1),0,IF(AND(OR(Calculations!$E$2=\"Shetland Health Board\",Calculations!$E$2=\"Western Isles Health Board\",Calculations!$E$2=\"Shetland Islands Local Authority\",Calculations!$E$2=\"Eilean Siar Local Authority\"),OR($F174=1,$F174=5)),0,new_yllv2(VALUE(LEFT(Options!$B$14,2)),$C174,$D174,$E174,$F174,2016,$I174/10,1,$H174/10,$G174*$H174/10,RateRatios_accidents!$B$5)*10))","v":{"$error":"#VALUE!"}},{"$f":"IF(AND(OR(Calculations!$E$2=\"Orkney Health Board\",Calculations!$E$2=\"Orkney Islands Local Authority\"),$F174=1),0,IF(AND(OR(Calculations!$E$2=\"Shetland Health Board\",Calculations!$E$2=\"Western Isles Health Board\",Calculations!$E$2=\"Shetland Islands Local Authority\",Calculations!$E$2=\"Eilean Siar Local Authority\"),OR($F174=1,$F174=5)),0,new_yllv2(VALUE(LEFT(Options!$B$14,2)),$C174,$D174,$E174,$F174,2016,$I174/10+$J174/10,1,$H174/10,$G174*$H174/10,RateRatios_accidents!$B$5)*10))","v":{"$error":"#VALUE!"}},{"$f":"IF(AND(OR(Calculations!$E$2=\"Orkney Health Board\",Calculations!$E$2=\"Orkney Islands Local Authority\"),$F174=1),0,IF(AND(OR(Calculations!$E$2=\"Shetland Health Board\",Calculations!$E$2=\"Western Isles Health Board\",Calculations!$E$2=\"Shetland Islands Local Authority\",Calculations!$E$2=\"Eilean Siar Local Authority\"),OR($F174=1,$F174=5)),0,hosp_count(VALUE(LEFT(Options!$B$14,2)),$C174,$E174,$F174,2016,$I174/10,1,$H174/10,$G174*$H174/10, RateRatios_accidents!$B$4, RateRatios_accidents!$B$5)*10))","v":{"$error":"#VALUE!"}},{"$f":"IF(AND(OR(Calculations!$E$2=\"Orkney Health Board\",Calculations!$E$2=\"Orkney Islands Local Authority\"),$F174=1),0,IF(AND(OR(Calculations!$E$2=\"Shetland Health Board\",Calculations!$E$2=\"Western Isles Health Board\",Calculations!$E$2=\"Shetland Islands Local Authority\",Calculations!$E$2=\"Eilean Siar Local Authority\"),OR($F174=1,$F174=5)),0,hosp_count(VALUE(LEFT(Options!$B$14,2)),$C174,$E174,$F174,2016,$I174/10+$J174/10,1,$H174/10,$G174*$H174/10, RateRatios_accidents!$B$4, RateRatios_accidents!$B$5)*10))","v":{"$error":"#VALUE!"}},{"$f":"IF(AND(OR(Calculations!$E$2=\"Orkney Health Board\",Calculations!$E$2=\"Orkney Islands Local Authority\"),$F174=1),0,IF(AND(OR(Calculations!$E$2=\"Shetland Health Board\",Calculations!$E$2=\"Western Isles Health Board\",Calculations!$E$2=\"Shetland Islands Local Authority\",Calculations!$E$2=\"Eilean Siar Local Authority\"),OR($F174=1,$F174=5)),0,prem_mort(VALUE(LEFT(Options!$B$14,2)),$C174,$E174,$F174,2016,$I174/10,1,$H174/10,$G174*$H174/10,RateRatios_accidents!$B$5)*10))","v":{"$error":"#VALUE!"}},{"$f":"IF(AND(OR(Calculations!$E$2=\"Orkney Health Board\",Calculations!$E$2=\"Orkney Islands Local Authority\"),$F174=1),0,IF(AND(OR(Calculations!$E$2=\"Shetland Health Board\",Calculations!$E$2=\"Western Isles Health Board\",Calculations!$E$2=\"Shetland Islands Local Authority\",Calculations!$E$2=\"Eilean Siar Local Authority\"),OR($F174=1,$F174=5)),0,prem_mort(VALUE(LEFT(Options!$B$14,2)),$C174,$E174,$F174,2016,$I174/10+$J174/10,1,$H174/10,$G174*$H174/10,RateRatios_accidents!$B$5)*10))","v":{"$error":"#VALUE!"}},null,{"$f":"IF(AND(OR(Calculations!$E$2=\"Orkney Health Board\",Calculations!$E$2=\"Orkney Islands Local Authority\"),$F174=1),0,IF(AND(OR(Calculations!$E$2=\"Shetland Health Board\",Calculations!$E$2=\"Western Isles Health Board\",Calculations!$E$2=\"Shetland Islands Local Authority\",Calculations!$E$2=\"Eilean Siar Local Authority\"),OR($F174=1,$F174=5)),0,new_ci(VALUE(LEFT(Options!$B$14,2)),$C174,$E174,$F174,2016,$I174/10,1,$H174/10,$G174*$H174/10,RateRatios_airpollution!$C174)*10))","v":{"$error":"#VALUE!"}},{"$f":"IF(AND(OR(Calculations!$E$2=\"Orkney Health Board\",Calculations!$E$2=\"Orkney Islands Local Authority\"),$F174=1),0,IF(AND(OR(Calculations!$E$2=\"Shetland Health Board\",Calculations!$E$2=\"Western Isles Health Board\",Calculations!$E$2=\"Shetland Islands Local Authority\",Calculations!$E$2=\"Eilean Siar Local Authority\"),OR($F174=1,$F174=5)),0,new_ci(VALUE(LEFT(Options!$B$14,2)),$C174,$E174,$F174,2016,$I174/10+$J174/10,1,$H174/10,$G174*$H174/10,RateRatios_airpollution!$C174)*10))","v":{"$error":"#VALUE!"}},{"$f":"IF(AND(OR(Calculations!$E$2=\"Orkney Health Board\",Calculations!$E$2=\"Orkney Islands Local Authority\"),$F174=1),0,IF(AND(OR(Calculations!$E$2=\"Shetland Health Board\",Calculations!$E$2=\"Western Isles Health Board\",Calculations!$E$2=\"Shetland Islands Local Authority\",Calculations!$E$2=\"Eilean Siar Local Authority\"),OR($F174=1,$F174=5)),0,new_yllv2(VALUE(LEFT(Options!$B$14,2)),$C174,$D174,$E174,$F174,2016,$I174/10,1,$H174/10,$G174*$H174/10,RateRatios_airpollution!$C174)*10))","v":{"$error":"#VALUE!"}},{"$f":"IF(AND(OR(Calculations!$E$2=\"Orkney Health Board\",Calculations!$E$2=\"Orkney Islands Local Authority\"),$F174=1),0,IF(AND(OR(Calculations!$E$2=\"Shetland Health Board\",Calculations!$E$2=\"Western Isles Health Board\",Calculations!$E$2=\"Shetland Islands Local Authority\",Calculations!$E$2=\"Eilean Siar Local Authority\"),OR($F174=1,$F174=5)),0,new_yllv2(VALUE(LEFT(Options!$B$14,2)),$C174,$D174,$E174,$F174,2016,$I174/10+$J174/10,1,$H174/10,$G174*$H174/10,RateRatios_airpollution!$C174)*10))","v":{"$error":"#VALUE!"}},{"$f":"IF(AND(OR(Calculations!$E$2=\"Orkney Health Board\",Calculations!$E$2=\"Orkney Islands Local Authority\"),$F174=1),0,IF(AND(OR(Calculations!$E$2=\"Shetland Health Board\",Calculations!$E$2=\"Western Isles Health Board\",Calculations!$E$2=\"Shetland Islands Local Authority\",Calculations!$E$2=\"Eilean Siar Local Authority\"),OR($F174=1,$F174=5)),0,hosp_count(VALUE(LEFT(Options!$B$14,2)),$C174,$E174,$F174,2016,$I174/10,1,$H174/10,$G174*$H174/10, RateRatios_airpollution!$D174, RateRatios_airpollution!$C174)*10))","v":{"$error":"#VALUE!"}},{"$f":"IF(AND(OR(Calculations!$E$2=\"Orkney Health Board\",Calculations!$E$2=\"Orkney Islands Local Authority\"),$F174=1),0,IF(AND(OR(Calculations!$E$2=\"Shetland Health Board\",Calculations!$E$2=\"Western Isles Health Board\",Calculations!$E$2=\"Shetland Islands Local Authority\",Calculations!$E$2=\"Eilean Siar Local Authority\"),OR($F174=1,$F174=5)),0,hosp_count(VALUE(LEFT(Options!$B$14,2)),$C174,$E174,$F174,2016,$I174/10+$J174/10,1,$H174/10,$G174*$H174/10, RateRatios_airpollution!$D174, RateRatios_airpollution!$C174)*10))","v":{"$error":"#VALUE!"}},{"$f":"IF(AND(OR(Calculations!$E$2=\"Orkney Health Board\",Calculations!$E$2=\"Orkney Islands Local Authority\"),$F174=1),0,IF(AND(OR(Calculations!$E$2=\"Shetland Health Board\",Calculations!$E$2=\"Western Isles Health Board\",Calculations!$E$2=\"Shetland Islands Local Authority\",Calculations!$E$2=\"Eilean Siar Local Authority\"),OR($F174=1,$F174=5)),0,prem_mort(VALUE(LEFT(Options!$B$14,2)),$C174,$E174,$F174,2016,$I174/10,1,$H174/10,$G174*$H174/10,RateRatios_airpollution!$C174)*10))","v":{"$error":"#VALUE!"}},{"$f":"IF(AND(OR(Calculations!$E$2=\"Orkney Health Board\",Calculations!$E$2=\"Orkney Islands Local Authority\"),$F174=1),0,IF(AND(OR(Calculations!$E$2=\"Shetland Health Board\",Calculations!$E$2=\"Western Isles Health Board\",Calculations!$E$2=\"Shetland Islands Local Authority\",Calculations!$E$2=\"Eilean Siar Local Authority\"),OR($F174=1,$F174=5)),0,prem_mort(VALUE(LEFT(Options!$B$14,2)),$C174,$E174,$F174,2016,$I174/10+$J174/10,1,$H174/10,$G174*$H174/10,RateRatios_airpollution!$C174)*10))","v":{"$error":"#VALUE!"}},null,{"$f":"IF(AND(OR(Calculations!$E$2=\"Orkney Health Board\",Calculations!$E$2=\"Orkney Islands Local Authority\"),$F174=1),0,IF(AND(OR(Calculations!$E$2=\"Shetland Health Board\",Calculations!$E$2=\"Western Isles Health Board\",Calculations!$E$2=\"Shetland Islands Local Authority\",Calculations!$E$2=\"Eilean Siar Local Authority\"),OR($F174=1,$F174=5)),0,new_ci(VALUE(LEFT(Options!$B$14,2)),$C174,$E174,$F174,2016,$I174/10,1,$H174/10,$G174*$H174/10,RateRatios_airpollution!$E174)*10))","v":{"$error":"#VALUE!"}},{"$f":"IF(AND(OR(Calculations!$E$2=\"Orkney Health Board\",Calculations!$E$2=\"Orkney Islands Local Authority\"),$F174=1),0,IF(AND(OR(Calculations!$E$2=\"Shetland Health Board\",Calculations!$E$2=\"Western Isles Health Board\",Calculations!$E$2=\"Shetland Islands Local Authority\",Calculations!$E$2=\"Eilean Siar Local Authority\"),OR($F174=1,$F174=5)),0,new_ci(VALUE(LEFT(Options!$B$14,2)),$C174,$E174,$F174,2016,$I174/10+$J174/10,1,$H174/10,$G174*$H174/10,RateRatios_airpollution!$E174)*10))","v":{"$error":"#VALUE!"}},{"$f":"IF(AND(OR(Calculations!$E$2=\"Orkney Health Board\",Calculations!$E$2=\"Orkney Islands Local Authority\"),$F174=1),0,IF(AND(OR(Calculations!$E$2=\"Shetland Health Board\",Calculations!$E$2=\"Western Isles Health Board\",Calculations!$E$2=\"Shetland Islands Local Authority\",Calculations!$E$2=\"Eilean Siar Local Authority\"),OR($F174=1,$F174=5)),0,new_yllv2(VALUE(LEFT(Options!$B$14,2)),$C174,$D174,$E174,$F174,2016,$I174/10,1,$H174/10,$G174*$H174/10,RateRatios_airpollution!$E174)*10))","v":{"$error":"#VALUE!"}},{"$f":"IF(AND(OR(Calculations!$E$2=\"Orkney Health Board\",Calculations!$E$2=\"Orkney Islands Local Authority\"),$F174=1),0,IF(AND(OR(Calculations!$E$2=\"Shetland Health Board\",Calculations!$E$2=\"Western Isles Health Board\",Calculations!$E$2=\"Shetland Islands Local Authority\",Calculations!$E$2=\"Eilean Siar Local Authority\"),OR($F174=1,$F174=5)),0,new_yllv2(VALUE(LEFT(Options!$B$14,2)),$C174,$D174,$E174,$F174,2016,$I174/10+$J174/10,1,$H174/10,$G174*$H174/10,RateRatios_airpollution!$E174)*10))","v":{"$error":"#VALUE!"}},{"$f":"IF(AND(OR(Calculations!$E$2=\"Orkney Health Board\",Calculations!$E$2=\"Orkney Islands Local Authority\"),$F174=1),0,IF(AND(OR(Calculations!$E$2=\"Shetland Health Board\",Calculations!$E$2=\"Western Isles Health Board\",Calculations!$E$2=\"Shetland Islands Local Authority\",Calculations!$E$2=\"Eilean Siar Local Authority\"),OR($F174=1,$F174=5)),0,hosp_count(VALUE(LEFT(Options!$B$14,2)),$C174,$E174,$F174,2016,$I174/10,1,$H174/10,$G174*$H174/10, RateRatios_airpollution!$F174, RateRatios_airpollution!$E174)*10))","v":{"$error":"#VALUE!"}},{"$f":"IF(AND(OR(Calculations!$E$2=\"Orkney Health Board\",Calculations!$E$2=\"Orkney Islands Local Authority\"),$F174=1),0,IF(AND(OR(Calculations!$E$2=\"Shetland Health Board\",Calculations!$E$2=\"Western Isles Health Board\",Calculations!$E$2=\"Shetland Islands Local Authority\",Calculations!$E$2=\"Eilean Siar Local Authority\"),OR($F174=1,$F174=5)),0,hosp_count(VALUE(LEFT(Options!$B$14,2)),$C174,$E174,$F174,2016,$I174/10+$J174/10,1,$H174/10,$G174*$H174/10, RateRatios_airpollution!$F174, RateRatios_airpollution!$E174)*10))","v":{"$error":"#VALUE!"}},{"$f":"IF(AND(OR(Calculations!$E$2=\"Orkney Health Board\",Calculations!$E$2=\"Orkney Islands Local Authority\"),$F174=1),0,IF(AND(OR(Calculations!$E$2=\"Shetland Health Board\",Calculations!$E$2=\"Western Isles Health Board\",Calculations!$E$2=\"Shetland Islands Local Authority\",Calculations!$E$2=\"Eilean Siar Local Authority\"),OR($F174=1,$F174=5)),0,prem_mort(VALUE(LEFT(Options!$B$14,2)),$C174,$E174,$F174,2016,$I174/10,1,$H174/10,$G174*$H174/10,RateRatios_airpollution!$E174)*10))","v":{"$error":"#VALUE!"}},{"$f":"IF(AND(OR(Calculations!$E$2=\"Orkney Health Board\",Calculations!$E$2=\"Orkney Islands Local Authority\"),$F174=1),0,IF(AND(OR(Calculations!$E$2=\"Shetland Health Board\",Calculations!$E$2=\"Western Isles Health Board\",Calculations!$E$2=\"Shetland Islands Local Authority\",Calculations!$E$2=\"Eilean Siar Local Authority\"),OR($F174=1,$F174=5)),0,prem_mort(VALUE(LEFT(Options!$B$14,2)),$C174,$E174,$F174,2016,$I174/10+$J174/10,1,$H174/10,$G174*$H174/10,RateRatios_airpollution!$E174)*10))","v":{"$error":"#VALUE!"}},{"$error":"#VALUE!"},{"$error":"#VALUE!"},{"$error":"#VALUE!"},{"$error":"#VALUE!"},{"$error":"#VALUE!"},{"$error":"#VALUE!"},{"$error":"#VALUE!"},{"$error":"#VALUE!"},{"$error":"#VALUE!"},{"$error":"#VALUE!"},{"$error":"#VALUE!"},{"$error":"#VALUE!"},{"$error":"#VALUE!"},{"$error":"#VALUE!"},{"$error":"#VALUE!"},{"$error":"#VALUE!"},{"$error":"#VALUE!"},{"$error":"#VALUE!"},{"$error":"#VALUE!"},{"$error":"#VALUE!"},{"$error":"#VALUE!"},{"$error":"#VALUE!"},{"$error":"#VALUE!"},{"$error":"#VALUE!"},5000]
[null,"Female 5-9",6.9792794999999996,81.439279999999997,"female",4,1,{"$f":"HLOOKUP(Calculations!$E$2,'Population 2016'!$C$3:$BC$249,'Population 2016'!BD175,FALSE)","v":0},0,{"$f":"HLOOKUP(Calculations!$E$2,Pop2016_in_settlements!$C$3:$BC$249,Pop2016_in_settlements!$BD175,FALSE)","v":0},{"$f":"IF(AND(OR(Calculations!$E$2=\"Orkney Health Board\",Calculations!$E$2=\"Orkney Islands Local Authority\"),$F175=1),0,IF(AND(OR(Calculations!$E$2=\"Shetland Health Board\",Calculations!$E$2=\"Western Isles Health Board\",Calculations!$E$2=\"Shetland Islands Local Authority\",Calculations!$E$2=\"Eilean Siar Local Authority\"),OR($F175=1,$F175=5)),0,new_ci(VALUE(LEFT(Options!$B$14,2)),$C175,$E175,$F175,2016,$I175/10,1,$H175/10,$G175*$H175/10,RateRatios_accidents!$B$5)*10))","v":{"$error":"#VALUE!"}},{"$f":"IF(AND(OR(Calculations!$E$2=\"Orkney Health Board\",Calculations!$E$2=\"Orkney Islands Local Authority\"),$F175=1),0,IF(AND(OR(Calculations!$E$2=\"Shetland Health Board\",Calculations!$E$2=\"Western Isles Health Board\",Calculations!$E$2=\"Shetland Islands Local Authority\",Calculations!$E$2=\"Eilean Siar Local Authority\"),OR($F175=1,$F175=5)),0,new_ci(VALUE(LEFT(Options!$B$14,2)),$C175,$E175,$F175,2016,$I175/10+$J175/10,1,$H175/10,$G175*$H175/10,RateRatios_accidents!$B$5)*10))","v":{"$error":"#VALUE!"}},{"$f":"IF(AND(OR(Calculations!$E$2=\"Orkney Health Board\",Calculations!$E$2=\"Orkney Islands Local Authority\"),$F175=1),0,IF(AND(OR(Calculations!$E$2=\"Shetland Health Board\",Calculations!$E$2=\"Western Isles Health Board\",Calculations!$E$2=\"Shetland Islands Local Authority\",Calculations!$E$2=\"Eilean Siar Local Authority\"),OR($F175=1,$F175=5)),0,new_yllv2(VALUE(LEFT(Options!$B$14,2)),$C175,$D175,$E175,$F175,2016,$I175/10,1,$H175/10,$G175*$H175/10,RateRatios_accidents!$B$5)*10))","v":{"$error":"#VALUE!"}},{"$f":"IF(AND(OR(Calculations!$E$2=\"Orkney Health Board\",Calculations!$E$2=\"Orkney Islands Local Authority\"),$F175=1),0,IF(AND(OR(Calculations!$E$2=\"Shetland Health Board\",Calculations!$E$2=\"Western Isles Health Board\",Calculations!$E$2=\"Shetland Islands Local Authority\",Calculations!$E$2=\"Eilean Siar Local Authority\"),OR($F175=1,$F175=5)),0,new_yllv2(VALUE(LEFT(Options!$B$14,2)),$C175,$D175,$E175,$F175,2016,$I175/10+$J175/10,1,$H175/10,$G175*$H175/10,RateRatios_accidents!$B$5)*10))","v":{"$error":"#VALUE!"}},{"$f":"IF(AND(OR(Calculations!$E$2=\"Orkney Health Board\",Calculations!$E$2=\"Orkney Islands Local Authority\"),$F175=1),0,IF(AND(OR(Calculations!$E$2=\"Shetland Health Board\",Calculations!$E$2=\"Western Isles Health Board\",Calculations!$E$2=\"Shetland Islands Local Authority\",Calculations!$E$2=\"Eilean Siar Local Authority\"),OR($F175=1,$F175=5)),0,hosp_count(VALUE(LEFT(Options!$B$14,2)),$C175,$E175,$F175,2016,$I175/10,1,$H175/10,$G175*$H175/10, RateRatios_accidents!$B$4, RateRatios_accidents!$B$5)*10))","v":{"$error":"#VALUE!"}},{"$f":"IF(AND(OR(Calculations!$E$2=\"Orkney Health Board\",Calculations!$E$2=\"Orkney Islands Local Authority\"),$F175=1),0,IF(AND(OR(Calculations!$E$2=\"Shetland Health Board\",Calculations!$E$2=\"Western Isles Health Board\",Calculations!$E$2=\"Shetland Islands Local Authority\",Calculations!$E$2=\"Eilean Siar Local Authority\"),OR($F175=1,$F175=5)),0,hosp_count(VALUE(LEFT(Options!$B$14,2)),$C175,$E175,$F175,2016,$I175/10+$J175/10,1,$H175/10,$G175*$H175/10, RateRatios_accidents!$B$4, RateRatios_accidents!$B$5)*10))","v":{"$error":"#VALUE!"}},{"$f":"IF(AND(OR(Calculations!$E$2=\"Orkney Health Board\",Calculations!$E$2=\"Orkney Islands Local Authority\"),$F175=1),0,IF(AND(OR(Calculations!$E$2=\"Shetland Health Board\",Calculations!$E$2=\"Western Isles Health Board\",Calculations!$E$2=\"Shetland Islands Local Authority\",Calculations!$E$2=\"Eilean Siar Local Authority\"),OR($F175=1,$F175=5)),0,prem_mort(VALUE(LEFT(Options!$B$14,2)),$C175,$E175,$F175,2016,$I175/10,1,$H175/10,$G175*$H175/10,RateRatios_accidents!$B$5)*10))","v":{"$error":"#VALUE!"}},{"$f":"IF(AND(OR(Calculations!$E$2=\"Orkney Health Board\",Calculations!$E$2=\"Orkney Islands Local Authority\"),$F175=1),0,IF(AND(OR(Calculations!$E$2=\"Shetland Health Board\",Calculations!$E$2=\"Western Isles Health Board\",Calculations!$E$2=\"Shetland Islands Local Authority\",Calculations!$E$2=\"Eilean Siar Local Authority\"),OR($F175=1,$F175=5)),0,prem_mort(VALUE(LEFT(Options!$B$14,2)),$C175,$E175,$F175,2016,$I175/10+$J175/10,1,$H175/10,$G175*$H175/10,RateRatios_accidents!$B$5)*10))","v":{"$error":"#VALUE!"}},null,{"$f":"IF(AND(OR(Calculations!$E$2=\"Orkney Health Board\",Calculations!$E$2=\"Orkney Islands Local Authority\"),$F175=1),0,IF(AND(OR(Calculations!$E$2=\"Shetland Health Board\",Calculations!$E$2=\"Western Isles Health Board\",Calculations!$E$2=\"Shetland Islands Local Authority\",Calculations!$E$2=\"Eilean Siar Local Authority\"),OR($F175=1,$F175=5)),0,new_ci(VALUE(LEFT(Options!$B$14,2)),$C175,$E175,$F175,2016,$I175/10,1,$H175/10,$G175*$H175/10,RateRatios_airpollution!$C175)*10))","v":{"$error":"#VALUE!"}},{"$f":"IF(AND(OR(Calculations!$E$2=\"Orkney Health Board\",Calculations!$E$2=\"Orkney Islands Local Authority\"),$F175=1),0,IF(AND(OR(Calculations!$E$2=\"Shetland Health Board\",Calculations!$E$2=\"Western Isles Health Board\",Calculations!$E$2=\"Shetland Islands Local Authority\",Calculations!$E$2=\"Eilean Siar Local Authority\"),OR($F175=1,$F175=5)),0,new_ci(VALUE(LEFT(Options!$B$14,2)),$C175,$E175,$F175,2016,$I175/10+$J175/10,1,$H175/10,$G175*$H175/10,RateRatios_airpollution!$C175)*10))","v":{"$error":"#VALUE!"}},{"$f":"IF(AND(OR(Calculations!$E$2=\"Orkney Health Board\",Calculations!$E$2=\"Orkney Islands Local Authority\"),$F175=1),0,IF(AND(OR(Calculations!$E$2=\"Shetland Health Board\",Calculations!$E$2=\"Western Isles Health Board\",Calculations!$E$2=\"Shetland Islands Local Authority\",Calculations!$E$2=\"Eilean Siar Local Authority\"),OR($F175=1,$F175=5)),0,new_yllv2(VALUE(LEFT(Options!$B$14,2)),$C175,$D175,$E175,$F175,2016,$I175/10,1,$H175/10,$G175*$H175/10,RateRatios_airpollution!$C175)*10))","v":{"$error":"#VALUE!"}},{"$f":"IF(AND(OR(Calculations!$E$2=\"Orkney Health Board\",Calculations!$E$2=\"Orkney Islands Local Authority\"),$F175=1),0,IF(AND(OR(Calculations!$E$2=\"Shetland Health Board\",Calculations!$E$2=\"Western Isles Health Board\",Calculations!$E$2=\"Shetland Islands Local Authority\",Calculations!$E$2=\"Eilean Siar Local Authority\"),OR($F175=1,$F175=5)),0,new_yllv2(VALUE(LEFT(Options!$B$14,2)),$C175,$D175,$E175,$F175,2016,$I175/10+$J175/10,1,$H175/10,$G175*$H175/10,RateRatios_airpollution!$C175)*10))","v":{"$error":"#VALUE!"}},{"$f":"IF(AND(OR(Calculations!$E$2=\"Orkney Health Board\",Calculations!$E$2=\"Orkney Islands Local Authority\"),$F175=1),0,IF(AND(OR(Calculations!$E$2=\"Shetland Health Board\",Calculations!$E$2=\"Western Isles Health Board\",Calculations!$E$2=\"Shetland Islands Local Authority\",Calculations!$E$2=\"Eilean Siar Local Authority\"),OR($F175=1,$F175=5)),0,hosp_count(VALUE(LEFT(Options!$B$14,2)),$C175,$E175,$F175,2016,$I175/10,1,$H175/10,$G175*$H175/10, RateRatios_airpollution!$D175, RateRatios_airpollution!$C175)*10))","v":{"$error":"#VALUE!"}},{"$f":"IF(AND(OR(Calculations!$E$2=\"Orkney Health Board\",Calculations!$E$2=\"Orkney Islands Local Authority\"),$F175=1),0,IF(AND(OR(Calculations!$E$2=\"Shetland Health Board\",Calculations!$E$2=\"Western Isles Health Board\",Calculations!$E$2=\"Shetland Islands Local Authority\",Calculations!$E$2=\"Eilean Siar Local Authority\"),OR($F175=1,$F175=5)),0,hosp_count(VALUE(LEFT(Options!$B$14,2)),$C175,$E175,$F175,2016,$I175/10+$J175/10,1,$H175/10,$G175*$H175/10, RateRatios_airpollution!$D175, RateRatios_airpollution!$C175)*10))","v":{"$error":"#VALUE!"}},{"$f":"IF(AND(OR(Calculations!$E$2=\"Orkney Health Board\",Calculations!$E$2=\"Orkney Islands Local Authority\"),$F175=1),0,IF(AND(OR(Calculations!$E$2=\"Shetland Health Board\",Calculations!$E$2=\"Western Isles Health Board\",Calculations!$E$2=\"Shetland Islands Local Authority\",Calculations!$E$2=\"Eilean Siar Local Authority\"),OR($F175=1,$F175=5)),0,prem_mort(VALUE(LEFT(Options!$B$14,2)),$C175,$E175,$F175,2016,$I175/10,1,$H175/10,$G175*$H175/10,RateRatios_airpollution!$C175)*10))","v":{"$error":"#VALUE!"}},{"$f":"IF(AND(OR(Calculations!$E$2=\"Orkney Health Board\",Calculations!$E$2=\"Orkney Islands Local Authority\"),$F175=1),0,IF(AND(OR(Calculations!$E$2=\"Shetland Health Board\",Calculations!$E$2=\"Western Isles Health Board\",Calculations!$E$2=\"Shetland Islands Local Authority\",Calculations!$E$2=\"Eilean Siar Local Authority\"),OR($F175=1,$F175=5)),0,prem_mort(VALUE(LEFT(Options!$B$14,2)),$C175,$E175,$F175,2016,$I175/10+$J175/10,1,$H175/10,$G175*$H175/10,RateRatios_airpollution!$C175)*10))","v":{"$error":"#VALUE!"}},null,{"$f":"IF(AND(OR(Calculations!$E$2=\"Orkney Health Board\",Calculations!$E$2=\"Orkney Islands Local Authority\"),$F175=1),0,IF(AND(OR(Calculations!$E$2=\"Shetland Health Board\",Calculations!$E$2=\"Western Isles Health Board\",Calculations!$E$2=\"Shetland Islands Local Authority\",Calculations!$E$2=\"Eilean Siar Local Authority\"),OR($F175=1,$F175=5)),0,new_ci(VALUE(LEFT(Options!$B$14,2)),$C175,$E175,$F175,2016,$I175/10,1,$H175/10,$G175*$H175/10,RateRatios_airpollution!$E175)*10))","v":{"$error":"#VALUE!"}},{"$f":"IF(AND(OR(Calculations!$E$2=\"Orkney Health Board\",Calculations!$E$2=\"Orkney Islands Local Authority\"),$F175=1),0,IF(AND(OR(Calculations!$E$2=\"Shetland Health Board\",Calculations!$E$2=\"Western Isles Health Board\",Calculations!$E$2=\"Shetland Islands Local Authority\",Calculations!$E$2=\"Eilean Siar Local Authority\"),OR($F175=1,$F175=5)),0,new_ci(VALUE(LEFT(Options!$B$14,2)),$C175,$E175,$F175,2016,$I175/10+$J175/10,1,$H175/10,$G175*$H175/10,RateRatios_airpollution!$E175)*10))","v":{"$error":"#VALUE!"}},{"$f":"IF(AND(OR(Calculations!$E$2=\"Orkney Health Board\",Calculations!$E$2=\"Orkney Islands Local Authority\"),$F175=1),0,IF(AND(OR(Calculations!$E$2=\"Shetland Health Board\",Calculations!$E$2=\"Western Isles Health Board\",Calculations!$E$2=\"Shetland Islands Local Authority\",Calculations!$E$2=\"Eilean Siar Local Authority\"),OR($F175=1,$F175=5)),0,new_yllv2(VALUE(LEFT(Options!$B$14,2)),$C175,$D175,$E175,$F175,2016,$I175/10,1,$H175/10,$G175*$H175/10,RateRatios_airpollution!$E175)*10))","v":{"$error":"#VALUE!"}},{"$f":"IF(AND(OR(Calculations!$E$2=\"Orkney Health Board\",Calculations!$E$2=\"Orkney Islands Local Authority\"),$F175=1),0,IF(AND(OR(Calculations!$E$2=\"Shetland Health Board\",Calculations!$E$2=\"Western Isles Health Board\",Calculations!$E$2=\"Shetland Islands Local Authority\",Calculations!$E$2=\"Eilean Siar Local Authority\"),OR($F175=1,$F175=5)),0,new_yllv2(VALUE(LEFT(Options!$B$14,2)),$C175,$D175,$E175,$F175,2016,$I175/10+$J175/10,1,$H175/10,$G175*$H175/10,RateRatios_airpollution!$E175)*10))","v":{"$error":"#VALUE!"}},{"$f":"IF(AND(OR(Calculations!$E$2=\"Orkney Health Board\",Calculations!$E$2=\"Orkney Islands Local Authority\"),$F175=1),0,IF(AND(OR(Calculations!$E$2=\"Shetland Health Board\",Calculations!$E$2=\"Western Isles Health Board\",Calculations!$E$2=\"Shetland Islands Local Authority\",Calculations!$E$2=\"Eilean Siar Local Authority\"),OR($F175=1,$F175=5)),0,hosp_count(VALUE(LEFT(Options!$B$14,2)),$C175,$E175,$F175,2016,$I175/10,1,$H175/10,$G175*$H175/10, RateRatios_airpollution!$F175, RateRatios_airpollution!$E175)*10))","v":{"$error":"#VALUE!"}},{"$f":"IF(AND(OR(Calculations!$E$2=\"Orkney Health Board\",Calculations!$E$2=\"Orkney Islands Local Authority\"),$F175=1),0,IF(AND(OR(Calculations!$E$2=\"Shetland Health Board\",Calculations!$E$2=\"Western Isles Health Board\",Calculations!$E$2=\"Shetland Islands Local Authority\",Calculations!$E$2=\"Eilean Siar Local Authority\"),OR($F175=1,$F175=5)),0,hosp_count(VALUE(LEFT(Options!$B$14,2)),$C175,$E175,$F175,2016,$I175/10+$J175/10,1,$H175/10,$G175*$H175/10, RateRatios_airpollution!$F175, RateRatios_airpollution!$E175)*10))","v":{"$error":"#VALUE!"}},{"$f":"IF(AND(OR(Calculations!$E$2=\"Orkney Health Board\",Calculations!$E$2=\"Orkney Islands Local Authority\"),$F175=1),0,IF(AND(OR(Calculations!$E$2=\"Shetland Health Board\",Calculations!$E$2=\"Western Isles Health Board\",Calculations!$E$2=\"Shetland Islands Local Authority\",Calculations!$E$2=\"Eilean Siar Local Authority\"),OR($F175=1,$F175=5)),0,prem_mort(VALUE(LEFT(Options!$B$14,2)),$C175,$E175,$F175,2016,$I175/10,1,$H175/10,$G175*$H175/10,RateRatios_airpollution!$E175)*10))","v":{"$error":"#VALUE!"}},{"$f":"IF(AND(OR(Calculations!$E$2=\"Orkney Health Board\",Calculations!$E$2=\"Orkney Islands Local Authority\"),$F175=1),0,IF(AND(OR(Calculations!$E$2=\"Shetland Health Board\",Calculations!$E$2=\"Western Isles Health Board\",Calculations!$E$2=\"Shetland Islands Local Authority\",Calculations!$E$2=\"Eilean Siar Local Authority\"),OR($F175=1,$F175=5)),0,prem_mort(VALUE(LEFT(Options!$B$14,2)),$C175,$E175,$F175,2016,$I175/10+$J175/10,1,$H175/10,$G175*$H175/10,RateRatios_airpollution!$E175)*10))","v":{"$error":"#VALUE!"}},{"$error":"#VALUE!"},{"$error":"#VALUE!"},{"$error":"#VALUE!"},{"$error":"#VALUE!"},{"$error":"#VALUE!"},{"$error":"#VALUE!"},{"$error":"#VALUE!"},{"$error":"#VALUE!"},{"$error":"#VALUE!"},{"$error":"#VALUE!"},{"$error":"#VALUE!"},{"$error":"#VALUE!"},{"$error":"#VALUE!"},{"$error":"#VALUE!"},{"$error":"#VALUE!"},{"$error":"#VALUE!"},{"$error":"#VALUE!"},{"$error":"#VALUE!"},{"$error":"#VALUE!"},{"$error":"#VALUE!"},{"$error":"#VALUE!"},{"$error":"#VALUE!"},{"$error":"#VALUE!"},{"$error":"#VALUE!"},5500]
[null,"Female 10-15",12.478312000000001,81.948309999999992,"female",4,1,{"$f":"HLOOKUP(Calculations!$E$2,'Population 2016'!$C$3:$BC$249,'Population 2016'!BD176,FALSE)","v":0},0,{"$f":"HLOOKUP(Calculations!$E$2,Pop2016_in_settlements!$C$3:$BC$249,Pop2016_in_settlements!$BD176,FALSE)","v":0},{"$f":"IF(AND(OR(Calculations!$E$2=\"Orkney Health Board\",Calculations!$E$2=\"Orkney Islands Local Authority\"),$F176=1),0,IF(AND(OR(Calculations!$E$2=\"Shetland Health Board\",Calculations!$E$2=\"Western Isles Health Board\",Calculations!$E$2=\"Shetland Islands Local Authority\",Calculations!$E$2=\"Eilean Siar Local Authority\"),OR($F176=1,$F176=5)),0,new_ci(VALUE(LEFT(Options!$B$14,2)),$C176,$E176,$F176,2016,$I176/10,1,$H176/10,$G176*$H176/10,RateRatios_accidents!$B$5)*10))","v":{"$error":"#VALUE!"}},{"$f":"IF(AND(OR(Calculations!$E$2=\"Orkney Health Board\",Calculations!$E$2=\"Orkney Islands Local Authority\"),$F176=1),0,IF(AND(OR(Calculations!$E$2=\"Shetland Health Board\",Calculations!$E$2=\"Western Isles Health Board\",Calculations!$E$2=\"Shetland Islands Local Authority\",Calculations!$E$2=\"Eilean Siar Local Authority\"),OR($F176=1,$F176=5)),0,new_ci(VALUE(LEFT(Options!$B$14,2)),$C176,$E176,$F176,2016,$I176/10+$J176/10,1,$H176/10,$G176*$H176/10,RateRatios_accidents!$B$5)*10))","v":{"$error":"#VALUE!"}},{"$f":"IF(AND(OR(Calculations!$E$2=\"Orkney Health Board\",Calculations!$E$2=\"Orkney Islands Local Authority\"),$F176=1),0,IF(AND(OR(Calculations!$E$2=\"Shetland Health Board\",Calculations!$E$2=\"Western Isles Health Board\",Calculations!$E$2=\"Shetland Islands Local Authority\",Calculations!$E$2=\"Eilean Siar Local Authority\"),OR($F176=1,$F176=5)),0,new_yllv2(VALUE(LEFT(Options!$B$14,2)),$C176,$D176,$E176,$F176,2016,$I176/10,1,$H176/10,$G176*$H176/10,RateRatios_accidents!$B$5)*10))","v":{"$error":"#VALUE!"}},{"$f":"IF(AND(OR(Calculations!$E$2=\"Orkney Health Board\",Calculations!$E$2=\"Orkney Islands Local Authority\"),$F176=1),0,IF(AND(OR(Calculations!$E$2=\"Shetland Health Board\",Calculations!$E$2=\"Western Isles Health Board\",Calculations!$E$2=\"Shetland Islands Local Authority\",Calculations!$E$2=\"Eilean Siar Local Authority\"),OR($F176=1,$F176=5)),0,new_yllv2(VALUE(LEFT(Options!$B$14,2)),$C176,$D176,$E176,$F176,2016,$I176/10+$J176/10,1,$H176/10,$G176*$H176/10,RateRatios_accidents!$B$5)*10))","v":{"$error":"#VALUE!"}},{"$f":"IF(AND(OR(Calculations!$E$2=\"Orkney Health Board\",Calculations!$E$2=\"Orkney Islands Local Authority\"),$F176=1),0,IF(AND(OR(Calculations!$E$2=\"Shetland Health Board\",Calculations!$E$2=\"Western Isles Health Board\",Calculations!$E$2=\"Shetland Islands Local Authority\",Calculations!$E$2=\"Eilean Siar Local Authority\"),OR($F176=1,$F176=5)),0,hosp_count(VALUE(LEFT(Options!$B$14,2)),$C176,$E176,$F176,2016,$I176/10,1,$H176/10,$G176*$H176/10, RateRatios_accidents!$B$4, RateRatios_accidents!$B$5)*10))","v":{"$error":"#VALUE!"}},{"$f":"IF(AND(OR(Calculations!$E$2=\"Orkney Health Board\",Calculations!$E$2=\"Orkney Islands Local Authority\"),$F176=1),0,IF(AND(OR(Calculations!$E$2=\"Shetland Health Board\",Calculations!$E$2=\"Western Isles Health Board\",Calculations!$E$2=\"Shetland Islands Local Authority\",Calculations!$E$2=\"Eilean Siar Local Authority\"),OR($F176=1,$F176=5)),0,hosp_count(VALUE(LEFT(Options!$B$14,2)),$C176,$E176,$F176,2016,$I176/10+$J176/10,1,$H176/10,$G176*$H176/10, RateRatios_accidents!$B$4, RateRatios_accidents!$B$5)*10))","v":{"$error":"#VALUE!"}},{"$f":"IF(AND(OR(Calculations!$E$2=\"Orkney Health Board\",Calculations!$E$2=\"Orkney Islands Local Authority\"),$F176=1),0,IF(AND(OR(Calculations!$E$2=\"Shetland Health Board\",Calculations!$E$2=\"Western Isles Health Board\",Calculations!$E$2=\"Shetland Islands Local Authority\",Calculations!$E$2=\"Eilean Siar Local Authority\"),OR($F176=1,$F176=5)),0,prem_mort(VALUE(LEFT(Options!$B$14,2)),$C176,$E176,$F176,2016,$I176/10,1,$H176/10,$G176*$H176/10,RateRatios_accidents!$B$5)*10))","v":{"$error":"#VALUE!"}},{"$f":"IF(AND(OR(Calculations!$E$2=\"Orkney Health Board\",Calculations!$E$2=\"Orkney Islands Local Authority\"),$F176=1),0,IF(AND(OR(Calculations!$E$2=\"Shetland Health Board\",Calculations!$E$2=\"Western Isles Health Board\",Calculations!$E$2=\"Shetland Islands Local Authority\",Calculations!$E$2=\"Eilean Siar Local Authority\"),OR($F176=1,$F176=5)),0,prem_mort(VALUE(LEFT(Options!$B$14,2)),$C176,$E176,$F176,2016,$I176/10+$J176/10,1,$H176/10,$G176*$H176/10,RateRatios_accidents!$B$5)*10))","v":{"$error":"#VALUE!"}},null,{"$f":"IF(AND(OR(Calculations!$E$2=\"Orkney Health Board\",Calculations!$E$2=\"Orkney Islands Local Authority\"),$F176=1),0,IF(AND(OR(Calculations!$E$2=\"Shetland Health Board\",Calculations!$E$2=\"Western Isles Health Board\",Calculations!$E$2=\"Shetland Islands Local Authority\",Calculations!$E$2=\"Eilean Siar Local Authority\"),OR($F176=1,$F176=5)),0,new_ci(VALUE(LEFT(Options!$B$14,2)),$C176,$E176,$F176,2016,$I176/10,1,$H176/10,$G176*$H176/10,RateRatios_airpollution!$C176)*10))","v":{"$error":"#VALUE!"}},{"$f":"IF(AND(OR(Calculations!$E$2=\"Orkney Health Board\",Calculations!$E$2=\"Orkney Islands Local Authority\"),$F176=1),0,IF(AND(OR(Calculations!$E$2=\"Shetland Health Board\",Calculations!$E$2=\"Western Isles Health Board\",Calculations!$E$2=\"Shetland Islands Local Authority\",Calculations!$E$2=\"Eilean Siar Local Authority\"),OR($F176=1,$F176=5)),0,new_ci(VALUE(LEFT(Options!$B$14,2)),$C176,$E176,$F176,2016,$I176/10+$J176/10,1,$H176/10,$G176*$H176/10,RateRatios_airpollution!$C176)*10))","v":{"$error":"#VALUE!"}},{"$f":"IF(AND(OR(Calculations!$E$2=\"Orkney Health Board\",Calculations!$E$2=\"Orkney Islands Local Authority\"),$F176=1),0,IF(AND(OR(Calculations!$E$2=\"Shetland Health Board\",Calculations!$E$2=\"Western Isles Health Board\",Calculations!$E$2=\"Shetland Islands Local Authority\",Calculations!$E$2=\"Eilean Siar Local Authority\"),OR($F176=1,$F176=5)),0,new_yllv2(VALUE(LEFT(Options!$B$14,2)),$C176,$D176,$E176,$F176,2016,$I176/10,1,$H176/10,$G176*$H176/10,RateRatios_airpollution!$C176)*10))","v":{"$error":"#VALUE!"}},{"$f":"IF(AND(OR(Calculations!$E$2=\"Orkney Health Board\",Calculations!$E$2=\"Orkney Islands Local Authority\"),$F176=1),0,IF(AND(OR(Calculations!$E$2=\"Shetland Health Board\",Calculations!$E$2=\"Western Isles Health Board\",Calculations!$E$2=\"Shetland Islands Local Authority\",Calculations!$E$2=\"Eilean Siar Local Authority\"),OR($F176=1,$F176=5)),0,new_yllv2(VALUE(LEFT(Options!$B$14,2)),$C176,$D176,$E176,$F176,2016,$I176/10+$J176/10,1,$H176/10,$G176*$H176/10,RateRatios_airpollution!$C176)*10))","v":{"$error":"#VALUE!"}},{"$f":"IF(AND(OR(Calculations!$E$2=\"Orkney Health Board\",Calculations!$E$2=\"Orkney Islands Local Authority\"),$F176=1),0,IF(AND(OR(Calculations!$E$2=\"Shetland Health Board\",Calculations!$E$2=\"Western Isles Health Board\",Calculations!$E$2=\"Shetland Islands Local Authority\",Calculations!$E$2=\"Eilean Siar Local Authority\"),OR($F176=1,$F176=5)),0,hosp_count(VALUE(LEFT(Options!$B$14,2)),$C176,$E176,$F176,2016,$I176/10,1,$H176/10,$G176*$H176/10, RateRatios_airpollution!$D176, RateRatios_airpollution!$C176)*10))","v":{"$error":"#VALUE!"}},{"$f":"IF(AND(OR(Calculations!$E$2=\"Orkney Health Board\",Calculations!$E$2=\"Orkney Islands Local Authority\"),$F176=1),0,IF(AND(OR(Calculations!$E$2=\"Shetland Health Board\",Calculations!$E$2=\"Western Isles Health Board\",Calculations!$E$2=\"Shetland Islands Local Authority\",Calculations!$E$2=\"Eilean Siar Local Authority\"),OR($F176=1,$F176=5)),0,hosp_count(VALUE(LEFT(Options!$B$14,2)),$C176,$E176,$F176,2016,$I176/10+$J176/10,1,$H176/10,$G176*$H176/10, RateRatios_airpollution!$D176, RateRatios_airpollution!$C176)*10))","v":{"$error":"#VALUE!"}},{"$f":"IF(AND(OR(Calculations!$E$2=\"Orkney Health Board\",Calculations!$E$2=\"Orkney Islands Local Authority\"),$F176=1),0,IF(AND(OR(Calculations!$E$2=\"Shetland Health Board\",Calculations!$E$2=\"Western Isles Health Board\",Calculations!$E$2=\"Shetland Islands Local Authority\",Calculations!$E$2=\"Eilean Siar Local Authority\"),OR($F176=1,$F176=5)),0,prem_mort(VALUE(LEFT(Options!$B$14,2)),$C176,$E176,$F176,2016,$I176/10,1,$H176/10,$G176*$H176/10,RateRatios_airpollution!$C176)*10))","v":{"$error":"#VALUE!"}},{"$f":"IF(AND(OR(Calculations!$E$2=\"Orkney Health Board\",Calculations!$E$2=\"Orkney Islands Local Authority\"),$F176=1),0,IF(AND(OR(Calculations!$E$2=\"Shetland Health Board\",Calculations!$E$2=\"Western Isles Health Board\",Calculations!$E$2=\"Shetland Islands Local Authority\",Calculations!$E$2=\"Eilean Siar Local Authority\"),OR($F176=1,$F176=5)),0,prem_mort(VALUE(LEFT(Options!$B$14,2)),$C176,$E176,$F176,2016,$I176/10+$J176/10,1,$H176/10,$G176*$H176/10,RateRatios_airpollution!$C176)*10))","v":{"$error":"#VALUE!"}},null,{"$f":"IF(AND(OR(Calculations!$E$2=\"Orkney Health Board\",Calculations!$E$2=\"Orkney Islands Local Authority\"),$F176=1),0,IF(AND(OR(Calculations!$E$2=\"Shetland Health Board\",Calculations!$E$2=\"Western Isles Health Board\",Calculations!$E$2=\"Shetland Islands Local Authority\",Calculations!$E$2=\"Eilean Siar Local Authority\"),OR($F176=1,$F176=5)),0,new_ci(VALUE(LEFT(Options!$B$14,2)),$C176,$E176,$F176,2016,$I176/10,1,$H176/10,$G176*$H176/10,RateRatios_airpollution!$E176)*10))","v":{"$error":"#VALUE!"}},{"$f":"IF(AND(OR(Calculations!$E$2=\"Orkney Health Board\",Calculations!$E$2=\"Orkney Islands Local Authority\"),$F176=1),0,IF(AND(OR(Calculations!$E$2=\"Shetland Health Board\",Calculations!$E$2=\"Western Isles Health Board\",Calculations!$E$2=\"Shetland Islands Local Authority\",Calculations!$E$2=\"Eilean Siar Local Authority\"),OR($F176=1,$F176=5)),0,new_ci(VALUE(LEFT(Options!$B$14,2)),$C176,$E176,$F176,2016,$I176/10+$J176/10,1,$H176/10,$G176*$H176/10,RateRatios_airpollution!$E176)*10))","v":{"$error":"#VALUE!"}},{"$f":"IF(AND(OR(Calculations!$E$2=\"Orkney Health Board\",Calculations!$E$2=\"Orkney Islands Local Authority\"),$F176=1),0,IF(AND(OR(Calculations!$E$2=\"Shetland Health Board\",Calculations!$E$2=\"Western Isles Health Board\",Calculations!$E$2=\"Shetland Islands Local Authority\",Calculations!$E$2=\"Eilean Siar Local Authority\"),OR($F176=1,$F176=5)),0,new_yllv2(VALUE(LEFT(Options!$B$14,2)),$C176,$D176,$E176,$F176,2016,$I176/10,1,$H176/10,$G176*$H176/10,RateRatios_airpollution!$E176)*10))","v":{"$error":"#VALUE!"}},{"$f":"IF(AND(OR(Calculations!$E$2=\"Orkney Health Board\",Calculations!$E$2=\"Orkney Islands Local Authority\"),$F176=1),0,IF(AND(OR(Calculations!$E$2=\"Shetland Health Board\",Calculations!$E$2=\"Western Isles Health Board\",Calculations!$E$2=\"Shetland Islands Local Authority\",Calculations!$E$2=\"Eilean Siar Local Authority\"),OR($F176=1,$F176=5)),0,new_yllv2(VALUE(LEFT(Options!$B$14,2)),$C176,$D176,$E176,$F176,2016,$I176/10+$J176/10,1,$H176/10,$G176*$H176/10,RateRatios_airpollution!$E176)*10))","v":{"$error":"#VALUE!"}},{"$f":"IF(AND(OR(Calculations!$E$2=\"Orkney Health Board\",Calculations!$E$2=\"Orkney Islands Local Authority\"),$F176=1),0,IF(AND(OR(Calculations!$E$2=\"Shetland Health Board\",Calculations!$E$2=\"Western Isles Health Board\",Calculations!$E$2=\"Shetland Islands Local Authority\",Calculations!$E$2=\"Eilean Siar Local Authority\"),OR($F176=1,$F176=5)),0,hosp_count(VALUE(LEFT(Options!$B$14,2)),$C176,$E176,$F176,2016,$I176/10,1,$H176/10,$G176*$H176/10, RateRatios_airpollution!$F176, RateRatios_airpollution!$E176)*10))","v":{"$error":"#VALUE!"}},{"$f":"IF(AND(OR(Calculations!$E$2=\"Orkney Health Board\",Calculations!$E$2=\"Orkney Islands Local Authority\"),$F176=1),0,IF(AND(OR(Calculations!$E$2=\"Shetland Health Board\",Calculations!$E$2=\"Western Isles Health Board\",Calculations!$E$2=\"Shetland Islands Local Authority\",Calculations!$E$2=\"Eilean Siar Local Authority\"),OR($F176=1,$F176=5)),0,hosp_count(VALUE(LEFT(Options!$B$14,2)),$C176,$E176,$F176,2016,$I176/10+$J176/10,1,$H176/10,$G176*$H176/10, RateRatios_airpollution!$F176, RateRatios_airpollution!$E176)*10))","v":{"$error":"#VALUE!"}},{"$f":"IF(AND(OR(Calculations!$E$2=\"Orkney Health Board\",Calculations!$E$2=\"Orkney Islands Local Authority\"),$F176=1),0,IF(AND(OR(Calculations!$E$2=\"Shetland Health Board\",Calculations!$E$2=\"Western Isles Health Board\",Calculations!$E$2=\"Shetland Islands Local Authority\",Calculations!$E$2=\"Eilean Siar Local Authority\"),OR($F176=1,$F176=5)),0,prem_mort(VALUE(LEFT(Options!$B$14,2)),$C176,$E176,$F176,2016,$I176/10,1,$H176/10,$G176*$H176/10,RateRatios_airpollution!$E176)*10))","v":{"$error":"#VALUE!"}},{"$f":"IF(AND(OR(Calculations!$E$2=\"Orkney Health Board\",Calculations!$E$2=\"Orkney Islands Local Authority\"),$F176=1),0,IF(AND(OR(Calculations!$E$2=\"Shetland Health Board\",Calculations!$E$2=\"Western Isles Health Board\",Calculations!$E$2=\"Shetland Islands Local Authority\",Calculations!$E$2=\"Eilean Siar Local Authority\"),OR($F176=1,$F176=5)),0,prem_mort(VALUE(LEFT(Options!$B$14,2)),$C176,$E176,$F176,2016,$I176/10+$J176/10,1,$H176/10,$G176*$H176/10,RateRatios_airpollution!$E176)*10))","v":{"$error":"#VALUE!"}},{"$error":"#VALUE!"},{"$error":"#VALUE!"},{"$error":"#VALUE!"},{"$error":"#VALUE!"},{"$error":"#VALUE!"},{"$error":"#VALUE!"},{"$error":"#VALUE!"},{"$error":"#VALUE!"},{"$error":"#VALUE!"},{"$error":"#VALUE!"},{"$error":"#VALUE!"},{"$error":"#VALUE!"},{"$error":"#VALUE!"},{"$error":"#VALUE!"},{"$error":"#VALUE!"},{"$error":"#VALUE!"},{"$error":"#VALUE!"},{"$error":"#VALUE!"},{"$error":"#VALUE!"},{"$error":"#VALUE!"},{"$error":"#VALUE!"},{"$error":"#VALUE!"},{"$error":"#VALUE!"},{"$error":"#VALUE!"},6600]
["SIMD Q4","Female 16-19",17.570053000000001,81.100049999999996,"female",4,1,{"$f":"HLOOKUP(Calculations!$E$2,'Population 2016'!$C$3:$BC$249,'Population 2016'!BD177,FALSE)","v":23408},0,{"$f":"HLOOKUP(Calculations!$E$2,Pop2016_in_settlements!$C$3:$BC$249,Pop2016_in_settlements!$BD177,FALSE)","v":9329},{"$f":"IF(AND(OR(Calculations!$E$2=\"Orkney Health Board\",Calculations!$E$2=\"Orkney Islands Local Authority\"),$F177=1),0,IF(AND(OR(Calculations!$E$2=\"Shetland Health Board\",Calculations!$E$2=\"Western Isles Health Board\",Calculations!$E$2=\"Shetland Islands Local Authority\",Calculations!$E$2=\"Eilean Siar Local Authority\"),OR($F177=1,$F177=5)),0,new_ci(VALUE(LEFT(Options!$B$14,2)),$C177,$E177,$F177,2016,$I177/10,1,$H177/10,$G177*$H177/10,RateRatios_accidents!$B$5)*10))","v":3.3423346879999998},{"$f":"IF(AND(OR(Calculations!$E$2=\"Orkney Health Board\",Calculations!$E$2=\"Orkney Islands Local Authority\"),$F177=1),0,IF(AND(OR(Calculations!$E$2=\"Shetland Health Board\",Calculations!$E$2=\"Western Isles Health Board\",Calculations!$E$2=\"Shetland Islands Local Authority\",Calculations!$E$2=\"Eilean Siar Local Authority\"),OR($F177=1,$F177=5)),0,new_ci(VALUE(LEFT(Options!$B$14,2)),$C177,$E177,$F177,2016,$I177/10+$J177/10,1,$H177/10,$G177*$H177/10,RateRatios_accidents!$B$5)*10))","v":3.3418020020000001},{"$f":"IF(AND(OR(Calculations!$E$2=\"Orkney Health Board\",Calculations!$E$2=\"Orkney Islands Local Authority\"),$F177=1),0,IF(AND(OR(Calculations!$E$2=\"Shetland Health Board\",Calculations!$E$2=\"Western Isles Health Board\",Calculations!$E$2=\"Shetland Islands Local Authority\",Calculations!$E$2=\"Eilean Siar Local Authority\"),OR($F177=1,$F177=5)),0,new_yllv2(VALUE(LEFT(Options!$B$14,2)),$C177,$D177,$E177,$F177,2016,$I177/10,1,$H177/10,$G177*$H177/10,RateRatios_accidents!$B$5)*10))","v":208.99617801400001},{"$f":"IF(AND(OR(Calculations!$E$2=\"Orkney Health Board\",Calculations!$E$2=\"Orkney Islands Local Authority\"),$F177=1),0,IF(AND(OR(Calculations!$E$2=\"Shetland Health Board\",Calculations!$E$2=\"Western Isles Health Board\",Calculations!$E$2=\"Shetland Islands Local Authority\",Calculations!$E$2=\"Eilean Siar Local Authority\"),OR($F177=1,$F177=5)),0,new_yllv2(VALUE(LEFT(Options!$B$14,2)),$C177,$D177,$E177,$F177,2016,$I177/10+$J177/10,1,$H177/10,$G177*$H177/10,RateRatios_accidents!$B$5)*10))","v":208.96286916000003},{"$f":"IF(AND(OR(Calculations!$E$2=\"Orkney Health Board\",Calculations!$E$2=\"Orkney Islands Local Authority\"),$F177=1),0,IF(AND(OR(Calculations!$E$2=\"Shetland Health Board\",Calculations!$E$2=\"Western Isles Health Board\",Calculations!$E$2=\"Shetland Islands Local Authority\",Calculations!$E$2=\"Eilean Siar Local Authority\"),OR($F177=1,$F177=5)),0,hosp_count(VALUE(LEFT(Options!$B$14,2)),$C177,$E177,$F177,2016,$I177/10,1,$H177/10,$G177*$H177/10, RateRatios_accidents!$B$4, RateRatios_accidents!$B$5)*10))","v":2068.4330629420001},{"$f":"IF(AND(OR(Calculations!$E$2=\"Orkney Health Board\",Calculations!$E$2=\"Orkney Islands Local Authority\"),$F177=1),0,IF(AND(OR(Calculations!$E$2=\"Shetland Health Board\",Calculations!$E$2=\"Western Isles Health Board\",Calculations!$E$2=\"Shetland Islands Local Authority\",Calculations!$E$2=\"Eilean Siar Local Authority\"),OR($F177=1,$F177=5)),0,hosp_count(VALUE(LEFT(Options!$B$14,2)),$C177,$E177,$F177,2016,$I177/10+$J177/10,1,$H177/10,$G177*$H177/10, RateRatios_accidents!$B$4, RateRatios_accidents!$B$5)*10))","v":2068.1033229069999},{"$f":"IF(AND(OR(Calculations!$E$2=\"Orkney Health Board\",Calculations!$E$2=\"Orkney Islands Local Authority\"),$F177=1),0,IF(AND(OR(Calculations!$E$2=\"Shetland Health Board\",Calculations!$E$2=\"Western Isles Health Board\",Calculations!$E$2=\"Shetland Islands Local Authority\",Calculations!$E$2=\"Eilean Siar Local Authority\"),OR($F177=1,$F177=5)),0,prem_mort(VALUE(LEFT(Options!$B$14,2)),$C177,$E177,$F177,2016,$I177/10,1,$H177/10,$G177*$H177/10,RateRatios_accidents!$B$5)*10))","v":3.3423346879999998},{"$f":"IF(AND(OR(Calculations!$E$2=\"Orkney Health Board\",Calculations!$E$2=\"Orkney Islands Local Authority\"),$F177=1),0,IF(AND(OR(Calculations!$E$2=\"Shetland Health Board\",Calculations!$E$2=\"Western Isles Health Board\",Calculations!$E$2=\"Shetland Islands Local Authority\",Calculations!$E$2=\"Eilean Siar Local Authority\"),OR($F177=1,$F177=5)),0,prem_mort(VALUE(LEFT(Options!$B$14,2)),$C177,$E177,$F177,2016,$I177/10+$J177/10,1,$H177/10,$G177*$H177/10,RateRatios_accidents!$B$5)*10))","v":3.3418020020000001},null,{"$f":"IF(AND(OR(Calculations!$E$2=\"Orkney Health Board\",Calculations!$E$2=\"Orkney Islands Local Authority\"),$F177=1),0,IF(AND(OR(Calculations!$E$2=\"Shetland Health Board\",Calculations!$E$2=\"Western Isles Health Board\",Calculations!$E$2=\"Shetland Islands Local Authority\",Calculations!$E$2=\"Eilean Siar Local Authority\"),OR($F177=1,$F177=5)),0,new_ci(VALUE(LEFT(Options!$B$14,2)),$C177,$E177,$F177,2016,$I177/10,1,$H177/10,$G177*$H177/10,RateRatios_airpollution!$C177)*10))","v":3.3423346879999998},{"$f":"IF(AND(OR(Calculations!$E$2=\"Orkney Health Board\",Calculations!$E$2=\"Orkney Islands Local Authority\"),$F177=1),0,IF(AND(OR(Calculations!$E$2=\"Shetland Health Board\",Calculations!$E$2=\"Western Isles Health Board\",Calculations!$E$2=\"Shetland Islands Local Authority\",Calculations!$E$2=\"Eilean Siar Local Authority\"),OR($F177=1,$F177=5)),0,new_ci(VALUE(LEFT(Options!$B$14,2)),$C177,$E177,$F177,2016,$I177/10+$J177/10,1,$H177/10,$G177*$H177/10,RateRatios_airpollution!$C177)*10))","v":3.3423029689999999},{"$f":"IF(AND(OR(Calculations!$E$2=\"Orkney Health Board\",Calculations!$E$2=\"Orkney Islands Local Authority\"),$F177=1),0,IF(AND(OR(Calculations!$E$2=\"Shetland Health Board\",Calculations!$E$2=\"Western Isles Health Board\",Calculations!$E$2=\"Shetland Islands Local Authority\",Calculations!$E$2=\"Eilean Siar Local Authority\"),OR($F177=1,$F177=5)),0,new_yllv2(VALUE(LEFT(Options!$B$14,2)),$C177,$D177,$E177,$F177,2016,$I177/10,1,$H177/10,$G177*$H177/10,RateRatios_airpollution!$C177)*10))","v":208.99617801400001},{"$f":"IF(AND(OR(Calculations!$E$2=\"Orkney Health Board\",Calculations!$E$2=\"Orkney Islands Local Authority\"),$F177=1),0,IF(AND(OR(Calculations!$E$2=\"Shetland Health Board\",Calculations!$E$2=\"Western Isles Health Board\",Calculations!$E$2=\"Shetland Islands Local Authority\",Calculations!$E$2=\"Eilean Siar Local Authority\"),OR($F177=1,$F177=5)),0,new_yllv2(VALUE(LEFT(Options!$B$14,2)),$C177,$D177,$E177,$F177,2016,$I177/10+$J177/10,1,$H177/10,$G177*$H177/10,RateRatios_airpollution!$C177)*10))","v":208.99419462499998},{"$f":"IF(AND(OR(Calculations!$E$2=\"Orkney Health Board\",Calculations!$E$2=\"Orkney Islands Local Authority\"),$F177=1),0,IF(AND(OR(Calculations!$E$2=\"Shetland Health Board\",Calculations!$E$2=\"Western Isles Health Board\",Calculations!$E$2=\"Shetland Islands Local Authority\",Calculations!$E$2=\"Eilean Siar Local Authority\"),OR($F177=1,$F177=5)),0,hosp_count(VALUE(LEFT(Options!$B$14,2)),$C177,$E177,$F177,2016,$I177/10,1,$H177/10,$G177*$H177/10, RateRatios_airpollution!$D177, RateRatios_airpollution!$C177)*10))","v":2068.4330629420001},{"$f":"IF(AND(OR(Calculations!$E$2=\"Orkney Health Board\",Calculations!$E$2=\"Orkney Islands Local Authority\"),$F177=1),0,IF(AND(OR(Calculations!$E$2=\"Shetland Health Board\",Calculations!$E$2=\"Western Isles Health Board\",Calculations!$E$2=\"Shetland Islands Local Authority\",Calculations!$E$2=\"Eilean Siar Local Authority\"),OR($F177=1,$F177=5)),0,hosp_count(VALUE(LEFT(Options!$B$14,2)),$C177,$E177,$F177,2016,$I177/10+$J177/10,1,$H177/10,$G177*$H177/10, RateRatios_airpollution!$D177, RateRatios_airpollution!$C177)*10))","v":2068.3963785159999},{"$f":"IF(AND(OR(Calculations!$E$2=\"Orkney Health Board\",Calculations!$E$2=\"Orkney Islands Local Authority\"),$F177=1),0,IF(AND(OR(Calculations!$E$2=\"Shetland Health Board\",Calculations!$E$2=\"Western Isles Health Board\",Calculations!$E$2=\"Shetland Islands Local Authority\",Calculations!$E$2=\"Eilean Siar Local Authority\"),OR($F177=1,$F177=5)),0,prem_mort(VALUE(LEFT(Options!$B$14,2)),$C177,$E177,$F177,2016,$I177/10,1,$H177/10,$G177*$H177/10,RateRatios_airpollution!$C177)*10))","v":3.3423346879999998},{"$f":"IF(AND(OR(Calculations!$E$2=\"Orkney Health Board\",Calculations!$E$2=\"Orkney Islands Local Authority\"),$F177=1),0,IF(AND(OR(Calculations!$E$2=\"Shetland Health Board\",Calculations!$E$2=\"Western Isles Health Board\",Calculations!$E$2=\"Shetland Islands Local Authority\",Calculations!$E$2=\"Eilean Siar Local Authority\"),OR($F177=1,$F177=5)),0,prem_mort(VALUE(LEFT(Options!$B$14,2)),$C177,$E177,$F177,2016,$I177/10+$J177/10,1,$H177/10,$G177*$H177/10,RateRatios_airpollution!$C177)*10))","v":3.3423029689999999},null,{"$f":"IF(AND(OR(Calculations!$E$2=\"Orkney Health Board\",Calculations!$E$2=\"Orkney Islands Local Authority\"),$F177=1),0,IF(AND(OR(Calculations!$E$2=\"Shetland Health Board\",Calculations!$E$2=\"Western Isles Health Board\",Calculations!$E$2=\"Shetland Islands Local Authority\",Calculations!$E$2=\"Eilean Siar Local Authority\"),OR($F177=1,$F177=5)),0,new_ci(VALUE(LEFT(Options!$B$14,2)),$C177,$E177,$F177,2016,$I177/10,1,$H177/10,$G177*$H177/10,RateRatios_airpollution!$E177)*10))","v":3.3423346879999998},{"$f":"IF(AND(OR(Calculations!$E$2=\"Orkney Health Board\",Calculations!$E$2=\"Orkney Islands Local Authority\"),$F177=1),0,IF(AND(OR(Calculations!$E$2=\"Shetland Health Board\",Calculations!$E$2=\"Western Isles Health Board\",Calculations!$E$2=\"Shetland Islands Local Authority\",Calculations!$E$2=\"Eilean Siar Local Authority\"),OR($F177=1,$F177=5)),0,new_ci(VALUE(LEFT(Options!$B$14,2)),$C177,$E177,$F177,2016,$I177/10+$J177/10,1,$H177/10,$G177*$H177/10,RateRatios_airpollution!$E177)*10))","v":3.3423206950000002},{"$f":"IF(AND(OR(Calculations!$E$2=\"Orkney Health Board\",Calculations!$E$2=\"Orkney Islands Local Authority\"),$F177=1),0,IF(AND(OR(Calculations!$E$2=\"Shetland Health Board\",Calculations!$E$2=\"Western Isles Health Board\",Calculations!$E$2=\"Shetland Islands Local Authority\",Calculations!$E$2=\"Eilean Siar Local Authority\"),OR($F177=1,$F177=5)),0,new_yllv2(VALUE(LEFT(Options!$B$14,2)),$C177,$D177,$E177,$F177,2016,$I177/10,1,$H177/10,$G177*$H177/10,RateRatios_airpollution!$E177)*10))","v":208.99617801400001},{"$f":"IF(AND(OR(Calculations!$E$2=\"Orkney Health Board\",Calculations!$E$2=\"Orkney Islands Local Authority\"),$F177=1),0,IF(AND(OR(Calculations!$E$2=\"Shetland Health Board\",Calculations!$E$2=\"Western Isles Health Board\",Calculations!$E$2=\"Shetland Islands Local Authority\",Calculations!$E$2=\"Eilean Siar Local Authority\"),OR($F177=1,$F177=5)),0,new_yllv2(VALUE(LEFT(Options!$B$14,2)),$C177,$D177,$E177,$F177,2016,$I177/10+$J177/10,1,$H177/10,$G177*$H177/10,RateRatios_airpollution!$E177)*10))","v":208.99530303099999},{"$f":"IF(AND(OR(Calculations!$E$2=\"Orkney Health Board\",Calculations!$E$2=\"Orkney Islands Local Authority\"),$F177=1),0,IF(AND(OR(Calculations!$E$2=\"Shetland Health Board\",Calculations!$E$2=\"Western Isles Health Board\",Calculations!$E$2=\"Shetland Islands Local Authority\",Calculations!$E$2=\"Eilean Siar Local Authority\"),OR($F177=1,$F177=5)),0,hosp_count(VALUE(LEFT(Options!$B$14,2)),$C177,$E177,$F177,2016,$I177/10,1,$H177/10,$G177*$H177/10, RateRatios_airpollution!$F177, RateRatios_airpollution!$E177)*10))","v":2068.4330629420001},{"$f":"IF(AND(OR(Calculations!$E$2=\"Orkney Health Board\",Calculations!$E$2=\"Orkney Islands Local Authority\"),$F177=1),0,IF(AND(OR(Calculations!$E$2=\"Shetland Health Board\",Calculations!$E$2=\"Western Isles Health Board\",Calculations!$E$2=\"Shetland Islands Local Authority\",Calculations!$E$2=\"Eilean Siar Local Authority\"),OR($F177=1,$F177=5)),0,hosp_count(VALUE(LEFT(Options!$B$14,2)),$C177,$E177,$F177,2016,$I177/10+$J177/10,1,$H177/10,$G177*$H177/10, RateRatios_airpollution!$F177, RateRatios_airpollution!$E177)*10))","v":2068.4330629420001},{"$f":"IF(AND(OR(Calculations!$E$2=\"Orkney Health Board\",Calculations!$E$2=\"Orkney Islands Local Authority\"),$F177=1),0,IF(AND(OR(Calculations!$E$2=\"Shetland Health Board\",Calculations!$E$2=\"Western Isles Health Board\",Calculations!$E$2=\"Shetland Islands Local Authority\",Calculations!$E$2=\"Eilean Siar Local Authority\"),OR($F177=1,$F177=5)),0,prem_mort(VALUE(LEFT(Options!$B$14,2)),$C177,$E177,$F177,2016,$I177/10,1,$H177/10,$G177*$H177/10,RateRatios_airpollution!$E177)*10))","v":3.3423346879999998},{"$f":"IF(AND(OR(Calculations!$E$2=\"Orkney Health Board\",Calculations!$E$2=\"Orkney Islands Local Authority\"),$F177=1),0,IF(AND(OR(Calculations!$E$2=\"Shetland Health Board\",Calculations!$E$2=\"Western Isles Health Board\",Calculations!$E$2=\"Shetland Islands Local Authority\",Calculations!$E$2=\"Eilean Siar Local Authority\"),OR($F177=1,$F177=5)),0,prem_mort(VALUE(LEFT(Options!$B$14,2)),$C177,$E177,$F177,2016,$I177/10+$J177/10,1,$H177/10,$G177*$H177/10,RateRatios_airpollution!$E177)*10))","v":3.3423206950000002},3.3423346879999998,3.3417562900000006,208.99617801400001,208.96001078799998,2068.4330629420001,2068.0666384809997,3.3423346879999998,3.3417562900000006,14.278599999999999,14.276129058441562,892.84081516575543,892.68630719412147,8836.436529998291,8834.8711486713928,14.278599999999999,14.276129058441562,62825.84,62814.967857142874,3928499.586729324,3927819.7516541346,38880320.731992483,38873433.054154128,62825.84,62814.967857142874,4400]
[null,"Female 20-24",22.077057,81.667060000000006,"female",4,1,{"$f":"HLOOKUP(Calculations!$E$2,'Population 2016'!$C$3:$BC$249,'Population 2016'!BD178,FALSE)","v":34833},0,{"$f":"HLOOKUP(Calculations!$E$2,Pop2016_in_settlements!$C$3:$BC$249,Pop2016_in_settlements!$BD178,FALSE)","v":16133},{"$f":"IF(AND(OR(Calculations!$E$2=\"Orkney Health Board\",Calculations!$E$2=\"Orkney Islands Local Authority\"),$F178=1),0,IF(AND(OR(Calculations!$E$2=\"Shetland Health Board\",Calculations!$E$2=\"Western Isles Health Board\",Calculations!$E$2=\"Shetland Islands Local Authority\",Calculations!$E$2=\"Eilean Siar Local Authority\"),OR($F178=1,$F178=5)),0,new_ci(VALUE(LEFT(Options!$B$14,2)),$C178,$E178,$F178,2016,$I178/10,1,$H178/10,$G178*$H178/10,RateRatios_accidents!$B$5)*10))","v":7.2970049380000006},{"$f":"IF(AND(OR(Calculations!$E$2=\"Orkney Health Board\",Calculations!$E$2=\"Orkney Islands Local Authority\"),$F178=1),0,IF(AND(OR(Calculations!$E$2=\"Shetland Health Board\",Calculations!$E$2=\"Western Isles Health Board\",Calculations!$E$2=\"Shetland Islands Local Authority\",Calculations!$E$2=\"Eilean Siar Local Authority\"),OR($F178=1,$F178=5)),0,new_ci(VALUE(LEFT(Options!$B$14,2)),$C178,$E178,$F178,2016,$I178/10+$J178/10,1,$H178/10,$G178*$H178/10,RateRatios_accidents!$B$5)*10))","v":7.295652993},{"$f":"IF(AND(OR(Calculations!$E$2=\"Orkney Health Board\",Calculations!$E$2=\"Orkney Islands Local Authority\"),$F178=1),0,IF(AND(OR(Calculations!$E$2=\"Shetland Health Board\",Calculations!$E$2=\"Western Isles Health Board\",Calculations!$E$2=\"Shetland Islands Local Authority\",Calculations!$E$2=\"Eilean Siar Local Authority\"),OR($F178=1,$F178=5)),0,new_yllv2(VALUE(LEFT(Options!$B$14,2)),$C178,$D178,$E178,$F178,2016,$I178/10,1,$H178/10,$G178*$H178/10,RateRatios_accidents!$B$5)*10))","v":427.53154120799996},{"$f":"IF(AND(OR(Calculations!$E$2=\"Orkney Health Board\",Calculations!$E$2=\"Orkney Islands Local Authority\"),$F178=1),0,IF(AND(OR(Calculations!$E$2=\"Shetland Health Board\",Calculations!$E$2=\"Western Isles Health Board\",Calculations!$E$2=\"Shetland Islands Local Authority\",Calculations!$E$2=\"Eilean Siar Local Authority\"),OR($F178=1,$F178=5)),0,new_yllv2(VALUE(LEFT(Options!$B$14,2)),$C178,$D178,$E178,$F178,2016,$I178/10+$J178/10,1,$H178/10,$G178*$H178/10,RateRatios_accidents!$B$5)*10))","v":427.45233074700002},{"$f":"IF(AND(OR(Calculations!$E$2=\"Orkney Health Board\",Calculations!$E$2=\"Orkney Islands Local Authority\"),$F178=1),0,IF(AND(OR(Calculations!$E$2=\"Shetland Health Board\",Calculations!$E$2=\"Western Isles Health Board\",Calculations!$E$2=\"Shetland Islands Local Authority\",Calculations!$E$2=\"Eilean Siar Local Authority\"),OR($F178=1,$F178=5)),0,hosp_count(VALUE(LEFT(Options!$B$14,2)),$C178,$E178,$F178,2016,$I178/10,1,$H178/10,$G178*$H178/10, RateRatios_accidents!$B$4, RateRatios_accidents!$B$5)*10))","v":3447.4902269469999},{"$f":"IF(AND(OR(Calculations!$E$2=\"Orkney Health Board\",Calculations!$E$2=\"Orkney Islands Local Authority\"),$F178=1),0,IF(AND(OR(Calculations!$E$2=\"Shetland Health Board\",Calculations!$E$2=\"Western Isles Health Board\",Calculations!$E$2=\"Shetland Islands Local Authority\",Calculations!$E$2=\"Eilean Siar Local Authority\"),OR($F178=1,$F178=5)),0,hosp_count(VALUE(LEFT(Options!$B$14,2)),$C178,$E178,$F178,2016,$I178/10+$J178/10,1,$H178/10,$G178*$H178/10, RateRatios_accidents!$B$4, RateRatios_accidents!$B$5)*10))","v":3446.8515408370004},{"$f":"IF(AND(OR(Calculations!$E$2=\"Orkney Health Board\",Calculations!$E$2=\"Orkney Islands Local Authority\"),$F178=1),0,IF(AND(OR(Calculations!$E$2=\"Shetland Health Board\",Calculations!$E$2=\"Western Isles Health Board\",Calculations!$E$2=\"Shetland Islands Local Authority\",Calculations!$E$2=\"Eilean Siar Local Authority\"),OR($F178=1,$F178=5)),0,prem_mort(VALUE(LEFT(Options!$B$14,2)),$C178,$E178,$F178,2016,$I178/10,1,$H178/10,$G178*$H178/10,RateRatios_accidents!$B$5)*10))","v":7.2970049380000006},{"$f":"IF(AND(OR(Calculations!$E$2=\"Orkney Health Board\",Calculations!$E$2=\"Orkney Islands Local Authority\"),$F178=1),0,IF(AND(OR(Calculations!$E$2=\"Shetland Health Board\",Calculations!$E$2=\"Western Isles Health Board\",Calculations!$E$2=\"Shetland Islands Local Authority\",Calculations!$E$2=\"Eilean Siar Local Authority\"),OR($F178=1,$F178=5)),0,prem_mort(VALUE(LEFT(Options!$B$14,2)),$C178,$E178,$F178,2016,$I178/10+$J178/10,1,$H178/10,$G178*$H178/10,RateRatios_accidents!$B$5)*10))","v":7.295652993},null,{"$f":"IF(AND(OR(Calculations!$E$2=\"Orkney Health Board\",Calculations!$E$2=\"Orkney Islands Local Authority\"),$F178=1),0,IF(AND(OR(Calculations!$E$2=\"Shetland Health Board\",Calculations!$E$2=\"Western Isles Health Board\",Calculations!$E$2=\"Shetland Islands Local Authority\",Calculations!$E$2=\"Eilean Siar Local Authority\"),OR($F178=1,$F178=5)),0,new_ci(VALUE(LEFT(Options!$B$14,2)),$C178,$E178,$F178,2016,$I178/10,1,$H178/10,$G178*$H178/10,RateRatios_airpollution!$C178)*10))","v":7.2970049380000006},{"$f":"IF(AND(OR(Calculations!$E$2=\"Orkney Health Board\",Calculations!$E$2=\"Orkney Islands Local Authority\"),$F178=1),0,IF(AND(OR(Calculations!$E$2=\"Shetland Health Board\",Calculations!$E$2=\"Western Isles Health Board\",Calculations!$E$2=\"Shetland Islands Local Authority\",Calculations!$E$2=\"Eilean Siar Local Authority\"),OR($F178=1,$F178=5)),0,new_ci(VALUE(LEFT(Options!$B$14,2)),$C178,$E178,$F178,2016,$I178/10+$J178/10,1,$H178/10,$G178*$H178/10,RateRatios_airpollution!$C178)*10))","v":7.2968984599999995},{"$f":"IF(AND(OR(Calculations!$E$2=\"Orkney Health Board\",Calculations!$E$2=\"Orkney Islands Local Authority\"),$F178=1),0,IF(AND(OR(Calculations!$E$2=\"Shetland Health Board\",Calculations!$E$2=\"Western Isles Health Board\",Calculations!$E$2=\"Shetland Islands Local Authority\",Calculations!$E$2=\"Eilean Siar Local Authority\"),OR($F178=1,$F178=5)),0,new_yllv2(VALUE(LEFT(Options!$B$14,2)),$C178,$D178,$E178,$F178,2016,$I178/10,1,$H178/10,$G178*$H178/10,RateRatios_airpollution!$C178)*10))","v":427.53154120799996},{"$f":"IF(AND(OR(Calculations!$E$2=\"Orkney Health Board\",Calculations!$E$2=\"Orkney Islands Local Authority\"),$F178=1),0,IF(AND(OR(Calculations!$E$2=\"Shetland Health Board\",Calculations!$E$2=\"Western Isles Health Board\",Calculations!$E$2=\"Shetland Islands Local Authority\",Calculations!$E$2=\"Eilean Siar Local Authority\"),OR($F178=1,$F178=5)),0,new_yllv2(VALUE(LEFT(Options!$B$14,2)),$C178,$D178,$E178,$F178,2016,$I178/10+$J178/10,1,$H178/10,$G178*$H178/10,RateRatios_airpollution!$C178)*10))","v":427.52530266199994},{"$f":"IF(AND(OR(Calculations!$E$2=\"Orkney Health Board\",Calculations!$E$2=\"Orkney Islands Local Authority\"),$F178=1),0,IF(AND(OR(Calculations!$E$2=\"Shetland Health Board\",Calculations!$E$2=\"Western Isles Health Board\",Calculations!$E$2=\"Shetland Islands Local Authority\",Calculations!$E$2=\"Eilean Siar Local Authority\"),OR($F178=1,$F178=5)),0,hosp_count(VALUE(LEFT(Options!$B$14,2)),$C178,$E178,$F178,2016,$I178/10,1,$H178/10,$G178*$H178/10, RateRatios_airpollution!$D178, RateRatios_airpollution!$C178)*10))","v":3447.4902269469999},{"$f":"IF(AND(OR(Calculations!$E$2=\"Orkney Health Board\",Calculations!$E$2=\"Orkney Islands Local Authority\"),$F178=1),0,IF(AND(OR(Calculations!$E$2=\"Shetland Health Board\",Calculations!$E$2=\"Western Isles Health Board\",Calculations!$E$2=\"Shetland Islands Local Authority\",Calculations!$E$2=\"Eilean Siar Local Authority\"),OR($F178=1,$F178=5)),0,hosp_count(VALUE(LEFT(Options!$B$14,2)),$C178,$E178,$F178,2016,$I178/10+$J178/10,1,$H178/10,$G178*$H178/10, RateRatios_airpollution!$D178, RateRatios_airpollution!$C178)*10))","v":3447.395844057},{"$f":"IF(AND(OR(Calculations!$E$2=\"Orkney Health Board\",Calculations!$E$2=\"Orkney Islands Local Authority\"),$F178=1),0,IF(AND(OR(Calculations!$E$2=\"Shetland Health Board\",Calculations!$E$2=\"Western Isles Health Board\",Calculations!$E$2=\"Shetland Islands Local Authority\",Calculations!$E$2=\"Eilean Siar Local Authority\"),OR($F178=1,$F178=5)),0,prem_mort(VALUE(LEFT(Options!$B$14,2)),$C178,$E178,$F178,2016,$I178/10,1,$H178/10,$G178*$H178/10,RateRatios_airpollution!$C178)*10))","v":7.2970049380000006},{"$f":"IF(AND(OR(Calculations!$E$2=\"Orkney Health Board\",Calculations!$E$2=\"Orkney Islands Local Authority\"),$F178=1),0,IF(AND(OR(Calculations!$E$2=\"Shetland Health Board\",Calculations!$E$2=\"Western Isles Health Board\",Calculations!$E$2=\"Shetland Islands Local Authority\",Calculations!$E$2=\"Eilean Siar Local Authority\"),OR($F178=1,$F178=5)),0,prem_mort(VALUE(LEFT(Options!$B$14,2)),$C178,$E178,$F178,2016,$I178/10+$J178/10,1,$H178/10,$G178*$H178/10,RateRatios_airpollution!$C178)*10))","v":7.2968984599999995},null,{"$f":"IF(AND(OR(Calculations!$E$2=\"Orkney Health Board\",Calculations!$E$2=\"Orkney Islands Local Authority\"),$F178=1),0,IF(AND(OR(Calculations!$E$2=\"Shetland Health Board\",Calculations!$E$2=\"Western Isles Health Board\",Calculations!$E$2=\"Shetland Islands Local Authority\",Calculations!$E$2=\"Eilean Siar Local Authority\"),OR($F178=1,$F178=5)),0,new_ci(VALUE(LEFT(Options!$B$14,2)),$C178,$E178,$F178,2016,$I178/10,1,$H178/10,$G178*$H178/10,RateRatios_airpollution!$E178)*10))","v":7.2970049380000006},{"$f":"IF(AND(OR(Calculations!$E$2=\"Orkney Health Board\",Calculations!$E$2=\"Orkney Islands Local Authority\"),$F178=1),0,IF(AND(OR(Calculations!$E$2=\"Shetland Health Board\",Calculations!$E$2=\"Western Isles Health Board\",Calculations!$E$2=\"Shetland Islands Local Authority\",Calculations!$E$2=\"Eilean Siar Local Authority\"),OR($F178=1,$F178=5)),0,new_ci(VALUE(LEFT(Options!$B$14,2)),$C178,$E178,$F178,2016,$I178/10+$J178/10,1,$H178/10,$G178*$H178/10,RateRatios_airpollution!$E178)*10))","v":7.2969613789999999},{"$f":"IF(AND(OR(Calculations!$E$2=\"Orkney Health Board\",Calculations!$E$2=\"Orkney Islands Local Authority\"),$F178=1),0,IF(AND(OR(Calculations!$E$2=\"Shetland Health Board\",Calculations!$E$2=\"Western Isles Health Board\",Calculations!$E$2=\"Shetland Islands Local Authority\",Calculations!$E$2=\"Eilean Siar Local Authority\"),OR($F178=1,$F178=5)),0,new_yllv2(VALUE(LEFT(Options!$B$14,2)),$C178,$D178,$E178,$F178,2016,$I178/10,1,$H178/10,$G178*$H178/10,RateRatios_airpollution!$E178)*10))","v":427.53154120799996},{"$f":"IF(AND(OR(Calculations!$E$2=\"Orkney Health Board\",Calculations!$E$2=\"Orkney Islands Local Authority\"),$F178=1),0,IF(AND(OR(Calculations!$E$2=\"Shetland Health Board\",Calculations!$E$2=\"Western Isles Health Board\",Calculations!$E$2=\"Shetland Islands Local Authority\",Calculations!$E$2=\"Eilean Siar Local Authority\"),OR($F178=1,$F178=5)),0,new_yllv2(VALUE(LEFT(Options!$B$14,2)),$C178,$D178,$E178,$F178,2016,$I178/10+$J178/10,1,$H178/10,$G178*$H178/10,RateRatios_airpollution!$E178)*10))","v":427.52898908600002},{"$f":"IF(AND(OR(Calculations!$E$2=\"Orkney Health Board\",Calculations!$E$2=\"Orkney Islands Local Authority\"),$F178=1),0,IF(AND(OR(Calculations!$E$2=\"Shetland Health Board\",Calculations!$E$2=\"Western Isles Health Board\",Calculations!$E$2=\"Shetland Islands Local Authority\",Calculations!$E$2=\"Eilean Siar Local Authority\"),OR($F178=1,$F178=5)),0,hosp_count(VALUE(LEFT(Options!$B$14,2)),$C178,$E178,$F178,2016,$I178/10,1,$H178/10,$G178*$H178/10, RateRatios_airpollution!$F178, RateRatios_airpollution!$E178)*10))","v":3447.4902269469999},{"$f":"IF(AND(OR(Calculations!$E$2=\"Orkney Health Board\",Calculations!$E$2=\"Orkney Islands Local Authority\"),$F178=1),0,IF(AND(OR(Calculations!$E$2=\"Shetland Health Board\",Calculations!$E$2=\"Western Isles Health Board\",Calculations!$E$2=\"Shetland Islands Local Authority\",Calculations!$E$2=\"Eilean Siar Local Authority\"),OR($F178=1,$F178=5)),0,hosp_count(VALUE(LEFT(Options!$B$14,2)),$C178,$E178,$F178,2016,$I178/10+$J178/10,1,$H178/10,$G178*$H178/10, RateRatios_airpollution!$F178, RateRatios_airpollution!$E178)*10))","v":3447.4902269469999},{"$f":"IF(AND(OR(Calculations!$E$2=\"Orkney Health Board\",Calculations!$E$2=\"Orkney Islands Local Authority\"),$F178=1),0,IF(AND(OR(Calculations!$E$2=\"Shetland Health Board\",Calculations!$E$2=\"Western Isles Health Board\",Calculations!$E$2=\"Shetland Islands Local Authority\",Calculations!$E$2=\"Eilean Siar Local Authority\"),OR($F178=1,$F178=5)),0,prem_mort(VALUE(LEFT(Options!$B$14,2)),$C178,$E178,$F178,2016,$I178/10,1,$H178/10,$G178*$H178/10,RateRatios_airpollution!$E178)*10))","v":7.2970049380000006},{"$f":"IF(AND(OR(Calculations!$E$2=\"Orkney Health Board\",Calculations!$E$2=\"Orkney Islands Local Authority\"),$F178=1),0,IF(AND(OR(Calculations!$E$2=\"Shetland Health Board\",Calculations!$E$2=\"Western Isles Health Board\",Calculations!$E$2=\"Shetland Islands Local Authority\",Calculations!$E$2=\"Eilean Siar Local Authority\"),OR($F178=1,$F178=5)),0,prem_mort(VALUE(LEFT(Options!$B$14,2)),$C178,$E178,$F178,2016,$I178/10+$J178/10,1,$H178/10,$G178*$H178/10,RateRatios_airpollution!$E178)*10))","v":7.2969613789999999},7.2970049380000006,7.2955029559999982,427.53154120799996,427.44354007900006,3447.4902269469999,3446.7571579470005,7.2970049380000006,7.2955029559999982,20.948539999425833,20.944228048115288,1227.3750214107311,1227.1223841730546,9897.1958399994255,9895.0913155542166,20.948539999425833,20.944228048115288,125691.239996555,125665.36828869174,7364250.1284643859,7362734.3050383274,59383175.039996549,59370547.893325299,125691.239996555,125665.36828869174,6000]
[null,"Female 25-29",26.975186999999998,81.645189999999999,"female",4,1,{"$f":"HLOOKUP(Calculations!$E$2,'Population 2016'!$C$3:$BC$249,'Population 2016'!BD179,FALSE)","v":33433},0,{"$f":"HLOOKUP(Calculations!$E$2,Pop2016_in_settlements!$C$3:$BC$249,Pop2016_in_settlements!$BD179,FALSE)","v":14390},{"$f":"IF(AND(OR(Calculations!$E$2=\"Orkney Health Board\",Calculations!$E$2=\"Orkney Islands Local Authority\"),$F179=1),0,IF(AND(OR(Calculations!$E$2=\"Shetland Health Board\",Calculations!$E$2=\"Western Isles Health Board\",Calculations!$E$2=\"Shetland Islands Local Authority\",Calculations!$E$2=\"Eilean Siar Local Authority\"),OR($F179=1,$F179=5)),0,new_ci(VALUE(LEFT(Options!$B$14,2)),$C179,$E179,$F179,2016,$I179/10,1,$H179/10,$G179*$H179/10,RateRatios_accidents!$B$5)*10))","v":10.622720583},{"$f":"IF(AND(OR(Calculations!$E$2=\"Orkney Health Board\",Calculations!$E$2=\"Orkney Islands Local Authority\"),$F179=1),0,IF(AND(OR(Calculations!$E$2=\"Shetland Health Board\",Calculations!$E$2=\"Western Isles Health Board\",Calculations!$E$2=\"Shetland Islands Local Authority\",Calculations!$E$2=\"Eilean Siar Local Authority\"),OR($F179=1,$F179=5)),0,new_ci(VALUE(LEFT(Options!$B$14,2)),$C179,$E179,$F179,2016,$I179/10+$J179/10,1,$H179/10,$G179*$H179/10,RateRatios_accidents!$B$5)*10))","v":10.620893053},{"$f":"IF(AND(OR(Calculations!$E$2=\"Orkney Health Board\",Calculations!$E$2=\"Orkney Islands Local Authority\"),$F179=1),0,IF(AND(OR(Calculations!$E$2=\"Shetland Health Board\",Calculations!$E$2=\"Western Isles Health Board\",Calculations!$E$2=\"Shetland Islands Local Authority\",Calculations!$E$2=\"Eilean Siar Local Authority\"),OR($F179=1,$F179=5)),0,new_yllv2(VALUE(LEFT(Options!$B$14,2)),$C179,$D179,$E179,$F179,2016,$I179/10,1,$H179/10,$G179*$H179/10,RateRatios_accidents!$B$5)*10))","v":570.121445558},{"$f":"IF(AND(OR(Calculations!$E$2=\"Orkney Health Board\",Calculations!$E$2=\"Orkney Islands Local Authority\"),$F179=1),0,IF(AND(OR(Calculations!$E$2=\"Shetland Health Board\",Calculations!$E$2=\"Western Isles Health Board\",Calculations!$E$2=\"Shetland Islands Local Authority\",Calculations!$E$2=\"Eilean Siar Local Authority\"),OR($F179=1,$F179=5)),0,new_yllv2(VALUE(LEFT(Options!$B$14,2)),$C179,$D179,$E179,$F179,2016,$I179/10+$J179/10,1,$H179/10,$G179*$H179/10,RateRatios_accidents!$B$5)*10))","v":570.02336201699995},{"$f":"IF(AND(OR(Calculations!$E$2=\"Orkney Health Board\",Calculations!$E$2=\"Orkney Islands Local Authority\"),$F179=1),0,IF(AND(OR(Calculations!$E$2=\"Shetland Health Board\",Calculations!$E$2=\"Western Isles Health Board\",Calculations!$E$2=\"Shetland Islands Local Authority\",Calculations!$E$2=\"Eilean Siar Local Authority\"),OR($F179=1,$F179=5)),0,hosp_count(VALUE(LEFT(Options!$B$14,2)),$C179,$E179,$F179,2016,$I179/10,1,$H179/10,$G179*$H179/10, RateRatios_accidents!$B$4, RateRatios_accidents!$B$5)*10))","v":3742.7879046869998},{"$f":"IF(AND(OR(Calculations!$E$2=\"Orkney Health Board\",Calculations!$E$2=\"Orkney Islands Local Authority\"),$F179=1),0,IF(AND(OR(Calculations!$E$2=\"Shetland Health Board\",Calculations!$E$2=\"Western Isles Health Board\",Calculations!$E$2=\"Shetland Islands Local Authority\",Calculations!$E$2=\"Eilean Siar Local Authority\"),OR($F179=1,$F179=5)),0,hosp_count(VALUE(LEFT(Options!$B$14,2)),$C179,$E179,$F179,2016,$I179/10+$J179/10,1,$H179/10,$G179*$H179/10, RateRatios_accidents!$B$4, RateRatios_accidents!$B$5)*10))","v":3742.1435262429995},{"$f":"IF(AND(OR(Calculations!$E$2=\"Orkney Health Board\",Calculations!$E$2=\"Orkney Islands Local Authority\"),$F179=1),0,IF(AND(OR(Calculations!$E$2=\"Shetland Health Board\",Calculations!$E$2=\"Western Isles Health Board\",Calculations!$E$2=\"Shetland Islands Local Authority\",Calculations!$E$2=\"Eilean Siar Local Authority\"),OR($F179=1,$F179=5)),0,prem_mort(VALUE(LEFT(Options!$B$14,2)),$C179,$E179,$F179,2016,$I179/10,1,$H179/10,$G179*$H179/10,RateRatios_accidents!$B$5)*10))","v":10.622720583},{"$f":"IF(AND(OR(Calculations!$E$2=\"Orkney Health Board\",Calculations!$E$2=\"Orkney Islands Local Authority\"),$F179=1),0,IF(AND(OR(Calculations!$E$2=\"Shetland Health Board\",Calculations!$E$2=\"Western Isles Health Board\",Calculations!$E$2=\"Shetland Islands Local Authority\",Calculations!$E$2=\"Eilean Siar Local Authority\"),OR($F179=1,$F179=5)),0,prem_mort(VALUE(LEFT(Options!$B$14,2)),$C179,$E179,$F179,2016,$I179/10+$J179/10,1,$H179/10,$G179*$H179/10,RateRatios_accidents!$B$5)*10))","v":10.620893053},null,{"$f":"IF(AND(OR(Calculations!$E$2=\"Orkney Health Board\",Calculations!$E$2=\"Orkney Islands Local Authority\"),$F179=1),0,IF(AND(OR(Calculations!$E$2=\"Shetland Health Board\",Calculations!$E$2=\"Western Isles Health Board\",Calculations!$E$2=\"Shetland Islands Local Authority\",Calculations!$E$2=\"Eilean Siar Local Authority\"),OR($F179=1,$F179=5)),0,new_ci(VALUE(LEFT(Options!$B$14,2)),$C179,$E179,$F179,2016,$I179/10,1,$H179/10,$G179*$H179/10,RateRatios_airpollution!$C179)*10))","v":10.622720583},{"$f":"IF(AND(OR(Calculations!$E$2=\"Orkney Health Board\",Calculations!$E$2=\"Orkney Islands Local Authority\"),$F179=1),0,IF(AND(OR(Calculations!$E$2=\"Shetland Health Board\",Calculations!$E$2=\"Western Isles Health Board\",Calculations!$E$2=\"Shetland Islands Local Authority\",Calculations!$E$2=\"Eilean Siar Local Authority\"),OR($F179=1,$F179=5)),0,new_ci(VALUE(LEFT(Options!$B$14,2)),$C179,$E179,$F179,2016,$I179/10+$J179/10,1,$H179/10,$G179*$H179/10,RateRatios_airpollution!$C179)*10))","v":10.622583878},{"$f":"IF(AND(OR(Calculations!$E$2=\"Orkney Health Board\",Calculations!$E$2=\"Orkney Islands Local Authority\"),$F179=1),0,IF(AND(OR(Calculations!$E$2=\"Shetland Health Board\",Calculations!$E$2=\"Western Isles Health Board\",Calculations!$E$2=\"Shetland Islands Local Authority\",Calculations!$E$2=\"Eilean Siar Local Authority\"),OR($F179=1,$F179=5)),0,new_yllv2(VALUE(LEFT(Options!$B$14,2)),$C179,$D179,$E179,$F179,2016,$I179/10,1,$H179/10,$G179*$H179/10,RateRatios_airpollution!$C179)*10))","v":570.121445558},{"$f":"IF(AND(OR(Calculations!$E$2=\"Orkney Health Board\",Calculations!$E$2=\"Orkney Islands Local Authority\"),$F179=1),0,IF(AND(OR(Calculations!$E$2=\"Shetland Health Board\",Calculations!$E$2=\"Western Isles Health Board\",Calculations!$E$2=\"Shetland Islands Local Authority\",Calculations!$E$2=\"Eilean Siar Local Authority\"),OR($F179=1,$F179=5)),0,new_yllv2(VALUE(LEFT(Options!$B$14,2)),$C179,$D179,$E179,$F179,2016,$I179/10+$J179/10,1,$H179/10,$G179*$H179/10,RateRatios_airpollution!$C179)*10))","v":570.11410860000001},{"$f":"IF(AND(OR(Calculations!$E$2=\"Orkney Health Board\",Calculations!$E$2=\"Orkney Islands Local Authority\"),$F179=1),0,IF(AND(OR(Calculations!$E$2=\"Shetland Health Board\",Calculations!$E$2=\"Western Isles Health Board\",Calculations!$E$2=\"Shetland Islands Local Authority\",Calculations!$E$2=\"Eilean Siar Local Authority\"),OR($F179=1,$F179=5)),0,hosp_count(VALUE(LEFT(Options!$B$14,2)),$C179,$E179,$F179,2016,$I179/10,1,$H179/10,$G179*$H179/10, RateRatios_airpollution!$D179, RateRatios_airpollution!$C179)*10))","v":3742.7879046869998},{"$f":"IF(AND(OR(Calculations!$E$2=\"Orkney Health Board\",Calculations!$E$2=\"Orkney Islands Local Authority\"),$F179=1),0,IF(AND(OR(Calculations!$E$2=\"Shetland Health Board\",Calculations!$E$2=\"Western Isles Health Board\",Calculations!$E$2=\"Shetland Islands Local Authority\",Calculations!$E$2=\"Eilean Siar Local Authority\"),OR($F179=1,$F179=5)),0,hosp_count(VALUE(LEFT(Options!$B$14,2)),$C179,$E179,$F179,2016,$I179/10+$J179/10,1,$H179/10,$G179*$H179/10, RateRatios_airpollution!$D179, RateRatios_airpollution!$C179)*10))","v":3742.6969440580001},{"$f":"IF(AND(OR(Calculations!$E$2=\"Orkney Health Board\",Calculations!$E$2=\"Orkney Islands Local Authority\"),$F179=1),0,IF(AND(OR(Calculations!$E$2=\"Shetland Health Board\",Calculations!$E$2=\"Western Isles Health Board\",Calculations!$E$2=\"Shetland Islands Local Authority\",Calculations!$E$2=\"Eilean Siar Local Authority\"),OR($F179=1,$F179=5)),0,prem_mort(VALUE(LEFT(Options!$B$14,2)),$C179,$E179,$F179,2016,$I179/10,1,$H179/10,$G179*$H179/10,RateRatios_airpollution!$C179)*10))","v":10.622720583},{"$f":"IF(AND(OR(Calculations!$E$2=\"Orkney Health Board\",Calculations!$E$2=\"Orkney Islands Local Authority\"),$F179=1),0,IF(AND(OR(Calculations!$E$2=\"Shetland Health Board\",Calculations!$E$2=\"Western Isles Health Board\",Calculations!$E$2=\"Shetland Islands Local Authority\",Calculations!$E$2=\"Eilean Siar Local Authority\"),OR($F179=1,$F179=5)),0,prem_mort(VALUE(LEFT(Options!$B$14,2)),$C179,$E179,$F179,2016,$I179/10+$J179/10,1,$H179/10,$G179*$H179/10,RateRatios_airpollution!$C179)*10))","v":10.622583878},null,{"$f":"IF(AND(OR(Calculations!$E$2=\"Orkney Health Board\",Calculations!$E$2=\"Orkney Islands Local Authority\"),$F179=1),0,IF(AND(OR(Calculations!$E$2=\"Shetland Health Board\",Calculations!$E$2=\"Western Isles Health Board\",Calculations!$E$2=\"Shetland Islands Local Authority\",Calculations!$E$2=\"Eilean Siar Local Authority\"),OR($F179=1,$F179=5)),0,new_ci(VALUE(LEFT(Options!$B$14,2)),$C179,$E179,$F179,2016,$I179/10,1,$H179/10,$G179*$H179/10,RateRatios_airpollution!$E179)*10))","v":10.622720583},{"$f":"IF(AND(OR(Calculations!$E$2=\"Orkney Health Board\",Calculations!$E$2=\"Orkney Islands Local Authority\"),$F179=1),0,IF(AND(OR(Calculations!$E$2=\"Shetland Health Board\",Calculations!$E$2=\"Western Isles Health Board\",Calculations!$E$2=\"Shetland Islands Local Authority\",Calculations!$E$2=\"Eilean Siar Local Authority\"),OR($F179=1,$F179=5)),0,new_ci(VALUE(LEFT(Options!$B$14,2)),$C179,$E179,$F179,2016,$I179/10+$J179/10,1,$H179/10,$G179*$H179/10,RateRatios_airpollution!$E179)*10))","v":10.622661583999999},{"$f":"IF(AND(OR(Calculations!$E$2=\"Orkney Health Board\",Calculations!$E$2=\"Orkney Islands Local Authority\"),$F179=1),0,IF(AND(OR(Calculations!$E$2=\"Shetland Health Board\",Calculations!$E$2=\"Western Isles Health Board\",Calculations!$E$2=\"Shetland Islands Local Authority\",Calculations!$E$2=\"Eilean Siar Local Authority\"),OR($F179=1,$F179=5)),0,new_yllv2(VALUE(LEFT(Options!$B$14,2)),$C179,$D179,$E179,$F179,2016,$I179/10,1,$H179/10,$G179*$H179/10,RateRatios_airpollution!$E179)*10))","v":570.121445558},{"$f":"IF(AND(OR(Calculations!$E$2=\"Orkney Health Board\",Calculations!$E$2=\"Orkney Islands Local Authority\"),$F179=1),0,IF(AND(OR(Calculations!$E$2=\"Shetland Health Board\",Calculations!$E$2=\"Western Isles Health Board\",Calculations!$E$2=\"Shetland Islands Local Authority\",Calculations!$E$2=\"Eilean Siar Local Authority\"),OR($F179=1,$F179=5)),0,new_yllv2(VALUE(LEFT(Options!$B$14,2)),$C179,$D179,$E179,$F179,2016,$I179/10+$J179/10,1,$H179/10,$G179*$H179/10,RateRatios_airpollution!$E179)*10))","v":570.11827908100008},{"$f":"IF(AND(OR(Calculations!$E$2=\"Orkney Health Board\",Calculations!$E$2=\"Orkney Islands Local Authority\"),$F179=1),0,IF(AND(OR(Calculations!$E$2=\"Shetland Health Board\",Calculations!$E$2=\"Western Isles Health Board\",Calculations!$E$2=\"Shetland Islands Local Authority\",Calculations!$E$2=\"Eilean Siar Local Authority\"),OR($F179=1,$F179=5)),0,hosp_count(VALUE(LEFT(Options!$B$14,2)),$C179,$E179,$F179,2016,$I179/10,1,$H179/10,$G179*$H179/10, RateRatios_airpollution!$F179, RateRatios_airpollution!$E179)*10))","v":3742.7879046869998},{"$f":"IF(AND(OR(Calculations!$E$2=\"Orkney Health Board\",Calculations!$E$2=\"Orkney Islands Local Authority\"),$F179=1),0,IF(AND(OR(Calculations!$E$2=\"Shetland Health Board\",Calculations!$E$2=\"Western Isles Health Board\",Calculations!$E$2=\"Shetland Islands Local Authority\",Calculations!$E$2=\"Eilean Siar Local Authority\"),OR($F179=1,$F179=5)),0,hosp_count(VALUE(LEFT(Options!$B$14,2)),$C179,$E179,$F179,2016,$I179/10+$J179/10,1,$H179/10,$G179*$H179/10, RateRatios_airpollution!$F179, RateRatios_airpollution!$E179)*10))","v":3742.7879046869998},{"$f":"IF(AND(OR(Calculations!$E$2=\"Orkney Health Board\",Calculations!$E$2=\"Orkney Islands Local Authority\"),$F179=1),0,IF(AND(OR(Calculations!$E$2=\"Shetland Health Board\",Calculations!$E$2=\"Western Isles Health Board\",Calculations!$E$2=\"Shetland Islands Local Authority\",Calculations!$E$2=\"Eilean Siar Local Authority\"),OR($F179=1,$F179=5)),0,prem_mort(VALUE(LEFT(Options!$B$14,2)),$C179,$E179,$F179,2016,$I179/10,1,$H179/10,$G179*$H179/10,RateRatios_airpollution!$E179)*10))","v":10.622720583},{"$f":"IF(AND(OR(Calculations!$E$2=\"Orkney Health Board\",Calculations!$E$2=\"Orkney Islands Local Authority\"),$F179=1),0,IF(AND(OR(Calculations!$E$2=\"Shetland Health Board\",Calculations!$E$2=\"Western Isles Health Board\",Calculations!$E$2=\"Shetland Islands Local Authority\",Calculations!$E$2=\"Eilean Siar Local Authority\"),OR($F179=1,$F179=5)),0,prem_mort(VALUE(LEFT(Options!$B$14,2)),$C179,$E179,$F179,2016,$I179/10+$J179/10,1,$H179/10,$G179*$H179/10,RateRatios_airpollution!$E179)*10))","v":10.622661583999999},10.622720583,10.620697349,570.121445558,570.01285858200004,3742.7879046869998,3742.0525656139998,10.622720583,10.620697349,31.77316000059821,31.767108392905214,1705.2655925522686,1704.9408027457903,11194.890990000897,11192.691549110161,31.77316000059821,31.767108392905214,190638.96000358925,190602.6503574313,10231593.555313611,10229644.816474741,67169345.940005377,67156149.294660971,190638.96000358925,190602.6503574313,6000]
[null,"Female 30-34",31.999904999999998,81.799899999999994,"female",4,1,{"$f":"HLOOKUP(Calculations!$E$2,'Population 2016'!$C$3:$BC$249,'Population 2016'!BD180,FALSE)","v":33838},0,{"$f":"HLOOKUP(Calculations!$E$2,Pop2016_in_settlements!$C$3:$BC$249,Pop2016_in_settlements!$BD180,FALSE)","v":13737},{"$f":"IF(AND(OR(Calculations!$E$2=\"Orkney Health Board\",Calculations!$E$2=\"Orkney Islands Local Authority\"),$F180=1),0,IF(AND(OR(Calculations!$E$2=\"Shetland Health Board\",Calculations!$E$2=\"Western Isles Health Board\",Calculations!$E$2=\"Shetland Islands Local Authority\",Calculations!$E$2=\"Eilean Siar Local Authority\"),OR($F180=1,$F180=5)),0,new_ci(VALUE(LEFT(Options!$B$14,2)),$C180,$E180,$F180,2016,$I180/10,1,$H180/10,$G180*$H180/10,RateRatios_accidents!$B$5)*10))","v":16.482933077999999},{"$f":"IF(AND(OR(Calculations!$E$2=\"Orkney Health Board\",Calculations!$E$2=\"Orkney Islands Local Authority\"),$F180=1),0,IF(AND(OR(Calculations!$E$2=\"Shetland Health Board\",Calculations!$E$2=\"Western Isles Health Board\",Calculations!$E$2=\"Shetland Islands Local Authority\",Calculations!$E$2=\"Eilean Siar Local Authority\"),OR($F180=1,$F180=5)),0,new_ci(VALUE(LEFT(Options!$B$14,2)),$C180,$E180,$F180,2016,$I180/10+$J180/10,1,$H180/10,$G180*$H180/10,RateRatios_accidents!$B$5)*10))","v":16.480255736},{"$f":"IF(AND(OR(Calculations!$E$2=\"Orkney Health Board\",Calculations!$E$2=\"Orkney Islands Local Authority\"),$F180=1),0,IF(AND(OR(Calculations!$E$2=\"Shetland Health Board\",Calculations!$E$2=\"Western Isles Health Board\",Calculations!$E$2=\"Shetland Islands Local Authority\",Calculations!$E$2=\"Eilean Siar Local Authority\"),OR($F180=1,$F180=5)),0,new_yllv2(VALUE(LEFT(Options!$B$14,2)),$C180,$D180,$E180,$F180,2016,$I180/10,1,$H180/10,$G180*$H180/10,RateRatios_accidents!$B$5)*10))","v":804.36705179199998},{"$f":"IF(AND(OR(Calculations!$E$2=\"Orkney Health Board\",Calculations!$E$2=\"Orkney Islands Local Authority\"),$F180=1),0,IF(AND(OR(Calculations!$E$2=\"Shetland Health Board\",Calculations!$E$2=\"Western Isles Health Board\",Calculations!$E$2=\"Shetland Islands Local Authority\",Calculations!$E$2=\"Eilean Siar Local Authority\"),OR($F180=1,$F180=5)),0,new_yllv2(VALUE(LEFT(Options!$B$14,2)),$C180,$D180,$E180,$F180,2016,$I180/10+$J180/10,1,$H180/10,$G180*$H180/10,RateRatios_accidents!$B$5)*10))","v":804.23639751600012},{"$f":"IF(AND(OR(Calculations!$E$2=\"Orkney Health Board\",Calculations!$E$2=\"Orkney Islands Local Authority\"),$F180=1),0,IF(AND(OR(Calculations!$E$2=\"Shetland Health Board\",Calculations!$E$2=\"Western Isles Health Board\",Calculations!$E$2=\"Shetland Islands Local Authority\",Calculations!$E$2=\"Eilean Siar Local Authority\"),OR($F180=1,$F180=5)),0,hosp_count(VALUE(LEFT(Options!$B$14,2)),$C180,$E180,$F180,2016,$I180/10,1,$H180/10,$G180*$H180/10, RateRatios_accidents!$B$4, RateRatios_accidents!$B$5)*10))","v":4298.4820839799995},{"$f":"IF(AND(OR(Calculations!$E$2=\"Orkney Health Board\",Calculations!$E$2=\"Orkney Islands Local Authority\"),$F180=1),0,IF(AND(OR(Calculations!$E$2=\"Shetland Health Board\",Calculations!$E$2=\"Western Isles Health Board\",Calculations!$E$2=\"Shetland Islands Local Authority\",Calculations!$E$2=\"Eilean Siar Local Authority\"),OR($F180=1,$F180=5)),0,hosp_count(VALUE(LEFT(Options!$B$14,2)),$C180,$E180,$F180,2016,$I180/10+$J180/10,1,$H180/10,$G180*$H180/10, RateRatios_accidents!$B$4, RateRatios_accidents!$B$5)*10))","v":4297.7840726679997},{"$f":"IF(AND(OR(Calculations!$E$2=\"Orkney Health Board\",Calculations!$E$2=\"Orkney Islands Local Authority\"),$F180=1),0,IF(AND(OR(Calculations!$E$2=\"Shetland Health Board\",Calculations!$E$2=\"Western Isles Health Board\",Calculations!$E$2=\"Shetland Islands Local Authority\",Calculations!$E$2=\"Eilean Siar Local Authority\"),OR($F180=1,$F180=5)),0,prem_mort(VALUE(LEFT(Options!$B$14,2)),$C180,$E180,$F180,2016,$I180/10,1,$H180/10,$G180*$H180/10,RateRatios_accidents!$B$5)*10))","v":16.482933077999999},{"$f":"IF(AND(OR(Calculations!$E$2=\"Orkney Health Board\",Calculations!$E$2=\"Orkney Islands Local Authority\"),$F180=1),0,IF(AND(OR(Calculations!$E$2=\"Shetland Health Board\",Calculations!$E$2=\"Western Isles Health Board\",Calculations!$E$2=\"Shetland Islands Local Authority\",Calculations!$E$2=\"Eilean Siar Local Authority\"),OR($F180=1,$F180=5)),0,prem_mort(VALUE(LEFT(Options!$B$14,2)),$C180,$E180,$F180,2016,$I180/10+$J180/10,1,$H180/10,$G180*$H180/10,RateRatios_accidents!$B$5)*10))","v":16.480255736},null,{"$f":"IF(AND(OR(Calculations!$E$2=\"Orkney Health Board\",Calculations!$E$2=\"Orkney Islands Local Authority\"),$F180=1),0,IF(AND(OR(Calculations!$E$2=\"Shetland Health Board\",Calculations!$E$2=\"Western Isles Health Board\",Calculations!$E$2=\"Shetland Islands Local Authority\",Calculations!$E$2=\"Eilean Siar Local Authority\"),OR($F180=1,$F180=5)),0,new_ci(VALUE(LEFT(Options!$B$14,2)),$C180,$E180,$F180,2016,$I180/10,1,$H180/10,$G180*$H180/10,RateRatios_airpollution!$C180)*10))","v":16.482933077999999},{"$f":"IF(AND(OR(Calculations!$E$2=\"Orkney Health Board\",Calculations!$E$2=\"Orkney Islands Local Authority\"),$F180=1),0,IF(AND(OR(Calculations!$E$2=\"Shetland Health Board\",Calculations!$E$2=\"Western Isles Health Board\",Calculations!$E$2=\"Shetland Islands Local Authority\",Calculations!$E$2=\"Eilean Siar Local Authority\"),OR($F180=1,$F180=5)),0,new_ci(VALUE(LEFT(Options!$B$14,2)),$C180,$E180,$F180,2016,$I180/10+$J180/10,1,$H180/10,$G180*$H180/10,RateRatios_airpollution!$C180)*10))","v":16.482753123000002},{"$f":"IF(AND(OR(Calculations!$E$2=\"Orkney Health Board\",Calculations!$E$2=\"Orkney Islands Local Authority\"),$F180=1),0,IF(AND(OR(Calculations!$E$2=\"Shetland Health Board\",Calculations!$E$2=\"Western Isles Health Board\",Calculations!$E$2=\"Shetland Islands Local Authority\",Calculations!$E$2=\"Eilean Siar Local Authority\"),OR($F180=1,$F180=5)),0,new_yllv2(VALUE(LEFT(Options!$B$14,2)),$C180,$D180,$E180,$F180,2016,$I180/10,1,$H180/10,$G180*$H180/10,RateRatios_airpollution!$C180)*10))","v":804.36705179199998},{"$f":"IF(AND(OR(Calculations!$E$2=\"Orkney Health Board\",Calculations!$E$2=\"Orkney Islands Local Authority\"),$F180=1),0,IF(AND(OR(Calculations!$E$2=\"Shetland Health Board\",Calculations!$E$2=\"Western Isles Health Board\",Calculations!$E$2=\"Shetland Islands Local Authority\",Calculations!$E$2=\"Eilean Siar Local Authority\"),OR($F180=1,$F180=5)),0,new_yllv2(VALUE(LEFT(Options!$B$14,2)),$C180,$D180,$E180,$F180,2016,$I180/10+$J180/10,1,$H180/10,$G180*$H180/10,RateRatios_airpollution!$C180)*10))","v":804.35826998899995},{"$f":"IF(AND(OR(Calculations!$E$2=\"Orkney Health Board\",Calculations!$E$2=\"Orkney Islands Local Authority\"),$F180=1),0,IF(AND(OR(Calculations!$E$2=\"Shetland Health Board\",Calculations!$E$2=\"Western Isles Health Board\",Calculations!$E$2=\"Shetland Islands Local Authority\",Calculations!$E$2=\"Eilean Siar Local Authority\"),OR($F180=1,$F180=5)),0,hosp_count(VALUE(LEFT(Options!$B$14,2)),$C180,$E180,$F180,2016,$I180/10,1,$H180/10,$G180*$H180/10, RateRatios_airpollution!$D180, RateRatios_airpollution!$C180)*10))","v":4298.4820839799995},{"$f":"IF(AND(OR(Calculations!$E$2=\"Orkney Health Board\",Calculations!$E$2=\"Orkney Islands Local Authority\"),$F180=1),0,IF(AND(OR(Calculations!$E$2=\"Shetland Health Board\",Calculations!$E$2=\"Western Isles Health Board\",Calculations!$E$2=\"Shetland Islands Local Authority\",Calculations!$E$2=\"Eilean Siar Local Authority\"),OR($F180=1,$F180=5)),0,hosp_count(VALUE(LEFT(Options!$B$14,2)),$C180,$E180,$F180,2016,$I180/10+$J180/10,1,$H180/10,$G180*$H180/10, RateRatios_airpollution!$D180, RateRatios_airpollution!$C180)*10))","v":4298.394025689},{"$f":"IF(AND(OR(Calculations!$E$2=\"Orkney Health Board\",Calculations!$E$2=\"Orkney Islands Local Authority\"),$F180=1),0,IF(AND(OR(Calculations!$E$2=\"Shetland Health Board\",Calculations!$E$2=\"Western Isles Health Board\",Calculations!$E$2=\"Shetland Islands Local Authority\",Calculations!$E$2=\"Eilean Siar Local Authority\"),OR($F180=1,$F180=5)),0,prem_mort(VALUE(LEFT(Options!$B$14,2)),$C180,$E180,$F180,2016,$I180/10,1,$H180/10,$G180*$H180/10,RateRatios_airpollution!$C180)*10))","v":16.482933077999999},{"$f":"IF(AND(OR(Calculations!$E$2=\"Orkney Health Board\",Calculations!$E$2=\"Orkney Islands Local Authority\"),$F180=1),0,IF(AND(OR(Calculations!$E$2=\"Shetland Health Board\",Calculations!$E$2=\"Western Isles Health Board\",Calculations!$E$2=\"Shetland Islands Local Authority\",Calculations!$E$2=\"Eilean Siar Local Authority\"),OR($F180=1,$F180=5)),0,prem_mort(VALUE(LEFT(Options!$B$14,2)),$C180,$E180,$F180,2016,$I180/10+$J180/10,1,$H180/10,$G180*$H180/10,RateRatios_airpollution!$C180)*10))","v":16.482753123000002},null,{"$f":"IF(AND(OR(Calculations!$E$2=\"Orkney Health Board\",Calculations!$E$2=\"Orkney Islands Local Authority\"),$F180=1),0,IF(AND(OR(Calculations!$E$2=\"Shetland Health Board\",Calculations!$E$2=\"Western Isles Health Board\",Calculations!$E$2=\"Shetland Islands Local Authority\",Calculations!$E$2=\"Eilean Siar Local Authority\"),OR($F180=1,$F180=5)),0,new_ci(VALUE(LEFT(Options!$B$14,2)),$C180,$E180,$F180,2016,$I180/10,1,$H180/10,$G180*$H180/10,RateRatios_airpollution!$E180)*10))","v":16.482933077999999},{"$f":"IF(AND(OR(Calculations!$E$2=\"Orkney Health Board\",Calculations!$E$2=\"Orkney Islands Local Authority\"),$F180=1),0,IF(AND(OR(Calculations!$E$2=\"Shetland Health Board\",Calculations!$E$2=\"Western Isles Health Board\",Calculations!$E$2=\"Shetland Islands Local Authority\",Calculations!$E$2=\"Eilean Siar Local Authority\"),OR($F180=1,$F180=5)),0,new_ci(VALUE(LEFT(Options!$B$14,2)),$C180,$E180,$F180,2016,$I180/10+$J180/10,1,$H180/10,$G180*$H180/10,RateRatios_airpollution!$E180)*10))","v":16.482854777},{"$f":"IF(AND(OR(Calculations!$E$2=\"Orkney Health Board\",Calculations!$E$2=\"Orkney Islands Local Authority\"),$F180=1),0,IF(AND(OR(Calculations!$E$2=\"Shetland Health Board\",Calculations!$E$2=\"Western Isles Health Board\",Calculations!$E$2=\"Shetland Islands Local Authority\",Calculations!$E$2=\"Eilean Siar Local Authority\"),OR($F180=1,$F180=5)),0,new_yllv2(VALUE(LEFT(Options!$B$14,2)),$C180,$D180,$E180,$F180,2016,$I180/10,1,$H180/10,$G180*$H180/10,RateRatios_airpollution!$E180)*10))","v":804.36705179199998},{"$f":"IF(AND(OR(Calculations!$E$2=\"Orkney Health Board\",Calculations!$E$2=\"Orkney Islands Local Authority\"),$F180=1),0,IF(AND(OR(Calculations!$E$2=\"Shetland Health Board\",Calculations!$E$2=\"Western Isles Health Board\",Calculations!$E$2=\"Shetland Islands Local Authority\",Calculations!$E$2=\"Eilean Siar Local Authority\"),OR($F180=1,$F180=5)),0,new_yllv2(VALUE(LEFT(Options!$B$14,2)),$C180,$D180,$E180,$F180,2016,$I180/10+$J180/10,1,$H180/10,$G180*$H180/10,RateRatios_airpollution!$E180)*10))","v":804.363230703},{"$f":"IF(AND(OR(Calculations!$E$2=\"Orkney Health Board\",Calculations!$E$2=\"Orkney Islands Local Authority\"),$F180=1),0,IF(AND(OR(Calculations!$E$2=\"Shetland Health Board\",Calculations!$E$2=\"Western Isles Health Board\",Calculations!$E$2=\"Shetland Islands Local Authority\",Calculations!$E$2=\"Eilean Siar Local Authority\"),OR($F180=1,$F180=5)),0,hosp_count(VALUE(LEFT(Options!$B$14,2)),$C180,$E180,$F180,2016,$I180/10,1,$H180/10,$G180*$H180/10, RateRatios_airpollution!$F180, RateRatios_airpollution!$E180)*10))","v":4298.4820839799995},{"$f":"IF(AND(OR(Calculations!$E$2=\"Orkney Health Board\",Calculations!$E$2=\"Orkney Islands Local Authority\"),$F180=1),0,IF(AND(OR(Calculations!$E$2=\"Shetland Health Board\",Calculations!$E$2=\"Western Isles Health Board\",Calculations!$E$2=\"Shetland Islands Local Authority\",Calculations!$E$2=\"Eilean Siar Local Authority\"),OR($F180=1,$F180=5)),0,hosp_count(VALUE(LEFT(Options!$B$14,2)),$C180,$E180,$F180,2016,$I180/10+$J180/10,1,$H180/10,$G180*$H180/10, RateRatios_airpollution!$F180, RateRatios_airpollution!$E180)*10))","v":4298.4820839799995},{"$f":"IF(AND(OR(Calculations!$E$2=\"Orkney Health Board\",Calculations!$E$2=\"Orkney Islands Local Authority\"),$F180=1),0,IF(AND(OR(Calculations!$E$2=\"Shetland Health Board\",Calculations!$E$2=\"Western Isles Health Board\",Calculations!$E$2=\"Shetland Islands Local Authority\",Calculations!$E$2=\"Eilean Siar Local Authority\"),OR($F180=1,$F180=5)),0,prem_mort(VALUE(LEFT(Options!$B$14,2)),$C180,$E180,$F180,2016,$I180/10,1,$H180/10,$G180*$H180/10,RateRatios_airpollution!$E180)*10))","v":16.482933077999999},{"$f":"IF(AND(OR(Calculations!$E$2=\"Orkney Health Board\",Calculations!$E$2=\"Orkney Islands Local Authority\"),$F180=1),0,IF(AND(OR(Calculations!$E$2=\"Shetland Health Board\",Calculations!$E$2=\"Western Isles Health Board\",Calculations!$E$2=\"Shetland Islands Local Authority\",Calculations!$E$2=\"Eilean Siar Local Authority\"),OR($F180=1,$F180=5)),0,prem_mort(VALUE(LEFT(Options!$B$14,2)),$C180,$E180,$F180,2016,$I180/10+$J180/10,1,$H180/10,$G180*$H180/10,RateRatios_airpollution!$E180)*10))","v":16.482854777},16.482933077999999,16.479997480000005,804.36705179199998,804.22379462400011,4298.4820839799995,4297.6960143770002,16.482933077999999,16.479997480000005,48.711310000591048,48.702634552869576,2377.1116844730773,2376.6883226668242,12703.120999999999,12700.797961986525,48.711310000591048,48.702634552869576,316623.51500384184,316567.12459365226,15451225.949075002,15448474.097334357,82570286.5,82555186.752912417,316623.51500384184,316567.12459365226,6500]
[null,"Female 35-39",36.918118,81.898120000000006,"female",4,1,{"$f":"HLOOKUP(Calculations!$E$2,'Population 2016'!$C$3:$BC$249,'Population 2016'!BD181,FALSE)","v":32800},0,{"$f":"HLOOKUP(Calculations!$E$2,Pop2016_in_settlements!$C$3:$BC$249,Pop2016_in_settlements!$BD181,FALSE)","v":13058},{"$f":"IF(AND(OR(Calculations!$E$2=\"Orkney Health Board\",Calculations!$E$2=\"Orkney Islands Local Authority\"),$F181=1),0,IF(AND(OR(Calculations!$E$2=\"Shetland Health Board\",Calculations!$E$2=\"Western Isles Health Board\",Calculations!$E$2=\"Shetland Islands Local Authority\",Calculations!$E$2=\"Eilean Siar Local Authority\"),OR($F181=1,$F181=5)),0,new_ci(VALUE(LEFT(Options!$B$14,2)),$C181,$E181,$F181,2016,$I181/10,1,$H181/10,$G181*$H181/10,RateRatios_accidents!$B$5)*10))","v":24.27284624},{"$f":"IF(AND(OR(Calculations!$E$2=\"Orkney Health Board\",Calculations!$E$2=\"Orkney Islands Local Authority\"),$F181=1),0,IF(AND(OR(Calculations!$E$2=\"Shetland Health Board\",Calculations!$E$2=\"Western Isles Health Board\",Calculations!$E$2=\"Shetland Islands Local Authority\",Calculations!$E$2=\"Eilean Siar Local Authority\"),OR($F181=1,$F181=5)),0,new_ci(VALUE(LEFT(Options!$B$14,2)),$C181,$E181,$F181,2016,$I181/10+$J181/10,1,$H181/10,$G181*$H181/10,RateRatios_accidents!$B$5)*10))","v":24.268983683999998},{"$f":"IF(AND(OR(Calculations!$E$2=\"Orkney Health Board\",Calculations!$E$2=\"Orkney Islands Local Authority\"),$F181=1),0,IF(AND(OR(Calculations!$E$2=\"Shetland Health Board\",Calculations!$E$2=\"Western Isles Health Board\",Calculations!$E$2=\"Shetland Islands Local Authority\",Calculations!$E$2=\"Eilean Siar Local Authority\"),OR($F181=1,$F181=5)),0,new_yllv2(VALUE(LEFT(Options!$B$14,2)),$C181,$D181,$E181,$F181,2016,$I181/10,1,$H181/10,$G181*$H181/10,RateRatios_accidents!$B$5)*10))","v":1067.5198261810001},{"$f":"IF(AND(OR(Calculations!$E$2=\"Orkney Health Board\",Calculations!$E$2=\"Orkney Islands Local Authority\"),$F181=1),0,IF(AND(OR(Calculations!$E$2=\"Shetland Health Board\",Calculations!$E$2=\"Western Isles Health Board\",Calculations!$E$2=\"Shetland Islands Local Authority\",Calculations!$E$2=\"Eilean Siar Local Authority\"),OR($F181=1,$F181=5)),0,new_yllv2(VALUE(LEFT(Options!$B$14,2)),$C181,$D181,$E181,$F181,2016,$I181/10+$J181/10,1,$H181/10,$G181*$H181/10,RateRatios_accidents!$B$5)*10))","v":1067.3499509600001},{"$f":"IF(AND(OR(Calculations!$E$2=\"Orkney Health Board\",Calculations!$E$2=\"Orkney Islands Local Authority\"),$F181=1),0,IF(AND(OR(Calculations!$E$2=\"Shetland Health Board\",Calculations!$E$2=\"Western Isles Health Board\",Calculations!$E$2=\"Shetland Islands Local Authority\",Calculations!$E$2=\"Eilean Siar Local Authority\"),OR($F181=1,$F181=5)),0,hosp_count(VALUE(LEFT(Options!$B$14,2)),$C181,$E181,$F181,2016,$I181/10,1,$H181/10,$G181*$H181/10, RateRatios_accidents!$B$4, RateRatios_accidents!$B$5)*10))","v":4715.32218784},{"$f":"IF(AND(OR(Calculations!$E$2=\"Orkney Health Board\",Calculations!$E$2=\"Orkney Islands Local Authority\"),$F181=1),0,IF(AND(OR(Calculations!$E$2=\"Shetland Health Board\",Calculations!$E$2=\"Western Isles Health Board\",Calculations!$E$2=\"Shetland Islands Local Authority\",Calculations!$E$2=\"Eilean Siar Local Authority\"),OR($F181=1,$F181=5)),0,hosp_count(VALUE(LEFT(Options!$B$14,2)),$C181,$E181,$F181,2016,$I181/10+$J181/10,1,$H181/10,$G181*$H181/10, RateRatios_accidents!$B$4, RateRatios_accidents!$B$5)*10))","v":4714.5713019140003},{"$f":"IF(AND(OR(Calculations!$E$2=\"Orkney Health Board\",Calculations!$E$2=\"Orkney Islands Local Authority\"),$F181=1),0,IF(AND(OR(Calculations!$E$2=\"Shetland Health Board\",Calculations!$E$2=\"Western Isles Health Board\",Calculations!$E$2=\"Shetland Islands Local Authority\",Calculations!$E$2=\"Eilean Siar Local Authority\"),OR($F181=1,$F181=5)),0,prem_mort(VALUE(LEFT(Options!$B$14,2)),$C181,$E181,$F181,2016,$I181/10,1,$H181/10,$G181*$H181/10,RateRatios_accidents!$B$5)*10))","v":24.27284624},{"$f":"IF(AND(OR(Calculations!$E$2=\"Orkney Health Board\",Calculations!$E$2=\"Orkney Islands Local Authority\"),$F181=1),0,IF(AND(OR(Calculations!$E$2=\"Shetland Health Board\",Calculations!$E$2=\"Western Isles Health Board\",Calculations!$E$2=\"Shetland Islands Local Authority\",Calculations!$E$2=\"Eilean Siar Local Authority\"),OR($F181=1,$F181=5)),0,prem_mort(VALUE(LEFT(Options!$B$14,2)),$C181,$E181,$F181,2016,$I181/10+$J181/10,1,$H181/10,$G181*$H181/10,RateRatios_accidents!$B$5)*10))","v":24.268983683999998},null,{"$f":"IF(AND(OR(Calculations!$E$2=\"Orkney Health Board\",Calculations!$E$2=\"Orkney Islands Local Authority\"),$F181=1),0,IF(AND(OR(Calculations!$E$2=\"Shetland Health Board\",Calculations!$E$2=\"Western Isles Health Board\",Calculations!$E$2=\"Shetland Islands Local Authority\",Calculations!$E$2=\"Eilean Siar Local Authority\"),OR($F181=1,$F181=5)),0,new_ci(VALUE(LEFT(Options!$B$14,2)),$C181,$E181,$F181,2016,$I181/10,1,$H181/10,$G181*$H181/10,RateRatios_airpollution!$C181)*10))","v":24.27284624},{"$f":"IF(AND(OR(Calculations!$E$2=\"Orkney Health Board\",Calculations!$E$2=\"Orkney Islands Local Authority\"),$F181=1),0,IF(AND(OR(Calculations!$E$2=\"Shetland Health Board\",Calculations!$E$2=\"Western Isles Health Board\",Calculations!$E$2=\"Shetland Islands Local Authority\",Calculations!$E$2=\"Eilean Siar Local Authority\"),OR($F181=1,$F181=5)),0,new_ci(VALUE(LEFT(Options!$B$14,2)),$C181,$E181,$F181,2016,$I181/10+$J181/10,1,$H181/10,$G181*$H181/10,RateRatios_airpollution!$C181)*10))","v":24.272621642000001},{"$f":"IF(AND(OR(Calculations!$E$2=\"Orkney Health Board\",Calculations!$E$2=\"Orkney Islands Local Authority\"),$F181=1),0,IF(AND(OR(Calculations!$E$2=\"Shetland Health Board\",Calculations!$E$2=\"Western Isles Health Board\",Calculations!$E$2=\"Shetland Islands Local Authority\",Calculations!$E$2=\"Eilean Siar Local Authority\"),OR($F181=1,$F181=5)),0,new_yllv2(VALUE(LEFT(Options!$B$14,2)),$C181,$D181,$E181,$F181,2016,$I181/10,1,$H181/10,$G181*$H181/10,RateRatios_airpollution!$C181)*10))","v":1067.5198261810001},{"$f":"IF(AND(OR(Calculations!$E$2=\"Orkney Health Board\",Calculations!$E$2=\"Orkney Islands Local Authority\"),$F181=1),0,IF(AND(OR(Calculations!$E$2=\"Shetland Health Board\",Calculations!$E$2=\"Western Isles Health Board\",Calculations!$E$2=\"Shetland Islands Local Authority\",Calculations!$E$2=\"Eilean Siar Local Authority\"),OR($F181=1,$F181=5)),0,new_yllv2(VALUE(LEFT(Options!$B$14,2)),$C181,$D181,$E181,$F181,2016,$I181/10+$J181/10,1,$H181/10,$G181*$H181/10,RateRatios_airpollution!$C181)*10))","v":1067.50994836},{"$f":"IF(AND(OR(Calculations!$E$2=\"Orkney Health Board\",Calculations!$E$2=\"Orkney Islands Local Authority\"),$F181=1),0,IF(AND(OR(Calculations!$E$2=\"Shetland Health Board\",Calculations!$E$2=\"Western Isles Health Board\",Calculations!$E$2=\"Shetland Islands Local Authority\",Calculations!$E$2=\"Eilean Siar Local Authority\"),OR($F181=1,$F181=5)),0,hosp_count(VALUE(LEFT(Options!$B$14,2)),$C181,$E181,$F181,2016,$I181/10,1,$H181/10,$G181*$H181/10, RateRatios_airpollution!$D181, RateRatios_airpollution!$C181)*10))","v":4715.32218784},{"$f":"IF(AND(OR(Calculations!$E$2=\"Orkney Health Board\",Calculations!$E$2=\"Orkney Islands Local Authority\"),$F181=1),0,IF(AND(OR(Calculations!$E$2=\"Shetland Health Board\",Calculations!$E$2=\"Western Isles Health Board\",Calculations!$E$2=\"Shetland Islands Local Authority\",Calculations!$E$2=\"Eilean Siar Local Authority\"),OR($F181=1,$F181=5)),0,hosp_count(VALUE(LEFT(Options!$B$14,2)),$C181,$E181,$F181,2016,$I181/10+$J181/10,1,$H181/10,$G181*$H181/10, RateRatios_airpollution!$D181, RateRatios_airpollution!$C181)*10))","v":4715.2393322179996},{"$f":"IF(AND(OR(Calculations!$E$2=\"Orkney Health Board\",Calculations!$E$2=\"Orkney Islands Local Authority\"),$F181=1),0,IF(AND(OR(Calculations!$E$2=\"Shetland Health Board\",Calculations!$E$2=\"Western Isles Health Board\",Calculations!$E$2=\"Shetland Islands Local Authority\",Calculations!$E$2=\"Eilean Siar Local Authority\"),OR($F181=1,$F181=5)),0,prem_mort(VALUE(LEFT(Options!$B$14,2)),$C181,$E181,$F181,2016,$I181/10,1,$H181/10,$G181*$H181/10,RateRatios_airpollution!$C181)*10))","v":24.27284624},{"$f":"IF(AND(OR(Calculations!$E$2=\"Orkney Health Board\",Calculations!$E$2=\"Orkney Islands Local Authority\"),$F181=1),0,IF(AND(OR(Calculations!$E$2=\"Shetland Health Board\",Calculations!$E$2=\"Western Isles Health Board\",Calculations!$E$2=\"Shetland Islands Local Authority\",Calculations!$E$2=\"Eilean Siar Local Authority\"),OR($F181=1,$F181=5)),0,prem_mort(VALUE(LEFT(Options!$B$14,2)),$C181,$E181,$F181,2016,$I181/10+$J181/10,1,$H181/10,$G181*$H181/10,RateRatios_airpollution!$C181)*10))","v":24.272621642000001},null,{"$f":"IF(AND(OR(Calculations!$E$2=\"Orkney Health Board\",Calculations!$E$2=\"Orkney Islands Local Authority\"),$F181=1),0,IF(AND(OR(Calculations!$E$2=\"Shetland Health Board\",Calculations!$E$2=\"Western Isles Health Board\",Calculations!$E$2=\"Shetland Islands Local Authority\",Calculations!$E$2=\"Eilean Siar Local Authority\"),OR($F181=1,$F181=5)),0,new_ci(VALUE(LEFT(Options!$B$14,2)),$C181,$E181,$F181,2016,$I181/10,1,$H181/10,$G181*$H181/10,RateRatios_airpollution!$E181)*10))","v":24.27284624},{"$f":"IF(AND(OR(Calculations!$E$2=\"Orkney Health Board\",Calculations!$E$2=\"Orkney Islands Local Authority\"),$F181=1),0,IF(AND(OR(Calculations!$E$2=\"Shetland Health Board\",Calculations!$E$2=\"Western Isles Health Board\",Calculations!$E$2=\"Shetland Islands Local Authority\",Calculations!$E$2=\"Eilean Siar Local Authority\"),OR($F181=1,$F181=5)),0,new_ci(VALUE(LEFT(Options!$B$14,2)),$C181,$E181,$F181,2016,$I181/10+$J181/10,1,$H181/10,$G181*$H181/10,RateRatios_airpollution!$E181)*10))","v":24.272746998999999},{"$f":"IF(AND(OR(Calculations!$E$2=\"Orkney Health Board\",Calculations!$E$2=\"Orkney Islands Local Authority\"),$F181=1),0,IF(AND(OR(Calculations!$E$2=\"Shetland Health Board\",Calculations!$E$2=\"Western Isles Health Board\",Calculations!$E$2=\"Shetland Islands Local Authority\",Calculations!$E$2=\"Eilean Siar Local Authority\"),OR($F181=1,$F181=5)),0,new_yllv2(VALUE(LEFT(Options!$B$14,2)),$C181,$D181,$E181,$F181,2016,$I181/10,1,$H181/10,$G181*$H181/10,RateRatios_airpollution!$E181)*10))","v":1067.5198261810001},{"$f":"IF(AND(OR(Calculations!$E$2=\"Orkney Health Board\",Calculations!$E$2=\"Orkney Islands Local Authority\"),$F181=1),0,IF(AND(OR(Calculations!$E$2=\"Shetland Health Board\",Calculations!$E$2=\"Western Isles Health Board\",Calculations!$E$2=\"Shetland Islands Local Authority\",Calculations!$E$2=\"Eilean Siar Local Authority\"),OR($F181=1,$F181=5)),0,new_yllv2(VALUE(LEFT(Options!$B$14,2)),$C181,$D181,$E181,$F181,2016,$I181/10+$J181/10,1,$H181/10,$G181*$H181/10,RateRatios_airpollution!$E181)*10))","v":1067.5154615620002},{"$f":"IF(AND(OR(Calculations!$E$2=\"Orkney Health Board\",Calculations!$E$2=\"Orkney Islands Local Authority\"),$F181=1),0,IF(AND(OR(Calculations!$E$2=\"Shetland Health Board\",Calculations!$E$2=\"Western Isles Health Board\",Calculations!$E$2=\"Shetland Islands Local Authority\",Calculations!$E$2=\"Eilean Siar Local Authority\"),OR($F181=1,$F181=5)),0,hosp_count(VALUE(LEFT(Options!$B$14,2)),$C181,$E181,$F181,2016,$I181/10,1,$H181/10,$G181*$H181/10, RateRatios_airpollution!$F181, RateRatios_airpollution!$E181)*10))","v":4715.32218784},{"$f":"IF(AND(OR(Calculations!$E$2=\"Orkney Health Board\",Calculations!$E$2=\"Orkney Islands Local Authority\"),$F181=1),0,IF(AND(OR(Calculations!$E$2=\"Shetland Health Board\",Calculations!$E$2=\"Western Isles Health Board\",Calculations!$E$2=\"Shetland Islands Local Authority\",Calculations!$E$2=\"Eilean Siar Local Authority\"),OR($F181=1,$F181=5)),0,hosp_count(VALUE(LEFT(Options!$B$14,2)),$C181,$E181,$F181,2016,$I181/10+$J181/10,1,$H181/10,$G181*$H181/10, RateRatios_airpollution!$F181, RateRatios_airpollution!$E181)*10))","v":4715.32218784},{"$f":"IF(AND(OR(Calculations!$E$2=\"Orkney Health Board\",Calculations!$E$2=\"Orkney Islands Local Authority\"),$F181=1),0,IF(AND(OR(Calculations!$E$2=\"Shetland Health Board\",Calculations!$E$2=\"Western Isles Health Board\",Calculations!$E$2=\"Shetland Islands Local Authority\",Calculations!$E$2=\"Eilean Siar Local Authority\"),OR($F181=1,$F181=5)),0,prem_mort(VALUE(LEFT(Options!$B$14,2)),$C181,$E181,$F181,2016,$I181/10,1,$H181/10,$G181*$H181/10,RateRatios_airpollution!$E181)*10))","v":24.27284624},{"$f":"IF(AND(OR(Calculations!$E$2=\"Orkney Health Board\",Calculations!$E$2=\"Orkney Islands Local Authority\"),$F181=1),0,IF(AND(OR(Calculations!$E$2=\"Shetland Health Board\",Calculations!$E$2=\"Western Isles Health Board\",Calculations!$E$2=\"Shetland Islands Local Authority\",Calculations!$E$2=\"Eilean Siar Local Authority\"),OR($F181=1,$F181=5)),0,prem_mort(VALUE(LEFT(Options!$B$14,2)),$C181,$E181,$F181,2016,$I181/10+$J181/10,1,$H181/10,$G181*$H181/10,RateRatios_airpollution!$E181)*10))","v":24.272746998999999},24.27284624,24.268659844999998,1067.5198261810001,1067.33570852,4715.32218784,4714.4884462919999,24.27284624,24.268659844999998,74.002579999999995,73.989816600609743,3254.6336164054883,3254.0722820731708,14375.98228,14373.440385036585,74.002579999999995,73.989816600609743,518018.05999999994,517928.71620426822,22782435.314838417,22778505.974512197,100631875.96000001,100614082.6952561,518018.05999999994,517928.71620426822,7000]
[null,"Female 40-44",42.077438000000001,82.30744,"female",4,1,{"$f":"HLOOKUP(Calculations!$E$2,'Population 2016'!$C$3:$BC$249,'Population 2016'!BD182,FALSE)","v":35805},0,{"$f":"HLOOKUP(Calculations!$E$2,Pop2016_in_settlements!$C$3:$BC$249,Pop2016_in_settlements!$BD182,FALSE)","v":14019},{"$f":"IF(AND(OR(Calculations!$E$2=\"Orkney Health Board\",Calculations!$E$2=\"Orkney Islands Local Authority\"),$F182=1),0,IF(AND(OR(Calculations!$E$2=\"Shetland Health Board\",Calculations!$E$2=\"Western Isles Health Board\",Calculations!$E$2=\"Shetland Islands Local Authority\",Calculations!$E$2=\"Eilean Siar Local Authority\"),OR($F182=1,$F182=5)),0,new_ci(VALUE(LEFT(Options!$B$14,2)),$C182,$E182,$F182,2016,$I182/10,1,$H182/10,$G182*$H182/10,RateRatios_accidents!$B$5)*10))","v":41.084708626000001},{"$f":"IF(AND(OR(Calculations!$E$2=\"Orkney Health Board\",Calculations!$E$2=\"Orkney Islands Local Authority\"),$F182=1),0,IF(AND(OR(Calculations!$E$2=\"Shetland Health Board\",Calculations!$E$2=\"Western Isles Health Board\",Calculations!$E$2=\"Shetland Islands Local Authority\",Calculations!$E$2=\"Eilean Siar Local Authority\"),OR($F182=1,$F182=5)),0,new_ci(VALUE(LEFT(Options!$B$14,2)),$C182,$E182,$F182,2016,$I182/10+$J182/10,1,$H182/10,$G182*$H182/10,RateRatios_accidents!$B$5)*10))","v":41.078278111000003},{"$f":"IF(AND(OR(Calculations!$E$2=\"Orkney Health Board\",Calculations!$E$2=\"Orkney Islands Local Authority\"),$F182=1),0,IF(AND(OR(Calculations!$E$2=\"Shetland Health Board\",Calculations!$E$2=\"Western Isles Health Board\",Calculations!$E$2=\"Shetland Islands Local Authority\",Calculations!$E$2=\"Eilean Siar Local Authority\"),OR($F182=1,$F182=5)),0,new_yllv2(VALUE(LEFT(Options!$B$14,2)),$C182,$D182,$E182,$F182,2016,$I182/10,1,$H182/10,$G182*$H182/10,RateRatios_accidents!$B$5)*10))","v":1611.7532015669999},{"$f":"IF(AND(OR(Calculations!$E$2=\"Orkney Health Board\",Calculations!$E$2=\"Orkney Islands Local Authority\"),$F182=1),0,IF(AND(OR(Calculations!$E$2=\"Shetland Health Board\",Calculations!$E$2=\"Western Isles Health Board\",Calculations!$E$2=\"Shetland Islands Local Authority\",Calculations!$E$2=\"Eilean Siar Local Authority\"),OR($F182=1,$F182=5)),0,new_yllv2(VALUE(LEFT(Options!$B$14,2)),$C182,$D182,$E182,$F182,2016,$I182/10+$J182/10,1,$H182/10,$G182*$H182/10,RateRatios_accidents!$B$5)*10))","v":1611.5009324510002},{"$f":"IF(AND(OR(Calculations!$E$2=\"Orkney Health Board\",Calculations!$E$2=\"Orkney Islands Local Authority\"),$F182=1),0,IF(AND(OR(Calculations!$E$2=\"Shetland Health Board\",Calculations!$E$2=\"Western Isles Health Board\",Calculations!$E$2=\"Shetland Islands Local Authority\",Calculations!$E$2=\"Eilean Siar Local Authority\"),OR($F182=1,$F182=5)),0,hosp_count(VALUE(LEFT(Options!$B$14,2)),$C182,$E182,$F182,2016,$I182/10,1,$H182/10,$G182*$H182/10, RateRatios_accidents!$B$4, RateRatios_accidents!$B$5)*10))","v":5860.6013343569994},{"$f":"IF(AND(OR(Calculations!$E$2=\"Orkney Health Board\",Calculations!$E$2=\"Orkney Islands Local Authority\"),$F182=1),0,IF(AND(OR(Calculations!$E$2=\"Shetland Health Board\",Calculations!$E$2=\"Western Isles Health Board\",Calculations!$E$2=\"Shetland Islands Local Authority\",Calculations!$E$2=\"Eilean Siar Local Authority\"),OR($F182=1,$F182=5)),0,hosp_count(VALUE(LEFT(Options!$B$14,2)),$C182,$E182,$F182,2016,$I182/10+$J182/10,1,$H182/10,$G182*$H182/10, RateRatios_accidents!$B$4, RateRatios_accidents!$B$5)*10))","v":5859.6834767810005},{"$f":"IF(AND(OR(Calculations!$E$2=\"Orkney Health Board\",Calculations!$E$2=\"Orkney Islands Local Authority\"),$F182=1),0,IF(AND(OR(Calculations!$E$2=\"Shetland Health Board\",Calculations!$E$2=\"Western Isles Health Board\",Calculations!$E$2=\"Shetland Islands Local Authority\",Calculations!$E$2=\"Eilean Siar Local Authority\"),OR($F182=1,$F182=5)),0,prem_mort(VALUE(LEFT(Options!$B$14,2)),$C182,$E182,$F182,2016,$I182/10,1,$H182/10,$G182*$H182/10,RateRatios_accidents!$B$5)*10))","v":41.084708626000001},{"$f":"IF(AND(OR(Calculations!$E$2=\"Orkney Health Board\",Calculations!$E$2=\"Orkney Islands Local Authority\"),$F182=1),0,IF(AND(OR(Calculations!$E$2=\"Shetland Health Board\",Calculations!$E$2=\"Western Isles Health Board\",Calculations!$E$2=\"Shetland Islands Local Authority\",Calculations!$E$2=\"Eilean Siar Local Authority\"),OR($F182=1,$F182=5)),0,prem_mort(VALUE(LEFT(Options!$B$14,2)),$C182,$E182,$F182,2016,$I182/10+$J182/10,1,$H182/10,$G182*$H182/10,RateRatios_accidents!$B$5)*10))","v":41.078278111000003},null,{"$f":"IF(AND(OR(Calculations!$E$2=\"Orkney Health Board\",Calculations!$E$2=\"Orkney Islands Local Authority\"),$F182=1),0,IF(AND(OR(Calculations!$E$2=\"Shetland Health Board\",Calculations!$E$2=\"Western Isles Health Board\",Calculations!$E$2=\"Shetland Islands Local Authority\",Calculations!$E$2=\"Eilean Siar Local Authority\"),OR($F182=1,$F182=5)),0,new_ci(VALUE(LEFT(Options!$B$14,2)),$C182,$E182,$F182,2016,$I182/10,1,$H182/10,$G182*$H182/10,RateRatios_airpollution!$C182)*10))","v":41.084708626000001},{"$f":"IF(AND(OR(Calculations!$E$2=\"Orkney Health Board\",Calculations!$E$2=\"Orkney Islands Local Authority\"),$F182=1),0,IF(AND(OR(Calculations!$E$2=\"Shetland Health Board\",Calculations!$E$2=\"Western Isles Health Board\",Calculations!$E$2=\"Shetland Islands Local Authority\",Calculations!$E$2=\"Eilean Siar Local Authority\"),OR($F182=1,$F182=5)),0,new_ci(VALUE(LEFT(Options!$B$14,2)),$C182,$E182,$F182,2016,$I182/10+$J182/10,1,$H182/10,$G182*$H182/10,RateRatios_airpollution!$C182)*10))","v":41.084360955000001},{"$f":"IF(AND(OR(Calculations!$E$2=\"Orkney Health Board\",Calculations!$E$2=\"Orkney Islands Local Authority\"),$F182=1),0,IF(AND(OR(Calculations!$E$2=\"Shetland Health Board\",Calculations!$E$2=\"Western Isles Health Board\",Calculations!$E$2=\"Shetland Islands Local Authority\",Calculations!$E$2=\"Eilean Siar Local Authority\"),OR($F182=1,$F182=5)),0,new_yllv2(VALUE(LEFT(Options!$B$14,2)),$C182,$D182,$E182,$F182,2016,$I182/10,1,$H182/10,$G182*$H182/10,RateRatios_airpollution!$C182)*10))","v":1611.7532015669999},{"$f":"IF(AND(OR(Calculations!$E$2=\"Orkney Health Board\",Calculations!$E$2=\"Orkney Islands Local Authority\"),$F182=1),0,IF(AND(OR(Calculations!$E$2=\"Shetland Health Board\",Calculations!$E$2=\"Western Isles Health Board\",Calculations!$E$2=\"Shetland Islands Local Authority\",Calculations!$E$2=\"Eilean Siar Local Authority\"),OR($F182=1,$F182=5)),0,new_yllv2(VALUE(LEFT(Options!$B$14,2)),$C182,$D182,$E182,$F182,2016,$I182/10+$J182/10,1,$H182/10,$G182*$H182/10,RateRatios_airpollution!$C182)*10))","v":1611.7395624330002},{"$f":"IF(AND(OR(Calculations!$E$2=\"Orkney Health Board\",Calculations!$E$2=\"Orkney Islands Local Authority\"),$F182=1),0,IF(AND(OR(Calculations!$E$2=\"Shetland Health Board\",Calculations!$E$2=\"Western Isles Health Board\",Calculations!$E$2=\"Shetland Islands Local Authority\",Calculations!$E$2=\"Eilean Siar Local Authority\"),OR($F182=1,$F182=5)),0,hosp_count(VALUE(LEFT(Options!$B$14,2)),$C182,$E182,$F182,2016,$I182/10,1,$H182/10,$G182*$H182/10, RateRatios_airpollution!$D182, RateRatios_airpollution!$C182)*10))","v":5860.6013343569994},{"$f":"IF(AND(OR(Calculations!$E$2=\"Orkney Health Board\",Calculations!$E$2=\"Orkney Islands Local Authority\"),$F182=1),0,IF(AND(OR(Calculations!$E$2=\"Shetland Health Board\",Calculations!$E$2=\"Western Isles Health Board\",Calculations!$E$2=\"Shetland Islands Local Authority\",Calculations!$E$2=\"Eilean Siar Local Authority\"),OR($F182=1,$F182=5)),0,hosp_count(VALUE(LEFT(Options!$B$14,2)),$C182,$E182,$F182,2016,$I182/10+$J182/10,1,$H182/10,$G182*$H182/10, RateRatios_airpollution!$D182, RateRatios_airpollution!$C182)*10))","v":5860.5079271619998},{"$f":"IF(AND(OR(Calculations!$E$2=\"Orkney Health Board\",Calculations!$E$2=\"Orkney Islands Local Authority\"),$F182=1),0,IF(AND(OR(Calculations!$E$2=\"Shetland Health Board\",Calculations!$E$2=\"Western Isles Health Board\",Calculations!$E$2=\"Shetland Islands Local Authority\",Calculations!$E$2=\"Eilean Siar Local Authority\"),OR($F182=1,$F182=5)),0,prem_mort(VALUE(LEFT(Options!$B$14,2)),$C182,$E182,$F182,2016,$I182/10,1,$H182/10,$G182*$H182/10,RateRatios_airpollution!$C182)*10))","v":41.084708626000001},{"$f":"IF(AND(OR(Calculations!$E$2=\"Orkney Health Board\",Calculations!$E$2=\"Orkney Islands Local Authority\"),$F182=1),0,IF(AND(OR(Calculations!$E$2=\"Shetland Health Board\",Calculations!$E$2=\"Western Isles Health Board\",Calculations!$E$2=\"Shetland Islands Local Authority\",Calculations!$E$2=\"Eilean Siar Local Authority\"),OR($F182=1,$F182=5)),0,prem_mort(VALUE(LEFT(Options!$B$14,2)),$C182,$E182,$F182,2016,$I182/10+$J182/10,1,$H182/10,$G182*$H182/10,RateRatios_airpollution!$C182)*10))","v":41.084360955000001},null,{"$f":"IF(AND(OR(Calculations!$E$2=\"Orkney Health Board\",Calculations!$E$2=\"Orkney Islands Local Authority\"),$F182=1),0,IF(AND(OR(Calculations!$E$2=\"Shetland Health Board\",Calculations!$E$2=\"Western Isles Health Board\",Calculations!$E$2=\"Shetland Islands Local Authority\",Calculations!$E$2=\"Eilean Siar Local Authority\"),OR($F182=1,$F182=5)),0,new_ci(VALUE(LEFT(Options!$B$14,2)),$C182,$E182,$F182,2016,$I182/10,1,$H182/10,$G182*$H182/10,RateRatios_airpollution!$E182)*10))","v":41.084708626000001},{"$f":"IF(AND(OR(Calculations!$E$2=\"Orkney Health Board\",Calculations!$E$2=\"Orkney Islands Local Authority\"),$F182=1),0,IF(AND(OR(Calculations!$E$2=\"Shetland Health Board\",Calculations!$E$2=\"Western Isles Health Board\",Calculations!$E$2=\"Shetland Islands Local Authority\",Calculations!$E$2=\"Eilean Siar Local Authority\"),OR($F182=1,$F182=5)),0,new_ci(VALUE(LEFT(Options!$B$14,2)),$C182,$E182,$F182,2016,$I182/10+$J182/10,1,$H182/10,$G182*$H182/10,RateRatios_airpollution!$E182)*10))","v":41.084554418000003},{"$f":"IF(AND(OR(Calculations!$E$2=\"Orkney Health Board\",Calculations!$E$2=\"Orkney Islands Local Authority\"),$F182=1),0,IF(AND(OR(Calculations!$E$2=\"Shetland Health Board\",Calculations!$E$2=\"Western Isles Health Board\",Calculations!$E$2=\"Shetland Islands Local Authority\",Calculations!$E$2=\"Eilean Siar Local Authority\"),OR($F182=1,$F182=5)),0,new_yllv2(VALUE(LEFT(Options!$B$14,2)),$C182,$D182,$E182,$F182,2016,$I182/10,1,$H182/10,$G182*$H182/10,RateRatios_airpollution!$E182)*10))","v":1611.7532015669999},{"$f":"IF(AND(OR(Calculations!$E$2=\"Orkney Health Board\",Calculations!$E$2=\"Orkney Islands Local Authority\"),$F182=1),0,IF(AND(OR(Calculations!$E$2=\"Shetland Health Board\",Calculations!$E$2=\"Western Isles Health Board\",Calculations!$E$2=\"Shetland Islands Local Authority\",Calculations!$E$2=\"Eilean Siar Local Authority\"),OR($F182=1,$F182=5)),0,new_yllv2(VALUE(LEFT(Options!$B$14,2)),$C182,$D182,$E182,$F182,2016,$I182/10+$J182/10,1,$H182/10,$G182*$H182/10,RateRatios_airpollution!$E182)*10))","v":1611.7471519870001},{"$f":"IF(AND(OR(Calculations!$E$2=\"Orkney Health Board\",Calculations!$E$2=\"Orkney Islands Local Authority\"),$F182=1),0,IF(AND(OR(Calculations!$E$2=\"Shetland Health Board\",Calculations!$E$2=\"Western Isles Health Board\",Calculations!$E$2=\"Shetland Islands Local Authority\",Calculations!$E$2=\"Eilean Siar Local Authority\"),OR($F182=1,$F182=5)),0,hosp_count(VALUE(LEFT(Options!$B$14,2)),$C182,$E182,$F182,2016,$I182/10,1,$H182/10,$G182*$H182/10, RateRatios_airpollution!$F182, RateRatios_airpollution!$E182)*10))","v":5860.6013343569994},{"$f":"IF(AND(OR(Calculations!$E$2=\"Orkney Health Board\",Calculations!$E$2=\"Orkney Islands Local Authority\"),$F182=1),0,IF(AND(OR(Calculations!$E$2=\"Shetland Health Board\",Calculations!$E$2=\"Western Isles Health Board\",Calculations!$E$2=\"Shetland Islands Local Authority\",Calculations!$E$2=\"Eilean Siar Local Authority\"),OR($F182=1,$F182=5)),0,hosp_count(VALUE(LEFT(Options!$B$14,2)),$C182,$E182,$F182,2016,$I182/10+$J182/10,1,$H182/10,$G182*$H182/10, RateRatios_airpollution!$F182, RateRatios_airpollution!$E182)*10))","v":5860.6013343569994},{"$f":"IF(AND(OR(Calculations!$E$2=\"Orkney Health Board\",Calculations!$E$2=\"Orkney Islands Local Authority\"),$F182=1),0,IF(AND(OR(Calculations!$E$2=\"Shetland Health Board\",Calculations!$E$2=\"Western Isles Health Board\",Calculations!$E$2=\"Shetland Islands Local Authority\",Calculations!$E$2=\"Eilean Siar Local Authority\"),OR($F182=1,$F182=5)),0,prem_mort(VALUE(LEFT(Options!$B$14,2)),$C182,$E182,$F182,2016,$I182/10,1,$H182/10,$G182*$H182/10,RateRatios_airpollution!$E182)*10))","v":41.084708626000001},{"$f":"IF(AND(OR(Calculations!$E$2=\"Orkney Health Board\",Calculations!$E$2=\"Orkney Islands Local Authority\"),$F182=1),0,IF(AND(OR(Calculations!$E$2=\"Shetland Health Board\",Calculations!$E$2=\"Western Isles Health Board\",Calculations!$E$2=\"Shetland Islands Local Authority\",Calculations!$E$2=\"Eilean Siar Local Authority\"),OR($F182=1,$F182=5)),0,prem_mort(VALUE(LEFT(Options!$B$14,2)),$C182,$E182,$F182,2016,$I182/10+$J182/10,1,$H182/10,$G182*$H182/10,RateRatios_airpollution!$E182)*10))","v":41.084554418000003},41.084708626000001,41.077776232000005,1611.7532015669999,1611.4812437370006,5860.6013343569994,5859.5900695860009,41.084708626000001,41.077776232000005,114.74572999860355,114.72636847367689,4501.4752173355673,4500.7156646753265,16368.108739999998,16365.284372534563,114.74572999860355,114.72636847367689,803220.10999022482,803084.57931573817,31510326.521348972,31505009.652727284,114576761.17999999,114556990.60774194,803220.10999022482,803084.57931573817,7000]
[null,"Female 45-49",47.025772000000003,82.585769999999997,"female",4,1,{"$f":"HLOOKUP(Calculations!$E$2,'Population 2016'!$C$3:$BC$249,'Population 2016'!BD183,FALSE)","v":42189},0,{"$f":"HLOOKUP(Calculations!$E$2,Pop2016_in_settlements!$C$3:$BC$249,Pop2016_in_settlements!$BD183,FALSE)","v":16491},{"$f":"IF(AND(OR(Calculations!$E$2=\"Orkney Health Board\",Calculations!$E$2=\"Orkney Islands Local Authority\"),$F183=1),0,IF(AND(OR(Calculations!$E$2=\"Shetland Health Board\",Calculations!$E$2=\"Western Isles Health Board\",Calculations!$E$2=\"Shetland Islands Local Authority\",Calculations!$E$2=\"Eilean Siar Local Authority\"),OR($F183=1,$F183=5)),0,new_ci(VALUE(LEFT(Options!$B$14,2)),$C183,$E183,$F183,2016,$I183/10,1,$H183/10,$G183*$H183/10,RateRatios_accidents!$B$5)*10))","v":73.720792809000002},{"$f":"IF(AND(OR(Calculations!$E$2=\"Orkney Health Board\",Calculations!$E$2=\"Orkney Islands Local Authority\"),$F183=1),0,IF(AND(OR(Calculations!$E$2=\"Shetland Health Board\",Calculations!$E$2=\"Western Isles Health Board\",Calculations!$E$2=\"Shetland Islands Local Authority\",Calculations!$E$2=\"Eilean Siar Local Authority\"),OR($F183=1,$F183=5)),0,new_ci(VALUE(LEFT(Options!$B$14,2)),$C183,$E183,$F183,2016,$I183/10+$J183/10,1,$H183/10,$G183*$H183/10,RateRatios_accidents!$B$5)*10))","v":73.709275495},{"$f":"IF(AND(OR(Calculations!$E$2=\"Orkney Health Board\",Calculations!$E$2=\"Orkney Islands Local Authority\"),$F183=1),0,IF(AND(OR(Calculations!$E$2=\"Shetland Health Board\",Calculations!$E$2=\"Western Isles Health Board\",Calculations!$E$2=\"Shetland Islands Local Authority\",Calculations!$E$2=\"Eilean Siar Local Authority\"),OR($F183=1,$F183=5)),0,new_yllv2(VALUE(LEFT(Options!$B$14,2)),$C183,$D183,$E183,$F183,2016,$I183/10,1,$H183/10,$G183*$H183/10,RateRatios_accidents!$B$5)*10))","v":2547.7904520370003},{"$f":"IF(AND(OR(Calculations!$E$2=\"Orkney Health Board\",Calculations!$E$2=\"Orkney Islands Local Authority\"),$F183=1),0,IF(AND(OR(Calculations!$E$2=\"Shetland Health Board\",Calculations!$E$2=\"Western Isles Health Board\",Calculations!$E$2=\"Shetland Islands Local Authority\",Calculations!$E$2=\"Eilean Siar Local Authority\"),OR($F183=1,$F183=5)),0,new_yllv2(VALUE(LEFT(Options!$B$14,2)),$C183,$D183,$E183,$F183,2016,$I183/10+$J183/10,1,$H183/10,$G183*$H183/10,RateRatios_accidents!$B$5)*10))","v":2547.392413689},{"$f":"IF(AND(OR(Calculations!$E$2=\"Orkney Health Board\",Calculations!$E$2=\"Orkney Islands Local Authority\"),$F183=1),0,IF(AND(OR(Calculations!$E$2=\"Shetland Health Board\",Calculations!$E$2=\"Western Isles Health Board\",Calculations!$E$2=\"Shetland Islands Local Authority\",Calculations!$E$2=\"Eilean Siar Local Authority\"),OR($F183=1,$F183=5)),0,hosp_count(VALUE(LEFT(Options!$B$14,2)),$C183,$E183,$F183,2016,$I183/10,1,$H183/10,$G183*$H183/10, RateRatios_accidents!$B$4, RateRatios_accidents!$B$5)*10))","v":7820.8484750380003},{"$f":"IF(AND(OR(Calculations!$E$2=\"Orkney Health Board\",Calculations!$E$2=\"Orkney Islands Local Authority\"),$F183=1),0,IF(AND(OR(Calculations!$E$2=\"Shetland Health Board\",Calculations!$E$2=\"Western Isles Health Board\",Calculations!$E$2=\"Shetland Islands Local Authority\",Calculations!$E$2=\"Eilean Siar Local Authority\"),OR($F183=1,$F183=5)),0,hosp_count(VALUE(LEFT(Options!$B$14,2)),$C183,$E183,$F183,2016,$I183/10+$J183/10,1,$H183/10,$G183*$H183/10, RateRatios_accidents!$B$4, RateRatios_accidents!$B$5)*10))","v":7819.6256574939998},{"$f":"IF(AND(OR(Calculations!$E$2=\"Orkney Health Board\",Calculations!$E$2=\"Orkney Islands Local Authority\"),$F183=1),0,IF(AND(OR(Calculations!$E$2=\"Shetland Health Board\",Calculations!$E$2=\"Western Isles Health Board\",Calculations!$E$2=\"Shetland Islands Local Authority\",Calculations!$E$2=\"Eilean Siar Local Authority\"),OR($F183=1,$F183=5)),0,prem_mort(VALUE(LEFT(Options!$B$14,2)),$C183,$E183,$F183,2016,$I183/10,1,$H183/10,$G183*$H183/10,RateRatios_accidents!$B$5)*10))","v":73.720792809000002},{"$f":"IF(AND(OR(Calculations!$E$2=\"Orkney Health Board\",Calculations!$E$2=\"Orkney Islands Local Authority\"),$F183=1),0,IF(AND(OR(Calculations!$E$2=\"Shetland Health Board\",Calculations!$E$2=\"Western Isles Health Board\",Calculations!$E$2=\"Shetland Islands Local Authority\",Calculations!$E$2=\"Eilean Siar Local Authority\"),OR($F183=1,$F183=5)),0,prem_mort(VALUE(LEFT(Options!$B$14,2)),$C183,$E183,$F183,2016,$I183/10+$J183/10,1,$H183/10,$G183*$H183/10,RateRatios_accidents!$B$5)*10))","v":73.709275495},null,{"$f":"IF(AND(OR(Calculations!$E$2=\"Orkney Health Board\",Calculations!$E$2=\"Orkney Islands Local Authority\"),$F183=1),0,IF(AND(OR(Calculations!$E$2=\"Shetland Health Board\",Calculations!$E$2=\"Western Isles Health Board\",Calculations!$E$2=\"Shetland Islands Local Authority\",Calculations!$E$2=\"Eilean Siar Local Authority\"),OR($F183=1,$F183=5)),0,new_ci(VALUE(LEFT(Options!$B$14,2)),$C183,$E183,$F183,2016,$I183/10,1,$H183/10,$G183*$H183/10,RateRatios_airpollution!$C183)*10))","v":73.720792809000002},{"$f":"IF(AND(OR(Calculations!$E$2=\"Orkney Health Board\",Calculations!$E$2=\"Orkney Islands Local Authority\"),$F183=1),0,IF(AND(OR(Calculations!$E$2=\"Shetland Health Board\",Calculations!$E$2=\"Western Isles Health Board\",Calculations!$E$2=\"Shetland Islands Local Authority\",Calculations!$E$2=\"Eilean Siar Local Authority\"),OR($F183=1,$F183=5)),0,new_ci(VALUE(LEFT(Options!$B$14,2)),$C183,$E183,$F183,2016,$I183/10+$J183/10,1,$H183/10,$G183*$H183/10,RateRatios_airpollution!$C183)*10))","v":73.720202431999994},{"$f":"IF(AND(OR(Calculations!$E$2=\"Orkney Health Board\",Calculations!$E$2=\"Orkney Islands Local Authority\"),$F183=1),0,IF(AND(OR(Calculations!$E$2=\"Shetland Health Board\",Calculations!$E$2=\"Western Isles Health Board\",Calculations!$E$2=\"Shetland Islands Local Authority\",Calculations!$E$2=\"Eilean Siar Local Authority\"),OR($F183=1,$F183=5)),0,new_yllv2(VALUE(LEFT(Options!$B$14,2)),$C183,$D183,$E183,$F183,2016,$I183/10,1,$H183/10,$G183*$H183/10,RateRatios_airpollution!$C183)*10))","v":2547.7904520370003},{"$f":"IF(AND(OR(Calculations!$E$2=\"Orkney Health Board\",Calculations!$E$2=\"Orkney Islands Local Authority\"),$F183=1),0,IF(AND(OR(Calculations!$E$2=\"Shetland Health Board\",Calculations!$E$2=\"Western Isles Health Board\",Calculations!$E$2=\"Shetland Islands Local Authority\",Calculations!$E$2=\"Eilean Siar Local Authority\"),OR($F183=1,$F183=5)),0,new_yllv2(VALUE(LEFT(Options!$B$14,2)),$C183,$D183,$E183,$F183,2016,$I183/10+$J183/10,1,$H183/10,$G183*$H183/10,RateRatios_airpollution!$C183)*10))","v":2547.7700486099998},{"$f":"IF(AND(OR(Calculations!$E$2=\"Orkney Health Board\",Calculations!$E$2=\"Orkney Islands Local Authority\"),$F183=1),0,IF(AND(OR(Calculations!$E$2=\"Shetland Health Board\",Calculations!$E$2=\"Western Isles Health Board\",Calculations!$E$2=\"Shetland Islands Local Authority\",Calculations!$E$2=\"Eilean Siar Local Authority\"),OR($F183=1,$F183=5)),0,hosp_count(VALUE(LEFT(Options!$B$14,2)),$C183,$E183,$F183,2016,$I183/10,1,$H183/10,$G183*$H183/10, RateRatios_airpollution!$D183, RateRatios_airpollution!$C183)*10))","v":7820.8484750380003},{"$f":"IF(AND(OR(Calculations!$E$2=\"Orkney Health Board\",Calculations!$E$2=\"Orkney Islands Local Authority\"),$F183=1),0,IF(AND(OR(Calculations!$E$2=\"Shetland Health Board\",Calculations!$E$2=\"Western Isles Health Board\",Calculations!$E$2=\"Shetland Islands Local Authority\",Calculations!$E$2=\"Eilean Siar Local Authority\"),OR($F183=1,$F183=5)),0,hosp_count(VALUE(LEFT(Options!$B$14,2)),$C183,$E183,$F183,2016,$I183/10+$J183/10,1,$H183/10,$G183*$H183/10, RateRatios_airpollution!$D183, RateRatios_airpollution!$C183)*10))","v":7820.7302411650007},{"$f":"IF(AND(OR(Calculations!$E$2=\"Orkney Health Board\",Calculations!$E$2=\"Orkney Islands Local Authority\"),$F183=1),0,IF(AND(OR(Calculations!$E$2=\"Shetland Health Board\",Calculations!$E$2=\"Western Isles Health Board\",Calculations!$E$2=\"Shetland Islands Local Authority\",Calculations!$E$2=\"Eilean Siar Local Authority\"),OR($F183=1,$F183=5)),0,prem_mort(VALUE(LEFT(Options!$B$14,2)),$C183,$E183,$F183,2016,$I183/10,1,$H183/10,$G183*$H183/10,RateRatios_airpollution!$C183)*10))","v":73.720792809000002},{"$f":"IF(AND(OR(Calculations!$E$2=\"Orkney Health Board\",Calculations!$E$2=\"Orkney Islands Local Authority\"),$F183=1),0,IF(AND(OR(Calculations!$E$2=\"Shetland Health Board\",Calculations!$E$2=\"Western Isles Health Board\",Calculations!$E$2=\"Shetland Islands Local Authority\",Calculations!$E$2=\"Eilean Siar Local Authority\"),OR($F183=1,$F183=5)),0,prem_mort(VALUE(LEFT(Options!$B$14,2)),$C183,$E183,$F183,2016,$I183/10+$J183/10,1,$H183/10,$G183*$H183/10,RateRatios_airpollution!$C183)*10))","v":73.720202431999994},null,{"$f":"IF(AND(OR(Calculations!$E$2=\"Orkney Health Board\",Calculations!$E$2=\"Orkney Islands Local Authority\"),$F183=1),0,IF(AND(OR(Calculations!$E$2=\"Shetland Health Board\",Calculations!$E$2=\"Western Isles Health Board\",Calculations!$E$2=\"Shetland Islands Local Authority\",Calculations!$E$2=\"Eilean Siar Local Authority\"),OR($F183=1,$F183=5)),0,new_ci(VALUE(LEFT(Options!$B$14,2)),$C183,$E183,$F183,2016,$I183/10,1,$H183/10,$G183*$H183/10,RateRatios_airpollution!$E183)*10))","v":73.720792809000002},{"$f":"IF(AND(OR(Calculations!$E$2=\"Orkney Health Board\",Calculations!$E$2=\"Orkney Islands Local Authority\"),$F183=1),0,IF(AND(OR(Calculations!$E$2=\"Shetland Health Board\",Calculations!$E$2=\"Western Isles Health Board\",Calculations!$E$2=\"Shetland Islands Local Authority\",Calculations!$E$2=\"Eilean Siar Local Authority\"),OR($F183=1,$F183=5)),0,new_ci(VALUE(LEFT(Options!$B$14,2)),$C183,$E183,$F183,2016,$I183/10+$J183/10,1,$H183/10,$G183*$H183/10,RateRatios_airpollution!$E183)*10))","v":73.720528952999999},{"$f":"IF(AND(OR(Calculations!$E$2=\"Orkney Health Board\",Calculations!$E$2=\"Orkney Islands Local Authority\"),$F183=1),0,IF(AND(OR(Calculations!$E$2=\"Shetland Health Board\",Calculations!$E$2=\"Western Isles Health Board\",Calculations!$E$2=\"Shetland Islands Local Authority\",Calculations!$E$2=\"Eilean Siar Local Authority\"),OR($F183=1,$F183=5)),0,new_yllv2(VALUE(LEFT(Options!$B$14,2)),$C183,$D183,$E183,$F183,2016,$I183/10,1,$H183/10,$G183*$H183/10,RateRatios_airpollution!$E183)*10))","v":2547.7904520370003},{"$f":"IF(AND(OR(Calculations!$E$2=\"Orkney Health Board\",Calculations!$E$2=\"Orkney Islands Local Authority\"),$F183=1),0,IF(AND(OR(Calculations!$E$2=\"Shetland Health Board\",Calculations!$E$2=\"Western Isles Health Board\",Calculations!$E$2=\"Shetland Islands Local Authority\",Calculations!$E$2=\"Eilean Siar Local Authority\"),OR($F183=1,$F183=5)),0,new_yllv2(VALUE(LEFT(Options!$B$14,2)),$C183,$D183,$E183,$F183,2016,$I183/10+$J183/10,1,$H183/10,$G183*$H183/10,RateRatios_airpollution!$E183)*10))","v":2547.7813331749999},{"$f":"IF(AND(OR(Calculations!$E$2=\"Orkney Health Board\",Calculations!$E$2=\"Orkney Islands Local Authority\"),$F183=1),0,IF(AND(OR(Calculations!$E$2=\"Shetland Health Board\",Calculations!$E$2=\"Western Isles Health Board\",Calculations!$E$2=\"Shetland Islands Local Authority\",Calculations!$E$2=\"Eilean Siar Local Authority\"),OR($F183=1,$F183=5)),0,hosp_count(VALUE(LEFT(Options!$B$14,2)),$C183,$E183,$F183,2016,$I183/10,1,$H183/10,$G183*$H183/10, RateRatios_airpollution!$F183, RateRatios_airpollution!$E183)*10))","v":7820.8484750380003},{"$f":"IF(AND(OR(Calculations!$E$2=\"Orkney Health Board\",Calculations!$E$2=\"Orkney Islands Local Authority\"),$F183=1),0,IF(AND(OR(Calculations!$E$2=\"Shetland Health Board\",Calculations!$E$2=\"Western Isles Health Board\",Calculations!$E$2=\"Shetland Islands Local Authority\",Calculations!$E$2=\"Eilean Siar Local Authority\"),OR($F183=1,$F183=5)),0,hosp_count(VALUE(LEFT(Options!$B$14,2)),$C183,$E183,$F183,2016,$I183/10+$J183/10,1,$H183/10,$G183*$H183/10, RateRatios_airpollution!$F183, RateRatios_airpollution!$E183)*10))","v":7820.8484750380003},{"$f":"IF(AND(OR(Calculations!$E$2=\"Orkney Health Board\",Calculations!$E$2=\"Orkney Islands Local Authority\"),$F183=1),0,IF(AND(OR(Calculations!$E$2=\"Shetland Health Board\",Calculations!$E$2=\"Western Isles Health Board\",Calculations!$E$2=\"Shetland Islands Local Authority\",Calculations!$E$2=\"Eilean Siar Local Authority\"),OR($F183=1,$F183=5)),0,prem_mort(VALUE(LEFT(Options!$B$14,2)),$C183,$E183,$F183,2016,$I183/10,1,$H183/10,$G183*$H183/10,RateRatios_airpollution!$E183)*10))","v":73.720792809000002},{"$f":"IF(AND(OR(Calculations!$E$2=\"Orkney Health Board\",Calculations!$E$2=\"Orkney Islands Local Authority\"),$F183=1),0,IF(AND(OR(Calculations!$E$2=\"Shetland Health Board\",Calculations!$E$2=\"Western Isles Health Board\",Calculations!$E$2=\"Shetland Islands Local Authority\",Calculations!$E$2=\"Eilean Siar Local Authority\"),OR($F183=1,$F183=5)),0,prem_mort(VALUE(LEFT(Options!$B$14,2)),$C183,$E183,$F183,2016,$I183/10+$J183/10,1,$H183/10,$G183*$H183/10,RateRatios_airpollution!$E183)*10))","v":73.720528952999999},73.720792809000002,73.708421261999987,2547.7904520370003,2547.3628913999992,7820.8484750380003,7819.5074236210003,73.720792809000002,73.708421261999987,174.73936999928893,174.7100458934793,6038.9922776956091,6037.9788366635839,18537.648379999526,18534.469704475101,174.73936999928893,174.7100458934793,1223175.5899950224,1222970.3212543551,42272945.943869263,42265851.856645085,129763538.65999667,129741287.9313257,1223175.5899950224,1222970.3212543551,7000]
[null,"Female 50-54",51.990825999999998,82.980829999999997,"female",4,1,{"$f":"HLOOKUP(Calculations!$E$2,'Population 2016'!$C$3:$BC$249,'Population 2016'!BD184,FALSE)","v":44075},0,{"$f":"HLOOKUP(Calculations!$E$2,Pop2016_in_settlements!$C$3:$BC$249,Pop2016_in_settlements!$BD184,FALSE)","v":17102},{"$f":"IF(AND(OR(Calculations!$E$2=\"Orkney Health Board\",Calculations!$E$2=\"Orkney Islands Local Authority\"),$F184=1),0,IF(AND(OR(Calculations!$E$2=\"Shetland Health Board\",Calculations!$E$2=\"Western Isles Health Board\",Calculations!$E$2=\"Shetland Islands Local Authority\",Calculations!$E$2=\"Eilean Siar Local Authority\"),OR($F184=1,$F184=5)),0,new_ci(VALUE(LEFT(Options!$B$14,2)),$C184,$E184,$F184,2016,$I184/10,1,$H184/10,$G184*$H184/10,RateRatios_accidents!$B$5)*10))","v":117.43184770799999},{"$f":"IF(AND(OR(Calculations!$E$2=\"Orkney Health Board\",Calculations!$E$2=\"Orkney Islands Local Authority\"),$F184=1),0,IF(AND(OR(Calculations!$E$2=\"Shetland Health Board\",Calculations!$E$2=\"Western Isles Health Board\",Calculations!$E$2=\"Shetland Islands Local Authority\",Calculations!$E$2=\"Eilean Siar Local Authority\"),OR($F184=1,$F184=5)),0,new_ci(VALUE(LEFT(Options!$B$14,2)),$C184,$E184,$F184,2016,$I184/10+$J184/10,1,$H184/10,$G184*$H184/10,RateRatios_accidents!$B$5)*10))","v":117.413644339},{"$f":"IF(AND(OR(Calculations!$E$2=\"Orkney Health Board\",Calculations!$E$2=\"Orkney Islands Local Authority\"),$F184=1),0,IF(AND(OR(Calculations!$E$2=\"Shetland Health Board\",Calculations!$E$2=\"Western Isles Health Board\",Calculations!$E$2=\"Shetland Islands Local Authority\",Calculations!$E$2=\"Eilean Siar Local Authority\"),OR($F184=1,$F184=5)),0,new_yllv2(VALUE(LEFT(Options!$B$14,2)),$C184,$D184,$E184,$F184,2016,$I184/10,1,$H184/10,$G184*$H184/10,RateRatios_accidents!$B$5)*10))","v":3521.7815824899999},{"$f":"IF(AND(OR(Calculations!$E$2=\"Orkney Health Board\",Calculations!$E$2=\"Orkney Islands Local Authority\"),$F184=1),0,IF(AND(OR(Calculations!$E$2=\"Shetland Health Board\",Calculations!$E$2=\"Western Isles Health Board\",Calculations!$E$2=\"Shetland Islands Local Authority\",Calculations!$E$2=\"Eilean Siar Local Authority\"),OR($F184=1,$F184=5)),0,new_yllv2(VALUE(LEFT(Options!$B$14,2)),$C184,$D184,$E184,$F184,2016,$I184/10+$J184/10,1,$H184/10,$G184*$H184/10,RateRatios_accidents!$B$5)*10))","v":3521.2356633809995},{"$f":"IF(AND(OR(Calculations!$E$2=\"Orkney Health Board\",Calculations!$E$2=\"Orkney Islands Local Authority\"),$F184=1),0,IF(AND(OR(Calculations!$E$2=\"Shetland Health Board\",Calculations!$E$2=\"Western Isles Health Board\",Calculations!$E$2=\"Shetland Islands Local Authority\",Calculations!$E$2=\"Eilean Siar Local Authority\"),OR($F184=1,$F184=5)),0,hosp_count(VALUE(LEFT(Options!$B$14,2)),$C184,$E184,$F184,2016,$I184/10,1,$H184/10,$G184*$H184/10, RateRatios_accidents!$B$4, RateRatios_accidents!$B$5)*10))","v":9257.3301240100009},{"$f":"IF(AND(OR(Calculations!$E$2=\"Orkney Health Board\",Calculations!$E$2=\"Orkney Islands Local Authority\"),$F184=1),0,IF(AND(OR(Calculations!$E$2=\"Shetland Health Board\",Calculations!$E$2=\"Western Isles Health Board\",Calculations!$E$2=\"Shetland Islands Local Authority\",Calculations!$E$2=\"Eilean Siar Local Authority\"),OR($F184=1,$F184=5)),0,hosp_count(VALUE(LEFT(Options!$B$14,2)),$C184,$E184,$F184,2016,$I184/10+$J184/10,1,$H184/10,$G184*$H184/10, RateRatios_accidents!$B$4, RateRatios_accidents!$B$5)*10))","v":9255.893311451},{"$f":"IF(AND(OR(Calculations!$E$2=\"Orkney Health Board\",Calculations!$E$2=\"Orkney Islands Local Authority\"),$F184=1),0,IF(AND(OR(Calculations!$E$2=\"Shetland Health Board\",Calculations!$E$2=\"Western Isles Health Board\",Calculations!$E$2=\"Shetland Islands Local Authority\",Calculations!$E$2=\"Eilean Siar Local Authority\"),OR($F184=1,$F184=5)),0,prem_mort(VALUE(LEFT(Options!$B$14,2)),$C184,$E184,$F184,2016,$I184/10,1,$H184/10,$G184*$H184/10,RateRatios_accidents!$B$5)*10))","v":117.43184770799999},{"$f":"IF(AND(OR(Calculations!$E$2=\"Orkney Health Board\",Calculations!$E$2=\"Orkney Islands Local Authority\"),$F184=1),0,IF(AND(OR(Calculations!$E$2=\"Shetland Health Board\",Calculations!$E$2=\"Western Isles Health Board\",Calculations!$E$2=\"Shetland Islands Local Authority\",Calculations!$E$2=\"Eilean Siar Local Authority\"),OR($F184=1,$F184=5)),0,prem_mort(VALUE(LEFT(Options!$B$14,2)),$C184,$E184,$F184,2016,$I184/10+$J184/10,1,$H184/10,$G184*$H184/10,RateRatios_accidents!$B$5)*10))","v":117.413644339},null,{"$f":"IF(AND(OR(Calculations!$E$2=\"Orkney Health Board\",Calculations!$E$2=\"Orkney Islands Local Authority\"),$F184=1),0,IF(AND(OR(Calculations!$E$2=\"Shetland Health Board\",Calculations!$E$2=\"Western Isles Health Board\",Calculations!$E$2=\"Shetland Islands Local Authority\",Calculations!$E$2=\"Eilean Siar Local Authority\"),OR($F184=1,$F184=5)),0,new_ci(VALUE(LEFT(Options!$B$14,2)),$C184,$E184,$F184,2016,$I184/10,1,$H184/10,$G184*$H184/10,RateRatios_airpollution!$C184)*10))","v":117.43184770799999},{"$f":"IF(AND(OR(Calculations!$E$2=\"Orkney Health Board\",Calculations!$E$2=\"Orkney Islands Local Authority\"),$F184=1),0,IF(AND(OR(Calculations!$E$2=\"Shetland Health Board\",Calculations!$E$2=\"Western Isles Health Board\",Calculations!$E$2=\"Shetland Islands Local Authority\",Calculations!$E$2=\"Eilean Siar Local Authority\"),OR($F184=1,$F184=5)),0,new_ci(VALUE(LEFT(Options!$B$14,2)),$C184,$E184,$F184,2016,$I184/10+$J184/10,1,$H184/10,$G184*$H184/10,RateRatios_airpollution!$C184)*10))","v":117.430919069},{"$f":"IF(AND(OR(Calculations!$E$2=\"Orkney Health Board\",Calculations!$E$2=\"Orkney Islands Local Authority\"),$F184=1),0,IF(AND(OR(Calculations!$E$2=\"Shetland Health Board\",Calculations!$E$2=\"Western Isles Health Board\",Calculations!$E$2=\"Shetland Islands Local Authority\",Calculations!$E$2=\"Eilean Siar Local Authority\"),OR($F184=1,$F184=5)),0,new_yllv2(VALUE(LEFT(Options!$B$14,2)),$C184,$D184,$E184,$F184,2016,$I184/10,1,$H184/10,$G184*$H184/10,RateRatios_airpollution!$C184)*10))","v":3521.7815824899999},{"$f":"IF(AND(OR(Calculations!$E$2=\"Orkney Health Board\",Calculations!$E$2=\"Orkney Islands Local Authority\"),$F184=1),0,IF(AND(OR(Calculations!$E$2=\"Shetland Health Board\",Calculations!$E$2=\"Western Isles Health Board\",Calculations!$E$2=\"Shetland Islands Local Authority\",Calculations!$E$2=\"Eilean Siar Local Authority\"),OR($F184=1,$F184=5)),0,new_yllv2(VALUE(LEFT(Options!$B$14,2)),$C184,$D184,$E184,$F184,2016,$I184/10+$J184/10,1,$H184/10,$G184*$H184/10,RateRatios_airpollution!$C184)*10))","v":3521.7537326029997},{"$f":"IF(AND(OR(Calculations!$E$2=\"Orkney Health Board\",Calculations!$E$2=\"Orkney Islands Local Authority\"),$F184=1),0,IF(AND(OR(Calculations!$E$2=\"Shetland Health Board\",Calculations!$E$2=\"Western Isles Health Board\",Calculations!$E$2=\"Shetland Islands Local Authority\",Calculations!$E$2=\"Eilean Siar Local Authority\"),OR($F184=1,$F184=5)),0,hosp_count(VALUE(LEFT(Options!$B$14,2)),$C184,$E184,$F184,2016,$I184/10,1,$H184/10,$G184*$H184/10, RateRatios_airpollution!$D184, RateRatios_airpollution!$C184)*10))","v":9257.3301240100009},{"$f":"IF(AND(OR(Calculations!$E$2=\"Orkney Health Board\",Calculations!$E$2=\"Orkney Islands Local Authority\"),$F184=1),0,IF(AND(OR(Calculations!$E$2=\"Shetland Health Board\",Calculations!$E$2=\"Western Isles Health Board\",Calculations!$E$2=\"Shetland Islands Local Authority\",Calculations!$E$2=\"Eilean Siar Local Authority\"),OR($F184=1,$F184=5)),0,hosp_count(VALUE(LEFT(Options!$B$14,2)),$C184,$E184,$F184,2016,$I184/10+$J184/10,1,$H184/10,$G184*$H184/10, RateRatios_airpollution!$D184, RateRatios_airpollution!$C184)*10))","v":9257.1922203229988},{"$f":"IF(AND(OR(Calculations!$E$2=\"Orkney Health Board\",Calculations!$E$2=\"Orkney Islands Local Authority\"),$F184=1),0,IF(AND(OR(Calculations!$E$2=\"Shetland Health Board\",Calculations!$E$2=\"Western Isles Health Board\",Calculations!$E$2=\"Shetland Islands Local Authority\",Calculations!$E$2=\"Eilean Siar Local Authority\"),OR($F184=1,$F184=5)),0,prem_mort(VALUE(LEFT(Options!$B$14,2)),$C184,$E184,$F184,2016,$I184/10,1,$H184/10,$G184*$H184/10,RateRatios_airpollution!$C184)*10))","v":117.43184770799999},{"$f":"IF(AND(OR(Calculations!$E$2=\"Orkney Health Board\",Calculations!$E$2=\"Orkney Islands Local Authority\"),$F184=1),0,IF(AND(OR(Calculations!$E$2=\"Shetland Health Board\",Calculations!$E$2=\"Western Isles Health Board\",Calculations!$E$2=\"Shetland Islands Local Authority\",Calculations!$E$2=\"Eilean Siar Local Authority\"),OR($F184=1,$F184=5)),0,prem_mort(VALUE(LEFT(Options!$B$14,2)),$C184,$E184,$F184,2016,$I184/10+$J184/10,1,$H184/10,$G184*$H184/10,RateRatios_airpollution!$C184)*10))","v":117.430919069},null,{"$f":"IF(AND(OR(Calculations!$E$2=\"Orkney Health Board\",Calculations!$E$2=\"Orkney Islands Local Authority\"),$F184=1),0,IF(AND(OR(Calculations!$E$2=\"Shetland Health Board\",Calculations!$E$2=\"Western Isles Health Board\",Calculations!$E$2=\"Shetland Islands Local Authority\",Calculations!$E$2=\"Eilean Siar Local Authority\"),OR($F184=1,$F184=5)),0,new_ci(VALUE(LEFT(Options!$B$14,2)),$C184,$E184,$F184,2016,$I184/10,1,$H184/10,$G184*$H184/10,RateRatios_airpollution!$E184)*10))","v":117.43184770799999},{"$f":"IF(AND(OR(Calculations!$E$2=\"Orkney Health Board\",Calculations!$E$2=\"Orkney Islands Local Authority\"),$F184=1),0,IF(AND(OR(Calculations!$E$2=\"Shetland Health Board\",Calculations!$E$2=\"Western Isles Health Board\",Calculations!$E$2=\"Shetland Islands Local Authority\",Calculations!$E$2=\"Eilean Siar Local Authority\"),OR($F184=1,$F184=5)),0,new_ci(VALUE(LEFT(Options!$B$14,2)),$C184,$E184,$F184,2016,$I184/10+$J184/10,1,$H184/10,$G184*$H184/10,RateRatios_airpollution!$E184)*10))","v":117.431428708},{"$f":"IF(AND(OR(Calculations!$E$2=\"Orkney Health Board\",Calculations!$E$2=\"Orkney Islands Local Authority\"),$F184=1),0,IF(AND(OR(Calculations!$E$2=\"Shetland Health Board\",Calculations!$E$2=\"Western Isles Health Board\",Calculations!$E$2=\"Shetland Islands Local Authority\",Calculations!$E$2=\"Eilean Siar Local Authority\"),OR($F184=1,$F184=5)),0,new_yllv2(VALUE(LEFT(Options!$B$14,2)),$C184,$D184,$E184,$F184,2016,$I184/10,1,$H184/10,$G184*$H184/10,RateRatios_airpollution!$E184)*10))","v":3521.7815824899999},{"$f":"IF(AND(OR(Calculations!$E$2=\"Orkney Health Board\",Calculations!$E$2=\"Orkney Islands Local Authority\"),$F184=1),0,IF(AND(OR(Calculations!$E$2=\"Shetland Health Board\",Calculations!$E$2=\"Western Isles Health Board\",Calculations!$E$2=\"Shetland Islands Local Authority\",Calculations!$E$2=\"Eilean Siar Local Authority\"),OR($F184=1,$F184=5)),0,new_yllv2(VALUE(LEFT(Options!$B$14,2)),$C184,$D184,$E184,$F184,2016,$I184/10+$J184/10,1,$H184/10,$G184*$H184/10,RateRatios_airpollution!$E184)*10))","v":3521.7690166789998},{"$f":"IF(AND(OR(Calculations!$E$2=\"Orkney Health Board\",Calculations!$E$2=\"Orkney Islands Local Authority\"),$F184=1),0,IF(AND(OR(Calculations!$E$2=\"Shetland Health Board\",Calculations!$E$2=\"Western Isles Health Board\",Calculations!$E$2=\"Shetland Islands Local Authority\",Calculations!$E$2=\"Eilean Siar Local Authority\"),OR($F184=1,$F184=5)),0,hosp_count(VALUE(LEFT(Options!$B$14,2)),$C184,$E184,$F184,2016,$I184/10,1,$H184/10,$G184*$H184/10, RateRatios_airpollution!$F184, RateRatios_airpollution!$E184)*10))","v":9257.3301240100009},{"$f":"IF(AND(OR(Calculations!$E$2=\"Orkney Health Board\",Calculations!$E$2=\"Orkney Islands Local Authority\"),$F184=1),0,IF(AND(OR(Calculations!$E$2=\"Shetland Health Board\",Calculations!$E$2=\"Western Isles Health Board\",Calculations!$E$2=\"Shetland Islands Local Authority\",Calculations!$E$2=\"Eilean Siar Local Authority\"),OR($F184=1,$F184=5)),0,hosp_count(VALUE(LEFT(Options!$B$14,2)),$C184,$E184,$F184,2016,$I184/10+$J184/10,1,$H184/10,$G184*$H184/10, RateRatios_airpollution!$F184, RateRatios_airpollution!$E184)*10))","v":9257.3301240100009},{"$f":"IF(AND(OR(Calculations!$E$2=\"Orkney Health Board\",Calculations!$E$2=\"Orkney Islands Local Authority\"),$F184=1),0,IF(AND(OR(Calculations!$E$2=\"Shetland Health Board\",Calculations!$E$2=\"Western Isles Health Board\",Calculations!$E$2=\"Shetland Islands Local Authority\",Calculations!$E$2=\"Eilean Siar Local Authority\"),OR($F184=1,$F184=5)),0,prem_mort(VALUE(LEFT(Options!$B$14,2)),$C184,$E184,$F184,2016,$I184/10,1,$H184/10,$G184*$H184/10,RateRatios_airpollution!$E184)*10))","v":117.43184770799999},{"$f":"IF(AND(OR(Calculations!$E$2=\"Orkney Health Board\",Calculations!$E$2=\"Orkney Islands Local Authority\"),$F184=1),0,IF(AND(OR(Calculations!$E$2=\"Shetland Health Board\",Calculations!$E$2=\"Western Isles Health Board\",Calculations!$E$2=\"Shetland Islands Local Authority\",Calculations!$E$2=\"Eilean Siar Local Authority\"),OR($F184=1,$F184=5)),0,prem_mort(VALUE(LEFT(Options!$B$14,2)),$C184,$E184,$F184,2016,$I184/10+$J184/10,1,$H184/10,$G184*$H184/10,RateRatios_airpollution!$E184)*10))","v":117.431428708},117.43184770799999,117.41229670000001,3521.7815824899999,3521.1952476829993,9257.3301240100009,9255.7554077639979,117.43184770799999,117.41229670000001,266.43641000113445,266.39205150311972,7990.4290016789564,7989.0986901486085,21003.585080000004,21000.012269458872,266.43641000113445,266.39205150311972,1865054.870007941,1864744.3605218381,55933003.011752695,55923690.831040263,147025095.56000003,147000085.88621211,1865054.870007941,1864744.3605218381,7000]
[null,"Female 55-59",56.953040999999999,83.473039999999997,"female",4,1,{"$f":"HLOOKUP(Calculations!$E$2,'Population 2016'!$C$3:$BC$249,'Population 2016'!BD185,FALSE)","v":39814},0,{"$f":"HLOOKUP(Calculations!$E$2,Pop2016_in_settlements!$C$3:$BC$249,Pop2016_in_settlements!$BD185,FALSE)","v":15897},{"$f":"IF(AND(OR(Calculations!$E$2=\"Orkney Health Board\",Calculations!$E$2=\"Orkney Islands Local Authority\"),$F185=1),0,IF(AND(OR(Calculations!$E$2=\"Shetland Health Board\",Calculations!$E$2=\"Western Isles Health Board\",Calculations!$E$2=\"Shetland Islands Local Authority\",Calculations!$E$2=\"Eilean Siar Local Authority\"),OR($F185=1,$F185=5)),0,new_ci(VALUE(LEFT(Options!$B$14,2)),$C185,$E185,$F185,2016,$I185/10,1,$H185/10,$G185*$H185/10,RateRatios_accidents!$B$5)*10))","v":161.66751009199999},{"$f":"IF(AND(OR(Calculations!$E$2=\"Orkney Health Board\",Calculations!$E$2=\"Orkney Islands Local Authority\"),$F185=1),0,IF(AND(OR(Calculations!$E$2=\"Shetland Health Board\",Calculations!$E$2=\"Western Isles Health Board\",Calculations!$E$2=\"Shetland Islands Local Authority\",Calculations!$E$2=\"Eilean Siar Local Authority\"),OR($F185=1,$F185=5)),0,new_ci(VALUE(LEFT(Options!$B$14,2)),$C185,$E185,$F185,2016,$I185/10+$J185/10,1,$H185/10,$G185*$H185/10,RateRatios_accidents!$B$5)*10))","v":161.641742644},{"$f":"IF(AND(OR(Calculations!$E$2=\"Orkney Health Board\",Calculations!$E$2=\"Orkney Islands Local Authority\"),$F185=1),0,IF(AND(OR(Calculations!$E$2=\"Shetland Health Board\",Calculations!$E$2=\"Western Isles Health Board\",Calculations!$E$2=\"Shetland Islands Local Authority\",Calculations!$E$2=\"Eilean Siar Local Authority\"),OR($F185=1,$F185=5)),0,new_yllv2(VALUE(LEFT(Options!$B$14,2)),$C185,$D185,$E185,$F185,2016,$I185/10,1,$H185/10,$G185*$H185/10,RateRatios_accidents!$B$5)*10))","v":4125.7546958799994},{"$f":"IF(AND(OR(Calculations!$E$2=\"Orkney Health Board\",Calculations!$E$2=\"Orkney Islands Local Authority\"),$F185=1),0,IF(AND(OR(Calculations!$E$2=\"Shetland Health Board\",Calculations!$E$2=\"Western Isles Health Board\",Calculations!$E$2=\"Shetland Islands Local Authority\",Calculations!$E$2=\"Eilean Siar Local Authority\"),OR($F185=1,$F185=5)),0,new_yllv2(VALUE(LEFT(Options!$B$14,2)),$C185,$D185,$E185,$F185,2016,$I185/10+$J185/10,1,$H185/10,$G185*$H185/10,RateRatios_accidents!$B$5)*10))","v":4125.0971106329998},{"$f":"IF(AND(OR(Calculations!$E$2=\"Orkney Health Board\",Calculations!$E$2=\"Orkney Islands Local Authority\"),$F185=1),0,IF(AND(OR(Calculations!$E$2=\"Shetland Health Board\",Calculations!$E$2=\"Western Isles Health Board\",Calculations!$E$2=\"Shetland Islands Local Authority\",Calculations!$E$2=\"Eilean Siar Local Authority\"),OR($F185=1,$F185=5)),0,hosp_count(VALUE(LEFT(Options!$B$14,2)),$C185,$E185,$F185,2016,$I185/10,1,$H185/10,$G185*$H185/10, RateRatios_accidents!$B$4, RateRatios_accidents!$B$5)*10))","v":9474.0793686369998},{"$f":"IF(AND(OR(Calculations!$E$2=\"Orkney Health Board\",Calculations!$E$2=\"Orkney Islands Local Authority\"),$F185=1),0,IF(AND(OR(Calculations!$E$2=\"Shetland Health Board\",Calculations!$E$2=\"Western Isles Health Board\",Calculations!$E$2=\"Shetland Islands Local Authority\",Calculations!$E$2=\"Eilean Siar Local Authority\"),OR($F185=1,$F185=5)),0,hosp_count(VALUE(LEFT(Options!$B$14,2)),$C185,$E185,$F185,2016,$I185/10+$J185/10,1,$H185/10,$G185*$H185/10, RateRatios_accidents!$B$4, RateRatios_accidents!$B$5)*10))","v":9472.5662381269995},{"$f":"IF(AND(OR(Calculations!$E$2=\"Orkney Health Board\",Calculations!$E$2=\"Orkney Islands Local Authority\"),$F185=1),0,IF(AND(OR(Calculations!$E$2=\"Shetland Health Board\",Calculations!$E$2=\"Western Isles Health Board\",Calculations!$E$2=\"Shetland Islands Local Authority\",Calculations!$E$2=\"Eilean Siar Local Authority\"),OR($F185=1,$F185=5)),0,prem_mort(VALUE(LEFT(Options!$B$14,2)),$C185,$E185,$F185,2016,$I185/10,1,$H185/10,$G185*$H185/10,RateRatios_accidents!$B$5)*10))","v":161.66751009199999},{"$f":"IF(AND(OR(Calculations!$E$2=\"Orkney Health Board\",Calculations!$E$2=\"Orkney Islands Local Authority\"),$F185=1),0,IF(AND(OR(Calculations!$E$2=\"Shetland Health Board\",Calculations!$E$2=\"Western Isles Health Board\",Calculations!$E$2=\"Shetland Islands Local Authority\",Calculations!$E$2=\"Eilean Siar Local Authority\"),OR($F185=1,$F185=5)),0,prem_mort(VALUE(LEFT(Options!$B$14,2)),$C185,$E185,$F185,2016,$I185/10+$J185/10,1,$H185/10,$G185*$H185/10,RateRatios_accidents!$B$5)*10))","v":161.641742644},null,{"$f":"IF(AND(OR(Calculations!$E$2=\"Orkney Health Board\",Calculations!$E$2=\"Orkney Islands Local Authority\"),$F185=1),0,IF(AND(OR(Calculations!$E$2=\"Shetland Health Board\",Calculations!$E$2=\"Western Isles Health Board\",Calculations!$E$2=\"Shetland Islands Local Authority\",Calculations!$E$2=\"Eilean Siar Local Authority\"),OR($F185=1,$F185=5)),0,new_ci(VALUE(LEFT(Options!$B$14,2)),$C185,$E185,$F185,2016,$I185/10,1,$H185/10,$G185*$H185/10,RateRatios_airpollution!$C185)*10))","v":161.66751009199999},{"$f":"IF(AND(OR(Calculations!$E$2=\"Orkney Health Board\",Calculations!$E$2=\"Orkney Islands Local Authority\"),$F185=1),0,IF(AND(OR(Calculations!$E$2=\"Shetland Health Board\",Calculations!$E$2=\"Western Isles Health Board\",Calculations!$E$2=\"Shetland Islands Local Authority\",Calculations!$E$2=\"Eilean Siar Local Authority\"),OR($F185=1,$F185=5)),0,new_ci(VALUE(LEFT(Options!$B$14,2)),$C185,$E185,$F185,2016,$I185/10+$J185/10,1,$H185/10,$G185*$H185/10,RateRatios_airpollution!$C185)*10))","v":161.666189051},{"$f":"IF(AND(OR(Calculations!$E$2=\"Orkney Health Board\",Calculations!$E$2=\"Orkney Islands Local Authority\"),$F185=1),0,IF(AND(OR(Calculations!$E$2=\"Shetland Health Board\",Calculations!$E$2=\"Western Isles Health Board\",Calculations!$E$2=\"Shetland Islands Local Authority\",Calculations!$E$2=\"Eilean Siar Local Authority\"),OR($F185=1,$F185=5)),0,new_yllv2(VALUE(LEFT(Options!$B$14,2)),$C185,$D185,$E185,$F185,2016,$I185/10,1,$H185/10,$G185*$H185/10,RateRatios_airpollution!$C185)*10))","v":4125.7546958799994},{"$f":"IF(AND(OR(Calculations!$E$2=\"Orkney Health Board\",Calculations!$E$2=\"Orkney Islands Local Authority\"),$F185=1),0,IF(AND(OR(Calculations!$E$2=\"Shetland Health Board\",Calculations!$E$2=\"Western Isles Health Board\",Calculations!$E$2=\"Shetland Islands Local Authority\",Calculations!$E$2=\"Eilean Siar Local Authority\"),OR($F185=1,$F185=5)),0,new_yllv2(VALUE(LEFT(Options!$B$14,2)),$C185,$D185,$E185,$F185,2016,$I185/10+$J185/10,1,$H185/10,$G185*$H185/10,RateRatios_airpollution!$C185)*10))","v":4125.7209829150006},{"$f":"IF(AND(OR(Calculations!$E$2=\"Orkney Health Board\",Calculations!$E$2=\"Orkney Islands Local Authority\"),$F185=1),0,IF(AND(OR(Calculations!$E$2=\"Shetland Health Board\",Calculations!$E$2=\"Western Isles Health Board\",Calculations!$E$2=\"Shetland Islands Local Authority\",Calculations!$E$2=\"Eilean Siar Local Authority\"),OR($F185=1,$F185=5)),0,hosp_count(VALUE(LEFT(Options!$B$14,2)),$C185,$E185,$F185,2016,$I185/10,1,$H185/10,$G185*$H185/10, RateRatios_airpollution!$D185, RateRatios_airpollution!$C185)*10))","v":9474.0793686369998},{"$f":"IF(AND(OR(Calculations!$E$2=\"Orkney Health Board\",Calculations!$E$2=\"Orkney Islands Local Authority\"),$F185=1),0,IF(AND(OR(Calculations!$E$2=\"Shetland Health Board\",Calculations!$E$2=\"Western Isles Health Board\",Calculations!$E$2=\"Shetland Islands Local Authority\",Calculations!$E$2=\"Eilean Siar Local Authority\"),OR($F185=1,$F185=5)),0,hosp_count(VALUE(LEFT(Options!$B$14,2)),$C185,$E185,$F185,2016,$I185/10+$J185/10,1,$H185/10,$G185*$H185/10, RateRatios_airpollution!$D185, RateRatios_airpollution!$C185)*10))","v":9473.9333181290003},{"$f":"IF(AND(OR(Calculations!$E$2=\"Orkney Health Board\",Calculations!$E$2=\"Orkney Islands Local Authority\"),$F185=1),0,IF(AND(OR(Calculations!$E$2=\"Shetland Health Board\",Calculations!$E$2=\"Western Isles Health Board\",Calculations!$E$2=\"Shetland Islands Local Authority\",Calculations!$E$2=\"Eilean Siar Local Authority\"),OR($F185=1,$F185=5)),0,prem_mort(VALUE(LEFT(Options!$B$14,2)),$C185,$E185,$F185,2016,$I185/10,1,$H185/10,$G185*$H185/10,RateRatios_airpollution!$C185)*10))","v":161.66751009199999},{"$f":"IF(AND(OR(Calculations!$E$2=\"Orkney Health Board\",Calculations!$E$2=\"Orkney Islands Local Authority\"),$F185=1),0,IF(AND(OR(Calculations!$E$2=\"Shetland Health Board\",Calculations!$E$2=\"Western Isles Health Board\",Calculations!$E$2=\"Shetland Islands Local Authority\",Calculations!$E$2=\"Eilean Siar Local Authority\"),OR($F185=1,$F185=5)),0,prem_mort(VALUE(LEFT(Options!$B$14,2)),$C185,$E185,$F185,2016,$I185/10+$J185/10,1,$H185/10,$G185*$H185/10,RateRatios_airpollution!$C185)*10))","v":161.666189051},null,{"$f":"IF(AND(OR(Calculations!$E$2=\"Orkney Health Board\",Calculations!$E$2=\"Orkney Islands Local Authority\"),$F185=1),0,IF(AND(OR(Calculations!$E$2=\"Shetland Health Board\",Calculations!$E$2=\"Western Isles Health Board\",Calculations!$E$2=\"Shetland Islands Local Authority\",Calculations!$E$2=\"Eilean Siar Local Authority\"),OR($F185=1,$F185=5)),0,new_ci(VALUE(LEFT(Options!$B$14,2)),$C185,$E185,$F185,2016,$I185/10,1,$H185/10,$G185*$H185/10,RateRatios_airpollution!$E185)*10))","v":161.66751009199999},{"$f":"IF(AND(OR(Calculations!$E$2=\"Orkney Health Board\",Calculations!$E$2=\"Orkney Islands Local Authority\"),$F185=1),0,IF(AND(OR(Calculations!$E$2=\"Shetland Health Board\",Calculations!$E$2=\"Western Isles Health Board\",Calculations!$E$2=\"Shetland Islands Local Authority\",Calculations!$E$2=\"Eilean Siar Local Authority\"),OR($F185=1,$F185=5)),0,new_ci(VALUE(LEFT(Options!$B$14,2)),$C185,$E185,$F185,2016,$I185/10+$J185/10,1,$H185/10,$G185*$H185/10,RateRatios_airpollution!$E185)*10))","v":161.66691554400001},{"$f":"IF(AND(OR(Calculations!$E$2=\"Orkney Health Board\",Calculations!$E$2=\"Orkney Islands Local Authority\"),$F185=1),0,IF(AND(OR(Calculations!$E$2=\"Shetland Health Board\",Calculations!$E$2=\"Western Isles Health Board\",Calculations!$E$2=\"Shetland Islands Local Authority\",Calculations!$E$2=\"Eilean Siar Local Authority\"),OR($F185=1,$F185=5)),0,new_yllv2(VALUE(LEFT(Options!$B$14,2)),$C185,$D185,$E185,$F185,2016,$I185/10,1,$H185/10,$G185*$H185/10,RateRatios_airpollution!$E185)*10))","v":4125.7546958799994},{"$f":"IF(AND(OR(Calculations!$E$2=\"Orkney Health Board\",Calculations!$E$2=\"Orkney Islands Local Authority\"),$F185=1),0,IF(AND(OR(Calculations!$E$2=\"Shetland Health Board\",Calculations!$E$2=\"Western Isles Health Board\",Calculations!$E$2=\"Shetland Islands Local Authority\",Calculations!$E$2=\"Eilean Siar Local Authority\"),OR($F185=1,$F185=5)),0,new_yllv2(VALUE(LEFT(Options!$B$14,2)),$C185,$D185,$E185,$F185,2016,$I185/10+$J185/10,1,$H185/10,$G185*$H185/10,RateRatios_airpollution!$E185)*10))","v":4125.739523016},{"$f":"IF(AND(OR(Calculations!$E$2=\"Orkney Health Board\",Calculations!$E$2=\"Orkney Islands Local Authority\"),$F185=1),0,IF(AND(OR(Calculations!$E$2=\"Shetland Health Board\",Calculations!$E$2=\"Western Isles Health Board\",Calculations!$E$2=\"Shetland Islands Local Authority\",Calculations!$E$2=\"Eilean Siar Local Authority\"),OR($F185=1,$F185=5)),0,hosp_count(VALUE(LEFT(Options!$B$14,2)),$C185,$E185,$F185,2016,$I185/10,1,$H185/10,$G185*$H185/10, RateRatios_airpollution!$F185, RateRatios_airpollution!$E185)*10))","v":9474.0793686369998},{"$f":"IF(AND(OR(Calculations!$E$2=\"Orkney Health Board\",Calculations!$E$2=\"Orkney Islands Local Authority\"),$F185=1),0,IF(AND(OR(Calculations!$E$2=\"Shetland Health Board\",Calculations!$E$2=\"Western Isles Health Board\",Calculations!$E$2=\"Shetland Islands Local Authority\",Calculations!$E$2=\"Eilean Siar Local Authority\"),OR($F185=1,$F185=5)),0,hosp_count(VALUE(LEFT(Options!$B$14,2)),$C185,$E185,$F185,2016,$I185/10+$J185/10,1,$H185/10,$G185*$H185/10, RateRatios_airpollution!$F185, RateRatios_airpollution!$E185)*10))","v":9474.0793686369998},{"$f":"IF(AND(OR(Calculations!$E$2=\"Orkney Health Board\",Calculations!$E$2=\"Orkney Islands Local Authority\"),$F185=1),0,IF(AND(OR(Calculations!$E$2=\"Shetland Health Board\",Calculations!$E$2=\"Western Isles Health Board\",Calculations!$E$2=\"Shetland Islands Local Authority\",Calculations!$E$2=\"Eilean Siar Local Authority\"),OR($F185=1,$F185=5)),0,prem_mort(VALUE(LEFT(Options!$B$14,2)),$C185,$E185,$F185,2016,$I185/10,1,$H185/10,$G185*$H185/10,RateRatios_airpollution!$E185)*10))","v":161.66751009199999},{"$f":"IF(AND(OR(Calculations!$E$2=\"Orkney Health Board\",Calculations!$E$2=\"Orkney Islands Local Authority\"),$F185=1),0,IF(AND(OR(Calculations!$E$2=\"Shetland Health Board\",Calculations!$E$2=\"Western Isles Health Board\",Calculations!$E$2=\"Shetland Islands Local Authority\",Calculations!$E$2=\"Eilean Siar Local Authority\"),OR($F185=1,$F185=5)),0,prem_mort(VALUE(LEFT(Options!$B$14,2)),$C185,$E185,$F185,2016,$I185/10+$J185/10,1,$H185/10,$G185*$H185/10,RateRatios_airpollution!$E185)*10))","v":161.66691554400001},161.66751009199999,161.63982705500004,4125.7546958799994,4125.0482248040016,9474.0793686369998,9472.420187619,161.66751009199999,161.63982705500004,406.05694000100465,405.98740908976754,10362.572702767869,10360.79827398403,23795.849120000505,23791.68178936806,406.05694000100465,405.98740908976754,2639370.1100065303,2638918.1590834889,67356722.567991152,67345188.780896202,154673019.28000328,154645931.6308924,2639370.1100065303,2638918.1590834889,6500]
[null,"Female 60-64",61.947387999999997,84.167389999999997,"female",4,1,{"$f":"HLOOKUP(Calculations!$E$2,'Population 2016'!$C$3:$BC$249,'Population 2016'!BD186,FALSE)","v":35061},0,{"$f":"HLOOKUP(Calculations!$E$2,Pop2016_in_settlements!$C$3:$BC$249,Pop2016_in_settlements!$BD186,FALSE)","v":13790},{"$f":"IF(AND(OR(Calculations!$E$2=\"Orkney Health Board\",Calculations!$E$2=\"Orkney Islands Local Authority\"),$F186=1),0,IF(AND(OR(Calculations!$E$2=\"Shetland Health Board\",Calculations!$E$2=\"Western Isles Health Board\",Calculations!$E$2=\"Shetland Islands Local Authority\",Calculations!$E$2=\"Eilean Siar Local Authority\"),OR($F186=1,$F186=5)),0,new_ci(VALUE(LEFT(Options!$B$14,2)),$C186,$E186,$F186,2016,$I186/10,1,$H186/10,$G186*$H186/10,RateRatios_accidents!$B$5)*10))","v":217.48450845799999},{"$f":"IF(AND(OR(Calculations!$E$2=\"Orkney Health Board\",Calculations!$E$2=\"Orkney Islands Local Authority\"),$F186=1),0,IF(AND(OR(Calculations!$E$2=\"Shetland Health Board\",Calculations!$E$2=\"Western Isles Health Board\",Calculations!$E$2=\"Shetland Islands Local Authority\",Calculations!$E$2=\"Eilean Siar Local Authority\"),OR($F186=1,$F186=5)),0,new_ci(VALUE(LEFT(Options!$B$14,2)),$C186,$E186,$F186,2016,$I186/10+$J186/10,1,$H186/10,$G186*$H186/10,RateRatios_accidents!$B$5)*10))","v":217.450398893},{"$f":"IF(AND(OR(Calculations!$E$2=\"Orkney Health Board\",Calculations!$E$2=\"Orkney Islands Local Authority\"),$F186=1),0,IF(AND(OR(Calculations!$E$2=\"Shetland Health Board\",Calculations!$E$2=\"Western Isles Health Board\",Calculations!$E$2=\"Shetland Islands Local Authority\",Calculations!$E$2=\"Eilean Siar Local Authority\"),OR($F186=1,$F186=5)),0,new_yllv2(VALUE(LEFT(Options!$B$14,2)),$C186,$D186,$E186,$F186,2016,$I186/10,1,$H186/10,$G186*$H186/10,RateRatios_accidents!$B$5)*10))","v":4615.0217044480005},{"$f":"IF(AND(OR(Calculations!$E$2=\"Orkney Health Board\",Calculations!$E$2=\"Orkney Islands Local Authority\"),$F186=1),0,IF(AND(OR(Calculations!$E$2=\"Shetland Health Board\",Calculations!$E$2=\"Western Isles Health Board\",Calculations!$E$2=\"Shetland Islands Local Authority\",Calculations!$E$2=\"Eilean Siar Local Authority\"),OR($F186=1,$F186=5)),0,new_yllv2(VALUE(LEFT(Options!$B$14,2)),$C186,$D186,$E186,$F186,2016,$I186/10+$J186/10,1,$H186/10,$G186*$H186/10,RateRatios_accidents!$B$5)*10))","v":4614.2978994100004},{"$f":"IF(AND(OR(Calculations!$E$2=\"Orkney Health Board\",Calculations!$E$2=\"Orkney Islands Local Authority\"),$F186=1),0,IF(AND(OR(Calculations!$E$2=\"Shetland Health Board\",Calculations!$E$2=\"Western Isles Health Board\",Calculations!$E$2=\"Shetland Islands Local Authority\",Calculations!$E$2=\"Eilean Siar Local Authority\"),OR($F186=1,$F186=5)),0,hosp_count(VALUE(LEFT(Options!$B$14,2)),$C186,$E186,$F186,2016,$I186/10,1,$H186/10,$G186*$H186/10, RateRatios_accidents!$B$4, RateRatios_accidents!$B$5)*10))","v":9459.850984572},{"$f":"IF(AND(OR(Calculations!$E$2=\"Orkney Health Board\",Calculations!$E$2=\"Orkney Islands Local Authority\"),$F186=1),0,IF(AND(OR(Calculations!$E$2=\"Shetland Health Board\",Calculations!$E$2=\"Western Isles Health Board\",Calculations!$E$2=\"Shetland Islands Local Authority\",Calculations!$E$2=\"Eilean Siar Local Authority\"),OR($F186=1,$F186=5)),0,hosp_count(VALUE(LEFT(Options!$B$14,2)),$C186,$E186,$F186,2016,$I186/10+$J186/10,1,$H186/10,$G186*$H186/10, RateRatios_accidents!$B$4, RateRatios_accidents!$B$5)*10))","v":9458.3627057169997},{"$f":"IF(AND(OR(Calculations!$E$2=\"Orkney Health Board\",Calculations!$E$2=\"Orkney Islands Local Authority\"),$F186=1),0,IF(AND(OR(Calculations!$E$2=\"Shetland Health Board\",Calculations!$E$2=\"Western Isles Health Board\",Calculations!$E$2=\"Shetland Islands Local Authority\",Calculations!$E$2=\"Eilean Siar Local Authority\"),OR($F186=1,$F186=5)),0,prem_mort(VALUE(LEFT(Options!$B$14,2)),$C186,$E186,$F186,2016,$I186/10,1,$H186/10,$G186*$H186/10,RateRatios_accidents!$B$5)*10))","v":217.48450845799999},{"$f":"IF(AND(OR(Calculations!$E$2=\"Orkney Health Board\",Calculations!$E$2=\"Orkney Islands Local Authority\"),$F186=1),0,IF(AND(OR(Calculations!$E$2=\"Shetland Health Board\",Calculations!$E$2=\"Western Isles Health Board\",Calculations!$E$2=\"Shetland Islands Local Authority\",Calculations!$E$2=\"Eilean Siar Local Authority\"),OR($F186=1,$F186=5)),0,prem_mort(VALUE(LEFT(Options!$B$14,2)),$C186,$E186,$F186,2016,$I186/10+$J186/10,1,$H186/10,$G186*$H186/10,RateRatios_accidents!$B$5)*10))","v":217.450398893},null,{"$f":"IF(AND(OR(Calculations!$E$2=\"Orkney Health Board\",Calculations!$E$2=\"Orkney Islands Local Authority\"),$F186=1),0,IF(AND(OR(Calculations!$E$2=\"Shetland Health Board\",Calculations!$E$2=\"Western Isles Health Board\",Calculations!$E$2=\"Shetland Islands Local Authority\",Calculations!$E$2=\"Eilean Siar Local Authority\"),OR($F186=1,$F186=5)),0,new_ci(VALUE(LEFT(Options!$B$14,2)),$C186,$E186,$F186,2016,$I186/10,1,$H186/10,$G186*$H186/10,RateRatios_airpollution!$C186)*10))","v":217.48450845799999},{"$f":"IF(AND(OR(Calculations!$E$2=\"Orkney Health Board\",Calculations!$E$2=\"Orkney Islands Local Authority\"),$F186=1),0,IF(AND(OR(Calculations!$E$2=\"Shetland Health Board\",Calculations!$E$2=\"Western Isles Health Board\",Calculations!$E$2=\"Shetland Islands Local Authority\",Calculations!$E$2=\"Eilean Siar Local Authority\"),OR($F186=1,$F186=5)),0,new_ci(VALUE(LEFT(Options!$B$14,2)),$C186,$E186,$F186,2016,$I186/10+$J186/10,1,$H186/10,$G186*$H186/10,RateRatios_airpollution!$C186)*10))","v":217.482820562},{"$f":"IF(AND(OR(Calculations!$E$2=\"Orkney Health Board\",Calculations!$E$2=\"Orkney Islands Local Authority\"),$F186=1),0,IF(AND(OR(Calculations!$E$2=\"Shetland Health Board\",Calculations!$E$2=\"Western Isles Health Board\",Calculations!$E$2=\"Shetland Islands Local Authority\",Calculations!$E$2=\"Eilean Siar Local Authority\"),OR($F186=1,$F186=5)),0,new_yllv2(VALUE(LEFT(Options!$B$14,2)),$C186,$D186,$E186,$F186,2016,$I186/10,1,$H186/10,$G186*$H186/10,RateRatios_airpollution!$C186)*10))","v":4615.0217044480005},{"$f":"IF(AND(OR(Calculations!$E$2=\"Orkney Health Board\",Calculations!$E$2=\"Orkney Islands Local Authority\"),$F186=1),0,IF(AND(OR(Calculations!$E$2=\"Shetland Health Board\",Calculations!$E$2=\"Western Isles Health Board\",Calculations!$E$2=\"Shetland Islands Local Authority\",Calculations!$E$2=\"Eilean Siar Local Authority\"),OR($F186=1,$F186=5)),0,new_yllv2(VALUE(LEFT(Options!$B$14,2)),$C186,$D186,$E186,$F186,2016,$I186/10+$J186/10,1,$H186/10,$G186*$H186/10,RateRatios_airpollution!$C186)*10))","v":4614.9858872909999},{"$f":"IF(AND(OR(Calculations!$E$2=\"Orkney Health Board\",Calculations!$E$2=\"Orkney Islands Local Authority\"),$F186=1),0,IF(AND(OR(Calculations!$E$2=\"Shetland Health Board\",Calculations!$E$2=\"Western Isles Health Board\",Calculations!$E$2=\"Shetland Islands Local Authority\",Calculations!$E$2=\"Eilean Siar Local Authority\"),OR($F186=1,$F186=5)),0,hosp_count(VALUE(LEFT(Options!$B$14,2)),$C186,$E186,$F186,2016,$I186/10,1,$H186/10,$G186*$H186/10, RateRatios_airpollution!$D186, RateRatios_airpollution!$C186)*10))","v":9459.850984572},{"$f":"IF(AND(OR(Calculations!$E$2=\"Orkney Health Board\",Calculations!$E$2=\"Orkney Islands Local Authority\"),$F186=1),0,IF(AND(OR(Calculations!$E$2=\"Shetland Health Board\",Calculations!$E$2=\"Western Isles Health Board\",Calculations!$E$2=\"Shetland Islands Local Authority\",Calculations!$E$2=\"Eilean Siar Local Authority\"),OR($F186=1,$F186=5)),0,hosp_count(VALUE(LEFT(Options!$B$14,2)),$C186,$E186,$F186,2016,$I186/10+$J186/10,1,$H186/10,$G186*$H186/10, RateRatios_airpollution!$D186, RateRatios_airpollution!$C186)*10))","v":9459.7122613089996},{"$f":"IF(AND(OR(Calculations!$E$2=\"Orkney Health Board\",Calculations!$E$2=\"Orkney Islands Local Authority\"),$F186=1),0,IF(AND(OR(Calculations!$E$2=\"Shetland Health Board\",Calculations!$E$2=\"Western Isles Health Board\",Calculations!$E$2=\"Shetland Islands Local Authority\",Calculations!$E$2=\"Eilean Siar Local Authority\"),OR($F186=1,$F186=5)),0,prem_mort(VALUE(LEFT(Options!$B$14,2)),$C186,$E186,$F186,2016,$I186/10,1,$H186/10,$G186*$H186/10,RateRatios_airpollution!$C186)*10))","v":217.48450845799999},{"$f":"IF(AND(OR(Calculations!$E$2=\"Orkney Health Board\",Calculations!$E$2=\"Orkney Islands Local Authority\"),$F186=1),0,IF(AND(OR(Calculations!$E$2=\"Shetland Health Board\",Calculations!$E$2=\"Western Isles Health Board\",Calculations!$E$2=\"Shetland Islands Local Authority\",Calculations!$E$2=\"Eilean Siar Local Authority\"),OR($F186=1,$F186=5)),0,prem_mort(VALUE(LEFT(Options!$B$14,2)),$C186,$E186,$F186,2016,$I186/10+$J186/10,1,$H186/10,$G186*$H186/10,RateRatios_airpollution!$C186)*10))","v":217.482820562},null,{"$f":"IF(AND(OR(Calculations!$E$2=\"Orkney Health Board\",Calculations!$E$2=\"Orkney Islands Local Authority\"),$F186=1),0,IF(AND(OR(Calculations!$E$2=\"Shetland Health Board\",Calculations!$E$2=\"Western Isles Health Board\",Calculations!$E$2=\"Shetland Islands Local Authority\",Calculations!$E$2=\"Eilean Siar Local Authority\"),OR($F186=1,$F186=5)),0,new_ci(VALUE(LEFT(Options!$B$14,2)),$C186,$E186,$F186,2016,$I186/10,1,$H186/10,$G186*$H186/10,RateRatios_airpollution!$E186)*10))","v":217.48450845799999},{"$f":"IF(AND(OR(Calculations!$E$2=\"Orkney Health Board\",Calculations!$E$2=\"Orkney Islands Local Authority\"),$F186=1),0,IF(AND(OR(Calculations!$E$2=\"Shetland Health Board\",Calculations!$E$2=\"Western Isles Health Board\",Calculations!$E$2=\"Shetland Islands Local Authority\",Calculations!$E$2=\"Eilean Siar Local Authority\"),OR($F186=1,$F186=5)),0,new_ci(VALUE(LEFT(Options!$B$14,2)),$C186,$E186,$F186,2016,$I186/10+$J186/10,1,$H186/10,$G186*$H186/10,RateRatios_airpollution!$E186)*10))","v":217.48374862899999},{"$f":"IF(AND(OR(Calculations!$E$2=\"Orkney Health Board\",Calculations!$E$2=\"Orkney Islands Local Authority\"),$F186=1),0,IF(AND(OR(Calculations!$E$2=\"Shetland Health Board\",Calculations!$E$2=\"Western Isles Health Board\",Calculations!$E$2=\"Shetland Islands Local Authority\",Calculations!$E$2=\"Eilean Siar Local Authority\"),OR($F186=1,$F186=5)),0,new_yllv2(VALUE(LEFT(Options!$B$14,2)),$C186,$D186,$E186,$F186,2016,$I186/10,1,$H186/10,$G186*$H186/10,RateRatios_airpollution!$E186)*10))","v":4615.0217044480005},{"$f":"IF(AND(OR(Calculations!$E$2=\"Orkney Health Board\",Calculations!$E$2=\"Orkney Islands Local Authority\"),$F186=1),0,IF(AND(OR(Calculations!$E$2=\"Shetland Health Board\",Calculations!$E$2=\"Western Isles Health Board\",Calculations!$E$2=\"Shetland Islands Local Authority\",Calculations!$E$2=\"Eilean Siar Local Authority\"),OR($F186=1,$F186=5)),0,new_yllv2(VALUE(LEFT(Options!$B$14,2)),$C186,$D186,$E186,$F186,2016,$I186/10+$J186/10,1,$H186/10,$G186*$H186/10,RateRatios_airpollution!$E186)*10))","v":4615.0055808750003},{"$f":"IF(AND(OR(Calculations!$E$2=\"Orkney Health Board\",Calculations!$E$2=\"Orkney Islands Local Authority\"),$F186=1),0,IF(AND(OR(Calculations!$E$2=\"Shetland Health Board\",Calculations!$E$2=\"Western Isles Health Board\",Calculations!$E$2=\"Shetland Islands Local Authority\",Calculations!$E$2=\"Eilean Siar Local Authority\"),OR($F186=1,$F186=5)),0,hosp_count(VALUE(LEFT(Options!$B$14,2)),$C186,$E186,$F186,2016,$I186/10,1,$H186/10,$G186*$H186/10, RateRatios_airpollution!$F186, RateRatios_airpollution!$E186)*10))","v":9459.850984572},{"$f":"IF(AND(OR(Calculations!$E$2=\"Orkney Health Board\",Calculations!$E$2=\"Orkney Islands Local Authority\"),$F186=1),0,IF(AND(OR(Calculations!$E$2=\"Shetland Health Board\",Calculations!$E$2=\"Western Isles Health Board\",Calculations!$E$2=\"Shetland Islands Local Authority\",Calculations!$E$2=\"Eilean Siar Local Authority\"),OR($F186=1,$F186=5)),0,hosp_count(VALUE(LEFT(Options!$B$14,2)),$C186,$E186,$F186,2016,$I186/10+$J186/10,1,$H186/10,$G186*$H186/10, RateRatios_airpollution!$F186, RateRatios_airpollution!$E186)*10))","v":9459.850984572},{"$f":"IF(AND(OR(Calculations!$E$2=\"Orkney Health Board\",Calculations!$E$2=\"Orkney Islands Local Authority\"),$F186=1),0,IF(AND(OR(Calculations!$E$2=\"Shetland Health Board\",Calculations!$E$2=\"Western Isles Health Board\",Calculations!$E$2=\"Shetland Islands Local Authority\",Calculations!$E$2=\"Eilean Siar Local Authority\"),OR($F186=1,$F186=5)),0,prem_mort(VALUE(LEFT(Options!$B$14,2)),$C186,$E186,$F186,2016,$I186/10,1,$H186/10,$G186*$H186/10,RateRatios_airpollution!$E186)*10))","v":217.48450845799999},{"$f":"IF(AND(OR(Calculations!$E$2=\"Orkney Health Board\",Calculations!$E$2=\"Orkney Islands Local Authority\"),$F186=1),0,IF(AND(OR(Calculations!$E$2=\"Shetland Health Board\",Calculations!$E$2=\"Western Isles Health Board\",Calculations!$E$2=\"Shetland Islands Local Authority\",Calculations!$E$2=\"Eilean Siar Local Authority\"),OR($F186=1,$F186=5)),0,prem_mort(VALUE(LEFT(Options!$B$14,2)),$C186,$E186,$F186,2016,$I186/10+$J186/10,1,$H186/10,$G186*$H186/10,RateRatios_airpollution!$E186)*10))","v":217.48374862899999},217.48450845799999,217.447951168,4615.0217044480005,4614.2459586799996,9459.850984572,9458.2239824539993,217.48450845799999,217.447951168,620.3032099997148,620.19894232337924,13162.835356801006,13160.622796497531,26981.121429999144,26976.480940229885,620.3032099997148,620.19894232337924,3721819.2599982889,3721193.6539402753,78977012.140806034,78963736.778985187,161886728.57999486,161858885.6413793,3721819.2599982889,3721193.6539402753,6000]
[null,"Female 65-69",67.063927000000007,85.193929999999995,"female",4,1,{"$f":"HLOOKUP(Calculations!$E$2,'Population 2016'!$C$3:$BC$249,'Population 2016'!BD187,FALSE)","v":34888},0,{"$f":"HLOOKUP(Calculations!$E$2,Pop2016_in_settlements!$C$3:$BC$249,Pop2016_in_settlements!$BD187,FALSE)","v":13411},{"$f":"IF(AND(OR(Calculations!$E$2=\"Orkney Health Board\",Calculations!$E$2=\"Orkney Islands Local Authority\"),$F187=1),0,IF(AND(OR(Calculations!$E$2=\"Shetland Health Board\",Calculations!$E$2=\"Western Isles Health Board\",Calculations!$E$2=\"Shetland Islands Local Authority\",Calculations!$E$2=\"Eilean Siar Local Authority\"),OR($F187=1,$F187=5)),0,new_ci(VALUE(LEFT(Options!$B$14,2)),$C187,$E187,$F187,2016,$I187/10,1,$H187/10,$G187*$H187/10,RateRatios_accidents!$B$5)*10))","v":333.84300336199999},{"$f":"IF(AND(OR(Calculations!$E$2=\"Orkney Health Board\",Calculations!$E$2=\"Orkney Islands Local Authority\"),$F187=1),0,IF(AND(OR(Calculations!$E$2=\"Shetland Health Board\",Calculations!$E$2=\"Western Isles Health Board\",Calculations!$E$2=\"Shetland Islands Local Authority\",Calculations!$E$2=\"Eilean Siar Local Authority\"),OR($F187=1,$F187=5)),0,new_ci(VALUE(LEFT(Options!$B$14,2)),$C187,$E187,$F187,2016,$I187/10+$J187/10,1,$H187/10,$G187*$H187/10,RateRatios_accidents!$B$5)*10))","v":333.79191818099997},{"$f":"IF(AND(OR(Calculations!$E$2=\"Orkney Health Board\",Calculations!$E$2=\"Orkney Islands Local Authority\"),$F187=1),0,IF(AND(OR(Calculations!$E$2=\"Shetland Health Board\",Calculations!$E$2=\"Western Isles Health Board\",Calculations!$E$2=\"Shetland Islands Local Authority\",Calculations!$E$2=\"Eilean Siar Local Authority\"),OR($F187=1,$F187=5)),0,new_yllv2(VALUE(LEFT(Options!$B$14,2)),$C187,$D187,$E187,$F187,2016,$I187/10,1,$H187/10,$G187*$H187/10,RateRatios_accidents!$B$5)*10))","v":5718.7316491199999},{"$f":"IF(AND(OR(Calculations!$E$2=\"Orkney Health Board\",Calculations!$E$2=\"Orkney Islands Local Authority\"),$F187=1),0,IF(AND(OR(Calculations!$E$2=\"Shetland Health Board\",Calculations!$E$2=\"Western Isles Health Board\",Calculations!$E$2=\"Shetland Islands Local Authority\",Calculations!$E$2=\"Eilean Siar Local Authority\"),OR($F187=1,$F187=5)),0,new_yllv2(VALUE(LEFT(Options!$B$14,2)),$C187,$D187,$E187,$F187,2016,$I187/10+$J187/10,1,$H187/10,$G187*$H187/10,RateRatios_accidents!$B$5)*10))","v":5717.8565598160003},{"$f":"IF(AND(OR(Calculations!$E$2=\"Orkney Health Board\",Calculations!$E$2=\"Orkney Islands Local Authority\"),$F187=1),0,IF(AND(OR(Calculations!$E$2=\"Shetland Health Board\",Calculations!$E$2=\"Western Isles Health Board\",Calculations!$E$2=\"Shetland Islands Local Authority\",Calculations!$E$2=\"Eilean Siar Local Authority\"),OR($F187=1,$F187=5)),0,hosp_count(VALUE(LEFT(Options!$B$14,2)),$C187,$E187,$F187,2016,$I187/10,1,$H187/10,$G187*$H187/10, RateRatios_accidents!$B$4, RateRatios_accidents!$B$5)*10))","v":10706.060631974},{"$f":"IF(AND(OR(Calculations!$E$2=\"Orkney Health Board\",Calculations!$E$2=\"Orkney Islands Local Authority\"),$F187=1),0,IF(AND(OR(Calculations!$E$2=\"Shetland Health Board\",Calculations!$E$2=\"Western Isles Health Board\",Calculations!$E$2=\"Shetland Islands Local Authority\",Calculations!$E$2=\"Eilean Siar Local Authority\"),OR($F187=1,$F187=5)),0,hosp_count(VALUE(LEFT(Options!$B$14,2)),$C187,$E187,$F187,2016,$I187/10+$J187/10,1,$H187/10,$G187*$H187/10, RateRatios_accidents!$B$4, RateRatios_accidents!$B$5)*10))","v":10704.414461229},{"$f":"IF(AND(OR(Calculations!$E$2=\"Orkney Health Board\",Calculations!$E$2=\"Orkney Islands Local Authority\"),$F187=1),0,IF(AND(OR(Calculations!$E$2=\"Shetland Health Board\",Calculations!$E$2=\"Western Isles Health Board\",Calculations!$E$2=\"Shetland Islands Local Authority\",Calculations!$E$2=\"Eilean Siar Local Authority\"),OR($F187=1,$F187=5)),0,prem_mort(VALUE(LEFT(Options!$B$14,2)),$C187,$E187,$F187,2016,$I187/10,1,$H187/10,$G187*$H187/10,RateRatios_accidents!$B$5)*10))","v":333.84300336199999},{"$f":"IF(AND(OR(Calculations!$E$2=\"Orkney Health Board\",Calculations!$E$2=\"Orkney Islands Local Authority\"),$F187=1),0,IF(AND(OR(Calculations!$E$2=\"Shetland Health Board\",Calculations!$E$2=\"Western Isles Health Board\",Calculations!$E$2=\"Shetland Islands Local Authority\",Calculations!$E$2=\"Eilean Siar Local Authority\"),OR($F187=1,$F187=5)),0,prem_mort(VALUE(LEFT(Options!$B$14,2)),$C187,$E187,$F187,2016,$I187/10+$J187/10,1,$H187/10,$G187*$H187/10,RateRatios_accidents!$B$5)*10))","v":333.79191818099997},null,{"$f":"IF(AND(OR(Calculations!$E$2=\"Orkney Health Board\",Calculations!$E$2=\"Orkney Islands Local Authority\"),$F187=1),0,IF(AND(OR(Calculations!$E$2=\"Shetland Health Board\",Calculations!$E$2=\"Western Isles Health Board\",Calculations!$E$2=\"Shetland Islands Local Authority\",Calculations!$E$2=\"Eilean Siar Local Authority\"),OR($F187=1,$F187=5)),0,new_ci(VALUE(LEFT(Options!$B$14,2)),$C187,$E187,$F187,2016,$I187/10,1,$H187/10,$G187*$H187/10,RateRatios_airpollution!$C187)*10))","v":333.84300336199999},{"$f":"IF(AND(OR(Calculations!$E$2=\"Orkney Health Board\",Calculations!$E$2=\"Orkney Islands Local Authority\"),$F187=1),0,IF(AND(OR(Calculations!$E$2=\"Shetland Health Board\",Calculations!$E$2=\"Western Isles Health Board\",Calculations!$E$2=\"Shetland Islands Local Authority\",Calculations!$E$2=\"Eilean Siar Local Authority\"),OR($F187=1,$F187=5)),0,new_ci(VALUE(LEFT(Options!$B$14,2)),$C187,$E187,$F187,2016,$I187/10+$J187/10,1,$H187/10,$G187*$H187/10,RateRatios_airpollution!$C187)*10))","v":333.84053305599997},{"$f":"IF(AND(OR(Calculations!$E$2=\"Orkney Health Board\",Calculations!$E$2=\"Orkney Islands Local Authority\"),$F187=1),0,IF(AND(OR(Calculations!$E$2=\"Shetland Health Board\",Calculations!$E$2=\"Western Isles Health Board\",Calculations!$E$2=\"Shetland Islands Local Authority\",Calculations!$E$2=\"Eilean Siar Local Authority\"),OR($F187=1,$F187=5)),0,new_yllv2(VALUE(LEFT(Options!$B$14,2)),$C187,$D187,$E187,$F187,2016,$I187/10,1,$H187/10,$G187*$H187/10,RateRatios_airpollution!$C187)*10))","v":5718.7316491199999},{"$f":"IF(AND(OR(Calculations!$E$2=\"Orkney Health Board\",Calculations!$E$2=\"Orkney Islands Local Authority\"),$F187=1),0,IF(AND(OR(Calculations!$E$2=\"Shetland Health Board\",Calculations!$E$2=\"Western Isles Health Board\",Calculations!$E$2=\"Shetland Islands Local Authority\",Calculations!$E$2=\"Eilean Siar Local Authority\"),OR($F187=1,$F187=5)),0,new_yllv2(VALUE(LEFT(Options!$B$14,2)),$C187,$D187,$E187,$F187,2016,$I187/10+$J187/10,1,$H187/10,$G187*$H187/10,RateRatios_airpollution!$C187)*10))","v":5718.6893327710004},{"$f":"IF(AND(OR(Calculations!$E$2=\"Orkney Health Board\",Calculations!$E$2=\"Orkney Islands Local Authority\"),$F187=1),0,IF(AND(OR(Calculations!$E$2=\"Shetland Health Board\",Calculations!$E$2=\"Western Isles Health Board\",Calculations!$E$2=\"Shetland Islands Local Authority\",Calculations!$E$2=\"Eilean Siar Local Authority\"),OR($F187=1,$F187=5)),0,hosp_count(VALUE(LEFT(Options!$B$14,2)),$C187,$E187,$F187,2016,$I187/10,1,$H187/10,$G187*$H187/10, RateRatios_airpollution!$D187, RateRatios_airpollution!$C187)*10))","v":10706.060631974},{"$f":"IF(AND(OR(Calculations!$E$2=\"Orkney Health Board\",Calculations!$E$2=\"Orkney Islands Local Authority\"),$F187=1),0,IF(AND(OR(Calculations!$E$2=\"Shetland Health Board\",Calculations!$E$2=\"Western Isles Health Board\",Calculations!$E$2=\"Shetland Islands Local Authority\",Calculations!$E$2=\"Eilean Siar Local Authority\"),OR($F187=1,$F187=5)),0,hosp_count(VALUE(LEFT(Options!$B$14,2)),$C187,$E187,$F187,2016,$I187/10+$J187/10,1,$H187/10,$G187*$H187/10, RateRatios_airpollution!$D187, RateRatios_airpollution!$C187)*10))","v":10705.910591047999},{"$f":"IF(AND(OR(Calculations!$E$2=\"Orkney Health Board\",Calculations!$E$2=\"Orkney Islands Local Authority\"),$F187=1),0,IF(AND(OR(Calculations!$E$2=\"Shetland Health Board\",Calculations!$E$2=\"Western Isles Health Board\",Calculations!$E$2=\"Shetland Islands Local Authority\",Calculations!$E$2=\"Eilean Siar Local Authority\"),OR($F187=1,$F187=5)),0,prem_mort(VALUE(LEFT(Options!$B$14,2)),$C187,$E187,$F187,2016,$I187/10,1,$H187/10,$G187*$H187/10,RateRatios_airpollution!$C187)*10))","v":333.84300336199999},{"$f":"IF(AND(OR(Calculations!$E$2=\"Orkney Health Board\",Calculations!$E$2=\"Orkney Islands Local Authority\"),$F187=1),0,IF(AND(OR(Calculations!$E$2=\"Shetland Health Board\",Calculations!$E$2=\"Western Isles Health Board\",Calculations!$E$2=\"Shetland Islands Local Authority\",Calculations!$E$2=\"Eilean Siar Local Authority\"),OR($F187=1,$F187=5)),0,prem_mort(VALUE(LEFT(Options!$B$14,2)),$C187,$E187,$F187,2016,$I187/10+$J187/10,1,$H187/10,$G187*$H187/10,RateRatios_airpollution!$C187)*10))","v":333.84053305599997},null,{"$f":"IF(AND(OR(Calculations!$E$2=\"Orkney Health Board\",Calculations!$E$2=\"Orkney Islands Local Authority\"),$F187=1),0,IF(AND(OR(Calculations!$E$2=\"Shetland Health Board\",Calculations!$E$2=\"Western Isles Health Board\",Calculations!$E$2=\"Shetland Islands Local Authority\",Calculations!$E$2=\"Eilean Siar Local Authority\"),OR($F187=1,$F187=5)),0,new_ci(VALUE(LEFT(Options!$B$14,2)),$C187,$E187,$F187,2016,$I187/10,1,$H187/10,$G187*$H187/10,RateRatios_airpollution!$E187)*10))","v":333.84300336199999},{"$f":"IF(AND(OR(Calculations!$E$2=\"Orkney Health Board\",Calculations!$E$2=\"Orkney Islands Local Authority\"),$F187=1),0,IF(AND(OR(Calculations!$E$2=\"Shetland Health Board\",Calculations!$E$2=\"Western Isles Health Board\",Calculations!$E$2=\"Shetland Islands Local Authority\",Calculations!$E$2=\"Eilean Siar Local Authority\"),OR($F187=1,$F187=5)),0,new_ci(VALUE(LEFT(Options!$B$14,2)),$C187,$E187,$F187,2016,$I187/10+$J187/10,1,$H187/10,$G187*$H187/10,RateRatios_airpollution!$E187)*10))","v":333.84189293200001},{"$f":"IF(AND(OR(Calculations!$E$2=\"Orkney Health Board\",Calculations!$E$2=\"Orkney Islands Local Authority\"),$F187=1),0,IF(AND(OR(Calculations!$E$2=\"Shetland Health Board\",Calculations!$E$2=\"Western Isles Health Board\",Calculations!$E$2=\"Shetland Islands Local Authority\",Calculations!$E$2=\"Eilean Siar Local Authority\"),OR($F187=1,$F187=5)),0,new_yllv2(VALUE(LEFT(Options!$B$14,2)),$C187,$D187,$E187,$F187,2016,$I187/10,1,$H187/10,$G187*$H187/10,RateRatios_airpollution!$E187)*10))","v":5718.7316491199999},{"$f":"IF(AND(OR(Calculations!$E$2=\"Orkney Health Board\",Calculations!$E$2=\"Orkney Islands Local Authority\"),$F187=1),0,IF(AND(OR(Calculations!$E$2=\"Shetland Health Board\",Calculations!$E$2=\"Western Isles Health Board\",Calculations!$E$2=\"Shetland Islands Local Authority\",Calculations!$E$2=\"Eilean Siar Local Authority\"),OR($F187=1,$F187=5)),0,new_yllv2(VALUE(LEFT(Options!$B$14,2)),$C187,$D187,$E187,$F187,2016,$I187/10+$J187/10,1,$H187/10,$G187*$H187/10,RateRatios_airpollution!$E187)*10))","v":5718.7126274510001},{"$f":"IF(AND(OR(Calculations!$E$2=\"Orkney Health Board\",Calculations!$E$2=\"Orkney Islands Local Authority\"),$F187=1),0,IF(AND(OR(Calculations!$E$2=\"Shetland Health Board\",Calculations!$E$2=\"Western Isles Health Board\",Calculations!$E$2=\"Shetland Islands Local Authority\",Calculations!$E$2=\"Eilean Siar Local Authority\"),OR($F187=1,$F187=5)),0,hosp_count(VALUE(LEFT(Options!$B$14,2)),$C187,$E187,$F187,2016,$I187/10,1,$H187/10,$G187*$H187/10, RateRatios_airpollution!$F187, RateRatios_airpollution!$E187)*10))","v":10706.060631974},{"$f":"IF(AND(OR(Calculations!$E$2=\"Orkney Health Board\",Calculations!$E$2=\"Orkney Islands Local Authority\"),$F187=1),0,IF(AND(OR(Calculations!$E$2=\"Shetland Health Board\",Calculations!$E$2=\"Western Isles Health Board\",Calculations!$E$2=\"Shetland Islands Local Authority\",Calculations!$E$2=\"Eilean Siar Local Authority\"),OR($F187=1,$F187=5)),0,hosp_count(VALUE(LEFT(Options!$B$14,2)),$C187,$E187,$F187,2016,$I187/10+$J187/10,1,$H187/10,$G187*$H187/10, RateRatios_airpollution!$F187, RateRatios_airpollution!$E187)*10))","v":10706.060631974},{"$f":"IF(AND(OR(Calculations!$E$2=\"Orkney Health Board\",Calculations!$E$2=\"Orkney Islands Local Authority\"),$F187=1),0,IF(AND(OR(Calculations!$E$2=\"Shetland Health Board\",Calculations!$E$2=\"Western Isles Health Board\",Calculations!$E$2=\"Shetland Islands Local Authority\",Calculations!$E$2=\"Eilean Siar Local Authority\"),OR($F187=1,$F187=5)),0,prem_mort(VALUE(LEFT(Options!$B$14,2)),$C187,$E187,$F187,2016,$I187/10,1,$H187/10,$G187*$H187/10,RateRatios_airpollution!$E187)*10))","v":333.84300336199999},{"$f":"IF(AND(OR(Calculations!$E$2=\"Orkney Health Board\",Calculations!$E$2=\"Orkney Islands Local Authority\"),$F187=1),0,IF(AND(OR(Calculations!$E$2=\"Shetland Health Board\",Calculations!$E$2=\"Western Isles Health Board\",Calculations!$E$2=\"Shetland Islands Local Authority\",Calculations!$E$2=\"Eilean Siar Local Authority\"),OR($F187=1,$F187=5)),0,prem_mort(VALUE(LEFT(Options!$B$14,2)),$C187,$E187,$F187,2016,$I187/10+$J187/10,1,$H187/10,$G187*$H187/10,RateRatios_airpollution!$E187)*10))","v":333.84189293200001},333.84300336199999,333.78833744499997,5718.7316491199999,5717.795221798001,10706.060631974,10704.264420302999,333.84300336199999,333.78833744499997,956.89922999885346,956.74254025739504,16391.686680577848,16389.002584837199,30686.942879998853,30681.794371425702,956.89922999885346,956.74254025739504,5262945.7649936937,5262083.9714156725,90154276.743178159,90139514.21660459,168778185.83999369,168749869.04284135,5262945.7649936937,5262083.9714156725,5500]
[null,"Female 70-74",71.938164,86.248159999999999,"female",4,1,{"$f":"HLOOKUP(Calculations!$E$2,'Population 2016'!$C$3:$BC$249,'Population 2016'!BD188,FALSE)","v":26320},0,{"$f":"HLOOKUP(Calculations!$E$2,Pop2016_in_settlements!$C$3:$BC$249,Pop2016_in_settlements!$BD188,FALSE)","v":10342},{"$f":"IF(AND(OR(Calculations!$E$2=\"Orkney Health Board\",Calculations!$E$2=\"Orkney Islands Local Authority\"),$F188=1),0,IF(AND(OR(Calculations!$E$2=\"Shetland Health Board\",Calculations!$E$2=\"Western Isles Health Board\",Calculations!$E$2=\"Shetland Islands Local Authority\",Calculations!$E$2=\"Eilean Siar Local Authority\"),OR($F188=1,$F188=5)),0,new_ci(VALUE(LEFT(Options!$B$14,2)),$C188,$E188,$F188,2016,$I188/10,1,$H188/10,$G188*$H188/10,RateRatios_accidents!$B$5)*10))","v":380.30257815200002},{"$f":"IF(AND(OR(Calculations!$E$2=\"Orkney Health Board\",Calculations!$E$2=\"Orkney Islands Local Authority\"),$F188=1),0,IF(AND(OR(Calculations!$E$2=\"Shetland Health Board\",Calculations!$E$2=\"Western Isles Health Board\",Calculations!$E$2=\"Shetland Islands Local Authority\",Calculations!$E$2=\"Eilean Siar Local Authority\"),OR($F188=1,$F188=5)),0,new_ci(VALUE(LEFT(Options!$B$14,2)),$C188,$E188,$F188,2016,$I188/10+$J188/10,1,$H188/10,$G188*$H188/10,RateRatios_accidents!$B$5)*10))","v":380.24323885900003},{"$f":"IF(AND(OR(Calculations!$E$2=\"Orkney Health Board\",Calculations!$E$2=\"Orkney Islands Local Authority\"),$F188=1),0,IF(AND(OR(Calculations!$E$2=\"Shetland Health Board\",Calculations!$E$2=\"Western Isles Health Board\",Calculations!$E$2=\"Shetland Islands Local Authority\",Calculations!$E$2=\"Eilean Siar Local Authority\"),OR($F188=1,$F188=5)),0,new_yllv2(VALUE(LEFT(Options!$B$14,2)),$C188,$D188,$E188,$F188,2016,$I188/10,1,$H188/10,$G188*$H188/10,RateRatios_accidents!$B$5)*10))","v":5061.8257939929999},{"$f":"IF(AND(OR(Calculations!$E$2=\"Orkney Health Board\",Calculations!$E$2=\"Orkney Islands Local Authority\"),$F188=1),0,IF(AND(OR(Calculations!$E$2=\"Shetland Health Board\",Calculations!$E$2=\"Western Isles Health Board\",Calculations!$E$2=\"Shetland Islands Local Authority\",Calculations!$E$2=\"Eilean Siar Local Authority\"),OR($F188=1,$F188=5)),0,new_yllv2(VALUE(LEFT(Options!$B$14,2)),$C188,$D188,$E188,$F188,2016,$I188/10+$J188/10,1,$H188/10,$G188*$H188/10,RateRatios_accidents!$B$5)*10))","v":5061.0359882399998},{"$f":"IF(AND(OR(Calculations!$E$2=\"Orkney Health Board\",Calculations!$E$2=\"Orkney Islands Local Authority\"),$F188=1),0,IF(AND(OR(Calculations!$E$2=\"Shetland Health Board\",Calculations!$E$2=\"Western Isles Health Board\",Calculations!$E$2=\"Shetland Islands Local Authority\",Calculations!$E$2=\"Eilean Siar Local Authority\"),OR($F188=1,$F188=5)),0,hosp_count(VALUE(LEFT(Options!$B$14,2)),$C188,$E188,$F188,2016,$I188/10,1,$H188/10,$G188*$H188/10, RateRatios_accidents!$B$4, RateRatios_accidents!$B$5)*10))","v":9130.324333984001},{"$f":"IF(AND(OR(Calculations!$E$2=\"Orkney Health Board\",Calculations!$E$2=\"Orkney Islands Local Authority\"),$F188=1),0,IF(AND(OR(Calculations!$E$2=\"Shetland Health Board\",Calculations!$E$2=\"Western Isles Health Board\",Calculations!$E$2=\"Shetland Islands Local Authority\",Calculations!$E$2=\"Eilean Siar Local Authority\"),OR($F188=1,$F188=5)),0,hosp_count(VALUE(LEFT(Options!$B$14,2)),$C188,$E188,$F188,2016,$I188/10+$J188/10,1,$H188/10,$G188*$H188/10, RateRatios_accidents!$B$4, RateRatios_accidents!$B$5)*10))","v":9128.889291509},{"$f":"IF(AND(OR(Calculations!$E$2=\"Orkney Health Board\",Calculations!$E$2=\"Orkney Islands Local Authority\"),$F188=1),0,IF(AND(OR(Calculations!$E$2=\"Shetland Health Board\",Calculations!$E$2=\"Western Isles Health Board\",Calculations!$E$2=\"Shetland Islands Local Authority\",Calculations!$E$2=\"Eilean Siar Local Authority\"),OR($F188=1,$F188=5)),0,prem_mort(VALUE(LEFT(Options!$B$14,2)),$C188,$E188,$F188,2016,$I188/10,1,$H188/10,$G188*$H188/10,RateRatios_accidents!$B$5)*10))","v":380.30257815200002},{"$f":"IF(AND(OR(Calculations!$E$2=\"Orkney Health Board\",Calculations!$E$2=\"Orkney Islands Local Authority\"),$F188=1),0,IF(AND(OR(Calculations!$E$2=\"Shetland Health Board\",Calculations!$E$2=\"Western Isles Health Board\",Calculations!$E$2=\"Shetland Islands Local Authority\",Calculations!$E$2=\"Eilean Siar Local Authority\"),OR($F188=1,$F188=5)),0,prem_mort(VALUE(LEFT(Options!$B$14,2)),$C188,$E188,$F188,2016,$I188/10+$J188/10,1,$H188/10,$G188*$H188/10,RateRatios_accidents!$B$5)*10))","v":380.24323885900003},null,{"$f":"IF(AND(OR(Calculations!$E$2=\"Orkney Health Board\",Calculations!$E$2=\"Orkney Islands Local Authority\"),$F188=1),0,IF(AND(OR(Calculations!$E$2=\"Shetland Health Board\",Calculations!$E$2=\"Western Isles Health Board\",Calculations!$E$2=\"Shetland Islands Local Authority\",Calculations!$E$2=\"Eilean Siar Local Authority\"),OR($F188=1,$F188=5)),0,new_ci(VALUE(LEFT(Options!$B$14,2)),$C188,$E188,$F188,2016,$I188/10,1,$H188/10,$G188*$H188/10,RateRatios_airpollution!$C188)*10))","v":380.30257815200002},{"$f":"IF(AND(OR(Calculations!$E$2=\"Orkney Health Board\",Calculations!$E$2=\"Orkney Islands Local Authority\"),$F188=1),0,IF(AND(OR(Calculations!$E$2=\"Shetland Health Board\",Calculations!$E$2=\"Western Isles Health Board\",Calculations!$E$2=\"Shetland Islands Local Authority\",Calculations!$E$2=\"Eilean Siar Local Authority\"),OR($F188=1,$F188=5)),0,new_ci(VALUE(LEFT(Options!$B$14,2)),$C188,$E188,$F188,2016,$I188/10+$J188/10,1,$H188/10,$G188*$H188/10,RateRatios_airpollution!$C188)*10))","v":380.29981994100001},{"$f":"IF(AND(OR(Calculations!$E$2=\"Orkney Health Board\",Calculations!$E$2=\"Orkney Islands Local Authority\"),$F188=1),0,IF(AND(OR(Calculations!$E$2=\"Shetland Health Board\",Calculations!$E$2=\"Western Isles Health Board\",Calculations!$E$2=\"Shetland Islands Local Authority\",Calculations!$E$2=\"Eilean Siar Local Authority\"),OR($F188=1,$F188=5)),0,new_yllv2(VALUE(LEFT(Options!$B$14,2)),$C188,$D188,$E188,$F188,2016,$I188/10,1,$H188/10,$G188*$H188/10,RateRatios_airpollution!$C188)*10))","v":5061.8257939929999},{"$f":"IF(AND(OR(Calculations!$E$2=\"Orkney Health Board\",Calculations!$E$2=\"Orkney Islands Local Authority\"),$F188=1),0,IF(AND(OR(Calculations!$E$2=\"Shetland Health Board\",Calculations!$E$2=\"Western Isles Health Board\",Calculations!$E$2=\"Shetland Islands Local Authority\",Calculations!$E$2=\"Eilean Siar Local Authority\"),OR($F188=1,$F188=5)),0,new_yllv2(VALUE(LEFT(Options!$B$14,2)),$C188,$D188,$E188,$F188,2016,$I188/10+$J188/10,1,$H188/10,$G188*$H188/10,RateRatios_airpollution!$C188)*10))","v":5061.7890822150002},{"$f":"IF(AND(OR(Calculations!$E$2=\"Orkney Health Board\",Calculations!$E$2=\"Orkney Islands Local Authority\"),$F188=1),0,IF(AND(OR(Calculations!$E$2=\"Shetland Health Board\",Calculations!$E$2=\"Western Isles Health Board\",Calculations!$E$2=\"Shetland Islands Local Authority\",Calculations!$E$2=\"Eilean Siar Local Authority\"),OR($F188=1,$F188=5)),0,hosp_count(VALUE(LEFT(Options!$B$14,2)),$C188,$E188,$F188,2016,$I188/10,1,$H188/10,$G188*$H188/10, RateRatios_airpollution!$D188, RateRatios_airpollution!$C188)*10))","v":9130.324333984001},{"$f":"IF(AND(OR(Calculations!$E$2=\"Orkney Health Board\",Calculations!$E$2=\"Orkney Islands Local Authority\"),$F188=1),0,IF(AND(OR(Calculations!$E$2=\"Shetland Health Board\",Calculations!$E$2=\"Western Isles Health Board\",Calculations!$E$2=\"Shetland Islands Local Authority\",Calculations!$E$2=\"Eilean Siar Local Authority\"),OR($F188=1,$F188=5)),0,hosp_count(VALUE(LEFT(Options!$B$14,2)),$C188,$E188,$F188,2016,$I188/10+$J188/10,1,$H188/10,$G188*$H188/10, RateRatios_airpollution!$D188, RateRatios_airpollution!$C188)*10))","v":9130.1986300770004},{"$f":"IF(AND(OR(Calculations!$E$2=\"Orkney Health Board\",Calculations!$E$2=\"Orkney Islands Local Authority\"),$F188=1),0,IF(AND(OR(Calculations!$E$2=\"Shetland Health Board\",Calculations!$E$2=\"Western Isles Health Board\",Calculations!$E$2=\"Shetland Islands Local Authority\",Calculations!$E$2=\"Eilean Siar Local Authority\"),OR($F188=1,$F188=5)),0,prem_mort(VALUE(LEFT(Options!$B$14,2)),$C188,$E188,$F188,2016,$I188/10,1,$H188/10,$G188*$H188/10,RateRatios_airpollution!$C188)*10))","v":380.30257815200002},{"$f":"IF(AND(OR(Calculations!$E$2=\"Orkney Health Board\",Calculations!$E$2=\"Orkney Islands Local Authority\"),$F188=1),0,IF(AND(OR(Calculations!$E$2=\"Shetland Health Board\",Calculations!$E$2=\"Western Isles Health Board\",Calculations!$E$2=\"Shetland Islands Local Authority\",Calculations!$E$2=\"Eilean Siar Local Authority\"),OR($F188=1,$F188=5)),0,prem_mort(VALUE(LEFT(Options!$B$14,2)),$C188,$E188,$F188,2016,$I188/10+$J188/10,1,$H188/10,$G188*$H188/10,RateRatios_airpollution!$C188)*10))","v":380.29981994100001},null,{"$f":"IF(AND(OR(Calculations!$E$2=\"Orkney Health Board\",Calculations!$E$2=\"Orkney Islands Local Authority\"),$F188=1),0,IF(AND(OR(Calculations!$E$2=\"Shetland Health Board\",Calculations!$E$2=\"Western Isles Health Board\",Calculations!$E$2=\"Shetland Islands Local Authority\",Calculations!$E$2=\"Eilean Siar Local Authority\"),OR($F188=1,$F188=5)),0,new_ci(VALUE(LEFT(Options!$B$14,2)),$C188,$E188,$F188,2016,$I188/10,1,$H188/10,$G188*$H188/10,RateRatios_airpollution!$E188)*10))","v":380.30257815200002},{"$f":"IF(AND(OR(Calculations!$E$2=\"Orkney Health Board\",Calculations!$E$2=\"Orkney Islands Local Authority\"),$F188=1),0,IF(AND(OR(Calculations!$E$2=\"Shetland Health Board\",Calculations!$E$2=\"Western Isles Health Board\",Calculations!$E$2=\"Shetland Islands Local Authority\",Calculations!$E$2=\"Eilean Siar Local Authority\"),OR($F188=1,$F188=5)),0,new_ci(VALUE(LEFT(Options!$B$14,2)),$C188,$E188,$F188,2016,$I188/10+$J188/10,1,$H188/10,$G188*$H188/10,RateRatios_airpollution!$E188)*10))","v":380.30134435100001},{"$f":"IF(AND(OR(Calculations!$E$2=\"Orkney Health Board\",Calculations!$E$2=\"Orkney Islands Local Authority\"),$F188=1),0,IF(AND(OR(Calculations!$E$2=\"Shetland Health Board\",Calculations!$E$2=\"Western Isles Health Board\",Calculations!$E$2=\"Shetland Islands Local Authority\",Calculations!$E$2=\"Eilean Siar Local Authority\"),OR($F188=1,$F188=5)),0,new_yllv2(VALUE(LEFT(Options!$B$14,2)),$C188,$D188,$E188,$F188,2016,$I188/10,1,$H188/10,$G188*$H188/10,RateRatios_airpollution!$E188)*10))","v":5061.8257939929999},{"$f":"IF(AND(OR(Calculations!$E$2=\"Orkney Health Board\",Calculations!$E$2=\"Orkney Islands Local Authority\"),$F188=1),0,IF(AND(OR(Calculations!$E$2=\"Shetland Health Board\",Calculations!$E$2=\"Western Isles Health Board\",Calculations!$E$2=\"Shetland Islands Local Authority\",Calculations!$E$2=\"Eilean Siar Local Authority\"),OR($F188=1,$F188=5)),0,new_yllv2(VALUE(LEFT(Options!$B$14,2)),$C188,$D188,$E188,$F188,2016,$I188/10+$J188/10,1,$H188/10,$G188*$H188/10,RateRatios_airpollution!$E188)*10))","v":5061.8093721060004},{"$f":"IF(AND(OR(Calculations!$E$2=\"Orkney Health Board\",Calculations!$E$2=\"Orkney Islands Local Authority\"),$F188=1),0,IF(AND(OR(Calculations!$E$2=\"Shetland Health Board\",Calculations!$E$2=\"Western Isles Health Board\",Calculations!$E$2=\"Shetland Islands Local Authority\",Calculations!$E$2=\"Eilean Siar Local Authority\"),OR($F188=1,$F188=5)),0,hosp_count(VALUE(LEFT(Options!$B$14,2)),$C188,$E188,$F188,2016,$I188/10,1,$H188/10,$G188*$H188/10, RateRatios_airpollution!$F188, RateRatios_airpollution!$E188)*10))","v":9130.324333984001},{"$f":"IF(AND(OR(Calculations!$E$2=\"Orkney Health Board\",Calculations!$E$2=\"Orkney Islands Local Authority\"),$F188=1),0,IF(AND(OR(Calculations!$E$2=\"Shetland Health Board\",Calculations!$E$2=\"Western Isles Health Board\",Calculations!$E$2=\"Shetland Islands Local Authority\",Calculations!$E$2=\"Eilean Siar Local Authority\"),OR($F188=1,$F188=5)),0,hosp_count(VALUE(LEFT(Options!$B$14,2)),$C188,$E188,$F188,2016,$I188/10+$J188/10,1,$H188/10,$G188*$H188/10, RateRatios_airpollution!$F188, RateRatios_airpollution!$E188)*10))","v":9130.324333984001},{"$f":"IF(AND(OR(Calculations!$E$2=\"Orkney Health Board\",Calculations!$E$2=\"Orkney Islands Local Authority\"),$F188=1),0,IF(AND(OR(Calculations!$E$2=\"Shetland Health Board\",Calculations!$E$2=\"Western Isles Health Board\",Calculations!$E$2=\"Shetland Islands Local Authority\",Calculations!$E$2=\"Eilean Siar Local Authority\"),OR($F188=1,$F188=5)),0,prem_mort(VALUE(LEFT(Options!$B$14,2)),$C188,$E188,$F188,2016,$I188/10,1,$H188/10,$G188*$H188/10,RateRatios_airpollution!$E188)*10))","v":380.30257815200002},{"$f":"IF(AND(OR(Calculations!$E$2=\"Orkney Health Board\",Calculations!$E$2=\"Orkney Islands Local Authority\"),$F188=1),0,IF(AND(OR(Calculations!$E$2=\"Shetland Health Board\",Calculations!$E$2=\"Western Isles Health Board\",Calculations!$E$2=\"Shetland Islands Local Authority\",Calculations!$E$2=\"Eilean Siar Local Authority\"),OR($F188=1,$F188=5)),0,prem_mort(VALUE(LEFT(Options!$B$14,2)),$C188,$E188,$F188,2016,$I188/10+$J188/10,1,$H188/10,$G188*$H188/10,RateRatios_airpollution!$E188)*10))","v":380.30134435100001},380.30257815200002,380.239246847,5061.8257939929999,5060.9828545750006,9130.324333984001,9128.7635876019995,380.30257815200002,380.239246847,1444.9186099999999,1444.6779895402735,19231.86091942629,19228.658262063072,34689.682120000005,34683.752232530394,1444.9186099999999,1444.6779895402735,7224593.0499999998,7223389.9477013675,{"$f":"AU188*$BI188","v":96159304.597131446},{"$f":"AV188*$BI188","v":96143291.310315356},{"$f":"AW188*$BI188","v":173448410.60000002},{"$f":"AX188*$BI188","v":173418761.16265199},{"$f":"AY188*$BI188","v":7224593.0499999998},{"$f":"AZ188*$BI188","v":7223389.9477013675},5000]
[null,"Female 75-79",76.942824999999999,87.812830000000005,"female",4,1,{"$f":"HLOOKUP(Calculations!$E$2,'Population 2016'!$C$3:$BC$249,'Population 2016'!BD189,FALSE)","v":20708},0,{"$f":"HLOOKUP(Calculations!$E$2,Pop2016_in_settlements!$C$3:$BC$249,Pop2016_in_settlements!$BD189,FALSE)","v":8616},{"$f":"IF(AND(OR(Calculations!$E$2=\"Orkney Health Board\",Calculations!$E$2=\"Orkney Islands Local Authority\"),$F189=1),0,IF(AND(OR(Calculations!$E$2=\"Shetland Health Board\",Calculations!$E$2=\"Western Isles Health Board\",Calculations!$E$2=\"Shetland Islands Local Authority\",Calculations!$E$2=\"Eilean Siar Local Authority\"),OR($F189=1,$F189=5)),0,new_ci(VALUE(LEFT(Options!$B$14,2)),$C189,$E189,$F189,2016,$I189/10,1,$H189/10,$G189*$H189/10,RateRatios_accidents!$B$5)*10))","v":456.22071458900001},{"$f":"IF(AND(OR(Calculations!$E$2=\"Orkney Health Board\",Calculations!$E$2=\"Orkney Islands Local Authority\"),$F189=1),0,IF(AND(OR(Calculations!$E$2=\"Shetland Health Board\",Calculations!$E$2=\"Western Isles Health Board\",Calculations!$E$2=\"Shetland Islands Local Authority\",Calculations!$E$2=\"Eilean Siar Local Authority\"),OR($F189=1,$F189=5)),0,new_ci(VALUE(LEFT(Options!$B$14,2)),$C189,$E189,$F189,2016,$I189/10+$J189/10,1,$H189/10,$G189*$H189/10,RateRatios_accidents!$B$5)*10))","v":456.14562873399996},{"$f":"IF(AND(OR(Calculations!$E$2=\"Orkney Health Board\",Calculations!$E$2=\"Orkney Islands Local Authority\"),$F189=1),0,IF(AND(OR(Calculations!$E$2=\"Shetland Health Board\",Calculations!$E$2=\"Western Isles Health Board\",Calculations!$E$2=\"Shetland Islands Local Authority\",Calculations!$E$2=\"Eilean Siar Local Authority\"),OR($F189=1,$F189=5)),0,new_yllv2(VALUE(LEFT(Options!$B$14,2)),$C189,$D189,$E189,$F189,2016,$I189/10,1,$H189/10,$G189*$H189/10,RateRatios_accidents!$B$5)*10))","v":4502.9007340970002},{"$f":"IF(AND(OR(Calculations!$E$2=\"Orkney Health Board\",Calculations!$E$2=\"Orkney Islands Local Authority\"),$F189=1),0,IF(AND(OR(Calculations!$E$2=\"Shetland Health Board\",Calculations!$E$2=\"Western Isles Health Board\",Calculations!$E$2=\"Shetland Islands Local Authority\",Calculations!$E$2=\"Eilean Siar Local Authority\"),OR($F189=1,$F189=5)),0,new_yllv2(VALUE(LEFT(Options!$B$14,2)),$C189,$D189,$E189,$F189,2016,$I189/10+$J189/10,1,$H189/10,$G189*$H189/10,RateRatios_accidents!$B$5)*10))","v":4502.159636333},{"$f":"IF(AND(OR(Calculations!$E$2=\"Orkney Health Board\",Calculations!$E$2=\"Orkney Islands Local Authority\"),$F189=1),0,IF(AND(OR(Calculations!$E$2=\"Shetland Health Board\",Calculations!$E$2=\"Western Isles Health Board\",Calculations!$E$2=\"Shetland Islands Local Authority\",Calculations!$E$2=\"Eilean Siar Local Authority\"),OR($F189=1,$F189=5)),0,hosp_count(VALUE(LEFT(Options!$B$14,2)),$C189,$E189,$F189,2016,$I189/10,1,$H189/10,$G189*$H189/10, RateRatios_accidents!$B$4, RateRatios_accidents!$B$5)*10))","v":8147.2292633239995},{"$f":"IF(AND(OR(Calculations!$E$2=\"Orkney Health Board\",Calculations!$E$2=\"Orkney Islands Local Authority\"),$F189=1),0,IF(AND(OR(Calculations!$E$2=\"Shetland Health Board\",Calculations!$E$2=\"Western Isles Health Board\",Calculations!$E$2=\"Shetland Islands Local Authority\",Calculations!$E$2=\"Eilean Siar Local Authority\"),OR($F189=1,$F189=5)),0,hosp_count(VALUE(LEFT(Options!$B$14,2)),$C189,$E189,$F189,2016,$I189/10+$J189/10,1,$H189/10,$G189*$H189/10, RateRatios_accidents!$B$4, RateRatios_accidents!$B$5)*10))","v":8145.8733323859997},{"$f":"IF(AND(OR(Calculations!$E$2=\"Orkney Health Board\",Calculations!$E$2=\"Orkney Islands Local Authority\"),$F189=1),0,IF(AND(OR(Calculations!$E$2=\"Shetland Health Board\",Calculations!$E$2=\"Western Isles Health Board\",Calculations!$E$2=\"Shetland Islands Local Authority\",Calculations!$E$2=\"Eilean Siar Local Authority\"),OR($F189=1,$F189=5)),0,prem_mort(VALUE(LEFT(Options!$B$14,2)),$C189,$E189,$F189,2016,$I189/10,1,$H189/10,$G189*$H189/10,RateRatios_accidents!$B$5)*10))","v":0},{"$f":"IF(AND(OR(Calculations!$E$2=\"Orkney Health Board\",Calculations!$E$2=\"Orkney Islands Local Authority\"),$F189=1),0,IF(AND(OR(Calculations!$E$2=\"Shetland Health Board\",Calculations!$E$2=\"Western Isles Health Board\",Calculations!$E$2=\"Shetland Islands Local Authority\",Calculations!$E$2=\"Eilean Siar Local Authority\"),OR($F189=1,$F189=5)),0,prem_mort(VALUE(LEFT(Options!$B$14,2)),$C189,$E189,$F189,2016,$I189/10+$J189/10,1,$H189/10,$G189*$H189/10,RateRatios_accidents!$B$5)*10))","v":0},null,{"$f":"IF(AND(OR(Calculations!$E$2=\"Orkney Health Board\",Calculations!$E$2=\"Orkney Islands Local Authority\"),$F189=1),0,IF(AND(OR(Calculations!$E$2=\"Shetland Health Board\",Calculations!$E$2=\"Western Isles Health Board\",Calculations!$E$2=\"Shetland Islands Local Authority\",Calculations!$E$2=\"Eilean Siar Local Authority\"),OR($F189=1,$F189=5)),0,new_ci(VALUE(LEFT(Options!$B$14,2)),$C189,$E189,$F189,2016,$I189/10,1,$H189/10,$G189*$H189/10,RateRatios_airpollution!$C189)*10))","v":456.22071458900001},{"$f":"IF(AND(OR(Calculations!$E$2=\"Orkney Health Board\",Calculations!$E$2=\"Orkney Islands Local Authority\"),$F189=1),0,IF(AND(OR(Calculations!$E$2=\"Shetland Health Board\",Calculations!$E$2=\"Western Isles Health Board\",Calculations!$E$2=\"Shetland Islands Local Authority\",Calculations!$E$2=\"Eilean Siar Local Authority\"),OR($F189=1,$F189=5)),0,new_ci(VALUE(LEFT(Options!$B$14,2)),$C189,$E189,$F189,2016,$I189/10+$J189/10,1,$H189/10,$G189*$H189/10,RateRatios_airpollution!$C189)*10))","v":456.21709156100002},{"$f":"IF(AND(OR(Calculations!$E$2=\"Orkney Health Board\",Calculations!$E$2=\"Orkney Islands Local Authority\"),$F189=1),0,IF(AND(OR(Calculations!$E$2=\"Shetland Health Board\",Calculations!$E$2=\"Western Isles Health Board\",Calculations!$E$2=\"Shetland Islands Local Authority\",Calculations!$E$2=\"Eilean Siar Local Authority\"),OR($F189=1,$F189=5)),0,new_yllv2(VALUE(LEFT(Options!$B$14,2)),$C189,$D189,$E189,$F189,2016,$I189/10,1,$H189/10,$G189*$H189/10,RateRatios_airpollution!$C189)*10))","v":4502.9007340970002},{"$f":"IF(AND(OR(Calculations!$E$2=\"Orkney Health Board\",Calculations!$E$2=\"Orkney Islands Local Authority\"),$F189=1),0,IF(AND(OR(Calculations!$E$2=\"Shetland Health Board\",Calculations!$E$2=\"Western Isles Health Board\",Calculations!$E$2=\"Shetland Islands Local Authority\",Calculations!$E$2=\"Eilean Siar Local Authority\"),OR($F189=1,$F189=5)),0,new_yllv2(VALUE(LEFT(Options!$B$14,2)),$C189,$D189,$E189,$F189,2016,$I189/10+$J189/10,1,$H189/10,$G189*$H189/10,RateRatios_airpollution!$C189)*10))","v":4502.8649747930003},{"$f":"IF(AND(OR(Calculations!$E$2=\"Orkney Health Board\",Calculations!$E$2=\"Orkney Islands Local Authority\"),$F189=1),0,IF(AND(OR(Calculations!$E$2=\"Shetland Health Board\",Calculations!$E$2=\"Western Isles Health Board\",Calculations!$E$2=\"Shetland Islands Local Authority\",Calculations!$E$2=\"Eilean Siar Local Authority\"),OR($F189=1,$F189=5)),0,hosp_count(VALUE(LEFT(Options!$B$14,2)),$C189,$E189,$F189,2016,$I189/10,1,$H189/10,$G189*$H189/10, RateRatios_airpollution!$D189, RateRatios_airpollution!$C189)*10))","v":8147.2292633239995},{"$f":"IF(AND(OR(Calculations!$E$2=\"Orkney Health Board\",Calculations!$E$2=\"Orkney Islands Local Authority\"),$F189=1),0,IF(AND(OR(Calculations!$E$2=\"Shetland Health Board\",Calculations!$E$2=\"Western Isles Health Board\",Calculations!$E$2=\"Shetland Islands Local Authority\",Calculations!$E$2=\"Eilean Siar Local Authority\"),OR($F189=1,$F189=5)),0,hosp_count(VALUE(LEFT(Options!$B$14,2)),$C189,$E189,$F189,2016,$I189/10+$J189/10,1,$H189/10,$G189*$H189/10, RateRatios_airpollution!$D189, RateRatios_airpollution!$C189)*10))","v":8147.1060045510003},{"$f":"IF(AND(OR(Calculations!$E$2=\"Orkney Health Board\",Calculations!$E$2=\"Orkney Islands Local Authority\"),$F189=1),0,IF(AND(OR(Calculations!$E$2=\"Shetland Health Board\",Calculations!$E$2=\"Western Isles Health Board\",Calculations!$E$2=\"Shetland Islands Local Authority\",Calculations!$E$2=\"Eilean Siar Local Authority\"),OR($F189=1,$F189=5)),0,prem_mort(VALUE(LEFT(Options!$B$14,2)),$C189,$E189,$F189,2016,$I189/10,1,$H189/10,$G189*$H189/10,RateRatios_airpollution!$C189)*10))","v":0},{"$f":"IF(AND(OR(Calculations!$E$2=\"Orkney Health Board\",Calculations!$E$2=\"Orkney Islands Local Authority\"),$F189=1),0,IF(AND(OR(Calculations!$E$2=\"Shetland Health Board\",Calculations!$E$2=\"Western Isles Health Board\",Calculations!$E$2=\"Shetland Islands Local Authority\",Calculations!$E$2=\"Eilean Siar Local Authority\"),OR($F189=1,$F189=5)),0,prem_mort(VALUE(LEFT(Options!$B$14,2)),$C189,$E189,$F189,2016,$I189/10+$J189/10,1,$H189/10,$G189*$H189/10,RateRatios_airpollution!$C189)*10))","v":0},null,{"$f":"IF(AND(OR(Calculations!$E$2=\"Orkney Health Board\",Calculations!$E$2=\"Orkney Islands Local Authority\"),$F189=1),0,IF(AND(OR(Calculations!$E$2=\"Shetland Health Board\",Calculations!$E$2=\"Western Isles Health Board\",Calculations!$E$2=\"Shetland Islands Local Authority\",Calculations!$E$2=\"Eilean Siar Local Authority\"),OR($F189=1,$F189=5)),0,new_ci(VALUE(LEFT(Options!$B$14,2)),$C189,$E189,$F189,2016,$I189/10,1,$H189/10,$G189*$H189/10,RateRatios_airpollution!$E189)*10))","v":456.22071458900001},{"$f":"IF(AND(OR(Calculations!$E$2=\"Orkney Health Board\",Calculations!$E$2=\"Orkney Islands Local Authority\"),$F189=1),0,IF(AND(OR(Calculations!$E$2=\"Shetland Health Board\",Calculations!$E$2=\"Western Isles Health Board\",Calculations!$E$2=\"Shetland Islands Local Authority\",Calculations!$E$2=\"Eilean Siar Local Authority\"),OR($F189=1,$F189=5)),0,new_ci(VALUE(LEFT(Options!$B$14,2)),$C189,$E189,$F189,2016,$I189/10+$J189/10,1,$H189/10,$G189*$H189/10,RateRatios_airpollution!$E189)*10))","v":456.21909133400004},{"$f":"IF(AND(OR(Calculations!$E$2=\"Orkney Health Board\",Calculations!$E$2=\"Orkney Islands Local Authority\"),$F189=1),0,IF(AND(OR(Calculations!$E$2=\"Shetland Health Board\",Calculations!$E$2=\"Western Isles Health Board\",Calculations!$E$2=\"Shetland Islands Local Authority\",Calculations!$E$2=\"Eilean Siar Local Authority\"),OR($F189=1,$F189=5)),0,new_yllv2(VALUE(LEFT(Options!$B$14,2)),$C189,$D189,$E189,$F189,2016,$I189/10,1,$H189/10,$G189*$H189/10,RateRatios_airpollution!$E189)*10))","v":4502.9007340970002},{"$f":"IF(AND(OR(Calculations!$E$2=\"Orkney Health Board\",Calculations!$E$2=\"Orkney Islands Local Authority\"),$F189=1),0,IF(AND(OR(Calculations!$E$2=\"Shetland Health Board\",Calculations!$E$2=\"Western Isles Health Board\",Calculations!$E$2=\"Shetland Islands Local Authority\",Calculations!$E$2=\"Eilean Siar Local Authority\"),OR($F189=1,$F189=5)),0,new_yllv2(VALUE(LEFT(Options!$B$14,2)),$C189,$D189,$E189,$F189,2016,$I189/10+$J189/10,1,$H189/10,$G189*$H189/10,RateRatios_airpollution!$E189)*10))","v":4502.8847125620005},{"$f":"IF(AND(OR(Calculations!$E$2=\"Orkney Health Board\",Calculations!$E$2=\"Orkney Islands Local Authority\"),$F189=1),0,IF(AND(OR(Calculations!$E$2=\"Shetland Health Board\",Calculations!$E$2=\"Western Isles Health Board\",Calculations!$E$2=\"Shetland Islands Local Authority\",Calculations!$E$2=\"Eilean Siar Local Authority\"),OR($F189=1,$F189=5)),0,hosp_count(VALUE(LEFT(Options!$B$14,2)),$C189,$E189,$F189,2016,$I189/10,1,$H189/10,$G189*$H189/10, RateRatios_airpollution!$F189, RateRatios_airpollution!$E189)*10))","v":8147.2292633239995},{"$f":"IF(AND(OR(Calculations!$E$2=\"Orkney Health Board\",Calculations!$E$2=\"Orkney Islands Local Authority\"),$F189=1),0,IF(AND(OR(Calculations!$E$2=\"Shetland Health Board\",Calculations!$E$2=\"Western Isles Health Board\",Calculations!$E$2=\"Shetland Islands Local Authority\",Calculations!$E$2=\"Eilean Siar Local Authority\"),OR($F189=1,$F189=5)),0,hosp_count(VALUE(LEFT(Options!$B$14,2)),$C189,$E189,$F189,2016,$I189/10+$J189/10,1,$H189/10,$G189*$H189/10, RateRatios_airpollution!$F189, RateRatios_airpollution!$E189)*10))","v":8147.2292633239995},{"$f":"IF(AND(OR(Calculations!$E$2=\"Orkney Health Board\",Calculations!$E$2=\"Orkney Islands Local Authority\"),$F189=1),0,IF(AND(OR(Calculations!$E$2=\"Shetland Health Board\",Calculations!$E$2=\"Western Isles Health Board\",Calculations!$E$2=\"Shetland Islands Local Authority\",Calculations!$E$2=\"Eilean Siar Local Authority\"),OR($F189=1,$F189=5)),0,prem_mort(VALUE(LEFT(Options!$B$14,2)),$C189,$E189,$F189,2016,$I189/10,1,$H189/10,$G189*$H189/10,RateRatios_airpollution!$E189)*10))","v":0},{"$f":"IF(AND(OR(Calculations!$E$2=\"Orkney Health Board\",Calculations!$E$2=\"Orkney Islands Local Authority\"),$F189=1),0,IF(AND(OR(Calculations!$E$2=\"Shetland Health Board\",Calculations!$E$2=\"Western Isles Health Board\",Calculations!$E$2=\"Shetland Islands Local Authority\",Calculations!$E$2=\"Eilean Siar Local Authority\"),OR($F189=1,$F189=5)),0,prem_mort(VALUE(LEFT(Options!$B$14,2)),$C189,$E189,$F189,2016,$I189/10+$J189/10,1,$H189/10,$G189*$H189/10,RateRatios_airpollution!$E189)*10))","v":0},{"$f":"K189","v":456.22071458900001},456.14038245099999,{"$f":"M189","v":4502.9007340970002},4502.1078554940004,{"$f":"O189","v":8147.2292633239995},8145.7500736130005,{"$f":"Q189","v":0},0,2203.1133600009662,2202.7254319634922,21744.73987877632,21740.911027110298,39343.390299999999,39336.247216597447,0,0,{"$f":"AS189*$BI189","v":8812453.4400038645},{"$f":"AT189*$BI189","v":8810901.7278539687},86978959.515105277,86963644.108441189,157373561.19999999,157344988.86638978,0,0,4000]
[null,"Female 80-84",81.856712000000002,89.736710000000002,"female",4,1,{"$f":"HLOOKUP(Calculations!$E$2,'Population 2016'!$C$3:$BC$249,'Population 2016'!BD190,FALSE)","v":15634},0,{"$f":"HLOOKUP(Calculations!$E$2,Pop2016_in_settlements!$C$3:$BC$249,Pop2016_in_settlements!$BD190,FALSE)","v":6574},{"$f":"IF(AND(OR(Calculations!$E$2=\"Orkney Health Board\",Calculations!$E$2=\"Orkney Islands Local Authority\"),$F190=1),0,IF(AND(OR(Calculations!$E$2=\"Shetland Health Board\",Calculations!$E$2=\"Western Isles Health Board\",Calculations!$E$2=\"Shetland Islands Local Authority\",Calculations!$E$2=\"Eilean Siar Local Authority\"),OR($F190=1,$F190=5)),0,new_ci(VALUE(LEFT(Options!$B$14,2)),$C190,$E190,$F190,2016,$I190/10,1,$H190/10,$G190*$H190/10,RateRatios_accidents!$B$5)*10))","v":520.14094590100001},{"$f":"IF(AND(OR(Calculations!$E$2=\"Orkney Health Board\",Calculations!$E$2=\"Orkney Islands Local Authority\"),$F190=1),0,IF(AND(OR(Calculations!$E$2=\"Shetland Health Board\",Calculations!$E$2=\"Western Isles Health Board\",Calculations!$E$2=\"Shetland Islands Local Authority\",Calculations!$E$2=\"Eilean Siar Local Authority\"),OR($F190=1,$F190=5)),0,new_ci(VALUE(LEFT(Options!$B$14,2)),$C190,$E190,$F190,2016,$I190/10+$J190/10,1,$H190/10,$G190*$H190/10,RateRatios_accidents!$B$5)*10))","v":520.05493037100007},{"$f":"IF(AND(OR(Calculations!$E$2=\"Orkney Health Board\",Calculations!$E$2=\"Orkney Islands Local Authority\"),$F190=1),0,IF(AND(OR(Calculations!$E$2=\"Shetland Health Board\",Calculations!$E$2=\"Western Isles Health Board\",Calculations!$E$2=\"Shetland Islands Local Authority\",Calculations!$E$2=\"Eilean Siar Local Authority\"),OR($F190=1,$F190=5)),0,new_yllv2(VALUE(LEFT(Options!$B$14,2)),$C190,$D190,$E190,$F190,2016,$I190/10,1,$H190/10,$G190*$H190/10,RateRatios_accidents!$B$5)*10))","v":3578.568667517},{"$f":"IF(AND(OR(Calculations!$E$2=\"Orkney Health Board\",Calculations!$E$2=\"Orkney Islands Local Authority\"),$F190=1),0,IF(AND(OR(Calculations!$E$2=\"Shetland Health Board\",Calculations!$E$2=\"Western Isles Health Board\",Calculations!$E$2=\"Shetland Islands Local Authority\",Calculations!$E$2=\"Eilean Siar Local Authority\"),OR($F190=1,$F190=5)),0,new_yllv2(VALUE(LEFT(Options!$B$14,2)),$C190,$D190,$E190,$F190,2016,$I190/10+$J190/10,1,$H190/10,$G190*$H190/10,RateRatios_accidents!$B$5)*10))","v":3577.9768808429999},{"$f":"IF(AND(OR(Calculations!$E$2=\"Orkney Health Board\",Calculations!$E$2=\"Orkney Islands Local Authority\"),$F190=1),0,IF(AND(OR(Calculations!$E$2=\"Shetland Health Board\",Calculations!$E$2=\"Western Isles Health Board\",Calculations!$E$2=\"Shetland Islands Local Authority\",Calculations!$E$2=\"Eilean Siar Local Authority\"),OR($F190=1,$F190=5)),0,hosp_count(VALUE(LEFT(Options!$B$14,2)),$C190,$E190,$F190,2016,$I190/10,1,$H190/10,$G190*$H190/10, RateRatios_accidents!$B$4, RateRatios_accidents!$B$5)*10))","v":6960.2000923549995},{"$f":"IF(AND(OR(Calculations!$E$2=\"Orkney Health Board\",Calculations!$E$2=\"Orkney Islands Local Authority\"),$F190=1),0,IF(AND(OR(Calculations!$E$2=\"Shetland Health Board\",Calculations!$E$2=\"Western Isles Health Board\",Calculations!$E$2=\"Shetland Islands Local Authority\",Calculations!$E$2=\"Eilean Siar Local Authority\"),OR($F190=1,$F190=5)),0,hosp_count(VALUE(LEFT(Options!$B$14,2)),$C190,$E190,$F190,2016,$I190/10+$J190/10,1,$H190/10,$G190*$H190/10, RateRatios_accidents!$B$4, RateRatios_accidents!$B$5)*10))","v":6959.0294042959995},{"$f":"IF(AND(OR(Calculations!$E$2=\"Orkney Health Board\",Calculations!$E$2=\"Orkney Islands Local Authority\"),$F190=1),0,IF(AND(OR(Calculations!$E$2=\"Shetland Health Board\",Calculations!$E$2=\"Western Isles Health Board\",Calculations!$E$2=\"Shetland Islands Local Authority\",Calculations!$E$2=\"Eilean Siar Local Authority\"),OR($F190=1,$F190=5)),0,prem_mort(VALUE(LEFT(Options!$B$14,2)),$C190,$E190,$F190,2016,$I190/10,1,$H190/10,$G190*$H190/10,RateRatios_accidents!$B$5)*10))","v":0},{"$f":"IF(AND(OR(Calculations!$E$2=\"Orkney Health Board\",Calculations!$E$2=\"Orkney Islands Local Authority\"),$F190=1),0,IF(AND(OR(Calculations!$E$2=\"Shetland Health Board\",Calculations!$E$2=\"Western Isles Health Board\",Calculations!$E$2=\"Shetland Islands Local Authority\",Calculations!$E$2=\"Eilean Siar Local Authority\"),OR($F190=1,$F190=5)),0,prem_mort(VALUE(LEFT(Options!$B$14,2)),$C190,$E190,$F190,2016,$I190/10+$J190/10,1,$H190/10,$G190*$H190/10,RateRatios_accidents!$B$5)*10))","v":0},null,{"$f":"IF(AND(OR(Calculations!$E$2=\"Orkney Health Board\",Calculations!$E$2=\"Orkney Islands Local Authority\"),$F190=1),0,IF(AND(OR(Calculations!$E$2=\"Shetland Health Board\",Calculations!$E$2=\"Western Isles Health Board\",Calculations!$E$2=\"Shetland Islands Local Authority\",Calculations!$E$2=\"Eilean Siar Local Authority\"),OR($F190=1,$F190=5)),0,new_ci(VALUE(LEFT(Options!$B$14,2)),$C190,$E190,$F190,2016,$I190/10,1,$H190/10,$G190*$H190/10,RateRatios_airpollution!$C190)*10))","v":520.14094590100001},{"$f":"IF(AND(OR(Calculations!$E$2=\"Orkney Health Board\",Calculations!$E$2=\"Orkney Islands Local Authority\"),$F190=1),0,IF(AND(OR(Calculations!$E$2=\"Shetland Health Board\",Calculations!$E$2=\"Western Isles Health Board\",Calculations!$E$2=\"Shetland Islands Local Authority\",Calculations!$E$2=\"Eilean Siar Local Authority\"),OR($F190=1,$F190=5)),0,new_ci(VALUE(LEFT(Options!$B$14,2)),$C190,$E190,$F190,2016,$I190/10+$J190/10,1,$H190/10,$G190*$H190/10,RateRatios_airpollution!$C190)*10))","v":520.13669120899999},{"$f":"IF(AND(OR(Calculations!$E$2=\"Orkney Health Board\",Calculations!$E$2=\"Orkney Islands Local Authority\"),$F190=1),0,IF(AND(OR(Calculations!$E$2=\"Shetland Health Board\",Calculations!$E$2=\"Western Isles Health Board\",Calculations!$E$2=\"Shetland Islands Local Authority\",Calculations!$E$2=\"Eilean Siar Local Authority\"),OR($F190=1,$F190=5)),0,new_yllv2(VALUE(LEFT(Options!$B$14,2)),$C190,$D190,$E190,$F190,2016,$I190/10,1,$H190/10,$G190*$H190/10,RateRatios_airpollution!$C190)*10))","v":3578.568667517},{"$f":"IF(AND(OR(Calculations!$E$2=\"Orkney Health Board\",Calculations!$E$2=\"Orkney Islands Local Authority\"),$F190=1),0,IF(AND(OR(Calculations!$E$2=\"Shetland Health Board\",Calculations!$E$2=\"Western Isles Health Board\",Calculations!$E$2=\"Shetland Islands Local Authority\",Calculations!$E$2=\"Eilean Siar Local Authority\"),OR($F190=1,$F190=5)),0,new_yllv2(VALUE(LEFT(Options!$B$14,2)),$C190,$D190,$E190,$F190,2016,$I190/10+$J190/10,1,$H190/10,$G190*$H190/10,RateRatios_airpollution!$C190)*10))","v":3578.5393952449999},{"$f":"IF(AND(OR(Calculations!$E$2=\"Orkney Health Board\",Calculations!$E$2=\"Orkney Islands Local Authority\"),$F190=1),0,IF(AND(OR(Calculations!$E$2=\"Shetland Health Board\",Calculations!$E$2=\"Western Isles Health Board\",Calculations!$E$2=\"Shetland Islands Local Authority\",Calculations!$E$2=\"Eilean Siar Local Authority\"),OR($F190=1,$F190=5)),0,hosp_count(VALUE(LEFT(Options!$B$14,2)),$C190,$E190,$F190,2016,$I190/10,1,$H190/10,$G190*$H190/10, RateRatios_airpollution!$D190, RateRatios_airpollution!$C190)*10))","v":6960.2000923549995},{"$f":"IF(AND(OR(Calculations!$E$2=\"Orkney Health Board\",Calculations!$E$2=\"Orkney Islands Local Authority\"),$F190=1),0,IF(AND(OR(Calculations!$E$2=\"Shetland Health Board\",Calculations!$E$2=\"Western Isles Health Board\",Calculations!$E$2=\"Shetland Islands Local Authority\",Calculations!$E$2=\"Eilean Siar Local Authority\"),OR($F190=1,$F190=5)),0,hosp_count(VALUE(LEFT(Options!$B$14,2)),$C190,$E190,$F190,2016,$I190/10+$J190/10,1,$H190/10,$G190*$H190/10, RateRatios_airpollution!$D190, RateRatios_airpollution!$C190)*10))","v":6960.0910040569997},{"$f":"IF(AND(OR(Calculations!$E$2=\"Orkney Health Board\",Calculations!$E$2=\"Orkney Islands Local Authority\"),$F190=1),0,IF(AND(OR(Calculations!$E$2=\"Shetland Health Board\",Calculations!$E$2=\"Western Isles Health Board\",Calculations!$E$2=\"Shetland Islands Local Authority\",Calculations!$E$2=\"Eilean Siar Local Authority\"),OR($F190=1,$F190=5)),0,prem_mort(VALUE(LEFT(Options!$B$14,2)),$C190,$E190,$F190,2016,$I190/10,1,$H190/10,$G190*$H190/10,RateRatios_airpollution!$C190)*10))","v":0},{"$f":"IF(AND(OR(Calculations!$E$2=\"Orkney Health Board\",Calculations!$E$2=\"Orkney Islands Local Authority\"),$F190=1),0,IF(AND(OR(Calculations!$E$2=\"Shetland Health Board\",Calculations!$E$2=\"Western Isles Health Board\",Calculations!$E$2=\"Shetland Islands Local Authority\",Calculations!$E$2=\"Eilean Siar Local Authority\"),OR($F190=1,$F190=5)),0,prem_mort(VALUE(LEFT(Options!$B$14,2)),$C190,$E190,$F190,2016,$I190/10+$J190/10,1,$H190/10,$G190*$H190/10,RateRatios_airpollution!$C190)*10))","v":0},null,{"$f":"IF(AND(OR(Calculations!$E$2=\"Orkney Health Board\",Calculations!$E$2=\"Orkney Islands Local Authority\"),$F190=1),0,IF(AND(OR(Calculations!$E$2=\"Shetland Health Board\",Calculations!$E$2=\"Western Isles Health Board\",Calculations!$E$2=\"Shetland Islands Local Authority\",Calculations!$E$2=\"Eilean Siar Local Authority\"),OR($F190=1,$F190=5)),0,new_ci(VALUE(LEFT(Options!$B$14,2)),$C190,$E190,$F190,2016,$I190/10,1,$H190/10,$G190*$H190/10,RateRatios_airpollution!$E190)*10))","v":520.14094590100001},{"$f":"IF(AND(OR(Calculations!$E$2=\"Orkney Health Board\",Calculations!$E$2=\"Orkney Islands Local Authority\"),$F190=1),0,IF(AND(OR(Calculations!$E$2=\"Shetland Health Board\",Calculations!$E$2=\"Western Isles Health Board\",Calculations!$E$2=\"Shetland Islands Local Authority\",Calculations!$E$2=\"Eilean Siar Local Authority\"),OR($F190=1,$F190=5)),0,new_ci(VALUE(LEFT(Options!$B$14,2)),$C190,$E190,$F190,2016,$I190/10+$J190/10,1,$H190/10,$G190*$H190/10,RateRatios_airpollution!$E190)*10))","v":520.13903812700005},{"$f":"IF(AND(OR(Calculations!$E$2=\"Orkney Health Board\",Calculations!$E$2=\"Orkney Islands Local Authority\"),$F190=1),0,IF(AND(OR(Calculations!$E$2=\"Shetland Health Board\",Calculations!$E$2=\"Western Isles Health Board\",Calculations!$E$2=\"Shetland Islands Local Authority\",Calculations!$E$2=\"Eilean Siar Local Authority\"),OR($F190=1,$F190=5)),0,new_yllv2(VALUE(LEFT(Options!$B$14,2)),$C190,$D190,$E190,$F190,2016,$I190/10,1,$H190/10,$G190*$H190/10,RateRatios_airpollution!$E190)*10))","v":3578.568667517},{"$f":"IF(AND(OR(Calculations!$E$2=\"Orkney Health Board\",Calculations!$E$2=\"Orkney Islands Local Authority\"),$F190=1),0,IF(AND(OR(Calculations!$E$2=\"Shetland Health Board\",Calculations!$E$2=\"Western Isles Health Board\",Calculations!$E$2=\"Shetland Islands Local Authority\",Calculations!$E$2=\"Eilean Siar Local Authority\"),OR($F190=1,$F190=5)),0,new_yllv2(VALUE(LEFT(Options!$B$14,2)),$C190,$D190,$E190,$F190,2016,$I190/10+$J190/10,1,$H190/10,$G190*$H190/10,RateRatios_airpollution!$E190)*10))","v":3578.5555420359997},{"$f":"IF(AND(OR(Calculations!$E$2=\"Orkney Health Board\",Calculations!$E$2=\"Orkney Islands Local Authority\"),$F190=1),0,IF(AND(OR(Calculations!$E$2=\"Shetland Health Board\",Calculations!$E$2=\"Western Isles Health Board\",Calculations!$E$2=\"Shetland Islands Local Authority\",Calculations!$E$2=\"Eilean Siar Local Authority\"),OR($F190=1,$F190=5)),0,hosp_count(VALUE(LEFT(Options!$B$14,2)),$C190,$E190,$F190,2016,$I190/10,1,$H190/10,$G190*$H190/10, RateRatios_airpollution!$F190, RateRatios_airpollution!$E190)*10))","v":6960.2000923549995},{"$f":"IF(AND(OR(Calculations!$E$2=\"Orkney Health Board\",Calculations!$E$2=\"Orkney Islands Local Authority\"),$F190=1),0,IF(AND(OR(Calculations!$E$2=\"Shetland Health Board\",Calculations!$E$2=\"Western Isles Health Board\",Calculations!$E$2=\"Shetland Islands Local Authority\",Calculations!$E$2=\"Eilean Siar Local Authority\"),OR($F190=1,$F190=5)),0,hosp_count(VALUE(LEFT(Options!$B$14,2)),$C190,$E190,$F190,2016,$I190/10+$J190/10,1,$H190/10,$G190*$H190/10, RateRatios_airpollution!$F190, RateRatios_airpollution!$E190)*10))","v":6960.2000923549995},{"$f":"IF(AND(OR(Calculations!$E$2=\"Orkney Health Board\",Calculations!$E$2=\"Orkney Islands Local Authority\"),$F190=1),0,IF(AND(OR(Calculations!$E$2=\"Shetland Health Board\",Calculations!$E$2=\"Western Isles Health Board\",Calculations!$E$2=\"Shetland Islands Local Authority\",Calculations!$E$2=\"Eilean Siar Local Authority\"),OR($F190=1,$F190=5)),0,prem_mort(VALUE(LEFT(Options!$B$14,2)),$C190,$E190,$F190,2016,$I190/10,1,$H190/10,$G190*$H190/10,RateRatios_airpollution!$E190)*10))","v":0},{"$f":"IF(AND(OR(Calculations!$E$2=\"Orkney Health Board\",Calculations!$E$2=\"Orkney Islands Local Authority\"),$F190=1),0,IF(AND(OR(Calculations!$E$2=\"Shetland Health Board\",Calculations!$E$2=\"Western Isles Health Board\",Calculations!$E$2=\"Shetland Islands Local Authority\",Calculations!$E$2=\"Eilean Siar Local Authority\"),OR($F190=1,$F190=5)),0,prem_mort(VALUE(LEFT(Options!$B$14,2)),$C190,$E190,$F190,2016,$I190/10+$J190/10,1,$H190/10,$G190*$H190/10,RateRatios_airpollution!$E190)*10))","v":0},520.14094590100001,520.04876790500009,3578.568667517,3577.9344830899995,6960.2000923549995,6958.9203159979998,0,0,3326.9857099974415,3326.3961104323917,22889.655030811053,22885.59858698989,44519.637279998722,44511.451426365609,0,0,8317464.274993604,8315990.276080979,57224137.577027634,57213996.467474729,111299093.1999968,111278628.56591402,0,0,2500]
[null,"Female 85-89",86.730819999999994,92.220819999999989,"female",4,1,{"$f":"HLOOKUP(Calculations!$E$2,'Population 2016'!$C$3:$BC$249,'Population 2016'!BD191,FALSE)","v":9988},0,{"$f":"HLOOKUP(Calculations!$E$2,Pop2016_in_settlements!$C$3:$BC$249,Pop2016_in_settlements!$BD191,FALSE)","v":4131},{"$f":"IF(AND(OR(Calculations!$E$2=\"Orkney Health Board\",Calculations!$E$2=\"Orkney Islands Local Authority\"),$F191=1),0,IF(AND(OR(Calculations!$E$2=\"Shetland Health Board\",Calculations!$E$2=\"Western Isles Health Board\",Calculations!$E$2=\"Shetland Islands Local Authority\",Calculations!$E$2=\"Eilean Siar Local Authority\"),OR($F191=1,$F191=5)),0,new_ci(VALUE(LEFT(Options!$B$14,2)),$C191,$E191,$F191,2016,$I191/10,1,$H191/10,$G191*$H191/10,RateRatios_accidents!$B$5)*10))","v":498.68310630600001},{"$f":"IF(AND(OR(Calculations!$E$2=\"Orkney Health Board\",Calculations!$E$2=\"Orkney Islands Local Authority\"),$F191=1),0,IF(AND(OR(Calculations!$E$2=\"Shetland Health Board\",Calculations!$E$2=\"Western Isles Health Board\",Calculations!$E$2=\"Shetland Islands Local Authority\",Calculations!$E$2=\"Eilean Siar Local Authority\"),OR($F191=1,$F191=5)),0,new_ci(VALUE(LEFT(Options!$B$14,2)),$C191,$E191,$F191,2016,$I191/10+$J191/10,1,$H191/10,$G191*$H191/10,RateRatios_accidents!$B$5)*10))","v":498.60269887000004},{"$f":"IF(AND(OR(Calculations!$E$2=\"Orkney Health Board\",Calculations!$E$2=\"Orkney Islands Local Authority\"),$F191=1),0,IF(AND(OR(Calculations!$E$2=\"Shetland Health Board\",Calculations!$E$2=\"Western Isles Health Board\",Calculations!$E$2=\"Shetland Islands Local Authority\",Calculations!$E$2=\"Eilean Siar Local Authority\"),OR($F191=1,$F191=5)),0,new_yllv2(VALUE(LEFT(Options!$B$14,2)),$C191,$D191,$E191,$F191,2016,$I191/10,1,$H191/10,$G191*$H191/10,RateRatios_accidents!$B$5)*10))","v":2239.087147314},{"$f":"IF(AND(OR(Calculations!$E$2=\"Orkney Health Board\",Calculations!$E$2=\"Orkney Islands Local Authority\"),$F191=1),0,IF(AND(OR(Calculations!$E$2=\"Shetland Health Board\",Calculations!$E$2=\"Western Isles Health Board\",Calculations!$E$2=\"Shetland Islands Local Authority\",Calculations!$E$2=\"Eilean Siar Local Authority\"),OR($F191=1,$F191=5)),0,new_yllv2(VALUE(LEFT(Options!$B$14,2)),$C191,$D191,$E191,$F191,2016,$I191/10+$J191/10,1,$H191/10,$G191*$H191/10,RateRatios_accidents!$B$5)*10))","v":2238.7261179259999},{"$f":"IF(AND(OR(Calculations!$E$2=\"Orkney Health Board\",Calculations!$E$2=\"Orkney Islands Local Authority\"),$F191=1),0,IF(AND(OR(Calculations!$E$2=\"Shetland Health Board\",Calculations!$E$2=\"Western Isles Health Board\",Calculations!$E$2=\"Shetland Islands Local Authority\",Calculations!$E$2=\"Eilean Siar Local Authority\"),OR($F191=1,$F191=5)),0,hosp_count(VALUE(LEFT(Options!$B$14,2)),$C191,$E191,$F191,2016,$I191/10,1,$H191/10,$G191*$H191/10, RateRatios_accidents!$B$4, RateRatios_accidents!$B$5)*10))","v":5026.6128475639998},{"$f":"IF(AND(OR(Calculations!$E$2=\"Orkney Health Board\",Calculations!$E$2=\"Orkney Islands Local Authority\"),$F191=1),0,IF(AND(OR(Calculations!$E$2=\"Shetland Health Board\",Calculations!$E$2=\"Western Isles Health Board\",Calculations!$E$2=\"Shetland Islands Local Authority\",Calculations!$E$2=\"Eilean Siar Local Authority\"),OR($F191=1,$F191=5)),0,hosp_count(VALUE(LEFT(Options!$B$14,2)),$C191,$E191,$F191,2016,$I191/10+$J191/10,1,$H191/10,$G191*$H191/10, RateRatios_accidents!$B$4, RateRatios_accidents!$B$5)*10))","v":5025.7812520649995},{"$f":"IF(AND(OR(Calculations!$E$2=\"Orkney Health Board\",Calculations!$E$2=\"Orkney Islands Local Authority\"),$F191=1),0,IF(AND(OR(Calculations!$E$2=\"Shetland Health Board\",Calculations!$E$2=\"Western Isles Health Board\",Calculations!$E$2=\"Shetland Islands Local Authority\",Calculations!$E$2=\"Eilean Siar Local Authority\"),OR($F191=1,$F191=5)),0,prem_mort(VALUE(LEFT(Options!$B$14,2)),$C191,$E191,$F191,2016,$I191/10,1,$H191/10,$G191*$H191/10,RateRatios_accidents!$B$5)*10))","v":0},{"$f":"IF(AND(OR(Calculations!$E$2=\"Orkney Health Board\",Calculations!$E$2=\"Orkney Islands Local Authority\"),$F191=1),0,IF(AND(OR(Calculations!$E$2=\"Shetland Health Board\",Calculations!$E$2=\"Western Isles Health Board\",Calculations!$E$2=\"Shetland Islands Local Authority\",Calculations!$E$2=\"Eilean Siar Local Authority\"),OR($F191=1,$F191=5)),0,prem_mort(VALUE(LEFT(Options!$B$14,2)),$C191,$E191,$F191,2016,$I191/10+$J191/10,1,$H191/10,$G191*$H191/10,RateRatios_accidents!$B$5)*10))","v":0},null,{"$f":"IF(AND(OR(Calculations!$E$2=\"Orkney Health Board\",Calculations!$E$2=\"Orkney Islands Local Authority\"),$F191=1),0,IF(AND(OR(Calculations!$E$2=\"Shetland Health Board\",Calculations!$E$2=\"Western Isles Health Board\",Calculations!$E$2=\"Shetland Islands Local Authority\",Calculations!$E$2=\"Eilean Siar Local Authority\"),OR($F191=1,$F191=5)),0,new_ci(VALUE(LEFT(Options!$B$14,2)),$C191,$E191,$F191,2016,$I191/10,1,$H191/10,$G191*$H191/10,RateRatios_airpollution!$C191)*10))","v":498.68310630600001},{"$f":"IF(AND(OR(Calculations!$E$2=\"Orkney Health Board\",Calculations!$E$2=\"Orkney Islands Local Authority\"),$F191=1),0,IF(AND(OR(Calculations!$E$2=\"Shetland Health Board\",Calculations!$E$2=\"Western Isles Health Board\",Calculations!$E$2=\"Shetland Islands Local Authority\",Calculations!$E$2=\"Eilean Siar Local Authority\"),OR($F191=1,$F191=5)),0,new_ci(VALUE(LEFT(Options!$B$14,2)),$C191,$E191,$F191,2016,$I191/10+$J191/10,1,$H191/10,$G191*$H191/10,RateRatios_airpollution!$C191)*10))","v":498.67898687299999},{"$f":"IF(AND(OR(Calculations!$E$2=\"Orkney Health Board\",Calculations!$E$2=\"Orkney Islands Local Authority\"),$F191=1),0,IF(AND(OR(Calculations!$E$2=\"Shetland Health Board\",Calculations!$E$2=\"Western Isles Health Board\",Calculations!$E$2=\"Shetland Islands Local Authority\",Calculations!$E$2=\"Eilean Siar Local Authority\"),OR($F191=1,$F191=5)),0,new_yllv2(VALUE(LEFT(Options!$B$14,2)),$C191,$D191,$E191,$F191,2016,$I191/10,1,$H191/10,$G191*$H191/10,RateRatios_airpollution!$C191)*10))","v":2239.087147314},{"$f":"IF(AND(OR(Calculations!$E$2=\"Orkney Health Board\",Calculations!$E$2=\"Orkney Islands Local Authority\"),$F191=1),0,IF(AND(OR(Calculations!$E$2=\"Shetland Health Board\",Calculations!$E$2=\"Western Isles Health Board\",Calculations!$E$2=\"Shetland Islands Local Authority\",Calculations!$E$2=\"Eilean Siar Local Authority\"),OR($F191=1,$F191=5)),0,new_yllv2(VALUE(LEFT(Options!$B$14,2)),$C191,$D191,$E191,$F191,2016,$I191/10+$J191/10,1,$H191/10,$G191*$H191/10,RateRatios_airpollution!$C191)*10))","v":2239.0686510599999},{"$f":"IF(AND(OR(Calculations!$E$2=\"Orkney Health Board\",Calculations!$E$2=\"Orkney Islands Local Authority\"),$F191=1),0,IF(AND(OR(Calculations!$E$2=\"Shetland Health Board\",Calculations!$E$2=\"Western Isles Health Board\",Calculations!$E$2=\"Shetland Islands Local Authority\",Calculations!$E$2=\"Eilean Siar Local Authority\"),OR($F191=1,$F191=5)),0,hosp_count(VALUE(LEFT(Options!$B$14,2)),$C191,$E191,$F191,2016,$I191/10,1,$H191/10,$G191*$H191/10, RateRatios_airpollution!$D191, RateRatios_airpollution!$C191)*10))","v":5026.6128475639998},{"$f":"IF(AND(OR(Calculations!$E$2=\"Orkney Health Board\",Calculations!$E$2=\"Orkney Islands Local Authority\"),$F191=1),0,IF(AND(OR(Calculations!$E$2=\"Shetland Health Board\",Calculations!$E$2=\"Western Isles Health Board\",Calculations!$E$2=\"Shetland Islands Local Authority\",Calculations!$E$2=\"Eilean Siar Local Authority\"),OR($F191=1,$F191=5)),0,hosp_count(VALUE(LEFT(Options!$B$14,2)),$C191,$E191,$F191,2016,$I191/10+$J191/10,1,$H191/10,$G191*$H191/10, RateRatios_airpollution!$D191, RateRatios_airpollution!$C191)*10))","v":5026.5325822340001},{"$f":"IF(AND(OR(Calculations!$E$2=\"Orkney Health Board\",Calculations!$E$2=\"Orkney Islands Local Authority\"),$F191=1),0,IF(AND(OR(Calculations!$E$2=\"Shetland Health Board\",Calculations!$E$2=\"Western Isles Health Board\",Calculations!$E$2=\"Shetland Islands Local Authority\",Calculations!$E$2=\"Eilean Siar Local Authority\"),OR($F191=1,$F191=5)),0,prem_mort(VALUE(LEFT(Options!$B$14,2)),$C191,$E191,$F191,2016,$I191/10,1,$H191/10,$G191*$H191/10,RateRatios_airpollution!$C191)*10))","v":0},{"$f":"IF(AND(OR(Calculations!$E$2=\"Orkney Health Board\",Calculations!$E$2=\"Orkney Islands Local Authority\"),$F191=1),0,IF(AND(OR(Calculations!$E$2=\"Shetland Health Board\",Calculations!$E$2=\"Western Isles Health Board\",Calculations!$E$2=\"Shetland Islands Local Authority\",Calculations!$E$2=\"Eilean Siar Local Authority\"),OR($F191=1,$F191=5)),0,prem_mort(VALUE(LEFT(Options!$B$14,2)),$C191,$E191,$F191,2016,$I191/10+$J191/10,1,$H191/10,$G191*$H191/10,RateRatios_airpollution!$C191)*10))","v":0},null,{"$f":"IF(AND(OR(Calculations!$E$2=\"Orkney Health Board\",Calculations!$E$2=\"Orkney Islands Local Authority\"),$F191=1),0,IF(AND(OR(Calculations!$E$2=\"Shetland Health Board\",Calculations!$E$2=\"Western Isles Health Board\",Calculations!$E$2=\"Shetland Islands Local Authority\",Calculations!$E$2=\"Eilean Siar Local Authority\"),OR($F191=1,$F191=5)),0,new_ci(VALUE(LEFT(Options!$B$14,2)),$C191,$E191,$F191,2016,$I191/10,1,$H191/10,$G191*$H191/10,RateRatios_airpollution!$E191)*10))","v":498.68310630600001},{"$f":"IF(AND(OR(Calculations!$E$2=\"Orkney Health Board\",Calculations!$E$2=\"Orkney Islands Local Authority\"),$F191=1),0,IF(AND(OR(Calculations!$E$2=\"Shetland Health Board\",Calculations!$E$2=\"Western Isles Health Board\",Calculations!$E$2=\"Shetland Islands Local Authority\",Calculations!$E$2=\"Eilean Siar Local Authority\"),OR($F191=1,$F191=5)),0,new_ci(VALUE(LEFT(Options!$B$14,2)),$C191,$E191,$F191,2016,$I191/10+$J191/10,1,$H191/10,$G191*$H191/10,RateRatios_airpollution!$E191)*10))","v":498.68126511900005},{"$f":"IF(AND(OR(Calculations!$E$2=\"Orkney Health Board\",Calculations!$E$2=\"Orkney Islands Local Authority\"),$F191=1),0,IF(AND(OR(Calculations!$E$2=\"Shetland Health Board\",Calculations!$E$2=\"Western Isles Health Board\",Calculations!$E$2=\"Shetland Islands Local Authority\",Calculations!$E$2=\"Eilean Siar Local Authority\"),OR($F191=1,$F191=5)),0,new_yllv2(VALUE(LEFT(Options!$B$14,2)),$C191,$D191,$E191,$F191,2016,$I191/10,1,$H191/10,$G191*$H191/10,RateRatios_airpollution!$E191)*10))","v":2239.087147314},{"$f":"IF(AND(OR(Calculations!$E$2=\"Orkney Health Board\",Calculations!$E$2=\"Orkney Islands Local Authority\"),$F191=1),0,IF(AND(OR(Calculations!$E$2=\"Shetland Health Board\",Calculations!$E$2=\"Western Isles Health Board\",Calculations!$E$2=\"Shetland Islands Local Authority\",Calculations!$E$2=\"Eilean Siar Local Authority\"),OR($F191=1,$F191=5)),0,new_yllv2(VALUE(LEFT(Options!$B$14,2)),$C191,$D191,$E191,$F191,2016,$I191/10+$J191/10,1,$H191/10,$G191*$H191/10,RateRatios_airpollution!$E191)*10))","v":2239.0788803840001},{"$f":"IF(AND(OR(Calculations!$E$2=\"Orkney Health Board\",Calculations!$E$2=\"Orkney Islands Local Authority\"),$F191=1),0,IF(AND(OR(Calculations!$E$2=\"Shetland Health Board\",Calculations!$E$2=\"Western Isles Health Board\",Calculations!$E$2=\"Shetland Islands Local Authority\",Calculations!$E$2=\"Eilean Siar Local Authority\"),OR($F191=1,$F191=5)),0,hosp_count(VALUE(LEFT(Options!$B$14,2)),$C191,$E191,$F191,2016,$I191/10,1,$H191/10,$G191*$H191/10, RateRatios_airpollution!$F191, RateRatios_airpollution!$E191)*10))","v":5026.6128475639998},{"$f":"IF(AND(OR(Calculations!$E$2=\"Orkney Health Board\",Calculations!$E$2=\"Orkney Islands Local Authority\"),$F191=1),0,IF(AND(OR(Calculations!$E$2=\"Shetland Health Board\",Calculations!$E$2=\"Western Isles Health Board\",Calculations!$E$2=\"Shetland Islands Local Authority\",Calculations!$E$2=\"Eilean Siar Local Authority\"),OR($F191=1,$F191=5)),0,hosp_count(VALUE(LEFT(Options!$B$14,2)),$C191,$E191,$F191,2016,$I191/10+$J191/10,1,$H191/10,$G191*$H191/10, RateRatios_airpollution!$F191, RateRatios_airpollution!$E191)*10))","v":5026.6128475639998},{"$f":"IF(AND(OR(Calculations!$E$2=\"Orkney Health Board\",Calculations!$E$2=\"Orkney Islands Local Authority\"),$F191=1),0,IF(AND(OR(Calculations!$E$2=\"Shetland Health Board\",Calculations!$E$2=\"Western Isles Health Board\",Calculations!$E$2=\"Shetland Islands Local Authority\",Calculations!$E$2=\"Eilean Siar Local Authority\"),OR($F191=1,$F191=5)),0,prem_mort(VALUE(LEFT(Options!$B$14,2)),$C191,$E191,$F191,2016,$I191/10,1,$H191/10,$G191*$H191/10,RateRatios_airpollution!$E191)*10))","v":0},{"$f":"IF(AND(OR(Calculations!$E$2=\"Orkney Health Board\",Calculations!$E$2=\"Orkney Islands Local Authority\"),$F191=1),0,IF(AND(OR(Calculations!$E$2=\"Shetland Health Board\",Calculations!$E$2=\"Western Isles Health Board\",Calculations!$E$2=\"Shetland Islands Local Authority\",Calculations!$E$2=\"Eilean Siar Local Authority\"),OR($F191=1,$F191=5)),0,prem_mort(VALUE(LEFT(Options!$B$14,2)),$C191,$E191,$F191,2016,$I191/10+$J191/10,1,$H191/10,$G191*$H191/10,RateRatios_airpollution!$E191)*10))","v":0},498.68310630600001,498.59673825000004,2239.087147314,2238.6993547419997,5026.6128475639998,5025.7009867349998,0,0,4992.8224499999997,4991.9577317781341,22417.772800500603,22413.890215678814,50326.520299999996,50317.390736233479,0,0,7489233.6749999998,7487936.5976672014,33626659.200750902,33620835.323518217,75489780.449999988,75476086.104350224,0,0,1500]
[null,"Female 90+",92.779342999999997,96.279340000000005,"female",4,1,{"$f":"HLOOKUP(Calculations!$E$2,'Population 2016'!$C$3:$BC$249,'Population 2016'!BD192,FALSE)","v":5998},0,{"$f":"HLOOKUP(Calculations!$E$2,Pop2016_in_settlements!$C$3:$BC$249,Pop2016_in_settlements!$BD192,FALSE)","v":2510},{"$f":"IF(AND(OR(Calculations!$E$2=\"Orkney Health Board\",Calculations!$E$2=\"Orkney Islands Local Authority\"),$F192=1),0,IF(AND(OR(Calculations!$E$2=\"Shetland Health Board\",Calculations!$E$2=\"Western Isles Health Board\",Calculations!$E$2=\"Shetland Islands Local Authority\",Calculations!$E$2=\"Eilean Siar Local Authority\"),OR($F192=1,$F192=5)),0,new_ci(VALUE(LEFT(Options!$B$14,2)),$C192,$E192,$F192,2016,$I192/10,1,$H192/10,$G192*$H192/10,RateRatios_accidents!$B$5)*10))","v":492.47044564800001},{"$f":"IF(AND(OR(Calculations!$E$2=\"Orkney Health Board\",Calculations!$E$2=\"Orkney Islands Local Authority\"),$F192=1),0,IF(AND(OR(Calculations!$E$2=\"Shetland Health Board\",Calculations!$E$2=\"Western Isles Health Board\",Calculations!$E$2=\"Shetland Islands Local Authority\",Calculations!$E$2=\"Eilean Siar Local Authority\"),OR($F192=1,$F192=5)),0,new_ci(VALUE(LEFT(Options!$B$14,2)),$C192,$E192,$F192,2016,$I192/10+$J192/10,1,$H192/10,$G192*$H192/10,RateRatios_accidents!$B$5)*10))","v":492.39149083699999},{"$f":"IF(AND(OR(Calculations!$E$2=\"Orkney Health Board\",Calculations!$E$2=\"Orkney Islands Local Authority\"),$F192=1),0,IF(AND(OR(Calculations!$E$2=\"Shetland Health Board\",Calculations!$E$2=\"Western Isles Health Board\",Calculations!$E$2=\"Shetland Islands Local Authority\",Calculations!$E$2=\"Eilean Siar Local Authority\"),OR($F192=1,$F192=5)),0,new_yllv2(VALUE(LEFT(Options!$B$14,2)),$C192,$D192,$E192,$F192,2016,$I192/10,1,$H192/10,$G192*$H192/10,RateRatios_accidents!$B$5)*10))","v":1231.174636709},{"$f":"IF(AND(OR(Calculations!$E$2=\"Orkney Health Board\",Calculations!$E$2=\"Orkney Islands Local Authority\"),$F192=1),0,IF(AND(OR(Calculations!$E$2=\"Shetland Health Board\",Calculations!$E$2=\"Western Isles Health Board\",Calculations!$E$2=\"Shetland Islands Local Authority\",Calculations!$E$2=\"Eilean Siar Local Authority\"),OR($F192=1,$F192=5)),0,new_yllv2(VALUE(LEFT(Options!$B$14,2)),$C192,$D192,$E192,$F192,2016,$I192/10+$J192/10,1,$H192/10,$G192*$H192/10,RateRatios_accidents!$B$5)*10))","v":1230.9772499180001},{"$f":"IF(AND(OR(Calculations!$E$2=\"Orkney Health Board\",Calculations!$E$2=\"Orkney Islands Local Authority\"),$F192=1),0,IF(AND(OR(Calculations!$E$2=\"Shetland Health Board\",Calculations!$E$2=\"Western Isles Health Board\",Calculations!$E$2=\"Shetland Islands Local Authority\",Calculations!$E$2=\"Eilean Siar Local Authority\"),OR($F192=1,$F192=5)),0,hosp_count(VALUE(LEFT(Options!$B$14,2)),$C192,$E192,$F192,2016,$I192/10,1,$H192/10,$G192*$H192/10, RateRatios_accidents!$B$4, RateRatios_accidents!$B$5)*10))","v":3514.6176669340002},{"$f":"IF(AND(OR(Calculations!$E$2=\"Orkney Health Board\",Calculations!$E$2=\"Orkney Islands Local Authority\"),$F192=1),0,IF(AND(OR(Calculations!$E$2=\"Shetland Health Board\",Calculations!$E$2=\"Western Isles Health Board\",Calculations!$E$2=\"Shetland Islands Local Authority\",Calculations!$E$2=\"Eilean Siar Local Authority\"),OR($F192=1,$F192=5)),0,hosp_count(VALUE(LEFT(Options!$B$14,2)),$C192,$E192,$F192,2016,$I192/10+$J192/10,1,$H192/10,$G192*$H192/10, RateRatios_accidents!$B$4, RateRatios_accidents!$B$5)*10))","v":3514.0293580739999},{"$f":"IF(AND(OR(Calculations!$E$2=\"Orkney Health Board\",Calculations!$E$2=\"Orkney Islands Local Authority\"),$F192=1),0,IF(AND(OR(Calculations!$E$2=\"Shetland Health Board\",Calculations!$E$2=\"Western Isles Health Board\",Calculations!$E$2=\"Shetland Islands Local Authority\",Calculations!$E$2=\"Eilean Siar Local Authority\"),OR($F192=1,$F192=5)),0,prem_mort(VALUE(LEFT(Options!$B$14,2)),$C192,$E192,$F192,2016,$I192/10,1,$H192/10,$G192*$H192/10,RateRatios_accidents!$B$5)*10))","v":0},{"$f":"IF(AND(OR(Calculations!$E$2=\"Orkney Health Board\",Calculations!$E$2=\"Orkney Islands Local Authority\"),$F192=1),0,IF(AND(OR(Calculations!$E$2=\"Shetland Health Board\",Calculations!$E$2=\"Western Isles Health Board\",Calculations!$E$2=\"Shetland Islands Local Authority\",Calculations!$E$2=\"Eilean Siar Local Authority\"),OR($F192=1,$F192=5)),0,prem_mort(VALUE(LEFT(Options!$B$14,2)),$C192,$E192,$F192,2016,$I192/10+$J192/10,1,$H192/10,$G192*$H192/10,RateRatios_accidents!$B$5)*10))","v":0},null,{"$f":"IF(AND(OR(Calculations!$E$2=\"Orkney Health Board\",Calculations!$E$2=\"Orkney Islands Local Authority\"),$F192=1),0,IF(AND(OR(Calculations!$E$2=\"Shetland Health Board\",Calculations!$E$2=\"Western Isles Health Board\",Calculations!$E$2=\"Shetland Islands Local Authority\",Calculations!$E$2=\"Eilean Siar Local Authority\"),OR($F192=1,$F192=5)),0,new_ci(VALUE(LEFT(Options!$B$14,2)),$C192,$E192,$F192,2016,$I192/10,1,$H192/10,$G192*$H192/10,RateRatios_airpollution!$C192)*10))","v":492.47044564800001},{"$f":"IF(AND(OR(Calculations!$E$2=\"Orkney Health Board\",Calculations!$E$2=\"Orkney Islands Local Authority\"),$F192=1),0,IF(AND(OR(Calculations!$E$2=\"Shetland Health Board\",Calculations!$E$2=\"Western Isles Health Board\",Calculations!$E$2=\"Shetland Islands Local Authority\",Calculations!$E$2=\"Eilean Siar Local Authority\"),OR($F192=1,$F192=5)),0,new_ci(VALUE(LEFT(Options!$B$14,2)),$C192,$E192,$F192,2016,$I192/10+$J192/10,1,$H192/10,$G192*$H192/10,RateRatios_airpollution!$C192)*10))","v":492.46637493000003},{"$f":"IF(AND(OR(Calculations!$E$2=\"Orkney Health Board\",Calculations!$E$2=\"Orkney Islands Local Authority\"),$F192=1),0,IF(AND(OR(Calculations!$E$2=\"Shetland Health Board\",Calculations!$E$2=\"Western Isles Health Board\",Calculations!$E$2=\"Shetland Islands Local Authority\",Calculations!$E$2=\"Eilean Siar Local Authority\"),OR($F192=1,$F192=5)),0,new_yllv2(VALUE(LEFT(Options!$B$14,2)),$C192,$D192,$E192,$F192,2016,$I192/10,1,$H192/10,$G192*$H192/10,RateRatios_airpollution!$C192)*10))","v":1231.174636709},{"$f":"IF(AND(OR(Calculations!$E$2=\"Orkney Health Board\",Calculations!$E$2=\"Orkney Islands Local Authority\"),$F192=1),0,IF(AND(OR(Calculations!$E$2=\"Shetland Health Board\",Calculations!$E$2=\"Western Isles Health Board\",Calculations!$E$2=\"Shetland Islands Local Authority\",Calculations!$E$2=\"Eilean Siar Local Authority\"),OR($F192=1,$F192=5)),0,new_yllv2(VALUE(LEFT(Options!$B$14,2)),$C192,$D192,$E192,$F192,2016,$I192/10+$J192/10,1,$H192/10,$G192*$H192/10,RateRatios_airpollution!$C192)*10))","v":1231.1644599260001},{"$f":"IF(AND(OR(Calculations!$E$2=\"Orkney Health Board\",Calculations!$E$2=\"Orkney Islands Local Authority\"),$F192=1),0,IF(AND(OR(Calculations!$E$2=\"Shetland Health Board\",Calculations!$E$2=\"Western Isles Health Board\",Calculations!$E$2=\"Shetland Islands Local Authority\",Calculations!$E$2=\"Eilean Siar Local Authority\"),OR($F192=1,$F192=5)),0,hosp_count(VALUE(LEFT(Options!$B$14,2)),$C192,$E192,$F192,2016,$I192/10,1,$H192/10,$G192*$H192/10, RateRatios_airpollution!$D192, RateRatios_airpollution!$C192)*10))","v":3514.6176669340002},{"$f":"IF(AND(OR(Calculations!$E$2=\"Orkney Health Board\",Calculations!$E$2=\"Orkney Islands Local Authority\"),$F192=1),0,IF(AND(OR(Calculations!$E$2=\"Shetland Health Board\",Calculations!$E$2=\"Western Isles Health Board\",Calculations!$E$2=\"Shetland Islands Local Authority\",Calculations!$E$2=\"Eilean Siar Local Authority\"),OR($F192=1,$F192=5)),0,hosp_count(VALUE(LEFT(Options!$B$14,2)),$C192,$E192,$F192,2016,$I192/10+$J192/10,1,$H192/10,$G192*$H192/10, RateRatios_airpollution!$D192, RateRatios_airpollution!$C192)*10))","v":3514.5605240229997},{"$f":"IF(AND(OR(Calculations!$E$2=\"Orkney Health Board\",Calculations!$E$2=\"Orkney Islands Local Authority\"),$F192=1),0,IF(AND(OR(Calculations!$E$2=\"Shetland Health Board\",Calculations!$E$2=\"Western Isles Health Board\",Calculations!$E$2=\"Shetland Islands Local Authority\",Calculations!$E$2=\"Eilean Siar Local Authority\"),OR($F192=1,$F192=5)),0,prem_mort(VALUE(LEFT(Options!$B$14,2)),$C192,$E192,$F192,2016,$I192/10,1,$H192/10,$G192*$H192/10,RateRatios_airpollution!$C192)*10))","v":0},{"$f":"IF(AND(OR(Calculations!$E$2=\"Orkney Health Board\",Calculations!$E$2=\"Orkney Islands Local Authority\"),$F192=1),0,IF(AND(OR(Calculations!$E$2=\"Shetland Health Board\",Calculations!$E$2=\"Western Isles Health Board\",Calculations!$E$2=\"Shetland Islands Local Authority\",Calculations!$E$2=\"Eilean Siar Local Authority\"),OR($F192=1,$F192=5)),0,prem_mort(VALUE(LEFT(Options!$B$14,2)),$C192,$E192,$F192,2016,$I192/10+$J192/10,1,$H192/10,$G192*$H192/10,RateRatios_airpollution!$C192)*10))","v":0},null,{"$f":"IF(AND(OR(Calculations!$E$2=\"Orkney Health Board\",Calculations!$E$2=\"Orkney Islands Local Authority\"),$F192=1),0,IF(AND(OR(Calculations!$E$2=\"Shetland Health Board\",Calculations!$E$2=\"Western Isles Health Board\",Calculations!$E$2=\"Shetland Islands Local Authority\",Calculations!$E$2=\"Eilean Siar Local Authority\"),OR($F192=1,$F192=5)),0,new_ci(VALUE(LEFT(Options!$B$14,2)),$C192,$E192,$F192,2016,$I192/10,1,$H192/10,$G192*$H192/10,RateRatios_airpollution!$E192)*10))","v":492.47044564800001},{"$f":"IF(AND(OR(Calculations!$E$2=\"Orkney Health Board\",Calculations!$E$2=\"Orkney Islands Local Authority\"),$F192=1),0,IF(AND(OR(Calculations!$E$2=\"Shetland Health Board\",Calculations!$E$2=\"Western Isles Health Board\",Calculations!$E$2=\"Shetland Islands Local Authority\",Calculations!$E$2=\"Eilean Siar Local Authority\"),OR($F192=1,$F192=5)),0,new_ci(VALUE(LEFT(Options!$B$14,2)),$C192,$E192,$F192,2016,$I192/10+$J192/10,1,$H192/10,$G192*$H192/10,RateRatios_airpollution!$E192)*10))","v":492.46863116899999},{"$f":"IF(AND(OR(Calculations!$E$2=\"Orkney Health Board\",Calculations!$E$2=\"Orkney Islands Local Authority\"),$F192=1),0,IF(AND(OR(Calculations!$E$2=\"Shetland Health Board\",Calculations!$E$2=\"Western Isles Health Board\",Calculations!$E$2=\"Shetland Islands Local Authority\",Calculations!$E$2=\"Eilean Siar Local Authority\"),OR($F192=1,$F192=5)),0,new_yllv2(VALUE(LEFT(Options!$B$14,2)),$C192,$D192,$E192,$F192,2016,$I192/10,1,$H192/10,$G192*$H192/10,RateRatios_airpollution!$E192)*10))","v":1231.174636709},{"$f":"IF(AND(OR(Calculations!$E$2=\"Orkney Health Board\",Calculations!$E$2=\"Orkney Islands Local Authority\"),$F192=1),0,IF(AND(OR(Calculations!$E$2=\"Shetland Health Board\",Calculations!$E$2=\"Western Isles Health Board\",Calculations!$E$2=\"Shetland Islands Local Authority\",Calculations!$E$2=\"Eilean Siar Local Authority\"),OR($F192=1,$F192=5)),0,new_yllv2(VALUE(LEFT(Options!$B$14,2)),$C192,$D192,$E192,$F192,2016,$I192/10+$J192/10,1,$H192/10,$G192*$H192/10,RateRatios_airpollution!$E192)*10))","v":1231.170100517},{"$f":"IF(AND(OR(Calculations!$E$2=\"Orkney Health Board\",Calculations!$E$2=\"Orkney Islands Local Authority\"),$F192=1),0,IF(AND(OR(Calculations!$E$2=\"Shetland Health Board\",Calculations!$E$2=\"Western Isles Health Board\",Calculations!$E$2=\"Shetland Islands Local Authority\",Calculations!$E$2=\"Eilean Siar Local Authority\"),OR($F192=1,$F192=5)),0,hosp_count(VALUE(LEFT(Options!$B$14,2)),$C192,$E192,$F192,2016,$I192/10,1,$H192/10,$G192*$H192/10, RateRatios_airpollution!$F192, RateRatios_airpollution!$E192)*10))","v":3514.6176669340002},{"$f":"IF(AND(OR(Calculations!$E$2=\"Orkney Health Board\",Calculations!$E$2=\"Orkney Islands Local Authority\"),$F192=1),0,IF(AND(OR(Calculations!$E$2=\"Shetland Health Board\",Calculations!$E$2=\"Western Isles Health Board\",Calculations!$E$2=\"Shetland Islands Local Authority\",Calculations!$E$2=\"Eilean Siar Local Authority\"),OR($F192=1,$F192=5)),0,hosp_count(VALUE(LEFT(Options!$B$14,2)),$C192,$E192,$F192,2016,$I192/10+$J192/10,1,$H192/10,$G192*$H192/10, RateRatios_airpollution!$F192, RateRatios_airpollution!$E192)*10))","v":3514.6176669340002},{"$f":"IF(AND(OR(Calculations!$E$2=\"Orkney Health Board\",Calculations!$E$2=\"Orkney Islands Local Authority\"),$F192=1),0,IF(AND(OR(Calculations!$E$2=\"Shetland Health Board\",Calculations!$E$2=\"Western Isles Health Board\",Calculations!$E$2=\"Shetland Islands Local Authority\",Calculations!$E$2=\"Eilean Siar Local Authority\"),OR($F192=1,$F192=5)),0,prem_mort(VALUE(LEFT(Options!$B$14,2)),$C192,$E192,$F192,2016,$I192/10,1,$H192/10,$G192*$H192/10,RateRatios_airpollution!$E192)*10))","v":0},{"$f":"IF(AND(OR(Calculations!$E$2=\"Orkney Health Board\",Calculations!$E$2=\"Orkney Islands Local Authority\"),$F192=1),0,IF(AND(OR(Calculations!$E$2=\"Shetland Health Board\",Calculations!$E$2=\"Western Isles Health Board\",Calculations!$E$2=\"Shetland Islands Local Authority\",Calculations!$E$2=\"Eilean Siar Local Authority\"),OR($F192=1,$F192=5)),0,prem_mort(VALUE(LEFT(Options!$B$14,2)),$C192,$E192,$F192,2016,$I192/10+$J192/10,1,$H192/10,$G192*$H192/10,RateRatios_airpollution!$E192)*10))","v":0},492.47044564800001,492.38560563999999,1231.174636709,1230.9625369430003,3514.6176669340002,3513.9722151629994,0,0,{"$f":"AK192*100000/$H192","v":8210.5776200066684},{"$f":"AL192*100000/$H192","v":8209.163148382795},{"$f":"AM192*100000/$H192","v":20526.419418289432},{"$f":"AN192*100000/$H192","v":20522.883243464494},{"$f":"AO192*100000/$H192","v":58596.493279993338},{"$f":"AP192*100000/$H192","v":58585.73216343781},{"$f":"AQ192*100000/$H192","v":0},{"$f":"AR192*100000/$H192","v":0},8210577.6200066684,8209163.148382795,20526419.41828943,20522883.243464492,58596493.27999334,58585732.163437806,0,0,1000]
[null,"Male 0-4",2.0320822999999999,77.402082000000007,"male",4,1,{"$f":"HLOOKUP(Calculations!$E$2,'Population 2016'!$C$3:$BC$249,'Population 2016'!BD193,FALSE)","v":0},0,{"$f":"HLOOKUP(Calculations!$E$2,Pop2016_in_settlements!$C$3:$BC$249,Pop2016_in_settlements!$BD193,FALSE)","v":0},{"$f":"IF(AND(OR(Calculations!$E$2=\"Orkney Health Board\",Calculations!$E$2=\"Orkney Islands Local Authority\"),$F193=1),0,IF(AND(OR(Calculations!$E$2=\"Shetland Health Board\",Calculations!$E$2=\"Western Isles Health Board\",Calculations!$E$2=\"Shetland Islands Local Authority\",Calculations!$E$2=\"Eilean Siar Local Authority\"),OR($F193=1,$F193=5)),0,new_ci(VALUE(LEFT(Options!$B$14,2)),$C193,$E193,$F193,2016,$I193/10,1,$H193/10,$G193*$H193/10,RateRatios_accidents!$B$5)*10))","v":{"$error":"#VALUE!"}},{"$f":"IF(AND(OR(Calculations!$E$2=\"Orkney Health Board\",Calculations!$E$2=\"Orkney Islands Local Authority\"),$F193=1),0,IF(AND(OR(Calculations!$E$2=\"Shetland Health Board\",Calculations!$E$2=\"Western Isles Health Board\",Calculations!$E$2=\"Shetland Islands Local Authority\",Calculations!$E$2=\"Eilean Siar Local Authority\"),OR($F193=1,$F193=5)),0,new_ci(VALUE(LEFT(Options!$B$14,2)),$C193,$E193,$F193,2016,$I193/10+$J193/10,1,$H193/10,$G193*$H193/10,RateRatios_accidents!$B$5)*10))","v":{"$error":"#VALUE!"}},{"$f":"IF(AND(OR(Calculations!$E$2=\"Orkney Health Board\",Calculations!$E$2=\"Orkney Islands Local Authority\"),$F193=1),0,IF(AND(OR(Calculations!$E$2=\"Shetland Health Board\",Calculations!$E$2=\"Western Isles Health Board\",Calculations!$E$2=\"Shetland Islands Local Authority\",Calculations!$E$2=\"Eilean Siar Local Authority\"),OR($F193=1,$F193=5)),0,new_yllv2(VALUE(LEFT(Options!$B$14,2)),$C193,$D193,$E193,$F193,2016,$I193/10,1,$H193/10,$G193*$H193/10,RateRatios_accidents!$B$5)*10))","v":{"$error":"#VALUE!"}},{"$f":"IF(AND(OR(Calculations!$E$2=\"Orkney Health Board\",Calculations!$E$2=\"Orkney Islands Local Authority\"),$F193=1),0,IF(AND(OR(Calculations!$E$2=\"Shetland Health Board\",Calculations!$E$2=\"Western Isles Health Board\",Calculations!$E$2=\"Shetland Islands Local Authority\",Calculations!$E$2=\"Eilean Siar Local Authority\"),OR($F193=1,$F193=5)),0,new_yllv2(VALUE(LEFT(Options!$B$14,2)),$C193,$D193,$E193,$F193,2016,$I193/10+$J193/10,1,$H193/10,$G193*$H193/10,RateRatios_accidents!$B$5)*10))","v":{"$error":"#VALUE!"}},{"$f":"IF(AND(OR(Calculations!$E$2=\"Orkney Health Board\",Calculations!$E$2=\"Orkney Islands Local Authority\"),$F193=1),0,IF(AND(OR(Calculations!$E$2=\"Shetland Health Board\",Calculations!$E$2=\"Western Isles Health Board\",Calculations!$E$2=\"Shetland Islands Local Authority\",Calculations!$E$2=\"Eilean Siar Local Authority\"),OR($F193=1,$F193=5)),0,hosp_count(VALUE(LEFT(Options!$B$14,2)),$C193,$E193,$F193,2016,$I193/10,1,$H193/10,$G193*$H193/10, RateRatios_accidents!$B$4, RateRatios_accidents!$B$5)*10))","v":{"$error":"#VALUE!"}},{"$f":"IF(AND(OR(Calculations!$E$2=\"Orkney Health Board\",Calculations!$E$2=\"Orkney Islands Local Authority\"),$F193=1),0,IF(AND(OR(Calculations!$E$2=\"Shetland Health Board\",Calculations!$E$2=\"Western Isles Health Board\",Calculations!$E$2=\"Shetland Islands Local Authority\",Calculations!$E$2=\"Eilean Siar Local Authority\"),OR($F193=1,$F193=5)),0,hosp_count(VALUE(LEFT(Options!$B$14,2)),$C193,$E193,$F193,2016,$I193/10+$J193/10,1,$H193/10,$G193*$H193/10, RateRatios_accidents!$B$4, RateRatios_accidents!$B$5)*10))","v":{"$error":"#VALUE!"}},{"$f":"IF(AND(OR(Calculations!$E$2=\"Orkney Health Board\",Calculations!$E$2=\"Orkney Islands Local Authority\"),$F193=1),0,IF(AND(OR(Calculations!$E$2=\"Shetland Health Board\",Calculations!$E$2=\"Western Isles Health Board\",Calculations!$E$2=\"Shetland Islands Local Authority\",Calculations!$E$2=\"Eilean Siar Local Authority\"),OR($F193=1,$F193=5)),0,prem_mort(VALUE(LEFT(Options!$B$14,2)),$C193,$E193,$F193,2016,$I193/10,1,$H193/10,$G193*$H193/10,RateRatios_accidents!$B$5)*10))","v":{"$error":"#VALUE!"}},{"$f":"IF(AND(OR(Calculations!$E$2=\"Orkney Health Board\",Calculations!$E$2=\"Orkney Islands Local Authority\"),$F193=1),0,IF(AND(OR(Calculations!$E$2=\"Shetland Health Board\",Calculations!$E$2=\"Western Isles Health Board\",Calculations!$E$2=\"Shetland Islands Local Authority\",Calculations!$E$2=\"Eilean Siar Local Authority\"),OR($F193=1,$F193=5)),0,prem_mort(VALUE(LEFT(Options!$B$14,2)),$C193,$E193,$F193,2016,$I193/10+$J193/10,1,$H193/10,$G193*$H193/10,RateRatios_accidents!$B$5)*10))","v":{"$error":"#VALUE!"}},null,{"$f":"IF(AND(OR(Calculations!$E$2=\"Orkney Health Board\",Calculations!$E$2=\"Orkney Islands Local Authority\"),$F193=1),0,IF(AND(OR(Calculations!$E$2=\"Shetland Health Board\",Calculations!$E$2=\"Western Isles Health Board\",Calculations!$E$2=\"Shetland Islands Local Authority\",Calculations!$E$2=\"Eilean Siar Local Authority\"),OR($F193=1,$F193=5)),0,new_ci(VALUE(LEFT(Options!$B$14,2)),$C193,$E193,$F193,2016,$I193/10,1,$H193/10,$G193*$H193/10,RateRatios_airpollution!$C193)*10))","v":{"$error":"#VALUE!"}},{"$f":"IF(AND(OR(Calculations!$E$2=\"Orkney Health Board\",Calculations!$E$2=\"Orkney Islands Local Authority\"),$F193=1),0,IF(AND(OR(Calculations!$E$2=\"Shetland Health Board\",Calculations!$E$2=\"Western Isles Health Board\",Calculations!$E$2=\"Shetland Islands Local Authority\",Calculations!$E$2=\"Eilean Siar Local Authority\"),OR($F193=1,$F193=5)),0,new_ci(VALUE(LEFT(Options!$B$14,2)),$C193,$E193,$F193,2016,$I193/10+$J193/10,1,$H193/10,$G193*$H193/10,RateRatios_airpollution!$C193)*10))","v":{"$error":"#VALUE!"}},{"$f":"IF(AND(OR(Calculations!$E$2=\"Orkney Health Board\",Calculations!$E$2=\"Orkney Islands Local Authority\"),$F193=1),0,IF(AND(OR(Calculations!$E$2=\"Shetland Health Board\",Calculations!$E$2=\"Western Isles Health Board\",Calculations!$E$2=\"Shetland Islands Local Authority\",Calculations!$E$2=\"Eilean Siar Local Authority\"),OR($F193=1,$F193=5)),0,new_yllv2(VALUE(LEFT(Options!$B$14,2)),$C193,$D193,$E193,$F193,2016,$I193/10,1,$H193/10,$G193*$H193/10,RateRatios_airpollution!$C193)*10))","v":{"$error":"#VALUE!"}},{"$f":"IF(AND(OR(Calculations!$E$2=\"Orkney Health Board\",Calculations!$E$2=\"Orkney Islands Local Authority\"),$F193=1),0,IF(AND(OR(Calculations!$E$2=\"Shetland Health Board\",Calculations!$E$2=\"Western Isles Health Board\",Calculations!$E$2=\"Shetland Islands Local Authority\",Calculations!$E$2=\"Eilean Siar Local Authority\"),OR($F193=1,$F193=5)),0,new_yllv2(VALUE(LEFT(Options!$B$14,2)),$C193,$D193,$E193,$F193,2016,$I193/10+$J193/10,1,$H193/10,$G193*$H193/10,RateRatios_airpollution!$C193)*10))","v":{"$error":"#VALUE!"}},{"$f":"IF(AND(OR(Calculations!$E$2=\"Orkney Health Board\",Calculations!$E$2=\"Orkney Islands Local Authority\"),$F193=1),0,IF(AND(OR(Calculations!$E$2=\"Shetland Health Board\",Calculations!$E$2=\"Western Isles Health Board\",Calculations!$E$2=\"Shetland Islands Local Authority\",Calculations!$E$2=\"Eilean Siar Local Authority\"),OR($F193=1,$F193=5)),0,hosp_count(VALUE(LEFT(Options!$B$14,2)),$C193,$E193,$F193,2016,$I193/10,1,$H193/10,$G193*$H193/10, RateRatios_airpollution!$D193, RateRatios_airpollution!$C193)*10))","v":{"$error":"#VALUE!"}},{"$f":"IF(AND(OR(Calculations!$E$2=\"Orkney Health Board\",Calculations!$E$2=\"Orkney Islands Local Authority\"),$F193=1),0,IF(AND(OR(Calculations!$E$2=\"Shetland Health Board\",Calculations!$E$2=\"Western Isles Health Board\",Calculations!$E$2=\"Shetland Islands Local Authority\",Calculations!$E$2=\"Eilean Siar Local Authority\"),OR($F193=1,$F193=5)),0,hosp_count(VALUE(LEFT(Options!$B$14,2)),$C193,$E193,$F193,2016,$I193/10+$J193/10,1,$H193/10,$G193*$H193/10, RateRatios_airpollution!$D193, RateRatios_airpollution!$C193)*10))","v":{"$error":"#VALUE!"}},{"$f":"IF(AND(OR(Calculations!$E$2=\"Orkney Health Board\",Calculations!$E$2=\"Orkney Islands Local Authority\"),$F193=1),0,IF(AND(OR(Calculations!$E$2=\"Shetland Health Board\",Calculations!$E$2=\"Western Isles Health Board\",Calculations!$E$2=\"Shetland Islands Local Authority\",Calculations!$E$2=\"Eilean Siar Local Authority\"),OR($F193=1,$F193=5)),0,prem_mort(VALUE(LEFT(Options!$B$14,2)),$C193,$E193,$F193,2016,$I193/10,1,$H193/10,$G193*$H193/10,RateRatios_airpollution!$C193)*10))","v":{"$error":"#VALUE!"}},{"$f":"IF(AND(OR(Calculations!$E$2=\"Orkney Health Board\",Calculations!$E$2=\"Orkney Islands Local Authority\"),$F193=1),0,IF(AND(OR(Calculations!$E$2=\"Shetland Health Board\",Calculations!$E$2=\"Western Isles Health Board\",Calculations!$E$2=\"Shetland Islands Local Authority\",Calculations!$E$2=\"Eilean Siar Local Authority\"),OR($F193=1,$F193=5)),0,prem_mort(VALUE(LEFT(Options!$B$14,2)),$C193,$E193,$F193,2016,$I193/10+$J193/10,1,$H193/10,$G193*$H193/10,RateRatios_airpollution!$C193)*10))","v":{"$error":"#VALUE!"}},null,{"$f":"IF(AND(OR(Calculations!$E$2=\"Orkney Health Board\",Calculations!$E$2=\"Orkney Islands Local Authority\"),$F193=1),0,IF(AND(OR(Calculations!$E$2=\"Shetland Health Board\",Calculations!$E$2=\"Western Isles Health Board\",Calculations!$E$2=\"Shetland Islands Local Authority\",Calculations!$E$2=\"Eilean Siar Local Authority\"),OR($F193=1,$F193=5)),0,new_ci(VALUE(LEFT(Options!$B$14,2)),$C193,$E193,$F193,2016,$I193/10,1,$H193/10,$G193*$H193/10,RateRatios_airpollution!$E193)*10))","v":{"$error":"#VALUE!"}},{"$f":"IF(AND(OR(Calculations!$E$2=\"Orkney Health Board\",Calculations!$E$2=\"Orkney Islands Local Authority\"),$F193=1),0,IF(AND(OR(Calculations!$E$2=\"Shetland Health Board\",Calculations!$E$2=\"Western Isles Health Board\",Calculations!$E$2=\"Shetland Islands Local Authority\",Calculations!$E$2=\"Eilean Siar Local Authority\"),OR($F193=1,$F193=5)),0,new_ci(VALUE(LEFT(Options!$B$14,2)),$C193,$E193,$F193,2016,$I193/10+$J193/10,1,$H193/10,$G193*$H193/10,RateRatios_airpollution!$E193)*10))","v":{"$error":"#VALUE!"}},{"$f":"IF(AND(OR(Calculations!$E$2=\"Orkney Health Board\",Calculations!$E$2=\"Orkney Islands Local Authority\"),$F193=1),0,IF(AND(OR(Calculations!$E$2=\"Shetland Health Board\",Calculations!$E$2=\"Western Isles Health Board\",Calculations!$E$2=\"Shetland Islands Local Authority\",Calculations!$E$2=\"Eilean Siar Local Authority\"),OR($F193=1,$F193=5)),0,new_yllv2(VALUE(LEFT(Options!$B$14,2)),$C193,$D193,$E193,$F193,2016,$I193/10,1,$H193/10,$G193*$H193/10,RateRatios_airpollution!$E193)*10))","v":{"$error":"#VALUE!"}},{"$f":"IF(AND(OR(Calculations!$E$2=\"Orkney Health Board\",Calculations!$E$2=\"Orkney Islands Local Authority\"),$F193=1),0,IF(AND(OR(Calculations!$E$2=\"Shetland Health Board\",Calculations!$E$2=\"Western Isles Health Board\",Calculations!$E$2=\"Shetland Islands Local Authority\",Calculations!$E$2=\"Eilean Siar Local Authority\"),OR($F193=1,$F193=5)),0,new_yllv2(VALUE(LEFT(Options!$B$14,2)),$C193,$D193,$E193,$F193,2016,$I193/10+$J193/10,1,$H193/10,$G193*$H193/10,RateRatios_airpollution!$E193)*10))","v":{"$error":"#VALUE!"}},{"$f":"IF(AND(OR(Calculations!$E$2=\"Orkney Health Board\",Calculations!$E$2=\"Orkney Islands Local Authority\"),$F193=1),0,IF(AND(OR(Calculations!$E$2=\"Shetland Health Board\",Calculations!$E$2=\"Western Isles Health Board\",Calculations!$E$2=\"Shetland Islands Local Authority\",Calculations!$E$2=\"Eilean Siar Local Authority\"),OR($F193=1,$F193=5)),0,hosp_count(VALUE(LEFT(Options!$B$14,2)),$C193,$E193,$F193,2016,$I193/10,1,$H193/10,$G193*$H193/10, RateRatios_airpollution!$F193, RateRatios_airpollution!$E193)*10))","v":{"$error":"#VALUE!"}},{"$f":"IF(AND(OR(Calculations!$E$2=\"Orkney Health Board\",Calculations!$E$2=\"Orkney Islands Local Authority\"),$F193=1),0,IF(AND(OR(Calculations!$E$2=\"Shetland Health Board\",Calculations!$E$2=\"Western Isles Health Board\",Calculations!$E$2=\"Shetland Islands Local Authority\",Calculations!$E$2=\"Eilean Siar Local Authority\"),OR($F193=1,$F193=5)),0,hosp_count(VALUE(LEFT(Options!$B$14,2)),$C193,$E193,$F193,2016,$I193/10+$J193/10,1,$H193/10,$G193*$H193/10, RateRatios_airpollution!$F193, RateRatios_airpollution!$E193)*10))","v":{"$error":"#VALUE!"}},{"$f":"IF(AND(OR(Calculations!$E$2=\"Orkney Health Board\",Calculations!$E$2=\"Orkney Islands Local Authority\"),$F193=1),0,IF(AND(OR(Calculations!$E$2=\"Shetland Health Board\",Calculations!$E$2=\"Western Isles Health Board\",Calculations!$E$2=\"Shetland Islands Local Authority\",Calculations!$E$2=\"Eilean Siar Local Authority\"),OR($F193=1,$F193=5)),0,prem_mort(VALUE(LEFT(Options!$B$14,2)),$C193,$E193,$F193,2016,$I193/10,1,$H193/10,$G193*$H193/10,RateRatios_airpollution!$E193)*10))","v":{"$error":"#VALUE!"}},{"$f":"IF(AND(OR(Calculations!$E$2=\"Orkney Health Board\",Calculations!$E$2=\"Orkney Islands Local Authority\"),$F193=1),0,IF(AND(OR(Calculations!$E$2=\"Shetland Health Board\",Calculations!$E$2=\"Western Isles Health Board\",Calculations!$E$2=\"Shetland Islands Local Authority\",Calculations!$E$2=\"Eilean Siar Local Authority\"),OR($F193=1,$F193=5)),0,prem_mort(VALUE(LEFT(Options!$B$14,2)),$C193,$E193,$F193,2016,$I193/10+$J193/10,1,$H193/10,$G193*$H193/10,RateRatios_airpollution!$E193)*10))","v":{"$error":"#VALUE!"}},{"$error":"#VALUE!"},{"$error":"#VALUE!"},{"$error":"#VALUE!"},{"$error":"#VALUE!"},{"$error":"#VALUE!"},{"$error":"#VALUE!"},{"$error":"#VALUE!"},{"$error":"#VALUE!"},{"$error":"#VALUE!"},{"$error":"#VALUE!"},{"$error":"#VALUE!"},{"$error":"#VALUE!"},{"$error":"#VALUE!"},{"$error":"#VALUE!"},{"$error":"#VALUE!"},{"$error":"#VALUE!"},{"$error":"#VALUE!"},{"$error":"#VALUE!"},{"$error":"#VALUE!"},{"$error":"#VALUE!"},{"$error":"#VALUE!"},{"$error":"#VALUE!"},{"$error":"#VALUE!"},{"$error":"#VALUE!"},5000]
[null,"Male 5-9",6.9784756000000003,77.398476000000002,"male",4,1,{"$f":"HLOOKUP(Calculations!$E$2,'Population 2016'!$C$3:$BC$249,'Population 2016'!BD194,FALSE)","v":0},0,{"$f":"HLOOKUP(Calculations!$E$2,Pop2016_in_settlements!$C$3:$BC$249,Pop2016_in_settlements!$BD194,FALSE)","v":0},{"$f":"IF(AND(OR(Calculations!$E$2=\"Orkney Health Board\",Calculations!$E$2=\"Orkney Islands Local Authority\"),$F194=1),0,IF(AND(OR(Calculations!$E$2=\"Shetland Health Board\",Calculations!$E$2=\"Western Isles Health Board\",Calculations!$E$2=\"Shetland Islands Local Authority\",Calculations!$E$2=\"Eilean Siar Local Authority\"),OR($F194=1,$F194=5)),0,new_ci(VALUE(LEFT(Options!$B$14,2)),$C194,$E194,$F194,2016,$I194/10,1,$H194/10,$G194*$H194/10,RateRatios_accidents!$B$5)*10))","v":{"$error":"#VALUE!"}},{"$f":"IF(AND(OR(Calculations!$E$2=\"Orkney Health Board\",Calculations!$E$2=\"Orkney Islands Local Authority\"),$F194=1),0,IF(AND(OR(Calculations!$E$2=\"Shetland Health Board\",Calculations!$E$2=\"Western Isles Health Board\",Calculations!$E$2=\"Shetland Islands Local Authority\",Calculations!$E$2=\"Eilean Siar Local Authority\"),OR($F194=1,$F194=5)),0,new_ci(VALUE(LEFT(Options!$B$14,2)),$C194,$E194,$F194,2016,$I194/10+$J194/10,1,$H194/10,$G194*$H194/10,RateRatios_accidents!$B$5)*10))","v":{"$error":"#VALUE!"}},{"$f":"IF(AND(OR(Calculations!$E$2=\"Orkney Health Board\",Calculations!$E$2=\"Orkney Islands Local Authority\"),$F194=1),0,IF(AND(OR(Calculations!$E$2=\"Shetland Health Board\",Calculations!$E$2=\"Western Isles Health Board\",Calculations!$E$2=\"Shetland Islands Local Authority\",Calculations!$E$2=\"Eilean Siar Local Authority\"),OR($F194=1,$F194=5)),0,new_yllv2(VALUE(LEFT(Options!$B$14,2)),$C194,$D194,$E194,$F194,2016,$I194/10,1,$H194/10,$G194*$H194/10,RateRatios_accidents!$B$5)*10))","v":{"$error":"#VALUE!"}},{"$f":"IF(AND(OR(Calculations!$E$2=\"Orkney Health Board\",Calculations!$E$2=\"Orkney Islands Local Authority\"),$F194=1),0,IF(AND(OR(Calculations!$E$2=\"Shetland Health Board\",Calculations!$E$2=\"Western Isles Health Board\",Calculations!$E$2=\"Shetland Islands Local Authority\",Calculations!$E$2=\"Eilean Siar Local Authority\"),OR($F194=1,$F194=5)),0,new_yllv2(VALUE(LEFT(Options!$B$14,2)),$C194,$D194,$E194,$F194,2016,$I194/10+$J194/10,1,$H194/10,$G194*$H194/10,RateRatios_accidents!$B$5)*10))","v":{"$error":"#VALUE!"}},{"$f":"IF(AND(OR(Calculations!$E$2=\"Orkney Health Board\",Calculations!$E$2=\"Orkney Islands Local Authority\"),$F194=1),0,IF(AND(OR(Calculations!$E$2=\"Shetland Health Board\",Calculations!$E$2=\"Western Isles Health Board\",Calculations!$E$2=\"Shetland Islands Local Authority\",Calculations!$E$2=\"Eilean Siar Local Authority\"),OR($F194=1,$F194=5)),0,hosp_count(VALUE(LEFT(Options!$B$14,2)),$C194,$E194,$F194,2016,$I194/10,1,$H194/10,$G194*$H194/10, RateRatios_accidents!$B$4, RateRatios_accidents!$B$5)*10))","v":{"$error":"#VALUE!"}},{"$f":"IF(AND(OR(Calculations!$E$2=\"Orkney Health Board\",Calculations!$E$2=\"Orkney Islands Local Authority\"),$F194=1),0,IF(AND(OR(Calculations!$E$2=\"Shetland Health Board\",Calculations!$E$2=\"Western Isles Health Board\",Calculations!$E$2=\"Shetland Islands Local Authority\",Calculations!$E$2=\"Eilean Siar Local Authority\"),OR($F194=1,$F194=5)),0,hosp_count(VALUE(LEFT(Options!$B$14,2)),$C194,$E194,$F194,2016,$I194/10+$J194/10,1,$H194/10,$G194*$H194/10, RateRatios_accidents!$B$4, RateRatios_accidents!$B$5)*10))","v":{"$error":"#VALUE!"}},{"$f":"IF(AND(OR(Calculations!$E$2=\"Orkney Health Board\",Calculations!$E$2=\"Orkney Islands Local Authority\"),$F194=1),0,IF(AND(OR(Calculations!$E$2=\"Shetland Health Board\",Calculations!$E$2=\"Western Isles Health Board\",Calculations!$E$2=\"Shetland Islands Local Authority\",Calculations!$E$2=\"Eilean Siar Local Authority\"),OR($F194=1,$F194=5)),0,prem_mort(VALUE(LEFT(Options!$B$14,2)),$C194,$E194,$F194,2016,$I194/10,1,$H194/10,$G194*$H194/10,RateRatios_accidents!$B$5)*10))","v":{"$error":"#VALUE!"}},{"$f":"IF(AND(OR(Calculations!$E$2=\"Orkney Health Board\",Calculations!$E$2=\"Orkney Islands Local Authority\"),$F194=1),0,IF(AND(OR(Calculations!$E$2=\"Shetland Health Board\",Calculations!$E$2=\"Western Isles Health Board\",Calculations!$E$2=\"Shetland Islands Local Authority\",Calculations!$E$2=\"Eilean Siar Local Authority\"),OR($F194=1,$F194=5)),0,prem_mort(VALUE(LEFT(Options!$B$14,2)),$C194,$E194,$F194,2016,$I194/10+$J194/10,1,$H194/10,$G194*$H194/10,RateRatios_accidents!$B$5)*10))","v":{"$error":"#VALUE!"}},null,{"$f":"IF(AND(OR(Calculations!$E$2=\"Orkney Health Board\",Calculations!$E$2=\"Orkney Islands Local Authority\"),$F194=1),0,IF(AND(OR(Calculations!$E$2=\"Shetland Health Board\",Calculations!$E$2=\"Western Isles Health Board\",Calculations!$E$2=\"Shetland Islands Local Authority\",Calculations!$E$2=\"Eilean Siar Local Authority\"),OR($F194=1,$F194=5)),0,new_ci(VALUE(LEFT(Options!$B$14,2)),$C194,$E194,$F194,2016,$I194/10,1,$H194/10,$G194*$H194/10,RateRatios_airpollution!$C194)*10))","v":{"$error":"#VALUE!"}},{"$f":"IF(AND(OR(Calculations!$E$2=\"Orkney Health Board\",Calculations!$E$2=\"Orkney Islands Local Authority\"),$F194=1),0,IF(AND(OR(Calculations!$E$2=\"Shetland Health Board\",Calculations!$E$2=\"Western Isles Health Board\",Calculations!$E$2=\"Shetland Islands Local Authority\",Calculations!$E$2=\"Eilean Siar Local Authority\"),OR($F194=1,$F194=5)),0,new_ci(VALUE(LEFT(Options!$B$14,2)),$C194,$E194,$F194,2016,$I194/10+$J194/10,1,$H194/10,$G194*$H194/10,RateRatios_airpollution!$C194)*10))","v":{"$error":"#VALUE!"}},{"$f":"IF(AND(OR(Calculations!$E$2=\"Orkney Health Board\",Calculations!$E$2=\"Orkney Islands Local Authority\"),$F194=1),0,IF(AND(OR(Calculations!$E$2=\"Shetland Health Board\",Calculations!$E$2=\"Western Isles Health Board\",Calculations!$E$2=\"Shetland Islands Local Authority\",Calculations!$E$2=\"Eilean Siar Local Authority\"),OR($F194=1,$F194=5)),0,new_yllv2(VALUE(LEFT(Options!$B$14,2)),$C194,$D194,$E194,$F194,2016,$I194/10,1,$H194/10,$G194*$H194/10,RateRatios_airpollution!$C194)*10))","v":{"$error":"#VALUE!"}},{"$f":"IF(AND(OR(Calculations!$E$2=\"Orkney Health Board\",Calculations!$E$2=\"Orkney Islands Local Authority\"),$F194=1),0,IF(AND(OR(Calculations!$E$2=\"Shetland Health Board\",Calculations!$E$2=\"Western Isles Health Board\",Calculations!$E$2=\"Shetland Islands Local Authority\",Calculations!$E$2=\"Eilean Siar Local Authority\"),OR($F194=1,$F194=5)),0,new_yllv2(VALUE(LEFT(Options!$B$14,2)),$C194,$D194,$E194,$F194,2016,$I194/10+$J194/10,1,$H194/10,$G194*$H194/10,RateRatios_airpollution!$C194)*10))","v":{"$error":"#VALUE!"}},{"$f":"IF(AND(OR(Calculations!$E$2=\"Orkney Health Board\",Calculations!$E$2=\"Orkney Islands Local Authority\"),$F194=1),0,IF(AND(OR(Calculations!$E$2=\"Shetland Health Board\",Calculations!$E$2=\"Western Isles Health Board\",Calculations!$E$2=\"Shetland Islands Local Authority\",Calculations!$E$2=\"Eilean Siar Local Authority\"),OR($F194=1,$F194=5)),0,hosp_count(VALUE(LEFT(Options!$B$14,2)),$C194,$E194,$F194,2016,$I194/10,1,$H194/10,$G194*$H194/10, RateRatios_airpollution!$D194, RateRatios_airpollution!$C194)*10))","v":{"$error":"#VALUE!"}},{"$f":"IF(AND(OR(Calculations!$E$2=\"Orkney Health Board\",Calculations!$E$2=\"Orkney Islands Local Authority\"),$F194=1),0,IF(AND(OR(Calculations!$E$2=\"Shetland Health Board\",Calculations!$E$2=\"Western Isles Health Board\",Calculations!$E$2=\"Shetland Islands Local Authority\",Calculations!$E$2=\"Eilean Siar Local Authority\"),OR($F194=1,$F194=5)),0,hosp_count(VALUE(LEFT(Options!$B$14,2)),$C194,$E194,$F194,2016,$I194/10+$J194/10,1,$H194/10,$G194*$H194/10, RateRatios_airpollution!$D194, RateRatios_airpollution!$C194)*10))","v":{"$error":"#VALUE!"}},{"$f":"IF(AND(OR(Calculations!$E$2=\"Orkney Health Board\",Calculations!$E$2=\"Orkney Islands Local Authority\"),$F194=1),0,IF(AND(OR(Calculations!$E$2=\"Shetland Health Board\",Calculations!$E$2=\"Western Isles Health Board\",Calculations!$E$2=\"Shetland Islands Local Authority\",Calculations!$E$2=\"Eilean Siar Local Authority\"),OR($F194=1,$F194=5)),0,prem_mort(VALUE(LEFT(Options!$B$14,2)),$C194,$E194,$F194,2016,$I194/10,1,$H194/10,$G194*$H194/10,RateRatios_airpollution!$C194)*10))","v":{"$error":"#VALUE!"}},{"$f":"IF(AND(OR(Calculations!$E$2=\"Orkney Health Board\",Calculations!$E$2=\"Orkney Islands Local Authority\"),$F194=1),0,IF(AND(OR(Calculations!$E$2=\"Shetland Health Board\",Calculations!$E$2=\"Western Isles Health Board\",Calculations!$E$2=\"Shetland Islands Local Authority\",Calculations!$E$2=\"Eilean Siar Local Authority\"),OR($F194=1,$F194=5)),0,prem_mort(VALUE(LEFT(Options!$B$14,2)),$C194,$E194,$F194,2016,$I194/10+$J194/10,1,$H194/10,$G194*$H194/10,RateRatios_airpollution!$C194)*10))","v":{"$error":"#VALUE!"}},null,{"$f":"IF(AND(OR(Calculations!$E$2=\"Orkney Health Board\",Calculations!$E$2=\"Orkney Islands Local Authority\"),$F194=1),0,IF(AND(OR(Calculations!$E$2=\"Shetland Health Board\",Calculations!$E$2=\"Western Isles Health Board\",Calculations!$E$2=\"Shetland Islands Local Authority\",Calculations!$E$2=\"Eilean Siar Local Authority\"),OR($F194=1,$F194=5)),0,new_ci(VALUE(LEFT(Options!$B$14,2)),$C194,$E194,$F194,2016,$I194/10,1,$H194/10,$G194*$H194/10,RateRatios_airpollution!$E194)*10))","v":{"$error":"#VALUE!"}},{"$f":"IF(AND(OR(Calculations!$E$2=\"Orkney Health Board\",Calculations!$E$2=\"Orkney Islands Local Authority\"),$F194=1),0,IF(AND(OR(Calculations!$E$2=\"Shetland Health Board\",Calculations!$E$2=\"Western Isles Health Board\",Calculations!$E$2=\"Shetland Islands Local Authority\",Calculations!$E$2=\"Eilean Siar Local Authority\"),OR($F194=1,$F194=5)),0,new_ci(VALUE(LEFT(Options!$B$14,2)),$C194,$E194,$F194,2016,$I194/10+$J194/10,1,$H194/10,$G194*$H194/10,RateRatios_airpollution!$E194)*10))","v":{"$error":"#VALUE!"}},{"$f":"IF(AND(OR(Calculations!$E$2=\"Orkney Health Board\",Calculations!$E$2=\"Orkney Islands Local Authority\"),$F194=1),0,IF(AND(OR(Calculations!$E$2=\"Shetland Health Board\",Calculations!$E$2=\"Western Isles Health Board\",Calculations!$E$2=\"Shetland Islands Local Authority\",Calculations!$E$2=\"Eilean Siar Local Authority\"),OR($F194=1,$F194=5)),0,new_yllv2(VALUE(LEFT(Options!$B$14,2)),$C194,$D194,$E194,$F194,2016,$I194/10,1,$H194/10,$G194*$H194/10,RateRatios_airpollution!$E194)*10))","v":{"$error":"#VALUE!"}},{"$f":"IF(AND(OR(Calculations!$E$2=\"Orkney Health Board\",Calculations!$E$2=\"Orkney Islands Local Authority\"),$F194=1),0,IF(AND(OR(Calculations!$E$2=\"Shetland Health Board\",Calculations!$E$2=\"Western Isles Health Board\",Calculations!$E$2=\"Shetland Islands Local Authority\",Calculations!$E$2=\"Eilean Siar Local Authority\"),OR($F194=1,$F194=5)),0,new_yllv2(VALUE(LEFT(Options!$B$14,2)),$C194,$D194,$E194,$F194,2016,$I194/10+$J194/10,1,$H194/10,$G194*$H194/10,RateRatios_airpollution!$E194)*10))","v":{"$error":"#VALUE!"}},{"$f":"IF(AND(OR(Calculations!$E$2=\"Orkney Health Board\",Calculations!$E$2=\"Orkney Islands Local Authority\"),$F194=1),0,IF(AND(OR(Calculations!$E$2=\"Shetland Health Board\",Calculations!$E$2=\"Western Isles Health Board\",Calculations!$E$2=\"Shetland Islands Local Authority\",Calculations!$E$2=\"Eilean Siar Local Authority\"),OR($F194=1,$F194=5)),0,hosp_count(VALUE(LEFT(Options!$B$14,2)),$C194,$E194,$F194,2016,$I194/10,1,$H194/10,$G194*$H194/10, RateRatios_airpollution!$F194, RateRatios_airpollution!$E194)*10))","v":{"$error":"#VALUE!"}},{"$f":"IF(AND(OR(Calculations!$E$2=\"Orkney Health Board\",Calculations!$E$2=\"Orkney Islands Local Authority\"),$F194=1),0,IF(AND(OR(Calculations!$E$2=\"Shetland Health Board\",Calculations!$E$2=\"Western Isles Health Board\",Calculations!$E$2=\"Shetland Islands Local Authority\",Calculations!$E$2=\"Eilean Siar Local Authority\"),OR($F194=1,$F194=5)),0,hosp_count(VALUE(LEFT(Options!$B$14,2)),$C194,$E194,$F194,2016,$I194/10+$J194/10,1,$H194/10,$G194*$H194/10, RateRatios_airpollution!$F194, RateRatios_airpollution!$E194)*10))","v":{"$error":"#VALUE!"}},{"$f":"IF(AND(OR(Calculations!$E$2=\"Orkney Health Board\",Calculations!$E$2=\"Orkney Islands Local Authority\"),$F194=1),0,IF(AND(OR(Calculations!$E$2=\"Shetland Health Board\",Calculations!$E$2=\"Western Isles Health Board\",Calculations!$E$2=\"Shetland Islands Local Authority\",Calculations!$E$2=\"Eilean Siar Local Authority\"),OR($F194=1,$F194=5)),0,prem_mort(VALUE(LEFT(Options!$B$14,2)),$C194,$E194,$F194,2016,$I194/10,1,$H194/10,$G194*$H194/10,RateRatios_airpollution!$E194)*10))","v":{"$error":"#VALUE!"}},{"$f":"IF(AND(OR(Calculations!$E$2=\"Orkney Health Board\",Calculations!$E$2=\"Orkney Islands Local Authority\"),$F194=1),0,IF(AND(OR(Calculations!$E$2=\"Shetland Health Board\",Calculations!$E$2=\"Western Isles Health Board\",Calculations!$E$2=\"Shetland Islands Local Authority\",Calculations!$E$2=\"Eilean Siar Local Authority\"),OR($F194=1,$F194=5)),0,prem_mort(VALUE(LEFT(Options!$B$14,2)),$C194,$E194,$F194,2016,$I194/10+$J194/10,1,$H194/10,$G194*$H194/10,RateRatios_airpollution!$E194)*10))","v":{"$error":"#VALUE!"}},{"$error":"#VALUE!"},{"$error":"#VALUE!"},{"$error":"#VALUE!"},{"$error":"#VALUE!"},{"$error":"#VALUE!"},{"$error":"#VALUE!"},{"$error":"#VALUE!"},{"$error":"#VALUE!"},{"$error":"#VALUE!"},{"$error":"#VALUE!"},{"$error":"#VALUE!"},{"$error":"#VALUE!"},{"$error":"#VALUE!"},{"$error":"#VALUE!"},{"$error":"#VALUE!"},{"$error":"#VALUE!"},{"$error":"#VALUE!"},{"$error":"#VALUE!"},{"$error":"#VALUE!"},{"$error":"#VALUE!"},{"$error":"#VALUE!"},{"$error":"#VALUE!"},{"$error":"#VALUE!"},{"$error":"#VALUE!"},5500]
[null,"Male 10-15",12.471144000000001,77.921140000000008,"male",4,1,{"$f":"HLOOKUP(Calculations!$E$2,'Population 2016'!$C$3:$BC$249,'Population 2016'!BD195,FALSE)","v":0},0,{"$f":"HLOOKUP(Calculations!$E$2,Pop2016_in_settlements!$C$3:$BC$249,Pop2016_in_settlements!$BD195,FALSE)","v":0},{"$f":"IF(AND(OR(Calculations!$E$2=\"Orkney Health Board\",Calculations!$E$2=\"Orkney Islands Local Authority\"),$F195=1),0,IF(AND(OR(Calculations!$E$2=\"Shetland Health Board\",Calculations!$E$2=\"Western Isles Health Board\",Calculations!$E$2=\"Shetland Islands Local Authority\",Calculations!$E$2=\"Eilean Siar Local Authority\"),OR($F195=1,$F195=5)),0,new_ci(VALUE(LEFT(Options!$B$14,2)),$C195,$E195,$F195,2016,$I195/10,1,$H195/10,$G195*$H195/10,RateRatios_accidents!$B$5)*10))","v":{"$error":"#VALUE!"}},{"$f":"IF(AND(OR(Calculations!$E$2=\"Orkney Health Board\",Calculations!$E$2=\"Orkney Islands Local Authority\"),$F195=1),0,IF(AND(OR(Calculations!$E$2=\"Shetland Health Board\",Calculations!$E$2=\"Western Isles Health Board\",Calculations!$E$2=\"Shetland Islands Local Authority\",Calculations!$E$2=\"Eilean Siar Local Authority\"),OR($F195=1,$F195=5)),0,new_ci(VALUE(LEFT(Options!$B$14,2)),$C195,$E195,$F195,2016,$I195/10+$J195/10,1,$H195/10,$G195*$H195/10,RateRatios_accidents!$B$5)*10))","v":{"$error":"#VALUE!"}},{"$f":"IF(AND(OR(Calculations!$E$2=\"Orkney Health Board\",Calculations!$E$2=\"Orkney Islands Local Authority\"),$F195=1),0,IF(AND(OR(Calculations!$E$2=\"Shetland Health Board\",Calculations!$E$2=\"Western Isles Health Board\",Calculations!$E$2=\"Shetland Islands Local Authority\",Calculations!$E$2=\"Eilean Siar Local Authority\"),OR($F195=1,$F195=5)),0,new_yllv2(VALUE(LEFT(Options!$B$14,2)),$C195,$D195,$E195,$F195,2016,$I195/10,1,$H195/10,$G195*$H195/10,RateRatios_accidents!$B$5)*10))","v":{"$error":"#VALUE!"}},{"$f":"IF(AND(OR(Calculations!$E$2=\"Orkney Health Board\",Calculations!$E$2=\"Orkney Islands Local Authority\"),$F195=1),0,IF(AND(OR(Calculations!$E$2=\"Shetland Health Board\",Calculations!$E$2=\"Western Isles Health Board\",Calculations!$E$2=\"Shetland Islands Local Authority\",Calculations!$E$2=\"Eilean Siar Local Authority\"),OR($F195=1,$F195=5)),0,new_yllv2(VALUE(LEFT(Options!$B$14,2)),$C195,$D195,$E195,$F195,2016,$I195/10+$J195/10,1,$H195/10,$G195*$H195/10,RateRatios_accidents!$B$5)*10))","v":{"$error":"#VALUE!"}},{"$f":"IF(AND(OR(Calculations!$E$2=\"Orkney Health Board\",Calculations!$E$2=\"Orkney Islands Local Authority\"),$F195=1),0,IF(AND(OR(Calculations!$E$2=\"Shetland Health Board\",Calculations!$E$2=\"Western Isles Health Board\",Calculations!$E$2=\"Shetland Islands Local Authority\",Calculations!$E$2=\"Eilean Siar Local Authority\"),OR($F195=1,$F195=5)),0,hosp_count(VALUE(LEFT(Options!$B$14,2)),$C195,$E195,$F195,2016,$I195/10,1,$H195/10,$G195*$H195/10, RateRatios_accidents!$B$4, RateRatios_accidents!$B$5)*10))","v":{"$error":"#VALUE!"}},{"$f":"IF(AND(OR(Calculations!$E$2=\"Orkney Health Board\",Calculations!$E$2=\"Orkney Islands Local Authority\"),$F195=1),0,IF(AND(OR(Calculations!$E$2=\"Shetland Health Board\",Calculations!$E$2=\"Western Isles Health Board\",Calculations!$E$2=\"Shetland Islands Local Authority\",Calculations!$E$2=\"Eilean Siar Local Authority\"),OR($F195=1,$F195=5)),0,hosp_count(VALUE(LEFT(Options!$B$14,2)),$C195,$E195,$F195,2016,$I195/10+$J195/10,1,$H195/10,$G195*$H195/10, RateRatios_accidents!$B$4, RateRatios_accidents!$B$5)*10))","v":{"$error":"#VALUE!"}},{"$f":"IF(AND(OR(Calculations!$E$2=\"Orkney Health Board\",Calculations!$E$2=\"Orkney Islands Local Authority\"),$F195=1),0,IF(AND(OR(Calculations!$E$2=\"Shetland Health Board\",Calculations!$E$2=\"Western Isles Health Board\",Calculations!$E$2=\"Shetland Islands Local Authority\",Calculations!$E$2=\"Eilean Siar Local Authority\"),OR($F195=1,$F195=5)),0,prem_mort(VALUE(LEFT(Options!$B$14,2)),$C195,$E195,$F195,2016,$I195/10,1,$H195/10,$G195*$H195/10,RateRatios_accidents!$B$5)*10))","v":{"$error":"#VALUE!"}},{"$f":"IF(AND(OR(Calculations!$E$2=\"Orkney Health Board\",Calculations!$E$2=\"Orkney Islands Local Authority\"),$F195=1),0,IF(AND(OR(Calculations!$E$2=\"Shetland Health Board\",Calculations!$E$2=\"Western Isles Health Board\",Calculations!$E$2=\"Shetland Islands Local Authority\",Calculations!$E$2=\"Eilean Siar Local Authority\"),OR($F195=1,$F195=5)),0,prem_mort(VALUE(LEFT(Options!$B$14,2)),$C195,$E195,$F195,2016,$I195/10+$J195/10,1,$H195/10,$G195*$H195/10,RateRatios_accidents!$B$5)*10))","v":{"$error":"#VALUE!"}},null,{"$f":"IF(AND(OR(Calculations!$E$2=\"Orkney Health Board\",Calculations!$E$2=\"Orkney Islands Local Authority\"),$F195=1),0,IF(AND(OR(Calculations!$E$2=\"Shetland Health Board\",Calculations!$E$2=\"Western Isles Health Board\",Calculations!$E$2=\"Shetland Islands Local Authority\",Calculations!$E$2=\"Eilean Siar Local Authority\"),OR($F195=1,$F195=5)),0,new_ci(VALUE(LEFT(Options!$B$14,2)),$C195,$E195,$F195,2016,$I195/10,1,$H195/10,$G195*$H195/10,RateRatios_airpollution!$C195)*10))","v":{"$error":"#VALUE!"}},{"$f":"IF(AND(OR(Calculations!$E$2=\"Orkney Health Board\",Calculations!$E$2=\"Orkney Islands Local Authority\"),$F195=1),0,IF(AND(OR(Calculations!$E$2=\"Shetland Health Board\",Calculations!$E$2=\"Western Isles Health Board\",Calculations!$E$2=\"Shetland Islands Local Authority\",Calculations!$E$2=\"Eilean Siar Local Authority\"),OR($F195=1,$F195=5)),0,new_ci(VALUE(LEFT(Options!$B$14,2)),$C195,$E195,$F195,2016,$I195/10+$J195/10,1,$H195/10,$G195*$H195/10,RateRatios_airpollution!$C195)*10))","v":{"$error":"#VALUE!"}},{"$f":"IF(AND(OR(Calculations!$E$2=\"Orkney Health Board\",Calculations!$E$2=\"Orkney Islands Local Authority\"),$F195=1),0,IF(AND(OR(Calculations!$E$2=\"Shetland Health Board\",Calculations!$E$2=\"Western Isles Health Board\",Calculations!$E$2=\"Shetland Islands Local Authority\",Calculations!$E$2=\"Eilean Siar Local Authority\"),OR($F195=1,$F195=5)),0,new_yllv2(VALUE(LEFT(Options!$B$14,2)),$C195,$D195,$E195,$F195,2016,$I195/10,1,$H195/10,$G195*$H195/10,RateRatios_airpollution!$C195)*10))","v":{"$error":"#VALUE!"}},{"$f":"IF(AND(OR(Calculations!$E$2=\"Orkney Health Board\",Calculations!$E$2=\"Orkney Islands Local Authority\"),$F195=1),0,IF(AND(OR(Calculations!$E$2=\"Shetland Health Board\",Calculations!$E$2=\"Western Isles Health Board\",Calculations!$E$2=\"Shetland Islands Local Authority\",Calculations!$E$2=\"Eilean Siar Local Authority\"),OR($F195=1,$F195=5)),0,new_yllv2(VALUE(LEFT(Options!$B$14,2)),$C195,$D195,$E195,$F195,2016,$I195/10+$J195/10,1,$H195/10,$G195*$H195/10,RateRatios_airpollution!$C195)*10))","v":{"$error":"#VALUE!"}},{"$f":"IF(AND(OR(Calculations!$E$2=\"Orkney Health Board\",Calculations!$E$2=\"Orkney Islands Local Authority\"),$F195=1),0,IF(AND(OR(Calculations!$E$2=\"Shetland Health Board\",Calculations!$E$2=\"Western Isles Health Board\",Calculations!$E$2=\"Shetland Islands Local Authority\",Calculations!$E$2=\"Eilean Siar Local Authority\"),OR($F195=1,$F195=5)),0,hosp_count(VALUE(LEFT(Options!$B$14,2)),$C195,$E195,$F195,2016,$I195/10,1,$H195/10,$G195*$H195/10, RateRatios_airpollution!$D195, RateRatios_airpollution!$C195)*10))","v":{"$error":"#VALUE!"}},{"$f":"IF(AND(OR(Calculations!$E$2=\"Orkney Health Board\",Calculations!$E$2=\"Orkney Islands Local Authority\"),$F195=1),0,IF(AND(OR(Calculations!$E$2=\"Shetland Health Board\",Calculations!$E$2=\"Western Isles Health Board\",Calculations!$E$2=\"Shetland Islands Local Authority\",Calculations!$E$2=\"Eilean Siar Local Authority\"),OR($F195=1,$F195=5)),0,hosp_count(VALUE(LEFT(Options!$B$14,2)),$C195,$E195,$F195,2016,$I195/10+$J195/10,1,$H195/10,$G195*$H195/10, RateRatios_airpollution!$D195, RateRatios_airpollution!$C195)*10))","v":{"$error":"#VALUE!"}},{"$f":"IF(AND(OR(Calculations!$E$2=\"Orkney Health Board\",Calculations!$E$2=\"Orkney Islands Local Authority\"),$F195=1),0,IF(AND(OR(Calculations!$E$2=\"Shetland Health Board\",Calculations!$E$2=\"Western Isles Health Board\",Calculations!$E$2=\"Shetland Islands Local Authority\",Calculations!$E$2=\"Eilean Siar Local Authority\"),OR($F195=1,$F195=5)),0,prem_mort(VALUE(LEFT(Options!$B$14,2)),$C195,$E195,$F195,2016,$I195/10,1,$H195/10,$G195*$H195/10,RateRatios_airpollution!$C195)*10))","v":{"$error":"#VALUE!"}},{"$f":"IF(AND(OR(Calculations!$E$2=\"Orkney Health Board\",Calculations!$E$2=\"Orkney Islands Local Authority\"),$F195=1),0,IF(AND(OR(Calculations!$E$2=\"Shetland Health Board\",Calculations!$E$2=\"Western Isles Health Board\",Calculations!$E$2=\"Shetland Islands Local Authority\",Calculations!$E$2=\"Eilean Siar Local Authority\"),OR($F195=1,$F195=5)),0,prem_mort(VALUE(LEFT(Options!$B$14,2)),$C195,$E195,$F195,2016,$I195/10+$J195/10,1,$H195/10,$G195*$H195/10,RateRatios_airpollution!$C195)*10))","v":{"$error":"#VALUE!"}},null,{"$f":"IF(AND(OR(Calculations!$E$2=\"Orkney Health Board\",Calculations!$E$2=\"Orkney Islands Local Authority\"),$F195=1),0,IF(AND(OR(Calculations!$E$2=\"Shetland Health Board\",Calculations!$E$2=\"Western Isles Health Board\",Calculations!$E$2=\"Shetland Islands Local Authority\",Calculations!$E$2=\"Eilean Siar Local Authority\"),OR($F195=1,$F195=5)),0,new_ci(VALUE(LEFT(Options!$B$14,2)),$C195,$E195,$F195,2016,$I195/10,1,$H195/10,$G195*$H195/10,RateRatios_airpollution!$E195)*10))","v":{"$error":"#VALUE!"}},{"$f":"IF(AND(OR(Calculations!$E$2=\"Orkney Health Board\",Calculations!$E$2=\"Orkney Islands Local Authority\"),$F195=1),0,IF(AND(OR(Calculations!$E$2=\"Shetland Health Board\",Calculations!$E$2=\"Western Isles Health Board\",Calculations!$E$2=\"Shetland Islands Local Authority\",Calculations!$E$2=\"Eilean Siar Local Authority\"),OR($F195=1,$F195=5)),0,new_ci(VALUE(LEFT(Options!$B$14,2)),$C195,$E195,$F195,2016,$I195/10+$J195/10,1,$H195/10,$G195*$H195/10,RateRatios_airpollution!$E195)*10))","v":{"$error":"#VALUE!"}},{"$f":"IF(AND(OR(Calculations!$E$2=\"Orkney Health Board\",Calculations!$E$2=\"Orkney Islands Local Authority\"),$F195=1),0,IF(AND(OR(Calculations!$E$2=\"Shetland Health Board\",Calculations!$E$2=\"Western Isles Health Board\",Calculations!$E$2=\"Shetland Islands Local Authority\",Calculations!$E$2=\"Eilean Siar Local Authority\"),OR($F195=1,$F195=5)),0,new_yllv2(VALUE(LEFT(Options!$B$14,2)),$C195,$D195,$E195,$F195,2016,$I195/10,1,$H195/10,$G195*$H195/10,RateRatios_airpollution!$E195)*10))","v":{"$error":"#VALUE!"}},{"$f":"IF(AND(OR(Calculations!$E$2=\"Orkney Health Board\",Calculations!$E$2=\"Orkney Islands Local Authority\"),$F195=1),0,IF(AND(OR(Calculations!$E$2=\"Shetland Health Board\",Calculations!$E$2=\"Western Isles Health Board\",Calculations!$E$2=\"Shetland Islands Local Authority\",Calculations!$E$2=\"Eilean Siar Local Authority\"),OR($F195=1,$F195=5)),0,new_yllv2(VALUE(LEFT(Options!$B$14,2)),$C195,$D195,$E195,$F195,2016,$I195/10+$J195/10,1,$H195/10,$G195*$H195/10,RateRatios_airpollution!$E195)*10))","v":{"$error":"#VALUE!"}},{"$f":"IF(AND(OR(Calculations!$E$2=\"Orkney Health Board\",Calculations!$E$2=\"Orkney Islands Local Authority\"),$F195=1),0,IF(AND(OR(Calculations!$E$2=\"Shetland Health Board\",Calculations!$E$2=\"Western Isles Health Board\",Calculations!$E$2=\"Shetland Islands Local Authority\",Calculations!$E$2=\"Eilean Siar Local Authority\"),OR($F195=1,$F195=5)),0,hosp_count(VALUE(LEFT(Options!$B$14,2)),$C195,$E195,$F195,2016,$I195/10,1,$H195/10,$G195*$H195/10, RateRatios_airpollution!$F195, RateRatios_airpollution!$E195)*10))","v":{"$error":"#VALUE!"}},{"$f":"IF(AND(OR(Calculations!$E$2=\"Orkney Health Board\",Calculations!$E$2=\"Orkney Islands Local Authority\"),$F195=1),0,IF(AND(OR(Calculations!$E$2=\"Shetland Health Board\",Calculations!$E$2=\"Western Isles Health Board\",Calculations!$E$2=\"Shetland Islands Local Authority\",Calculations!$E$2=\"Eilean Siar Local Authority\"),OR($F195=1,$F195=5)),0,hosp_count(VALUE(LEFT(Options!$B$14,2)),$C195,$E195,$F195,2016,$I195/10+$J195/10,1,$H195/10,$G195*$H195/10, RateRatios_airpollution!$F195, RateRatios_airpollution!$E195)*10))","v":{"$error":"#VALUE!"}},{"$f":"IF(AND(OR(Calculations!$E$2=\"Orkney Health Board\",Calculations!$E$2=\"Orkney Islands Local Authority\"),$F195=1),0,IF(AND(OR(Calculations!$E$2=\"Shetland Health Board\",Calculations!$E$2=\"Western Isles Health Board\",Calculations!$E$2=\"Shetland Islands Local Authority\",Calculations!$E$2=\"Eilean Siar Local Authority\"),OR($F195=1,$F195=5)),0,prem_mort(VALUE(LEFT(Options!$B$14,2)),$C195,$E195,$F195,2016,$I195/10,1,$H195/10,$G195*$H195/10,RateRatios_airpollution!$E195)*10))","v":{"$error":"#VALUE!"}},{"$f":"IF(AND(OR(Calculations!$E$2=\"Orkney Health Board\",Calculations!$E$2=\"Orkney Islands Local Authority\"),$F195=1),0,IF(AND(OR(Calculations!$E$2=\"Shetland Health Board\",Calculations!$E$2=\"Western Isles Health Board\",Calculations!$E$2=\"Shetland Islands Local Authority\",Calculations!$E$2=\"Eilean Siar Local Authority\"),OR($F195=1,$F195=5)),0,prem_mort(VALUE(LEFT(Options!$B$14,2)),$C195,$E195,$F195,2016,$I195/10+$J195/10,1,$H195/10,$G195*$H195/10,RateRatios_airpollution!$E195)*10))","v":{"$error":"#VALUE!"}},{"$error":"#VALUE!"},{"$error":"#VALUE!"},{"$error":"#VALUE!"},{"$error":"#VALUE!"},{"$error":"#VALUE!"},{"$error":"#VALUE!"},{"$error":"#VALUE!"},{"$error":"#VALUE!"},{"$error":"#VALUE!"},{"$error":"#VALUE!"},{"$error":"#VALUE!"},{"$error":"#VALUE!"},{"$error":"#VALUE!"},{"$error":"#VALUE!"},{"$error":"#VALUE!"},{"$error":"#VALUE!"},{"$error":"#VALUE!"},{"$error":"#VALUE!"},{"$error":"#VALUE!"},{"$error":"#VALUE!"},{"$error":"#VALUE!"},{"$error":"#VALUE!"},{"$error":"#VALUE!"},{"$error":"#VALUE!"},6600]
[null,"Male 16-19",17.556318000000001,77.07632000000001,"male",4,1,{"$f":"HLOOKUP(Calculations!$E$2,'Population 2016'!$C$3:$BC$249,'Population 2016'!BD196,FALSE)","v":24732},0,{"$f":"HLOOKUP(Calculations!$E$2,Pop2016_in_settlements!$C$3:$BC$249,Pop2016_in_settlements!$BD196,FALSE)","v":9866},{"$f":"IF(AND(OR(Calculations!$E$2=\"Orkney Health Board\",Calculations!$E$2=\"Orkney Islands Local Authority\"),$F196=1),0,IF(AND(OR(Calculations!$E$2=\"Shetland Health Board\",Calculations!$E$2=\"Western Isles Health Board\",Calculations!$E$2=\"Shetland Islands Local Authority\",Calculations!$E$2=\"Eilean Siar Local Authority\"),OR($F196=1,$F196=5)),0,new_ci(VALUE(LEFT(Options!$B$14,2)),$C196,$E196,$F196,2016,$I196/10,1,$H196/10,$G196*$H196/10,RateRatios_accidents!$B$5)*10))","v":8.3962394749999998},{"$f":"IF(AND(OR(Calculations!$E$2=\"Orkney Health Board\",Calculations!$E$2=\"Orkney Islands Local Authority\"),$F196=1),0,IF(AND(OR(Calculations!$E$2=\"Shetland Health Board\",Calculations!$E$2=\"Western Isles Health Board\",Calculations!$E$2=\"Shetland Islands Local Authority\",Calculations!$E$2=\"Eilean Siar Local Authority\"),OR($F196=1,$F196=5)),0,new_ci(VALUE(LEFT(Options!$B$14,2)),$C196,$E196,$F196,2016,$I196/10+$J196/10,1,$H196/10,$G196*$H196/10,RateRatios_accidents!$B$5)*10))","v":8.3948996720000011},{"$f":"IF(AND(OR(Calculations!$E$2=\"Orkney Health Board\",Calculations!$E$2=\"Orkney Islands Local Authority\"),$F196=1),0,IF(AND(OR(Calculations!$E$2=\"Shetland Health Board\",Calculations!$E$2=\"Western Isles Health Board\",Calculations!$E$2=\"Shetland Islands Local Authority\",Calculations!$E$2=\"Eilean Siar Local Authority\"),OR($F196=1,$F196=5)),0,new_yllv2(VALUE(LEFT(Options!$B$14,2)),$C196,$D196,$E196,$F196,2016,$I196/10,1,$H196/10,$G196*$H196/10,RateRatios_accidents!$B$5)*10))","v":491.34795086899999},{"$f":"IF(AND(OR(Calculations!$E$2=\"Orkney Health Board\",Calculations!$E$2=\"Orkney Islands Local Authority\"),$F196=1),0,IF(AND(OR(Calculations!$E$2=\"Shetland Health Board\",Calculations!$E$2=\"Western Isles Health Board\",Calculations!$E$2=\"Shetland Islands Local Authority\",Calculations!$E$2=\"Eilean Siar Local Authority\"),OR($F196=1,$F196=5)),0,new_yllv2(VALUE(LEFT(Options!$B$14,2)),$C196,$D196,$E196,$F196,2016,$I196/10+$J196/10,1,$H196/10,$G196*$H196/10,RateRatios_accidents!$B$5)*10))","v":491.26954559500001},{"$f":"IF(AND(OR(Calculations!$E$2=\"Orkney Health Board\",Calculations!$E$2=\"Orkney Islands Local Authority\"),$F196=1),0,IF(AND(OR(Calculations!$E$2=\"Shetland Health Board\",Calculations!$E$2=\"Western Isles Health Board\",Calculations!$E$2=\"Shetland Islands Local Authority\",Calculations!$E$2=\"Eilean Siar Local Authority\"),OR($F196=1,$F196=5)),0,hosp_count(VALUE(LEFT(Options!$B$14,2)),$C196,$E196,$F196,2016,$I196/10,1,$H196/10,$G196*$H196/10, RateRatios_accidents!$B$4, RateRatios_accidents!$B$5)*10))","v":1479.5226009359999},{"$f":"IF(AND(OR(Calculations!$E$2=\"Orkney Health Board\",Calculations!$E$2=\"Orkney Islands Local Authority\"),$F196=1),0,IF(AND(OR(Calculations!$E$2=\"Shetland Health Board\",Calculations!$E$2=\"Western Isles Health Board\",Calculations!$E$2=\"Shetland Islands Local Authority\",Calculations!$E$2=\"Eilean Siar Local Authority\"),OR($F196=1,$F196=5)),0,hosp_count(VALUE(LEFT(Options!$B$14,2)),$C196,$E196,$F196,2016,$I196/10+$J196/10,1,$H196/10,$G196*$H196/10, RateRatios_accidents!$B$4, RateRatios_accidents!$B$5)*10))","v":1479.2865184089999},{"$f":"IF(AND(OR(Calculations!$E$2=\"Orkney Health Board\",Calculations!$E$2=\"Orkney Islands Local Authority\"),$F196=1),0,IF(AND(OR(Calculations!$E$2=\"Shetland Health Board\",Calculations!$E$2=\"Western Isles Health Board\",Calculations!$E$2=\"Shetland Islands Local Authority\",Calculations!$E$2=\"Eilean Siar Local Authority\"),OR($F196=1,$F196=5)),0,prem_mort(VALUE(LEFT(Options!$B$14,2)),$C196,$E196,$F196,2016,$I196/10,1,$H196/10,$G196*$H196/10,RateRatios_accidents!$B$5)*10))","v":8.3962394749999998},{"$f":"IF(AND(OR(Calculations!$E$2=\"Orkney Health Board\",Calculations!$E$2=\"Orkney Islands Local Authority\"),$F196=1),0,IF(AND(OR(Calculations!$E$2=\"Shetland Health Board\",Calculations!$E$2=\"Western Isles Health Board\",Calculations!$E$2=\"Shetland Islands Local Authority\",Calculations!$E$2=\"Eilean Siar Local Authority\"),OR($F196=1,$F196=5)),0,prem_mort(VALUE(LEFT(Options!$B$14,2)),$C196,$E196,$F196,2016,$I196/10+$J196/10,1,$H196/10,$G196*$H196/10,RateRatios_accidents!$B$5)*10))","v":8.3948996720000011},null,{"$f":"IF(AND(OR(Calculations!$E$2=\"Orkney Health Board\",Calculations!$E$2=\"Orkney Islands Local Authority\"),$F196=1),0,IF(AND(OR(Calculations!$E$2=\"Shetland Health Board\",Calculations!$E$2=\"Western Isles Health Board\",Calculations!$E$2=\"Shetland Islands Local Authority\",Calculations!$E$2=\"Eilean Siar Local Authority\"),OR($F196=1,$F196=5)),0,new_ci(VALUE(LEFT(Options!$B$14,2)),$C196,$E196,$F196,2016,$I196/10,1,$H196/10,$G196*$H196/10,RateRatios_airpollution!$C196)*10))","v":8.3962394749999998},{"$f":"IF(AND(OR(Calculations!$E$2=\"Orkney Health Board\",Calculations!$E$2=\"Orkney Islands Local Authority\"),$F196=1),0,IF(AND(OR(Calculations!$E$2=\"Shetland Health Board\",Calculations!$E$2=\"Western Isles Health Board\",Calculations!$E$2=\"Shetland Islands Local Authority\",Calculations!$E$2=\"Eilean Siar Local Authority\"),OR($F196=1,$F196=5)),0,new_ci(VALUE(LEFT(Options!$B$14,2)),$C196,$E196,$F196,2016,$I196/10+$J196/10,1,$H196/10,$G196*$H196/10,RateRatios_airpollution!$C196)*10))","v":8.3961664660000004},{"$f":"IF(AND(OR(Calculations!$E$2=\"Orkney Health Board\",Calculations!$E$2=\"Orkney Islands Local Authority\"),$F196=1),0,IF(AND(OR(Calculations!$E$2=\"Shetland Health Board\",Calculations!$E$2=\"Western Isles Health Board\",Calculations!$E$2=\"Shetland Islands Local Authority\",Calculations!$E$2=\"Eilean Siar Local Authority\"),OR($F196=1,$F196=5)),0,new_yllv2(VALUE(LEFT(Options!$B$14,2)),$C196,$D196,$E196,$F196,2016,$I196/10,1,$H196/10,$G196*$H196/10,RateRatios_airpollution!$C196)*10))","v":491.34795086899999},{"$f":"IF(AND(OR(Calculations!$E$2=\"Orkney Health Board\",Calculations!$E$2=\"Orkney Islands Local Authority\"),$F196=1),0,IF(AND(OR(Calculations!$E$2=\"Shetland Health Board\",Calculations!$E$2=\"Western Isles Health Board\",Calculations!$E$2=\"Shetland Islands Local Authority\",Calculations!$E$2=\"Eilean Siar Local Authority\"),OR($F196=1,$F196=5)),0,new_yllv2(VALUE(LEFT(Options!$B$14,2)),$C196,$D196,$E196,$F196,2016,$I196/10+$J196/10,1,$H196/10,$G196*$H196/10,RateRatios_airpollution!$C196)*10))","v":491.343678383},{"$f":"IF(AND(OR(Calculations!$E$2=\"Orkney Health Board\",Calculations!$E$2=\"Orkney Islands Local Authority\"),$F196=1),0,IF(AND(OR(Calculations!$E$2=\"Shetland Health Board\",Calculations!$E$2=\"Western Isles Health Board\",Calculations!$E$2=\"Shetland Islands Local Authority\",Calculations!$E$2=\"Eilean Siar Local Authority\"),OR($F196=1,$F196=5)),0,hosp_count(VALUE(LEFT(Options!$B$14,2)),$C196,$E196,$F196,2016,$I196/10,1,$H196/10,$G196*$H196/10, RateRatios_airpollution!$D196, RateRatios_airpollution!$C196)*10))","v":1479.5226009359999},{"$f":"IF(AND(OR(Calculations!$E$2=\"Orkney Health Board\",Calculations!$E$2=\"Orkney Islands Local Authority\"),$F196=1),0,IF(AND(OR(Calculations!$E$2=\"Shetland Health Board\",Calculations!$E$2=\"Western Isles Health Board\",Calculations!$E$2=\"Shetland Islands Local Authority\",Calculations!$E$2=\"Eilean Siar Local Authority\"),OR($F196=1,$F196=5)),0,hosp_count(VALUE(LEFT(Options!$B$14,2)),$C196,$E196,$F196,2016,$I196/10+$J196/10,1,$H196/10,$G196*$H196/10, RateRatios_airpollution!$D196, RateRatios_airpollution!$C196)*10))","v":1479.4985555209998},{"$f":"IF(AND(OR(Calculations!$E$2=\"Orkney Health Board\",Calculations!$E$2=\"Orkney Islands Local Authority\"),$F196=1),0,IF(AND(OR(Calculations!$E$2=\"Shetland Health Board\",Calculations!$E$2=\"Western Isles Health Board\",Calculations!$E$2=\"Shetland Islands Local Authority\",Calculations!$E$2=\"Eilean Siar Local Authority\"),OR($F196=1,$F196=5)),0,prem_mort(VALUE(LEFT(Options!$B$14,2)),$C196,$E196,$F196,2016,$I196/10,1,$H196/10,$G196*$H196/10,RateRatios_airpollution!$C196)*10))","v":8.3962394749999998},{"$f":"IF(AND(OR(Calculations!$E$2=\"Orkney Health Board\",Calculations!$E$2=\"Orkney Islands Local Authority\"),$F196=1),0,IF(AND(OR(Calculations!$E$2=\"Shetland Health Board\",Calculations!$E$2=\"Western Isles Health Board\",Calculations!$E$2=\"Shetland Islands Local Authority\",Calculations!$E$2=\"Eilean Siar Local Authority\"),OR($F196=1,$F196=5)),0,prem_mort(VALUE(LEFT(Options!$B$14,2)),$C196,$E196,$F196,2016,$I196/10+$J196/10,1,$H196/10,$G196*$H196/10,RateRatios_airpollution!$C196)*10))","v":8.3961664660000004},null,{"$f":"IF(AND(OR(Calculations!$E$2=\"Orkney Health Board\",Calculations!$E$2=\"Orkney Islands Local Authority\"),$F196=1),0,IF(AND(OR(Calculations!$E$2=\"Shetland Health Board\",Calculations!$E$2=\"Western Isles Health Board\",Calculations!$E$2=\"Shetland Islands Local Authority\",Calculations!$E$2=\"Eilean Siar Local Authority\"),OR($F196=1,$F196=5)),0,new_ci(VALUE(LEFT(Options!$B$14,2)),$C196,$E196,$F196,2016,$I196/10,1,$H196/10,$G196*$H196/10,RateRatios_airpollution!$E196)*10))","v":8.3962394749999998},{"$f":"IF(AND(OR(Calculations!$E$2=\"Orkney Health Board\",Calculations!$E$2=\"Orkney Islands Local Authority\"),$F196=1),0,IF(AND(OR(Calculations!$E$2=\"Shetland Health Board\",Calculations!$E$2=\"Western Isles Health Board\",Calculations!$E$2=\"Shetland Islands Local Authority\",Calculations!$E$2=\"Eilean Siar Local Authority\"),OR($F196=1,$F196=5)),0,new_ci(VALUE(LEFT(Options!$B$14,2)),$C196,$E196,$F196,2016,$I196/10+$J196/10,1,$H196/10,$G196*$H196/10,RateRatios_airpollution!$E196)*10))","v":8.3962069170000007},{"$f":"IF(AND(OR(Calculations!$E$2=\"Orkney Health Board\",Calculations!$E$2=\"Orkney Islands Local Authority\"),$F196=1),0,IF(AND(OR(Calculations!$E$2=\"Shetland Health Board\",Calculations!$E$2=\"Western Isles Health Board\",Calculations!$E$2=\"Shetland Islands Local Authority\",Calculations!$E$2=\"Eilean Siar Local Authority\"),OR($F196=1,$F196=5)),0,new_yllv2(VALUE(LEFT(Options!$B$14,2)),$C196,$D196,$E196,$F196,2016,$I196/10,1,$H196/10,$G196*$H196/10,RateRatios_airpollution!$E196)*10))","v":491.34795086899999},{"$f":"IF(AND(OR(Calculations!$E$2=\"Orkney Health Board\",Calculations!$E$2=\"Orkney Islands Local Authority\"),$F196=1),0,IF(AND(OR(Calculations!$E$2=\"Shetland Health Board\",Calculations!$E$2=\"Western Isles Health Board\",Calculations!$E$2=\"Shetland Islands Local Authority\",Calculations!$E$2=\"Eilean Siar Local Authority\"),OR($F196=1,$F196=5)),0,new_yllv2(VALUE(LEFT(Options!$B$14,2)),$C196,$D196,$E196,$F196,2016,$I196/10+$J196/10,1,$H196/10,$G196*$H196/10,RateRatios_airpollution!$E196)*10))","v":491.34604557499995},{"$f":"IF(AND(OR(Calculations!$E$2=\"Orkney Health Board\",Calculations!$E$2=\"Orkney Islands Local Authority\"),$F196=1),0,IF(AND(OR(Calculations!$E$2=\"Shetland Health Board\",Calculations!$E$2=\"Western Isles Health Board\",Calculations!$E$2=\"Shetland Islands Local Authority\",Calculations!$E$2=\"Eilean Siar Local Authority\"),OR($F196=1,$F196=5)),0,hosp_count(VALUE(LEFT(Options!$B$14,2)),$C196,$E196,$F196,2016,$I196/10,1,$H196/10,$G196*$H196/10, RateRatios_airpollution!$F196, RateRatios_airpollution!$E196)*10))","v":1479.5226009359999},{"$f":"IF(AND(OR(Calculations!$E$2=\"Orkney Health Board\",Calculations!$E$2=\"Orkney Islands Local Authority\"),$F196=1),0,IF(AND(OR(Calculations!$E$2=\"Shetland Health Board\",Calculations!$E$2=\"Western Isles Health Board\",Calculations!$E$2=\"Shetland Islands Local Authority\",Calculations!$E$2=\"Eilean Siar Local Authority\"),OR($F196=1,$F196=5)),0,hosp_count(VALUE(LEFT(Options!$B$14,2)),$C196,$E196,$F196,2016,$I196/10+$J196/10,1,$H196/10,$G196*$H196/10, RateRatios_airpollution!$F196, RateRatios_airpollution!$E196)*10))","v":1479.5226009359999},{"$f":"IF(AND(OR(Calculations!$E$2=\"Orkney Health Board\",Calculations!$E$2=\"Orkney Islands Local Authority\"),$F196=1),0,IF(AND(OR(Calculations!$E$2=\"Shetland Health Board\",Calculations!$E$2=\"Western Isles Health Board\",Calculations!$E$2=\"Shetland Islands Local Authority\",Calculations!$E$2=\"Eilean Siar Local Authority\"),OR($F196=1,$F196=5)),0,prem_mort(VALUE(LEFT(Options!$B$14,2)),$C196,$E196,$F196,2016,$I196/10,1,$H196/10,$G196*$H196/10,RateRatios_airpollution!$E196)*10))","v":8.3962394749999998},{"$f":"IF(AND(OR(Calculations!$E$2=\"Orkney Health Board\",Calculations!$E$2=\"Orkney Islands Local Authority\"),$F196=1),0,IF(AND(OR(Calculations!$E$2=\"Shetland Health Board\",Calculations!$E$2=\"Western Isles Health Board\",Calculations!$E$2=\"Shetland Islands Local Authority\",Calculations!$E$2=\"Eilean Siar Local Authority\"),OR($F196=1,$F196=5)),0,prem_mort(VALUE(LEFT(Options!$B$14,2)),$C196,$E196,$F196,2016,$I196/10+$J196/10,1,$H196/10,$G196*$H196/10,RateRatios_airpollution!$E196)*10))","v":8.3962069170000007},8.3962394749999998,8.3947941050000026,491.34795086899999,491.26336781499998,1479.5226009359999,1479.2624729939998,8.3962394749999998,8.3947941050000026,33.948890000808667,33.94304587174512,1986.6891107431666,1986.3471123038976,5982.2197999999989,5981.1680130761752,33.948890000808667,33.94304587174512,149375.11600355813,149349.40183567852,8741432.087269932,8739927.29413715,26321767.119999994,26317139.257535171,149375.11600355813,149349.40183567852,4400]
[null,"Male 20-24",22.054632000000002,77.704629999999995,"male",4,1,{"$f":"HLOOKUP(Calculations!$E$2,'Population 2016'!$C$3:$BC$249,'Population 2016'!BD197,FALSE)","v":35228},0,{"$f":"HLOOKUP(Calculations!$E$2,Pop2016_in_settlements!$C$3:$BC$249,Pop2016_in_settlements!$BD197,FALSE)","v":15639},{"$f":"IF(AND(OR(Calculations!$E$2=\"Orkney Health Board\",Calculations!$E$2=\"Orkney Islands Local Authority\"),$F197=1),0,IF(AND(OR(Calculations!$E$2=\"Shetland Health Board\",Calculations!$E$2=\"Western Isles Health Board\",Calculations!$E$2=\"Shetland Islands Local Authority\",Calculations!$E$2=\"Eilean Siar Local Authority\"),OR($F197=1,$F197=5)),0,new_ci(VALUE(LEFT(Options!$B$14,2)),$C197,$E197,$F197,2016,$I197/10,1,$H197/10,$G197*$H197/10,RateRatios_accidents!$B$5)*10))","v":16.794825702000001},{"$f":"IF(AND(OR(Calculations!$E$2=\"Orkney Health Board\",Calculations!$E$2=\"Orkney Islands Local Authority\"),$F197=1),0,IF(AND(OR(Calculations!$E$2=\"Shetland Health Board\",Calculations!$E$2=\"Western Isles Health Board\",Calculations!$E$2=\"Shetland Islands Local Authority\",Calculations!$E$2=\"Eilean Siar Local Authority\"),OR($F197=1,$F197=5)),0,new_ci(VALUE(LEFT(Options!$B$14,2)),$C197,$E197,$F197,2016,$I197/10+$J197/10,1,$H197/10,$G197*$H197/10,RateRatios_accidents!$B$5)*10))","v":16.791843345},{"$f":"IF(AND(OR(Calculations!$E$2=\"Orkney Health Board\",Calculations!$E$2=\"Orkney Islands Local Authority\"),$F197=1),0,IF(AND(OR(Calculations!$E$2=\"Shetland Health Board\",Calculations!$E$2=\"Western Isles Health Board\",Calculations!$E$2=\"Shetland Islands Local Authority\",Calculations!$E$2=\"Eilean Siar Local Authority\"),OR($F197=1,$F197=5)),0,new_yllv2(VALUE(LEFT(Options!$B$14,2)),$C197,$D197,$E197,$F197,2016,$I197/10,1,$H197/10,$G197*$H197/10,RateRatios_accidents!$B$5)*10))","v":917.83719102500004},{"$f":"IF(AND(OR(Calculations!$E$2=\"Orkney Health Board\",Calculations!$E$2=\"Orkney Islands Local Authority\"),$F197=1),0,IF(AND(OR(Calculations!$E$2=\"Shetland Health Board\",Calculations!$E$2=\"Western Isles Health Board\",Calculations!$E$2=\"Shetland Islands Local Authority\",Calculations!$E$2=\"Eilean Siar Local Authority\"),OR($F197=1,$F197=5)),0,new_yllv2(VALUE(LEFT(Options!$B$14,2)),$C197,$D197,$E197,$F197,2016,$I197/10+$J197/10,1,$H197/10,$G197*$H197/10,RateRatios_accidents!$B$5)*10))","v":917.67420522099997},{"$f":"IF(AND(OR(Calculations!$E$2=\"Orkney Health Board\",Calculations!$E$2=\"Orkney Islands Local Authority\"),$F197=1),0,IF(AND(OR(Calculations!$E$2=\"Shetland Health Board\",Calculations!$E$2=\"Western Isles Health Board\",Calculations!$E$2=\"Shetland Islands Local Authority\",Calculations!$E$2=\"Eilean Siar Local Authority\"),OR($F197=1,$F197=5)),0,hosp_count(VALUE(LEFT(Options!$B$14,2)),$C197,$E197,$F197,2016,$I197/10,1,$H197/10,$G197*$H197/10, RateRatios_accidents!$B$4, RateRatios_accidents!$B$5)*10))","v":2472.2563462359999},{"$f":"IF(AND(OR(Calculations!$E$2=\"Orkney Health Board\",Calculations!$E$2=\"Orkney Islands Local Authority\"),$F197=1),0,IF(AND(OR(Calculations!$E$2=\"Shetland Health Board\",Calculations!$E$2=\"Western Isles Health Board\",Calculations!$E$2=\"Shetland Islands Local Authority\",Calculations!$E$2=\"Eilean Siar Local Authority\"),OR($F197=1,$F197=5)),0,hosp_count(VALUE(LEFT(Options!$B$14,2)),$C197,$E197,$F197,2016,$I197/10+$J197/10,1,$H197/10,$G197*$H197/10, RateRatios_accidents!$B$4, RateRatios_accidents!$B$5)*10))","v":2471.817336048},{"$f":"IF(AND(OR(Calculations!$E$2=\"Orkney Health Board\",Calculations!$E$2=\"Orkney Islands Local Authority\"),$F197=1),0,IF(AND(OR(Calculations!$E$2=\"Shetland Health Board\",Calculations!$E$2=\"Western Isles Health Board\",Calculations!$E$2=\"Shetland Islands Local Authority\",Calculations!$E$2=\"Eilean Siar Local Authority\"),OR($F197=1,$F197=5)),0,prem_mort(VALUE(LEFT(Options!$B$14,2)),$C197,$E197,$F197,2016,$I197/10,1,$H197/10,$G197*$H197/10,RateRatios_accidents!$B$5)*10))","v":16.794825702000001},{"$f":"IF(AND(OR(Calculations!$E$2=\"Orkney Health Board\",Calculations!$E$2=\"Orkney Islands Local Authority\"),$F197=1),0,IF(AND(OR(Calculations!$E$2=\"Shetland Health Board\",Calculations!$E$2=\"Western Isles Health Board\",Calculations!$E$2=\"Shetland Islands Local Authority\",Calculations!$E$2=\"Eilean Siar Local Authority\"),OR($F197=1,$F197=5)),0,prem_mort(VALUE(LEFT(Options!$B$14,2)),$C197,$E197,$F197,2016,$I197/10+$J197/10,1,$H197/10,$G197*$H197/10,RateRatios_accidents!$B$5)*10))","v":16.791843345},null,{"$f":"IF(AND(OR(Calculations!$E$2=\"Orkney Health Board\",Calculations!$E$2=\"Orkney Islands Local Authority\"),$F197=1),0,IF(AND(OR(Calculations!$E$2=\"Shetland Health Board\",Calculations!$E$2=\"Western Isles Health Board\",Calculations!$E$2=\"Shetland Islands Local Authority\",Calculations!$E$2=\"Eilean Siar Local Authority\"),OR($F197=1,$F197=5)),0,new_ci(VALUE(LEFT(Options!$B$14,2)),$C197,$E197,$F197,2016,$I197/10,1,$H197/10,$G197*$H197/10,RateRatios_airpollution!$C197)*10))","v":16.794825702000001},{"$f":"IF(AND(OR(Calculations!$E$2=\"Orkney Health Board\",Calculations!$E$2=\"Orkney Islands Local Authority\"),$F197=1),0,IF(AND(OR(Calculations!$E$2=\"Shetland Health Board\",Calculations!$E$2=\"Western Isles Health Board\",Calculations!$E$2=\"Shetland Islands Local Authority\",Calculations!$E$2=\"Eilean Siar Local Authority\"),OR($F197=1,$F197=5)),0,new_ci(VALUE(LEFT(Options!$B$14,2)),$C197,$E197,$F197,2016,$I197/10+$J197/10,1,$H197/10,$G197*$H197/10,RateRatios_airpollution!$C197)*10))","v":16.794606756},{"$f":"IF(AND(OR(Calculations!$E$2=\"Orkney Health Board\",Calculations!$E$2=\"Orkney Islands Local Authority\"),$F197=1),0,IF(AND(OR(Calculations!$E$2=\"Shetland Health Board\",Calculations!$E$2=\"Western Isles Health Board\",Calculations!$E$2=\"Shetland Islands Local Authority\",Calculations!$E$2=\"Eilean Siar Local Authority\"),OR($F197=1,$F197=5)),0,new_yllv2(VALUE(LEFT(Options!$B$14,2)),$C197,$D197,$E197,$F197,2016,$I197/10,1,$H197/10,$G197*$H197/10,RateRatios_airpollution!$C197)*10))","v":917.83719102500004},{"$f":"IF(AND(OR(Calculations!$E$2=\"Orkney Health Board\",Calculations!$E$2=\"Orkney Islands Local Authority\"),$F197=1),0,IF(AND(OR(Calculations!$E$2=\"Shetland Health Board\",Calculations!$E$2=\"Western Isles Health Board\",Calculations!$E$2=\"Shetland Islands Local Authority\",Calculations!$E$2=\"Eilean Siar Local Authority\"),OR($F197=1,$F197=5)),0,new_yllv2(VALUE(LEFT(Options!$B$14,2)),$C197,$D197,$E197,$F197,2016,$I197/10+$J197/10,1,$H197/10,$G197*$H197/10,RateRatios_airpollution!$C197)*10))","v":917.82522562599991},{"$f":"IF(AND(OR(Calculations!$E$2=\"Orkney Health Board\",Calculations!$E$2=\"Orkney Islands Local Authority\"),$F197=1),0,IF(AND(OR(Calculations!$E$2=\"Shetland Health Board\",Calculations!$E$2=\"Western Isles Health Board\",Calculations!$E$2=\"Shetland Islands Local Authority\",Calculations!$E$2=\"Eilean Siar Local Authority\"),OR($F197=1,$F197=5)),0,hosp_count(VALUE(LEFT(Options!$B$14,2)),$C197,$E197,$F197,2016,$I197/10,1,$H197/10,$G197*$H197/10, RateRatios_airpollution!$D197, RateRatios_airpollution!$C197)*10))","v":2472.2563462359999},{"$f":"IF(AND(OR(Calculations!$E$2=\"Orkney Health Board\",Calculations!$E$2=\"Orkney Islands Local Authority\"),$F197=1),0,IF(AND(OR(Calculations!$E$2=\"Shetland Health Board\",Calculations!$E$2=\"Western Isles Health Board\",Calculations!$E$2=\"Shetland Islands Local Authority\",Calculations!$E$2=\"Eilean Siar Local Authority\"),OR($F197=1,$F197=5)),0,hosp_count(VALUE(LEFT(Options!$B$14,2)),$C197,$E197,$F197,2016,$I197/10+$J197/10,1,$H197/10,$G197*$H197/10, RateRatios_airpollution!$D197, RateRatios_airpollution!$C197)*10))","v":2472.1957326000002},{"$f":"IF(AND(OR(Calculations!$E$2=\"Orkney Health Board\",Calculations!$E$2=\"Orkney Islands Local Authority\"),$F197=1),0,IF(AND(OR(Calculations!$E$2=\"Shetland Health Board\",Calculations!$E$2=\"Western Isles Health Board\",Calculations!$E$2=\"Shetland Islands Local Authority\",Calculations!$E$2=\"Eilean Siar Local Authority\"),OR($F197=1,$F197=5)),0,prem_mort(VALUE(LEFT(Options!$B$14,2)),$C197,$E197,$F197,2016,$I197/10,1,$H197/10,$G197*$H197/10,RateRatios_airpollution!$C197)*10))","v":16.794825702000001},{"$f":"IF(AND(OR(Calculations!$E$2=\"Orkney Health Board\",Calculations!$E$2=\"Orkney Islands Local Authority\"),$F197=1),0,IF(AND(OR(Calculations!$E$2=\"Shetland Health Board\",Calculations!$E$2=\"Western Isles Health Board\",Calculations!$E$2=\"Shetland Islands Local Authority\",Calculations!$E$2=\"Eilean Siar Local Authority\"),OR($F197=1,$F197=5)),0,prem_mort(VALUE(LEFT(Options!$B$14,2)),$C197,$E197,$F197,2016,$I197/10+$J197/10,1,$H197/10,$G197*$H197/10,RateRatios_airpollution!$C197)*10))","v":16.794606756},null,{"$f":"IF(AND(OR(Calculations!$E$2=\"Orkney Health Board\",Calculations!$E$2=\"Orkney Islands Local Authority\"),$F197=1),0,IF(AND(OR(Calculations!$E$2=\"Shetland Health Board\",Calculations!$E$2=\"Western Isles Health Board\",Calculations!$E$2=\"Shetland Islands Local Authority\",Calculations!$E$2=\"Eilean Siar Local Authority\"),OR($F197=1,$F197=5)),0,new_ci(VALUE(LEFT(Options!$B$14,2)),$C197,$E197,$F197,2016,$I197/10,1,$H197/10,$G197*$H197/10,RateRatios_airpollution!$E197)*10))","v":16.794825702000001},{"$f":"IF(AND(OR(Calculations!$E$2=\"Orkney Health Board\",Calculations!$E$2=\"Orkney Islands Local Authority\"),$F197=1),0,IF(AND(OR(Calculations!$E$2=\"Shetland Health Board\",Calculations!$E$2=\"Western Isles Health Board\",Calculations!$E$2=\"Shetland Islands Local Authority\",Calculations!$E$2=\"Eilean Siar Local Authority\"),OR($F197=1,$F197=5)),0,new_ci(VALUE(LEFT(Options!$B$14,2)),$C197,$E197,$F197,2016,$I197/10+$J197/10,1,$H197/10,$G197*$H197/10,RateRatios_airpollution!$E197)*10))","v":16.794733432000001},{"$f":"IF(AND(OR(Calculations!$E$2=\"Orkney Health Board\",Calculations!$E$2=\"Orkney Islands Local Authority\"),$F197=1),0,IF(AND(OR(Calculations!$E$2=\"Shetland Health Board\",Calculations!$E$2=\"Western Isles Health Board\",Calculations!$E$2=\"Shetland Islands Local Authority\",Calculations!$E$2=\"Eilean Siar Local Authority\"),OR($F197=1,$F197=5)),0,new_yllv2(VALUE(LEFT(Options!$B$14,2)),$C197,$D197,$E197,$F197,2016,$I197/10,1,$H197/10,$G197*$H197/10,RateRatios_airpollution!$E197)*10))","v":917.83719102500004},{"$f":"IF(AND(OR(Calculations!$E$2=\"Orkney Health Board\",Calculations!$E$2=\"Orkney Islands Local Authority\"),$F197=1),0,IF(AND(OR(Calculations!$E$2=\"Shetland Health Board\",Calculations!$E$2=\"Western Isles Health Board\",Calculations!$E$2=\"Shetland Islands Local Authority\",Calculations!$E$2=\"Eilean Siar Local Authority\"),OR($F197=1,$F197=5)),0,new_yllv2(VALUE(LEFT(Options!$B$14,2)),$C197,$D197,$E197,$F197,2016,$I197/10+$J197/10,1,$H197/10,$G197*$H197/10,RateRatios_airpollution!$E197)*10))","v":917.832148469},{"$f":"IF(AND(OR(Calculations!$E$2=\"Orkney Health Board\",Calculations!$E$2=\"Orkney Islands Local Authority\"),$F197=1),0,IF(AND(OR(Calculations!$E$2=\"Shetland Health Board\",Calculations!$E$2=\"Western Isles Health Board\",Calculations!$E$2=\"Shetland Islands Local Authority\",Calculations!$E$2=\"Eilean Siar Local Authority\"),OR($F197=1,$F197=5)),0,hosp_count(VALUE(LEFT(Options!$B$14,2)),$C197,$E197,$F197,2016,$I197/10,1,$H197/10,$G197*$H197/10, RateRatios_airpollution!$F197, RateRatios_airpollution!$E197)*10))","v":2472.2563462359999},{"$f":"IF(AND(OR(Calculations!$E$2=\"Orkney Health Board\",Calculations!$E$2=\"Orkney Islands Local Authority\"),$F197=1),0,IF(AND(OR(Calculations!$E$2=\"Shetland Health Board\",Calculations!$E$2=\"Western Isles Health Board\",Calculations!$E$2=\"Shetland Islands Local Authority\",Calculations!$E$2=\"Eilean Siar Local Authority\"),OR($F197=1,$F197=5)),0,hosp_count(VALUE(LEFT(Options!$B$14,2)),$C197,$E197,$F197,2016,$I197/10+$J197/10,1,$H197/10,$G197*$H197/10, RateRatios_airpollution!$F197, RateRatios_airpollution!$E197)*10))","v":2472.2563462359999},{"$f":"IF(AND(OR(Calculations!$E$2=\"Orkney Health Board\",Calculations!$E$2=\"Orkney Islands Local Authority\"),$F197=1),0,IF(AND(OR(Calculations!$E$2=\"Shetland Health Board\",Calculations!$E$2=\"Western Isles Health Board\",Calculations!$E$2=\"Shetland Islands Local Authority\",Calculations!$E$2=\"Eilean Siar Local Authority\"),OR($F197=1,$F197=5)),0,prem_mort(VALUE(LEFT(Options!$B$14,2)),$C197,$E197,$F197,2016,$I197/10,1,$H197/10,$G197*$H197/10,RateRatios_airpollution!$E197)*10))","v":16.794825702000001},{"$f":"IF(AND(OR(Calculations!$E$2=\"Orkney Health Board\",Calculations!$E$2=\"Orkney Islands Local Authority\"),$F197=1),0,IF(AND(OR(Calculations!$E$2=\"Shetland Health Board\",Calculations!$E$2=\"Western Isles Health Board\",Calculations!$E$2=\"Shetland Islands Local Authority\",Calculations!$E$2=\"Eilean Siar Local Authority\"),OR($F197=1,$F197=5)),0,prem_mort(VALUE(LEFT(Options!$B$14,2)),$C197,$E197,$F197,2016,$I197/10+$J197/10,1,$H197/10,$G197*$H197/10,RateRatios_airpollution!$E197)*10))","v":16.794733432000001},16.794825702000001,{"$f":"AK197-((AK197-L197)+(AK197-U197)+(AK197-AD197))","v":16.791532129},917.83719102500004,{"$f":"AM197-((AM197-N197)+(AM197-W197)+(AM197-AF197))","v":917.6571972659998},2472.2563462359999,{"$f":"AO197-((AO197-P197)+(AO197-Y197)+(AO197-AH197))","v":2471.7567224120003},16.794825702000001,{"$f":"AQ197-((AQ197-R197)+(AQ197-AA197)+(AQ197-AJ197))","v":16.791532129},47.67465,47.665300695469512,2605.4195271516978,2604.9085876745762,7017.873129998864,7016.4548722947666,47.67465,47.665300695469512,286047.90000000002,285991.80417281709,15632517.162910188,15629451.526047457,42107238.779993184,42098729.233768597,286047.90000000002,285991.80417281709,6000]
[null,"Male 25-29",26.959762999999999,77.789760000000001,"male",4,1,{"$f":"HLOOKUP(Calculations!$E$2,'Population 2016'!$C$3:$BC$249,'Population 2016'!BD198,FALSE)","v":33718},0,{"$f":"HLOOKUP(Calculations!$E$2,Pop2016_in_settlements!$C$3:$BC$249,Pop2016_in_settlements!$BD198,FALSE)","v":14799},{"$f":"IF(AND(OR(Calculations!$E$2=\"Orkney Health Board\",Calculations!$E$2=\"Orkney Islands Local Authority\"),$F198=1),0,IF(AND(OR(Calculations!$E$2=\"Shetland Health Board\",Calculations!$E$2=\"Western Isles Health Board\",Calculations!$E$2=\"Shetland Islands Local Authority\",Calculations!$E$2=\"Eilean Siar Local Authority\"),OR($F198=1,$F198=5)),0,new_ci(VALUE(LEFT(Options!$B$14,2)),$C198,$E198,$F198,2016,$I198/10,1,$H198/10,$G198*$H198/10,RateRatios_accidents!$B$5)*10))","v":23.277346056999999},{"$f":"IF(AND(OR(Calculations!$E$2=\"Orkney Health Board\",Calculations!$E$2=\"Orkney Islands Local Authority\"),$F198=1),0,IF(AND(OR(Calculations!$E$2=\"Shetland Health Board\",Calculations!$E$2=\"Western Isles Health Board\",Calculations!$E$2=\"Shetland Islands Local Authority\",Calculations!$E$2=\"Eilean Siar Local Authority\"),OR($F198=1,$F198=5)),0,new_ci(VALUE(LEFT(Options!$B$14,2)),$C198,$E198,$F198,2016,$I198/10+$J198/10,1,$H198/10,$G198*$H198/10,RateRatios_accidents!$B$5)*10))","v":23.273261532999999},{"$f":"IF(AND(OR(Calculations!$E$2=\"Orkney Health Board\",Calculations!$E$2=\"Orkney Islands Local Authority\"),$F198=1),0,IF(AND(OR(Calculations!$E$2=\"Shetland Health Board\",Calculations!$E$2=\"Western Isles Health Board\",Calculations!$E$2=\"Shetland Islands Local Authority\",Calculations!$E$2=\"Eilean Siar Local Authority\"),OR($F198=1,$F198=5)),0,new_yllv2(VALUE(LEFT(Options!$B$14,2)),$C198,$D198,$E198,$F198,2016,$I198/10,1,$H198/10,$G198*$H198/10,RateRatios_accidents!$B$5)*10))","v":1159.9100841880002},{"$f":"IF(AND(OR(Calculations!$E$2=\"Orkney Health Board\",Calculations!$E$2=\"Orkney Islands Local Authority\"),$F198=1),0,IF(AND(OR(Calculations!$E$2=\"Shetland Health Board\",Calculations!$E$2=\"Western Isles Health Board\",Calculations!$E$2=\"Shetland Islands Local Authority\",Calculations!$E$2=\"Eilean Siar Local Authority\"),OR($F198=1,$F198=5)),0,new_yllv2(VALUE(LEFT(Options!$B$14,2)),$C198,$D198,$E198,$F198,2016,$I198/10+$J198/10,1,$H198/10,$G198*$H198/10,RateRatios_accidents!$B$5)*10))","v":1159.7065523700001},{"$f":"IF(AND(OR(Calculations!$E$2=\"Orkney Health Board\",Calculations!$E$2=\"Orkney Islands Local Authority\"),$F198=1),0,IF(AND(OR(Calculations!$E$2=\"Shetland Health Board\",Calculations!$E$2=\"Western Isles Health Board\",Calculations!$E$2=\"Shetland Islands Local Authority\",Calculations!$E$2=\"Eilean Siar Local Authority\"),OR($F198=1,$F198=5)),0,hosp_count(VALUE(LEFT(Options!$B$14,2)),$C198,$E198,$F198,2016,$I198/10,1,$H198/10,$G198*$H198/10, RateRatios_accidents!$B$4, RateRatios_accidents!$B$5)*10))","v":2816.3180454050002},{"$f":"IF(AND(OR(Calculations!$E$2=\"Orkney Health Board\",Calculations!$E$2=\"Orkney Islands Local Authority\"),$F198=1),0,IF(AND(OR(Calculations!$E$2=\"Shetland Health Board\",Calculations!$E$2=\"Western Isles Health Board\",Calculations!$E$2=\"Shetland Islands Local Authority\",Calculations!$E$2=\"Eilean Siar Local Authority\"),OR($F198=1,$F198=5)),0,hosp_count(VALUE(LEFT(Options!$B$14,2)),$C198,$E198,$F198,2016,$I198/10+$J198/10,1,$H198/10,$G198*$H198/10, RateRatios_accidents!$B$4, RateRatios_accidents!$B$5)*10))","v":2815.823606376},{"$f":"IF(AND(OR(Calculations!$E$2=\"Orkney Health Board\",Calculations!$E$2=\"Orkney Islands Local Authority\"),$F198=1),0,IF(AND(OR(Calculations!$E$2=\"Shetland Health Board\",Calculations!$E$2=\"Western Isles Health Board\",Calculations!$E$2=\"Shetland Islands Local Authority\",Calculations!$E$2=\"Eilean Siar Local Authority\"),OR($F198=1,$F198=5)),0,prem_mort(VALUE(LEFT(Options!$B$14,2)),$C198,$E198,$F198,2016,$I198/10,1,$H198/10,$G198*$H198/10,RateRatios_accidents!$B$5)*10))","v":23.277346056999999},{"$f":"IF(AND(OR(Calculations!$E$2=\"Orkney Health Board\",Calculations!$E$2=\"Orkney Islands Local Authority\"),$F198=1),0,IF(AND(OR(Calculations!$E$2=\"Shetland Health Board\",Calculations!$E$2=\"Western Isles Health Board\",Calculations!$E$2=\"Shetland Islands Local Authority\",Calculations!$E$2=\"Eilean Siar Local Authority\"),OR($F198=1,$F198=5)),0,prem_mort(VALUE(LEFT(Options!$B$14,2)),$C198,$E198,$F198,2016,$I198/10+$J198/10,1,$H198/10,$G198*$H198/10,RateRatios_accidents!$B$5)*10))","v":23.273261532999999},null,{"$f":"IF(AND(OR(Calculations!$E$2=\"Orkney Health Board\",Calculations!$E$2=\"Orkney Islands Local Authority\"),$F198=1),0,IF(AND(OR(Calculations!$E$2=\"Shetland Health Board\",Calculations!$E$2=\"Western Isles Health Board\",Calculations!$E$2=\"Shetland Islands Local Authority\",Calculations!$E$2=\"Eilean Siar Local Authority\"),OR($F198=1,$F198=5)),0,new_ci(VALUE(LEFT(Options!$B$14,2)),$C198,$E198,$F198,2016,$I198/10,1,$H198/10,$G198*$H198/10,RateRatios_airpollution!$C198)*10))","v":23.277346056999999},{"$f":"IF(AND(OR(Calculations!$E$2=\"Orkney Health Board\",Calculations!$E$2=\"Orkney Islands Local Authority\"),$F198=1),0,IF(AND(OR(Calculations!$E$2=\"Shetland Health Board\",Calculations!$E$2=\"Western Isles Health Board\",Calculations!$E$2=\"Shetland Islands Local Authority\",Calculations!$E$2=\"Eilean Siar Local Authority\"),OR($F198=1,$F198=5)),0,new_ci(VALUE(LEFT(Options!$B$14,2)),$C198,$E198,$F198,2016,$I198/10+$J198/10,1,$H198/10,$G198*$H198/10,RateRatios_airpollution!$C198)*10))","v":23.277041196999999},{"$f":"IF(AND(OR(Calculations!$E$2=\"Orkney Health Board\",Calculations!$E$2=\"Orkney Islands Local Authority\"),$F198=1),0,IF(AND(OR(Calculations!$E$2=\"Shetland Health Board\",Calculations!$E$2=\"Western Isles Health Board\",Calculations!$E$2=\"Shetland Islands Local Authority\",Calculations!$E$2=\"Eilean Siar Local Authority\"),OR($F198=1,$F198=5)),0,new_yllv2(VALUE(LEFT(Options!$B$14,2)),$C198,$D198,$E198,$F198,2016,$I198/10,1,$H198/10,$G198*$H198/10,RateRatios_airpollution!$C198)*10))","v":1159.9100841880002},{"$f":"IF(AND(OR(Calculations!$E$2=\"Orkney Health Board\",Calculations!$E$2=\"Orkney Islands Local Authority\"),$F198=1),0,IF(AND(OR(Calculations!$E$2=\"Shetland Health Board\",Calculations!$E$2=\"Western Isles Health Board\",Calculations!$E$2=\"Shetland Islands Local Authority\",Calculations!$E$2=\"Eilean Siar Local Authority\"),OR($F198=1,$F198=5)),0,new_yllv2(VALUE(LEFT(Options!$B$14,2)),$C198,$D198,$E198,$F198,2016,$I198/10+$J198/10,1,$H198/10,$G198*$H198/10,RateRatios_airpollution!$C198)*10))","v":1159.894893015},{"$f":"IF(AND(OR(Calculations!$E$2=\"Orkney Health Board\",Calculations!$E$2=\"Orkney Islands Local Authority\"),$F198=1),0,IF(AND(OR(Calculations!$E$2=\"Shetland Health Board\",Calculations!$E$2=\"Western Isles Health Board\",Calculations!$E$2=\"Shetland Islands Local Authority\",Calculations!$E$2=\"Eilean Siar Local Authority\"),OR($F198=1,$F198=5)),0,hosp_count(VALUE(LEFT(Options!$B$14,2)),$C198,$E198,$F198,2016,$I198/10,1,$H198/10,$G198*$H198/10, RateRatios_airpollution!$D198, RateRatios_airpollution!$C198)*10))","v":2816.3180454050002},{"$f":"IF(AND(OR(Calculations!$E$2=\"Orkney Health Board\",Calculations!$E$2=\"Orkney Islands Local Authority\"),$F198=1),0,IF(AND(OR(Calculations!$E$2=\"Shetland Health Board\",Calculations!$E$2=\"Western Isles Health Board\",Calculations!$E$2=\"Shetland Islands Local Authority\",Calculations!$E$2=\"Eilean Siar Local Authority\"),OR($F198=1,$F198=5)),0,hosp_count(VALUE(LEFT(Options!$B$14,2)),$C198,$E198,$F198,2016,$I198/10+$J198/10,1,$H198/10,$G198*$H198/10, RateRatios_airpollution!$D198, RateRatios_airpollution!$C198)*10))","v":2816.2485285830003},{"$f":"IF(AND(OR(Calculations!$E$2=\"Orkney Health Board\",Calculations!$E$2=\"Orkney Islands Local Authority\"),$F198=1),0,IF(AND(OR(Calculations!$E$2=\"Shetland Health Board\",Calculations!$E$2=\"Western Isles Health Board\",Calculations!$E$2=\"Shetland Islands Local Authority\",Calculations!$E$2=\"Eilean Siar Local Authority\"),OR($F198=1,$F198=5)),0,prem_mort(VALUE(LEFT(Options!$B$14,2)),$C198,$E198,$F198,2016,$I198/10,1,$H198/10,$G198*$H198/10,RateRatios_airpollution!$C198)*10))","v":23.277346056999999},{"$f":"IF(AND(OR(Calculations!$E$2=\"Orkney Health Board\",Calculations!$E$2=\"Orkney Islands Local Authority\"),$F198=1),0,IF(AND(OR(Calculations!$E$2=\"Shetland Health Board\",Calculations!$E$2=\"Western Isles Health Board\",Calculations!$E$2=\"Shetland Islands Local Authority\",Calculations!$E$2=\"Eilean Siar Local Authority\"),OR($F198=1,$F198=5)),0,prem_mort(VALUE(LEFT(Options!$B$14,2)),$C198,$E198,$F198,2016,$I198/10+$J198/10,1,$H198/10,$G198*$H198/10,RateRatios_airpollution!$C198)*10))","v":23.277041196999999},null,{"$f":"IF(AND(OR(Calculations!$E$2=\"Orkney Health Board\",Calculations!$E$2=\"Orkney Islands Local Authority\"),$F198=1),0,IF(AND(OR(Calculations!$E$2=\"Shetland Health Board\",Calculations!$E$2=\"Western Isles Health Board\",Calculations!$E$2=\"Shetland Islands Local Authority\",Calculations!$E$2=\"Eilean Siar Local Authority\"),OR($F198=1,$F198=5)),0,new_ci(VALUE(LEFT(Options!$B$14,2)),$C198,$E198,$F198,2016,$I198/10,1,$H198/10,$G198*$H198/10,RateRatios_airpollution!$E198)*10))","v":23.277346056999999},{"$f":"IF(AND(OR(Calculations!$E$2=\"Orkney Health Board\",Calculations!$E$2=\"Orkney Islands Local Authority\"),$F198=1),0,IF(AND(OR(Calculations!$E$2=\"Shetland Health Board\",Calculations!$E$2=\"Western Isles Health Board\",Calculations!$E$2=\"Shetland Islands Local Authority\",Calculations!$E$2=\"Eilean Siar Local Authority\"),OR($F198=1,$F198=5)),0,new_ci(VALUE(LEFT(Options!$B$14,2)),$C198,$E198,$F198,2016,$I198/10+$J198/10,1,$H198/10,$G198*$H198/10,RateRatios_airpollution!$E198)*10))","v":23.277215825000003},{"$f":"IF(AND(OR(Calculations!$E$2=\"Orkney Health Board\",Calculations!$E$2=\"Orkney Islands Local Authority\"),$F198=1),0,IF(AND(OR(Calculations!$E$2=\"Shetland Health Board\",Calculations!$E$2=\"Western Isles Health Board\",Calculations!$E$2=\"Shetland Islands Local Authority\",Calculations!$E$2=\"Eilean Siar Local Authority\"),OR($F198=1,$F198=5)),0,new_yllv2(VALUE(LEFT(Options!$B$14,2)),$C198,$D198,$E198,$F198,2016,$I198/10,1,$H198/10,$G198*$H198/10,RateRatios_airpollution!$E198)*10))","v":1159.9100841880002},{"$f":"IF(AND(OR(Calculations!$E$2=\"Orkney Health Board\",Calculations!$E$2=\"Orkney Islands Local Authority\"),$F198=1),0,IF(AND(OR(Calculations!$E$2=\"Shetland Health Board\",Calculations!$E$2=\"Western Isles Health Board\",Calculations!$E$2=\"Shetland Islands Local Authority\",Calculations!$E$2=\"Eilean Siar Local Authority\"),OR($F198=1,$F198=5)),0,new_yllv2(VALUE(LEFT(Options!$B$14,2)),$C198,$D198,$E198,$F198,2016,$I198/10+$J198/10,1,$H198/10,$G198*$H198/10,RateRatios_airpollution!$E198)*10))","v":1159.9035947279999},{"$f":"IF(AND(OR(Calculations!$E$2=\"Orkney Health Board\",Calculations!$E$2=\"Orkney Islands Local Authority\"),$F198=1),0,IF(AND(OR(Calculations!$E$2=\"Shetland Health Board\",Calculations!$E$2=\"Western Isles Health Board\",Calculations!$E$2=\"Shetland Islands Local Authority\",Calculations!$E$2=\"Eilean Siar Local Authority\"),OR($F198=1,$F198=5)),0,hosp_count(VALUE(LEFT(Options!$B$14,2)),$C198,$E198,$F198,2016,$I198/10,1,$H198/10,$G198*$H198/10, RateRatios_airpollution!$F198, RateRatios_airpollution!$E198)*10))","v":2816.3180454050002},{"$f":"IF(AND(OR(Calculations!$E$2=\"Orkney Health Board\",Calculations!$E$2=\"Orkney Islands Local Authority\"),$F198=1),0,IF(AND(OR(Calculations!$E$2=\"Shetland Health Board\",Calculations!$E$2=\"Western Isles Health Board\",Calculations!$E$2=\"Shetland Islands Local Authority\",Calculations!$E$2=\"Eilean Siar Local Authority\"),OR($F198=1,$F198=5)),0,hosp_count(VALUE(LEFT(Options!$B$14,2)),$C198,$E198,$F198,2016,$I198/10+$J198/10,1,$H198/10,$G198*$H198/10, RateRatios_airpollution!$F198, RateRatios_airpollution!$E198)*10))","v":2816.3180454050002},{"$f":"IF(AND(OR(Calculations!$E$2=\"Orkney Health Board\",Calculations!$E$2=\"Orkney Islands Local Authority\"),$F198=1),0,IF(AND(OR(Calculations!$E$2=\"Shetland Health Board\",Calculations!$E$2=\"Western Isles Health Board\",Calculations!$E$2=\"Shetland Islands Local Authority\",Calculations!$E$2=\"Eilean Siar Local Authority\"),OR($F198=1,$F198=5)),0,prem_mort(VALUE(LEFT(Options!$B$14,2)),$C198,$E198,$F198,2016,$I198/10,1,$H198/10,$G198*$H198/10,RateRatios_airpollution!$E198)*10))","v":23.277346056999999},{"$f":"IF(AND(OR(Calculations!$E$2=\"Orkney Health Board\",Calculations!$E$2=\"Orkney Islands Local Authority\"),$F198=1),0,IF(AND(OR(Calculations!$E$2=\"Shetland Health Board\",Calculations!$E$2=\"Western Isles Health Board\",Calculations!$E$2=\"Shetland Islands Local Authority\",Calculations!$E$2=\"Eilean Siar Local Authority\"),OR($F198=1,$F198=5)),0,prem_mort(VALUE(LEFT(Options!$B$14,2)),$C198,$E198,$F198,2016,$I198/10+$J198/10,1,$H198/10,$G198*$H198/10,RateRatios_airpollution!$E198)*10))","v":23.277215825000003},23.277346056999999,23.272826441000003,1159.9100841880002,1159.6848717369996,2816.3180454050002,2815.7540895540001,23.277346056999999,23.272826441000003,69.035370001186308,69.02196583723827,3440.0322800521981,3439.3643506050171,8352.5655299988157,8350.8929638590653,69.035370001186308,69.02196583723827,414212.22000711784,414131.79502342961,20640193.680313189,20636186.103630103,50115393.179992892,50105357.783154391,414212.22000711784,414131.79502342961,6000]
[null,"Male 30-34",31.981521999999998,78.061520000000002,"male",4,1,{"$f":"HLOOKUP(Calculations!$E$2,'Population 2016'!$C$3:$BC$249,'Population 2016'!BD199,FALSE)","v":32346},0,{"$f":"HLOOKUP(Calculations!$E$2,Pop2016_in_settlements!$C$3:$BC$249,Pop2016_in_settlements!$BD199,FALSE)","v":13331},{"$f":"IF(AND(OR(Calculations!$E$2=\"Orkney Health Board\",Calculations!$E$2=\"Orkney Islands Local Authority\"),$F199=1),0,IF(AND(OR(Calculations!$E$2=\"Shetland Health Board\",Calculations!$E$2=\"Western Isles Health Board\",Calculations!$E$2=\"Shetland Islands Local Authority\",Calculations!$E$2=\"Eilean Siar Local Authority\"),OR($F199=1,$F199=5)),0,new_ci(VALUE(LEFT(Options!$B$14,2)),$C199,$E199,$F199,2016,$I199/10,1,$H199/10,$G199*$H199/10,RateRatios_accidents!$B$5)*10))","v":32.619537184000002},{"$f":"IF(AND(OR(Calculations!$E$2=\"Orkney Health Board\",Calculations!$E$2=\"Orkney Islands Local Authority\"),$F199=1),0,IF(AND(OR(Calculations!$E$2=\"Shetland Health Board\",Calculations!$E$2=\"Western Isles Health Board\",Calculations!$E$2=\"Shetland Islands Local Authority\",Calculations!$E$2=\"Eilean Siar Local Authority\"),OR($F199=1,$F199=5)),0,new_ci(VALUE(LEFT(Options!$B$14,2)),$C199,$E199,$F199,2016,$I199/10+$J199/10,1,$H199/10,$G199*$H199/10,RateRatios_accidents!$B$5)*10))","v":32.614162123999996},{"$f":"IF(AND(OR(Calculations!$E$2=\"Orkney Health Board\",Calculations!$E$2=\"Orkney Islands Local Authority\"),$F199=1),0,IF(AND(OR(Calculations!$E$2=\"Shetland Health Board\",Calculations!$E$2=\"Western Isles Health Board\",Calculations!$E$2=\"Shetland Islands Local Authority\",Calculations!$E$2=\"Eilean Siar Local Authority\"),OR($F199=1,$F199=5)),0,new_yllv2(VALUE(LEFT(Options!$B$14,2)),$C199,$D199,$E199,$F199,2016,$I199/10,1,$H199/10,$G199*$H199/10,RateRatios_accidents!$B$5)*10))","v":1470.4886710159999},{"$f":"IF(AND(OR(Calculations!$E$2=\"Orkney Health Board\",Calculations!$E$2=\"Orkney Islands Local Authority\"),$F199=1),0,IF(AND(OR(Calculations!$E$2=\"Shetland Health Board\",Calculations!$E$2=\"Western Isles Health Board\",Calculations!$E$2=\"Shetland Islands Local Authority\",Calculations!$E$2=\"Eilean Siar Local Authority\"),OR($F199=1,$F199=5)),0,new_yllv2(VALUE(LEFT(Options!$B$14,2)),$C199,$D199,$E199,$F199,2016,$I199/10+$J199/10,1,$H199/10,$G199*$H199/10,RateRatios_accidents!$B$5)*10))","v":1470.246363322},{"$f":"IF(AND(OR(Calculations!$E$2=\"Orkney Health Board\",Calculations!$E$2=\"Orkney Islands Local Authority\"),$F199=1),0,IF(AND(OR(Calculations!$E$2=\"Shetland Health Board\",Calculations!$E$2=\"Western Isles Health Board\",Calculations!$E$2=\"Shetland Islands Local Authority\",Calculations!$E$2=\"Eilean Siar Local Authority\"),OR($F199=1,$F199=5)),0,hosp_count(VALUE(LEFT(Options!$B$14,2)),$C199,$E199,$F199,2016,$I199/10,1,$H199/10,$G199*$H199/10, RateRatios_accidents!$B$4, RateRatios_accidents!$B$5)*10))","v":3228.8860305809999},{"$f":"IF(AND(OR(Calculations!$E$2=\"Orkney Health Board\",Calculations!$E$2=\"Orkney Islands Local Authority\"),$F199=1),0,IF(AND(OR(Calculations!$E$2=\"Shetland Health Board\",Calculations!$E$2=\"Western Isles Health Board\",Calculations!$E$2=\"Shetland Islands Local Authority\",Calculations!$E$2=\"Eilean Siar Local Authority\"),OR($F199=1,$F199=5)),0,hosp_count(VALUE(LEFT(Options!$B$14,2)),$C199,$E199,$F199,2016,$I199/10+$J199/10,1,$H199/10,$G199*$H199/10, RateRatios_accidents!$B$4, RateRatios_accidents!$B$5)*10))","v":3228.353733083},{"$f":"IF(AND(OR(Calculations!$E$2=\"Orkney Health Board\",Calculations!$E$2=\"Orkney Islands Local Authority\"),$F199=1),0,IF(AND(OR(Calculations!$E$2=\"Shetland Health Board\",Calculations!$E$2=\"Western Isles Health Board\",Calculations!$E$2=\"Shetland Islands Local Authority\",Calculations!$E$2=\"Eilean Siar Local Authority\"),OR($F199=1,$F199=5)),0,prem_mort(VALUE(LEFT(Options!$B$14,2)),$C199,$E199,$F199,2016,$I199/10,1,$H199/10,$G199*$H199/10,RateRatios_accidents!$B$5)*10))","v":32.619537184000002},{"$f":"IF(AND(OR(Calculations!$E$2=\"Orkney Health Board\",Calculations!$E$2=\"Orkney Islands Local Authority\"),$F199=1),0,IF(AND(OR(Calculations!$E$2=\"Shetland Health Board\",Calculations!$E$2=\"Western Isles Health Board\",Calculations!$E$2=\"Shetland Islands Local Authority\",Calculations!$E$2=\"Eilean Siar Local Authority\"),OR($F199=1,$F199=5)),0,prem_mort(VALUE(LEFT(Options!$B$14,2)),$C199,$E199,$F199,2016,$I199/10+$J199/10,1,$H199/10,$G199*$H199/10,RateRatios_accidents!$B$5)*10))","v":32.614162123999996},null,{"$f":"IF(AND(OR(Calculations!$E$2=\"Orkney Health Board\",Calculations!$E$2=\"Orkney Islands Local Authority\"),$F199=1),0,IF(AND(OR(Calculations!$E$2=\"Shetland Health Board\",Calculations!$E$2=\"Western Isles Health Board\",Calculations!$E$2=\"Shetland Islands Local Authority\",Calculations!$E$2=\"Eilean Siar Local Authority\"),OR($F199=1,$F199=5)),0,new_ci(VALUE(LEFT(Options!$B$14,2)),$C199,$E199,$F199,2016,$I199/10,1,$H199/10,$G199*$H199/10,RateRatios_airpollution!$C199)*10))","v":32.619537184000002},{"$f":"IF(AND(OR(Calculations!$E$2=\"Orkney Health Board\",Calculations!$E$2=\"Orkney Islands Local Authority\"),$F199=1),0,IF(AND(OR(Calculations!$E$2=\"Shetland Health Board\",Calculations!$E$2=\"Western Isles Health Board\",Calculations!$E$2=\"Shetland Islands Local Authority\",Calculations!$E$2=\"Eilean Siar Local Authority\"),OR($F199=1,$F199=5)),0,new_ci(VALUE(LEFT(Options!$B$14,2)),$C199,$E199,$F199,2016,$I199/10+$J199/10,1,$H199/10,$G199*$H199/10,RateRatios_airpollution!$C199)*10))","v":32.619159916000001},{"$f":"IF(AND(OR(Calculations!$E$2=\"Orkney Health Board\",Calculations!$E$2=\"Orkney Islands Local Authority\"),$F199=1),0,IF(AND(OR(Calculations!$E$2=\"Shetland Health Board\",Calculations!$E$2=\"Western Isles Health Board\",Calculations!$E$2=\"Shetland Islands Local Authority\",Calculations!$E$2=\"Eilean Siar Local Authority\"),OR($F199=1,$F199=5)),0,new_yllv2(VALUE(LEFT(Options!$B$14,2)),$C199,$D199,$E199,$F199,2016,$I199/10,1,$H199/10,$G199*$H199/10,RateRatios_airpollution!$C199)*10))","v":1470.4886710159999},{"$f":"IF(AND(OR(Calculations!$E$2=\"Orkney Health Board\",Calculations!$E$2=\"Orkney Islands Local Authority\"),$F199=1),0,IF(AND(OR(Calculations!$E$2=\"Shetland Health Board\",Calculations!$E$2=\"Western Isles Health Board\",Calculations!$E$2=\"Shetland Islands Local Authority\",Calculations!$E$2=\"Eilean Siar Local Authority\"),OR($F199=1,$F199=5)),0,new_yllv2(VALUE(LEFT(Options!$B$14,2)),$C199,$D199,$E199,$F199,2016,$I199/10+$J199/10,1,$H199/10,$G199*$H199/10,RateRatios_airpollution!$C199)*10))","v":1470.4716637749998},{"$f":"IF(AND(OR(Calculations!$E$2=\"Orkney Health Board\",Calculations!$E$2=\"Orkney Islands Local Authority\"),$F199=1),0,IF(AND(OR(Calculations!$E$2=\"Shetland Health Board\",Calculations!$E$2=\"Western Isles Health Board\",Calculations!$E$2=\"Shetland Islands Local Authority\",Calculations!$E$2=\"Eilean Siar Local Authority\"),OR($F199=1,$F199=5)),0,hosp_count(VALUE(LEFT(Options!$B$14,2)),$C199,$E199,$F199,2016,$I199/10,1,$H199/10,$G199*$H199/10, RateRatios_airpollution!$D199, RateRatios_airpollution!$C199)*10))","v":3228.8860305809999},{"$f":"IF(AND(OR(Calculations!$E$2=\"Orkney Health Board\",Calculations!$E$2=\"Orkney Islands Local Authority\"),$F199=1),0,IF(AND(OR(Calculations!$E$2=\"Shetland Health Board\",Calculations!$E$2=\"Western Isles Health Board\",Calculations!$E$2=\"Shetland Islands Local Authority\",Calculations!$E$2=\"Eilean Siar Local Authority\"),OR($F199=1,$F199=5)),0,hosp_count(VALUE(LEFT(Options!$B$14,2)),$C199,$E199,$F199,2016,$I199/10+$J199/10,1,$H199/10,$G199*$H199/10, RateRatios_airpollution!$D199, RateRatios_airpollution!$C199)*10))","v":3228.815764213},{"$f":"IF(AND(OR(Calculations!$E$2=\"Orkney Health Board\",Calculations!$E$2=\"Orkney Islands Local Authority\"),$F199=1),0,IF(AND(OR(Calculations!$E$2=\"Shetland Health Board\",Calculations!$E$2=\"Western Isles Health Board\",Calculations!$E$2=\"Shetland Islands Local Authority\",Calculations!$E$2=\"Eilean Siar Local Authority\"),OR($F199=1,$F199=5)),0,prem_mort(VALUE(LEFT(Options!$B$14,2)),$C199,$E199,$F199,2016,$I199/10,1,$H199/10,$G199*$H199/10,RateRatios_airpollution!$C199)*10))","v":32.619537184000002},{"$f":"IF(AND(OR(Calculations!$E$2=\"Orkney Health Board\",Calculations!$E$2=\"Orkney Islands Local Authority\"),$F199=1),0,IF(AND(OR(Calculations!$E$2=\"Shetland Health Board\",Calculations!$E$2=\"Western Isles Health Board\",Calculations!$E$2=\"Shetland Islands Local Authority\",Calculations!$E$2=\"Eilean Siar Local Authority\"),OR($F199=1,$F199=5)),0,prem_mort(VALUE(LEFT(Options!$B$14,2)),$C199,$E199,$F199,2016,$I199/10+$J199/10,1,$H199/10,$G199*$H199/10,RateRatios_airpollution!$C199)*10))","v":32.619159916000001},null,{"$f":"IF(AND(OR(Calculations!$E$2=\"Orkney Health Board\",Calculations!$E$2=\"Orkney Islands Local Authority\"),$F199=1),0,IF(AND(OR(Calculations!$E$2=\"Shetland Health Board\",Calculations!$E$2=\"Western Isles Health Board\",Calculations!$E$2=\"Shetland Islands Local Authority\",Calculations!$E$2=\"Eilean Siar Local Authority\"),OR($F199=1,$F199=5)),0,new_ci(VALUE(LEFT(Options!$B$14,2)),$C199,$E199,$F199,2016,$I199/10,1,$H199/10,$G199*$H199/10,RateRatios_airpollution!$E199)*10))","v":32.619537184000002},{"$f":"IF(AND(OR(Calculations!$E$2=\"Orkney Health Board\",Calculations!$E$2=\"Orkney Islands Local Authority\"),$F199=1),0,IF(AND(OR(Calculations!$E$2=\"Shetland Health Board\",Calculations!$E$2=\"Western Isles Health Board\",Calculations!$E$2=\"Shetland Islands Local Authority\",Calculations!$E$2=\"Eilean Siar Local Authority\"),OR($F199=1,$F199=5)),0,new_ci(VALUE(LEFT(Options!$B$14,2)),$C199,$E199,$F199,2016,$I199/10+$J199/10,1,$H199/10,$G199*$H199/10,RateRatios_airpollution!$E199)*10))","v":32.619373211999999},{"$f":"IF(AND(OR(Calculations!$E$2=\"Orkney Health Board\",Calculations!$E$2=\"Orkney Islands Local Authority\"),$F199=1),0,IF(AND(OR(Calculations!$E$2=\"Shetland Health Board\",Calculations!$E$2=\"Western Isles Health Board\",Calculations!$E$2=\"Shetland Islands Local Authority\",Calculations!$E$2=\"Eilean Siar Local Authority\"),OR($F199=1,$F199=5)),0,new_yllv2(VALUE(LEFT(Options!$B$14,2)),$C199,$D199,$E199,$F199,2016,$I199/10,1,$H199/10,$G199*$H199/10,RateRatios_airpollution!$E199)*10))","v":1470.4886710159999},{"$f":"IF(AND(OR(Calculations!$E$2=\"Orkney Health Board\",Calculations!$E$2=\"Orkney Islands Local Authority\"),$F199=1),0,IF(AND(OR(Calculations!$E$2=\"Shetland Health Board\",Calculations!$E$2=\"Western Isles Health Board\",Calculations!$E$2=\"Shetland Islands Local Authority\",Calculations!$E$2=\"Eilean Siar Local Authority\"),OR($F199=1,$F199=5)),0,new_yllv2(VALUE(LEFT(Options!$B$14,2)),$C199,$D199,$E199,$F199,2016,$I199/10+$J199/10,1,$H199/10,$G199*$H199/10,RateRatios_airpollution!$E199)*10))","v":1470.481279158},{"$f":"IF(AND(OR(Calculations!$E$2=\"Orkney Health Board\",Calculations!$E$2=\"Orkney Islands Local Authority\"),$F199=1),0,IF(AND(OR(Calculations!$E$2=\"Shetland Health Board\",Calculations!$E$2=\"Western Isles Health Board\",Calculations!$E$2=\"Shetland Islands Local Authority\",Calculations!$E$2=\"Eilean Siar Local Authority\"),OR($F199=1,$F199=5)),0,hosp_count(VALUE(LEFT(Options!$B$14,2)),$C199,$E199,$F199,2016,$I199/10,1,$H199/10,$G199*$H199/10, RateRatios_airpollution!$F199, RateRatios_airpollution!$E199)*10))","v":3228.8860305809999},{"$f":"IF(AND(OR(Calculations!$E$2=\"Orkney Health Board\",Calculations!$E$2=\"Orkney Islands Local Authority\"),$F199=1),0,IF(AND(OR(Calculations!$E$2=\"Shetland Health Board\",Calculations!$E$2=\"Western Isles Health Board\",Calculations!$E$2=\"Shetland Islands Local Authority\",Calculations!$E$2=\"Eilean Siar Local Authority\"),OR($F199=1,$F199=5)),0,hosp_count(VALUE(LEFT(Options!$B$14,2)),$C199,$E199,$F199,2016,$I199/10+$J199/10,1,$H199/10,$G199*$H199/10, RateRatios_airpollution!$F199, RateRatios_airpollution!$E199)*10))","v":3228.8860305809999},{"$f":"IF(AND(OR(Calculations!$E$2=\"Orkney Health Board\",Calculations!$E$2=\"Orkney Islands Local Authority\"),$F199=1),0,IF(AND(OR(Calculations!$E$2=\"Shetland Health Board\",Calculations!$E$2=\"Western Isles Health Board\",Calculations!$E$2=\"Shetland Islands Local Authority\",Calculations!$E$2=\"Eilean Siar Local Authority\"),OR($F199=1,$F199=5)),0,prem_mort(VALUE(LEFT(Options!$B$14,2)),$C199,$E199,$F199,2016,$I199/10,1,$H199/10,$G199*$H199/10,RateRatios_airpollution!$E199)*10))","v":32.619537184000002},{"$f":"IF(AND(OR(Calculations!$E$2=\"Orkney Health Board\",Calculations!$E$2=\"Orkney Islands Local Authority\"),$F199=1),0,IF(AND(OR(Calculations!$E$2=\"Shetland Health Board\",Calculations!$E$2=\"Western Isles Health Board\",Calculations!$E$2=\"Shetland Islands Local Authority\",Calculations!$E$2=\"Eilean Siar Local Authority\"),OR($F199=1,$F199=5)),0,prem_mort(VALUE(LEFT(Options!$B$14,2)),$C199,$E199,$F199,2016,$I199/10+$J199/10,1,$H199/10,$G199*$H199/10,RateRatios_airpollution!$E199)*10))","v":32.619373211999999},32.619537184000002,32.613620883999992,1470.4886710159999,1470.221964223,3228.8860305809999,3228.283466715,32.619537184000002,32.613620883999992,100.84566000123664,100.82736933160203,4546.1221511655222,4545.2976078124038,9982.3348499999993,9980.4719801984793,100.84566000123664,100.82736933160203,655496.79000803817,655377.90065541316,29549793.982575893,29544434.450780626,64885176.524999999,64873067.871290118,655496.79000803817,655377.90065541316,6500]
[null,"Male 35-39",36.926009999999998,78.336009999999987,"male",4,1,{"$f":"HLOOKUP(Calculations!$E$2,'Population 2016'!$C$3:$BC$249,'Population 2016'!BD200,FALSE)","v":32021},0,{"$f":"HLOOKUP(Calculations!$E$2,Pop2016_in_settlements!$C$3:$BC$249,Pop2016_in_settlements!$BD200,FALSE)","v":12678},{"$f":"IF(AND(OR(Calculations!$E$2=\"Orkney Health Board\",Calculations!$E$2=\"Orkney Islands Local Authority\"),$F200=1),0,IF(AND(OR(Calculations!$E$2=\"Shetland Health Board\",Calculations!$E$2=\"Western Isles Health Board\",Calculations!$E$2=\"Shetland Islands Local Authority\",Calculations!$E$2=\"Eilean Siar Local Authority\"),OR($F200=1,$F200=5)),0,new_ci(VALUE(LEFT(Options!$B$14,2)),$C200,$E200,$F200,2016,$I200/10,1,$H200/10,$G200*$H200/10,RateRatios_accidents!$B$5)*10))","v":46.893646572999998},{"$f":"IF(AND(OR(Calculations!$E$2=\"Orkney Health Board\",Calculations!$E$2=\"Orkney Islands Local Authority\"),$F200=1),0,IF(AND(OR(Calculations!$E$2=\"Shetland Health Board\",Calculations!$E$2=\"Western Isles Health Board\",Calculations!$E$2=\"Shetland Islands Local Authority\",Calculations!$E$2=\"Eilean Siar Local Authority\"),OR($F200=1,$F200=5)),0,new_ci(VALUE(LEFT(Options!$B$14,2)),$C200,$E200,$F200,2016,$I200/10+$J200/10,1,$H200/10,$G200*$H200/10,RateRatios_accidents!$B$5)*10))","v":46.886226139999998},{"$f":"IF(AND(OR(Calculations!$E$2=\"Orkney Health Board\",Calculations!$E$2=\"Orkney Islands Local Authority\"),$F200=1),0,IF(AND(OR(Calculations!$E$2=\"Shetland Health Board\",Calculations!$E$2=\"Western Isles Health Board\",Calculations!$E$2=\"Shetland Islands Local Authority\",Calculations!$E$2=\"Eilean Siar Local Authority\"),OR($F200=1,$F200=5)),0,new_yllv2(VALUE(LEFT(Options!$B$14,2)),$C200,$D200,$E200,$F200,2016,$I200/10,1,$H200/10,$G200*$H200/10,RateRatios_accidents!$B$5)*10))","v":1894.9722580150001},{"$f":"IF(AND(OR(Calculations!$E$2=\"Orkney Health Board\",Calculations!$E$2=\"Orkney Islands Local Authority\"),$F200=1),0,IF(AND(OR(Calculations!$E$2=\"Shetland Health Board\",Calculations!$E$2=\"Western Isles Health Board\",Calculations!$E$2=\"Shetland Islands Local Authority\",Calculations!$E$2=\"Eilean Siar Local Authority\"),OR($F200=1,$F200=5)),0,new_yllv2(VALUE(LEFT(Options!$B$14,2)),$C200,$D200,$E200,$F200,2016,$I200/10+$J200/10,1,$H200/10,$G200*$H200/10,RateRatios_accidents!$B$5)*10))","v":1894.672398317},{"$f":"IF(AND(OR(Calculations!$E$2=\"Orkney Health Board\",Calculations!$E$2=\"Orkney Islands Local Authority\"),$F200=1),0,IF(AND(OR(Calculations!$E$2=\"Shetland Health Board\",Calculations!$E$2=\"Western Isles Health Board\",Calculations!$E$2=\"Shetland Islands Local Authority\",Calculations!$E$2=\"Eilean Siar Local Authority\"),OR($F200=1,$F200=5)),0,hosp_count(VALUE(LEFT(Options!$B$14,2)),$C200,$E200,$F200,2016,$I200/10,1,$H200/10,$G200*$H200/10, RateRatios_accidents!$B$4, RateRatios_accidents!$B$5)*10))","v":3809.6765630300001},{"$f":"IF(AND(OR(Calculations!$E$2=\"Orkney Health Board\",Calculations!$E$2=\"Orkney Islands Local Authority\"),$F200=1),0,IF(AND(OR(Calculations!$E$2=\"Shetland Health Board\",Calculations!$E$2=\"Western Isles Health Board\",Calculations!$E$2=\"Shetland Islands Local Authority\",Calculations!$E$2=\"Eilean Siar Local Authority\"),OR($F200=1,$F200=5)),0,hosp_count(VALUE(LEFT(Options!$B$14,2)),$C200,$E200,$F200,2016,$I200/10+$J200/10,1,$H200/10,$G200*$H200/10, RateRatios_accidents!$B$4, RateRatios_accidents!$B$5)*10))","v":3809.0732208129998},{"$f":"IF(AND(OR(Calculations!$E$2=\"Orkney Health Board\",Calculations!$E$2=\"Orkney Islands Local Authority\"),$F200=1),0,IF(AND(OR(Calculations!$E$2=\"Shetland Health Board\",Calculations!$E$2=\"Western Isles Health Board\",Calculations!$E$2=\"Shetland Islands Local Authority\",Calculations!$E$2=\"Eilean Siar Local Authority\"),OR($F200=1,$F200=5)),0,prem_mort(VALUE(LEFT(Options!$B$14,2)),$C200,$E200,$F200,2016,$I200/10,1,$H200/10,$G200*$H200/10,RateRatios_accidents!$B$5)*10))","v":46.893646572999998},{"$f":"IF(AND(OR(Calculations!$E$2=\"Orkney Health Board\",Calculations!$E$2=\"Orkney Islands Local Authority\"),$F200=1),0,IF(AND(OR(Calculations!$E$2=\"Shetland Health Board\",Calculations!$E$2=\"Western Isles Health Board\",Calculations!$E$2=\"Shetland Islands Local Authority\",Calculations!$E$2=\"Eilean Siar Local Authority\"),OR($F200=1,$F200=5)),0,prem_mort(VALUE(LEFT(Options!$B$14,2)),$C200,$E200,$F200,2016,$I200/10+$J200/10,1,$H200/10,$G200*$H200/10,RateRatios_accidents!$B$5)*10))","v":46.886226139999998},null,{"$f":"IF(AND(OR(Calculations!$E$2=\"Orkney Health Board\",Calculations!$E$2=\"Orkney Islands Local Authority\"),$F200=1),0,IF(AND(OR(Calculations!$E$2=\"Shetland Health Board\",Calculations!$E$2=\"Western Isles Health Board\",Calculations!$E$2=\"Shetland Islands Local Authority\",Calculations!$E$2=\"Eilean Siar Local Authority\"),OR($F200=1,$F200=5)),0,new_ci(VALUE(LEFT(Options!$B$14,2)),$C200,$E200,$F200,2016,$I200/10,1,$H200/10,$G200*$H200/10,RateRatios_airpollution!$C200)*10))","v":46.893646572999998},{"$f":"IF(AND(OR(Calculations!$E$2=\"Orkney Health Board\",Calculations!$E$2=\"Orkney Islands Local Authority\"),$F200=1),0,IF(AND(OR(Calculations!$E$2=\"Shetland Health Board\",Calculations!$E$2=\"Western Isles Health Board\",Calculations!$E$2=\"Shetland Islands Local Authority\",Calculations!$E$2=\"Eilean Siar Local Authority\"),OR($F200=1,$F200=5)),0,new_ci(VALUE(LEFT(Options!$B$14,2)),$C200,$E200,$F200,2016,$I200/10+$J200/10,1,$H200/10,$G200*$H200/10,RateRatios_airpollution!$C200)*10))","v":46.893181291000005},{"$f":"IF(AND(OR(Calculations!$E$2=\"Orkney Health Board\",Calculations!$E$2=\"Orkney Islands Local Authority\"),$F200=1),0,IF(AND(OR(Calculations!$E$2=\"Shetland Health Board\",Calculations!$E$2=\"Western Isles Health Board\",Calculations!$E$2=\"Shetland Islands Local Authority\",Calculations!$E$2=\"Eilean Siar Local Authority\"),OR($F200=1,$F200=5)),0,new_yllv2(VALUE(LEFT(Options!$B$14,2)),$C200,$D200,$E200,$F200,2016,$I200/10,1,$H200/10,$G200*$H200/10,RateRatios_airpollution!$C200)*10))","v":1894.9722580150001},{"$f":"IF(AND(OR(Calculations!$E$2=\"Orkney Health Board\",Calculations!$E$2=\"Orkney Islands Local Authority\"),$F200=1),0,IF(AND(OR(Calculations!$E$2=\"Shetland Health Board\",Calculations!$E$2=\"Western Isles Health Board\",Calculations!$E$2=\"Shetland Islands Local Authority\",Calculations!$E$2=\"Eilean Siar Local Authority\"),OR($F200=1,$F200=5)),0,new_yllv2(VALUE(LEFT(Options!$B$14,2)),$C200,$D200,$E200,$F200,2016,$I200/10+$J200/10,1,$H200/10,$G200*$H200/10,RateRatios_airpollution!$C200)*10))","v":1894.9534559690001},{"$f":"IF(AND(OR(Calculations!$E$2=\"Orkney Health Board\",Calculations!$E$2=\"Orkney Islands Local Authority\"),$F200=1),0,IF(AND(OR(Calculations!$E$2=\"Shetland Health Board\",Calculations!$E$2=\"Western Isles Health Board\",Calculations!$E$2=\"Shetland Islands Local Authority\",Calculations!$E$2=\"Eilean Siar Local Authority\"),OR($F200=1,$F200=5)),0,hosp_count(VALUE(LEFT(Options!$B$14,2)),$C200,$E200,$F200,2016,$I200/10,1,$H200/10,$G200*$H200/10, RateRatios_airpollution!$D200, RateRatios_airpollution!$C200)*10))","v":3809.6765630300001},{"$f":"IF(AND(OR(Calculations!$E$2=\"Orkney Health Board\",Calculations!$E$2=\"Orkney Islands Local Authority\"),$F200=1),0,IF(AND(OR(Calculations!$E$2=\"Shetland Health Board\",Calculations!$E$2=\"Western Isles Health Board\",Calculations!$E$2=\"Shetland Islands Local Authority\",Calculations!$E$2=\"Eilean Siar Local Authority\"),OR($F200=1,$F200=5)),0,hosp_count(VALUE(LEFT(Options!$B$14,2)),$C200,$E200,$F200,2016,$I200/10+$J200/10,1,$H200/10,$G200*$H200/10, RateRatios_airpollution!$D200, RateRatios_airpollution!$C200)*10))","v":3809.6051263029999},{"$f":"IF(AND(OR(Calculations!$E$2=\"Orkney Health Board\",Calculations!$E$2=\"Orkney Islands Local Authority\"),$F200=1),0,IF(AND(OR(Calculations!$E$2=\"Shetland Health Board\",Calculations!$E$2=\"Western Isles Health Board\",Calculations!$E$2=\"Shetland Islands Local Authority\",Calculations!$E$2=\"Eilean Siar Local Authority\"),OR($F200=1,$F200=5)),0,prem_mort(VALUE(LEFT(Options!$B$14,2)),$C200,$E200,$F200,2016,$I200/10,1,$H200/10,$G200*$H200/10,RateRatios_airpollution!$C200)*10))","v":46.893646572999998},{"$f":"IF(AND(OR(Calculations!$E$2=\"Orkney Health Board\",Calculations!$E$2=\"Orkney Islands Local Authority\"),$F200=1),0,IF(AND(OR(Calculations!$E$2=\"Shetland Health Board\",Calculations!$E$2=\"Western Isles Health Board\",Calculations!$E$2=\"Shetland Islands Local Authority\",Calculations!$E$2=\"Eilean Siar Local Authority\"),OR($F200=1,$F200=5)),0,prem_mort(VALUE(LEFT(Options!$B$14,2)),$C200,$E200,$F200,2016,$I200/10+$J200/10,1,$H200/10,$G200*$H200/10,RateRatios_airpollution!$C200)*10))","v":46.893181291000005},null,{"$f":"IF(AND(OR(Calculations!$E$2=\"Orkney Health Board\",Calculations!$E$2=\"Orkney Islands Local Authority\"),$F200=1),0,IF(AND(OR(Calculations!$E$2=\"Shetland Health Board\",Calculations!$E$2=\"Western Isles Health Board\",Calculations!$E$2=\"Shetland Islands Local Authority\",Calculations!$E$2=\"Eilean Siar Local Authority\"),OR($F200=1,$F200=5)),0,new_ci(VALUE(LEFT(Options!$B$14,2)),$C200,$E200,$F200,2016,$I200/10,1,$H200/10,$G200*$H200/10,RateRatios_airpollution!$E200)*10))","v":46.893646572999998},{"$f":"IF(AND(OR(Calculations!$E$2=\"Orkney Health Board\",Calculations!$E$2=\"Orkney Islands Local Authority\"),$F200=1),0,IF(AND(OR(Calculations!$E$2=\"Shetland Health Board\",Calculations!$E$2=\"Western Isles Health Board\",Calculations!$E$2=\"Shetland Islands Local Authority\",Calculations!$E$2=\"Eilean Siar Local Authority\"),OR($F200=1,$F200=5)),0,new_ci(VALUE(LEFT(Options!$B$14,2)),$C200,$E200,$F200,2016,$I200/10+$J200/10,1,$H200/10,$G200*$H200/10,RateRatios_airpollution!$E200)*10))","v":46.893442458000003},{"$f":"IF(AND(OR(Calculations!$E$2=\"Orkney Health Board\",Calculations!$E$2=\"Orkney Islands Local Authority\"),$F200=1),0,IF(AND(OR(Calculations!$E$2=\"Shetland Health Board\",Calculations!$E$2=\"Western Isles Health Board\",Calculations!$E$2=\"Shetland Islands Local Authority\",Calculations!$E$2=\"Eilean Siar Local Authority\"),OR($F200=1,$F200=5)),0,new_yllv2(VALUE(LEFT(Options!$B$14,2)),$C200,$D200,$E200,$F200,2016,$I200/10,1,$H200/10,$G200*$H200/10,RateRatios_airpollution!$E200)*10))","v":1894.9722580150001},{"$f":"IF(AND(OR(Calculations!$E$2=\"Orkney Health Board\",Calculations!$E$2=\"Orkney Islands Local Authority\"),$F200=1),0,IF(AND(OR(Calculations!$E$2=\"Shetland Health Board\",Calculations!$E$2=\"Western Isles Health Board\",Calculations!$E$2=\"Shetland Islands Local Authority\",Calculations!$E$2=\"Eilean Siar Local Authority\"),OR($F200=1,$F200=5)),0,new_yllv2(VALUE(LEFT(Options!$B$14,2)),$C200,$D200,$E200,$F200,2016,$I200/10+$J200/10,1,$H200/10,$G200*$H200/10,RateRatios_airpollution!$E200)*10))","v":1894.9640097279998},{"$f":"IF(AND(OR(Calculations!$E$2=\"Orkney Health Board\",Calculations!$E$2=\"Orkney Islands Local Authority\"),$F200=1),0,IF(AND(OR(Calculations!$E$2=\"Shetland Health Board\",Calculations!$E$2=\"Western Isles Health Board\",Calculations!$E$2=\"Shetland Islands Local Authority\",Calculations!$E$2=\"Eilean Siar Local Authority\"),OR($F200=1,$F200=5)),0,hosp_count(VALUE(LEFT(Options!$B$14,2)),$C200,$E200,$F200,2016,$I200/10,1,$H200/10,$G200*$H200/10, RateRatios_airpollution!$F200, RateRatios_airpollution!$E200)*10))","v":3809.6765630300001},{"$f":"IF(AND(OR(Calculations!$E$2=\"Orkney Health Board\",Calculations!$E$2=\"Orkney Islands Local Authority\"),$F200=1),0,IF(AND(OR(Calculations!$E$2=\"Shetland Health Board\",Calculations!$E$2=\"Western Isles Health Board\",Calculations!$E$2=\"Shetland Islands Local Authority\",Calculations!$E$2=\"Eilean Siar Local Authority\"),OR($F200=1,$F200=5)),0,hosp_count(VALUE(LEFT(Options!$B$14,2)),$C200,$E200,$F200,2016,$I200/10+$J200/10,1,$H200/10,$G200*$H200/10, RateRatios_airpollution!$F200, RateRatios_airpollution!$E200)*10))","v":3809.6765630300001},{"$f":"IF(AND(OR(Calculations!$E$2=\"Orkney Health Board\",Calculations!$E$2=\"Orkney Islands Local Authority\"),$F200=1),0,IF(AND(OR(Calculations!$E$2=\"Shetland Health Board\",Calculations!$E$2=\"Western Isles Health Board\",Calculations!$E$2=\"Shetland Islands Local Authority\",Calculations!$E$2=\"Eilean Siar Local Authority\"),OR($F200=1,$F200=5)),0,prem_mort(VALUE(LEFT(Options!$B$14,2)),$C200,$E200,$F200,2016,$I200/10,1,$H200/10,$G200*$H200/10,RateRatios_airpollution!$E200)*10))","v":46.893646572999998},{"$f":"IF(AND(OR(Calculations!$E$2=\"Orkney Health Board\",Calculations!$E$2=\"Orkney Islands Local Authority\"),$F200=1),0,IF(AND(OR(Calculations!$E$2=\"Shetland Health Board\",Calculations!$E$2=\"Western Isles Health Board\",Calculations!$E$2=\"Shetland Islands Local Authority\",Calculations!$E$2=\"Eilean Siar Local Authority\"),OR($F200=1,$F200=5)),0,prem_mort(VALUE(LEFT(Options!$B$14,2)),$C200,$E200,$F200,2016,$I200/10+$J200/10,1,$H200/10,$G200*$H200/10,RateRatios_airpollution!$E200)*10))","v":46.893442458000003},46.893646572999998,46.885556743000009,1894.9722580150001,1894.6453479839997,3809.6765630300001,3809.0017840859996,46.893646572999998,46.885556743000009,146.44653999875084,146.42127585959219,5917.9046813497398,5916.8837574841509,11897.431570000937,11895.324268717402,146.44653999875084,146.42127585959219,1025125.7799912558,1024948.9310171453,41425332.769448176,41418186.302389055,83282020.990006566,83267269.881021813,1025125.7799912558,1024948.9310171453,7000]
[null,"Male 40-44",42.067703000000002,78.907700000000006,"male",4,1,{"$f":"HLOOKUP(Calculations!$E$2,'Population 2016'!$C$3:$BC$249,'Population 2016'!BD201,FALSE)","v":34348},0,{"$f":"HLOOKUP(Calculations!$E$2,Pop2016_in_settlements!$C$3:$BC$249,Pop2016_in_settlements!$BD201,FALSE)","v":13333},{"$f":"IF(AND(OR(Calculations!$E$2=\"Orkney Health Board\",Calculations!$E$2=\"Orkney Islands Local Authority\"),$F201=1),0,IF(AND(OR(Calculations!$E$2=\"Shetland Health Board\",Calculations!$E$2=\"Western Isles Health Board\",Calculations!$E$2=\"Shetland Islands Local Authority\",Calculations!$E$2=\"Eilean Siar Local Authority\"),OR($F201=1,$F201=5)),0,new_ci(VALUE(LEFT(Options!$B$14,2)),$C201,$E201,$F201,2016,$I201/10,1,$H201/10,$G201*$H201/10,RateRatios_accidents!$B$5)*10))","v":74.133882619999994},{"$f":"IF(AND(OR(Calculations!$E$2=\"Orkney Health Board\",Calculations!$E$2=\"Orkney Islands Local Authority\"),$F201=1),0,IF(AND(OR(Calculations!$E$2=\"Shetland Health Board\",Calculations!$E$2=\"Western Isles Health Board\",Calculations!$E$2=\"Shetland Islands Local Authority\",Calculations!$E$2=\"Eilean Siar Local Authority\"),OR($F201=1,$F201=5)),0,new_ci(VALUE(LEFT(Options!$B$14,2)),$C201,$E201,$F201,2016,$I201/10+$J201/10,1,$H201/10,$G201*$H201/10,RateRatios_accidents!$B$5)*10))","v":74.122384240999992},{"$f":"IF(AND(OR(Calculations!$E$2=\"Orkney Health Board\",Calculations!$E$2=\"Orkney Islands Local Authority\"),$F201=1),0,IF(AND(OR(Calculations!$E$2=\"Shetland Health Board\",Calculations!$E$2=\"Western Isles Health Board\",Calculations!$E$2=\"Shetland Islands Local Authority\",Calculations!$E$2=\"Eilean Siar Local Authority\"),OR($F201=1,$F201=5)),0,new_yllv2(VALUE(LEFT(Options!$B$14,2)),$C201,$D201,$E201,$F201,2016,$I201/10,1,$H201/10,$G201*$H201/10,RateRatios_accidents!$B$5)*10))","v":2656.9581306989999},{"$f":"IF(AND(OR(Calculations!$E$2=\"Orkney Health Board\",Calculations!$E$2=\"Orkney Islands Local Authority\"),$F201=1),0,IF(AND(OR(Calculations!$E$2=\"Shetland Health Board\",Calculations!$E$2=\"Western Isles Health Board\",Calculations!$E$2=\"Shetland Islands Local Authority\",Calculations!$E$2=\"Eilean Siar Local Authority\"),OR($F201=1,$F201=5)),0,new_yllv2(VALUE(LEFT(Options!$B$14,2)),$C201,$D201,$E201,$F201,2016,$I201/10+$J201/10,1,$H201/10,$G201*$H201/10,RateRatios_accidents!$B$5)*10))","v":2656.5460288300001},{"$f":"IF(AND(OR(Calculations!$E$2=\"Orkney Health Board\",Calculations!$E$2=\"Orkney Islands Local Authority\"),$F201=1),0,IF(AND(OR(Calculations!$E$2=\"Shetland Health Board\",Calculations!$E$2=\"Western Isles Health Board\",Calculations!$E$2=\"Shetland Islands Local Authority\",Calculations!$E$2=\"Eilean Siar Local Authority\"),OR($F201=1,$F201=5)),0,hosp_count(VALUE(LEFT(Options!$B$14,2)),$C201,$E201,$F201,2016,$I201/10,1,$H201/10,$G201*$H201/10, RateRatios_accidents!$B$4, RateRatios_accidents!$B$5)*10))","v":4904.7371514209999},{"$f":"IF(AND(OR(Calculations!$E$2=\"Orkney Health Board\",Calculations!$E$2=\"Orkney Islands Local Authority\"),$F201=1),0,IF(AND(OR(Calculations!$E$2=\"Shetland Health Board\",Calculations!$E$2=\"Western Isles Health Board\",Calculations!$E$2=\"Shetland Islands Local Authority\",Calculations!$E$2=\"Eilean Siar Local Authority\"),OR($F201=1,$F201=5)),0,hosp_count(VALUE(LEFT(Options!$B$14,2)),$C201,$E201,$F201,2016,$I201/10+$J201/10,1,$H201/10,$G201*$H201/10, RateRatios_accidents!$B$4, RateRatios_accidents!$B$5)*10))","v":4903.9755944609997},{"$f":"IF(AND(OR(Calculations!$E$2=\"Orkney Health Board\",Calculations!$E$2=\"Orkney Islands Local Authority\"),$F201=1),0,IF(AND(OR(Calculations!$E$2=\"Shetland Health Board\",Calculations!$E$2=\"Western Isles Health Board\",Calculations!$E$2=\"Shetland Islands Local Authority\",Calculations!$E$2=\"Eilean Siar Local Authority\"),OR($F201=1,$F201=5)),0,prem_mort(VALUE(LEFT(Options!$B$14,2)),$C201,$E201,$F201,2016,$I201/10,1,$H201/10,$G201*$H201/10,RateRatios_accidents!$B$5)*10))","v":74.133882619999994},{"$f":"IF(AND(OR(Calculations!$E$2=\"Orkney Health Board\",Calculations!$E$2=\"Orkney Islands Local Authority\"),$F201=1),0,IF(AND(OR(Calculations!$E$2=\"Shetland Health Board\",Calculations!$E$2=\"Western Isles Health Board\",Calculations!$E$2=\"Shetland Islands Local Authority\",Calculations!$E$2=\"Eilean Siar Local Authority\"),OR($F201=1,$F201=5)),0,prem_mort(VALUE(LEFT(Options!$B$14,2)),$C201,$E201,$F201,2016,$I201/10+$J201/10,1,$H201/10,$G201*$H201/10,RateRatios_accidents!$B$5)*10))","v":74.122384240999992},null,{"$f":"IF(AND(OR(Calculations!$E$2=\"Orkney Health Board\",Calculations!$E$2=\"Orkney Islands Local Authority\"),$F201=1),0,IF(AND(OR(Calculations!$E$2=\"Shetland Health Board\",Calculations!$E$2=\"Western Isles Health Board\",Calculations!$E$2=\"Shetland Islands Local Authority\",Calculations!$E$2=\"Eilean Siar Local Authority\"),OR($F201=1,$F201=5)),0,new_ci(VALUE(LEFT(Options!$B$14,2)),$C201,$E201,$F201,2016,$I201/10,1,$H201/10,$G201*$H201/10,RateRatios_airpollution!$C201)*10))","v":74.133882619999994},{"$f":"IF(AND(OR(Calculations!$E$2=\"Orkney Health Board\",Calculations!$E$2=\"Orkney Islands Local Authority\"),$F201=1),0,IF(AND(OR(Calculations!$E$2=\"Shetland Health Board\",Calculations!$E$2=\"Western Isles Health Board\",Calculations!$E$2=\"Shetland Islands Local Authority\",Calculations!$E$2=\"Eilean Siar Local Authority\"),OR($F201=1,$F201=5)),0,new_ci(VALUE(LEFT(Options!$B$14,2)),$C201,$E201,$F201,2016,$I201/10+$J201/10,1,$H201/10,$G201*$H201/10,RateRatios_airpollution!$C201)*10))","v":74.133221304000003},{"$f":"IF(AND(OR(Calculations!$E$2=\"Orkney Health Board\",Calculations!$E$2=\"Orkney Islands Local Authority\"),$F201=1),0,IF(AND(OR(Calculations!$E$2=\"Shetland Health Board\",Calculations!$E$2=\"Western Isles Health Board\",Calculations!$E$2=\"Shetland Islands Local Authority\",Calculations!$E$2=\"Eilean Siar Local Authority\"),OR($F201=1,$F201=5)),0,new_yllv2(VALUE(LEFT(Options!$B$14,2)),$C201,$D201,$E201,$F201,2016,$I201/10,1,$H201/10,$G201*$H201/10,RateRatios_airpollution!$C201)*10))","v":2656.9581306989999},{"$f":"IF(AND(OR(Calculations!$E$2=\"Orkney Health Board\",Calculations!$E$2=\"Orkney Islands Local Authority\"),$F201=1),0,IF(AND(OR(Calculations!$E$2=\"Shetland Health Board\",Calculations!$E$2=\"Western Isles Health Board\",Calculations!$E$2=\"Shetland Islands Local Authority\",Calculations!$E$2=\"Eilean Siar Local Authority\"),OR($F201=1,$F201=5)),0,new_yllv2(VALUE(LEFT(Options!$B$14,2)),$C201,$D201,$E201,$F201,2016,$I201/10+$J201/10,1,$H201/10,$G201*$H201/10,RateRatios_airpollution!$C201)*10))","v":2656.9344291359998},{"$f":"IF(AND(OR(Calculations!$E$2=\"Orkney Health Board\",Calculations!$E$2=\"Orkney Islands Local Authority\"),$F201=1),0,IF(AND(OR(Calculations!$E$2=\"Shetland Health Board\",Calculations!$E$2=\"Western Isles Health Board\",Calculations!$E$2=\"Shetland Islands Local Authority\",Calculations!$E$2=\"Eilean Siar Local Authority\"),OR($F201=1,$F201=5)),0,hosp_count(VALUE(LEFT(Options!$B$14,2)),$C201,$E201,$F201,2016,$I201/10,1,$H201/10,$G201*$H201/10, RateRatios_airpollution!$D201, RateRatios_airpollution!$C201)*10))","v":4904.7371514209999},{"$f":"IF(AND(OR(Calculations!$E$2=\"Orkney Health Board\",Calculations!$E$2=\"Orkney Islands Local Authority\"),$F201=1),0,IF(AND(OR(Calculations!$E$2=\"Shetland Health Board\",Calculations!$E$2=\"Western Isles Health Board\",Calculations!$E$2=\"Shetland Islands Local Authority\",Calculations!$E$2=\"Eilean Siar Local Authority\"),OR($F201=1,$F201=5)),0,hosp_count(VALUE(LEFT(Options!$B$14,2)),$C201,$E201,$F201,2016,$I201/10+$J201/10,1,$H201/10,$G201*$H201/10, RateRatios_airpollution!$D201, RateRatios_airpollution!$C201)*10))","v":4904.6545841520001},{"$f":"IF(AND(OR(Calculations!$E$2=\"Orkney Health Board\",Calculations!$E$2=\"Orkney Islands Local Authority\"),$F201=1),0,IF(AND(OR(Calculations!$E$2=\"Shetland Health Board\",Calculations!$E$2=\"Western Isles Health Board\",Calculations!$E$2=\"Shetland Islands Local Authority\",Calculations!$E$2=\"Eilean Siar Local Authority\"),OR($F201=1,$F201=5)),0,prem_mort(VALUE(LEFT(Options!$B$14,2)),$C201,$E201,$F201,2016,$I201/10,1,$H201/10,$G201*$H201/10,RateRatios_airpollution!$C201)*10))","v":74.133882619999994},{"$f":"IF(AND(OR(Calculations!$E$2=\"Orkney Health Board\",Calculations!$E$2=\"Orkney Islands Local Authority\"),$F201=1),0,IF(AND(OR(Calculations!$E$2=\"Shetland Health Board\",Calculations!$E$2=\"Western Isles Health Board\",Calculations!$E$2=\"Shetland Islands Local Authority\",Calculations!$E$2=\"Eilean Siar Local Authority\"),OR($F201=1,$F201=5)),0,prem_mort(VALUE(LEFT(Options!$B$14,2)),$C201,$E201,$F201,2016,$I201/10+$J201/10,1,$H201/10,$G201*$H201/10,RateRatios_airpollution!$C201)*10))","v":74.133221304000003},null,{"$f":"IF(AND(OR(Calculations!$E$2=\"Orkney Health Board\",Calculations!$E$2=\"Orkney Islands Local Authority\"),$F201=1),0,IF(AND(OR(Calculations!$E$2=\"Shetland Health Board\",Calculations!$E$2=\"Western Isles Health Board\",Calculations!$E$2=\"Shetland Islands Local Authority\",Calculations!$E$2=\"Eilean Siar Local Authority\"),OR($F201=1,$F201=5)),0,new_ci(VALUE(LEFT(Options!$B$14,2)),$C201,$E201,$F201,2016,$I201/10,1,$H201/10,$G201*$H201/10,RateRatios_airpollution!$E201)*10))","v":74.133882619999994},{"$f":"IF(AND(OR(Calculations!$E$2=\"Orkney Health Board\",Calculations!$E$2=\"Orkney Islands Local Authority\"),$F201=1),0,IF(AND(OR(Calculations!$E$2=\"Shetland Health Board\",Calculations!$E$2=\"Western Isles Health Board\",Calculations!$E$2=\"Shetland Islands Local Authority\",Calculations!$E$2=\"Eilean Siar Local Authority\"),OR($F201=1,$F201=5)),0,new_ci(VALUE(LEFT(Options!$B$14,2)),$C201,$E201,$F201,2016,$I201/10+$J201/10,1,$H201/10,$G201*$H201/10,RateRatios_airpollution!$E201)*10))","v":74.133590627999993},{"$f":"IF(AND(OR(Calculations!$E$2=\"Orkney Health Board\",Calculations!$E$2=\"Orkney Islands Local Authority\"),$F201=1),0,IF(AND(OR(Calculations!$E$2=\"Shetland Health Board\",Calculations!$E$2=\"Western Isles Health Board\",Calculations!$E$2=\"Shetland Islands Local Authority\",Calculations!$E$2=\"Eilean Siar Local Authority\"),OR($F201=1,$F201=5)),0,new_yllv2(VALUE(LEFT(Options!$B$14,2)),$C201,$D201,$E201,$F201,2016,$I201/10,1,$H201/10,$G201*$H201/10,RateRatios_airpollution!$E201)*10))","v":2656.9581306989999},{"$f":"IF(AND(OR(Calculations!$E$2=\"Orkney Health Board\",Calculations!$E$2=\"Orkney Islands Local Authority\"),$F201=1),0,IF(AND(OR(Calculations!$E$2=\"Shetland Health Board\",Calculations!$E$2=\"Western Isles Health Board\",Calculations!$E$2=\"Shetland Islands Local Authority\",Calculations!$E$2=\"Eilean Siar Local Authority\"),OR($F201=1,$F201=5)),0,new_yllv2(VALUE(LEFT(Options!$B$14,2)),$C201,$D201,$E201,$F201,2016,$I201/10+$J201/10,1,$H201/10,$G201*$H201/10,RateRatios_airpollution!$E201)*10))","v":2656.9476657069999},{"$f":"IF(AND(OR(Calculations!$E$2=\"Orkney Health Board\",Calculations!$E$2=\"Orkney Islands Local Authority\"),$F201=1),0,IF(AND(OR(Calculations!$E$2=\"Shetland Health Board\",Calculations!$E$2=\"Western Isles Health Board\",Calculations!$E$2=\"Shetland Islands Local Authority\",Calculations!$E$2=\"Eilean Siar Local Authority\"),OR($F201=1,$F201=5)),0,hosp_count(VALUE(LEFT(Options!$B$14,2)),$C201,$E201,$F201,2016,$I201/10,1,$H201/10,$G201*$H201/10, RateRatios_airpollution!$F201, RateRatios_airpollution!$E201)*10))","v":4904.7371514209999},{"$f":"IF(AND(OR(Calculations!$E$2=\"Orkney Health Board\",Calculations!$E$2=\"Orkney Islands Local Authority\"),$F201=1),0,IF(AND(OR(Calculations!$E$2=\"Shetland Health Board\",Calculations!$E$2=\"Western Isles Health Board\",Calculations!$E$2=\"Shetland Islands Local Authority\",Calculations!$E$2=\"Eilean Siar Local Authority\"),OR($F201=1,$F201=5)),0,hosp_count(VALUE(LEFT(Options!$B$14,2)),$C201,$E201,$F201,2016,$I201/10+$J201/10,1,$H201/10,$G201*$H201/10, RateRatios_airpollution!$F201, RateRatios_airpollution!$E201)*10))","v":4904.7371514209999},{"$f":"IF(AND(OR(Calculations!$E$2=\"Orkney Health Board\",Calculations!$E$2=\"Orkney Islands Local Authority\"),$F201=1),0,IF(AND(OR(Calculations!$E$2=\"Shetland Health Board\",Calculations!$E$2=\"Western Isles Health Board\",Calculations!$E$2=\"Shetland Islands Local Authority\",Calculations!$E$2=\"Eilean Siar Local Authority\"),OR($F201=1,$F201=5)),0,prem_mort(VALUE(LEFT(Options!$B$14,2)),$C201,$E201,$F201,2016,$I201/10,1,$H201/10,$G201*$H201/10,RateRatios_airpollution!$E201)*10))","v":74.133882619999994},{"$f":"IF(AND(OR(Calculations!$E$2=\"Orkney Health Board\",Calculations!$E$2=\"Orkney Islands Local Authority\"),$F201=1),0,IF(AND(OR(Calculations!$E$2=\"Shetland Health Board\",Calculations!$E$2=\"Western Isles Health Board\",Calculations!$E$2=\"Shetland Islands Local Authority\",Calculations!$E$2=\"Eilean Siar Local Authority\"),OR($F201=1,$F201=5)),0,prem_mort(VALUE(LEFT(Options!$B$14,2)),$C201,$E201,$F201,2016,$I201/10+$J201/10,1,$H201/10,$G201*$H201/10,RateRatios_airpollution!$E201)*10))","v":74.133590627999993},74.133882619999994,74.121430932999999,2656.9581306989999,2656.5118622750001,4904.7371514209999,4903.8930271919999,74.133882619999994,74.121430932999999,215.83172999883541,215.79547843542565,7735.4085556626287,7734.1092997408878,14279.542189999416,14277.084625573541,215.83172999883541,215.79547843542565,1510822.109991848,1510568.3490479796,54147859.889638402,54138765.098186217,99956795.329995915,99939592.37901479,1510822.109991848,1510568.3490479796,7000]
[null,"Male 45-49",47.038155000000003,79.418149999999997,"male",4,1,{"$f":"HLOOKUP(Calculations!$E$2,'Population 2016'!$C$3:$BC$249,'Population 2016'!BD202,FALSE)","v":39846},0,{"$f":"HLOOKUP(Calculations!$E$2,Pop2016_in_settlements!$C$3:$BC$249,Pop2016_in_settlements!$BD202,FALSE)","v":15271},{"$f":"IF(AND(OR(Calculations!$E$2=\"Orkney Health Board\",Calculations!$E$2=\"Orkney Islands Local Authority\"),$F202=1),0,IF(AND(OR(Calculations!$E$2=\"Shetland Health Board\",Calculations!$E$2=\"Western Isles Health Board\",Calculations!$E$2=\"Shetland Islands Local Authority\",Calculations!$E$2=\"Eilean Siar Local Authority\"),OR($F202=1,$F202=5)),0,new_ci(VALUE(LEFT(Options!$B$14,2)),$C202,$E202,$F202,2016,$I202/10,1,$H202/10,$G202*$H202/10,RateRatios_accidents!$B$5)*10))","v":125.10043784600001},{"$f":"IF(AND(OR(Calculations!$E$2=\"Orkney Health Board\",Calculations!$E$2=\"Orkney Islands Local Authority\"),$F202=1),0,IF(AND(OR(Calculations!$E$2=\"Shetland Health Board\",Calculations!$E$2=\"Western Isles Health Board\",Calculations!$E$2=\"Shetland Islands Local Authority\",Calculations!$E$2=\"Eilean Siar Local Authority\"),OR($F202=1,$F202=5)),0,new_ci(VALUE(LEFT(Options!$B$14,2)),$C202,$E202,$F202,2016,$I202/10+$J202/10,1,$H202/10,$G202*$H202/10,RateRatios_accidents!$B$5)*10))","v":125.081291067},{"$f":"IF(AND(OR(Calculations!$E$2=\"Orkney Health Board\",Calculations!$E$2=\"Orkney Islands Local Authority\"),$F202=1),0,IF(AND(OR(Calculations!$E$2=\"Shetland Health Board\",Calculations!$E$2=\"Western Isles Health Board\",Calculations!$E$2=\"Shetland Islands Local Authority\",Calculations!$E$2=\"Eilean Siar Local Authority\"),OR($F202=1,$F202=5)),0,new_yllv2(VALUE(LEFT(Options!$B$14,2)),$C202,$D202,$E202,$F202,2016,$I202/10,1,$H202/10,$G202*$H202/10,RateRatios_accidents!$B$5)*10))","v":3925.6511141049996},{"$f":"IF(AND(OR(Calculations!$E$2=\"Orkney Health Board\",Calculations!$E$2=\"Orkney Islands Local Authority\"),$F202=1),0,IF(AND(OR(Calculations!$E$2=\"Shetland Health Board\",Calculations!$E$2=\"Western Isles Health Board\",Calculations!$E$2=\"Shetland Islands Local Authority\",Calculations!$E$2=\"Eilean Siar Local Authority\"),OR($F202=1,$F202=5)),0,new_yllv2(VALUE(LEFT(Options!$B$14,2)),$C202,$D202,$E202,$F202,2016,$I202/10+$J202/10,1,$H202/10,$G202*$H202/10,RateRatios_accidents!$B$5)*10))","v":3925.0502882759997},{"$f":"IF(AND(OR(Calculations!$E$2=\"Orkney Health Board\",Calculations!$E$2=\"Orkney Islands Local Authority\"),$F202=1),0,IF(AND(OR(Calculations!$E$2=\"Shetland Health Board\",Calculations!$E$2=\"Western Isles Health Board\",Calculations!$E$2=\"Shetland Islands Local Authority\",Calculations!$E$2=\"Eilean Siar Local Authority\"),OR($F202=1,$F202=5)),0,hosp_count(VALUE(LEFT(Options!$B$14,2)),$C202,$E202,$F202,2016,$I202/10,1,$H202/10,$G202*$H202/10, RateRatios_accidents!$B$4, RateRatios_accidents!$B$5)*10))","v":6787.6640703320008},{"$f":"IF(AND(OR(Calculations!$E$2=\"Orkney Health Board\",Calculations!$E$2=\"Orkney Islands Local Authority\"),$F202=1),0,IF(AND(OR(Calculations!$E$2=\"Shetland Health Board\",Calculations!$E$2=\"Western Isles Health Board\",Calculations!$E$2=\"Shetland Islands Local Authority\",Calculations!$E$2=\"Eilean Siar Local Authority\"),OR($F202=1,$F202=5)),0,hosp_count(VALUE(LEFT(Options!$B$14,2)),$C202,$E202,$F202,2016,$I202/10+$J202/10,1,$H202/10,$G202*$H202/10, RateRatios_accidents!$B$4, RateRatios_accidents!$B$5)*10))","v":6786.6235196629996},{"$f":"IF(AND(OR(Calculations!$E$2=\"Orkney Health Board\",Calculations!$E$2=\"Orkney Islands Local Authority\"),$F202=1),0,IF(AND(OR(Calculations!$E$2=\"Shetland Health Board\",Calculations!$E$2=\"Western Isles Health Board\",Calculations!$E$2=\"Shetland Islands Local Authority\",Calculations!$E$2=\"Eilean Siar Local Authority\"),OR($F202=1,$F202=5)),0,prem_mort(VALUE(LEFT(Options!$B$14,2)),$C202,$E202,$F202,2016,$I202/10,1,$H202/10,$G202*$H202/10,RateRatios_accidents!$B$5)*10))","v":125.10043784600001},{"$f":"IF(AND(OR(Calculations!$E$2=\"Orkney Health Board\",Calculations!$E$2=\"Orkney Islands Local Authority\"),$F202=1),0,IF(AND(OR(Calculations!$E$2=\"Shetland Health Board\",Calculations!$E$2=\"Western Isles Health Board\",Calculations!$E$2=\"Shetland Islands Local Authority\",Calculations!$E$2=\"Eilean Siar Local Authority\"),OR($F202=1,$F202=5)),0,prem_mort(VALUE(LEFT(Options!$B$14,2)),$C202,$E202,$F202,2016,$I202/10+$J202/10,1,$H202/10,$G202*$H202/10,RateRatios_accidents!$B$5)*10))","v":125.081291067},null,{"$f":"IF(AND(OR(Calculations!$E$2=\"Orkney Health Board\",Calculations!$E$2=\"Orkney Islands Local Authority\"),$F202=1),0,IF(AND(OR(Calculations!$E$2=\"Shetland Health Board\",Calculations!$E$2=\"Western Isles Health Board\",Calculations!$E$2=\"Shetland Islands Local Authority\",Calculations!$E$2=\"Eilean Siar Local Authority\"),OR($F202=1,$F202=5)),0,new_ci(VALUE(LEFT(Options!$B$14,2)),$C202,$E202,$F202,2016,$I202/10,1,$H202/10,$G202*$H202/10,RateRatios_airpollution!$C202)*10))","v":125.10043784600001},{"$f":"IF(AND(OR(Calculations!$E$2=\"Orkney Health Board\",Calculations!$E$2=\"Orkney Islands Local Authority\"),$F202=1),0,IF(AND(OR(Calculations!$E$2=\"Shetland Health Board\",Calculations!$E$2=\"Western Isles Health Board\",Calculations!$E$2=\"Shetland Islands Local Authority\",Calculations!$E$2=\"Eilean Siar Local Authority\"),OR($F202=1,$F202=5)),0,new_ci(VALUE(LEFT(Options!$B$14,2)),$C202,$E202,$F202,2016,$I202/10+$J202/10,1,$H202/10,$G202*$H202/10,RateRatios_airpollution!$C202)*10))","v":125.099419271},{"$f":"IF(AND(OR(Calculations!$E$2=\"Orkney Health Board\",Calculations!$E$2=\"Orkney Islands Local Authority\"),$F202=1),0,IF(AND(OR(Calculations!$E$2=\"Shetland Health Board\",Calculations!$E$2=\"Western Isles Health Board\",Calculations!$E$2=\"Shetland Islands Local Authority\",Calculations!$E$2=\"Eilean Siar Local Authority\"),OR($F202=1,$F202=5)),0,new_yllv2(VALUE(LEFT(Options!$B$14,2)),$C202,$D202,$E202,$F202,2016,$I202/10,1,$H202/10,$G202*$H202/10,RateRatios_airpollution!$C202)*10))","v":3925.6511141049996},{"$f":"IF(AND(OR(Calculations!$E$2=\"Orkney Health Board\",Calculations!$E$2=\"Orkney Islands Local Authority\"),$F202=1),0,IF(AND(OR(Calculations!$E$2=\"Shetland Health Board\",Calculations!$E$2=\"Western Isles Health Board\",Calculations!$E$2=\"Shetland Islands Local Authority\",Calculations!$E$2=\"Eilean Siar Local Authority\"),OR($F202=1,$F202=5)),0,new_yllv2(VALUE(LEFT(Options!$B$14,2)),$C202,$D202,$E202,$F202,2016,$I202/10+$J202/10,1,$H202/10,$G202*$H202/10,RateRatios_airpollution!$C202)*10))","v":3925.6191512269997},{"$f":"IF(AND(OR(Calculations!$E$2=\"Orkney Health Board\",Calculations!$E$2=\"Orkney Islands Local Authority\"),$F202=1),0,IF(AND(OR(Calculations!$E$2=\"Shetland Health Board\",Calculations!$E$2=\"Western Isles Health Board\",Calculations!$E$2=\"Shetland Islands Local Authority\",Calculations!$E$2=\"Eilean Siar Local Authority\"),OR($F202=1,$F202=5)),0,hosp_count(VALUE(LEFT(Options!$B$14,2)),$C202,$E202,$F202,2016,$I202/10,1,$H202/10,$G202*$H202/10, RateRatios_airpollution!$D202, RateRatios_airpollution!$C202)*10))","v":6787.6640703320008},{"$f":"IF(AND(OR(Calculations!$E$2=\"Orkney Health Board\",Calculations!$E$2=\"Orkney Islands Local Authority\"),$F202=1),0,IF(AND(OR(Calculations!$E$2=\"Shetland Health Board\",Calculations!$E$2=\"Western Isles Health Board\",Calculations!$E$2=\"Shetland Islands Local Authority\",Calculations!$E$2=\"Eilean Siar Local Authority\"),OR($F202=1,$F202=5)),0,hosp_count(VALUE(LEFT(Options!$B$14,2)),$C202,$E202,$F202,2016,$I202/10+$J202/10,1,$H202/10,$G202*$H202/10, RateRatios_airpollution!$D202, RateRatios_airpollution!$C202)*10))","v":6787.5597999440006},{"$f":"IF(AND(OR(Calculations!$E$2=\"Orkney Health Board\",Calculations!$E$2=\"Orkney Islands Local Authority\"),$F202=1),0,IF(AND(OR(Calculations!$E$2=\"Shetland Health Board\",Calculations!$E$2=\"Western Isles Health Board\",Calculations!$E$2=\"Shetland Islands Local Authority\",Calculations!$E$2=\"Eilean Siar Local Authority\"),OR($F202=1,$F202=5)),0,prem_mort(VALUE(LEFT(Options!$B$14,2)),$C202,$E202,$F202,2016,$I202/10,1,$H202/10,$G202*$H202/10,RateRatios_airpollution!$C202)*10))","v":125.10043784600001},{"$f":"IF(AND(OR(Calculations!$E$2=\"Orkney Health Board\",Calculations!$E$2=\"Orkney Islands Local Authority\"),$F202=1),0,IF(AND(OR(Calculations!$E$2=\"Shetland Health Board\",Calculations!$E$2=\"Western Isles Health Board\",Calculations!$E$2=\"Shetland Islands Local Authority\",Calculations!$E$2=\"Eilean Siar Local Authority\"),OR($F202=1,$F202=5)),0,prem_mort(VALUE(LEFT(Options!$B$14,2)),$C202,$E202,$F202,2016,$I202/10+$J202/10,1,$H202/10,$G202*$H202/10,RateRatios_airpollution!$C202)*10))","v":125.099419271},null,{"$f":"IF(AND(OR(Calculations!$E$2=\"Orkney Health Board\",Calculations!$E$2=\"Orkney Islands Local Authority\"),$F202=1),0,IF(AND(OR(Calculations!$E$2=\"Shetland Health Board\",Calculations!$E$2=\"Western Isles Health Board\",Calculations!$E$2=\"Shetland Islands Local Authority\",Calculations!$E$2=\"Eilean Siar Local Authority\"),OR($F202=1,$F202=5)),0,new_ci(VALUE(LEFT(Options!$B$14,2)),$C202,$E202,$F202,2016,$I202/10,1,$H202/10,$G202*$H202/10,RateRatios_airpollution!$E202)*10))","v":125.10043784600001},{"$f":"IF(AND(OR(Calculations!$E$2=\"Orkney Health Board\",Calculations!$E$2=\"Orkney Islands Local Authority\"),$F202=1),0,IF(AND(OR(Calculations!$E$2=\"Shetland Health Board\",Calculations!$E$2=\"Western Isles Health Board\",Calculations!$E$2=\"Shetland Islands Local Authority\",Calculations!$E$2=\"Eilean Siar Local Authority\"),OR($F202=1,$F202=5)),0,new_ci(VALUE(LEFT(Options!$B$14,2)),$C202,$E202,$F202,2016,$I202/10+$J202/10,1,$H202/10,$G202*$H202/10,RateRatios_airpollution!$E202)*10))","v":125.09998277099999},{"$f":"IF(AND(OR(Calculations!$E$2=\"Orkney Health Board\",Calculations!$E$2=\"Orkney Islands Local Authority\"),$F202=1),0,IF(AND(OR(Calculations!$E$2=\"Shetland Health Board\",Calculations!$E$2=\"Western Isles Health Board\",Calculations!$E$2=\"Shetland Islands Local Authority\",Calculations!$E$2=\"Eilean Siar Local Authority\"),OR($F202=1,$F202=5)),0,new_yllv2(VALUE(LEFT(Options!$B$14,2)),$C202,$D202,$E202,$F202,2016,$I202/10,1,$H202/10,$G202*$H202/10,RateRatios_airpollution!$E202)*10))","v":3925.6511141049996},{"$f":"IF(AND(OR(Calculations!$E$2=\"Orkney Health Board\",Calculations!$E$2=\"Orkney Islands Local Authority\"),$F202=1),0,IF(AND(OR(Calculations!$E$2=\"Shetland Health Board\",Calculations!$E$2=\"Western Isles Health Board\",Calculations!$E$2=\"Shetland Islands Local Authority\",Calculations!$E$2=\"Eilean Siar Local Authority\"),OR($F202=1,$F202=5)),0,new_yllv2(VALUE(LEFT(Options!$B$14,2)),$C202,$D202,$E202,$F202,2016,$I202/10+$J202/10,1,$H202/10,$G202*$H202/10,RateRatios_airpollution!$E202)*10))","v":3925.6368338540001},{"$f":"IF(AND(OR(Calculations!$E$2=\"Orkney Health Board\",Calculations!$E$2=\"Orkney Islands Local Authority\"),$F202=1),0,IF(AND(OR(Calculations!$E$2=\"Shetland Health Board\",Calculations!$E$2=\"Western Isles Health Board\",Calculations!$E$2=\"Shetland Islands Local Authority\",Calculations!$E$2=\"Eilean Siar Local Authority\"),OR($F202=1,$F202=5)),0,hosp_count(VALUE(LEFT(Options!$B$14,2)),$C202,$E202,$F202,2016,$I202/10,1,$H202/10,$G202*$H202/10, RateRatios_airpollution!$F202, RateRatios_airpollution!$E202)*10))","v":6787.6640703320008},{"$f":"IF(AND(OR(Calculations!$E$2=\"Orkney Health Board\",Calculations!$E$2=\"Orkney Islands Local Authority\"),$F202=1),0,IF(AND(OR(Calculations!$E$2=\"Shetland Health Board\",Calculations!$E$2=\"Western Isles Health Board\",Calculations!$E$2=\"Shetland Islands Local Authority\",Calculations!$E$2=\"Eilean Siar Local Authority\"),OR($F202=1,$F202=5)),0,hosp_count(VALUE(LEFT(Options!$B$14,2)),$C202,$E202,$F202,2016,$I202/10+$J202/10,1,$H202/10,$G202*$H202/10, RateRatios_airpollution!$F202, RateRatios_airpollution!$E202)*10))","v":6787.6640703320008},{"$f":"IF(AND(OR(Calculations!$E$2=\"Orkney Health Board\",Calculations!$E$2=\"Orkney Islands Local Authority\"),$F202=1),0,IF(AND(OR(Calculations!$E$2=\"Shetland Health Board\",Calculations!$E$2=\"Western Isles Health Board\",Calculations!$E$2=\"Shetland Islands Local Authority\",Calculations!$E$2=\"Eilean Siar Local Authority\"),OR($F202=1,$F202=5)),0,prem_mort(VALUE(LEFT(Options!$B$14,2)),$C202,$E202,$F202,2016,$I202/10,1,$H202/10,$G202*$H202/10,RateRatios_airpollution!$E202)*10))","v":125.10043784600001},{"$f":"IF(AND(OR(Calculations!$E$2=\"Orkney Health Board\",Calculations!$E$2=\"Orkney Islands Local Authority\"),$F202=1),0,IF(AND(OR(Calculations!$E$2=\"Shetland Health Board\",Calculations!$E$2=\"Western Isles Health Board\",Calculations!$E$2=\"Shetland Islands Local Authority\",Calculations!$E$2=\"Eilean Siar Local Authority\"),OR($F202=1,$F202=5)),0,prem_mort(VALUE(LEFT(Options!$B$14,2)),$C202,$E202,$F202,2016,$I202/10+$J202/10,1,$H202/10,$G202*$H202/10,RateRatios_airpollution!$E202)*10))","v":125.09998277099999},125.10043784600001,125.07981741699997,3925.6511141049996,3925.0040451470004,6787.6640703320008,6786.5192492749993,125.10043784600001,125.07981741699997,313.95983999899613,313.90808968779794,9852.058209368568,9850.4342848642282,17034.743939998996,17031.870825867085,313.95983999899613,313.90808968779794,2197718.8799929731,2197356.6278145858,68964407.465579972,68953039.994049594,119243207.57999298,119223095.78106959,2197718.8799929731,2197356.6278145858,7000]
[null,"Male 50-54",51.998646000000001,79.988649999999993,"male",4,1,{"$f":"HLOOKUP(Calculations!$E$2,'Population 2016'!$C$3:$BC$249,'Population 2016'!BD203,FALSE)","v":42258},0,{"$f":"HLOOKUP(Calculations!$E$2,Pop2016_in_settlements!$C$3:$BC$249,Pop2016_in_settlements!$BD203,FALSE)","v":16042},{"$f":"IF(AND(OR(Calculations!$E$2=\"Orkney Health Board\",Calculations!$E$2=\"Orkney Islands Local Authority\"),$F203=1),0,IF(AND(OR(Calculations!$E$2=\"Shetland Health Board\",Calculations!$E$2=\"Western Isles Health Board\",Calculations!$E$2=\"Shetland Islands Local Authority\",Calculations!$E$2=\"Eilean Siar Local Authority\"),OR($F203=1,$F203=5)),0,new_ci(VALUE(LEFT(Options!$B$14,2)),$C203,$E203,$F203,2016,$I203/10,1,$H203/10,$G203*$H203/10,RateRatios_accidents!$B$5)*10))","v":192.805235189},{"$f":"IF(AND(OR(Calculations!$E$2=\"Orkney Health Board\",Calculations!$E$2=\"Orkney Islands Local Authority\"),$F203=1),0,IF(AND(OR(Calculations!$E$2=\"Shetland Health Board\",Calculations!$E$2=\"Western Isles Health Board\",Calculations!$E$2=\"Shetland Islands Local Authority\",Calculations!$E$2=\"Eilean Siar Local Authority\"),OR($F203=1,$F203=5)),0,new_ci(VALUE(LEFT(Options!$B$14,2)),$C203,$E203,$F203,2016,$I203/10+$J203/10,1,$H203/10,$G203*$H203/10,RateRatios_accidents!$B$5)*10))","v":192.77602431100001},{"$f":"IF(AND(OR(Calculations!$E$2=\"Orkney Health Board\",Calculations!$E$2=\"Orkney Islands Local Authority\"),$F203=1),0,IF(AND(OR(Calculations!$E$2=\"Shetland Health Board\",Calculations!$E$2=\"Western Isles Health Board\",Calculations!$E$2=\"Shetland Islands Local Authority\",Calculations!$E$2=\"Eilean Siar Local Authority\"),OR($F203=1,$F203=5)),0,new_yllv2(VALUE(LEFT(Options!$B$14,2)),$C203,$D203,$E203,$F203,2016,$I203/10,1,$H203/10,$G203*$H203/10,RateRatios_accidents!$B$5)*10))","v":5203.8140689720003},{"$f":"IF(AND(OR(Calculations!$E$2=\"Orkney Health Board\",Calculations!$E$2=\"Orkney Islands Local Authority\"),$F203=1),0,IF(AND(OR(Calculations!$E$2=\"Shetland Health Board\",Calculations!$E$2=\"Western Isles Health Board\",Calculations!$E$2=\"Shetland Islands Local Authority\",Calculations!$E$2=\"Eilean Siar Local Authority\"),OR($F203=1,$F203=5)),0,new_yllv2(VALUE(LEFT(Options!$B$14,2)),$C203,$D203,$E203,$F203,2016,$I203/10+$J203/10,1,$H203/10,$G203*$H203/10,RateRatios_accidents!$B$5)*10))","v":5203.0256672579999},{"$f":"IF(AND(OR(Calculations!$E$2=\"Orkney Health Board\",Calculations!$E$2=\"Orkney Islands Local Authority\"),$F203=1),0,IF(AND(OR(Calculations!$E$2=\"Shetland Health Board\",Calculations!$E$2=\"Western Isles Health Board\",Calculations!$E$2=\"Shetland Islands Local Authority\",Calculations!$E$2=\"Eilean Siar Local Authority\"),OR($F203=1,$F203=5)),0,hosp_count(VALUE(LEFT(Options!$B$14,2)),$C203,$E203,$F203,2016,$I203/10,1,$H203/10,$G203*$H203/10, RateRatios_accidents!$B$4, RateRatios_accidents!$B$5)*10))","v":8584.4469732439993},{"$f":"IF(AND(OR(Calculations!$E$2=\"Orkney Health Board\",Calculations!$E$2=\"Orkney Islands Local Authority\"),$F203=1),0,IF(AND(OR(Calculations!$E$2=\"Shetland Health Board\",Calculations!$E$2=\"Western Isles Health Board\",Calculations!$E$2=\"Shetland Islands Local Authority\",Calculations!$E$2=\"Eilean Siar Local Authority\"),OR($F203=1,$F203=5)),0,hosp_count(VALUE(LEFT(Options!$B$14,2)),$C203,$E203,$F203,2016,$I203/10+$J203/10,1,$H203/10,$G203*$H203/10, RateRatios_accidents!$B$4, RateRatios_accidents!$B$5)*10))","v":8583.1434404289994},{"$f":"IF(AND(OR(Calculations!$E$2=\"Orkney Health Board\",Calculations!$E$2=\"Orkney Islands Local Authority\"),$F203=1),0,IF(AND(OR(Calculations!$E$2=\"Shetland Health Board\",Calculations!$E$2=\"Western Isles Health Board\",Calculations!$E$2=\"Shetland Islands Local Authority\",Calculations!$E$2=\"Eilean Siar Local Authority\"),OR($F203=1,$F203=5)),0,prem_mort(VALUE(LEFT(Options!$B$14,2)),$C203,$E203,$F203,2016,$I203/10,1,$H203/10,$G203*$H203/10,RateRatios_accidents!$B$5)*10))","v":192.805235189},{"$f":"IF(AND(OR(Calculations!$E$2=\"Orkney Health Board\",Calculations!$E$2=\"Orkney Islands Local Authority\"),$F203=1),0,IF(AND(OR(Calculations!$E$2=\"Shetland Health Board\",Calculations!$E$2=\"Western Isles Health Board\",Calculations!$E$2=\"Shetland Islands Local Authority\",Calculations!$E$2=\"Eilean Siar Local Authority\"),OR($F203=1,$F203=5)),0,prem_mort(VALUE(LEFT(Options!$B$14,2)),$C203,$E203,$F203,2016,$I203/10+$J203/10,1,$H203/10,$G203*$H203/10,RateRatios_accidents!$B$5)*10))","v":192.77602431100001},null,{"$f":"IF(AND(OR(Calculations!$E$2=\"Orkney Health Board\",Calculations!$E$2=\"Orkney Islands Local Authority\"),$F203=1),0,IF(AND(OR(Calculations!$E$2=\"Shetland Health Board\",Calculations!$E$2=\"Western Isles Health Board\",Calculations!$E$2=\"Shetland Islands Local Authority\",Calculations!$E$2=\"Eilean Siar Local Authority\"),OR($F203=1,$F203=5)),0,new_ci(VALUE(LEFT(Options!$B$14,2)),$C203,$E203,$F203,2016,$I203/10,1,$H203/10,$G203*$H203/10,RateRatios_airpollution!$C203)*10))","v":192.805235189},{"$f":"IF(AND(OR(Calculations!$E$2=\"Orkney Health Board\",Calculations!$E$2=\"Orkney Islands Local Authority\"),$F203=1),0,IF(AND(OR(Calculations!$E$2=\"Shetland Health Board\",Calculations!$E$2=\"Western Isles Health Board\",Calculations!$E$2=\"Shetland Islands Local Authority\",Calculations!$E$2=\"Eilean Siar Local Authority\"),OR($F203=1,$F203=5)),0,new_ci(VALUE(LEFT(Options!$B$14,2)),$C203,$E203,$F203,2016,$I203/10+$J203/10,1,$H203/10,$G203*$H203/10,RateRatios_airpollution!$C203)*10))","v":192.80370798999999},{"$f":"IF(AND(OR(Calculations!$E$2=\"Orkney Health Board\",Calculations!$E$2=\"Orkney Islands Local Authority\"),$F203=1),0,IF(AND(OR(Calculations!$E$2=\"Shetland Health Board\",Calculations!$E$2=\"Western Isles Health Board\",Calculations!$E$2=\"Shetland Islands Local Authority\",Calculations!$E$2=\"Eilean Siar Local Authority\"),OR($F203=1,$F203=5)),0,new_yllv2(VALUE(LEFT(Options!$B$14,2)),$C203,$D203,$E203,$F203,2016,$I203/10,1,$H203/10,$G203*$H203/10,RateRatios_airpollution!$C203)*10))","v":5203.8140689720003},{"$f":"IF(AND(OR(Calculations!$E$2=\"Orkney Health Board\",Calculations!$E$2=\"Orkney Islands Local Authority\"),$F203=1),0,IF(AND(OR(Calculations!$E$2=\"Shetland Health Board\",Calculations!$E$2=\"Western Isles Health Board\",Calculations!$E$2=\"Shetland Islands Local Authority\",Calculations!$E$2=\"Eilean Siar Local Authority\"),OR($F203=1,$F203=5)),0,new_yllv2(VALUE(LEFT(Options!$B$14,2)),$C203,$D203,$E203,$F203,2016,$I203/10+$J203/10,1,$H203/10,$G203*$H203/10,RateRatios_airpollution!$C203)*10))","v":5203.7728498649994},{"$f":"IF(AND(OR(Calculations!$E$2=\"Orkney Health Board\",Calculations!$E$2=\"Orkney Islands Local Authority\"),$F203=1),0,IF(AND(OR(Calculations!$E$2=\"Shetland Health Board\",Calculations!$E$2=\"Western Isles Health Board\",Calculations!$E$2=\"Shetland Islands Local Authority\",Calculations!$E$2=\"Eilean Siar Local Authority\"),OR($F203=1,$F203=5)),0,hosp_count(VALUE(LEFT(Options!$B$14,2)),$C203,$E203,$F203,2016,$I203/10,1,$H203/10,$G203*$H203/10, RateRatios_airpollution!$D203, RateRatios_airpollution!$C203)*10))","v":8584.4469732439993},{"$f":"IF(AND(OR(Calculations!$E$2=\"Orkney Health Board\",Calculations!$E$2=\"Orkney Islands Local Authority\"),$F203=1),0,IF(AND(OR(Calculations!$E$2=\"Shetland Health Board\",Calculations!$E$2=\"Western Isles Health Board\",Calculations!$E$2=\"Shetland Islands Local Authority\",Calculations!$E$2=\"Eilean Siar Local Authority\"),OR($F203=1,$F203=5)),0,hosp_count(VALUE(LEFT(Options!$B$14,2)),$C203,$E203,$F203,2016,$I203/10+$J203/10,1,$H203/10,$G203*$H203/10, RateRatios_airpollution!$D203, RateRatios_airpollution!$C203)*10))","v":8584.3187142459992},{"$f":"IF(AND(OR(Calculations!$E$2=\"Orkney Health Board\",Calculations!$E$2=\"Orkney Islands Local Authority\"),$F203=1),0,IF(AND(OR(Calculations!$E$2=\"Shetland Health Board\",Calculations!$E$2=\"Western Isles Health Board\",Calculations!$E$2=\"Shetland Islands Local Authority\",Calculations!$E$2=\"Eilean Siar Local Authority\"),OR($F203=1,$F203=5)),0,prem_mort(VALUE(LEFT(Options!$B$14,2)),$C203,$E203,$F203,2016,$I203/10,1,$H203/10,$G203*$H203/10,RateRatios_airpollution!$C203)*10))","v":192.805235189},{"$f":"IF(AND(OR(Calculations!$E$2=\"Orkney Health Board\",Calculations!$E$2=\"Orkney Islands Local Authority\"),$F203=1),0,IF(AND(OR(Calculations!$E$2=\"Shetland Health Board\",Calculations!$E$2=\"Western Isles Health Board\",Calculations!$E$2=\"Shetland Islands Local Authority\",Calculations!$E$2=\"Eilean Siar Local Authority\"),OR($F203=1,$F203=5)),0,prem_mort(VALUE(LEFT(Options!$B$14,2)),$C203,$E203,$F203,2016,$I203/10+$J203/10,1,$H203/10,$G203*$H203/10,RateRatios_airpollution!$C203)*10))","v":192.80370798999999},null,{"$f":"IF(AND(OR(Calculations!$E$2=\"Orkney Health Board\",Calculations!$E$2=\"Orkney Islands Local Authority\"),$F203=1),0,IF(AND(OR(Calculations!$E$2=\"Shetland Health Board\",Calculations!$E$2=\"Western Isles Health Board\",Calculations!$E$2=\"Shetland Islands Local Authority\",Calculations!$E$2=\"Eilean Siar Local Authority\"),OR($F203=1,$F203=5)),0,new_ci(VALUE(LEFT(Options!$B$14,2)),$C203,$E203,$F203,2016,$I203/10,1,$H203/10,$G203*$H203/10,RateRatios_airpollution!$E203)*10))","v":192.805235189},{"$f":"IF(AND(OR(Calculations!$E$2=\"Orkney Health Board\",Calculations!$E$2=\"Orkney Islands Local Authority\"),$F203=1),0,IF(AND(OR(Calculations!$E$2=\"Shetland Health Board\",Calculations!$E$2=\"Western Isles Health Board\",Calculations!$E$2=\"Shetland Islands Local Authority\",Calculations!$E$2=\"Eilean Siar Local Authority\"),OR($F203=1,$F203=5)),0,new_ci(VALUE(LEFT(Options!$B$14,2)),$C203,$E203,$F203,2016,$I203/10+$J203/10,1,$H203/10,$G203*$H203/10,RateRatios_airpollution!$E203)*10))","v":192.80455180000001},{"$f":"IF(AND(OR(Calculations!$E$2=\"Orkney Health Board\",Calculations!$E$2=\"Orkney Islands Local Authority\"),$F203=1),0,IF(AND(OR(Calculations!$E$2=\"Shetland Health Board\",Calculations!$E$2=\"Western Isles Health Board\",Calculations!$E$2=\"Shetland Islands Local Authority\",Calculations!$E$2=\"Eilean Siar Local Authority\"),OR($F203=1,$F203=5)),0,new_yllv2(VALUE(LEFT(Options!$B$14,2)),$C203,$D203,$E203,$F203,2016,$I203/10,1,$H203/10,$G203*$H203/10,RateRatios_airpollution!$E203)*10))","v":5203.8140689720003},{"$f":"IF(AND(OR(Calculations!$E$2=\"Orkney Health Board\",Calculations!$E$2=\"Orkney Islands Local Authority\"),$F203=1),0,IF(AND(OR(Calculations!$E$2=\"Shetland Health Board\",Calculations!$E$2=\"Western Isles Health Board\",Calculations!$E$2=\"Shetland Islands Local Authority\",Calculations!$E$2=\"Eilean Siar Local Authority\"),OR($F203=1,$F203=5)),0,new_yllv2(VALUE(LEFT(Options!$B$14,2)),$C203,$D203,$E203,$F203,2016,$I203/10+$J203/10,1,$H203/10,$G203*$H203/10,RateRatios_airpollution!$E203)*10))","v":5203.7956242999999},{"$f":"IF(AND(OR(Calculations!$E$2=\"Orkney Health Board\",Calculations!$E$2=\"Orkney Islands Local Authority\"),$F203=1),0,IF(AND(OR(Calculations!$E$2=\"Shetland Health Board\",Calculations!$E$2=\"Western Isles Health Board\",Calculations!$E$2=\"Shetland Islands Local Authority\",Calculations!$E$2=\"Eilean Siar Local Authority\"),OR($F203=1,$F203=5)),0,hosp_count(VALUE(LEFT(Options!$B$14,2)),$C203,$E203,$F203,2016,$I203/10,1,$H203/10,$G203*$H203/10, RateRatios_airpollution!$F203, RateRatios_airpollution!$E203)*10))","v":8584.4469732439993},{"$f":"IF(AND(OR(Calculations!$E$2=\"Orkney Health Board\",Calculations!$E$2=\"Orkney Islands Local Authority\"),$F203=1),0,IF(AND(OR(Calculations!$E$2=\"Shetland Health Board\",Calculations!$E$2=\"Western Isles Health Board\",Calculations!$E$2=\"Shetland Islands Local Authority\",Calculations!$E$2=\"Eilean Siar Local Authority\"),OR($F203=1,$F203=5)),0,hosp_count(VALUE(LEFT(Options!$B$14,2)),$C203,$E203,$F203,2016,$I203/10+$J203/10,1,$H203/10,$G203*$H203/10, RateRatios_airpollution!$F203, RateRatios_airpollution!$E203)*10))","v":8584.4469732439993},{"$f":"IF(AND(OR(Calculations!$E$2=\"Orkney Health Board\",Calculations!$E$2=\"Orkney Islands Local Authority\"),$F203=1),0,IF(AND(OR(Calculations!$E$2=\"Shetland Health Board\",Calculations!$E$2=\"Western Isles Health Board\",Calculations!$E$2=\"Shetland Islands Local Authority\",Calculations!$E$2=\"Eilean Siar Local Authority\"),OR($F203=1,$F203=5)),0,prem_mort(VALUE(LEFT(Options!$B$14,2)),$C203,$E203,$F203,2016,$I203/10,1,$H203/10,$G203*$H203/10,RateRatios_airpollution!$E203)*10))","v":192.805235189},{"$f":"IF(AND(OR(Calculations!$E$2=\"Orkney Health Board\",Calculations!$E$2=\"Orkney Islands Local Authority\"),$F203=1),0,IF(AND(OR(Calculations!$E$2=\"Shetland Health Board\",Calculations!$E$2=\"Western Isles Health Board\",Calculations!$E$2=\"Shetland Islands Local Authority\",Calculations!$E$2=\"Eilean Siar Local Authority\"),OR($F203=1,$F203=5)),0,prem_mort(VALUE(LEFT(Options!$B$14,2)),$C203,$E203,$F203,2016,$I203/10+$J203/10,1,$H203/10,$G203*$H203/10,RateRatios_airpollution!$E203)*10))","v":192.80455180000001},192.805235189,192.77381372300002,5203.8140689720003,5202.9660034789986,8584.4469732439993,8583.0151814309993,192.805235189,192.77381372300002,456.25736000047328,456.18300374603632,12314.387971442095,12312.381095837471,20314.371179999052,20310.982965192386,456.25736000047328,456.18300374603632,3193801.5200033132,3193281.0262222541,86200715.800094664,86186667.670862287,142200598.25999337,142176880.7563467,3193801.5200033132,3193281.0262222541,7000]
[null,"Male 55-59",56.950867000000002,80.660870000000003,"male",4,1,{"$f":"HLOOKUP(Calculations!$E$2,'Population 2016'!$C$3:$BC$249,'Population 2016'!BD204,FALSE)","v":38483},0,{"$f":"HLOOKUP(Calculations!$E$2,Pop2016_in_settlements!$C$3:$BC$249,Pop2016_in_settlements!$BD204,FALSE)","v":14884},{"$f":"IF(AND(OR(Calculations!$E$2=\"Orkney Health Board\",Calculations!$E$2=\"Orkney Islands Local Authority\"),$F204=1),0,IF(AND(OR(Calculations!$E$2=\"Shetland Health Board\",Calculations!$E$2=\"Western Isles Health Board\",Calculations!$E$2=\"Shetland Islands Local Authority\",Calculations!$E$2=\"Eilean Siar Local Authority\"),OR($F204=1,$F204=5)),0,new_ci(VALUE(LEFT(Options!$B$14,2)),$C204,$E204,$F204,2016,$I204/10,1,$H204/10,$G204*$H204/10,RateRatios_accidents!$B$5)*10))","v":254.91983517},{"$f":"IF(AND(OR(Calculations!$E$2=\"Orkney Health Board\",Calculations!$E$2=\"Orkney Islands Local Authority\"),$F204=1),0,IF(AND(OR(Calculations!$E$2=\"Shetland Health Board\",Calculations!$E$2=\"Western Isles Health Board\",Calculations!$E$2=\"Shetland Islands Local Authority\",Calculations!$E$2=\"Eilean Siar Local Authority\"),OR($F204=1,$F204=5)),0,new_ci(VALUE(LEFT(Options!$B$14,2)),$C204,$E204,$F204,2016,$I204/10+$J204/10,1,$H204/10,$G204*$H204/10,RateRatios_accidents!$B$5)*10))","v":254.88052801500001},{"$f":"IF(AND(OR(Calculations!$E$2=\"Orkney Health Board\",Calculations!$E$2=\"Orkney Islands Local Authority\"),$F204=1),0,IF(AND(OR(Calculations!$E$2=\"Shetland Health Board\",Calculations!$E$2=\"Western Isles Health Board\",Calculations!$E$2=\"Shetland Islands Local Authority\",Calculations!$E$2=\"Eilean Siar Local Authority\"),OR($F204=1,$F204=5)),0,new_yllv2(VALUE(LEFT(Options!$B$14,2)),$C204,$D204,$E204,$F204,2016,$I204/10,1,$H204/10,$G204*$H204/10,RateRatios_accidents!$B$5)*10))","v":5789.2302214699994},{"$f":"IF(AND(OR(Calculations!$E$2=\"Orkney Health Board\",Calculations!$E$2=\"Orkney Islands Local Authority\"),$F204=1),0,IF(AND(OR(Calculations!$E$2=\"Shetland Health Board\",Calculations!$E$2=\"Western Isles Health Board\",Calculations!$E$2=\"Shetland Islands Local Authority\",Calculations!$E$2=\"Eilean Siar Local Authority\"),OR($F204=1,$F204=5)),0,new_yllv2(VALUE(LEFT(Options!$B$14,2)),$C204,$D204,$E204,$F204,2016,$I204/10+$J204/10,1,$H204/10,$G204*$H204/10,RateRatios_accidents!$B$5)*10))","v":5788.337555862},{"$f":"IF(AND(OR(Calculations!$E$2=\"Orkney Health Board\",Calculations!$E$2=\"Orkney Islands Local Authority\"),$F204=1),0,IF(AND(OR(Calculations!$E$2=\"Shetland Health Board\",Calculations!$E$2=\"Western Isles Health Board\",Calculations!$E$2=\"Shetland Islands Local Authority\",Calculations!$E$2=\"Eilean Siar Local Authority\"),OR($F204=1,$F204=5)),0,hosp_count(VALUE(LEFT(Options!$B$14,2)),$C204,$E204,$F204,2016,$I204/10,1,$H204/10,$G204*$H204/10, RateRatios_accidents!$B$4, RateRatios_accidents!$B$5)*10))","v":9319.9287622850006},{"$f":"IF(AND(OR(Calculations!$E$2=\"Orkney Health Board\",Calculations!$E$2=\"Orkney Islands Local Authority\"),$F204=1),0,IF(AND(OR(Calculations!$E$2=\"Shetland Health Board\",Calculations!$E$2=\"Western Isles Health Board\",Calculations!$E$2=\"Shetland Islands Local Authority\",Calculations!$E$2=\"Eilean Siar Local Authority\"),OR($F204=1,$F204=5)),0,hosp_count(VALUE(LEFT(Options!$B$14,2)),$C204,$E204,$F204,2016,$I204/10+$J204/10,1,$H204/10,$G204*$H204/10, RateRatios_accidents!$B$4, RateRatios_accidents!$B$5)*10))","v":9318.4869015759996},{"$f":"IF(AND(OR(Calculations!$E$2=\"Orkney Health Board\",Calculations!$E$2=\"Orkney Islands Local Authority\"),$F204=1),0,IF(AND(OR(Calculations!$E$2=\"Shetland Health Board\",Calculations!$E$2=\"Western Isles Health Board\",Calculations!$E$2=\"Shetland Islands Local Authority\",Calculations!$E$2=\"Eilean Siar Local Authority\"),OR($F204=1,$F204=5)),0,prem_mort(VALUE(LEFT(Options!$B$14,2)),$C204,$E204,$F204,2016,$I204/10,1,$H204/10,$G204*$H204/10,RateRatios_accidents!$B$5)*10))","v":254.91983517},{"$f":"IF(AND(OR(Calculations!$E$2=\"Orkney Health Board\",Calculations!$E$2=\"Orkney Islands Local Authority\"),$F204=1),0,IF(AND(OR(Calculations!$E$2=\"Shetland Health Board\",Calculations!$E$2=\"Western Isles Health Board\",Calculations!$E$2=\"Shetland Islands Local Authority\",Calculations!$E$2=\"Eilean Siar Local Authority\"),OR($F204=1,$F204=5)),0,prem_mort(VALUE(LEFT(Options!$B$14,2)),$C204,$E204,$F204,2016,$I204/10+$J204/10,1,$H204/10,$G204*$H204/10,RateRatios_accidents!$B$5)*10))","v":254.88052801500001},null,{"$f":"IF(AND(OR(Calculations!$E$2=\"Orkney Health Board\",Calculations!$E$2=\"Orkney Islands Local Authority\"),$F204=1),0,IF(AND(OR(Calculations!$E$2=\"Shetland Health Board\",Calculations!$E$2=\"Western Isles Health Board\",Calculations!$E$2=\"Shetland Islands Local Authority\",Calculations!$E$2=\"Eilean Siar Local Authority\"),OR($F204=1,$F204=5)),0,new_ci(VALUE(LEFT(Options!$B$14,2)),$C204,$E204,$F204,2016,$I204/10,1,$H204/10,$G204*$H204/10,RateRatios_airpollution!$C204)*10))","v":254.91983517},{"$f":"IF(AND(OR(Calculations!$E$2=\"Orkney Health Board\",Calculations!$E$2=\"Orkney Islands Local Authority\"),$F204=1),0,IF(AND(OR(Calculations!$E$2=\"Shetland Health Board\",Calculations!$E$2=\"Western Isles Health Board\",Calculations!$E$2=\"Shetland Islands Local Authority\",Calculations!$E$2=\"Eilean Siar Local Authority\"),OR($F204=1,$F204=5)),0,new_ci(VALUE(LEFT(Options!$B$14,2)),$C204,$E204,$F204,2016,$I204/10+$J204/10,1,$H204/10,$G204*$H204/10,RateRatios_airpollution!$C204)*10))","v":254.91781392299998},{"$f":"IF(AND(OR(Calculations!$E$2=\"Orkney Health Board\",Calculations!$E$2=\"Orkney Islands Local Authority\"),$F204=1),0,IF(AND(OR(Calculations!$E$2=\"Shetland Health Board\",Calculations!$E$2=\"Western Isles Health Board\",Calculations!$E$2=\"Shetland Islands Local Authority\",Calculations!$E$2=\"Eilean Siar Local Authority\"),OR($F204=1,$F204=5)),0,new_yllv2(VALUE(LEFT(Options!$B$14,2)),$C204,$D204,$E204,$F204,2016,$I204/10,1,$H204/10,$G204*$H204/10,RateRatios_airpollution!$C204)*10))","v":5789.2302214699994},{"$f":"IF(AND(OR(Calculations!$E$2=\"Orkney Health Board\",Calculations!$E$2=\"Orkney Islands Local Authority\"),$F204=1),0,IF(AND(OR(Calculations!$E$2=\"Shetland Health Board\",Calculations!$E$2=\"Western Isles Health Board\",Calculations!$E$2=\"Shetland Islands Local Authority\",Calculations!$E$2=\"Eilean Siar Local Authority\"),OR($F204=1,$F204=5)),0,new_yllv2(VALUE(LEFT(Options!$B$14,2)),$C204,$D204,$E204,$F204,2016,$I204/10+$J204/10,1,$H204/10,$G204*$H204/10,RateRatios_airpollution!$C204)*10))","v":5789.1843189450001},{"$f":"IF(AND(OR(Calculations!$E$2=\"Orkney Health Board\",Calculations!$E$2=\"Orkney Islands Local Authority\"),$F204=1),0,IF(AND(OR(Calculations!$E$2=\"Shetland Health Board\",Calculations!$E$2=\"Western Isles Health Board\",Calculations!$E$2=\"Shetland Islands Local Authority\",Calculations!$E$2=\"Eilean Siar Local Authority\"),OR($F204=1,$F204=5)),0,hosp_count(VALUE(LEFT(Options!$B$14,2)),$C204,$E204,$F204,2016,$I204/10,1,$H204/10,$G204*$H204/10, RateRatios_airpollution!$D204, RateRatios_airpollution!$C204)*10))","v":9319.9287622850006},{"$f":"IF(AND(OR(Calculations!$E$2=\"Orkney Health Board\",Calculations!$E$2=\"Orkney Islands Local Authority\"),$F204=1),0,IF(AND(OR(Calculations!$E$2=\"Shetland Health Board\",Calculations!$E$2=\"Western Isles Health Board\",Calculations!$E$2=\"Shetland Islands Local Authority\",Calculations!$E$2=\"Eilean Siar Local Authority\"),OR($F204=1,$F204=5)),0,hosp_count(VALUE(LEFT(Options!$B$14,2)),$C204,$E204,$F204,2016,$I204/10+$J204/10,1,$H204/10,$G204*$H204/10, RateRatios_airpollution!$D204, RateRatios_airpollution!$C204)*10))","v":9319.789132504},{"$f":"IF(AND(OR(Calculations!$E$2=\"Orkney Health Board\",Calculations!$E$2=\"Orkney Islands Local Authority\"),$F204=1),0,IF(AND(OR(Calculations!$E$2=\"Shetland Health Board\",Calculations!$E$2=\"Western Isles Health Board\",Calculations!$E$2=\"Shetland Islands Local Authority\",Calculations!$E$2=\"Eilean Siar Local Authority\"),OR($F204=1,$F204=5)),0,prem_mort(VALUE(LEFT(Options!$B$14,2)),$C204,$E204,$F204,2016,$I204/10,1,$H204/10,$G204*$H204/10,RateRatios_airpollution!$C204)*10))","v":254.91983517},{"$f":"IF(AND(OR(Calculations!$E$2=\"Orkney Health Board\",Calculations!$E$2=\"Orkney Islands Local Authority\"),$F204=1),0,IF(AND(OR(Calculations!$E$2=\"Shetland Health Board\",Calculations!$E$2=\"Western Isles Health Board\",Calculations!$E$2=\"Shetland Islands Local Authority\",Calculations!$E$2=\"Eilean Siar Local Authority\"),OR($F204=1,$F204=5)),0,prem_mort(VALUE(LEFT(Options!$B$14,2)),$C204,$E204,$F204,2016,$I204/10+$J204/10,1,$H204/10,$G204*$H204/10,RateRatios_airpollution!$C204)*10))","v":254.91781392299998},null,{"$f":"IF(AND(OR(Calculations!$E$2=\"Orkney Health Board\",Calculations!$E$2=\"Orkney Islands Local Authority\"),$F204=1),0,IF(AND(OR(Calculations!$E$2=\"Shetland Health Board\",Calculations!$E$2=\"Western Isles Health Board\",Calculations!$E$2=\"Shetland Islands Local Authority\",Calculations!$E$2=\"Eilean Siar Local Authority\"),OR($F204=1,$F204=5)),0,new_ci(VALUE(LEFT(Options!$B$14,2)),$C204,$E204,$F204,2016,$I204/10,1,$H204/10,$G204*$H204/10,RateRatios_airpollution!$E204)*10))","v":254.91983517},{"$f":"IF(AND(OR(Calculations!$E$2=\"Orkney Health Board\",Calculations!$E$2=\"Orkney Islands Local Authority\"),$F204=1),0,IF(AND(OR(Calculations!$E$2=\"Shetland Health Board\",Calculations!$E$2=\"Western Isles Health Board\",Calculations!$E$2=\"Shetland Islands Local Authority\",Calculations!$E$2=\"Eilean Siar Local Authority\"),OR($F204=1,$F204=5)),0,new_ci(VALUE(LEFT(Options!$B$14,2)),$C204,$E204,$F204,2016,$I204/10+$J204/10,1,$H204/10,$G204*$H204/10,RateRatios_airpollution!$E204)*10))","v":254.91892724600001},{"$f":"IF(AND(OR(Calculations!$E$2=\"Orkney Health Board\",Calculations!$E$2=\"Orkney Islands Local Authority\"),$F204=1),0,IF(AND(OR(Calculations!$E$2=\"Shetland Health Board\",Calculations!$E$2=\"Western Isles Health Board\",Calculations!$E$2=\"Shetland Islands Local Authority\",Calculations!$E$2=\"Eilean Siar Local Authority\"),OR($F204=1,$F204=5)),0,new_yllv2(VALUE(LEFT(Options!$B$14,2)),$C204,$D204,$E204,$F204,2016,$I204/10,1,$H204/10,$G204*$H204/10,RateRatios_airpollution!$E204)*10))","v":5789.2302214699994},{"$f":"IF(AND(OR(Calculations!$E$2=\"Orkney Health Board\",Calculations!$E$2=\"Orkney Islands Local Authority\"),$F204=1),0,IF(AND(OR(Calculations!$E$2=\"Shetland Health Board\",Calculations!$E$2=\"Western Isles Health Board\",Calculations!$E$2=\"Shetland Islands Local Authority\",Calculations!$E$2=\"Eilean Siar Local Authority\"),OR($F204=1,$F204=5)),0,new_yllv2(VALUE(LEFT(Options!$B$14,2)),$C204,$D204,$E204,$F204,2016,$I204/10+$J204/10,1,$H204/10,$G204*$H204/10,RateRatios_airpollution!$E204)*10))","v":5789.2096025130004},{"$f":"IF(AND(OR(Calculations!$E$2=\"Orkney Health Board\",Calculations!$E$2=\"Orkney Islands Local Authority\"),$F204=1),0,IF(AND(OR(Calculations!$E$2=\"Shetland Health Board\",Calculations!$E$2=\"Western Isles Health Board\",Calculations!$E$2=\"Shetland Islands Local Authority\",Calculations!$E$2=\"Eilean Siar Local Authority\"),OR($F204=1,$F204=5)),0,hosp_count(VALUE(LEFT(Options!$B$14,2)),$C204,$E204,$F204,2016,$I204/10,1,$H204/10,$G204*$H204/10, RateRatios_airpollution!$F204, RateRatios_airpollution!$E204)*10))","v":9319.9287622850006},{"$f":"IF(AND(OR(Calculations!$E$2=\"Orkney Health Board\",Calculations!$E$2=\"Orkney Islands Local Authority\"),$F204=1),0,IF(AND(OR(Calculations!$E$2=\"Shetland Health Board\",Calculations!$E$2=\"Western Isles Health Board\",Calculations!$E$2=\"Shetland Islands Local Authority\",Calculations!$E$2=\"Eilean Siar Local Authority\"),OR($F204=1,$F204=5)),0,hosp_count(VALUE(LEFT(Options!$B$14,2)),$C204,$E204,$F204,2016,$I204/10+$J204/10,1,$H204/10,$G204*$H204/10, RateRatios_airpollution!$F204, RateRatios_airpollution!$E204)*10))","v":9319.9287622850006},{"$f":"IF(AND(OR(Calculations!$E$2=\"Orkney Health Board\",Calculations!$E$2=\"Orkney Islands Local Authority\"),$F204=1),0,IF(AND(OR(Calculations!$E$2=\"Shetland Health Board\",Calculations!$E$2=\"Western Isles Health Board\",Calculations!$E$2=\"Shetland Islands Local Authority\",Calculations!$E$2=\"Eilean Siar Local Authority\"),OR($F204=1,$F204=5)),0,prem_mort(VALUE(LEFT(Options!$B$14,2)),$C204,$E204,$F204,2016,$I204/10,1,$H204/10,$G204*$H204/10,RateRatios_airpollution!$E204)*10))","v":254.91983517},{"$f":"IF(AND(OR(Calculations!$E$2=\"Orkney Health Board\",Calculations!$E$2=\"Orkney Islands Local Authority\"),$F204=1),0,IF(AND(OR(Calculations!$E$2=\"Shetland Health Board\",Calculations!$E$2=\"Western Isles Health Board\",Calculations!$E$2=\"Shetland Islands Local Authority\",Calculations!$E$2=\"Eilean Siar Local Authority\"),OR($F204=1,$F204=5)),0,prem_mort(VALUE(LEFT(Options!$B$14,2)),$C204,$E204,$F204,2016,$I204/10+$J204/10,1,$H204/10,$G204*$H204/10,RateRatios_airpollution!$E204)*10))","v":254.91892724600001},254.91983517,254.877598844,5789.2302214699994,5788.2710343800018,9319.9287622850006,9318.347271794999,254.91983517,254.877598844,662.42193999948029,662.31218679416884,15043.604244653483,15041.111749032045,24218.300969999742,24214.191387872565,662.42193999948029,662.31218679416884,4305742.6099966215,4305029.2141620973,97783427.590247646,97767226.368708298,157418956.30499831,157392244.02117166,4305742.6099966215,4305029.2141620973,6500]
[null,"Male 60-64",61.942988999999997,81.612989999999996,"male",4,1,{"$f":"HLOOKUP(Calculations!$E$2,'Population 2016'!$C$3:$BC$249,'Population 2016'!BD205,FALSE)","v":33820},0,{"$f":"HLOOKUP(Calculations!$E$2,Pop2016_in_settlements!$C$3:$BC$249,Pop2016_in_settlements!$BD205,FALSE)","v":12953},{"$f":"IF(AND(OR(Calculations!$E$2=\"Orkney Health Board\",Calculations!$E$2=\"Orkney Islands Local Authority\"),$F205=1),0,IF(AND(OR(Calculations!$E$2=\"Shetland Health Board\",Calculations!$E$2=\"Western Isles Health Board\",Calculations!$E$2=\"Shetland Islands Local Authority\",Calculations!$E$2=\"Eilean Siar Local Authority\"),OR($F205=1,$F205=5)),0,new_ci(VALUE(LEFT(Options!$B$14,2)),$C205,$E205,$F205,2016,$I205/10,1,$H205/10,$G205*$H205/10,RateRatios_accidents!$B$5)*10))","v":326.08548322600001},{"$f":"IF(AND(OR(Calculations!$E$2=\"Orkney Health Board\",Calculations!$E$2=\"Orkney Islands Local Authority\"),$F205=1),0,IF(AND(OR(Calculations!$E$2=\"Shetland Health Board\",Calculations!$E$2=\"Western Isles Health Board\",Calculations!$E$2=\"Shetland Islands Local Authority\",Calculations!$E$2=\"Eilean Siar Local Authority\"),OR($F205=1,$F205=5)),0,new_ci(VALUE(LEFT(Options!$B$14,2)),$C205,$E205,$F205,2016,$I205/10+$J205/10,1,$H205/10,$G205*$H205/10,RateRatios_accidents!$B$5)*10))","v":326.03576831700002},{"$f":"IF(AND(OR(Calculations!$E$2=\"Orkney Health Board\",Calculations!$E$2=\"Orkney Islands Local Authority\"),$F205=1),0,IF(AND(OR(Calculations!$E$2=\"Shetland Health Board\",Calculations!$E$2=\"Western Isles Health Board\",Calculations!$E$2=\"Shetland Islands Local Authority\",Calculations!$E$2=\"Eilean Siar Local Authority\"),OR($F205=1,$F205=5)),0,new_yllv2(VALUE(LEFT(Options!$B$14,2)),$C205,$D205,$E205,$F205,2016,$I205/10,1,$H205/10,$G205*$H205/10,RateRatios_accidents!$B$5)*10))","v":6088.016297915},{"$f":"IF(AND(OR(Calculations!$E$2=\"Orkney Health Board\",Calculations!$E$2=\"Orkney Islands Local Authority\"),$F205=1),0,IF(AND(OR(Calculations!$E$2=\"Shetland Health Board\",Calculations!$E$2=\"Western Isles Health Board\",Calculations!$E$2=\"Shetland Islands Local Authority\",Calculations!$E$2=\"Eilean Siar Local Authority\"),OR($F205=1,$F205=5)),0,new_yllv2(VALUE(LEFT(Options!$B$14,2)),$C205,$D205,$E205,$F205,2016,$I205/10+$J205/10,1,$H205/10,$G205*$H205/10,RateRatios_accidents!$B$5)*10))","v":6087.0881205139995},{"$f":"IF(AND(OR(Calculations!$E$2=\"Orkney Health Board\",Calculations!$E$2=\"Orkney Islands Local Authority\"),$F205=1),0,IF(AND(OR(Calculations!$E$2=\"Shetland Health Board\",Calculations!$E$2=\"Western Isles Health Board\",Calculations!$E$2=\"Shetland Islands Local Authority\",Calculations!$E$2=\"Eilean Siar Local Authority\"),OR($F205=1,$F205=5)),0,hosp_count(VALUE(LEFT(Options!$B$14,2)),$C205,$E205,$F205,2016,$I205/10,1,$H205/10,$G205*$H205/10, RateRatios_accidents!$B$4, RateRatios_accidents!$B$5)*10))","v":9778.5092826239998},{"$f":"IF(AND(OR(Calculations!$E$2=\"Orkney Health Board\",Calculations!$E$2=\"Orkney Islands Local Authority\"),$F205=1),0,IF(AND(OR(Calculations!$E$2=\"Shetland Health Board\",Calculations!$E$2=\"Western Isles Health Board\",Calculations!$E$2=\"Shetland Islands Local Authority\",Calculations!$E$2=\"Eilean Siar Local Authority\"),OR($F205=1,$F205=5)),0,hosp_count(VALUE(LEFT(Options!$B$14,2)),$C205,$E205,$F205,2016,$I205/10+$J205/10,1,$H205/10,$G205*$H205/10, RateRatios_accidents!$B$4, RateRatios_accidents!$B$5)*10))","v":9777.0112215429999},{"$f":"IF(AND(OR(Calculations!$E$2=\"Orkney Health Board\",Calculations!$E$2=\"Orkney Islands Local Authority\"),$F205=1),0,IF(AND(OR(Calculations!$E$2=\"Shetland Health Board\",Calculations!$E$2=\"Western Isles Health Board\",Calculations!$E$2=\"Shetland Islands Local Authority\",Calculations!$E$2=\"Eilean Siar Local Authority\"),OR($F205=1,$F205=5)),0,prem_mort(VALUE(LEFT(Options!$B$14,2)),$C205,$E205,$F205,2016,$I205/10,1,$H205/10,$G205*$H205/10,RateRatios_accidents!$B$5)*10))","v":326.08548322600001},{"$f":"IF(AND(OR(Calculations!$E$2=\"Orkney Health Board\",Calculations!$E$2=\"Orkney Islands Local Authority\"),$F205=1),0,IF(AND(OR(Calculations!$E$2=\"Shetland Health Board\",Calculations!$E$2=\"Western Isles Health Board\",Calculations!$E$2=\"Shetland Islands Local Authority\",Calculations!$E$2=\"Eilean Siar Local Authority\"),OR($F205=1,$F205=5)),0,prem_mort(VALUE(LEFT(Options!$B$14,2)),$C205,$E205,$F205,2016,$I205/10+$J205/10,1,$H205/10,$G205*$H205/10,RateRatios_accidents!$B$5)*10))","v":326.03576831700002},null,{"$f":"IF(AND(OR(Calculations!$E$2=\"Orkney Health Board\",Calculations!$E$2=\"Orkney Islands Local Authority\"),$F205=1),0,IF(AND(OR(Calculations!$E$2=\"Shetland Health Board\",Calculations!$E$2=\"Western Isles Health Board\",Calculations!$E$2=\"Shetland Islands Local Authority\",Calculations!$E$2=\"Eilean Siar Local Authority\"),OR($F205=1,$F205=5)),0,new_ci(VALUE(LEFT(Options!$B$14,2)),$C205,$E205,$F205,2016,$I205/10,1,$H205/10,$G205*$H205/10,RateRatios_airpollution!$C205)*10))","v":326.08548322600001},{"$f":"IF(AND(OR(Calculations!$E$2=\"Orkney Health Board\",Calculations!$E$2=\"Orkney Islands Local Authority\"),$F205=1),0,IF(AND(OR(Calculations!$E$2=\"Shetland Health Board\",Calculations!$E$2=\"Western Isles Health Board\",Calculations!$E$2=\"Shetland Islands Local Authority\",Calculations!$E$2=\"Eilean Siar Local Authority\"),OR($F205=1,$F205=5)),0,new_ci(VALUE(LEFT(Options!$B$14,2)),$C205,$E205,$F205,2016,$I205/10+$J205/10,1,$H205/10,$G205*$H205/10,RateRatios_airpollution!$C205)*10))","v":326.08296257200004},{"$f":"IF(AND(OR(Calculations!$E$2=\"Orkney Health Board\",Calculations!$E$2=\"Orkney Islands Local Authority\"),$F205=1),0,IF(AND(OR(Calculations!$E$2=\"Shetland Health Board\",Calculations!$E$2=\"Western Isles Health Board\",Calculations!$E$2=\"Shetland Islands Local Authority\",Calculations!$E$2=\"Eilean Siar Local Authority\"),OR($F205=1,$F205=5)),0,new_yllv2(VALUE(LEFT(Options!$B$14,2)),$C205,$D205,$E205,$F205,2016,$I205/10,1,$H205/10,$G205*$H205/10,RateRatios_airpollution!$C205)*10))","v":6088.016297915},{"$f":"IF(AND(OR(Calculations!$E$2=\"Orkney Health Board\",Calculations!$E$2=\"Orkney Islands Local Authority\"),$F205=1),0,IF(AND(OR(Calculations!$E$2=\"Shetland Health Board\",Calculations!$E$2=\"Western Isles Health Board\",Calculations!$E$2=\"Shetland Islands Local Authority\",Calculations!$E$2=\"Eilean Siar Local Authority\"),OR($F205=1,$F205=5)),0,new_yllv2(VALUE(LEFT(Options!$B$14,2)),$C205,$D205,$E205,$F205,2016,$I205/10+$J205/10,1,$H205/10,$G205*$H205/10,RateRatios_airpollution!$C205)*10))","v":6087.9692373019998},{"$f":"IF(AND(OR(Calculations!$E$2=\"Orkney Health Board\",Calculations!$E$2=\"Orkney Islands Local Authority\"),$F205=1),0,IF(AND(OR(Calculations!$E$2=\"Shetland Health Board\",Calculations!$E$2=\"Western Isles Health Board\",Calculations!$E$2=\"Shetland Islands Local Authority\",Calculations!$E$2=\"Eilean Siar Local Authority\"),OR($F205=1,$F205=5)),0,hosp_count(VALUE(LEFT(Options!$B$14,2)),$C205,$E205,$F205,2016,$I205/10,1,$H205/10,$G205*$H205/10, RateRatios_airpollution!$D205, RateRatios_airpollution!$C205)*10))","v":9778.5092826239998},{"$f":"IF(AND(OR(Calculations!$E$2=\"Orkney Health Board\",Calculations!$E$2=\"Orkney Islands Local Authority\"),$F205=1),0,IF(AND(OR(Calculations!$E$2=\"Shetland Health Board\",Calculations!$E$2=\"Western Isles Health Board\",Calculations!$E$2=\"Shetland Islands Local Authority\",Calculations!$E$2=\"Eilean Siar Local Authority\"),OR($F205=1,$F205=5)),0,hosp_count(VALUE(LEFT(Options!$B$14,2)),$C205,$E205,$F205,2016,$I205/10+$J205/10,1,$H205/10,$G205*$H205/10, RateRatios_airpollution!$D205, RateRatios_airpollution!$C205)*10))","v":9778.3662128529995},{"$f":"IF(AND(OR(Calculations!$E$2=\"Orkney Health Board\",Calculations!$E$2=\"Orkney Islands Local Authority\"),$F205=1),0,IF(AND(OR(Calculations!$E$2=\"Shetland Health Board\",Calculations!$E$2=\"Western Isles Health Board\",Calculations!$E$2=\"Shetland Islands Local Authority\",Calculations!$E$2=\"Eilean Siar Local Authority\"),OR($F205=1,$F205=5)),0,prem_mort(VALUE(LEFT(Options!$B$14,2)),$C205,$E205,$F205,2016,$I205/10,1,$H205/10,$G205*$H205/10,RateRatios_airpollution!$C205)*10))","v":326.08548322600001},{"$f":"IF(AND(OR(Calculations!$E$2=\"Orkney Health Board\",Calculations!$E$2=\"Orkney Islands Local Authority\"),$F205=1),0,IF(AND(OR(Calculations!$E$2=\"Shetland Health Board\",Calculations!$E$2=\"Western Isles Health Board\",Calculations!$E$2=\"Shetland Islands Local Authority\",Calculations!$E$2=\"Eilean Siar Local Authority\"),OR($F205=1,$F205=5)),0,prem_mort(VALUE(LEFT(Options!$B$14,2)),$C205,$E205,$F205,2016,$I205/10+$J205/10,1,$H205/10,$G205*$H205/10,RateRatios_airpollution!$C205)*10))","v":326.08296257200004},null,{"$f":"IF(AND(OR(Calculations!$E$2=\"Orkney Health Board\",Calculations!$E$2=\"Orkney Islands Local Authority\"),$F205=1),0,IF(AND(OR(Calculations!$E$2=\"Shetland Health Board\",Calculations!$E$2=\"Western Isles Health Board\",Calculations!$E$2=\"Shetland Islands Local Authority\",Calculations!$E$2=\"Eilean Siar Local Authority\"),OR($F205=1,$F205=5)),0,new_ci(VALUE(LEFT(Options!$B$14,2)),$C205,$E205,$F205,2016,$I205/10,1,$H205/10,$G205*$H205/10,RateRatios_airpollution!$E205)*10))","v":326.08548322600001},{"$f":"IF(AND(OR(Calculations!$E$2=\"Orkney Health Board\",Calculations!$E$2=\"Orkney Islands Local Authority\"),$F205=1),0,IF(AND(OR(Calculations!$E$2=\"Shetland Health Board\",Calculations!$E$2=\"Western Isles Health Board\",Calculations!$E$2=\"Shetland Islands Local Authority\",Calculations!$E$2=\"Eilean Siar Local Authority\"),OR($F205=1,$F205=5)),0,new_ci(VALUE(LEFT(Options!$B$14,2)),$C205,$E205,$F205,2016,$I205/10+$J205/10,1,$H205/10,$G205*$H205/10,RateRatios_airpollution!$E205)*10))","v":326.08435631500004},{"$f":"IF(AND(OR(Calculations!$E$2=\"Orkney Health Board\",Calculations!$E$2=\"Orkney Islands Local Authority\"),$F205=1),0,IF(AND(OR(Calculations!$E$2=\"Shetland Health Board\",Calculations!$E$2=\"Western Isles Health Board\",Calculations!$E$2=\"Shetland Islands Local Authority\",Calculations!$E$2=\"Eilean Siar Local Authority\"),OR($F205=1,$F205=5)),0,new_yllv2(VALUE(LEFT(Options!$B$14,2)),$C205,$D205,$E205,$F205,2016,$I205/10,1,$H205/10,$G205*$H205/10,RateRatios_airpollution!$E205)*10))","v":6088.016297915},{"$f":"IF(AND(OR(Calculations!$E$2=\"Orkney Health Board\",Calculations!$E$2=\"Orkney Islands Local Authority\"),$F205=1),0,IF(AND(OR(Calculations!$E$2=\"Shetland Health Board\",Calculations!$E$2=\"Western Isles Health Board\",Calculations!$E$2=\"Shetland Islands Local Authority\",Calculations!$E$2=\"Eilean Siar Local Authority\"),OR($F205=1,$F205=5)),0,new_yllv2(VALUE(LEFT(Options!$B$14,2)),$C205,$D205,$E205,$F205,2016,$I205/10+$J205/10,1,$H205/10,$G205*$H205/10,RateRatios_airpollution!$E205)*10))","v":6087.9952584849998},{"$f":"IF(AND(OR(Calculations!$E$2=\"Orkney Health Board\",Calculations!$E$2=\"Orkney Islands Local Authority\"),$F205=1),0,IF(AND(OR(Calculations!$E$2=\"Shetland Health Board\",Calculations!$E$2=\"Western Isles Health Board\",Calculations!$E$2=\"Shetland Islands Local Authority\",Calculations!$E$2=\"Eilean Siar Local Authority\"),OR($F205=1,$F205=5)),0,hosp_count(VALUE(LEFT(Options!$B$14,2)),$C205,$E205,$F205,2016,$I205/10,1,$H205/10,$G205*$H205/10, RateRatios_airpollution!$F205, RateRatios_airpollution!$E205)*10))","v":9778.5092826239998},{"$f":"IF(AND(OR(Calculations!$E$2=\"Orkney Health Board\",Calculations!$E$2=\"Orkney Islands Local Authority\"),$F205=1),0,IF(AND(OR(Calculations!$E$2=\"Shetland Health Board\",Calculations!$E$2=\"Western Isles Health Board\",Calculations!$E$2=\"Shetland Islands Local Authority\",Calculations!$E$2=\"Eilean Siar Local Authority\"),OR($F205=1,$F205=5)),0,hosp_count(VALUE(LEFT(Options!$B$14,2)),$C205,$E205,$F205,2016,$I205/10+$J205/10,1,$H205/10,$G205*$H205/10, RateRatios_airpollution!$F205, RateRatios_airpollution!$E205)*10))","v":9778.5092826239998},{"$f":"IF(AND(OR(Calculations!$E$2=\"Orkney Health Board\",Calculations!$E$2=\"Orkney Islands Local Authority\"),$F205=1),0,IF(AND(OR(Calculations!$E$2=\"Shetland Health Board\",Calculations!$E$2=\"Western Isles Health Board\",Calculations!$E$2=\"Shetland Islands Local Authority\",Calculations!$E$2=\"Eilean Siar Local Authority\"),OR($F205=1,$F205=5)),0,prem_mort(VALUE(LEFT(Options!$B$14,2)),$C205,$E205,$F205,2016,$I205/10,1,$H205/10,$G205*$H205/10,RateRatios_airpollution!$E205)*10))","v":326.08548322600001},{"$f":"IF(AND(OR(Calculations!$E$2=\"Orkney Health Board\",Calculations!$E$2=\"Orkney Islands Local Authority\"),$F205=1),0,IF(AND(OR(Calculations!$E$2=\"Shetland Health Board\",Calculations!$E$2=\"Western Isles Health Board\",Calculations!$E$2=\"Shetland Islands Local Authority\",Calculations!$E$2=\"Eilean Siar Local Authority\"),OR($F205=1,$F205=5)),0,prem_mort(VALUE(LEFT(Options!$B$14,2)),$C205,$E205,$F205,2016,$I205/10+$J205/10,1,$H205/10,$G205*$H205/10,RateRatios_airpollution!$E205)*10))","v":326.08435631500004},326.08548322600001,326.03212075200008,6088.016297915,6087.020020470999,9778.5092826239998,9776.8681517719997,326.08548322600001,326.03212075200008,964.17943000000002,964.02164622117118,18001.230922279716,17998.285098968066,28913.392320000003,28908.539774606739,964.17943000000002,964.02164622117118,5785076.5800000001,5784129.8773270268,108007385.53367829,107989710.5938084,173480353.92000002,173451238.64764044,5785076.5800000001,5784129.8773270268,6000]
[null,"Male 65-69",67.054419999999993,82.954419999999999,"male",4,1,{"$f":"HLOOKUP(Calculations!$E$2,'Population 2016'!$C$3:$BC$249,'Population 2016'!BD206,FALSE)","v":33114},0,{"$f":"HLOOKUP(Calculations!$E$2,Pop2016_in_settlements!$C$3:$BC$249,Pop2016_in_settlements!$BD206,FALSE)","v":12415},{"$f":"IF(AND(OR(Calculations!$E$2=\"Orkney Health Board\",Calculations!$E$2=\"Orkney Islands Local Authority\"),$F206=1),0,IF(AND(OR(Calculations!$E$2=\"Shetland Health Board\",Calculations!$E$2=\"Western Isles Health Board\",Calculations!$E$2=\"Shetland Islands Local Authority\",Calculations!$E$2=\"Eilean Siar Local Authority\"),OR($F206=1,$F206=5)),0,new_ci(VALUE(LEFT(Options!$B$14,2)),$C206,$E206,$F206,2016,$I206/10,1,$H206/10,$G206*$H206/10,RateRatios_accidents!$B$5)*10))","v":468.57112352199999},{"$f":"IF(AND(OR(Calculations!$E$2=\"Orkney Health Board\",Calculations!$E$2=\"Orkney Islands Local Authority\"),$F206=1),0,IF(AND(OR(Calculations!$E$2=\"Shetland Health Board\",Calculations!$E$2=\"Western Isles Health Board\",Calculations!$E$2=\"Shetland Islands Local Authority\",Calculations!$E$2=\"Eilean Siar Local Authority\"),OR($F206=1,$F206=5)),0,new_ci(VALUE(LEFT(Options!$B$14,2)),$C206,$E206,$F206,2016,$I206/10+$J206/10,1,$H206/10,$G206*$H206/10,RateRatios_accidents!$B$5)*10))","v":468.50135122200004},{"$f":"IF(AND(OR(Calculations!$E$2=\"Orkney Health Board\",Calculations!$E$2=\"Orkney Islands Local Authority\"),$F206=1),0,IF(AND(OR(Calculations!$E$2=\"Shetland Health Board\",Calculations!$E$2=\"Western Isles Health Board\",Calculations!$E$2=\"Shetland Islands Local Authority\",Calculations!$E$2=\"Eilean Siar Local Authority\"),OR($F206=1,$F206=5)),0,new_yllv2(VALUE(LEFT(Options!$B$14,2)),$C206,$D206,$E206,$F206,2016,$I206/10,1,$H206/10,$G206*$H206/10,RateRatios_accidents!$B$5)*10))","v":6981.7097404779997},{"$f":"IF(AND(OR(Calculations!$E$2=\"Orkney Health Board\",Calculations!$E$2=\"Orkney Islands Local Authority\"),$F206=1),0,IF(AND(OR(Calculations!$E$2=\"Shetland Health Board\",Calculations!$E$2=\"Western Isles Health Board\",Calculations!$E$2=\"Shetland Islands Local Authority\",Calculations!$E$2=\"Eilean Siar Local Authority\"),OR($F206=1,$F206=5)),0,new_yllv2(VALUE(LEFT(Options!$B$14,2)),$C206,$D206,$E206,$F206,2016,$I206/10+$J206/10,1,$H206/10,$G206*$H206/10,RateRatios_accidents!$B$5)*10))","v":6980.6701332080002},{"$f":"IF(AND(OR(Calculations!$E$2=\"Orkney Health Board\",Calculations!$E$2=\"Orkney Islands Local Authority\"),$F206=1),0,IF(AND(OR(Calculations!$E$2=\"Shetland Health Board\",Calculations!$E$2=\"Western Isles Health Board\",Calculations!$E$2=\"Shetland Islands Local Authority\",Calculations!$E$2=\"Eilean Siar Local Authority\"),OR($F206=1,$F206=5)),0,hosp_count(VALUE(LEFT(Options!$B$14,2)),$C206,$E206,$F206,2016,$I206/10,1,$H206/10,$G206*$H206/10, RateRatios_accidents!$B$4, RateRatios_accidents!$B$5)*10))","v":11479.031884186999},{"$f":"IF(AND(OR(Calculations!$E$2=\"Orkney Health Board\",Calculations!$E$2=\"Orkney Islands Local Authority\"),$F206=1),0,IF(AND(OR(Calculations!$E$2=\"Shetland Health Board\",Calculations!$E$2=\"Western Isles Health Board\",Calculations!$E$2=\"Shetland Islands Local Authority\",Calculations!$E$2=\"Eilean Siar Local Authority\"),OR($F206=1,$F206=5)),0,hosp_count(VALUE(LEFT(Options!$B$14,2)),$C206,$E206,$F206,2016,$I206/10+$J206/10,1,$H206/10,$G206*$H206/10, RateRatios_accidents!$B$4, RateRatios_accidents!$B$5)*10))","v":11477.310410355001},{"$f":"IF(AND(OR(Calculations!$E$2=\"Orkney Health Board\",Calculations!$E$2=\"Orkney Islands Local Authority\"),$F206=1),0,IF(AND(OR(Calculations!$E$2=\"Shetland Health Board\",Calculations!$E$2=\"Western Isles Health Board\",Calculations!$E$2=\"Shetland Islands Local Authority\",Calculations!$E$2=\"Eilean Siar Local Authority\"),OR($F206=1,$F206=5)),0,prem_mort(VALUE(LEFT(Options!$B$14,2)),$C206,$E206,$F206,2016,$I206/10,1,$H206/10,$G206*$H206/10,RateRatios_accidents!$B$5)*10))","v":468.57112352199999},{"$f":"IF(AND(OR(Calculations!$E$2=\"Orkney Health Board\",Calculations!$E$2=\"Orkney Islands Local Authority\"),$F206=1),0,IF(AND(OR(Calculations!$E$2=\"Shetland Health Board\",Calculations!$E$2=\"Western Isles Health Board\",Calculations!$E$2=\"Shetland Islands Local Authority\",Calculations!$E$2=\"Eilean Siar Local Authority\"),OR($F206=1,$F206=5)),0,prem_mort(VALUE(LEFT(Options!$B$14,2)),$C206,$E206,$F206,2016,$I206/10+$J206/10,1,$H206/10,$G206*$H206/10,RateRatios_accidents!$B$5)*10))","v":468.50135122200004},null,{"$f":"IF(AND(OR(Calculations!$E$2=\"Orkney Health Board\",Calculations!$E$2=\"Orkney Islands Local Authority\"),$F206=1),0,IF(AND(OR(Calculations!$E$2=\"Shetland Health Board\",Calculations!$E$2=\"Western Isles Health Board\",Calculations!$E$2=\"Shetland Islands Local Authority\",Calculations!$E$2=\"Eilean Siar Local Authority\"),OR($F206=1,$F206=5)),0,new_ci(VALUE(LEFT(Options!$B$14,2)),$C206,$E206,$F206,2016,$I206/10,1,$H206/10,$G206*$H206/10,RateRatios_airpollution!$C206)*10))","v":468.57112352199999},{"$f":"IF(AND(OR(Calculations!$E$2=\"Orkney Health Board\",Calculations!$E$2=\"Orkney Islands Local Authority\"),$F206=1),0,IF(AND(OR(Calculations!$E$2=\"Shetland Health Board\",Calculations!$E$2=\"Western Isles Health Board\",Calculations!$E$2=\"Shetland Islands Local Authority\",Calculations!$E$2=\"Eilean Siar Local Authority\"),OR($F206=1,$F206=5)),0,new_ci(VALUE(LEFT(Options!$B$14,2)),$C206,$E206,$F206,2016,$I206/10+$J206/10,1,$H206/10,$G206*$H206/10,RateRatios_airpollution!$C206)*10))","v":468.56772926100001},{"$f":"IF(AND(OR(Calculations!$E$2=\"Orkney Health Board\",Calculations!$E$2=\"Orkney Islands Local Authority\"),$F206=1),0,IF(AND(OR(Calculations!$E$2=\"Shetland Health Board\",Calculations!$E$2=\"Western Isles Health Board\",Calculations!$E$2=\"Shetland Islands Local Authority\",Calculations!$E$2=\"Eilean Siar Local Authority\"),OR($F206=1,$F206=5)),0,new_yllv2(VALUE(LEFT(Options!$B$14,2)),$C206,$D206,$E206,$F206,2016,$I206/10,1,$H206/10,$G206*$H206/10,RateRatios_airpollution!$C206)*10))","v":6981.7097404779997},{"$f":"IF(AND(OR(Calculations!$E$2=\"Orkney Health Board\",Calculations!$E$2=\"Orkney Islands Local Authority\"),$F206=1),0,IF(AND(OR(Calculations!$E$2=\"Shetland Health Board\",Calculations!$E$2=\"Western Isles Health Board\",Calculations!$E$2=\"Shetland Islands Local Authority\",Calculations!$E$2=\"Eilean Siar Local Authority\"),OR($F206=1,$F206=5)),0,new_yllv2(VALUE(LEFT(Options!$B$14,2)),$C206,$D206,$E206,$F206,2016,$I206/10+$J206/10,1,$H206/10,$G206*$H206/10,RateRatios_airpollution!$C206)*10))","v":6981.659165989},{"$f":"IF(AND(OR(Calculations!$E$2=\"Orkney Health Board\",Calculations!$E$2=\"Orkney Islands Local Authority\"),$F206=1),0,IF(AND(OR(Calculations!$E$2=\"Shetland Health Board\",Calculations!$E$2=\"Western Isles Health Board\",Calculations!$E$2=\"Shetland Islands Local Authority\",Calculations!$E$2=\"Eilean Siar Local Authority\"),OR($F206=1,$F206=5)),0,hosp_count(VALUE(LEFT(Options!$B$14,2)),$C206,$E206,$F206,2016,$I206/10,1,$H206/10,$G206*$H206/10, RateRatios_airpollution!$D206, RateRatios_airpollution!$C206)*10))","v":11479.031884186999},{"$f":"IF(AND(OR(Calculations!$E$2=\"Orkney Health Board\",Calculations!$E$2=\"Orkney Islands Local Authority\"),$F206=1),0,IF(AND(OR(Calculations!$E$2=\"Shetland Health Board\",Calculations!$E$2=\"Western Isles Health Board\",Calculations!$E$2=\"Shetland Islands Local Authority\",Calculations!$E$2=\"Eilean Siar Local Authority\"),OR($F206=1,$F206=5)),0,hosp_count(VALUE(LEFT(Options!$B$14,2)),$C206,$E206,$F206,2016,$I206/10+$J206/10,1,$H206/10,$G206*$H206/10, RateRatios_airpollution!$D206, RateRatios_airpollution!$C206)*10))","v":11478.874123057001},{"$f":"IF(AND(OR(Calculations!$E$2=\"Orkney Health Board\",Calculations!$E$2=\"Orkney Islands Local Authority\"),$F206=1),0,IF(AND(OR(Calculations!$E$2=\"Shetland Health Board\",Calculations!$E$2=\"Western Isles Health Board\",Calculations!$E$2=\"Shetland Islands Local Authority\",Calculations!$E$2=\"Eilean Siar Local Authority\"),OR($F206=1,$F206=5)),0,prem_mort(VALUE(LEFT(Options!$B$14,2)),$C206,$E206,$F206,2016,$I206/10,1,$H206/10,$G206*$H206/10,RateRatios_airpollution!$C206)*10))","v":468.57112352199999},{"$f":"IF(AND(OR(Calculations!$E$2=\"Orkney Health Board\",Calculations!$E$2=\"Orkney Islands Local Authority\"),$F206=1),0,IF(AND(OR(Calculations!$E$2=\"Shetland Health Board\",Calculations!$E$2=\"Western Isles Health Board\",Calculations!$E$2=\"Shetland Islands Local Authority\",Calculations!$E$2=\"Eilean Siar Local Authority\"),OR($F206=1,$F206=5)),0,prem_mort(VALUE(LEFT(Options!$B$14,2)),$C206,$E206,$F206,2016,$I206/10+$J206/10,1,$H206/10,$G206*$H206/10,RateRatios_airpollution!$C206)*10))","v":468.56772926100001},null,{"$f":"IF(AND(OR(Calculations!$E$2=\"Orkney Health Board\",Calculations!$E$2=\"Orkney Islands Local Authority\"),$F206=1),0,IF(AND(OR(Calculations!$E$2=\"Shetland Health Board\",Calculations!$E$2=\"Western Isles Health Board\",Calculations!$E$2=\"Shetland Islands Local Authority\",Calculations!$E$2=\"Eilean Siar Local Authority\"),OR($F206=1,$F206=5)),0,new_ci(VALUE(LEFT(Options!$B$14,2)),$C206,$E206,$F206,2016,$I206/10,1,$H206/10,$G206*$H206/10,RateRatios_airpollution!$E206)*10))","v":468.57112352199999},{"$f":"IF(AND(OR(Calculations!$E$2=\"Orkney Health Board\",Calculations!$E$2=\"Orkney Islands Local Authority\"),$F206=1),0,IF(AND(OR(Calculations!$E$2=\"Shetland Health Board\",Calculations!$E$2=\"Western Isles Health Board\",Calculations!$E$2=\"Shetland Islands Local Authority\",Calculations!$E$2=\"Eilean Siar Local Authority\"),OR($F206=1,$F206=5)),0,new_ci(VALUE(LEFT(Options!$B$14,2)),$C206,$E206,$F206,2016,$I206/10+$J206/10,1,$H206/10,$G206*$H206/10,RateRatios_airpollution!$E206)*10))","v":468.56960268500006},{"$f":"IF(AND(OR(Calculations!$E$2=\"Orkney Health Board\",Calculations!$E$2=\"Orkney Islands Local Authority\"),$F206=1),0,IF(AND(OR(Calculations!$E$2=\"Shetland Health Board\",Calculations!$E$2=\"Western Isles Health Board\",Calculations!$E$2=\"Shetland Islands Local Authority\",Calculations!$E$2=\"Eilean Siar Local Authority\"),OR($F206=1,$F206=5)),0,new_yllv2(VALUE(LEFT(Options!$B$14,2)),$C206,$D206,$E206,$F206,2016,$I206/10,1,$H206/10,$G206*$H206/10,RateRatios_airpollution!$E206)*10))","v":6981.7097404779997},{"$f":"IF(AND(OR(Calculations!$E$2=\"Orkney Health Board\",Calculations!$E$2=\"Orkney Islands Local Authority\"),$F206=1),0,IF(AND(OR(Calculations!$E$2=\"Shetland Health Board\",Calculations!$E$2=\"Western Isles Health Board\",Calculations!$E$2=\"Shetland Islands Local Authority\",Calculations!$E$2=\"Eilean Siar Local Authority\"),OR($F206=1,$F206=5)),0,new_yllv2(VALUE(LEFT(Options!$B$14,2)),$C206,$D206,$E206,$F206,2016,$I206/10+$J206/10,1,$H206/10,$G206*$H206/10,RateRatios_airpollution!$E206)*10))","v":6981.6870800070001},{"$f":"IF(AND(OR(Calculations!$E$2=\"Orkney Health Board\",Calculations!$E$2=\"Orkney Islands Local Authority\"),$F206=1),0,IF(AND(OR(Calculations!$E$2=\"Shetland Health Board\",Calculations!$E$2=\"Western Isles Health Board\",Calculations!$E$2=\"Shetland Islands Local Authority\",Calculations!$E$2=\"Eilean Siar Local Authority\"),OR($F206=1,$F206=5)),0,hosp_count(VALUE(LEFT(Options!$B$14,2)),$C206,$E206,$F206,2016,$I206/10,1,$H206/10,$G206*$H206/10, RateRatios_airpollution!$F206, RateRatios_airpollution!$E206)*10))","v":11479.031884186999},{"$f":"IF(AND(OR(Calculations!$E$2=\"Orkney Health Board\",Calculations!$E$2=\"Orkney Islands Local Authority\"),$F206=1),0,IF(AND(OR(Calculations!$E$2=\"Shetland Health Board\",Calculations!$E$2=\"Western Isles Health Board\",Calculations!$E$2=\"Shetland Islands Local Authority\",Calculations!$E$2=\"Eilean Siar Local Authority\"),OR($F206=1,$F206=5)),0,hosp_count(VALUE(LEFT(Options!$B$14,2)),$C206,$E206,$F206,2016,$I206/10+$J206/10,1,$H206/10,$G206*$H206/10, RateRatios_airpollution!$F206, RateRatios_airpollution!$E206)*10))","v":11479.031884186999},{"$f":"IF(AND(OR(Calculations!$E$2=\"Orkney Health Board\",Calculations!$E$2=\"Orkney Islands Local Authority\"),$F206=1),0,IF(AND(OR(Calculations!$E$2=\"Shetland Health Board\",Calculations!$E$2=\"Western Isles Health Board\",Calculations!$E$2=\"Shetland Islands Local Authority\",Calculations!$E$2=\"Eilean Siar Local Authority\"),OR($F206=1,$F206=5)),0,prem_mort(VALUE(LEFT(Options!$B$14,2)),$C206,$E206,$F206,2016,$I206/10,1,$H206/10,$G206*$H206/10,RateRatios_airpollution!$E206)*10))","v":468.57112352199999},{"$f":"IF(AND(OR(Calculations!$E$2=\"Orkney Health Board\",Calculations!$E$2=\"Orkney Islands Local Authority\"),$F206=1),0,IF(AND(OR(Calculations!$E$2=\"Shetland Health Board\",Calculations!$E$2=\"Western Isles Health Board\",Calculations!$E$2=\"Shetland Islands Local Authority\",Calculations!$E$2=\"Eilean Siar Local Authority\"),OR($F206=1,$F206=5)),0,prem_mort(VALUE(LEFT(Options!$B$14,2)),$C206,$E206,$F206,2016,$I206/10+$J206/10,1,$H206/10,$G206*$H206/10,RateRatios_airpollution!$E206)*10))","v":468.56960268500006},468.57112352199999,468.49643612400013,6981.7097404779997,6980.5968982480008,11479.031884186999,11477.152649225003,468.57112352199999,468.49643612400013,1415.0242299993961,1414.7986837108174,21083.861026991603,21080.500387292388,34665.192620000606,34659.51757330737,1415.0242299993961,1414.7986837108174,7782633.2649966786,7781392.7604094958,115961235.64845382,115942752.13010813,190658559.41000333,190627346.65319052,7782633.2649966786,7781392.7604094958,5500]
[null,"Male 70-74",71.891098,84.341099999999997,"male",4,1,{"$f":"HLOOKUP(Calculations!$E$2,'Population 2016'!$C$3:$BC$249,'Population 2016'!BD207,FALSE)","v":24360},0,{"$f":"HLOOKUP(Calculations!$E$2,Pop2016_in_settlements!$C$3:$BC$249,Pop2016_in_settlements!$BD207,FALSE)","v":9083},{"$f":"IF(AND(OR(Calculations!$E$2=\"Orkney Health Board\",Calculations!$E$2=\"Orkney Islands Local Authority\"),$F207=1),0,IF(AND(OR(Calculations!$E$2=\"Shetland Health Board\",Calculations!$E$2=\"Western Isles Health Board\",Calculations!$E$2=\"Shetland Islands Local Authority\",Calculations!$E$2=\"Eilean Siar Local Authority\"),OR($F207=1,$F207=5)),0,new_ci(VALUE(LEFT(Options!$B$14,2)),$C207,$E207,$F207,2016,$I207/10,1,$H207/10,$G207*$H207/10,RateRatios_accidents!$B$5)*10))","v":495.07082318400001},{"$f":"IF(AND(OR(Calculations!$E$2=\"Orkney Health Board\",Calculations!$E$2=\"Orkney Islands Local Authority\"),$F207=1),0,IF(AND(OR(Calculations!$E$2=\"Shetland Health Board\",Calculations!$E$2=\"Western Isles Health Board\",Calculations!$E$2=\"Shetland Islands Local Authority\",Calculations!$E$2=\"Eilean Siar Local Authority\"),OR($F207=1,$F207=5)),0,new_ci(VALUE(LEFT(Options!$B$14,2)),$C207,$E207,$F207,2016,$I207/10+$J207/10,1,$H207/10,$G207*$H207/10,RateRatios_accidents!$B$5)*10))","v":494.99773954900002},{"$f":"IF(AND(OR(Calculations!$E$2=\"Orkney Health Board\",Calculations!$E$2=\"Orkney Islands Local Authority\"),$F207=1),0,IF(AND(OR(Calculations!$E$2=\"Shetland Health Board\",Calculations!$E$2=\"Western Isles Health Board\",Calculations!$E$2=\"Shetland Islands Local Authority\",Calculations!$E$2=\"Eilean Siar Local Authority\"),OR($F207=1,$F207=5)),0,new_yllv2(VALUE(LEFT(Options!$B$14,2)),$C207,$D207,$E207,$F207,2016,$I207/10,1,$H207/10,$G207*$H207/10,RateRatios_accidents!$B$5)*10))","v":5668.5619155980003},{"$f":"IF(AND(OR(Calculations!$E$2=\"Orkney Health Board\",Calculations!$E$2=\"Orkney Islands Local Authority\"),$F207=1),0,IF(AND(OR(Calculations!$E$2=\"Shetland Health Board\",Calculations!$E$2=\"Western Isles Health Board\",Calculations!$E$2=\"Shetland Islands Local Authority\",Calculations!$E$2=\"Eilean Siar Local Authority\"),OR($F207=1,$F207=5)),0,new_yllv2(VALUE(LEFT(Options!$B$14,2)),$C207,$D207,$E207,$F207,2016,$I207/10+$J207/10,1,$H207/10,$G207*$H207/10,RateRatios_accidents!$B$5)*10))","v":5667.7251078320005},{"$f":"IF(AND(OR(Calculations!$E$2=\"Orkney Health Board\",Calculations!$E$2=\"Orkney Islands Local Authority\"),$F207=1),0,IF(AND(OR(Calculations!$E$2=\"Shetland Health Board\",Calculations!$E$2=\"Western Isles Health Board\",Calculations!$E$2=\"Shetland Islands Local Authority\",Calculations!$E$2=\"Eilean Siar Local Authority\"),OR($F207=1,$F207=5)),0,hosp_count(VALUE(LEFT(Options!$B$14,2)),$C207,$E207,$F207,2016,$I207/10,1,$H207/10,$G207*$H207/10, RateRatios_accidents!$B$4, RateRatios_accidents!$B$5)*10))","v":10026.054313548},{"$f":"IF(AND(OR(Calculations!$E$2=\"Orkney Health Board\",Calculations!$E$2=\"Orkney Islands Local Authority\"),$F207=1),0,IF(AND(OR(Calculations!$E$2=\"Shetland Health Board\",Calculations!$E$2=\"Western Isles Health Board\",Calculations!$E$2=\"Shetland Islands Local Authority\",Calculations!$E$2=\"Eilean Siar Local Authority\"),OR($F207=1,$F207=5)),0,hosp_count(VALUE(LEFT(Options!$B$14,2)),$C207,$E207,$F207,2016,$I207/10+$J207/10,1,$H207/10,$G207*$H207/10, RateRatios_accidents!$B$4, RateRatios_accidents!$B$5)*10))","v":10024.558966542001},{"$f":"IF(AND(OR(Calculations!$E$2=\"Orkney Health Board\",Calculations!$E$2=\"Orkney Islands Local Authority\"),$F207=1),0,IF(AND(OR(Calculations!$E$2=\"Shetland Health Board\",Calculations!$E$2=\"Western Isles Health Board\",Calculations!$E$2=\"Shetland Islands Local Authority\",Calculations!$E$2=\"Eilean Siar Local Authority\"),OR($F207=1,$F207=5)),0,prem_mort(VALUE(LEFT(Options!$B$14,2)),$C207,$E207,$F207,2016,$I207/10,1,$H207/10,$G207*$H207/10,RateRatios_accidents!$B$5)*10))","v":495.07082318400001},{"$f":"IF(AND(OR(Calculations!$E$2=\"Orkney Health Board\",Calculations!$E$2=\"Orkney Islands Local Authority\"),$F207=1),0,IF(AND(OR(Calculations!$E$2=\"Shetland Health Board\",Calculations!$E$2=\"Western Isles Health Board\",Calculations!$E$2=\"Shetland Islands Local Authority\",Calculations!$E$2=\"Eilean Siar Local Authority\"),OR($F207=1,$F207=5)),0,prem_mort(VALUE(LEFT(Options!$B$14,2)),$C207,$E207,$F207,2016,$I207/10+$J207/10,1,$H207/10,$G207*$H207/10,RateRatios_accidents!$B$5)*10))","v":494.99773954900002},null,{"$f":"IF(AND(OR(Calculations!$E$2=\"Orkney Health Board\",Calculations!$E$2=\"Orkney Islands Local Authority\"),$F207=1),0,IF(AND(OR(Calculations!$E$2=\"Shetland Health Board\",Calculations!$E$2=\"Western Isles Health Board\",Calculations!$E$2=\"Shetland Islands Local Authority\",Calculations!$E$2=\"Eilean Siar Local Authority\"),OR($F207=1,$F207=5)),0,new_ci(VALUE(LEFT(Options!$B$14,2)),$C207,$E207,$F207,2016,$I207/10,1,$H207/10,$G207*$H207/10,RateRatios_airpollution!$C207)*10))","v":495.07082318400001},{"$f":"IF(AND(OR(Calculations!$E$2=\"Orkney Health Board\",Calculations!$E$2=\"Orkney Islands Local Authority\"),$F207=1),0,IF(AND(OR(Calculations!$E$2=\"Shetland Health Board\",Calculations!$E$2=\"Western Isles Health Board\",Calculations!$E$2=\"Shetland Islands Local Authority\",Calculations!$E$2=\"Eilean Siar Local Authority\"),OR($F207=1,$F207=5)),0,new_ci(VALUE(LEFT(Options!$B$14,2)),$C207,$E207,$F207,2016,$I207/10+$J207/10,1,$H207/10,$G207*$H207/10,RateRatios_airpollution!$C207)*10))","v":495.06739616799996},{"$f":"IF(AND(OR(Calculations!$E$2=\"Orkney Health Board\",Calculations!$E$2=\"Orkney Islands Local Authority\"),$F207=1),0,IF(AND(OR(Calculations!$E$2=\"Shetland Health Board\",Calculations!$E$2=\"Western Isles Health Board\",Calculations!$E$2=\"Shetland Islands Local Authority\",Calculations!$E$2=\"Eilean Siar Local Authority\"),OR($F207=1,$F207=5)),0,new_yllv2(VALUE(LEFT(Options!$B$14,2)),$C207,$D207,$E207,$F207,2016,$I207/10,1,$H207/10,$G207*$H207/10,RateRatios_airpollution!$C207)*10))","v":5668.5619155980003},{"$f":"IF(AND(OR(Calculations!$E$2=\"Orkney Health Board\",Calculations!$E$2=\"Orkney Islands Local Authority\"),$F207=1),0,IF(AND(OR(Calculations!$E$2=\"Shetland Health Board\",Calculations!$E$2=\"Western Isles Health Board\",Calculations!$E$2=\"Shetland Islands Local Authority\",Calculations!$E$2=\"Eilean Siar Local Authority\"),OR($F207=1,$F207=5)),0,new_yllv2(VALUE(LEFT(Options!$B$14,2)),$C207,$D207,$E207,$F207,2016,$I207/10+$J207/10,1,$H207/10,$G207*$H207/10,RateRatios_airpollution!$C207)*10))","v":5668.5226762579996},{"$f":"IF(AND(OR(Calculations!$E$2=\"Orkney Health Board\",Calculations!$E$2=\"Orkney Islands Local Authority\"),$F207=1),0,IF(AND(OR(Calculations!$E$2=\"Shetland Health Board\",Calculations!$E$2=\"Western Isles Health Board\",Calculations!$E$2=\"Shetland Islands Local Authority\",Calculations!$E$2=\"Eilean Siar Local Authority\"),OR($F207=1,$F207=5)),0,hosp_count(VALUE(LEFT(Options!$B$14,2)),$C207,$E207,$F207,2016,$I207/10,1,$H207/10,$G207*$H207/10, RateRatios_airpollution!$D207, RateRatios_airpollution!$C207)*10))","v":10026.054313548},{"$f":"IF(AND(OR(Calculations!$E$2=\"Orkney Health Board\",Calculations!$E$2=\"Orkney Islands Local Authority\"),$F207=1),0,IF(AND(OR(Calculations!$E$2=\"Shetland Health Board\",Calculations!$E$2=\"Western Isles Health Board\",Calculations!$E$2=\"Shetland Islands Local Authority\",Calculations!$E$2=\"Eilean Siar Local Authority\"),OR($F207=1,$F207=5)),0,hosp_count(VALUE(LEFT(Options!$B$14,2)),$C207,$E207,$F207,2016,$I207/10+$J207/10,1,$H207/10,$G207*$H207/10, RateRatios_airpollution!$D207, RateRatios_airpollution!$C207)*10))","v":10025.922230378999},{"$f":"IF(AND(OR(Calculations!$E$2=\"Orkney Health Board\",Calculations!$E$2=\"Orkney Islands Local Authority\"),$F207=1),0,IF(AND(OR(Calculations!$E$2=\"Shetland Health Board\",Calculations!$E$2=\"Western Isles Health Board\",Calculations!$E$2=\"Shetland Islands Local Authority\",Calculations!$E$2=\"Eilean Siar Local Authority\"),OR($F207=1,$F207=5)),0,prem_mort(VALUE(LEFT(Options!$B$14,2)),$C207,$E207,$F207,2016,$I207/10,1,$H207/10,$G207*$H207/10,RateRatios_airpollution!$C207)*10))","v":495.07082318400001},{"$f":"IF(AND(OR(Calculations!$E$2=\"Orkney Health Board\",Calculations!$E$2=\"Orkney Islands Local Authority\"),$F207=1),0,IF(AND(OR(Calculations!$E$2=\"Shetland Health Board\",Calculations!$E$2=\"Western Isles Health Board\",Calculations!$E$2=\"Shetland Islands Local Authority\",Calculations!$E$2=\"Eilean Siar Local Authority\"),OR($F207=1,$F207=5)),0,prem_mort(VALUE(LEFT(Options!$B$14,2)),$C207,$E207,$F207,2016,$I207/10+$J207/10,1,$H207/10,$G207*$H207/10,RateRatios_airpollution!$C207)*10))","v":495.06739616799996},null,{"$f":"IF(AND(OR(Calculations!$E$2=\"Orkney Health Board\",Calculations!$E$2=\"Orkney Islands Local Authority\"),$F207=1),0,IF(AND(OR(Calculations!$E$2=\"Shetland Health Board\",Calculations!$E$2=\"Western Isles Health Board\",Calculations!$E$2=\"Shetland Islands Local Authority\",Calculations!$E$2=\"Eilean Siar Local Authority\"),OR($F207=1,$F207=5)),0,new_ci(VALUE(LEFT(Options!$B$14,2)),$C207,$E207,$F207,2016,$I207/10,1,$H207/10,$G207*$H207/10,RateRatios_airpollution!$E207)*10))","v":495.07082318400001},{"$f":"IF(AND(OR(Calculations!$E$2=\"Orkney Health Board\",Calculations!$E$2=\"Orkney Islands Local Authority\"),$F207=1),0,IF(AND(OR(Calculations!$E$2=\"Shetland Health Board\",Calculations!$E$2=\"Western Isles Health Board\",Calculations!$E$2=\"Shetland Islands Local Authority\",Calculations!$E$2=\"Eilean Siar Local Authority\"),OR($F207=1,$F207=5)),0,new_ci(VALUE(LEFT(Options!$B$14,2)),$C207,$E207,$F207,2016,$I207/10+$J207/10,1,$H207/10,$G207*$H207/10,RateRatios_airpollution!$E207)*10))","v":495.06928815700002},{"$f":"IF(AND(OR(Calculations!$E$2=\"Orkney Health Board\",Calculations!$E$2=\"Orkney Islands Local Authority\"),$F207=1),0,IF(AND(OR(Calculations!$E$2=\"Shetland Health Board\",Calculations!$E$2=\"Western Isles Health Board\",Calculations!$E$2=\"Shetland Islands Local Authority\",Calculations!$E$2=\"Eilean Siar Local Authority\"),OR($F207=1,$F207=5)),0,new_yllv2(VALUE(LEFT(Options!$B$14,2)),$C207,$D207,$E207,$F207,2016,$I207/10,1,$H207/10,$G207*$H207/10,RateRatios_airpollution!$E207)*10))","v":5668.5619155980003},{"$f":"IF(AND(OR(Calculations!$E$2=\"Orkney Health Board\",Calculations!$E$2=\"Orkney Islands Local Authority\"),$F207=1),0,IF(AND(OR(Calculations!$E$2=\"Shetland Health Board\",Calculations!$E$2=\"Western Isles Health Board\",Calculations!$E$2=\"Shetland Islands Local Authority\",Calculations!$E$2=\"Eilean Siar Local Authority\"),OR($F207=1,$F207=5)),0,new_yllv2(VALUE(LEFT(Options!$B$14,2)),$C207,$D207,$E207,$F207,2016,$I207/10+$J207/10,1,$H207/10,$G207*$H207/10,RateRatios_airpollution!$E207)*10))","v":5668.5443395360007},{"$f":"IF(AND(OR(Calculations!$E$2=\"Orkney Health Board\",Calculations!$E$2=\"Orkney Islands Local Authority\"),$F207=1),0,IF(AND(OR(Calculations!$E$2=\"Shetland Health Board\",Calculations!$E$2=\"Western Isles Health Board\",Calculations!$E$2=\"Shetland Islands Local Authority\",Calculations!$E$2=\"Eilean Siar Local Authority\"),OR($F207=1,$F207=5)),0,hosp_count(VALUE(LEFT(Options!$B$14,2)),$C207,$E207,$F207,2016,$I207/10,1,$H207/10,$G207*$H207/10, RateRatios_airpollution!$F207, RateRatios_airpollution!$E207)*10))","v":10026.054313548},{"$f":"IF(AND(OR(Calculations!$E$2=\"Orkney Health Board\",Calculations!$E$2=\"Orkney Islands Local Authority\"),$F207=1),0,IF(AND(OR(Calculations!$E$2=\"Shetland Health Board\",Calculations!$E$2=\"Western Isles Health Board\",Calculations!$E$2=\"Shetland Islands Local Authority\",Calculations!$E$2=\"Eilean Siar Local Authority\"),OR($F207=1,$F207=5)),0,hosp_count(VALUE(LEFT(Options!$B$14,2)),$C207,$E207,$F207,2016,$I207/10+$J207/10,1,$H207/10,$G207*$H207/10, RateRatios_airpollution!$F207, RateRatios_airpollution!$E207)*10))","v":10026.054313548},{"$f":"IF(AND(OR(Calculations!$E$2=\"Orkney Health Board\",Calculations!$E$2=\"Orkney Islands Local Authority\"),$F207=1),0,IF(AND(OR(Calculations!$E$2=\"Shetland Health Board\",Calculations!$E$2=\"Western Isles Health Board\",Calculations!$E$2=\"Shetland Islands Local Authority\",Calculations!$E$2=\"Eilean Siar Local Authority\"),OR($F207=1,$F207=5)),0,prem_mort(VALUE(LEFT(Options!$B$14,2)),$C207,$E207,$F207,2016,$I207/10,1,$H207/10,$G207*$H207/10,RateRatios_airpollution!$E207)*10))","v":495.07082318400001},{"$f":"IF(AND(OR(Calculations!$E$2=\"Orkney Health Board\",Calculations!$E$2=\"Orkney Islands Local Authority\"),$F207=1),0,IF(AND(OR(Calculations!$E$2=\"Shetland Health Board\",Calculations!$E$2=\"Western Isles Health Board\",Calculations!$E$2=\"Shetland Islands Local Authority\",Calculations!$E$2=\"Eilean Siar Local Authority\"),OR($F207=1,$F207=5)),0,prem_mort(VALUE(LEFT(Options!$B$14,2)),$C207,$E207,$F207,2016,$I207/10+$J207/10,1,$H207/10,$G207*$H207/10,RateRatios_airpollution!$E207)*10))","v":495.06928815700002},495.07082318400001,494.99277750599998,5668.5619155980003,5667.6682924300003,10026.054313548,10024.426883373,495.07082318400001,494.99277750599998,2032.3104400000002,2031.9900554433495,23269.958602619048,23266.290198809525,41157.85843,41151.177682155176,2032.3104400000002,2031.9900554433495,10161552.200000001,10159950.277216747,116349793.01309524,116331450.99404763,205789292.15000001,205755888.41077587,10161552.200000001,10159950.277216747,5000]
[null,"Male 75-79",76.907700000000006,86.357700000000008,"male",4,1,{"$f":"HLOOKUP(Calculations!$E$2,'Population 2016'!$C$3:$BC$249,'Population 2016'!BD208,FALSE)","v":17285},0,{"$f":"HLOOKUP(Calculations!$E$2,Pop2016_in_settlements!$C$3:$BC$249,Pop2016_in_settlements!$BD208,FALSE)","v":6716},{"$f":"IF(AND(OR(Calculations!$E$2=\"Orkney Health Board\",Calculations!$E$2=\"Orkney Islands Local Authority\"),$F208=1),0,IF(AND(OR(Calculations!$E$2=\"Shetland Health Board\",Calculations!$E$2=\"Western Isles Health Board\",Calculations!$E$2=\"Shetland Islands Local Authority\",Calculations!$E$2=\"Eilean Siar Local Authority\"),OR($F208=1,$F208=5)),0,new_ci(VALUE(LEFT(Options!$B$14,2)),$C208,$E208,$F208,2016,$I208/10,1,$H208/10,$G208*$H208/10,RateRatios_accidents!$B$5)*10))","v":510.62337037399999},{"$f":"IF(AND(OR(Calculations!$E$2=\"Orkney Health Board\",Calculations!$E$2=\"Orkney Islands Local Authority\"),$F208=1),0,IF(AND(OR(Calculations!$E$2=\"Shetland Health Board\",Calculations!$E$2=\"Western Isles Health Board\",Calculations!$E$2=\"Shetland Islands Local Authority\",Calculations!$E$2=\"Eilean Siar Local Authority\"),OR($F208=1,$F208=5)),0,new_ci(VALUE(LEFT(Options!$B$14,2)),$C208,$E208,$F208,2016,$I208/10+$J208/10,1,$H208/10,$G208*$H208/10,RateRatios_accidents!$B$5)*10))","v":510.54519411999996},{"$f":"IF(AND(OR(Calculations!$E$2=\"Orkney Health Board\",Calculations!$E$2=\"Orkney Islands Local Authority\"),$F208=1),0,IF(AND(OR(Calculations!$E$2=\"Shetland Health Board\",Calculations!$E$2=\"Western Isles Health Board\",Calculations!$E$2=\"Shetland Islands Local Authority\",Calculations!$E$2=\"Eilean Siar Local Authority\"),OR($F208=1,$F208=5)),0,new_yllv2(VALUE(LEFT(Options!$B$14,2)),$C208,$D208,$E208,$F208,2016,$I208/10,1,$H208/10,$G208*$H208/10,RateRatios_accidents!$B$5)*10))","v":4314.7674796600004},{"$f":"IF(AND(OR(Calculations!$E$2=\"Orkney Health Board\",Calculations!$E$2=\"Orkney Islands Local Authority\"),$F208=1),0,IF(AND(OR(Calculations!$E$2=\"Shetland Health Board\",Calculations!$E$2=\"Western Isles Health Board\",Calculations!$E$2=\"Shetland Islands Local Authority\",Calculations!$E$2=\"Eilean Siar Local Authority\"),OR($F208=1,$F208=5)),0,new_yllv2(VALUE(LEFT(Options!$B$14,2)),$C208,$D208,$E208,$F208,2016,$I208/10+$J208/10,1,$H208/10,$G208*$H208/10,RateRatios_accidents!$B$5)*10))","v":4314.1068903140003},{"$f":"IF(AND(OR(Calculations!$E$2=\"Orkney Health Board\",Calculations!$E$2=\"Orkney Islands Local Authority\"),$F208=1),0,IF(AND(OR(Calculations!$E$2=\"Shetland Health Board\",Calculations!$E$2=\"Western Isles Health Board\",Calculations!$E$2=\"Shetland Islands Local Authority\",Calculations!$E$2=\"Eilean Siar Local Authority\"),OR($F208=1,$F208=5)),0,hosp_count(VALUE(LEFT(Options!$B$14,2)),$C208,$E208,$F208,2016,$I208/10,1,$H208/10,$G208*$H208/10, RateRatios_accidents!$B$4, RateRatios_accidents!$B$5)*10))","v":8500.7040771640004},{"$f":"IF(AND(OR(Calculations!$E$2=\"Orkney Health Board\",Calculations!$E$2=\"Orkney Islands Local Authority\"),$F208=1),0,IF(AND(OR(Calculations!$E$2=\"Shetland Health Board\",Calculations!$E$2=\"Western Isles Health Board\",Calculations!$E$2=\"Shetland Islands Local Authority\",Calculations!$E$2=\"Eilean Siar Local Authority\"),OR($F208=1,$F208=5)),0,hosp_count(VALUE(LEFT(Options!$B$14,2)),$C208,$E208,$F208,2016,$I208/10+$J208/10,1,$H208/10,$G208*$H208/10, RateRatios_accidents!$B$4, RateRatios_accidents!$B$5)*10))","v":8499.3829150460006},{"$f":"IF(AND(OR(Calculations!$E$2=\"Orkney Health Board\",Calculations!$E$2=\"Orkney Islands Local Authority\"),$F208=1),0,IF(AND(OR(Calculations!$E$2=\"Shetland Health Board\",Calculations!$E$2=\"Western Isles Health Board\",Calculations!$E$2=\"Shetland Islands Local Authority\",Calculations!$E$2=\"Eilean Siar Local Authority\"),OR($F208=1,$F208=5)),0,prem_mort(VALUE(LEFT(Options!$B$14,2)),$C208,$E208,$F208,2016,$I208/10,1,$H208/10,$G208*$H208/10,RateRatios_accidents!$B$5)*10))","v":0},{"$f":"IF(AND(OR(Calculations!$E$2=\"Orkney Health Board\",Calculations!$E$2=\"Orkney Islands Local Authority\"),$F208=1),0,IF(AND(OR(Calculations!$E$2=\"Shetland Health Board\",Calculations!$E$2=\"Western Isles Health Board\",Calculations!$E$2=\"Shetland Islands Local Authority\",Calculations!$E$2=\"Eilean Siar Local Authority\"),OR($F208=1,$F208=5)),0,prem_mort(VALUE(LEFT(Options!$B$14,2)),$C208,$E208,$F208,2016,$I208/10+$J208/10,1,$H208/10,$G208*$H208/10,RateRatios_accidents!$B$5)*10))","v":0},null,{"$f":"IF(AND(OR(Calculations!$E$2=\"Orkney Health Board\",Calculations!$E$2=\"Orkney Islands Local Authority\"),$F208=1),0,IF(AND(OR(Calculations!$E$2=\"Shetland Health Board\",Calculations!$E$2=\"Western Isles Health Board\",Calculations!$E$2=\"Shetland Islands Local Authority\",Calculations!$E$2=\"Eilean Siar Local Authority\"),OR($F208=1,$F208=5)),0,new_ci(VALUE(LEFT(Options!$B$14,2)),$C208,$E208,$F208,2016,$I208/10,1,$H208/10,$G208*$H208/10,RateRatios_airpollution!$C208)*10))","v":510.62337037399999},{"$f":"IF(AND(OR(Calculations!$E$2=\"Orkney Health Board\",Calculations!$E$2=\"Orkney Islands Local Authority\"),$F208=1),0,IF(AND(OR(Calculations!$E$2=\"Shetland Health Board\",Calculations!$E$2=\"Western Isles Health Board\",Calculations!$E$2=\"Shetland Islands Local Authority\",Calculations!$E$2=\"Eilean Siar Local Authority\"),OR($F208=1,$F208=5)),0,new_ci(VALUE(LEFT(Options!$B$14,2)),$C208,$E208,$F208,2016,$I208/10+$J208/10,1,$H208/10,$G208*$H208/10,RateRatios_airpollution!$C208)*10))","v":510.61966582899998},{"$f":"IF(AND(OR(Calculations!$E$2=\"Orkney Health Board\",Calculations!$E$2=\"Orkney Islands Local Authority\"),$F208=1),0,IF(AND(OR(Calculations!$E$2=\"Shetland Health Board\",Calculations!$E$2=\"Western Isles Health Board\",Calculations!$E$2=\"Shetland Islands Local Authority\",Calculations!$E$2=\"Eilean Siar Local Authority\"),OR($F208=1,$F208=5)),0,new_yllv2(VALUE(LEFT(Options!$B$14,2)),$C208,$D208,$E208,$F208,2016,$I208/10,1,$H208/10,$G208*$H208/10,RateRatios_airpollution!$C208)*10))","v":4314.7674796600004},{"$f":"IF(AND(OR(Calculations!$E$2=\"Orkney Health Board\",Calculations!$E$2=\"Orkney Islands Local Authority\"),$F208=1),0,IF(AND(OR(Calculations!$E$2=\"Shetland Health Board\",Calculations!$E$2=\"Western Isles Health Board\",Calculations!$E$2=\"Shetland Islands Local Authority\",Calculations!$E$2=\"Eilean Siar Local Authority\"),OR($F208=1,$F208=5)),0,new_yllv2(VALUE(LEFT(Options!$B$14,2)),$C208,$D208,$E208,$F208,2016,$I208/10+$J208/10,1,$H208/10,$G208*$H208/10,RateRatios_airpollution!$C208)*10))","v":4314.7361762549999},{"$f":"IF(AND(OR(Calculations!$E$2=\"Orkney Health Board\",Calculations!$E$2=\"Orkney Islands Local Authority\"),$F208=1),0,IF(AND(OR(Calculations!$E$2=\"Shetland Health Board\",Calculations!$E$2=\"Western Isles Health Board\",Calculations!$E$2=\"Shetland Islands Local Authority\",Calculations!$E$2=\"Eilean Siar Local Authority\"),OR($F208=1,$F208=5)),0,hosp_count(VALUE(LEFT(Options!$B$14,2)),$C208,$E208,$F208,2016,$I208/10,1,$H208/10,$G208*$H208/10, RateRatios_airpollution!$D208, RateRatios_airpollution!$C208)*10))","v":8500.7040771640004},{"$f":"IF(AND(OR(Calculations!$E$2=\"Orkney Health Board\",Calculations!$E$2=\"Orkney Islands Local Authority\"),$F208=1),0,IF(AND(OR(Calculations!$E$2=\"Shetland Health Board\",Calculations!$E$2=\"Western Isles Health Board\",Calculations!$E$2=\"Shetland Islands Local Authority\",Calculations!$E$2=\"Eilean Siar Local Authority\"),OR($F208=1,$F208=5)),0,hosp_count(VALUE(LEFT(Options!$B$14,2)),$C208,$E208,$F208,2016,$I208/10+$J208/10,1,$H208/10,$G208*$H208/10, RateRatios_airpollution!$D208, RateRatios_airpollution!$C208)*10))","v":8500.5861267420005},{"$f":"IF(AND(OR(Calculations!$E$2=\"Orkney Health Board\",Calculations!$E$2=\"Orkney Islands Local Authority\"),$F208=1),0,IF(AND(OR(Calculations!$E$2=\"Shetland Health Board\",Calculations!$E$2=\"Western Isles Health Board\",Calculations!$E$2=\"Shetland Islands Local Authority\",Calculations!$E$2=\"Eilean Siar Local Authority\"),OR($F208=1,$F208=5)),0,prem_mort(VALUE(LEFT(Options!$B$14,2)),$C208,$E208,$F208,2016,$I208/10,1,$H208/10,$G208*$H208/10,RateRatios_airpollution!$C208)*10))","v":0},{"$f":"IF(AND(OR(Calculations!$E$2=\"Orkney Health Board\",Calculations!$E$2=\"Orkney Islands Local Authority\"),$F208=1),0,IF(AND(OR(Calculations!$E$2=\"Shetland Health Board\",Calculations!$E$2=\"Western Isles Health Board\",Calculations!$E$2=\"Shetland Islands Local Authority\",Calculations!$E$2=\"Eilean Siar Local Authority\"),OR($F208=1,$F208=5)),0,prem_mort(VALUE(LEFT(Options!$B$14,2)),$C208,$E208,$F208,2016,$I208/10+$J208/10,1,$H208/10,$G208*$H208/10,RateRatios_airpollution!$C208)*10))","v":0},null,{"$f":"IF(AND(OR(Calculations!$E$2=\"Orkney Health Board\",Calculations!$E$2=\"Orkney Islands Local Authority\"),$F208=1),0,IF(AND(OR(Calculations!$E$2=\"Shetland Health Board\",Calculations!$E$2=\"Western Isles Health Board\",Calculations!$E$2=\"Shetland Islands Local Authority\",Calculations!$E$2=\"Eilean Siar Local Authority\"),OR($F208=1,$F208=5)),0,new_ci(VALUE(LEFT(Options!$B$14,2)),$C208,$E208,$F208,2016,$I208/10,1,$H208/10,$G208*$H208/10,RateRatios_airpollution!$E208)*10))","v":510.62337037399999},{"$f":"IF(AND(OR(Calculations!$E$2=\"Orkney Health Board\",Calculations!$E$2=\"Orkney Islands Local Authority\"),$F208=1),0,IF(AND(OR(Calculations!$E$2=\"Shetland Health Board\",Calculations!$E$2=\"Western Isles Health Board\",Calculations!$E$2=\"Shetland Islands Local Authority\",Calculations!$E$2=\"Eilean Siar Local Authority\"),OR($F208=1,$F208=5)),0,new_ci(VALUE(LEFT(Options!$B$14,2)),$C208,$E208,$F208,2016,$I208/10+$J208/10,1,$H208/10,$G208*$H208/10,RateRatios_airpollution!$E208)*10))","v":510.62171487999996},{"$f":"IF(AND(OR(Calculations!$E$2=\"Orkney Health Board\",Calculations!$E$2=\"Orkney Islands Local Authority\"),$F208=1),0,IF(AND(OR(Calculations!$E$2=\"Shetland Health Board\",Calculations!$E$2=\"Western Isles Health Board\",Calculations!$E$2=\"Shetland Islands Local Authority\",Calculations!$E$2=\"Eilean Siar Local Authority\"),OR($F208=1,$F208=5)),0,new_yllv2(VALUE(LEFT(Options!$B$14,2)),$C208,$D208,$E208,$F208,2016,$I208/10,1,$H208/10,$G208*$H208/10,RateRatios_airpollution!$E208)*10))","v":4314.7674796600004},{"$f":"IF(AND(OR(Calculations!$E$2=\"Orkney Health Board\",Calculations!$E$2=\"Orkney Islands Local Authority\"),$F208=1),0,IF(AND(OR(Calculations!$E$2=\"Shetland Health Board\",Calculations!$E$2=\"Western Isles Health Board\",Calculations!$E$2=\"Shetland Islands Local Authority\",Calculations!$E$2=\"Eilean Siar Local Authority\"),OR($F208=1,$F208=5)),0,new_yllv2(VALUE(LEFT(Options!$B$14,2)),$C208,$D208,$E208,$F208,2016,$I208/10+$J208/10,1,$H208/10,$G208*$H208/10,RateRatios_airpollution!$E208)*10))","v":4314.7534907360005},{"$f":"IF(AND(OR(Calculations!$E$2=\"Orkney Health Board\",Calculations!$E$2=\"Orkney Islands Local Authority\"),$F208=1),0,IF(AND(OR(Calculations!$E$2=\"Shetland Health Board\",Calculations!$E$2=\"Western Isles Health Board\",Calculations!$E$2=\"Shetland Islands Local Authority\",Calculations!$E$2=\"Eilean Siar Local Authority\"),OR($F208=1,$F208=5)),0,hosp_count(VALUE(LEFT(Options!$B$14,2)),$C208,$E208,$F208,2016,$I208/10,1,$H208/10,$G208*$H208/10, RateRatios_airpollution!$F208, RateRatios_airpollution!$E208)*10))","v":8500.7040771640004},{"$f":"IF(AND(OR(Calculations!$E$2=\"Orkney Health Board\",Calculations!$E$2=\"Orkney Islands Local Authority\"),$F208=1),0,IF(AND(OR(Calculations!$E$2=\"Shetland Health Board\",Calculations!$E$2=\"Western Isles Health Board\",Calculations!$E$2=\"Shetland Islands Local Authority\",Calculations!$E$2=\"Eilean Siar Local Authority\"),OR($F208=1,$F208=5)),0,hosp_count(VALUE(LEFT(Options!$B$14,2)),$C208,$E208,$F208,2016,$I208/10+$J208/10,1,$H208/10,$G208*$H208/10, RateRatios_airpollution!$F208, RateRatios_airpollution!$E208)*10))","v":8500.7040771640004},{"$f":"IF(AND(OR(Calculations!$E$2=\"Orkney Health Board\",Calculations!$E$2=\"Orkney Islands Local Authority\"),$F208=1),0,IF(AND(OR(Calculations!$E$2=\"Shetland Health Board\",Calculations!$E$2=\"Western Isles Health Board\",Calculations!$E$2=\"Shetland Islands Local Authority\",Calculations!$E$2=\"Eilean Siar Local Authority\"),OR($F208=1,$F208=5)),0,prem_mort(VALUE(LEFT(Options!$B$14,2)),$C208,$E208,$F208,2016,$I208/10,1,$H208/10,$G208*$H208/10,RateRatios_airpollution!$E208)*10))","v":0},{"$f":"IF(AND(OR(Calculations!$E$2=\"Orkney Health Board\",Calculations!$E$2=\"Orkney Islands Local Authority\"),$F208=1),0,IF(AND(OR(Calculations!$E$2=\"Shetland Health Board\",Calculations!$E$2=\"Western Isles Health Board\",Calculations!$E$2=\"Shetland Islands Local Authority\",Calculations!$E$2=\"Eilean Siar Local Authority\"),OR($F208=1,$F208=5)),0,prem_mort(VALUE(LEFT(Options!$B$14,2)),$C208,$E208,$F208,2016,$I208/10+$J208/10,1,$H208/10,$G208*$H208/10,RateRatios_airpollution!$E208)*10))","v":0},510.62337037399999,510.53983408099992,4314.7674796600004,4314.0615979849999,8500.7040771640004,8499.2649646240006,0,0,2954.1415699971071,2953.6582822157939,24962.496266473823,24958.412484726643,49179.659110002896,49171.333321515769,0,0,11816566.279988429,11814633.128863176,99849985.065895289,99833649.938906565,196718636.44001159,196685333.28606308,0,0,4000]
[null,"Male 80-84",81.797089,88.627089999999995,"male",4,1,{"$f":"HLOOKUP(Calculations!$E$2,'Population 2016'!$C$3:$BC$249,'Population 2016'!BD209,FALSE)","v":11713},0,{"$f":"HLOOKUP(Calculations!$E$2,Pop2016_in_settlements!$C$3:$BC$249,Pop2016_in_settlements!$BD209,FALSE)","v":4634},{"$f":"IF(AND(OR(Calculations!$E$2=\"Orkney Health Board\",Calculations!$E$2=\"Orkney Islands Local Authority\"),$F209=1),0,IF(AND(OR(Calculations!$E$2=\"Shetland Health Board\",Calculations!$E$2=\"Western Isles Health Board\",Calculations!$E$2=\"Shetland Islands Local Authority\",Calculations!$E$2=\"Eilean Siar Local Authority\"),OR($F209=1,$F209=5)),0,new_ci(VALUE(LEFT(Options!$B$14,2)),$C209,$E209,$F209,2016,$I209/10,1,$H209/10,$G209*$H209/10,RateRatios_accidents!$B$5)*10))","v":497.192281982},{"$f":"IF(AND(OR(Calculations!$E$2=\"Orkney Health Board\",Calculations!$E$2=\"Orkney Islands Local Authority\"),$F209=1),0,IF(AND(OR(Calculations!$E$2=\"Shetland Health Board\",Calculations!$E$2=\"Western Isles Health Board\",Calculations!$E$2=\"Shetland Islands Local Authority\",Calculations!$E$2=\"Eilean Siar Local Authority\"),OR($F209=1,$F209=5)),0,new_ci(VALUE(LEFT(Options!$B$14,2)),$C209,$E209,$F209,2016,$I209/10+$J209/10,1,$H209/10,$G209*$H209/10,RateRatios_accidents!$B$5)*10))","v":497.11529363300002},{"$f":"IF(AND(OR(Calculations!$E$2=\"Orkney Health Board\",Calculations!$E$2=\"Orkney Islands Local Authority\"),$F209=1),0,IF(AND(OR(Calculations!$E$2=\"Shetland Health Board\",Calculations!$E$2=\"Western Isles Health Board\",Calculations!$E$2=\"Shetland Islands Local Authority\",Calculations!$E$2=\"Eilean Siar Local Authority\"),OR($F209=1,$F209=5)),0,new_yllv2(VALUE(LEFT(Options!$B$14,2)),$C209,$D209,$E209,$F209,2016,$I209/10,1,$H209/10,$G209*$H209/10,RateRatios_accidents!$B$5)*10))","v":2898.6315011469997},{"$f":"IF(AND(OR(Calculations!$E$2=\"Orkney Health Board\",Calculations!$E$2=\"Orkney Islands Local Authority\"),$F209=1),0,IF(AND(OR(Calculations!$E$2=\"Shetland Health Board\",Calculations!$E$2=\"Western Isles Health Board\",Calculations!$E$2=\"Shetland Islands Local Authority\",Calculations!$E$2=\"Eilean Siar Local Authority\"),OR($F209=1,$F209=5)),0,new_yllv2(VALUE(LEFT(Options!$B$14,2)),$C209,$D209,$E209,$F209,2016,$I209/10+$J209/10,1,$H209/10,$G209*$H209/10,RateRatios_accidents!$B$5)*10))","v":2898.1826589960001},{"$f":"IF(AND(OR(Calculations!$E$2=\"Orkney Health Board\",Calculations!$E$2=\"Orkney Islands Local Authority\"),$F209=1),0,IF(AND(OR(Calculations!$E$2=\"Shetland Health Board\",Calculations!$E$2=\"Western Isles Health Board\",Calculations!$E$2=\"Shetland Islands Local Authority\",Calculations!$E$2=\"Eilean Siar Local Authority\"),OR($F209=1,$F209=5)),0,hosp_count(VALUE(LEFT(Options!$B$14,2)),$C209,$E209,$F209,2016,$I209/10,1,$H209/10,$G209*$H209/10, RateRatios_accidents!$B$4, RateRatios_accidents!$B$5)*10))","v":6852.1264324469994},{"$f":"IF(AND(OR(Calculations!$E$2=\"Orkney Health Board\",Calculations!$E$2=\"Orkney Islands Local Authority\"),$F209=1),0,IF(AND(OR(Calculations!$E$2=\"Shetland Health Board\",Calculations!$E$2=\"Western Isles Health Board\",Calculations!$E$2=\"Shetland Islands Local Authority\",Calculations!$E$2=\"Eilean Siar Local Authority\"),OR($F209=1,$F209=5)),0,hosp_count(VALUE(LEFT(Options!$B$14,2)),$C209,$E209,$F209,2016,$I209/10+$J209/10,1,$H209/10,$G209*$H209/10, RateRatios_accidents!$B$4, RateRatios_accidents!$B$5)*10))","v":6851.0420732039993},{"$f":"IF(AND(OR(Calculations!$E$2=\"Orkney Health Board\",Calculations!$E$2=\"Orkney Islands Local Authority\"),$F209=1),0,IF(AND(OR(Calculations!$E$2=\"Shetland Health Board\",Calculations!$E$2=\"Western Isles Health Board\",Calculations!$E$2=\"Shetland Islands Local Authority\",Calculations!$E$2=\"Eilean Siar Local Authority\"),OR($F209=1,$F209=5)),0,prem_mort(VALUE(LEFT(Options!$B$14,2)),$C209,$E209,$F209,2016,$I209/10,1,$H209/10,$G209*$H209/10,RateRatios_accidents!$B$5)*10))","v":0},{"$f":"IF(AND(OR(Calculations!$E$2=\"Orkney Health Board\",Calculations!$E$2=\"Orkney Islands Local Authority\"),$F209=1),0,IF(AND(OR(Calculations!$E$2=\"Shetland Health Board\",Calculations!$E$2=\"Western Isles Health Board\",Calculations!$E$2=\"Shetland Islands Local Authority\",Calculations!$E$2=\"Eilean Siar Local Authority\"),OR($F209=1,$F209=5)),0,prem_mort(VALUE(LEFT(Options!$B$14,2)),$C209,$E209,$F209,2016,$I209/10+$J209/10,1,$H209/10,$G209*$H209/10,RateRatios_accidents!$B$5)*10))","v":0},null,{"$f":"IF(AND(OR(Calculations!$E$2=\"Orkney Health Board\",Calculations!$E$2=\"Orkney Islands Local Authority\"),$F209=1),0,IF(AND(OR(Calculations!$E$2=\"Shetland Health Board\",Calculations!$E$2=\"Western Isles Health Board\",Calculations!$E$2=\"Shetland Islands Local Authority\",Calculations!$E$2=\"Eilean Siar Local Authority\"),OR($F209=1,$F209=5)),0,new_ci(VALUE(LEFT(Options!$B$14,2)),$C209,$E209,$F209,2016,$I209/10,1,$H209/10,$G209*$H209/10,RateRatios_airpollution!$C209)*10))","v":497.192281982},{"$f":"IF(AND(OR(Calculations!$E$2=\"Orkney Health Board\",Calculations!$E$2=\"Orkney Islands Local Authority\"),$F209=1),0,IF(AND(OR(Calculations!$E$2=\"Shetland Health Board\",Calculations!$E$2=\"Western Isles Health Board\",Calculations!$E$2=\"Shetland Islands Local Authority\",Calculations!$E$2=\"Eilean Siar Local Authority\"),OR($F209=1,$F209=5)),0,new_ci(VALUE(LEFT(Options!$B$14,2)),$C209,$E209,$F209,2016,$I209/10+$J209/10,1,$H209/10,$G209*$H209/10,RateRatios_airpollution!$C209)*10))","v":497.18854883200004},{"$f":"IF(AND(OR(Calculations!$E$2=\"Orkney Health Board\",Calculations!$E$2=\"Orkney Islands Local Authority\"),$F209=1),0,IF(AND(OR(Calculations!$E$2=\"Shetland Health Board\",Calculations!$E$2=\"Western Isles Health Board\",Calculations!$E$2=\"Shetland Islands Local Authority\",Calculations!$E$2=\"Eilean Siar Local Authority\"),OR($F209=1,$F209=5)),0,new_yllv2(VALUE(LEFT(Options!$B$14,2)),$C209,$D209,$E209,$F209,2016,$I209/10,1,$H209/10,$G209*$H209/10,RateRatios_airpollution!$C209)*10))","v":2898.6315011469997},{"$f":"IF(AND(OR(Calculations!$E$2=\"Orkney Health Board\",Calculations!$E$2=\"Orkney Islands Local Authority\"),$F209=1),0,IF(AND(OR(Calculations!$E$2=\"Shetland Health Board\",Calculations!$E$2=\"Western Isles Health Board\",Calculations!$E$2=\"Shetland Islands Local Authority\",Calculations!$E$2=\"Eilean Siar Local Authority\"),OR($F209=1,$F209=5)),0,new_yllv2(VALUE(LEFT(Options!$B$14,2)),$C209,$D209,$E209,$F209,2016,$I209/10+$J209/10,1,$H209/10,$G209*$H209/10,RateRatios_airpollution!$C209)*10))","v":2898.6097368790001},{"$f":"IF(AND(OR(Calculations!$E$2=\"Orkney Health Board\",Calculations!$E$2=\"Orkney Islands Local Authority\"),$F209=1),0,IF(AND(OR(Calculations!$E$2=\"Shetland Health Board\",Calculations!$E$2=\"Western Isles Health Board\",Calculations!$E$2=\"Shetland Islands Local Authority\",Calculations!$E$2=\"Eilean Siar Local Authority\"),OR($F209=1,$F209=5)),0,hosp_count(VALUE(LEFT(Options!$B$14,2)),$C209,$E209,$F209,2016,$I209/10,1,$H209/10,$G209*$H209/10, RateRatios_airpollution!$D209, RateRatios_airpollution!$C209)*10))","v":6852.1264324469994},{"$f":"IF(AND(OR(Calculations!$E$2=\"Orkney Health Board\",Calculations!$E$2=\"Orkney Islands Local Authority\"),$F209=1),0,IF(AND(OR(Calculations!$E$2=\"Shetland Health Board\",Calculations!$E$2=\"Western Isles Health Board\",Calculations!$E$2=\"Shetland Islands Local Authority\",Calculations!$E$2=\"Eilean Siar Local Authority\"),OR($F209=1,$F209=5)),0,hosp_count(VALUE(LEFT(Options!$B$14,2)),$C209,$E209,$F209,2016,$I209/10+$J209/10,1,$H209/10,$G209*$H209/10, RateRatios_airpollution!$D209, RateRatios_airpollution!$C209)*10))","v":6852.0273691120001},{"$f":"IF(AND(OR(Calculations!$E$2=\"Orkney Health Board\",Calculations!$E$2=\"Orkney Islands Local Authority\"),$F209=1),0,IF(AND(OR(Calculations!$E$2=\"Shetland Health Board\",Calculations!$E$2=\"Western Isles Health Board\",Calculations!$E$2=\"Shetland Islands Local Authority\",Calculations!$E$2=\"Eilean Siar Local Authority\"),OR($F209=1,$F209=5)),0,prem_mort(VALUE(LEFT(Options!$B$14,2)),$C209,$E209,$F209,2016,$I209/10,1,$H209/10,$G209*$H209/10,RateRatios_airpollution!$C209)*10))","v":0},{"$f":"IF(AND(OR(Calculations!$E$2=\"Orkney Health Board\",Calculations!$E$2=\"Orkney Islands Local Authority\"),$F209=1),0,IF(AND(OR(Calculations!$E$2=\"Shetland Health Board\",Calculations!$E$2=\"Western Isles Health Board\",Calculations!$E$2=\"Shetland Islands Local Authority\",Calculations!$E$2=\"Eilean Siar Local Authority\"),OR($F209=1,$F209=5)),0,prem_mort(VALUE(LEFT(Options!$B$14,2)),$C209,$E209,$F209,2016,$I209/10+$J209/10,1,$H209/10,$G209*$H209/10,RateRatios_airpollution!$C209)*10))","v":0},null,{"$f":"IF(AND(OR(Calculations!$E$2=\"Orkney Health Board\",Calculations!$E$2=\"Orkney Islands Local Authority\"),$F209=1),0,IF(AND(OR(Calculations!$E$2=\"Shetland Health Board\",Calculations!$E$2=\"Western Isles Health Board\",Calculations!$E$2=\"Shetland Islands Local Authority\",Calculations!$E$2=\"Eilean Siar Local Authority\"),OR($F209=1,$F209=5)),0,new_ci(VALUE(LEFT(Options!$B$14,2)),$C209,$E209,$F209,2016,$I209/10,1,$H209/10,$G209*$H209/10,RateRatios_airpollution!$E209)*10))","v":497.192281982},{"$f":"IF(AND(OR(Calculations!$E$2=\"Orkney Health Board\",Calculations!$E$2=\"Orkney Islands Local Authority\"),$F209=1),0,IF(AND(OR(Calculations!$E$2=\"Shetland Health Board\",Calculations!$E$2=\"Western Isles Health Board\",Calculations!$E$2=\"Shetland Islands Local Authority\",Calculations!$E$2=\"Eilean Siar Local Authority\"),OR($F209=1,$F209=5)),0,new_ci(VALUE(LEFT(Options!$B$14,2)),$C209,$E209,$F209,2016,$I209/10+$J209/10,1,$H209/10,$G209*$H209/10,RateRatios_airpollution!$E209)*10))","v":497.19060540100003},{"$f":"IF(AND(OR(Calculations!$E$2=\"Orkney Health Board\",Calculations!$E$2=\"Orkney Islands Local Authority\"),$F209=1),0,IF(AND(OR(Calculations!$E$2=\"Shetland Health Board\",Calculations!$E$2=\"Western Isles Health Board\",Calculations!$E$2=\"Shetland Islands Local Authority\",Calculations!$E$2=\"Eilean Siar Local Authority\"),OR($F209=1,$F209=5)),0,new_yllv2(VALUE(LEFT(Options!$B$14,2)),$C209,$D209,$E209,$F209,2016,$I209/10,1,$H209/10,$G209*$H209/10,RateRatios_airpollution!$E209)*10))","v":2898.6315011469997},{"$f":"IF(AND(OR(Calculations!$E$2=\"Orkney Health Board\",Calculations!$E$2=\"Orkney Islands Local Authority\"),$F209=1),0,IF(AND(OR(Calculations!$E$2=\"Shetland Health Board\",Calculations!$E$2=\"Western Isles Health Board\",Calculations!$E$2=\"Shetland Islands Local Authority\",Calculations!$E$2=\"Eilean Siar Local Authority\"),OR($F209=1,$F209=5)),0,new_yllv2(VALUE(LEFT(Options!$B$14,2)),$C209,$D209,$E209,$F209,2016,$I209/10+$J209/10,1,$H209/10,$G209*$H209/10,RateRatios_airpollution!$E209)*10))","v":2898.621726678},{"$f":"IF(AND(OR(Calculations!$E$2=\"Orkney Health Board\",Calculations!$E$2=\"Orkney Islands Local Authority\"),$F209=1),0,IF(AND(OR(Calculations!$E$2=\"Shetland Health Board\",Calculations!$E$2=\"Western Isles Health Board\",Calculations!$E$2=\"Shetland Islands Local Authority\",Calculations!$E$2=\"Eilean Siar Local Authority\"),OR($F209=1,$F209=5)),0,hosp_count(VALUE(LEFT(Options!$B$14,2)),$C209,$E209,$F209,2016,$I209/10,1,$H209/10,$G209*$H209/10, RateRatios_airpollution!$F209, RateRatios_airpollution!$E209)*10))","v":6852.1264324469994},{"$f":"IF(AND(OR(Calculations!$E$2=\"Orkney Health Board\",Calculations!$E$2=\"Orkney Islands Local Authority\"),$F209=1),0,IF(AND(OR(Calculations!$E$2=\"Shetland Health Board\",Calculations!$E$2=\"Western Isles Health Board\",Calculations!$E$2=\"Shetland Islands Local Authority\",Calculations!$E$2=\"Eilean Siar Local Authority\"),OR($F209=1,$F209=5)),0,hosp_count(VALUE(LEFT(Options!$B$14,2)),$C209,$E209,$F209,2016,$I209/10+$J209/10,1,$H209/10,$G209*$H209/10, RateRatios_airpollution!$F209, RateRatios_airpollution!$E209)*10))","v":6852.1264324469994},{"$f":"IF(AND(OR(Calculations!$E$2=\"Orkney Health Board\",Calculations!$E$2=\"Orkney Islands Local Authority\"),$F209=1),0,IF(AND(OR(Calculations!$E$2=\"Shetland Health Board\",Calculations!$E$2=\"Western Isles Health Board\",Calculations!$E$2=\"Shetland Islands Local Authority\",Calculations!$E$2=\"Eilean Siar Local Authority\"),OR($F209=1,$F209=5)),0,prem_mort(VALUE(LEFT(Options!$B$14,2)),$C209,$E209,$F209,2016,$I209/10,1,$H209/10,$G209*$H209/10,RateRatios_airpollution!$E209)*10))","v":0},{"$f":"IF(AND(OR(Calculations!$E$2=\"Orkney Health Board\",Calculations!$E$2=\"Orkney Islands Local Authority\"),$F209=1),0,IF(AND(OR(Calculations!$E$2=\"Shetland Health Board\",Calculations!$E$2=\"Western Isles Health Board\",Calculations!$E$2=\"Shetland Islands Local Authority\",Calculations!$E$2=\"Eilean Siar Local Authority\"),OR($F209=1,$F209=5)),0,prem_mort(VALUE(LEFT(Options!$B$14,2)),$C209,$E209,$F209,2016,$I209/10+$J209/10,1,$H209/10,$G209*$H209/10,RateRatios_airpollution!$E209)*10))","v":0},497.192281982,497.10988390200009,2898.6315011469997,2898.1511202590009,6852.1264324469994,6850.943009869,0,0,4244.7902499957318,4244.0867745411088,24747.131402262439,24743.030139665334,58500.182979996578,58490.079483215231,0,0,10611975.624989329,10610216.936352773,61867828.505656101,61857575.349163339,146250457.44999143,146225198.70803809,0,0,2500]
[null,"Male 85-89",86.630752999999999,91.420750000000012,"male",4,1,{"$f":"HLOOKUP(Calculations!$E$2,'Population 2016'!$C$3:$BC$249,'Population 2016'!BD210,FALSE)","v":6184},0,{"$f":"HLOOKUP(Calculations!$E$2,Pop2016_in_settlements!$C$3:$BC$249,Pop2016_in_settlements!$BD210,FALSE)","v":2422},{"$f":"IF(AND(OR(Calculations!$E$2=\"Orkney Health Board\",Calculations!$E$2=\"Orkney Islands Local Authority\"),$F210=1),0,IF(AND(OR(Calculations!$E$2=\"Shetland Health Board\",Calculations!$E$2=\"Western Isles Health Board\",Calculations!$E$2=\"Shetland Islands Local Authority\",Calculations!$E$2=\"Eilean Siar Local Authority\"),OR($F210=1,$F210=5)),0,new_ci(VALUE(LEFT(Options!$B$14,2)),$C210,$E210,$F210,2016,$I210/10,1,$H210/10,$G210*$H210/10,RateRatios_accidents!$B$5)*10))","v":374.54281239599999},{"$f":"IF(AND(OR(Calculations!$E$2=\"Orkney Health Board\",Calculations!$E$2=\"Orkney Islands Local Authority\"),$F210=1),0,IF(AND(OR(Calculations!$E$2=\"Shetland Health Board\",Calculations!$E$2=\"Western Isles Health Board\",Calculations!$E$2=\"Shetland Islands Local Authority\",Calculations!$E$2=\"Eilean Siar Local Authority\"),OR($F210=1,$F210=5)),0,new_ci(VALUE(LEFT(Options!$B$14,2)),$C210,$E210,$F210,2016,$I210/10+$J210/10,1,$H210/10,$G210*$H210/10,RateRatios_accidents!$B$5)*10))","v":374.48594867999998},{"$f":"IF(AND(OR(Calculations!$E$2=\"Orkney Health Board\",Calculations!$E$2=\"Orkney Islands Local Authority\"),$F210=1),0,IF(AND(OR(Calculations!$E$2=\"Shetland Health Board\",Calculations!$E$2=\"Western Isles Health Board\",Calculations!$E$2=\"Shetland Islands Local Authority\",Calculations!$E$2=\"Eilean Siar Local Authority\"),OR($F210=1,$F210=5)),0,new_yllv2(VALUE(LEFT(Options!$B$14,2)),$C210,$D210,$E210,$F210,2016,$I210/10,1,$H210/10,$G210*$H210/10,RateRatios_accidents!$B$5)*10))","v":1419.5161353520002},{"$f":"IF(AND(OR(Calculations!$E$2=\"Orkney Health Board\",Calculations!$E$2=\"Orkney Islands Local Authority\"),$F210=1),0,IF(AND(OR(Calculations!$E$2=\"Shetland Health Board\",Calculations!$E$2=\"Western Isles Health Board\",Calculations!$E$2=\"Shetland Islands Local Authority\",Calculations!$E$2=\"Eilean Siar Local Authority\"),OR($F210=1,$F210=5)),0,new_yllv2(VALUE(LEFT(Options!$B$14,2)),$C210,$D210,$E210,$F210,2016,$I210/10+$J210/10,1,$H210/10,$G210*$H210/10,RateRatios_accidents!$B$5)*10))","v":1419.300622039},{"$f":"IF(AND(OR(Calculations!$E$2=\"Orkney Health Board\",Calculations!$E$2=\"Orkney Islands Local Authority\"),$F210=1),0,IF(AND(OR(Calculations!$E$2=\"Shetland Health Board\",Calculations!$E$2=\"Western Isles Health Board\",Calculations!$E$2=\"Shetland Islands Local Authority\",Calculations!$E$2=\"Eilean Siar Local Authority\"),OR($F210=1,$F210=5)),0,hosp_count(VALUE(LEFT(Options!$B$14,2)),$C210,$E210,$F210,2016,$I210/10,1,$H210/10,$G210*$H210/10, RateRatios_accidents!$B$4, RateRatios_accidents!$B$5)*10))","v":4294.7648959580001},{"$f":"IF(AND(OR(Calculations!$E$2=\"Orkney Health Board\",Calculations!$E$2=\"Orkney Islands Local Authority\"),$F210=1),0,IF(AND(OR(Calculations!$E$2=\"Shetland Health Board\",Calculations!$E$2=\"Western Isles Health Board\",Calculations!$E$2=\"Shetland Islands Local Authority\",Calculations!$E$2=\"Eilean Siar Local Authority\"),OR($F210=1,$F210=5)),0,hosp_count(VALUE(LEFT(Options!$B$14,2)),$C210,$E210,$F210,2016,$I210/10+$J210/10,1,$H210/10,$G210*$H210/10, RateRatios_accidents!$B$4, RateRatios_accidents!$B$5)*10))","v":4294.0920679909996},{"$f":"IF(AND(OR(Calculations!$E$2=\"Orkney Health Board\",Calculations!$E$2=\"Orkney Islands Local Authority\"),$F210=1),0,IF(AND(OR(Calculations!$E$2=\"Shetland Health Board\",Calculations!$E$2=\"Western Isles Health Board\",Calculations!$E$2=\"Shetland Islands Local Authority\",Calculations!$E$2=\"Eilean Siar Local Authority\"),OR($F210=1,$F210=5)),0,prem_mort(VALUE(LEFT(Options!$B$14,2)),$C210,$E210,$F210,2016,$I210/10,1,$H210/10,$G210*$H210/10,RateRatios_accidents!$B$5)*10))","v":0},{"$f":"IF(AND(OR(Calculations!$E$2=\"Orkney Health Board\",Calculations!$E$2=\"Orkney Islands Local Authority\"),$F210=1),0,IF(AND(OR(Calculations!$E$2=\"Shetland Health Board\",Calculations!$E$2=\"Western Isles Health Board\",Calculations!$E$2=\"Shetland Islands Local Authority\",Calculations!$E$2=\"Eilean Siar Local Authority\"),OR($F210=1,$F210=5)),0,prem_mort(VALUE(LEFT(Options!$B$14,2)),$C210,$E210,$F210,2016,$I210/10+$J210/10,1,$H210/10,$G210*$H210/10,RateRatios_accidents!$B$5)*10))","v":0},null,{"$f":"IF(AND(OR(Calculations!$E$2=\"Orkney Health Board\",Calculations!$E$2=\"Orkney Islands Local Authority\"),$F210=1),0,IF(AND(OR(Calculations!$E$2=\"Shetland Health Board\",Calculations!$E$2=\"Western Isles Health Board\",Calculations!$E$2=\"Shetland Islands Local Authority\",Calculations!$E$2=\"Eilean Siar Local Authority\"),OR($F210=1,$F210=5)),0,new_ci(VALUE(LEFT(Options!$B$14,2)),$C210,$E210,$F210,2016,$I210/10,1,$H210/10,$G210*$H210/10,RateRatios_airpollution!$C210)*10))","v":374.54281239599999},{"$f":"IF(AND(OR(Calculations!$E$2=\"Orkney Health Board\",Calculations!$E$2=\"Orkney Islands Local Authority\"),$F210=1),0,IF(AND(OR(Calculations!$E$2=\"Shetland Health Board\",Calculations!$E$2=\"Western Isles Health Board\",Calculations!$E$2=\"Shetland Islands Local Authority\",Calculations!$E$2=\"Eilean Siar Local Authority\"),OR($F210=1,$F210=5)),0,new_ci(VALUE(LEFT(Options!$B$14,2)),$C210,$E210,$F210,2016,$I210/10+$J210/10,1,$H210/10,$G210*$H210/10,RateRatios_airpollution!$C210)*10))","v":374.53995153},{"$f":"IF(AND(OR(Calculations!$E$2=\"Orkney Health Board\",Calculations!$E$2=\"Orkney Islands Local Authority\"),$F210=1),0,IF(AND(OR(Calculations!$E$2=\"Shetland Health Board\",Calculations!$E$2=\"Western Isles Health Board\",Calculations!$E$2=\"Shetland Islands Local Authority\",Calculations!$E$2=\"Eilean Siar Local Authority\"),OR($F210=1,$F210=5)),0,new_yllv2(VALUE(LEFT(Options!$B$14,2)),$C210,$D210,$E210,$F210,2016,$I210/10,1,$H210/10,$G210*$H210/10,RateRatios_airpollution!$C210)*10))","v":1419.5161353520002},{"$f":"IF(AND(OR(Calculations!$E$2=\"Orkney Health Board\",Calculations!$E$2=\"Orkney Islands Local Authority\"),$F210=1),0,IF(AND(OR(Calculations!$E$2=\"Shetland Health Board\",Calculations!$E$2=\"Western Isles Health Board\",Calculations!$E$2=\"Shetland Islands Local Authority\",Calculations!$E$2=\"Eilean Siar Local Authority\"),OR($F210=1,$F210=5)),0,new_yllv2(VALUE(LEFT(Options!$B$14,2)),$C210,$D210,$E210,$F210,2016,$I210/10+$J210/10,1,$H210/10,$G210*$H210/10,RateRatios_airpollution!$C210)*10))","v":1419.5052926790001},{"$f":"IF(AND(OR(Calculations!$E$2=\"Orkney Health Board\",Calculations!$E$2=\"Orkney Islands Local Authority\"),$F210=1),0,IF(AND(OR(Calculations!$E$2=\"Shetland Health Board\",Calculations!$E$2=\"Western Isles Health Board\",Calculations!$E$2=\"Shetland Islands Local Authority\",Calculations!$E$2=\"Eilean Siar Local Authority\"),OR($F210=1,$F210=5)),0,hosp_count(VALUE(LEFT(Options!$B$14,2)),$C210,$E210,$F210,2016,$I210/10,1,$H210/10,$G210*$H210/10, RateRatios_airpollution!$D210, RateRatios_airpollution!$C210)*10))","v":4294.7648959580001},{"$f":"IF(AND(OR(Calculations!$E$2=\"Orkney Health Board\",Calculations!$E$2=\"Orkney Islands Local Authority\"),$F210=1),0,IF(AND(OR(Calculations!$E$2=\"Shetland Health Board\",Calculations!$E$2=\"Western Isles Health Board\",Calculations!$E$2=\"Shetland Islands Local Authority\",Calculations!$E$2=\"Eilean Siar Local Authority\"),OR($F210=1,$F210=5)),0,hosp_count(VALUE(LEFT(Options!$B$14,2)),$C210,$E210,$F210,2016,$I210/10+$J210/10,1,$H210/10,$G210*$H210/10, RateRatios_airpollution!$D210, RateRatios_airpollution!$C210)*10))","v":4294.7011246980001},{"$f":"IF(AND(OR(Calculations!$E$2=\"Orkney Health Board\",Calculations!$E$2=\"Orkney Islands Local Authority\"),$F210=1),0,IF(AND(OR(Calculations!$E$2=\"Shetland Health Board\",Calculations!$E$2=\"Western Isles Health Board\",Calculations!$E$2=\"Shetland Islands Local Authority\",Calculations!$E$2=\"Eilean Siar Local Authority\"),OR($F210=1,$F210=5)),0,prem_mort(VALUE(LEFT(Options!$B$14,2)),$C210,$E210,$F210,2016,$I210/10,1,$H210/10,$G210*$H210/10,RateRatios_airpollution!$C210)*10))","v":0},{"$f":"IF(AND(OR(Calculations!$E$2=\"Orkney Health Board\",Calculations!$E$2=\"Orkney Islands Local Authority\"),$F210=1),0,IF(AND(OR(Calculations!$E$2=\"Shetland Health Board\",Calculations!$E$2=\"Western Isles Health Board\",Calculations!$E$2=\"Shetland Islands Local Authority\",Calculations!$E$2=\"Eilean Siar Local Authority\"),OR($F210=1,$F210=5)),0,prem_mort(VALUE(LEFT(Options!$B$14,2)),$C210,$E210,$F210,2016,$I210/10+$J210/10,1,$H210/10,$G210*$H210/10,RateRatios_airpollution!$C210)*10))","v":0},null,{"$f":"IF(AND(OR(Calculations!$E$2=\"Orkney Health Board\",Calculations!$E$2=\"Orkney Islands Local Authority\"),$F210=1),0,IF(AND(OR(Calculations!$E$2=\"Shetland Health Board\",Calculations!$E$2=\"Western Isles Health Board\",Calculations!$E$2=\"Shetland Islands Local Authority\",Calculations!$E$2=\"Eilean Siar Local Authority\"),OR($F210=1,$F210=5)),0,new_ci(VALUE(LEFT(Options!$B$14,2)),$C210,$E210,$F210,2016,$I210/10,1,$H210/10,$G210*$H210/10,RateRatios_airpollution!$E210)*10))","v":374.54281239599999},{"$f":"IF(AND(OR(Calculations!$E$2=\"Orkney Health Board\",Calculations!$E$2=\"Orkney Islands Local Authority\"),$F210=1),0,IF(AND(OR(Calculations!$E$2=\"Shetland Health Board\",Calculations!$E$2=\"Western Isles Health Board\",Calculations!$E$2=\"Shetland Islands Local Authority\",Calculations!$E$2=\"Eilean Siar Local Authority\"),OR($F210=1,$F210=5)),0,new_ci(VALUE(LEFT(Options!$B$14,2)),$C210,$E210,$F210,2016,$I210/10+$J210/10,1,$H210/10,$G210*$H210/10,RateRatios_airpollution!$E210)*10))","v":374.54154641700001},{"$f":"IF(AND(OR(Calculations!$E$2=\"Orkney Health Board\",Calculations!$E$2=\"Orkney Islands Local Authority\"),$F210=1),0,IF(AND(OR(Calculations!$E$2=\"Shetland Health Board\",Calculations!$E$2=\"Western Isles Health Board\",Calculations!$E$2=\"Shetland Islands Local Authority\",Calculations!$E$2=\"Eilean Siar Local Authority\"),OR($F210=1,$F210=5)),0,new_yllv2(VALUE(LEFT(Options!$B$14,2)),$C210,$D210,$E210,$F210,2016,$I210/10,1,$H210/10,$G210*$H210/10,RateRatios_airpollution!$E210)*10))","v":1419.5161353520002},{"$f":"IF(AND(OR(Calculations!$E$2=\"Orkney Health Board\",Calculations!$E$2=\"Orkney Islands Local Authority\"),$F210=1),0,IF(AND(OR(Calculations!$E$2=\"Shetland Health Board\",Calculations!$E$2=\"Western Isles Health Board\",Calculations!$E$2=\"Shetland Islands Local Authority\",Calculations!$E$2=\"Eilean Siar Local Authority\"),OR($F210=1,$F210=5)),0,new_yllv2(VALUE(LEFT(Options!$B$14,2)),$C210,$D210,$E210,$F210,2016,$I210/10+$J210/10,1,$H210/10,$G210*$H210/10,RateRatios_airpollution!$E210)*10))","v":1419.511337296},{"$f":"IF(AND(OR(Calculations!$E$2=\"Orkney Health Board\",Calculations!$E$2=\"Orkney Islands Local Authority\"),$F210=1),0,IF(AND(OR(Calculations!$E$2=\"Shetland Health Board\",Calculations!$E$2=\"Western Isles Health Board\",Calculations!$E$2=\"Shetland Islands Local Authority\",Calculations!$E$2=\"Eilean Siar Local Authority\"),OR($F210=1,$F210=5)),0,hosp_count(VALUE(LEFT(Options!$B$14,2)),$C210,$E210,$F210,2016,$I210/10,1,$H210/10,$G210*$H210/10, RateRatios_airpollution!$F210, RateRatios_airpollution!$E210)*10))","v":4294.7648959580001},{"$f":"IF(AND(OR(Calculations!$E$2=\"Orkney Health Board\",Calculations!$E$2=\"Orkney Islands Local Authority\"),$F210=1),0,IF(AND(OR(Calculations!$E$2=\"Shetland Health Board\",Calculations!$E$2=\"Western Isles Health Board\",Calculations!$E$2=\"Shetland Islands Local Authority\",Calculations!$E$2=\"Eilean Siar Local Authority\"),OR($F210=1,$F210=5)),0,hosp_count(VALUE(LEFT(Options!$B$14,2)),$C210,$E210,$F210,2016,$I210/10+$J210/10,1,$H210/10,$G210*$H210/10, RateRatios_airpollution!$F210, RateRatios_airpollution!$E210)*10))","v":4294.7648959580001},{"$f":"IF(AND(OR(Calculations!$E$2=\"Orkney Health Board\",Calculations!$E$2=\"Orkney Islands Local Authority\"),$F210=1),0,IF(AND(OR(Calculations!$E$2=\"Shetland Health Board\",Calculations!$E$2=\"Western Isles Health Board\",Calculations!$E$2=\"Shetland Islands Local Authority\",Calculations!$E$2=\"Eilean Siar Local Authority\"),OR($F210=1,$F210=5)),0,prem_mort(VALUE(LEFT(Options!$B$14,2)),$C210,$E210,$F210,2016,$I210/10,1,$H210/10,$G210*$H210/10,RateRatios_airpollution!$E210)*10))","v":0},{"$f":"IF(AND(OR(Calculations!$E$2=\"Orkney Health Board\",Calculations!$E$2=\"Orkney Islands Local Authority\"),$F210=1),0,IF(AND(OR(Calculations!$E$2=\"Shetland Health Board\",Calculations!$E$2=\"Western Isles Health Board\",Calculations!$E$2=\"Shetland Islands Local Authority\",Calculations!$E$2=\"Eilean Siar Local Authority\"),OR($F210=1,$F210=5)),0,prem_mort(VALUE(LEFT(Options!$B$14,2)),$C210,$E210,$F210,2016,$I210/10+$J210/10,1,$H210/10,$G210*$H210/10,RateRatios_airpollution!$E210)*10))","v":0},374.54281239599999,374.48182183500001,1419.5161353520002,1419.2849813099997,4294.7648959580001,4294.0282967309995,0,0,6056.643149999999,6055.656886076973,22954.65936856404,22950.921431274252,69449.626390006481,69437.71501828912,0,0,9084964.7249999978,9083485.3291154597,34431989.052846059,34426382.146911375,104174439.58500972,104156572.52743368,0,0,1500]
[null,"Male 90+",92.215477000000007,95.515479999999997,"male",4,1,{"$f":"HLOOKUP(Calculations!$E$2,'Population 2016'!$C$3:$BC$249,'Population 2016'!BD211,FALSE)","v":2544},0,{"$f":"HLOOKUP(Calculations!$E$2,Pop2016_in_settlements!$C$3:$BC$249,Pop2016_in_settlements!$BD211,FALSE)","v":958},{"$f":"IF(AND(OR(Calculations!$E$2=\"Orkney Health Board\",Calculations!$E$2=\"Orkney Islands Local Authority\"),$F211=1),0,IF(AND(OR(Calculations!$E$2=\"Shetland Health Board\",Calculations!$E$2=\"Western Isles Health Board\",Calculations!$E$2=\"Shetland Islands Local Authority\",Calculations!$E$2=\"Eilean Siar Local Authority\"),OR($F211=1,$F211=5)),0,new_ci(VALUE(LEFT(Options!$B$14,2)),$C211,$E211,$F211,2016,$I211/10,1,$H211/10,$G211*$H211/10,RateRatios_accidents!$B$5)*10))","v":231.12167088999999},{"$f":"IF(AND(OR(Calculations!$E$2=\"Orkney Health Board\",Calculations!$E$2=\"Orkney Islands Local Authority\"),$F211=1),0,IF(AND(OR(Calculations!$E$2=\"Shetland Health Board\",Calculations!$E$2=\"Western Isles Health Board\",Calculations!$E$2=\"Shetland Islands Local Authority\",Calculations!$E$2=\"Eilean Siar Local Authority\"),OR($F211=1,$F211=5)),0,new_ci(VALUE(LEFT(Options!$B$14,2)),$C211,$E211,$F211,2016,$I211/10+$J211/10,1,$H211/10,$G211*$H211/10,RateRatios_accidents!$B$5)*10))","v":231.08848825999999},{"$f":"IF(AND(OR(Calculations!$E$2=\"Orkney Health Board\",Calculations!$E$2=\"Orkney Islands Local Authority\"),$F211=1),0,IF(AND(OR(Calculations!$E$2=\"Shetland Health Board\",Calculations!$E$2=\"Western Isles Health Board\",Calculations!$E$2=\"Shetland Islands Local Authority\",Calculations!$E$2=\"Eilean Siar Local Authority\"),OR($F211=1,$F211=5)),0,new_yllv2(VALUE(LEFT(Options!$B$14,2)),$C211,$D211,$E211,$F211,2016,$I211/10,1,$H211/10,$G211*$H211/10,RateRatios_accidents!$B$5)*10))","v":531.58053641200001},{"$f":"IF(AND(OR(Calculations!$E$2=\"Orkney Health Board\",Calculations!$E$2=\"Orkney Islands Local Authority\"),$F211=1),0,IF(AND(OR(Calculations!$E$2=\"Shetland Health Board\",Calculations!$E$2=\"Western Isles Health Board\",Calculations!$E$2=\"Shetland Islands Local Authority\",Calculations!$E$2=\"Eilean Siar Local Authority\"),OR($F211=1,$F211=5)),0,new_yllv2(VALUE(LEFT(Options!$B$14,2)),$C211,$D211,$E211,$F211,2016,$I211/10+$J211/10,1,$H211/10,$G211*$H211/10,RateRatios_accidents!$B$5)*10))","v":531.50421626299999},{"$f":"IF(AND(OR(Calculations!$E$2=\"Orkney Health Board\",Calculations!$E$2=\"Orkney Islands Local Authority\"),$F211=1),0,IF(AND(OR(Calculations!$E$2=\"Shetland Health Board\",Calculations!$E$2=\"Western Isles Health Board\",Calculations!$E$2=\"Shetland Islands Local Authority\",Calculations!$E$2=\"Eilean Siar Local Authority\"),OR($F211=1,$F211=5)),0,hosp_count(VALUE(LEFT(Options!$B$14,2)),$C211,$E211,$F211,2016,$I211/10,1,$H211/10,$G211*$H211/10, RateRatios_accidents!$B$4, RateRatios_accidents!$B$5)*10))","v":2154.1580945710002},{"$f":"IF(AND(OR(Calculations!$E$2=\"Orkney Health Board\",Calculations!$E$2=\"Orkney Islands Local Authority\"),$F211=1),0,IF(AND(OR(Calculations!$E$2=\"Shetland Health Board\",Calculations!$E$2=\"Western Isles Health Board\",Calculations!$E$2=\"Shetland Islands Local Authority\",Calculations!$E$2=\"Eilean Siar Local Authority\"),OR($F211=1,$F211=5)),0,hosp_count(VALUE(LEFT(Options!$B$14,2)),$C211,$E211,$F211,2016,$I211/10+$J211/10,1,$H211/10,$G211*$H211/10, RateRatios_accidents!$B$4, RateRatios_accidents!$B$5)*10))","v":2153.8336160429999},{"$f":"IF(AND(OR(Calculations!$E$2=\"Orkney Health Board\",Calculations!$E$2=\"Orkney Islands Local Authority\"),$F211=1),0,IF(AND(OR(Calculations!$E$2=\"Shetland Health Board\",Calculations!$E$2=\"Western Isles Health Board\",Calculations!$E$2=\"Shetland Islands Local Authority\",Calculations!$E$2=\"Eilean Siar Local Authority\"),OR($F211=1,$F211=5)),0,prem_mort(VALUE(LEFT(Options!$B$14,2)),$C211,$E211,$F211,2016,$I211/10,1,$H211/10,$G211*$H211/10,RateRatios_accidents!$B$5)*10))","v":0},{"$f":"IF(AND(OR(Calculations!$E$2=\"Orkney Health Board\",Calculations!$E$2=\"Orkney Islands Local Authority\"),$F211=1),0,IF(AND(OR(Calculations!$E$2=\"Shetland Health Board\",Calculations!$E$2=\"Western Isles Health Board\",Calculations!$E$2=\"Shetland Islands Local Authority\",Calculations!$E$2=\"Eilean Siar Local Authority\"),OR($F211=1,$F211=5)),0,prem_mort(VALUE(LEFT(Options!$B$14,2)),$C211,$E211,$F211,2016,$I211/10+$J211/10,1,$H211/10,$G211*$H211/10,RateRatios_accidents!$B$5)*10))","v":0},null,{"$f":"IF(AND(OR(Calculations!$E$2=\"Orkney Health Board\",Calculations!$E$2=\"Orkney Islands Local Authority\"),$F211=1),0,IF(AND(OR(Calculations!$E$2=\"Shetland Health Board\",Calculations!$E$2=\"Western Isles Health Board\",Calculations!$E$2=\"Shetland Islands Local Authority\",Calculations!$E$2=\"Eilean Siar Local Authority\"),OR($F211=1,$F211=5)),0,new_ci(VALUE(LEFT(Options!$B$14,2)),$C211,$E211,$F211,2016,$I211/10,1,$H211/10,$G211*$H211/10,RateRatios_airpollution!$C211)*10))","v":231.12167088999999},{"$f":"IF(AND(OR(Calculations!$E$2=\"Orkney Health Board\",Calculations!$E$2=\"Orkney Islands Local Authority\"),$F211=1),0,IF(AND(OR(Calculations!$E$2=\"Shetland Health Board\",Calculations!$E$2=\"Western Isles Health Board\",Calculations!$E$2=\"Shetland Islands Local Authority\",Calculations!$E$2=\"Eilean Siar Local Authority\"),OR($F211=1,$F211=5)),0,new_ci(VALUE(LEFT(Options!$B$14,2)),$C211,$E211,$F211,2016,$I211/10+$J211/10,1,$H211/10,$G211*$H211/10,RateRatios_airpollution!$C211)*10))","v":231.11998806700001},{"$f":"IF(AND(OR(Calculations!$E$2=\"Orkney Health Board\",Calculations!$E$2=\"Orkney Islands Local Authority\"),$F211=1),0,IF(AND(OR(Calculations!$E$2=\"Shetland Health Board\",Calculations!$E$2=\"Western Isles Health Board\",Calculations!$E$2=\"Shetland Islands Local Authority\",Calculations!$E$2=\"Eilean Siar Local Authority\"),OR($F211=1,$F211=5)),0,new_yllv2(VALUE(LEFT(Options!$B$14,2)),$C211,$D211,$E211,$F211,2016,$I211/10,1,$H211/10,$G211*$H211/10,RateRatios_airpollution!$C211)*10))","v":531.58053641200001},{"$f":"IF(AND(OR(Calculations!$E$2=\"Orkney Health Board\",Calculations!$E$2=\"Orkney Islands Local Authority\"),$F211=1),0,IF(AND(OR(Calculations!$E$2=\"Shetland Health Board\",Calculations!$E$2=\"Western Isles Health Board\",Calculations!$E$2=\"Shetland Islands Local Authority\",Calculations!$E$2=\"Eilean Siar Local Authority\"),OR($F211=1,$F211=5)),0,new_yllv2(VALUE(LEFT(Options!$B$14,2)),$C211,$D211,$E211,$F211,2016,$I211/10+$J211/10,1,$H211/10,$G211*$H211/10,RateRatios_airpollution!$C211)*10))","v":531.57666591400005},{"$f":"IF(AND(OR(Calculations!$E$2=\"Orkney Health Board\",Calculations!$E$2=\"Orkney Islands Local Authority\"),$F211=1),0,IF(AND(OR(Calculations!$E$2=\"Shetland Health Board\",Calculations!$E$2=\"Western Isles Health Board\",Calculations!$E$2=\"Shetland Islands Local Authority\",Calculations!$E$2=\"Eilean Siar Local Authority\"),OR($F211=1,$F211=5)),0,hosp_count(VALUE(LEFT(Options!$B$14,2)),$C211,$E211,$F211,2016,$I211/10,1,$H211/10,$G211*$H211/10, RateRatios_airpollution!$D211, RateRatios_airpollution!$C211)*10))","v":2154.1580945710002},{"$f":"IF(AND(OR(Calculations!$E$2=\"Orkney Health Board\",Calculations!$E$2=\"Orkney Islands Local Authority\"),$F211=1),0,IF(AND(OR(Calculations!$E$2=\"Shetland Health Board\",Calculations!$E$2=\"Western Isles Health Board\",Calculations!$E$2=\"Shetland Islands Local Authority\",Calculations!$E$2=\"Eilean Siar Local Authority\"),OR($F211=1,$F211=5)),0,hosp_count(VALUE(LEFT(Options!$B$14,2)),$C211,$E211,$F211,2016,$I211/10+$J211/10,1,$H211/10,$G211*$H211/10, RateRatios_airpollution!$D211, RateRatios_airpollution!$C211)*10))","v":2154.1270917749998},{"$f":"IF(AND(OR(Calculations!$E$2=\"Orkney Health Board\",Calculations!$E$2=\"Orkney Islands Local Authority\"),$F211=1),0,IF(AND(OR(Calculations!$E$2=\"Shetland Health Board\",Calculations!$E$2=\"Western Isles Health Board\",Calculations!$E$2=\"Shetland Islands Local Authority\",Calculations!$E$2=\"Eilean Siar Local Authority\"),OR($F211=1,$F211=5)),0,prem_mort(VALUE(LEFT(Options!$B$14,2)),$C211,$E211,$F211,2016,$I211/10,1,$H211/10,$G211*$H211/10,RateRatios_airpollution!$C211)*10))","v":0},{"$f":"IF(AND(OR(Calculations!$E$2=\"Orkney Health Board\",Calculations!$E$2=\"Orkney Islands Local Authority\"),$F211=1),0,IF(AND(OR(Calculations!$E$2=\"Shetland Health Board\",Calculations!$E$2=\"Western Isles Health Board\",Calculations!$E$2=\"Shetland Islands Local Authority\",Calculations!$E$2=\"Eilean Siar Local Authority\"),OR($F211=1,$F211=5)),0,prem_mort(VALUE(LEFT(Options!$B$14,2)),$C211,$E211,$F211,2016,$I211/10+$J211/10,1,$H211/10,$G211*$H211/10,RateRatios_airpollution!$C211)*10))","v":0},null,{"$f":"IF(AND(OR(Calculations!$E$2=\"Orkney Health Board\",Calculations!$E$2=\"Orkney Islands Local Authority\"),$F211=1),0,IF(AND(OR(Calculations!$E$2=\"Shetland Health Board\",Calculations!$E$2=\"Western Isles Health Board\",Calculations!$E$2=\"Shetland Islands Local Authority\",Calculations!$E$2=\"Eilean Siar Local Authority\"),OR($F211=1,$F211=5)),0,new_ci(VALUE(LEFT(Options!$B$14,2)),$C211,$E211,$F211,2016,$I211/10,1,$H211/10,$G211*$H211/10,RateRatios_airpollution!$E211)*10))","v":231.12167088999999},{"$f":"IF(AND(OR(Calculations!$E$2=\"Orkney Health Board\",Calculations!$E$2=\"Orkney Islands Local Authority\"),$F211=1),0,IF(AND(OR(Calculations!$E$2=\"Shetland Health Board\",Calculations!$E$2=\"Western Isles Health Board\",Calculations!$E$2=\"Shetland Islands Local Authority\",Calculations!$E$2=\"Eilean Siar Local Authority\"),OR($F211=1,$F211=5)),0,new_ci(VALUE(LEFT(Options!$B$14,2)),$C211,$E211,$F211,2016,$I211/10+$J211/10,1,$H211/10,$G211*$H211/10,RateRatios_airpollution!$E211)*10))","v":231.12091627300001},{"$f":"IF(AND(OR(Calculations!$E$2=\"Orkney Health Board\",Calculations!$E$2=\"Orkney Islands Local Authority\"),$F211=1),0,IF(AND(OR(Calculations!$E$2=\"Shetland Health Board\",Calculations!$E$2=\"Western Isles Health Board\",Calculations!$E$2=\"Shetland Islands Local Authority\",Calculations!$E$2=\"Eilean Siar Local Authority\"),OR($F211=1,$F211=5)),0,new_yllv2(VALUE(LEFT(Options!$B$14,2)),$C211,$D211,$E211,$F211,2016,$I211/10,1,$H211/10,$G211*$H211/10,RateRatios_airpollution!$E211)*10))","v":531.58053641200001},{"$f":"IF(AND(OR(Calculations!$E$2=\"Orkney Health Board\",Calculations!$E$2=\"Orkney Islands Local Authority\"),$F211=1),0,IF(AND(OR(Calculations!$E$2=\"Shetland Health Board\",Calculations!$E$2=\"Western Isles Health Board\",Calculations!$E$2=\"Shetland Islands Local Authority\",Calculations!$E$2=\"Eilean Siar Local Authority\"),OR($F211=1,$F211=5)),0,new_yllv2(VALUE(LEFT(Options!$B$14,2)),$C211,$D211,$E211,$F211,2016,$I211/10+$J211/10,1,$H211/10,$G211*$H211/10,RateRatios_airpollution!$E211)*10))","v":531.57880079100005},{"$f":"IF(AND(OR(Calculations!$E$2=\"Orkney Health Board\",Calculations!$E$2=\"Orkney Islands Local Authority\"),$F211=1),0,IF(AND(OR(Calculations!$E$2=\"Shetland Health Board\",Calculations!$E$2=\"Western Isles Health Board\",Calculations!$E$2=\"Shetland Islands Local Authority\",Calculations!$E$2=\"Eilean Siar Local Authority\"),OR($F211=1,$F211=5)),0,hosp_count(VALUE(LEFT(Options!$B$14,2)),$C211,$E211,$F211,2016,$I211/10,1,$H211/10,$G211*$H211/10, RateRatios_airpollution!$F211, RateRatios_airpollution!$E211)*10))","v":2154.1580945710002},{"$f":"IF(AND(OR(Calculations!$E$2=\"Orkney Health Board\",Calculations!$E$2=\"Orkney Islands Local Authority\"),$F211=1),0,IF(AND(OR(Calculations!$E$2=\"Shetland Health Board\",Calculations!$E$2=\"Western Isles Health Board\",Calculations!$E$2=\"Shetland Islands Local Authority\",Calculations!$E$2=\"Eilean Siar Local Authority\"),OR($F211=1,$F211=5)),0,hosp_count(VALUE(LEFT(Options!$B$14,2)),$C211,$E211,$F211,2016,$I211/10+$J211/10,1,$H211/10,$G211*$H211/10, RateRatios_airpollution!$F211, RateRatios_airpollution!$E211)*10))","v":2154.1580945710002},{"$f":"IF(AND(OR(Calculations!$E$2=\"Orkney Health Board\",Calculations!$E$2=\"Orkney Islands Local Authority\"),$F211=1),0,IF(AND(OR(Calculations!$E$2=\"Shetland Health Board\",Calculations!$E$2=\"Western Isles Health Board\",Calculations!$E$2=\"Shetland Islands Local Authority\",Calculations!$E$2=\"Eilean Siar Local Authority\"),OR($F211=1,$F211=5)),0,prem_mort(VALUE(LEFT(Options!$B$14,2)),$C211,$E211,$F211,2016,$I211/10,1,$H211/10,$G211*$H211/10,RateRatios_airpollution!$E211)*10))","v":0},{"$f":"IF(AND(OR(Calculations!$E$2=\"Orkney Health Board\",Calculations!$E$2=\"Orkney Islands Local Authority\"),$F211=1),0,IF(AND(OR(Calculations!$E$2=\"Shetland Health Board\",Calculations!$E$2=\"Western Isles Health Board\",Calculations!$E$2=\"Shetland Islands Local Authority\",Calculations!$E$2=\"Eilean Siar Local Authority\"),OR($F211=1,$F211=5)),0,prem_mort(VALUE(LEFT(Options!$B$14,2)),$C211,$E211,$F211,2016,$I211/10+$J211/10,1,$H211/10,$G211*$H211/10,RateRatios_airpollution!$E211)*10))","v":0},231.12167088999999,231.08605082000003,531.58053641200001,531.49861014400005,2154.1580945710002,2153.8026132469995,0,0,9084.9713400157216,9083.5711800314475,20895.461336949684,20892.240964779878,84676.02572999215,84662.052407507843,0,0,9084971.3400157224,9083571.1800314467,20895461.336949684,20892240.964779876,84676025.729992151,84662052.407507837,0,0,1000]
[null,"Female 0-4",2.0384007,81.468401,"female",5,1,{"$f":"HLOOKUP(Calculations!$E$2,'Population 2016'!$C$3:$BC$249,'Population 2016'!BD212,FALSE)","v":0},0,{"$f":"HLOOKUP(Calculations!$E$2,Pop2016_in_settlements!$C$3:$BC$249,Pop2016_in_settlements!$BD212,FALSE)","v":0},{"$f":"IF(AND(OR(Calculations!$E$2=\"Orkney Health Board\",Calculations!$E$2=\"Orkney Islands Local Authority\"),$F212=1),0,IF(AND(OR(Calculations!$E$2=\"Shetland Health Board\",Calculations!$E$2=\"Western Isles Health Board\",Calculations!$E$2=\"Shetland Islands Local Authority\",Calculations!$E$2=\"Eilean Siar Local Authority\"),OR($F212=1,$F212=5)),0,new_ci(VALUE(LEFT(Options!$B$14,2)),$C212,$E212,$F212,2016,$I212/10,1,$H212/10,$G212*$H212/10,RateRatios_accidents!$B$5)*10))","v":{"$error":"#VALUE!"}},{"$f":"IF(AND(OR(Calculations!$E$2=\"Orkney Health Board\",Calculations!$E$2=\"Orkney Islands Local Authority\"),$F212=1),0,IF(AND(OR(Calculations!$E$2=\"Shetland Health Board\",Calculations!$E$2=\"Western Isles Health Board\",Calculations!$E$2=\"Shetland Islands Local Authority\",Calculations!$E$2=\"Eilean Siar Local Authority\"),OR($F212=1,$F212=5)),0,new_ci(VALUE(LEFT(Options!$B$14,2)),$C212,$E212,$F212,2016,$I212/10+$J212/10,1,$H212/10,$G212*$H212/10,RateRatios_accidents!$B$5)*10))","v":{"$error":"#VALUE!"}},{"$f":"IF(AND(OR(Calculations!$E$2=\"Orkney Health Board\",Calculations!$E$2=\"Orkney Islands Local Authority\"),$F212=1),0,IF(AND(OR(Calculations!$E$2=\"Shetland Health Board\",Calculations!$E$2=\"Western Isles Health Board\",Calculations!$E$2=\"Shetland Islands Local Authority\",Calculations!$E$2=\"Eilean Siar Local Authority\"),OR($F212=1,$F212=5)),0,new_yllv2(VALUE(LEFT(Options!$B$14,2)),$C212,$D212,$E212,$F212,2016,$I212/10,1,$H212/10,$G212*$H212/10,RateRatios_accidents!$B$5)*10))","v":{"$error":"#VALUE!"}},{"$f":"IF(AND(OR(Calculations!$E$2=\"Orkney Health Board\",Calculations!$E$2=\"Orkney Islands Local Authority\"),$F212=1),0,IF(AND(OR(Calculations!$E$2=\"Shetland Health Board\",Calculations!$E$2=\"Western Isles Health Board\",Calculations!$E$2=\"Shetland Islands Local Authority\",Calculations!$E$2=\"Eilean Siar Local Authority\"),OR($F212=1,$F212=5)),0,new_yllv2(VALUE(LEFT(Options!$B$14,2)),$C212,$D212,$E212,$F212,2016,$I212/10+$J212/10,1,$H212/10,$G212*$H212/10,RateRatios_accidents!$B$5)*10))","v":{"$error":"#VALUE!"}},{"$f":"IF(AND(OR(Calculations!$E$2=\"Orkney Health Board\",Calculations!$E$2=\"Orkney Islands Local Authority\"),$F212=1),0,IF(AND(OR(Calculations!$E$2=\"Shetland Health Board\",Calculations!$E$2=\"Western Isles Health Board\",Calculations!$E$2=\"Shetland Islands Local Authority\",Calculations!$E$2=\"Eilean Siar Local Authority\"),OR($F212=1,$F212=5)),0,hosp_count(VALUE(LEFT(Options!$B$14,2)),$C212,$E212,$F212,2016,$I212/10,1,$H212/10,$G212*$H212/10, RateRatios_accidents!$B$4, RateRatios_accidents!$B$5)*10))","v":{"$error":"#VALUE!"}},{"$f":"IF(AND(OR(Calculations!$E$2=\"Orkney Health Board\",Calculations!$E$2=\"Orkney Islands Local Authority\"),$F212=1),0,IF(AND(OR(Calculations!$E$2=\"Shetland Health Board\",Calculations!$E$2=\"Western Isles Health Board\",Calculations!$E$2=\"Shetland Islands Local Authority\",Calculations!$E$2=\"Eilean Siar Local Authority\"),OR($F212=1,$F212=5)),0,hosp_count(VALUE(LEFT(Options!$B$14,2)),$C212,$E212,$F212,2016,$I212/10+$J212/10,1,$H212/10,$G212*$H212/10, RateRatios_accidents!$B$4, RateRatios_accidents!$B$5)*10))","v":{"$error":"#VALUE!"}},{"$f":"IF(AND(OR(Calculations!$E$2=\"Orkney Health Board\",Calculations!$E$2=\"Orkney Islands Local Authority\"),$F212=1),0,IF(AND(OR(Calculations!$E$2=\"Shetland Health Board\",Calculations!$E$2=\"Western Isles Health Board\",Calculations!$E$2=\"Shetland Islands Local Authority\",Calculations!$E$2=\"Eilean Siar Local Authority\"),OR($F212=1,$F212=5)),0,prem_mort(VALUE(LEFT(Options!$B$14,2)),$C212,$E212,$F212,2016,$I212/10,1,$H212/10,$G212*$H212/10,RateRatios_accidents!$B$5)*10))","v":{"$error":"#VALUE!"}},{"$f":"IF(AND(OR(Calculations!$E$2=\"Orkney Health Board\",Calculations!$E$2=\"Orkney Islands Local Authority\"),$F212=1),0,IF(AND(OR(Calculations!$E$2=\"Shetland Health Board\",Calculations!$E$2=\"Western Isles Health Board\",Calculations!$E$2=\"Shetland Islands Local Authority\",Calculations!$E$2=\"Eilean Siar Local Authority\"),OR($F212=1,$F212=5)),0,prem_mort(VALUE(LEFT(Options!$B$14,2)),$C212,$E212,$F212,2016,$I212/10+$J212/10,1,$H212/10,$G212*$H212/10,RateRatios_accidents!$B$5)*10))","v":{"$error":"#VALUE!"}},null,{"$f":"IF(AND(OR(Calculations!$E$2=\"Orkney Health Board\",Calculations!$E$2=\"Orkney Islands Local Authority\"),$F212=1),0,IF(AND(OR(Calculations!$E$2=\"Shetland Health Board\",Calculations!$E$2=\"Western Isles Health Board\",Calculations!$E$2=\"Shetland Islands Local Authority\",Calculations!$E$2=\"Eilean Siar Local Authority\"),OR($F212=1,$F212=5)),0,new_ci(VALUE(LEFT(Options!$B$14,2)),$C212,$E212,$F212,2016,$I212/10,1,$H212/10,$G212*$H212/10,RateRatios_airpollution!$C212)*10))","v":{"$error":"#VALUE!"}},{"$f":"IF(AND(OR(Calculations!$E$2=\"Orkney Health Board\",Calculations!$E$2=\"Orkney Islands Local Authority\"),$F212=1),0,IF(AND(OR(Calculations!$E$2=\"Shetland Health Board\",Calculations!$E$2=\"Western Isles Health Board\",Calculations!$E$2=\"Shetland Islands Local Authority\",Calculations!$E$2=\"Eilean Siar Local Authority\"),OR($F212=1,$F212=5)),0,new_ci(VALUE(LEFT(Options!$B$14,2)),$C212,$E212,$F212,2016,$I212/10+$J212/10,1,$H212/10,$G212*$H212/10,RateRatios_airpollution!$C212)*10))","v":{"$error":"#VALUE!"}},{"$f":"IF(AND(OR(Calculations!$E$2=\"Orkney Health Board\",Calculations!$E$2=\"Orkney Islands Local Authority\"),$F212=1),0,IF(AND(OR(Calculations!$E$2=\"Shetland Health Board\",Calculations!$E$2=\"Western Isles Health Board\",Calculations!$E$2=\"Shetland Islands Local Authority\",Calculations!$E$2=\"Eilean Siar Local Authority\"),OR($F212=1,$F212=5)),0,new_yllv2(VALUE(LEFT(Options!$B$14,2)),$C212,$D212,$E212,$F212,2016,$I212/10,1,$H212/10,$G212*$H212/10,RateRatios_airpollution!$C212)*10))","v":{"$error":"#VALUE!"}},{"$f":"IF(AND(OR(Calculations!$E$2=\"Orkney Health Board\",Calculations!$E$2=\"Orkney Islands Local Authority\"),$F212=1),0,IF(AND(OR(Calculations!$E$2=\"Shetland Health Board\",Calculations!$E$2=\"Western Isles Health Board\",Calculations!$E$2=\"Shetland Islands Local Authority\",Calculations!$E$2=\"Eilean Siar Local Authority\"),OR($F212=1,$F212=5)),0,new_yllv2(VALUE(LEFT(Options!$B$14,2)),$C212,$D212,$E212,$F212,2016,$I212/10+$J212/10,1,$H212/10,$G212*$H212/10,RateRatios_airpollution!$C212)*10))","v":{"$error":"#VALUE!"}},{"$f":"IF(AND(OR(Calculations!$E$2=\"Orkney Health Board\",Calculations!$E$2=\"Orkney Islands Local Authority\"),$F212=1),0,IF(AND(OR(Calculations!$E$2=\"Shetland Health Board\",Calculations!$E$2=\"Western Isles Health Board\",Calculations!$E$2=\"Shetland Islands Local Authority\",Calculations!$E$2=\"Eilean Siar Local Authority\"),OR($F212=1,$F212=5)),0,hosp_count(VALUE(LEFT(Options!$B$14,2)),$C212,$E212,$F212,2016,$I212/10,1,$H212/10,$G212*$H212/10, RateRatios_airpollution!$D212, RateRatios_airpollution!$C212)*10))","v":{"$error":"#VALUE!"}},{"$f":"IF(AND(OR(Calculations!$E$2=\"Orkney Health Board\",Calculations!$E$2=\"Orkney Islands Local Authority\"),$F212=1),0,IF(AND(OR(Calculations!$E$2=\"Shetland Health Board\",Calculations!$E$2=\"Western Isles Health Board\",Calculations!$E$2=\"Shetland Islands Local Authority\",Calculations!$E$2=\"Eilean Siar Local Authority\"),OR($F212=1,$F212=5)),0,hosp_count(VALUE(LEFT(Options!$B$14,2)),$C212,$E212,$F212,2016,$I212/10+$J212/10,1,$H212/10,$G212*$H212/10, RateRatios_airpollution!$D212, RateRatios_airpollution!$C212)*10))","v":{"$error":"#VALUE!"}},{"$f":"IF(AND(OR(Calculations!$E$2=\"Orkney Health Board\",Calculations!$E$2=\"Orkney Islands Local Authority\"),$F212=1),0,IF(AND(OR(Calculations!$E$2=\"Shetland Health Board\",Calculations!$E$2=\"Western Isles Health Board\",Calculations!$E$2=\"Shetland Islands Local Authority\",Calculations!$E$2=\"Eilean Siar Local Authority\"),OR($F212=1,$F212=5)),0,prem_mort(VALUE(LEFT(Options!$B$14,2)),$C212,$E212,$F212,2016,$I212/10,1,$H212/10,$G212*$H212/10,RateRatios_airpollution!$C212)*10))","v":{"$error":"#VALUE!"}},{"$f":"IF(AND(OR(Calculations!$E$2=\"Orkney Health Board\",Calculations!$E$2=\"Orkney Islands Local Authority\"),$F212=1),0,IF(AND(OR(Calculations!$E$2=\"Shetland Health Board\",Calculations!$E$2=\"Western Isles Health Board\",Calculations!$E$2=\"Shetland Islands Local Authority\",Calculations!$E$2=\"Eilean Siar Local Authority\"),OR($F212=1,$F212=5)),0,prem_mort(VALUE(LEFT(Options!$B$14,2)),$C212,$E212,$F212,2016,$I212/10+$J212/10,1,$H212/10,$G212*$H212/10,RateRatios_airpollution!$C212)*10))","v":{"$error":"#VALUE!"}},null,{"$f":"IF(AND(OR(Calculations!$E$2=\"Orkney Health Board\",Calculations!$E$2=\"Orkney Islands Local Authority\"),$F212=1),0,IF(AND(OR(Calculations!$E$2=\"Shetland Health Board\",Calculations!$E$2=\"Western Isles Health Board\",Calculations!$E$2=\"Shetland Islands Local Authority\",Calculations!$E$2=\"Eilean Siar Local Authority\"),OR($F212=1,$F212=5)),0,new_ci(VALUE(LEFT(Options!$B$14,2)),$C212,$E212,$F212,2016,$I212/10,1,$H212/10,$G212*$H212/10,RateRatios_airpollution!$E212)*10))","v":{"$error":"#VALUE!"}},{"$f":"IF(AND(OR(Calculations!$E$2=\"Orkney Health Board\",Calculations!$E$2=\"Orkney Islands Local Authority\"),$F212=1),0,IF(AND(OR(Calculations!$E$2=\"Shetland Health Board\",Calculations!$E$2=\"Western Isles Health Board\",Calculations!$E$2=\"Shetland Islands Local Authority\",Calculations!$E$2=\"Eilean Siar Local Authority\"),OR($F212=1,$F212=5)),0,new_ci(VALUE(LEFT(Options!$B$14,2)),$C212,$E212,$F212,2016,$I212/10+$J212/10,1,$H212/10,$G212*$H212/10,RateRatios_airpollution!$E212)*10))","v":{"$error":"#VALUE!"}},{"$f":"IF(AND(OR(Calculations!$E$2=\"Orkney Health Board\",Calculations!$E$2=\"Orkney Islands Local Authority\"),$F212=1),0,IF(AND(OR(Calculations!$E$2=\"Shetland Health Board\",Calculations!$E$2=\"Western Isles Health Board\",Calculations!$E$2=\"Shetland Islands Local Authority\",Calculations!$E$2=\"Eilean Siar Local Authority\"),OR($F212=1,$F212=5)),0,new_yllv2(VALUE(LEFT(Options!$B$14,2)),$C212,$D212,$E212,$F212,2016,$I212/10,1,$H212/10,$G212*$H212/10,RateRatios_airpollution!$E212)*10))","v":{"$error":"#VALUE!"}},{"$f":"IF(AND(OR(Calculations!$E$2=\"Orkney Health Board\",Calculations!$E$2=\"Orkney Islands Local Authority\"),$F212=1),0,IF(AND(OR(Calculations!$E$2=\"Shetland Health Board\",Calculations!$E$2=\"Western Isles Health Board\",Calculations!$E$2=\"Shetland Islands Local Authority\",Calculations!$E$2=\"Eilean Siar Local Authority\"),OR($F212=1,$F212=5)),0,new_yllv2(VALUE(LEFT(Options!$B$14,2)),$C212,$D212,$E212,$F212,2016,$I212/10+$J212/10,1,$H212/10,$G212*$H212/10,RateRatios_airpollution!$E212)*10))","v":{"$error":"#VALUE!"}},{"$f":"IF(AND(OR(Calculations!$E$2=\"Orkney Health Board\",Calculations!$E$2=\"Orkney Islands Local Authority\"),$F212=1),0,IF(AND(OR(Calculations!$E$2=\"Shetland Health Board\",Calculations!$E$2=\"Western Isles Health Board\",Calculations!$E$2=\"Shetland Islands Local Authority\",Calculations!$E$2=\"Eilean Siar Local Authority\"),OR($F212=1,$F212=5)),0,hosp_count(VALUE(LEFT(Options!$B$14,2)),$C212,$E212,$F212,2016,$I212/10,1,$H212/10,$G212*$H212/10, RateRatios_airpollution!$F212, RateRatios_airpollution!$E212)*10))","v":{"$error":"#VALUE!"}},{"$f":"IF(AND(OR(Calculations!$E$2=\"Orkney Health Board\",Calculations!$E$2=\"Orkney Islands Local Authority\"),$F212=1),0,IF(AND(OR(Calculations!$E$2=\"Shetland Health Board\",Calculations!$E$2=\"Western Isles Health Board\",Calculations!$E$2=\"Shetland Islands Local Authority\",Calculations!$E$2=\"Eilean Siar Local Authority\"),OR($F212=1,$F212=5)),0,hosp_count(VALUE(LEFT(Options!$B$14,2)),$C212,$E212,$F212,2016,$I212/10+$J212/10,1,$H212/10,$G212*$H212/10, RateRatios_airpollution!$F212, RateRatios_airpollution!$E212)*10))","v":{"$error":"#VALUE!"}},{"$f":"IF(AND(OR(Calculations!$E$2=\"Orkney Health Board\",Calculations!$E$2=\"Orkney Islands Local Authority\"),$F212=1),0,IF(AND(OR(Calculations!$E$2=\"Shetland Health Board\",Calculations!$E$2=\"Western Isles Health Board\",Calculations!$E$2=\"Shetland Islands Local Authority\",Calculations!$E$2=\"Eilean Siar Local Authority\"),OR($F212=1,$F212=5)),0,prem_mort(VALUE(LEFT(Options!$B$14,2)),$C212,$E212,$F212,2016,$I212/10,1,$H212/10,$G212*$H212/10,RateRatios_airpollution!$E212)*10))","v":{"$error":"#VALUE!"}},{"$f":"IF(AND(OR(Calculations!$E$2=\"Orkney Health Board\",Calculations!$E$2=\"Orkney Islands Local Authority\"),$F212=1),0,IF(AND(OR(Calculations!$E$2=\"Shetland Health Board\",Calculations!$E$2=\"Western Isles Health Board\",Calculations!$E$2=\"Shetland Islands Local Authority\",Calculations!$E$2=\"Eilean Siar Local Authority\"),OR($F212=1,$F212=5)),0,prem_mort(VALUE(LEFT(Options!$B$14,2)),$C212,$E212,$F212,2016,$I212/10+$J212/10,1,$H212/10,$G212*$H212/10,RateRatios_airpollution!$E212)*10))","v":{"$error":"#VALUE!"}},{"$error":"#VALUE!"},{"$error":"#VALUE!"},{"$error":"#VALUE!"},{"$error":"#VALUE!"},{"$error":"#VALUE!"},{"$error":"#VALUE!"},{"$error":"#VALUE!"},{"$error":"#VALUE!"},{"$error":"#VALUE!"},{"$error":"#VALUE!"},{"$error":"#VALUE!"},{"$error":"#VALUE!"},{"$error":"#VALUE!"},{"$error":"#VALUE!"},{"$error":"#VALUE!"},{"$error":"#VALUE!"},{"$error":"#VALUE!"},{"$error":"#VALUE!"},{"$error":"#VALUE!"},{"$error":"#VALUE!"},{"$error":"#VALUE!"},{"$error":"#VALUE!"},{"$error":"#VALUE!"},{"$error":"#VALUE!"},5000]
[null,"Female 5-9",6.9792794999999996,81.439279999999997,"female",5,1,{"$f":"HLOOKUP(Calculations!$E$2,'Population 2016'!$C$3:$BC$249,'Population 2016'!BD213,FALSE)","v":0},0,{"$f":"HLOOKUP(Calculations!$E$2,Pop2016_in_settlements!$C$3:$BC$249,Pop2016_in_settlements!$BD213,FALSE)","v":0},{"$f":"IF(AND(OR(Calculations!$E$2=\"Orkney Health Board\",Calculations!$E$2=\"Orkney Islands Local Authority\"),$F213=1),0,IF(AND(OR(Calculations!$E$2=\"Shetland Health Board\",Calculations!$E$2=\"Western Isles Health Board\",Calculations!$E$2=\"Shetland Islands Local Authority\",Calculations!$E$2=\"Eilean Siar Local Authority\"),OR($F213=1,$F213=5)),0,new_ci(VALUE(LEFT(Options!$B$14,2)),$C213,$E213,$F213,2016,$I213/10,1,$H213/10,$G213*$H213/10,RateRatios_accidents!$B$5)*10))","v":{"$error":"#VALUE!"}},{"$f":"IF(AND(OR(Calculations!$E$2=\"Orkney Health Board\",Calculations!$E$2=\"Orkney Islands Local Authority\"),$F213=1),0,IF(AND(OR(Calculations!$E$2=\"Shetland Health Board\",Calculations!$E$2=\"Western Isles Health Board\",Calculations!$E$2=\"Shetland Islands Local Authority\",Calculations!$E$2=\"Eilean Siar Local Authority\"),OR($F213=1,$F213=5)),0,new_ci(VALUE(LEFT(Options!$B$14,2)),$C213,$E213,$F213,2016,$I213/10+$J213/10,1,$H213/10,$G213*$H213/10,RateRatios_accidents!$B$5)*10))","v":{"$error":"#VALUE!"}},{"$f":"IF(AND(OR(Calculations!$E$2=\"Orkney Health Board\",Calculations!$E$2=\"Orkney Islands Local Authority\"),$F213=1),0,IF(AND(OR(Calculations!$E$2=\"Shetland Health Board\",Calculations!$E$2=\"Western Isles Health Board\",Calculations!$E$2=\"Shetland Islands Local Authority\",Calculations!$E$2=\"Eilean Siar Local Authority\"),OR($F213=1,$F213=5)),0,new_yllv2(VALUE(LEFT(Options!$B$14,2)),$C213,$D213,$E213,$F213,2016,$I213/10,1,$H213/10,$G213*$H213/10,RateRatios_accidents!$B$5)*10))","v":{"$error":"#VALUE!"}},{"$f":"IF(AND(OR(Calculations!$E$2=\"Orkney Health Board\",Calculations!$E$2=\"Orkney Islands Local Authority\"),$F213=1),0,IF(AND(OR(Calculations!$E$2=\"Shetland Health Board\",Calculations!$E$2=\"Western Isles Health Board\",Calculations!$E$2=\"Shetland Islands Local Authority\",Calculations!$E$2=\"Eilean Siar Local Authority\"),OR($F213=1,$F213=5)),0,new_yllv2(VALUE(LEFT(Options!$B$14,2)),$C213,$D213,$E213,$F213,2016,$I213/10+$J213/10,1,$H213/10,$G213*$H213/10,RateRatios_accidents!$B$5)*10))","v":{"$error":"#VALUE!"}},{"$f":"IF(AND(OR(Calculations!$E$2=\"Orkney Health Board\",Calculations!$E$2=\"Orkney Islands Local Authority\"),$F213=1),0,IF(AND(OR(Calculations!$E$2=\"Shetland Health Board\",Calculations!$E$2=\"Western Isles Health Board\",Calculations!$E$2=\"Shetland Islands Local Authority\",Calculations!$E$2=\"Eilean Siar Local Authority\"),OR($F213=1,$F213=5)),0,hosp_count(VALUE(LEFT(Options!$B$14,2)),$C213,$E213,$F213,2016,$I213/10,1,$H213/10,$G213*$H213/10, RateRatios_accidents!$B$4, RateRatios_accidents!$B$5)*10))","v":{"$error":"#VALUE!"}},{"$f":"IF(AND(OR(Calculations!$E$2=\"Orkney Health Board\",Calculations!$E$2=\"Orkney Islands Local Authority\"),$F213=1),0,IF(AND(OR(Calculations!$E$2=\"Shetland Health Board\",Calculations!$E$2=\"Western Isles Health Board\",Calculations!$E$2=\"Shetland Islands Local Authority\",Calculations!$E$2=\"Eilean Siar Local Authority\"),OR($F213=1,$F213=5)),0,hosp_count(VALUE(LEFT(Options!$B$14,2)),$C213,$E213,$F213,2016,$I213/10+$J213/10,1,$H213/10,$G213*$H213/10, RateRatios_accidents!$B$4, RateRatios_accidents!$B$5)*10))","v":{"$error":"#VALUE!"}},{"$f":"IF(AND(OR(Calculations!$E$2=\"Orkney Health Board\",Calculations!$E$2=\"Orkney Islands Local Authority\"),$F213=1),0,IF(AND(OR(Calculations!$E$2=\"Shetland Health Board\",Calculations!$E$2=\"Western Isles Health Board\",Calculations!$E$2=\"Shetland Islands Local Authority\",Calculations!$E$2=\"Eilean Siar Local Authority\"),OR($F213=1,$F213=5)),0,prem_mort(VALUE(LEFT(Options!$B$14,2)),$C213,$E213,$F213,2016,$I213/10,1,$H213/10,$G213*$H213/10,RateRatios_accidents!$B$5)*10))","v":{"$error":"#VALUE!"}},{"$f":"IF(AND(OR(Calculations!$E$2=\"Orkney Health Board\",Calculations!$E$2=\"Orkney Islands Local Authority\"),$F213=1),0,IF(AND(OR(Calculations!$E$2=\"Shetland Health Board\",Calculations!$E$2=\"Western Isles Health Board\",Calculations!$E$2=\"Shetland Islands Local Authority\",Calculations!$E$2=\"Eilean Siar Local Authority\"),OR($F213=1,$F213=5)),0,prem_mort(VALUE(LEFT(Options!$B$14,2)),$C213,$E213,$F213,2016,$I213/10+$J213/10,1,$H213/10,$G213*$H213/10,RateRatios_accidents!$B$5)*10))","v":{"$error":"#VALUE!"}},null,{"$f":"IF(AND(OR(Calculations!$E$2=\"Orkney Health Board\",Calculations!$E$2=\"Orkney Islands Local Authority\"),$F213=1),0,IF(AND(OR(Calculations!$E$2=\"Shetland Health Board\",Calculations!$E$2=\"Western Isles Health Board\",Calculations!$E$2=\"Shetland Islands Local Authority\",Calculations!$E$2=\"Eilean Siar Local Authority\"),OR($F213=1,$F213=5)),0,new_ci(VALUE(LEFT(Options!$B$14,2)),$C213,$E213,$F213,2016,$I213/10,1,$H213/10,$G213*$H213/10,RateRatios_airpollution!$C213)*10))","v":{"$error":"#VALUE!"}},{"$f":"IF(AND(OR(Calculations!$E$2=\"Orkney Health Board\",Calculations!$E$2=\"Orkney Islands Local Authority\"),$F213=1),0,IF(AND(OR(Calculations!$E$2=\"Shetland Health Board\",Calculations!$E$2=\"Western Isles Health Board\",Calculations!$E$2=\"Shetland Islands Local Authority\",Calculations!$E$2=\"Eilean Siar Local Authority\"),OR($F213=1,$F213=5)),0,new_ci(VALUE(LEFT(Options!$B$14,2)),$C213,$E213,$F213,2016,$I213/10+$J213/10,1,$H213/10,$G213*$H213/10,RateRatios_airpollution!$C213)*10))","v":{"$error":"#VALUE!"}},{"$f":"IF(AND(OR(Calculations!$E$2=\"Orkney Health Board\",Calculations!$E$2=\"Orkney Islands Local Authority\"),$F213=1),0,IF(AND(OR(Calculations!$E$2=\"Shetland Health Board\",Calculations!$E$2=\"Western Isles Health Board\",Calculations!$E$2=\"Shetland Islands Local Authority\",Calculations!$E$2=\"Eilean Siar Local Authority\"),OR($F213=1,$F213=5)),0,new_yllv2(VALUE(LEFT(Options!$B$14,2)),$C213,$D213,$E213,$F213,2016,$I213/10,1,$H213/10,$G213*$H213/10,RateRatios_airpollution!$C213)*10))","v":{"$error":"#VALUE!"}},{"$f":"IF(AND(OR(Calculations!$E$2=\"Orkney Health Board\",Calculations!$E$2=\"Orkney Islands Local Authority\"),$F213=1),0,IF(AND(OR(Calculations!$E$2=\"Shetland Health Board\",Calculations!$E$2=\"Western Isles Health Board\",Calculations!$E$2=\"Shetland Islands Local Authority\",Calculations!$E$2=\"Eilean Siar Local Authority\"),OR($F213=1,$F213=5)),0,new_yllv2(VALUE(LEFT(Options!$B$14,2)),$C213,$D213,$E213,$F213,2016,$I213/10+$J213/10,1,$H213/10,$G213*$H213/10,RateRatios_airpollution!$C213)*10))","v":{"$error":"#VALUE!"}},{"$f":"IF(AND(OR(Calculations!$E$2=\"Orkney Health Board\",Calculations!$E$2=\"Orkney Islands Local Authority\"),$F213=1),0,IF(AND(OR(Calculations!$E$2=\"Shetland Health Board\",Calculations!$E$2=\"Western Isles Health Board\",Calculations!$E$2=\"Shetland Islands Local Authority\",Calculations!$E$2=\"Eilean Siar Local Authority\"),OR($F213=1,$F213=5)),0,hosp_count(VALUE(LEFT(Options!$B$14,2)),$C213,$E213,$F213,2016,$I213/10,1,$H213/10,$G213*$H213/10, RateRatios_airpollution!$D213, RateRatios_airpollution!$C213)*10))","v":{"$error":"#VALUE!"}},{"$f":"IF(AND(OR(Calculations!$E$2=\"Orkney Health Board\",Calculations!$E$2=\"Orkney Islands Local Authority\"),$F213=1),0,IF(AND(OR(Calculations!$E$2=\"Shetland Health Board\",Calculations!$E$2=\"Western Isles Health Board\",Calculations!$E$2=\"Shetland Islands Local Authority\",Calculations!$E$2=\"Eilean Siar Local Authority\"),OR($F213=1,$F213=5)),0,hosp_count(VALUE(LEFT(Options!$B$14,2)),$C213,$E213,$F213,2016,$I213/10+$J213/10,1,$H213/10,$G213*$H213/10, RateRatios_airpollution!$D213, RateRatios_airpollution!$C213)*10))","v":{"$error":"#VALUE!"}},{"$f":"IF(AND(OR(Calculations!$E$2=\"Orkney Health Board\",Calculations!$E$2=\"Orkney Islands Local Authority\"),$F213=1),0,IF(AND(OR(Calculations!$E$2=\"Shetland Health Board\",Calculations!$E$2=\"Western Isles Health Board\",Calculations!$E$2=\"Shetland Islands Local Authority\",Calculations!$E$2=\"Eilean Siar Local Authority\"),OR($F213=1,$F213=5)),0,prem_mort(VALUE(LEFT(Options!$B$14,2)),$C213,$E213,$F213,2016,$I213/10,1,$H213/10,$G213*$H213/10,RateRatios_airpollution!$C213)*10))","v":{"$error":"#VALUE!"}},{"$f":"IF(AND(OR(Calculations!$E$2=\"Orkney Health Board\",Calculations!$E$2=\"Orkney Islands Local Authority\"),$F213=1),0,IF(AND(OR(Calculations!$E$2=\"Shetland Health Board\",Calculations!$E$2=\"Western Isles Health Board\",Calculations!$E$2=\"Shetland Islands Local Authority\",Calculations!$E$2=\"Eilean Siar Local Authority\"),OR($F213=1,$F213=5)),0,prem_mort(VALUE(LEFT(Options!$B$14,2)),$C213,$E213,$F213,2016,$I213/10+$J213/10,1,$H213/10,$G213*$H213/10,RateRatios_airpollution!$C213)*10))","v":{"$error":"#VALUE!"}},null,{"$f":"IF(AND(OR(Calculations!$E$2=\"Orkney Health Board\",Calculations!$E$2=\"Orkney Islands Local Authority\"),$F213=1),0,IF(AND(OR(Calculations!$E$2=\"Shetland Health Board\",Calculations!$E$2=\"Western Isles Health Board\",Calculations!$E$2=\"Shetland Islands Local Authority\",Calculations!$E$2=\"Eilean Siar Local Authority\"),OR($F213=1,$F213=5)),0,new_ci(VALUE(LEFT(Options!$B$14,2)),$C213,$E213,$F213,2016,$I213/10,1,$H213/10,$G213*$H213/10,RateRatios_airpollution!$E213)*10))","v":{"$error":"#VALUE!"}},{"$f":"IF(AND(OR(Calculations!$E$2=\"Orkney Health Board\",Calculations!$E$2=\"Orkney Islands Local Authority\"),$F213=1),0,IF(AND(OR(Calculations!$E$2=\"Shetland Health Board\",Calculations!$E$2=\"Western Isles Health Board\",Calculations!$E$2=\"Shetland Islands Local Authority\",Calculations!$E$2=\"Eilean Siar Local Authority\"),OR($F213=1,$F213=5)),0,new_ci(VALUE(LEFT(Options!$B$14,2)),$C213,$E213,$F213,2016,$I213/10+$J213/10,1,$H213/10,$G213*$H213/10,RateRatios_airpollution!$E213)*10))","v":{"$error":"#VALUE!"}},{"$f":"IF(AND(OR(Calculations!$E$2=\"Orkney Health Board\",Calculations!$E$2=\"Orkney Islands Local Authority\"),$F213=1),0,IF(AND(OR(Calculations!$E$2=\"Shetland Health Board\",Calculations!$E$2=\"Western Isles Health Board\",Calculations!$E$2=\"Shetland Islands Local Authority\",Calculations!$E$2=\"Eilean Siar Local Authority\"),OR($F213=1,$F213=5)),0,new_yllv2(VALUE(LEFT(Options!$B$14,2)),$C213,$D213,$E213,$F213,2016,$I213/10,1,$H213/10,$G213*$H213/10,RateRatios_airpollution!$E213)*10))","v":{"$error":"#VALUE!"}},{"$f":"IF(AND(OR(Calculations!$E$2=\"Orkney Health Board\",Calculations!$E$2=\"Orkney Islands Local Authority\"),$F213=1),0,IF(AND(OR(Calculations!$E$2=\"Shetland Health Board\",Calculations!$E$2=\"Western Isles Health Board\",Calculations!$E$2=\"Shetland Islands Local Authority\",Calculations!$E$2=\"Eilean Siar Local Authority\"),OR($F213=1,$F213=5)),0,new_yllv2(VALUE(LEFT(Options!$B$14,2)),$C213,$D213,$E213,$F213,2016,$I213/10+$J213/10,1,$H213/10,$G213*$H213/10,RateRatios_airpollution!$E213)*10))","v":{"$error":"#VALUE!"}},{"$f":"IF(AND(OR(Calculations!$E$2=\"Orkney Health Board\",Calculations!$E$2=\"Orkney Islands Local Authority\"),$F213=1),0,IF(AND(OR(Calculations!$E$2=\"Shetland Health Board\",Calculations!$E$2=\"Western Isles Health Board\",Calculations!$E$2=\"Shetland Islands Local Authority\",Calculations!$E$2=\"Eilean Siar Local Authority\"),OR($F213=1,$F213=5)),0,hosp_count(VALUE(LEFT(Options!$B$14,2)),$C213,$E213,$F213,2016,$I213/10,1,$H213/10,$G213*$H213/10, RateRatios_airpollution!$F213, RateRatios_airpollution!$E213)*10))","v":{"$error":"#VALUE!"}},{"$f":"IF(AND(OR(Calculations!$E$2=\"Orkney Health Board\",Calculations!$E$2=\"Orkney Islands Local Authority\"),$F213=1),0,IF(AND(OR(Calculations!$E$2=\"Shetland Health Board\",Calculations!$E$2=\"Western Isles Health Board\",Calculations!$E$2=\"Shetland Islands Local Authority\",Calculations!$E$2=\"Eilean Siar Local Authority\"),OR($F213=1,$F213=5)),0,hosp_count(VALUE(LEFT(Options!$B$14,2)),$C213,$E213,$F213,2016,$I213/10+$J213/10,1,$H213/10,$G213*$H213/10, RateRatios_airpollution!$F213, RateRatios_airpollution!$E213)*10))","v":{"$error":"#VALUE!"}},{"$f":"IF(AND(OR(Calculations!$E$2=\"Orkney Health Board\",Calculations!$E$2=\"Orkney Islands Local Authority\"),$F213=1),0,IF(AND(OR(Calculations!$E$2=\"Shetland Health Board\",Calculations!$E$2=\"Western Isles Health Board\",Calculations!$E$2=\"Shetland Islands Local Authority\",Calculations!$E$2=\"Eilean Siar Local Authority\"),OR($F213=1,$F213=5)),0,prem_mort(VALUE(LEFT(Options!$B$14,2)),$C213,$E213,$F213,2016,$I213/10,1,$H213/10,$G213*$H213/10,RateRatios_airpollution!$E213)*10))","v":{"$error":"#VALUE!"}},{"$f":"IF(AND(OR(Calculations!$E$2=\"Orkney Health Board\",Calculations!$E$2=\"Orkney Islands Local Authority\"),$F213=1),0,IF(AND(OR(Calculations!$E$2=\"Shetland Health Board\",Calculations!$E$2=\"Western Isles Health Board\",Calculations!$E$2=\"Shetland Islands Local Authority\",Calculations!$E$2=\"Eilean Siar Local Authority\"),OR($F213=1,$F213=5)),0,prem_mort(VALUE(LEFT(Options!$B$14,2)),$C213,$E213,$F213,2016,$I213/10+$J213/10,1,$H213/10,$G213*$H213/10,RateRatios_airpollution!$E213)*10))","v":{"$error":"#VALUE!"}},{"$error":"#VALUE!"},{"$error":"#VALUE!"},{"$error":"#VALUE!"},{"$error":"#VALUE!"},{"$error":"#VALUE!"},{"$error":"#VALUE!"},{"$error":"#VALUE!"},{"$error":"#VALUE!"},{"$error":"#VALUE!"},{"$error":"#VALUE!"},{"$error":"#VALUE!"},{"$error":"#VALUE!"},{"$error":"#VALUE!"},{"$error":"#VALUE!"},{"$error":"#VALUE!"},{"$error":"#VALUE!"},{"$error":"#VALUE!"},{"$error":"#VALUE!"},{"$error":"#VALUE!"},{"$error":"#VALUE!"},{"$error":"#VALUE!"},{"$error":"#VALUE!"},{"$error":"#VALUE!"},{"$error":"#VALUE!"},5500]
[null,"Female 10-15",12.478312000000001,81.948309999999992,"female",5,1,{"$f":"HLOOKUP(Calculations!$E$2,'Population 2016'!$C$3:$BC$249,'Population 2016'!BD214,FALSE)","v":0},0,{"$f":"HLOOKUP(Calculations!$E$2,Pop2016_in_settlements!$C$3:$BC$249,Pop2016_in_settlements!$BD214,FALSE)","v":0},{"$f":"IF(AND(OR(Calculations!$E$2=\"Orkney Health Board\",Calculations!$E$2=\"Orkney Islands Local Authority\"),$F214=1),0,IF(AND(OR(Calculations!$E$2=\"Shetland Health Board\",Calculations!$E$2=\"Western Isles Health Board\",Calculations!$E$2=\"Shetland Islands Local Authority\",Calculations!$E$2=\"Eilean Siar Local Authority\"),OR($F214=1,$F214=5)),0,new_ci(VALUE(LEFT(Options!$B$14,2)),$C214,$E214,$F214,2016,$I214/10,1,$H214/10,$G214*$H214/10,RateRatios_accidents!$B$5)*10))","v":{"$error":"#VALUE!"}},{"$f":"IF(AND(OR(Calculations!$E$2=\"Orkney Health Board\",Calculations!$E$2=\"Orkney Islands Local Authority\"),$F214=1),0,IF(AND(OR(Calculations!$E$2=\"Shetland Health Board\",Calculations!$E$2=\"Western Isles Health Board\",Calculations!$E$2=\"Shetland Islands Local Authority\",Calculations!$E$2=\"Eilean Siar Local Authority\"),OR($F214=1,$F214=5)),0,new_ci(VALUE(LEFT(Options!$B$14,2)),$C214,$E214,$F214,2016,$I214/10+$J214/10,1,$H214/10,$G214*$H214/10,RateRatios_accidents!$B$5)*10))","v":{"$error":"#VALUE!"}},{"$f":"IF(AND(OR(Calculations!$E$2=\"Orkney Health Board\",Calculations!$E$2=\"Orkney Islands Local Authority\"),$F214=1),0,IF(AND(OR(Calculations!$E$2=\"Shetland Health Board\",Calculations!$E$2=\"Western Isles Health Board\",Calculations!$E$2=\"Shetland Islands Local Authority\",Calculations!$E$2=\"Eilean Siar Local Authority\"),OR($F214=1,$F214=5)),0,new_yllv2(VALUE(LEFT(Options!$B$14,2)),$C214,$D214,$E214,$F214,2016,$I214/10,1,$H214/10,$G214*$H214/10,RateRatios_accidents!$B$5)*10))","v":{"$error":"#VALUE!"}},{"$f":"IF(AND(OR(Calculations!$E$2=\"Orkney Health Board\",Calculations!$E$2=\"Orkney Islands Local Authority\"),$F214=1),0,IF(AND(OR(Calculations!$E$2=\"Shetland Health Board\",Calculations!$E$2=\"Western Isles Health Board\",Calculations!$E$2=\"Shetland Islands Local Authority\",Calculations!$E$2=\"Eilean Siar Local Authority\"),OR($F214=1,$F214=5)),0,new_yllv2(VALUE(LEFT(Options!$B$14,2)),$C214,$D214,$E214,$F214,2016,$I214/10+$J214/10,1,$H214/10,$G214*$H214/10,RateRatios_accidents!$B$5)*10))","v":{"$error":"#VALUE!"}},{"$f":"IF(AND(OR(Calculations!$E$2=\"Orkney Health Board\",Calculations!$E$2=\"Orkney Islands Local Authority\"),$F214=1),0,IF(AND(OR(Calculations!$E$2=\"Shetland Health Board\",Calculations!$E$2=\"Western Isles Health Board\",Calculations!$E$2=\"Shetland Islands Local Authority\",Calculations!$E$2=\"Eilean Siar Local Authority\"),OR($F214=1,$F214=5)),0,hosp_count(VALUE(LEFT(Options!$B$14,2)),$C214,$E214,$F214,2016,$I214/10,1,$H214/10,$G214*$H214/10, RateRatios_accidents!$B$4, RateRatios_accidents!$B$5)*10))","v":{"$error":"#VALUE!"}},{"$f":"IF(AND(OR(Calculations!$E$2=\"Orkney Health Board\",Calculations!$E$2=\"Orkney Islands Local Authority\"),$F214=1),0,IF(AND(OR(Calculations!$E$2=\"Shetland Health Board\",Calculations!$E$2=\"Western Isles Health Board\",Calculations!$E$2=\"Shetland Islands Local Authority\",Calculations!$E$2=\"Eilean Siar Local Authority\"),OR($F214=1,$F214=5)),0,hosp_count(VALUE(LEFT(Options!$B$14,2)),$C214,$E214,$F214,2016,$I214/10+$J214/10,1,$H214/10,$G214*$H214/10, RateRatios_accidents!$B$4, RateRatios_accidents!$B$5)*10))","v":{"$error":"#VALUE!"}},{"$f":"IF(AND(OR(Calculations!$E$2=\"Orkney Health Board\",Calculations!$E$2=\"Orkney Islands Local Authority\"),$F214=1),0,IF(AND(OR(Calculations!$E$2=\"Shetland Health Board\",Calculations!$E$2=\"Western Isles Health Board\",Calculations!$E$2=\"Shetland Islands Local Authority\",Calculations!$E$2=\"Eilean Siar Local Authority\"),OR($F214=1,$F214=5)),0,prem_mort(VALUE(LEFT(Options!$B$14,2)),$C214,$E214,$F214,2016,$I214/10,1,$H214/10,$G214*$H214/10,RateRatios_accidents!$B$5)*10))","v":{"$error":"#VALUE!"}},{"$f":"IF(AND(OR(Calculations!$E$2=\"Orkney Health Board\",Calculations!$E$2=\"Orkney Islands Local Authority\"),$F214=1),0,IF(AND(OR(Calculations!$E$2=\"Shetland Health Board\",Calculations!$E$2=\"Western Isles Health Board\",Calculations!$E$2=\"Shetland Islands Local Authority\",Calculations!$E$2=\"Eilean Siar Local Authority\"),OR($F214=1,$F214=5)),0,prem_mort(VALUE(LEFT(Options!$B$14,2)),$C214,$E214,$F214,2016,$I214/10+$J214/10,1,$H214/10,$G214*$H214/10,RateRatios_accidents!$B$5)*10))","v":{"$error":"#VALUE!"}},null,{"$f":"IF(AND(OR(Calculations!$E$2=\"Orkney Health Board\",Calculations!$E$2=\"Orkney Islands Local Authority\"),$F214=1),0,IF(AND(OR(Calculations!$E$2=\"Shetland Health Board\",Calculations!$E$2=\"Western Isles Health Board\",Calculations!$E$2=\"Shetland Islands Local Authority\",Calculations!$E$2=\"Eilean Siar Local Authority\"),OR($F214=1,$F214=5)),0,new_ci(VALUE(LEFT(Options!$B$14,2)),$C214,$E214,$F214,2016,$I214/10,1,$H214/10,$G214*$H214/10,RateRatios_airpollution!$C214)*10))","v":{"$error":"#VALUE!"}},{"$f":"IF(AND(OR(Calculations!$E$2=\"Orkney Health Board\",Calculations!$E$2=\"Orkney Islands Local Authority\"),$F214=1),0,IF(AND(OR(Calculations!$E$2=\"Shetland Health Board\",Calculations!$E$2=\"Western Isles Health Board\",Calculations!$E$2=\"Shetland Islands Local Authority\",Calculations!$E$2=\"Eilean Siar Local Authority\"),OR($F214=1,$F214=5)),0,new_ci(VALUE(LEFT(Options!$B$14,2)),$C214,$E214,$F214,2016,$I214/10+$J214/10,1,$H214/10,$G214*$H214/10,RateRatios_airpollution!$C214)*10))","v":{"$error":"#VALUE!"}},{"$f":"IF(AND(OR(Calculations!$E$2=\"Orkney Health Board\",Calculations!$E$2=\"Orkney Islands Local Authority\"),$F214=1),0,IF(AND(OR(Calculations!$E$2=\"Shetland Health Board\",Calculations!$E$2=\"Western Isles Health Board\",Calculations!$E$2=\"Shetland Islands Local Authority\",Calculations!$E$2=\"Eilean Siar Local Authority\"),OR($F214=1,$F214=5)),0,new_yllv2(VALUE(LEFT(Options!$B$14,2)),$C214,$D214,$E214,$F214,2016,$I214/10,1,$H214/10,$G214*$H214/10,RateRatios_airpollution!$C214)*10))","v":{"$error":"#VALUE!"}},{"$f":"IF(AND(OR(Calculations!$E$2=\"Orkney Health Board\",Calculations!$E$2=\"Orkney Islands Local Authority\"),$F214=1),0,IF(AND(OR(Calculations!$E$2=\"Shetland Health Board\",Calculations!$E$2=\"Western Isles Health Board\",Calculations!$E$2=\"Shetland Islands Local Authority\",Calculations!$E$2=\"Eilean Siar Local Authority\"),OR($F214=1,$F214=5)),0,new_yllv2(VALUE(LEFT(Options!$B$14,2)),$C214,$D214,$E214,$F214,2016,$I214/10+$J214/10,1,$H214/10,$G214*$H214/10,RateRatios_airpollution!$C214)*10))","v":{"$error":"#VALUE!"}},{"$f":"IF(AND(OR(Calculations!$E$2=\"Orkney Health Board\",Calculations!$E$2=\"Orkney Islands Local Authority\"),$F214=1),0,IF(AND(OR(Calculations!$E$2=\"Shetland Health Board\",Calculations!$E$2=\"Western Isles Health Board\",Calculations!$E$2=\"Shetland Islands Local Authority\",Calculations!$E$2=\"Eilean Siar Local Authority\"),OR($F214=1,$F214=5)),0,hosp_count(VALUE(LEFT(Options!$B$14,2)),$C214,$E214,$F214,2016,$I214/10,1,$H214/10,$G214*$H214/10, RateRatios_airpollution!$D214, RateRatios_airpollution!$C214)*10))","v":{"$error":"#VALUE!"}},{"$f":"IF(AND(OR(Calculations!$E$2=\"Orkney Health Board\",Calculations!$E$2=\"Orkney Islands Local Authority\"),$F214=1),0,IF(AND(OR(Calculations!$E$2=\"Shetland Health Board\",Calculations!$E$2=\"Western Isles Health Board\",Calculations!$E$2=\"Shetland Islands Local Authority\",Calculations!$E$2=\"Eilean Siar Local Authority\"),OR($F214=1,$F214=5)),0,hosp_count(VALUE(LEFT(Options!$B$14,2)),$C214,$E214,$F214,2016,$I214/10+$J214/10,1,$H214/10,$G214*$H214/10, RateRatios_airpollution!$D214, RateRatios_airpollution!$C214)*10))","v":{"$error":"#VALUE!"}},{"$f":"IF(AND(OR(Calculations!$E$2=\"Orkney Health Board\",Calculations!$E$2=\"Orkney Islands Local Authority\"),$F214=1),0,IF(AND(OR(Calculations!$E$2=\"Shetland Health Board\",Calculations!$E$2=\"Western Isles Health Board\",Calculations!$E$2=\"Shetland Islands Local Authority\",Calculations!$E$2=\"Eilean Siar Local Authority\"),OR($F214=1,$F214=5)),0,prem_mort(VALUE(LEFT(Options!$B$14,2)),$C214,$E214,$F214,2016,$I214/10,1,$H214/10,$G214*$H214/10,RateRatios_airpollution!$C214)*10))","v":{"$error":"#VALUE!"}},{"$f":"IF(AND(OR(Calculations!$E$2=\"Orkney Health Board\",Calculations!$E$2=\"Orkney Islands Local Authority\"),$F214=1),0,IF(AND(OR(Calculations!$E$2=\"Shetland Health Board\",Calculations!$E$2=\"Western Isles Health Board\",Calculations!$E$2=\"Shetland Islands Local Authority\",Calculations!$E$2=\"Eilean Siar Local Authority\"),OR($F214=1,$F214=5)),0,prem_mort(VALUE(LEFT(Options!$B$14,2)),$C214,$E214,$F214,2016,$I214/10+$J214/10,1,$H214/10,$G214*$H214/10,RateRatios_airpollution!$C214)*10))","v":{"$error":"#VALUE!"}},null,{"$f":"IF(AND(OR(Calculations!$E$2=\"Orkney Health Board\",Calculations!$E$2=\"Orkney Islands Local Authority\"),$F214=1),0,IF(AND(OR(Calculations!$E$2=\"Shetland Health Board\",Calculations!$E$2=\"Western Isles Health Board\",Calculations!$E$2=\"Shetland Islands Local Authority\",Calculations!$E$2=\"Eilean Siar Local Authority\"),OR($F214=1,$F214=5)),0,new_ci(VALUE(LEFT(Options!$B$14,2)),$C214,$E214,$F214,2016,$I214/10,1,$H214/10,$G214*$H214/10,RateRatios_airpollution!$E214)*10))","v":{"$error":"#VALUE!"}},{"$f":"IF(AND(OR(Calculations!$E$2=\"Orkney Health Board\",Calculations!$E$2=\"Orkney Islands Local Authority\"),$F214=1),0,IF(AND(OR(Calculations!$E$2=\"Shetland Health Board\",Calculations!$E$2=\"Western Isles Health Board\",Calculations!$E$2=\"Shetland Islands Local Authority\",Calculations!$E$2=\"Eilean Siar Local Authority\"),OR($F214=1,$F214=5)),0,new_ci(VALUE(LEFT(Options!$B$14,2)),$C214,$E214,$F214,2016,$I214/10+$J214/10,1,$H214/10,$G214*$H214/10,RateRatios_airpollution!$E214)*10))","v":{"$error":"#VALUE!"}},{"$f":"IF(AND(OR(Calculations!$E$2=\"Orkney Health Board\",Calculations!$E$2=\"Orkney Islands Local Authority\"),$F214=1),0,IF(AND(OR(Calculations!$E$2=\"Shetland Health Board\",Calculations!$E$2=\"Western Isles Health Board\",Calculations!$E$2=\"Shetland Islands Local Authority\",Calculations!$E$2=\"Eilean Siar Local Authority\"),OR($F214=1,$F214=5)),0,new_yllv2(VALUE(LEFT(Options!$B$14,2)),$C214,$D214,$E214,$F214,2016,$I214/10,1,$H214/10,$G214*$H214/10,RateRatios_airpollution!$E214)*10))","v":{"$error":"#VALUE!"}},{"$f":"IF(AND(OR(Calculations!$E$2=\"Orkney Health Board\",Calculations!$E$2=\"Orkney Islands Local Authority\"),$F214=1),0,IF(AND(OR(Calculations!$E$2=\"Shetland Health Board\",Calculations!$E$2=\"Western Isles Health Board\",Calculations!$E$2=\"Shetland Islands Local Authority\",Calculations!$E$2=\"Eilean Siar Local Authority\"),OR($F214=1,$F214=5)),0,new_yllv2(VALUE(LEFT(Options!$B$14,2)),$C214,$D214,$E214,$F214,2016,$I214/10+$J214/10,1,$H214/10,$G214*$H214/10,RateRatios_airpollution!$E214)*10))","v":{"$error":"#VALUE!"}},{"$f":"IF(AND(OR(Calculations!$E$2=\"Orkney Health Board\",Calculations!$E$2=\"Orkney Islands Local Authority\"),$F214=1),0,IF(AND(OR(Calculations!$E$2=\"Shetland Health Board\",Calculations!$E$2=\"Western Isles Health Board\",Calculations!$E$2=\"Shetland Islands Local Authority\",Calculations!$E$2=\"Eilean Siar Local Authority\"),OR($F214=1,$F214=5)),0,hosp_count(VALUE(LEFT(Options!$B$14,2)),$C214,$E214,$F214,2016,$I214/10,1,$H214/10,$G214*$H214/10, RateRatios_airpollution!$F214, RateRatios_airpollution!$E214)*10))","v":{"$error":"#VALUE!"}},{"$f":"IF(AND(OR(Calculations!$E$2=\"Orkney Health Board\",Calculations!$E$2=\"Orkney Islands Local Authority\"),$F214=1),0,IF(AND(OR(Calculations!$E$2=\"Shetland Health Board\",Calculations!$E$2=\"Western Isles Health Board\",Calculations!$E$2=\"Shetland Islands Local Authority\",Calculations!$E$2=\"Eilean Siar Local Authority\"),OR($F214=1,$F214=5)),0,hosp_count(VALUE(LEFT(Options!$B$14,2)),$C214,$E214,$F214,2016,$I214/10+$J214/10,1,$H214/10,$G214*$H214/10, RateRatios_airpollution!$F214, RateRatios_airpollution!$E214)*10))","v":{"$error":"#VALUE!"}},{"$f":"IF(AND(OR(Calculations!$E$2=\"Orkney Health Board\",Calculations!$E$2=\"Orkney Islands Local Authority\"),$F214=1),0,IF(AND(OR(Calculations!$E$2=\"Shetland Health Board\",Calculations!$E$2=\"Western Isles Health Board\",Calculations!$E$2=\"Shetland Islands Local Authority\",Calculations!$E$2=\"Eilean Siar Local Authority\"),OR($F214=1,$F214=5)),0,prem_mort(VALUE(LEFT(Options!$B$14,2)),$C214,$E214,$F214,2016,$I214/10,1,$H214/10,$G214*$H214/10,RateRatios_airpollution!$E214)*10))","v":{"$error":"#VALUE!"}},{"$f":"IF(AND(OR(Calculations!$E$2=\"Orkney Health Board\",Calculations!$E$2=\"Orkney Islands Local Authority\"),$F214=1),0,IF(AND(OR(Calculations!$E$2=\"Shetland Health Board\",Calculations!$E$2=\"Western Isles Health Board\",Calculations!$E$2=\"Shetland Islands Local Authority\",Calculations!$E$2=\"Eilean Siar Local Authority\"),OR($F214=1,$F214=5)),0,prem_mort(VALUE(LEFT(Options!$B$14,2)),$C214,$E214,$F214,2016,$I214/10+$J214/10,1,$H214/10,$G214*$H214/10,RateRatios_airpollution!$E214)*10))","v":{"$error":"#VALUE!"}},{"$error":"#VALUE!"},{"$error":"#VALUE!"},{"$error":"#VALUE!"},{"$error":"#VALUE!"},{"$error":"#VALUE!"},{"$error":"#VALUE!"},{"$error":"#VALUE!"},{"$error":"#VALUE!"},{"$error":"#VALUE!"},{"$error":"#VALUE!"},{"$error":"#VALUE!"},{"$error":"#VALUE!"},{"$error":"#VALUE!"},{"$error":"#VALUE!"},{"$error":"#VALUE!"},{"$error":"#VALUE!"},{"$error":"#VALUE!"},{"$error":"#VALUE!"},{"$error":"#VALUE!"},{"$error":"#VALUE!"},{"$error":"#VALUE!"},{"$error":"#VALUE!"},{"$error":"#VALUE!"},{"$error":"#VALUE!"},6600]
["SIMD Q5 (least deprived)","Female 16-19",17.570053000000001,81.100049999999996,"female",5,1,{"$f":"HLOOKUP(Calculations!$E$2,'Population 2016'!$C$3:$BC$249,'Population 2016'!BD215,FALSE)","v":25268},0,{"$f":"HLOOKUP(Calculations!$E$2,Pop2016_in_settlements!$C$3:$BC$249,Pop2016_in_settlements!$BD215,FALSE)","v":12261},{"$f":"IF(AND(OR(Calculations!$E$2=\"Orkney Health Board\",Calculations!$E$2=\"Orkney Islands Local Authority\"),$F215=1),0,IF(AND(OR(Calculations!$E$2=\"Shetland Health Board\",Calculations!$E$2=\"Western Isles Health Board\",Calculations!$E$2=\"Shetland Islands Local Authority\",Calculations!$E$2=\"Eilean Siar Local Authority\"),OR($F215=1,$F215=5)),0,new_ci(VALUE(LEFT(Options!$B$14,2)),$C215,$E215,$F215,2016,$I215/10,1,$H215/10,$G215*$H215/10,RateRatios_accidents!$B$5)*10))","v":2.6542164169999998},{"$f":"IF(AND(OR(Calculations!$E$2=\"Orkney Health Board\",Calculations!$E$2=\"Orkney Islands Local Authority\"),$F215=1),0,IF(AND(OR(Calculations!$E$2=\"Shetland Health Board\",Calculations!$E$2=\"Western Isles Health Board\",Calculations!$E$2=\"Shetland Islands Local Authority\",Calculations!$E$2=\"Eilean Siar Local Authority\"),OR($F215=1,$F215=5)),0,new_ci(VALUE(LEFT(Options!$B$14,2)),$C215,$E215,$F215,2016,$I215/10+$J215/10,1,$H215/10,$G215*$H215/10,RateRatios_accidents!$B$5)*10))","v":2.6537014549999998},{"$f":"IF(AND(OR(Calculations!$E$2=\"Orkney Health Board\",Calculations!$E$2=\"Orkney Islands Local Authority\"),$F215=1),0,IF(AND(OR(Calculations!$E$2=\"Shetland Health Board\",Calculations!$E$2=\"Western Isles Health Board\",Calculations!$E$2=\"Shetland Islands Local Authority\",Calculations!$E$2=\"Eilean Siar Local Authority\"),OR($F215=1,$F215=5)),0,new_yllv2(VALUE(LEFT(Options!$B$14,2)),$C215,$D215,$E215,$F215,2016,$I215/10,1,$H215/10,$G215*$H215/10,RateRatios_accidents!$B$5)*10))","v":165.96814459200002},{"$f":"IF(AND(OR(Calculations!$E$2=\"Orkney Health Board\",Calculations!$E$2=\"Orkney Islands Local Authority\"),$F215=1),0,IF(AND(OR(Calculations!$E$2=\"Shetland Health Board\",Calculations!$E$2=\"Western Isles Health Board\",Calculations!$E$2=\"Shetland Islands Local Authority\",Calculations!$E$2=\"Eilean Siar Local Authority\"),OR($F215=1,$F215=5)),0,new_yllv2(VALUE(LEFT(Options!$B$14,2)),$C215,$D215,$E215,$F215,2016,$I215/10+$J215/10,1,$H215/10,$G215*$H215/10,RateRatios_accidents!$B$5)*10))","v":165.93594402000002},{"$f":"IF(AND(OR(Calculations!$E$2=\"Orkney Health Board\",Calculations!$E$2=\"Orkney Islands Local Authority\"),$F215=1),0,IF(AND(OR(Calculations!$E$2=\"Shetland Health Board\",Calculations!$E$2=\"Western Isles Health Board\",Calculations!$E$2=\"Shetland Islands Local Authority\",Calculations!$E$2=\"Eilean Siar Local Authority\"),OR($F215=1,$F215=5)),0,hosp_count(VALUE(LEFT(Options!$B$14,2)),$C215,$E215,$F215,2016,$I215/10,1,$H215/10,$G215*$H215/10, RateRatios_accidents!$B$4, RateRatios_accidents!$B$5)*10))","v":1985.9311626019999},{"$f":"IF(AND(OR(Calculations!$E$2=\"Orkney Health Board\",Calculations!$E$2=\"Orkney Islands Local Authority\"),$F215=1),0,IF(AND(OR(Calculations!$E$2=\"Shetland Health Board\",Calculations!$E$2=\"Western Isles Health Board\",Calculations!$E$2=\"Shetland Islands Local Authority\",Calculations!$E$2=\"Eilean Siar Local Authority\"),OR($F215=1,$F215=5)),0,hosp_count(VALUE(LEFT(Options!$B$14,2)),$C215,$E215,$F215,2016,$I215/10+$J215/10,1,$H215/10,$G215*$H215/10, RateRatios_accidents!$B$4, RateRatios_accidents!$B$5)*10))","v":1985.54570251},{"$f":"IF(AND(OR(Calculations!$E$2=\"Orkney Health Board\",Calculations!$E$2=\"Orkney Islands Local Authority\"),$F215=1),0,IF(AND(OR(Calculations!$E$2=\"Shetland Health Board\",Calculations!$E$2=\"Western Isles Health Board\",Calculations!$E$2=\"Shetland Islands Local Authority\",Calculations!$E$2=\"Eilean Siar Local Authority\"),OR($F215=1,$F215=5)),0,prem_mort(VALUE(LEFT(Options!$B$14,2)),$C215,$E215,$F215,2016,$I215/10,1,$H215/10,$G215*$H215/10,RateRatios_accidents!$B$5)*10))","v":2.6542164169999998},{"$f":"IF(AND(OR(Calculations!$E$2=\"Orkney Health Board\",Calculations!$E$2=\"Orkney Islands Local Authority\"),$F215=1),0,IF(AND(OR(Calculations!$E$2=\"Shetland Health Board\",Calculations!$E$2=\"Western Isles Health Board\",Calculations!$E$2=\"Shetland Islands Local Authority\",Calculations!$E$2=\"Eilean Siar Local Authority\"),OR($F215=1,$F215=5)),0,prem_mort(VALUE(LEFT(Options!$B$14,2)),$C215,$E215,$F215,2016,$I215/10+$J215/10,1,$H215/10,$G215*$H215/10,RateRatios_accidents!$B$5)*10))","v":2.6537014549999998},null,{"$f":"IF(AND(OR(Calculations!$E$2=\"Orkney Health Board\",Calculations!$E$2=\"Orkney Islands Local Authority\"),$F215=1),0,IF(AND(OR(Calculations!$E$2=\"Shetland Health Board\",Calculations!$E$2=\"Western Isles Health Board\",Calculations!$E$2=\"Shetland Islands Local Authority\",Calculations!$E$2=\"Eilean Siar Local Authority\"),OR($F215=1,$F215=5)),0,new_ci(VALUE(LEFT(Options!$B$14,2)),$C215,$E215,$F215,2016,$I215/10,1,$H215/10,$G215*$H215/10,RateRatios_airpollution!$C215)*10))","v":2.6542164169999998},{"$f":"IF(AND(OR(Calculations!$E$2=\"Orkney Health Board\",Calculations!$E$2=\"Orkney Islands Local Authority\"),$F215=1),0,IF(AND(OR(Calculations!$E$2=\"Shetland Health Board\",Calculations!$E$2=\"Western Isles Health Board\",Calculations!$E$2=\"Shetland Islands Local Authority\",Calculations!$E$2=\"Eilean Siar Local Authority\"),OR($F215=1,$F215=5)),0,new_ci(VALUE(LEFT(Options!$B$14,2)),$C215,$E215,$F215,2016,$I215/10+$J215/10,1,$H215/10,$G215*$H215/10,RateRatios_airpollution!$C215)*10))","v":2.6541833120000002},{"$f":"IF(AND(OR(Calculations!$E$2=\"Orkney Health Board\",Calculations!$E$2=\"Orkney Islands Local Authority\"),$F215=1),0,IF(AND(OR(Calculations!$E$2=\"Shetland Health Board\",Calculations!$E$2=\"Western Isles Health Board\",Calculations!$E$2=\"Shetland Islands Local Authority\",Calculations!$E$2=\"Eilean Siar Local Authority\"),OR($F215=1,$F215=5)),0,new_yllv2(VALUE(LEFT(Options!$B$14,2)),$C215,$D215,$E215,$F215,2016,$I215/10,1,$H215/10,$G215*$H215/10,RateRatios_airpollution!$C215)*10))","v":165.96814459200002},{"$f":"IF(AND(OR(Calculations!$E$2=\"Orkney Health Board\",Calculations!$E$2=\"Orkney Islands Local Authority\"),$F215=1),0,IF(AND(OR(Calculations!$E$2=\"Shetland Health Board\",Calculations!$E$2=\"Western Isles Health Board\",Calculations!$E$2=\"Shetland Islands Local Authority\",Calculations!$E$2=\"Eilean Siar Local Authority\"),OR($F215=1,$F215=5)),0,new_yllv2(VALUE(LEFT(Options!$B$14,2)),$C215,$D215,$E215,$F215,2016,$I215/10+$J215/10,1,$H215/10,$G215*$H215/10,RateRatios_airpollution!$C215)*10))","v":165.966074537},{"$f":"IF(AND(OR(Calculations!$E$2=\"Orkney Health Board\",Calculations!$E$2=\"Orkney Islands Local Authority\"),$F215=1),0,IF(AND(OR(Calculations!$E$2=\"Shetland Health Board\",Calculations!$E$2=\"Western Isles Health Board\",Calculations!$E$2=\"Shetland Islands Local Authority\",Calculations!$E$2=\"Eilean Siar Local Authority\"),OR($F215=1,$F215=5)),0,hosp_count(VALUE(LEFT(Options!$B$14,2)),$C215,$E215,$F215,2016,$I215/10,1,$H215/10,$G215*$H215/10, RateRatios_airpollution!$D215, RateRatios_airpollution!$C215)*10))","v":1985.9311626019999},{"$f":"IF(AND(OR(Calculations!$E$2=\"Orkney Health Board\",Calculations!$E$2=\"Orkney Islands Local Authority\"),$F215=1),0,IF(AND(OR(Calculations!$E$2=\"Shetland Health Board\",Calculations!$E$2=\"Western Isles Health Board\",Calculations!$E$2=\"Shetland Islands Local Authority\",Calculations!$E$2=\"Eilean Siar Local Authority\"),OR($F215=1,$F215=5)),0,hosp_count(VALUE(LEFT(Options!$B$14,2)),$C215,$E215,$F215,2016,$I215/10+$J215/10,1,$H215/10,$G215*$H215/10, RateRatios_airpollution!$D215, RateRatios_airpollution!$C215)*10))","v":1985.8855161249999},{"$f":"IF(AND(OR(Calculations!$E$2=\"Orkney Health Board\",Calculations!$E$2=\"Orkney Islands Local Authority\"),$F215=1),0,IF(AND(OR(Calculations!$E$2=\"Shetland Health Board\",Calculations!$E$2=\"Western Isles Health Board\",Calculations!$E$2=\"Shetland Islands Local Authority\",Calculations!$E$2=\"Eilean Siar Local Authority\"),OR($F215=1,$F215=5)),0,prem_mort(VALUE(LEFT(Options!$B$14,2)),$C215,$E215,$F215,2016,$I215/10,1,$H215/10,$G215*$H215/10,RateRatios_airpollution!$C215)*10))","v":2.6542164169999998},{"$f":"IF(AND(OR(Calculations!$E$2=\"Orkney Health Board\",Calculations!$E$2=\"Orkney Islands Local Authority\"),$F215=1),0,IF(AND(OR(Calculations!$E$2=\"Shetland Health Board\",Calculations!$E$2=\"Western Isles Health Board\",Calculations!$E$2=\"Shetland Islands Local Authority\",Calculations!$E$2=\"Eilean Siar Local Authority\"),OR($F215=1,$F215=5)),0,prem_mort(VALUE(LEFT(Options!$B$14,2)),$C215,$E215,$F215,2016,$I215/10+$J215/10,1,$H215/10,$G215*$H215/10,RateRatios_airpollution!$C215)*10))","v":2.6541833120000002},null,{"$f":"IF(AND(OR(Calculations!$E$2=\"Orkney Health Board\",Calculations!$E$2=\"Orkney Islands Local Authority\"),$F215=1),0,IF(AND(OR(Calculations!$E$2=\"Shetland Health Board\",Calculations!$E$2=\"Western Isles Health Board\",Calculations!$E$2=\"Shetland Islands Local Authority\",Calculations!$E$2=\"Eilean Siar Local Authority\"),OR($F215=1,$F215=5)),0,new_ci(VALUE(LEFT(Options!$B$14,2)),$C215,$E215,$F215,2016,$I215/10,1,$H215/10,$G215*$H215/10,RateRatios_airpollution!$E215)*10))","v":2.6542164169999998},{"$f":"IF(AND(OR(Calculations!$E$2=\"Orkney Health Board\",Calculations!$E$2=\"Orkney Islands Local Authority\"),$F215=1),0,IF(AND(OR(Calculations!$E$2=\"Shetland Health Board\",Calculations!$E$2=\"Western Isles Health Board\",Calculations!$E$2=\"Shetland Islands Local Authority\",Calculations!$E$2=\"Eilean Siar Local Authority\"),OR($F215=1,$F215=5)),0,new_ci(VALUE(LEFT(Options!$B$14,2)),$C215,$E215,$F215,2016,$I215/10+$J215/10,1,$H215/10,$G215*$H215/10,RateRatios_airpollution!$E215)*10))","v":2.6542017040000001},{"$f":"IF(AND(OR(Calculations!$E$2=\"Orkney Health Board\",Calculations!$E$2=\"Orkney Islands Local Authority\"),$F215=1),0,IF(AND(OR(Calculations!$E$2=\"Shetland Health Board\",Calculations!$E$2=\"Western Isles Health Board\",Calculations!$E$2=\"Shetland Islands Local Authority\",Calculations!$E$2=\"Eilean Siar Local Authority\"),OR($F215=1,$F215=5)),0,new_yllv2(VALUE(LEFT(Options!$B$14,2)),$C215,$D215,$E215,$F215,2016,$I215/10,1,$H215/10,$G215*$H215/10,RateRatios_airpollution!$E215)*10))","v":165.96814459200002},{"$f":"IF(AND(OR(Calculations!$E$2=\"Orkney Health Board\",Calculations!$E$2=\"Orkney Islands Local Authority\"),$F215=1),0,IF(AND(OR(Calculations!$E$2=\"Shetland Health Board\",Calculations!$E$2=\"Western Isles Health Board\",Calculations!$E$2=\"Shetland Islands Local Authority\",Calculations!$E$2=\"Eilean Siar Local Authority\"),OR($F215=1,$F215=5)),0,new_yllv2(VALUE(LEFT(Options!$B$14,2)),$C215,$D215,$E215,$F215,2016,$I215/10+$J215/10,1,$H215/10,$G215*$H215/10,RateRatios_airpollution!$E215)*10))","v":165.96722458900001},{"$f":"IF(AND(OR(Calculations!$E$2=\"Orkney Health Board\",Calculations!$E$2=\"Orkney Islands Local Authority\"),$F215=1),0,IF(AND(OR(Calculations!$E$2=\"Shetland Health Board\",Calculations!$E$2=\"Western Isles Health Board\",Calculations!$E$2=\"Shetland Islands Local Authority\",Calculations!$E$2=\"Eilean Siar Local Authority\"),OR($F215=1,$F215=5)),0,hosp_count(VALUE(LEFT(Options!$B$14,2)),$C215,$E215,$F215,2016,$I215/10,1,$H215/10,$G215*$H215/10, RateRatios_airpollution!$F215, RateRatios_airpollution!$E215)*10))","v":1985.9311626019999},{"$f":"IF(AND(OR(Calculations!$E$2=\"Orkney Health Board\",Calculations!$E$2=\"Orkney Islands Local Authority\"),$F215=1),0,IF(AND(OR(Calculations!$E$2=\"Shetland Health Board\",Calculations!$E$2=\"Western Isles Health Board\",Calculations!$E$2=\"Shetland Islands Local Authority\",Calculations!$E$2=\"Eilean Siar Local Authority\"),OR($F215=1,$F215=5)),0,hosp_count(VALUE(LEFT(Options!$B$14,2)),$C215,$E215,$F215,2016,$I215/10+$J215/10,1,$H215/10,$G215*$H215/10, RateRatios_airpollution!$F215, RateRatios_airpollution!$E215)*10))","v":1985.9311626019999},{"$f":"IF(AND(OR(Calculations!$E$2=\"Orkney Health Board\",Calculations!$E$2=\"Orkney Islands Local Authority\"),$F215=1),0,IF(AND(OR(Calculations!$E$2=\"Shetland Health Board\",Calculations!$E$2=\"Western Isles Health Board\",Calculations!$E$2=\"Shetland Islands Local Authority\",Calculations!$E$2=\"Eilean Siar Local Authority\"),OR($F215=1,$F215=5)),0,prem_mort(VALUE(LEFT(Options!$B$14,2)),$C215,$E215,$F215,2016,$I215/10,1,$H215/10,$G215*$H215/10,RateRatios_airpollution!$E215)*10))","v":2.6542164169999998},{"$f":"IF(AND(OR(Calculations!$E$2=\"Orkney Health Board\",Calculations!$E$2=\"Orkney Islands Local Authority\"),$F215=1),0,IF(AND(OR(Calculations!$E$2=\"Shetland Health Board\",Calculations!$E$2=\"Western Isles Health Board\",Calculations!$E$2=\"Shetland Islands Local Authority\",Calculations!$E$2=\"Eilean Siar Local Authority\"),OR($F215=1,$F215=5)),0,prem_mort(VALUE(LEFT(Options!$B$14,2)),$C215,$E215,$F215,2016,$I215/10+$J215/10,1,$H215/10,$G215*$H215/10,RateRatios_airpollution!$E215)*10))","v":2.6542017040000001},2.6542164169999998,2.6536536370000006,165.96814459200002,165.932953962,1985.9311626019999,1985.500056033,2.6542164169999998,2.6536536370000006,10.504260000791515,10.502032756846607,656.83134633528584,656.69207678486623,7859.4711200015827,7857.7649835087859,10.504260000791515,10.502032756846607,46218.744003482665,46208.94413012507,2890057.9238752578,2889445.1378534115,34581672.928006962,34574165.927438661,46218.744003482665,46208.94413012507,4400]
[null,"Female 20-24",22.077057,81.667060000000006,"female",5,1,{"$f":"HLOOKUP(Calculations!$E$2,'Population 2016'!$C$3:$BC$249,'Population 2016'!BD216,FALSE)","v":38013},0,{"$f":"HLOOKUP(Calculations!$E$2,Pop2016_in_settlements!$C$3:$BC$249,Pop2016_in_settlements!$BD216,FALSE)","v":17040},{"$f":"IF(AND(OR(Calculations!$E$2=\"Orkney Health Board\",Calculations!$E$2=\"Orkney Islands Local Authority\"),$F216=1),0,IF(AND(OR(Calculations!$E$2=\"Shetland Health Board\",Calculations!$E$2=\"Western Isles Health Board\",Calculations!$E$2=\"Shetland Islands Local Authority\",Calculations!$E$2=\"Eilean Siar Local Authority\"),OR($F216=1,$F216=5)),0,new_ci(VALUE(LEFT(Options!$B$14,2)),$C216,$E216,$F216,2016,$I216/10,1,$H216/10,$G216*$H216/10,RateRatios_accidents!$B$5)*10))","v":5.8582670589999992},{"$f":"IF(AND(OR(Calculations!$E$2=\"Orkney Health Board\",Calculations!$E$2=\"Orkney Islands Local Authority\"),$F216=1),0,IF(AND(OR(Calculations!$E$2=\"Shetland Health Board\",Calculations!$E$2=\"Western Isles Health Board\",Calculations!$E$2=\"Shetland Islands Local Authority\",Calculations!$E$2=\"Eilean Siar Local Authority\"),OR($F216=1,$F216=5)),0,new_ci(VALUE(LEFT(Options!$B$14,2)),$C216,$E216,$F216,2016,$I216/10+$J216/10,1,$H216/10,$G216*$H216/10,RateRatios_accidents!$B$5)*10))","v":5.8572173949999993},{"$f":"IF(AND(OR(Calculations!$E$2=\"Orkney Health Board\",Calculations!$E$2=\"Orkney Islands Local Authority\"),$F216=1),0,IF(AND(OR(Calculations!$E$2=\"Shetland Health Board\",Calculations!$E$2=\"Western Isles Health Board\",Calculations!$E$2=\"Shetland Islands Local Authority\",Calculations!$E$2=\"Eilean Siar Local Authority\"),OR($F216=1,$F216=5)),0,new_yllv2(VALUE(LEFT(Options!$B$14,2)),$C216,$D216,$E216,$F216,2016,$I216/10,1,$H216/10,$G216*$H216/10,RateRatios_accidents!$B$5)*10))","v":343.23588456200002},{"$f":"IF(AND(OR(Calculations!$E$2=\"Orkney Health Board\",Calculations!$E$2=\"Orkney Islands Local Authority\"),$F216=1),0,IF(AND(OR(Calculations!$E$2=\"Shetland Health Board\",Calculations!$E$2=\"Western Isles Health Board\",Calculations!$E$2=\"Shetland Islands Local Authority\",Calculations!$E$2=\"Eilean Siar Local Authority\"),OR($F216=1,$F216=5)),0,new_yllv2(VALUE(LEFT(Options!$B$14,2)),$C216,$D216,$E216,$F216,2016,$I216/10+$J216/10,1,$H216/10,$G216*$H216/10,RateRatios_accidents!$B$5)*10))","v":343.174384745},{"$f":"IF(AND(OR(Calculations!$E$2=\"Orkney Health Board\",Calculations!$E$2=\"Orkney Islands Local Authority\"),$F216=1),0,IF(AND(OR(Calculations!$E$2=\"Shetland Health Board\",Calculations!$E$2=\"Western Isles Health Board\",Calculations!$E$2=\"Shetland Islands Local Authority\",Calculations!$E$2=\"Eilean Siar Local Authority\"),OR($F216=1,$F216=5)),0,hosp_count(VALUE(LEFT(Options!$B$14,2)),$C216,$E216,$F216,2016,$I216/10,1,$H216/10,$G216*$H216/10, RateRatios_accidents!$B$4, RateRatios_accidents!$B$5)*10))","v":3346.2660715350003},{"$f":"IF(AND(OR(Calculations!$E$2=\"Orkney Health Board\",Calculations!$E$2=\"Orkney Islands Local Authority\"),$F216=1),0,IF(AND(OR(Calculations!$E$2=\"Shetland Health Board\",Calculations!$E$2=\"Western Isles Health Board\",Calculations!$E$2=\"Shetland Islands Local Authority\",Calculations!$E$2=\"Eilean Siar Local Authority\"),OR($F216=1,$F216=5)),0,hosp_count(VALUE(LEFT(Options!$B$14,2)),$C216,$E216,$F216,2016,$I216/10+$J216/10,1,$H216/10,$G216*$H216/10, RateRatios_accidents!$B$4, RateRatios_accidents!$B$5)*10))","v":3345.6660624630003},{"$f":"IF(AND(OR(Calculations!$E$2=\"Orkney Health Board\",Calculations!$E$2=\"Orkney Islands Local Authority\"),$F216=1),0,IF(AND(OR(Calculations!$E$2=\"Shetland Health Board\",Calculations!$E$2=\"Western Isles Health Board\",Calculations!$E$2=\"Shetland Islands Local Authority\",Calculations!$E$2=\"Eilean Siar Local Authority\"),OR($F216=1,$F216=5)),0,prem_mort(VALUE(LEFT(Options!$B$14,2)),$C216,$E216,$F216,2016,$I216/10,1,$H216/10,$G216*$H216/10,RateRatios_accidents!$B$5)*10))","v":5.8582670589999992},{"$f":"IF(AND(OR(Calculations!$E$2=\"Orkney Health Board\",Calculations!$E$2=\"Orkney Islands Local Authority\"),$F216=1),0,IF(AND(OR(Calculations!$E$2=\"Shetland Health Board\",Calculations!$E$2=\"Western Isles Health Board\",Calculations!$E$2=\"Shetland Islands Local Authority\",Calculations!$E$2=\"Eilean Siar Local Authority\"),OR($F216=1,$F216=5)),0,prem_mort(VALUE(LEFT(Options!$B$14,2)),$C216,$E216,$F216,2016,$I216/10+$J216/10,1,$H216/10,$G216*$H216/10,RateRatios_accidents!$B$5)*10))","v":5.8572173949999993},null,{"$f":"IF(AND(OR(Calculations!$E$2=\"Orkney Health Board\",Calculations!$E$2=\"Orkney Islands Local Authority\"),$F216=1),0,IF(AND(OR(Calculations!$E$2=\"Shetland Health Board\",Calculations!$E$2=\"Western Isles Health Board\",Calculations!$E$2=\"Shetland Islands Local Authority\",Calculations!$E$2=\"Eilean Siar Local Authority\"),OR($F216=1,$F216=5)),0,new_ci(VALUE(LEFT(Options!$B$14,2)),$C216,$E216,$F216,2016,$I216/10,1,$H216/10,$G216*$H216/10,RateRatios_airpollution!$C216)*10))","v":5.8582670589999992},{"$f":"IF(AND(OR(Calculations!$E$2=\"Orkney Health Board\",Calculations!$E$2=\"Orkney Islands Local Authority\"),$F216=1),0,IF(AND(OR(Calculations!$E$2=\"Shetland Health Board\",Calculations!$E$2=\"Western Isles Health Board\",Calculations!$E$2=\"Shetland Islands Local Authority\",Calculations!$E$2=\"Eilean Siar Local Authority\"),OR($F216=1,$F216=5)),0,new_ci(VALUE(LEFT(Options!$B$14,2)),$C216,$E216,$F216,2016,$I216/10+$J216/10,1,$H216/10,$G216*$H216/10,RateRatios_airpollution!$C216)*10))","v":5.8581818590000001},{"$f":"IF(AND(OR(Calculations!$E$2=\"Orkney Health Board\",Calculations!$E$2=\"Orkney Islands Local Authority\"),$F216=1),0,IF(AND(OR(Calculations!$E$2=\"Shetland Health Board\",Calculations!$E$2=\"Western Isles Health Board\",Calculations!$E$2=\"Shetland Islands Local Authority\",Calculations!$E$2=\"Eilean Siar Local Authority\"),OR($F216=1,$F216=5)),0,new_yllv2(VALUE(LEFT(Options!$B$14,2)),$C216,$D216,$E216,$F216,2016,$I216/10,1,$H216/10,$G216*$H216/10,RateRatios_airpollution!$C216)*10))","v":343.23588456200002},{"$f":"IF(AND(OR(Calculations!$E$2=\"Orkney Health Board\",Calculations!$E$2=\"Orkney Islands Local Authority\"),$F216=1),0,IF(AND(OR(Calculations!$E$2=\"Shetland Health Board\",Calculations!$E$2=\"Western Isles Health Board\",Calculations!$E$2=\"Shetland Islands Local Authority\",Calculations!$E$2=\"Eilean Siar Local Authority\"),OR($F216=1,$F216=5)),0,new_yllv2(VALUE(LEFT(Options!$B$14,2)),$C216,$D216,$E216,$F216,2016,$I216/10+$J216/10,1,$H216/10,$G216*$H216/10,RateRatios_airpollution!$C216)*10))","v":343.23089269299999},{"$f":"IF(AND(OR(Calculations!$E$2=\"Orkney Health Board\",Calculations!$E$2=\"Orkney Islands Local Authority\"),$F216=1),0,IF(AND(OR(Calculations!$E$2=\"Shetland Health Board\",Calculations!$E$2=\"Western Isles Health Board\",Calculations!$E$2=\"Shetland Islands Local Authority\",Calculations!$E$2=\"Eilean Siar Local Authority\"),OR($F216=1,$F216=5)),0,hosp_count(VALUE(LEFT(Options!$B$14,2)),$C216,$E216,$F216,2016,$I216/10,1,$H216/10,$G216*$H216/10, RateRatios_airpollution!$D216, RateRatios_airpollution!$C216)*10))","v":3346.2660715350003},{"$f":"IF(AND(OR(Calculations!$E$2=\"Orkney Health Board\",Calculations!$E$2=\"Orkney Islands Local Authority\"),$F216=1),0,IF(AND(OR(Calculations!$E$2=\"Shetland Health Board\",Calculations!$E$2=\"Western Isles Health Board\",Calculations!$E$2=\"Shetland Islands Local Authority\",Calculations!$E$2=\"Eilean Siar Local Authority\"),OR($F216=1,$F216=5)),0,hosp_count(VALUE(LEFT(Options!$B$14,2)),$C216,$E216,$F216,2016,$I216/10+$J216/10,1,$H216/10,$G216*$H216/10, RateRatios_airpollution!$D216, RateRatios_airpollution!$C216)*10))","v":3346.1732546550002},{"$f":"IF(AND(OR(Calculations!$E$2=\"Orkney Health Board\",Calculations!$E$2=\"Orkney Islands Local Authority\"),$F216=1),0,IF(AND(OR(Calculations!$E$2=\"Shetland Health Board\",Calculations!$E$2=\"Western Isles Health Board\",Calculations!$E$2=\"Shetland Islands Local Authority\",Calculations!$E$2=\"Eilean Siar Local Authority\"),OR($F216=1,$F216=5)),0,prem_mort(VALUE(LEFT(Options!$B$14,2)),$C216,$E216,$F216,2016,$I216/10,1,$H216/10,$G216*$H216/10,RateRatios_airpollution!$C216)*10))","v":5.8582670589999992},{"$f":"IF(AND(OR(Calculations!$E$2=\"Orkney Health Board\",Calculations!$E$2=\"Orkney Islands Local Authority\"),$F216=1),0,IF(AND(OR(Calculations!$E$2=\"Shetland Health Board\",Calculations!$E$2=\"Western Isles Health Board\",Calculations!$E$2=\"Shetland Islands Local Authority\",Calculations!$E$2=\"Eilean Siar Local Authority\"),OR($F216=1,$F216=5)),0,prem_mort(VALUE(LEFT(Options!$B$14,2)),$C216,$E216,$F216,2016,$I216/10+$J216/10,1,$H216/10,$G216*$H216/10,RateRatios_airpollution!$C216)*10))","v":5.8581818590000001},null,{"$f":"IF(AND(OR(Calculations!$E$2=\"Orkney Health Board\",Calculations!$E$2=\"Orkney Islands Local Authority\"),$F216=1),0,IF(AND(OR(Calculations!$E$2=\"Shetland Health Board\",Calculations!$E$2=\"Western Isles Health Board\",Calculations!$E$2=\"Shetland Islands Local Authority\",Calculations!$E$2=\"Eilean Siar Local Authority\"),OR($F216=1,$F216=5)),0,new_ci(VALUE(LEFT(Options!$B$14,2)),$C216,$E216,$F216,2016,$I216/10,1,$H216/10,$G216*$H216/10,RateRatios_airpollution!$E216)*10))","v":5.8582670589999992},{"$f":"IF(AND(OR(Calculations!$E$2=\"Orkney Health Board\",Calculations!$E$2=\"Orkney Islands Local Authority\"),$F216=1),0,IF(AND(OR(Calculations!$E$2=\"Shetland Health Board\",Calculations!$E$2=\"Western Isles Health Board\",Calculations!$E$2=\"Shetland Islands Local Authority\",Calculations!$E$2=\"Eilean Siar Local Authority\"),OR($F216=1,$F216=5)),0,new_ci(VALUE(LEFT(Options!$B$14,2)),$C216,$E216,$F216,2016,$I216/10+$J216/10,1,$H216/10,$G216*$H216/10,RateRatios_airpollution!$E216)*10))","v":5.8582312749999996},{"$f":"IF(AND(OR(Calculations!$E$2=\"Orkney Health Board\",Calculations!$E$2=\"Orkney Islands Local Authority\"),$F216=1),0,IF(AND(OR(Calculations!$E$2=\"Shetland Health Board\",Calculations!$E$2=\"Western Isles Health Board\",Calculations!$E$2=\"Shetland Islands Local Authority\",Calculations!$E$2=\"Eilean Siar Local Authority\"),OR($F216=1,$F216=5)),0,new_yllv2(VALUE(LEFT(Options!$B$14,2)),$C216,$D216,$E216,$F216,2016,$I216/10,1,$H216/10,$G216*$H216/10,RateRatios_airpollution!$E216)*10))","v":343.23588456200002},{"$f":"IF(AND(OR(Calculations!$E$2=\"Orkney Health Board\",Calculations!$E$2=\"Orkney Islands Local Authority\"),$F216=1),0,IF(AND(OR(Calculations!$E$2=\"Shetland Health Board\",Calculations!$E$2=\"Western Isles Health Board\",Calculations!$E$2=\"Shetland Islands Local Authority\",Calculations!$E$2=\"Eilean Siar Local Authority\"),OR($F216=1,$F216=5)),0,new_yllv2(VALUE(LEFT(Options!$B$14,2)),$C216,$D216,$E216,$F216,2016,$I216/10+$J216/10,1,$H216/10,$G216*$H216/10,RateRatios_airpollution!$E216)*10))","v":343.23378797700002},{"$f":"IF(AND(OR(Calculations!$E$2=\"Orkney Health Board\",Calculations!$E$2=\"Orkney Islands Local Authority\"),$F216=1),0,IF(AND(OR(Calculations!$E$2=\"Shetland Health Board\",Calculations!$E$2=\"Western Isles Health Board\",Calculations!$E$2=\"Shetland Islands Local Authority\",Calculations!$E$2=\"Eilean Siar Local Authority\"),OR($F216=1,$F216=5)),0,hosp_count(VALUE(LEFT(Options!$B$14,2)),$C216,$E216,$F216,2016,$I216/10,1,$H216/10,$G216*$H216/10, RateRatios_airpollution!$F216, RateRatios_airpollution!$E216)*10))","v":3346.2660715350003},{"$f":"IF(AND(OR(Calculations!$E$2=\"Orkney Health Board\",Calculations!$E$2=\"Orkney Islands Local Authority\"),$F216=1),0,IF(AND(OR(Calculations!$E$2=\"Shetland Health Board\",Calculations!$E$2=\"Western Isles Health Board\",Calculations!$E$2=\"Shetland Islands Local Authority\",Calculations!$E$2=\"Eilean Siar Local Authority\"),OR($F216=1,$F216=5)),0,hosp_count(VALUE(LEFT(Options!$B$14,2)),$C216,$E216,$F216,2016,$I216/10+$J216/10,1,$H216/10,$G216*$H216/10, RateRatios_airpollution!$F216, RateRatios_airpollution!$E216)*10))","v":3346.2660715350003},{"$f":"IF(AND(OR(Calculations!$E$2=\"Orkney Health Board\",Calculations!$E$2=\"Orkney Islands Local Authority\"),$F216=1),0,IF(AND(OR(Calculations!$E$2=\"Shetland Health Board\",Calculations!$E$2=\"Western Isles Health Board\",Calculations!$E$2=\"Shetland Islands Local Authority\",Calculations!$E$2=\"Eilean Siar Local Authority\"),OR($F216=1,$F216=5)),0,prem_mort(VALUE(LEFT(Options!$B$14,2)),$C216,$E216,$F216,2016,$I216/10,1,$H216/10,$G216*$H216/10,RateRatios_airpollution!$E216)*10))","v":5.8582670589999992},{"$f":"IF(AND(OR(Calculations!$E$2=\"Orkney Health Board\",Calculations!$E$2=\"Orkney Islands Local Authority\"),$F216=1),0,IF(AND(OR(Calculations!$E$2=\"Shetland Health Board\",Calculations!$E$2=\"Western Isles Health Board\",Calculations!$E$2=\"Shetland Islands Local Authority\",Calculations!$E$2=\"Eilean Siar Local Authority\"),OR($F216=1,$F216=5)),0,prem_mort(VALUE(LEFT(Options!$B$14,2)),$C216,$E216,$F216,2016,$I216/10+$J216/10,1,$H216/10,$G216*$H216/10,RateRatios_airpollution!$E216)*10))","v":5.8582312749999996},5.8582670589999992,5.8570964110000006,343.23588456200002,343.16729629099996,3346.2660715350003,3345.5732455830002,5.8582670589999992,5.8570964110000006,15.41122000105227,15.408140401967747,902.94342609633554,902.76299237366152,8802.951809999211,8801.1292073317036,15.41122000105227,15.408140401967747,92467.320006313617,92448.842411806487,5417660.5565780131,5416577.9542419687,52817710.859995268,52806775.24399022,92467.320006313617,92448.842411806487,6000]
[null,"Female 25-29",26.975186999999998,81.645189999999999,"female",5,1,{"$f":"HLOOKUP(Calculations!$E$2,'Population 2016'!$C$3:$BC$249,'Population 2016'!BD217,FALSE)","v":32371},0,{"$f":"HLOOKUP(Calculations!$E$2,Pop2016_in_settlements!$C$3:$BC$249,Pop2016_in_settlements!$BD217,FALSE)","v":15504},{"$f":"IF(AND(OR(Calculations!$E$2=\"Orkney Health Board\",Calculations!$E$2=\"Orkney Islands Local Authority\"),$F217=1),0,IF(AND(OR(Calculations!$E$2=\"Shetland Health Board\",Calculations!$E$2=\"Western Isles Health Board\",Calculations!$E$2=\"Shetland Islands Local Authority\",Calculations!$E$2=\"Eilean Siar Local Authority\"),OR($F217=1,$F217=5)),0,new_ci(VALUE(LEFT(Options!$B$14,2)),$C217,$E217,$F217,2016,$I217/10,1,$H217/10,$G217*$H217/10,RateRatios_accidents!$B$5)*10))","v":7.5666953530000001},{"$f":"IF(AND(OR(Calculations!$E$2=\"Orkney Health Board\",Calculations!$E$2=\"Orkney Islands Local Authority\"),$F217=1),0,IF(AND(OR(Calculations!$E$2=\"Shetland Health Board\",Calculations!$E$2=\"Western Isles Health Board\",Calculations!$E$2=\"Shetland Islands Local Authority\",Calculations!$E$2=\"Eilean Siar Local Authority\"),OR($F217=1,$F217=5)),0,new_ci(VALUE(LEFT(Options!$B$14,2)),$C217,$E217,$F217,2016,$I217/10+$J217/10,1,$H217/10,$G217*$H217/10,RateRatios_accidents!$B$5)*10))","v":7.5652457289999999},{"$f":"IF(AND(OR(Calculations!$E$2=\"Orkney Health Board\",Calculations!$E$2=\"Orkney Islands Local Authority\"),$F217=1),0,IF(AND(OR(Calculations!$E$2=\"Shetland Health Board\",Calculations!$E$2=\"Western Isles Health Board\",Calculations!$E$2=\"Shetland Islands Local Authority\",Calculations!$E$2=\"Eilean Siar Local Authority\"),OR($F217=1,$F217=5)),0,new_yllv2(VALUE(LEFT(Options!$B$14,2)),$C217,$D217,$E217,$F217,2016,$I217/10,1,$H217/10,$G217*$H217/10,RateRatios_accidents!$B$5)*10))","v":406.10456229599998},{"$f":"IF(AND(OR(Calculations!$E$2=\"Orkney Health Board\",Calculations!$E$2=\"Orkney Islands Local Authority\"),$F217=1),0,IF(AND(OR(Calculations!$E$2=\"Shetland Health Board\",Calculations!$E$2=\"Western Isles Health Board\",Calculations!$E$2=\"Shetland Islands Local Authority\",Calculations!$E$2=\"Eilean Siar Local Authority\"),OR($F217=1,$F217=5)),0,new_yllv2(VALUE(LEFT(Options!$B$14,2)),$C217,$D217,$E217,$F217,2016,$I217/10+$J217/10,1,$H217/10,$G217*$H217/10,RateRatios_accidents!$B$5)*10))","v":406.02676097100004},{"$f":"IF(AND(OR(Calculations!$E$2=\"Orkney Health Board\",Calculations!$E$2=\"Orkney Islands Local Authority\"),$F217=1),0,IF(AND(OR(Calculations!$E$2=\"Shetland Health Board\",Calculations!$E$2=\"Western Isles Health Board\",Calculations!$E$2=\"Shetland Islands Local Authority\",Calculations!$E$2=\"Eilean Siar Local Authority\"),OR($F217=1,$F217=5)),0,hosp_count(VALUE(LEFT(Options!$B$14,2)),$C217,$E217,$F217,2016,$I217/10,1,$H217/10,$G217*$H217/10, RateRatios_accidents!$B$4, RateRatios_accidents!$B$5)*10))","v":3223.2362970269996},{"$f":"IF(AND(OR(Calculations!$E$2=\"Orkney Health Board\",Calculations!$E$2=\"Orkney Islands Local Authority\"),$F217=1),0,IF(AND(OR(Calculations!$E$2=\"Shetland Health Board\",Calculations!$E$2=\"Western Isles Health Board\",Calculations!$E$2=\"Shetland Islands Local Authority\",Calculations!$E$2=\"Eilean Siar Local Authority\"),OR($F217=1,$F217=5)),0,hosp_count(VALUE(LEFT(Options!$B$14,2)),$C217,$E217,$F217,2016,$I217/10+$J217/10,1,$H217/10,$G217*$H217/10, RateRatios_accidents!$B$4, RateRatios_accidents!$B$5)*10))","v":3222.6187928619997},{"$f":"IF(AND(OR(Calculations!$E$2=\"Orkney Health Board\",Calculations!$E$2=\"Orkney Islands Local Authority\"),$F217=1),0,IF(AND(OR(Calculations!$E$2=\"Shetland Health Board\",Calculations!$E$2=\"Western Isles Health Board\",Calculations!$E$2=\"Shetland Islands Local Authority\",Calculations!$E$2=\"Eilean Siar Local Authority\"),OR($F217=1,$F217=5)),0,prem_mort(VALUE(LEFT(Options!$B$14,2)),$C217,$E217,$F217,2016,$I217/10,1,$H217/10,$G217*$H217/10,RateRatios_accidents!$B$5)*10))","v":7.5666953530000001},{"$f":"IF(AND(OR(Calculations!$E$2=\"Orkney Health Board\",Calculations!$E$2=\"Orkney Islands Local Authority\"),$F217=1),0,IF(AND(OR(Calculations!$E$2=\"Shetland Health Board\",Calculations!$E$2=\"Western Isles Health Board\",Calculations!$E$2=\"Shetland Islands Local Authority\",Calculations!$E$2=\"Eilean Siar Local Authority\"),OR($F217=1,$F217=5)),0,prem_mort(VALUE(LEFT(Options!$B$14,2)),$C217,$E217,$F217,2016,$I217/10+$J217/10,1,$H217/10,$G217*$H217/10,RateRatios_accidents!$B$5)*10))","v":7.5652457289999999},null,{"$f":"IF(AND(OR(Calculations!$E$2=\"Orkney Health Board\",Calculations!$E$2=\"Orkney Islands Local Authority\"),$F217=1),0,IF(AND(OR(Calculations!$E$2=\"Shetland Health Board\",Calculations!$E$2=\"Western Isles Health Board\",Calculations!$E$2=\"Shetland Islands Local Authority\",Calculations!$E$2=\"Eilean Siar Local Authority\"),OR($F217=1,$F217=5)),0,new_ci(VALUE(LEFT(Options!$B$14,2)),$C217,$E217,$F217,2016,$I217/10,1,$H217/10,$G217*$H217/10,RateRatios_airpollution!$C217)*10))","v":7.5666953530000001},{"$f":"IF(AND(OR(Calculations!$E$2=\"Orkney Health Board\",Calculations!$E$2=\"Orkney Islands Local Authority\"),$F217=1),0,IF(AND(OR(Calculations!$E$2=\"Shetland Health Board\",Calculations!$E$2=\"Western Isles Health Board\",Calculations!$E$2=\"Shetland Islands Local Authority\",Calculations!$E$2=\"Eilean Siar Local Authority\"),OR($F217=1,$F217=5)),0,new_ci(VALUE(LEFT(Options!$B$14,2)),$C217,$E217,$F217,2016,$I217/10+$J217/10,1,$H217/10,$G217*$H217/10,RateRatios_airpollution!$C217)*10))","v":7.5665775229999994},{"$f":"IF(AND(OR(Calculations!$E$2=\"Orkney Health Board\",Calculations!$E$2=\"Orkney Islands Local Authority\"),$F217=1),0,IF(AND(OR(Calculations!$E$2=\"Shetland Health Board\",Calculations!$E$2=\"Western Isles Health Board\",Calculations!$E$2=\"Shetland Islands Local Authority\",Calculations!$E$2=\"Eilean Siar Local Authority\"),OR($F217=1,$F217=5)),0,new_yllv2(VALUE(LEFT(Options!$B$14,2)),$C217,$D217,$E217,$F217,2016,$I217/10,1,$H217/10,$G217*$H217/10,RateRatios_airpollution!$C217)*10))","v":406.10456229599998},{"$f":"IF(AND(OR(Calculations!$E$2=\"Orkney Health Board\",Calculations!$E$2=\"Orkney Islands Local Authority\"),$F217=1),0,IF(AND(OR(Calculations!$E$2=\"Shetland Health Board\",Calculations!$E$2=\"Western Isles Health Board\",Calculations!$E$2=\"Shetland Islands Local Authority\",Calculations!$E$2=\"Eilean Siar Local Authority\"),OR($F217=1,$F217=5)),0,new_yllv2(VALUE(LEFT(Options!$B$14,2)),$C217,$D217,$E217,$F217,2016,$I217/10+$J217/10,1,$H217/10,$G217*$H217/10,RateRatios_airpollution!$C217)*10))","v":406.09823835899999},{"$f":"IF(AND(OR(Calculations!$E$2=\"Orkney Health Board\",Calculations!$E$2=\"Orkney Islands Local Authority\"),$F217=1),0,IF(AND(OR(Calculations!$E$2=\"Shetland Health Board\",Calculations!$E$2=\"Western Isles Health Board\",Calculations!$E$2=\"Shetland Islands Local Authority\",Calculations!$E$2=\"Eilean Siar Local Authority\"),OR($F217=1,$F217=5)),0,hosp_count(VALUE(LEFT(Options!$B$14,2)),$C217,$E217,$F217,2016,$I217/10,1,$H217/10,$G217*$H217/10, RateRatios_airpollution!$D217, RateRatios_airpollution!$C217)*10))","v":3223.2362970269996},{"$f":"IF(AND(OR(Calculations!$E$2=\"Orkney Health Board\",Calculations!$E$2=\"Orkney Islands Local Authority\"),$F217=1),0,IF(AND(OR(Calculations!$E$2=\"Shetland Health Board\",Calculations!$E$2=\"Western Isles Health Board\",Calculations!$E$2=\"Shetland Islands Local Authority\",Calculations!$E$2=\"Eilean Siar Local Authority\"),OR($F217=1,$F217=5)),0,hosp_count(VALUE(LEFT(Options!$B$14,2)),$C217,$E217,$F217,2016,$I217/10+$J217/10,1,$H217/10,$G217*$H217/10, RateRatios_airpollution!$D217, RateRatios_airpollution!$C217)*10))","v":3223.1416854169997},{"$f":"IF(AND(OR(Calculations!$E$2=\"Orkney Health Board\",Calculations!$E$2=\"Orkney Islands Local Authority\"),$F217=1),0,IF(AND(OR(Calculations!$E$2=\"Shetland Health Board\",Calculations!$E$2=\"Western Isles Health Board\",Calculations!$E$2=\"Shetland Islands Local Authority\",Calculations!$E$2=\"Eilean Siar Local Authority\"),OR($F217=1,$F217=5)),0,prem_mort(VALUE(LEFT(Options!$B$14,2)),$C217,$E217,$F217,2016,$I217/10,1,$H217/10,$G217*$H217/10,RateRatios_airpollution!$C217)*10))","v":7.5666953530000001},{"$f":"IF(AND(OR(Calculations!$E$2=\"Orkney Health Board\",Calculations!$E$2=\"Orkney Islands Local Authority\"),$F217=1),0,IF(AND(OR(Calculations!$E$2=\"Shetland Health Board\",Calculations!$E$2=\"Western Isles Health Board\",Calculations!$E$2=\"Shetland Islands Local Authority\",Calculations!$E$2=\"Eilean Siar Local Authority\"),OR($F217=1,$F217=5)),0,prem_mort(VALUE(LEFT(Options!$B$14,2)),$C217,$E217,$F217,2016,$I217/10+$J217/10,1,$H217/10,$G217*$H217/10,RateRatios_airpollution!$C217)*10))","v":7.5665775229999994},null,{"$f":"IF(AND(OR(Calculations!$E$2=\"Orkney Health Board\",Calculations!$E$2=\"Orkney Islands Local Authority\"),$F217=1),0,IF(AND(OR(Calculations!$E$2=\"Shetland Health Board\",Calculations!$E$2=\"Western Isles Health Board\",Calculations!$E$2=\"Shetland Islands Local Authority\",Calculations!$E$2=\"Eilean Siar Local Authority\"),OR($F217=1,$F217=5)),0,new_ci(VALUE(LEFT(Options!$B$14,2)),$C217,$E217,$F217,2016,$I217/10,1,$H217/10,$G217*$H217/10,RateRatios_airpollution!$E217)*10))","v":7.5666953530000001},{"$f":"IF(AND(OR(Calculations!$E$2=\"Orkney Health Board\",Calculations!$E$2=\"Orkney Islands Local Authority\"),$F217=1),0,IF(AND(OR(Calculations!$E$2=\"Shetland Health Board\",Calculations!$E$2=\"Western Isles Health Board\",Calculations!$E$2=\"Shetland Islands Local Authority\",Calculations!$E$2=\"Eilean Siar Local Authority\"),OR($F217=1,$F217=5)),0,new_ci(VALUE(LEFT(Options!$B$14,2)),$C217,$E217,$F217,2016,$I217/10+$J217/10,1,$H217/10,$G217*$H217/10,RateRatios_airpollution!$E217)*10))","v":7.5666441899999999},{"$f":"IF(AND(OR(Calculations!$E$2=\"Orkney Health Board\",Calculations!$E$2=\"Orkney Islands Local Authority\"),$F217=1),0,IF(AND(OR(Calculations!$E$2=\"Shetland Health Board\",Calculations!$E$2=\"Western Isles Health Board\",Calculations!$E$2=\"Shetland Islands Local Authority\",Calculations!$E$2=\"Eilean Siar Local Authority\"),OR($F217=1,$F217=5)),0,new_yllv2(VALUE(LEFT(Options!$B$14,2)),$C217,$D217,$E217,$F217,2016,$I217/10,1,$H217/10,$G217*$H217/10,RateRatios_airpollution!$E217)*10))","v":406.10456229599998},{"$f":"IF(AND(OR(Calculations!$E$2=\"Orkney Health Board\",Calculations!$E$2=\"Orkney Islands Local Authority\"),$F217=1),0,IF(AND(OR(Calculations!$E$2=\"Shetland Health Board\",Calculations!$E$2=\"Western Isles Health Board\",Calculations!$E$2=\"Shetland Islands Local Authority\",Calculations!$E$2=\"Eilean Siar Local Authority\"),OR($F217=1,$F217=5)),0,new_yllv2(VALUE(LEFT(Options!$B$14,2)),$C217,$D217,$E217,$F217,2016,$I217/10+$J217/10,1,$H217/10,$G217*$H217/10,RateRatios_airpollution!$E217)*10))","v":406.10181637700003},{"$f":"IF(AND(OR(Calculations!$E$2=\"Orkney Health Board\",Calculations!$E$2=\"Orkney Islands Local Authority\"),$F217=1),0,IF(AND(OR(Calculations!$E$2=\"Shetland Health Board\",Calculations!$E$2=\"Western Isles Health Board\",Calculations!$E$2=\"Shetland Islands Local Authority\",Calculations!$E$2=\"Eilean Siar Local Authority\"),OR($F217=1,$F217=5)),0,hosp_count(VALUE(LEFT(Options!$B$14,2)),$C217,$E217,$F217,2016,$I217/10,1,$H217/10,$G217*$H217/10, RateRatios_airpollution!$F217, RateRatios_airpollution!$E217)*10))","v":3223.2362970269996},{"$f":"IF(AND(OR(Calculations!$E$2=\"Orkney Health Board\",Calculations!$E$2=\"Orkney Islands Local Authority\"),$F217=1),0,IF(AND(OR(Calculations!$E$2=\"Shetland Health Board\",Calculations!$E$2=\"Western Isles Health Board\",Calculations!$E$2=\"Shetland Islands Local Authority\",Calculations!$E$2=\"Eilean Siar Local Authority\"),OR($F217=1,$F217=5)),0,hosp_count(VALUE(LEFT(Options!$B$14,2)),$C217,$E217,$F217,2016,$I217/10+$J217/10,1,$H217/10,$G217*$H217/10, RateRatios_airpollution!$F217, RateRatios_airpollution!$E217)*10))","v":3223.2362970269996},{"$f":"IF(AND(OR(Calculations!$E$2=\"Orkney Health Board\",Calculations!$E$2=\"Orkney Islands Local Authority\"),$F217=1),0,IF(AND(OR(Calculations!$E$2=\"Shetland Health Board\",Calculations!$E$2=\"Western Isles Health Board\",Calculations!$E$2=\"Shetland Islands Local Authority\",Calculations!$E$2=\"Eilean Siar Local Authority\"),OR($F217=1,$F217=5)),0,prem_mort(VALUE(LEFT(Options!$B$14,2)),$C217,$E217,$F217,2016,$I217/10,1,$H217/10,$G217*$H217/10,RateRatios_airpollution!$E217)*10))","v":7.5666953530000001},{"$f":"IF(AND(OR(Calculations!$E$2=\"Orkney Health Board\",Calculations!$E$2=\"Orkney Islands Local Authority\"),$F217=1),0,IF(AND(OR(Calculations!$E$2=\"Shetland Health Board\",Calculations!$E$2=\"Western Isles Health Board\",Calculations!$E$2=\"Shetland Islands Local Authority\",Calculations!$E$2=\"Eilean Siar Local Authority\"),OR($F217=1,$F217=5)),0,prem_mort(VALUE(LEFT(Options!$B$14,2)),$C217,$E217,$F217,2016,$I217/10+$J217/10,1,$H217/10,$G217*$H217/10,RateRatios_airpollution!$E217)*10))","v":7.5666441899999999},7.5666953530000001,7.5650767359999991,406.10456229599998,406.0176911150001,3223.2362970269996,3222.5241812519998,7.5666953530000001,7.5650767359999991,23.374919999382161,23.36991979240678,1254.5320264928484,1254.2636653640607,9957.1724600012349,9954.9726027987999,23.374919999382161,23.36991979240678,140249.51999629298,140219.51875444068,7527192.1589570902,7525581.9921843642,59743034.760007411,59729835.616792798,140249.51999629298,140219.51875444068,6000]
[null,"Female 30-34",31.999904999999998,81.799899999999994,"female",5,1,{"$f":"HLOOKUP(Calculations!$E$2,'Population 2016'!$C$3:$BC$249,'Population 2016'!BD218,FALSE)","v":31633},0,{"$f":"HLOOKUP(Calculations!$E$2,Pop2016_in_settlements!$C$3:$BC$249,Pop2016_in_settlements!$BD218,FALSE)","v":15220},{"$f":"IF(AND(OR(Calculations!$E$2=\"Orkney Health Board\",Calculations!$E$2=\"Orkney Islands Local Authority\"),$F218=1),0,IF(AND(OR(Calculations!$E$2=\"Shetland Health Board\",Calculations!$E$2=\"Western Isles Health Board\",Calculations!$E$2=\"Shetland Islands Local Authority\",Calculations!$E$2=\"Eilean Siar Local Authority\"),OR($F218=1,$F218=5)),0,new_ci(VALUE(LEFT(Options!$B$14,2)),$C218,$E218,$F218,2016,$I218/10,1,$H218/10,$G218*$H218/10,RateRatios_accidents!$B$5)*10))","v":11.336254944},{"$f":"IF(AND(OR(Calculations!$E$2=\"Orkney Health Board\",Calculations!$E$2=\"Orkney Islands Local Authority\"),$F218=1),0,IF(AND(OR(Calculations!$E$2=\"Shetland Health Board\",Calculations!$E$2=\"Western Isles Health Board\",Calculations!$E$2=\"Shetland Islands Local Authority\",Calculations!$E$2=\"Eilean Siar Local Authority\"),OR($F218=1,$F218=5)),0,new_ci(VALUE(LEFT(Options!$B$14,2)),$C218,$E218,$F218,2016,$I218/10+$J218/10,1,$H218/10,$G218*$H218/10,RateRatios_accidents!$B$5)*10))","v":11.334072396},{"$f":"IF(AND(OR(Calculations!$E$2=\"Orkney Health Board\",Calculations!$E$2=\"Orkney Islands Local Authority\"),$F218=1),0,IF(AND(OR(Calculations!$E$2=\"Shetland Health Board\",Calculations!$E$2=\"Western Isles Health Board\",Calculations!$E$2=\"Shetland Islands Local Authority\",Calculations!$E$2=\"Eilean Siar Local Authority\"),OR($F218=1,$F218=5)),0,new_yllv2(VALUE(LEFT(Options!$B$14,2)),$C218,$D218,$E218,$F218,2016,$I218/10,1,$H218/10,$G218*$H218/10,RateRatios_accidents!$B$5)*10))","v":553.20918458599999},{"$f":"IF(AND(OR(Calculations!$E$2=\"Orkney Health Board\",Calculations!$E$2=\"Orkney Islands Local Authority\"),$F218=1),0,IF(AND(OR(Calculations!$E$2=\"Shetland Health Board\",Calculations!$E$2=\"Western Isles Health Board\",Calculations!$E$2=\"Shetland Islands Local Authority\",Calculations!$E$2=\"Eilean Siar Local Authority\"),OR($F218=1,$F218=5)),0,new_yllv2(VALUE(LEFT(Options!$B$14,2)),$C218,$D218,$E218,$F218,2016,$I218/10+$J218/10,1,$H218/10,$G218*$H218/10,RateRatios_accidents!$B$5)*10))","v":553.10267625400002},{"$f":"IF(AND(OR(Calculations!$E$2=\"Orkney Health Board\",Calculations!$E$2=\"Orkney Islands Local Authority\"),$F218=1),0,IF(AND(OR(Calculations!$E$2=\"Shetland Health Board\",Calculations!$E$2=\"Western Isles Health Board\",Calculations!$E$2=\"Shetland Islands Local Authority\",Calculations!$E$2=\"Eilean Siar Local Authority\"),OR($F218=1,$F218=5)),0,hosp_count(VALUE(LEFT(Options!$B$14,2)),$C218,$E218,$F218,2016,$I218/10,1,$H218/10,$G218*$H218/10, RateRatios_accidents!$B$4, RateRatios_accidents!$B$5)*10))","v":3574.1022803200003},{"$f":"IF(AND(OR(Calculations!$E$2=\"Orkney Health Board\",Calculations!$E$2=\"Orkney Islands Local Authority\"),$F218=1),0,IF(AND(OR(Calculations!$E$2=\"Shetland Health Board\",Calculations!$E$2=\"Western Isles Health Board\",Calculations!$E$2=\"Shetland Islands Local Authority\",Calculations!$E$2=\"Eilean Siar Local Authority\"),OR($F218=1,$F218=5)),0,hosp_count(VALUE(LEFT(Options!$B$14,2)),$C218,$E218,$F218,2016,$I218/10+$J218/10,1,$H218/10,$G218*$H218/10, RateRatios_accidents!$B$4, RateRatios_accidents!$B$5)*10))","v":3573.4144185079999},{"$f":"IF(AND(OR(Calculations!$E$2=\"Orkney Health Board\",Calculations!$E$2=\"Orkney Islands Local Authority\"),$F218=1),0,IF(AND(OR(Calculations!$E$2=\"Shetland Health Board\",Calculations!$E$2=\"Western Isles Health Board\",Calculations!$E$2=\"Shetland Islands Local Authority\",Calculations!$E$2=\"Eilean Siar Local Authority\"),OR($F218=1,$F218=5)),0,prem_mort(VALUE(LEFT(Options!$B$14,2)),$C218,$E218,$F218,2016,$I218/10,1,$H218/10,$G218*$H218/10,RateRatios_accidents!$B$5)*10))","v":11.336254944},{"$f":"IF(AND(OR(Calculations!$E$2=\"Orkney Health Board\",Calculations!$E$2=\"Orkney Islands Local Authority\"),$F218=1),0,IF(AND(OR(Calculations!$E$2=\"Shetland Health Board\",Calculations!$E$2=\"Western Isles Health Board\",Calculations!$E$2=\"Shetland Islands Local Authority\",Calculations!$E$2=\"Eilean Siar Local Authority\"),OR($F218=1,$F218=5)),0,prem_mort(VALUE(LEFT(Options!$B$14,2)),$C218,$E218,$F218,2016,$I218/10+$J218/10,1,$H218/10,$G218*$H218/10,RateRatios_accidents!$B$5)*10))","v":11.334072396},null,{"$f":"IF(AND(OR(Calculations!$E$2=\"Orkney Health Board\",Calculations!$E$2=\"Orkney Islands Local Authority\"),$F218=1),0,IF(AND(OR(Calculations!$E$2=\"Shetland Health Board\",Calculations!$E$2=\"Western Isles Health Board\",Calculations!$E$2=\"Shetland Islands Local Authority\",Calculations!$E$2=\"Eilean Siar Local Authority\"),OR($F218=1,$F218=5)),0,new_ci(VALUE(LEFT(Options!$B$14,2)),$C218,$E218,$F218,2016,$I218/10,1,$H218/10,$G218*$H218/10,RateRatios_airpollution!$C218)*10))","v":11.336254944},{"$f":"IF(AND(OR(Calculations!$E$2=\"Orkney Health Board\",Calculations!$E$2=\"Orkney Islands Local Authority\"),$F218=1),0,IF(AND(OR(Calculations!$E$2=\"Shetland Health Board\",Calculations!$E$2=\"Western Isles Health Board\",Calculations!$E$2=\"Shetland Islands Local Authority\",Calculations!$E$2=\"Eilean Siar Local Authority\"),OR($F218=1,$F218=5)),0,new_ci(VALUE(LEFT(Options!$B$14,2)),$C218,$E218,$F218,2016,$I218/10+$J218/10,1,$H218/10,$G218*$H218/10,RateRatios_airpollution!$C218)*10))","v":11.336095133999999},{"$f":"IF(AND(OR(Calculations!$E$2=\"Orkney Health Board\",Calculations!$E$2=\"Orkney Islands Local Authority\"),$F218=1),0,IF(AND(OR(Calculations!$E$2=\"Shetland Health Board\",Calculations!$E$2=\"Western Isles Health Board\",Calculations!$E$2=\"Shetland Islands Local Authority\",Calculations!$E$2=\"Eilean Siar Local Authority\"),OR($F218=1,$F218=5)),0,new_yllv2(VALUE(LEFT(Options!$B$14,2)),$C218,$D218,$E218,$F218,2016,$I218/10,1,$H218/10,$G218*$H218/10,RateRatios_airpollution!$C218)*10))","v":553.20918458599999},{"$f":"IF(AND(OR(Calculations!$E$2=\"Orkney Health Board\",Calculations!$E$2=\"Orkney Islands Local Authority\"),$F218=1),0,IF(AND(OR(Calculations!$E$2=\"Shetland Health Board\",Calculations!$E$2=\"Western Isles Health Board\",Calculations!$E$2=\"Shetland Islands Local Authority\",Calculations!$E$2=\"Eilean Siar Local Authority\"),OR($F218=1,$F218=5)),0,new_yllv2(VALUE(LEFT(Options!$B$14,2)),$C218,$D218,$E218,$F218,2016,$I218/10+$J218/10,1,$H218/10,$G218*$H218/10,RateRatios_airpollution!$C218)*10))","v":553.20138585899997},{"$f":"IF(AND(OR(Calculations!$E$2=\"Orkney Health Board\",Calculations!$E$2=\"Orkney Islands Local Authority\"),$F218=1),0,IF(AND(OR(Calculations!$E$2=\"Shetland Health Board\",Calculations!$E$2=\"Western Isles Health Board\",Calculations!$E$2=\"Shetland Islands Local Authority\",Calculations!$E$2=\"Eilean Siar Local Authority\"),OR($F218=1,$F218=5)),0,hosp_count(VALUE(LEFT(Options!$B$14,2)),$C218,$E218,$F218,2016,$I218/10,1,$H218/10,$G218*$H218/10, RateRatios_airpollution!$D218, RateRatios_airpollution!$C218)*10))","v":3574.1022803200003},{"$f":"IF(AND(OR(Calculations!$E$2=\"Orkney Health Board\",Calculations!$E$2=\"Orkney Islands Local Authority\"),$F218=1),0,IF(AND(OR(Calculations!$E$2=\"Shetland Health Board\",Calculations!$E$2=\"Western Isles Health Board\",Calculations!$E$2=\"Shetland Islands Local Authority\",Calculations!$E$2=\"Eilean Siar Local Authority\"),OR($F218=1,$F218=5)),0,hosp_count(VALUE(LEFT(Options!$B$14,2)),$C218,$E218,$F218,2016,$I218/10+$J218/10,1,$H218/10,$G218*$H218/10, RateRatios_airpollution!$D218, RateRatios_airpollution!$C218)*10))","v":3574.0077275919998},{"$f":"IF(AND(OR(Calculations!$E$2=\"Orkney Health Board\",Calculations!$E$2=\"Orkney Islands Local Authority\"),$F218=1),0,IF(AND(OR(Calculations!$E$2=\"Shetland Health Board\",Calculations!$E$2=\"Western Isles Health Board\",Calculations!$E$2=\"Shetland Islands Local Authority\",Calculations!$E$2=\"Eilean Siar Local Authority\"),OR($F218=1,$F218=5)),0,prem_mort(VALUE(LEFT(Options!$B$14,2)),$C218,$E218,$F218,2016,$I218/10,1,$H218/10,$G218*$H218/10,RateRatios_airpollution!$C218)*10))","v":11.336254944},{"$f":"IF(AND(OR(Calculations!$E$2=\"Orkney Health Board\",Calculations!$E$2=\"Orkney Islands Local Authority\"),$F218=1),0,IF(AND(OR(Calculations!$E$2=\"Shetland Health Board\",Calculations!$E$2=\"Western Isles Health Board\",Calculations!$E$2=\"Shetland Islands Local Authority\",Calculations!$E$2=\"Eilean Siar Local Authority\"),OR($F218=1,$F218=5)),0,prem_mort(VALUE(LEFT(Options!$B$14,2)),$C218,$E218,$F218,2016,$I218/10+$J218/10,1,$H218/10,$G218*$H218/10,RateRatios_airpollution!$C218)*10))","v":11.336095133999999},null,{"$f":"IF(AND(OR(Calculations!$E$2=\"Orkney Health Board\",Calculations!$E$2=\"Orkney Islands Local Authority\"),$F218=1),0,IF(AND(OR(Calculations!$E$2=\"Shetland Health Board\",Calculations!$E$2=\"Western Isles Health Board\",Calculations!$E$2=\"Shetland Islands Local Authority\",Calculations!$E$2=\"Eilean Siar Local Authority\"),OR($F218=1,$F218=5)),0,new_ci(VALUE(LEFT(Options!$B$14,2)),$C218,$E218,$F218,2016,$I218/10,1,$H218/10,$G218*$H218/10,RateRatios_airpollution!$E218)*10))","v":11.336254944},{"$f":"IF(AND(OR(Calculations!$E$2=\"Orkney Health Board\",Calculations!$E$2=\"Orkney Islands Local Authority\"),$F218=1),0,IF(AND(OR(Calculations!$E$2=\"Shetland Health Board\",Calculations!$E$2=\"Western Isles Health Board\",Calculations!$E$2=\"Shetland Islands Local Authority\",Calculations!$E$2=\"Eilean Siar Local Authority\"),OR($F218=1,$F218=5)),0,new_ci(VALUE(LEFT(Options!$B$14,2)),$C218,$E218,$F218,2016,$I218/10+$J218/10,1,$H218/10,$G218*$H218/10,RateRatios_airpollution!$E218)*10))","v":11.336184932},{"$f":"IF(AND(OR(Calculations!$E$2=\"Orkney Health Board\",Calculations!$E$2=\"Orkney Islands Local Authority\"),$F218=1),0,IF(AND(OR(Calculations!$E$2=\"Shetland Health Board\",Calculations!$E$2=\"Western Isles Health Board\",Calculations!$E$2=\"Shetland Islands Local Authority\",Calculations!$E$2=\"Eilean Siar Local Authority\"),OR($F218=1,$F218=5)),0,new_yllv2(VALUE(LEFT(Options!$B$14,2)),$C218,$D218,$E218,$F218,2016,$I218/10,1,$H218/10,$G218*$H218/10,RateRatios_airpollution!$E218)*10))","v":553.20918458599999},{"$f":"IF(AND(OR(Calculations!$E$2=\"Orkney Health Board\",Calculations!$E$2=\"Orkney Islands Local Authority\"),$F218=1),0,IF(AND(OR(Calculations!$E$2=\"Shetland Health Board\",Calculations!$E$2=\"Western Isles Health Board\",Calculations!$E$2=\"Shetland Islands Local Authority\",Calculations!$E$2=\"Eilean Siar Local Authority\"),OR($F218=1,$F218=5)),0,new_yllv2(VALUE(LEFT(Options!$B$14,2)),$C218,$D218,$E218,$F218,2016,$I218/10+$J218/10,1,$H218/10,$G218*$H218/10,RateRatios_airpollution!$E218)*10))","v":553.20576800100002},{"$f":"IF(AND(OR(Calculations!$E$2=\"Orkney Health Board\",Calculations!$E$2=\"Orkney Islands Local Authority\"),$F218=1),0,IF(AND(OR(Calculations!$E$2=\"Shetland Health Board\",Calculations!$E$2=\"Western Isles Health Board\",Calculations!$E$2=\"Shetland Islands Local Authority\",Calculations!$E$2=\"Eilean Siar Local Authority\"),OR($F218=1,$F218=5)),0,hosp_count(VALUE(LEFT(Options!$B$14,2)),$C218,$E218,$F218,2016,$I218/10,1,$H218/10,$G218*$H218/10, RateRatios_airpollution!$F218, RateRatios_airpollution!$E218)*10))","v":3574.1022803200003},{"$f":"IF(AND(OR(Calculations!$E$2=\"Orkney Health Board\",Calculations!$E$2=\"Orkney Islands Local Authority\"),$F218=1),0,IF(AND(OR(Calculations!$E$2=\"Shetland Health Board\",Calculations!$E$2=\"Western Isles Health Board\",Calculations!$E$2=\"Shetland Islands Local Authority\",Calculations!$E$2=\"Eilean Siar Local Authority\"),OR($F218=1,$F218=5)),0,hosp_count(VALUE(LEFT(Options!$B$14,2)),$C218,$E218,$F218,2016,$I218/10+$J218/10,1,$H218/10,$G218*$H218/10, RateRatios_airpollution!$F218, RateRatios_airpollution!$E218)*10))","v":3574.1022803200003},{"$f":"IF(AND(OR(Calculations!$E$2=\"Orkney Health Board\",Calculations!$E$2=\"Orkney Islands Local Authority\"),$F218=1),0,IF(AND(OR(Calculations!$E$2=\"Shetland Health Board\",Calculations!$E$2=\"Western Isles Health Board\",Calculations!$E$2=\"Shetland Islands Local Authority\",Calculations!$E$2=\"Eilean Siar Local Authority\"),OR($F218=1,$F218=5)),0,prem_mort(VALUE(LEFT(Options!$B$14,2)),$C218,$E218,$F218,2016,$I218/10,1,$H218/10,$G218*$H218/10,RateRatios_airpollution!$E218)*10))","v":11.336254944},{"$f":"IF(AND(OR(Calculations!$E$2=\"Orkney Health Board\",Calculations!$E$2=\"Orkney Islands Local Authority\"),$F218=1),0,IF(AND(OR(Calculations!$E$2=\"Shetland Health Board\",Calculations!$E$2=\"Western Isles Health Board\",Calculations!$E$2=\"Shetland Islands Local Authority\",Calculations!$E$2=\"Eilean Siar Local Authority\"),OR($F218=1,$F218=5)),0,prem_mort(VALUE(LEFT(Options!$B$14,2)),$C218,$E218,$F218,2016,$I218/10+$J218/10,1,$H218/10,$G218*$H218/10,RateRatios_airpollution!$E218)*10))","v":11.336184932},11.336254944,11.333842573999998,553.20918458599999,553.09146094200003,3574.1022803200003,3573.3198657799994,11.336254944,11.333842573999998,35.836799999999997,35.829173881705806,1748.8356608162362,1748.463506281415,11298.651030000316,11296.177617614514,35.836799999999997,35.829173881705806,232939.19999999998,232889.63023108774,11367431.795305535,11365012.790829197,73441231.695002049,73425154.514494345,232939.19999999998,232889.63023108774,6500]
[null,"Female 35-39",36.918118,81.898120000000006,"female",5,1,{"$f":"HLOOKUP(Calculations!$E$2,'Population 2016'!$C$3:$BC$249,'Population 2016'!BD219,FALSE)","v":33676},0,{"$f":"HLOOKUP(Calculations!$E$2,Pop2016_in_settlements!$C$3:$BC$249,Pop2016_in_settlements!$BD219,FALSE)","v":16588},{"$f":"IF(AND(OR(Calculations!$E$2=\"Orkney Health Board\",Calculations!$E$2=\"Orkney Islands Local Authority\"),$F219=1),0,IF(AND(OR(Calculations!$E$2=\"Shetland Health Board\",Calculations!$E$2=\"Western Isles Health Board\",Calculations!$E$2=\"Shetland Islands Local Authority\",Calculations!$E$2=\"Eilean Siar Local Authority\"),OR($F219=1,$F219=5)),0,new_ci(VALUE(LEFT(Options!$B$14,2)),$C219,$E219,$F219,2016,$I219/10,1,$H219/10,$G219*$H219/10,RateRatios_accidents!$B$5)*10))","v":18.335016066000001},{"$f":"IF(AND(OR(Calculations!$E$2=\"Orkney Health Board\",Calculations!$E$2=\"Orkney Islands Local Authority\"),$F219=1),0,IF(AND(OR(Calculations!$E$2=\"Shetland Health Board\",Calculations!$E$2=\"Western Isles Health Board\",Calculations!$E$2=\"Shetland Islands Local Authority\",Calculations!$E$2=\"Eilean Siar Local Authority\"),OR($F219=1,$F219=5)),0,new_ci(VALUE(LEFT(Options!$B$14,2)),$C219,$E219,$F219,2016,$I219/10+$J219/10,1,$H219/10,$G219*$H219/10,RateRatios_accidents!$B$5)*10))","v":18.3314032},{"$f":"IF(AND(OR(Calculations!$E$2=\"Orkney Health Board\",Calculations!$E$2=\"Orkney Islands Local Authority\"),$F219=1),0,IF(AND(OR(Calculations!$E$2=\"Shetland Health Board\",Calculations!$E$2=\"Western Isles Health Board\",Calculations!$E$2=\"Shetland Islands Local Authority\",Calculations!$E$2=\"Eilean Siar Local Authority\"),OR($F219=1,$F219=5)),0,new_yllv2(VALUE(LEFT(Options!$B$14,2)),$C219,$D219,$E219,$F219,2016,$I219/10,1,$H219/10,$G219*$H219/10,RateRatios_accidents!$B$5)*10))","v":806.37404325299997},{"$f":"IF(AND(OR(Calculations!$E$2=\"Orkney Health Board\",Calculations!$E$2=\"Orkney Islands Local Authority\"),$F219=1),0,IF(AND(OR(Calculations!$E$2=\"Shetland Health Board\",Calculations!$E$2=\"Western Isles Health Board\",Calculations!$E$2=\"Shetland Islands Local Authority\",Calculations!$E$2=\"Eilean Siar Local Authority\"),OR($F219=1,$F219=5)),0,new_yllv2(VALUE(LEFT(Options!$B$14,2)),$C219,$D219,$E219,$F219,2016,$I219/10+$J219/10,1,$H219/10,$G219*$H219/10,RateRatios_accidents!$B$5)*10))","v":806.21514939899998},{"$f":"IF(AND(OR(Calculations!$E$2=\"Orkney Health Board\",Calculations!$E$2=\"Orkney Islands Local Authority\"),$F219=1),0,IF(AND(OR(Calculations!$E$2=\"Shetland Health Board\",Calculations!$E$2=\"Western Isles Health Board\",Calculations!$E$2=\"Shetland Islands Local Authority\",Calculations!$E$2=\"Eilean Siar Local Authority\"),OR($F219=1,$F219=5)),0,hosp_count(VALUE(LEFT(Options!$B$14,2)),$C219,$E219,$F219,2016,$I219/10,1,$H219/10,$G219*$H219/10, RateRatios_accidents!$B$4, RateRatios_accidents!$B$5)*10))","v":4306.0016290459998},{"$f":"IF(AND(OR(Calculations!$E$2=\"Orkney Health Board\",Calculations!$E$2=\"Orkney Islands Local Authority\"),$F219=1),0,IF(AND(OR(Calculations!$E$2=\"Shetland Health Board\",Calculations!$E$2=\"Western Isles Health Board\",Calculations!$E$2=\"Shetland Islands Local Authority\",Calculations!$E$2=\"Eilean Siar Local Authority\"),OR($F219=1,$F219=5)),0,hosp_count(VALUE(LEFT(Options!$B$14,2)),$C219,$E219,$F219,2016,$I219/10+$J219/10,1,$H219/10,$G219*$H219/10, RateRatios_accidents!$B$4, RateRatios_accidents!$B$5)*10))","v":4305.1532158800001},{"$f":"IF(AND(OR(Calculations!$E$2=\"Orkney Health Board\",Calculations!$E$2=\"Orkney Islands Local Authority\"),$F219=1),0,IF(AND(OR(Calculations!$E$2=\"Shetland Health Board\",Calculations!$E$2=\"Western Isles Health Board\",Calculations!$E$2=\"Shetland Islands Local Authority\",Calculations!$E$2=\"Eilean Siar Local Authority\"),OR($F219=1,$F219=5)),0,prem_mort(VALUE(LEFT(Options!$B$14,2)),$C219,$E219,$F219,2016,$I219/10,1,$H219/10,$G219*$H219/10,RateRatios_accidents!$B$5)*10))","v":18.335016066000001},{"$f":"IF(AND(OR(Calculations!$E$2=\"Orkney Health Board\",Calculations!$E$2=\"Orkney Islands Local Authority\"),$F219=1),0,IF(AND(OR(Calculations!$E$2=\"Shetland Health Board\",Calculations!$E$2=\"Western Isles Health Board\",Calculations!$E$2=\"Shetland Islands Local Authority\",Calculations!$E$2=\"Eilean Siar Local Authority\"),OR($F219=1,$F219=5)),0,prem_mort(VALUE(LEFT(Options!$B$14,2)),$C219,$E219,$F219,2016,$I219/10+$J219/10,1,$H219/10,$G219*$H219/10,RateRatios_accidents!$B$5)*10))","v":18.3314032},null,{"$f":"IF(AND(OR(Calculations!$E$2=\"Orkney Health Board\",Calculations!$E$2=\"Orkney Islands Local Authority\"),$F219=1),0,IF(AND(OR(Calculations!$E$2=\"Shetland Health Board\",Calculations!$E$2=\"Western Isles Health Board\",Calculations!$E$2=\"Shetland Islands Local Authority\",Calculations!$E$2=\"Eilean Siar Local Authority\"),OR($F219=1,$F219=5)),0,new_ci(VALUE(LEFT(Options!$B$14,2)),$C219,$E219,$F219,2016,$I219/10,1,$H219/10,$G219*$H219/10,RateRatios_airpollution!$C219)*10))","v":18.335016066000001},{"$f":"IF(AND(OR(Calculations!$E$2=\"Orkney Health Board\",Calculations!$E$2=\"Orkney Islands Local Authority\"),$F219=1),0,IF(AND(OR(Calculations!$E$2=\"Shetland Health Board\",Calculations!$E$2=\"Western Isles Health Board\",Calculations!$E$2=\"Shetland Islands Local Authority\",Calculations!$E$2=\"Eilean Siar Local Authority\"),OR($F219=1,$F219=5)),0,new_ci(VALUE(LEFT(Options!$B$14,2)),$C219,$E219,$F219,2016,$I219/10+$J219/10,1,$H219/10,$G219*$H219/10,RateRatios_airpollution!$C219)*10))","v":18.334783834},{"$f":"IF(AND(OR(Calculations!$E$2=\"Orkney Health Board\",Calculations!$E$2=\"Orkney Islands Local Authority\"),$F219=1),0,IF(AND(OR(Calculations!$E$2=\"Shetland Health Board\",Calculations!$E$2=\"Western Isles Health Board\",Calculations!$E$2=\"Shetland Islands Local Authority\",Calculations!$E$2=\"Eilean Siar Local Authority\"),OR($F219=1,$F219=5)),0,new_yllv2(VALUE(LEFT(Options!$B$14,2)),$C219,$D219,$E219,$F219,2016,$I219/10,1,$H219/10,$G219*$H219/10,RateRatios_airpollution!$C219)*10))","v":806.37404325299997},{"$f":"IF(AND(OR(Calculations!$E$2=\"Orkney Health Board\",Calculations!$E$2=\"Orkney Islands Local Authority\"),$F219=1),0,IF(AND(OR(Calculations!$E$2=\"Shetland Health Board\",Calculations!$E$2=\"Western Isles Health Board\",Calculations!$E$2=\"Shetland Islands Local Authority\",Calculations!$E$2=\"Eilean Siar Local Authority\"),OR($F219=1,$F219=5)),0,new_yllv2(VALUE(LEFT(Options!$B$14,2)),$C219,$D219,$E219,$F219,2016,$I219/10+$J219/10,1,$H219/10,$G219*$H219/10,RateRatios_airpollution!$C219)*10))","v":806.36382968899989},{"$f":"IF(AND(OR(Calculations!$E$2=\"Orkney Health Board\",Calculations!$E$2=\"Orkney Islands Local Authority\"),$F219=1),0,IF(AND(OR(Calculations!$E$2=\"Shetland Health Board\",Calculations!$E$2=\"Western Isles Health Board\",Calculations!$E$2=\"Shetland Islands Local Authority\",Calculations!$E$2=\"Eilean Siar Local Authority\"),OR($F219=1,$F219=5)),0,hosp_count(VALUE(LEFT(Options!$B$14,2)),$C219,$E219,$F219,2016,$I219/10,1,$H219/10,$G219*$H219/10, RateRatios_airpollution!$D219, RateRatios_airpollution!$C219)*10))","v":4306.0016290459998},{"$f":"IF(AND(OR(Calculations!$E$2=\"Orkney Health Board\",Calculations!$E$2=\"Orkney Islands Local Authority\"),$F219=1),0,IF(AND(OR(Calculations!$E$2=\"Shetland Health Board\",Calculations!$E$2=\"Western Isles Health Board\",Calculations!$E$2=\"Shetland Islands Local Authority\",Calculations!$E$2=\"Eilean Siar Local Authority\"),OR($F219=1,$F219=5)),0,hosp_count(VALUE(LEFT(Options!$B$14,2)),$C219,$E219,$F219,2016,$I219/10+$J219/10,1,$H219/10,$G219*$H219/10, RateRatios_airpollution!$D219, RateRatios_airpollution!$C219)*10))","v":4305.8988697029999},{"$f":"IF(AND(OR(Calculations!$E$2=\"Orkney Health Board\",Calculations!$E$2=\"Orkney Islands Local Authority\"),$F219=1),0,IF(AND(OR(Calculations!$E$2=\"Shetland Health Board\",Calculations!$E$2=\"Western Isles Health Board\",Calculations!$E$2=\"Shetland Islands Local Authority\",Calculations!$E$2=\"Eilean Siar Local Authority\"),OR($F219=1,$F219=5)),0,prem_mort(VALUE(LEFT(Options!$B$14,2)),$C219,$E219,$F219,2016,$I219/10,1,$H219/10,$G219*$H219/10,RateRatios_airpollution!$C219)*10))","v":18.335016066000001},{"$f":"IF(AND(OR(Calculations!$E$2=\"Orkney Health Board\",Calculations!$E$2=\"Orkney Islands Local Authority\"),$F219=1),0,IF(AND(OR(Calculations!$E$2=\"Shetland Health Board\",Calculations!$E$2=\"Western Isles Health Board\",Calculations!$E$2=\"Shetland Islands Local Authority\",Calculations!$E$2=\"Eilean Siar Local Authority\"),OR($F219=1,$F219=5)),0,prem_mort(VALUE(LEFT(Options!$B$14,2)),$C219,$E219,$F219,2016,$I219/10+$J219/10,1,$H219/10,$G219*$H219/10,RateRatios_airpollution!$C219)*10))","v":18.334783834},null,{"$f":"IF(AND(OR(Calculations!$E$2=\"Orkney Health Board\",Calculations!$E$2=\"Orkney Islands Local Authority\"),$F219=1),0,IF(AND(OR(Calculations!$E$2=\"Shetland Health Board\",Calculations!$E$2=\"Western Isles Health Board\",Calculations!$E$2=\"Shetland Islands Local Authority\",Calculations!$E$2=\"Eilean Siar Local Authority\"),OR($F219=1,$F219=5)),0,new_ci(VALUE(LEFT(Options!$B$14,2)),$C219,$E219,$F219,2016,$I219/10,1,$H219/10,$G219*$H219/10,RateRatios_airpollution!$E219)*10))","v":18.335016066000001},{"$f":"IF(AND(OR(Calculations!$E$2=\"Orkney Health Board\",Calculations!$E$2=\"Orkney Islands Local Authority\"),$F219=1),0,IF(AND(OR(Calculations!$E$2=\"Shetland Health Board\",Calculations!$E$2=\"Western Isles Health Board\",Calculations!$E$2=\"Shetland Islands Local Authority\",Calculations!$E$2=\"Eilean Siar Local Authority\"),OR($F219=1,$F219=5)),0,new_ci(VALUE(LEFT(Options!$B$14,2)),$C219,$E219,$F219,2016,$I219/10+$J219/10,1,$H219/10,$G219*$H219/10,RateRatios_airpollution!$E219)*10))","v":18.334911562000002},{"$f":"IF(AND(OR(Calculations!$E$2=\"Orkney Health Board\",Calculations!$E$2=\"Orkney Islands Local Authority\"),$F219=1),0,IF(AND(OR(Calculations!$E$2=\"Shetland Health Board\",Calculations!$E$2=\"Western Isles Health Board\",Calculations!$E$2=\"Shetland Islands Local Authority\",Calculations!$E$2=\"Eilean Siar Local Authority\"),OR($F219=1,$F219=5)),0,new_yllv2(VALUE(LEFT(Options!$B$14,2)),$C219,$D219,$E219,$F219,2016,$I219/10,1,$H219/10,$G219*$H219/10,RateRatios_airpollution!$E219)*10))","v":806.37404325299997},{"$f":"IF(AND(OR(Calculations!$E$2=\"Orkney Health Board\",Calculations!$E$2=\"Orkney Islands Local Authority\"),$F219=1),0,IF(AND(OR(Calculations!$E$2=\"Shetland Health Board\",Calculations!$E$2=\"Western Isles Health Board\",Calculations!$E$2=\"Shetland Islands Local Authority\",Calculations!$E$2=\"Eilean Siar Local Authority\"),OR($F219=1,$F219=5)),0,new_yllv2(VALUE(LEFT(Options!$B$14,2)),$C219,$D219,$E219,$F219,2016,$I219/10+$J219/10,1,$H219/10,$G219*$H219/10,RateRatios_airpollution!$E219)*10))","v":806.36944716699998},{"$f":"IF(AND(OR(Calculations!$E$2=\"Orkney Health Board\",Calculations!$E$2=\"Orkney Islands Local Authority\"),$F219=1),0,IF(AND(OR(Calculations!$E$2=\"Shetland Health Board\",Calculations!$E$2=\"Western Isles Health Board\",Calculations!$E$2=\"Shetland Islands Local Authority\",Calculations!$E$2=\"Eilean Siar Local Authority\"),OR($F219=1,$F219=5)),0,hosp_count(VALUE(LEFT(Options!$B$14,2)),$C219,$E219,$F219,2016,$I219/10,1,$H219/10,$G219*$H219/10, RateRatios_airpollution!$F219, RateRatios_airpollution!$E219)*10))","v":4306.0016290459998},{"$f":"IF(AND(OR(Calculations!$E$2=\"Orkney Health Board\",Calculations!$E$2=\"Orkney Islands Local Authority\"),$F219=1),0,IF(AND(OR(Calculations!$E$2=\"Shetland Health Board\",Calculations!$E$2=\"Western Isles Health Board\",Calculations!$E$2=\"Shetland Islands Local Authority\",Calculations!$E$2=\"Eilean Siar Local Authority\"),OR($F219=1,$F219=5)),0,hosp_count(VALUE(LEFT(Options!$B$14,2)),$C219,$E219,$F219,2016,$I219/10+$J219/10,1,$H219/10,$G219*$H219/10, RateRatios_airpollution!$F219, RateRatios_airpollution!$E219)*10))","v":4306.0016290459998},{"$f":"IF(AND(OR(Calculations!$E$2=\"Orkney Health Board\",Calculations!$E$2=\"Orkney Islands Local Authority\"),$F219=1),0,IF(AND(OR(Calculations!$E$2=\"Shetland Health Board\",Calculations!$E$2=\"Western Isles Health Board\",Calculations!$E$2=\"Shetland Islands Local Authority\",Calculations!$E$2=\"Eilean Siar Local Authority\"),OR($F219=1,$F219=5)),0,prem_mort(VALUE(LEFT(Options!$B$14,2)),$C219,$E219,$F219,2016,$I219/10,1,$H219/10,$G219*$H219/10,RateRatios_airpollution!$E219)*10))","v":18.335016066000001},{"$f":"IF(AND(OR(Calculations!$E$2=\"Orkney Health Board\",Calculations!$E$2=\"Orkney Islands Local Authority\"),$F219=1),0,IF(AND(OR(Calculations!$E$2=\"Shetland Health Board\",Calculations!$E$2=\"Western Isles Health Board\",Calculations!$E$2=\"Shetland Islands Local Authority\",Calculations!$E$2=\"Eilean Siar Local Authority\"),OR($F219=1,$F219=5)),0,prem_mort(VALUE(LEFT(Options!$B$14,2)),$C219,$E219,$F219,2016,$I219/10+$J219/10,1,$H219/10,$G219*$H219/10,RateRatios_airpollution!$E219)*10))","v":18.334911562000002},18.335016066000001,18.331066463999999,806.37404325299997,806.20033974899991,4306.0016290459998,4305.0504565370002,18.335016066000001,18.331066463999999,54.445350000000005,54.433621760304071,2394.5066018915545,2393.9907938858532,12786.559060001187,12783.734578147642,54.445350000000005,54.433621760304071,381117.45,381035.35232212848,16761546.213240882,16757935.557200972,89505913.420008317,89486142.047033489,381117.45,381035.35232212848,7000]
[null,"Female 40-44",42.077438000000001,82.30744,"female",5,1,{"$f":"HLOOKUP(Calculations!$E$2,'Population 2016'!$C$3:$BC$249,'Population 2016'!BD220,FALSE)","v":36508},0,{"$f":"HLOOKUP(Calculations!$E$2,Pop2016_in_settlements!$C$3:$BC$249,Pop2016_in_settlements!$BD220,FALSE)","v":18709},{"$f":"IF(AND(OR(Calculations!$E$2=\"Orkney Health Board\",Calculations!$E$2=\"Orkney Islands Local Authority\"),$F220=1),0,IF(AND(OR(Calculations!$E$2=\"Shetland Health Board\",Calculations!$E$2=\"Western Isles Health Board\",Calculations!$E$2=\"Shetland Islands Local Authority\",Calculations!$E$2=\"Eilean Siar Local Authority\"),OR($F220=1,$F220=5)),0,new_ci(VALUE(LEFT(Options!$B$14,2)),$C220,$E220,$F220,2016,$I220/10,1,$H220/10,$G220*$H220/10,RateRatios_accidents!$B$5)*10))","v":30.822076143},{"$f":"IF(AND(OR(Calculations!$E$2=\"Orkney Health Board\",Calculations!$E$2=\"Orkney Islands Local Authority\"),$F220=1),0,IF(AND(OR(Calculations!$E$2=\"Shetland Health Board\",Calculations!$E$2=\"Western Isles Health Board\",Calculations!$E$2=\"Shetland Islands Local Authority\",Calculations!$E$2=\"Eilean Siar Local Authority\"),OR($F220=1,$F220=5)),0,new_ci(VALUE(LEFT(Options!$B$14,2)),$C220,$E220,$F220,2016,$I220/10+$J220/10,1,$H220/10,$G220*$H220/10,RateRatios_accidents!$B$5)*10))","v":30.815759985},{"$f":"IF(AND(OR(Calculations!$E$2=\"Orkney Health Board\",Calculations!$E$2=\"Orkney Islands Local Authority\"),$F220=1),0,IF(AND(OR(Calculations!$E$2=\"Shetland Health Board\",Calculations!$E$2=\"Western Isles Health Board\",Calculations!$E$2=\"Shetland Islands Local Authority\",Calculations!$E$2=\"Eilean Siar Local Authority\"),OR($F220=1,$F220=5)),0,new_yllv2(VALUE(LEFT(Options!$B$14,2)),$C220,$D220,$E220,$F220,2016,$I220/10,1,$H220/10,$G220*$H220/10,RateRatios_accidents!$B$5)*10))","v":1209.150108734},{"$f":"IF(AND(OR(Calculations!$E$2=\"Orkney Health Board\",Calculations!$E$2=\"Orkney Islands Local Authority\"),$F220=1),0,IF(AND(OR(Calculations!$E$2=\"Shetland Health Board\",Calculations!$E$2=\"Western Isles Health Board\",Calculations!$E$2=\"Shetland Islands Local Authority\",Calculations!$E$2=\"Eilean Siar Local Authority\"),OR($F220=1,$F220=5)),0,new_yllv2(VALUE(LEFT(Options!$B$14,2)),$C220,$D220,$E220,$F220,2016,$I220/10+$J220/10,1,$H220/10,$G220*$H220/10,RateRatios_accidents!$B$5)*10))","v":1208.902325843},{"$f":"IF(AND(OR(Calculations!$E$2=\"Orkney Health Board\",Calculations!$E$2=\"Orkney Islands Local Authority\"),$F220=1),0,IF(AND(OR(Calculations!$E$2=\"Shetland Health Board\",Calculations!$E$2=\"Western Isles Health Board\",Calculations!$E$2=\"Shetland Islands Local Authority\",Calculations!$E$2=\"Eilean Siar Local Authority\"),OR($F220=1,$F220=5)),0,hosp_count(VALUE(LEFT(Options!$B$14,2)),$C220,$E220,$F220,2016,$I220/10,1,$H220/10,$G220*$H220/10, RateRatios_accidents!$B$4, RateRatios_accidents!$B$5)*10))","v":5314.9930810690003},{"$f":"IF(AND(OR(Calculations!$E$2=\"Orkney Health Board\",Calculations!$E$2=\"Orkney Islands Local Authority\"),$F220=1),0,IF(AND(OR(Calculations!$E$2=\"Shetland Health Board\",Calculations!$E$2=\"Western Isles Health Board\",Calculations!$E$2=\"Shetland Islands Local Authority\",Calculations!$E$2=\"Eilean Siar Local Authority\"),OR($F220=1,$F220=5)),0,hosp_count(VALUE(LEFT(Options!$B$14,2)),$C220,$E220,$F220,2016,$I220/10+$J220/10,1,$H220/10,$G220*$H220/10, RateRatios_accidents!$B$4, RateRatios_accidents!$B$5)*10))","v":5313.9035867760003},{"$f":"IF(AND(OR(Calculations!$E$2=\"Orkney Health Board\",Calculations!$E$2=\"Orkney Islands Local Authority\"),$F220=1),0,IF(AND(OR(Calculations!$E$2=\"Shetland Health Board\",Calculations!$E$2=\"Western Isles Health Board\",Calculations!$E$2=\"Shetland Islands Local Authority\",Calculations!$E$2=\"Eilean Siar Local Authority\"),OR($F220=1,$F220=5)),0,prem_mort(VALUE(LEFT(Options!$B$14,2)),$C220,$E220,$F220,2016,$I220/10,1,$H220/10,$G220*$H220/10,RateRatios_accidents!$B$5)*10))","v":30.822076143},{"$f":"IF(AND(OR(Calculations!$E$2=\"Orkney Health Board\",Calculations!$E$2=\"Orkney Islands Local Authority\"),$F220=1),0,IF(AND(OR(Calculations!$E$2=\"Shetland Health Board\",Calculations!$E$2=\"Western Isles Health Board\",Calculations!$E$2=\"Shetland Islands Local Authority\",Calculations!$E$2=\"Eilean Siar Local Authority\"),OR($F220=1,$F220=5)),0,prem_mort(VALUE(LEFT(Options!$B$14,2)),$C220,$E220,$F220,2016,$I220/10+$J220/10,1,$H220/10,$G220*$H220/10,RateRatios_accidents!$B$5)*10))","v":30.815759985},null,{"$f":"IF(AND(OR(Calculations!$E$2=\"Orkney Health Board\",Calculations!$E$2=\"Orkney Islands Local Authority\"),$F220=1),0,IF(AND(OR(Calculations!$E$2=\"Shetland Health Board\",Calculations!$E$2=\"Western Isles Health Board\",Calculations!$E$2=\"Shetland Islands Local Authority\",Calculations!$E$2=\"Eilean Siar Local Authority\"),OR($F220=1,$F220=5)),0,new_ci(VALUE(LEFT(Options!$B$14,2)),$C220,$E220,$F220,2016,$I220/10,1,$H220/10,$G220*$H220/10,RateRatios_airpollution!$C220)*10))","v":30.822076143},{"$f":"IF(AND(OR(Calculations!$E$2=\"Orkney Health Board\",Calculations!$E$2=\"Orkney Islands Local Authority\"),$F220=1),0,IF(AND(OR(Calculations!$E$2=\"Shetland Health Board\",Calculations!$E$2=\"Western Isles Health Board\",Calculations!$E$2=\"Shetland Islands Local Authority\",Calculations!$E$2=\"Eilean Siar Local Authority\"),OR($F220=1,$F220=5)),0,new_ci(VALUE(LEFT(Options!$B$14,2)),$C220,$E220,$F220,2016,$I220/10+$J220/10,1,$H220/10,$G220*$H220/10,RateRatios_airpollution!$C220)*10))","v":30.821703833999997},{"$f":"IF(AND(OR(Calculations!$E$2=\"Orkney Health Board\",Calculations!$E$2=\"Orkney Islands Local Authority\"),$F220=1),0,IF(AND(OR(Calculations!$E$2=\"Shetland Health Board\",Calculations!$E$2=\"Western Isles Health Board\",Calculations!$E$2=\"Shetland Islands Local Authority\",Calculations!$E$2=\"Eilean Siar Local Authority\"),OR($F220=1,$F220=5)),0,new_yllv2(VALUE(LEFT(Options!$B$14,2)),$C220,$D220,$E220,$F220,2016,$I220/10,1,$H220/10,$G220*$H220/10,RateRatios_airpollution!$C220)*10))","v":1209.150108734},{"$f":"IF(AND(OR(Calculations!$E$2=\"Orkney Health Board\",Calculations!$E$2=\"Orkney Islands Local Authority\"),$F220=1),0,IF(AND(OR(Calculations!$E$2=\"Shetland Health Board\",Calculations!$E$2=\"Western Isles Health Board\",Calculations!$E$2=\"Shetland Islands Local Authority\",Calculations!$E$2=\"Eilean Siar Local Authority\"),OR($F220=1,$F220=5)),0,new_yllv2(VALUE(LEFT(Options!$B$14,2)),$C220,$D220,$E220,$F220,2016,$I220/10+$J220/10,1,$H220/10,$G220*$H220/10,RateRatios_airpollution!$C220)*10))","v":1209.1355030510001},{"$f":"IF(AND(OR(Calculations!$E$2=\"Orkney Health Board\",Calculations!$E$2=\"Orkney Islands Local Authority\"),$F220=1),0,IF(AND(OR(Calculations!$E$2=\"Shetland Health Board\",Calculations!$E$2=\"Western Isles Health Board\",Calculations!$E$2=\"Shetland Islands Local Authority\",Calculations!$E$2=\"Eilean Siar Local Authority\"),OR($F220=1,$F220=5)),0,hosp_count(VALUE(LEFT(Options!$B$14,2)),$C220,$E220,$F220,2016,$I220/10,1,$H220/10,$G220*$H220/10, RateRatios_airpollution!$D220, RateRatios_airpollution!$C220)*10))","v":5314.9930810690003},{"$f":"IF(AND(OR(Calculations!$E$2=\"Orkney Health Board\",Calculations!$E$2=\"Orkney Islands Local Authority\"),$F220=1),0,IF(AND(OR(Calculations!$E$2=\"Shetland Health Board\",Calculations!$E$2=\"Western Isles Health Board\",Calculations!$E$2=\"Shetland Islands Local Authority\",Calculations!$E$2=\"Eilean Siar Local Authority\"),OR($F220=1,$F220=5)),0,hosp_count(VALUE(LEFT(Options!$B$14,2)),$C220,$E220,$F220,2016,$I220/10+$J220/10,1,$H220/10,$G220*$H220/10, RateRatios_airpollution!$D220, RateRatios_airpollution!$C220)*10))","v":5314.8721816399993},{"$f":"IF(AND(OR(Calculations!$E$2=\"Orkney Health Board\",Calculations!$E$2=\"Orkney Islands Local Authority\"),$F220=1),0,IF(AND(OR(Calculations!$E$2=\"Shetland Health Board\",Calculations!$E$2=\"Western Isles Health Board\",Calculations!$E$2=\"Shetland Islands Local Authority\",Calculations!$E$2=\"Eilean Siar Local Authority\"),OR($F220=1,$F220=5)),0,prem_mort(VALUE(LEFT(Options!$B$14,2)),$C220,$E220,$F220,2016,$I220/10,1,$H220/10,$G220*$H220/10,RateRatios_airpollution!$C220)*10))","v":30.822076143},{"$f":"IF(AND(OR(Calculations!$E$2=\"Orkney Health Board\",Calculations!$E$2=\"Orkney Islands Local Authority\"),$F220=1),0,IF(AND(OR(Calculations!$E$2=\"Shetland Health Board\",Calculations!$E$2=\"Western Isles Health Board\",Calculations!$E$2=\"Shetland Islands Local Authority\",Calculations!$E$2=\"Eilean Siar Local Authority\"),OR($F220=1,$F220=5)),0,prem_mort(VALUE(LEFT(Options!$B$14,2)),$C220,$E220,$F220,2016,$I220/10+$J220/10,1,$H220/10,$G220*$H220/10,RateRatios_airpollution!$C220)*10))","v":30.821703833999997},null,{"$f":"IF(AND(OR(Calculations!$E$2=\"Orkney Health Board\",Calculations!$E$2=\"Orkney Islands Local Authority\"),$F220=1),0,IF(AND(OR(Calculations!$E$2=\"Shetland Health Board\",Calculations!$E$2=\"Western Isles Health Board\",Calculations!$E$2=\"Shetland Islands Local Authority\",Calculations!$E$2=\"Eilean Siar Local Authority\"),OR($F220=1,$F220=5)),0,new_ci(VALUE(LEFT(Options!$B$14,2)),$C220,$E220,$F220,2016,$I220/10,1,$H220/10,$G220*$H220/10,RateRatios_airpollution!$E220)*10))","v":30.822076143},{"$f":"IF(AND(OR(Calculations!$E$2=\"Orkney Health Board\",Calculations!$E$2=\"Orkney Islands Local Authority\"),$F220=1),0,IF(AND(OR(Calculations!$E$2=\"Shetland Health Board\",Calculations!$E$2=\"Western Isles Health Board\",Calculations!$E$2=\"Shetland Islands Local Authority\",Calculations!$E$2=\"Eilean Siar Local Authority\"),OR($F220=1,$F220=5)),0,new_ci(VALUE(LEFT(Options!$B$14,2)),$C220,$E220,$F220,2016,$I220/10+$J220/10,1,$H220/10,$G220*$H220/10,RateRatios_airpollution!$E220)*10))","v":30.821907762000002},{"$f":"IF(AND(OR(Calculations!$E$2=\"Orkney Health Board\",Calculations!$E$2=\"Orkney Islands Local Authority\"),$F220=1),0,IF(AND(OR(Calculations!$E$2=\"Shetland Health Board\",Calculations!$E$2=\"Western Isles Health Board\",Calculations!$E$2=\"Shetland Islands Local Authority\",Calculations!$E$2=\"Eilean Siar Local Authority\"),OR($F220=1,$F220=5)),0,new_yllv2(VALUE(LEFT(Options!$B$14,2)),$C220,$D220,$E220,$F220,2016,$I220/10,1,$H220/10,$G220*$H220/10,RateRatios_airpollution!$E220)*10))","v":1209.150108734},{"$f":"IF(AND(OR(Calculations!$E$2=\"Orkney Health Board\",Calculations!$E$2=\"Orkney Islands Local Authority\"),$F220=1),0,IF(AND(OR(Calculations!$E$2=\"Shetland Health Board\",Calculations!$E$2=\"Western Isles Health Board\",Calculations!$E$2=\"Shetland Islands Local Authority\",Calculations!$E$2=\"Eilean Siar Local Authority\"),OR($F220=1,$F220=5)),0,new_yllv2(VALUE(LEFT(Options!$B$14,2)),$C220,$D220,$E220,$F220,2016,$I220/10+$J220/10,1,$H220/10,$G220*$H220/10,RateRatios_airpollution!$E220)*10))","v":1209.143503147},{"$f":"IF(AND(OR(Calculations!$E$2=\"Orkney Health Board\",Calculations!$E$2=\"Orkney Islands Local Authority\"),$F220=1),0,IF(AND(OR(Calculations!$E$2=\"Shetland Health Board\",Calculations!$E$2=\"Western Isles Health Board\",Calculations!$E$2=\"Shetland Islands Local Authority\",Calculations!$E$2=\"Eilean Siar Local Authority\"),OR($F220=1,$F220=5)),0,hosp_count(VALUE(LEFT(Options!$B$14,2)),$C220,$E220,$F220,2016,$I220/10,1,$H220/10,$G220*$H220/10, RateRatios_airpollution!$F220, RateRatios_airpollution!$E220)*10))","v":5314.9930810690003},{"$f":"IF(AND(OR(Calculations!$E$2=\"Orkney Health Board\",Calculations!$E$2=\"Orkney Islands Local Authority\"),$F220=1),0,IF(AND(OR(Calculations!$E$2=\"Shetland Health Board\",Calculations!$E$2=\"Western Isles Health Board\",Calculations!$E$2=\"Shetland Islands Local Authority\",Calculations!$E$2=\"Eilean Siar Local Authority\"),OR($F220=1,$F220=5)),0,hosp_count(VALUE(LEFT(Options!$B$14,2)),$C220,$E220,$F220,2016,$I220/10+$J220/10,1,$H220/10,$G220*$H220/10, RateRatios_airpollution!$F220, RateRatios_airpollution!$E220)*10))","v":5314.9930810690003},{"$f":"IF(AND(OR(Calculations!$E$2=\"Orkney Health Board\",Calculations!$E$2=\"Orkney Islands Local Authority\"),$F220=1),0,IF(AND(OR(Calculations!$E$2=\"Shetland Health Board\",Calculations!$E$2=\"Western Isles Health Board\",Calculations!$E$2=\"Shetland Islands Local Authority\",Calculations!$E$2=\"Eilean Siar Local Authority\"),OR($F220=1,$F220=5)),0,prem_mort(VALUE(LEFT(Options!$B$14,2)),$C220,$E220,$F220,2016,$I220/10,1,$H220/10,$G220*$H220/10,RateRatios_airpollution!$E220)*10))","v":30.822076143},{"$f":"IF(AND(OR(Calculations!$E$2=\"Orkney Health Board\",Calculations!$E$2=\"Orkney Islands Local Authority\"),$F220=1),0,IF(AND(OR(Calculations!$E$2=\"Shetland Health Board\",Calculations!$E$2=\"Western Isles Health Board\",Calculations!$E$2=\"Shetland Islands Local Authority\",Calculations!$E$2=\"Eilean Siar Local Authority\"),OR($F220=1,$F220=5)),0,prem_mort(VALUE(LEFT(Options!$B$14,2)),$C220,$E220,$F220,2016,$I220/10+$J220/10,1,$H220/10,$G220*$H220/10,RateRatios_airpollution!$E220)*10))","v":30.821907762000002},30.822076143,30.815219294999999,1209.150108734,1208.8811145730001,5314.9930810690003,5313.7826873469994,30.822076143,30.815219294999999,84.42553999945217,84.406758231072644,3312.0141030294731,3311.2772942177057,14558.433989999454,14555.1185694834,84.42553999945217,84.406758231072644,590978.77999616519,590847.30761750846,23184098.721206311,23178941.05952394,{"$f":"AW220*$BI220","v":101909037.92999618},{"$f":"AX220*$BI220","v":101885829.9863838},{"$f":"AY220*$BI220","v":590978.77999616519},{"$f":"AZ220*$BI220","v":590847.30761750846},7000]
[null,"Female 45-49",47.025772000000003,82.585769999999997,"female",5,1,{"$f":"HLOOKUP(Calculations!$E$2,'Population 2016'!$C$3:$BC$249,'Population 2016'!BD221,FALSE)","v":41785},0,{"$f":"HLOOKUP(Calculations!$E$2,Pop2016_in_settlements!$C$3:$BC$249,Pop2016_in_settlements!$BD221,FALSE)","v":22293},{"$f":"IF(AND(OR(Calculations!$E$2=\"Orkney Health Board\",Calculations!$E$2=\"Orkney Islands Local Authority\"),$F221=1),0,IF(AND(OR(Calculations!$E$2=\"Shetland Health Board\",Calculations!$E$2=\"Western Isles Health Board\",Calculations!$E$2=\"Shetland Islands Local Authority\",Calculations!$E$2=\"Eilean Siar Local Authority\"),OR($F221=1,$F221=5)),0,new_ci(VALUE(LEFT(Options!$B$14,2)),$C221,$E221,$F221,2016,$I221/10,1,$H221/10,$G221*$H221/10,RateRatios_accidents!$B$5)*10))","v":53.725811702000001},{"$f":"IF(AND(OR(Calculations!$E$2=\"Orkney Health Board\",Calculations!$E$2=\"Orkney Islands Local Authority\"),$F221=1),0,IF(AND(OR(Calculations!$E$2=\"Shetland Health Board\",Calculations!$E$2=\"Western Isles Health Board\",Calculations!$E$2=\"Shetland Islands Local Authority\",Calculations!$E$2=\"Eilean Siar Local Authority\"),OR($F221=1,$F221=5)),0,new_ci(VALUE(LEFT(Options!$B$14,2)),$C221,$E221,$F221,2016,$I221/10+$J221/10,1,$H221/10,$G221*$H221/10,RateRatios_accidents!$B$5)*10))","v":53.714353099999997},{"$f":"IF(AND(OR(Calculations!$E$2=\"Orkney Health Board\",Calculations!$E$2=\"Orkney Islands Local Authority\"),$F221=1),0,IF(AND(OR(Calculations!$E$2=\"Shetland Health Board\",Calculations!$E$2=\"Western Isles Health Board\",Calculations!$E$2=\"Shetland Islands Local Authority\",Calculations!$E$2=\"Eilean Siar Local Authority\"),OR($F221=1,$F221=5)),0,new_yllv2(VALUE(LEFT(Options!$B$14,2)),$C221,$D221,$E221,$F221,2016,$I221/10,1,$H221/10,$G221*$H221/10,RateRatios_accidents!$B$5)*10))","v":1856.763944969},{"$f":"IF(AND(OR(Calculations!$E$2=\"Orkney Health Board\",Calculations!$E$2=\"Orkney Islands Local Authority\"),$F221=1),0,IF(AND(OR(Calculations!$E$2=\"Shetland Health Board\",Calculations!$E$2=\"Western Isles Health Board\",Calculations!$E$2=\"Shetland Islands Local Authority\",Calculations!$E$2=\"Eilean Siar Local Authority\"),OR($F221=1,$F221=5)),0,new_yllv2(VALUE(LEFT(Options!$B$14,2)),$C221,$D221,$E221,$F221,2016,$I221/10+$J221/10,1,$H221/10,$G221*$H221/10,RateRatios_accidents!$B$5)*10))","v":1856.367935707},{"$f":"IF(AND(OR(Calculations!$E$2=\"Orkney Health Board\",Calculations!$E$2=\"Orkney Islands Local Authority\"),$F221=1),0,IF(AND(OR(Calculations!$E$2=\"Shetland Health Board\",Calculations!$E$2=\"Western Isles Health Board\",Calculations!$E$2=\"Shetland Islands Local Authority\",Calculations!$E$2=\"Eilean Siar Local Authority\"),OR($F221=1,$F221=5)),0,hosp_count(VALUE(LEFT(Options!$B$14,2)),$C221,$E221,$F221,2016,$I221/10,1,$H221/10,$G221*$H221/10, RateRatios_accidents!$B$4, RateRatios_accidents!$B$5)*10))","v":6889.5555642700001},{"$f":"IF(AND(OR(Calculations!$E$2=\"Orkney Health Board\",Calculations!$E$2=\"Orkney Islands Local Authority\"),$F221=1),0,IF(AND(OR(Calculations!$E$2=\"Shetland Health Board\",Calculations!$E$2=\"Western Isles Health Board\",Calculations!$E$2=\"Shetland Islands Local Authority\",Calculations!$E$2=\"Eilean Siar Local Authority\"),OR($F221=1,$F221=5)),0,hosp_count(VALUE(LEFT(Options!$B$14,2)),$C221,$E221,$F221,2016,$I221/10+$J221/10,1,$H221/10,$G221*$H221/10, RateRatios_accidents!$B$4, RateRatios_accidents!$B$5)*10))","v":6888.0852874169996},{"$f":"IF(AND(OR(Calculations!$E$2=\"Orkney Health Board\",Calculations!$E$2=\"Orkney Islands Local Authority\"),$F221=1),0,IF(AND(OR(Calculations!$E$2=\"Shetland Health Board\",Calculations!$E$2=\"Western Isles Health Board\",Calculations!$E$2=\"Shetland Islands Local Authority\",Calculations!$E$2=\"Eilean Siar Local Authority\"),OR($F221=1,$F221=5)),0,prem_mort(VALUE(LEFT(Options!$B$14,2)),$C221,$E221,$F221,2016,$I221/10,1,$H221/10,$G221*$H221/10,RateRatios_accidents!$B$5)*10))","v":53.725811702000001},{"$f":"IF(AND(OR(Calculations!$E$2=\"Orkney Health Board\",Calculations!$E$2=\"Orkney Islands Local Authority\"),$F221=1),0,IF(AND(OR(Calculations!$E$2=\"Shetland Health Board\",Calculations!$E$2=\"Western Isles Health Board\",Calculations!$E$2=\"Shetland Islands Local Authority\",Calculations!$E$2=\"Eilean Siar Local Authority\"),OR($F221=1,$F221=5)),0,prem_mort(VALUE(LEFT(Options!$B$14,2)),$C221,$E221,$F221,2016,$I221/10+$J221/10,1,$H221/10,$G221*$H221/10,RateRatios_accidents!$B$5)*10))","v":53.714353099999997},null,{"$f":"IF(AND(OR(Calculations!$E$2=\"Orkney Health Board\",Calculations!$E$2=\"Orkney Islands Local Authority\"),$F221=1),0,IF(AND(OR(Calculations!$E$2=\"Shetland Health Board\",Calculations!$E$2=\"Western Isles Health Board\",Calculations!$E$2=\"Shetland Islands Local Authority\",Calculations!$E$2=\"Eilean Siar Local Authority\"),OR($F221=1,$F221=5)),0,new_ci(VALUE(LEFT(Options!$B$14,2)),$C221,$E221,$F221,2016,$I221/10,1,$H221/10,$G221*$H221/10,RateRatios_airpollution!$C221)*10))","v":53.725811702000001},{"$f":"IF(AND(OR(Calculations!$E$2=\"Orkney Health Board\",Calculations!$E$2=\"Orkney Islands Local Authority\"),$F221=1),0,IF(AND(OR(Calculations!$E$2=\"Shetland Health Board\",Calculations!$E$2=\"Western Isles Health Board\",Calculations!$E$2=\"Shetland Islands Local Authority\",Calculations!$E$2=\"Eilean Siar Local Authority\"),OR($F221=1,$F221=5)),0,new_ci(VALUE(LEFT(Options!$B$14,2)),$C221,$E221,$F221,2016,$I221/10+$J221/10,1,$H221/10,$G221*$H221/10,RateRatios_airpollution!$C221)*10))","v":53.725160746},{"$f":"IF(AND(OR(Calculations!$E$2=\"Orkney Health Board\",Calculations!$E$2=\"Orkney Islands Local Authority\"),$F221=1),0,IF(AND(OR(Calculations!$E$2=\"Shetland Health Board\",Calculations!$E$2=\"Western Isles Health Board\",Calculations!$E$2=\"Shetland Islands Local Authority\",Calculations!$E$2=\"Eilean Siar Local Authority\"),OR($F221=1,$F221=5)),0,new_yllv2(VALUE(LEFT(Options!$B$14,2)),$C221,$D221,$E221,$F221,2016,$I221/10,1,$H221/10,$G221*$H221/10,RateRatios_airpollution!$C221)*10))","v":1856.763944969},{"$f":"IF(AND(OR(Calculations!$E$2=\"Orkney Health Board\",Calculations!$E$2=\"Orkney Islands Local Authority\"),$F221=1),0,IF(AND(OR(Calculations!$E$2=\"Shetland Health Board\",Calculations!$E$2=\"Western Isles Health Board\",Calculations!$E$2=\"Shetland Islands Local Authority\",Calculations!$E$2=\"Eilean Siar Local Authority\"),OR($F221=1,$F221=5)),0,new_yllv2(VALUE(LEFT(Options!$B$14,2)),$C221,$D221,$E221,$F221,2016,$I221/10+$J221/10,1,$H221/10,$G221*$H221/10,RateRatios_airpollution!$C221)*10))","v":1856.741447931},{"$f":"IF(AND(OR(Calculations!$E$2=\"Orkney Health Board\",Calculations!$E$2=\"Orkney Islands Local Authority\"),$F221=1),0,IF(AND(OR(Calculations!$E$2=\"Shetland Health Board\",Calculations!$E$2=\"Western Isles Health Board\",Calculations!$E$2=\"Shetland Islands Local Authority\",Calculations!$E$2=\"Eilean Siar Local Authority\"),OR($F221=1,$F221=5)),0,hosp_count(VALUE(LEFT(Options!$B$14,2)),$C221,$E221,$F221,2016,$I221/10,1,$H221/10,$G221*$H221/10, RateRatios_airpollution!$D221, RateRatios_airpollution!$C221)*10))","v":6889.5555642700001},{"$f":"IF(AND(OR(Calculations!$E$2=\"Orkney Health Board\",Calculations!$E$2=\"Orkney Islands Local Authority\"),$F221=1),0,IF(AND(OR(Calculations!$E$2=\"Shetland Health Board\",Calculations!$E$2=\"Western Isles Health Board\",Calculations!$E$2=\"Shetland Islands Local Authority\",Calculations!$E$2=\"Eilean Siar Local Authority\"),OR($F221=1,$F221=5)),0,hosp_count(VALUE(LEFT(Options!$B$14,2)),$C221,$E221,$F221,2016,$I221/10+$J221/10,1,$H221/10,$G221*$H221/10, RateRatios_airpollution!$D221, RateRatios_airpollution!$C221)*10))","v":6889.398311678},{"$f":"IF(AND(OR(Calculations!$E$2=\"Orkney Health Board\",Calculations!$E$2=\"Orkney Islands Local Authority\"),$F221=1),0,IF(AND(OR(Calculations!$E$2=\"Shetland Health Board\",Calculations!$E$2=\"Western Isles Health Board\",Calculations!$E$2=\"Shetland Islands Local Authority\",Calculations!$E$2=\"Eilean Siar Local Authority\"),OR($F221=1,$F221=5)),0,prem_mort(VALUE(LEFT(Options!$B$14,2)),$C221,$E221,$F221,2016,$I221/10,1,$H221/10,$G221*$H221/10,RateRatios_airpollution!$C221)*10))","v":53.725811702000001},{"$f":"IF(AND(OR(Calculations!$E$2=\"Orkney Health Board\",Calculations!$E$2=\"Orkney Islands Local Authority\"),$F221=1),0,IF(AND(OR(Calculations!$E$2=\"Shetland Health Board\",Calculations!$E$2=\"Western Isles Health Board\",Calculations!$E$2=\"Shetland Islands Local Authority\",Calculations!$E$2=\"Eilean Siar Local Authority\"),OR($F221=1,$F221=5)),0,prem_mort(VALUE(LEFT(Options!$B$14,2)),$C221,$E221,$F221,2016,$I221/10+$J221/10,1,$H221/10,$G221*$H221/10,RateRatios_airpollution!$C221)*10))","v":53.725160746},null,{"$f":"IF(AND(OR(Calculations!$E$2=\"Orkney Health Board\",Calculations!$E$2=\"Orkney Islands Local Authority\"),$F221=1),0,IF(AND(OR(Calculations!$E$2=\"Shetland Health Board\",Calculations!$E$2=\"Western Isles Health Board\",Calculations!$E$2=\"Shetland Islands Local Authority\",Calculations!$E$2=\"Eilean Siar Local Authority\"),OR($F221=1,$F221=5)),0,new_ci(VALUE(LEFT(Options!$B$14,2)),$C221,$E221,$F221,2016,$I221/10,1,$H221/10,$G221*$H221/10,RateRatios_airpollution!$E221)*10))","v":53.725811702000001},{"$f":"IF(AND(OR(Calculations!$E$2=\"Orkney Health Board\",Calculations!$E$2=\"Orkney Islands Local Authority\"),$F221=1),0,IF(AND(OR(Calculations!$E$2=\"Shetland Health Board\",Calculations!$E$2=\"Western Isles Health Board\",Calculations!$E$2=\"Shetland Islands Local Authority\",Calculations!$E$2=\"Eilean Siar Local Authority\"),OR($F221=1,$F221=5)),0,new_ci(VALUE(LEFT(Options!$B$14,2)),$C221,$E221,$F221,2016,$I221/10+$J221/10,1,$H221/10,$G221*$H221/10,RateRatios_airpollution!$E221)*10))","v":53.725515205000001},{"$f":"IF(AND(OR(Calculations!$E$2=\"Orkney Health Board\",Calculations!$E$2=\"Orkney Islands Local Authority\"),$F221=1),0,IF(AND(OR(Calculations!$E$2=\"Shetland Health Board\",Calculations!$E$2=\"Western Isles Health Board\",Calculations!$E$2=\"Shetland Islands Local Authority\",Calculations!$E$2=\"Eilean Siar Local Authority\"),OR($F221=1,$F221=5)),0,new_yllv2(VALUE(LEFT(Options!$B$14,2)),$C221,$D221,$E221,$F221,2016,$I221/10,1,$H221/10,$G221*$H221/10,RateRatios_airpollution!$E221)*10))","v":1856.763944969},{"$f":"IF(AND(OR(Calculations!$E$2=\"Orkney Health Board\",Calculations!$E$2=\"Orkney Islands Local Authority\"),$F221=1),0,IF(AND(OR(Calculations!$E$2=\"Shetland Health Board\",Calculations!$E$2=\"Western Isles Health Board\",Calculations!$E$2=\"Shetland Islands Local Authority\",Calculations!$E$2=\"Eilean Siar Local Authority\"),OR($F221=1,$F221=5)),0,new_yllv2(VALUE(LEFT(Options!$B$14,2)),$C221,$D221,$E221,$F221,2016,$I221/10+$J221/10,1,$H221/10,$G221*$H221/10,RateRatios_airpollution!$E221)*10))","v":1856.7536980340001},{"$f":"IF(AND(OR(Calculations!$E$2=\"Orkney Health Board\",Calculations!$E$2=\"Orkney Islands Local Authority\"),$F221=1),0,IF(AND(OR(Calculations!$E$2=\"Shetland Health Board\",Calculations!$E$2=\"Western Isles Health Board\",Calculations!$E$2=\"Shetland Islands Local Authority\",Calculations!$E$2=\"Eilean Siar Local Authority\"),OR($F221=1,$F221=5)),0,hosp_count(VALUE(LEFT(Options!$B$14,2)),$C221,$E221,$F221,2016,$I221/10,1,$H221/10,$G221*$H221/10, RateRatios_airpollution!$F221, RateRatios_airpollution!$E221)*10))","v":6889.5555642700001},{"$f":"IF(AND(OR(Calculations!$E$2=\"Orkney Health Board\",Calculations!$E$2=\"Orkney Islands Local Authority\"),$F221=1),0,IF(AND(OR(Calculations!$E$2=\"Shetland Health Board\",Calculations!$E$2=\"Western Isles Health Board\",Calculations!$E$2=\"Shetland Islands Local Authority\",Calculations!$E$2=\"Eilean Siar Local Authority\"),OR($F221=1,$F221=5)),0,hosp_count(VALUE(LEFT(Options!$B$14,2)),$C221,$E221,$F221,2016,$I221/10+$J221/10,1,$H221/10,$G221*$H221/10, RateRatios_airpollution!$F221, RateRatios_airpollution!$E221)*10))","v":6889.5555642700001},{"$f":"IF(AND(OR(Calculations!$E$2=\"Orkney Health Board\",Calculations!$E$2=\"Orkney Islands Local Authority\"),$F221=1),0,IF(AND(OR(Calculations!$E$2=\"Shetland Health Board\",Calculations!$E$2=\"Western Isles Health Board\",Calculations!$E$2=\"Shetland Islands Local Authority\",Calculations!$E$2=\"Eilean Siar Local Authority\"),OR($F221=1,$F221=5)),0,prem_mort(VALUE(LEFT(Options!$B$14,2)),$C221,$E221,$F221,2016,$I221/10,1,$H221/10,$G221*$H221/10,RateRatios_airpollution!$E221)*10))","v":53.725811702000001},{"$f":"IF(AND(OR(Calculations!$E$2=\"Orkney Health Board\",Calculations!$E$2=\"Orkney Islands Local Authority\"),$F221=1),0,IF(AND(OR(Calculations!$E$2=\"Shetland Health Board\",Calculations!$E$2=\"Western Isles Health Board\",Calculations!$E$2=\"Shetland Islands Local Authority\",Calculations!$E$2=\"Eilean Siar Local Authority\"),OR($F221=1,$F221=5)),0,prem_mort(VALUE(LEFT(Options!$B$14,2)),$C221,$E221,$F221,2016,$I221/10+$J221/10,1,$H221/10,$G221*$H221/10,RateRatios_airpollution!$E221)*10))","v":53.725515205000001},53.725811702000001,53.713405646999995,1856.763944969,1856.3351917340001,6889.5555642700001,6887.9280348249995,53.725811702000001,53.713405646999995,128.57679000119663,128.54709978939809,4443.6136052865859,4442.5875116285752,16488.107129998803,16484.212121155917,128.57679000119663,128.54709978939809,900037.53000837634,899829.69852578663,31105295.237006102,31098112.581400026,115416749.90999162,115389484.84809142,900037.53000837634,899829.69852578663,7000]
[null,"Female 50-54",51.990825999999998,82.980829999999997,"female",5,1,{"$f":"HLOOKUP(Calculations!$E$2,'Population 2016'!$C$3:$BC$249,'Population 2016'!BD222,FALSE)","v":42428},0,{"$f":"HLOOKUP(Calculations!$E$2,Pop2016_in_settlements!$C$3:$BC$249,Pop2016_in_settlements!$BD222,FALSE)","v":23038},{"$f":"IF(AND(OR(Calculations!$E$2=\"Orkney Health Board\",Calculations!$E$2=\"Orkney Islands Local Authority\"),$F222=1),0,IF(AND(OR(Calculations!$E$2=\"Shetland Health Board\",Calculations!$E$2=\"Western Isles Health Board\",Calculations!$E$2=\"Shetland Islands Local Authority\",Calculations!$E$2=\"Eilean Siar Local Authority\"),OR($F222=1,$F222=5)),0,new_ci(VALUE(LEFT(Options!$B$14,2)),$C222,$E222,$F222,2016,$I222/10,1,$H222/10,$G222*$H222/10,RateRatios_accidents!$B$5)*10))","v":83.189907595999998},{"$f":"IF(AND(OR(Calculations!$E$2=\"Orkney Health Board\",Calculations!$E$2=\"Orkney Islands Local Authority\"),$F222=1),0,IF(AND(OR(Calculations!$E$2=\"Shetland Health Board\",Calculations!$E$2=\"Western Isles Health Board\",Calculations!$E$2=\"Shetland Islands Local Authority\",Calculations!$E$2=\"Eilean Siar Local Authority\"),OR($F222=1,$F222=5)),0,new_ci(VALUE(LEFT(Options!$B$14,2)),$C222,$E222,$F222,2016,$I222/10+$J222/10,1,$H222/10,$G222*$H222/10,RateRatios_accidents!$B$5)*10))","v":83.171857323000012},{"$f":"IF(AND(OR(Calculations!$E$2=\"Orkney Health Board\",Calculations!$E$2=\"Orkney Islands Local Authority\"),$F222=1),0,IF(AND(OR(Calculations!$E$2=\"Shetland Health Board\",Calculations!$E$2=\"Western Isles Health Board\",Calculations!$E$2=\"Shetland Islands Local Authority\",Calculations!$E$2=\"Eilean Siar Local Authority\"),OR($F222=1,$F222=5)),0,new_yllv2(VALUE(LEFT(Options!$B$14,2)),$C222,$D222,$E222,$F222,2016,$I222/10,1,$H222/10,$G222*$H222/10,RateRatios_accidents!$B$5)*10))","v":2494.8656615639998},{"$f":"IF(AND(OR(Calculations!$E$2=\"Orkney Health Board\",Calculations!$E$2=\"Orkney Islands Local Authority\"),$F222=1),0,IF(AND(OR(Calculations!$E$2=\"Shetland Health Board\",Calculations!$E$2=\"Western Isles Health Board\",Calculations!$E$2=\"Shetland Islands Local Authority\",Calculations!$E$2=\"Eilean Siar Local Authority\"),OR($F222=1,$F222=5)),0,new_yllv2(VALUE(LEFT(Options!$B$14,2)),$C222,$D222,$E222,$F222,2016,$I222/10+$J222/10,1,$H222/10,$G222*$H222/10,RateRatios_accidents!$B$5)*10))","v":2494.3243338040002},{"$f":"IF(AND(OR(Calculations!$E$2=\"Orkney Health Board\",Calculations!$E$2=\"Orkney Islands Local Authority\"),$F222=1),0,IF(AND(OR(Calculations!$E$2=\"Shetland Health Board\",Calculations!$E$2=\"Western Isles Health Board\",Calculations!$E$2=\"Shetland Islands Local Authority\",Calculations!$E$2=\"Eilean Siar Local Authority\"),OR($F222=1,$F222=5)),0,hosp_count(VALUE(LEFT(Options!$B$14,2)),$C222,$E222,$F222,2016,$I222/10,1,$H222/10,$G222*$H222/10, RateRatios_accidents!$B$4, RateRatios_accidents!$B$5)*10))","v":7926.1475104579995},{"$f":"IF(AND(OR(Calculations!$E$2=\"Orkney Health Board\",Calculations!$E$2=\"Orkney Islands Local Authority\"),$F222=1),0,IF(AND(OR(Calculations!$E$2=\"Shetland Health Board\",Calculations!$E$2=\"Western Isles Health Board\",Calculations!$E$2=\"Shetland Islands Local Authority\",Calculations!$E$2=\"Eilean Siar Local Authority\"),OR($F222=1,$F222=5)),0,hosp_count(VALUE(LEFT(Options!$B$14,2)),$C222,$E222,$F222,2016,$I222/10+$J222/10,1,$H222/10,$G222*$H222/10, RateRatios_accidents!$B$4, RateRatios_accidents!$B$5)*10))","v":7924.4259820850002},{"$f":"IF(AND(OR(Calculations!$E$2=\"Orkney Health Board\",Calculations!$E$2=\"Orkney Islands Local Authority\"),$F222=1),0,IF(AND(OR(Calculations!$E$2=\"Shetland Health Board\",Calculations!$E$2=\"Western Isles Health Board\",Calculations!$E$2=\"Shetland Islands Local Authority\",Calculations!$E$2=\"Eilean Siar Local Authority\"),OR($F222=1,$F222=5)),0,prem_mort(VALUE(LEFT(Options!$B$14,2)),$C222,$E222,$F222,2016,$I222/10,1,$H222/10,$G222*$H222/10,RateRatios_accidents!$B$5)*10))","v":83.189907595999998},{"$f":"IF(AND(OR(Calculations!$E$2=\"Orkney Health Board\",Calculations!$E$2=\"Orkney Islands Local Authority\"),$F222=1),0,IF(AND(OR(Calculations!$E$2=\"Shetland Health Board\",Calculations!$E$2=\"Western Isles Health Board\",Calculations!$E$2=\"Shetland Islands Local Authority\",Calculations!$E$2=\"Eilean Siar Local Authority\"),OR($F222=1,$F222=5)),0,prem_mort(VALUE(LEFT(Options!$B$14,2)),$C222,$E222,$F222,2016,$I222/10+$J222/10,1,$H222/10,$G222*$H222/10,RateRatios_accidents!$B$5)*10))","v":83.171857323000012},null,{"$f":"IF(AND(OR(Calculations!$E$2=\"Orkney Health Board\",Calculations!$E$2=\"Orkney Islands Local Authority\"),$F222=1),0,IF(AND(OR(Calculations!$E$2=\"Shetland Health Board\",Calculations!$E$2=\"Western Isles Health Board\",Calculations!$E$2=\"Shetland Islands Local Authority\",Calculations!$E$2=\"Eilean Siar Local Authority\"),OR($F222=1,$F222=5)),0,new_ci(VALUE(LEFT(Options!$B$14,2)),$C222,$E222,$F222,2016,$I222/10,1,$H222/10,$G222*$H222/10,RateRatios_airpollution!$C222)*10))","v":83.189907595999998},{"$f":"IF(AND(OR(Calculations!$E$2=\"Orkney Health Board\",Calculations!$E$2=\"Orkney Islands Local Authority\"),$F222=1),0,IF(AND(OR(Calculations!$E$2=\"Shetland Health Board\",Calculations!$E$2=\"Western Isles Health Board\",Calculations!$E$2=\"Shetland Islands Local Authority\",Calculations!$E$2=\"Eilean Siar Local Authority\"),OR($F222=1,$F222=5)),0,new_ci(VALUE(LEFT(Options!$B$14,2)),$C222,$E222,$F222,2016,$I222/10+$J222/10,1,$H222/10,$G222*$H222/10,RateRatios_airpollution!$C222)*10))","v":83.188880101999999},{"$f":"IF(AND(OR(Calculations!$E$2=\"Orkney Health Board\",Calculations!$E$2=\"Orkney Islands Local Authority\"),$F222=1),0,IF(AND(OR(Calculations!$E$2=\"Shetland Health Board\",Calculations!$E$2=\"Western Isles Health Board\",Calculations!$E$2=\"Shetland Islands Local Authority\",Calculations!$E$2=\"Eilean Siar Local Authority\"),OR($F222=1,$F222=5)),0,new_yllv2(VALUE(LEFT(Options!$B$14,2)),$C222,$D222,$E222,$F222,2016,$I222/10,1,$H222/10,$G222*$H222/10,RateRatios_airpollution!$C222)*10))","v":2494.8656615639998},{"$f":"IF(AND(OR(Calculations!$E$2=\"Orkney Health Board\",Calculations!$E$2=\"Orkney Islands Local Authority\"),$F222=1),0,IF(AND(OR(Calculations!$E$2=\"Shetland Health Board\",Calculations!$E$2=\"Western Isles Health Board\",Calculations!$E$2=\"Shetland Islands Local Authority\",Calculations!$E$2=\"Eilean Siar Local Authority\"),OR($F222=1,$F222=5)),0,new_yllv2(VALUE(LEFT(Options!$B$14,2)),$C222,$D222,$E222,$F222,2016,$I222/10+$J222/10,1,$H222/10,$G222*$H222/10,RateRatios_airpollution!$C222)*10))","v":2494.8348470149999},{"$f":"IF(AND(OR(Calculations!$E$2=\"Orkney Health Board\",Calculations!$E$2=\"Orkney Islands Local Authority\"),$F222=1),0,IF(AND(OR(Calculations!$E$2=\"Shetland Health Board\",Calculations!$E$2=\"Western Isles Health Board\",Calculations!$E$2=\"Shetland Islands Local Authority\",Calculations!$E$2=\"Eilean Siar Local Authority\"),OR($F222=1,$F222=5)),0,hosp_count(VALUE(LEFT(Options!$B$14,2)),$C222,$E222,$F222,2016,$I222/10,1,$H222/10,$G222*$H222/10, RateRatios_airpollution!$D222, RateRatios_airpollution!$C222)*10))","v":7926.1475104579995},{"$f":"IF(AND(OR(Calculations!$E$2=\"Orkney Health Board\",Calculations!$E$2=\"Orkney Islands Local Authority\"),$F222=1),0,IF(AND(OR(Calculations!$E$2=\"Shetland Health Board\",Calculations!$E$2=\"Western Isles Health Board\",Calculations!$E$2=\"Shetland Islands Local Authority\",Calculations!$E$2=\"Eilean Siar Local Authority\"),OR($F222=1,$F222=5)),0,hosp_count(VALUE(LEFT(Options!$B$14,2)),$C222,$E222,$F222,2016,$I222/10+$J222/10,1,$H222/10,$G222*$H222/10, RateRatios_airpollution!$D222, RateRatios_airpollution!$C222)*10))","v":7925.9632294960002},{"$f":"IF(AND(OR(Calculations!$E$2=\"Orkney Health Board\",Calculations!$E$2=\"Orkney Islands Local Authority\"),$F222=1),0,IF(AND(OR(Calculations!$E$2=\"Shetland Health Board\",Calculations!$E$2=\"Western Isles Health Board\",Calculations!$E$2=\"Shetland Islands Local Authority\",Calculations!$E$2=\"Eilean Siar Local Authority\"),OR($F222=1,$F222=5)),0,prem_mort(VALUE(LEFT(Options!$B$14,2)),$C222,$E222,$F222,2016,$I222/10,1,$H222/10,$G222*$H222/10,RateRatios_airpollution!$C222)*10))","v":83.189907595999998},{"$f":"IF(AND(OR(Calculations!$E$2=\"Orkney Health Board\",Calculations!$E$2=\"Orkney Islands Local Authority\"),$F222=1),0,IF(AND(OR(Calculations!$E$2=\"Shetland Health Board\",Calculations!$E$2=\"Western Isles Health Board\",Calculations!$E$2=\"Shetland Islands Local Authority\",Calculations!$E$2=\"Eilean Siar Local Authority\"),OR($F222=1,$F222=5)),0,prem_mort(VALUE(LEFT(Options!$B$14,2)),$C222,$E222,$F222,2016,$I222/10+$J222/10,1,$H222/10,$G222*$H222/10,RateRatios_airpollution!$C222)*10))","v":83.188880101999999},null,{"$f":"IF(AND(OR(Calculations!$E$2=\"Orkney Health Board\",Calculations!$E$2=\"Orkney Islands Local Authority\"),$F222=1),0,IF(AND(OR(Calculations!$E$2=\"Shetland Health Board\",Calculations!$E$2=\"Western Isles Health Board\",Calculations!$E$2=\"Shetland Islands Local Authority\",Calculations!$E$2=\"Eilean Siar Local Authority\"),OR($F222=1,$F222=5)),0,new_ci(VALUE(LEFT(Options!$B$14,2)),$C222,$E222,$F222,2016,$I222/10,1,$H222/10,$G222*$H222/10,RateRatios_airpollution!$E222)*10))","v":83.189907595999998},{"$f":"IF(AND(OR(Calculations!$E$2=\"Orkney Health Board\",Calculations!$E$2=\"Orkney Islands Local Authority\"),$F222=1),0,IF(AND(OR(Calculations!$E$2=\"Shetland Health Board\",Calculations!$E$2=\"Western Isles Health Board\",Calculations!$E$2=\"Shetland Islands Local Authority\",Calculations!$E$2=\"Eilean Siar Local Authority\"),OR($F222=1,$F222=5)),0,new_ci(VALUE(LEFT(Options!$B$14,2)),$C222,$E222,$F222,2016,$I222/10+$J222/10,1,$H222/10,$G222*$H222/10,RateRatios_airpollution!$E222)*10))","v":83.189439924999988},{"$f":"IF(AND(OR(Calculations!$E$2=\"Orkney Health Board\",Calculations!$E$2=\"Orkney Islands Local Authority\"),$F222=1),0,IF(AND(OR(Calculations!$E$2=\"Shetland Health Board\",Calculations!$E$2=\"Western Isles Health Board\",Calculations!$E$2=\"Shetland Islands Local Authority\",Calculations!$E$2=\"Eilean Siar Local Authority\"),OR($F222=1,$F222=5)),0,new_yllv2(VALUE(LEFT(Options!$B$14,2)),$C222,$D222,$E222,$F222,2016,$I222/10,1,$H222/10,$G222*$H222/10,RateRatios_airpollution!$E222)*10))","v":2494.8656615639998},{"$f":"IF(AND(OR(Calculations!$E$2=\"Orkney Health Board\",Calculations!$E$2=\"Orkney Islands Local Authority\"),$F222=1),0,IF(AND(OR(Calculations!$E$2=\"Shetland Health Board\",Calculations!$E$2=\"Western Isles Health Board\",Calculations!$E$2=\"Shetland Islands Local Authority\",Calculations!$E$2=\"Eilean Siar Local Authority\"),OR($F222=1,$F222=5)),0,new_yllv2(VALUE(LEFT(Options!$B$14,2)),$C222,$D222,$E222,$F222,2016,$I222/10+$J222/10,1,$H222/10,$G222*$H222/10,RateRatios_airpollution!$E222)*10))","v":2494.8516361090001},{"$f":"IF(AND(OR(Calculations!$E$2=\"Orkney Health Board\",Calculations!$E$2=\"Orkney Islands Local Authority\"),$F222=1),0,IF(AND(OR(Calculations!$E$2=\"Shetland Health Board\",Calculations!$E$2=\"Western Isles Health Board\",Calculations!$E$2=\"Shetland Islands Local Authority\",Calculations!$E$2=\"Eilean Siar Local Authority\"),OR($F222=1,$F222=5)),0,hosp_count(VALUE(LEFT(Options!$B$14,2)),$C222,$E222,$F222,2016,$I222/10,1,$H222/10,$G222*$H222/10, RateRatios_airpollution!$F222, RateRatios_airpollution!$E222)*10))","v":7926.1475104579995},{"$f":"IF(AND(OR(Calculations!$E$2=\"Orkney Health Board\",Calculations!$E$2=\"Orkney Islands Local Authority\"),$F222=1),0,IF(AND(OR(Calculations!$E$2=\"Shetland Health Board\",Calculations!$E$2=\"Western Isles Health Board\",Calculations!$E$2=\"Shetland Islands Local Authority\",Calculations!$E$2=\"Eilean Siar Local Authority\"),OR($F222=1,$F222=5)),0,hosp_count(VALUE(LEFT(Options!$B$14,2)),$C222,$E222,$F222,2016,$I222/10+$J222/10,1,$H222/10,$G222*$H222/10, RateRatios_airpollution!$F222, RateRatios_airpollution!$E222)*10))","v":7926.1475104579995},{"$f":"IF(AND(OR(Calculations!$E$2=\"Orkney Health Board\",Calculations!$E$2=\"Orkney Islands Local Authority\"),$F222=1),0,IF(AND(OR(Calculations!$E$2=\"Shetland Health Board\",Calculations!$E$2=\"Western Isles Health Board\",Calculations!$E$2=\"Shetland Islands Local Authority\",Calculations!$E$2=\"Eilean Siar Local Authority\"),OR($F222=1,$F222=5)),0,prem_mort(VALUE(LEFT(Options!$B$14,2)),$C222,$E222,$F222,2016,$I222/10,1,$H222/10,$G222*$H222/10,RateRatios_airpollution!$E222)*10))","v":83.189907595999998},{"$f":"IF(AND(OR(Calculations!$E$2=\"Orkney Health Board\",Calculations!$E$2=\"Orkney Islands Local Authority\"),$F222=1),0,IF(AND(OR(Calculations!$E$2=\"Shetland Health Board\",Calculations!$E$2=\"Western Isles Health Board\",Calculations!$E$2=\"Shetland Islands Local Authority\",Calculations!$E$2=\"Eilean Siar Local Authority\"),OR($F222=1,$F222=5)),0,prem_mort(VALUE(LEFT(Options!$B$14,2)),$C222,$E222,$F222,2016,$I222/10+$J222/10,1,$H222/10,$G222*$H222/10,RateRatios_airpollution!$E222)*10))","v":83.189439924999988},83.189907595999998,83.170362158000003,2494.8656615639998,2494.2794938000006,7926.1475104579995,7924.2417011230009,83.189907595999998,83.170362158000003,196.07312999905722,196.02706268973321,5880.2339529650226,5878.8523941736603,18681.407349999998,18676.915482990007,196.07312999905722,196.02706268973321,1372511.9099934006,1372189.4388281326,41161637.670755155,41151966.759215623,130769851.44999999,130738408.38093005,1372511.9099934006,1372189.4388281326,7000]
[null,"Female 55-59",56.953040999999999,83.473039999999997,"female",5,1,{"$f":"HLOOKUP(Calculations!$E$2,'Population 2016'!$C$3:$BC$249,'Population 2016'!BD223,FALSE)","v":38314},0,{"$f":"HLOOKUP(Calculations!$E$2,Pop2016_in_settlements!$C$3:$BC$249,Pop2016_in_settlements!$BD223,FALSE)","v":20891},{"$f":"IF(AND(OR(Calculations!$E$2=\"Orkney Health Board\",Calculations!$E$2=\"Orkney Islands Local Authority\"),$F223=1),0,IF(AND(OR(Calculations!$E$2=\"Shetland Health Board\",Calculations!$E$2=\"Western Isles Health Board\",Calculations!$E$2=\"Shetland Islands Local Authority\",Calculations!$E$2=\"Eilean Siar Local Authority\"),OR($F223=1,$F223=5)),0,new_ci(VALUE(LEFT(Options!$B$14,2)),$C223,$E223,$F223,2016,$I223/10,1,$H223/10,$G223*$H223/10,RateRatios_accidents!$B$5)*10))","v":114.51154604099999},{"$f":"IF(AND(OR(Calculations!$E$2=\"Orkney Health Board\",Calculations!$E$2=\"Orkney Islands Local Authority\"),$F223=1),0,IF(AND(OR(Calculations!$E$2=\"Shetland Health Board\",Calculations!$E$2=\"Western Isles Health Board\",Calculations!$E$2=\"Shetland Islands Local Authority\",Calculations!$E$2=\"Eilean Siar Local Authority\"),OR($F223=1,$F223=5)),0,new_ci(VALUE(LEFT(Options!$B$14,2)),$C223,$E223,$F223,2016,$I223/10+$J223/10,1,$H223/10,$G223*$H223/10,RateRatios_accidents!$B$5)*10))","v":114.486608455},{"$f":"IF(AND(OR(Calculations!$E$2=\"Orkney Health Board\",Calculations!$E$2=\"Orkney Islands Local Authority\"),$F223=1),0,IF(AND(OR(Calculations!$E$2=\"Shetland Health Board\",Calculations!$E$2=\"Western Isles Health Board\",Calculations!$E$2=\"Shetland Islands Local Authority\",Calculations!$E$2=\"Eilean Siar Local Authority\"),OR($F223=1,$F223=5)),0,new_yllv2(VALUE(LEFT(Options!$B$14,2)),$C223,$D223,$E223,$F223,2016,$I223/10,1,$H223/10,$G223*$H223/10,RateRatios_accidents!$B$5)*10))","v":2922.334540455},{"$f":"IF(AND(OR(Calculations!$E$2=\"Orkney Health Board\",Calculations!$E$2=\"Orkney Islands Local Authority\"),$F223=1),0,IF(AND(OR(Calculations!$E$2=\"Shetland Health Board\",Calculations!$E$2=\"Western Isles Health Board\",Calculations!$E$2=\"Shetland Islands Local Authority\",Calculations!$E$2=\"Eilean Siar Local Authority\"),OR($F223=1,$F223=5)),0,new_yllv2(VALUE(LEFT(Options!$B$14,2)),$C223,$D223,$E223,$F223,2016,$I223/10+$J223/10,1,$H223/10,$G223*$H223/10,RateRatios_accidents!$B$5)*10))","v":2921.698133285},{"$f":"IF(AND(OR(Calculations!$E$2=\"Orkney Health Board\",Calculations!$E$2=\"Orkney Islands Local Authority\"),$F223=1),0,IF(AND(OR(Calculations!$E$2=\"Shetland Health Board\",Calculations!$E$2=\"Western Isles Health Board\",Calculations!$E$2=\"Shetland Islands Local Authority\",Calculations!$E$2=\"Eilean Siar Local Authority\"),OR($F223=1,$F223=5)),0,hosp_count(VALUE(LEFT(Options!$B$14,2)),$C223,$E223,$F223,2016,$I223/10,1,$H223/10,$G223*$H223/10, RateRatios_accidents!$B$4, RateRatios_accidents!$B$5)*10))","v":8109.1411843690003},{"$f":"IF(AND(OR(Calculations!$E$2=\"Orkney Health Board\",Calculations!$E$2=\"Orkney Islands Local Authority\"),$F223=1),0,IF(AND(OR(Calculations!$E$2=\"Shetland Health Board\",Calculations!$E$2=\"Western Isles Health Board\",Calculations!$E$2=\"Shetland Islands Local Authority\",Calculations!$E$2=\"Eilean Siar Local Authority\"),OR($F223=1,$F223=5)),0,hosp_count(VALUE(LEFT(Options!$B$14,2)),$C223,$E223,$F223,2016,$I223/10+$J223/10,1,$H223/10,$G223*$H223/10, RateRatios_accidents!$B$4, RateRatios_accidents!$B$5)*10))","v":8107.3725564870001},{"$f":"IF(AND(OR(Calculations!$E$2=\"Orkney Health Board\",Calculations!$E$2=\"Orkney Islands Local Authority\"),$F223=1),0,IF(AND(OR(Calculations!$E$2=\"Shetland Health Board\",Calculations!$E$2=\"Western Isles Health Board\",Calculations!$E$2=\"Shetland Islands Local Authority\",Calculations!$E$2=\"Eilean Siar Local Authority\"),OR($F223=1,$F223=5)),0,prem_mort(VALUE(LEFT(Options!$B$14,2)),$C223,$E223,$F223,2016,$I223/10,1,$H223/10,$G223*$H223/10,RateRatios_accidents!$B$5)*10))","v":114.51154604099999},{"$f":"IF(AND(OR(Calculations!$E$2=\"Orkney Health Board\",Calculations!$E$2=\"Orkney Islands Local Authority\"),$F223=1),0,IF(AND(OR(Calculations!$E$2=\"Shetland Health Board\",Calculations!$E$2=\"Western Isles Health Board\",Calculations!$E$2=\"Shetland Islands Local Authority\",Calculations!$E$2=\"Eilean Siar Local Authority\"),OR($F223=1,$F223=5)),0,prem_mort(VALUE(LEFT(Options!$B$14,2)),$C223,$E223,$F223,2016,$I223/10+$J223/10,1,$H223/10,$G223*$H223/10,RateRatios_accidents!$B$5)*10))","v":114.486608455},null,{"$f":"IF(AND(OR(Calculations!$E$2=\"Orkney Health Board\",Calculations!$E$2=\"Orkney Islands Local Authority\"),$F223=1),0,IF(AND(OR(Calculations!$E$2=\"Shetland Health Board\",Calculations!$E$2=\"Western Isles Health Board\",Calculations!$E$2=\"Shetland Islands Local Authority\",Calculations!$E$2=\"Eilean Siar Local Authority\"),OR($F223=1,$F223=5)),0,new_ci(VALUE(LEFT(Options!$B$14,2)),$C223,$E223,$F223,2016,$I223/10,1,$H223/10,$G223*$H223/10,RateRatios_airpollution!$C223)*10))","v":114.51154604099999},{"$f":"IF(AND(OR(Calculations!$E$2=\"Orkney Health Board\",Calculations!$E$2=\"Orkney Islands Local Authority\"),$F223=1),0,IF(AND(OR(Calculations!$E$2=\"Shetland Health Board\",Calculations!$E$2=\"Western Isles Health Board\",Calculations!$E$2=\"Shetland Islands Local Authority\",Calculations!$E$2=\"Eilean Siar Local Authority\"),OR($F223=1,$F223=5)),0,new_ci(VALUE(LEFT(Options!$B$14,2)),$C223,$E223,$F223,2016,$I223/10+$J223/10,1,$H223/10,$G223*$H223/10,RateRatios_airpollution!$C223)*10))","v":114.51013589900001},{"$f":"IF(AND(OR(Calculations!$E$2=\"Orkney Health Board\",Calculations!$E$2=\"Orkney Islands Local Authority\"),$F223=1),0,IF(AND(OR(Calculations!$E$2=\"Shetland Health Board\",Calculations!$E$2=\"Western Isles Health Board\",Calculations!$E$2=\"Shetland Islands Local Authority\",Calculations!$E$2=\"Eilean Siar Local Authority\"),OR($F223=1,$F223=5)),0,new_yllv2(VALUE(LEFT(Options!$B$14,2)),$C223,$D223,$E223,$F223,2016,$I223/10,1,$H223/10,$G223*$H223/10,RateRatios_airpollution!$C223)*10))","v":2922.334540455},{"$f":"IF(AND(OR(Calculations!$E$2=\"Orkney Health Board\",Calculations!$E$2=\"Orkney Islands Local Authority\"),$F223=1),0,IF(AND(OR(Calculations!$E$2=\"Shetland Health Board\",Calculations!$E$2=\"Western Isles Health Board\",Calculations!$E$2=\"Shetland Islands Local Authority\",Calculations!$E$2=\"Eilean Siar Local Authority\"),OR($F223=1,$F223=5)),0,new_yllv2(VALUE(LEFT(Options!$B$14,2)),$C223,$D223,$E223,$F223,2016,$I223/10+$J223/10,1,$H223/10,$G223*$H223/10,RateRatios_airpollution!$C223)*10))","v":2922.2985536319998},{"$f":"IF(AND(OR(Calculations!$E$2=\"Orkney Health Board\",Calculations!$E$2=\"Orkney Islands Local Authority\"),$F223=1),0,IF(AND(OR(Calculations!$E$2=\"Shetland Health Board\",Calculations!$E$2=\"Western Isles Health Board\",Calculations!$E$2=\"Shetland Islands Local Authority\",Calculations!$E$2=\"Eilean Siar Local Authority\"),OR($F223=1,$F223=5)),0,hosp_count(VALUE(LEFT(Options!$B$14,2)),$C223,$E223,$F223,2016,$I223/10,1,$H223/10,$G223*$H223/10, RateRatios_airpollution!$D223, RateRatios_airpollution!$C223)*10))","v":8109.1411843690003},{"$f":"IF(AND(OR(Calculations!$E$2=\"Orkney Health Board\",Calculations!$E$2=\"Orkney Islands Local Authority\"),$F223=1),0,IF(AND(OR(Calculations!$E$2=\"Shetland Health Board\",Calculations!$E$2=\"Western Isles Health Board\",Calculations!$E$2=\"Shetland Islands Local Authority\",Calculations!$E$2=\"Eilean Siar Local Authority\"),OR($F223=1,$F223=5)),0,hosp_count(VALUE(LEFT(Options!$B$14,2)),$C223,$E223,$F223,2016,$I223/10+$J223/10,1,$H223/10,$G223*$H223/10, RateRatios_airpollution!$D223, RateRatios_airpollution!$C223)*10))","v":8108.9527935089991},{"$f":"IF(AND(OR(Calculations!$E$2=\"Orkney Health Board\",Calculations!$E$2=\"Orkney Islands Local Authority\"),$F223=1),0,IF(AND(OR(Calculations!$E$2=\"Shetland Health Board\",Calculations!$E$2=\"Western Isles Health Board\",Calculations!$E$2=\"Shetland Islands Local Authority\",Calculations!$E$2=\"Eilean Siar Local Authority\"),OR($F223=1,$F223=5)),0,prem_mort(VALUE(LEFT(Options!$B$14,2)),$C223,$E223,$F223,2016,$I223/10,1,$H223/10,$G223*$H223/10,RateRatios_airpollution!$C223)*10))","v":114.51154604099999},{"$f":"IF(AND(OR(Calculations!$E$2=\"Orkney Health Board\",Calculations!$E$2=\"Orkney Islands Local Authority\"),$F223=1),0,IF(AND(OR(Calculations!$E$2=\"Shetland Health Board\",Calculations!$E$2=\"Western Isles Health Board\",Calculations!$E$2=\"Shetland Islands Local Authority\",Calculations!$E$2=\"Eilean Siar Local Authority\"),OR($F223=1,$F223=5)),0,prem_mort(VALUE(LEFT(Options!$B$14,2)),$C223,$E223,$F223,2016,$I223/10+$J223/10,1,$H223/10,$G223*$H223/10,RateRatios_airpollution!$C223)*10))","v":114.51013589900001},null,{"$f":"IF(AND(OR(Calculations!$E$2=\"Orkney Health Board\",Calculations!$E$2=\"Orkney Islands Local Authority\"),$F223=1),0,IF(AND(OR(Calculations!$E$2=\"Shetland Health Board\",Calculations!$E$2=\"Western Isles Health Board\",Calculations!$E$2=\"Shetland Islands Local Authority\",Calculations!$E$2=\"Eilean Siar Local Authority\"),OR($F223=1,$F223=5)),0,new_ci(VALUE(LEFT(Options!$B$14,2)),$C223,$E223,$F223,2016,$I223/10,1,$H223/10,$G223*$H223/10,RateRatios_airpollution!$E223)*10))","v":114.51154604099999},{"$f":"IF(AND(OR(Calculations!$E$2=\"Orkney Health Board\",Calculations!$E$2=\"Orkney Islands Local Authority\"),$F223=1),0,IF(AND(OR(Calculations!$E$2=\"Shetland Health Board\",Calculations!$E$2=\"Western Isles Health Board\",Calculations!$E$2=\"Shetland Islands Local Authority\",Calculations!$E$2=\"Eilean Siar Local Authority\"),OR($F223=1,$F223=5)),0,new_ci(VALUE(LEFT(Options!$B$14,2)),$C223,$E223,$F223,2016,$I223/10+$J223/10,1,$H223/10,$G223*$H223/10,RateRatios_airpollution!$E223)*10))","v":114.51090468800001},{"$f":"IF(AND(OR(Calculations!$E$2=\"Orkney Health Board\",Calculations!$E$2=\"Orkney Islands Local Authority\"),$F223=1),0,IF(AND(OR(Calculations!$E$2=\"Shetland Health Board\",Calculations!$E$2=\"Western Isles Health Board\",Calculations!$E$2=\"Shetland Islands Local Authority\",Calculations!$E$2=\"Eilean Siar Local Authority\"),OR($F223=1,$F223=5)),0,new_yllv2(VALUE(LEFT(Options!$B$14,2)),$C223,$D223,$E223,$F223,2016,$I223/10,1,$H223/10,$G223*$H223/10,RateRatios_airpollution!$E223)*10))","v":2922.334540455},{"$f":"IF(AND(OR(Calculations!$E$2=\"Orkney Health Board\",Calculations!$E$2=\"Orkney Islands Local Authority\"),$F223=1),0,IF(AND(OR(Calculations!$E$2=\"Shetland Health Board\",Calculations!$E$2=\"Western Isles Health Board\",Calculations!$E$2=\"Shetland Islands Local Authority\",Calculations!$E$2=\"Eilean Siar Local Authority\"),OR($F223=1,$F223=5)),0,new_yllv2(VALUE(LEFT(Options!$B$14,2)),$C223,$D223,$E223,$F223,2016,$I223/10+$J223/10,1,$H223/10,$G223*$H223/10,RateRatios_airpollution!$E223)*10))","v":2922.3181731270001},{"$f":"IF(AND(OR(Calculations!$E$2=\"Orkney Health Board\",Calculations!$E$2=\"Orkney Islands Local Authority\"),$F223=1),0,IF(AND(OR(Calculations!$E$2=\"Shetland Health Board\",Calculations!$E$2=\"Western Isles Health Board\",Calculations!$E$2=\"Shetland Islands Local Authority\",Calculations!$E$2=\"Eilean Siar Local Authority\"),OR($F223=1,$F223=5)),0,hosp_count(VALUE(LEFT(Options!$B$14,2)),$C223,$E223,$F223,2016,$I223/10,1,$H223/10,$G223*$H223/10, RateRatios_airpollution!$F223, RateRatios_airpollution!$E223)*10))","v":8109.1411843690003},{"$f":"IF(AND(OR(Calculations!$E$2=\"Orkney Health Board\",Calculations!$E$2=\"Orkney Islands Local Authority\"),$F223=1),0,IF(AND(OR(Calculations!$E$2=\"Shetland Health Board\",Calculations!$E$2=\"Western Isles Health Board\",Calculations!$E$2=\"Shetland Islands Local Authority\",Calculations!$E$2=\"Eilean Siar Local Authority\"),OR($F223=1,$F223=5)),0,hosp_count(VALUE(LEFT(Options!$B$14,2)),$C223,$E223,$F223,2016,$I223/10+$J223/10,1,$H223/10,$G223*$H223/10, RateRatios_airpollution!$F223, RateRatios_airpollution!$E223)*10))","v":8109.1411843690003},{"$f":"IF(AND(OR(Calculations!$E$2=\"Orkney Health Board\",Calculations!$E$2=\"Orkney Islands Local Authority\"),$F223=1),0,IF(AND(OR(Calculations!$E$2=\"Shetland Health Board\",Calculations!$E$2=\"Western Isles Health Board\",Calculations!$E$2=\"Shetland Islands Local Authority\",Calculations!$E$2=\"Eilean Siar Local Authority\"),OR($F223=1,$F223=5)),0,prem_mort(VALUE(LEFT(Options!$B$14,2)),$C223,$E223,$F223,2016,$I223/10,1,$H223/10,$G223*$H223/10,RateRatios_airpollution!$E223)*10))","v":114.51154604099999},{"$f":"IF(AND(OR(Calculations!$E$2=\"Orkney Health Board\",Calculations!$E$2=\"Orkney Islands Local Authority\"),$F223=1),0,IF(AND(OR(Calculations!$E$2=\"Shetland Health Board\",Calculations!$E$2=\"Western Isles Health Board\",Calculations!$E$2=\"Shetland Islands Local Authority\",Calculations!$E$2=\"Eilean Siar Local Authority\"),OR($F223=1,$F223=5)),0,prem_mort(VALUE(LEFT(Options!$B$14,2)),$C223,$E223,$F223,2016,$I223/10+$J223/10,1,$H223/10,$G223*$H223/10,RateRatios_airpollution!$E223)*10))","v":114.51090468800001},114.51154604099999,114.48455696000003,2922.334540455,2921.6457791339999,8109.1411843690003,8107.1841656269989,114.51154604099999,114.48455696000003,298.87650999895595,298.80606817351372,7627.3282362974369,7625.5305609803199,21164.955850000002,21159.848007587301,298.87650999895595,298.80606817351372,1942697.3149932136,1942239.4431278391,49577633.535933338,49565948.64637208,137572213.02500001,137539012.04931745,1942697.3149932136,1942239.4431278391,6500]
[null,"Female 60-64",61.947387999999997,84.167389999999997,"female",5,1,{"$f":"HLOOKUP(Calculations!$E$2,'Population 2016'!$C$3:$BC$249,'Population 2016'!BD224,FALSE)","v":33644},0,{"$f":"HLOOKUP(Calculations!$E$2,Pop2016_in_settlements!$C$3:$BC$249,Pop2016_in_settlements!$BD224,FALSE)","v":18117},{"$f":"IF(AND(OR(Calculations!$E$2=\"Orkney Health Board\",Calculations!$E$2=\"Orkney Islands Local Authority\"),$F224=1),0,IF(AND(OR(Calculations!$E$2=\"Shetland Health Board\",Calculations!$E$2=\"Western Isles Health Board\",Calculations!$E$2=\"Shetland Islands Local Authority\",Calculations!$E$2=\"Eilean Siar Local Authority\"),OR($F224=1,$F224=5)),0,new_ci(VALUE(LEFT(Options!$B$14,2)),$C224,$E224,$F224,2016,$I224/10,1,$H224/10,$G224*$H224/10,RateRatios_accidents!$B$5)*10))","v":153.652605558},{"$f":"IF(AND(OR(Calculations!$E$2=\"Orkney Health Board\",Calculations!$E$2=\"Orkney Islands Local Authority\"),$F224=1),0,IF(AND(OR(Calculations!$E$2=\"Shetland Health Board\",Calculations!$E$2=\"Western Isles Health Board\",Calculations!$E$2=\"Shetland Islands Local Authority\",Calculations!$E$2=\"Eilean Siar Local Authority\"),OR($F224=1,$F224=5)),0,new_ci(VALUE(LEFT(Options!$B$14,2)),$C224,$E224,$F224,2016,$I224/10+$J224/10,1,$H224/10,$G224*$H224/10,RateRatios_accidents!$B$5)*10))","v":153.61958732599999},{"$f":"IF(AND(OR(Calculations!$E$2=\"Orkney Health Board\",Calculations!$E$2=\"Orkney Islands Local Authority\"),$F224=1),0,IF(AND(OR(Calculations!$E$2=\"Shetland Health Board\",Calculations!$E$2=\"Western Isles Health Board\",Calculations!$E$2=\"Shetland Islands Local Authority\",Calculations!$E$2=\"Eilean Siar Local Authority\"),OR($F224=1,$F224=5)),0,new_yllv2(VALUE(LEFT(Options!$B$14,2)),$C224,$D224,$E224,$F224,2016,$I224/10,1,$H224/10,$G224*$H224/10,RateRatios_accidents!$B$5)*10))","v":3260.5085972460001},{"$f":"IF(AND(OR(Calculations!$E$2=\"Orkney Health Board\",Calculations!$E$2=\"Orkney Islands Local Authority\"),$F224=1),0,IF(AND(OR(Calculations!$E$2=\"Shetland Health Board\",Calculations!$E$2=\"Western Isles Health Board\",Calculations!$E$2=\"Shetland Islands Local Authority\",Calculations!$E$2=\"Eilean Siar Local Authority\"),OR($F224=1,$F224=5)),0,new_yllv2(VALUE(LEFT(Options!$B$14,2)),$C224,$D224,$E224,$F224,2016,$I224/10+$J224/10,1,$H224/10,$G224*$H224/10,RateRatios_accidents!$B$5)*10))","v":3259.8079502969999},{"$f":"IF(AND(OR(Calculations!$E$2=\"Orkney Health Board\",Calculations!$E$2=\"Orkney Islands Local Authority\"),$F224=1),0,IF(AND(OR(Calculations!$E$2=\"Shetland Health Board\",Calculations!$E$2=\"Western Isles Health Board\",Calculations!$E$2=\"Shetland Islands Local Authority\",Calculations!$E$2=\"Eilean Siar Local Authority\"),OR($F224=1,$F224=5)),0,hosp_count(VALUE(LEFT(Options!$B$14,2)),$C224,$E224,$F224,2016,$I224/10,1,$H224/10,$G224*$H224/10, RateRatios_accidents!$B$4, RateRatios_accidents!$B$5)*10))","v":8073.9077134919999},{"$f":"IF(AND(OR(Calculations!$E$2=\"Orkney Health Board\",Calculations!$E$2=\"Orkney Islands Local Authority\"),$F224=1),0,IF(AND(OR(Calculations!$E$2=\"Shetland Health Board\",Calculations!$E$2=\"Western Isles Health Board\",Calculations!$E$2=\"Shetland Islands Local Authority\",Calculations!$E$2=\"Eilean Siar Local Authority\"),OR($F224=1,$F224=5)),0,hosp_count(VALUE(LEFT(Options!$B$14,2)),$C224,$E224,$F224,2016,$I224/10+$J224/10,1,$H224/10,$G224*$H224/10, RateRatios_accidents!$B$4, RateRatios_accidents!$B$5)*10))","v":8072.1686228050003},{"$f":"IF(AND(OR(Calculations!$E$2=\"Orkney Health Board\",Calculations!$E$2=\"Orkney Islands Local Authority\"),$F224=1),0,IF(AND(OR(Calculations!$E$2=\"Shetland Health Board\",Calculations!$E$2=\"Western Isles Health Board\",Calculations!$E$2=\"Shetland Islands Local Authority\",Calculations!$E$2=\"Eilean Siar Local Authority\"),OR($F224=1,$F224=5)),0,prem_mort(VALUE(LEFT(Options!$B$14,2)),$C224,$E224,$F224,2016,$I224/10,1,$H224/10,$G224*$H224/10,RateRatios_accidents!$B$5)*10))","v":153.652605558},{"$f":"IF(AND(OR(Calculations!$E$2=\"Orkney Health Board\",Calculations!$E$2=\"Orkney Islands Local Authority\"),$F224=1),0,IF(AND(OR(Calculations!$E$2=\"Shetland Health Board\",Calculations!$E$2=\"Western Isles Health Board\",Calculations!$E$2=\"Shetland Islands Local Authority\",Calculations!$E$2=\"Eilean Siar Local Authority\"),OR($F224=1,$F224=5)),0,prem_mort(VALUE(LEFT(Options!$B$14,2)),$C224,$E224,$F224,2016,$I224/10+$J224/10,1,$H224/10,$G224*$H224/10,RateRatios_accidents!$B$5)*10))","v":153.61958732599999},null,{"$f":"IF(AND(OR(Calculations!$E$2=\"Orkney Health Board\",Calculations!$E$2=\"Orkney Islands Local Authority\"),$F224=1),0,IF(AND(OR(Calculations!$E$2=\"Shetland Health Board\",Calculations!$E$2=\"Western Isles Health Board\",Calculations!$E$2=\"Shetland Islands Local Authority\",Calculations!$E$2=\"Eilean Siar Local Authority\"),OR($F224=1,$F224=5)),0,new_ci(VALUE(LEFT(Options!$B$14,2)),$C224,$E224,$F224,2016,$I224/10,1,$H224/10,$G224*$H224/10,RateRatios_airpollution!$C224)*10))","v":153.652605558},{"$f":"IF(AND(OR(Calculations!$E$2=\"Orkney Health Board\",Calculations!$E$2=\"Orkney Islands Local Authority\"),$F224=1),0,IF(AND(OR(Calculations!$E$2=\"Shetland Health Board\",Calculations!$E$2=\"Western Isles Health Board\",Calculations!$E$2=\"Shetland Islands Local Authority\",Calculations!$E$2=\"Eilean Siar Local Authority\"),OR($F224=1,$F224=5)),0,new_ci(VALUE(LEFT(Options!$B$14,2)),$C224,$E224,$F224,2016,$I224/10+$J224/10,1,$H224/10,$G224*$H224/10,RateRatios_airpollution!$C224)*10))","v":153.65077211799999},{"$f":"IF(AND(OR(Calculations!$E$2=\"Orkney Health Board\",Calculations!$E$2=\"Orkney Islands Local Authority\"),$F224=1),0,IF(AND(OR(Calculations!$E$2=\"Shetland Health Board\",Calculations!$E$2=\"Western Isles Health Board\",Calculations!$E$2=\"Shetland Islands Local Authority\",Calculations!$E$2=\"Eilean Siar Local Authority\"),OR($F224=1,$F224=5)),0,new_yllv2(VALUE(LEFT(Options!$B$14,2)),$C224,$D224,$E224,$F224,2016,$I224/10,1,$H224/10,$G224*$H224/10,RateRatios_airpollution!$C224)*10))","v":3260.5085972460001},{"$f":"IF(AND(OR(Calculations!$E$2=\"Orkney Health Board\",Calculations!$E$2=\"Orkney Islands Local Authority\"),$F224=1),0,IF(AND(OR(Calculations!$E$2=\"Shetland Health Board\",Calculations!$E$2=\"Western Isles Health Board\",Calculations!$E$2=\"Shetland Islands Local Authority\",Calculations!$E$2=\"Eilean Siar Local Authority\"),OR($F224=1,$F224=5)),0,new_yllv2(VALUE(LEFT(Options!$B$14,2)),$C224,$D224,$E224,$F224,2016,$I224/10+$J224/10,1,$H224/10,$G224*$H224/10,RateRatios_airpollution!$C224)*10))","v":3260.4696916459998},{"$f":"IF(AND(OR(Calculations!$E$2=\"Orkney Health Board\",Calculations!$E$2=\"Orkney Islands Local Authority\"),$F224=1),0,IF(AND(OR(Calculations!$E$2=\"Shetland Health Board\",Calculations!$E$2=\"Western Isles Health Board\",Calculations!$E$2=\"Shetland Islands Local Authority\",Calculations!$E$2=\"Eilean Siar Local Authority\"),OR($F224=1,$F224=5)),0,hosp_count(VALUE(LEFT(Options!$B$14,2)),$C224,$E224,$F224,2016,$I224/10,1,$H224/10,$G224*$H224/10, RateRatios_airpollution!$D224, RateRatios_airpollution!$C224)*10))","v":8073.9077134919999},{"$f":"IF(AND(OR(Calculations!$E$2=\"Orkney Health Board\",Calculations!$E$2=\"Orkney Islands Local Authority\"),$F224=1),0,IF(AND(OR(Calculations!$E$2=\"Shetland Health Board\",Calculations!$E$2=\"Western Isles Health Board\",Calculations!$E$2=\"Shetland Islands Local Authority\",Calculations!$E$2=\"Eilean Siar Local Authority\"),OR($F224=1,$F224=5)),0,hosp_count(VALUE(LEFT(Options!$B$14,2)),$C224,$E224,$F224,2016,$I224/10+$J224/10,1,$H224/10,$G224*$H224/10, RateRatios_airpollution!$D224, RateRatios_airpollution!$C224)*10))","v":8073.7255742329999},{"$f":"IF(AND(OR(Calculations!$E$2=\"Orkney Health Board\",Calculations!$E$2=\"Orkney Islands Local Authority\"),$F224=1),0,IF(AND(OR(Calculations!$E$2=\"Shetland Health Board\",Calculations!$E$2=\"Western Isles Health Board\",Calculations!$E$2=\"Shetland Islands Local Authority\",Calculations!$E$2=\"Eilean Siar Local Authority\"),OR($F224=1,$F224=5)),0,prem_mort(VALUE(LEFT(Options!$B$14,2)),$C224,$E224,$F224,2016,$I224/10,1,$H224/10,$G224*$H224/10,RateRatios_airpollution!$C224)*10))","v":153.652605558},{"$f":"IF(AND(OR(Calculations!$E$2=\"Orkney Health Board\",Calculations!$E$2=\"Orkney Islands Local Authority\"),$F224=1),0,IF(AND(OR(Calculations!$E$2=\"Shetland Health Board\",Calculations!$E$2=\"Western Isles Health Board\",Calculations!$E$2=\"Shetland Islands Local Authority\",Calculations!$E$2=\"Eilean Siar Local Authority\"),OR($F224=1,$F224=5)),0,prem_mort(VALUE(LEFT(Options!$B$14,2)),$C224,$E224,$F224,2016,$I224/10+$J224/10,1,$H224/10,$G224*$H224/10,RateRatios_airpollution!$C224)*10))","v":153.65077211799999},null,{"$f":"IF(AND(OR(Calculations!$E$2=\"Orkney Health Board\",Calculations!$E$2=\"Orkney Islands Local Authority\"),$F224=1),0,IF(AND(OR(Calculations!$E$2=\"Shetland Health Board\",Calculations!$E$2=\"Western Isles Health Board\",Calculations!$E$2=\"Shetland Islands Local Authority\",Calculations!$E$2=\"Eilean Siar Local Authority\"),OR($F224=1,$F224=5)),0,new_ci(VALUE(LEFT(Options!$B$14,2)),$C224,$E224,$F224,2016,$I224/10,1,$H224/10,$G224*$H224/10,RateRatios_airpollution!$E224)*10))","v":153.652605558},{"$f":"IF(AND(OR(Calculations!$E$2=\"Orkney Health Board\",Calculations!$E$2=\"Orkney Islands Local Authority\"),$F224=1),0,IF(AND(OR(Calculations!$E$2=\"Shetland Health Board\",Calculations!$E$2=\"Western Isles Health Board\",Calculations!$E$2=\"Shetland Islands Local Authority\",Calculations!$E$2=\"Eilean Siar Local Authority\"),OR($F224=1,$F224=5)),0,new_ci(VALUE(LEFT(Options!$B$14,2)),$C224,$E224,$F224,2016,$I224/10+$J224/10,1,$H224/10,$G224*$H224/10,RateRatios_airpollution!$E224)*10))","v":153.65176855300001},{"$f":"IF(AND(OR(Calculations!$E$2=\"Orkney Health Board\",Calculations!$E$2=\"Orkney Islands Local Authority\"),$F224=1),0,IF(AND(OR(Calculations!$E$2=\"Shetland Health Board\",Calculations!$E$2=\"Western Isles Health Board\",Calculations!$E$2=\"Shetland Islands Local Authority\",Calculations!$E$2=\"Eilean Siar Local Authority\"),OR($F224=1,$F224=5)),0,new_yllv2(VALUE(LEFT(Options!$B$14,2)),$C224,$D224,$E224,$F224,2016,$I224/10,1,$H224/10,$G224*$H224/10,RateRatios_airpollution!$E224)*10))","v":3260.5085972460001},{"$f":"IF(AND(OR(Calculations!$E$2=\"Orkney Health Board\",Calculations!$E$2=\"Orkney Islands Local Authority\"),$F224=1),0,IF(AND(OR(Calculations!$E$2=\"Shetland Health Board\",Calculations!$E$2=\"Western Isles Health Board\",Calculations!$E$2=\"Shetland Islands Local Authority\",Calculations!$E$2=\"Eilean Siar Local Authority\"),OR($F224=1,$F224=5)),0,new_yllv2(VALUE(LEFT(Options!$B$14,2)),$C224,$D224,$E224,$F224,2016,$I224/10+$J224/10,1,$H224/10,$G224*$H224/10,RateRatios_airpollution!$E224)*10))","v":3260.490835998},{"$f":"IF(AND(OR(Calculations!$E$2=\"Orkney Health Board\",Calculations!$E$2=\"Orkney Islands Local Authority\"),$F224=1),0,IF(AND(OR(Calculations!$E$2=\"Shetland Health Board\",Calculations!$E$2=\"Western Isles Health Board\",Calculations!$E$2=\"Shetland Islands Local Authority\",Calculations!$E$2=\"Eilean Siar Local Authority\"),OR($F224=1,$F224=5)),0,hosp_count(VALUE(LEFT(Options!$B$14,2)),$C224,$E224,$F224,2016,$I224/10,1,$H224/10,$G224*$H224/10, RateRatios_airpollution!$F224, RateRatios_airpollution!$E224)*10))","v":8073.9077134919999},{"$f":"IF(AND(OR(Calculations!$E$2=\"Orkney Health Board\",Calculations!$E$2=\"Orkney Islands Local Authority\"),$F224=1),0,IF(AND(OR(Calculations!$E$2=\"Shetland Health Board\",Calculations!$E$2=\"Western Isles Health Board\",Calculations!$E$2=\"Shetland Islands Local Authority\",Calculations!$E$2=\"Eilean Siar Local Authority\"),OR($F224=1,$F224=5)),0,hosp_count(VALUE(LEFT(Options!$B$14,2)),$C224,$E224,$F224,2016,$I224/10+$J224/10,1,$H224/10,$G224*$H224/10, RateRatios_airpollution!$F224, RateRatios_airpollution!$E224)*10))","v":8073.9077134919999},{"$f":"IF(AND(OR(Calculations!$E$2=\"Orkney Health Board\",Calculations!$E$2=\"Orkney Islands Local Authority\"),$F224=1),0,IF(AND(OR(Calculations!$E$2=\"Shetland Health Board\",Calculations!$E$2=\"Western Isles Health Board\",Calculations!$E$2=\"Shetland Islands Local Authority\",Calculations!$E$2=\"Eilean Siar Local Authority\"),OR($F224=1,$F224=5)),0,prem_mort(VALUE(LEFT(Options!$B$14,2)),$C224,$E224,$F224,2016,$I224/10,1,$H224/10,$G224*$H224/10,RateRatios_airpollution!$E224)*10))","v":153.652605558},{"$f":"IF(AND(OR(Calculations!$E$2=\"Orkney Health Board\",Calculations!$E$2=\"Orkney Islands Local Authority\"),$F224=1),0,IF(AND(OR(Calculations!$E$2=\"Shetland Health Board\",Calculations!$E$2=\"Western Isles Health Board\",Calculations!$E$2=\"Shetland Islands Local Authority\",Calculations!$E$2=\"Eilean Siar Local Authority\"),OR($F224=1,$F224=5)),0,prem_mort(VALUE(LEFT(Options!$B$14,2)),$C224,$E224,$F224,2016,$I224/10+$J224/10,1,$H224/10,$G224*$H224/10,RateRatios_airpollution!$E224)*10))","v":153.65176855300001},153.652605558,153.61691688099998,3260.5085972460001,3259.7512834489994,8073.9077134919999,8071.9864835460003,153.652605558,153.61691688099998,456.70135999881109,456.59528260908326,9691.2037725775772,9688.952810156341,23998.06120999881,23992.350741725124,456.70135999881109,456.59528260908326,2740208.1599928667,2739571.6956544993,58147222.635465465,58133716.860938042,143988367.25999287,143954104.45035073,2740208.1599928667,2739571.6956544993,6000]
[null,"Female 65-69",67.063927000000007,85.193929999999995,"female",5,1,{"$f":"HLOOKUP(Calculations!$E$2,'Population 2016'!$C$3:$BC$249,'Population 2016'!BD225,FALSE)","v":33766},0,{"$f":"HLOOKUP(Calculations!$E$2,Pop2016_in_settlements!$C$3:$BC$249,Pop2016_in_settlements!$BD225,FALSE)","v":17782},{"$f":"IF(AND(OR(Calculations!$E$2=\"Orkney Health Board\",Calculations!$E$2=\"Orkney Islands Local Authority\"),$F225=1),0,IF(AND(OR(Calculations!$E$2=\"Shetland Health Board\",Calculations!$E$2=\"Western Isles Health Board\",Calculations!$E$2=\"Shetland Islands Local Authority\",Calculations!$E$2=\"Eilean Siar Local Authority\"),OR($F225=1,$F225=5)),0,new_ci(VALUE(LEFT(Options!$B$14,2)),$C225,$E225,$F225,2016,$I225/10,1,$H225/10,$G225*$H225/10,RateRatios_accidents!$B$5)*10))","v":237.995318822},{"$f":"IF(AND(OR(Calculations!$E$2=\"Orkney Health Board\",Calculations!$E$2=\"Orkney Islands Local Authority\"),$F225=1),0,IF(AND(OR(Calculations!$E$2=\"Shetland Health Board\",Calculations!$E$2=\"Western Isles Health Board\",Calculations!$E$2=\"Shetland Islands Local Authority\",Calculations!$E$2=\"Eilean Siar Local Authority\"),OR($F225=1,$F225=5)),0,new_ci(VALUE(LEFT(Options!$B$14,2)),$C225,$E225,$F225,2016,$I225/10+$J225/10,1,$H225/10,$G225*$H225/10,RateRatios_accidents!$B$5)*10))","v":237.94536029300002},{"$f":"IF(AND(OR(Calculations!$E$2=\"Orkney Health Board\",Calculations!$E$2=\"Orkney Islands Local Authority\"),$F225=1),0,IF(AND(OR(Calculations!$E$2=\"Shetland Health Board\",Calculations!$E$2=\"Western Isles Health Board\",Calculations!$E$2=\"Shetland Islands Local Authority\",Calculations!$E$2=\"Eilean Siar Local Authority\"),OR($F225=1,$F225=5)),0,new_yllv2(VALUE(LEFT(Options!$B$14,2)),$C225,$D225,$E225,$F225,2016,$I225/10,1,$H225/10,$G225*$H225/10,RateRatios_accidents!$B$5)*10))","v":4076.8605254070003},{"$f":"IF(AND(OR(Calculations!$E$2=\"Orkney Health Board\",Calculations!$E$2=\"Orkney Islands Local Authority\"),$F225=1),0,IF(AND(OR(Calculations!$E$2=\"Shetland Health Board\",Calculations!$E$2=\"Western Isles Health Board\",Calculations!$E$2=\"Shetland Islands Local Authority\",Calculations!$E$2=\"Eilean Siar Local Authority\"),OR($F225=1,$F225=5)),0,new_yllv2(VALUE(LEFT(Options!$B$14,2)),$C225,$D225,$E225,$F225,2016,$I225/10+$J225/10,1,$H225/10,$G225*$H225/10,RateRatios_accidents!$B$5)*10))","v":4076.0047356550003},{"$f":"IF(AND(OR(Calculations!$E$2=\"Orkney Health Board\",Calculations!$E$2=\"Orkney Islands Local Authority\"),$F225=1),0,IF(AND(OR(Calculations!$E$2=\"Shetland Health Board\",Calculations!$E$2=\"Western Isles Health Board\",Calculations!$E$2=\"Shetland Islands Local Authority\",Calculations!$E$2=\"Eilean Siar Local Authority\"),OR($F225=1,$F225=5)),0,hosp_count(VALUE(LEFT(Options!$B$14,2)),$C225,$E225,$F225,2016,$I225/10,1,$H225/10,$G225*$H225/10, RateRatios_accidents!$B$4, RateRatios_accidents!$B$5)*10))","v":9216.1471731250003},{"$f":"IF(AND(OR(Calculations!$E$2=\"Orkney Health Board\",Calculations!$E$2=\"Orkney Islands Local Authority\"),$F225=1),0,IF(AND(OR(Calculations!$E$2=\"Shetland Health Board\",Calculations!$E$2=\"Western Isles Health Board\",Calculations!$E$2=\"Shetland Islands Local Authority\",Calculations!$E$2=\"Eilean Siar Local Authority\"),OR($F225=1,$F225=5)),0,hosp_count(VALUE(LEFT(Options!$B$14,2)),$C225,$E225,$F225,2016,$I225/10+$J225/10,1,$H225/10,$G225*$H225/10, RateRatios_accidents!$B$4, RateRatios_accidents!$B$5)*10))","v":9214.205793045001},{"$f":"IF(AND(OR(Calculations!$E$2=\"Orkney Health Board\",Calculations!$E$2=\"Orkney Islands Local Authority\"),$F225=1),0,IF(AND(OR(Calculations!$E$2=\"Shetland Health Board\",Calculations!$E$2=\"Western Isles Health Board\",Calculations!$E$2=\"Shetland Islands Local Authority\",Calculations!$E$2=\"Eilean Siar Local Authority\"),OR($F225=1,$F225=5)),0,prem_mort(VALUE(LEFT(Options!$B$14,2)),$C225,$E225,$F225,2016,$I225/10,1,$H225/10,$G225*$H225/10,RateRatios_accidents!$B$5)*10))","v":237.995318822},{"$f":"IF(AND(OR(Calculations!$E$2=\"Orkney Health Board\",Calculations!$E$2=\"Orkney Islands Local Authority\"),$F225=1),0,IF(AND(OR(Calculations!$E$2=\"Shetland Health Board\",Calculations!$E$2=\"Western Isles Health Board\",Calculations!$E$2=\"Shetland Islands Local Authority\",Calculations!$E$2=\"Eilean Siar Local Authority\"),OR($F225=1,$F225=5)),0,prem_mort(VALUE(LEFT(Options!$B$14,2)),$C225,$E225,$F225,2016,$I225/10+$J225/10,1,$H225/10,$G225*$H225/10,RateRatios_accidents!$B$5)*10))","v":237.94536029300002},null,{"$f":"IF(AND(OR(Calculations!$E$2=\"Orkney Health Board\",Calculations!$E$2=\"Orkney Islands Local Authority\"),$F225=1),0,IF(AND(OR(Calculations!$E$2=\"Shetland Health Board\",Calculations!$E$2=\"Western Isles Health Board\",Calculations!$E$2=\"Shetland Islands Local Authority\",Calculations!$E$2=\"Eilean Siar Local Authority\"),OR($F225=1,$F225=5)),0,new_ci(VALUE(LEFT(Options!$B$14,2)),$C225,$E225,$F225,2016,$I225/10,1,$H225/10,$G225*$H225/10,RateRatios_airpollution!$C225)*10))","v":237.995318822},{"$f":"IF(AND(OR(Calculations!$E$2=\"Orkney Health Board\",Calculations!$E$2=\"Orkney Islands Local Authority\"),$F225=1),0,IF(AND(OR(Calculations!$E$2=\"Shetland Health Board\",Calculations!$E$2=\"Western Isles Health Board\",Calculations!$E$2=\"Shetland Islands Local Authority\",Calculations!$E$2=\"Eilean Siar Local Authority\"),OR($F225=1,$F225=5)),0,new_ci(VALUE(LEFT(Options!$B$14,2)),$C225,$E225,$F225,2016,$I225/10+$J225/10,1,$H225/10,$G225*$H225/10,RateRatios_airpollution!$C225)*10))","v":237.99258039400002},{"$f":"IF(AND(OR(Calculations!$E$2=\"Orkney Health Board\",Calculations!$E$2=\"Orkney Islands Local Authority\"),$F225=1),0,IF(AND(OR(Calculations!$E$2=\"Shetland Health Board\",Calculations!$E$2=\"Western Isles Health Board\",Calculations!$E$2=\"Shetland Islands Local Authority\",Calculations!$E$2=\"Eilean Siar Local Authority\"),OR($F225=1,$F225=5)),0,new_yllv2(VALUE(LEFT(Options!$B$14,2)),$C225,$D225,$E225,$F225,2016,$I225/10,1,$H225/10,$G225*$H225/10,RateRatios_airpollution!$C225)*10))","v":4076.8605254070003},{"$f":"IF(AND(OR(Calculations!$E$2=\"Orkney Health Board\",Calculations!$E$2=\"Orkney Islands Local Authority\"),$F225=1),0,IF(AND(OR(Calculations!$E$2=\"Shetland Health Board\",Calculations!$E$2=\"Western Isles Health Board\",Calculations!$E$2=\"Shetland Islands Local Authority\",Calculations!$E$2=\"Eilean Siar Local Authority\"),OR($F225=1,$F225=5)),0,new_yllv2(VALUE(LEFT(Options!$B$14,2)),$C225,$D225,$E225,$F225,2016,$I225/10+$J225/10,1,$H225/10,$G225*$H225/10,RateRatios_airpollution!$C225)*10))","v":4076.8136161270004},{"$f":"IF(AND(OR(Calculations!$E$2=\"Orkney Health Board\",Calculations!$E$2=\"Orkney Islands Local Authority\"),$F225=1),0,IF(AND(OR(Calculations!$E$2=\"Shetland Health Board\",Calculations!$E$2=\"Western Isles Health Board\",Calculations!$E$2=\"Shetland Islands Local Authority\",Calculations!$E$2=\"Eilean Siar Local Authority\"),OR($F225=1,$F225=5)),0,hosp_count(VALUE(LEFT(Options!$B$14,2)),$C225,$E225,$F225,2016,$I225/10,1,$H225/10,$G225*$H225/10, RateRatios_airpollution!$D225, RateRatios_airpollution!$C225)*10))","v":9216.1471731250003},{"$f":"IF(AND(OR(Calculations!$E$2=\"Orkney Health Board\",Calculations!$E$2=\"Orkney Islands Local Authority\"),$F225=1),0,IF(AND(OR(Calculations!$E$2=\"Shetland Health Board\",Calculations!$E$2=\"Western Isles Health Board\",Calculations!$E$2=\"Shetland Islands Local Authority\",Calculations!$E$2=\"Eilean Siar Local Authority\"),OR($F225=1,$F225=5)),0,hosp_count(VALUE(LEFT(Options!$B$14,2)),$C225,$E225,$F225,2016,$I225/10+$J225/10,1,$H225/10,$G225*$H225/10, RateRatios_airpollution!$D225, RateRatios_airpollution!$C225)*10))","v":9215.946695300001},{"$f":"IF(AND(OR(Calculations!$E$2=\"Orkney Health Board\",Calculations!$E$2=\"Orkney Islands Local Authority\"),$F225=1),0,IF(AND(OR(Calculations!$E$2=\"Shetland Health Board\",Calculations!$E$2=\"Western Isles Health Board\",Calculations!$E$2=\"Shetland Islands Local Authority\",Calculations!$E$2=\"Eilean Siar Local Authority\"),OR($F225=1,$F225=5)),0,prem_mort(VALUE(LEFT(Options!$B$14,2)),$C225,$E225,$F225,2016,$I225/10,1,$H225/10,$G225*$H225/10,RateRatios_airpollution!$C225)*10))","v":237.995318822},{"$f":"IF(AND(OR(Calculations!$E$2=\"Orkney Health Board\",Calculations!$E$2=\"Orkney Islands Local Authority\"),$F225=1),0,IF(AND(OR(Calculations!$E$2=\"Shetland Health Board\",Calculations!$E$2=\"Western Isles Health Board\",Calculations!$E$2=\"Shetland Islands Local Authority\",Calculations!$E$2=\"Eilean Siar Local Authority\"),OR($F225=1,$F225=5)),0,prem_mort(VALUE(LEFT(Options!$B$14,2)),$C225,$E225,$F225,2016,$I225/10+$J225/10,1,$H225/10,$G225*$H225/10,RateRatios_airpollution!$C225)*10))","v":237.99258039400002},null,{"$f":"IF(AND(OR(Calculations!$E$2=\"Orkney Health Board\",Calculations!$E$2=\"Orkney Islands Local Authority\"),$F225=1),0,IF(AND(OR(Calculations!$E$2=\"Shetland Health Board\",Calculations!$E$2=\"Western Isles Health Board\",Calculations!$E$2=\"Shetland Islands Local Authority\",Calculations!$E$2=\"Eilean Siar Local Authority\"),OR($F225=1,$F225=5)),0,new_ci(VALUE(LEFT(Options!$B$14,2)),$C225,$E225,$F225,2016,$I225/10,1,$H225/10,$G225*$H225/10,RateRatios_airpollution!$E225)*10))","v":237.995318822},{"$f":"IF(AND(OR(Calculations!$E$2=\"Orkney Health Board\",Calculations!$E$2=\"Orkney Islands Local Authority\"),$F225=1),0,IF(AND(OR(Calculations!$E$2=\"Shetland Health Board\",Calculations!$E$2=\"Western Isles Health Board\",Calculations!$E$2=\"Shetland Islands Local Authority\",Calculations!$E$2=\"Eilean Siar Local Authority\"),OR($F225=1,$F225=5)),0,new_ci(VALUE(LEFT(Options!$B$14,2)),$C225,$E225,$F225,2016,$I225/10+$J225/10,1,$H225/10,$G225*$H225/10,RateRatios_airpollution!$E225)*10))","v":237.99406874799999},{"$f":"IF(AND(OR(Calculations!$E$2=\"Orkney Health Board\",Calculations!$E$2=\"Orkney Islands Local Authority\"),$F225=1),0,IF(AND(OR(Calculations!$E$2=\"Shetland Health Board\",Calculations!$E$2=\"Western Isles Health Board\",Calculations!$E$2=\"Shetland Islands Local Authority\",Calculations!$E$2=\"Eilean Siar Local Authority\"),OR($F225=1,$F225=5)),0,new_yllv2(VALUE(LEFT(Options!$B$14,2)),$C225,$D225,$E225,$F225,2016,$I225/10,1,$H225/10,$G225*$H225/10,RateRatios_airpollution!$E225)*10))","v":4076.8605254070003},{"$f":"IF(AND(OR(Calculations!$E$2=\"Orkney Health Board\",Calculations!$E$2=\"Orkney Islands Local Authority\"),$F225=1),0,IF(AND(OR(Calculations!$E$2=\"Shetland Health Board\",Calculations!$E$2=\"Western Isles Health Board\",Calculations!$E$2=\"Shetland Islands Local Authority\",Calculations!$E$2=\"Eilean Siar Local Authority\"),OR($F225=1,$F225=5)),0,new_yllv2(VALUE(LEFT(Options!$B$14,2)),$C225,$D225,$E225,$F225,2016,$I225/10+$J225/10,1,$H225/10,$G225*$H225/10,RateRatios_airpollution!$E225)*10))","v":4076.8391116349999},{"$f":"IF(AND(OR(Calculations!$E$2=\"Orkney Health Board\",Calculations!$E$2=\"Orkney Islands Local Authority\"),$F225=1),0,IF(AND(OR(Calculations!$E$2=\"Shetland Health Board\",Calculations!$E$2=\"Western Isles Health Board\",Calculations!$E$2=\"Shetland Islands Local Authority\",Calculations!$E$2=\"Eilean Siar Local Authority\"),OR($F225=1,$F225=5)),0,hosp_count(VALUE(LEFT(Options!$B$14,2)),$C225,$E225,$F225,2016,$I225/10,1,$H225/10,$G225*$H225/10, RateRatios_airpollution!$F225, RateRatios_airpollution!$E225)*10))","v":9216.1471731250003},{"$f":"IF(AND(OR(Calculations!$E$2=\"Orkney Health Board\",Calculations!$E$2=\"Orkney Islands Local Authority\"),$F225=1),0,IF(AND(OR(Calculations!$E$2=\"Shetland Health Board\",Calculations!$E$2=\"Western Isles Health Board\",Calculations!$E$2=\"Shetland Islands Local Authority\",Calculations!$E$2=\"Eilean Siar Local Authority\"),OR($F225=1,$F225=5)),0,hosp_count(VALUE(LEFT(Options!$B$14,2)),$C225,$E225,$F225,2016,$I225/10+$J225/10,1,$H225/10,$G225*$H225/10, RateRatios_airpollution!$F225, RateRatios_airpollution!$E225)*10))","v":9216.1471731250003},{"$f":"IF(AND(OR(Calculations!$E$2=\"Orkney Health Board\",Calculations!$E$2=\"Orkney Islands Local Authority\"),$F225=1),0,IF(AND(OR(Calculations!$E$2=\"Shetland Health Board\",Calculations!$E$2=\"Western Isles Health Board\",Calculations!$E$2=\"Shetland Islands Local Authority\",Calculations!$E$2=\"Eilean Siar Local Authority\"),OR($F225=1,$F225=5)),0,prem_mort(VALUE(LEFT(Options!$B$14,2)),$C225,$E225,$F225,2016,$I225/10,1,$H225/10,$G225*$H225/10,RateRatios_airpollution!$E225)*10))","v":237.995318822},{"$f":"IF(AND(OR(Calculations!$E$2=\"Orkney Health Board\",Calculations!$E$2=\"Orkney Islands Local Authority\"),$F225=1),0,IF(AND(OR(Calculations!$E$2=\"Shetland Health Board\",Calculations!$E$2=\"Western Isles Health Board\",Calculations!$E$2=\"Shetland Islands Local Authority\",Calculations!$E$2=\"Eilean Siar Local Authority\"),OR($F225=1,$F225=5)),0,prem_mort(VALUE(LEFT(Options!$B$14,2)),$C225,$E225,$F225,2016,$I225/10+$J225/10,1,$H225/10,$G225*$H225/10,RateRatios_airpollution!$E225)*10))","v":237.99406874799999},237.995318822,237.94137179100002,4076.8605254070003,4075.936412603,9216.1471731250003,9214.0053152200016,237.995318822,237.94137179100002,704.83716999940771,704.67740268613409,12073.862836601907,12071.126022042883,27294.163280000594,27287.820041521063,704.83716999940771,704.67740268613409,3876604.4349967423,3875725.7147737374,66406245.601310492,66391193.121235855,150117898.04000327,150083010.22836584,3876604.4349967423,3875725.7147737374,5500]
[null,"Female 70-74",71.938164,86.248159999999999,"female",5,1,{"$f":"HLOOKUP(Calculations!$E$2,'Population 2016'!$C$3:$BC$249,'Population 2016'!BD226,FALSE)","v":25722},0,{"$f":"HLOOKUP(Calculations!$E$2,Pop2016_in_settlements!$C$3:$BC$249,Pop2016_in_settlements!$BD226,FALSE)","v":13535},{"$f":"IF(AND(OR(Calculations!$E$2=\"Orkney Health Board\",Calculations!$E$2=\"Orkney Islands Local Authority\"),$F226=1),0,IF(AND(OR(Calculations!$E$2=\"Shetland Health Board\",Calculations!$E$2=\"Western Isles Health Board\",Calculations!$E$2=\"Shetland Islands Local Authority\",Calculations!$E$2=\"Eilean Siar Local Authority\"),OR($F226=1,$F226=5)),0,new_ci(VALUE(LEFT(Options!$B$14,2)),$C226,$E226,$F226,2016,$I226/10,1,$H226/10,$G226*$H226/10,RateRatios_accidents!$B$5)*10))","v":273.93861579500003},{"$f":"IF(AND(OR(Calculations!$E$2=\"Orkney Health Board\",Calculations!$E$2=\"Orkney Islands Local Authority\"),$F226=1),0,IF(AND(OR(Calculations!$E$2=\"Shetland Health Board\",Calculations!$E$2=\"Western Isles Health Board\",Calculations!$E$2=\"Shetland Islands Local Authority\",Calculations!$E$2=\"Eilean Siar Local Authority\"),OR($F226=1,$F226=5)),0,new_ci(VALUE(LEFT(Options!$B$14,2)),$C226,$E226,$F226,2016,$I226/10+$J226/10,1,$H226/10,$G226*$H226/10,RateRatios_accidents!$B$5)*10))","v":273.88126529300001},{"$f":"IF(AND(OR(Calculations!$E$2=\"Orkney Health Board\",Calculations!$E$2=\"Orkney Islands Local Authority\"),$F226=1),0,IF(AND(OR(Calculations!$E$2=\"Shetland Health Board\",Calculations!$E$2=\"Western Isles Health Board\",Calculations!$E$2=\"Shetland Islands Local Authority\",Calculations!$E$2=\"Eilean Siar Local Authority\"),OR($F226=1,$F226=5)),0,new_yllv2(VALUE(LEFT(Options!$B$14,2)),$C226,$D226,$E226,$F226,2016,$I226/10,1,$H226/10,$G226*$H226/10,RateRatios_accidents!$B$5)*10))","v":3646.1218804769996},{"$f":"IF(AND(OR(Calculations!$E$2=\"Orkney Health Board\",Calculations!$E$2=\"Orkney Islands Local Authority\"),$F226=1),0,IF(AND(OR(Calculations!$E$2=\"Shetland Health Board\",Calculations!$E$2=\"Western Isles Health Board\",Calculations!$E$2=\"Shetland Islands Local Authority\",Calculations!$E$2=\"Eilean Siar Local Authority\"),OR($F226=1,$F226=5)),0,new_yllv2(VALUE(LEFT(Options!$B$14,2)),$C226,$D226,$E226,$F226,2016,$I226/10+$J226/10,1,$H226/10,$G226*$H226/10,RateRatios_accidents!$B$5)*10))","v":3645.358545525},{"$f":"IF(AND(OR(Calculations!$E$2=\"Orkney Health Board\",Calculations!$E$2=\"Orkney Islands Local Authority\"),$F226=1),0,IF(AND(OR(Calculations!$E$2=\"Shetland Health Board\",Calculations!$E$2=\"Western Isles Health Board\",Calculations!$E$2=\"Shetland Islands Local Authority\",Calculations!$E$2=\"Eilean Siar Local Authority\"),OR($F226=1,$F226=5)),0,hosp_count(VALUE(LEFT(Options!$B$14,2)),$C226,$E226,$F226,2016,$I226/10,1,$H226/10,$G226*$H226/10, RateRatios_accidents!$B$4, RateRatios_accidents!$B$5)*10))","v":7936.35734486},{"$f":"IF(AND(OR(Calculations!$E$2=\"Orkney Health Board\",Calculations!$E$2=\"Orkney Islands Local Authority\"),$F226=1),0,IF(AND(OR(Calculations!$E$2=\"Shetland Health Board\",Calculations!$E$2=\"Western Isles Health Board\",Calculations!$E$2=\"Shetland Islands Local Authority\",Calculations!$E$2=\"Eilean Siar Local Authority\"),OR($F226=1,$F226=5)),0,hosp_count(VALUE(LEFT(Options!$B$14,2)),$C226,$E226,$F226,2016,$I226/10+$J226/10,1,$H226/10,$G226*$H226/10, RateRatios_accidents!$B$4, RateRatios_accidents!$B$5)*10))","v":7934.6868903510003},{"$f":"IF(AND(OR(Calculations!$E$2=\"Orkney Health Board\",Calculations!$E$2=\"Orkney Islands Local Authority\"),$F226=1),0,IF(AND(OR(Calculations!$E$2=\"Shetland Health Board\",Calculations!$E$2=\"Western Isles Health Board\",Calculations!$E$2=\"Shetland Islands Local Authority\",Calculations!$E$2=\"Eilean Siar Local Authority\"),OR($F226=1,$F226=5)),0,prem_mort(VALUE(LEFT(Options!$B$14,2)),$C226,$E226,$F226,2016,$I226/10,1,$H226/10,$G226*$H226/10,RateRatios_accidents!$B$5)*10))","v":273.93861579500003},{"$f":"IF(AND(OR(Calculations!$E$2=\"Orkney Health Board\",Calculations!$E$2=\"Orkney Islands Local Authority\"),$F226=1),0,IF(AND(OR(Calculations!$E$2=\"Shetland Health Board\",Calculations!$E$2=\"Western Isles Health Board\",Calculations!$E$2=\"Shetland Islands Local Authority\",Calculations!$E$2=\"Eilean Siar Local Authority\"),OR($F226=1,$F226=5)),0,prem_mort(VALUE(LEFT(Options!$B$14,2)),$C226,$E226,$F226,2016,$I226/10+$J226/10,1,$H226/10,$G226*$H226/10,RateRatios_accidents!$B$5)*10))","v":273.88126529300001},null,{"$f":"IF(AND(OR(Calculations!$E$2=\"Orkney Health Board\",Calculations!$E$2=\"Orkney Islands Local Authority\"),$F226=1),0,IF(AND(OR(Calculations!$E$2=\"Shetland Health Board\",Calculations!$E$2=\"Western Isles Health Board\",Calculations!$E$2=\"Shetland Islands Local Authority\",Calculations!$E$2=\"Eilean Siar Local Authority\"),OR($F226=1,$F226=5)),0,new_ci(VALUE(LEFT(Options!$B$14,2)),$C226,$E226,$F226,2016,$I226/10,1,$H226/10,$G226*$H226/10,RateRatios_airpollution!$C226)*10))","v":273.93861579500003},{"$f":"IF(AND(OR(Calculations!$E$2=\"Orkney Health Board\",Calculations!$E$2=\"Orkney Islands Local Authority\"),$F226=1),0,IF(AND(OR(Calculations!$E$2=\"Shetland Health Board\",Calculations!$E$2=\"Western Isles Health Board\",Calculations!$E$2=\"Shetland Islands Local Authority\",Calculations!$E$2=\"Eilean Siar Local Authority\"),OR($F226=1,$F226=5)),0,new_ci(VALUE(LEFT(Options!$B$14,2)),$C226,$E226,$F226,2016,$I226/10+$J226/10,1,$H226/10,$G226*$H226/10,RateRatios_airpollution!$C226)*10))","v":273.93550951200001},{"$f":"IF(AND(OR(Calculations!$E$2=\"Orkney Health Board\",Calculations!$E$2=\"Orkney Islands Local Authority\"),$F226=1),0,IF(AND(OR(Calculations!$E$2=\"Shetland Health Board\",Calculations!$E$2=\"Western Isles Health Board\",Calculations!$E$2=\"Shetland Islands Local Authority\",Calculations!$E$2=\"Eilean Siar Local Authority\"),OR($F226=1,$F226=5)),0,new_yllv2(VALUE(LEFT(Options!$B$14,2)),$C226,$D226,$E226,$F226,2016,$I226/10,1,$H226/10,$G226*$H226/10,RateRatios_airpollution!$C226)*10))","v":3646.1218804769996},{"$f":"IF(AND(OR(Calculations!$E$2=\"Orkney Health Board\",Calculations!$E$2=\"Orkney Islands Local Authority\"),$F226=1),0,IF(AND(OR(Calculations!$E$2=\"Shetland Health Board\",Calculations!$E$2=\"Western Isles Health Board\",Calculations!$E$2=\"Shetland Islands Local Authority\",Calculations!$E$2=\"Eilean Siar Local Authority\"),OR($F226=1,$F226=5)),0,new_yllv2(VALUE(LEFT(Options!$B$14,2)),$C226,$D226,$E226,$F226,2016,$I226/10+$J226/10,1,$H226/10,$G226*$H226/10,RateRatios_airpollution!$C226)*10))","v":3646.080535863},{"$f":"IF(AND(OR(Calculations!$E$2=\"Orkney Health Board\",Calculations!$E$2=\"Orkney Islands Local Authority\"),$F226=1),0,IF(AND(OR(Calculations!$E$2=\"Shetland Health Board\",Calculations!$E$2=\"Western Isles Health Board\",Calculations!$E$2=\"Shetland Islands Local Authority\",Calculations!$E$2=\"Eilean Siar Local Authority\"),OR($F226=1,$F226=5)),0,hosp_count(VALUE(LEFT(Options!$B$14,2)),$C226,$E226,$F226,2016,$I226/10,1,$H226/10,$G226*$H226/10, RateRatios_airpollution!$D226, RateRatios_airpollution!$C226)*10))","v":7936.35734486},{"$f":"IF(AND(OR(Calculations!$E$2=\"Orkney Health Board\",Calculations!$E$2=\"Orkney Islands Local Authority\"),$F226=1),0,IF(AND(OR(Calculations!$E$2=\"Shetland Health Board\",Calculations!$E$2=\"Western Isles Health Board\",Calculations!$E$2=\"Shetland Islands Local Authority\",Calculations!$E$2=\"Eilean Siar Local Authority\"),OR($F226=1,$F226=5)),0,hosp_count(VALUE(LEFT(Options!$B$14,2)),$C226,$E226,$F226,2016,$I226/10+$J226/10,1,$H226/10,$G226*$H226/10, RateRatios_airpollution!$D226, RateRatios_airpollution!$C226)*10))","v":7936.1868539389998},{"$f":"IF(AND(OR(Calculations!$E$2=\"Orkney Health Board\",Calculations!$E$2=\"Orkney Islands Local Authority\"),$F226=1),0,IF(AND(OR(Calculations!$E$2=\"Shetland Health Board\",Calculations!$E$2=\"Western Isles Health Board\",Calculations!$E$2=\"Shetland Islands Local Authority\",Calculations!$E$2=\"Eilean Siar Local Authority\"),OR($F226=1,$F226=5)),0,prem_mort(VALUE(LEFT(Options!$B$14,2)),$C226,$E226,$F226,2016,$I226/10,1,$H226/10,$G226*$H226/10,RateRatios_airpollution!$C226)*10))","v":273.93861579500003},{"$f":"IF(AND(OR(Calculations!$E$2=\"Orkney Health Board\",Calculations!$E$2=\"Orkney Islands Local Authority\"),$F226=1),0,IF(AND(OR(Calculations!$E$2=\"Shetland Health Board\",Calculations!$E$2=\"Western Isles Health Board\",Calculations!$E$2=\"Shetland Islands Local Authority\",Calculations!$E$2=\"Eilean Siar Local Authority\"),OR($F226=1,$F226=5)),0,prem_mort(VALUE(LEFT(Options!$B$14,2)),$C226,$E226,$F226,2016,$I226/10+$J226/10,1,$H226/10,$G226*$H226/10,RateRatios_airpollution!$C226)*10))","v":273.93550951200001},null,{"$f":"IF(AND(OR(Calculations!$E$2=\"Orkney Health Board\",Calculations!$E$2=\"Orkney Islands Local Authority\"),$F226=1),0,IF(AND(OR(Calculations!$E$2=\"Shetland Health Board\",Calculations!$E$2=\"Western Isles Health Board\",Calculations!$E$2=\"Shetland Islands Local Authority\",Calculations!$E$2=\"Eilean Siar Local Authority\"),OR($F226=1,$F226=5)),0,new_ci(VALUE(LEFT(Options!$B$14,2)),$C226,$E226,$F226,2016,$I226/10,1,$H226/10,$G226*$H226/10,RateRatios_airpollution!$E226)*10))","v":273.93861579500003},{"$f":"IF(AND(OR(Calculations!$E$2=\"Orkney Health Board\",Calculations!$E$2=\"Orkney Islands Local Authority\"),$F226=1),0,IF(AND(OR(Calculations!$E$2=\"Shetland Health Board\",Calculations!$E$2=\"Western Isles Health Board\",Calculations!$E$2=\"Shetland Islands Local Authority\",Calculations!$E$2=\"Eilean Siar Local Authority\"),OR($F226=1,$F226=5)),0,new_ci(VALUE(LEFT(Options!$B$14,2)),$C226,$E226,$F226,2016,$I226/10+$J226/10,1,$H226/10,$G226*$H226/10,RateRatios_airpollution!$E226)*10))","v":273.93719867999999},{"$f":"IF(AND(OR(Calculations!$E$2=\"Orkney Health Board\",Calculations!$E$2=\"Orkney Islands Local Authority\"),$F226=1),0,IF(AND(OR(Calculations!$E$2=\"Shetland Health Board\",Calculations!$E$2=\"Western Isles Health Board\",Calculations!$E$2=\"Shetland Islands Local Authority\",Calculations!$E$2=\"Eilean Siar Local Authority\"),OR($F226=1,$F226=5)),0,new_yllv2(VALUE(LEFT(Options!$B$14,2)),$C226,$D226,$E226,$F226,2016,$I226/10,1,$H226/10,$G226*$H226/10,RateRatios_airpollution!$E226)*10))","v":3646.1218804769996},{"$f":"IF(AND(OR(Calculations!$E$2=\"Orkney Health Board\",Calculations!$E$2=\"Orkney Islands Local Authority\"),$F226=1),0,IF(AND(OR(Calculations!$E$2=\"Shetland Health Board\",Calculations!$E$2=\"Western Isles Health Board\",Calculations!$E$2=\"Shetland Islands Local Authority\",Calculations!$E$2=\"Eilean Siar Local Authority\"),OR($F226=1,$F226=5)),0,new_yllv2(VALUE(LEFT(Options!$B$14,2)),$C226,$D226,$E226,$F226,2016,$I226/10+$J226/10,1,$H226/10,$G226*$H226/10,RateRatios_airpollution!$E226)*10))","v":3646.1030186819999},{"$f":"IF(AND(OR(Calculations!$E$2=\"Orkney Health Board\",Calculations!$E$2=\"Orkney Islands Local Authority\"),$F226=1),0,IF(AND(OR(Calculations!$E$2=\"Shetland Health Board\",Calculations!$E$2=\"Western Isles Health Board\",Calculations!$E$2=\"Shetland Islands Local Authority\",Calculations!$E$2=\"Eilean Siar Local Authority\"),OR($F226=1,$F226=5)),0,hosp_count(VALUE(LEFT(Options!$B$14,2)),$C226,$E226,$F226,2016,$I226/10,1,$H226/10,$G226*$H226/10, RateRatios_airpollution!$F226, RateRatios_airpollution!$E226)*10))","v":7936.35734486},{"$f":"IF(AND(OR(Calculations!$E$2=\"Orkney Health Board\",Calculations!$E$2=\"Orkney Islands Local Authority\"),$F226=1),0,IF(AND(OR(Calculations!$E$2=\"Shetland Health Board\",Calculations!$E$2=\"Western Isles Health Board\",Calculations!$E$2=\"Shetland Islands Local Authority\",Calculations!$E$2=\"Eilean Siar Local Authority\"),OR($F226=1,$F226=5)),0,hosp_count(VALUE(LEFT(Options!$B$14,2)),$C226,$E226,$F226,2016,$I226/10+$J226/10,1,$H226/10,$G226*$H226/10, RateRatios_airpollution!$F226, RateRatios_airpollution!$E226)*10))","v":7936.35734486},{"$f":"IF(AND(OR(Calculations!$E$2=\"Orkney Health Board\",Calculations!$E$2=\"Orkney Islands Local Authority\"),$F226=1),0,IF(AND(OR(Calculations!$E$2=\"Shetland Health Board\",Calculations!$E$2=\"Western Isles Health Board\",Calculations!$E$2=\"Shetland Islands Local Authority\",Calculations!$E$2=\"Eilean Siar Local Authority\"),OR($F226=1,$F226=5)),0,prem_mort(VALUE(LEFT(Options!$B$14,2)),$C226,$E226,$F226,2016,$I226/10,1,$H226/10,$G226*$H226/10,RateRatios_airpollution!$E226)*10))","v":273.93861579500003},{"$f":"IF(AND(OR(Calculations!$E$2=\"Orkney Health Board\",Calculations!$E$2=\"Orkney Islands Local Authority\"),$F226=1),0,IF(AND(OR(Calculations!$E$2=\"Shetland Health Board\",Calculations!$E$2=\"Western Isles Health Board\",Calculations!$E$2=\"Shetland Islands Local Authority\",Calculations!$E$2=\"Eilean Siar Local Authority\"),OR($F226=1,$F226=5)),0,prem_mort(VALUE(LEFT(Options!$B$14,2)),$C226,$E226,$F226,2016,$I226/10+$J226/10,1,$H226/10,$G226*$H226/10,RateRatios_airpollution!$E226)*10))","v":273.93719867999999},273.93861579500003,273.87674189499995,3646.1218804769996,3645.2983391160005,7936.35734486,7934.5163994300001,273.93861579500003,273.87674189499995,1064.9973400007777,1064.7567914431224,14175.110335421039,14171.908635082811,30854.355590000774,30847.19850489853,1064.9973400007777,1064.7567914431224,5324986.7000038885,5323783.9572156118,70875551.677105188,70859543.175414056,154271777.95000386,154235992.52449265,5324986.7000038885,5323783.9572156118,5000]
[null,"Female 75-79",76.942824999999999,87.812830000000005,"female",5,1,{"$f":"HLOOKUP(Calculations!$E$2,'Population 2016'!$C$3:$BC$249,'Population 2016'!BD227,FALSE)","v":20290},0,{"$f":"HLOOKUP(Calculations!$E$2,Pop2016_in_settlements!$C$3:$BC$249,Pop2016_in_settlements!$BD227,FALSE)","v":10871},{"$f":"IF(AND(OR(Calculations!$E$2=\"Orkney Health Board\",Calculations!$E$2=\"Orkney Islands Local Authority\"),$F227=1),0,IF(AND(OR(Calculations!$E$2=\"Shetland Health Board\",Calculations!$E$2=\"Western Isles Health Board\",Calculations!$E$2=\"Shetland Islands Local Authority\",Calculations!$E$2=\"Eilean Siar Local Authority\"),OR($F227=1,$F227=5)),0,new_ci(VALUE(LEFT(Options!$B$14,2)),$C227,$E227,$F227,2016,$I227/10,1,$H227/10,$G227*$H227/10,RateRatios_accidents!$B$5)*10))","v":329.81088215200003},{"$f":"IF(AND(OR(Calculations!$E$2=\"Orkney Health Board\",Calculations!$E$2=\"Orkney Islands Local Authority\"),$F227=1),0,IF(AND(OR(Calculations!$E$2=\"Shetland Health Board\",Calculations!$E$2=\"Western Isles Health Board\",Calculations!$E$2=\"Shetland Islands Local Authority\",Calculations!$E$2=\"Eilean Siar Local Authority\"),OR($F227=1,$F227=5)),0,new_ci(VALUE(LEFT(Options!$B$14,2)),$C227,$E227,$F227,2016,$I227/10+$J227/10,1,$H227/10,$G227*$H227/10,RateRatios_accidents!$B$5)*10))","v":329.74077833400003},{"$f":"IF(AND(OR(Calculations!$E$2=\"Orkney Health Board\",Calculations!$E$2=\"Orkney Islands Local Authority\"),$F227=1),0,IF(AND(OR(Calculations!$E$2=\"Shetland Health Board\",Calculations!$E$2=\"Western Isles Health Board\",Calculations!$E$2=\"Shetland Islands Local Authority\",Calculations!$E$2=\"Eilean Siar Local Authority\"),OR($F227=1,$F227=5)),0,new_yllv2(VALUE(LEFT(Options!$B$14,2)),$C227,$D227,$E227,$F227,2016,$I227/10,1,$H227/10,$G227*$H227/10,RateRatios_accidents!$B$5)*10))","v":3255.2350558950002},{"$f":"IF(AND(OR(Calculations!$E$2=\"Orkney Health Board\",Calculations!$E$2=\"Orkney Islands Local Authority\"),$F227=1),0,IF(AND(OR(Calculations!$E$2=\"Shetland Health Board\",Calculations!$E$2=\"Western Isles Health Board\",Calculations!$E$2=\"Shetland Islands Local Authority\",Calculations!$E$2=\"Eilean Siar Local Authority\"),OR($F227=1,$F227=5)),0,new_yllv2(VALUE(LEFT(Options!$B$14,2)),$C227,$D227,$E227,$F227,2016,$I227/10+$J227/10,1,$H227/10,$G227*$H227/10,RateRatios_accidents!$B$5)*10))","v":3254.54313086},{"$f":"IF(AND(OR(Calculations!$E$2=\"Orkney Health Board\",Calculations!$E$2=\"Orkney Islands Local Authority\"),$F227=1),0,IF(AND(OR(Calculations!$E$2=\"Shetland Health Board\",Calculations!$E$2=\"Western Isles Health Board\",Calculations!$E$2=\"Shetland Islands Local Authority\",Calculations!$E$2=\"Eilean Siar Local Authority\"),OR($F227=1,$F227=5)),0,hosp_count(VALUE(LEFT(Options!$B$14,2)),$C227,$E227,$F227,2016,$I227/10,1,$H227/10,$G227*$H227/10, RateRatios_accidents!$B$4, RateRatios_accidents!$B$5)*10))","v":7100.1902926740004},{"$f":"IF(AND(OR(Calculations!$E$2=\"Orkney Health Board\",Calculations!$E$2=\"Orkney Islands Local Authority\"),$F227=1),0,IF(AND(OR(Calculations!$E$2=\"Shetland Health Board\",Calculations!$E$2=\"Western Isles Health Board\",Calculations!$E$2=\"Shetland Islands Local Authority\",Calculations!$E$2=\"Eilean Siar Local Authority\"),OR($F227=1,$F227=5)),0,hosp_count(VALUE(LEFT(Options!$B$14,2)),$C227,$E227,$F227,2016,$I227/10+$J227/10,1,$H227/10,$G227*$H227/10, RateRatios_accidents!$B$4, RateRatios_accidents!$B$5)*10))","v":7098.6686331459996},{"$f":"IF(AND(OR(Calculations!$E$2=\"Orkney Health Board\",Calculations!$E$2=\"Orkney Islands Local Authority\"),$F227=1),0,IF(AND(OR(Calculations!$E$2=\"Shetland Health Board\",Calculations!$E$2=\"Western Isles Health Board\",Calculations!$E$2=\"Shetland Islands Local Authority\",Calculations!$E$2=\"Eilean Siar Local Authority\"),OR($F227=1,$F227=5)),0,prem_mort(VALUE(LEFT(Options!$B$14,2)),$C227,$E227,$F227,2016,$I227/10,1,$H227/10,$G227*$H227/10,RateRatios_accidents!$B$5)*10))","v":0},{"$f":"IF(AND(OR(Calculations!$E$2=\"Orkney Health Board\",Calculations!$E$2=\"Orkney Islands Local Authority\"),$F227=1),0,IF(AND(OR(Calculations!$E$2=\"Shetland Health Board\",Calculations!$E$2=\"Western Isles Health Board\",Calculations!$E$2=\"Shetland Islands Local Authority\",Calculations!$E$2=\"Eilean Siar Local Authority\"),OR($F227=1,$F227=5)),0,prem_mort(VALUE(LEFT(Options!$B$14,2)),$C227,$E227,$F227,2016,$I227/10+$J227/10,1,$H227/10,$G227*$H227/10,RateRatios_accidents!$B$5)*10))","v":0},null,{"$f":"IF(AND(OR(Calculations!$E$2=\"Orkney Health Board\",Calculations!$E$2=\"Orkney Islands Local Authority\"),$F227=1),0,IF(AND(OR(Calculations!$E$2=\"Shetland Health Board\",Calculations!$E$2=\"Western Isles Health Board\",Calculations!$E$2=\"Shetland Islands Local Authority\",Calculations!$E$2=\"Eilean Siar Local Authority\"),OR($F227=1,$F227=5)),0,new_ci(VALUE(LEFT(Options!$B$14,2)),$C227,$E227,$F227,2016,$I227/10,1,$H227/10,$G227*$H227/10,RateRatios_airpollution!$C227)*10))","v":329.81088215200003},{"$f":"IF(AND(OR(Calculations!$E$2=\"Orkney Health Board\",Calculations!$E$2=\"Orkney Islands Local Authority\"),$F227=1),0,IF(AND(OR(Calculations!$E$2=\"Shetland Health Board\",Calculations!$E$2=\"Western Isles Health Board\",Calculations!$E$2=\"Shetland Islands Local Authority\",Calculations!$E$2=\"Eilean Siar Local Authority\"),OR($F227=1,$F227=5)),0,new_ci(VALUE(LEFT(Options!$B$14,2)),$C227,$E227,$F227,2016,$I227/10+$J227/10,1,$H227/10,$G227*$H227/10,RateRatios_airpollution!$C227)*10))","v":329.80701316299997},{"$f":"IF(AND(OR(Calculations!$E$2=\"Orkney Health Board\",Calculations!$E$2=\"Orkney Islands Local Authority\"),$F227=1),0,IF(AND(OR(Calculations!$E$2=\"Shetland Health Board\",Calculations!$E$2=\"Western Isles Health Board\",Calculations!$E$2=\"Shetland Islands Local Authority\",Calculations!$E$2=\"Eilean Siar Local Authority\"),OR($F227=1,$F227=5)),0,new_yllv2(VALUE(LEFT(Options!$B$14,2)),$C227,$D227,$E227,$F227,2016,$I227/10,1,$H227/10,$G227*$H227/10,RateRatios_airpollution!$C227)*10))","v":3255.2350558950002},{"$f":"IF(AND(OR(Calculations!$E$2=\"Orkney Health Board\",Calculations!$E$2=\"Orkney Islands Local Authority\"),$F227=1),0,IF(AND(OR(Calculations!$E$2=\"Shetland Health Board\",Calculations!$E$2=\"Western Isles Health Board\",Calculations!$E$2=\"Shetland Islands Local Authority\",Calculations!$E$2=\"Eilean Siar Local Authority\"),OR($F227=1,$F227=5)),0,new_yllv2(VALUE(LEFT(Options!$B$14,2)),$C227,$D227,$E227,$F227,2016,$I227/10+$J227/10,1,$H227/10,$G227*$H227/10,RateRatios_airpollution!$C227)*10))","v":3255.1968689539999},{"$f":"IF(AND(OR(Calculations!$E$2=\"Orkney Health Board\",Calculations!$E$2=\"Orkney Islands Local Authority\"),$F227=1),0,IF(AND(OR(Calculations!$E$2=\"Shetland Health Board\",Calculations!$E$2=\"Western Isles Health Board\",Calculations!$E$2=\"Shetland Islands Local Authority\",Calculations!$E$2=\"Eilean Siar Local Authority\"),OR($F227=1,$F227=5)),0,hosp_count(VALUE(LEFT(Options!$B$14,2)),$C227,$E227,$F227,2016,$I227/10,1,$H227/10,$G227*$H227/10, RateRatios_airpollution!$D227, RateRatios_airpollution!$C227)*10))","v":7100.1902926740004},{"$f":"IF(AND(OR(Calculations!$E$2=\"Orkney Health Board\",Calculations!$E$2=\"Orkney Islands Local Authority\"),$F227=1),0,IF(AND(OR(Calculations!$E$2=\"Shetland Health Board\",Calculations!$E$2=\"Western Isles Health Board\",Calculations!$E$2=\"Shetland Islands Local Authority\",Calculations!$E$2=\"Eilean Siar Local Authority\"),OR($F227=1,$F227=5)),0,hosp_count(VALUE(LEFT(Options!$B$14,2)),$C227,$E227,$F227,2016,$I227/10+$J227/10,1,$H227/10,$G227*$H227/10, RateRatios_airpollution!$D227, RateRatios_airpollution!$C227)*10))","v":7100.0320467880001},{"$f":"IF(AND(OR(Calculations!$E$2=\"Orkney Health Board\",Calculations!$E$2=\"Orkney Islands Local Authority\"),$F227=1),0,IF(AND(OR(Calculations!$E$2=\"Shetland Health Board\",Calculations!$E$2=\"Western Isles Health Board\",Calculations!$E$2=\"Shetland Islands Local Authority\",Calculations!$E$2=\"Eilean Siar Local Authority\"),OR($F227=1,$F227=5)),0,prem_mort(VALUE(LEFT(Options!$B$14,2)),$C227,$E227,$F227,2016,$I227/10,1,$H227/10,$G227*$H227/10,RateRatios_airpollution!$C227)*10))","v":0},{"$f":"IF(AND(OR(Calculations!$E$2=\"Orkney Health Board\",Calculations!$E$2=\"Orkney Islands Local Authority\"),$F227=1),0,IF(AND(OR(Calculations!$E$2=\"Shetland Health Board\",Calculations!$E$2=\"Western Isles Health Board\",Calculations!$E$2=\"Shetland Islands Local Authority\",Calculations!$E$2=\"Eilean Siar Local Authority\"),OR($F227=1,$F227=5)),0,prem_mort(VALUE(LEFT(Options!$B$14,2)),$C227,$E227,$F227,2016,$I227/10+$J227/10,1,$H227/10,$G227*$H227/10,RateRatios_airpollution!$C227)*10))","v":0},null,{"$f":"IF(AND(OR(Calculations!$E$2=\"Orkney Health Board\",Calculations!$E$2=\"Orkney Islands Local Authority\"),$F227=1),0,IF(AND(OR(Calculations!$E$2=\"Shetland Health Board\",Calculations!$E$2=\"Western Isles Health Board\",Calculations!$E$2=\"Shetland Islands Local Authority\",Calculations!$E$2=\"Eilean Siar Local Authority\"),OR($F227=1,$F227=5)),0,new_ci(VALUE(LEFT(Options!$B$14,2)),$C227,$E227,$F227,2016,$I227/10,1,$H227/10,$G227*$H227/10,RateRatios_airpollution!$E227)*10))","v":329.81088215200003},{"$f":"IF(AND(OR(Calculations!$E$2=\"Orkney Health Board\",Calculations!$E$2=\"Orkney Islands Local Authority\"),$F227=1),0,IF(AND(OR(Calculations!$E$2=\"Shetland Health Board\",Calculations!$E$2=\"Western Isles Health Board\",Calculations!$E$2=\"Shetland Islands Local Authority\",Calculations!$E$2=\"Eilean Siar Local Authority\"),OR($F227=1,$F227=5)),0,new_ci(VALUE(LEFT(Options!$B$14,2)),$C227,$E227,$F227,2016,$I227/10+$J227/10,1,$H227/10,$G227*$H227/10,RateRatios_airpollution!$E227)*10))","v":329.80910365600005},{"$f":"IF(AND(OR(Calculations!$E$2=\"Orkney Health Board\",Calculations!$E$2=\"Orkney Islands Local Authority\"),$F227=1),0,IF(AND(OR(Calculations!$E$2=\"Shetland Health Board\",Calculations!$E$2=\"Western Isles Health Board\",Calculations!$E$2=\"Shetland Islands Local Authority\",Calculations!$E$2=\"Eilean Siar Local Authority\"),OR($F227=1,$F227=5)),0,new_yllv2(VALUE(LEFT(Options!$B$14,2)),$C227,$D227,$E227,$F227,2016,$I227/10,1,$H227/10,$G227*$H227/10,RateRatios_airpollution!$E227)*10))","v":3255.2350558950002},{"$f":"IF(AND(OR(Calculations!$E$2=\"Orkney Health Board\",Calculations!$E$2=\"Orkney Islands Local Authority\"),$F227=1),0,IF(AND(OR(Calculations!$E$2=\"Shetland Health Board\",Calculations!$E$2=\"Western Isles Health Board\",Calculations!$E$2=\"Shetland Islands Local Authority\",Calculations!$E$2=\"Eilean Siar Local Authority\"),OR($F227=1,$F227=5)),0,new_yllv2(VALUE(LEFT(Options!$B$14,2)),$C227,$D227,$E227,$F227,2016,$I227/10+$J227/10,1,$H227/10,$G227*$H227/10,RateRatios_airpollution!$E227)*10))","v":3255.21750213},{"$f":"IF(AND(OR(Calculations!$E$2=\"Orkney Health Board\",Calculations!$E$2=\"Orkney Islands Local Authority\"),$F227=1),0,IF(AND(OR(Calculations!$E$2=\"Shetland Health Board\",Calculations!$E$2=\"Western Isles Health Board\",Calculations!$E$2=\"Shetland Islands Local Authority\",Calculations!$E$2=\"Eilean Siar Local Authority\"),OR($F227=1,$F227=5)),0,hosp_count(VALUE(LEFT(Options!$B$14,2)),$C227,$E227,$F227,2016,$I227/10,1,$H227/10,$G227*$H227/10, RateRatios_airpollution!$F227, RateRatios_airpollution!$E227)*10))","v":7100.1902926740004},{"$f":"IF(AND(OR(Calculations!$E$2=\"Orkney Health Board\",Calculations!$E$2=\"Orkney Islands Local Authority\"),$F227=1),0,IF(AND(OR(Calculations!$E$2=\"Shetland Health Board\",Calculations!$E$2=\"Western Isles Health Board\",Calculations!$E$2=\"Shetland Islands Local Authority\",Calculations!$E$2=\"Eilean Siar Local Authority\"),OR($F227=1,$F227=5)),0,hosp_count(VALUE(LEFT(Options!$B$14,2)),$C227,$E227,$F227,2016,$I227/10+$J227/10,1,$H227/10,$G227*$H227/10, RateRatios_airpollution!$F227, RateRatios_airpollution!$E227)*10))","v":7100.1902926740004},{"$f":"IF(AND(OR(Calculations!$E$2=\"Orkney Health Board\",Calculations!$E$2=\"Orkney Islands Local Authority\"),$F227=1),0,IF(AND(OR(Calculations!$E$2=\"Shetland Health Board\",Calculations!$E$2=\"Western Isles Health Board\",Calculations!$E$2=\"Shetland Islands Local Authority\",Calculations!$E$2=\"Eilean Siar Local Authority\"),OR($F227=1,$F227=5)),0,prem_mort(VALUE(LEFT(Options!$B$14,2)),$C227,$E227,$F227,2016,$I227/10,1,$H227/10,$G227*$H227/10,RateRatios_airpollution!$E227)*10))","v":0},{"$f":"IF(AND(OR(Calculations!$E$2=\"Orkney Health Board\",Calculations!$E$2=\"Orkney Islands Local Authority\"),$F227=1),0,IF(AND(OR(Calculations!$E$2=\"Shetland Health Board\",Calculations!$E$2=\"Western Isles Health Board\",Calculations!$E$2=\"Shetland Islands Local Authority\",Calculations!$E$2=\"Eilean Siar Local Authority\"),OR($F227=1,$F227=5)),0,prem_mort(VALUE(LEFT(Options!$B$14,2)),$C227,$E227,$F227,2016,$I227/10+$J227/10,1,$H227/10,$G227*$H227/10,RateRatios_airpollution!$E227)*10))","v":0},329.81088215200003,329.73513084899997,3255.2350558950002,3254.4873901539995,7100.1902926740004,7098.5103872599993,0,0,1625.4848800000002,1625.111536959093,16043.543893026123,16039.858995337601,34993.545060000004,34985.265585312962,0,0,6501939.5200000005,6500446.1478363723,64174175.572104491,64159435.981350407,139974180.24000001,139941062.34125185,0,0,4000]
[null,"Female 80-84",81.856712000000002,89.736710000000002,"female",5,1,{"$f":"HLOOKUP(Calculations!$E$2,'Population 2016'!$C$3:$BC$249,'Population 2016'!BD228,FALSE)","v":15640},0,{"$f":"HLOOKUP(Calculations!$E$2,Pop2016_in_settlements!$C$3:$BC$249,Pop2016_in_settlements!$BD228,FALSE)","v":8297},{"$f":"IF(AND(OR(Calculations!$E$2=\"Orkney Health Board\",Calculations!$E$2=\"Orkney Islands Local Authority\"),$F228=1),0,IF(AND(OR(Calculations!$E$2=\"Shetland Health Board\",Calculations!$E$2=\"Western Isles Health Board\",Calculations!$E$2=\"Shetland Islands Local Authority\",Calculations!$E$2=\"Eilean Siar Local Authority\"),OR($F228=1,$F228=5)),0,new_ci(VALUE(LEFT(Options!$B$14,2)),$C228,$E228,$F228,2016,$I228/10,1,$H228/10,$G228*$H228/10,RateRatios_accidents!$B$5)*10))","v":384.496045004},{"$f":"IF(AND(OR(Calculations!$E$2=\"Orkney Health Board\",Calculations!$E$2=\"Orkney Islands Local Authority\"),$F228=1),0,IF(AND(OR(Calculations!$E$2=\"Shetland Health Board\",Calculations!$E$2=\"Western Isles Health Board\",Calculations!$E$2=\"Shetland Islands Local Authority\",Calculations!$E$2=\"Eilean Siar Local Authority\"),OR($F228=1,$F228=5)),0,new_ci(VALUE(LEFT(Options!$B$14,2)),$C228,$E228,$F228,2016,$I228/10+$J228/10,1,$H228/10,$G228*$H228/10,RateRatios_accidents!$B$5)*10))","v":384.41546619900004},{"$f":"IF(AND(OR(Calculations!$E$2=\"Orkney Health Board\",Calculations!$E$2=\"Orkney Islands Local Authority\"),$F228=1),0,IF(AND(OR(Calculations!$E$2=\"Shetland Health Board\",Calculations!$E$2=\"Western Isles Health Board\",Calculations!$E$2=\"Shetland Islands Local Authority\",Calculations!$E$2=\"Eilean Siar Local Authority\"),OR($F228=1,$F228=5)),0,new_yllv2(VALUE(LEFT(Options!$B$14,2)),$C228,$D228,$E228,$F228,2016,$I228/10,1,$H228/10,$G228*$H228/10,RateRatios_accidents!$B$5)*10))","v":2645.3320206350004},{"$f":"IF(AND(OR(Calculations!$E$2=\"Orkney Health Board\",Calculations!$E$2=\"Orkney Islands Local Authority\"),$F228=1),0,IF(AND(OR(Calculations!$E$2=\"Shetland Health Board\",Calculations!$E$2=\"Western Isles Health Board\",Calculations!$E$2=\"Shetland Islands Local Authority\",Calculations!$E$2=\"Eilean Siar Local Authority\"),OR($F228=1,$F228=5)),0,new_yllv2(VALUE(LEFT(Options!$B$14,2)),$C228,$D228,$E228,$F228,2016,$I228/10+$J228/10,1,$H228/10,$G228*$H228/10,RateRatios_accidents!$B$5)*10))","v":2644.7776386179999},{"$f":"IF(AND(OR(Calculations!$E$2=\"Orkney Health Board\",Calculations!$E$2=\"Orkney Islands Local Authority\"),$F228=1),0,IF(AND(OR(Calculations!$E$2=\"Shetland Health Board\",Calculations!$E$2=\"Western Isles Health Board\",Calculations!$E$2=\"Shetland Islands Local Authority\",Calculations!$E$2=\"Eilean Siar Local Authority\"),OR($F228=1,$F228=5)),0,hosp_count(VALUE(LEFT(Options!$B$14,2)),$C228,$E228,$F228,2016,$I228/10,1,$H228/10,$G228*$H228/10, RateRatios_accidents!$B$4, RateRatios_accidents!$B$5)*10))","v":6193.0491423240001},{"$f":"IF(AND(OR(Calculations!$E$2=\"Orkney Health Board\",Calculations!$E$2=\"Orkney Islands Local Authority\"),$F228=1),0,IF(AND(OR(Calculations!$E$2=\"Shetland Health Board\",Calculations!$E$2=\"Western Isles Health Board\",Calculations!$E$2=\"Shetland Islands Local Authority\",Calculations!$E$2=\"Eilean Siar Local Authority\"),OR($F228=1,$F228=5)),0,hosp_count(VALUE(LEFT(Options!$B$14,2)),$C228,$E228,$F228,2016,$I228/10+$J228/10,1,$H228/10,$G228*$H228/10, RateRatios_accidents!$B$4, RateRatios_accidents!$B$5)*10))","v":6191.7349804940004},{"$f":"IF(AND(OR(Calculations!$E$2=\"Orkney Health Board\",Calculations!$E$2=\"Orkney Islands Local Authority\"),$F228=1),0,IF(AND(OR(Calculations!$E$2=\"Shetland Health Board\",Calculations!$E$2=\"Western Isles Health Board\",Calculations!$E$2=\"Shetland Islands Local Authority\",Calculations!$E$2=\"Eilean Siar Local Authority\"),OR($F228=1,$F228=5)),0,prem_mort(VALUE(LEFT(Options!$B$14,2)),$C228,$E228,$F228,2016,$I228/10,1,$H228/10,$G228*$H228/10,RateRatios_accidents!$B$5)*10))","v":0},{"$f":"IF(AND(OR(Calculations!$E$2=\"Orkney Health Board\",Calculations!$E$2=\"Orkney Islands Local Authority\"),$F228=1),0,IF(AND(OR(Calculations!$E$2=\"Shetland Health Board\",Calculations!$E$2=\"Western Isles Health Board\",Calculations!$E$2=\"Shetland Islands Local Authority\",Calculations!$E$2=\"Eilean Siar Local Authority\"),OR($F228=1,$F228=5)),0,prem_mort(VALUE(LEFT(Options!$B$14,2)),$C228,$E228,$F228,2016,$I228/10+$J228/10,1,$H228/10,$G228*$H228/10,RateRatios_accidents!$B$5)*10))","v":0},null,{"$f":"IF(AND(OR(Calculations!$E$2=\"Orkney Health Board\",Calculations!$E$2=\"Orkney Islands Local Authority\"),$F228=1),0,IF(AND(OR(Calculations!$E$2=\"Shetland Health Board\",Calculations!$E$2=\"Western Isles Health Board\",Calculations!$E$2=\"Shetland Islands Local Authority\",Calculations!$E$2=\"Eilean Siar Local Authority\"),OR($F228=1,$F228=5)),0,new_ci(VALUE(LEFT(Options!$B$14,2)),$C228,$E228,$F228,2016,$I228/10,1,$H228/10,$G228*$H228/10,RateRatios_airpollution!$C228)*10))","v":384.496045004},{"$f":"IF(AND(OR(Calculations!$E$2=\"Orkney Health Board\",Calculations!$E$2=\"Orkney Islands Local Authority\"),$F228=1),0,IF(AND(OR(Calculations!$E$2=\"Shetland Health Board\",Calculations!$E$2=\"Western Isles Health Board\",Calculations!$E$2=\"Shetland Islands Local Authority\",Calculations!$E$2=\"Eilean Siar Local Authority\"),OR($F228=1,$F228=5)),0,new_ci(VALUE(LEFT(Options!$B$14,2)),$C228,$E228,$F228,2016,$I228/10+$J228/10,1,$H228/10,$G228*$H228/10,RateRatios_airpollution!$C228)*10))","v":384.49143933899995},{"$f":"IF(AND(OR(Calculations!$E$2=\"Orkney Health Board\",Calculations!$E$2=\"Orkney Islands Local Authority\"),$F228=1),0,IF(AND(OR(Calculations!$E$2=\"Shetland Health Board\",Calculations!$E$2=\"Western Isles Health Board\",Calculations!$E$2=\"Shetland Islands Local Authority\",Calculations!$E$2=\"Eilean Siar Local Authority\"),OR($F228=1,$F228=5)),0,new_yllv2(VALUE(LEFT(Options!$B$14,2)),$C228,$D228,$E228,$F228,2016,$I228/10,1,$H228/10,$G228*$H228/10,RateRatios_airpollution!$C228)*10))","v":2645.3320206350004},{"$f":"IF(AND(OR(Calculations!$E$2=\"Orkney Health Board\",Calculations!$E$2=\"Orkney Islands Local Authority\"),$F228=1),0,IF(AND(OR(Calculations!$E$2=\"Shetland Health Board\",Calculations!$E$2=\"Western Isles Health Board\",Calculations!$E$2=\"Shetland Islands Local Authority\",Calculations!$E$2=\"Eilean Siar Local Authority\"),OR($F228=1,$F228=5)),0,new_yllv2(VALUE(LEFT(Options!$B$14,2)),$C228,$D228,$E228,$F228,2016,$I228/10+$J228/10,1,$H228/10,$G228*$H228/10,RateRatios_airpollution!$C228)*10))","v":2645.3003336689999},{"$f":"IF(AND(OR(Calculations!$E$2=\"Orkney Health Board\",Calculations!$E$2=\"Orkney Islands Local Authority\"),$F228=1),0,IF(AND(OR(Calculations!$E$2=\"Shetland Health Board\",Calculations!$E$2=\"Western Isles Health Board\",Calculations!$E$2=\"Shetland Islands Local Authority\",Calculations!$E$2=\"Eilean Siar Local Authority\"),OR($F228=1,$F228=5)),0,hosp_count(VALUE(LEFT(Options!$B$14,2)),$C228,$E228,$F228,2016,$I228/10,1,$H228/10,$G228*$H228/10, RateRatios_airpollution!$D228, RateRatios_airpollution!$C228)*10))","v":6193.0491423240001},{"$f":"IF(AND(OR(Calculations!$E$2=\"Orkney Health Board\",Calculations!$E$2=\"Orkney Islands Local Authority\"),$F228=1),0,IF(AND(OR(Calculations!$E$2=\"Shetland Health Board\",Calculations!$E$2=\"Western Isles Health Board\",Calculations!$E$2=\"Shetland Islands Local Authority\",Calculations!$E$2=\"Eilean Siar Local Authority\"),OR($F228=1,$F228=5)),0,hosp_count(VALUE(LEFT(Options!$B$14,2)),$C228,$E228,$F228,2016,$I228/10+$J228/10,1,$H228/10,$G228*$H228/10, RateRatios_airpollution!$D228, RateRatios_airpollution!$C228)*10))","v":6192.9076369890008},{"$f":"IF(AND(OR(Calculations!$E$2=\"Orkney Health Board\",Calculations!$E$2=\"Orkney Islands Local Authority\"),$F228=1),0,IF(AND(OR(Calculations!$E$2=\"Shetland Health Board\",Calculations!$E$2=\"Western Isles Health Board\",Calculations!$E$2=\"Shetland Islands Local Authority\",Calculations!$E$2=\"Eilean Siar Local Authority\"),OR($F228=1,$F228=5)),0,prem_mort(VALUE(LEFT(Options!$B$14,2)),$C228,$E228,$F228,2016,$I228/10,1,$H228/10,$G228*$H228/10,RateRatios_airpollution!$C228)*10))","v":0},{"$f":"IF(AND(OR(Calculations!$E$2=\"Orkney Health Board\",Calculations!$E$2=\"Orkney Islands Local Authority\"),$F228=1),0,IF(AND(OR(Calculations!$E$2=\"Shetland Health Board\",Calculations!$E$2=\"Western Isles Health Board\",Calculations!$E$2=\"Shetland Islands Local Authority\",Calculations!$E$2=\"Eilean Siar Local Authority\"),OR($F228=1,$F228=5)),0,prem_mort(VALUE(LEFT(Options!$B$14,2)),$C228,$E228,$F228,2016,$I228/10+$J228/10,1,$H228/10,$G228*$H228/10,RateRatios_airpollution!$C228)*10))","v":0},null,{"$f":"IF(AND(OR(Calculations!$E$2=\"Orkney Health Board\",Calculations!$E$2=\"Orkney Islands Local Authority\"),$F228=1),0,IF(AND(OR(Calculations!$E$2=\"Shetland Health Board\",Calculations!$E$2=\"Western Isles Health Board\",Calculations!$E$2=\"Shetland Islands Local Authority\",Calculations!$E$2=\"Eilean Siar Local Authority\"),OR($F228=1,$F228=5)),0,new_ci(VALUE(LEFT(Options!$B$14,2)),$C228,$E228,$F228,2016,$I228/10,1,$H228/10,$G228*$H228/10,RateRatios_airpollution!$E228)*10))","v":384.496045004},{"$f":"IF(AND(OR(Calculations!$E$2=\"Orkney Health Board\",Calculations!$E$2=\"Orkney Islands Local Authority\"),$F228=1),0,IF(AND(OR(Calculations!$E$2=\"Shetland Health Board\",Calculations!$E$2=\"Western Isles Health Board\",Calculations!$E$2=\"Shetland Islands Local Authority\",Calculations!$E$2=\"Eilean Siar Local Authority\"),OR($F228=1,$F228=5)),0,new_ci(VALUE(LEFT(Options!$B$14,2)),$C228,$E228,$F228,2016,$I228/10+$J228/10,1,$H228/10,$G228*$H228/10,RateRatios_airpollution!$E228)*10))","v":384.49392263100003},{"$f":"IF(AND(OR(Calculations!$E$2=\"Orkney Health Board\",Calculations!$E$2=\"Orkney Islands Local Authority\"),$F228=1),0,IF(AND(OR(Calculations!$E$2=\"Shetland Health Board\",Calculations!$E$2=\"Western Isles Health Board\",Calculations!$E$2=\"Shetland Islands Local Authority\",Calculations!$E$2=\"Eilean Siar Local Authority\"),OR($F228=1,$F228=5)),0,new_yllv2(VALUE(LEFT(Options!$B$14,2)),$C228,$D228,$E228,$F228,2016,$I228/10,1,$H228/10,$G228*$H228/10,RateRatios_airpollution!$E228)*10))","v":2645.3320206350004},{"$f":"IF(AND(OR(Calculations!$E$2=\"Orkney Health Board\",Calculations!$E$2=\"Orkney Islands Local Authority\"),$F228=1),0,IF(AND(OR(Calculations!$E$2=\"Shetland Health Board\",Calculations!$E$2=\"Western Isles Health Board\",Calculations!$E$2=\"Shetland Islands Local Authority\",Calculations!$E$2=\"Eilean Siar Local Authority\"),OR($F228=1,$F228=5)),0,new_yllv2(VALUE(LEFT(Options!$B$14,2)),$C228,$D228,$E228,$F228,2016,$I228/10+$J228/10,1,$H228/10,$G228*$H228/10,RateRatios_airpollution!$E228)*10))","v":2645.3174187130003},{"$f":"IF(AND(OR(Calculations!$E$2=\"Orkney Health Board\",Calculations!$E$2=\"Orkney Islands Local Authority\"),$F228=1),0,IF(AND(OR(Calculations!$E$2=\"Shetland Health Board\",Calculations!$E$2=\"Western Isles Health Board\",Calculations!$E$2=\"Shetland Islands Local Authority\",Calculations!$E$2=\"Eilean Siar Local Authority\"),OR($F228=1,$F228=5)),0,hosp_count(VALUE(LEFT(Options!$B$14,2)),$C228,$E228,$F228,2016,$I228/10,1,$H228/10,$G228*$H228/10, RateRatios_airpollution!$F228, RateRatios_airpollution!$E228)*10))","v":6193.0491423240001},{"$f":"IF(AND(OR(Calculations!$E$2=\"Orkney Health Board\",Calculations!$E$2=\"Orkney Islands Local Authority\"),$F228=1),0,IF(AND(OR(Calculations!$E$2=\"Shetland Health Board\",Calculations!$E$2=\"Western Isles Health Board\",Calculations!$E$2=\"Shetland Islands Local Authority\",Calculations!$E$2=\"Eilean Siar Local Authority\"),OR($F228=1,$F228=5)),0,hosp_count(VALUE(LEFT(Options!$B$14,2)),$C228,$E228,$F228,2016,$I228/10+$J228/10,1,$H228/10,$G228*$H228/10, RateRatios_airpollution!$F228, RateRatios_airpollution!$E228)*10))","v":6193.0491423240001},{"$f":"IF(AND(OR(Calculations!$E$2=\"Orkney Health Board\",Calculations!$E$2=\"Orkney Islands Local Authority\"),$F228=1),0,IF(AND(OR(Calculations!$E$2=\"Shetland Health Board\",Calculations!$E$2=\"Western Isles Health Board\",Calculations!$E$2=\"Shetland Islands Local Authority\",Calculations!$E$2=\"Eilean Siar Local Authority\"),OR($F228=1,$F228=5)),0,prem_mort(VALUE(LEFT(Options!$B$14,2)),$C228,$E228,$F228,2016,$I228/10,1,$H228/10,$G228*$H228/10,RateRatios_airpollution!$E228)*10))","v":0},{"$f":"IF(AND(OR(Calculations!$E$2=\"Orkney Health Board\",Calculations!$E$2=\"Orkney Islands Local Authority\"),$F228=1),0,IF(AND(OR(Calculations!$E$2=\"Shetland Health Board\",Calculations!$E$2=\"Western Isles Health Board\",Calculations!$E$2=\"Shetland Islands Local Authority\",Calculations!$E$2=\"Eilean Siar Local Authority\"),OR($F228=1,$F228=5)),0,prem_mort(VALUE(LEFT(Options!$B$14,2)),$C228,$E228,$F228,2016,$I228/10+$J228/10,1,$H228/10,$G228*$H228/10,RateRatios_airpollution!$E228)*10))","v":0},384.496045004,384.40873816100003,2645.3320206350004,2644.7313497299992,6193.0491423240001,6191.5934751590012,0,0,2458.4146099999998,2457.8563821035805,16913.887599968035,16910.046993158565,39597.500910000002,39588.193575185433,0,0,6146036.5249999994,6144640.9552589515,42284718.999920085,42275117.48289641,98993752.275000006,98970483.937963575,0,0,2500]
[null,"Female 85-89",86.730819999999994,92.220819999999989,"female",5,1,{"$f":"HLOOKUP(Calculations!$E$2,'Population 2016'!$C$3:$BC$249,'Population 2016'!BD229,FALSE)","v":9964},0,{"$f":"HLOOKUP(Calculations!$E$2,Pop2016_in_settlements!$C$3:$BC$249,Pop2016_in_settlements!$BD229,FALSE)","v":5078},{"$f":"IF(AND(OR(Calculations!$E$2=\"Orkney Health Board\",Calculations!$E$2=\"Orkney Islands Local Authority\"),$F229=1),0,IF(AND(OR(Calculations!$E$2=\"Shetland Health Board\",Calculations!$E$2=\"Western Isles Health Board\",Calculations!$E$2=\"Shetland Islands Local Authority\",Calculations!$E$2=\"Eilean Siar Local Authority\"),OR($F229=1,$F229=5)),0,new_ci(VALUE(LEFT(Options!$B$14,2)),$C229,$E229,$F229,2016,$I229/10,1,$H229/10,$G229*$H229/10,RateRatios_accidents!$B$5)*10))","v":368.44233732100002},{"$f":"IF(AND(OR(Calculations!$E$2=\"Orkney Health Board\",Calculations!$E$2=\"Orkney Islands Local Authority\"),$F229=1),0,IF(AND(OR(Calculations!$E$2=\"Shetland Health Board\",Calculations!$E$2=\"Western Isles Health Board\",Calculations!$E$2=\"Shetland Islands Local Authority\",Calculations!$E$2=\"Eilean Siar Local Authority\"),OR($F229=1,$F229=5)),0,new_ci(VALUE(LEFT(Options!$B$14,2)),$C229,$E229,$F229,2016,$I229/10+$J229/10,1,$H229/10,$G229*$H229/10,RateRatios_accidents!$B$5)*10))","v":368.36863421300001},{"$f":"IF(AND(OR(Calculations!$E$2=\"Orkney Health Board\",Calculations!$E$2=\"Orkney Islands Local Authority\"),$F229=1),0,IF(AND(OR(Calculations!$E$2=\"Shetland Health Board\",Calculations!$E$2=\"Western Isles Health Board\",Calculations!$E$2=\"Shetland Islands Local Authority\",Calculations!$E$2=\"Eilean Siar Local Authority\"),OR($F229=1,$F229=5)),0,new_yllv2(VALUE(LEFT(Options!$B$14,2)),$C229,$D229,$E229,$F229,2016,$I229/10,1,$H229/10,$G229*$H229/10,RateRatios_accidents!$B$5)*10))","v":1654.3060945709999},{"$f":"IF(AND(OR(Calculations!$E$2=\"Orkney Health Board\",Calculations!$E$2=\"Orkney Islands Local Authority\"),$F229=1),0,IF(AND(OR(Calculations!$E$2=\"Shetland Health Board\",Calculations!$E$2=\"Western Isles Health Board\",Calculations!$E$2=\"Shetland Islands Local Authority\",Calculations!$E$2=\"Eilean Siar Local Authority\"),OR($F229=1,$F229=5)),0,new_yllv2(VALUE(LEFT(Options!$B$14,2)),$C229,$D229,$E229,$F229,2016,$I229/10+$J229/10,1,$H229/10,$G229*$H229/10,RateRatios_accidents!$B$5)*10))","v":1653.9751676159999},{"$f":"IF(AND(OR(Calculations!$E$2=\"Orkney Health Board\",Calculations!$E$2=\"Orkney Islands Local Authority\"),$F229=1),0,IF(AND(OR(Calculations!$E$2=\"Shetland Health Board\",Calculations!$E$2=\"Western Isles Health Board\",Calculations!$E$2=\"Shetland Islands Local Authority\",Calculations!$E$2=\"Eilean Siar Local Authority\"),OR($F229=1,$F229=5)),0,hosp_count(VALUE(LEFT(Options!$B$14,2)),$C229,$E229,$F229,2016,$I229/10,1,$H229/10,$G229*$H229/10, RateRatios_accidents!$B$4, RateRatios_accidents!$B$5)*10))","v":4460.1224511459995},{"$f":"IF(AND(OR(Calculations!$E$2=\"Orkney Health Board\",Calculations!$E$2=\"Orkney Islands Local Authority\"),$F229=1),0,IF(AND(OR(Calculations!$E$2=\"Shetland Health Board\",Calculations!$E$2=\"Western Isles Health Board\",Calculations!$E$2=\"Shetland Islands Local Authority\",Calculations!$E$2=\"Eilean Siar Local Authority\"),OR($F229=1,$F229=5)),0,hosp_count(VALUE(LEFT(Options!$B$14,2)),$C229,$E229,$F229,2016,$I229/10+$J229/10,1,$H229/10,$G229*$H229/10, RateRatios_accidents!$B$4, RateRatios_accidents!$B$5)*10))","v":4459.2132377849994},{"$f":"IF(AND(OR(Calculations!$E$2=\"Orkney Health Board\",Calculations!$E$2=\"Orkney Islands Local Authority\"),$F229=1),0,IF(AND(OR(Calculations!$E$2=\"Shetland Health Board\",Calculations!$E$2=\"Western Isles Health Board\",Calculations!$E$2=\"Shetland Islands Local Authority\",Calculations!$E$2=\"Eilean Siar Local Authority\"),OR($F229=1,$F229=5)),0,prem_mort(VALUE(LEFT(Options!$B$14,2)),$C229,$E229,$F229,2016,$I229/10,1,$H229/10,$G229*$H229/10,RateRatios_accidents!$B$5)*10))","v":0},{"$f":"IF(AND(OR(Calculations!$E$2=\"Orkney Health Board\",Calculations!$E$2=\"Orkney Islands Local Authority\"),$F229=1),0,IF(AND(OR(Calculations!$E$2=\"Shetland Health Board\",Calculations!$E$2=\"Western Isles Health Board\",Calculations!$E$2=\"Shetland Islands Local Authority\",Calculations!$E$2=\"Eilean Siar Local Authority\"),OR($F229=1,$F229=5)),0,prem_mort(VALUE(LEFT(Options!$B$14,2)),$C229,$E229,$F229,2016,$I229/10+$J229/10,1,$H229/10,$G229*$H229/10,RateRatios_accidents!$B$5)*10))","v":0},null,{"$f":"IF(AND(OR(Calculations!$E$2=\"Orkney Health Board\",Calculations!$E$2=\"Orkney Islands Local Authority\"),$F229=1),0,IF(AND(OR(Calculations!$E$2=\"Shetland Health Board\",Calculations!$E$2=\"Western Isles Health Board\",Calculations!$E$2=\"Shetland Islands Local Authority\",Calculations!$E$2=\"Eilean Siar Local Authority\"),OR($F229=1,$F229=5)),0,new_ci(VALUE(LEFT(Options!$B$14,2)),$C229,$E229,$F229,2016,$I229/10,1,$H229/10,$G229*$H229/10,RateRatios_airpollution!$C229)*10))","v":368.44233732100002},{"$f":"IF(AND(OR(Calculations!$E$2=\"Orkney Health Board\",Calculations!$E$2=\"Orkney Islands Local Authority\"),$F229=1),0,IF(AND(OR(Calculations!$E$2=\"Shetland Health Board\",Calculations!$E$2=\"Western Isles Health Board\",Calculations!$E$2=\"Shetland Islands Local Authority\",Calculations!$E$2=\"Eilean Siar Local Authority\"),OR($F229=1,$F229=5)),0,new_ci(VALUE(LEFT(Options!$B$14,2)),$C229,$E229,$F229,2016,$I229/10+$J229/10,1,$H229/10,$G229*$H229/10,RateRatios_airpollution!$C229)*10))","v":368.437933171},{"$f":"IF(AND(OR(Calculations!$E$2=\"Orkney Health Board\",Calculations!$E$2=\"Orkney Islands Local Authority\"),$F229=1),0,IF(AND(OR(Calculations!$E$2=\"Shetland Health Board\",Calculations!$E$2=\"Western Isles Health Board\",Calculations!$E$2=\"Shetland Islands Local Authority\",Calculations!$E$2=\"Eilean Siar Local Authority\"),OR($F229=1,$F229=5)),0,new_yllv2(VALUE(LEFT(Options!$B$14,2)),$C229,$D229,$E229,$F229,2016,$I229/10,1,$H229/10,$G229*$H229/10,RateRatios_airpollution!$C229)*10))","v":1654.3060945709999},{"$f":"IF(AND(OR(Calculations!$E$2=\"Orkney Health Board\",Calculations!$E$2=\"Orkney Islands Local Authority\"),$F229=1),0,IF(AND(OR(Calculations!$E$2=\"Shetland Health Board\",Calculations!$E$2=\"Western Isles Health Board\",Calculations!$E$2=\"Shetland Islands Local Authority\",Calculations!$E$2=\"Eilean Siar Local Authority\"),OR($F229=1,$F229=5)),0,new_yllv2(VALUE(LEFT(Options!$B$14,2)),$C229,$D229,$E229,$F229,2016,$I229/10+$J229/10,1,$H229/10,$G229*$H229/10,RateRatios_airpollution!$C229)*10))","v":1654.2863199379999},{"$f":"IF(AND(OR(Calculations!$E$2=\"Orkney Health Board\",Calculations!$E$2=\"Orkney Islands Local Authority\"),$F229=1),0,IF(AND(OR(Calculations!$E$2=\"Shetland Health Board\",Calculations!$E$2=\"Western Isles Health Board\",Calculations!$E$2=\"Shetland Islands Local Authority\",Calculations!$E$2=\"Eilean Siar Local Authority\"),OR($F229=1,$F229=5)),0,hosp_count(VALUE(LEFT(Options!$B$14,2)),$C229,$E229,$F229,2016,$I229/10,1,$H229/10,$G229*$H229/10, RateRatios_airpollution!$D229, RateRatios_airpollution!$C229)*10))","v":4460.1224511459995},{"$f":"IF(AND(OR(Calculations!$E$2=\"Orkney Health Board\",Calculations!$E$2=\"Orkney Islands Local Authority\"),$F229=1),0,IF(AND(OR(Calculations!$E$2=\"Shetland Health Board\",Calculations!$E$2=\"Western Isles Health Board\",Calculations!$E$2=\"Shetland Islands Local Authority\",Calculations!$E$2=\"Eilean Siar Local Authority\"),OR($F229=1,$F229=5)),0,hosp_count(VALUE(LEFT(Options!$B$14,2)),$C229,$E229,$F229,2016,$I229/10+$J229/10,1,$H229/10,$G229*$H229/10, RateRatios_airpollution!$D229, RateRatios_airpollution!$C229)*10))","v":4460.0201005010003},{"$f":"IF(AND(OR(Calculations!$E$2=\"Orkney Health Board\",Calculations!$E$2=\"Orkney Islands Local Authority\"),$F229=1),0,IF(AND(OR(Calculations!$E$2=\"Shetland Health Board\",Calculations!$E$2=\"Western Isles Health Board\",Calculations!$E$2=\"Shetland Islands Local Authority\",Calculations!$E$2=\"Eilean Siar Local Authority\"),OR($F229=1,$F229=5)),0,prem_mort(VALUE(LEFT(Options!$B$14,2)),$C229,$E229,$F229,2016,$I229/10,1,$H229/10,$G229*$H229/10,RateRatios_airpollution!$C229)*10))","v":0},{"$f":"IF(AND(OR(Calculations!$E$2=\"Orkney Health Board\",Calculations!$E$2=\"Orkney Islands Local Authority\"),$F229=1),0,IF(AND(OR(Calculations!$E$2=\"Shetland Health Board\",Calculations!$E$2=\"Western Isles Health Board\",Calculations!$E$2=\"Shetland Islands Local Authority\",Calculations!$E$2=\"Eilean Siar Local Authority\"),OR($F229=1,$F229=5)),0,prem_mort(VALUE(LEFT(Options!$B$14,2)),$C229,$E229,$F229,2016,$I229/10+$J229/10,1,$H229/10,$G229*$H229/10,RateRatios_airpollution!$C229)*10))","v":0},null,{"$f":"IF(AND(OR(Calculations!$E$2=\"Orkney Health Board\",Calculations!$E$2=\"Orkney Islands Local Authority\"),$F229=1),0,IF(AND(OR(Calculations!$E$2=\"Shetland Health Board\",Calculations!$E$2=\"Western Isles Health Board\",Calculations!$E$2=\"Shetland Islands Local Authority\",Calculations!$E$2=\"Eilean Siar Local Authority\"),OR($F229=1,$F229=5)),0,new_ci(VALUE(LEFT(Options!$B$14,2)),$C229,$E229,$F229,2016,$I229/10,1,$H229/10,$G229*$H229/10,RateRatios_airpollution!$E229)*10))","v":368.44233732100002},{"$f":"IF(AND(OR(Calculations!$E$2=\"Orkney Health Board\",Calculations!$E$2=\"Orkney Islands Local Authority\"),$F229=1),0,IF(AND(OR(Calculations!$E$2=\"Shetland Health Board\",Calculations!$E$2=\"Western Isles Health Board\",Calculations!$E$2=\"Shetland Islands Local Authority\",Calculations!$E$2=\"Eilean Siar Local Authority\"),OR($F229=1,$F229=5)),0,new_ci(VALUE(LEFT(Options!$B$14,2)),$C229,$E229,$F229,2016,$I229/10+$J229/10,1,$H229/10,$G229*$H229/10,RateRatios_airpollution!$E229)*10))","v":368.44030307399998},{"$f":"IF(AND(OR(Calculations!$E$2=\"Orkney Health Board\",Calculations!$E$2=\"Orkney Islands Local Authority\"),$F229=1),0,IF(AND(OR(Calculations!$E$2=\"Shetland Health Board\",Calculations!$E$2=\"Western Isles Health Board\",Calculations!$E$2=\"Shetland Islands Local Authority\",Calculations!$E$2=\"Eilean Siar Local Authority\"),OR($F229=1,$F229=5)),0,new_yllv2(VALUE(LEFT(Options!$B$14,2)),$C229,$D229,$E229,$F229,2016,$I229/10,1,$H229/10,$G229*$H229/10,RateRatios_airpollution!$E229)*10))","v":1654.3060945709999},{"$f":"IF(AND(OR(Calculations!$E$2=\"Orkney Health Board\",Calculations!$E$2=\"Orkney Islands Local Authority\"),$F229=1),0,IF(AND(OR(Calculations!$E$2=\"Shetland Health Board\",Calculations!$E$2=\"Western Isles Health Board\",Calculations!$E$2=\"Shetland Islands Local Authority\",Calculations!$E$2=\"Eilean Siar Local Authority\"),OR($F229=1,$F229=5)),0,new_yllv2(VALUE(LEFT(Options!$B$14,2)),$C229,$D229,$E229,$F229,2016,$I229/10+$J229/10,1,$H229/10,$G229*$H229/10,RateRatios_airpollution!$E229)*10))","v":1654.2969608019998},{"$f":"IF(AND(OR(Calculations!$E$2=\"Orkney Health Board\",Calculations!$E$2=\"Orkney Islands Local Authority\"),$F229=1),0,IF(AND(OR(Calculations!$E$2=\"Shetland Health Board\",Calculations!$E$2=\"Western Isles Health Board\",Calculations!$E$2=\"Shetland Islands Local Authority\",Calculations!$E$2=\"Eilean Siar Local Authority\"),OR($F229=1,$F229=5)),0,hosp_count(VALUE(LEFT(Options!$B$14,2)),$C229,$E229,$F229,2016,$I229/10,1,$H229/10,$G229*$H229/10, RateRatios_airpollution!$F229, RateRatios_airpollution!$E229)*10))","v":4460.1224511459995},{"$f":"IF(AND(OR(Calculations!$E$2=\"Orkney Health Board\",Calculations!$E$2=\"Orkney Islands Local Authority\"),$F229=1),0,IF(AND(OR(Calculations!$E$2=\"Shetland Health Board\",Calculations!$E$2=\"Western Isles Health Board\",Calculations!$E$2=\"Shetland Islands Local Authority\",Calculations!$E$2=\"Eilean Siar Local Authority\"),OR($F229=1,$F229=5)),0,hosp_count(VALUE(LEFT(Options!$B$14,2)),$C229,$E229,$F229,2016,$I229/10+$J229/10,1,$H229/10,$G229*$H229/10, RateRatios_airpollution!$F229, RateRatios_airpollution!$E229)*10))","v":4460.1224511459995},{"$f":"IF(AND(OR(Calculations!$E$2=\"Orkney Health Board\",Calculations!$E$2=\"Orkney Islands Local Authority\"),$F229=1),0,IF(AND(OR(Calculations!$E$2=\"Shetland Health Board\",Calculations!$E$2=\"Western Isles Health Board\",Calculations!$E$2=\"Shetland Islands Local Authority\",Calculations!$E$2=\"Eilean Siar Local Authority\"),OR($F229=1,$F229=5)),0,prem_mort(VALUE(LEFT(Options!$B$14,2)),$C229,$E229,$F229,2016,$I229/10,1,$H229/10,$G229*$H229/10,RateRatios_airpollution!$E229)*10))","v":0},{"$f":"IF(AND(OR(Calculations!$E$2=\"Orkney Health Board\",Calculations!$E$2=\"Orkney Islands Local Authority\"),$F229=1),0,IF(AND(OR(Calculations!$E$2=\"Shetland Health Board\",Calculations!$E$2=\"Western Isles Health Board\",Calculations!$E$2=\"Shetland Islands Local Authority\",Calculations!$E$2=\"Eilean Siar Local Authority\"),OR($F229=1,$F229=5)),0,prem_mort(VALUE(LEFT(Options!$B$14,2)),$C229,$E229,$F229,2016,$I229/10+$J229/10,1,$H229/10,$G229*$H229/10,RateRatios_airpollution!$E229)*10))","v":0},368.44233732100002,368.36219581599994,1654.3060945709999,1653.9462592139998,4460.1224511459995,4459.1108871400002,0,0,3697.7352200020073,3696.9309094339619,16602.831137806101,16599.219783360095,44762.369040004007,44752.216852067439,0,0,5546602.830003011,5545396.3641509432,24904246.70670915,24898829.675040141,67143553.560006008,67128325.278101161,0,0,1500]
[null,"Female 90+",92.779342999999997,96.279340000000005,"female",5,1,{"$f":"HLOOKUP(Calculations!$E$2,'Population 2016'!$C$3:$BC$249,'Population 2016'!BD230,FALSE)","v":6057},0,{"$f":"HLOOKUP(Calculations!$E$2,Pop2016_in_settlements!$C$3:$BC$249,Pop2016_in_settlements!$BD230,FALSE)","v":3073},{"$f":"IF(AND(OR(Calculations!$E$2=\"Orkney Health Board\",Calculations!$E$2=\"Orkney Islands Local Authority\"),$F230=1),0,IF(AND(OR(Calculations!$E$2=\"Shetland Health Board\",Calculations!$E$2=\"Western Isles Health Board\",Calculations!$E$2=\"Shetland Islands Local Authority\",Calculations!$E$2=\"Eilean Siar Local Authority\"),OR($F230=1,$F230=5)),0,new_ci(VALUE(LEFT(Options!$B$14,2)),$C230,$E230,$F230,2016,$I230/10,1,$H230/10,$G230*$H230/10,RateRatios_accidents!$B$5)*10))","v":369.96415784699997},{"$f":"IF(AND(OR(Calculations!$E$2=\"Orkney Health Board\",Calculations!$E$2=\"Orkney Islands Local Authority\"),$F230=1),0,IF(AND(OR(Calculations!$E$2=\"Shetland Health Board\",Calculations!$E$2=\"Western Isles Health Board\",Calculations!$E$2=\"Shetland Islands Local Authority\",Calculations!$E$2=\"Eilean Siar Local Authority\"),OR($F230=1,$F230=5)),0,new_ci(VALUE(LEFT(Options!$B$14,2)),$C230,$E230,$F230,2016,$I230/10+$J230/10,1,$H230/10,$G230*$H230/10,RateRatios_accidents!$B$5)*10))","v":369.89141778600003},{"$f":"IF(AND(OR(Calculations!$E$2=\"Orkney Health Board\",Calculations!$E$2=\"Orkney Islands Local Authority\"),$F230=1),0,IF(AND(OR(Calculations!$E$2=\"Shetland Health Board\",Calculations!$E$2=\"Western Isles Health Board\",Calculations!$E$2=\"Shetland Islands Local Authority\",Calculations!$E$2=\"Eilean Siar Local Authority\"),OR($F230=1,$F230=5)),0,new_yllv2(VALUE(LEFT(Options!$B$14,2)),$C230,$D230,$E230,$F230,2016,$I230/10,1,$H230/10,$G230*$H230/10,RateRatios_accidents!$B$5)*10))","v":924.90928472500002},{"$f":"IF(AND(OR(Calculations!$E$2=\"Orkney Health Board\",Calculations!$E$2=\"Orkney Islands Local Authority\"),$F230=1),0,IF(AND(OR(Calculations!$E$2=\"Shetland Health Board\",Calculations!$E$2=\"Western Isles Health Board\",Calculations!$E$2=\"Shetland Islands Local Authority\",Calculations!$E$2=\"Eilean Siar Local Authority\"),OR($F230=1,$F230=5)),0,new_yllv2(VALUE(LEFT(Options!$B$14,2)),$C230,$D230,$E230,$F230,2016,$I230/10+$J230/10,1,$H230/10,$G230*$H230/10,RateRatios_accidents!$B$5)*10))","v":924.72743479100006},{"$f":"IF(AND(OR(Calculations!$E$2=\"Orkney Health Board\",Calculations!$E$2=\"Orkney Islands Local Authority\"),$F230=1),0,IF(AND(OR(Calculations!$E$2=\"Shetland Health Board\",Calculations!$E$2=\"Western Isles Health Board\",Calculations!$E$2=\"Shetland Islands Local Authority\",Calculations!$E$2=\"Eilean Siar Local Authority\"),OR($F230=1,$F230=5)),0,hosp_count(VALUE(LEFT(Options!$B$14,2)),$C230,$E230,$F230,2016,$I230/10,1,$H230/10,$G230*$H230/10, RateRatios_accidents!$B$4, RateRatios_accidents!$B$5)*10))","v":3156.7875870779999},{"$f":"IF(AND(OR(Calculations!$E$2=\"Orkney Health Board\",Calculations!$E$2=\"Orkney Islands Local Authority\"),$F230=1),0,IF(AND(OR(Calculations!$E$2=\"Shetland Health Board\",Calculations!$E$2=\"Western Isles Health Board\",Calculations!$E$2=\"Shetland Islands Local Authority\",Calculations!$E$2=\"Eilean Siar Local Authority\"),OR($F230=1,$F230=5)),0,hosp_count(VALUE(LEFT(Options!$B$14,2)),$C230,$E230,$F230,2016,$I230/10+$J230/10,1,$H230/10,$G230*$H230/10, RateRatios_accidents!$B$4, RateRatios_accidents!$B$5)*10))","v":3156.1469526219998},{"$f":"IF(AND(OR(Calculations!$E$2=\"Orkney Health Board\",Calculations!$E$2=\"Orkney Islands Local Authority\"),$F230=1),0,IF(AND(OR(Calculations!$E$2=\"Shetland Health Board\",Calculations!$E$2=\"Western Isles Health Board\",Calculations!$E$2=\"Shetland Islands Local Authority\",Calculations!$E$2=\"Eilean Siar Local Authority\"),OR($F230=1,$F230=5)),0,prem_mort(VALUE(LEFT(Options!$B$14,2)),$C230,$E230,$F230,2016,$I230/10,1,$H230/10,$G230*$H230/10,RateRatios_accidents!$B$5)*10))","v":0},{"$f":"IF(AND(OR(Calculations!$E$2=\"Orkney Health Board\",Calculations!$E$2=\"Orkney Islands Local Authority\"),$F230=1),0,IF(AND(OR(Calculations!$E$2=\"Shetland Health Board\",Calculations!$E$2=\"Western Isles Health Board\",Calculations!$E$2=\"Shetland Islands Local Authority\",Calculations!$E$2=\"Eilean Siar Local Authority\"),OR($F230=1,$F230=5)),0,prem_mort(VALUE(LEFT(Options!$B$14,2)),$C230,$E230,$F230,2016,$I230/10+$J230/10,1,$H230/10,$G230*$H230/10,RateRatios_accidents!$B$5)*10))","v":0},null,{"$f":"IF(AND(OR(Calculations!$E$2=\"Orkney Health Board\",Calculations!$E$2=\"Orkney Islands Local Authority\"),$F230=1),0,IF(AND(OR(Calculations!$E$2=\"Shetland Health Board\",Calculations!$E$2=\"Western Isles Health Board\",Calculations!$E$2=\"Shetland Islands Local Authority\",Calculations!$E$2=\"Eilean Siar Local Authority\"),OR($F230=1,$F230=5)),0,new_ci(VALUE(LEFT(Options!$B$14,2)),$C230,$E230,$F230,2016,$I230/10,1,$H230/10,$G230*$H230/10,RateRatios_airpollution!$C230)*10))","v":369.96415784699997},{"$f":"IF(AND(OR(Calculations!$E$2=\"Orkney Health Board\",Calculations!$E$2=\"Orkney Islands Local Authority\"),$F230=1),0,IF(AND(OR(Calculations!$E$2=\"Shetland Health Board\",Calculations!$E$2=\"Western Isles Health Board\",Calculations!$E$2=\"Shetland Islands Local Authority\",Calculations!$E$2=\"Eilean Siar Local Authority\"),OR($F230=1,$F230=5)),0,new_ci(VALUE(LEFT(Options!$B$14,2)),$C230,$E230,$F230,2016,$I230/10+$J230/10,1,$H230/10,$G230*$H230/10,RateRatios_airpollution!$C230)*10))","v":369.95977789999995},{"$f":"IF(AND(OR(Calculations!$E$2=\"Orkney Health Board\",Calculations!$E$2=\"Orkney Islands Local Authority\"),$F230=1),0,IF(AND(OR(Calculations!$E$2=\"Shetland Health Board\",Calculations!$E$2=\"Western Isles Health Board\",Calculations!$E$2=\"Shetland Islands Local Authority\",Calculations!$E$2=\"Eilean Siar Local Authority\"),OR($F230=1,$F230=5)),0,new_yllv2(VALUE(LEFT(Options!$B$14,2)),$C230,$D230,$E230,$F230,2016,$I230/10,1,$H230/10,$G230*$H230/10,RateRatios_airpollution!$C230)*10))","v":924.90928472500002},{"$f":"IF(AND(OR(Calculations!$E$2=\"Orkney Health Board\",Calculations!$E$2=\"Orkney Islands Local Authority\"),$F230=1),0,IF(AND(OR(Calculations!$E$2=\"Shetland Health Board\",Calculations!$E$2=\"Western Isles Health Board\",Calculations!$E$2=\"Shetland Islands Local Authority\",Calculations!$E$2=\"Eilean Siar Local Authority\"),OR($F230=1,$F230=5)),0,new_yllv2(VALUE(LEFT(Options!$B$14,2)),$C230,$D230,$E230,$F230,2016,$I230/10+$J230/10,1,$H230/10,$G230*$H230/10,RateRatios_airpollution!$C230)*10))","v":924.89833487099997},{"$f":"IF(AND(OR(Calculations!$E$2=\"Orkney Health Board\",Calculations!$E$2=\"Orkney Islands Local Authority\"),$F230=1),0,IF(AND(OR(Calculations!$E$2=\"Shetland Health Board\",Calculations!$E$2=\"Western Isles Health Board\",Calculations!$E$2=\"Shetland Islands Local Authority\",Calculations!$E$2=\"Eilean Siar Local Authority\"),OR($F230=1,$F230=5)),0,hosp_count(VALUE(LEFT(Options!$B$14,2)),$C230,$E230,$F230,2016,$I230/10,1,$H230/10,$G230*$H230/10, RateRatios_airpollution!$D230, RateRatios_airpollution!$C230)*10))","v":3156.7875870779999},{"$f":"IF(AND(OR(Calculations!$E$2=\"Orkney Health Board\",Calculations!$E$2=\"Orkney Islands Local Authority\"),$F230=1),0,IF(AND(OR(Calculations!$E$2=\"Shetland Health Board\",Calculations!$E$2=\"Western Isles Health Board\",Calculations!$E$2=\"Shetland Islands Local Authority\",Calculations!$E$2=\"Eilean Siar Local Authority\"),OR($F230=1,$F230=5)),0,hosp_count(VALUE(LEFT(Options!$B$14,2)),$C230,$E230,$F230,2016,$I230/10+$J230/10,1,$H230/10,$G230*$H230/10, RateRatios_airpollution!$D230, RateRatios_airpollution!$C230)*10))","v":3156.7149137010001},{"$f":"IF(AND(OR(Calculations!$E$2=\"Orkney Health Board\",Calculations!$E$2=\"Orkney Islands Local Authority\"),$F230=1),0,IF(AND(OR(Calculations!$E$2=\"Shetland Health Board\",Calculations!$E$2=\"Western Isles Health Board\",Calculations!$E$2=\"Shetland Islands Local Authority\",Calculations!$E$2=\"Eilean Siar Local Authority\"),OR($F230=1,$F230=5)),0,prem_mort(VALUE(LEFT(Options!$B$14,2)),$C230,$E230,$F230,2016,$I230/10,1,$H230/10,$G230*$H230/10,RateRatios_airpollution!$C230)*10))","v":0},{"$f":"IF(AND(OR(Calculations!$E$2=\"Orkney Health Board\",Calculations!$E$2=\"Orkney Islands Local Authority\"),$F230=1),0,IF(AND(OR(Calculations!$E$2=\"Shetland Health Board\",Calculations!$E$2=\"Western Isles Health Board\",Calculations!$E$2=\"Shetland Islands Local Authority\",Calculations!$E$2=\"Eilean Siar Local Authority\"),OR($F230=1,$F230=5)),0,prem_mort(VALUE(LEFT(Options!$B$14,2)),$C230,$E230,$F230,2016,$I230/10+$J230/10,1,$H230/10,$G230*$H230/10,RateRatios_airpollution!$C230)*10))","v":0},null,{"$f":"IF(AND(OR(Calculations!$E$2=\"Orkney Health Board\",Calculations!$E$2=\"Orkney Islands Local Authority\"),$F230=1),0,IF(AND(OR(Calculations!$E$2=\"Shetland Health Board\",Calculations!$E$2=\"Western Isles Health Board\",Calculations!$E$2=\"Shetland Islands Local Authority\",Calculations!$E$2=\"Eilean Siar Local Authority\"),OR($F230=1,$F230=5)),0,new_ci(VALUE(LEFT(Options!$B$14,2)),$C230,$E230,$F230,2016,$I230/10,1,$H230/10,$G230*$H230/10,RateRatios_airpollution!$E230)*10))","v":369.96415784699997},{"$f":"IF(AND(OR(Calculations!$E$2=\"Orkney Health Board\",Calculations!$E$2=\"Orkney Islands Local Authority\"),$F230=1),0,IF(AND(OR(Calculations!$E$2=\"Shetland Health Board\",Calculations!$E$2=\"Western Isles Health Board\",Calculations!$E$2=\"Shetland Islands Local Authority\",Calculations!$E$2=\"Eilean Siar Local Authority\"),OR($F230=1,$F230=5)),0,new_ci(VALUE(LEFT(Options!$B$14,2)),$C230,$E230,$F230,2016,$I230/10+$J230/10,1,$H230/10,$G230*$H230/10,RateRatios_airpollution!$E230)*10))","v":369.96214103699998},{"$f":"IF(AND(OR(Calculations!$E$2=\"Orkney Health Board\",Calculations!$E$2=\"Orkney Islands Local Authority\"),$F230=1),0,IF(AND(OR(Calculations!$E$2=\"Shetland Health Board\",Calculations!$E$2=\"Western Isles Health Board\",Calculations!$E$2=\"Shetland Islands Local Authority\",Calculations!$E$2=\"Eilean Siar Local Authority\"),OR($F230=1,$F230=5)),0,new_yllv2(VALUE(LEFT(Options!$B$14,2)),$C230,$D230,$E230,$F230,2016,$I230/10,1,$H230/10,$G230*$H230/10,RateRatios_airpollution!$E230)*10))","v":924.90928472500002},{"$f":"IF(AND(OR(Calculations!$E$2=\"Orkney Health Board\",Calculations!$E$2=\"Orkney Islands Local Authority\"),$F230=1),0,IF(AND(OR(Calculations!$E$2=\"Shetland Health Board\",Calculations!$E$2=\"Western Isles Health Board\",Calculations!$E$2=\"Shetland Islands Local Authority\",Calculations!$E$2=\"Eilean Siar Local Authority\"),OR($F230=1,$F230=5)),0,new_yllv2(VALUE(LEFT(Options!$B$14,2)),$C230,$D230,$E230,$F230,2016,$I230/10+$J230/10,1,$H230/10,$G230*$H230/10,RateRatios_airpollution!$E230)*10))","v":924.90424270599999},{"$f":"IF(AND(OR(Calculations!$E$2=\"Orkney Health Board\",Calculations!$E$2=\"Orkney Islands Local Authority\"),$F230=1),0,IF(AND(OR(Calculations!$E$2=\"Shetland Health Board\",Calculations!$E$2=\"Western Isles Health Board\",Calculations!$E$2=\"Shetland Islands Local Authority\",Calculations!$E$2=\"Eilean Siar Local Authority\"),OR($F230=1,$F230=5)),0,hosp_count(VALUE(LEFT(Options!$B$14,2)),$C230,$E230,$F230,2016,$I230/10,1,$H230/10,$G230*$H230/10, RateRatios_airpollution!$F230, RateRatios_airpollution!$E230)*10))","v":3156.7875870779999},{"$f":"IF(AND(OR(Calculations!$E$2=\"Orkney Health Board\",Calculations!$E$2=\"Orkney Islands Local Authority\"),$F230=1),0,IF(AND(OR(Calculations!$E$2=\"Shetland Health Board\",Calculations!$E$2=\"Western Isles Health Board\",Calculations!$E$2=\"Shetland Islands Local Authority\",Calculations!$E$2=\"Eilean Siar Local Authority\"),OR($F230=1,$F230=5)),0,hosp_count(VALUE(LEFT(Options!$B$14,2)),$C230,$E230,$F230,2016,$I230/10+$J230/10,1,$H230/10,$G230*$H230/10, RateRatios_airpollution!$F230, RateRatios_airpollution!$E230)*10))","v":3156.7875870779999},{"$f":"IF(AND(OR(Calculations!$E$2=\"Orkney Health Board\",Calculations!$E$2=\"Orkney Islands Local Authority\"),$F230=1),0,IF(AND(OR(Calculations!$E$2=\"Shetland Health Board\",Calculations!$E$2=\"Western Isles Health Board\",Calculations!$E$2=\"Shetland Islands Local Authority\",Calculations!$E$2=\"Eilean Siar Local Authority\"),OR($F230=1,$F230=5)),0,prem_mort(VALUE(LEFT(Options!$B$14,2)),$C230,$E230,$F230,2016,$I230/10,1,$H230/10,$G230*$H230/10,RateRatios_airpollution!$E230)*10))","v":0},{"$f":"IF(AND(OR(Calculations!$E$2=\"Orkney Health Board\",Calculations!$E$2=\"Orkney Islands Local Authority\"),$F230=1),0,IF(AND(OR(Calculations!$E$2=\"Shetland Health Board\",Calculations!$E$2=\"Western Isles Health Board\",Calculations!$E$2=\"Shetland Islands Local Authority\",Calculations!$E$2=\"Eilean Siar Local Authority\"),OR($F230=1,$F230=5)),0,prem_mort(VALUE(LEFT(Options!$B$14,2)),$C230,$E230,$F230,2016,$I230/10+$J230/10,1,$H230/10,$G230*$H230/10,RateRatios_airpollution!$E230)*10))","v":0},369.96415784699997,369.88502102900003,924.90928472500002,924.71144291799999,3156.7875870779999,3156.0742792450001,0,0,6108.0428899950466,6106.7363551097915,15270.088900858511,15266.822567574705,52118.005399999995,52106.228813686641,0,0,6108042.8899950469,6106736.3551097913,15270088.90085851,15266822.567574706,52118005.399999991,52106228.813686639,0,0,1000]
[null,"Male 0-4",2.0320822999999999,77.402082000000007,"male",5,1,{"$f":"HLOOKUP(Calculations!$E$2,'Population 2016'!$C$3:$BC$249,'Population 2016'!BD231,FALSE)","v":0},0,{"$f":"HLOOKUP(Calculations!$E$2,Pop2016_in_settlements!$C$3:$BC$249,Pop2016_in_settlements!$BD231,FALSE)","v":0},{"$f":"IF(AND(OR(Calculations!$E$2=\"Orkney Health Board\",Calculations!$E$2=\"Orkney Islands Local Authority\"),$F231=1),0,IF(AND(OR(Calculations!$E$2=\"Shetland Health Board\",Calculations!$E$2=\"Western Isles Health Board\",Calculations!$E$2=\"Shetland Islands Local Authority\",Calculations!$E$2=\"Eilean Siar Local Authority\"),OR($F231=1,$F231=5)),0,new_ci(VALUE(LEFT(Options!$B$14,2)),$C231,$E231,$F231,2016,$I231/10,1,$H231/10,$G231*$H231/10,RateRatios_accidents!$B$5)*10))","v":{"$error":"#VALUE!"}},{"$f":"IF(AND(OR(Calculations!$E$2=\"Orkney Health Board\",Calculations!$E$2=\"Orkney Islands Local Authority\"),$F231=1),0,IF(AND(OR(Calculations!$E$2=\"Shetland Health Board\",Calculations!$E$2=\"Western Isles Health Board\",Calculations!$E$2=\"Shetland Islands Local Authority\",Calculations!$E$2=\"Eilean Siar Local Authority\"),OR($F231=1,$F231=5)),0,new_ci(VALUE(LEFT(Options!$B$14,2)),$C231,$E231,$F231,2016,$I231/10+$J231/10,1,$H231/10,$G231*$H231/10,RateRatios_accidents!$B$5)*10))","v":{"$error":"#VALUE!"}},{"$f":"IF(AND(OR(Calculations!$E$2=\"Orkney Health Board\",Calculations!$E$2=\"Orkney Islands Local Authority\"),$F231=1),0,IF(AND(OR(Calculations!$E$2=\"Shetland Health Board\",Calculations!$E$2=\"Western Isles Health Board\",Calculations!$E$2=\"Shetland Islands Local Authority\",Calculations!$E$2=\"Eilean Siar Local Authority\"),OR($F231=1,$F231=5)),0,new_yllv2(VALUE(LEFT(Options!$B$14,2)),$C231,$D231,$E231,$F231,2016,$I231/10,1,$H231/10,$G231*$H231/10,RateRatios_accidents!$B$5)*10))","v":{"$error":"#VALUE!"}},{"$f":"IF(AND(OR(Calculations!$E$2=\"Orkney Health Board\",Calculations!$E$2=\"Orkney Islands Local Authority\"),$F231=1),0,IF(AND(OR(Calculations!$E$2=\"Shetland Health Board\",Calculations!$E$2=\"Western Isles Health Board\",Calculations!$E$2=\"Shetland Islands Local Authority\",Calculations!$E$2=\"Eilean Siar Local Authority\"),OR($F231=1,$F231=5)),0,new_yllv2(VALUE(LEFT(Options!$B$14,2)),$C231,$D231,$E231,$F231,2016,$I231/10+$J231/10,1,$H231/10,$G231*$H231/10,RateRatios_accidents!$B$5)*10))","v":{"$error":"#VALUE!"}},{"$f":"IF(AND(OR(Calculations!$E$2=\"Orkney Health Board\",Calculations!$E$2=\"Orkney Islands Local Authority\"),$F231=1),0,IF(AND(OR(Calculations!$E$2=\"Shetland Health Board\",Calculations!$E$2=\"Western Isles Health Board\",Calculations!$E$2=\"Shetland Islands Local Authority\",Calculations!$E$2=\"Eilean Siar Local Authority\"),OR($F231=1,$F231=5)),0,hosp_count(VALUE(LEFT(Options!$B$14,2)),$C231,$E231,$F231,2016,$I231/10,1,$H231/10,$G231*$H231/10, RateRatios_accidents!$B$4, RateRatios_accidents!$B$5)*10))","v":{"$error":"#VALUE!"}},{"$f":"IF(AND(OR(Calculations!$E$2=\"Orkney Health Board\",Calculations!$E$2=\"Orkney Islands Local Authority\"),$F231=1),0,IF(AND(OR(Calculations!$E$2=\"Shetland Health Board\",Calculations!$E$2=\"Western Isles Health Board\",Calculations!$E$2=\"Shetland Islands Local Authority\",Calculations!$E$2=\"Eilean Siar Local Authority\"),OR($F231=1,$F231=5)),0,hosp_count(VALUE(LEFT(Options!$B$14,2)),$C231,$E231,$F231,2016,$I231/10+$J231/10,1,$H231/10,$G231*$H231/10, RateRatios_accidents!$B$4, RateRatios_accidents!$B$5)*10))","v":{"$error":"#VALUE!"}},{"$f":"IF(AND(OR(Calculations!$E$2=\"Orkney Health Board\",Calculations!$E$2=\"Orkney Islands Local Authority\"),$F231=1),0,IF(AND(OR(Calculations!$E$2=\"Shetland Health Board\",Calculations!$E$2=\"Western Isles Health Board\",Calculations!$E$2=\"Shetland Islands Local Authority\",Calculations!$E$2=\"Eilean Siar Local Authority\"),OR($F231=1,$F231=5)),0,prem_mort(VALUE(LEFT(Options!$B$14,2)),$C231,$E231,$F231,2016,$I231/10,1,$H231/10,$G231*$H231/10,RateRatios_accidents!$B$5)*10))","v":{"$error":"#VALUE!"}},{"$f":"IF(AND(OR(Calculations!$E$2=\"Orkney Health Board\",Calculations!$E$2=\"Orkney Islands Local Authority\"),$F231=1),0,IF(AND(OR(Calculations!$E$2=\"Shetland Health Board\",Calculations!$E$2=\"Western Isles Health Board\",Calculations!$E$2=\"Shetland Islands Local Authority\",Calculations!$E$2=\"Eilean Siar Local Authority\"),OR($F231=1,$F231=5)),0,prem_mort(VALUE(LEFT(Options!$B$14,2)),$C231,$E231,$F231,2016,$I231/10+$J231/10,1,$H231/10,$G231*$H231/10,RateRatios_accidents!$B$5)*10))","v":{"$error":"#VALUE!"}},null,{"$f":"IF(AND(OR(Calculations!$E$2=\"Orkney Health Board\",Calculations!$E$2=\"Orkney Islands Local Authority\"),$F231=1),0,IF(AND(OR(Calculations!$E$2=\"Shetland Health Board\",Calculations!$E$2=\"Western Isles Health Board\",Calculations!$E$2=\"Shetland Islands Local Authority\",Calculations!$E$2=\"Eilean Siar Local Authority\"),OR($F231=1,$F231=5)),0,new_ci(VALUE(LEFT(Options!$B$14,2)),$C231,$E231,$F231,2016,$I231/10,1,$H231/10,$G231*$H231/10,RateRatios_airpollution!$C231)*10))","v":{"$error":"#VALUE!"}},{"$f":"IF(AND(OR(Calculations!$E$2=\"Orkney Health Board\",Calculations!$E$2=\"Orkney Islands Local Authority\"),$F231=1),0,IF(AND(OR(Calculations!$E$2=\"Shetland Health Board\",Calculations!$E$2=\"Western Isles Health Board\",Calculations!$E$2=\"Shetland Islands Local Authority\",Calculations!$E$2=\"Eilean Siar Local Authority\"),OR($F231=1,$F231=5)),0,new_ci(VALUE(LEFT(Options!$B$14,2)),$C231,$E231,$F231,2016,$I231/10+$J231/10,1,$H231/10,$G231*$H231/10,RateRatios_airpollution!$C231)*10))","v":{"$error":"#VALUE!"}},{"$f":"IF(AND(OR(Calculations!$E$2=\"Orkney Health Board\",Calculations!$E$2=\"Orkney Islands Local Authority\"),$F231=1),0,IF(AND(OR(Calculations!$E$2=\"Shetland Health Board\",Calculations!$E$2=\"Western Isles Health Board\",Calculations!$E$2=\"Shetland Islands Local Authority\",Calculations!$E$2=\"Eilean Siar Local Authority\"),OR($F231=1,$F231=5)),0,new_yllv2(VALUE(LEFT(Options!$B$14,2)),$C231,$D231,$E231,$F231,2016,$I231/10,1,$H231/10,$G231*$H231/10,RateRatios_airpollution!$C231)*10))","v":{"$error":"#VALUE!"}},{"$f":"IF(AND(OR(Calculations!$E$2=\"Orkney Health Board\",Calculations!$E$2=\"Orkney Islands Local Authority\"),$F231=1),0,IF(AND(OR(Calculations!$E$2=\"Shetland Health Board\",Calculations!$E$2=\"Western Isles Health Board\",Calculations!$E$2=\"Shetland Islands Local Authority\",Calculations!$E$2=\"Eilean Siar Local Authority\"),OR($F231=1,$F231=5)),0,new_yllv2(VALUE(LEFT(Options!$B$14,2)),$C231,$D231,$E231,$F231,2016,$I231/10+$J231/10,1,$H231/10,$G231*$H231/10,RateRatios_airpollution!$C231)*10))","v":{"$error":"#VALUE!"}},{"$f":"IF(AND(OR(Calculations!$E$2=\"Orkney Health Board\",Calculations!$E$2=\"Orkney Islands Local Authority\"),$F231=1),0,IF(AND(OR(Calculations!$E$2=\"Shetland Health Board\",Calculations!$E$2=\"Western Isles Health Board\",Calculations!$E$2=\"Shetland Islands Local Authority\",Calculations!$E$2=\"Eilean Siar Local Authority\"),OR($F231=1,$F231=5)),0,hosp_count(VALUE(LEFT(Options!$B$14,2)),$C231,$E231,$F231,2016,$I231/10,1,$H231/10,$G231*$H231/10, RateRatios_airpollution!$D231, RateRatios_airpollution!$C231)*10))","v":{"$error":"#VALUE!"}},{"$f":"IF(AND(OR(Calculations!$E$2=\"Orkney Health Board\",Calculations!$E$2=\"Orkney Islands Local Authority\"),$F231=1),0,IF(AND(OR(Calculations!$E$2=\"Shetland Health Board\",Calculations!$E$2=\"Western Isles Health Board\",Calculations!$E$2=\"Shetland Islands Local Authority\",Calculations!$E$2=\"Eilean Siar Local Authority\"),OR($F231=1,$F231=5)),0,hosp_count(VALUE(LEFT(Options!$B$14,2)),$C231,$E231,$F231,2016,$I231/10+$J231/10,1,$H231/10,$G231*$H231/10, RateRatios_airpollution!$D231, RateRatios_airpollution!$C231)*10))","v":{"$error":"#VALUE!"}},{"$f":"IF(AND(OR(Calculations!$E$2=\"Orkney Health Board\",Calculations!$E$2=\"Orkney Islands Local Authority\"),$F231=1),0,IF(AND(OR(Calculations!$E$2=\"Shetland Health Board\",Calculations!$E$2=\"Western Isles Health Board\",Calculations!$E$2=\"Shetland Islands Local Authority\",Calculations!$E$2=\"Eilean Siar Local Authority\"),OR($F231=1,$F231=5)),0,prem_mort(VALUE(LEFT(Options!$B$14,2)),$C231,$E231,$F231,2016,$I231/10,1,$H231/10,$G231*$H231/10,RateRatios_airpollution!$C231)*10))","v":{"$error":"#VALUE!"}},{"$f":"IF(AND(OR(Calculations!$E$2=\"Orkney Health Board\",Calculations!$E$2=\"Orkney Islands Local Authority\"),$F231=1),0,IF(AND(OR(Calculations!$E$2=\"Shetland Health Board\",Calculations!$E$2=\"Western Isles Health Board\",Calculations!$E$2=\"Shetland Islands Local Authority\",Calculations!$E$2=\"Eilean Siar Local Authority\"),OR($F231=1,$F231=5)),0,prem_mort(VALUE(LEFT(Options!$B$14,2)),$C231,$E231,$F231,2016,$I231/10+$J231/10,1,$H231/10,$G231*$H231/10,RateRatios_airpollution!$C231)*10))","v":{"$error":"#VALUE!"}},null,{"$f":"IF(AND(OR(Calculations!$E$2=\"Orkney Health Board\",Calculations!$E$2=\"Orkney Islands Local Authority\"),$F231=1),0,IF(AND(OR(Calculations!$E$2=\"Shetland Health Board\",Calculations!$E$2=\"Western Isles Health Board\",Calculations!$E$2=\"Shetland Islands Local Authority\",Calculations!$E$2=\"Eilean Siar Local Authority\"),OR($F231=1,$F231=5)),0,new_ci(VALUE(LEFT(Options!$B$14,2)),$C231,$E231,$F231,2016,$I231/10,1,$H231/10,$G231*$H231/10,RateRatios_airpollution!$E231)*10))","v":{"$error":"#VALUE!"}},{"$f":"IF(AND(OR(Calculations!$E$2=\"Orkney Health Board\",Calculations!$E$2=\"Orkney Islands Local Authority\"),$F231=1),0,IF(AND(OR(Calculations!$E$2=\"Shetland Health Board\",Calculations!$E$2=\"Western Isles Health Board\",Calculations!$E$2=\"Shetland Islands Local Authority\",Calculations!$E$2=\"Eilean Siar Local Authority\"),OR($F231=1,$F231=5)),0,new_ci(VALUE(LEFT(Options!$B$14,2)),$C231,$E231,$F231,2016,$I231/10+$J231/10,1,$H231/10,$G231*$H231/10,RateRatios_airpollution!$E231)*10))","v":{"$error":"#VALUE!"}},{"$f":"IF(AND(OR(Calculations!$E$2=\"Orkney Health Board\",Calculations!$E$2=\"Orkney Islands Local Authority\"),$F231=1),0,IF(AND(OR(Calculations!$E$2=\"Shetland Health Board\",Calculations!$E$2=\"Western Isles Health Board\",Calculations!$E$2=\"Shetland Islands Local Authority\",Calculations!$E$2=\"Eilean Siar Local Authority\"),OR($F231=1,$F231=5)),0,new_yllv2(VALUE(LEFT(Options!$B$14,2)),$C231,$D231,$E231,$F231,2016,$I231/10,1,$H231/10,$G231*$H231/10,RateRatios_airpollution!$E231)*10))","v":{"$error":"#VALUE!"}},{"$f":"IF(AND(OR(Calculations!$E$2=\"Orkney Health Board\",Calculations!$E$2=\"Orkney Islands Local Authority\"),$F231=1),0,IF(AND(OR(Calculations!$E$2=\"Shetland Health Board\",Calculations!$E$2=\"Western Isles Health Board\",Calculations!$E$2=\"Shetland Islands Local Authority\",Calculations!$E$2=\"Eilean Siar Local Authority\"),OR($F231=1,$F231=5)),0,new_yllv2(VALUE(LEFT(Options!$B$14,2)),$C231,$D231,$E231,$F231,2016,$I231/10+$J231/10,1,$H231/10,$G231*$H231/10,RateRatios_airpollution!$E231)*10))","v":{"$error":"#VALUE!"}},{"$f":"IF(AND(OR(Calculations!$E$2=\"Orkney Health Board\",Calculations!$E$2=\"Orkney Islands Local Authority\"),$F231=1),0,IF(AND(OR(Calculations!$E$2=\"Shetland Health Board\",Calculations!$E$2=\"Western Isles Health Board\",Calculations!$E$2=\"Shetland Islands Local Authority\",Calculations!$E$2=\"Eilean Siar Local Authority\"),OR($F231=1,$F231=5)),0,hosp_count(VALUE(LEFT(Options!$B$14,2)),$C231,$E231,$F231,2016,$I231/10,1,$H231/10,$G231*$H231/10, RateRatios_airpollution!$F231, RateRatios_airpollution!$E231)*10))","v":{"$error":"#VALUE!"}},{"$f":"IF(AND(OR(Calculations!$E$2=\"Orkney Health Board\",Calculations!$E$2=\"Orkney Islands Local Authority\"),$F231=1),0,IF(AND(OR(Calculations!$E$2=\"Shetland Health Board\",Calculations!$E$2=\"Western Isles Health Board\",Calculations!$E$2=\"Shetland Islands Local Authority\",Calculations!$E$2=\"Eilean Siar Local Authority\"),OR($F231=1,$F231=5)),0,hosp_count(VALUE(LEFT(Options!$B$14,2)),$C231,$E231,$F231,2016,$I231/10+$J231/10,1,$H231/10,$G231*$H231/10, RateRatios_airpollution!$F231, RateRatios_airpollution!$E231)*10))","v":{"$error":"#VALUE!"}},{"$f":"IF(AND(OR(Calculations!$E$2=\"Orkney Health Board\",Calculations!$E$2=\"Orkney Islands Local Authority\"),$F231=1),0,IF(AND(OR(Calculations!$E$2=\"Shetland Health Board\",Calculations!$E$2=\"Western Isles Health Board\",Calculations!$E$2=\"Shetland Islands Local Authority\",Calculations!$E$2=\"Eilean Siar Local Authority\"),OR($F231=1,$F231=5)),0,prem_mort(VALUE(LEFT(Options!$B$14,2)),$C231,$E231,$F231,2016,$I231/10,1,$H231/10,$G231*$H231/10,RateRatios_airpollution!$E231)*10))","v":{"$error":"#VALUE!"}},{"$f":"IF(AND(OR(Calculations!$E$2=\"Orkney Health Board\",Calculations!$E$2=\"Orkney Islands Local Authority\"),$F231=1),0,IF(AND(OR(Calculations!$E$2=\"Shetland Health Board\",Calculations!$E$2=\"Western Isles Health Board\",Calculations!$E$2=\"Shetland Islands Local Authority\",Calculations!$E$2=\"Eilean Siar Local Authority\"),OR($F231=1,$F231=5)),0,prem_mort(VALUE(LEFT(Options!$B$14,2)),$C231,$E231,$F231,2016,$I231/10+$J231/10,1,$H231/10,$G231*$H231/10,RateRatios_airpollution!$E231)*10))","v":{"$error":"#VALUE!"}},{"$error":"#VALUE!"},{"$error":"#VALUE!"},{"$error":"#VALUE!"},{"$error":"#VALUE!"},{"$error":"#VALUE!"},{"$error":"#VALUE!"},{"$error":"#VALUE!"},{"$error":"#VALUE!"},{"$error":"#VALUE!"},{"$error":"#VALUE!"},{"$error":"#VALUE!"},{"$error":"#VALUE!"},{"$error":"#VALUE!"},{"$error":"#VALUE!"},{"$error":"#VALUE!"},{"$error":"#VALUE!"},{"$error":"#VALUE!"},{"$error":"#VALUE!"},{"$error":"#VALUE!"},{"$error":"#VALUE!"},{"$error":"#VALUE!"},{"$error":"#VALUE!"},{"$error":"#VALUE!"},{"$error":"#VALUE!"},5000]
[null,"Male 5-9",6.9784756000000003,77.398476000000002,"male",5,1,{"$f":"HLOOKUP(Calculations!$E$2,'Population 2016'!$C$3:$BC$249,'Population 2016'!BD232,FALSE)","v":0},0,{"$f":"HLOOKUP(Calculations!$E$2,Pop2016_in_settlements!$C$3:$BC$249,Pop2016_in_settlements!$BD232,FALSE)","v":0},{"$f":"IF(AND(OR(Calculations!$E$2=\"Orkney Health Board\",Calculations!$E$2=\"Orkney Islands Local Authority\"),$F232=1),0,IF(AND(OR(Calculations!$E$2=\"Shetland Health Board\",Calculations!$E$2=\"Western Isles Health Board\",Calculations!$E$2=\"Shetland Islands Local Authority\",Calculations!$E$2=\"Eilean Siar Local Authority\"),OR($F232=1,$F232=5)),0,new_ci(VALUE(LEFT(Options!$B$14,2)),$C232,$E232,$F232,2016,$I232/10,1,$H232/10,$G232*$H232/10,RateRatios_accidents!$B$5)*10))","v":{"$error":"#VALUE!"}},{"$f":"IF(AND(OR(Calculations!$E$2=\"Orkney Health Board\",Calculations!$E$2=\"Orkney Islands Local Authority\"),$F232=1),0,IF(AND(OR(Calculations!$E$2=\"Shetland Health Board\",Calculations!$E$2=\"Western Isles Health Board\",Calculations!$E$2=\"Shetland Islands Local Authority\",Calculations!$E$2=\"Eilean Siar Local Authority\"),OR($F232=1,$F232=5)),0,new_ci(VALUE(LEFT(Options!$B$14,2)),$C232,$E232,$F232,2016,$I232/10+$J232/10,1,$H232/10,$G232*$H232/10,RateRatios_accidents!$B$5)*10))","v":{"$error":"#VALUE!"}},{"$f":"IF(AND(OR(Calculations!$E$2=\"Orkney Health Board\",Calculations!$E$2=\"Orkney Islands Local Authority\"),$F232=1),0,IF(AND(OR(Calculations!$E$2=\"Shetland Health Board\",Calculations!$E$2=\"Western Isles Health Board\",Calculations!$E$2=\"Shetland Islands Local Authority\",Calculations!$E$2=\"Eilean Siar Local Authority\"),OR($F232=1,$F232=5)),0,new_yllv2(VALUE(LEFT(Options!$B$14,2)),$C232,$D232,$E232,$F232,2016,$I232/10,1,$H232/10,$G232*$H232/10,RateRatios_accidents!$B$5)*10))","v":{"$error":"#VALUE!"}},{"$f":"IF(AND(OR(Calculations!$E$2=\"Orkney Health Board\",Calculations!$E$2=\"Orkney Islands Local Authority\"),$F232=1),0,IF(AND(OR(Calculations!$E$2=\"Shetland Health Board\",Calculations!$E$2=\"Western Isles Health Board\",Calculations!$E$2=\"Shetland Islands Local Authority\",Calculations!$E$2=\"Eilean Siar Local Authority\"),OR($F232=1,$F232=5)),0,new_yllv2(VALUE(LEFT(Options!$B$14,2)),$C232,$D232,$E232,$F232,2016,$I232/10+$J232/10,1,$H232/10,$G232*$H232/10,RateRatios_accidents!$B$5)*10))","v":{"$error":"#VALUE!"}},{"$f":"IF(AND(OR(Calculations!$E$2=\"Orkney Health Board\",Calculations!$E$2=\"Orkney Islands Local Authority\"),$F232=1),0,IF(AND(OR(Calculations!$E$2=\"Shetland Health Board\",Calculations!$E$2=\"Western Isles Health Board\",Calculations!$E$2=\"Shetland Islands Local Authority\",Calculations!$E$2=\"Eilean Siar Local Authority\"),OR($F232=1,$F232=5)),0,hosp_count(VALUE(LEFT(Options!$B$14,2)),$C232,$E232,$F232,2016,$I232/10,1,$H232/10,$G232*$H232/10, RateRatios_accidents!$B$4, RateRatios_accidents!$B$5)*10))","v":{"$error":"#VALUE!"}},{"$f":"IF(AND(OR(Calculations!$E$2=\"Orkney Health Board\",Calculations!$E$2=\"Orkney Islands Local Authority\"),$F232=1),0,IF(AND(OR(Calculations!$E$2=\"Shetland Health Board\",Calculations!$E$2=\"Western Isles Health Board\",Calculations!$E$2=\"Shetland Islands Local Authority\",Calculations!$E$2=\"Eilean Siar Local Authority\"),OR($F232=1,$F232=5)),0,hosp_count(VALUE(LEFT(Options!$B$14,2)),$C232,$E232,$F232,2016,$I232/10+$J232/10,1,$H232/10,$G232*$H232/10, RateRatios_accidents!$B$4, RateRatios_accidents!$B$5)*10))","v":{"$error":"#VALUE!"}},{"$f":"IF(AND(OR(Calculations!$E$2=\"Orkney Health Board\",Calculations!$E$2=\"Orkney Islands Local Authority\"),$F232=1),0,IF(AND(OR(Calculations!$E$2=\"Shetland Health Board\",Calculations!$E$2=\"Western Isles Health Board\",Calculations!$E$2=\"Shetland Islands Local Authority\",Calculations!$E$2=\"Eilean Siar Local Authority\"),OR($F232=1,$F232=5)),0,prem_mort(VALUE(LEFT(Options!$B$14,2)),$C232,$E232,$F232,2016,$I232/10,1,$H232/10,$G232*$H232/10,RateRatios_accidents!$B$5)*10))","v":{"$error":"#VALUE!"}},{"$f":"IF(AND(OR(Calculations!$E$2=\"Orkney Health Board\",Calculations!$E$2=\"Orkney Islands Local Authority\"),$F232=1),0,IF(AND(OR(Calculations!$E$2=\"Shetland Health Board\",Calculations!$E$2=\"Western Isles Health Board\",Calculations!$E$2=\"Shetland Islands Local Authority\",Calculations!$E$2=\"Eilean Siar Local Authority\"),OR($F232=1,$F232=5)),0,prem_mort(VALUE(LEFT(Options!$B$14,2)),$C232,$E232,$F232,2016,$I232/10+$J232/10,1,$H232/10,$G232*$H232/10,RateRatios_accidents!$B$5)*10))","v":{"$error":"#VALUE!"}},null,{"$f":"IF(AND(OR(Calculations!$E$2=\"Orkney Health Board\",Calculations!$E$2=\"Orkney Islands Local Authority\"),$F232=1),0,IF(AND(OR(Calculations!$E$2=\"Shetland Health Board\",Calculations!$E$2=\"Western Isles Health Board\",Calculations!$E$2=\"Shetland Islands Local Authority\",Calculations!$E$2=\"Eilean Siar Local Authority\"),OR($F232=1,$F232=5)),0,new_ci(VALUE(LEFT(Options!$B$14,2)),$C232,$E232,$F232,2016,$I232/10,1,$H232/10,$G232*$H232/10,RateRatios_airpollution!$C232)*10))","v":{"$error":"#VALUE!"}},{"$f":"IF(AND(OR(Calculations!$E$2=\"Orkney Health Board\",Calculations!$E$2=\"Orkney Islands Local Authority\"),$F232=1),0,IF(AND(OR(Calculations!$E$2=\"Shetland Health Board\",Calculations!$E$2=\"Western Isles Health Board\",Calculations!$E$2=\"Shetland Islands Local Authority\",Calculations!$E$2=\"Eilean Siar Local Authority\"),OR($F232=1,$F232=5)),0,new_ci(VALUE(LEFT(Options!$B$14,2)),$C232,$E232,$F232,2016,$I232/10+$J232/10,1,$H232/10,$G232*$H232/10,RateRatios_airpollution!$C232)*10))","v":{"$error":"#VALUE!"}},{"$f":"IF(AND(OR(Calculations!$E$2=\"Orkney Health Board\",Calculations!$E$2=\"Orkney Islands Local Authority\"),$F232=1),0,IF(AND(OR(Calculations!$E$2=\"Shetland Health Board\",Calculations!$E$2=\"Western Isles Health Board\",Calculations!$E$2=\"Shetland Islands Local Authority\",Calculations!$E$2=\"Eilean Siar Local Authority\"),OR($F232=1,$F232=5)),0,new_yllv2(VALUE(LEFT(Options!$B$14,2)),$C232,$D232,$E232,$F232,2016,$I232/10,1,$H232/10,$G232*$H232/10,RateRatios_airpollution!$C232)*10))","v":{"$error":"#VALUE!"}},{"$f":"IF(AND(OR(Calculations!$E$2=\"Orkney Health Board\",Calculations!$E$2=\"Orkney Islands Local Authority\"),$F232=1),0,IF(AND(OR(Calculations!$E$2=\"Shetland Health Board\",Calculations!$E$2=\"Western Isles Health Board\",Calculations!$E$2=\"Shetland Islands Local Authority\",Calculations!$E$2=\"Eilean Siar Local Authority\"),OR($F232=1,$F232=5)),0,new_yllv2(VALUE(LEFT(Options!$B$14,2)),$C232,$D232,$E232,$F232,2016,$I232/10+$J232/10,1,$H232/10,$G232*$H232/10,RateRatios_airpollution!$C232)*10))","v":{"$error":"#VALUE!"}},{"$f":"IF(AND(OR(Calculations!$E$2=\"Orkney Health Board\",Calculations!$E$2=\"Orkney Islands Local Authority\"),$F232=1),0,IF(AND(OR(Calculations!$E$2=\"Shetland Health Board\",Calculations!$E$2=\"Western Isles Health Board\",Calculations!$E$2=\"Shetland Islands Local Authority\",Calculations!$E$2=\"Eilean Siar Local Authority\"),OR($F232=1,$F232=5)),0,hosp_count(VALUE(LEFT(Options!$B$14,2)),$C232,$E232,$F232,2016,$I232/10,1,$H232/10,$G232*$H232/10, RateRatios_airpollution!$D232, RateRatios_airpollution!$C232)*10))","v":{"$error":"#VALUE!"}},{"$f":"IF(AND(OR(Calculations!$E$2=\"Orkney Health Board\",Calculations!$E$2=\"Orkney Islands Local Authority\"),$F232=1),0,IF(AND(OR(Calculations!$E$2=\"Shetland Health Board\",Calculations!$E$2=\"Western Isles Health Board\",Calculations!$E$2=\"Shetland Islands Local Authority\",Calculations!$E$2=\"Eilean Siar Local Authority\"),OR($F232=1,$F232=5)),0,hosp_count(VALUE(LEFT(Options!$B$14,2)),$C232,$E232,$F232,2016,$I232/10+$J232/10,1,$H232/10,$G232*$H232/10, RateRatios_airpollution!$D232, RateRatios_airpollution!$C232)*10))","v":{"$error":"#VALUE!"}},{"$f":"IF(AND(OR(Calculations!$E$2=\"Orkney Health Board\",Calculations!$E$2=\"Orkney Islands Local Authority\"),$F232=1),0,IF(AND(OR(Calculations!$E$2=\"Shetland Health Board\",Calculations!$E$2=\"Western Isles Health Board\",Calculations!$E$2=\"Shetland Islands Local Authority\",Calculations!$E$2=\"Eilean Siar Local Authority\"),OR($F232=1,$F232=5)),0,prem_mort(VALUE(LEFT(Options!$B$14,2)),$C232,$E232,$F232,2016,$I232/10,1,$H232/10,$G232*$H232/10,RateRatios_airpollution!$C232)*10))","v":{"$error":"#VALUE!"}},{"$f":"IF(AND(OR(Calculations!$E$2=\"Orkney Health Board\",Calculations!$E$2=\"Orkney Islands Local Authority\"),$F232=1),0,IF(AND(OR(Calculations!$E$2=\"Shetland Health Board\",Calculations!$E$2=\"Western Isles Health Board\",Calculations!$E$2=\"Shetland Islands Local Authority\",Calculations!$E$2=\"Eilean Siar Local Authority\"),OR($F232=1,$F232=5)),0,prem_mort(VALUE(LEFT(Options!$B$14,2)),$C232,$E232,$F232,2016,$I232/10+$J232/10,1,$H232/10,$G232*$H232/10,RateRatios_airpollution!$C232)*10))","v":{"$error":"#VALUE!"}},null,{"$f":"IF(AND(OR(Calculations!$E$2=\"Orkney Health Board\",Calculations!$E$2=\"Orkney Islands Local Authority\"),$F232=1),0,IF(AND(OR(Calculations!$E$2=\"Shetland Health Board\",Calculations!$E$2=\"Western Isles Health Board\",Calculations!$E$2=\"Shetland Islands Local Authority\",Calculations!$E$2=\"Eilean Siar Local Authority\"),OR($F232=1,$F232=5)),0,new_ci(VALUE(LEFT(Options!$B$14,2)),$C232,$E232,$F232,2016,$I232/10,1,$H232/10,$G232*$H232/10,RateRatios_airpollution!$E232)*10))","v":{"$error":"#VALUE!"}},{"$f":"IF(AND(OR(Calculations!$E$2=\"Orkney Health Board\",Calculations!$E$2=\"Orkney Islands Local Authority\"),$F232=1),0,IF(AND(OR(Calculations!$E$2=\"Shetland Health Board\",Calculations!$E$2=\"Western Isles Health Board\",Calculations!$E$2=\"Shetland Islands Local Authority\",Calculations!$E$2=\"Eilean Siar Local Authority\"),OR($F232=1,$F232=5)),0,new_ci(VALUE(LEFT(Options!$B$14,2)),$C232,$E232,$F232,2016,$I232/10+$J232/10,1,$H232/10,$G232*$H232/10,RateRatios_airpollution!$E232)*10))","v":{"$error":"#VALUE!"}},{"$f":"IF(AND(OR(Calculations!$E$2=\"Orkney Health Board\",Calculations!$E$2=\"Orkney Islands Local Authority\"),$F232=1),0,IF(AND(OR(Calculations!$E$2=\"Shetland Health Board\",Calculations!$E$2=\"Western Isles Health Board\",Calculations!$E$2=\"Shetland Islands Local Authority\",Calculations!$E$2=\"Eilean Siar Local Authority\"),OR($F232=1,$F232=5)),0,new_yllv2(VALUE(LEFT(Options!$B$14,2)),$C232,$D232,$E232,$F232,2016,$I232/10,1,$H232/10,$G232*$H232/10,RateRatios_airpollution!$E232)*10))","v":{"$error":"#VALUE!"}},{"$f":"IF(AND(OR(Calculations!$E$2=\"Orkney Health Board\",Calculations!$E$2=\"Orkney Islands Local Authority\"),$F232=1),0,IF(AND(OR(Calculations!$E$2=\"Shetland Health Board\",Calculations!$E$2=\"Western Isles Health Board\",Calculations!$E$2=\"Shetland Islands Local Authority\",Calculations!$E$2=\"Eilean Siar Local Authority\"),OR($F232=1,$F232=5)),0,new_yllv2(VALUE(LEFT(Options!$B$14,2)),$C232,$D232,$E232,$F232,2016,$I232/10+$J232/10,1,$H232/10,$G232*$H232/10,RateRatios_airpollution!$E232)*10))","v":{"$error":"#VALUE!"}},{"$f":"IF(AND(OR(Calculations!$E$2=\"Orkney Health Board\",Calculations!$E$2=\"Orkney Islands Local Authority\"),$F232=1),0,IF(AND(OR(Calculations!$E$2=\"Shetland Health Board\",Calculations!$E$2=\"Western Isles Health Board\",Calculations!$E$2=\"Shetland Islands Local Authority\",Calculations!$E$2=\"Eilean Siar Local Authority\"),OR($F232=1,$F232=5)),0,hosp_count(VALUE(LEFT(Options!$B$14,2)),$C232,$E232,$F232,2016,$I232/10,1,$H232/10,$G232*$H232/10, RateRatios_airpollution!$F232, RateRatios_airpollution!$E232)*10))","v":{"$error":"#VALUE!"}},{"$f":"IF(AND(OR(Calculations!$E$2=\"Orkney Health Board\",Calculations!$E$2=\"Orkney Islands Local Authority\"),$F232=1),0,IF(AND(OR(Calculations!$E$2=\"Shetland Health Board\",Calculations!$E$2=\"Western Isles Health Board\",Calculations!$E$2=\"Shetland Islands Local Authority\",Calculations!$E$2=\"Eilean Siar Local Authority\"),OR($F232=1,$F232=5)),0,hosp_count(VALUE(LEFT(Options!$B$14,2)),$C232,$E232,$F232,2016,$I232/10+$J232/10,1,$H232/10,$G232*$H232/10, RateRatios_airpollution!$F232, RateRatios_airpollution!$E232)*10))","v":{"$error":"#VALUE!"}},{"$f":"IF(AND(OR(Calculations!$E$2=\"Orkney Health Board\",Calculations!$E$2=\"Orkney Islands Local Authority\"),$F232=1),0,IF(AND(OR(Calculations!$E$2=\"Shetland Health Board\",Calculations!$E$2=\"Western Isles Health Board\",Calculations!$E$2=\"Shetland Islands Local Authority\",Calculations!$E$2=\"Eilean Siar Local Authority\"),OR($F232=1,$F232=5)),0,prem_mort(VALUE(LEFT(Options!$B$14,2)),$C232,$E232,$F232,2016,$I232/10,1,$H232/10,$G232*$H232/10,RateRatios_airpollution!$E232)*10))","v":{"$error":"#VALUE!"}},{"$f":"IF(AND(OR(Calculations!$E$2=\"Orkney Health Board\",Calculations!$E$2=\"Orkney Islands Local Authority\"),$F232=1),0,IF(AND(OR(Calculations!$E$2=\"Shetland Health Board\",Calculations!$E$2=\"Western Isles Health Board\",Calculations!$E$2=\"Shetland Islands Local Authority\",Calculations!$E$2=\"Eilean Siar Local Authority\"),OR($F232=1,$F232=5)),0,prem_mort(VALUE(LEFT(Options!$B$14,2)),$C232,$E232,$F232,2016,$I232/10+$J232/10,1,$H232/10,$G232*$H232/10,RateRatios_airpollution!$E232)*10))","v":{"$error":"#VALUE!"}},{"$error":"#VALUE!"},{"$error":"#VALUE!"},{"$error":"#VALUE!"},{"$error":"#VALUE!"},{"$error":"#VALUE!"},{"$error":"#VALUE!"},{"$error":"#VALUE!"},{"$error":"#VALUE!"},{"$error":"#VALUE!"},{"$error":"#VALUE!"},{"$error":"#VALUE!"},{"$error":"#VALUE!"},{"$error":"#VALUE!"},{"$error":"#VALUE!"},{"$error":"#VALUE!"},{"$error":"#VALUE!"},{"$error":"#VALUE!"},{"$error":"#VALUE!"},{"$error":"#VALUE!"},{"$error":"#VALUE!"},{"$error":"#VALUE!"},{"$error":"#VALUE!"},{"$error":"#VALUE!"},{"$error":"#VALUE!"},5500]
[null,"Male 10-15",12.471144000000001,77.921140000000008,"male",5,1,{"$f":"HLOOKUP(Calculations!$E$2,'Population 2016'!$C$3:$BC$249,'Population 2016'!BD233,FALSE)","v":0},0,{"$f":"HLOOKUP(Calculations!$E$2,Pop2016_in_settlements!$C$3:$BC$249,Pop2016_in_settlements!$BD233,FALSE)","v":0},{"$f":"IF(AND(OR(Calculations!$E$2=\"Orkney Health Board\",Calculations!$E$2=\"Orkney Islands Local Authority\"),$F233=1),0,IF(AND(OR(Calculations!$E$2=\"Shetland Health Board\",Calculations!$E$2=\"Western Isles Health Board\",Calculations!$E$2=\"Shetland Islands Local Authority\",Calculations!$E$2=\"Eilean Siar Local Authority\"),OR($F233=1,$F233=5)),0,new_ci(VALUE(LEFT(Options!$B$14,2)),$C233,$E233,$F233,2016,$I233/10,1,$H233/10,$G233*$H233/10,RateRatios_accidents!$B$5)*10))","v":{"$error":"#VALUE!"}},{"$f":"IF(AND(OR(Calculations!$E$2=\"Orkney Health Board\",Calculations!$E$2=\"Orkney Islands Local Authority\"),$F233=1),0,IF(AND(OR(Calculations!$E$2=\"Shetland Health Board\",Calculations!$E$2=\"Western Isles Health Board\",Calculations!$E$2=\"Shetland Islands Local Authority\",Calculations!$E$2=\"Eilean Siar Local Authority\"),OR($F233=1,$F233=5)),0,new_ci(VALUE(LEFT(Options!$B$14,2)),$C233,$E233,$F233,2016,$I233/10+$J233/10,1,$H233/10,$G233*$H233/10,RateRatios_accidents!$B$5)*10))","v":{"$error":"#VALUE!"}},{"$f":"IF(AND(OR(Calculations!$E$2=\"Orkney Health Board\",Calculations!$E$2=\"Orkney Islands Local Authority\"),$F233=1),0,IF(AND(OR(Calculations!$E$2=\"Shetland Health Board\",Calculations!$E$2=\"Western Isles Health Board\",Calculations!$E$2=\"Shetland Islands Local Authority\",Calculations!$E$2=\"Eilean Siar Local Authority\"),OR($F233=1,$F233=5)),0,new_yllv2(VALUE(LEFT(Options!$B$14,2)),$C233,$D233,$E233,$F233,2016,$I233/10,1,$H233/10,$G233*$H233/10,RateRatios_accidents!$B$5)*10))","v":{"$error":"#VALUE!"}},{"$f":"IF(AND(OR(Calculations!$E$2=\"Orkney Health Board\",Calculations!$E$2=\"Orkney Islands Local Authority\"),$F233=1),0,IF(AND(OR(Calculations!$E$2=\"Shetland Health Board\",Calculations!$E$2=\"Western Isles Health Board\",Calculations!$E$2=\"Shetland Islands Local Authority\",Calculations!$E$2=\"Eilean Siar Local Authority\"),OR($F233=1,$F233=5)),0,new_yllv2(VALUE(LEFT(Options!$B$14,2)),$C233,$D233,$E233,$F233,2016,$I233/10+$J233/10,1,$H233/10,$G233*$H233/10,RateRatios_accidents!$B$5)*10))","v":{"$error":"#VALUE!"}},{"$f":"IF(AND(OR(Calculations!$E$2=\"Orkney Health Board\",Calculations!$E$2=\"Orkney Islands Local Authority\"),$F233=1),0,IF(AND(OR(Calculations!$E$2=\"Shetland Health Board\",Calculations!$E$2=\"Western Isles Health Board\",Calculations!$E$2=\"Shetland Islands Local Authority\",Calculations!$E$2=\"Eilean Siar Local Authority\"),OR($F233=1,$F233=5)),0,hosp_count(VALUE(LEFT(Options!$B$14,2)),$C233,$E233,$F233,2016,$I233/10,1,$H233/10,$G233*$H233/10, RateRatios_accidents!$B$4, RateRatios_accidents!$B$5)*10))","v":{"$error":"#VALUE!"}},{"$f":"IF(AND(OR(Calculations!$E$2=\"Orkney Health Board\",Calculations!$E$2=\"Orkney Islands Local Authority\"),$F233=1),0,IF(AND(OR(Calculations!$E$2=\"Shetland Health Board\",Calculations!$E$2=\"Western Isles Health Board\",Calculations!$E$2=\"Shetland Islands Local Authority\",Calculations!$E$2=\"Eilean Siar Local Authority\"),OR($F233=1,$F233=5)),0,hosp_count(VALUE(LEFT(Options!$B$14,2)),$C233,$E233,$F233,2016,$I233/10+$J233/10,1,$H233/10,$G233*$H233/10, RateRatios_accidents!$B$4, RateRatios_accidents!$B$5)*10))","v":{"$error":"#VALUE!"}},{"$f":"IF(AND(OR(Calculations!$E$2=\"Orkney Health Board\",Calculations!$E$2=\"Orkney Islands Local Authority\"),$F233=1),0,IF(AND(OR(Calculations!$E$2=\"Shetland Health Board\",Calculations!$E$2=\"Western Isles Health Board\",Calculations!$E$2=\"Shetland Islands Local Authority\",Calculations!$E$2=\"Eilean Siar Local Authority\"),OR($F233=1,$F233=5)),0,prem_mort(VALUE(LEFT(Options!$B$14,2)),$C233,$E233,$F233,2016,$I233/10,1,$H233/10,$G233*$H233/10,RateRatios_accidents!$B$5)*10))","v":{"$error":"#VALUE!"}},{"$f":"IF(AND(OR(Calculations!$E$2=\"Orkney Health Board\",Calculations!$E$2=\"Orkney Islands Local Authority\"),$F233=1),0,IF(AND(OR(Calculations!$E$2=\"Shetland Health Board\",Calculations!$E$2=\"Western Isles Health Board\",Calculations!$E$2=\"Shetland Islands Local Authority\",Calculations!$E$2=\"Eilean Siar Local Authority\"),OR($F233=1,$F233=5)),0,prem_mort(VALUE(LEFT(Options!$B$14,2)),$C233,$E233,$F233,2016,$I233/10+$J233/10,1,$H233/10,$G233*$H233/10,RateRatios_accidents!$B$5)*10))","v":{"$error":"#VALUE!"}},null,{"$f":"IF(AND(OR(Calculations!$E$2=\"Orkney Health Board\",Calculations!$E$2=\"Orkney Islands Local Authority\"),$F233=1),0,IF(AND(OR(Calculations!$E$2=\"Shetland Health Board\",Calculations!$E$2=\"Western Isles Health Board\",Calculations!$E$2=\"Shetland Islands Local Authority\",Calculations!$E$2=\"Eilean Siar Local Authority\"),OR($F233=1,$F233=5)),0,new_ci(VALUE(LEFT(Options!$B$14,2)),$C233,$E233,$F233,2016,$I233/10,1,$H233/10,$G233*$H233/10,RateRatios_airpollution!$C233)*10))","v":{"$error":"#VALUE!"}},{"$f":"IF(AND(OR(Calculations!$E$2=\"Orkney Health Board\",Calculations!$E$2=\"Orkney Islands Local Authority\"),$F233=1),0,IF(AND(OR(Calculations!$E$2=\"Shetland Health Board\",Calculations!$E$2=\"Western Isles Health Board\",Calculations!$E$2=\"Shetland Islands Local Authority\",Calculations!$E$2=\"Eilean Siar Local Authority\"),OR($F233=1,$F233=5)),0,new_ci(VALUE(LEFT(Options!$B$14,2)),$C233,$E233,$F233,2016,$I233/10+$J233/10,1,$H233/10,$G233*$H233/10,RateRatios_airpollution!$C233)*10))","v":{"$error":"#VALUE!"}},{"$f":"IF(AND(OR(Calculations!$E$2=\"Orkney Health Board\",Calculations!$E$2=\"Orkney Islands Local Authority\"),$F233=1),0,IF(AND(OR(Calculations!$E$2=\"Shetland Health Board\",Calculations!$E$2=\"Western Isles Health Board\",Calculations!$E$2=\"Shetland Islands Local Authority\",Calculations!$E$2=\"Eilean Siar Local Authority\"),OR($F233=1,$F233=5)),0,new_yllv2(VALUE(LEFT(Options!$B$14,2)),$C233,$D233,$E233,$F233,2016,$I233/10,1,$H233/10,$G233*$H233/10,RateRatios_airpollution!$C233)*10))","v":{"$error":"#VALUE!"}},{"$f":"IF(AND(OR(Calculations!$E$2=\"Orkney Health Board\",Calculations!$E$2=\"Orkney Islands Local Authority\"),$F233=1),0,IF(AND(OR(Calculations!$E$2=\"Shetland Health Board\",Calculations!$E$2=\"Western Isles Health Board\",Calculations!$E$2=\"Shetland Islands Local Authority\",Calculations!$E$2=\"Eilean Siar Local Authority\"),OR($F233=1,$F233=5)),0,new_yllv2(VALUE(LEFT(Options!$B$14,2)),$C233,$D233,$E233,$F233,2016,$I233/10+$J233/10,1,$H233/10,$G233*$H233/10,RateRatios_airpollution!$C233)*10))","v":{"$error":"#VALUE!"}},{"$f":"IF(AND(OR(Calculations!$E$2=\"Orkney Health Board\",Calculations!$E$2=\"Orkney Islands Local Authority\"),$F233=1),0,IF(AND(OR(Calculations!$E$2=\"Shetland Health Board\",Calculations!$E$2=\"Western Isles Health Board\",Calculations!$E$2=\"Shetland Islands Local Authority\",Calculations!$E$2=\"Eilean Siar Local Authority\"),OR($F233=1,$F233=5)),0,hosp_count(VALUE(LEFT(Options!$B$14,2)),$C233,$E233,$F233,2016,$I233/10,1,$H233/10,$G233*$H233/10, RateRatios_airpollution!$D233, RateRatios_airpollution!$C233)*10))","v":{"$error":"#VALUE!"}},{"$f":"IF(AND(OR(Calculations!$E$2=\"Orkney Health Board\",Calculations!$E$2=\"Orkney Islands Local Authority\"),$F233=1),0,IF(AND(OR(Calculations!$E$2=\"Shetland Health Board\",Calculations!$E$2=\"Western Isles Health Board\",Calculations!$E$2=\"Shetland Islands Local Authority\",Calculations!$E$2=\"Eilean Siar Local Authority\"),OR($F233=1,$F233=5)),0,hosp_count(VALUE(LEFT(Options!$B$14,2)),$C233,$E233,$F233,2016,$I233/10+$J233/10,1,$H233/10,$G233*$H233/10, RateRatios_airpollution!$D233, RateRatios_airpollution!$C233)*10))","v":{"$error":"#VALUE!"}},{"$f":"IF(AND(OR(Calculations!$E$2=\"Orkney Health Board\",Calculations!$E$2=\"Orkney Islands Local Authority\"),$F233=1),0,IF(AND(OR(Calculations!$E$2=\"Shetland Health Board\",Calculations!$E$2=\"Western Isles Health Board\",Calculations!$E$2=\"Shetland Islands Local Authority\",Calculations!$E$2=\"Eilean Siar Local Authority\"),OR($F233=1,$F233=5)),0,prem_mort(VALUE(LEFT(Options!$B$14,2)),$C233,$E233,$F233,2016,$I233/10,1,$H233/10,$G233*$H233/10,RateRatios_airpollution!$C233)*10))","v":{"$error":"#VALUE!"}},{"$f":"IF(AND(OR(Calculations!$E$2=\"Orkney Health Board\",Calculations!$E$2=\"Orkney Islands Local Authority\"),$F233=1),0,IF(AND(OR(Calculations!$E$2=\"Shetland Health Board\",Calculations!$E$2=\"Western Isles Health Board\",Calculations!$E$2=\"Shetland Islands Local Authority\",Calculations!$E$2=\"Eilean Siar Local Authority\"),OR($F233=1,$F233=5)),0,prem_mort(VALUE(LEFT(Options!$B$14,2)),$C233,$E233,$F233,2016,$I233/10+$J233/10,1,$H233/10,$G233*$H233/10,RateRatios_airpollution!$C233)*10))","v":{"$error":"#VALUE!"}},null,{"$f":"IF(AND(OR(Calculations!$E$2=\"Orkney Health Board\",Calculations!$E$2=\"Orkney Islands Local Authority\"),$F233=1),0,IF(AND(OR(Calculations!$E$2=\"Shetland Health Board\",Calculations!$E$2=\"Western Isles Health Board\",Calculations!$E$2=\"Shetland Islands Local Authority\",Calculations!$E$2=\"Eilean Siar Local Authority\"),OR($F233=1,$F233=5)),0,new_ci(VALUE(LEFT(Options!$B$14,2)),$C233,$E233,$F233,2016,$I233/10,1,$H233/10,$G233*$H233/10,RateRatios_airpollution!$E233)*10))","v":{"$error":"#VALUE!"}},{"$f":"IF(AND(OR(Calculations!$E$2=\"Orkney Health Board\",Calculations!$E$2=\"Orkney Islands Local Authority\"),$F233=1),0,IF(AND(OR(Calculations!$E$2=\"Shetland Health Board\",Calculations!$E$2=\"Western Isles Health Board\",Calculations!$E$2=\"Shetland Islands Local Authority\",Calculations!$E$2=\"Eilean Siar Local Authority\"),OR($F233=1,$F233=5)),0,new_ci(VALUE(LEFT(Options!$B$14,2)),$C233,$E233,$F233,2016,$I233/10+$J233/10,1,$H233/10,$G233*$H233/10,RateRatios_airpollution!$E233)*10))","v":{"$error":"#VALUE!"}},{"$f":"IF(AND(OR(Calculations!$E$2=\"Orkney Health Board\",Calculations!$E$2=\"Orkney Islands Local Authority\"),$F233=1),0,IF(AND(OR(Calculations!$E$2=\"Shetland Health Board\",Calculations!$E$2=\"Western Isles Health Board\",Calculations!$E$2=\"Shetland Islands Local Authority\",Calculations!$E$2=\"Eilean Siar Local Authority\"),OR($F233=1,$F233=5)),0,new_yllv2(VALUE(LEFT(Options!$B$14,2)),$C233,$D233,$E233,$F233,2016,$I233/10,1,$H233/10,$G233*$H233/10,RateRatios_airpollution!$E233)*10))","v":{"$error":"#VALUE!"}},{"$f":"IF(AND(OR(Calculations!$E$2=\"Orkney Health Board\",Calculations!$E$2=\"Orkney Islands Local Authority\"),$F233=1),0,IF(AND(OR(Calculations!$E$2=\"Shetland Health Board\",Calculations!$E$2=\"Western Isles Health Board\",Calculations!$E$2=\"Shetland Islands Local Authority\",Calculations!$E$2=\"Eilean Siar Local Authority\"),OR($F233=1,$F233=5)),0,new_yllv2(VALUE(LEFT(Options!$B$14,2)),$C233,$D233,$E233,$F233,2016,$I233/10+$J233/10,1,$H233/10,$G233*$H233/10,RateRatios_airpollution!$E233)*10))","v":{"$error":"#VALUE!"}},{"$f":"IF(AND(OR(Calculations!$E$2=\"Orkney Health Board\",Calculations!$E$2=\"Orkney Islands Local Authority\"),$F233=1),0,IF(AND(OR(Calculations!$E$2=\"Shetland Health Board\",Calculations!$E$2=\"Western Isles Health Board\",Calculations!$E$2=\"Shetland Islands Local Authority\",Calculations!$E$2=\"Eilean Siar Local Authority\"),OR($F233=1,$F233=5)),0,hosp_count(VALUE(LEFT(Options!$B$14,2)),$C233,$E233,$F233,2016,$I233/10,1,$H233/10,$G233*$H233/10, RateRatios_airpollution!$F233, RateRatios_airpollution!$E233)*10))","v":{"$error":"#VALUE!"}},{"$f":"IF(AND(OR(Calculations!$E$2=\"Orkney Health Board\",Calculations!$E$2=\"Orkney Islands Local Authority\"),$F233=1),0,IF(AND(OR(Calculations!$E$2=\"Shetland Health Board\",Calculations!$E$2=\"Western Isles Health Board\",Calculations!$E$2=\"Shetland Islands Local Authority\",Calculations!$E$2=\"Eilean Siar Local Authority\"),OR($F233=1,$F233=5)),0,hosp_count(VALUE(LEFT(Options!$B$14,2)),$C233,$E233,$F233,2016,$I233/10+$J233/10,1,$H233/10,$G233*$H233/10, RateRatios_airpollution!$F233, RateRatios_airpollution!$E233)*10))","v":{"$error":"#VALUE!"}},{"$f":"IF(AND(OR(Calculations!$E$2=\"Orkney Health Board\",Calculations!$E$2=\"Orkney Islands Local Authority\"),$F233=1),0,IF(AND(OR(Calculations!$E$2=\"Shetland Health Board\",Calculations!$E$2=\"Western Isles Health Board\",Calculations!$E$2=\"Shetland Islands Local Authority\",Calculations!$E$2=\"Eilean Siar Local Authority\"),OR($F233=1,$F233=5)),0,prem_mort(VALUE(LEFT(Options!$B$14,2)),$C233,$E233,$F233,2016,$I233/10,1,$H233/10,$G233*$H233/10,RateRatios_airpollution!$E233)*10))","v":{"$error":"#VALUE!"}},{"$f":"IF(AND(OR(Calculations!$E$2=\"Orkney Health Board\",Calculations!$E$2=\"Orkney Islands Local Authority\"),$F233=1),0,IF(AND(OR(Calculations!$E$2=\"Shetland Health Board\",Calculations!$E$2=\"Western Isles Health Board\",Calculations!$E$2=\"Shetland Islands Local Authority\",Calculations!$E$2=\"Eilean Siar Local Authority\"),OR($F233=1,$F233=5)),0,prem_mort(VALUE(LEFT(Options!$B$14,2)),$C233,$E233,$F233,2016,$I233/10+$J233/10,1,$H233/10,$G233*$H233/10,RateRatios_airpollution!$E233)*10))","v":{"$error":"#VALUE!"}},{"$error":"#VALUE!"},{"$error":"#VALUE!"},{"$error":"#VALUE!"},{"$error":"#VALUE!"},{"$error":"#VALUE!"},{"$error":"#VALUE!"},{"$error":"#VALUE!"},{"$error":"#VALUE!"},{"$error":"#VALUE!"},{"$error":"#VALUE!"},{"$error":"#VALUE!"},{"$error":"#VALUE!"},{"$error":"#VALUE!"},{"$error":"#VALUE!"},{"$error":"#VALUE!"},{"$error":"#VALUE!"},{"$error":"#VALUE!"},{"$error":"#VALUE!"},{"$error":"#VALUE!"},{"$error":"#VALUE!"},{"$error":"#VALUE!"},{"$error":"#VALUE!"},{"$error":"#VALUE!"},{"$error":"#VALUE!"},6600]
[null,"Male 16-19",17.556318000000001,77.07632000000001,"male",5,1,{"$f":"HLOOKUP(Calculations!$E$2,'Population 2016'!$C$3:$BC$249,'Population 2016'!BD234,FALSE)","v":26907},0,{"$f":"HLOOKUP(Calculations!$E$2,Pop2016_in_settlements!$C$3:$BC$249,Pop2016_in_settlements!$BD234,FALSE)","v":13122},{"$f":"IF(AND(OR(Calculations!$E$2=\"Orkney Health Board\",Calculations!$E$2=\"Orkney Islands Local Authority\"),$F234=1),0,IF(AND(OR(Calculations!$E$2=\"Shetland Health Board\",Calculations!$E$2=\"Western Isles Health Board\",Calculations!$E$2=\"Shetland Islands Local Authority\",Calculations!$E$2=\"Eilean Siar Local Authority\"),OR($F234=1,$F234=5)),0,new_ci(VALUE(LEFT(Options!$B$14,2)),$C234,$E234,$F234,2016,$I234/10,1,$H234/10,$G234*$H234/10,RateRatios_accidents!$B$5)*10))","v":6.7201927640000001},{"$f":"IF(AND(OR(Calculations!$E$2=\"Orkney Health Board\",Calculations!$E$2=\"Orkney Islands Local Authority\"),$F234=1),0,IF(AND(OR(Calculations!$E$2=\"Shetland Health Board\",Calculations!$E$2=\"Western Isles Health Board\",Calculations!$E$2=\"Shetland Islands Local Authority\",Calculations!$E$2=\"Eilean Siar Local Authority\"),OR($F234=1,$F234=5)),0,new_ci(VALUE(LEFT(Options!$B$14,2)),$C234,$E234,$F234,2016,$I234/10+$J234/10,1,$H234/10,$G234*$H234/10,RateRatios_accidents!$B$5)*10))","v":6.7188818760000002},{"$f":"IF(AND(OR(Calculations!$E$2=\"Orkney Health Board\",Calculations!$E$2=\"Orkney Islands Local Authority\"),$F234=1),0,IF(AND(OR(Calculations!$E$2=\"Shetland Health Board\",Calculations!$E$2=\"Western Isles Health Board\",Calculations!$E$2=\"Shetland Islands Local Authority\",Calculations!$E$2=\"Eilean Siar Local Authority\"),OR($F234=1,$F234=5)),0,new_yllv2(VALUE(LEFT(Options!$B$14,2)),$C234,$D234,$E234,$F234,2016,$I234/10,1,$H234/10,$G234*$H234/10,RateRatios_accidents!$B$5)*10))","v":393.26569398999999},{"$f":"IF(AND(OR(Calculations!$E$2=\"Orkney Health Board\",Calculations!$E$2=\"Orkney Islands Local Authority\"),$F234=1),0,IF(AND(OR(Calculations!$E$2=\"Shetland Health Board\",Calculations!$E$2=\"Western Isles Health Board\",Calculations!$E$2=\"Shetland Islands Local Authority\",Calculations!$E$2=\"Eilean Siar Local Authority\"),OR($F234=1,$F234=5)),0,new_yllv2(VALUE(LEFT(Options!$B$14,2)),$C234,$D234,$E234,$F234,2016,$I234/10+$J234/10,1,$H234/10,$G234*$H234/10,RateRatios_accidents!$B$5)*10))","v":393.18898082099997},{"$f":"IF(AND(OR(Calculations!$E$2=\"Orkney Health Board\",Calculations!$E$2=\"Orkney Islands Local Authority\"),$F234=1),0,IF(AND(OR(Calculations!$E$2=\"Shetland Health Board\",Calculations!$E$2=\"Western Isles Health Board\",Calculations!$E$2=\"Shetland Islands Local Authority\",Calculations!$E$2=\"Eilean Siar Local Authority\"),OR($F234=1,$F234=5)),0,hosp_count(VALUE(LEFT(Options!$B$14,2)),$C234,$E234,$F234,2016,$I234/10,1,$H234/10,$G234*$H234/10, RateRatios_accidents!$B$4, RateRatios_accidents!$B$5)*10))","v":1431.672900174},{"$f":"IF(AND(OR(Calculations!$E$2=\"Orkney Health Board\",Calculations!$E$2=\"Orkney Islands Local Authority\"),$F234=1),0,IF(AND(OR(Calculations!$E$2=\"Shetland Health Board\",Calculations!$E$2=\"Western Isles Health Board\",Calculations!$E$2=\"Shetland Islands Local Authority\",Calculations!$E$2=\"Eilean Siar Local Authority\"),OR($F234=1,$F234=5)),0,hosp_count(VALUE(LEFT(Options!$B$14,2)),$C234,$E234,$F234,2016,$I234/10+$J234/10,1,$H234/10,$G234*$H234/10, RateRatios_accidents!$B$4, RateRatios_accidents!$B$5)*10))","v":1431.393620712},{"$f":"IF(AND(OR(Calculations!$E$2=\"Orkney Health Board\",Calculations!$E$2=\"Orkney Islands Local Authority\"),$F234=1),0,IF(AND(OR(Calculations!$E$2=\"Shetland Health Board\",Calculations!$E$2=\"Western Isles Health Board\",Calculations!$E$2=\"Shetland Islands Local Authority\",Calculations!$E$2=\"Eilean Siar Local Authority\"),OR($F234=1,$F234=5)),0,prem_mort(VALUE(LEFT(Options!$B$14,2)),$C234,$E234,$F234,2016,$I234/10,1,$H234/10,$G234*$H234/10,RateRatios_accidents!$B$5)*10))","v":6.7201927640000001},{"$f":"IF(AND(OR(Calculations!$E$2=\"Orkney Health Board\",Calculations!$E$2=\"Orkney Islands Local Authority\"),$F234=1),0,IF(AND(OR(Calculations!$E$2=\"Shetland Health Board\",Calculations!$E$2=\"Western Isles Health Board\",Calculations!$E$2=\"Shetland Islands Local Authority\",Calculations!$E$2=\"Eilean Siar Local Authority\"),OR($F234=1,$F234=5)),0,prem_mort(VALUE(LEFT(Options!$B$14,2)),$C234,$E234,$F234,2016,$I234/10+$J234/10,1,$H234/10,$G234*$H234/10,RateRatios_accidents!$B$5)*10))","v":6.7188818760000002},null,{"$f":"IF(AND(OR(Calculations!$E$2=\"Orkney Health Board\",Calculations!$E$2=\"Orkney Islands Local Authority\"),$F234=1),0,IF(AND(OR(Calculations!$E$2=\"Shetland Health Board\",Calculations!$E$2=\"Western Isles Health Board\",Calculations!$E$2=\"Shetland Islands Local Authority\",Calculations!$E$2=\"Eilean Siar Local Authority\"),OR($F234=1,$F234=5)),0,new_ci(VALUE(LEFT(Options!$B$14,2)),$C234,$E234,$F234,2016,$I234/10,1,$H234/10,$G234*$H234/10,RateRatios_airpollution!$C234)*10))","v":6.7201927640000001},{"$f":"IF(AND(OR(Calculations!$E$2=\"Orkney Health Board\",Calculations!$E$2=\"Orkney Islands Local Authority\"),$F234=1),0,IF(AND(OR(Calculations!$E$2=\"Shetland Health Board\",Calculations!$E$2=\"Western Isles Health Board\",Calculations!$E$2=\"Shetland Islands Local Authority\",Calculations!$E$2=\"Eilean Siar Local Authority\"),OR($F234=1,$F234=5)),0,new_ci(VALUE(LEFT(Options!$B$14,2)),$C234,$E234,$F234,2016,$I234/10+$J234/10,1,$H234/10,$G234*$H234/10,RateRatios_airpollution!$C234)*10))","v":6.7201140319999997},{"$f":"IF(AND(OR(Calculations!$E$2=\"Orkney Health Board\",Calculations!$E$2=\"Orkney Islands Local Authority\"),$F234=1),0,IF(AND(OR(Calculations!$E$2=\"Shetland Health Board\",Calculations!$E$2=\"Western Isles Health Board\",Calculations!$E$2=\"Shetland Islands Local Authority\",Calculations!$E$2=\"Eilean Siar Local Authority\"),OR($F234=1,$F234=5)),0,new_yllv2(VALUE(LEFT(Options!$B$14,2)),$C234,$D234,$E234,$F234,2016,$I234/10,1,$H234/10,$G234*$H234/10,RateRatios_airpollution!$C234)*10))","v":393.26569398999999},{"$f":"IF(AND(OR(Calculations!$E$2=\"Orkney Health Board\",Calculations!$E$2=\"Orkney Islands Local Authority\"),$F234=1),0,IF(AND(OR(Calculations!$E$2=\"Shetland Health Board\",Calculations!$E$2=\"Western Isles Health Board\",Calculations!$E$2=\"Shetland Islands Local Authority\",Calculations!$E$2=\"Eilean Siar Local Authority\"),OR($F234=1,$F234=5)),0,new_yllv2(VALUE(LEFT(Options!$B$14,2)),$C234,$D234,$E234,$F234,2016,$I234/10+$J234/10,1,$H234/10,$G234*$H234/10,RateRatios_airpollution!$C234)*10))","v":393.26108659299996},{"$f":"IF(AND(OR(Calculations!$E$2=\"Orkney Health Board\",Calculations!$E$2=\"Orkney Islands Local Authority\"),$F234=1),0,IF(AND(OR(Calculations!$E$2=\"Shetland Health Board\",Calculations!$E$2=\"Western Isles Health Board\",Calculations!$E$2=\"Shetland Islands Local Authority\",Calculations!$E$2=\"Eilean Siar Local Authority\"),OR($F234=1,$F234=5)),0,hosp_count(VALUE(LEFT(Options!$B$14,2)),$C234,$E234,$F234,2016,$I234/10,1,$H234/10,$G234*$H234/10, RateRatios_airpollution!$D234, RateRatios_airpollution!$C234)*10))","v":1431.672900174},{"$f":"IF(AND(OR(Calculations!$E$2=\"Orkney Health Board\",Calculations!$E$2=\"Orkney Islands Local Authority\"),$F234=1),0,IF(AND(OR(Calculations!$E$2=\"Shetland Health Board\",Calculations!$E$2=\"Western Isles Health Board\",Calculations!$E$2=\"Shetland Islands Local Authority\",Calculations!$E$2=\"Eilean Siar Local Authority\"),OR($F234=1,$F234=5)),0,hosp_count(VALUE(LEFT(Options!$B$14,2)),$C234,$E234,$F234,2016,$I234/10+$J234/10,1,$H234/10,$G234*$H234/10, RateRatios_airpollution!$D234, RateRatios_airpollution!$C234)*10))","v":1431.6414546140002},{"$f":"IF(AND(OR(Calculations!$E$2=\"Orkney Health Board\",Calculations!$E$2=\"Orkney Islands Local Authority\"),$F234=1),0,IF(AND(OR(Calculations!$E$2=\"Shetland Health Board\",Calculations!$E$2=\"Western Isles Health Board\",Calculations!$E$2=\"Shetland Islands Local Authority\",Calculations!$E$2=\"Eilean Siar Local Authority\"),OR($F234=1,$F234=5)),0,prem_mort(VALUE(LEFT(Options!$B$14,2)),$C234,$E234,$F234,2016,$I234/10,1,$H234/10,$G234*$H234/10,RateRatios_airpollution!$C234)*10))","v":6.7201927640000001},{"$f":"IF(AND(OR(Calculations!$E$2=\"Orkney Health Board\",Calculations!$E$2=\"Orkney Islands Local Authority\"),$F234=1),0,IF(AND(OR(Calculations!$E$2=\"Shetland Health Board\",Calculations!$E$2=\"Western Isles Health Board\",Calculations!$E$2=\"Shetland Islands Local Authority\",Calculations!$E$2=\"Eilean Siar Local Authority\"),OR($F234=1,$F234=5)),0,prem_mort(VALUE(LEFT(Options!$B$14,2)),$C234,$E234,$F234,2016,$I234/10+$J234/10,1,$H234/10,$G234*$H234/10,RateRatios_airpollution!$C234)*10))","v":6.7201140319999997},null,{"$f":"IF(AND(OR(Calculations!$E$2=\"Orkney Health Board\",Calculations!$E$2=\"Orkney Islands Local Authority\"),$F234=1),0,IF(AND(OR(Calculations!$E$2=\"Shetland Health Board\",Calculations!$E$2=\"Western Isles Health Board\",Calculations!$E$2=\"Shetland Islands Local Authority\",Calculations!$E$2=\"Eilean Siar Local Authority\"),OR($F234=1,$F234=5)),0,new_ci(VALUE(LEFT(Options!$B$14,2)),$C234,$E234,$F234,2016,$I234/10,1,$H234/10,$G234*$H234/10,RateRatios_airpollution!$E234)*10))","v":6.7201927640000001},{"$f":"IF(AND(OR(Calculations!$E$2=\"Orkney Health Board\",Calculations!$E$2=\"Orkney Islands Local Authority\"),$F234=1),0,IF(AND(OR(Calculations!$E$2=\"Shetland Health Board\",Calculations!$E$2=\"Western Isles Health Board\",Calculations!$E$2=\"Shetland Islands Local Authority\",Calculations!$E$2=\"Eilean Siar Local Authority\"),OR($F234=1,$F234=5)),0,new_ci(VALUE(LEFT(Options!$B$14,2)),$C234,$E234,$F234,2016,$I234/10+$J234/10,1,$H234/10,$G234*$H234/10,RateRatios_airpollution!$E234)*10))","v":6.7201573349999997},{"$f":"IF(AND(OR(Calculations!$E$2=\"Orkney Health Board\",Calculations!$E$2=\"Orkney Islands Local Authority\"),$F234=1),0,IF(AND(OR(Calculations!$E$2=\"Shetland Health Board\",Calculations!$E$2=\"Western Isles Health Board\",Calculations!$E$2=\"Shetland Islands Local Authority\",Calculations!$E$2=\"Eilean Siar Local Authority\"),OR($F234=1,$F234=5)),0,new_yllv2(VALUE(LEFT(Options!$B$14,2)),$C234,$D234,$E234,$F234,2016,$I234/10,1,$H234/10,$G234*$H234/10,RateRatios_airpollution!$E234)*10))","v":393.26569398999999},{"$f":"IF(AND(OR(Calculations!$E$2=\"Orkney Health Board\",Calculations!$E$2=\"Orkney Islands Local Authority\"),$F234=1),0,IF(AND(OR(Calculations!$E$2=\"Shetland Health Board\",Calculations!$E$2=\"Western Isles Health Board\",Calculations!$E$2=\"Shetland Islands Local Authority\",Calculations!$E$2=\"Eilean Siar Local Authority\"),OR($F234=1,$F234=5)),0,new_yllv2(VALUE(LEFT(Options!$B$14,2)),$C234,$D234,$E234,$F234,2016,$I234/10+$J234/10,1,$H234/10,$G234*$H234/10,RateRatios_airpollution!$E234)*10))","v":393.26362068500003},{"$f":"IF(AND(OR(Calculations!$E$2=\"Orkney Health Board\",Calculations!$E$2=\"Orkney Islands Local Authority\"),$F234=1),0,IF(AND(OR(Calculations!$E$2=\"Shetland Health Board\",Calculations!$E$2=\"Western Isles Health Board\",Calculations!$E$2=\"Shetland Islands Local Authority\",Calculations!$E$2=\"Eilean Siar Local Authority\"),OR($F234=1,$F234=5)),0,hosp_count(VALUE(LEFT(Options!$B$14,2)),$C234,$E234,$F234,2016,$I234/10,1,$H234/10,$G234*$H234/10, RateRatios_airpollution!$F234, RateRatios_airpollution!$E234)*10))","v":1431.672900174},{"$f":"IF(AND(OR(Calculations!$E$2=\"Orkney Health Board\",Calculations!$E$2=\"Orkney Islands Local Authority\"),$F234=1),0,IF(AND(OR(Calculations!$E$2=\"Shetland Health Board\",Calculations!$E$2=\"Western Isles Health Board\",Calculations!$E$2=\"Shetland Islands Local Authority\",Calculations!$E$2=\"Eilean Siar Local Authority\"),OR($F234=1,$F234=5)),0,hosp_count(VALUE(LEFT(Options!$B$14,2)),$C234,$E234,$F234,2016,$I234/10+$J234/10,1,$H234/10,$G234*$H234/10, RateRatios_airpollution!$F234, RateRatios_airpollution!$E234)*10))","v":1431.672900174},{"$f":"IF(AND(OR(Calculations!$E$2=\"Orkney Health Board\",Calculations!$E$2=\"Orkney Islands Local Authority\"),$F234=1),0,IF(AND(OR(Calculations!$E$2=\"Shetland Health Board\",Calculations!$E$2=\"Western Isles Health Board\",Calculations!$E$2=\"Shetland Islands Local Authority\",Calculations!$E$2=\"Eilean Siar Local Authority\"),OR($F234=1,$F234=5)),0,prem_mort(VALUE(LEFT(Options!$B$14,2)),$C234,$E234,$F234,2016,$I234/10,1,$H234/10,$G234*$H234/10,RateRatios_airpollution!$E234)*10))","v":6.7201927640000001},{"$f":"IF(AND(OR(Calculations!$E$2=\"Orkney Health Board\",Calculations!$E$2=\"Orkney Islands Local Authority\"),$F234=1),0,IF(AND(OR(Calculations!$E$2=\"Shetland Health Board\",Calculations!$E$2=\"Western Isles Health Board\",Calculations!$E$2=\"Shetland Islands Local Authority\",Calculations!$E$2=\"Eilean Siar Local Authority\"),OR($F234=1,$F234=5)),0,prem_mort(VALUE(LEFT(Options!$B$14,2)),$C234,$E234,$F234,2016,$I234/10+$J234/10,1,$H234/10,$G234*$H234/10,RateRatios_airpollution!$E234)*10))","v":6.7201573349999997},6.7201927640000001,6.7187677149999994,393.26569398999999,393.18230011899999,1431.672900174,1431.3621751520002,6.7201927640000001,6.7187677149999994,24.97562999962835,24.970333797896455,1461.573917530754,1461.2639837923218,5320.8194899988848,5319.6646789014021,24.97562999962835,24.970333797896455,109892.77199836474,109869.4687107444,6430925.2371353172,6429561.5286862161,23411605.755995095,23406524.587166168,109892.77199836474,109869.4687107444,4400]
[null,"Male 20-24",22.054632000000002,77.704629999999995,"male",5,1,{"$f":"HLOOKUP(Calculations!$E$2,'Population 2016'!$C$3:$BC$249,'Population 2016'!BD235,FALSE)","v":38069},0,{"$f":"HLOOKUP(Calculations!$E$2,Pop2016_in_settlements!$C$3:$BC$249,Pop2016_in_settlements!$BD235,FALSE)","v":17489},{"$f":"IF(AND(OR(Calculations!$E$2=\"Orkney Health Board\",Calculations!$E$2=\"Orkney Islands Local Authority\"),$F235=1),0,IF(AND(OR(Calculations!$E$2=\"Shetland Health Board\",Calculations!$E$2=\"Western Isles Health Board\",Calculations!$E$2=\"Shetland Islands Local Authority\",Calculations!$E$2=\"Eilean Siar Local Authority\"),OR($F235=1,$F235=5)),0,new_ci(VALUE(LEFT(Options!$B$14,2)),$C235,$E235,$F235,2016,$I235/10,1,$H235/10,$G235*$H235/10,RateRatios_accidents!$B$5)*10))","v":13.352351515000001},{"$f":"IF(AND(OR(Calculations!$E$2=\"Orkney Health Board\",Calculations!$E$2=\"Orkney Islands Local Authority\"),$F235=1),0,IF(AND(OR(Calculations!$E$2=\"Shetland Health Board\",Calculations!$E$2=\"Western Isles Health Board\",Calculations!$E$2=\"Shetland Islands Local Authority\",Calculations!$E$2=\"Eilean Siar Local Authority\"),OR($F235=1,$F235=5)),0,new_ci(VALUE(LEFT(Options!$B$14,2)),$C235,$E235,$F235,2016,$I235/10+$J235/10,1,$H235/10,$G235*$H235/10,RateRatios_accidents!$B$5)*10))","v":13.349897808},{"$f":"IF(AND(OR(Calculations!$E$2=\"Orkney Health Board\",Calculations!$E$2=\"Orkney Islands Local Authority\"),$F235=1),0,IF(AND(OR(Calculations!$E$2=\"Shetland Health Board\",Calculations!$E$2=\"Western Isles Health Board\",Calculations!$E$2=\"Shetland Islands Local Authority\",Calculations!$E$2=\"Eilean Siar Local Authority\"),OR($F235=1,$F235=5)),0,new_yllv2(VALUE(LEFT(Options!$B$14,2)),$C235,$D235,$E235,$F235,2016,$I235/10,1,$H235/10,$G235*$H235/10,RateRatios_accidents!$B$5)*10))","v":729.70598358999996},{"$f":"IF(AND(OR(Calculations!$E$2=\"Orkney Health Board\",Calculations!$E$2=\"Orkney Islands Local Authority\"),$F235=1),0,IF(AND(OR(Calculations!$E$2=\"Shetland Health Board\",Calculations!$E$2=\"Western Isles Health Board\",Calculations!$E$2=\"Shetland Islands Local Authority\",Calculations!$E$2=\"Eilean Siar Local Authority\"),OR($F235=1,$F235=5)),0,new_yllv2(VALUE(LEFT(Options!$B$14,2)),$C235,$D235,$E235,$F235,2016,$I235/10+$J235/10,1,$H235/10,$G235*$H235/10,RateRatios_accidents!$B$5)*10))","v":729.57188850700004},{"$f":"IF(AND(OR(Calculations!$E$2=\"Orkney Health Board\",Calculations!$E$2=\"Orkney Islands Local Authority\"),$F235=1),0,IF(AND(OR(Calculations!$E$2=\"Shetland Health Board\",Calculations!$E$2=\"Western Isles Health Board\",Calculations!$E$2=\"Shetland Islands Local Authority\",Calculations!$E$2=\"Eilean Siar Local Authority\"),OR($F235=1,$F235=5)),0,hosp_count(VALUE(LEFT(Options!$B$14,2)),$C235,$E235,$F235,2016,$I235/10,1,$H235/10,$G235*$H235/10, RateRatios_accidents!$B$4, RateRatios_accidents!$B$5)*10))","v":2376.2555364589998},{"$f":"IF(AND(OR(Calculations!$E$2=\"Orkney Health Board\",Calculations!$E$2=\"Orkney Islands Local Authority\"),$F235=1),0,IF(AND(OR(Calculations!$E$2=\"Shetland Health Board\",Calculations!$E$2=\"Western Isles Health Board\",Calculations!$E$2=\"Shetland Islands Local Authority\",Calculations!$E$2=\"Eilean Siar Local Authority\"),OR($F235=1,$F235=5)),0,hosp_count(VALUE(LEFT(Options!$B$14,2)),$C235,$E235,$F235,2016,$I235/10+$J235/10,1,$H235/10,$G235*$H235/10, RateRatios_accidents!$B$4, RateRatios_accidents!$B$5)*10))","v":2375.8188728559999},{"$f":"IF(AND(OR(Calculations!$E$2=\"Orkney Health Board\",Calculations!$E$2=\"Orkney Islands Local Authority\"),$F235=1),0,IF(AND(OR(Calculations!$E$2=\"Shetland Health Board\",Calculations!$E$2=\"Western Isles Health Board\",Calculations!$E$2=\"Shetland Islands Local Authority\",Calculations!$E$2=\"Eilean Siar Local Authority\"),OR($F235=1,$F235=5)),0,prem_mort(VALUE(LEFT(Options!$B$14,2)),$C235,$E235,$F235,2016,$I235/10,1,$H235/10,$G235*$H235/10,RateRatios_accidents!$B$5)*10))","v":13.352351515000001},{"$f":"IF(AND(OR(Calculations!$E$2=\"Orkney Health Board\",Calculations!$E$2=\"Orkney Islands Local Authority\"),$F235=1),0,IF(AND(OR(Calculations!$E$2=\"Shetland Health Board\",Calculations!$E$2=\"Western Isles Health Board\",Calculations!$E$2=\"Shetland Islands Local Authority\",Calculations!$E$2=\"Eilean Siar Local Authority\"),OR($F235=1,$F235=5)),0,prem_mort(VALUE(LEFT(Options!$B$14,2)),$C235,$E235,$F235,2016,$I235/10+$J235/10,1,$H235/10,$G235*$H235/10,RateRatios_accidents!$B$5)*10))","v":13.349897808},null,{"$f":"IF(AND(OR(Calculations!$E$2=\"Orkney Health Board\",Calculations!$E$2=\"Orkney Islands Local Authority\"),$F235=1),0,IF(AND(OR(Calculations!$E$2=\"Shetland Health Board\",Calculations!$E$2=\"Western Isles Health Board\",Calculations!$E$2=\"Shetland Islands Local Authority\",Calculations!$E$2=\"Eilean Siar Local Authority\"),OR($F235=1,$F235=5)),0,new_ci(VALUE(LEFT(Options!$B$14,2)),$C235,$E235,$F235,2016,$I235/10,1,$H235/10,$G235*$H235/10,RateRatios_airpollution!$C235)*10))","v":13.352351515000001},{"$f":"IF(AND(OR(Calculations!$E$2=\"Orkney Health Board\",Calculations!$E$2=\"Orkney Islands Local Authority\"),$F235=1),0,IF(AND(OR(Calculations!$E$2=\"Shetland Health Board\",Calculations!$E$2=\"Western Isles Health Board\",Calculations!$E$2=\"Shetland Islands Local Authority\",Calculations!$E$2=\"Eilean Siar Local Authority\"),OR($F235=1,$F235=5)),0,new_ci(VALUE(LEFT(Options!$B$14,2)),$C235,$E235,$F235,2016,$I235/10+$J235/10,1,$H235/10,$G235*$H235/10,RateRatios_airpollution!$C235)*10))","v":13.352166132000001},{"$f":"IF(AND(OR(Calculations!$E$2=\"Orkney Health Board\",Calculations!$E$2=\"Orkney Islands Local Authority\"),$F235=1),0,IF(AND(OR(Calculations!$E$2=\"Shetland Health Board\",Calculations!$E$2=\"Western Isles Health Board\",Calculations!$E$2=\"Shetland Islands Local Authority\",Calculations!$E$2=\"Eilean Siar Local Authority\"),OR($F235=1,$F235=5)),0,new_yllv2(VALUE(LEFT(Options!$B$14,2)),$C235,$D235,$E235,$F235,2016,$I235/10,1,$H235/10,$G235*$H235/10,RateRatios_airpollution!$C235)*10))","v":729.70598358999996},{"$f":"IF(AND(OR(Calculations!$E$2=\"Orkney Health Board\",Calculations!$E$2=\"Orkney Islands Local Authority\"),$F235=1),0,IF(AND(OR(Calculations!$E$2=\"Shetland Health Board\",Calculations!$E$2=\"Western Isles Health Board\",Calculations!$E$2=\"Shetland Islands Local Authority\",Calculations!$E$2=\"Eilean Siar Local Authority\"),OR($F235=1,$F235=5)),0,new_yllv2(VALUE(LEFT(Options!$B$14,2)),$C235,$D235,$E235,$F235,2016,$I235/10+$J235/10,1,$H235/10,$G235*$H235/10,RateRatios_airpollution!$C235)*10))","v":729.69585240900005},{"$f":"IF(AND(OR(Calculations!$E$2=\"Orkney Health Board\",Calculations!$E$2=\"Orkney Islands Local Authority\"),$F235=1),0,IF(AND(OR(Calculations!$E$2=\"Shetland Health Board\",Calculations!$E$2=\"Western Isles Health Board\",Calculations!$E$2=\"Shetland Islands Local Authority\",Calculations!$E$2=\"Eilean Siar Local Authority\"),OR($F235=1,$F235=5)),0,hosp_count(VALUE(LEFT(Options!$B$14,2)),$C235,$E235,$F235,2016,$I235/10,1,$H235/10,$G235*$H235/10, RateRatios_airpollution!$D235, RateRatios_airpollution!$C235)*10))","v":2376.2555364589998},{"$f":"IF(AND(OR(Calculations!$E$2=\"Orkney Health Board\",Calculations!$E$2=\"Orkney Islands Local Authority\"),$F235=1),0,IF(AND(OR(Calculations!$E$2=\"Shetland Health Board\",Calculations!$E$2=\"Western Isles Health Board\",Calculations!$E$2=\"Shetland Islands Local Authority\",Calculations!$E$2=\"Eilean Siar Local Authority\"),OR($F235=1,$F235=5)),0,hosp_count(VALUE(LEFT(Options!$B$14,2)),$C235,$E235,$F235,2016,$I235/10+$J235/10,1,$H235/10,$G235*$H235/10, RateRatios_airpollution!$D235, RateRatios_airpollution!$C235)*10))","v":2376.1934067860002},{"$f":"IF(AND(OR(Calculations!$E$2=\"Orkney Health Board\",Calculations!$E$2=\"Orkney Islands Local Authority\"),$F235=1),0,IF(AND(OR(Calculations!$E$2=\"Shetland Health Board\",Calculations!$E$2=\"Western Isles Health Board\",Calculations!$E$2=\"Shetland Islands Local Authority\",Calculations!$E$2=\"Eilean Siar Local Authority\"),OR($F235=1,$F235=5)),0,prem_mort(VALUE(LEFT(Options!$B$14,2)),$C235,$E235,$F235,2016,$I235/10,1,$H235/10,$G235*$H235/10,RateRatios_airpollution!$C235)*10))","v":13.352351515000001},{"$f":"IF(AND(OR(Calculations!$E$2=\"Orkney Health Board\",Calculations!$E$2=\"Orkney Islands Local Authority\"),$F235=1),0,IF(AND(OR(Calculations!$E$2=\"Shetland Health Board\",Calculations!$E$2=\"Western Isles Health Board\",Calculations!$E$2=\"Shetland Islands Local Authority\",Calculations!$E$2=\"Eilean Siar Local Authority\"),OR($F235=1,$F235=5)),0,prem_mort(VALUE(LEFT(Options!$B$14,2)),$C235,$E235,$F235,2016,$I235/10+$J235/10,1,$H235/10,$G235*$H235/10,RateRatios_airpollution!$C235)*10))","v":13.352166132000001},null,{"$f":"IF(AND(OR(Calculations!$E$2=\"Orkney Health Board\",Calculations!$E$2=\"Orkney Islands Local Authority\"),$F235=1),0,IF(AND(OR(Calculations!$E$2=\"Shetland Health Board\",Calculations!$E$2=\"Western Isles Health Board\",Calculations!$E$2=\"Shetland Islands Local Authority\",Calculations!$E$2=\"Eilean Siar Local Authority\"),OR($F235=1,$F235=5)),0,new_ci(VALUE(LEFT(Options!$B$14,2)),$C235,$E235,$F235,2016,$I235/10,1,$H235/10,$G235*$H235/10,RateRatios_airpollution!$E235)*10))","v":13.352351515000001},{"$f":"IF(AND(OR(Calculations!$E$2=\"Orkney Health Board\",Calculations!$E$2=\"Orkney Islands Local Authority\"),$F235=1),0,IF(AND(OR(Calculations!$E$2=\"Shetland Health Board\",Calculations!$E$2=\"Western Isles Health Board\",Calculations!$E$2=\"Shetland Islands Local Authority\",Calculations!$E$2=\"Eilean Siar Local Authority\"),OR($F235=1,$F235=5)),0,new_ci(VALUE(LEFT(Options!$B$14,2)),$C235,$E235,$F235,2016,$I235/10+$J235/10,1,$H235/10,$G235*$H235/10,RateRatios_airpollution!$E235)*10))","v":13.352272814999999},{"$f":"IF(AND(OR(Calculations!$E$2=\"Orkney Health Board\",Calculations!$E$2=\"Orkney Islands Local Authority\"),$F235=1),0,IF(AND(OR(Calculations!$E$2=\"Shetland Health Board\",Calculations!$E$2=\"Western Isles Health Board\",Calculations!$E$2=\"Shetland Islands Local Authority\",Calculations!$E$2=\"Eilean Siar Local Authority\"),OR($F235=1,$F235=5)),0,new_yllv2(VALUE(LEFT(Options!$B$14,2)),$C235,$D235,$E235,$F235,2016,$I235/10,1,$H235/10,$G235*$H235/10,RateRatios_airpollution!$E235)*10))","v":729.70598358999996},{"$f":"IF(AND(OR(Calculations!$E$2=\"Orkney Health Board\",Calculations!$E$2=\"Orkney Islands Local Authority\"),$F235=1),0,IF(AND(OR(Calculations!$E$2=\"Shetland Health Board\",Calculations!$E$2=\"Western Isles Health Board\",Calculations!$E$2=\"Shetland Islands Local Authority\",Calculations!$E$2=\"Eilean Siar Local Authority\"),OR($F235=1,$F235=5)),0,new_yllv2(VALUE(LEFT(Options!$B$14,2)),$C235,$D235,$E235,$F235,2016,$I235/10+$J235/10,1,$H235/10,$G235*$H235/10,RateRatios_airpollution!$E235)*10))","v":729.701682635},{"$f":"IF(AND(OR(Calculations!$E$2=\"Orkney Health Board\",Calculations!$E$2=\"Orkney Islands Local Authority\"),$F235=1),0,IF(AND(OR(Calculations!$E$2=\"Shetland Health Board\",Calculations!$E$2=\"Western Isles Health Board\",Calculations!$E$2=\"Shetland Islands Local Authority\",Calculations!$E$2=\"Eilean Siar Local Authority\"),OR($F235=1,$F235=5)),0,hosp_count(VALUE(LEFT(Options!$B$14,2)),$C235,$E235,$F235,2016,$I235/10,1,$H235/10,$G235*$H235/10, RateRatios_airpollution!$F235, RateRatios_airpollution!$E235)*10))","v":2376.2555364589998},{"$f":"IF(AND(OR(Calculations!$E$2=\"Orkney Health Board\",Calculations!$E$2=\"Orkney Islands Local Authority\"),$F235=1),0,IF(AND(OR(Calculations!$E$2=\"Shetland Health Board\",Calculations!$E$2=\"Western Isles Health Board\",Calculations!$E$2=\"Shetland Islands Local Authority\",Calculations!$E$2=\"Eilean Siar Local Authority\"),OR($F235=1,$F235=5)),0,hosp_count(VALUE(LEFT(Options!$B$14,2)),$C235,$E235,$F235,2016,$I235/10+$J235/10,1,$H235/10,$G235*$H235/10, RateRatios_airpollution!$F235, RateRatios_airpollution!$E235)*10))","v":2376.2555364589998},{"$f":"IF(AND(OR(Calculations!$E$2=\"Orkney Health Board\",Calculations!$E$2=\"Orkney Islands Local Authority\"),$F235=1),0,IF(AND(OR(Calculations!$E$2=\"Shetland Health Board\",Calculations!$E$2=\"Western Isles Health Board\",Calculations!$E$2=\"Shetland Islands Local Authority\",Calculations!$E$2=\"Eilean Siar Local Authority\"),OR($F235=1,$F235=5)),0,prem_mort(VALUE(LEFT(Options!$B$14,2)),$C235,$E235,$F235,2016,$I235/10,1,$H235/10,$G235*$H235/10,RateRatios_airpollution!$E235)*10))","v":13.352351515000001},{"$f":"IF(AND(OR(Calculations!$E$2=\"Orkney Health Board\",Calculations!$E$2=\"Orkney Islands Local Authority\"),$F235=1),0,IF(AND(OR(Calculations!$E$2=\"Shetland Health Board\",Calculations!$E$2=\"Western Isles Health Board\",Calculations!$E$2=\"Shetland Islands Local Authority\",Calculations!$E$2=\"Eilean Siar Local Authority\"),OR($F235=1,$F235=5)),0,prem_mort(VALUE(LEFT(Options!$B$14,2)),$C235,$E235,$F235,2016,$I235/10+$J235/10,1,$H235/10,$G235*$H235/10,RateRatios_airpollution!$E235)*10))","v":13.352272814999999},13.352351515000001,13.349633724999999,729.70598358999996,729.55745637100017,2376.2555364589998,2375.7567431830003,13.352351515000001,13.349633724999999,35.074079999474641,35.066940883658617,1916.7984018230056,1916.4082491554811,6241.9699400010504,6240.659705227351,35.074079999474641,35.066940883658617,210444.47999684783,210401.64530195171,11500790.410938034,11498449.494932886,37451819.640006304,37443958.231364109,210444.47999684783,210401.64530195171,6000]
[null,"Male 25-29",26.959762999999999,77.789760000000001,"male",5,1,{"$f":"HLOOKUP(Calculations!$E$2,'Population 2016'!$C$3:$BC$249,'Population 2016'!BD236,FALSE)","v":34280},0,{"$f":"HLOOKUP(Calculations!$E$2,Pop2016_in_settlements!$C$3:$BC$249,Pop2016_in_settlements!$BD236,FALSE)","v":16440},{"$f":"IF(AND(OR(Calculations!$E$2=\"Orkney Health Board\",Calculations!$E$2=\"Orkney Islands Local Authority\"),$F236=1),0,IF(AND(OR(Calculations!$E$2=\"Shetland Health Board\",Calculations!$E$2=\"Western Isles Health Board\",Calculations!$E$2=\"Shetland Islands Local Authority\",Calculations!$E$2=\"Eilean Siar Local Authority\"),OR($F236=1,$F236=5)),0,new_ci(VALUE(LEFT(Options!$B$14,2)),$C236,$E236,$F236,2016,$I236/10,1,$H236/10,$G236*$H236/10,RateRatios_accidents!$B$5)*10))","v":17.410993684000001},{"$f":"IF(AND(OR(Calculations!$E$2=\"Orkney Health Board\",Calculations!$E$2=\"Orkney Islands Local Authority\"),$F236=1),0,IF(AND(OR(Calculations!$E$2=\"Shetland Health Board\",Calculations!$E$2=\"Western Isles Health Board\",Calculations!$E$2=\"Shetland Islands Local Authority\",Calculations!$E$2=\"Eilean Siar Local Authority\"),OR($F236=1,$F236=5)),0,new_ci(VALUE(LEFT(Options!$B$14,2)),$C236,$E236,$F236,2016,$I236/10+$J236/10,1,$H236/10,$G236*$H236/10,RateRatios_accidents!$B$5)*10))","v":17.40765472},{"$f":"IF(AND(OR(Calculations!$E$2=\"Orkney Health Board\",Calculations!$E$2=\"Orkney Islands Local Authority\"),$F236=1),0,IF(AND(OR(Calculations!$E$2=\"Shetland Health Board\",Calculations!$E$2=\"Western Isles Health Board\",Calculations!$E$2=\"Shetland Islands Local Authority\",Calculations!$E$2=\"Eilean Siar Local Authority\"),OR($F236=1,$F236=5)),0,new_yllv2(VALUE(LEFT(Options!$B$14,2)),$C236,$D236,$E236,$F236,2016,$I236/10,1,$H236/10,$G236*$H236/10,RateRatios_accidents!$B$5)*10))","v":867.58976304099997},{"$f":"IF(AND(OR(Calculations!$E$2=\"Orkney Health Board\",Calculations!$E$2=\"Orkney Islands Local Authority\"),$F236=1),0,IF(AND(OR(Calculations!$E$2=\"Shetland Health Board\",Calculations!$E$2=\"Western Isles Health Board\",Calculations!$E$2=\"Shetland Islands Local Authority\",Calculations!$E$2=\"Eilean Siar Local Authority\"),OR($F236=1,$F236=5)),0,new_yllv2(VALUE(LEFT(Options!$B$14,2)),$C236,$D236,$E236,$F236,2016,$I236/10+$J236/10,1,$H236/10,$G236*$H236/10,RateRatios_accidents!$B$5)*10))","v":867.42338247500004},{"$f":"IF(AND(OR(Calculations!$E$2=\"Orkney Health Board\",Calculations!$E$2=\"Orkney Islands Local Authority\"),$F236=1),0,IF(AND(OR(Calculations!$E$2=\"Shetland Health Board\",Calculations!$E$2=\"Western Isles Health Board\",Calculations!$E$2=\"Shetland Islands Local Authority\",Calculations!$E$2=\"Eilean Siar Local Authority\"),OR($F236=1,$F236=5)),0,hosp_count(VALUE(LEFT(Options!$B$14,2)),$C236,$E236,$F236,2016,$I236/10,1,$H236/10,$G236*$H236/10, RateRatios_accidents!$B$4, RateRatios_accidents!$B$5)*10))","v":2546.6945852919998},{"$f":"IF(AND(OR(Calculations!$E$2=\"Orkney Health Board\",Calculations!$E$2=\"Orkney Islands Local Authority\"),$F236=1),0,IF(AND(OR(Calculations!$E$2=\"Shetland Health Board\",Calculations!$E$2=\"Western Isles Health Board\",Calculations!$E$2=\"Shetland Islands Local Authority\",Calculations!$E$2=\"Eilean Siar Local Authority\"),OR($F236=1,$F236=5)),0,hosp_count(VALUE(LEFT(Options!$B$14,2)),$C236,$E236,$F236,2016,$I236/10+$J236/10,1,$H236/10,$G236*$H236/10, RateRatios_accidents!$B$4, RateRatios_accidents!$B$5)*10))","v":2546.2060476760003},{"$f":"IF(AND(OR(Calculations!$E$2=\"Orkney Health Board\",Calculations!$E$2=\"Orkney Islands Local Authority\"),$F236=1),0,IF(AND(OR(Calculations!$E$2=\"Shetland Health Board\",Calculations!$E$2=\"Western Isles Health Board\",Calculations!$E$2=\"Shetland Islands Local Authority\",Calculations!$E$2=\"Eilean Siar Local Authority\"),OR($F236=1,$F236=5)),0,prem_mort(VALUE(LEFT(Options!$B$14,2)),$C236,$E236,$F236,2016,$I236/10,1,$H236/10,$G236*$H236/10,RateRatios_accidents!$B$5)*10))","v":17.410993684000001},{"$f":"IF(AND(OR(Calculations!$E$2=\"Orkney Health Board\",Calculations!$E$2=\"Orkney Islands Local Authority\"),$F236=1),0,IF(AND(OR(Calculations!$E$2=\"Shetland Health Board\",Calculations!$E$2=\"Western Isles Health Board\",Calculations!$E$2=\"Shetland Islands Local Authority\",Calculations!$E$2=\"Eilean Siar Local Authority\"),OR($F236=1,$F236=5)),0,prem_mort(VALUE(LEFT(Options!$B$14,2)),$C236,$E236,$F236,2016,$I236/10+$J236/10,1,$H236/10,$G236*$H236/10,RateRatios_accidents!$B$5)*10))","v":17.40765472},null,{"$f":"IF(AND(OR(Calculations!$E$2=\"Orkney Health Board\",Calculations!$E$2=\"Orkney Islands Local Authority\"),$F236=1),0,IF(AND(OR(Calculations!$E$2=\"Shetland Health Board\",Calculations!$E$2=\"Western Isles Health Board\",Calculations!$E$2=\"Shetland Islands Local Authority\",Calculations!$E$2=\"Eilean Siar Local Authority\"),OR($F236=1,$F236=5)),0,new_ci(VALUE(LEFT(Options!$B$14,2)),$C236,$E236,$F236,2016,$I236/10,1,$H236/10,$G236*$H236/10,RateRatios_airpollution!$C236)*10))","v":17.410993684000001},{"$f":"IF(AND(OR(Calculations!$E$2=\"Orkney Health Board\",Calculations!$E$2=\"Orkney Islands Local Authority\"),$F236=1),0,IF(AND(OR(Calculations!$E$2=\"Shetland Health Board\",Calculations!$E$2=\"Western Isles Health Board\",Calculations!$E$2=\"Shetland Islands Local Authority\",Calculations!$E$2=\"Eilean Siar Local Authority\"),OR($F236=1,$F236=5)),0,new_ci(VALUE(LEFT(Options!$B$14,2)),$C236,$E236,$F236,2016,$I236/10+$J236/10,1,$H236/10,$G236*$H236/10,RateRatios_airpollution!$C236)*10))","v":17.410729},{"$f":"IF(AND(OR(Calculations!$E$2=\"Orkney Health Board\",Calculations!$E$2=\"Orkney Islands Local Authority\"),$F236=1),0,IF(AND(OR(Calculations!$E$2=\"Shetland Health Board\",Calculations!$E$2=\"Western Isles Health Board\",Calculations!$E$2=\"Shetland Islands Local Authority\",Calculations!$E$2=\"Eilean Siar Local Authority\"),OR($F236=1,$F236=5)),0,new_yllv2(VALUE(LEFT(Options!$B$14,2)),$C236,$D236,$E236,$F236,2016,$I236/10,1,$H236/10,$G236*$H236/10,RateRatios_airpollution!$C236)*10))","v":867.58976304099997},{"$f":"IF(AND(OR(Calculations!$E$2=\"Orkney Health Board\",Calculations!$E$2=\"Orkney Islands Local Authority\"),$F236=1),0,IF(AND(OR(Calculations!$E$2=\"Shetland Health Board\",Calculations!$E$2=\"Western Isles Health Board\",Calculations!$E$2=\"Shetland Islands Local Authority\",Calculations!$E$2=\"Eilean Siar Local Authority\"),OR($F236=1,$F236=5)),0,new_yllv2(VALUE(LEFT(Options!$B$14,2)),$C236,$D236,$E236,$F236,2016,$I236/10+$J236/10,1,$H236/10,$G236*$H236/10,RateRatios_airpollution!$C236)*10))","v":867.57657383799994},{"$f":"IF(AND(OR(Calculations!$E$2=\"Orkney Health Board\",Calculations!$E$2=\"Orkney Islands Local Authority\"),$F236=1),0,IF(AND(OR(Calculations!$E$2=\"Shetland Health Board\",Calculations!$E$2=\"Western Isles Health Board\",Calculations!$E$2=\"Shetland Islands Local Authority\",Calculations!$E$2=\"Eilean Siar Local Authority\"),OR($F236=1,$F236=5)),0,hosp_count(VALUE(LEFT(Options!$B$14,2)),$C236,$E236,$F236,2016,$I236/10,1,$H236/10,$G236*$H236/10, RateRatios_airpollution!$D236, RateRatios_airpollution!$C236)*10))","v":2546.6945852919998},{"$f":"IF(AND(OR(Calculations!$E$2=\"Orkney Health Board\",Calculations!$E$2=\"Orkney Islands Local Authority\"),$F236=1),0,IF(AND(OR(Calculations!$E$2=\"Shetland Health Board\",Calculations!$E$2=\"Western Isles Health Board\",Calculations!$E$2=\"Shetland Islands Local Authority\",Calculations!$E$2=\"Eilean Siar Local Authority\"),OR($F236=1,$F236=5)),0,hosp_count(VALUE(LEFT(Options!$B$14,2)),$C236,$E236,$F236,2016,$I236/10+$J236/10,1,$H236/10,$G236*$H236/10, RateRatios_airpollution!$D236, RateRatios_airpollution!$C236)*10))","v":2546.62157032},{"$f":"IF(AND(OR(Calculations!$E$2=\"Orkney Health Board\",Calculations!$E$2=\"Orkney Islands Local Authority\"),$F236=1),0,IF(AND(OR(Calculations!$E$2=\"Shetland Health Board\",Calculations!$E$2=\"Western Isles Health Board\",Calculations!$E$2=\"Shetland Islands Local Authority\",Calculations!$E$2=\"Eilean Siar Local Authority\"),OR($F236=1,$F236=5)),0,prem_mort(VALUE(LEFT(Options!$B$14,2)),$C236,$E236,$F236,2016,$I236/10,1,$H236/10,$G236*$H236/10,RateRatios_airpollution!$C236)*10))","v":17.410993684000001},{"$f":"IF(AND(OR(Calculations!$E$2=\"Orkney Health Board\",Calculations!$E$2=\"Orkney Islands Local Authority\"),$F236=1),0,IF(AND(OR(Calculations!$E$2=\"Shetland Health Board\",Calculations!$E$2=\"Western Isles Health Board\",Calculations!$E$2=\"Shetland Islands Local Authority\",Calculations!$E$2=\"Eilean Siar Local Authority\"),OR($F236=1,$F236=5)),0,prem_mort(VALUE(LEFT(Options!$B$14,2)),$C236,$E236,$F236,2016,$I236/10+$J236/10,1,$H236/10,$G236*$H236/10,RateRatios_airpollution!$C236)*10))","v":17.410729},null,{"$f":"IF(AND(OR(Calculations!$E$2=\"Orkney Health Board\",Calculations!$E$2=\"Orkney Islands Local Authority\"),$F236=1),0,IF(AND(OR(Calculations!$E$2=\"Shetland Health Board\",Calculations!$E$2=\"Western Isles Health Board\",Calculations!$E$2=\"Shetland Islands Local Authority\",Calculations!$E$2=\"Eilean Siar Local Authority\"),OR($F236=1,$F236=5)),0,new_ci(VALUE(LEFT(Options!$B$14,2)),$C236,$E236,$F236,2016,$I236/10,1,$H236/10,$G236*$H236/10,RateRatios_airpollution!$E236)*10))","v":17.410993684000001},{"$f":"IF(AND(OR(Calculations!$E$2=\"Orkney Health Board\",Calculations!$E$2=\"Orkney Islands Local Authority\"),$F236=1),0,IF(AND(OR(Calculations!$E$2=\"Shetland Health Board\",Calculations!$E$2=\"Western Isles Health Board\",Calculations!$E$2=\"Shetland Islands Local Authority\",Calculations!$E$2=\"Eilean Siar Local Authority\"),OR($F236=1,$F236=5)),0,new_ci(VALUE(LEFT(Options!$B$14,2)),$C236,$E236,$F236,2016,$I236/10+$J236/10,1,$H236/10,$G236*$H236/10,RateRatios_airpollution!$E236)*10))","v":17.410880248000002},{"$f":"IF(AND(OR(Calculations!$E$2=\"Orkney Health Board\",Calculations!$E$2=\"Orkney Islands Local Authority\"),$F236=1),0,IF(AND(OR(Calculations!$E$2=\"Shetland Health Board\",Calculations!$E$2=\"Western Isles Health Board\",Calculations!$E$2=\"Shetland Islands Local Authority\",Calculations!$E$2=\"Eilean Siar Local Authority\"),OR($F236=1,$F236=5)),0,new_yllv2(VALUE(LEFT(Options!$B$14,2)),$C236,$D236,$E236,$F236,2016,$I236/10,1,$H236/10,$G236*$H236/10,RateRatios_airpollution!$E236)*10))","v":867.58976304099997},{"$f":"IF(AND(OR(Calculations!$E$2=\"Orkney Health Board\",Calculations!$E$2=\"Orkney Islands Local Authority\"),$F236=1),0,IF(AND(OR(Calculations!$E$2=\"Shetland Health Board\",Calculations!$E$2=\"Western Isles Health Board\",Calculations!$E$2=\"Shetland Islands Local Authority\",Calculations!$E$2=\"Eilean Siar Local Authority\"),OR($F236=1,$F236=5)),0,new_yllv2(VALUE(LEFT(Options!$B$14,2)),$C236,$D236,$E236,$F236,2016,$I236/10+$J236/10,1,$H236/10,$G236*$H236/10,RateRatios_airpollution!$E236)*10))","v":867.58411052499991},{"$f":"IF(AND(OR(Calculations!$E$2=\"Orkney Health Board\",Calculations!$E$2=\"Orkney Islands Local Authority\"),$F236=1),0,IF(AND(OR(Calculations!$E$2=\"Shetland Health Board\",Calculations!$E$2=\"Western Isles Health Board\",Calculations!$E$2=\"Shetland Islands Local Authority\",Calculations!$E$2=\"Eilean Siar Local Authority\"),OR($F236=1,$F236=5)),0,hosp_count(VALUE(LEFT(Options!$B$14,2)),$C236,$E236,$F236,2016,$I236/10,1,$H236/10,$G236*$H236/10, RateRatios_airpollution!$F236, RateRatios_airpollution!$E236)*10))","v":2546.6945852919998},{"$f":"IF(AND(OR(Calculations!$E$2=\"Orkney Health Board\",Calculations!$E$2=\"Orkney Islands Local Authority\"),$F236=1),0,IF(AND(OR(Calculations!$E$2=\"Shetland Health Board\",Calculations!$E$2=\"Western Isles Health Board\",Calculations!$E$2=\"Shetland Islands Local Authority\",Calculations!$E$2=\"Eilean Siar Local Authority\"),OR($F236=1,$F236=5)),0,hosp_count(VALUE(LEFT(Options!$B$14,2)),$C236,$E236,$F236,2016,$I236/10+$J236/10,1,$H236/10,$G236*$H236/10, RateRatios_airpollution!$F236, RateRatios_airpollution!$E236)*10))","v":2546.6945852919998},{"$f":"IF(AND(OR(Calculations!$E$2=\"Orkney Health Board\",Calculations!$E$2=\"Orkney Islands Local Authority\"),$F236=1),0,IF(AND(OR(Calculations!$E$2=\"Shetland Health Board\",Calculations!$E$2=\"Western Isles Health Board\",Calculations!$E$2=\"Shetland Islands Local Authority\",Calculations!$E$2=\"Eilean Siar Local Authority\"),OR($F236=1,$F236=5)),0,prem_mort(VALUE(LEFT(Options!$B$14,2)),$C236,$E236,$F236,2016,$I236/10,1,$H236/10,$G236*$H236/10,RateRatios_airpollution!$E236)*10))","v":17.410993684000001},{"$f":"IF(AND(OR(Calculations!$E$2=\"Orkney Health Board\",Calculations!$E$2=\"Orkney Islands Local Authority\"),$F236=1),0,IF(AND(OR(Calculations!$E$2=\"Shetland Health Board\",Calculations!$E$2=\"Western Isles Health Board\",Calculations!$E$2=\"Shetland Islands Local Authority\",Calculations!$E$2=\"Eilean Siar Local Authority\"),OR($F236=1,$F236=5)),0,prem_mort(VALUE(LEFT(Options!$B$14,2)),$C236,$E236,$F236,2016,$I236/10+$J236/10,1,$H236/10,$G236*$H236/10,RateRatios_airpollution!$E236)*10))","v":17.410880248000002},17.410993684000001,17.407276599999999,867.58976304099997,867.40454075599996,2546.6945852919998,2546.1330327040005,17.410993684000001,17.407276599999999,50.790530000000004,50.779686697782964,2530.8919575291711,2530.3516358109682,7429.0973899999999,7427.4592552625454,50.790530000000004,50.779686697782964,304743.18000000005,304678.12018669781,15185351.745175026,15182109.814865809,44574584.339999996,44564755.53157527,304743.18000000005,304678.12018669781,6000]
[null,"Male 30-34",31.981521999999998,78.061520000000002,"male",5,1,{"$f":"HLOOKUP(Calculations!$E$2,'Population 2016'!$C$3:$BC$249,'Population 2016'!BD237,FALSE)","v":30164},0,{"$f":"HLOOKUP(Calculations!$E$2,Pop2016_in_settlements!$C$3:$BC$249,Pop2016_in_settlements!$BD237,FALSE)","v":14538},{"$f":"IF(AND(OR(Calculations!$E$2=\"Orkney Health Board\",Calculations!$E$2=\"Orkney Islands Local Authority\"),$F237=1),0,IF(AND(OR(Calculations!$E$2=\"Shetland Health Board\",Calculations!$E$2=\"Western Isles Health Board\",Calculations!$E$2=\"Shetland Islands Local Authority\",Calculations!$E$2=\"Eilean Siar Local Authority\"),OR($F237=1,$F237=5)),0,new_ci(VALUE(LEFT(Options!$B$14,2)),$C237,$E237,$F237,2016,$I237/10,1,$H237/10,$G237*$H237/10,RateRatios_accidents!$B$5)*10))","v":22.380792129},{"$f":"IF(AND(OR(Calculations!$E$2=\"Orkney Health Board\",Calculations!$E$2=\"Orkney Islands Local Authority\"),$F237=1),0,IF(AND(OR(Calculations!$E$2=\"Shetland Health Board\",Calculations!$E$2=\"Western Isles Health Board\",Calculations!$E$2=\"Shetland Islands Local Authority\",Calculations!$E$2=\"Eilean Siar Local Authority\"),OR($F237=1,$F237=5)),0,new_ci(VALUE(LEFT(Options!$B$14,2)),$C237,$E237,$F237,2016,$I237/10+$J237/10,1,$H237/10,$G237*$H237/10,RateRatios_accidents!$B$5)*10))","v":22.376478705},{"$f":"IF(AND(OR(Calculations!$E$2=\"Orkney Health Board\",Calculations!$E$2=\"Orkney Islands Local Authority\"),$F237=1),0,IF(AND(OR(Calculations!$E$2=\"Shetland Health Board\",Calculations!$E$2=\"Western Isles Health Board\",Calculations!$E$2=\"Shetland Islands Local Authority\",Calculations!$E$2=\"Eilean Siar Local Authority\"),OR($F237=1,$F237=5)),0,new_yllv2(VALUE(LEFT(Options!$B$14,2)),$C237,$D237,$E237,$F237,2016,$I237/10,1,$H237/10,$G237*$H237/10,RateRatios_accidents!$B$5)*10))","v":1008.9260644140001},{"$f":"IF(AND(OR(Calculations!$E$2=\"Orkney Health Board\",Calculations!$E$2=\"Orkney Islands Local Authority\"),$F237=1),0,IF(AND(OR(Calculations!$E$2=\"Shetland Health Board\",Calculations!$E$2=\"Western Isles Health Board\",Calculations!$E$2=\"Shetland Islands Local Authority\",Calculations!$E$2=\"Eilean Siar Local Authority\"),OR($F237=1,$F237=5)),0,new_yllv2(VALUE(LEFT(Options!$B$14,2)),$C237,$D237,$E237,$F237,2016,$I237/10+$J237/10,1,$H237/10,$G237*$H237/10,RateRatios_accidents!$B$5)*10))","v":1008.731615268},{"$f":"IF(AND(OR(Calculations!$E$2=\"Orkney Health Board\",Calculations!$E$2=\"Orkney Islands Local Authority\"),$F237=1),0,IF(AND(OR(Calculations!$E$2=\"Shetland Health Board\",Calculations!$E$2=\"Western Isles Health Board\",Calculations!$E$2=\"Shetland Islands Local Authority\",Calculations!$E$2=\"Eilean Siar Local Authority\"),OR($F237=1,$F237=5)),0,hosp_count(VALUE(LEFT(Options!$B$14,2)),$C237,$E237,$F237,2016,$I237/10,1,$H237/10,$G237*$H237/10, RateRatios_accidents!$B$4, RateRatios_accidents!$B$5)*10))","v":2678.1643595259998},{"$f":"IF(AND(OR(Calculations!$E$2=\"Orkney Health Board\",Calculations!$E$2=\"Orkney Islands Local Authority\"),$F237=1),0,IF(AND(OR(Calculations!$E$2=\"Shetland Health Board\",Calculations!$E$2=\"Western Isles Health Board\",Calculations!$E$2=\"Shetland Islands Local Authority\",Calculations!$E$2=\"Eilean Siar Local Authority\"),OR($F237=1,$F237=5)),0,hosp_count(VALUE(LEFT(Options!$B$14,2)),$C237,$E237,$F237,2016,$I237/10+$J237/10,1,$H237/10,$G237*$H237/10, RateRatios_accidents!$B$4, RateRatios_accidents!$B$5)*10))","v":2677.6480468179998},{"$f":"IF(AND(OR(Calculations!$E$2=\"Orkney Health Board\",Calculations!$E$2=\"Orkney Islands Local Authority\"),$F237=1),0,IF(AND(OR(Calculations!$E$2=\"Shetland Health Board\",Calculations!$E$2=\"Western Isles Health Board\",Calculations!$E$2=\"Shetland Islands Local Authority\",Calculations!$E$2=\"Eilean Siar Local Authority\"),OR($F237=1,$F237=5)),0,prem_mort(VALUE(LEFT(Options!$B$14,2)),$C237,$E237,$F237,2016,$I237/10,1,$H237/10,$G237*$H237/10,RateRatios_accidents!$B$5)*10))","v":22.380792129},{"$f":"IF(AND(OR(Calculations!$E$2=\"Orkney Health Board\",Calculations!$E$2=\"Orkney Islands Local Authority\"),$F237=1),0,IF(AND(OR(Calculations!$E$2=\"Shetland Health Board\",Calculations!$E$2=\"Western Isles Health Board\",Calculations!$E$2=\"Shetland Islands Local Authority\",Calculations!$E$2=\"Eilean Siar Local Authority\"),OR($F237=1,$F237=5)),0,prem_mort(VALUE(LEFT(Options!$B$14,2)),$C237,$E237,$F237,2016,$I237/10+$J237/10,1,$H237/10,$G237*$H237/10,RateRatios_accidents!$B$5)*10))","v":22.376478705},null,{"$f":"IF(AND(OR(Calculations!$E$2=\"Orkney Health Board\",Calculations!$E$2=\"Orkney Islands Local Authority\"),$F237=1),0,IF(AND(OR(Calculations!$E$2=\"Shetland Health Board\",Calculations!$E$2=\"Western Isles Health Board\",Calculations!$E$2=\"Shetland Islands Local Authority\",Calculations!$E$2=\"Eilean Siar Local Authority\"),OR($F237=1,$F237=5)),0,new_ci(VALUE(LEFT(Options!$B$14,2)),$C237,$E237,$F237,2016,$I237/10,1,$H237/10,$G237*$H237/10,RateRatios_airpollution!$C237)*10))","v":22.380792129},{"$f":"IF(AND(OR(Calculations!$E$2=\"Orkney Health Board\",Calculations!$E$2=\"Orkney Islands Local Authority\"),$F237=1),0,IF(AND(OR(Calculations!$E$2=\"Shetland Health Board\",Calculations!$E$2=\"Western Isles Health Board\",Calculations!$E$2=\"Shetland Islands Local Authority\",Calculations!$E$2=\"Eilean Siar Local Authority\"),OR($F237=1,$F237=5)),0,new_ci(VALUE(LEFT(Options!$B$14,2)),$C237,$E237,$F237,2016,$I237/10+$J237/10,1,$H237/10,$G237*$H237/10,RateRatios_airpollution!$C237)*10))","v":22.380460663000001},{"$f":"IF(AND(OR(Calculations!$E$2=\"Orkney Health Board\",Calculations!$E$2=\"Orkney Islands Local Authority\"),$F237=1),0,IF(AND(OR(Calculations!$E$2=\"Shetland Health Board\",Calculations!$E$2=\"Western Isles Health Board\",Calculations!$E$2=\"Shetland Islands Local Authority\",Calculations!$E$2=\"Eilean Siar Local Authority\"),OR($F237=1,$F237=5)),0,new_yllv2(VALUE(LEFT(Options!$B$14,2)),$C237,$D237,$E237,$F237,2016,$I237/10,1,$H237/10,$G237*$H237/10,RateRatios_airpollution!$C237)*10))","v":1008.9260644140001},{"$f":"IF(AND(OR(Calculations!$E$2=\"Orkney Health Board\",Calculations!$E$2=\"Orkney Islands Local Authority\"),$F237=1),0,IF(AND(OR(Calculations!$E$2=\"Shetland Health Board\",Calculations!$E$2=\"Western Isles Health Board\",Calculations!$E$2=\"Shetland Islands Local Authority\",Calculations!$E$2=\"Eilean Siar Local Authority\"),OR($F237=1,$F237=5)),0,new_yllv2(VALUE(LEFT(Options!$B$14,2)),$C237,$D237,$E237,$F237,2016,$I237/10+$J237/10,1,$H237/10,$G237*$H237/10,RateRatios_airpollution!$C237)*10))","v":1008.9111219270001},{"$f":"IF(AND(OR(Calculations!$E$2=\"Orkney Health Board\",Calculations!$E$2=\"Orkney Islands Local Authority\"),$F237=1),0,IF(AND(OR(Calculations!$E$2=\"Shetland Health Board\",Calculations!$E$2=\"Western Isles Health Board\",Calculations!$E$2=\"Shetland Islands Local Authority\",Calculations!$E$2=\"Eilean Siar Local Authority\"),OR($F237=1,$F237=5)),0,hosp_count(VALUE(LEFT(Options!$B$14,2)),$C237,$E237,$F237,2016,$I237/10,1,$H237/10,$G237*$H237/10, RateRatios_airpollution!$D237, RateRatios_airpollution!$C237)*10))","v":2678.1643595259998},{"$f":"IF(AND(OR(Calculations!$E$2=\"Orkney Health Board\",Calculations!$E$2=\"Orkney Islands Local Authority\"),$F237=1),0,IF(AND(OR(Calculations!$E$2=\"Shetland Health Board\",Calculations!$E$2=\"Western Isles Health Board\",Calculations!$E$2=\"Shetland Islands Local Authority\",Calculations!$E$2=\"Eilean Siar Local Authority\"),OR($F237=1,$F237=5)),0,hosp_count(VALUE(LEFT(Options!$B$14,2)),$C237,$E237,$F237,2016,$I237/10+$J237/10,1,$H237/10,$G237*$H237/10, RateRatios_airpollution!$D237, RateRatios_airpollution!$C237)*10))","v":2678.0894306739997},{"$f":"IF(AND(OR(Calculations!$E$2=\"Orkney Health Board\",Calculations!$E$2=\"Orkney Islands Local Authority\"),$F237=1),0,IF(AND(OR(Calculations!$E$2=\"Shetland Health Board\",Calculations!$E$2=\"Western Isles Health Board\",Calculations!$E$2=\"Shetland Islands Local Authority\",Calculations!$E$2=\"Eilean Siar Local Authority\"),OR($F237=1,$F237=5)),0,prem_mort(VALUE(LEFT(Options!$B$14,2)),$C237,$E237,$F237,2016,$I237/10,1,$H237/10,$G237*$H237/10,RateRatios_airpollution!$C237)*10))","v":22.380792129},{"$f":"IF(AND(OR(Calculations!$E$2=\"Orkney Health Board\",Calculations!$E$2=\"Orkney Islands Local Authority\"),$F237=1),0,IF(AND(OR(Calculations!$E$2=\"Shetland Health Board\",Calculations!$E$2=\"Western Isles Health Board\",Calculations!$E$2=\"Shetland Islands Local Authority\",Calculations!$E$2=\"Eilean Siar Local Authority\"),OR($F237=1,$F237=5)),0,prem_mort(VALUE(LEFT(Options!$B$14,2)),$C237,$E237,$F237,2016,$I237/10+$J237/10,1,$H237/10,$G237*$H237/10,RateRatios_airpollution!$C237)*10))","v":22.380460663000001},null,{"$f":"IF(AND(OR(Calculations!$E$2=\"Orkney Health Board\",Calculations!$E$2=\"Orkney Islands Local Authority\"),$F237=1),0,IF(AND(OR(Calculations!$E$2=\"Shetland Health Board\",Calculations!$E$2=\"Western Isles Health Board\",Calculations!$E$2=\"Shetland Islands Local Authority\",Calculations!$E$2=\"Eilean Siar Local Authority\"),OR($F237=1,$F237=5)),0,new_ci(VALUE(LEFT(Options!$B$14,2)),$C237,$E237,$F237,2016,$I237/10,1,$H237/10,$G237*$H237/10,RateRatios_airpollution!$E237)*10))","v":22.380792129},{"$f":"IF(AND(OR(Calculations!$E$2=\"Orkney Health Board\",Calculations!$E$2=\"Orkney Islands Local Authority\"),$F237=1),0,IF(AND(OR(Calculations!$E$2=\"Shetland Health Board\",Calculations!$E$2=\"Western Isles Health Board\",Calculations!$E$2=\"Shetland Islands Local Authority\",Calculations!$E$2=\"Eilean Siar Local Authority\"),OR($F237=1,$F237=5)),0,new_ci(VALUE(LEFT(Options!$B$14,2)),$C237,$E237,$F237,2016,$I237/10+$J237/10,1,$H237/10,$G237*$H237/10,RateRatios_airpollution!$E237)*10))","v":22.380648203},{"$f":"IF(AND(OR(Calculations!$E$2=\"Orkney Health Board\",Calculations!$E$2=\"Orkney Islands Local Authority\"),$F237=1),0,IF(AND(OR(Calculations!$E$2=\"Shetland Health Board\",Calculations!$E$2=\"Western Isles Health Board\",Calculations!$E$2=\"Shetland Islands Local Authority\",Calculations!$E$2=\"Eilean Siar Local Authority\"),OR($F237=1,$F237=5)),0,new_yllv2(VALUE(LEFT(Options!$B$14,2)),$C237,$D237,$E237,$F237,2016,$I237/10,1,$H237/10,$G237*$H237/10,RateRatios_airpollution!$E237)*10))","v":1008.9260644140001},{"$f":"IF(AND(OR(Calculations!$E$2=\"Orkney Health Board\",Calculations!$E$2=\"Orkney Islands Local Authority\"),$F237=1),0,IF(AND(OR(Calculations!$E$2=\"Shetland Health Board\",Calculations!$E$2=\"Western Isles Health Board\",Calculations!$E$2=\"Shetland Islands Local Authority\",Calculations!$E$2=\"Eilean Siar Local Authority\"),OR($F237=1,$F237=5)),0,new_yllv2(VALUE(LEFT(Options!$B$14,2)),$C237,$D237,$E237,$F237,2016,$I237/10+$J237/10,1,$H237/10,$G237*$H237/10,RateRatios_airpollution!$E237)*10))","v":1008.91957623},{"$f":"IF(AND(OR(Calculations!$E$2=\"Orkney Health Board\",Calculations!$E$2=\"Orkney Islands Local Authority\"),$F237=1),0,IF(AND(OR(Calculations!$E$2=\"Shetland Health Board\",Calculations!$E$2=\"Western Isles Health Board\",Calculations!$E$2=\"Shetland Islands Local Authority\",Calculations!$E$2=\"Eilean Siar Local Authority\"),OR($F237=1,$F237=5)),0,hosp_count(VALUE(LEFT(Options!$B$14,2)),$C237,$E237,$F237,2016,$I237/10,1,$H237/10,$G237*$H237/10, RateRatios_airpollution!$F237, RateRatios_airpollution!$E237)*10))","v":2678.1643595259998},{"$f":"IF(AND(OR(Calculations!$E$2=\"Orkney Health Board\",Calculations!$E$2=\"Orkney Islands Local Authority\"),$F237=1),0,IF(AND(OR(Calculations!$E$2=\"Shetland Health Board\",Calculations!$E$2=\"Western Isles Health Board\",Calculations!$E$2=\"Shetland Islands Local Authority\",Calculations!$E$2=\"Eilean Siar Local Authority\"),OR($F237=1,$F237=5)),0,hosp_count(VALUE(LEFT(Options!$B$14,2)),$C237,$E237,$F237,2016,$I237/10+$J237/10,1,$H237/10,$G237*$H237/10, RateRatios_airpollution!$F237, RateRatios_airpollution!$E237)*10))","v":2678.1643595259998},{"$f":"IF(AND(OR(Calculations!$E$2=\"Orkney Health Board\",Calculations!$E$2=\"Orkney Islands Local Authority\"),$F237=1),0,IF(AND(OR(Calculations!$E$2=\"Shetland Health Board\",Calculations!$E$2=\"Western Isles Health Board\",Calculations!$E$2=\"Shetland Islands Local Authority\",Calculations!$E$2=\"Eilean Siar Local Authority\"),OR($F237=1,$F237=5)),0,prem_mort(VALUE(LEFT(Options!$B$14,2)),$C237,$E237,$F237,2016,$I237/10,1,$H237/10,$G237*$H237/10,RateRatios_airpollution!$E237)*10))","v":22.380792129},{"$f":"IF(AND(OR(Calculations!$E$2=\"Orkney Health Board\",Calculations!$E$2=\"Orkney Islands Local Authority\"),$F237=1),0,IF(AND(OR(Calculations!$E$2=\"Shetland Health Board\",Calculations!$E$2=\"Western Isles Health Board\",Calculations!$E$2=\"Shetland Islands Local Authority\",Calculations!$E$2=\"Eilean Siar Local Authority\"),OR($F237=1,$F237=5)),0,prem_mort(VALUE(LEFT(Options!$B$14,2)),$C237,$E237,$F237,2016,$I237/10+$J237/10,1,$H237/10,$G237*$H237/10,RateRatios_airpollution!$E237)*10))","v":22.380648203},22.380792129,22.376003313000002,1008.9260644140001,1008.710184597,2678.1643595259998,2677.5731179659997,22.380792129,22.376003313000002,74.197029999336962,74.181154067762904,3344.8019639769263,3344.0862770090175,8878.6777599986726,8876.7176699575648,74.197029999336962,74.181154067762904,482280.69499569025,482177.50144045887,21741212.765850022,21736560.800558615,57711405.43999137,57698664.854724169,482280.69499569025,482177.50144045887,6500]
[null,"Male 35-39",36.926009999999998,78.336009999999987,"male",5,1,{"$f":"HLOOKUP(Calculations!$E$2,'Population 2016'!$C$3:$BC$249,'Population 2016'!BD238,FALSE)","v":31915},0,{"$f":"HLOOKUP(Calculations!$E$2,Pop2016_in_settlements!$C$3:$BC$249,Pop2016_in_settlements!$BD238,FALSE)","v":15473},{"$f":"IF(AND(OR(Calculations!$E$2=\"Orkney Health Board\",Calculations!$E$2=\"Orkney Islands Local Authority\"),$F238=1),0,IF(AND(OR(Calculations!$E$2=\"Shetland Health Board\",Calculations!$E$2=\"Western Isles Health Board\",Calculations!$E$2=\"Shetland Islands Local Authority\",Calculations!$E$2=\"Eilean Siar Local Authority\"),OR($F238=1,$F238=5)),0,new_ci(VALUE(LEFT(Options!$B$14,2)),$C238,$E238,$F238,2016,$I238/10,1,$H238/10,$G238*$H238/10,RateRatios_accidents!$B$5)*10))","v":34.389788037000002},{"$f":"IF(AND(OR(Calculations!$E$2=\"Orkney Health Board\",Calculations!$E$2=\"Orkney Islands Local Authority\"),$F238=1),0,IF(AND(OR(Calculations!$E$2=\"Shetland Health Board\",Calculations!$E$2=\"Western Isles Health Board\",Calculations!$E$2=\"Shetland Islands Local Authority\",Calculations!$E$2=\"Eilean Siar Local Authority\"),OR($F238=1,$F238=5)),0,new_ci(VALUE(LEFT(Options!$B$14,2)),$C238,$E238,$F238,2016,$I238/10+$J238/10,1,$H238/10,$G238*$H238/10,RateRatios_accidents!$B$5)*10))","v":34.383122268000001},{"$f":"IF(AND(OR(Calculations!$E$2=\"Orkney Health Board\",Calculations!$E$2=\"Orkney Islands Local Authority\"),$F238=1),0,IF(AND(OR(Calculations!$E$2=\"Shetland Health Board\",Calculations!$E$2=\"Western Isles Health Board\",Calculations!$E$2=\"Shetland Islands Local Authority\",Calculations!$E$2=\"Eilean Siar Local Authority\"),OR($F238=1,$F238=5)),0,new_yllv2(VALUE(LEFT(Options!$B$14,2)),$C238,$D238,$E238,$F238,2016,$I238/10,1,$H238/10,$G238*$H238/10,RateRatios_accidents!$B$5)*10))","v":1389.6913345749999},{"$f":"IF(AND(OR(Calculations!$E$2=\"Orkney Health Board\",Calculations!$E$2=\"Orkney Islands Local Authority\"),$F238=1),0,IF(AND(OR(Calculations!$E$2=\"Shetland Health Board\",Calculations!$E$2=\"Western Isles Health Board\",Calculations!$E$2=\"Shetland Islands Local Authority\",Calculations!$E$2=\"Eilean Siar Local Authority\"),OR($F238=1,$F238=5)),0,new_yllv2(VALUE(LEFT(Options!$B$14,2)),$C238,$D238,$E238,$F238,2016,$I238/10+$J238/10,1,$H238/10,$G238*$H238/10,RateRatios_accidents!$B$5)*10))","v":1389.42197085},{"$f":"IF(AND(OR(Calculations!$E$2=\"Orkney Health Board\",Calculations!$E$2=\"Orkney Islands Local Authority\"),$F238=1),0,IF(AND(OR(Calculations!$E$2=\"Shetland Health Board\",Calculations!$E$2=\"Western Isles Health Board\",Calculations!$E$2=\"Shetland Islands Local Authority\",Calculations!$E$2=\"Eilean Siar Local Authority\"),OR($F238=1,$F238=5)),0,hosp_count(VALUE(LEFT(Options!$B$14,2)),$C238,$E238,$F238,2016,$I238/10,1,$H238/10,$G238*$H238/10, RateRatios_accidents!$B$4, RateRatios_accidents!$B$5)*10))","v":3377.257887276},{"$f":"IF(AND(OR(Calculations!$E$2=\"Orkney Health Board\",Calculations!$E$2=\"Orkney Islands Local Authority\"),$F238=1),0,IF(AND(OR(Calculations!$E$2=\"Shetland Health Board\",Calculations!$E$2=\"Western Isles Health Board\",Calculations!$E$2=\"Shetland Islands Local Authority\",Calculations!$E$2=\"Eilean Siar Local Authority\"),OR($F238=1,$F238=5)),0,hosp_count(VALUE(LEFT(Options!$B$14,2)),$C238,$E238,$F238,2016,$I238/10+$J238/10,1,$H238/10,$G238*$H238/10, RateRatios_accidents!$B$4, RateRatios_accidents!$B$5)*10))","v":3376.6029430370004},{"$f":"IF(AND(OR(Calculations!$E$2=\"Orkney Health Board\",Calculations!$E$2=\"Orkney Islands Local Authority\"),$F238=1),0,IF(AND(OR(Calculations!$E$2=\"Shetland Health Board\",Calculations!$E$2=\"Western Isles Health Board\",Calculations!$E$2=\"Shetland Islands Local Authority\",Calculations!$E$2=\"Eilean Siar Local Authority\"),OR($F238=1,$F238=5)),0,prem_mort(VALUE(LEFT(Options!$B$14,2)),$C238,$E238,$F238,2016,$I238/10,1,$H238/10,$G238*$H238/10,RateRatios_accidents!$B$5)*10))","v":34.389788037000002},{"$f":"IF(AND(OR(Calculations!$E$2=\"Orkney Health Board\",Calculations!$E$2=\"Orkney Islands Local Authority\"),$F238=1),0,IF(AND(OR(Calculations!$E$2=\"Shetland Health Board\",Calculations!$E$2=\"Western Isles Health Board\",Calculations!$E$2=\"Shetland Islands Local Authority\",Calculations!$E$2=\"Eilean Siar Local Authority\"),OR($F238=1,$F238=5)),0,prem_mort(VALUE(LEFT(Options!$B$14,2)),$C238,$E238,$F238,2016,$I238/10+$J238/10,1,$H238/10,$G238*$H238/10,RateRatios_accidents!$B$5)*10))","v":34.383122268000001},null,{"$f":"IF(AND(OR(Calculations!$E$2=\"Orkney Health Board\",Calculations!$E$2=\"Orkney Islands Local Authority\"),$F238=1),0,IF(AND(OR(Calculations!$E$2=\"Shetland Health Board\",Calculations!$E$2=\"Western Isles Health Board\",Calculations!$E$2=\"Shetland Islands Local Authority\",Calculations!$E$2=\"Eilean Siar Local Authority\"),OR($F238=1,$F238=5)),0,new_ci(VALUE(LEFT(Options!$B$14,2)),$C238,$E238,$F238,2016,$I238/10,1,$H238/10,$G238*$H238/10,RateRatios_airpollution!$C238)*10))","v":34.389788037000002},{"$f":"IF(AND(OR(Calculations!$E$2=\"Orkney Health Board\",Calculations!$E$2=\"Orkney Islands Local Authority\"),$F238=1),0,IF(AND(OR(Calculations!$E$2=\"Shetland Health Board\",Calculations!$E$2=\"Western Isles Health Board\",Calculations!$E$2=\"Shetland Islands Local Authority\",Calculations!$E$2=\"Eilean Siar Local Authority\"),OR($F238=1,$F238=5)),0,new_ci(VALUE(LEFT(Options!$B$14,2)),$C238,$E238,$F238,2016,$I238/10+$J238/10,1,$H238/10,$G238*$H238/10,RateRatios_airpollution!$C238)*10))","v":34.389336225000001},{"$f":"IF(AND(OR(Calculations!$E$2=\"Orkney Health Board\",Calculations!$E$2=\"Orkney Islands Local Authority\"),$F238=1),0,IF(AND(OR(Calculations!$E$2=\"Shetland Health Board\",Calculations!$E$2=\"Western Isles Health Board\",Calculations!$E$2=\"Shetland Islands Local Authority\",Calculations!$E$2=\"Eilean Siar Local Authority\"),OR($F238=1,$F238=5)),0,new_yllv2(VALUE(LEFT(Options!$B$14,2)),$C238,$D238,$E238,$F238,2016,$I238/10,1,$H238/10,$G238*$H238/10,RateRatios_airpollution!$C238)*10))","v":1389.6913345749999},{"$f":"IF(AND(OR(Calculations!$E$2=\"Orkney Health Board\",Calculations!$E$2=\"Orkney Islands Local Authority\"),$F238=1),0,IF(AND(OR(Calculations!$E$2=\"Shetland Health Board\",Calculations!$E$2=\"Western Isles Health Board\",Calculations!$E$2=\"Shetland Islands Local Authority\",Calculations!$E$2=\"Eilean Siar Local Authority\"),OR($F238=1,$F238=5)),0,new_yllv2(VALUE(LEFT(Options!$B$14,2)),$C238,$D238,$E238,$F238,2016,$I238/10+$J238/10,1,$H238/10,$G238*$H238/10,RateRatios_airpollution!$C238)*10))","v":1389.6730768520001},{"$f":"IF(AND(OR(Calculations!$E$2=\"Orkney Health Board\",Calculations!$E$2=\"Orkney Islands Local Authority\"),$F238=1),0,IF(AND(OR(Calculations!$E$2=\"Shetland Health Board\",Calculations!$E$2=\"Western Isles Health Board\",Calculations!$E$2=\"Shetland Islands Local Authority\",Calculations!$E$2=\"Eilean Siar Local Authority\"),OR($F238=1,$F238=5)),0,hosp_count(VALUE(LEFT(Options!$B$14,2)),$C238,$E238,$F238,2016,$I238/10,1,$H238/10,$G238*$H238/10, RateRatios_airpollution!$D238, RateRatios_airpollution!$C238)*10))","v":3377.257887276},{"$f":"IF(AND(OR(Calculations!$E$2=\"Orkney Health Board\",Calculations!$E$2=\"Orkney Islands Local Authority\"),$F238=1),0,IF(AND(OR(Calculations!$E$2=\"Shetland Health Board\",Calculations!$E$2=\"Western Isles Health Board\",Calculations!$E$2=\"Shetland Islands Local Authority\",Calculations!$E$2=\"Eilean Siar Local Authority\"),OR($F238=1,$F238=5)),0,hosp_count(VALUE(LEFT(Options!$B$14,2)),$C238,$E238,$F238,2016,$I238/10+$J238/10,1,$H238/10,$G238*$H238/10, RateRatios_airpollution!$D238, RateRatios_airpollution!$C238)*10))","v":3377.1741675150001},{"$f":"IF(AND(OR(Calculations!$E$2=\"Orkney Health Board\",Calculations!$E$2=\"Orkney Islands Local Authority\"),$F238=1),0,IF(AND(OR(Calculations!$E$2=\"Shetland Health Board\",Calculations!$E$2=\"Western Isles Health Board\",Calculations!$E$2=\"Shetland Islands Local Authority\",Calculations!$E$2=\"Eilean Siar Local Authority\"),OR($F238=1,$F238=5)),0,prem_mort(VALUE(LEFT(Options!$B$14,2)),$C238,$E238,$F238,2016,$I238/10,1,$H238/10,$G238*$H238/10,RateRatios_airpollution!$C238)*10))","v":34.389788037000002},{"$f":"IF(AND(OR(Calculations!$E$2=\"Orkney Health Board\",Calculations!$E$2=\"Orkney Islands Local Authority\"),$F238=1),0,IF(AND(OR(Calculations!$E$2=\"Shetland Health Board\",Calculations!$E$2=\"Western Isles Health Board\",Calculations!$E$2=\"Shetland Islands Local Authority\",Calculations!$E$2=\"Eilean Siar Local Authority\"),OR($F238=1,$F238=5)),0,prem_mort(VALUE(LEFT(Options!$B$14,2)),$C238,$E238,$F238,2016,$I238/10+$J238/10,1,$H238/10,$G238*$H238/10,RateRatios_airpollution!$C238)*10))","v":34.389336225000001},null,{"$f":"IF(AND(OR(Calculations!$E$2=\"Orkney Health Board\",Calculations!$E$2=\"Orkney Islands Local Authority\"),$F238=1),0,IF(AND(OR(Calculations!$E$2=\"Shetland Health Board\",Calculations!$E$2=\"Western Isles Health Board\",Calculations!$E$2=\"Shetland Islands Local Authority\",Calculations!$E$2=\"Eilean Siar Local Authority\"),OR($F238=1,$F238=5)),0,new_ci(VALUE(LEFT(Options!$B$14,2)),$C238,$E238,$F238,2016,$I238/10,1,$H238/10,$G238*$H238/10,RateRatios_airpollution!$E238)*10))","v":34.389788037000002},{"$f":"IF(AND(OR(Calculations!$E$2=\"Orkney Health Board\",Calculations!$E$2=\"Orkney Islands Local Authority\"),$F238=1),0,IF(AND(OR(Calculations!$E$2=\"Shetland Health Board\",Calculations!$E$2=\"Western Isles Health Board\",Calculations!$E$2=\"Shetland Islands Local Authority\",Calculations!$E$2=\"Eilean Siar Local Authority\"),OR($F238=1,$F238=5)),0,new_ci(VALUE(LEFT(Options!$B$14,2)),$C238,$E238,$F238,2016,$I238/10+$J238/10,1,$H238/10,$G238*$H238/10,RateRatios_airpollution!$E238)*10))","v":34.389586888000004},{"$f":"IF(AND(OR(Calculations!$E$2=\"Orkney Health Board\",Calculations!$E$2=\"Orkney Islands Local Authority\"),$F238=1),0,IF(AND(OR(Calculations!$E$2=\"Shetland Health Board\",Calculations!$E$2=\"Western Isles Health Board\",Calculations!$E$2=\"Shetland Islands Local Authority\",Calculations!$E$2=\"Eilean Siar Local Authority\"),OR($F238=1,$F238=5)),0,new_yllv2(VALUE(LEFT(Options!$B$14,2)),$C238,$D238,$E238,$F238,2016,$I238/10,1,$H238/10,$G238*$H238/10,RateRatios_airpollution!$E238)*10))","v":1389.6913345749999},{"$f":"IF(AND(OR(Calculations!$E$2=\"Orkney Health Board\",Calculations!$E$2=\"Orkney Islands Local Authority\"),$F238=1),0,IF(AND(OR(Calculations!$E$2=\"Shetland Health Board\",Calculations!$E$2=\"Western Isles Health Board\",Calculations!$E$2=\"Shetland Islands Local Authority\",Calculations!$E$2=\"Eilean Siar Local Authority\"),OR($F238=1,$F238=5)),0,new_yllv2(VALUE(LEFT(Options!$B$14,2)),$C238,$D238,$E238,$F238,2016,$I238/10+$J238/10,1,$H238/10,$G238*$H238/10,RateRatios_airpollution!$E238)*10))","v":1389.683206144},{"$f":"IF(AND(OR(Calculations!$E$2=\"Orkney Health Board\",Calculations!$E$2=\"Orkney Islands Local Authority\"),$F238=1),0,IF(AND(OR(Calculations!$E$2=\"Shetland Health Board\",Calculations!$E$2=\"Western Isles Health Board\",Calculations!$E$2=\"Shetland Islands Local Authority\",Calculations!$E$2=\"Eilean Siar Local Authority\"),OR($F238=1,$F238=5)),0,hosp_count(VALUE(LEFT(Options!$B$14,2)),$C238,$E238,$F238,2016,$I238/10,1,$H238/10,$G238*$H238/10, RateRatios_airpollution!$F238, RateRatios_airpollution!$E238)*10))","v":3377.257887276},{"$f":"IF(AND(OR(Calculations!$E$2=\"Orkney Health Board\",Calculations!$E$2=\"Orkney Islands Local Authority\"),$F238=1),0,IF(AND(OR(Calculations!$E$2=\"Shetland Health Board\",Calculations!$E$2=\"Western Isles Health Board\",Calculations!$E$2=\"Shetland Islands Local Authority\",Calculations!$E$2=\"Eilean Siar Local Authority\"),OR($F238=1,$F238=5)),0,hosp_count(VALUE(LEFT(Options!$B$14,2)),$C238,$E238,$F238,2016,$I238/10+$J238/10,1,$H238/10,$G238*$H238/10, RateRatios_airpollution!$F238, RateRatios_airpollution!$E238)*10))","v":3377.257887276},{"$f":"IF(AND(OR(Calculations!$E$2=\"Orkney Health Board\",Calculations!$E$2=\"Orkney Islands Local Authority\"),$F238=1),0,IF(AND(OR(Calculations!$E$2=\"Shetland Health Board\",Calculations!$E$2=\"Western Isles Health Board\",Calculations!$E$2=\"Shetland Islands Local Authority\",Calculations!$E$2=\"Eilean Siar Local Authority\"),OR($F238=1,$F238=5)),0,prem_mort(VALUE(LEFT(Options!$B$14,2)),$C238,$E238,$F238,2016,$I238/10,1,$H238/10,$G238*$H238/10,RateRatios_airpollution!$E238)*10))","v":34.389788037000002},{"$f":"IF(AND(OR(Calculations!$E$2=\"Orkney Health Board\",Calculations!$E$2=\"Orkney Islands Local Authority\"),$F238=1),0,IF(AND(OR(Calculations!$E$2=\"Shetland Health Board\",Calculations!$E$2=\"Western Isles Health Board\",Calculations!$E$2=\"Shetland Islands Local Authority\",Calculations!$E$2=\"Eilean Siar Local Authority\"),OR($F238=1,$F238=5)),0,prem_mort(VALUE(LEFT(Options!$B$14,2)),$C238,$E238,$F238,2016,$I238/10+$J238/10,1,$H238/10,$G238*$H238/10,RateRatios_airpollution!$E238)*10))","v":34.389586888000004},34.389788037000002,34.382469307000001,1389.6913345749999,1389.3955846960002,3377.257887276,3376.5192232760005,34.389788037000002,34.382469307000001,107.75431000156667,107.73137805733981,4354.3516671627758,4353.4249872975097,10582.039439999999,10579.724967181579,107.75431000156667,107.73137805733981,754280.17001096671,754119.64640137868,30480461.670139432,30473974.91108257,74074276.079999983,74058074.770271048,754280.17001096671,754119.64640137868,7000]
[null,"Male 40-44",42.067703000000002,78.907700000000006,"male",5,1,{"$f":"HLOOKUP(Calculations!$E$2,'Population 2016'!$C$3:$BC$249,'Population 2016'!BD239,FALSE)","v":35113},0,{"$f":"HLOOKUP(Calculations!$E$2,Pop2016_in_settlements!$C$3:$BC$249,Pop2016_in_settlements!$BD239,FALSE)","v":17593},{"$f":"IF(AND(OR(Calculations!$E$2=\"Orkney Health Board\",Calculations!$E$2=\"Orkney Islands Local Authority\"),$F239=1),0,IF(AND(OR(Calculations!$E$2=\"Shetland Health Board\",Calculations!$E$2=\"Western Isles Health Board\",Calculations!$E$2=\"Shetland Islands Local Authority\",Calculations!$E$2=\"Eilean Siar Local Authority\"),OR($F239=1,$F239=5)),0,new_ci(VALUE(LEFT(Options!$B$14,2)),$C239,$E239,$F239,2016,$I239/10,1,$H239/10,$G239*$H239/10,RateRatios_accidents!$B$5)*10))","v":55.767172370999994},{"$f":"IF(AND(OR(Calculations!$E$2=\"Orkney Health Board\",Calculations!$E$2=\"Orkney Islands Local Authority\"),$F239=1),0,IF(AND(OR(Calculations!$E$2=\"Shetland Health Board\",Calculations!$E$2=\"Western Isles Health Board\",Calculations!$E$2=\"Shetland Islands Local Authority\",Calculations!$E$2=\"Eilean Siar Local Authority\"),OR($F239=1,$F239=5)),0,new_ci(VALUE(LEFT(Options!$B$14,2)),$C239,$E239,$F239,2016,$I239/10+$J239/10,1,$H239/10,$G239*$H239/10,RateRatios_accidents!$B$5)*10))","v":55.756006094},{"$f":"IF(AND(OR(Calculations!$E$2=\"Orkney Health Board\",Calculations!$E$2=\"Orkney Islands Local Authority\"),$F239=1),0,IF(AND(OR(Calculations!$E$2=\"Shetland Health Board\",Calculations!$E$2=\"Western Isles Health Board\",Calculations!$E$2=\"Shetland Islands Local Authority\",Calculations!$E$2=\"Eilean Siar Local Authority\"),OR($F239=1,$F239=5)),0,new_yllv2(VALUE(LEFT(Options!$B$14,2)),$C239,$D239,$E239,$F239,2016,$I239/10,1,$H239/10,$G239*$H239/10,RateRatios_accidents!$B$5)*10))","v":1998.6952904750001},{"$f":"IF(AND(OR(Calculations!$E$2=\"Orkney Health Board\",Calculations!$E$2=\"Orkney Islands Local Authority\"),$F239=1),0,IF(AND(OR(Calculations!$E$2=\"Shetland Health Board\",Calculations!$E$2=\"Western Isles Health Board\",Calculations!$E$2=\"Shetland Islands Local Authority\",Calculations!$E$2=\"Eilean Siar Local Authority\"),OR($F239=1,$F239=5)),0,new_yllv2(VALUE(LEFT(Options!$B$14,2)),$C239,$D239,$E239,$F239,2016,$I239/10+$J239/10,1,$H239/10,$G239*$H239/10,RateRatios_accidents!$B$5)*10))","v":1998.2950911410001},{"$f":"IF(AND(OR(Calculations!$E$2=\"Orkney Health Board\",Calculations!$E$2=\"Orkney Islands Local Authority\"),$F239=1),0,IF(AND(OR(Calculations!$E$2=\"Shetland Health Board\",Calculations!$E$2=\"Western Isles Health Board\",Calculations!$E$2=\"Shetland Islands Local Authority\",Calculations!$E$2=\"Eilean Siar Local Authority\"),OR($F239=1,$F239=5)),0,hosp_count(VALUE(LEFT(Options!$B$14,2)),$C239,$E239,$F239,2016,$I239/10,1,$H239/10,$G239*$H239/10, RateRatios_accidents!$B$4, RateRatios_accidents!$B$5)*10))","v":4459.6254010720004},{"$f":"IF(AND(OR(Calculations!$E$2=\"Orkney Health Board\",Calculations!$E$2=\"Orkney Islands Local Authority\"),$F239=1),0,IF(AND(OR(Calculations!$E$2=\"Shetland Health Board\",Calculations!$E$2=\"Western Isles Health Board\",Calculations!$E$2=\"Shetland Islands Local Authority\",Calculations!$E$2=\"Eilean Siar Local Authority\"),OR($F239=1,$F239=5)),0,hosp_count(VALUE(LEFT(Options!$B$14,2)),$C239,$E239,$F239,2016,$I239/10+$J239/10,1,$H239/10,$G239*$H239/10, RateRatios_accidents!$B$4, RateRatios_accidents!$B$5)*10))","v":4458.7316221339997},{"$f":"IF(AND(OR(Calculations!$E$2=\"Orkney Health Board\",Calculations!$E$2=\"Orkney Islands Local Authority\"),$F239=1),0,IF(AND(OR(Calculations!$E$2=\"Shetland Health Board\",Calculations!$E$2=\"Western Isles Health Board\",Calculations!$E$2=\"Shetland Islands Local Authority\",Calculations!$E$2=\"Eilean Siar Local Authority\"),OR($F239=1,$F239=5)),0,prem_mort(VALUE(LEFT(Options!$B$14,2)),$C239,$E239,$F239,2016,$I239/10,1,$H239/10,$G239*$H239/10,RateRatios_accidents!$B$5)*10))","v":55.767172370999994},{"$f":"IF(AND(OR(Calculations!$E$2=\"Orkney Health Board\",Calculations!$E$2=\"Orkney Islands Local Authority\"),$F239=1),0,IF(AND(OR(Calculations!$E$2=\"Shetland Health Board\",Calculations!$E$2=\"Western Isles Health Board\",Calculations!$E$2=\"Shetland Islands Local Authority\",Calculations!$E$2=\"Eilean Siar Local Authority\"),OR($F239=1,$F239=5)),0,prem_mort(VALUE(LEFT(Options!$B$14,2)),$C239,$E239,$F239,2016,$I239/10+$J239/10,1,$H239/10,$G239*$H239/10,RateRatios_accidents!$B$5)*10))","v":55.756006094},null,{"$f":"IF(AND(OR(Calculations!$E$2=\"Orkney Health Board\",Calculations!$E$2=\"Orkney Islands Local Authority\"),$F239=1),0,IF(AND(OR(Calculations!$E$2=\"Shetland Health Board\",Calculations!$E$2=\"Western Isles Health Board\",Calculations!$E$2=\"Shetland Islands Local Authority\",Calculations!$E$2=\"Eilean Siar Local Authority\"),OR($F239=1,$F239=5)),0,new_ci(VALUE(LEFT(Options!$B$14,2)),$C239,$E239,$F239,2016,$I239/10,1,$H239/10,$G239*$H239/10,RateRatios_airpollution!$C239)*10))","v":55.767172370999994},{"$f":"IF(AND(OR(Calculations!$E$2=\"Orkney Health Board\",Calculations!$E$2=\"Orkney Islands Local Authority\"),$F239=1),0,IF(AND(OR(Calculations!$E$2=\"Shetland Health Board\",Calculations!$E$2=\"Western Isles Health Board\",Calculations!$E$2=\"Shetland Islands Local Authority\",Calculations!$E$2=\"Eilean Siar Local Authority\"),OR($F239=1,$F239=5)),0,new_ci(VALUE(LEFT(Options!$B$14,2)),$C239,$E239,$F239,2016,$I239/10+$J239/10,1,$H239/10,$G239*$H239/10,RateRatios_airpollution!$C239)*10))","v":55.766491521999995},{"$f":"IF(AND(OR(Calculations!$E$2=\"Orkney Health Board\",Calculations!$E$2=\"Orkney Islands Local Authority\"),$F239=1),0,IF(AND(OR(Calculations!$E$2=\"Shetland Health Board\",Calculations!$E$2=\"Western Isles Health Board\",Calculations!$E$2=\"Shetland Islands Local Authority\",Calculations!$E$2=\"Eilean Siar Local Authority\"),OR($F239=1,$F239=5)),0,new_yllv2(VALUE(LEFT(Options!$B$14,2)),$C239,$D239,$E239,$F239,2016,$I239/10,1,$H239/10,$G239*$H239/10,RateRatios_airpollution!$C239)*10))","v":1998.6952904750001},{"$f":"IF(AND(OR(Calculations!$E$2=\"Orkney Health Board\",Calculations!$E$2=\"Orkney Islands Local Authority\"),$F239=1),0,IF(AND(OR(Calculations!$E$2=\"Shetland Health Board\",Calculations!$E$2=\"Western Isles Health Board\",Calculations!$E$2=\"Shetland Islands Local Authority\",Calculations!$E$2=\"Eilean Siar Local Authority\"),OR($F239=1,$F239=5)),0,new_yllv2(VALUE(LEFT(Options!$B$14,2)),$C239,$D239,$E239,$F239,2016,$I239/10+$J239/10,1,$H239/10,$G239*$H239/10,RateRatios_airpollution!$C239)*10))","v":1998.670888849},{"$f":"IF(AND(OR(Calculations!$E$2=\"Orkney Health Board\",Calculations!$E$2=\"Orkney Islands Local Authority\"),$F239=1),0,IF(AND(OR(Calculations!$E$2=\"Shetland Health Board\",Calculations!$E$2=\"Western Isles Health Board\",Calculations!$E$2=\"Shetland Islands Local Authority\",Calculations!$E$2=\"Eilean Siar Local Authority\"),OR($F239=1,$F239=5)),0,hosp_count(VALUE(LEFT(Options!$B$14,2)),$C239,$E239,$F239,2016,$I239/10,1,$H239/10,$G239*$H239/10, RateRatios_airpollution!$D239, RateRatios_airpollution!$C239)*10))","v":4459.6254010720004},{"$f":"IF(AND(OR(Calculations!$E$2=\"Orkney Health Board\",Calculations!$E$2=\"Orkney Islands Local Authority\"),$F239=1),0,IF(AND(OR(Calculations!$E$2=\"Shetland Health Board\",Calculations!$E$2=\"Western Isles Health Board\",Calculations!$E$2=\"Shetland Islands Local Authority\",Calculations!$E$2=\"Eilean Siar Local Authority\"),OR($F239=1,$F239=5)),0,hosp_count(VALUE(LEFT(Options!$B$14,2)),$C239,$E239,$F239,2016,$I239/10+$J239/10,1,$H239/10,$G239*$H239/10, RateRatios_airpollution!$D239, RateRatios_airpollution!$C239)*10))","v":4459.5226174879999},{"$f":"IF(AND(OR(Calculations!$E$2=\"Orkney Health Board\",Calculations!$E$2=\"Orkney Islands Local Authority\"),$F239=1),0,IF(AND(OR(Calculations!$E$2=\"Shetland Health Board\",Calculations!$E$2=\"Western Isles Health Board\",Calculations!$E$2=\"Shetland Islands Local Authority\",Calculations!$E$2=\"Eilean Siar Local Authority\"),OR($F239=1,$F239=5)),0,prem_mort(VALUE(LEFT(Options!$B$14,2)),$C239,$E239,$F239,2016,$I239/10,1,$H239/10,$G239*$H239/10,RateRatios_airpollution!$C239)*10))","v":55.767172370999994},{"$f":"IF(AND(OR(Calculations!$E$2=\"Orkney Health Board\",Calculations!$E$2=\"Orkney Islands Local Authority\"),$F239=1),0,IF(AND(OR(Calculations!$E$2=\"Shetland Health Board\",Calculations!$E$2=\"Western Isles Health Board\",Calculations!$E$2=\"Shetland Islands Local Authority\",Calculations!$E$2=\"Eilean Siar Local Authority\"),OR($F239=1,$F239=5)),0,prem_mort(VALUE(LEFT(Options!$B$14,2)),$C239,$E239,$F239,2016,$I239/10+$J239/10,1,$H239/10,$G239*$H239/10,RateRatios_airpollution!$C239)*10))","v":55.766491521999995},null,{"$f":"IF(AND(OR(Calculations!$E$2=\"Orkney Health Board\",Calculations!$E$2=\"Orkney Islands Local Authority\"),$F239=1),0,IF(AND(OR(Calculations!$E$2=\"Shetland Health Board\",Calculations!$E$2=\"Western Isles Health Board\",Calculations!$E$2=\"Shetland Islands Local Authority\",Calculations!$E$2=\"Eilean Siar Local Authority\"),OR($F239=1,$F239=5)),0,new_ci(VALUE(LEFT(Options!$B$14,2)),$C239,$E239,$F239,2016,$I239/10,1,$H239/10,$G239*$H239/10,RateRatios_airpollution!$E239)*10))","v":55.767172370999994},{"$f":"IF(AND(OR(Calculations!$E$2=\"Orkney Health Board\",Calculations!$E$2=\"Orkney Islands Local Authority\"),$F239=1),0,IF(AND(OR(Calculations!$E$2=\"Shetland Health Board\",Calculations!$E$2=\"Western Isles Health Board\",Calculations!$E$2=\"Shetland Islands Local Authority\",Calculations!$E$2=\"Eilean Siar Local Authority\"),OR($F239=1,$F239=5)),0,new_ci(VALUE(LEFT(Options!$B$14,2)),$C239,$E239,$F239,2016,$I239/10+$J239/10,1,$H239/10,$G239*$H239/10,RateRatios_airpollution!$E239)*10))","v":55.766868012000003},{"$f":"IF(AND(OR(Calculations!$E$2=\"Orkney Health Board\",Calculations!$E$2=\"Orkney Islands Local Authority\"),$F239=1),0,IF(AND(OR(Calculations!$E$2=\"Shetland Health Board\",Calculations!$E$2=\"Western Isles Health Board\",Calculations!$E$2=\"Shetland Islands Local Authority\",Calculations!$E$2=\"Eilean Siar Local Authority\"),OR($F239=1,$F239=5)),0,new_yllv2(VALUE(LEFT(Options!$B$14,2)),$C239,$D239,$E239,$F239,2016,$I239/10,1,$H239/10,$G239*$H239/10,RateRatios_airpollution!$E239)*10))","v":1998.6952904750001},{"$f":"IF(AND(OR(Calculations!$E$2=\"Orkney Health Board\",Calculations!$E$2=\"Orkney Islands Local Authority\"),$F239=1),0,IF(AND(OR(Calculations!$E$2=\"Shetland Health Board\",Calculations!$E$2=\"Western Isles Health Board\",Calculations!$E$2=\"Shetland Islands Local Authority\",Calculations!$E$2=\"Eilean Siar Local Authority\"),OR($F239=1,$F239=5)),0,new_yllv2(VALUE(LEFT(Options!$B$14,2)),$C239,$D239,$E239,$F239,2016,$I239/10+$J239/10,1,$H239/10,$G239*$H239/10,RateRatios_airpollution!$E239)*10))","v":1998.684382249},{"$f":"IF(AND(OR(Calculations!$E$2=\"Orkney Health Board\",Calculations!$E$2=\"Orkney Islands Local Authority\"),$F239=1),0,IF(AND(OR(Calculations!$E$2=\"Shetland Health Board\",Calculations!$E$2=\"Western Isles Health Board\",Calculations!$E$2=\"Shetland Islands Local Authority\",Calculations!$E$2=\"Eilean Siar Local Authority\"),OR($F239=1,$F239=5)),0,hosp_count(VALUE(LEFT(Options!$B$14,2)),$C239,$E239,$F239,2016,$I239/10,1,$H239/10,$G239*$H239/10, RateRatios_airpollution!$F239, RateRatios_airpollution!$E239)*10))","v":4459.6254010720004},{"$f":"IF(AND(OR(Calculations!$E$2=\"Orkney Health Board\",Calculations!$E$2=\"Orkney Islands Local Authority\"),$F239=1),0,IF(AND(OR(Calculations!$E$2=\"Shetland Health Board\",Calculations!$E$2=\"Western Isles Health Board\",Calculations!$E$2=\"Shetland Islands Local Authority\",Calculations!$E$2=\"Eilean Siar Local Authority\"),OR($F239=1,$F239=5)),0,hosp_count(VALUE(LEFT(Options!$B$14,2)),$C239,$E239,$F239,2016,$I239/10+$J239/10,1,$H239/10,$G239*$H239/10, RateRatios_airpollution!$F239, RateRatios_airpollution!$E239)*10))","v":4459.6254010720004},{"$f":"IF(AND(OR(Calculations!$E$2=\"Orkney Health Board\",Calculations!$E$2=\"Orkney Islands Local Authority\"),$F239=1),0,IF(AND(OR(Calculations!$E$2=\"Shetland Health Board\",Calculations!$E$2=\"Western Isles Health Board\",Calculations!$E$2=\"Shetland Islands Local Authority\",Calculations!$E$2=\"Eilean Siar Local Authority\"),OR($F239=1,$F239=5)),0,prem_mort(VALUE(LEFT(Options!$B$14,2)),$C239,$E239,$F239,2016,$I239/10,1,$H239/10,$G239*$H239/10,RateRatios_airpollution!$E239)*10))","v":55.767172370999994},{"$f":"IF(AND(OR(Calculations!$E$2=\"Orkney Health Board\",Calculations!$E$2=\"Orkney Islands Local Authority\"),$F239=1),0,IF(AND(OR(Calculations!$E$2=\"Shetland Health Board\",Calculations!$E$2=\"Western Isles Health Board\",Calculations!$E$2=\"Shetland Islands Local Authority\",Calculations!$E$2=\"Eilean Siar Local Authority\"),OR($F239=1,$F239=5)),0,prem_mort(VALUE(LEFT(Options!$B$14,2)),$C239,$E239,$F239,2016,$I239/10+$J239/10,1,$H239/10,$G239*$H239/10,RateRatios_airpollution!$E239)*10))","v":55.766868012000003},55.767172370999994,55.755020886000011,1998.6952904750001,1998.2597812889999,4459.6254010720004,4458.6288385499993,55.767172370999994,55.755020886000011,158.82200999914559,158.78740320109364,5692.1803619029997,5690.9400543644806,12700.781479998861,12697.94332170421,158.82200999914559,158.78740320109364,1111754.0699940191,1111511.8224076554,39845262.533321001,39836580.380551361,88905470.359992027,88885603.251929462,1111754.0699940191,1111511.8224076554,7000]
[null,"Male 45-49",47.038155000000003,79.418149999999997,"male",5,1,{"$f":"HLOOKUP(Calculations!$E$2,'Population 2016'!$C$3:$BC$249,'Population 2016'!BD240,FALSE)","v":39359},0,{"$f":"HLOOKUP(Calculations!$E$2,Pop2016_in_settlements!$C$3:$BC$249,Pop2016_in_settlements!$BD240,FALSE)","v":20432},{"$f":"IF(AND(OR(Calculations!$E$2=\"Orkney Health Board\",Calculations!$E$2=\"Orkney Islands Local Authority\"),$F240=1),0,IF(AND(OR(Calculations!$E$2=\"Shetland Health Board\",Calculations!$E$2=\"Western Isles Health Board\",Calculations!$E$2=\"Shetland Islands Local Authority\",Calculations!$E$2=\"Eilean Siar Local Authority\"),OR($F240=1,$F240=5)),0,new_ci(VALUE(LEFT(Options!$B$14,2)),$C240,$E240,$F240,2016,$I240/10,1,$H240/10,$G240*$H240/10,RateRatios_accidents!$B$5)*10))","v":90.94315336199999},{"$f":"IF(AND(OR(Calculations!$E$2=\"Orkney Health Board\",Calculations!$E$2=\"Orkney Islands Local Authority\"),$F240=1),0,IF(AND(OR(Calculations!$E$2=\"Shetland Health Board\",Calculations!$E$2=\"Western Isles Health Board\",Calculations!$E$2=\"Shetland Islands Local Authority\",Calculations!$E$2=\"Eilean Siar Local Authority\"),OR($F240=1,$F240=5)),0,new_ci(VALUE(LEFT(Options!$B$14,2)),$C240,$E240,$F240,2016,$I240/10+$J240/10,1,$H240/10,$G240*$H240/10,RateRatios_accidents!$B$5)*10))","v":90.924290538999998},{"$f":"IF(AND(OR(Calculations!$E$2=\"Orkney Health Board\",Calculations!$E$2=\"Orkney Islands Local Authority\"),$F240=1),0,IF(AND(OR(Calculations!$E$2=\"Shetland Health Board\",Calculations!$E$2=\"Western Isles Health Board\",Calculations!$E$2=\"Shetland Islands Local Authority\",Calculations!$E$2=\"Eilean Siar Local Authority\"),OR($F240=1,$F240=5)),0,new_yllv2(VALUE(LEFT(Options!$B$14,2)),$C240,$D240,$E240,$F240,2016,$I240/10,1,$H240/10,$G240*$H240/10,RateRatios_accidents!$B$5)*10))","v":2853.7956977840004},{"$f":"IF(AND(OR(Calculations!$E$2=\"Orkney Health Board\",Calculations!$E$2=\"Orkney Islands Local Authority\"),$F240=1),0,IF(AND(OR(Calculations!$E$2=\"Shetland Health Board\",Calculations!$E$2=\"Western Isles Health Board\",Calculations!$E$2=\"Shetland Islands Local Authority\",Calculations!$E$2=\"Eilean Siar Local Authority\"),OR($F240=1,$F240=5)),0,new_yllv2(VALUE(LEFT(Options!$B$14,2)),$C240,$D240,$E240,$F240,2016,$I240/10+$J240/10,1,$H240/10,$G240*$H240/10,RateRatios_accidents!$B$5)*10))","v":2853.2037824920003},{"$f":"IF(AND(OR(Calculations!$E$2=\"Orkney Health Board\",Calculations!$E$2=\"Orkney Islands Local Authority\"),$F240=1),0,IF(AND(OR(Calculations!$E$2=\"Shetland Health Board\",Calculations!$E$2=\"Western Isles Health Board\",Calculations!$E$2=\"Shetland Islands Local Authority\",Calculations!$E$2=\"Eilean Siar Local Authority\"),OR($F240=1,$F240=5)),0,hosp_count(VALUE(LEFT(Options!$B$14,2)),$C240,$E240,$F240,2016,$I240/10,1,$H240/10,$G240*$H240/10, RateRatios_accidents!$B$4, RateRatios_accidents!$B$5)*10))","v":5963.4258802349996},{"$f":"IF(AND(OR(Calculations!$E$2=\"Orkney Health Board\",Calculations!$E$2=\"Orkney Islands Local Authority\"),$F240=1),0,IF(AND(OR(Calculations!$E$2=\"Shetland Health Board\",Calculations!$E$2=\"Western Isles Health Board\",Calculations!$E$2=\"Shetland Islands Local Authority\",Calculations!$E$2=\"Eilean Siar Local Authority\"),OR($F240=1,$F240=5)),0,hosp_count(VALUE(LEFT(Options!$B$14,2)),$C240,$E240,$F240,2016,$I240/10+$J240/10,1,$H240/10,$G240*$H240/10, RateRatios_accidents!$B$4, RateRatios_accidents!$B$5)*10))","v":5962.1875886589996},{"$f":"IF(AND(OR(Calculations!$E$2=\"Orkney Health Board\",Calculations!$E$2=\"Orkney Islands Local Authority\"),$F240=1),0,IF(AND(OR(Calculations!$E$2=\"Shetland Health Board\",Calculations!$E$2=\"Western Isles Health Board\",Calculations!$E$2=\"Shetland Islands Local Authority\",Calculations!$E$2=\"Eilean Siar Local Authority\"),OR($F240=1,$F240=5)),0,prem_mort(VALUE(LEFT(Options!$B$14,2)),$C240,$E240,$F240,2016,$I240/10,1,$H240/10,$G240*$H240/10,RateRatios_accidents!$B$5)*10))","v":90.94315336199999},{"$f":"IF(AND(OR(Calculations!$E$2=\"Orkney Health Board\",Calculations!$E$2=\"Orkney Islands Local Authority\"),$F240=1),0,IF(AND(OR(Calculations!$E$2=\"Shetland Health Board\",Calculations!$E$2=\"Western Isles Health Board\",Calculations!$E$2=\"Shetland Islands Local Authority\",Calculations!$E$2=\"Eilean Siar Local Authority\"),OR($F240=1,$F240=5)),0,prem_mort(VALUE(LEFT(Options!$B$14,2)),$C240,$E240,$F240,2016,$I240/10+$J240/10,1,$H240/10,$G240*$H240/10,RateRatios_accidents!$B$5)*10))","v":90.924290538999998},null,{"$f":"IF(AND(OR(Calculations!$E$2=\"Orkney Health Board\",Calculations!$E$2=\"Orkney Islands Local Authority\"),$F240=1),0,IF(AND(OR(Calculations!$E$2=\"Shetland Health Board\",Calculations!$E$2=\"Western Isles Health Board\",Calculations!$E$2=\"Shetland Islands Local Authority\",Calculations!$E$2=\"Eilean Siar Local Authority\"),OR($F240=1,$F240=5)),0,new_ci(VALUE(LEFT(Options!$B$14,2)),$C240,$E240,$F240,2016,$I240/10,1,$H240/10,$G240*$H240/10,RateRatios_airpollution!$C240)*10))","v":90.94315336199999},{"$f":"IF(AND(OR(Calculations!$E$2=\"Orkney Health Board\",Calculations!$E$2=\"Orkney Islands Local Authority\"),$F240=1),0,IF(AND(OR(Calculations!$E$2=\"Shetland Health Board\",Calculations!$E$2=\"Western Isles Health Board\",Calculations!$E$2=\"Shetland Islands Local Authority\",Calculations!$E$2=\"Eilean Siar Local Authority\"),OR($F240=1,$F240=5)),0,new_ci(VALUE(LEFT(Options!$B$14,2)),$C240,$E240,$F240,2016,$I240/10+$J240/10,1,$H240/10,$G240*$H240/10,RateRatios_airpollution!$C240)*10))","v":90.942058205999984},{"$f":"IF(AND(OR(Calculations!$E$2=\"Orkney Health Board\",Calculations!$E$2=\"Orkney Islands Local Authority\"),$F240=1),0,IF(AND(OR(Calculations!$E$2=\"Shetland Health Board\",Calculations!$E$2=\"Western Isles Health Board\",Calculations!$E$2=\"Shetland Islands Local Authority\",Calculations!$E$2=\"Eilean Siar Local Authority\"),OR($F240=1,$F240=5)),0,new_yllv2(VALUE(LEFT(Options!$B$14,2)),$C240,$D240,$E240,$F240,2016,$I240/10,1,$H240/10,$G240*$H240/10,RateRatios_airpollution!$C240)*10))","v":2853.7956977840004},{"$f":"IF(AND(OR(Calculations!$E$2=\"Orkney Health Board\",Calculations!$E$2=\"Orkney Islands Local Authority\"),$F240=1),0,IF(AND(OR(Calculations!$E$2=\"Shetland Health Board\",Calculations!$E$2=\"Western Isles Health Board\",Calculations!$E$2=\"Shetland Islands Local Authority\",Calculations!$E$2=\"Eilean Siar Local Authority\"),OR($F240=1,$F240=5)),0,new_yllv2(VALUE(LEFT(Options!$B$14,2)),$C240,$D240,$E240,$F240,2016,$I240/10+$J240/10,1,$H240/10,$G240*$H240/10,RateRatios_airpollution!$C240)*10))","v":2853.7613317939995},{"$f":"IF(AND(OR(Calculations!$E$2=\"Orkney Health Board\",Calculations!$E$2=\"Orkney Islands Local Authority\"),$F240=1),0,IF(AND(OR(Calculations!$E$2=\"Shetland Health Board\",Calculations!$E$2=\"Western Isles Health Board\",Calculations!$E$2=\"Shetland Islands Local Authority\",Calculations!$E$2=\"Eilean Siar Local Authority\"),OR($F240=1,$F240=5)),0,hosp_count(VALUE(LEFT(Options!$B$14,2)),$C240,$E240,$F240,2016,$I240/10,1,$H240/10,$G240*$H240/10, RateRatios_airpollution!$D240, RateRatios_airpollution!$C240)*10))","v":5963.4258802349996},{"$f":"IF(AND(OR(Calculations!$E$2=\"Orkney Health Board\",Calculations!$E$2=\"Orkney Islands Local Authority\"),$F240=1),0,IF(AND(OR(Calculations!$E$2=\"Shetland Health Board\",Calculations!$E$2=\"Western Isles Health Board\",Calculations!$E$2=\"Shetland Islands Local Authority\",Calculations!$E$2=\"Eilean Siar Local Authority\"),OR($F240=1,$F240=5)),0,hosp_count(VALUE(LEFT(Options!$B$14,2)),$C240,$E240,$F240,2016,$I240/10+$J240/10,1,$H240/10,$G240*$H240/10, RateRatios_airpollution!$D240, RateRatios_airpollution!$C240)*10))","v":5963.2903772539994},{"$f":"IF(AND(OR(Calculations!$E$2=\"Orkney Health Board\",Calculations!$E$2=\"Orkney Islands Local Authority\"),$F240=1),0,IF(AND(OR(Calculations!$E$2=\"Shetland Health Board\",Calculations!$E$2=\"Western Isles Health Board\",Calculations!$E$2=\"Shetland Islands Local Authority\",Calculations!$E$2=\"Eilean Siar Local Authority\"),OR($F240=1,$F240=5)),0,prem_mort(VALUE(LEFT(Options!$B$14,2)),$C240,$E240,$F240,2016,$I240/10,1,$H240/10,$G240*$H240/10,RateRatios_airpollution!$C240)*10))","v":90.94315336199999},{"$f":"IF(AND(OR(Calculations!$E$2=\"Orkney Health Board\",Calculations!$E$2=\"Orkney Islands Local Authority\"),$F240=1),0,IF(AND(OR(Calculations!$E$2=\"Shetland Health Board\",Calculations!$E$2=\"Western Isles Health Board\",Calculations!$E$2=\"Shetland Islands Local Authority\",Calculations!$E$2=\"Eilean Siar Local Authority\"),OR($F240=1,$F240=5)),0,prem_mort(VALUE(LEFT(Options!$B$14,2)),$C240,$E240,$F240,2016,$I240/10+$J240/10,1,$H240/10,$G240*$H240/10,RateRatios_airpollution!$C240)*10))","v":90.942058205999984},null,{"$f":"IF(AND(OR(Calculations!$E$2=\"Orkney Health Board\",Calculations!$E$2=\"Orkney Islands Local Authority\"),$F240=1),0,IF(AND(OR(Calculations!$E$2=\"Shetland Health Board\",Calculations!$E$2=\"Western Isles Health Board\",Calculations!$E$2=\"Shetland Islands Local Authority\",Calculations!$E$2=\"Eilean Siar Local Authority\"),OR($F240=1,$F240=5)),0,new_ci(VALUE(LEFT(Options!$B$14,2)),$C240,$E240,$F240,2016,$I240/10,1,$H240/10,$G240*$H240/10,RateRatios_airpollution!$E240)*10))","v":90.94315336199999},{"$f":"IF(AND(OR(Calculations!$E$2=\"Orkney Health Board\",Calculations!$E$2=\"Orkney Islands Local Authority\"),$F240=1),0,IF(AND(OR(Calculations!$E$2=\"Shetland Health Board\",Calculations!$E$2=\"Western Isles Health Board\",Calculations!$E$2=\"Shetland Islands Local Authority\",Calculations!$E$2=\"Eilean Siar Local Authority\"),OR($F240=1,$F240=5)),0,new_ci(VALUE(LEFT(Options!$B$14,2)),$C240,$E240,$F240,2016,$I240/10+$J240/10,1,$H240/10,$G240*$H240/10,RateRatios_airpollution!$E240)*10))","v":90.942658906999995},{"$f":"IF(AND(OR(Calculations!$E$2=\"Orkney Health Board\",Calculations!$E$2=\"Orkney Islands Local Authority\"),$F240=1),0,IF(AND(OR(Calculations!$E$2=\"Shetland Health Board\",Calculations!$E$2=\"Western Isles Health Board\",Calculations!$E$2=\"Shetland Islands Local Authority\",Calculations!$E$2=\"Eilean Siar Local Authority\"),OR($F240=1,$F240=5)),0,new_yllv2(VALUE(LEFT(Options!$B$14,2)),$C240,$D240,$E240,$F240,2016,$I240/10,1,$H240/10,$G240*$H240/10,RateRatios_airpollution!$E240)*10))","v":2853.7956977840004},{"$f":"IF(AND(OR(Calculations!$E$2=\"Orkney Health Board\",Calculations!$E$2=\"Orkney Islands Local Authority\"),$F240=1),0,IF(AND(OR(Calculations!$E$2=\"Shetland Health Board\",Calculations!$E$2=\"Western Isles Health Board\",Calculations!$E$2=\"Shetland Islands Local Authority\",Calculations!$E$2=\"Eilean Siar Local Authority\"),OR($F240=1,$F240=5)),0,new_yllv2(VALUE(LEFT(Options!$B$14,2)),$C240,$D240,$E240,$F240,2016,$I240/10+$J240/10,1,$H240/10,$G240*$H240/10,RateRatios_airpollution!$E240)*10))","v":2853.7801817879999},{"$f":"IF(AND(OR(Calculations!$E$2=\"Orkney Health Board\",Calculations!$E$2=\"Orkney Islands Local Authority\"),$F240=1),0,IF(AND(OR(Calculations!$E$2=\"Shetland Health Board\",Calculations!$E$2=\"Western Isles Health Board\",Calculations!$E$2=\"Shetland Islands Local Authority\",Calculations!$E$2=\"Eilean Siar Local Authority\"),OR($F240=1,$F240=5)),0,hosp_count(VALUE(LEFT(Options!$B$14,2)),$C240,$E240,$F240,2016,$I240/10,1,$H240/10,$G240*$H240/10, RateRatios_airpollution!$F240, RateRatios_airpollution!$E240)*10))","v":5963.4258802349996},{"$f":"IF(AND(OR(Calculations!$E$2=\"Orkney Health Board\",Calculations!$E$2=\"Orkney Islands Local Authority\"),$F240=1),0,IF(AND(OR(Calculations!$E$2=\"Shetland Health Board\",Calculations!$E$2=\"Western Isles Health Board\",Calculations!$E$2=\"Shetland Islands Local Authority\",Calculations!$E$2=\"Eilean Siar Local Authority\"),OR($F240=1,$F240=5)),0,hosp_count(VALUE(LEFT(Options!$B$14,2)),$C240,$E240,$F240,2016,$I240/10+$J240/10,1,$H240/10,$G240*$H240/10, RateRatios_airpollution!$F240, RateRatios_airpollution!$E240)*10))","v":5963.4258802349996},{"$f":"IF(AND(OR(Calculations!$E$2=\"Orkney Health Board\",Calculations!$E$2=\"Orkney Islands Local Authority\"),$F240=1),0,IF(AND(OR(Calculations!$E$2=\"Shetland Health Board\",Calculations!$E$2=\"Western Isles Health Board\",Calculations!$E$2=\"Shetland Islands Local Authority\",Calculations!$E$2=\"Eilean Siar Local Authority\"),OR($F240=1,$F240=5)),0,prem_mort(VALUE(LEFT(Options!$B$14,2)),$C240,$E240,$F240,2016,$I240/10,1,$H240/10,$G240*$H240/10,RateRatios_airpollution!$E240)*10))","v":90.94315336199999},{"$f":"IF(AND(OR(Calculations!$E$2=\"Orkney Health Board\",Calculations!$E$2=\"Orkney Islands Local Authority\"),$F240=1),0,IF(AND(OR(Calculations!$E$2=\"Shetland Health Board\",Calculations!$E$2=\"Western Isles Health Board\",Calculations!$E$2=\"Shetland Islands Local Authority\",Calculations!$E$2=\"Eilean Siar Local Authority\"),OR($F240=1,$F240=5)),0,prem_mort(VALUE(LEFT(Options!$B$14,2)),$C240,$E240,$F240,2016,$I240/10+$J240/10,1,$H240/10,$G240*$H240/10,RateRatios_airpollution!$E240)*10))","v":90.942658906999995},90.94315336199999,90.922700927999998,2853.7956977840004,2853.153900505999,5963.4258802349996,5962.0520856779995,90.94315336199999,90.922700927999998,231.06063000076219,231.0086661957875,7250.6814141212953,7249.0507901775927,15151.365330000761,15147.874909621685,231.06063000076219,231.0086661957875,1617424.4100053352,1617060.6633705124,50754769.89884907,50743355.531243145,106059557.31000532,106035124.3673518,1617424.4100053352,1617060.6633705124,7000]
[null,"Male 50-54",51.998646000000001,79.988649999999993,"male",5,1,{"$f":"HLOOKUP(Calculations!$E$2,'Population 2016'!$C$3:$BC$249,'Population 2016'!BD241,FALSE)","v":40044},0,{"$f":"HLOOKUP(Calculations!$E$2,Pop2016_in_settlements!$C$3:$BC$249,Pop2016_in_settlements!$BD241,FALSE)","v":21356},{"$f":"IF(AND(OR(Calculations!$E$2=\"Orkney Health Board\",Calculations!$E$2=\"Orkney Islands Local Authority\"),$F241=1),0,IF(AND(OR(Calculations!$E$2=\"Shetland Health Board\",Calculations!$E$2=\"Western Isles Health Board\",Calculations!$E$2=\"Shetland Islands Local Authority\",Calculations!$E$2=\"Eilean Siar Local Authority\"),OR($F241=1,$F241=5)),0,new_ci(VALUE(LEFT(Options!$B$14,2)),$C241,$E241,$F241,2016,$I241/10,1,$H241/10,$G241*$H241/10,RateRatios_accidents!$B$5)*10))","v":134.487241415},{"$f":"IF(AND(OR(Calculations!$E$2=\"Orkney Health Board\",Calculations!$E$2=\"Orkney Islands Local Authority\"),$F241=1),0,IF(AND(OR(Calculations!$E$2=\"Shetland Health Board\",Calculations!$E$2=\"Western Isles Health Board\",Calculations!$E$2=\"Shetland Islands Local Authority\",Calculations!$E$2=\"Eilean Siar Local Authority\"),OR($F241=1,$F241=5)),0,new_ci(VALUE(LEFT(Options!$B$14,2)),$C241,$E241,$F241,2016,$I241/10+$J241/10,1,$H241/10,$G241*$H241/10,RateRatios_accidents!$B$5)*10))","v":134.45859874799999},{"$f":"IF(AND(OR(Calculations!$E$2=\"Orkney Health Board\",Calculations!$E$2=\"Orkney Islands Local Authority\"),$F241=1),0,IF(AND(OR(Calculations!$E$2=\"Shetland Health Board\",Calculations!$E$2=\"Western Isles Health Board\",Calculations!$E$2=\"Shetland Islands Local Authority\",Calculations!$E$2=\"Eilean Siar Local Authority\"),OR($F241=1,$F241=5)),0,new_yllv2(VALUE(LEFT(Options!$B$14,2)),$C241,$D241,$E241,$F241,2016,$I241/10,1,$H241/10,$G241*$H241/10,RateRatios_accidents!$B$5)*10))","v":3629.8111837400002},{"$f":"IF(AND(OR(Calculations!$E$2=\"Orkney Health Board\",Calculations!$E$2=\"Orkney Islands Local Authority\"),$F241=1),0,IF(AND(OR(Calculations!$E$2=\"Shetland Health Board\",Calculations!$E$2=\"Western Isles Health Board\",Calculations!$E$2=\"Shetland Islands Local Authority\",Calculations!$E$2=\"Eilean Siar Local Authority\"),OR($F241=1,$F241=5)),0,new_yllv2(VALUE(LEFT(Options!$B$14,2)),$C241,$D241,$E241,$F241,2016,$I241/10+$J241/10,1,$H241/10,$G241*$H241/10,RateRatios_accidents!$B$5)*10))","v":3629.0381180429999},{"$f":"IF(AND(OR(Calculations!$E$2=\"Orkney Health Board\",Calculations!$E$2=\"Orkney Islands Local Authority\"),$F241=1),0,IF(AND(OR(Calculations!$E$2=\"Shetland Health Board\",Calculations!$E$2=\"Western Isles Health Board\",Calculations!$E$2=\"Shetland Islands Local Authority\",Calculations!$E$2=\"Eilean Siar Local Authority\"),OR($F241=1,$F241=5)),0,hosp_count(VALUE(LEFT(Options!$B$14,2)),$C241,$E241,$F241,2016,$I241/10,1,$H241/10,$G241*$H241/10, RateRatios_accidents!$B$4, RateRatios_accidents!$B$5)*10))","v":7235.3075532059993},{"$f":"IF(AND(OR(Calculations!$E$2=\"Orkney Health Board\",Calculations!$E$2=\"Orkney Islands Local Authority\"),$F241=1),0,IF(AND(OR(Calculations!$E$2=\"Shetland Health Board\",Calculations!$E$2=\"Western Isles Health Board\",Calculations!$E$2=\"Shetland Islands Local Authority\",Calculations!$E$2=\"Eilean Siar Local Authority\"),OR($F241=1,$F241=5)),0,hosp_count(VALUE(LEFT(Options!$B$14,2)),$C241,$E241,$F241,2016,$I241/10+$J241/10,1,$H241/10,$G241*$H241/10, RateRatios_accidents!$B$4, RateRatios_accidents!$B$5)*10))","v":7233.7640782039998},{"$f":"IF(AND(OR(Calculations!$E$2=\"Orkney Health Board\",Calculations!$E$2=\"Orkney Islands Local Authority\"),$F241=1),0,IF(AND(OR(Calculations!$E$2=\"Shetland Health Board\",Calculations!$E$2=\"Western Isles Health Board\",Calculations!$E$2=\"Shetland Islands Local Authority\",Calculations!$E$2=\"Eilean Siar Local Authority\"),OR($F241=1,$F241=5)),0,prem_mort(VALUE(LEFT(Options!$B$14,2)),$C241,$E241,$F241,2016,$I241/10,1,$H241/10,$G241*$H241/10,RateRatios_accidents!$B$5)*10))","v":134.487241415},{"$f":"IF(AND(OR(Calculations!$E$2=\"Orkney Health Board\",Calculations!$E$2=\"Orkney Islands Local Authority\"),$F241=1),0,IF(AND(OR(Calculations!$E$2=\"Shetland Health Board\",Calculations!$E$2=\"Western Isles Health Board\",Calculations!$E$2=\"Shetland Islands Local Authority\",Calculations!$E$2=\"Eilean Siar Local Authority\"),OR($F241=1,$F241=5)),0,prem_mort(VALUE(LEFT(Options!$B$14,2)),$C241,$E241,$F241,2016,$I241/10+$J241/10,1,$H241/10,$G241*$H241/10,RateRatios_accidents!$B$5)*10))","v":134.45859874799999},null,{"$f":"IF(AND(OR(Calculations!$E$2=\"Orkney Health Board\",Calculations!$E$2=\"Orkney Islands Local Authority\"),$F241=1),0,IF(AND(OR(Calculations!$E$2=\"Shetland Health Board\",Calculations!$E$2=\"Western Isles Health Board\",Calculations!$E$2=\"Shetland Islands Local Authority\",Calculations!$E$2=\"Eilean Siar Local Authority\"),OR($F241=1,$F241=5)),0,new_ci(VALUE(LEFT(Options!$B$14,2)),$C241,$E241,$F241,2016,$I241/10,1,$H241/10,$G241*$H241/10,RateRatios_airpollution!$C241)*10))","v":134.487241415},{"$f":"IF(AND(OR(Calculations!$E$2=\"Orkney Health Board\",Calculations!$E$2=\"Orkney Islands Local Authority\"),$F241=1),0,IF(AND(OR(Calculations!$E$2=\"Shetland Health Board\",Calculations!$E$2=\"Western Isles Health Board\",Calculations!$E$2=\"Shetland Islands Local Authority\",Calculations!$E$2=\"Eilean Siar Local Authority\"),OR($F241=1,$F241=5)),0,new_ci(VALUE(LEFT(Options!$B$14,2)),$C241,$E241,$F241,2016,$I241/10+$J241/10,1,$H241/10,$G241*$H241/10,RateRatios_airpollution!$C241)*10))","v":134.485601274},{"$f":"IF(AND(OR(Calculations!$E$2=\"Orkney Health Board\",Calculations!$E$2=\"Orkney Islands Local Authority\"),$F241=1),0,IF(AND(OR(Calculations!$E$2=\"Shetland Health Board\",Calculations!$E$2=\"Western Isles Health Board\",Calculations!$E$2=\"Shetland Islands Local Authority\",Calculations!$E$2=\"Eilean Siar Local Authority\"),OR($F241=1,$F241=5)),0,new_yllv2(VALUE(LEFT(Options!$B$14,2)),$C241,$D241,$E241,$F241,2016,$I241/10,1,$H241/10,$G241*$H241/10,RateRatios_airpollution!$C241)*10))","v":3629.8111837400002},{"$f":"IF(AND(OR(Calculations!$E$2=\"Orkney Health Board\",Calculations!$E$2=\"Orkney Islands Local Authority\"),$F241=1),0,IF(AND(OR(Calculations!$E$2=\"Shetland Health Board\",Calculations!$E$2=\"Western Isles Health Board\",Calculations!$E$2=\"Shetland Islands Local Authority\",Calculations!$E$2=\"Eilean Siar Local Authority\"),OR($F241=1,$F241=5)),0,new_yllv2(VALUE(LEFT(Options!$B$14,2)),$C241,$D241,$E241,$F241,2016,$I241/10+$J241/10,1,$H241/10,$G241*$H241/10,RateRatios_airpollution!$C241)*10))","v":3629.7669163279998},{"$f":"IF(AND(OR(Calculations!$E$2=\"Orkney Health Board\",Calculations!$E$2=\"Orkney Islands Local Authority\"),$F241=1),0,IF(AND(OR(Calculations!$E$2=\"Shetland Health Board\",Calculations!$E$2=\"Western Isles Health Board\",Calculations!$E$2=\"Shetland Islands Local Authority\",Calculations!$E$2=\"Eilean Siar Local Authority\"),OR($F241=1,$F241=5)),0,hosp_count(VALUE(LEFT(Options!$B$14,2)),$C241,$E241,$F241,2016,$I241/10,1,$H241/10,$G241*$H241/10, RateRatios_airpollution!$D241, RateRatios_airpollution!$C241)*10))","v":7235.3075532059993},{"$f":"IF(AND(OR(Calculations!$E$2=\"Orkney Health Board\",Calculations!$E$2=\"Orkney Islands Local Authority\"),$F241=1),0,IF(AND(OR(Calculations!$E$2=\"Shetland Health Board\",Calculations!$E$2=\"Western Isles Health Board\",Calculations!$E$2=\"Shetland Islands Local Authority\",Calculations!$E$2=\"Eilean Siar Local Authority\"),OR($F241=1,$F241=5)),0,hosp_count(VALUE(LEFT(Options!$B$14,2)),$C241,$E241,$F241,2016,$I241/10+$J241/10,1,$H241/10,$G241*$H241/10, RateRatios_airpollution!$D241, RateRatios_airpollution!$C241)*10))","v":7235.1410490160006},{"$f":"IF(AND(OR(Calculations!$E$2=\"Orkney Health Board\",Calculations!$E$2=\"Orkney Islands Local Authority\"),$F241=1),0,IF(AND(OR(Calculations!$E$2=\"Shetland Health Board\",Calculations!$E$2=\"Western Isles Health Board\",Calculations!$E$2=\"Shetland Islands Local Authority\",Calculations!$E$2=\"Eilean Siar Local Authority\"),OR($F241=1,$F241=5)),0,prem_mort(VALUE(LEFT(Options!$B$14,2)),$C241,$E241,$F241,2016,$I241/10,1,$H241/10,$G241*$H241/10,RateRatios_airpollution!$C241)*10))","v":134.487241415},{"$f":"IF(AND(OR(Calculations!$E$2=\"Orkney Health Board\",Calculations!$E$2=\"Orkney Islands Local Authority\"),$F241=1),0,IF(AND(OR(Calculations!$E$2=\"Shetland Health Board\",Calculations!$E$2=\"Western Isles Health Board\",Calculations!$E$2=\"Shetland Islands Local Authority\",Calculations!$E$2=\"Eilean Siar Local Authority\"),OR($F241=1,$F241=5)),0,prem_mort(VALUE(LEFT(Options!$B$14,2)),$C241,$E241,$F241,2016,$I241/10+$J241/10,1,$H241/10,$G241*$H241/10,RateRatios_airpollution!$C241)*10))","v":134.485601274},null,{"$f":"IF(AND(OR(Calculations!$E$2=\"Orkney Health Board\",Calculations!$E$2=\"Orkney Islands Local Authority\"),$F241=1),0,IF(AND(OR(Calculations!$E$2=\"Shetland Health Board\",Calculations!$E$2=\"Western Isles Health Board\",Calculations!$E$2=\"Shetland Islands Local Authority\",Calculations!$E$2=\"Eilean Siar Local Authority\"),OR($F241=1,$F241=5)),0,new_ci(VALUE(LEFT(Options!$B$14,2)),$C241,$E241,$F241,2016,$I241/10,1,$H241/10,$G241*$H241/10,RateRatios_airpollution!$E241)*10))","v":134.487241415},{"$f":"IF(AND(OR(Calculations!$E$2=\"Orkney Health Board\",Calculations!$E$2=\"Orkney Islands Local Authority\"),$F241=1),0,IF(AND(OR(Calculations!$E$2=\"Shetland Health Board\",Calculations!$E$2=\"Western Isles Health Board\",Calculations!$E$2=\"Shetland Islands Local Authority\",Calculations!$E$2=\"Eilean Siar Local Authority\"),OR($F241=1,$F241=5)),0,new_ci(VALUE(LEFT(Options!$B$14,2)),$C241,$E241,$F241,2016,$I241/10+$J241/10,1,$H241/10,$G241*$H241/10,RateRatios_airpollution!$E241)*10))","v":134.48650036200002},{"$f":"IF(AND(OR(Calculations!$E$2=\"Orkney Health Board\",Calculations!$E$2=\"Orkney Islands Local Authority\"),$F241=1),0,IF(AND(OR(Calculations!$E$2=\"Shetland Health Board\",Calculations!$E$2=\"Western Isles Health Board\",Calculations!$E$2=\"Shetland Islands Local Authority\",Calculations!$E$2=\"Eilean Siar Local Authority\"),OR($F241=1,$F241=5)),0,new_yllv2(VALUE(LEFT(Options!$B$14,2)),$C241,$D241,$E241,$F241,2016,$I241/10,1,$H241/10,$G241*$H241/10,RateRatios_airpollution!$E241)*10))","v":3629.8111837400002},{"$f":"IF(AND(OR(Calculations!$E$2=\"Orkney Health Board\",Calculations!$E$2=\"Orkney Islands Local Authority\"),$F241=1),0,IF(AND(OR(Calculations!$E$2=\"Shetland Health Board\",Calculations!$E$2=\"Western Isles Health Board\",Calculations!$E$2=\"Shetland Islands Local Authority\",Calculations!$E$2=\"Eilean Siar Local Authority\"),OR($F241=1,$F241=5)),0,new_yllv2(VALUE(LEFT(Options!$B$14,2)),$C241,$D241,$E241,$F241,2016,$I241/10+$J241/10,1,$H241/10,$G241*$H241/10,RateRatios_airpollution!$E241)*10))","v":3629.7911827159996},{"$f":"IF(AND(OR(Calculations!$E$2=\"Orkney Health Board\",Calculations!$E$2=\"Orkney Islands Local Authority\"),$F241=1),0,IF(AND(OR(Calculations!$E$2=\"Shetland Health Board\",Calculations!$E$2=\"Western Isles Health Board\",Calculations!$E$2=\"Shetland Islands Local Authority\",Calculations!$E$2=\"Eilean Siar Local Authority\"),OR($F241=1,$F241=5)),0,hosp_count(VALUE(LEFT(Options!$B$14,2)),$C241,$E241,$F241,2016,$I241/10,1,$H241/10,$G241*$H241/10, RateRatios_airpollution!$F241, RateRatios_airpollution!$E241)*10))","v":7235.3075532059993},{"$f":"IF(AND(OR(Calculations!$E$2=\"Orkney Health Board\",Calculations!$E$2=\"Orkney Islands Local Authority\"),$F241=1),0,IF(AND(OR(Calculations!$E$2=\"Shetland Health Board\",Calculations!$E$2=\"Western Isles Health Board\",Calculations!$E$2=\"Shetland Islands Local Authority\",Calculations!$E$2=\"Eilean Siar Local Authority\"),OR($F241=1,$F241=5)),0,hosp_count(VALUE(LEFT(Options!$B$14,2)),$C241,$E241,$F241,2016,$I241/10+$J241/10,1,$H241/10,$G241*$H241/10, RateRatios_airpollution!$F241, RateRatios_airpollution!$E241)*10))","v":7235.3075532059993},{"$f":"IF(AND(OR(Calculations!$E$2=\"Orkney Health Board\",Calculations!$E$2=\"Orkney Islands Local Authority\"),$F241=1),0,IF(AND(OR(Calculations!$E$2=\"Shetland Health Board\",Calculations!$E$2=\"Western Isles Health Board\",Calculations!$E$2=\"Shetland Islands Local Authority\",Calculations!$E$2=\"Eilean Siar Local Authority\"),OR($F241=1,$F241=5)),0,prem_mort(VALUE(LEFT(Options!$B$14,2)),$C241,$E241,$F241,2016,$I241/10,1,$H241/10,$G241*$H241/10,RateRatios_airpollution!$E241)*10))","v":134.487241415},{"$f":"IF(AND(OR(Calculations!$E$2=\"Orkney Health Board\",Calculations!$E$2=\"Orkney Islands Local Authority\"),$F241=1),0,IF(AND(OR(Calculations!$E$2=\"Shetland Health Board\",Calculations!$E$2=\"Western Isles Health Board\",Calculations!$E$2=\"Shetland Islands Local Authority\",Calculations!$E$2=\"Eilean Siar Local Authority\"),OR($F241=1,$F241=5)),0,prem_mort(VALUE(LEFT(Options!$B$14,2)),$C241,$E241,$F241,2016,$I241/10+$J241/10,1,$H241/10,$G241*$H241/10,RateRatios_airpollution!$E241)*10))","v":134.48650036200002},134.487241415,134.45621755400001,3629.8111837400002,3628.973849606999,7235.3075532059993,7233.5975740140011,134.487241415,134.45621755400001,335.84867000049945,335.77119556987316,9064.5569467086207,9062.4659115148315,18068.393649999998,18064.123399295779,335.84867000049945,335.77119556987316,2350940.6900034961,2350398.3689891123,63451898.626960345,63437261.38060382,126478755.54999998,126448863.79507045,2350940.6900034961,2350398.3689891123,7000]
[null,"Male 55-59",56.950867000000002,80.660870000000003,"male",5,1,{"$f":"HLOOKUP(Calculations!$E$2,'Population 2016'!$C$3:$BC$249,'Population 2016'!BD242,FALSE)","v":36422},0,{"$f":"HLOOKUP(Calculations!$E$2,Pop2016_in_settlements!$C$3:$BC$249,Pop2016_in_settlements!$BD242,FALSE)","v":19714},{"$f":"IF(AND(OR(Calculations!$E$2=\"Orkney Health Board\",Calculations!$E$2=\"Orkney Islands Local Authority\"),$F242=1),0,IF(AND(OR(Calculations!$E$2=\"Shetland Health Board\",Calculations!$E$2=\"Western Isles Health Board\",Calculations!$E$2=\"Shetland Islands Local Authority\",Calculations!$E$2=\"Eilean Siar Local Authority\"),OR($F242=1,$F242=5)),0,new_ci(VALUE(LEFT(Options!$B$14,2)),$C242,$E242,$F242,2016,$I242/10,1,$H242/10,$G242*$H242/10,RateRatios_accidents!$B$5)*10))","v":177.644214809},{"$f":"IF(AND(OR(Calculations!$E$2=\"Orkney Health Board\",Calculations!$E$2=\"Orkney Islands Local Authority\"),$F242=1),0,IF(AND(OR(Calculations!$E$2=\"Shetland Health Board\",Calculations!$E$2=\"Western Isles Health Board\",Calculations!$E$2=\"Shetland Islands Local Authority\",Calculations!$E$2=\"Eilean Siar Local Authority\"),OR($F242=1,$F242=5)),0,new_ci(VALUE(LEFT(Options!$B$14,2)),$C242,$E242,$F242,2016,$I242/10+$J242/10,1,$H242/10,$G242*$H242/10,RateRatios_accidents!$B$5)*10))","v":177.605847423},{"$f":"IF(AND(OR(Calculations!$E$2=\"Orkney Health Board\",Calculations!$E$2=\"Orkney Islands Local Authority\"),$F242=1),0,IF(AND(OR(Calculations!$E$2=\"Shetland Health Board\",Calculations!$E$2=\"Western Isles Health Board\",Calculations!$E$2=\"Shetland Islands Local Authority\",Calculations!$E$2=\"Eilean Siar Local Authority\"),OR($F242=1,$F242=5)),0,new_yllv2(VALUE(LEFT(Options!$B$14,2)),$C242,$D242,$E242,$F242,2016,$I242/10,1,$H242/10,$G242*$H242/10,RateRatios_accidents!$B$5)*10))","v":4034.3006512450002},{"$f":"IF(AND(OR(Calculations!$E$2=\"Orkney Health Board\",Calculations!$E$2=\"Orkney Islands Local Authority\"),$F242=1),0,IF(AND(OR(Calculations!$E$2=\"Shetland Health Board\",Calculations!$E$2=\"Western Isles Health Board\",Calculations!$E$2=\"Shetland Islands Local Authority\",Calculations!$E$2=\"Eilean Siar Local Authority\"),OR($F242=1,$F242=5)),0,new_yllv2(VALUE(LEFT(Options!$B$14,2)),$C242,$D242,$E242,$F242,2016,$I242/10+$J242/10,1,$H242/10,$G242*$H242/10,RateRatios_accidents!$B$5)*10))","v":4033.4293277939996},{"$f":"IF(AND(OR(Calculations!$E$2=\"Orkney Health Board\",Calculations!$E$2=\"Orkney Islands Local Authority\"),$F242=1),0,IF(AND(OR(Calculations!$E$2=\"Shetland Health Board\",Calculations!$E$2=\"Western Isles Health Board\",Calculations!$E$2=\"Shetland Islands Local Authority\",Calculations!$E$2=\"Eilean Siar Local Authority\"),OR($F242=1,$F242=5)),0,hosp_count(VALUE(LEFT(Options!$B$14,2)),$C242,$E242,$F242,2016,$I242/10,1,$H242/10,$G242*$H242/10, RateRatios_accidents!$B$4, RateRatios_accidents!$B$5)*10))","v":7845.5541145779998},{"$f":"IF(AND(OR(Calculations!$E$2=\"Orkney Health Board\",Calculations!$E$2=\"Orkney Islands Local Authority\"),$F242=1),0,IF(AND(OR(Calculations!$E$2=\"Shetland Health Board\",Calculations!$E$2=\"Western Isles Health Board\",Calculations!$E$2=\"Shetland Islands Local Authority\",Calculations!$E$2=\"Eilean Siar Local Authority\"),OR($F242=1,$F242=5)),0,hosp_count(VALUE(LEFT(Options!$B$14,2)),$C242,$E242,$F242,2016,$I242/10+$J242/10,1,$H242/10,$G242*$H242/10, RateRatios_accidents!$B$4, RateRatios_accidents!$B$5)*10))","v":7843.8555011389999},{"$f":"IF(AND(OR(Calculations!$E$2=\"Orkney Health Board\",Calculations!$E$2=\"Orkney Islands Local Authority\"),$F242=1),0,IF(AND(OR(Calculations!$E$2=\"Shetland Health Board\",Calculations!$E$2=\"Western Isles Health Board\",Calculations!$E$2=\"Shetland Islands Local Authority\",Calculations!$E$2=\"Eilean Siar Local Authority\"),OR($F242=1,$F242=5)),0,prem_mort(VALUE(LEFT(Options!$B$14,2)),$C242,$E242,$F242,2016,$I242/10,1,$H242/10,$G242*$H242/10,RateRatios_accidents!$B$5)*10))","v":177.644214809},{"$f":"IF(AND(OR(Calculations!$E$2=\"Orkney Health Board\",Calculations!$E$2=\"Orkney Islands Local Authority\"),$F242=1),0,IF(AND(OR(Calculations!$E$2=\"Shetland Health Board\",Calculations!$E$2=\"Western Isles Health Board\",Calculations!$E$2=\"Shetland Islands Local Authority\",Calculations!$E$2=\"Eilean Siar Local Authority\"),OR($F242=1,$F242=5)),0,prem_mort(VALUE(LEFT(Options!$B$14,2)),$C242,$E242,$F242,2016,$I242/10+$J242/10,1,$H242/10,$G242*$H242/10,RateRatios_accidents!$B$5)*10))","v":177.605847423},null,{"$f":"IF(AND(OR(Calculations!$E$2=\"Orkney Health Board\",Calculations!$E$2=\"Orkney Islands Local Authority\"),$F242=1),0,IF(AND(OR(Calculations!$E$2=\"Shetland Health Board\",Calculations!$E$2=\"Western Isles Health Board\",Calculations!$E$2=\"Shetland Islands Local Authority\",Calculations!$E$2=\"Eilean Siar Local Authority\"),OR($F242=1,$F242=5)),0,new_ci(VALUE(LEFT(Options!$B$14,2)),$C242,$E242,$F242,2016,$I242/10,1,$H242/10,$G242*$H242/10,RateRatios_airpollution!$C242)*10))","v":177.644214809},{"$f":"IF(AND(OR(Calculations!$E$2=\"Orkney Health Board\",Calculations!$E$2=\"Orkney Islands Local Authority\"),$F242=1),0,IF(AND(OR(Calculations!$E$2=\"Shetland Health Board\",Calculations!$E$2=\"Western Isles Health Board\",Calculations!$E$2=\"Shetland Islands Local Authority\",Calculations!$E$2=\"Eilean Siar Local Authority\"),OR($F242=1,$F242=5)),0,new_ci(VALUE(LEFT(Options!$B$14,2)),$C242,$E242,$F242,2016,$I242/10+$J242/10,1,$H242/10,$G242*$H242/10,RateRatios_airpollution!$C242)*10))","v":177.64204035500001},{"$f":"IF(AND(OR(Calculations!$E$2=\"Orkney Health Board\",Calculations!$E$2=\"Orkney Islands Local Authority\"),$F242=1),0,IF(AND(OR(Calculations!$E$2=\"Shetland Health Board\",Calculations!$E$2=\"Western Isles Health Board\",Calculations!$E$2=\"Shetland Islands Local Authority\",Calculations!$E$2=\"Eilean Siar Local Authority\"),OR($F242=1,$F242=5)),0,new_yllv2(VALUE(LEFT(Options!$B$14,2)),$C242,$D242,$E242,$F242,2016,$I242/10,1,$H242/10,$G242*$H242/10,RateRatios_airpollution!$C242)*10))","v":4034.3006512450002},{"$f":"IF(AND(OR(Calculations!$E$2=\"Orkney Health Board\",Calculations!$E$2=\"Orkney Islands Local Authority\"),$F242=1),0,IF(AND(OR(Calculations!$E$2=\"Shetland Health Board\",Calculations!$E$2=\"Western Isles Health Board\",Calculations!$E$2=\"Shetland Islands Local Authority\",Calculations!$E$2=\"Eilean Siar Local Authority\"),OR($F242=1,$F242=5)),0,new_yllv2(VALUE(LEFT(Options!$B$14,2)),$C242,$D242,$E242,$F242,2016,$I242/10+$J242/10,1,$H242/10,$G242*$H242/10,RateRatios_airpollution!$C242)*10))","v":4034.2512693880003},{"$f":"IF(AND(OR(Calculations!$E$2=\"Orkney Health Board\",Calculations!$E$2=\"Orkney Islands Local Authority\"),$F242=1),0,IF(AND(OR(Calculations!$E$2=\"Shetland Health Board\",Calculations!$E$2=\"Western Isles Health Board\",Calculations!$E$2=\"Shetland Islands Local Authority\",Calculations!$E$2=\"Eilean Siar Local Authority\"),OR($F242=1,$F242=5)),0,hosp_count(VALUE(LEFT(Options!$B$14,2)),$C242,$E242,$F242,2016,$I242/10,1,$H242/10,$G242*$H242/10, RateRatios_airpollution!$D242, RateRatios_airpollution!$C242)*10))","v":7845.5541145779998},{"$f":"IF(AND(OR(Calculations!$E$2=\"Orkney Health Board\",Calculations!$E$2=\"Orkney Islands Local Authority\"),$F242=1),0,IF(AND(OR(Calculations!$E$2=\"Shetland Health Board\",Calculations!$E$2=\"Western Isles Health Board\",Calculations!$E$2=\"Shetland Islands Local Authority\",Calculations!$E$2=\"Eilean Siar Local Authority\"),OR($F242=1,$F242=5)),0,hosp_count(VALUE(LEFT(Options!$B$14,2)),$C242,$E242,$F242,2016,$I242/10+$J242/10,1,$H242/10,$G242*$H242/10, RateRatios_airpollution!$D242, RateRatios_airpollution!$C242)*10))","v":7845.3727359209997},{"$f":"IF(AND(OR(Calculations!$E$2=\"Orkney Health Board\",Calculations!$E$2=\"Orkney Islands Local Authority\"),$F242=1),0,IF(AND(OR(Calculations!$E$2=\"Shetland Health Board\",Calculations!$E$2=\"Western Isles Health Board\",Calculations!$E$2=\"Shetland Islands Local Authority\",Calculations!$E$2=\"Eilean Siar Local Authority\"),OR($F242=1,$F242=5)),0,prem_mort(VALUE(LEFT(Options!$B$14,2)),$C242,$E242,$F242,2016,$I242/10,1,$H242/10,$G242*$H242/10,RateRatios_airpollution!$C242)*10))","v":177.644214809},{"$f":"IF(AND(OR(Calculations!$E$2=\"Orkney Health Board\",Calculations!$E$2=\"Orkney Islands Local Authority\"),$F242=1),0,IF(AND(OR(Calculations!$E$2=\"Shetland Health Board\",Calculations!$E$2=\"Western Isles Health Board\",Calculations!$E$2=\"Shetland Islands Local Authority\",Calculations!$E$2=\"Eilean Siar Local Authority\"),OR($F242=1,$F242=5)),0,prem_mort(VALUE(LEFT(Options!$B$14,2)),$C242,$E242,$F242,2016,$I242/10+$J242/10,1,$H242/10,$G242*$H242/10,RateRatios_airpollution!$C242)*10))","v":177.64204035500001},null,{"$f":"IF(AND(OR(Calculations!$E$2=\"Orkney Health Board\",Calculations!$E$2=\"Orkney Islands Local Authority\"),$F242=1),0,IF(AND(OR(Calculations!$E$2=\"Shetland Health Board\",Calculations!$E$2=\"Western Isles Health Board\",Calculations!$E$2=\"Shetland Islands Local Authority\",Calculations!$E$2=\"Eilean Siar Local Authority\"),OR($F242=1,$F242=5)),0,new_ci(VALUE(LEFT(Options!$B$14,2)),$C242,$E242,$F242,2016,$I242/10,1,$H242/10,$G242*$H242/10,RateRatios_airpollution!$E242)*10))","v":177.644214809},{"$f":"IF(AND(OR(Calculations!$E$2=\"Orkney Health Board\",Calculations!$E$2=\"Orkney Islands Local Authority\"),$F242=1),0,IF(AND(OR(Calculations!$E$2=\"Shetland Health Board\",Calculations!$E$2=\"Western Isles Health Board\",Calculations!$E$2=\"Shetland Islands Local Authority\",Calculations!$E$2=\"Eilean Siar Local Authority\"),OR($F242=1,$F242=5)),0,new_ci(VALUE(LEFT(Options!$B$14,2)),$C242,$E242,$F242,2016,$I242/10+$J242/10,1,$H242/10,$G242*$H242/10,RateRatios_airpollution!$E242)*10))","v":177.64322713799999},{"$f":"IF(AND(OR(Calculations!$E$2=\"Orkney Health Board\",Calculations!$E$2=\"Orkney Islands Local Authority\"),$F242=1),0,IF(AND(OR(Calculations!$E$2=\"Shetland Health Board\",Calculations!$E$2=\"Western Isles Health Board\",Calculations!$E$2=\"Shetland Islands Local Authority\",Calculations!$E$2=\"Eilean Siar Local Authority\"),OR($F242=1,$F242=5)),0,new_yllv2(VALUE(LEFT(Options!$B$14,2)),$C242,$D242,$E242,$F242,2016,$I242/10,1,$H242/10,$G242*$H242/10,RateRatios_airpollution!$E242)*10))","v":4034.3006512450002},{"$f":"IF(AND(OR(Calculations!$E$2=\"Orkney Health Board\",Calculations!$E$2=\"Orkney Islands Local Authority\"),$F242=1),0,IF(AND(OR(Calculations!$E$2=\"Shetland Health Board\",Calculations!$E$2=\"Western Isles Health Board\",Calculations!$E$2=\"Shetland Islands Local Authority\",Calculations!$E$2=\"Eilean Siar Local Authority\"),OR($F242=1,$F242=5)),0,new_yllv2(VALUE(LEFT(Options!$B$14,2)),$C242,$D242,$E242,$F242,2016,$I242/10+$J242/10,1,$H242/10,$G242*$H242/10,RateRatios_airpollution!$E242)*10))","v":4034.2782212339998},{"$f":"IF(AND(OR(Calculations!$E$2=\"Orkney Health Board\",Calculations!$E$2=\"Orkney Islands Local Authority\"),$F242=1),0,IF(AND(OR(Calculations!$E$2=\"Shetland Health Board\",Calculations!$E$2=\"Western Isles Health Board\",Calculations!$E$2=\"Shetland Islands Local Authority\",Calculations!$E$2=\"Eilean Siar Local Authority\"),OR($F242=1,$F242=5)),0,hosp_count(VALUE(LEFT(Options!$B$14,2)),$C242,$E242,$F242,2016,$I242/10,1,$H242/10,$G242*$H242/10, RateRatios_airpollution!$F242, RateRatios_airpollution!$E242)*10))","v":7845.5541145779998},{"$f":"IF(AND(OR(Calculations!$E$2=\"Orkney Health Board\",Calculations!$E$2=\"Orkney Islands Local Authority\"),$F242=1),0,IF(AND(OR(Calculations!$E$2=\"Shetland Health Board\",Calculations!$E$2=\"Western Isles Health Board\",Calculations!$E$2=\"Shetland Islands Local Authority\",Calculations!$E$2=\"Eilean Siar Local Authority\"),OR($F242=1,$F242=5)),0,hosp_count(VALUE(LEFT(Options!$B$14,2)),$C242,$E242,$F242,2016,$I242/10+$J242/10,1,$H242/10,$G242*$H242/10, RateRatios_airpollution!$F242, RateRatios_airpollution!$E242)*10))","v":7845.5541145779998},{"$f":"IF(AND(OR(Calculations!$E$2=\"Orkney Health Board\",Calculations!$E$2=\"Orkney Islands Local Authority\"),$F242=1),0,IF(AND(OR(Calculations!$E$2=\"Shetland Health Board\",Calculations!$E$2=\"Western Isles Health Board\",Calculations!$E$2=\"Shetland Islands Local Authority\",Calculations!$E$2=\"Eilean Siar Local Authority\"),OR($F242=1,$F242=5)),0,prem_mort(VALUE(LEFT(Options!$B$14,2)),$C242,$E242,$F242,2016,$I242/10,1,$H242/10,$G242*$H242/10,RateRatios_airpollution!$E242)*10))","v":177.644214809},{"$f":"IF(AND(OR(Calculations!$E$2=\"Orkney Health Board\",Calculations!$E$2=\"Orkney Islands Local Authority\"),$F242=1),0,IF(AND(OR(Calculations!$E$2=\"Shetland Health Board\",Calculations!$E$2=\"Western Isles Health Board\",Calculations!$E$2=\"Shetland Islands Local Authority\",Calculations!$E$2=\"Eilean Siar Local Authority\"),OR($F242=1,$F242=5)),0,prem_mort(VALUE(LEFT(Options!$B$14,2)),$C242,$E242,$F242,2016,$I242/10+$J242/10,1,$H242/10,$G242*$H242/10,RateRatios_airpollution!$E242)*10))","v":177.64322713799999},177.644214809,177.60268529799998,4034.3006512450002,4033.3575159259995,7845.5541145779998,7843.6741224819998,177.644214809,177.60268529799998,487.73876999890177,487.6247468508044,11076.548929891276,11073.959463857007,21540.700990000551,21535.53929625501,487.73876999890177,487.6247468508044,3170302.0049928613,3169560.8545302288,71997568.044293299,71980736.515070543,140014556.43500358,139981005.42565757,3170302.0049928613,3169560.8545302288,6500]
[null,"Male 60-64",61.942988999999997,81.612989999999996,"male",5,1,{"$f":"HLOOKUP(Calculations!$E$2,'Population 2016'!$C$3:$BC$249,'Population 2016'!BD243,FALSE)","v":32001},0,{"$f":"HLOOKUP(Calculations!$E$2,Pop2016_in_settlements!$C$3:$BC$249,Pop2016_in_settlements!$BD243,FALSE)","v":17387},{"$f":"IF(AND(OR(Calculations!$E$2=\"Orkney Health Board\",Calculations!$E$2=\"Orkney Islands Local Authority\"),$F243=1),0,IF(AND(OR(Calculations!$E$2=\"Shetland Health Board\",Calculations!$E$2=\"Western Isles Health Board\",Calculations!$E$2=\"Shetland Islands Local Authority\",Calculations!$E$2=\"Eilean Siar Local Authority\"),OR($F243=1,$F243=5)),0,new_ci(VALUE(LEFT(Options!$B$14,2)),$C243,$E243,$F243,2016,$I243/10,1,$H243/10,$G243*$H243/10,RateRatios_accidents!$B$5)*10))","v":227.27319166499998},{"$f":"IF(AND(OR(Calculations!$E$2=\"Orkney Health Board\",Calculations!$E$2=\"Orkney Islands Local Authority\"),$F243=1),0,IF(AND(OR(Calculations!$E$2=\"Shetland Health Board\",Calculations!$E$2=\"Western Isles Health Board\",Calculations!$E$2=\"Shetland Islands Local Authority\",Calculations!$E$2=\"Eilean Siar Local Authority\"),OR($F243=1,$F243=5)),0,new_ci(VALUE(LEFT(Options!$B$14,2)),$C243,$E243,$F243,2016,$I243/10+$J243/10,1,$H243/10,$G243*$H243/10,RateRatios_accidents!$B$5)*10))","v":227.223972546},{"$f":"IF(AND(OR(Calculations!$E$2=\"Orkney Health Board\",Calculations!$E$2=\"Orkney Islands Local Authority\"),$F243=1),0,IF(AND(OR(Calculations!$E$2=\"Shetland Health Board\",Calculations!$E$2=\"Western Isles Health Board\",Calculations!$E$2=\"Shetland Islands Local Authority\",Calculations!$E$2=\"Eilean Siar Local Authority\"),OR($F243=1,$F243=5)),0,new_yllv2(VALUE(LEFT(Options!$B$14,2)),$C243,$D243,$E243,$F243,2016,$I243/10,1,$H243/10,$G243*$H243/10,RateRatios_accidents!$B$5)*10))","v":4243.1907156590005},{"$f":"IF(AND(OR(Calculations!$E$2=\"Orkney Health Board\",Calculations!$E$2=\"Orkney Islands Local Authority\"),$F243=1),0,IF(AND(OR(Calculations!$E$2=\"Shetland Health Board\",Calculations!$E$2=\"Western Isles Health Board\",Calculations!$E$2=\"Shetland Islands Local Authority\",Calculations!$E$2=\"Eilean Siar Local Authority\"),OR($F243=1,$F243=5)),0,new_yllv2(VALUE(LEFT(Options!$B$14,2)),$C243,$D243,$E243,$F243,2016,$I243/10+$J243/10,1,$H243/10,$G243*$H243/10,RateRatios_accidents!$B$5)*10))","v":4242.2717946580005},{"$f":"IF(AND(OR(Calculations!$E$2=\"Orkney Health Board\",Calculations!$E$2=\"Orkney Islands Local Authority\"),$F243=1),0,IF(AND(OR(Calculations!$E$2=\"Shetland Health Board\",Calculations!$E$2=\"Western Isles Health Board\",Calculations!$E$2=\"Shetland Islands Local Authority\",Calculations!$E$2=\"Eilean Siar Local Authority\"),OR($F243=1,$F243=5)),0,hosp_count(VALUE(LEFT(Options!$B$14,2)),$C243,$E243,$F243,2016,$I243/10,1,$H243/10,$G243*$H243/10, RateRatios_accidents!$B$4, RateRatios_accidents!$B$5)*10))","v":8229.6006133829997},{"$f":"IF(AND(OR(Calculations!$E$2=\"Orkney Health Board\",Calculations!$E$2=\"Orkney Islands Local Authority\"),$F243=1),0,IF(AND(OR(Calculations!$E$2=\"Shetland Health Board\",Calculations!$E$2=\"Western Isles Health Board\",Calculations!$E$2=\"Shetland Islands Local Authority\",Calculations!$E$2=\"Eilean Siar Local Authority\"),OR($F243=1,$F243=5)),0,hosp_count(VALUE(LEFT(Options!$B$14,2)),$C243,$E243,$F243,2016,$I243/10+$J243/10,1,$H243/10,$G243*$H243/10, RateRatios_accidents!$B$4, RateRatios_accidents!$B$5)*10))","v":8227.8120683310008},{"$f":"IF(AND(OR(Calculations!$E$2=\"Orkney Health Board\",Calculations!$E$2=\"Orkney Islands Local Authority\"),$F243=1),0,IF(AND(OR(Calculations!$E$2=\"Shetland Health Board\",Calculations!$E$2=\"Western Isles Health Board\",Calculations!$E$2=\"Shetland Islands Local Authority\",Calculations!$E$2=\"Eilean Siar Local Authority\"),OR($F243=1,$F243=5)),0,prem_mort(VALUE(LEFT(Options!$B$14,2)),$C243,$E243,$F243,2016,$I243/10,1,$H243/10,$G243*$H243/10,RateRatios_accidents!$B$5)*10))","v":227.27319166499998},{"$f":"IF(AND(OR(Calculations!$E$2=\"Orkney Health Board\",Calculations!$E$2=\"Orkney Islands Local Authority\"),$F243=1),0,IF(AND(OR(Calculations!$E$2=\"Shetland Health Board\",Calculations!$E$2=\"Western Isles Health Board\",Calculations!$E$2=\"Shetland Islands Local Authority\",Calculations!$E$2=\"Eilean Siar Local Authority\"),OR($F243=1,$F243=5)),0,prem_mort(VALUE(LEFT(Options!$B$14,2)),$C243,$E243,$F243,2016,$I243/10+$J243/10,1,$H243/10,$G243*$H243/10,RateRatios_accidents!$B$5)*10))","v":227.223972546},null,{"$f":"IF(AND(OR(Calculations!$E$2=\"Orkney Health Board\",Calculations!$E$2=\"Orkney Islands Local Authority\"),$F243=1),0,IF(AND(OR(Calculations!$E$2=\"Shetland Health Board\",Calculations!$E$2=\"Western Isles Health Board\",Calculations!$E$2=\"Shetland Islands Local Authority\",Calculations!$E$2=\"Eilean Siar Local Authority\"),OR($F243=1,$F243=5)),0,new_ci(VALUE(LEFT(Options!$B$14,2)),$C243,$E243,$F243,2016,$I243/10,1,$H243/10,$G243*$H243/10,RateRatios_airpollution!$C243)*10))","v":227.27319166499998},{"$f":"IF(AND(OR(Calculations!$E$2=\"Orkney Health Board\",Calculations!$E$2=\"Orkney Islands Local Authority\"),$F243=1),0,IF(AND(OR(Calculations!$E$2=\"Shetland Health Board\",Calculations!$E$2=\"Western Isles Health Board\",Calculations!$E$2=\"Shetland Islands Local Authority\",Calculations!$E$2=\"Eilean Siar Local Authority\"),OR($F243=1,$F243=5)),0,new_ci(VALUE(LEFT(Options!$B$14,2)),$C243,$E243,$F243,2016,$I243/10+$J243/10,1,$H243/10,$G243*$H243/10,RateRatios_airpollution!$C243)*10))","v":227.27043408699998},{"$f":"IF(AND(OR(Calculations!$E$2=\"Orkney Health Board\",Calculations!$E$2=\"Orkney Islands Local Authority\"),$F243=1),0,IF(AND(OR(Calculations!$E$2=\"Shetland Health Board\",Calculations!$E$2=\"Western Isles Health Board\",Calculations!$E$2=\"Shetland Islands Local Authority\",Calculations!$E$2=\"Eilean Siar Local Authority\"),OR($F243=1,$F243=5)),0,new_yllv2(VALUE(LEFT(Options!$B$14,2)),$C243,$D243,$E243,$F243,2016,$I243/10,1,$H243/10,$G243*$H243/10,RateRatios_airpollution!$C243)*10))","v":4243.1907156590005},{"$f":"IF(AND(OR(Calculations!$E$2=\"Orkney Health Board\",Calculations!$E$2=\"Orkney Islands Local Authority\"),$F243=1),0,IF(AND(OR(Calculations!$E$2=\"Shetland Health Board\",Calculations!$E$2=\"Western Isles Health Board\",Calculations!$E$2=\"Shetland Islands Local Authority\",Calculations!$E$2=\"Eilean Siar Local Authority\"),OR($F243=1,$F243=5)),0,new_yllv2(VALUE(LEFT(Options!$B$14,2)),$C243,$D243,$E243,$F243,2016,$I243/10+$J243/10,1,$H243/10,$G243*$H243/10,RateRatios_airpollution!$C243)*10))","v":4243.1392316749998},{"$f":"IF(AND(OR(Calculations!$E$2=\"Orkney Health Board\",Calculations!$E$2=\"Orkney Islands Local Authority\"),$F243=1),0,IF(AND(OR(Calculations!$E$2=\"Shetland Health Board\",Calculations!$E$2=\"Western Isles Health Board\",Calculations!$E$2=\"Shetland Islands Local Authority\",Calculations!$E$2=\"Eilean Siar Local Authority\"),OR($F243=1,$F243=5)),0,hosp_count(VALUE(LEFT(Options!$B$14,2)),$C243,$E243,$F243,2016,$I243/10,1,$H243/10,$G243*$H243/10, RateRatios_airpollution!$D243, RateRatios_airpollution!$C243)*10))","v":8229.6006133829997},{"$f":"IF(AND(OR(Calculations!$E$2=\"Orkney Health Board\",Calculations!$E$2=\"Orkney Islands Local Authority\"),$F243=1),0,IF(AND(OR(Calculations!$E$2=\"Shetland Health Board\",Calculations!$E$2=\"Western Isles Health Board\",Calculations!$E$2=\"Shetland Islands Local Authority\",Calculations!$E$2=\"Eilean Siar Local Authority\"),OR($F243=1,$F243=5)),0,hosp_count(VALUE(LEFT(Options!$B$14,2)),$C243,$E243,$F243,2016,$I243/10+$J243/10,1,$H243/10,$G243*$H243/10, RateRatios_airpollution!$D243, RateRatios_airpollution!$C243)*10))","v":8229.411858372001},{"$f":"IF(AND(OR(Calculations!$E$2=\"Orkney Health Board\",Calculations!$E$2=\"Orkney Islands Local Authority\"),$F243=1),0,IF(AND(OR(Calculations!$E$2=\"Shetland Health Board\",Calculations!$E$2=\"Western Isles Health Board\",Calculations!$E$2=\"Shetland Islands Local Authority\",Calculations!$E$2=\"Eilean Siar Local Authority\"),OR($F243=1,$F243=5)),0,prem_mort(VALUE(LEFT(Options!$B$14,2)),$C243,$E243,$F243,2016,$I243/10,1,$H243/10,$G243*$H243/10,RateRatios_airpollution!$C243)*10))","v":227.27319166499998},{"$f":"IF(AND(OR(Calculations!$E$2=\"Orkney Health Board\",Calculations!$E$2=\"Orkney Islands Local Authority\"),$F243=1),0,IF(AND(OR(Calculations!$E$2=\"Shetland Health Board\",Calculations!$E$2=\"Western Isles Health Board\",Calculations!$E$2=\"Shetland Islands Local Authority\",Calculations!$E$2=\"Eilean Siar Local Authority\"),OR($F243=1,$F243=5)),0,prem_mort(VALUE(LEFT(Options!$B$14,2)),$C243,$E243,$F243,2016,$I243/10+$J243/10,1,$H243/10,$G243*$H243/10,RateRatios_airpollution!$C243)*10))","v":227.27043408699998},null,{"$f":"IF(AND(OR(Calculations!$E$2=\"Orkney Health Board\",Calculations!$E$2=\"Orkney Islands Local Authority\"),$F243=1),0,IF(AND(OR(Calculations!$E$2=\"Shetland Health Board\",Calculations!$E$2=\"Western Isles Health Board\",Calculations!$E$2=\"Shetland Islands Local Authority\",Calculations!$E$2=\"Eilean Siar Local Authority\"),OR($F243=1,$F243=5)),0,new_ci(VALUE(LEFT(Options!$B$14,2)),$C243,$E243,$F243,2016,$I243/10,1,$H243/10,$G243*$H243/10,RateRatios_airpollution!$E243)*10))","v":227.27319166499998},{"$f":"IF(AND(OR(Calculations!$E$2=\"Orkney Health Board\",Calculations!$E$2=\"Orkney Islands Local Authority\"),$F243=1),0,IF(AND(OR(Calculations!$E$2=\"Shetland Health Board\",Calculations!$E$2=\"Western Isles Health Board\",Calculations!$E$2=\"Shetland Islands Local Authority\",Calculations!$E$2=\"Eilean Siar Local Authority\"),OR($F243=1,$F243=5)),0,new_ci(VALUE(LEFT(Options!$B$14,2)),$C243,$E243,$F243,2016,$I243/10+$J243/10,1,$H243/10,$G243*$H243/10,RateRatios_airpollution!$E243)*10))","v":227.27193806299999},{"$f":"IF(AND(OR(Calculations!$E$2=\"Orkney Health Board\",Calculations!$E$2=\"Orkney Islands Local Authority\"),$F243=1),0,IF(AND(OR(Calculations!$E$2=\"Shetland Health Board\",Calculations!$E$2=\"Western Isles Health Board\",Calculations!$E$2=\"Shetland Islands Local Authority\",Calculations!$E$2=\"Eilean Siar Local Authority\"),OR($F243=1,$F243=5)),0,new_yllv2(VALUE(LEFT(Options!$B$14,2)),$C243,$D243,$E243,$F243,2016,$I243/10,1,$H243/10,$G243*$H243/10,RateRatios_airpollution!$E243)*10))","v":4243.1907156590005},{"$f":"IF(AND(OR(Calculations!$E$2=\"Orkney Health Board\",Calculations!$E$2=\"Orkney Islands Local Authority\"),$F243=1),0,IF(AND(OR(Calculations!$E$2=\"Shetland Health Board\",Calculations!$E$2=\"Western Isles Health Board\",Calculations!$E$2=\"Shetland Islands Local Authority\",Calculations!$E$2=\"Eilean Siar Local Authority\"),OR($F243=1,$F243=5)),0,new_yllv2(VALUE(LEFT(Options!$B$14,2)),$C243,$D243,$E243,$F243,2016,$I243/10+$J243/10,1,$H243/10,$G243*$H243/10,RateRatios_airpollution!$E243)*10))","v":4243.1673109080002},{"$f":"IF(AND(OR(Calculations!$E$2=\"Orkney Health Board\",Calculations!$E$2=\"Orkney Islands Local Authority\"),$F243=1),0,IF(AND(OR(Calculations!$E$2=\"Shetland Health Board\",Calculations!$E$2=\"Western Isles Health Board\",Calculations!$E$2=\"Shetland Islands Local Authority\",Calculations!$E$2=\"Eilean Siar Local Authority\"),OR($F243=1,$F243=5)),0,hosp_count(VALUE(LEFT(Options!$B$14,2)),$C243,$E243,$F243,2016,$I243/10,1,$H243/10,$G243*$H243/10, RateRatios_airpollution!$F243, RateRatios_airpollution!$E243)*10))","v":8229.6006133829997},{"$f":"IF(AND(OR(Calculations!$E$2=\"Orkney Health Board\",Calculations!$E$2=\"Orkney Islands Local Authority\"),$F243=1),0,IF(AND(OR(Calculations!$E$2=\"Shetland Health Board\",Calculations!$E$2=\"Western Isles Health Board\",Calculations!$E$2=\"Shetland Islands Local Authority\",Calculations!$E$2=\"Eilean Siar Local Authority\"),OR($F243=1,$F243=5)),0,hosp_count(VALUE(LEFT(Options!$B$14,2)),$C243,$E243,$F243,2016,$I243/10+$J243/10,1,$H243/10,$G243*$H243/10, RateRatios_airpollution!$F243, RateRatios_airpollution!$E243)*10))","v":8229.6006133829997},{"$f":"IF(AND(OR(Calculations!$E$2=\"Orkney Health Board\",Calculations!$E$2=\"Orkney Islands Local Authority\"),$F243=1),0,IF(AND(OR(Calculations!$E$2=\"Shetland Health Board\",Calculations!$E$2=\"Western Isles Health Board\",Calculations!$E$2=\"Shetland Islands Local Authority\",Calculations!$E$2=\"Eilean Siar Local Authority\"),OR($F243=1,$F243=5)),0,prem_mort(VALUE(LEFT(Options!$B$14,2)),$C243,$E243,$F243,2016,$I243/10,1,$H243/10,$G243*$H243/10,RateRatios_airpollution!$E243)*10))","v":227.27319166499998},{"$f":"IF(AND(OR(Calculations!$E$2=\"Orkney Health Board\",Calculations!$E$2=\"Orkney Islands Local Authority\"),$F243=1),0,IF(AND(OR(Calculations!$E$2=\"Shetland Health Board\",Calculations!$E$2=\"Western Isles Health Board\",Calculations!$E$2=\"Shetland Islands Local Authority\",Calculations!$E$2=\"Eilean Siar Local Authority\"),OR($F243=1,$F243=5)),0,prem_mort(VALUE(LEFT(Options!$B$14,2)),$C243,$E243,$F243,2016,$I243/10+$J243/10,1,$H243/10,$G243*$H243/10,RateRatios_airpollution!$E243)*10))","v":227.27193806299999},227.27319166499998,227.21996136600001,4243.1907156590005,4242.1969059229996,8229.6006133829997,8227.6233133200021,227.27319166499998,227.21996136600001,710.20652999906247,710.04019051279647,13259.556625289835,13256.451066913532,25716.698270000936,25710.519400393747,710.20652999906247,710.04019051279647,4261239.1799943745,4260241.1430767784,79557339.75173901,79538706.401481196,154300189.62000561,154263116.40236247,4261239.1799943745,4260241.1430767784,6000]
[null,"Male 65-69",67.054419999999993,82.954419999999999,"male",5,1,{"$f":"HLOOKUP(Calculations!$E$2,'Population 2016'!$C$3:$BC$249,'Population 2016'!BD244,FALSE)","v":31688},0,{"$f":"HLOOKUP(Calculations!$E$2,Pop2016_in_settlements!$C$3:$BC$249,Pop2016_in_settlements!$BD244,FALSE)","v":16756},{"$f":"IF(AND(OR(Calculations!$E$2=\"Orkney Health Board\",Calculations!$E$2=\"Orkney Islands Local Authority\"),$F244=1),0,IF(AND(OR(Calculations!$E$2=\"Shetland Health Board\",Calculations!$E$2=\"Western Isles Health Board\",Calculations!$E$2=\"Shetland Islands Local Authority\",Calculations!$E$2=\"Eilean Siar Local Authority\"),OR($F244=1,$F244=5)),0,new_ci(VALUE(LEFT(Options!$B$14,2)),$C244,$E244,$F244,2016,$I244/10,1,$H244/10,$G244*$H244/10,RateRatios_accidents!$B$5)*10))","v":330.48100928300005},{"$f":"IF(AND(OR(Calculations!$E$2=\"Orkney Health Board\",Calculations!$E$2=\"Orkney Islands Local Authority\"),$F244=1),0,IF(AND(OR(Calculations!$E$2=\"Shetland Health Board\",Calculations!$E$2=\"Western Isles Health Board\",Calculations!$E$2=\"Shetland Islands Local Authority\",Calculations!$E$2=\"Eilean Siar Local Authority\"),OR($F244=1,$F244=5)),0,new_ci(VALUE(LEFT(Options!$B$14,2)),$C244,$E244,$F244,2016,$I244/10+$J244/10,1,$H244/10,$G244*$H244/10,RateRatios_accidents!$B$5)*10))","v":330.411473559},{"$f":"IF(AND(OR(Calculations!$E$2=\"Orkney Health Board\",Calculations!$E$2=\"Orkney Islands Local Authority\"),$F244=1),0,IF(AND(OR(Calculations!$E$2=\"Shetland Health Board\",Calculations!$E$2=\"Western Isles Health Board\",Calculations!$E$2=\"Shetland Islands Local Authority\",Calculations!$E$2=\"Eilean Siar Local Authority\"),OR($F244=1,$F244=5)),0,new_yllv2(VALUE(LEFT(Options!$B$14,2)),$C244,$D244,$E244,$F244,2016,$I244/10,1,$H244/10,$G244*$H244/10,RateRatios_accidents!$B$5)*10))","v":4924.1670383169994},{"$f":"IF(AND(OR(Calculations!$E$2=\"Orkney Health Board\",Calculations!$E$2=\"Orkney Islands Local Authority\"),$F244=1),0,IF(AND(OR(Calculations!$E$2=\"Shetland Health Board\",Calculations!$E$2=\"Western Isles Health Board\",Calculations!$E$2=\"Shetland Islands Local Authority\",Calculations!$E$2=\"Eilean Siar Local Authority\"),OR($F244=1,$F244=5)),0,new_yllv2(VALUE(LEFT(Options!$B$14,2)),$C244,$D244,$E244,$F244,2016,$I244/10+$J244/10,1,$H244/10,$G244*$H244/10,RateRatios_accidents!$B$5)*10))","v":4923.1309560290001},{"$f":"IF(AND(OR(Calculations!$E$2=\"Orkney Health Board\",Calculations!$E$2=\"Orkney Islands Local Authority\"),$F244=1),0,IF(AND(OR(Calculations!$E$2=\"Shetland Health Board\",Calculations!$E$2=\"Western Isles Health Board\",Calculations!$E$2=\"Shetland Islands Local Authority\",Calculations!$E$2=\"Eilean Siar Local Authority\"),OR($F244=1,$F244=5)),0,hosp_count(VALUE(LEFT(Options!$B$14,2)),$C244,$E244,$F244,2016,$I244/10,1,$H244/10,$G244*$H244/10, RateRatios_accidents!$B$4, RateRatios_accidents!$B$5)*10))","v":9770.2259477179996},{"$f":"IF(AND(OR(Calculations!$E$2=\"Orkney Health Board\",Calculations!$E$2=\"Orkney Islands Local Authority\"),$F244=1),0,IF(AND(OR(Calculations!$E$2=\"Shetland Health Board\",Calculations!$E$2=\"Western Isles Health Board\",Calculations!$E$2=\"Shetland Islands Local Authority\",Calculations!$E$2=\"Eilean Siar Local Authority\"),OR($F244=1,$F244=5)),0,hosp_count(VALUE(LEFT(Options!$B$14,2)),$C244,$E244,$F244,2016,$I244/10+$J244/10,1,$H244/10,$G244*$H244/10, RateRatios_accidents!$B$4, RateRatios_accidents!$B$5)*10))","v":9768.1594252119994},{"$f":"IF(AND(OR(Calculations!$E$2=\"Orkney Health Board\",Calculations!$E$2=\"Orkney Islands Local Authority\"),$F244=1),0,IF(AND(OR(Calculations!$E$2=\"Shetland Health Board\",Calculations!$E$2=\"Western Isles Health Board\",Calculations!$E$2=\"Shetland Islands Local Authority\",Calculations!$E$2=\"Eilean Siar Local Authority\"),OR($F244=1,$F244=5)),0,prem_mort(VALUE(LEFT(Options!$B$14,2)),$C244,$E244,$F244,2016,$I244/10,1,$H244/10,$G244*$H244/10,RateRatios_accidents!$B$5)*10))","v":330.48100928300005},{"$f":"IF(AND(OR(Calculations!$E$2=\"Orkney Health Board\",Calculations!$E$2=\"Orkney Islands Local Authority\"),$F244=1),0,IF(AND(OR(Calculations!$E$2=\"Shetland Health Board\",Calculations!$E$2=\"Western Isles Health Board\",Calculations!$E$2=\"Shetland Islands Local Authority\",Calculations!$E$2=\"Eilean Siar Local Authority\"),OR($F244=1,$F244=5)),0,prem_mort(VALUE(LEFT(Options!$B$14,2)),$C244,$E244,$F244,2016,$I244/10+$J244/10,1,$H244/10,$G244*$H244/10,RateRatios_accidents!$B$5)*10))","v":330.411473559},null,{"$f":"IF(AND(OR(Calculations!$E$2=\"Orkney Health Board\",Calculations!$E$2=\"Orkney Islands Local Authority\"),$F244=1),0,IF(AND(OR(Calculations!$E$2=\"Shetland Health Board\",Calculations!$E$2=\"Western Isles Health Board\",Calculations!$E$2=\"Shetland Islands Local Authority\",Calculations!$E$2=\"Eilean Siar Local Authority\"),OR($F244=1,$F244=5)),0,new_ci(VALUE(LEFT(Options!$B$14,2)),$C244,$E244,$F244,2016,$I244/10,1,$H244/10,$G244*$H244/10,RateRatios_airpollution!$C244)*10))","v":330.48100928300005},{"$f":"IF(AND(OR(Calculations!$E$2=\"Orkney Health Board\",Calculations!$E$2=\"Orkney Islands Local Authority\"),$F244=1),0,IF(AND(OR(Calculations!$E$2=\"Shetland Health Board\",Calculations!$E$2=\"Western Isles Health Board\",Calculations!$E$2=\"Shetland Islands Local Authority\",Calculations!$E$2=\"Eilean Siar Local Authority\"),OR($F244=1,$F244=5)),0,new_ci(VALUE(LEFT(Options!$B$14,2)),$C244,$E244,$F244,2016,$I244/10+$J244/10,1,$H244/10,$G244*$H244/10,RateRatios_airpollution!$C244)*10))","v":330.477195618},{"$f":"IF(AND(OR(Calculations!$E$2=\"Orkney Health Board\",Calculations!$E$2=\"Orkney Islands Local Authority\"),$F244=1),0,IF(AND(OR(Calculations!$E$2=\"Shetland Health Board\",Calculations!$E$2=\"Western Isles Health Board\",Calculations!$E$2=\"Shetland Islands Local Authority\",Calculations!$E$2=\"Eilean Siar Local Authority\"),OR($F244=1,$F244=5)),0,new_yllv2(VALUE(LEFT(Options!$B$14,2)),$C244,$D244,$E244,$F244,2016,$I244/10,1,$H244/10,$G244*$H244/10,RateRatios_airpollution!$C244)*10))","v":4924.1670383169994},{"$f":"IF(AND(OR(Calculations!$E$2=\"Orkney Health Board\",Calculations!$E$2=\"Orkney Islands Local Authority\"),$F244=1),0,IF(AND(OR(Calculations!$E$2=\"Shetland Health Board\",Calculations!$E$2=\"Western Isles Health Board\",Calculations!$E$2=\"Shetland Islands Local Authority\",Calculations!$E$2=\"Eilean Siar Local Authority\"),OR($F244=1,$F244=5)),0,new_yllv2(VALUE(LEFT(Options!$B$14,2)),$C244,$D244,$E244,$F244,2016,$I244/10+$J244/10,1,$H244/10,$G244*$H244/10,RateRatios_airpollution!$C244)*10))","v":4924.1102147080001},{"$f":"IF(AND(OR(Calculations!$E$2=\"Orkney Health Board\",Calculations!$E$2=\"Orkney Islands Local Authority\"),$F244=1),0,IF(AND(OR(Calculations!$E$2=\"Shetland Health Board\",Calculations!$E$2=\"Western Isles Health Board\",Calculations!$E$2=\"Shetland Islands Local Authority\",Calculations!$E$2=\"Eilean Siar Local Authority\"),OR($F244=1,$F244=5)),0,hosp_count(VALUE(LEFT(Options!$B$14,2)),$C244,$E244,$F244,2016,$I244/10,1,$H244/10,$G244*$H244/10, RateRatios_airpollution!$D244, RateRatios_airpollution!$C244)*10))","v":9770.2259477179996},{"$f":"IF(AND(OR(Calculations!$E$2=\"Orkney Health Board\",Calculations!$E$2=\"Orkney Islands Local Authority\"),$F244=1),0,IF(AND(OR(Calculations!$E$2=\"Shetland Health Board\",Calculations!$E$2=\"Western Isles Health Board\",Calculations!$E$2=\"Shetland Islands Local Authority\",Calculations!$E$2=\"Eilean Siar Local Authority\"),OR($F244=1,$F244=5)),0,hosp_count(VALUE(LEFT(Options!$B$14,2)),$C244,$E244,$F244,2016,$I244/10+$J244/10,1,$H244/10,$G244*$H244/10, RateRatios_airpollution!$D244, RateRatios_airpollution!$C244)*10))","v":9770.0124813050006},{"$f":"IF(AND(OR(Calculations!$E$2=\"Orkney Health Board\",Calculations!$E$2=\"Orkney Islands Local Authority\"),$F244=1),0,IF(AND(OR(Calculations!$E$2=\"Shetland Health Board\",Calculations!$E$2=\"Western Isles Health Board\",Calculations!$E$2=\"Shetland Islands Local Authority\",Calculations!$E$2=\"Eilean Siar Local Authority\"),OR($F244=1,$F244=5)),0,prem_mort(VALUE(LEFT(Options!$B$14,2)),$C244,$E244,$F244,2016,$I244/10,1,$H244/10,$G244*$H244/10,RateRatios_airpollution!$C244)*10))","v":330.48100928300005},{"$f":"IF(AND(OR(Calculations!$E$2=\"Orkney Health Board\",Calculations!$E$2=\"Orkney Islands Local Authority\"),$F244=1),0,IF(AND(OR(Calculations!$E$2=\"Shetland Health Board\",Calculations!$E$2=\"Western Isles Health Board\",Calculations!$E$2=\"Shetland Islands Local Authority\",Calculations!$E$2=\"Eilean Siar Local Authority\"),OR($F244=1,$F244=5)),0,prem_mort(VALUE(LEFT(Options!$B$14,2)),$C244,$E244,$F244,2016,$I244/10+$J244/10,1,$H244/10,$G244*$H244/10,RateRatios_airpollution!$C244)*10))","v":330.477195618},null,{"$f":"IF(AND(OR(Calculations!$E$2=\"Orkney Health Board\",Calculations!$E$2=\"Orkney Islands Local Authority\"),$F244=1),0,IF(AND(OR(Calculations!$E$2=\"Shetland Health Board\",Calculations!$E$2=\"Western Isles Health Board\",Calculations!$E$2=\"Shetland Islands Local Authority\",Calculations!$E$2=\"Eilean Siar Local Authority\"),OR($F244=1,$F244=5)),0,new_ci(VALUE(LEFT(Options!$B$14,2)),$C244,$E244,$F244,2016,$I244/10,1,$H244/10,$G244*$H244/10,RateRatios_airpollution!$E244)*10))","v":330.48100928300005},{"$f":"IF(AND(OR(Calculations!$E$2=\"Orkney Health Board\",Calculations!$E$2=\"Orkney Islands Local Authority\"),$F244=1),0,IF(AND(OR(Calculations!$E$2=\"Shetland Health Board\",Calculations!$E$2=\"Western Isles Health Board\",Calculations!$E$2=\"Shetland Islands Local Authority\",Calculations!$E$2=\"Eilean Siar Local Authority\"),OR($F244=1,$F244=5)),0,new_ci(VALUE(LEFT(Options!$B$14,2)),$C244,$E244,$F244,2016,$I244/10+$J244/10,1,$H244/10,$G244*$H244/10,RateRatios_airpollution!$E244)*10))","v":330.47927503700004},{"$f":"IF(AND(OR(Calculations!$E$2=\"Orkney Health Board\",Calculations!$E$2=\"Orkney Islands Local Authority\"),$F244=1),0,IF(AND(OR(Calculations!$E$2=\"Shetland Health Board\",Calculations!$E$2=\"Western Isles Health Board\",Calculations!$E$2=\"Shetland Islands Local Authority\",Calculations!$E$2=\"Eilean Siar Local Authority\"),OR($F244=1,$F244=5)),0,new_yllv2(VALUE(LEFT(Options!$B$14,2)),$C244,$D244,$E244,$F244,2016,$I244/10,1,$H244/10,$G244*$H244/10,RateRatios_airpollution!$E244)*10))","v":4924.1670383169994},{"$f":"IF(AND(OR(Calculations!$E$2=\"Orkney Health Board\",Calculations!$E$2=\"Orkney Islands Local Authority\"),$F244=1),0,IF(AND(OR(Calculations!$E$2=\"Shetland Health Board\",Calculations!$E$2=\"Western Isles Health Board\",Calculations!$E$2=\"Shetland Islands Local Authority\",Calculations!$E$2=\"Eilean Siar Local Authority\"),OR($F244=1,$F244=5)),0,new_yllv2(VALUE(LEFT(Options!$B$14,2)),$C244,$D244,$E244,$F244,2016,$I244/10+$J244/10,1,$H244/10,$G244*$H244/10,RateRatios_airpollution!$E244)*10))","v":4924.1411980510002},{"$f":"IF(AND(OR(Calculations!$E$2=\"Orkney Health Board\",Calculations!$E$2=\"Orkney Islands Local Authority\"),$F244=1),0,IF(AND(OR(Calculations!$E$2=\"Shetland Health Board\",Calculations!$E$2=\"Western Isles Health Board\",Calculations!$E$2=\"Shetland Islands Local Authority\",Calculations!$E$2=\"Eilean Siar Local Authority\"),OR($F244=1,$F244=5)),0,hosp_count(VALUE(LEFT(Options!$B$14,2)),$C244,$E244,$F244,2016,$I244/10,1,$H244/10,$G244*$H244/10, RateRatios_airpollution!$F244, RateRatios_airpollution!$E244)*10))","v":9770.2259477179996},{"$f":"IF(AND(OR(Calculations!$E$2=\"Orkney Health Board\",Calculations!$E$2=\"Orkney Islands Local Authority\"),$F244=1),0,IF(AND(OR(Calculations!$E$2=\"Shetland Health Board\",Calculations!$E$2=\"Western Isles Health Board\",Calculations!$E$2=\"Shetland Islands Local Authority\",Calculations!$E$2=\"Eilean Siar Local Authority\"),OR($F244=1,$F244=5)),0,hosp_count(VALUE(LEFT(Options!$B$14,2)),$C244,$E244,$F244,2016,$I244/10+$J244/10,1,$H244/10,$G244*$H244/10, RateRatios_airpollution!$F244, RateRatios_airpollution!$E244)*10))","v":9770.2259477179996},{"$f":"IF(AND(OR(Calculations!$E$2=\"Orkney Health Board\",Calculations!$E$2=\"Orkney Islands Local Authority\"),$F244=1),0,IF(AND(OR(Calculations!$E$2=\"Shetland Health Board\",Calculations!$E$2=\"Western Isles Health Board\",Calculations!$E$2=\"Shetland Islands Local Authority\",Calculations!$E$2=\"Eilean Siar Local Authority\"),OR($F244=1,$F244=5)),0,prem_mort(VALUE(LEFT(Options!$B$14,2)),$C244,$E244,$F244,2016,$I244/10,1,$H244/10,$G244*$H244/10,RateRatios_airpollution!$E244)*10))","v":330.48100928300005},{"$f":"IF(AND(OR(Calculations!$E$2=\"Orkney Health Board\",Calculations!$E$2=\"Orkney Islands Local Authority\"),$F244=1),0,IF(AND(OR(Calculations!$E$2=\"Shetland Health Board\",Calculations!$E$2=\"Western Isles Health Board\",Calculations!$E$2=\"Shetland Islands Local Authority\",Calculations!$E$2=\"Eilean Siar Local Authority\"),OR($F244=1,$F244=5)),0,prem_mort(VALUE(LEFT(Options!$B$14,2)),$C244,$E244,$F244,2016,$I244/10+$J244/10,1,$H244/10,$G244*$H244/10,RateRatios_airpollution!$E244)*10))","v":330.47927503700004},330.48100928300005,330.40592564799994,4924.1670383169994,4923.0482921540015,9770.2259477179996,9767.9459587990004,330.48100928300005,330.40592564799994,1042.9216399993691,1042.6846934107548,15539.532435991541,15536.001931816465,30832.573679998735,30825.378562228609,1042.9216399993691,1042.6846934107548,5736069.0199965294,5734765.8137591509,85467428.39795348,85448010.624990553,169579155.23999304,169539582.09225735,5736069.0199965294,5734765.8137591509,5500]
[null,"Male 70-74",71.891098,84.341099999999997,"male",5,1,{"$f":"HLOOKUP(Calculations!$E$2,'Population 2016'!$C$3:$BC$249,'Population 2016'!BD245,FALSE)","v":22663},0,{"$f":"HLOOKUP(Calculations!$E$2,Pop2016_in_settlements!$C$3:$BC$249,Pop2016_in_settlements!$BD245,FALSE)","v":11896},{"$f":"IF(AND(OR(Calculations!$E$2=\"Orkney Health Board\",Calculations!$E$2=\"Orkney Islands Local Authority\"),$F245=1),0,IF(AND(OR(Calculations!$E$2=\"Shetland Health Board\",Calculations!$E$2=\"Western Isles Health Board\",Calculations!$E$2=\"Shetland Islands Local Authority\",Calculations!$E$2=\"Eilean Siar Local Authority\"),OR($F245=1,$F245=5)),0,new_ci(VALUE(LEFT(Options!$B$14,2)),$C245,$E245,$F245,2016,$I245/10,1,$H245/10,$G245*$H245/10,RateRatios_accidents!$B$5)*10))","v":339.745717442},{"$f":"IF(AND(OR(Calculations!$E$2=\"Orkney Health Board\",Calculations!$E$2=\"Orkney Islands Local Authority\"),$F245=1),0,IF(AND(OR(Calculations!$E$2=\"Shetland Health Board\",Calculations!$E$2=\"Western Isles Health Board\",Calculations!$E$2=\"Shetland Islands Local Authority\",Calculations!$E$2=\"Eilean Siar Local Authority\"),OR($F245=1,$F245=5)),0,new_ci(VALUE(LEFT(Options!$B$14,2)),$C245,$E245,$F245,2016,$I245/10+$J245/10,1,$H245/10,$G245*$H245/10,RateRatios_accidents!$B$5)*10))","v":339.67491958799997},{"$f":"IF(AND(OR(Calculations!$E$2=\"Orkney Health Board\",Calculations!$E$2=\"Orkney Islands Local Authority\"),$F245=1),0,IF(AND(OR(Calculations!$E$2=\"Shetland Health Board\",Calculations!$E$2=\"Western Isles Health Board\",Calculations!$E$2=\"Shetland Islands Local Authority\",Calculations!$E$2=\"Eilean Siar Local Authority\"),OR($F245=1,$F245=5)),0,new_yllv2(VALUE(LEFT(Options!$B$14,2)),$C245,$D245,$E245,$F245,2016,$I245/10,1,$H245/10,$G245*$H245/10,RateRatios_accidents!$B$5)*10))","v":3890.0891442020002},{"$f":"IF(AND(OR(Calculations!$E$2=\"Orkney Health Board\",Calculations!$E$2=\"Orkney Islands Local Authority\"),$F245=1),0,IF(AND(OR(Calculations!$E$2=\"Shetland Health Board\",Calculations!$E$2=\"Western Isles Health Board\",Calculations!$E$2=\"Shetland Islands Local Authority\",Calculations!$E$2=\"Eilean Siar Local Authority\"),OR($F245=1,$F245=5)),0,new_yllv2(VALUE(LEFT(Options!$B$14,2)),$C245,$D245,$E245,$F245,2016,$I245/10+$J245/10,1,$H245/10,$G245*$H245/10,RateRatios_accidents!$B$5)*10))","v":3889.278508632},{"$f":"IF(AND(OR(Calculations!$E$2=\"Orkney Health Board\",Calculations!$E$2=\"Orkney Islands Local Authority\"),$F245=1),0,IF(AND(OR(Calculations!$E$2=\"Shetland Health Board\",Calculations!$E$2=\"Western Isles Health Board\",Calculations!$E$2=\"Shetland Islands Local Authority\",Calculations!$E$2=\"Eilean Siar Local Authority\"),OR($F245=1,$F245=5)),0,hosp_count(VALUE(LEFT(Options!$B$14,2)),$C245,$E245,$F245,2016,$I245/10,1,$H245/10,$G245*$H245/10, RateRatios_accidents!$B$4, RateRatios_accidents!$B$5)*10))","v":8296.3359118629996},{"$f":"IF(AND(OR(Calculations!$E$2=\"Orkney Health Board\",Calculations!$E$2=\"Orkney Islands Local Authority\"),$F245=1),0,IF(AND(OR(Calculations!$E$2=\"Shetland Health Board\",Calculations!$E$2=\"Western Isles Health Board\",Calculations!$E$2=\"Shetland Islands Local Authority\",Calculations!$E$2=\"Eilean Siar Local Authority\"),OR($F245=1,$F245=5)),0,hosp_count(VALUE(LEFT(Options!$B$14,2)),$C245,$E245,$F245,2016,$I245/10+$J245/10,1,$H245/10,$G245*$H245/10, RateRatios_accidents!$B$4, RateRatios_accidents!$B$5)*10))","v":8294.593985341},{"$f":"IF(AND(OR(Calculations!$E$2=\"Orkney Health Board\",Calculations!$E$2=\"Orkney Islands Local Authority\"),$F245=1),0,IF(AND(OR(Calculations!$E$2=\"Shetland Health Board\",Calculations!$E$2=\"Western Isles Health Board\",Calculations!$E$2=\"Shetland Islands Local Authority\",Calculations!$E$2=\"Eilean Siar Local Authority\"),OR($F245=1,$F245=5)),0,prem_mort(VALUE(LEFT(Options!$B$14,2)),$C245,$E245,$F245,2016,$I245/10,1,$H245/10,$G245*$H245/10,RateRatios_accidents!$B$5)*10))","v":339.745717442},{"$f":"IF(AND(OR(Calculations!$E$2=\"Orkney Health Board\",Calculations!$E$2=\"Orkney Islands Local Authority\"),$F245=1),0,IF(AND(OR(Calculations!$E$2=\"Shetland Health Board\",Calculations!$E$2=\"Western Isles Health Board\",Calculations!$E$2=\"Shetland Islands Local Authority\",Calculations!$E$2=\"Eilean Siar Local Authority\"),OR($F245=1,$F245=5)),0,prem_mort(VALUE(LEFT(Options!$B$14,2)),$C245,$E245,$F245,2016,$I245/10+$J245/10,1,$H245/10,$G245*$H245/10,RateRatios_accidents!$B$5)*10))","v":339.67491958799997},null,{"$f":"IF(AND(OR(Calculations!$E$2=\"Orkney Health Board\",Calculations!$E$2=\"Orkney Islands Local Authority\"),$F245=1),0,IF(AND(OR(Calculations!$E$2=\"Shetland Health Board\",Calculations!$E$2=\"Western Isles Health Board\",Calculations!$E$2=\"Shetland Islands Local Authority\",Calculations!$E$2=\"Eilean Siar Local Authority\"),OR($F245=1,$F245=5)),0,new_ci(VALUE(LEFT(Options!$B$14,2)),$C245,$E245,$F245,2016,$I245/10,1,$H245/10,$G245*$H245/10,RateRatios_airpollution!$C245)*10))","v":339.745717442},{"$f":"IF(AND(OR(Calculations!$E$2=\"Orkney Health Board\",Calculations!$E$2=\"Orkney Islands Local Authority\"),$F245=1),0,IF(AND(OR(Calculations!$E$2=\"Shetland Health Board\",Calculations!$E$2=\"Western Isles Health Board\",Calculations!$E$2=\"Shetland Islands Local Authority\",Calculations!$E$2=\"Eilean Siar Local Authority\"),OR($F245=1,$F245=5)),0,new_ci(VALUE(LEFT(Options!$B$14,2)),$C245,$E245,$F245,2016,$I245/10+$J245/10,1,$H245/10,$G245*$H245/10,RateRatios_airpollution!$C245)*10))","v":339.74193808300004},{"$f":"IF(AND(OR(Calculations!$E$2=\"Orkney Health Board\",Calculations!$E$2=\"Orkney Islands Local Authority\"),$F245=1),0,IF(AND(OR(Calculations!$E$2=\"Shetland Health Board\",Calculations!$E$2=\"Western Isles Health Board\",Calculations!$E$2=\"Shetland Islands Local Authority\",Calculations!$E$2=\"Eilean Siar Local Authority\"),OR($F245=1,$F245=5)),0,new_yllv2(VALUE(LEFT(Options!$B$14,2)),$C245,$D245,$E245,$F245,2016,$I245/10,1,$H245/10,$G245*$H245/10,RateRatios_airpollution!$C245)*10))","v":3890.0891442020002},{"$f":"IF(AND(OR(Calculations!$E$2=\"Orkney Health Board\",Calculations!$E$2=\"Orkney Islands Local Authority\"),$F245=1),0,IF(AND(OR(Calculations!$E$2=\"Shetland Health Board\",Calculations!$E$2=\"Western Isles Health Board\",Calculations!$E$2=\"Shetland Islands Local Authority\",Calculations!$E$2=\"Eilean Siar Local Authority\"),OR($F245=1,$F245=5)),0,new_yllv2(VALUE(LEFT(Options!$B$14,2)),$C245,$D245,$E245,$F245,2016,$I245/10+$J245/10,1,$H245/10,$G245*$H245/10,RateRatios_airpollution!$C245)*10))","v":3890.0458705339997},{"$f":"IF(AND(OR(Calculations!$E$2=\"Orkney Health Board\",Calculations!$E$2=\"Orkney Islands Local Authority\"),$F245=1),0,IF(AND(OR(Calculations!$E$2=\"Shetland Health Board\",Calculations!$E$2=\"Western Isles Health Board\",Calculations!$E$2=\"Shetland Islands Local Authority\",Calculations!$E$2=\"Eilean Siar Local Authority\"),OR($F245=1,$F245=5)),0,hosp_count(VALUE(LEFT(Options!$B$14,2)),$C245,$E245,$F245,2016,$I245/10,1,$H245/10,$G245*$H245/10, RateRatios_airpollution!$D245, RateRatios_airpollution!$C245)*10))","v":8296.3359118629996},{"$f":"IF(AND(OR(Calculations!$E$2=\"Orkney Health Board\",Calculations!$E$2=\"Orkney Islands Local Authority\"),$F245=1),0,IF(AND(OR(Calculations!$E$2=\"Shetland Health Board\",Calculations!$E$2=\"Western Isles Health Board\",Calculations!$E$2=\"Shetland Islands Local Authority\",Calculations!$E$2=\"Eilean Siar Local Authority\"),OR($F245=1,$F245=5)),0,hosp_count(VALUE(LEFT(Options!$B$14,2)),$C245,$E245,$F245,2016,$I245/10+$J245/10,1,$H245/10,$G245*$H245/10, RateRatios_airpollution!$D245, RateRatios_airpollution!$C245)*10))","v":8296.1607254190003},{"$f":"IF(AND(OR(Calculations!$E$2=\"Orkney Health Board\",Calculations!$E$2=\"Orkney Islands Local Authority\"),$F245=1),0,IF(AND(OR(Calculations!$E$2=\"Shetland Health Board\",Calculations!$E$2=\"Western Isles Health Board\",Calculations!$E$2=\"Shetland Islands Local Authority\",Calculations!$E$2=\"Eilean Siar Local Authority\"),OR($F245=1,$F245=5)),0,prem_mort(VALUE(LEFT(Options!$B$14,2)),$C245,$E245,$F245,2016,$I245/10,1,$H245/10,$G245*$H245/10,RateRatios_airpollution!$C245)*10))","v":339.745717442},{"$f":"IF(AND(OR(Calculations!$E$2=\"Orkney Health Board\",Calculations!$E$2=\"Orkney Islands Local Authority\"),$F245=1),0,IF(AND(OR(Calculations!$E$2=\"Shetland Health Board\",Calculations!$E$2=\"Western Isles Health Board\",Calculations!$E$2=\"Shetland Islands Local Authority\",Calculations!$E$2=\"Eilean Siar Local Authority\"),OR($F245=1,$F245=5)),0,prem_mort(VALUE(LEFT(Options!$B$14,2)),$C245,$E245,$F245,2016,$I245/10+$J245/10,1,$H245/10,$G245*$H245/10,RateRatios_airpollution!$C245)*10))","v":339.74193808300004},null,{"$f":"IF(AND(OR(Calculations!$E$2=\"Orkney Health Board\",Calculations!$E$2=\"Orkney Islands Local Authority\"),$F245=1),0,IF(AND(OR(Calculations!$E$2=\"Shetland Health Board\",Calculations!$E$2=\"Western Isles Health Board\",Calculations!$E$2=\"Shetland Islands Local Authority\",Calculations!$E$2=\"Eilean Siar Local Authority\"),OR($F245=1,$F245=5)),0,new_ci(VALUE(LEFT(Options!$B$14,2)),$C245,$E245,$F245,2016,$I245/10,1,$H245/10,$G245*$H245/10,RateRatios_airpollution!$E245)*10))","v":339.745717442},{"$f":"IF(AND(OR(Calculations!$E$2=\"Orkney Health Board\",Calculations!$E$2=\"Orkney Islands Local Authority\"),$F245=1),0,IF(AND(OR(Calculations!$E$2=\"Shetland Health Board\",Calculations!$E$2=\"Western Isles Health Board\",Calculations!$E$2=\"Shetland Islands Local Authority\",Calculations!$E$2=\"Eilean Siar Local Authority\"),OR($F245=1,$F245=5)),0,new_ci(VALUE(LEFT(Options!$B$14,2)),$C245,$E245,$F245,2016,$I245/10+$J245/10,1,$H245/10,$G245*$H245/10,RateRatios_airpollution!$E245)*10))","v":339.74399371200002},{"$f":"IF(AND(OR(Calculations!$E$2=\"Orkney Health Board\",Calculations!$E$2=\"Orkney Islands Local Authority\"),$F245=1),0,IF(AND(OR(Calculations!$E$2=\"Shetland Health Board\",Calculations!$E$2=\"Western Isles Health Board\",Calculations!$E$2=\"Shetland Islands Local Authority\",Calculations!$E$2=\"Eilean Siar Local Authority\"),OR($F245=1,$F245=5)),0,new_yllv2(VALUE(LEFT(Options!$B$14,2)),$C245,$D245,$E245,$F245,2016,$I245/10,1,$H245/10,$G245*$H245/10,RateRatios_airpollution!$E245)*10))","v":3890.0891442020002},{"$f":"IF(AND(OR(Calculations!$E$2=\"Orkney Health Board\",Calculations!$E$2=\"Orkney Islands Local Authority\"),$F245=1),0,IF(AND(OR(Calculations!$E$2=\"Shetland Health Board\",Calculations!$E$2=\"Western Isles Health Board\",Calculations!$E$2=\"Shetland Islands Local Authority\",Calculations!$E$2=\"Eilean Siar Local Authority\"),OR($F245=1,$F245=5)),0,new_yllv2(VALUE(LEFT(Options!$B$14,2)),$C245,$D245,$E245,$F245,2016,$I245/10+$J245/10,1,$H245/10,$G245*$H245/10,RateRatios_airpollution!$E245)*10))","v":3890.0694074900002},{"$f":"IF(AND(OR(Calculations!$E$2=\"Orkney Health Board\",Calculations!$E$2=\"Orkney Islands Local Authority\"),$F245=1),0,IF(AND(OR(Calculations!$E$2=\"Shetland Health Board\",Calculations!$E$2=\"Western Isles Health Board\",Calculations!$E$2=\"Shetland Islands Local Authority\",Calculations!$E$2=\"Eilean Siar Local Authority\"),OR($F245=1,$F245=5)),0,hosp_count(VALUE(LEFT(Options!$B$14,2)),$C245,$E245,$F245,2016,$I245/10,1,$H245/10,$G245*$H245/10, RateRatios_airpollution!$F245, RateRatios_airpollution!$E245)*10))","v":8296.3359118629996},{"$f":"IF(AND(OR(Calculations!$E$2=\"Orkney Health Board\",Calculations!$E$2=\"Orkney Islands Local Authority\"),$F245=1),0,IF(AND(OR(Calculations!$E$2=\"Shetland Health Board\",Calculations!$E$2=\"Western Isles Health Board\",Calculations!$E$2=\"Shetland Islands Local Authority\",Calculations!$E$2=\"Eilean Siar Local Authority\"),OR($F245=1,$F245=5)),0,hosp_count(VALUE(LEFT(Options!$B$14,2)),$C245,$E245,$F245,2016,$I245/10+$J245/10,1,$H245/10,$G245*$H245/10, RateRatios_airpollution!$F245, RateRatios_airpollution!$E245)*10))","v":8296.3359118619992},{"$f":"IF(AND(OR(Calculations!$E$2=\"Orkney Health Board\",Calculations!$E$2=\"Orkney Islands Local Authority\"),$F245=1),0,IF(AND(OR(Calculations!$E$2=\"Shetland Health Board\",Calculations!$E$2=\"Western Isles Health Board\",Calculations!$E$2=\"Shetland Islands Local Authority\",Calculations!$E$2=\"Eilean Siar Local Authority\"),OR($F245=1,$F245=5)),0,prem_mort(VALUE(LEFT(Options!$B$14,2)),$C245,$E245,$F245,2016,$I245/10,1,$H245/10,$G245*$H245/10,RateRatios_airpollution!$E245)*10))","v":339.745717442},{"$f":"IF(AND(OR(Calculations!$E$2=\"Orkney Health Board\",Calculations!$E$2=\"Orkney Islands Local Authority\"),$F245=1),0,IF(AND(OR(Calculations!$E$2=\"Shetland Health Board\",Calculations!$E$2=\"Western Isles Health Board\",Calculations!$E$2=\"Shetland Islands Local Authority\",Calculations!$E$2=\"Eilean Siar Local Authority\"),OR($F245=1,$F245=5)),0,prem_mort(VALUE(LEFT(Options!$B$14,2)),$C245,$E245,$F245,2016,$I245/10+$J245/10,1,$H245/10,$G245*$H245/10,RateRatios_airpollution!$E245)*10))","v":339.74399371200002},339.745717442,339.66941649900002,3890.0891442020002,3889.2154982519996,8296.3359118629996,8294.4187988960002,339.745717442,339.66941649900002,1499.1206699995587,1498.7839937298681,17164.934669734808,17161.079725773285,36607.403750002202,36598.944530274013,1499.1206699995587,1498.7839937298681,7495603.3499977933,7493919.9686493408,85824673.348674044,85805398.628866419,183037018.750011,182994722.65137008,7495603.3499977933,7493919.9686493408,5000]
[null,"Male 75-79",76.907700000000006,86.357700000000008,"male",5,1,{"$f":"HLOOKUP(Calculations!$E$2,'Population 2016'!$C$3:$BC$249,'Population 2016'!BD246,FALSE)","v":16475},0,{"$f":"HLOOKUP(Calculations!$E$2,Pop2016_in_settlements!$C$3:$BC$249,Pop2016_in_settlements!$BD246,FALSE)","v":8915},{"$f":"IF(AND(OR(Calculations!$E$2=\"Orkney Health Board\",Calculations!$E$2=\"Orkney Islands Local Authority\"),$F246=1),0,IF(AND(OR(Calculations!$E$2=\"Shetland Health Board\",Calculations!$E$2=\"Western Isles Health Board\",Calculations!$E$2=\"Shetland Islands Local Authority\",Calculations!$E$2=\"Eilean Siar Local Authority\"),OR($F246=1,$F246=5)),0,new_ci(VALUE(LEFT(Options!$B$14,2)),$C246,$E246,$F246,2016,$I246/10,1,$H246/10,$G246*$H246/10,RateRatios_accidents!$B$5)*10))","v":359.45290589199999},{"$f":"IF(AND(OR(Calculations!$E$2=\"Orkney Health Board\",Calculations!$E$2=\"Orkney Islands Local Authority\"),$F246=1),0,IF(AND(OR(Calculations!$E$2=\"Shetland Health Board\",Calculations!$E$2=\"Western Isles Health Board\",Calculations!$E$2=\"Shetland Islands Local Authority\",Calculations!$E$2=\"Eilean Siar Local Authority\"),OR($F246=1,$F246=5)),0,new_ci(VALUE(LEFT(Options!$B$14,2)),$C246,$E246,$F246,2016,$I246/10+$J246/10,1,$H246/10,$G246*$H246/10,RateRatios_accidents!$B$5)*10))","v":359.37595696199998},{"$f":"IF(AND(OR(Calculations!$E$2=\"Orkney Health Board\",Calculations!$E$2=\"Orkney Islands Local Authority\"),$F246=1),0,IF(AND(OR(Calculations!$E$2=\"Shetland Health Board\",Calculations!$E$2=\"Western Isles Health Board\",Calculations!$E$2=\"Shetland Islands Local Authority\",Calculations!$E$2=\"Eilean Siar Local Authority\"),OR($F246=1,$F246=5)),0,new_yllv2(VALUE(LEFT(Options!$B$14,2)),$C246,$D246,$E246,$F246,2016,$I246/10,1,$H246/10,$G246*$H246/10,RateRatios_accidents!$B$5)*10))","v":3037.3770547869999},{"$f":"IF(AND(OR(Calculations!$E$2=\"Orkney Health Board\",Calculations!$E$2=\"Orkney Islands Local Authority\"),$F246=1),0,IF(AND(OR(Calculations!$E$2=\"Shetland Health Board\",Calculations!$E$2=\"Western Isles Health Board\",Calculations!$E$2=\"Shetland Islands Local Authority\",Calculations!$E$2=\"Eilean Siar Local Authority\"),OR($F246=1,$F246=5)),0,new_yllv2(VALUE(LEFT(Options!$B$14,2)),$C246,$D246,$E246,$F246,2016,$I246/10+$J246/10,1,$H246/10,$G246*$H246/10,RateRatios_accidents!$B$5)*10))","v":3036.7268363289995},{"$f":"IF(AND(OR(Calculations!$E$2=\"Orkney Health Board\",Calculations!$E$2=\"Orkney Islands Local Authority\"),$F246=1),0,IF(AND(OR(Calculations!$E$2=\"Shetland Health Board\",Calculations!$E$2=\"Western Isles Health Board\",Calculations!$E$2=\"Shetland Islands Local Authority\",Calculations!$E$2=\"Eilean Siar Local Authority\"),OR($F246=1,$F246=5)),0,hosp_count(VALUE(LEFT(Options!$B$14,2)),$C246,$E246,$F246,2016,$I246/10,1,$H246/10,$G246*$H246/10, RateRatios_accidents!$B$4, RateRatios_accidents!$B$5)*10))","v":7206.5449118519991},{"$f":"IF(AND(OR(Calculations!$E$2=\"Orkney Health Board\",Calculations!$E$2=\"Orkney Islands Local Authority\"),$F246=1),0,IF(AND(OR(Calculations!$E$2=\"Shetland Health Board\",Calculations!$E$2=\"Western Isles Health Board\",Calculations!$E$2=\"Shetland Islands Local Authority\",Calculations!$E$2=\"Eilean Siar Local Authority\"),OR($F246=1,$F246=5)),0,hosp_count(VALUE(LEFT(Options!$B$14,2)),$C246,$E246,$F246,2016,$I246/10+$J246/10,1,$H246/10,$G246*$H246/10, RateRatios_accidents!$B$4, RateRatios_accidents!$B$5)*10))","v":7204.9850614340003},{"$f":"IF(AND(OR(Calculations!$E$2=\"Orkney Health Board\",Calculations!$E$2=\"Orkney Islands Local Authority\"),$F246=1),0,IF(AND(OR(Calculations!$E$2=\"Shetland Health Board\",Calculations!$E$2=\"Western Isles Health Board\",Calculations!$E$2=\"Shetland Islands Local Authority\",Calculations!$E$2=\"Eilean Siar Local Authority\"),OR($F246=1,$F246=5)),0,prem_mort(VALUE(LEFT(Options!$B$14,2)),$C246,$E246,$F246,2016,$I246/10,1,$H246/10,$G246*$H246/10,RateRatios_accidents!$B$5)*10))","v":0},{"$f":"IF(AND(OR(Calculations!$E$2=\"Orkney Health Board\",Calculations!$E$2=\"Orkney Islands Local Authority\"),$F246=1),0,IF(AND(OR(Calculations!$E$2=\"Shetland Health Board\",Calculations!$E$2=\"Western Isles Health Board\",Calculations!$E$2=\"Shetland Islands Local Authority\",Calculations!$E$2=\"Eilean Siar Local Authority\"),OR($F246=1,$F246=5)),0,prem_mort(VALUE(LEFT(Options!$B$14,2)),$C246,$E246,$F246,2016,$I246/10+$J246/10,1,$H246/10,$G246*$H246/10,RateRatios_accidents!$B$5)*10))","v":0},null,{"$f":"IF(AND(OR(Calculations!$E$2=\"Orkney Health Board\",Calculations!$E$2=\"Orkney Islands Local Authority\"),$F246=1),0,IF(AND(OR(Calculations!$E$2=\"Shetland Health Board\",Calculations!$E$2=\"Western Isles Health Board\",Calculations!$E$2=\"Shetland Islands Local Authority\",Calculations!$E$2=\"Eilean Siar Local Authority\"),OR($F246=1,$F246=5)),0,new_ci(VALUE(LEFT(Options!$B$14,2)),$C246,$E246,$F246,2016,$I246/10,1,$H246/10,$G246*$H246/10,RateRatios_airpollution!$C246)*10))","v":359.45290589199999},{"$f":"IF(AND(OR(Calculations!$E$2=\"Orkney Health Board\",Calculations!$E$2=\"Orkney Islands Local Authority\"),$F246=1),0,IF(AND(OR(Calculations!$E$2=\"Shetland Health Board\",Calculations!$E$2=\"Western Isles Health Board\",Calculations!$E$2=\"Shetland Islands Local Authority\",Calculations!$E$2=\"Eilean Siar Local Authority\"),OR($F246=1,$F246=5)),0,new_ci(VALUE(LEFT(Options!$B$14,2)),$C246,$E246,$F246,2016,$I246/10+$J246/10,1,$H246/10,$G246*$H246/10,RateRatios_airpollution!$C246)*10))","v":359.44877378999996},{"$f":"IF(AND(OR(Calculations!$E$2=\"Orkney Health Board\",Calculations!$E$2=\"Orkney Islands Local Authority\"),$F246=1),0,IF(AND(OR(Calculations!$E$2=\"Shetland Health Board\",Calculations!$E$2=\"Western Isles Health Board\",Calculations!$E$2=\"Shetland Islands Local Authority\",Calculations!$E$2=\"Eilean Siar Local Authority\"),OR($F246=1,$F246=5)),0,new_yllv2(VALUE(LEFT(Options!$B$14,2)),$C246,$D246,$E246,$F246,2016,$I246/10,1,$H246/10,$G246*$H246/10,RateRatios_airpollution!$C246)*10))","v":3037.3770547869999},{"$f":"IF(AND(OR(Calculations!$E$2=\"Orkney Health Board\",Calculations!$E$2=\"Orkney Islands Local Authority\"),$F246=1),0,IF(AND(OR(Calculations!$E$2=\"Shetland Health Board\",Calculations!$E$2=\"Western Isles Health Board\",Calculations!$E$2=\"Shetland Islands Local Authority\",Calculations!$E$2=\"Eilean Siar Local Authority\"),OR($F246=1,$F246=5)),0,new_yllv2(VALUE(LEFT(Options!$B$14,2)),$C246,$D246,$E246,$F246,2016,$I246/10+$J246/10,1,$H246/10,$G246*$H246/10,RateRatios_airpollution!$C246)*10))","v":3037.3421385260003},{"$f":"IF(AND(OR(Calculations!$E$2=\"Orkney Health Board\",Calculations!$E$2=\"Orkney Islands Local Authority\"),$F246=1),0,IF(AND(OR(Calculations!$E$2=\"Shetland Health Board\",Calculations!$E$2=\"Western Isles Health Board\",Calculations!$E$2=\"Shetland Islands Local Authority\",Calculations!$E$2=\"Eilean Siar Local Authority\"),OR($F246=1,$F246=5)),0,hosp_count(VALUE(LEFT(Options!$B$14,2)),$C246,$E246,$F246,2016,$I246/10,1,$H246/10,$G246*$H246/10, RateRatios_airpollution!$D246, RateRatios_airpollution!$C246)*10))","v":7206.5449118519991},{"$f":"IF(AND(OR(Calculations!$E$2=\"Orkney Health Board\",Calculations!$E$2=\"Orkney Islands Local Authority\"),$F246=1),0,IF(AND(OR(Calculations!$E$2=\"Shetland Health Board\",Calculations!$E$2=\"Western Isles Health Board\",Calculations!$E$2=\"Shetland Islands Local Authority\",Calculations!$E$2=\"Eilean Siar Local Authority\"),OR($F246=1,$F246=5)),0,hosp_count(VALUE(LEFT(Options!$B$14,2)),$C246,$E246,$F246,2016,$I246/10+$J246/10,1,$H246/10,$G246*$H246/10, RateRatios_airpollution!$D246, RateRatios_airpollution!$C246)*10))","v":7206.387111004},{"$f":"IF(AND(OR(Calculations!$E$2=\"Orkney Health Board\",Calculations!$E$2=\"Orkney Islands Local Authority\"),$F246=1),0,IF(AND(OR(Calculations!$E$2=\"Shetland Health Board\",Calculations!$E$2=\"Western Isles Health Board\",Calculations!$E$2=\"Shetland Islands Local Authority\",Calculations!$E$2=\"Eilean Siar Local Authority\"),OR($F246=1,$F246=5)),0,prem_mort(VALUE(LEFT(Options!$B$14,2)),$C246,$E246,$F246,2016,$I246/10,1,$H246/10,$G246*$H246/10,RateRatios_airpollution!$C246)*10))","v":0},{"$f":"IF(AND(OR(Calculations!$E$2=\"Orkney Health Board\",Calculations!$E$2=\"Orkney Islands Local Authority\"),$F246=1),0,IF(AND(OR(Calculations!$E$2=\"Shetland Health Board\",Calculations!$E$2=\"Western Isles Health Board\",Calculations!$E$2=\"Shetland Islands Local Authority\",Calculations!$E$2=\"Eilean Siar Local Authority\"),OR($F246=1,$F246=5)),0,prem_mort(VALUE(LEFT(Options!$B$14,2)),$C246,$E246,$F246,2016,$I246/10+$J246/10,1,$H246/10,$G246*$H246/10,RateRatios_airpollution!$C246)*10))","v":0},null,{"$f":"IF(AND(OR(Calculations!$E$2=\"Orkney Health Board\",Calculations!$E$2=\"Orkney Islands Local Authority\"),$F246=1),0,IF(AND(OR(Calculations!$E$2=\"Shetland Health Board\",Calculations!$E$2=\"Western Isles Health Board\",Calculations!$E$2=\"Shetland Islands Local Authority\",Calculations!$E$2=\"Eilean Siar Local Authority\"),OR($F246=1,$F246=5)),0,new_ci(VALUE(LEFT(Options!$B$14,2)),$C246,$E246,$F246,2016,$I246/10,1,$H246/10,$G246*$H246/10,RateRatios_airpollution!$E246)*10))","v":359.45290589199999},{"$f":"IF(AND(OR(Calculations!$E$2=\"Orkney Health Board\",Calculations!$E$2=\"Orkney Islands Local Authority\"),$F246=1),0,IF(AND(OR(Calculations!$E$2=\"Shetland Health Board\",Calculations!$E$2=\"Western Isles Health Board\",Calculations!$E$2=\"Shetland Islands Local Authority\",Calculations!$E$2=\"Eilean Siar Local Authority\"),OR($F246=1,$F246=5)),0,new_ci(VALUE(LEFT(Options!$B$14,2)),$C246,$E246,$F246,2016,$I246/10+$J246/10,1,$H246/10,$G246*$H246/10,RateRatios_airpollution!$E246)*10))","v":359.451010564},{"$f":"IF(AND(OR(Calculations!$E$2=\"Orkney Health Board\",Calculations!$E$2=\"Orkney Islands Local Authority\"),$F246=1),0,IF(AND(OR(Calculations!$E$2=\"Shetland Health Board\",Calculations!$E$2=\"Western Isles Health Board\",Calculations!$E$2=\"Shetland Islands Local Authority\",Calculations!$E$2=\"Eilean Siar Local Authority\"),OR($F246=1,$F246=5)),0,new_yllv2(VALUE(LEFT(Options!$B$14,2)),$C246,$D246,$E246,$F246,2016,$I246/10,1,$H246/10,$G246*$H246/10,RateRatios_airpollution!$E246)*10))","v":3037.3770547869999},{"$f":"IF(AND(OR(Calculations!$E$2=\"Orkney Health Board\",Calculations!$E$2=\"Orkney Islands Local Authority\"),$F246=1),0,IF(AND(OR(Calculations!$E$2=\"Shetland Health Board\",Calculations!$E$2=\"Western Isles Health Board\",Calculations!$E$2=\"Shetland Islands Local Authority\",Calculations!$E$2=\"Eilean Siar Local Authority\"),OR($F246=1,$F246=5)),0,new_yllv2(VALUE(LEFT(Options!$B$14,2)),$C246,$D246,$E246,$F246,2016,$I246/10+$J246/10,1,$H246/10,$G246*$H246/10,RateRatios_airpollution!$E246)*10))","v":3037.3610392659998},{"$f":"IF(AND(OR(Calculations!$E$2=\"Orkney Health Board\",Calculations!$E$2=\"Orkney Islands Local Authority\"),$F246=1),0,IF(AND(OR(Calculations!$E$2=\"Shetland Health Board\",Calculations!$E$2=\"Western Isles Health Board\",Calculations!$E$2=\"Shetland Islands Local Authority\",Calculations!$E$2=\"Eilean Siar Local Authority\"),OR($F246=1,$F246=5)),0,hosp_count(VALUE(LEFT(Options!$B$14,2)),$C246,$E246,$F246,2016,$I246/10,1,$H246/10,$G246*$H246/10, RateRatios_airpollution!$F246, RateRatios_airpollution!$E246)*10))","v":7206.5449118519991},{"$f":"IF(AND(OR(Calculations!$E$2=\"Orkney Health Board\",Calculations!$E$2=\"Orkney Islands Local Authority\"),$F246=1),0,IF(AND(OR(Calculations!$E$2=\"Shetland Health Board\",Calculations!$E$2=\"Western Isles Health Board\",Calculations!$E$2=\"Shetland Islands Local Authority\",Calculations!$E$2=\"Eilean Siar Local Authority\"),OR($F246=1,$F246=5)),0,hosp_count(VALUE(LEFT(Options!$B$14,2)),$C246,$E246,$F246,2016,$I246/10+$J246/10,1,$H246/10,$G246*$H246/10, RateRatios_airpollution!$F246, RateRatios_airpollution!$E246)*10))","v":7206.5449118519991},{"$f":"IF(AND(OR(Calculations!$E$2=\"Orkney Health Board\",Calculations!$E$2=\"Orkney Islands Local Authority\"),$F246=1),0,IF(AND(OR(Calculations!$E$2=\"Shetland Health Board\",Calculations!$E$2=\"Western Isles Health Board\",Calculations!$E$2=\"Shetland Islands Local Authority\",Calculations!$E$2=\"Eilean Siar Local Authority\"),OR($F246=1,$F246=5)),0,prem_mort(VALUE(LEFT(Options!$B$14,2)),$C246,$E246,$F246,2016,$I246/10,1,$H246/10,$G246*$H246/10,RateRatios_airpollution!$E246)*10))","v":0},{"$f":"IF(AND(OR(Calculations!$E$2=\"Orkney Health Board\",Calculations!$E$2=\"Orkney Islands Local Authority\"),$F246=1),0,IF(AND(OR(Calculations!$E$2=\"Shetland Health Board\",Calculations!$E$2=\"Western Isles Health Board\",Calculations!$E$2=\"Shetland Islands Local Authority\",Calculations!$E$2=\"Eilean Siar Local Authority\"),OR($F246=1,$F246=5)),0,prem_mort(VALUE(LEFT(Options!$B$14,2)),$C246,$E246,$F246,2016,$I246/10+$J246/10,1,$H246/10,$G246*$H246/10,RateRatios_airpollution!$E246)*10))","v":0},359.45290589199999,359.36992953199996,3037.3770547869999,3036.6759045469998,7206.5449118519991,7204.8272605860011,0,0,2181.8082299969651,2181.3045798603944,18436.279543471926,18432.023699830046,43742.305989996959,43731.880185650989,0,0,8727232.9199878611,8725218.3194415774,73745118.1738877,73728094.799320191,174969223.95998785,174927520.74260396,0,0,4000]
[null,"Male 80-84",81.797089,88.627089999999995,"male",5,1,{"$f":"HLOOKUP(Calculations!$E$2,'Population 2016'!$C$3:$BC$249,'Population 2016'!BD247,FALSE)","v":11823},0,{"$f":"HLOOKUP(Calculations!$E$2,Pop2016_in_settlements!$C$3:$BC$249,Pop2016_in_settlements!$BD247,FALSE)","v":6163},{"$f":"IF(AND(OR(Calculations!$E$2=\"Orkney Health Board\",Calculations!$E$2=\"Orkney Islands Local Authority\"),$F247=1),0,IF(AND(OR(Calculations!$E$2=\"Shetland Health Board\",Calculations!$E$2=\"Western Isles Health Board\",Calculations!$E$2=\"Shetland Islands Local Authority\",Calculations!$E$2=\"Eilean Siar Local Authority\"),OR($F247=1,$F247=5)),0,new_ci(VALUE(LEFT(Options!$B$14,2)),$C247,$E247,$F247,2016,$I247/10,1,$H247/10,$G247*$H247/10,RateRatios_accidents!$B$5)*10))","v":371.30396216999998},{"$f":"IF(AND(OR(Calculations!$E$2=\"Orkney Health Board\",Calculations!$E$2=\"Orkney Islands Local Authority\"),$F247=1),0,IF(AND(OR(Calculations!$E$2=\"Shetland Health Board\",Calculations!$E$2=\"Western Isles Health Board\",Calculations!$E$2=\"Shetland Islands Local Authority\",Calculations!$E$2=\"Eilean Siar Local Authority\"),OR($F247=1,$F247=5)),0,new_ci(VALUE(LEFT(Options!$B$14,2)),$C247,$E247,$F247,2016,$I247/10+$J247/10,1,$H247/10,$G247*$H247/10,RateRatios_accidents!$B$5)*10))","v":371.227770233},{"$f":"IF(AND(OR(Calculations!$E$2=\"Orkney Health Board\",Calculations!$E$2=\"Orkney Islands Local Authority\"),$F247=1),0,IF(AND(OR(Calculations!$E$2=\"Shetland Health Board\",Calculations!$E$2=\"Western Isles Health Board\",Calculations!$E$2=\"Shetland Islands Local Authority\",Calculations!$E$2=\"Eilean Siar Local Authority\"),OR($F247=1,$F247=5)),0,new_yllv2(VALUE(LEFT(Options!$B$14,2)),$C247,$D247,$E247,$F247,2016,$I247/10,1,$H247/10,$G247*$H247/10,RateRatios_accidents!$B$5)*10))","v":2164.7024707549999},{"$f":"IF(AND(OR(Calculations!$E$2=\"Orkney Health Board\",Calculations!$E$2=\"Orkney Islands Local Authority\"),$F247=1),0,IF(AND(OR(Calculations!$E$2=\"Shetland Health Board\",Calculations!$E$2=\"Western Isles Health Board\",Calculations!$E$2=\"Shetland Islands Local Authority\",Calculations!$E$2=\"Eilean Siar Local Authority\"),OR($F247=1,$F247=5)),0,new_yllv2(VALUE(LEFT(Options!$B$14,2)),$C247,$D247,$E247,$F247,2016,$I247/10+$J247/10,1,$H247/10,$G247*$H247/10,RateRatios_accidents!$B$5)*10))","v":2164.2582716859997},{"$f":"IF(AND(OR(Calculations!$E$2=\"Orkney Health Board\",Calculations!$E$2=\"Orkney Islands Local Authority\"),$F247=1),0,IF(AND(OR(Calculations!$E$2=\"Shetland Health Board\",Calculations!$E$2=\"Western Isles Health Board\",Calculations!$E$2=\"Shetland Islands Local Authority\",Calculations!$E$2=\"Eilean Siar Local Authority\"),OR($F247=1,$F247=5)),0,hosp_count(VALUE(LEFT(Options!$B$14,2)),$C247,$E247,$F247,2016,$I247/10,1,$H247/10,$G247*$H247/10, RateRatios_accidents!$B$4, RateRatios_accidents!$B$5)*10))","v":6151.7839448120003},{"$f":"IF(AND(OR(Calculations!$E$2=\"Orkney Health Board\",Calculations!$E$2=\"Orkney Islands Local Authority\"),$F247=1),0,IF(AND(OR(Calculations!$E$2=\"Shetland Health Board\",Calculations!$E$2=\"Western Isles Health Board\",Calculations!$E$2=\"Shetland Islands Local Authority\",Calculations!$E$2=\"Eilean Siar Local Authority\"),OR($F247=1,$F247=5)),0,hosp_count(VALUE(LEFT(Options!$B$14,2)),$C247,$E247,$F247,2016,$I247/10+$J247/10,1,$H247/10,$G247*$H247/10, RateRatios_accidents!$B$4, RateRatios_accidents!$B$5)*10))","v":6150.50124332},{"$f":"IF(AND(OR(Calculations!$E$2=\"Orkney Health Board\",Calculations!$E$2=\"Orkney Islands Local Authority\"),$F247=1),0,IF(AND(OR(Calculations!$E$2=\"Shetland Health Board\",Calculations!$E$2=\"Western Isles Health Board\",Calculations!$E$2=\"Shetland Islands Local Authority\",Calculations!$E$2=\"Eilean Siar Local Authority\"),OR($F247=1,$F247=5)),0,prem_mort(VALUE(LEFT(Options!$B$14,2)),$C247,$E247,$F247,2016,$I247/10,1,$H247/10,$G247*$H247/10,RateRatios_accidents!$B$5)*10))","v":0},{"$f":"IF(AND(OR(Calculations!$E$2=\"Orkney Health Board\",Calculations!$E$2=\"Orkney Islands Local Authority\"),$F247=1),0,IF(AND(OR(Calculations!$E$2=\"Shetland Health Board\",Calculations!$E$2=\"Western Isles Health Board\",Calculations!$E$2=\"Shetland Islands Local Authority\",Calculations!$E$2=\"Eilean Siar Local Authority\"),OR($F247=1,$F247=5)),0,prem_mort(VALUE(LEFT(Options!$B$14,2)),$C247,$E247,$F247,2016,$I247/10+$J247/10,1,$H247/10,$G247*$H247/10,RateRatios_accidents!$B$5)*10))","v":0},null,{"$f":"IF(AND(OR(Calculations!$E$2=\"Orkney Health Board\",Calculations!$E$2=\"Orkney Islands Local Authority\"),$F247=1),0,IF(AND(OR(Calculations!$E$2=\"Shetland Health Board\",Calculations!$E$2=\"Western Isles Health Board\",Calculations!$E$2=\"Shetland Islands Local Authority\",Calculations!$E$2=\"Eilean Siar Local Authority\"),OR($F247=1,$F247=5)),0,new_ci(VALUE(LEFT(Options!$B$14,2)),$C247,$E247,$F247,2016,$I247/10,1,$H247/10,$G247*$H247/10,RateRatios_airpollution!$C247)*10))","v":371.30396216999998},{"$f":"IF(AND(OR(Calculations!$E$2=\"Orkney Health Board\",Calculations!$E$2=\"Orkney Islands Local Authority\"),$F247=1),0,IF(AND(OR(Calculations!$E$2=\"Shetland Health Board\",Calculations!$E$2=\"Western Isles Health Board\",Calculations!$E$2=\"Shetland Islands Local Authority\",Calculations!$E$2=\"Eilean Siar Local Authority\"),OR($F247=1,$F247=5)),0,new_ci(VALUE(LEFT(Options!$B$14,2)),$C247,$E247,$F247,2016,$I247/10+$J247/10,1,$H247/10,$G247*$H247/10,RateRatios_airpollution!$C247)*10))","v":371.29974359599998},{"$f":"IF(AND(OR(Calculations!$E$2=\"Orkney Health Board\",Calculations!$E$2=\"Orkney Islands Local Authority\"),$F247=1),0,IF(AND(OR(Calculations!$E$2=\"Shetland Health Board\",Calculations!$E$2=\"Western Isles Health Board\",Calculations!$E$2=\"Shetland Islands Local Authority\",Calculations!$E$2=\"Eilean Siar Local Authority\"),OR($F247=1,$F247=5)),0,new_yllv2(VALUE(LEFT(Options!$B$14,2)),$C247,$D247,$E247,$F247,2016,$I247/10,1,$H247/10,$G247*$H247/10,RateRatios_airpollution!$C247)*10))","v":2164.7024707549999},{"$f":"IF(AND(OR(Calculations!$E$2=\"Orkney Health Board\",Calculations!$E$2=\"Orkney Islands Local Authority\"),$F247=1),0,IF(AND(OR(Calculations!$E$2=\"Shetland Health Board\",Calculations!$E$2=\"Western Isles Health Board\",Calculations!$E$2=\"Shetland Islands Local Authority\",Calculations!$E$2=\"Eilean Siar Local Authority\"),OR($F247=1,$F247=5)),0,new_yllv2(VALUE(LEFT(Options!$B$14,2)),$C247,$D247,$E247,$F247,2016,$I247/10+$J247/10,1,$H247/10,$G247*$H247/10,RateRatios_airpollution!$C247)*10))","v":2164.6778764640003},{"$f":"IF(AND(OR(Calculations!$E$2=\"Orkney Health Board\",Calculations!$E$2=\"Orkney Islands Local Authority\"),$F247=1),0,IF(AND(OR(Calculations!$E$2=\"Shetland Health Board\",Calculations!$E$2=\"Western Isles Health Board\",Calculations!$E$2=\"Shetland Islands Local Authority\",Calculations!$E$2=\"Eilean Siar Local Authority\"),OR($F247=1,$F247=5)),0,hosp_count(VALUE(LEFT(Options!$B$14,2)),$C247,$E247,$F247,2016,$I247/10,1,$H247/10,$G247*$H247/10, RateRatios_airpollution!$D247, RateRatios_airpollution!$C247)*10))","v":6151.7839448120003},{"$f":"IF(AND(OR(Calculations!$E$2=\"Orkney Health Board\",Calculations!$E$2=\"Orkney Islands Local Authority\"),$F247=1),0,IF(AND(OR(Calculations!$E$2=\"Shetland Health Board\",Calculations!$E$2=\"Western Isles Health Board\",Calculations!$E$2=\"Shetland Islands Local Authority\",Calculations!$E$2=\"Eilean Siar Local Authority\"),OR($F247=1,$F247=5)),0,hosp_count(VALUE(LEFT(Options!$B$14,2)),$C247,$E247,$F247,2016,$I247/10+$J247/10,1,$H247/10,$G247*$H247/10, RateRatios_airpollution!$D247, RateRatios_airpollution!$C247)*10))","v":6151.6501485469998},{"$f":"IF(AND(OR(Calculations!$E$2=\"Orkney Health Board\",Calculations!$E$2=\"Orkney Islands Local Authority\"),$F247=1),0,IF(AND(OR(Calculations!$E$2=\"Shetland Health Board\",Calculations!$E$2=\"Western Isles Health Board\",Calculations!$E$2=\"Shetland Islands Local Authority\",Calculations!$E$2=\"Eilean Siar Local Authority\"),OR($F247=1,$F247=5)),0,prem_mort(VALUE(LEFT(Options!$B$14,2)),$C247,$E247,$F247,2016,$I247/10,1,$H247/10,$G247*$H247/10,RateRatios_airpollution!$C247)*10))","v":0},{"$f":"IF(AND(OR(Calculations!$E$2=\"Orkney Health Board\",Calculations!$E$2=\"Orkney Islands Local Authority\"),$F247=1),0,IF(AND(OR(Calculations!$E$2=\"Shetland Health Board\",Calculations!$E$2=\"Western Isles Health Board\",Calculations!$E$2=\"Shetland Islands Local Authority\",Calculations!$E$2=\"Eilean Siar Local Authority\"),OR($F247=1,$F247=5)),0,prem_mort(VALUE(LEFT(Options!$B$14,2)),$C247,$E247,$F247,2016,$I247/10+$J247/10,1,$H247/10,$G247*$H247/10,RateRatios_airpollution!$C247)*10))","v":0},null,{"$f":"IF(AND(OR(Calculations!$E$2=\"Orkney Health Board\",Calculations!$E$2=\"Orkney Islands Local Authority\"),$F247=1),0,IF(AND(OR(Calculations!$E$2=\"Shetland Health Board\",Calculations!$E$2=\"Western Isles Health Board\",Calculations!$E$2=\"Shetland Islands Local Authority\",Calculations!$E$2=\"Eilean Siar Local Authority\"),OR($F247=1,$F247=5)),0,new_ci(VALUE(LEFT(Options!$B$14,2)),$C247,$E247,$F247,2016,$I247/10,1,$H247/10,$G247*$H247/10,RateRatios_airpollution!$E247)*10))","v":371.30396216999998},{"$f":"IF(AND(OR(Calculations!$E$2=\"Orkney Health Board\",Calculations!$E$2=\"Orkney Islands Local Authority\"),$F247=1),0,IF(AND(OR(Calculations!$E$2=\"Shetland Health Board\",Calculations!$E$2=\"Western Isles Health Board\",Calculations!$E$2=\"Shetland Islands Local Authority\",Calculations!$E$2=\"Eilean Siar Local Authority\"),OR($F247=1,$F247=5)),0,new_ci(VALUE(LEFT(Options!$B$14,2)),$C247,$E247,$F247,2016,$I247/10+$J247/10,1,$H247/10,$G247*$H247/10,RateRatios_airpollution!$E247)*10))","v":371.30201404499996},{"$f":"IF(AND(OR(Calculations!$E$2=\"Orkney Health Board\",Calculations!$E$2=\"Orkney Islands Local Authority\"),$F247=1),0,IF(AND(OR(Calculations!$E$2=\"Shetland Health Board\",Calculations!$E$2=\"Western Isles Health Board\",Calculations!$E$2=\"Shetland Islands Local Authority\",Calculations!$E$2=\"Eilean Siar Local Authority\"),OR($F247=1,$F247=5)),0,new_yllv2(VALUE(LEFT(Options!$B$14,2)),$C247,$D247,$E247,$F247,2016,$I247/10,1,$H247/10,$G247*$H247/10,RateRatios_airpollution!$E247)*10))","v":2164.7024707549999},{"$f":"IF(AND(OR(Calculations!$E$2=\"Orkney Health Board\",Calculations!$E$2=\"Orkney Islands Local Authority\"),$F247=1),0,IF(AND(OR(Calculations!$E$2=\"Shetland Health Board\",Calculations!$E$2=\"Western Isles Health Board\",Calculations!$E$2=\"Shetland Islands Local Authority\",Calculations!$E$2=\"Eilean Siar Local Authority\"),OR($F247=1,$F247=5)),0,new_yllv2(VALUE(LEFT(Options!$B$14,2)),$C247,$D247,$E247,$F247,2016,$I247/10+$J247/10,1,$H247/10,$G247*$H247/10,RateRatios_airpollution!$E247)*10))","v":2164.6911131839997},{"$f":"IF(AND(OR(Calculations!$E$2=\"Orkney Health Board\",Calculations!$E$2=\"Orkney Islands Local Authority\"),$F247=1),0,IF(AND(OR(Calculations!$E$2=\"Shetland Health Board\",Calculations!$E$2=\"Western Isles Health Board\",Calculations!$E$2=\"Shetland Islands Local Authority\",Calculations!$E$2=\"Eilean Siar Local Authority\"),OR($F247=1,$F247=5)),0,hosp_count(VALUE(LEFT(Options!$B$14,2)),$C247,$E247,$F247,2016,$I247/10,1,$H247/10,$G247*$H247/10, RateRatios_airpollution!$F247, RateRatios_airpollution!$E247)*10))","v":6151.7839448120003},{"$f":"IF(AND(OR(Calculations!$E$2=\"Orkney Health Board\",Calculations!$E$2=\"Orkney Islands Local Authority\"),$F247=1),0,IF(AND(OR(Calculations!$E$2=\"Shetland Health Board\",Calculations!$E$2=\"Western Isles Health Board\",Calculations!$E$2=\"Shetland Islands Local Authority\",Calculations!$E$2=\"Eilean Siar Local Authority\"),OR($F247=1,$F247=5)),0,hosp_count(VALUE(LEFT(Options!$B$14,2)),$C247,$E247,$F247,2016,$I247/10+$J247/10,1,$H247/10,$G247*$H247/10, RateRatios_airpollution!$F247, RateRatios_airpollution!$E247)*10))","v":6151.7839448120003},{"$f":"IF(AND(OR(Calculations!$E$2=\"Orkney Health Board\",Calculations!$E$2=\"Orkney Islands Local Authority\"),$F247=1),0,IF(AND(OR(Calculations!$E$2=\"Shetland Health Board\",Calculations!$E$2=\"Western Isles Health Board\",Calculations!$E$2=\"Shetland Islands Local Authority\",Calculations!$E$2=\"Eilean Siar Local Authority\"),OR($F247=1,$F247=5)),0,prem_mort(VALUE(LEFT(Options!$B$14,2)),$C247,$E247,$F247,2016,$I247/10,1,$H247/10,$G247*$H247/10,RateRatios_airpollution!$E247)*10))","v":0},{"$f":"IF(AND(OR(Calculations!$E$2=\"Orkney Health Board\",Calculations!$E$2=\"Orkney Islands Local Authority\"),$F247=1),0,IF(AND(OR(Calculations!$E$2=\"Shetland Health Board\",Calculations!$E$2=\"Western Isles Health Board\",Calculations!$E$2=\"Shetland Islands Local Authority\",Calculations!$E$2=\"Eilean Siar Local Authority\"),OR($F247=1,$F247=5)),0,prem_mort(VALUE(LEFT(Options!$B$14,2)),$C247,$E247,$F247,2016,$I247/10+$J247/10,1,$H247/10,$G247*$H247/10,RateRatios_airpollution!$E247)*10))","v":0},371.30396216999998,371.221603534,2164.7024707549999,2164.2223198239999,6151.7839448120003,6150.3674470549995,0,0,3140.5223900025376,3139.8257932335277,18309.248674236656,18305.187514370296,52032.343269999154,52020.362404254418,0,0,7851305.9750063438,7849564.483083819,45773121.685591638,45762968.785925739,130080858.17499788,130050906.01063605,0,0,2500]
[null,"Male 85-89",86.630752999999999,91.420750000000012,"male",5,1,{"$f":"HLOOKUP(Calculations!$E$2,'Population 2016'!$C$3:$BC$249,'Population 2016'!BD248,FALSE)","v":6067},0,{"$f":"HLOOKUP(Calculations!$E$2,Pop2016_in_settlements!$C$3:$BC$249,Pop2016_in_settlements!$BD248,FALSE)","v":3064},{"$f":"IF(AND(OR(Calculations!$E$2=\"Orkney Health Board\",Calculations!$E$2=\"Orkney Islands Local Authority\"),$F248=1),0,IF(AND(OR(Calculations!$E$2=\"Shetland Health Board\",Calculations!$E$2=\"Western Isles Health Board\",Calculations!$E$2=\"Shetland Islands Local Authority\",Calculations!$E$2=\"Eilean Siar Local Authority\"),OR($F248=1,$F248=5)),0,new_ci(VALUE(LEFT(Options!$B$14,2)),$C248,$E248,$F248,2016,$I248/10,1,$H248/10,$G248*$H248/10,RateRatios_accidents!$B$5)*10))","v":272.54073229599999},{"$f":"IF(AND(OR(Calculations!$E$2=\"Orkney Health Board\",Calculations!$E$2=\"Orkney Islands Local Authority\"),$F248=1),0,IF(AND(OR(Calculations!$E$2=\"Shetland Health Board\",Calculations!$E$2=\"Western Isles Health Board\",Calculations!$E$2=\"Shetland Islands Local Authority\",Calculations!$E$2=\"Eilean Siar Local Authority\"),OR($F248=1,$F248=5)),0,new_ci(VALUE(LEFT(Options!$B$14,2)),$C248,$E248,$F248,2016,$I248/10+$J248/10,1,$H248/10,$G248*$H248/10,RateRatios_accidents!$B$5)*10))","v":272.48693121399998},{"$f":"IF(AND(OR(Calculations!$E$2=\"Orkney Health Board\",Calculations!$E$2=\"Orkney Islands Local Authority\"),$F248=1),0,IF(AND(OR(Calculations!$E$2=\"Shetland Health Board\",Calculations!$E$2=\"Western Isles Health Board\",Calculations!$E$2=\"Shetland Islands Local Authority\",Calculations!$E$2=\"Eilean Siar Local Authority\"),OR($F248=1,$F248=5)),0,new_yllv2(VALUE(LEFT(Options!$B$14,2)),$C248,$D248,$E248,$F248,2016,$I248/10,1,$H248/10,$G248*$H248/10,RateRatios_accidents!$B$5)*10))","v":1032.9285577800001},{"$f":"IF(AND(OR(Calculations!$E$2=\"Orkney Health Board\",Calculations!$E$2=\"Orkney Islands Local Authority\"),$F248=1),0,IF(AND(OR(Calculations!$E$2=\"Shetland Health Board\",Calculations!$E$2=\"Western Isles Health Board\",Calculations!$E$2=\"Shetland Islands Local Authority\",Calculations!$E$2=\"Eilean Siar Local Authority\"),OR($F248=1,$F248=5)),0,new_yllv2(VALUE(LEFT(Options!$B$14,2)),$C248,$D248,$E248,$F248,2016,$I248/10+$J248/10,1,$H248/10,$G248*$H248/10,RateRatios_accidents!$B$5)*10))","v":1032.72465184},{"$f":"IF(AND(OR(Calculations!$E$2=\"Orkney Health Board\",Calculations!$E$2=\"Orkney Islands Local Authority\"),$F248=1),0,IF(AND(OR(Calculations!$E$2=\"Shetland Health Board\",Calculations!$E$2=\"Western Isles Health Board\",Calculations!$E$2=\"Shetland Islands Local Authority\",Calculations!$E$2=\"Eilean Siar Local Authority\"),OR($F248=1,$F248=5)),0,hosp_count(VALUE(LEFT(Options!$B$14,2)),$C248,$E248,$F248,2016,$I248/10,1,$H248/10,$G248*$H248/10, RateRatios_accidents!$B$4, RateRatios_accidents!$B$5)*10))","v":3747.6590122039997},{"$f":"IF(AND(OR(Calculations!$E$2=\"Orkney Health Board\",Calculations!$E$2=\"Orkney Islands Local Authority\"),$F248=1),0,IF(AND(OR(Calculations!$E$2=\"Shetland Health Board\",Calculations!$E$2=\"Western Isles Health Board\",Calculations!$E$2=\"Shetland Islands Local Authority\",Calculations!$E$2=\"Eilean Siar Local Authority\"),OR($F248=1,$F248=5)),0,hosp_count(VALUE(LEFT(Options!$B$14,2)),$C248,$E248,$F248,2016,$I248/10+$J248/10,1,$H248/10,$G248*$H248/10, RateRatios_accidents!$B$4, RateRatios_accidents!$B$5)*10))","v":3746.9019443759998},{"$f":"IF(AND(OR(Calculations!$E$2=\"Orkney Health Board\",Calculations!$E$2=\"Orkney Islands Local Authority\"),$F248=1),0,IF(AND(OR(Calculations!$E$2=\"Shetland Health Board\",Calculations!$E$2=\"Western Isles Health Board\",Calculations!$E$2=\"Shetland Islands Local Authority\",Calculations!$E$2=\"Eilean Siar Local Authority\"),OR($F248=1,$F248=5)),0,prem_mort(VALUE(LEFT(Options!$B$14,2)),$C248,$E248,$F248,2016,$I248/10,1,$H248/10,$G248*$H248/10,RateRatios_accidents!$B$5)*10))","v":0},{"$f":"IF(AND(OR(Calculations!$E$2=\"Orkney Health Board\",Calculations!$E$2=\"Orkney Islands Local Authority\"),$F248=1),0,IF(AND(OR(Calculations!$E$2=\"Shetland Health Board\",Calculations!$E$2=\"Western Isles Health Board\",Calculations!$E$2=\"Shetland Islands Local Authority\",Calculations!$E$2=\"Eilean Siar Local Authority\"),OR($F248=1,$F248=5)),0,prem_mort(VALUE(LEFT(Options!$B$14,2)),$C248,$E248,$F248,2016,$I248/10+$J248/10,1,$H248/10,$G248*$H248/10,RateRatios_accidents!$B$5)*10))","v":0},null,{"$f":"IF(AND(OR(Calculations!$E$2=\"Orkney Health Board\",Calculations!$E$2=\"Orkney Islands Local Authority\"),$F248=1),0,IF(AND(OR(Calculations!$E$2=\"Shetland Health Board\",Calculations!$E$2=\"Western Isles Health Board\",Calculations!$E$2=\"Shetland Islands Local Authority\",Calculations!$E$2=\"Eilean Siar Local Authority\"),OR($F248=1,$F248=5)),0,new_ci(VALUE(LEFT(Options!$B$14,2)),$C248,$E248,$F248,2016,$I248/10,1,$H248/10,$G248*$H248/10,RateRatios_airpollution!$C248)*10))","v":272.54073229599999},{"$f":"IF(AND(OR(Calculations!$E$2=\"Orkney Health Board\",Calculations!$E$2=\"Orkney Islands Local Authority\"),$F248=1),0,IF(AND(OR(Calculations!$E$2=\"Shetland Health Board\",Calculations!$E$2=\"Western Isles Health Board\",Calculations!$E$2=\"Shetland Islands Local Authority\",Calculations!$E$2=\"Eilean Siar Local Authority\"),OR($F248=1,$F248=5)),0,new_ci(VALUE(LEFT(Options!$B$14,2)),$C248,$E248,$F248,2016,$I248/10+$J248/10,1,$H248/10,$G248*$H248/10,RateRatios_airpollution!$C248)*10))","v":272.53767350499999},{"$f":"IF(AND(OR(Calculations!$E$2=\"Orkney Health Board\",Calculations!$E$2=\"Orkney Islands Local Authority\"),$F248=1),0,IF(AND(OR(Calculations!$E$2=\"Shetland Health Board\",Calculations!$E$2=\"Western Isles Health Board\",Calculations!$E$2=\"Shetland Islands Local Authority\",Calculations!$E$2=\"Eilean Siar Local Authority\"),OR($F248=1,$F248=5)),0,new_yllv2(VALUE(LEFT(Options!$B$14,2)),$C248,$D248,$E248,$F248,2016,$I248/10,1,$H248/10,$G248*$H248/10,RateRatios_airpollution!$C248)*10))","v":1032.9285577800001},{"$f":"IF(AND(OR(Calculations!$E$2=\"Orkney Health Board\",Calculations!$E$2=\"Orkney Islands Local Authority\"),$F248=1),0,IF(AND(OR(Calculations!$E$2=\"Shetland Health Board\",Calculations!$E$2=\"Western Isles Health Board\",Calculations!$E$2=\"Shetland Islands Local Authority\",Calculations!$E$2=\"Eilean Siar Local Authority\"),OR($F248=1,$F248=5)),0,new_yllv2(VALUE(LEFT(Options!$B$14,2)),$C248,$D248,$E248,$F248,2016,$I248/10+$J248/10,1,$H248/10,$G248*$H248/10,RateRatios_airpollution!$C248)*10))","v":1032.916964971},{"$f":"IF(AND(OR(Calculations!$E$2=\"Orkney Health Board\",Calculations!$E$2=\"Orkney Islands Local Authority\"),$F248=1),0,IF(AND(OR(Calculations!$E$2=\"Shetland Health Board\",Calculations!$E$2=\"Western Isles Health Board\",Calculations!$E$2=\"Shetland Islands Local Authority\",Calculations!$E$2=\"Eilean Siar Local Authority\"),OR($F248=1,$F248=5)),0,hosp_count(VALUE(LEFT(Options!$B$14,2)),$C248,$E248,$F248,2016,$I248/10,1,$H248/10,$G248*$H248/10, RateRatios_airpollution!$D248, RateRatios_airpollution!$C248)*10))","v":3747.6590122039997},{"$f":"IF(AND(OR(Calculations!$E$2=\"Orkney Health Board\",Calculations!$E$2=\"Orkney Islands Local Authority\"),$F248=1),0,IF(AND(OR(Calculations!$E$2=\"Shetland Health Board\",Calculations!$E$2=\"Western Isles Health Board\",Calculations!$E$2=\"Shetland Islands Local Authority\",Calculations!$E$2=\"Eilean Siar Local Authority\"),OR($F248=1,$F248=5)),0,hosp_count(VALUE(LEFT(Options!$B$14,2)),$C248,$E248,$F248,2016,$I248/10+$J248/10,1,$H248/10,$G248*$H248/10, RateRatios_airpollution!$D248, RateRatios_airpollution!$C248)*10))","v":3747.5779209920001},{"$f":"IF(AND(OR(Calculations!$E$2=\"Orkney Health Board\",Calculations!$E$2=\"Orkney Islands Local Authority\"),$F248=1),0,IF(AND(OR(Calculations!$E$2=\"Shetland Health Board\",Calculations!$E$2=\"Western Isles Health Board\",Calculations!$E$2=\"Shetland Islands Local Authority\",Calculations!$E$2=\"Eilean Siar Local Authority\"),OR($F248=1,$F248=5)),0,prem_mort(VALUE(LEFT(Options!$B$14,2)),$C248,$E248,$F248,2016,$I248/10,1,$H248/10,$G248*$H248/10,RateRatios_airpollution!$C248)*10))","v":0},{"$f":"IF(AND(OR(Calculations!$E$2=\"Orkney Health Board\",Calculations!$E$2=\"Orkney Islands Local Authority\"),$F248=1),0,IF(AND(OR(Calculations!$E$2=\"Shetland Health Board\",Calculations!$E$2=\"Western Isles Health Board\",Calculations!$E$2=\"Shetland Islands Local Authority\",Calculations!$E$2=\"Eilean Siar Local Authority\"),OR($F248=1,$F248=5)),0,prem_mort(VALUE(LEFT(Options!$B$14,2)),$C248,$E248,$F248,2016,$I248/10+$J248/10,1,$H248/10,$G248*$H248/10,RateRatios_airpollution!$C248)*10))","v":0},null,{"$f":"IF(AND(OR(Calculations!$E$2=\"Orkney Health Board\",Calculations!$E$2=\"Orkney Islands Local Authority\"),$F248=1),0,IF(AND(OR(Calculations!$E$2=\"Shetland Health Board\",Calculations!$E$2=\"Western Isles Health Board\",Calculations!$E$2=\"Shetland Islands Local Authority\",Calculations!$E$2=\"Eilean Siar Local Authority\"),OR($F248=1,$F248=5)),0,new_ci(VALUE(LEFT(Options!$B$14,2)),$C248,$E248,$F248,2016,$I248/10,1,$H248/10,$G248*$H248/10,RateRatios_airpollution!$E248)*10))","v":272.54073229599999},{"$f":"IF(AND(OR(Calculations!$E$2=\"Orkney Health Board\",Calculations!$E$2=\"Orkney Islands Local Authority\"),$F248=1),0,IF(AND(OR(Calculations!$E$2=\"Shetland Health Board\",Calculations!$E$2=\"Western Isles Health Board\",Calculations!$E$2=\"Shetland Islands Local Authority\",Calculations!$E$2=\"Eilean Siar Local Authority\"),OR($F248=1,$F248=5)),0,new_ci(VALUE(LEFT(Options!$B$14,2)),$C248,$E248,$F248,2016,$I248/10+$J248/10,1,$H248/10,$G248*$H248/10,RateRatios_airpollution!$E248)*10))","v":272.53933051600001},{"$f":"IF(AND(OR(Calculations!$E$2=\"Orkney Health Board\",Calculations!$E$2=\"Orkney Islands Local Authority\"),$F248=1),0,IF(AND(OR(Calculations!$E$2=\"Shetland Health Board\",Calculations!$E$2=\"Western Isles Health Board\",Calculations!$E$2=\"Shetland Islands Local Authority\",Calculations!$E$2=\"Eilean Siar Local Authority\"),OR($F248=1,$F248=5)),0,new_yllv2(VALUE(LEFT(Options!$B$14,2)),$C248,$D248,$E248,$F248,2016,$I248/10,1,$H248/10,$G248*$H248/10,RateRatios_airpollution!$E248)*10))","v":1032.9285577800001},{"$f":"IF(AND(OR(Calculations!$E$2=\"Orkney Health Board\",Calculations!$E$2=\"Orkney Islands Local Authority\"),$F248=1),0,IF(AND(OR(Calculations!$E$2=\"Shetland Health Board\",Calculations!$E$2=\"Western Isles Health Board\",Calculations!$E$2=\"Shetland Islands Local Authority\",Calculations!$E$2=\"Eilean Siar Local Authority\"),OR($F248=1,$F248=5)),0,new_yllv2(VALUE(LEFT(Options!$B$14,2)),$C248,$D248,$E248,$F248,2016,$I248/10+$J248/10,1,$H248/10,$G248*$H248/10,RateRatios_airpollution!$E248)*10))","v":1032.923245038},{"$f":"IF(AND(OR(Calculations!$E$2=\"Orkney Health Board\",Calculations!$E$2=\"Orkney Islands Local Authority\"),$F248=1),0,IF(AND(OR(Calculations!$E$2=\"Shetland Health Board\",Calculations!$E$2=\"Western Isles Health Board\",Calculations!$E$2=\"Shetland Islands Local Authority\",Calculations!$E$2=\"Eilean Siar Local Authority\"),OR($F248=1,$F248=5)),0,hosp_count(VALUE(LEFT(Options!$B$14,2)),$C248,$E248,$F248,2016,$I248/10,1,$H248/10,$G248*$H248/10, RateRatios_airpollution!$F248, RateRatios_airpollution!$E248)*10))","v":3747.6590122039997},{"$f":"IF(AND(OR(Calculations!$E$2=\"Orkney Health Board\",Calculations!$E$2=\"Orkney Islands Local Authority\"),$F248=1),0,IF(AND(OR(Calculations!$E$2=\"Shetland Health Board\",Calculations!$E$2=\"Western Isles Health Board\",Calculations!$E$2=\"Shetland Islands Local Authority\",Calculations!$E$2=\"Eilean Siar Local Authority\"),OR($F248=1,$F248=5)),0,hosp_count(VALUE(LEFT(Options!$B$14,2)),$C248,$E248,$F248,2016,$I248/10+$J248/10,1,$H248/10,$G248*$H248/10, RateRatios_airpollution!$F248, RateRatios_airpollution!$E248)*10))","v":3747.6590122039997},{"$f":"IF(AND(OR(Calculations!$E$2=\"Orkney Health Board\",Calculations!$E$2=\"Orkney Islands Local Authority\"),$F248=1),0,IF(AND(OR(Calculations!$E$2=\"Shetland Health Board\",Calculations!$E$2=\"Western Isles Health Board\",Calculations!$E$2=\"Shetland Islands Local Authority\",Calculations!$E$2=\"Eilean Siar Local Authority\"),OR($F248=1,$F248=5)),0,prem_mort(VALUE(LEFT(Options!$B$14,2)),$C248,$E248,$F248,2016,$I248/10,1,$H248/10,$G248*$H248/10,RateRatios_airpollution!$E248)*10))","v":0},{"$f":"IF(AND(OR(Calculations!$E$2=\"Orkney Health Board\",Calculations!$E$2=\"Orkney Islands Local Authority\"),$F248=1),0,IF(AND(OR(Calculations!$E$2=\"Shetland Health Board\",Calculations!$E$2=\"Western Isles Health Board\",Calculations!$E$2=\"Shetland Islands Local Authority\",Calculations!$E$2=\"Eilean Siar Local Authority\"),OR($F248=1,$F248=5)),0,prem_mort(VALUE(LEFT(Options!$B$14,2)),$C248,$E248,$F248,2016,$I248/10+$J248/10,1,$H248/10,$G248*$H248/10,RateRatios_airpollution!$E248)*10))","v":0},272.54073229599999,272.482470643,1032.9285577800001,1032.7077462889997,3747.6590122039997,3746.8208531640003,0,0,4492.1828299983517,4491.2225258447343,17025.359449151147,17021.719899274762,61771.205080006592,61757.390030723596,0,0,6738274.2449975275,6736833.7887671012,25538039.173726719,25532579.848912142,92656807.620009884,92636085.046085387,0,0,1500]
[null,"Male 90+",92.215477000000007,95.515479999999997,"male",5,1,{"$f":"HLOOKUP(Calculations!$E$2,'Population 2016'!$C$3:$BC$249,'Population 2016'!BD249,FALSE)","v":2678},0,{"$f":"HLOOKUP(Calculations!$E$2,Pop2016_in_settlements!$C$3:$BC$249,Pop2016_in_settlements!$BD249,FALSE)","v":1358},{"$f":"IF(AND(OR(Calculations!$E$2=\"Orkney Health Board\",Calculations!$E$2=\"Orkney Islands Local Authority\"),$F249=1),0,IF(AND(OR(Calculations!$E$2=\"Shetland Health Board\",Calculations!$E$2=\"Western Isles Health Board\",Calculations!$E$2=\"Shetland Islands Local Authority\",Calculations!$E$2=\"Eilean Siar Local Authority\"),OR($F249=1,$F249=5)),0,new_ci(VALUE(LEFT(Options!$B$14,2)),$C249,$E249,$F249,2016,$I249/10,1,$H249/10,$G249*$H249/10,RateRatios_accidents!$B$5)*10))","v":181.21643072800001},{"$f":"IF(AND(OR(Calculations!$E$2=\"Orkney Health Board\",Calculations!$E$2=\"Orkney Islands Local Authority\"),$F249=1),0,IF(AND(OR(Calculations!$E$2=\"Shetland Health Board\",Calculations!$E$2=\"Western Isles Health Board\",Calculations!$E$2=\"Shetland Islands Local Authority\",Calculations!$E$2=\"Eilean Siar Local Authority\"),OR($F249=1,$F249=5)),0,new_ci(VALUE(LEFT(Options!$B$14,2)),$C249,$E249,$F249,2016,$I249/10+$J249/10,1,$H249/10,$G249*$H249/10,RateRatios_accidents!$B$5)*10))","v":181.180945237},{"$f":"IF(AND(OR(Calculations!$E$2=\"Orkney Health Board\",Calculations!$E$2=\"Orkney Islands Local Authority\"),$F249=1),0,IF(AND(OR(Calculations!$E$2=\"Shetland Health Board\",Calculations!$E$2=\"Western Isles Health Board\",Calculations!$E$2=\"Shetland Islands Local Authority\",Calculations!$E$2=\"Eilean Siar Local Authority\"),OR($F249=1,$F249=5)),0,new_yllv2(VALUE(LEFT(Options!$B$14,2)),$C249,$D249,$E249,$F249,2016,$I249/10,1,$H249/10,$G249*$H249/10,RateRatios_accidents!$B$5)*10))","v":416.79833432400005},{"$f":"IF(AND(OR(Calculations!$E$2=\"Orkney Health Board\",Calculations!$E$2=\"Orkney Islands Local Authority\"),$F249=1),0,IF(AND(OR(Calculations!$E$2=\"Shetland Health Board\",Calculations!$E$2=\"Western Isles Health Board\",Calculations!$E$2=\"Shetland Islands Local Authority\",Calculations!$E$2=\"Eilean Siar Local Authority\"),OR($F249=1,$F249=5)),0,new_yllv2(VALUE(LEFT(Options!$B$14,2)),$C249,$D249,$E249,$F249,2016,$I249/10+$J249/10,1,$H249/10,$G249*$H249/10,RateRatios_accidents!$B$5)*10))","v":416.71671758800005},{"$f":"IF(AND(OR(Calculations!$E$2=\"Orkney Health Board\",Calculations!$E$2=\"Orkney Islands Local Authority\"),$F249=1),0,IF(AND(OR(Calculations!$E$2=\"Shetland Health Board\",Calculations!$E$2=\"Western Isles Health Board\",Calculations!$E$2=\"Shetland Islands Local Authority\",Calculations!$E$2=\"Eilean Siar Local Authority\"),OR($F249=1,$F249=5)),0,hosp_count(VALUE(LEFT(Options!$B$14,2)),$C249,$E249,$F249,2016,$I249/10,1,$H249/10,$G249*$H249/10, RateRatios_accidents!$B$4, RateRatios_accidents!$B$5)*10))","v":2016.9131573990001},{"$f":"IF(AND(OR(Calculations!$E$2=\"Orkney Health Board\",Calculations!$E$2=\"Orkney Islands Local Authority\"),$F249=1),0,IF(AND(OR(Calculations!$E$2=\"Shetland Health Board\",Calculations!$E$2=\"Western Isles Health Board\",Calculations!$E$2=\"Shetland Islands Local Authority\",Calculations!$E$2=\"Eilean Siar Local Authority\"),OR($F249=1,$F249=5)),0,hosp_count(VALUE(LEFT(Options!$B$14,2)),$C249,$E249,$F249,2016,$I249/10+$J249/10,1,$H249/10,$G249*$H249/10, RateRatios_accidents!$B$4, RateRatios_accidents!$B$5)*10))","v":2016.5040509369999},{"$f":"IF(AND(OR(Calculations!$E$2=\"Orkney Health Board\",Calculations!$E$2=\"Orkney Islands Local Authority\"),$F249=1),0,IF(AND(OR(Calculations!$E$2=\"Shetland Health Board\",Calculations!$E$2=\"Western Isles Health Board\",Calculations!$E$2=\"Shetland Islands Local Authority\",Calculations!$E$2=\"Eilean Siar Local Authority\"),OR($F249=1,$F249=5)),0,prem_mort(VALUE(LEFT(Options!$B$14,2)),$C249,$E249,$F249,2016,$I249/10,1,$H249/10,$G249*$H249/10,RateRatios_accidents!$B$5)*10))","v":0},{"$f":"IF(AND(OR(Calculations!$E$2=\"Orkney Health Board\",Calculations!$E$2=\"Orkney Islands Local Authority\"),$F249=1),0,IF(AND(OR(Calculations!$E$2=\"Shetland Health Board\",Calculations!$E$2=\"Western Isles Health Board\",Calculations!$E$2=\"Shetland Islands Local Authority\",Calculations!$E$2=\"Eilean Siar Local Authority\"),OR($F249=1,$F249=5)),0,prem_mort(VALUE(LEFT(Options!$B$14,2)),$C249,$E249,$F249,2016,$I249/10+$J249/10,1,$H249/10,$G249*$H249/10,RateRatios_accidents!$B$5)*10))","v":0},null,{"$f":"IF(AND(OR(Calculations!$E$2=\"Orkney Health Board\",Calculations!$E$2=\"Orkney Islands Local Authority\"),$F249=1),0,IF(AND(OR(Calculations!$E$2=\"Shetland Health Board\",Calculations!$E$2=\"Western Isles Health Board\",Calculations!$E$2=\"Shetland Islands Local Authority\",Calculations!$E$2=\"Eilean Siar Local Authority\"),OR($F249=1,$F249=5)),0,new_ci(VALUE(LEFT(Options!$B$14,2)),$C249,$E249,$F249,2016,$I249/10,1,$H249/10,$G249*$H249/10,RateRatios_airpollution!$C249)*10))","v":181.21643072800001},{"$f":"IF(AND(OR(Calculations!$E$2=\"Orkney Health Board\",Calculations!$E$2=\"Orkney Islands Local Authority\"),$F249=1),0,IF(AND(OR(Calculations!$E$2=\"Shetland Health Board\",Calculations!$E$2=\"Western Isles Health Board\",Calculations!$E$2=\"Shetland Islands Local Authority\",Calculations!$E$2=\"Eilean Siar Local Authority\"),OR($F249=1,$F249=5)),0,new_ci(VALUE(LEFT(Options!$B$14,2)),$C249,$E249,$F249,2016,$I249/10+$J249/10,1,$H249/10,$G249*$H249/10,RateRatios_airpollution!$C249)*10))","v":181.21431061799998},{"$f":"IF(AND(OR(Calculations!$E$2=\"Orkney Health Board\",Calculations!$E$2=\"Orkney Islands Local Authority\"),$F249=1),0,IF(AND(OR(Calculations!$E$2=\"Shetland Health Board\",Calculations!$E$2=\"Western Isles Health Board\",Calculations!$E$2=\"Shetland Islands Local Authority\",Calculations!$E$2=\"Eilean Siar Local Authority\"),OR($F249=1,$F249=5)),0,new_yllv2(VALUE(LEFT(Options!$B$14,2)),$C249,$D249,$E249,$F249,2016,$I249/10,1,$H249/10,$G249*$H249/10,RateRatios_airpollution!$C249)*10))","v":416.79833432400005},{"$f":"IF(AND(OR(Calculations!$E$2=\"Orkney Health Board\",Calculations!$E$2=\"Orkney Islands Local Authority\"),$F249=1),0,IF(AND(OR(Calculations!$E$2=\"Shetland Health Board\",Calculations!$E$2=\"Western Isles Health Board\",Calculations!$E$2=\"Shetland Islands Local Authority\",Calculations!$E$2=\"Eilean Siar Local Authority\"),OR($F249=1,$F249=5)),0,new_yllv2(VALUE(LEFT(Options!$B$14,2)),$C249,$D249,$E249,$F249,2016,$I249/10+$J249/10,1,$H249/10,$G249*$H249/10,RateRatios_airpollution!$C249)*10))","v":416.79345806399999},{"$f":"IF(AND(OR(Calculations!$E$2=\"Orkney Health Board\",Calculations!$E$2=\"Orkney Islands Local Authority\"),$F249=1),0,IF(AND(OR(Calculations!$E$2=\"Shetland Health Board\",Calculations!$E$2=\"Western Isles Health Board\",Calculations!$E$2=\"Shetland Islands Local Authority\",Calculations!$E$2=\"Eilean Siar Local Authority\"),OR($F249=1,$F249=5)),0,hosp_count(VALUE(LEFT(Options!$B$14,2)),$C249,$E249,$F249,2016,$I249/10,1,$H249/10,$G249*$H249/10, RateRatios_airpollution!$D249, RateRatios_airpollution!$C249)*10))","v":2016.9131573990001},{"$f":"IF(AND(OR(Calculations!$E$2=\"Orkney Health Board\",Calculations!$E$2=\"Orkney Islands Local Authority\"),$F249=1),0,IF(AND(OR(Calculations!$E$2=\"Shetland Health Board\",Calculations!$E$2=\"Western Isles Health Board\",Calculations!$E$2=\"Shetland Islands Local Authority\",Calculations!$E$2=\"Eilean Siar Local Authority\"),OR($F249=1,$F249=5)),0,hosp_count(VALUE(LEFT(Options!$B$14,2)),$C249,$E249,$F249,2016,$I249/10+$J249/10,1,$H249/10,$G249*$H249/10, RateRatios_airpollution!$D249, RateRatios_airpollution!$C249)*10))","v":2016.8671100639999},{"$f":"IF(AND(OR(Calculations!$E$2=\"Orkney Health Board\",Calculations!$E$2=\"Orkney Islands Local Authority\"),$F249=1),0,IF(AND(OR(Calculations!$E$2=\"Shetland Health Board\",Calculations!$E$2=\"Western Isles Health Board\",Calculations!$E$2=\"Shetland Islands Local Authority\",Calculations!$E$2=\"Eilean Siar Local Authority\"),OR($F249=1,$F249=5)),0,prem_mort(VALUE(LEFT(Options!$B$14,2)),$C249,$E249,$F249,2016,$I249/10,1,$H249/10,$G249*$H249/10,RateRatios_airpollution!$C249)*10))","v":0},{"$f":"IF(AND(OR(Calculations!$E$2=\"Orkney Health Board\",Calculations!$E$2=\"Orkney Islands Local Authority\"),$F249=1),0,IF(AND(OR(Calculations!$E$2=\"Shetland Health Board\",Calculations!$E$2=\"Western Isles Health Board\",Calculations!$E$2=\"Shetland Islands Local Authority\",Calculations!$E$2=\"Eilean Siar Local Authority\"),OR($F249=1,$F249=5)),0,prem_mort(VALUE(LEFT(Options!$B$14,2)),$C249,$E249,$F249,2016,$I249/10+$J249/10,1,$H249/10,$G249*$H249/10,RateRatios_airpollution!$C249)*10))","v":0},null,{"$f":"IF(AND(OR(Calculations!$E$2=\"Orkney Health Board\",Calculations!$E$2=\"Orkney Islands Local Authority\"),$F249=1),0,IF(AND(OR(Calculations!$E$2=\"Shetland Health Board\",Calculations!$E$2=\"Western Isles Health Board\",Calculations!$E$2=\"Shetland Islands Local Authority\",Calculations!$E$2=\"Eilean Siar Local Authority\"),OR($F249=1,$F249=5)),0,new_ci(VALUE(LEFT(Options!$B$14,2)),$C249,$E249,$F249,2016,$I249/10,1,$H249/10,$G249*$H249/10,RateRatios_airpollution!$E249)*10))","v":181.21643072800001},{"$f":"IF(AND(OR(Calculations!$E$2=\"Orkney Health Board\",Calculations!$E$2=\"Orkney Islands Local Authority\"),$F249=1),0,IF(AND(OR(Calculations!$E$2=\"Shetland Health Board\",Calculations!$E$2=\"Western Isles Health Board\",Calculations!$E$2=\"Shetland Islands Local Authority\",Calculations!$E$2=\"Eilean Siar Local Authority\"),OR($F249=1,$F249=5)),0,new_ci(VALUE(LEFT(Options!$B$14,2)),$C249,$E249,$F249,2016,$I249/10+$J249/10,1,$H249/10,$G249*$H249/10,RateRatios_airpollution!$E249)*10))","v":181.21545514100001},{"$f":"IF(AND(OR(Calculations!$E$2=\"Orkney Health Board\",Calculations!$E$2=\"Orkney Islands Local Authority\"),$F249=1),0,IF(AND(OR(Calculations!$E$2=\"Shetland Health Board\",Calculations!$E$2=\"Western Isles Health Board\",Calculations!$E$2=\"Shetland Islands Local Authority\",Calculations!$E$2=\"Eilean Siar Local Authority\"),OR($F249=1,$F249=5)),0,new_yllv2(VALUE(LEFT(Options!$B$14,2)),$C249,$D249,$E249,$F249,2016,$I249/10,1,$H249/10,$G249*$H249/10,RateRatios_airpollution!$E249)*10))","v":416.79833432400005},{"$f":"IF(AND(OR(Calculations!$E$2=\"Orkney Health Board\",Calculations!$E$2=\"Orkney Islands Local Authority\"),$F249=1),0,IF(AND(OR(Calculations!$E$2=\"Shetland Health Board\",Calculations!$E$2=\"Western Isles Health Board\",Calculations!$E$2=\"Shetland Islands Local Authority\",Calculations!$E$2=\"Eilean Siar Local Authority\"),OR($F249=1,$F249=5)),0,new_yllv2(VALUE(LEFT(Options!$B$14,2)),$C249,$D249,$E249,$F249,2016,$I249/10+$J249/10,1,$H249/10,$G249*$H249/10,RateRatios_airpollution!$E249)*10))","v":416.79609047100001},{"$f":"IF(AND(OR(Calculations!$E$2=\"Orkney Health Board\",Calculations!$E$2=\"Orkney Islands Local Authority\"),$F249=1),0,IF(AND(OR(Calculations!$E$2=\"Shetland Health Board\",Calculations!$E$2=\"Western Isles Health Board\",Calculations!$E$2=\"Shetland Islands Local Authority\",Calculations!$E$2=\"Eilean Siar Local Authority\"),OR($F249=1,$F249=5)),0,hosp_count(VALUE(LEFT(Options!$B$14,2)),$C249,$E249,$F249,2016,$I249/10,1,$H249/10,$G249*$H249/10, RateRatios_airpollution!$F249, RateRatios_airpollution!$E249)*10))","v":2016.9131573990001},{"$f":"IF(AND(OR(Calculations!$E$2=\"Orkney Health Board\",Calculations!$E$2=\"Orkney Islands Local Authority\"),$F249=1),0,IF(AND(OR(Calculations!$E$2=\"Shetland Health Board\",Calculations!$E$2=\"Western Isles Health Board\",Calculations!$E$2=\"Shetland Islands Local Authority\",Calculations!$E$2=\"Eilean Siar Local Authority\"),OR($F249=1,$F249=5)),0,hosp_count(VALUE(LEFT(Options!$B$14,2)),$C249,$E249,$F249,2016,$I249/10+$J249/10,1,$H249/10,$G249*$H249/10, RateRatios_airpollution!$F249, RateRatios_airpollution!$E249)*10))","v":2016.9131573990001},{"$f":"IF(AND(OR(Calculations!$E$2=\"Orkney Health Board\",Calculations!$E$2=\"Orkney Islands Local Authority\"),$F249=1),0,IF(AND(OR(Calculations!$E$2=\"Shetland Health Board\",Calculations!$E$2=\"Western Isles Health Board\",Calculations!$E$2=\"Shetland Islands Local Authority\",Calculations!$E$2=\"Eilean Siar Local Authority\"),OR($F249=1,$F249=5)),0,prem_mort(VALUE(LEFT(Options!$B$14,2)),$C249,$E249,$F249,2016,$I249/10,1,$H249/10,$G249*$H249/10,RateRatios_airpollution!$E249)*10))","v":0},{"$f":"IF(AND(OR(Calculations!$E$2=\"Orkney Health Board\",Calculations!$E$2=\"Orkney Islands Local Authority\"),$F249=1),0,IF(AND(OR(Calculations!$E$2=\"Shetland Health Board\",Calculations!$E$2=\"Western Isles Health Board\",Calculations!$E$2=\"Shetland Islands Local Authority\",Calculations!$E$2=\"Eilean Siar Local Authority\"),OR($F249=1,$F249=5)),0,prem_mort(VALUE(LEFT(Options!$B$14,2)),$C249,$E249,$F249,2016,$I249/10+$J249/10,1,$H249/10,$G249*$H249/10,RateRatios_airpollution!$E249)*10))","v":0},181.21643072800001,181.17784953999998,416.79833432400005,416.70959747499995,2016.9131573990001,2016.4580036019997,0,0,6766.8570100074676,6765.4163383121731,15563.791423599703,15560.477874346525,75314.158229985056,75297.162195743091,0,0,6766857.0100074671,6765416.3383121733,15563791.423599703,15560477.874346524,75314158.229985058,75297162.195743084,0,0,1000]

{"sheet":"Inequalities","index":7,"n_rows":18,"n_cols":25,"rows_kept":18,"cut":false,"hidden":true,"merged":[]}
["Relative Index of Inequality calculation"]
["Area:",{"$f":"Options!$B$11","v":"Scotland"}]
["Years:",{"$f":"Options!B14","v":2},null,null,null,null,null,"STANDARDISED RATES"]
[null,null,null,null,null,null,null,"Hospital Stays",null,null,null,null,null,"Premature Death",null,null,null,null,null,"Years of Life Lost (YLL)"]
[null,null,null,null,null,null,null,"Without intervention",null,"With intervention",null,"Difference","% Difference","Without intervention",null,"With intervention",null,"Difference","% Difference","Without intervention",null,"With intervention",null,"Difference","% Difference"]
[null,null,"a",null,"b","√a","b*√a","Y","Y*√a","Y","Y*√a",null,null,"Y","Y*√a","Y","Y*√a",null,null,"Y","Y*√a","Y","Y*√a"]
["SIMD quintile","Population","Proportion of total population","Cumulative proportion","Relative rank"]
[null,null,null,0," "]
["Q1 (most dep)",{"$f":"Calculations!H$7","v":872234},{"$f":"B9/$B14","v":0.19431413815281337},{"$f":"D8+C9","v":0.19431413815281337},{"$f":"D8+(0.5*C9)","v":9.7157069076406685E-2},{"$f":"SQRT(C9)","v":0.44081077363514309},{"$f":"E9*SQRT(C9)","v":4.2827882783693871E-2},{"$f":"Calculations!$BN7/($B$3-1)","v":29752.248162419834},{"$f":"SQRT($C9)*H9","v":13115.111529861051},{"$f":"Calculations!$BO7/($B$3-1)","v":29742.625376969641},{"$f":"SQRT($C9)*J9","v":13110.869702362226},null,null,{"$f":"Calculations!$BP7/($B$3-1)","v":679.80051408983081},{"$f":"SQRT($C9)*N9","v":299.66339053350629},{"$f":"Calculations!$BQ7/($B$3-1)","v":679.58875592285017},{"$f":"SQRT($C9)*P9","v":299.57004525209601},null,null,{"$f":"Calculations!BL7/($B$3-1)","v":18762.54544485618},{"$f":"SQRT($C9)*T9","v":8270.7321729115829},{"$f":"Calculations!BM7/($B$3-1)","v":18756.716091050253},{"$f":"SQRT($C9)*V9","v":8268.1625309505998}]
["Q2",{"$f":"Calculations!H$8","v":897032},{"$f":"B10/$B14","v":0.19983857540005831},{"$f":"D9+C10","v":0.39415271355287168},{"$f":"D9+(0.5*C10)","v":0.29423342585284251},{"$f":"SQRT(C10)","v":0.44703308087887444},{"$f":"E10*SQRT(C10)","v":0.13153207485654206},{"$f":"Calculations!$BN8/($B$3-1)","v":24186.305889039715},10812.078836656288,{"$f":"Calculations!$BO8/($B$3-1)","v":24179.636027939472},10809.097188099613,null,null,{"$f":"Calculations!$BP8/($B$3-1)","v":477.49564987489083},213.45635146983278,{"$f":"Calculations!$BQ8/($B$3-1)","v":477.36931066428798},213.3998736632812,null,null,{"$f":"Calculations!BL8/($B$3-1)","v":13202.702348520226},5902.0447067857476,{"$f":"Calculations!BM8/($B$3-1)","v":13199.191100279246},5900.475062666852]
["Q3",{"$f":"Calculations!H$9","v":907978},{"$f":"B11/$B14","v":0.2022770982691745},{"$f":"D10+C11","v":0.59642981182204613},{"$f":"D10+(0.5*C11)","v":0.49529126268745893},{"$f":"SQRT(C11)","v":0.44975226321740119},{"$f":"E11*SQRT(C11)","v":0.22275836634548904},{"$f":"Calculations!$BN9/($B$3-1)","v":20910.862622784938},9404.7077904256876,{"$f":"Calculations!$BO9/($B$3-1)","v":20906.793791747401},9402.8778244579062,null,null,{"$f":"Calculations!$BP9/($B$3-1)","v":386.67059617486774},173.90597574926855,{"$f":"Calculations!$BQ9/($B$3-1)","v":386.60004715798198},173.87424616925642,null,null,{"$f":"Calculations!BL9/($B$3-1)","v":10700.179349941829},4812.4298794684382,{"$f":"Calculations!BM9/($B$3-1)","v":10698.185890332141},4811.5333164973481]
["Q4",{"$f":"Calculations!H$10","v":910792},{"$f":"B12/$B14","v":0.20290399424521077},{"$f":"D11+C12","v":0.7993338060672569},{"$f":"D11+(0.5*C12)","v":0.69788180894465146},{"$f":"SQRT(C12)","v":0.45044865883384622},{"$f":"E12*SQRT(C12)","v":0.31435992486365677},{"$f":"Calculations!$BN10/($B$3-1)","v":18444.122953784772},8308.1304478989096,{"$f":"Calculations!$BO10/($B$3-1)","v":18440.918274492342},8306.6869044096402,null,null,{"$f":"Calculations!$BP10/($B$3-1)","v":307.10790670493543},138.33634469250813,{"$f":"Calculations!$BQ10/($B$3-1)","v":307.05735892719298},138.31357551381703,null,null,{"$f":"Calculations!BL10/($B$3-1)","v":8504.6356517816221},3830.9017232155452,{"$f":"Calculations!BM10/($B$3-1)","v":8503.2123422082113},3830.2605953270968]
["Q5 (least dep)",{"$f":"Calculations!H$11","v":900747},{"$f":"B13/$B14","v":0.20066619393274301},{"$f":"D12+C13","v":0.99999999999999989},{"$f":"D12+(0.5*C13)","v":0.8996669030336284},{"$f":"SQRT(C13)","v":0.44795780374131561},{"$f":"E13*SQRT(C13)","v":0.40301280998169531},{"$f":"Calculations!$BN11/($B$3-1)","v":16404.921966044989},7348.7128144571789,{"$f":"Calculations!$BO11/($B$3-1)","v":16401.128430724264},7347.0134707064917,null,null,{"$f":"Calculations!$BP11/($B$3-1)","v":226.22995542988508},101.34147397486704,{"$f":"Calculations!$BQ11/($B$3-1)","v":226.17847280208358},101.31841192998624,null,null,{"$f":"Calculations!BL11/($B$3-1)","v":6269.5627839708259},2808.4995751258593,{"$f":"Calculations!BM11/($B$3-1)","v":6268.1450433235441},2807.8644871392285]
["Total",{"$f":"SUM(B9:B13)","v":4488783},null,null,null,null,{"$f":"E14*SQRT(D14)","v":0},{"$f":"IF(OR(Calculations!$E$2=\"Orkney Health Board\",Calculations!$E$2=\"Orkney Islands Local Authority\"),AVERAGE(H10:H13),IF(OR(Calculations!$E$2=\"Shetland Health Board\",Calculations!$E$2=\"Western Isles Health Board\",Calculations!$E$2=\"Shetland Islands Local Authority\",Calculations!$E$2=\"Eilean Siar Local Authority\"),AVERAGE(H10:H12),AVERAGE(H9:H13)))","v":21939.692318814847},0,{"$f":"IF(OR(Calculations!$E$2=\"Orkney Health Board\",Calculations!$E$2=\"Orkney Islands Local Authority\"),AVERAGE(J10:J13),IF(OR(Calculations!$E$2=\"Shetland Health Board\",Calculations!$E$2=\"Western Isles Health Board\",Calculations!$E$2=\"Shetland Islands Local Authority\",Calculations!$E$2=\"Eilean Siar Local Authority\"),AVERAGE(J10:J12),AVERAGE(J9:J13)))","v":21934.220380374623},0,null,null,{"$f":"IF(OR(Calculations!$E$2=\"Orkney Health Board\",Calculations!$E$2=\"Orkney Islands Local Authority\"),AVERAGE(N10:N13),IF(OR(Calculations!$E$2=\"Shetland Health Board\",Calculations!$E$2=\"Western Isles Health Board\",Calculations!$E$2=\"Shetland Islands Local Authority\",Calculations!$E$2=\"Eilean Siar Local Authority\"),AVERAGE(N10:N12),AVERAGE(N9:N13)))","v":415.46092445488205},0,{"$f":"IF(OR(Calculations!$E$2=\"Orkney Health Board\",Calculations!$E$2=\"Orkney Islands Local Authority\"),AVERAGE(P10:P13),IF(OR(Calculations!$E$2=\"Shetland Health Board\",Calculations!$E$2=\"Western Isles Health Board\",Calculations!$E$2=\"Shetland Islands Local Authority\",Calculations!$E$2=\"Eilean Siar Local Authority\"),AVERAGE(P10:P12),AVERAGE(P9:P13)))","v":415.35878909487928},0,null,null,{"$f":"IF(OR(Calculations!$E$2=\"Orkney Health Board\",Calculations!$E$2=\"Orkney Islands Local Authority\"),AVERAGE(T10:T13),IF(OR(Calculations!$E$2=\"Shetland Health Board\",Calculations!$E$2=\"Western Isles Health Board\",Calculations!$E$2=\"Shetland Islands Local Authority\",Calculations!$E$2=\"Eilean Siar Local Authority\"),AVERAGE(T10:T12),AVERAGE(T9:T13)))","v":11487.925115814138},0,{"$f":"IF(OR(Calculations!$E$2=\"Orkney Health Board\",Calculations!$E$2=\"Orkney Islands Local Authority\"),AVERAGE(V10:V13),IF(OR(Calculations!$E$2=\"Shetland Health Board\",Calculations!$E$2=\"Western Isles Health Board\",Calculations!$E$2=\"Shetland Islands Local Authority\",Calculations!$E$2=\"Eilean Siar Local Authority\"),AVERAGE(V10:V12),AVERAGE(V9:V13)))","v":11485.090093438679},0]
[null,null,null,null,"Slope Index of Inequality =",null,null,{"$f":"IF(OR(Calculations!$E$2=\"Orkney Health Board\",Calculations!$E$2=\"Orkney Islands Local Authority\"),-LINEST(I10:I13,$F10:$G13,0),IF(OR(Calculations!$E$2=\"Shetland Health Board\",Calculations!$E$2=\"Western Isles Health Board\",Calculations!$E$2=\"Shetland Islands Local Authority\",Calculations!$E$2=\"Eilean Siar Local Authority\"),-LINEST(I10:I12,$F10:$G12,0),-LINEST(I9:I13,$F9:$G13,0)))","v":16090.340555944062},null,{"$f":"IF(OR(Calculations!$E$2=\"Orkney Health Board\",Calculations!$E$2=\"Orkney Islands Local Authority\"),-LINEST(K10:K13,$F10:$G13,0),IF(OR(Calculations!$E$2=\"Shetland Health Board\",Calculations!$E$2=\"Western Isles Health Board\",Calculations!$E$2=\"Shetland Islands Local Authority\",Calculations!$E$2=\"Eilean Siar Local Authority\"),-LINEST(K10:K12,$F10:$G12,0),-LINEST(K9:K13,$F9:$G13,0)))","v":16082.859306731933},null,{"$f":"H15-J15","v":7.4812492121291143},{"$f":"L15*100/H15","v":4.6495281974410455E-2},{"$f":"IF(OR(Calculations!$E$2=\"Orkney Health Board\",Calculations!$E$2=\"Orkney Islands Local Authority\"),-LINEST(O10:O13,$F10:$G13,0),IF(OR(Calculations!$E$2=\"Shetland Health Board\",Calculations!$E$2=\"Western Isles Health Board\",Calculations!$E$2=\"Shetland Islands Local Authority\",Calculations!$E$2=\"Eilean Siar Local Authority\"),-LINEST(O10:O12,$F10:$G12,0),-LINEST(O9:O13,$F9:$G13,0)))","v":534.29272825330588},null,{"$f":"IF(OR(Calculations!$E$2=\"Orkney Health Board\",Calculations!$E$2=\"Orkney Islands Local Authority\"),-LINEST(Q10:Q13,$F10:$G13,0),IF(OR(Calculations!$E$2=\"Shetland Health Board\",Calculations!$E$2=\"Western Isles Health Board\",Calculations!$E$2=\"Shetland Islands Local Authority\",Calculations!$E$2=\"Eilean Siar Local Authority\"),-LINEST(Q10:Q12,$F10:$G12,0),-LINEST(Q9:Q13,$F9:$G13,0)))","v":534.09672426692407},null,{"$f":"N15-P15","v":0.19600398638181105},{"$f":"R15*100/N15","v":3.6684756504656454E-2},{"$f":"IF(OR(Calculations!$E$2=\"Orkney Health Board\",Calculations!$E$2=\"Orkney Islands Local Authority\"),-LINEST(U10:U13,$F10:$G13,0),IF(OR(Calculations!$E$2=\"Shetland Health Board\",Calculations!$E$2=\"Western Isles Health Board\",Calculations!$E$2=\"Shetland Islands Local Authority\",Calculations!$E$2=\"Eilean Siar Local Authority\"),-LINEST(U10:U12,$F10:$G12,0),-LINEST(U9:U13,$F9:$G13,0)))","v":14719.145253681092},null,{"$f":"IF(OR(Calculations!$E$2=\"Orkney Health Board\",Calculations!$E$2=\"Orkney Islands Local Authority\"),-LINEST(W10:W13,$F10:$G13,0),IF(OR(Calculations!$E$2=\"Shetland Health Board\",Calculations!$E$2=\"Western Isles Health Board\",Calculations!$E$2=\"Shetland Islands Local Authority\",Calculations!$E$2=\"Eilean Siar Local Authority\"),-LINEST(W10:W12,$F10:$G12,0),-LINEST(W9:W13,$F9:$G13,0)))","v":14713.748315555556},null,{"$f":"T15-V15","v":5.3969381255355984},{"$f":"X15*100/T15","v":3.666611092234371E-2}]
[null,null,null,null,"Relative Index of Inequality =",null,null,{"$f":"H15/H14","v":0.73338952625809839},null,{"$f":"J15/J14","v":0.73323140863132186},null,{"$f":"H16-J16","v":1.5811762677653274E-4},{"$f":"L16*100/H16","v":2.1559842500516856E-2},{"$f":"N15/N14","v":1.2860240200792425},null,{"$f":"P15/P14","v":1.2858683583674495},null,{"$f":"N16-P16","v":1.5566171179304256E-4},{"$f":"R16*100/N16","v":1.2104106094647514E-2},{"$f":"T15/T14","v":1.2812709958753905},null,{"$f":"V15/V14","v":1.2811173613658788},null,{"$f":"T16-V16","v":1.5363450951166868E-4},{"$f":"X16*100/T16","v":1.1990789614862269E-2}]
[null,null,null,null,"Absolute difference (Q1-Q5) =",null,null,{"$f":"IF(OR(Calculations!$E$2=\"Orkney Health Board\",Calculations!$E$2=\"Orkney Islands Local Authority\"),H10-H13,IF(OR(Calculations!$E$2=\"Shetland Health Board\",Calculations!$E$2=\"Western Isles Health Board\",Calculations!$E$2=\"Shetland Islands Local Authority\",Calculations!$E$2=\"Eilean Siar Local Authority\"),H10-H12,H9-H13))","v":13347.326196374845},null,{"$f":"IF(OR(Calculations!$E$2=\"Orkney Health Board\",Calculations!$E$2=\"Orkney Islands Local Authority\"),J10-J13,IF(OR(Calculations!$E$2=\"Shetland Health Board\",Calculations!$E$2=\"Western Isles Health Board\",Calculations!$E$2=\"Shetland Islands Local Authority\",Calculations!$E$2=\"Eilean Siar Local Authority\"),J10-J12,J9-J13))","v":13341.496946245377},null,{"$f":"H17-J17","v":5.8292501294672547},{"$f":"L17*100/H17","v":4.3673542128988267E-2},{"$f":"IF(OR(Calculations!$E$2=\"Orkney Health Board\",Calculations!$E$2=\"Orkney Islands Local Authority\"),N10-N13,IF(OR(Calculations!$E$2=\"Shetland Health Board\",Calculations!$E$2=\"Western Isles Health Board\",Calculations!$E$2=\"Shetland Islands Local Authority\",Calculations!$E$2=\"Eilean Siar Local Authority\"),N10-N12,N9-N13))","v":453.57055865994573},null,{"$f":"IF(OR(Calculations!$E$2=\"Orkney Health Board\",Calculations!$E$2=\"Orkney Islands Local Authority\"),P10-P13,IF(OR(Calculations!$E$2=\"Shetland Health Board\",Calculations!$E$2=\"Western Isles Health Board\",Calculations!$E$2=\"Shetland Islands Local Authority\",Calculations!$E$2=\"Eilean Siar Local Authority\"),P10-P12,P9-P13))","v":453.41028312076662},null,{"$f":"N17-P17","v":0.16027553917911064},{"$f":"R17*100/N17","v":3.5336407118803669E-2},{"$f":"IF(OR(Calculations!$E$2=\"Orkney Health Board\",Calculations!$E$2=\"Orkney Islands Local Authority\"),T10-T13,IF(OR(Calculations!$E$2=\"Shetland Health Board\",Calculations!$E$2=\"Western Isles Health Board\",Calculations!$E$2=\"Shetland Islands Local Authority\",Calculations!$E$2=\"Eilean Siar Local Authority\"),T10-T12,T9-T13))","v":12492.982660885355},null,{"$f":"IF(OR(Calculations!$E$2=\"Orkney Health Board\",Calculations!$E$2=\"Orkney Islands Local Authority\"),V10-V13,IF(OR(Calculations!$E$2=\"Shetland Health Board\",Calculations!$E$2=\"Western Isles Health Board\",Calculations!$E$2=\"Shetland Islands Local Authority\",Calculations!$E$2=\"Eilean Siar Local Authority\"),V10-V12,V9-V13))","v":12488.571047726709},null,{"$f":"T17-V17","v":4.4116131586451957},{"$f":"X17*100/T17","v":3.531272938093194E-2}]
[null,null,null,null,"Relative difference (Q1/Q5) =",null,null,{"$f":"IF(OR(Calculations!$E$2=\"Orkney Health Board\",Calculations!$E$2=\"Orkney Islands Local Authority\"),H10/H13,IF(OR(Calculations!$E$2=\"Shetland Health Board\",Calculations!$E$2=\"Western Isles Health Board\",Calculations!$E$2=\"Shetland Islands Local Authority\",Calculations!$E$2=\"Eilean Siar Local Authority\"),H10/H12,H9/H13))","v":1.813617170749195},null,{"$f":"IF(OR(Calculations!$E$2=\"Orkney Health Board\",Calculations!$E$2=\"Orkney Islands Local Authority\"),J10/J13,IF(OR(Calculations!$E$2=\"Shetland Health Board\",Calculations!$E$2=\"Western Isles Health Board\",Calculations!$E$2=\"Shetland Islands Local Authority\",Calculations!$E$2=\"Eilean Siar Local Authority\"),J10/J12,J9/J13))","v":1.8134499405085278},null,{"$f":"H18-J18","v":1.6723024066722658E-4},{"$f":"L18*100/H18","v":9.2208126039160024E-3},{"$f":"IF(OR(Calculations!$E$2=\"Orkney Health Board\",Calculations!$E$2=\"Orkney Islands Local Authority\"),N10/N13,IF(OR(Calculations!$E$2=\"Shetland Health Board\",Calculations!$E$2=\"Western Isles Health Board\",Calculations!$E$2=\"Shetland Islands Local Authority\",Calculations!$E$2=\"Eilean Siar Local Authority\"),N10/N12,N9/N13))","v":3.0049093754983289},null,{"$f":"IF(OR(Calculations!$E$2=\"Orkney Health Board\",Calculations!$E$2=\"Orkney Islands Local Authority\"),P10/P13,IF(OR(Calculations!$E$2=\"Shetland Health Board\",Calculations!$E$2=\"Western Isles Health Board\",Calculations!$E$2=\"Shetland Islands Local Authority\",Calculations!$E$2=\"Eilean Siar Local Authority\"),P10/P12,P9/P13))","v":3.0046571077412887},null,{"$f":"N18-P18","v":2.5226775704023652E-4},{"$f":"R18*100/N18","v":8.3951868597834465E-3},{"$f":"IF(OR(Calculations!$E$2=\"Orkney Health Board\",Calculations!$E$2=\"Orkney Islands Local Authority\"),T10/T13,IF(OR(Calculations!$E$2=\"Shetland Health Board\",Calculations!$E$2=\"Western Isles Health Board\",Calculations!$E$2=\"Shetland Islands Local Authority\",Calculations!$E$2=\"Eilean Siar Local Authority\"),T10/T12,T9/T13))","v":2.9926401714686914},null,{"$f":"IF(OR(Calculations!$E$2=\"Orkney Health Board\",Calculations!$E$2=\"Orkney Islands Local Authority\"),V10/V13,IF(OR(Calculations!$E$2=\"Shetland Health Board\",Calculations!$E$2=\"Western Isles Health Board\",Calculations!$E$2=\"Shetland Islands Local Authority\",Calculations!$E$2=\"Eilean Siar Local Authority\"),V10/V12,V9/V13))","v":2.9923870557253287},null,{"$f":"T18-V18","v":2.5311574336273068E-4},{"$f":"X18*100/T18","v":8.4579411108589644E-3}]

{"sheet":"Lists","index":8,"n_rows":85,"n_cols":12,"rows_kept":85,"cut":false,"hidden":true,"merged":[]}
["AREA LOOK-UP",null,null,"AREA name","Equivalent to",null,"AREA CODE LOOK-UP",null,"INTERVENTIONS",null,"TARGETING OPTIONS"]
[1,"Scotland",null,"Aberdeen City IJB","Aberdeen City Local Authority",null,"Scotland","S00000001",1,"20 mph speed limits (urban)",1,"Not applicable"]
[2,"Ayrshire & Arran Health Board",null,"Aberdeen City Local Authority","Aberdeen City Local Authority",null,"Ayrshire & Arran Health Board","S08000015"]
[3,"Borders Health Board",null,"Aberdeen City Region Deal","Aberdeen City Region Deal",null,"Borders Health Board","S08000016"]
[4,"Dumfries & Galloway Health Board",null,"Aberdeenshire IJB","Aberdeenshire Local Authority",null,"Dumfries & Galloway Health Board","S08000017"]
[5,"Fife Health Board",null,"Aberdeenshire Local Authority","Aberdeenshire Local Authority",null,"Fife Health Board","S08000018"]
[6,"Forth Valley Health Board",null,"Angus IJB","Angus Local Authority",null,"Forth Valley Health Board","S08000019"]
[7,"Grampian Health Board",null,"Angus Local Authority","Angus Local Authority",null,"Grampian Health Board","S08000020"]
[8,"Greater Glasgow & Clyde Health Board",null,"Argyll & Bute IJB","Argyll & Bute Local Authority",null,"Greater Glasgow & Clyde Health Board","S08000021"]
[9,"Highland Health Board",null,"Argyll & Bute Local Authority","Argyll & Bute Local Authority",null,"Highland Health Board","S08000022"]
[10,"Lanarkshire Health Board",null,"Ayrshire & Arran Health Board","Ayrshire & Arran Health Board",null,"Lanarkshire Health Board","S08000023"]
[11,"Lothian Health Board",null,"Borders Health Board","Borders Health Board",null,"Lothian Health Board","S08000024"]
[12,"Orkney Health Board",null,"Clackmannanshire & Stirling IJB","Clackmannanshire & Stirling IJB",null,"Orkney Health Board","S08000025"]
[13,"Shetland Health Board",null,"Clackmannanshire Local Authority","Clackmannanshire Local Authority",null,"Shetland Health Board","S08000026"]
[14,"Tayside Health Board",null,"Dumfries & Galloway Health Board","Dumfries & Galloway Health Board",null,"Tayside Health Board","S08000027"]
[15,"Western Isles Health Board",null,"Dumfries & Galloway IJB","Dumfries & Galloway Local Authority",null,"Western Isles Health Board","S08000028"]
[16,"Aberdeen City Local Authority",null,"Dumfries & Galloway Local Authority","Dumfries & Galloway Local Authority",null,"Clackmannanshire Local Authority","S12000005"]
[17,"Aberdeenshire Local Authority",null,"Dundee City IJB","Dundee City Local Authority",null,"Dumfries & Galloway Local Authority","S12000006"]
[18,"Angus Local Authority",null,"Dundee City Local Authority","Dundee City Local Authority",null,"East Ayrshire Local Authority","S12000008"]
[19,"Argyll & Bute Local Authority",null,"East Ayrshire IJB","East Ayrshire Local Authority",null,"East Lothian Local Authority","S12000010"]
[20,"Clackmannanshire Local Authority",null,"East Ayrshire Local Authority","East Ayrshire Local Authority",null,"East Renfrewshire Local Authority","S12000011"]
[21,"Dumfries & Galloway Local Authority",null,"East Dunbartonshire IJB","East Dunbartonshire Local Authority",null,"Eilean Siar Local Authority","S12000013"]
[22,"Dundee City Local Authority",null,"East Dunbartonshire Local Authority","East Dunbartonshire Local Authority",null,"Falkirk Local Authority","S12000014"]
[23,"East Ayrshire Local Authority",null,"East Lothian IJB","East Lothian Local Authority",null,"Fife Local Authority","S12000015"]
[24,"East Dunbartonshire Local Authority",null,"East Lothian Local Authority","East Lothian Local Authority",null,"Highland Local Authority","S12000017"]
[25,"East Lothian Local Authority",null,"East Renfrewshire IJB","East Renfrewshire Local Authority",null,"Inverclyde Local Authority","S12000018"]
[26,"East Renfrewshire Local Authority",null,"East Renfrewshire Local Authority","East Renfrewshire Local Authority",null,"Midlothian Local Authority","S12000019"]
[27,"Edinburgh, City of Local Authority",null,"Edinburgh & SE Scotland City Region Deal","Edinburgh & SE Scotland City Region Deal",null,"Moray Local Authority","S12000020"]
[28,"Eilean Siar Local Authority",null,"Edinburgh, City of Local Authority","Edinburgh, City of Local Authority",null,"North Ayrshire Local Authority","S12000021"]
[29,"Falkirk Local Authority",null,"Edinburgh, City of, IJB","Edinburgh, City of Local Authority",null,"Orkney Islands Local Authority","S12000023"]
[30,"Fife Local Authority",null,"Eilean Siar IJB","Eilean Siar Local Authority",null,"Perth & Kinross Local Authority","S12000024"]
[31,"Glasgow City Local Authority",null,"Eilean Siar Local Authority","Eilean Siar Local Authority",null,"Scottish Borders Local Authority","S12000026"]
[32,"Highland Local Authority",null,"Falkirk IJB","Falkirk Local Authority",null,"Shetland Islands Local Authority","S12000027"]
[33,"Inverclyde Local Authority",null,"Falkirk Local Authority","Falkirk Local Authority",null,"South Ayrshire Local Authority","S12000028"]
[34,"Midlothian Local Authority",null,"Fife Health Board","Fife Health Board",null,"South Lanarkshire Local Authority","S12000029"]
[35,"Moray Local Authority",null,"Fife IJB","Fife Local Authority",null,"Stirling Local Authority","S12000030"]
[36,"North Ayrshire Local Authority",null,"Fife Local Authority","Fife Local Authority",null,"Aberdeen City Local Authority","S12000033"]
[37,"North Lanarkshire Local Authority",null,"Forth Valley Health Board","Forth Valley Health Board",null,"Aberdeenshire Local Authority","S12000034"]
[38,"Orkney Islands Local Authority",null,"Glasgow City IJB","Glasgow City Local Authority",null,"Argyll & Bute Local Authority","S12000035"]
[39,"Perth & Kinross Local Authority",null,"Glasgow City Local Authority","Glasgow City Local Authority",null,"Edinburgh, City of Local Authority","S12000036"]
[40,"Renfrewshire Local Authority",null,"Glasgow City Region Deal","Glasgow City Region Deal",null,"Renfrewshire Local Authority","S12000038"]
[41,"Scottish Borders Local Authority",null,"Grampian Health Board","Grampian Health Board",null,"West Dunbartonshire Local Authority","S12000039"]
[42,"Shetland Islands Local Authority",null,"Greater Glasgow & Clyde Health Board","Greater Glasgow & Clyde Health Board",null,"West Lothian Local Authority","S12000040"]
[43,"South Ayrshire Local Authority",null,"Highland Health Board","Highland Health Board",null,"Angus Local Authority","S12000041"]
[44,"South Lanarkshire Local Authority",null,"Highland Local Authority","Highland Local Authority",null,"Dundee City Local Authority","S12000042"]
[45,"Stirling Local Authority",null,"Highland Partnership","Highland Local Authority",null,"North Lanarkshire Local Authority","S12000044"]
[46,"West Dunbartonshire Local Authority",null,"Inverclyde IJB","Inverclyde Local Authority",null,"East Dunbartonshire Local Authority","S12000045"]
[47,"West Lothian Local Authority",null,"Inverclyde Local Authority","Inverclyde Local Authority",null,"Glasgow City Local Authority","S12000046"]
[48,"Aberdeen City Region Deal",null,"Inverness & Highland City Region Deal","Inverness & Highland City Region Deal"]
[49,"Edinburgh & SE Scotland City Region Deal",null,"Lanarkshire Health Board","Lanarkshire Health Board"]
[50,"Glasgow City Region Deal",null,"Lothian Health Board","Lothian Health Board"]
[51,"Inverness & Highland City Region Deal",null,"Midlothian IJB","Midlothian Local Authority"]
[52,"Stirling & Clackmannanshire City Region Deal",null,"Midlothian Local Authority","Midlothian Local Authority"]
[53,"Tay Cities Region Deal ",null,"Moray IJB","Moray Local Authority"]
[54,"Aberdeen City IJB",null,"Moray Local Authority","Moray Local Authority"]
[55,"Aberdeenshire IJB",null,"North Ayrshire IJB","North Ayrshire Local Authority"]
[56,"Angus IJB",null,"North Ayrshire Local Authority","North Ayrshire Local Authority"]
[57,"Argyll & Bute IJB",null,"North Lanarkshire IJB","North Lanarkshire Local Authority"]
[58,"Clackmannanshire & Stirling IJB",null,"North Lanarkshire Local Authority","North Lanarkshire Local Authority"]
[59,"Dumfries & Galloway IJB",null,"Orkney Health Board","Orkney Health Board"]
[60,"Dundee City IJB",null,"Orkney Islands IJB","Orkney Islands Local Authority"]
[61,"East Ayrshire IJB",null,"Orkney Islands Local Authority","Orkney Islands Local Authority"]
[62,"East Dunbartonshire IJB",null,"Perth & Kinross IJB","Perth & Kinross Local Authority"]
[63,"East Lothian IJB",null,"Perth & Kinross Local Authority","Perth & Kinross Local Authority"]
[64,"East Renfrewshire IJB",null,"Renfrewshire IJB","Renfrewshire Local Authority"]
[65,"Edinburgh, City of, IJB",null,"Renfrewshire Local Authority","Renfrewshire Local Authority"]
[66,"Eilean Siar IJB",null,"Scotland","Scotland"]
[67,"Falkirk IJB",null,"Scottish Borders IJB","Scottish Borders Local Authority"]
[68,"Fife IJB",null,"Scottish Borders Local Authority","Scottish Borders Local Authority"]
[69,"Glasgow City IJB",null,"Shetland Health Board","Shetland Health Board"]
[70,"Highland Partnership",null,"Shetland Islands IJB","Shetland Islands Local Authority"]
[71,"Inverclyde IJB",null,"Shetland Islands Local Authority","Shetland Islands Local Authority"]
[72,"Midlothian IJB",null,"South Ayrshire IJB","South Ayrshire Local Authority"]
[73,"Moray IJB",null,"South Ayrshire Local Authority","South Ayrshire Local Authority"]
[74,"North Ayrshire IJB",null,"South Lanarkshire IJB","South Lanarkshire Local Authority"]
[75,"North Lanarkshire IJB",null,"South Lanarkshire Local Authority","South Lanarkshire Local Authority"]
[76,"Orkney Islands IJB",null,"Stirling & Clackmannanshire City Region Deal","Clackmannanshire & Stirling IJB"]
[77,"Perth & Kinross IJB",null,"Stirling Local Authority","Stirling Local Authority"]
[78,"Renfrewshire IJB",null,"Tay Cities Region Deal ","Tay Cities Region Deal "]
[79,"Scottish Borders IJB",null,"Tayside Health Board","Tayside Health Board"]
[80,"Shetland Islands IJB",null,"West Dunbartonshire IJB","West Dunbartonshire Local Authority"]
[81,"South Ayrshire IJB",null,"West Dunbartonshire Local Authority","West Dunbartonshire Local Authority"]
[82,"South Lanarkshire IJB",null,"West Lothian IJB","West Lothian Local Authority"]
[83,"West Dunbartonshire IJB",null,"West Lothian Local Authority","West Lothian Local Authority"]
[84,"West Lothian IJB",null,"Western Isles Health Board","Western Isles Health Board"]

{"sheet":"Health outcome totals 2016","index":9,"n_rows":17,"n_cols":56,"rows_kept":17,"cut":false,"hidden":true,"merged":[]}
["Health outcome totals, 2016"]
[]
[null,null,"Aberdeen City Local Authority","Aberdeen City Region Deal","Aberdeenshire Local Authority","Angus Local Authority","Argyll & Bute Local Authority","Ayrshire & Arran Health Board","Borders Health Board","Clackmannanshire & Stirling IJB","Clackmannanshire Local Authority","Dumfries & Galloway Health Board","Dumfries & Galloway Local Authority","Dundee City Local Authority","East Ayrshire Local Authority","East Dunbartonshire Local Authority","East Lothian Local Authority","East Renfrewshire Local Authority","Edinburgh & SE Scotland City Region Deal","Edinburgh, City of Local Authority","Eilean Siar Local Authority","Falkirk Local Authority","Fife Health Board","Fife Local Authority","Forth Valley Health Board","Glasgow City Local Authority","Glasgow City Region Deal","Grampian Health Board","Greater Glasgow & Clyde Health Board","Highland Health Board","Highland Local Authority","Inverclyde Local Authority","Inverness & Highland City Region Deal","Lanarkshire Health Board","Lothian Health Board","Midlothian Local Authority","Moray Local Authority","North Ayrshire Local Authority","North Lanarkshire Local Authority","Orkney Health Board","Orkney Islands Local Authority","Perth & Kinross Local Authority","Renfrewshire Local Authority","Scotland","Scottish Borders Local Authority","Shetland Health Board","Shetland Islands Local Authority","South Ayrshire Local Authority","South Lanarkshire Local Authority","Stirling Local Authority","Tay Cities Region Deal ","Tayside Health Board","West Dunbartonshire Local Authority","West Lothian Local Authority","Western Isles Health Board",1]
[null,null,"S12000033","Aber_deal","S12000034","S12000041","S12000035","S08000015","S08000016","ClacksStirIJB","S12000005","S08000017","S12000006","S12000042","S12000008","S12000045","S12000010","S12000011","EdinSE_deal","S12000036","S12000013","S12000014","S08000018","S12000015","S08000019","S12000046","GClyde_deal","S08000020","S08000021","S08000022","S12000017","S12000018","Inver_deal","S08000023","S08000024","S12000019","S12000020","S12000021","S12000044","S08000025","S12000023","S12000024","S12000038","S00000001","S12000026","S08000026","S12000027","S12000028","S12000029","S12000030","Tay_deal","S08000027","S12000039","S12000040","S08000028",2]
[null,null,null,null,null,null,null,null,null,null,null,null,null,null,null,null,null,null,null,null,null,null,null,null,null,null,null,null,null,null,null,null,null,null,null,null,null,null,null,null,null,null,null,null,null,null,null,null,null,null,null,null,null,null,null,3]
[null,"All hospital admissions (16+)",41626,84145,42519,18091,21023,90768,25209,20471,7651,34490,34490,23727,28249,28833,18105,21705,243108,77192,7253,24369,73148,73148,44840,155175,465272,101100,299797,63264,42241,21552,42241,165475,144751,16294,16955,33649,88230,4636,4636,23268,47578,1125093,25209,5276,5276,28870,77245,12820,138234,65086,24954,33160,7253,4]
[null,"All hospital admissions (SIMD Q1, 16+)",4722,5748,1026,1291,1909,30005,1818,4205,2064,3291,3291,9713,9944,1787,691,1667,41988,13947,0,4489,16974,16974,8694,88379,175909,5919,127063,5479,3570,10387,3570,48846,23196,1769,171,14603,30793,0,0,1429,14646,283718,1818,0,0,5458,18053,2141,29407,12433,10197,6789,0,5]
[null,"All hospital admissions (SIMD Q1 and Q2, 16+)",15717,21194,5477,4707,5862,52925,6550,8550,4153,13054,13054,14796,17671,7386,6437,3905,98104,26095,1759,12454,34033,34033,21004,114868,279835,24321,181891,18570,12708,13017,12708,97944,57521,8106,3127,21482,57322,758,758,4360,25069,534382,6550,189,189,13772,40622,4397,57896,23863,17646,16883,1759,6]
[null,"All deaths (16+)",2126,4486,2360,1434,1110,4492,1277,1445,546,1858,1858,1690,1454,1113,1001,883,13129,4361,359,1734,4091,4091,3179,6321,19540,5465,12443,3507,2397,1006,2397,7097,7761,848,979,1593,3569,223,223,1617,2070,56725,1277,232,232,1445,3528,899,8832,4741,1050,1551,359,7]
[null,"All deaths (SIMD Q1, 16+)",202,270,68,101,108,1512,66,296,141,153,153,703,542,54,27,76,2183,793,0,306,909,909,602,3747,7764,282,5491,286,178,495,178,2273,1208,86,12,699,1432,0,0,79,684,13665,66,0,0,271,841,155,1792,883,435,302,0,8]
[null,"All deaths (SIMD Q1 and Q2, 16+)",759,1068,309,366,335,2716,302,581,291,699,699,1072,985,270,354,152,5276,1482,88,941,1903,1903,1522,4890,12279,1233,7808,1019,684,593,684,4471,3071,440,165,1017,2551,35,35,252,1137,26567,302,10,10,714,1920,290,3593,1690,766,795,88,9]
[null,"Premature deaths (16+)",811,1608,797,476,393,1746,418,519,224,616,616,687,565,356,362,248,4764,1514,133,665,1511,1511,1184,2759,7841,1940,4946,1277,884,382,884,2895,2835,327,332,659,1546,66,66,520,784,21313,418,63,63,522,1349,295,3194,1683,417,632,133,10]
[null,"Premature deaths (SIMD Q1, 16+)",107,137,30,43,47,690,33,124,56,77,77,368,228,26,18,35,1042,380,0,144,431,431,268,1758,3631,142,2540,142,95,222,95,1091,578,43,5,329,672,0,0,40,308,6443,33,0,0,133,419,68,882,451,191,137,0,11]
[null,"Premature deaths (SIMD Q1 and Q2, 16+)",364,493,129,150,141,1182,114,247,124,288,288,516,405,100,145,71,2222,649,42,398,801,801,645,2232,5428,569,3464,449,308,273,308,1964,1307,173,76,469,1151,10,10,112,460,11618,114,5,5,308,813,123,1579,778,328,340,42,12]
[null,"Years of Life Lost (16+)",27478.849984764998,54444.2399408817,26965.3899561166,16090.8199598789,12686.9499692916,56848.409873366298,13994.529939413,17303.359948515801,7163.6299738883899,21118.8499506712,21118.8499506712,23122.199981927799,17993.719950675899,12374.2699501514,12200.3899704217,9172.4499734640103,160653.58962154301,53280.459909200603,4023.4899880886001,22452.289941430001,50451.919886112199,50451.919886112199,39755.649889945897,89197.719813108401,256885.999366998,65559.529895305604,162663.369581103,41357.789903044701,28670.839933752999,12320.2399550676,28670.839933752999,94222.629785895304,96207.1397960186,10264.6499630212,11115.289954423901,21125.3999617099,49180.329858660698,2374.0299997329698,2374.0299997329698,18424.4199427366,25842.089928984598,708624.04837918223,13994.529939413,2409.2700059413901,2409.2700059413901,17729.289960980401,45042.299927234599,10139.7299746275,108089.35977065501,57637.439884543397,13756.599960327099,20461.639953374801,4023.4899880886001,13]
[null,"Years of Life Lost (SIMD Q1, 16+)",3295.92993164062,4366.02978515625,1070.09997558593,1397.83996582031,1470.84997558593,22073.8203125,964.219970703125,4154.080078125,1917.78002929687,2255.6298828125,2255.6298828125,11311.849609375,7246.14013671875,801.34997558593705,506.52999877929602,1143.19995117187,33291.8515625,12423.990234375,0,4594.18994140625,13844.83984375,13844.83984375,8748.26953125,55460.6796875,114187.4921875,4533.0498046875,80170.8125,4432.89990234375,2962.05004882812,6832.72021484375,2962.05004882812,34016.6796875,18482.7890625,1343.33996582031,167.02000427246,10474.1796875,20828.01953125,0,0,1313.01000976562,9733.16015625,203545.71069335938,964.219970703125,0,0,4353.5,13188.66015625,2236.30004882812,27867.5390625,14022.7001953125,6199.7001953125,4208.93017578125,0,14]
[null,"Years of Life Lost (SIMD Q1 and Q2, 16+)",11539.6896972656,15803.310058593701,4263.6199951171802,4814.6199951171802,4330.8499755859302,37723.6103515625,3783.65991210937,8139.5300292968705,4124.93994140625,9004.40966796875,9004.40966796875,16525.039550781199,12834.580078125,3274.6199951171802,4628.5700378417896,2192.68994140625,71927.140625,21426.830078125,1201.05004882812,13288.649902343701,25972.349609375,25972.349609375,21428.1796875,71527.9296875,173737.29296875,18071.849609375,110859.11328125,13808.199707031201,9477.3498535156195,8312.5902099609302,9477.3498535156195,62878.1796875,42171.12890625,5422.7598876953098,2268.54002380371,14767.939453125,36228.279296875,369.36999511718699,369.36999511718699,3594.6298828125,14987.880371093701,372328.97050476068,3783.65991210937,123.58000183105401,123.58000183105401,10121.08984375,26649.900390625,4014.59008789062,50906.638671875,24934.2900390625,10563.400390625,10692.970214843701,1201.05004882812,15]

{"sheet":"Demographic data","index":10,"n_rows":41,"n_cols":4,"rows_kept":41,"cut":false,"hidden":true,"merged":[]}
["Demographic data"]
[]
["sub group","European Standard Population (ESP 2013)","mean age (2016)","life expectancy (2014-2016)"]
["Female 0-4",5000,2.0384009999999999,81.468401]
["Female 5-9",5500,6.9792800000000002,81.439279999999997]
["Female 10-15",6600,12.47831,81.948309999999992]
["Female 16-19",4400,17.570049999999998,81.100049999999996]
["Female 20-24",6000,22.077059999999999,81.667060000000006]
["Female 25-29",6000,26.975190000000001,81.645189999999999]
["Female 30-34",6500,31.9999,81.799899999999994]
["Female 35-39",7000,36.918120000000002,81.898120000000006]
["Female 40-44",7000,42.077440000000003,82.30744]
["Female 45-49",7000,47.025770000000001,82.585769999999997]
["Female 50-54",7000,51.990830000000003,82.980829999999997]
["Female 55-59",6500,56.953040000000001,83.473039999999997]
["Female 60-64",6000,61.947389999999999,84.167389999999997]
["Female 65-69",5500,67.063929999999999,85.193929999999995]
["Female 70-74",5000,71.938159999999996,86.248159999999999]
["Female 75-79",4000,76.942830000000001,87.812830000000005]
["Female 80-84",2500,81.856710000000007,89.736710000000002]
["Female 85-89",1500,86.730819999999994,92.220819999999989]
["Female 90+",1000,92.779340000000005,96.279340000000005]
["Male 0-4",5000,2.0320819999999999,77.402082000000007]
["Male 5-9",5500,6.9784759999999997,77.398476000000002]
["Male 10-15",6600,12.47114,77.921140000000008]
["Male 16-19",4400,17.556319999999999,77.07632000000001]
["Male 20-24",6000,22.05463,77.704629999999995]
["Male 25-29",6000,26.959759999999999,77.789760000000001]
["Male 30-34",6500,31.98152,78.061520000000002]
["Male 35-39",7000,36.926009999999998,78.336009999999987]
["Male 40-44",7000,42.067700000000002,78.907700000000006]
["Male 45-49",7000,47.038150000000002,79.418149999999997]
["Male 50-54",7000,51.998649999999998,79.988649999999993]
["Male 55-59",6500,56.950870000000002,80.660870000000003]
["Male 60-64",6000,61.942990000000002,81.612989999999996]
["Male 65-69",5500,67.054419999999993,82.954419999999999]
["Male 70-74",5000,71.891099999999994,84.341099999999997]
["Male 75-79",4000,76.907700000000006,86.357700000000008]
["Male 80-84",2500,81.797089999999997,88.627089999999995]
["Male 85-89",1500,86.630750000000006,91.420750000000012]
["Male 90+",1000,92.215479999999999,95.515479999999997]

{"sheet":"Population 2016","index":11,"n_rows":249,"n_cols":56,"rows_kept":249,"cut":false,"hidden":true,"merged":[]}
["Population 2016 (16+ only)"]
[]
["SIMD","group","Aberdeen City Local Authority","Aberdeen City Region Deal","Aberdeenshire Local Authority","Angus Local Authority","Argyll & Bute Local Authority","Ayrshire & Arran Health Board","Borders Health Board","Clackmannanshire & Stirling IJB","Clackmannanshire Local Authority","Dumfries & Galloway Health Board","Dumfries & Galloway Local Authority","Dundee City Local Authority","East Ayrshire Local Authority","East Dunbartonshire Local Authority","East Lothian Local Authority","East Renfrewshire Local Authority","Edinburgh & SE Scotland City Region Deal","Edinburgh, City of Local Authority","Eilean Siar Local Authority","Falkirk Local Authority","Fife Health Board","Fife Local Authority","Forth Valley Health Board","Glasgow City Local Authority","Glasgow City Region Deal","Grampian Health Board","Greater Glasgow & Clyde Health Board","Highland Health Board","Highland Local Authority","Inverclyde Local Authority","Inverness & Highland City Region Deal","Lanarkshire Health Board","Lothian Health Board","Midlothian Local Authority","Moray Local Authority","North Ayrshire Local Authority","North Lanarkshire Local Authority","Orkney Health Board","Orkney Islands Local Authority","Perth & Kinross Local Authority","Renfrewshire Local Authority","Scotland","Scottish Borders Local Authority","Shetland Health Board","Shetland Islands Local Authority","South Ayrshire Local Authority","South Lanarkshire Local Authority","Stirling Local Authority","Tay Cities Region Deal ","Tayside Health Board","West Dunbartonshire Local Authority","West Lothian Local Authority","Western Isles Health Board",1]
[null,null,"popS12000033","Aber_deal","popS12000034","popS12000041","popS12000035","popS08000015","popS08000016","ClacksStirIJB","popS12000005","popS08000017","popS12000006","popS12000042","popS12000008","popS12000045","popS12000010","popS12000011","EdinSE_deal","popS12000036","popS12000013","popS12000014","popS08000018","popS12000015","popS08000019","popS12000046","GClyde_deal","popS08000020","popS08000021","popS08000022","popS12000017","popS12000018","Inver_deal","popS08000023","popS08000024","popS12000019","popS12000020","popS12000021","popS12000044","popS08000025","popS12000023","popS12000024","popS12000038","popS00000001","popS12000026","popS08000026","popS12000027","popS12000028","popS12000029","popS12000030","Tay_deal","popS08000027","popS12000039","popS12000040","popS08000028",2]
["All quintiles","16+ Males and Females",195653,408972,213319,97075,73892,308413,95528,120583,42326,125906,125906,124421,100941,88730,85101,75148,1132942,429806,22593,131021,305958,305958,251604,516583,1505157,488515,966842,268690,194798,66309,194798,538315,731456,71726,79543,112762,276091,18334,18334,126166,145976,4488783,95528,18967,18967,94710,262224,78257,653620,347662,74096,144823,22593,3]
["Q1 and Q2","16+ Males and Females",55772,76466,20694,23106,17866,167717,20594,42609,21032,44748,44748,68009,58204,18917,25984,11714,380156,118643,5432,56576,120625,120625,99185,329151,800085,89168,514066,67593,49727,36156,49727,286019,238937,32594,12702,67548,163920,2601,2601,20837,67935,1769266,20594,629,629,41965,122099,21577,232577,111952,50193,61716,5432,4]
["SIMD Q1 (most deprived)","16+ Males and Females",15706,20077,4371,6722,5398,92567,5141,19886,9977,9984,9984,43099,31424,4139,2919,4928,153150,55966,0,19042,59089,59089,38928,237443,481887,20712,343232,18565,13167,27666,13167,138655,88920,7071,635,44986,86094,0,0,6620,40910,872234,5141,0,0,16157,52561,9909,115530,56441,28146,22964,0,5]
["SIMD Q2",null,40066,56389,16323,16384,12468,75150,15453,22723,11055,34764,34764,24910,26780,14778,23065,6786,227006,62677,5432,37534,61536,61536,60257,91708,318198,68456,170834,49028,36560,8490,36560,147364,150017,25523,12067,22562,77826,2601,2601,14217,27025,897032,15453,629,629,25808,69538,11668,117047,55511,22047,38752,5432,6]
["SIMD Q3",null,30458,73451,42993,31913,30426,53711,31989,20856,8000,46905,46905,15883,17462,5452,18382,8332,231265,65662,15862,24167,66386,66386,45023,73726,236775,95627,135271,92816,62390,10471,62390,101504,132890,16953,22176,16287,50065,5744,5744,30213,25960,907978,31989,6241,6241,19962,51439,12856,144395,78009,11330,31893,15862,7]
["SIMD Q4",null,33670,111128,77458,24649,18051,45109,34098,29073,7505,22879,22879,21569,13653,16324,26540,11252,219384,69016,1299,25092,52998,52998,54165,60616,224957,141579,135338,82327,64276,11701,64276,89619,132288,11108,30451,18431,37360,8622,8622,52156,25824,910792,34098,12097,12097,13025,52259,21568,151372,98374,9621,25624,1299,8]
["SIMD Q5 (least deprived)",null,75753,147927,72174,17407,7549,41876,8847,28045,5789,11374,11374,18960,11622,48037,14195,43850,302137,176485,0,25186,65949,65949,53231,53090,243340,162141,182167,25954,18405,7981,18405,61173,227341,11071,14214,10496,24746,1367,1367,22960,26257,900747,8847,0,0,19758,36427,22256,125276,59327,2952,25590,0,9]
["SIMD Q1 (most deprived)","16+ Females",7940,10084,2144,3486,2800,49250,2661,10561,5216,5227,5227,22625,16592,2201,1560,2687,79990,29099,0,9861,30881,30881,20422,124184,253184,10434,180380,9647,6847,14769,6847,72804,46448,3734,350,24175,45017,0,0,3368,21320,457633,2661,0,0,8483,27787,5345,60360,29479,15219,12055,0,10]
["SIMD Q2",null,20589,29017,8428,8582,6570,39721,7980,11880,5783,18133,18133,12948,14006,7886,12341,3614,118897,32276,2752,19564,32365,32365,31444,46945,166820,35348,89074,25793,19223,4529,19223,77746,78552,13662,6331,12037,41225,1291,1291,7061,14478,469079,7980,289,289,13678,36521,6097,60956,28591,11622,20273,2752,11]
["SIMD Q3",null,14775,36682,21907,16368,15775,28008,16557,10891,4166,24265,24265,8282,8844,2911,9630,4472,119474,33598,8104,12476,34614,34614,23367,37875,123784,48192,70410,47689,31914,5526,31914,53374,68303,8881,11510,8619,26311,2915,2915,15578,13674,469093,16557,3067,3067,10545,27063,6725,74842,40228,5952,16194,8104,12]
["SIMD Q4",null,17048,56213,39165,12745,9303,23680,17825,14853,3589,11799,11799,11465,7065,8598,14037,6065,113758,35609,688,12801,27274,27274,27654,31260,116221,71636,70387,42063,32760,6043,32760,45834,68659,5845,15423,9678,18881,4382,4382,26672,13379,468792,17825,6029,6029,6937,26953,11264,78156,50882,5042,13168,688,13]
["SIMD Q5 (least deprived)",null,38569,74964,36395,9014,2838,21882,4614,14673,3026,6007,6007,9920,6015,24782,7409,23171,157070,92126,0,12867,34322,34322,27540,27520,126501,81756,94858,12542,9704,4256,9704,31643,118134,5603,6792,5410,12785,683,683,12164,13607,465079,4614,0,0,10457,18858,11647,65420,31098,1522,12996,0,14]
["SIMD Q1 (most deprived)","16+ Males",7766,9993,2227,3236,2598,43317,2480,9325,4761,4757,4757,20474,14832,1938,1359,2241,73160,26867,0,9181,28208,28208,18506,113259,228703,10278,162852,8918,6320,12897,6320,65851,42472,3337,285,20811,41077,0,0,3252,19590,414601,2480,0,0,7674,24774,4564,55170,26962,12927,10909,0,15]
["SIMD Q2",null,19477,27372,7895,7802,5898,35429,7473,10843,5272,16631,16631,11962,12774,6892,10724,3172,108109,30401,2680,17970,29171,29171,28813,44763,151378,33108,81760,23235,17337,3961,17337,69618,71465,11861,5736,10525,36601,1310,1310,7156,12547,427953,7473,340,340,12130,33017,5571,56091,26920,10425,18479,2680,16]
["SIMD Q3",null,15683,36769,21086,15545,14651,25703,15432,9965,3834,22640,22640,7601,8618,2541,8752,3860,111791,32064,7758,11691,31772,31772,21656,35851,112991,47435,64861,45127,30476,4945,30476,48130,64587,8072,10666,7668,23754,2829,2829,14635,12286,438885,15432,3174,3174,9417,24376,6131,69553,37781,5378,15699,7758,17]
["SIMD Q4",null,16622,54915,38293,11904,8748,21429,16273,14220,3916,11080,11080,10104,6588,7726,12503,5187,105626,33407,611,12291,25724,25724,26511,29356,108736,69943,64951,40264,31516,5658,31516,43785,63629,5263,15028,8753,18479,4240,4240,25484,12445,442000,16273,6068,6068,6088,25306,10304,73216,47492,4579,12456,611,18]
["SIMD Q5 (least deprived)",null,37184,72963,35779,8393,4711,19994,4233,13372,2763,5367,5367,9040,5607,23255,6786,20679,145067,84359,0,12319,31627,31627,25691,25570,116839,80385,87309,13412,8701,3725,8701,29530,109207,5468,7422,5086,11961,684,684,10796,12650,435668,4233,0,0,9301,17569,10609,59856,28229,1430,12594,0,19]
["All quintiles","Female 0-4",null,null,null,null,null,null,null,null,null,null,null,null,null,null,null,null,null,null,null,null,null,null,null,null,null,null,null,null,null,null,null,null,null,null,null,null,null,null,null,null,null,null,null,null,null,null,null,null,null,null,null,null,null,20]
[null,"Female 5-9",null,null,null,null,null,null,null,null,null,null,null,null,null,null,null,null,null,null,null,null,null,null,null,null,null,null,null,null,null,null,null,null,null,null,null,null,null,null,null,null,null,null,null,null,null,null,null,null,null,null,null,null,null,21]
[null,"Female 10-15",null,null,null,null,null,null,null,null,null,null,null,null,null,null,null,null,null,null,null,null,null,null,null,null,null,null,null,null,null,null,null,null,null,null,null,null,null,null,null,null,null,null,null,null,null,null,null,null,null,null,null,null,null,22]
[null,"Female 16-19",5132,10449,5317,2420,1755,8055,2394,3878,1120,3007,3007,3946,2632,2319,2320,2269,29879,10481,506,3283,8533,8533,7161,13662,40734,12500,25770,6512,4757,1715,4757,14964,18952,2013,2051,3036,8055,395,395,3162,3858,118803,2394,526,526,2387,6909,2758,18061,9528,1947,4138,506,23]
[null,"Female 20-24",11186,17539,6353,3023,1897,10449,2757,5440,1411,3797,3797,7387,3516,2847,3144,2491,50597,24791,559,4465,12368,12368,9905,28898,64015,20059,44900,7538,5641,2383,5641,19115,35472,2476,2520,3967,10067,534,534,3854,5454,182279,2757,562,562,2966,9048,4029,26632,14264,2827,5061,559,24]
[null,"Female 25-29",11646,18412,6766,2919,1880,10393,2483,4660,1408,3846,3846,6884,3706,2469,2796,2248,52083,27486,611,4641,11146,11146,9301,32603,67710,21019,48136,8030,6150,2297,6150,19574,38454,2653,2607,3823,10607,595,595,3890,5624,187975,2483,694,694,2864,8967,3252,24839,13693,2895,5519,611,25]
[null,"Female 30-34",9712,17943,8231,3238,1920,10174,2828,3996,1462,3753,3753,5361,3622,2437,2969,2196,48660,22996,664,5214,10880,10880,9210,26708,63296,20877,42021,8755,6835,2230,6835,21275,34952,2878,2934,3676,11344,594,594,4385,5477,179608,2828,641,641,2876,9931,2534,23864,12984,2973,6109,664,26]
[null,"Female 35-39",7583,16085,8502,3276,2083,10193,2805,4130,1504,3612,3612,4328,3547,3044,3171,2902,44086,18399,746,5111,10973,10973,9241,21043,58299,18652,37236,8759,6676,2249,6676,21063,30308,2893,2567,3679,11088,587,587,4006,5318,166485,2805,700,700,2967,9975,2626,22583,11610,2680,5845,746,27]
[null,"Female 40-44",6824,15898,9074,3662,2531,11821,3657,4700,1736,4255,4255,3957,4002,3415,3457,3182,44368,16077,826,5798,11795,11795,10498,18545,58315,19026,36123,9983,7452,2474,7452,22192,28916,2880,3128,4405,11655,679,679,4598,5707,172709,3657,721,721,3414,10537,2964,24012,12217,2800,6502,826,28]
[null,"Female 45-49",7059,17560,10501,4288,3168,14637,4591,5736,2106,5713,5713,4585,4999,4300,4361,3828,50032,16115,994,6395,13972,13972,12131,21204,69713,21168,43438,12131,8963,3245,8963,26275,31469,3511,3608,5391,13605,825,825,5763,7211,202829,4591,849,849,4247,12670,3630,28608,14636,3650,7482,994,29]
[null,"Female 50-54",7514,18002,10488,4561,3606,15343,4773,5816,2099,6247,6247,5222,5016,4541,4176,3870,50162,16086,1055,6308,14461,14461,12124,22092,71857,21705,45100,13200,9594,3438,9594,26757,30928,3468,3703,5694,13668,884,884,6032,7332,209262,4773,870,870,4633,13089,3717,30276,15815,3827,7198,1055,30]
[null,"Female 55-59",6840,15898,9058,4348,3443,14228,4541,5068,1864,5813,5813,4949,4484,4332,3915,3436,45797,14875,972,5503,13155,13155,10571,19421,64733,19238,40548,12373,8930,3211,8930,24185,28101,3217,3340,5208,12011,805,805,5481,6630,190084,4541,776,776,4536,12174,3204,27933,14778,3518,6094,972,31]
[null,"Female 60-64",5820,14164,8344,3966,3221,12941,4117,4397,1655,5644,5644,3904,3948,3656,3310,2999,39293,12299,979,4825,11746,11746,9222,15156,53781,17262,32864,11540,8319,2621,8319,20917,23430,2702,3098,4810,10348,750,750,5122,5470,165146,4117,742,742,4183,10569,2742,24738,12992,2962,5119,979,32]
[null,"Female 65-69",5622,13715,8093,4306,3532,13256,4447,4573,1787,5665,5665,4107,4031,3622,3350,2876,40441,12277,1002,4943,12418,12418,9516,13288,50288,16937,30723,11757,8225,2639,8225,19565,23576,2896,3222,4928,9706,779,779,5320,5474,164057,4447,683,683,4297,9859,2786,26151,13733,2824,5053,1002,33]
[null,"Female 70-74",4129,10057,5928,3313,2739,10604,3466,3610,1346,4801,4801,3099,3110,2935,2627,2330,30842,9152,794,3713,9547,9547,7323,10260,39137,12629,23856,9093,6354,2076,6354,15281,17829,2151,2572,3901,7638,666,666,4272,4201,127150,3466,577,577,3593,7643,2264,20231,10684,2054,3899,794,34]
[null,"Female 75-79",3695,8281,4586,2642,2245,8316,2800,2850,983,3660,3660,2766,2449,2597,2148,1948,24775,7867,713,3109,7370,7370,5959,9530,33698,10254,21120,7233,4988,1746,4988,12578,14605,1653,1973,3062,6233,498,498,3398,3509,104331,2800,419,419,2805,6345,1867,16176,8806,1790,2937,713,35]
[null,"Female 80-84",3033,6388,3355,2034,1632,6246,2000,2054,662,2870,2870,2379,1804,1951,1635,1685,18839,6454,553,2196,5495,5495,4250,7853,26368,7981,16925,5426,3794,1382,3794,9443,11344,1238,1593,2273,4548,327,327,2633,2732,80217,2000,311,311,2169,4895,1392,12541,7046,1322,2017,553,36]
[null,"Female 85-89",2017,4180,2163,1315,1000,3632,1227,1203,412,1757,1757,1526,1048,1203,1030,1082,12103,4595,330,1285,3473,3473,2488,4753,15785,5134,10347,3415,2415,892,2415,5438,7403,693,954,1283,2478,219,219,1798,1579,49691,1227,189,189,1301,2960,791,8112,4639,838,1085,330,37]
[null,"Female 90+",1109,2389,1280,884,634,2253,751,747,225,991,991,840,608,710,568,667,7232,2758,240,780,2124,2124,1527,2768,8781,2925,6002,1989,1355,525,1355,2779,4357,403,536,783,1168,134,134,1129,882,29050,751,125,125,862,1611,522,4977,2853,450,628,240,38]
[null,"Male 0-4",null,null,null,null,null,null,null,null,null,null,null,null,null,null,null,null,null,null,null,null,null,null,null,null,null,null,null,null,null,null,null,null,null,null,null,null,null,null,null,null,null,null,null,null,null,null,null,null,null,null,null,null,null,39]
[null,"Male 5-9",null,null,null,null,null,null,null,null,null,null,null,null,null,null,null,null,null,null,null,null,null,null,null,null,null,null,null,null,null,null,null,null,null,null,null,null,null,null,null,null,null,null,null,null,null,null,null,null,null,null,null,null,null,40]
[null,"Male 10-15",null,null,null,null,null,null,null,null,null,null,null,null,null,null,null,null,null,null,null,null,null,null,null,null,null,null,null,null,null,null,null,null,null,null,null,null,null,null,null,null,null,null,null,null,null,null,null,null,null,null,null,null,null,41]
[null,"Male 16-19",4618,10741,6123,2762,2139,8596,2478,3910,1252,3221,3221,3524,2828,2623,2309,2475,30158,10532,556,3747,8648,8648,7657,13791,42639,13104,26871,7596,5457,1848,5457,15768,19032,1961,2363,3245,8401,494,494,3562,4118,124418,2478,549,549,2523,7367,2658,18496,9848,2016,4230,556,42]
[null,"Male 20-24",10055,17241,7186,3297,2955,10847,2809,5494,1591,3996,3996,6850,3689,3335,2990,2815,46618,20799,650,4670,12020,12020,10164,27102,64147,20259,44004,9133,6178,2412,6178,20143,31789,2508,3018,4148,10761,577,577,4430,5464,181688,2809,720,720,3010,9382,3903,26597,14577,2876,5492,650,43]
[null,"Male 25-29",13084,20153,7069,3008,2486,9915,2465,4320,1326,3672,3672,7015,3552,2823,2551,2235,49299,25953,613,4538,10466,10466,8858,31828,66712,23042,47795,8662,6176,2322,6176,18917,36368,2460,2889,3564,10197,605,605,4041,5719,186149,2465,707,707,2799,8720,2994,24530,14064,2868,5404,613,44]
[null,"Male 30-34",10533,18196,7663,3098,1993,9097,2438,3686,1379,3519,3519,5275,3358,2430,2530,1892,45742,22449,618,4657,10197,10197,8343,27904,61765,21010,42551,8457,6464,2227,6464,19214,33107,2518,2814,3224,10357,540,540,4186,5418,172305,2438,655,655,2515,8857,2307,22756,12559,2680,5610,618,45]
[null,"Male 35-39",8518,16872,8354,2990,2111,9060,2607,3767,1433,3252,3252,4008,3246,2566,2713,2396,42754,18925,687,4994,10280,10280,8761,22182,56216,19515,36499,8592,6481,2010,6481,19717,29867,2614,2643,3157,10380,536,536,4185,4942,161268,2607,712,712,2657,9337,2334,21463,11183,2403,5615,687,46]
[null,"Male 40-44",7308,16431,9123,3389,2439,10458,3273,4276,1613,3894,3894,3685,3714,3061,3382,2856,43545,16766,816,5398,11190,11190,9674,18717,55295,19411,34216,9153,6714,2118,6714,21079,29082,2717,2980,3700,11022,622,622,4187,5030,164929,3273,800,800,3044,10057,2663,22451,11261,2434,6217,816,47]
[null,"Male 45-49",7281,17228,9947,4018,3009,12866,4231,5337,2056,5061,5061,4514,4466,3704,3741,3208,47799,16303,1062,6279,13408,13408,11616,19948,63590,20910,38936,11193,8184,2694,8184,24654,30160,3128,3682,4645,12690,795,795,5184,6312,189422,4231,814,814,3755,11964,3281,27124,13716,3070,6988,1062,48]
[null,"Male 50-54",7284,17410,10126,4570,3357,13909,4657,5491,2021,5884,5884,4693,4685,4160,4090,3473,48325,16177,1035,6186,13327,13327,11677,19976,66121,21027,41191,12412,9055,3256,9055,24930,30341,3186,3617,5069,12858,908,908,5940,6814,197429,4657,928,928,4155,12072,3470,28530,15203,3512,6888,1035,49]
[null,"Male 55-59",6797,15936,9139,4032,3246,13173,4341,4964,1828,5552,5552,4632,4283,3876,3744,3233,44067,14276,1018,5421,12779,12779,10385,17580,59729,19197,37212,11962,8716,2965,8716,22517,26947,2942,3261,4790,11103,876,876,5288,6350,180737,4341,826,826,4100,11414,3136,26731,13952,3208,5985,1018,50]
[null,"Male 60-64",6027,14211,8184,3723,3097,11857,4040,4209,1579,5261,5261,3735,3731,3387,3034,2791,37412,12088,987,4431,10956,10956,8640,14433,50045,17177,30858,11077,7980,2425,7980,19187,22416,2609,2966,4304,9377,766,766,4954,5063,156406,4040,772,772,3822,9810,2630,23368,12412,2759,4685,987,51]
[null,"Male 65-69",5436,13667,8231,4139,3351,12280,4344,4311,1637,5663,5663,3703,3787,3321,3001,2478,37322,11191,1050,4682,11517,11517,8993,12473,45785,16610,27887,11360,8009,2361,8009,17898,21461,2602,2943,4478,8878,770,770,5018,4816,153467,4344,774,774,4015,9020,2674,24377,12860,2438,4667,1050,52]
[null,"Male 70-74",3551,9080,5529,2968,2599,9328,3194,3112,1185,4333,4333,2650,2773,2472,2305,1844,27189,7692,741,3266,8633,8633,6378,8760,33436,11338,20327,8593,5994,1795,5994,13109,15362,1939,2258,3391,6342,611,611,3766,3632,111869,3194,538,538,3164,6767,1927,18017,9384,1824,3426,741,53]
[null,"Male 75-79",2734,6713,3979,2218,1841,6859,2310,2318,810,3339,3339,2157,2086,2013,1690,1519,19727,5881,580,2408,6060,6060,4726,6503,24796,8457,15290,5897,4056,1293,4056,9506,11357,1321,1744,2461,4679,467,467,2901,2725,82515,2310,391,391,2312,4827,1508,13336,7276,1237,2465,580,54]
[null,"Male 80-84",2016,4681,2665,1505,1171,4512,1523,1512,486,2250,2250,1534,1329,1495,1188,1102,13669,4490,355,1683,4105,4105,3195,4488,16812,5789,10574,3989,2818,847,2818,6238,8041,862,1108,1620,2981,282,282,2077,1771,56201,1523,232,232,1563,3257,1026,9221,5116,871,1501,355,55]
[null,"Male 85-89",1046,2394,1348,820,580,2206,872,732,249,1098,1098,852,643,749,598,561,7057,2411,210,763,2030,2030,1495,2162,8120,2993,5207,2040,1460,423,1460,2913,4155,460,599,748,1326,147,147,1130,930,28287,872,119,119,815,1587,483,4832,2802,382,686,210,56]
[null,"Male 90+",444,1058,614,343,232,909,309,286,101,480,480,354,249,337,258,261,3070,1165,71,329,886,886,615,952,3439,1310,2315,840,608,190,608,1124,1875,174,252,299,520,67,67,474,414,12017,309,45,45,361,604,185,2057,1171,161,278,71,57]
["SIMD Q1 (most deprived)","Female 0-4",null,null,null,null,null,null,null,null,null,null,null,null,null,null,null,null,null,null,null,null,null,null,null,null,null,null,null,null,null,null,null,null,null,null,null,null,null,null,null,null,null,null,null,null,null,null,null,null,null,null,null,null,null,58]
[null,"Female 5-9",null,null,null,null,null,null,null,null,null,null,null,null,null,null,null,null,null,null,null,null,null,null,null,null,null,null,null,null,null,null,null,null,null,null,null,null,null,null,null,null,null,null,null,null,null,null,null,null,null,null,null,null,null,59]
[null,"Female 10-15",null,null,null,null,null,null,null,null,null,null,null,null,null,null,null,null,null,null,null,null,null,null,null,null,null,null,null,null,null,null,null,null,null,null,null,null,null,null,null,null,null,null,null,null,null,null,null,null,null,null,null,null,null,60]
[null,"Female 16-19",367,479,112,222,146,2710,169,594,274,315,315,1259,870,113,83,167,4509,1504,0,474,1829,1829,1068,6019,12832,495,8838,549,403,688,403,3994,2511,205,16,1351,2539,0,0,183,1046,24142,169,0,0,489,1455,320,3493,1664,805,719,0,61]
[null,"Female 20-24",782,982,200,320,208,4057,217,957,442,502,502,2144,1363,177,120,229,6262,2376,0,776,2248,2248,1733,10248,20452,1017,14969,811,603,1133,603,5483,3797,326,35,1946,3424,0,0,326,1925,37624,217,0,0,748,2059,515,5038,2790,1257,975,0,62]
[null,"Female 25-29",1031,1269,238,299,172,4063,204,1014,428,504,504,2793,1402,192,137,220,8045,3578,0,892,2758,2758,1906,14159,25059,1292,19205,767,595,1143,595,5854,5083,337,23,1950,3719,0,0,401,2185,45129,204,0,0,711,2135,586,6251,3493,1306,1031,0,63]
[null,"Female 30-34",906,1141,235,332,201,3606,207,887,409,430,430,2239,1246,165,124,214,7688,3523,0,874,2433,2433,1761,11989,22794,1174,16689,856,655,1118,655,6105,5048,296,33,1693,3760,0,0,360,1864,41240,207,0,0,667,2345,478,5364,2931,1339,1105,0,64]
[null,"Female 35-39",648,820,172,298,177,3239,192,774,422,361,361,1753,1095,151,145,215,6597,2822,0,690,2211,2211,1464,9938,19487,844,14051,699,522,993,522,5436,4194,280,24,1582,3365,0,0,296,1645,35038,192,0,0,562,2071,352,4558,2347,1109,947,0,65]
[null,"Female 40-44",661,829,168,255,208,3677,233,774,407,365,365,1449,1232,176,106,201,6089,2185,0,792,2275,2275,1566,8898,18428,857,12865,734,526,999,526,5563,3581,284,28,1837,3465,0,0,243,1486,33663,233,0,0,608,2098,367,4222,1947,1105,1006,0,66]
[null,"Female 45-49",594,790,196,304,239,4383,227,982,472,458,458,1647,1527,211,153,246,6820,2329,0,789,2760,2760,1771,10444,21908,818,15496,849,610,1343,610,6412,3833,312,28,2122,3984,0,0,239,1877,39197,227,0,0,734,2428,510,4950,2190,1375,1039,0,67]
[null,"Female 50-54",627,812,185,279,233,4464,220,905,457,473,473,1866,1566,212,125,258,6559,2093,0,840,2766,2766,1745,10956,22425,839,15965,795,562,1323,562,6460,3573,317,27,2202,4042,0,0,259,1798,39704,220,0,0,696,2418,448,5170,2404,1418,1038,0,68]
[null,"Female 55-59",541,700,159,260,223,3913,195,835,419,384,384,1669,1268,212,137,195,6082,2063,0,766,2446,2446,1601,9487,19924,723,14043,739,516,1263,516,5881,3441,310,23,1961,3571,0,0,233,1653,35528,195,0,0,684,2310,416,4608,2162,1233,931,0,69]
[null,"Female 60-64",440,565,125,209,200,3543,186,639,338,345,345,1330,1151,163,97,172,4925,1543,0,649,2086,2086,1288,7302,16077,602,10991,681,481,1042,481,5086,2653,232,37,1762,3061,0,0,212,1259,29212,186,0,0,630,2025,301,3837,1751,1053,781,0,70]
[null,"Female 65-69",408,525,117,187,225,3388,193,684,372,298,298,1327,1122,147,102,173,4911,1493,0,654,2098,2098,1338,6552,14944,557,10089,630,405,1045,405,4855,2620,261,32,1726,2902,0,0,182,1213,27762,193,0,0,540,1953,312,3794,1696,959,764,0,71]
[null,"Female 70-74",287,367,80,161,166,2652,149,528,279,311,311,958,867,102,87,124,3786,1086,0,473,1663,1663,1001,5396,11902,381,8053,483,317,788,317,3849,1974,198,14,1345,2379,0,0,151,960,21786,149,0,0,440,1470,249,2933,1270,683,603,0,72]
[null,"Female 75-79",243,297,54,166,144,2288,104,412,213,189,189,839,739,86,75,109,3115,962,0,508,1365,1365,920,5115,10810,307,7609,409,265,751,265,3201,1646,130,10,1167,1967,0,0,95,958,19138,104,0,0,382,1234,199,2465,1100,590,479,0,73]
[null,"Female 80-84",189,239,50,97,117,1672,82,311,140,151,151,671,560,56,42,94,2364,762,0,363,986,986,674,4049,8473,249,6032,316,199,598,199,2441,1296,136,10,821,1481,0,0,109,787,14776,82,0,0,291,960,171,1863,877,448,356,0,74]
[null,"Female 85-89",145,180,35,60,86,1027,59,165,88,101,101,442,381,33,21,44,1424,509,0,217,605,605,382,2360,4985,188,3577,208,122,361,122,1408,760,72,8,453,894,0,0,52,453,8869,59,0,0,193,514,77,1159,554,326,158,0,75]
[null,"Female 90+",71,89,18,37,55,568,24,100,56,40,40,239,203,5,6,26,814,271,0,104,352,352,204,1272,2684,91,1908,121,66,181,66,776,438,38,2,257,464,0,0,27,211,4825,24,0,0,108,312,44,655,303,213,123,0,76]
[null,"Male 0-4",null,null,null,null,null,null,null,null,null,null,null,null,null,null,null,null,null,null,null,null,null,null,null,null,null,null,null,null,null,null,null,null,null,null,null,null,null,null,null,null,null,null,null,null,null,null,null,null,null,null,null,null,null,77]
[null,"Male 5-9",null,null,null,null,null,null,null,null,null,null,null,null,null,null,null,null,null,null,null,null,null,null,null,null,null,null,null,null,null,null,null,null,null,null,null,null,null,null,null,null,null,null,null,null,null,null,null,null,null,null,null,null,null,78]
[null,"Male 10-15",null,null,null,null,null,null,null,null,null,null,null,null,null,null,null,null,null,null,null,null,null,null,null,null,null,null,null,null,null,null,null,null,null,null,null,null,null,null,null,null,null,null,null,null,null,null,null,null,null,null,null,null,null,79]
[null,"Male 16-19",377,466,89,241,178,2741,177,694,342,294,294,1171,940,136,88,163,4493,1501,0,502,1784,1784,1196,6797,13975,489,9777,588,410,774,410,4198,2532,207,23,1370,2730,0,0,171,1068,25359,177,0,0,431,1468,352,3367,1583,839,736,0,80]
[null,"Male 20-24",616,848,232,340,279,3842,211,887,427,439,439,1933,1299,169,119,194,6147,2198,0,737,2299,2299,1624,10608,20829,872,15004,845,566,1102,566,5825,3637,331,24,1872,3747,0,0,309,1746,37180,211,0,0,671,2078,460,4881,2582,1185,989,0,81]
[null,"Male 25-29",1034,1297,263,314,225,3699,158,865,346,496,496,2715,1282,163,105,196,7309,3335,0,832,2441,2441,1697,13525,23796,1309,18229,822,597,1111,597,5567,4710,255,12,1707,3574,0,0,443,2064,42600,158,0,0,710,1993,519,5913,3472,1170,1015,0,82]
[null,"Male 30-34",867,1140,273,258,176,3261,174,759,363,346,346,2130,1116,134,110,184,6619,2881,0,764,2287,2287,1523,11843,21614,1149,16292,796,620,1046,620,5322,4158,281,9,1550,3370,0,0,310,1941,38006,174,0,0,595,1952,396,4985,2698,1144,886,0,83]
[null,"Male 35-39",826,1033,207,256,150,2914,187,657,362,298,298,1533,948,136,86,165,6118,2620,0,721,2123,2123,1378,9660,18511,1059,13358,612,462,831,462,5153,3808,238,26,1384,3174,0,0,305,1610,32984,187,0,0,582,1979,295,4217,2094,956,864,0,84]
[null,"Male 40-44",675,887,212,251,167,3182,190,633,352,341,341,1296,1123,136,133,169,5949,2370,0,754,2102,2102,1387,8680,17348,917,12125,700,533,854,533,5223,3657,267,30,1491,3200,0,0,252,1408,31623,190,0,0,568,2023,281,3901,1799,878,887,0,85]
[null,"Male 45-49",626,815,189,277,203,3604,252,780,425,406,406,1626,1280,185,94,183,6621,2305,0,851,2635,2635,1631,9474,19864,854,13826,738,535,1118,535,6038,3734,309,39,1724,3787,0,0,257,1813,35878,252,0,0,600,2251,355,4795,2160,1053,1026,0,86]
[null,"Male 50-54",615,772,157,292,263,3880,260,861,454,437,437,1665,1353,189,143,241,6530,2390,0,858,2439,2439,1719,9703,20490,797,14561,815,552,1285,552,5929,3831,305,25,1895,3785,0,0,297,1800,36922,260,0,0,632,2144,407,4693,2254,1343,993,0,87]
[null,"Male 55-59",562,744,182,232,213,3779,197,814,428,389,389,1605,1264,173,112,193,5690,1884,0,727,2413,2413,1541,8490,18264,771,12759,747,534,1125,534,5505,3080,269,27,1860,3387,0,0,233,1675,33251,197,0,0,655,2118,386,4483,2070,1103,815,0,88]
[null,"Male 60-64",506,607,101,196,207,3230,154,635,333,322,322,1294,1045,160,87,146,4762,1610,0,623,2018,2018,1258,6842,14830,627,10291,645,438,964,438,4539,2590,244,20,1575,2722,0,0,194,1196,27358,154,0,0,610,1817,302,3702,1684,983,649,0,89]
[null,"Male 65-69",435,554,119,205,171,3104,200,620,337,371,371,1230,1089,127,101,136,4456,1314,0,644,1949,1949,1264,6096,13626,573,9229,577,406,978,406,4397,2307,203,19,1490,2667,0,0,161,1075,25567,200,0,0,525,1730,283,3545,1596,817,689,0,90]
[null,"Male 70-74",253,320,67,135,156,2302,139,445,245,226,226,875,747,88,64,87,3277,894,0,406,1490,1490,851,4417,9819,335,6634,419,263,674,263,3185,1648,152,15,1143,1879,0,0,119,770,18358,139,0,0,412,1306,200,2619,1129,598,538,0,91]
[null,"Male 75-79",167,225,58,122,90,1795,73,356,182,183,183,664,635,67,61,101,2383,725,0,350,1000,1000,706,3313,7452,232,5066,281,191,506,191,2386,1310,116,7,852,1478,0,0,96,679,13914,73,0,0,308,908,174,1882,882,400,408,0,92]
[null,"Male 80-84",120,162,42,69,69,1204,56,170,81,116,116,422,422,43,39,48,1646,496,0,256,725,725,426,2264,4928,165,3371,196,127,325,127,1557,865,74,3,555,970,0,0,64,425,9236,56,0,0,227,587,89,1280,555,266,256,0,93]
[null,"Male 85-89",62,83,21,37,39,565,38,104,55,67,67,224,208,23,10,24,789,234,0,104,347,347,208,1083,2336,87,1617,104,65,141,65,719,404,56,4,251,419,0,0,32,226,4449,38,0,0,106,300,49,640,293,120,104,0,94]
[null,"Male 90+",25,40,15,11,12,215,14,45,29,26,26,91,81,9,7,11,371,110,0,52,156,156,97,464,1021,42,713,33,21,63,21,308,201,30,2,92,188,0,0,9,94,1916,14,0,0,42,120,16,267,111,72,54,0,95]
["SIMD Q2","Female 0-4",null,null,null,null,null,null,null,null,null,null,null,null,null,null,null,null,null,null,null,null,null,null,null,null,null,null,null,null,null,null,null,null,null,null,null,null,null,null,null,null,null,null,null,null,null,null,null,null,null,null,null,null,null,96]
[null,"Female 5-9",null,null,null,null,null,null,null,null,null,null,null,null,null,null,null,null,null,null,null,null,null,null,null,null,null,null,null,null,null,null,null,null,null,null,null,null,null,null,null,null,null,null,null,null,null,null,null,null,null,null,null,null,null,97]
[null,"Female 10-15",null,null,null,null,null,null,null,null,null,null,null,null,null,null,null,null,null,null,null,null,null,null,null,null,null,null,null,null,null,null,null,null,null,null,null,null,null,null,null,null,null,null,null,null,null,null,null,null,null,null,null,null,null,98]
[null,"Female 16-19",959,1342,383,387,281,1847,362,646,329,884,884,668,690,359,552,215,5913,1606,118,929,1557,1557,1575,2401,8450,1616,4538,1238,957,231,957,3912,3994,760,274,561,2196,49,49,362,755,23121,362,14,14,596,1716,317,2974,1417,577,1076,118,99]
[null,"Female 20-24",2193,2788,595,753,365,2502,553,1032,376,1105,1105,1621,894,514,929,273,10080,4104,144,1303,2106,2106,2335,4568,12732,3344,7386,1593,1228,289,1228,5346,7421,953,556,762,2801,88,88,576,960,36899,553,26,26,846,2545,656,5056,2950,782,1435,144,100]
[null,"Female 25-29",2497,3162,665,776,428,2689,560,1019,434,1072,1072,1497,1016,584,927,254,11158,4643,157,1414,2393,2393,2433,5944,14679,3657,9066,1727,1299,357,1299,5613,8205,1001,495,763,3033,100,100,642,1074,40610,560,23,23,910,2580,585,5308,2915,853,1634,157,101]
[null,"Female 30-34",2127,2745,618,706,356,2556,474,846,403,1091,1091,1106,966,516,953,246,10451,3896,150,1505,2371,2371,2351,4938,13925,3276,7994,1718,1362,379,1362,5931,7606,1060,531,786,3202,62,62,694,1031,38102,474,16,16,804,2729,443,4877,2506,884,1697,150,102]
[null,"Female 35-39",1590,2207,617,566,373,2574,455,848,407,1065,1065,862,960,578,899,269,8704,2632,153,1467,2235,2235,2315,3687,11871,2646,6545,1625,1252,248,1252,5326,6014,1025,439,770,2945,71,71,528,956,33014,455,34,34,844,2381,441,4191,1956,807,1458,153,103]
[null,"Female 40-44",1433,2044,611,626,439,2816,494,905,462,1197,1197,767,1025,550,873,266,8657,2320,200,1535,2390,2390,2440,3234,11853,2501,6289,1806,1367,291,1367,5564,5773,971,457,916,3066,105,105,460,1112,33442,494,14,14,875,2498,443,4243,1853,836,1609,200,104]
[null,"Female 45-49",1498,2184,686,665,520,3587,664,1040,545,1566,1566,799,1328,754,1094,385,9718,2170,233,1758,2735,2735,2798,3645,14257,2712,7483,2134,1614,400,1614,6774,6319,1216,528,1140,3608,95,95,583,1267,39170,664,23,23,1119,3166,495,4782,2047,1032,1839,233,105]
[null,"Female 50-54",1562,2295,733,620,577,3706,713,1090,562,1695,1695,953,1254,740,1112,363,9801,2060,270,1752,2947,2947,2842,3735,14788,2808,7726,2331,1754,480,1754,7062,6141,1207,513,1189,3723,122,122,562,1315,40518,713,20,20,1263,3339,528,5082,2135,1093,1762,270,106]
[null,"Female 55-59",1390,2044,654,671,587,3484,693,936,471,1582,1582,900,1188,700,1053,288,9078,1871,231,1530,2660,2660,2466,3343,13419,2553,6938,2259,1672,438,1672,6481,5725,1183,509,1060,3369,109,109,509,1159,37275,693,14,14,1236,3112,465,4740,2080,1010,1618,231,107]
[null,"Female 60-64",1242,1852,610,563,526,3066,629,796,418,1556,1556,775,1040,528,882,251,7802,1536,248,1426,2425,2425,2222,2630,11399,2340,5533,2041,1515,318,1515,5866,4748,969,488,923,3059,104,104,498,941,32644,629,30,30,1103,2807,378,4261,1836,865,1361,248,108]
[null,"Female 65-69",1175,1846,671,601,577,3156,684,825,459,1539,1539,799,1047,523,858,247,8027,1507,236,1421,2498,2498,2246,2289,10956,2299,5323,2117,1540,360,1540,5633,4845,1041,453,976,2936,119,119,460,1056,32580,684,25,25,1133,2697,366,4358,1860,848,1439,236,109]
[null,"Female 70-74",810,1333,523,485,476,2542,547,672,353,1252,1252,642,854,468,694,146,6254,1136,173,1160,1922,1922,1832,1748,8804,1687,4127,1602,1126,274,1126,4677,3785,756,354,747,2486,103,103,369,855,25764,547,19,19,941,2191,319,3418,1496,636,1199,173,110]
[null,"Female 75-79",804,1228,424,427,440,2066,442,534,240,981,981,617,730,380,613,158,5240,1088,166,962,1578,1578,1496,1715,7811,1536,3868,1472,1032,202,1032,3943,3220,601,308,568,2070,63,63,282,805,22167,442,10,10,768,1873,294,2904,1326,608,918,166,111]
[null,"Female 80-84",713,1051,338,330,334,1620,350,357,161,817,817,502,541,350,483,151,4031,815,153,693,1257,1257,1050,1545,6306,1272,3305,1078,744,156,744,3001,2424,473,221,478,1529,60,60,236,671,17470,350,15,15,601,1472,196,2325,1068,432,653,153,112]
[null,"Female 85-89",401,587,186,245,187,890,213,208,102,455,455,275,289,203,272,67,2527,556,63,433,809,809,641,960,3673,728,1920,676,489,80,489,1753,1505,307,141,244,842,29,29,204,353,10411,213,5,5,357,911,106,1533,724,257,370,63,113]
[null,"Female 90+",195,309,114,161,104,620,147,126,61,276,276,165,184,139,147,35,1456,336,57,276,482,482,402,563,1897,373,1033,376,272,26,272,864,827,139,64,154,360,12,12,96,168,5892,147,1,1,282,504,65,904,422,102,205,57,114]
[null,"Male 0-4",null,null,null,null,null,null,null,null,null,null,null,null,null,null,null,null,null,null,null,null,null,null,null,null,null,null,null,null,null,null,null,null,null,null,null,null,null,null,null,null,null,null,null,null,null,null,null,null,null,null,null,null,null,115]
[null,"Male 5-9",null,null,null,null,null,null,null,null,null,null,null,null,null,null,null,null,null,null,null,null,null,null,null,null,null,null,null,null,null,null,null,null,null,null,null,null,null,null,null,null,null,null,null,null,null,null,null,null,null,null,null,null,null,116]
[null,"Male 10-15",null,null,null,null,null,null,null,null,null,null,null,null,null,null,null,null,null,null,null,null,null,null,null,null,null,null,null,null,null,null,null,null,null,null,null,null,null,null,null,null,null,null,null,null,null,null,null,null,null,null,null,null,null,117]
[null,"Male 16-19",925,1350,425,390,304,2032,365,621,306,904,904,564,727,419,608,218,5932,1517,140,1094,1635,1635,1715,2329,8547,1696,4487,1318,1014,213,1014,4060,3932,717,346,663,2211,67,67,380,725,23693,365,8,8,642,1849,315,2969,1334,583,1090,140,118]
[null,"Male 20-24",2227,2839,612,608,398,2609,540,1032,406,1220,1220,1679,978,616,853,295,8771,2929,156,1315,2030,2030,2347,4391,12741,3325,7435,1706,1308,322,1308,5306,6201,886,486,832,2832,91,91,669,976,35964,540,42,42,799,2474,626,4986,2956,835,1533,156,119]
[null,"Male 25-29",2659,3378,719,711,364,2551,568,1041,387,993,993,1555,940,580,850,258,10315,4305,177,1333,2157,2157,2374,6039,14465,3910,9057,1655,1291,320,1291,5408,7590,932,532,776,2896,104,104,755,1016,39611,568,46,46,835,2512,654,5178,3021,844,1503,177,120]
[null,"Male 30-34",2113,2753,640,719,387,2429,483,825,367,997,997,1196,961,508,831,220,9827,3889,146,1335,2107,2107,2160,5603,13940,3248,8561,1637,1250,319,1250,5379,7237,902,495,704,2963,71,71,752,1092,37146,483,24,24,764,2416,458,4774,2667,819,1615,146,121]
[null,"Male 35-39",1642,2265,623,614,377,2151,472,729,384,940,940,817,848,442,798,199,8615,2981,142,1335,2065,2065,2064,4380,11927,2731,6999,1557,1180,307,1180,4928,6078,886,466,603,2651,72,72,678,866,32341,472,33,33,700,2277,345,4174,2109,805,1413,142,122]
[null,"Male 40-44",1429,2014,585,580,360,2509,514,785,417,1122,1122,767,944,496,822,265,8563,2552,199,1446,2265,2265,2231,3379,11460,2417,6072,1530,1170,261,1170,5388,5784,883,403,743,2932,102,102,505,918,32014,514,29,29,822,2456,368,4117,1852,753,1527,199,123]
[null,"Male 45-49",1517,2140,623,666,498,3221,612,967,533,1351,1351,912,1179,566,936,284,9183,2341,235,1710,2595,2595,2677,3570,13124,2662,6727,1928,1430,319,1430,6397,5976,1025,522,992,3316,105,105,611,1061,36688,612,13,13,1050,3081,434,4784,2189,927,1674,235,124]
[null,"Male 50-54",1408,2065,657,667,512,3406,693,977,498,1582,1582,848,1234,726,1012,342,9438,2254,259,1662,2706,2706,2639,3451,13528,2570,7034,2125,1613,419,1613,6494,6039,1112,505,1006,3378,119,119,602,1120,37819,693,36,36,1166,3116,479,4823,2117,976,1661,259,125]
[null,"Male 55-59",1385,2032,647,563,542,3150,671,911,448,1530,1530,788,1136,622,950,282,8618,1937,257,1517,2522,2522,2428,3099,12461,2499,6391,2091,1549,381,1549,6070,5425,1049,467,914,3042,110,110,515,1055,35036,671,26,26,1100,3028,463,4388,1866,952,1489,257,126]
[null,"Male 60-64",1133,1677,544,560,505,2766,642,766,412,1384,1384,655,953,492,749,257,7336,1534,259,1249,2270,2270,2015,2467,10473,2051,5204,1879,1374,287,1374,5269,4424,921,374,847,2728,109,109,472,923,29980,642,21,21,966,2541,354,3957,1687,778,1220,259,127]
[null,"Male 65-69",1034,1670,636,598,547,2950,661,800,404,1537,1537,728,959,443,765,202,7355,1418,255,1398,2351,2351,2198,2048,9471,2054,4509,2003,1456,271,1456,4962,4343,881,384,883,2561,121,121,434,842,29727,661,23,23,1108,2401,396,4111,1760,703,1279,255,128]
[null,"Male 70-74",672,1103,431,406,433,2179,474,531,287,1161,1161,498,722,319,546,121,5419,1031,163,980,1692,1692,1511,1516,7393,1401,3466,1508,1075,216,1075,3927,3253,680,298,610,2005,98,98,291,704,22052,474,24,24,847,1922,244,2887,1195,590,996,163,129]
[null,"Male 75-79",558,884,326,303,321,1673,350,423,214,919,919,446,575,282,463,98,4030,750,145,725,1276,1276,1148,1131,5554,1091,2681,1066,745,152,745,2873,2404,472,207,468,1489,81,81,231,589,16695,350,8,8,630,1384,209,2256,980,429,719,145,130]
[null,"Male 80-84",451,719,268,227,211,1039,221,271,127,583,583,297,357,202,324,82,2740,546,89,525,878,878,796,800,3807,867,1869,697,486,107,486,1938,1641,294,148,292,1002,35,35,150,413,11333,221,6,6,390,936,144,1552,674,265,477,89,131]
[null,"Male 85-89",231,334,103,122,104,550,151,127,62,284,284,145,191,115,150,32,1369,272,49,253,430,430,380,396,1801,406,894,364,260,49,260,907,788,157,72,136,447,16,16,81,174,5568,151,1,1,223,460,65,778,348,128,209,49,132]
[null,"Male 90+",93,149,56,68,35,214,56,37,20,124,124,67,70,64,67,17,598,145,9,93,192,192,130,164,686,180,374,171,136,18,136,312,350,64,31,56,148,9,9,30,73,2286,56,0,0,88,164,17,357,165,38,74,9,133]
["SIMD Q3","Female 0-4",null,null,null,null,null,null,null,null,null,null,null,null,null,null,null,null,null,null,null,null,null,null,null,null,null,null,null,null,null,null,null,null,null,null,null,null,null,null,null,null,null,null,null,null,null,null,null,null,null,null,null,null,null,134]
[null,"Female 5-9",null,null,null,null,null,null,null,null,null,null,null,null,null,null,null,null,null,null,null,null,null,null,null,null,null,null,null,null,null,null,null,null,null,null,null,null,null,null,null,null,null,null,null,null,null,null,null,null,null,null,null,null,null,135]
[null,"Female 10-15",null,null,null,null,null,null,null,null,null,null,null,null,null,null,null,null,null,null,null,null,null,null,null,null,null,null,null,null,null,null,null,null,null,null,null,null,null,null,null,null,null,null,null,null,null,null,null,null,null,null,null,null,null,136]
[null,"Female 16-19",686,1739,1053,783,761,1343,778,521,175,1068,1068,476,417,164,454,231,5612,1436,359,598,1613,1613,1119,2366,6658,2309,3947,2204,1443,276,1443,2711,3221,478,570,407,1401,123,123,661,662,22864,778,149,149,519,1310,346,3533,1920,248,853,359,137]
[null,"Female 20-24",2047,3366,1319,892,679,1536,944,908,256,1258,1258,856,496,216,627,258,9979,4577,365,780,2249,2249,1688,5281,10715,4056,7340,2329,1650,319,1650,3375,6786,516,690,475,1711,169,169,894,872,34910,944,173,173,565,1664,652,4891,2642,394,1066,365,138]
[null,"Female 25-29",2001,3419,1418,811,728,1569,769,843,265,1309,1309,957,535,200,591,266,11165,5634,413,789,2483,2483,1632,4977,10596,4149,7016,2509,1781,307,1781,3580,7913,581,730,430,1886,184,184,928,883,36432,769,210,210,604,1694,578,5179,2696,383,1107,413,139]
[null,"Female 30-34",1580,3122,1542,1001,825,1684,948,690,274,1254,1254,616,555,161,607,281,10090,4317,453,918,2372,2372,1608,3952,9993,3968,6020,2744,1919,269,1919,3973,6770,615,846,465,2153,203,203,993,973,34795,948,188,188,664,1820,416,4982,2610,384,1231,453,140]
[null,"Female 35-39",986,2487,1501,1074,844,1712,901,700,237,1233,1233,481,545,195,619,295,8723,2948,547,934,2446,2446,1634,2996,9211,3196,5164,2899,2055,373,2055,4047,5376,619,709,499,2218,142,142,915,930,31957,901,190,190,668,1829,463,4916,2470,375,1190,547,141]
[null,"Female 40-44",869,2490,1621,1248,1048,1991,1201,773,293,1568,1568,422,658,213,683,311,8627,2347,574,1000,2434,2434,1773,2508,9074,3339,4878,3250,2202,415,2202,4196,4992,659,849,586,2292,193,193,1034,1027,33291,1201,198,198,747,1904,480,5138,2704,404,1303,574,142]
[null,"Female 45-49",895,2978,2083,1415,1294,2544,1550,940,393,2162,2162,536,868,310,942,357,10109,2094,709,1129,3028,3028,2069,2734,10876,3978,5847,4181,2887,489,2887,5029,5531,869,1000,744,2502,260,260,1369,1377,40488,1550,280,280,932,2527,547,6348,3320,580,1626,709,143]
[null,"Female 50-54",996,3074,2078,1588,1612,2825,1593,997,405,2340,2340,660,926,266,849,404,10273,2070,719,1196,3271,3271,2193,2861,10969,4168,5977,4739,3127,546,3127,4992,5409,875,1094,798,2428,284,284,1497,1329,42537,1593,282,282,1101,2564,592,7016,3745,571,1615,719,144]
[null,"Female 55-59",906,2768,1862,1542,1487,2500,1570,898,386,2173,2173,638,808,279,836,395,9353,1821,683,1070,2987,2987,1968,2555,10187,3724,5518,4507,3020,571,3020,4669,4796,764,956,764,2144,244,244,1372,1172,39153,1570,262,262,928,2525,512,6539,3552,546,1375,683,145]
[null,"Female 60-64",841,2642,1801,1362,1473,2298,1415,833,326,2131,2131,526,666,240,729,343,8015,1486,693,970,2581,2581,1803,1882,8296,3506,4371,4238,2765,397,2765,3925,4019,649,864,762,1815,221,221,1235,1017,34585,1415,261,261,870,2110,507,5704,3123,492,1155,693,146]
[null,"Female 65-69",794,2604,1810,1443,1556,2476,1515,823,359,2297,2297,548,770,211,739,327,8396,1422,707,1016,2823,2823,1839,1598,7763,3496,4058,4342,2786,395,2786,3705,4058,720,892,784,1794,227,227,1293,1042,35061,1515,234,234,922,1911,464,6107,3284,485,1177,707,147]
[null,"Female 70-74",599,1937,1338,1085,1160,1997,1143,657,279,1869,1869,415,608,162,589,261,6421,1066,575,729,2149,2149,1386,1242,6160,2692,3141,3394,2234,329,2234,3019,3129,545,755,653,1406,229,229,1119,795,27558,1143,216,216,736,1613,378,4768,2619,352,929,575,148]
[null,"Female 75-79",553,1598,1045,818,954,1479,921,537,217,1422,1422,400,433,119,501,257,5125,892,509,604,1689,1689,1141,1038,5134,2207,2637,2589,1635,296,1635,2497,2515,430,609,517,1087,185,185,851,639,22028,921,168,168,529,1410,320,3758,2069,288,692,509,149]
[null,"Female 80-84",501,1179,678,624,676,1081,680,386,148,1051,1051,397,318,78,390,250,3774,707,381,419,1223,1223,805,937,4117,1687,2178,1879,1203,216,1203,1939,1871,297,508,359,834,106,106,671,454,16697,680,124,124,404,1105,238,2915,1692,243,477,381,150]
[null,"Female 85-89",331,820,489,408,407,610,397,243,108,717,717,222,144,50,302,154,2406,491,245,220,815,815,463,565,2472,1088,1337,1219,812,175,812,1135,1194,155,268,227,441,78,78,458,259,10459,397,73,73,239,694,135,1903,1088,134,246,245,151]
[null,"Female 90+",190,459,269,274,271,363,232,142,45,413,413,132,97,47,172,82,1406,290,172,104,451,451,246,383,1563,629,981,666,395,153,395,582,723,109,170,149,199,67,67,288,243,6278,232,59,59,117,383,97,1145,694,73,152,172,152]
[null,"Male 0-4",null,null,null,null,null,null,null,null,null,null,null,null,null,null,null,null,null,null,null,null,null,null,null,null,null,null,null,null,null,null,null,null,null,null,null,null,null,null,null,null,null,null,null,null,null,null,null,null,null,null,null,null,null,153]
[null,"Male 5-9",null,null,null,null,null,null,null,null,null,null,null,null,null,null,null,null,null,null,null,null,null,null,null,null,null,null,null,null,null,null,null,null,null,null,null,null,null,null,null,null,null,null,null,null,null,null,null,null,null,null,null,null,null,154]
[null,"Male 10-15",null,null,null,null,null,null,null,null,null,null,null,null,null,null,null,null,null,null,null,null,null,null,null,null,null,null,null,null,null,null,null,null,null,null,null,null,null,null,null,null,null,null,null,null,null,null,null,null,null,null,null,null,null,155]
[null,"Male 16-19",619,1851,1232,925,815,1444,794,512,217,1208,1208,389,465,160,516,246,5571,1311,381,626,1656,1656,1138,2054,6634,2408,3768,2505,1690,260,1690,2866,3121,412,557,383,1487,150,150,807,785,23727,794,167,167,596,1379,295,3777,2121,263,882,381,156]
[null,"Male 20-24",2020,3535,1515,983,822,1804,938,931,293,1382,1382,762,629,221,635,326,9367,3675,447,830,2293,2293,1761,4734,10454,4210,6922,2598,1776,386,1776,3532,6136,599,675,528,1746,180,180,1070,864,35247,938,229,229,647,1786,638,5108,2815,391,1227,447,157]
[null,"Male 25-29",2507,3861,1354,874,741,1601,868,783,228,1315,1315,898,628,208,597,252,10586,5065,411,773,2284,2284,1556,4871,10361,4548,7046,2522,1781,364,1781,3315,7434,568,687,422,1654,203,203,863,916,35940,868,202,202,551,1661,555,4919,2635,435,1204,411,158]
[null,"Male 30-34",1901,3336,1435,977,702,1491,885,655,220,1233,1233,736,532,179,525,254,9969,4483,449,775,2265,2265,1430,4492,10217,4128,6576,2653,1951,323,1951,3641,6819,567,792,394,1927,175,175,963,950,34643,885,222,222,565,1714,435,4941,2676,378,1244,449,159]
[null,"Male 35-39",1378,2828,1450,967,788,1594,835,642,222,1144,1144,528,598,158,540,263,8852,3418,495,936,2232,2232,1578,3444,9199,3551,5375,2770,1982,347,1982,3824,5785,586,723,417,2112,162,162,942,831,32007,835,225,225,579,1712,420,4669,2437,332,1241,495,160]
[null,"Male 40-44",1063,2661,1598,1136,943,1780,1098,717,292,1367,1367,478,609,188,701,265,8689,2555,562,954,2385,2385,1671,2499,8483,3466,4552,2890,1947,349,1947,3931,5206,640,805,515,2101,166,166,923,847,31831,1098,220,220,656,1830,425,4922,2537,404,1310,562,161]
[null,"Male 45-49",1045,3055,2010,1368,1251,2296,1359,882,370,1886,1886,501,798,236,802,305,9492,2240,755,1160,2847,2847,2042,2602,9794,4032,5135,3799,2548,402,2548,4659,5286,743,977,674,2351,216,216,1207,1096,37651,1359,263,263,824,2308,512,5923,3076,494,1501,755,162]
[null,"Male 50-54",1068,3059,1991,1592,1399,2568,1561,946,380,2194,2194,642,905,242,819,388,9822,2201,720,1203,2967,2967,2149,2611,10234,4060,5533,4402,3003,479,3003,4701,5294,749,1001,756,2320,284,284,1419,1267,40386,1561,300,300,907,2381,566,6620,3653,546,1525,720,163]
[null,"Male 55-59",947,2791,1844,1476,1413,2249,1530,888,376,2106,2106,596,713,231,839,380,9193,1854,709,1022,2906,2906,1910,2317,9276,3753,5061,4380,2967,511,2967,4215,4757,692,962,722,1919,303,303,1324,1096,37545,1530,270,270,814,2296,512,6302,3396,526,1372,709,164]
[null,"Male 60-64",850,2574,1724,1256,1370,2167,1350,778,308,2038,2038,500,680,204,739,296,7823,1524,683,847,2431,2431,1625,1935,7810,3410,4163,4178,2808,383,2808,3647,4042,658,836,641,1637,242,242,1249,882,33247,1350,266,266,846,2010,470,5436,3005,463,1121,683,165]
[null,"Male 65-69",802,2600,1798,1465,1569,2320,1462,797,326,2190,2190,503,709,222,691,261,7857,1374,743,911,2594,2594,1708,1535,7064,3469,3692,4333,2764,358,2764,3372,3801,662,869,763,1649,234,234,1208,918,33371,1462,277,277,848,1723,471,5770,3176,398,1074,743,166]
[null,"Male 70-74",496,1770,1274,957,1133,1761,1079,571,249,1755,1755,354,545,123,526,217,5596,815,536,687,1900,1900,1258,1089,5184,2408,2713,3255,2122,301,2122,2471,2617,470,638,574,1160,195,195,970,679,24436,1079,207,207,642,1311,322,4181,2281,304,806,536,167]
[null,"Male 75-79",449,1329,880,715,851,1302,799,400,165,1317,1317,308,407,68,349,172,4159,651,413,488,1438,1438,888,776,3820,1893,1896,2293,1442,214,1442,1924,1922,344,564,429,846,140,140,742,479,18146,799,156,156,466,1078,235,3203,1765,187,578,413,168]
[null,"Male 80-84",317,916,599,470,508,803,522,283,105,892,892,210,259,69,274,129,2829,545,245,290,910,910,573,535,2594,1232,1373,1521,1013,141,1013,1221,1397,223,316,274,511,105,105,529,335,12096,522,93,93,270,710,178,2119,1209,164,355,245,169]
[null,"Male 85-89",158,417,259,267,245,374,259,124,56,413,413,144,106,20,140,71,1413,248,149,125,467,467,249,237,1267,607,694,740,495,89,495,573,687,121,190,117,244,53,53,286,208,6019,259,57,57,151,329,68,1164,697,69,178,149,170]
[null,"Male 90+",63,186,123,117,101,149,93,56,27,200,200,52,35,12,59,35,573,105,60,64,197,197,120,120,600,260,362,288,187,38,187,238,283,38,74,59,90,21,21,133,133,2593,93,20,20,55,148,29,499,302,24,81,60,171]
["SIMD Q4","Female 0-4",null,null,null,null,null,null,null,null,null,null,null,null,null,null,null,null,null,null,null,null,null,null,null,null,null,null,null,null,null,null,null,null,null,null,null,null,null,null,null,null,null,null,null,null,null,null,null,null,null,null,null,null,null,172]
[null,"Female 5-9",null,null,null,null,null,null,null,null,null,null,null,null,null,null,null,null,null,null,null,null,null,null,null,null,null,null,null,null,null,null,null,null,null,null,null,null,null,null,null,null,null,null,null,null,null,null,null,null,null,null,null,null,null,173]
[null,"Female 10-15",null,null,null,null,null,null,null,null,null,null,null,null,null,null,null,null,null,null,null,null,null,null,null,null,null,null,null,null,null,null,null,null,null,null,null,null,null,null,null,null,null,null,null,null,null,null,null,null,null,null,null,null,null,174]
[null,"Female 16-19",1082,2976,1894,569,433,1093,875,880,179,481,481,911,337,362,874,347,5276,1328,29,605,1236,1236,1485,1386,5855,3751,3282,1946,1513,325,1513,2573,3165,287,775,461,1132,197,197,1452,647,23408,875,363,363,295,1441,701,4168,2932,215,676,29,175]
[null,"Female 20-24",2572,4756,2184,634,461,1319,840,1254,191,624,624,1990,445,550,1110,357,8161,3456,50,805,1598,1598,2059,4937,10228,5560,7331,2129,1668,397,1668,2897,5723,332,804,535,1272,233,233,1483,814,34833,840,363,363,339,1625,1063,5705,4107,276,825,50,176]
[null,"Female 25-29",2096,4458,2362,631,406,1203,792,987,175,607,607,998,412,436,777,382,9342,4806,41,776,1580,1580,1763,4096,9115,5351,6268,2277,1871,319,1871,2847,6970,385,893,498,1234,257,257,1387,750,33433,792,461,461,293,1613,812,4596,3016,285,1002,41,177]
[null,"Female 30-34",1659,4533,2874,707,426,1307,920,894,235,624,624,781,461,467,863,341,9182,4054,61,882,1666,1666,1776,3266,8788,5547,5502,2667,2241,285,2241,3286,6596,481,1014,469,1365,290,290,1671,859,33838,920,437,437,377,1921,659,4825,3159,284,1198,61,178]
[null,"Female 35-39",1289,4279,2990,763,521,1435,946,980,244,605,605,660,543,502,958,404,8414,3028,46,941,1788,1788,1921,2401,8648,5267,4827,2670,2149,403,2149,3821,5680,492,988,512,1524,315,315,1580,853,32800,946,476,476,380,2297,736,4791,3003,264,1202,46,179]
[null,"Female 40-44",1032,4278,3246,824,642,1765,1248,1195,324,749,749,647,559,597,1156,463,8792,2583,52,1157,2062,2062,2352,2023,9050,5535,4898,3193,2551,466,2551,4152,5482,472,1257,661,1717,338,338,1999,1017,35805,1248,509,509,545,2435,871,5532,3470,332,1271,52,180]
[null,"Female 45-49",1060,4916,3856,1089,851,2127,1657,1405,401,1025,1025,749,671,762,1391,564,9998,2440,52,1304,2558,2558,2709,2256,10779,6352,5996,3821,2970,619,2970,4783,5783,552,1436,848,2076,395,395,2547,1313,42189,1657,546,546,608,2707,1004,6943,4385,482,1400,52,181]
[null,"Female 50-54",1120,5059,3939,1238,908,2293,1803,1481,361,1135,1135,834,692,853,1356,566,10326,2652,66,1218,2674,2674,2699,2381,11241,6550,6431,4130,3222,690,3222,4810,5849,539,1491,986,2063,411,411,2584,1401,44075,1803,568,568,615,2747,1120,7330,4656,540,1302,66,182]
[null,"Female 55-59",1037,4423,3386,1097,848,2195,1691,1228,322,1139,1139,841,660,914,1271,522,9310,2379,58,1067,2469,2469,2295,2093,10126,5775,5988,3761,2913,591,2913,4138,5150,462,1352,889,1694,399,399,2318,1309,39814,1691,500,500,646,2444,906,6725,4256,559,1038,58,183]
[null,"Female 60-64",959,3995,3036,1106,803,2041,1524,1023,264,1097,1097,601,589,730,1062,466,8119,1996,38,888,2250,2250,1911,1635,8356,5199,4848,3583,2780,464,2780,3508,4345,422,1204,891,1445,369,369,2190,1135,35061,1524,451,451,561,2063,759,6147,3897,418,865,38,184]
[null,"Female 65-69",988,3965,2977,1187,921,2080,1655,1061,293,1044,1044,664,582,714,1063,425,8269,1919,59,987,2316,2316,2048,1431,7576,5290,4498,3646,2725,434,2725,3078,4298,459,1325,914,1206,382,382,2219,1057,34888,1655,424,424,584,1872,768,6386,4070,437,857,59,185]
[null,"Female 70-74",696,2869,2173,943,729,1752,1324,844,227,900,900,466,431,507,761,332,6267,1445,46,739,1793,1793,1583,1025,5385,3866,3323,2793,2064,363,2064,2062,3150,354,997,745,790,289,289,1688,760,26320,1324,342,342,576,1272,617,4890,3097,336,590,46,186]
[null,"Female 75-79",592,2298,1706,734,561,1235,1068,619,149,709,709,407,305,480,570,302,4862,1182,38,582,1309,1309,1201,920,4486,3022,2785,2157,1596,242,1596,1701,2485,263,724,512,677,227,227,1389,570,20708,1068,241,241,418,1024,470,3839,2530,271,470,38,187]
[null,"Female 80-84",457,1728,1271,591,383,941,729,486,110,561,561,405,191,337,443,257,3631,1013,19,423,976,976,909,691,3303,2317,2127,1636,1253,226,1253,1176,1926,178,589,381,429,134,134,1015,439,15634,729,172,172,369,747,376,2987,2011,177,292,19,188]
[null,"Female 85-89",280,1087,807,349,250,552,474,299,69,328,328,324,116,258,253,169,2389,835,22,254,592,592,553,445,2100,1464,1421,1002,752,144,752,679,1323,96,377,226,178,98,98,696,294,9988,474,111,111,210,501,230,1961,1369,111,139,22,189]
[null,"Female 90+",129,593,464,283,160,342,279,217,45,171,171,187,71,129,129,168,1420,493,11,173,407,407,390,274,1185,790,862,652,492,75,492,323,734,71,197,150,79,48,48,454,161,5998,279,65,65,121,244,172,1331,924,55,41,11,190]
[null,"Male 0-4",null,null,null,null,null,null,null,null,null,null,null,null,null,null,null,null,null,null,null,null,null,null,null,null,null,null,null,null,null,null,null,null,null,null,null,null,null,null,null,null,null,null,null,null,null,null,null,null,null,null,null,null,null,191]
[null,"Male 5-9",null,null,null,null,null,null,null,null,null,null,null,null,null,null,null,null,null,null,null,null,null,null,null,null,null,null,null,null,null,null,null,null,null,null,null,null,null,null,null,null,null,null,null,null,null,null,null,null,null,null,null,null,null,192]
[null,"Male 10-15",null,null,null,null,null,null,null,null,null,null,null,null,null,null,null,null,null,null,null,null,null,null,null,null,null,null,null,null,null,null,null,null,null,null,null,null,null,null,null,null,null,null,null,null,null,null,null,null,null,null,null,null,null,193]
[null,"Male 16-19",864,3036,2172,703,506,1224,850,887,230,530,530,764,360,450,741,351,5165,1255,35,817,1393,1393,1704,1295,6138,3869,3424,2351,1845,396,1845,2714,2922,275,833,516,1150,247,247,1628,709,24732,850,374,374,348,1564,657,4488,3095,223,651,35,194]
[null,"Male 20-24",2141,4587,2446,841,566,1330,880,1289,301,642,642,1669,402,597,931,359,7703,2963,47,956,1822,1822,2245,4227,10081,5633,6841,2612,2046,415,2046,3240,5001,299,1046,586,1511,259,259,1717,915,35228,880,449,449,342,1729,988,6049,4227,328,808,47,195]
[null,"Male 25-29",2425,4870,2445,698,460,1183,705,923,250,607,607,1097,396,471,656,379,8535,4394,25,783,1592,1592,1706,4060,9419,5814,6535,2476,2016,329,2016,2884,6238,329,944,447,1294,253,253,1446,969,33718,705,459,459,340,1590,673,4833,3241,327,859,25,196]
[null,"Male 30-34",1793,4435,2642,681,400,1120,711,862,311,641,641,696,421,426,691,297,8655,4162,23,811,1593,1593,1673,3364,8697,5396,5455,2509,2109,350,2109,3242,6351,386,961,379,1407,253,253,1593,763,32346,711,409,409,320,1835,551,4563,2970,255,1112,23,197]
[null,"Male 35-39",1410,4392,2982,650,500,1313,843,1016,315,547,547,567,468,424,839,355,8327,3277,50,937,1744,1744,1953,2491,8318,5349,4664,2650,2150,338,2150,3654,5740,473,957,472,1527,241,241,1602,833,32021,843,454,454,373,2127,701,4563,2819,223,1151,50,198]
[null,"Male 40-44",1182,4472,3290,768,626,1567,1096,1129,340,713,713,578,556,506,1115,431,8523,2736,55,1029,1858,1858,2158,2165,8703,5637,4733,2996,2370,409,2370,3970,5569,453,1165,599,1714,308,308,1791,917,34348,1096,551,551,412,2256,789,4995,3137,305,1265,55,199]
[null,"Male 45-49",1108,4649,3541,985,767,1992,1507,1411,427,944,944,692,628,668,1232,447,9571,2552,72,1240,2496,2496,2651,2237,10048,6126,5484,3583,2816,566,2816,4564,5568,471,1477,782,1991,406,406,2238,1135,39846,1507,538,538,582,2573,984,6411,3915,431,1313,72,200]
[null,"Male 50-54",1144,4977,3833,1168,865,2145,1729,1457,400,1119,1119,765,662,716,1335,559,9927,2528,56,1183,2559,2559,2640,2180,10501,6471,5827,3900,3035,645,3035,4674,5639,485,1494,887,2030,442,442,2532,1256,42258,1729,592,592,596,2644,1057,7024,4465,471,1291,56,201]
[null,"Male 55-59",1038,4504,3466,1025,803,2055,1594,1286,335,1032,1032,828,629,765,1249,420,9120,2326,52,1095,2389,2389,2381,1892,9235,5816,5354,3697,2894,566,2894,3881,5137,464,1312,830,1589,390,390,2322,1225,38483,1594,530,530,596,2292,951,6564,4175,486,1098,52,202]
[null,"Male 60-64",999,4067,3068,1028,788,1873,1526,1018,257,1046,1046,623,584,688,957,435,7736,2022,45,849,2043,2043,1867,1603,7844,5335,4598,3435,2647,474,2647,3246,4167,392,1268,767,1323,361,361,2142,1002,33820,1526,485,485,522,1923,761,5836,3793,396,796,45,203]
[null,"Male 65-69",920,4039,3119,1056,822,1882,1618,974,265,1053,1053,585,538,687,936,388,7692,1704,52,891,2202,2202,1865,1386,7242,5241,4231,3458,2636,403,2636,3011,3872,430,1202,837,1159,352,352,2162,944,33114,1618,474,474,507,1852,709,6005,3803,423,802,52,204]
[null,"Male 70-74",663,2714,2051,866,675,1555,1242,803,207,826,826,410,439,479,744,277,5750,1199,42,643,1652,1652,1446,896,4974,3647,2962,2680,2005,307,2005,2012,2856,353,933,678,793,277,277,1580,720,24360,1242,307,307,438,1219,596,4508,2856,283,560,42,205]
[null,"Male 75-79",448,1947,1499,681,453,1024,911,527,128,609,609,317,253,373,491,207,4096,953,22,475,1142,1142,1002,699,3473,2624,2183,1770,1317,221,1317,1290,2043,207,677,461,506,224,224,1216,494,17285,911,227,227,310,784,399,3356,2214,189,392,22,206]
[null,"Male 80-84",305,1272,967,409,307,702,594,362,92,456,456,278,156,270,327,157,2720,696,21,341,720,720,703,501,2361,1719,1523,1230,923,133,923,838,1406,158,447,309,302,126,126,855,307,11713,594,133,133,237,536,270,2262,1542,155,225,21,207]
[null,"Male 85-89",141,684,543,250,140,324,344,200,42,229,229,152,63,144,197,76,1510,429,12,171,360,360,371,256,1204,898,792,639,499,77,499,412,806,70,214,153,129,68,68,466,180,6184,344,61,61,108,283,158,1228,868,59,110,12,208]
[null,"Male 90+",41,270,229,95,70,140,123,76,16,86,86,83,33,62,62,49,596,211,2,70,159,159,146,104,498,368,345,278,208,29,208,153,314,18,98,50,54,33,33,194,76,2544,123,25,25,57,99,60,531,372,25,23,2,209]
["SIMD Q5 (least deprived)","Female 0-4",null,null,null,null,null,null,null,null,null,null,null,null,null,null,null,null,null,null,null,null,null,null,null,null,null,null,null,null,null,null,null,null,null,null,null,null,null,null,null,null,null,null,null,null,null,null,null,null,null,null,null,null,null,210]
[null,"Female 5-9",null,null,null,null,null,null,null,null,null,null,null,null,null,null,null,null,null,null,null,null,null,null,null,null,null,null,null,null,null,null,null,null,null,null,null,null,null,null,null,null,null,null,null,null,null,null,null,null,null,null,null,null,null,211]
[null,"Female 10-15",null,null,null,null,null,null,null,null,null,null,null,null,null,null,null,null,null,null,null,null,null,null,null,null,null,null,null,null,null,null,null,null,null,null,null,null,null,null,null,null,null,null,null,null,null,null,null,null,null,null,null,null,null,212]
[null,"Female 16-19",2038,3913,1875,459,134,1062,210,1237,163,259,259,632,318,1321,357,1309,8569,4607,0,677,2298,2298,1914,1490,6939,4329,5165,575,441,195,441,1774,6061,283,416,256,787,26,26,504,748,25268,210,0,0,488,987,1074,3893,1595,102,814,0,213]
[null,"Female 20-24",3592,5647,2055,424,184,1035,203,1289,146,308,308,776,318,1390,358,1374,16115,10278,0,801,4167,4167,2090,3864,9888,6082,7874,676,492,245,492,2014,11745,349,435,249,859,44,44,575,883,38013,203,0,0,468,1155,1143,5942,1775,118,760,0,214]
[null,"Female 25-29",4021,6104,2083,402,146,869,158,797,106,354,354,639,341,1057,364,1126,12373,8825,0,770,1932,1932,1567,3427,8261,6570,6581,750,604,171,604,1680,10283,349,466,182,735,54,54,532,732,32371,158,0,0,346,945,691,3505,1573,68,745,0,215]
[null,"Female 30-34",3440,6402,2962,492,112,1021,279,679,141,354,354,619,394,1128,422,1114,11249,7206,0,1035,2038,2038,1714,2563,7796,6912,5816,770,658,179,658,1980,8932,426,510,263,864,39,39,667,750,31633,279,0,0,364,1116,538,3816,1778,82,878,0,216]
[null,"Female 35-39",3070,6292,3222,575,168,1233,311,828,194,348,348,572,404,1618,550,1719,11648,6969,0,1079,2293,2293,1907,2021,9082,6699,6649,866,698,232,698,2433,9044,477,407,316,1036,59,59,687,934,33676,311,0,0,513,1397,634,4127,1834,125,1048,0,217]
[null,"Female 40-44",2829,6257,3428,709,194,1572,481,1053,250,376,376,672,528,1879,639,1941,12203,6642,0,1314,2634,2634,2367,1882,9910,6794,7193,1000,806,303,806,2717,9088,494,537,405,1115,43,43,862,1065,36508,481,0,0,639,1602,803,4877,2243,123,1313,0,218]
[null,"Female 45-49",3012,6692,3680,815,264,1996,493,1369,295,502,502,854,605,2263,781,2276,13387,7082,0,1415,2891,2891,2784,2125,11893,7308,8616,1146,882,394,882,3277,10003,562,616,537,1435,75,75,1025,1377,41785,493,0,0,854,1842,1074,5585,2694,181,1578,0,219]
[null,"Female 50-54",3209,6762,3553,836,276,2055,444,1343,314,604,604,909,578,2470,734,2279,13203,7211,0,1302,2803,2803,2645,2159,12434,7340,9001,1205,929,399,929,3433,9956,530,578,519,1412,67,67,1130,1489,42428,444,0,0,958,2021,1029,5678,2875,205,1481,0,220]
[null,"Female 55-59",2966,5963,2997,778,298,2136,392,1171,266,535,535,901,560,2227,618,2036,11974,6741,0,1070,2593,2593,2241,1943,11077,6463,8061,1107,809,348,809,3016,8989,498,500,534,1233,53,53,1049,1337,38314,392,0,0,1042,1783,905,5321,2728,170,1132,0,221]
[null,"Female 60-64",2338,5110,2772,726,219,1993,363,1106,309,515,515,672,502,1995,540,1767,10432,5738,0,892,2404,2404,1998,1707,9653,5615,7121,997,778,400,778,2532,7665,430,505,472,968,56,56,987,1118,33644,363,0,0,1019,1564,797,4789,2385,134,957,0,222]
[null,"Female 65-69",2257,4775,2518,888,253,2156,400,1180,304,487,487,769,510,2027,588,1704,10838,5936,0,865,2683,2683,2045,1418,9049,5295,6755,1022,769,405,769,2294,7755,415,520,528,868,51,51,1166,1106,33766,400,0,0,1118,1426,876,5506,2823,95,816,0,223]
[null,"Female 70-74",1737,3551,1814,639,208,1661,303,909,208,469,469,618,350,1696,496,1467,8114,4419,0,612,2020,2020,1521,849,6886,4003,5212,821,613,322,613,1674,5791,298,452,411,577,45,45,945,831,25722,303,0,0,900,1097,701,4222,2202,47,578,0,224]
[null,"Female 75-79",1503,2860,1357,497,146,1248,265,748,164,359,359,503,242,1532,389,1122,6433,3743,0,453,1429,1429,1201,742,5457,3182,4221,606,460,255,460,1236,4739,229,322,298,432,23,23,781,537,20290,265,0,0,708,804,584,3210,1781,33,378,0,225]
[null,"Female 80-84",1173,2191,1018,392,122,932,159,514,103,290,290,404,194,1130,277,933,5039,3157,0,298,1053,1053,812,631,4169,2456,3283,517,395,186,395,886,3827,154,265,234,275,27,27,602,381,15640,159,0,0,504,611,411,2451,1398,22,239,0,226]
[null,"Female 85-89",860,1506,646,253,70,553,84,288,45,156,156,263,118,659,182,648,3357,2204,0,161,652,652,449,423,2555,1666,2092,310,240,132,240,463,2621,63,160,133,123,14,14,388,220,9964,84,0,0,302,340,243,1556,904,10,172,0,227]
[null,"Female 90+",524,939,415,129,44,360,69,162,18,91,91,117,53,390,114,356,2136,1368,0,123,432,432,285,276,1452,1042,1218,174,130,90,130,234,1635,46,103,73,66,7,7,264,99,6057,69,0,0,234,168,144,942,510,7,107,0,228]
[null,"Male 0-4",null,null,null,null,null,null,null,null,null,null,null,null,null,null,null,null,null,null,null,null,null,null,null,null,null,null,null,null,null,null,null,null,null,null,null,null,null,null,null,null,null,null,null,null,null,null,null,null,null,null,null,null,null,229]
[null,"Male 5-9",null,null,null,null,null,null,null,null,null,null,null,null,null,null,null,null,null,null,null,null,null,null,null,null,null,null,null,null,null,null,null,null,null,null,null,null,null,null,null,null,null,null,null,null,null,null,null,null,null,null,null,null,null,230]
[null,"Male 10-15",null,null,null,null,null,null,null,null,null,null,null,null,null,null,null,null,null,null,null,null,null,null,null,null,null,null,null,null,null,null,null,null,null,null,null,null,null,null,null,null,null,null,null,null,null,null,null,null,null,null,null,null,null,231]
[null,"Male 16-19",1833,4038,2205,503,336,1155,292,1196,157,285,285,636,336,1458,356,1497,8997,4948,0,708,2180,2180,1904,1316,7345,4642,5415,834,498,205,498,1930,6525,350,604,313,823,30,30,576,831,26907,292,0,0,506,1107,1039,3895,1715,108,871,0,232]
[null,"Male 20-24",3051,5432,2381,525,890,1262,240,1355,164,313,313,807,381,1732,452,1641,14630,9034,0,832,3576,3576,2187,3142,10042,6219,7802,1372,482,187,482,2240,10814,393,787,330,925,47,47,665,963,38069,240,0,0,551,1315,1191,5573,1997,137,935,0,233]
[null,"Male 25-29",4459,6747,2288,411,696,881,166,708,115,261,261,750,306,1401,343,1150,12554,8854,0,817,1992,1992,1525,3333,8671,7461,6928,1187,491,198,491,1743,10396,376,714,212,779,45,45,534,754,34280,166,0,0,363,964,593,3687,1695,92,823,0,234]
[null,"Male 30-34",3859,6532,2673,463,328,796,185,585,118,302,302,517,328,1183,373,937,10672,7034,0,972,1945,1945,1557,2602,7297,7089,5667,862,534,189,534,1630,8542,382,557,197,690,41,41,568,672,30164,185,0,0,271,940,467,3493,1548,84,753,0,235]
[null,"Male 35-39",3262,6354,3092,503,296,1088,270,723,150,323,323,563,384,1406,450,1414,10842,6629,0,1065,2116,2116,1788,2207,8261,6825,6103,1003,707,187,707,2158,8456,431,471,281,916,61,61,658,802,31915,270,0,0,423,1242,573,3840,1724,87,946,0,236]
[null,"Male 40-44",2959,6397,3438,654,343,1420,375,1012,212,351,351,566,482,1735,611,1726,11821,6553,0,1215,2580,2580,2227,1994,9301,6974,6734,1037,694,245,694,2567,8866,474,577,352,1075,46,46,716,940,35113,375,0,0,586,1492,800,4516,1936,94,1228,0,237]
[null,"Male 45-49",2985,6569,3584,722,290,1753,501,1297,301,474,474,783,581,2049,677,1989,12932,6865,0,1318,2835,2835,2615,2065,10760,7236,7764,1145,855,289,855,2996,9596,580,667,473,1245,68,68,871,1207,39359,501,0,0,699,1751,996,5211,2376,165,1474,0,238]
[null,"Male 50-54",3049,6537,3488,851,318,1910,414,1250,289,552,552,773,531,2287,781,1943,12608,6804,0,1280,2656,2656,2530,2031,11368,7129,8236,1170,852,428,852,3132,9538,535,592,525,1345,63,63,1090,1371,40044,414,0,0,854,1787,961,5370,2714,176,1418,0,239]
[null,"Male 55-59",2865,5865,3000,736,275,1940,349,1065,241,495,495,815,541,2085,594,1958,11446,6275,0,1060,2549,2549,2125,1782,10493,6358,7647,1047,772,382,772,2846,8548,468,493,464,1166,73,73,894,1299,36422,349,0,0,935,1680,824,4994,2445,141,1211,0,240]
[null,"Male 60-64",2539,5286,2747,683,227,1821,368,1012,269,471,471,663,469,1843,502,1657,9755,5398,0,863,2194,2194,1875,1586,9088,5754,6602,940,713,317,713,2486,7193,394,468,474,967,54,54,897,1060,32001,368,0,0,878,1519,743,4437,2243,139,899,0,241]
[null,"Male 65-69",2245,4804,2559,815,242,2024,403,1120,305,512,512,657,492,1842,508,1491,9962,5381,0,838,2421,2421,1958,1408,8382,5273,6226,989,747,351,747,2156,7138,426,469,505,842,63,63,1053,1037,31688,403,0,0,1027,1314,815,4946,2525,97,823,0,242]
[null,"Male 70-74",1467,3173,1706,604,202,1531,260,762,197,365,365,513,320,1463,425,1142,7147,3753,0,550,1899,1899,1312,842,6066,3547,4552,731,529,297,529,1514,4988,284,374,386,505,41,41,806,759,22663,260,0,0,825,1009,565,3822,1923,49,526,0,243]
[null,"Male 75-79",1112,2328,1216,397,126,1065,177,612,121,311,311,422,216,1223,326,941,5059,2802,0,370,1204,1204,982,584,4497,2617,3464,487,361,200,361,1033,3678,182,289,251,360,22,22,616,484,16475,177,0,0,598,673,491,2639,1435,32,368,0,244]
[null,"Male 80-84",823,1612,789,330,76,764,130,426,81,203,203,327,135,911,224,686,3734,2207,0,271,872,872,697,388,3122,1806,2438,345,269,141,269,684,2732,113,194,190,196,16,16,479,291,11823,130,0,0,439,488,345,2008,1136,21,188,0,245]
[null,"Male 85-89",454,876,422,144,52,393,80,177,34,105,105,187,75,447,101,358,1976,1228,0,110,426,426,287,190,1512,995,1210,193,141,67,141,302,1470,56,119,91,87,10,10,265,142,6067,80,0,0,227,215,143,1022,596,6,85,0,246]
[null,"Male 90+",222,413,191,52,14,191,23,72,9,44,44,61,30,190,63,149,932,594,0,50,182,182,122,100,634,460,521,70,56,42,56,113,727,24,47,42,40,4,4,108,38,2678,23,0,0,119,73,63,403,221,2,46,0,247]

{"sheet":"Pop2016_in_settlements","index":12,"n_rows":249,"n_cols":56,"rows_kept":249,"cut":false,"hidden":true,"merged":[]}
["2016 population in urban settlements (16+ only)"]
[]
["SIMD","group","Aberdeen City Local Authority","Aberdeen City Region Deal","Aberdeenshire Local Authority","Angus Local Authority","Argyll & Bute Local Authority","Ayrshire & Arran Health Board","Borders Health Board","Clackmannanshire & Stirling IJB","Clackmannanshire Local Authority","Dumfries & Galloway Health Board","Dumfries & Galloway Local Authority","Dundee City Local Authority","East Ayrshire Local Authority","East Dunbartonshire Local Authority","East Lothian Local Authority","East Renfrewshire Local Authority","Edinburgh & SE Scotland City Region Deal","Edinburgh, City of Local Authority","Eilean Siar Local Authority","Falkirk Local Authority","Fife Health Board","Fife Local Authority","Forth Valley Health Board","Glasgow City Local Authority","Glasgow City Region Deal","Grampian Health Board","Greater Glasgow & Clyde Health Board","Highland Health Board","Highland Local Authority","Inverclyde Local Authority","Inverness & Highland City Region Deal","Lanarkshire Health Board","Lothian Health Board","Midlothian Local Authority","Moray Local Authority","North Ayrshire Local Authority","North Lanarkshire Local Authority","Orkney Health Board","Orkney Islands Local Authority","Perth & Kinross Local Authority","Renfrewshire Local Authority","Scotland","Scottish Borders Local Authority","Shetland Health Board","Shetland Islands Local Authority","South Ayrshire Local Authority","South Lanarkshire Local Authority","Stirling Local Authority","Tay Cities Region Deal ","Tayside Health Board","West Dunbartonshire Local Authority","West Lothian Local Authority","Western Isles Health Board",1]
[null,null,"popS12000033","Aber_deal","popS12000034","popS12000041","popS12000035","popS08000015","popS08000016","ClacksStirIJB","popS12000005","popS08000017","popS12000006","popS12000042","popS12000008","popS12000045","popS12000010","popS12000011","EdinSE_deal","popS12000036","popS12000013","popS12000014","popS08000018","popS12000015","popS08000019","popS12000046","GClyde_deal","popS08000020","popS08000021","popS08000022","popS12000017","popS12000018","Inver_deal","popS08000023","popS08000024","popS12000019","popS12000020","popS12000021","popS12000044","popS08000025","popS12000023","popS12000024","popS12000038","popS00000001","popS12000026","popS08000026","popS12000027","popS12000028","popS12000029","popS12000030","Tay_deal","popS08000027","popS12000039","popS12000040","popS08000028",2]
["All quintiles","16+ Males and Females",null,null,null,null,null,null,null,null,null,null,null,null,null,null,null,null,null,null,null,null,null,null,null,null,null,null,null,null,null,null,null,null,null,null,null,null,null,null,null,null,null,null,null,null,null,null,null,null,null,null,null,null,null,3]
["Q1 and Q2","16+ Males and Females",null,null,null,null,null,null,null,null,null,null,null,null,null,null,null,null,null,null,null,null,null,null,null,null,null,null,null,null,null,null,null,null,null,null,null,null,null,null,null,null,null,null,null,null,null,null,null,null,null,null,null,null,null,4]
["SIMD Q1 (most deprived)","16+ Males and Females",{"$f":"SUM(C60:C97)","v":13322},14841,1519,5525,3757,68394,3475,7878,0,6464,6464,42442,22417,4139,1533,4928,33060,0,0,16483,0,0,24361,210510,423492,15476,298335,10112,6355,21127,6355,125157,{"$f":"SUM(AI60:AI97)","v":29585},7071,635,33950,77820,0,0,6620,36117,{"$f":"SUM(AR60:AR97)","v":635946},3475,0,0,12027,47337,7878,{"$f":"SUM(AY60:AY97)","v":54587},54587,21514,20981,0,5]
["SIMD Q2",null,{"$f":"SUM(C98:C135)","v":37525},44265,6740,10042,3889,44245,9108,8527,0,13038,13038,22633,17336,9666,13669,6146,76932,0,512,31803,0,0,40330,82979,270381,53651,147173,20166,16277,6541,16277,123208,{"$f":"SUM(AI98:AI135)","v":67824},18712,9386,14553,65960,1072,1072,10721,25399,563723,9108,0,0,12356,57248,8527,43396,43396,16442,35443,512,6]
["SIMD Q3",null,{"$f":"SUM(C136:C173)","v":24043},40713,16670,13955,2319,31050,14869,6331,0,11229,11229,13995,10973,2645,7715,7698,53785,0,1221,17531,0,0,23862,65136,184386,50368,110737,14988,12669,7777,12669,73649,{"$f":"SUM(AI136:AI173)","v":38916},8851,9655,9586,38476,1938,1938,10912,20038,411689,14869,0,0,10491,35173,6331,38862,38862,7443,22350,1221,7]
["SIMD Q4",null,{"$f":"SUM(C174:C211)","v":27909},49477,21568,11344,1517,26280,8874,10113,0,7890,7890,12578,7519,9715,8596,6669,36543,0,0,16947,0,0,27060,51252,156154,53176,98653,16852,15335,5296,15335,57501,{"$f":"SUM(AI174:AI211)","v":27669},5234,3699,10101,25055,1334,1334,13514,19702,364554,8874,1829,1829,8660,32446,10113,37436,37436,6019,13839,0,8]
["SIMD Q5 (least deprived)",null,{"$f":"SUM(C212:C249)","v":57726},95349,37623,11476,2773,27363,5397,14741,0,7364,7364,15996,10287,38198,10921,35082,43979,0,0,19851,0,0,34592,48952,191030,100272,144218,11903,9130,2725,9130,46812,{"$f":"SUM(AI212:AI249)","v":38582},6407,4923,5645,19507,0,0,16018,17677,459993,5397,0,0,11431,27305,14741,43490,43490,1584,21254,0,9]
["SIMD Q1 (most deprived)","16+ Females",null,null,null,null,null,null,null,null,null,null,null,null,null,null,null,null,null,null,null,null,null,null,null,null,null,null,null,null,null,null,null,null,null,null,null,null,null,null,null,null,null,null,null,null,null,null,null,null,null,null,null,null,null,10]
["SIMD Q2",null,null,null,null,null,null,null,null,null,null,null,null,null,null,null,null,null,null,null,null,null,null,null,null,null,null,null,null,null,null,null,null,null,null,null,null,null,null,null,null,null,null,null,null,null,null,null,null,null,null,null,null,null,null,11]
["SIMD Q3",null,null,null,null,null,null,null,null,null,null,null,null,null,null,null,null,null,null,null,null,null,null,null,null,null,null,null,null,null,null,null,null,null,null,null,null,null,null,null,null,null,null,null,null,null,null,null,null,null,null,null,null,null,null,12]
["SIMD Q4",null,null,null,null,null,null,null,null,null,null,null,null,null,null,null,null,null,null,null,null,null,null,null,null,null,null,null,null,null,null,null,null,null,null,null,null,null,null,null,null,null,null,null,null,null,null,null,null,null,null,null,null,null,null,13]
["SIMD Q5 (least deprived)",null,null,null,null,null,null,null,null,null,null,null,null,null,null,null,null,null,null,null,null,null,null,null,null,null,null,null,null,null,null,null,null,null,null,null,null,null,null,null,null,null,null,null,null,null,null,null,null,null,null,null,null,null,null,14]
["SIMD Q1 (most deprived)","16+ Males",null,null,null,null,null,null,null,null,null,null,null,null,null,null,null,null,null,null,null,null,null,null,null,null,null,null,null,null,null,null,null,null,null,null,null,null,null,null,null,null,null,null,null,null,null,null,null,null,null,null,null,null,null,15]
["SIMD Q2",null,null,null,null,null,null,null,null,null,null,null,null,null,null,null,null,null,null,null,null,null,null,null,null,null,null,null,null,null,null,null,null,null,null,null,null,null,null,null,null,null,null,null,null,null,null,null,null,null,null,null,null,null,null,16]
["SIMD Q3",null,null,null,null,null,null,null,null,null,null,null,null,null,null,null,null,null,null,null,null,null,null,null,null,null,null,null,null,null,null,null,null,null,null,null,null,null,null,null,null,null,null,null,null,null,null,null,null,null,null,null,null,null,null,17]
["SIMD Q4",null,null,null,null,null,null,null,null,null,null,null,null,null,null,null,null,null,null,null,null,null,null,null,null,null,null,null,null,null,null,null,null,null,null,null,null,null,null,null,null,null,null,null,null,null,null,null,null,null,null,null,null,null,null,18]
["SIMD Q5 (least deprived)",null,null,null,null,null,null,null,null,null,null,null,null,null,null,null,null,null,null,null,null,null,null,null,null,null,null,null,null,null,null,null,null,null,null,null,null,null,null,null,null,null,null,null,null,null,null,null,null,null,null,null,null,null,null,19]
["All quintiles","Female 0-4",null,null,null,null,null,null,null,null,null,null,null,null,null,null,null,null,null,null,null,null,null,null,null,null,null,null,null,null,null,null,null,null,null,null,null,null,null,null,null,null,null,null,null,null,null,null,null,null,null,null,null,null,null,20]
[null,"Female 5-9",null,null,null,null,null,null,null,null,null,null,null,null,null,null,null,null,null,null,null,null,null,null,null,null,null,null,null,null,null,null,null,null,null,null,null,null,null,null,null,null,null,null,null,null,null,null,null,null,null,null,null,null,null,21]
[null,"Female 10-15",null,null,null,null,null,null,null,null,null,null,null,null,null,null,null,null,null,null,null,null,null,null,null,null,null,null,null,null,null,null,null,null,null,null,null,null,null,null,null,null,null,null,null,null,null,null,null,null,null,null,null,null,null,22]
[null,"Female 16-19",null,null,null,null,null,null,null,null,null,null,null,null,null,null,null,null,null,null,null,null,null,null,null,null,null,null,null,null,null,null,null,null,null,null,null,null,null,null,null,null,null,null,null,null,null,null,null,null,null,null,null,null,null,23]
[null,"Female 20-24",null,null,null,null,null,null,null,null,null,null,null,null,null,null,null,null,null,null,null,null,null,null,null,null,null,null,null,null,null,null,null,null,null,null,null,null,null,null,null,null,null,null,null,null,null,null,null,null,null,null,null,null,null,24]
[null,"Female 25-29",null,null,null,null,null,null,null,null,null,null,null,null,null,null,null,null,null,null,null,null,null,null,null,null,null,null,null,null,null,null,null,null,null,null,null,null,null,null,null,null,null,null,null,null,null,null,null,null,null,null,null,null,null,25]
[null,"Female 30-34",null,null,null,null,null,null,null,null,null,null,null,null,null,null,null,null,null,null,null,null,null,null,null,null,null,null,null,null,null,null,null,null,null,null,null,null,null,null,null,null,null,null,null,null,null,null,null,null,null,null,null,null,null,26]
[null,"Female 35-39",null,null,null,null,null,null,null,null,null,null,null,null,null,null,null,null,null,null,null,null,null,null,null,null,null,null,null,null,null,null,null,null,null,null,null,null,null,null,null,null,null,null,null,null,null,null,null,null,null,null,null,null,null,27]
[null,"Female 40-44",null,null,null,null,null,null,null,null,null,null,null,null,null,null,null,null,null,null,null,null,null,null,null,null,null,null,null,null,null,null,null,null,null,null,null,null,null,null,null,null,null,null,null,null,null,null,null,null,null,null,null,null,null,28]
[null,"Female 45-49",null,null,null,null,null,null,null,null,null,null,null,null,null,null,null,null,null,null,null,null,null,null,null,null,null,null,null,null,null,null,null,null,null,null,null,null,null,null,null,null,null,null,null,null,null,null,null,null,null,null,null,null,null,29]
[null,"Female 50-54",null,null,null,null,null,null,null,null,null,null,null,null,null,null,null,null,null,null,null,null,null,null,null,null,null,null,null,null,null,null,null,null,null,null,null,null,null,null,null,null,null,null,null,null,null,null,null,null,null,null,null,null,null,30]
[null,"Female 55-59",null,null,null,null,null,null,null,null,null,null,null,null,null,null,null,null,null,null,null,null,null,null,null,null,null,null,null,null,null,null,null,null,null,null,null,null,null,null,null,null,null,null,null,null,null,null,null,null,null,null,null,null,null,31]
[null,"Female 60-64",null,null,null,null,null,null,null,null,null,null,null,null,null,null,null,null,null,null,null,null,null,null,null,null,null,null,null,null,null,null,null,null,null,null,null,null,null,null,null,null,null,null,null,null,null,null,null,null,null,null,null,null,null,32]
[null,"Female 65-69",null,null,null,null,null,null,null,null,null,null,null,null,null,null,null,null,null,null,null,null,null,null,null,null,null,null,null,null,null,null,null,null,null,null,null,null,null,null,null,null,null,null,null,null,null,null,null,null,null,null,null,null,null,33]
[null,"Female 70-74",null,null,null,null,null,null,null,null,null,null,null,null,null,null,null,null,null,null,null,null,null,null,null,null,null,null,null,null,null,null,null,null,null,null,null,null,null,null,null,null,null,null,null,null,null,null,null,null,null,null,null,null,null,34]
[null,"Female 75-79",null,null,null,null,null,null,null,null,null,null,null,null,null,null,null,null,null,null,null,null,null,null,null,null,null,null,null,null,null,null,null,null,null,null,null,null,null,null,null,null,null,null,null,null,null,null,null,null,null,null,null,null,null,35]
[null,"Female 80-84",null,null,null,null,null,null,null,null,null,null,null,null,null,null,null,null,null,null,null,null,null,null,null,null,null,null,null,null,null,null,null,null,null,null,null,null,null,null,null,null,null,null,null,null,null,null,null,null,null,null,null,null,null,36]
[null,"Female 85-89",null,null,null,null,null,null,null,null,null,null,null,null,null,null,null,null,null,null,null,null,null,null,null,null,null,null,null,null,null,null,null,null,null,null,null,null,null,null,null,null,null,null,null,null,null,null,null,null,null,null,null,null,null,37]
[null,"Female 90+",null,null,null,null,null,null,null,null,null,null,null,null,null,null,null,null,null,null,null,null,null,null,null,null,null,null,null,null,null,null,null,null,null,null,null,null,null,null,null,null,null,null,null,null,null,null,null,null,null,null,null,null,null,38]
[null,"Male 0-4",null,null,null,null,null,null,null,null,null,null,null,null,null,null,null,null,null,null,null,null,null,null,null,null,null,null,null,null,null,null,null,null,null,null,null,null,null,null,null,null,null,null,null,null,null,null,null,null,null,null,null,null,null,39]
[null,"Male 5-9",null,null,null,null,null,null,null,null,null,null,null,null,null,null,null,null,null,null,null,null,null,null,null,null,null,null,null,null,null,null,null,null,null,null,null,null,null,null,null,null,null,null,null,null,null,null,null,null,null,null,null,null,null,40]
[null,"Male 10-15",null,null,null,null,null,null,null,null,null,null,null,null,null,null,null,null,null,null,null,null,null,null,null,null,null,null,null,null,null,null,null,null,null,null,null,null,null,null,null,null,null,null,null,null,null,null,null,null,null,null,null,null,null,41]
[null,"Male 16-19",null,null,null,null,null,null,null,null,null,null,null,null,null,null,null,null,null,null,null,null,null,null,null,null,null,null,null,null,null,null,null,null,null,null,null,null,null,null,null,null,null,null,null,null,null,null,null,null,null,null,null,null,null,42]
[null,"Male 20-24",null,null,null,null,null,null,null,null,null,null,null,null,null,null,null,null,null,null,null,null,null,null,null,null,null,null,null,null,null,null,null,null,null,null,null,null,null,null,null,null,null,null,null,null,null,null,null,null,null,null,null,null,null,43]
[null,"Male 25-29",null,null,null,null,null,null,null,null,null,null,null,null,null,null,null,null,null,null,null,null,null,null,null,null,null,null,null,null,null,null,null,null,null,null,null,null,null,null,null,null,null,null,null,null,null,null,null,null,null,null,null,null,null,44]
[null,"Male 30-34",null,null,null,null,null,null,null,null,null,null,null,null,null,null,null,null,null,null,null,null,null,null,null,null,null,null,null,null,null,null,null,null,null,null,null,null,null,null,null,null,null,null,null,null,null,null,null,null,null,null,null,null,null,45]
[null,"Male 35-39",null,null,null,null,null,null,null,null,null,null,null,null,null,null,null,null,null,null,null,null,null,null,null,null,null,null,null,null,null,null,null,null,null,null,null,null,null,null,null,null,null,null,null,null,null,null,null,null,null,null,null,null,null,46]
[null,"Male 40-44",null,null,null,null,null,null,null,null,null,null,null,null,null,null,null,null,null,null,null,null,null,null,null,null,null,null,null,null,null,null,null,null,null,null,null,null,null,null,null,null,null,null,null,null,null,null,null,null,null,null,null,null,null,47]
[null,"Male 45-49",null,null,null,null,null,null,null,null,null,null,null,null,null,null,null,null,null,null,null,null,null,null,null,null,null,null,null,null,null,null,null,null,null,null,null,null,null,null,null,null,null,null,null,null,null,null,null,null,null,null,null,null,null,48]
[null,"Male 50-54",null,null,null,null,null,null,null,null,null,null,null,null,null,null,null,null,null,null,null,null,null,null,null,null,null,null,null,null,null,null,null,null,null,null,null,null,null,null,null,null,null,null,null,null,null,null,null,null,null,null,null,null,null,49]
[null,"Male 55-59",null,null,null,null,null,null,null,null,null,null,null,null,null,null,null,null,null,null,null,null,null,null,null,null,null,null,null,null,null,null,null,null,null,null,null,null,null,null,null,null,null,null,null,null,null,null,null,null,null,null,null,null,null,50]
[null,"Male 60-64",null,null,null,null,null,null,null,null,null,null,null,null,null,null,null,null,null,null,null,null,null,null,null,null,null,null,null,null,null,null,null,null,null,null,null,null,null,null,null,null,null,null,null,null,null,null,null,null,null,null,null,null,null,51]
[null,"Male 65-69",null,null,null,null,null,null,null,null,null,null,null,null,null,null,null,null,null,null,null,null,null,null,null,null,null,null,null,null,null,null,null,null,null,null,null,null,null,null,null,null,null,null,null,null,null,null,null,null,null,null,null,null,null,52]
[null,"Male 70-74",null,null,null,null,null,null,null,null,null,null,null,null,null,null,null,null,null,null,null,null,null,null,null,null,null,null,null,null,null,null,null,null,null,null,null,null,null,null,null,null,null,null,null,null,null,null,null,null,null,null,null,null,null,53]
[null,"Male 75-79",null,null,null,null,null,null,null,null,null,null,null,null,null,null,null,null,null,null,null,null,null,null,null,null,null,null,null,null,null,null,null,null,null,null,null,null,null,null,null,null,null,null,null,null,null,null,null,null,null,null,null,null,null,54]
[null,"Male 80-84",null,null,null,null,null,null,null,null,null,null,null,null,null,null,null,null,null,null,null,null,null,null,null,null,null,null,null,null,null,null,null,null,null,null,null,null,null,null,null,null,null,null,null,null,null,null,null,null,null,null,null,null,null,55]
[null,"Male 85-89",null,null,null,null,null,null,null,null,null,null,null,null,null,null,null,null,null,null,null,null,null,null,null,null,null,null,null,null,null,null,null,null,null,null,null,null,null,null,null,null,null,null,null,null,null,null,null,null,null,null,null,null,null,56]
[null,"Male 90+",null,null,null,null,null,null,null,null,null,null,null,null,null,null,null,null,null,null,null,null,null,null,null,null,null,null,null,null,null,null,null,null,null,null,null,null,null,null,null,null,null,null,null,null,null,null,null,null,null,null,null,null,null,57]
["SIMD Q1 (most deprived)","Female 0-4",0,0,0,0,0,0,0,0,0,0,0,0,0,0,0,0,0,0,0,0,0,0,0,0,0,0,0,0,0,0,0,0,0,0,0,0,0,0,0,0,0,0,0,0,0,0,0,0,0,0,0,0,0,58]
[null,"Female 5-9",0,0,0,0,0,0,0,0,0,0,0,0,0,0,0,0,0,0,0,0,0,0,0,0,0,0,0,0,0,0,0,0,0,0,0,0,0,0,0,0,0,0,0,0,0,0,0,0,0,0,0,0,0,59]
[null,"Female 10-15",0,0,0,0,0,0,0,0,0,0,0,0,0,0,0,0,0,0,0,0,0,0,0,0,0,0,0,0,0,0,0,0,0,0,0,0,0,0,0,0,0,0,0,0,0,0,0,0,0,0,0,0,0,60]
[null,"Female 16-19",334,380,46,192,116,2110,121,258,0,219,219,1243,644,113,46,167,1026,0,0,412,0,0,670,5313,11308,396,7704,329,213,554,213,3604,905,205,16,1063,2280,0,0,183,907,17676,121,0,0,403,1324,258,1618,1618,650,654,0,61]
[null,"Female 20-24",666,740,74,255,143,3075,142,419,0,333,333,2112,1025,177,77,229,1444,0,0,680,0,0,1099,9101,18079,775,13111,409,266,878,266,4968,1302,326,35,1503,3116,0,0,326,1730,27907,142,0,0,547,1852,419,2693,2693,996,899,0,62]
[null,"Female 25-29",844,946,102,244,136,3045,144,461,0,346,346,2755,1053,192,80,220,1499,0,0,780,0,0,1241,12457,22031,969,16725,419,283,907,283,5306,1355,337,23,1487,3373,0,0,401,1934,32950,144,0,0,505,1933,461,3400,3400,1015,938,0,63]
[null,"Female 30-34",768,856,88,280,143,2800,154,343,0,311,311,2190,922,165,67,214,1523,0,0,743,0,0,1086,10409,19824,889,14298,462,319,852,319,5526,1369,296,33,1331,3414,0,0,360,1648,29725,154,0,0,547,2112,343,2830,2830,1010,1006,0,64]
[null,"Female 35-39",557,619,62,261,133,2479,148,277,0,231,231,1723,798,151,84,215,1390,0,0,581,0,0,858,8716,16994,643,12108,380,247,776,247,4886,1242,280,24,1250,3024,0,0,296,1407,25255,148,0,0,431,1862,277,2280,2280,843,878,0,65]
[null,"Female 40-44",564,618,54,213,151,2841,156,287,0,257,257,1417,916,176,61,201,1419,0,0,681,0,0,968,7859,16088,646,11127,395,244,784,244,4961,1263,284,28,1421,3127,0,0,243,1272,24487,156,0,0,504,1834,287,1873,1873,835,918,0,66]
[null,"Female 45-49",527,584,57,249,168,3297,151,412,0,298,298,1610,1115,211,79,246,1470,0,0,682,0,0,1094,9374,19351,612,13623,493,325,1052,325,5728,1319,312,28,1600,3570,0,0,239,1660,28713,151,0,0,582,2158,412,2098,2098,1080,928,0,67]
[null,"Female 50-54",557,610,53,233,165,3327,161,356,0,304,304,1836,1088,212,65,258,1486,0,0,717,0,0,1073,9778,19757,637,13942,469,304,1027,304,5815,1325,317,27,1683,3637,0,0,259,1582,29381,161,0,0,556,2178,356,2328,2328,1085,943,0,68]
[null,"Female 55-59",468,521,53,219,163,2924,126,337,0,249,249,1636,912,212,76,195,1352,0,0,650,0,0,987,8455,17548,544,12248,446,283,988,283,5300,1226,310,23,1497,3219,0,0,233,1440,26138,126,0,0,515,2081,337,2088,2088,958,840,0,69]
[null,"Female 60-64",371,416,45,184,146,2542,130,224,0,218,218,1304,794,163,51,172,1126,0,0,543,0,0,767,6450,14071,453,9444,407,261,763,261,4627,996,232,37,1287,2790,0,0,212,1098,21284,130,0,0,461,1837,224,1700,1700,798,713,0,70]
[null,"Female 65-69",344,392,48,146,158,2432,116,256,0,188,188,1297,776,147,39,173,1119,0,0,544,0,0,800,5831,13175,424,8750,361,203,798,203,4425,1003,261,32,1265,2641,0,0,182,1073,20124,116,0,0,391,1784,256,1625,1625,728,703,0,71]
[null,"Female 70-74",236,269,33,127,115,1876,93,208,0,197,197,949,579,102,22,124,864,0,0,394,0,0,602,4799,10477,283,7000,291,176,610,176,3477,771,198,14,996,2133,0,0,151,842,15817,93,0,0,301,1344,208,1227,1227,523,551,0,72]
[null,"Female 75-79",194,217,23,126,96,1629,66,160,0,132,132,829,500,86,25,109,667,0,0,440,0,0,600,4621,9588,227,6671,236,140,556,140,2917,601,130,10,864,1782,0,0,95,845,14129,66,0,0,265,1135,160,1050,1050,454,446,0,73]
[null,"Female 80-84",156,179,23,79,78,1170,50,128,0,97,97,664,405,56,14,94,530,0,0,312,0,0,440,3625,7467,189,5245,168,90,434,90,2222,480,136,10,579,1332,0,0,109,694,10913,50,0,0,186,890,128,852,852,342,330,0,74]
[null,"Female 85-89",110,122,12,49,64,723,29,58,0,67,67,436,290,33,5,44,258,0,0,195,0,0,253,2109,4341,130,3062,118,54,231,54,1279,229,72,8,311,802,0,0,52,419,6427,29,0,0,122,477,58,537,537,226,152,0,75]
[null,"Female 90+",66,71,5,18,24,386,9,27,0,17,17,237,137,5,4,26,169,0,0,104,0,0,131,1160,2320,73,1605,48,24,100,24,715,160,38,2,178,417,0,0,27,194,3426,9,0,0,71,298,27,282,282,120,118,0,76]
[null,"Male 0-4",0,0,0,0,0,0,0,0,0,0,0,0,0,0,0,0,0,0,0,0,0,0,0,0,0,0,0,0,0,0,0,0,0,0,0,0,0,0,0,0,0,0,0,0,0,0,0,0,0,0,0,0,0,77]
[null,"Male 5-9",0,0,0,0,0,0,0,0,0,0,0,0,0,0,0,0,0,0,0,0,0,0,0,0,0,0,0,0,0,0,0,0,0,0,0,0,0,0,0,0,0,0,0,0,0,0,0,0,0,0,0,0,0,78]
[null,"Male 10-15",0,0,0,0,0,0,0,0,0,0,0,0,0,0,0,0,0,0,0,0,0,0,0,0,0,0,0,0,0,0,0,0,0,0,0,0,0,0,0,0,0,0,0,0,0,0,0,0,0,0,0,0,0,79]
[null,"Male 16-19",348,373,25,204,152,2131,128,281,0,209,209,1150,685,136,56,163,1082,0,0,424,0,0,705,6138,12455,396,8671,370,218,639,218,3784,954,207,23,1090,2453,0,0,171,916,18873,128,0,0,356,1331,281,1525,1525,679,691,0,80]
[null,"Male 20-24",524,605,81,278,203,2880,128,385,0,287,287,1909,937,169,75,194,1432,0,0,675,0,0,1060,9486,18475,629,13223,471,268,880,268,5252,1304,331,24,1435,3392,0,0,309,1572,27730,128,0,0,508,1860,385,2496,2496,922,898,0,81]
[null,"Male 25-29",865,930,65,270,137,2802,123,398,0,297,297,2696,972,163,68,196,1382,0,0,728,0,0,1126,11962,21023,942,15973,375,238,870,238,5050,1259,255,12,1313,3273,0,0,443,1869,31356,123,0,0,517,1777,398,3409,3409,913,936,0,82]
[null,"Male 30-34",711,811,100,203,103,2420,142,304,0,220,220,2102,823,134,65,184,1304,0,0,677,0,0,981,10473,18933,820,14139,364,261,798,261,4794,1162,281,9,1162,3052,0,0,310,1691,27657,142,0,0,435,1742,304,2615,2615,859,816,0,83]
[null,"Male 35-39",661,716,55,212,93,2152,131,232,0,180,180,1508,681,136,55,165,1234,0,0,627,0,0,859,8431,16155,742,11550,280,187,643,187,4605,1103,238,26,1050,2873,0,0,305,1441,23627,131,0,0,421,1732,232,2025,2025,734,810,0,84]
[null,"Male 40-44",580,644,64,215,108,2364,126,236,0,200,200,1277,816,136,68,169,1256,0,0,667,0,0,903,7616,15126,674,10448,331,223,651,223,4678,1130,267,30,1140,2881,0,0,252,1240,22598,126,0,0,408,1797,236,1744,1744,636,795,0,85]
[null,"Male 45-49",566,624,58,229,144,2626,179,296,0,272,272,1614,863,185,53,183,1450,0,0,753,0,0,1049,8387,17473,663,12015,390,246,865,246,5458,1271,309,39,1296,3423,0,0,257,1584,26023,179,0,0,467,2035,296,2100,2100,811,909,0,86]
[null,"Male 50-54",512,562,50,232,178,2895,173,333,0,272,272,1637,956,189,67,241,1453,0,0,752,0,0,1085,8611,17988,587,12620,424,246,964,246,5368,1280,305,25,1440,3429,0,0,297,1630,26870,173,0,0,499,1939,333,2166,2166,985,908,0,87]
[null,"Male 55-59",489,556,67,195,146,2799,138,325,0,237,237,1587,913,173,70,193,1214,0,0,639,0,0,964,7529,16091,583,11091,421,275,870,275,5000,1076,269,27,1402,3083,0,0,233,1497,24324,138,0,0,484,1917,325,2015,2015,829,737,0,88]
[null,"Male 60-64",430,467,37,149,146,2305,100,241,0,207,207,1267,712,160,40,146,972,0,0,531,0,0,772,6124,13003,487,8910,361,215,665,215,4093,872,244,20,1157,2474,0,0,194,1068,19717,100,0,0,436,1619,241,1610,1610,747,588,0,89]
[null,"Male 65-69",356,399,43,161,114,2162,126,227,0,217,217,1215,722,127,52,136,1000,0,0,541,0,0,768,5351,11881,418,7920,329,215,746,215,3961,874,203,19,1079,2413,0,0,161,942,18312,126,0,0,361,1548,227,1537,1537,618,619,0,90]
[null,"Male 70-74",206,230,24,109,101,1592,90,162,0,148,148,866,490,88,22,87,759,0,0,336,0,0,498,3922,8615,245,5726,223,122,496,122,2889,669,152,15,811,1700,0,0,119,660,13174,90,0,0,291,1189,162,1094,1094,473,495,0,91]
[null,"Male 75-79",141,179,38,101,58,1243,49,137,0,118,118,648,419,67,26,101,563,0,0,311,0,0,448,2978,6538,186,4416,166,108,369,108,2122,514,116,7,621,1299,0,0,96,592,10107,49,0,0,203,823,137,845,845,309,372,0,92]
[null,"Male 80-84",102,119,17,59,41,843,27,69,0,78,78,415,286,43,9,48,349,0,0,220,0,0,289,2050,4364,122,2947,104,63,226,63,1417,322,74,3,395,878,0,0,64,383,6687,27,0,0,162,539,69,538,538,197,239,0,93]
[null,"Male 85-89",48,61,13,27,23,391,18,35,0,45,45,223,137,23,7,24,179,0,0,96,0,0,131,980,2079,65,1421,51,28,95,28,658,161,56,4,181,381,0,0,32,199,3223,18,0,0,73,277,35,282,282,100,98,0,94]
[null,"Male 90+",21,25,4,6,11,133,1,6,0,13,13,90,51,9,5,11,89,0,0,48,0,0,54,415,874,27,602,21,10,40,10,272,88,30,2,63,159,0,0,9,88,1316,1,0,0,19,113,6,105,105,39,53,0,95]
["SIMD Q2","Female 0-4",0,0,0,0,0,0,0,0,0,0,0,0,0,0,0,0,0,0,0,0,0,0,0,0,0,0,0,0,0,0,0,0,0,0,0,0,0,0,0,0,0,0,0,0,0,0,0,0,0,0,0,0,0,96]
[null,"Female 5-9",0,0,0,0,0,0,0,0,0,0,0,0,0,0,0,0,0,0,0,0,0,0,0,0,0,0,0,0,0,0,0,0,0,0,0,0,0,0,0,0,0,0,0,0,0,0,0,0,0,0,0,0,0,97]
[null,"Female 10-15",0,0,0,0,0,0,0,0,0,0,0,0,0,0,0,0,0,0,0,0,0,0,0,0,0,0,0,0,0,0,0,0,0,0,0,0,0,0,0,0,0,0,0,0,0,0,0,0,0,0,0,0,0,98]
[null,"Female 16-19",914,1073,159,241,108,1047,232,240,0,336,336,612,436,215,350,194,2125,0,10,800,0,0,1040,2217,7208,1275,3965,553,445,181,445,3243,1893,575,202,330,1862,18,18,299,707,14764,232,0,0,281,1381,240,1152,1152,451,968,10,99]
[null,"Female 20-24",2028,2258,230,429,133,1479,385,527,0,454,454,1479,565,347,533,256,2958,0,20,1085,0,0,1612,3975,10782,2689,6280,740,607,223,607,4502,2573,719,431,472,2384,61,61,421,901,23124,385,0,0,442,2118,527,2329,2329,578,1321,20,100]
[null,"Female 25-29",2347,2622,275,476,124,1643,380,445,0,532,532,1376,666,392,557,214,3183,0,12,1193,0,0,1638,5246,12420,2995,7703,787,663,254,663,4717,2803,723,373,499,2546,64,64,469,981,25595,380,0,0,478,2171,445,2321,2321,616,1523,12,101]
[null,"Female 30-34",2017,2252,235,439,140,1500,310,307,0,442,442,1032,643,348,561,225,3113,0,21,1237,0,0,1544,4332,11710,2650,6725,874,734,266,734,4985,2803,718,398,473,2714,29,29,555,919,23909,310,0,0,384,2271,307,2026,2026,635,1524,21,102]
[null,"Female 35-39",1486,1746,260,351,127,1513,256,305,0,444,444,794,615,362,540,244,2863,0,12,1210,0,0,1515,3374,10070,2076,5614,754,627,184,627,4456,2607,730,330,478,2472,39,39,412,867,20843,256,0,0,420,1984,305,1557,1557,583,1337,12,103]
[null,"Female 40-44",1352,1574,222,381,155,1663,299,295,0,500,500,701,648,323,493,234,2949,0,30,1277,0,0,1572,2968,10039,1908,5401,843,688,228,688,4638,2650,695,334,587,2607,47,47,380,1039,21013,299,0,0,428,2031,295,1462,1462,609,1462,30,104]
[null,"Female 45-49",1400,1679,279,427,149,2181,368,343,0,627,627,744,859,494,682,341,3585,0,21,1472,0,0,1815,3338,12157,2072,6516,858,709,314,709,5641,3217,882,393,766,3033,38,38,476,1208,25001,368,0,0,556,2608,343,1647,1647,821,1653,21,105]
[null,"Female 50-54",1448,1728,280,377,204,2129,387,365,0,572,572,875,766,491,654,349,3531,0,24,1485,0,0,1850,3456,12588,2131,6740,943,739,385,739,5848,3144,882,403,750,3126,41,41,453,1252,25514,387,0,0,613,2722,365,1705,1705,807,1608,24,106]
[null,"Female 55-59",1298,1568,270,424,204,2030,370,330,0,542,542,807,755,454,637,258,3336,0,19,1267,0,0,1597,3094,11407,1961,6010,926,722,337,722,5397,2966,874,393,711,2814,36,36,431,1113,23516,370,0,0,564,2583,330,1662,1662,754,1455,19,107]
[null,"Female 60-64",1184,1428,244,346,147,1730,338,270,0,533,533,701,639,352,539,226,2866,0,20,1217,0,0,1487,2424,9795,1828,4806,778,631,250,631,4989,2528,740,400,589,2645,34,34,402,900,20520,338,0,0,502,2344,270,1449,1449,654,1249,20,108]
[null,"Female 65-69",1112,1403,291,374,159,1872,358,286,0,530,530,721,685,345,464,234,2886,0,14,1255,0,0,1541,2157,9398,1783,4666,786,627,282,627,4732,2528,755,380,642,2504,37,37,352,1010,20294,358,0,0,545,2228,286,1447,1447,638,1309,14,109]
[null,"Female 70-74",745,974,229,321,129,1515,325,242,0,429,429,575,570,313,396,137,2385,0,20,1021,0,0,1263,1637,7611,1266,3641,593,464,232,464,3970,2060,556,292,508,2147,35,35,299,829,16312,325,0,0,437,1823,242,1195,1195,493,1108,20,110]
[null,"Female 75-79",739,934,195,262,132,1215,263,238,0,345,345,564,470,272,379,145,1971,0,14,846,0,0,1084,1632,6755,1187,3451,585,453,158,453,3304,1708,489,253,401,1748,23,23,222,776,14227,263,0,0,344,1556,238,1048,1048,468,840,14,111]
[null,"Female 80-84",662,834,172,222,105,995,224,145,0,347,347,459,359,233,260,145,1467,0,9,608,0,0,753,1463,5492,1023,2948,414,309,112,309,2544,1243,367,189,332,1321,20,20,183,656,11384,224,0,0,304,1223,145,864,864,339,616,9,112]
[null,"Female 85-89",382,493,111,168,64,542,155,77,0,156,156,242,202,131,150,62,905,0,3,391,0,0,468,925,3162,617,1679,251,187,63,187,1483,750,244,124,169,737,10,10,154,322,6678,155,0,0,171,746,77,564,564,176,356,3,113]
[null,"Female 90+",178,243,65,99,35,366,105,56,0,135,135,148,127,78,87,24,502,0,4,246,0,0,302,540,1564,300,881,141,106,16,106,683,397,115,57,105,321,1,1,72,151,3634,105,0,0,134,362,56,319,319,72,195,4,114]
[null,"Male 0-4",0,0,0,0,0,0,0,0,0,0,0,0,0,0,0,0,0,0,0,0,0,0,0,0,0,0,0,0,0,0,0,0,0,0,0,0,0,0,0,0,0,0,0,0,0,0,0,0,0,0,0,0,0,115]
[null,"Male 5-9",0,0,0,0,0,0,0,0,0,0,0,0,0,0,0,0,0,0,0,0,0,0,0,0,0,0,0,0,0,0,0,0,0,0,0,0,0,0,0,0,0,0,0,0,0,0,0,0,0,0,0,0,0,116]
[null,"Male 10-15",0,0,0,0,0,0,0,0,0,0,0,0,0,0,0,0,0,0,0,0,0,0,0,0,0,0,0,0,0,0,0,0,0,0,0,0,0,0,0,0,0,0,0,0,0,0,0,0,0,0,0,0,0,117]
[null,"Male 16-19",869,1039,170,216,100,1225,197,241,0,362,362,518,474,257,412,204,2152,0,19,927,0,0,1168,2125,7246,1313,3899,616,516,174,516,3347,1955,542,274,424,1850,29,29,311,691,15175,197,0,0,327,1497,241,1045,1045,448,1001,19,118]
[null,"Male 20-24",2102,2355,253,342,147,1575,356,526,0,497,497,1489,641,399,548,265,3007,0,18,1144,0,0,1670,3857,10868,2719,6380,760,613,258,613,4488,2651,680,364,529,2405,36,36,478,934,23459,356,0,0,405,2083,526,2309,2309,667,1423,18,119]
[null,"Male 25-29",2504,2824,320,433,94,1532,378,486,0,443,443,1373,616,407,485,242,2984,0,26,1126,0,0,1612,5224,12206,3232,7647,731,637,247,637,4559,2606,705,408,486,2419,60,60,456,929,25088,378,0,0,430,2140,486,2262,2262,598,1416,26,120]
[null,"Male 30-34",1976,2257,281,451,99,1496,319,332,0,454,454,1064,678,349,488,194,2933,0,18,1096,0,0,1428,4914,11778,2615,7247,743,644,234,644,4531,2614,637,358,456,2542,42,42,467,977,23489,319,0,0,362,1989,332,1982,1982,579,1489,18,121]
[null,"Male 35-39",1547,1796,249,363,114,1278,300,227,0,396,396,753,553,292,474,174,2688,0,17,1106,0,0,1333,3862,10040,2174,5895,695,581,222,581,4145,2388,638,378,345,2257,39,39,466,762,20242,300,0,0,380,1888,227,1582,1582,583,1276,17,122]
[null,"Male 40-44",1338,1546,208,363,127,1492,302,256,0,458,458,709,631,301,462,230,2773,0,26,1201,0,0,1457,3032,9604,1850,5153,670,543,196,543,4451,2471,621,304,464,2475,46,46,364,851,19812,302,0,0,397,1976,256,1436,1436,543,1388,26,123]
[null,"Male 45-49",1413,1630,217,389,158,1854,325,304,0,519,519,834,732,380,541,253,3066,0,25,1440,0,0,1744,3248,11066,2013,5840,739,581,234,581,5226,2741,716,383,644,2784,36,36,432,1006,22717,325,0,0,478,2442,304,1655,1655,719,1484,25,124]
[null,"Male 50-54",1316,1566,250,401,165,1986,387,342,0,566,566,752,790,485,612,307,3305,0,21,1374,0,0,1716,3149,11445,1961,6078,835,670,345,670,5367,2918,798,395,641,2827,39,39,454,1065,23481,387,0,0,555,2540,342,1607,1607,727,1508,21,125]
[null,"Male 55-59",1290,1556,266,335,145,1837,364,314,0,510,510,708,744,404,584,254,3084,0,23,1285,0,0,1599,2851,10595,1921,5504,794,649,293,649,5091,2720,783,365,593,2570,50,50,397,1004,21853,364,0,0,500,2521,314,1440,1440,698,1353,23,126]
[null,"Male 60-64",1051,1250,199,337,164,1560,318,255,0,432,432,600,595,317,433,220,2509,0,24,1047,0,0,1302,2269,8859,1533,4478,715,551,226,551,4381,2191,648,283,521,2313,42,42,373,880,18286,318,0,0,444,2068,255,1310,1310,566,1110,24,127]
[null,"Male 65-69",956,1208,252,345,143,1686,345,270,0,474,474,653,616,292,451,184,2619,0,11,1194,0,0,1464,1891,8075,1523,3934,674,531,220,531,4141,2274,639,315,577,2171,46,46,323,803,17893,345,0,0,493,1970,270,1321,1321,544,1184,11,128]
[null,"Male 70-74",621,818,197,244,126,1241,259,174,0,365,365,470,464,206,303,115,1962,0,14,852,0,0,1026,1417,6284,1043,3009,518,392,175,392,3275,1703,492,225,400,1709,28,28,232,674,13427,259,0,0,377,1566,174,946,946,422,908,14,129]
[null,"Male 75-79",526,673,147,205,74,960,200,152,0,286,286,410,370,194,277,96,1499,0,10,635,0,0,787,1077,4791,839,2363,360,286,110,286,2428,1299,359,166,322,1276,22,22,187,575,10356,200,0,0,268,1152,152,802,802,311,663,10,130]
[null,"Male 80-84",419,546,127,160,74,647,147,108,0,190,190,277,252,126,190,76,1007,0,3,465,0,0,573,756,3263,674,1635,285,211,77,211,1628,860,222,128,212,859,10,10,119,394,7208,147,0,0,183,769,108,556,556,206,448,3,131]
[null,"Male 85-89",218,275,57,79,33,332,119,54,0,106,106,131,126,75,92,29,521,0,3,224,0,0,278,373,1540,337,774,148,115,31,115,766,402,114,62,94,397,8,8,62,163,3545,119,0,0,112,369,54,272,272,103,196,3,132]
[null,"Male 90+",87,117,30,42,11,124,37,15,0,56,56,62,49,32,35,15,198,0,1,77,0,0,92,156,563,143,311,57,46,14,46,252,161,54,26,33,125,6,6,20,60,1364,37,0,0,42,127,15,124,124,34,72,1,133]
["SIMD Q3","Female 0-4",0,0,0,0,0,0,0,0,0,0,0,0,0,0,0,0,0,0,0,0,0,0,0,0,0,0,0,0,0,0,0,0,0,0,0,0,0,0,0,0,0,0,0,0,0,0,0,0,0,0,0,0,0,134]
[null,"Female 5-9",0,0,0,0,0,0,0,0,0,0,0,0,0,0,0,0,0,0,0,0,0,0,0,0,0,0,0,0,0,0,0,0,0,0,0,0,0,0,0,0,0,0,0,0,0,0,0,0,0,0,0,0,0,135]
[null,"Female 10-15",0,0,0,0,0,0,0,0,0,0,0,0,0,0,0,0,0,0,0,0,0,0,0,0,0,0,0,0,0,0,0,0,0,0,0,0,0,0,0,0,0,0,0,0,0,0,0,0,0,0,0,0,0,136]
[null,"Female 16-19",592,955,363,357,72,847,391,171,0,259,259,428,284,74,161,203,1418,0,23,454,0,0,625,2186,5291,1190,3338,415,343,207,343,1953,1027,247,235,260,1082,48,48,275,510,11176,391,0,0,303,871,171,1060,1060,158,619,23,137]
[null,"Female 20-24",1727,2296,569,416,78,976,483,482,0,347,347,712,336,115,286,234,1838,0,31,595,0,0,1077,4808,8812,2633,6348,535,457,254,457,2464,1355,290,337,296,1288,79,79,382,685,17838,483,0,0,344,1176,482,1510,1510,252,779,31,138]
[null,"Female 25-29",1635,2243,608,402,100,924,391,359,0,356,356,828,354,96,260,249,1745,0,32,608,0,0,967,4381,8524,2643,5898,626,526,249,526,2626,1354,297,400,272,1389,79,79,387,660,17513,391,0,0,298,1237,359,1617,1617,263,797,32,139]
[null,"Female 30-34",1222,1876,654,495,92,1017,499,194,0,299,299,540,371,74,226,265,1887,0,50,698,0,0,892,3429,7792,2300,4943,674,582,196,582,2849,1388,280,424,298,1539,79,79,424,744,16449,499,0,0,348,1310,194,1459,1459,235,882,50,140]
[null,"Female 35-39",756,1323,567,514,92,1016,447,233,0,295,295,398,356,95,226,278,1778,0,49,705,0,0,938,2636,7123,1664,4247,621,529,255,529,2876,1331,277,341,313,1622,51,51,357,728,14804,447,0,0,347,1254,233,1269,1269,255,828,49,141]
[null,"Female 40-44",640,1260,620,611,110,1170,599,238,0,391,391,345,439,100,277,290,2126,0,34,708,0,0,946,2156,6892,1613,3924,614,504,288,504,2968,1527,316,353,366,1693,71,71,374,817,15187,599,0,0,365,1275,238,1330,1330,273,934,34,142]
[null,"Female 45-49",656,1406,750,580,115,1498,707,222,0,498,498,465,566,147,402,316,2724,0,48,815,0,0,1037,2330,8096,1826,4609,687,572,354,572,3487,2017,465,420,460,1882,79,79,500,1086,18038,707,0,0,472,1605,222,1545,1545,376,1150,48,143]
[null,"Female 50-54",784,1547,763,668,127,1563,703,245,0,488,488,592,563,133,366,359,2720,0,55,848,0,0,1093,2500,8352,1991,4808,695,568,409,568,3544,2017,483,444,472,1854,92,92,540,1040,18849,703,0,0,528,1690,245,1800,1800,367,1168,55,144]
[null,"Female 55-59",718,1407,689,625,103,1391,671,220,0,501,501,557,482,127,388,367,2439,0,53,780,0,0,1000,2211,7808,1794,4371,673,570,393,570,3437,1768,417,387,436,1733,70,70,452,910,17363,671,0,0,473,1704,220,1634,1634,363,963,53,145]
[null,"Female 60-64",646,1315,669,544,93,1329,617,212,0,446,446,486,429,107,305,319,2065,0,45,716,0,0,928,1643,6331,1660,3455,593,500,289,500,2876,1448,345,345,429,1449,67,67,423,788,14917,617,0,0,471,1427,212,1453,1453,309,798,45,146]
[null,"Female 65-69",623,1357,734,624,78,1458,705,210,0,499,499,517,525,93,327,299,2242,0,51,685,0,0,895,1446,6002,1719,3296,531,453,303,453,2706,1537,384,362,427,1438,65,65,407,836,15010,705,0,0,506,1268,210,1548,1548,319,826,51,147]
[null,"Female 70-74",451,1019,568,492,87,1188,513,179,0,455,455,383,385,80,269,249,1732,0,39,515,0,0,694,1108,4798,1324,2570,448,361,243,361,2228,1219,315,305,368,1149,72,72,369,649,11994,513,0,0,435,1079,179,1244,1244,241,635,39,148]
[null,"Female 75-79",425,893,468,382,53,911,444,159,0,365,365,380,300,61,231,248,1443,0,45,449,0,0,608,941,4137,1169,2183,332,279,235,279,1954,999,261,276,295,926,71,71,278,506,10121,444,0,0,316,1028,159,1040,1040,192,507,45,149]
[null,"Female 80-84",376,700,324,310,31,642,336,124,0,321,321,384,221,44,181,244,997,0,59,272,0,0,396,871,3374,950,1869,220,189,176,189,1505,661,152,250,196,676,43,43,228,351,7924,336,0,0,225,829,124,922,922,183,328,59,150]
[null,"Female 85-89",212,471,259,211,14,352,206,75,0,207,207,211,92,35,148,150,584,0,41,162,0,0,237,534,1986,603,1123,153,139,137,139,863,378,58,132,126,347,25,25,181,176,4791,206,0,0,134,516,75,603,603,91,172,41,151]
[null,"Female 90+",122,250,128,146,11,215,77,52,0,118,118,129,50,34,95,81,307,0,45,51,0,0,103,358,1228,342,786,60,49,117,49,442,230,30,92,103,149,31,31,112,133,2836,77,0,0,62,293,52,387,387,63,105,45,152]
[null,"Male 0-4",0,0,0,0,0,0,0,0,0,0,0,0,0,0,0,0,0,0,0,0,0,0,0,0,0,0,0,0,0,0,0,0,0,0,0,0,0,0,0,0,0,0,0,0,0,0,0,0,0,0,0,0,0,153]
[null,"Male 5-9",0,0,0,0,0,0,0,0,0,0,0,0,0,0,0,0,0,0,0,0,0,0,0,0,0,0,0,0,0,0,0,0,0,0,0,0,0,0,0,0,0,0,0,0,0,0,0,0,0,0,0,0,0,154]
[null,"Male 10-15",0,0,0,0,0,0,0,0,0,0,0,0,0,0,0,0,0,0,0,0,0,0,0,0,0,0,0,0,0,0,0,0,0,0,0,0,0,0,0,0,0,0,0,0,0,0,0,0,0,0,0,0,0,155]
[null,"Male 16-19",496,951,455,404,86,841,389,134,0,296,296,344,295,80,192,220,1465,0,21,449,0,0,583,1886,5144,1195,3101,424,338,183,338,2043,1076,222,244,231,1140,51,51,303,571,11071,389,0,0,315,903,134,1051,1051,161,662,21,156]
[null,"Male 20-24",1750,2362,612,468,86,1105,467,405,0,340,340,603,373,110,255,298,1931,0,21,600,0,0,1005,4278,8491,2651,5926,517,431,304,431,2565,1464,337,289,363,1354,83,83,466,707,17681,467,0,0,369,1211,405,1537,1537,229,872,21,157]
[null,"Male 25-29",2053,2632,579,427,75,913,449,355,0,382,382,762,358,101,260,228,1817,0,29,573,0,0,928,4318,8500,3005,5978,576,501,302,501,2522,1368,293,373,244,1305,93,93,346,736,17778,449,0,0,311,1217,355,1535,1535,293,815,29,158]
[null,"Male 30-34",1543,2145,602,434,66,893,451,224,0,356,356,617,311,78,213,242,1763,0,43,586,0,0,810,3896,8174,2535,5454,649,583,249,583,2720,1312,270,390,273,1412,72,72,426,739,16772,451,0,0,309,1308,224,1477,1477,250,829,43,159]
[null,"Male 35-39",1076,1674,598,441,61,914,391,201,0,311,311,456,349,79,208,248,1699,0,27,696,0,0,897,2995,7179,2048,4435,602,541,238,541,2744,1308,269,374,281,1496,64,64,404,637,15042,391,0,0,284,1248,201,1301,1301,238,831,27,160]
[null,"Male 40-44",795,1387,592,498,81,1008,526,206,0,345,345,408,374,105,258,256,1994,0,34,679,0,0,885,2150,6506,1737,3716,514,433,257,433,2790,1468,326,350,291,1573,41,41,337,671,14307,526,0,0,343,1217,206,1243,1243,277,884,34,161]
[null,"Male 45-49",799,1444,645,564,95,1233,656,222,0,438,438,434,459,114,321,270,2423,0,41,841,0,0,1063,2265,7373,1860,4101,594,499,280,499,3272,1767,394,416,381,1745,71,71,414,858,16508,656,0,0,393,1527,222,1412,1412,314,1052,41,162]
[null,"Male 50-54",814,1499,685,625,114,1462,683,223,0,445,445,572,562,113,315,342,2446,0,50,852,0,0,1075,2257,7712,1892,4382,636,522,366,522,3330,1763,389,393,447,1784,86,86,452,972,17453,683,0,0,453,1546,223,1649,1649,332,1059,50,163]
[null,"Male 55-59",719,1344,625,530,93,1243,658,217,0,458,458,525,443,101,387,339,2383,0,45,760,0,0,977,2017,7034,1671,4013,605,512,367,512,3021,1725,367,327,409,1494,82,82,436,832,15989,658,0,0,391,1527,217,1491,1491,357,971,45,164]
[null,"Male 60-64",646,1239,593,505,86,1171,566,193,0,473,473,453,388,94,289,280,1943,0,44,616,0,0,809,1687,5891,1569,3275,571,485,258,485,2616,1377,333,330,361,1287,80,80,423,670,13932,566,0,0,422,1329,193,1381,1381,286,755,44,165]
[null,"Male 65-69",628,1319,691,590,78,1294,619,190,0,449,449,463,458,106,295,240,1993,0,59,642,0,0,832,1347,5402,1666,2932,509,431,262,431,2470,1374,348,347,410,1334,53,53,347,712,13657,619,0,0,426,1136,190,1400,1400,265,731,59,166]
[null,"Male 70-74",366,814,448,391,55,976,461,136,0,392,392,321,348,58,222,200,1503,0,31,486,0,0,622,969,3970,1035,2187,376,321,231,321,1783,1042,261,221,297,937,48,48,300,535,9965,461,0,0,331,846,136,1012,1012,194,559,31,167]
[null,"Male 75-79",358,738,380,323,35,751,342,115,0,309,309,290,249,38,153,159,1103,0,32,347,0,0,462,712,3012,979,1567,243,208,163,208,1445,761,212,241,233,699,35,35,235,373,7774,342,0,0,269,746,115,848,848,122,396,32,168]
[null,"Male 80-84",257,515,258,213,35,451,262,95,0,232,232,202,164,40,121,122,777,0,21,206,0,0,301,492,2024,658,1110,190,155,108,155,914,515,139,143,139,427,31,31,173,229,5273,262,0,0,148,487,95,588,588,119,255,21,169]
[null,"Male 85-89",110,228,118,113,11,218,113,29,0,106,106,139,69,9,51,68,352,0,20,93,0,0,122,218,992,305,542,77,66,69,66,450,239,61,77,71,198,18,18,106,128,2568,113,0,0,78,252,29,358,358,50,127,20,170]
[null,"Male 90+",48,104,56,52,6,80,47,11,0,52,52,51,20,4,27,35,148,0,3,44,0,0,55,111,436,141,250,28,22,35,22,186,101,13,37,38,75,8,8,55,49,1109,47,0,0,22,111,11,158,158,16,61,3,171]
["SIMD Q4","Female 0-4",0,0,0,0,0,0,0,0,0,0,0,0,0,0,0,0,0,0,0,0,0,0,0,0,0,0,0,0,0,0,0,0,0,0,0,0,0,0,0,0,0,0,0,0,0,0,0,0,0,0,0,0,0,172]
[null,"Female 5-9",0,0,0,0,0,0,0,0,0,0,0,0,0,0,0,0,0,0,0,0,0,0,0,0,0,0,0,0,0,0,0,0,0,0,0,0,0,0,0,0,0,0,0,0,0,0,0,0,0,0,0,0,0,173]
[null,"Female 10-15",0,0,0,0,0,0,0,0,0,0,0,0,0,0,0,0,0,0,0,0,0,0,0,0,0,0,0,0,0,0,0,0,0,0,0,0,0,0,0,0,0,0,0,0,0,0,0,0,0,0,0,0,0,174]
[null,"Female 16-19",974,1465,491,231,46,637,207,370,0,190,190,263,166,217,203,205,912,0,0,414,0,0,784,1155,3977,1559,2321,398,352,137,352,1656,705,147,94,281,793,30,30,294,483,9329,207,54,54,190,863,370,788,788,124,355,0,175]
[null,"Female 20-24",2375,3064,689,307,39,794,212,775,0,253,253,942,229,326,320,212,1115,0,0,539,0,0,1314,3865,7319,3165,5415,476,437,207,437,1904,903,148,101,325,883,45,45,362,643,16133,212,41,41,240,1021,775,1611,1611,162,435,0,176]
[null,"Female 25-29",1837,2497,660,329,35,730,197,419,0,232,232,579,219,277,290,211,1135,0,0,512,0,0,931,3263,6644,2656,4645,573,538,156,538,1999,938,147,159,301,886,43,43,483,572,14390,197,55,55,210,1113,419,1391,1391,166,501,0,177]
[null,"Female 30-34",1370,2081,711,335,36,772,264,347,0,256,256,459,207,292,300,165,1280,0,0,566,0,0,913,2719,6196,2238,4061,650,614,119,614,2135,1016,176,157,292,953,48,48,533,598,13737,264,57,57,273,1182,347,1327,1327,168,540,0,178]
[null,"Female 35-39",1022,1750,728,391,41,849,224,329,0,244,244,413,267,276,310,258,1331,0,0,598,0,0,927,1966,5815,1905,3419,613,572,166,572,2396,1107,204,155,320,989,54,54,433,583,13058,224,83,83,262,1407,329,1237,1237,170,593,0,179]
[null,"Female 40-44",792,1643,851,376,36,1085,308,385,0,267,267,371,278,348,362,277,1589,0,0,751,0,0,1136,1713,6164,1778,3471,633,597,179,597,2693,1281,195,135,428,1163,50,50,488,747,14019,308,82,82,379,1530,385,1235,1235,207,724,0,180]
[null,"Female 45-49",835,1837,1002,503,63,1244,386,400,0,376,376,480,340,419,441,358,1870,0,0,888,0,0,1288,1910,7261,1992,4229,747,684,267,684,3032,1484,266,155,516,1404,50,50,625,967,16491,386,55,55,388,1628,400,1608,1608,308,777,0,181]
[null,"Female 50-54",846,1808,962,525,57,1313,405,440,0,393,393,550,340,499,451,325,1799,0,0,813,0,0,1253,2058,7693,1962,4633,805,748,317,748,3060,1394,254,154,570,1414,69,69,644,1098,17102,405,96,96,403,1646,440,1719,1719,336,689,0,182]
[null,"Female 55-59",799,1715,916,472,58,1307,400,380,0,367,367,573,385,547,465,309,1654,0,0,752,0,0,1132,1882,7127,1861,4421,718,660,272,660,2706,1254,229,146,492,1154,52,52,556,1048,15897,400,78,78,430,1552,380,1601,1601,363,560,0,183]
[null,"Female 60-64",760,1656,896,505,67,1218,386,325,0,347,347,439,358,440,321,254,1422,0,0,601,0,0,926,1483,5841,1792,3587,628,561,210,561,2254,1036,212,136,478,952,57,57,540,921,13790,386,75,75,382,1302,325,1484,1484,279,503,0,184]
[null,"Female 65-69",785,1666,881,523,87,1216,446,328,0,298,298,460,383,411,349,259,1533,0,0,655,0,0,983,1316,5247,1811,3288,634,547,179,547,1959,1087,242,145,447,791,54,54,574,845,13411,446,78,78,386,1168,328,1557,1557,278,496,0,185]
[null,"Female 70-74",541,1284,743,491,72,984,390,239,0,293,293,322,291,332,270,194,1198,0,0,508,0,0,747,939,3798,1406,2464,539,467,176,467,1334,808,186,122,325,558,48,48,442,604,10342,390,74,74,368,776,239,1255,1255,219,352,0,186]
[null,"Female 75-79",462,1110,648,396,64,702,338,216,0,222,222,270,214,330,183,200,950,0,0,435,0,0,651,838,3260,1211,2137,462,398,130,398,1123,612,156,101,213,466,36,36,422,450,8616,338,34,34,275,657,216,1088,1088,189,273,0,187]
[null,"Female 80-84",351,885,534,323,51,498,233,194,0,177,177,261,124,237,149,175,653,0,0,317,0,0,511,642,2437,958,1653,384,333,117,333,784,420,92,73,150,282,31,31,316,367,6574,233,25,25,224,502,194,900,900,115,179,0,188]
[null,"Female 85-89",218,559,341,188,46,265,154,132,0,122,122,205,67,180,95,120,392,0,0,196,0,0,328,408,1512,598,1068,262,216,64,216,444,238,57,39,80,115,22,22,224,232,4131,154,13,13,118,329,132,617,617,64,86,0,189]
[null,"Female 90+",98,306,208,146,50,139,95,93,0,76,76,123,33,89,34,121,199,0,0,145,0,0,238,256,909,324,669,197,147,47,147,240,104,45,18,56,58,6,6,143,124,2510,95,10,10,50,182,93,412,412,32,25,0,190]
[null,"Male 0-4",0,0,0,0,0,0,0,0,0,0,0,0,0,0,0,0,0,0,0,0,0,0,0,0,0,0,0,0,0,0,0,0,0,0,0,0,0,0,0,0,0,0,0,0,0,0,0,0,0,0,0,0,0,191]
[null,"Male 5-9",0,0,0,0,0,0,0,0,0,0,0,0,0,0,0,0,0,0,0,0,0,0,0,0,0,0,0,0,0,0,0,0,0,0,0,0,0,0,0,0,0,0,0,0,0,0,0,0,0,0,0,0,0,192]
[null,"Male 10-15",0,0,0,0,0,0,0,0,0,0,0,0,0,0,0,0,0,0,0,0,0,0,0,0,0,0,0,0,0,0,0,0,0,0,0,0,0,0,0,0,0,0,0,0,0,0,0,0,0,0,0,0,0,193]
[null,"Male 16-19",759,1300,541,292,43,734,226,337,0,189,189,311,189,261,205,210,914,0,0,607,0,0,944,1088,4170,1387,2423,498,455,164,455,1747,688,128,87,317,788,37,37,330,561,9866,226,60,60,228,959,337,933,933,139,355,0,194]
[null,"Male 20-24",1969,2694,725,349,32,844,219,607,0,229,229,749,237,328,315,225,1151,0,0,707,0,0,1314,3344,7078,2814,5027,547,515,197,515,2051,932,159,120,370,982,40,40,445,736,15639,219,79,79,237,1069,607,1543,1543,197,458,0,195]
[null,"Male 25-29",2161,2895,734,337,18,708,201,362,0,270,270,605,205,279,233,209,1019,0,0,513,0,0,875,3255,6763,3038,4873,596,578,180,578,1890,818,143,143,249,857,53,53,457,782,14799,201,78,78,254,1033,362,1399,1399,168,442,0,196]
[null,"Male 30-34",1531,2244,713,308,21,682,179,274,0,271,271,398,214,256,250,148,1099,0,0,510,0,0,784,2790,6154,2393,4045,679,658,173,658,2109,920,138,149,219,948,33,33,469,534,13331,179,61,61,249,1161,274,1175,1175,144,532,0,197]
[null,"Male 35-39",1157,1920,763,277,44,755,245,382,0,223,223,331,223,235,249,185,1252,0,0,583,0,0,965,2106,5600,2083,3334,665,621,140,621,2266,1007,177,163,275,937,28,28,439,539,12678,245,60,60,257,1329,382,1047,1047,129,581,0,198]
[null,"Male 40-44",949,1741,792,323,56,965,279,356,0,261,261,333,291,289,344,250,1489,0,0,657,0,0,1013,1846,5837,1891,3377,664,608,164,608,2460,1210,181,150,373,1077,46,46,427,628,13333,279,84,84,301,1383,356,1083,1083,200,685,0,199]
[null,"Male 45-49",852,1709,857,429,51,1215,359,418,0,312,312,397,340,390,407,276,1737,0,0,820,0,0,1238,1866,6724,1877,3857,691,640,238,640,2867,1378,235,168,491,1315,68,68,511,831,15271,359,72,72,384,1552,418,1337,1337,256,736,0,200]
[null,"Male 50-54",895,1815,920,493,54,1266,390,439,0,391,391,492,332,371,388,327,1695,0,0,778,0,0,1217,1872,7061,1964,4121,705,651,297,651,2940,1305,211,149,550,1334,66,66,601,957,16042,390,91,91,384,1606,439,1586,1586,297,706,0,201]
[null,"Male 55-59",811,1670,859,466,56,1184,414,367,0,331,331,542,333,439,440,252,1694,0,0,753,0,0,1120,1689,6392,1812,3897,663,607,269,607,2495,1280,243,142,456,1093,41,41,557,945,14884,414,82,82,395,1402,367,1565,1565,303,597,0,202]
[null,"Male 60-64",763,1578,815,453,50,1119,334,314,0,329,329,455,348,399,321,245,1270,0,0,569,0,0,883,1446,5433,1707,3362,639,589,204,589,2071,936,198,129,426,902,55,55,526,799,12953,334,84,84,345,1169,314,1434,1434,269,417,0,203]
[null,"Male 65-69",736,1603,867,460,76,1036,430,293,0,319,319,407,315,406,304,221,1424,0,0,554,0,0,847,1290,5004,1736,3106,575,499,171,499,1898,994,219,133,388,756,56,56,487,747,12415,430,64,64,333,1142,293,1354,1354,271,471,0,204]
[null,"Male 70-74",508,1110,602,401,59,886,336,221,0,236,236,286,274,289,244,151,1071,0,0,432,0,0,653,826,3393,1210,2121,453,394,123,394,1272,735,175,100,320,541,39,39,408,540,9083,336,47,47,292,731,221,1095,1095,192,316,0,205]
[null,"Male 75-79",359,847,488,334,47,547,273,153,0,176,176,214,156,239,162,137,787,0,0,355,0,0,508,633,2472,935,1644,336,289,115,289,828,514,121,88,201,350,37,37,342,397,6716,273,28,28,190,478,153,890,890,123,231,0,206]
[null,"Male 80-84",245,581,336,211,35,373,207,113,0,143,143,195,99,180,114,103,546,0,0,240,0,0,353,466,1688,631,1146,219,184,63,184,542,339,90,50,120,196,18,18,240,232,4634,207,17,17,154,346,113,646,646,102,135,0,207]
[null,"Male 85-89",114,314,200,135,17,157,103,73,0,58,58,98,40,99,59,53,282,0,0,123,0,0,196,233,861,346,606,133,116,42,116,255,179,47,32,58,84,13,13,135,146,2422,103,8,8,59,171,73,368,368,33,73,0,208]
[null,"Male 90+",35,130,95,35,10,56,34,32,0,39,39,55,22,35,18,34,81,0,0,56,0,0,88,89,324,136,233,70,60,13,60,91,47,13,6,14,34,9,9,61,46,958,34,4,4,20,57,32,151,151,16,16,0,209]
["SIMD Q5 (least deprived)","Female 0-4",0,0,0,0,0,0,0,0,0,0,0,0,0,0,0,0,0,0,0,0,0,0,0,0,0,0,0,0,0,0,0,0,0,0,0,0,0,0,0,0,0,0,0,0,0,0,0,0,0,0,0,0,0,210]
[null,"Female 5-9",0,0,0,0,0,0,0,0,0,0,0,0,0,0,0,0,0,0,0,0,0,0,0,0,0,0,0,0,0,0,0,0,0,0,0,0,0,0,0,0,0,0,0,0,0,0,0,0,0,0,0,0,0,211]
[null,"Female 10-15",0,0,0,0,0,0,0,0,0,0,0,0,0,0,0,0,0,0,0,0,0,0,0,0,0,0,0,0,0,0,0,0,0,0,0,0,0,0,0,0,0,0,0,0,0,0,0,0,0,0,0,0,0,212]
[null,"Female 16-19",1154,2137,983,279,56,709,111,410,0,178,178,545,263,1058,286,1042,1270,0,0,533,0,0,943,1415,5483,2218,4153,277,221,73,221,1330,1159,182,81,160,632,0,0,359,507,12261,111,0,0,286,698,410,1183,1183,58,691,0,213]
[null,"Female 20-24",2545,3713,1168,291,73,706,118,595,0,187,187,687,271,1137,298,1106,1251,0,0,625,0,0,1220,3648,8205,3818,6633,301,228,82,228,1572,1133,191,105,172,671,0,0,374,578,17040,118,0,0,263,901,595,1352,1352,82,644,0,214]
[null,"Female 25-29",3191,4268,1077,252,72,626,99,495,0,207,207,530,283,802,310,885,1140,0,0,529,0,0,1024,3059,6633,4403,5309,341,269,58,269,1324,1041,138,135,117,569,0,0,348,465,15504,99,0,0,226,755,495,1130,1130,40,593,0,215]
[null,"Female 30-34",2747,4117,1370,302,49,728,170,390,0,202,202,488,315,815,375,814,1435,0,0,688,0,0,1078,2277,5900,4265,4401,378,329,51,329,1499,1265,173,148,183,658,0,0,444,409,15220,170,0,0,230,841,390,1234,1234,35,717,0,216]
[null,"Female 35-39",2425,3925,1500,336,106,873,193,454,0,202,202,484,326,1207,458,1288,1752,0,0,754,0,0,1208,1793,6761,4036,4992,470,364,73,364,1769,1559,233,111,229,755,0,0,466,565,16588,193,0,0,318,1014,454,1286,1286,66,868,0,217]
[null,"Female 40-44",2169,3843,1674,434,100,1119,261,546,0,240,240,528,459,1429,543,1544,2152,0,0,997,0,0,1543,1760,7643,4026,5604,473,373,134,373,2039,1891,263,183,271,844,0,0,551,687,18709,261,0,0,389,1195,546,1513,1513,50,1085,0,218]
[null,"Female 45-49",2329,4275,1946,523,134,1337,278,727,0,317,317,700,512,1808,634,1800,2550,0,0,1108,0,0,1835,1989,9306,4482,6805,562,428,165,428,2501,2272,317,207,316,1131,0,0,681,955,22293,278,0,0,509,1370,727,1904,1904,88,1321,0,219]
[null,"Female 50-54",2492,4313,1821,542,150,1388,253,722,0,411,411,775,511,2001,568,1801,2387,0,0,1072,0,0,1794,2020,9775,4526,7136,647,497,145,497,2639,2134,348,213,304,1116,0,0,793,1051,23038,253,0,0,573,1523,722,2110,2110,118,1218,0,220]
[null,"Female 55-59",2302,3985,1683,540,141,1412,236,655,0,377,377,778,513,1803,455,1673,1924,0,0,902,0,0,1557,1843,8797,4197,6487,568,427,126,427,2310,1688,293,212,281,978,0,0,741,949,20891,236,0,0,618,1332,655,2059,2059,93,940,0,221]
[null,"Female 60-64",1776,3264,1488,504,112,1262,230,572,0,343,343,576,456,1649,368,1448,1700,0,0,740,0,0,1312,1634,7688,3498,5744,511,399,125,399,1944,1470,291,234,222,761,0,0,723,810,18117,230,0,0,584,1183,572,1803,1803,78,811,0,222]
[null,"Female 65-69",1758,3126,1368,625,142,1305,250,648,0,330,330,652,493,1664,404,1384,1600,0,0,753,0,0,1401,1375,7139,3388,5383,501,359,137,359,1756,1350,263,262,192,695,0,0,841,779,17782,250,0,0,620,1061,648,2118,2118,44,683,0,223]
[null,"Female 70-74",1293,2302,1009,432,113,1018,200,508,0,292,292,521,337,1408,343,1170,1231,0,0,511,0,0,1019,826,5414,2519,4107,394,281,87,281,1307,1031,198,217,162,477,0,0,695,594,13535,200,0,0,519,830,508,1648,1648,22,490,0,224]
[null,"Female 75-79",1093,1911,818,364,75,732,189,436,0,229,229,430,233,1329,280,902,943,0,0,377,0,0,813,727,4409,2064,3422,315,240,83,240,987,754,159,153,107,361,0,0,572,367,10871,189,0,0,392,626,436,1366,1366,14,315,0,225]
[null,"Female 80-84",885,1476,591,304,55,559,116,310,0,203,203,342,185,964,187,790,613,0,0,260,0,0,570,617,3404,1588,2683,251,196,55,196,721,497,104,112,88,242,0,0,463,246,8297,116,0,0,286,479,310,1109,1109,11,206,0,226]
[null,"Female 85-89",655,1020,365,170,31,321,57,181,0,107,107,211,115,565,117,556,372,0,0,145,0,0,326,415,2071,1100,1717,128,97,36,97,354,315,36,80,49,104,0,0,272,141,5078,57,0,0,157,250,181,653,653,4,162,0,227]
[null,"Female 90+",408,637,229,93,25,211,62,109,0,72,72,89,51,359,55,294,225,0,0,119,0,0,228,273,1208,687,1031,78,53,25,53,177,163,14,50,31,54,0,0,182,78,3073,62,0,0,129,123,109,364,364,2,94,0,228]
[null,"Male 0-4",0,0,0,0,0,0,0,0,0,0,0,0,0,0,0,0,0,0,0,0,0,0,0,0,0,0,0,0,0,0,0,0,0,0,0,0,0,0,0,0,0,0,0,0,0,0,0,0,0,0,0,0,0,229]
[null,"Male 5-9",0,0,0,0,0,0,0,0,0,0,0,0,0,0,0,0,0,0,0,0,0,0,0,0,0,0,0,0,0,0,0,0,0,0,0,0,0,0,0,0,0,0,0,0,0,0,0,0,0,0,0,0,0,230]
[null,"Male 10-15",0,0,0,0,0,0,0,0,0,0,0,0,0,0,0,0,0,0,0,0,0,0,0,0,0,0,0,0,0,0,0,0,0,0,0,0,0,0,0,0,0,0,0,0,0,0,0,0,0,0,0,0,0,231]
[null,"Male 16-19",1158,2283,1125,318,101,801,141,429,0,189,189,560,289,1142,293,1193,1379,0,0,567,0,0,996,1248,5752,2412,4272,346,245,78,245,1480,1238,221,129,206,649,0,0,369,546,13122,141,0,0,306,831,429,1247,1247,65,724,0,232]
[null,"Male 20-24",2164,3445,1281,358,79,890,136,592,0,199,199,724,338,1333,364,1309,1564,0,0,682,0,0,1274,2914,8098,3594,6362,332,253,61,253,1736,1428,269,149,225,748,0,0,456,654,17489,136,0,0,327,988,592,1538,1538,91,795,0,233]
[null,"Male 25-29",3542,4763,1221,274,76,608,114,413,0,169,169,662,267,1045,267,959,1286,0,0,632,0,0,1045,2863,6807,4908,5459,303,227,51,227,1348,1172,199,145,142,630,0,0,378,495,16440,114,0,0,199,718,413,1314,1314,46,706,0,234]
[null,"Male 30-34",3138,4460,1322,295,57,575,114,349,0,178,178,414,274,805,319,710,1188,0,0,674,0,0,1023,2291,5573,4588,4294,336,279,62,279,1279,1074,134,128,132,550,0,0,368,384,14538,114,0,0,169,729,349,1077,1077,42,621,0,235]
[null,"Male 35-39",2613,4004,1391,292,72,766,181,401,0,182,182,454,308,977,375,1093,1530,0,0,753,0,0,1154,1885,6107,4110,4518,443,371,64,371,1589,1349,202,106,192,662,0,0,435,457,15473,181,0,0,266,927,401,1181,1181,42,772,0,236]
[null,"Male 40-44",2323,3979,1656,403,100,1014,214,592,0,220,220,474,413,1243,515,1333,1954,0,0,892,0,0,1484,1756,6977,4168,5056,434,334,92,334,1921,1740,239,189,228,824,0,0,465,586,17593,214,0,0,373,1097,592,1342,1342,46,986,0,237]
[null,"Male 45-49",2313,4143,1830,434,106,1200,287,687,0,293,293,646,504,1574,557,1567,2387,0,0,1007,0,0,1694,1894,8303,4355,6056,540,434,114,434,2247,2100,350,212,297,976,0,0,580,840,20432,287,0,0,399,1271,687,1660,1660,67,1193,0,238]
[null,"Male 50-54",2314,4097,1783,545,144,1275,212,653,0,374,374,644,454,1818,625,1556,2292,0,0,1047,0,0,1700,1870,8835,4322,6447,601,457,163,457,2388,2080,294,225,318,1072,0,0,768,928,21356,212,0,0,503,1316,653,1957,1957,112,1161,0,239]
[null,"Male 55-59",2222,3836,1614,501,129,1262,222,591,0,331,331,689,483,1682,451,1578,1987,0,0,882,0,0,1473,1675,8281,4031,6094,526,397,139,397,2187,1765,300,195,241,926,0,0,633,936,19714,222,0,0,538,1261,591,1823,1823,84,1014,0,240]
[null,"Male 60-64",1943,3455,1512,460,110,1149,229,521,0,342,342,568,423,1518,365,1389,1614,0,0,726,0,0,1247,1491,7228,3674,5327,462,352,114,352,1901,1385,263,219,225,776,0,0,643,729,17387,229,0,0,501,1125,521,1671,1671,86,757,0,241]
[null,"Male 65-69",1721,3092,1371,531,127,1225,265,597,0,346,346,563,472,1484,333,1232,1564,0,0,726,0,0,1323,1344,6625,3324,4976,491,364,114,364,1649,1299,288,232,191,670,0,0,764,749,16756,265,0,0,562,979,597,1858,1858,53,678,0,242]
[null,"Male 70-74",1080,2030,950,427,108,900,180,402,0,235,235,425,304,1217,282,931,1078,0,0,470,0,0,872,813,4787,2213,3602,359,251,83,251,1185,898,181,183,137,416,0,0,600,536,11896,180,0,0,459,769,402,1452,1452,22,435,0,243]
[null,"Male 75-79",823,1499,676,286,68,632,123,367,0,191,191,354,205,1038,227,766,805,0,0,311,0,0,678,569,3614,1644,2799,259,191,61,191,815,682,138,145,97,295,0,0,452,355,8915,123,0,0,330,520,367,1092,1092,10,317,0,244]
[null,"Male 80-84",631,1069,438,222,33,427,91,247,0,126,126,280,132,792,163,556,481,0,0,221,0,0,468,380,2514,1151,1972,162,129,41,129,542,390,78,82,74,159,0,0,332,193,6163,91,0,0,221,383,247,834,834,10,149,0,245]
[null,"Male 85-89",338,574,236,99,25,222,51,103,0,58,58,154,70,374,65,290,221,0,0,102,0,0,205,188,1192,633,962,86,61,20,61,230,170,35,59,36,74,0,0,194,87,3064,51,0,0,116,156,103,447,447,3,70,0,246]
[null,"Male 90+",181,308,127,40,4,111,14,39,0,34,34,49,28,158,39,123,104,0,0,46,0,0,85,100,501,330,415,28,24,13,24,86,90,13,22,20,32,0,0,76,21,1358,14,0,0,63,54,39,165,165,0,38,0,247]

{"sheet":"NO2 reduction","index":13,"n_rows":249,"n_cols":56,"rows_kept":249,"cut":false,"hidden":true,"merged":[]}
["Predicted NO2 reduction (ug.m-3) arising from 20 mph scheme"]
[]
["SIMD","group","Aberdeen City Local Authority","Aberdeen City Region Deal","Aberdeenshire Local Authority","Angus Local Authority","Argyll & Bute Local Authority","Ayrshire & Arran Health Board","Borders Health Board","Clackmannanshire & Stirling IJB","Clackmannanshire Local Authority","Dumfries & Galloway Health Board","Dumfries & Galloway Local Authority","Dundee City Local Authority","East Ayrshire Local Authority","East Dunbartonshire Local Authority","East Lothian Local Authority","East Renfrewshire Local Authority","Edinburgh & SE Scotland City Region Deal","Edinburgh, City of Local Authority","Eilean Siar Local Authority","Falkirk Local Authority","Fife Health Board","Fife Local Authority","Forth Valley Health Board","Glasgow City Local Authority","Glasgow City Region Deal","Grampian Health Board","Greater Glasgow & Clyde Health Board","Highland Health Board","Highland Local Authority","Inverclyde Local Authority","Inverness & Highland City Region Deal","Lanarkshire Health Board","Lothian Health Board","Midlothian Local Authority","Moray Local Authority","North Ayrshire Local Authority","North Lanarkshire Local Authority","Orkney Health Board","Orkney Islands Local Authority","Perth & Kinross Local Authority","Renfrewshire Local Authority","Scotland","Scottish Borders Local Authority","Shetland Health Board","Shetland Islands Local Authority","South Ayrshire Local Authority","South Lanarkshire Local Authority","Stirling Local Authority","Tay Cities Region Deal ","Tayside Health Board","West Dunbartonshire Local Authority","West Lothian Local Authority","Western Isles Health Board",1]
[null,null,"popS12000033","Aber_deal","popS12000034","popS12000041","popS12000035","popS08000015","popS08000016","ClacksStirIJB","popS12000005","popS08000017","popS12000006","popS12000042","popS12000008","popS12000045","popS12000010","popS12000011","EdinSE_deal","popS12000036","popS12000013","popS12000014","popS08000018","popS12000015","popS08000019","popS12000046","GClyde_deal","popS08000020","popS08000021","popS08000022","popS12000017","popS12000018","Inver_deal","popS08000023","popS08000024","popS12000019","popS12000020","popS12000021","popS12000044","popS08000025","popS12000023","popS12000024","popS12000038","popS00000001","popS12000026","popS08000026","popS12000027","popS12000028","popS12000029","popS12000030","Tay_deal","popS08000027","popS12000039","popS12000040","popS08000028",2]
["All quintiles","16+ Males and Females",null,null,null,null,null,null,null,null,null,null,null,null,null,null,null,null,null,null,null,null,null,null,null,null,null,null,null,null,null,null,null,null,null,null,null,null,null,null,null,null,null,null,null,null,null,null,null,null,null,null,null,null,null,3]
["Q1 and Q2","16+ Males and Females",null,null,null,null,null,null,null,null,null,null,null,null,null,null,null,null,null,null,null,null,null,null,null,null,null,null,null,null,null,null,null,null,null,null,null,null,null,null,null,null,null,null,null,null,null,null,null,null,null,null,null,null,null,4]
["SIMD Q1 (most deprived)","16+ Males and Females",null,null,null,null,null,null,null,null,null,null,null,null,null,null,null,null,null,null,null,null,null,null,null,null,null,null,null,null,null,null,null,null,null,null,null,null,null,null,null,null,null,null,null,null,null,null,null,null,null,null,null,null,null,5]
["SIMD Q2",null,null,null,null,null,null,null,null,null,null,null,null,null,null,null,null,null,null,null,null,null,null,null,null,null,null,null,null,null,null,null,null,null,null,null,null,null,null,null,null,null,null,null,null,null,null,null,null,null,null,null,null,null,null,6]
["SIMD Q3",null,null,null,null,null,null,null,null,null,null,null,null,null,null,null,null,null,null,null,null,null,null,null,null,null,null,null,null,null,null,null,null,null,null,null,null,null,null,null,null,null,null,null,null,null,null,null,null,null,null,null,null,null,null,7]
["SIMD Q4",null,null,null,null,null,null,null,null,null,null,null,null,null,null,null,null,null,null,null,null,null,null,null,null,null,null,null,null,null,null,null,null,null,null,null,null,null,null,null,null,null,null,null,null,null,null,null,null,null,null,null,null,null,null,8]
["SIMD Q5 (least deprived)",null,null,null,null,null,null,null,null,null,null,null,null,null,null,null,null,null,null,null,null,null,null,null,null,null,null,null,null,null,null,null,null,null,null,null,null,null,null,null,null,null,null,null,null,null,null,null,null,null,null,null,null,null,null,9]
["SIMD Q1 (most deprived)","16+ Females",null,null,null,null,null,null,null,null,null,null,null,null,null,null,null,null,null,null,null,null,null,null,null,null,null,null,null,null,null,null,null,null,null,null,null,null,null,null,null,null,null,null,null,null,null,null,null,null,null,null,null,null,null,10]
["SIMD Q2",null,null,null,null,null,null,null,null,null,null,null,null,null,null,null,null,null,null,null,null,null,null,null,null,null,null,null,null,null,null,null,null,null,null,null,null,null,null,null,null,null,null,null,null,null,null,null,null,null,null,null,null,null,null,11]
["SIMD Q3",null,null,null,null,null,null,null,null,null,null,null,null,null,null,null,null,null,null,null,null,null,null,null,null,null,null,null,null,null,null,null,null,null,null,null,null,null,null,null,null,null,null,null,null,null,null,null,null,null,null,null,null,null,null,12]
["SIMD Q4",null,null,null,null,null,null,null,null,null,null,null,null,null,null,null,null,null,null,null,null,null,null,null,null,null,null,null,null,null,null,null,null,null,null,null,null,null,null,null,null,null,null,null,null,null,null,null,null,null,null,null,null,null,null,13]
["SIMD Q5 (least deprived)",null,null,null,null,null,null,null,null,null,null,null,null,null,null,null,null,null,null,null,null,null,null,null,null,null,null,null,null,null,null,null,null,null,null,null,null,null,null,null,null,null,null,null,null,null,null,null,null,null,null,null,null,null,null,14]
["SIMD Q1 (most deprived)","16+ Males",null,null,null,null,null,null,null,null,null,null,null,null,null,null,null,null,null,null,null,null,null,null,null,null,null,null,null,null,null,null,null,null,null,null,null,null,null,null,null,null,null,null,null,null,null,null,null,null,null,null,null,null,null,15]
["SIMD Q2",null,null,null,null,null,null,null,null,null,null,null,null,null,null,null,null,null,null,null,null,null,null,null,null,null,null,null,null,null,null,null,null,null,null,null,null,null,null,null,null,null,null,null,null,null,null,null,null,null,null,null,null,null,null,16]
["SIMD Q3",null,null,null,null,null,null,null,null,null,null,null,null,null,null,null,null,null,null,null,null,null,null,null,null,null,null,null,null,null,null,null,null,null,null,null,null,null,null,null,null,null,null,null,null,null,null,null,null,null,null,null,null,null,null,17]
["SIMD Q4",null,null,null,null,null,null,null,null,null,null,null,null,null,null,null,null,null,null,null,null,null,null,null,null,null,null,null,null,null,null,null,null,null,null,null,null,null,null,null,null,null,null,null,null,null,null,null,null,null,null,null,null,null,null,18]
["SIMD Q5 (least deprived)",null,null,null,null,null,null,null,null,null,null,null,null,null,null,null,null,null,null,null,null,null,null,null,null,null,null,null,null,null,null,null,null,null,null,null,null,null,null,null,null,null,null,null,null,null,null,null,null,null,null,null,null,null,null,19]
["All quintiles","Female 0-4",null,null,null,null,null,null,null,null,null,null,null,null,null,null,null,null,null,null,null,null,null,null,null,null,null,null,null,null,null,null,null,null,null,null,null,null,null,null,null,null,null,null,null,null,null,null,null,null,null,null,null,null,null,20]
[null,"Female 5-9",null,null,null,null,null,null,null,null,null,null,null,null,null,null,null,null,null,null,null,null,null,null,null,null,null,null,null,null,null,null,null,null,null,null,null,null,null,null,null,null,null,null,null,null,null,null,null,null,null,null,null,null,null,21]
[null,"Female 10-15",null,null,null,null,null,null,null,null,null,null,null,null,null,null,null,null,null,null,null,null,null,null,null,null,null,null,null,null,null,null,null,null,null,null,null,null,null,null,null,null,null,null,null,null,null,null,null,null,null,null,null,null,null,22]
[null,"Female 16-19",null,null,null,null,null,null,null,null,null,null,null,null,null,null,null,null,null,null,null,null,null,null,null,null,null,null,null,null,null,null,null,null,null,null,null,null,null,null,null,null,null,null,null,null,null,null,null,null,null,null,null,null,null,23]
[null,"Female 20-24",null,null,null,null,null,null,null,null,null,null,null,null,null,null,null,null,null,null,null,null,null,null,null,null,null,null,null,null,null,null,null,null,null,null,null,null,null,null,null,null,null,null,null,null,null,null,null,null,null,null,null,null,null,24]
[null,"Female 25-29",null,null,null,null,null,null,null,null,null,null,null,null,null,null,null,null,null,null,null,null,null,null,null,null,null,null,null,null,null,null,null,null,null,null,null,null,null,null,null,null,null,null,null,null,null,null,null,null,null,null,null,null,null,25]
[null,"Female 30-34",null,null,null,null,null,null,null,null,null,null,null,null,null,null,null,null,null,null,null,null,null,null,null,null,null,null,null,null,null,null,null,null,null,null,null,null,null,null,null,null,null,null,null,null,null,null,null,null,null,null,null,null,null,26]
[null,"Female 35-39",null,null,null,null,null,null,null,null,null,null,null,null,null,null,null,null,null,null,null,null,null,null,null,null,null,null,null,null,null,null,null,null,null,null,null,null,null,null,null,null,null,null,null,null,null,null,null,null,null,null,null,null,null,27]
[null,"Female 40-44",null,null,null,null,null,null,null,null,null,null,null,null,null,null,null,null,null,null,null,null,null,null,null,null,null,null,null,null,null,null,null,null,null,null,null,null,null,null,null,null,null,null,null,null,null,null,null,null,null,null,null,null,null,28]
[null,"Female 45-49",null,null,null,null,null,null,null,null,null,null,null,null,null,null,null,null,null,null,null,null,null,null,null,null,null,null,null,null,null,null,null,null,null,null,null,null,null,null,null,null,null,null,null,null,null,null,null,null,null,null,null,null,null,29]
[null,"Female 50-54",null,null,null,null,null,null,null,null,null,null,null,null,null,null,null,null,null,null,null,null,null,null,null,null,null,null,null,null,null,null,null,null,null,null,null,null,null,null,null,null,null,null,null,null,null,null,null,null,null,null,null,null,null,30]
[null,"Female 55-59",null,null,null,null,null,null,null,null,null,null,null,null,null,null,null,null,null,null,null,null,null,null,null,null,null,null,null,null,null,null,null,null,null,null,null,null,null,null,null,null,null,null,null,null,null,null,null,null,null,null,null,null,null,31]
[null,"Female 60-64",null,null,null,null,null,null,null,null,null,null,null,null,null,null,null,null,null,null,null,null,null,null,null,null,null,null,null,null,null,null,null,null,null,null,null,null,null,null,null,null,null,null,null,null,null,null,null,null,null,null,null,null,null,32]
[null,"Female 65-69",null,null,null,null,null,null,null,null,null,null,null,null,null,null,null,null,null,null,null,null,null,null,null,null,null,null,null,null,null,null,null,null,null,null,null,null,null,null,null,null,null,null,null,null,null,null,null,null,null,null,null,null,null,33]
[null,"Female 70-74",null,null,null,null,null,null,null,null,null,null,null,null,null,null,null,null,null,null,null,null,null,null,null,null,null,null,null,null,null,null,null,null,null,null,null,null,null,null,null,null,null,null,null,null,null,null,null,null,null,null,null,null,null,34]
[null,"Female 75-79",null,null,null,null,null,null,null,null,null,null,null,null,null,null,null,null,null,null,null,null,null,null,null,null,null,null,null,null,null,null,null,null,null,null,null,null,null,null,null,null,null,null,null,null,null,null,null,null,null,null,null,null,null,35]
[null,"Female 80-84",null,null,null,null,null,null,null,null,null,null,null,null,null,null,null,null,null,null,null,null,null,null,null,null,null,null,null,null,null,null,null,null,null,null,null,null,null,null,null,null,null,null,null,null,null,null,null,null,null,null,null,null,null,36]
[null,"Female 85-89",null,null,null,null,null,null,null,null,null,null,null,null,null,null,null,null,null,null,null,null,null,null,null,null,null,null,null,null,null,null,null,null,null,null,null,null,null,null,null,null,null,null,null,null,null,null,null,null,null,null,null,null,null,37]
[null,"Female 90+",null,null,null,null,null,null,null,null,null,null,null,null,null,null,null,null,null,null,null,null,null,null,null,null,null,null,null,null,null,null,null,null,null,null,null,null,null,null,null,null,null,null,null,null,null,null,null,null,null,null,null,null,null,38]
[null,"Male 0-4",null,null,null,null,null,null,null,null,null,null,null,null,null,null,null,null,null,null,null,null,null,null,null,null,null,null,null,null,null,null,null,null,null,null,null,null,null,null,null,null,null,null,null,null,null,null,null,null,null,null,null,null,null,39]
[null,"Male 5-9",null,null,null,null,null,null,null,null,null,null,null,null,null,null,null,null,null,null,null,null,null,null,null,null,null,null,null,null,null,null,null,null,null,null,null,null,null,null,null,null,null,null,null,null,null,null,null,null,null,null,null,null,null,40]
[null,"Male 10-15",null,null,null,null,null,null,null,null,null,null,null,null,null,null,null,null,null,null,null,null,null,null,null,null,null,null,null,null,null,null,null,null,null,null,null,null,null,null,null,null,null,null,null,null,null,null,null,null,null,null,null,null,null,41]
[null,"Male 16-19",null,null,null,null,null,null,null,null,null,null,null,null,null,null,null,null,null,null,null,null,null,null,null,null,null,null,null,null,null,null,null,null,null,null,null,null,null,null,null,null,null,null,null,null,null,null,null,null,null,null,null,null,null,42]
[null,"Male 20-24",null,null,null,null,null,null,null,null,null,null,null,null,null,null,null,null,null,null,null,null,null,null,null,null,null,null,null,null,null,null,null,null,null,null,null,null,null,null,null,null,null,null,null,null,null,null,null,null,null,null,null,null,null,43]
[null,"Male 25-29",null,null,null,null,null,null,null,null,null,null,null,null,null,null,null,null,null,null,null,null,null,null,null,null,null,null,null,null,null,null,null,null,null,null,null,null,null,null,null,null,null,null,null,null,null,null,null,null,null,null,null,null,null,44]
[null,"Male 30-34",null,null,null,null,null,null,null,null,null,null,null,null,null,null,null,null,null,null,null,null,null,null,null,null,null,null,null,null,null,null,null,null,null,null,null,null,null,null,null,null,null,null,null,null,null,null,null,null,null,null,null,null,null,45]
[null,"Male 35-39",null,null,null,null,null,null,null,null,null,null,null,null,null,null,null,null,null,null,null,null,null,null,null,null,null,null,null,null,null,null,null,null,null,null,null,null,null,null,null,null,null,null,null,null,null,null,null,null,null,null,null,null,null,46]
[null,"Male 40-44",null,null,null,null,null,null,null,null,null,null,null,null,null,null,null,null,null,null,null,null,null,null,null,null,null,null,null,null,null,null,null,null,null,null,null,null,null,null,null,null,null,null,null,null,null,null,null,null,null,null,null,null,null,47]
[null,"Male 45-49",null,null,null,null,null,null,null,null,null,null,null,null,null,null,null,null,null,null,null,null,null,null,null,null,null,null,null,null,null,null,null,null,null,null,null,null,null,null,null,null,null,null,null,null,null,null,null,null,null,null,null,null,null,48]
[null,"Male 50-54",null,null,null,null,null,null,null,null,null,null,null,null,null,null,null,null,null,null,null,null,null,null,null,null,null,null,null,null,null,null,null,null,null,null,null,null,null,null,null,null,null,null,null,null,null,null,null,null,null,null,null,null,null,49]
[null,"Male 55-59",null,null,null,null,null,null,null,null,null,null,null,null,null,null,null,null,null,null,null,null,null,null,null,null,null,null,null,null,null,null,null,null,null,null,null,null,null,null,null,null,null,null,null,null,null,null,null,null,null,null,null,null,null,50]
[null,"Male 60-64",null,null,null,null,null,null,null,null,null,null,null,null,null,null,null,null,null,null,null,null,null,null,null,null,null,null,null,null,null,null,null,null,null,null,null,null,null,null,null,null,null,null,null,null,null,null,null,null,null,null,null,null,null,51]
[null,"Male 65-69",null,null,null,null,null,null,null,null,null,null,null,null,null,null,null,null,null,null,null,null,null,null,null,null,null,null,null,null,null,null,null,null,null,null,null,null,null,null,null,null,null,null,null,null,null,null,null,null,null,null,null,null,null,52]
[null,"Male 70-74",null,null,null,null,null,null,null,null,null,null,null,null,null,null,null,null,null,null,null,null,null,null,null,null,null,null,null,null,null,null,null,null,null,null,null,null,null,null,null,null,null,null,null,null,null,null,null,null,null,null,null,null,null,53]
[null,"Male 75-79",null,null,null,null,null,null,null,null,null,null,null,null,null,null,null,null,null,null,null,null,null,null,null,null,null,null,null,null,null,null,null,null,null,null,null,null,null,null,null,null,null,null,null,null,null,null,null,null,null,null,null,null,null,54]
[null,"Male 80-84",null,null,null,null,null,null,null,null,null,null,null,null,null,null,null,null,null,null,null,null,null,null,null,null,null,null,null,null,null,null,null,null,null,null,null,null,null,null,null,null,null,null,null,null,null,null,null,null,null,null,null,null,null,55]
[null,"Male 85-89",null,null,null,null,null,null,null,null,null,null,null,null,null,null,null,null,null,null,null,null,null,null,null,null,null,null,null,null,null,null,null,null,null,null,null,null,null,null,null,null,null,null,null,null,null,null,null,null,null,null,null,null,null,56]
[null,"Male 90+",null,null,null,null,null,null,null,null,null,null,null,null,null,null,null,null,null,null,null,null,null,null,null,null,null,null,null,null,null,null,null,null,null,null,null,null,null,null,null,null,null,null,null,null,null,null,null,null,null,null,null,null,null,57]
["SIMD Q1 (most deprived)","Female 0-4",9.7875073999999992E-3,9.1326888999999998E-3,3.3484668999999999E-3,1.2247151E-3,7.3548465000000001E-4,3.1618394000000002E-3,7.5442494999999996E-4,4.3996288000000003E-3,5.0557665999999999E-3,7.8332011E-4,7.8332011E-4,9.1919768999999991E-3,3.5829974999999998E-3,7.3183956999999999E-3,2.3936431E-3,6.1613787000000001E-3,6.4276638000000004E-3,9.8638162000000001E-3,null,6.5595241999999998E-3,4.2633884999999996E-3,4.2633884999999996E-3,5.4612723000000002E-3,9.4297984999999994E-3,7.9015438000000007E-3,8.7803006000000006E-3,8.4510296999999995E-3,9.3481741999999995E-4,1.0341266E-3,5.2599357000000001E-3,1.0341266E-3,6.5248188999999998E-3,7.9731353999999994E-3,4.1913469000000002E-3,1.2724524E-3,2.7821161999999999E-3,7.2459964999999999E-3,null,null,3.0475017E-3,6.2428581999999996E-3,6.9061922999999999E-3,7.5442494999999996E-4,null,null,3.3947529999999999E-3,5.3592244999999998E-3,3.5526147000000002E-3,6.0376767000000003E-3,7.6815709000000003E-3,6.0732379000000003E-3,4.7554149999999998E-3,null,58]
[null,"Female 5-9",9.9180880999999999E-3,9.0386019999999997E-3,3.2764573000000001E-3,1.2362369E-3,7.0664420000000005E-4,3.1060136000000001E-3,7.6178409000000002E-4,4.3258970000000004E-3,5.0407344999999996E-3,7.8988039999999999E-4,7.8988039999999999E-4,8.9844278999999996E-3,3.6599663999999999E-3,7.4092009999999998E-3,2.3627830999999998E-3,5.9254607000000003E-3,6.3732308E-3,9.7756591000000004E-3,null,6.5636760999999997E-3,4.1900836E-3,4.1900836E-3,5.4603643000000002E-3,9.3316948E-3,7.7717593000000001E-3,8.7102958999999997E-3,8.2916059000000004E-3,9.2165113999999999E-4,1.058757E-3,5.0603076999999998E-3,1.058757E-3,6.5711676000000004E-3,7.8812846999999995E-3,4.0142698999999999E-3,1.2724524E-3,2.6666179999999999E-3,7.3286219999999999E-3,null,null,2.8696364999999998E-3,6.1874082000000002E-3,6.7638131000000001E-3,7.6178409000000002E-4,null,null,3.3882895999999998E-3,5.1947846000000002E-3,3.4586291E-3,5.7986345999999998E-3,7.3629207999999996E-3,5.9114670999999997E-3,4.6714405000000004E-3,null,59]
[null,"Female 10-15",9.4806709999999995E-3,9.0333018000000008E-3,3.2881447E-3,1.2343929E-3,7.8691792000000005E-4,3.1391371000000002E-3,7.6491863000000004E-4,4.1523627000000004E-3,4.8272284000000004E-3,7.5117841999999997E-4,7.5117841999999997E-4,9.1134608000000006E-3,3.7817421999999999E-3,7.6461569000000002E-3,2.4006218000000002E-3,5.9052063000000002E-3,6.2209199999999996E-3,9.7141946E-3,null,6.4217118000000004E-3,4.1155489E-3,4.1155489E-3,5.2380129000000001E-3,9.2605939000000009E-3,7.6492475000000002E-3,8.6277798000000006E-3,8.1740208000000009E-3,9.4140751999999999E-4,1.0245579E-3,5.0353374999999997E-3,1.0245579E-3,6.5403948999999996E-3,7.6804166E-3,3.9259261000000002E-3,1.2724524E-3,2.6807315000000002E-3,7.2937076999999998E-3,null,null,2.8298718000000001E-3,6.0821911000000003E-3,6.6245571000000001E-3,7.6491863000000004E-4,null,null,3.2921571E-3,5.2337180999999997E-3,3.4355789000000002E-3,5.7944054999999996E-3,7.3797330000000003E-3,5.9115961000000003E-3,4.6430207000000001E-3,null,60]
[null,"Female 16-19",9.7821978999999993E-3,8.9857914000000001E-3,3.2031955E-3,1.244581E-3,7.2494119999999996E-4,3.0725517E-3,7.8026769999999998E-4,4.3127838999999996E-3,4.9472088000000001E-3,7.7136350000000002E-4,7.7136350000000002E-4,9.2778102999999997E-3,3.5925979999999998E-3,7.4332924999999999E-3,2.3399779999999999E-3,6.0650734E-3,6.1778583999999998E-3,9.8482034999999996E-3,null,6.5400335000000004E-3,4.0320167000000001E-3,4.0320167000000001E-3,5.3346399000000003E-3,9.4824256000000003E-3,7.8174136999999994E-3,8.6741409999999998E-3,8.3758049000000005E-3,9.2873529999999997E-4,1.0397219000000001E-3,4.9954001000000001E-3,1.0397219000000001E-3,6.6237850000000001E-3,7.7970232999999998E-3,3.9431285000000003E-3,1.2724524E-3,2.6640072E-3,7.3779663000000002E-3,null,null,2.8741233999999998E-3,6.2560341000000002E-3,6.7340382000000004E-3,7.8026769999999998E-4,null,null,3.3191332999999998E-3,5.3250425999999997E-3,3.7521291999999999E-3,5.8878306000000004E-3,7.6002730000000003E-3,5.9270221000000001E-3,4.7564729999999998E-3,null,61]
[null,"Female 20-24",1.0178398E-2,9.5004179000000005E-3,3.3986068E-3,1.2243461000000001E-3,7.4768934E-4,3.2274916000000001E-3,7.7830203000000002E-4,4.6241892999999996E-3,4.9051292999999999E-3,7.5480632999999999E-4,7.5480632999999999E-4,1.0098012999999999E-2,3.7217734E-3,7.0815454E-3,2.3660363999999999E-3,6.1414106999999997E-3,6.5980274000000004E-3,1.01096E-2,null,6.5961038000000001E-3,4.1653573999999999E-3,4.1653573999999999E-3,5.5407314000000003E-3,9.6821262999999998E-3,8.0712587000000002E-3,9.1288332000000003E-3,8.6150885999999992E-3,9.4381656000000003E-4,1.0492533000000001E-3,5.3192702999999997E-3,1.0492533000000001E-3,6.6360389000000002E-3,8.0978451000000007E-3,4.0418253999999999E-3,1.2724524E-3,2.7926408000000002E-3,7.3646329999999998E-3,null,null,3.5758681999999999E-3,6.4827082999999999E-3,7.1352287000000002E-3,7.7830203000000002E-4,null,null,3.4961243999999999E-3,5.4101758E-3,4.3801268999999997E-3,6.6871498999999997E-3,8.4682303000000007E-3,6.3154357000000001E-3,4.8366399000000001E-3,null,62]
[null,"Female 25-29",1.0015955E-2,9.3055525999999993E-3,3.4273132E-3,1.1624475E-3,7.1231449999999998E-4,3.3544858000000002E-3,7.6865945999999999E-4,4.4850417999999998E-3,5.2058458999999996E-3,7.9835835E-4,7.9835835E-4,9.8335388999999992E-3,3.9799018000000004E-3,7.7576791000000004E-3,2.4342347999999998E-3,6.2572616000000003E-3,7.0398850000000001E-3,1.0174109000000001E-2,null,6.7250625999999997E-3,4.1967258000000004E-3,4.1967258000000004E-3,5.5839195999999999E-3,9.5841837999999999E-3,8.2208617000000001E-3,9.1148819999999995E-3,8.7280236000000008E-3,9.5010519999999998E-4,1.0643791000000001E-3,5.3726169000000001E-3,1.0643791000000001E-3,6.6222395E-3,8.5854846999999998E-3,4.2398158000000003E-3,1.2724523E-3,2.8049853E-3,7.3206010000000004E-3,null,null,3.4877541000000001E-3,6.4897477000000004E-3,7.4134459999999998E-3,7.6865945999999999E-4,null,null,3.6684361000000002E-3,5.4036303999999997E-3,3.9393570999999997E-3,6.7298653999999999E-3,8.4628314000000007E-3,6.2027718000000004E-3,4.7301510000000001E-3,null,63]
[null,"Female 30-34",9.7736651000000004E-3,9.1177840000000003E-3,3.3937200999999998E-3,1.2408787E-3,7.1955657999999995E-4,3.3463133000000002E-3,7.8508235E-4,4.4372724000000001E-3,5.1361740999999999E-3,8.0386084E-4,8.0386084E-4,9.4489688000000006E-3,4.0946091000000004E-3,7.6023363999999996E-3,2.4942915999999998E-3,6.0035163000000001E-3,7.0952508000000003E-3,1.0074952999999999E-2,null,6.4974287999999998E-3,4.3178260999999999E-3,4.3178260999999999E-3,5.5282889E-3,9.5738964000000003E-3,8.0683817999999997E-3,8.8265613000000007E-3,8.6302636000000002E-3,9.5904712000000004E-4,1.0664047E-3,5.3598830000000002E-3,1.0664047E-3,6.6145672000000001E-3,8.4749496999999997E-3,4.2764665999999998E-3,1.2724524E-3,2.7479748000000001E-3,7.3218158999999996E-3,null,null,3.2133745999999999E-3,6.3307661999999999E-3,7.2489763000000004E-3,7.8508235E-4,null,null,3.5409369E-3,5.4713143000000002E-3,3.7913488000000002E-3,6.3662878000000003E-3,7.8436415999999995E-3,6.1405547999999997E-3,4.6310587999999998E-3,null,64]
[null,"Female 35-39",9.7703040000000005E-3,9.1118924E-3,3.1968198999999999E-3,1.2597806E-3,7.1774521999999998E-4,3.2233421000000002E-3,7.6615728999999998E-4,4.3665147E-3,4.8988540999999998E-3,7.6582836000000005E-4,7.6582836000000005E-4,9.2921433999999994E-3,3.9212526999999999E-3,7.2879633000000003E-3,2.4513674E-3,6.1204247E-3,6.8286322000000003E-3,1.0017712999999999E-2,null,6.5280375999999998E-3,4.1575012999999997E-3,4.1575012999999997E-3,5.4069822999999999E-3,9.4881328000000001E-3,7.9721157000000008E-3,8.8192848000000004E-3,8.5206367000000005E-3,1.0002717999999999E-3,1.1524014000000001E-3,5.2354721999999998E-3,1.1524014000000001E-3,6.6128280000000003E-3,8.2838562999999997E-3,4.0972522000000001E-3,1.2724523E-3,2.6889079999999998E-3,7.3769283000000001E-3,null,null,2.8763036E-3,6.3316459000000002E-3,7.0954165E-3,7.6615728999999998E-4,null,null,3.4811383E-3,5.371883E-3,3.6958062999999999E-3,6.0237757999999997E-3,7.5397156E-3,6.0279658E-3,4.6989592E-3,null,65]
[null,"Female 40-44",9.7753088999999998E-3,9.2093096999999995E-3,3.2977439E-3,1.2214901E-3,7.3234264999999998E-4,3.1997574999999999E-3,7.8846543000000004E-4,4.3831412000000002E-3,4.9967463000000004E-3,8.0577866000000001E-4,8.0577866000000001E-4,9.2492550999999992E-3,3.7932388999999999E-3,7.4064075E-3,2.3548265000000001E-3,6.1449594999999999E-3,6.4268279999999999E-3,9.9831455999999999E-3,null,6.6774371000000001E-3,4.1653393000000002E-3,4.1653393000000002E-3,5.6009240999999998E-3,9.3928818000000008E-3,7.8646131000000008E-3,8.8652968000000002E-3,8.4206304000000003E-3,8.5512659000000003E-4,9.3111169000000004E-4,5.3088982000000003E-3,9.3111169000000004E-4,6.6175250999999996E-3,7.9293568000000005E-3,4.1694421999999998E-3,1.2724524E-3,2.7176249E-3,7.3397760000000001E-3,null,null,2.8838008E-3,6.3629806999999997E-3,6.8731601000000002E-3,7.8846543000000004E-4,null,null,3.4804749000000002E-3,5.3860755000000003E-3,3.7096716000000001E-3,5.8374647000000003E-3,7.5104823000000003E-3,6.0875942000000001E-3,4.6685655000000001E-3,null,66]
[null,"Female 45-49",9.8346109000000004E-3,9.2027923000000001E-3,3.3612472E-3,1.2552507000000001E-3,7.3020218000000004E-4,3.1610874000000001E-3,7.5234176000000001E-4,4.3025273000000001E-3,5.1098786999999998E-3,7.6163531000000004E-4,7.6163531000000004E-4,9.2624015999999993E-3,3.7875737E-3,7.9136593000000005E-3,2.4314898000000001E-3,5.9430207999999997E-3,6.3502877000000003E-3,9.9738472999999998E-3,null,6.6212909E-3,4.1796085000000002E-3,4.1796085000000002E-3,5.3797736999999998E-3,9.3561374000000006E-3,7.7996771000000001E-3,8.8399667000000001E-3,8.3209676999999992E-3,8.8345986999999995E-4,9.6268229999999996E-4,5.2324017E-3,9.6268229999999996E-4,6.5598864999999998E-3,7.9453317000000006E-3,4.0724981000000004E-3,1.2724524E-3,2.6800332000000001E-3,7.3391562000000004E-3,null,null,3.0980024E-3,6.277693E-3,6.8232924999999996E-3,7.5234176000000001E-4,null,null,3.2833454000000001E-3,5.2707326000000004E-3,3.5696409000000001E-3,5.8294543999999997E-3,7.6098409000000004E-3,6.1063812999999998E-3,4.7067133999999997E-3,null,67]
[null,"Female 50-54",9.7318700999999997E-3,9.1807972999999998E-3,3.3893345000000001E-3,1.2101699E-3,7.5912283999999999E-4,3.1489129000000001E-3,7.7899033E-4,4.4022636000000002E-3,5.1365076000000004E-3,7.5651403E-4,7.5651403E-4,9.2467833000000003E-3,3.6874246000000001E-3,7.7362567999999998E-3,2.3505185E-3,6.2620044E-3,6.1824931999999999E-3,9.9439416000000006E-3,null,6.6586522999999998E-3,4.1216202000000004E-3,4.1216202000000004E-3,5.5312453999999999E-3,9.2937387999999996E-3,7.8332265999999998E-3,8.8455918999999997E-3,8.3314553000000003E-3,8.8534050000000004E-4,9.5384683999999995E-4,5.417346E-3,9.5384683999999995E-4,6.6386735999999997E-3,7.8159709999999997E-3,4.4525507999999998E-3,1.2724524E-3,2.6822247999999998E-3,7.3890904999999998E-3,null,null,3.1542509999999998E-3,6.3199084000000001E-3,6.8525230000000001E-3,7.7899033E-4,null,null,3.5077897000000001E-3,5.3855687999999997E-3,3.6597699000000001E-3,5.9668947999999998E-3,7.7646114000000004E-3,5.9590683999999998E-3,4.6544517000000002E-3,null,68]
[null,"Female 55-59",9.7433729E-3,9.0984459999999996E-3,3.4036292000000001E-3,1.1955793999999999E-3,7.1355468000000003E-4,3.1705765999999998E-3,7.7850895000000002E-4,4.4342773E-3,5.2306252000000001E-3,7.5028254999999998E-4,7.5028254999999998E-4,9.3148928000000002E-3,3.6921486999999999E-3,7.4687944999999997E-3,2.4477993000000002E-3,5.9152800000000002E-3,6.2863071999999997E-3,9.8738316000000007E-3,null,6.6196099000000001E-3,4.1289669000000003E-3,4.1289669000000003E-3,5.5087605000000003E-3,9.3302717E-3,7.7947099000000002E-3,8.7675684999999996E-3,8.3219055000000007E-3,9.1093488000000002E-4,1.0246204000000001E-3,5.4551618999999999E-3,1.0246204000000001E-3,6.5763936999999996E-3,7.7795907999999997E-3,3.9602895000000003E-3,1.2724523E-3,2.7624376000000002E-3,7.3614073999999996E-3,null,null,2.9189338000000001E-3,6.2927529000000003E-3,6.8436642000000002E-3,7.7850895000000002E-4,null,null,3.4333158E-3,5.3620925000000003E-3,3.6426559000000002E-3,6.0104564999999997E-3,7.7495723999999998E-3,6.1076437000000001E-3,4.6178922000000002E-3,null,69]
[null,"Female 60-64",9.6814278999999993E-3,8.9866379000000003E-3,3.2584607000000002E-3,1.2138202000000001E-3,7.1603170000000002E-4,3.1560188999999999E-3,7.7136768999999997E-4,4.1306824000000002E-3,4.6396893000000003E-3,7.3230034000000002E-4,7.3230034000000002E-4,9.5386272000000001E-3,3.7212119999999998E-3,7.4019641999999997E-3,2.4027968999999999E-3,5.9981126999999997E-3,6.1288723000000002E-3,9.9559425999999999E-3,null,6.5381676000000003E-3,4.1206018000000001E-3,4.1206018000000001E-3,5.3913038999999999E-3,9.2997085E-3,7.7198409000000003E-3,8.3565600000000007E-3,8.2769635999999994E-3,8.6757679999999995E-4,9.5234910000000005E-4,5.4740943000000002E-3,9.5234910000000005E-4,6.5827179E-3,7.7420216999999998E-3,4.2051937999999997E-3,1.2724524E-3,2.7218798999999998E-3,7.3660542000000004E-3,null,null,2.8083426999999999E-3,6.3455710000000004E-3,6.7183147000000002E-3,7.7136768999999997E-4,null,null,3.3945716000000001E-3,5.3930026000000002E-3,3.5171474000000001E-3,5.9708705999999999E-3,7.7982829E-3,6.0177292000000004E-3,4.5364135999999998E-3,null,70]
[null,"Female 65-69",9.3895401999999992E-3,8.6676562000000002E-3,3.4941608999999999E-3,1.1926059000000001E-3,7.0576055000000002E-4,3.0508560999999998E-3,7.7566544999999997E-4,4.3551963999999997E-3,4.9503715999999996E-3,7.5903324999999997E-4,7.5903324999999997E-4,9.3367202000000007E-3,3.3897142999999999E-3,7.3195244000000001E-3,2.2821896999999998E-3,5.9971926000000004E-3,6.1087542999999998E-3,9.8900180000000004E-3,null,6.6478196999999999E-3,4.1400129000000001E-3,4.1400129000000001E-3,5.4848948E-3,9.3615278999999996E-3,7.6733306000000001E-3,8.1095286000000006E-3,8.2472925999999992E-3,8.8490848000000004E-4,1.0243438000000001E-3,5.4593593999999997E-3,1.0243438000000001E-3,6.5383771000000002E-3,7.6866262000000003E-3,4.1998215E-3,1.2724524E-3,2.7292521999999998E-3,7.3548518000000002E-3,null,null,2.9403490000000001E-3,6.3411900999999996E-3,6.6743037000000002E-3,7.7566544999999997E-4,null,null,3.4188208999999998E-3,5.3296843999999996E-3,3.6484263999999999E-3,5.9859129000000002E-3,7.8886094999999993E-3,5.9101548999999998E-3,4.6453917999999999E-3,null,71]
[null,"Female 70-74",9.4897718999999991E-3,8.7627004999999997E-3,3.5630343000000002E-3,1.2187400000000001E-3,7.0304620999999995E-4,3.1200738E-3,7.8838854000000001E-4,4.3696929000000004E-3,5.0570787999999998E-3,7.4071792000000001E-4,7.4071792000000001E-4,9.4558353999999994E-3,3.5622395000000002E-3,7.7787782000000001E-3,2.3378152000000001E-3,6.0200970999999999E-3,6.0407007000000002E-3,9.9922511999999998E-3,null,6.6376105000000001E-3,4.1242149000000001E-3,4.1242149000000001E-3,5.4660854E-3,9.3733435000000007E-3,7.7407123E-3,8.3921570000000008E-3,8.3591323000000006E-3,8.6560833999999997E-4,9.7182783000000002E-4,5.7980553000000004E-3,9.7182783000000002E-4,6.4956895000000004E-3,7.7154208E-3,4.3991292E-3,1.2724524E-3,2.8408498000000002E-3,7.2831190000000002E-3,null,null,2.7880797E-3,6.2893819999999996E-3,6.6968147000000004E-3,7.8838854000000001E-4,null,null,3.1934746000000002E-3,5.2459956999999996E-3,3.6657841000000001E-3,5.8594132E-3,7.7826963000000001E-3,6.0398630000000003E-3,4.6714785999999999E-3,null,72]
[null,"Female 75-79",9.4403513000000001E-3,8.8054555999999996E-3,3.4502415999999999E-3,1.2156171E-3,6.9197902000000004E-4,3.1488342000000002E-3,7.9740962000000002E-4,4.5479060999999996E-3,5.1397941999999997E-3,7.1489758999999996E-4,7.1489758999999996E-4,9.5453485999999997E-3,3.7301249999999999E-3,7.3808003000000004E-3,2.4847530000000001E-3,6.0898395999999999E-3,6.2290988999999996E-3,1.0042122000000001E-2,null,6.7330245000000004E-3,4.0868488E-3,4.0868488E-3,5.7900920999999998E-3,9.4734578999999992E-3,7.8870794000000001E-3,8.4736049000000008E-3,8.4393387999999996E-3,9.3880167999999995E-4,1.1080515E-3,5.7849119999999997E-3,1.1080515E-3,6.6240969999999998E-3,7.9436469999999999E-3,4.5742248000000003E-3,1.2724524E-3,2.7374720999999999E-3,7.4431308999999999E-3,null,null,2.8221092999999998E-3,6.3351611999999998E-3,6.894262E-3,7.9740962000000002E-4,null,null,3.3932558999999998E-3,5.3381766000000002E-3,3.9042273999999998E-3,5.9868357999999997E-3,7.9374881000000008E-3,5.8454159000000004E-3,4.7383894999999997E-3,null,73]
[null,"Female 80-84",9.1178956999999998E-3,8.4023476000000003E-3,3.5490601000000002E-3,1.0853270000000001E-3,6.8631029000000001E-4,3.2645559E-3,7.9449614999999995E-4,4.3218066000000003E-3,5.0240112000000002E-3,7.1651045999999996E-4,7.1651045999999996E-4,9.5399143000000006E-3,4.0270881999999999E-3,7.4473311999999998E-3,2.44722E-3,6.0114217999999997E-3,6.2895636E-3,1.0081801E-2,null,6.6351253000000001E-3,4.0693869999999998E-3,4.0693869999999998E-3,5.6246146999999998E-3,9.4775315000000006E-3,7.9379677999999992E-3,8.0251051000000007E-3,8.4949498999999998E-3,9.2369125999999997E-4,1.1294212999999999E-3,5.9301364000000001E-3,1.1294212999999999E-3,6.6232188000000004E-3,7.9834182E-3,4.7490303000000001E-3,1.2724524E-3,2.7315085999999999E-3,7.3967091999999996E-3,null,null,3.0833520000000001E-3,6.4434367000000001E-3,6.9785969999999996E-3,7.9449614999999995E-4,null,null,3.2635267999999999E-3,5.4655904000000003E-3,3.6964062999999998E-3,6.0366187000000003E-3,7.9299639999999994E-3,6.3520818999999997E-3,4.7376845000000004E-3,null,74]
[null,"Female 85-89",9.4464952000000001E-3,8.8548101000000008E-3,3.4310271000000002E-3,1.2028739E-3,6.6175439999999999E-4,3.6189124999999999E-3,8.0116593999999999E-4,4.6957526000000003E-3,5.3623035000000003E-3,8.2467635999999996E-4,8.2467635999999996E-4,9.4277271999999995E-3,4.5584692E-3,7.5625101999999998E-3,2.5269194E-3,6.0312253999999996E-3,6.6211936000000002E-3,1.0020882E-2,null,6.7270122999999998E-3,4.3387668999999999E-3,4.3387668999999999E-3,5.9335511000000001E-3,9.4987173000000008E-3,7.9635977999999996E-3,8.3882035999999997E-3,8.5226363000000006E-3,9.2711561999999996E-4,1.2416176E-3,6.0140803000000003E-3,1.2416176E-3,6.6252267000000004E-3,8.3041265999999996E-3,5.0629730999999997E-3,1.2724524E-3,2.7798617E-3,7.2807729999999999E-3,null,null,2.8724326000000001E-3,6.4749372999999997E-3,7.0723640000000003E-3,8.0116593999999999E-4,null,null,3.5244310000000002E-3,5.5230297000000003E-3,3.9257718999999996E-3,6.3177509999999999E-3,8.0424510000000008E-3,6.3996938999999996E-3,4.3144636000000004E-3,null,75]
[null,"Female 90+",9.5490022000000001E-3,9.14039E-3,3.7466971999999999E-3,1.2241426000000001E-3,6.3422385999999998E-4,3.5322210999999999E-3,7.7923654999999996E-4,4.1877027000000004E-3,4.3963366E-3,5.9805571999999995E-4,5.9805571999999995E-4,9.5459138999999995E-3,4.5793196000000003E-3,8.2241911000000001E-3,2.4087746E-3,6.4289411999999997E-3,6.4158816999999998E-3,1.006105E-2,null,6.9671463999999997E-3,4.1826060000000002E-3,4.1826060000000002E-3,5.8208223999999999E-3,9.5078236999999993E-3,7.9602273000000008E-3,8.9248307000000006E-3,8.6450186000000002E-3,8.4709289000000005E-4,1.0599621E-3,6.1979451999999999E-3,1.0599621E-3,6.4230375000000001E-3,8.0229826000000008E-3,4.2962753000000001E-3,1.2724524E-3,2.7397532999999998E-3,7.2669153999999998E-3,null,null,3.1918373E-3,6.5601668000000004E-3,7.0969667000000004E-3,7.7923654999999996E-4,null,null,3.4985137000000002E-3,5.2421736000000003E-3,3.8322514999999998E-3,6.2796142999999999E-3,8.4063681000000005E-3,6.2120081999999998E-3,4.7673192E-3,null,76]
[null,"Male 0-4",9.9661964999999998E-3,9.2292781999999997E-3,3.3506743999999998E-3,1.2986179E-3,7.0744928000000004E-4,3.1538371000000001E-3,7.7004183999999996E-4,4.4557214999999999E-3,5.0723720000000003E-3,7.7004445000000005E-4,7.7004445000000005E-4,9.1774071999999995E-3,3.6290323E-3,7.5357547000000002E-3,2.4181713999999999E-3,6.1400756000000003E-3,6.4661824000000001E-3,9.8741325000000005E-3,null,6.4828637999999996E-3,4.2943492999999999E-3,4.2943492999999999E-3,5.4405801999999996E-3,9.4580854999999995E-3,7.9198497999999999E-3,8.9475344999999998E-3,8.4797394999999998E-3,9.2575763000000001E-4,1.0181451000000001E-3,5.1146456999999999E-3,1.0181451000000001E-3,6.5719658000000002E-3,7.9667474999999995E-3,4.1164434999999997E-3,1.2724524E-3,2.6965296999999998E-3,7.2934962999999997E-3,null,null,3.0214665000000002E-3,6.2384023000000002E-3,6.8999468E-3,7.7004183999999996E-4,null,null,3.4772713999999998E-3,5.3099017000000004E-3,3.6188384999999998E-3,5.9597045000000003E-3,7.5175944E-3,6.0107559000000003E-3,4.6445332000000002E-3,null,77]
[null,"Male 5-9",9.7989290999999992E-3,8.9809279999999991E-3,3.3633287999999999E-3,1.2033804999999999E-3,7.5755536E-4,3.1701981E-3,7.6933152999999999E-4,4.3537002000000003E-3,5.0749391999999997E-3,7.6563114999999996E-4,7.6563114999999996E-4,8.8984864000000007E-3,3.7759718999999998E-3,7.4708671000000004E-3,2.3647335000000001E-3,5.9891939000000002E-3,6.4373421E-3,9.8442305000000004E-3,null,6.4713949999999996E-3,4.1365977000000003E-3,4.1365977000000003E-3,5.3858984999999998E-3,9.3547264000000008E-3,7.7944407000000004E-3,8.6315674999999994E-3,8.3073182000000002E-3,9.3271420000000003E-4,1.0179821E-3,4.9688066000000003E-3,1.0179821E-3,6.6347853000000004E-3,7.9633649000000004E-3,4.0670050999999999E-3,1.2724524E-3,2.6824003999999999E-3,7.3341685E-3,null,null,2.8414858999999998E-3,6.1371960000000001E-3,6.7562941E-3,7.6933152999999999E-4,null,null,3.4782286000000001E-3,5.3306320000000001E-3,3.5961565999999999E-3,5.6833895000000002E-3,7.2529934999999999E-3,6.0366131000000002E-3,4.6010445999999997E-3,null,78]
[null,"Male 10-15",9.7089037000000003E-3,9.0566510000000006E-3,3.3743131999999999E-3,1.2439023E-3,7.3766103000000001E-4,3.1159645999999999E-3,7.6305348000000001E-4,4.4371588000000003E-3,5.1907022000000002E-3,7.9602614000000001E-4,7.9602614000000001E-4,9.0274550000000002E-3,3.7004823999999999E-3,7.3113381000000002E-3,2.3593833000000002E-3,5.9851677999999998E-3,6.2652319000000003E-3,9.8033640999999998E-3,null,6.5603288999999997E-3,4.1669387999999996E-3,4.1669387999999996E-3,5.4752914999999999E-3,9.3019920999999998E-3,7.7342312000000003E-3,8.5844947000000005E-3,8.2583223000000008E-3,9.3918707000000001E-4,1.0574597E-3,4.9210740000000001E-3,1.0574597E-3,6.5871076999999998E-3,7.6845582000000003E-3,4.0722633999999997E-3,1.2724524E-3,2.6857448000000002E-3,7.2843726000000001E-3,null,null,2.8548382999999998E-3,6.0911997999999997E-3,6.7248452000000002E-3,7.6305348000000001E-4,null,null,3.3396564E-3,5.2513009999999999E-3,3.5564548E-3,5.8565554000000004E-3,7.3842741999999998E-3,6.0103810000000004E-3,4.6254577999999998E-3,null,79]
[null,"Male 16-19",9.6618290999999999E-3,9.2288115999999993E-3,3.2012189999999999E-3,1.2499403000000001E-3,7.1999360999999999E-4,3.1071845E-3,7.7081733999999997E-4,4.3700240000000001E-3,5.1329684999999996E-3,7.7353418000000002E-4,7.7353418000000002E-4,9.4414557999999999E-3,3.5535386E-3,7.5062326999999996E-3,2.3556529000000001E-3,5.9035457999999999E-3,6.1923992000000004E-3,9.7679411999999997E-3,null,6.4870585000000001E-3,4.1638910999999999E-3,4.1638910999999999E-3,5.2944547000000003E-3,9.3975867999999997E-3,7.8186356000000002E-3,8.7666996000000004E-3,8.3674183000000003E-3,8.2054163999999998E-4,8.9064863000000005E-4,4.8880395E-3,8.9064863000000005E-4,6.5611022999999997E-3,7.6992819000000004E-3,4.2119710999999997E-3,1.2724523E-3,2.6755128E-3,7.2820009999999998E-3,null,null,2.654118E-3,6.1596385E-3,6.7733671000000002E-3,7.7081733999999997E-4,null,null,3.5700223000000001E-3,5.2325054999999999E-3,3.6478061E-3,5.9079835000000001E-3,7.5846001999999996E-3,6.0717072E-3,4.7463187999999996E-3,null,80]
[null,"Male 20-24",1.0321136999999999E-2,9.3883275999999995E-3,3.3538629999999999E-3,1.2043115E-3,7.1460515000000004E-4,3.1547428000000001E-3,7.7308819000000001E-4,4.6783765000000003E-3,5.0478531000000002E-3,7.7052972999999995E-4,7.7052972999999995E-4,1.0172359000000001E-2,3.6780545000000002E-3,6.9903531E-3,2.3456302000000001E-3,6.1306879E-3,6.4682402000000002E-3,1.0014274E-2,null,6.6595724999999996E-3,4.1766748999999999E-3,4.1766748999999999E-3,5.6383963999999996E-3,9.6778283E-3,8.0917468000000006E-3,9.0786591000000007E-3,8.6628338000000003E-3,8.8025169999999999E-4,1.0057228E-3,5.2282507999999997E-3,1.0057228E-3,6.6539151999999999E-3,7.9414173999999994E-3,4.2973784999999999E-3,1.2724523E-3,2.7173917999999998E-3,7.3305857000000004E-3,null,null,3.2717646000000001E-3,6.4471251999999998E-3,7.1306633999999999E-3,7.7308819000000001E-4,null,null,3.4249317999999998E-3,5.4199002000000001E-3,4.3588029E-3,6.5223709999999999E-3,8.3192335000000003E-3,6.1153168999999999E-3,4.7544744E-3,null,81]
[null,"Male 25-29",1.0204879E-2,9.7282463999999996E-3,3.3853764E-3,1.201127E-3,7.2127778999999997E-4,3.2986687000000001E-3,7.8320671999999999E-4,4.2492151000000002E-3,4.9114120000000004E-3,7.8180763999999997E-4,7.8180763999999997E-4,1.0131357000000001E-2,3.9385501000000003E-3,7.3771532999999997E-3,2.4336042999999999E-3,6.0512843000000002E-3,7.1692950999999996E-3,1.0159626999999999E-2,null,6.6804276000000003E-3,4.2904620000000001E-3,4.2904620000000001E-3,5.5161606999999998E-3,9.6882079000000006E-3,8.3068273999999994E-3,9.6205296000000003E-3,8.8071021999999999E-3,9.2984869999999996E-4,1.0499082000000001E-3,5.3798491000000004E-3,1.0499082000000001E-3,6.7244762999999997E-3,8.6168712000000008E-3,4.5625381000000001E-3,1.2724523E-3,2.7321409E-3,7.3827253999999998E-3,null,null,3.6314961000000002E-3,6.4915624000000003E-3,7.5388173999999999E-3,7.8320671999999999E-4,null,null,3.5344263999999999E-3,5.5120680000000002E-3,3.7983230000000002E-3,6.9900578999999999E-3,8.5794059999999995E-3,6.1158552E-3,4.7726328E-3,null,82]
[null,"Male 30-34",9.9510085000000005E-3,9.1514252000000004E-3,3.4663817E-3,1.2579723000000001E-3,7.1985094E-4,3.3213673000000001E-3,8.0064719000000003E-4,4.4628512000000004E-3,4.9529830000000002E-3,8.0451980000000001E-4,8.0451980000000001E-4,1.0033897999999999E-2,4.0453243999999996E-3,7.7429967999999997E-3,2.4285829000000002E-3,6.1852922999999999E-3,7.0850942000000002E-3,1.0261810999999999E-2,null,6.9046662999999999E-3,4.3462607999999996E-3,4.3462607999999996E-3,5.7675931999999997E-3,9.6787903000000002E-3,8.2472320999999998E-3,9.0649491000000006E-3,8.7944883999999997E-3,1.0692191E-3,1.2070922E-3,5.5938013999999999E-3,1.2070922E-3,6.6331973999999997E-3,8.5869403999999996E-3,4.4220611000000002E-3,1.2724524E-3,2.7428214E-3,7.3581840999999999E-3,null,null,3.4914428999999999E-3,6.4907953999999999E-3,7.4889761999999997E-3,8.0064719000000003E-4,null,null,3.4971244E-3,5.3630159000000004E-3,4.0017398999999997E-3,6.8179983999999997E-3,8.5770441000000003E-3,6.2443185999999998E-3,4.7112530999999999E-3,null,83]
[null,"Male 35-39",1.0031474E-2,9.5159029999999992E-3,3.3196812000000002E-3,1.3164644E-3,7.6885370000000003E-4,3.3354138E-3,7.6592858999999995E-4,4.4310488999999998E-3,5.1492899999999999E-3,8.2260305999999996E-4,8.2260305999999996E-4,9.7012576000000007E-3,4.1423743000000004E-3,7.0250258000000001E-3,2.4419702E-3,6.0237501999999997E-3,6.9615333000000003E-3,1.0116969E-2,null,6.6376053999999997E-3,4.2989515000000002E-3,4.2989515000000002E-3,5.6532318999999998E-3,9.6034640000000008E-3,8.1084464000000002E-3,9.2270495000000008E-3,8.6956071000000006E-3,9.6451415000000003E-4,1.0618214E-3,5.5510513000000001E-3,1.0618214E-3,6.6357617999999998E-3,8.4289134999999994E-3,4.4597257000000001E-3,1.2724524E-3,2.7724175999999999E-3,7.3587671E-3,null,null,3.3050423999999999E-3,6.5010353000000002E-3,7.3150243000000004E-3,7.6592858999999995E-4,null,null,3.4342398999999998E-3,5.4364571999999996E-3,3.5858766999999998E-3,6.2270924000000002E-3,7.8600608000000006E-3,6.2408964000000003E-3,4.6624377999999996E-3,null,84]
[null,"Male 40-44",9.7837541E-3,9.1320350999999998E-3,3.2258412999999998E-3,1.2788856E-3,8.0386979999999997E-4,3.3360074999999999E-3,7.8402786E-4,4.4459844999999998E-3,5.0411201000000001E-3,7.6993199999999997E-4,7.6993199999999997E-4,9.5236320000000006E-3,3.9902814000000002E-3,7.4526117999999999E-3,2.4545582E-3,6.0409367999999996E-3,6.7590400999999996E-3,1.0008014000000001E-2,null,6.75759E-3,4.2881378999999999E-3,4.2881378999999999E-3,5.7570733999999998E-3,9.5896907000000003E-3,8.0348672000000003E-3,8.7822023999999995E-3,8.6721135000000001E-3,9.6042716000000004E-4,1.0362488000000001E-3,5.4489411000000001E-3,1.0362488000000001E-3,6.6116196000000002E-3,8.1938784999999997E-3,4.1705146000000004E-3,1.2724524E-3,2.7508424E-3,7.3600840000000002E-3,null,null,3.1103710999999998E-3,6.4569507000000002E-3,7.119691E-3,7.8402786E-4,null,null,3.6624804999999998E-3,5.4116603000000001E-3,3.7575434E-3,5.9515037999999998E-3,7.5805346000000001E-3,6.2622674999999999E-3,4.7054421000000003E-3,null,85]
[null,"Male 45-49",1.004388E-2,9.4257834999999998E-3,3.3940172000000001E-3,1.2299755000000001E-3,7.5396610000000005E-4,3.1237470000000001E-3,7.8380707000000002E-4,4.4042164999999996E-3,4.9150119999999999E-3,7.3192478000000004E-4,7.3192478000000004E-4,9.7018033000000007E-3,3.6868161999999999E-3,7.8380247999999993E-3,2.4071945999999999E-3,6.1811645999999996E-3,6.4266310000000004E-3,1.0090452E-2,null,6.7467973999999998E-3,4.1122054999999996E-3,4.1122054999999996E-3,5.6769172999999997E-3,9.5132346999999996E-3,7.9032275999999999E-3,8.9461756999999996E-3,8.4970779999999999E-3,9.3681585999999995E-4,1.0438499E-3,5.4837847E-3,1.0438499E-3,6.5959529000000003E-3,8.0681164000000003E-3,4.2497487999999996E-3,1.2724524E-3,2.6506022999999998E-3,7.3557318999999998E-3,null,null,3.1768120999999998E-3,6.3729472000000004E-3,6.9910171E-3,7.8380707000000002E-4,null,null,3.3962678E-3,5.3179567000000002E-3,3.8226682000000001E-3,6.0574002999999998E-3,7.9794358000000003E-3,6.0240197999999997E-3,4.6458957000000004E-3,null,86]
[null,"Male 50-54",9.8037776000000007E-3,9.2325388000000005E-3,3.3830448999999999E-3,1.1802126999999999E-3,7.3244696000000005E-4,3.1812135000000002E-3,7.8647502000000005E-4,4.4262833000000001E-3,5.0422981999999998E-3,7.3293998000000004E-4,7.3293998000000004E-4,9.5035572999999998E-3,3.7025426999999999E-3,7.5584869000000004E-3,2.3659576999999999E-3,6.0805418000000003E-3,6.4954488000000003E-3,1.0041418999999999E-2,null,6.7267409E-3,4.0950407000000001E-3,4.0950407000000001E-3,5.6226486000000003E-3,9.4942794999999993E-3,7.8939907000000007E-3,8.8935214999999995E-3,8.4154606000000007E-3,9.0866698999999998E-4,1.0361756000000001E-3,5.5596735E-3,1.0361756000000001E-3,6.6680308000000004E-3,8.0698187999999997E-3,4.1485940999999998E-3,1.2724524E-3,2.7497527000000001E-3,7.3933564000000004E-3,null,null,2.994118E-3,6.3646515000000004E-3,6.9524920999999998E-3,7.8647502000000005E-4,null,null,3.4275303999999999E-3,5.3853382999999996E-3,3.7584703E-3,5.9922198000000003E-3,7.7194762000000004E-3,5.9086345E-3,4.6964483000000003E-3,null,87]
[null,"Male 55-59",9.7166262999999996E-3,8.9508994000000001E-3,3.3622393E-3,1.1575101999999999E-3,7.4406253000000003E-4,3.2184132999999999E-3,7.9307827000000002E-4,4.4957408999999997E-3,5.1365728000000001E-3,7.3981646000000002E-4,7.3981646000000002E-4,9.5021036000000007E-3,3.7841163999999998E-3,7.4273092000000001E-3,2.3772842E-3,5.9530818999999997E-3,6.2382161E-3,9.9282282999999995E-3,null,6.6531715E-3,4.1604255999999999E-3,4.1604255999999999E-3,5.5570174000000002E-3,9.4167356999999997E-3,7.8128165999999995E-3,8.5952934000000005E-3,8.3713364000000002E-3,8.7165821000000001E-4,9.3939993999999998E-4,5.6968019000000003E-3,9.3939993999999998E-4,6.5739062000000001E-3,7.8952247E-3,4.2257001999999998E-3,1.2724524E-3,2.7470887000000002E-3,7.3470920000000004E-3,null,null,3.1160519000000002E-3,6.2981807000000002E-3,6.8447300999999999E-3,7.9307827000000002E-4,null,null,3.5165739000000001E-3,5.3304364000000002E-3,3.8351895999999999E-3,6.0792253000000003E-3,7.9561257999999999E-3,6.1874916E-3,4.658232E-3,null,88]
[null,"Male 60-64",9.4396043999999991E-3,8.9544923999999998E-3,3.3167032999999999E-3,1.2090804999999999E-3,6.9726193999999995E-4,3.1593146000000001E-3,7.7568193000000004E-4,4.3214018999999998E-3,4.8691053E-3,7.1448442999999995E-4,7.1448442999999995E-4,9.6215903999999994E-3,3.7432061999999999E-3,7.4531976000000002E-3,2.4523243999999998E-3,5.8676539999999999E-3,6.3779913000000001E-3,1.0003832000000001E-2,null,6.6365119999999998E-3,4.1904775000000003E-3,4.1904775000000003E-3,5.5126072999999998E-3,9.4447666999999992E-3,7.8390529000000007E-3,8.6390087000000008E-3,8.4028207000000008E-3,8.4274291E-4,9.4153469999999997E-4,5.5873366000000002E-3,9.4153469999999997E-4,6.6117904999999999E-3,8.0213825999999998E-3,4.4179288999999997E-3,1.2724524E-3,2.6648662000000002E-3,7.3570544000000002E-3,null,null,3.1114875000000002E-3,6.4459844000000002E-3,6.8667824000000002E-3,7.7568193000000004E-4,null,null,3.5179076E-3,5.4729516000000004E-3,3.7305185000000001E-3,6.1335885000000003E-3,8.0585945000000003E-3,5.8638626000000003E-3,4.5280907999999996E-3,null,89]
[null,"Male 65-69",9.4717266000000008E-3,8.8243634000000001E-3,3.4647965999999998E-3,1.2293396000000001E-3,7.3870341000000005E-4,3.1339952000000002E-3,7.7746645999999999E-4,4.3904208999999998E-3,5.0516548000000003E-3,7.0163921999999998E-4,7.0163921999999998E-4,9.4998553000000003E-3,3.5952686000000002E-3,7.1264663999999998E-3,2.3958038E-3,6.2469463000000003E-3,6.0097082E-3,9.8883974999999999E-3,null,6.6082403000000001E-3,4.0936102000000002E-3,4.0936102000000002E-3,5.5678901000000003E-3,9.4775361999999991E-3,7.7981926E-3,8.4810955000000007E-3,8.3960062000000002E-3,8.0972729000000003E-4,8.4738648999999999E-4,5.7195700000000002E-3,8.4738648999999999E-4,6.6028679999999996E-3,7.6843681999999996E-3,4.2987727E-3,1.2724524E-3,2.7196642000000002E-3,7.3959795000000002E-3,null,null,3.0390220000000002E-3,6.4245593000000004E-3,6.7447786999999997E-3,7.7746645999999999E-4,null,null,3.4498507000000002E-3,5.3665787000000001E-3,3.6592768000000002E-3,6.0133156000000002E-3,7.9567535000000002E-3,6.0011157999999998E-3,4.6101244999999999E-3,null,90]
[null,"Male 70-74",9.6570561000000003E-3,9.0106772000000009E-3,3.4625938000000002E-3,1.1412143000000001E-3,6.8223546000000001E-4,3.1164675000000001E-3,7.9685035999999996E-4,4.4703744000000002E-3,4.9932199E-3,7.0971453999999997E-4,7.0971453999999997E-4,9.3732923000000006E-3,3.5854718000000001E-3,7.7385046000000004E-3,2.4212608E-3,6.1476137000000004E-3,5.9847570999999999E-3,1.0045589000000001E-2,null,6.7314072999999997E-3,4.0894062000000004E-3,4.0894062000000004E-3,5.5587804000000003E-3,9.4748447000000003E-3,7.7570868000000001E-3,8.5369087999999996E-3,8.4033943999999999E-3,7.7852227999999999E-4,8.5823523E-4,5.4648639999999998E-3,8.5823523E-4,6.4761057E-3,7.7088876000000004E-3,4.5283455000000002E-3,1.2724524E-3,2.7654276000000002E-3,7.3321829999999999E-3,null,null,2.9111463E-3,6.4413281999999997E-3,6.7059416000000002E-3,7.9685035999999996E-4,null,null,3.3050634000000001E-3,5.2521093999999997E-3,3.8248864000000001E-3,5.9066670999999996E-3,7.8501729000000006E-3,5.8769992999999996E-3,4.7286413999999997E-3,null,91]
[null,"Male 75-79",9.3093793999999997E-3,8.0903824000000003E-3,3.5672637E-3,1.2018281999999999E-3,6.8847281999999995E-4,3.1194196000000002E-3,8.1212771999999999E-4,4.2805476000000002E-3,4.8400420000000001E-3,7.5234141E-4,7.5234141E-4,9.5273628999999992E-3,3.5969652000000002E-3,7.5433519999999997E-3,2.4753449999999999E-3,6.0573103999999999E-3,6.1403126000000004E-3,9.9452175000000007E-3,null,6.6196121999999996E-3,4.1270689000000001E-3,4.1270689000000001E-3,5.5240508999999998E-3,9.5430892000000003E-3,7.8207347999999996E-3,7.8337938000000006E-3,8.4449220000000005E-3,9.6302899000000005E-4,1.1104759E-3,5.8414354E-3,1.1104759E-3,6.5217655999999999E-3,7.6729924999999997E-3,4.4131936000000004E-3,1.2724524E-3,2.7260919999999998E-3,7.3580709000000003E-3,null,null,3.0021145999999999E-3,6.3261925000000002E-3,6.7422194E-3,8.1212771999999999E-4,null,null,3.3369801999999999E-3,5.2017644000000004E-3,3.7210537E-3,5.9988623999999999E-3,7.7909101000000003E-3,6.0054067999999999E-3,4.6610176000000001E-3,null,92]
[null,"Male 80-84",9.3420427000000007E-3,8.5299741000000005E-3,3.6575668E-3,1.1488192E-3,6.9341669000000004E-4,3.0798639999999999E-3,7.8082084999999996E-4,4.6001816999999999E-3,5.4850350000000001E-3,7.0080510000000002E-4,7.0080510000000002E-4,9.5444069999999995E-3,3.4419883000000001E-3,7.0013916000000002E-3,2.3384247999999998E-3,6.3449711999999997E-3,6.2912940000000002E-3,1.0032536E-2,null,6.5805875000000003E-3,4.3220207999999996E-3,4.3220207999999996E-3,5.8344291E-3,9.5426859000000003E-3,7.8843291999999999E-3,8.3515103999999996E-3,8.5175335000000005E-3,7.6069845999999998E-4,8.0448488000000001E-4,5.7874229000000003E-3,8.0448488000000001E-4,6.5674241999999997E-3,7.8884233000000008E-3,4.5211100999999997E-3,1.2724523E-3,2.742708E-3,7.3674880000000002E-3,null,null,2.8358856E-3,6.2996739999999999E-3,6.8215970000000004E-3,7.8082084999999996E-4,null,null,3.2626375999999999E-3,5.2641663000000003E-3,3.7794478999999999E-3,6.0035191000000002E-3,7.8256615000000009E-3,6.1538801999999997E-3,4.7441380999999998E-3,null,93]
[null,"Male 85-89",9.7653987000000005E-3,8.3957855000000008E-3,3.3387541999999998E-3,1.2779173E-3,7.3558941999999998E-4,3.4722860000000002E-3,7.9097523000000002E-4,4.6854401000000004E-3,5.2576306999999999E-3,7.7444228000000004E-4,7.7444228000000004E-4,9.5712868000000003E-3,4.5318496000000003E-3,7.0129945000000004E-3,2.4992248999999999E-3,6.2986635999999997E-3,6.1169388E-3,1.0059649E-2,null,6.3936174999999996E-3,4.1562756999999999E-3,4.1562756999999999E-3,5.6067043999999998E-3,9.5018064999999995E-3,7.8440391999999998E-3,7.9574268000000004E-3,8.5069267000000004E-3,1.0107473000000001E-3,1.2367696E-3,5.8285743000000001E-3,1.2367696E-3,6.4124856000000001E-3,7.7661787999999997E-3,4.4041825000000001E-3,1.2724524E-3,2.6328482000000002E-3,7.3876311E-3,null,null,2.9081348E-3,6.4372756000000003E-3,6.8104699999999999E-3,7.9097523000000002E-4,null,null,3.5651349000000001E-3,5.0712205000000002E-3,3.9170682000000002E-3,6.0955840000000002E-3,8.0211385999999999E-3,6.2937313E-3,4.6808976E-3,null,94]
[null,"Male 90+",8.7855196999999993E-3,7.9490038999999995E-3,3.5572948000000002E-3,1.2487068000000001E-3,6.6211557999999997E-4,3.5186126000000002E-3,9.3550445000000002E-4,5.1242731999999996E-3,5.5701960999999999E-3,5.9582980000000003E-4,5.9582980000000003E-4,9.3578202999999999E-3,4.4204457999999997E-3,6.6915369000000004E-3,2.5501456E-3,5.9595695000000002E-3,6.2973495000000004E-3,1.0022552000000001E-2,null,6.6143827999999997E-3,4.3364461000000003E-3,4.3364461000000003E-3,6.0653957000000001E-3,9.6679040999999993E-3,7.8833327000000005E-3,7.4544436999999996E-3,8.5916667999999998E-3,7.8730610999999998E-4,9.2501553999999996E-4,5.7569491000000004E-3,9.2501553999999996E-4,6.3156239000000001E-3,7.5524696000000002E-3,4.7908001999999996E-3,1.2724524E-3,2.8350488E-3,7.2967908000000003E-3,null,null,3.6221531E-3,6.3133616999999998E-3,6.9725615999999997E-3,9.3550445000000002E-4,null,null,3.3644553999999998E-3,4.9350419999999997E-3,3.4892233000000002E-3,6.2009376000000003E-3,8.4028131999999995E-3,6.3684676000000003E-3,4.4610090999999998E-3,null,95]
["SIMD Q2","Female 0-4",9.6326685000000002E-3,8.6752409000000006E-3,2.3957753999999999E-3,1.2244707000000001E-3,4.4375291E-4,2.4722127999999999E-3,8.6633605000000001E-4,4.4931889999999999E-3,4.9921497999999998E-3,8.56028E-4,8.56028E-4,9.1725075999999992E-3,2.551687E-3,8.3012934999999993E-3,3.9770574999999997E-3,6.3938303000000002E-3,6.2348739999999996E-3,1.0887966000000001E-2,4.9483898000000004E-4,5.3784028000000003E-3,4.5346272999999999E-3,4.5346272999999999E-3,5.0632133999999997E-3,1.0063618999999999E-2,7.1899258000000001E-3,7.4710738999999998E-3,8.4564518000000005E-3,1.1438465E-3,1.2876860999999999E-3,5.3915665000000002E-3,1.2876860999999999E-3,5.6460271999999997E-3,7.2489282999999996E-3,5.0389440999999997E-3,1.2771134E-3,2.1513165000000001E-3,6.5725376E-3,6.7602440999999999E-4,6.7602440999999999E-4,2.6849235999999999E-3,5.5839293999999998E-3,6.0493624999999997E-3,8.6633605000000001E-4,null,null,2.6889849E-3,4.5201136000000003E-3,3.9884033999999999E-3,5.0052851000000004E-3,5.5346134999999996E-3,6.2884656000000002E-3,4.8437957000000004E-3,4.9483898000000004E-4,96]
[null,"Female 5-9",9.4263171999999992E-3,8.1692385000000003E-3,2.2018381999999999E-3,1.2279572999999999E-3,4.5245304000000002E-4,2.4059279999999999E-3,8.6635596000000004E-4,4.4480505999999996E-3,4.9566291000000002E-3,8.6539809000000004E-4,8.6539809000000004E-4,8.9612948000000001E-3,2.4990616000000001E-3,8.1687876999999992E-3,3.7820279000000002E-3,6.3098738999999996E-3,6.1197341000000004E-3,1.072962E-2,4.9483898000000004E-4,5.4931021000000002E-3,4.439536E-3,4.439536E-3,5.1959157000000004E-3,9.8063423999999993E-3,6.8972497000000001E-3,6.8245791000000004E-3,8.0247632999999995E-3,1.0048402E-3,1.1348139E-3,5.3710746999999998E-3,1.1348139E-3,5.6562768000000003E-3,7.0330962E-3,4.8509338000000003E-3,1.3015996000000001E-3,2.0475213000000002E-3,6.6000329999999999E-3,6.6506716999999995E-4,6.6506716999999995E-4,2.5669928E-3,5.5823671E-3,5.7993391999999998E-3,8.6635596000000004E-4,null,null,2.7107165999999999E-3,4.4643901999999996E-3,3.8951465000000001E-3,4.8331850999999999E-3,5.2738524999999996E-3,6.1912243E-3,4.7866977000000002E-3,4.9483898000000004E-4,97]
[null,"Female 10-15",9.3439388999999994E-3,8.2699804999999994E-3,2.3139244999999999E-3,1.2781899E-3,4.5038031999999998E-4,2.3734209000000001E-3,8.5757445999999995E-4,4.4461483999999997E-3,4.9409294000000003E-3,8.2011102000000002E-4,8.2011102000000002E-4,8.9485273000000001E-3,2.4803001E-3,8.2161453999999995E-3,3.6516814000000001E-3,6.3261487999999996E-3,5.8078421000000002E-3,1.0800199999999999E-2,4.9483898000000004E-4,5.2441857E-3,4.4575492E-3,4.4575492E-3,5.0003933999999998E-3,9.6646873000000005E-3,6.8536437999999998E-3,7.0353033999999998E-3,7.9256129000000002E-3,1.0460691E-3,1.1907119E-3,5.0645982999999997E-3,1.1907119E-3,5.6839786000000003E-3,6.6893561999999997E-3,4.8318985E-3,1.2263169E-3,2.0625957000000002E-3,6.6532822999999996E-3,6.5893109000000004E-4,6.5893109000000004E-4,2.4504289E-3,5.5966312000000004E-3,5.6766736999999999E-3,8.5757445999999995E-4,null,null,2.6159638000000001E-3,4.3549169999999998E-3,3.8490705000000002E-3,4.8088306000000003E-3,5.2484287999999997E-3,6.4605692999999999E-3,4.8002269999999998E-3,4.9483898000000004E-4,98]
[null,"Female 16-19",9.7670368999999996E-3,8.6323245999999996E-3,2.1095208E-3,1.2493812E-3,4.4350975000000001E-4,2.3937138999999999E-3,8.8810634999999995E-4,4.6144938000000002E-3,4.9686412999999999E-3,8.3259003999999997E-4,8.3259003999999997E-4,9.5360167000000003E-3,2.3646695E-3,8.1404261000000006E-3,3.7885398999999999E-3,6.3907458E-3,6.6206193999999996E-3,1.172436E-2,4.9483898000000004E-4,5.2840392999999996E-3,4.4201715000000003E-3,4.4201715000000003E-3,5.0326329999999999E-3,1.0226055E-2,7.1846922000000004E-3,7.4580050999999998E-3,8.4362049000000008E-3,1.0276522000000001E-3,1.1694215999999999E-3,5.0344253E-3,1.1694215999999999E-3,5.6553232000000004E-3,7.8072716000000004E-3,4.9300548E-3,1.2201522E-3,2.2106422000000001E-3,6.5930206E-3,6.2123802000000001E-4,6.2123802000000001E-4,2.4001317E-3,5.6835067999999999E-3,6.2090545E-3,8.8810634999999995E-4,null,null,2.6537750000000001E-3,4.3910281000000004E-3,4.2588710999999996E-3,5.1589584999999997E-3,5.9503322000000001E-3,6.3470080000000003E-3,4.8348009999999997E-3,4.9483898000000004E-4,99]
[null,"Female 20-24",1.0661243000000001E-2,9.8181702000000003E-3,2.3844764000000001E-3,1.2660834E-3,4.5729347000000002E-4,2.5009271E-3,9.6913095000000001E-4,5.0114347000000002E-3,4.9543204E-3,8.4832566999999996E-4,8.4832566999999996E-4,1.0491922000000001E-2,2.6180627999999998E-3,8.4376316999999999E-3,4.1012471000000002E-3,6.5641160999999996E-3,8.0022700000000006E-3,1.2342842E-2,4.9483898000000004E-4,5.5408747999999997E-3,4.4963323000000001E-3,4.4963323000000001E-3,5.3179674E-3,1.0907185999999999E-2,7.7436692E-3,8.4536951000000003E-3,9.2332101999999996E-3,1.1322831E-3,1.2801805000000001E-3,5.4632518E-3,1.2801805000000001E-3,5.6668472999999997E-3,9.3288607999999999E-3,4.9691698999999997E-3,1.3052361E-3,2.1609447E-3,6.6553005E-3,6.2267511000000005E-4,6.2267511000000005E-4,2.7058229E-3,5.7950793000000004E-3,7.1358745999999997E-3,9.6913095000000001E-4,null,null,2.7142520999999999E-3,4.5542535E-3,5.0398298000000003E-3,6.1732753999999999E-3,7.3850811000000004E-3,6.2034157999999997E-3,4.8763169999999998E-3,4.9483898000000004E-4,100]
[null,"Female 25-29",1.0508755E-2,9.6537843000000009E-3,2.3569935000000001E-3,1.252401E-3,4.7489773999999997E-4,2.5815541999999999E-3,9.4053585999999997E-4,4.3649463999999999E-3,4.7502350000000002E-3,8.9885555999999998E-4,8.9885555999999998E-4,9.6735069999999996E-3,2.6625625E-3,8.0963931999999995E-3,4.0067816000000003E-3,6.4319065E-3,7.6789679E-3,1.1568723E-2,4.9483898000000004E-4,5.4411232E-3,4.5060227E-3,4.5060227E-3,5.0230086999999996E-3,1.0445083000000001E-2,7.8433472999999993E-3,8.6185150000000002E-3,9.1098184000000006E-3,1.209468E-3,1.3468537999999999E-3,5.3100865000000001E-3,1.3468537999999999E-3,5.7786534999999997E-3,8.8751036999999994E-3,4.9386914000000004E-3,1.3411009999999999E-3,2.2353620999999999E-3,6.7403083999999997E-3,6.3288014000000004E-4,6.3288014000000004E-4,2.5603437999999999E-3,5.7468768E-3,7.0358929000000001E-3,9.4053585999999997E-4,null,null,2.8300865000000001E-3,4.6508918000000002E-3,4.0939454999999996E-3,5.6113986999999999E-3,6.5091293999999999E-3,6.2641477999999997E-3,4.8519651999999998E-3,4.9483898000000004E-4,101]
[null,"Female 30-34",9.9726691999999992E-3,9.1896401999999999E-3,2.4689215E-3,1.2839087000000001E-3,4.5973063000000002E-4,2.6649350999999998E-3,9.1201811999999996E-4,4.5476867999999998E-3,5.0185174000000003E-3,8.4977184000000004E-4,8.4977184000000004E-4,9.3345306999999995E-3,2.8606645999999999E-3,8.3349561000000006E-3,3.8625977E-3,6.3608036999999997E-3,7.2956108000000004E-3,1.1444213999999999E-2,4.9483898000000004E-4,5.5575310000000001E-3,4.4338950000000002E-3,4.4338950000000002E-3,5.2332943E-3,1.037364E-2,7.5619620999999998E-3,8.0061647999999999E-3,8.9099919000000007E-3,1.1190460000000001E-3,1.244801E-3,5.3064287999999996E-3,1.244801E-3,5.7444870000000004E-3,8.4369293999999994E-3,4.7482894999999999E-3,1.3097187000000001E-3,2.1975704E-3,6.6285459000000003E-3,6.3181749999999997E-4,6.3181749999999997E-4,2.6001749000000001E-3,5.7465577999999996E-3,6.7065605E-3,9.1201811999999996E-4,null,null,2.9128750000000001E-3,4.6879770000000003E-3,4.1213309999999998E-3,5.1202545999999996E-3,5.7452954000000002E-3,6.2403227000000002E-3,4.8396410000000004E-3,4.9483898000000004E-4,102]
[null,"Female 35-39",9.9895550000000007E-3,8.8316136999999992E-3,2.2135442000000001E-3,1.2542784999999999E-3,4.6457842E-4,2.5644773E-3,9.1081223000000005E-4,4.4114171000000004E-3,4.7924099E-3,8.2119397000000004E-4,8.2119397000000004E-4,9.2233364000000005E-3,2.7527767E-3,8.3134864000000003E-3,3.8076377999999998E-3,6.6418722000000001E-3,6.7531270999999999E-3,1.1333644E-2,4.9483898000000004E-4,5.4569676999999999E-3,4.4414029000000004E-3,4.4414029000000004E-3,5.1130904E-3,1.0192034000000001E-2,7.3809106999999999E-3,7.6265721999999999E-3,8.6919339000000005E-3,1.1561662E-3,1.2962485E-3,5.4357499E-3,1.2962485E-3,5.7297753999999996E-3,7.8627252999999998E-3,4.9916031000000003E-3,1.2508018E-3,2.1799095E-3,6.6478112999999997E-3,6.5495272000000004E-4,6.5495272000000004E-4,2.5387731999999999E-3,5.7415384999999998E-3,6.3561466999999998E-3,9.1081223000000005E-4,null,null,2.7264275000000002E-3,4.5859311000000002E-3,4.0516611000000003E-3,5.0138691000000003E-3,5.6580314000000001E-3,6.5238448000000003E-3,4.8610056E-3,4.9483898000000004E-4,103]
[null,"Female 40-44",9.7364484999999997E-3,8.6830333000000003E-3,2.2676417000000002E-3,1.3008013E-3,4.6797477999999999E-4,2.4817408999999999E-3,8.9680130000000002E-4,4.4534457999999997E-3,4.9071619E-3,8.7425497000000001E-4,8.7425497000000001E-4,8.9330412000000001E-3,2.5726256E-3,8.4383097000000004E-3,3.7022557E-3,6.5601822000000004E-3,6.4206189000000002E-3,1.1175569999999999E-2,4.9483898000000004E-4,5.4192268000000004E-3,4.408889E-3,4.408889E-3,5.0978040999999997E-3,9.9875880000000004E-3,7.0981862999999999E-3,7.3797311999999997E-3,8.3069819999999992E-3,1.1386921E-3,1.2897986E-3,5.4115537000000002E-3,1.2897986E-3,5.6941806999999999E-3,7.5485077999999997E-3,5.0570220000000004E-3,1.2378192000000001E-3,2.1286602000000002E-3,6.6095855999999996E-3,6.4455136000000001E-4,6.4455136000000001E-4,2.5507384E-3,5.7214973000000004E-3,6.0331695999999999E-3,8.9680130000000002E-4,null,null,2.8283873E-3,4.5191640999999996E-3,3.9274436000000003E-3,4.7967638999999998E-3,5.2851894999999998E-3,6.2516359999999997E-3,4.8249848000000003E-3,4.9483898000000004E-4,104]
[null,"Female 45-49",9.5685683000000001E-3,8.3444603000000003E-3,2.2019855999999998E-3,1.2413845000000001E-3,4.6281225999999999E-4,2.4418453999999999E-3,9.0650335000000003E-4,4.4142282999999997E-3,4.9146683999999998E-3,8.5743587000000003E-4,8.5743587000000003E-4,9.1677969000000005E-3,2.4365019000000001E-3,8.2656265999999992E-3,3.7595008000000001E-3,6.4653489E-3,6.1015035E-3,1.1129892000000001E-2,4.9483898000000004E-4,5.4243188000000003E-3,4.4565828999999996E-3,4.4565828999999996E-3,5.0836802000000002E-3,9.8219197000000008E-3,6.9889287E-3,7.0068719999999999E-3,8.1029376000000004E-3,1.0703957E-3,1.1980825E-3,5.3110034E-3,1.1980825E-3,5.7048858000000001E-3,7.1346732000000003E-3,5.1116473000000001E-3,1.2923384E-3,2.1536169E-3,6.6779591000000003E-3,6.4661283999999997E-4,6.4661283999999997E-4,2.3845702E-3,5.6748203999999998E-3,5.8611868999999999E-3,9.0650335000000003E-4,null,null,2.8471928E-3,4.5732398999999996E-3,3.8218710000000001E-3,4.7622584000000003E-3,5.1523792000000004E-3,6.3660102999999997E-3,4.8210872E-3,4.9483898000000004E-4,105]
[null,"Female 50-54",9.5025282000000006E-3,8.3628464000000003E-3,2.4690557999999998E-3,1.3069274E-3,4.7672452999999998E-4,2.4735072999999999E-3,9.2911725999999997E-4,4.221865E-3,4.7143799999999998E-3,8.3827651999999998E-4,8.3827651999999998E-4,9.2870994000000002E-3,2.5579531E-3,8.2357041999999991E-3,3.8743012000000002E-3,6.5129426999999997E-3,5.9384842999999996E-3,1.0993309E-2,4.9483898000000004E-4,5.4771793000000001E-3,4.4429544E-3,4.4429544E-3,5.0596814E-3,9.7725912999999994E-3,6.9866423E-3,7.0176437000000003E-3,8.0581373000000005E-3,1.0689077E-3,1.2323791000000001E-3,5.2879346000000004E-3,1.2323791000000001E-3,5.7535427999999998E-3,7.0095736999999997E-3,5.0657009999999997E-3,1.2496314000000001E-3,2.1983539E-3,6.7298729000000003E-3,6.4154912E-4,6.4154912E-4,2.5140140000000002E-3,5.6525296999999997E-3,5.8694695999999998E-3,9.2911725999999997E-4,null,null,2.7046325E-3,4.6323053999999999E-3,3.7158565000000002E-3,4.9887248000000002E-3,5.7230336E-3,6.3511124E-3,4.7206202999999997E-3,4.9483898000000004E-4,106]
[null,"Female 55-59",9.4704683999999994E-3,8.2520301999999997E-3,2.3945010999999999E-3,1.2618913999999999E-3,4.6132524999999998E-4,2.4379598999999998E-3,9.0640597000000002E-4,4.2833000999999999E-3,4.7565708000000002E-3,8.4157602000000005E-4,8.4157602000000005E-4,9.2177157999999999E-3,2.3436383E-3,8.2276621999999994E-3,3.7576805E-3,6.1960964999999996E-3,5.9221960000000002E-3,1.0934202000000001E-2,4.9483898000000004E-4,5.5510936999999998E-3,4.4309064000000002E-3,4.4309064000000002E-3,5.1207835999999996E-3,9.8187355E-3,6.9830576000000002E-3,6.8364786000000002E-3,8.0524216999999995E-3,1.0429731E-3,1.2073168E-3,4.9944897000000002E-3,1.2073168E-3,5.7936198999999997E-3,6.9635076999999997E-3,5.0819022999999998E-3,1.1886825999999999E-3,2.2247927E-3,6.8368971999999998E-3,6.6871963999999996E-4,6.6871963999999996E-4,2.657885E-3,5.6998198999999999E-3,5.8130315000000004E-3,9.0640597000000002E-4,null,null,2.8329500999999999E-3,4.6570422000000002E-3,3.8229359999999999E-3,4.9064201000000003E-3,5.4869354000000002E-3,6.1899972999999997E-3,4.7979405999999999E-3,4.9483898000000004E-4,107]
[null,"Female 60-64",9.5263766000000007E-3,8.2647222999999992E-3,2.1425963000000002E-3,1.2925966E-3,4.9684203000000004E-4,2.3772453000000002E-3,9.1648963000000002E-4,4.0521476999999997E-3,4.4537763999999997E-3,8.7600503999999996E-4,8.7600503999999996E-4,9.029245E-3,2.2888641999999999E-3,8.1099290000000001E-3,3.614492E-3,6.4975922E-3,5.8326614000000004E-3,1.0972955E-2,4.9483898000000004E-4,5.4396517E-3,4.4299671000000004E-3,4.4299671000000004E-3,5.0137602E-3,9.7637437000000007E-3,6.8025808000000002E-3,6.7377482000000001E-3,8.0076307000000006E-3,1.0439371E-3,1.1713902000000001E-3,5.2543879E-3,1.1713902000000001E-3,5.6429412000000003E-3,6.9098192999999999E-3,5.1873279999999997E-3,1.2864487E-3,2.2672398000000002E-3,6.6071953999999999E-3,6.5862178E-4,6.5862178E-4,2.4257097000000001E-3,5.7180979999999996E-3,5.6820954E-3,9.1648963000000002E-4,null,null,2.6188174E-3,4.5548639999999996E-3,3.6520073000000002E-3,4.8363245999999997E-3,5.3498097999999999E-3,6.1821150999999998E-3,4.8013287999999999E-3,4.9483898000000004E-4,108]
[null,"Female 65-69",9.5919091000000005E-3,8.1089753999999993E-3,2.4422312000000001E-3,1.3051603E-3,4.9137796000000005E-4,2.4107875999999999E-3,8.8998885000000005E-4,4.2519461999999996E-3,4.7117271000000002E-3,8.7358551999999995E-4,8.7358551999999995E-4,9.0451455000000007E-3,2.3384999999999999E-3,8.1084445000000008E-3,3.8224359000000002E-3,6.3451030000000004E-3,5.7210917999999996E-3,1.0827431E-2,4.9483898000000004E-4,5.4517044000000001E-3,4.3964903E-3,4.3964903E-3,5.0618961000000002E-3,9.7904419999999999E-3,6.7141559000000002E-3,6.6443047999999996E-3,7.9062543999999998E-3,1.0711472E-3,1.2181698999999999E-3,5.2707517000000004E-3,1.2181698999999999E-3,5.5394405000000002E-3,6.8092747000000004E-3,4.8344475000000001E-3,1.2365881999999999E-3,2.2748483E-3,6.4889537000000002E-3,6.5559066999999998E-4,6.5559066999999998E-4,2.5759420999999999E-3,5.7719052E-3,5.5830827999999999E-3,8.8998885000000005E-4,null,null,2.6617791E-3,4.4723037000000002E-3,3.7407218000000001E-3,4.8623848999999999E-3,5.4709123999999998E-3,6.5518953E-3,4.8262021000000004E-3,4.9483898000000004E-4,109]
[null,"Female 70-74",9.4857402000000004E-3,7.8471293999999997E-3,2.5162794999999999E-3,1.2941583E-3,4.8332612000000002E-4,2.4588333999999998E-3,9.1945315999999999E-4,4.0152343E-3,4.3168440000000002E-3,8.6348358000000003E-4,8.6348358000000003E-4,9.0760356000000007E-3,2.4067555000000002E-3,8.0039129000000001E-3,3.7474969999999998E-3,6.2540928000000004E-3,5.6154815999999996E-3,1.0749160000000001E-2,4.9483898000000004E-4,5.6157647999999999E-3,4.4211763999999999E-3,4.4211763999999999E-3,5.1068453999999998E-3,9.7576938999999994E-3,6.7551093999999997E-3,6.3445871000000001E-3,7.8599472E-3,1.0335704000000001E-3,1.1865478000000001E-3,5.3217624999999996E-3,1.1865478000000001E-3,5.7421097999999999E-3,6.6838506999999997E-3,5.0340960999999997E-3,1.3326837999999999E-3,2.3931931000000001E-3,6.6564212999999997E-3,6.3000386999999996E-4,6.3000386999999996E-4,2.453696E-3,5.7682130000000003E-3,5.5460031000000003E-3,9.1945315999999999E-4,null,null,2.6030671000000002E-3,4.6652964999999999E-3,3.7235946E-3,4.8265951E-3,5.3287031999999998E-3,6.6289794999999999E-3,4.8077190000000002E-3,4.9483898000000004E-4,110]
[null,"Female 75-79",9.5588975E-3,8.0795186000000001E-3,2.4730498E-3,1.3365225000000001E-3,4.9339641999999995E-4,2.4966878999999999E-3,9.1614061999999998E-4,4.1687377000000003E-3,4.8189186000000004E-3,8.8702218000000005E-4,8.8702218000000005E-4,8.8811441999999997E-3,2.5849885E-3,8.1688882999999997E-3,3.7471078999999998E-3,6.3621657999999998E-3,5.7824026000000001E-3,1.0783340000000001E-2,4.9483898000000004E-4,5.6019444000000003E-3,4.5113163000000001E-3,4.5113163000000001E-3,5.1340978000000001E-3,9.8279527999999994E-3,6.9111813999999999E-3,6.6393651E-3,7.9781897000000008E-3,1.1020038999999999E-3,1.2793463999999999E-3,5.5324831E-3,1.2793463999999999E-3,5.7983156000000003E-3,6.8387318999999997E-3,5.0102089999999998E-3,1.3227548E-3,2.3648757E-3,6.6939597E-3,6.4029427999999998E-4,6.4029427999999998E-4,2.4888876000000002E-3,5.7256012000000004E-3,5.7258572999999997E-3,9.1614061999999998E-4,null,null,2.529697E-3,4.7921548000000001E-3,3.6988581999999998E-3,5.0339688999999996E-3,5.6409034999999998E-3,6.4981001999999998E-3,4.7524148000000002E-3,4.9483898000000004E-4,111]
[null,"Female 80-84",9.6378735999999993E-3,8.2178256000000009E-3,2.7522919999999999E-3,1.3410356E-3,5.3448218000000001E-4,2.6186529999999999E-3,9.1472617000000001E-4,4.0381812000000001E-3,4.5452942000000001E-3,9.6204033000000003E-4,9.6204033000000003E-4,8.6226072000000001E-3,2.7048265999999998E-3,7.9419230999999996E-3,3.8218184E-3,6.3833520000000001E-3,5.7768393000000003E-3,1.0931082999999999E-2,4.9483898000000004E-4,5.6116813999999996E-3,4.4642845000000004E-3,4.4642845000000004E-3,5.1340437000000003E-3,9.7029535E-3,6.9583481999999997E-3,6.9396639999999999E-3,7.9592848000000008E-3,1.0938087E-3,1.2838709E-3,5.2841436E-3,1.2838709E-3,5.7988516E-3,6.9712410000000004E-3,4.9827005999999998E-3,1.2995258E-3,2.2993959E-3,6.7213372999999996E-3,6.4315263E-4,6.4315263E-4,2.5930371999999999E-3,5.7228519999999996E-3,5.7732653999999998E-3,9.1472617000000001E-4,null,null,2.8655522E-3,4.8024462999999998E-3,3.6185015999999999E-3,4.9397047000000003E-3,5.4745515999999996E-3,6.3369400000000001E-3,4.7476054000000004E-3,4.9483898000000004E-4,112]
[null,"Female 85-89",9.5716305000000008E-3,7.9250233000000003E-3,2.2583229E-3,1.3321175E-3,5.1303050999999995E-4,2.8083384999999998E-3,9.0743072000000003E-4,4.2401473000000002E-3,4.9945642E-3,9.4108533999999998E-4,9.4108533999999998E-4,8.8085430000000003E-3,2.8623481999999999E-3,8.0717597000000002E-3,4.0720449999999998E-3,6.3176947000000002E-3,5.9672147E-3,1.0990832000000001E-2,4.9483898000000004E-4,5.3797094E-3,4.6430229999999996E-3,4.6430229999999996E-3,5.0637497999999996E-3,9.8294672000000007E-3,7.1904886999999999E-3,6.6147335E-3,8.2885184999999997E-3,1.1157929000000001E-3,1.3220860000000001E-3,5.6359213999999996E-3,1.3220860000000001E-3,5.9480784E-3,7.2210440000000002E-3,4.8008043999999998E-3,1.4052723E-3,2.3930520000000001E-3,6.8472953999999999E-3,6.1685516000000004E-4,6.1685516000000004E-4,2.5035475999999998E-3,5.6939152999999996E-3,5.8868881000000003E-3,9.0743072000000003E-4,null,null,3.1549671999999999E-3,5.0597107000000001E-3,3.5249208999999998E-3,4.7484021999999997E-3,4.8599461999999996E-3,6.7505958000000001E-3,4.848504E-3,4.9483898000000004E-4,113]
[null,"Female 90+",9.7107029999999993E-3,7.6405885999999996E-3,1.9716616000000002E-3,1.3993026E-3,4.9292046E-4,2.8943554000000001E-3,9.1033254000000004E-4,4.4971840000000004E-3,5.1274201999999998E-3,1.0436550000000001E-3,1.0436550000000001E-3,8.4319514999999998E-3,3.2344804999999998E-3,8.0187851999999997E-3,3.7929930000000001E-3,6.2588844000000003E-3,5.9260577E-3,1.1119367999999999E-2,4.9483898000000004E-4,5.3337337E-3,4.4943159000000003E-3,4.4943159000000003E-3,5.0834840999999997E-3,9.4464188000000001E-3,7.2804358999999999E-3,6.439317E-3,8.2535390000000007E-3,1.2004677E-3,1.4340918E-3,6.6718556999999998E-3,1.4340918E-3,6.0266568000000003E-3,7.3474072999999999E-3,4.6325856999999996E-3,1.3181048999999999E-3,2.2332493999999998E-3,7.0018525999999996E-3,5.7740894E-4,5.7740894E-4,2.6045948999999999E-3,5.4794242999999998E-3,5.7406853999999998E-3,9.1033254000000004E-4,null,null,3.0900292999999999E-3,5.1619116999999997E-3,3.9457282999999996E-3,4.7078676999999999E-3,4.9341395000000003E-3,6.4121335999999998E-3,4.4604474999999999E-3,4.9483898000000004E-4,114]
[null,"Male 0-4",9.6951005999999992E-3,8.6216759000000004E-3,2.3279204E-3,1.2396508E-3,4.7202536000000002E-4,2.3521359999999999E-3,8.8255229999999998E-4,4.3604802E-3,4.9928715E-3,8.4085121999999998E-4,8.4085121999999998E-4,9.1720559E-3,2.4577607E-3,8.2545382999999993E-3,3.73697E-3,6.3482471999999996E-3,6.1893929E-3,1.0741672000000001E-2,4.9483898000000004E-4,5.4585878000000003E-3,4.5652762000000001E-3,4.5652762000000001E-3,5.0969394000000001E-3,1.0040632000000001E-2,7.1238055999999998E-3,7.1884063000000002E-3,8.4051751000000004E-3,1.1046487E-3,1.2520559000000001E-3,5.4324441999999999E-3,1.2520559000000001E-3,5.5983350999999999E-3,7.1050655000000004E-3,4.8276474999999998E-3,1.2405275999999999E-3,2.0620247999999998E-3,6.5426071999999998E-3,6.6780660000000005E-4,6.6780660000000005E-4,2.6337346000000002E-3,5.7112085999999999E-3,5.9664571000000001E-3,8.8255229999999998E-4,null,null,2.5135946999999999E-3,4.5190952E-3,3.7280898999999998E-3,5.0089899E-3,5.4795681000000002E-3,6.2663010000000002E-3,4.7867615000000002E-3,4.9483898000000004E-4,115]
[null,"Male 5-9",9.4998618999999999E-3,8.1957178000000002E-3,2.2980337999999999E-3,1.2423372999999999E-3,4.5391529999999999E-4,2.3474888999999999E-3,9.0350559999999996E-4,4.4589811000000003E-3,5.0941780000000004E-3,7.8891781999999996E-4,7.8891781999999996E-4,8.9191813000000005E-3,2.4734314E-3,8.3005149E-3,3.9182990000000001E-3,6.2765692999999997E-3,6.0575153E-3,1.0750141E-2,4.9483898000000004E-4,5.4089198999999998E-3,4.4826012999999998E-3,4.4826012999999998E-3,5.1161302000000001E-3,9.8127917999999998E-3,6.9566228999999999E-3,6.6617839E-3,8.1208879000000001E-3,1.0628123999999999E-3,1.1960902E-3,5.2164350999999998E-3,1.1960902E-3,5.6633991E-3,6.9436054000000004E-3,4.8764007999999998E-3,1.2413541999999999E-3,2.0210578E-3,6.5523120999999998E-3,6.5630145000000002E-4,6.5630145000000002E-4,2.5107672000000002E-3,5.5820015000000002E-3,5.7943183999999998E-3,9.0350559999999996E-4,null,null,2.5741676999999998E-3,4.4980897000000001E-3,3.7675005999999998E-3,4.8691159999999997E-3,5.3205364E-3,6.3453377000000002E-3,4.7984915E-3,4.9483898000000004E-4,116]
[null,"Male 10-15",9.5233208999999999E-3,8.4189213999999995E-3,2.0937211999999998E-3,1.2501718000000001E-3,4.5152567000000002E-4,2.4194536E-3,8.9734152000000005E-4,4.3532205999999999E-3,4.9604955000000003E-3,8.2164257999999999E-4,8.2164257999999999E-4,8.7950118000000004E-3,2.5473277000000001E-3,8.2135283999999996E-3,3.7515223999999999E-3,6.6320453999999997E-3,5.9237368E-3,1.0905938E-2,4.9483898000000004E-4,5.2400134000000001E-3,4.4985399999999997E-3,4.4985399999999997E-3,4.9592116999999996E-3,9.7565176000000003E-3,6.8594930000000004E-3,7.0062587000000003E-3,8.0031501000000001E-3,9.9851389000000005E-4,1.156359E-3,4.8148925E-3,1.156359E-3,5.6544947000000002E-3,6.7912097999999997E-3,4.9880072000000001E-3,1.2324101E-3,2.1058031999999999E-3,6.6077797999999997E-3,6.7132851000000003E-4,6.7132851000000003E-4,2.4908995000000001E-3,5.6049413999999997E-3,5.7123974000000003E-3,8.9734152000000005E-4,null,null,2.6599661999999998E-3,4.4217594000000001E-3,3.7262158E-3,4.7600400000000001E-3,5.0775628000000001E-3,6.4272690000000002E-3,4.7520199000000004E-3,4.9483898000000004E-4,117]
[null,"Male 16-19",9.6484581E-3,8.4446082000000002E-3,2.2908176999999999E-3,1.2618923E-3,4.8059026999999998E-4,2.3321342000000001E-3,9.0818794000000001E-4,4.5220284000000001E-3,4.9140275999999998E-3,8.0015795999999998E-4,8.0015795999999998E-4,9.5974644999999997E-3,2.2571603999999999E-3,8.1083933000000007E-3,3.6415171E-3,6.5183578999999997E-3,6.3977377000000004E-3,1.1373212000000001E-2,4.9483898000000004E-4,5.4275766000000001E-3,4.4754338000000003E-3,4.4754338000000003E-3,5.1343133999999999E-3,1.0096185000000001E-2,7.0858826000000001E-3,6.9349809000000002E-3,8.3150072000000002E-3,1.0181235000000001E-3,1.1222966E-3,4.9593993000000003E-3,1.1222966E-3,5.6558824000000002E-3,7.4556181000000003E-3,5.1622754000000002E-3,1.2105153E-3,2.2185233000000001E-3,6.6595435999999997E-3,6.3635153E-4,6.3635153E-4,2.4535717000000001E-3,5.5042310000000001E-3,5.9927497000000001E-3,9.0818794000000001E-4,null,null,2.5881235000000001E-3,4.4155540000000004E-3,4.1918377000000001E-3,5.0446624000000002E-3,5.7484362999999997E-3,6.4615300000000001E-3,4.7293515000000003E-3,4.9483898000000004E-4,118]
[null,"Male 20-24",1.0688670000000001E-2,9.7990752999999996E-3,2.4080502000000002E-3,1.2587538999999999E-3,4.5236148000000001E-4,2.4977952999999998E-3,9.3621533999999995E-4,4.9371229999999999E-3,4.6264925E-3,8.1944744999999999E-4,8.1944744999999999E-4,1.0497918E-2,2.5667066E-3,8.2530193000000009E-3,3.7825669000000001E-3,6.4481123999999999E-3,7.1933548999999998E-3,1.2028090999999999E-2,4.9483898000000004E-4,5.3427159000000004E-3,4.4171428E-3,4.4171428E-3,5.1713469000000001E-3,1.0730508999999999E-2,7.6265424000000002E-3,8.6539770000000002E-3,9.0014432000000005E-3,1.0871762999999999E-3,1.2394076000000001E-3,5.4613207000000002E-3,1.2394076000000001E-3,5.6741689000000001E-3,8.4257657000000007E-3,5.0185448000000001E-3,1.2454416999999999E-3,2.2008459000000002E-3,6.6805659000000002E-3,6.5045751000000003E-4,6.5045751000000003E-4,2.6386246999999998E-3,5.6893615999999998E-3,6.8317424000000002E-3,9.3621533999999995E-4,null,null,2.7765950999999998E-3,4.5121991999999998E-3,5.1207835999999996E-3,6.2372688999999997E-3,7.5024497000000002E-3,6.4904847999999998E-3,4.8247417000000003E-3,4.9483898000000004E-4,119]
[null,"Male 25-29",1.0803653E-2,9.8514501000000008E-3,2.4004592999999999E-3,1.282998E-3,4.6964103000000001E-4,2.6168197000000001E-3,9.4040349000000002E-4,4.4034948000000003E-3,4.6968013000000001E-3,9.5333501999999995E-4,9.5333501999999995E-4,1.0180084000000001E-2,2.7698898E-3,8.3236935999999994E-3,3.6471975000000002E-3,6.2382760999999997E-3,7.6678138999999998E-3,1.1662371E-2,4.9483898000000004E-4,5.5686989999999999E-3,4.4727502000000002E-3,4.4727502000000002E-3,5.1021202999999996E-3,1.0506112E-2,7.8983166999999996E-3,8.7749911000000007E-3,9.1870865000000003E-3,1.105235E-3,1.1990274E-3,5.2580674999999997E-3,1.1990274E-3,5.7402848999999999E-3,8.9035517999999994E-3,5.0437870000000001E-3,1.3242047000000001E-3,2.2607338999999999E-3,6.7052841000000002E-3,6.1685516000000004E-4,6.1685516000000004E-4,2.8125630000000001E-3,5.8017349999999997E-3,7.1509471E-3,9.4040349000000002E-4,null,null,2.7999984999999999E-3,4.6494748000000001E-3,4.2429603999999998E-3,5.8890968000000002E-3,6.9917431000000004E-3,6.3560233000000002E-3,4.8226238999999997E-3,4.9483898000000004E-4,120]
[null,"Male 30-34",1.0275074E-2,9.3106264000000008E-3,2.5286063999999998E-3,1.2662023E-3,4.6332247000000003E-4,2.6788049999999998E-3,9.2507758999999998E-4,4.5492127999999998E-3,4.9391054000000002E-3,8.9699227999999996E-4,8.9699227999999996E-4,9.6679292999999993E-3,2.8580622999999999E-3,8.2012535999999997E-3,3.8954596999999998E-3,6.4992160000000004E-3,7.4673695000000003E-3,1.1473720999999999E-2,4.9483898000000004E-4,5.6482147999999998E-3,4.5393220999999997E-3,4.5393220999999997E-3,5.2623599999999998E-3,1.0473758E-2,7.8497427000000005E-3,8.2146506999999994E-3,9.1131440999999997E-3,1.1750787E-3,1.2844944999999999E-3,5.3468989E-3,1.2844944999999999E-3,5.8307005E-3,8.5911815999999992E-3,4.7774011999999998E-3,1.3051056E-3,2.2419200000000001E-3,6.6574392999999999E-3,6.2436871999999998E-4,6.2436871999999998E-4,2.8149870000000001E-3,5.7318880999999997E-3,6.9459346000000002E-3,9.2507758999999998E-4,null,null,2.8933994000000002E-3,4.7741043E-3,4.2426996000000002E-3,5.4081036000000002E-3,6.1414386000000001E-3,6.2327385000000004E-3,4.7886198999999999E-3,4.9483898000000004E-4,121]
[null,"Male 35-39",9.8369046999999994E-3,8.8118286999999997E-3,2.4431782999999999E-3,1.2368746E-3,4.7926395000000001E-4,2.5517789000000001E-3,9.3947037000000001E-4,4.5615020000000003E-3,4.9255545999999997E-3,9.1857422000000001E-4,9.1857422000000001E-4,9.4900978999999993E-3,2.6925914E-3,8.2711595999999995E-3,3.9115204000000001E-3,6.3642780000000001E-3,7.0724580000000002E-3,1.1428447E-2,4.9483898000000004E-4,5.5162893000000003E-3,4.4615957999999999E-3,4.4615957999999999E-3,5.2349683999999997E-3,1.0478021000000001E-2,7.6669323999999997E-3,7.4983207E-3,9.0327225999999993E-3,1.1951472E-3,1.3356132000000001E-3,5.4179025000000002E-3,1.3356132000000001E-3,5.7261591000000002E-3,8.2705533000000005E-3,4.8346715000000002E-3,1.2574239E-3,2.1801215999999999E-3,6.6068982999999996E-3,6.5495272000000004E-4,6.5495272000000004E-4,2.5935438000000001E-3,5.7439696999999996E-3,6.6278880000000002E-3,9.3947037000000001E-4,null,null,2.6842861000000002E-3,4.6732845000000004E-3,4.1846186000000004E-3,5.0038061999999996E-3,5.5648679999999997E-3,6.3237859999999996E-3,4.8885760000000004E-3,4.9483898000000004E-4,122]
[null,"Male 40-44",9.9015896999999995E-3,8.894084E-3,2.4131106000000002E-3,1.2570448E-3,4.8364760000000001E-4,2.5646619000000001E-3,8.9763075999999995E-4,4.4260328000000002E-3,4.8663652999999998E-3,8.5844302999999996E-4,8.5844302999999996E-4,9.2047788000000005E-3,2.5255375000000002E-3,8.3049497999999992E-3,3.7955872000000001E-3,6.5617951999999997E-3,6.6860011E-3,1.1266435E-2,4.9483898000000004E-4,5.6487103E-3,4.4304896000000003E-3,4.4304896000000003E-3,5.2632251999999999E-3,1.0292404999999999E-2,7.2909919999999996E-3,7.6404330000000003E-3,8.6297839999999997E-3,1.1369213E-3,1.2897130000000001E-3,5.0615914999999996E-3,1.2897130000000001E-3,5.7416487999999996E-3,7.8626814999999996E-3,4.9144649000000002E-3,1.2649586E-3,2.2519873000000001E-3,6.6558182999999996E-3,6.4029427999999998E-4,6.4029427999999998E-4,2.6905615999999999E-3,5.6430656000000003E-3,6.2913251999999996E-3,8.9763075999999995E-4,null,null,2.9922897999999998E-3,4.5966236000000004E-3,3.9151780999999997E-3,4.9362364000000002E-3,5.5444711000000001E-3,6.3769962000000003E-3,4.8339413000000001E-3,4.9483898000000004E-4,123]
[null,"Male 45-49",9.7390328999999998E-3,8.7679755000000005E-3,2.4449176000000002E-3,1.2870336999999999E-3,4.9588951999999999E-4,2.4890448E-3,9.4237062000000001E-4,4.4408896999999998E-3,4.8261900000000002E-3,9.1309607000000001E-4,9.1309607000000001E-4,9.2499469999999997E-3,2.5723723E-3,8.1614722000000004E-3,3.6431713999999999E-3,6.4824525999999999E-3,6.3678101000000003E-3,1.1326661999999999E-2,4.9483898000000004E-4,5.5729877000000004E-3,4.3349093999999998E-3,4.3349093999999998E-3,5.2037448999999996E-3,1.0046337000000001E-2,7.0904093000000003E-3,7.3412768999999998E-3,8.3675626999999992E-3,1.0460865000000001E-3,1.1957099E-3,5.3313774999999997E-3,1.1957099E-3,5.6676022E-3,7.5449044999999996E-3,4.9302028000000001E-3,1.2694200000000001E-3,2.1083904000000001E-3,6.5839951999999997E-3,6.4680504000000003E-4,6.4680504000000003E-4,2.542566E-3,5.6587983999999997E-3,6.0707694000000003E-3,9.4237062000000001E-4,null,null,2.874288E-3,4.6228687000000003E-3,3.9427895000000001E-3,4.9266730999999999E-3,5.6274923999999997E-3,6.3763135000000004E-3,4.7702659E-3,4.9483898000000004E-4,124]
[null,"Male 50-54",9.6070636000000001E-3,8.4480755000000008E-3,2.3471582999999999E-3,1.2854253000000001E-3,4.5553972999999999E-4,2.4892497E-3,9.0504780999999999E-4,4.2045455999999998E-3,4.5935921000000001E-3,9.0501190000000003E-4,9.0501190000000003E-4,9.2701212999999998E-3,2.4621435000000001E-3,8.1275031000000008E-3,3.7096601000000001E-3,6.5919383999999996E-3,6.2371283000000003E-3,1.1257511E-2,4.9483898000000004E-4,5.5943052E-3,4.4621378E-3,4.4621378E-3,5.1195095000000001E-3,9.9407787999999993E-3,7.0132301000000001E-3,7.0080495999999999E-3,8.1706894999999998E-3,1.0622349999999999E-3,1.2116449999999999E-3,5.3532068000000004E-3,1.2116449999999999E-3,5.7039452000000003E-3,7.3853660999999996E-3,5.0180759000000002E-3,1.2989866E-3,2.2235084E-3,6.6821462999999996E-3,6.5158133000000002E-4,6.5158133000000002E-4,2.4654631999999998E-3,5.5654566000000001E-3,5.9341523000000004E-3,9.0504780999999999E-4,null,null,2.8347529000000002E-3,4.6152151000000002E-3,3.7825100999999998E-3,4.8524700000000002E-3,5.3552627000000002E-3,6.3695949999999996E-3,4.7914945E-3,4.9483898000000004E-4,125]
[null,"Male 55-59",9.6146306000000001E-3,8.3769242999999997E-3,2.3745190999999999E-3,1.3230829E-3,4.7489773999999997E-4,2.4092465E-3,9.5374201E-4,4.2523457999999997E-3,4.6697967000000002E-3,8.2176655999999996E-4,8.2176655999999996E-4,9.2623754999999995E-3,2.2726103000000001E-3,8.3395028000000006E-3,3.7490632E-3,6.5155205999999997E-3,6.1122407000000004E-3,1.1174116E-2,4.9483898000000004E-4,5.4957545E-3,4.4302828999999997E-3,4.4302828999999997E-3,5.0884420000000003E-3,9.8582580999999996E-3,6.9246710999999999E-3,7.0258615999999998E-3,8.0893748000000001E-3,1.0511366E-3,1.1798802E-3,5.0281173999999996E-3,1.1798802E-3,5.6693726E-3,7.2292149999999998E-3,5.0808158999999997E-3,1.2662623000000001E-3,2.2597907E-3,6.7028221999999998E-3,6.3789309999999998E-4,6.3789309999999998E-4,2.4553621E-3,5.6427075E-3,5.8661475999999997E-3,9.5374201E-4,null,null,2.7898153999999999E-3,4.6158353999999997E-3,3.8375535999999998E-3,4.9107665999999998E-3,5.5387318000000001E-3,6.1396532999999998E-3,4.7410446999999996E-3,4.9483898000000004E-4,126]
[null,"Male 60-64",9.5340059999999994E-3,8.3928518000000001E-3,2.3659499999999999E-3,1.2748118999999999E-3,4.8736869999999998E-4,2.3391027999999999E-3,9.0553379000000002E-4,4.1769347E-3,4.5512089999999996E-3,7.8021495999999995E-4,7.8021495999999995E-4,9.2365863000000003E-3,2.2083599999999999E-3,8.1597957999999995E-3,3.8685841E-3,6.2584918999999996E-3,6.0173533999999997E-3,1.1151904000000001E-2,4.9483898000000004E-4,5.5516543999999998E-3,4.4308268E-3,4.4308268E-3,5.0896368999999997E-3,9.8168422000000002E-3,6.8911249000000001E-3,7.0743313999999998E-3,8.0066053000000005E-3,9.7375461999999998E-4,1.118523E-3,5.2076094000000003E-3,1.118523E-3,5.7517098999999997E-3,7.2107077999999996E-3,5.0879228000000002E-3,1.2504816000000001E-3,2.2388995000000001E-3,6.7074327E-3,6.5254454999999999E-4,6.5254454999999999E-4,2.5360476999999998E-3,5.6531122000000001E-3,5.7848431000000001E-3,9.0553379000000002E-4,null,null,2.6318913E-3,4.6827607E-3,3.7733058000000001E-3,4.8026121E-3,5.2805413000000002E-3,6.1297011999999996E-3,4.747299E-3,4.9483898000000004E-4,127]
[null,"Male 65-69",9.7489133000000002E-3,8.2047591000000003E-3,2.3467776000000002E-3,1.2891956999999999E-3,4.8700653E-4,2.3706871999999999E-3,8.8245043000000003E-4,4.2552887000000001E-3,4.6700802999999997E-3,8.6943828999999997E-4,8.6943828999999997E-4,9.2266220999999999E-3,2.2481078999999999E-3,8.1636077000000005E-3,3.7282773E-3,6.2704355999999998E-3,5.7409317000000001E-3,1.0947432E-2,4.9483898000000004E-4,5.4366798000000001E-3,4.3793874999999999E-3,4.3793874999999999E-3,5.0744418999999997E-3,9.9011742999999992E-3,6.7864871000000004E-3,6.7576551999999996E-3,8.0152330999999997E-3,1.0445031E-3,1.1946387000000001E-3,5.5347551000000002E-3,1.1946387000000001E-3,5.6200544000000003E-3,6.8903890999999998E-3,5.0645615000000001E-3,1.2081259999999999E-3,2.3070466999999999E-3,6.6083074E-3,6.6030316999999997E-4,6.6030316999999997E-4,2.5753697999999999E-3,5.7620522999999998E-3,5.6046265999999999E-3,8.8245043000000003E-4,null,null,2.5983332E-3,4.5309694999999999E-3,3.8589325E-3,4.8698238E-3,5.5273292000000002E-3,6.3094822999999996E-3,4.6874229E-3,4.9483898000000004E-4,128]
[null,"Male 70-74",9.6578570000000006E-3,7.8964521999999992E-3,2.3440015999999998E-3,1.2945642000000001E-3,5.0580280000000002E-4,2.3732237000000001E-3,9.3542132999999996E-4,4.1264826000000001E-3,4.4776807000000002E-3,8.5630722000000004E-4,8.5630722000000004E-4,9.1045898999999996E-3,2.2219588999999999E-3,8.1971743999999999E-3,3.6753023000000002E-3,6.4083622E-3,5.7671577999999996E-3,1.0958702000000001E-2,4.9483898000000004E-4,5.6062285000000002E-3,4.4726464000000004E-3,4.4726464000000004E-3,5.1624267000000001E-3,9.8158260999999993E-3,6.7568732999999997E-3,6.4733726999999996E-3,7.9717933999999997E-3,1.0484358E-3,1.2228534E-3,5.3427568999999996E-3,1.2228534E-3,5.6417439999999998E-3,6.8760332999999998E-3,5.0806365999999997E-3,1.2996895000000001E-3,2.3709217E-3,6.6774408E-3,6.3845666999999995E-4,6.3845666999999995E-4,2.4697987999999999E-3,5.8489288E-3,5.5941334000000004E-3,9.3542132999999996E-4,null,null,2.5618378999999998E-3,4.5114723000000004E-3,3.7409727999999998E-3,4.8933466999999996E-3,5.4630279000000004E-3,6.5897958999999997E-3,4.7758337999999996E-3,4.9483898000000004E-4,129]
[null,"Male 75-79",9.8231806999999997E-3,8.2395356000000003E-3,2.5728882999999998E-3,1.2890499999999999E-3,5.0762382999999995E-4,2.4578751E-3,9.0751191999999996E-4,3.9432966E-3,4.1332697E-3,9.3044277000000003E-4,9.3044277000000003E-4,8.8795386000000004E-3,2.4128325999999999E-3,7.9841259999999994E-3,3.6480087000000001E-3,6.2321950999999999E-3,5.7153739E-3,1.102496E-2,4.9483898000000004E-4,5.5613889999999999E-3,4.4858563000000004E-3,4.4858563000000004E-3,5.0552972000000003E-3,9.8113120000000009E-3,6.7657074000000003E-3,6.8830311999999996E-3,7.8517551999999994E-3,1.0915619000000001E-3,1.2426507999999999E-3,5.1685339000000002E-3,1.2426507999999999E-3,5.7114172E-3,6.7950407999999999E-3,4.8081818999999998E-3,1.3834678E-3,2.3716735000000001E-3,6.6239615E-3,6.3119922000000003E-4,6.3119922000000003E-4,2.5847248999999999E-3,5.7194256000000004E-3,5.6227213000000003E-3,9.0751191999999996E-4,null,null,2.6236302000000001E-3,4.7006480999999996E-3,3.7720709000000001E-3,4.9342698999999997E-3,5.4715835000000001E-3,6.4123911000000004E-3,4.8090457000000003E-3,4.9483898000000004E-4,130]
[null,"Male 80-84",9.7816857000000007E-3,8.0781382999999991E-3,2.4577767999999999E-3,1.3033039000000001E-3,4.7962047000000001E-4,2.4948097E-3,9.1794225999999998E-4,3.6825775E-3,3.6410112000000001E-3,8.8957406000000005E-4,8.8957406000000005E-4,8.8397450999999991E-3,2.5639221999999998E-3,8.1580839999999995E-3,4.0130913000000004E-3,6.1899987000000002E-3,5.7714958999999996E-3,1.0936243E-2,4.9483898000000004E-4,5.5446484999999998E-3,4.4701714000000004E-3,4.4701714000000004E-3,5.0004817999999996E-3,9.8242238000000003E-3,6.8081160999999999E-3,6.7876484000000004E-3,7.8550315999999995E-3,1.0131011E-3,1.2001984999999999E-3,5.2468198999999997E-3,1.2001984999999999E-3,5.7573416000000002E-3,6.9209355999999998E-3,4.8013776999999997E-3,1.2829015000000001E-3,2.3543276E-3,6.5892255000000004E-3,6.1685516000000004E-4,6.1685516000000004E-4,2.7040336E-3,5.6419744999999999E-3,5.6363293000000004E-3,9.1794225999999998E-4,null,null,2.5623816000000001E-3,4.8280972999999996E-3,3.7149072E-3,4.8783621999999999E-3,5.3577664999999997E-3,6.2744278000000002E-3,4.7231204999999997E-3,4.9483898000000004E-4,131]
[null,"Male 85-89",9.2310319000000005E-3,7.8112488000000001E-3,2.3812008999999999E-3,1.2962465E-3,5.0639018000000005E-4,2.7492138999999998E-3,9.5062656000000003E-4,4.0214350000000003E-3,4.2573181E-3,9.1634726000000002E-4,9.1634726000000002E-4,8.9753027999999995E-3,2.7251685999999998E-3,7.8848135000000007E-3,3.8880664000000001E-3,6.5796361000000003E-3,5.6288362999999996E-3,1.0991068999999999E-2,4.9483898000000004E-4,5.7223923999999999E-3,4.4581335999999997E-3,4.4581335999999997E-3,5.2158376000000003E-3,9.8524875999999994E-3,6.8854153999999999E-3,6.6390069999999997E-3,7.9913624000000003E-3,1.1487203000000001E-3,1.3330410999999999E-3,5.3351652000000003E-3,1.3330410999999999E-3,5.7679167999999999E-3,7.0568654E-3,4.8605771999999997E-3,1.4395477E-3,2.326804E-3,6.7440071000000002E-3,6.5958860999999996E-4,6.5958860999999996E-4,2.3982335999999998E-3,5.5320593999999999E-3,5.5965744000000001E-3,9.5062656000000003E-4,null,null,3.1307875000000001E-3,4.7177597999999996E-3,3.8423385E-3,4.8194257999999999E-3,5.2458039000000001E-3,6.4179631999999997E-3,4.7835046000000003E-3,4.9483898000000004E-4,132]
[null,"Male 90+",9.2066609999999997E-3,7.4469111999999997E-3,2.3436386000000001E-3,1.2515325E-3,4.9748825000000001E-4,3.0066590000000001E-3,8.1176515000000004E-4,3.1737785000000001E-3,3.2037627E-3,1.019889E-3,1.019889E-3,8.7342085E-3,2.9823978000000002E-3,8.0024619000000005E-3,3.4586237999999999E-3,7.4894847000000001E-3,6.2008280999999998E-3,1.1598260000000001E-2,4.9483898000000004E-4,5.4756854999999998E-3,4.6437872E-3,4.6437872E-3,4.8149530999999999E-3,9.5775397000000002E-3,7.0394226000000002E-3,6.3263564000000001E-3,8.0597419000000003E-3,1.1245369000000001E-3,1.2744833E-3,5.0070080999999999E-3,1.2744833E-3,5.7842665999999999E-3,7.6073394000000004E-3,4.9907253000000002E-3,1.2838579000000001E-3,2.3850757000000002E-3,7.0957826000000003E-3,5.9932347999999995E-4,5.9932347999999995E-4,2.5103283000000001E-3,5.8851596000000003E-3,5.7130731000000004E-3,8.1176515000000004E-4,null,null,3.5233509000000001E-3,4.4934056E-3,3.1417951000000002E-3,4.9101776000000001E-3,5.1959021999999997E-3,6.5403739000000002E-3,4.4915653E-3,4.9483898000000004E-4,133]
["SIMD Q3","Female 0-4",9.6027869999999998E-3,5.5846413999999997E-3,1.3580419E-3,1.2532049E-3,6.2558153999999996E-4,2.8989071000000001E-3,6.8998295999999997E-4,2.3281033999999999E-3,2.6398832000000001E-3,7.8980792999999998E-4,7.8980792999999998E-4,9.4633019000000002E-3,2.7120002000000001E-3,7.7929119999999999E-3,3.0472791E-3,6.8144347000000001E-3,5.8474559000000004E-3,1.0382897E-2,4.8526218999999998E-4,5.5696792000000002E-3,3.9302204E-3,3.9302204E-3,4.4338842999999996E-3,1.0433400000000001E-2,7.4843755000000003E-3,4.6500865999999997E-3,8.6228885000000002E-3,8.0095923999999998E-4,8.3310505999999998E-4,4.5637139000000004E-3,8.3310505999999998E-4,6.0404940000000004E-3,7.4976575999999998E-3,3.9888131000000004E-3,1.2685890999999999E-3,1.9090418E-3,6.7517031E-3,6.2524469000000001E-4,6.2524469000000001E-4,1.6807832E-3,5.2837207999999998E-3,5.5758203000000001E-3,6.8998295999999997E-4,null,null,3.8841005999999999E-3,5.1182577999999996E-3,2.0851579000000001E-3,3.8508186E-3,3.766892E-3,6.1664483999999999E-3,4.2828140000000002E-3,4.8526218999999998E-4,134]
[null,"Female 5-9",8.9517981E-3,5.1827523999999998E-3,1.3181946E-3,1.2393255000000001E-3,5.8983354000000001E-4,2.8409733999999998E-3,6.6872931000000002E-4,2.3899896000000001E-3,2.5555843000000002E-3,8.5618417000000004E-4,8.5618417000000004E-4,9.2625673999999995E-3,2.7989997000000002E-3,7.9672188000000001E-3,3.1432996000000002E-3,6.6476134000000003E-3,5.4692877000000004E-3,1.0112876E-2,4.9458165000000002E-4,5.6062847999999998E-3,4.0575434000000004E-3,4.0575434000000004E-3,4.3973223999999997E-3,9.9454429000000004E-3,7.0614298000000004E-3,4.2484482000000002E-3,7.9307201999999997E-3,7.4522168000000001E-4,7.8362419000000002E-4,4.6100760999999999E-3,7.8362419000000002E-4,5.9928819999999997E-3,7.0309754999999998E-3,4.2450046000000003E-3,1.2337215000000001E-3,1.9855539E-3,6.6802310999999996E-3,6.3185794999999999E-4,6.3185794999999999E-4,1.4439527000000001E-3,5.1405812E-3,5.2358811E-3,6.6872931000000002E-4,null,null,3.7793958999999999E-3,5.0586210999999997E-3,2.2580752000000001E-3,3.7305901999999998E-3,3.3630219000000002E-3,5.9567671000000004E-3,4.2888969000000002E-3,4.9458165000000002E-4,135]
[null,"Female 10-15",8.1776455000000005E-3,4.2991260999999999E-3,1.1976166999999999E-3,1.2376844999999999E-3,6.0933810999999995E-4,2.6983558000000002E-3,6.6413055000000005E-4,2.5162962E-3,2.6695671999999999E-3,8.4028835000000003E-4,8.4028835000000003E-4,9.2024710000000003E-3,2.4176389E-3,7.6873367999999997E-3,3.2272440999999998E-3,6.7855902000000003E-3,5.0890105999999999E-3,9.9385920999999992E-3,4.8302552999999999E-4,5.6248469999999997E-3,3.9654699999999996E-3,3.9654699999999996E-3,4.4987904999999996E-3,9.8389889999999994E-3,6.9148539999999998E-3,3.5678038999999999E-3,7.6756054000000004E-3,7.6457689000000001E-4,7.9878751000000004E-4,4.5983582000000004E-3,7.9878751000000004E-4,5.9959580999999996E-3,6.5646185999999997E-3,4.2461180000000001E-3,1.2951767999999999E-3,1.9663942999999999E-3,6.7139202999999996E-3,6.3130084999999997E-4,6.3130084999999997E-4,1.5790436E-3,5.2146246000000004E-3,5.0742696000000004E-3,6.6413055000000005E-4,null,null,3.7353124999999999E-3,5.0783698000000004E-3,2.4054351000000001E-3,3.7953715999999998E-3,3.6203250999999998E-3,5.8698192999999997E-3,4.2390772E-3,4.8302552999999999E-4,136]
[null,"Female 16-19",9.9814245000000006E-3,6.6883159000000001E-3,1.3177384000000001E-3,1.2209359999999999E-3,5.8256433000000002E-4,2.9573772999999999E-3,6.7416701E-4,3.1938654999999999E-3,3.0116315E-3,8.3630548999999996E-4,8.3630548999999996E-4,9.9191647000000001E-3,2.8609699E-3,7.7559780000000002E-3,3.1335717000000002E-3,7.0453184000000002E-3,6.7292461E-3,1.2705297000000001E-2,4.8834167000000003E-4,5.4753264000000001E-3,3.7825147000000001E-3,3.7825147000000001E-3,4.6186009000000004E-3,1.1975977E-2,8.3708493000000002E-3,5.6090951000000002E-3,9.8177008000000007E-3,8.1457657999999997E-4,8.6327881E-4,4.6232668999999999E-3,8.6327881E-4,5.8979415E-3,8.9649091999999993E-3,4.3820869000000002E-3,1.2233262999999999E-3,2.1153535000000001E-3,6.5875867999999997E-3,6.3612067999999999E-4,6.3612067999999999E-4,1.6900121000000001E-3,5.2406741000000003E-3,6.4509548000000003E-3,6.7416701E-4,null,null,3.7702680999999998E-3,5.0412308999999997E-3,3.3025661999999999E-3,4.3393811000000003E-3,4.8547451999999998E-3,6.0639259999999999E-3,4.3038242000000004E-3,4.8834167000000003E-4,137]
[null,"Female 20-24",1.1947911E-2,9.3390726999999993E-3,1.420857E-3,1.2342579E-3,5.4075895000000001E-4,2.8492829000000002E-3,6.8433239000000002E-4,4.0933597000000002E-3,2.7964138E-3,8.8674114999999997E-4,8.8674114999999997E-4,1.02343E-2,2.7567567000000002E-3,7.9128480999999997E-3,3.7589275999999998E-3,6.8786065000000004E-3,9.1194742999999995E-3,1.3545583999999999E-2,4.8658493E-4,5.5716489000000001E-3,3.4111013999999999E-3,3.4111013999999999E-3,4.8155118999999996E-3,1.2608523E-2,9.5539456000000005E-3,8.3032873999999996E-3,1.0959696E-2,8.5450488000000002E-4,9.0805447000000001E-4,4.5810188000000003E-3,9.0805447000000001E-4,5.9323142999999998E-3,1.1308433999999999E-2,4.1839425000000001E-3,1.2464252999999999E-3,2.0927902999999999E-3,6.6347582999999998E-3,6.4356381000000001E-4,6.4356381000000001E-4,1.7766828E-3,5.4159309000000001E-3,8.1464312999999997E-3,6.8433239000000002E-4,null,null,3.5905929E-3,5.1629711000000002E-3,4.4727558000000004E-3,4.5234686999999999E-3,5.6152092000000004E-3,6.1797950999999997E-3,4.1796602E-3,4.8658493E-4,138]
[null,"Female 25-29",1.1518441000000001E-2,8.7871197999999998E-3,1.4422011E-3,1.1977569E-3,6.3876481999999997E-4,2.9739246E-3,6.7618512999999996E-4,3.1005558999999999E-3,3.174006E-3,9.1025750999999995E-4,9.1025750999999995E-4,9.9133141000000008E-3,2.9524464999999998E-3,7.8026624000000003E-3,3.6543728999999998E-3,7.2583715000000002E-3,8.8979191999999999E-3,1.2285443E-2,4.7827256E-4,5.7548093999999998E-3,3.8315371999999999E-3,3.8315371999999999E-3,4.5414362000000003E-3,1.1376472E-2,8.7489261999999998E-3,7.6470673000000001E-3,9.9630541999999999E-3,8.6710241000000001E-4,9.1051252000000002E-4,4.5876972999999996E-3,9.1051252000000002E-4,6.0219959999999999E-3,1.0612262000000001E-2,4.3036979999999999E-3,1.254221E-3,2.0421392000000002E-3,6.6895074999999997E-3,6.4551015000000002E-4,6.4551015000000002E-4,1.7691549999999999E-3,5.5510630000000002E-3,7.7243010000000003E-3,6.7618512999999996E-4,null,null,3.8499273000000001E-3,5.2724610999999996E-3,3.0692527E-3,4.8221232999999999E-3,5.7973940999999996E-3,5.9290393000000002E-3,4.2617638000000003E-3,4.7827256E-4,139]
[null,"Female 30-34",1.0423981000000001E-2,7.2540557000000004E-3,1.3310472E-3,1.238477E-3,6.1106669999999997E-4,2.8762665999999999E-3,6.8685831999999996E-4,2.7259272E-3,2.9887613E-3,7.9334532999999997E-4,7.9334532999999997E-4,9.5253000000000004E-3,2.7109715000000001E-3,7.6697095999999996E-3,3.4855872000000001E-3,6.9552711000000003E-3,7.8956187000000008E-3,1.1659291E-2,4.8988464000000005E-4,5.6938463999999999E-3,3.9701503999999997E-3,3.9701503999999997E-3,4.6876766999999998E-3,1.1072838E-2,8.1909448000000006E-3,6.1410926000000001E-3,9.4388314000000001E-3,8.6618098000000002E-4,9.0650829999999998E-4,4.5968653E-3,9.0650829999999998E-4,6.0258689000000001E-3,9.6650225999999999E-3,4.2173261999999996E-3,1.2167517999999999E-3,1.8931473999999999E-3,6.7611928000000003E-3,6.4576830000000001E-4,6.4576830000000001E-4,1.8781207000000001E-3,5.4087676000000003E-3,6.8496069999999997E-3,6.8685831999999996E-4,null,null,3.8943528000000001E-3,5.1620039E-3,2.5037370999999998E-3,4.2299115999999996E-3,4.4914539999999998E-3,5.7513486000000001E-3,4.1506058000000002E-3,4.8988464000000005E-4,140]
[null,"Female 35-39",9.7860675000000005E-3,6.1377361E-3,1.273293E-3,1.2443317E-3,6.5062777000000004E-4,3.0166762999999999E-3,6.6500116000000004E-4,2.7266705999999998E-3,2.6777686999999999E-3,8.6958950999999995E-4,8.6958950999999995E-4,9.4056837000000004E-3,3.1499083E-3,7.6340032000000004E-3,3.9481865E-3,6.8745255E-3,7.1329349000000004E-3,1.1599813E-2,4.8898998999999995E-4,5.6307459999999998E-3,3.9503230000000004E-3,3.9503230000000004E-3,4.6171349999999996E-3,1.0692851999999999E-2,7.6769226999999999E-3,5.1347794999999996E-3,8.8231656999999998E-3,8.6649874000000002E-4,9.0404158000000003E-4,4.6052141000000003E-3,9.0404158000000003E-4,5.9842615999999996E-3,9.0935696000000003E-3,4.2460388999999996E-3,1.2435456E-3,1.9977152999999998E-3,6.6828392000000004E-3,6.5806898000000003E-4,6.5806898000000003E-4,1.6948375E-3,5.4530621999999999E-3,6.2487083000000001E-3,6.6500116000000004E-4,null,null,3.7991090000000002E-3,5.0806799000000001E-3,2.7571026999999998E-3,3.9413343E-3,3.9307372999999998E-3,5.9024333E-3,4.3345852999999998E-3,4.8898998999999995E-4,141]
[null,"Female 40-44",9.6025858000000006E-3,5.5570565000000001E-3,1.3810248000000001E-3,1.2516172999999999E-3,6.2142062000000004E-4,2.7314321999999999E-3,6.7735929000000002E-4,2.4960122999999998E-3,2.8993650000000001E-3,8.6040061000000004E-4,8.6040061000000004E-4,9.3994690000000006E-3,2.5027184999999999E-3,8.0505256000000004E-3,3.5486916999999999E-3,6.7095905999999999E-3,6.1353207999999999E-3,1.0988596E-2,4.7232455000000001E-4,5.5480827999999996E-3,3.9402795999999999E-3,3.9402795999999999E-3,4.4392360999999997E-3,1.0371669E-2,7.2670286000000002E-3,4.6211435E-3,8.2783066000000002E-3,7.7375432E-4,8.0700171999999995E-4,4.6052565E-3,8.0700171999999995E-4,5.9300154000000004E-3,7.9854791999999994E-3,4.0686261000000001E-3,1.2804938E-3,2.0461915999999999E-3,6.6163432999999999E-3,6.3614512000000002E-4,6.3614512000000002E-4,1.5928692000000001E-3,5.3600147000000004E-3,5.6036282000000003E-3,6.7735929000000002E-4,null,null,3.6936332000000001E-3,5.0186804000000003E-3,2.2146823E-3,3.7130841999999998E-3,3.4611187999999998E-3,6.1043165999999996E-3,4.2279949000000004E-3,4.7232455000000001E-4,142]
[null,"Female 45-49",8.8063767000000001E-3,4.8230523000000001E-3,1.3389715E-3,1.2134260999999999E-3,6.2347628000000005E-4,2.8785397000000001E-3,6.8215042000000002E-4,2.5431834999999998E-3,2.983365E-3,8.4675709000000003E-4,8.4675709000000003E-4,9.0701654999999996E-3,2.7381039999999999E-3,7.7375168999999997E-3,3.3043464999999998E-3,6.9116065000000004E-3,5.4909586999999996E-3,1.0778190999999999E-2,4.8805802000000001E-4,5.4915789999999999E-3,3.8313062000000001E-3,3.8313062000000001E-3,4.4578784000000003E-3,1.0097168E-2,7.0477691000000002E-3,3.9999349999999996E-3,7.8982449999999999E-3,8.2736170999999996E-4,8.6835270999999995E-4,4.6276421999999996E-3,8.6835270999999995E-4,5.9236386000000004E-3,7.1916165999999998E-3,4.1403226000000003E-3,1.2444514000000001E-3,2.0889900999999998E-3,6.7146918999999999E-3,6.4447243000000001E-4,6.4447243000000001E-4,1.6349591000000001E-3,5.2458644000000004E-3,5.2981824000000004E-3,6.8215042000000002E-4,null,null,3.8164202000000001E-3,4.9960609E-3,2.1109333999999999E-3,3.7778324999999998E-3,3.7144944000000002E-3,5.9040793999999997E-3,4.2702868000000001E-3,4.8805802000000001E-4,143]
[null,"Female 50-54",8.6490270000000001E-3,5.0299396E-3,1.3112444E-3,1.2051822E-3,6.1120051999999999E-4,2.8276285000000002E-3,6.5777706999999995E-4,2.4739840999999999E-3,2.9455203999999998E-3,8.3827984000000005E-4,8.3827984000000005E-4,9.0869161999999996E-3,2.6439275000000001E-3,7.8919175999999994E-3,3.6502038000000001E-3,6.9358027999999999E-3,5.4817442000000003E-3,1.0750472E-2,4.7299434999999998E-4,5.7434071999999999E-3,3.8250834000000001E-3,3.8250834000000001E-3,4.5839315E-3,9.8318382999999995E-3,7.0229387000000001E-3,4.1898372999999997E-3,7.8721390999999998E-3,8.3658088000000002E-4,8.8697403999999996E-4,4.6448436999999999E-3,8.8697403999999996E-4,5.8708633000000001E-3,7.2088237000000003E-3,4.3026367000000001E-3,1.2627236999999999E-3,2.0955688999999998E-3,6.5856068000000002E-3,6.3329684999999995E-4,6.3329684999999995E-4,1.6036716000000001E-3,5.4267048999999999E-3,5.3028212999999998E-3,6.5777706999999995E-4,null,null,3.6779242E-3,5.0867595999999999E-3,2.0486391000000001E-3,3.8700395000000002E-3,3.9169438999999999E-3,5.9579172999999997E-3,4.2253854E-3,4.7299434999999998E-4,144]
[null,"Female 55-59",8.5587287000000005E-3,5.0583566000000002E-3,1.4106525E-3,1.2394786E-3,6.4015684999999998E-4,2.8986488E-3,6.6394277000000001E-4,2.3586431000000001E-3,2.7367316999999999E-3,8.6334848000000004E-4,8.6334848000000004E-4,9.2022968000000007E-3,2.7708295E-3,7.7773848999999999E-3,3.618062E-3,7.0271227E-3,5.3774690999999998E-3,1.0812809E-2,4.7464148000000002E-4,5.6235501999999998E-3,3.8366986000000001E-3,3.8366986000000001E-3,4.4563594000000002E-3,9.8371086999999996E-3,6.9936373999999997E-3,4.2412155000000002E-3,7.8278054000000003E-3,8.4565992999999999E-4,8.8279467000000004E-4,4.6653501E-3,8.8279467000000004E-4,5.9327859999999998E-3,7.1577537E-3,4.173202E-3,1.2703689999999999E-3,2.0609069999999998E-3,6.5946601999999997E-3,6.4651982E-4,6.4651982E-4,1.6002415E-3,5.3833034E-3,5.2789630999999998E-3,6.6394277000000001E-4,null,null,3.8011104E-3,5.2596470000000001E-3,1.9908659E-3,3.9418902999999996E-3,4.0536486000000002E-3,5.9683719E-3,4.1413157999999999E-3,4.7464148000000002E-4,145]
[null,"Female 60-64",8.4334723999999993E-3,4.8203626999999997E-3,1.3314710000000001E-3,1.2253487E-3,5.0418841000000002E-4,2.8547654000000001E-3,6.7054409999999995E-4,2.1924282999999998E-3,2.7102711999999998E-3,7.7414908000000002E-4,7.7414908000000002E-4,8.9008026000000004E-3,2.6605597000000001E-3,7.8649073999999992E-3,3.4519012999999999E-3,6.9610098999999996E-3,5.2054045E-3,1.0400028E-2,4.8733316000000002E-4,5.4915212000000001E-3,3.9061363999999999E-3,3.9061363999999999E-3,4.3320577000000001E-3,9.9328075999999994E-3,6.9037774E-3,4.0931064000000001E-3,7.7849887000000003E-3,7.4436626000000004E-4,7.8903936000000003E-4,4.6805730000000004E-3,7.8903936000000003E-4,5.8451592999999996E-3,6.9517008999999998E-3,4.2524729000000001E-3,1.3211010000000001E-3,2.1074818999999999E-3,6.5688103999999997E-3,6.4648349999999995E-4,6.4648349999999995E-4,1.4964773000000001E-3,5.4976759000000004E-3,5.0784308000000004E-3,6.7054409999999995E-4,null,null,3.7122993000000002E-3,5.1103509000000004E-3,1.7625212E-3,3.8889063999999998E-3,3.8715686999999999E-3,5.9241768999999996E-3,4.0893606000000004E-3,4.8733316000000002E-4,146]
[null,"Female 65-69",8.5678520000000008E-3,4.6802377000000001E-3,1.3805338E-3,1.2145195E-3,6.5938523000000002E-4,2.87602E-3,6.8030501000000004E-4,2.0790827000000001E-3,2.4326446000000001E-3,8.2686672000000004E-4,8.2686672000000004E-4,9.3478281000000003E-3,2.6669113000000002E-3,7.7305398999999997E-3,3.3838465E-3,6.7840325999999999E-3,4.9672928000000002E-3,1.0222337999999999E-2,4.9074418999999999E-4,5.6927282999999999E-3,3.8598796999999999E-3,3.8598796999999999E-3,4.3584089999999997E-3,9.8154348999999995E-3,6.6847829000000001E-3,3.9667790000000001E-3,7.4923076000000003E-3,8.0602330999999996E-4,8.3127221999999997E-4,4.6990779000000002E-3,8.3127221999999997E-4,5.7011898999999996E-3,6.7339037000000001E-3,4.2878962000000003E-3,1.2922935000000001E-3,2.0566790000000001E-3,6.4336625000000003E-3,6.4181077E-4,6.4181077E-4,1.5238709E-3,5.2990774000000003E-3,4.8905950999999998E-3,6.8030501000000004E-4,null,null,3.7844009000000001E-3,4.8705162000000001E-3,1.7575098E-3,3.9335471000000004E-3,4.0122112E-3,5.9570837999999996E-3,4.0870890999999999E-3,4.9074418999999999E-4,147]
[null,"Female 70-74",7.6654712000000002E-3,4.1109965999999998E-3,1.2886937000000001E-3,1.191353E-3,5.3578138000000004E-4,2.9293930000000002E-3,6.7288586000000005E-4,2.1866773999999999E-3,2.5822182999999999E-3,7.8487361000000001E-4,7.8487361000000001E-4,9.1667371000000008E-3,2.8892038000000002E-3,8.0992532999999995E-3,3.1209892999999999E-3,6.6887778000000002E-3,4.9636018999999997E-3,1.0231883000000001E-2,4.9357803000000004E-4,5.8754784999999997E-3,3.9534988E-3,3.9534988E-3,4.4322236999999997E-3,9.9436082000000005E-3,6.7536039000000003E-3,3.4918387E-3,7.5534805999999998E-3,8.3994992999999996E-4,9.1325369E-4,4.7299359000000001E-3,9.1325369E-4,5.8309440999999998E-3,6.5902811000000004E-3,4.2660813999999998E-3,1.4232434E-3,2.0470719E-3,6.5550492000000004E-3,6.4149224999999999E-4,6.4149224999999999E-4,1.4655784000000001E-3,5.2540399999999998E-3,4.8238654000000002E-3,6.7288586000000005E-4,null,null,3.7113865999999999E-3,5.0598630000000004E-3,1.8507992E-3,3.8407734000000002E-3,3.7281387E-3,6.3163252000000003E-3,4.0171649E-3,4.9357803000000004E-4,148]
[null,"Female 75-79",7.5202751999999999E-3,4.3083564000000003E-3,1.3915501999999999E-3,1.1943543E-3,3.9885966999999998E-4,2.9117182999999999E-3,6.7242886999999997E-4,2.3193940999999998E-3,3.1842214999999998E-3,7.5998802999999995E-4,7.5998802999999995E-4,9.2603331000000004E-3,2.8319870999999998E-3,8.1398226000000008E-3,2.8398843000000001E-3,6.6698267999999996E-3,4.9437149E-3,1.0236574E-2,4.9429170999999998E-4,5.8174282000000004E-3,3.8434665E-3,3.8434665E-3,4.4562882000000002E-3,9.9546610999999997E-3,6.6971308999999998E-3,3.6038662999999999E-3,7.5182701000000001E-3,7.7453476999999997E-4,8.4589957E-4,4.6923570000000003E-3,8.4589957E-4,5.7797585999999996E-3,6.6440557000000001E-3,4.3910164000000003E-3,1.3244832000000001E-3,2.0660196999999999E-3,6.5801148E-3,6.4018357000000001E-4,6.4018357000000001E-4,1.6268535000000001E-3,5.2681039000000004E-3,4.8895194000000003E-3,6.7242886999999997E-4,null,null,3.7769092999999998E-3,5.0588142999999997E-3,1.6286197E-3,4.0522147999999996E-3,4.2571490999999996E-3,5.8647719999999999E-3,4.0314723999999996E-3,4.9429170999999998E-4,149]
[null,"Female 80-84",7.4461576999999999E-3,4.6382775000000003E-3,1.3797499000000001E-3,1.2251816999999999E-3,4.7261568000000001E-4,2.8429569000000001E-3,6.8580761000000003E-4,2.0894082000000001E-3,3.0820263E-3,7.3183950999999999E-4,7.3183950999999999E-4,9.2835872999999999E-3,2.7015917E-3,7.8423516999999998E-3,3.0403604999999999E-3,7.0194979000000003E-3,5.0565022999999997E-3,1.0047771E-2,5.0895580000000001E-4,6.0029378999999997E-3,4.0132068000000003E-3,4.0132068000000003E-3,4.2933010999999998E-3,1.0006889999999999E-2,6.9948379000000001E-3,3.8059319000000001E-3,7.8733777999999994E-3,7.8677433000000005E-4,8.3830300999999995E-4,5.0108599999999998E-3,8.3830300999999995E-4,5.9038145E-3,6.8172546999999998E-3,4.2511299000000001E-3,1.4753634000000001E-3,2.1071878999999998E-3,6.6641265999999996E-3,6.4077361999999999E-4,6.4077361999999999E-4,1.5071405000000001E-3,5.5774850999999997E-3,5.0993948000000004E-3,6.8580761000000003E-4,null,null,3.6227453999999998E-3,5.2838245999999997E-3,1.3929744000000001E-3,4.3637166000000003E-3,4.6511184999999998E-3,6.0213753000000004E-3,3.9743232000000002E-3,5.0895580000000001E-4,150]
[null,"Female 85-89",7.7545777999999998E-3,4.2844726999999999E-3,1.4440777E-3,1.2809618E-3,4.7684594999999999E-4,2.9362491000000002E-3,6.6370092000000004E-4,2.2823240000000001E-3,3.2461870000000002E-3,7.0855720000000003E-4,7.0855720000000003E-4,9.5382248999999995E-3,2.9453721E-3,8.7086344E-3,3.2001926999999999E-3,7.2089349999999996E-3,5.2772579000000003E-3,1.0353335E-2,4.9808214000000004E-4,6.1052032000000001E-3,3.8021416E-3,3.8021416E-3,4.4706863999999999E-3,9.9680963999999993E-3,7.0528123E-3,3.6953448E-3,7.9640978999999997E-3,7.5366843E-4,7.8154989999999996E-4,5.0644949E-3,7.8154989999999996E-4,5.8669788000000004E-3,7.3156845999999996E-3,4.3704583999999999E-3,1.5932298000000001E-3,1.9312428E-3,6.8124411999999999E-3,5.7070375999999999E-4,5.7070375999999999E-4,1.4611289E-3,5.5374218999999997E-3,5.0926254999999997E-3,6.6370092000000004E-4,null,null,3.8749918000000002E-3,5.2311731999999996E-3,1.6911547000000001E-3,4.0344600999999997E-3,4.2243996000000004E-3,6.2214779000000003E-3,3.9910418000000001E-3,4.9808214000000004E-4,151]
[null,"Female 90+",7.2434264999999996E-3,4.3871541999999999E-3,1.664769E-3,1.3409181E-3,5.2671414000000005E-4,2.7788368000000001E-3,6.6545430999999996E-4,1.4622076000000001E-3,2.4743776E-3,7.6926307999999996E-4,7.6926307999999996E-4,9.5013920000000009E-3,2.7645025E-3,9.1065139999999996E-3,3.0919453000000001E-3,7.8191534000000007E-3,5.7802061E-3,1.0520677000000001E-2,5.1052832999999998E-4,6.3130701999999997E-3,4.2749978999999999E-3,4.2749978999999999E-3,3.5949145E-3,1.0077974E-2,6.9918115999999999E-3,3.6643825000000001E-3,7.8757592000000005E-3,8.2284776999999999E-4,8.8932674000000004E-4,5.1765865999999997E-3,8.8932674000000004E-4,5.4199052999999997E-3,7.3818471E-3,4.6954266999999997E-3,1.7003294999999999E-3,1.9326981000000001E-3,6.4303600000000004E-3,5.9164647E-4,5.9164647E-4,1.2725716999999999E-3,5.3042597000000002E-3,5.1600643999999999E-3,6.6545430999999996E-4,null,null,4.1960785000000004E-3,4.9060555E-3,1.2091649999999999E-3,4.1360692000000001E-3,4.0412963999999999E-3,5.2116154999999999E-3,4.1388212999999997E-3,5.1052832999999998E-4,152]
[null,"Male 0-4",9.4767072999999997E-3,5.6199906000000003E-3,1.3876639E-3,1.2258191E-3,6.3876161999999997E-4,2.8497714000000002E-3,6.8176683000000004E-4,2.2568525999999999E-3,2.5486494000000002E-3,7.9565989999999997E-4,7.9565989999999997E-4,9.5246518000000006E-3,2.9455286E-3,7.5319855999999999E-3,3.5580408E-3,6.8778479000000002E-3,5.9363884E-3,1.0519627E-2,4.8767428999999999E-4,5.4185064999999998E-3,3.9117242999999998E-3,3.9117242999999998E-3,4.2843142999999997E-3,1.0437561E-2,7.3296832999999997E-3,4.6514039999999996E-3,8.4138353999999999E-3,7.6781538999999999E-4,7.9943780999999997E-4,4.5737353999999999E-3,7.9943780999999997E-4,5.9758425E-3,7.6945935999999998E-3,4.0505122999999997E-3,1.1954418000000001E-3,1.9613039000000001E-3,6.6723190000000003E-3,6.5561913999999995E-4,6.5561913999999995E-4,1.7719140999999999E-3,5.4091108000000002E-3,5.5364048999999999E-3,6.8176683000000004E-4,null,null,3.5198693999999998E-3,5.1465215999999996E-3,1.9870778000000001E-3,3.9444826999999998E-3,3.9774514999999996E-3,5.7192869000000004E-3,4.2407759000000003E-3,4.8767428999999999E-4,153]
[null,"Male 5-9",8.7734814999999994E-3,4.8761042000000001E-3,1.213509E-3,1.2224279E-3,5.6636299E-4,2.7477847999999999E-3,6.5490684999999999E-4,2.4263442000000001E-3,2.8689244999999999E-3,8.0423750000000003E-4,8.0423750000000003E-4,9.1666774999999995E-3,2.3357777000000001E-3,7.8259716000000003E-3,3.0491125999999999E-3,6.7186379000000003E-3,5.3903023000000001E-3,1.0126377000000001E-2,4.9793668000000003E-4,5.7143942000000003E-3,3.8480237000000001E-3,3.8480237000000001E-3,4.6708593E-3,1.0102366999999999E-2,7.0849685000000003E-3,4.0386937999999997E-3,7.9441731999999998E-3,7.6643255000000002E-4,8.1034103999999996E-4,4.6567880000000002E-3,8.1034103999999996E-4,5.9945303999999998E-3,6.9061508000000001E-3,4.3726559000000003E-3,1.2382135999999999E-3,2.0963868999999999E-3,6.6900322999999999E-3,6.2639773000000001E-4,6.2639773000000001E-4,1.6124944E-3,5.3275893000000003E-3,5.2204979999999996E-3,6.5490684999999999E-4,null,null,3.8013527999999999E-3,5.1226429999999996E-3,2.0756201999999999E-3,3.7596067000000002E-3,3.6610786000000001E-3,6.0341116000000002E-3,4.4033350000000004E-3,4.9793668000000003E-4,154]
[null,"Male 10-15",8.1779780000000007E-3,4.1742339000000002E-3,1.3181855000000001E-3,1.2555986999999999E-3,6.2882376000000003E-4,2.8788408E-3,6.6814163999999996E-4,2.3330958000000001E-3,2.6973763000000001E-3,8.0851966000000002E-4,8.0851966000000002E-4,9.2522240999999995E-3,2.7233436999999998E-3,7.604497E-3,3.2626806999999998E-3,6.8855556E-3,5.0365547999999998E-3,9.9712675000000004E-3,4.9458165000000002E-4,5.4102246999999997E-3,3.8565712000000001E-3,3.8565712000000001E-3,4.3282262000000002E-3,9.9336226000000007E-3,6.9310698E-3,3.4060813000000001E-3,7.7664921999999999E-3,8.1893825000000004E-4,8.6866633999999998E-4,4.5643649000000003E-3,8.6866633999999998E-4,5.8950032000000003E-3,6.6645610999999999E-3,4.2462185999999997E-3,1.1807927E-3,2.0196957E-3,6.6159944999999998E-3,6.6383847E-4,6.6383847E-4,1.4478092000000001E-3,5.1913927000000002E-3,5.0183930000000003E-3,6.6814163999999996E-4,null,null,3.8445948000000001E-3,4.9462997999999998E-3,2.0476795999999999E-3,3.7094718E-3,3.5471073E-3,5.8448379999999998E-3,4.2897956000000001E-3,4.9458165000000002E-4,155]
[null,"Male 16-19",9.4373254E-3,5.5447075999999996E-3,1.3013276999999999E-3,1.2295699000000001E-3,5.5124109999999998E-4,3.0541347999999999E-3,6.8540742999999998E-4,2.7441203000000002E-3,3.0431E-3,8.3574088000000003E-4,8.3574088000000003E-4,9.6917488000000003E-3,3.146959E-3,7.7499887E-3,3.3216481E-3,7.0852012999999998E-3,6.2274905000000002E-3,1.1974046E-2,4.9396034000000004E-4,5.6030111999999998E-3,3.9104954000000001E-3,3.9104954000000001E-3,4.5394240999999998E-3,1.1295227E-2,7.8533775999999993E-3,4.6680276000000001E-3,9.1382358E-3,7.2806922000000001E-4,7.7306100999999998E-4,4.6146540000000002E-3,7.7306100999999998E-4,5.9031368999999997E-3,8.2207453000000003E-3,4.2636083E-3,1.2511301000000001E-3,1.8896802E-3,6.5968703E-3,6.2975054999999996E-4,6.2975054999999996E-4,1.5134177E-3,5.3046331999999996E-3,5.9309397000000003E-3,6.8540742999999998E-4,null,null,3.8211371000000001E-3,5.0273282000000002E-3,2.4496026000000001E-3,3.9979368E-3,4.0811351999999997E-3,6.1037210000000003E-3,4.3465109000000004E-3,4.9396034000000004E-4,156]
[null,"Male 20-24",1.2030641E-2,9.2487512000000004E-3,1.2940071E-3,1.2434714E-3,6.6551426000000002E-4,2.8295746999999999E-3,6.6385133000000001E-4,3.5206436000000002E-3,2.6564765999999998E-3,8.2507746999999998E-4,8.2507746999999998E-4,1.0120493E-2,2.6893736999999999E-3,7.8755794000000007E-3,3.6424613000000002E-3,6.8454579E-3,8.3545977000000007E-3,1.3251015999999999E-2,4.8401957999999999E-4,5.6618205000000003E-3,3.4232760999999999E-3,3.4232760999999999E-3,4.6056993000000001E-3,1.2339653000000001E-2,9.1436636000000009E-3,8.3757658000000006E-3,1.0503657E-2,8.0705247999999998E-4,8.3529443000000001E-4,4.6257842E-3,8.3529443000000001E-4,6.0016247000000003E-3,1.0566809E-2,4.3458393999999999E-3,1.2408345999999999E-3,2.0065209999999998E-3,6.6422368000000004E-3,6.2739413E-4,6.2739413E-4,1.9290135E-3,5.3008431999999996E-3,7.6409481000000003E-3,6.6385133000000001E-4,null,null,3.7809655E-3,5.2853674000000002E-3,3.9025838000000001E-3,4.1880807999999997E-3,4.9339765999999998E-3,6.0936458999999998E-3,4.2190663999999998E-3,4.8401957999999999E-4,157]
[null,"Male 25-29",1.1960630999999999E-2,9.6491678000000004E-3,1.4532480999999999E-3,1.2236770000000001E-3,4.6713688E-4,3.0129603E-3,6.7798217000000001E-4,2.9077184999999998E-3,2.4797844000000002E-3,9.3314104000000002E-4,9.3314104000000002E-4,9.9251969000000006E-3,2.8594624999999999E-3,7.8243966999999998E-3,4.0315202999999999E-3,6.8861338999999999E-3,8.7073714999999999E-3,1.2300576000000001E-2,4.9053249000000001E-4,5.6764390000000001E-3,3.9329752000000001E-3,3.9329752000000001E-3,4.4317115000000002E-3,1.1595335999999999E-2,8.8020219E-3,8.6029181000000007E-3,9.9706081999999998E-3,8.0847397000000001E-4,8.5957226000000001E-4,4.6585029999999996E-3,8.5957226000000001E-4,6.0320729000000002E-3,1.0479011E-2,4.1898815000000001E-3,1.2202669000000001E-3,2.1164131000000002E-3,6.6453702999999999E-3,6.2849203999999997E-4,6.2849203999999997E-4,1.7604773E-3,5.4656844999999999E-3,7.7805690999999998E-3,6.7798217000000001E-4,null,null,3.8930563999999999E-3,5.3744296999999998E-3,3.0439339999999999E-3,4.8083103999999998E-3,5.6642578000000001E-3,5.9581008000000003E-3,4.2653172000000003E-3,4.9053249000000001E-4,158]
[null,"Male 30-34",1.134462E-2,8.5452477999999991E-3,1.3701121E-3,1.2422242E-3,6.1976391999999996E-4,2.9777485999999999E-3,6.9489265999999998E-4,2.9146125999999998E-3,2.9807505000000001E-3,8.5150676999999999E-4,8.5150676999999999E-4,9.4357421999999996E-3,2.9308723999999999E-3,7.8495573000000006E-3,3.5649217000000002E-3,7.0143002000000003E-3,8.2160476999999996E-3,1.1844138000000001E-2,4.8760284000000002E-4,5.8416663999999998E-3,3.9560217000000003E-3,3.9560217000000003E-3,4.7316182999999996E-3,1.1382942E-2,8.5022384000000006E-3,7.4277021999999996E-3,9.7778168999999998E-3,9.2080690000000001E-4,9.5488718999999997E-4,4.6166204999999998E-3,9.5488718999999997E-4,5.9445156000000002E-3,9.9567640999999995E-3,4.1298033000000001E-3,1.2812030000000001E-3,2.0628232000000002E-3,6.6649112999999996E-3,6.3288468E-4,6.3288468E-4,1.7971613999999999E-3,5.4775001000000002E-3,7.2853724000000002E-3,6.9489265999999998E-4,null,null,3.8332609000000001E-3,5.1668406999999996E-3,2.8750484E-3,4.3996870999999998E-3,4.8250295000000004E-3,5.8925365999999996E-3,4.1578919999999998E-3,4.8760284000000002E-4,159]
[null,"Male 35-39",1.0605697000000001E-2,7.2962184999999999E-3,1.3413711999999999E-3,1.2205616E-3,5.7220918999999996E-4,2.9625932E-3,6.7346129999999998E-4,2.8352492999999999E-3,3.1773346000000002E-3,8.2046834999999999E-4,8.2046834999999999E-4,9.7809358999999992E-3,3.0208747E-3,7.6317075000000003E-3,3.3222027E-3,6.8592899000000001E-3,7.6393987999999998E-3,1.1685331E-2,4.6800385E-4,5.6840121E-3,4.0870569999999998E-3,4.0870569999999998E-3,4.7734105000000002E-3,1.0946562E-2,8.0380048999999995E-3,6.1976373999999999E-3,9.2841535999999992E-3,8.4589363999999995E-4,8.7675266000000003E-4,4.6005504999999999E-3,8.7675266000000003E-4,6.0239150000000003E-3,9.3713831000000001E-3,4.0638363E-3,1.2804568E-3,1.9538770000000001E-3,6.7190933000000003E-3,6.3372031000000001E-4,6.3372031000000001E-4,1.9559820999999998E-3,5.5432030999999996E-3,6.7020765999999997E-3,6.7346129999999998E-4,null,null,3.8890331000000001E-3,5.1905913000000001E-3,2.6208073999999999E-3,4.2654564999999997E-3,4.4493400000000004E-3,6.1357477999999998E-3,4.2082127E-3,4.6800385E-4,160]
[null,"Male 40-44",1.0356292E-2,6.5358509E-3,1.4053606E-3,1.2212863999999999E-3,5.9710717000000001E-4,2.8506920000000002E-3,6.5308977999999995E-4,2.7385085999999999E-3,2.9582343999999998E-3,8.6219160999999995E-4,8.6219160999999995E-4,9.5200705999999996E-3,2.7991168000000002E-3,7.8259855999999999E-3,3.6684781999999998E-3,6.6517968999999996E-3,6.6394810999999996E-3,1.1475918999999999E-2,4.8767428999999999E-4,5.6359069000000003E-3,3.9909910000000002E-3,3.9909910000000002E-3,4.6121603999999998E-3,1.0716366E-2,7.4690967000000004E-3,5.4695029000000001E-3,8.6256106999999995E-3,8.2238815999999997E-4,8.6453080000000002E-4,4.6245106000000003E-3,8.6453080000000002E-4,5.9287380000000002E-3,8.5642905999999998E-3,4.1663051E-3,1.2437181E-3,1.931028E-3,6.6992016999999999E-3,6.3832989E-4,6.3832989E-4,1.7101804999999999E-3,5.4503781999999997E-3,6.0229031000000001E-3,6.5308977999999995E-4,null,null,3.6871680000000002E-3,4.9328944000000003E-3,2.5625146999999999E-3,4.0305215000000002E-3,4.0778122000000002E-3,5.9288437000000003E-3,4.3227947000000003E-3,4.8767428999999999E-4,161]
[null,"Male 45-49",9.7831944000000004E-3,6.0043511999999999E-3,1.3232736E-3,1.210921E-3,5.9474213000000001E-4,2.7591002000000001E-3,6.7705852999999996E-4,2.5639432E-3,2.8534119E-3,8.6373190000000005E-4,8.6373190000000005E-4,9.3868970999999995E-3,2.5815809999999999E-3,7.6319057999999999E-3,3.0193108000000001E-3,6.9340849E-3,5.8790635999999997E-3,1.1157922000000001E-2,5.0062797000000004E-4,5.7135946E-3,3.8894747999999998E-3,3.8894747999999998E-3,4.6382239000000002E-3,1.0459764E-2,7.2476794000000001E-3,4.9466201999999997E-3,8.3400113999999997E-3,8.1448641E-4,8.5632147999999998E-4,4.6562734E-3,8.5632147999999998E-4,5.8785933000000002E-3,7.7202356999999996E-3,4.1740481000000001E-3,1.2750713999999999E-3,2.0891766000000001E-3,6.6751270000000003E-3,6.3246576000000002E-4,6.3246576000000002E-4,1.5648609E-3,5.2998033000000002E-3,5.5953069000000003E-3,6.7705852999999996E-4,null,null,3.6158996999999999E-3,4.9683428E-3,2.2849054E-3,3.8613959E-3,3.8277089999999999E-3,6.1076189999999999E-3,4.2184763999999998E-3,5.0062797000000004E-4,162]
[null,"Male 50-54",9.3081528000000004E-3,5.6601441000000002E-3,1.3251389999999999E-3,1.2208516E-3,5.4599100000000001E-4,2.8362495000000001E-3,6.7062100000000004E-4,2.5782778000000002E-3,2.7956373999999998E-3,8.4384816000000003E-4,8.4384816000000003E-4,9.3072923000000005E-3,2.8230357E-3,7.9566827000000003E-3,3.4828910000000001E-3,6.7734652999999999E-3,5.8180265999999998E-3,1.1151827E-2,4.9197225999999996E-4,5.6131566000000004E-3,3.8365647E-3,3.8365647E-3,4.6110745000000003E-3,1.0093998E-2,7.0719364999999998E-3,4.7572609E-3,7.9430536999999992E-3,8.2755863000000002E-4,8.8905042999999997E-4,4.6439259E-3,8.8905042999999997E-4,5.9256209000000002E-3,7.7082840999999997E-3,4.0569576000000001E-3,1.313441E-3,2.0237875000000002E-3,6.5930416000000002E-3,6.4577709000000001E-4,6.4577709000000001E-4,1.6600408000000001E-3,5.3747244999999997E-3,5.4835882000000002E-3,6.7062100000000004E-4,null,null,3.6543449000000002E-3,5.1554534999999997E-3,2.3862605E-3,3.9899120999999996E-3,4.1462351000000003E-3,5.6770081000000003E-3,4.2614667E-3,4.9197225999999996E-4,163]
[null,"Male 55-59",9.4037652000000006E-3,5.6509333999999996E-3,1.3336748E-3,1.2369729999999999E-3,6.5986305999999998E-4,2.7857340999999998E-3,6.6579430000000004E-4,2.4386404999999999E-3,2.7668558000000002E-3,8.8858372000000002E-4,8.8858372000000002E-4,9.3378741000000008E-3,2.5280274000000001E-3,8.1723798000000007E-3,3.6303580000000002E-3,7.1116486000000001E-3,5.5625796999999996E-3,1.1067344999999999E-2,4.8733316000000002E-4,5.6671100000000004E-3,3.8369150999999998E-3,3.8369150999999998E-3,4.5022541000000003E-3,9.9795748999999996E-3,7.0299730000000001E-3,4.8053549000000003E-3,7.8774849000000004E-3,8.4768753999999997E-4,8.8180403999999998E-4,4.6567889000000001E-3,8.8180403999999998E-4,5.9041655999999996E-3,7.4137142000000001E-3,4.2886686999999996E-3,1.3299529E-3,2.0532486999999999E-3,6.666834E-3,6.5632042000000001E-4,6.5632042000000001E-4,1.5702045999999999E-3,5.3707924999999998E-3,5.3913570000000003E-3,6.6579430000000004E-4,null,null,3.8439200999999998E-3,5.1579796999999998E-3,2.1179879999999999E-3,4.0016603000000003E-3,4.1868462999999998E-3,5.7976054999999997E-3,4.1651288E-3,4.8733316000000002E-4,164]
[null,"Male 60-64",9.3433522000000001E-3,5.5176727000000002E-3,1.3500699000000001E-3,1.2257482000000001E-3,5.8967380999999999E-4,2.7989256000000001E-3,6.6815538000000003E-4,2.4136921999999999E-3,2.9501344999999998E-3,8.2631700000000002E-4,8.2631700000000002E-4,9.2215538000000007E-3,2.4775310999999999E-3,7.9043163000000003E-3,3.2967739000000001E-3,7.0542158000000002E-3,5.4225176999999998E-3,1.0746261999999999E-2,4.7916214999999999E-4,5.4684668000000002E-3,3.8966383000000001E-3,3.8966383000000001E-3,4.3144411999999997E-3,1.0014492999999999E-2,7.0366765999999997E-3,4.6308790000000001E-3,7.975556E-3,8.6234829999999997E-4,9.1069879000000003E-4,4.7207237000000003E-3,9.1069879000000003E-4,5.8612810000000003E-3,7.2214226000000001E-3,4.3535735000000001E-3,1.3013720000000001E-3,2.0649380000000001E-3,6.6908625999999999E-3,6.5129396000000001E-4,6.5129396000000001E-4,1.6439913999999999E-3,5.4287407999999999E-3,5.2266619000000004E-3,6.6815538000000003E-4,null,null,3.7223158999999998E-3,5.0579164999999997E-3,1.9106042000000001E-3,3.9371060999999997E-3,3.9766658999999998E-3,5.7766042000000004E-3,4.0874081000000003E-3,4.7916214999999999E-4,165]
[null,"Male 65-69",8.6619564999999999E-3,4.8361081E-3,1.3590701E-3,1.2058389E-3,5.5705133000000001E-4,2.7461653000000002E-3,6.7042139999999996E-4,2.2880858999999999E-3,2.6811182000000002E-3,8.0765655999999995E-4,8.0765655999999995E-4,9.2695820999999998E-3,2.4994924E-3,7.9225674000000003E-3,3.4684995000000001E-3,6.7451582000000003E-3,5.1585868999999996E-3,1.0500656000000001E-2,4.7003513000000002E-4,5.5803195999999996E-3,3.8290871000000001E-3,3.8290871000000001E-3,4.3725179999999997E-3,1.0000820000000001E-2,6.8104126999999999E-3,4.1007856000000002E-3,7.6902634000000003E-3,7.5511616999999998E-4,7.9096085000000002E-4,4.7485171999999999E-3,7.9096085000000002E-4,5.7659898999999999E-3,6.9939522000000004E-3,4.3030228000000004E-3,1.3057137E-3,2.1112214000000001E-3,6.4639854000000004E-3,6.4867926999999999E-4,6.4867926999999999E-4,1.5749253999999999E-3,5.3744726000000001E-3,4.9676377999999998E-3,6.7042139999999996E-4,null,null,3.6224637000000001E-3,4.9463370999999999E-3,1.9116024E-3,3.8958377999999999E-3,3.9641145000000001E-3,5.8391815999999999E-3,4.0514920999999999E-3,4.7003513000000002E-4,166]
[null,"Male 70-74",8.4811066999999993E-3,4.5309039000000001E-3,1.303729E-3,1.2003980000000001E-3,5.6953343999999997E-4,2.7885904999999998E-3,6.7439599999999996E-4,1.9820647000000002E-3,2.4131780999999998E-3,7.9813203999999996E-4,7.9813203999999996E-4,9.2148213000000003E-3,2.6861043E-3,8.1617348000000006E-3,3.2595913000000002E-3,6.8022865E-3,4.8190671999999999E-3,1.0449531999999999E-2,5.0005310999999997E-4,5.7990556000000002E-3,3.8677507999999999E-3,3.8677507999999999E-3,4.4456202999999996E-3,9.9951793000000004E-3,6.7579023999999998E-3,3.8393002E-3,7.5895948999999997E-3,7.8631983999999995E-4,8.2346389999999995E-4,4.7943289000000004E-3,8.2346389999999995E-4,5.7377620000000004E-3,6.4997659000000001E-3,4.2282691999999998E-3,1.2919438000000001E-3,2.0791862999999999E-3,6.4115780000000002E-3,6.3953648000000004E-4,6.3953648000000004E-4,1.4855370000000001E-3,5.1817182000000002E-3,4.8181572999999997E-3,6.7439599999999996E-4,null,null,3.5328757999999998E-3,4.9914662E-3,1.566801E-3,3.8478237E-3,3.8270499000000002E-3,6.1833393E-3,3.9576213000000002E-3,5.0005310999999997E-4,167]
[null,"Male 75-79",7.6134334999999999E-3,4.3751509000000003E-3,1.3243484000000001E-3,1.1960245999999999E-3,5.6276179000000004E-4,3.027573E-3,6.7351065999999996E-4,2.2301686E-3,3.0405269999999999E-3,7.4187083999999995E-4,7.4187083999999995E-4,9.3285347999999997E-3,2.9872903000000002E-3,7.8006977999999999E-3,2.8130296000000001E-3,6.8589634999999998E-3,4.8446747999999996E-3,1.0375814000000001E-2,4.9784348999999998E-4,5.8537590999999996E-3,3.8273472000000001E-3,3.8273472000000001E-3,4.4998182000000001E-3,1.0156976999999999E-2,6.8243584000000001E-3,3.6331396999999999E-3,7.7355554999999996E-3,8.6115661999999998E-4,9.1136730000000005E-4,4.7805783999999999E-3,9.1136730000000005E-4,5.8362288E-3,6.5846387000000001E-3,4.1743624000000002E-3,1.3609225E-3,2.1066421000000002E-3,6.7132538999999996E-3,6.2844867000000002E-4,6.2844867000000002E-4,1.2768230000000001E-3,5.3176181000000001E-3,4.8427247000000003E-3,6.7351065999999996E-4,null,null,3.8625447000000001E-3,5.0144587000000001E-3,1.5818811999999999E-3,3.9138719000000001E-3,3.9995806000000002E-3,6.0667181000000001E-3,4.0666833999999999E-3,4.9784348999999998E-4,168]
[null,"Male 80-84",7.7034686999999996E-3,4.5477696999999999E-3,1.404303E-3,1.1894354999999999E-3,4.2514000000000001E-4,2.7277155000000001E-3,6.7858770000000005E-4,2.1019436E-3,3.1186732999999999E-3,7.3092052000000001E-4,7.3092052000000001E-4,9.3809905999999998E-3,2.3656864999999998E-3,7.9434569999999993E-3,2.7968246E-3,6.6749280999999997E-3,5.0536258999999998E-3,1.0131194E-2,4.9893075000000001E-4,5.8871121000000004E-3,3.9234203E-3,3.9234203E-3,4.2800014000000004E-3,9.9877520000000008E-3,6.8032047999999996E-3,3.8509594999999999E-3,7.6735945999999999E-3,7.4525345999999998E-4,8.1753713000000004E-4,4.8680101000000003E-3,8.1753713000000004E-4,5.7461661999999997E-3,6.8248561999999999E-3,4.3909587000000002E-3,1.3414663E-3,2.1320792999999999E-3,6.3752484999999998E-3,6.2006514000000003E-4,6.2006514000000003E-4,1.5830366999999999E-3,5.3287567999999999E-3,4.8677907000000001E-3,6.7858770000000005E-4,null,null,3.6882982000000001E-3,5.1945890000000003E-3,1.4919058E-3,4.0253707999999997E-3,4.1193458999999998E-3,6.0975281999999997E-3,3.8651470000000002E-3,4.9893075000000001E-4,169]
[null,"Male 85-89",8.1823897000000007E-3,4.6352338999999998E-3,1.3285638999999999E-3,1.2588648E-3,3.4583318999999998E-4,2.7719671000000002E-3,6.5831612999999996E-4,2.0303398000000002E-3,2.8690210999999998E-3,7.0546498000000003E-4,7.0546498000000003E-4,9.4285775000000002E-3,2.5185467999999998E-3,8.0344276999999992E-3,2.9415855999999998E-3,7.1783313000000001E-3,5.1232567000000003E-3,1.0508763000000001E-2,5.2328564999999997E-4,5.8511700000000002E-3,3.9733336000000001E-3,3.9733336000000001E-3,4.5152148000000003E-3,1.0137357E-2,6.8296264000000002E-3,3.8287376999999998E-3,7.5804278999999997E-3,7.1305187999999998E-4,7.7425490999999999E-4,5.0322250000000004E-3,7.7425490999999999E-4,5.9253274999999999E-3,6.9666123000000002E-3,3.9265156000000004E-3,1.4406699E-3,1.9657914999999999E-3,6.6762682999999996E-3,6.4447767E-4,6.4447767E-4,1.5202949E-3,5.4477570000000001E-3,4.9601784000000001E-3,6.5831612999999996E-4,null,null,3.7299728000000001E-3,5.3353026000000003E-3,1.4230188999999999E-3,4.2730546999999999E-3,4.5083108999999996E-3,5.8735128999999999E-3,4.1860672999999996E-3,5.2328564999999997E-4,170]
[null,"Male 90+",6.9549614999999997E-3,3.9091636000000004E-3,1.2984795999999999E-3,1.2614401E-3,3.7284258999999999E-4,2.8581333000000002E-3,6.6837750000000001E-4,2.4262427000000001E-3,3.3378622000000001E-3,7.5381074999999998E-4,7.5381074999999998E-4,9.0057543E-3,2.7210216999999999E-3,7.6840603999999996E-3,2.4663440000000001E-3,7.2585265000000001E-3,5.1020021E-3,1.0766105E-2,5.3372350999999997E-4,5.4596788000000002E-3,3.7089536999999999E-3,3.7089536999999999E-3,4.3329741000000003E-3,9.9659468999999997E-3,6.8524768999999996E-3,3.2614199000000001E-3,7.7839880000000004E-3,7.9605088000000003E-4,9.1147142999999998E-4,5.0921127999999996E-3,9.1147142999999998E-4,5.6004464000000004E-3,6.9756591999999996E-3,4.7057862000000001E-3,1.4407348E-3,2.1913053999999999E-3,6.749812E-3,5.8202392999999995E-4,5.8202392999999995E-4,1.4465853999999999E-3,5.6387939999999999E-3,4.8547475999999997E-3,6.6837750000000001E-4,null,null,4.1345734999999996E-3,4.8238472000000001E-3,1.1831254000000001E-3,3.777744E-3,3.8256363E-3,6.2792194000000001E-3,3.7385909999999999E-3,5.3372350999999997E-4,171]
["SIMD Q4","Female 0-4",9.1037471000000002E-3,5.5340881999999996E-3,1.3366601E-3,1.4690529000000001E-3,1.3031163999999999E-3,3.1979524000000001E-3,5.8425665999999998E-4,3.2102760999999998E-3,3.972962E-3,7.9605838999999995E-4,7.9605838999999995E-4,8.4785307000000004E-3,4.2407201000000004E-3,7.1648577999999996E-3,3.5303712000000001E-3,6.1443256999999998E-3,6.9067939000000004E-3,1.0854986E-2,null,5.3834282000000001E-3,3.8804353999999999E-3,3.8804353999999999E-3,4.4085825999999996E-3,1.0505199E-2,7.3257195999999998E-3,5.1434082000000004E-3,8.3464300000000002E-3,1.6117517E-3,1.6228788E-3,4.3926733000000003E-3,1.6228788E-3,5.8418819999999996E-3,8.4472391999999997E-3,4.6306332000000004E-3,8.5612445000000004E-4,1.9650185E-3,6.9167734999999999E-3,4.8195913999999999E-4,4.8195913999999999E-4,1.3334795E-3,5.6360285000000001E-3,5.8851101999999999E-3,5.8425665999999998E-4,3.7279213000000001E-4,3.7279213000000001E-4,3.8521522999999998E-3,5.0949756999999997E-3,2.9082525999999998E-3,3.7050282E-3,3.5784842999999999E-3,4.9611181000000001E-3,4.3360637999999996E-3,null,172]
[null,"Female 5-9",8.5497609999999995E-3,4.4608572000000004E-3,1.2975043E-3,1.528485E-3,1.3051524000000001E-3,3.1156996000000002E-3,6.0648611000000004E-4,3.3786767E-3,4.4846571999999996E-3,7.5737636999999997E-4,7.5737636999999997E-4,8.3107036000000002E-3,3.9107711E-3,7.5348489999999997E-3,2.9381637E-3,6.0403267999999998E-3,6.3107967999999999E-3,1.0508963E-2,null,5.3945788999999996E-3,3.9469157000000003E-3,3.9469157000000003E-3,4.5606196000000003E-3,1.0344129000000001E-2,7.0977345999999998E-3,4.0840212999999998E-3,8.0723939000000005E-3,1.5111466999999999E-3,1.5256826E-3,4.3918141000000004E-3,1.5256826E-3,5.8975032999999998E-3,7.6513183000000004E-3,4.7795181000000004E-3,9.1416418000000001E-4,1.9779843E-3,6.9356569999999996E-3,4.5136684999999999E-4,4.5136684999999999E-4,1.3430548E-3,5.6270942999999997E-3,5.4850196E-3,6.0648611000000004E-4,3.3477646999999997E-4,3.3477646999999997E-4,3.8241255E-3,5.1109698000000002E-3,2.7377103000000001E-3,3.6699766999999999E-3,3.4510328E-3,5.0685243000000001E-3,4.2772981999999998E-3,null,173]
[null,"Female 10-15",8.4352371999999991E-3,4.3118074999999997E-3,1.3484515E-3,1.4802304000000001E-3,1.3059860999999999E-3,3.0557969999999999E-3,5.7997786999999996E-4,3.0217166E-3,4.9750144E-3,7.9638558E-4,7.9638558E-4,8.3582858000000003E-3,4.0025716000000001E-3,7.0144533999999996E-3,3.1747515000000001E-3,6.3027847000000003E-3,5.9796791000000004E-3,1.0477449E-2,null,5.5523565999999998E-3,3.8666744000000002E-3,3.8666744000000002E-3,4.2795999999999997E-3,1.0329784999999999E-2,6.8724370000000003E-3,4.0030441999999999E-3,7.7584712000000004E-3,1.6848872E-3,1.7208796E-3,4.6332654999999999E-3,1.7208796E-3,5.7990486000000004E-3,7.4263695000000001E-3,4.4303420000000003E-3,1.1596556000000001E-3,1.9283664000000001E-3,6.7702187000000004E-3,4.6012096999999998E-4,4.6012096999999998E-4,1.2685638E-3,5.6389491000000003E-3,5.2713077000000001E-3,5.7997786999999996E-4,3.5862467000000002E-4,3.5862467000000002E-4,3.8695841000000002E-3,5.0242543000000002E-3,2.285301E-3,3.5423827E-3,3.2680917000000001E-3,5.1006697999999998E-3,4.2357347000000004E-3,null,174]
[null,"Female 16-19",1.3036137E-2,9.1054887000000008E-3,1.3082388E-3,1.5182402E-3,1.3035639000000001E-3,2.9998096000000002E-3,5.9971090999999999E-4,3.5648663E-3,4.3761785999999999E-3,7.5076020000000002E-4,7.5076020000000002E-4,7.9709515000000002E-3,3.9021532999999999E-3,7.0816669999999998E-3,3.3924660999999998E-3,5.9654494000000004E-3,6.8925135E-3,1.1367441000000001E-2,null,5.5671013000000002E-3,3.7760447999999999E-3,3.7760447999999999E-3,4.5015048000000002E-3,1.0765379E-2,7.2476025999999999E-3,8.6218286000000009E-3,8.2492894000000001E-3,1.6190543999999999E-3,1.6602831000000001E-3,4.1260039000000004E-3,1.6602831000000001E-3,5.8436681999999998E-3,8.5242576999999993E-3,4.9365069999999997E-3,1.0839318000000001E-3,1.8828880999999999E-3,6.7522842E-3,4.5623024999999999E-4,4.5623024999999999E-4,1.2842535999999999E-3,5.7023354000000004E-3,6.2693617999999996E-3,5.9971090999999999E-4,3.4855972999999998E-4,3.4855972999999998E-4,3.8633137E-3,5.0087524999999997E-3,3.3433996000000001E-3,3.6620876999999999E-3,3.5845734999999999E-3,5.1085473999999999E-3,3.9983898999999996E-3,null,175]
[null,"Female 20-24",1.2260528E-2,9.8176766000000002E-3,1.3971096000000001E-3,1.4045271000000001E-3,1.3043074999999999E-3,3.2398771E-3,6.1092845999999995E-4,4.7105424999999996E-3,4.4394098000000003E-3,8.1710004999999998E-4,8.1710004999999998E-4,6.9226907000000002E-3,4.4998191E-3,7.0875323999999998E-3,3.6964666E-3,6.2874365000000002E-3,9.2853159000000005E-3,1.2434259E-2,null,5.8884476E-3,3.7429201999999999E-3,3.7429201999999999E-3,5.1589119000000003E-3,1.1646221E-2,8.9257499000000001E-3,9.5406919999999999E-3,9.9801021000000007E-3,1.7463419000000001E-3,1.7857910999999999E-3,4.3089319999999997E-3,1.7857910999999999E-3,5.9271612999999999E-3,1.0563537E-2,4.4746394E-3,1.1378988000000001E-3,1.9337357E-3,6.8651624000000003E-3,4.4974567999999998E-4,4.4974567999999998E-4,1.401348E-3,5.6754607E-3,7.9643568000000008E-3,6.1092845999999995E-4,3.5708377000000002E-4,3.5708377000000002E-4,3.8064154999999998E-3,5.1159402000000003E-3,4.7462266000000003E-3,4.3863979999999997E-3,4.6304483000000002E-3,5.2151903999999999E-3,3.9896797000000001E-3,null,176]
[null,"Female 25-29",1.1122464E-2,8.5629411000000006E-3,1.4389359E-3,1.4627895000000001E-3,1.3060121999999999E-3,3.4292609999999999E-3,5.9282273000000002E-4,3.9748466E-3,5.0703142999999999E-3,8.2202535E-4,8.2202535E-4,7.8389876999999993E-3,5.0632031999999997E-3,7.1523511E-3,3.256985E-3,6.4698556000000003E-3,9.5595735999999994E-3,1.2064749E-2,null,5.8503128000000001E-3,3.8849611000000002E-3,3.8849611000000002E-3,4.9144141000000002E-3,1.1207379999999999E-2,8.5596452000000003E-3,8.1065883999999998E-3,9.6602001999999999E-3,1.6082182000000001E-3,1.6278784000000001E-3,4.8512755999999997E-3,1.6278784000000001E-3,6.0023259999999997E-3,1.0627606E-2,4.2013520999999998E-3,9.3983119999999998E-4,1.9478523E-3,6.9053051999999997E-3,4.530634E-4,4.530634E-4,1.4912129000000001E-3,5.7732104000000001E-3,7.7817518999999998E-3,5.9282273000000002E-4,3.8285910999999998E-4,3.8285910999999998E-4,3.8486458000000002E-3,5.2835126E-3,3.7369285999999998E-3,4.0465691000000003E-3,4.1267341000000004E-3,5.4008164000000003E-3,4.2095995000000002E-3,null,177]
[null,"Female 30-34",1.0208764E-2,7.1793309999999997E-3,1.3420265E-3,1.4581262E-3,1.3022075000000001E-3,3.2057697E-3,6.7359174000000005E-4,3.9185677000000002E-3,4.9314805999999996E-3,8.0848910000000005E-4,8.0848910000000005E-4,8.3059407999999998E-3,4.1850302000000002E-3,7.0731118000000003E-3,3.6227815E-3,6.1889909999999996E-3,8.7170376999999993E-3,1.166904E-2,null,5.6558967999999999E-3,3.9827604999999999E-3,3.9827604999999999E-3,4.8723291000000004E-3,1.1041248E-2,8.1831588999999993E-3,6.7372559999999996E-3,9.3605639000000004E-3,1.7692659E-3,1.7966504E-3,4.6779489999999998E-3,1.7966504E-3,5.9436080000000004E-3,1.0000494E-2,4.6074497999999998E-3,8.7764679000000003E-4,2.0487450999999999E-3,6.8645896000000001E-3,5.0607999000000005E-4,5.0607999000000005E-4,1.4705416999999999E-3,5.7634319999999998E-3,7.0786737000000004E-3,6.7359174000000005E-4,3.3444006000000001E-4,3.3444006000000001E-4,3.7008037000000001E-3,5.2010566000000001E-3,3.5741189000000001E-3,3.8883095000000001E-3,3.8317242E-3,5.3711706E-3,4.2673848000000002E-3,null,178]
[null,"Female 35-39",9.3464264999999994E-3,6.0554692E-3,1.4354719999999999E-3,1.4661187E-3,1.3043137999999999E-3,3.1597791000000002E-3,6.0829676999999999E-4,3.4785846E-3,4.7001927000000004E-3,8.5009569999999995E-4,8.5009569999999995E-4,8.3539671999999995E-3,3.8918529000000002E-3,7.0878942E-3,3.1223898E-3,6.3824681999999997E-3,7.7896010999999998E-3,1.1399518000000001E-2,null,5.4044775000000001E-3,3.8983452000000002E-3,3.8983452000000002E-3,4.5661045999999999E-3,1.0704152999999999E-2,7.4827940999999997E-3,5.6420448E-3,8.6210920000000003E-3,1.5614756000000001E-3,1.5799085E-3,4.1952669000000003E-3,1.5799085E-3,5.8584874E-3,9.1873518999999997E-3,4.9690636999999999E-3,9.7434984999999997E-4,2.0014436000000001E-3,6.8381177000000001E-3,5.0270266000000002E-4,5.0270266000000002E-4,1.3846955E-3,5.6232703000000002E-3,6.2978351000000004E-3,6.0829676999999999E-4,3.4987475E-4,3.4987475E-4,3.8284953E-3,5.1698912999999999E-3,2.988456E-3,3.8045853999999998E-3,3.7372786999999999E-3,5.0201858000000002E-3,4.4232039000000004E-3,null,179]
[null,"Female 40-44",9.2093096999999995E-3,5.1131359999999999E-3,1.3009515E-3,1.5503806000000001E-3,1.3027645E-3,3.2236868999999998E-3,6.2309968E-4,3.3455999000000002E-3,4.594618E-3,7.4957642999999997E-4,7.4957642999999997E-4,8.0145653000000001E-3,4.3914998000000004E-3,7.2906995E-3,3.2048605000000001E-3,6.3766170999999998E-3,6.9301537999999999E-3,1.1173509E-2,null,5.6173517000000003E-3,3.8894747999999998E-3,3.8894747999999998E-3,4.6509448E-3,1.0652399E-2,7.2153909000000002E-3,4.8037352999999996E-3,8.2553829999999998E-3,1.5982465E-3,1.6160644999999999E-3,4.4282050999999998E-3,1.6160644999999999E-3,5.8749466999999996E-3,8.4245997000000003E-3,4.6121058999999999E-3,1.0382092999999999E-3,1.9316832999999999E-3,6.8390546E-3,4.5428485999999998E-4,4.5428485999999998E-4,1.3235591E-3,5.7025551999999998E-3,5.8154054000000002E-3,6.2309968E-4,3.3345696E-4,3.3345696E-4,3.8261294999999999E-3,5.1420983E-3,2.7908416999999999E-3,3.6221299999999999E-3,3.4026263999999999E-3,5.0769685999999996E-3,4.1563045000000002E-3,null,180]
[null,"Female 45-49",8.8786911000000007E-3,4.7391024000000004E-3,1.2894463E-3,1.4834453E-3,1.3029236999999999E-3,3.1315371999999998E-3,6.0260953999999995E-4,3.5837909999999998E-3,4.9895280999999996E-3,7.7088427000000001E-4,7.7088427000000001E-4,8.3989845999999993E-3,4.1864509999999999E-3,7.2357239999999998E-3,3.3653827999999999E-3,6.2647527E-3,6.4857266999999996E-3,1.0970677999999999E-2,null,5.5209342E-3,3.7954103E-3,3.7954103E-3,4.7044312000000003E-3,1.0320683000000001E-2,7.0315721000000003E-3,4.4699776999999998E-3,7.8338756999999995E-3,1.6566841000000001E-3,1.6892673E-3,3.9626354999999997E-3,1.6892673E-3,5.9125278999999998E-3,8.0386213999999994E-3,5.1374873000000001E-3,1.2804082000000001E-3,1.9423404E-3,6.7973058000000003E-3,4.7179308999999999E-4,4.7179308999999999E-4,1.3104669E-3,5.6562191000000001E-3,5.5713057999999998E-3,6.0260953999999995E-4,3.7307239999999998E-4,3.7307239999999998E-4,3.7886368E-3,5.1494888000000001E-3,2.7157483000000001E-3,3.6125012999999998E-3,3.480552E-3,5.2429154E-3,4.1823405999999999E-3,null,181]
[null,"Female 50-54",8.3628576000000007E-3,4.6461829999999999E-3,1.3776728E-3,1.4818447E-3,1.3031163999999999E-3,3.0746697000000002E-3,6.1215646999999995E-4,3.5874994999999998E-3,5.2885283000000003E-3,7.8074144999999999E-4,7.8074144999999999E-4,8.2347215999999997E-3,4.1024833999999998E-3,7.0755970999999999E-3,3.6655706000000001E-3,6.3046557E-3,6.4860847999999999E-3,1.0546959999999999E-2,null,5.6369150999999998E-3,3.6841120999999998E-3,3.6841120999999998E-3,4.7271550000000002E-3,1.0256424E-2,7.0247431000000004E-3,4.3679605999999999E-3,7.7675912E-3,1.7120263000000001E-3,1.7431867000000001E-3,4.3624071E-3,1.7431867000000001E-3,5.9000327999999998E-3,7.9955281999999992E-3,4.8847142999999997E-3,1.1015599999999999E-3,1.9726540999999999E-3,6.9092935999999997E-3,4.6299665999999999E-4,4.6299665999999999E-4,1.1949256999999999E-3,5.6731044000000001E-3,5.5491296000000001E-3,6.1215646999999995E-4,3.9094444999999999E-4,3.9094444999999999E-4,3.7662139999999999E-3,5.0330241000000001E-3,2.7795108000000001E-3,3.5917852000000002E-3,3.5349608E-3,5.0233342E-3,4.0297572999999998E-3,null,182]
[null,"Female 55-59",8.4873401000000008E-3,4.6485759999999997E-3,1.3001345000000001E-3,1.5088002999999999E-3,1.3035715000000001E-3,3.3629157E-3,6.3610611999999995E-4,3.6022802999999999E-3,4.8772129000000004E-3,7.8122708000000001E-4,7.8122708000000001E-4,8.6021684000000005E-3,4.6170098000000003E-3,7.1917748999999996E-3,3.6173726E-3,6.4284918E-3,6.4094798000000003E-3,1.0533122000000001E-2,null,5.4754851999999996E-3,3.7623076000000001E-3,3.7623076000000001E-3,4.6488260999999996E-3,1.0365423E-2,7.0534348000000002E-3,4.3718413999999997E-3,7.7820099000000002E-3,1.6915272E-3,1.7256202E-3,4.1895066000000002E-3,1.7256202E-3,5.8631087000000004E-3,7.9578924999999991E-3,4.6109295999999999E-3,1.1211636000000001E-3,1.9934541E-3,6.8942876999999996E-3,4.9064808999999996E-4,4.9064808999999996E-4,1.2046273999999999E-3,5.6598493999999999E-3,5.5845417E-3,6.3610611999999995E-4,3.6296978999999997E-4,3.6296978999999997E-4,3.8069826999999998E-3,5.0963685000000002E-3,2.8842920000000001E-3,3.8725508E-3,3.9418917000000001E-3,5.2483920000000002E-3,3.9220395999999998E-3,null,183]
[null,"Female 60-64",8.3134621000000002E-3,4.5531736999999996E-3,1.3636436000000001E-3,1.5616447999999999E-3,1.3040618999999999E-3,3.3373816000000001E-3,6.3822290000000001E-4,3.5571828000000002E-3,5.3304666999999997E-3,7.9109693999999996E-4,7.9109693999999996E-4,8.4869815000000008E-3,4.6538101E-3,6.9311853E-3,3.0975860999999999E-3,6.6098021000000002E-3,6.2725078000000004E-3,1.0584521E-2,null,5.4432969000000001E-3,3.7392037999999998E-3,3.7392037999999998E-3,4.6000112999999999E-3,1.0365986000000001E-2,6.9607608000000001E-3,4.2942646000000001E-3,7.7061042999999997E-3,1.7004056000000001E-3,1.7477408000000001E-3,4.3981465999999997E-3,1.7477408000000001E-3,5.7746259999999997E-3,7.9422043999999997E-3,4.4542955999999998E-3,1.1416659999999999E-3,1.9846099999999999E-3,6.8146237000000004E-3,4.4496767999999999E-4,4.4496767999999999E-4,1.0897876E-3,5.6633483999999996E-3,5.3820800999999996E-3,6.3822290000000001E-4,3.5845631000000001E-4,3.5845631000000001E-4,3.7963964999999998E-3,5.0141969999999998E-3,2.6787256000000001E-3,3.5519337E-3,3.4386123999999999E-3,5.0210519999999998E-3,3.9466294000000002E-3,null,184]
[null,"Female 65-69",7.9469000999999994E-3,4.4689932999999998E-3,1.3700644E-3,1.6285282E-3,1.3042631E-3,3.4171478E-3,6.3206902E-4,3.6039195999999999E-3,4.9328026000000002E-3,7.5535564000000003E-4,7.5535564000000003E-4,8.3168055999999994E-3,4.6493560000000003E-3,6.9987685000000004E-3,3.3367487999999999E-3,6.8505038999999998E-3,5.9968158999999998E-3,1.0422002E-2,null,5.6112586000000002E-3,3.6994289000000001E-3,3.6994289000000001E-3,4.7276862999999997E-3,1.029355E-2,6.9679538999999997E-3,4.2034838999999999E-3,7.6657799E-3,1.6225299E-3,1.67315E-3,4.6448423999999999E-3,1.67315E-3,5.7967189000000001E-3,7.7333445999999998E-3,4.8235683E-3,1.1528673E-3,2.0213686000000002E-3,6.9185751000000002E-3,5.0810636999999996E-4,5.0810636999999996E-4,1.0926476E-3,5.6949612000000002E-3,5.2589769000000001E-3,6.3206902E-4,3.5885794000000001E-4,3.5885794000000001E-4,3.8108720999999999E-3,5.0369687E-3,2.8462941000000001E-3,3.5178577999999999E-3,3.4069561000000001E-3,4.9076537000000003E-3,3.8499738999999999E-3,null,185]
[null,"Female 70-74",8.1095583999999995E-3,4.1611985999999998E-3,1.2862828E-3,1.4480732999999999E-3,1.3040180999999999E-3,3.240901E-3,5.9193524000000005E-4,3.7430535999999999E-3,5.141194E-3,7.5529608999999999E-4,7.5529608999999999E-4,8.4415021999999992E-3,3.9468183999999996E-3,7.1267211000000004E-3,3.3808339000000001E-3,7.1191238E-3,5.7391281999999997E-3,1.0284051000000001E-2,null,5.8531816999999996E-3,3.5385597E-3,3.5385597E-3,4.9223113000000001E-3,1.0241419999999999E-2,6.9640767999999999E-3,3.9026136999999999E-3,7.5651533000000003E-3,1.6519249E-3,1.7055637E-3,4.5428485999999997E-3,1.7055637E-3,5.8538434000000002E-3,7.6015763999999998E-3,4.4426316999999996E-3,1.1811130999999999E-3,1.9794604999999999E-3,6.8521466999999997E-3,4.4528759000000002E-4,4.4528759000000002E-4,1.1194766000000001E-3,5.5717630000000004E-3,5.0321421999999999E-3,5.9193524000000005E-4,3.8403153000000001E-4,3.8403153000000001E-4,3.7967334999999998E-3,5.1359921000000003E-3,2.7953607E-3,3.2764319000000001E-3,3.1266743E-3,5.0766077000000001E-3,3.9960044000000002E-3,null,186]
[null,"Female 75-79",8.5871982999999995E-3,4.3427683E-3,1.3166479999999999E-3,1.5905905E-3,1.3049061E-3,3.4807587999999999E-3,6.2181865000000001E-4,3.4509270999999999E-3,4.6849400000000003E-3,7.4079167000000001E-4,7.4079167000000001E-4,8.4746861999999996E-3,4.5403418999999997E-3,7.2838399000000002E-3,3.6299506E-3,6.9978651999999999E-3,5.9980592000000001E-3,1.0438262E-2,null,5.9561375999999996E-3,3.6010635E-3,3.6010635E-3,4.8962403000000002E-3,1.0215365000000001E-2,7.1327546999999996E-3,4.0786718000000001E-3,7.7676754000000001E-3,1.7832044E-3,1.8601167E-3,5.0475965000000003E-3,1.8601167E-3,5.9245391999999996E-3,7.9639655999999993E-3,4.7538034000000002E-3,1.1762178000000001E-3,2.0600512999999999E-3,7.0351674000000003E-3,4.9189507000000005E-4,4.9189507000000005E-4,1.0684914999999999E-3,5.7687093999999996E-3,5.2261538999999997E-3,6.2181865000000001E-4,4.1073188000000002E-4,4.1073188000000002E-4,3.7566131999999999E-3,5.1367874000000004E-3,2.8624858E-3,3.2621655000000002E-3,3.0964540999999998E-3,5.2047539999999998E-3,3.9936737000000003E-3,null,187]
[null,"Female 80-84",8.7843834999999995E-3,4.3079909000000001E-3,1.3656435999999999E-3,1.5072045E-3,1.3061075000000001E-3,3.5805925999999998E-3,6.2466493999999997E-4,3.2893850000000001E-3,3.9960593000000003E-3,7.4938602999999999E-4,7.4938602999999999E-4,8.5908491000000007E-3,4.8166206E-3,7.3858270999999998E-3,3.1833157000000002E-3,7.4605718000000003E-3,6.3289640999999999E-3,1.0252835E-2,null,6.6600553999999999E-3,3.7444034E-3,3.7444034E-3,5.1127682000000002E-3,1.0235828000000001E-2,7.2876229000000004E-3,4.0743764999999999E-3,7.8907254999999992E-3,1.7383056000000001E-3,1.8044980000000001E-3,5.5134566999999997E-3,1.8044980000000001E-3,6.0160303999999996E-3,8.1039396999999999E-3,4.5623877E-3,1.2421963E-3,2.0917363E-3,7.1788253000000003E-3,4.5372009999999999E-4,4.5372009999999999E-4,1.1136958999999999E-3,5.8647352000000003E-3,5.3621637999999999E-3,6.2466493999999997E-4,3.9578302E-4,3.9578302E-4,3.8933651999999998E-3,5.3628269000000001E-3,3.0161859000000001E-3,3.5150412000000001E-3,3.4232961000000002E-3,5.3782118000000002E-3,3.7798536999999999E-3,null,188]
[null,"Female 85-89",9.2212856000000003E-3,4.3777264999999999E-3,1.2812559999999999E-3,1.565423E-3,1.3077062999999999E-3,3.5083632000000001E-3,6.1758014000000004E-4,3.4123904000000001E-3,3.8309395E-3,7.8280025999999999E-4,7.8280025999999999E-4,7.6335203000000001E-3,4.5779343000000002E-3,7.7106934000000004E-3,3.0730433999999998E-3,7.5749974000000001E-3,6.8286051999999998E-3,1.0216256999999999E-2,null,6.6845389000000002E-3,3.7344333000000002E-3,3.7344333000000002E-3,5.1180846000000004E-3,1.0262723E-2,7.3637716000000001E-3,4.1878540000000004E-3,8.0644897999999996E-3,2.0767984000000001E-3,2.2405868E-3,5.8039273000000001E-3,2.2405868E-3,5.6782615999999998E-3,8.5975882000000007E-3,4.6429862000000001E-3,1.4663504999999999E-3,2.2276586000000002E-3,7.0971786000000002E-3,4.9779011000000001E-4,4.9779011000000001E-4,1.0262157E-3,6.1045502999999999E-3,5.5362056E-3,6.1758014000000004E-4,3.2980397000000001E-4,3.2980397000000001E-4,3.7693383999999998E-3,5.1822876999999996E-3,3.2601907999999999E-3,3.4816700000000001E-3,3.3858079000000001E-3,5.3289314000000004E-3,3.9202841E-3,null,189]
[null,"Female 90+",9.8113986E-3,4.1941460000000002E-3,1.5475565E-3,1.4745514999999999E-3,1.3088488000000001E-3,3.7010178999999999E-3,6.6950672999999995E-4,2.7841898000000001E-3,3.9750002000000003E-3,7.2758673999999998E-4,7.2758673999999998E-4,6.8296748000000003E-3,5.7972763000000002E-3,7.7045852999999996E-3,2.1798725E-3,7.8132432000000002E-3,7.0469961999999999E-3,1.054458E-2,null,6.8965516999999997E-3,3.6152934E-3,3.6152934E-3,5.1043937000000003E-3,1.0414095999999999E-2,7.6246411000000002E-3,4.0172185000000001E-3,8.2570864000000004E-3,2.2940803000000001E-3,2.6291931999999998E-3,6.0412651000000001E-3,2.6291931999999998E-3,5.8617000000000001E-3,9.2290370000000007E-3,4.8415512000000004E-3,1.0094502999999999E-3,2.1379824999999998E-3,7.5155342999999996E-3,3.7841597999999999E-4,3.7841597999999999E-4,1.1482135999999999E-3,6.2419711999999999E-3,5.5560185999999996E-3,6.6950672999999995E-4,3.8284214999999999E-4,3.8284214999999999E-4,4.0680878E-3,5.3346538999999998E-3,2.5409062E-3,3.1399907999999999E-3,2.9600216E-3,5.2789915E-3,4.6648569000000001E-3,null,190]
[null,"Male 0-4",9.4541758000000007E-3,5.6172273999999999E-3,1.3475878E-3,1.5270291000000001E-3,1.3038787999999999E-3,3.1160156E-3,5.8222760000000004E-4,3.6140180000000001E-3,4.7064758999999998E-3,7.7981706000000001E-4,7.7981706000000001E-4,8.3696338999999995E-3,3.9839786000000002E-3,6.9754081999999999E-3,3.5281867999999998E-3,6.4774081000000001E-3,6.9301006999999996E-3,1.0711445E-2,null,5.4428983000000004E-3,3.9282683000000001E-3,3.9282683000000001E-3,4.6291212E-3,1.0444975E-2,7.2819735000000003E-3,5.0893285999999999E-3,8.3241332000000001E-3,1.6807012E-3,1.7014225999999999E-3,4.4387313999999997E-3,1.7014225999999999E-3,5.8327042000000003E-3,8.4579670999999999E-3,5.2495644999999997E-3,9.8845712000000005E-4,1.9860438000000001E-3,6.8387118999999998E-3,4.7012558000000002E-4,4.7012558000000002E-4,1.4137303999999999E-3,5.5866917000000002E-3,5.8888309000000002E-3,5.8222760000000004E-4,3.2405839999999998E-4,3.2405839999999998E-4,3.7915703999999999E-3,5.1611792000000002E-3,3.1053160999999999E-3,3.7145253999999999E-3,3.5578646000000002E-3,5.1827751999999998E-3,4.3669939000000003E-3,null,191]
[null,"Male 5-9",8.9999493000000007E-3,4.9344497000000003E-3,1.3461781E-3,1.5479414000000001E-3,1.3037932E-3,3.1219923000000002E-3,5.8786582999999996E-4,3.2825371999999999E-3,4.4794502000000003E-3,7.7560556E-4,7.7560556E-4,8.4558353000000006E-3,3.8474504999999998E-3,7.1706264000000004E-3,3.0647127000000001E-3,6.3268635E-3,6.3101462999999997E-3,1.0524163E-2,null,5.2737664000000002E-3,3.9486056000000002E-3,3.9486056000000002E-3,4.4003543000000001E-3,1.0338348000000001E-2,6.9978543999999997E-3,4.4955899999999998E-3,7.9025980000000003E-3,1.6237983E-3,1.6481738E-3,3.8042356999999998E-3,1.6481738E-3,5.8397668999999996E-3,7.6822080000000003E-3,4.6328725000000003E-3,9.3126313999999997E-4,1.9419475E-3,6.9122608000000002E-3,4.2330881000000002E-4,4.2330881000000002E-4,1.3512698000000001E-3,5.6051267E-3,5.4939194E-3,5.8786582999999996E-4,3.3210322999999999E-4,3.3210322999999999E-4,3.8514958999999998E-3,5.0003855000000002E-3,2.6463044000000001E-3,3.7702436000000001E-3,3.6229228E-3,5.2444496999999998E-3,4.3210797E-3,null,192]
[null,"Male 10-15",8.6187823000000007E-3,4.4141505000000001E-3,1.3119182999999999E-3,1.4958507E-3,1.3043652999999999E-3,3.1203913999999998E-3,6.0948152999999998E-4,2.7973147000000002E-3,3.8255175999999998E-3,7.4656156000000001E-4,7.4656156000000001E-4,8.4279952999999994E-3,4.1497833999999999E-3,7.3444996999999998E-3,2.9741540000000001E-3,6.3836196999999999E-3,5.8672917E-3,1.0325007000000001E-2,null,5.4478603000000002E-3,3.8375801000000002E-3,3.8375801000000002E-3,4.1333096999999997E-3,1.0296013E-2,6.9009055999999999E-3,4.0712389000000003E-3,7.7473129999999996E-3,1.6532399E-3,1.6968494E-3,3.7909576E-3,1.6968494E-3,5.8410396000000003E-3,7.2881589000000002E-3,4.6208500999999997E-3,1.0955762000000001E-3,1.975812E-3,6.7625608999999998E-3,4.5520637999999999E-4,4.5520637999999999E-4,1.1568513999999999E-3,5.6176912000000002E-3,5.2442388000000003E-3,6.0948152999999998E-4,3.0544656E-4,3.0544656E-4,3.8073787E-3,5.0987764000000003E-3,2.3865028999999999E-3,3.6148408000000001E-3,3.4409905999999999E-3,5.1562650999999998E-3,4.1762064000000002E-3,null,193]
[null,"Male 16-19",1.1840862000000001E-2,7.5085489000000002E-3,1.4304997E-3,1.4190461E-3,1.3043194999999999E-3,3.1649718999999998E-3,6.2343931999999996E-4,3.4049052999999998E-3,4.3877111999999999E-3,7.2589604000000002E-4,7.2589604000000002E-4,8.1538493E-3,4.2867399999999998E-3,7.1919286000000004E-3,3.3093195E-3,6.2578720999999999E-3,6.3450219999999996E-3,1.0772442E-2,null,5.3983447E-3,3.6840091999999999E-3,3.6840091999999999E-3,4.5109540000000002E-3,1.0667988E-2,7.0994804000000002E-3,7.1124127000000001E-3,7.9944952999999996E-3,1.6147736000000001E-3,1.6441133000000001E-3,4.2497921000000001E-3,1.6441133000000001E-3,5.8581396000000003E-3,8.0030067000000007E-3,4.5503777999999998E-3,1.1931296E-3,1.9792679000000001E-3,6.8060350999999998E-3,4.8094149999999998E-4,4.8094149999999998E-4,1.2232664999999999E-3,5.6483150000000001E-3,5.7695656999999997E-3,6.2343931999999996E-4,3.7388136999999999E-4,3.7388136999999999E-4,3.8836296000000002E-3,5.0792633999999998E-3,2.967454E-3,3.6290297E-3,3.5947332999999998E-3,5.0861420999999997E-3,3.9542802000000002E-3,null,194]
[null,"Male 20-24",1.2323560000000001E-2,9.3961711999999992E-3,1.4457866000000001E-3,1.5098641999999999E-3,1.3041226E-3,3.1925695999999999E-3,6.1316618999999995E-4,4.2893541999999996E-3,5.0837848999999999E-3,7.3767889999999995E-4,7.3767889999999995E-4,7.0631838999999997E-3,4.511035E-3,7.0039500000000001E-3,3.7731749000000001E-3,6.6032050999999996E-3,8.8043193999999998E-3,1.2282708E-2,null,5.6711929000000001E-3,3.8888208000000001E-3,3.8888208000000001E-3,4.9687419000000003E-3,1.1571166000000001E-2,8.5768113000000007E-3,9.0485783000000004E-3,9.6582212000000008E-3,1.7146017999999999E-3,1.7401071000000001E-3,4.5199441000000002E-3,1.7401071000000001E-3,5.9262760999999999E-3,1.0174308E-2,4.4030835999999997E-3,1.2451074E-3,2.0189788000000001E-3,6.8298159000000002E-3,5.1702262000000003E-4,5.1702262000000003E-4,1.3145526000000001E-3,5.6687398000000002E-3,7.4921898000000001E-3,6.1316618999999995E-4,3.1302369000000001E-4,3.1302369000000001E-4,3.7062925000000001E-3,5.0962697999999999E-3,4.1270652000000001E-3,4.0721204000000004E-3,4.1492181000000001E-3,5.1383827999999998E-3,4.1233351999999997E-3,null,195]
[null,"Male 25-29",1.1337046999999999E-2,8.8027837000000005E-3,1.3415527E-3,1.4565310000000001E-3,1.3016503E-3,3.3581315E-3,6.0164183000000003E-4,4.1626273E-3,5.5328136999999999E-3,9.0372928999999996E-4,9.0372928999999996E-4,7.7152299000000004E-3,4.3362653999999999E-3,6.9717835000000002E-3,3.6444721999999998E-3,6.7536896000000004E-3,9.4120847000000001E-3,1.1862759E-2,null,5.5624348999999997E-3,3.9090243999999998E-3,3.9090243999999998E-3,4.9060034000000001E-3,1.118385E-2,8.4537845000000004E-3,8.4454491999999999E-3,9.4289583999999996E-3,1.9827642999999998E-3,2.0039754E-3,4.6307863999999997E-3,2.0039754E-3,5.9394896999999999E-3,1.0536520000000001E-2,4.2252842999999998E-3,1.2112808E-3,2.0387233000000002E-3,6.9692633000000004E-3,5.2156486E-4,5.2156486E-4,1.5970789999999999E-3,5.7577803000000002E-3,7.7108856999999996E-3,6.0164183000000003E-4,3.8365650000000002E-4,3.8365650000000002E-4,3.8621278999999998E-3,5.0851647000000003E-3,3.8181882999999998E-3,4.1128639000000003E-3,4.2090275999999999E-3,5.0660959000000004E-3,4.2483861999999999E-3,null,196]
[null,"Male 30-34",1.0617405E-2,7.6757246000000003E-3,1.3591587999999999E-3,1.4976480999999999E-3,1.3022871000000001E-3,3.3908247E-3,6.4558762999999996E-4,4.0111137E-3,4.7990087999999998E-3,8.6533632999999995E-4,8.6533632999999995E-4,8.0861206999999994E-3,4.3604997999999997E-3,7.1005416000000003E-3,3.5120848999999998E-3,6.4761373000000004E-3,9.1038859000000007E-3,1.179845E-2,null,5.8569935999999998E-3,3.9169816000000001E-3,3.9169816000000001E-3,5.0444822000000004E-3,1.1059683000000001E-2,8.2770353000000008E-3,7.2675654999999999E-3,9.5058287999999994E-3,1.7939694E-3,1.8096613000000001E-3,5.1416405E-3,1.8096613000000001E-3,5.9202444E-3,1.0288541E-2,4.9470351000000003E-3,1.1205240999999999E-3,2.0057550000000001E-3,6.9145248000000003E-3,5.3758151E-4,5.3758151E-4,1.5362017999999999E-3,5.8307163000000002E-3,7.3514241000000001E-3,6.4558762999999996E-4,3.8497070999999998E-4,3.8497070999999998E-4,3.7756432E-3,5.1083774E-3,3.6459220999999998E-3,3.8124241000000001E-3,3.744706E-3,5.6614852999999996E-3,4.3856892999999996E-3,null,197]
[null,"Male 35-39",9.9018486000000006E-3,6.5279611999999997E-3,1.4118587E-3,1.4207521E-3,1.3023847E-3,3.3470398999999999E-3,6.5902957999999995E-4,3.9289403000000002E-3,5.0644781000000003E-3,7.7400677E-4,7.7400677E-4,8.1941941999999993E-3,4.5401570000000004E-3,7.1367035000000001E-3,3.1907264999999998E-3,6.3915481E-3,8.1445053000000003E-3,1.1449549E-2,null,5.7991222000000004E-3,3.8922982999999999E-3,3.8922982999999999E-3,4.9059256000000004E-3,1.0963713E-2,7.8196563E-3,6.1092059999999998E-3,9.1066490999999992E-3,1.8064266000000001E-3,1.8421398000000001E-3,4.5370528999999996E-3,1.8421398000000001E-3,5.9260856000000004E-3,9.5545035000000004E-3,4.8795914999999997E-3,1.1766233E-3,2.0087042000000001E-3,6.9202580000000003E-3,5.4516084000000005E-4,5.4516084000000005E-4,1.5489067999999999E-3,5.7633132999999996E-3,6.6569042E-3,6.5902957999999995E-4,3.5412612000000003E-4,3.5412612000000003E-4,3.7438388E-3,5.2251535999999999E-3,3.4800761E-3,3.7393982000000002E-3,3.6158515E-3,5.2000917000000002E-3,4.4264993999999997E-3,null,198]
[null,"Male 40-44",9.7905956000000002E-3,5.9728053999999996E-3,1.3982044E-3,1.5124048E-3,1.3022871000000001E-3,3.2708489000000001E-3,6.3570205000000005E-4,3.6346923999999998E-3,4.6332264E-3,8.752009E-4,8.752009E-4,8.1530436999999994E-3,4.2750719E-3,7.331593E-3,3.1410418000000001E-3,6.0765115000000003E-3,7.3916251000000002E-3,1.136568E-2,null,5.6597847E-3,3.9621708000000004E-3,3.9621708000000004E-3,4.7738067999999996E-3,1.0838797000000001E-2,7.4349637E-3,5.5813557000000003E-3,8.5710334000000006E-3,1.8154105999999999E-3,1.8626719000000001E-3,4.1817375000000002E-3,1.8626719000000001E-3,5.8754081999999996E-3,8.8392868999999999E-3,4.8404577999999997E-3,1.0379287E-3,2.0285414000000002E-3,6.8653706000000002E-3,4.8625638000000001E-4,4.8625638000000001E-4,1.3244232E-3,5.6650260999999997E-3,6.1462964E-3,6.3570205000000005E-4,3.3127933000000001E-4,3.3127933000000001E-4,3.8394595000000001E-3,5.1044825999999998E-3,3.1999379999999998E-3,3.7010241999999999E-3,3.4801468999999998E-3,5.2727837999999999E-3,4.4148824999999999E-3,null,199]
[null,"Male 45-49",9.1079390000000007E-3,5.2221435999999996E-3,1.3590199E-3,1.5196375000000001E-3,1.3031579E-3,3.1541671999999999E-3,5.8776168999999997E-4,3.4943302E-3,4.7191554000000002E-3,7.6887454000000002E-4,7.6887454000000002E-4,8.3346292000000006E-3,4.0449969999999998E-3,7.4077989E-3,3.0639937999999999E-3,6.4721359000000003E-3,6.7512127999999998E-3,1.1165568000000001E-2,null,5.4945554999999997E-3,3.8080912000000001E-3,3.8080912000000001E-3,4.6389116999999997E-3,1.0522195999999999E-2,7.1685914999999999E-3,4.8573864999999997E-3,8.1298789E-3,1.7152529000000001E-3,1.7480917E-3,4.1348454999999996E-3,1.7480917E-3,5.8753625E-3,8.3305379000000006E-3,5.1456610999999998E-3,1.1468464999999999E-3,1.9816248999999998E-3,6.8806084E-3,4.7282298000000001E-4,4.7282298000000001E-4,1.380947E-3,5.6973103999999998E-3,5.7478965999999999E-3,5.8776168999999997E-4,3.3258041000000001E-4,3.3258041000000001E-4,3.8646786000000001E-3,5.0236237999999999E-3,2.9229408E-3,3.6347000999999999E-3,3.4902294000000002E-3,5.1899095999999997E-3,4.1745673000000002E-3,null,200]
[null,"Male 50-54",8.7862378000000008E-3,5.0017823999999999E-3,1.3201650999999999E-3,1.5552547999999999E-3,1.3040645999999999E-3,3.1895390999999999E-3,6.3060527000000002E-4,3.6135338999999998E-3,5.4785577E-3,8.0171884999999995E-4,8.0171884999999995E-4,8.3935810000000007E-3,4.5857462E-3,7.0484318000000002E-3,3.3973670000000001E-3,6.1808215000000001E-3,6.7071574999999998E-3,1.1049747E-2,null,5.7791574000000002E-3,3.7267317999999999E-3,3.7267317999999999E-3,4.8050866000000003E-3,1.0449801E-2,7.0456527000000001E-3,4.7067152000000003E-3,7.8495470999999997E-3,1.6683002E-3,1.6985132999999999E-3,4.2870942999999996E-3,1.6985132999999999E-3,5.9188334000000002E-3,8.3438343999999998E-3,4.8964815E-3,1.1124438999999999E-3,1.9614960000000001E-3,6.8391520000000003E-3,4.7126254999999999E-4,4.7126254999999999E-4,1.1689320999999999E-3,5.6295692999999997E-3,5.6464165000000002E-3,6.3060527000000002E-4,3.7007560999999998E-4,3.7007560999999998E-4,3.7413170000000001E-3,5.1543856999999998E-3,2.7766097E-3,3.6092473E-3,3.5302087000000002E-3,5.0137927999999998E-3,4.0975031000000002E-3,null,201]
[null,"Male 55-59",8.7477360000000007E-3,4.9374364E-3,1.3400525E-3,1.4512632E-3,1.3033615E-3,3.2720789000000002E-3,6.1552424000000001E-4,3.8168731000000002E-3,5.1030344000000004E-3,7.8636744999999999E-4,7.8636744999999999E-4,8.3995964000000006E-3,4.4817459000000004E-3,7.2641592000000001E-3,3.4947813999999999E-3,6.5630996000000004E-3,6.4279330000000003E-3,1.0662698999999999E-2,null,5.4276697000000002E-3,3.7109703000000002E-3,3.7109703000000002E-3,4.7378526000000001E-3,1.021325E-2,7.0502111000000003E-3,4.6439250000000001E-3,7.7619808999999998E-3,1.723729E-3,1.7625106999999999E-3,4.7098147000000003E-3,1.7625106999999999E-3,5.9384820000000001E-3,7.9853656000000005E-3,5.0398101999999997E-3,1.1920634000000001E-3,2.0187234000000002E-3,7.0636016000000003E-3,4.2823606E-4,4.2823606E-4,1.1878989E-3,5.6071476999999996E-3,5.5827000000000003E-3,6.1552424000000001E-4,3.8340918000000001E-4,3.8340918000000001E-4,3.6991960000000001E-3,5.0613367999999999E-3,3.1264815000000001E-3,3.7442615999999998E-3,3.7639168999999998E-3,5.2465274999999997E-3,4.0762717999999996E-3,null,202]
[null,"Male 60-64",8.4871361000000006E-3,4.7813960999999999E-3,1.3120949000000001E-3,1.5375902E-3,1.3028314999999999E-3,3.3073856000000001E-3,6.6359149000000004E-4,3.6991171000000001E-3,5.4464098000000004E-3,8.2361040000000004E-4,8.2361040000000004E-4,8.4737465000000005E-3,4.4450699000000002E-3,6.8791737000000004E-3,3.1178624E-3,6.3385446999999996E-3,6.5966831000000004E-3,1.0847153999999999E-2,null,5.4302025E-3,3.7420825E-3,3.7420825E-3,4.6498770999999998E-3,1.0402022E-2,6.9976919000000002E-3,4.5051733E-3,7.7481344000000004E-3,1.5867654000000001E-3,1.6108685000000001E-3,4.0553990000000003E-3,1.6108685000000001E-3,5.7794455999999996E-3,8.2536637999999999E-3,3.9024709000000002E-3,1.1262666000000001E-3,2.0457825000000001E-3,6.7700334000000001E-3,4.5799874000000001E-4,4.5799874000000001E-4,1.1346854E-3,5.6561431999999998E-3,5.4825255999999996E-3,6.6359149000000004E-4,3.3514187E-4,3.3514187E-4,3.7176139000000001E-3,5.0151086999999997E-3,2.8477299000000001E-3,3.6454978E-3,3.5906050000000002E-3,5.0691770999999998E-3,3.9240745999999998E-3,null,203]
[null,"Male 65-69",7.9001533000000006E-3,4.3441425000000002E-3,1.3254287E-3,1.6157068E-3,1.3037763000000001E-3,3.3446061E-3,6.2609994000000001E-4,3.6494669E-3,5.1004756000000004E-3,7.9240824999999996E-4,7.9240824999999996E-4,8.4615704E-3,4.4938466000000003E-3,6.8976725000000003E-3,3.3995778999999999E-3,6.6680176999999998E-3,5.9719621000000004E-3,1.059151E-2,null,5.5408222E-3,3.5827776999999999E-3,3.5827776999999999E-3,4.6951859E-3,1.0393826E-2,6.9684424000000002E-3,4.0943339000000002E-3,7.7376863999999998E-3,1.6609003E-3,1.7152921E-3,4.5037725999999998E-3,1.7152921E-3,5.7096062E-3,7.8094690000000003E-3,4.6666167E-3,1.0834911E-3,1.9687009000000002E-3,6.8171159000000002E-3,5.0868536000000001E-4,5.0868536000000001E-4,1.0229442000000001E-3,5.6332187000000004E-3,5.2653761E-3,6.2609994000000001E-4,3.6909600000000002E-4,3.6909600000000002E-4,3.8606431E-3,4.9764388E-3,2.8818686999999999E-3,3.5080825999999998E-3,3.4603084999999998E-3,5.0663137999999996E-3,3.9481706999999998E-3,null,204]
[null,"Male 70-74",8.3938203999999999E-3,4.5874840999999998E-3,1.3754933999999999E-3,1.5175624E-3,1.3029913E-3,3.3434532000000002E-3,6.1151927000000004E-4,3.5909240000000001E-3,4.6326778999999998E-3,7.6180761000000004E-4,7.6180761000000004E-4,8.1863756999999999E-3,4.3960889000000001E-3,7.1536871000000002E-3,3.4318243000000001E-3,7.0356587E-3,5.6312028000000004E-3,1.0224621E-2,null,5.7727089000000004E-3,3.6778866999999998E-3,3.6778866999999998E-3,4.7885491999999997E-3,1.0236455E-2,6.957558E-3,4.3002125E-3,7.5861601999999998E-3,1.6783522E-3,1.7345609000000001E-3,4.4546556000000003E-3,1.7345609000000001E-3,5.9093940000000001E-3,7.4201151999999998E-3,4.6810554000000001E-3,1.1115000000000001E-3,1.9500717999999999E-3,6.9183018000000002E-3,5.1309448E-4,5.1309448E-4,1.1314637999999999E-3,5.5867531000000003E-3,5.0796377000000004E-3,6.1151927000000004E-4,3.7463361999999999E-4,3.7463361999999999E-4,3.882698E-3,5.1627195999999998E-3,2.9592726E-3,3.3237736000000001E-3,3.1155096E-3,4.8977248000000003E-3,3.9314203999999998E-3,null,205]
[null,"Male 75-79",8.0361831999999998E-3,4.1533982999999997E-3,1.2970054999999999E-3,1.5803033E-3,1.3049693999999999E-3,3.3304556000000002E-3,6.4052588999999999E-4,3.4564462999999998E-3,4.9352627E-3,7.3304138000000003E-4,7.3304138000000003E-4,8.6276140000000005E-3,4.4090650000000002E-3,6.9312224999999996E-3,3.0423749999999999E-3,6.8366295000000001E-3,5.8983127E-3,1.0492961E-2,null,5.7778083999999999E-3,3.7156952999999999E-3,3.7156952999999999E-3,4.8675480999999998E-3,1.0237872E-2,7.0350422000000001E-3,3.8906492E-3,7.6017710000000002E-3,1.7647051999999999E-3,1.8394722000000001E-3,4.8956722000000003E-3,1.8394722000000001E-3,5.9097973000000002E-3,7.8025204000000004E-3,4.5289118000000003E-3,1.3616886E-3,2.0027002000000001E-3,7.0151878000000003E-3,4.7305494000000003E-4,4.7305494000000003E-4,1.1166786000000001E-3,5.6585912000000002E-3,5.1195696000000002E-3,6.4052588999999999E-4,3.4668515E-4,3.4668515E-4,3.8494864000000002E-3,5.1004114000000001E-3,2.7218708000000002E-3,3.3033191999999999E-3,3.0966683E-3,4.9926442999999997E-3,4.1087110999999997E-3,null,206]
[null,"Male 80-84",8.5772564999999999E-3,4.4119023000000002E-3,1.3746648000000001E-3,1.5747227E-3,1.3040062E-3,3.4225983999999999E-3,6.3549308E-4,3.3492336999999999E-3,4.5660804000000003E-3,7.9024100000000001E-4,7.9024100000000001E-4,8.4816674000000002E-3,4.3901684999999996E-3,7.3546766999999999E-3,3.4535727E-3,6.9046291000000003E-3,5.9848567E-3,1.0300972E-2,null,6.0567562E-3,3.6452943E-3,3.6452943E-3,4.9497396999999997E-3,1.0192499000000001E-2,7.1926545000000003E-3,4.1626743000000004E-3,7.8222379000000009E-3,1.7266991E-3,1.8071024E-3,5.4559177E-3,1.8071024E-3,5.8614705000000003E-3,7.9141594000000006E-3,4.5468341999999997E-3,1.2666443E-3,2.0960142999999999E-3,6.8869865000000001E-3,4.9189507000000005E-4,4.9189507000000005E-4,1.1077011E-3,5.6308642999999999E-3,5.2662630999999998E-3,6.3549308E-4,3.6636353000000003E-4,3.6636353000000003E-4,3.8342907E-3,5.2805417000000004E-3,2.7785002999999998E-3,3.5334114999999999E-3,3.4861299E-3,5.1909564000000002E-3,3.9188297999999998E-3,null,207]
[null,"Male 85-89",8.8360719000000008E-3,4.0740515000000001E-3,1.3597006999999999E-3,1.4869298E-3,1.3047309999999999E-3,3.4864765999999998E-3,6.1077316000000001E-4,2.9983199E-3,3.5600367000000002E-3,7.7544438000000002E-4,7.7544438000000002E-4,8.4166154000000007E-3,4.9396711000000001E-3,7.4139694000000004E-3,3.0806484000000002E-3,7.2808917999999997E-3,6.5068468000000004E-3,1.0548366E-2,null,6.5647326000000004E-3,3.4133831999999999E-3,3.4133831999999999E-3,4.9654445999999996E-3,1.0380673999999999E-2,7.3663406000000001E-3,3.8240078999999998E-3,7.9324031000000007E-3,1.9185668999999999E-3,2.0085253999999999E-3,5.6800540000000004E-3,2.0085253999999999E-3,6.0211088999999997E-3,8.3236331E-3,4.6422872999999998E-3,1.3704539000000001E-3,2.0846486999999999E-3,7.4186855999999997E-3,5.1309448E-4,5.1309448E-4,1.064211E-3,5.8921883000000001E-3,5.3818104999999996E-3,6.1077316000000001E-4,4.0445691999999999E-4,4.0445691999999999E-4,3.8793283000000001E-3,5.3345794E-3,2.7905616000000002E-3,3.2360510000000002E-3,3.1772621000000002E-3,5.1408373000000002E-3,3.8685868000000001E-3,null,208]
[null,"Male 90+",1.0964817999999999E-2,4.0954668000000001E-3,1.5646534E-3,1.3561294999999999E-3,1.3084476999999999E-3,4.0725917000000002E-3,6.6941354000000001E-4,2.9594558E-3,4.3384442000000004E-3,9.2210730999999998E-4,9.2210730999999998E-4,7.7385422999999998E-3,5.4036672000000001E-3,7.6067653000000002E-3,2.5638989000000001E-3,7.7467971000000002E-3,7.0562265000000002E-3,1.0114021000000001E-2,null,6.6202170999999999E-3,3.0655986999999999E-3,3.0655986999999999E-3,5.1403348000000001E-3,1.0308227999999999E-2,7.3712192999999997E-3,3.9470494000000004E-3,8.0786953000000009E-3,2.1588416000000001E-3,2.3005742000000002E-3,5.6006670999999997E-3,2.3005742000000002E-3,5.5597685000000003E-3,8.8918338999999999E-3,5.3949825999999998E-3,7.3134049000000002E-4,2.3245965000000001E-3,6.4983899000000001E-3,4.4326119999999998E-4,4.4326119999999998E-4,1.1356262000000001E-3,6.1318516E-3,5.4985955E-3,6.6941354000000001E-4,2.6965607E-4,2.6965607E-4,3.8320054E-3,4.9998891E-3,2.7008955000000002E-3,3.4608829000000001E-3,3.5917719E-3,5.0251380999999998E-3,5.1023485000000002E-3,null,209]
["SIMD Q5 (least deprived)","Female 0-4",8.5977996000000008E-3,5.3940150000000003E-3,1.151818E-3,1.6364029E-3,9.6870178999999997E-4,3.1379943E-3,5.8024051000000001E-4,3.0143338E-3,4.9030621999999998E-3,9.2754961000000001E-4,9.2754961000000001E-4,6.0178321000000003E-3,3.6356887E-3,7.4927275999999996E-3,2.1516932000000002E-3,7.9484758999999999E-3,7.9688411000000004E-3,1.0686960000000001E-2,null,5.1668490999999999E-3,3.7305037999999999E-3,3.7305037999999999E-3,4.2051333000000003E-3,1.0301978999999999E-2,7.3793432999999997E-3,5.2267703999999996E-3,8.1142847999999997E-3,1.4471407E-3,1.6106797999999999E-3,3.1143941E-3,1.6106797999999999E-3,5.1069497000000002E-3,9.0143224000000001E-3,4.5626312000000002E-3,1.0076506999999999E-3,2.0271335000000001E-3,6.1141438999999997E-3,null,null,1.9543984000000001E-3,5.1714563999999998E-3,6.5267965999999998E-3,5.8024051000000001E-4,null,null,3.2390451999999999E-3,4.3962178999999999E-3,2.6129151E-3,3.5253928999999999E-3,3.3131471999999999E-3,3.3103437000000001E-3,3.6052342000000002E-3,null,210]
[null,"Female 5-9",8.1353160000000001E-3,4.8223021000000001E-3,1.1582399E-3,1.5863816E-3,9.6036383000000004E-4,2.9389317999999999E-3,5.9165287999999997E-4,2.7073571000000001E-3,4.0951590000000001E-3,9.5184798999999997E-4,9.5184798999999997E-4,5.9685687999999999E-3,3.4198458000000002E-3,7.4504297000000004E-3,2.0367025999999998E-3,7.8342697000000003E-3,7.5689186000000002E-3,1.0496152999999999E-2,null,5.1098489E-3,3.7459430999999999E-3,3.7459430999999999E-3,4.0034386E-3,1.0194554E-2,7.1476563000000002E-3,4.6713589999999999E-3,7.9251882000000006E-3,1.3928784999999999E-3,1.5250357999999999E-3,3.2940151E-3,1.5250357999999999E-3,5.1231845E-3,8.6545906999999991E-3,4.7608073999999998E-3,1.0072527E-3,2.0874583E-3,6.0123577999999997E-3,null,null,1.9239569E-3,5.2790707000000001E-3,6.1708535000000002E-3,5.9165287999999997E-4,null,null,3.0615911999999999E-3,4.4587860000000002E-3,2.4309853999999998E-3,3.4858765999999999E-3,3.1757075E-3,3.8726010999999999E-3,3.541148E-3,null,211]
[null,"Female 10-15",8.0728224000000005E-3,4.7153593000000002E-3,1.1224364E-3,1.5937246999999999E-3,9.6294703000000001E-4,3.1337171999999999E-3,5.8760097999999996E-4,2.5621983E-3,3.5676448999999999E-3,9.9549453999999999E-4,9.9549453999999999E-4,5.9892245999999998E-3,3.6386016000000002E-3,7.5028081999999998E-3,1.8470422E-3,7.7778459999999997E-3,7.3223830999999996E-3,1.0358396000000001E-2,null,5.1276157999999997E-3,3.8022373000000001E-3,3.8022373000000001E-3,3.9793983999999996E-3,9.9350866000000003E-3,6.9760843000000001E-3,4.5355326000000003E-3,7.7057326999999997E-3,1.4779846999999999E-3,1.6794595000000001E-3,3.0573865000000002E-3,1.6794595000000001E-3,4.9710199E-3,8.3268284999999994E-3,5.0198244999999997E-3,9.5250504000000003E-4,2.0280385E-3,5.9495358999999996E-3,null,null,1.9867524999999998E-3,5.1704715E-3,5.9845923000000001E-3,5.8760097999999996E-4,null,null,3.2859666000000002E-3,4.2080054999999996E-3,2.3897376000000001E-3,3.5270914000000001E-3,3.2593822E-3,3.8102259999999999E-3,3.4841141E-3,null,212]
[null,"Female 16-19",8.7124668000000006E-3,5.2434229000000001E-3,1.1709134999999999E-3,1.6341732999999999E-3,9.6584955000000004E-4,3.1924980999999998E-3,5.9420044999999996E-4,2.6103745000000001E-3,3.6182289000000001E-3,1.0152570000000001E-3,1.0152570000000001E-3,7.6190117E-3,3.7663216000000002E-3,7.5159412999999996E-3,1.9913464999999999E-3,7.7330703000000004E-3,8.0410632999999999E-3,1.0979689000000001E-2,null,5.1286700000000001E-3,3.1953768E-3,3.1953768E-3,3.9393366000000001E-3,1.0881893E-2,7.5343436999999996E-3,5.0877556000000004E-3,8.2978532000000001E-3,1.4640995999999999E-3,1.5903530999999999E-3,3.2151790999999999E-3,1.5903530999999999E-3,5.1502413000000004E-3,9.2206057000000004E-3,4.3654591E-3,9.808298200000001E-4,2.1139951000000001E-3,6.0020508000000004E-3,null,null,2.0685508E-3,5.1021547999999996E-3,6.6504041E-3,5.9420044999999996E-4,null,null,3.2681795000000001E-3,4.3789757999999996E-3,2.4456764000000001E-3,3.8910257E-3,4.5231660000000003E-3,3.9979652999999997E-3,3.4156201999999999E-3,null,213]
[null,"Female 20-24",1.0362456000000001E-2,7.4780690000000004E-3,1.1931685E-3,1.6384593E-3,9.6809247000000001E-4,3.1154742000000001E-3,5.8244035000000005E-4,3.3795049000000001E-3,4.2392955999999999E-3,9.9925383000000001E-4,9.9925383000000001E-4,7.3733608999999997E-3,3.6433811999999999E-3,7.4641420999999996E-3,2.0258846000000001E-3,7.7832624999999997E-3,9.7614973999999993E-3,1.2263222000000001E-2,null,5.3858719999999999E-3,2.3866522E-3,2.3866522E-3,4.3389387000000003E-3,1.1385709000000001E-2,8.5851550000000006E-3,7.2987117000000001E-3,9.3770819000000005E-3,1.554754E-3,1.7425886E-3,3.5940572E-3,1.7425886E-3,5.2436449999999999E-3,1.1316011000000001E-2,4.1409348999999996E-3,9.5629959999999996E-4,2.0541558000000001E-3,5.9882742000000001E-3,null,null,1.8037534999999999E-3,5.1963710999999996E-3,8.3028795000000006E-3,5.8244035000000005E-4,null,null,3.2656031999999998E-3,4.6890993000000001E-3,3.2537878E-3,3.2533596000000001E-3,4.5982949E-3,3.2913042000000002E-3,3.7450275999999999E-3,null,214]
[null,"Female 25-29",1.0437108E-2,8.1204724999999998E-3,1.2566064000000001E-3,1.8351445999999999E-3,9.5676403999999998E-4,3.2247608E-3,5.9263559999999998E-4,3.1274443000000002E-3,4.8223887999999998E-3,9.3945628000000005E-4,9.3945628000000005E-4,6.7768367000000003E-3,3.5729434E-3,7.5092431999999997E-3,2.4534124E-3,7.6675327000000001E-3,1.0305692999999999E-2,1.2288913E-2,null,5.1629385000000003E-3,3.3081635E-3,3.3081635E-3,4.1162194999999997E-3,1.1005308E-2,8.4760831999999998E-3,7.9010706000000007E-3,9.2841350000000007E-3,1.4775569E-3,1.6169512E-3,4.0160919999999998E-3,1.6169512E-3,5.2359434999999996E-3,1.1308561E-2,4.3728504999999999E-3,9.6472026999999997E-4,2.1683014999999998E-3,6.2204753000000002E-3,null,null,2.0026553E-3,5.2137290999999999E-3,8.4769753999999996E-3,5.9263559999999998E-4,null,null,3.3356903999999998E-3,4.4939573999999999E-3,2.9048757000000001E-3,3.7439980000000001E-3,4.2045168000000004E-3,3.9685392000000002E-3,3.9144545000000001E-3,null,215]
[null,"Female 30-34",9.7557297000000001E-3,6.9001484999999998E-3,1.1743929999999999E-3,1.6301964999999999E-3,9.7201735000000005E-4,2.9719283000000001E-3,5.9085962000000002E-4,3.1750835000000002E-3,4.3955165999999997E-3,9.8678574000000008E-4,9.8678574000000008E-4,6.2167606999999998E-3,3.3891071000000002E-3,7.5307270000000001E-3,2.2926197999999999E-3,7.7644219000000004E-3,9.6462228999999993E-3,1.2193827000000001E-2,null,5.0307065E-3,3.7115954E-3,3.7115954E-3,4.2775612999999997E-3,1.0808886E-2,8.0468859999999996E-3,6.6958013999999996E-3,8.9931674E-3,1.5334124E-3,1.6170243E-3,3.7389404999999998E-3,1.6170243E-3,5.2686455000000004E-3,1.0798554E-2,3.9489347999999997E-3,1.0113691000000001E-3,2.0593093000000002E-3,6.2482589999999999E-3,null,null,1.9546971000000001E-3,5.375159E-3,7.6987571000000001E-3,5.9085962000000002E-4,null,null,3.1267011E-3,4.5021940000000002E-3,2.9247386999999999E-3,3.6379411E-3,3.5607649E-3,3.4340245000000001E-3,3.8034606E-3,null,216]
[null,"Female 35-39",8.9383832999999999E-3,5.9591122E-3,1.142622E-3,1.5551035999999999E-3,9.6246954999999995E-4,3.0316431000000001E-3,5.8852275999999996E-4,2.8425967E-3,4.4028139999999997E-3,9.6540654000000004E-4,9.6540654000000004E-4,6.2584383000000004E-3,3.5517369000000001E-3,7.5047630999999998E-3,2.1504771000000001E-3,7.8946882999999992E-3,8.6232284000000003E-3,1.1328942999999999E-2,null,4.9615828000000002E-3,3.6974042000000001E-3,3.6974042000000001E-3,4.0511562999999999E-3,1.0552934999999999E-2,7.5433328999999997E-3,5.8228183000000001E-3,8.3396062000000003E-3,1.4229908999999999E-3,1.5570987000000001E-3,3.1978795E-3,1.5570987000000001E-3,5.2963024999999999E-3,9.7507759999999992E-3,4.5674992999999997E-3,1.0034215E-3,2.0874007999999999E-3,6.2026017999999997E-3,null,null,2.0060887999999999E-3,5.3160102000000004E-3,6.9498358999999996E-3,5.8852275999999996E-4,null,null,3.1784379E-3,4.6214932E-3,2.4508242E-3,3.6008483999999999E-3,3.4886750000000001E-3,3.7318296000000001E-3,3.6198273E-3,null,217]
[null,"Female 40-44",8.4384456000000004E-3,5.2576927000000002E-3,1.1363943000000001E-3,1.6100254000000001E-3,9.5744076000000005E-4,3.0849811000000001E-3,5.8737809999999998E-4,2.7890202999999998E-3,4.3911263000000001E-3,9.5168494999999995E-4,9.5168494999999995E-4,5.9590312000000001E-3,3.5707755000000002E-3,7.4319065999999996E-3,1.9771378000000002E-3,7.8277746000000002E-3,7.9385908000000008E-3,1.0895906E-2,null,5.1765646999999996E-3,3.8027401999999998E-3,3.8027401999999998E-3,4.2238496000000002E-3,1.0437979E-2,7.2817174000000002E-3,5.0638020000000001E-3,8.0830547999999995E-3,1.5314046000000001E-3,1.6852821E-3,3.2981542999999999E-3,1.6852821E-3,5.0793160000000004E-3,9.0569108999999995E-3,4.6708508999999997E-3,9.9209753999999995E-4,2.1524170999999998E-3,6.0447938999999996E-3,null,null,1.8852706000000001E-3,5.2558802999999998E-3,6.4242897000000004E-3,5.8737809999999998E-4,null,null,3.1614466999999999E-3,4.3974221000000003E-3,2.4486464000000002E-3,3.5283180999999999E-3,3.2279600999999998E-3,3.3515031000000001E-3,3.5801153000000001E-3,null,218]
[null,"Female 45-49",8.2610119000000003E-3,5.0389212999999997E-3,1.1826789E-3,1.6336829000000001E-3,9.5849803999999996E-4,3.1224756999999998E-3,5.8042193999999995E-4,2.7365494000000001E-3,3.9898041E-3,9.8858681000000008E-4,9.8858681000000008E-4,5.9672021E-3,3.5545523E-3,7.4639156999999996E-3,1.9870049E-3,7.6942444000000004E-3,7.6812412999999998E-3,1.0739224E-2,null,5.2457097999999997E-3,3.6990996000000002E-3,3.6990996000000002E-3,4.1513838999999997E-3,1.0314253000000001E-2,7.1405972999999999E-3,4.8522032000000003E-3,7.8831891999999997E-3,1.4740019E-3,1.6353978999999999E-3,3.1419086999999999E-3,1.6353978999999999E-3,5.1200702000000001E-3,8.7701267999999999E-3,4.8286253999999997E-3,9.9605810999999996E-4,2.1280527999999999E-3,5.9053394999999996E-3,null,null,1.946899E-3,5.184391E-3,6.2256381E-3,5.8042193999999995E-4,null,null,3.3052142E-3,4.4717927999999999E-3,2.5124457000000001E-3,3.5171922999999998E-3,3.3389159999999999E-3,3.5925887000000001E-3,3.4837156999999999E-3,null,219]
[null,"Female 50-54",8.3360225E-3,5.3211101E-3,1.1952664000000001E-3,1.6731126E-3,9.5380604000000003E-4,3.0798131999999999E-3,5.7294533999999999E-4,2.4900851E-3,3.9057817999999999E-3,9.9575996999999995E-4,9.9575996999999995E-4,6.1851144000000004E-3,3.4681575000000001E-3,7.5011877000000001E-3,1.881925E-3,7.7422083999999997E-3,7.7457422999999996E-3,1.0629835000000001E-2,null,5.3935922000000001E-3,3.6224035999999999E-3,3.6224035999999999E-3,4.1103661000000003E-3,1.0314099E-2,7.1595720999999999E-3,5.1142130999999999E-3,7.8802918999999992E-3,1.5457553000000001E-3,1.7244122000000001E-3,3.3910558999999999E-3,1.7244122000000001E-3,5.2107064999999996E-3,8.7910863000000006E-3,4.622106E-3,9.2479539999999999E-4,2.1192154E-3,6.1174007000000001E-3,null,null,1.8423961999999999E-3,5.2790861000000001E-3,6.2470064000000004E-3,5.7294533999999999E-4,null,null,3.2431257000000002E-3,4.5463140000000001E-3,2.2410633999999999E-3,3.497446E-3,3.3939857999999998E-3,3.4378391999999999E-3,3.4021113999999999E-3,null,220]
[null,"Female 55-59",8.2750273999999992E-3,5.2871172999999997E-3,1.2002669000000001E-3,1.7232460999999999E-3,9.5544789999999998E-4,3.1068311E-3,5.6821818000000004E-4,2.5850999999999999E-3,3.7591078000000001E-3,9.8970265000000008E-4,9.8970265000000008E-4,6.256111E-3,3.5863497999999998E-3,7.4414805999999997E-3,1.9352114E-3,7.7637504E-3,7.7616810000000003E-3,1.0534114000000001E-2,null,5.3954362000000001E-3,3.4484250999999998E-3,3.4484250999999998E-3,4.1075762999999996E-3,1.0290069000000001E-2,7.1793244999999997E-3,5.0696962999999999E-3,7.8605479000000006E-3,1.4748395000000001E-3,1.646348E-3,3.4611478999999998E-3,1.646348E-3,5.2662975999999998E-3,8.9110574000000001E-3,4.2037265000000002E-3,9.8281470000000006E-4,1.9624428999999999E-3,6.0653011E-3,null,null,1.9199273E-3,5.1313108000000003E-3,6.2291832000000002E-3,5.6821818000000004E-4,null,null,3.2291296000000001E-3,4.6796416999999998E-3,2.3915232000000001E-3,3.4807189000000001E-3,3.5067864000000002E-3,3.3904644999999999E-3,3.3501191E-3,null,221]
[null,"Female 60-64",8.2663110999999997E-3,5.0459993000000003E-3,1.2024014E-3,1.6230737000000001E-3,9.5626456E-4,3.0711038999999998E-3,5.8687477999999995E-4,2.6717731000000002E-3,3.5143892999999998E-3,9.6255215000000003E-4,9.6255215000000003E-4,6.2887561999999996E-3,3.3761010999999999E-3,7.480029E-3,1.6493645999999999E-3,7.7991270999999999E-3,7.6042046E-3,1.0474239E-2,null,5.3504221000000001E-3,3.2987165999999999E-3,3.2987165999999999E-3,4.0588975000000003E-3,1.0431640000000001E-2,7.2603499999999996E-3,4.7718976E-3,7.9347827000000003E-3,1.5011766000000001E-3,1.6541345E-3,3.4445949999999999E-3,1.6541345E-3,5.2675810000000003E-3,8.8264885999999997E-3,4.1278731000000003E-3,9.4853620999999996E-4,1.9799894999999999E-3,6.1217817000000004E-3,null,null,1.8429932999999999E-3,5.1859677999999999E-3,6.1330181000000001E-3,5.8687477999999995E-4,null,null,3.2477285999999998E-3,4.7180898999999998E-3,2.4994202000000001E-3,3.2460179999999998E-3,3.2017953E-3,3.5023113999999998E-3,3.2446584999999998E-3,null,222]
[null,"Female 65-69",8.2191209999999994E-3,5.1517313999999998E-3,1.2098674E-3,1.9004549999999999E-3,9.5550343000000003E-4,3.0634058999999998E-3,5.8307754999999996E-4,2.5598096999999999E-3,3.1409814999999999E-3,9.4390038000000001E-4,9.4390038000000001E-4,6.2483208999999998E-3,3.2799171999999999E-3,7.4965782000000003E-3,1.6060251999999999E-3,7.8101912999999999E-3,7.5382217999999997E-3,1.0363572E-2,null,5.5381631999999997E-3,3.2959497000000001E-3,3.2959497000000001E-3,4.0199012000000003E-3,1.0528693E-2,7.2087981000000002E-3,4.8294341999999997E-3,7.8655174000000008E-3,1.4631799000000001E-3,1.6639879000000001E-3,3.0699544999999999E-3,1.6639879000000001E-3,5.1956297999999996E-3,8.8569232999999997E-3,4.0479762999999997E-3,9.8400457999999998E-4,1.9638989999999999E-3,6.1077783E-3,null,null,1.7621792000000001E-3,5.1392638000000001E-3,6.0488516000000003E-3,5.8307754999999996E-4,null,null,3.2317366E-3,4.5981336999999997E-3,2.4387321999999999E-3,3.2335774000000002E-3,3.1839860999999998E-3,3.5329141999999999E-3,3.116518E-3,null,223]
[null,"Female 70-74",8.1788814000000008E-3,5.1248101999999997E-3,1.2111191999999999E-3,1.8949887E-3,9.5532025000000004E-4,3.0369421E-3,5.8604160000000002E-4,2.6801188999999999E-3,3.4619994E-3,9.4957394000000004E-4,9.4957394000000004E-4,6.2250672E-3,3.3455261000000002E-3,7.5293471999999997E-3,1.2308599E-3,7.7965203999999996E-3,7.4831895000000001E-3,1.0343016999999999E-2,null,5.7696164999999997E-3,3.2720486999999999E-3,3.2720486999999999E-3,4.1153309999999999E-3,1.0401821E-2,7.1230507000000004E-3,4.7661294000000002E-3,7.7386497999999996E-3,1.4818189000000001E-3,1.6935425000000001E-3,3.1627809999999999E-3,1.6935425000000001E-3,5.1886472000000003E-3,8.769542E-3,4.0447805000000002E-3,9.6113758999999996E-4,1.8664479999999999E-3,6.0604904000000001E-3,null,null,1.7539472999999999E-3,5.2345878999999996E-3,5.9806318000000004E-3,5.8604160000000002E-4,null,null,3.2019268000000002E-3,4.6875998E-3,2.555449E-3,3.2331762E-3,3.2044228E-3,3.7716126999999999E-3,3.0083631E-3,null,224]
[null,"Female 75-79",8.1865954999999994E-3,5.2075376999999997E-3,1.2269614000000001E-3,1.9049456999999999E-3,9.3569064999999999E-4,3.0031650999999999E-3,5.9304089999999996E-4,2.5616115999999999E-3,3.0528726000000001E-3,9.7328750000000004E-4,9.7328750000000004E-4,6.3371952000000004E-3,3.3340226000000001E-3,7.5908861999999999E-3,1.2463929999999999E-3,7.8920098000000004E-3,7.6889730999999996E-3,1.0420538E-2,null,5.8231126000000003E-3,3.1067593999999999E-3,3.1067593999999999E-3,3.9749284999999997E-3,1.0384918E-2,7.3014385999999997E-3,4.8851570999999998E-3,7.8987554000000005E-3,1.6360265E-3,1.8548815E-3,2.9809601E-3,1.8548815E-3,5.2304971000000002E-3,8.9837172999999992E-3,3.4629952E-3,8.5856316999999998E-4,1.8022634E-3,6.1146611999999996E-3,null,null,1.7338195999999999E-3,5.3463223999999998E-3,6.1338069000000002E-3,5.9304089999999996E-4,null,null,3.1343046999999999E-3,4.7206202999999997E-3,2.4973870999999998E-3,3.1805744E-3,3.2285057999999998E-3,4.5218091000000004E-3,3.0436600000000001E-3,null,225]
[null,"Female 80-84",8.5797235000000006E-3,5.6443465999999999E-3,1.2487322999999999E-3,1.8961309999999999E-3,9.615944E-4,3.0543803999999999E-3,5.9928373000000005E-4,3.0338121999999999E-3,3.9673097999999999E-3,9.5216034000000001E-4,9.5216034000000001E-4,6.4529786E-3,3.3752627000000002E-3,7.5947894000000004E-3,1.1062420999999999E-3,8.0477203999999997E-3,7.9786479E-3,1.0321092E-2,null,6.2591121999999999E-3,2.9924943000000002E-3,2.9924943000000002E-3,4.4267988000000003E-3,1.0453080999999999E-2,7.4803470999999996E-3,5.3051462999999998E-3,8.0880485000000002E-3,1.5780776E-3,1.7510701E-3,3.3566179E-3,1.7510701E-3,5.2189523999999999E-3,9.1793052999999993E-3,4.1591641000000004E-3,8.3497463000000002E-4,1.7578646E-3,5.9908060000000004E-3,null,null,1.7075776E-3,5.4748771E-3,6.3680871000000002E-3,5.9928373000000005E-4,null,null,3.2457445999999998E-3,4.8289978999999997E-3,2.9374510000000002E-3,3.1377845E-3,3.2226787999999999E-3,3.6522633999999999E-3,2.9297068000000001E-3,null,226]
[null,"Female 85-89",8.4475195000000003E-3,5.8233868000000001E-3,1.1143266000000001E-3,1.9777336E-3,9.8142563000000005E-4,3.1493225000000001E-3,6.0770892999999996E-4,3.3346531E-3,3.7593654999999999E-3,1.0137464E-3,1.0137464E-3,6.3370611000000002E-3,3.8051130000000002E-3,7.6050650999999999E-3,1.1432121E-3,8.1449095000000003E-3,8.2606971000000005E-3,1.0401644E-2,null,5.9867449999999999E-3,2.7909365000000001E-3,2.7909365000000001E-3,4.459078E-3,1.0396730999999999E-2,7.7021564000000001E-3,5.4677579999999996E-3,8.1805000000000003E-3,1.7041745999999999E-3,1.9351564000000001E-3,2.6784830000000002E-3,1.9351564000000001E-3,5.3820559E-3,9.3485805999999998E-3,5.5467974999999997E-3,9.3349803000000004E-4,1.3943622E-3,6.2929400999999999E-3,null,null,1.8304884E-3,5.6335548999999997E-3,6.6726082000000001E-3,6.0770892999999996E-4,null,null,3.2166924999999999E-3,5.0031268000000004E-3,3.2971094E-3,3.1237092000000002E-3,3.3250038999999999E-3,3.7716129E-3,2.6507116999999998E-3,null,227]
[null,"Female 90+",8.6220149000000006E-3,5.9698638999999996E-3,1.2446324E-3,2.1616691000000002E-3,9.9433598000000004E-4,3.4770099E-3,5.9322832000000003E-4,3.4722061999999999E-3,3.8878729E-3,1.0734884E-3,1.0734884E-3,6.3923629999999999E-3,4.9077625999999997E-3,7.7270307E-3,1.0939779E-3,7.9346597000000008E-3,8.1969508999999996E-3,1.0450808000000001E-2,null,6.0295165000000001E-3,2.7113718E-3,2.7113718E-3,4.7616968000000004E-3,1.0728868000000001E-2,7.8043807000000003E-3,5.5911974000000001E-3,8.3002410999999995E-3,1.8932909E-3,2.3173263999999999E-3,2.6395307E-3,2.3173263999999999E-3,4.9160634999999998E-3,9.5343981000000008E-3,4.9072281000000001E-3,7.6699071000000004E-4,1.2317904999999999E-3,5.1371474E-3,null,null,1.8801682000000001E-3,5.7130343999999998E-3,6.7039090000000001E-3,5.9322832000000003E-4,null,null,3.4509122000000001E-3,4.8190033999999998E-3,3.4416986000000002E-3,2.9085478999999999E-3,3.0553466999999998E-3,5.0844564000000004E-3,2.4785937000000001E-3,null,228]
[null,"Male 0-4",8.4577369999999999E-3,5.4250341000000001E-3,1.1464506E-3,1.4562204E-3,9.6088979999999998E-4,2.9214713999999998E-3,5.8506883000000005E-4,2.8840832E-3,4.3228058999999997E-3,9.6543325E-4,9.6543325E-4,6.1042704999999999E-3,3.2403376E-3,7.4544772999999998E-3,2.1372129999999998E-3,7.8907646000000008E-3,7.9775099000000006E-3,1.0665343000000001E-2,null,4.8059775000000001E-3,3.6970149000000001E-3,3.6970149000000001E-3,3.9115935000000003E-3,1.0342831E-2,7.3525895999999999E-3,5.2047613999999997E-3,8.0963718E-3,1.4490442999999999E-3,1.6058813999999999E-3,3.2937083999999999E-3,1.6058813999999999E-3,5.1983660000000003E-3,9.0282670999999991E-3,4.3099736999999997E-3,1.0404941999999999E-3,2.0306109999999999E-3,6.2250732000000003E-3,null,null,1.9922103E-3,5.1213335000000002E-3,6.4984672E-3,5.8506883000000005E-4,null,null,3.1370092000000001E-3,4.5163230999999996E-3,2.5676379000000001E-3,3.4970500999999998E-3,3.2922126999999999E-3,3.6171607000000001E-3,3.6322244E-3,null,229]
[null,"Male 5-9",8.0389547999999995E-3,4.7873072000000003E-3,1.1045136000000001E-3,1.5360838E-3,9.6360372999999995E-4,3.0917806999999999E-3,5.8934494000000004E-4,2.6884989E-3,4.2739613000000003E-3,9.8244427000000007E-4,9.8244427000000007E-4,5.8376514000000003E-3,3.5745035999999999E-3,7.5175040000000004E-3,1.8972317999999999E-3,7.8452285000000007E-3,7.4694994999999998E-3,1.0331760000000001E-2,null,5.0035636000000001E-3,3.7873259000000001E-3,3.7873259000000001E-3,4.0151835E-3,1.0170923E-2,7.1971281000000002E-3,4.6305875E-3,7.9143560000000009E-3,1.421191E-3,1.57372E-3,3.2652546999999998E-3,1.57372E-3,5.1715090000000003E-3,8.5799563999999998E-3,4.4930409999999997E-3,1.0015815E-3,2.1461656E-3,6.1109140999999999E-3,null,null,1.9397171999999999E-3,5.2236202000000001E-3,6.1305659E-3,5.8934494000000004E-4,null,null,3.1604305999999999E-3,4.4607678000000003E-3,2.4101830000000002E-3,3.5448548999999999E-3,3.2706084000000001E-3,2.8963839000000001E-3,3.5395622000000001E-3,null,230]
[null,"Male 10-15",8.1260493000000003E-3,4.6582641000000001E-3,1.1404029000000001E-3,1.5832041E-3,9.6109399000000005E-4,3.1988334E-3,5.9487443999999999E-4,2.5360640000000002E-3,4.0350305E-3,9.5804123000000003E-4,9.5804123000000003E-4,6.0064183E-3,3.7746417999999999E-3,7.4040768999999998E-3,1.9055514E-3,7.8068473000000001E-3,7.2933872999999998E-3,1.0227774E-2,null,4.9775256999999998E-3,3.6688666E-3,3.6688666E-3,3.8298178E-3,9.9727949E-3,7.0045324999999997E-3,4.4657997999999997E-3,7.6857773000000001E-3,1.4699048E-3,1.6562874999999999E-3,3.0250937999999998E-3,1.6562874999999999E-3,5.1210913999999996E-3,8.3564473E-3,4.7840540999999999E-3,9.8271307000000001E-4,2.1257810000000002E-3,6.0082269000000001E-3,null,null,1.967622E-3,5.1490924999999998E-3,5.9861615E-3,5.9487443999999999E-4,null,null,3.3559813000000002E-3,4.3059535999999997E-3,2.2599985999999998E-3,3.4811895000000002E-3,3.2899873E-3,3.7110202999999999E-3,3.4542434999999998E-3,null,231]
[null,"Male 16-19",8.4340115999999993E-3,4.8569468999999999E-3,1.1749556000000001E-3,1.7158099000000001E-3,9.5626083000000005E-4,3.0963539999999999E-3,5.8591877999999997E-4,2.7218991999999999E-3,4.0347343000000004E-3,1.0303812E-3,1.0303812E-3,7.5988360000000003E-3,3.6625941E-3,7.5655426E-3,1.9053948E-3,7.8247720000000007E-3,7.8462726000000007E-3,1.0591724E-2,null,5.1165250999999998E-3,3.4680843999999999E-3,3.4680843999999999E-3,3.9802426000000004E-3,1.0761675E-2,7.3668887000000001E-3,4.6457992999999996E-3,8.1414524000000005E-3,1.4749669E-3,1.6888008999999999E-3,3.6753642E-3,1.6888008999999999E-3,5.1311198999999998E-3,8.8748288999999994E-3,4.3659909E-3,9.0897904000000003E-4,2.1152446999999999E-3,6.0471976E-3,null,null,1.8170705E-3,5.2191201000000003E-3,6.4099635999999996E-3,5.8591877999999997E-4,null,null,3.2220568999999999E-3,4.4156754999999997E-3,2.4679007000000001E-3,3.9757313000000002E-3,4.3877101999999996E-3,3.6706247000000002E-3,3.4319026999999999E-3,null,232]
[null,"Male 20-24",1.0093568000000001E-2,6.7877774000000002E-3,1.203289E-3,1.7179088E-3,9.4780902000000001E-4,3.0798570000000001E-3,5.8207479999999997E-4,3.0950935999999999E-3,4.0835751999999999E-3,9.961633499999999E-4,9.961633499999999E-4,7.6858899999999999E-3,3.5709811E-3,7.5766317999999997E-3,2.0590172999999999E-3,7.7379168999999999E-3,9.3009258000000001E-3,1.1924601999999999E-2,null,5.2651623E-3,2.6279290000000002E-3,2.6279290000000002E-3,4.1865297000000003E-3,1.1323044000000001E-2,8.1747202000000008E-3,6.5471809000000004E-3,8.9796968000000008E-3,1.4935146E-3,1.6639128000000001E-3,3.6942073999999998E-3,1.6639128000000001E-3,5.2246851999999998E-3,1.0608839E-2,3.4754120000000002E-3,9.8437326999999998E-4,2.1689837E-3,5.9902603000000004E-3,null,null,1.950755E-3,5.1676695999999999E-3,7.7270189999999999E-3,5.8207479999999997E-4,null,null,3.1989594000000001E-3,4.6450794E-3,2.9581753000000001E-3,3.5686951999999998E-3,4.5963195000000004E-3,3.2955271E-3,3.6140477999999998E-3,null,233]
[null,"Male 25-29",1.037486E-2,8.0380654000000006E-3,1.2592561999999999E-3,1.7130087E-3,9.6884957999999999E-4,3.0724980999999999E-3,5.6959694000000005E-4,3.0902345E-3,4.6315189000000001E-3,9.7002252000000005E-4,9.7002252000000005E-4,6.8411189000000001E-3,3.6112577999999999E-3,7.5408695000000001E-3,2.1736068000000001E-3,7.7764262000000004E-3,9.9932597999999994E-3,1.2031630999999999E-2,null,5.3839493000000004E-3,3.3067322999999998E-3,3.3067322999999998E-3,4.4009289999999996E-3,1.107183E-2,8.3952742000000004E-3,7.8302705999999996E-3,9.1490317000000008E-3,1.5275516E-3,1.7146058E-3,4.1031538999999999E-3,1.7146058E-3,5.3427787000000001E-3,1.0948443E-2,3.5814027999999999E-3,1.004582E-3,2.1168541000000001E-3,6.2655858E-3,null,null,1.8780069999999999E-3,5.1600858999999999E-3,8.3115007999999997E-3,5.6959694000000005E-4,null,null,3.0315555999999998E-3,4.5330733999999996E-3,2.8625870999999998E-3,3.8556749999999998E-3,4.3440418999999997E-3,3.1437313E-3,3.8607791E-3,null,234]
[null,"Male 30-34",1.0444712E-2,7.7021383000000004E-3,1.1921583999999999E-3,1.5310002000000001E-3,9.6244033000000004E-4,3.0289676999999998E-3,5.6311535E-4,3.1839905E-3,4.3724072000000001E-3,9.2049658999999995E-4,9.2049658999999995E-4,6.6179745000000002E-3,3.3082125999999998E-3,7.5146220999999999E-3,2.3488981999999999E-3,7.8222407000000001E-3,9.876892E-3,1.2265529000000001E-2,null,5.1811946999999999E-3,3.5011065000000001E-3,3.5011065000000001E-3,4.4155694000000004E-3,1.0987604E-2,8.2828113999999994E-3,7.5120148000000003E-3,9.1359448000000003E-3,1.6377029000000001E-3,1.7756599000000001E-3,3.7580826E-3,1.7756599000000001E-3,5.4185809999999996E-3,1.1024644E-2,3.9457511000000004E-3,8.8740577000000003E-4,1.9960627000000001E-3,6.5191075999999999E-3,null,null,1.9955365000000002E-3,5.3647128000000001E-3,8.0569097999999995E-3,5.6311535E-4,null,null,3.3829934000000001E-3,4.5882785000000001E-3,2.9456261999999999E-3,3.5690365E-3,3.6451663000000001E-3,3.8341293E-3,3.9085368999999997E-3,null,235]
[null,"Male 35-39",9.6869590000000002E-3,6.7276387E-3,1.1685418E-3,1.6103110999999999E-3,9.6432672999999995E-4,3.0666983000000002E-3,5.7676755000000003E-4,3.0869583E-3,4.2328569E-3,9.3970942999999996E-4,9.3970942999999996E-4,6.3614910000000004E-3,3.5093804E-3,7.4630026E-3,2.2531622E-3,7.8445188999999999E-3,8.9405170000000003E-3,1.1624989000000001E-2,null,4.8552444E-3,3.7160418000000001E-3,3.7160418000000001E-3,4.1624987000000004E-3,1.0786291999999999E-2,7.7346995999999996E-3,6.5807295000000002E-3,8.6174766E-3,1.5951106E-3,1.7175268999999999E-3,3.5486298E-3,1.7175268999999999E-3,5.2247005999999999E-3,1.0121753000000001E-2,4.4705587999999997E-3,1.0314699E-3,2.1675522000000002E-3,6.2840068999999998E-3,null,null,1.8806546E-3,5.155181E-3,7.2624068999999998E-3,5.7676755000000003E-4,null,null,3.2031273000000002E-3,4.4682161000000001E-3,2.8469191999999999E-3,3.6332356000000001E-3,3.5363359000000001E-3,3.64658E-3,3.6518077999999998E-3,null,236]
[null,"Male 40-44",8.6495448000000006E-3,5.5339993000000001E-3,1.1635819E-3,1.6331773999999999E-3,9.7058946000000001E-4,3.1097273000000002E-3,5.7017052000000003E-4,2.7268911E-3,3.8704722999999999E-3,9.6170516999999995E-4,9.6170516999999995E-4,5.9467503000000003E-3,3.5561697999999999E-3,7.3775467000000003E-3,1.9600338000000002E-3,7.8699887000000003E-3,8.1956479999999998E-3,1.1109618E-2,null,5.1618087999999998E-3,3.7723428E-3,3.7723428E-3,4.0869074999999996E-3,1.0580908E-2,7.4409013999999999E-3,5.3259678999999999E-3,8.2686124E-3,1.4870043E-3,1.6416197E-3,3.2221024999999999E-3,1.6416197E-3,5.2623957999999998E-3,9.3270121000000004E-3,4.4497075000000004E-3,9.4629469000000004E-4,2.0606042999999998E-3,6.0688998000000003E-3,null,null,1.9003029000000001E-3,5.2907350000000004E-3,6.6086304999999996E-3,5.7017052000000003E-4,null,null,3.2566957999999998E-3,4.6566007999999997E-3,2.5086061000000001E-3,3.5336779000000001E-3,3.2493079000000002E-3,3.6574525E-3,3.5927611999999999E-3,null,237]
[null,"Male 45-49",8.5220598000000005E-3,5.2649155E-3,1.1480984000000001E-3,1.5837102E-3,9.5681637000000002E-4,3.0656732000000002E-3,5.7541503000000001E-4,2.715566E-3,4.0559708000000002E-3,9.7469682999999998E-4,9.7469682999999998E-4,6.0245133999999997E-3,3.5267619000000001E-3,7.4282697999999998E-3,1.9336293E-3,7.7774758000000001E-3,7.7831712999999999E-3,1.0835094E-2,null,5.3017320999999996E-3,3.7046694E-3,3.7046694E-3,4.1293930000000003E-3,1.0457879E-2,7.2355112000000001E-3,5.0560641000000003E-3,8.0397148000000002E-3,1.5439553E-3,1.6873579000000001E-3,3.0806465E-3,1.6873579000000001E-3,5.0680613999999997E-3,8.9306412000000005E-3,4.8346518999999996E-3,9.7459792999999998E-4,2.1621947999999999E-3,5.8755511000000002E-3,null,null,1.8926287E-3,5.2497764000000004E-3,6.3347891E-3,5.7541503000000001E-4,null,null,3.1557588000000001E-3,4.4479910000000001E-3,2.4268031E-3,3.5690239E-3,3.4198137000000001E-3,3.5952607000000001E-3,3.5129205999999999E-3,null,238]
[null,"Male 50-54",8.4350510000000007E-3,5.2777524000000003E-3,1.1801716E-3,1.6931469000000001E-3,9.4797874999999997E-4,3.1197271000000001E-3,5.7655124999999999E-4,2.7095120999999999E-3,3.8571450999999998E-3,1.0000591E-3,1.0000591E-3,5.9555778000000004E-3,3.6681503999999999E-3,7.5499173000000003E-3,1.9271844000000001E-3,7.7390050999999998E-3,7.8312986999999994E-3,1.0788416E-2,null,5.3651771000000001E-3,3.6119380999999999E-3,3.6119380999999999E-3,4.2297313999999997E-3,1.0274544E-2,7.1446649000000001E-3,5.0502945999999996E-3,7.8729559000000008E-3,1.5398291E-3,1.7263202E-3,3.2328791000000002E-3,1.7263202E-3,5.1784635999999997E-3,8.8538135999999996E-3,4.5008282000000002E-3,9.0853910999999998E-4,2.1527896000000002E-3,6.0305543999999997E-3,null,null,1.8880612E-3,5.2292891999999999E-3,6.2543321000000001E-3,5.7655124999999999E-4,null,null,3.2360334999999999E-3,4.4843592000000003E-3,2.4827972999999998E-3,3.3719450999999999E-3,3.1722986999999998E-3,3.5371766000000002E-3,3.4503687999999999E-3,null,239]
[null,"Male 55-59",8.3355587000000005E-3,5.3389287000000004E-3,1.2134562E-3,1.7221669999999999E-3,9.4813237000000001E-4,3.1097402999999998E-3,5.8418646E-4,2.5425989E-3,3.3868881999999999E-3,9.7531568999999999E-4,9.7531568999999999E-4,6.1758574999999996E-3,3.5025542999999998E-3,7.4594696E-3,1.8582213000000001E-3,7.7303451999999996E-3,7.6719494999999997E-3,1.0573122000000001E-2,null,5.3171618000000002E-3,3.5070104000000002E-3,3.5070104000000002E-3,4.1013020000000002E-3,1.0424967E-2,7.1569848999999998E-3,5.1271967000000003E-3,7.8531894999999997E-3,1.4297145000000001E-3,1.5861981000000001E-3,3.5065294000000001E-3,1.5861981000000001E-3,5.2170361999999996E-3,8.7961963999999993E-3,4.4234744000000003E-3,9.6205068999999995E-4,1.9560773000000002E-3,6.0918867000000002E-3,null,null,1.8525359999999999E-3,5.2081840000000003E-3,6.2273377999999997E-3,5.8418646E-4,null,null,3.2738741E-3,4.5746006000000001E-3,2.4040266999999999E-3,3.4771694000000001E-3,3.4507002999999998E-3,3.4277728000000002E-3,3.3185286E-3,null,240]
[null,"Male 60-64",8.4777967999999995E-3,5.3044803999999996E-3,1.2265994E-3,1.7111365E-3,9.5780462000000005E-4,3.0632247E-3,5.9006602000000001E-4,2.5453417999999998E-3,3.4644397E-3,9.7125651999999997E-4,9.7125651999999997E-4,6.1869574999999996E-3,3.3950451999999998E-3,7.4744751E-3,1.7245973999999999E-3,7.7675045000000003E-3,7.6190564000000001E-3,1.0511602E-2,null,5.3989570999999998E-3,3.3583983E-3,3.3583983E-3,4.0754186999999997E-3,1.0444426E-2,7.2174561000000002E-3,5.0468285999999999E-3,7.9151280000000004E-3,1.4986278E-3,1.6676347999999999E-3,3.0856461000000001E-3,1.6676347999999999E-3,5.2624348999999997E-3,8.8342939999999995E-3,3.9622062000000003E-3,9.8205882000000004E-4,1.9958862000000002E-3,6.1166705999999996E-3,null,null,1.8412369999999999E-3,5.1957234000000003E-3,6.1566653000000001E-3,5.9006602000000001E-4,null,null,3.2624081000000001E-3,4.6732016000000003E-3,2.3565826000000001E-3,3.3171831000000001E-3,3.2826032999999999E-3,3.6800189000000001E-3,3.1976588000000002E-3,null,241]
[null,"Male 65-69",8.2822889000000004E-3,5.1326117999999999E-3,1.1788588999999999E-3,1.7683804000000001E-3,9.5741067000000004E-4,3.0708774000000002E-3,5.6969875000000003E-4,2.7303383999999998E-3,3.3076992E-3,9.7709567999999998E-4,9.7709567999999998E-4,6.3357563000000002E-3,3.3576943000000001E-3,7.4688504000000001E-3,1.6204023000000001E-3,7.7884966E-3,7.4948654999999996E-3,1.0407530999999999E-2,null,5.5683110999999999E-3,3.3152183000000001E-3,3.3152183000000001E-3,4.1512818999999996E-3,1.0464335E-2,7.2157643999999996E-3,4.8426422000000004E-3,7.8706088999999993E-3,1.4462399999999999E-3,1.6167931999999999E-3,3.3603329E-3,1.6167931999999999E-3,5.2397138999999999E-3,8.8424003000000008E-3,4.1939830000000001E-3,9.7805390000000009E-4,1.9222067999999999E-3,6.0427915000000002E-3,null,null,1.7815366E-3,5.1573514999999999E-3,6.0252965999999996E-3,5.6969875000000003E-4,null,null,3.2203763000000002E-3,4.6901110999999999E-3,2.6075161999999999E-3,3.2292524999999999E-3,3.1577691E-3,3.3009709000000002E-3,3.1564917999999998E-3,null,242]
[null,"Male 70-74",8.0994832999999999E-3,4.8805656999999997E-3,1.2211647999999999E-3,1.8625872E-3,9.5171353000000002E-4,3.0161686999999999E-3,5.8093912E-4,2.5411351E-3,2.9887503000000002E-3,9.4771017999999998E-4,9.4771017999999998E-4,6.1977077E-3,3.2509511999999998E-3,7.5251459999999999E-3,1.2900793000000001E-3,7.7787000000000004E-3,7.3515587E-3,1.0340548E-2,null,5.6128901999999998E-3,3.25552E-3,3.25552E-3,4.0544732000000003E-3,1.0456548E-2,7.1157486999999997E-3,4.5551211000000001E-3,7.7802786000000001E-3,1.4429135E-3,1.6542664999999999E-3,3.0838824000000002E-3,1.6542664999999999E-3,5.0957980999999999E-3,8.7330359999999996E-3,3.8271962999999998E-3,9.4499934000000002E-4,1.9222529E-3,5.9986691999999999E-3,null,null,1.726359E-3,5.1996400999999998E-3,5.8857794E-3,5.8093912E-4,null,null,3.1871763E-3,4.607379E-3,2.4498304999999998E-3,3.1547702E-3,3.0751834000000001E-3,3.6522633999999999E-3,3.0903815999999999E-3,null,243]
[null,"Male 75-79",8.1041594999999994E-3,5.0192596000000001E-3,1.263531E-3,1.9267120999999999E-3,9.4671838000000004E-4,3.1000779E-3,5.8614788999999999E-4,2.5017025999999999E-3,3.2001985000000002E-3,9.4023830000000003E-4,9.4023830000000003E-4,6.3341823000000004E-3,3.4423958999999999E-3,7.6346523000000001E-3,1.2755315000000001E-3,7.806309E-3,7.3645767000000001E-3,1.0190194E-2,null,5.9139333000000002E-3,3.1851077999999998E-3,3.1851077999999998E-3,3.963416E-3,1.0498939000000001E-2,7.2412285999999999E-3,4.6550207999999996E-3,7.8428079999999997E-3,1.4910233000000001E-3,1.6848071E-3,3.0756397E-3,1.6848071E-3,5.175191E-3,8.5789774999999995E-3,3.7011946999999999E-3,8.8954553999999995E-4,2.0143392E-3,6.2499992000000001E-3,null,null,1.7345209999999999E-3,5.2141282000000002E-3,5.9531098000000001E-3,5.8614788999999999E-4,null,null,3.2065674000000001E-3,4.5654438E-3,2.4103461999999999E-3,3.2393485000000001E-3,3.2759555999999999E-3,3.5090441999999999E-3,3.0171961999999998E-3,null,244]
[null,"Male 80-84",8.2180732999999999E-3,5.3389240000000001E-3,1.1911095E-3,1.7926099E-3,9.5707650000000002E-4,2.8383663999999999E-3,5.9701857000000005E-4,2.7115194E-3,3.1455100999999998E-3,9.2650257000000005E-4,9.2650257000000005E-4,6.5001607999999999E-3,3.1972821000000001E-3,7.5974286999999996E-3,1.0439004000000001E-3,8.0084782000000004E-3,7.7130022000000001E-3,1.0317498E-2,null,5.8017559000000003E-3,3.0039656000000001E-3,3.0039656000000001E-3,4.0828892999999998E-3,1.0457809E-2,7.3356493000000002E-3,5.0232139999999998E-3,7.9290223999999992E-3,1.6832354000000001E-3,1.8689969E-3,2.9159876999999999E-3,1.8689969E-3,5.1767328000000001E-3,9.0416893000000009E-3,3.7998086999999998E-3,9.0742704999999995E-4,1.7044028999999999E-3,6.2518208000000002E-3,null,null,1.6390764999999999E-3,5.3486591E-3,6.1819785999999996E-3,5.9701857000000005E-4,null,null,3.0036895000000001E-3,4.7304169000000002E-3,2.6588078999999999E-3,3.1899685999999998E-3,3.3119642000000002E-3,4.0341815999999997E-3,3.1018446000000001E-3,null,245]
[null,"Male 85-89",8.0300531999999997E-3,5.2177673000000004E-3,1.1900032000000001E-3,1.6954121999999999E-3,9.5936969999999998E-4,3.1083182000000002E-3,5.866437E-4,3.1930196999999999E-3,3.6848097000000001E-3,9.6017669000000004E-4,9.6017669000000004E-4,6.3728177999999996E-3,3.5249230000000001E-3,7.4671353000000003E-3,1.0550480000000001E-3,7.8726652999999997E-3,8.0906534999999995E-3,1.0469278E-2,null,6.2192044999999996E-3,3.1238245E-3,3.1238245E-3,4.5771943000000002E-3,1.0320149000000001E-2,7.2900001000000001E-3,4.8132217000000001E-3,7.8426050000000008E-3,1.5682903000000001E-3,1.8178478000000001E-3,2.8235946999999998E-3,1.8178478000000001E-3,4.9786693000000003E-3,9.4242552000000004E-3,4.4696893999999999E-3,8.7746495E-4,1.5561252000000001E-3,5.6513986000000004E-3,null,null,1.6830629E-3,5.3421616999999996E-3,6.2989913999999996E-3,5.866437E-4,null,null,3.3386338E-3,4.6595530999999999E-3,3.1070758000000002E-3,3.2342897999999998E-3,3.3015077999999998E-3,2.4587694000000001E-3,2.8032754000000002E-3,null,246]
[null,"Male 90+",8.7410723999999992E-3,5.6336232999999996E-3,1.2048938999999999E-3,2.0546508000000002E-3,9.3630247000000004E-4,2.9947117E-3,5.7138624999999998E-4,3.0341852000000001E-3,3.9109154999999998E-3,1.0046896E-3,1.0046896E-3,6.7473617000000001E-3,2.9995993E-3,7.6777008000000002E-3,9.2621282000000002E-4,8.0043469000000006E-3,8.4700203000000005E-3,1.0626116E-2,null,6.1388718999999996E-3,2.8688593000000002E-3,2.8688593000000002E-3,4.6570897000000003E-3,1.0286172999999999E-2,7.6895239999999997E-3,5.3055239999999998E-3,8.1487595999999995E-3,1.5476849E-3,1.6495819000000001E-3,3.0018012000000002E-3,1.6495819000000001E-3,5.4734433000000002E-3,9.4815148000000002E-3,5.1913667E-3,7.1213877999999999E-4,1.3601869999999999E-3,6.2479707000000001E-3,null,null,1.6683865E-3,5.5468263999999996E-3,6.6470582999999996E-3,5.7138624999999998E-4,null,null,3.5114364999999999E-3,5.0144632999999999E-3,2.9667444E-3,3.1207310999999999E-3,3.2703283E-3,0,2.8015970999999999E-3,null,247]

{"sheet":"PM2.5 reduction","index":14,"n_rows":249,"n_cols":56,"rows_kept":249,"cut":false,"hidden":true,"merged":[]}
["Predicted PM2.5 reduction (ug.m-3) arising from 20 mph scheme"]
[]
["SIMD","group","Aberdeen City Local Authority","Aberdeen City Region Deal","Aberdeenshire Local Authority","Angus Local Authority","Argyll & Bute Local Authority","Ayrshire & Arran Health Board","Borders Health Board","Clackmannanshire & Stirling IJB","Clackmannanshire Local Authority","Dumfries & Galloway Health Board","Dumfries & Galloway Local Authority","Dundee City Local Authority","East Ayrshire Local Authority","East Dunbartonshire Local Authority","East Lothian Local Authority","East Renfrewshire Local Authority","Edinburgh & SE Scotland City Region Deal","Edinburgh, City of Local Authority","Eilean Siar Local Authority","Falkirk Local Authority","Fife Health Board","Fife Local Authority","Forth Valley Health Board","Glasgow City Local Authority","Glasgow City Region Deal","Grampian Health Board","Greater Glasgow & Clyde Health Board","Highland Health Board","Highland Local Authority","Inverclyde Local Authority","Inverness & Highland City Region Deal","Lanarkshire Health Board","Lothian Health Board","Midlothian Local Authority","Moray Local Authority","North Ayrshire Local Authority","North Lanarkshire Local Authority","Orkney Health Board","Orkney Islands Local Authority","Perth & Kinross Local Authority","Renfrewshire Local Authority","Scotland","Scottish Borders Local Authority","Shetland Health Board","Shetland Islands Local Authority","South Ayrshire Local Authority","South Lanarkshire Local Authority","Stirling Local Authority","Tay Cities Region Deal ","Tayside Health Board","West Dunbartonshire Local Authority","West Lothian Local Authority","Western Isles Health Board",1]
[null,null,"popS12000033","Aber_deal","popS12000034","popS12000041","popS12000035","popS08000015","popS08000016","ClacksStirIJB","popS12000005","popS08000017","popS12000006","popS12000042","popS12000008","popS12000045","popS12000010","popS12000011","EdinSE_deal","popS12000036","popS12000013","popS12000014","popS08000018","popS12000015","popS08000019","popS12000046","GClyde_deal","popS08000020","popS08000021","popS08000022","popS12000017","popS12000018","Inver_deal","popS08000023","popS08000024","popS12000019","popS12000020","popS12000021","popS12000044","popS08000025","popS12000023","popS12000024","popS12000038","popS00000001","popS12000026","popS08000026","popS12000027","popS12000028","popS12000029","popS12000030","Tay_deal","popS08000027","popS12000039","popS12000040","popS08000028",2]
["All quintiles","16+ Males and Females",null,null,null,null,null,null,null,null,null,null,null,null,null,null,null,null,null,null,null,null,null,null,null,null,null,null,null,null,null,null,null,null,null,null,null,null,null,null,null,null,null,null,null,null,null,null,null,null,null,null,null,null,null,3]
["Q1 and Q2","16+ Males and Females",null,null,null,null,null,null,null,null,null,null,null,null,null,null,null,null,null,null,null,null,null,null,null,null,null,null,null,null,null,null,null,null,null,null,null,null,null,null,null,null,null,null,null,null,null,null,null,null,null,null,null,null,null,4]
["SIMD Q1 (most deprived)","16+ Males and Females",null,null,null,null,null,null,null,null,null,null,null,null,null,null,null,null,null,null,null,null,null,null,null,null,null,null,null,null,null,null,null,null,null,null,null,null,null,null,null,null,null,null,null,null,null,null,null,null,null,null,null,null,null,5]
["SIMD Q2",null,null,null,null,null,null,null,null,null,null,null,null,null,null,null,null,null,null,null,null,null,null,null,null,null,null,null,null,null,null,null,null,null,null,null,null,null,null,null,null,null,null,null,null,null,null,null,null,null,null,null,null,null,null,6]
["SIMD Q3",null,null,null,null,null,null,null,null,null,null,null,null,null,null,null,null,null,null,null,null,null,null,null,null,null,null,null,null,null,null,null,null,null,null,null,null,null,null,null,null,null,null,null,null,null,null,null,null,null,null,null,null,null,null,7]
["SIMD Q4",null,null,null,null,null,null,null,null,null,null,null,null,null,null,null,null,null,null,null,null,null,null,null,null,null,null,null,null,null,null,null,null,null,null,null,null,null,null,null,null,null,null,null,null,null,null,null,null,null,null,null,null,null,null,8]
["SIMD Q5 (least deprived)",null,null,null,null,null,null,null,null,null,null,null,null,null,null,null,null,null,null,null,null,null,null,null,null,null,null,null,null,null,null,null,null,null,null,null,null,null,null,null,null,null,null,null,null,null,null,null,null,null,null,null,null,null,null,9]
["SIMD Q1 (most deprived)","16+ Females",null,null,null,null,null,null,null,null,null,null,null,null,null,null,null,null,null,null,null,null,null,null,null,null,null,null,null,null,null,null,null,null,null,null,null,null,null,null,null,null,null,null,null,null,null,null,null,null,null,null,null,null,null,10]
["SIMD Q2",null,null,null,null,null,null,null,null,null,null,null,null,null,null,null,null,null,null,null,null,null,null,null,null,null,null,null,null,null,null,null,null,null,null,null,null,null,null,null,null,null,null,null,null,null,null,null,null,null,null,null,null,null,null,11]
["SIMD Q3",null,null,null,null,null,null,null,null,null,null,null,null,null,null,null,null,null,null,null,null,null,null,null,null,null,null,null,null,null,null,null,null,null,null,null,null,null,null,null,null,null,null,null,null,null,null,null,null,null,null,null,null,null,null,12]
["SIMD Q4",null,null,null,null,null,null,null,null,null,null,null,null,null,null,null,null,null,null,null,null,null,null,null,null,null,null,null,null,null,null,null,null,null,null,null,null,null,null,null,null,null,null,null,null,null,null,null,null,null,null,null,null,null,null,13]
["SIMD Q5 (least deprived)",null,null,null,null,null,null,null,null,null,null,null,null,null,null,null,null,null,null,null,null,null,null,null,null,null,null,null,null,null,null,null,null,null,null,null,null,null,null,null,null,null,null,null,null,null,null,null,null,null,null,null,null,null,null,14]
["SIMD Q1 (most deprived)","16+ Males",null,null,null,null,null,null,null,null,null,null,null,null,null,null,null,null,null,null,null,null,null,null,null,null,null,null,null,null,null,null,null,null,null,null,null,null,null,null,null,null,null,null,null,null,null,null,null,null,null,null,null,null,null,15]
["SIMD Q2",null,null,null,null,null,null,null,null,null,null,null,null,null,null,null,null,null,null,null,null,null,null,null,null,null,null,null,null,null,null,null,null,null,null,null,null,null,null,null,null,null,null,null,null,null,null,null,null,null,null,null,null,null,null,16]
["SIMD Q3",null,null,null,null,null,null,null,null,null,null,null,null,null,null,null,null,null,null,null,null,null,null,null,null,null,null,null,null,null,null,null,null,null,null,null,null,null,null,null,null,null,null,null,null,null,null,null,null,null,null,null,null,null,null,17]
["SIMD Q4",null,null,null,null,null,null,null,null,null,null,null,null,null,null,null,null,null,null,null,null,null,null,null,null,null,null,null,null,null,null,null,null,null,null,null,null,null,null,null,null,null,null,null,null,null,null,null,null,null,null,null,null,null,null,18]
["SIMD Q5 (least deprived)",null,null,null,null,null,null,null,null,null,null,null,null,null,null,null,null,null,null,null,null,null,null,null,null,null,null,null,null,null,null,null,null,null,null,null,null,null,null,null,null,null,null,null,null,null,null,null,null,null,null,null,null,null,null,19]
["All quintiles","Female 0-4",null,null,null,null,null,null,null,null,null,null,null,null,null,null,null,null,null,null,null,null,null,null,null,null,null,null,null,null,null,null,null,null,null,null,null,null,null,null,null,null,null,null,null,null,null,null,null,null,null,null,null,null,null,20]
[null,"Female 5-9",null,null,null,null,null,null,null,null,null,null,null,null,null,null,null,null,null,null,null,null,null,null,null,null,null,null,null,null,null,null,null,null,null,null,null,null,null,null,null,null,null,null,null,null,null,null,null,null,null,null,null,null,null,21]
[null,"Female 10-15",null,null,null,null,null,null,null,null,null,null,null,null,null,null,null,null,null,null,null,null,null,null,null,null,null,null,null,null,null,null,null,null,null,null,null,null,null,null,null,null,null,null,null,null,null,null,null,null,null,null,null,null,null,22]
[null,"Female 16-19",null,null,null,null,null,null,null,null,null,null,null,null,null,null,null,null,null,null,null,null,null,null,null,null,null,null,null,null,null,null,null,null,null,null,null,null,null,null,null,null,null,null,null,null,null,null,null,null,null,null,null,null,null,23]
[null,"Female 20-24",null,null,null,null,null,null,null,null,null,null,null,null,null,null,null,null,null,null,null,null,null,null,null,null,null,null,null,null,null,null,null,null,null,null,null,null,null,null,null,null,null,null,null,null,null,null,null,null,null,null,null,null,null,24]
[null,"Female 25-29",null,null,null,null,null,null,null,null,null,null,null,null,null,null,null,null,null,null,null,null,null,null,null,null,null,null,null,null,null,null,null,null,null,null,null,null,null,null,null,null,null,null,null,null,null,null,null,null,null,null,null,null,null,25]
[null,"Female 30-34",null,null,null,null,null,null,null,null,null,null,null,null,null,null,null,null,null,null,null,null,null,null,null,null,null,null,null,null,null,null,null,null,null,null,null,null,null,null,null,null,null,null,null,null,null,null,null,null,null,null,null,null,null,26]
[null,"Female 35-39",null,null,null,null,null,null,null,null,null,null,null,null,null,null,null,null,null,null,null,null,null,null,null,null,null,null,null,null,null,null,null,null,null,null,null,null,null,null,null,null,null,null,null,null,null,null,null,null,null,null,null,null,null,27]
[null,"Female 40-44",null,null,null,null,null,null,null,null,null,null,null,null,null,null,null,null,null,null,null,null,null,null,null,null,null,null,null,null,null,null,null,null,null,null,null,null,null,null,null,null,null,null,null,null,null,null,null,null,null,null,null,null,null,28]
[null,"Female 45-49",null,null,null,null,null,null,null,null,null,null,null,null,null,null,null,null,null,null,null,null,null,null,null,null,null,null,null,null,null,null,null,null,null,null,null,null,null,null,null,null,null,null,null,null,null,null,null,null,null,null,null,null,null,29]
[null,"Female 50-54",null,null,null,null,null,null,null,null,null,null,null,null,null,null,null,null,null,null,null,null,null,null,null,null,null,null,null,null,null,null,null,null,null,null,null,null,null,null,null,null,null,null,null,null,null,null,null,null,null,null,null,null,null,30]
[null,"Female 55-59",null,null,null,null,null,null,null,null,null,null,null,null,null,null,null,null,null,null,null,null,null,null,null,null,null,null,null,null,null,null,null,null,null,null,null,null,null,null,null,null,null,null,null,null,null,null,null,null,null,null,null,null,null,31]
[null,"Female 60-64",null,null,null,null,null,null,null,null,null,null,null,null,null,null,null,null,null,null,null,null,null,null,null,null,null,null,null,null,null,null,null,null,null,null,null,null,null,null,null,null,null,null,null,null,null,null,null,null,null,null,null,null,null,32]
[null,"Female 65-69",null,null,null,null,null,null,null,null,null,null,null,null,null,null,null,null,null,null,null,null,null,null,null,null,null,null,null,null,null,null,null,null,null,null,null,null,null,null,null,null,null,null,null,null,null,null,null,null,null,null,null,null,null,33]
[null,"Female 70-74",null,null,null,null,null,null,null,null,null,null,null,null,null,null,null,null,null,null,null,null,null,null,null,null,null,null,null,null,null,null,null,null,null,null,null,null,null,null,null,null,null,null,null,null,null,null,null,null,null,null,null,null,null,34]
[null,"Female 75-79",null,null,null,null,null,null,null,null,null,null,null,null,null,null,null,null,null,null,null,null,null,null,null,null,null,null,null,null,null,null,null,null,null,null,null,null,null,null,null,null,null,null,null,null,null,null,null,null,null,null,null,null,null,35]
[null,"Female 80-84",null,null,null,null,null,null,null,null,null,null,null,null,null,null,null,null,null,null,null,null,null,null,null,null,null,null,null,null,null,null,null,null,null,null,null,null,null,null,null,null,null,null,null,null,null,null,null,null,null,null,null,null,null,36]
[null,"Female 85-89",null,null,null,null,null,null,null,null,null,null,null,null,null,null,null,null,null,null,null,null,null,null,null,null,null,null,null,null,null,null,null,null,null,null,null,null,null,null,null,null,null,null,null,null,null,null,null,null,null,null,null,null,null,37]
[null,"Female 90+",null,null,null,null,null,null,null,null,null,null,null,null,null,null,null,null,null,null,null,null,null,null,null,null,null,null,null,null,null,null,null,null,null,null,null,null,null,null,null,null,null,null,null,null,null,null,null,null,null,null,null,null,null,38]
[null,"Male 0-4",null,null,null,null,null,null,null,null,null,null,null,null,null,null,null,null,null,null,null,null,null,null,null,null,null,null,null,null,null,null,null,null,null,null,null,null,null,null,null,null,null,null,null,null,null,null,null,null,null,null,null,null,null,39]
[null,"Male 5-9",null,null,null,null,null,null,null,null,null,null,null,null,null,null,null,null,null,null,null,null,null,null,null,null,null,null,null,null,null,null,null,null,null,null,null,null,null,null,null,null,null,null,null,null,null,null,null,null,null,null,null,null,null,40]
[null,"Male 10-15",null,null,null,null,null,null,null,null,null,null,null,null,null,null,null,null,null,null,null,null,null,null,null,null,null,null,null,null,null,null,null,null,null,null,null,null,null,null,null,null,null,null,null,null,null,null,null,null,null,null,null,null,null,41]
[null,"Male 16-19",null,null,null,null,null,null,null,null,null,null,null,null,null,null,null,null,null,null,null,null,null,null,null,null,null,null,null,null,null,null,null,null,null,null,null,null,null,null,null,null,null,null,null,null,null,null,null,null,null,null,null,null,null,42]
[null,"Male 20-24",null,null,null,null,null,null,null,null,null,null,null,null,null,null,null,null,null,null,null,null,null,null,null,null,null,null,null,null,null,null,null,null,null,null,null,null,null,null,null,null,null,null,null,null,null,null,null,null,null,null,null,null,null,43]
[null,"Male 25-29",null,null,null,null,null,null,null,null,null,null,null,null,null,null,null,null,null,null,null,null,null,null,null,null,null,null,null,null,null,null,null,null,null,null,null,null,null,null,null,null,null,null,null,null,null,null,null,null,null,null,null,null,null,44]
[null,"Male 30-34",null,null,null,null,null,null,null,null,null,null,null,null,null,null,null,null,null,null,null,null,null,null,null,null,null,null,null,null,null,null,null,null,null,null,null,null,null,null,null,null,null,null,null,null,null,null,null,null,null,null,null,null,null,45]
[null,"Male 35-39",null,null,null,null,null,null,null,null,null,null,null,null,null,null,null,null,null,null,null,null,null,null,null,null,null,null,null,null,null,null,null,null,null,null,null,null,null,null,null,null,null,null,null,null,null,null,null,null,null,null,null,null,null,46]
[null,"Male 40-44",null,null,null,null,null,null,null,null,null,null,null,null,null,null,null,null,null,null,null,null,null,null,null,null,null,null,null,null,null,null,null,null,null,null,null,null,null,null,null,null,null,null,null,null,null,null,null,null,null,null,null,null,null,47]
[null,"Male 45-49",null,null,null,null,null,null,null,null,null,null,null,null,null,null,null,null,null,null,null,null,null,null,null,null,null,null,null,null,null,null,null,null,null,null,null,null,null,null,null,null,null,null,null,null,null,null,null,null,null,null,null,null,null,48]
[null,"Male 50-54",null,null,null,null,null,null,null,null,null,null,null,null,null,null,null,null,null,null,null,null,null,null,null,null,null,null,null,null,null,null,null,null,null,null,null,null,null,null,null,null,null,null,null,null,null,null,null,null,null,null,null,null,null,49]
[null,"Male 55-59",null,null,null,null,null,null,null,null,null,null,null,null,null,null,null,null,null,null,null,null,null,null,null,null,null,null,null,null,null,null,null,null,null,null,null,null,null,null,null,null,null,null,null,null,null,null,null,null,null,null,null,null,null,50]
[null,"Male 60-64",null,null,null,null,null,null,null,null,null,null,null,null,null,null,null,null,null,null,null,null,null,null,null,null,null,null,null,null,null,null,null,null,null,null,null,null,null,null,null,null,null,null,null,null,null,null,null,null,null,null,null,null,null,51]
[null,"Male 65-69",null,null,null,null,null,null,null,null,null,null,null,null,null,null,null,null,null,null,null,null,null,null,null,null,null,null,null,null,null,null,null,null,null,null,null,null,null,null,null,null,null,null,null,null,null,null,null,null,null,null,null,null,null,52]
[null,"Male 70-74",null,null,null,null,null,null,null,null,null,null,null,null,null,null,null,null,null,null,null,null,null,null,null,null,null,null,null,null,null,null,null,null,null,null,null,null,null,null,null,null,null,null,null,null,null,null,null,null,null,null,null,null,null,53]
[null,"Male 75-79",null,null,null,null,null,null,null,null,null,null,null,null,null,null,null,null,null,null,null,null,null,null,null,null,null,null,null,null,null,null,null,null,null,null,null,null,null,null,null,null,null,null,null,null,null,null,null,null,null,null,null,null,null,54]
[null,"Male 80-84",null,null,null,null,null,null,null,null,null,null,null,null,null,null,null,null,null,null,null,null,null,null,null,null,null,null,null,null,null,null,null,null,null,null,null,null,null,null,null,null,null,null,null,null,null,null,null,null,null,null,null,null,null,55]
[null,"Male 85-89",null,null,null,null,null,null,null,null,null,null,null,null,null,null,null,null,null,null,null,null,null,null,null,null,null,null,null,null,null,null,null,null,null,null,null,null,null,null,null,null,null,null,null,null,null,null,null,null,null,null,null,null,null,56]
[null,"Male 90+",null,null,null,null,null,null,null,null,null,null,null,null,null,null,null,null,null,null,null,null,null,null,null,null,null,null,null,null,null,null,null,null,null,null,null,null,null,null,null,null,null,null,null,null,null,null,null,null,null,null,null,null,null,57]
["SIMD Q1 (most deprived)","Female 0-4",5.6304051999999999E-3,5.2726823000000004E-3,2.1127949000000002E-3,1.2744176999999999E-3,8.7780819999999996E-4,1.9458372E-3,8.5950543999999997E-4,2.5724221E-3,2.8174603E-3,9.9262431999999992E-4,9.9262431999999992E-4,4.8204707000000001E-3,2.0126915000000002E-3,3.9418824E-3,1.693377E-3,3.3661018000000001E-3,3.6634936000000001E-3,5.3850254E-3,null,3.803585E-3,2.5112096000000001E-3,2.5112096000000001E-3,3.1775697000000001E-3,5.4388557999999997E-3,4.5522391000000001E-3,5.1068650000000004E-3,4.8694881000000004E-3,9.4227499000000005E-4,9.7439287000000002E-4,2.7682330000000002E-3,9.7439287000000002E-4,3.7573801999999999E-3,4.4733402000000002E-3,2.5849859E-3,1.5740336000000001E-3,1.8115480000000001E-3,4.0344316999999996E-3,null,null,2.7699789000000001E-3,3.8755428999999999E-3,3.9801537E-3,8.5950543999999997E-4,null,null,2.1789887E-3,3.3095996000000001E-3,2.2560995999999999E-3,3.4021141E-3,4.2275465000000002E-3,3.3268429999999999E-3,2.9551804000000001E-3,null,58]
[null,"Female 5-9",5.7158438000000002E-3,5.2317594999999996E-3,2.0601724E-3,1.3065377E-3,8.4536354000000003E-4,1.9132019999999999E-3,8.7026047000000005E-4,2.5076382E-3,2.7432697999999998E-3,9.9728745000000007E-4,9.9728745000000007E-4,4.6695516999999999E-3,2.0265854000000002E-3,4.0182574E-3,1.6587965999999999E-3,3.2097296999999999E-3,3.6056323000000002E-3,5.2832751999999997E-3,null,3.8113437999999999E-3,2.4553176E-3,2.4553176E-3,3.1685671000000002E-3,5.3478064999999998E-3,4.4532026999999997E-3,5.0771319999999998E-3,4.7465852000000003E-3,9.3581656000000005E-4,9.9349662000000009E-4,2.6493759000000001E-3,9.9349662000000009E-4,3.7756326999999999E-3,4.3877763999999996E-3,2.476004E-3,1.5740336000000001E-3,1.7455922000000001E-3,4.0803612000000003E-3,null,null,2.5869847999999999E-3,3.8490849999999999E-3,3.8813496999999999E-3,8.7026047000000005E-4,null,null,2.1804293999999999E-3,3.2219044E-3,2.2217613000000002E-3,3.2569508E-3,4.0365243000000002E-3,3.2144913E-3,2.9101019999999999E-3,null,59]
[null,"Female 10-15",5.4053612999999997E-3,5.1643102999999997E-3,2.0687130999999998E-3,1.2736967E-3,9.1160874999999999E-4,1.9243026999999999E-3,8.8165292999999999E-4,2.4547095E-3,2.6842200000000002E-3,9.6546084000000002E-4,9.6546084000000002E-4,4.7889281999999997E-3,2.0876073000000001E-3,4.1735605000000004E-3,1.6760034E-3,3.1887968000000001E-3,3.5100840000000001E-3,5.1957467E-3,null,3.7341450999999999E-3,2.4161606999999999E-3,2.4161606999999999E-3,3.0667882E-3,5.2570254000000004E-3,4.3482091E-3,4.9767103000000002E-3,4.6312426999999996E-3,9.4885786999999999E-4,9.6890645E-4,2.6015859999999999E-3,9.6890645E-4,3.7501561000000002E-3,4.2581175999999998E-3,2.3973218999999999E-3,1.5740336000000001E-3,1.7568200999999999E-3,4.0471815000000001E-3,null,null,2.5145938000000001E-3,3.7099784000000002E-3,3.7837112E-3,8.8165292999999999E-4,null,null,2.1124221000000001E-3,3.2349431000000001E-3,2.2109437000000002E-3,3.2705425000000002E-3,4.077326E-3,3.2118796000000002E-3,2.9080886999999999E-3,null,60]
[null,"Female 16-19",5.5833864000000002E-3,5.1504102999999999E-3,2.0066346E-3,1.2952476E-3,8.5596176000000003E-4,1.8935471E-3,9.0437714000000003E-4,2.5982542E-3,2.7616834000000002E-3,9.7911793000000002E-4,9.7911793000000002E-4,4.9524577000000002E-3,1.9979351000000002E-3,4.0612946999999998E-3,1.6530181000000001E-3,3.3062565999999998E-3,3.5289873E-3,5.3593926000000004E-3,null,3.8319667999999999E-3,2.3787550000000002E-3,2.3787550000000002E-3,3.1642781E-3,5.5858380999999997E-3,4.5486171999999997E-3,5.0059105000000003E-3,4.9027232000000004E-3,9.3564023999999997E-4,9.7903329999999992E-4,2.5964374999999998E-3,9.7903329999999992E-4,3.7916718999999998E-3,4.3832584999999999E-3,2.4052180999999998E-3,1.5740336000000001E-3,1.7344394000000001E-3,4.0860864999999998E-3,null,null,2.7264894E-3,3.8900053999999999E-3,3.9179189999999997E-3,9.0437714000000003E-4,null,null,2.1464154000000002E-3,3.2846733999999998E-3,2.4538282E-3,3.3606626000000001E-3,4.2667119000000002E-3,3.2542882999999998E-3,2.9908114E-3,null,61]
[null,"Female 20-24",5.9002982000000001E-3,5.5252117999999998E-3,2.1494355000000001E-3,1.2844220999999999E-3,8.9061562999999996E-4,1.9910291000000001E-3,8.9708436E-4,2.8222846000000002E-3,2.7394976999999998E-3,9.6419669000000002E-4,9.6419669000000002E-4,5.5327251999999997E-3,2.1004310999999999E-3,3.8937351000000002E-3,1.6646401E-3,3.3383351E-3,3.8200608E-3,5.6703622E-3,null,3.8335592999999999E-3,2.4649900999999998E-3,2.4649900999999998E-3,3.2923232999999999E-3,5.8321147E-3,4.7957073000000003E-3,5.3467712999999998E-3,5.1601994999999996E-3,9.4540487000000005E-4,9.7485916999999998E-4,2.7894300999999999E-3,9.7485916999999998E-4,3.8337790999999999E-3,4.6430550999999997E-3,2.5066188999999998E-3,1.5740336000000001E-3,1.8141499E-3,4.1070943999999996E-3,null,null,3.5884387E-3,4.1831819999999997E-3,4.2259385999999996E-3,8.9708436E-4,null,null,2.2720378E-3,3.3739236999999998E-3,2.894205E-3,3.8892027999999999E-3,4.8950892000000001E-3,3.4514099999999998E-3,3.005771E-3,null,62]
[null,"Female 25-29",5.8721700000000003E-3,5.4730368E-3,2.1704135000000001E-3,1.1964581999999999E-3,8.6503207999999996E-4,2.0667556999999998E-3,8.8083021999999997E-4,2.6677611999999999E-3,2.8448356000000002E-3,1.0036273999999999E-3,1.0036273999999999E-3,5.2300682000000001E-3,2.2563774000000001E-3,4.2354907000000004E-3,1.7128956000000001E-3,3.4077770999999999E-3,4.0425178999999997E-3,5.6993286000000002E-3,null,3.9286957999999997E-3,2.4743255E-3,2.4743255E-3,3.2863330999999998E-3,5.7196421999999997E-3,4.8696473000000001E-3,5.3804917000000001E-3,5.2019479E-3,9.4585610000000005E-4,9.8469736999999991E-4,2.8775779E-3,9.8469736999999991E-4,3.8222046999999999E-3,4.8862150999999998E-3,2.6636589E-3,1.5740336000000001E-3,1.8277110999999999E-3,4.0859208000000001E-3,null,null,3.4886377E-3,4.2110593000000002E-3,4.3570008E-3,8.8083021999999997E-4,null,null,2.3752449000000002E-3,3.3620313999999998E-3,2.5337068E-3,3.8168002E-3,4.7352109E-3,3.3851433999999999E-3,2.9144287E-3,null,63]
[null,"Female 30-34",5.6222169999999997E-3,5.2648354E-3,2.1458648000000002E-3,1.2955804000000001E-3,8.6668936999999995E-4,2.0660213E-3,9.1159716E-4,2.6467693999999999E-3,2.8511372000000002E-3,1.0222702999999999E-3,1.0222702999999999E-3,4.9705653999999998E-3,2.3274806E-3,4.1510532999999997E-3,1.7368780000000001E-3,3.2317998999999999E-3,4.0609916000000001E-3,5.6169530999999997E-3,null,3.7936432999999999E-3,2.5381797E-3,2.5381797E-3,3.2541305000000002E-3,5.6359493E-3,4.7165840000000002E-3,5.1278314000000004E-3,5.0648702E-3,9.5085397999999997E-4,9.8858296000000007E-4,2.8295852E-3,9.8858296000000007E-4,3.8154281000000001E-3,4.8075252999999997E-3,2.6268416999999998E-3,1.5740336000000001E-3,1.7966648E-3,4.0788455E-3,null,null,3.1036632000000001E-3,3.9864456999999997E-3,4.2219409000000003E-3,9.1159716E-4,null,null,2.2807342E-3,3.3896187999999999E-3,2.4578932000000001E-3,3.6021440999999999E-3,4.3694768E-3,3.3623017000000001E-3,2.8826188999999999E-3,null,64]
[null,"Female 35-39",5.6715054000000004E-3,5.3039593999999997E-3,2.0019756999999998E-3,1.3413964E-3,8.6947827000000003E-4,1.9842261E-3,8.7900814999999997E-4,2.5763995999999998E-3,2.7141503999999999E-3,9.7250688E-4,9.7250688E-4,4.8879771000000004E-3,2.2133091000000001E-3,4.0426654999999997E-3,1.7056965E-3,3.3212933E-3,3.9004977E-3,5.5328271999999998E-3,null,3.8331440000000001E-3,2.4653724000000001E-3,2.4653724000000001E-3,3.1813444000000001E-3,5.5250237000000002E-3,4.6258484999999998E-3,5.1647396999999996E-3,4.9557652999999997E-3,9.7821570999999993E-4,1.0367665999999999E-3,2.7191371E-3,1.0367665999999999E-3,3.8082811999999998E-3,4.6736625999999996E-3,2.5067481000000001E-3,1.5740336000000001E-3,1.7531821999999999E-3,4.1007455E-3,null,null,2.6215398999999999E-3,4.0018312E-3,4.1118492E-3,8.7900814999999997E-4,null,null,2.2301580999999999E-3,3.3333015000000001E-3,2.4028432000000001E-3,3.4157635999999998E-3,4.1877477999999997E-3,3.3014780000000001E-3,2.9341683000000001E-3,null,65]
[null,"Female 40-44",5.5338013999999998E-3,5.2316398E-3,2.0757280000000002E-3,1.2806461999999999E-3,8.7863882000000003E-4,1.9761549999999998E-3,9.1820420000000001E-4,2.5796704000000002E-3,2.7657449E-3,1.0258883999999999E-3,1.0258883999999999E-3,4.8675341999999998E-3,2.1553791999999999E-3,4.0677133999999998E-3,1.6513836E-3,3.3596886999999998E-3,3.6830253E-3,5.4839351000000001E-3,null,3.9051076999999999E-3,2.4626233999999999E-3,2.4626233999999999E-3,3.2831952000000001E-3,5.4116184000000001E-3,4.5299655999999997E-3,5.0731055000000002E-3,4.8523895000000001E-3,8.8963773999999995E-4,8.9644436999999997E-4,2.8103055000000001E-3,8.9644436999999997E-4,3.8068031000000001E-3,4.4811303000000004E-3,2.5559968999999999E-3,1.5740336000000001E-3,1.7738051999999999E-3,4.0881522000000003E-3,null,null,2.6485354000000002E-3,4.0156966999999998E-3,3.9706984999999997E-3,9.1820420000000001E-4,null,null,2.2209357000000001E-3,3.3270989E-3,2.3754422999999998E-3,3.3169531000000001E-3,4.1717398000000001E-3,3.3055939999999998E-3,2.9237687E-3,null,66]
[null,"Female 45-49",5.6803966999999997E-3,5.3331003999999996E-3,2.1221342E-3,1.3186672E-3,8.6080300000000005E-4,1.9508858999999999E-3,8.5950654000000002E-4,2.5276588000000002E-3,2.8008683999999999E-3,9.6993904999999997E-4,9.6993904999999997E-4,4.8801102999999997E-3,2.1532745999999999E-3,4.2616879E-3,1.7012708E-3,3.2117700000000001E-3,3.6277229000000002E-3,5.4656430000000001E-3,null,3.8914666999999999E-3,2.4525434999999999E-3,2.4525434999999999E-3,3.1612533999999999E-3,5.3574963999999999E-3,4.4679706999999997E-3,5.1611167999999997E-3,4.7614514E-3,9.0569246000000005E-4,9.2889689000000004E-4,2.7474130000000002E-3,9.2889689000000004E-4,3.7699803000000001E-3,4.4802864999999997E-3,2.5304055000000001E-3,1.5740336000000001E-3,1.7497338999999999E-3,4.0770299000000001E-3,null,null,2.9664460999999998E-3,3.8886492000000002E-3,3.9289481999999999E-3,8.5950654000000002E-4,null,null,2.1161435000000002E-3,3.2620255000000002E-3,2.2796483000000001E-3,3.3119819000000002E-3,4.2394212999999998E-3,3.3419842000000002E-3,2.9387648999999998E-3,null,67]
[null,"Female 50-54",5.5569299000000003E-3,5.2602799000000004E-3,2.1426596000000001E-3,1.2694703000000001E-3,8.9038791999999998E-4,1.9567052000000001E-3,9.0166827000000001E-4,2.5918283000000001E-3,2.8155573999999999E-3,9.7310851999999996E-4,9.7310851999999996E-4,4.8400763999999997E-3,2.1105474000000001E-3,4.1992692000000003E-3,1.6486788E-3,3.4443595999999999E-3,3.5324866999999999E-3,5.4148724000000004E-3,null,3.9028751000000001E-3,2.4288532E-3,2.4288532E-3,3.2478091E-3,5.3191287E-3,4.4911285000000002E-3,5.1040336999999998E-3,4.7692358000000004E-3,9.1613928000000002E-4,9.3011609999999996E-4,2.8341074999999999E-3,9.3011609999999996E-4,3.8243383000000001E-3,4.3947734000000004E-3,2.7782548999999998E-3,1.5740336000000001E-3,1.7587764E-3,4.1249505999999998E-3,null,null,2.8825391E-3,3.9510233000000002E-3,3.943027E-3,9.0166827000000001E-4,null,null,2.2547878000000001E-3,3.3223517000000001E-3,2.3655860999999999E-3,3.358874E-3,4.2649246999999996E-3,3.2647124E-3,2.8893105000000001E-3,null,68]
[null,"Female 55-59",5.6383288E-3,5.2837860000000004E-3,2.1531058E-3,1.2318209999999999E-3,8.5726537999999996E-4,1.9711225999999998E-3,9.0234319E-4,2.6066118999999999E-3,2.9027502E-3,9.5327949000000001E-4,9.5327949000000001E-4,4.9043647000000003E-3,2.1228006E-3,4.0871338E-3,1.7005544999999999E-3,3.1887486000000001E-3,3.5731044999999999E-3,5.3566726999999996E-3,null,3.8623016E-3,2.4339790000000002E-3,2.4339790000000002E-3,3.2240085000000002E-3,5.3364340999999997E-3,4.4629112999999996E-3,5.1269400999999996E-3,4.7569941000000001E-3,9.2048477000000002E-4,9.5689726999999996E-4,2.8727688000000002E-3,9.5689726999999996E-4,3.7833027999999999E-3,4.3523935999999997E-3,2.4315219000000002E-3,1.5740336000000001E-3,1.8042672999999999E-3,4.0849036999999998E-3,null,null,2.7588971000000002E-3,3.9182104999999998E-3,3.9330781E-3,9.0234319E-4,null,null,2.1875340000000001E-3,3.3167701000000002E-3,2.3122311000000001E-3,3.3931585E-3,4.2797568999999999E-3,3.3145261E-3,2.8777958000000001E-3,null,69]
[null,"Female 60-64",5.5708149000000002E-3,5.1896349000000001E-3,2.0470209E-3,1.2536462E-3,8.7983690999999999E-4,1.9581413000000002E-3,8.9134532000000001E-4,2.4504396000000002E-3,2.6056170000000002E-3,9.3200919000000003E-4,9.3200919000000003E-4,5.0265398000000003E-3,2.1162940999999999E-3,4.0528150000000004E-3,1.6621063999999999E-3,3.2425988E-3,3.4914595999999999E-3,5.4042841999999997E-3,null,3.8360503999999998E-3,2.4162706000000001E-3,2.4162706000000001E-3,3.1759811000000001E-3,5.3112400000000001E-3,4.4257832E-3,4.8943208999999996E-3,4.7300961000000001E-3,8.9145597000000001E-4,8.9795550000000004E-4,2.8815193E-3,8.9795550000000004E-4,3.8046625000000001E-3,4.3412833000000001E-3,2.5799742000000001E-3,1.5740336000000001E-3,1.7823387999999999E-3,4.1101156000000003E-3,null,null,2.5955953000000001E-3,3.9685401E-3,3.8687537999999998E-3,8.9134532000000001E-4,null,null,2.1765450999999998E-3,3.3407451E-3,2.2633957999999999E-3,3.3715488000000001E-3,4.3150265999999998E-3,3.3071913999999998E-3,2.8309381999999999E-3,null,70]
[null,"Female 65-69",5.4359161000000003E-3,5.0420402999999999E-3,2.2192638999999998E-3,1.2229197000000001E-3,8.6123362E-4,1.9062958E-3,9.0267549999999998E-4,2.5729569999999998E-3,2.7584828999999999E-3,9.6105086E-4,9.6105086E-4,4.8898565999999999E-3,1.9332746E-3,4.0043606000000004E-3,1.5981857E-3,3.2807792999999998E-3,3.5033926999999999E-3,5.4343096000000002E-3,null,3.8954122000000001E-3,2.4261179000000001E-3,2.4261179000000001E-3,3.2246014999999999E-3,5.3672021999999998E-3,4.4039250000000004E-3,4.7803037000000003E-3,4.7224457000000003E-3,9.1360789E-4,9.5437205000000001E-4,2.8658637E-3,9.5437205000000001E-4,3.7740810999999999E-3,4.3519498000000002E-3,2.6043010999999999E-3,1.5740336000000001E-3,1.7999524E-3,4.1027655999999997E-3,null,null,2.7337593000000002E-3,3.9431433999999998E-3,3.8479920000000002E-3,9.0267549999999998E-4,null,null,2.1968039000000001E-3,3.2875030000000002E-3,2.3526454000000001E-3,3.3581766999999998E-3,4.3189138999999996E-3,3.2295039999999998E-3,2.8764481999999998E-3,null,71]
[null,"Female 70-74",5.5132317000000002E-3,5.1153135000000004E-3,2.2695941999999998E-3,1.2942958000000001E-3,8.7439414E-4,1.9580447000000002E-3,9.2340360000000004E-4,2.5720577999999998E-3,2.8207223E-3,9.4186729999999998E-4,9.4186729999999998E-4,4.9781770999999999E-3,2.1029961999999998E-3,4.2913975000000004E-3,1.6386981999999999E-3,3.2984186000000002E-3,3.4720317999999998E-3,5.4915724000000003E-3,null,3.8742116E-3,2.423377E-3,2.423377E-3,3.2015652E-3,5.3689727000000003E-3,4.4394079999999997E-3,4.9401265999999997E-3,4.7844476E-3,9.1422325999999997E-4,9.4024813999999996E-4,3.0813633999999999E-3,9.4024813999999996E-4,3.7447628999999999E-3,4.3720282000000001E-3,2.7459846000000001E-3,1.5740336000000001E-3,1.8496459999999999E-3,4.0748892E-3,null,null,2.5116301E-3,3.8695830999999998E-3,3.8648932E-3,9.2340360000000004E-4,null,null,2.0379066000000001E-3,3.2208341000000001E-3,2.3174160000000001E-3,3.3102878000000001E-3,4.2933351000000002E-3,3.3286513999999999E-3,2.8771842000000001E-3,null,72]
[null,"Female 75-79",5.5570654000000001E-3,5.1998872999999999E-3,2.1871687E-3,1.2955929E-3,9.0041762000000005E-4,1.9888788999999998E-3,9.4319781000000002E-4,2.6505063000000001E-3,2.7934483000000001E-3,9.1337598999999996E-4,9.1337598999999996E-4,5.0123837000000003E-3,2.2141488999999999E-3,4.0591391999999999E-3,1.7226251E-3,3.3042985E-3,3.570915E-3,5.5276294999999998E-3,null,3.9123315000000004E-3,2.4021193E-3,2.4021193E-3,3.3678228999999998E-3,5.4385867000000003E-3,4.5418706999999997E-3,5.0401580999999999E-3,4.8403027000000001E-3,9.7597774999999998E-4,1.0277906E-3,3.0462388E-3,1.0277906E-3,3.8593757999999998E-3,4.4921170999999999E-3,2.8623755000000001E-3,1.5740336000000001E-3,1.8045842E-3,4.2201458000000001E-3,null,null,2.6734077999999999E-3,3.8935255999999999E-3,3.9852476000000001E-3,9.4319781000000002E-4,null,null,2.1647117E-3,3.2929514999999999E-3,2.4950567000000001E-3,3.3655871999999998E-3,4.3547478999999998E-3,3.2267722000000002E-3,2.9050986999999999E-3,null,73]
[null,"Female 80-84",5.5165257999999998E-3,5.0980098999999996E-3,2.2593823E-3,1.0933818999999999E-3,8.8800379000000004E-4,2.0546982999999999E-3,9.2791300000000005E-4,2.5304327999999998E-3,2.8044459999999999E-3,9.2105078999999996E-4,9.2105078999999996E-4,4.9977418999999999E-3,2.3732579E-3,4.1040918000000001E-3,1.7098428000000001E-3,3.2597282E-3,3.5724343999999999E-3,5.4667387000000003E-3,null,3.8717872999999999E-3,2.3998863E-3,2.3998863E-3,3.2858524999999999E-3,5.4413889999999996E-3,4.5817788000000002E-3,4.9115558999999996E-3,4.8849940999999997E-3,9.5125386999999999E-4,1.0060706E-3,3.2380393E-3,1.0060706E-3,3.8660432000000001E-3,4.4566025000000002E-3,2.9124265999999998E-3,1.5740336000000001E-3,1.8171628E-3,4.1892808000000004E-3,null,null,2.9887692000000001E-3,3.9937528999999996E-3,4.0361564999999997E-3,9.2791300000000005E-4,null,null,2.1004854000000002E-3,3.3822769999999999E-3,2.2863899000000001E-3,3.4082296999999998E-3,4.3787011000000001E-3,3.460645E-3,2.8923286999999998E-3,null,74]
[null,"Female 85-89",5.7952752999999996E-3,5.4389987999999998E-3,2.1731271E-3,1.3055024E-3,8.6810428000000004E-4,2.3093292999999998E-3,9.4602868000000001E-4,2.7398015000000002E-3,2.9289924999999998E-3,1.0580976E-3,1.0580976E-3,4.9528562999999999E-3,2.8073846000000002E-3,4.1933231999999997E-3,1.8287355999999999E-3,3.3294391E-3,3.7491744999999998E-3,5.4467385999999998E-3,null,3.9574889999999998E-3,2.5488243E-3,2.5488243E-3,3.4818294999999998E-3,5.4672267000000002E-3,4.6163335999999996E-3,5.2011549000000002E-3,4.9195043000000004E-3,9.6460345000000001E-4,1.0789726999999999E-3,3.3360894000000001E-3,1.0789726999999999E-3,3.8905260000000001E-3,4.6240799000000004E-3,3.1497194000000002E-3,1.5740336000000001E-3,1.8827992E-3,4.1587665000000001E-3,null,null,2.8648562999999999E-3,3.9899358999999999E-3,4.1076024000000003E-3,9.4602868000000001E-4,null,null,2.2127306999999998E-3,3.4395223000000001E-3,2.5212531999999998E-3,3.5474998999999998E-3,4.4178534000000004E-3,3.5656921000000001E-3,2.6758274000000001E-3,null,75]
[null,"Female 90+",5.7743895000000002E-3,5.5370246999999996E-3,2.4038097E-3,1.3269961E-3,8.2245235999999996E-4,2.2761775000000001E-3,8.9918484000000003E-4,2.5924358E-3,2.6270960999999998E-3,7.7013171000000005E-4,7.7013171000000005E-4,5.0076273999999999E-3,2.8536049999999999E-3,4.3996256000000001E-3,1.7151815E-3,3.6100068000000001E-3,3.6032299999999998E-3,5.3759356999999999E-3,null,4.1451207000000002E-3,2.4739783E-3,2.4739783E-3,3.5047475000000001E-3,5.4331748000000001E-3,4.6042148E-3,5.4284496999999999E-3,4.9668033999999998E-3,9.0867879999999995E-4,9.9490513000000005E-4,3.2675680999999998E-3,9.9490513000000005E-4,3.7902921999999999E-3,4.4127931000000004E-3,2.5866766999999998E-3,1.5740336000000001E-3,1.8705289999999999E-3,4.1189579999999998E-3,null,null,3.2016436999999999E-3,4.1546407E-3,4.1071726000000003E-3,8.9918484000000003E-4,null,null,2.1789639999999998E-3,3.3303808999999998E-3,2.5333851E-3,3.5293939999999999E-3,4.5997803E-3,3.5051748000000001E-3,2.8966714000000001E-3,null,76]
[null,"Male 0-4",5.7298317999999997E-3,5.3271013000000004E-3,2.1144082E-3,1.3655367999999999E-3,8.5475144000000003E-4,1.9380085999999999E-3,8.8170665999999997E-4,2.5947669E-3,2.8100079000000001E-3,9.6691132000000001E-4,9.6691132000000001E-4,4.8319981000000001E-3,2.0086040999999998E-3,4.1135E-3,1.7114382999999999E-3,3.3534244E-3,3.6560716000000001E-3,5.3314581000000003E-3,null,3.8002369000000001E-3,2.5181482000000001E-3,2.5181482000000001E-3,3.1804272000000001E-3,5.4649981E-3,4.567916E-3,5.1942085999999998E-3,4.8923339000000003E-3,9.2218786999999998E-4,9.5072679999999999E-4,2.6847402999999998E-3,9.5072679999999999E-4,3.7869073E-3,4.4316156000000001E-3,2.5207337000000001E-3,1.5740336000000001E-3,1.7698309000000001E-3,4.0728835999999996E-3,null,null,2.7496270000000001E-3,3.8762879999999999E-3,3.9778519E-3,8.8170665999999997E-4,null,null,2.2430538999999999E-3,3.2866914000000001E-3,2.3026546000000001E-3,3.3809475000000002E-3,4.1880709999999998E-3,3.2768385E-3,2.9040882000000001E-3,null,77]
[null,"Male 5-9",5.5693434999999998E-3,5.1313768999999999E-3,2.1236555000000001E-3,1.2526836999999999E-3,8.8740274E-4,1.9386271000000001E-3,8.8044377999999999E-4,2.5743939999999998E-3,2.8150334999999999E-3,9.7482080999999996E-4,9.7482080999999996E-4,4.6468856999999997E-3,2.0789738999999999E-3,4.0778699000000003E-3,1.6548343000000001E-3,3.2401461999999998E-3,3.6268923000000002E-3,5.3125209999999997E-3,null,3.7578866E-3,2.4255025000000001E-3,2.4255025000000001E-3,3.1512475E-3,5.3532058E-3,4.4515468000000001E-3,4.9701514999999996E-3,4.7391639000000001E-3,9.1872980999999998E-4,9.3398009999999998E-4,2.5823439999999999E-3,9.3398009999999998E-4,3.801221E-3,4.4142738999999997E-3,2.4478789E-3,1.5740336000000001E-3,1.7534358000000001E-3,4.0705189999999999E-3,null,null,2.5826098999999999E-3,3.7465383999999999E-3,3.8664061999999998E-3,8.8044377999999999E-4,null,null,2.215219E-3,3.2990544999999998E-3,2.3216419E-3,3.2025260999999998E-3,3.9910086999999997E-3,3.3013064000000001E-3,2.8499125000000002E-3,null,78]
[null,"Male 10-15",5.5101244000000001E-3,5.1622572E-3,2.1316826E-3,1.2978867000000001E-3,8.6702942000000001E-4,1.9151671E-3,8.7563186999999997E-4,2.5909147E-3,2.8639652000000001E-3,1.0101227E-3,1.0101227E-3,4.7010053E-3,2.0595816999999998E-3,4.0026315999999998E-3,1.6576371E-3,3.2479944999999999E-3,3.5411164000000001E-3,5.2429874999999999E-3,null,3.7953017999999999E-3,2.4627694000000002E-3,2.4627694000000002E-3,3.1798051E-3,5.2791983000000002E-3,4.3957503999999996E-3,4.9446109000000002E-3,4.6772258000000004E-3,9.4660372000000001E-4,9.9330476999999993E-4,2.5401879E-3,9.9330476999999993E-4,3.7796597000000001E-3,4.2631010999999996E-3,2.4747069E-3,1.5740336000000001E-3,1.7556282E-3,4.0507889000000004E-3,null,null,2.402164E-3,3.6951762000000002E-3,3.8353342000000002E-3,8.7563186999999997E-4,null,null,2.1269047E-3,3.2602340999999999E-3,2.2717877000000002E-3,3.2831399999999999E-3,4.0249038000000001E-3,3.2884762999999999E-3,2.8957021E-3,null,79]
[null,"Male 16-19",5.5281734000000001E-3,5.2920487000000004E-3,2.0051904000000001E-3,1.3154492000000001E-3,8.5818785000000002E-4,1.9121976E-3,8.8390085000000004E-4,2.5741637000000002E-3,2.7935138999999999E-3,9.8945153999999993E-4,9.8945153999999993E-4,5.0209262000000003E-3,1.9712014999999999E-3,4.0732371E-3,1.6690033E-3,3.1812983E-3,3.5362758E-3,5.2983863000000001E-3,null,3.7669747E-3,2.4515601999999998E-3,2.4515601999999998E-3,3.0950203000000001E-3,5.4999393999999998E-3,4.5294947999999996E-3,5.0761028999999997E-3,4.8678000000000003E-3,8.6720549999999997E-4,8.7349309E-4,2.5589336E-3,8.7349309E-4,3.7542724E-3,4.3290840000000004E-3,2.6104571000000001E-3,1.5740336000000001E-3,1.7518065E-3,4.0338118999999999E-3,null,null,2.3811549999999998E-3,3.8087491000000002E-3,3.9269426000000003E-3,8.8390085000000004E-4,null,null,2.2897497E-3,3.2390881999999998E-3,2.3665226E-3,3.3579343E-3,4.2292420000000002E-3,3.3189724E-3,2.9834296999999999E-3,null,80]
[null,"Male 20-24",5.9454013E-3,5.4328036000000001E-3,2.1167381E-3,1.2679767000000001E-3,8.5375860000000002E-4,1.9478449999999999E-3,8.8526337999999996E-4,2.8369557000000002E-3,2.7711350000000001E-3,9.9127332E-4,9.9127332E-4,5.5858892999999998E-3,2.0867699999999999E-3,3.8359165000000001E-3,1.6393092999999999E-3,3.3137696E-3,3.7257472999999998E-3,5.5562891000000003E-3,null,3.9003334999999999E-3,2.4606118E-3,2.4606118E-3,3.3522322999999998E-3,5.8384220999999998E-3,4.8042941000000002E-3,5.2855690000000004E-3,5.1923636000000004E-3,9.1751199000000003E-4,9.6580275999999998E-4,2.7317638000000002E-3,9.6580275999999998E-4,3.8272498999999999E-3,4.5278580000000001E-3,2.6369847E-3,1.5740336000000001E-3,1.7655100999999999E-3,4.0769335000000002E-3,null,null,3.2676163000000002E-3,4.1390107999999997E-3,4.2200019E-3,8.8526337999999996E-4,null,null,2.2066593999999998E-3,3.3719137000000001E-3,2.8938867999999999E-3,3.7954496E-3,4.8179696000000003E-3,3.3337661999999998E-3,2.9866180999999999E-3,null,81]
[null,"Male 25-29",5.9114312999999996E-3,5.6478199999999996E-3,2.1397672E-3,1.2722583E-3,8.8269415E-4,2.0502259E-3,9.1186939999999997E-4,2.5875515000000002E-3,2.7635677E-3,9.9515972999999992E-4,9.9515972999999992E-4,5.5062616999999999E-3,2.2819607999999998E-3,4.0155117999999997E-3,1.7176140999999999E-3,3.2913727000000001E-3,4.1308248999999998E-3,5.7077663999999997E-3,null,3.9104409999999997E-3,2.5350044000000001E-3,2.5350044000000001E-3,3.2769308999999998E-3,5.8187548999999996E-3,4.9377643000000004E-3,5.5959247999999998E-3,5.2765355999999999E-3,9.4602781000000002E-4,9.8248455000000002E-4,2.8457834999999999E-3,9.8248455000000002E-4,3.8662394999999998E-3,4.9245493E-3,2.8620427000000002E-3,1.5740336000000001E-3,1.7883052000000001E-3,4.1107484000000001E-3,null,null,3.7802415999999999E-3,4.2097628999999996E-3,4.4553298999999999E-3,9.1186939999999997E-4,null,null,2.2797325999999998E-3,3.4158871999999999E-3,2.4677013999999998E-3,4.0529529000000002E-3,4.9466235000000004E-3,3.3238287999999999E-3,2.9790096000000001E-3,null,82]
[null,"Male 30-34",5.8088921999999996E-3,5.3637711999999999E-3,2.1989637000000002E-3,1.3386825000000001E-3,8.7022968000000003E-4,2.0524204999999998E-3,9.3623920000000002E-4,2.6663711999999999E-3,2.7422656E-3,1.0253093E-3,1.0253093E-3,5.3850180000000001E-3,2.3171789999999999E-3,4.2978245999999998E-3,1.7131996999999999E-3,3.3440081999999999E-3,4.0911934E-3,5.7648685999999996E-3,null,4.0604142000000001E-3,2.5770173000000001E-3,2.5770173000000001E-3,3.4112544E-3,5.8163651E-3,4.9067907999999997E-3,5.3221765000000002E-3,5.2673994E-3,1.0205400999999999E-3,1.0798578000000001E-3,2.9501491E-3,1.0798578000000001E-3,3.8432436999999999E-3,4.9101216999999997E-3,2.7705056000000001E-3,1.5740336000000001E-3,1.7915004E-3,4.1330294E-3,null,null,3.7046551999999999E-3,4.1849338000000003E-3,4.4253836E-3,9.3623920000000002E-4,null,null,2.2484963000000001E-3,3.3355366999999999E-3,2.5949709000000001E-3,3.9176354000000002E-3,4.8717031999999999E-3,3.4212139000000001E-3,2.941394E-3,null,83]
[null,"Male 35-39",5.8621237999999997E-3,5.5725011000000001E-3,2.0917594E-3,1.4079838000000001E-3,9.0390152999999997E-4,2.0874766999999998E-3,8.7222771000000003E-4,2.6279744000000001E-3,2.8833861E-3,1.0405054999999999E-3,1.0405054999999999E-3,5.1145721E-3,2.4219961000000001E-3,3.8937492999999998E-3,1.7114806E-3,3.2851156000000001E-3,3.9781727999999997E-3,5.6039100000000001E-3,null,3.9114066999999999E-3,2.5303081999999998E-3,2.5303081999999998E-3,3.3388506000000002E-3,5.7036396999999997E-3,4.7857174999999998E-3,5.4323929000000002E-3,5.162898E-3,9.4934588000000005E-4,9.7194662999999998E-4,2.9716650000000001E-3,9.7194662999999998E-4,3.8396937000000002E-3,4.7667044999999998E-3,2.7469910999999999E-3,1.5740336000000001E-3,1.8193230000000001E-3,4.1024499000000001E-3,null,null,3.3118524999999998E-3,4.1928282000000001E-3,4.2947842999999999E-3,8.7222771000000003E-4,null,null,2.2151580000000001E-3,3.4038406000000002E-3,2.3274251999999998E-3,3.5724225000000002E-3,4.4550038999999998E-3,3.4330305999999999E-3,2.9195545000000002E-3,null,84]
[null,"Male 40-44",5.6421552000000003E-3,5.2825058999999997E-3,2.0231836999999998E-3,1.3526628E-3,9.0886943999999995E-4,2.0658749E-3,9.1074167999999995E-4,2.6148634E-3,2.7841234E-3,9.8792347E-4,9.8792347E-4,5.0426293000000004E-3,2.312087E-3,4.1264891999999997E-3,1.7102936999999999E-3,3.2661646E-3,3.8713682000000001E-3,5.5442414999999998E-3,null,3.9562727000000001E-3,2.5279101E-3,2.5279101E-3,3.3756793E-3,5.7095549999999998E-3,4.7359606000000002E-3,5.1174400999999996E-3,5.1456004999999999E-3,9.3546731E-4,9.4834871999999995E-4,2.8844818000000002E-3,9.4834871999999995E-4,3.8210586999999998E-3,4.6410345999999998E-3,2.5410911000000001E-3,1.5740336000000001E-3,1.7918540000000001E-3,4.1078110000000003E-3,null,null,3.0160720999999999E-3,4.1318014000000002E-3,4.1781389000000004E-3,9.1074167999999995E-4,null,null,2.3390984000000001E-3,3.3613299E-3,2.4190665999999999E-3,3.4206200000000001E-3,4.2949026E-3,3.4007004000000001E-3,2.9430271E-3,null,85]
[null,"Male 45-49",5.7862410000000001E-3,5.4478929000000001E-3,2.1460814999999999E-3,1.306453E-3,8.9283072E-4,1.9506866999999999E-3,9.0938824000000003E-4,2.6090521999999998E-3,2.7362225000000001E-3,9.3320024000000004E-4,9.3320024000000004E-4,5.2017812E-3,2.1515115999999998E-3,4.2862663999999997E-3,1.6861646E-3,3.3892784E-3,3.6887499000000002E-3,5.5611054000000004E-3,null,3.9356625999999997E-3,2.4187153000000002E-3,2.4187153000000002E-3,3.3297865000000001E-3,5.5534295000000001E-3,4.5990283000000003E-3,5.2200188000000002E-3,4.9562356E-3,9.4504649000000005E-4,9.7561185E-4,2.9099651000000001E-3,9.7561185E-4,3.8126869999999999E-3,4.5734788E-3,2.6972114999999999E-3,1.5740336000000001E-3,1.7353492E-3,4.1109403000000001E-3,null,null,3.1252584999999999E-3,4.0223105E-3,4.0727573999999999E-3,9.0938824000000003E-4,null,null,2.1771657999999998E-3,3.3110056999999999E-3,2.4642672000000001E-3,3.4770970000000002E-3,4.5228776999999996E-3,3.2933541000000001E-3,2.913283E-3,null,86]
[null,"Male 50-54",5.6293773999999998E-3,5.3187623E-3,2.1380635000000001E-3,1.2334819999999999E-3,8.8045937999999999E-4,1.9724558E-3,9.1649736999999999E-4,2.6174532000000001E-3,2.8068415999999998E-3,9.4598130000000003E-4,9.4598130000000003E-4,5.0557236999999996E-3,2.1154578000000001E-3,4.1370369000000001E-3,1.6577139E-3,3.3049905E-3,3.7248579000000001E-3,5.5605708999999998E-3,null,3.9350139000000001E-3,2.4084607000000001E-3,2.4084607000000001E-3,3.302658E-3,5.5548749000000003E-3,4.5938669000000001E-3,5.1592764999999997E-3,4.9098114999999998E-3,9.3031354000000001E-4,9.6638686999999995E-4,2.9421287999999999E-3,9.6638686999999995E-4,3.8510913000000002E-3,4.5728994999999998E-3,2.5718871000000002E-3,1.5740336000000001E-3,1.7911148E-3,4.1354820000000002E-3,null,null,2.8471681000000002E-3,3.9985254000000003E-3,4.0477420999999996E-3,9.1649736999999999E-4,null,null,2.2217969000000001E-3,3.3481639999999998E-3,2.4121408E-3,3.4213338999999998E-3,4.3434883000000001E-3,3.2452568E-3,2.8996037E-3,null,87]
[null,"Male 55-59",5.6241065999999996E-3,5.2021932999999996E-3,2.1228592E-3,1.2149120000000001E-3,8.8953953999999997E-4,2.0056855999999999E-3,9.3269884000000004E-4,2.6261640999999999E-3,2.8154209999999998E-3,9.4216904999999999E-4,9.4216904999999999E-4,5.0338795000000004E-3,2.1942331999999999E-3,4.0447926000000004E-3,1.6738541E-3,3.2247584E-3,3.5621874999999998E-3,5.4370471999999996E-3,null,3.8888319E-3,2.4415581E-3,2.4415581E-3,3.2472918000000001E-3,5.4833060000000003E-3,4.5287325000000003E-3,5.0341650000000002E-3,4.8598660999999996E-3,9.0079905999999996E-4,9.067767E-4,3.0110091999999999E-3,9.067767E-4,3.7942121E-3,4.4413776999999996E-3,2.5912735E-3,1.5740336000000001E-3,1.7992711999999999E-3,4.0946048999999998E-3,null,null,2.9441596000000002E-3,3.9335378000000002E-3,3.9708260000000002E-3,9.3269884000000004E-4,null,null,2.2479342000000001E-3,3.3111081000000001E-3,2.4310842000000001E-3,3.4430443999999998E-3,4.4226617999999999E-3,3.3615909000000001E-3,2.8815571999999999E-3,null,88]
[null,"Male 60-64",5.3483918000000004E-3,5.0901994000000002E-3,2.0895827999999998E-3,1.2459764999999999E-3,8.673296E-4,1.9781873999999999E-3,9.0126745999999998E-4,2.5593603000000002E-3,2.7118044000000001E-3,9.0907933000000001E-4,9.0907933000000001E-4,5.0946968000000004E-3,2.1687446E-3,4.1083339999999999E-3,1.6716452000000001E-3,3.1750174000000002E-3,3.6598469999999999E-3,5.5310283999999996E-3,null,3.8929187999999998E-3,2.4542880999999998E-3,2.4542880999999998E-3,3.2455225E-3,5.5138106000000003E-3,4.5610232999999997E-3,4.9457983000000001E-3,4.8989997999999996E-3,8.9070084999999998E-4,9.0657145000000005E-4,2.9850673999999998E-3,9.0657145000000005E-4,3.8252871000000002E-3,4.5521859999999997E-3,2.7819887999999998E-3,1.5740336000000001E-3,1.7525784E-3,4.1082957999999999E-3,null,null,2.9864904999999998E-3,4.0824952999999999E-3,3.9965347000000002E-3,9.0126745999999998E-4,null,null,2.2656929E-3,3.3928208999999998E-3,2.3948976000000002E-3,3.4741339999999998E-3,4.4844784000000002E-3,3.2362121000000001E-3,2.8325147000000002E-3,null,89]
[null,"Male 65-69",5.4217841999999999E-3,5.0743376000000001E-3,2.1978049000000001E-3,1.2825325E-3,9.0078450999999998E-4,1.9527759E-3,9.0381928000000001E-4,2.5890570000000001E-3,2.8114959000000001E-3,8.9029764000000001E-4,8.9029764000000001E-4,4.9655819E-3,2.0840003E-3,3.9173695000000001E-3,1.6746878000000001E-3,3.4348208000000002E-3,3.4561398999999999E-3,5.4420312E-3,null,3.8681041999999999E-3,2.4044080999999998E-3,2.4044080999999998E-3,3.2681194E-3,5.5055837000000003E-3,4.5102709000000001E-3,4.9152327999999997E-3,4.8633670000000004E-3,8.6376518999999995E-4,8.4413640000000002E-4,3.0171784999999999E-3,8.4413640000000002E-4,3.8042571000000002E-3,4.3568239E-3,2.6608659E-3,1.5740336000000001E-3,1.7849942999999999E-3,4.1133137000000002E-3,null,null,2.9482327000000001E-3,4.0542473999999997E-3,3.9082960999999999E-3,9.0381928000000001E-4,null,null,2.1918126999999998E-3,3.3225033000000002E-3,2.3430997999999998E-3,3.3804058999999998E-3,4.3684682000000004E-3,3.2733527E-3,2.8592172999999999E-3,null,90]
[null,"Male 70-74",5.6624585000000002E-3,5.3007617E-3,2.1961954999999999E-3,1.1990777E-3,8.5689122000000002E-4,1.9512592E-3,9.3619415000000005E-4,2.6194056999999998E-3,2.7670938999999999E-3,9.0973894000000003E-4,9.0973894000000003E-4,4.9369632999999996E-3,2.0941712000000002E-3,4.2574238E-3,1.6816391E-3,3.3765594E-3,3.4581693000000002E-3,5.5958055999999999E-3,null,3.9487658000000002E-3,2.3854049000000001E-3,2.3854049000000001E-3,3.2593268000000002E-3,5.5267991999999998E-3,4.5031612000000004E-3,5.0725945999999999E-3,4.8826030000000001E-3,8.4995012999999995E-4,8.4420393000000005E-4,2.8416750000000001E-3,8.4420393000000005E-4,3.7511076999999999E-3,4.4100722000000002E-3,2.7768910000000001E-3,1.5740336000000001E-3,1.8046795E-3,4.1048978E-3,null,null,2.8174737999999999E-3,4.0366608000000003E-3,3.9026805000000001E-3,9.3619415000000005E-4,null,null,2.1191265E-3,3.2452685000000001E-3,2.4370744000000001E-3,3.3269929999999999E-3,4.3339933999999997E-3,3.2549582000000001E-3,2.9057026999999998E-3,null,91]
[null,"Male 75-79",5.4396818999999999E-3,4.7673587999999996E-3,2.2726847999999999E-3,1.2973405999999999E-3,8.5099950000000002E-4,1.9624820000000002E-3,9.5622619999999998E-4,2.5039390000000002E-3,2.6667434999999998E-3,9.5567258999999999E-4,9.5567258999999999E-4,5.0248345000000003E-3,2.1030717E-3,4.1225235999999997E-3,1.7020920000000001E-3,3.3224119999999998E-3,3.5476765999999998E-3,5.5328328E-3,null,3.8560884999999999E-3,2.4261427999999999E-3,2.4261427999999999E-3,3.2227741999999999E-3,5.5373753000000003E-3,4.5334171000000001E-3,4.6471795000000002E-3,4.8905383000000004E-3,9.6727E-4,1.0297116E-3,3.1108874999999999E-3,1.0297116E-3,3.7902285999999999E-3,4.3865264999999997E-3,2.7116587999999999E-3,1.5740336000000001E-3,1.8056341E-3,4.1553950999999997E-3,null,null,2.8739782999999998E-3,3.9242100999999996E-3,3.9231311999999999E-3,9.5622619999999998E-4,null,null,2.1521163E-3,3.2138608000000001E-3,2.3411345000000001E-3,3.4013150999999998E-3,4.3349414999999999E-3,3.3122776E-3,2.8808441000000001E-3,null,92]
[null,"Male 80-84",5.5122729000000002E-3,5.0589019000000001E-3,2.3386758E-3,1.1570044E-3,8.6245132999999996E-4,1.9495494E-3,9.1450958000000005E-4,2.67826E-3,2.9758101000000002E-3,9.0140000000000001E-4,9.0140000000000001E-4,5.0560216999999998E-3,2.0164240000000002E-3,3.8846432999999998E-3,1.7082893999999999E-3,3.4068327000000001E-3,3.6062968E-3,5.5683325000000002E-3,null,3.8281740000000002E-3,2.5192729999999998E-3,2.5192729999999998E-3,3.3949205999999998E-3,5.5293753000000001E-3,4.5666001000000001E-3,4.9732090000000001E-3,4.9239690000000003E-3,8.3838048000000004E-4,8.2271529000000005E-4,3.1404658000000001E-3,8.2271529000000005E-4,3.8233628000000001E-3,4.4762637000000001E-3,2.7054683E-3,1.5740336000000001E-3,1.8397096999999999E-3,4.1464739000000002E-3,null,null,2.8666705000000002E-3,3.8351230000000002E-3,3.9638141E-3,9.1450958000000005E-4,null,null,2.0993063000000001E-3,3.2970335000000002E-3,2.4022713999999998E-3,3.4065255999999999E-3,4.3679903999999997E-3,3.3835193999999999E-3,2.8898066000000002E-3,null,93]
[null,"Male 85-89",5.8032292999999997E-3,5.0152306999999997E-3,2.1056968000000001E-3,1.3467686999999999E-3,9.6719817000000003E-4,2.1799463E-3,9.3175639999999998E-4,2.7566614999999998E-3,2.9716736E-3,1.0045306E-3,1.0045306E-3,5.0496020999999999E-3,2.7002281999999999E-3,3.7849033000000002E-3,1.7240428999999999E-3,3.5354857999999999E-3,3.5013488999999999E-3,5.5235535999999998E-3,null,3.7662731000000001E-3,2.4411216999999999E-3,2.4411216999999999E-3,3.3011708999999998E-3,5.4698968000000004E-3,4.5561465000000002E-3,4.8034647000000001E-3,4.9014692000000004E-3,1.0374454E-3,1.0951483000000001E-3,3.1715572999999999E-3,1.0951483000000001E-3,3.8103969000000001E-3,4.3788841E-3,2.6899405999999998E-3,1.5740336000000001E-3,1.7587460000000001E-3,4.2475369000000004E-3,null,null,2.9577128999999998E-3,3.9379369000000003E-3,3.9661465999999996E-3,9.3175639999999998E-4,null,null,2.2478728E-3,3.209132E-3,2.4679308E-3,3.4529983999999998E-3,4.4576976999999999E-3,3.4763635999999999E-3,2.8471569999999999E-3,null,94]
[null,"Male 90+",5.1096175000000001E-3,4.6545425E-3,2.2654003E-3,1.3502634999999999E-3,8.4940006000000002E-4,2.2096592000000002E-3,1.1480793000000001E-3,2.8950490999999998E-3,3.0478368999999998E-3,7.6038878999999996E-4,7.6038878999999996E-4,4.9402680999999999E-3,2.6911329E-3,3.6637575999999999E-3,1.8055161999999999E-3,3.2946024999999999E-3,3.5998889000000002E-3,5.5402899000000002E-3,null,3.9199144000000002E-3,2.5315618000000002E-3,2.5315618000000002E-3,3.5423322000000001E-3,5.6145227999999997E-3,4.5883790999999997E-3,4.4263569000000001E-3,4.9938709E-3,8.5939606999999995E-4,8.7039172999999999E-4,3.0234351000000001E-3,8.7039172999999999E-4,3.6909296000000001E-3,4.2813253000000004E-3,2.8646737000000001E-3,1.5740336000000001E-3,1.8446514E-3,4.0983673999999996E-3,null,null,3.9196954999999997E-3,3.9092335000000004E-3,4.0531526000000002E-3,1.1480793000000001E-3,null,null,2.1275713000000001E-3,3.1176326000000002E-3,2.3348268999999998E-3,3.5018187000000001E-3,4.6476466000000003E-3,3.6440701000000002E-3,2.7038244999999998E-3,null,95]
["SIMD Q2","Female 0-4",5.6402305999999998E-3,5.1089339000000003E-3,1.6243224E-3,1.2444531E-3,6.0380063999999998E-4,1.6140505000000001E-3,1.1436933E-3,2.7106749E-3,2.6413163E-3,1.0692099000000001E-3,1.0692099000000001E-3,4.8423978000000003E-3,1.5265855E-3,4.5607872000000002E-3,2.5123510999999999E-3,3.3695143999999998E-3,3.7460667E-3,6.2118544999999999E-3,8.0476403999999997E-4,3.0889588E-3,2.8005254E-3,2.8005254E-3,2.954267E-3,5.8686653999999996E-3,4.1990923000000003E-3,4.4835665999999998E-3,4.8753735999999999E-3,1.0915815000000001E-3,1.1917998E-3,2.9902011000000001E-3,1.1917998E-3,3.3747042000000001E-3,4.2860010000000002E-3,2.8137879000000002E-3,1.266823E-3,1.5789414999999999E-3,3.6529285999999999E-3,1.1016671E-3,1.1016671E-3,2.4542628999999999E-3,3.3150168999999999E-3,3.6186839E-3,1.1436933E-3,null,null,1.764748E-3,3.0366007999999998E-3,2.7808435E-3,3.0545645999999998E-3,3.3402714999999999E-3,3.4366571000000001E-3,3.1919391E-3,8.0476403999999997E-4,96]
[null,"Female 5-9",5.5079808999999999E-3,4.8116432000000001E-3,1.5061035999999999E-3,1.2646031E-3,6.0513581000000004E-4,1.5981077000000001E-3,1.1580659999999999E-3,2.6617480999999998E-3,2.6385611999999998E-3,1.0964684000000001E-3,1.0964684000000001E-3,4.6677984999999996E-3,1.5093595E-3,4.4881091000000001E-3,2.4181874000000002E-3,3.3362945999999998E-3,3.6465942E-3,6.0252509999999997E-3,8.0476403999999997E-4,3.1339047000000001E-3,2.7571573999999998E-3,2.7571573999999998E-3,2.9996354000000002E-3,5.6744860000000003E-3,4.0118662000000003E-3,4.1146730000000001E-3,4.5987577E-3,9.7708823000000004E-4,1.0646065E-3,2.9501891999999998E-3,1.0646065E-3,3.3659174000000001E-3,4.1153314999999996E-3,2.7450270000000001E-3,1.2519757E-3,1.5338022E-3,3.6691022000000001E-3,1.0825555E-3,1.0825555E-3,2.2488836999999999E-3,3.3205705999999999E-3,3.4539498999999999E-3,1.1580659999999999E-3,null,null,1.7956890000000001E-3,2.9830192E-3,2.6869559999999999E-3,2.9403728E-3,3.1454724E-3,3.3799558999999999E-3,3.0862209000000001E-3,8.0476403999999997E-4,97]
[null,"Female 10-15",5.471142E-3,4.8744432000000001E-3,1.5652140999999999E-3,1.3226046E-3,6.0030428000000004E-4,1.5734849000000001E-3,1.1311559999999999E-3,2.6341779E-3,2.6245585000000001E-3,1.0355214999999999E-3,1.0355214999999999E-3,4.6177422999999999E-3,1.5089253E-3,4.5158061999999999E-3,2.3271569999999998E-3,3.349954E-3,3.4889641999999998E-3,6.0023526000000001E-3,8.0476403999999997E-4,3.0093481999999999E-3,2.7741494000000002E-3,2.7741494000000002E-3,2.8947373000000002E-3,5.5261920000000001E-3,3.9579971E-3,4.2375433000000004E-3,4.5015988999999998E-3,1.0116296E-3,1.1115058000000001E-3,2.8018327E-3,1.1115058000000001E-3,3.3648521999999998E-3,3.9403117E-3,2.7456132000000001E-3,1.2410177999999999E-3,1.5367003999999999E-3,3.6752853E-3,1.0718531E-3,1.0718531E-3,2.1374776999999998E-3,3.3166165999999999E-3,3.3752046999999999E-3,1.1311559999999999E-3,null,null,1.7214064999999999E-3,2.9392019000000001E-3,2.6457857000000001E-3,2.9227267999999999E-3,3.1086580999999999E-3,3.5163499000000001E-3,3.1562522000000001E-3,8.0476403999999997E-4,98]
[null,"Female 16-19",5.7555367000000001E-3,5.1233008999999998E-3,1.4889456E-3,1.2749263999999999E-3,6.0692498999999995E-4,1.5836877999999999E-3,1.1879022999999999E-3,2.7583480999999999E-3,2.6613174E-3,1.0631722000000001E-3,1.0631722000000001E-3,5.4890127000000004E-3,1.4485349999999999E-3,4.4627892999999997E-3,2.3848633000000002E-3,3.3748997E-3,4.1955448999999997E-3,7.4277138000000001E-3,8.0476403999999997E-4,3.0264531000000002E-3,2.7574315E-3,2.7574315E-3,2.9257832E-3,6.1520506000000003E-3,4.2403735999999997E-3,4.5141712999999997E-3,4.9619572000000004E-3,1.0106697000000001E-3,1.1086573E-3,2.6657232000000001E-3,1.1086573E-3,3.3585875999999999E-3,4.9208029999999996E-3,2.7907675000000002E-3,1.2785425999999999E-3,1.6335594000000001E-3,3.6520285E-3,1.0061098000000001E-3,1.0061098000000001E-3,2.0767336000000001E-3,3.3605280000000002E-3,3.7965862999999999E-3,1.1879022999999999E-3,null,null,1.7348231E-3,2.9629414999999999E-3,2.8557838E-3,3.2230284999999999E-3,3.7217676000000002E-3,3.4696774000000001E-3,3.1768695999999999E-3,8.0476403999999997E-4,99]
[null,"Female 20-24",6.6386876000000001E-3,6.1279246999999997E-3,1.624328E-3,1.293979E-3,6.3009600999999998E-4,1.6372915999999999E-3,1.3306596000000001E-3,3.1561211E-3,2.6925041000000001E-3,1.0831752000000001E-3,1.0831752000000001E-3,6.3659544000000002E-3,1.5808065999999999E-3,4.6630283000000002E-3,2.5648050999999999E-3,3.4689012E-3,5.3434689000000004E-3,8.3944025000000002E-3,8.0476403999999997E-4,3.2087658E-3,2.8208109999999999E-3,2.8208109999999999E-3,3.1866007000000002E-3,7.2640394999999996E-3,4.8647830000000001E-3,5.3615253000000003E-3,5.913761E-3,1.1151148E-3,1.2213873999999999E-3,2.9432357E-3,1.2213873999999999E-3,3.4022258999999999E-3,6.2358346999999998E-3,2.8070037E-3,1.3463768000000001E-3,1.5869022999999999E-3,3.6939898999999998E-3,1.0086162E-3,1.0086162E-3,2.4384505000000002E-3,3.4858983E-3,4.6015963999999996E-3,1.3306596000000001E-3,null,null,1.7633047000000001E-3,3.0738197E-3,3.3866096999999999E-3,3.9243205E-3,4.7217476999999999E-3,3.3990766000000002E-3,3.1843904999999998E-3,8.0476403999999997E-4,100]
[null,"Female 25-29",6.4402790999999997E-3,5.9323739000000002E-3,1.5976395E-3,1.2858523E-3,6.3587731000000003E-4,1.6898004999999999E-3,1.2798308999999999E-3,2.7122422999999998E-3,2.5774951E-3,1.1363314999999999E-3,1.1363314999999999E-3,5.3409668999999998E-3,1.5991923E-3,4.4741243999999996E-3,2.5364552E-3,3.3861873999999998E-3,4.8866793999999998E-3,7.3421429999999998E-3,8.0476403999999997E-4,3.1548927000000001E-3,2.8411634E-3,2.8411634E-3,2.9829146999999999E-3,6.3705454000000002E-3,4.7088125999999999E-3,5.3668926E-3,5.4691777999999998E-3,1.1445794999999999E-3,1.2397214E-3,2.9405318E-3,1.2397214E-3,3.469209E-3,5.6185656999999996E-3,2.7998849000000002E-3,1.3918485E-3,1.6551147999999999E-3,3.7427318999999999E-3,1.0264156999999999E-3,1.0264156999999999E-3,2.3175538999999998E-3,3.4380537000000002E-3,4.3491195E-3,1.2798308999999999E-3,null,null,1.8522552E-3,3.1484396E-3,2.8070199999999999E-3,3.4245749E-3,3.8983922000000002E-3,3.4460853999999999E-3,3.1745501E-3,8.0476403999999997E-4,101]
[null,"Female 30-34",5.9627313000000003E-3,5.5188694999999998E-3,1.7092053E-3,1.3235803999999999E-3,6.1996724000000004E-4,1.7184638E-3,1.2256576E-3,2.7426281E-3,2.6485850000000002E-3,1.0617535999999999E-3,1.0617535999999999E-3,4.950121E-3,1.7024555E-3,4.6020695E-3,2.4533581000000001E-3,3.3416511000000002E-3,4.5675630999999998E-3,7.0825810999999997E-3,8.0476403999999997E-4,3.2020879E-3,2.7797525000000001E-3,2.7797525000000001E-3,3.0545669000000002E-3,6.1911097999999996E-3,4.4853664000000003E-3,4.8962034999999998E-3,5.2451505000000002E-3,1.0746459E-3,1.1613693999999999E-3,2.9523065000000002E-3,1.1613693999999999E-3,3.4609918999999999E-3,5.2490886E-3,2.7075076999999999E-3,1.3729812E-3,1.6232555000000001E-3,3.6949939E-3,1.0245622E-3,1.0245622E-3,2.3691964000000002E-3,3.4388227E-3,4.0891058999999999E-3,1.2256576E-3,null,null,1.8625448999999999E-3,3.1813432000000002E-3,2.8277879999999999E-3,3.1343642999999998E-3,3.4572955000000002E-3,3.3992917999999999E-3,3.1962869999999999E-3,8.0476403999999997E-4,102]
[null,"Female 35-39",5.9304023000000001E-3,5.2741309999999996E-3,1.5232837000000001E-3,1.2785137E-3,6.2598764999999995E-4,1.6609988E-3,1.2098574999999999E-3,2.6714089E-3,2.5794123999999998E-3,1.0478934E-3,1.0478934E-3,4.8935701999999999E-3,1.6420345000000001E-3,4.5872693999999999E-3,2.4324816E-3,3.5150135000000002E-3,4.1548312000000004E-3,6.8303262999999999E-3,8.0476403999999997E-4,3.1371731000000001E-3,2.7712688000000002E-3,2.7712688000000002E-3,2.9839845E-3,5.9665841999999997E-3,4.3268561999999997E-3,4.6352562E-3,5.0321393999999998E-3,1.0997733E-3,1.1957394000000001E-3,2.9346800999999999E-3,1.1957394000000001E-3,3.4386044999999998E-3,4.7906692999999997E-3,2.8210306000000002E-3,1.2550281999999999E-3,1.5996949999999999E-3,3.6972991999999999E-3,1.0649142E-3,1.0649142E-3,2.3004697000000001E-3,3.4450448999999998E-3,3.8309309000000001E-3,1.2098574999999999E-3,null,null,1.7585376999999999E-3,3.1162789E-3,2.7582776000000002E-3,3.0635571999999998E-3,3.3924512E-3,3.5608199000000001E-3,3.1709501000000001E-3,8.0476403999999997E-4,103]
[null,"Female 40-44",5.7719195999999997E-3,5.1787155999999997E-3,1.5660512E-3,1.3323382E-3,6.2338122999999995E-4,1.6463437E-3,1.2016939999999999E-3,2.6761782E-3,2.6432513000000002E-3,1.1019141000000001E-3,1.1019141000000001E-3,4.6899984999999996E-3,1.5636001000000001E-3,4.6390616000000001E-3,2.3722316E-3,3.4675316E-3,3.9298505999999997E-3,6.5921061E-3,8.0476403999999997E-4,3.1191665000000002E-3,2.7823689999999998E-3,2.7823689999999998E-3,2.9717351000000001E-3,5.8326827999999999E-3,4.1464767000000003E-3,4.4924253999999997E-3,4.7921956999999998E-3,1.0838778000000001E-3,1.1876231999999999E-3,2.9430855E-3,1.1876231999999999E-3,3.3964789E-3,4.5465799000000001E-3,2.8403249999999999E-3,1.2582289E-3,1.5853569999999999E-3,3.6643922999999999E-3,1.0467723E-3,1.0467723E-3,2.2724224000000002E-3,3.3866452999999999E-3,3.6325710999999998E-3,1.2016939999999999E-3,null,null,1.8552624E-3,3.0525837E-3,2.7143510999999999E-3,2.9612991000000002E-3,3.1866147000000002E-3,3.4256972999999998E-3,3.1555306999999999E-3,8.0476403999999997E-4,104]
[null,"Female 45-49",5.6739705999999997E-3,4.9865487999999998E-3,1.5371199999999999E-3,1.2655428E-3,6.1749701999999997E-4,1.623123E-3,1.2086842000000001E-3,2.6215294000000002E-3,2.6547785000000002E-3,1.0961635E-3,1.0961635E-3,4.8492444000000001E-3,1.4951102000000001E-3,4.5784325000000001E-3,2.3909216E-3,3.4217529E-3,3.7141348999999999E-3,6.5240832E-3,8.0476403999999997E-4,3.1321171999999999E-3,2.7583104000000001E-3,2.7583104000000001E-3,2.9599289E-3,5.6737539999999996E-3,4.0689493000000002E-3,4.2884689999999996E-3,4.6301399999999996E-3,1.0358731999999999E-3,1.1237971E-3,2.8390532999999999E-3,1.1237971E-3,3.4221031000000002E-3,4.2781434E-3,2.8459627999999999E-3,1.3060858000000001E-3,1.5937035000000001E-3,3.7123278999999999E-3,1.0503678E-3,1.0503678E-3,2.066998E-3,3.3593220000000001E-3,3.5165483000000001E-3,1.2086842000000001E-3,null,null,1.8614288000000001E-3,3.0845827E-3,2.5821733000000002E-3,2.9154663999999999E-3,3.1160383999999999E-3,3.4927193000000001E-3,3.1307183999999999E-3,8.0476403999999997E-4,105]
[null,"Female 50-54",5.6049571999999999E-3,4.9675693999999999E-3,1.6713602000000001E-3,1.3368579E-3,6.4283736999999998E-4,1.6372153999999999E-3,1.2327604E-3,2.5449588000000002E-3,2.5486177999999998E-3,1.0674712E-3,1.0674712E-3,4.9313860999999999E-3,1.5584902999999999E-3,4.5413687000000003E-3,2.4518035E-3,3.4413841000000001E-3,3.5906644000000001E-3,6.2882108999999997E-3,8.0476403999999997E-4,3.1578016999999998E-3,2.7668411E-3,2.7668411E-3,2.9539799000000001E-3,5.5989059999999998E-3,4.0580471999999996E-3,4.2624263999999999E-3,4.5813038000000004E-3,1.0368901E-3,1.1456675999999999E-3,2.8965063000000002E-3,1.1456675999999999E-3,3.4558724000000002E-3,4.1496833E-3,2.8226954999999998E-3,1.2388862000000001E-3,1.6121669E-3,3.7333766999999999E-3,1.0415358E-3,1.0415358E-3,2.1866472E-3,3.3409731000000002E-3,3.5040963E-3,1.2327604E-3,null,null,1.7662363999999999E-3,3.1371806E-3,2.5412E-3,3.0399204999999999E-3,3.4073367999999998E-3,3.4813331000000001E-3,3.0824628000000001E-3,8.0476403999999997E-4,106]
[null,"Female 55-59",5.5753462999999998E-3,4.8992857000000004E-3,1.6491892E-3,1.3030425999999999E-3,6.1933579999999999E-4,1.6239117E-3,1.2023614E-3,2.583419E-3,2.5734489000000002E-3,1.0643092999999999E-3,1.0643092999999999E-3,4.8724907E-3,1.4508602000000001E-3,4.5397761000000002E-3,2.3947130000000001E-3,3.2749175999999998E-3,3.5796573000000001E-3,6.2781981999999997E-3,8.0476403999999997E-4,3.1902760000000001E-3,2.7400276000000001E-3,2.7400276000000001E-3,2.9842991000000002E-3,5.6811416999999996E-3,4.0785963999999996E-3,4.1465037999999996E-3,4.6145915999999997E-3,1.0152592E-3,1.1271267E-3,2.7607279E-3,1.1271267E-3,3.4824169999999998E-3,4.1306837999999999E-3,2.8371493999999999E-3,1.1430381999999999E-3,1.6283595E-3,3.7910764000000001E-3,1.088926E-3,1.088926E-3,2.3510887000000001E-3,3.3791186000000002E-3,3.4837797E-3,1.2023614E-3,null,null,1.8499603E-3,3.1461535999999998E-3,2.5931172999999999E-3,2.9957804000000001E-3,3.3080079999999999E-3,3.4037069000000001E-3,3.1261080999999999E-3,8.0476403999999997E-4,107]
[null,"Female 60-64",5.6154042999999997E-3,4.9134186000000003E-3,1.5070614E-3,1.3396720999999999E-3,6.4770050999999999E-4,1.5881858E-3,1.2151642E-3,2.440972E-3,2.4233339E-3,1.1129917E-3,1.1129917E-3,4.7478861999999998E-3,1.4216668999999999E-3,4.4906703000000001E-3,2.3186256000000001E-3,3.4438331999999999E-3,3.5276741000000002E-3,6.2882155000000004E-3,8.0476403999999997E-4,3.1136265000000002E-3,2.7210566000000001E-3,2.7210566000000001E-3,2.9071569E-3,5.6304233000000004E-3,3.9676065E-3,4.1221399000000002E-3,4.5769527000000003E-3,1.0140357E-3,1.0993782000000001E-3,2.9085877E-3,1.0993782000000001E-3,3.3812226999999999E-3,4.102807E-3,2.8900254999999998E-3,1.2972757999999999E-3,1.6527015999999999E-3,3.6626235E-3,1.0713134999999999E-3,1.0713134999999999E-3,2.1708411999999998E-3,3.3977527999999998E-3,3.4077832999999998E-3,1.2151642E-3,null,null,1.7244519E-3,3.0636864000000001E-3,2.4585446999999998E-3,2.9410756999999998E-3,3.2190979000000001E-3,3.3789112000000001E-3,3.1434356000000002E-3,8.0476403999999997E-4,108]
[null,"Female 65-69",5.7727313000000002E-3,4.9257277999999998E-3,1.6890685999999999E-3,1.3369726000000001E-3,6.469402E-4,1.6028774999999999E-3,1.1736632E-3,2.5715856000000001E-3,2.5478216999999998E-3,1.0982457999999999E-3,1.0982457999999999E-3,4.7502532000000004E-3,1.4458107000000001E-3,4.4911774E-3,2.4201641999999999E-3,3.3577860000000002E-3,3.4568840999999999E-3,6.1561204000000003E-3,8.0476403999999997E-4,3.1307155999999998E-3,2.7268756999999999E-3,2.7268756999999999E-3,2.9490508999999998E-3,5.6148567000000003E-3,3.9089210000000001E-3,4.1350876000000002E-3,4.4966331000000003E-3,1.0259943E-3,1.1221181999999999E-3,2.8302892999999998E-3,1.1221181999999999E-3,3.3297782999999999E-3,4.0216935000000004E-3,2.7437054000000001E-3,1.2159592E-3,1.6500086999999999E-3,3.5976719000000001E-3,1.0660267000000001E-3,1.0660267000000001E-3,2.2846469999999999E-3,3.4376578000000001E-3,3.3513582000000001E-3,1.1736632E-3,null,null,1.7447724E-3,3.0286979999999998E-3,2.5980081000000002E-3,2.9616276999999999E-3,3.2682488999999999E-3,3.5549294999999998E-3,3.1056525000000001E-3,8.0476403999999997E-4,109]
[null,"Female 70-74",5.6773066000000002E-3,4.7455980000000002E-3,1.7144927E-3,1.3252825000000001E-3,6.4198637999999999E-4,1.619585E-3,1.2048337E-3,2.4735853E-3,2.3789227000000001E-3,1.0765169999999999E-3,1.0765169999999999E-3,4.7865314000000003E-3,1.4728139E-3,4.4128377999999996E-3,2.3983979999999999E-3,3.3207016999999999E-3,3.3861706000000002E-3,6.0351915000000003E-3,8.0476403999999997E-4,3.1958821000000002E-3,2.7261974999999998E-3,2.7261974999999998E-3,2.966214E-3,5.6426282999999999E-3,3.9573298000000002E-3,3.9389888000000003E-3,4.4953357000000003E-3,1.0014116E-3,1.1013380000000001E-3,2.9207806000000002E-3,1.1013380000000001E-3,3.4640448000000002E-3,3.9329411999999998E-3,2.8216394000000001E-3,1.2484509E-3,1.7043455999999999E-3,3.7025031999999999E-3,1.0213989000000001E-3,1.0213989000000001E-3,2.2193733999999999E-3,3.4356719999999999E-3,3.3334999000000001E-3,1.2048337E-3,null,null,1.7124934E-3,3.1832051000000002E-3,2.5651187000000002E-3,2.9443122999999998E-3,3.2144465999999999E-3,3.5897253999999999E-3,3.0980697E-3,8.0476403999999997E-4,110]
[null,"Female 75-79",5.8705457000000003E-3,5.0080031999999997E-3,1.7391900000000001E-3,1.363782E-3,6.5448256999999996E-4,1.6460197999999999E-3,1.2095668000000001E-3,2.5717769999999999E-3,2.6084191999999999E-3,1.103092E-3,1.103092E-3,4.6729663999999999E-3,1.5704165E-3,4.5047845000000001E-3,2.4150437999999998E-3,3.3788667000000001E-3,3.489055E-3,6.1178044000000003E-3,8.0476403999999997E-4,3.2317845999999999E-3,2.7962466999999999E-3,2.7962466999999999E-3,3.0163361000000001E-3,5.6611177999999996E-3,4.0503149E-3,4.2035049000000001E-3,4.5533207999999999E-3,1.0557552000000001E-3,1.1726823999999999E-3,2.9592589000000001E-3,1.1726823999999999E-3,3.5256909E-3,4.0281628999999999E-3,2.7991701000000002E-3,1.2335372999999999E-3,1.7095336E-3,3.7355444000000001E-3,1.0393469999999999E-3,1.0393469999999999E-3,2.2535800999999999E-3,3.3966705999999998E-3,3.4468089999999999E-3,1.2095668000000001E-3,null,null,1.675277E-3,3.2899425999999999E-3,2.5452964E-3,3.0446760000000001E-3,3.3331669000000001E-3,3.5501919000000002E-3,3.0633733E-3,8.0476403999999997E-4,111]
[null,"Female 80-84",5.8696642999999998E-3,5.0602690000000001E-3,1.9450336000000001E-3,1.4028975999999999E-3,7.0382451000000005E-4,1.7016011999999999E-3,1.2083964E-3,2.5032479E-3,2.5182997000000001E-3,1.1990181000000001E-3,1.1990181000000001E-3,4.5696147999999999E-3,1.6038292E-3,4.3800072999999997E-3,2.4325255999999998E-3,3.3754006E-3,3.4885462E-3,6.1980812000000003E-3,8.0476403999999997E-4,3.2498280000000002E-3,2.7670306E-3,2.7670306E-3,3.0232027999999998E-3,5.5314292999999997E-3,4.0582018000000003E-3,4.3526664E-3,4.5167818000000004E-3,1.0614302E-3,1.1829466E-3,2.8943704E-3,1.1829466E-3,3.5269777E-3,4.1007007999999999E-3,2.8191613999999999E-3,1.2302315E-3,1.6588445E-3,3.7343278999999998E-3,1.0443327000000001E-3,1.0443327000000001E-3,2.3654378E-3,3.3742473E-3,3.4721260999999999E-3,1.2083964E-3,null,null,1.863757E-3,3.3030128E-3,2.4907907999999999E-3,3.0127043999999999E-3,3.2890874000000001E-3,3.4700755000000002E-3,3.0589506000000002E-3,8.0476403999999997E-4,112]
[null,"Female 85-89",5.7691061E-3,4.8345202000000002E-3,1.6181977000000001E-3,1.4096542000000001E-3,6.9436651999999995E-4,1.8154422999999999E-3,1.1906937000000001E-3,2.5089273999999999E-3,2.6896050999999999E-3,1.1550187000000001E-3,1.1550187000000001E-3,4.7243843000000004E-3,1.7224161000000001E-3,4.4715837999999997E-3,2.5924612E-3,3.3658270000000001E-3,3.6193818999999999E-3,6.2714266000000003E-3,8.0476403999999997E-4,3.1117692E-3,2.8784858999999999E-3,2.8784858999999999E-3,2.9446226999999998E-3,5.7024186999999997E-3,4.2438883999999996E-3,4.1234441999999996E-3,4.7589507999999999E-3,1.0724198000000001E-3,1.2018071000000001E-3,3.0649727999999998E-3,1.2018071000000001E-3,3.6611015000000001E-3,4.2712614000000003E-3,2.7039490999999998E-3,1.2963437E-3,1.6951519000000001E-3,3.8110396999999998E-3,9.9846522999999998E-4,9.9846522999999998E-4,2.2954016000000001E-3,3.3548311E-3,3.5654142999999999E-3,1.1906937000000001E-3,null,null,2.0442167E-3,3.5129715999999999E-3,2.3376355E-3,2.97336E-3,3.0737849999999999E-3,3.6856587999999999E-3,3.2099148000000002E-3,8.0476403999999997E-4,113]
[null,"Female 90+",6.0088727999999996E-3,4.7753337000000003E-3,1.3973339E-3,1.4861849999999999E-3,6.8067154E-4,1.8508493E-3,1.1994639999999999E-3,2.7122781999999999E-3,2.7276908999999999E-3,1.3313630999999999E-3,1.3313630999999999E-3,4.7558829999999998E-3,1.8990274000000001E-3,4.4300980000000004E-3,2.4543731000000002E-3,3.3042578E-3,3.7670904E-3,6.7121489000000001E-3,8.0476403999999997E-4,3.0190360000000001E-3,2.8655562000000001E-3,2.8655562000000001E-3,2.927271E-3,5.4108701000000004E-3,4.2865584000000003E-3,4.1098213000000001E-3,4.7175875000000003E-3,1.1332331E-3,1.2826637999999999E-3,3.9799683999999997E-3,1.2826637999999999E-3,3.7312068000000002E-3,4.5748535E-3,2.6334485000000002E-3,1.2726359999999999E-3,1.5837217E-3,3.9069083999999999E-3,9.2966388999999997E-4,9.2966388999999997E-4,2.3800245999999999E-3,3.2688917000000001E-3,3.5419878999999998E-3,1.1994639999999999E-3,null,null,2.0145037999999998E-3,3.5754044E-3,2.6987919000000002E-3,3.0303236999999999E-3,3.2049052000000001E-3,3.5123066E-3,3.2242502000000002E-3,8.0476403999999997E-4,114]
[null,"Male 0-4",5.724364E-3,5.1205395999999997E-3,1.580164E-3,1.2722831E-3,6.3130498000000005E-4,1.5582445E-3,1.1633692000000001E-3,2.5784118999999999E-3,2.6495007000000002E-3,1.0462081999999999E-3,1.0462081999999999E-3,4.8343459999999998E-3,1.4994739E-3,4.5364052000000004E-3,2.3922067999999999E-3,3.3383788999999998E-3,3.7075166999999999E-3,6.0887001000000003E-3,8.0476403999999997E-4,3.1416484000000001E-3,2.8212256999999999E-3,2.8212256999999999E-3,2.9561536000000002E-3,5.8052959000000001E-3,4.1489122000000003E-3,4.3542944E-3,4.8155617000000001E-3,1.0692525999999999E-3,1.1712986000000001E-3,2.8848744000000001E-3,1.1712986000000001E-3,3.3552643999999999E-3,4.1866087999999999E-3,2.7320611000000001E-3,1.1744752E-3,1.5632376000000001E-3,3.6336568000000001E-3,1.0873332999999999E-3,1.0873332999999999E-3,2.3076755000000001E-3,3.4027731E-3,3.5626183000000001E-3,1.1633692000000001E-3,null,null,1.6463287999999999E-3,3.0370803999999999E-3,2.5073233999999998E-3,3.0457659000000001E-3,3.2839009000000001E-3,3.4356641000000002E-3,3.1232388999999998E-3,8.0476403999999997E-4,115]
[null,"Male 5-9",5.5883950999999999E-3,4.8582204999999996E-3,1.5561784E-3,1.2556741000000001E-3,6.0594966999999997E-4,1.5625136E-3,1.200474E-3,2.6033003999999999E-3,2.6479849999999998E-3,9.9995720999999991E-4,9.9995720999999991E-4,4.6246391999999999E-3,1.5051890000000001E-3,4.5386845999999996E-3,2.4736067E-3,3.3070398000000002E-3,3.6236126999999998E-3,6.0512847000000003E-3,8.0476403999999997E-4,3.099788E-3,2.7639689000000002E-3,2.7639689000000002E-3,2.9467606999999999E-3,5.6579676000000001E-3,4.0348750000000003E-3,4.0442585E-3,4.6375436000000003E-3,1.0273179999999999E-3,1.1195489E-3,2.8701072999999999E-3,1.1195489E-3,3.3654511999999998E-3,4.0859920000000001E-3,2.7534878E-3,1.1679772E-3,1.5172593000000001E-3,3.6361370999999998E-3,1.0672665E-3,1.0672665E-3,2.2048263000000001E-3,3.3155868E-3,3.4491904000000001E-3,1.200474E-3,null,null,1.6979390000000001E-3,3.0105992000000002E-3,2.5546560000000002E-3,2.9472320000000002E-3,3.1612698999999998E-3,3.4731186000000001E-3,3.1255709000000001E-3,8.0476403999999997E-4,116]
[null,"Male 10-15",5.5890376999999996E-3,4.9725812999999999E-3,1.4419684E-3,1.282715E-3,6.0243071999999999E-4,1.6035368999999999E-3,1.1971614999999999E-3,2.5838583000000002E-3,2.6045369000000001E-3,1.0532784999999999E-3,1.0532784999999999E-3,4.6071936000000001E-3,1.5342496000000001E-3,4.5087202E-3,2.3873319999999998E-3,3.5070141000000002E-3,3.5229562999999999E-3,6.0622621999999998E-3,8.0476403999999997E-4,3.0058944E-3,2.7652418000000002E-3,2.7652418000000002E-3,2.8722575000000002E-3,5.5963224999999997E-3,3.9659928999999997E-3,4.2177307999999997E-3,4.5464518000000002E-3,9.8211841999999998E-4,1.0916853999999999E-3,2.5634634999999999E-3,1.0916853999999999E-3,3.3544008999999999E-3,3.9658831000000004E-3,2.7920122E-3,1.1324991E-3,1.5715909E-3,3.6541191E-3,1.0934763E-3,1.0934763E-3,2.1820676E-3,3.3191051000000002E-3,3.3929218E-3,1.1971614999999999E-3,null,null,1.7544981E-3,2.9668213999999998E-3,2.5625087E-3,2.9073390000000001E-3,3.0798792999999999E-3,3.5178805999999999E-3,3.0838707000000001E-3,8.0476403999999997E-4,117]
[null,"Male 16-19",5.7197469000000003E-3,5.0383251999999998E-3,1.5550598E-3,1.2743347E-3,6.4672715999999995E-4,1.5606121000000001E-3,1.2123914999999999E-3,2.7526563000000001E-3,2.6414988000000002E-3,1.0191109E-3,1.0191109E-3,5.3940024000000003E-3,1.4106069999999999E-3,4.4693685999999998E-3,2.3190794000000001E-3,3.4478515999999998E-3,3.9640478999999999E-3,6.9372634999999997E-3,8.0476403999999997E-4,3.1200293E-3,2.7777258999999999E-3,2.7777258999999999E-3,3.0010554E-3,6.0159690000000004E-3,4.1665193000000001E-3,4.2398651000000002E-3,4.8525575999999997E-3,1.0035528000000001E-3,1.072705E-3,2.6220636999999998E-3,1.072705E-3,3.3683621000000002E-3,4.5797167999999996E-3,2.8705079999999999E-3,1.2121261E-3,1.6115219E-3,3.6897636000000002E-3,1.0324704000000001E-3,1.0324704000000001E-3,2.1421743999999999E-3,3.2577234999999999E-3,3.6389446000000001E-3,1.2123914999999999E-3,null,null,1.7120391000000001E-3,2.9711720999999998E-3,2.8462870999999999E-3,3.1340983999999998E-3,3.5747041000000002E-3,3.5327893999999999E-3,3.1030392000000002E-3,8.0476403999999997E-4,118]
[null,"Male 20-24",6.6191749999999997E-3,6.0829762000000004E-3,1.6280706999999999E-3,1.2803647E-3,6.1481225000000004E-4,1.6496423999999999E-3,1.2599531999999999E-3,3.1238606000000002E-3,2.5450573E-3,1.0555377999999999E-3,1.0555377999999999E-3,6.5340092000000004E-3,1.5670663000000001E-3,4.5373319000000002E-3,2.403975E-3,3.4027032E-3,4.6842428999999998E-3,7.9085649999999993E-3,8.0476403999999997E-4,3.0705160000000001E-3,2.7768040999999999E-3,2.7768040999999999E-3,3.0930547999999999E-3,7.0498072999999996E-3,4.7396015999999997E-3,5.4428391000000001E-3,5.6773205000000002E-3,1.0606109999999999E-3,1.1675155E-3,2.9487298E-3,1.1675155E-3,3.4080312999999998E-3,5.4735638999999997E-3,2.8276773999999999E-3,1.3012932999999999E-3,1.6137159E-3,3.7008503E-3,1.0570735999999999E-3,1.0570735999999999E-3,2.4330014999999999E-3,3.4242459000000001E-3,4.3462361000000003E-3,1.2599531999999999E-3,null,null,1.8272636E-3,3.0699472E-3,3.4660806000000001E-3,4.0334109000000002E-3,4.9068853000000003E-3,3.5512433E-3,3.1766646999999999E-3,8.0476403999999997E-4,119]
[null,"Male 25-29",6.7402408E-3,6.1630751000000001E-3,1.6467476E-3,1.3133482000000001E-3,6.4058584000000005E-4,1.7118908E-3,1.2685074E-3,2.7645211999999999E-3,2.5371360000000002E-3,1.201269E-3,1.201269E-3,5.7456781999999998E-3,1.6834832E-3,4.5908698999999999E-3,2.3383289000000001E-3,3.2863405000000002E-3,4.8736157000000002E-3,7.3781232000000004E-3,8.0476403999999997E-4,3.2201336999999998E-3,2.8430579999999999E-3,2.8430579999999999E-3,3.0376947999999999E-3,6.5330733E-3,4.8047298999999996E-3,5.5559509999999999E-3,5.5995569999999998E-3,1.0700617E-3,1.1334381000000001E-3,2.8965578E-3,1.1334381000000001E-3,3.4737990000000001E-3,5.6206351000000002E-3,2.7929484000000001E-3,1.3537025E-3,1.6537809E-3,3.7364042000000001E-3,9.9846522999999998E-4,9.9846522999999998E-4,2.6262247000000002E-3,3.4985520999999999E-3,4.4543901000000004E-3,1.2685074E-3,null,null,1.8182641E-3,3.1769569000000002E-3,2.8889747000000001E-3,3.6444643000000001E-3,4.2683705999999998E-3,3.4678830000000002E-3,3.1818600999999999E-3,8.0476403999999997E-4,120]
[null,"Male 30-34",6.2609110000000001E-3,5.6956159000000001E-3,1.7204410000000001E-3,1.3051574000000001E-3,6.2299904000000001E-4,1.7290139E-3,1.2454078999999999E-3,2.8261757E-3,2.6839515000000001E-3,1.1228585E-3,1.1228585E-3,5.3036026999999999E-3,1.7135951000000001E-3,4.5365192999999998E-3,2.490276E-3,3.4274503E-3,4.7193849E-3,7.1756737000000003E-3,8.0476403999999997E-4,3.2519841999999999E-3,2.8754539999999999E-3,2.8754539999999999E-3,3.1024850999999999E-3,6.4033717000000004E-3,4.7238515999999996E-3,5.101047E-3,5.4809161999999998E-3,1.1310687000000001E-3,1.2091725000000001E-3,2.9103524999999999E-3,1.2091725000000001E-3,3.5139858000000001E-3,5.3939506999999996E-3,2.7268953000000001E-3,1.3526060999999999E-3,1.6519067999999999E-3,3.7134671999999999E-3,1.0115701000000001E-3,1.0115701000000001E-3,2.6730654999999998E-3,3.4338017E-3,4.2868102999999999E-3,1.2454078999999999E-3,null,null,1.8550222000000001E-3,3.2590424999999999E-3,2.9379844E-3,3.3626853999999999E-3,3.7739559000000002E-3,3.4119985E-3,3.1764483999999998E-3,8.0476403999999997E-4,121]
[null,"Male 35-39",5.8704279E-3,5.2885935E-3,1.6737404999999999E-3,1.2703015999999999E-3,6.2951258999999996E-4,1.6654112E-3,1.2577443E-3,2.7813038E-3,2.6982711E-3,1.1513843E-3,1.1513843E-3,5.1377430000000002E-3,1.6276187E-3,4.5688389999999999E-3,2.4814347E-3,3.3579377999999999E-3,4.4046184E-3,7.0142881000000001E-3,8.0476403999999997E-4,3.179627E-3,2.8038785999999999E-3,2.8038785999999999E-3,3.0622640999999999E-3,6.2422385000000004E-3,4.5452443999999996E-3,4.5999539999999998E-3,5.3144925999999999E-3,1.1350579E-3,1.2342529E-3,2.9535687E-3,1.2342529E-3,3.4521499000000001E-3,5.1031243000000002E-3,2.7280875999999999E-3,1.3280080999999999E-3,1.6008477999999999E-3,3.6851687000000002E-3,1.0649142E-3,1.0649142E-3,2.4510973999999999E-3,3.4513580999999999E-3,4.0413489999999996E-3,1.2577443E-3,null,null,1.7790261E-3,3.1735888E-3,2.8672633000000002E-3,3.1258159E-3,3.4589454999999999E-3,3.4683405E-3,3.1980651E-3,8.0476403999999997E-4,122]
[null,"Male 40-44",6.0290949999999999E-3,5.4452051000000003E-3,1.6892207E-3,1.2787479999999999E-3,6.4586183999999997E-4,1.6837489E-3,1.1928732E-3,2.6514884000000002E-3,2.6248945000000002E-3,1.06686E-3,1.06686E-3,4.8694237999999997E-3,1.5570185E-3,4.5693647E-3,2.4398863000000002E-3,3.4692332E-3,4.1502058E-3,6.8315514000000001E-3,8.0476403999999997E-4,3.2682847E-3,2.8154516999999999E-3,2.8154516999999999E-3,3.0738217999999999E-3,6.0880072000000004E-3,4.3030409E-3,4.7735366999999999E-3,5.0338982000000003E-3,1.0863611999999999E-3,1.1893877999999999E-3,2.7053454000000002E-3,1.1893877999999999E-3,3.4572429E-3,4.8170601999999998E-3,2.7742487999999998E-3,1.3577503999999999E-3,1.6579997000000001E-3,3.7024674999999998E-3,1.0393469999999999E-3,1.0393469999999999E-3,2.4200201000000002E-3,3.3920211999999999E-3,3.8271592999999998E-3,1.1928732E-3,null,null,1.9152714E-3,3.1500915E-3,2.6823413000000001E-3,3.0539928E-3,3.3408734E-3,3.4857932000000001E-3,3.1478608E-3,8.0476403999999997E-4,123]
[null,"Male 45-49",5.8423420000000004E-3,5.2835167999999997E-3,1.6447102E-3,1.3143031E-3,6.6206743999999999E-4,1.6362815E-3,1.2595276000000001E-3,2.6396852999999998E-3,2.6151931000000001E-3,1.1611604E-3,1.1611604E-3,4.9206027999999999E-3,1.568566E-3,4.5373957000000003E-3,2.3450453000000001E-3,3.4244383999999998E-3,3.9482870999999996E-3,6.8591097000000002E-3,8.0476403999999997E-4,3.1990816000000001E-3,2.7185785999999999E-3,2.7185785999999999E-3,3.0166301999999998E-3,5.8458555000000002E-3,4.1494323000000003E-3,4.5335688999999998E-3,4.8135705000000003E-3,1.0144081000000001E-3,1.1102251999999999E-3,2.8832655E-3,1.1102251999999999E-3,3.4095531000000001E-3,4.6208402999999999E-3,2.7980148E-3,1.3418855000000001E-3,1.5581142000000001E-3,3.6572353000000001E-3,1.0507031000000001E-3,1.0507031000000001E-3,2.3611832999999999E-3,3.3687649000000001E-3,3.6697746E-3,1.2595276000000001E-3,null,null,1.8452925000000001E-3,3.1271835000000001E-3,2.6713482000000001E-3,3.0327778999999998E-3,3.4048812999999999E-3,3.4606966999999999E-3,3.0992598999999999E-3,8.0476403999999997E-4,124]
[null,"Male 50-54",5.6981109E-3,5.0448389000000001E-3,1.6060184E-3,1.3197415000000001E-3,6.1166438000000004E-4,1.6330377E-3,1.2066997999999999E-3,2.5394326000000001E-3,2.5017123999999998E-3,1.1347737E-3,1.1347737E-3,4.9103521999999998E-3,1.5083065E-3,4.4817147000000002E-3,2.3626375000000001E-3,3.4946308000000001E-3,3.8204798000000002E-3,6.6471183999999997E-3,8.0476403999999997E-4,3.2269199999999999E-3,2.8112444999999998E-3,2.8112444999999998E-3,2.9920475E-3,5.8050910000000001E-3,4.1066273000000004E-3,4.2942283000000003E-3,4.6993690000000001E-3,1.0308374999999999E-3,1.1340668E-3,2.9049955999999998E-3,1.1340668E-3,3.4361334999999998E-3,4.4409819E-3,2.8206108000000001E-3,1.3183863000000001E-3,1.6123069000000001E-3,3.7029770000000001E-3,1.0590337E-3,1.0590337E-3,2.2711739999999999E-3,3.2898687999999999E-3,3.5783452999999998E-3,1.2066997999999999E-3,null,null,1.8345262E-3,3.1391392000000001E-3,2.5803514E-3,3.0112020000000001E-3,3.2687706E-3,3.4908630999999999E-3,3.1004282999999998E-3,8.0476403999999997E-4,125]
[null,"Male 55-59",5.7266434000000001E-3,5.0281277000000001E-3,1.6405896E-3,1.3655408E-3,6.2583585000000001E-4,1.5981827000000001E-3,1.2764827E-3,2.5885160999999999E-3,2.5584660000000001E-3,1.0466676E-3,1.0466676E-3,4.9714553000000002E-3,1.4165707E-3,4.6046133999999997E-3,2.4056508999999999E-3,3.4339869999999999E-3,3.7295073000000001E-3,6.569264E-3,8.0476409999999995E-4,3.1770587000000002E-3,2.7548170000000001E-3,2.7548170000000001E-3,2.9842658000000001E-3,5.6745279999999999E-3,4.0456266000000003E-3,4.3172855000000003E-3,4.6180244999999998E-3,1.0114334000000001E-3,1.0975837999999999E-3,2.7251345999999999E-3,1.0975837999999999E-3,3.4287050000000002E-3,4.3335533999999997E-3,2.8305104999999998E-3,1.2869569E-3,1.6395939E-3,3.7205214999999998E-3,1.0351590999999999E-3,1.0351590999999999E-3,2.1458734000000001E-3,3.3541613000000001E-3,3.5306267000000001E-3,1.2764827E-3,null,null,1.8193078000000001E-3,3.1312162000000001E-3,2.6183744999999999E-3,3.0143657E-3,3.3535822E-3,3.379581E-3,3.0694562E-3,8.0476409999999995E-4,126]
[null,"Male 60-64",5.6851575999999999E-3,5.0395667000000003E-3,1.6299385E-3,1.3116184E-3,6.4294209000000005E-4,1.5673608999999999E-3,1.2025165E-3,2.5251873E-3,2.4994448999999998E-3,9.8325813000000001E-4,9.8325813000000001E-4,4.8506367E-3,1.378553E-3,4.5181387000000003E-3,2.4599510000000002E-3,3.3031164000000002E-3,3.6743809E-3,6.6199874999999997E-3,8.0476403999999997E-4,3.1992296999999999E-3,2.7264475000000001E-3,2.7264475000000001E-3,2.9726967000000002E-3,5.6288526000000004E-3,4.0159235E-3,4.3376311999999998E-3,4.5629464999999998E-3,9.6333195999999996E-4,1.0586930000000001E-3,2.8476713000000001E-3,1.0586930000000001E-3,3.4571638999999999E-3,4.3359673999999997E-3,2.8354598000000001E-3,1.2372104E-3,1.6467732000000001E-3,3.7163799E-3,1.0607138999999999E-3,1.0607138999999999E-3,2.3320279999999999E-3,3.3577352000000002E-3,3.4793482999999998E-3,1.2025165E-3,null,null,1.7271971E-3,3.1672371999999999E-3,2.5529493999999998E-3,2.9437481E-3,3.2230872E-3,3.3690607999999999E-3,3.0424311E-3,8.0476403999999997E-4,127]
[null,"Male 65-69",5.8088801000000002E-3,4.9358676000000002E-3,1.6239636E-3,1.3318939999999999E-3,6.4495630999999998E-4,1.5772134E-3,1.1649596999999999E-3,2.5669928E-3,2.5155984000000001E-3,1.097661E-3,1.097661E-3,4.8400982999999998E-3,1.3964521999999999E-3,4.5150006000000001E-3,2.3904282000000001E-3,3.3263912999999998E-3,3.5029281999999998E-3,6.3668592E-3,8.0476403999999997E-4,3.1031053999999998E-3,2.7124234E-3,2.7124234E-3,2.9387223000000001E-3,5.7596093999999999E-3,3.9732628999999998E-3,4.1743251E-3,4.6014823000000002E-3,1.0199841000000001E-3,1.1209804000000001E-3,2.9681716000000001E-3,1.1209804000000001E-3,3.3769020999999998E-3,4.1234512000000003E-3,2.8451914000000001E-3,1.2538693E-3,1.6578113E-3,3.6648251000000001E-3,1.0742461999999999E-3,1.0742461999999999E-3,2.3276670999999999E-3,3.4243704000000001E-3,3.3798353E-3,1.1649596999999999E-3,null,null,1.7087427000000001E-3,3.0596014E-3,2.6161026000000001E-3,2.9675375999999999E-3,3.3095565000000001E-3,3.4578693999999998E-3,3.0443588999999999E-3,8.0476403999999997E-4,128]
[null,"Male 70-74",5.8236993000000004E-3,4.8129204999999998E-3,1.6266601000000001E-3,1.3313441E-3,6.6408351999999997E-4,1.5758841999999999E-3,1.2323073000000001E-3,2.5032104000000002E-3,2.4433559999999998E-3,1.0825257E-3,1.0825257E-3,4.7804578000000004E-3,1.3899037999999999E-3,4.5342511E-3,2.377358E-3,3.3918957E-3,3.4968645999999999E-3,6.3372510000000003E-3,8.0476403999999997E-4,3.2074945000000001E-3,2.7405047000000002E-3,2.7405047000000002E-3,2.9962673E-3,5.6778286000000004E-3,3.9565874999999999E-3,4.0550999999999999E-3,4.5678248000000001E-3,1.0147702E-3,1.127491E-3,2.9321643999999998E-3,1.127491E-3,3.3955550999999998E-3,4.0896302000000004E-3,2.8371237999999998E-3,1.3000007E-3,1.6819634E-3,3.7125063000000001E-3,1.0361420000000001E-3,1.0361420000000001E-3,2.2416621999999998E-3,3.5032575999999998E-3,3.3695798E-3,1.2323073000000001E-3,null,null,1.6922320999999999E-3,3.0496612E-3,2.5689132E-3,2.9646680000000002E-3,3.2682123E-3,3.5639443E-3,3.0598870999999999E-3,8.0476403999999997E-4,129]
[null,"Male 75-79",5.9400507999999999E-3,5.0257560999999997E-3,1.7541993E-3,1.2990822000000001E-3,6.7502492999999995E-4,1.6246330999999999E-3,1.1995688999999999E-3,2.4888734000000001E-3,2.3280976000000001E-3,1.1391907E-3,1.1391907E-3,4.6678064000000002E-3,1.4736267E-3,4.4273072999999998E-3,2.3448587999999999E-3,3.2907636000000001E-3,3.466818E-3,6.3061221000000004E-3,8.0476403999999997E-4,3.1775872E-3,2.7685969000000002E-3,2.7685969000000002E-3,2.9621779000000002E-3,5.6163124000000002E-3,3.9648288000000004E-3,4.2975280000000001E-3,4.4701551000000004E-3,1.0599164999999999E-3,1.1595037999999999E-3,2.7982197E-3,1.1595037999999999E-3,3.4742795E-3,4.0332865999999998E-3,2.7174538000000002E-3,1.3451324000000001E-3,1.7121641E-3,3.6755685999999999E-3,1.0234838E-3,1.0234838E-3,2.3008715000000001E-3,3.3975992999999999E-3,3.3895632E-3,1.1995688999999999E-3,null,null,1.7279441E-3,3.2513235000000001E-3,2.6337829999999998E-3,2.9897884999999999E-3,3.2548322000000001E-3,3.4882632999999998E-3,3.0995206999999999E-3,8.0476403999999997E-4,130]
[null,"Male 80-84",5.9414910999999997E-3,4.9575701999999998E-3,1.7114043E-3,1.3394526000000001E-3,6.3582020999999997E-4,1.6292979999999999E-3,1.2035804E-3,2.3456695E-3,2.1002102E-3,1.1152198E-3,1.1152198E-3,4.6538179999999997E-3,1.5389284000000001E-3,4.5015788999999999E-3,2.5462384999999999E-3,3.2749949000000001E-3,3.4967393000000001E-3,6.2735239000000003E-3,8.0476403999999997E-4,3.1858208000000001E-3,2.7559516000000002E-3,2.7559516000000002E-3,2.9402971000000002E-3,5.7463413E-3,4.0109059999999998E-3,4.2468206999999999E-3,4.5187608000000004E-3,9.9076808000000006E-4,1.1152523000000001E-3,2.7754699999999999E-3,1.1152523000000001E-3,3.5011795999999999E-3,4.1002896999999998E-3,2.7158665000000001E-3,1.2150315000000001E-3,1.6786213E-3,3.6696393999999999E-3,9.9846522999999998E-4,9.9846522999999998E-4,2.4596182999999999E-3,3.3145610000000002E-3,3.4092368999999998E-3,1.2035804E-3,null,null,1.6966016E-3,3.3130049999999999E-3,2.5365823E-3,2.9741530000000002E-3,3.2304220000000002E-3,3.4437884999999999E-3,3.0199194E-3,8.0476403999999997E-4,131]
[null,"Male 85-89",5.6205363999999999E-3,4.8211110000000003E-3,1.7636602000000001E-3,1.3144910000000001E-3,6.8482633999999998E-4,1.7654583E-3,1.2543076000000001E-3,2.5807823999999999E-3,2.4534526999999999E-3,1.1581396999999999E-3,1.1581396999999999E-3,4.7259865999999999E-3,1.6283338000000001E-3,4.3100589000000002E-3,2.5140713000000002E-3,3.4938924999999999E-3,3.4504956999999998E-3,6.3175033E-3,8.0476403999999997E-4,3.2987747999999998E-3,2.7715459000000001E-3,2.7715459000000001E-3,3.0849529000000001E-3,5.6841480999999996E-3,4.0392401E-3,4.1762628000000003E-3,4.5564895999999997E-3,1.0967125000000001E-3,1.214906E-3,2.9627995000000001E-3,1.214906E-3,3.5165881000000002E-3,4.1844760999999999E-3,2.7509674000000001E-3,1.3160501000000001E-3,1.6597246E-3,3.7556014E-3,1.0729998000000001E-3,1.0729998000000001E-3,2.2971447999999999E-3,3.2489203999999999E-3,3.3984852000000002E-3,1.2543076000000001E-3,null,null,2.0084640000000002E-3,3.2594386000000001E-3,2.6774588E-3,2.9595923000000001E-3,3.1815148000000001E-3,3.5003656999999999E-3,3.0707386000000001E-3,8.0476403999999997E-4,132]
[null,"Male 90+",5.4176436E-3,4.4341199000000001E-3,1.5819028000000001E-3,1.3106280999999999E-3,6.5040047000000005E-4,1.9682520000000002E-3,1.0726212E-3,1.9513562000000001E-3,1.8563576000000001E-3,1.2787709999999999E-3,1.2787709999999999E-3,4.8383577000000004E-3,1.8209162E-3,4.4304412000000003E-3,2.1995853000000001E-3,3.9925854999999996E-3,3.8442987000000001E-3,6.9105579000000002E-3,8.0476403999999997E-4,3.0972078000000001E-3,2.9435640000000001E-3,2.9435640000000001E-3,2.7683057999999998E-3,5.5301166000000001E-3,4.1321823000000004E-3,3.8473577999999999E-3,4.6117841000000003E-3,1.0467072000000001E-3,1.1414762000000001E-3,2.5745218E-3,1.1414762000000001E-3,3.5421964999999998E-3,4.6136752000000003E-3,2.8220242999999999E-3,1.2069296E-3,1.7204841E-3,3.9545055000000003E-3,9.6788676000000005E-4,9.6788676000000005E-4,2.4016585999999999E-3,3.5656998000000001E-3,3.4883997999999999E-3,1.0726212E-3,null,null,2.3348187E-3,3.1363806E-3,2.0526877999999999E-3,3.091641E-3,3.2504656999999999E-3,3.5540247000000001E-3,3.0475814999999999E-3,8.0476403999999997E-4,133]
["SIMD Q3","Female 0-4",6.2457249000000001E-3,3.7003316000000001E-3,1.0228875000000001E-3,1.3049101000000001E-3,5.6295970000000005E-4,1.8263691E-3,8.4676825999999996E-4,1.5800790000000001E-3,1.6663081000000001E-3,1.0457677E-3,1.0457677E-3,5.1581068000000002E-3,1.6730701000000001E-3,4.1499333000000003E-3,2.0975654000000002E-3,3.6777532999999999E-3,3.7953991000000001E-3,6.5704072000000004E-3,7.4069208000000005E-4,3.1871255E-3,2.5984814999999999E-3,2.5984814999999999E-3,2.6240427999999999E-3,6.2611005000000001E-3,4.4410420000000001E-3,3.2012998000000002E-3,5.0872130999999998E-3,8.6466158999999999E-4,9.1996183999999996E-4,2.4035566E-3,9.1996183999999996E-4,3.6215570000000001E-3,4.7817038999999999E-3,2.4493560000000002E-3,1.3956551E-3,1.3419355E-3,3.8089550000000002E-3,1.0136951E-3,1.0136951E-3,1.6003244999999999E-3,3.1561296999999999E-3,3.5062917000000002E-3,8.4676825999999996E-4,null,null,2.3662227000000001E-3,3.3785559E-3,1.5128877000000001E-3,2.5586758000000001E-3,2.5166017000000001E-3,3.3415061999999998E-3,2.8210728999999999E-3,7.4069208000000005E-4,134]
[null,"Female 5-9",5.8956761000000003E-3,3.4813124E-3,1.0057658999999999E-3,1.2871161000000001E-3,5.5430637E-4,1.7858958000000001E-3,8.1448652999999995E-4,1.6422777E-3,1.6308617E-3,1.1360724E-3,1.1360724E-3,5.0915619000000004E-3,1.7078121E-3,4.2663420999999998E-3,2.1422686999999999E-3,3.5877367E-3,3.4843198999999999E-3,6.2094986999999997E-3,7.5494829999999996E-4,3.2077497E-3,2.6196637000000002E-3,2.6196637000000002E-3,2.6193100000000001E-3,5.8146226000000004E-3,4.1376119000000001E-3,2.9799342000000001E-3,4.5827337999999997E-3,7.9069223000000001E-4,8.4911264E-4,2.4056301999999998E-3,8.4911264E-4,3.5904599000000001E-3,4.3924539E-3,2.6021936999999998E-3,1.362133E-3,1.3755397999999999E-3,3.7639854000000002E-3,1.0251494999999999E-3,1.0251494999999999E-3,1.4161105999999999E-3,3.0933591E-3,3.2583934000000002E-3,8.1448652999999995E-4,null,null,2.3077871E-3,3.3546005999999999E-3,1.6513723E-3,2.4712873000000001E-3,2.3044785000000002E-3,3.2799096999999999E-3,2.8134305000000002E-3,7.5494829999999996E-4,135]
[null,"Female 10-15",5.2664558999999996E-3,2.8558393999999999E-3,9.2815811999999995E-4,1.2784947E-3,5.4811808999999996E-4,1.7094974000000001E-3,7.9863495E-4,1.7098707999999999E-3,1.6626270000000001E-3,1.1359775E-3,1.1359775E-3,4.9918797000000001E-3,1.5014892E-3,4.0819793999999996E-3,2.1753853999999999E-3,3.6611882999999998E-3,3.2607168000000001E-3,6.1065010000000003E-3,7.3727057000000005E-4,3.2530697000000002E-3,2.5606460000000002E-3,2.5606460000000002E-3,2.6940535999999998E-3,5.6323166999999999E-3,4.0144910999999998E-3,2.4952693000000001E-3,4.3639302999999999E-3,8.1698876000000004E-4,8.7624095999999999E-4,2.4134207000000001E-3,8.7624095999999999E-4,3.5924104E-3,4.1200910000000002E-3,2.5698488999999999E-3,1.3747773999999999E-3,1.3565077000000001E-3,3.7921867000000001E-3,1.024196E-3,1.024196E-3,1.5362323999999999E-3,3.1137631999999999E-3,3.1335056000000002E-3,7.9863495E-4,null,null,2.2917219999999999E-3,3.3370880000000002E-3,1.7440419999999999E-3,2.4900495E-3,2.4173992999999999E-3,3.2175951999999998E-3,2.8183225E-3,7.3727057000000005E-4,136]
[null,"Female 16-19",6.3918292999999996E-3,4.3432126000000001E-3,1.0022172E-3,1.2726007000000001E-3,5.3008557999999998E-4,1.8689269E-3,8.2423317000000003E-4,2.1726511999999999E-3,1.8280919999999999E-3,1.1367700000000001E-3,1.1367700000000001E-3,5.9062591999999997E-3,1.7296218E-3,4.1215065999999998E-3,2.0950218000000001E-3,3.8151209999999999E-3,4.7852574000000004E-3,9.3166212999999994E-3,7.4540282000000002E-4,3.1643923999999999E-3,2.4622391999999998E-3,2.4622391999999998E-3,2.7919780000000001E-3,9.5986426000000003E-3,5.9778983999999999E-3,3.7505479999999998E-3,7.4039776999999998E-3,8.7818048999999999E-4,9.5124996999999996E-4,2.4361904000000001E-3,9.5124996999999996E-4,3.5404925999999999E-3,6.4126560000000001E-3,2.6261843999999999E-3,1.3420598000000001E-3,1.4578702000000001E-3,3.7162607000000001E-3,1.0325598E-3,1.0325598E-3,1.5772685999999999E-3,3.1853411E-3,4.5396630000000002E-3,8.2423317000000003E-4,null,null,2.3522187999999999E-3,3.3221447000000002E-3,2.3781777999999998E-3,2.8571302999999999E-3,3.2225907999999998E-3,3.3137271999999999E-3,2.8304977000000002E-3,7.4540282000000002E-4,137]
[null,"Female 20-24",7.7284770000000001E-3,6.0797743000000001E-3,1.0757150999999999E-3,1.2951181000000001E-3,5.1305594000000004E-4,1.8165109E-3,8.5439439999999999E-4,2.917242E-3,1.7618471E-3,1.1599588000000001E-3,1.1599588000000001E-3,6.0418690999999997E-3,1.6916298000000001E-3,4.2292661999999998E-3,2.4239637000000001E-3,3.7163057999999999E-3,6.7390413E-3,1.0167449E-2,7.4271549000000001E-4,3.2411607000000001E-3,2.3036909E-3,2.3036909E-3,3.0754781E-3,1.0057501999999999E-2,7.0695206999999999E-3,5.4761623000000002E-3,8.4138744999999997E-3,9.1540063E-4,9.8407209999999993E-4,2.4147253E-3,9.8407209999999993E-4,3.6060615E-3,8.3833784000000005E-3,2.5203004000000002E-3,1.3637237999999999E-3,1.4607381999999999E-3,3.7524987000000002E-3,1.0454691000000001E-3,1.0454691000000001E-3,1.6961785E-3,3.2748636E-3,5.8975555000000002E-3,8.5439439999999999E-4,null,null,2.2446179999999999E-3,3.4456786E-3,3.2552307999999999E-3,2.9754642999999998E-3,3.6347815999999999E-3,3.3420584999999999E-3,2.7434763E-3,7.4271549000000001E-4,138]
[null,"Female 25-29",7.5917546999999998E-3,5.8297287E-3,1.0913863000000001E-3,1.2197149999999999E-3,6.0019532E-4,1.8709026E-3,8.3821307999999998E-4,2.1522967E-3,1.9591871999999999E-3,1.1672950000000001E-3,1.1672950000000001E-3,5.4441695000000002E-3,1.8087672E-3,4.1654863999999996E-3,2.4249135000000001E-3,3.9296532E-3,6.1296066000000003E-3,8.5084131000000007E-3,7.2999985000000002E-4,3.3502353000000001E-3,2.5464110000000002E-3,2.5464110000000002E-3,2.8026064000000002E-3,7.6680128000000004E-3,5.6504592999999997E-3,5.1571624E-3,6.5523619000000003E-3,9.2049473000000001E-4,9.8138803000000002E-4,2.4301220999999999E-3,9.8138803000000002E-4,3.6247851999999998E-3,7.3109715999999996E-3,2.5634738E-3,1.3857489999999999E-3,1.4118191E-3,3.7627000999999999E-3,1.0488658E-3,1.0488658E-3,1.6819523999999999E-3,3.3653155E-3,5.1420266000000003E-3,8.3821307999999998E-4,null,null,2.3637434999999999E-3,3.4699243999999998E-3,2.2345964999999999E-3,3.0236518999999999E-3,3.4935147999999999E-3,3.2231342E-3,2.8223337E-3,7.2999985000000002E-4,139]
[null,"Female 30-34",6.8628168999999998E-3,4.8288931000000004E-3,1.0285025999999999E-3,1.284122E-3,5.5891695000000001E-4,1.8207239000000001E-3,8.4352907000000003E-4,1.8585017000000001E-3,1.87353E-3,1.0471402999999999E-3,1.0471402999999999E-3,5.1499023000000001E-3,1.6644606E-3,4.0772854999999997E-3,2.3111624E-3,3.7594896000000002E-3,5.2556251000000003E-3,7.7395392999999998E-3,7.4776319999999999E-4,3.2885523999999998E-3,2.6327141E-3,2.6327141E-3,2.8037437999999999E-3,6.9424235000000003E-3,5.0192246999999999E-3,4.1958908999999997E-3,5.8199721000000001E-3,9.1577013000000002E-4,9.7217981000000001E-4,2.4195550999999999E-3,9.7217981000000001E-4,3.6299319000000002E-3,6.3997469999999999E-3,2.5829182000000001E-3,1.3951552E-3,1.3526335E-3,3.8131373E-3,1.0492974E-3,1.0492974E-3,1.8051564E-3,3.2910677000000002E-3,4.4101332000000002E-3,8.4352907000000003E-4,null,null,2.3881507000000001E-3,3.4147000000000001E-3,1.8457973E-3,2.7491226999999999E-3,2.8663292E-3,3.1565130000000001E-3,2.7287505E-3,7.4776319999999999E-4,140]
[null,"Female 35-39",6.4070391999999999E-3,4.0852045999999996E-3,9.8942453000000008E-4,1.2937618000000001E-3,5.7999120000000004E-4,1.8957084E-3,8.0761650999999996E-4,1.8733549999999999E-3,1.6817662E-3,1.1533763999999999E-3,1.1533763999999999E-3,5.1444409999999996E-3,1.8888392999999999E-3,4.0478893000000004E-3,2.5018470000000002E-3,3.7122862E-3,4.7762333000000001E-3,7.7983475999999999E-3,7.4639457000000005E-4,3.2646288000000002E-3,2.5937477999999998E-3,2.5937477999999998E-3,2.7790318999999998E-3,6.5209735E-3,4.6024960000000002E-3,3.5311673000000001E-3,5.2885162000000001E-3,9.2126358999999999E-4,9.8061538E-4,2.4039343E-3,9.8061538E-4,3.5894468999999999E-3,6.0672838999999996E-3,2.5851282E-3,1.3816359000000001E-3,1.4110856000000001E-3,3.7701137000000001E-3,1.0706296E-3,1.0706296E-3,1.6463089000000001E-3,3.3209447E-3,3.9869993999999999E-3,8.0761650999999996E-4,null,null,2.3398935000000002E-3,3.3557613000000002E-3,1.9925842E-3,2.5969115000000001E-3,2.6006409999999999E-3,3.23069E-3,2.8282136000000002E-3,7.4639457000000005E-4,141]
[null,"Female 40-44",6.2167886999999998E-3,3.6685476000000001E-3,1.0381050000000001E-3,1.3212488E-3,5.5893388000000002E-4,1.7476357E-3,8.3115895000000003E-4,1.6770938E-3,1.810367E-3,1.1334667999999999E-3,1.1334667999999999E-3,5.1490436000000001E-3,1.5667175E-3,4.3079195999999997E-3,2.3326846E-3,3.6230490000000001E-3,4.0388545000000003E-3,7.1641075999999996E-3,7.2090100999999999E-4,3.2298255000000001E-3,2.5704898999999999E-3,2.5704898999999999E-3,2.6657037E-3,6.2536503999999996E-3,4.3185105999999996E-3,3.1593518999999998E-3,4.8986180000000004E-3,8.3196325999999995E-4,8.9155294999999999E-4,2.4437056999999998E-3,8.9155294999999999E-4,3.5515483E-3,5.2009947000000003E-3,2.4838544999999999E-3,1.3418263000000001E-3,1.4307349E-3,3.7381032000000001E-3,1.0326288999999999E-3,1.0326288999999999E-3,1.5732421999999999E-3,3.2410327999999999E-3,3.5430639999999998E-3,8.3115895000000003E-4,null,null,2.2830022000000002E-3,3.3038338000000002E-3,1.5841385999999999E-3,2.4825556000000002E-3,2.3850341999999999E-3,3.3191261E-3,2.7883004000000002E-3,7.2090100999999999E-4,142]
[null,"Female 45-49",5.7264031000000002E-3,3.214316E-3,1.0170774E-3,1.253318E-3,5.6162151000000002E-4,1.8140004E-3,8.3517138E-4,1.6997587E-3,1.8628105000000001E-3,1.1476061000000001E-3,1.1476061000000001E-3,4.8904819000000002E-3,1.6613439999999999E-3,4.1102012999999996E-3,2.1998364999999999E-3,3.7367314000000002E-3,3.5911819E-3,6.9308453000000003E-3,7.4496893999999997E-4,3.1837496999999998E-3,2.4942510999999999E-3,2.4942510999999999E-3,2.6634660999999998E-3,5.9557515000000002E-3,4.1547473999999996E-3,2.7778034999999999E-3,4.5887376000000001E-3,8.9593237000000004E-4,9.6314516999999997E-4,2.4337339999999999E-3,9.6314516999999997E-4,3.5811136000000001E-3,4.6363296E-3,2.5282358E-3,1.316525E-3,1.4423955999999999E-3,3.8028307999999999E-3,1.0470595000000001E-3,1.0470595000000001E-3,1.5706752E-3,3.1424931000000001E-3,3.3204174000000001E-3,8.3517138E-4,null,null,2.3592166000000001E-3,3.3211314999999999E-3,1.5396445999999999E-3,2.4743157000000002E-3,2.4507028999999998E-3,3.2268412999999999E-3,2.8128771000000001E-3,7.4496893999999997E-4,143]
[null,"Female 50-54",5.6419414000000003E-3,3.3525776E-3,1.0002030000000001E-3,1.2360533000000001E-3,5.4022385000000001E-4,1.7924277000000001E-3,7.9457503000000004E-4,1.6506425999999999E-3,1.8359149E-3,1.1366777E-3,1.1366777E-3,4.8682335999999998E-3,1.6266492E-3,4.2135171000000004E-3,2.3739414999999998E-3,3.7569158999999999E-3,3.5491773999999999E-3,6.8142884000000001E-3,7.2192564000000004E-4,3.3375898E-3,2.5064419000000002E-3,2.5064419000000002E-3,2.7393272999999998E-3,5.6973123000000001E-3,4.1054007999999998E-3,2.9165337E-3,4.5181811000000001E-3,8.9224469E-4,9.7095354999999996E-4,2.4604443000000001E-3,9.7095354999999996E-4,3.5453990999999999E-3,4.5836376999999996E-3,2.5734331E-3,1.3972544E-3,1.4350221E-3,3.7140639E-3,1.0276803999999999E-3,1.0276803999999999E-3,1.5548718E-3,3.2420169999999998E-3,3.2990668000000001E-3,7.9457503000000004E-4,null,null,2.2886937999999999E-3,3.3603671E-3,1.4835196E-3,2.5161514E-3,2.5262826000000001E-3,3.2506396999999999E-3,2.7689979999999999E-3,7.2192564000000004E-4,144]
[null,"Female 55-59",5.5429498000000004E-3,3.3455282E-3,1.0556166999999999E-3,1.2950047E-3,5.5801001000000002E-4,1.8330773999999999E-3,8.1094966000000001E-4,1.5758021999999999E-3,1.7181599E-3,1.1453169E-3,1.1453169E-3,4.9598356999999999E-3,1.6920787999999999E-3,4.1442624999999999E-3,2.3506957000000001E-3,3.8093349E-3,3.4844601E-3,6.8737132999999997E-3,7.2444532999999998E-4,3.2890878999999999E-3,2.4770661E-3,2.4770661E-3,2.6765957000000002E-3,5.7163378000000004E-3,4.0935972000000001E-3,2.9228880999999998E-3,4.4945860000000001E-3,9.1281103000000001E-4,9.7692419999999996E-4,2.4448307000000001E-3,9.7692419999999996E-4,3.5836400999999999E-3,4.5648994999999996E-3,2.5233213999999999E-3,1.3863139E-3,1.418817E-3,3.7174106000000002E-3,1.0506070000000001E-3,1.0506070000000001E-3,1.5691575E-3,3.2273137000000001E-3,3.2846536E-3,8.1094966000000001E-4,null,null,2.3586140000000002E-3,3.4475932000000002E-3,1.4373267999999999E-3,2.5464251999999998E-3,2.6201135E-3,3.2644414E-3,2.7184102000000002E-3,7.2444532999999998E-4,145]
[null,"Female 60-64",5.5448525E-3,3.2411638999999999E-3,1.0166746E-3,1.2598066E-3,4.8434001E-4,1.8219586E-3,8.1182718999999999E-4,1.5039785E-3,1.7222089999999999E-3,1.0152169999999999E-3,1.0152169999999999E-3,4.7541679999999996E-3,1.6415096E-3,4.2301997999999999E-3,2.2953578999999999E-3,3.7629623E-3,3.4044044999999999E-3,6.6910470000000003E-3,7.4386014999999999E-4,3.1881595E-3,2.5378913000000001E-3,2.5378913000000001E-3,2.5962552000000001E-3,5.7411748000000002E-3,4.0445710000000003E-3,2.8621061000000001E-3,4.4682602999999996E-3,8.3393382E-4,8.9895830000000004E-4,2.4584157000000001E-3,8.9895830000000004E-4,3.5355843000000001E-3,4.4700041999999997E-3,2.5509539999999998E-3,1.4172923E-3,1.4672189E-3,3.7115042000000001E-3,1.0505390000000001E-3,1.0505390000000001E-3,1.4558685000000001E-3,3.3465330000000001E-3,3.1771303999999999E-3,8.1182718999999999E-4,null,null,2.3094243000000001E-3,3.3569521999999999E-3,1.3228062E-3,2.5118661999999998E-3,2.4856797E-3,3.2508824999999998E-3,2.6740199E-3,7.4386014999999999E-4,146]
[null,"Female 65-69",5.6003761000000003E-3,3.1252204999999999E-3,1.0243730000000001E-3,1.2503599E-3,5.5999676E-4,1.8317008E-3,8.2767528000000001E-4,1.4390829E-3,1.5603335000000001E-3,1.0993629000000001E-3,1.0993629000000001E-3,4.9855104000000004E-3,1.6546858E-3,4.1349083000000002E-3,2.2578965999999999E-3,3.6572638999999999E-3,3.2338296999999999E-3,6.5051359000000003E-3,7.4907811000000002E-4,3.3179097999999998E-3,2.4955212000000002E-3,2.4955212000000002E-3,2.6241621999999998E-3,5.6798886999999999E-3,3.9040803E-3,2.7637797999999999E-3,4.2910617999999999E-3,8.6650264000000005E-4,9.1927858999999996E-4,2.4585382000000002E-3,9.1927858999999996E-4,3.4327232E-3,4.2956289999999996E-3,2.5682652000000002E-3,1.4088763E-3,1.4324584999999999E-3,3.6185346999999999E-3,1.0424614999999999E-3,1.0424614999999999E-3,1.4604322000000001E-3,3.1873353E-3,3.0601846999999999E-3,8.2767528000000001E-4,null,null,2.3522724E-3,3.2220005999999998E-3,1.3288026E-3,2.5233445E-3,2.5530552999999999E-3,3.2683480999999999E-3,2.6686834E-3,7.4907811000000002E-4,147]
[null,"Female 70-74",4.9722142999999996E-3,2.7373889000000002E-3,9.6290617E-4,1.2034696E-3,4.7790278999999998E-4,1.8381521E-3,8.1989181000000002E-4,1.5144412999999999E-3,1.6480866E-3,1.0552164E-3,1.0552164E-3,4.8009450999999996E-3,1.739462E-3,4.3677207999999997E-3,2.1407845999999999E-3,3.6044724000000002E-3,3.1859276000000001E-3,6.3621989000000002E-3,7.5341294999999996E-4,3.4244629E-3,2.5191164999999998E-3,2.5191164999999998E-3,2.6771612E-3,5.8000316E-3,3.9675031000000003E-3,2.4594851E-3,4.3349922999999999E-3,8.8381354000000001E-4,9.8163692999999989E-4,2.5011853000000001E-3,9.8163692999999989E-4,3.5436043999999998E-3,4.1471616999999997E-3,2.5816322E-3,1.5310133E-3,1.4263658E-3,3.7097283999999999E-3,1.0418928E-3,1.0418928E-3,1.4441974000000001E-3,3.1350898E-3,3.0115338000000001E-3,8.1989181000000002E-4,null,null,2.2738598999999999E-3,3.3667026999999999E-3,1.4009548999999999E-3,2.4507600000000002E-3,2.3824580000000001E-3,3.4236637999999998E-3,2.6133560999999999E-3,7.5341294999999996E-4,148]
[null,"Female 75-79",4.8228641999999997E-3,2.8351052000000002E-3,1.0299822999999999E-3,1.2190524999999999E-3,3.9308972E-4,1.8545857E-3,8.1877695999999997E-4,1.5601974000000001E-3,1.9423223999999999E-3,1.0117004000000001E-3,1.0117004000000001E-3,4.8436369E-3,1.7218646E-3,4.3709240999999996E-3,2.0284483000000001E-3,3.5825804999999999E-3,3.1840706E-3,6.3629858000000001E-3,7.5450476000000002E-4,3.4055836E-3,2.4777011000000002E-3,2.4777011000000002E-3,2.6875150000000001E-3,5.8498209999999998E-3,3.9518564000000003E-3,2.5170776000000001E-3,4.3268311000000002E-3,8.3237578000000003E-4,9.1582437999999998E-4,2.4815241000000002E-3,9.1582437999999998E-4,3.5329361E-3,4.1814772000000004E-3,2.6458276000000001E-3,1.4880969E-3,1.4503589E-3,3.7245978999999999E-3,1.0396187E-3,1.0396187E-3,1.5895357E-3,3.1375708E-3,3.0530676999999998E-3,8.1877695999999997E-4,null,null,2.3579507E-3,3.3602910000000001E-3,1.2549784E-3,2.5608365000000001E-3,2.6424532E-3,3.2026823999999998E-3,2.6097246000000001E-3,7.5450476000000002E-4,149]
[null,"Female 80-84",4.8480056999999997E-3,3.0984094E-3,1.0680131000000001E-3,1.2719235000000001E-3,4.3550978000000002E-4,1.8108194999999999E-3,8.4907975000000002E-4,1.4277917999999999E-3,1.8878413E-3,9.9473516000000007E-4,9.9473516000000007E-4,4.9114735000000001E-3,1.649078E-3,4.1675321000000003E-3,2.0794517000000002E-3,3.7882676999999999E-3,3.2536073E-3,6.2222974E-3,7.7693681999999997E-4,3.4751995000000002E-3,2.5754675999999999E-3,2.5754675999999999E-3,2.5807831000000002E-3,5.8010719000000004E-3,4.0966049000000001E-3,2.7014617999999999E-3,4.4947644000000002E-3,8.5595837999999998E-4,9.2492083999999998E-4,2.6249368999999999E-3,9.2492083999999998E-4,3.6021465999999999E-3,4.2837127000000001E-3,2.5754068E-3,1.5900088E-3,1.4718884999999999E-3,3.7644659000000001E-3,1.0406367E-3,1.0406367E-3,1.4788755999999999E-3,3.3690177E-3,3.1675708E-3,8.4907975000000002E-4,null,null,2.2649323E-3,3.469785E-3,1.1050153000000001E-3,2.7202263000000002E-3,2.8389219999999998E-3,3.2555080999999999E-3,2.6214345999999999E-3,7.7693681999999997E-4,150]
[null,"Female 85-89",5.0797891E-3,2.8957776000000002E-3,1.1080923999999999E-3,1.3739736999999999E-3,4.3667139999999999E-4,1.8722343000000001E-3,7.8842113999999996E-4,1.5516465E-3,1.9515182E-3,9.6096215000000004E-4,9.6096215000000004E-4,5.0722583999999998E-3,1.7721544000000001E-3,4.7263284000000003E-3,2.1684732999999999E-3,3.8961756999999998E-3,3.3811687000000002E-3,6.3534317999999999E-3,7.6030311000000004E-4,3.5478629E-3,2.4791644E-3,2.4791644E-3,2.6943570000000001E-3,5.8073723000000004E-3,4.1383588999999998E-3,2.6494244000000002E-3,4.5426553000000001E-3,8.1823026999999998E-4,8.5666070999999996E-4,2.6456920999999999E-3,8.5666070999999996E-4,3.6122580000000001E-3,4.5704693000000003E-3,2.6424448000000001E-3,1.7703915E-3,1.3886084000000001E-3,3.8341065000000001E-3,9.1905112E-4,9.1905112E-4,1.4783115999999999E-3,3.3125423E-3,3.1844223999999998E-3,7.8842113999999996E-4,null,null,2.3956988000000002E-3,3.4630694000000002E-3,1.3063918999999999E-3,2.6003262000000001E-3,2.6993856000000001E-3,3.3510992999999998E-3,2.6745533000000002E-3,7.6030311000000004E-4,151]
[null,"Female 90+",5.0111636999999997E-3,3.0920645E-3,1.2629233999999999E-3,1.4852855E-3,4.8823393E-4,1.8094851E-3,8.1359525000000005E-4,1.1189686999999999E-3,1.6292294E-3,1.0181019000000001E-3,1.0181019000000001E-3,4.9981326E-3,1.7300942E-3,5.0022182999999998E-3,2.0794692000000001E-3,4.2363237999999996E-3,3.6498462000000001E-3,6.4913938000000001E-3,7.7934230999999999E-4,3.6053143000000002E-3,2.6740441E-3,2.6740441E-3,2.2121035000000002E-3,5.7791941999999997E-3,4.0593892000000001E-3,2.8099258999999999E-3,4.4483900999999996E-3,8.4162142999999999E-4,9.2095334999999997E-4,2.6805332999999998E-3,9.2095334999999997E-4,3.3676357000000001E-3,4.6134148999999996E-3,2.7659272000000001E-3,2.0432446999999999E-3,1.4202963E-3,3.5782116000000002E-3,9.5538899999999996E-4,9.5538899999999996E-4,1.3145132999999999E-3,3.157811E-3,3.2227857E-3,8.1359525000000005E-4,null,null,2.5200658E-3,3.260551E-3,9.9140346999999993E-4,2.6340766000000002E-3,2.6068119E-3,2.8675287000000001E-3,2.7121102999999999E-3,7.7934230999999999E-4,152]
[null,"Male 0-4",6.0761226E-3,3.6807491000000001E-3,1.0520871E-3,1.2667498E-3,6.0256814999999999E-4,1.8085279E-3,8.3455775000000002E-4,1.5400213E-3,1.6234334E-3,1.0398872E-3,1.0398872E-3,5.1760905999999997E-3,1.8177375E-3,3.9874259E-3,2.3642948000000001E-3,3.7253299000000002E-3,3.8356941999999998E-3,6.6351047999999996E-3,7.4438192000000002E-4,3.1437512999999999E-3,2.5743544000000002E-3,2.5743544000000002E-3,2.5684385999999999E-3,6.3468585999999997E-3,4.3707481000000003E-3,3.1719882999999998E-3,5.0090430000000003E-3,8.2860881000000001E-4,8.8399625000000004E-4,2.4305792000000001E-3,8.8399625000000004E-4,3.5736727999999998E-3,4.8867440999999998E-3,2.4896413E-3,1.3567057E-3,1.3642941999999999E-3,3.7561599000000001E-3,1.066378E-3,1.066378E-3,1.7092454E-3,3.2556147999999998E-3,3.4844473E-3,8.3455775000000002E-4,null,null,2.1849618999999999E-3,3.3563788E-3,1.4629044E-3,2.5973311000000001E-3,2.6204546000000001E-3,3.1535767000000002E-3,2.7898615E-3,7.4438192000000002E-4,153]
[null,"Male 5-9",5.7517159999999996E-3,3.2673120000000001E-3,9.3257037000000001E-4,1.2602773000000001E-3,5.1777490000000002E-4,1.7557854999999999E-3,7.9471333000000004E-4,1.6378434000000001E-3,1.7925074E-3,1.0671000000000001E-3,1.0671000000000001E-3,4.9688433999999998E-3,1.4843275000000001E-3,4.1602779999999999E-3,2.0796490999999999E-3,3.6305933999999998E-3,3.4627384000000001E-3,6.2671252999999998E-3,7.6008053000000005E-4,3.2912881999999999E-3,2.530586E-3,2.530586E-3,2.7665314000000002E-3,5.9180348000000002E-3,4.1527250000000003E-3,2.8244468999999999E-3,4.5959023000000003E-3,8.2069059000000003E-4,8.8717020000000002E-4,2.4522609999999999E-3,8.8717020000000002E-4,3.5902779000000001E-3,4.3472488999999996E-3,2.6459130000000002E-3,1.3434115E-3,1.4457776000000001E-3,3.7695898000000001E-3,1.0156765E-3,1.0156765E-3,1.5690521000000001E-3,3.2200788000000002E-3,3.2526737E-3,7.9471333000000004E-4,null,null,2.3427616999999999E-3,3.3654907999999999E-3,1.5152796E-3,2.4850033000000001E-3,2.4342080999999998E-3,3.2948814000000001E-3,2.8970280999999999E-3,7.6008053000000005E-4,154]
[null,"Male 10-15",5.3720892999999997E-3,2.8230767000000001E-3,1.0047524E-3,1.3087585999999999E-3,5.8087101000000002E-4,1.8089455999999999E-3,8.1546546000000003E-4,1.5870496000000001E-3,1.7159969999999999E-3,1.0900241E-3,1.0900241E-3,4.9853032E-3,1.658295E-3,4.0159128000000002E-3,2.1628607000000002E-3,3.7182324999999999E-3,3.2366199999999999E-3,6.1677312000000001E-3,7.5494829999999996E-4,3.1037512000000001E-3,2.4957428999999999E-3,2.4957428999999999E-3,2.5704396000000001E-3,5.7972687999999998E-3,4.0496242999999996E-3,2.4365454000000002E-3,4.4787697999999999E-3,8.6550454999999998E-4,9.3995592999999999E-4,2.412043E-3,9.3995592999999999E-4,3.5174107000000001E-3,4.1888324000000001E-3,2.5700261E-3,1.31679E-3,1.4080447E-3,3.7184902000000001E-3,1.0806431999999999E-3,1.0806431999999999E-3,1.3889137999999999E-3,3.1176215999999999E-3,3.1154472E-3,8.1546546000000003E-4,null,null,2.3431093E-3,3.252825E-3,1.4860188E-3,2.4311515000000001E-3,2.3598571E-3,3.2103727999999998E-3,2.8238446E-3,7.5494829999999996E-4,155]
[null,"Male 16-19",6.0776309000000004E-3,3.6517351000000002E-3,1.0072423999999999E-3,1.2842411E-3,5.2408716999999998E-4,1.9051008999999999E-3,8.3743407999999997E-4,1.8454001999999999E-3,1.8954086000000001E-3,1.099776E-3,1.099776E-3,5.6299032000000004E-3,1.8781176999999999E-3,4.1085341999999997E-3,2.2042479999999998E-3,3.8331734999999998E-3,4.3123937000000001E-3,8.4968301999999996E-3,7.5399788000000002E-4,3.2346164999999998E-3,2.5116829000000002E-3,2.5116829000000002E-3,2.7177893000000001E-3,8.5193123999999995E-3,5.3146052999999997E-3,3.1809401999999998E-3,6.4648845999999999E-3,8.1765243999999996E-4,8.9234655E-4,2.4424062999999999E-3,8.9234655E-4,3.5686346E-3,5.7172383999999996E-3,2.5858603999999999E-3,1.3459969E-3,1.3373027000000001E-3,3.7240038999999999E-3,1.0215159000000001E-3,1.0215159000000001E-3,1.4373272E-3,3.2005244999999999E-3,4.0373242999999998E-3,8.3743407999999997E-4,null,null,2.3467559000000002E-3,3.3724874000000001E-3,1.7961380999999999E-3,2.6341847000000002E-3,2.750742E-3,3.3151826000000001E-3,2.8820357E-3,7.5399788000000002E-4,156]
[null,"Male 20-24",7.7769435000000003E-3,6.0200966000000002E-3,9.9643134000000004E-4,1.2972299000000001E-3,6.1862525999999997E-4,1.8040827000000001E-3,8.1501109999999996E-4,2.4867053000000002E-3,1.6752423000000001E-3,1.1167760000000001E-3,1.1167760000000001E-3,5.9750248000000001E-3,1.6598543E-3,4.1960905999999997E-3,2.3665163E-3,3.7118838999999999E-3,6.0819270999999996E-3,9.8189116000000007E-3,7.3879112999999995E-4,3.2891708E-3,2.3164413999999999E-3,2.3164413999999999E-3,2.8933599000000002E-3,9.7788962999999993E-3,6.6471496E-3,5.5117118000000001E-3,7.9563549000000004E-3,8.6876662999999996E-4,9.1867876000000003E-4,2.4484139999999999E-3,9.1867876000000003E-4,3.6224523000000001E-3,7.7141752000000003E-3,2.6103402000000001E-3,1.3566799E-3,1.404389E-3,3.7458997999999999E-3,1.0174336999999999E-3,1.0174336999999999E-3,1.7670626E-3,3.1775008E-3,5.4500392000000003E-3,8.1501109999999996E-4,null,null,2.3430683999999999E-3,3.4844272000000001E-3,2.8453518000000001E-3,2.8016600000000001E-3,3.2748829000000001E-3,3.3044501E-3,2.8001460999999999E-3,7.3879112999999995E-4,157]
[null,"Male 25-29",7.9323425999999995E-3,6.4262542999999998E-3,1.0860132000000001E-3,1.2751548E-3,4.4207274999999999E-4,1.8949010000000001E-3,8.4203691000000005E-4,2.0748099999999998E-3,1.5680995000000001E-3,1.2726383000000001E-3,1.2726383000000001E-3,5.5627617999999997E-3,1.7568315000000001E-3,4.1866233000000001E-3,2.5877967000000001E-3,3.7278749999999999E-3,5.9848306999999998E-3,8.5076661999999997E-3,7.4875419000000002E-4,3.3136732000000001E-3,2.5901026000000001E-3,2.5901026000000001E-3,2.7567201999999999E-3,8.1671270999999993E-3,5.8721685999999999E-3,5.8009135999999998E-3,6.8060354999999999E-3,8.6984853000000005E-4,9.3388667999999998E-4,2.4698849000000002E-3,9.3388667999999998E-4,3.6585859000000001E-3,7.2026937000000003E-3,2.5302995999999999E-3,1.3883192999999999E-3,1.4686508E-3,3.7409356000000001E-3,1.0193546999999999E-3,1.0193546999999999E-3,1.680356E-3,3.3311348000000002E-3,5.2469120999999999E-3,8.4203691000000005E-4,null,null,2.3882577999999998E-3,3.5702809999999998E-3,2.2361007999999998E-3,3.0475836000000002E-3,3.4949307000000001E-3,3.2436819999999999E-3,2.8098810000000002E-3,7.4875419000000002E-4,158]
[null,"Male 30-34",7.5378320000000004E-3,5.7189479000000001E-3,1.0569232E-3,1.3046156000000001E-3,5.7245086999999995E-4,1.8823948E-3,8.6303020000000005E-4,2.0012744000000001E-3,1.8646976E-3,1.1001178999999999E-3,1.1001178999999999E-3,5.0976197000000001E-3,1.7935487999999999E-3,4.2060520000000001E-3,2.3849504E-3,3.7946262999999998E-3,5.5220243999999996E-3,7.9540089000000001E-3,7.4427271999999997E-4,3.4221385000000001E-3,2.6290424E-3,2.6290424E-3,2.8832939000000002E-3,7.4356090999999997E-3,5.3652743999999999E-3,5.0542937000000003E-3,6.2518371000000001E-3,9.6190068999999997E-4,1.0059893E-3,2.4437448000000001E-3,1.0059893E-3,3.5875868000000001E-3,6.6667734999999997E-3,2.5004833000000001E-3,1.398699E-3,1.4288777999999999E-3,3.744608E-3,1.0269538E-3,1.0269538E-3,1.7293927E-3,3.3482047999999999E-3,4.7648539999999998E-3,8.6303020000000005E-4,null,null,2.3724961E-3,3.4180809999999999E-3,2.0829765E-3,2.8243621E-3,3.0116155000000002E-3,3.1968005999999998E-3,2.7544522000000002E-3,7.4427271999999997E-4,159]
[null,"Male 35-39",7.0312782000000002E-3,4.8881801999999999E-3,1.0320362999999999E-3,1.2776834000000001E-3,5.4129538999999997E-4,1.8778162000000001E-3,8.2618440999999998E-4,1.9201725999999999E-3,1.9541499E-3,1.0792941E-3,1.0792941E-3,5.3843464999999997E-3,1.8485330999999999E-3,4.0804939E-3,2.2186547999999999E-3,3.70316E-3,5.1045971999999998E-3,7.8144119999999997E-3,7.1429158999999996E-4,3.3195221000000001E-3,2.6866703E-3,2.6866703E-3,2.8722228000000001E-3,6.8437248000000001E-3,4.9096215999999996E-3,4.2522968999999999E-3,5.7026367000000003E-3,9.1471627999999995E-4,9.5682101999999998E-4,2.4382176000000001E-3,9.5682101999999998E-4,3.6279082000000001E-3,6.2416088999999999E-3,2.4905856999999998E-3,1.4061246999999999E-3,1.3744225999999999E-3,3.7897582999999999E-3,1.0283997E-3,1.0283997E-3,1.9154078999999999E-3,3.4261879000000001E-3,4.3168305000000004E-3,8.2618440999999998E-4,null,null,2.4118780000000001E-3,3.4338958E-3,1.8988735999999999E-3,2.7991561000000002E-3,2.9151002E-3,3.3223475E-3,2.7564083999999998E-3,7.1429158999999996E-4,160]
[null,"Male 40-44",6.7891664999999999E-3,4.3351580000000004E-3,1.0396585999999999E-3,1.2638363000000001E-3,5.3940957999999998E-4,1.7945260000000001E-3,7.8898271999999997E-4,1.8510063E-3,1.8393509999999999E-3,1.1272329E-3,1.1272329E-3,5.2043558000000002E-3,1.6906628E-3,4.1538165E-3,2.3760527999999999E-3,3.5894727E-3,4.4224779000000001E-3,7.6361642999999996E-3,7.4438192000000002E-4,3.2804084E-3,2.6381632999999999E-3,2.6381632999999999E-3,2.7753528999999999E-3,6.6671305999999996E-3,4.5138351000000004E-3,3.7363637000000002E-3,5.2310823999999999E-3,8.8596762999999996E-4,9.5079704999999999E-4,2.4587156E-3,9.5079704999999999E-4,3.5585325999999999E-3,5.6621563000000003E-3,2.5162780999999999E-3,1.3634259E-3,1.3567182000000001E-3,3.7721909999999998E-3,1.0363879E-3,1.0363879E-3,1.6487610000000001E-3,3.3016768000000002E-3,3.8511292000000001E-3,7.8898271999999997E-4,null,null,2.2792112999999998E-3,3.2823745E-3,1.8603420000000001E-3,2.6488458000000002E-3,2.6616252E-3,3.2563192999999998E-3,2.8374020000000002E-3,7.4438192000000002E-4,161]
[null,"Male 45-49",6.3964668999999998E-3,3.9870230999999997E-3,1.0023020000000001E-3,1.2555816E-3,5.3528539E-4,1.7592492999999999E-3,8.331422E-4,1.7250976999999999E-3,1.8008151999999999E-3,1.1525761E-3,1.1525761E-3,5.1723895999999997E-3,1.5969875E-3,4.0440746000000001E-3,2.1075488000000002E-3,3.7496500000000002E-3,3.8872758999999998E-3,7.3311477999999999E-3,7.6419750000000005E-4,3.3273109999999999E-3,2.5189202000000001E-3,2.5189202000000001E-3,2.780275E-3,6.4360998000000001E-3,4.3663336000000002E-3,3.3967201999999998E-3,5.0065042000000002E-3,8.7785830999999998E-4,9.4307750000000002E-4,2.465297E-3,9.4307750000000002E-4,3.5639678000000002E-3,5.0603235E-3,2.5266754000000001E-3,1.3476871E-3,1.4472717E-3,3.7796487999999999E-3,1.0262391E-3,1.0262391E-3,1.5372996E-3,3.1978921E-3,3.5610161999999998E-3,8.331422E-4,null,null,2.2512133999999999E-3,3.3174964999999998E-3,1.6521086E-3,2.5294456000000002E-3,2.5420729000000001E-3,3.3324956999999998E-3,2.7722325000000001E-3,7.6419750000000005E-4,162]
[null,"Male 50-54",6.0716475999999997E-3,3.7552069E-3,1.0025323999999999E-3,1.2666931E-3,4.9442151999999997E-4,1.8020428000000001E-3,8.1178412000000003E-4,1.7301681000000001E-3,1.7452520999999999E-3,1.1456083000000001E-3,1.1456083000000001E-3,5.0276484999999997E-3,1.7208309999999999E-3,4.2465081999999996E-3,2.2770488000000001E-3,3.6592726000000001E-3,3.8359029999999999E-3,7.2938884000000002E-3,7.5095653000000005E-4,3.2735797999999998E-3,2.5200443E-3,2.5200443E-3,2.7639625999999998E-3,5.9719109000000003E-3,4.1806721000000003E-3,3.2656919000000001E-3,4.6240049E-3,8.7792996999999998E-4,9.6168456000000002E-4,2.4493963000000001E-3,9.6168456000000002E-4,3.5972837E-3,5.0168610000000001E-3,2.4756397999999998E-3,1.3985593000000001E-3,1.4108943000000001E-3,3.7339600000000001E-3,1.0493295000000001E-3,1.0493295000000001E-3,1.5868243E-3,3.2049805999999998E-3,3.4503436E-3,8.1178412000000003E-4,null,null,2.2887632000000002E-3,3.4395663999999999E-3,1.7168427999999999E-3,2.5888702000000001E-3,2.6590312000000001E-3,3.1347580000000001E-3,2.7681202999999999E-3,7.5095653000000005E-4,163]
[null,"Male 55-59",6.1783617999999997E-3,3.7832558E-3,1.0279262E-3,1.2966808E-3,5.6864798999999998E-4,1.7729289000000001E-3,8.1115129000000001E-4,1.6273939000000001E-3,1.7226667999999999E-3,1.1916908000000001E-3,1.1916908000000001E-3,5.0555983999999998E-3,1.5627874999999999E-3,4.3963962000000004E-3,2.3784623000000001E-3,3.8546728999999998E-3,3.6414300999999998E-3,7.1366368999999999E-3,7.4386014999999999E-4,3.3297075000000001E-3,2.5049708999999999E-3,2.5049708999999999E-3,2.7155005000000002E-3,5.9122945999999996E-3,4.157918E-3,3.3309408E-3,4.5830491000000001E-3,9.0704393000000003E-4,9.6851040000000004E-4,2.4612638999999999E-3,9.6851040000000004E-4,3.5931873E-3,4.7819172000000002E-3,2.5841771E-3,1.4718839000000001E-3,1.4292635E-3,3.7750034E-3,1.0676348999999999E-3,1.0676348999999999E-3,1.5292890999999999E-3,3.2225336999999999E-3,3.3922281999999998E-3,8.1115129000000001E-4,null,null,2.3705037000000002E-3,3.4153006999999998E-3,1.5343164999999999E-3,2.5912635000000001E-3,2.6882626000000001E-3,3.1694034E-3,2.7437718000000002E-3,7.4386014999999999E-4,164]
[null,"Male 60-64",6.0908068000000001E-3,3.6620848999999998E-3,1.0162931E-3,1.2753504999999999E-3,5.2401469999999997E-4,1.7891735E-3,8.0688460999999996E-4,1.6181928999999999E-3,1.8365647E-3,1.1030795E-3,1.1030795E-3,4.9928087000000003E-3,1.5393099000000001E-3,4.2352945999999999E-3,2.1960915E-3,3.8259914000000001E-3,3.5683324000000002E-3,6.9836372999999997E-3,7.3136068999999997E-4,3.1989372999999999E-3,2.5351581000000001E-3,2.5351581000000001E-3,2.6017672000000001E-3,5.8555211999999999E-3,4.1443026000000001E-3,3.1863606999999999E-3,4.6128187999999997E-3,9.1872462999999997E-4,9.8871440000000005E-4,2.4788102999999998E-3,9.8871440000000005E-4,3.5577616999999998E-3,4.6882736E-3,2.5992009000000002E-3,1.4002322E-3,1.4257187000000001E-3,3.7896739999999998E-3,1.0588908000000001E-3,1.0588908000000001E-3,1.5850021000000001E-3,3.2918767999999998E-3,3.2931631E-3,8.0688460999999996E-4,null,null,2.3298237999999998E-3,3.3331786000000002E-3,1.4133987E-3,2.5626923999999998E-3,2.5896092000000002E-3,3.1966160000000002E-3,2.720807E-3,7.3136068999999997E-4,165]
[null,"Male 65-69",5.6639033999999998E-3,3.2283599E-3,1.0148701E-3,1.2369143000000001E-3,4.8334376000000001E-4,1.7617668E-3,8.1385566999999997E-4,1.5596200000000001E-3,1.6907173999999999E-3,1.0527098E-3,1.0527098E-3,4.9823057E-3,1.5587431000000001E-3,4.2607868000000002E-3,2.2794352999999999E-3,3.6393947E-3,3.3488057000000001E-3,6.6676414999999999E-3,7.1739871000000004E-4,3.2655848E-3,2.4824764000000001E-3,2.4824764000000001E-3,2.6397276999999999E-3,5.8842371000000001E-3,4.0107620999999998E-3,2.8500463999999999E-3,4.4532907000000002E-3,8.3051866E-4,8.9334842000000003E-4,2.4895199999999998E-3,8.9334842000000003E-4,3.4854615000000002E-3,4.4502239000000004E-3,2.5794993E-3,1.4120194E-3,1.4660274999999999E-3,3.6554371000000001E-3,1.0543785999999999E-3,1.0543785999999999E-3,1.5299739000000001E-3,3.2262837000000002E-3,3.1215359999999998E-3,8.1385566999999997E-4,null,null,2.2646734000000002E-3,3.2858601999999999E-3,1.4340424999999999E-3,2.5149695999999999E-3,2.5482056999999998E-3,3.2321312000000001E-3,2.6465221000000001E-3,7.1739871000000004E-4,166]
[null,"Male 70-74",5.5577839E-3,3.0352254E-3,9.7438565000000003E-4,1.2202063E-3,4.9788847999999997E-4,1.7891020999999999E-3,8.1865245000000005E-4,1.3715657E-3,1.5558917E-3,1.0726698999999999E-3,1.0726698999999999E-3,4.9214758999999997E-3,1.6530318E-3,4.4163236999999996E-3,2.1968749E-3,3.6556461999999999E-3,3.1538921999999998E-3,6.7169237999999999E-3,7.6331814999999997E-4,3.4167359E-3,2.4735542999999999E-3,2.4735542999999999E-3,2.6915559999999999E-3,5.8172405999999998E-3,3.9513428000000003E-3,2.6920335000000001E-3,4.3484656999999999E-3,8.5023080000000005E-4,9.1060100000000003E-4,2.500983E-3,9.1060100000000003E-4,3.4642376E-3,4.1886683999999997E-3,2.5461719000000002E-3,1.4279683E-3,1.4686704E-3,3.6125522999999999E-3,1.0385055000000001E-3,1.0385055000000001E-3,1.4899048000000001E-3,3.0965001999999999E-3,3.0240385999999999E-3,8.1865245000000005E-4,null,null,2.2196779000000001E-3,3.2999691999999999E-3,1.1940163000000001E-3,2.4738587E-3,2.4741759999999998E-3,3.3585442999999999E-3,2.6167843000000001E-3,7.6331814999999997E-4,167]
[null,"Male 75-79",4.8832744000000001E-3,2.8803330000000001E-3,9.9335109999999999E-4,1.2116226000000001E-3,5.0394016000000004E-4,1.8918372E-3,8.0691802000000003E-4,1.5141760999999999E-3,1.8886259E-3,9.8070584000000001E-4,9.8070584000000001E-4,4.9270857000000001E-3,1.7680422999999999E-3,4.1269977000000001E-3,1.9982513E-3,3.6914481E-3,3.1187236000000001E-3,6.4745745999999996E-3,7.5993803000000003E-4,3.4563180999999999E-3,2.4445562000000001E-3,2.4445562000000001E-3,2.7306437999999999E-3,6.0412874000000004E-3,4.0426194E-3,2.5369960000000001E-3,4.4940487000000003E-3,9.1143569E-4,9.8000477999999995E-4,2.5148075000000002E-3,9.8000477999999995E-4,3.5530757E-3,4.1537643000000004E-3,2.5340240000000002E-3,1.4856159999999999E-3,1.4574025E-3,3.7763954999999998E-3,1.0192666E-3,1.0192666E-3,1.2566922000000001E-3,3.1715866999999999E-3,3.0324822E-3,8.0691802000000003E-4,null,null,2.3827229000000002E-3,3.3438261999999999E-3,1.2146163000000001E-3,2.4697622E-3,2.494731E-3,3.3122599E-3,2.6303620999999998E-3,7.5993803000000003E-4,168]
[null,"Male 80-84",4.9367639999999997E-3,2.9981039000000001E-3,1.0669575000000001E-3,1.2325916999999999E-3,4.0807845999999998E-4,1.7544526999999999E-3,8.2576869000000001E-4,1.4324101999999999E-3,1.8921793E-3,9.9383201000000001E-4,9.9383201000000001E-4,5.0269714999999996E-3,1.5071990000000001E-3,4.2686188000000003E-3,1.9812206999999999E-3,3.5917938000000001E-3,3.2583487000000001E-3,6.3377935000000002E-3,7.6160119999999995E-4,3.4399220999999998E-3,2.5052697999999999E-3,2.5052697999999999E-3,2.5875706000000002E-3,5.8797685999999998E-3,4.0109819000000001E-3,2.6753824000000002E-3,4.4119464999999997E-3,8.1536162000000003E-4,9.0732884999999996E-4,2.5577946000000002E-3,9.0732884999999996E-4,3.5240338E-3,4.3112230000000003E-3,2.6499648000000002E-3,1.5131341E-3,1.4513753000000001E-3,3.6023725000000001E-3,1.0047203000000001E-3,1.0047203000000001E-3,1.5575178000000001E-3,3.1674104E-3,3.0600877999999998E-3,8.2576869000000001E-4,null,null,2.3130830000000001E-3,3.4553467E-3,1.1565486000000001E-3,2.5710593999999998E-3,2.6317020000000001E-3,3.310014E-3,2.5235536000000002E-3,7.6160119999999995E-4,169]
[null,"Male 85-89",5.5338419000000002E-3,3.1968450999999998E-3,1.0182887E-3,1.3433549E-3,3.5785922000000002E-4,1.8106384E-3,7.9018831999999996E-4,1.3727288E-3,1.7543099E-3,9.5333379999999995E-4,9.5333379999999995E-4,5.0593171999999999E-3,1.5872943E-3,4.2983963999999996E-3,2.0323752E-3,3.8623726E-3,3.3079542000000002E-3,6.5961513000000003E-3,7.9885760000000003E-4,3.3935622999999998E-3,2.5289917999999998E-3,2.5289917999999998E-3,2.6869773999999998E-3,5.9759560999999998E-3,4.0273857000000003E-3,2.8239666E-3,4.3609510000000001E-3,8.0246384999999997E-4,8.7656458999999995E-4,2.6262768000000001E-3,8.7656458999999995E-4,3.6256249999999999E-3,4.4291032999999999E-3,2.4219898000000001E-3,1.7198585000000001E-3,1.4423928999999999E-3,3.7464566999999998E-3,1.0470404999999999E-3,1.0470404999999999E-3,1.4666346000000001E-3,3.2737697E-3,3.1273421E-3,7.9018831999999996E-4,null,null,2.3434099000000002E-3,3.5306853000000001E-3,1.0964115E-3,2.6935119999999999E-3,2.8226464E-3,3.1858911000000002E-3,2.7723089000000001E-3,7.9885760000000003E-4,170]
[null,"Male 90+",4.9996199000000002E-3,2.8547351000000002E-3,1.0162630000000001E-3,1.3338934E-3,3.9500868000000002E-4,1.8435435E-3,7.8906823000000003E-4,1.6092093E-3,2.0901727999999998E-3,1.0366187E-3,1.0366187E-3,4.5899445999999997E-3,1.6719139E-3,4.1171187000000001E-3,1.8641024E-3,3.9180233000000002E-3,3.3606295000000001E-3,6.8150186000000001E-3,8.148246E-4,3.2331904000000001E-3,2.3973470000000002E-3,2.3973470000000002E-3,2.6299973999999999E-3,5.6987395999999997E-3,4.0067732E-3,2.5423760999999999E-3,4.4021536999999996E-3,8.3888862999999996E-4,9.5994682999999998E-4,2.6642688999999999E-3,9.5994682999999998E-4,3.4753474999999999E-3,4.5358854999999997E-3,2.8161989000000001E-3,1.6643929000000001E-3,1.5248891E-3,3.7999491E-3,9.3871000000000004E-4,9.3871000000000004E-4,1.4712859E-3,3.3938739999999998E-3,3.0806556000000001E-3,7.8906823000000003E-4,null,null,2.5499733000000002E-3,3.2560219999999999E-3,9.5334963000000001E-4,2.4182032999999999E-3,2.4327238000000002E-3,3.4268625999999999E-3,2.6475878000000001E-3,8.148246E-4,171]
["SIMD Q4","Female 0-4",5.5723400000000003E-3,3.4948902000000001E-3,1.0520951999999999E-3,1.1801297000000001E-3,1.5010242E-3,2.0866906000000002E-3,6.7838526000000004E-4,2.0665813000000002E-3,2.1561303000000001E-3,1.068849E-3,1.068849E-3,4.5312959999999998E-3,2.3683426E-3,3.9493875000000001E-3,2.2743198000000002E-3,3.2839032E-3,4.3057012000000004E-3,6.6328389000000001E-3,null,3.1443392E-3,2.5100061E-3,2.5100061E-3,2.6608718999999999E-3,6.1718696000000002E-3,4.3203047999999999E-3,3.2786040000000001E-3,4.8680077000000004E-3,1.4596545000000001E-3,1.458163E-3,2.5190580999999998E-3,1.458163E-3,3.5240937000000001E-3,5.2066118999999998E-3,2.6518105999999999E-3,9.0509770000000002E-4,1.4623857999999999E-3,3.8162067000000002E-3,7.4807274999999995E-4,7.4807274999999995E-4,1.2809492E-3,3.4471264000000001E-3,3.6211868E-3,6.7838526000000004E-4,5.9536175000000002E-4,5.9536175000000002E-4,2.6330467999999998E-3,3.3211134999999998E-3,2.03112E-3,2.3592494E-3,2.2504893000000002E-3,2.7372343E-3,2.8992507000000002E-3,null,172]
[null,"Female 5-9",5.2355238999999996E-3,2.8504454999999998E-3,1.0052446E-3,1.2205973E-3,1.5187013E-3,2.0212698999999999E-3,7.1136775999999997E-4,2.080522E-3,2.3912487000000001E-3,1.0109794999999999E-3,1.0109794999999999E-3,4.4039724999999997E-3,2.1902628E-3,4.1669868000000004E-3,1.9360034000000001E-3,3.2217045999999999E-3,3.9112870999999999E-3,6.3002262999999996E-3,null,3.1714642000000002E-3,2.5379686E-3,2.5379686E-3,2.7201515999999999E-3,5.9226718999999999E-3,4.1313143000000002E-3,2.6545270999999999E-3,4.6195298999999997E-3,1.3829161999999999E-3,1.3733346999999999E-3,2.5270552999999999E-3,1.3733346999999999E-3,3.5301079000000001E-3,4.6792798999999996E-3,2.7355524000000002E-3,1.0065103000000001E-3,1.4490296999999999E-3,3.8266643000000001E-3,6.9344456999999998E-4,6.9344456999999998E-4,1.2907477999999999E-3,3.4395090999999999E-3,3.3479638000000001E-3,7.1136775999999997E-4,5.2725250000000003E-4,5.2725250000000003E-4,2.5659108000000001E-3,3.3054288999999999E-3,1.9004417999999999E-3,2.3398567000000002E-3,2.1832321999999999E-3,2.7890175000000001E-3,2.8781003999999999E-3,null,173]
[null,"Female 10-15",5.1135104000000001E-3,2.7470353999999998E-3,1.0463375E-3,1.1783748999999999E-3,1.5259386999999999E-3,2.0402328000000002E-3,6.8211940000000005E-4,1.8748861999999999E-3,2.6068490000000001E-3,1.0538561E-3,1.0538561E-3,4.4196495000000001E-3,2.2400196E-3,3.8890297999999998E-3,2.0562686999999998E-3,3.3704159000000002E-3,3.7131302999999999E-3,6.2568922999999997E-3,null,3.2605145000000001E-3,2.5104349000000001E-3,2.5104349000000001E-3,2.5636281000000001E-3,5.8672613999999996E-3,3.9963693999999998E-3,2.6160819E-3,4.4250512000000002E-3,1.5272345999999999E-3,1.5273576E-3,2.6013944000000001E-3,1.5273576E-3,3.4770423000000002E-3,4.5320150000000003E-3,2.5231275000000002E-3,1.4101364999999999E-3,1.4380541000000001E-3,3.7087812E-3,7.0907670000000002E-4,7.0907670000000002E-4,1.2382879999999999E-3,3.4359299999999998E-3,3.2239384000000001E-3,6.8211940000000005E-4,5.6826678000000002E-4,5.6826678000000002E-4,2.6930918000000002E-3,3.2921627000000002E-3,1.5989277E-3,2.2798222E-3,2.0847664999999998E-3,2.7987735999999998E-3,2.8551074000000001E-3,null,174]
[null,"Female 16-19",8.4805656E-3,5.9775113999999997E-3,1.0121875000000001E-3,1.2086098999999999E-3,1.5049098000000001E-3,1.9897369000000001E-3,7.0948292999999996E-4,2.2651881E-3,2.305316E-3,1.0036407999999999E-3,1.0036407999999999E-3,4.3634036999999999E-3,2.2127035000000001E-3,3.9330041E-3,2.1836525000000001E-3,3.1738476999999998E-3,4.3849856999999999E-3,7.1451081999999999E-3,null,3.2498319999999998E-3,2.4417031E-3,2.4417031E-3,2.7258012E-3,6.4430655999999998E-3,4.2927056000000002E-3,5.6942342999999999E-3,4.8627267000000002E-3,1.5008068E-3,1.5002705999999999E-3,2.2896069999999999E-3,1.5002705999999999E-3,3.4937807E-3,5.3742438999999998E-3,2.7441287E-3,1.2793301E-3,1.4067966000000001E-3,3.7192371999999999E-3,7.0212914999999996E-4,7.0212914999999996E-4,1.2862949E-3,3.4796283999999999E-3,3.9267703000000001E-3,7.0948292999999996E-4,5.4999202000000004E-4,5.4999202000000004E-4,2.6570724E-3,3.2866122E-3,2.2542338999999999E-3,2.3517277999999999E-3,2.2905263999999999E-3,2.7920252000000001E-3,2.7158260000000002E-3,null,175]
[null,"Female 20-24",7.9037863999999996E-3,6.3738707E-3,1.1002147E-3,1.1633991000000001E-3,1.5113652E-3,2.1152075000000002E-3,7.2778888999999996E-4,3.0602156E-3,2.3526395999999999E-3,1.0836577E-3,1.0836577E-3,4.2394041E-3,2.5462329000000001E-3,3.9284224999999997E-3,2.3684524999999998E-3,3.3474936999999998E-3,6.2293829000000002E-3,8.3534950000000007E-3,null,3.4213134000000002E-3,2.4689629000000002E-3,2.4689629000000002E-3,3.1976677000000002E-3,7.7993730000000001E-3,5.7517089999999998E-3,6.2136719999999999E-3,6.5255063E-3,1.5935960999999999E-3,1.6009348000000001E-3,2.4243717000000001E-3,1.6009348000000001E-3,3.5510224000000002E-3,7.0767299999999998E-3,2.6001274E-3,1.3537689999999999E-3,1.4566481000000001E-3,3.7841230999999999E-3,6.9054979000000003E-4,6.9054979000000003E-4,1.3284887000000001E-3,3.4779686999999999E-3,5.2159922000000001E-3,7.2778888999999996E-4,5.6701729999999995E-4,5.6701729999999995E-4,2.5957368999999998E-3,3.3494278000000001E-3,3.1533415999999998E-3,2.8533444E-3,2.9991276000000001E-3,2.8550809000000002E-3,2.7151014999999999E-3,null,176]
[null,"Female 25-29",7.0056225999999997E-3,5.4493817000000003E-3,1.1178466E-3,1.2069023E-3,1.5261649000000001E-3,2.1791873000000001E-3,6.9047441000000005E-4,2.6118690000000002E-3,2.6794975E-3,1.1027000999999999E-3,1.1027000999999999E-3,4.3690498000000001E-3,2.8172266000000001E-3,3.9734551999999999E-3,2.1449659999999999E-3,3.4454498E-3,6.2365346000000004E-3,7.8528690999999998E-3,null,3.4097054E-3,2.5285541000000002E-3,2.5285541000000002E-3,3.0115678E-3,7.1900486999999999E-3,5.3423643000000002E-3,5.1847025999999996E-3,6.0826661000000001E-3,1.4830105000000001E-3,1.4802031000000001E-3,2.7501719999999999E-3,1.4802031000000001E-3,3.6221533E-3,6.9228285000000004E-3,2.4679988000000002E-3,1.0280759999999999E-3,1.4609817000000001E-3,3.8312820000000001E-3,6.9647410000000002E-4,6.9647410000000002E-4,1.4116316E-3,3.5750516999999999E-3,4.9824463000000003E-3,6.9047441000000005E-4,6.1134335999999995E-4,6.1134335999999995E-4,2.5432321999999999E-3,3.4556766000000002E-3,2.5971814000000002E-3,2.5724513E-3,2.5942259999999998E-3,2.9594067000000002E-3,2.8609498000000001E-3,null,177]
[null,"Female 30-34",6.3716969000000004E-3,4.5682858000000003E-3,1.0933588000000001E-3,1.2005590999999999E-3,1.4931313000000001E-3,2.0965332999999999E-3,8.2437064999999995E-4,2.5314561000000001E-3,2.6023680999999999E-3,1.0900119E-3,1.0900119E-3,4.5024686999999997E-3,2.3664341000000002E-3,3.9293375000000004E-3,2.3108426999999998E-3,3.2967357000000001E-3,5.6154769999999998E-3,7.4897966999999998E-3,null,3.3147479000000001E-3,2.5569575000000001E-3,2.5569575000000001E-3,2.9614686999999999E-3,6.7179672999999997E-3,4.9221678999999997E-3,4.3139653E-3,5.6380238000000001E-3,1.6038745999999999E-3,1.6103676999999999E-3,2.6576973000000002E-3,1.6103676999999999E-3,3.5605328000000002E-3,6.4213135999999999E-3,2.6369949E-3,9.4300375000000002E-4,1.4895219E-3,3.7955520999999998E-3,7.9114514000000003E-4,7.9114514000000003E-4,1.4039024E-3,3.5616000999999999E-3,4.4528776999999999E-3,8.2437064999999995E-4,5.2747025999999998E-4,5.2747025999999998E-4,2.5411409000000002E-3,3.3710456999999998E-3,2.5073420000000001E-3,2.4740251E-3,2.4243409E-3,2.9311364000000001E-3,2.8724733000000001E-3,null,178]
[null,"Female 35-39",5.7987268E-3,3.8464408999999999E-3,1.1057317E-3,1.1930299000000001E-3,1.5114197E-3,2.0479003000000002E-3,7.1732386E-4,2.2137081E-3,2.5001029E-3,1.1207261000000001E-3,1.1207261000000001E-3,4.4478638999999997E-3,2.1840471000000002E-3,3.9211810000000001E-3,2.0377920000000001E-3,3.4191137999999999E-3,4.9295546000000003E-3,7.1540815000000002E-3,null,3.1478505E-3,2.5199631000000001E-3,2.5199631000000001E-3,2.7412029000000002E-3,6.2569147000000004E-3,4.4068401E-3,3.6230710999999999E-3,5.0151693000000004E-3,1.4357705E-3,1.4303483E-3,2.4044019999999999E-3,1.4303483E-3,3.5387780999999998E-3,5.7805777000000001E-3,2.7723768999999999E-3,1.1011530999999999E-3,1.4628497E-3,3.7963667E-3,7.8511418999999995E-4,7.8511418999999995E-4,1.3233759E-3,3.4512593E-3,3.8947319000000001E-3,7.1732386E-4,5.5383815000000002E-4,5.5383815000000002E-4,2.6237209999999999E-3,3.3577151999999999E-3,2.0988025E-3,2.4066783999999999E-3,2.3253547999999998E-3,2.7657383999999999E-3,2.9444915999999998E-3,null,179]
[null,"Female 40-44",5.6754053000000002E-3,3.2677945999999999E-3,1.0271042999999999E-3,1.2261596999999999E-3,1.4979689E-3,2.1005955E-3,7.4924411999999999E-4,2.0933816999999999E-3,2.4289689E-3,9.9931960000000002E-4,9.9931960000000002E-4,4.2743286999999998E-3,2.4410604999999998E-3,4.0328092999999997E-3,2.0815965E-3,3.3955264E-3,4.4071572000000002E-3,6.9936006000000002E-3,null,3.2816471E-3,2.5280406999999999E-3,2.5280406999999999E-3,2.7761569E-3,6.1962366999999997E-3,4.2267781999999997E-3,3.1105658999999999E-3,4.7778244999999997E-3,1.4748151E-3,1.4734188E-3,2.4903892E-3,1.4734188E-3,3.5165355000000001E-3,5.3087509999999996E-3,2.6434725000000002E-3,1.1970338E-3,1.4336354000000001E-3,3.7352283999999999E-3,6.9865531999999998E-4,6.9865531999999998E-4,1.2837189E-3,3.4844463000000001E-3,3.5919894E-3,7.4924411999999999E-4,5.2420712999999997E-4,5.2420712999999997E-4,2.604051E-3,3.3502998E-3,1.9443288E-3,2.3284571E-3,2.1645882999999999E-3,2.7876135000000002E-3,2.7950811000000001E-3,null,180]
[null,"Female 45-49",5.4552172999999997E-3,3.0295115000000001E-3,1.0080899000000001E-3,1.1929429999999999E-3,1.4993509999999999E-3,2.0395075E-3,7.2050089000000002E-4,2.177469E-3,2.6281909000000002E-3,1.0261248000000001E-3,1.0261248000000001E-3,4.4708721999999999E-3,2.3428791E-3,4.0068062999999996E-3,2.1549256E-3,3.3399710000000002E-3,4.0733237E-3,6.7438749000000003E-3,null,3.2375645999999998E-3,2.4602329E-3,2.4602329E-3,2.7907358000000002E-3,5.8997967000000004E-3,4.0841339999999997E-3,2.9192576E-3,4.4788294000000003E-3,1.5279771000000001E-3,1.5306138E-3,2.2058684999999999E-3,1.5306138E-3,3.5336173999999999E-3,4.9850097999999997E-3,2.8552336000000002E-3,1.6125740999999999E-3,1.4362597999999999E-3,3.7327079999999999E-3,7.2991946999999995E-4,7.2991946999999995E-4,1.2691165E-3,3.4388452999999999E-3,3.4127808000000001E-3,7.2050089000000002E-4,5.9370318000000004E-4,5.9370318000000004E-4,2.5759238999999998E-3,3.3619196999999999E-3,1.8991479E-3,2.3096593E-3,2.2010367999999998E-3,2.8683952999999998E-3,2.8202278000000001E-3,null,181]
[null,"Female 50-54",5.0925034999999997E-3,2.9609909E-3,1.0865006E-3,1.1809857999999999E-3,1.5010242E-3,2.0248942999999998E-3,7.3549890999999995E-4,2.2226924000000002E-3,2.7397568000000001E-3,1.046307E-3,1.046307E-3,4.3804370999999996E-3,2.3027624E-3,3.9254935000000001E-3,2.3238085999999999E-3,3.3582541999999998E-3,4.0458669000000003E-3,6.4079057999999996E-3,null,3.2868544000000002E-3,2.4222860000000001E-3,2.4222860000000001E-3,2.8144597999999999E-3,5.8412476999999997E-3,4.0750648E-3,2.8325300999999998E-3,4.4364529000000003E-3,1.5788442999999999E-3,1.5847743000000001E-3,2.4237114E-3,1.5847743000000001E-3,3.5279049E-3,4.9098348000000003E-3,2.7547680999999999E-3,1.3243691E-3,1.4728148999999999E-3,3.8301982E-3,7.1421183999999997E-4,7.1421183999999997E-4,1.1739014999999999E-3,3.4453187E-3,3.3876935E-3,7.3549890999999995E-4,6.2536169000000001E-4,6.2536169000000001E-4,2.5713211000000001E-3,3.2682192999999998E-3,1.9770865E-3,2.2859306E-3,2.2020071999999998E-3,2.7716329999999999E-3,2.7310592000000002E-3,null,182]
[null,"Female 55-59",5.1454222000000003E-3,2.9549322E-3,1.0442311999999999E-3,1.2034277E-3,1.5049751E-3,2.1593354000000002E-3,7.6991074999999999E-4,2.2755090999999998E-3,2.5825106999999999E-3,1.0477046E-3,1.0477046E-3,4.5832605000000002E-3,2.5534606999999998E-3,3.9882520000000003E-3,2.3039593000000001E-3,3.4327756000000001E-3,3.9927210000000003E-3,6.3628660999999996E-3,null,3.2105473999999999E-3,2.4653231000000002E-3,2.4653231000000002E-3,2.7979076999999999E-3,5.9371785999999998E-3,4.1060150000000002E-3,2.8295540000000002E-3,4.4565619999999998E-3,1.5579610000000001E-3,1.5626174E-3,2.3134381000000002E-3,1.5626174E-3,3.5333000000000001E-3,4.8726498999999996E-3,2.683965E-3,1.3567939999999999E-3,1.46496E-3,3.8015267000000002E-3,7.6358863999999999E-4,7.6358863999999999E-4,1.1634489E-3,3.4493687999999998E-3,3.4068697000000001E-3,7.6991074999999999E-4,5.7621835999999995E-4,5.7621835999999995E-4,2.6009499999999999E-3,3.3338575000000001E-3,2.1026187999999999E-3,2.4247256000000002E-3,2.3991902999999999E-3,2.8710563E-3,2.6875065999999999E-3,null,183]
[null,"Female 60-64",5.0131343000000004E-3,2.8725373999999998E-3,1.0568516999999999E-3,1.2141137E-3,1.5092324E-3,2.1408652000000001E-3,7.7393825999999999E-4,2.2353506999999999E-3,2.7616257E-3,1.0609202E-3,1.0609202E-3,4.4963075999999999E-3,2.5429514E-3,3.8449471000000001E-3,2.0339144000000001E-3,3.5234932E-3,3.9269565999999999E-3,6.4060938999999997E-3,null,3.1975075000000002E-3,2.4503244E-3,2.4503244E-3,2.7673249000000001E-3,5.8642928000000004E-3,4.0318495999999999E-3,2.7604503999999999E-3,4.3907286999999998E-3,1.5583329E-3,1.564197E-3,2.4197124999999998E-3,1.564197E-3,3.4607320999999998E-3,4.8812077999999997E-3,2.6217317000000002E-3,1.3956319999999999E-3,1.4636928E-3,3.7566174E-3,6.8201765000000004E-4,6.8201765000000004E-4,1.0687906E-3,3.4604175000000001E-3,3.2899822E-3,7.7393825999999999E-4,5.6741777000000003E-4,5.6741777000000003E-4,2.6113929E-3,3.2443861000000002E-3,1.9746423000000001E-3,2.2521176999999999E-3,2.1321787E-3,2.7629709999999999E-3,2.7121256999999999E-3,null,184]
[null,"Female 65-69",4.818223E-3,2.8345295999999999E-3,1.0669938999999999E-3,1.2506281E-3,1.5109801999999999E-3,2.1545077000000002E-3,7.6367874999999999E-4,2.2889336000000001E-3,2.5925649999999998E-3,1.017853E-3,1.017853E-3,4.3905154000000004E-3,2.5309655000000002E-3,3.8677882000000001E-3,2.1511811999999999E-3,3.6581764000000001E-3,3.7294877999999999E-3,6.1959685000000002E-3,null,3.2852148000000001E-3,2.4494160999999999E-3,2.4494160999999999E-3,2.8466808000000001E-3,5.8305388999999996E-3,4.0478989999999998E-3,2.7196655999999998E-3,4.3708052999999998E-3,1.5095409000000001E-3,1.5093120000000001E-3,2.5901372999999998E-3,1.5093120000000001E-3,3.5059305000000002E-3,4.6931063000000004E-3,2.7758790999999998E-3,1.3999179E-3,1.4806738999999999E-3,3.7965714E-3,7.9476367999999997E-4,7.9476367999999997E-4,1.0648204000000001E-3,3.4841052E-3,3.2170842999999999E-3,7.6367874999999999E-4,5.6739488999999995E-4,5.6739488999999995E-4,2.5612959000000002E-3,3.3091005999999999E-3,2.1158270999999998E-3,2.2385635E-3,2.1097767000000001E-3,2.7100190000000001E-3,2.7236852000000001E-3,null,185]
[null,"Female 70-74",4.8438329E-3,2.6339040999999999E-3,1.0247906E-3,1.1593834000000001E-3,1.5088534E-3,2.0872026E-3,7.0525926999999997E-4,2.3427142000000001E-3,2.6806248000000002E-3,1.0136015E-3,1.0136015E-3,4.4828508999999999E-3,2.2043977000000001E-3,3.9383778000000001E-3,2.1968079000000001E-3,3.8034689999999999E-3,3.5690832999999999E-3,6.0578309999999996E-3,null,3.4593687999999998E-3,2.3762636999999998E-3,2.3762636999999998E-3,2.9667631999999999E-3,5.8138449999999998E-3,4.0349638999999998E-3,2.5323454999999998E-3,4.2972634999999997E-3,1.5209614000000001E-3,1.5228281E-3,2.5039501E-3,1.5228281E-3,3.5504747999999999E-3,4.5935730000000001E-3,2.6739888999999998E-3,1.4634843E-3,1.4505307E-3,3.7808748999999999E-3,6.8258901999999997E-4,6.8258901999999997E-4,1.0897033999999999E-3,3.3645807000000001E-3,3.0917993000000002E-3,7.0525926999999997E-4,6.1303406000000002E-4,6.1303406000000002E-4,2.5568074000000001E-3,3.3848009000000002E-3,2.1136706E-3,2.1288871999999999E-3,1.9875569E-3,2.789686E-3,2.7998029E-3,null,186]
[null,"Female 75-79",5.1471833000000002E-3,2.7591592999999998E-3,1.0565864999999999E-3,1.2372806999999999E-3,1.5165631999999999E-3,2.2170478E-3,7.5397582000000002E-4,2.3052695000000002E-3,2.4905291E-3,9.9861272999999997E-4,9.9861272999999997E-4,4.5470594999999997E-3,2.4869847E-3,4.0575033000000002E-3,2.3125643000000001E-3,3.7481621999999998E-3,3.7002861000000001E-3,6.1506423999999997E-3,null,3.5158900999999998E-3,2.3931934999999998E-3,2.3931934999999998E-3,3.0037040999999999E-3,5.8006704999999997E-3,4.1442349999999996E-3,2.6492358000000001E-3,4.4168489999999996E-3,1.6320598E-3,1.6506322E-3,2.7879790999999999E-3,1.6506322E-3,3.6254671999999999E-3,4.7754459000000004E-3,2.7498596000000001E-3,1.4411669000000001E-3,1.4902205E-3,3.9052647000000001E-3,7.6581543999999996E-4,7.6581543999999996E-4,1.0494790999999999E-3,3.5252272999999998E-3,3.2085476000000002E-3,7.5397582000000002E-4,6.6112139000000004E-4,6.6112139000000004E-4,2.5699483E-3,3.4270110000000002E-3,2.2169282E-3,2.1195853999999999E-3,1.9857993E-3,2.8595016000000002E-3,2.7429733999999998E-3,null,187]
[null,"Female 80-84",5.3119281999999997E-3,2.7405848000000002E-3,1.0504316999999999E-3,1.2014331E-3,1.5269942999999999E-3,2.2642901E-3,7.5849157000000003E-4,2.2852609000000002E-3,2.1692738E-3,9.9143991000000004E-4,9.9143991000000004E-4,4.6144710000000002E-3,2.6262185999999998E-3,4.1089910000000002E-3,2.0709491999999999E-3,4.0119989E-3,3.8617478999999999E-3,6.0011721000000004E-3,null,3.9436552E-3,2.4546440999999998E-3,2.4546440999999998E-3,3.1823785999999998E-3,5.8571678000000002E-3,4.2485739000000002E-3,2.6497006999999999E-3,4.5117126000000004E-3,1.6025391999999999E-3,1.6141089E-3,3.0424585999999998E-3,1.6141089E-3,3.6937678E-3,4.8276684000000004E-3,2.6490089999999999E-3,1.5478884E-3,1.5029092E-3,3.9865202000000004E-3,6.9764676000000001E-4,6.9764676000000001E-4,1.0971202000000001E-3,3.6115751000000001E-3,3.2890075999999998E-3,7.5849157000000003E-4,6.3437113000000002E-4,6.3437113000000002E-4,2.5737899999999998E-3,3.529314E-3,2.3301010999999998E-3,2.2403188000000001E-3,2.1545887000000001E-3,2.9583699000000001E-3,2.6499515E-3,null,188]
[null,"Female 85-89",5.5117834999999999E-3,2.7702212999999999E-3,1.0175511E-3,1.2366005E-3,1.5408760000000001E-3,2.2530784000000001E-3,7.4545951999999995E-4,2.4148048999999999E-3,2.1111092E-3,1.0177968999999999E-3,1.0177968999999999E-3,4.1627436999999998E-3,2.5219935999999999E-3,4.2766528E-3,1.9964417000000001E-3,4.0710377999999998E-3,4.1200085999999999E-3,5.9363358000000003E-3,null,3.9089811000000002E-3,2.5367051999999998E-3,2.5367051999999998E-3,3.1936839E-3,5.9554717000000002E-3,4.3528582999999999E-3,2.7135677999999999E-3,4.6699625000000003E-3,1.8375606E-3,1.9007431999999999E-3,3.2443530000000002E-3,1.9007431999999999E-3,3.5900952999999998E-3,5.0570327000000002E-3,2.6620840999999999E-3,1.9015366999999999E-3,1.5536094E-3,3.9514861999999998E-3,7.7634199999999996E-4,7.7634199999999996E-4,1.0259129E-3,3.8985051000000001E-3,3.4067859000000002E-3,7.4545951999999995E-4,5.1847804999999997E-4,5.1847804999999997E-4,2.5746056E-3,3.4637730999999999E-3,2.5252397000000001E-3,2.2435214000000002E-3,2.1323303000000001E-3,2.9261514999999998E-3,2.7454591E-3,null,189]
[null,"Female 90+",5.9579209999999997E-3,2.6877562E-3,1.1470054999999999E-3,1.149555E-3,1.550795E-3,2.3059105000000002E-3,8.4036327000000001E-4,1.976135E-3,2.144333E-3,9.6894364000000004E-4,9.6894364000000004E-4,3.7934522000000002E-3,3.0969958999999998E-3,4.2594926999999999E-3,1.5041127E-3,4.2210770999999998E-3,4.2890869E-3,6.2329979000000004E-3,null,4.0413975000000001E-3,2.4595993999999999E-3,2.4595993999999999E-3,3.1413611000000001E-3,6.0519869000000004E-3,4.481283E-3,2.6020218999999998E-3,4.7767818999999998E-3,2.0173814000000001E-3,2.1760839E-3,3.4030557000000001E-3,2.1760839E-3,3.6575801000000002E-3,5.4612261999999996E-3,2.6921855999999999E-3,1.1445407999999999E-3,1.4294786000000001E-3,4.1592898999999999E-3,5.6317721999999998E-4,5.6317721999999998E-4,1.1361399000000001E-3,4.0495577000000003E-3,3.4283531999999999E-3,8.4036327000000001E-4,6.1214715E-4,6.1214715E-4,2.7653974999999999E-3,3.4976946000000002E-3,1.9417719E-3,2.0785125E-3,1.9342175E-3,2.9507645E-3,2.8922855999999999E-3,null,190]
[null,"Male 0-4",5.8743963000000001E-3,3.5904906999999998E-3,1.0490295000000001E-3,1.2469221E-3,1.5076441000000001E-3,2.0302287E-3,6.8799260999999996E-4,2.3355110999999998E-3,2.5230106000000002E-3,1.0417078000000001E-3,1.0417078000000001E-3,4.4575426999999999E-3,2.2762516000000002E-3,3.8465335999999998E-3,2.2634761E-3,3.4642504E-3,4.2908089E-3,6.4909327999999999E-3,null,3.1717522E-3,2.5284592999999999E-3,2.5284592999999999E-3,2.7996587999999998E-3,6.0482890999999997E-3,4.2651868000000001E-3,3.3077864999999998E-3,4.8035886000000003E-3,1.5299113E-3,1.5311356000000001E-3,2.5272607000000002E-3,1.5311356000000001E-3,3.5164637999999999E-3,5.1755174000000003E-3,2.8687922999999999E-3,1.1116575E-3,1.4798654E-3,3.7727021000000002E-3,7.2694196999999996E-4,7.2694196999999996E-4,1.3403177E-3,3.4131843000000002E-3,3.6110915E-3,6.8799260999999996E-4,5.0767523000000002E-4,5.0767523000000002E-4,2.5377756000000001E-3,3.3454215000000001E-3,2.2482019999999999E-3,2.3711234999999999E-3,2.2558051000000001E-3,2.8527151000000001E-3,2.9498000999999999E-3,null,191]
[null,"Male 5-9",5.4720560999999999E-3,3.1227224999999998E-3,1.0491649000000001E-3,1.2214418E-3,1.5068996999999999E-3,2.0410060000000002E-3,6.9349771000000004E-4,2.0313747000000001E-3,2.3904467999999999E-3,1.0360585E-3,1.0360585E-3,4.4764284999999999E-3,2.1548829999999998E-3,3.9607631000000004E-3,2.0106754000000001E-3,3.3750348000000001E-3,3.9297723999999999E-3,6.3660718000000003E-3,null,3.0439221000000002E-3,2.5395600000000002E-3,2.5395600000000002E-3,2.5997886000000002E-3,5.9670429000000004E-3,4.0874570000000001E-3,2.8923951999999999E-3,4.5313895999999996E-3,1.4693694E-3,1.4665107000000001E-3,2.1939530999999998E-3,1.4665107000000001E-3,3.5192138E-3,4.7258441000000003E-3,2.6486284999999998E-3,1.0217271999999999E-3,1.4442634E-3,3.8299847000000001E-3,6.4334174000000004E-4,6.4334174000000004E-4,1.2983688000000001E-3,3.3993299999999999E-3,3.3597475999999999E-3,6.9349771000000004E-4,5.2296190000000005E-4,5.2296190000000005E-4,2.6310384000000002E-3,3.2759909999999998E-3,1.8405055E-3,2.392113E-3,2.2703272E-3,2.8549379E-3,2.8985215E-3,null,192]
[null,"Male 10-15",5.2762926000000003E-3,2.826168E-3,1.0184345000000001E-3,1.2117269999999999E-3,1.5118683000000001E-3,2.0334189999999999E-3,7.2259897999999996E-4,1.8083411E-3,2.0620790000000001E-3,1.0039790999999999E-3,1.0039790999999999E-3,4.4398670999999997E-3,2.3393135000000002E-3,4.0594237000000002E-3,1.9476266E-3,3.4092392000000002E-3,3.6523177000000002E-3,6.1514187000000003E-3,null,3.2074595999999999E-3,2.5108907999999998E-3,2.5108907999999998E-3,2.5135604999999999E-3,5.8261841000000003E-3,3.9962469999999996E-3,2.6687303999999999E-3,4.3970388000000001E-3,1.5032483000000001E-3,1.5021709E-3,2.1749974999999999E-3,1.5021709E-3,3.4943775000000001E-3,4.4481661000000004E-3,2.6991819E-3,1.3025472000000001E-3,1.4522980000000001E-3,3.7093025E-3,7.0030079000000004E-4,7.0030079000000004E-4,1.1352571E-3,3.4146882E-3,3.2016253000000001E-3,7.2259897999999996E-4,4.7561712999999998E-4,4.7561712999999998E-4,2.5632996E-3,3.3212610999999999E-3,1.7069619E-3,2.3069194999999999E-3,2.1477180999999999E-3,2.8112615E-3,2.8152918E-3,null,193]
[null,"Male 16-19",7.7146714999999999E-3,4.9619223000000002E-3,1.0999327999999999E-3,1.1764E-3,1.5114689000000001E-3,2.0755198999999999E-3,7.4967956999999995E-4,2.1011194E-3,2.2934494000000001E-3,9.6534297000000003E-4,9.6534297000000003E-4,4.3532633999999997E-3,2.3735893999999999E-3,4.0066581999999998E-3,2.1015731999999999E-3,3.3389452999999999E-3,4.0043652999999998E-3,6.6449539999999998E-3,null,3.1431498999999999E-3,2.4039567999999999E-3,2.4039567999999999E-3,2.6792843999999998E-3,6.4460877000000003E-3,4.2203581E-3,4.7426680000000002E-3,4.7339755000000002E-3,1.4648008000000001E-3,1.4603903000000001E-3,2.3786839999999998E-3,1.4603903000000001E-3,3.5079973999999998E-3,4.9769421999999999E-3,2.5902218E-3,1.4664505E-3,1.4730162E-3,3.7394462000000001E-3,7.4625574E-4,7.4625574E-4,1.1678812E-3,3.4449226000000002E-3,3.5950264E-3,7.4967956999999995E-4,5.9548578999999997E-4,5.9548578999999997E-4,2.6661274E-3,3.3178180000000002E-3,2.0155123999999998E-3,2.2982689999999999E-3,2.2323415999999999E-3,2.7874671000000001E-3,2.6771426000000002E-3,null,194]
[null,"Male 20-24",7.9699865999999994E-3,6.1231041000000003E-3,1.1072236E-3,1.2019329E-3,1.5097604999999999E-3,2.0728786E-3,7.2371190999999998E-4,2.7816198000000002E-3,2.6821489E-3,9.9566102000000004E-4,9.9566102000000004E-4,4.1469758999999997E-3,2.4857272000000001E-3,3.8701947999999998E-3,2.3973320999999999E-3,3.5317775E-3,5.8834971999999998E-3,8.2191535999999992E-3,null,3.2729039000000001E-3,2.547639E-3,2.547639E-3,3.0231619999999998E-3,7.7002881999999996E-3,5.4578511000000001E-3,5.9280428E-3,6.2457709999999998E-3,1.5803159E-3,1.5847000000000001E-3,2.4940572000000001E-3,1.5847000000000001E-3,3.5266585E-3,6.7892055999999998E-3,2.5676736000000001E-3,1.5489142E-3,1.5167297000000001E-3,3.7602872999999998E-3,8.1068532999999999E-4,8.1068532999999999E-4,1.2570729E-3,3.449199E-3,4.8733377E-3,7.2371190999999998E-4,4.8864940999999995E-4,4.8864940999999995E-4,2.5282789E-3,3.3120436E-3,2.8019401000000002E-3,2.6178716000000001E-3,2.6474122000000001E-3,2.8107127000000002E-3,2.8268134000000002E-3,null,195]
[null,"Male 25-29",7.1661453999999998E-3,5.6256604999999999E-3,1.0902504E-3,1.1694934000000001E-3,1.4882938E-3,2.1644443999999999E-3,7.1036909000000005E-4,2.6895806999999998E-3,2.8723604000000002E-3,1.180763E-3,1.180763E-3,4.2850062999999997E-3,2.4617369999999999E-3,3.8629688999999999E-3,2.3458258E-3,3.6185044E-3,6.1262469E-3,7.7011231000000003E-3,null,3.2245626E-3,2.5617309999999998E-3,2.5617309999999998E-3,2.9736860000000001E-3,7.3350793999999997E-3,5.3525977000000004E-3,5.4307734E-3,6.0428599999999997E-3,1.7798778999999999E-3,1.7889586E-3,2.5737954E-3,1.7889586E-3,3.5728893999999998E-3,6.8424124999999997E-3,2.4275020999999998E-3,1.4853501999999999E-3,1.5152147E-3,3.8591900000000002E-3,8.1879627999999996E-4,8.1879627999999996E-4,1.4922306E-3,3.5873617000000001E-3,4.9625868E-3,7.1036909000000005E-4,6.1428966000000003E-4,6.1428966000000003E-4,2.5609531E-3,3.3353684000000001E-3,2.6436328999999998E-3,2.6028363E-3,2.6222280999999999E-3,2.7889044000000002E-3,2.8952607E-3,null,196]
[null,"Male 30-34",6.6746230999999998E-3,4.8968544999999997E-3,1.0795143000000001E-3,1.2301203E-3,1.4938224E-3,2.1852948999999998E-3,7.7684770999999998E-4,2.5575005E-3,2.5427637000000002E-3,1.1600352999999999E-3,1.1600352999999999E-3,4.4290437000000004E-3,2.4699728999999998E-3,3.9602932999999998E-3,2.2534153E-3,3.4542958999999999E-3,5.8797672000000002E-3,7.5975065000000001E-3,null,3.4259315999999999E-3,2.5349300999999999E-3,2.5349300999999999E-3,3.0436692999999998E-3,6.8650096999999998E-3,5.0480808000000002E-3,4.6753562000000004E-3,5.8256918999999999E-3,1.6226957E-3,1.6268087E-3,2.9440820000000002E-3,1.6268087E-3,3.5566459000000001E-3,6.6300589000000002E-3,2.7518445E-3,1.3395061000000001E-3,1.4920319999999999E-3,3.8282422E-3,8.4739696E-4,8.4739696E-4,1.4318893999999999E-3,3.6166575999999999E-3,4.6593755999999997E-3,7.7684770999999998E-4,6.1545217999999999E-4,6.1545217999999999E-4,2.5503693999999999E-3,3.3348773000000001E-3,2.5643311E-3,2.449522E-3,2.3942064E-3,3.0961966E-3,2.9824464999999999E-3,null,197]
[null,"Male 35-39",6.1574265999999999E-3,4.1462783999999999E-3,1.0966087E-3,1.1365708E-3,1.4946706E-3,2.1487630000000001E-3,7.8945328000000004E-4,2.4984250999999999E-3,2.6802371999999999E-3,1.0178768000000001E-3,1.0178768000000001E-3,4.3815071999999998E-3,2.5081544E-3,3.9616575999999997E-3,2.0604349999999998E-3,3.4182806999999999E-3,5.2052121999999999E-3,7.2717611000000003E-3,null,3.3832062000000002E-3,2.5466058999999998E-3,2.5466058999999998E-3,2.9606357999999999E-3,6.6624646999999997E-3,4.7140982999999996E-3,3.9334790999999997E-3,5.4771747000000003E-3,1.6511572E-3,1.6622449000000001E-3,2.5681445999999998E-3,1.6622449000000001E-3,3.5913721999999999E-3,6.0699680000000002E-3,2.732394E-3,1.4268799999999999E-3,1.4837304999999999E-3,3.8336397E-3,8.6093124000000002E-4,8.6093124000000002E-4,1.4657466E-3,3.5930040999999999E-3,4.1791442999999998E-3,7.8945328000000004E-4,5.6079570999999998E-4,5.6079570999999998E-4,2.5485279E-3,3.4205633999999999E-3,2.4265570000000002E-3,2.4104598000000001E-3,2.3004508000000002E-3,2.8698364999999999E-3,2.9202682999999998E-3,null,198]
[null,"Male 40-44",6.0573047999999997E-3,3.8003223000000002E-3,1.0959336999999999E-3,1.1920063999999999E-3,1.4938224E-3,2.113275E-3,7.6517491999999999E-4,2.2868483999999999E-3,2.4744749999999999E-3,1.1414622000000001E-3,1.1414622000000001E-3,4.3420745000000002E-3,2.3877781000000002E-3,4.0479284000000003E-3,2.0511518E-3,3.2359529000000001E-3,4.7119698000000002E-3,7.1681417000000001E-3,null,3.2976937999999998E-3,2.5554937000000001E-3,2.5554937000000001E-3,2.8554489999999999E-3,6.4924144999999999E-3,4.4155740000000002E-3,3.5943190999999999E-3,5.0647124E-3,1.6504463E-3,1.664872E-3,2.3328466000000002E-3,1.664872E-3,3.5244593999999999E-3,5.5980552000000003E-3,2.7175490000000001E-3,1.2033065000000001E-3,1.4943298E-3,3.7781859000000002E-3,7.5574644000000004E-4,7.5574644000000004E-4,1.2617555E-3,3.4713652000000002E-3,3.8268248999999998E-3,7.6517491999999999E-4,5.2130541999999996E-4,5.2130541999999996E-4,2.6148895000000002E-3,3.3268714E-3,2.2051572000000002E-3,2.3564432999999998E-3,2.1880872000000001E-3,2.8854629E-3,2.9556765000000001E-3,null,199]
[null,"Male 45-49",5.5411467000000001E-3,3.2946494999999999E-3,1.0612592E-3,1.2194298E-3,1.5013836E-3,2.0655894000000002E-3,7.0016575000000003E-4,2.1893428999999998E-3,2.4965422000000001E-3,1.0286671000000001E-3,1.0286671000000001E-3,4.4148271000000001E-3,2.3013942000000001E-3,4.1227479999999999E-3,1.9984328999999999E-3,3.4603921000000001E-3,4.2709298E-3,6.9472869000000003E-3,null,3.2108169999999999E-3,2.4825791E-3,2.4825791E-3,2.7738569999999998E-3,6.0797910999999998E-3,4.1837189000000002E-3,3.1238911000000002E-3,4.6898089E-3,1.5575610000000001E-3,1.5620374E-3,2.3238629000000002E-3,1.5620374E-3,3.5028720999999998E-3,5.2125831000000003E-3,2.8260611E-3,1.3868306999999999E-3,1.4675745000000001E-3,3.7641770000000001E-3,7.3175848000000003E-4,7.3175848000000003E-4,1.3409072E-3,3.4875082999999999E-3,3.5369259000000001E-3,7.0016575000000003E-4,5.2269152000000002E-4,5.2269152000000002E-4,2.6214532999999998E-3,3.2814701999999999E-3,2.0460321000000002E-3,2.3364418000000001E-3,2.2146786000000001E-3,2.8498615000000001E-3,2.8047675999999999E-3,null,200]
[null,"Male 50-54",5.3638447999999998E-3,3.1682203999999999E-3,1.0322593000000001E-3,1.2194514E-3,1.5092567000000001E-3,2.0824446999999999E-3,7.6344772000000005E-4,2.2471063000000001E-3,2.8422393E-3,1.0698366E-3,1.0698366E-3,4.4292938000000002E-3,2.5618072000000002E-3,3.9092214000000002E-3,2.1750538E-3,3.2868012999999999E-3,4.2428159999999999E-3,6.8601914999999996E-3,null,3.3725887E-3,2.4256428999999999E-3,2.4256428999999999E-3,2.8663603999999998E-3,6.0470196999999996E-3,4.1173351999999998E-3,3.0292762000000001E-3,4.5222648999999997E-3,1.5363954E-3,1.5386465E-3,2.3916381999999998E-3,1.5386465E-3,3.5497447999999999E-3,5.2147647E-3,2.7633534999999998E-3,1.3367678E-3,1.4573012999999999E-3,3.7760290000000002E-3,7.2897208000000005E-4,7.2897208000000005E-4,1.1364378E-3,3.4042271000000002E-3,3.4729337999999999E-3,7.6344772000000005E-4,5.8864523E-4,5.8864523E-4,2.5633833999999999E-3,3.3617851E-3,1.9800421E-3,2.2810259999999998E-3,2.1837334999999999E-3,2.7709266000000001E-3,2.7562570999999998E-3,null,201]
[null,"Male 55-59",5.3441017000000002E-3,3.1466381999999998E-3,1.0719657E-3,1.1722188000000001E-3,1.503152E-3,2.1227888999999999E-3,7.3307625000000002E-4,2.3927062000000002E-3,2.6608949999999999E-3,1.0433444E-3,1.0433444E-3,4.4902605E-3,2.4707919999999999E-3,4.0272661000000003E-3,2.2373698000000002E-3,3.5031908E-3,4.0305760000000001E-3,6.5170758999999997E-3,null,3.1662865000000001E-3,2.4286724999999999E-3,2.4286724999999999E-3,2.8350036999999998E-3,5.8372392999999998E-3,4.0981621000000003E-3,3.0150665E-3,4.4399644000000004E-3,1.5902765E-3,1.5983143000000001E-3,2.6159107000000002E-3,1.5983143000000001E-3,3.5642930000000001E-3,4.9318508E-3,2.8180789999999998E-3,1.4677111E-3,1.4938340999999999E-3,3.9042484000000001E-3,6.5214041000000004E-4,6.5214041000000004E-4,1.1539886000000001E-3,3.4097084000000001E-3,3.4181059000000001E-3,7.3307625000000002E-4,6.1110966000000005E-4,6.1110966000000005E-4,2.5554929999999998E-3,3.2992638E-3,2.2487462999999999E-3,2.3571073999999999E-3,2.3148541999999999E-3,2.8607766E-3,2.7940780999999998E-3,null,202]
[null,"Male 60-64",5.1719388000000003E-3,3.0364582999999998E-3,1.0372298E-3,1.2211825999999999E-3,1.4985495E-3,2.0974438999999999E-3,8.0835645000000003E-4,2.3526580000000001E-3,2.8355743000000001E-3,1.0919591E-3,1.0919591E-3,4.5177680000000001E-3,2.4531940000000001E-3,3.8195045000000002E-3,2.0337678E-3,3.3771146999999999E-3,4.1596185999999997E-3,6.6619380000000001E-3,null,3.1615417000000002E-3,2.4332492999999998E-3,2.4332492999999998E-3,2.7969191000000002E-3,5.9829163000000001E-3,4.0751941999999999E-3,2.9102056000000001E-3,4.4526829999999998E-3,1.4862679E-3,1.485225E-3,2.2559188999999999E-3,1.485225E-3,3.4623904999999998E-3,5.1312772999999997E-3,2.4149436999999999E-3,1.3658112E-3,1.4956260999999999E-3,3.7440078E-3,7.0528709000000005E-4,7.0528709000000005E-4,1.1163697000000001E-3,3.4485789999999998E-3,3.3708937E-3,8.0835645000000003E-4,5.2739336E-4,5.2739336E-4,2.4817144E-3,3.2450943000000001E-3,2.1173516000000002E-3,2.3028407999999998E-3,2.2287244999999998E-3,2.7941518999999998E-3,2.6975024999999998E-3,null,203]
[null,"Male 65-69",4.8313853000000002E-3,2.7733027999999999E-3,1.0261879999999999E-3,1.2525173E-3,1.5067529E-3,2.1279391000000002E-3,7.5287878000000004E-4,2.3136833000000001E-3,2.6488826000000002E-3,1.0675776999999999E-3,1.0675776999999999E-3,4.489664E-3,2.4499552999999999E-3,3.8094341E-3,2.1837393000000002E-3,3.5611511999999999E-3,3.7611767E-3,6.4163785000000001E-3,null,3.2693418000000001E-3,2.3748024999999998E-3,2.3748024999999998E-3,2.8420612E-3,5.9047518E-3,4.0478952999999998E-3,2.6604729E-3,4.4082026000000002E-3,1.5250075000000001E-3,1.5277878999999999E-3,2.5035422000000002E-3,1.5277878999999999E-3,3.4582685000000002E-3,4.8104691999999996E-3,2.7180065E-3,1.3005718E-3,1.4410431E-3,3.7315862999999999E-3,7.9579756000000004E-4,7.9579756000000004E-4,1.0066496000000001E-3,3.4253450999999998E-3,3.2346635000000002E-3,7.5287878000000004E-4,5.8505666999999996E-4,5.8505666999999996E-4,2.6236761000000002E-3,3.2773325000000002E-3,2.1363596999999998E-3,2.2298505E-3,2.1371415000000001E-3,2.7832589000000001E-3,2.7633434999999999E-3,null,204]
[null,"Male 70-74",5.0663267999999997E-3,2.8945387000000001E-3,1.0618665E-3,1.1914241E-3,1.4999367999999999E-3,2.1208861999999998E-3,7.3773983999999996E-4,2.3133478000000002E-3,2.4403105E-3,1.0182085E-3,1.0182085E-3,4.3414151E-3,2.4082216000000001E-3,3.9418185999999999E-3,2.2014551999999998E-3,3.7620805999999999E-3,3.5078633000000001E-3,6.0594222000000001E-3,null,3.4063342000000001E-3,2.4256767000000001E-3,2.4256767000000001E-3,2.9133100000000001E-3,5.7889203999999996E-3,4.0329438999999996E-3,2.7666221999999999E-3,4.3117227000000003E-3,1.5385018999999999E-3,1.5442769999999999E-3,2.4472398000000002E-3,1.5442769999999999E-3,3.568094E-3,4.4967388000000004E-3,2.7154468000000001E-3,1.3467507999999999E-3,1.4478421E-3,3.8210739999999998E-3,8.0367079000000002E-4,8.0367079000000002E-4,1.1099136999999999E-3,3.4028876E-3,3.1176885000000001E-3,7.3773983999999996E-4,5.9551606000000001E-4,5.9551606000000001E-4,2.5888456E-3,3.3808684000000001E-3,2.236366E-3,2.1474330999999998E-3,1.9837904000000002E-3,2.6962793999999999E-3,2.7504437999999998E-3,null,205]
[null,"Male 75-79",4.8349365000000004E-3,2.6365719000000002E-3,1.0193326E-3,1.2356354E-3,1.5171132999999999E-3,2.1337372999999998E-3,7.7192071999999999E-4,2.2444754999999999E-3,2.612442E-3,9.9105586000000005E-4,9.9105586000000005E-4,4.5952880999999999E-3,2.4355529E-3,3.8624783E-3,1.9967724000000001E-3,3.6447402000000001E-3,3.6496329000000002E-3,6.1665228999999997E-3,null,3.3947639000000002E-3,2.4634073E-3,2.4634073E-3,2.9437093000000002E-3,5.8807577000000002E-3,4.0997011000000003E-3,2.5536460000000001E-3,4.3549254000000001E-3,1.6201780999999999E-3,1.6369392000000001E-3,2.7582409999999998E-3,1.6369392000000001E-3,3.592951E-3,4.6888994999999996E-3,2.6993884000000002E-3,1.7554844E-3,1.4279652000000001E-3,3.8718185000000001E-3,7.3217275000000005E-4,7.3217275000000005E-4,1.0760946000000001E-3,3.4209341000000001E-3,3.1511606999999999E-3,7.7192071999999999E-4,5.4776249000000003E-4,5.4776249000000003E-4,2.6325628E-3,3.3887597000000001E-3,2.0616946E-3,2.1428127999999999E-3,1.9821552999999999E-3,2.7577854000000001E-3,2.8151334000000002E-3,null,206]
[null,"Male 80-84",5.1317899000000002E-3,2.7751160999999998E-3,1.0567082E-3,1.2306417E-3,1.5087499000000001E-3,2.2031488000000001E-3,7.7250617000000003E-4,2.2399193E-3,2.4429318E-3,1.0683317000000001E-3,1.0683317000000001E-3,4.4534331999999998E-3,2.4065834E-3,4.0998477E-3,2.1953301000000001E-3,3.6884537000000002E-3,3.7010011999999998E-3,6.0870157999999997E-3,null,3.569694E-3,2.4401666999999999E-3,2.4401666999999999E-3,3.0259929999999998E-3,5.8176531000000004E-3,4.1712583000000003E-3,2.680066E-3,4.4563025999999999E-3,1.5736851E-3,1.5860369E-3,3.0437449E-3,1.5860369E-3,3.5685627000000002E-3,4.7511732999999997E-3,2.6272878000000001E-3,1.5755820000000001E-3,1.5119021999999999E-3,3.8038283000000001E-3,7.6581543999999996E-4,7.6581543999999996E-4,1.0883303999999999E-3,3.4308911000000002E-3,3.2245402999999998E-3,7.7250617000000003E-4,5.8312900000000005E-4,5.8312900000000005E-4,2.6110027000000001E-3,3.4352906999999999E-3,2.1447011000000002E-3,2.2366154000000001E-3,2.1505949999999999E-3,2.8459841999999998E-3,2.7247216E-3,null,207]
[null,"Male 85-89",5.4066386000000003E-3,2.6472874E-3,1.0744572999999999E-3,1.1734200000000001E-3,1.5150426000000001E-3,2.2659756000000001E-3,7.4224225999999999E-4,2.0833969999999999E-3,1.9540171999999998E-3,1.0446807999999999E-3,1.0446807999999999E-3,4.5358287000000002E-3,2.7138214000000001E-3,4.1276463000000001E-3,2.0156496000000002E-3,3.9269309000000002E-3,4.0157880000000002E-3,6.3127670000000004E-3,null,3.8572347E-3,2.2646426000000001E-3,2.2646426000000001E-3,3.0617919000000002E-3,6.0606757000000004E-3,4.3669115E-3,2.5652350999999999E-3,4.6207471999999998E-3,1.7087862E-3,1.7371795999999999E-3,3.2044444E-3,1.7371795999999999E-3,3.7636779999999999E-3,5.0320523000000001E-3,2.5893534000000001E-3,1.7600986000000001E-3,1.4981339999999999E-3,4.1054059000000002E-3,8.0367079000000002E-4,8.0367079000000002E-4,1.0584384E-3,3.7121044000000001E-3,3.3454073E-3,7.4224225999999999E-4,6.4697658000000002E-4,6.4697658000000002E-4,2.7171788000000001E-3,3.5958115000000001E-3,2.1312497999999998E-3,2.0859152999999999E-3,2.0266633999999999E-3,2.8702156E-3,2.6741768000000002E-3,null,208]
[null,"Male 90+",6.5494352000000002E-3,2.6423598000000002E-3,1.2029110000000001E-3,1.1172215E-3,1.5473120999999999E-3,2.5279081999999998E-3,8.1813103000000003E-4,2.0610619999999998E-3,2.3483118999999999E-3,1.1963029000000001E-3,1.1963029000000001E-3,4.1644218999999996E-3,2.8954109E-3,4.2049130000000002E-3,1.7636629999999999E-3,4.1722631999999999E-3,4.2377509999999997E-3,5.8764339999999998E-3,null,3.8573678999999999E-3,2.1551736E-3,2.1551736E-3,3.131202E-3,6.0564581999999999E-3,4.3227448999999998E-3,2.5564441000000002E-3,4.6874200999999999E-3,1.8931524999999999E-3,1.9507926E-3,3.1259714000000001E-3,1.9507926E-3,3.3890177E-3,5.208659E-3,3.0166947000000001E-3,6.9494451999999995E-4,1.7065547999999999E-3,3.558865E-3,6.7897048000000002E-4,6.7897048000000002E-4,1.1395429E-3,3.8939034999999999E-3,3.3724366000000001E-3,8.1813103000000003E-4,4.1547709E-4,4.1547709E-4,2.6986024000000002E-3,3.2877051000000002E-3,2.0072025000000002E-3,2.2160036E-3,2.2361460000000001E-3,2.7723750000000001E-3,3.3527782999999999E-3,null,209]
["SIMD Q5 (least deprived)","Female 0-4",5.2066487000000002E-3,3.4084367000000002E-3,1.0273868E-3,1.2358399E-3,9.2798751000000004E-4,2.0232662000000002E-3,7.5380935000000004E-4,2.0781986000000001E-3,2.5357164000000001E-3,1.1984579000000001E-3,1.1984579000000001E-3,3.3749586000000002E-3,2.2592347E-3,4.0682013999999997E-3,1.5109095999999999E-3,4.2541339000000001E-3,4.8738768999999999E-3,6.4203929999999999E-3,null,3.0606622000000001E-3,2.4231094999999999E-3,2.4231094999999999E-3,2.6217100999999998E-3,6.0088909000000001E-3,4.1844919000000001E-3,3.3216911999999999E-3,4.5427191000000002E-3,1.3963642000000001E-3,1.5564638E-3,1.6735140999999999E-3,1.5564638E-3,3.0768766999999999E-3,5.4738084000000003E-3,2.6145028000000002E-3,1.1333493E-3,1.5426532E-3,3.4907376E-3,null,null,1.6409172000000001E-3,3.0370913000000001E-3,3.9432822000000003E-3,7.5380935000000004E-4,null,null,2.0435338E-3,2.7848337999999999E-3,1.9809604000000001E-3,2.2878467999999999E-3,2.1478790000000001E-3,2.0912827000000001E-3,2.5403651000000002E-3,null,210]
[null,"Female 5-9",4.9122716000000004E-3,3.0670647999999998E-3,1.0263398999999999E-3,1.2026433999999999E-3,9.3250302999999999E-4,1.9070523999999999E-3,7.5486773999999997E-4,1.9018812000000001E-3,2.2151588999999999E-3,1.1787373999999999E-3,1.1787373999999999E-3,3.3252949000000002E-3,2.1259533E-3,4.0641571000000001E-3,1.4627551000000001E-3,4.1924044000000004E-3,4.5958478000000004E-3,6.2271710000000001E-3,null,3.0182694999999998E-3,2.4379258999999999E-3,2.4379258999999999E-3,2.5041436000000001E-3,5.9617888000000003E-3,4.0482781000000002E-3,2.9915224000000001E-3,4.4231167999999998E-3,1.3430366999999999E-3,1.4684774000000001E-3,1.7757716E-3,1.4684774000000001E-3,3.0723037E-3,5.2058966999999996E-3,2.6988940999999999E-3,1.1577410999999999E-3,1.5313607000000001E-3,3.4321591000000002E-3,null,null,1.5878195E-3,3.0665114000000002E-3,3.7186565E-3,7.5486773999999997E-4,null,null,1.9541724999999999E-3,2.8034172E-3,1.8394942E-3,2.2634487000000002E-3,2.0553579000000002E-3,2.3268433E-3,2.4963769000000001E-3,null,211]
[null,"Female 10-15",4.8540299999999996E-3,2.9971429999999999E-3,1.0100328E-3,1.2079463E-3,9.4247266000000004E-4,2.0133222000000002E-3,7.4511678999999997E-4,1.8363260000000001E-3,1.9781855000000001E-3,1.2363528000000001E-3,1.2363528000000001E-3,3.3411204000000001E-3,2.2509645E-3,4.0797302000000002E-3,1.3424333E-3,4.1585546000000003E-3,4.4262366999999999E-3,6.0912225999999996E-3,null,3.0280333E-3,2.4943055999999998E-3,2.4943055999999998E-3,2.4946546E-3,5.7039852E-3,3.9323517000000004E-3,2.9049424999999999E-3,4.2654946000000001E-3,1.3918137E-3,1.5675889000000001E-3,1.6615618E-3,1.5675889000000001E-3,3.0168786E-3,4.9769762000000002E-3,2.8102106999999999E-3,1.0678445E-3,1.5084441999999999E-3,3.4368165999999999E-3,null,null,1.5702471999999999E-3,2.9815942999999998E-3,3.5876390000000001E-3,7.4511678999999997E-4,null,null,2.0757597000000002E-3,2.6894249E-3,1.8119935E-3,2.2852770000000001E-3,2.081898E-3,2.3007111E-3,2.4523171999999999E-3,null,212]
[null,"Female 16-19",5.2816295000000001E-3,3.3329117999999999E-3,1.0452012E-3,1.2208351E-3,9.5227221000000002E-4,2.0652863E-3,7.6464790999999997E-4,1.8629416999999999E-3,2.0344565000000002E-3,1.2812562E-3,1.2812562E-3,4.839716E-3,2.3864934000000001E-3,4.0863482000000001E-3,1.4249232000000001E-3,4.1357026999999996E-3,5.1101929999999999E-3,6.8873459999999999E-3,null,2.9957383000000001E-3,2.1775567E-3,2.1775567E-3,2.4607442E-3,7.3917256999999998E-3,4.5595705000000004E-3,3.2529911999999999E-3,5.0205700000000002E-3,1.4050683999999999E-3,1.5198041000000001E-3,1.7333711999999999E-3,1.5198041000000001E-3,3.1200727E-3,5.8205584000000001E-3,2.5261963999999998E-3,1.1444665E-3,1.555982E-3,3.4817501000000001E-3,null,null,1.6616272E-3,2.9464266E-3,4.1798566999999998E-3,7.6464790999999997E-4,null,null,2.0548359E-3,2.7925939999999998E-3,1.8349135E-3,2.6198654E-3,3.0217941E-3,2.3793655000000002E-3,2.3970872000000001E-3,null,213]
[null,"Female 20-24",6.4263645999999997E-3,4.7421603999999997E-3,1.0723835000000001E-3,1.2189938000000001E-3,9.4631349000000005E-4,2.0049473000000001E-3,7.4954039999999996E-4,2.2873385E-3,2.3201888000000002E-3,1.2325061E-3,1.2325061E-3,4.6119513000000001E-3,2.2776099000000002E-3,4.0693398999999998E-3,1.4286524E-3,4.1655223000000002E-3,6.5449080000000003E-3,8.1671000999999997E-3,null,3.1824027999999998E-3,1.8302733E-3,1.8302733E-3,2.7153531999999998E-3,7.9345805999999994E-3,5.5178222000000004E-3,4.6417541000000001E-3,6.0692806999999996E-3,1.4647339000000001E-3,1.6307194E-3,1.9012903E-3,1.6307194E-3,3.190961E-3,7.5378804000000004E-3,2.4604091999999998E-3,1.0911657999999999E-3,1.4981979E-3,3.4558739999999998E-3,null,null,1.5353954999999999E-3,3.0303544E-3,5.4601603E-3,7.4954039999999996E-4,null,null,2.0554004999999999E-3,2.9936729E-3,2.282535E-3,2.3006633999999998E-3,3.0306032999999999E-3,2.0833062000000001E-3,2.5721289999999998E-3,null,214]
[null,"Female 25-29",6.4677075000000002E-3,5.1149409E-3,1.1068811999999999E-3,1.3313283E-3,9.2299031999999997E-4,2.0670248E-3,7.5888167999999998E-4,2.1878725000000002E-3,2.5179427999999998E-3,1.2219463999999999E-3,1.2219463999999999E-3,3.8734179E-3,2.2593953000000001E-3,4.0763578999999999E-3,1.6832050999999999E-3,4.0937289999999999E-3,6.7324587E-3,8.0053377999999998E-3,null,3.0701531E-3,2.2317300999999999E-3,2.2317300999999999E-3,2.6164552999999998E-3,7.0191011999999999E-3,5.1555797000000002E-3,4.9914740999999997E-3,5.6555214999999999E-3,1.3697080000000001E-3,1.4892756E-3,2.1091349999999998E-3,1.4892756E-3,3.1509010999999998E-3,7.3745748999999999E-3,2.5588791E-3,1.0880972E-3,1.5704194999999999E-3,3.5593461000000002E-3,null,null,1.6972005E-3,3.1065276999999998E-3,5.4080578999999998E-3,7.5888167999999998E-4,null,null,2.0832290999999998E-3,2.8430793999999998E-3,2.1445298999999999E-3,2.4284498999999999E-3,2.6363115999999999E-3,2.3670372999999999E-3,2.6961912000000002E-3,null,215]
[null,"Female 30-34",6.0108313E-3,4.3592522999999998E-3,1.047655E-3,1.2053826000000001E-3,9.3396956999999999E-4,1.9097073E-3,7.6738662999999998E-4,2.2034912999999998E-3,2.3631457999999999E-3,1.2420755E-3,1.2420755E-3,3.5113282999999999E-3,2.1022719E-3,4.0792744000000001E-3,1.5963539000000001E-3,4.1527650000000001E-3,6.2115388000000002E-3,7.8119150999999996E-3,null,2.9890116E-3,2.4218496E-3,2.4218496E-3,2.6701905E-3,6.6917827000000001E-3,4.7760097999999997E-3,4.2482982000000002E-3,5.3244308000000001E-3,1.4517586E-3,1.5288761E-3,1.9752522999999999E-3,1.5288761E-3,3.1658710999999998E-3,6.9401910999999997E-3,2.3497044999999999E-3,1.1618282E-3,1.5099715000000001E-3,3.5790149E-3,null,null,1.6946563E-3,3.2149727999999998E-3,4.851785E-3,7.6738662999999998E-4,null,null,1.9640285000000002E-3,2.8426267999999998E-3,2.1707416000000001E-3,2.3590949999999999E-3,2.2933396999999999E-3,2.1430997000000001E-3,2.6603938999999999E-3,null,216]
[null,"Female 35-39",5.4505891000000001E-3,3.7618195999999998E-3,1.0316425000000001E-3,1.1878190999999999E-3,9.3289203000000004E-4,1.9595380999999999E-3,7.5392517999999995E-4,1.9612563999999999E-3,2.3104749000000002E-3,1.2450813E-3,1.2450813E-3,3.6475092999999998E-3,2.2024739999999998E-3,4.0815881999999998E-3,1.5238776000000001E-3,4.2232232999999996E-3,5.3927102000000003E-3,7.0058089000000004E-3,null,2.9340566000000002E-3,2.4213665000000001E-3,2.4213665000000001E-3,2.5160910999999998E-3,6.3562836000000001E-3,4.3513974999999996E-3,3.6907696999999998E-3,4.7682347000000003E-3,1.3862522E-3,1.5182748000000001E-3,1.7187579000000001E-3,1.5182748000000001E-3,3.1751105999999999E-3,6.0677895999999999E-3,2.6204958999999999E-3,1.1784143999999999E-3,1.5509897E-3,3.5422169999999998E-3,null,null,1.6639703E-3,3.1240246999999998E-3,4.2750862999999997E-3,7.5392517999999995E-4,null,null,2.0046971999999998E-3,2.9017725000000001E-3,1.8735669E-3,2.3587891000000001E-3,2.2860900000000002E-3,2.2678669000000002E-3,2.5360756999999999E-3,null,217]
[null,"Female 40-44",5.113116E-3,3.3336837999999999E-3,1.0280762E-3,1.2114242000000001E-3,9.3238743000000003E-4,1.9839285E-3,7.4563075999999995E-4,1.9500882000000001E-3,2.311067E-3,1.2134393000000001E-3,1.2134393000000001E-3,3.3652462999999998E-3,2.2032508000000002E-3,4.0440657000000001E-3,1.4302676E-3,4.1839479999999998E-3,4.9098437000000003E-3,6.6215926999999997E-3,null,3.0596926999999999E-3,2.4874208E-3,2.4874208E-3,2.6169212E-3,6.2319087000000002E-3,4.1753678000000004E-3,3.2336891000000001E-3,4.5764506999999999E-3,1.4409379999999999E-3,1.5772786999999999E-3,1.7716251E-3,1.5772786999999999E-3,3.0730292000000002E-3,5.5601484999999997E-3,2.6432324999999999E-3,1.1337966000000001E-3,1.5652732999999999E-3,3.4773693999999998E-3,null,null,1.5382025E-3,3.0516166999999999E-3,3.9167971999999997E-3,7.4563075999999995E-4,null,null,2.0167980999999998E-3,2.7874531000000001E-3,1.8733968000000001E-3,2.2938866E-3,2.0820608E-3,2.1085269000000002E-3,2.5142005E-3,null,218]
[null,"Female 45-49",5.0071324000000002E-3,3.2053848000000002E-3,1.0490286E-3,1.2133993000000001E-3,9.4497302999999998E-4,2.0093874000000002E-3,7.4531935000000005E-4,1.9536898E-3,2.1799135000000001E-3,1.2412269000000001E-3,1.2412269000000001E-3,3.3115969999999999E-3,2.2121782E-3,4.0571471000000001E-3,1.4123124999999999E-3,4.1112726999999998E-3,4.7197649000000003E-3,6.4696785999999997E-3,null,3.0836761000000001E-3,2.4217265000000001E-3,2.4217265000000001E-3,2.5908526E-3,6.0765682999999997E-3,4.0751188000000002E-3,3.1100292999999999E-3,4.4372641000000003E-3,1.3910349000000001E-3,1.5306895E-3,1.6964269999999999E-3,1.5306895E-3,3.0897543999999998E-3,5.3441753000000002E-3,2.7230072E-3,1.1407264E-3,1.5519315000000001E-3,3.4084097000000001E-3,null,null,1.5721228000000001E-3,3.0359434999999999E-3,3.7751071999999998E-3,7.4531935000000005E-4,null,null,2.0894015E-3,2.8266897000000001E-3,1.9132372E-3,2.2658577999999999E-3,2.1130993999999999E-3,2.2095310999999999E-3,2.4371996999999999E-3,null,219]
[null,"Female 50-54",5.0283083999999997E-3,3.3626099999999998E-3,1.0831371999999999E-3,1.2345943E-3,9.4971520999999998E-4,1.9880535999999998E-3,7.3994684000000001E-4,1.7928807E-3,2.1617367999999999E-3,1.2533223E-3,1.2533223E-3,3.4200225000000002E-3,2.1949703999999998E-3,4.0870150999999999E-3,1.3383059E-3,4.1420828000000003E-3,4.7361026999999997E-3,6.3629825999999999E-3,null,3.1636699999999999E-3,2.4163262E-3,2.4163262E-3,2.5578394999999999E-3,6.0505727000000004E-3,4.0893834000000004E-3,3.2533118999999999E-3,4.4315276000000004E-3,1.4460905000000001E-3,1.595902E-3,1.8121036E-3,1.595902E-3,3.1642083000000001E-3,5.3230589000000002E-3,2.6648496000000002E-3,1.0401543000000001E-3,1.5309963000000001E-3,3.5387573000000001E-3,null,null,1.4950751E-3,3.0898063000000002E-3,3.7783091000000001E-3,7.3994684000000001E-4,null,null,2.0460130000000002E-3,2.8897517000000001E-3,1.7279988E-3,2.2625313E-3,2.1351953E-3,2.1446975999999999E-3,2.3970966999999998E-3,null,220]
[null,"Female 55-59",4.9683241999999997E-3,3.3227941E-3,1.0720454999999999E-3,1.26841E-3,9.5352548000000002E-4,2.0043561000000001E-3,7.3765818000000002E-4,1.8743988E-3,2.0857158E-3,1.2267834000000001E-3,1.2267834000000001E-3,3.3711625999999998E-3,2.2642736E-3,4.0558903E-3,1.3642630999999999E-3,4.1535469E-3,4.7474559000000001E-3,6.3107917000000003E-3,null,3.1482560999999999E-3,2.3248069999999999E-3,2.3248069999999999E-3,2.5645006000000001E-3,5.9775929000000002E-3,4.0848758000000002E-3,3.2117574000000001E-3,4.4003539E-3,1.3899665E-3,1.5340841E-3,1.8467308E-3,1.5340841E-3,3.1989435999999999E-3,5.3920964999999996E-3,2.5044293E-3,1.1245837E-3,1.4509595000000001E-3,3.5149329E-3,null,null,1.5493835000000001E-3,2.9888721000000001E-3,3.7597098999999998E-3,7.3765818000000002E-4,null,null,2.0402254999999998E-3,2.9669327000000001E-3,1.8395557999999999E-3,2.2358581999999999E-3,2.1640598000000001E-3,2.1248501999999998E-3,2.3524118999999999E-3,null,221]
[null,"Female 60-64",4.9347486000000003E-3,3.1795471E-3,1.0846295999999999E-3,1.2180252E-3,9.5694599000000001E-4,1.9891028999999998E-3,7.5547449999999996E-4,1.924603E-3,1.9947579000000001E-3,1.2097621999999999E-3,1.2097621999999999E-3,3.3742154E-3,2.1457388000000002E-3,4.0681572000000003E-3,1.1882619E-3,4.1720476000000001E-3,4.6340827999999997E-3,6.2477536999999998E-3,null,3.1409848000000001E-3,2.2184532000000001E-3,2.2184532000000001E-3,2.5544997999999998E-3,6.0383538E-3,4.1252496000000003E-3,3.0376622000000001E-3,4.4359765000000001E-3,1.3898298E-3,1.5113411000000001E-3,1.8457382E-3,1.5113411000000001E-3,3.2071355E-3,5.3178314000000004E-3,2.4769623000000002E-3,1.0585518999999999E-3,1.4397762999999999E-3,3.5325821999999999E-3,null,null,1.4792782E-3,3.0419154000000002E-3,3.6966843000000001E-3,7.5547449999999996E-4,null,null,2.0756173999999998E-3,2.9977815999999999E-3,1.9102532000000001E-3,2.1059923000000002E-3,2.0116202000000001E-3,2.171709E-3,2.2714424E-3,null,222]
[null,"Female 65-69",4.9645486000000003E-3,3.2722202999999998E-3,1.0974302E-3,1.3519259E-3,9.5880689E-4,1.9714217999999999E-3,7.5023435000000002E-4,1.8826794999999999E-3,1.8400381E-3,1.1776861999999999E-3,1.1776861999999999E-3,3.3864951999999999E-3,2.0826019000000002E-3,4.0727187999999998E-3,1.1544316E-3,4.1759353999999997E-3,4.5703393000000002E-3,6.1387192E-3,null,3.2344615999999999E-3,2.2370238000000001E-3,2.2370238000000001E-3,2.5453695999999998E-3,6.0998177999999998E-3,4.0822150000000001E-3,3.1054787999999999E-3,4.3824236000000001E-3,1.3708031999999999E-3,1.5337653E-3,1.6654783000000001E-3,1.5337653E-3,3.1619291E-3,5.2954474999999997E-3,2.4520458999999998E-3,1.1160371000000001E-3,1.4287849000000001E-3,3.5209490000000002E-3,null,null,1.3976339E-3,2.9814476000000001E-3,3.6449073999999999E-3,7.5023435000000002E-4,null,null,2.0510580000000001E-3,2.9267558999999999E-3,1.8915634000000001E-3,2.1029739E-3,1.9963922000000001E-3,2.1845300000000001E-3,2.1899198000000001E-3,null,223]
[null,"Female 70-74",4.9761618000000001E-3,3.2586557999999999E-3,1.0577295E-3,1.3609277000000001E-3,9.5955485999999997E-4,1.9521410999999999E-3,7.4579945000000005E-4,1.9994258999999999E-3,1.9758693E-3,1.1778799E-3,1.1778799E-3,3.3522728000000002E-3,2.1177336999999999E-3,4.1129319000000001E-3,9.4023993000000002E-4,4.1776188000000004E-3,4.5298463999999998E-3,6.1164046999999996E-3,null,3.3865327000000001E-3,2.2144640999999998E-3,2.2144640999999998E-3,2.6437998999999999E-3,5.9874485999999996E-3,4.0229945E-3,3.0715398000000001E-3,4.2940024E-3,1.3764921E-3,1.5441572000000001E-3,1.7081883999999999E-3,1.5441572000000001E-3,3.1714033999999999E-3,5.2367904999999996E-3,2.4534415E-3,1.0865573E-3,1.3729737E-3,3.5191411E-3,null,null,1.3964123E-3,3.0507413000000001E-3,3.6024204E-3,7.4579945000000005E-4,null,null,2.0253979999999999E-3,2.9715587999999999E-3,2.0031817E-3,2.0943123000000002E-3,2.0054375999999999E-3,2.284534E-3,2.1311052E-3,null,224]
[null,"Female 75-79",4.9178032000000002E-3,3.2727988000000002E-3,1.0747674E-3,1.3558919E-3,9.3497499000000004E-4,1.9592408E-3,7.5484056000000004E-4,1.9338718E-3,1.8301833000000001E-3,1.1773608E-3,1.1773608E-3,3.3804426999999998E-3,2.1482387E-3,4.1642705999999996E-3,9.2648074E-4,4.2264401000000002E-3,4.6149651E-3,6.1126378999999996E-3,null,3.4153094000000002E-3,2.1270401999999998E-3,2.1270401999999998E-3,2.5758284999999998E-3,5.9266780000000003E-3,4.1134687999999997E-3,3.0990675999999998E-3,4.3759551000000004E-3,1.4862814E-3,1.6585647E-3,1.6216586E-3,1.6585647E-3,3.2034110999999998E-3,5.3182830999999996E-3,2.1920402000000002E-3,9.2913174999999996E-4,1.3661124E-3,3.5792659000000002E-3,null,null,1.3985778999999999E-3,3.1288217000000002E-3,3.6706479999999999E-3,7.5484056000000004E-4,null,null,2.0088023000000002E-3,2.9866642000000001E-3,1.9474274E-3,2.0567272E-3,2.0110699999999998E-3,2.5988328E-3,2.1731732000000001E-3,null,225]
[null,"Female 80-84",5.1398347E-3,3.5233897999999999E-3,1.1028253999999999E-3,1.3475169999999999E-3,9.6563669000000003E-4,2.0006602000000001E-3,7.5507006999999998E-4,2.3192484E-3,2.2662806000000001E-3,1.1404045E-3,1.1404045E-3,3.4519387000000001E-3,2.1524092000000002E-3,4.1752033999999999E-3,8.4338960000000004E-4,4.3176430999999999E-3,4.7448980999999996E-3,6.0193138000000004E-3,null,3.7104682999999999E-3,2.0646621000000001E-3,2.0646621000000001E-3,2.9201072E-3,6.0390462000000002E-3,4.2272150000000003E-3,3.3386726999999998E-3,4.502771E-3,1.4346687999999999E-3,1.5662848999999999E-3,1.8035150999999999E-3,1.5662848999999999E-3,3.2018099000000002E-3,5.3910827E-3,2.5330773E-3,9.0436217999999996E-4,1.3274722E-3,3.4858290999999998E-3,null,null,1.3831221999999999E-3,3.2326695999999999E-3,3.8006108000000001E-3,7.5507006999999998E-4,null,null,2.1096356000000001E-3,3.0583177999999999E-3,2.3247160000000001E-3,2.0310159E-3,2.0113559000000001E-3,2.234532E-3,2.0968278000000002E-3,null,226]
[null,"Female 85-89",5.0266827E-3,3.5814041999999999E-3,9.8782346999999994E-4,1.4085421999999999E-3,9.8580879000000001E-4,2.0991730999999998E-3,7.6101097999999999E-4,2.6319069000000001E-3,2.1784233000000002E-3,1.1803530000000001E-3,1.1803530000000001E-3,3.3605774000000001E-3,2.4736877999999999E-3,4.1851583000000001E-3,8.5062126000000002E-4,4.3711881000000003E-3,4.9181412999999997E-3,6.0857842000000004E-3,null,3.530114E-3,1.9589291999999999E-3,1.9589291999999999E-3,3.0127254000000001E-3,5.9485366000000001E-3,4.3275700999999998E-3,3.3978513E-3,4.5367512000000004E-3,1.5137557999999999E-3,1.6824807999999999E-3,1.4791083999999999E-3,1.6824807999999999E-3,3.3129832999999999E-3,5.5071004000000002E-3,3.1787015000000001E-3,1.0575474E-3,1.1628821000000001E-3,3.6926339000000002E-3,null,null,1.4961732E-3,3.2877903000000002E-3,3.9733336000000001E-3,7.6101097999999999E-4,null,null,2.1170652000000001E-3,3.1550484999999999E-3,2.6719935999999999E-3,2.0317463000000002E-3,2.0757935E-3,2.284534E-3,1.9860973000000001E-3,null,227]
[null,"Female 90+",5.1283659000000001E-3,3.6710991999999998E-3,1.0747456E-3,1.4815906000000001E-3,1.0170753E-3,2.3396416000000001E-3,7.2979833999999998E-4,2.8022414000000002E-3,2.1733553000000002E-3,1.1885075000000001E-3,1.1885075000000001E-3,3.4204151E-3,3.2270146E-3,4.2407955000000001E-3,8.0773246000000003E-4,4.2505963000000003E-3,4.8673105999999999E-3,6.0948258999999998E-3,null,3.6845703E-3,1.8787306000000001E-3,1.8787306000000001E-3,3.2471448999999999E-3,6.1727874E-3,4.3931315000000004E-3,3.4663942999999999E-3,4.6260058999999997E-3,1.6410350999999999E-3,1.9353559E-3,1.4534772E-3,1.9353559E-3,3.0366716000000001E-3,5.5957474E-3,2.8301517000000002E-3,8.5845747000000004E-4,1.1238706999999999E-3,3.0096173000000001E-3,null,null,1.5383866999999999E-3,3.4629974999999999E-3,4.0040034999999996E-3,7.2979833999999998E-4,null,null,2.2809814999999998E-3,3.0485487000000001E-3,2.8483979000000002E-3,1.9390979E-3,1.9840416E-3,2.8345566E-3,1.9016879000000001E-3,null,228]
[null,"Male 0-4",5.1155337E-3,3.4198973E-3,1.0276673E-3,1.1340995999999999E-3,9.2158436999999996E-4,1.8940303E-3,7.5953779999999996E-4,1.9973968000000001E-3,2.3012842999999999E-3,1.2560303999999999E-3,1.2560303999999999E-3,3.4318762E-3,2.0325081000000002E-3,4.0384432999999997E-3,1.5035878999999999E-3,4.2192000000000002E-3,4.8920363000000003E-3,6.4261550999999998E-3,null,2.8340692999999999E-3,2.4116623999999999E-3,2.4116623999999999E-3,2.4447105999999999E-3,6.0849488E-3,4.1774246000000001E-3,3.3081871999999998E-3,4.5382772000000004E-3,1.3793150000000001E-3,1.526377E-3,1.7660161000000001E-3,1.526377E-3,3.1322869000000001E-3,5.4963095999999998E-3,2.5161670000000001E-3,1.1963074000000001E-3,1.5302307000000001E-3,3.5493255E-3,null,null,1.6327519999999999E-3,2.9945835000000001E-3,3.9359145000000002E-3,7.5953779999999996E-4,null,null,1.9730494999999999E-3,2.8552474000000001E-3,1.9305571000000001E-3,2.2728868999999999E-3,2.1307297999999999E-3,2.2198258000000002E-3,2.552646E-3,null,229]
[null,"Male 5-9",4.8678712999999998E-3,3.0531578000000002E-3,9.9782633999999999E-4,1.1777948999999999E-3,9.2863262E-4,1.9807524999999999E-3,7.5410807000000002E-4,1.8879630000000001E-3,2.2616691E-3,1.2113136000000001E-3,1.2113136000000001E-3,3.2445118000000001E-3,2.2079783999999999E-3,4.0890863000000001E-3,1.3754717000000001E-3,4.1964343000000003E-3,4.5244665999999998E-3,6.1110797999999996E-3,null,2.9642281999999998E-3,2.4543130000000001E-3,2.4543130000000001E-3,2.5047339000000002E-3,5.9457738E-3,4.0705879000000004E-3,2.9740412999999999E-3,4.4114571000000002E-3,1.3687854999999999E-3,1.5155031999999999E-3,1.7600948000000001E-3,1.5155031999999999E-3,3.1078942E-3,5.1456000999999998E-3,2.5634795999999998E-3,1.142016E-3,1.5611589000000001E-3,3.5020533999999999E-3,null,null,1.5695137E-3,3.0252179000000001E-3,3.6861093E-3,7.5410807000000002E-4,null,null,1.9978739000000001E-3,2.8096784000000001E-3,1.8223616E-3,2.2784285E-3,2.0794945E-3,1.9178524E-3,2.4912723000000002E-3,null,230]
[null,"Male 10-15",4.9127060999999998E-3,2.9806089999999999E-3,1.0206111000000001E-3,1.1915535000000001E-3,9.4611075000000005E-4,2.0504477000000002E-3,7.6163257000000004E-4,1.7984383E-3,2.1901735999999999E-3,1.2246348000000001E-3,1.2246348000000001E-3,3.3473980000000001E-3,2.3452655999999998E-3,4.0212128999999996E-3,1.3753178999999999E-3,4.1760877E-3,4.3789692999999996E-3,5.9754834999999999E-3,null,2.9503463000000001E-3,2.3963704999999998E-3,2.3963704999999998E-3,2.4088451000000002E-3,5.7765370999999996E-3,3.9472752000000002E-3,2.8826216999999999E-3,4.2618993000000001E-3,1.3788636999999999E-3,1.5373856E-3,1.6380253999999999E-3,1.5373856E-3,3.0774318000000001E-3,4.9587282999999996E-3,2.6856430000000001E-3,1.1093206E-3,1.5532797000000001E-3,3.4618854999999998E-3,null,null,1.5783993E-3,2.9654233000000001E-3,3.5804679999999998E-3,7.6163257000000004E-4,null,null,2.0932494999999999E-3,2.7241794999999999E-3,1.7262921E-3,2.2473982999999999E-3,2.0956269E-3,2.2591483E-3,2.4298723000000001E-3,null,231]
[null,"Male 16-19",5.1042898999999996E-3,3.1014291999999998E-3,1.0398180000000001E-3,1.2539065999999999E-3,9.3970307999999996E-4,2.0082833000000001E-3,7.5087836000000004E-4,1.9156062000000001E-3,2.1964794E-3,1.2730832E-3,1.2730832E-3,4.8662736000000002E-3,2.2953264E-3,4.1102087000000004E-3,1.3626647E-3,4.1878343999999998E-3,4.8937169000000001E-3,6.5032379000000001E-3,null,3.0039542000000002E-3,2.3201216999999999E-3,2.3201216999999999E-3,2.4875183999999999E-3,7.1595451000000003E-3,4.3764948000000001E-3,2.9891760000000001E-3,4.8169093E-3,1.372418E-3,1.5508025E-3,1.9582102999999998E-3,1.5508025E-3,3.1052437E-3,5.495003E-3,2.5287197999999999E-3,1.0025604999999999E-3,1.5336868999999999E-3,3.4930233000000002E-3,null,null,1.4858332000000001E-3,3.0298419E-3,3.9742696000000001E-3,7.5087836000000004E-4,null,null,2.0566864E-3,2.8023925000000001E-3,1.8612648999999999E-3,2.6649364999999999E-3,2.9447700000000002E-3,2.2422248E-3,2.4119201000000002E-3,null,232]
[null,"Male 20-24",6.1848195999999996E-3,4.2853904999999998E-3,1.0766756E-3,1.2574035E-3,9.4024459000000005E-4,1.9899025000000002E-3,7.5185159000000002E-4,2.1380222999999999E-3,2.2687753999999999E-3,1.2322332E-3,1.2322332E-3,4.8623466999999998E-3,2.2505190999999999E-3,4.1248774999999996E-3,1.4459703999999999E-3,4.1380011999999997E-3,6.1808606E-3,7.8718764999999996E-3,null,3.1122583999999998E-3,1.9336990999999999E-3,1.9336990999999999E-3,2.6280142000000002E-3,7.8739384000000006E-3,5.1402599000000002E-3,4.1549606000000003E-3,5.6784590999999999E-3,1.4070631000000001E-3,1.5528285E-3,1.9608191E-3,1.5528285E-3,3.1678934999999999E-3,7.0115821000000002E-3,2.1296849000000001E-3,1.1393152E-3,1.5570457E-3,3.4521005999999998E-3,null,null,1.5907117999999999E-3,2.9927334000000002E-3,5.0220951000000003E-3,7.5185159000000002E-4,null,null,2.0183561999999999E-3,2.9527245000000001E-3,2.1199114000000001E-3,2.4687594000000002E-3,3.0532209E-3,2.0850752000000001E-3,2.5005652999999998E-3,null,233]
[null,"Male 25-29",6.4404359999999999E-3,5.0745616000000002E-3,1.1122949999999999E-3,1.2753682999999999E-3,9.2306733000000005E-4,1.9838439999999998E-3,7.3582941000000001E-4,2.1769695000000001E-3,2.4352992999999998E-3,1.2168851E-3,1.2168851E-3,3.9664540000000003E-3,2.2810381E-3,4.1162730000000002E-3,1.5003201999999999E-3,4.1637653000000004E-3,6.4604896999999996E-3,7.7427453000000002E-3,null,3.2135054999999999E-3,2.2394082000000001E-3,2.2394082000000001E-3,2.7692758000000001E-3,7.1767619999999997E-3,5.1227905999999997E-3,4.9587981999999996E-3,5.5966293000000002E-3,1.4534096999999999E-3,1.6309692E-3,2.1502911E-3,1.6309692E-3,3.2038861E-3,7.0607318000000001E-3,2.2127320999999998E-3,1.1561602999999999E-3,1.5322684E-3,3.5715944000000001E-3,null,null,1.6185539999999999E-3,3.0458990999999999E-3,5.2752755999999996E-3,7.3582941000000001E-4,null,null,1.9073257999999999E-3,2.8812450000000002E-3,2.1388140000000002E-3,2.4989630999999999E-3,2.729876E-3,2.0214798999999999E-3,2.6705373999999999E-3,null,234]
[null,"Male 30-34",6.4917886999999999E-3,4.8832423E-3,1.0650734000000001E-3,1.1697217999999999E-3,9.3429145999999997E-4,1.9566137000000001E-3,7.2544731999999996E-4,2.2506532000000001E-3,2.3990566999999999E-3,1.1959932000000001E-3,1.1959932000000001E-3,3.8243452999999999E-3,2.0735575999999999E-3,4.0787957000000003E-3,1.6308182000000001E-3,4.1849180000000001E-3,6.4258644999999996E-3,7.9476003999999992E-3,null,3.0981811999999998E-3,2.3339800999999999E-3,2.3339800999999999E-3,2.7732825999999999E-3,6.9320331999999998E-3,4.9775951000000001E-3,4.7739957999999999E-3,5.4917773000000003E-3,1.5529131E-3,1.6792980999999999E-3,1.9912678E-3,1.6792980999999999E-3,3.2513244E-3,7.1583352999999997E-3,2.3399240000000002E-3,9.6744042999999998E-4,1.4884305E-3,3.7044654999999998E-3,null,null,1.6640938E-3,3.1905574999999999E-3,5.1223817000000003E-3,7.2544731999999996E-4,null,null,2.1326940000000001E-3,2.9094487E-3,2.2208872E-3,2.3458174000000002E-3,2.3590835999999999E-3,2.3107255999999998E-3,2.70507E-3,null,235]
[null,"Male 35-39",5.9650824000000002E-3,4.2573931000000004E-3,1.0494898000000001E-3,1.2194860000000001E-3,9.3099747999999996E-4,1.9732341E-3,7.5029872999999995E-4,2.0891124999999999E-3,2.2386906E-3,1.2103914E-3,1.2103914E-3,3.7133230000000001E-3,2.18271E-3,4.0611639000000003E-3,1.5877445E-3,4.1922805999999998E-3,5.6635556E-3,7.3056147E-3,null,2.8847791000000001E-3,2.4209778999999998E-3,2.4209778999999998E-3,2.573068E-3,6.5473624999999999E-3,4.4987788000000004E-3,4.1777845000000001E-3,4.9773194000000002E-3,1.5116864000000001E-3,1.6243806999999999E-3,1.878233E-3,1.6243806999999999E-3,3.1381439999999998E-3,6.3898931000000003E-3,2.5661385000000001E-3,1.1706945000000001E-3,1.5863625E-3,3.5780636E-3,null,null,1.6053262999999999E-3,3.0237927999999998E-3,4.5118509000000003E-3,7.5029872999999995E-4,null,null,2.0099287E-3,2.8239837999999998E-3,2.0577795999999998E-3,2.3745794000000001E-3,2.3202838000000001E-3,2.2321511E-3,2.5526799999999999E-3,null,236]
[null,"Male 40-44",5.2714794999999997E-3,3.5087278E-3,1.0359786999999999E-3,1.226993E-3,9.4035587999999999E-4,1.9994839000000001E-3,7.3390616999999996E-4,1.9255462000000001E-3,2.0974509000000001E-3,1.2373134E-3,1.2373134E-3,3.3482793000000001E-3,2.2072287000000001E-3,4.0129566999999996E-3,1.4041311999999999E-3,4.2111216999999998E-3,5.1063261999999996E-3,6.8206978E-3,null,3.0500698000000001E-3,2.4730823999999998E-3,2.4730823999999998E-3,2.5536458000000001E-3,6.4159767000000001E-3,4.3021971000000003E-3,3.3981469000000002E-3,4.7364067000000001E-3,1.4036478999999999E-3,1.5423581E-3,1.7314520999999999E-3,1.5423581E-3,3.1593735000000002E-3,5.7751922999999998E-3,2.5536822999999999E-3,1.0701040000000001E-3,1.5283559E-3,3.4770672E-3,null,null,1.5769480999999999E-3,3.1008645999999998E-3,4.0590534999999997E-3,7.3390616999999996E-4,null,null,2.0574431E-3,2.9207410000000001E-3,1.8927333000000001E-3,2.3017009000000001E-3,2.0974989E-3,2.2367060000000002E-3,2.5257918000000002E-3,null,237]
[null,"Male 45-49",5.165902E-3,3.3431235000000001E-3,1.0392511E-3,1.2020109E-3,9.5085525999999995E-4,1.9776110999999998E-3,7.4132090000000005E-4,1.9283688E-3,2.2206436999999998E-3,1.2166356E-3,1.2166356E-3,3.3380734000000001E-3,2.2083174000000001E-3,4.0344954000000001E-3,1.3800084E-3,4.1610998999999996E-3,4.8063168999999996E-3,6.5741679000000004E-3,null,3.1301337E-3,2.4284291999999998E-3,2.4284291999999998E-3,2.5853601000000001E-3,6.2404126000000001E-3,4.1562672999999996E-3,3.2338408999999999E-3,4.5596622E-3,1.4502257000000001E-3,1.5721918E-3,1.6702431999999999E-3,1.5721918E-3,3.0690562000000002E-3,5.4705734000000004E-3,2.6989448999999999E-3,1.0981860999999999E-3,1.5638270000000001E-3,3.4000583000000002E-3,null,null,1.5519962E-3,3.0770388000000001E-3,3.8623929E-3,7.4132090000000005E-4,null,null,1.9941974999999998E-3,2.8148799E-3,1.8654043000000001E-3,2.2984904E-3,2.1555577E-3,2.2106503999999999E-3,2.4646657999999998E-3,null,238]
[null,"Male 50-54",5.1121674000000001E-3,3.3464062000000002E-3,1.0547786999999999E-3,1.2421864999999999E-3,9.3933555999999995E-4,2.007039E-3,7.4332439999999999E-4,1.9576605000000001E-3,2.1481409000000001E-3,1.2523530999999999E-3,1.2523530999999999E-3,3.2945408000000002E-3,2.2953507000000001E-3,4.1130283E-3,1.3772077999999999E-3,4.1366266000000002E-3,4.8313545999999997E-3,6.5317042000000002E-3,null,3.1505159999999999E-3,2.3998599000000002E-3,2.3998599000000002E-3,2.6405034999999999E-3,6.0604596999999996E-3,4.0891319999999997E-3,3.2252241000000001E-3,4.4407522999999997E-3,1.4448252999999999E-3,1.6041043E-3,1.7406212E-3,1.6041043E-3,3.139846E-3,5.4182108E-3,2.6148534E-3,1.0186371E-3,1.549487E-3,3.4853138000000001E-3,null,null,1.5468665E-3,3.0752213E-3,3.8076173999999998E-3,7.4332439999999999E-4,null,null,2.0360808999999999E-3,2.8584312999999999E-3,1.9200314999999999E-3,2.2018526E-3,2.0371331E-3,2.1863156000000001E-3,2.4128171999999999E-3,null,239]
[null,"Male 55-59",4.9999468000000002E-3,3.3504744000000001E-3,1.0796390999999999E-3,1.2680725E-3,9.4140862000000004E-4,2.0192957000000002E-3,7.5010192999999995E-4,1.8502976000000001E-3,1.9409453E-3,1.2275357999999999E-3,1.2275357999999999E-3,3.3748874000000002E-3,2.2417493E-3,4.0680248999999998E-3,1.3247797999999999E-3,4.1359309000000002E-3,4.6983818E-3,6.3390206000000001E-3,null,3.1200168E-3,2.3468346000000001E-3,2.3468346000000001E-3,2.5636043999999998E-3,6.1815758000000002E-3,4.0982761000000001E-3,3.2413551000000001E-3,4.4309311000000004E-3,1.3326780999999999E-3,1.4598160000000001E-3,1.872512E-3,1.4598160000000001E-3,3.1713435999999998E-3,5.3315311999999997E-3,2.5968889000000002E-3,1.0947823E-3,1.4468888E-3,3.5207459999999999E-3,null,null,1.5086855E-3,3.0330748E-3,3.7689426000000002E-3,7.5010192999999995E-4,null,null,2.0759964999999998E-3,2.9147641999999999E-3,1.8354193999999999E-3,2.2414042999999999E-3,2.1478878000000001E-3,2.1404808E-3,2.3338058999999999E-3,null,240]
[null,"Male 60-64",5.1151304999999996E-3,3.3616798000000001E-3,1.108403E-3,1.2678654999999999E-3,9.5524767000000003E-4,1.9762537000000001E-3,7.5612851999999999E-4,1.8468995000000001E-3,1.9562364999999998E-3,1.2215961E-3,1.2215961E-3,3.3370848E-3,2.1330842E-3,4.0689697000000002E-3,1.2350645999999999E-3,4.1548152999999997E-3,4.6616276E-3,6.2970379E-3,null,3.1630694999999999E-3,2.2531115000000001E-3,2.2531115000000001E-3,2.5526151999999999E-3,6.0939286000000004E-3,4.1108285000000001E-3,3.2275543000000002E-3,4.4359765000000001E-3,1.3745567000000001E-3,1.5055906E-3,1.6708329E-3,1.5055906E-3,3.1996968E-3,5.3460983999999998E-3,2.3946852999999998E-3,1.1115624999999999E-3,1.4613173000000001E-3,3.5267316000000002E-3,null,null,1.4805024E-3,3.0356940999999998E-3,3.7250311999999998E-3,7.5612851999999999E-4,null,null,2.0750992E-3,2.9741155E-3,1.8244445000000001E-3,2.1443241E-3,2.0530496000000001E-3,2.2461604999999998E-3,2.2548669999999998E-3,null,241]
[null,"Male 65-69",4.9944808999999998E-3,3.2452179999999998E-3,1.0493891E-3,1.298769E-3,9.6408656E-4,1.9740364999999999E-3,7.3761900000000001E-4,1.9947953999999999E-3,1.9141744E-3,1.2082218E-3,1.2082218E-3,3.4121233000000001E-3,2.1268346E-3,4.0539275000000003E-3,1.1493533E-3,4.1654793999999998E-3,4.5747030999999999E-3,6.2134555000000003E-3,null,3.2619669000000001E-3,2.2375945E-3,2.2375945E-3,2.6292552000000001E-3,6.0775535999999996E-3,4.0981853000000004E-3,3.0962114999999999E-3,4.3991776E-3,1.3637104000000001E-3,1.5031395000000001E-3,1.8009116000000001E-3,1.5031395000000001E-3,3.1899144E-3,5.3266794000000001E-3,2.5154270999999998E-3,1.1103167000000001E-3,1.4214517E-3,3.5004551E-3,null,null,1.4216389999999999E-3,3.0150109000000001E-3,3.6460190999999999E-3,7.3761900000000001E-4,null,null,2.0335080999999999E-3,2.9773894000000001E-3,2.0119457E-3,2.1022294999999999E-3,1.9896685000000002E-3,2.0873560999999999E-3,2.2225360999999998E-3,null,242]
[null,"Male 70-74",4.9157649999999999E-3,3.1270998999999998E-3,1.0936704000000001E-3,1.3405392E-3,9.5390109000000002E-4,1.9448543000000001E-3,7.4058008999999998E-4,1.8908187999999999E-3,1.7672066999999999E-3,1.1937300000000001E-3,1.1937300000000001E-3,3.3471057999999998E-3,2.0793005999999998E-3,4.1022020999999997E-3,9.6751360000000002E-4,4.1641658000000003E-3,4.4583180000000002E-3,6.1131055000000004E-3,null,3.2683907000000002E-3,2.2139412000000002E-3,2.2139412000000002E-3,2.5694965999999999E-3,6.0510141999999996E-3,4.0244870000000002E-3,2.9556062E-3,4.3265441999999999E-3,1.3601577000000001E-3,1.5349612999999999E-3,1.6726697999999999E-3,1.5349612999999999E-3,3.1063358999999999E-3,5.2156121999999997E-3,2.3511155000000001E-3,1.0532404999999999E-3,1.4044668000000001E-3,3.4551208000000002E-3,null,null,1.3733961000000001E-3,2.9991191999999998E-3,3.5497638999999999E-3,7.4058008999999998E-4,null,null,2.0171015E-3,2.9176561999999999E-3,1.9160332E-3,2.0617000000000001E-3,1.9414381E-3,2.234532E-3,2.1775090000000002E-3,null,243]
[null,"Male 75-79",4.9145016999999997E-3,3.1887336999999998E-3,1.0876884E-3,1.369557E-3,9.5179176000000001E-4,1.9934631E-3,7.4434676E-4,1.8767356E-3,1.8169209E-3,1.1471369999999999E-3,1.1471369999999999E-3,3.3986442999999998E-3,2.1870658E-3,4.1842079000000004E-3,9.5442105999999998E-4,4.1781398000000003E-3,4.4317977000000001E-3,5.9749818999999997E-3,null,3.4631192999999998E-3,2.1832764999999998E-3,2.1832764999999998E-3,2.5563020999999999E-3,6.0492395000000003E-3,4.0908107000000001E-3,2.9941694999999998E-3,4.3533128000000001E-3,1.3683046000000001E-3,1.5165918999999999E-3,1.6673117999999999E-3,1.5165918999999999E-3,3.1892839000000001E-3,5.0866901999999997E-3,2.2873706000000001E-3,9.8277604999999989E-4,1.4176738E-3,3.6460119000000001E-3,null,null,1.3790295000000001E-3,3.0303979000000001E-3,3.5707057000000002E-3,7.4434676E-4,null,null,2.0424419000000002E-3,2.9301785E-3,1.8845587E-3,2.0925147E-3,2.0312590000000001E-3,2.1745296999999999E-3,2.144038E-3,null,244]
[null,"Male 80-84",4.9318805999999998E-3,3.3412389000000002E-3,1.0496974E-3,1.2874951000000001E-3,9.5712347000000001E-4,1.8652267E-3,7.5219048000000005E-4,2.0826501000000002E-3,1.9239957E-3,1.1161516999999999E-3,1.1161516999999999E-3,3.5066835000000002E-3,2.0441713000000001E-3,4.1705802999999998E-3,7.9622044000000002E-4,4.2886612999999997E-3,4.5788419E-3,5.9903231000000001E-3,null,3.3905033000000001E-3,2.0511965000000001E-3,2.0511965000000001E-3,2.6630428999999999E-3,6.0855919000000003E-3,4.1417051000000003E-3,3.1744805000000001E-3,4.4067465000000002E-3,1.509724E-3,1.6510868E-3,1.5948295E-3,1.6510868E-3,3.1773853000000001E-3,5.2922997000000001E-3,2.3624116999999998E-3,1.0005222000000001E-3,1.3521612E-3,3.6344038999999999E-3,null,null,1.3232514E-3,3.1121822999999999E-3,3.6816908999999999E-3,7.5219048000000005E-4,null,null,1.9301413999999999E-3,2.9876569999999999E-3,2.1019198000000001E-3,2.0485295000000001E-3,2.0467801999999998E-3,2.3945386000000001E-3,2.2065015999999998E-3,null,245]
[null,"Male 85-89",4.8073498000000001E-3,3.2610631999999999E-3,1.0464659E-3,1.2640187E-3,9.7154697999999999E-4,2.0597371999999999E-3,7.4859085999999997E-4,2.3883734999999998E-3,2.2437286000000002E-3,1.11294E-3,1.11294E-3,3.3623516000000002E-3,2.2930327999999998E-3,4.0974397999999999E-3,8.2418252999999996E-4,4.2196702999999997E-3,4.8779108999999999E-3,6.1996458000000004E-3,null,3.7148274000000001E-3,2.1432870999999998E-3,2.1432870999999998E-3,2.9950926999999998E-3,5.9533221999999997E-3,4.1009410999999999E-3,3.0463266E-3,4.3504312999999998E-3,1.4020223E-3,1.5784466E-3,1.5446317000000001E-3,1.5784466E-3,3.0574209999999998E-3,5.6120752999999999E-3,2.6939427000000002E-3,9.5719326E-4,1.2337037000000001E-3,3.286059E-3,null,null,1.3699178000000001E-3,3.1453744E-3,3.7806630000000001E-3,7.4859085999999997E-4,null,null,2.1753105999999999E-3,2.9489642000000002E-3,2.4136513999999999E-3,2.0746568000000001E-3,2.0328948999999998E-3,1.7345114999999999E-3,2.0319639999999998E-3,null,246]
[null,"Male 90+",5.2443020999999998E-3,3.5046316E-3,1.0252588000000001E-3,1.4414861000000001E-3,9.4559009000000002E-4,2.0130256000000001E-3,7.2916853000000003E-4,2.4356614000000001E-3,2.2538721000000001E-3,1.1689056E-3,1.1689056E-3,3.6855738E-3,1.9006564000000001E-3,4.2120125E-3,7.2462600999999998E-4,4.2974963000000001E-3,5.0449255000000002E-3,6.2346794000000001E-3,null,3.6567280000000001E-3,1.9722485E-3,1.9722485E-3,3.0739462999999998E-3,5.8978624000000004E-3,4.3121762999999997E-3,3.3201221E-3,4.5128707000000002E-3,1.4589977000000001E-3,1.5445655000000001E-3,1.6281651E-3,1.5445655000000001E-3,3.3437101999999998E-3,5.5994386999999998E-3,2.9730145000000001E-3,7.3698413000000001E-4,1.1576036999999999E-3,3.6371702E-3,null,null,1.3931894999999999E-3,3.2285160999999999E-3,3.9728083999999997E-3,7.2916853000000003E-4,null,null,2.3345305000000002E-3,3.1698078E-3,2.4496451999999999E-3,2.0434042E-3,2.0856664E-3,0,2.1061723E-3,null,247]

{"sheet":"RateRatios_accidents","index":15,"n_rows":5,"n_cols":2,"rows_kept":5,"cut":false,"hidden":true,"merged":[]}
["Intervention Rate Ratios for the predicted reduction in speed"]
[]
[null,"Accident rate ratio"]
["hospitalisations",0.99960000000000004]
["mortality",0.99960000000000004]

{"sheet":"RateRatios_airpollution","index":16,"n_rows":249,"n_cols":20,"rows_kept":249,"cut":false,"hidden":true,"merged":[]}
["Intervention Rate Ratios for the predicted reduction in pollutant concentration, by subgroup"]
[null,null,"PM2.5",null,"NO2"]
[null,null,"all-cause mortality","all-cause hospitalisation","all-cause mortality","all-cause hospitalisation"]
["SIMD","coefficient per 1 ug.m-3 increase",6.015392281974714E-3,1.1332868530700327E-2,1.65440504355488E-3,0]
["All quintiles","16+ Males and Females",null,null,null,null,null,null,null,"pm25_hosp_irr",1.1200000000000001,"per 10 ug.m-3 increase",1.1332868530700327E-2]
["Q1 and Q2","16+ Males and Females",null,null,null,null,null,null,null,"no2_mort_irr",1.0249999999999999,"per 10 ug.m-3 increase",2.4692612590371415E-3]
["SIMD Q1 (most deprived)","16+ Males and Females",null,null,null,null,null,null,null,"no2_hosp_irr",1,"(no evidence)",0]
["SIMD Q2"]
["SIMD Q3"]
["SIMD Q4"]
["SIMD Q5 (least deprived)"]
["SIMD Q1 (most deprived)","16+ Females"]
["SIMD Q2"]
["SIMD Q3"]
["SIMD Q4"]
["SIMD Q5 (least deprived)"]
["SIMD Q1 (most deprived)","16+ Males"]
["SIMD Q2"]
["SIMD Q3"]
["SIMD Q4"]
["SIMD Q5 (least deprived)"]
["All quintiles","Female 0-4"]
[null,"Female 5-9"]
[null,"Female 10-15"]
[null,"Female 16-19"]
[null,"Female 20-24"]
[null,"Female 25-29"]
[null,"Female 30-34"]
[null,"Female 35-39"]
[null,"Female 40-44"]
[null,"Female 45-49"]
[null,"Female 50-54"]
[null,"Female 55-59"]
[null,"Female 60-64"]
[null,"Female 65-69"]
[null,"Female 70-74"]
[null,"Female 75-79"]
[null,"Female 80-84"]
[null,"Female 85-89"]
[null,"Female 90+"]
[null,"Male 0-4"]
[null,"Male 5-9"]
[null,"Male 10-15"]
[null,"Male 16-19"]
[null,"Male 20-24"]
[null,"Male 25-29"]
[null,"Male 30-34"]
[null,"Male 35-39"]
[null,"Male 40-44"]
[null,"Male 45-49"]
[null,"Male 50-54"]
[null,"Male 55-59"]
[null,"Male 60-64"]
[null,"Male 65-69"]
[null,"Male 70-74"]
[null,"Male 75-79"]
[null,"Male 80-84"]
[null,"Male 85-89"]
[null,"Male 90+"]
["SIMD Q1 (most deprived)","Female 0-4",{"$f":"EXP(C$4*-1*HLOOKUP(Calculations!$E$2,'PM2.5 reduction'!$C$3:$BC$249,'PM2.5 reduction'!$BD60))","v":0.99997605810076384},{"$f":"EXP(D$4*-1*HLOOKUP(Calculations!$E$2,'PM2.5 reduction'!$C$3:$BC$249,'PM2.5 reduction'!$BD60))","v":0.99995489445867147},{"$f":"EXP(E$4*-1*HLOOKUP(Calculations!$E$2,'NO2 reduction'!$C$3:$BC$249,'NO2 reduction'!$BD60))","v":0.9999885744258995},{"$f":"EXP(F$4*-1*HLOOKUP(Calculations!$E$2,'NO2 reduction'!$C$3:$BC$249,'NO2 reduction'!$BD60))","v":1},null,null,null,null,null,null,null,null,null,null,null,null,null,{"$f":"IF(AND(OR(Calculations!$E$2=\"Orkney Health Board\",Calculations!$E$2=\"Orkney Islands Local Authority\"),$F60=1),0,IF(AND(OR(Calculations!$E$2=\"Shetland Health Board\",Calculations!$E$2=\"Western Isles Health Board\",Calculations!$E$2=\"Shetland Islands Local Authority\",Calculations!$E$2=\"Eilean Siar Local Authority\"),OR($F60=1,$F60=5)),0,new_ci(VALUE(LEFT(Options!$B$14,2)),$C60,$E60,$F60,2016,$I60,1,$H60,$G60*$H60,RateRatios_airpollution!$C60)))","v":{"$error":"#VALUE!"}}]
[null,"Female 5-9",{"$f":"EXP(C$4*-1*HLOOKUP(Calculations!$E$2,'PM2.5 reduction'!$C$3:$BC$249,'PM2.5 reduction'!$BD61))","v":0.99997665243152967},{"$f":"EXP(D$4*-1*HLOOKUP(Calculations!$E$2,'PM2.5 reduction'!$C$3:$BC$249,'PM2.5 reduction'!$BD61))","v":0.99995601414153445},{"$f":"EXP(E$4*-1*HLOOKUP(Calculations!$E$2,'NO2 reduction'!$C$3:$BC$249,'NO2 reduction'!$BD61))","v":0.99998880997610251},{"$f":"EXP(F$4*-1*HLOOKUP(Calculations!$E$2,'NO2 reduction'!$C$3:$BC$249,'NO2 reduction'!$BD61))","v":1}]
[null,"Female 10-15",{"$f":"EXP(C$4*-1*HLOOKUP(Calculations!$E$2,'PM2.5 reduction'!$C$3:$BC$249,'PM2.5 reduction'!$BD62))","v":0.9999772397518687},{"$f":"EXP(D$4*-1*HLOOKUP(Calculations!$E$2,'PM2.5 reduction'!$C$3:$BC$249,'PM2.5 reduction'!$BD62))","v":0.99995712061775921},{"$f":"EXP(E$4*-1*HLOOKUP(Calculations!$E$2,'NO2 reduction'!$C$3:$BC$249,'NO2 reduction'!$BD62))","v":0.99998904035937974},{"$f":"EXP(F$4*-1*HLOOKUP(Calculations!$E$2,'NO2 reduction'!$C$3:$BC$249,'NO2 reduction'!$BD62))","v":1}]
[null,"Female 16-19",{"$f":"EXP(C$4*-1*HLOOKUP(Calculations!$E$2,'PM2.5 reduction'!$C$3:$BC$249,'PM2.5 reduction'!$BD63))","v":0.99997643245800483},{"$f":"EXP(D$4*-1*HLOOKUP(Calculations!$E$2,'PM2.5 reduction'!$C$3:$BC$249,'PM2.5 reduction'!$BD63))","v":0.99995559972478043},{"$f":"EXP(E$4*-1*HLOOKUP(Calculations!$E$2,'NO2 reduction'!$C$3:$BC$249,'NO2 reduction'!$BD63))","v":0.99998885923529723},{"$f":"EXP(F$4*-1*HLOOKUP(Calculations!$E$2,'NO2 reduction'!$C$3:$BC$249,'NO2 reduction'!$BD63))","v":1}]
[null,"Female 20-24",{"$f":"EXP(C$4*-1*HLOOKUP(Calculations!$E$2,'PM2.5 reduction'!$C$3:$BC$249,'PM2.5 reduction'!$BD64))","v":0.99997457964466419},{"$f":"EXP(D$4*-1*HLOOKUP(Calculations!$E$2,'PM2.5 reduction'!$C$3:$BC$249,'PM2.5 reduction'!$BD64))","v":0.99995210914023125},{"$f":"EXP(E$4*-1*HLOOKUP(Calculations!$E$2,'NO2 reduction'!$C$3:$BC$249,'NO2 reduction'!$BD64))","v":0.99998819551132534},{"$f":"EXP(F$4*-1*HLOOKUP(Calculations!$E$2,'NO2 reduction'!$C$3:$BC$249,'NO2 reduction'!$BD64))","v":1}]
[null,"Female 25-29",{"$f":"EXP(C$4*-1*HLOOKUP(Calculations!$E$2,'PM2.5 reduction'!$C$3:$BC$249,'PM2.5 reduction'!$BD65))","v":0.99997379127446973},{"$f":"EXP(D$4*-1*HLOOKUP(Calculations!$E$2,'PM2.5 reduction'!$C$3:$BC$249,'PM2.5 reduction'!$BD65))","v":0.99995062390178513},{"$f":"EXP(E$4*-1*HLOOKUP(Calculations!$E$2,'NO2 reduction'!$C$3:$BC$249,'NO2 reduction'!$BD65))","v":0.9999877352327603},{"$f":"EXP(F$4*-1*HLOOKUP(Calculations!$E$2,'NO2 reduction'!$C$3:$BC$249,'NO2 reduction'!$BD65))","v":1}]
[null,"Female 30-34",{"$f":"EXP(C$4*-1*HLOOKUP(Calculations!$E$2,'PM2.5 reduction'!$C$3:$BC$249,'PM2.5 reduction'!$BD66))","v":0.99997460369178692},{"$f":"EXP(D$4*-1*HLOOKUP(Calculations!$E$2,'PM2.5 reduction'!$C$3:$BC$249,'PM2.5 reduction'!$BD66))","v":0.99995215444347108},{"$f":"EXP(E$4*-1*HLOOKUP(Calculations!$E$2,'NO2 reduction'!$C$3:$BC$249,'NO2 reduction'!$BD66))","v":0.99998800732896131},{"$f":"EXP(F$4*-1*HLOOKUP(Calculations!$E$2,'NO2 reduction'!$C$3:$BC$249,'NO2 reduction'!$BD66))","v":1}]
[null,"Female 35-39",{"$f":"EXP(C$4*-1*HLOOKUP(Calculations!$E$2,'PM2.5 reduction'!$C$3:$BC$249,'PM2.5 reduction'!$BD67))","v":0.99997526591995012},{"$f":"EXP(D$4*-1*HLOOKUP(Calculations!$E$2,'PM2.5 reduction'!$C$3:$BC$249,'PM2.5 reduction'!$BD67))","v":0.99995340203931704},{"$f":"EXP(E$4*-1*HLOOKUP(Calculations!$E$2,'NO2 reduction'!$C$3:$BC$249,'NO2 reduction'!$BD67))","v":0.99998826137605445},{"$f":"EXP(F$4*-1*HLOOKUP(Calculations!$E$2,'NO2 reduction'!$C$3:$BC$249,'NO2 reduction'!$BD67))","v":1}]
[null,"Female 40-44",{"$f":"EXP(C$4*-1*HLOOKUP(Calculations!$E$2,'PM2.5 reduction'!$C$3:$BC$249,'PM2.5 reduction'!$BD68))","v":0.99997611497614081},{"$f":"EXP(D$4*-1*HLOOKUP(Calculations!$E$2,'PM2.5 reduction'!$C$3:$BC$249,'PM2.5 reduction'!$BD68))","v":0.99995500160838247},{"$f":"EXP(E$4*-1*HLOOKUP(Calculations!$E$2,'NO2 reduction'!$C$3:$BC$249,'NO2 reduction'!$BD68))","v":0.99998862907391484},{"$f":"EXP(F$4*-1*HLOOKUP(Calculations!$E$2,'NO2 reduction'!$C$3:$BC$249,'NO2 reduction'!$BD68))","v":1}]
[null,"Female 45-49",{"$f":"EXP(C$4*-1*HLOOKUP(Calculations!$E$2,'PM2.5 reduction'!$C$3:$BC$249,'PM2.5 reduction'!$BD69))","v":0.99997636611460616},{"$f":"EXP(D$4*-1*HLOOKUP(Calculations!$E$2,'PM2.5 reduction'!$C$3:$BC$249,'PM2.5 reduction'!$BD69))","v":0.99995547473786439},{"$f":"EXP(E$4*-1*HLOOKUP(Calculations!$E$2,'NO2 reduction'!$C$3:$BC$249,'NO2 reduction'!$BD69))","v":0.99998871157418912},{"$f":"EXP(F$4*-1*HLOOKUP(Calculations!$E$2,'NO2 reduction'!$C$3:$BC$249,'NO2 reduction'!$BD69))","v":1}]
[null,"Female 50-54",{"$f":"EXP(C$4*-1*HLOOKUP(Calculations!$E$2,'PM2.5 reduction'!$C$3:$BC$249,'PM2.5 reduction'!$BD70))","v":0.99997628142710637},{"$f":"EXP(D$4*-1*HLOOKUP(Calculations!$E$2,'PM2.5 reduction'!$C$3:$BC$249,'PM2.5 reduction'!$BD70))","v":0.99995531519179182},{"$f":"EXP(E$4*-1*HLOOKUP(Calculations!$E$2,'NO2 reduction'!$C$3:$BC$249,'NO2 reduction'!$BD70))","v":0.9999886632156495},{"$f":"EXP(F$4*-1*HLOOKUP(Calculations!$E$2,'NO2 reduction'!$C$3:$BC$249,'NO2 reduction'!$BD70))","v":1}]
[null,"Female 55-59",{"$f":"EXP(C$4*-1*HLOOKUP(Calculations!$E$2,'PM2.5 reduction'!$C$3:$BC$249,'PM2.5 reduction'!$BD71))","v":0.99997634127222501},{"$f":"EXP(D$4*-1*HLOOKUP(Calculations!$E$2,'PM2.5 reduction'!$C$3:$BC$249,'PM2.5 reduction'!$BD71))","v":0.99995542793633563},{"$f":"EXP(E$4*-1*HLOOKUP(Calculations!$E$2,'NO2 reduction'!$C$3:$BC$249,'NO2 reduction'!$BD71))","v":0.9999886778715269},{"$f":"EXP(F$4*-1*HLOOKUP(Calculations!$E$2,'NO2 reduction'!$C$3:$BC$249,'NO2 reduction'!$BD71))","v":1}]
[null,"Female 60-64",{"$f":"EXP(C$4*-1*HLOOKUP(Calculations!$E$2,'PM2.5 reduction'!$C$3:$BC$249,'PM2.5 reduction'!$BD72))","v":0.99997672819904315},{"$f":"EXP(D$4*-1*HLOOKUP(Calculations!$E$2,'PM2.5 reduction'!$C$3:$BC$249,'PM2.5 reduction'!$BD72))","v":0.99995615688294448},{"$f":"EXP(E$4*-1*HLOOKUP(Calculations!$E$2,'NO2 reduction'!$C$3:$BC$249,'NO2 reduction'!$BD72))","v":0.99998888524804541},{"$f":"EXP(F$4*-1*HLOOKUP(Calculations!$E$2,'NO2 reduction'!$C$3:$BC$249,'NO2 reduction'!$BD72))","v":1}]
[null,"Female 65-69",{"$f":"EXP(C$4*-1*HLOOKUP(Calculations!$E$2,'PM2.5 reduction'!$C$3:$BC$249,'PM2.5 reduction'!$BD73))","v":0.99997685308651607},{"$f":"EXP(D$4*-1*HLOOKUP(Calculations!$E$2,'PM2.5 reduction'!$C$3:$BC$249,'PM2.5 reduction'!$BD73))","v":0.99995639216340615},{"$f":"EXP(E$4*-1*HLOOKUP(Calculations!$E$2,'NO2 reduction'!$C$3:$BC$249,'NO2 reduction'!$BD73))","v":0.99998895805925914},{"$f":"EXP(F$4*-1*HLOOKUP(Calculations!$E$2,'NO2 reduction'!$C$3:$BC$249,'NO2 reduction'!$BD73))","v":1}]
[null,"Female 70-74",{"$f":"EXP(C$4*-1*HLOOKUP(Calculations!$E$2,'PM2.5 reduction'!$C$3:$BC$249,'PM2.5 reduction'!$BD74))","v":0.99997675142152642},{"$f":"EXP(D$4*-1*HLOOKUP(Calculations!$E$2,'PM2.5 reduction'!$C$3:$BC$249,'PM2.5 reduction'!$BD74))","v":0.99995620063269952},{"$f":"EXP(E$4*-1*HLOOKUP(Calculations!$E$2,'NO2 reduction'!$C$3:$BC$249,'NO2 reduction'!$BD74))","v":0.99998892081735913},{"$f":"EXP(F$4*-1*HLOOKUP(Calculations!$E$2,'NO2 reduction'!$C$3:$BC$249,'NO2 reduction'!$BD74))","v":1}]
[null,"Female 75-79",{"$f":"EXP(C$4*-1*HLOOKUP(Calculations!$E$2,'PM2.5 reduction'!$C$3:$BC$249,'PM2.5 reduction'!$BD75))","v":0.99997602745969116},{"$f":"EXP(D$4*-1*HLOOKUP(Calculations!$E$2,'PM2.5 reduction'!$C$3:$BC$249,'PM2.5 reduction'!$BD75))","v":0.99995483673277796},{"$f":"EXP(E$4*-1*HLOOKUP(Calculations!$E$2,'NO2 reduction'!$C$3:$BC$249,'NO2 reduction'!$BD75))","v":0.99998859416322261},{"$f":"EXP(F$4*-1*HLOOKUP(Calculations!$E$2,'NO2 reduction'!$C$3:$BC$249,'NO2 reduction'!$BD75))","v":1}]
[null,"Female 80-84",{"$f":"EXP(C$4*-1*HLOOKUP(Calculations!$E$2,'PM2.5 reduction'!$C$3:$BC$249,'PM2.5 reduction'!$BD76))","v":0.99997572123007517},{"$f":"EXP(D$4*-1*HLOOKUP(Calculations!$E$2,'PM2.5 reduction'!$C$3:$BC$249,'PM2.5 reduction'!$BD76))","v":0.99995425981513031},{"$f":"EXP(E$4*-1*HLOOKUP(Calculations!$E$2,'NO2 reduction'!$C$3:$BC$249,'NO2 reduction'!$BD76))","v":0.9999884546405744},{"$f":"EXP(F$4*-1*HLOOKUP(Calculations!$E$2,'NO2 reduction'!$C$3:$BC$249,'NO2 reduction'!$BD76))","v":1}]
[null,"Female 85-89",{"$f":"EXP(C$4*-1*HLOOKUP(Calculations!$E$2,'PM2.5 reduction'!$C$3:$BC$249,'PM2.5 reduction'!$BD77))","v":0.99997529146548647},{"$f":"EXP(D$4*-1*HLOOKUP(Calculations!$E$2,'PM2.5 reduction'!$C$3:$BC$249,'PM2.5 reduction'!$BD77))","v":0.99995345016550163},{"$f":"EXP(E$4*-1*HLOOKUP(Calculations!$E$2,'NO2 reduction'!$C$3:$BC$249,'NO2 reduction'!$BD77))","v":0.99998829951377977},{"$f":"EXP(F$4*-1*HLOOKUP(Calculations!$E$2,'NO2 reduction'!$C$3:$BC$249,'NO2 reduction'!$BD77))","v":1}]
[null,"Female 90+",{"$f":"EXP(C$4*-1*HLOOKUP(Calculations!$E$2,'PM2.5 reduction'!$C$3:$BC$249,'PM2.5 reduction'!$BD78))","v":0.99997529405083818},{"$f":"EXP(D$4*-1*HLOOKUP(Calculations!$E$2,'PM2.5 reduction'!$C$3:$BC$249,'PM2.5 reduction'!$BD78))","v":0.99995345503614175},{"$f":"EXP(E$4*-1*HLOOKUP(Calculations!$E$2,'NO2 reduction'!$C$3:$BC$249,'NO2 reduction'!$BD78))","v":0.99998825881142583},{"$f":"EXP(F$4*-1*HLOOKUP(Calculations!$E$2,'NO2 reduction'!$C$3:$BC$249,'NO2 reduction'!$BD78))","v":1}]
[null,"Male 0-4",{"$f":"EXP(C$4*-1*HLOOKUP(Calculations!$E$2,'PM2.5 reduction'!$C$3:$BC$249,'PM2.5 reduction'!$BD79))","v":0.99997607194666238},{"$f":"EXP(D$4*-1*HLOOKUP(Calculations!$E$2,'PM2.5 reduction'!$C$3:$BC$249,'PM2.5 reduction'!$BD79))","v":0.99995492054349189},{"$f":"EXP(E$4*-1*HLOOKUP(Calculations!$E$2,'NO2 reduction'!$C$3:$BC$249,'NO2 reduction'!$BD79))","v":0.99998858475836816},{"$f":"EXP(F$4*-1*HLOOKUP(Calculations!$E$2,'NO2 reduction'!$C$3:$BC$249,'NO2 reduction'!$BD79))","v":1}]
[null,"Male 5-9",{"$f":"EXP(C$4*-1*HLOOKUP(Calculations!$E$2,'PM2.5 reduction'!$C$3:$BC$249,'PM2.5 reduction'!$BD80))","v":0.99997674232044953},{"$f":"EXP(D$4*-1*HLOOKUP(Calculations!$E$2,'PM2.5 reduction'!$C$3:$BC$249,'PM2.5 reduction'!$BD80))","v":0.99995618348682058},{"$f":"EXP(E$4*-1*HLOOKUP(Calculations!$E$2,'NO2 reduction'!$C$3:$BC$249,'NO2 reduction'!$BD80))","v":0.99998882241543485},{"$f":"EXP(F$4*-1*HLOOKUP(Calculations!$E$2,'NO2 reduction'!$C$3:$BC$249,'NO2 reduction'!$BD80))","v":1}]
[null,"Male 10-15",{"$f":"EXP(C$4*-1*HLOOKUP(Calculations!$E$2,'PM2.5 reduction'!$C$3:$BC$249,'PM2.5 reduction'!$BD81))","v":0.99997692922638892},{"$f":"EXP(D$4*-1*HLOOKUP(Calculations!$E$2,'PM2.5 reduction'!$C$3:$BC$249,'PM2.5 reduction'!$BD81))","v":0.99995653560634423},{"$f":"EXP(E$4*-1*HLOOKUP(Calculations!$E$2,'NO2 reduction'!$C$3:$BC$249,'NO2 reduction'!$BD81))","v":0.99998887444407347},{"$f":"EXP(F$4*-1*HLOOKUP(Calculations!$E$2,'NO2 reduction'!$C$3:$BC$249,'NO2 reduction'!$BD81))","v":1}]
[null,"Male 16-19",{"$f":"EXP(C$4*-1*HLOOKUP(Calculations!$E$2,'PM2.5 reduction'!$C$3:$BC$249,'PM2.5 reduction'!$BD82))","v":0.99997637817879181},{"$f":"EXP(D$4*-1*HLOOKUP(Calculations!$E$2,'PM2.5 reduction'!$C$3:$BC$249,'PM2.5 reduction'!$BD82))","v":0.99995549746605372},{"$f":"EXP(E$4*-1*HLOOKUP(Calculations!$E$2,'NO2 reduction'!$C$3:$BC$249,'NO2 reduction'!$BD82))","v":0.99998879417009368},{"$f":"EXP(F$4*-1*HLOOKUP(Calculations!$E$2,'NO2 reduction'!$C$3:$BC$249,'NO2 reduction'!$BD82))","v":1}]
[null,"Male 20-24",{"$f":"EXP(C$4*-1*HLOOKUP(Calculations!$E$2,'PM2.5 reduction'!$C$3:$BC$249,'PM2.5 reduction'!$BD83))","v":0.99997461535533638},{"$f":"EXP(D$4*-1*HLOOKUP(Calculations!$E$2,'PM2.5 reduction'!$C$3:$BC$249,'PM2.5 reduction'!$BD83))","v":0.99995217641685197},{"$f":"EXP(E$4*-1*HLOOKUP(Calculations!$E$2,'NO2 reduction'!$C$3:$BC$249,'NO2 reduction'!$BD83))","v":0.99998820306409153},{"$f":"EXP(F$4*-1*HLOOKUP(Calculations!$E$2,'NO2 reduction'!$C$3:$BC$249,'NO2 reduction'!$BD83))","v":1}]
[null,"Male 25-29",{"$f":"EXP(C$4*-1*HLOOKUP(Calculations!$E$2,'PM2.5 reduction'!$C$3:$BC$249,'PM2.5 reduction'!$BD84))","v":0.99997319980203758},{"$f":"EXP(D$4*-1*HLOOKUP(Calculations!$E$2,'PM2.5 reduction'!$C$3:$BC$249,'PM2.5 reduction'!$BD84))","v":0.99994950960666518},{"$f":"EXP(E$4*-1*HLOOKUP(Calculations!$E$2,'NO2 reduction'!$C$3:$BC$249,'NO2 reduction'!$BD84))","v":0.99998752782024924},{"$f":"EXP(F$4*-1*HLOOKUP(Calculations!$E$2,'NO2 reduction'!$C$3:$BC$249,'NO2 reduction'!$BD84))","v":1}]
[null,"Male 30-34",{"$f":"EXP(C$4*-1*HLOOKUP(Calculations!$E$2,'PM2.5 reduction'!$C$3:$BC$249,'PM2.5 reduction'!$BD85))","v":0.99997337993596802},{"$f":"EXP(D$4*-1*HLOOKUP(Calculations!$E$2,'PM2.5 reduction'!$C$3:$BC$249,'PM2.5 reduction'!$BD85))","v":0.9999498489670684},{"$f":"EXP(E$4*-1*HLOOKUP(Calculations!$E$2,'NO2 reduction'!$C$3:$BC$249,'NO2 reduction'!$BD85))","v":0.99998761027675687},{"$f":"EXP(F$4*-1*HLOOKUP(Calculations!$E$2,'NO2 reduction'!$C$3:$BC$249,'NO2 reduction'!$BD85))","v":1}]
[null,"Male 35-39",{"$f":"EXP(C$4*-1*HLOOKUP(Calculations!$E$2,'PM2.5 reduction'!$C$3:$BC$249,'PM2.5 reduction'!$BD86))","v":0.99997416552138496},{"$f":"EXP(D$4*-1*HLOOKUP(Calculations!$E$2,'PM2.5 reduction'!$C$3:$BC$249,'PM2.5 reduction'!$BD86))","v":0.99995132895863392},{"$f":"EXP(E$4*-1*HLOOKUP(Calculations!$E$2,'NO2 reduction'!$C$3:$BC$249,'NO2 reduction'!$BD86))","v":0.99998789806013344},{"$f":"EXP(F$4*-1*HLOOKUP(Calculations!$E$2,'NO2 reduction'!$C$3:$BC$249,'NO2 reduction'!$BD86))","v":1}]
[null,"Male 40-44",{"$f":"EXP(C$4*-1*HLOOKUP(Calculations!$E$2,'PM2.5 reduction'!$C$3:$BC$249,'PM2.5 reduction'!$BD87))","v":0.99997486717134276},{"$f":"EXP(D$4*-1*HLOOKUP(Calculations!$E$2,'PM2.5 reduction'!$C$3:$BC$249,'PM2.5 reduction'!$BD87))","v":0.99995265082215101},{"$f":"EXP(E$4*-1*HLOOKUP(Calculations!$E$2,'NO2 reduction'!$C$3:$BC$249,'NO2 reduction'!$BD87))","v":0.99998822121667141},{"$f":"EXP(F$4*-1*HLOOKUP(Calculations!$E$2,'NO2 reduction'!$C$3:$BC$249,'NO2 reduction'!$BD87))","v":1}]
[null,"Male 45-49",{"$f":"EXP(C$4*-1*HLOOKUP(Calculations!$E$2,'PM2.5 reduction'!$C$3:$BC$249,'PM2.5 reduction'!$BD88))","v":0.99997550106667343},{"$f":"EXP(D$4*-1*HLOOKUP(Calculations!$E$2,'PM2.5 reduction'!$C$3:$BC$249,'PM2.5 reduction'!$BD88))","v":0.99995384504100127},{"$f":"EXP(E$4*-1*HLOOKUP(Calculations!$E$2,'NO2 reduction'!$C$3:$BC$249,'NO2 reduction'!$BD88))","v":0.99998843409293581},{"$f":"EXP(F$4*-1*HLOOKUP(Calculations!$E$2,'NO2 reduction'!$C$3:$BC$249,'NO2 reduction'!$BD88))","v":1}]
[null,"Male 50-54",{"$f":"EXP(C$4*-1*HLOOKUP(Calculations!$E$2,'PM2.5 reduction'!$C$3:$BC$249,'PM2.5 reduction'!$BD89))","v":0.9999756515398408},{"$f":"EXP(D$4*-1*HLOOKUP(Calculations!$E$2,'PM2.5 reduction'!$C$3:$BC$249,'PM2.5 reduction'!$BD89))","v":0.99995412852306287},{"$f":"EXP(E$4*-1*HLOOKUP(Calculations!$E$2,'NO2 reduction'!$C$3:$BC$249,'NO2 reduction'!$BD89))","v":0.99998849782815502},{"$f":"EXP(F$4*-1*HLOOKUP(Calculations!$E$2,'NO2 reduction'!$C$3:$BC$249,'NO2 reduction'!$BD89))","v":1}]
[null,"Male 55-59",{"$f":"EXP(C$4*-1*HLOOKUP(Calculations!$E$2,'PM2.5 reduction'!$C$3:$BC$249,'PM2.5 reduction'!$BD90))","v":0.99997611420919663},{"$f":"EXP(D$4*-1*HLOOKUP(Calculations!$E$2,'PM2.5 reduction'!$C$3:$BC$249,'PM2.5 reduction'!$BD90))","v":0.99995500016350669},{"$f":"EXP(E$4*-1*HLOOKUP(Calculations!$E$2,'NO2 reduction'!$C$3:$BC$249,'NO2 reduction'!$BD90))","v":0.99998867610811648},{"$f":"EXP(F$4*-1*HLOOKUP(Calculations!$E$2,'NO2 reduction'!$C$3:$BC$249,'NO2 reduction'!$BD90))","v":1}]
[null,"Male 60-64",{"$f":"EXP(C$4*-1*HLOOKUP(Calculations!$E$2,'PM2.5 reduction'!$C$3:$BC$249,'PM2.5 reduction'!$BD91))","v":0.99997595956498686},{"$f":"EXP(D$4*-1*HLOOKUP(Calculations!$E$2,'PM2.5 reduction'!$C$3:$BC$249,'PM2.5 reduction'!$BD91))","v":0.99995470882334281},{"$f":"EXP(E$4*-1*HLOOKUP(Calculations!$E$2,'NO2 reduction'!$C$3:$BC$249,'NO2 reduction'!$BD91))","v":0.99998863962509399},{"$f":"EXP(F$4*-1*HLOOKUP(Calculations!$E$2,'NO2 reduction'!$C$3:$BC$249,'NO2 reduction'!$BD91))","v":1}]
[null,"Male 65-69",{"$f":"EXP(C$4*-1*HLOOKUP(Calculations!$E$2,'PM2.5 reduction'!$C$3:$BC$249,'PM2.5 reduction'!$BD92))","v":0.99997649034216074},{"$f":"EXP(D$4*-1*HLOOKUP(Calculations!$E$2,'PM2.5 reduction'!$C$3:$BC$249,'PM2.5 reduction'!$BD92))","v":0.99995570877500495},{"$f":"EXP(E$4*-1*HLOOKUP(Calculations!$E$2,'NO2 reduction'!$C$3:$BC$249,'NO2 reduction'!$BD92))","v":0.99998884146635791},{"$f":"EXP(F$4*-1*HLOOKUP(Calculations!$E$2,'NO2 reduction'!$C$3:$BC$249,'NO2 reduction'!$BD92))","v":1}]
[null,"Male 70-74",{"$f":"EXP(C$4*-1*HLOOKUP(Calculations!$E$2,'PM2.5 reduction'!$C$3:$BC$249,'PM2.5 reduction'!$BD93))","v":0.99997652412140403},{"$f":"EXP(D$4*-1*HLOOKUP(Calculations!$E$2,'PM2.5 reduction'!$C$3:$BC$249,'PM2.5 reduction'!$BD93))","v":0.99995577241304479},{"$f":"EXP(E$4*-1*HLOOKUP(Calculations!$E$2,'NO2 reduction'!$C$3:$BC$249,'NO2 reduction'!$BD93))","v":0.99998890571793719},{"$f":"EXP(F$4*-1*HLOOKUP(Calculations!$E$2,'NO2 reduction'!$C$3:$BC$249,'NO2 reduction'!$BD93))","v":1}]
[null,"Male 75-79",{"$f":"EXP(C$4*-1*HLOOKUP(Calculations!$E$2,'PM2.5 reduction'!$C$3:$BC$249,'PM2.5 reduction'!$BD94))","v":0.9999764011053166},{"$f":"EXP(D$4*-1*HLOOKUP(Calculations!$E$2,'PM2.5 reduction'!$C$3:$BC$249,'PM2.5 reduction'!$BD94))","v":0.99995554065822756},{"$f":"EXP(E$4*-1*HLOOKUP(Calculations!$E$2,'NO2 reduction'!$C$3:$BC$249,'NO2 reduction'!$BD94))","v":0.99998884570042956},{"$f":"EXP(F$4*-1*HLOOKUP(Calculations!$E$2,'NO2 reduction'!$C$3:$BC$249,'NO2 reduction'!$BD94))","v":1}]
[null,"Male 80-84",{"$f":"EXP(C$4*-1*HLOOKUP(Calculations!$E$2,'PM2.5 reduction'!$C$3:$BC$249,'PM2.5 reduction'!$BD95))","v":0.99997615638751913},{"$f":"EXP(D$4*-1*HLOOKUP(Calculations!$E$2,'PM2.5 reduction'!$C$3:$BC$249,'PM2.5 reduction'!$BD95))","v":0.99995507962487484},{"$f":"EXP(E$4*-1*HLOOKUP(Calculations!$E$2,'NO2 reduction'!$C$3:$BC$249,'NO2 reduction'!$BD95))","v":0.99998871437920123},{"$f":"EXP(F$4*-1*HLOOKUP(Calculations!$E$2,'NO2 reduction'!$C$3:$BC$249,'NO2 reduction'!$BD95))","v":1}]
[null,"Male 85-89",{"$f":"EXP(C$4*-1*HLOOKUP(Calculations!$E$2,'PM2.5 reduction'!$C$3:$BC$249,'PM2.5 reduction'!$BD96))","v":0.99997614235695131},{"$f":"EXP(D$4*-1*HLOOKUP(Calculations!$E$2,'PM2.5 reduction'!$C$3:$BC$249,'PM2.5 reduction'!$BD96))","v":0.99995505319214673},{"$f":"EXP(E$4*-1*HLOOKUP(Calculations!$E$2,'NO2 reduction'!$C$3:$BC$249,'NO2 reduction'!$BD96))","v":0.99998873278755851},{"$f":"EXP(F$4*-1*HLOOKUP(Calculations!$E$2,'NO2 reduction'!$C$3:$BC$249,'NO2 reduction'!$BD96))","v":1}]
[null,"Male 90+",{"$f":"EXP(C$4*-1*HLOOKUP(Calculations!$E$2,'PM2.5 reduction'!$C$3:$BC$249,'PM2.5 reduction'!$BD97))","v":0.99997561899435383},{"$f":"EXP(D$4*-1*HLOOKUP(Calculations!$E$2,'PM2.5 reduction'!$C$3:$BC$249,'PM2.5 reduction'!$BD97))","v":0.99995406720939228},{"$f":"EXP(E$4*-1*HLOOKUP(Calculations!$E$2,'NO2 reduction'!$C$3:$BC$249,'NO2 reduction'!$BD97))","v":0.99998846462545543},{"$f":"EXP(F$4*-1*HLOOKUP(Calculations!$E$2,'NO2 reduction'!$C$3:$BC$249,'NO2 reduction'!$BD97))","v":1}]
["SIMD Q2","Female 0-4",{"$f":"EXP(C$4*-1*HLOOKUP(Calculations!$E$2,'PM2.5 reduction'!$C$3:$BC$249,'PM2.5 reduction'!$BD98))","v":0.99997823243371398},{"$f":"EXP(D$4*-1*HLOOKUP(Calculations!$E$2,'PM2.5 reduction'!$C$3:$BC$249,'PM2.5 reduction'!$BD98))","v":0.99995899077200856},{"$f":"EXP(E$4*-1*HLOOKUP(Calculations!$E$2,'NO2 reduction'!$C$3:$BC$249,'NO2 reduction'!$BD98))","v":0.99998999195425053},{"$f":"EXP(F$4*-1*HLOOKUP(Calculations!$E$2,'NO2 reduction'!$C$3:$BC$249,'NO2 reduction'!$BD98))","v":1}]
[null,"Female 5-9",{"$f":"EXP(C$4*-1*HLOOKUP(Calculations!$E$2,'PM2.5 reduction'!$C$3:$BC$249,'PM2.5 reduction'!$BD99))","v":0.99997922335226674},{"$f":"EXP(D$4*-1*HLOOKUP(Calculations!$E$2,'PM2.5 reduction'!$C$3:$BC$249,'PM2.5 reduction'!$BD99))","v":0.99996085760595521},{"$f":"EXP(E$4*-1*HLOOKUP(Calculations!$E$2,'NO2 reduction'!$C$3:$BC$249,'NO2 reduction'!$BD99))","v":0.99999040559000485},{"$f":"EXP(F$4*-1*HLOOKUP(Calculations!$E$2,'NO2 reduction'!$C$3:$BC$249,'NO2 reduction'!$BD99))","v":1}]
[null,"Female 10-15",{"$f":"EXP(C$4*-1*HLOOKUP(Calculations!$E$2,'PM2.5 reduction'!$C$3:$BC$249,'PM2.5 reduction'!$BD100))","v":0.99997969702580569},{"$f":"EXP(D$4*-1*HLOOKUP(Calculations!$E$2,'PM2.5 reduction'!$C$3:$BC$249,'PM2.5 reduction'!$BD100))","v":0.99996174998042131},{"$f":"EXP(E$4*-1*HLOOKUP(Calculations!$E$2,'NO2 reduction'!$C$3:$BC$249,'NO2 reduction'!$BD100))","v":0.99999060852650024},{"$f":"EXP(F$4*-1*HLOOKUP(Calculations!$E$2,'NO2 reduction'!$C$3:$BC$249,'NO2 reduction'!$BD100))","v":1}]
[null,"Female 16-19",{"$f":"EXP(C$4*-1*HLOOKUP(Calculations!$E$2,'PM2.5 reduction'!$C$3:$BC$249,'PM2.5 reduction'!$BD101))","v":0.99997716230485723},{"$f":"EXP(D$4*-1*HLOOKUP(Calculations!$E$2,'PM2.5 reduction'!$C$3:$BC$249,'PM2.5 reduction'!$BD101))","v":0.9999569747122109},{"$f":"EXP(E$4*-1*HLOOKUP(Calculations!$E$2,'NO2 reduction'!$C$3:$BC$249,'NO2 reduction'!$BD101))","v":0.99998972776167927},{"$f":"EXP(F$4*-1*HLOOKUP(Calculations!$E$2,'NO2 reduction'!$C$3:$BC$249,'NO2 reduction'!$BD101))","v":1}]
[null,"Female 20-24",{"$f":"EXP(C$4*-1*HLOOKUP(Calculations!$E$2,'PM2.5 reduction'!$C$3:$BC$249,'PM2.5 reduction'!$BD102))","v":0.99997231997562963},{"$f":"EXP(D$4*-1*HLOOKUP(Calculations!$E$2,'PM2.5 reduction'!$C$3:$BC$249,'PM2.5 reduction'!$BD102))","v":0.99994785207271786},{"$f":"EXP(E$4*-1*HLOOKUP(Calculations!$E$2,'NO2 reduction'!$C$3:$BC$249,'NO2 reduction'!$BD102))","v":0.99998819444275777},{"$f":"EXP(F$4*-1*HLOOKUP(Calculations!$E$2,'NO2 reduction'!$C$3:$BC$249,'NO2 reduction'!$BD102))","v":1}]
[null,"Female 25-29",{"$f":"EXP(C$4*-1*HLOOKUP(Calculations!$E$2,'PM2.5 reduction'!$C$3:$BC$249,'PM2.5 reduction'!$BD103))","v":0.99997383868233958},{"$f":"EXP(D$4*-1*HLOOKUP(Calculations!$E$2,'PM2.5 reduction'!$C$3:$BC$249,'PM2.5 reduction'!$BD103))","v":0.99995071321511564},{"$f":"EXP(E$4*-1*HLOOKUP(Calculations!$E$2,'NO2 reduction'!$C$3:$BC$249,'NO2 reduction'!$BD103))","v":0.99998835985104739},{"$f":"EXP(F$4*-1*HLOOKUP(Calculations!$E$2,'NO2 reduction'!$C$3:$BC$249,'NO2 reduction'!$BD103))","v":1}]
[null,"Female 30-34",{"$f":"EXP(C$4*-1*HLOOKUP(Calculations!$E$2,'PM2.5 reduction'!$C$3:$BC$249,'PM2.5 reduction'!$BD104))","v":0.9999754027264468},{"$f":"EXP(D$4*-1*HLOOKUP(Calculations!$E$2,'PM2.5 reduction'!$C$3:$BC$249,'PM2.5 reduction'!$BD104))","v":0.99995365977416861},{"$f":"EXP(E$4*-1*HLOOKUP(Calculations!$E$2,'NO2 reduction'!$C$3:$BC$249,'NO2 reduction'!$BD104))","v":0.99998890469403723},{"$f":"EXP(F$4*-1*HLOOKUP(Calculations!$E$2,'NO2 reduction'!$C$3:$BC$249,'NO2 reduction'!$BD104))","v":1}]
[null,"Female 35-39",{"$f":"EXP(C$4*-1*HLOOKUP(Calculations!$E$2,'PM2.5 reduction'!$C$3:$BC$249,'PM2.5 reduction'!$BD105))","v":0.99997695571335499},{"$f":"EXP(D$4*-1*HLOOKUP(Calculations!$E$2,'PM2.5 reduction'!$C$3:$BC$249,'PM2.5 reduction'!$BD105))","v":0.99995658550619648},{"$f":"EXP(E$4*-1*HLOOKUP(Calculations!$E$2,'NO2 reduction'!$C$3:$BC$249,'NO2 reduction'!$BD105))","v":0.99998948441413116},{"$f":"EXP(F$4*-1*HLOOKUP(Calculations!$E$2,'NO2 reduction'!$C$3:$BC$249,'NO2 reduction'!$BD105))","v":1}]
[null,"Female 40-44",{"$f":"EXP(C$4*-1*HLOOKUP(Calculations!$E$2,'PM2.5 reduction'!$C$3:$BC$249,'PM2.5 reduction'!$BD106))","v":0.99997814889858017},{"$f":"EXP(D$4*-1*HLOOKUP(Calculations!$E$2,'PM2.5 reduction'!$C$3:$BC$249,'PM2.5 reduction'!$BD106))","v":0.99995883339666314},{"$f":"EXP(E$4*-1*HLOOKUP(Calculations!$E$2,'NO2 reduction'!$C$3:$BC$249,'NO2 reduction'!$BD106))","v":0.99999001874359816},{"$f":"EXP(F$4*-1*HLOOKUP(Calculations!$E$2,'NO2 reduction'!$C$3:$BC$249,'NO2 reduction'!$BD106))","v":1}]
[null,"Female 45-49",{"$f":"EXP(C$4*-1*HLOOKUP(Calculations!$E$2,'PM2.5 reduction'!$C$3:$BC$249,'PM2.5 reduction'!$BD107))","v":0.99997884680622895},{"$f":"EXP(D$4*-1*HLOOKUP(Calculations!$E$2,'PM2.5 reduction'!$C$3:$BC$249,'PM2.5 reduction'!$BD107))","v":0.99996014821453771},{"$f":"EXP(E$4*-1*HLOOKUP(Calculations!$E$2,'NO2 reduction'!$C$3:$BC$249,'NO2 reduction'!$BD107))","v":0.99999030326984506},{"$f":"EXP(F$4*-1*HLOOKUP(Calculations!$E$2,'NO2 reduction'!$C$3:$BC$249,'NO2 reduction'!$BD107))","v":1}]
[null,"Female 50-54",{"$f":"EXP(C$4*-1*HLOOKUP(Calculations!$E$2,'PM2.5 reduction'!$C$3:$BC$249,'PM2.5 reduction'!$BD108))","v":0.99997892170831204},{"$f":"EXP(D$4*-1*HLOOKUP(Calculations!$E$2,'PM2.5 reduction'!$C$3:$BC$249,'PM2.5 reduction'!$BD108))","v":0.99996028932580283},{"$f":"EXP(E$4*-1*HLOOKUP(Calculations!$E$2,'NO2 reduction'!$C$3:$BC$249,'NO2 reduction'!$BD108))","v":0.99999028956703728},{"$f":"EXP(F$4*-1*HLOOKUP(Calculations!$E$2,'NO2 reduction'!$C$3:$BC$249,'NO2 reduction'!$BD108))","v":1}]
[null,"Female 55-59",{"$f":"EXP(C$4*-1*HLOOKUP(Calculations!$E$2,'PM2.5 reduction'!$C$3:$BC$249,'PM2.5 reduction'!$BD109))","v":0.99997904391806225},{"$f":"EXP(D$4*-1*HLOOKUP(Calculations!$E$2,'PM2.5 reduction'!$C$3:$BC$249,'PM2.5 reduction'!$BD109))","v":0.99996051956204302},{"$f":"EXP(E$4*-1*HLOOKUP(Calculations!$E$2,'NO2 reduction'!$C$3:$BC$249,'NO2 reduction'!$BD109))","v":0.99999038293761233},{"$f":"EXP(F$4*-1*HLOOKUP(Calculations!$E$2,'NO2 reduction'!$C$3:$BC$249,'NO2 reduction'!$BD109))","v":1}]
[null,"Female 60-64",{"$f":"EXP(C$4*-1*HLOOKUP(Calculations!$E$2,'PM2.5 reduction'!$C$3:$BC$249,'PM2.5 reduction'!$BD110))","v":0.99997950105674471},{"$f":"EXP(D$4*-1*HLOOKUP(Calculations!$E$2,'PM2.5 reduction'!$C$3:$BC$249,'PM2.5 reduction'!$BD110))","v":0.99996138078562102},{"$f":"EXP(E$4*-1*HLOOKUP(Calculations!$E$2,'NO2 reduction'!$C$3:$BC$249,'NO2 reduction'!$BD110))","v":0.99999059955689673},{"$f":"EXP(F$4*-1*HLOOKUP(Calculations!$E$2,'NO2 reduction'!$C$3:$BC$249,'NO2 reduction'!$BD110))","v":1}]
[null,"Female 65-69",{"$f":"EXP(C$4*-1*HLOOKUP(Calculations!$E$2,'PM2.5 reduction'!$C$3:$BC$249,'PM2.5 reduction'!$BD111))","v":0.99997984046895572},{"$f":"EXP(D$4*-1*HLOOKUP(Calculations!$E$2,'PM2.5 reduction'!$C$3:$BC$249,'PM2.5 reduction'!$BD111))","v":0.9999620202193702},{"$f":"EXP(E$4*-1*HLOOKUP(Calculations!$E$2,'NO2 reduction'!$C$3:$BC$249,'NO2 reduction'!$BD111))","v":0.99999076336231507},{"$f":"EXP(F$4*-1*HLOOKUP(Calculations!$E$2,'NO2 reduction'!$C$3:$BC$249,'NO2 reduction'!$BD111))","v":1}]
[null,"Female 70-74",{"$f":"EXP(C$4*-1*HLOOKUP(Calculations!$E$2,'PM2.5 reduction'!$C$3:$BC$249,'PM2.5 reduction'!$BD112))","v":0.99997994789147582},{"$f":"EXP(D$4*-1*HLOOKUP(Calculations!$E$2,'PM2.5 reduction'!$C$3:$BC$249,'PM2.5 reduction'!$BD112))","v":0.99996222259747025},{"$f":"EXP(E$4*-1*HLOOKUP(Calculations!$E$2,'NO2 reduction'!$C$3:$BC$249,'NO2 reduction'!$BD112))","v":0.99999082470659306},{"$f":"EXP(F$4*-1*HLOOKUP(Calculations!$E$2,'NO2 reduction'!$C$3:$BC$249,'NO2 reduction'!$BD112))","v":1}]
[null,"Female 75-79",{"$f":"EXP(C$4*-1*HLOOKUP(Calculations!$E$2,'PM2.5 reduction'!$C$3:$BC$249,'PM2.5 reduction'!$BD113))","v":0.99997926630668998},{"$f":"EXP(D$4*-1*HLOOKUP(Calculations!$E$2,'PM2.5 reduction'!$C$3:$BC$249,'PM2.5 reduction'!$BD113))","v":0.99996093852967172},{"$f":"EXP(E$4*-1*HLOOKUP(Calculations!$E$2,'NO2 reduction'!$C$3:$BC$249,'NO2 reduction'!$BD113))","v":0.99999052715767189},{"$f":"EXP(F$4*-1*HLOOKUP(Calculations!$E$2,'NO2 reduction'!$C$3:$BC$249,'NO2 reduction'!$BD113))","v":1}]
[null,"Female 80-84",{"$f":"EXP(C$4*-1*HLOOKUP(Calculations!$E$2,'PM2.5 reduction'!$C$3:$BC$249,'PM2.5 reduction'!$BD114))","v":0.99997911401757122},{"$f":"EXP(D$4*-1*HLOOKUP(Calculations!$E$2,'PM2.5 reduction'!$C$3:$BC$249,'PM2.5 reduction'!$BD114))","v":0.99996065162555425},{"$f":"EXP(E$4*-1*HLOOKUP(Calculations!$E$2,'NO2 reduction'!$C$3:$BC$249,'NO2 reduction'!$BD114))","v":0.99999044872621812},{"$f":"EXP(F$4*-1*HLOOKUP(Calculations!$E$2,'NO2 reduction'!$C$3:$BC$249,'NO2 reduction'!$BD114))","v":1}]
[null,"Female 85-89",{"$f":"EXP(C$4*-1*HLOOKUP(Calculations!$E$2,'PM2.5 reduction'!$C$3:$BC$249,'PM2.5 reduction'!$BD115))","v":0.99997855286433079},{"$f":"EXP(D$4*-1*HLOOKUP(Calculations!$E$2,'PM2.5 reduction'!$C$3:$BC$249,'PM2.5 reduction'!$BD115))","v":0.99995959444480709},{"$f":"EXP(E$4*-1*HLOOKUP(Calculations!$E$2,'NO2 reduction'!$C$3:$BC$249,'NO2 reduction'!$BD115))","v":0.99999026075006336},{"$f":"EXP(F$4*-1*HLOOKUP(Calculations!$E$2,'NO2 reduction'!$C$3:$BC$249,'NO2 reduction'!$BD115))","v":1}]
[null,"Female 90+",{"$f":"EXP(C$4*-1*HLOOKUP(Calculations!$E$2,'PM2.5 reduction'!$C$3:$BC$249,'PM2.5 reduction'!$BD116))","v":0.99997869378030424},{"$f":"EXP(D$4*-1*HLOOKUP(Calculations!$E$2,'PM2.5 reduction'!$C$3:$BC$249,'PM2.5 reduction'!$BD116))","v":0.99995985992242642},{"$f":"EXP(E$4*-1*HLOOKUP(Calculations!$E$2,'NO2 reduction'!$C$3:$BC$249,'NO2 reduction'!$BD116))","v":0.99999050262622113},{"$f":"EXP(F$4*-1*HLOOKUP(Calculations!$E$2,'NO2 reduction'!$C$3:$BC$249,'NO2 reduction'!$BD116))","v":1}]
[null,"Male 0-4",{"$f":"EXP(C$4*-1*HLOOKUP(Calculations!$E$2,'PM2.5 reduction'!$C$3:$BC$249,'PM2.5 reduction'!$BD117))","v":0.99997856968300713},{"$f":"EXP(D$4*-1*HLOOKUP(Calculations!$E$2,'PM2.5 reduction'!$C$3:$BC$249,'PM2.5 reduction'!$BD117))","v":0.9999596261302276},{"$f":"EXP(E$4*-1*HLOOKUP(Calculations!$E$2,'NO2 reduction'!$C$3:$BC$249,'NO2 reduction'!$BD117))","v":0.99999012911199914},{"$f":"EXP(F$4*-1*HLOOKUP(Calculations!$E$2,'NO2 reduction'!$C$3:$BC$249,'NO2 reduction'!$BD117))","v":1}]
[null,"Male 5-9",{"$f":"EXP(C$4*-1*HLOOKUP(Calculations!$E$2,'PM2.5 reduction'!$C$3:$BC$249,'PM2.5 reduction'!$BD118))","v":0.99997925198193194},{"$f":"EXP(D$4*-1*HLOOKUP(Calculations!$E$2,'PM2.5 reduction'!$C$3:$BC$249,'PM2.5 reduction'!$BD118))","v":0.99996091154263311},{"$f":"EXP(E$4*-1*HLOOKUP(Calculations!$E$2,'NO2 reduction'!$C$3:$BC$249,'NO2 reduction'!$BD118))","v":0.99999041389636201},{"$f":"EXP(F$4*-1*HLOOKUP(Calculations!$E$2,'NO2 reduction'!$C$3:$BC$249,'NO2 reduction'!$BD118))","v":1}]
[null,"Male 10-15",{"$f":"EXP(C$4*-1*HLOOKUP(Calculations!$E$2,'PM2.5 reduction'!$C$3:$BC$249,'PM2.5 reduction'!$BD119))","v":0.9999795904526686},{"$f":"EXP(D$4*-1*HLOOKUP(Calculations!$E$2,'PM2.5 reduction'!$C$3:$BC$249,'PM2.5 reduction'!$BD119))","v":0.99996154920255653},{"$f":"EXP(E$4*-1*HLOOKUP(Calculations!$E$2,'NO2 reduction'!$C$3:$BC$249,'NO2 reduction'!$BD119))","v":0.99999054942558763},{"$f":"EXP(F$4*-1*HLOOKUP(Calculations!$E$2,'NO2 reduction'!$C$3:$BC$249,'NO2 reduction'!$BD119))","v":1}]
[null,"Male 16-19",{"$f":"EXP(C$4*-1*HLOOKUP(Calculations!$E$2,'PM2.5 reduction'!$C$3:$BC$249,'PM2.5 reduction'!$BD120))","v":0.99997811056031594},{"$f":"EXP(D$4*-1*HLOOKUP(Calculations!$E$2,'PM2.5 reduction'!$C$3:$BC$249,'PM2.5 reduction'!$BD120))","v":0.9999587611696017},{"$f":"EXP(E$4*-1*HLOOKUP(Calculations!$E$2,'NO2 reduction'!$C$3:$BC$249,'NO2 reduction'!$BD120))","v":0.99999008561381941},{"$f":"EXP(F$4*-1*HLOOKUP(Calculations!$E$2,'NO2 reduction'!$C$3:$BC$249,'NO2 reduction'!$BD120))","v":1}]
[null,"Male 20-24",{"$f":"EXP(C$4*-1*HLOOKUP(Calculations!$E$2,'PM2.5 reduction'!$C$3:$BC$249,'PM2.5 reduction'!$BD121))","v":0.999973856026668},{"$f":"EXP(D$4*-1*HLOOKUP(Calculations!$E$2,'PM2.5 reduction'!$C$3:$BC$249,'PM2.5 reduction'!$BD121))","v":0.99995074589069877},{"$f":"EXP(E$4*-1*HLOOKUP(Calculations!$E$2,'NO2 reduction'!$C$3:$BC$249,'NO2 reduction'!$BD121))","v":0.99998869759478981},{"$f":"EXP(F$4*-1*HLOOKUP(Calculations!$E$2,'NO2 reduction'!$C$3:$BC$249,'NO2 reduction'!$BD121))","v":1}]
[null,"Male 25-29",{"$f":"EXP(C$4*-1*HLOOKUP(Calculations!$E$2,'PM2.5 reduction'!$C$3:$BC$249,'PM2.5 reduction'!$BD122))","v":0.99997320545515178},{"$f":"EXP(D$4*-1*HLOOKUP(Calculations!$E$2,'PM2.5 reduction'!$C$3:$BC$249,'PM2.5 reduction'!$BD122))","v":0.99994952025675732},{"$f":"EXP(E$4*-1*HLOOKUP(Calculations!$E$2,'NO2 reduction'!$C$3:$BC$249,'NO2 reduction'!$BD122))","v":0.9999881695070324},{"$f":"EXP(F$4*-1*HLOOKUP(Calculations!$E$2,'NO2 reduction'!$C$3:$BC$249,'NO2 reduction'!$BD122))","v":1}]
[null,"Male 30-34",{"$f":"EXP(C$4*-1*HLOOKUP(Calculations!$E$2,'PM2.5 reduction'!$C$3:$BC$249,'PM2.5 reduction'!$BD123))","v":0.99997421348688498},{"$f":"EXP(D$4*-1*HLOOKUP(Calculations!$E$2,'PM2.5 reduction'!$C$3:$BC$249,'PM2.5 reduction'!$BD123))","v":0.9999514193225334},{"$f":"EXP(E$4*-1*HLOOKUP(Calculations!$E$2,'NO2 reduction'!$C$3:$BC$249,'NO2 reduction'!$BD123))","v":0.99998850867679134},{"$f":"EXP(F$4*-1*HLOOKUP(Calculations!$E$2,'NO2 reduction'!$C$3:$BC$249,'NO2 reduction'!$BD123))","v":1}]
[null,"Male 35-39",{"$f":"EXP(C$4*-1*HLOOKUP(Calculations!$E$2,'PM2.5 reduction'!$C$3:$BC$249,'PM2.5 reduction'!$BD124))","v":0.99997568999590958},{"$f":"EXP(D$4*-1*HLOOKUP(Calculations!$E$2,'PM2.5 reduction'!$C$3:$BC$249,'PM2.5 reduction'!$BD124))","v":0.99995420097190379},{"$f":"EXP(E$4*-1*HLOOKUP(Calculations!$E$2,'NO2 reduction'!$C$3:$BC$249,'NO2 reduction'!$BD124))","v":0.99998903484878243},{"$f":"EXP(F$4*-1*HLOOKUP(Calculations!$E$2,'NO2 reduction'!$C$3:$BC$249,'NO2 reduction'!$BD124))","v":1}]
[null,"Male 40-44",{"$f":"EXP(C$4*-1*HLOOKUP(Calculations!$E$2,'PM2.5 reduction'!$C$3:$BC$249,'PM2.5 reduction'!$BD125))","v":0.99997697840048594},{"$f":"EXP(D$4*-1*HLOOKUP(Calculations!$E$2,'PM2.5 reduction'!$C$3:$BC$249,'PM2.5 reduction'!$BD125))","v":0.99995662824738873},{"$f":"EXP(E$4*-1*HLOOKUP(Calculations!$E$2,'NO2 reduction'!$C$3:$BC$249,'NO2 reduction'!$BD125))","v":0.99998959165402568},{"$f":"EXP(F$4*-1*HLOOKUP(Calculations!$E$2,'NO2 reduction'!$C$3:$BC$249,'NO2 reduction'!$BD125))","v":1}]
[null,"Male 45-49",{"$f":"EXP(C$4*-1*HLOOKUP(Calculations!$E$2,'PM2.5 reduction'!$C$3:$BC$249,'PM2.5 reduction'!$BD126))","v":0.99997792510984851},{"$f":"EXP(D$4*-1*HLOOKUP(Calculations!$E$2,'PM2.5 reduction'!$C$3:$BC$249,'PM2.5 reduction'!$BD126))","v":0.99995841179173439},{"$f":"EXP(E$4*-1*HLOOKUP(Calculations!$E$2,'NO2 reduction'!$C$3:$BC$249,'NO2 reduction'!$BD126))","v":0.99998995653892231},{"$f":"EXP(F$4*-1*HLOOKUP(Calculations!$E$2,'NO2 reduction'!$C$3:$BC$249,'NO2 reduction'!$BD126))","v":1}]
[null,"Male 50-54",{"$f":"EXP(C$4*-1*HLOOKUP(Calculations!$E$2,'PM2.5 reduction'!$C$3:$BC$249,'PM2.5 reduction'!$BD127))","v":0.99997847508096449},{"$f":"EXP(D$4*-1*HLOOKUP(Calculations!$E$2,'PM2.5 reduction'!$C$3:$BC$249,'PM2.5 reduction'!$BD127))","v":0.99995944790541602},{"$f":"EXP(E$4*-1*HLOOKUP(Calculations!$E$2,'NO2 reduction'!$C$3:$BC$249,'NO2 reduction'!$BD127))","v":0.99999018255669703},{"$f":"EXP(F$4*-1*HLOOKUP(Calculations!$E$2,'NO2 reduction'!$C$3:$BC$249,'NO2 reduction'!$BD127))","v":1}]
[null,"Male 55-59",{"$f":"EXP(C$4*-1*HLOOKUP(Calculations!$E$2,'PM2.5 reduction'!$C$3:$BC$249,'PM2.5 reduction'!$BD128))","v":0.99997876212092518},{"$f":"EXP(D$4*-1*HLOOKUP(Calculations!$E$2,'PM2.5 reduction'!$C$3:$BC$249,'PM2.5 reduction'!$BD128))","v":0.99995998867225244},{"$f":"EXP(E$4*-1*HLOOKUP(Calculations!$E$2,'NO2 reduction'!$C$3:$BC$249,'NO2 reduction'!$BD128))","v":0.99999029506291748},{"$f":"EXP(F$4*-1*HLOOKUP(Calculations!$E$2,'NO2 reduction'!$C$3:$BC$249,'NO2 reduction'!$BD128))","v":1}]
[null,"Male 60-64",{"$f":"EXP(C$4*-1*HLOOKUP(Calculations!$E$2,'PM2.5 reduction'!$C$3:$BC$249,'PM2.5 reduction'!$BD129))","v":0.99997907057411339},{"$f":"EXP(D$4*-1*HLOOKUP(Calculations!$E$2,'PM2.5 reduction'!$C$3:$BC$249,'PM2.5 reduction'!$BD129))","v":0.99996056978053516},{"$f":"EXP(E$4*-1*HLOOKUP(Calculations!$E$2,'NO2 reduction'!$C$3:$BC$249,'NO2 reduction'!$BD129))","v":0.99999042957219597},{"$f":"EXP(F$4*-1*HLOOKUP(Calculations!$E$2,'NO2 reduction'!$C$3:$BC$249,'NO2 reduction'!$BD129))","v":1}]
[null,"Male 65-69",{"$f":"EXP(C$4*-1*HLOOKUP(Calculations!$E$2,'PM2.5 reduction'!$C$3:$BC$249,'PM2.5 reduction'!$BD130))","v":0.99997966917149617},{"$f":"EXP(D$4*-1*HLOOKUP(Calculations!$E$2,'PM2.5 reduction'!$C$3:$BC$249,'PM2.5 reduction'!$BD130))","v":0.99996169750444897},{"$f":"EXP(E$4*-1*HLOOKUP(Calculations!$E$2,'NO2 reduction'!$C$3:$BC$249,'NO2 reduction'!$BD130))","v":0.99999072772047359},{"$f":"EXP(F$4*-1*HLOOKUP(Calculations!$E$2,'NO2 reduction'!$C$3:$BC$249,'NO2 reduction'!$BD130))","v":1}]
[null,"Male 70-74",{"$f":"EXP(C$4*-1*HLOOKUP(Calculations!$E$2,'PM2.5 reduction'!$C$3:$BC$249,'PM2.5 reduction'!$BD131))","v":0.99997973086109937},{"$f":"EXP(D$4*-1*HLOOKUP(Calculations!$E$2,'PM2.5 reduction'!$C$3:$BC$249,'PM2.5 reduction'!$BD131))","v":0.99996181372423731},{"$f":"EXP(E$4*-1*HLOOKUP(Calculations!$E$2,'NO2 reduction'!$C$3:$BC$249,'NO2 reduction'!$BD131))","v":0.99999074508031571},{"$f":"EXP(F$4*-1*HLOOKUP(Calculations!$E$2,'NO2 reduction'!$C$3:$BC$249,'NO2 reduction'!$BD131))","v":1}]
[null,"Male 75-79",{"$f":"EXP(C$4*-1*HLOOKUP(Calculations!$E$2,'PM2.5 reduction'!$C$3:$BC$249,'PM2.5 reduction'!$BD132))","v":0.99997961065555296},{"$f":"EXP(D$4*-1*HLOOKUP(Calculations!$E$2,'PM2.5 reduction'!$C$3:$BC$249,'PM2.5 reduction'!$BD132))","v":0.99996158726366591},{"$f":"EXP(E$4*-1*HLOOKUP(Calculations!$E$2,'NO2 reduction'!$C$3:$BC$249,'NO2 reduction'!$BD132))","v":0.99999069778478866},{"$f":"EXP(F$4*-1*HLOOKUP(Calculations!$E$2,'NO2 reduction'!$C$3:$BC$249,'NO2 reduction'!$BD132))","v":1}]
[null,"Male 80-84",{"$f":"EXP(C$4*-1*HLOOKUP(Calculations!$E$2,'PM2.5 reduction'!$C$3:$BC$249,'PM2.5 reduction'!$BD133))","v":0.9999794923129498},{"$f":"EXP(D$4*-1*HLOOKUP(Calculations!$E$2,'PM2.5 reduction'!$C$3:$BC$249,'PM2.5 reduction'!$BD133))","v":0.99996136431279969},{"$f":"EXP(E$4*-1*HLOOKUP(Calculations!$E$2,'NO2 reduction'!$C$3:$BC$249,'NO2 reduction'!$BD133))","v":0.99999067527185448},{"$f":"EXP(F$4*-1*HLOOKUP(Calculations!$E$2,'NO2 reduction'!$C$3:$BC$249,'NO2 reduction'!$BD133))","v":1}]
[null,"Male 85-89",{"$f":"EXP(C$4*-1*HLOOKUP(Calculations!$E$2,'PM2.5 reduction'!$C$3:$BC$249,'PM2.5 reduction'!$BD134))","v":0.99997955698731877},{"$f":"EXP(D$4*-1*HLOOKUP(Calculations!$E$2,'PM2.5 reduction'!$C$3:$BC$249,'PM2.5 reduction'!$BD134))","v":0.99996148615570202},{"$f":"EXP(E$4*-1*HLOOKUP(Calculations!$E$2,'NO2 reduction'!$C$3:$BC$249,'NO2 reduction'!$BD134))","v":0.9999907410419504},{"$f":"EXP(F$4*-1*HLOOKUP(Calculations!$E$2,'NO2 reduction'!$C$3:$BC$249,'NO2 reduction'!$BD134))","v":1}]
[null,"Male 90+",{"$f":"EXP(C$4*-1*HLOOKUP(Calculations!$E$2,'PM2.5 reduction'!$C$3:$BC$249,'PM2.5 reduction'!$BD135))","v":0.99997901612693119},{"$f":"EXP(D$4*-1*HLOOKUP(Calculations!$E$2,'PM2.5 reduction'!$C$3:$BC$249,'PM2.5 reduction'!$BD135))","v":0.99996046720512566},{"$f":"EXP(E$4*-1*HLOOKUP(Calculations!$E$2,'NO2 reduction'!$C$3:$BC$249,'NO2 reduction'!$BD135))","v":0.99999054830771672},{"$f":"EXP(F$4*-1*HLOOKUP(Calculations!$E$2,'NO2 reduction'!$C$3:$BC$249,'NO2 reduction'!$BD135))","v":1}]
["SIMD Q3","Female 0-4",{"$f":"EXP(C$4*-1*HLOOKUP(Calculations!$E$2,'PM2.5 reduction'!$C$3:$BC$249,'PM2.5 reduction'!$BD136))","v":0.99997890850239823},{"$f":"EXP(D$4*-1*HLOOKUP(Calculations!$E$2,'PM2.5 reduction'!$C$3:$BC$249,'PM2.5 reduction'!$BD136))","v":0.99996026444661168},{"$f":"EXP(E$4*-1*HLOOKUP(Calculations!$E$2,'NO2 reduction'!$C$3:$BC$249,'NO2 reduction'!$BD136))","v":0.99999077537732084},{"$f":"EXP(F$4*-1*HLOOKUP(Calculations!$E$2,'NO2 reduction'!$C$3:$BC$249,'NO2 reduction'!$BD136))","v":1}]
[null,"Female 5-9",{"$f":"EXP(C$4*-1*HLOOKUP(Calculations!$E$2,'PM2.5 reduction'!$C$3:$BC$249,'PM2.5 reduction'!$BD137))","v":0.99998039967757879},{"$f":"EXP(D$4*-1*HLOOKUP(Calculations!$E$2,'PM2.5 reduction'!$C$3:$BC$249,'PM2.5 reduction'!$BD137))","v":0.99996307373776772},{"$f":"EXP(E$4*-1*HLOOKUP(Calculations!$E$2,'NO2 reduction'!$C$3:$BC$249,'NO2 reduction'!$BD137))","v":0.99999133776941806},{"$f":"EXP(F$4*-1*HLOOKUP(Calculations!$E$2,'NO2 reduction'!$C$3:$BC$249,'NO2 reduction'!$BD137))","v":1}]
[null,"Female 10-15",{"$f":"EXP(C$4*-1*HLOOKUP(Calculations!$E$2,'PM2.5 reduction'!$C$3:$BC$249,'PM2.5 reduction'!$BD138))","v":0.99998115091224449},{"$f":"EXP(D$4*-1*HLOOKUP(Calculations!$E$2,'PM2.5 reduction'!$C$3:$BC$249,'PM2.5 reduction'!$BD138))","v":0.99996448902352464},{"$f":"EXP(E$4*-1*HLOOKUP(Calculations!$E$2,'NO2 reduction'!$C$3:$BC$249,'NO2 reduction'!$BD138))","v":0.99999160513801844},{"$f":"EXP(F$4*-1*HLOOKUP(Calculations!$E$2,'NO2 reduction'!$C$3:$BC$249,'NO2 reduction'!$BD138))","v":1}]
[null,"Female 16-19",{"$f":"EXP(C$4*-1*HLOOKUP(Calculations!$E$2,'PM2.5 reduction'!$C$3:$BC$249,'PM2.5 reduction'!$BD139))","v":0.99997269251908305},{"$f":"EXP(D$4*-1*HLOOKUP(Calculations!$E$2,'PM2.5 reduction'!$C$3:$BC$249,'PM2.5 reduction'!$BD139))","v":0.99994855391944226},{"$f":"EXP(E$4*-1*HLOOKUP(Calculations!$E$2,'NO2 reduction'!$C$3:$BC$249,'NO2 reduction'!$BD139))","v":0.99998932756479397},{"$f":"EXP(F$4*-1*HLOOKUP(Calculations!$E$2,'NO2 reduction'!$C$3:$BC$249,'NO2 reduction'!$BD139))","v":1}]
[null,"Female 20-24",{"$f":"EXP(C$4*-1*HLOOKUP(Calculations!$E$2,'PM2.5 reduction'!$C$3:$BC$249,'PM2.5 reduction'!$BD140))","v":0.99996452451943252},{"$f":"EXP(D$4*-1*HLOOKUP(Calculations!$E$2,'PM2.5 reduction'!$C$3:$BC$249,'PM2.5 reduction'!$BD140))","v":0.99993316601235649},{"$f":"EXP(E$4*-1*HLOOKUP(Calculations!$E$2,'NO2 reduction'!$C$3:$BC$249,'NO2 reduction'!$BD140))","v":0.99998652259379139},{"$f":"EXP(F$4*-1*HLOOKUP(Calculations!$E$2,'NO2 reduction'!$C$3:$BC$249,'NO2 reduction'!$BD140))","v":1}]
[null,"Female 25-29",{"$f":"EXP(C$4*-1*HLOOKUP(Calculations!$E$2,'PM2.5 reduction'!$C$3:$BC$249,'PM2.5 reduction'!$BD141))","v":0.99996906917124462},{"$f":"EXP(D$4*-1*HLOOKUP(Calculations!$E$2,'PM2.5 reduction'!$C$3:$BC$249,'PM2.5 reduction'!$BD141))","v":0.99994172778645218},{"$f":"EXP(E$4*-1*HLOOKUP(Calculations!$E$2,'NO2 reduction'!$C$3:$BC$249,'NO2 reduction'!$BD141))","v":0.99998722095912029},{"$f":"EXP(F$4*-1*HLOOKUP(Calculations!$E$2,'NO2 reduction'!$C$3:$BC$249,'NO2 reduction'!$BD141))","v":1}]
[null,"Female 30-34",{"$f":"EXP(C$4*-1*HLOOKUP(Calculations!$E$2,'PM2.5 reduction'!$C$3:$BC$249,'PM2.5 reduction'!$BD142))","v":0.99997347167066863},{"$f":"EXP(D$4*-1*HLOOKUP(Calculations!$E$2,'PM2.5 reduction'!$C$3:$BC$249,'PM2.5 reduction'!$BD142))","v":0.9999500217891939},{"$f":"EXP(E$4*-1*HLOOKUP(Calculations!$E$2,'NO2 reduction'!$C$3:$BC$249,'NO2 reduction'!$BD142))","v":0.99998866803983999},{"$f":"EXP(F$4*-1*HLOOKUP(Calculations!$E$2,'NO2 reduction'!$C$3:$BC$249,'NO2 reduction'!$BD142))","v":1}]
[null,"Female 35-39",{"$f":"EXP(C$4*-1*HLOOKUP(Calculations!$E$2,'PM2.5 reduction'!$C$3:$BC$249,'PM2.5 reduction'!$BD143))","v":0.99997601692217963},{"$f":"EXP(D$4*-1*HLOOKUP(Calculations!$E$2,'PM2.5 reduction'!$C$3:$BC$249,'PM2.5 reduction'!$BD143))","v":0.99995481688075571},{"$f":"EXP(E$4*-1*HLOOKUP(Calculations!$E$2,'NO2 reduction'!$C$3:$BC$249,'NO2 reduction'!$BD143))","v":0.99998966215890861},{"$f":"EXP(F$4*-1*HLOOKUP(Calculations!$E$2,'NO2 reduction'!$C$3:$BC$249,'NO2 reduction'!$BD143))","v":1}]
[null,"Female 40-44",{"$f":"EXP(C$4*-1*HLOOKUP(Calculations!$E$2,'PM2.5 reduction'!$C$3:$BC$249,'PM2.5 reduction'!$BD144))","v":0.99997868730727857},{"$f":"EXP(D$4*-1*HLOOKUP(Calculations!$E$2,'PM2.5 reduction'!$C$3:$BC$249,'PM2.5 reduction'!$BD144))","v":0.99995984772761626},{"$f":"EXP(E$4*-1*HLOOKUP(Calculations!$E$2,'NO2 reduction'!$C$3:$BC$249,'NO2 reduction'!$BD144))","v":0.99999072937221622},{"$f":"EXP(F$4*-1*HLOOKUP(Calculations!$E$2,'NO2 reduction'!$C$3:$BC$249,'NO2 reduction'!$BD144))","v":1}]
[null,"Female 45-49",{"$f":"EXP(C$4*-1*HLOOKUP(Calculations!$E$2,'PM2.5 reduction'!$C$3:$BC$249,'PM2.5 reduction'!$BD145))","v":0.99998002658627039},{"$f":"EXP(D$4*-1*HLOOKUP(Calculations!$E$2,'PM2.5 reduction'!$C$3:$BC$249,'PM2.5 reduction'!$BD145))","v":0.99996237085413286},{"$f":"EXP(E$4*-1*HLOOKUP(Calculations!$E$2,'NO2 reduction'!$C$3:$BC$249,'NO2 reduction'!$BD145))","v":0.99999123469873119},{"$f":"EXP(F$4*-1*HLOOKUP(Calculations!$E$2,'NO2 reduction'!$C$3:$BC$249,'NO2 reduction'!$BD145))","v":1}]
[null,"Female 50-54",{"$f":"EXP(C$4*-1*HLOOKUP(Calculations!$E$2,'PM2.5 reduction'!$C$3:$BC$249,'PM2.5 reduction'!$BD146))","v":0.99998015501594784},{"$f":"EXP(D$4*-1*HLOOKUP(Calculations!$E$2,'PM2.5 reduction'!$C$3:$BC$249,'PM2.5 reduction'!$BD146))","v":0.9999626128086001},{"$f":"EXP(E$4*-1*HLOOKUP(Calculations!$E$2,'NO2 reduction'!$C$3:$BC$249,'NO2 reduction'!$BD146))","v":0.99999122702417897},{"$f":"EXP(F$4*-1*HLOOKUP(Calculations!$E$2,'NO2 reduction'!$C$3:$BC$249,'NO2 reduction'!$BD146))","v":1}]
[null,"Female 55-59",{"$f":"EXP(C$4*-1*HLOOKUP(Calculations!$E$2,'PM2.5 reduction'!$C$3:$BC$249,'PM2.5 reduction'!$BD147))","v":0.9999802417152831},{"$f":"EXP(D$4*-1*HLOOKUP(Calculations!$E$2,'PM2.5 reduction'!$C$3:$BC$249,'PM2.5 reduction'!$BD147))","v":0.99996277614540718},{"$f":"EXP(E$4*-1*HLOOKUP(Calculations!$E$2,'NO2 reduction'!$C$3:$BC$249,'NO2 reduction'!$BD147))","v":0.99999126649495995},{"$f":"EXP(F$4*-1*HLOOKUP(Calculations!$E$2,'NO2 reduction'!$C$3:$BC$249,'NO2 reduction'!$BD147))","v":1}]
[null,"Female 60-64",{"$f":"EXP(C$4*-1*HLOOKUP(Calculations!$E$2,'PM2.5 reduction'!$C$3:$BC$249,'PM2.5 reduction'!$BD148))","v":0.99998088849694011},{"$f":"EXP(D$4*-1*HLOOKUP(Calculations!$E$2,'PM2.5 reduction'!$C$3:$BC$249,'PM2.5 reduction'!$BD148))","v":0.99996399464708019},{"$f":"EXP(E$4*-1*HLOOKUP(Calculations!$E$2,'NO2 reduction'!$C$3:$BC$249,'NO2 reduction'!$BD148))","v":0.99999159825376605},{"$f":"EXP(F$4*-1*HLOOKUP(Calculations!$E$2,'NO2 reduction'!$C$3:$BC$249,'NO2 reduction'!$BD148))","v":1}]
[null,"Female 65-69",{"$f":"EXP(C$4*-1*HLOOKUP(Calculations!$E$2,'PM2.5 reduction'!$C$3:$BC$249,'PM2.5 reduction'!$BD149))","v":0.99998159195800429},{"$f":"EXP(D$4*-1*HLOOKUP(Calculations!$E$2,'PM2.5 reduction'!$C$3:$BC$249,'PM2.5 reduction'!$BD149))","v":0.99996531993048277},{"$f":"EXP(E$4*-1*HLOOKUP(Calculations!$E$2,'NO2 reduction'!$C$3:$BC$249,'NO2 reduction'!$BD149))","v":0.99999190900753288},{"$f":"EXP(F$4*-1*HLOOKUP(Calculations!$E$2,'NO2 reduction'!$C$3:$BC$249,'NO2 reduction'!$BD149))","v":1}]
[null,"Female 70-74",{"$f":"EXP(C$4*-1*HLOOKUP(Calculations!$E$2,'PM2.5 reduction'!$C$3:$BC$249,'PM2.5 reduction'!$BD150))","v":0.99998188460690829},{"$f":"EXP(D$4*-1*HLOOKUP(Calculations!$E$2,'PM2.5 reduction'!$C$3:$BC$249,'PM2.5 reduction'!$BD150))","v":0.9999658712657673},{"$f":"EXP(E$4*-1*HLOOKUP(Calculations!$E$2,'NO2 reduction'!$C$3:$BC$249,'NO2 reduction'!$BD150))","v":0.99999201940459792},{"$f":"EXP(F$4*-1*HLOOKUP(Calculations!$E$2,'NO2 reduction'!$C$3:$BC$249,'NO2 reduction'!$BD150))","v":1}]
[null,"Female 75-79",{"$f":"EXP(C$4*-1*HLOOKUP(Calculations!$E$2,'PM2.5 reduction'!$C$3:$BC$249,'PM2.5 reduction'!$BD151))","v":0.99998163476876401},{"$f":"EXP(D$4*-1*HLOOKUP(Calculations!$E$2,'PM2.5 reduction'!$C$3:$BC$249,'PM2.5 reduction'!$BD151))","v":0.99996540058371419},{"$f":"EXP(E$4*-1*HLOOKUP(Calculations!$E$2,'NO2 reduction'!$C$3:$BC$249,'NO2 reduction'!$BD151))","v":0.99999191078716199},{"$f":"EXP(F$4*-1*HLOOKUP(Calculations!$E$2,'NO2 reduction'!$C$3:$BC$249,'NO2 reduction'!$BD151))","v":1}]
[null,"Female 80-84",{"$f":"EXP(C$4*-1*HLOOKUP(Calculations!$E$2,'PM2.5 reduction'!$C$3:$BC$249,'PM2.5 reduction'!$BD152))","v":0.99998094600058685},{"$f":"EXP(D$4*-1*HLOOKUP(Calculations!$E$2,'PM2.5 reduction'!$C$3:$BC$249,'PM2.5 reduction'!$BD152))","v":0.99996410298087535},{"$f":"EXP(E$4*-1*HLOOKUP(Calculations!$E$2,'NO2 reduction'!$C$3:$BC$249,'NO2 reduction'!$BD152))","v":0.99999156357111063},{"$f":"EXP(F$4*-1*HLOOKUP(Calculations!$E$2,'NO2 reduction'!$C$3:$BC$249,'NO2 reduction'!$BD152))","v":1}]
[null,"Female 85-89",{"$f":"EXP(C$4*-1*HLOOKUP(Calculations!$E$2,'PM2.5 reduction'!$C$3:$BC$249,'PM2.5 reduction'!$BD153))","v":0.99998084463353887},{"$f":"EXP(D$4*-1*HLOOKUP(Calculations!$E$2,'PM2.5 reduction'!$C$3:$BC$249,'PM2.5 reduction'!$BD153))","v":0.99996391201078172},{"$f":"EXP(E$4*-1*HLOOKUP(Calculations!$E$2,'NO2 reduction'!$C$3:$BC$249,'NO2 reduction'!$BD153))","v":0.9999915747701803},{"$f":"EXP(F$4*-1*HLOOKUP(Calculations!$E$2,'NO2 reduction'!$C$3:$BC$249,'NO2 reduction'!$BD153))","v":1}]
[null,"Female 90+",{"$f":"EXP(C$4*-1*HLOOKUP(Calculations!$E$2,'PM2.5 reduction'!$C$3:$BC$249,'PM2.5 reduction'!$BD154))","v":0.99998061386768722},{"$f":"EXP(D$4*-1*HLOOKUP(Calculations!$E$2,'PM2.5 reduction'!$C$3:$BC$249,'PM2.5 reduction'!$BD154))","v":0.99996347726033075},{"$f":"EXP(E$4*-1*HLOOKUP(Calculations!$E$2,'NO2 reduction'!$C$3:$BC$249,'NO2 reduction'!$BD154))","v":0.99999146319987031},{"$f":"EXP(F$4*-1*HLOOKUP(Calculations!$E$2,'NO2 reduction'!$C$3:$BC$249,'NO2 reduction'!$BD154))","v":1}]
[null,"Male 0-4",{"$f":"EXP(C$4*-1*HLOOKUP(Calculations!$E$2,'PM2.5 reduction'!$C$3:$BC$249,'PM2.5 reduction'!$BD155))","v":0.99997903990227055},{"$f":"EXP(D$4*-1*HLOOKUP(Calculations!$E$2,'PM2.5 reduction'!$C$3:$BC$249,'PM2.5 reduction'!$BD155))","v":0.9999605119965187},{"$f":"EXP(E$4*-1*HLOOKUP(Calculations!$E$2,'NO2 reduction'!$C$3:$BC$249,'NO2 reduction'!$BD155))","v":0.99999084058575793},{"$f":"EXP(F$4*-1*HLOOKUP(Calculations!$E$2,'NO2 reduction'!$C$3:$BC$249,'NO2 reduction'!$BD155))","v":1}]
[null,"Male 5-9",{"$f":"EXP(C$4*-1*HLOOKUP(Calculations!$E$2,'PM2.5 reduction'!$C$3:$BC$249,'PM2.5 reduction'!$BD156))","v":0.9999804340831443},{"$f":"EXP(D$4*-1*HLOOKUP(Calculations!$E$2,'PM2.5 reduction'!$C$3:$BC$249,'PM2.5 reduction'!$BD156))","v":0.9999631385559844},{"$f":"EXP(E$4*-1*HLOOKUP(Calculations!$E$2,'NO2 reduction'!$C$3:$BC$249,'NO2 reduction'!$BD156))","v":0.99999136321907611},{"$f":"EXP(F$4*-1*HLOOKUP(Calculations!$E$2,'NO2 reduction'!$C$3:$BC$249,'NO2 reduction'!$BD156))","v":1}]
[null,"Male 10-15",{"$f":"EXP(C$4*-1*HLOOKUP(Calculations!$E$2,'PM2.5 reduction'!$C$3:$BC$249,'PM2.5 reduction'!$BD157))","v":0.99998125953856287},{"$f":"EXP(D$4*-1*HLOOKUP(Calculations!$E$2,'PM2.5 reduction'!$C$3:$BC$249,'PM2.5 reduction'!$BD157))","v":0.99996469366975116},{"$f":"EXP(E$4*-1*HLOOKUP(Calculations!$E$2,'NO2 reduction'!$C$3:$BC$249,'NO2 reduction'!$BD157))","v":0.99999169757977557},{"$f":"EXP(F$4*-1*HLOOKUP(Calculations!$E$2,'NO2 reduction'!$C$3:$BC$249,'NO2 reduction'!$BD157))","v":1}]
[null,"Male 16-19",{"$f":"EXP(C$4*-1*HLOOKUP(Calculations!$E$2,'PM2.5 reduction'!$C$3:$BC$249,'PM2.5 reduction'!$BD158))","v":0.9999757142054706},{"$f":"EXP(D$4*-1*HLOOKUP(Calculations!$E$2,'PM2.5 reduction'!$C$3:$BC$249,'PM2.5 reduction'!$BD158))","v":0.9999542465812119},{"$f":"EXP(E$4*-1*HLOOKUP(Calculations!$E$2,'NO2 reduction'!$C$3:$BC$249,'NO2 reduction'!$BD158))","v":0.99999018787158656},{"$f":"EXP(F$4*-1*HLOOKUP(Calculations!$E$2,'NO2 reduction'!$C$3:$BC$249,'NO2 reduction'!$BD158))","v":1}]
[null,"Male 20-24",{"$f":"EXP(C$4*-1*HLOOKUP(Calculations!$E$2,'PM2.5 reduction'!$C$3:$BC$249,'PM2.5 reduction'!$BD159))","v":0.99996721641365338},{"$f":"EXP(D$4*-1*HLOOKUP(Calculations!$E$2,'PM2.5 reduction'!$C$3:$BC$249,'PM2.5 reduction'!$BD159))","v":0.99993823732965148},{"$f":"EXP(E$4*-1*HLOOKUP(Calculations!$E$2,'NO2 reduction'!$C$3:$BC$249,'NO2 reduction'!$BD159))","v":0.99998735885682577},{"$f":"EXP(F$4*-1*HLOOKUP(Calculations!$E$2,'NO2 reduction'!$C$3:$BC$249,'NO2 reduction'!$BD159))","v":1}]
[null,"Male 25-29",{"$f":"EXP(C$4*-1*HLOOKUP(Calculations!$E$2,'PM2.5 reduction'!$C$3:$BC$249,'PM2.5 reduction'!$BD160))","v":0.99996843826353154},{"$f":"EXP(D$4*-1*HLOOKUP(Calculations!$E$2,'PM2.5 reduction'!$C$3:$BC$249,'PM2.5 reduction'!$BD160))","v":0.99994053920284187},{"$f":"EXP(E$4*-1*HLOOKUP(Calculations!$E$2,'NO2 reduction'!$C$3:$BC$249,'NO2 reduction'!$BD160))","v":0.99998712787008581},{"$f":"EXP(F$4*-1*HLOOKUP(Calculations!$E$2,'NO2 reduction'!$C$3:$BC$249,'NO2 reduction'!$BD160))","v":1}]
[null,"Male 30-34",{"$f":"EXP(C$4*-1*HLOOKUP(Calculations!$E$2,'PM2.5 reduction'!$C$3:$BC$249,'PM2.5 reduction'!$BD161))","v":0.99997133794478821},{"$f":"EXP(D$4*-1*HLOOKUP(Calculations!$E$2,'PM2.5 reduction'!$C$3:$BC$249,'PM2.5 reduction'!$BD161))","v":0.99994600199399486},{"$f":"EXP(E$4*-1*HLOOKUP(Calculations!$E$2,'NO2 reduction'!$C$3:$BC$249,'NO2 reduction'!$BD161))","v":0.99998794711579386},{"$f":"EXP(F$4*-1*HLOOKUP(Calculations!$E$2,'NO2 reduction'!$C$3:$BC$249,'NO2 reduction'!$BD161))","v":1}]
[null,"Male 35-39",{"$f":"EXP(C$4*-1*HLOOKUP(Calculations!$E$2,'PM2.5 reduction'!$C$3:$BC$249,'PM2.5 reduction'!$BD162))","v":0.99997403290827847},{"$f":"EXP(D$4*-1*HLOOKUP(Calculations!$E$2,'PM2.5 reduction'!$C$3:$BC$249,'PM2.5 reduction'!$BD162))","v":0.99995107912413927},{"$f":"EXP(E$4*-1*HLOOKUP(Calculations!$E$2,'NO2 reduction'!$C$3:$BC$249,'NO2 reduction'!$BD162))","v":0.9999889121121418},{"$f":"EXP(F$4*-1*HLOOKUP(Calculations!$E$2,'NO2 reduction'!$C$3:$BC$249,'NO2 reduction'!$BD162))","v":1}]
[null,"Male 40-44",{"$f":"EXP(C$4*-1*HLOOKUP(Calculations!$E$2,'PM2.5 reduction'!$C$3:$BC$249,'PM2.5 reduction'!$BD163))","v":0.99997683421546435},{"$f":"EXP(D$4*-1*HLOOKUP(Calculations!$E$2,'PM2.5 reduction'!$C$3:$BC$249,'PM2.5 reduction'!$BD163))","v":0.99995635661148208},{"$f":"EXP(E$4*-1*HLOOKUP(Calculations!$E$2,'NO2 reduction'!$C$3:$BC$249,'NO2 reduction'!$BD163))","v":0.99999003572837819},{"$f":"EXP(F$4*-1*HLOOKUP(Calculations!$E$2,'NO2 reduction'!$C$3:$BC$249,'NO2 reduction'!$BD163))","v":1}]
[null,"Male 45-49",{"$f":"EXP(C$4*-1*HLOOKUP(Calculations!$E$2,'PM2.5 reduction'!$C$3:$BC$249,'PM2.5 reduction'!$BD164))","v":0.99997857932006062},{"$f":"EXP(D$4*-1*HLOOKUP(Calculations!$E$2,'PM2.5 reduction'!$C$3:$BC$249,'PM2.5 reduction'!$BD164))","v":0.99995964428588346},{"$f":"EXP(E$4*-1*HLOOKUP(Calculations!$E$2,'NO2 reduction'!$C$3:$BC$249,'NO2 reduction'!$BD164))","v":0.99999074313888936},{"$f":"EXP(F$4*-1*HLOOKUP(Calculations!$E$2,'NO2 reduction'!$C$3:$BC$249,'NO2 reduction'!$BD164))","v":1}]
[null,"Male 50-54",{"$f":"EXP(C$4*-1*HLOOKUP(Calculations!$E$2,'PM2.5 reduction'!$C$3:$BC$249,'PM2.5 reduction'!$BD165))","v":0.99997924504512548},{"$f":"EXP(D$4*-1*HLOOKUP(Calculations!$E$2,'PM2.5 reduction'!$C$3:$BC$249,'PM2.5 reduction'!$BD165))","v":0.9999608984740801},{"$f":"EXP(E$4*-1*HLOOKUP(Calculations!$E$2,'NO2 reduction'!$C$3:$BC$249,'NO2 reduction'!$BD165))","v":0.9999909279651763},{"$f":"EXP(F$4*-1*HLOOKUP(Calculations!$E$2,'NO2 reduction'!$C$3:$BC$249,'NO2 reduction'!$BD165))","v":1}]
[null,"Male 55-59",{"$f":"EXP(C$4*-1*HLOOKUP(Calculations!$E$2,'PM2.5 reduction'!$C$3:$BC$249,'PM2.5 reduction'!$BD166))","v":0.99997959462485952},{"$f":"EXP(D$4*-1*HLOOKUP(Calculations!$E$2,'PM2.5 reduction'!$C$3:$BC$249,'PM2.5 reduction'!$BD166))","v":0.99996155706273193},{"$f":"EXP(E$4*-1*HLOOKUP(Calculations!$E$2,'NO2 reduction'!$C$3:$BC$249,'NO2 reduction'!$BD166))","v":0.99999108055156616},{"$f":"EXP(F$4*-1*HLOOKUP(Calculations!$E$2,'NO2 reduction'!$C$3:$BC$249,'NO2 reduction'!$BD166))","v":1}]
[null,"Male 60-64",{"$f":"EXP(C$4*-1*HLOOKUP(Calculations!$E$2,'PM2.5 reduction'!$C$3:$BC$249,'PM2.5 reduction'!$BD167))","v":0.9999801905283151},{"$f":"EXP(D$4*-1*HLOOKUP(Calculations!$E$2,'PM2.5 reduction'!$C$3:$BC$249,'PM2.5 reduction'!$BD167))","v":0.99996267971195685},{"$f":"EXP(E$4*-1*HLOOKUP(Calculations!$E$2,'NO2 reduction'!$C$3:$BC$249,'NO2 reduction'!$BD167))","v":0.99999135302157705},{"$f":"EXP(F$4*-1*HLOOKUP(Calculations!$E$2,'NO2 reduction'!$C$3:$BC$249,'NO2 reduction'!$BD167))","v":1}]
[null,"Male 65-69",{"$f":"EXP(C$4*-1*HLOOKUP(Calculations!$E$2,'PM2.5 reduction'!$C$3:$BC$249,'PM2.5 reduction'!$BD168))","v":0.99998122291272939},{"$f":"EXP(D$4*-1*HLOOKUP(Calculations!$E$2,'PM2.5 reduction'!$C$3:$BC$249,'PM2.5 reduction'!$BD168))","v":0.99996462466861991},{"$f":"EXP(E$4*-1*HLOOKUP(Calculations!$E$2,'NO2 reduction'!$C$3:$BC$249,'NO2 reduction'!$BD168))","v":0.9999917815487408},{"$f":"EXP(F$4*-1*HLOOKUP(Calculations!$E$2,'NO2 reduction'!$C$3:$BC$249,'NO2 reduction'!$BD168))","v":1}]
[null,"Male 70-74",{"$f":"EXP(C$4*-1*HLOOKUP(Calculations!$E$2,'PM2.5 reduction'!$C$3:$BC$249,'PM2.5 reduction'!$BD169))","v":0.99998180938699632},{"$f":"EXP(D$4*-1*HLOOKUP(Calculations!$E$2,'PM2.5 reduction'!$C$3:$BC$249,'PM2.5 reduction'!$BD169))","v":0.99996572955535956},{"$f":"EXP(E$4*-1*HLOOKUP(Calculations!$E$2,'NO2 reduction'!$C$3:$BC$249,'NO2 reduction'!$BD169))","v":0.99999202884803207},{"$f":"EXP(F$4*-1*HLOOKUP(Calculations!$E$2,'NO2 reduction'!$C$3:$BC$249,'NO2 reduction'!$BD169))","v":1}]
[null,"Male 75-79",{"$f":"EXP(C$4*-1*HLOOKUP(Calculations!$E$2,'PM2.5 reduction'!$C$3:$BC$249,'PM2.5 reduction'!$BD170))","v":0.9999817585963553},{"$f":"EXP(D$4*-1*HLOOKUP(Calculations!$E$2,'PM2.5 reduction'!$C$3:$BC$249,'PM2.5 reduction'!$BD170))","v":0.99996563386843473},{"$f":"EXP(E$4*-1*HLOOKUP(Calculations!$E$2,'NO2 reduction'!$C$3:$BC$249,'NO2 reduction'!$BD170))","v":0.99999198820392643},{"$f":"EXP(F$4*-1*HLOOKUP(Calculations!$E$2,'NO2 reduction'!$C$3:$BC$249,'NO2 reduction'!$BD170))","v":1}]
[null,"Male 80-84",{"$f":"EXP(C$4*-1*HLOOKUP(Calculations!$E$2,'PM2.5 reduction'!$C$3:$BC$249,'PM2.5 reduction'!$BD171))","v":0.99998159254088503},{"$f":"EXP(D$4*-1*HLOOKUP(Calculations!$E$2,'PM2.5 reduction'!$C$3:$BC$249,'PM2.5 reduction'!$BD171))","v":0.99996532102859959},{"$f":"EXP(E$4*-1*HLOOKUP(Calculations!$E$2,'NO2 reduction'!$C$3:$BC$249,'NO2 reduction'!$BD171))","v":0.99999194673494263},{"$f":"EXP(F$4*-1*HLOOKUP(Calculations!$E$2,'NO2 reduction'!$C$3:$BC$249,'NO2 reduction'!$BD171))","v":1}]
[null,"Male 85-89",{"$f":"EXP(C$4*-1*HLOOKUP(Calculations!$E$2,'PM2.5 reduction'!$C$3:$BC$249,'PM2.5 reduction'!$BD172))","v":0.99998118798741664},{"$f":"EXP(D$4*-1*HLOOKUP(Calculations!$E$2,'PM2.5 reduction'!$C$3:$BC$249,'PM2.5 reduction'!$BD172))","v":0.99996455887118185},{"$f":"EXP(E$4*-1*HLOOKUP(Calculations!$E$2,'NO2 reduction'!$C$3:$BC$249,'NO2 reduction'!$BD172))","v":0.99999179388950843},{"$f":"EXP(F$4*-1*HLOOKUP(Calculations!$E$2,'NO2 reduction'!$C$3:$BC$249,'NO2 reduction'!$BD172))","v":1}]
[null,"Male 90+",{"$f":"EXP(C$4*-1*HLOOKUP(Calculations!$E$2,'PM2.5 reduction'!$C$3:$BC$249,'PM2.5 reduction'!$BD173))","v":0.99998146881978478},{"$f":"EXP(D$4*-1*HLOOKUP(Calculations!$E$2,'PM2.5 reduction'!$C$3:$BC$249,'PM2.5 reduction'!$BD173))","v":0.99996508794453687},{"$f":"EXP(E$4*-1*HLOOKUP(Calculations!$E$2,'NO2 reduction'!$C$3:$BC$249,'NO2 reduction'!$BD173))","v":0.99999196831333959},{"$f":"EXP(F$4*-1*HLOOKUP(Calculations!$E$2,'NO2 reduction'!$C$3:$BC$249,'NO2 reduction'!$BD173))","v":1}]
["SIMD Q4","Female 0-4",{"$f":"EXP(C$4*-1*HLOOKUP(Calculations!$E$2,'PM2.5 reduction'!$C$3:$BC$249,'PM2.5 reduction'!$BD174))","v":0.99997821737811643},{"$f":"EXP(D$4*-1*HLOOKUP(Calculations!$E$2,'PM2.5 reduction'!$C$3:$BC$249,'PM2.5 reduction'!$BD174))","v":0.99995896240813553},{"$f":"EXP(E$4*-1*HLOOKUP(Calculations!$E$2,'NO2 reduction'!$C$3:$BC$249,'NO2 reduction'!$BD174))","v":0.99999026369140143},{"$f":"EXP(F$4*-1*HLOOKUP(Calculations!$E$2,'NO2 reduction'!$C$3:$BC$249,'NO2 reduction'!$BD174))","v":1}]
[null,"Female 5-9",{"$f":"EXP(C$4*-1*HLOOKUP(Calculations!$E$2,'PM2.5 reduction'!$C$3:$BC$249,'PM2.5 reduction'!$BD175))","v":0.99997986088719182},{"$f":"EXP(D$4*-1*HLOOKUP(Calculations!$E$2,'PM2.5 reduction'!$C$3:$BC$249,'PM2.5 reduction'!$BD175))","v":0.99996205868619892},{"$f":"EXP(E$4*-1*HLOOKUP(Calculations!$E$2,'NO2 reduction'!$C$3:$BC$249,'NO2 reduction'!$BD175))","v":0.99999092559708236},{"$f":"EXP(F$4*-1*HLOOKUP(Calculations!$E$2,'NO2 reduction'!$C$3:$BC$249,'NO2 reduction'!$BD175))","v":1}]
[null,"Female 10-15",{"$f":"EXP(C$4*-1*HLOOKUP(Calculations!$E$2,'PM2.5 reduction'!$C$3:$BC$249,'PM2.5 reduction'!$BD176))","v":0.99998060693387902},{"$f":"EXP(D$4*-1*HLOOKUP(Calculations!$E$2,'PM2.5 reduction'!$C$3:$BC$249,'PM2.5 reduction'!$BD176))","v":0.99996346419741045},{"$f":"EXP(E$4*-1*HLOOKUP(Calculations!$E$2,'NO2 reduction'!$C$3:$BC$249,'NO2 reduction'!$BD176))","v":0.99999127915998176},{"$f":"EXP(F$4*-1*HLOOKUP(Calculations!$E$2,'NO2 reduction'!$C$3:$BC$249,'NO2 reduction'!$BD176))","v":1}]
[null,"Female 16-19",{"$f":"EXP(C$4*-1*HLOOKUP(Calculations!$E$2,'PM2.5 reduction'!$C$3:$BC$249,'PM2.5 reduction'!$BD177))","v":0.99997637921521942},{"$f":"EXP(D$4*-1*HLOOKUP(Calculations!$E$2,'PM2.5 reduction'!$C$3:$BC$249,'PM2.5 reduction'!$BD177))","v":0.99995549941862005},{"$f":"EXP(E$4*-1*HLOOKUP(Calculations!$E$2,'NO2 reduction'!$C$3:$BC$249,'NO2 reduction'!$BD177))","v":0.9999896279900079},{"$f":"EXP(F$4*-1*HLOOKUP(Calculations!$E$2,'NO2 reduction'!$C$3:$BC$249,'NO2 reduction'!$BD177))","v":1}]
[null,"Female 20-24",{"$f":"EXP(C$4*-1*HLOOKUP(Calculations!$E$2,'PM2.5 reduction'!$C$3:$BC$249,'PM2.5 reduction'!$BD178))","v":0.99996862425300637},{"$f":"EXP(D$4*-1*HLOOKUP(Calculations!$E$2,'PM2.5 reduction'!$C$3:$BC$249,'PM2.5 reduction'!$BD178))","v":0.99994088959322913},{"$f":"EXP(E$4*-1*HLOOKUP(Calculations!$E$2,'NO2 reduction'!$C$3:$BC$249,'NO2 reduction'!$BD178))","v":0.99998682381474813},{"$f":"EXP(F$4*-1*HLOOKUP(Calculations!$E$2,'NO2 reduction'!$C$3:$BC$249,'NO2 reduction'!$BD178))","v":1}]
[null,"Female 25-29",{"$f":"EXP(C$4*-1*HLOOKUP(Calculations!$E$2,'PM2.5 reduction'!$C$3:$BC$249,'PM2.5 reduction'!$BD179))","v":0.99997002908011867},{"$f":"EXP(D$4*-1*HLOOKUP(Calculations!$E$2,'PM2.5 reduction'!$C$3:$BC$249,'PM2.5 reduction'!$BD179))","v":0.99994353618526199},{"$f":"EXP(E$4*-1*HLOOKUP(Calculations!$E$2,'NO2 reduction'!$C$3:$BC$249,'NO2 reduction'!$BD179))","v":0.99998712591328076},{"$f":"EXP(F$4*-1*HLOOKUP(Calculations!$E$2,'NO2 reduction'!$C$3:$BC$249,'NO2 reduction'!$BD179))","v":1}]
[null,"Female 30-34",{"$f":"EXP(C$4*-1*HLOOKUP(Calculations!$E$2,'PM2.5 reduction'!$C$3:$BC$249,'PM2.5 reduction'!$BD180))","v":0.99997321455258736},{"$f":"EXP(D$4*-1*HLOOKUP(Calculations!$E$2,'PM2.5 reduction'!$C$3:$BC$249,'PM2.5 reduction'!$BD180))","v":0.99994953739572268},{"$f":"EXP(E$4*-1*HLOOKUP(Calculations!$E$2,'NO2 reduction'!$C$3:$BC$249,'NO2 reduction'!$BD180))","v":0.99998828907510251},{"$f":"EXP(F$4*-1*HLOOKUP(Calculations!$E$2,'NO2 reduction'!$C$3:$BC$249,'NO2 reduction'!$BD180))","v":1}]
[null,"Female 35-39",{"$f":"EXP(C$4*-1*HLOOKUP(Calculations!$E$2,'PM2.5 reduction'!$C$3:$BC$249,'PM2.5 reduction'!$BD181))","v":0.99997657193422984},{"$f":"EXP(D$4*-1*HLOOKUP(Calculations!$E$2,'PM2.5 reduction'!$C$3:$BC$249,'PM2.5 reduction'!$BD181))","v":0.99995586248950352},{"$f":"EXP(E$4*-1*HLOOKUP(Calculations!$E$2,'NO2 reduction'!$C$3:$BC$249,'NO2 reduction'!$BD181))","v":0.99998958088412648},{"$f":"EXP(F$4*-1*HLOOKUP(Calculations!$E$2,'NO2 reduction'!$C$3:$BC$249,'NO2 reduction'!$BD181))","v":1}]
[null,"Female 40-44",{"$f":"EXP(C$4*-1*HLOOKUP(Calculations!$E$2,'PM2.5 reduction'!$C$3:$BC$249,'PM2.5 reduction'!$BD182))","v":0.99997839300812075},{"$f":"EXP(D$4*-1*HLOOKUP(Calculations!$E$2,'PM2.5 reduction'!$C$3:$BC$249,'PM2.5 reduction'!$BD182))","v":0.99995929328490696},{"$f":"EXP(E$4*-1*HLOOKUP(Calculations!$E$2,'NO2 reduction'!$C$3:$BC$249,'NO2 reduction'!$BD182))","v":0.99999037901025789},{"$f":"EXP(F$4*-1*HLOOKUP(Calculations!$E$2,'NO2 reduction'!$C$3:$BC$249,'NO2 reduction'!$BD182))","v":1}]
[null,"Female 45-49",{"$f":"EXP(C$4*-1*HLOOKUP(Calculations!$E$2,'PM2.5 reduction'!$C$3:$BC$249,'PM2.5 reduction'!$BD183))","v":0.99997947099543849},{"$f":"EXP(D$4*-1*HLOOKUP(Calculations!$E$2,'PM2.5 reduction'!$C$3:$BC$249,'PM2.5 reduction'!$BD183))","v":0.99996132415179939},{"$f":"EXP(E$4*-1*HLOOKUP(Calculations!$E$2,'NO2 reduction'!$C$3:$BC$249,'NO2 reduction'!$BD183))","v":0.99999078284606346},{"$f":"EXP(F$4*-1*HLOOKUP(Calculations!$E$2,'NO2 reduction'!$C$3:$BC$249,'NO2 reduction'!$BD183))","v":1}]
[null,"Female 50-54",{"$f":"EXP(C$4*-1*HLOOKUP(Calculations!$E$2,'PM2.5 reduction'!$C$3:$BC$249,'PM2.5 reduction'!$BD184))","v":0.99997962190230261},{"$f":"EXP(D$4*-1*HLOOKUP(Calculations!$E$2,'PM2.5 reduction'!$C$3:$BC$249,'PM2.5 reduction'!$BD184))","v":0.99996160845191651},{"$f":"EXP(E$4*-1*HLOOKUP(Calculations!$E$2,'NO2 reduction'!$C$3:$BC$249,'NO2 reduction'!$BD184))","v":0.99999081953414315},{"$f":"EXP(F$4*-1*HLOOKUP(Calculations!$E$2,'NO2 reduction'!$C$3:$BC$249,'NO2 reduction'!$BD184))","v":1}]
[null,"Female 55-59",{"$f":"EXP(C$4*-1*HLOOKUP(Calculations!$E$2,'PM2.5 reduction'!$C$3:$BC$249,'PM2.5 reduction'!$BD185))","v":0.99997950655229451},{"$f":"EXP(D$4*-1*HLOOKUP(Calculations!$E$2,'PM2.5 reduction'!$C$3:$BC$249,'PM2.5 reduction'!$BD185))","v":0.9999613911389299},{"$f":"EXP(E$4*-1*HLOOKUP(Calculations!$E$2,'NO2 reduction'!$C$3:$BC$249,'NO2 reduction'!$BD185))","v":0.99999076094872585},{"$f":"EXP(F$4*-1*HLOOKUP(Calculations!$E$2,'NO2 reduction'!$C$3:$BC$249,'NO2 reduction'!$BD185))","v":1}]
[null,"Female 60-64",{"$f":"EXP(C$4*-1*HLOOKUP(Calculations!$E$2,'PM2.5 reduction'!$C$3:$BC$249,'PM2.5 reduction'!$BD186))","v":0.99998020966229761},{"$f":"EXP(D$4*-1*HLOOKUP(Calculations!$E$2,'PM2.5 reduction'!$C$3:$BC$249,'PM2.5 reduction'!$BD186))","v":0.9999627157593336},{"$f":"EXP(E$4*-1*HLOOKUP(Calculations!$E$2,'NO2 reduction'!$C$3:$BC$249,'NO2 reduction'!$BD186))","v":0.99999109589917945},{"$f":"EXP(F$4*-1*HLOOKUP(Calculations!$E$2,'NO2 reduction'!$C$3:$BC$249,'NO2 reduction'!$BD186))","v":1}]
[null,"Female 65-69",{"$f":"EXP(C$4*-1*HLOOKUP(Calculations!$E$2,'PM2.5 reduction'!$C$3:$BC$249,'PM2.5 reduction'!$BD187))","v":0.99998064816318055},{"$f":"EXP(D$4*-1*HLOOKUP(Calculations!$E$2,'PM2.5 reduction'!$C$3:$BC$249,'PM2.5 reduction'!$BD187))","v":0.99996354187118963},{"$f":"EXP(E$4*-1*HLOOKUP(Calculations!$E$2,'NO2 reduction'!$C$3:$BC$249,'NO2 reduction'!$BD187))","v":0.9999912995599417},{"$f":"EXP(F$4*-1*HLOOKUP(Calculations!$E$2,'NO2 reduction'!$C$3:$BC$249,'NO2 reduction'!$BD187))","v":1}]
[null,"Female 70-74",{"$f":"EXP(C$4*-1*HLOOKUP(Calculations!$E$2,'PM2.5 reduction'!$C$3:$BC$249,'PM2.5 reduction'!$BD188))","v":0.99998140178730222},{"$f":"EXP(D$4*-1*HLOOKUP(Calculations!$E$2,'PM2.5 reduction'!$C$3:$BC$249,'PM2.5 reduction'!$BD188))","v":0.99996496165886684},{"$f":"EXP(E$4*-1*HLOOKUP(Calculations!$E$2,'NO2 reduction'!$C$3:$BC$249,'NO2 reduction'!$BD188))","v":0.99999167483321882},{"$f":"EXP(F$4*-1*HLOOKUP(Calculations!$E$2,'NO2 reduction'!$C$3:$BC$249,'NO2 reduction'!$BD188))","v":1}]
[null,"Female 75-79",{"$f":"EXP(C$4*-1*HLOOKUP(Calculations!$E$2,'PM2.5 reduction'!$C$3:$BC$249,'PM2.5 reduction'!$BD189))","v":0.99998069951378743},{"$f":"EXP(D$4*-1*HLOOKUP(Calculations!$E$2,'PM2.5 reduction'!$C$3:$BC$249,'PM2.5 reduction'!$BD189))","v":0.999963638612966},{"$f":"EXP(E$4*-1*HLOOKUP(Calculations!$E$2,'NO2 reduction'!$C$3:$BC$249,'NO2 reduction'!$BD189))","v":0.99999135386200755},{"$f":"EXP(F$4*-1*HLOOKUP(Calculations!$E$2,'NO2 reduction'!$C$3:$BC$249,'NO2 reduction'!$BD189))","v":1}]
[null,"Female 80-84",{"$f":"EXP(C$4*-1*HLOOKUP(Calculations!$E$2,'PM2.5 reduction'!$C$3:$BC$249,'PM2.5 reduction'!$BD190))","v":0.99998021552478289},{"$f":"EXP(D$4*-1*HLOOKUP(Calculations!$E$2,'PM2.5 reduction'!$C$3:$BC$249,'PM2.5 reduction'!$BD190))","v":0.99996272680393561},{"$f":"EXP(E$4*-1*HLOOKUP(Calculations!$E$2,'NO2 reduction'!$C$3:$BC$249,'NO2 reduction'!$BD190))","v":0.99999112884851382},{"$f":"EXP(F$4*-1*HLOOKUP(Calculations!$E$2,'NO2 reduction'!$C$3:$BC$249,'NO2 reduction'!$BD190))","v":1}]
[null,"Female 85-89",{"$f":"EXP(C$4*-1*HLOOKUP(Calculations!$E$2,'PM2.5 reduction'!$C$3:$BC$249,'PM2.5 reduction'!$BD191))","v":0.99997950705637406},{"$f":"EXP(D$4*-1*HLOOKUP(Calculations!$E$2,'PM2.5 reduction'!$C$3:$BC$249,'PM2.5 reduction'!$BD191))","v":0.9999613920885877},{"$f":"EXP(E$4*-1*HLOOKUP(Calculations!$E$2,'NO2 reduction'!$C$3:$BC$249,'NO2 reduction'!$BD191))","v":0.99999084091547785},{"$f":"EXP(F$4*-1*HLOOKUP(Calculations!$E$2,'NO2 reduction'!$C$3:$BC$249,'NO2 reduction'!$BD191))","v":1}]
[null,"Female 90+",{"$f":"EXP(C$4*-1*HLOOKUP(Calculations!$E$2,'PM2.5 reduction'!$C$3:$BC$249,'PM2.5 reduction'!$BD192))","v":0.99997937732327113},{"$f":"EXP(D$4*-1*HLOOKUP(Calculations!$E$2,'PM2.5 reduction'!$C$3:$BC$249,'PM2.5 reduction'!$BD192))","v":0.99996114767867861},{"$f":"EXP(E$4*-1*HLOOKUP(Calculations!$E$2,'NO2 reduction'!$C$3:$BC$249,'NO2 reduction'!$BD192))","v":0.99999080813705155},{"$f":"EXP(F$4*-1*HLOOKUP(Calculations!$E$2,'NO2 reduction'!$C$3:$BC$249,'NO2 reduction'!$BD192))","v":1}]
[null,"Male 0-4",{"$f":"EXP(C$4*-1*HLOOKUP(Calculations!$E$2,'PM2.5 reduction'!$C$3:$BC$249,'PM2.5 reduction'!$BD193))","v":0.99997827810398521},{"$f":"EXP(D$4*-1*HLOOKUP(Calculations!$E$2,'PM2.5 reduction'!$C$3:$BC$249,'PM2.5 reduction'!$BD193))","v":0.99995907681215468},{"$f":"EXP(E$4*-1*HLOOKUP(Calculations!$E$2,'NO2 reduction'!$C$3:$BC$249,'NO2 reduction'!$BD193))","v":0.99999025753591653},{"$f":"EXP(F$4*-1*HLOOKUP(Calculations!$E$2,'NO2 reduction'!$C$3:$BC$249,'NO2 reduction'!$BD193))","v":1}]
[null,"Male 5-9",{"$f":"EXP(C$4*-1*HLOOKUP(Calculations!$E$2,'PM2.5 reduction'!$C$3:$BC$249,'PM2.5 reduction'!$BD194))","v":0.99997979000444226},{"$f":"EXP(D$4*-1*HLOOKUP(Calculations!$E$2,'PM2.5 reduction'!$C$3:$BC$249,'PM2.5 reduction'!$BD194))","v":0.99996192514701843},{"$f":"EXP(E$4*-1*HLOOKUP(Calculations!$E$2,'NO2 reduction'!$C$3:$BC$249,'NO2 reduction'!$BD194))","v":0.99999091087334213},{"$f":"EXP(F$4*-1*HLOOKUP(Calculations!$E$2,'NO2 reduction'!$C$3:$BC$249,'NO2 reduction'!$BD194))","v":1}]
[null,"Male 10-15",{"$f":"EXP(C$4*-1*HLOOKUP(Calculations!$E$2,'PM2.5 reduction'!$C$3:$BC$249,'PM2.5 reduction'!$BD195))","v":0.99998074115333457},{"$f":"EXP(D$4*-1*HLOOKUP(Calculations!$E$2,'PM2.5 reduction'!$C$3:$BC$249,'PM2.5 reduction'!$BD195))","v":0.99996371705963238},{"$f":"EXP(E$4*-1*HLOOKUP(Calculations!$E$2,'NO2 reduction'!$C$3:$BC$249,'NO2 reduction'!$BD195))","v":0.99999132394251689},{"$f":"EXP(F$4*-1*HLOOKUP(Calculations!$E$2,'NO2 reduction'!$C$3:$BC$249,'NO2 reduction'!$BD195))","v":1}]
[null,"Male 16-19",{"$f":"EXP(C$4*-1*HLOOKUP(Calculations!$E$2,'PM2.5 reduction'!$C$3:$BC$249,'PM2.5 reduction'!$BD196))","v":0.99997837473976925},{"$f":"EXP(D$4*-1*HLOOKUP(Calculations!$E$2,'PM2.5 reduction'!$C$3:$BC$249,'PM2.5 reduction'!$BD196))","v":0.99995925886838688},{"$f":"EXP(E$4*-1*HLOOKUP(Calculations!$E$2,'NO2 reduction'!$C$3:$BC$249,'NO2 reduction'!$BD196))","v":0.99999045484696203},{"$f":"EXP(F$4*-1*HLOOKUP(Calculations!$E$2,'NO2 reduction'!$C$3:$BC$249,'NO2 reduction'!$BD196))","v":1}]
[null,"Male 20-24",{"$f":"EXP(C$4*-1*HLOOKUP(Calculations!$E$2,'PM2.5 reduction'!$C$3:$BC$249,'PM2.5 reduction'!$BD197))","v":0.99997068539169354},{"$f":"EXP(D$4*-1*HLOOKUP(Calculations!$E$2,'PM2.5 reduction'!$C$3:$BC$249,'PM2.5 reduction'!$BD197))","v":0.99994477262962755},{"$f":"EXP(E$4*-1*HLOOKUP(Calculations!$E$2,'NO2 reduction'!$C$3:$BC$249,'NO2 reduction'!$BD197))","v":0.99998760496022676},{"$f":"EXP(F$4*-1*HLOOKUP(Calculations!$E$2,'NO2 reduction'!$C$3:$BC$249,'NO2 reduction'!$BD197))","v":1}]
[null,"Male 25-29",{"$f":"EXP(C$4*-1*HLOOKUP(Calculations!$E$2,'PM2.5 reduction'!$C$3:$BC$249,'PM2.5 reduction'!$BD198))","v":0.99997014853922839},{"$f":"EXP(D$4*-1*HLOOKUP(Calculations!$E$2,'PM2.5 reduction'!$C$3:$BC$249,'PM2.5 reduction'!$BD198))","v":0.99994376123768192},{"$f":"EXP(E$4*-1*HLOOKUP(Calculations!$E$2,'NO2 reduction'!$C$3:$BC$249,'NO2 reduction'!$BD198))","v":0.99998724315317689},{"$f":"EXP(F$4*-1*HLOOKUP(Calculations!$E$2,'NO2 reduction'!$C$3:$BC$249,'NO2 reduction'!$BD198))","v":1}]
[null,"Male 30-34",{"$f":"EXP(C$4*-1*HLOOKUP(Calculations!$E$2,'PM2.5 reduction'!$C$3:$BC$249,'PM2.5 reduction'!$BD199))","v":0.99997197242075686},{"$f":"EXP(D$4*-1*HLOOKUP(Calculations!$E$2,'PM2.5 reduction'!$C$3:$BC$249,'PM2.5 reduction'!$BD199))","v":0.99994719730300152},{"$f":"EXP(E$4*-1*HLOOKUP(Calculations!$E$2,'NO2 reduction'!$C$3:$BC$249,'NO2 reduction'!$BD199))","v":0.99998783784085132},{"$f":"EXP(F$4*-1*HLOOKUP(Calculations!$E$2,'NO2 reduction'!$C$3:$BC$249,'NO2 reduction'!$BD199))","v":1}]
[null,"Male 35-39",{"$f":"EXP(C$4*-1*HLOOKUP(Calculations!$E$2,'PM2.5 reduction'!$C$3:$BC$249,'PM2.5 reduction'!$BD200))","v":0.99997486112361933},{"$f":"EXP(D$4*-1*HLOOKUP(Calculations!$E$2,'PM2.5 reduction'!$C$3:$BC$249,'PM2.5 reduction'!$BD200))","v":0.99995263942862456},{"$f":"EXP(E$4*-1*HLOOKUP(Calculations!$E$2,'NO2 reduction'!$C$3:$BC$249,'NO2 reduction'!$BD200))","v":0.99998898684476234},{"$f":"EXP(F$4*-1*HLOOKUP(Calculations!$E$2,'NO2 reduction'!$C$3:$BC$249,'NO2 reduction'!$BD200))","v":1}]
[null,"Male 40-44",{"$f":"EXP(C$4*-1*HLOOKUP(Calculations!$E$2,'PM2.5 reduction'!$C$3:$BC$249,'PM2.5 reduction'!$BD201))","v":0.9999769804119869},{"$f":"EXP(D$4*-1*HLOOKUP(Calculations!$E$2,'PM2.5 reduction'!$C$3:$BC$249,'PM2.5 reduction'!$BD201))","v":0.99995663203693563},{"$f":"EXP(E$4*-1*HLOOKUP(Calculations!$E$2,'NO2 reduction'!$C$3:$BC$249,'NO2 reduction'!$BD201))","v":0.99998983158793531},{"$f":"EXP(F$4*-1*HLOOKUP(Calculations!$E$2,'NO2 reduction'!$C$3:$BC$249,'NO2 reduction'!$BD201))","v":1}]
[null,"Male 45-49",{"$f":"EXP(C$4*-1*HLOOKUP(Calculations!$E$2,'PM2.5 reduction'!$C$3:$BC$249,'PM2.5 reduction'!$BD202))","v":0.99997872422957168},{"$f":"EXP(D$4*-1*HLOOKUP(Calculations!$E$2,'PM2.5 reduction'!$C$3:$BC$249,'PM2.5 reduction'!$BD202))","v":0.99995991728710587},{"$f":"EXP(E$4*-1*HLOOKUP(Calculations!$E$2,'NO2 reduction'!$C$3:$BC$249,'NO2 reduction'!$BD202))","v":0.99999049069608881},{"$f":"EXP(F$4*-1*HLOOKUP(Calculations!$E$2,'NO2 reduction'!$C$3:$BC$249,'NO2 reduction'!$BD202))","v":1}]
[null,"Male 50-54",{"$f":"EXP(C$4*-1*HLOOKUP(Calculations!$E$2,'PM2.5 reduction'!$C$3:$BC$249,'PM2.5 reduction'!$BD203))","v":0.99997910915904031},{"$f":"EXP(D$4*-1*HLOOKUP(Calculations!$E$2,'PM2.5 reduction'!$C$3:$BC$249,'PM2.5 reduction'!$BD203))","v":0.99996064247235661},{"$f":"EXP(E$4*-1*HLOOKUP(Calculations!$E$2,'NO2 reduction'!$C$3:$BC$249,'NO2 reduction'!$BD203))","v":0.99999065858369574},{"$f":"EXP(F$4*-1*HLOOKUP(Calculations!$E$2,'NO2 reduction'!$C$3:$BC$249,'NO2 reduction'!$BD203))","v":1}]
[null,"Male 55-59",{"$f":"EXP(C$4*-1*HLOOKUP(Calculations!$E$2,'PM2.5 reduction'!$C$3:$BC$249,'PM2.5 reduction'!$BD204))","v":0.99997943896353114},{"$f":"EXP(D$4*-1*HLOOKUP(Calculations!$E$2,'PM2.5 reduction'!$C$3:$BC$249,'PM2.5 reduction'!$BD204))","v":0.99996126380547701},{"$f":"EXP(E$4*-1*HLOOKUP(Calculations!$E$2,'NO2 reduction'!$C$3:$BC$249,'NO2 reduction'!$BD204))","v":0.99999076399561548},{"$f":"EXP(F$4*-1*HLOOKUP(Calculations!$E$2,'NO2 reduction'!$C$3:$BC$249,'NO2 reduction'!$BD204))","v":1}]
[null,"Male 60-64",{"$f":"EXP(C$4*-1*HLOOKUP(Calculations!$E$2,'PM2.5 reduction'!$C$3:$BC$249,'PM2.5 reduction'!$BD205))","v":0.99997972295763571},{"$f":"EXP(D$4*-1*HLOOKUP(Calculations!$E$2,'PM2.5 reduction'!$C$3:$BC$249,'PM2.5 reduction'!$BD205))","v":0.99996179883455005},{"$f":"EXP(E$4*-1*HLOOKUP(Calculations!$E$2,'NO2 reduction'!$C$3:$BC$249,'NO2 reduction'!$BD205))","v":0.99999092972313119},{"$f":"EXP(F$4*-1*HLOOKUP(Calculations!$E$2,'NO2 reduction'!$C$3:$BC$249,'NO2 reduction'!$BD205))","v":1}]
[null,"Male 65-69",{"$f":"EXP(C$4*-1*HLOOKUP(Calculations!$E$2,'PM2.5 reduction'!$C$3:$BC$249,'PM2.5 reduction'!$BD206))","v":0.99998054241944845},{"$f":"EXP(D$4*-1*HLOOKUP(Calculations!$E$2,'PM2.5 reduction'!$C$3:$BC$249,'PM2.5 reduction'!$BD206))","v":0.9999633426557103},{"$f":"EXP(E$4*-1*HLOOKUP(Calculations!$E$2,'NO2 reduction'!$C$3:$BC$249,'NO2 reduction'!$BD206))","v":0.99999128897316514},{"$f":"EXP(F$4*-1*HLOOKUP(Calculations!$E$2,'NO2 reduction'!$C$3:$BC$249,'NO2 reduction'!$BD206))","v":1}]
[null,"Male 70-74",{"$f":"EXP(C$4*-1*HLOOKUP(Calculations!$E$2,'PM2.5 reduction'!$C$3:$BC$249,'PM2.5 reduction'!$BD207))","v":0.99998124605651695},{"$f":"EXP(D$4*-1*HLOOKUP(Calculations!$E$2,'PM2.5 reduction'!$C$3:$BC$249,'PM2.5 reduction'!$BD207))","v":0.99996466827029007},{"$f":"EXP(E$4*-1*HLOOKUP(Calculations!$E$2,'NO2 reduction'!$C$3:$BC$249,'NO2 reduction'!$BD207))","v":0.99999159625708134},{"$f":"EXP(F$4*-1*HLOOKUP(Calculations!$E$2,'NO2 reduction'!$C$3:$BC$249,'NO2 reduction'!$BD207))","v":1}]
[null,"Male 75-79",{"$f":"EXP(C$4*-1*HLOOKUP(Calculations!$E$2,'PM2.5 reduction'!$C$3:$BC$249,'PM2.5 reduction'!$BD208))","v":0.99998104471189975},{"$f":"EXP(D$4*-1*HLOOKUP(Calculations!$E$2,'PM2.5 reduction'!$C$3:$BC$249,'PM2.5 reduction'!$BD208))","v":0.9999642889477226},{"$f":"EXP(E$4*-1*HLOOKUP(Calculations!$E$2,'NO2 reduction'!$C$3:$BC$249,'NO2 reduction'!$BD208))","v":0.99999153019410192},{"$f":"EXP(F$4*-1*HLOOKUP(Calculations!$E$2,'NO2 reduction'!$C$3:$BC$249,'NO2 reduction'!$BD208))","v":1}]
[null,"Male 80-84",{"$f":"EXP(C$4*-1*HLOOKUP(Calculations!$E$2,'PM2.5 reduction'!$C$3:$BC$249,'PM2.5 reduction'!$BD209))","v":0.99998060331328464},{"$f":"EXP(D$4*-1*HLOOKUP(Calculations!$E$2,'PM2.5 reduction'!$C$3:$BC$249,'PM2.5 reduction'!$BD209))","v":0.99996345737640613},{"$f":"EXP(E$4*-1*HLOOKUP(Calculations!$E$2,'NO2 reduction'!$C$3:$BC$249,'NO2 reduction'!$BD209))","v":0.99999128750572064},{"$f":"EXP(F$4*-1*HLOOKUP(Calculations!$E$2,'NO2 reduction'!$C$3:$BC$249,'NO2 reduction'!$BD209))","v":1}]
[null,"Male 85-89",{"$f":"EXP(C$4*-1*HLOOKUP(Calculations!$E$2,'PM2.5 reduction'!$C$3:$BC$249,'PM2.5 reduction'!$BD210))","v":0.99997987626523255},{"$f":"EXP(D$4*-1*HLOOKUP(Calculations!$E$2,'PM2.5 reduction'!$C$3:$BC$249,'PM2.5 reduction'!$BD210))","v":0.99996208765757844},{"$f":"EXP(E$4*-1*HLOOKUP(Calculations!$E$2,'NO2 reduction'!$C$3:$BC$249,'NO2 reduction'!$BD210))","v":0.99999109634520311},{"$f":"EXP(F$4*-1*HLOOKUP(Calculations!$E$2,'NO2 reduction'!$C$3:$BC$249,'NO2 reduction'!$BD210))","v":1}]
[null,"Male 90+",{"$f":"EXP(C$4*-1*HLOOKUP(Calculations!$E$2,'PM2.5 reduction'!$C$3:$BC$249,'PM2.5 reduction'!$BD211))","v":0.99997971367667515},{"$f":"EXP(D$4*-1*HLOOKUP(Calculations!$E$2,'PM2.5 reduction'!$C$3:$BC$249,'PM2.5 reduction'!$BD211))","v":0.99996178134973535},{"$f":"EXP(E$4*-1*HLOOKUP(Calculations!$E$2,'NO2 reduction'!$C$3:$BC$249,'NO2 reduction'!$BD211))","v":0.99999090313724903},{"$f":"EXP(F$4*-1*HLOOKUP(Calculations!$E$2,'NO2 reduction'!$C$3:$BC$249,'NO2 reduction'!$BD211))","v":1}]
["SIMD Q5 (least deprived)","Female 0-4",{"$f":"EXP(C$4*-1*HLOOKUP(Calculations!$E$2,'PM2.5 reduction'!$C$3:$BC$249,'PM2.5 reduction'!$BD212))","v":0.99997627989201465},{"$f":"EXP(D$4*-1*HLOOKUP(Calculations!$E$2,'PM2.5 reduction'!$C$3:$BC$249,'PM2.5 reduction'!$BD212))","v":0.99995531229977297},{"$f":"EXP(E$4*-1*HLOOKUP(Calculations!$E$2,'NO2 reduction'!$C$3:$BC$249,'NO2 reduction'!$BD212))","v":0.99998920209308451},{"$f":"EXP(F$4*-1*HLOOKUP(Calculations!$E$2,'NO2 reduction'!$C$3:$BC$249,'NO2 reduction'!$BD212))","v":1}]
[null,"Female 5-9",{"$f":"EXP(C$4*-1*HLOOKUP(Calculations!$E$2,'PM2.5 reduction'!$C$3:$BC$249,'PM2.5 reduction'!$BD213))","v":0.99997763107257875},{"$f":"EXP(D$4*-1*HLOOKUP(Calculations!$E$2,'PM2.5 reduction'!$C$3:$BC$249,'PM2.5 reduction'!$BD213))","v":0.99995785784278035},{"$f":"EXP(E$4*-1*HLOOKUP(Calculations!$E$2,'NO2 reduction'!$C$3:$BC$249,'NO2 reduction'!$BD213))","v":0.99998979096095919},{"$f":"EXP(F$4*-1*HLOOKUP(Calculations!$E$2,'NO2 reduction'!$C$3:$BC$249,'NO2 reduction'!$BD213))","v":1}]
[null,"Female 10-15",{"$f":"EXP(C$4*-1*HLOOKUP(Calculations!$E$2,'PM2.5 reduction'!$C$3:$BC$249,'PM2.5 reduction'!$BD214))","v":0.99997841917691821},{"$f":"EXP(D$4*-1*HLOOKUP(Calculations!$E$2,'PM2.5 reduction'!$C$3:$BC$249,'PM2.5 reduction'!$BD214))","v":0.99995934258541253},{"$f":"EXP(E$4*-1*HLOOKUP(Calculations!$E$2,'NO2 reduction'!$C$3:$BC$249,'NO2 reduction'!$BD214))","v":0.99999009910932946},{"$f":"EXP(F$4*-1*HLOOKUP(Calculations!$E$2,'NO2 reduction'!$C$3:$BC$249,'NO2 reduction'!$BD214))","v":1}]
[null,"Female 16-19",{"$f":"EXP(C$4*-1*HLOOKUP(Calculations!$E$2,'PM2.5 reduction'!$C$3:$BC$249,'PM2.5 reduction'!$BD215))","v":0.99997485683836163},{"$f":"EXP(D$4*-1*HLOOKUP(Calculations!$E$2,'PM2.5 reduction'!$C$3:$BC$249,'PM2.5 reduction'!$BD215))","v":0.99995263135547141},{"$f":"EXP(E$4*-1*HLOOKUP(Calculations!$E$2,'NO2 reduction'!$C$3:$BC$249,'NO2 reduction'!$BD215))","v":0.99998899759844218},{"$f":"EXP(F$4*-1*HLOOKUP(Calculations!$E$2,'NO2 reduction'!$C$3:$BC$249,'NO2 reduction'!$BD215))","v":1}]
[null,"Female 20-24",{"$f":"EXP(C$4*-1*HLOOKUP(Calculations!$E$2,'PM2.5 reduction'!$C$3:$BC$249,'PM2.5 reduction'!$BD216))","v":0.99996715553326432},{"$f":"EXP(D$4*-1*HLOOKUP(Calculations!$E$2,'PM2.5 reduction'!$C$3:$BC$249,'PM2.5 reduction'!$BD216))","v":0.99993812263564663},{"$f":"EXP(E$4*-1*HLOOKUP(Calculations!$E$2,'NO2 reduction'!$C$3:$BC$249,'NO2 reduction'!$BD216))","v":0.9999862637686221},{"$f":"EXP(F$4*-1*HLOOKUP(Calculations!$E$2,'NO2 reduction'!$C$3:$BC$249,'NO2 reduction'!$BD216))","v":1}]
[null,"Female 25-29",{"$f":"EXP(C$4*-1*HLOOKUP(Calculations!$E$2,'PM2.5 reduction'!$C$3:$BC$249,'PM2.5 reduction'!$BD217))","v":0.99996746893939426},{"$f":"EXP(D$4*-1*HLOOKUP(Calculations!$E$2,'PM2.5 reduction'!$C$3:$BC$249,'PM2.5 reduction'!$BD217))","v":0.99993871306893356},{"$f":"EXP(E$4*-1*HLOOKUP(Calculations!$E$2,'NO2 reduction'!$C$3:$BC$249,'NO2 reduction'!$BD217))","v":0.99998597574748493},{"$f":"EXP(F$4*-1*HLOOKUP(Calculations!$E$2,'NO2 reduction'!$C$3:$BC$249,'NO2 reduction'!$BD217))","v":1}]
[null,"Female 30-34",{"$f":"EXP(C$4*-1*HLOOKUP(Calculations!$E$2,'PM2.5 reduction'!$C$3:$BC$249,'PM2.5 reduction'!$BD218))","v":0.99997081503584651},{"$f":"EXP(D$4*-1*HLOOKUP(Calculations!$E$2,'PM2.5 reduction'!$C$3:$BC$249,'PM2.5 reduction'!$BD218))","v":0.99994501687008353},{"$f":"EXP(E$4*-1*HLOOKUP(Calculations!$E$2,'NO2 reduction'!$C$3:$BC$249,'NO2 reduction'!$BD218))","v":0.99998726321853815},{"$f":"EXP(F$4*-1*HLOOKUP(Calculations!$E$2,'NO2 reduction'!$C$3:$BC$249,'NO2 reduction'!$BD218))","v":1}]
[null,"Female 35-39",{"$f":"EXP(C$4*-1*HLOOKUP(Calculations!$E$2,'PM2.5 reduction'!$C$3:$BC$249,'PM2.5 reduction'!$BD219))","v":0.99997428400952793},{"$f":"EXP(D$4*-1*HLOOKUP(Calculations!$E$2,'PM2.5 reduction'!$C$3:$BC$249,'PM2.5 reduction'!$BD219))","v":0.99995155218263809},{"$f":"EXP(E$4*-1*HLOOKUP(Calculations!$E$2,'NO2 reduction'!$C$3:$BC$249,'NO2 reduction'!$BD219))","v":0.9999885022225351},{"$f":"EXP(F$4*-1*HLOOKUP(Calculations!$E$2,'NO2 reduction'!$C$3:$BC$249,'NO2 reduction'!$BD219))","v":1}]
[null,"Female 40-44",{"$f":"EXP(C$4*-1*HLOOKUP(Calculations!$E$2,'PM2.5 reduction'!$C$3:$BC$249,'PM2.5 reduction'!$BD220))","v":0.99997643920591295},{"$f":"EXP(D$4*-1*HLOOKUP(Calculations!$E$2,'PM2.5 reduction'!$C$3:$BC$249,'PM2.5 reduction'!$BD220))","v":0.99995561243742803},{"$f":"EXP(E$4*-1*HLOOKUP(Calculations!$E$2,'NO2 reduction'!$C$3:$BC$249,'NO2 reduction'!$BD220))","v":0.9999893716792001},{"$f":"EXP(F$4*-1*HLOOKUP(Calculations!$E$2,'NO2 reduction'!$C$3:$BC$249,'NO2 reduction'!$BD220))","v":1}]
[null,"Female 45-49",{"$f":"EXP(C$4*-1*HLOOKUP(Calculations!$E$2,'PM2.5 reduction'!$C$3:$BC$249,'PM2.5 reduction'!$BD221))","v":0.99997729150712722},{"$f":"EXP(D$4*-1*HLOOKUP(Calculations!$E$2,'PM2.5 reduction'!$C$3:$BC$249,'PM2.5 reduction'!$BD221))","v":0.99995721812158378},{"$f":"EXP(E$4*-1*HLOOKUP(Calculations!$E$2,'NO2 reduction'!$C$3:$BC$249,'NO2 reduction'!$BD221))","v":0.99998970032597001},{"$f":"EXP(F$4*-1*HLOOKUP(Calculations!$E$2,'NO2 reduction'!$C$3:$BC$249,'NO2 reduction'!$BD221))","v":1}]
[null,"Female 50-54",{"$f":"EXP(C$4*-1*HLOOKUP(Calculations!$E$2,'PM2.5 reduction'!$C$3:$BC$249,'PM2.5 reduction'!$BD222))","v":0.99997727224688027},{"$f":"EXP(D$4*-1*HLOOKUP(Calculations!$E$2,'PM2.5 reduction'!$C$3:$BC$249,'PM2.5 reduction'!$BD222))","v":0.99995718183642512},{"$f":"EXP(E$4*-1*HLOOKUP(Calculations!$E$2,'NO2 reduction'!$C$3:$BC$249,'NO2 reduction'!$BD222))","v":0.99998966497451147},{"$f":"EXP(F$4*-1*HLOOKUP(Calculations!$E$2,'NO2 reduction'!$C$3:$BC$249,'NO2 reduction'!$BD222))","v":1}]
[null,"Female 55-59",{"$f":"EXP(C$4*-1*HLOOKUP(Calculations!$E$2,'PM2.5 reduction'!$C$3:$BC$249,'PM2.5 reduction'!$BD223))","v":0.99997738412582782},{"$f":"EXP(D$4*-1*HLOOKUP(Calculations!$E$2,'PM2.5 reduction'!$C$3:$BC$249,'PM2.5 reduction'!$BD223))","v":0.99995739260971039},{"$f":"EXP(E$4*-1*HLOOKUP(Calculations!$E$2,'NO2 reduction'!$C$3:$BC$249,'NO2 reduction'!$BD223))","v":0.99998969446099917},{"$f":"EXP(F$4*-1*HLOOKUP(Calculations!$E$2,'NO2 reduction'!$C$3:$BC$249,'NO2 reduction'!$BD223))","v":1}]
[null,"Female 60-64",{"$f":"EXP(C$4*-1*HLOOKUP(Calculations!$E$2,'PM2.5 reduction'!$C$3:$BC$249,'PM2.5 reduction'!$BD224))","v":0.99997776324103327},{"$f":"EXP(D$4*-1*HLOOKUP(Calculations!$E$2,'PM2.5 reduction'!$C$3:$BC$249,'PM2.5 reduction'!$BD224))","v":0.99995810684037156},{"$f":"EXP(E$4*-1*HLOOKUP(Calculations!$E$2,'NO2 reduction'!$C$3:$BC$249,'NO2 reduction'!$BD224))","v":0.99998985355539871},{"$f":"EXP(F$4*-1*HLOOKUP(Calculations!$E$2,'NO2 reduction'!$C$3:$BC$249,'NO2 reduction'!$BD224))","v":1}]
[null,"Female 65-69",{"$f":"EXP(C$4*-1*HLOOKUP(Calculations!$E$2,'PM2.5 reduction'!$C$3:$BC$249,'PM2.5 reduction'!$BD225))","v":0.99997807469252065},{"$f":"EXP(D$4*-1*HLOOKUP(Calculations!$E$2,'PM2.5 reduction'!$C$3:$BC$249,'PM2.5 reduction'!$BD225))","v":0.99995869359676215},{"$f":"EXP(E$4*-1*HLOOKUP(Calculations!$E$2,'NO2 reduction'!$C$3:$BC$249,'NO2 reduction'!$BD225))","v":0.99998999279947764},{"$f":"EXP(F$4*-1*HLOOKUP(Calculations!$E$2,'NO2 reduction'!$C$3:$BC$249,'NO2 reduction'!$BD225))","v":1}]
[null,"Female 70-74",{"$f":"EXP(C$4*-1*HLOOKUP(Calculations!$E$2,'PM2.5 reduction'!$C$3:$BC$249,'PM2.5 reduction'!$BD226))","v":0.9999783302629216},{"$f":"EXP(D$4*-1*HLOOKUP(Calculations!$E$2,'PM2.5 reduction'!$C$3:$BC$249,'PM2.5 reduction'!$BD226))","v":0.99995917507657439},{"$f":"EXP(E$4*-1*HLOOKUP(Calculations!$E$2,'NO2 reduction'!$C$3:$BC$249,'NO2 reduction'!$BD226))","v":0.99999010566153568},{"$f":"EXP(F$4*-1*HLOOKUP(Calculations!$E$2,'NO2 reduction'!$C$3:$BC$249,'NO2 reduction'!$BD226))","v":1}]
[null,"Female 75-79",{"$f":"EXP(C$4*-1*HLOOKUP(Calculations!$E$2,'PM2.5 reduction'!$C$3:$BC$249,'PM2.5 reduction'!$BD227))","v":0.99997791985612094},{"$f":"EXP(D$4*-1*HLOOKUP(Calculations!$E$2,'PM2.5 reduction'!$C$3:$BC$249,'PM2.5 reduction'!$BD227))","v":0.99995840189401874},{"$f":"EXP(E$4*-1*HLOOKUP(Calculations!$E$2,'NO2 reduction'!$C$3:$BC$249,'NO2 reduction'!$BD227))","v":0.99998985225041725},{"$f":"EXP(F$4*-1*HLOOKUP(Calculations!$E$2,'NO2 reduction'!$C$3:$BC$249,'NO2 reduction'!$BD227))","v":1}]
[null,"Female 80-84",{"$f":"EXP(C$4*-1*HLOOKUP(Calculations!$E$2,'PM2.5 reduction'!$C$3:$BC$249,'PM2.5 reduction'!$BD228))","v":0.99997713809646416},{"$f":"EXP(D$4*-1*HLOOKUP(Calculations!$E$2,'PM2.5 reduction'!$C$3:$BC$249,'PM2.5 reduction'!$BD228))","v":0.99995692910504486},{"$f":"EXP(E$4*-1*HLOOKUP(Calculations!$E$2,'NO2 reduction'!$C$3:$BC$249,'NO2 reduction'!$BD228))","v":0.9999894646600811},{"$f":"EXP(F$4*-1*HLOOKUP(Calculations!$E$2,'NO2 reduction'!$C$3:$BC$249,'NO2 reduction'!$BD228))","v":1}]
[null,"Female 85-89",{"$f":"EXP(C$4*-1*HLOOKUP(Calculations!$E$2,'PM2.5 reduction'!$C$3:$BC$249,'PM2.5 reduction'!$BD229))","v":0.99997609912535934},{"$f":"EXP(D$4*-1*HLOOKUP(Calculations!$E$2,'PM2.5 reduction'!$C$3:$BC$249,'PM2.5 reduction'!$BD229))","v":0.99995497174648484},{"$f":"EXP(E$4*-1*HLOOKUP(Calculations!$E$2,'NO2 reduction'!$C$3:$BC$249,'NO2 reduction'!$BD229))","v":0.99998896086427191},{"$f":"EXP(F$4*-1*HLOOKUP(Calculations!$E$2,'NO2 reduction'!$C$3:$BC$249,'NO2 reduction'!$BD229))","v":1}]
[null,"Female 90+",{"$f":"EXP(C$4*-1*HLOOKUP(Calculations!$E$2,'PM2.5 reduction'!$C$3:$BC$249,'PM2.5 reduction'!$BD230))","v":0.99997591463830604},{"$f":"EXP(D$4*-1*HLOOKUP(Calculations!$E$2,'PM2.5 reduction'!$C$3:$BC$249,'PM2.5 reduction'!$BD230))","v":0.99995462418425152},{"$f":"EXP(E$4*-1*HLOOKUP(Calculations!$E$2,'NO2 reduction'!$C$3:$BC$249,'NO2 reduction'!$BD230))","v":0.99998890908064353},{"$f":"EXP(F$4*-1*HLOOKUP(Calculations!$E$2,'NO2 reduction'!$C$3:$BC$249,'NO2 reduction'!$BD230))","v":1}]
[null,"Male 0-4",{"$f":"EXP(C$4*-1*HLOOKUP(Calculations!$E$2,'PM2.5 reduction'!$C$3:$BC$249,'PM2.5 reduction'!$BD231))","v":0.99997632421057014},{"$f":"EXP(D$4*-1*HLOOKUP(Calculations!$E$2,'PM2.5 reduction'!$C$3:$BC$249,'PM2.5 reduction'!$BD231))","v":0.99995539579322068},{"$f":"EXP(E$4*-1*HLOOKUP(Calculations!$E$2,'NO2 reduction'!$C$3:$BC$249,'NO2 reduction'!$BD231))","v":0.99998924896088182},{"$f":"EXP(F$4*-1*HLOOKUP(Calculations!$E$2,'NO2 reduction'!$C$3:$BC$249,'NO2 reduction'!$BD231))","v":1}]
[null,"Male 5-9",{"$f":"EXP(C$4*-1*HLOOKUP(Calculations!$E$2,'PM2.5 reduction'!$C$3:$BC$249,'PM2.5 reduction'!$BD232))","v":0.99997782685239411},{"$f":"EXP(D$4*-1*HLOOKUP(Calculations!$E$2,'PM2.5 reduction'!$C$3:$BC$249,'PM2.5 reduction'!$BD232))","v":0.99995822668044276},{"$f":"EXP(E$4*-1*HLOOKUP(Calculations!$E$2,'NO2 reduction'!$C$3:$BC$249,'NO2 reduction'!$BD232))","v":0.99998985761228953},{"$f":"EXP(F$4*-1*HLOOKUP(Calculations!$E$2,'NO2 reduction'!$C$3:$BC$249,'NO2 reduction'!$BD232))","v":1}]
[null,"Male 10-15",{"$f":"EXP(C$4*-1*HLOOKUP(Calculations!$E$2,'PM2.5 reduction'!$C$3:$BC$249,'PM2.5 reduction'!$BD233))","v":0.99997846231236631},{"$f":"EXP(D$4*-1*HLOOKUP(Calculations!$E$2,'PM2.5 reduction'!$C$3:$BC$249,'PM2.5 reduction'!$BD233))","v":0.99995942385011183},{"$f":"EXP(E$4*-1*HLOOKUP(Calculations!$E$2,'NO2 reduction'!$C$3:$BC$249,'NO2 reduction'!$BD233))","v":0.99999009651326276},{"$f":"EXP(F$4*-1*HLOOKUP(Calculations!$E$2,'NO2 reduction'!$C$3:$BC$249,'NO2 reduction'!$BD233))","v":1}]
[null,"Male 16-19",{"$f":"EXP(C$4*-1*HLOOKUP(Calculations!$E$2,'PM2.5 reduction'!$C$3:$BC$249,'PM2.5 reduction'!$BD234))","v":0.99997609349508676},{"$f":"EXP(D$4*-1*HLOOKUP(Calculations!$E$2,'PM2.5 reduction'!$C$3:$BC$249,'PM2.5 reduction'!$BD234))","v":0.99995496113939752},{"$f":"EXP(E$4*-1*HLOOKUP(Calculations!$E$2,'NO2 reduction'!$C$3:$BC$249,'NO2 reduction'!$BD234))","v":0.99998939538012055},{"$f":"EXP(F$4*-1*HLOOKUP(Calculations!$E$2,'NO2 reduction'!$C$3:$BC$249,'NO2 reduction'!$BD234))","v":1}]
[null,"Male 20-24",{"$f":"EXP(C$4*-1*HLOOKUP(Calculations!$E$2,'PM2.5 reduction'!$C$3:$BC$249,'PM2.5 reduction'!$BD235))","v":0.99996979058420976},{"$f":"EXP(D$4*-1*HLOOKUP(Calculations!$E$2,'PM2.5 reduction'!$C$3:$BC$249,'PM2.5 reduction'!$BD235))","v":0.99994308687609634},{"$f":"EXP(E$4*-1*HLOOKUP(Calculations!$E$2,'NO2 reduction'!$C$3:$BC$249,'NO2 reduction'!$BD235))","v":0.99998721646250488},{"$f":"EXP(F$4*-1*HLOOKUP(Calculations!$E$2,'NO2 reduction'!$C$3:$BC$249,'NO2 reduction'!$BD235))","v":1}]
[null,"Male 25-29",{"$f":"EXP(C$4*-1*HLOOKUP(Calculations!$E$2,'PM2.5 reduction'!$C$3:$BC$249,'PM2.5 reduction'!$BD236))","v":0.99996826765135205},{"$f":"EXP(D$4*-1*HLOOKUP(Calculations!$E$2,'PM2.5 reduction'!$C$3:$BC$249,'PM2.5 reduction'!$BD236))","v":0.99994021778219},{"$f":"EXP(E$4*-1*HLOOKUP(Calculations!$E$2,'NO2 reduction'!$C$3:$BC$249,'NO2 reduction'!$BD236))","v":0.99998624950569592},{"$f":"EXP(F$4*-1*HLOOKUP(Calculations!$E$2,'NO2 reduction'!$C$3:$BC$249,'NO2 reduction'!$BD236))","v":1}]
[null,"Male 30-34",{"$f":"EXP(C$4*-1*HLOOKUP(Calculations!$E$2,'PM2.5 reduction'!$C$3:$BC$249,'PM2.5 reduction'!$BD237))","v":0.99996918733937623},{"$f":"EXP(D$4*-1*HLOOKUP(Calculations!$E$2,'PM2.5 reduction'!$C$3:$BC$249,'PM2.5 reduction'!$BD237))","v":0.99994195040657274},{"$f":"EXP(E$4*-1*HLOOKUP(Calculations!$E$2,'NO2 reduction'!$C$3:$BC$249,'NO2 reduction'!$BD237))","v":0.99998667069662739},{"$f":"EXP(F$4*-1*HLOOKUP(Calculations!$E$2,'NO2 reduction'!$C$3:$BC$249,'NO2 reduction'!$BD237))","v":1}]
[null,"Male 35-39",{"$f":"EXP(C$4*-1*HLOOKUP(Calculations!$E$2,'PM2.5 reduction'!$C$3:$BC$249,'PM2.5 reduction'!$BD238))","v":0.99997285981522022},{"$f":"EXP(D$4*-1*HLOOKUP(Calculations!$E$2,'PM2.5 reduction'!$C$3:$BC$249,'PM2.5 reduction'!$BD238))","v":0.99994886909414948},{"$f":"EXP(E$4*-1*HLOOKUP(Calculations!$E$2,'NO2 reduction'!$C$3:$BC$249,'NO2 reduction'!$BD238))","v":0.99998798510957565},{"$f":"EXP(F$4*-1*HLOOKUP(Calculations!$E$2,'NO2 reduction'!$C$3:$BC$249,'NO2 reduction'!$BD238))","v":1}]
[null,"Male 40-44",{"$f":"EXP(C$4*-1*HLOOKUP(Calculations!$E$2,'PM2.5 reduction'!$C$3:$BC$249,'PM2.5 reduction'!$BD239))","v":0.99997558349899163},{"$f":"EXP(D$4*-1*HLOOKUP(Calculations!$E$2,'PM2.5 reduction'!$C$3:$BC$249,'PM2.5 reduction'!$BD239))","v":0.99995400033834225},{"$f":"EXP(E$4*-1*HLOOKUP(Calculations!$E$2,'NO2 reduction'!$C$3:$BC$249,'NO2 reduction'!$BD239))","v":0.9999890667081387},{"$f":"EXP(F$4*-1*HLOOKUP(Calculations!$E$2,'NO2 reduction'!$C$3:$BC$249,'NO2 reduction'!$BD239))","v":1}]
[null,"Male 45-49",{"$f":"EXP(C$4*-1*HLOOKUP(Calculations!$E$2,'PM2.5 reduction'!$C$3:$BC$249,'PM2.5 reduction'!$BD240))","v":0.99997676646146227},{"$f":"EXP(D$4*-1*HLOOKUP(Calculations!$E$2,'PM2.5 reduction'!$C$3:$BC$249,'PM2.5 reduction'!$BD240))","v":0.99995622896702996},{"$f":"EXP(E$4*-1*HLOOKUP(Calculations!$E$2,'NO2 reduction'!$C$3:$BC$249,'NO2 reduction'!$BD240))","v":0.99998951974788131},{"$f":"EXP(F$4*-1*HLOOKUP(Calculations!$E$2,'NO2 reduction'!$C$3:$BC$249,'NO2 reduction'!$BD240))","v":1}]
[null,"Male 50-54",{"$f":"EXP(C$4*-1*HLOOKUP(Calculations!$E$2,'PM2.5 reduction'!$C$3:$BC$249,'PM2.5 reduction'!$BD241))","v":0.99997709594998108},{"$f":"EXP(D$4*-1*HLOOKUP(Calculations!$E$2,'PM2.5 reduction'!$C$3:$BC$249,'PM2.5 reduction'!$BD241))","v":0.99995684970359144},{"$f":"EXP(E$4*-1*HLOOKUP(Calculations!$E$2,'NO2 reduction'!$C$3:$BC$249,'NO2 reduction'!$BD241))","v":0.99998965285496177},{"$f":"EXP(F$4*-1*HLOOKUP(Calculations!$E$2,'NO2 reduction'!$C$3:$BC$249,'NO2 reduction'!$BD241))","v":1}]
[null,"Male 55-59",{"$f":"EXP(C$4*-1*HLOOKUP(Calculations!$E$2,'PM2.5 reduction'!$C$3:$BC$249,'PM2.5 reduction'!$BD242))","v":0.99997732858877308},{"$f":"EXP(D$4*-1*HLOOKUP(Calculations!$E$2,'PM2.5 reduction'!$C$3:$BC$249,'PM2.5 reduction'!$BD242))","v":0.99995728798119865},{"$f":"EXP(E$4*-1*HLOOKUP(Calculations!$E$2,'NO2 reduction'!$C$3:$BC$249,'NO2 reduction'!$BD242))","v":0.99998969751400668},{"$f":"EXP(F$4*-1*HLOOKUP(Calculations!$E$2,'NO2 reduction'!$C$3:$BC$249,'NO2 reduction'!$BD242))","v":1}]
[null,"Male 60-64",{"$f":"EXP(C$4*-1*HLOOKUP(Calculations!$E$2,'PM2.5 reduction'!$C$3:$BC$249,'PM2.5 reduction'!$BD243))","v":0.99997759272711606},{"$f":"EXP(D$4*-1*HLOOKUP(Calculations!$E$2,'PM2.5 reduction'!$C$3:$BC$249,'PM2.5 reduction'!$BD243))","v":0.9999577856021904},{"$f":"EXP(E$4*-1*HLOOKUP(Calculations!$E$2,'NO2 reduction'!$C$3:$BC$249,'NO2 reduction'!$BD243))","v":0.99998981443374946},{"$f":"EXP(F$4*-1*HLOOKUP(Calculations!$E$2,'NO2 reduction'!$C$3:$BC$249,'NO2 reduction'!$BD243))","v":1}]
[null,"Male 65-69",{"$f":"EXP(C$4*-1*HLOOKUP(Calculations!$E$2,'PM2.5 reduction'!$C$3:$BC$249,'PM2.5 reduction'!$BD244))","v":0.9999780680053556},{"$f":"EXP(D$4*-1*HLOOKUP(Calculations!$E$2,'PM2.5 reduction'!$C$3:$BC$249,'PM2.5 reduction'!$BD244))","v":0.99995868099853269},{"$f":"EXP(E$4*-1*HLOOKUP(Calculations!$E$2,'NO2 reduction'!$C$3:$BC$249,'NO2 reduction'!$BD244))","v":0.99999003176859924},{"$f":"EXP(F$4*-1*HLOOKUP(Calculations!$E$2,'NO2 reduction'!$C$3:$BC$249,'NO2 reduction'!$BD244))","v":1}]
[null,"Male 70-74",{"$f":"EXP(C$4*-1*HLOOKUP(Calculations!$E$2,'PM2.5 reduction'!$C$3:$BC$249,'PM2.5 reduction'!$BD245))","v":0.99997864700561157},{"$f":"EXP(D$4*-1*HLOOKUP(Calculations!$E$2,'PM2.5 reduction'!$C$3:$BC$249,'PM2.5 reduction'!$BD245))","v":0.99995977180158191},{"$f":"EXP(E$4*-1*HLOOKUP(Calculations!$E$2,'NO2 reduction'!$C$3:$BC$249,'NO2 reduction'!$BD245))","v":0.99999026258428436},{"$f":"EXP(F$4*-1*HLOOKUP(Calculations!$E$2,'NO2 reduction'!$C$3:$BC$249,'NO2 reduction'!$BD245))","v":1}]
[null,"Male 75-79",{"$f":"EXP(C$4*-1*HLOOKUP(Calculations!$E$2,'PM2.5 reduction'!$C$3:$BC$249,'PM2.5 reduction'!$BD246))","v":0.99997852103516727},{"$f":"EXP(D$4*-1*HLOOKUP(Calculations!$E$2,'PM2.5 reduction'!$C$3:$BC$249,'PM2.5 reduction'!$BD246))","v":0.99995953448049135},{"$f":"EXP(E$4*-1*HLOOKUP(Calculations!$E$2,'NO2 reduction'!$C$3:$BC$249,'NO2 reduction'!$BD246))","v":0.99999015119362189},{"$f":"EXP(F$4*-1*HLOOKUP(Calculations!$E$2,'NO2 reduction'!$C$3:$BC$249,'NO2 reduction'!$BD246))","v":1}]
[null,"Male 80-84",{"$f":"EXP(C$4*-1*HLOOKUP(Calculations!$E$2,'PM2.5 reduction'!$C$3:$BC$249,'PM2.5 reduction'!$BD247))","v":0.99997785343021439},{"$f":"EXP(D$4*-1*HLOOKUP(Calculations!$E$2,'PM2.5 reduction'!$C$3:$BC$249,'PM2.5 reduction'!$BD247))","v":0.99995827675149862},{"$f":"EXP(E$4*-1*HLOOKUP(Calculations!$E$2,'NO2 reduction'!$C$3:$BC$249,'NO2 reduction'!$BD247))","v":0.99998977255572563},{"$f":"EXP(F$4*-1*HLOOKUP(Calculations!$E$2,'NO2 reduction'!$C$3:$BC$249,'NO2 reduction'!$BD247))","v":1}]
[null,"Male 85-89",{"$f":"EXP(C$4*-1*HLOOKUP(Calculations!$E$2,'PM2.5 reduction'!$C$3:$BC$249,'PM2.5 reduction'!$BD248))","v":0.99997725808757021},{"$f":"EXP(D$4*-1*HLOOKUP(Calculations!$E$2,'PM2.5 reduction'!$C$3:$BC$249,'PM2.5 reduction'!$BD248))","v":0.99995715516112849},{"$f":"EXP(E$4*-1*HLOOKUP(Calculations!$E$2,'NO2 reduction'!$C$3:$BC$249,'NO2 reduction'!$BD248))","v":0.99998957897115781},{"$f":"EXP(F$4*-1*HLOOKUP(Calculations!$E$2,'NO2 reduction'!$C$3:$BC$249,'NO2 reduction'!$BD248))","v":1}]
[null,"Male 90+",{"$f":"EXP(C$4*-1*HLOOKUP(Calculations!$E$2,'PM2.5 reduction'!$C$3:$BC$249,'PM2.5 reduction'!$BD249))","v":0.99997610228456779},{"$f":"EXP(D$4*-1*HLOOKUP(Calculations!$E$2,'PM2.5 reduction'!$C$3:$BC$249,'PM2.5 reduction'!$BD249))","v":0.99995497769823938},{"$f":"EXP(E$4*-1*HLOOKUP(Calculations!$E$2,'NO2 reduction'!$C$3:$BC$249,'NO2 reduction'!$BD249))","v":0.99998900313368966},{"$f":"EXP(F$4*-1*HLOOKUP(Calculations!$E$2,'NO2 reduction'!$C$3:$BC$249,'NO2 reduction'!$BD249))","v":1}]

{"sheet":"RateRatios_PM25_mort","index":17,"n_rows":249,"n_cols":55,"rows_kept":249,"cut":false,"hidden":true,"merged":[]}
["Intervention Rate Ratios for the predicted reduction in pollutant concentration, by subgroup"]
[]
["SIMD","group","Aberdeen City Local Authority","Aberdeen City Region Deal","Aberdeenshire Local Authority","Angus Local Authority","Argyll & Bute Local Authority","Ayrshire & Arran Health Board","Borders Health Board","Clackmannanshire & Stirling IJB","Clackmannanshire Local Authority","Dumfries & Galloway Health Board","Dumfries & Galloway Local Authority","Dundee City Local Authority","East Ayrshire Local Authority","East Dunbartonshire Local Authority","East Lothian Local Authority","East Renfrewshire Local Authority","Edinburgh & SE Scotland City Region Deal","Edinburgh, City of Local Authority","Eilean Siar Local Authority","Falkirk Local Authority","Fife Health Board","Fife Local Authority","Forth Valley Health Board","Glasgow City Local Authority","Glasgow City Region Deal","Grampian Health Board","Greater Glasgow & Clyde Health Board","Highland Health Board","Highland Local Authority","Inverclyde Local Authority","Inverness & Highland City Region Deal","Lanarkshire Health Board","Lothian Health Board","Midlothian Local Authority","Moray Local Authority","North Ayrshire Local Authority","North Lanarkshire Local Authority","Orkney Health Board","Orkney Islands Local Authority","Perth & Kinross Local Authority","Renfrewshire Local Authority","Scotland","Scottish Borders Local Authority","Shetland Health Board","Shetland Islands Local Authority","South Ayrshire Local Authority","South Lanarkshire Local Authority","Stirling Local Authority","Tay Cities Region Deal ","Tayside Health Board","West Dunbartonshire Local Authority","West Lothian Local Authority","Western Isles Health Board"]
["SIMD","coefficient per 1 ug.m-3 increase",6.015392281974714E-3,6.015392281974714E-3,6.015392281974714E-3,6.015392281974714E-3,6.015392281974714E-3,6.015392281974714E-3,6.015392281974714E-3,6.015392281974714E-3,6.015392281974714E-3,6.015392281974714E-3,6.015392281974714E-3,6.015392281974714E-3,6.015392281974714E-3,6.015392281974714E-3,6.015392281974714E-3,6.015392281974714E-3,6.015392281974714E-3,6.015392281974714E-3,6.015392281974714E-3,6.015392281974714E-3,6.015392281974714E-3,6.015392281974714E-3,6.015392281974714E-3,6.015392281974714E-3,6.015392281974714E-3,6.015392281974714E-3,6.015392281974714E-3,6.015392281974714E-3,6.015392281974714E-3,6.015392281974714E-3,6.015392281974714E-3,6.015392281974714E-3,6.015392281974714E-3,6.015392281974714E-3,6.015392281974714E-3,6.015392281974714E-3,6.015392281974714E-3,6.015392281974714E-3,6.015392281974714E-3,6.015392281974714E-3,6.015392281974714E-3,6.015392281974714E-3,6.015392281974714E-3,6.015392281974714E-3,6.015392281974714E-3,6.015392281974714E-3,6.015392281974714E-3,6.015392281974714E-3,6.015392281974714E-3,6.015392281974714E-3,6.015392281974714E-3,6.015392281974714E-3,6.015392281974714E-3]
["All quintiles","16+ Males and Females"]
["Q1 and Q2","16+ Males and Females"]
["SIMD Q1 (most deprived)","16+ Males and Females"]
["SIMD Q2"]
["SIMD Q3"]
["SIMD Q4"]
["SIMD Q5 (least deprived)"]
["SIMD Q1 (most deprived)","16+ Females"]
["SIMD Q2"]
["SIMD Q3"]
["SIMD Q4"]
["SIMD Q5 (least deprived)"]
["SIMD Q1 (most deprived)","16+ Males"]
["SIMD Q2"]
["SIMD Q3"]
["SIMD Q4"]
["SIMD Q5 (least deprived)"]
["All quintiles","Female 0-4"]
[null,"Female 5-9"]
[null,"Female 10-15"]
[null,"Female 16-19"]
[null,"Female 20-24"]
[null,"Female 25-29"]
[null,"Female 30-34"]
[null,"Female 35-39"]
[null,"Female 40-44"]
[null,"Female 45-49"]
[null,"Female 50-54"]
[null,"Female 55-59"]
[null,"Female 60-64"]
[null,"Female 65-69"]
[null,"Female 70-74"]
[null,"Female 75-79"]
[null,"Female 80-84"]
[null,"Female 85-89"]
[null,"Female 90+"]
[null,"Male 0-4"]
[null,"Male 5-9"]
[null,"Male 10-15"]
[null,"Male 16-19"]
[null,"Male 20-24"]
[null,"Male 25-29"]
[null,"Male 30-34"]
[null,"Male 35-39"]
[null,"Male 40-44"]
[null,"Male 45-49"]
[null,"Male 50-54"]
[null,"Male 55-59"]
[null,"Male 60-64"]
[null,"Male 65-69"]
[null,"Male 70-74"]
[null,"Male 75-79"]
[null,"Male 80-84"]
[null,"Male 85-89"]
[null,"Male 90+"]
["SIMD Q1 (most deprived)","Female 0-4",{"$f":"VALUE(FIXED(EXP(C$4*-1*'PM2.5 reduction'!C60),9))","v":0.99996613099999998},{"$f":"VALUE(FIXED(EXP(D$4*-1*'PM2.5 reduction'!D60),9))","v":0.99996828299999996},{"$f":"VALUE(FIXED(EXP(E$4*-1*'PM2.5 reduction'!E60),9))","v":0.99998729099999994},{"$f":"VALUE(FIXED(EXP(F$4*-1*'PM2.5 reduction'!F60),9))","v":0.99999233399999998},{"$f":"VALUE(FIXED(EXP(G$4*-1*'PM2.5 reduction'!G60),9))","v":0.99999472},{"$f":"VALUE(FIXED(EXP(H$4*-1*'PM2.5 reduction'!H60),9))","v":0.99998829499999997},{"$f":"VALUE(FIXED(EXP(I$4*-1*'PM2.5 reduction'!I60),9))","v":0.99999483},{"$f":"VALUE(FIXED(EXP(J$4*-1*'PM2.5 reduction'!J60),9))","v":0.99998452599999998},{"$f":"VALUE(FIXED(EXP(K$4*-1*'PM2.5 reduction'!K60),9))","v":0.99998305200000004},{"$f":"VALUE(FIXED(EXP(L$4*-1*'PM2.5 reduction'!L60),9))","v":0.99999402900000001},{"$f":"VALUE(FIXED(EXP(M$4*-1*'PM2.5 reduction'!M60),9))","v":0.99999402900000001},{"$f":"VALUE(FIXED(EXP(N$4*-1*'PM2.5 reduction'!N60),9))","v":0.99997100299999997},{"$f":"VALUE(FIXED(EXP(O$4*-1*'PM2.5 reduction'!O60),9))","v":0.99998789300000002},{"$f":"VALUE(FIXED(EXP(P$4*-1*'PM2.5 reduction'!P60),9))","v":0.99997628800000005},{"$f":"VALUE(FIXED(EXP(Q$4*-1*'PM2.5 reduction'!Q60),9))","v":0.99998981399999998},{"$f":"VALUE(FIXED(EXP(R$4*-1*'PM2.5 reduction'!R60),9))","v":0.999979752},{"$f":"VALUE(FIXED(EXP(S$4*-1*'PM2.5 reduction'!S60),9))","v":0.99997796299999997},{"$f":"VALUE(FIXED(EXP(T$4*-1*'PM2.5 reduction'!T60),9))","v":0.99996760699999998},{"$f":"VALUE(FIXED(EXP(U$4*-1*'PM2.5 reduction'!U60),9))","v":1},{"$f":"VALUE(FIXED(EXP(V$4*-1*'PM2.5 reduction'!V60),9))","v":0.99997712000000005},{"$f":"VALUE(FIXED(EXP(W$4*-1*'PM2.5 reduction'!W60),9))","v":0.99998489400000001},{"$f":"VALUE(FIXED(EXP(X$4*-1*'PM2.5 reduction'!X60),9))","v":0.99998489400000001},{"$f":"VALUE(FIXED(EXP(Y$4*-1*'PM2.5 reduction'!Y60),9))","v":0.99998088600000001},{"$f":"VALUE(FIXED(EXP(Z$4*-1*'PM2.5 reduction'!Z60),9))","v":0.99996728400000001},{"$f":"VALUE(FIXED(EXP(AA$4*-1*'PM2.5 reduction'!AA60),9))","v":0.99997261699999995},{"$f":"VALUE(FIXED(EXP(AB$4*-1*'PM2.5 reduction'!AB60),9))","v":0.99996928100000004},{"$f":"VALUE(FIXED(EXP(AC$4*-1*'PM2.5 reduction'!AC60),9))","v":0.99997070899999996},{"$f":"VALUE(FIXED(EXP(AD$4*-1*'PM2.5 reduction'!AD60),9))","v":0.99999433199999999},{"$f":"VALUE(FIXED(EXP(AE$4*-1*'PM2.5 reduction'!AE60),9))","v":0.999994139},{"$f":"VALUE(FIXED(EXP(AF$4*-1*'PM2.5 reduction'!AF60),9))","v":0.99998334799999999},{"$f":"VALUE(FIXED(EXP(AG$4*-1*'PM2.5 reduction'!AG60),9))","v":0.999994139},{"$f":"VALUE(FIXED(EXP(AH$4*-1*'PM2.5 reduction'!AH60),9))","v":0.99997739799999996},{"$f":"VALUE(FIXED(EXP(AI$4*-1*'PM2.5 reduction'!AI60),9))","v":0.99997309099999998},{"$f":"VALUE(FIXED(EXP(AJ$4*-1*'PM2.5 reduction'!AJ60),9))","v":0.99998445000000002},{"$f":"VALUE(FIXED(EXP(AK$4*-1*'PM2.5 reduction'!AK60),9))","v":0.99999053199999999},{"$f":"VALUE(FIXED(EXP(AL$4*-1*'PM2.5 reduction'!AL60),9))","v":0.99998910299999999},{"$f":"VALUE(FIXED(EXP(AM$4*-1*'PM2.5 reduction'!AM60),9))","v":0.99997573200000001},{"$f":"VALUE(FIXED(EXP(AN$4*-1*'PM2.5 reduction'!AN60),9))","v":1},{"$f":"VALUE(FIXED(EXP(AO$4*-1*'PM2.5 reduction'!AO60),9))","v":1},{"$f":"VALUE(FIXED(EXP(AP$4*-1*'PM2.5 reduction'!AP60),9))","v":0.99998333800000005},{"$f":"VALUE(FIXED(EXP(AQ$4*-1*'PM2.5 reduction'!AQ60),9))","v":0.99997668699999998},{"$f":"VALUE(FIXED(EXP(AR$4*-1*'PM2.5 reduction'!AR60),9))","v":0.999976058},{"$f":"VALUE(FIXED(EXP(AS$4*-1*'PM2.5 reduction'!AS60),9))","v":0.99999483},{"$f":"VALUE(FIXED(EXP(AT$4*-1*'PM2.5 reduction'!AT60),9))","v":1},{"$f":"VALUE(FIXED(EXP(AU$4*-1*'PM2.5 reduction'!AU60),9))","v":1},{"$f":"VALUE(FIXED(EXP(AV$4*-1*'PM2.5 reduction'!AV60),9))","v":0.99998689299999999},{"$f":"VALUE(FIXED(EXP(AW$4*-1*'PM2.5 reduction'!AW60),9))","v":0.99998009200000004},{"$f":"VALUE(FIXED(EXP(AX$4*-1*'PM2.5 reduction'!AX60),9))","v":0.99998642900000001},{"$f":"VALUE(FIXED(EXP(AY$4*-1*'PM2.5 reduction'!AY60),9))","v":0.99997953500000003},{"$f":"VALUE(FIXED(EXP(AZ$4*-1*'PM2.5 reduction'!AZ60),9))","v":0.99997457000000001},{"$f":"VALUE(FIXED(EXP(BA$4*-1*'PM2.5 reduction'!BA60),9))","v":0.99997998799999999},{"$f":"VALUE(FIXED(EXP(BB$4*-1*'PM2.5 reduction'!BB60),9))","v":0.99998222400000003},{"$f":"VALUE(FIXED(EXP(BC$4*-1*'PM2.5 reduction'!BC60),9))","v":1}]
[null,"Female 5-9",{"$f":"VALUE(FIXED(EXP(C$4*-1*'PM2.5 reduction'!C61),9))","v":0.99996561799999995},{"$f":"VALUE(FIXED(EXP(D$4*-1*'PM2.5 reduction'!D61),9))","v":0.99996852899999999},{"$f":"VALUE(FIXED(EXP(E$4*-1*'PM2.5 reduction'!E61),9))","v":0.999987607},{"$f":"VALUE(FIXED(EXP(F$4*-1*'PM2.5 reduction'!F61),9))","v":0.999992141},{"$f":"VALUE(FIXED(EXP(G$4*-1*'PM2.5 reduction'!G61),9))","v":0.99999491500000004},{"$f":"VALUE(FIXED(EXP(H$4*-1*'PM2.5 reduction'!H61),9))","v":0.99998849099999998},{"$f":"VALUE(FIXED(EXP(I$4*-1*'PM2.5 reduction'!I61),9))","v":0.99999476499999995},{"$f":"VALUE(FIXED(EXP(J$4*-1*'PM2.5 reduction'!J61),9))","v":0.99998491599999995},{"$f":"VALUE(FIXED(EXP(K$4*-1*'PM2.5 reduction'!K61),9))","v":0.99998349799999997},{"$f":"VALUE(FIXED(EXP(L$4*-1*'PM2.5 reduction'!L61),9))","v":0.99999400100000002},{"$f":"VALUE(FIXED(EXP(M$4*-1*'PM2.5 reduction'!M61),9))","v":0.99999400100000002},{"$f":"VALUE(FIXED(EXP(N$4*-1*'PM2.5 reduction'!N61),9))","v":0.99997191100000005},{"$f":"VALUE(FIXED(EXP(O$4*-1*'PM2.5 reduction'!O61),9))","v":0.99998780899999995},{"$f":"VALUE(FIXED(EXP(P$4*-1*'PM2.5 reduction'!P61),9))","v":0.99997582900000004},{"$f":"VALUE(FIXED(EXP(Q$4*-1*'PM2.5 reduction'!Q61),9))","v":0.99999002199999998},{"$f":"VALUE(FIXED(EXP(R$4*-1*'PM2.5 reduction'!R61),9))","v":0.99998069199999995},{"$f":"VALUE(FIXED(EXP(S$4*-1*'PM2.5 reduction'!S61),9))","v":0.99997831100000001},{"$f":"VALUE(FIXED(EXP(T$4*-1*'PM2.5 reduction'!T61),9))","v":0.99996821999999996},{"$f":"VALUE(FIXED(EXP(U$4*-1*'PM2.5 reduction'!U61),9))","v":1},{"$f":"VALUE(FIXED(EXP(V$4*-1*'PM2.5 reduction'!V61),9))","v":0.99997707400000002},{"$f":"VALUE(FIXED(EXP(W$4*-1*'PM2.5 reduction'!W61),9))","v":0.99998522999999995},{"$f":"VALUE(FIXED(EXP(X$4*-1*'PM2.5 reduction'!X61),9))","v":0.99998522999999995},{"$f":"VALUE(FIXED(EXP(Y$4*-1*'PM2.5 reduction'!Y61),9))","v":0.99998094000000004},{"$f":"VALUE(FIXED(EXP(Z$4*-1*'PM2.5 reduction'!Z61),9))","v":0.99996783099999997},{"$f":"VALUE(FIXED(EXP(AA$4*-1*'PM2.5 reduction'!AA61),9))","v":0.99997321299999997},{"$f":"VALUE(FIXED(EXP(AB$4*-1*'PM2.5 reduction'!AB61),9))","v":0.99996945999999998},{"$f":"VALUE(FIXED(EXP(AC$4*-1*'PM2.5 reduction'!AC61),9))","v":0.99997144800000004},{"$f":"VALUE(FIXED(EXP(AD$4*-1*'PM2.5 reduction'!AD61),9))","v":0.99999437099999999},{"$f":"VALUE(FIXED(EXP(AE$4*-1*'PM2.5 reduction'!AE61),9))","v":0.99999402400000004},{"$f":"VALUE(FIXED(EXP(AF$4*-1*'PM2.5 reduction'!AF61),9))","v":0.99998406299999998},{"$f":"VALUE(FIXED(EXP(AG$4*-1*'PM2.5 reduction'!AG61),9))","v":0.99999402400000004},{"$f":"VALUE(FIXED(EXP(AH$4*-1*'PM2.5 reduction'!AH61),9))","v":0.99997728799999996},{"$f":"VALUE(FIXED(EXP(AI$4*-1*'PM2.5 reduction'!AI61),9))","v":0.99997360599999996},{"$f":"VALUE(FIXED(EXP(AJ$4*-1*'PM2.5 reduction'!AJ61),9))","v":0.99998510600000001},{"$f":"VALUE(FIXED(EXP(AK$4*-1*'PM2.5 reduction'!AK61),9))","v":0.99999053199999999},{"$f":"VALUE(FIXED(EXP(AL$4*-1*'PM2.5 reduction'!AL61),9))","v":0.99998949999999998},{"$f":"VALUE(FIXED(EXP(AM$4*-1*'PM2.5 reduction'!AM61),9))","v":0.99997545499999996},{"$f":"VALUE(FIXED(EXP(AN$4*-1*'PM2.5 reduction'!AN61),9))","v":1},{"$f":"VALUE(FIXED(EXP(AO$4*-1*'PM2.5 reduction'!AO61),9))","v":1},{"$f":"VALUE(FIXED(EXP(AP$4*-1*'PM2.5 reduction'!AP61),9))","v":0.99998443800000003},{"$f":"VALUE(FIXED(EXP(AQ$4*-1*'PM2.5 reduction'!AQ61),9))","v":0.999976847},{"$f":"VALUE(FIXED(EXP(AR$4*-1*'PM2.5 reduction'!AR61),9))","v":0.99997665199999997},{"$f":"VALUE(FIXED(EXP(AS$4*-1*'PM2.5 reduction'!AS61),9))","v":0.99999476499999995},{"$f":"VALUE(FIXED(EXP(AT$4*-1*'PM2.5 reduction'!AT61),9))","v":1},{"$f":"VALUE(FIXED(EXP(AU$4*-1*'PM2.5 reduction'!AU61),9))","v":1},{"$f":"VALUE(FIXED(EXP(AV$4*-1*'PM2.5 reduction'!AV61),9))","v":0.99998688400000002},{"$f":"VALUE(FIXED(EXP(AW$4*-1*'PM2.5 reduction'!AW61),9))","v":0.99998061900000002},{"$f":"VALUE(FIXED(EXP(AX$4*-1*'PM2.5 reduction'!AX61),9))","v":0.99998663499999996},{"$f":"VALUE(FIXED(EXP(AY$4*-1*'PM2.5 reduction'!AY61),9))","v":0.99998040799999999},{"$f":"VALUE(FIXED(EXP(AZ$4*-1*'PM2.5 reduction'!AZ61),9))","v":0.99997571900000004},{"$f":"VALUE(FIXED(EXP(BA$4*-1*'PM2.5 reduction'!BA61),9))","v":0.99998066399999996},{"$f":"VALUE(FIXED(EXP(BB$4*-1*'PM2.5 reduction'!BB61),9))","v":0.99998249500000003},{"$f":"VALUE(FIXED(EXP(BC$4*-1*'PM2.5 reduction'!BC61),9))","v":1}]
[null,"Female 10-15",{"$f":"VALUE(FIXED(EXP(C$4*-1*'PM2.5 reduction'!C62),9))","v":0.99996748499999999},{"$f":"VALUE(FIXED(EXP(D$4*-1*'PM2.5 reduction'!D62),9))","v":0.99996893499999995},{"$f":"VALUE(FIXED(EXP(E$4*-1*'PM2.5 reduction'!E62),9))","v":0.999987556},{"$f":"VALUE(FIXED(EXP(F$4*-1*'PM2.5 reduction'!F62),9))","v":0.99999233799999998},{"$f":"VALUE(FIXED(EXP(G$4*-1*'PM2.5 reduction'!G62),9))","v":0.999994516},{"$f":"VALUE(FIXED(EXP(H$4*-1*'PM2.5 reduction'!H62),9))","v":0.99998842499999996},{"$f":"VALUE(FIXED(EXP(I$4*-1*'PM2.5 reduction'!I62),9))","v":0.99999469699999999},{"$f":"VALUE(FIXED(EXP(J$4*-1*'PM2.5 reduction'!J62),9))","v":0.99998523399999995},{"$f":"VALUE(FIXED(EXP(K$4*-1*'PM2.5 reduction'!K62),9))","v":0.99998385300000003},{"$f":"VALUE(FIXED(EXP(L$4*-1*'PM2.5 reduction'!L62),9))","v":0.99999419199999995},{"$f":"VALUE(FIXED(EXP(M$4*-1*'PM2.5 reduction'!M62),9))","v":0.99999419199999995},{"$f":"VALUE(FIXED(EXP(N$4*-1*'PM2.5 reduction'!N62),9))","v":0.99997119300000004},{"$f":"VALUE(FIXED(EXP(O$4*-1*'PM2.5 reduction'!O62),9))","v":0.999987442},{"$f":"VALUE(FIXED(EXP(P$4*-1*'PM2.5 reduction'!P62),9))","v":0.99997489500000003},{"$f":"VALUE(FIXED(EXP(Q$4*-1*'PM2.5 reduction'!Q62),9))","v":0.99998991800000003},{"$f":"VALUE(FIXED(EXP(R$4*-1*'PM2.5 reduction'!R62),9))","v":0.99998081800000005},{"$f":"VALUE(FIXED(EXP(S$4*-1*'PM2.5 reduction'!S62),9))","v":0.99997888599999996},{"$f":"VALUE(FIXED(EXP(T$4*-1*'PM2.5 reduction'!T62),9))","v":0.99996874599999996},{"$f":"VALUE(FIXED(EXP(U$4*-1*'PM2.5 reduction'!U62),9))","v":1},{"$f":"VALUE(FIXED(EXP(V$4*-1*'PM2.5 reduction'!V62),9))","v":0.999977538},{"$f":"VALUE(FIXED(EXP(W$4*-1*'PM2.5 reduction'!W62),9))","v":0.99998546600000005},{"$f":"VALUE(FIXED(EXP(X$4*-1*'PM2.5 reduction'!X62),9))","v":0.99998546600000005},{"$f":"VALUE(FIXED(EXP(Y$4*-1*'PM2.5 reduction'!Y62),9))","v":0.99998155200000005},{"$f":"VALUE(FIXED(EXP(Z$4*-1*'PM2.5 reduction'!Z62),9))","v":0.99996837699999996},{"$f":"VALUE(FIXED(EXP(AA$4*-1*'PM2.5 reduction'!AA62),9))","v":0.999973844},{"$f":"VALUE(FIXED(EXP(AB$4*-1*'PM2.5 reduction'!AB62),9))","v":0.99997006399999999},{"$f":"VALUE(FIXED(EXP(AC$4*-1*'PM2.5 reduction'!AC62),9))","v":0.99997214199999995},{"$f":"VALUE(FIXED(EXP(AD$4*-1*'PM2.5 reduction'!AD62),9))","v":0.99999429200000001},{"$f":"VALUE(FIXED(EXP(AE$4*-1*'PM2.5 reduction'!AE62),9))","v":0.99999417199999996},{"$f":"VALUE(FIXED(EXP(AF$4*-1*'PM2.5 reduction'!AF62),9))","v":0.99998435100000005},{"$f":"VALUE(FIXED(EXP(AG$4*-1*'PM2.5 reduction'!AG62),9))","v":0.99999417199999996},{"$f":"VALUE(FIXED(EXP(AH$4*-1*'PM2.5 reduction'!AH62),9))","v":0.99997744200000005},{"$f":"VALUE(FIXED(EXP(AI$4*-1*'PM2.5 reduction'!AI62),9))","v":0.99997438599999999},{"$f":"VALUE(FIXED(EXP(AJ$4*-1*'PM2.5 reduction'!AJ62),9))","v":0.99998557899999996},{"$f":"VALUE(FIXED(EXP(AK$4*-1*'PM2.5 reduction'!AK62),9))","v":0.99999053199999999},{"$f":"VALUE(FIXED(EXP(AL$4*-1*'PM2.5 reduction'!AL62),9))","v":0.99998943200000001},{"$f":"VALUE(FIXED(EXP(AM$4*-1*'PM2.5 reduction'!AM62),9))","v":0.99997565499999996},{"$f":"VALUE(FIXED(EXP(AN$4*-1*'PM2.5 reduction'!AN62),9))","v":1},{"$f":"VALUE(FIXED(EXP(AO$4*-1*'PM2.5 reduction'!AO62),9))","v":1},{"$f":"VALUE(FIXED(EXP(AP$4*-1*'PM2.5 reduction'!AP62),9))","v":0.99998487400000002},{"$f":"VALUE(FIXED(EXP(AQ$4*-1*'PM2.5 reduction'!AQ62),9))","v":0.99997768300000001},{"$f":"VALUE(FIXED(EXP(AR$4*-1*'PM2.5 reduction'!AR62),9))","v":0.99997723999999999},{"$f":"VALUE(FIXED(EXP(AS$4*-1*'PM2.5 reduction'!AS62),9))","v":0.99999469699999999},{"$f":"VALUE(FIXED(EXP(AT$4*-1*'PM2.5 reduction'!AT62),9))","v":1},{"$f":"VALUE(FIXED(EXP(AU$4*-1*'PM2.5 reduction'!AU62),9))","v":1},{"$f":"VALUE(FIXED(EXP(AV$4*-1*'PM2.5 reduction'!AV62),9))","v":0.999987293},{"$f":"VALUE(FIXED(EXP(AW$4*-1*'PM2.5 reduction'!AW62),9))","v":0.999980541},{"$f":"VALUE(FIXED(EXP(AX$4*-1*'PM2.5 reduction'!AX62),9))","v":0.99998670000000001},{"$f":"VALUE(FIXED(EXP(AY$4*-1*'PM2.5 reduction'!AY62),9))","v":0.99998032699999995},{"$f":"VALUE(FIXED(EXP(AZ$4*-1*'PM2.5 reduction'!AZ62),9))","v":0.99997547399999998},{"$f":"VALUE(FIXED(EXP(BA$4*-1*'PM2.5 reduction'!BA62),9))","v":0.99998067899999998},{"$f":"VALUE(FIXED(EXP(BB$4*-1*'PM2.5 reduction'!BB62),9))","v":0.99998250700000002},{"$f":"VALUE(FIXED(EXP(BC$4*-1*'PM2.5 reduction'!BC62),9))","v":1}]
[null,"Female 16-19",{"$f":"VALUE(FIXED(EXP(C$4*-1*'PM2.5 reduction'!C63),9))","v":0.99996641399999997},{"$f":"VALUE(FIXED(EXP(D$4*-1*'PM2.5 reduction'!D63),9))","v":0.99996901900000001},{"$f":"VALUE(FIXED(EXP(E$4*-1*'PM2.5 reduction'!E63),9))","v":0.999987929},{"$f":"VALUE(FIXED(EXP(F$4*-1*'PM2.5 reduction'!F63),9))","v":0.99999220899999997},{"$f":"VALUE(FIXED(EXP(G$4*-1*'PM2.5 reduction'!G63),9))","v":0.99999485099999996},{"$f":"VALUE(FIXED(EXP(H$4*-1*'PM2.5 reduction'!H63),9))","v":0.99998860999999994},{"$f":"VALUE(FIXED(EXP(I$4*-1*'PM2.5 reduction'!I63),9))","v":0.99999455999999998},{"$f":"VALUE(FIXED(EXP(J$4*-1*'PM2.5 reduction'!J63),9))","v":0.99998437100000004},{"$f":"VALUE(FIXED(EXP(K$4*-1*'PM2.5 reduction'!K63),9))","v":0.99998338799999997},{"$f":"VALUE(FIXED(EXP(L$4*-1*'PM2.5 reduction'!L63),9))","v":0.99999411000000005},{"$f":"VALUE(FIXED(EXP(M$4*-1*'PM2.5 reduction'!M63),9))","v":0.99999411000000005},{"$f":"VALUE(FIXED(EXP(N$4*-1*'PM2.5 reduction'!N63),9))","v":0.999970209},{"$f":"VALUE(FIXED(EXP(O$4*-1*'PM2.5 reduction'!O63),9))","v":0.99998798200000005},{"$f":"VALUE(FIXED(EXP(P$4*-1*'PM2.5 reduction'!P63),9))","v":0.99997557000000004},{"$f":"VALUE(FIXED(EXP(Q$4*-1*'PM2.5 reduction'!Q63),9))","v":0.99999005600000002},{"$f":"VALUE(FIXED(EXP(R$4*-1*'PM2.5 reduction'!R63),9))","v":0.99998011200000003},{"$f":"VALUE(FIXED(EXP(S$4*-1*'PM2.5 reduction'!S63),9))","v":0.99997877199999996},{"$f":"VALUE(FIXED(EXP(T$4*-1*'PM2.5 reduction'!T63),9))","v":0.99996776200000004},{"$f":"VALUE(FIXED(EXP(U$4*-1*'PM2.5 reduction'!U63),9))","v":1},{"$f":"VALUE(FIXED(EXP(V$4*-1*'PM2.5 reduction'!V63),9))","v":0.999976949},{"$f":"VALUE(FIXED(EXP(W$4*-1*'PM2.5 reduction'!W63),9))","v":0.99998569100000001},{"$f":"VALUE(FIXED(EXP(X$4*-1*'PM2.5 reduction'!X63),9))","v":0.99998569100000001},{"$f":"VALUE(FIXED(EXP(Y$4*-1*'PM2.5 reduction'!Y63),9))","v":0.99998096599999997},{"$f":"VALUE(FIXED(EXP(Z$4*-1*'PM2.5 reduction'!Z63),9))","v":0.99996640000000003},{"$f":"VALUE(FIXED(EXP(AA$4*-1*'PM2.5 reduction'!AA63),9))","v":0.999972639},{"$f":"VALUE(FIXED(EXP(AB$4*-1*'PM2.5 reduction'!AB63),9))","v":0.99996988799999997},{"$f":"VALUE(FIXED(EXP(AC$4*-1*'PM2.5 reduction'!AC63),9))","v":0.99997050899999995},{"$f":"VALUE(FIXED(EXP(AD$4*-1*'PM2.5 reduction'!AD63),9))","v":0.99999437199999996},{"$f":"VALUE(FIXED(EXP(AE$4*-1*'PM2.5 reduction'!AE63),9))","v":0.99999411100000002},{"$f":"VALUE(FIXED(EXP(AF$4*-1*'PM2.5 reduction'!AF63),9))","v":0.99998438199999995},{"$f":"VALUE(FIXED(EXP(AG$4*-1*'PM2.5 reduction'!AG63),9))","v":0.99999411100000002},{"$f":"VALUE(FIXED(EXP(AH$4*-1*'PM2.5 reduction'!AH63),9))","v":0.99997719200000001},{"$f":"VALUE(FIXED(EXP(AI$4*-1*'PM2.5 reduction'!AI63),9))","v":0.99997363299999997},{"$f":"VALUE(FIXED(EXP(AJ$4*-1*'PM2.5 reduction'!AJ63),9))","v":0.99998553199999995},{"$f":"VALUE(FIXED(EXP(AK$4*-1*'PM2.5 reduction'!AK63),9))","v":0.99999053199999999},{"$f":"VALUE(FIXED(EXP(AL$4*-1*'PM2.5 reduction'!AL63),9))","v":0.99998956699999997},{"$f":"VALUE(FIXED(EXP(AM$4*-1*'PM2.5 reduction'!AM63),9))","v":0.99997542100000003},{"$f":"VALUE(FIXED(EXP(AN$4*-1*'PM2.5 reduction'!AN63),9))","v":1},{"$f":"VALUE(FIXED(EXP(AO$4*-1*'PM2.5 reduction'!AO63),9))","v":1},{"$f":"VALUE(FIXED(EXP(AP$4*-1*'PM2.5 reduction'!AP63),9))","v":0.999983599},{"$f":"VALUE(FIXED(EXP(AQ$4*-1*'PM2.5 reduction'!AQ63),9))","v":0.99997659999999999},{"$f":"VALUE(FIXED(EXP(AR$4*-1*'PM2.5 reduction'!AR63),9))","v":0.99997643199999997},{"$f":"VALUE(FIXED(EXP(AS$4*-1*'PM2.5 reduction'!AS63),9))","v":0.99999455999999998},{"$f":"VALUE(FIXED(EXP(AT$4*-1*'PM2.5 reduction'!AT63),9))","v":1},{"$f":"VALUE(FIXED(EXP(AU$4*-1*'PM2.5 reduction'!AU63),9))","v":1},{"$f":"VALUE(FIXED(EXP(AV$4*-1*'PM2.5 reduction'!AV63),9))","v":0.999987089},{"$f":"VALUE(FIXED(EXP(AW$4*-1*'PM2.5 reduction'!AW63),9))","v":0.99998024200000002},{"$f":"VALUE(FIXED(EXP(AX$4*-1*'PM2.5 reduction'!AX63),9))","v":0.99998523900000003},{"$f":"VALUE(FIXED(EXP(AY$4*-1*'PM2.5 reduction'!AY63),9))","v":0.99997978499999995},{"$f":"VALUE(FIXED(EXP(AZ$4*-1*'PM2.5 reduction'!AZ63),9))","v":0.99997433400000002},{"$f":"VALUE(FIXED(EXP(BA$4*-1*'PM2.5 reduction'!BA63),9))","v":0.99998042399999998},{"$f":"VALUE(FIXED(EXP(BB$4*-1*'PM2.5 reduction'!BB63),9))","v":0.99998200900000001},{"$f":"VALUE(FIXED(EXP(BC$4*-1*'PM2.5 reduction'!BC63),9))","v":1}]
[null,"Female 20-24",{"$f":"VALUE(FIXED(EXP(C$4*-1*'PM2.5 reduction'!C64),9))","v":0.99996450800000003},{"$f":"VALUE(FIXED(EXP(D$4*-1*'PM2.5 reduction'!D64),9))","v":0.99996676399999995},{"$f":"VALUE(FIXED(EXP(E$4*-1*'PM2.5 reduction'!E64),9))","v":0.99998706999999998},{"$f":"VALUE(FIXED(EXP(F$4*-1*'PM2.5 reduction'!F64),9))","v":0.99999227400000001},{"$f":"VALUE(FIXED(EXP(G$4*-1*'PM2.5 reduction'!G64),9))","v":0.99999464299999996},{"$f":"VALUE(FIXED(EXP(H$4*-1*'PM2.5 reduction'!H64),9))","v":0.999988023},{"$f":"VALUE(FIXED(EXP(I$4*-1*'PM2.5 reduction'!I64),9))","v":0.99999460399999995},{"$f":"VALUE(FIXED(EXP(J$4*-1*'PM2.5 reduction'!J64),9))","v":0.99998302299999997},{"$f":"VALUE(FIXED(EXP(K$4*-1*'PM2.5 reduction'!K64),9))","v":0.99998352099999999},{"$f":"VALUE(FIXED(EXP(L$4*-1*'PM2.5 reduction'!L64),9))","v":0.99999420000000006},{"$f":"VALUE(FIXED(EXP(M$4*-1*'PM2.5 reduction'!M64),9))","v":0.99999420000000006},{"$f":"VALUE(FIXED(EXP(N$4*-1*'PM2.5 reduction'!N64),9))","v":0.999966719},{"$f":"VALUE(FIXED(EXP(O$4*-1*'PM2.5 reduction'!O64),9))","v":0.99998736499999996},{"$f":"VALUE(FIXED(EXP(P$4*-1*'PM2.5 reduction'!P64),9))","v":0.99997657799999995},{"$f":"VALUE(FIXED(EXP(Q$4*-1*'PM2.5 reduction'!Q64),9))","v":0.99998998699999997},{"$f":"VALUE(FIXED(EXP(R$4*-1*'PM2.5 reduction'!R64),9))","v":0.99997991900000005},{"$f":"VALUE(FIXED(EXP(S$4*-1*'PM2.5 reduction'!S64),9))","v":0.99997702099999997},{"$f":"VALUE(FIXED(EXP(T$4*-1*'PM2.5 reduction'!T64),9))","v":0.999965891},{"$f":"VALUE(FIXED(EXP(U$4*-1*'PM2.5 reduction'!U64),9))","v":1},{"$f":"VALUE(FIXED(EXP(V$4*-1*'PM2.5 reduction'!V64),9))","v":0.99997694000000004},{"$f":"VALUE(FIXED(EXP(W$4*-1*'PM2.5 reduction'!W64),9))","v":0.99998517200000003},{"$f":"VALUE(FIXED(EXP(X$4*-1*'PM2.5 reduction'!X64),9))","v":0.99998517200000003},{"$f":"VALUE(FIXED(EXP(Y$4*-1*'PM2.5 reduction'!Y64),9))","v":0.99998019599999999},{"$f":"VALUE(FIXED(EXP(Z$4*-1*'PM2.5 reduction'!Z64),9))","v":0.99996491799999998},{"$f":"VALUE(FIXED(EXP(AA$4*-1*'PM2.5 reduction'!AA64),9))","v":0.99997115199999997},{"$f":"VALUE(FIXED(EXP(AB$4*-1*'PM2.5 reduction'!AB64),9))","v":0.999967838},{"$f":"VALUE(FIXED(EXP(AC$4*-1*'PM2.5 reduction'!AC64),9))","v":0.99996896000000002},{"$f":"VALUE(FIXED(EXP(AD$4*-1*'PM2.5 reduction'!AD64),9))","v":0.99999431299999997},{"$f":"VALUE(FIXED(EXP(AE$4*-1*'PM2.5 reduction'!AE64),9))","v":0.99999413599999998},{"$f":"VALUE(FIXED(EXP(AF$4*-1*'PM2.5 reduction'!AF64),9))","v":0.99998322100000003},{"$f":"VALUE(FIXED(EXP(AG$4*-1*'PM2.5 reduction'!AG64),9))","v":0.99999413599999998},{"$f":"VALUE(FIXED(EXP(AH$4*-1*'PM2.5 reduction'!AH64),9))","v":0.99997693899999995},{"$f":"VALUE(FIXED(EXP(AI$4*-1*'PM2.5 reduction'!AI64),9))","v":0.99997207099999996},{"$f":"VALUE(FIXED(EXP(AJ$4*-1*'PM2.5 reduction'!AJ64),9))","v":0.999984922},{"$f":"VALUE(FIXED(EXP(AK$4*-1*'PM2.5 reduction'!AK64),9))","v":0.99999053199999999},{"$f":"VALUE(FIXED(EXP(AL$4*-1*'PM2.5 reduction'!AL64),9))","v":0.999989087},{"$f":"VALUE(FIXED(EXP(AM$4*-1*'PM2.5 reduction'!AM64),9))","v":0.99997529500000004},{"$f":"VALUE(FIXED(EXP(AN$4*-1*'PM2.5 reduction'!AN64),9))","v":1},{"$f":"VALUE(FIXED(EXP(AO$4*-1*'PM2.5 reduction'!AO64),9))","v":1},{"$f":"VALUE(FIXED(EXP(AP$4*-1*'PM2.5 reduction'!AP64),9))","v":0.99997841399999998},{"$f":"VALUE(FIXED(EXP(AQ$4*-1*'PM2.5 reduction'!AQ64),9))","v":0.99997483700000001},{"$f":"VALUE(FIXED(EXP(AR$4*-1*'PM2.5 reduction'!AR64),9))","v":0.99997457999999995},{"$f":"VALUE(FIXED(EXP(AS$4*-1*'PM2.5 reduction'!AS64),9))","v":0.99999460399999995},{"$f":"VALUE(FIXED(EXP(AT$4*-1*'PM2.5 reduction'!AT64),9))","v":1},{"$f":"VALUE(FIXED(EXP(AU$4*-1*'PM2.5 reduction'!AU64),9))","v":1},{"$f":"VALUE(FIXED(EXP(AV$4*-1*'PM2.5 reduction'!AV64),9))","v":0.99998633299999995},{"$f":"VALUE(FIXED(EXP(AW$4*-1*'PM2.5 reduction'!AW64),9))","v":0.999979705},{"$f":"VALUE(FIXED(EXP(AX$4*-1*'PM2.5 reduction'!AX64),9))","v":0.99998259},{"$f":"VALUE(FIXED(EXP(AY$4*-1*'PM2.5 reduction'!AY64),9))","v":0.99997660499999996},{"$f":"VALUE(FIXED(EXP(AZ$4*-1*'PM2.5 reduction'!AZ64),9))","v":0.99997055499999998},{"$f":"VALUE(FIXED(EXP(BA$4*-1*'PM2.5 reduction'!BA64),9))","v":0.99997923899999996},{"$f":"VALUE(FIXED(EXP(BB$4*-1*'PM2.5 reduction'!BB64),9))","v":0.999981919},{"$f":"VALUE(FIXED(EXP(BC$4*-1*'PM2.5 reduction'!BC64),9))","v":1}]
[null,"Female 25-29",{"$f":"VALUE(FIXED(EXP(C$4*-1*'PM2.5 reduction'!C65),9))","v":0.99996467700000002},{"$f":"VALUE(FIXED(EXP(D$4*-1*'PM2.5 reduction'!D65),9))","v":0.99996707799999995},{"$f":"VALUE(FIXED(EXP(E$4*-1*'PM2.5 reduction'!E65),9))","v":0.99998694399999999},{"$f":"VALUE(FIXED(EXP(F$4*-1*'PM2.5 reduction'!F65),9))","v":0.99999280300000004},{"$f":"VALUE(FIXED(EXP(G$4*-1*'PM2.5 reduction'!G65),9))","v":0.99999479700000005},{"$f":"VALUE(FIXED(EXP(H$4*-1*'PM2.5 reduction'!H65),9))","v":0.99998756799999999},{"$f":"VALUE(FIXED(EXP(I$4*-1*'PM2.5 reduction'!I65),9))","v":0.99999470099999999},{"$f":"VALUE(FIXED(EXP(J$4*-1*'PM2.5 reduction'!J65),9))","v":0.99998395200000001},{"$f":"VALUE(FIXED(EXP(K$4*-1*'PM2.5 reduction'!K65),9))","v":0.99998288700000004},{"$f":"VALUE(FIXED(EXP(L$4*-1*'PM2.5 reduction'!L65),9))","v":0.99999396299999999},{"$f":"VALUE(FIXED(EXP(M$4*-1*'PM2.5 reduction'!M65),9))","v":0.99999396299999999},{"$f":"VALUE(FIXED(EXP(N$4*-1*'PM2.5 reduction'!N65),9))","v":0.99996854000000002},{"$f":"VALUE(FIXED(EXP(O$4*-1*'PM2.5 reduction'!O65),9))","v":0.99998642699999996},{"$f":"VALUE(FIXED(EXP(P$4*-1*'PM2.5 reduction'!P65),9))","v":0.99997452200000003},{"$f":"VALUE(FIXED(EXP(Q$4*-1*'PM2.5 reduction'!Q65),9))","v":0.99998969599999998},{"$f":"VALUE(FIXED(EXP(R$4*-1*'PM2.5 reduction'!R65),9))","v":0.99997950099999999},{"$f":"VALUE(FIXED(EXP(S$4*-1*'PM2.5 reduction'!S65),9))","v":0.99997568299999995},{"$f":"VALUE(FIXED(EXP(T$4*-1*'PM2.5 reduction'!T65),9))","v":0.99996571700000003},{"$f":"VALUE(FIXED(EXP(U$4*-1*'PM2.5 reduction'!U65),9))","v":1},{"$f":"VALUE(FIXED(EXP(V$4*-1*'PM2.5 reduction'!V65),9))","v":0.999976368},{"$f":"VALUE(FIXED(EXP(W$4*-1*'PM2.5 reduction'!W65),9))","v":0.99998511599999995},{"$f":"VALUE(FIXED(EXP(X$4*-1*'PM2.5 reduction'!X65),9))","v":0.99998511599999995},{"$f":"VALUE(FIXED(EXP(Y$4*-1*'PM2.5 reduction'!Y65),9))","v":0.99998023199999997},{"$f":"VALUE(FIXED(EXP(Z$4*-1*'PM2.5 reduction'!Z65),9))","v":0.99996559500000004},{"$f":"VALUE(FIXED(EXP(AA$4*-1*'PM2.5 reduction'!AA65),9))","v":0.99997070799999999},{"$f":"VALUE(FIXED(EXP(AB$4*-1*'PM2.5 reduction'!AB65),9))","v":0.99996763499999997},{"$f":"VALUE(FIXED(EXP(AC$4*-1*'PM2.5 reduction'!AC65),9))","v":0.99996870900000001},{"$f":"VALUE(FIXED(EXP(AD$4*-1*'PM2.5 reduction'!AD65),9))","v":0.99999431000000005},{"$f":"VALUE(FIXED(EXP(AE$4*-1*'PM2.5 reduction'!AE65),9))","v":0.99999407699999998},{"$f":"VALUE(FIXED(EXP(AF$4*-1*'PM2.5 reduction'!AF65),9))","v":0.99998268999999995},{"$f":"VALUE(FIXED(EXP(AG$4*-1*'PM2.5 reduction'!AG65),9))","v":0.99999407699999998},{"$f":"VALUE(FIXED(EXP(AH$4*-1*'PM2.5 reduction'!AH65),9))","v":0.999977008},{"$f":"VALUE(FIXED(EXP(AI$4*-1*'PM2.5 reduction'!AI65),9))","v":0.99997060800000004},{"$f":"VALUE(FIXED(EXP(AJ$4*-1*'PM2.5 reduction'!AJ65),9))","v":0.99998397699999997},{"$f":"VALUE(FIXED(EXP(AK$4*-1*'PM2.5 reduction'!AK65),9))","v":0.99999053199999999},{"$f":"VALUE(FIXED(EXP(AL$4*-1*'PM2.5 reduction'!AL65),9))","v":0.99998900599999996},{"$f":"VALUE(FIXED(EXP(AM$4*-1*'PM2.5 reduction'!AM65),9))","v":0.999975422},{"$f":"VALUE(FIXED(EXP(AN$4*-1*'PM2.5 reduction'!AN65),9))","v":1},{"$f":"VALUE(FIXED(EXP(AO$4*-1*'PM2.5 reduction'!AO65),9))","v":1},{"$f":"VALUE(FIXED(EXP(AP$4*-1*'PM2.5 reduction'!AP65),9))","v":0.99997901499999997},{"$f":"VALUE(FIXED(EXP(AQ$4*-1*'PM2.5 reduction'!AQ65),9))","v":0.99997466899999998},{"$f":"VALUE(FIXED(EXP(AR$4*-1*'PM2.5 reduction'!AR65),9))","v":0.99997379099999995},{"$f":"VALUE(FIXED(EXP(AS$4*-1*'PM2.5 reduction'!AS65),9))","v":0.99999470099999999},{"$f":"VALUE(FIXED(EXP(AT$4*-1*'PM2.5 reduction'!AT65),9))","v":1},{"$f":"VALUE(FIXED(EXP(AU$4*-1*'PM2.5 reduction'!AU65),9))","v":1},{"$f":"VALUE(FIXED(EXP(AV$4*-1*'PM2.5 reduction'!AV65),9))","v":0.99998571199999997},{"$f":"VALUE(FIXED(EXP(AW$4*-1*'PM2.5 reduction'!AW65),9))","v":0.99997977599999999},{"$f":"VALUE(FIXED(EXP(AX$4*-1*'PM2.5 reduction'!AX65),9))","v":0.99998475899999995},{"$f":"VALUE(FIXED(EXP(AY$4*-1*'PM2.5 reduction'!AY65),9))","v":0.99997704099999996},{"$f":"VALUE(FIXED(EXP(AZ$4*-1*'PM2.5 reduction'!AZ65),9))","v":0.999971516},{"$f":"VALUE(FIXED(EXP(BA$4*-1*'PM2.5 reduction'!BA65),9))","v":0.99997963700000003},{"$f":"VALUE(FIXED(EXP(BB$4*-1*'PM2.5 reduction'!BB65),9))","v":0.99998246899999998},{"$f":"VALUE(FIXED(EXP(BC$4*-1*'PM2.5 reduction'!BC65),9))","v":1}]
[null,"Female 30-34",{"$f":"VALUE(FIXED(EXP(C$4*-1*'PM2.5 reduction'!C66),9))","v":0.99996618100000001},{"$f":"VALUE(FIXED(EXP(D$4*-1*'PM2.5 reduction'!D66),9))","v":0.99996832999999996},{"$f":"VALUE(FIXED(EXP(E$4*-1*'PM2.5 reduction'!E66),9))","v":0.99998709200000002},{"$f":"VALUE(FIXED(EXP(F$4*-1*'PM2.5 reduction'!F66),9))","v":0.99999220700000002},{"$f":"VALUE(FIXED(EXP(G$4*-1*'PM2.5 reduction'!G66),9))","v":0.999994787},{"$f":"VALUE(FIXED(EXP(H$4*-1*'PM2.5 reduction'!H66),9))","v":0.99998757199999999},{"$f":"VALUE(FIXED(EXP(I$4*-1*'PM2.5 reduction'!I66),9))","v":0.999994516},{"$f":"VALUE(FIXED(EXP(J$4*-1*'PM2.5 reduction'!J66),9))","v":0.99998407899999997},{"$f":"VALUE(FIXED(EXP(K$4*-1*'PM2.5 reduction'!K66),9))","v":0.99998284900000001},{"$f":"VALUE(FIXED(EXP(L$4*-1*'PM2.5 reduction'!L66),9))","v":0.99999385100000004},{"$f":"VALUE(FIXED(EXP(M$4*-1*'PM2.5 reduction'!M66),9))","v":0.99999385100000004},{"$f":"VALUE(FIXED(EXP(N$4*-1*'PM2.5 reduction'!N66),9))","v":0.99997010099999994},{"$f":"VALUE(FIXED(EXP(O$4*-1*'PM2.5 reduction'!O66),9))","v":0.99998599899999996},{"$f":"VALUE(FIXED(EXP(P$4*-1*'PM2.5 reduction'!P66),9))","v":0.99997502999999999},{"$f":"VALUE(FIXED(EXP(Q$4*-1*'PM2.5 reduction'!Q66),9))","v":0.99998955199999995},{"$f":"VALUE(FIXED(EXP(R$4*-1*'PM2.5 reduction'!R66),9))","v":0.99998056000000002},{"$f":"VALUE(FIXED(EXP(S$4*-1*'PM2.5 reduction'!S66),9))","v":0.99997557199999998},{"$f":"VALUE(FIXED(EXP(T$4*-1*'PM2.5 reduction'!T66),9))","v":0.99996621200000002},{"$f":"VALUE(FIXED(EXP(U$4*-1*'PM2.5 reduction'!U66),9))","v":1},{"$f":"VALUE(FIXED(EXP(V$4*-1*'PM2.5 reduction'!V66),9))","v":0.99997718000000002},{"$f":"VALUE(FIXED(EXP(W$4*-1*'PM2.5 reduction'!W66),9))","v":0.99998473200000004},{"$f":"VALUE(FIXED(EXP(X$4*-1*'PM2.5 reduction'!X66),9))","v":0.99998473200000004},{"$f":"VALUE(FIXED(EXP(Y$4*-1*'PM2.5 reduction'!Y66),9))","v":0.99998042499999995},{"$f":"VALUE(FIXED(EXP(Z$4*-1*'PM2.5 reduction'!Z66),9))","v":0.99996609800000003},{"$f":"VALUE(FIXED(EXP(AA$4*-1*'PM2.5 reduction'!AA66),9))","v":0.99997162799999995},{"$f":"VALUE(FIXED(EXP(AB$4*-1*'PM2.5 reduction'!AB66),9))","v":0.99996915500000005},{"$f":"VALUE(FIXED(EXP(AC$4*-1*'PM2.5 reduction'!AC66),9))","v":0.99996953300000002},{"$f":"VALUE(FIXED(EXP(AD$4*-1*'PM2.5 reduction'!AD66),9))","v":0.99999428000000001},{"$f":"VALUE(FIXED(EXP(AE$4*-1*'PM2.5 reduction'!AE66),9))","v":0.99999405299999999},{"$f":"VALUE(FIXED(EXP(AF$4*-1*'PM2.5 reduction'!AF66),9))","v":0.99998297899999999},{"$f":"VALUE(FIXED(EXP(AG$4*-1*'PM2.5 reduction'!AG66),9))","v":0.99999405299999999},{"$f":"VALUE(FIXED(EXP(AH$4*-1*'PM2.5 reduction'!AH66),9))","v":0.99997704899999995},{"$f":"VALUE(FIXED(EXP(AI$4*-1*'PM2.5 reduction'!AI66),9))","v":0.99997108099999998},{"$f":"VALUE(FIXED(EXP(AJ$4*-1*'PM2.5 reduction'!AJ66),9))","v":0.99998419900000002},{"$f":"VALUE(FIXED(EXP(AK$4*-1*'PM2.5 reduction'!AK66),9))","v":0.99999053199999999},{"$f":"VALUE(FIXED(EXP(AL$4*-1*'PM2.5 reduction'!AL66),9))","v":0.99998919200000003},{"$f":"VALUE(FIXED(EXP(AM$4*-1*'PM2.5 reduction'!AM66),9))","v":0.99997546400000004},{"$f":"VALUE(FIXED(EXP(AN$4*-1*'PM2.5 reduction'!AN66),9))","v":1},{"$f":"VALUE(FIXED(EXP(AO$4*-1*'PM2.5 reduction'!AO66),9))","v":1},{"$f":"VALUE(FIXED(EXP(AP$4*-1*'PM2.5 reduction'!AP66),9))","v":0.99998133},{"$f":"VALUE(FIXED(EXP(AQ$4*-1*'PM2.5 reduction'!AQ66),9))","v":0.99997601999999997},{"$f":"VALUE(FIXED(EXP(AR$4*-1*'PM2.5 reduction'!AR66),9))","v":0.99997460400000004},{"$f":"VALUE(FIXED(EXP(AS$4*-1*'PM2.5 reduction'!AS66),9))","v":0.999994516},{"$f":"VALUE(FIXED(EXP(AT$4*-1*'PM2.5 reduction'!AT66),9))","v":1},{"$f":"VALUE(FIXED(EXP(AU$4*-1*'PM2.5 reduction'!AU66),9))","v":1},{"$f":"VALUE(FIXED(EXP(AV$4*-1*'PM2.5 reduction'!AV66),9))","v":0.99998628099999998},{"$f":"VALUE(FIXED(EXP(AW$4*-1*'PM2.5 reduction'!AW66),9))","v":0.99997961000000002},{"$f":"VALUE(FIXED(EXP(AX$4*-1*'PM2.5 reduction'!AX66),9))","v":0.99998521500000004},{"$f":"VALUE(FIXED(EXP(AY$4*-1*'PM2.5 reduction'!AY66),9))","v":0.99997833199999997},{"$f":"VALUE(FIXED(EXP(AZ$4*-1*'PM2.5 reduction'!AZ66),9))","v":0.99997371599999996},{"$f":"VALUE(FIXED(EXP(BA$4*-1*'PM2.5 reduction'!BA66),9))","v":0.99997977500000002},{"$f":"VALUE(FIXED(EXP(BB$4*-1*'PM2.5 reduction'!BB66),9))","v":0.99998266000000002},{"$f":"VALUE(FIXED(EXP(BC$4*-1*'PM2.5 reduction'!BC66),9))","v":1}]
[null,"Female 35-39",{"$f":"VALUE(FIXED(EXP(C$4*-1*'PM2.5 reduction'!C67),9))","v":0.99996588399999997},{"$f":"VALUE(FIXED(EXP(D$4*-1*'PM2.5 reduction'!D67),9))","v":0.99996809499999995},{"$f":"VALUE(FIXED(EXP(E$4*-1*'PM2.5 reduction'!E67),9))","v":0.99998795699999998},{"$f":"VALUE(FIXED(EXP(F$4*-1*'PM2.5 reduction'!F67),9))","v":0.99999193099999995},{"$f":"VALUE(FIXED(EXP(G$4*-1*'PM2.5 reduction'!G67),9))","v":0.99999477000000003},{"$f":"VALUE(FIXED(EXP(H$4*-1*'PM2.5 reduction'!H67),9))","v":0.99998806399999995},{"$f":"VALUE(FIXED(EXP(I$4*-1*'PM2.5 reduction'!I67),9))","v":0.99999471200000001},{"$f":"VALUE(FIXED(EXP(J$4*-1*'PM2.5 reduction'!J67),9))","v":0.999984502},{"$f":"VALUE(FIXED(EXP(K$4*-1*'PM2.5 reduction'!K67),9))","v":0.99998367300000002},{"$f":"VALUE(FIXED(EXP(L$4*-1*'PM2.5 reduction'!L67),9))","v":0.99999415000000003},{"$f":"VALUE(FIXED(EXP(M$4*-1*'PM2.5 reduction'!M67),9))","v":0.99999415000000003},{"$f":"VALUE(FIXED(EXP(N$4*-1*'PM2.5 reduction'!N67),9))","v":0.99997059700000002},{"$f":"VALUE(FIXED(EXP(O$4*-1*'PM2.5 reduction'!O67),9))","v":0.99998668599999996},{"$f":"VALUE(FIXED(EXP(P$4*-1*'PM2.5 reduction'!P67),9))","v":0.99997568199999998},{"$f":"VALUE(FIXED(EXP(Q$4*-1*'PM2.5 reduction'!Q67),9))","v":0.99998973999999996},{"$f":"VALUE(FIXED(EXP(R$4*-1*'PM2.5 reduction'!R67),9))","v":0.99998002100000005},{"$f":"VALUE(FIXED(EXP(S$4*-1*'PM2.5 reduction'!S67),9))","v":0.999976537},{"$f":"VALUE(FIXED(EXP(T$4*-1*'PM2.5 reduction'!T67),9))","v":0.99996671800000003},{"$f":"VALUE(FIXED(EXP(U$4*-1*'PM2.5 reduction'!U67),9))","v":1},{"$f":"VALUE(FIXED(EXP(V$4*-1*'PM2.5 reduction'!V67),9))","v":0.99997694199999998},{"$f":"VALUE(FIXED(EXP(W$4*-1*'PM2.5 reduction'!W67),9))","v":0.99998516999999998},{"$f":"VALUE(FIXED(EXP(X$4*-1*'PM2.5 reduction'!X67),9))","v":0.99998516999999998},{"$f":"VALUE(FIXED(EXP(Y$4*-1*'PM2.5 reduction'!Y67),9))","v":0.999980863},{"$f":"VALUE(FIXED(EXP(Z$4*-1*'PM2.5 reduction'!Z67),9))","v":0.99996676500000004},{"$f":"VALUE(FIXED(EXP(AA$4*-1*'PM2.5 reduction'!AA67),9))","v":0.99997217400000005},{"$f":"VALUE(FIXED(EXP(AB$4*-1*'PM2.5 reduction'!AB67),9))","v":0.999968933},{"$f":"VALUE(FIXED(EXP(AC$4*-1*'PM2.5 reduction'!AC67),9))","v":0.99997018999999998},{"$f":"VALUE(FIXED(EXP(AD$4*-1*'PM2.5 reduction'!AD67),9))","v":0.99999411599999999},{"$f":"VALUE(FIXED(EXP(AE$4*-1*'PM2.5 reduction'!AE67),9))","v":0.99999376299999998},{"$f":"VALUE(FIXED(EXP(AF$4*-1*'PM2.5 reduction'!AF67),9))","v":0.99998364299999998},{"$f":"VALUE(FIXED(EXP(AG$4*-1*'PM2.5 reduction'!AG67),9))","v":0.99999376299999998},{"$f":"VALUE(FIXED(EXP(AH$4*-1*'PM2.5 reduction'!AH67),9))","v":0.99997709199999996},{"$f":"VALUE(FIXED(EXP(AI$4*-1*'PM2.5 reduction'!AI67),9))","v":0.99997188599999998},{"$f":"VALUE(FIXED(EXP(AJ$4*-1*'PM2.5 reduction'!AJ67),9))","v":0.99998492100000003},{"$f":"VALUE(FIXED(EXP(AK$4*-1*'PM2.5 reduction'!AK67),9))","v":0.99999053199999999},{"$f":"VALUE(FIXED(EXP(AL$4*-1*'PM2.5 reduction'!AL67),9))","v":0.99998945400000006},{"$f":"VALUE(FIXED(EXP(AM$4*-1*'PM2.5 reduction'!AM67),9))","v":0.99997533299999997},{"$f":"VALUE(FIXED(EXP(AN$4*-1*'PM2.5 reduction'!AN67),9))","v":1},{"$f":"VALUE(FIXED(EXP(AO$4*-1*'PM2.5 reduction'!AO67),9))","v":1},{"$f":"VALUE(FIXED(EXP(AP$4*-1*'PM2.5 reduction'!AP67),9))","v":0.999984231},{"$f":"VALUE(FIXED(EXP(AQ$4*-1*'PM2.5 reduction'!AQ67),9))","v":0.99997592800000001},{"$f":"VALUE(FIXED(EXP(AR$4*-1*'PM2.5 reduction'!AR67),9))","v":0.99997526599999997},{"$f":"VALUE(FIXED(EXP(AS$4*-1*'PM2.5 reduction'!AS67),9))","v":0.99999471200000001},{"$f":"VALUE(FIXED(EXP(AT$4*-1*'PM2.5 reduction'!AT67),9))","v":1},{"$f":"VALUE(FIXED(EXP(AU$4*-1*'PM2.5 reduction'!AU67),9))","v":1},{"$f":"VALUE(FIXED(EXP(AV$4*-1*'PM2.5 reduction'!AV67),9))","v":0.99998658500000004},{"$f":"VALUE(FIXED(EXP(AW$4*-1*'PM2.5 reduction'!AW67),9))","v":0.99997994899999998},{"$f":"VALUE(FIXED(EXP(AX$4*-1*'PM2.5 reduction'!AX67),9))","v":0.999985546},{"$f":"VALUE(FIXED(EXP(AY$4*-1*'PM2.5 reduction'!AY67),9))","v":0.99997945300000002},{"$f":"VALUE(FIXED(EXP(AZ$4*-1*'PM2.5 reduction'!AZ67),9))","v":0.99997480900000002},{"$f":"VALUE(FIXED(EXP(BA$4*-1*'PM2.5 reduction'!BA67),9))","v":0.99998014099999999},{"$f":"VALUE(FIXED(EXP(BB$4*-1*'PM2.5 reduction'!BB67),9))","v":0.99998235000000002},{"$f":"VALUE(FIXED(EXP(BC$4*-1*'PM2.5 reduction'!BC67),9))","v":1}]
[null,"Female 40-44",{"$f":"VALUE(FIXED(EXP(C$4*-1*'PM2.5 reduction'!C68),9))","v":0.99996671299999995},{"$f":"VALUE(FIXED(EXP(D$4*-1*'PM2.5 reduction'!D68),9))","v":0.99996852999999997},{"$f":"VALUE(FIXED(EXP(E$4*-1*'PM2.5 reduction'!E68),9))","v":0.99998751399999997},{"$f":"VALUE(FIXED(EXP(F$4*-1*'PM2.5 reduction'!F68),9))","v":0.99999229599999995},{"$f":"VALUE(FIXED(EXP(G$4*-1*'PM2.5 reduction'!G68),9))","v":0.99999471500000003},{"$f":"VALUE(FIXED(EXP(H$4*-1*'PM2.5 reduction'!H68),9))","v":0.99998811300000001},{"$f":"VALUE(FIXED(EXP(I$4*-1*'PM2.5 reduction'!I68),9))","v":0.99999447699999999},{"$f":"VALUE(FIXED(EXP(J$4*-1*'PM2.5 reduction'!J68),9))","v":0.99998448200000001},{"$f":"VALUE(FIXED(EXP(K$4*-1*'PM2.5 reduction'!K68),9))","v":0.99998336300000001},{"$f":"VALUE(FIXED(EXP(L$4*-1*'PM2.5 reduction'!L68),9))","v":0.999993829},{"$f":"VALUE(FIXED(EXP(M$4*-1*'PM2.5 reduction'!M68),9))","v":0.999993829},{"$f":"VALUE(FIXED(EXP(N$4*-1*'PM2.5 reduction'!N68),9))","v":0.99997071999999998},{"$f":"VALUE(FIXED(EXP(O$4*-1*'PM2.5 reduction'!O68),9))","v":0.99998703499999997},{"$f":"VALUE(FIXED(EXP(P$4*-1*'PM2.5 reduction'!P68),9))","v":0.99997553100000003},{"$f":"VALUE(FIXED(EXP(Q$4*-1*'PM2.5 reduction'!Q68),9))","v":0.99999006599999996},{"$f":"VALUE(FIXED(EXP(R$4*-1*'PM2.5 reduction'!R68),9))","v":0.99997979000000004},{"$f":"VALUE(FIXED(EXP(S$4*-1*'PM2.5 reduction'!S68),9))","v":0.99997784499999998},{"$f":"VALUE(FIXED(EXP(T$4*-1*'PM2.5 reduction'!T68),9))","v":0.99996701300000002},{"$f":"VALUE(FIXED(EXP(U$4*-1*'PM2.5 reduction'!U68),9))","v":1},{"$f":"VALUE(FIXED(EXP(V$4*-1*'PM2.5 reduction'!V68),9))","v":0.99997650999999999},{"$f":"VALUE(FIXED(EXP(W$4*-1*'PM2.5 reduction'!W68),9))","v":0.99998518599999997},{"$f":"VALUE(FIXED(EXP(X$4*-1*'PM2.5 reduction'!X68),9))","v":0.99998518599999997},{"$f":"VALUE(FIXED(EXP(Y$4*-1*'PM2.5 reduction'!Y68),9))","v":0.99998025000000001},{"$f":"VALUE(FIXED(EXP(Z$4*-1*'PM2.5 reduction'!Z68),9))","v":0.99996744800000004},{"$f":"VALUE(FIXED(EXP(AA$4*-1*'PM2.5 reduction'!AA68),9))","v":0.99997275100000005},{"$f":"VALUE(FIXED(EXP(AB$4*-1*'PM2.5 reduction'!AB68),9))","v":0.99996948399999996},{"$f":"VALUE(FIXED(EXP(AC$4*-1*'PM2.5 reduction'!AC68),9))","v":0.99997081099999996},{"$f":"VALUE(FIXED(EXP(AD$4*-1*'PM2.5 reduction'!AD68),9))","v":0.99999464800000004},{"$f":"VALUE(FIXED(EXP(AE$4*-1*'PM2.5 reduction'!AE68),9))","v":0.99999460799999995},{"$f":"VALUE(FIXED(EXP(AF$4*-1*'PM2.5 reduction'!AF68),9))","v":0.99998309500000004},{"$f":"VALUE(FIXED(EXP(AG$4*-1*'PM2.5 reduction'!AG68),9))","v":0.99999460799999995},{"$f":"VALUE(FIXED(EXP(AH$4*-1*'PM2.5 reduction'!AH68),9))","v":0.99997710100000003},{"$f":"VALUE(FIXED(EXP(AI$4*-1*'PM2.5 reduction'!AI68),9))","v":0.99997304499999995},{"$f":"VALUE(FIXED(EXP(AJ$4*-1*'PM2.5 reduction'!AJ68),9))","v":0.99998462499999996},{"$f":"VALUE(FIXED(EXP(AK$4*-1*'PM2.5 reduction'!AK68),9))","v":0.99999053199999999},{"$f":"VALUE(FIXED(EXP(AL$4*-1*'PM2.5 reduction'!AL68),9))","v":0.99998933000000001},{"$f":"VALUE(FIXED(EXP(AM$4*-1*'PM2.5 reduction'!AM68),9))","v":0.99997540799999995},{"$f":"VALUE(FIXED(EXP(AN$4*-1*'PM2.5 reduction'!AN68),9))","v":1},{"$f":"VALUE(FIXED(EXP(AO$4*-1*'PM2.5 reduction'!AO68),9))","v":1},{"$f":"VALUE(FIXED(EXP(AP$4*-1*'PM2.5 reduction'!AP68),9))","v":0.99998406799999995},{"$f":"VALUE(FIXED(EXP(AQ$4*-1*'PM2.5 reduction'!AQ68),9))","v":0.99997584399999995},{"$f":"VALUE(FIXED(EXP(AR$4*-1*'PM2.5 reduction'!AR68),9))","v":0.99997611500000005},{"$f":"VALUE(FIXED(EXP(AS$4*-1*'PM2.5 reduction'!AS68),9))","v":0.99999447699999999},{"$f":"VALUE(FIXED(EXP(AT$4*-1*'PM2.5 reduction'!AT68),9))","v":1},{"$f":"VALUE(FIXED(EXP(AU$4*-1*'PM2.5 reduction'!AU68),9))","v":1},{"$f":"VALUE(FIXED(EXP(AV$4*-1*'PM2.5 reduction'!AV68),9))","v":0.99998664000000004},{"$f":"VALUE(FIXED(EXP(AW$4*-1*'PM2.5 reduction'!AW68),9))","v":0.99997998600000004},{"$f":"VALUE(FIXED(EXP(AX$4*-1*'PM2.5 reduction'!AX68),9))","v":0.999985711},{"$f":"VALUE(FIXED(EXP(AY$4*-1*'PM2.5 reduction'!AY68),9))","v":0.99998004699999998},{"$f":"VALUE(FIXED(EXP(AZ$4*-1*'PM2.5 reduction'!AZ68),9))","v":0.99997490600000005},{"$f":"VALUE(FIXED(EXP(BA$4*-1*'PM2.5 reduction'!BA68),9))","v":0.99998011600000003},{"$f":"VALUE(FIXED(EXP(BB$4*-1*'PM2.5 reduction'!BB68),9))","v":0.99998241300000001},{"$f":"VALUE(FIXED(EXP(BC$4*-1*'PM2.5 reduction'!BC68),9))","v":1}]
[null,"Female 45-49",{"$f":"VALUE(FIXED(EXP(C$4*-1*'PM2.5 reduction'!C69),9))","v":0.99996583100000003},{"$f":"VALUE(FIXED(EXP(D$4*-1*'PM2.5 reduction'!D69),9))","v":0.99996792000000001},{"$f":"VALUE(FIXED(EXP(E$4*-1*'PM2.5 reduction'!E69),9))","v":0.99998723499999997},{"$f":"VALUE(FIXED(EXP(F$4*-1*'PM2.5 reduction'!F69),9))","v":0.99999206799999996},{"$f":"VALUE(FIXED(EXP(G$4*-1*'PM2.5 reduction'!G69),9))","v":0.99999482200000001},{"$f":"VALUE(FIXED(EXP(H$4*-1*'PM2.5 reduction'!H69),9))","v":0.99998826500000004},{"$f":"VALUE(FIXED(EXP(I$4*-1*'PM2.5 reduction'!I69),9))","v":0.99999483},{"$f":"VALUE(FIXED(EXP(J$4*-1*'PM2.5 reduction'!J69),9))","v":0.99998479500000004},{"$f":"VALUE(FIXED(EXP(K$4*-1*'PM2.5 reduction'!K69),9))","v":0.99998315199999999},{"$f":"VALUE(FIXED(EXP(L$4*-1*'PM2.5 reduction'!L69),9))","v":0.99999416500000005},{"$f":"VALUE(FIXED(EXP(M$4*-1*'PM2.5 reduction'!M69),9))","v":0.99999416500000005},{"$f":"VALUE(FIXED(EXP(N$4*-1*'PM2.5 reduction'!N69),9))","v":0.99997064499999999},{"$f":"VALUE(FIXED(EXP(O$4*-1*'PM2.5 reduction'!O69),9))","v":0.99998704699999996},{"$f":"VALUE(FIXED(EXP(P$4*-1*'PM2.5 reduction'!P69),9))","v":0.99997436500000003},{"$f":"VALUE(FIXED(EXP(Q$4*-1*'PM2.5 reduction'!Q69),9))","v":0.999989766},{"$f":"VALUE(FIXED(EXP(R$4*-1*'PM2.5 reduction'!R69),9))","v":0.99998067999999996},{"$f":"VALUE(FIXED(EXP(S$4*-1*'PM2.5 reduction'!S69),9))","v":0.999978178},{"$f":"VALUE(FIXED(EXP(T$4*-1*'PM2.5 reduction'!T69),9))","v":0.99996712300000001},{"$f":"VALUE(FIXED(EXP(U$4*-1*'PM2.5 reduction'!U69),9))","v":1},{"$f":"VALUE(FIXED(EXP(V$4*-1*'PM2.5 reduction'!V69),9))","v":0.999976592},{"$f":"VALUE(FIXED(EXP(W$4*-1*'PM2.5 reduction'!W69),9))","v":0.99998524700000002},{"$f":"VALUE(FIXED(EXP(X$4*-1*'PM2.5 reduction'!X69),9))","v":0.99998524700000002},{"$f":"VALUE(FIXED(EXP(Y$4*-1*'PM2.5 reduction'!Y69),9))","v":0.99998098400000002},{"$f":"VALUE(FIXED(EXP(Z$4*-1*'PM2.5 reduction'!Z69),9))","v":0.99996777299999995},{"$f":"VALUE(FIXED(EXP(AA$4*-1*'PM2.5 reduction'!AA69),9))","v":0.99997312400000005},{"$f":"VALUE(FIXED(EXP(AB$4*-1*'PM2.5 reduction'!AB69),9))","v":0.99996895399999997},{"$f":"VALUE(FIXED(EXP(AC$4*-1*'PM2.5 reduction'!AC69),9))","v":0.99997135800000003},{"$f":"VALUE(FIXED(EXP(AD$4*-1*'PM2.5 reduction'!AD69),9))","v":0.99999455199999998},{"$f":"VALUE(FIXED(EXP(AE$4*-1*'PM2.5 reduction'!AE69),9))","v":0.99999441200000005},{"$f":"VALUE(FIXED(EXP(AF$4*-1*'PM2.5 reduction'!AF69),9))","v":0.99998347300000001},{"$f":"VALUE(FIXED(EXP(AG$4*-1*'PM2.5 reduction'!AG69),9))","v":0.99999441200000005},{"$f":"VALUE(FIXED(EXP(AH$4*-1*'PM2.5 reduction'!AH69),9))","v":0.999977322},{"$f":"VALUE(FIXED(EXP(AI$4*-1*'PM2.5 reduction'!AI69),9))","v":0.99997305000000003},{"$f":"VALUE(FIXED(EXP(AJ$4*-1*'PM2.5 reduction'!AJ69),9))","v":0.99998477900000005},{"$f":"VALUE(FIXED(EXP(AK$4*-1*'PM2.5 reduction'!AK69),9))","v":0.99999053199999999},{"$f":"VALUE(FIXED(EXP(AL$4*-1*'PM2.5 reduction'!AL69),9))","v":0.99998947500000002},{"$f":"VALUE(FIXED(EXP(AM$4*-1*'PM2.5 reduction'!AM69),9))","v":0.99997547499999995},{"$f":"VALUE(FIXED(EXP(AN$4*-1*'PM2.5 reduction'!AN69),9))","v":1},{"$f":"VALUE(FIXED(EXP(AO$4*-1*'PM2.5 reduction'!AO69),9))","v":1},{"$f":"VALUE(FIXED(EXP(AP$4*-1*'PM2.5 reduction'!AP69),9))","v":0.99998215599999996},{"$f":"VALUE(FIXED(EXP(AQ$4*-1*'PM2.5 reduction'!AQ69),9))","v":0.99997660899999996},{"$f":"VALUE(FIXED(EXP(AR$4*-1*'PM2.5 reduction'!AR69),9))","v":0.99997636599999995},{"$f":"VALUE(FIXED(EXP(AS$4*-1*'PM2.5 reduction'!AS69),9))","v":0.99999483},{"$f":"VALUE(FIXED(EXP(AT$4*-1*'PM2.5 reduction'!AT69),9))","v":1},{"$f":"VALUE(FIXED(EXP(AU$4*-1*'PM2.5 reduction'!AU69),9))","v":1},{"$f":"VALUE(FIXED(EXP(AV$4*-1*'PM2.5 reduction'!AV69),9))","v":0.99998727099999996},{"$f":"VALUE(FIXED(EXP(AW$4*-1*'PM2.5 reduction'!AW69),9))","v":0.99998037799999995},{"$f":"VALUE(FIXED(EXP(AX$4*-1*'PM2.5 reduction'!AX69),9))","v":0.99998628700000003},{"$f":"VALUE(FIXED(EXP(AY$4*-1*'PM2.5 reduction'!AY69),9))","v":0.99998007700000002},{"$f":"VALUE(FIXED(EXP(AZ$4*-1*'PM2.5 reduction'!AZ69),9))","v":0.99997449900000002},{"$f":"VALUE(FIXED(EXP(BA$4*-1*'PM2.5 reduction'!BA69),9))","v":0.99997989700000001},{"$f":"VALUE(FIXED(EXP(BB$4*-1*'PM2.5 reduction'!BB69),9))","v":0.99998232200000003},{"$f":"VALUE(FIXED(EXP(BC$4*-1*'PM2.5 reduction'!BC69),9))","v":1}]
[null,"Female 50-54",{"$f":"VALUE(FIXED(EXP(C$4*-1*'PM2.5 reduction'!C70),9))","v":0.99996657300000003},{"$f":"VALUE(FIXED(EXP(D$4*-1*'PM2.5 reduction'!D70),9))","v":0.99996835799999995},{"$f":"VALUE(FIXED(EXP(E$4*-1*'PM2.5 reduction'!E70),9))","v":0.99998711100000004},{"$f":"VALUE(FIXED(EXP(F$4*-1*'PM2.5 reduction'!F70),9))","v":0.99999236400000002},{"$f":"VALUE(FIXED(EXP(G$4*-1*'PM2.5 reduction'!G70),9))","v":0.99999464400000004},{"$f":"VALUE(FIXED(EXP(H$4*-1*'PM2.5 reduction'!H70),9))","v":0.99998823000000003},{"$f":"VALUE(FIXED(EXP(I$4*-1*'PM2.5 reduction'!I70),9))","v":0.99999457599999997},{"$f":"VALUE(FIXED(EXP(J$4*-1*'PM2.5 reduction'!J70),9))","v":0.99998440899999996},{"$f":"VALUE(FIXED(EXP(K$4*-1*'PM2.5 reduction'!K70),9))","v":0.99998306299999995},{"$f":"VALUE(FIXED(EXP(L$4*-1*'PM2.5 reduction'!L70),9))","v":0.99999414600000003},{"$f":"VALUE(FIXED(EXP(M$4*-1*'PM2.5 reduction'!M70),9))","v":0.99999414600000003},{"$f":"VALUE(FIXED(EXP(N$4*-1*'PM2.5 reduction'!N70),9))","v":0.99997088499999998},{"$f":"VALUE(FIXED(EXP(O$4*-1*'PM2.5 reduction'!O70),9))","v":0.99998730400000002},{"$f":"VALUE(FIXED(EXP(P$4*-1*'PM2.5 reduction'!P70),9))","v":0.99997473999999997},{"$f":"VALUE(FIXED(EXP(Q$4*-1*'PM2.5 reduction'!Q70),9))","v":0.99999008300000003},{"$f":"VALUE(FIXED(EXP(R$4*-1*'PM2.5 reduction'!R70),9))","v":0.999979281},{"$f":"VALUE(FIXED(EXP(S$4*-1*'PM2.5 reduction'!S70),9))","v":0.999978751},{"$f":"VALUE(FIXED(EXP(T$4*-1*'PM2.5 reduction'!T70),9))","v":0.99996742800000005},{"$f":"VALUE(FIXED(EXP(U$4*-1*'PM2.5 reduction'!U70),9))","v":1},{"$f":"VALUE(FIXED(EXP(V$4*-1*'PM2.5 reduction'!V70),9))","v":0.99997652299999995},{"$f":"VALUE(FIXED(EXP(W$4*-1*'PM2.5 reduction'!W70),9))","v":0.99998538999999997},{"$f":"VALUE(FIXED(EXP(X$4*-1*'PM2.5 reduction'!X70),9))","v":0.99998538999999997},{"$f":"VALUE(FIXED(EXP(Y$4*-1*'PM2.5 reduction'!Y70),9))","v":0.99998046299999999},{"$f":"VALUE(FIXED(EXP(Z$4*-1*'PM2.5 reduction'!Z70),9))","v":0.99996800399999997},{"$f":"VALUE(FIXED(EXP(AA$4*-1*'PM2.5 reduction'!AA70),9))","v":0.99997298400000001},{"$f":"VALUE(FIXED(EXP(AB$4*-1*'PM2.5 reduction'!AB70),9))","v":0.99996929800000001},{"$f":"VALUE(FIXED(EXP(AC$4*-1*'PM2.5 reduction'!AC70),9))","v":0.999971312},{"$f":"VALUE(FIXED(EXP(AD$4*-1*'PM2.5 reduction'!AD70),9))","v":0.99999448899999999},{"$f":"VALUE(FIXED(EXP(AE$4*-1*'PM2.5 reduction'!AE70),9))","v":0.99999440500000003},{"$f":"VALUE(FIXED(EXP(AF$4*-1*'PM2.5 reduction'!AF70),9))","v":0.99998295199999998},{"$f":"VALUE(FIXED(EXP(AG$4*-1*'PM2.5 reduction'!AG70),9))","v":0.99999440500000003},{"$f":"VALUE(FIXED(EXP(AH$4*-1*'PM2.5 reduction'!AH70),9))","v":0.99997699500000004},{"$f":"VALUE(FIXED(EXP(AI$4*-1*'PM2.5 reduction'!AI70),9))","v":0.99997356400000004},{"$f":"VALUE(FIXED(EXP(AJ$4*-1*'PM2.5 reduction'!AJ70),9))","v":0.99998328800000003},{"$f":"VALUE(FIXED(EXP(AK$4*-1*'PM2.5 reduction'!AK70),9))","v":0.99999053199999999},{"$f":"VALUE(FIXED(EXP(AL$4*-1*'PM2.5 reduction'!AL70),9))","v":0.99998942000000002},{"$f":"VALUE(FIXED(EXP(AM$4*-1*'PM2.5 reduction'!AM70),9))","v":0.99997518699999999},{"$f":"VALUE(FIXED(EXP(AN$4*-1*'PM2.5 reduction'!AN70),9))","v":1},{"$f":"VALUE(FIXED(EXP(AO$4*-1*'PM2.5 reduction'!AO70),9))","v":1},{"$f":"VALUE(FIXED(EXP(AP$4*-1*'PM2.5 reduction'!AP70),9))","v":0.99998266099999999},{"$f":"VALUE(FIXED(EXP(AQ$4*-1*'PM2.5 reduction'!AQ70),9))","v":0.99997623300000005},{"$f":"VALUE(FIXED(EXP(AR$4*-1*'PM2.5 reduction'!AR70),9))","v":0.99997628100000002},{"$f":"VALUE(FIXED(EXP(AS$4*-1*'PM2.5 reduction'!AS70),9))","v":0.99999457599999997},{"$f":"VALUE(FIXED(EXP(AT$4*-1*'PM2.5 reduction'!AT70),9))","v":1},{"$f":"VALUE(FIXED(EXP(AU$4*-1*'PM2.5 reduction'!AU70),9))","v":1},{"$f":"VALUE(FIXED(EXP(AV$4*-1*'PM2.5 reduction'!AV70),9))","v":0.99998643700000001},{"$f":"VALUE(FIXED(EXP(AW$4*-1*'PM2.5 reduction'!AW70),9))","v":0.999980015},{"$f":"VALUE(FIXED(EXP(AX$4*-1*'PM2.5 reduction'!AX70),9))","v":0.99998577},{"$f":"VALUE(FIXED(EXP(AY$4*-1*'PM2.5 reduction'!AY70),9))","v":0.999979795},{"$f":"VALUE(FIXED(EXP(AZ$4*-1*'PM2.5 reduction'!AZ70),9))","v":0.99997434500000004},{"$f":"VALUE(FIXED(EXP(BA$4*-1*'PM2.5 reduction'!BA70),9))","v":0.99998036199999996},{"$f":"VALUE(FIXED(EXP(BB$4*-1*'PM2.5 reduction'!BB70),9))","v":0.99998262000000004},{"$f":"VALUE(FIXED(EXP(BC$4*-1*'PM2.5 reduction'!BC70),9))","v":1}]
[null,"Female 55-59",{"$f":"VALUE(FIXED(EXP(C$4*-1*'PM2.5 reduction'!C71),9))","v":0.99996608399999998},{"$f":"VALUE(FIXED(EXP(D$4*-1*'PM2.5 reduction'!D71),9))","v":0.99996821599999997},{"$f":"VALUE(FIXED(EXP(E$4*-1*'PM2.5 reduction'!E71),9))","v":0.99998704800000005},{"$f":"VALUE(FIXED(EXP(F$4*-1*'PM2.5 reduction'!F71),9))","v":0.99999258999999996},{"$f":"VALUE(FIXED(EXP(G$4*-1*'PM2.5 reduction'!G71),9))","v":0.99999484299999997},{"$f":"VALUE(FIXED(EXP(H$4*-1*'PM2.5 reduction'!H71),9))","v":0.99998814300000005},{"$f":"VALUE(FIXED(EXP(I$4*-1*'PM2.5 reduction'!I71),9))","v":0.99999457199999997},{"$f":"VALUE(FIXED(EXP(J$4*-1*'PM2.5 reduction'!J71),9))","v":0.99998432000000004},{"$f":"VALUE(FIXED(EXP(K$4*-1*'PM2.5 reduction'!K71),9))","v":0.999982539},{"$f":"VALUE(FIXED(EXP(L$4*-1*'PM2.5 reduction'!L71),9))","v":0.99999426599999997},{"$f":"VALUE(FIXED(EXP(M$4*-1*'PM2.5 reduction'!M71),9))","v":0.99999426599999997},{"$f":"VALUE(FIXED(EXP(N$4*-1*'PM2.5 reduction'!N71),9))","v":0.99997049900000001},{"$f":"VALUE(FIXED(EXP(O$4*-1*'PM2.5 reduction'!O71),9))","v":0.99998723099999998},{"$f":"VALUE(FIXED(EXP(P$4*-1*'PM2.5 reduction'!P71),9))","v":0.99997541499999998},{"$f":"VALUE(FIXED(EXP(Q$4*-1*'PM2.5 reduction'!Q71),9))","v":0.99998977099999997},{"$f":"VALUE(FIXED(EXP(R$4*-1*'PM2.5 reduction'!R71),9))","v":0.99998081900000002},{"$f":"VALUE(FIXED(EXP(S$4*-1*'PM2.5 reduction'!S71),9))","v":0.99997850700000002},{"$f":"VALUE(FIXED(EXP(T$4*-1*'PM2.5 reduction'!T71),9))","v":0.99996777800000003},{"$f":"VALUE(FIXED(EXP(U$4*-1*'PM2.5 reduction'!U71),9))","v":1},{"$f":"VALUE(FIXED(EXP(V$4*-1*'PM2.5 reduction'!V71),9))","v":0.99997676700000004},{"$f":"VALUE(FIXED(EXP(W$4*-1*'PM2.5 reduction'!W71),9))","v":0.99998535899999996},{"$f":"VALUE(FIXED(EXP(X$4*-1*'PM2.5 reduction'!X71),9))","v":0.99998535899999996},{"$f":"VALUE(FIXED(EXP(Y$4*-1*'PM2.5 reduction'!Y71),9))","v":0.99998060700000002},{"$f":"VALUE(FIXED(EXP(Z$4*-1*'PM2.5 reduction'!Z71),9))","v":0.99996790000000002},{"$f":"VALUE(FIXED(EXP(AA$4*-1*'PM2.5 reduction'!AA71),9))","v":0.99997315399999998},{"$f":"VALUE(FIXED(EXP(AB$4*-1*'PM2.5 reduction'!AB71),9))","v":0.99996916000000002},{"$f":"VALUE(FIXED(EXP(AC$4*-1*'PM2.5 reduction'!AC71),9))","v":0.99997138500000005},{"$f":"VALUE(FIXED(EXP(AD$4*-1*'PM2.5 reduction'!AD71),9))","v":0.99999446299999994},{"$f":"VALUE(FIXED(EXP(AE$4*-1*'PM2.5 reduction'!AE71),9))","v":0.99999424400000003},{"$f":"VALUE(FIXED(EXP(AF$4*-1*'PM2.5 reduction'!AF71),9))","v":0.99998271900000002},{"$f":"VALUE(FIXED(EXP(AG$4*-1*'PM2.5 reduction'!AG71),9))","v":0.99999424400000003},{"$f":"VALUE(FIXED(EXP(AH$4*-1*'PM2.5 reduction'!AH71),9))","v":0.99997724200000004},{"$f":"VALUE(FIXED(EXP(AI$4*-1*'PM2.5 reduction'!AI71),9))","v":0.99997381900000004},{"$f":"VALUE(FIXED(EXP(AJ$4*-1*'PM2.5 reduction'!AJ71),9))","v":0.99998537399999998},{"$f":"VALUE(FIXED(EXP(AK$4*-1*'PM2.5 reduction'!AK71),9))","v":0.99999053199999999},{"$f":"VALUE(FIXED(EXP(AL$4*-1*'PM2.5 reduction'!AL71),9))","v":0.99998914699999997},{"$f":"VALUE(FIXED(EXP(AM$4*-1*'PM2.5 reduction'!AM71),9))","v":0.99997542800000006},{"$f":"VALUE(FIXED(EXP(AN$4*-1*'PM2.5 reduction'!AN71),9))","v":1},{"$f":"VALUE(FIXED(EXP(AO$4*-1*'PM2.5 reduction'!AO71),9))","v":1},{"$f":"VALUE(FIXED(EXP(AP$4*-1*'PM2.5 reduction'!AP71),9))","v":0.99998340399999996},{"$f":"VALUE(FIXED(EXP(AQ$4*-1*'PM2.5 reduction'!AQ71),9))","v":0.999976431},{"$f":"VALUE(FIXED(EXP(AR$4*-1*'PM2.5 reduction'!AR71),9))","v":0.99997634099999999},{"$f":"VALUE(FIXED(EXP(AS$4*-1*'PM2.5 reduction'!AS71),9))","v":0.99999457199999997},{"$f":"VALUE(FIXED(EXP(AT$4*-1*'PM2.5 reduction'!AT71),9))","v":1},{"$f":"VALUE(FIXED(EXP(AU$4*-1*'PM2.5 reduction'!AU71),9))","v":1},{"$f":"VALUE(FIXED(EXP(AV$4*-1*'PM2.5 reduction'!AV71),9))","v":0.99998684100000002},{"$f":"VALUE(FIXED(EXP(AW$4*-1*'PM2.5 reduction'!AW71),9))","v":0.99998004900000004},{"$f":"VALUE(FIXED(EXP(AX$4*-1*'PM2.5 reduction'!AX71),9))","v":0.99998609100000002},{"$f":"VALUE(FIXED(EXP(AY$4*-1*'PM2.5 reduction'!AY71),9))","v":0.99997958899999995},{"$f":"VALUE(FIXED(EXP(AZ$4*-1*'PM2.5 reduction'!AZ71),9))","v":0.99997425600000001},{"$f":"VALUE(FIXED(EXP(BA$4*-1*'PM2.5 reduction'!BA71),9))","v":0.999980062},{"$f":"VALUE(FIXED(EXP(BB$4*-1*'PM2.5 reduction'!BB71),9))","v":0.99998268899999998},{"$f":"VALUE(FIXED(EXP(BC$4*-1*'PM2.5 reduction'!BC71),9))","v":1}]
[null,"Female 60-64",{"$f":"VALUE(FIXED(EXP(C$4*-1*'PM2.5 reduction'!C72),9))","v":0.99996649000000004},{"$f":"VALUE(FIXED(EXP(D$4*-1*'PM2.5 reduction'!D72),9))","v":0.99996878300000003},{"$f":"VALUE(FIXED(EXP(E$4*-1*'PM2.5 reduction'!E72),9))","v":0.99998768599999999},{"$f":"VALUE(FIXED(EXP(F$4*-1*'PM2.5 reduction'!F72),9))","v":0.999992459},{"$f":"VALUE(FIXED(EXP(G$4*-1*'PM2.5 reduction'!G72),9))","v":0.99999470700000004},{"$f":"VALUE(FIXED(EXP(H$4*-1*'PM2.5 reduction'!H72),9))","v":0.99998822099999995},{"$f":"VALUE(FIXED(EXP(I$4*-1*'PM2.5 reduction'!I72),9))","v":0.99999463799999999},{"$f":"VALUE(FIXED(EXP(J$4*-1*'PM2.5 reduction'!J72),9))","v":0.99998525999999999},{"$f":"VALUE(FIXED(EXP(K$4*-1*'PM2.5 reduction'!K72),9))","v":0.99998432599999998},{"$f":"VALUE(FIXED(EXP(L$4*-1*'PM2.5 reduction'!L72),9))","v":0.99999439400000001},{"$f":"VALUE(FIXED(EXP(M$4*-1*'PM2.5 reduction'!M72),9))","v":0.99999439400000001},{"$f":"VALUE(FIXED(EXP(N$4*-1*'PM2.5 reduction'!N72),9))","v":0.99996976400000004},{"$f":"VALUE(FIXED(EXP(O$4*-1*'PM2.5 reduction'!O72),9))","v":0.99998726999999998},{"$f":"VALUE(FIXED(EXP(P$4*-1*'PM2.5 reduction'!P72),9))","v":0.99997562100000004},{"$f":"VALUE(FIXED(EXP(Q$4*-1*'PM2.5 reduction'!Q72),9))","v":0.99999000199999999},{"$f":"VALUE(FIXED(EXP(R$4*-1*'PM2.5 reduction'!R72),9))","v":0.99998049499999997},{"$f":"VALUE(FIXED(EXP(S$4*-1*'PM2.5 reduction'!S72),9))","v":0.99997899800000001},{"$f":"VALUE(FIXED(EXP(T$4*-1*'PM2.5 reduction'!T72),9))","v":0.99996749200000001},{"$f":"VALUE(FIXED(EXP(U$4*-1*'PM2.5 reduction'!U72),9))","v":1},{"$f":"VALUE(FIXED(EXP(V$4*-1*'PM2.5 reduction'!V72),9))","v":0.99997692500000002},{"$f":"VALUE(FIXED(EXP(W$4*-1*'PM2.5 reduction'!W72),9))","v":0.99998546499999996},{"$f":"VALUE(FIXED(EXP(X$4*-1*'PM2.5 reduction'!X72),9))","v":0.99998546499999996},{"$f":"VALUE(FIXED(EXP(Y$4*-1*'PM2.5 reduction'!Y72),9))","v":0.99998089499999998},{"$f":"VALUE(FIXED(EXP(Z$4*-1*'PM2.5 reduction'!Z72),9))","v":0.99996805099999997},{"$f":"VALUE(FIXED(EXP(AA$4*-1*'PM2.5 reduction'!AA72),9))","v":0.99997337799999997},{"$f":"VALUE(FIXED(EXP(AB$4*-1*'PM2.5 reduction'!AB72),9))","v":0.99997055899999998},{"$f":"VALUE(FIXED(EXP(AC$4*-1*'PM2.5 reduction'!AC72),9))","v":0.99997154700000002},{"$f":"VALUE(FIXED(EXP(AD$4*-1*'PM2.5 reduction'!AD72),9))","v":0.99999463799999999},{"$f":"VALUE(FIXED(EXP(AE$4*-1*'PM2.5 reduction'!AE72),9))","v":0.99999459800000001},{"$f":"VALUE(FIXED(EXP(AF$4*-1*'PM2.5 reduction'!AF72),9))","v":0.99998266700000005},{"$f":"VALUE(FIXED(EXP(AG$4*-1*'PM2.5 reduction'!AG72),9))","v":0.99999459800000001},{"$f":"VALUE(FIXED(EXP(AH$4*-1*'PM2.5 reduction'!AH72),9))","v":0.999977114},{"$f":"VALUE(FIXED(EXP(AI$4*-1*'PM2.5 reduction'!AI72),9))","v":0.99997388600000003},{"$f":"VALUE(FIXED(EXP(AJ$4*-1*'PM2.5 reduction'!AJ72),9))","v":0.99998448100000004},{"$f":"VALUE(FIXED(EXP(AK$4*-1*'PM2.5 reduction'!AK72),9))","v":0.99999053199999999},{"$f":"VALUE(FIXED(EXP(AL$4*-1*'PM2.5 reduction'!AL72),9))","v":0.99998927900000001},{"$f":"VALUE(FIXED(EXP(AM$4*-1*'PM2.5 reduction'!AM72),9))","v":0.99997527600000002},{"$f":"VALUE(FIXED(EXP(AN$4*-1*'PM2.5 reduction'!AN72),9))","v":1},{"$f":"VALUE(FIXED(EXP(AO$4*-1*'PM2.5 reduction'!AO72),9))","v":1},{"$f":"VALUE(FIXED(EXP(AP$4*-1*'PM2.5 reduction'!AP72),9))","v":0.99998438700000003},{"$f":"VALUE(FIXED(EXP(AQ$4*-1*'PM2.5 reduction'!AQ72),9))","v":0.99997612800000002},{"$f":"VALUE(FIXED(EXP(AR$4*-1*'PM2.5 reduction'!AR72),9))","v":0.99997672800000004},{"$f":"VALUE(FIXED(EXP(AS$4*-1*'PM2.5 reduction'!AS72),9))","v":0.99999463799999999},{"$f":"VALUE(FIXED(EXP(AT$4*-1*'PM2.5 reduction'!AT72),9))","v":1},{"$f":"VALUE(FIXED(EXP(AU$4*-1*'PM2.5 reduction'!AU72),9))","v":1},{"$f":"VALUE(FIXED(EXP(AV$4*-1*'PM2.5 reduction'!AV72),9))","v":0.99998690700000004},{"$f":"VALUE(FIXED(EXP(AW$4*-1*'PM2.5 reduction'!AW72),9))","v":0.99997990400000003},{"$f":"VALUE(FIXED(EXP(AX$4*-1*'PM2.5 reduction'!AX72),9))","v":0.99998638500000003},{"$f":"VALUE(FIXED(EXP(AY$4*-1*'PM2.5 reduction'!AY72),9))","v":0.99997971900000004},{"$f":"VALUE(FIXED(EXP(AZ$4*-1*'PM2.5 reduction'!AZ72),9))","v":0.99997404400000001},{"$f":"VALUE(FIXED(EXP(BA$4*-1*'PM2.5 reduction'!BA72),9))","v":0.99998010599999998},{"$f":"VALUE(FIXED(EXP(BB$4*-1*'PM2.5 reduction'!BB72),9))","v":0.999982971},{"$f":"VALUE(FIXED(EXP(BC$4*-1*'PM2.5 reduction'!BC72),9))","v":1}]
[null,"Female 65-69",{"$f":"VALUE(FIXED(EXP(C$4*-1*'PM2.5 reduction'!C73),9))","v":0.99996730099999998},{"$f":"VALUE(FIXED(EXP(D$4*-1*'PM2.5 reduction'!D73),9))","v":0.999969671},{"$f":"VALUE(FIXED(EXP(E$4*-1*'PM2.5 reduction'!E73),9))","v":0.99998664999999998},{"$f":"VALUE(FIXED(EXP(F$4*-1*'PM2.5 reduction'!F73),9))","v":0.99999264399999999},{"$f":"VALUE(FIXED(EXP(G$4*-1*'PM2.5 reduction'!G73),9))","v":0.99999481899999998},{"$f":"VALUE(FIXED(EXP(H$4*-1*'PM2.5 reduction'!H73),9))","v":0.99998853300000001},{"$f":"VALUE(FIXED(EXP(I$4*-1*'PM2.5 reduction'!I73),9))","v":0.99999457000000003},{"$f":"VALUE(FIXED(EXP(J$4*-1*'PM2.5 reduction'!J73),9))","v":0.99998452299999996},{"$f":"VALUE(FIXED(EXP(K$4*-1*'PM2.5 reduction'!K73),9))","v":0.99998340699999999},{"$f":"VALUE(FIXED(EXP(L$4*-1*'PM2.5 reduction'!L73),9))","v":0.99999421899999996},{"$f":"VALUE(FIXED(EXP(M$4*-1*'PM2.5 reduction'!M73),9))","v":0.99999421899999996},{"$f":"VALUE(FIXED(EXP(N$4*-1*'PM2.5 reduction'!N73),9))","v":0.99997058599999999},{"$f":"VALUE(FIXED(EXP(O$4*-1*'PM2.5 reduction'!O73),9))","v":0.99998837100000004},{"$f":"VALUE(FIXED(EXP(P$4*-1*'PM2.5 reduction'!P73),9))","v":0.99997591200000002},{"$f":"VALUE(FIXED(EXP(Q$4*-1*'PM2.5 reduction'!Q73),9))","v":0.99999038600000001},{"$f":"VALUE(FIXED(EXP(R$4*-1*'PM2.5 reduction'!R73),9))","v":0.99998026500000003},{"$f":"VALUE(FIXED(EXP(S$4*-1*'PM2.5 reduction'!S73),9))","v":0.99997892600000005},{"$f":"VALUE(FIXED(EXP(T$4*-1*'PM2.5 reduction'!T73),9))","v":0.99996731100000003},{"$f":"VALUE(FIXED(EXP(U$4*-1*'PM2.5 reduction'!U73),9))","v":1},{"$f":"VALUE(FIXED(EXP(V$4*-1*'PM2.5 reduction'!V73),9))","v":0.99997656800000001},{"$f":"VALUE(FIXED(EXP(W$4*-1*'PM2.5 reduction'!W73),9))","v":0.99998540599999997},{"$f":"VALUE(FIXED(EXP(X$4*-1*'PM2.5 reduction'!X73),9))","v":0.99998540599999997},{"$f":"VALUE(FIXED(EXP(Y$4*-1*'PM2.5 reduction'!Y73),9))","v":0.99998060300000002},{"$f":"VALUE(FIXED(EXP(Z$4*-1*'PM2.5 reduction'!Z73),9))","v":0.99996771500000003},{"$f":"VALUE(FIXED(EXP(AA$4*-1*'PM2.5 reduction'!AA73),9))","v":0.99997350900000004},{"$f":"VALUE(FIXED(EXP(AB$4*-1*'PM2.5 reduction'!AB73),9))","v":0.99997124500000001},{"$f":"VALUE(FIXED(EXP(AC$4*-1*'PM2.5 reduction'!AC73),9))","v":0.99997159300000005},{"$f":"VALUE(FIXED(EXP(AD$4*-1*'PM2.5 reduction'!AD73),9))","v":0.99999450400000001},{"$f":"VALUE(FIXED(EXP(AE$4*-1*'PM2.5 reduction'!AE73),9))","v":0.99999425900000005},{"$f":"VALUE(FIXED(EXP(AF$4*-1*'PM2.5 reduction'!AF73),9))","v":0.99998276100000005},{"$f":"VALUE(FIXED(EXP(AG$4*-1*'PM2.5 reduction'!AG73),9))","v":0.99999425900000005},{"$f":"VALUE(FIXED(EXP(AH$4*-1*'PM2.5 reduction'!AH73),9))","v":0.99997729800000001},{"$f":"VALUE(FIXED(EXP(AI$4*-1*'PM2.5 reduction'!AI73),9))","v":0.99997382199999996},{"$f":"VALUE(FIXED(EXP(AJ$4*-1*'PM2.5 reduction'!AJ73),9))","v":0.99998433399999997},{"$f":"VALUE(FIXED(EXP(AK$4*-1*'PM2.5 reduction'!AK73),9))","v":0.99999053199999999},{"$f":"VALUE(FIXED(EXP(AL$4*-1*'PM2.5 reduction'!AL73),9))","v":0.99998917300000001},{"$f":"VALUE(FIXED(EXP(AM$4*-1*'PM2.5 reduction'!AM73),9))","v":0.99997532099999997},{"$f":"VALUE(FIXED(EXP(AN$4*-1*'PM2.5 reduction'!AN73),9))","v":1},{"$f":"VALUE(FIXED(EXP(AO$4*-1*'PM2.5 reduction'!AO73),9))","v":1},{"$f":"VALUE(FIXED(EXP(AP$4*-1*'PM2.5 reduction'!AP73),9))","v":0.999983556},{"$f":"VALUE(FIXED(EXP(AQ$4*-1*'PM2.5 reduction'!AQ73),9))","v":0.99997628100000002},{"$f":"VALUE(FIXED(EXP(AR$4*-1*'PM2.5 reduction'!AR73),9))","v":0.99997685300000005},{"$f":"VALUE(FIXED(EXP(AS$4*-1*'PM2.5 reduction'!AS73),9))","v":0.99999457000000003},{"$f":"VALUE(FIXED(EXP(AT$4*-1*'PM2.5 reduction'!AT73),9))","v":1},{"$f":"VALUE(FIXED(EXP(AU$4*-1*'PM2.5 reduction'!AU73),9))","v":1},{"$f":"VALUE(FIXED(EXP(AV$4*-1*'PM2.5 reduction'!AV73),9))","v":0.99998678500000004},{"$f":"VALUE(FIXED(EXP(AW$4*-1*'PM2.5 reduction'!AW73),9))","v":0.99998022499999994},{"$f":"VALUE(FIXED(EXP(AX$4*-1*'PM2.5 reduction'!AX73),9))","v":0.99998584800000001},{"$f":"VALUE(FIXED(EXP(AY$4*-1*'PM2.5 reduction'!AY73),9))","v":0.999979799},{"$f":"VALUE(FIXED(EXP(AZ$4*-1*'PM2.5 reduction'!AZ73),9))","v":0.99997402000000002},{"$f":"VALUE(FIXED(EXP(BA$4*-1*'PM2.5 reduction'!BA73),9))","v":0.99998057299999998},{"$f":"VALUE(FIXED(EXP(BB$4*-1*'PM2.5 reduction'!BB73),9))","v":0.99998269699999998},{"$f":"VALUE(FIXED(EXP(BC$4*-1*'PM2.5 reduction'!BC73),9))","v":1}]
[null,"Female 70-74",{"$f":"VALUE(FIXED(EXP(C$4*-1*'PM2.5 reduction'!C74),9))","v":0.99996683600000003},{"$f":"VALUE(FIXED(EXP(D$4*-1*'PM2.5 reduction'!D74),9))","v":0.99996923000000004},{"$f":"VALUE(FIXED(EXP(E$4*-1*'PM2.5 reduction'!E74),9))","v":0.99998634799999997},{"$f":"VALUE(FIXED(EXP(F$4*-1*'PM2.5 reduction'!F74),9))","v":0.99999221400000005},{"$f":"VALUE(FIXED(EXP(G$4*-1*'PM2.5 reduction'!G74),9))","v":0.99999473999999999},{"$f":"VALUE(FIXED(EXP(H$4*-1*'PM2.5 reduction'!H74),9))","v":0.99998822200000004},{"$f":"VALUE(FIXED(EXP(I$4*-1*'PM2.5 reduction'!I74),9))","v":0.99999444500000001},{"$f":"VALUE(FIXED(EXP(J$4*-1*'PM2.5 reduction'!J74),9))","v":0.99998452800000004},{"$f":"VALUE(FIXED(EXP(K$4*-1*'PM2.5 reduction'!K74),9))","v":0.99998303200000005},{"$f":"VALUE(FIXED(EXP(L$4*-1*'PM2.5 reduction'!L74),9))","v":0.99999433400000004},{"$f":"VALUE(FIXED(EXP(M$4*-1*'PM2.5 reduction'!M74),9))","v":0.99999433400000004},{"$f":"VALUE(FIXED(EXP(N$4*-1*'PM2.5 reduction'!N74),9))","v":0.99997005500000002},{"$f":"VALUE(FIXED(EXP(O$4*-1*'PM2.5 reduction'!O74),9))","v":0.99998735000000005},{"$f":"VALUE(FIXED(EXP(P$4*-1*'PM2.5 reduction'!P74),9))","v":0.99997418599999999},{"$f":"VALUE(FIXED(EXP(Q$4*-1*'PM2.5 reduction'!Q74),9))","v":0.999990143},{"$f":"VALUE(FIXED(EXP(R$4*-1*'PM2.5 reduction'!R74),9))","v":0.99998015900000004},{"$f":"VALUE(FIXED(EXP(S$4*-1*'PM2.5 reduction'!S74),9))","v":0.99997911500000003},{"$f":"VALUE(FIXED(EXP(T$4*-1*'PM2.5 reduction'!T74),9))","v":0.99996696699999998},{"$f":"VALUE(FIXED(EXP(U$4*-1*'PM2.5 reduction'!U74),9))","v":1},{"$f":"VALUE(FIXED(EXP(V$4*-1*'PM2.5 reduction'!V74),9))","v":0.99997669499999997},{"$f":"VALUE(FIXED(EXP(W$4*-1*'PM2.5 reduction'!W74),9))","v":0.99998542300000004},{"$f":"VALUE(FIXED(EXP(X$4*-1*'PM2.5 reduction'!X74),9))","v":0.99998542300000004},{"$f":"VALUE(FIXED(EXP(Y$4*-1*'PM2.5 reduction'!Y74),9))","v":0.99998074199999998},{"$f":"VALUE(FIXED(EXP(Z$4*-1*'PM2.5 reduction'!Z74),9))","v":0.99996770400000001},{"$f":"VALUE(FIXED(EXP(AA$4*-1*'PM2.5 reduction'!AA74),9))","v":0.99997329599999996},{"$f":"VALUE(FIXED(EXP(AB$4*-1*'PM2.5 reduction'!AB74),9))","v":0.99997028399999999},{"$f":"VALUE(FIXED(EXP(AC$4*-1*'PM2.5 reduction'!AC74),9))","v":0.99997122000000005},{"$f":"VALUE(FIXED(EXP(AD$4*-1*'PM2.5 reduction'!AD74),9))","v":0.99999450099999998},{"$f":"VALUE(FIXED(EXP(AE$4*-1*'PM2.5 reduction'!AE74),9))","v":0.99999434399999998},{"$f":"VALUE(FIXED(EXP(AF$4*-1*'PM2.5 reduction'!AF74),9))","v":0.99998146499999996},{"$f":"VALUE(FIXED(EXP(AG$4*-1*'PM2.5 reduction'!AG74),9))","v":0.99999434399999998},{"$f":"VALUE(FIXED(EXP(AH$4*-1*'PM2.5 reduction'!AH74),9))","v":0.99997747400000003},{"$f":"VALUE(FIXED(EXP(AI$4*-1*'PM2.5 reduction'!AI74),9))","v":0.99997370100000005},{"$f":"VALUE(FIXED(EXP(AJ$4*-1*'PM2.5 reduction'!AJ74),9))","v":0.99998348199999998},{"$f":"VALUE(FIXED(EXP(AK$4*-1*'PM2.5 reduction'!AK74),9))","v":0.99999053199999999},{"$f":"VALUE(FIXED(EXP(AL$4*-1*'PM2.5 reduction'!AL74),9))","v":0.99998887400000003},{"$f":"VALUE(FIXED(EXP(AM$4*-1*'PM2.5 reduction'!AM74),9))","v":0.99997548800000002},{"$f":"VALUE(FIXED(EXP(AN$4*-1*'PM2.5 reduction'!AN74),9))","v":1},{"$f":"VALUE(FIXED(EXP(AO$4*-1*'PM2.5 reduction'!AO74),9))","v":1},{"$f":"VALUE(FIXED(EXP(AP$4*-1*'PM2.5 reduction'!AP74),9))","v":0.99998489199999996},{"$f":"VALUE(FIXED(EXP(AQ$4*-1*'PM2.5 reduction'!AQ74),9))","v":0.99997672299999996},{"$f":"VALUE(FIXED(EXP(AR$4*-1*'PM2.5 reduction'!AR74),9))","v":0.99997675100000005},{"$f":"VALUE(FIXED(EXP(AS$4*-1*'PM2.5 reduction'!AS74),9))","v":0.99999444500000001},{"$f":"VALUE(FIXED(EXP(AT$4*-1*'PM2.5 reduction'!AT74),9))","v":1},{"$f":"VALUE(FIXED(EXP(AU$4*-1*'PM2.5 reduction'!AU74),9))","v":1},{"$f":"VALUE(FIXED(EXP(AV$4*-1*'PM2.5 reduction'!AV74),9))","v":0.99998774099999999},{"$f":"VALUE(FIXED(EXP(AW$4*-1*'PM2.5 reduction'!AW74),9))","v":0.99998062600000004},{"$f":"VALUE(FIXED(EXP(AX$4*-1*'PM2.5 reduction'!AX74),9))","v":0.99998606000000001},{"$f":"VALUE(FIXED(EXP(AY$4*-1*'PM2.5 reduction'!AY74),9))","v":0.99998008800000004},{"$f":"VALUE(FIXED(EXP(AZ$4*-1*'PM2.5 reduction'!AZ74),9))","v":0.99997417399999999},{"$f":"VALUE(FIXED(EXP(BA$4*-1*'PM2.5 reduction'!BA74),9))","v":0.99997997699999996},{"$f":"VALUE(FIXED(EXP(BB$4*-1*'PM2.5 reduction'!BB74),9))","v":0.99998269299999998},{"$f":"VALUE(FIXED(EXP(BC$4*-1*'PM2.5 reduction'!BC74),9))","v":1}]
[null,"Female 75-79",{"$f":"VALUE(FIXED(EXP(C$4*-1*'PM2.5 reduction'!C75),9))","v":0.99996657300000003},{"$f":"VALUE(FIXED(EXP(D$4*-1*'PM2.5 reduction'!D75),9))","v":0.999968721},{"$f":"VALUE(FIXED(EXP(E$4*-1*'PM2.5 reduction'!E75),9))","v":0.99998684299999996},{"$f":"VALUE(FIXED(EXP(F$4*-1*'PM2.5 reduction'!F75),9))","v":0.99999220700000002},{"$f":"VALUE(FIXED(EXP(G$4*-1*'PM2.5 reduction'!G75),9))","v":0.99999458399999996},{"$f":"VALUE(FIXED(EXP(H$4*-1*'PM2.5 reduction'!H75),9))","v":0.99998803599999997},{"$f":"VALUE(FIXED(EXP(I$4*-1*'PM2.5 reduction'!I75),9))","v":0.99999432600000004},{"$f":"VALUE(FIXED(EXP(J$4*-1*'PM2.5 reduction'!J75),9))","v":0.99998405599999995},{"$f":"VALUE(FIXED(EXP(K$4*-1*'PM2.5 reduction'!K75),9))","v":0.99998319599999996},{"$f":"VALUE(FIXED(EXP(L$4*-1*'PM2.5 reduction'!L75),9))","v":0.99999450599999995},{"$f":"VALUE(FIXED(EXP(M$4*-1*'PM2.5 reduction'!M75),9))","v":0.99999450599999995},{"$f":"VALUE(FIXED(EXP(N$4*-1*'PM2.5 reduction'!N75),9))","v":0.99996984899999997},{"$f":"VALUE(FIXED(EXP(O$4*-1*'PM2.5 reduction'!O75),9))","v":0.99998668099999999},{"$f":"VALUE(FIXED(EXP(P$4*-1*'PM2.5 reduction'!P75),9))","v":0.999975583},{"$f":"VALUE(FIXED(EXP(Q$4*-1*'PM2.5 reduction'!Q75),9))","v":0.99998963799999996},{"$f":"VALUE(FIXED(EXP(R$4*-1*'PM2.5 reduction'!R75),9))","v":0.99998012400000003},{"$f":"VALUE(FIXED(EXP(S$4*-1*'PM2.5 reduction'!S75),9))","v":0.99997851999999998},{"$f":"VALUE(FIXED(EXP(T$4*-1*'PM2.5 reduction'!T75),9))","v":0.99996675000000002},{"$f":"VALUE(FIXED(EXP(U$4*-1*'PM2.5 reduction'!U75),9))","v":1},{"$f":"VALUE(FIXED(EXP(V$4*-1*'PM2.5 reduction'!V75),9))","v":0.99997646600000001},{"$f":"VALUE(FIXED(EXP(W$4*-1*'PM2.5 reduction'!W75),9))","v":0.99998555},{"$f":"VALUE(FIXED(EXP(X$4*-1*'PM2.5 reduction'!X75),9))","v":0.99998555},{"$f":"VALUE(FIXED(EXP(Y$4*-1*'PM2.5 reduction'!Y75),9))","v":0.99997974099999998},{"$f":"VALUE(FIXED(EXP(Z$4*-1*'PM2.5 reduction'!Z75),9))","v":0.99996728499999998},{"$f":"VALUE(FIXED(EXP(AA$4*-1*'PM2.5 reduction'!AA75),9))","v":0.99997267899999998},{"$f":"VALUE(FIXED(EXP(AB$4*-1*'PM2.5 reduction'!AB75),9))","v":0.99996968200000003},{"$f":"VALUE(FIXED(EXP(AC$4*-1*'PM2.5 reduction'!AC75),9))","v":0.999970884},{"$f":"VALUE(FIXED(EXP(AD$4*-1*'PM2.5 reduction'!AD75),9))","v":0.99999412899999995},{"$f":"VALUE(FIXED(EXP(AE$4*-1*'PM2.5 reduction'!AE75),9))","v":0.99999381700000001},{"$f":"VALUE(FIXED(EXP(AF$4*-1*'PM2.5 reduction'!AF75),9))","v":0.99998167599999999},{"$f":"VALUE(FIXED(EXP(AG$4*-1*'PM2.5 reduction'!AG75),9))","v":0.99999381700000001},{"$f":"VALUE(FIXED(EXP(AH$4*-1*'PM2.5 reduction'!AH75),9))","v":0.99997678499999998},{"$f":"VALUE(FIXED(EXP(AI$4*-1*'PM2.5 reduction'!AI75),9))","v":0.99997297900000004},{"$f":"VALUE(FIXED(EXP(AJ$4*-1*'PM2.5 reduction'!AJ75),9))","v":0.99998278200000001},{"$f":"VALUE(FIXED(EXP(AK$4*-1*'PM2.5 reduction'!AK75),9))","v":0.99999053199999999},{"$f":"VALUE(FIXED(EXP(AL$4*-1*'PM2.5 reduction'!AL75),9))","v":0.99998914500000002},{"$f":"VALUE(FIXED(EXP(AM$4*-1*'PM2.5 reduction'!AM75),9))","v":0.99997461399999998},{"$f":"VALUE(FIXED(EXP(AN$4*-1*'PM2.5 reduction'!AN75),9))","v":1},{"$f":"VALUE(FIXED(EXP(AO$4*-1*'PM2.5 reduction'!AO75),9))","v":1},{"$f":"VALUE(FIXED(EXP(AP$4*-1*'PM2.5 reduction'!AP75),9))","v":0.99998391900000005},{"$f":"VALUE(FIXED(EXP(AQ$4*-1*'PM2.5 reduction'!AQ75),9))","v":0.99997657900000003},{"$f":"VALUE(FIXED(EXP(AR$4*-1*'PM2.5 reduction'!AR75),9))","v":0.99997602699999999},{"$f":"VALUE(FIXED(EXP(AS$4*-1*'PM2.5 reduction'!AS75),9))","v":0.99999432600000004},{"$f":"VALUE(FIXED(EXP(AT$4*-1*'PM2.5 reduction'!AT75),9))","v":1},{"$f":"VALUE(FIXED(EXP(AU$4*-1*'PM2.5 reduction'!AU75),9))","v":1},{"$f":"VALUE(FIXED(EXP(AV$4*-1*'PM2.5 reduction'!AV75),9))","v":0.99998697800000003},{"$f":"VALUE(FIXED(EXP(AW$4*-1*'PM2.5 reduction'!AW75),9))","v":0.99998019199999999},{"$f":"VALUE(FIXED(EXP(AX$4*-1*'PM2.5 reduction'!AX75),9))","v":0.99998499100000005},{"$f":"VALUE(FIXED(EXP(AY$4*-1*'PM2.5 reduction'!AY75),9))","v":0.99997975500000003},{"$f":"VALUE(FIXED(EXP(AZ$4*-1*'PM2.5 reduction'!AZ75),9))","v":0.99997380499999999},{"$f":"VALUE(FIXED(EXP(BA$4*-1*'PM2.5 reduction'!BA75),9))","v":0.99998058999999995},{"$f":"VALUE(FIXED(EXP(BB$4*-1*'PM2.5 reduction'!BB75),9))","v":0.99998252499999996},{"$f":"VALUE(FIXED(EXP(BC$4*-1*'PM2.5 reduction'!BC75),9))","v":1}]
[null,"Female 80-84",{"$f":"VALUE(FIXED(EXP(C$4*-1*'PM2.5 reduction'!C76),9))","v":0.99996681600000004},{"$f":"VALUE(FIXED(EXP(D$4*-1*'PM2.5 reduction'!D76),9))","v":0.99996933399999999},{"$f":"VALUE(FIXED(EXP(E$4*-1*'PM2.5 reduction'!E76),9))","v":0.99998640900000002},{"$f":"VALUE(FIXED(EXP(F$4*-1*'PM2.5 reduction'!F76),9))","v":0.99999342300000005},{"$f":"VALUE(FIXED(EXP(G$4*-1*'PM2.5 reduction'!G76),9))","v":0.99999465799999998},{"$f":"VALUE(FIXED(EXP(H$4*-1*'PM2.5 reduction'!H76),9))","v":0.99998763999999996},{"$f":"VALUE(FIXED(EXP(I$4*-1*'PM2.5 reduction'!I76),9))","v":0.999994418},{"$f":"VALUE(FIXED(EXP(J$4*-1*'PM2.5 reduction'!J76),9))","v":0.99998477900000005},{"$f":"VALUE(FIXED(EXP(K$4*-1*'PM2.5 reduction'!K76),9))","v":0.99998313000000005},{"$f":"VALUE(FIXED(EXP(L$4*-1*'PM2.5 reduction'!L76),9))","v":0.99999446000000003},{"$f":"VALUE(FIXED(EXP(M$4*-1*'PM2.5 reduction'!M76),9))","v":0.99999446000000003},{"$f":"VALUE(FIXED(EXP(N$4*-1*'PM2.5 reduction'!N76),9))","v":0.99996993700000003},{"$f":"VALUE(FIXED(EXP(O$4*-1*'PM2.5 reduction'!O76),9))","v":0.99998572399999996},{"$f":"VALUE(FIXED(EXP(P$4*-1*'PM2.5 reduction'!P76),9))","v":0.99997531299999998},{"$f":"VALUE(FIXED(EXP(Q$4*-1*'PM2.5 reduction'!Q76),9))","v":0.999989715},{"$f":"VALUE(FIXED(EXP(R$4*-1*'PM2.5 reduction'!R76),9))","v":0.999980392},{"$f":"VALUE(FIXED(EXP(S$4*-1*'PM2.5 reduction'!S76),9))","v":0.99997851100000001},{"$f":"VALUE(FIXED(EXP(T$4*-1*'PM2.5 reduction'!T76),9))","v":0.99996711599999999},{"$f":"VALUE(FIXED(EXP(U$4*-1*'PM2.5 reduction'!U76),9))","v":1},{"$f":"VALUE(FIXED(EXP(V$4*-1*'PM2.5 reduction'!V76),9))","v":0.99997670999999999},{"$f":"VALUE(FIXED(EXP(W$4*-1*'PM2.5 reduction'!W76),9))","v":0.99998556400000005},{"$f":"VALUE(FIXED(EXP(X$4*-1*'PM2.5 reduction'!X76),9))","v":0.99998556400000005},{"$f":"VALUE(FIXED(EXP(Y$4*-1*'PM2.5 reduction'!Y76),9))","v":0.999980235},{"$f":"VALUE(FIXED(EXP(Z$4*-1*'PM2.5 reduction'!Z76),9))","v":0.99996726800000002},{"$f":"VALUE(FIXED(EXP(AA$4*-1*'PM2.5 reduction'!AA76),9))","v":0.99997243899999999},{"$f":"VALUE(FIXED(EXP(AB$4*-1*'PM2.5 reduction'!AB76),9))","v":0.99997045600000001},{"$f":"VALUE(FIXED(EXP(AC$4*-1*'PM2.5 reduction'!AC76),9))","v":0.99997061499999995},{"$f":"VALUE(FIXED(EXP(AD$4*-1*'PM2.5 reduction'!AD76),9))","v":0.99999427799999996},{"$f":"VALUE(FIXED(EXP(AE$4*-1*'PM2.5 reduction'!AE76),9))","v":0.99999394799999997},{"$f":"VALUE(FIXED(EXP(AF$4*-1*'PM2.5 reduction'!AF76),9))","v":0.99998052199999998},{"$f":"VALUE(FIXED(EXP(AG$4*-1*'PM2.5 reduction'!AG76),9))","v":0.99999394799999997},{"$f":"VALUE(FIXED(EXP(AH$4*-1*'PM2.5 reduction'!AH76),9))","v":0.999976745},{"$f":"VALUE(FIXED(EXP(AI$4*-1*'PM2.5 reduction'!AI76),9))","v":0.99997319200000001},{"$f":"VALUE(FIXED(EXP(AJ$4*-1*'PM2.5 reduction'!AJ76),9))","v":0.99998248099999998},{"$f":"VALUE(FIXED(EXP(AK$4*-1*'PM2.5 reduction'!AK76),9))","v":0.99999053199999999},{"$f":"VALUE(FIXED(EXP(AL$4*-1*'PM2.5 reduction'!AL76),9))","v":0.99998906899999995},{"$f":"VALUE(FIXED(EXP(AM$4*-1*'PM2.5 reduction'!AM76),9))","v":0.99997480000000005},{"$f":"VALUE(FIXED(EXP(AN$4*-1*'PM2.5 reduction'!AN76),9))","v":1},{"$f":"VALUE(FIXED(EXP(AO$4*-1*'PM2.5 reduction'!AO76),9))","v":1},{"$f":"VALUE(FIXED(EXP(AP$4*-1*'PM2.5 reduction'!AP76),9))","v":0.99998202199999997},{"$f":"VALUE(FIXED(EXP(AQ$4*-1*'PM2.5 reduction'!AQ76),9))","v":0.99997597599999999},{"$f":"VALUE(FIXED(EXP(AR$4*-1*'PM2.5 reduction'!AR76),9))","v":0.99997572099999998},{"$f":"VALUE(FIXED(EXP(AS$4*-1*'PM2.5 reduction'!AS76),9))","v":0.999994418},{"$f":"VALUE(FIXED(EXP(AT$4*-1*'PM2.5 reduction'!AT76),9))","v":1},{"$f":"VALUE(FIXED(EXP(AU$4*-1*'PM2.5 reduction'!AU76),9))","v":1},{"$f":"VALUE(FIXED(EXP(AV$4*-1*'PM2.5 reduction'!AV76),9))","v":0.99998736499999996},{"$f":"VALUE(FIXED(EXP(AW$4*-1*'PM2.5 reduction'!AW76),9))","v":0.999979654},{"$f":"VALUE(FIXED(EXP(AX$4*-1*'PM2.5 reduction'!AX76),9))","v":0.99998624700000005},{"$f":"VALUE(FIXED(EXP(AY$4*-1*'PM2.5 reduction'!AY76),9))","v":0.99997949799999997},{"$f":"VALUE(FIXED(EXP(AZ$4*-1*'PM2.5 reduction'!AZ76),9))","v":0.99997366099999996},{"$f":"VALUE(FIXED(EXP(BA$4*-1*'PM2.5 reduction'!BA76),9))","v":0.99997918299999999},{"$f":"VALUE(FIXED(EXP(BB$4*-1*'PM2.5 reduction'!BB76),9))","v":0.999982602},{"$f":"VALUE(FIXED(EXP(BC$4*-1*'PM2.5 reduction'!BC76),9))","v":1}]
[null,"Female 85-89",{"$f":"VALUE(FIXED(EXP(C$4*-1*'PM2.5 reduction'!C77),9))","v":0.99996514000000003},{"$f":"VALUE(FIXED(EXP(D$4*-1*'PM2.5 reduction'!D77),9))","v":0.99996728300000004},{"$f":"VALUE(FIXED(EXP(E$4*-1*'PM2.5 reduction'!E77),9))","v":0.999986928},{"$f":"VALUE(FIXED(EXP(F$4*-1*'PM2.5 reduction'!F77),9))","v":0.99999214700000005},{"$f":"VALUE(FIXED(EXP(G$4*-1*'PM2.5 reduction'!G77),9))","v":0.99999477800000003},{"$f":"VALUE(FIXED(EXP(H$4*-1*'PM2.5 reduction'!H77),9))","v":0.99998610899999996},{"$f":"VALUE(FIXED(EXP(I$4*-1*'PM2.5 reduction'!I77),9))","v":0.99999430899999997},{"$f":"VALUE(FIXED(EXP(J$4*-1*'PM2.5 reduction'!J77),9))","v":0.99998351900000004},{"$f":"VALUE(FIXED(EXP(K$4*-1*'PM2.5 reduction'!K77),9))","v":0.99998238100000003},{"$f":"VALUE(FIXED(EXP(L$4*-1*'PM2.5 reduction'!L77),9))","v":0.99999363500000005},{"$f":"VALUE(FIXED(EXP(M$4*-1*'PM2.5 reduction'!M77),9))","v":0.99999363500000005},{"$f":"VALUE(FIXED(EXP(N$4*-1*'PM2.5 reduction'!N77),9))","v":0.99997020700000006},{"$f":"VALUE(FIXED(EXP(O$4*-1*'PM2.5 reduction'!O77),9))","v":0.99998311299999998},{"$f":"VALUE(FIXED(EXP(P$4*-1*'PM2.5 reduction'!P77),9))","v":0.99997477599999995},{"$f":"VALUE(FIXED(EXP(Q$4*-1*'PM2.5 reduction'!Q77),9))","v":0.99998899900000005},{"$f":"VALUE(FIXED(EXP(R$4*-1*'PM2.5 reduction'!R77),9))","v":0.99997997199999999},{"$f":"VALUE(FIXED(EXP(S$4*-1*'PM2.5 reduction'!S77),9))","v":0.99997744700000002},{"$f":"VALUE(FIXED(EXP(T$4*-1*'PM2.5 reduction'!T77),9))","v":0.99996723600000004},{"$f":"VALUE(FIXED(EXP(U$4*-1*'PM2.5 reduction'!U77),9))","v":1},{"$f":"VALUE(FIXED(EXP(V$4*-1*'PM2.5 reduction'!V77),9))","v":0.99997619400000004},{"$f":"VALUE(FIXED(EXP(W$4*-1*'PM2.5 reduction'!W77),9))","v":0.99998466799999997},{"$f":"VALUE(FIXED(EXP(X$4*-1*'PM2.5 reduction'!X77),9))","v":0.99998466799999997},{"$f":"VALUE(FIXED(EXP(Y$4*-1*'PM2.5 reduction'!Y77),9))","v":0.99997905600000003},{"$f":"VALUE(FIXED(EXP(Z$4*-1*'PM2.5 reduction'!Z77),9))","v":0.99996711299999996},{"$f":"VALUE(FIXED(EXP(AA$4*-1*'PM2.5 reduction'!AA77),9))","v":0.99997223099999999},{"$f":"VALUE(FIXED(EXP(AB$4*-1*'PM2.5 reduction'!AB77),9))","v":0.99996871399999998},{"$f":"VALUE(FIXED(EXP(AC$4*-1*'PM2.5 reduction'!AC77),9))","v":0.99997040800000003},{"$f":"VALUE(FIXED(EXP(AD$4*-1*'PM2.5 reduction'!AD77),9))","v":0.999994198},{"$f":"VALUE(FIXED(EXP(AE$4*-1*'PM2.5 reduction'!AE77),9))","v":0.99999351000000003},{"$f":"VALUE(FIXED(EXP(AF$4*-1*'PM2.5 reduction'!AF77),9))","v":0.99997993200000002},{"$f":"VALUE(FIXED(EXP(AG$4*-1*'PM2.5 reduction'!AG77),9))","v":0.99999351000000003},{"$f":"VALUE(FIXED(EXP(AH$4*-1*'PM2.5 reduction'!AH77),9))","v":0.99997659699999997},{"$f":"VALUE(FIXED(EXP(AI$4*-1*'PM2.5 reduction'!AI77),9))","v":0.99997218499999996},{"$f":"VALUE(FIXED(EXP(AJ$4*-1*'PM2.5 reduction'!AJ77),9))","v":0.99998105299999995},{"$f":"VALUE(FIXED(EXP(AK$4*-1*'PM2.5 reduction'!AK77),9))","v":0.99999053199999999},{"$f":"VALUE(FIXED(EXP(AL$4*-1*'PM2.5 reduction'!AL77),9))","v":0.99998867400000002},{"$f":"VALUE(FIXED(EXP(AM$4*-1*'PM2.5 reduction'!AM77),9))","v":0.99997498399999996},{"$f":"VALUE(FIXED(EXP(AN$4*-1*'PM2.5 reduction'!AN77),9))","v":1},{"$f":"VALUE(FIXED(EXP(AO$4*-1*'PM2.5 reduction'!AO77),9))","v":1},{"$f":"VALUE(FIXED(EXP(AP$4*-1*'PM2.5 reduction'!AP77),9))","v":0.99998276699999999},{"$f":"VALUE(FIXED(EXP(AQ$4*-1*'PM2.5 reduction'!AQ77),9))","v":0.999975999},{"$f":"VALUE(FIXED(EXP(AR$4*-1*'PM2.5 reduction'!AR77),9))","v":0.99997529100000004},{"$f":"VALUE(FIXED(EXP(AS$4*-1*'PM2.5 reduction'!AS77),9))","v":0.99999430899999997},{"$f":"VALUE(FIXED(EXP(AT$4*-1*'PM2.5 reduction'!AT77),9))","v":1},{"$f":"VALUE(FIXED(EXP(AU$4*-1*'PM2.5 reduction'!AU77),9))","v":1},{"$f":"VALUE(FIXED(EXP(AV$4*-1*'PM2.5 reduction'!AV77),9))","v":0.99998668999999996},{"$f":"VALUE(FIXED(EXP(AW$4*-1*'PM2.5 reduction'!AW77),9))","v":0.99997930999999995},{"$f":"VALUE(FIXED(EXP(AX$4*-1*'PM2.5 reduction'!AX77),9))","v":0.99998483400000004},{"$f":"VALUE(FIXED(EXP(AY$4*-1*'PM2.5 reduction'!AY77),9))","v":0.99997866099999999},{"$f":"VALUE(FIXED(EXP(AZ$4*-1*'PM2.5 reduction'!AZ77),9))","v":0.99997342499999997},{"$f":"VALUE(FIXED(EXP(BA$4*-1*'PM2.5 reduction'!BA77),9))","v":0.99997855099999999},{"$f":"VALUE(FIXED(EXP(BB$4*-1*'PM2.5 reduction'!BB77),9))","v":0.99998390400000003},{"$f":"VALUE(FIXED(EXP(BC$4*-1*'PM2.5 reduction'!BC77),9))","v":1}]
[null,"Female 90+",{"$f":"VALUE(FIXED(EXP(C$4*-1*'PM2.5 reduction'!C78),9))","v":0.99996526500000005},{"$f":"VALUE(FIXED(EXP(D$4*-1*'PM2.5 reduction'!D78),9))","v":0.99996669299999996},{"$f":"VALUE(FIXED(EXP(E$4*-1*'PM2.5 reduction'!E78),9))","v":0.99998553999999995},{"$f":"VALUE(FIXED(EXP(F$4*-1*'PM2.5 reduction'!F78),9))","v":0.99999201800000004},{"$f":"VALUE(FIXED(EXP(G$4*-1*'PM2.5 reduction'!G78),9))","v":0.99999505300000002},{"$f":"VALUE(FIXED(EXP(H$4*-1*'PM2.5 reduction'!H78),9))","v":0.99998630799999999},{"$f":"VALUE(FIXED(EXP(I$4*-1*'PM2.5 reduction'!I78),9))","v":0.99999459099999999},{"$f":"VALUE(FIXED(EXP(J$4*-1*'PM2.5 reduction'!J78),9))","v":0.99998440600000005},{"$f":"VALUE(FIXED(EXP(K$4*-1*'PM2.5 reduction'!K78),9))","v":0.99998419699999996},{"$f":"VALUE(FIXED(EXP(L$4*-1*'PM2.5 reduction'!L78),9))","v":0.99999536700000002},{"$f":"VALUE(FIXED(EXP(M$4*-1*'PM2.5 reduction'!M78),9))","v":0.99999536700000002},{"$f":"VALUE(FIXED(EXP(N$4*-1*'PM2.5 reduction'!N78),9))","v":0.99996987800000003},{"$f":"VALUE(FIXED(EXP(O$4*-1*'PM2.5 reduction'!O78),9))","v":0.99998283499999996},{"$f":"VALUE(FIXED(EXP(P$4*-1*'PM2.5 reduction'!P78),9))","v":0.99997353499999997},{"$f":"VALUE(FIXED(EXP(Q$4*-1*'PM2.5 reduction'!Q78),9))","v":0.99998968300000002},{"$f":"VALUE(FIXED(EXP(R$4*-1*'PM2.5 reduction'!R78),9))","v":0.99997828499999997},{"$f":"VALUE(FIXED(EXP(S$4*-1*'PM2.5 reduction'!S78),9))","v":0.99997832499999995},{"$f":"VALUE(FIXED(EXP(T$4*-1*'PM2.5 reduction'!T78),9))","v":0.99996766199999998},{"$f":"VALUE(FIXED(EXP(U$4*-1*'PM2.5 reduction'!U78),9))","v":1},{"$f":"VALUE(FIXED(EXP(V$4*-1*'PM2.5 reduction'!V78),9))","v":0.99997506599999997},{"$f":"VALUE(FIXED(EXP(W$4*-1*'PM2.5 reduction'!W78),9))","v":0.99998511800000001},{"$f":"VALUE(FIXED(EXP(X$4*-1*'PM2.5 reduction'!X78),9))","v":0.99998511800000001},{"$f":"VALUE(FIXED(EXP(Y$4*-1*'PM2.5 reduction'!Y78),9))","v":0.99997891800000005},{"$f":"VALUE(FIXED(EXP(Z$4*-1*'PM2.5 reduction'!Z78),9))","v":0.99996731800000005},{"$f":"VALUE(FIXED(EXP(AA$4*-1*'PM2.5 reduction'!AA78),9))","v":0.99997230400000003},{"$f":"VALUE(FIXED(EXP(AB$4*-1*'PM2.5 reduction'!AB78),9))","v":0.99996734600000003},{"$f":"VALUE(FIXED(EXP(AC$4*-1*'PM2.5 reduction'!AC78),9))","v":0.99997012299999999},{"$f":"VALUE(FIXED(EXP(AD$4*-1*'PM2.5 reduction'!AD78),9))","v":0.99999453400000005},{"$f":"VALUE(FIXED(EXP(AE$4*-1*'PM2.5 reduction'!AE78),9))","v":0.99999401499999996},{"$f":"VALUE(FIXED(EXP(AF$4*-1*'PM2.5 reduction'!AF78),9))","v":0.99998034400000002},{"$f":"VALUE(FIXED(EXP(AG$4*-1*'PM2.5 reduction'!AG78),9))","v":0.99999401499999996},{"$f":"VALUE(FIXED(EXP(AH$4*-1*'PM2.5 reduction'!AH78),9))","v":0.99997720000000001},{"$f":"VALUE(FIXED(EXP(AI$4*-1*'PM2.5 reduction'!AI78),9))","v":0.99997345599999998},{"$f":"VALUE(FIXED(EXP(AJ$4*-1*'PM2.5 reduction'!AJ78),9))","v":0.99998443999999997},{"$f":"VALUE(FIXED(EXP(AK$4*-1*'PM2.5 reduction'!AK78),9))","v":0.99999053199999999},{"$f":"VALUE(FIXED(EXP(AL$4*-1*'PM2.5 reduction'!AL78),9))","v":0.99998874800000004},{"$f":"VALUE(FIXED(EXP(AM$4*-1*'PM2.5 reduction'!AM78),9))","v":0.99997522299999997},{"$f":"VALUE(FIXED(EXP(AN$4*-1*'PM2.5 reduction'!AN78),9))","v":1},{"$f":"VALUE(FIXED(EXP(AO$4*-1*'PM2.5 reduction'!AO78),9))","v":1},{"$f":"VALUE(FIXED(EXP(AP$4*-1*'PM2.5 reduction'!AP78),9))","v":0.99998074100000001},{"$f":"VALUE(FIXED(EXP(AQ$4*-1*'PM2.5 reduction'!AQ78),9))","v":0.99997500900000003},{"$f":"VALUE(FIXED(EXP(AR$4*-1*'PM2.5 reduction'!AR78),9))","v":0.99997529399999996},{"$f":"VALUE(FIXED(EXP(AS$4*-1*'PM2.5 reduction'!AS78),9))","v":0.99999459099999999},{"$f":"VALUE(FIXED(EXP(AT$4*-1*'PM2.5 reduction'!AT78),9))","v":1},{"$f":"VALUE(FIXED(EXP(AU$4*-1*'PM2.5 reduction'!AU78),9))","v":1},{"$f":"VALUE(FIXED(EXP(AV$4*-1*'PM2.5 reduction'!AV78),9))","v":0.99998689299999999},{"$f":"VALUE(FIXED(EXP(AW$4*-1*'PM2.5 reduction'!AW78),9))","v":0.99997996700000003},{"$f":"VALUE(FIXED(EXP(AX$4*-1*'PM2.5 reduction'!AX78),9))","v":0.999984761},{"$f":"VALUE(FIXED(EXP(AY$4*-1*'PM2.5 reduction'!AY78),9))","v":0.99997877000000002},{"$f":"VALUE(FIXED(EXP(AZ$4*-1*'PM2.5 reduction'!AZ78),9))","v":0.99997233100000005},{"$f":"VALUE(FIXED(EXP(BA$4*-1*'PM2.5 reduction'!BA78),9))","v":0.99997891500000002},{"$f":"VALUE(FIXED(EXP(BB$4*-1*'PM2.5 reduction'!BB78),9))","v":0.99998257599999996},{"$f":"VALUE(FIXED(EXP(BC$4*-1*'PM2.5 reduction'!BC78),9))","v":1}]
[null,"Male 0-4",{"$f":"VALUE(FIXED(EXP(C$4*-1*'PM2.5 reduction'!C79),9))","v":0.99996553300000002},{"$f":"VALUE(FIXED(EXP(D$4*-1*'PM2.5 reduction'!D79),9))","v":0.99996795599999999},{"$f":"VALUE(FIXED(EXP(E$4*-1*'PM2.5 reduction'!E79),9))","v":0.99998728100000001},{"$f":"VALUE(FIXED(EXP(F$4*-1*'PM2.5 reduction'!F79),9))","v":0.99999178600000005},{"$f":"VALUE(FIXED(EXP(G$4*-1*'PM2.5 reduction'!G79),9))","v":0.99999485799999999},{"$f":"VALUE(FIXED(EXP(H$4*-1*'PM2.5 reduction'!H79),9))","v":0.99998834199999997},{"$f":"VALUE(FIXED(EXP(I$4*-1*'PM2.5 reduction'!I79),9))","v":0.99999469600000002},{"$f":"VALUE(FIXED(EXP(J$4*-1*'PM2.5 reduction'!J79),9))","v":0.999984392},{"$f":"VALUE(FIXED(EXP(K$4*-1*'PM2.5 reduction'!K79),9))","v":0.99998309699999999},{"$f":"VALUE(FIXED(EXP(L$4*-1*'PM2.5 reduction'!L79),9))","v":0.99999418399999995},{"$f":"VALUE(FIXED(EXP(M$4*-1*'PM2.5 reduction'!M79),9))","v":0.99999418399999995},{"$f":"VALUE(FIXED(EXP(N$4*-1*'PM2.5 reduction'!N79),9))","v":0.99997093400000003},{"$f":"VALUE(FIXED(EXP(O$4*-1*'PM2.5 reduction'!O79),9))","v":0.99998791799999998},{"$f":"VALUE(FIXED(EXP(P$4*-1*'PM2.5 reduction'!P79),9))","v":0.99997525600000003},{"$f":"VALUE(FIXED(EXP(Q$4*-1*'PM2.5 reduction'!Q79),9))","v":0.99998970499999995},{"$f":"VALUE(FIXED(EXP(R$4*-1*'PM2.5 reduction'!R79),9))","v":0.99997982799999996},{"$f":"VALUE(FIXED(EXP(S$4*-1*'PM2.5 reduction'!S79),9))","v":0.99997800800000003},{"$f":"VALUE(FIXED(EXP(T$4*-1*'PM2.5 reduction'!T79),9))","v":0.99996792999999995},{"$f":"VALUE(FIXED(EXP(U$4*-1*'PM2.5 reduction'!U79),9))","v":1},{"$f":"VALUE(FIXED(EXP(V$4*-1*'PM2.5 reduction'!V79),9))","v":0.99997714000000004},{"$f":"VALUE(FIXED(EXP(W$4*-1*'PM2.5 reduction'!W79),9))","v":0.99998485199999998},{"$f":"VALUE(FIXED(EXP(X$4*-1*'PM2.5 reduction'!X79),9))","v":0.99998485199999998},{"$f":"VALUE(FIXED(EXP(Y$4*-1*'PM2.5 reduction'!Y79),9))","v":0.99998086900000005},{"$f":"VALUE(FIXED(EXP(Z$4*-1*'PM2.5 reduction'!Z79),9))","v":0.99996712600000004},{"$f":"VALUE(FIXED(EXP(AA$4*-1*'PM2.5 reduction'!AA79),9))","v":0.99997252299999995},{"$f":"VALUE(FIXED(EXP(AB$4*-1*'PM2.5 reduction'!AB79),9))","v":0.99996875500000004},{"$f":"VALUE(FIXED(EXP(AC$4*-1*'PM2.5 reduction'!AC79),9))","v":0.99997057099999997},{"$f":"VALUE(FIXED(EXP(AD$4*-1*'PM2.5 reduction'!AD79),9))","v":0.99999445300000001},{"$f":"VALUE(FIXED(EXP(AE$4*-1*'PM2.5 reduction'!AE79),9))","v":0.99999428099999998},{"$f":"VALUE(FIXED(EXP(AF$4*-1*'PM2.5 reduction'!AF79),9))","v":0.99998385000000001},{"$f":"VALUE(FIXED(EXP(AG$4*-1*'PM2.5 reduction'!AG79),9))","v":0.99999428099999998},{"$f":"VALUE(FIXED(EXP(AH$4*-1*'PM2.5 reduction'!AH79),9))","v":0.99997722099999997},{"$f":"VALUE(FIXED(EXP(AI$4*-1*'PM2.5 reduction'!AI79),9))","v":0.99997334199999999},{"$f":"VALUE(FIXED(EXP(AJ$4*-1*'PM2.5 reduction'!AJ79),9))","v":0.99998483699999996},{"$f":"VALUE(FIXED(EXP(AK$4*-1*'PM2.5 reduction'!AK79),9))","v":0.99999053199999999},{"$f":"VALUE(FIXED(EXP(AL$4*-1*'PM2.5 reduction'!AL79),9))","v":0.999989354},{"$f":"VALUE(FIXED(EXP(AM$4*-1*'PM2.5 reduction'!AM79),9))","v":0.99997550000000002},{"$f":"VALUE(FIXED(EXP(AN$4*-1*'PM2.5 reduction'!AN79),9))","v":1},{"$f":"VALUE(FIXED(EXP(AO$4*-1*'PM2.5 reduction'!AO79),9))","v":1},{"$f":"VALUE(FIXED(EXP(AP$4*-1*'PM2.5 reduction'!AP79),9))","v":0.99998346000000005},{"$f":"VALUE(FIXED(EXP(AQ$4*-1*'PM2.5 reduction'!AQ79),9))","v":0.99997668299999998},{"$f":"VALUE(FIXED(EXP(AR$4*-1*'PM2.5 reduction'!AR79),9))","v":0.99997607200000005},{"$f":"VALUE(FIXED(EXP(AS$4*-1*'PM2.5 reduction'!AS79),9))","v":0.99999469600000002},{"$f":"VALUE(FIXED(EXP(AT$4*-1*'PM2.5 reduction'!AT79),9))","v":1},{"$f":"VALUE(FIXED(EXP(AU$4*-1*'PM2.5 reduction'!AU79),9))","v":1},{"$f":"VALUE(FIXED(EXP(AV$4*-1*'PM2.5 reduction'!AV79),9))","v":0.99998650700000002},{"$f":"VALUE(FIXED(EXP(AW$4*-1*'PM2.5 reduction'!AW79),9))","v":0.99998022900000005},{"$f":"VALUE(FIXED(EXP(AX$4*-1*'PM2.5 reduction'!AX79),9))","v":0.99998614900000005},{"$f":"VALUE(FIXED(EXP(AY$4*-1*'PM2.5 reduction'!AY79),9))","v":0.99997966199999999},{"$f":"VALUE(FIXED(EXP(AZ$4*-1*'PM2.5 reduction'!AZ79),9))","v":0.99997480699999997},{"$f":"VALUE(FIXED(EXP(BA$4*-1*'PM2.5 reduction'!BA79),9))","v":0.99998028900000002},{"$f":"VALUE(FIXED(EXP(BB$4*-1*'PM2.5 reduction'!BB79),9))","v":0.99998253100000001},{"$f":"VALUE(FIXED(EXP(BC$4*-1*'PM2.5 reduction'!BC79),9))","v":1}]
[null,"Male 5-9",{"$f":"VALUE(FIXED(EXP(C$4*-1*'PM2.5 reduction'!C80),9))","v":0.99996649900000001},{"$f":"VALUE(FIXED(EXP(D$4*-1*'PM2.5 reduction'!D80),9))","v":0.99996913300000001},{"$f":"VALUE(FIXED(EXP(E$4*-1*'PM2.5 reduction'!E80),9))","v":0.99998722500000004},{"$f":"VALUE(FIXED(EXP(F$4*-1*'PM2.5 reduction'!F80),9))","v":0.99999246500000005},{"$f":"VALUE(FIXED(EXP(G$4*-1*'PM2.5 reduction'!G80),9))","v":0.99999466199999998},{"$f":"VALUE(FIXED(EXP(H$4*-1*'PM2.5 reduction'!H80),9))","v":0.99998833799999998},{"$f":"VALUE(FIXED(EXP(I$4*-1*'PM2.5 reduction'!I80),9))","v":0.99999470400000001},{"$f":"VALUE(FIXED(EXP(J$4*-1*'PM2.5 reduction'!J80),9))","v":0.99998451399999999},{"$f":"VALUE(FIXED(EXP(K$4*-1*'PM2.5 reduction'!K80),9))","v":0.99998306699999995},{"$f":"VALUE(FIXED(EXP(L$4*-1*'PM2.5 reduction'!L80),9))","v":0.99999413599999998},{"$f":"VALUE(FIXED(EXP(M$4*-1*'PM2.5 reduction'!M80),9))","v":0.99999413599999998},{"$f":"VALUE(FIXED(EXP(N$4*-1*'PM2.5 reduction'!N80),9))","v":0.99997204799999995},{"$f":"VALUE(FIXED(EXP(O$4*-1*'PM2.5 reduction'!O80),9))","v":0.99998749399999998},{"$f":"VALUE(FIXED(EXP(P$4*-1*'PM2.5 reduction'!P80),9))","v":0.99997546999999998},{"$f":"VALUE(FIXED(EXP(Q$4*-1*'PM2.5 reduction'!Q80),9))","v":0.99999004599999997},{"$f":"VALUE(FIXED(EXP(R$4*-1*'PM2.5 reduction'!R80),9))","v":0.99998050900000002},{"$f":"VALUE(FIXED(EXP(S$4*-1*'PM2.5 reduction'!S80),9))","v":0.99997818299999996},{"$f":"VALUE(FIXED(EXP(T$4*-1*'PM2.5 reduction'!T80),9))","v":0.99996804399999994},{"$f":"VALUE(FIXED(EXP(U$4*-1*'PM2.5 reduction'!U80),9))","v":1},{"$f":"VALUE(FIXED(EXP(V$4*-1*'PM2.5 reduction'!V80),9))","v":0.99997739500000005},{"$f":"VALUE(FIXED(EXP(W$4*-1*'PM2.5 reduction'!W80),9))","v":0.99998540999999996},{"$f":"VALUE(FIXED(EXP(X$4*-1*'PM2.5 reduction'!X80),9))","v":0.99998540999999996},{"$f":"VALUE(FIXED(EXP(Y$4*-1*'PM2.5 reduction'!Y80),9))","v":0.99998104399999999},{"$f":"VALUE(FIXED(EXP(Z$4*-1*'PM2.5 reduction'!Z80),9))","v":0.99996779899999999},{"$f":"VALUE(FIXED(EXP(AA$4*-1*'PM2.5 reduction'!AA80),9))","v":0.99997322300000002},{"$f":"VALUE(FIXED(EXP(AB$4*-1*'PM2.5 reduction'!AB80),9))","v":0.999970103},{"$f":"VALUE(FIXED(EXP(AC$4*-1*'PM2.5 reduction'!AC80),9))","v":0.99997149200000002},{"$f":"VALUE(FIXED(EXP(AD$4*-1*'PM2.5 reduction'!AD80),9))","v":0.99999447299999999},{"$f":"VALUE(FIXED(EXP(AE$4*-1*'PM2.5 reduction'!AE80),9))","v":0.99999438200000001},{"$f":"VALUE(FIXED(EXP(AF$4*-1*'PM2.5 reduction'!AF80),9))","v":0.99998446600000002},{"$f":"VALUE(FIXED(EXP(AG$4*-1*'PM2.5 reduction'!AG80),9))","v":0.99999438200000001},{"$f":"VALUE(FIXED(EXP(AH$4*-1*'PM2.5 reduction'!AH80),9))","v":0.99997713399999999},{"$f":"VALUE(FIXED(EXP(AI$4*-1*'PM2.5 reduction'!AI80),9))","v":0.99997344700000002},{"$f":"VALUE(FIXED(EXP(AJ$4*-1*'PM2.5 reduction'!AJ80),9))","v":0.99998527500000001},{"$f":"VALUE(FIXED(EXP(AK$4*-1*'PM2.5 reduction'!AK80),9))","v":0.99999053199999999},{"$f":"VALUE(FIXED(EXP(AL$4*-1*'PM2.5 reduction'!AL80),9))","v":0.999989452},{"$f":"VALUE(FIXED(EXP(AM$4*-1*'PM2.5 reduction'!AM80),9))","v":0.99997551500000004},{"$f":"VALUE(FIXED(EXP(AN$4*-1*'PM2.5 reduction'!AN80),9))","v":1},{"$f":"VALUE(FIXED(EXP(AO$4*-1*'PM2.5 reduction'!AO80),9))","v":1},{"$f":"VALUE(FIXED(EXP(AP$4*-1*'PM2.5 reduction'!AP80),9))","v":0.99998446500000004},{"$f":"VALUE(FIXED(EXP(AQ$4*-1*'PM2.5 reduction'!AQ80),9))","v":0.99997746300000001},{"$f":"VALUE(FIXED(EXP(AR$4*-1*'PM2.5 reduction'!AR80),9))","v":0.99997674199999997},{"$f":"VALUE(FIXED(EXP(AS$4*-1*'PM2.5 reduction'!AS80),9))","v":0.99999470400000001},{"$f":"VALUE(FIXED(EXP(AT$4*-1*'PM2.5 reduction'!AT80),9))","v":1},{"$f":"VALUE(FIXED(EXP(AU$4*-1*'PM2.5 reduction'!AU80),9))","v":1},{"$f":"VALUE(FIXED(EXP(AV$4*-1*'PM2.5 reduction'!AV80),9))","v":0.99998667500000005},{"$f":"VALUE(FIXED(EXP(AW$4*-1*'PM2.5 reduction'!AW80),9))","v":0.99998015500000004},{"$f":"VALUE(FIXED(EXP(AX$4*-1*'PM2.5 reduction'!AX80),9))","v":0.99998603500000005},{"$f":"VALUE(FIXED(EXP(AY$4*-1*'PM2.5 reduction'!AY80),9))","v":0.99998073600000004},{"$f":"VALUE(FIXED(EXP(AZ$4*-1*'PM2.5 reduction'!AZ80),9))","v":0.99997599299999995},{"$f":"VALUE(FIXED(EXP(BA$4*-1*'PM2.5 reduction'!BA80),9))","v":0.99998014199999996},{"$f":"VALUE(FIXED(EXP(BB$4*-1*'PM2.5 reduction'!BB80),9))","v":0.999982857},{"$f":"VALUE(FIXED(EXP(BC$4*-1*'PM2.5 reduction'!BC80),9))","v":1}]
[null,"Male 10-15",{"$f":"VALUE(FIXED(EXP(C$4*-1*'PM2.5 reduction'!C81),9))","v":0.99996685500000004},{"$f":"VALUE(FIXED(EXP(D$4*-1*'PM2.5 reduction'!D81),9))","v":0.99996894700000005},{"$f":"VALUE(FIXED(EXP(E$4*-1*'PM2.5 reduction'!E81),9))","v":0.99998717699999995},{"$f":"VALUE(FIXED(EXP(F$4*-1*'PM2.5 reduction'!F81),9))","v":0.99999219299999997},{"$f":"VALUE(FIXED(EXP(G$4*-1*'PM2.5 reduction'!G81),9))","v":0.99999478399999997},{"$f":"VALUE(FIXED(EXP(H$4*-1*'PM2.5 reduction'!H81),9))","v":0.99998847999999996},{"$f":"VALUE(FIXED(EXP(I$4*-1*'PM2.5 reduction'!I81),9))","v":0.99999473299999997},{"$f":"VALUE(FIXED(EXP(J$4*-1*'PM2.5 reduction'!J81),9))","v":0.99998441500000002},{"$f":"VALUE(FIXED(EXP(K$4*-1*'PM2.5 reduction'!K81),9))","v":0.99998277199999996},{"$f":"VALUE(FIXED(EXP(L$4*-1*'PM2.5 reduction'!L81),9))","v":0.99999392399999998},{"$f":"VALUE(FIXED(EXP(M$4*-1*'PM2.5 reduction'!M81),9))","v":0.99999392399999998},{"$f":"VALUE(FIXED(EXP(N$4*-1*'PM2.5 reduction'!N81),9))","v":0.99997172199999995},{"$f":"VALUE(FIXED(EXP(O$4*-1*'PM2.5 reduction'!O81),9))","v":0.999987611},{"$f":"VALUE(FIXED(EXP(P$4*-1*'PM2.5 reduction'!P81),9))","v":0.99997592300000004},{"$f":"VALUE(FIXED(EXP(Q$4*-1*'PM2.5 reduction'!Q81),9))","v":0.999990029},{"$f":"VALUE(FIXED(EXP(R$4*-1*'PM2.5 reduction'!R81),9))","v":0.99998046200000001},{"$f":"VALUE(FIXED(EXP(S$4*-1*'PM2.5 reduction'!S81),9))","v":0.99997869900000003},{"$f":"VALUE(FIXED(EXP(T$4*-1*'PM2.5 reduction'!T81),9))","v":0.999968462},{"$f":"VALUE(FIXED(EXP(U$4*-1*'PM2.5 reduction'!U81),9))","v":1},{"$f":"VALUE(FIXED(EXP(V$4*-1*'PM2.5 reduction'!V81),9))","v":0.99997716999999997},{"$f":"VALUE(FIXED(EXP(W$4*-1*'PM2.5 reduction'!W81),9))","v":0.99998518599999997},{"$f":"VALUE(FIXED(EXP(X$4*-1*'PM2.5 reduction'!X81),9))","v":0.99998518599999997},{"$f":"VALUE(FIXED(EXP(Y$4*-1*'PM2.5 reduction'!Y81),9))","v":0.99998087199999997},{"$f":"VALUE(FIXED(EXP(Z$4*-1*'PM2.5 reduction'!Z81),9))","v":0.99996824399999995},{"$f":"VALUE(FIXED(EXP(AA$4*-1*'PM2.5 reduction'!AA81),9))","v":0.99997355799999998},{"$f":"VALUE(FIXED(EXP(AB$4*-1*'PM2.5 reduction'!AB81),9))","v":0.99997025699999997},{"$f":"VALUE(FIXED(EXP(AC$4*-1*'PM2.5 reduction'!AC81),9))","v":0.99997186500000002},{"$f":"VALUE(FIXED(EXP(AD$4*-1*'PM2.5 reduction'!AD81),9))","v":0.99999430600000005},{"$f":"VALUE(FIXED(EXP(AE$4*-1*'PM2.5 reduction'!AE81),9))","v":0.99999402500000001},{"$f":"VALUE(FIXED(EXP(AF$4*-1*'PM2.5 reduction'!AF81),9))","v":0.99998472000000005},{"$f":"VALUE(FIXED(EXP(AG$4*-1*'PM2.5 reduction'!AG81),9))","v":0.99999402500000001},{"$f":"VALUE(FIXED(EXP(AH$4*-1*'PM2.5 reduction'!AH81),9))","v":0.99997726399999998},{"$f":"VALUE(FIXED(EXP(AI$4*-1*'PM2.5 reduction'!AI81),9))","v":0.99997435599999995},{"$f":"VALUE(FIXED(EXP(AJ$4*-1*'PM2.5 reduction'!AJ81),9))","v":0.99998511400000001},{"$f":"VALUE(FIXED(EXP(AK$4*-1*'PM2.5 reduction'!AK81),9))","v":0.99999053199999999},{"$f":"VALUE(FIXED(EXP(AL$4*-1*'PM2.5 reduction'!AL81),9))","v":0.99998943900000004},{"$f":"VALUE(FIXED(EXP(AM$4*-1*'PM2.5 reduction'!AM81),9))","v":0.99997563300000003},{"$f":"VALUE(FIXED(EXP(AN$4*-1*'PM2.5 reduction'!AN81),9))","v":1},{"$f":"VALUE(FIXED(EXP(AO$4*-1*'PM2.5 reduction'!AO81),9))","v":1},{"$f":"VALUE(FIXED(EXP(AP$4*-1*'PM2.5 reduction'!AP81),9))","v":0.99998555},{"$f":"VALUE(FIXED(EXP(AQ$4*-1*'PM2.5 reduction'!AQ81),9))","v":0.99997777200000004},{"$f":"VALUE(FIXED(EXP(AR$4*-1*'PM2.5 reduction'!AR81),9))","v":0.99997692900000001},{"$f":"VALUE(FIXED(EXP(AS$4*-1*'PM2.5 reduction'!AS81),9))","v":0.99999473299999997},{"$f":"VALUE(FIXED(EXP(AT$4*-1*'PM2.5 reduction'!AT81),9))","v":1},{"$f":"VALUE(FIXED(EXP(AU$4*-1*'PM2.5 reduction'!AU81),9))","v":1},{"$f":"VALUE(FIXED(EXP(AV$4*-1*'PM2.5 reduction'!AV81),9))","v":0.99998720600000002},{"$f":"VALUE(FIXED(EXP(AW$4*-1*'PM2.5 reduction'!AW81),9))","v":0.99998038899999997},{"$f":"VALUE(FIXED(EXP(AX$4*-1*'PM2.5 reduction'!AX81),9))","v":0.99998633400000003},{"$f":"VALUE(FIXED(EXP(AY$4*-1*'PM2.5 reduction'!AY81),9))","v":0.99998025099999999},{"$f":"VALUE(FIXED(EXP(AZ$4*-1*'PM2.5 reduction'!AZ81),9))","v":0.99997578899999995},{"$f":"VALUE(FIXED(EXP(BA$4*-1*'PM2.5 reduction'!BA81),9))","v":0.999980219},{"$f":"VALUE(FIXED(EXP(BB$4*-1*'PM2.5 reduction'!BB81),9))","v":0.99998258100000004},{"$f":"VALUE(FIXED(EXP(BC$4*-1*'PM2.5 reduction'!BC81),9))","v":1}]
[null,"Male 16-19",{"$f":"VALUE(FIXED(EXP(C$4*-1*'PM2.5 reduction'!C82),9))","v":0.99996674600000002},{"$f":"VALUE(FIXED(EXP(D$4*-1*'PM2.5 reduction'!D82),9))","v":0.99996816700000002},{"$f":"VALUE(FIXED(EXP(E$4*-1*'PM2.5 reduction'!E82),9))","v":0.99998793799999997},{"$f":"VALUE(FIXED(EXP(F$4*-1*'PM2.5 reduction'!F82),9))","v":0.99999208699999997},{"$f":"VALUE(FIXED(EXP(G$4*-1*'PM2.5 reduction'!G82),9))","v":0.999994838},{"$f":"VALUE(FIXED(EXP(H$4*-1*'PM2.5 reduction'!H82),9))","v":0.99998849700000003},{"$f":"VALUE(FIXED(EXP(I$4*-1*'PM2.5 reduction'!I82),9))","v":0.99999468300000005},{"$f":"VALUE(FIXED(EXP(J$4*-1*'PM2.5 reduction'!J82),9))","v":0.99998451600000005},{"$f":"VALUE(FIXED(EXP(K$4*-1*'PM2.5 reduction'!K82),9))","v":0.99998319599999996},{"$f":"VALUE(FIXED(EXP(L$4*-1*'PM2.5 reduction'!L82),9))","v":0.99999404800000002},{"$f":"VALUE(FIXED(EXP(M$4*-1*'PM2.5 reduction'!M82),9))","v":0.99999404800000002},{"$f":"VALUE(FIXED(EXP(N$4*-1*'PM2.5 reduction'!N82),9))","v":0.99996979799999997},{"$f":"VALUE(FIXED(EXP(O$4*-1*'PM2.5 reduction'!O82),9))","v":0.99998814300000005},{"$f":"VALUE(FIXED(EXP(P$4*-1*'PM2.5 reduction'!P82),9))","v":0.99997549799999996},{"$f":"VALUE(FIXED(EXP(Q$4*-1*'PM2.5 reduction'!Q82),9))","v":0.99998995999999996},{"$f":"VALUE(FIXED(EXP(R$4*-1*'PM2.5 reduction'!R82),9))","v":0.999980863},{"$f":"VALUE(FIXED(EXP(S$4*-1*'PM2.5 reduction'!S82),9))","v":0.99997872799999998},{"$f":"VALUE(FIXED(EXP(T$4*-1*'PM2.5 reduction'!T82),9))","v":0.99996812899999998},{"$f":"VALUE(FIXED(EXP(U$4*-1*'PM2.5 reduction'!U82),9))","v":1},{"$f":"VALUE(FIXED(EXP(V$4*-1*'PM2.5 reduction'!V82),9))","v":0.99997734000000005},{"$f":"VALUE(FIXED(EXP(W$4*-1*'PM2.5 reduction'!W82),9))","v":0.99998525299999996},{"$f":"VALUE(FIXED(EXP(X$4*-1*'PM2.5 reduction'!X82),9))","v":0.99998525299999996},{"$f":"VALUE(FIXED(EXP(Y$4*-1*'PM2.5 reduction'!Y82),9))","v":0.99998138199999997},{"$f":"VALUE(FIXED(EXP(Z$4*-1*'PM2.5 reduction'!Z82),9))","v":0.99996691599999998},{"$f":"VALUE(FIXED(EXP(AA$4*-1*'PM2.5 reduction'!AA82),9))","v":0.99997275399999996},{"$f":"VALUE(FIXED(EXP(AB$4*-1*'PM2.5 reduction'!AB82),9))","v":0.99996946600000003},{"$f":"VALUE(FIXED(EXP(AC$4*-1*'PM2.5 reduction'!AC82),9))","v":0.99997071900000001},{"$f":"VALUE(FIXED(EXP(AD$4*-1*'PM2.5 reduction'!AD82),9))","v":0.999994783},{"$f":"VALUE(FIXED(EXP(AE$4*-1*'PM2.5 reduction'!AE82),9))","v":0.99999474600000005},{"$f":"VALUE(FIXED(EXP(AF$4*-1*'PM2.5 reduction'!AF82),9))","v":0.99998460700000003},{"$f":"VALUE(FIXED(EXP(AG$4*-1*'PM2.5 reduction'!AG82),9))","v":0.99999474600000005},{"$f":"VALUE(FIXED(EXP(AH$4*-1*'PM2.5 reduction'!AH82),9))","v":0.99997741699999998},{"$f":"VALUE(FIXED(EXP(AI$4*-1*'PM2.5 reduction'!AI82),9))","v":0.99997395899999997},{"$f":"VALUE(FIXED(EXP(AJ$4*-1*'PM2.5 reduction'!AJ82),9))","v":0.99998429700000002},{"$f":"VALUE(FIXED(EXP(AK$4*-1*'PM2.5 reduction'!AK82),9))","v":0.99999053199999999},{"$f":"VALUE(FIXED(EXP(AL$4*-1*'PM2.5 reduction'!AL82),9))","v":0.99998946200000005},{"$f":"VALUE(FIXED(EXP(AM$4*-1*'PM2.5 reduction'!AM82),9))","v":0.99997573500000003},{"$f":"VALUE(FIXED(EXP(AN$4*-1*'PM2.5 reduction'!AN82),9))","v":1},{"$f":"VALUE(FIXED(EXP(AO$4*-1*'PM2.5 reduction'!AO82),9))","v":1},{"$f":"VALUE(FIXED(EXP(AP$4*-1*'PM2.5 reduction'!AP82),9))","v":0.99998567699999996},{"$f":"VALUE(FIXED(EXP(AQ$4*-1*'PM2.5 reduction'!AQ82),9))","v":0.99997708900000004},{"$f":"VALUE(FIXED(EXP(AR$4*-1*'PM2.5 reduction'!AR82),9))","v":0.99997637800000005},{"$f":"VALUE(FIXED(EXP(AS$4*-1*'PM2.5 reduction'!AS82),9))","v":0.99999468300000005},{"$f":"VALUE(FIXED(EXP(AT$4*-1*'PM2.5 reduction'!AT82),9))","v":1},{"$f":"VALUE(FIXED(EXP(AU$4*-1*'PM2.5 reduction'!AU82),9))","v":1},{"$f":"VALUE(FIXED(EXP(AV$4*-1*'PM2.5 reduction'!AV82),9))","v":0.99998622599999998},{"$f":"VALUE(FIXED(EXP(AW$4*-1*'PM2.5 reduction'!AW82),9))","v":0.99998051600000004},{"$f":"VALUE(FIXED(EXP(AX$4*-1*'PM2.5 reduction'!AX82),9))","v":0.99998576500000003},{"$f":"VALUE(FIXED(EXP(AY$4*-1*'PM2.5 reduction'!AY82),9))","v":0.99997980099999995},{"$f":"VALUE(FIXED(EXP(AZ$4*-1*'PM2.5 reduction'!AZ82),9))","v":0.99997455999999996},{"$f":"VALUE(FIXED(EXP(BA$4*-1*'PM2.5 reduction'!BA82),9))","v":0.99998003499999999},{"$f":"VALUE(FIXED(EXP(BB$4*-1*'PM2.5 reduction'!BB82),9))","v":0.99998205399999995},{"$f":"VALUE(FIXED(EXP(BC$4*-1*'PM2.5 reduction'!BC82),9))","v":1}]
[null,"Male 20-24",{"$f":"VALUE(FIXED(EXP(C$4*-1*'PM2.5 reduction'!C83),9))","v":0.99996423700000003},{"$f":"VALUE(FIXED(EXP(D$4*-1*'PM2.5 reduction'!D83),9))","v":0.99996731999999999},{"$f":"VALUE(FIXED(EXP(E$4*-1*'PM2.5 reduction'!E83),9))","v":0.99998726699999996},{"$f":"VALUE(FIXED(EXP(F$4*-1*'PM2.5 reduction'!F83),9))","v":0.99999237299999999},{"$f":"VALUE(FIXED(EXP(G$4*-1*'PM2.5 reduction'!G83),9))","v":0.99999486400000004},{"$f":"VALUE(FIXED(EXP(H$4*-1*'PM2.5 reduction'!H83),9))","v":0.99998828299999998},{"$f":"VALUE(FIXED(EXP(I$4*-1*'PM2.5 reduction'!I83),9))","v":0.99999467500000006},{"$f":"VALUE(FIXED(EXP(J$4*-1*'PM2.5 reduction'!J83),9))","v":0.99998293500000002},{"$f":"VALUE(FIXED(EXP(K$4*-1*'PM2.5 reduction'!K83),9))","v":0.99998333100000003},{"$f":"VALUE(FIXED(EXP(L$4*-1*'PM2.5 reduction'!L83),9))","v":0.999994037},{"$f":"VALUE(FIXED(EXP(M$4*-1*'PM2.5 reduction'!M83),9))","v":0.999994037},{"$f":"VALUE(FIXED(EXP(N$4*-1*'PM2.5 reduction'!N83),9))","v":0.99996639899999995},{"$f":"VALUE(FIXED(EXP(O$4*-1*'PM2.5 reduction'!O83),9))","v":0.99998744699999997},{"$f":"VALUE(FIXED(EXP(P$4*-1*'PM2.5 reduction'!P83),9))","v":0.99997692599999999},{"$f":"VALUE(FIXED(EXP(Q$4*-1*'PM2.5 reduction'!Q83),9))","v":0.999990139},{"$f":"VALUE(FIXED(EXP(R$4*-1*'PM2.5 reduction'!R83),9))","v":0.99998006699999997},{"$f":"VALUE(FIXED(EXP(S$4*-1*'PM2.5 reduction'!S83),9))","v":0.99997758800000003},{"$f":"VALUE(FIXED(EXP(T$4*-1*'PM2.5 reduction'!T83),9))","v":0.99996657700000002},{"$f":"VALUE(FIXED(EXP(U$4*-1*'PM2.5 reduction'!U83),9))","v":1},{"$f":"VALUE(FIXED(EXP(V$4*-1*'PM2.5 reduction'!V83),9))","v":0.99997653799999997},{"$f":"VALUE(FIXED(EXP(W$4*-1*'PM2.5 reduction'!W83),9))","v":0.99998519900000005},{"$f":"VALUE(FIXED(EXP(X$4*-1*'PM2.5 reduction'!X83),9))","v":0.99998519900000005},{"$f":"VALUE(FIXED(EXP(Y$4*-1*'PM2.5 reduction'!Y83),9))","v":0.99997983499999998},{"$f":"VALUE(FIXED(EXP(Z$4*-1*'PM2.5 reduction'!Z83),9))","v":0.99996487999999994},{"$f":"VALUE(FIXED(EXP(AA$4*-1*'PM2.5 reduction'!AA83),9))","v":0.99997110099999997},{"$f":"VALUE(FIXED(EXP(AB$4*-1*'PM2.5 reduction'!AB83),9))","v":0.99996820600000003},{"$f":"VALUE(FIXED(EXP(AC$4*-1*'PM2.5 reduction'!AC83),9))","v":0.99996876599999995},{"$f":"VALUE(FIXED(EXP(AD$4*-1*'PM2.5 reduction'!AD83),9))","v":0.99999448099999999},{"$f":"VALUE(FIXED(EXP(AE$4*-1*'PM2.5 reduction'!AE83),9))","v":0.99999419000000001},{"$f":"VALUE(FIXED(EXP(AF$4*-1*'PM2.5 reduction'!AF83),9))","v":0.99998356799999999},{"$f":"VALUE(FIXED(EXP(AG$4*-1*'PM2.5 reduction'!AG83),9))","v":0.99999419000000001},{"$f":"VALUE(FIXED(EXP(AH$4*-1*'PM2.5 reduction'!AH83),9))","v":0.99997697799999996},{"$f":"VALUE(FIXED(EXP(AI$4*-1*'PM2.5 reduction'!AI83),9))","v":0.99997276400000001},{"$f":"VALUE(FIXED(EXP(AJ$4*-1*'PM2.5 reduction'!AJ83),9))","v":0.99998413799999997},{"$f":"VALUE(FIXED(EXP(AK$4*-1*'PM2.5 reduction'!AK83),9))","v":0.99999053199999999},{"$f":"VALUE(FIXED(EXP(AL$4*-1*'PM2.5 reduction'!AL83),9))","v":0.99998938000000004},{"$f":"VALUE(FIXED(EXP(AM$4*-1*'PM2.5 reduction'!AM83),9))","v":0.99997547600000003},{"$f":"VALUE(FIXED(EXP(AN$4*-1*'PM2.5 reduction'!AN83),9))","v":1},{"$f":"VALUE(FIXED(EXP(AO$4*-1*'PM2.5 reduction'!AO83),9))","v":1},{"$f":"VALUE(FIXED(EXP(AP$4*-1*'PM2.5 reduction'!AP83),9))","v":0.99998034400000002},{"$f":"VALUE(FIXED(EXP(AQ$4*-1*'PM2.5 reduction'!AQ83),9))","v":0.99997510300000003},{"$f":"VALUE(FIXED(EXP(AR$4*-1*'PM2.5 reduction'!AR83),9))","v":0.99997461499999996},{"$f":"VALUE(FIXED(EXP(AS$4*-1*'PM2.5 reduction'!AS83),9))","v":0.99999467500000006},{"$f":"VALUE(FIXED(EXP(AT$4*-1*'PM2.5 reduction'!AT83),9))","v":1},{"$f":"VALUE(FIXED(EXP(AU$4*-1*'PM2.5 reduction'!AU83),9))","v":1},{"$f":"VALUE(FIXED(EXP(AV$4*-1*'PM2.5 reduction'!AV83),9))","v":0.99998672600000005},{"$f":"VALUE(FIXED(EXP(AW$4*-1*'PM2.5 reduction'!AW83),9))","v":0.99997971699999999},{"$f":"VALUE(FIXED(EXP(AX$4*-1*'PM2.5 reduction'!AX83),9))","v":0.99998259199999995},{"$f":"VALUE(FIXED(EXP(AY$4*-1*'PM2.5 reduction'!AY83),9))","v":0.999977169},{"$f":"VALUE(FIXED(EXP(AZ$4*-1*'PM2.5 reduction'!AZ83),9))","v":0.99997101799999999},{"$f":"VALUE(FIXED(EXP(BA$4*-1*'PM2.5 reduction'!BA83),9))","v":0.99997994599999995},{"$f":"VALUE(FIXED(EXP(BB$4*-1*'PM2.5 reduction'!BB83),9))","v":0.99998203399999996},{"$f":"VALUE(FIXED(EXP(BC$4*-1*'PM2.5 reduction'!BC83),9))","v":1}]
[null,"Male 25-29",{"$f":"VALUE(FIXED(EXP(C$4*-1*'PM2.5 reduction'!C84),9))","v":0.99996444100000004},{"$f":"VALUE(FIXED(EXP(D$4*-1*'PM2.5 reduction'!D84),9))","v":0.99996602700000004},{"$f":"VALUE(FIXED(EXP(E$4*-1*'PM2.5 reduction'!E84),9))","v":0.99998712899999997},{"$f":"VALUE(FIXED(EXP(F$4*-1*'PM2.5 reduction'!F84),9))","v":0.99999234699999995},{"$f":"VALUE(FIXED(EXP(G$4*-1*'PM2.5 reduction'!G84),9))","v":0.99999468999999996},{"$f":"VALUE(FIXED(EXP(H$4*-1*'PM2.5 reduction'!H84),9))","v":0.99998766699999997},{"$f":"VALUE(FIXED(EXP(I$4*-1*'PM2.5 reduction'!I84),9))","v":0.99999451500000003},{"$f":"VALUE(FIXED(EXP(J$4*-1*'PM2.5 reduction'!J84),9))","v":0.999984435},{"$f":"VALUE(FIXED(EXP(K$4*-1*'PM2.5 reduction'!K84),9))","v":0.99998337599999998},{"$f":"VALUE(FIXED(EXP(L$4*-1*'PM2.5 reduction'!L84),9))","v":0.99999401399999999},{"$f":"VALUE(FIXED(EXP(M$4*-1*'PM2.5 reduction'!M84),9))","v":0.99999401399999999},{"$f":"VALUE(FIXED(EXP(N$4*-1*'PM2.5 reduction'!N84),9))","v":0.99996687799999995},{"$f":"VALUE(FIXED(EXP(O$4*-1*'PM2.5 reduction'!O84),9))","v":0.99998627299999998},{"$f":"VALUE(FIXED(EXP(P$4*-1*'PM2.5 reduction'!P84),9))","v":0.99997584500000003},{"$f":"VALUE(FIXED(EXP(Q$4*-1*'PM2.5 reduction'!Q84),9))","v":0.999989668},{"$f":"VALUE(FIXED(EXP(R$4*-1*'PM2.5 reduction'!R84),9))","v":0.99998020099999996},{"$f":"VALUE(FIXED(EXP(S$4*-1*'PM2.5 reduction'!S84),9))","v":0.99997515199999998},{"$f":"VALUE(FIXED(EXP(T$4*-1*'PM2.5 reduction'!T84),9))","v":0.99996566600000003},{"$f":"VALUE(FIXED(EXP(U$4*-1*'PM2.5 reduction'!U84),9))","v":1},{"$f":"VALUE(FIXED(EXP(V$4*-1*'PM2.5 reduction'!V84),9))","v":0.99997647700000003},{"$f":"VALUE(FIXED(EXP(W$4*-1*'PM2.5 reduction'!W84),9))","v":0.99998475099999995},{"$f":"VALUE(FIXED(EXP(X$4*-1*'PM2.5 reduction'!X84),9))","v":0.99998475099999995},{"$f":"VALUE(FIXED(EXP(Y$4*-1*'PM2.5 reduction'!Y84),9))","v":0.99998028800000005},{"$f":"VALUE(FIXED(EXP(Z$4*-1*'PM2.5 reduction'!Z84),9))","v":0.99996499900000002},{"$f":"VALUE(FIXED(EXP(AA$4*-1*'PM2.5 reduction'!AA84),9))","v":0.99997029800000004},{"$f":"VALUE(FIXED(EXP(AB$4*-1*'PM2.5 reduction'!AB84),9))","v":0.99996633899999998},{"$f":"VALUE(FIXED(EXP(AC$4*-1*'PM2.5 reduction'!AC84),9))","v":0.99996826000000005},{"$f":"VALUE(FIXED(EXP(AD$4*-1*'PM2.5 reduction'!AD84),9))","v":0.99999430899999997},{"$f":"VALUE(FIXED(EXP(AE$4*-1*'PM2.5 reduction'!AE84),9))","v":0.99999408999999995},{"$f":"VALUE(FIXED(EXP(AF$4*-1*'PM2.5 reduction'!AF84),9))","v":0.99998288199999996},{"$f":"VALUE(FIXED(EXP(AG$4*-1*'PM2.5 reduction'!AG84),9))","v":0.99999408999999995},{"$f":"VALUE(FIXED(EXP(AH$4*-1*'PM2.5 reduction'!AH84),9))","v":0.99997674299999995},{"$f":"VALUE(FIXED(EXP(AI$4*-1*'PM2.5 reduction'!AI84),9))","v":0.99997037700000002},{"$f":"VALUE(FIXED(EXP(AJ$4*-1*'PM2.5 reduction'!AJ84),9))","v":0.99998278399999996},{"$f":"VALUE(FIXED(EXP(AK$4*-1*'PM2.5 reduction'!AK84),9))","v":0.99999053199999999},{"$f":"VALUE(FIXED(EXP(AL$4*-1*'PM2.5 reduction'!AL84),9))","v":0.99998924300000003},{"$f":"VALUE(FIXED(EXP(AM$4*-1*'PM2.5 reduction'!AM84),9))","v":0.999975273},{"$f":"VALUE(FIXED(EXP(AN$4*-1*'PM2.5 reduction'!AN84),9))","v":1},{"$f":"VALUE(FIXED(EXP(AO$4*-1*'PM2.5 reduction'!AO84),9))","v":1},{"$f":"VALUE(FIXED(EXP(AP$4*-1*'PM2.5 reduction'!AP84),9))","v":0.99997726099999995},{"$f":"VALUE(FIXED(EXP(AQ$4*-1*'PM2.5 reduction'!AQ84),9))","v":0.99997467699999998},{"$f":"VALUE(FIXED(EXP(AR$4*-1*'PM2.5 reduction'!AR84),9))","v":0.99997320000000001},{"$f":"VALUE(FIXED(EXP(AS$4*-1*'PM2.5 reduction'!AS84),9))","v":0.99999451500000003},{"$f":"VALUE(FIXED(EXP(AT$4*-1*'PM2.5 reduction'!AT84),9))","v":1},{"$f":"VALUE(FIXED(EXP(AU$4*-1*'PM2.5 reduction'!AU84),9))","v":1},{"$f":"VALUE(FIXED(EXP(AV$4*-1*'PM2.5 reduction'!AV84),9))","v":0.99998628700000003},{"$f":"VALUE(FIXED(EXP(AW$4*-1*'PM2.5 reduction'!AW84),9))","v":0.99997945200000005},{"$f":"VALUE(FIXED(EXP(AX$4*-1*'PM2.5 reduction'!AX84),9))","v":0.99998515600000004},{"$f":"VALUE(FIXED(EXP(AY$4*-1*'PM2.5 reduction'!AY84),9))","v":0.99997561999999995},{"$f":"VALUE(FIXED(EXP(AZ$4*-1*'PM2.5 reduction'!AZ84),9))","v":0.99997024499999998},{"$f":"VALUE(FIXED(EXP(BA$4*-1*'PM2.5 reduction'!BA84),9))","v":0.99998000600000003},{"$f":"VALUE(FIXED(EXP(BB$4*-1*'PM2.5 reduction'!BB84),9))","v":0.99998208},{"$f":"VALUE(FIXED(EXP(BC$4*-1*'PM2.5 reduction'!BC84),9))","v":1}]
[null,"Male 30-34",{"$f":"VALUE(FIXED(EXP(C$4*-1*'PM2.5 reduction'!C85),9))","v":0.99996505800000002},{"$f":"VALUE(FIXED(EXP(D$4*-1*'PM2.5 reduction'!D85),9))","v":0.99996773500000002},{"$f":"VALUE(FIXED(EXP(E$4*-1*'PM2.5 reduction'!E85),9))","v":0.99998677199999997},{"$f":"VALUE(FIXED(EXP(F$4*-1*'PM2.5 reduction'!F85),9))","v":0.99999194700000005},{"$f":"VALUE(FIXED(EXP(G$4*-1*'PM2.5 reduction'!G85),9))","v":0.99999476499999995},{"$f":"VALUE(FIXED(EXP(H$4*-1*'PM2.5 reduction'!H85),9))","v":0.999987654},{"$f":"VALUE(FIXED(EXP(I$4*-1*'PM2.5 reduction'!I85),9))","v":0.99999436799999997},{"$f":"VALUE(FIXED(EXP(J$4*-1*'PM2.5 reduction'!J85),9))","v":0.99998396099999998},{"$f":"VALUE(FIXED(EXP(K$4*-1*'PM2.5 reduction'!K85),9))","v":0.99998350400000002},{"$f":"VALUE(FIXED(EXP(L$4*-1*'PM2.5 reduction'!L85),9))","v":0.99999383200000003},{"$f":"VALUE(FIXED(EXP(M$4*-1*'PM2.5 reduction'!M85),9))","v":0.99999383200000003},{"$f":"VALUE(FIXED(EXP(N$4*-1*'PM2.5 reduction'!N85),9))","v":0.99996760799999995},{"$f":"VALUE(FIXED(EXP(O$4*-1*'PM2.5 reduction'!O85),9))","v":0.99998606099999998},{"$f":"VALUE(FIXED(EXP(P$4*-1*'PM2.5 reduction'!P85),9))","v":0.99997414699999998},{"$f":"VALUE(FIXED(EXP(Q$4*-1*'PM2.5 reduction'!Q85),9))","v":0.99998969400000004},{"$f":"VALUE(FIXED(EXP(R$4*-1*'PM2.5 reduction'!R85),9))","v":0.99997988500000001},{"$f":"VALUE(FIXED(EXP(S$4*-1*'PM2.5 reduction'!S85),9))","v":0.99997539000000002},{"$f":"VALUE(FIXED(EXP(T$4*-1*'PM2.5 reduction'!T85),9))","v":0.99996532299999996},{"$f":"VALUE(FIXED(EXP(U$4*-1*'PM2.5 reduction'!U85),9))","v":1},{"$f":"VALUE(FIXED(EXP(V$4*-1*'PM2.5 reduction'!V85),9))","v":0.99997557500000001},{"$f":"VALUE(FIXED(EXP(W$4*-1*'PM2.5 reduction'!W85),9))","v":0.999984498},{"$f":"VALUE(FIXED(EXP(X$4*-1*'PM2.5 reduction'!X85),9))","v":0.999984498},{"$f":"VALUE(FIXED(EXP(Y$4*-1*'PM2.5 reduction'!Y85),9))","v":0.99997948000000003},{"$f":"VALUE(FIXED(EXP(Z$4*-1*'PM2.5 reduction'!Z85),9))","v":0.99996501299999996},{"$f":"VALUE(FIXED(EXP(AA$4*-1*'PM2.5 reduction'!AA85),9))","v":0.99997048399999999},{"$f":"VALUE(FIXED(EXP(AB$4*-1*'PM2.5 reduction'!AB85),9))","v":0.99996798600000003},{"$f":"VALUE(FIXED(EXP(AC$4*-1*'PM2.5 reduction'!AC85),9))","v":0.99996831500000005},{"$f":"VALUE(FIXED(EXP(AD$4*-1*'PM2.5 reduction'!AD85),9))","v":0.99999386099999998},{"$f":"VALUE(FIXED(EXP(AE$4*-1*'PM2.5 reduction'!AE85),9))","v":0.99999350399999998},{"$f":"VALUE(FIXED(EXP(AF$4*-1*'PM2.5 reduction'!AF85),9))","v":0.99998225399999996},{"$f":"VALUE(FIXED(EXP(AG$4*-1*'PM2.5 reduction'!AG85),9))","v":0.99999350399999998},{"$f":"VALUE(FIXED(EXP(AH$4*-1*'PM2.5 reduction'!AH85),9))","v":0.99997688200000001},{"$f":"VALUE(FIXED(EXP(AI$4*-1*'PM2.5 reduction'!AI85),9))","v":0.999970464},{"$f":"VALUE(FIXED(EXP(AJ$4*-1*'PM2.5 reduction'!AJ85),9))","v":0.99998333399999995},{"$f":"VALUE(FIXED(EXP(AK$4*-1*'PM2.5 reduction'!AK85),9))","v":0.99999053199999999},{"$f":"VALUE(FIXED(EXP(AL$4*-1*'PM2.5 reduction'!AL85),9))","v":0.99998922300000004},{"$f":"VALUE(FIXED(EXP(AM$4*-1*'PM2.5 reduction'!AM85),9))","v":0.99997513900000001},{"$f":"VALUE(FIXED(EXP(AN$4*-1*'PM2.5 reduction'!AN85),9))","v":1},{"$f":"VALUE(FIXED(EXP(AO$4*-1*'PM2.5 reduction'!AO85),9))","v":1},{"$f":"VALUE(FIXED(EXP(AP$4*-1*'PM2.5 reduction'!AP85),9))","v":0.99997771499999999},{"$f":"VALUE(FIXED(EXP(AQ$4*-1*'PM2.5 reduction'!AQ85),9))","v":0.99997482599999998},{"$f":"VALUE(FIXED(EXP(AR$4*-1*'PM2.5 reduction'!AR85),9))","v":0.99997338000000002},{"$f":"VALUE(FIXED(EXP(AS$4*-1*'PM2.5 reduction'!AS85),9))","v":0.99999436799999997},{"$f":"VALUE(FIXED(EXP(AT$4*-1*'PM2.5 reduction'!AT85),9))","v":1},{"$f":"VALUE(FIXED(EXP(AU$4*-1*'PM2.5 reduction'!AU85),9))","v":1},{"$f":"VALUE(FIXED(EXP(AV$4*-1*'PM2.5 reduction'!AV85),9))","v":0.99998647500000004},{"$f":"VALUE(FIXED(EXP(AW$4*-1*'PM2.5 reduction'!AW85),9))","v":0.99997993600000001},{"$f":"VALUE(FIXED(EXP(AX$4*-1*'PM2.5 reduction'!AX85),9))","v":0.99998438999999995},{"$f":"VALUE(FIXED(EXP(AY$4*-1*'PM2.5 reduction'!AY85),9))","v":0.99997643400000003},{"$f":"VALUE(FIXED(EXP(AZ$4*-1*'PM2.5 reduction'!AZ85),9))","v":0.99997069500000002},{"$f":"VALUE(FIXED(EXP(BA$4*-1*'PM2.5 reduction'!BA85),9))","v":0.99997941999999995},{"$f":"VALUE(FIXED(EXP(BB$4*-1*'PM2.5 reduction'!BB85),9))","v":0.99998230700000001},{"$f":"VALUE(FIXED(EXP(BC$4*-1*'PM2.5 reduction'!BC85),9))","v":1}]
[null,"Male 35-39",{"$f":"VALUE(FIXED(EXP(C$4*-1*'PM2.5 reduction'!C86),9))","v":0.99996473799999996},{"$f":"VALUE(FIXED(EXP(D$4*-1*'PM2.5 reduction'!D86),9))","v":0.99996647999999999},{"$f":"VALUE(FIXED(EXP(E$4*-1*'PM2.5 reduction'!E86),9))","v":0.99998741700000005},{"$f":"VALUE(FIXED(EXP(F$4*-1*'PM2.5 reduction'!F86),9))","v":0.99999152999999996},{"$f":"VALUE(FIXED(EXP(G$4*-1*'PM2.5 reduction'!G86),9))","v":0.999994563},{"$f":"VALUE(FIXED(EXP(H$4*-1*'PM2.5 reduction'!H86),9))","v":0.99998744299999998},{"$f":"VALUE(FIXED(EXP(I$4*-1*'PM2.5 reduction'!I86),9))","v":0.99999475299999996},{"$f":"VALUE(FIXED(EXP(J$4*-1*'PM2.5 reduction'!J86),9))","v":0.99998419199999999},{"$f":"VALUE(FIXED(EXP(K$4*-1*'PM2.5 reduction'!K86),9))","v":0.99998265500000005},{"$f":"VALUE(FIXED(EXP(L$4*-1*'PM2.5 reduction'!L86),9))","v":0.99999374100000005},{"$f":"VALUE(FIXED(EXP(M$4*-1*'PM2.5 reduction'!M86),9))","v":0.99999374100000005},{"$f":"VALUE(FIXED(EXP(N$4*-1*'PM2.5 reduction'!N86),9))","v":0.99996923400000004},{"$f":"VALUE(FIXED(EXP(O$4*-1*'PM2.5 reduction'!O86),9))","v":0.99998543100000004},{"$f":"VALUE(FIXED(EXP(P$4*-1*'PM2.5 reduction'!P86),9))","v":0.99997657799999995},{"$f":"VALUE(FIXED(EXP(Q$4*-1*'PM2.5 reduction'!Q86),9))","v":0.99998970499999995},{"$f":"VALUE(FIXED(EXP(R$4*-1*'PM2.5 reduction'!R86),9))","v":0.99998023899999999},{"$f":"VALUE(FIXED(EXP(S$4*-1*'PM2.5 reduction'!S86),9))","v":0.99997606999999999},{"$f":"VALUE(FIXED(EXP(T$4*-1*'PM2.5 reduction'!T86),9))","v":0.99996629100000001},{"$f":"VALUE(FIXED(EXP(U$4*-1*'PM2.5 reduction'!U86),9))","v":1},{"$f":"VALUE(FIXED(EXP(V$4*-1*'PM2.5 reduction'!V86),9))","v":0.99997647199999995},{"$f":"VALUE(FIXED(EXP(W$4*-1*'PM2.5 reduction'!W86),9))","v":0.99998477900000005},{"$f":"VALUE(FIXED(EXP(X$4*-1*'PM2.5 reduction'!X86),9))","v":0.99998477900000005},{"$f":"VALUE(FIXED(EXP(Y$4*-1*'PM2.5 reduction'!Y86),9))","v":0.99997991600000002},{"$f":"VALUE(FIXED(EXP(Z$4*-1*'PM2.5 reduction'!Z86),9))","v":0.99996569099999999},{"$f":"VALUE(FIXED(EXP(AA$4*-1*'PM2.5 reduction'!AA86),9))","v":0.99997121200000005},{"$f":"VALUE(FIXED(EXP(AB$4*-1*'PM2.5 reduction'!AB86),9))","v":0.99996732300000002},{"$f":"VALUE(FIXED(EXP(AC$4*-1*'PM2.5 reduction'!AC86),9))","v":0.99996894400000003},{"$f":"VALUE(FIXED(EXP(AD$4*-1*'PM2.5 reduction'!AD86),9))","v":0.99999428899999998},{"$f":"VALUE(FIXED(EXP(AE$4*-1*'PM2.5 reduction'!AE86),9))","v":0.99999415300000005},{"$f":"VALUE(FIXED(EXP(AF$4*-1*'PM2.5 reduction'!AF86),9))","v":0.99998212399999997},{"$f":"VALUE(FIXED(EXP(AG$4*-1*'PM2.5 reduction'!AG86),9))","v":0.99999415300000005},{"$f":"VALUE(FIXED(EXP(AH$4*-1*'PM2.5 reduction'!AH86),9))","v":0.99997690299999997},{"$f":"VALUE(FIXED(EXP(AI$4*-1*'PM2.5 reduction'!AI86),9))","v":0.99997132700000002},{"$f":"VALUE(FIXED(EXP(AJ$4*-1*'PM2.5 reduction'!AJ86),9))","v":0.99998347600000004},{"$f":"VALUE(FIXED(EXP(AK$4*-1*'PM2.5 reduction'!AK86),9))","v":0.99999053199999999},{"$f":"VALUE(FIXED(EXP(AL$4*-1*'PM2.5 reduction'!AL86),9))","v":0.99998905599999999},{"$f":"VALUE(FIXED(EXP(AM$4*-1*'PM2.5 reduction'!AM86),9))","v":0.99997532200000006},{"$f":"VALUE(FIXED(EXP(AN$4*-1*'PM2.5 reduction'!AN86),9))","v":1},{"$f":"VALUE(FIXED(EXP(AO$4*-1*'PM2.5 reduction'!AO86),9))","v":1},{"$f":"VALUE(FIXED(EXP(AP$4*-1*'PM2.5 reduction'!AP86),9))","v":0.99998007799999999},{"$f":"VALUE(FIXED(EXP(AQ$4*-1*'PM2.5 reduction'!AQ86),9))","v":0.99997477899999998},{"$f":"VALUE(FIXED(EXP(AR$4*-1*'PM2.5 reduction'!AR86),9))","v":0.999974166},{"$f":"VALUE(FIXED(EXP(AS$4*-1*'PM2.5 reduction'!AS86),9))","v":0.99999475299999996},{"$f":"VALUE(FIXED(EXP(AT$4*-1*'PM2.5 reduction'!AT86),9))","v":1},{"$f":"VALUE(FIXED(EXP(AU$4*-1*'PM2.5 reduction'!AU86),9))","v":1},{"$f":"VALUE(FIXED(EXP(AV$4*-1*'PM2.5 reduction'!AV86),9))","v":0.99998667500000005},{"$f":"VALUE(FIXED(EXP(AW$4*-1*'PM2.5 reduction'!AW86),9))","v":0.99997952499999998},{"$f":"VALUE(FIXED(EXP(AX$4*-1*'PM2.5 reduction'!AX86),9))","v":0.99998600000000004},{"$f":"VALUE(FIXED(EXP(AY$4*-1*'PM2.5 reduction'!AY86),9))","v":0.99997851100000001},{"$f":"VALUE(FIXED(EXP(AZ$4*-1*'PM2.5 reduction'!AZ86),9))","v":0.99997320199999995},{"$f":"VALUE(FIXED(EXP(BA$4*-1*'PM2.5 reduction'!BA86),9))","v":0.99997934899999996},{"$f":"VALUE(FIXED(EXP(BB$4*-1*'PM2.5 reduction'!BB86),9))","v":0.99998243799999997},{"$f":"VALUE(FIXED(EXP(BC$4*-1*'PM2.5 reduction'!BC86),9))","v":1}]
[null,"Male 40-44",{"$f":"VALUE(FIXED(EXP(C$4*-1*'PM2.5 reduction'!C87),9))","v":0.99996606099999996},{"$f":"VALUE(FIXED(EXP(D$4*-1*'PM2.5 reduction'!D87),9))","v":0.99996822399999996},{"$f":"VALUE(FIXED(EXP(E$4*-1*'PM2.5 reduction'!E87),9))","v":0.99998783000000002},{"$f":"VALUE(FIXED(EXP(F$4*-1*'PM2.5 reduction'!F87),9))","v":0.99999186299999998},{"$f":"VALUE(FIXED(EXP(G$4*-1*'PM2.5 reduction'!G87),9))","v":0.99999453299999996},{"$f":"VALUE(FIXED(EXP(H$4*-1*'PM2.5 reduction'!H87),9))","v":0.99998757299999996},{"$f":"VALUE(FIXED(EXP(I$4*-1*'PM2.5 reduction'!I87),9))","v":0.99999452200000005},{"$f":"VALUE(FIXED(EXP(J$4*-1*'PM2.5 reduction'!J87),9))","v":0.99998427099999998},{"$f":"VALUE(FIXED(EXP(K$4*-1*'PM2.5 reduction'!K87),9))","v":0.99998325300000002},{"$f":"VALUE(FIXED(EXP(L$4*-1*'PM2.5 reduction'!L87),9))","v":0.99999405699999999},{"$f":"VALUE(FIXED(EXP(M$4*-1*'PM2.5 reduction'!M87),9))","v":0.99999405699999999},{"$f":"VALUE(FIXED(EXP(N$4*-1*'PM2.5 reduction'!N87),9))","v":0.99996966700000001},{"$f":"VALUE(FIXED(EXP(O$4*-1*'PM2.5 reduction'!O87),9))","v":0.99998609199999999},{"$f":"VALUE(FIXED(EXP(P$4*-1*'PM2.5 reduction'!P87),9))","v":0.99997517800000002},{"$f":"VALUE(FIXED(EXP(Q$4*-1*'PM2.5 reduction'!Q87),9))","v":0.99998971199999998},{"$f":"VALUE(FIXED(EXP(R$4*-1*'PM2.5 reduction'!R87),9))","v":0.99998035299999999},{"$f":"VALUE(FIXED(EXP(S$4*-1*'PM2.5 reduction'!S87),9))","v":0.99997671200000005},{"$f":"VALUE(FIXED(EXP(T$4*-1*'PM2.5 reduction'!T87),9))","v":0.99996664999999996},{"$f":"VALUE(FIXED(EXP(U$4*-1*'PM2.5 reduction'!U87),9))","v":1},{"$f":"VALUE(FIXED(EXP(V$4*-1*'PM2.5 reduction'!V87),9))","v":0.99997620200000004},{"$f":"VALUE(FIXED(EXP(W$4*-1*'PM2.5 reduction'!W87),9))","v":0.99998479399999995},{"$f":"VALUE(FIXED(EXP(X$4*-1*'PM2.5 reduction'!X87),9))","v":0.99998479399999995},{"$f":"VALUE(FIXED(EXP(Y$4*-1*'PM2.5 reduction'!Y87),9))","v":0.99997969399999997},{"$f":"VALUE(FIXED(EXP(Z$4*-1*'PM2.5 reduction'!Z87),9))","v":0.99996565500000001},{"$f":"VALUE(FIXED(EXP(AA$4*-1*'PM2.5 reduction'!AA87),9))","v":0.99997151200000001},{"$f":"VALUE(FIXED(EXP(AB$4*-1*'PM2.5 reduction'!AB87),9))","v":0.99996921699999997},{"$f":"VALUE(FIXED(EXP(AC$4*-1*'PM2.5 reduction'!AC87),9))","v":0.99996904799999997},{"$f":"VALUE(FIXED(EXP(AD$4*-1*'PM2.5 reduction'!AD87),9))","v":0.99999437300000005},{"$f":"VALUE(FIXED(EXP(AE$4*-1*'PM2.5 reduction'!AE87),9))","v":0.99999429500000003},{"$f":"VALUE(FIXED(EXP(AF$4*-1*'PM2.5 reduction'!AF87),9))","v":0.999982649},{"$f":"VALUE(FIXED(EXP(AG$4*-1*'PM2.5 reduction'!AG87),9))","v":0.99999429500000003},{"$f":"VALUE(FIXED(EXP(AH$4*-1*'PM2.5 reduction'!AH87),9))","v":0.99997701500000002},{"$f":"VALUE(FIXED(EXP(AI$4*-1*'PM2.5 reduction'!AI87),9))","v":0.99997208299999996},{"$f":"VALUE(FIXED(EXP(AJ$4*-1*'PM2.5 reduction'!AJ87),9))","v":0.999984714},{"$f":"VALUE(FIXED(EXP(AK$4*-1*'PM2.5 reduction'!AK87),9))","v":0.99999053199999999},{"$f":"VALUE(FIXED(EXP(AL$4*-1*'PM2.5 reduction'!AL87),9))","v":0.99998922099999998},{"$f":"VALUE(FIXED(EXP(AM$4*-1*'PM2.5 reduction'!AM87),9))","v":0.99997528999999996},{"$f":"VALUE(FIXED(EXP(AN$4*-1*'PM2.5 reduction'!AN87),9))","v":1},{"$f":"VALUE(FIXED(EXP(AO$4*-1*'PM2.5 reduction'!AO87),9))","v":1},{"$f":"VALUE(FIXED(EXP(AP$4*-1*'PM2.5 reduction'!AP87),9))","v":0.99998185699999997},{"$f":"VALUE(FIXED(EXP(AQ$4*-1*'PM2.5 reduction'!AQ87),9))","v":0.99997514600000004},{"$f":"VALUE(FIXED(EXP(AR$4*-1*'PM2.5 reduction'!AR87),9))","v":0.99997486700000005},{"$f":"VALUE(FIXED(EXP(AS$4*-1*'PM2.5 reduction'!AS87),9))","v":0.99999452200000005},{"$f":"VALUE(FIXED(EXP(AT$4*-1*'PM2.5 reduction'!AT87),9))","v":1},{"$f":"VALUE(FIXED(EXP(AU$4*-1*'PM2.5 reduction'!AU87),9))","v":1},{"$f":"VALUE(FIXED(EXP(AV$4*-1*'PM2.5 reduction'!AV87),9))","v":0.99998593000000002},{"$f":"VALUE(FIXED(EXP(AW$4*-1*'PM2.5 reduction'!AW87),9))","v":0.99997977999999998},{"$f":"VALUE(FIXED(EXP(AX$4*-1*'PM2.5 reduction'!AX87),9))","v":0.999985448},{"$f":"VALUE(FIXED(EXP(AY$4*-1*'PM2.5 reduction'!AY87),9))","v":0.99997942399999995},{"$f":"VALUE(FIXED(EXP(AZ$4*-1*'PM2.5 reduction'!AZ87),9))","v":0.99997416500000003},{"$f":"VALUE(FIXED(EXP(BA$4*-1*'PM2.5 reduction'!BA87),9))","v":0.999979544},{"$f":"VALUE(FIXED(EXP(BB$4*-1*'PM2.5 reduction'!BB87),9))","v":0.99998229699999996},{"$f":"VALUE(FIXED(EXP(BC$4*-1*'PM2.5 reduction'!BC87),9))","v":1}]
[null,"Male 45-49",{"$f":"VALUE(FIXED(EXP(C$4*-1*'PM2.5 reduction'!C88),9))","v":0.99996519399999995},{"$f":"VALUE(FIXED(EXP(D$4*-1*'PM2.5 reduction'!D88),9))","v":0.99996722900000001},{"$f":"VALUE(FIXED(EXP(E$4*-1*'PM2.5 reduction'!E88),9))","v":0.99998709100000005},{"$f":"VALUE(FIXED(EXP(F$4*-1*'PM2.5 reduction'!F88),9))","v":0.999992141},{"$f":"VALUE(FIXED(EXP(G$4*-1*'PM2.5 reduction'!G88),9))","v":0.99999462900000002},{"$f":"VALUE(FIXED(EXP(H$4*-1*'PM2.5 reduction'!H88),9))","v":0.99998826600000001},{"$f":"VALUE(FIXED(EXP(I$4*-1*'PM2.5 reduction'!I88),9))","v":0.99999453000000005},{"$f":"VALUE(FIXED(EXP(J$4*-1*'PM2.5 reduction'!J88),9))","v":0.99998430599999999},{"$f":"VALUE(FIXED(EXP(K$4*-1*'PM2.5 reduction'!K88),9))","v":0.99998354099999998},{"$f":"VALUE(FIXED(EXP(L$4*-1*'PM2.5 reduction'!L88),9))","v":0.99999438600000001},{"$f":"VALUE(FIXED(EXP(M$4*-1*'PM2.5 reduction'!M88),9))","v":0.99999438600000001},{"$f":"VALUE(FIXED(EXP(N$4*-1*'PM2.5 reduction'!N88),9))","v":0.99996870999999998},{"$f":"VALUE(FIXED(EXP(O$4*-1*'PM2.5 reduction'!O88),9))","v":0.99998705799999998},{"$f":"VALUE(FIXED(EXP(P$4*-1*'PM2.5 reduction'!P88),9))","v":0.999974217},{"$f":"VALUE(FIXED(EXP(Q$4*-1*'PM2.5 reduction'!Q88),9))","v":0.99998985699999998},{"$f":"VALUE(FIXED(EXP(R$4*-1*'PM2.5 reduction'!R88),9))","v":0.99997961199999996},{"$f":"VALUE(FIXED(EXP(S$4*-1*'PM2.5 reduction'!S88),9))","v":0.99997781100000005},{"$f":"VALUE(FIXED(EXP(T$4*-1*'PM2.5 reduction'!T88),9))","v":0.99996654799999996},{"$f":"VALUE(FIXED(EXP(U$4*-1*'PM2.5 reduction'!U88),9))","v":1},{"$f":"VALUE(FIXED(EXP(V$4*-1*'PM2.5 reduction'!V88),9))","v":0.99997632599999997},{"$f":"VALUE(FIXED(EXP(W$4*-1*'PM2.5 reduction'!W88),9))","v":0.99998545100000003},{"$f":"VALUE(FIXED(EXP(X$4*-1*'PM2.5 reduction'!X88),9))","v":0.99998545100000003},{"$f":"VALUE(FIXED(EXP(Y$4*-1*'PM2.5 reduction'!Y88),9))","v":0.99997997000000005},{"$f":"VALUE(FIXED(EXP(Z$4*-1*'PM2.5 reduction'!Z88),9))","v":0.99996659499999996},{"$f":"VALUE(FIXED(EXP(AA$4*-1*'PM2.5 reduction'!AA88),9))","v":0.99997233500000005},{"$f":"VALUE(FIXED(EXP(AB$4*-1*'PM2.5 reduction'!AB88),9))","v":0.99996859999999999},{"$f":"VALUE(FIXED(EXP(AC$4*-1*'PM2.5 reduction'!AC88),9))","v":0.99997018699999995},{"$f":"VALUE(FIXED(EXP(AD$4*-1*'PM2.5 reduction'!AD88),9))","v":0.99999431500000002},{"$f":"VALUE(FIXED(EXP(AE$4*-1*'PM2.5 reduction'!AE88),9))","v":0.99999413100000001},{"$f":"VALUE(FIXED(EXP(AF$4*-1*'PM2.5 reduction'!AF88),9))","v":0.999982496},{"$f":"VALUE(FIXED(EXP(AG$4*-1*'PM2.5 reduction'!AG88),9))","v":0.99999413100000001},{"$f":"VALUE(FIXED(EXP(AH$4*-1*'PM2.5 reduction'!AH88),9))","v":0.99997706500000005},{"$f":"VALUE(FIXED(EXP(AI$4*-1*'PM2.5 reduction'!AI88),9))","v":0.99997248900000002},{"$f":"VALUE(FIXED(EXP(AJ$4*-1*'PM2.5 reduction'!AJ88),9))","v":0.99998377500000002},{"$f":"VALUE(FIXED(EXP(AK$4*-1*'PM2.5 reduction'!AK88),9))","v":0.99999053199999999},{"$f":"VALUE(FIXED(EXP(AL$4*-1*'PM2.5 reduction'!AL88),9))","v":0.99998956100000003},{"$f":"VALUE(FIXED(EXP(AM$4*-1*'PM2.5 reduction'!AM88),9))","v":0.99997527100000005},{"$f":"VALUE(FIXED(EXP(AN$4*-1*'PM2.5 reduction'!AN88),9))","v":1},{"$f":"VALUE(FIXED(EXP(AO$4*-1*'PM2.5 reduction'!AO88),9))","v":1},{"$f":"VALUE(FIXED(EXP(AP$4*-1*'PM2.5 reduction'!AP88),9))","v":0.99998120099999999},{"$f":"VALUE(FIXED(EXP(AQ$4*-1*'PM2.5 reduction'!AQ88),9))","v":0.99997580500000005},{"$f":"VALUE(FIXED(EXP(AR$4*-1*'PM2.5 reduction'!AR88),9))","v":0.99997550099999999},{"$f":"VALUE(FIXED(EXP(AS$4*-1*'PM2.5 reduction'!AS88),9))","v":0.99999453000000005},{"$f":"VALUE(FIXED(EXP(AT$4*-1*'PM2.5 reduction'!AT88),9))","v":1},{"$f":"VALUE(FIXED(EXP(AU$4*-1*'PM2.5 reduction'!AU88),9))","v":1},{"$f":"VALUE(FIXED(EXP(AV$4*-1*'PM2.5 reduction'!AV88),9))","v":0.99998690400000001},{"$f":"VALUE(FIXED(EXP(AW$4*-1*'PM2.5 reduction'!AW88),9))","v":0.99998008299999996},{"$f":"VALUE(FIXED(EXP(AX$4*-1*'PM2.5 reduction'!AX88),9))","v":0.999985177},{"$f":"VALUE(FIXED(EXP(AY$4*-1*'PM2.5 reduction'!AY88),9))","v":0.99997908400000002},{"$f":"VALUE(FIXED(EXP(AZ$4*-1*'PM2.5 reduction'!AZ88),9))","v":0.99997279299999997},{"$f":"VALUE(FIXED(EXP(BA$4*-1*'PM2.5 reduction'!BA88),9))","v":0.99998018899999996},{"$f":"VALUE(FIXED(EXP(BB$4*-1*'PM2.5 reduction'!BB88),9))","v":0.99998247600000001},{"$f":"VALUE(FIXED(EXP(BC$4*-1*'PM2.5 reduction'!BC88),9))","v":1}]
[null,"Male 50-54",{"$f":"VALUE(FIXED(EXP(C$4*-1*'PM2.5 reduction'!C89),9))","v":0.999966138},{"$f":"VALUE(FIXED(EXP(D$4*-1*'PM2.5 reduction'!D89),9))","v":0.99996800600000002},{"$f":"VALUE(FIXED(EXP(E$4*-1*'PM2.5 reduction'!E89),9))","v":0.99998713900000002},{"$f":"VALUE(FIXED(EXP(F$4*-1*'PM2.5 reduction'!F89),9))","v":0.99999258000000002},{"$f":"VALUE(FIXED(EXP(G$4*-1*'PM2.5 reduction'!G89),9))","v":0.99999470400000001},{"$f":"VALUE(FIXED(EXP(H$4*-1*'PM2.5 reduction'!H89),9))","v":0.99998813499999994},{"$f":"VALUE(FIXED(EXP(I$4*-1*'PM2.5 reduction'!I89),9))","v":0.99999448700000004},{"$f":"VALUE(FIXED(EXP(J$4*-1*'PM2.5 reduction'!J89),9))","v":0.99998425499999999},{"$f":"VALUE(FIXED(EXP(K$4*-1*'PM2.5 reduction'!K89),9))","v":0.99998311600000001},{"$f":"VALUE(FIXED(EXP(L$4*-1*'PM2.5 reduction'!L89),9))","v":0.99999431000000005},{"$f":"VALUE(FIXED(EXP(M$4*-1*'PM2.5 reduction'!M89),9))","v":0.99999431000000005},{"$f":"VALUE(FIXED(EXP(N$4*-1*'PM2.5 reduction'!N89),9))","v":0.99996958800000002},{"$f":"VALUE(FIXED(EXP(O$4*-1*'PM2.5 reduction'!O89),9))","v":0.99998727499999995},{"$f":"VALUE(FIXED(EXP(P$4*-1*'PM2.5 reduction'!P89),9))","v":0.99997511400000005},{"$f":"VALUE(FIXED(EXP(Q$4*-1*'PM2.5 reduction'!Q89),9))","v":0.99999002800000003},{"$f":"VALUE(FIXED(EXP(R$4*-1*'PM2.5 reduction'!R89),9))","v":0.99998011899999995},{"$f":"VALUE(FIXED(EXP(S$4*-1*'PM2.5 reduction'!S89),9))","v":0.99997759399999997},{"$f":"VALUE(FIXED(EXP(T$4*-1*'PM2.5 reduction'!T89),9))","v":0.99996655199999995},{"$f":"VALUE(FIXED(EXP(U$4*-1*'PM2.5 reduction'!U89),9))","v":1},{"$f":"VALUE(FIXED(EXP(V$4*-1*'PM2.5 reduction'!V89),9))","v":0.99997632999999997},{"$f":"VALUE(FIXED(EXP(W$4*-1*'PM2.5 reduction'!W89),9))","v":0.99998551199999997},{"$f":"VALUE(FIXED(EXP(X$4*-1*'PM2.5 reduction'!X89),9))","v":0.99998551199999997},{"$f":"VALUE(FIXED(EXP(Y$4*-1*'PM2.5 reduction'!Y89),9))","v":0.99998013299999999},{"$f":"VALUE(FIXED(EXP(Z$4*-1*'PM2.5 reduction'!Z89),9))","v":0.99996658599999999},{"$f":"VALUE(FIXED(EXP(AA$4*-1*'PM2.5 reduction'!AA89),9))","v":0.99997236599999995},{"$f":"VALUE(FIXED(EXP(AB$4*-1*'PM2.5 reduction'!AB89),9))","v":0.99996896499999999},{"$f":"VALUE(FIXED(EXP(AC$4*-1*'PM2.5 reduction'!AC89),9))","v":0.99997046599999995},{"$f":"VALUE(FIXED(EXP(AD$4*-1*'PM2.5 reduction'!AD89),9))","v":0.99999440399999995},{"$f":"VALUE(FIXED(EXP(AE$4*-1*'PM2.5 reduction'!AE89),9))","v":0.99999418699999998},{"$f":"VALUE(FIXED(EXP(AF$4*-1*'PM2.5 reduction'!AF89),9))","v":0.99998230200000005},{"$f":"VALUE(FIXED(EXP(AG$4*-1*'PM2.5 reduction'!AG89),9))","v":0.99999418699999998},{"$f":"VALUE(FIXED(EXP(AH$4*-1*'PM2.5 reduction'!AH89),9))","v":0.99997683400000004},{"$f":"VALUE(FIXED(EXP(AI$4*-1*'PM2.5 reduction'!AI89),9))","v":0.99997249300000002},{"$f":"VALUE(FIXED(EXP(AJ$4*-1*'PM2.5 reduction'!AJ89),9))","v":0.99998452900000001},{"$f":"VALUE(FIXED(EXP(AK$4*-1*'PM2.5 reduction'!AK89),9))","v":0.99999053199999999},{"$f":"VALUE(FIXED(EXP(AL$4*-1*'PM2.5 reduction'!AL89),9))","v":0.99998922599999995},{"$f":"VALUE(FIXED(EXP(AM$4*-1*'PM2.5 reduction'!AM89),9))","v":0.99997512399999999},{"$f":"VALUE(FIXED(EXP(AN$4*-1*'PM2.5 reduction'!AN89),9))","v":1},{"$f":"VALUE(FIXED(EXP(AO$4*-1*'PM2.5 reduction'!AO89),9))","v":1},{"$f":"VALUE(FIXED(EXP(AP$4*-1*'PM2.5 reduction'!AP89),9))","v":0.99998287299999999},{"$f":"VALUE(FIXED(EXP(AQ$4*-1*'PM2.5 reduction'!AQ89),9))","v":0.999975948},{"$f":"VALUE(FIXED(EXP(AR$4*-1*'PM2.5 reduction'!AR89),9))","v":0.99997565200000005},{"$f":"VALUE(FIXED(EXP(AS$4*-1*'PM2.5 reduction'!AS89),9))","v":0.99999448700000004},{"$f":"VALUE(FIXED(EXP(AT$4*-1*'PM2.5 reduction'!AT89),9))","v":1},{"$f":"VALUE(FIXED(EXP(AU$4*-1*'PM2.5 reduction'!AU89),9))","v":1},{"$f":"VALUE(FIXED(EXP(AV$4*-1*'PM2.5 reduction'!AV89),9))","v":0.99998663499999996},{"$f":"VALUE(FIXED(EXP(AW$4*-1*'PM2.5 reduction'!AW89),9))","v":0.99997986000000005},{"$f":"VALUE(FIXED(EXP(AX$4*-1*'PM2.5 reduction'!AX89),9))","v":0.99998549000000003},{"$f":"VALUE(FIXED(EXP(AY$4*-1*'PM2.5 reduction'!AY89),9))","v":0.99997941999999995},{"$f":"VALUE(FIXED(EXP(AZ$4*-1*'PM2.5 reduction'!AZ89),9))","v":0.99997387299999996},{"$f":"VALUE(FIXED(EXP(BA$4*-1*'PM2.5 reduction'!BA89),9))","v":0.99998047899999998},{"$f":"VALUE(FIXED(EXP(BB$4*-1*'PM2.5 reduction'!BB89),9))","v":0.99998255800000002},{"$f":"VALUE(FIXED(EXP(BC$4*-1*'PM2.5 reduction'!BC89),9))","v":1}]
[null,"Male 55-59",{"$f":"VALUE(FIXED(EXP(C$4*-1*'PM2.5 reduction'!C90),9))","v":0.99996616900000002},{"$f":"VALUE(FIXED(EXP(D$4*-1*'PM2.5 reduction'!D90),9))","v":0.99996870699999996},{"$f":"VALUE(FIXED(EXP(E$4*-1*'PM2.5 reduction'!E90),9))","v":0.99998723},{"$f":"VALUE(FIXED(EXP(F$4*-1*'PM2.5 reduction'!F90),9))","v":0.99999269199999996},{"$f":"VALUE(FIXED(EXP(G$4*-1*'PM2.5 reduction'!G90),9))","v":0.99999464900000001},{"$f":"VALUE(FIXED(EXP(H$4*-1*'PM2.5 reduction'!H90),9))","v":0.99998793500000005},{"$f":"VALUE(FIXED(EXP(I$4*-1*'PM2.5 reduction'!I90),9))","v":0.99999438900000004},{"$f":"VALUE(FIXED(EXP(J$4*-1*'PM2.5 reduction'!J90),9))","v":0.99998420300000002},{"$f":"VALUE(FIXED(EXP(K$4*-1*'PM2.5 reduction'!K90),9))","v":0.99998306400000003},{"$f":"VALUE(FIXED(EXP(L$4*-1*'PM2.5 reduction'!L90),9))","v":0.99999433199999999},{"$f":"VALUE(FIXED(EXP(M$4*-1*'PM2.5 reduction'!M90),9))","v":0.99999433199999999},{"$f":"VALUE(FIXED(EXP(N$4*-1*'PM2.5 reduction'!N90),9))","v":0.99996971999999995},{"$f":"VALUE(FIXED(EXP(O$4*-1*'PM2.5 reduction'!O90),9))","v":0.99998680100000004},{"$f":"VALUE(FIXED(EXP(P$4*-1*'PM2.5 reduction'!P90),9))","v":0.99997566900000001},{"$f":"VALUE(FIXED(EXP(Q$4*-1*'PM2.5 reduction'!Q90),9))","v":0.999989931},{"$f":"VALUE(FIXED(EXP(R$4*-1*'PM2.5 reduction'!R90),9))","v":0.99998060200000005},{"$f":"VALUE(FIXED(EXP(S$4*-1*'PM2.5 reduction'!S90),9))","v":0.99997857199999995},{"$f":"VALUE(FIXED(EXP(T$4*-1*'PM2.5 reduction'!T90),9))","v":0.99996729500000003},{"$f":"VALUE(FIXED(EXP(U$4*-1*'PM2.5 reduction'!U90),9))","v":1},{"$f":"VALUE(FIXED(EXP(V$4*-1*'PM2.5 reduction'!V90),9))","v":0.99997660700000002},{"$f":"VALUE(FIXED(EXP(W$4*-1*'PM2.5 reduction'!W90),9))","v":0.99998531300000004},{"$f":"VALUE(FIXED(EXP(X$4*-1*'PM2.5 reduction'!X90),9))","v":0.99998531300000004},{"$f":"VALUE(FIXED(EXP(Y$4*-1*'PM2.5 reduction'!Y90),9))","v":0.99998046600000001},{"$f":"VALUE(FIXED(EXP(Z$4*-1*'PM2.5 reduction'!Z90),9))","v":0.99996701600000004},{"$f":"VALUE(FIXED(EXP(AA$4*-1*'PM2.5 reduction'!AA90),9))","v":0.99997275799999996},{"$f":"VALUE(FIXED(EXP(AB$4*-1*'PM2.5 reduction'!AB90),9))","v":0.99996971800000001},{"$f":"VALUE(FIXED(EXP(AC$4*-1*'PM2.5 reduction'!AC90),9))","v":0.99997076600000001},{"$f":"VALUE(FIXED(EXP(AD$4*-1*'PM2.5 reduction'!AD90),9))","v":0.99999458100000005},{"$f":"VALUE(FIXED(EXP(AE$4*-1*'PM2.5 reduction'!AE90),9))","v":0.99999454499999996},{"$f":"VALUE(FIXED(EXP(AF$4*-1*'PM2.5 reduction'!AF90),9))","v":0.99998188799999999},{"$f":"VALUE(FIXED(EXP(AG$4*-1*'PM2.5 reduction'!AG90),9))","v":0.99999454499999996},{"$f":"VALUE(FIXED(EXP(AH$4*-1*'PM2.5 reduction'!AH90),9))","v":0.99997717699999999},{"$f":"VALUE(FIXED(EXP(AI$4*-1*'PM2.5 reduction'!AI90),9))","v":0.99997328399999996},{"$f":"VALUE(FIXED(EXP(AJ$4*-1*'PM2.5 reduction'!AJ90),9))","v":0.99998441299999996},{"$f":"VALUE(FIXED(EXP(AK$4*-1*'PM2.5 reduction'!AK90),9))","v":0.99999053199999999},{"$f":"VALUE(FIXED(EXP(AL$4*-1*'PM2.5 reduction'!AL90),9))","v":0.99998917700000001},{"$f":"VALUE(FIXED(EXP(AM$4*-1*'PM2.5 reduction'!AM90),9))","v":0.99997537000000003},{"$f":"VALUE(FIXED(EXP(AN$4*-1*'PM2.5 reduction'!AN90),9))","v":1},{"$f":"VALUE(FIXED(EXP(AO$4*-1*'PM2.5 reduction'!AO90),9))","v":1},{"$f":"VALUE(FIXED(EXP(AP$4*-1*'PM2.5 reduction'!AP90),9))","v":0.99998229000000005},{"$f":"VALUE(FIXED(EXP(AQ$4*-1*'PM2.5 reduction'!AQ90),9))","v":0.99997633900000005},{"$f":"VALUE(FIXED(EXP(AR$4*-1*'PM2.5 reduction'!AR90),9))","v":0.99997611399999997},{"$f":"VALUE(FIXED(EXP(AS$4*-1*'PM2.5 reduction'!AS90),9))","v":0.99999438900000004},{"$f":"VALUE(FIXED(EXP(AT$4*-1*'PM2.5 reduction'!AT90),9))","v":1},{"$f":"VALUE(FIXED(EXP(AU$4*-1*'PM2.5 reduction'!AU90),9))","v":1},{"$f":"VALUE(FIXED(EXP(AV$4*-1*'PM2.5 reduction'!AV90),9))","v":0.99998647799999996},{"$f":"VALUE(FIXED(EXP(AW$4*-1*'PM2.5 reduction'!AW90),9))","v":0.99998008299999996},{"$f":"VALUE(FIXED(EXP(AX$4*-1*'PM2.5 reduction'!AX90),9))","v":0.99998537600000004},{"$f":"VALUE(FIXED(EXP(AY$4*-1*'PM2.5 reduction'!AY90),9))","v":0.99997928899999999},{"$f":"VALUE(FIXED(EXP(AZ$4*-1*'PM2.5 reduction'!AZ90),9))","v":0.99997339600000001},{"$f":"VALUE(FIXED(EXP(BA$4*-1*'PM2.5 reduction'!BA90),9))","v":0.99997977900000001},{"$f":"VALUE(FIXED(EXP(BB$4*-1*'PM2.5 reduction'!BB90),9))","v":0.99998266599999996},{"$f":"VALUE(FIXED(EXP(BC$4*-1*'PM2.5 reduction'!BC90),9))","v":1}]
[null,"Male 60-64",{"$f":"VALUE(FIXED(EXP(C$4*-1*'PM2.5 reduction'!C91),9))","v":0.99996782799999995},{"$f":"VALUE(FIXED(EXP(D$4*-1*'PM2.5 reduction'!D91),9))","v":0.99996938099999999},{"$f":"VALUE(FIXED(EXP(E$4*-1*'PM2.5 reduction'!E91),9))","v":0.99998743000000001},{"$f":"VALUE(FIXED(EXP(F$4*-1*'PM2.5 reduction'!F91),9))","v":0.99999250500000003},{"$f":"VALUE(FIXED(EXP(G$4*-1*'PM2.5 reduction'!G91),9))","v":0.999994783},{"$f":"VALUE(FIXED(EXP(H$4*-1*'PM2.5 reduction'!H91),9))","v":0.99998810000000005},{"$f":"VALUE(FIXED(EXP(I$4*-1*'PM2.5 reduction'!I91),9))","v":0.99999457899999999},{"$f":"VALUE(FIXED(EXP(J$4*-1*'PM2.5 reduction'!J91),9))","v":0.99998460499999997},{"$f":"VALUE(FIXED(EXP(K$4*-1*'PM2.5 reduction'!K91),9))","v":0.99998368800000004},{"$f":"VALUE(FIXED(EXP(L$4*-1*'PM2.5 reduction'!L91),9))","v":0.99999453199999999},{"$f":"VALUE(FIXED(EXP(M$4*-1*'PM2.5 reduction'!M91),9))","v":0.99999453199999999},{"$f":"VALUE(FIXED(EXP(N$4*-1*'PM2.5 reduction'!N91),9))","v":0.99996935399999998},{"$f":"VALUE(FIXED(EXP(O$4*-1*'PM2.5 reduction'!O91),9))","v":0.99998695400000004},{"$f":"VALUE(FIXED(EXP(P$4*-1*'PM2.5 reduction'!P91),9))","v":0.99997528700000005},{"$f":"VALUE(FIXED(EXP(Q$4*-1*'PM2.5 reduction'!Q91),9))","v":0.99998994399999996},{"$f":"VALUE(FIXED(EXP(R$4*-1*'PM2.5 reduction'!R91),9))","v":0.99998090100000003},{"$f":"VALUE(FIXED(EXP(S$4*-1*'PM2.5 reduction'!S91),9))","v":0.99997798500000001},{"$f":"VALUE(FIXED(EXP(T$4*-1*'PM2.5 reduction'!T91),9))","v":0.99996672900000005},{"$f":"VALUE(FIXED(EXP(U$4*-1*'PM2.5 reduction'!U91),9))","v":1},{"$f":"VALUE(FIXED(EXP(V$4*-1*'PM2.5 reduction'!V91),9))","v":0.99997658300000003},{"$f":"VALUE(FIXED(EXP(W$4*-1*'PM2.5 reduction'!W91),9))","v":0.99998523699999997},{"$f":"VALUE(FIXED(EXP(X$4*-1*'PM2.5 reduction'!X91),9))","v":0.99998523699999997},{"$f":"VALUE(FIXED(EXP(Y$4*-1*'PM2.5 reduction'!Y91),9))","v":0.99998047700000003},{"$f":"VALUE(FIXED(EXP(Z$4*-1*'PM2.5 reduction'!Z91),9))","v":0.999966833},{"$f":"VALUE(FIXED(EXP(AA$4*-1*'PM2.5 reduction'!AA91),9))","v":0.99997256400000001},{"$f":"VALUE(FIXED(EXP(AB$4*-1*'PM2.5 reduction'!AB91),9))","v":0.99997024999999995},{"$f":"VALUE(FIXED(EXP(AC$4*-1*'PM2.5 reduction'!AC91),9))","v":0.999970531},{"$f":"VALUE(FIXED(EXP(AD$4*-1*'PM2.5 reduction'!AD91),9))","v":0.99999464199999999},{"$f":"VALUE(FIXED(EXP(AE$4*-1*'PM2.5 reduction'!AE91),9))","v":0.99999454700000001},{"$f":"VALUE(FIXED(EXP(AF$4*-1*'PM2.5 reduction'!AF91),9))","v":0.99998204400000001},{"$f":"VALUE(FIXED(EXP(AG$4*-1*'PM2.5 reduction'!AG91),9))","v":0.99999454700000001},{"$f":"VALUE(FIXED(EXP(AH$4*-1*'PM2.5 reduction'!AH91),9))","v":0.99997698999999995},{"$f":"VALUE(FIXED(EXP(AI$4*-1*'PM2.5 reduction'!AI91),9))","v":0.99997261699999995},{"$f":"VALUE(FIXED(EXP(AJ$4*-1*'PM2.5 reduction'!AJ91),9))","v":0.99998326500000001},{"$f":"VALUE(FIXED(EXP(AK$4*-1*'PM2.5 reduction'!AK91),9))","v":0.99999053199999999},{"$f":"VALUE(FIXED(EXP(AL$4*-1*'PM2.5 reduction'!AL91),9))","v":0.99998945800000005},{"$f":"VALUE(FIXED(EXP(AM$4*-1*'PM2.5 reduction'!AM91),9))","v":0.99997528700000005},{"$f":"VALUE(FIXED(EXP(AN$4*-1*'PM2.5 reduction'!AN91),9))","v":1},{"$f":"VALUE(FIXED(EXP(AO$4*-1*'PM2.5 reduction'!AO91),9))","v":1},{"$f":"VALUE(FIXED(EXP(AP$4*-1*'PM2.5 reduction'!AP91),9))","v":0.99998203500000005},{"$f":"VALUE(FIXED(EXP(AQ$4*-1*'PM2.5 reduction'!AQ91),9))","v":0.99997544199999999},{"$f":"VALUE(FIXED(EXP(AR$4*-1*'PM2.5 reduction'!AR91),9))","v":0.99997596},{"$f":"VALUE(FIXED(EXP(AS$4*-1*'PM2.5 reduction'!AS91),9))","v":0.99999457899999999},{"$f":"VALUE(FIXED(EXP(AT$4*-1*'PM2.5 reduction'!AT91),9))","v":1},{"$f":"VALUE(FIXED(EXP(AU$4*-1*'PM2.5 reduction'!AU91),9))","v":1},{"$f":"VALUE(FIXED(EXP(AV$4*-1*'PM2.5 reduction'!AV91),9))","v":0.99998637099999999},{"$f":"VALUE(FIXED(EXP(AW$4*-1*'PM2.5 reduction'!AW91),9))","v":0.999979591},{"$f":"VALUE(FIXED(EXP(AX$4*-1*'PM2.5 reduction'!AX91),9))","v":0.99998559399999998},{"$f":"VALUE(FIXED(EXP(AY$4*-1*'PM2.5 reduction'!AY91),9))","v":0.99997910199999995},{"$f":"VALUE(FIXED(EXP(AZ$4*-1*'PM2.5 reduction'!AZ91),9))","v":0.99997302399999999},{"$f":"VALUE(FIXED(EXP(BA$4*-1*'PM2.5 reduction'!BA91),9))","v":0.999980533},{"$f":"VALUE(FIXED(EXP(BB$4*-1*'PM2.5 reduction'!BB91),9))","v":0.99998296099999995},{"$f":"VALUE(FIXED(EXP(BC$4*-1*'PM2.5 reduction'!BC91),9))","v":1}]
[null,"Male 65-69",{"$f":"VALUE(FIXED(EXP(C$4*-1*'PM2.5 reduction'!C92),9))","v":0.99996738600000001},{"$f":"VALUE(FIXED(EXP(D$4*-1*'PM2.5 reduction'!D92),9))","v":0.99996947599999997},{"$f":"VALUE(FIXED(EXP(E$4*-1*'PM2.5 reduction'!E92),9))","v":0.99998677899999999},{"$f":"VALUE(FIXED(EXP(F$4*-1*'PM2.5 reduction'!F92),9))","v":0.99999228500000004},{"$f":"VALUE(FIXED(EXP(G$4*-1*'PM2.5 reduction'!G92),9))","v":0.99999458100000005},{"$f":"VALUE(FIXED(EXP(H$4*-1*'PM2.5 reduction'!H92),9))","v":0.99998825300000005},{"$f":"VALUE(FIXED(EXP(I$4*-1*'PM2.5 reduction'!I92),9))","v":0.999994563},{"$f":"VALUE(FIXED(EXP(J$4*-1*'PM2.5 reduction'!J92),9))","v":0.99998442600000004},{"$f":"VALUE(FIXED(EXP(K$4*-1*'PM2.5 reduction'!K92),9))","v":0.99998308800000002},{"$f":"VALUE(FIXED(EXP(L$4*-1*'PM2.5 reduction'!L92),9))","v":0.99999464500000002},{"$f":"VALUE(FIXED(EXP(M$4*-1*'PM2.5 reduction'!M92),9))","v":0.99999464500000002},{"$f":"VALUE(FIXED(EXP(N$4*-1*'PM2.5 reduction'!N92),9))","v":0.99997013099999998},{"$f":"VALUE(FIXED(EXP(O$4*-1*'PM2.5 reduction'!O92),9))","v":0.99998746400000005},{"$f":"VALUE(FIXED(EXP(P$4*-1*'PM2.5 reduction'!P92),9))","v":0.99997643599999997},{"$f":"VALUE(FIXED(EXP(Q$4*-1*'PM2.5 reduction'!Q92),9))","v":0.99998992600000003},{"$f":"VALUE(FIXED(EXP(R$4*-1*'PM2.5 reduction'!R92),9))","v":0.99997933800000005},{"$f":"VALUE(FIXED(EXP(S$4*-1*'PM2.5 reduction'!S92),9))","v":0.99997921000000001},{"$f":"VALUE(FIXED(EXP(T$4*-1*'PM2.5 reduction'!T92),9))","v":0.99996726499999999},{"$f":"VALUE(FIXED(EXP(U$4*-1*'PM2.5 reduction'!U92),9))","v":1},{"$f":"VALUE(FIXED(EXP(V$4*-1*'PM2.5 reduction'!V92),9))","v":0.99997673200000003},{"$f":"VALUE(FIXED(EXP(W$4*-1*'PM2.5 reduction'!W92),9))","v":0.99998553700000004},{"$f":"VALUE(FIXED(EXP(X$4*-1*'PM2.5 reduction'!X92),9))","v":0.99998553700000004},{"$f":"VALUE(FIXED(EXP(Y$4*-1*'PM2.5 reduction'!Y92),9))","v":0.99998034099999999},{"$f":"VALUE(FIXED(EXP(Z$4*-1*'PM2.5 reduction'!Z92),9))","v":0.99996688199999995},{"$f":"VALUE(FIXED(EXP(AA$4*-1*'PM2.5 reduction'!AA92),9))","v":0.99997286900000004},{"$f":"VALUE(FIXED(EXP(AB$4*-1*'PM2.5 reduction'!AB92),9))","v":0.99997043299999999},{"$f":"VALUE(FIXED(EXP(AC$4*-1*'PM2.5 reduction'!AC92),9))","v":0.99997074500000005},{"$f":"VALUE(FIXED(EXP(AD$4*-1*'PM2.5 reduction'!AD92),9))","v":0.99999480399999996},{"$f":"VALUE(FIXED(EXP(AE$4*-1*'PM2.5 reduction'!AE92),9))","v":0.99999492199999995},{"$f":"VALUE(FIXED(EXP(AF$4*-1*'PM2.5 reduction'!AF92),9))","v":0.99998185100000003},{"$f":"VALUE(FIXED(EXP(AG$4*-1*'PM2.5 reduction'!AG92),9))","v":0.99999492199999995},{"$f":"VALUE(FIXED(EXP(AH$4*-1*'PM2.5 reduction'!AH92),9))","v":0.99997711600000005},{"$f":"VALUE(FIXED(EXP(AI$4*-1*'PM2.5 reduction'!AI92),9))","v":0.99997379200000003},{"$f":"VALUE(FIXED(EXP(AJ$4*-1*'PM2.5 reduction'!AJ92),9))","v":0.99998399400000004},{"$f":"VALUE(FIXED(EXP(AK$4*-1*'PM2.5 reduction'!AK92),9))","v":0.99999053199999999},{"$f":"VALUE(FIXED(EXP(AL$4*-1*'PM2.5 reduction'!AL92),9))","v":0.99998926300000002},{"$f":"VALUE(FIXED(EXP(AM$4*-1*'PM2.5 reduction'!AM92),9))","v":0.99997525700000001},{"$f":"VALUE(FIXED(EXP(AN$4*-1*'PM2.5 reduction'!AN92),9))","v":1},{"$f":"VALUE(FIXED(EXP(AO$4*-1*'PM2.5 reduction'!AO92),9))","v":1},{"$f":"VALUE(FIXED(EXP(AP$4*-1*'PM2.5 reduction'!AP92),9))","v":0.99998226499999998},{"$f":"VALUE(FIXED(EXP(AQ$4*-1*'PM2.5 reduction'!AQ92),9))","v":0.99997561199999996},{"$f":"VALUE(FIXED(EXP(AR$4*-1*'PM2.5 reduction'!AR92),9))","v":0.99997649},{"$f":"VALUE(FIXED(EXP(AS$4*-1*'PM2.5 reduction'!AS92),9))","v":0.999994563},{"$f":"VALUE(FIXED(EXP(AT$4*-1*'PM2.5 reduction'!AT92),9))","v":1},{"$f":"VALUE(FIXED(EXP(AU$4*-1*'PM2.5 reduction'!AU92),9))","v":1},{"$f":"VALUE(FIXED(EXP(AV$4*-1*'PM2.5 reduction'!AV92),9))","v":0.99998681499999997},{"$f":"VALUE(FIXED(EXP(AW$4*-1*'PM2.5 reduction'!AW92),9))","v":0.99998001400000003},{"$f":"VALUE(FIXED(EXP(AX$4*-1*'PM2.5 reduction'!AX92),9))","v":0.99998590499999995},{"$f":"VALUE(FIXED(EXP(AY$4*-1*'PM2.5 reduction'!AY92),9))","v":0.99997966599999999},{"$f":"VALUE(FIXED(EXP(AZ$4*-1*'PM2.5 reduction'!AZ92),9))","v":0.99997372200000001},{"$f":"VALUE(FIXED(EXP(BA$4*-1*'PM2.5 reduction'!BA92),9))","v":0.99998030999999998},{"$f":"VALUE(FIXED(EXP(BB$4*-1*'PM2.5 reduction'!BB92),9))","v":0.99998280100000003},{"$f":"VALUE(FIXED(EXP(BC$4*-1*'PM2.5 reduction'!BC92),9))","v":1}]
[null,"Male 70-74",{"$f":"VALUE(FIXED(EXP(C$4*-1*'PM2.5 reduction'!C93),9))","v":0.99996593899999997},{"$f":"VALUE(FIXED(EXP(D$4*-1*'PM2.5 reduction'!D93),9))","v":0.99996811399999996},{"$f":"VALUE(FIXED(EXP(E$4*-1*'PM2.5 reduction'!E93),9))","v":0.99998678900000004},{"$f":"VALUE(FIXED(EXP(F$4*-1*'PM2.5 reduction'!F93),9))","v":0.99999278700000005},{"$f":"VALUE(FIXED(EXP(G$4*-1*'PM2.5 reduction'!G93),9))","v":0.99999484500000002},{"$f":"VALUE(FIXED(EXP(H$4*-1*'PM2.5 reduction'!H93),9))","v":0.99998826200000002},{"$f":"VALUE(FIXED(EXP(I$4*-1*'PM2.5 reduction'!I93),9))","v":0.99999436799999997},{"$f":"VALUE(FIXED(EXP(J$4*-1*'PM2.5 reduction'!J93),9))","v":0.99998424299999999},{"$f":"VALUE(FIXED(EXP(K$4*-1*'PM2.5 reduction'!K93),9))","v":0.99998335500000002},{"$f":"VALUE(FIXED(EXP(L$4*-1*'PM2.5 reduction'!L93),9))","v":0.99999452799999999},{"$f":"VALUE(FIXED(EXP(M$4*-1*'PM2.5 reduction'!M93),9))","v":0.99999452799999999},{"$f":"VALUE(FIXED(EXP(N$4*-1*'PM2.5 reduction'!N93),9))","v":0.999970303},{"$f":"VALUE(FIXED(EXP(O$4*-1*'PM2.5 reduction'!O93),9))","v":0.999987403},{"$f":"VALUE(FIXED(EXP(P$4*-1*'PM2.5 reduction'!P93),9))","v":0.99997438999999999},{"$f":"VALUE(FIXED(EXP(Q$4*-1*'PM2.5 reduction'!Q93),9))","v":0.999989884},{"$f":"VALUE(FIXED(EXP(R$4*-1*'PM2.5 reduction'!R93),9))","v":0.999979689},{"$f":"VALUE(FIXED(EXP(S$4*-1*'PM2.5 reduction'!S93),9))","v":0.99997919800000001},{"$f":"VALUE(FIXED(EXP(T$4*-1*'PM2.5 reduction'!T93),9))","v":0.99996633999999995},{"$f":"VALUE(FIXED(EXP(U$4*-1*'PM2.5 reduction'!U93),9))","v":1},{"$f":"VALUE(FIXED(EXP(V$4*-1*'PM2.5 reduction'!V93),9))","v":0.99997624699999998},{"$f":"VALUE(FIXED(EXP(W$4*-1*'PM2.5 reduction'!W93),9))","v":0.99998565100000003},{"$f":"VALUE(FIXED(EXP(X$4*-1*'PM2.5 reduction'!X93),9))","v":0.99998565100000003},{"$f":"VALUE(FIXED(EXP(Y$4*-1*'PM2.5 reduction'!Y93),9))","v":0.99998039400000005},{"$f":"VALUE(FIXED(EXP(Z$4*-1*'PM2.5 reduction'!Z93),9))","v":0.99996675499999998},{"$f":"VALUE(FIXED(EXP(AA$4*-1*'PM2.5 reduction'!AA93),9))","v":0.99997291200000005},{"$f":"VALUE(FIXED(EXP(AB$4*-1*'PM2.5 reduction'!AB93),9))","v":0.99996948699999999},{"$f":"VALUE(FIXED(EXP(AC$4*-1*'PM2.5 reduction'!AC93),9))","v":0.99997062999999997},{"$f":"VALUE(FIXED(EXP(AD$4*-1*'PM2.5 reduction'!AD93),9))","v":0.99999488700000005},{"$f":"VALUE(FIXED(EXP(AE$4*-1*'PM2.5 reduction'!AE93),9))","v":0.99999492199999995},{"$f":"VALUE(FIXED(EXP(AF$4*-1*'PM2.5 reduction'!AF93),9))","v":0.99998290599999995},{"$f":"VALUE(FIXED(EXP(AG$4*-1*'PM2.5 reduction'!AG93),9))","v":0.99999492199999995},{"$f":"VALUE(FIXED(EXP(AH$4*-1*'PM2.5 reduction'!AH93),9))","v":0.999977436},{"$f":"VALUE(FIXED(EXP(AI$4*-1*'PM2.5 reduction'!AI93),9))","v":0.99997347199999997},{"$f":"VALUE(FIXED(EXP(AJ$4*-1*'PM2.5 reduction'!AJ93),9))","v":0.99998329600000002},{"$f":"VALUE(FIXED(EXP(AK$4*-1*'PM2.5 reduction'!AK93),9))","v":0.99999053199999999},{"$f":"VALUE(FIXED(EXP(AL$4*-1*'PM2.5 reduction'!AL93),9))","v":0.99998914400000005},{"$f":"VALUE(FIXED(EXP(AM$4*-1*'PM2.5 reduction'!AM93),9))","v":0.99997530800000001},{"$f":"VALUE(FIXED(EXP(AN$4*-1*'PM2.5 reduction'!AN93),9))","v":1},{"$f":"VALUE(FIXED(EXP(AO$4*-1*'PM2.5 reduction'!AO93),9))","v":1},{"$f":"VALUE(FIXED(EXP(AP$4*-1*'PM2.5 reduction'!AP93),9))","v":0.99998305200000004},{"$f":"VALUE(FIXED(EXP(AQ$4*-1*'PM2.5 reduction'!AQ93),9))","v":0.99997571799999996},{"$f":"VALUE(FIXED(EXP(AR$4*-1*'PM2.5 reduction'!AR93),9))","v":0.99997652400000003},{"$f":"VALUE(FIXED(EXP(AS$4*-1*'PM2.5 reduction'!AS93),9))","v":0.99999436799999997},{"$f":"VALUE(FIXED(EXP(AT$4*-1*'PM2.5 reduction'!AT93),9))","v":1},{"$f":"VALUE(FIXED(EXP(AU$4*-1*'PM2.5 reduction'!AU93),9))","v":1},{"$f":"VALUE(FIXED(EXP(AV$4*-1*'PM2.5 reduction'!AV93),9))","v":0.99998725300000002},{"$f":"VALUE(FIXED(EXP(AW$4*-1*'PM2.5 reduction'!AW93),9))","v":0.99998047899999998},{"$f":"VALUE(FIXED(EXP(AX$4*-1*'PM2.5 reduction'!AX93),9))","v":0.99998533999999994},{"$f":"VALUE(FIXED(EXP(AY$4*-1*'PM2.5 reduction'!AY93),9))","v":0.99997998700000001},{"$f":"VALUE(FIXED(EXP(AZ$4*-1*'PM2.5 reduction'!AZ93),9))","v":0.99997393000000001},{"$f":"VALUE(FIXED(EXP(BA$4*-1*'PM2.5 reduction'!BA93),9))","v":0.99998041999999998},{"$f":"VALUE(FIXED(EXP(BB$4*-1*'PM2.5 reduction'!BB93),9))","v":0.99998252099999996},{"$f":"VALUE(FIXED(EXP(BC$4*-1*'PM2.5 reduction'!BC93),9))","v":1}]
[null,"Male 75-79",{"$f":"VALUE(FIXED(EXP(C$4*-1*'PM2.5 reduction'!C94),9))","v":0.99996727900000004},{"$f":"VALUE(FIXED(EXP(D$4*-1*'PM2.5 reduction'!D94),9))","v":0.99997132300000002},{"$f":"VALUE(FIXED(EXP(E$4*-1*'PM2.5 reduction'!E94),9))","v":0.99998632899999995},{"$f":"VALUE(FIXED(EXP(F$4*-1*'PM2.5 reduction'!F94),9))","v":0.999992196},{"$f":"VALUE(FIXED(EXP(G$4*-1*'PM2.5 reduction'!G94),9))","v":0.999994881},{"$f":"VALUE(FIXED(EXP(H$4*-1*'PM2.5 reduction'!H94),9))","v":0.99998819500000002},{"$f":"VALUE(FIXED(EXP(I$4*-1*'PM2.5 reduction'!I94),9))","v":0.99999424800000003},{"$f":"VALUE(FIXED(EXP(J$4*-1*'PM2.5 reduction'!J94),9))","v":0.99998493799999999},{"$f":"VALUE(FIXED(EXP(K$4*-1*'PM2.5 reduction'!K94),9))","v":0.99998395900000003},{"$f":"VALUE(FIXED(EXP(L$4*-1*'PM2.5 reduction'!L94),9))","v":0.99999425099999995},{"$f":"VALUE(FIXED(EXP(M$4*-1*'PM2.5 reduction'!M94),9))","v":0.99999425099999995},{"$f":"VALUE(FIXED(EXP(N$4*-1*'PM2.5 reduction'!N94),9))","v":0.99996977399999998},{"$f":"VALUE(FIXED(EXP(O$4*-1*'PM2.5 reduction'!O94),9))","v":0.99998734899999997},{"$f":"VALUE(FIXED(EXP(P$4*-1*'PM2.5 reduction'!P94),9))","v":0.99997520200000001},{"$f":"VALUE(FIXED(EXP(Q$4*-1*'PM2.5 reduction'!Q94),9))","v":0.99998976100000003},{"$f":"VALUE(FIXED(EXP(R$4*-1*'PM2.5 reduction'!R94),9))","v":0.999980015},{"$f":"VALUE(FIXED(EXP(S$4*-1*'PM2.5 reduction'!S94),9))","v":0.99997866000000002},{"$f":"VALUE(FIXED(EXP(T$4*-1*'PM2.5 reduction'!T94),9))","v":0.99996671800000003},{"$f":"VALUE(FIXED(EXP(U$4*-1*'PM2.5 reduction'!U94),9))","v":1},{"$f":"VALUE(FIXED(EXP(V$4*-1*'PM2.5 reduction'!V94),9))","v":0.999976804},{"$f":"VALUE(FIXED(EXP(W$4*-1*'PM2.5 reduction'!W94),9))","v":0.99998540599999997},{"$f":"VALUE(FIXED(EXP(X$4*-1*'PM2.5 reduction'!X94),9))","v":0.99998540599999997},{"$f":"VALUE(FIXED(EXP(Y$4*-1*'PM2.5 reduction'!Y94),9))","v":0.99998061400000005},{"$f":"VALUE(FIXED(EXP(Z$4*-1*'PM2.5 reduction'!Z94),9))","v":0.99996669100000002},{"$f":"VALUE(FIXED(EXP(AA$4*-1*'PM2.5 reduction'!AA94),9))","v":0.99997272999999998},{"$f":"VALUE(FIXED(EXP(AB$4*-1*'PM2.5 reduction'!AB94),9))","v":0.999972046},{"$f":"VALUE(FIXED(EXP(AC$4*-1*'PM2.5 reduction'!AC94),9))","v":0.999970582},{"$f":"VALUE(FIXED(EXP(AD$4*-1*'PM2.5 reduction'!AD94),9))","v":0.99999418200000001},{"$f":"VALUE(FIXED(EXP(AE$4*-1*'PM2.5 reduction'!AE94),9))","v":0.99999380599999999},{"$f":"VALUE(FIXED(EXP(AF$4*-1*'PM2.5 reduction'!AF94),9))","v":0.999981287},{"$f":"VALUE(FIXED(EXP(AG$4*-1*'PM2.5 reduction'!AG94),9))","v":0.99999380599999999},{"$f":"VALUE(FIXED(EXP(AH$4*-1*'PM2.5 reduction'!AH94),9))","v":0.99997720099999998},{"$f":"VALUE(FIXED(EXP(AI$4*-1*'PM2.5 reduction'!AI94),9))","v":0.99997361399999996},{"$f":"VALUE(FIXED(EXP(AJ$4*-1*'PM2.5 reduction'!AJ94),9))","v":0.99998368800000004},{"$f":"VALUE(FIXED(EXP(AK$4*-1*'PM2.5 reduction'!AK94),9))","v":0.99999053199999999},{"$f":"VALUE(FIXED(EXP(AL$4*-1*'PM2.5 reduction'!AL94),9))","v":0.999989138},{"$f":"VALUE(FIXED(EXP(AM$4*-1*'PM2.5 reduction'!AM94),9))","v":0.99997500399999995},{"$f":"VALUE(FIXED(EXP(AN$4*-1*'PM2.5 reduction'!AN94),9))","v":1},{"$f":"VALUE(FIXED(EXP(AO$4*-1*'PM2.5 reduction'!AO94),9))","v":1},{"$f":"VALUE(FIXED(EXP(AP$4*-1*'PM2.5 reduction'!AP94),9))","v":0.999982712},{"$f":"VALUE(FIXED(EXP(AQ$4*-1*'PM2.5 reduction'!AQ94),9))","v":0.99997639500000002},{"$f":"VALUE(FIXED(EXP(AR$4*-1*'PM2.5 reduction'!AR94),9))","v":0.99997640099999996},{"$f":"VALUE(FIXED(EXP(AS$4*-1*'PM2.5 reduction'!AS94),9))","v":0.99999424800000003},{"$f":"VALUE(FIXED(EXP(AT$4*-1*'PM2.5 reduction'!AT94),9))","v":1},{"$f":"VALUE(FIXED(EXP(AU$4*-1*'PM2.5 reduction'!AU94),9))","v":1},{"$f":"VALUE(FIXED(EXP(AV$4*-1*'PM2.5 reduction'!AV94),9))","v":0.99998705399999999},{"$f":"VALUE(FIXED(EXP(AW$4*-1*'PM2.5 reduction'!AW94),9))","v":0.99998066799999996},{"$f":"VALUE(FIXED(EXP(AX$4*-1*'PM2.5 reduction'!AX94),9))","v":0.99998591699999995},{"$f":"VALUE(FIXED(EXP(AY$4*-1*'PM2.5 reduction'!AY94),9))","v":0.99997954},{"$f":"VALUE(FIXED(EXP(AZ$4*-1*'PM2.5 reduction'!AZ94),9))","v":0.99997392399999996},{"$f":"VALUE(FIXED(EXP(BA$4*-1*'PM2.5 reduction'!BA94),9))","v":0.99998007600000005},{"$f":"VALUE(FIXED(EXP(BB$4*-1*'PM2.5 reduction'!BB94),9))","v":0.99998267100000005},{"$f":"VALUE(FIXED(EXP(BC$4*-1*'PM2.5 reduction'!BC94),9))","v":1}]
[null,"Male 80-84",{"$f":"VALUE(FIXED(EXP(C$4*-1*'PM2.5 reduction'!C95),9))","v":0.99996684199999997},{"$f":"VALUE(FIXED(EXP(D$4*-1*'PM2.5 reduction'!D95),9))","v":0.999969569},{"$f":"VALUE(FIXED(EXP(E$4*-1*'PM2.5 reduction'!E95),9))","v":0.99998593199999997},{"$f":"VALUE(FIXED(EXP(F$4*-1*'PM2.5 reduction'!F95),9))","v":0.99999304},{"$f":"VALUE(FIXED(EXP(G$4*-1*'PM2.5 reduction'!G95),9))","v":0.99999481199999996},{"$f":"VALUE(FIXED(EXP(H$4*-1*'PM2.5 reduction'!H95),9))","v":0.99998827300000004},{"$f":"VALUE(FIXED(EXP(I$4*-1*'PM2.5 reduction'!I95),9))","v":0.99999449900000004},{"$f":"VALUE(FIXED(EXP(J$4*-1*'PM2.5 reduction'!J95),9))","v":0.99998388900000001},{"$f":"VALUE(FIXED(EXP(K$4*-1*'PM2.5 reduction'!K95),9))","v":0.99998209900000001},{"$f":"VALUE(FIXED(EXP(L$4*-1*'PM2.5 reduction'!L95),9))","v":0.99999457800000002},{"$f":"VALUE(FIXED(EXP(M$4*-1*'PM2.5 reduction'!M95),9))","v":0.99999457800000002},{"$f":"VALUE(FIXED(EXP(N$4*-1*'PM2.5 reduction'!N95),9))","v":0.99996958700000005},{"$f":"VALUE(FIXED(EXP(O$4*-1*'PM2.5 reduction'!O95),9))","v":0.99998787},{"$f":"VALUE(FIXED(EXP(P$4*-1*'PM2.5 reduction'!P95),9))","v":0.99997663299999995},{"$f":"VALUE(FIXED(EXP(Q$4*-1*'PM2.5 reduction'!Q95),9))","v":0.99998972399999997},{"$f":"VALUE(FIXED(EXP(R$4*-1*'PM2.5 reduction'!R95),9))","v":0.99997950700000005},{"$f":"VALUE(FIXED(EXP(S$4*-1*'PM2.5 reduction'!S95),9))","v":0.99997830700000001},{"$f":"VALUE(FIXED(EXP(T$4*-1*'PM2.5 reduction'!T95),9))","v":0.99996650499999995},{"$f":"VALUE(FIXED(EXP(U$4*-1*'PM2.5 reduction'!U95),9))","v":1},{"$f":"VALUE(FIXED(EXP(V$4*-1*'PM2.5 reduction'!V95),9))","v":0.99997697200000002},{"$f":"VALUE(FIXED(EXP(W$4*-1*'PM2.5 reduction'!W95),9))","v":0.99998484600000004},{"$f":"VALUE(FIXED(EXP(X$4*-1*'PM2.5 reduction'!X95),9))","v":0.99998484600000004},{"$f":"VALUE(FIXED(EXP(Y$4*-1*'PM2.5 reduction'!Y95),9))","v":0.99997957800000004},{"$f":"VALUE(FIXED(EXP(Z$4*-1*'PM2.5 reduction'!Z95),9))","v":0.99996673899999999},{"$f":"VALUE(FIXED(EXP(AA$4*-1*'PM2.5 reduction'!AA95),9))","v":0.99997252999999997},{"$f":"VALUE(FIXED(EXP(AB$4*-1*'PM2.5 reduction'!AB95),9))","v":0.99997008499999995},{"$f":"VALUE(FIXED(EXP(AC$4*-1*'PM2.5 reduction'!AC95),9))","v":0.99997038100000002},{"$f":"VALUE(FIXED(EXP(AD$4*-1*'PM2.5 reduction'!AD95),9))","v":0.99999495699999996},{"$f":"VALUE(FIXED(EXP(AE$4*-1*'PM2.5 reduction'!AE95),9))","v":0.99999505099999997},{"$f":"VALUE(FIXED(EXP(AF$4*-1*'PM2.5 reduction'!AF95),9))","v":0.99998110900000003},{"$f":"VALUE(FIXED(EXP(AG$4*-1*'PM2.5 reduction'!AG95),9))","v":0.99999505099999997},{"$f":"VALUE(FIXED(EXP(AH$4*-1*'PM2.5 reduction'!AH95),9))","v":0.99997700099999998},{"$f":"VALUE(FIXED(EXP(AI$4*-1*'PM2.5 reduction'!AI95),9))","v":0.99997307400000002},{"$f":"VALUE(FIXED(EXP(AJ$4*-1*'PM2.5 reduction'!AJ95),9))","v":0.99998372599999996},{"$f":"VALUE(FIXED(EXP(AK$4*-1*'PM2.5 reduction'!AK95),9))","v":0.99999053199999999},{"$f":"VALUE(FIXED(EXP(AL$4*-1*'PM2.5 reduction'!AL95),9))","v":0.99998893300000002},{"$f":"VALUE(FIXED(EXP(AM$4*-1*'PM2.5 reduction'!AM95),9))","v":0.99997505799999997},{"$f":"VALUE(FIXED(EXP(AN$4*-1*'PM2.5 reduction'!AN95),9))","v":1},{"$f":"VALUE(FIXED(EXP(AO$4*-1*'PM2.5 reduction'!AO95),9))","v":1},{"$f":"VALUE(FIXED(EXP(AP$4*-1*'PM2.5 reduction'!AP95),9))","v":0.99998275599999997},{"$f":"VALUE(FIXED(EXP(AQ$4*-1*'PM2.5 reduction'!AQ95),9))","v":0.99997692999999999},{"$f":"VALUE(FIXED(EXP(AR$4*-1*'PM2.5 reduction'!AR95),9))","v":0.999976156},{"$f":"VALUE(FIXED(EXP(AS$4*-1*'PM2.5 reduction'!AS95),9))","v":0.99999449900000004},{"$f":"VALUE(FIXED(EXP(AT$4*-1*'PM2.5 reduction'!AT95),9))","v":1},{"$f":"VALUE(FIXED(EXP(AU$4*-1*'PM2.5 reduction'!AU95),9))","v":1},{"$f":"VALUE(FIXED(EXP(AV$4*-1*'PM2.5 reduction'!AV95),9))","v":0.99998737199999999},{"$f":"VALUE(FIXED(EXP(AW$4*-1*'PM2.5 reduction'!AW95),9))","v":0.99998016700000003},{"$f":"VALUE(FIXED(EXP(AX$4*-1*'PM2.5 reduction'!AX95),9))","v":0.99998554900000003},{"$f":"VALUE(FIXED(EXP(AY$4*-1*'PM2.5 reduction'!AY95),9))","v":0.99997950899999999},{"$f":"VALUE(FIXED(EXP(AZ$4*-1*'PM2.5 reduction'!AZ95),9))","v":0.99997372500000004},{"$f":"VALUE(FIXED(EXP(BA$4*-1*'PM2.5 reduction'!BA95),9))","v":0.99997964699999997},{"$f":"VALUE(FIXED(EXP(BB$4*-1*'PM2.5 reduction'!BB95),9))","v":0.99998261700000002},{"$f":"VALUE(FIXED(EXP(BC$4*-1*'PM2.5 reduction'!BC95),9))","v":1}]
[null,"Male 85-89",{"$f":"VALUE(FIXED(EXP(C$4*-1*'PM2.5 reduction'!C96),9))","v":0.99996509200000006},{"$f":"VALUE(FIXED(EXP(D$4*-1*'PM2.5 reduction'!D96),9))","v":0.999969832},{"$f":"VALUE(FIXED(EXP(E$4*-1*'PM2.5 reduction'!E96),9))","v":0.99998733299999998},{"$f":"VALUE(FIXED(EXP(F$4*-1*'PM2.5 reduction'!F96),9))","v":0.99999189899999996},{"$f":"VALUE(FIXED(EXP(G$4*-1*'PM2.5 reduction'!G96),9))","v":0.99999418200000001},{"$f":"VALUE(FIXED(EXP(H$4*-1*'PM2.5 reduction'!H96),9))","v":0.99998688700000005},{"$f":"VALUE(FIXED(EXP(I$4*-1*'PM2.5 reduction'!I96),9))","v":0.99999439499999998},{"$f":"VALUE(FIXED(EXP(J$4*-1*'PM2.5 reduction'!J96),9))","v":0.99998341800000001},{"$f":"VALUE(FIXED(EXP(K$4*-1*'PM2.5 reduction'!K96),9))","v":0.99998212399999997},{"$f":"VALUE(FIXED(EXP(L$4*-1*'PM2.5 reduction'!L96),9))","v":0.99999395700000004},{"$f":"VALUE(FIXED(EXP(M$4*-1*'PM2.5 reduction'!M96),9))","v":0.99999395700000004},{"$f":"VALUE(FIXED(EXP(N$4*-1*'PM2.5 reduction'!N96),9))","v":0.99996962499999997},{"$f":"VALUE(FIXED(EXP(O$4*-1*'PM2.5 reduction'!O96),9))","v":0.99998375699999997},{"$f":"VALUE(FIXED(EXP(P$4*-1*'PM2.5 reduction'!P96),9))","v":0.99997723299999997},{"$f":"VALUE(FIXED(EXP(Q$4*-1*'PM2.5 reduction'!Q96),9))","v":0.99998962899999999},{"$f":"VALUE(FIXED(EXP(R$4*-1*'PM2.5 reduction'!R96),9))","v":0.99997873299999995},{"$f":"VALUE(FIXED(EXP(S$4*-1*'PM2.5 reduction'!S96),9))","v":0.99997893800000004},{"$f":"VALUE(FIXED(EXP(T$4*-1*'PM2.5 reduction'!T96),9))","v":0.999966774},{"$f":"VALUE(FIXED(EXP(U$4*-1*'PM2.5 reduction'!U96),9))","v":1},{"$f":"VALUE(FIXED(EXP(V$4*-1*'PM2.5 reduction'!V96),9))","v":0.99997734500000002},{"$f":"VALUE(FIXED(EXP(W$4*-1*'PM2.5 reduction'!W96),9))","v":0.99998531599999996},{"$f":"VALUE(FIXED(EXP(X$4*-1*'PM2.5 reduction'!X96),9))","v":0.99998531599999996},{"$f":"VALUE(FIXED(EXP(Y$4*-1*'PM2.5 reduction'!Y96),9))","v":0.99998014199999996},{"$f":"VALUE(FIXED(EXP(Z$4*-1*'PM2.5 reduction'!Z96),9))","v":0.99996709699999997},{"$f":"VALUE(FIXED(EXP(AA$4*-1*'PM2.5 reduction'!AA96),9))","v":0.99997259299999997},{"$f":"VALUE(FIXED(EXP(AB$4*-1*'PM2.5 reduction'!AB96),9))","v":0.99997110600000005},{"$f":"VALUE(FIXED(EXP(AC$4*-1*'PM2.5 reduction'!AC96),9))","v":0.99997051599999998},{"$f":"VALUE(FIXED(EXP(AD$4*-1*'PM2.5 reduction'!AD96),9))","v":0.99999375899999998},{"$f":"VALUE(FIXED(EXP(AE$4*-1*'PM2.5 reduction'!AE96),9))","v":0.99999341200000003},{"$f":"VALUE(FIXED(EXP(AF$4*-1*'PM2.5 reduction'!AF96),9))","v":0.99998092199999999},{"$f":"VALUE(FIXED(EXP(AG$4*-1*'PM2.5 reduction'!AG96),9))","v":0.99999341200000003},{"$f":"VALUE(FIXED(EXP(AH$4*-1*'PM2.5 reduction'!AH96),9))","v":0.99997707899999999},{"$f":"VALUE(FIXED(EXP(AI$4*-1*'PM2.5 reduction'!AI96),9))","v":0.99997365999999999},{"$f":"VALUE(FIXED(EXP(AJ$4*-1*'PM2.5 reduction'!AJ96),9))","v":0.999983819},{"$f":"VALUE(FIXED(EXP(AK$4*-1*'PM2.5 reduction'!AK96),9))","v":0.99999053199999999},{"$f":"VALUE(FIXED(EXP(AL$4*-1*'PM2.5 reduction'!AL96),9))","v":0.99998942099999999},{"$f":"VALUE(FIXED(EXP(AM$4*-1*'PM2.5 reduction'!AM96),9))","v":0.99997444999999996},{"$f":"VALUE(FIXED(EXP(AN$4*-1*'PM2.5 reduction'!AN96),9))","v":1},{"$f":"VALUE(FIXED(EXP(AO$4*-1*'PM2.5 reduction'!AO96),9))","v":1},{"$f":"VALUE(FIXED(EXP(AP$4*-1*'PM2.5 reduction'!AP96),9))","v":0.99998220800000004},{"$f":"VALUE(FIXED(EXP(AQ$4*-1*'PM2.5 reduction'!AQ96),9))","v":0.99997631200000003},{"$f":"VALUE(FIXED(EXP(AR$4*-1*'PM2.5 reduction'!AR96),9))","v":0.99997614199999996},{"$f":"VALUE(FIXED(EXP(AS$4*-1*'PM2.5 reduction'!AS96),9))","v":0.99999439499999998},{"$f":"VALUE(FIXED(EXP(AT$4*-1*'PM2.5 reduction'!AT96),9))","v":1},{"$f":"VALUE(FIXED(EXP(AU$4*-1*'PM2.5 reduction'!AU96),9))","v":1},{"$f":"VALUE(FIXED(EXP(AV$4*-1*'PM2.5 reduction'!AV96),9))","v":0.99998647799999996},{"$f":"VALUE(FIXED(EXP(AW$4*-1*'PM2.5 reduction'!AW96),9))","v":0.99998069599999995},{"$f":"VALUE(FIXED(EXP(AX$4*-1*'PM2.5 reduction'!AX96),9))","v":0.99998515499999996},{"$f":"VALUE(FIXED(EXP(AY$4*-1*'PM2.5 reduction'!AY96),9))","v":0.99997922900000002},{"$f":"VALUE(FIXED(EXP(AZ$4*-1*'PM2.5 reduction'!AZ96),9))","v":0.99997318599999996},{"$f":"VALUE(FIXED(EXP(BA$4*-1*'PM2.5 reduction'!BA96),9))","v":0.99997908899999999},{"$f":"VALUE(FIXED(EXP(BB$4*-1*'PM2.5 reduction'!BB96),9))","v":0.99998287299999999},{"$f":"VALUE(FIXED(EXP(BC$4*-1*'PM2.5 reduction'!BC96),9))","v":1}]
[null,"Male 90+",{"$f":"VALUE(FIXED(EXP(C$4*-1*'PM2.5 reduction'!C97),9))","v":0.99996926399999997},{"$f":"VALUE(FIXED(EXP(D$4*-1*'PM2.5 reduction'!D97),9))","v":0.99997200100000005},{"$f":"VALUE(FIXED(EXP(E$4*-1*'PM2.5 reduction'!E97),9))","v":0.99998637300000004},{"$f":"VALUE(FIXED(EXP(F$4*-1*'PM2.5 reduction'!F97),9))","v":0.999991878},{"$f":"VALUE(FIXED(EXP(G$4*-1*'PM2.5 reduction'!G97),9))","v":0.99999489100000005},{"$f":"VALUE(FIXED(EXP(H$4*-1*'PM2.5 reduction'!H97),9))","v":0.999986708},{"$f":"VALUE(FIXED(EXP(I$4*-1*'PM2.5 reduction'!I97),9))","v":0.99999309400000003},{"$f":"VALUE(FIXED(EXP(J$4*-1*'PM2.5 reduction'!J97),9))","v":0.99998258500000003},{"$f":"VALUE(FIXED(EXP(K$4*-1*'PM2.5 reduction'!K97),9))","v":0.99998166600000005},{"$f":"VALUE(FIXED(EXP(L$4*-1*'PM2.5 reduction'!L97),9))","v":0.99999542600000002},{"$f":"VALUE(FIXED(EXP(M$4*-1*'PM2.5 reduction'!M97),9))","v":0.99999542600000002},{"$f":"VALUE(FIXED(EXP(N$4*-1*'PM2.5 reduction'!N97),9))","v":0.99997028300000002},{"$f":"VALUE(FIXED(EXP(O$4*-1*'PM2.5 reduction'!O97),9))","v":0.99998381199999997},{"$f":"VALUE(FIXED(EXP(P$4*-1*'PM2.5 reduction'!P97),9))","v":0.99997796100000003},{"$f":"VALUE(FIXED(EXP(Q$4*-1*'PM2.5 reduction'!Q97),9))","v":0.99998913899999997},{"$f":"VALUE(FIXED(EXP(R$4*-1*'PM2.5 reduction'!R97),9))","v":0.99998018200000005},{"$f":"VALUE(FIXED(EXP(S$4*-1*'PM2.5 reduction'!S97),9))","v":0.99997834500000005},{"$f":"VALUE(FIXED(EXP(T$4*-1*'PM2.5 reduction'!T97),9))","v":0.99996667400000006},{"$f":"VALUE(FIXED(EXP(U$4*-1*'PM2.5 reduction'!U97),9))","v":1},{"$f":"VALUE(FIXED(EXP(V$4*-1*'PM2.5 reduction'!V97),9))","v":0.99997641999999998},{"$f":"VALUE(FIXED(EXP(W$4*-1*'PM2.5 reduction'!W97),9))","v":0.99998477200000002},{"$f":"VALUE(FIXED(EXP(X$4*-1*'PM2.5 reduction'!X97),9))","v":0.99998477200000002},{"$f":"VALUE(FIXED(EXP(Y$4*-1*'PM2.5 reduction'!Y97),9))","v":0.999978692},{"$f":"VALUE(FIXED(EXP(Z$4*-1*'PM2.5 reduction'!Z97),9))","v":0.99996622700000004},{"$f":"VALUE(FIXED(EXP(AA$4*-1*'PM2.5 reduction'!AA97),9))","v":0.99997239900000001},{"$f":"VALUE(FIXED(EXP(AB$4*-1*'PM2.5 reduction'!AB97),9))","v":0.99997337399999997},{"$f":"VALUE(FIXED(EXP(AC$4*-1*'PM2.5 reduction'!AC97),9))","v":0.99996996000000005},{"$f":"VALUE(FIXED(EXP(AD$4*-1*'PM2.5 reduction'!AD97),9))","v":0.99999483},{"$f":"VALUE(FIXED(EXP(AE$4*-1*'PM2.5 reduction'!AE97),9))","v":0.99999476399999998},{"$f":"VALUE(FIXED(EXP(AF$4*-1*'PM2.5 reduction'!AF97),9))","v":0.999981813},{"$f":"VALUE(FIXED(EXP(AG$4*-1*'PM2.5 reduction'!AG97),9))","v":0.99999476399999998},{"$f":"VALUE(FIXED(EXP(AH$4*-1*'PM2.5 reduction'!AH97),9))","v":0.99997779799999997},{"$f":"VALUE(FIXED(EXP(AI$4*-1*'PM2.5 reduction'!AI97),9))","v":0.99997424599999996},{"$f":"VALUE(FIXED(EXP(AJ$4*-1*'PM2.5 reduction'!AJ97),9))","v":0.99998276799999997},{"$f":"VALUE(FIXED(EXP(AK$4*-1*'PM2.5 reduction'!AK97),9))","v":0.99999053199999999},{"$f":"VALUE(FIXED(EXP(AL$4*-1*'PM2.5 reduction'!AL97),9))","v":0.99998890399999996},{"$f":"VALUE(FIXED(EXP(AM$4*-1*'PM2.5 reduction'!AM97),9))","v":0.99997534700000001},{"$f":"VALUE(FIXED(EXP(AN$4*-1*'PM2.5 reduction'!AN97),9))","v":1},{"$f":"VALUE(FIXED(EXP(AO$4*-1*'PM2.5 reduction'!AO97),9))","v":1},{"$f":"VALUE(FIXED(EXP(AP$4*-1*'PM2.5 reduction'!AP97),9))","v":0.99997642200000003},{"$f":"VALUE(FIXED(EXP(AQ$4*-1*'PM2.5 reduction'!AQ97),9))","v":0.99997648500000003},{"$f":"VALUE(FIXED(EXP(AR$4*-1*'PM2.5 reduction'!AR97),9))","v":0.99997561899999998},{"$f":"VALUE(FIXED(EXP(AS$4*-1*'PM2.5 reduction'!AS97),9))","v":0.99999309400000003},{"$f":"VALUE(FIXED(EXP(AT$4*-1*'PM2.5 reduction'!AT97),9))","v":1},{"$f":"VALUE(FIXED(EXP(AU$4*-1*'PM2.5 reduction'!AU97),9))","v":1},{"$f":"VALUE(FIXED(EXP(AV$4*-1*'PM2.5 reduction'!AV97),9))","v":0.99998720200000002},{"$f":"VALUE(FIXED(EXP(AW$4*-1*'PM2.5 reduction'!AW97),9))","v":0.99998124600000005},{"$f":"VALUE(FIXED(EXP(AX$4*-1*'PM2.5 reduction'!AX97),9))","v":0.99998595499999998},{"$f":"VALUE(FIXED(EXP(AY$4*-1*'PM2.5 reduction'!AY97),9))","v":0.99997893500000001},{"$f":"VALUE(FIXED(EXP(AZ$4*-1*'PM2.5 reduction'!AZ97),9))","v":0.99997204299999998},{"$f":"VALUE(FIXED(EXP(BA$4*-1*'PM2.5 reduction'!BA97),9))","v":0.99997807999999999},{"$f":"VALUE(FIXED(EXP(BB$4*-1*'PM2.5 reduction'!BB97),9))","v":0.99998373600000001},{"$f":"VALUE(FIXED(EXP(BC$4*-1*'PM2.5 reduction'!BC97),9))","v":1}]
["SIMD Q2","Female 0-4",{"$f":"VALUE(FIXED(EXP(C$4*-1*'PM2.5 reduction'!C98),9))","v":0.99996607199999998},{"$f":"VALUE(FIXED(EXP(D$4*-1*'PM2.5 reduction'!D98),9))","v":0.99996926799999997},{"$f":"VALUE(FIXED(EXP(E$4*-1*'PM2.5 reduction'!E98),9))","v":0.99999022900000001},{"$f":"VALUE(FIXED(EXP(F$4*-1*'PM2.5 reduction'!F98),9))","v":0.999992514},{"$f":"VALUE(FIXED(EXP(G$4*-1*'PM2.5 reduction'!G98),9))","v":0.99999636800000002},{"$f":"VALUE(FIXED(EXP(H$4*-1*'PM2.5 reduction'!H98),9))","v":0.99999029100000003},{"$f":"VALUE(FIXED(EXP(I$4*-1*'PM2.5 reduction'!I98),9))","v":0.99999311999999996},{"$f":"VALUE(FIXED(EXP(J$4*-1*'PM2.5 reduction'!J98),9))","v":0.99998369399999998},{"$f":"VALUE(FIXED(EXP(K$4*-1*'PM2.5 reduction'!K98),9))","v":0.99998411200000004},{"$f":"VALUE(FIXED(EXP(L$4*-1*'PM2.5 reduction'!L98),9))","v":0.99999356800000005},{"$f":"VALUE(FIXED(EXP(M$4*-1*'PM2.5 reduction'!M98),9))","v":0.99999356800000005},{"$f":"VALUE(FIXED(EXP(N$4*-1*'PM2.5 reduction'!N98),9))","v":0.99997087200000001},{"$f":"VALUE(FIXED(EXP(O$4*-1*'PM2.5 reduction'!O98),9))","v":0.99999081700000003},{"$f":"VALUE(FIXED(EXP(P$4*-1*'PM2.5 reduction'!P98),9))","v":0.99997256499999998},{"$f":"VALUE(FIXED(EXP(Q$4*-1*'PM2.5 reduction'!Q98),9))","v":0.99998488699999999},{"$f":"VALUE(FIXED(EXP(R$4*-1*'PM2.5 reduction'!R98),9))","v":0.99997973100000004},{"$f":"VALUE(FIXED(EXP(S$4*-1*'PM2.5 reduction'!S98),9))","v":0.99997746600000004},{"$f":"VALUE(FIXED(EXP(T$4*-1*'PM2.5 reduction'!T98),9))","v":0.99996263399999996},{"$f":"VALUE(FIXED(EXP(U$4*-1*'PM2.5 reduction'!U98),9))","v":0.99999515900000002},{"$f":"VALUE(FIXED(EXP(V$4*-1*'PM2.5 reduction'!V98),9))","v":0.99998141900000004},{"$f":"VALUE(FIXED(EXP(W$4*-1*'PM2.5 reduction'!W98),9))","v":0.99998315400000004},{"$f":"VALUE(FIXED(EXP(X$4*-1*'PM2.5 reduction'!X98),9))","v":0.99998315400000004},{"$f":"VALUE(FIXED(EXP(Y$4*-1*'PM2.5 reduction'!Y98),9))","v":0.999982229},{"$f":"VALUE(FIXED(EXP(Z$4*-1*'PM2.5 reduction'!Z98),9))","v":0.99996469799999999},{"$f":"VALUE(FIXED(EXP(AA$4*-1*'PM2.5 reduction'!AA98),9))","v":0.99997474099999994},{"$f":"VALUE(FIXED(EXP(AB$4*-1*'PM2.5 reduction'!AB98),9))","v":0.99997303000000004},{"$f":"VALUE(FIXED(EXP(AC$4*-1*'PM2.5 reduction'!AC98),9))","v":0.99997067299999998},{"$f":"VALUE(FIXED(EXP(AD$4*-1*'PM2.5 reduction'!AD98),9))","v":0.99999343399999996},{"$f":"VALUE(FIXED(EXP(AE$4*-1*'PM2.5 reduction'!AE98),9))","v":0.99999283100000003},{"$f":"VALUE(FIXED(EXP(AF$4*-1*'PM2.5 reduction'!AF98),9))","v":0.999982013},{"$f":"VALUE(FIXED(EXP(AG$4*-1*'PM2.5 reduction'!AG98),9))","v":0.99999283100000003},{"$f":"VALUE(FIXED(EXP(AH$4*-1*'PM2.5 reduction'!AH98),9))","v":0.99997970000000003},{"$f":"VALUE(FIXED(EXP(AI$4*-1*'PM2.5 reduction'!AI98),9))","v":0.99997421799999997},{"$f":"VALUE(FIXED(EXP(AJ$4*-1*'PM2.5 reduction'!AJ98),9))","v":0.99998307399999997},{"$f":"VALUE(FIXED(EXP(AK$4*-1*'PM2.5 reduction'!AK98),9))","v":0.99999238000000001},{"$f":"VALUE(FIXED(EXP(AL$4*-1*'PM2.5 reduction'!AL98),9))","v":0.99999050199999995},{"$f":"VALUE(FIXED(EXP(AM$4*-1*'PM2.5 reduction'!AM98),9))","v":0.99997802599999996},{"$f":"VALUE(FIXED(EXP(AN$4*-1*'PM2.5 reduction'!AN98),9))","v":0.99999337300000002},{"$f":"VALUE(FIXED(EXP(AO$4*-1*'PM2.5 reduction'!AO98),9))","v":0.99999337300000002},{"$f":"VALUE(FIXED(EXP(AP$4*-1*'PM2.5 reduction'!AP98),9))","v":0.99998523699999997},{"$f":"VALUE(FIXED(EXP(AQ$4*-1*'PM2.5 reduction'!AQ98),9))","v":0.99998005899999998},{"$f":"VALUE(FIXED(EXP(AR$4*-1*'PM2.5 reduction'!AR98),9))","v":0.99997823200000002},{"$f":"VALUE(FIXED(EXP(AS$4*-1*'PM2.5 reduction'!AS98),9))","v":0.99999311999999996},{"$f":"VALUE(FIXED(EXP(AT$4*-1*'PM2.5 reduction'!AT98),9))","v":1},{"$f":"VALUE(FIXED(EXP(AU$4*-1*'PM2.5 reduction'!AU98),9))","v":1},{"$f":"VALUE(FIXED(EXP(AV$4*-1*'PM2.5 reduction'!AV98),9))","v":0.99998938400000004},{"$f":"VALUE(FIXED(EXP(AW$4*-1*'PM2.5 reduction'!AW98),9))","v":0.99998173400000001},{"$f":"VALUE(FIXED(EXP(AX$4*-1*'PM2.5 reduction'!AX98),9))","v":0.99998327200000003},{"$f":"VALUE(FIXED(EXP(AY$4*-1*'PM2.5 reduction'!AY98),9))","v":0.99998162599999996},{"$f":"VALUE(FIXED(EXP(AZ$4*-1*'PM2.5 reduction'!AZ98),9))","v":0.99997990699999995},{"$f":"VALUE(FIXED(EXP(BA$4*-1*'PM2.5 reduction'!BA98),9))","v":0.99997932700000003},{"$f":"VALUE(FIXED(EXP(BB$4*-1*'PM2.5 reduction'!BB98),9))","v":0.99998079900000003},{"$f":"VALUE(FIXED(EXP(BC$4*-1*'PM2.5 reduction'!BC98),9))","v":0.99999515900000002}]
[null,"Female 5-9",{"$f":"VALUE(FIXED(EXP(C$4*-1*'PM2.5 reduction'!C99),9))","v":0.99996686800000001},{"$f":"VALUE(FIXED(EXP(D$4*-1*'PM2.5 reduction'!D99),9))","v":0.99997105600000002},{"$f":"VALUE(FIXED(EXP(E$4*-1*'PM2.5 reduction'!E99),9))","v":0.99999093999999999},{"$f":"VALUE(FIXED(EXP(F$4*-1*'PM2.5 reduction'!F99),9))","v":0.99999239299999998},{"$f":"VALUE(FIXED(EXP(G$4*-1*'PM2.5 reduction'!G99),9))","v":0.99999636000000003},{"$f":"VALUE(FIXED(EXP(H$4*-1*'PM2.5 reduction'!H99),9))","v":0.99999038699999998},{"$f":"VALUE(FIXED(EXP(I$4*-1*'PM2.5 reduction'!I99),9))","v":0.99999303399999995},{"$f":"VALUE(FIXED(EXP(J$4*-1*'PM2.5 reduction'!J99),9))","v":0.99998398899999996},{"$f":"VALUE(FIXED(EXP(K$4*-1*'PM2.5 reduction'!K99),9))","v":0.99998412800000003},{"$f":"VALUE(FIXED(EXP(L$4*-1*'PM2.5 reduction'!L99),9))","v":0.99999340400000003},{"$f":"VALUE(FIXED(EXP(M$4*-1*'PM2.5 reduction'!M99),9))","v":0.99999340400000003},{"$f":"VALUE(FIXED(EXP(N$4*-1*'PM2.5 reduction'!N99),9))","v":0.99997192199999996},{"$f":"VALUE(FIXED(EXP(O$4*-1*'PM2.5 reduction'!O99),9))","v":0.99999092099999998},{"$f":"VALUE(FIXED(EXP(P$4*-1*'PM2.5 reduction'!P99),9))","v":0.99997300300000003},{"$f":"VALUE(FIXED(EXP(Q$4*-1*'PM2.5 reduction'!Q99),9))","v":0.99998545400000005},{"$f":"VALUE(FIXED(EXP(R$4*-1*'PM2.5 reduction'!R99),9))","v":0.99997993100000004},{"$f":"VALUE(FIXED(EXP(S$4*-1*'PM2.5 reduction'!S99),9))","v":0.99997806499999997},{"$f":"VALUE(FIXED(EXP(T$4*-1*'PM2.5 reduction'!T99),9))","v":0.99996375599999998},{"$f":"VALUE(FIXED(EXP(U$4*-1*'PM2.5 reduction'!U99),9))","v":0.99999515900000002},{"$f":"VALUE(FIXED(EXP(V$4*-1*'PM2.5 reduction'!V99),9))","v":0.99998114900000001},{"$f":"VALUE(FIXED(EXP(W$4*-1*'PM2.5 reduction'!W99),9))","v":0.99998341499999999},{"$f":"VALUE(FIXED(EXP(X$4*-1*'PM2.5 reduction'!X99),9))","v":0.99998341499999999},{"$f":"VALUE(FIXED(EXP(Y$4*-1*'PM2.5 reduction'!Y99),9))","v":0.99998195599999995},{"$f":"VALUE(FIXED(EXP(Z$4*-1*'PM2.5 reduction'!Z99),9))","v":0.99996586600000004},{"$f":"VALUE(FIXED(EXP(AA$4*-1*'PM2.5 reduction'!AA99),9))","v":0.99997586699999996},{"$f":"VALUE(FIXED(EXP(AB$4*-1*'PM2.5 reduction'!AB99),9))","v":0.99997524900000001},{"$f":"VALUE(FIXED(EXP(AC$4*-1*'PM2.5 reduction'!AC99),9))","v":0.99997233699999999},{"$f":"VALUE(FIXED(EXP(AD$4*-1*'PM2.5 reduction'!AD99),9))","v":0.99999412200000004},{"$f":"VALUE(FIXED(EXP(AE$4*-1*'PM2.5 reduction'!AE99),9))","v":0.99999359600000004},{"$f":"VALUE(FIXED(EXP(AF$4*-1*'PM2.5 reduction'!AF99),9))","v":0.99998225399999996},{"$f":"VALUE(FIXED(EXP(AG$4*-1*'PM2.5 reduction'!AG99),9))","v":0.99999359600000004},{"$f":"VALUE(FIXED(EXP(AH$4*-1*'PM2.5 reduction'!AH99),9))","v":0.99997975299999997},{"$f":"VALUE(FIXED(EXP(AI$4*-1*'PM2.5 reduction'!AI99),9))","v":0.99997524500000001},{"$f":"VALUE(FIXED(EXP(AJ$4*-1*'PM2.5 reduction'!AJ99),9))","v":0.99998348800000003},{"$f":"VALUE(FIXED(EXP(AK$4*-1*'PM2.5 reduction'!AK99),9))","v":0.99999246900000005},{"$f":"VALUE(FIXED(EXP(AL$4*-1*'PM2.5 reduction'!AL99),9))","v":0.99999077400000003},{"$f":"VALUE(FIXED(EXP(AM$4*-1*'PM2.5 reduction'!AM99),9))","v":0.99997792900000004},{"$f":"VALUE(FIXED(EXP(AN$4*-1*'PM2.5 reduction'!AN99),9))","v":0.99999348799999999},{"$f":"VALUE(FIXED(EXP(AO$4*-1*'PM2.5 reduction'!AO99),9))","v":0.99999348799999999},{"$f":"VALUE(FIXED(EXP(AP$4*-1*'PM2.5 reduction'!AP99),9))","v":0.99998647200000002},{"$f":"VALUE(FIXED(EXP(AQ$4*-1*'PM2.5 reduction'!AQ99),9))","v":0.99998002600000002},{"$f":"VALUE(FIXED(EXP(AR$4*-1*'PM2.5 reduction'!AR99),9))","v":0.99997922299999997},{"$f":"VALUE(FIXED(EXP(AS$4*-1*'PM2.5 reduction'!AS99),9))","v":0.99999303399999995},{"$f":"VALUE(FIXED(EXP(AT$4*-1*'PM2.5 reduction'!AT99),9))","v":1},{"$f":"VALUE(FIXED(EXP(AU$4*-1*'PM2.5 reduction'!AU99),9))","v":1},{"$f":"VALUE(FIXED(EXP(AV$4*-1*'PM2.5 reduction'!AV99),9))","v":0.99998919799999997},{"$f":"VALUE(FIXED(EXP(AW$4*-1*'PM2.5 reduction'!AW99),9))","v":0.99998205600000001},{"$f":"VALUE(FIXED(EXP(AX$4*-1*'PM2.5 reduction'!AX99),9))","v":0.99998383700000004},{"$f":"VALUE(FIXED(EXP(AY$4*-1*'PM2.5 reduction'!AY99),9))","v":0.99998231299999996},{"$f":"VALUE(FIXED(EXP(AZ$4*-1*'PM2.5 reduction'!AZ99),9))","v":0.99998107899999999},{"$f":"VALUE(FIXED(EXP(BA$4*-1*'PM2.5 reduction'!BA99),9))","v":0.99997966800000004},{"$f":"VALUE(FIXED(EXP(BB$4*-1*'PM2.5 reduction'!BB99),9))","v":0.99998143500000003},{"$f":"VALUE(FIXED(EXP(BC$4*-1*'PM2.5 reduction'!BC99),9))","v":0.99999515900000002}]
[null,"Female 10-15",{"$f":"VALUE(FIXED(EXP(C$4*-1*'PM2.5 reduction'!C100),9))","v":0.99996708899999998},{"$f":"VALUE(FIXED(EXP(D$4*-1*'PM2.5 reduction'!D100),9))","v":0.99997067900000003},{"$f":"VALUE(FIXED(EXP(E$4*-1*'PM2.5 reduction'!E100),9))","v":0.99999058500000004},{"$f":"VALUE(FIXED(EXP(F$4*-1*'PM2.5 reduction'!F100),9))","v":0.99999204399999997},{"$f":"VALUE(FIXED(EXP(G$4*-1*'PM2.5 reduction'!G100),9))","v":0.99999638899999999},{"$f":"VALUE(FIXED(EXP(H$4*-1*'PM2.5 reduction'!H100),9))","v":0.99999053500000001},{"$f":"VALUE(FIXED(EXP(I$4*-1*'PM2.5 reduction'!I100),9))","v":0.99999319600000003},{"$f":"VALUE(FIXED(EXP(J$4*-1*'PM2.5 reduction'!J100),9))","v":0.99998415500000004},{"$f":"VALUE(FIXED(EXP(K$4*-1*'PM2.5 reduction'!K100),9))","v":0.99998421199999998},{"$f":"VALUE(FIXED(EXP(L$4*-1*'PM2.5 reduction'!L100),9))","v":0.99999377099999998},{"$f":"VALUE(FIXED(EXP(M$4*-1*'PM2.5 reduction'!M100),9))","v":0.99999377099999998},{"$f":"VALUE(FIXED(EXP(N$4*-1*'PM2.5 reduction'!N100),9))","v":0.99997222299999999},{"$f":"VALUE(FIXED(EXP(O$4*-1*'PM2.5 reduction'!O100),9))","v":0.99999092300000003},{"$f":"VALUE(FIXED(EXP(P$4*-1*'PM2.5 reduction'!P100),9))","v":0.99997283599999998},{"$f":"VALUE(FIXED(EXP(Q$4*-1*'PM2.5 reduction'!Q100),9))","v":0.99998600100000001},{"$f":"VALUE(FIXED(EXP(R$4*-1*'PM2.5 reduction'!R100),9))","v":0.99997984900000003},{"$f":"VALUE(FIXED(EXP(S$4*-1*'PM2.5 reduction'!S100),9))","v":0.99997901300000003},{"$f":"VALUE(FIXED(EXP(T$4*-1*'PM2.5 reduction'!T100),9))","v":0.99996389399999996},{"$f":"VALUE(FIXED(EXP(U$4*-1*'PM2.5 reduction'!U100),9))","v":0.99999515900000002},{"$f":"VALUE(FIXED(EXP(V$4*-1*'PM2.5 reduction'!V100),9))","v":0.99998189800000004},{"$f":"VALUE(FIXED(EXP(W$4*-1*'PM2.5 reduction'!W100),9))","v":0.99998331299999998},{"$f":"VALUE(FIXED(EXP(X$4*-1*'PM2.5 reduction'!X100),9))","v":0.99998331299999998},{"$f":"VALUE(FIXED(EXP(Y$4*-1*'PM2.5 reduction'!Y100),9))","v":0.99998258699999998},{"$f":"VALUE(FIXED(EXP(Z$4*-1*'PM2.5 reduction'!Z100),9))","v":0.99996675800000001},{"$f":"VALUE(FIXED(EXP(AA$4*-1*'PM2.5 reduction'!AA100),9))","v":0.99997619100000001},{"$f":"VALUE(FIXED(EXP(AB$4*-1*'PM2.5 reduction'!AB100),9))","v":0.99997451000000004},{"$f":"VALUE(FIXED(EXP(AC$4*-1*'PM2.5 reduction'!AC100),9))","v":0.99997292100000001},{"$f":"VALUE(FIXED(EXP(AD$4*-1*'PM2.5 reduction'!AD100),9))","v":0.99999391500000001},{"$f":"VALUE(FIXED(EXP(AE$4*-1*'PM2.5 reduction'!AE100),9))","v":0.99999331400000002},{"$f":"VALUE(FIXED(EXP(AF$4*-1*'PM2.5 reduction'!AF100),9))","v":0.99998314600000004},{"$f":"VALUE(FIXED(EXP(AG$4*-1*'PM2.5 reduction'!AG100),9))","v":0.99999331400000002},{"$f":"VALUE(FIXED(EXP(AH$4*-1*'PM2.5 reduction'!AH100),9))","v":0.99997975900000002},{"$f":"VALUE(FIXED(EXP(AI$4*-1*'PM2.5 reduction'!AI100),9))","v":0.99997629799999999},{"$f":"VALUE(FIXED(EXP(AJ$4*-1*'PM2.5 reduction'!AJ100),9))","v":0.99998348400000003},{"$f":"VALUE(FIXED(EXP(AK$4*-1*'PM2.5 reduction'!AK100),9))","v":0.99999253499999996},{"$f":"VALUE(FIXED(EXP(AL$4*-1*'PM2.5 reduction'!AL100),9))","v":0.99999075599999998},{"$f":"VALUE(FIXED(EXP(AM$4*-1*'PM2.5 reduction'!AM100),9))","v":0.99997789199999998},{"$f":"VALUE(FIXED(EXP(AN$4*-1*'PM2.5 reduction'!AN100),9))","v":0.99999355199999995},{"$f":"VALUE(FIXED(EXP(AO$4*-1*'PM2.5 reduction'!AO100),9))","v":0.99999355199999995},{"$f":"VALUE(FIXED(EXP(AP$4*-1*'PM2.5 reduction'!AP100),9))","v":0.99998714200000005},{"$f":"VALUE(FIXED(EXP(AQ$4*-1*'PM2.5 reduction'!AQ100),9))","v":0.99998004900000004},{"$f":"VALUE(FIXED(EXP(AR$4*-1*'PM2.5 reduction'!AR100),9))","v":0.999979697},{"$f":"VALUE(FIXED(EXP(AS$4*-1*'PM2.5 reduction'!AS100),9))","v":0.99999319600000003},{"$f":"VALUE(FIXED(EXP(AT$4*-1*'PM2.5 reduction'!AT100),9))","v":1},{"$f":"VALUE(FIXED(EXP(AU$4*-1*'PM2.5 reduction'!AU100),9))","v":1},{"$f":"VALUE(FIXED(EXP(AV$4*-1*'PM2.5 reduction'!AV100),9))","v":0.99998964499999998},{"$f":"VALUE(FIXED(EXP(AW$4*-1*'PM2.5 reduction'!AW100),9))","v":0.99998231999999998},{"$f":"VALUE(FIXED(EXP(AX$4*-1*'PM2.5 reduction'!AX100),9))","v":0.99998408500000002},{"$f":"VALUE(FIXED(EXP(AY$4*-1*'PM2.5 reduction'!AY100),9))","v":0.99998241899999996},{"$f":"VALUE(FIXED(EXP(AZ$4*-1*'PM2.5 reduction'!AZ100),9))","v":0.99998129999999996},{"$f":"VALUE(FIXED(EXP(BA$4*-1*'PM2.5 reduction'!BA100),9))","v":0.99997884800000003},{"$f":"VALUE(FIXED(EXP(BB$4*-1*'PM2.5 reduction'!BB100),9))","v":0.99998101399999995},{"$f":"VALUE(FIXED(EXP(BC$4*-1*'PM2.5 reduction'!BC100),9))","v":0.99999515900000002}]
[null,"Female 16-19",{"$f":"VALUE(FIXED(EXP(C$4*-1*'PM2.5 reduction'!C101),9))","v":0.99996537900000004},{"$f":"VALUE(FIXED(EXP(D$4*-1*'PM2.5 reduction'!D101),9))","v":0.99996918199999996},{"$f":"VALUE(FIXED(EXP(E$4*-1*'PM2.5 reduction'!E101),9))","v":0.99999104299999997},{"$f":"VALUE(FIXED(EXP(F$4*-1*'PM2.5 reduction'!F101),9))","v":0.99999233099999996},{"$f":"VALUE(FIXED(EXP(G$4*-1*'PM2.5 reduction'!G101),9))","v":0.99999634900000001},{"$f":"VALUE(FIXED(EXP(H$4*-1*'PM2.5 reduction'!H101),9))","v":0.99999047399999996},{"$f":"VALUE(FIXED(EXP(I$4*-1*'PM2.5 reduction'!I101),9))","v":0.99999285400000004},{"$f":"VALUE(FIXED(EXP(J$4*-1*'PM2.5 reduction'!J101),9))","v":0.99998340799999996},{"$f":"VALUE(FIXED(EXP(K$4*-1*'PM2.5 reduction'!K101),9))","v":0.99998399100000002},{"$f":"VALUE(FIXED(EXP(L$4*-1*'PM2.5 reduction'!L101),9))","v":0.99999360500000001},{"$f":"VALUE(FIXED(EXP(M$4*-1*'PM2.5 reduction'!M101),9))","v":0.99999360500000001},{"$f":"VALUE(FIXED(EXP(N$4*-1*'PM2.5 reduction'!N101),9))","v":0.999966982},{"$f":"VALUE(FIXED(EXP(O$4*-1*'PM2.5 reduction'!O101),9))","v":0.99999128699999995},{"$f":"VALUE(FIXED(EXP(P$4*-1*'PM2.5 reduction'!P101),9))","v":0.99997315499999995},{"$f":"VALUE(FIXED(EXP(Q$4*-1*'PM2.5 reduction'!Q101),9))","v":0.99998565399999995},{"$f":"VALUE(FIXED(EXP(R$4*-1*'PM2.5 reduction'!R101),9))","v":0.99997969900000006},{"$f":"VALUE(FIXED(EXP(S$4*-1*'PM2.5 reduction'!S101),9))","v":0.99997476200000002},{"$f":"VALUE(FIXED(EXP(T$4*-1*'PM2.5 reduction'!T101),9))","v":0.99995531999999998},{"$f":"VALUE(FIXED(EXP(U$4*-1*'PM2.5 reduction'!U101),9))","v":0.99999515900000002},{"$f":"VALUE(FIXED(EXP(V$4*-1*'PM2.5 reduction'!V101),9))","v":0.99998179499999995},{"$f":"VALUE(FIXED(EXP(W$4*-1*'PM2.5 reduction'!W101),9))","v":0.99998341300000004},{"$f":"VALUE(FIXED(EXP(X$4*-1*'PM2.5 reduction'!X101),9))","v":0.99998341300000004},{"$f":"VALUE(FIXED(EXP(Y$4*-1*'PM2.5 reduction'!Y101),9))","v":0.99998240000000005},{"$f":"VALUE(FIXED(EXP(Z$4*-1*'PM2.5 reduction'!Z101),9))","v":0.99996299399999999},{"$f":"VALUE(FIXED(EXP(AA$4*-1*'PM2.5 reduction'!AA101),9))","v":0.99997449299999996},{"$f":"VALUE(FIXED(EXP(AB$4*-1*'PM2.5 reduction'!AB101),9))","v":0.99997284600000003},{"$f":"VALUE(FIXED(EXP(AC$4*-1*'PM2.5 reduction'!AC101),9))","v":0.99997015199999995},{"$f":"VALUE(FIXED(EXP(AD$4*-1*'PM2.5 reduction'!AD101),9))","v":0.99999391999999998},{"$f":"VALUE(FIXED(EXP(AE$4*-1*'PM2.5 reduction'!AE101),9))","v":0.99999333099999999},{"$f":"VALUE(FIXED(EXP(AF$4*-1*'PM2.5 reduction'!AF101),9))","v":0.99998396499999997},{"$f":"VALUE(FIXED(EXP(AG$4*-1*'PM2.5 reduction'!AG101),9))","v":0.99999333099999999},{"$f":"VALUE(FIXED(EXP(AH$4*-1*'PM2.5 reduction'!AH101),9))","v":0.99997979699999995},{"$f":"VALUE(FIXED(EXP(AI$4*-1*'PM2.5 reduction'!AI101),9))","v":0.99997040000000004},{"$f":"VALUE(FIXED(EXP(AJ$4*-1*'PM2.5 reduction'!AJ101),9))","v":0.99998321300000004},{"$f":"VALUE(FIXED(EXP(AK$4*-1*'PM2.5 reduction'!AK101),9))","v":0.99999230900000002},{"$f":"VALUE(FIXED(EXP(AL$4*-1*'PM2.5 reduction'!AL101),9))","v":0.99999017400000001},{"$f":"VALUE(FIXED(EXP(AM$4*-1*'PM2.5 reduction'!AM101),9))","v":0.99997803200000002},{"$f":"VALUE(FIXED(EXP(AN$4*-1*'PM2.5 reduction'!AN101),9))","v":0.99999394799999997},{"$f":"VALUE(FIXED(EXP(AO$4*-1*'PM2.5 reduction'!AO101),9))","v":0.99999394799999997},{"$f":"VALUE(FIXED(EXP(AP$4*-1*'PM2.5 reduction'!AP101),9))","v":0.99998750800000002},{"$f":"VALUE(FIXED(EXP(AQ$4*-1*'PM2.5 reduction'!AQ101),9))","v":0.99997978499999995},{"$f":"VALUE(FIXED(EXP(AR$4*-1*'PM2.5 reduction'!AR101),9))","v":0.99997716199999997},{"$f":"VALUE(FIXED(EXP(AS$4*-1*'PM2.5 reduction'!AS101),9))","v":0.99999285400000004},{"$f":"VALUE(FIXED(EXP(AT$4*-1*'PM2.5 reduction'!AT101),9))","v":1},{"$f":"VALUE(FIXED(EXP(AU$4*-1*'PM2.5 reduction'!AU101),9))","v":1},{"$f":"VALUE(FIXED(EXP(AV$4*-1*'PM2.5 reduction'!AV101),9))","v":0.99998956400000005},{"$f":"VALUE(FIXED(EXP(AW$4*-1*'PM2.5 reduction'!AW101),9))","v":0.99998217700000003},{"$f":"VALUE(FIXED(EXP(AX$4*-1*'PM2.5 reduction'!AX101),9))","v":0.99998282100000002},{"$f":"VALUE(FIXED(EXP(AY$4*-1*'PM2.5 reduction'!AY101),9))","v":0.99998061199999999},{"$f":"VALUE(FIXED(EXP(AZ$4*-1*'PM2.5 reduction'!AZ101),9))","v":0.99997761200000002},{"$f":"VALUE(FIXED(EXP(BA$4*-1*'PM2.5 reduction'!BA101),9))","v":0.99997912899999997},{"$f":"VALUE(FIXED(EXP(BB$4*-1*'PM2.5 reduction'!BB101),9))","v":0.99998089000000001},{"$f":"VALUE(FIXED(EXP(BC$4*-1*'PM2.5 reduction'!BC101),9))","v":0.99999515900000002}]
[null,"Female 20-24",{"$f":"VALUE(FIXED(EXP(C$4*-1*'PM2.5 reduction'!C102),9))","v":0.99996006599999998},{"$f":"VALUE(FIXED(EXP(D$4*-1*'PM2.5 reduction'!D102),9))","v":0.999963139},{"$f":"VALUE(FIXED(EXP(E$4*-1*'PM2.5 reduction'!E102),9))","v":0.99999022900000001},{"$f":"VALUE(FIXED(EXP(F$4*-1*'PM2.5 reduction'!F102),9))","v":0.99999221599999999},{"$f":"VALUE(FIXED(EXP(G$4*-1*'PM2.5 reduction'!G102),9))","v":0.99999621000000005},{"$f":"VALUE(FIXED(EXP(H$4*-1*'PM2.5 reduction'!H102),9))","v":0.99999015099999999},{"$f":"VALUE(FIXED(EXP(I$4*-1*'PM2.5 reduction'!I102),9))","v":0.99999199599999999},{"$f":"VALUE(FIXED(EXP(J$4*-1*'PM2.5 reduction'!J102),9))","v":0.99998101500000003},{"$f":"VALUE(FIXED(EXP(K$4*-1*'PM2.5 reduction'!K102),9))","v":0.99998380399999998},{"$f":"VALUE(FIXED(EXP(L$4*-1*'PM2.5 reduction'!L102),9))","v":0.99999348399999999},{"$f":"VALUE(FIXED(EXP(M$4*-1*'PM2.5 reduction'!M102),9))","v":0.99999348399999999},{"$f":"VALUE(FIXED(EXP(N$4*-1*'PM2.5 reduction'!N102),9))","v":0.99996170699999998},{"$f":"VALUE(FIXED(EXP(O$4*-1*'PM2.5 reduction'!O102),9))","v":0.99999049100000004},{"$f":"VALUE(FIXED(EXP(P$4*-1*'PM2.5 reduction'!P102),9))","v":0.99997195000000005},{"$f":"VALUE(FIXED(EXP(Q$4*-1*'PM2.5 reduction'!Q102),9))","v":0.99998457200000002},{"$f":"VALUE(FIXED(EXP(R$4*-1*'PM2.5 reduction'!R102),9))","v":0.99997913299999996},{"$f":"VALUE(FIXED(EXP(S$4*-1*'PM2.5 reduction'!S102),9))","v":0.99996785700000002},{"$f":"VALUE(FIXED(EXP(T$4*-1*'PM2.5 reduction'!T102),9))","v":0.99994950599999999},{"$f":"VALUE(FIXED(EXP(U$4*-1*'PM2.5 reduction'!U102),9))","v":0.99999515900000002},{"$f":"VALUE(FIXED(EXP(V$4*-1*'PM2.5 reduction'!V102),9))","v":0.999980698},{"$f":"VALUE(FIXED(EXP(W$4*-1*'PM2.5 reduction'!W102),9))","v":0.99998303200000005},{"$f":"VALUE(FIXED(EXP(X$4*-1*'PM2.5 reduction'!X102),9))","v":0.99998303200000005},{"$f":"VALUE(FIXED(EXP(Y$4*-1*'PM2.5 reduction'!Y102),9))","v":0.99998083199999999},{"$f":"VALUE(FIXED(EXP(Z$4*-1*'PM2.5 reduction'!Z102),9))","v":0.99995630499999999},{"$f":"VALUE(FIXED(EXP(AA$4*-1*'PM2.5 reduction'!AA102),9))","v":0.99997073700000005},{"$f":"VALUE(FIXED(EXP(AB$4*-1*'PM2.5 reduction'!AB102),9))","v":0.99996774899999996},{"$f":"VALUE(FIXED(EXP(AC$4*-1*'PM2.5 reduction'!AC102),9))","v":0.99996442699999999},{"$f":"VALUE(FIXED(EXP(AD$4*-1*'PM2.5 reduction'!AD102),9))","v":0.99999329199999998},{"$f":"VALUE(FIXED(EXP(AE$4*-1*'PM2.5 reduction'!AE102),9))","v":0.99999265299999995},{"$f":"VALUE(FIXED(EXP(AF$4*-1*'PM2.5 reduction'!AF102),9))","v":0.99998229500000002},{"$f":"VALUE(FIXED(EXP(AG$4*-1*'PM2.5 reduction'!AG102),9))","v":0.99999265299999995},{"$f":"VALUE(FIXED(EXP(AH$4*-1*'PM2.5 reduction'!AH102),9))","v":0.99997953399999995},{"$f":"VALUE(FIXED(EXP(AI$4*-1*'PM2.5 reduction'!AI102),9))","v":0.99996249000000004},{"$f":"VALUE(FIXED(EXP(AJ$4*-1*'PM2.5 reduction'!AJ102),9))","v":0.99998311500000003},{"$f":"VALUE(FIXED(EXP(AK$4*-1*'PM2.5 reduction'!AK102),9))","v":0.99999190100000002},{"$f":"VALUE(FIXED(EXP(AL$4*-1*'PM2.5 reduction'!AL102),9))","v":0.99999045399999997},{"$f":"VALUE(FIXED(EXP(AM$4*-1*'PM2.5 reduction'!AM102),9))","v":0.99997777899999996},{"$f":"VALUE(FIXED(EXP(AN$4*-1*'PM2.5 reduction'!AN102),9))","v":0.99999393299999995},{"$f":"VALUE(FIXED(EXP(AO$4*-1*'PM2.5 reduction'!AO102),9))","v":0.99999393299999995},{"$f":"VALUE(FIXED(EXP(AP$4*-1*'PM2.5 reduction'!AP102),9))","v":0.99998533199999995},{"$f":"VALUE(FIXED(EXP(AQ$4*-1*'PM2.5 reduction'!AQ102),9))","v":0.99997903099999996},{"$f":"VALUE(FIXED(EXP(AR$4*-1*'PM2.5 reduction'!AR102),9))","v":0.99997232000000003},{"$f":"VALUE(FIXED(EXP(AS$4*-1*'PM2.5 reduction'!AS102),9))","v":0.99999199599999999},{"$f":"VALUE(FIXED(EXP(AT$4*-1*'PM2.5 reduction'!AT102),9))","v":1},{"$f":"VALUE(FIXED(EXP(AU$4*-1*'PM2.5 reduction'!AU102),9))","v":1},{"$f":"VALUE(FIXED(EXP(AV$4*-1*'PM2.5 reduction'!AV102),9))","v":0.999989393},{"$f":"VALUE(FIXED(EXP(AW$4*-1*'PM2.5 reduction'!AW102),9))","v":0.99998151000000002},{"$f":"VALUE(FIXED(EXP(AX$4*-1*'PM2.5 reduction'!AX102),9))","v":0.99997962799999995},{"$f":"VALUE(FIXED(EXP(AY$4*-1*'PM2.5 reduction'!AY102),9))","v":0.99997639400000005},{"$f":"VALUE(FIXED(EXP(AZ$4*-1*'PM2.5 reduction'!AZ102),9))","v":0.99997159700000005},{"$f":"VALUE(FIXED(EXP(BA$4*-1*'PM2.5 reduction'!BA102),9))","v":0.99997955299999997},{"$f":"VALUE(FIXED(EXP(BB$4*-1*'PM2.5 reduction'!BB102),9))","v":0.99998084499999995},{"$f":"VALUE(FIXED(EXP(BC$4*-1*'PM2.5 reduction'!BC102),9))","v":0.99999515900000002}]
[null,"Female 25-29",{"$f":"VALUE(FIXED(EXP(C$4*-1*'PM2.5 reduction'!C103),9))","v":0.99996125999999996},{"$f":"VALUE(FIXED(EXP(D$4*-1*'PM2.5 reduction'!D103),9))","v":0.99996431500000005},{"$f":"VALUE(FIXED(EXP(E$4*-1*'PM2.5 reduction'!E103),9))","v":0.99999039000000001},{"$f":"VALUE(FIXED(EXP(F$4*-1*'PM2.5 reduction'!F103),9))","v":0.99999226500000005},{"$f":"VALUE(FIXED(EXP(G$4*-1*'PM2.5 reduction'!G103),9))","v":0.99999617500000004},{"$f":"VALUE(FIXED(EXP(H$4*-1*'PM2.5 reduction'!H103),9))","v":0.99998983500000005},{"$f":"VALUE(FIXED(EXP(I$4*-1*'PM2.5 reduction'!I103),9))","v":0.99999230100000003},{"$f":"VALUE(FIXED(EXP(J$4*-1*'PM2.5 reduction'!J103),9))","v":0.99998368500000001},{"$f":"VALUE(FIXED(EXP(K$4*-1*'PM2.5 reduction'!K103),9))","v":0.99998449499999997},{"$f":"VALUE(FIXED(EXP(L$4*-1*'PM2.5 reduction'!L103),9))","v":0.99999316500000002},{"$f":"VALUE(FIXED(EXP(M$4*-1*'PM2.5 reduction'!M103),9))","v":0.99999316500000002},{"$f":"VALUE(FIXED(EXP(N$4*-1*'PM2.5 reduction'!N103),9))","v":0.99996787300000001},{"$f":"VALUE(FIXED(EXP(O$4*-1*'PM2.5 reduction'!O103),9))","v":0.99999037999999996},{"$f":"VALUE(FIXED(EXP(P$4*-1*'PM2.5 reduction'!P103),9))","v":0.99997308699999998},{"$f":"VALUE(FIXED(EXP(Q$4*-1*'PM2.5 reduction'!Q103),9))","v":0.99998474199999998},{"$f":"VALUE(FIXED(EXP(R$4*-1*'PM2.5 reduction'!R103),9))","v":0.99997963099999998},{"$f":"VALUE(FIXED(EXP(S$4*-1*'PM2.5 reduction'!S103),9))","v":0.99997060500000001},{"$f":"VALUE(FIXED(EXP(T$4*-1*'PM2.5 reduction'!T103),9))","v":0.99995583499999996},{"$f":"VALUE(FIXED(EXP(U$4*-1*'PM2.5 reduction'!U103),9))","v":0.99999515900000002},{"$f":"VALUE(FIXED(EXP(V$4*-1*'PM2.5 reduction'!V103),9))","v":0.99998102200000005},{"$f":"VALUE(FIXED(EXP(W$4*-1*'PM2.5 reduction'!W103),9))","v":0.99998290899999998},{"$f":"VALUE(FIXED(EXP(X$4*-1*'PM2.5 reduction'!X103),9))","v":0.99998290899999998},{"$f":"VALUE(FIXED(EXP(Y$4*-1*'PM2.5 reduction'!Y103),9))","v":0.99998205699999998},{"$f":"VALUE(FIXED(EXP(Z$4*-1*'PM2.5 reduction'!Z103),9))","v":0.99996167899999999},{"$f":"VALUE(FIXED(EXP(AA$4*-1*'PM2.5 reduction'!AA103),9))","v":0.99997167499999995},{"$f":"VALUE(FIXED(EXP(AB$4*-1*'PM2.5 reduction'!AB103),9))","v":0.99996771699999998},{"$f":"VALUE(FIXED(EXP(AC$4*-1*'PM2.5 reduction'!AC103),9))","v":0.99996710099999997},{"$f":"VALUE(FIXED(EXP(AD$4*-1*'PM2.5 reduction'!AD103),9))","v":0.99999311499999999},{"$f":"VALUE(FIXED(EXP(AE$4*-1*'PM2.5 reduction'!AE103),9))","v":0.99999254299999996},{"$f":"VALUE(FIXED(EXP(AF$4*-1*'PM2.5 reduction'!AF103),9))","v":0.99998231199999998},{"$f":"VALUE(FIXED(EXP(AG$4*-1*'PM2.5 reduction'!AG103),9))","v":0.99999254299999996},{"$f":"VALUE(FIXED(EXP(AH$4*-1*'PM2.5 reduction'!AH103),9))","v":0.99997913199999999},{"$f":"VALUE(FIXED(EXP(AI$4*-1*'PM2.5 reduction'!AI103),9))","v":0.99996620300000005},{"$f":"VALUE(FIXED(EXP(AJ$4*-1*'PM2.5 reduction'!AJ103),9))","v":0.99998315800000004},{"$f":"VALUE(FIXED(EXP(AK$4*-1*'PM2.5 reduction'!AK103),9))","v":0.99999162799999997},{"$f":"VALUE(FIXED(EXP(AL$4*-1*'PM2.5 reduction'!AL103),9))","v":0.99999004400000002},{"$f":"VALUE(FIXED(EXP(AM$4*-1*'PM2.5 reduction'!AM103),9))","v":0.99997748600000003},{"$f":"VALUE(FIXED(EXP(AN$4*-1*'PM2.5 reduction'!AN103),9))","v":0.99999382599999997},{"$f":"VALUE(FIXED(EXP(AO$4*-1*'PM2.5 reduction'!AO103),9))","v":0.99999382599999997},{"$f":"VALUE(FIXED(EXP(AP$4*-1*'PM2.5 reduction'!AP103),9))","v":0.99998605900000004},{"$f":"VALUE(FIXED(EXP(AQ$4*-1*'PM2.5 reduction'!AQ103),9))","v":0.99997931900000003},{"$f":"VALUE(FIXED(EXP(AR$4*-1*'PM2.5 reduction'!AR103),9))","v":0.99997383900000003},{"$f":"VALUE(FIXED(EXP(AS$4*-1*'PM2.5 reduction'!AS103),9))","v":0.99999230100000003},{"$f":"VALUE(FIXED(EXP(AT$4*-1*'PM2.5 reduction'!AT103),9))","v":1},{"$f":"VALUE(FIXED(EXP(AU$4*-1*'PM2.5 reduction'!AU103),9))","v":1},{"$f":"VALUE(FIXED(EXP(AV$4*-1*'PM2.5 reduction'!AV103),9))","v":0.99998885800000004},{"$f":"VALUE(FIXED(EXP(AW$4*-1*'PM2.5 reduction'!AW103),9))","v":0.99998106099999995},{"$f":"VALUE(FIXED(EXP(AX$4*-1*'PM2.5 reduction'!AX103),9))","v":0.99998311500000003},{"$f":"VALUE(FIXED(EXP(AY$4*-1*'PM2.5 reduction'!AY103),9))","v":0.99997939999999996},{"$f":"VALUE(FIXED(EXP(AZ$4*-1*'PM2.5 reduction'!AZ103),9))","v":0.99997654999999996},{"$f":"VALUE(FIXED(EXP(BA$4*-1*'PM2.5 reduction'!BA103),9))","v":0.99997927099999995},{"$f":"VALUE(FIXED(EXP(BB$4*-1*'PM2.5 reduction'!BB103),9))","v":0.99998090399999995},{"$f":"VALUE(FIXED(EXP(BC$4*-1*'PM2.5 reduction'!BC103),9))","v":0.99999515900000002}]
[null,"Female 30-34",{"$f":"VALUE(FIXED(EXP(C$4*-1*'PM2.5 reduction'!C104),9))","v":0.99996413200000001},{"$f":"VALUE(FIXED(EXP(D$4*-1*'PM2.5 reduction'!D104),9))","v":0.99996680199999999},{"$f":"VALUE(FIXED(EXP(E$4*-1*'PM2.5 reduction'!E104),9))","v":0.999989719},{"$f":"VALUE(FIXED(EXP(F$4*-1*'PM2.5 reduction'!F104),9))","v":0.99999203800000003},{"$f":"VALUE(FIXED(EXP(G$4*-1*'PM2.5 reduction'!G104),9))","v":0.99999627099999999},{"$f":"VALUE(FIXED(EXP(H$4*-1*'PM2.5 reduction'!H104),9))","v":0.99998966300000003},{"$f":"VALUE(FIXED(EXP(I$4*-1*'PM2.5 reduction'!I104),9))","v":0.99999262700000002},{"$f":"VALUE(FIXED(EXP(J$4*-1*'PM2.5 reduction'!J104),9))","v":0.99998350199999997},{"$f":"VALUE(FIXED(EXP(K$4*-1*'PM2.5 reduction'!K104),9))","v":0.99998406799999995},{"$f":"VALUE(FIXED(EXP(L$4*-1*'PM2.5 reduction'!L104),9))","v":0.999993613},{"$f":"VALUE(FIXED(EXP(M$4*-1*'PM2.5 reduction'!M104),9))","v":0.999993613},{"$f":"VALUE(FIXED(EXP(N$4*-1*'PM2.5 reduction'!N104),9))","v":0.99997022400000002},{"$f":"VALUE(FIXED(EXP(O$4*-1*'PM2.5 reduction'!O104),9))","v":0.99998975899999998},{"$f":"VALUE(FIXED(EXP(P$4*-1*'PM2.5 reduction'!P104),9))","v":0.999972317},{"$f":"VALUE(FIXED(EXP(Q$4*-1*'PM2.5 reduction'!Q104),9))","v":0.99998524200000005},{"$f":"VALUE(FIXED(EXP(R$4*-1*'PM2.5 reduction'!R104),9))","v":0.99997989899999995},{"$f":"VALUE(FIXED(EXP(S$4*-1*'PM2.5 reduction'!S104),9))","v":0.999972525},{"$f":"VALUE(FIXED(EXP(T$4*-1*'PM2.5 reduction'!T104),9))","v":0.999957396},{"$f":"VALUE(FIXED(EXP(U$4*-1*'PM2.5 reduction'!U104),9))","v":0.99999515900000002},{"$f":"VALUE(FIXED(EXP(V$4*-1*'PM2.5 reduction'!V104),9))","v":0.99998073799999998},{"$f":"VALUE(FIXED(EXP(W$4*-1*'PM2.5 reduction'!W104),9))","v":0.99998327899999995},{"$f":"VALUE(FIXED(EXP(X$4*-1*'PM2.5 reduction'!X104),9))","v":0.99998327899999995},{"$f":"VALUE(FIXED(EXP(Y$4*-1*'PM2.5 reduction'!Y104),9))","v":0.99998162599999996},{"$f":"VALUE(FIXED(EXP(Z$4*-1*'PM2.5 reduction'!Z104),9))","v":0.99996275899999998},{"$f":"VALUE(FIXED(EXP(AA$4*-1*'PM2.5 reduction'!AA104),9))","v":0.99997301900000002},{"$f":"VALUE(FIXED(EXP(AB$4*-1*'PM2.5 reduction'!AB104),9))","v":0.99997054799999996},{"$f":"VALUE(FIXED(EXP(AC$4*-1*'PM2.5 reduction'!AC104),9))","v":0.99996844900000004},{"$f":"VALUE(FIXED(EXP(AD$4*-1*'PM2.5 reduction'!AD104),9))","v":0.99999353599999996},{"$f":"VALUE(FIXED(EXP(AE$4*-1*'PM2.5 reduction'!AE104),9))","v":0.99999301399999996},{"$f":"VALUE(FIXED(EXP(AF$4*-1*'PM2.5 reduction'!AF104),9))","v":0.99998224099999999},{"$f":"VALUE(FIXED(EXP(AG$4*-1*'PM2.5 reduction'!AG104),9))","v":0.99999301399999996},{"$f":"VALUE(FIXED(EXP(AH$4*-1*'PM2.5 reduction'!AH104),9))","v":0.99997918100000005},{"$f":"VALUE(FIXED(EXP(AI$4*-1*'PM2.5 reduction'!AI104),9))","v":0.99996842500000005},{"$f":"VALUE(FIXED(EXP(AJ$4*-1*'PM2.5 reduction'!AJ104),9))","v":0.999983713},{"$f":"VALUE(FIXED(EXP(AK$4*-1*'PM2.5 reduction'!AK104),9))","v":0.99999174099999999},{"$f":"VALUE(FIXED(EXP(AL$4*-1*'PM2.5 reduction'!AL104),9))","v":0.99999023600000003},{"$f":"VALUE(FIXED(EXP(AM$4*-1*'PM2.5 reduction'!AM104),9))","v":0.99997777300000001},{"$f":"VALUE(FIXED(EXP(AN$4*-1*'PM2.5 reduction'!AN104),9))","v":0.999993837},{"$f":"VALUE(FIXED(EXP(AO$4*-1*'PM2.5 reduction'!AO104),9))","v":0.999993837},{"$f":"VALUE(FIXED(EXP(AP$4*-1*'PM2.5 reduction'!AP104),9))","v":0.99998574799999995},{"$f":"VALUE(FIXED(EXP(AQ$4*-1*'PM2.5 reduction'!AQ104),9))","v":0.99997931399999995},{"$f":"VALUE(FIXED(EXP(AR$4*-1*'PM2.5 reduction'!AR104),9))","v":0.99997540299999998},{"$f":"VALUE(FIXED(EXP(AS$4*-1*'PM2.5 reduction'!AS104),9))","v":0.99999262700000002},{"$f":"VALUE(FIXED(EXP(AT$4*-1*'PM2.5 reduction'!AT104),9))","v":1},{"$f":"VALUE(FIXED(EXP(AU$4*-1*'PM2.5 reduction'!AU104),9))","v":1},{"$f":"VALUE(FIXED(EXP(AV$4*-1*'PM2.5 reduction'!AV104),9))","v":0.99998879600000001},{"$f":"VALUE(FIXED(EXP(AW$4*-1*'PM2.5 reduction'!AW104),9))","v":0.999980863},{"$f":"VALUE(FIXED(EXP(AX$4*-1*'PM2.5 reduction'!AX104),9))","v":0.99998299000000002},{"$f":"VALUE(FIXED(EXP(AY$4*-1*'PM2.5 reduction'!AY104),9))","v":0.99998114599999999},{"$f":"VALUE(FIXED(EXP(AZ$4*-1*'PM2.5 reduction'!AZ104),9))","v":0.99997920299999998},{"$f":"VALUE(FIXED(EXP(BA$4*-1*'PM2.5 reduction'!BA104),9))","v":0.99997955199999999},{"$f":"VALUE(FIXED(EXP(BB$4*-1*'PM2.5 reduction'!BB104),9))","v":0.99998077299999999},{"$f":"VALUE(FIXED(EXP(BC$4*-1*'PM2.5 reduction'!BC104),9))","v":0.99999515900000002}]
[null,"Female 35-39",{"$f":"VALUE(FIXED(EXP(C$4*-1*'PM2.5 reduction'!C105),9))","v":0.99996432700000004},{"$f":"VALUE(FIXED(EXP(D$4*-1*'PM2.5 reduction'!D105),9))","v":0.99996827499999996},{"$f":"VALUE(FIXED(EXP(E$4*-1*'PM2.5 reduction'!E105),9))","v":0.99999083700000002},{"$f":"VALUE(FIXED(EXP(F$4*-1*'PM2.5 reduction'!F105),9))","v":0.99999230900000002},{"$f":"VALUE(FIXED(EXP(G$4*-1*'PM2.5 reduction'!G105),9))","v":0.99999623400000004},{"$f":"VALUE(FIXED(EXP(H$4*-1*'PM2.5 reduction'!H105),9))","v":0.99999000800000004},{"$f":"VALUE(FIXED(EXP(I$4*-1*'PM2.5 reduction'!I105),9))","v":0.999992722},{"$f":"VALUE(FIXED(EXP(J$4*-1*'PM2.5 reduction'!J105),9))","v":0.99998393100000005},{"$f":"VALUE(FIXED(EXP(K$4*-1*'PM2.5 reduction'!K105),9))","v":0.99998448399999995},{"$f":"VALUE(FIXED(EXP(L$4*-1*'PM2.5 reduction'!L105),9))","v":0.99999369699999996},{"$f":"VALUE(FIXED(EXP(M$4*-1*'PM2.5 reduction'!M105),9))","v":0.99999369699999996},{"$f":"VALUE(FIXED(EXP(N$4*-1*'PM2.5 reduction'!N105),9))","v":0.99997056399999995},{"$f":"VALUE(FIXED(EXP(O$4*-1*'PM2.5 reduction'!O105),9))","v":0.99999012300000001},{"$f":"VALUE(FIXED(EXP(P$4*-1*'PM2.5 reduction'!P105),9))","v":0.99997240600000004},{"$f":"VALUE(FIXED(EXP(Q$4*-1*'PM2.5 reduction'!Q105),9))","v":0.99998536800000004},{"$f":"VALUE(FIXED(EXP(R$4*-1*'PM2.5 reduction'!R105),9))","v":0.99997885600000003},{"$f":"VALUE(FIXED(EXP(S$4*-1*'PM2.5 reduction'!S105),9))","v":0.99997500699999997},{"$f":"VALUE(FIXED(EXP(T$4*-1*'PM2.5 reduction'!T105),9))","v":0.99995891400000003},{"$f":"VALUE(FIXED(EXP(U$4*-1*'PM2.5 reduction'!U105),9))","v":0.99999515900000002},{"$f":"VALUE(FIXED(EXP(V$4*-1*'PM2.5 reduction'!V105),9))","v":0.99998112900000002},{"$f":"VALUE(FIXED(EXP(W$4*-1*'PM2.5 reduction'!W105),9))","v":0.99998332999999995},{"$f":"VALUE(FIXED(EXP(X$4*-1*'PM2.5 reduction'!X105),9))","v":0.99998332999999995},{"$f":"VALUE(FIXED(EXP(Y$4*-1*'PM2.5 reduction'!Y105),9))","v":0.99998204999999996},{"$f":"VALUE(FIXED(EXP(Z$4*-1*'PM2.5 reduction'!Z105),9))","v":0.99996410899999999},{"$f":"VALUE(FIXED(EXP(AA$4*-1*'PM2.5 reduction'!AA105),9))","v":0.99997397300000002},{"$f":"VALUE(FIXED(EXP(AB$4*-1*'PM2.5 reduction'!AB105),9))","v":0.99997211799999997},{"$f":"VALUE(FIXED(EXP(AC$4*-1*'PM2.5 reduction'!AC105),9))","v":0.99996973},{"$f":"VALUE(FIXED(EXP(AD$4*-1*'PM2.5 reduction'!AD105),9))","v":0.99999338400000004},{"$f":"VALUE(FIXED(EXP(AE$4*-1*'PM2.5 reduction'!AE105),9))","v":0.99999280700000004},{"$f":"VALUE(FIXED(EXP(AF$4*-1*'PM2.5 reduction'!AF105),9))","v":0.99998234699999999},{"$f":"VALUE(FIXED(EXP(AG$4*-1*'PM2.5 reduction'!AG105),9))","v":0.99999280700000004},{"$f":"VALUE(FIXED(EXP(AH$4*-1*'PM2.5 reduction'!AH105),9))","v":0.99997931600000001},{"$f":"VALUE(FIXED(EXP(AI$4*-1*'PM2.5 reduction'!AI105),9))","v":0.99997118299999999},{"$f":"VALUE(FIXED(EXP(AJ$4*-1*'PM2.5 reduction'!AJ105),9))","v":0.99998303099999997},{"$f":"VALUE(FIXED(EXP(AK$4*-1*'PM2.5 reduction'!AK105),9))","v":0.999992451},{"$f":"VALUE(FIXED(EXP(AL$4*-1*'PM2.5 reduction'!AL105),9))","v":0.99999037700000004},{"$f":"VALUE(FIXED(EXP(AM$4*-1*'PM2.5 reduction'!AM105),9))","v":0.99997776000000005},{"$f":"VALUE(FIXED(EXP(AN$4*-1*'PM2.5 reduction'!AN105),9))","v":0.99999359399999999},{"$f":"VALUE(FIXED(EXP(AO$4*-1*'PM2.5 reduction'!AO105),9))","v":0.99999359399999999},{"$f":"VALUE(FIXED(EXP(AP$4*-1*'PM2.5 reduction'!AP105),9))","v":0.99998616200000001},{"$f":"VALUE(FIXED(EXP(AQ$4*-1*'PM2.5 reduction'!AQ105),9))","v":0.999979277},{"$f":"VALUE(FIXED(EXP(AR$4*-1*'PM2.5 reduction'!AR105),9))","v":0.99997695600000003},{"$f":"VALUE(FIXED(EXP(AS$4*-1*'PM2.5 reduction'!AS105),9))","v":0.999992722},{"$f":"VALUE(FIXED(EXP(AT$4*-1*'PM2.5 reduction'!AT105),9))","v":1},{"$f":"VALUE(FIXED(EXP(AU$4*-1*'PM2.5 reduction'!AU105),9))","v":1},{"$f":"VALUE(FIXED(EXP(AV$4*-1*'PM2.5 reduction'!AV105),9))","v":0.99998942199999996},{"$f":"VALUE(FIXED(EXP(AW$4*-1*'PM2.5 reduction'!AW105),9))","v":0.99998125500000001},{"$f":"VALUE(FIXED(EXP(AX$4*-1*'PM2.5 reduction'!AX105),9))","v":0.99998340799999996},{"$f":"VALUE(FIXED(EXP(AY$4*-1*'PM2.5 reduction'!AY105),9))","v":0.99998157200000004},{"$f":"VALUE(FIXED(EXP(AZ$4*-1*'PM2.5 reduction'!AZ105),9))","v":0.99997959300000006},{"$f":"VALUE(FIXED(EXP(BA$4*-1*'PM2.5 reduction'!BA105),9))","v":0.99997858100000003},{"$f":"VALUE(FIXED(EXP(BB$4*-1*'PM2.5 reduction'!BB105),9))","v":0.99998092599999999},{"$f":"VALUE(FIXED(EXP(BC$4*-1*'PM2.5 reduction'!BC105),9))","v":0.99999515900000002}]
[null,"Female 40-44",{"$f":"VALUE(FIXED(EXP(C$4*-1*'PM2.5 reduction'!C106),9))","v":0.99996527999999996},{"$f":"VALUE(FIXED(EXP(D$4*-1*'PM2.5 reduction'!D106),9))","v":0.99996884799999997},{"$f":"VALUE(FIXED(EXP(E$4*-1*'PM2.5 reduction'!E106),9))","v":0.99999057999999996},{"$f":"VALUE(FIXED(EXP(F$4*-1*'PM2.5 reduction'!F106),9))","v":0.99999198499999997},{"$f":"VALUE(FIXED(EXP(G$4*-1*'PM2.5 reduction'!G106),9))","v":0.99999625000000003},{"$f":"VALUE(FIXED(EXP(H$4*-1*'PM2.5 reduction'!H106),9))","v":0.99999009699999997},{"$f":"VALUE(FIXED(EXP(I$4*-1*'PM2.5 reduction'!I106),9))","v":0.99999277099999995},{"$f":"VALUE(FIXED(EXP(J$4*-1*'PM2.5 reduction'!J106),9))","v":0.99998390199999998},{"$f":"VALUE(FIXED(EXP(K$4*-1*'PM2.5 reduction'!K106),9))","v":0.99998410000000004},{"$f":"VALUE(FIXED(EXP(L$4*-1*'PM2.5 reduction'!L106),9))","v":0.99999337200000005},{"$f":"VALUE(FIXED(EXP(M$4*-1*'PM2.5 reduction'!M106),9))","v":0.99999337200000005},{"$f":"VALUE(FIXED(EXP(N$4*-1*'PM2.5 reduction'!N106),9))","v":0.99997178799999997},{"$f":"VALUE(FIXED(EXP(O$4*-1*'PM2.5 reduction'!O106),9))","v":0.99999059400000001},{"$f":"VALUE(FIXED(EXP(P$4*-1*'PM2.5 reduction'!P106),9))","v":0.99997209499999995},{"$f":"VALUE(FIXED(EXP(Q$4*-1*'PM2.5 reduction'!Q106),9))","v":0.99998573000000002},{"$f":"VALUE(FIXED(EXP(R$4*-1*'PM2.5 reduction'!R106),9))","v":0.99997914200000004},{"$f":"VALUE(FIXED(EXP(S$4*-1*'PM2.5 reduction'!S106),9))","v":0.99997636099999998},{"$f":"VALUE(FIXED(EXP(T$4*-1*'PM2.5 reduction'!T106),9))","v":0.99996034700000003},{"$f":"VALUE(FIXED(EXP(U$4*-1*'PM2.5 reduction'!U106),9))","v":0.99999515900000002},{"$f":"VALUE(FIXED(EXP(V$4*-1*'PM2.5 reduction'!V106),9))","v":0.99998123699999997},{"$f":"VALUE(FIXED(EXP(W$4*-1*'PM2.5 reduction'!W106),9))","v":0.99998326299999996},{"$f":"VALUE(FIXED(EXP(X$4*-1*'PM2.5 reduction'!X106),9))","v":0.99998326299999996},{"$f":"VALUE(FIXED(EXP(Y$4*-1*'PM2.5 reduction'!Y106),9))","v":0.99998212399999997},{"$f":"VALUE(FIXED(EXP(Z$4*-1*'PM2.5 reduction'!Z106),9))","v":0.99996491499999995},{"$f":"VALUE(FIXED(EXP(AA$4*-1*'PM2.5 reduction'!AA106),9))","v":0.99997505799999997},{"$f":"VALUE(FIXED(EXP(AB$4*-1*'PM2.5 reduction'!AB106),9))","v":0.99997297699999999},{"$f":"VALUE(FIXED(EXP(AC$4*-1*'PM2.5 reduction'!AC106),9))","v":0.99997117300000005},{"$f":"VALUE(FIXED(EXP(AD$4*-1*'PM2.5 reduction'!AD106),9))","v":0.99999347999999999},{"$f":"VALUE(FIXED(EXP(AE$4*-1*'PM2.5 reduction'!AE106),9))","v":0.99999285599999999},{"$f":"VALUE(FIXED(EXP(AF$4*-1*'PM2.5 reduction'!AF106),9))","v":0.99998229599999999},{"$f":"VALUE(FIXED(EXP(AG$4*-1*'PM2.5 reduction'!AG106),9))","v":0.99999285599999999},{"$f":"VALUE(FIXED(EXP(AH$4*-1*'PM2.5 reduction'!AH106),9))","v":0.99997956899999996},{"$f":"VALUE(FIXED(EXP(AI$4*-1*'PM2.5 reduction'!AI106),9))","v":0.99997265099999999},{"$f":"VALUE(FIXED(EXP(AJ$4*-1*'PM2.5 reduction'!AJ106),9))","v":0.99998291399999994},{"$f":"VALUE(FIXED(EXP(AK$4*-1*'PM2.5 reduction'!AK106),9))","v":0.99999243100000001},{"$f":"VALUE(FIXED(EXP(AL$4*-1*'PM2.5 reduction'!AL106),9))","v":0.99999046400000002},{"$f":"VALUE(FIXED(EXP(AM$4*-1*'PM2.5 reduction'!AM106),9))","v":0.99997795700000003},{"$f":"VALUE(FIXED(EXP(AN$4*-1*'PM2.5 reduction'!AN106),9))","v":0.99999370300000001},{"$f":"VALUE(FIXED(EXP(AO$4*-1*'PM2.5 reduction'!AO106),9))","v":0.99999370300000001},{"$f":"VALUE(FIXED(EXP(AP$4*-1*'PM2.5 reduction'!AP106),9))","v":0.99998633100000001},{"$f":"VALUE(FIXED(EXP(AQ$4*-1*'PM2.5 reduction'!AQ106),9))","v":0.99997962799999995},{"$f":"VALUE(FIXED(EXP(AR$4*-1*'PM2.5 reduction'!AR106),9))","v":0.99997814900000004},{"$f":"VALUE(FIXED(EXP(AS$4*-1*'PM2.5 reduction'!AS106),9))","v":0.99999277099999995},{"$f":"VALUE(FIXED(EXP(AT$4*-1*'PM2.5 reduction'!AT106),9))","v":1},{"$f":"VALUE(FIXED(EXP(AU$4*-1*'PM2.5 reduction'!AU106),9))","v":1},{"$f":"VALUE(FIXED(EXP(AV$4*-1*'PM2.5 reduction'!AV106),9))","v":0.99998883999999999},{"$f":"VALUE(FIXED(EXP(AW$4*-1*'PM2.5 reduction'!AW106),9))","v":0.99998163799999995},{"$f":"VALUE(FIXED(EXP(AX$4*-1*'PM2.5 reduction'!AX106),9))","v":0.99998367200000005},{"$f":"VALUE(FIXED(EXP(AY$4*-1*'PM2.5 reduction'!AY106),9))","v":0.99998218699999997},{"$f":"VALUE(FIXED(EXP(AZ$4*-1*'PM2.5 reduction'!AZ106),9))","v":0.99998083100000001},{"$f":"VALUE(FIXED(EXP(BA$4*-1*'PM2.5 reduction'!BA106),9))","v":0.99997939300000005},{"$f":"VALUE(FIXED(EXP(BB$4*-1*'PM2.5 reduction'!BB106),9))","v":0.99998101800000005},{"$f":"VALUE(FIXED(EXP(BC$4*-1*'PM2.5 reduction'!BC106),9))","v":0.99999515900000002}]
[null,"Female 45-49",{"$f":"VALUE(FIXED(EXP(C$4*-1*'PM2.5 reduction'!C107),9))","v":0.99996586899999995},{"$f":"VALUE(FIXED(EXP(D$4*-1*'PM2.5 reduction'!D107),9))","v":0.99997000400000002},{"$f":"VALUE(FIXED(EXP(E$4*-1*'PM2.5 reduction'!E107),9))","v":0.99999075400000004},{"$f":"VALUE(FIXED(EXP(F$4*-1*'PM2.5 reduction'!F107),9))","v":0.99999238700000004},{"$f":"VALUE(FIXED(EXP(G$4*-1*'PM2.5 reduction'!G107),9))","v":0.99999628600000001},{"$f":"VALUE(FIXED(EXP(H$4*-1*'PM2.5 reduction'!H107),9))","v":0.99999023600000003},{"$f":"VALUE(FIXED(EXP(I$4*-1*'PM2.5 reduction'!I107),9))","v":0.99999272900000002},{"$f":"VALUE(FIXED(EXP(J$4*-1*'PM2.5 reduction'!J107),9))","v":0.999984231},{"$f":"VALUE(FIXED(EXP(K$4*-1*'PM2.5 reduction'!K107),9))","v":0.999984031},{"$f":"VALUE(FIXED(EXP(L$4*-1*'PM2.5 reduction'!L107),9))","v":0.99999340599999997},{"$f":"VALUE(FIXED(EXP(M$4*-1*'PM2.5 reduction'!M107),9))","v":0.99999340599999997},{"$f":"VALUE(FIXED(EXP(N$4*-1*'PM2.5 reduction'!N107),9))","v":0.99997082999999998},{"$f":"VALUE(FIXED(EXP(O$4*-1*'PM2.5 reduction'!O107),9))","v":0.99999100600000002},{"$f":"VALUE(FIXED(EXP(P$4*-1*'PM2.5 reduction'!P107),9))","v":0.99997245899999998},{"$f":"VALUE(FIXED(EXP(Q$4*-1*'PM2.5 reduction'!Q107),9))","v":0.99998561799999997},{"$f":"VALUE(FIXED(EXP(R$4*-1*'PM2.5 reduction'!R107),9))","v":0.99997941700000004},{"$f":"VALUE(FIXED(EXP(S$4*-1*'PM2.5 reduction'!S107),9))","v":0.99997765800000005},{"$f":"VALUE(FIXED(EXP(T$4*-1*'PM2.5 reduction'!T107),9))","v":0.99996075600000001},{"$f":"VALUE(FIXED(EXP(U$4*-1*'PM2.5 reduction'!U107),9))","v":0.99999515900000002},{"$f":"VALUE(FIXED(EXP(V$4*-1*'PM2.5 reduction'!V107),9))","v":0.99998115899999995},{"$f":"VALUE(FIXED(EXP(W$4*-1*'PM2.5 reduction'!W107),9))","v":0.99998340799999996},{"$f":"VALUE(FIXED(EXP(X$4*-1*'PM2.5 reduction'!X107),9))","v":0.99998340799999996},{"$f":"VALUE(FIXED(EXP(Y$4*-1*'PM2.5 reduction'!Y107),9))","v":0.99998219499999996},{"$f":"VALUE(FIXED(EXP(Z$4*-1*'PM2.5 reduction'!Z107),9))","v":0.99996587100000001},{"$f":"VALUE(FIXED(EXP(AA$4*-1*'PM2.5 reduction'!AA107),9))","v":0.999975524},{"$f":"VALUE(FIXED(EXP(AB$4*-1*'PM2.5 reduction'!AB107),9))","v":0.99997420400000003},{"$f":"VALUE(FIXED(EXP(AC$4*-1*'PM2.5 reduction'!AC107),9))","v":0.99997214800000001},{"$f":"VALUE(FIXED(EXP(AD$4*-1*'PM2.5 reduction'!AD107),9))","v":0.99999376900000003},{"$f":"VALUE(FIXED(EXP(AE$4*-1*'PM2.5 reduction'!AE107),9))","v":0.99999324000000001},{"$f":"VALUE(FIXED(EXP(AF$4*-1*'PM2.5 reduction'!AF107),9))","v":0.99998292200000005},{"$f":"VALUE(FIXED(EXP(AG$4*-1*'PM2.5 reduction'!AG107),9))","v":0.99999324000000001},{"$f":"VALUE(FIXED(EXP(AH$4*-1*'PM2.5 reduction'!AH107),9))","v":0.99997941499999998},{"$f":"VALUE(FIXED(EXP(AI$4*-1*'PM2.5 reduction'!AI107),9))","v":0.99997426599999995},{"$f":"VALUE(FIXED(EXP(AJ$4*-1*'PM2.5 reduction'!AJ107),9))","v":0.99998288099999999},{"$f":"VALUE(FIXED(EXP(AK$4*-1*'PM2.5 reduction'!AK107),9))","v":0.99999214300000006},{"$f":"VALUE(FIXED(EXP(AL$4*-1*'PM2.5 reduction'!AL107),9))","v":0.99999041300000002},{"$f":"VALUE(FIXED(EXP(AM$4*-1*'PM2.5 reduction'!AM107),9))","v":0.99997766899999996},{"$f":"VALUE(FIXED(EXP(AN$4*-1*'PM2.5 reduction'!AN107),9))","v":0.99999368200000005},{"$f":"VALUE(FIXED(EXP(AO$4*-1*'PM2.5 reduction'!AO107),9))","v":0.99999368200000005},{"$f":"VALUE(FIXED(EXP(AP$4*-1*'PM2.5 reduction'!AP107),9))","v":0.99998756600000005},{"$f":"VALUE(FIXED(EXP(AQ$4*-1*'PM2.5 reduction'!AQ107),9))","v":0.99997979299999995},{"$f":"VALUE(FIXED(EXP(AR$4*-1*'PM2.5 reduction'!AR107),9))","v":0.99997884699999995},{"$f":"VALUE(FIXED(EXP(AS$4*-1*'PM2.5 reduction'!AS107),9))","v":0.99999272900000002},{"$f":"VALUE(FIXED(EXP(AT$4*-1*'PM2.5 reduction'!AT107),9))","v":1},{"$f":"VALUE(FIXED(EXP(AU$4*-1*'PM2.5 reduction'!AU107),9))","v":1},{"$f":"VALUE(FIXED(EXP(AV$4*-1*'PM2.5 reduction'!AV107),9))","v":0.99998880300000004},{"$f":"VALUE(FIXED(EXP(AW$4*-1*'PM2.5 reduction'!AW107),9))","v":0.99998144499999997},{"$f":"VALUE(FIXED(EXP(AX$4*-1*'PM2.5 reduction'!AX107),9))","v":0.99998446699999999},{"$f":"VALUE(FIXED(EXP(AY$4*-1*'PM2.5 reduction'!AY107),9))","v":0.99998246199999996},{"$f":"VALUE(FIXED(EXP(AZ$4*-1*'PM2.5 reduction'!AZ107),9))","v":0.99998125599999999},{"$f":"VALUE(FIXED(EXP(BA$4*-1*'PM2.5 reduction'!BA107),9))","v":0.99997899000000001},{"$f":"VALUE(FIXED(EXP(BB$4*-1*'PM2.5 reduction'!BB107),9))","v":0.99998116800000003},{"$f":"VALUE(FIXED(EXP(BC$4*-1*'PM2.5 reduction'!BC107),9))","v":0.99999515900000002}]
[null,"Female 50-54",{"$f":"VALUE(FIXED(EXP(C$4*-1*'PM2.5 reduction'!C108),9))","v":0.99996628499999995},{"$f":"VALUE(FIXED(EXP(D$4*-1*'PM2.5 reduction'!D108),9))","v":0.99997011899999999},{"$f":"VALUE(FIXED(EXP(E$4*-1*'PM2.5 reduction'!E108),9))","v":0.99998994600000002},{"$f":"VALUE(FIXED(EXP(F$4*-1*'PM2.5 reduction'!F108),9))","v":0.99999195799999996},{"$f":"VALUE(FIXED(EXP(G$4*-1*'PM2.5 reduction'!G108),9))","v":0.99999613300000001},{"$f":"VALUE(FIXED(EXP(H$4*-1*'PM2.5 reduction'!H108),9))","v":0.99999015199999997},{"$f":"VALUE(FIXED(EXP(I$4*-1*'PM2.5 reduction'!I108),9))","v":0.99999258400000002},{"$f":"VALUE(FIXED(EXP(J$4*-1*'PM2.5 reduction'!J108),9))","v":0.99998469099999998},{"$f":"VALUE(FIXED(EXP(K$4*-1*'PM2.5 reduction'!K108),9))","v":0.99998466900000005},{"$f":"VALUE(FIXED(EXP(L$4*-1*'PM2.5 reduction'!L108),9))","v":0.99999357899999997},{"$f":"VALUE(FIXED(EXP(M$4*-1*'PM2.5 reduction'!M108),9))","v":0.99999357899999997},{"$f":"VALUE(FIXED(EXP(N$4*-1*'PM2.5 reduction'!N108),9))","v":0.99997033599999996},{"$f":"VALUE(FIXED(EXP(O$4*-1*'PM2.5 reduction'!O108),9))","v":0.99999062500000002},{"$f":"VALUE(FIXED(EXP(P$4*-1*'PM2.5 reduction'!P108),9))","v":0.999972682},{"$f":"VALUE(FIXED(EXP(Q$4*-1*'PM2.5 reduction'!Q108),9))","v":0.99998525199999999},{"$f":"VALUE(FIXED(EXP(R$4*-1*'PM2.5 reduction'!R108),9))","v":0.99997929900000004},{"$f":"VALUE(FIXED(EXP(S$4*-1*'PM2.5 reduction'!S108),9))","v":0.99997840100000002},{"$f":"VALUE(FIXED(EXP(T$4*-1*'PM2.5 reduction'!T108),9))","v":0.99996217499999995},{"$f":"VALUE(FIXED(EXP(U$4*-1*'PM2.5 reduction'!U108),9))","v":0.99999515900000002},{"$f":"VALUE(FIXED(EXP(V$4*-1*'PM2.5 reduction'!V108),9))","v":0.99998100499999998},{"$f":"VALUE(FIXED(EXP(W$4*-1*'PM2.5 reduction'!W108),9))","v":0.99998335699999996},{"$f":"VALUE(FIXED(EXP(X$4*-1*'PM2.5 reduction'!X108),9))","v":0.99998335699999996},{"$f":"VALUE(FIXED(EXP(Y$4*-1*'PM2.5 reduction'!Y108),9))","v":0.99998223100000005},{"$f":"VALUE(FIXED(EXP(Z$4*-1*'PM2.5 reduction'!Z108),9))","v":0.99996632100000005},{"$f":"VALUE(FIXED(EXP(AA$4*-1*'PM2.5 reduction'!AA108),9))","v":0.99997559000000003},{"$f":"VALUE(FIXED(EXP(AB$4*-1*'PM2.5 reduction'!AB108),9))","v":0.99997435999999995},{"$f":"VALUE(FIXED(EXP(AC$4*-1*'PM2.5 reduction'!AC108),9))","v":0.99997244200000002},{"$f":"VALUE(FIXED(EXP(AD$4*-1*'PM2.5 reduction'!AD108),9))","v":0.99999376299999998},{"$f":"VALUE(FIXED(EXP(AE$4*-1*'PM2.5 reduction'!AE108),9))","v":0.99999310799999996},{"$f":"VALUE(FIXED(EXP(AF$4*-1*'PM2.5 reduction'!AF108),9))","v":0.99998257700000004},{"$f":"VALUE(FIXED(EXP(AG$4*-1*'PM2.5 reduction'!AG108),9))","v":0.99999310799999996},{"$f":"VALUE(FIXED(EXP(AH$4*-1*'PM2.5 reduction'!AH108),9))","v":0.99997921199999995},{"$f":"VALUE(FIXED(EXP(AI$4*-1*'PM2.5 reduction'!AI108),9))","v":0.99997503799999998},{"$f":"VALUE(FIXED(EXP(AJ$4*-1*'PM2.5 reduction'!AJ108),9))","v":0.99998302100000003},{"$f":"VALUE(FIXED(EXP(AK$4*-1*'PM2.5 reduction'!AK108),9))","v":0.99999254800000004},{"$f":"VALUE(FIXED(EXP(AL$4*-1*'PM2.5 reduction'!AL108),9))","v":0.99999030200000005},{"$f":"VALUE(FIXED(EXP(AM$4*-1*'PM2.5 reduction'!AM108),9))","v":0.99997754299999997},{"$f":"VALUE(FIXED(EXP(AN$4*-1*'PM2.5 reduction'!AN108),9))","v":0.99999373499999999},{"$f":"VALUE(FIXED(EXP(AO$4*-1*'PM2.5 reduction'!AO108),9))","v":0.99999373499999999},{"$f":"VALUE(FIXED(EXP(AP$4*-1*'PM2.5 reduction'!AP108),9))","v":0.99998684699999996},{"$f":"VALUE(FIXED(EXP(AQ$4*-1*'PM2.5 reduction'!AQ108),9))","v":0.99997990299999995},{"$f":"VALUE(FIXED(EXP(AR$4*-1*'PM2.5 reduction'!AR108),9))","v":0.99997892200000005},{"$f":"VALUE(FIXED(EXP(AS$4*-1*'PM2.5 reduction'!AS108),9))","v":0.99999258400000002},{"$f":"VALUE(FIXED(EXP(AT$4*-1*'PM2.5 reduction'!AT108),9))","v":1},{"$f":"VALUE(FIXED(EXP(AU$4*-1*'PM2.5 reduction'!AU108),9))","v":1},{"$f":"VALUE(FIXED(EXP(AV$4*-1*'PM2.5 reduction'!AV108),9))","v":0.99998937499999996},{"$f":"VALUE(FIXED(EXP(AW$4*-1*'PM2.5 reduction'!AW108),9))","v":0.99998112900000002},{"$f":"VALUE(FIXED(EXP(AX$4*-1*'PM2.5 reduction'!AX108),9))","v":0.999984714},{"$f":"VALUE(FIXED(EXP(AY$4*-1*'PM2.5 reduction'!AY108),9))","v":0.99998171400000002},{"$f":"VALUE(FIXED(EXP(AZ$4*-1*'PM2.5 reduction'!AZ108),9))","v":0.99997950400000002},{"$f":"VALUE(FIXED(EXP(BA$4*-1*'PM2.5 reduction'!BA108),9))","v":0.99997905899999995},{"$f":"VALUE(FIXED(EXP(BB$4*-1*'PM2.5 reduction'!BB108),9))","v":0.99998145800000005},{"$f":"VALUE(FIXED(EXP(BC$4*-1*'PM2.5 reduction'!BC108),9))","v":0.99999515900000002}]
[null,"Female 55-59",{"$f":"VALUE(FIXED(EXP(C$4*-1*'PM2.5 reduction'!C109),9))","v":0.99996646300000003},{"$f":"VALUE(FIXED(EXP(D$4*-1*'PM2.5 reduction'!D109),9))","v":0.99997052900000005},{"$f":"VALUE(FIXED(EXP(E$4*-1*'PM2.5 reduction'!E109),9))","v":0.99999008},{"$f":"VALUE(FIXED(EXP(F$4*-1*'PM2.5 reduction'!F109),9))","v":0.99999216199999996},{"$f":"VALUE(FIXED(EXP(G$4*-1*'PM2.5 reduction'!G109),9))","v":0.99999627400000002},{"$f":"VALUE(FIXED(EXP(H$4*-1*'PM2.5 reduction'!H109),9))","v":0.99999023200000003},{"$f":"VALUE(FIXED(EXP(I$4*-1*'PM2.5 reduction'!I109),9))","v":0.99999276699999995},{"$f":"VALUE(FIXED(EXP(J$4*-1*'PM2.5 reduction'!J109),9))","v":0.99998445999999996},{"$f":"VALUE(FIXED(EXP(K$4*-1*'PM2.5 reduction'!K109),9))","v":0.99998452000000004},{"$f":"VALUE(FIXED(EXP(L$4*-1*'PM2.5 reduction'!L109),9))","v":0.99999359799999998},{"$f":"VALUE(FIXED(EXP(M$4*-1*'PM2.5 reduction'!M109),9))","v":0.99999359799999998},{"$f":"VALUE(FIXED(EXP(N$4*-1*'PM2.5 reduction'!N109),9))","v":0.99997069000000005},{"$f":"VALUE(FIXED(EXP(O$4*-1*'PM2.5 reduction'!O109),9))","v":0.99999127300000001},{"$f":"VALUE(FIXED(EXP(P$4*-1*'PM2.5 reduction'!P109),9))","v":0.99997269200000005},{"$f":"VALUE(FIXED(EXP(Q$4*-1*'PM2.5 reduction'!Q109),9))","v":0.99998559499999995},{"$f":"VALUE(FIXED(EXP(R$4*-1*'PM2.5 reduction'!R109),9))","v":0.99998030000000004},{"$f":"VALUE(FIXED(EXP(S$4*-1*'PM2.5 reduction'!S109),9))","v":0.99997846700000004},{"$f":"VALUE(FIXED(EXP(T$4*-1*'PM2.5 reduction'!T109),9))","v":0.99996223500000003},{"$f":"VALUE(FIXED(EXP(U$4*-1*'PM2.5 reduction'!U109),9))","v":0.99999515900000002},{"$f":"VALUE(FIXED(EXP(V$4*-1*'PM2.5 reduction'!V109),9))","v":0.99998080899999997},{"$f":"VALUE(FIXED(EXP(W$4*-1*'PM2.5 reduction'!W109),9))","v":0.99998351799999996},{"$f":"VALUE(FIXED(EXP(X$4*-1*'PM2.5 reduction'!X109),9))","v":0.99998351799999996},{"$f":"VALUE(FIXED(EXP(Y$4*-1*'PM2.5 reduction'!Y109),9))","v":0.99998204800000001},{"$f":"VALUE(FIXED(EXP(Z$4*-1*'PM2.5 reduction'!Z109),9))","v":0.99996582599999995},{"$f":"VALUE(FIXED(EXP(AA$4*-1*'PM2.5 reduction'!AA109),9))","v":0.99997546599999998},{"$f":"VALUE(FIXED(EXP(AB$4*-1*'PM2.5 reduction'!AB109),9))","v":0.999975057},{"$f":"VALUE(FIXED(EXP(AC$4*-1*'PM2.5 reduction'!AC109),9))","v":0.99997224200000001},{"$f":"VALUE(FIXED(EXP(AD$4*-1*'PM2.5 reduction'!AD109),9))","v":0.99999389299999997},{"$f":"VALUE(FIXED(EXP(AE$4*-1*'PM2.5 reduction'!AE109),9))","v":0.99999322000000002},{"$f":"VALUE(FIXED(EXP(AF$4*-1*'PM2.5 reduction'!AF109),9))","v":0.99998339300000005},{"$f":"VALUE(FIXED(EXP(AG$4*-1*'PM2.5 reduction'!AG109),9))","v":0.99999322000000002},{"$f":"VALUE(FIXED(EXP(AH$4*-1*'PM2.5 reduction'!AH109),9))","v":0.99997905200000003},{"$f":"VALUE(FIXED(EXP(AI$4*-1*'PM2.5 reduction'!AI109),9))","v":0.99997515299999995},{"$f":"VALUE(FIXED(EXP(AJ$4*-1*'PM2.5 reduction'!AJ109),9))","v":0.99998293400000005},{"$f":"VALUE(FIXED(EXP(AK$4*-1*'PM2.5 reduction'!AK109),9))","v":0.99999312399999996},{"$f":"VALUE(FIXED(EXP(AL$4*-1*'PM2.5 reduction'!AL109),9))","v":0.99999020500000002},{"$f":"VALUE(FIXED(EXP(AM$4*-1*'PM2.5 reduction'!AM109),9))","v":0.99997719500000004},{"$f":"VALUE(FIXED(EXP(AN$4*-1*'PM2.5 reduction'!AN109),9))","v":0.99999344999999995},{"$f":"VALUE(FIXED(EXP(AO$4*-1*'PM2.5 reduction'!AO109),9))","v":0.99999344999999995},{"$f":"VALUE(FIXED(EXP(AP$4*-1*'PM2.5 reduction'!AP109),9))","v":0.99998585699999998},{"$f":"VALUE(FIXED(EXP(AQ$4*-1*'PM2.5 reduction'!AQ109),9))","v":0.99997967300000001},{"$f":"VALUE(FIXED(EXP(AR$4*-1*'PM2.5 reduction'!AR109),9))","v":0.99997904400000004},{"$f":"VALUE(FIXED(EXP(AS$4*-1*'PM2.5 reduction'!AS109),9))","v":0.99999276699999995},{"$f":"VALUE(FIXED(EXP(AT$4*-1*'PM2.5 reduction'!AT109),9))","v":1},{"$f":"VALUE(FIXED(EXP(AU$4*-1*'PM2.5 reduction'!AU109),9))","v":1},{"$f":"VALUE(FIXED(EXP(AV$4*-1*'PM2.5 reduction'!AV109),9))","v":0.99998887199999997},{"$f":"VALUE(FIXED(EXP(AW$4*-1*'PM2.5 reduction'!AW109),9))","v":0.999981075},{"$f":"VALUE(FIXED(EXP(AX$4*-1*'PM2.5 reduction'!AX109),9))","v":0.99998440200000005},{"$f":"VALUE(FIXED(EXP(AY$4*-1*'PM2.5 reduction'!AY109),9))","v":0.99998197899999997},{"$f":"VALUE(FIXED(EXP(AZ$4*-1*'PM2.5 reduction'!AZ109),9))","v":0.99998010100000001},{"$f":"VALUE(FIXED(EXP(BA$4*-1*'PM2.5 reduction'!BA109),9))","v":0.99997952599999995},{"$f":"VALUE(FIXED(EXP(BB$4*-1*'PM2.5 reduction'!BB109),9))","v":0.99998119500000004},{"$f":"VALUE(FIXED(EXP(BC$4*-1*'PM2.5 reduction'!BC109),9))","v":0.99999515900000002}]
[null,"Female 60-64",{"$f":"VALUE(FIXED(EXP(C$4*-1*'PM2.5 reduction'!C110),9))","v":0.99996622199999996},{"$f":"VALUE(FIXED(EXP(D$4*-1*'PM2.5 reduction'!D110),9))","v":0.99997044400000001},{"$f":"VALUE(FIXED(EXP(E$4*-1*'PM2.5 reduction'!E110),9))","v":0.99999093400000005},{"$f":"VALUE(FIXED(EXP(F$4*-1*'PM2.5 reduction'!F110),9))","v":0.999991941},{"$f":"VALUE(FIXED(EXP(G$4*-1*'PM2.5 reduction'!G110),9))","v":0.99999610400000005},{"$f":"VALUE(FIXED(EXP(H$4*-1*'PM2.5 reduction'!H110),9))","v":0.99999044599999998},{"$f":"VALUE(FIXED(EXP(I$4*-1*'PM2.5 reduction'!I110),9))","v":0.99999269000000002},{"$f":"VALUE(FIXED(EXP(J$4*-1*'PM2.5 reduction'!J110),9))","v":0.99998531700000004},{"$f":"VALUE(FIXED(EXP(K$4*-1*'PM2.5 reduction'!K110),9))","v":0.99998542300000004},{"$f":"VALUE(FIXED(EXP(L$4*-1*'PM2.5 reduction'!L110),9))","v":0.99999330500000005},{"$f":"VALUE(FIXED(EXP(M$4*-1*'PM2.5 reduction'!M110),9))","v":0.99999330500000005},{"$f":"VALUE(FIXED(EXP(N$4*-1*'PM2.5 reduction'!N110),9))","v":0.99997144000000004},{"$f":"VALUE(FIXED(EXP(O$4*-1*'PM2.5 reduction'!O110),9))","v":0.99999144799999995},{"$f":"VALUE(FIXED(EXP(P$4*-1*'PM2.5 reduction'!P110),9))","v":0.99997298700000004},{"$f":"VALUE(FIXED(EXP(Q$4*-1*'PM2.5 reduction'!Q110),9))","v":0.99998605299999999},{"$f":"VALUE(FIXED(EXP(R$4*-1*'PM2.5 reduction'!R110),9))","v":0.99997928400000002},{"$f":"VALUE(FIXED(EXP(S$4*-1*'PM2.5 reduction'!S110),9))","v":0.99997877999999996},{"$f":"VALUE(FIXED(EXP(T$4*-1*'PM2.5 reduction'!T110),9))","v":0.99996217499999995},{"$f":"VALUE(FIXED(EXP(U$4*-1*'PM2.5 reduction'!U110),9))","v":0.99999515900000002},{"$f":"VALUE(FIXED(EXP(V$4*-1*'PM2.5 reduction'!V110),9))","v":0.99998127000000003},{"$f":"VALUE(FIXED(EXP(W$4*-1*'PM2.5 reduction'!W110),9))","v":0.99998363199999996},{"$f":"VALUE(FIXED(EXP(X$4*-1*'PM2.5 reduction'!X110),9))","v":0.99998363199999996},{"$f":"VALUE(FIXED(EXP(Y$4*-1*'PM2.5 reduction'!Y110),9))","v":0.99998251199999999},{"$f":"VALUE(FIXED(EXP(Z$4*-1*'PM2.5 reduction'!Z110),9))","v":0.99996613099999998},{"$f":"VALUE(FIXED(EXP(AA$4*-1*'PM2.5 reduction'!AA110),9))","v":0.99997613399999996},{"$f":"VALUE(FIXED(EXP(AB$4*-1*'PM2.5 reduction'!AB110),9))","v":0.99997520399999995},{"$f":"VALUE(FIXED(EXP(AC$4*-1*'PM2.5 reduction'!AC110),9))","v":0.99997246799999995},{"$f":"VALUE(FIXED(EXP(AD$4*-1*'PM2.5 reduction'!AD110),9))","v":0.99999389999999999},{"$f":"VALUE(FIXED(EXP(AE$4*-1*'PM2.5 reduction'!AE110),9))","v":0.99999338699999996},{"$f":"VALUE(FIXED(EXP(AF$4*-1*'PM2.5 reduction'!AF110),9))","v":0.99998250399999999},{"$f":"VALUE(FIXED(EXP(AG$4*-1*'PM2.5 reduction'!AG110),9))","v":0.99999338699999996},{"$f":"VALUE(FIXED(EXP(AH$4*-1*'PM2.5 reduction'!AH110),9))","v":0.99997966100000002},{"$f":"VALUE(FIXED(EXP(AI$4*-1*'PM2.5 reduction'!AI110),9))","v":0.99997532},{"$f":"VALUE(FIXED(EXP(AJ$4*-1*'PM2.5 reduction'!AJ110),9))","v":0.99998261600000005},{"$f":"VALUE(FIXED(EXP(AK$4*-1*'PM2.5 reduction'!AK110),9))","v":0.999992196},{"$f":"VALUE(FIXED(EXP(AL$4*-1*'PM2.5 reduction'!AL110),9))","v":0.99999005799999996},{"$f":"VALUE(FIXED(EXP(AM$4*-1*'PM2.5 reduction'!AM110),9))","v":0.99997796800000005},{"$f":"VALUE(FIXED(EXP(AN$4*-1*'PM2.5 reduction'!AN110),9))","v":0.99999355599999995},{"$f":"VALUE(FIXED(EXP(AO$4*-1*'PM2.5 reduction'!AO110),9))","v":0.99999355599999995},{"$f":"VALUE(FIXED(EXP(AP$4*-1*'PM2.5 reduction'!AP110),9))","v":0.99998694200000005},{"$f":"VALUE(FIXED(EXP(AQ$4*-1*'PM2.5 reduction'!AQ110),9))","v":0.99997956099999996},{"$f":"VALUE(FIXED(EXP(AR$4*-1*'PM2.5 reduction'!AR110),9))","v":0.99997950099999999},{"$f":"VALUE(FIXED(EXP(AS$4*-1*'PM2.5 reduction'!AS110),9))","v":0.99999269000000002},{"$f":"VALUE(FIXED(EXP(AT$4*-1*'PM2.5 reduction'!AT110),9))","v":1},{"$f":"VALUE(FIXED(EXP(AU$4*-1*'PM2.5 reduction'!AU110),9))","v":1},{"$f":"VALUE(FIXED(EXP(AV$4*-1*'PM2.5 reduction'!AV110),9))","v":0.99998962700000005},{"$f":"VALUE(FIXED(EXP(AW$4*-1*'PM2.5 reduction'!AW110),9))","v":0.99998157099999996},{"$f":"VALUE(FIXED(EXP(AX$4*-1*'PM2.5 reduction'!AX110),9))","v":0.99998521100000004},{"$f":"VALUE(FIXED(EXP(AY$4*-1*'PM2.5 reduction'!AY110),9))","v":0.99998230799999999},{"$f":"VALUE(FIXED(EXP(AZ$4*-1*'PM2.5 reduction'!AZ110),9))","v":0.99998063599999998},{"$f":"VALUE(FIXED(EXP(BA$4*-1*'PM2.5 reduction'!BA110),9))","v":0.99997967499999996},{"$f":"VALUE(FIXED(EXP(BB$4*-1*'PM2.5 reduction'!BB110),9))","v":0.99998109099999999},{"$f":"VALUE(FIXED(EXP(BC$4*-1*'PM2.5 reduction'!BC110),9))","v":0.99999515900000002}]
[null,"Female 65-69",{"$f":"VALUE(FIXED(EXP(C$4*-1*'PM2.5 reduction'!C111),9))","v":0.99996527499999999},{"$f":"VALUE(FIXED(EXP(D$4*-1*'PM2.5 reduction'!D111),9))","v":0.99997037},{"$f":"VALUE(FIXED(EXP(E$4*-1*'PM2.5 reduction'!E111),9))","v":0.99998984000000002},{"$f":"VALUE(FIXED(EXP(F$4*-1*'PM2.5 reduction'!F111),9))","v":0.99999195799999996},{"$f":"VALUE(FIXED(EXP(G$4*-1*'PM2.5 reduction'!G111),9))","v":0.99999610800000005},{"$f":"VALUE(FIXED(EXP(H$4*-1*'PM2.5 reduction'!H111),9))","v":0.99999035800000002},{"$f":"VALUE(FIXED(EXP(I$4*-1*'PM2.5 reduction'!I111),9))","v":0.99999294000000005},{"$f":"VALUE(FIXED(EXP(J$4*-1*'PM2.5 reduction'!J111),9))","v":0.99998453099999995},{"$f":"VALUE(FIXED(EXP(K$4*-1*'PM2.5 reduction'!K111),9))","v":0.99998467400000002},{"$f":"VALUE(FIXED(EXP(L$4*-1*'PM2.5 reduction'!L111),9))","v":0.99999339399999998},{"$f":"VALUE(FIXED(EXP(M$4*-1*'PM2.5 reduction'!M111),9))","v":0.99999339399999998},{"$f":"VALUE(FIXED(EXP(N$4*-1*'PM2.5 reduction'!N111),9))","v":0.999971426},{"$f":"VALUE(FIXED(EXP(O$4*-1*'PM2.5 reduction'!O111),9))","v":0.99999130300000005},{"$f":"VALUE(FIXED(EXP(P$4*-1*'PM2.5 reduction'!P111),9))","v":0.99997298400000001},{"$f":"VALUE(FIXED(EXP(Q$4*-1*'PM2.5 reduction'!Q111),9))","v":0.99998544199999995},{"$f":"VALUE(FIXED(EXP(R$4*-1*'PM2.5 reduction'!R111),9))","v":0.99997980200000003},{"$f":"VALUE(FIXED(EXP(S$4*-1*'PM2.5 reduction'!S111),9))","v":0.99997920600000001},{"$f":"VALUE(FIXED(EXP(T$4*-1*'PM2.5 reduction'!T111),9))","v":0.99996296900000003},{"$f":"VALUE(FIXED(EXP(U$4*-1*'PM2.5 reduction'!U111),9))","v":0.99999515900000002},{"$f":"VALUE(FIXED(EXP(V$4*-1*'PM2.5 reduction'!V111),9))","v":0.99998116800000003},{"$f":"VALUE(FIXED(EXP(W$4*-1*'PM2.5 reduction'!W111),9))","v":0.99998359699999995},{"$f":"VALUE(FIXED(EXP(X$4*-1*'PM2.5 reduction'!X111),9))","v":0.99998359699999995},{"$f":"VALUE(FIXED(EXP(Y$4*-1*'PM2.5 reduction'!Y111),9))","v":0.99998226000000001},{"$f":"VALUE(FIXED(EXP(Z$4*-1*'PM2.5 reduction'!Z111),9))","v":0.99996622499999999},{"$f":"VALUE(FIXED(EXP(AA$4*-1*'PM2.5 reduction'!AA111),9))","v":0.99997648699999997},{"$f":"VALUE(FIXED(EXP(AB$4*-1*'PM2.5 reduction'!AB111),9))","v":0.99997512600000005},{"$f":"VALUE(FIXED(EXP(AC$4*-1*'PM2.5 reduction'!AC111),9))","v":0.99997295100000005},{"$f":"VALUE(FIXED(EXP(AD$4*-1*'PM2.5 reduction'!AD111),9))","v":0.99999382800000003},{"$f":"VALUE(FIXED(EXP(AE$4*-1*'PM2.5 reduction'!AE111),9))","v":0.99999324999999994},{"$f":"VALUE(FIXED(EXP(AF$4*-1*'PM2.5 reduction'!AF111),9))","v":0.999982975},{"$f":"VALUE(FIXED(EXP(AG$4*-1*'PM2.5 reduction'!AG111),9))","v":0.99999324999999994},{"$f":"VALUE(FIXED(EXP(AH$4*-1*'PM2.5 reduction'!AH111),9))","v":0.99997997000000005},{"$f":"VALUE(FIXED(EXP(AI$4*-1*'PM2.5 reduction'!AI111),9))","v":0.99997580799999997},{"$f":"VALUE(FIXED(EXP(AJ$4*-1*'PM2.5 reduction'!AJ111),9))","v":0.99998349600000003},{"$f":"VALUE(FIXED(EXP(AK$4*-1*'PM2.5 reduction'!AK111),9))","v":0.99999268600000002},{"$f":"VALUE(FIXED(EXP(AL$4*-1*'PM2.5 reduction'!AL111),9))","v":0.99999007500000003},{"$f":"VALUE(FIXED(EXP(AM$4*-1*'PM2.5 reduction'!AM111),9))","v":0.99997835899999998},{"$f":"VALUE(FIXED(EXP(AN$4*-1*'PM2.5 reduction'!AN111),9))","v":0.99999358699999996},{"$f":"VALUE(FIXED(EXP(AO$4*-1*'PM2.5 reduction'!AO111),9))","v":0.99999358699999996},{"$f":"VALUE(FIXED(EXP(AP$4*-1*'PM2.5 reduction'!AP111),9))","v":0.99998625699999999},{"$f":"VALUE(FIXED(EXP(AQ$4*-1*'PM2.5 reduction'!AQ111),9))","v":0.99997932099999998},{"$f":"VALUE(FIXED(EXP(AR$4*-1*'PM2.5 reduction'!AR111),9))","v":0.99997983999999995},{"$f":"VALUE(FIXED(EXP(AS$4*-1*'PM2.5 reduction'!AS111),9))","v":0.99999294000000005},{"$f":"VALUE(FIXED(EXP(AT$4*-1*'PM2.5 reduction'!AT111),9))","v":1},{"$f":"VALUE(FIXED(EXP(AU$4*-1*'PM2.5 reduction'!AU111),9))","v":1},{"$f":"VALUE(FIXED(EXP(AV$4*-1*'PM2.5 reduction'!AV111),9))","v":0.99998950499999995},{"$f":"VALUE(FIXED(EXP(AW$4*-1*'PM2.5 reduction'!AW111),9))","v":0.99998178100000001},{"$f":"VALUE(FIXED(EXP(AX$4*-1*'PM2.5 reduction'!AX111),9))","v":0.99998437200000001},{"$f":"VALUE(FIXED(EXP(AY$4*-1*'PM2.5 reduction'!AY111),9))","v":0.99998218500000002},{"$f":"VALUE(FIXED(EXP(AZ$4*-1*'PM2.5 reduction'!AZ111),9))","v":0.99998034000000002},{"$f":"VALUE(FIXED(EXP(BA$4*-1*'PM2.5 reduction'!BA111),9))","v":0.99997861600000004},{"$f":"VALUE(FIXED(EXP(BB$4*-1*'PM2.5 reduction'!BB111),9))","v":0.99998131800000001},{"$f":"VALUE(FIXED(EXP(BC$4*-1*'PM2.5 reduction'!BC111),9))","v":0.99999515900000002}]
[null,"Female 70-74",{"$f":"VALUE(FIXED(EXP(C$4*-1*'PM2.5 reduction'!C112),9))","v":0.99996584899999996},{"$f":"VALUE(FIXED(EXP(D$4*-1*'PM2.5 reduction'!D112),9))","v":0.99997145399999998},{"$f":"VALUE(FIXED(EXP(E$4*-1*'PM2.5 reduction'!E112),9))","v":0.99998968700000002},{"$f":"VALUE(FIXED(EXP(F$4*-1*'PM2.5 reduction'!F112),9))","v":0.99999202799999998},{"$f":"VALUE(FIXED(EXP(G$4*-1*'PM2.5 reduction'!G112),9))","v":0.99999613799999998},{"$f":"VALUE(FIXED(EXP(H$4*-1*'PM2.5 reduction'!H112),9))","v":0.99999025799999997},{"$f":"VALUE(FIXED(EXP(I$4*-1*'PM2.5 reduction'!I112),9))","v":0.99999275200000004},{"$f":"VALUE(FIXED(EXP(J$4*-1*'PM2.5 reduction'!J112),9))","v":0.99998512100000003},{"$f":"VALUE(FIXED(EXP(K$4*-1*'PM2.5 reduction'!K112),9))","v":0.99998569000000004},{"$f":"VALUE(FIXED(EXP(L$4*-1*'PM2.5 reduction'!L112),9))","v":0.99999352399999997},{"$f":"VALUE(FIXED(EXP(M$4*-1*'PM2.5 reduction'!M112),9))","v":0.99999352399999997},{"$f":"VALUE(FIXED(EXP(N$4*-1*'PM2.5 reduction'!N112),9))","v":0.99997120799999994},{"$f":"VALUE(FIXED(EXP(O$4*-1*'PM2.5 reduction'!O112),9))","v":0.99999114},{"$f":"VALUE(FIXED(EXP(P$4*-1*'PM2.5 reduction'!P112),9))","v":0.99997345500000001},{"$f":"VALUE(FIXED(EXP(Q$4*-1*'PM2.5 reduction'!Q112),9))","v":0.99998557300000002},{"$f":"VALUE(FIXED(EXP(R$4*-1*'PM2.5 reduction'!R112),9))","v":0.99998002500000005},{"$f":"VALUE(FIXED(EXP(S$4*-1*'PM2.5 reduction'!S112),9))","v":0.99997963099999998},{"$f":"VALUE(FIXED(EXP(T$4*-1*'PM2.5 reduction'!T112),9))","v":0.99996369699999998},{"$f":"VALUE(FIXED(EXP(U$4*-1*'PM2.5 reduction'!U112),9))","v":0.99999515900000002},{"$f":"VALUE(FIXED(EXP(V$4*-1*'PM2.5 reduction'!V112),9))","v":0.99998077600000002},{"$f":"VALUE(FIXED(EXP(W$4*-1*'PM2.5 reduction'!W112),9))","v":0.99998360100000006},{"$f":"VALUE(FIXED(EXP(X$4*-1*'PM2.5 reduction'!X112),9))","v":0.99998360100000006},{"$f":"VALUE(FIXED(EXP(Y$4*-1*'PM2.5 reduction'!Y112),9))","v":0.99998215700000004},{"$f":"VALUE(FIXED(EXP(Z$4*-1*'PM2.5 reduction'!Z112),9))","v":0.99996605800000005},{"$f":"VALUE(FIXED(EXP(AA$4*-1*'PM2.5 reduction'!AA112),9))","v":0.99997619500000001},{"$f":"VALUE(FIXED(EXP(AB$4*-1*'PM2.5 reduction'!AB112),9))","v":0.99997630599999998},{"$f":"VALUE(FIXED(EXP(AC$4*-1*'PM2.5 reduction'!AC112),9))","v":0.99997295900000005},{"$f":"VALUE(FIXED(EXP(AD$4*-1*'PM2.5 reduction'!AD112),9))","v":0.99999397599999995},{"$f":"VALUE(FIXED(EXP(AE$4*-1*'PM2.5 reduction'!AE112),9))","v":0.99999337499999996},{"$f":"VALUE(FIXED(EXP(AF$4*-1*'PM2.5 reduction'!AF112),9))","v":0.99998243099999995},{"$f":"VALUE(FIXED(EXP(AG$4*-1*'PM2.5 reduction'!AG112),9))","v":0.99999337499999996},{"$f":"VALUE(FIXED(EXP(AH$4*-1*'PM2.5 reduction'!AH112),9))","v":0.999979163},{"$f":"VALUE(FIXED(EXP(AI$4*-1*'PM2.5 reduction'!AI112),9))","v":0.99997634199999996},{"$f":"VALUE(FIXED(EXP(AJ$4*-1*'PM2.5 reduction'!AJ112),9))","v":0.99998302699999997},{"$f":"VALUE(FIXED(EXP(AK$4*-1*'PM2.5 reduction'!AK112),9))","v":0.99999249000000001},{"$f":"VALUE(FIXED(EXP(AL$4*-1*'PM2.5 reduction'!AL112),9))","v":0.99998974799999996},{"$f":"VALUE(FIXED(EXP(AM$4*-1*'PM2.5 reduction'!AM112),9))","v":0.99997772799999995},{"$f":"VALUE(FIXED(EXP(AN$4*-1*'PM2.5 reduction'!AN112),9))","v":0.99999385600000001},{"$f":"VALUE(FIXED(EXP(AO$4*-1*'PM2.5 reduction'!AO112),9))","v":0.99999385600000001},{"$f":"VALUE(FIXED(EXP(AP$4*-1*'PM2.5 reduction'!AP112),9))","v":0.99998664999999998},{"$f":"VALUE(FIXED(EXP(AQ$4*-1*'PM2.5 reduction'!AQ112),9))","v":0.99997933299999997},{"$f":"VALUE(FIXED(EXP(AR$4*-1*'PM2.5 reduction'!AR112),9))","v":0.99997994800000001},{"$f":"VALUE(FIXED(EXP(AS$4*-1*'PM2.5 reduction'!AS112),9))","v":0.99999275200000004},{"$f":"VALUE(FIXED(EXP(AT$4*-1*'PM2.5 reduction'!AT112),9))","v":1},{"$f":"VALUE(FIXED(EXP(AU$4*-1*'PM2.5 reduction'!AU112),9))","v":1},{"$f":"VALUE(FIXED(EXP(AV$4*-1*'PM2.5 reduction'!AV112),9))","v":0.99998969900000001},{"$f":"VALUE(FIXED(EXP(AW$4*-1*'PM2.5 reduction'!AW112),9))","v":0.99998085199999998},{"$f":"VALUE(FIXED(EXP(AX$4*-1*'PM2.5 reduction'!AX112),9))","v":0.99998456999999996},{"$f":"VALUE(FIXED(EXP(AY$4*-1*'PM2.5 reduction'!AY112),9))","v":0.99998228899999997},{"$f":"VALUE(FIXED(EXP(AZ$4*-1*'PM2.5 reduction'!AZ112),9))","v":0.99998066399999996},{"$f":"VALUE(FIXED(EXP(BA$4*-1*'PM2.5 reduction'!BA112),9))","v":0.99997840699999996},{"$f":"VALUE(FIXED(EXP(BB$4*-1*'PM2.5 reduction'!BB112),9))","v":0.99998136400000004},{"$f":"VALUE(FIXED(EXP(BC$4*-1*'PM2.5 reduction'!BC112),9))","v":0.99999515900000002}]
[null,"Female 75-79",{"$f":"VALUE(FIXED(EXP(C$4*-1*'PM2.5 reduction'!C113),9))","v":0.99996468699999996},{"$f":"VALUE(FIXED(EXP(D$4*-1*'PM2.5 reduction'!D113),9))","v":0.99996987500000001},{"$f":"VALUE(FIXED(EXP(E$4*-1*'PM2.5 reduction'!E113),9))","v":0.99998953800000001},{"$f":"VALUE(FIXED(EXP(F$4*-1*'PM2.5 reduction'!F113),9))","v":0.99999179599999999},{"$f":"VALUE(FIXED(EXP(G$4*-1*'PM2.5 reduction'!G113),9))","v":0.99999606299999999},{"$f":"VALUE(FIXED(EXP(H$4*-1*'PM2.5 reduction'!H113),9))","v":0.99999009900000002},{"$f":"VALUE(FIXED(EXP(I$4*-1*'PM2.5 reduction'!I113),9))","v":0.99999272400000006},{"$f":"VALUE(FIXED(EXP(J$4*-1*'PM2.5 reduction'!J113),9))","v":0.99998452999999998},{"$f":"VALUE(FIXED(EXP(K$4*-1*'PM2.5 reduction'!K113),9))","v":0.99998430900000002},{"$f":"VALUE(FIXED(EXP(L$4*-1*'PM2.5 reduction'!L113),9))","v":0.99999336400000005},{"$f":"VALUE(FIXED(EXP(M$4*-1*'PM2.5 reduction'!M113),9))","v":0.99999336400000005},{"$f":"VALUE(FIXED(EXP(N$4*-1*'PM2.5 reduction'!N113),9))","v":0.99997189099999995},{"$f":"VALUE(FIXED(EXP(O$4*-1*'PM2.5 reduction'!O113),9))","v":0.99999055299999995},{"$f":"VALUE(FIXED(EXP(P$4*-1*'PM2.5 reduction'!P113),9))","v":0.999972902},{"$f":"VALUE(FIXED(EXP(Q$4*-1*'PM2.5 reduction'!Q113),9))","v":0.99998547299999996},{"$f":"VALUE(FIXED(EXP(R$4*-1*'PM2.5 reduction'!R113),9))","v":0.99997967499999996},{"$f":"VALUE(FIXED(EXP(S$4*-1*'PM2.5 reduction'!S113),9))","v":0.99997901199999994},{"$f":"VALUE(FIXED(EXP(T$4*-1*'PM2.5 reduction'!T113),9))","v":0.99996320000000005},{"$f":"VALUE(FIXED(EXP(U$4*-1*'PM2.5 reduction'!U113),9))","v":0.99999515900000002},{"$f":"VALUE(FIXED(EXP(V$4*-1*'PM2.5 reduction'!V113),9))","v":0.99998056000000002},{"$f":"VALUE(FIXED(EXP(W$4*-1*'PM2.5 reduction'!W113),9))","v":0.99998317999999997},{"$f":"VALUE(FIXED(EXP(X$4*-1*'PM2.5 reduction'!X113),9))","v":0.99998317999999997},{"$f":"VALUE(FIXED(EXP(Y$4*-1*'PM2.5 reduction'!Y113),9))","v":0.999981856},{"$f":"VALUE(FIXED(EXP(Z$4*-1*'PM2.5 reduction'!Z113),9))","v":0.99996594699999997},{"$f":"VALUE(FIXED(EXP(AA$4*-1*'PM2.5 reduction'!AA113),9))","v":0.99997563599999995},{"$f":"VALUE(FIXED(EXP(AB$4*-1*'PM2.5 reduction'!AB113),9))","v":0.99997471500000001},{"$f":"VALUE(FIXED(EXP(AC$4*-1*'PM2.5 reduction'!AC113),9))","v":0.99997261000000004},{"$f":"VALUE(FIXED(EXP(AD$4*-1*'PM2.5 reduction'!AD113),9))","v":0.99999364899999998},{"$f":"VALUE(FIXED(EXP(AE$4*-1*'PM2.5 reduction'!AE113),9))","v":0.99999294599999999},{"$f":"VALUE(FIXED(EXP(AF$4*-1*'PM2.5 reduction'!AF113),9))","v":0.99998219899999996},{"$f":"VALUE(FIXED(EXP(AG$4*-1*'PM2.5 reduction'!AG113),9))","v":0.99999294599999999},{"$f":"VALUE(FIXED(EXP(AH$4*-1*'PM2.5 reduction'!AH113),9))","v":0.99997879199999995},{"$f":"VALUE(FIXED(EXP(AI$4*-1*'PM2.5 reduction'!AI113),9))","v":0.99997576899999996},{"$f":"VALUE(FIXED(EXP(AJ$4*-1*'PM2.5 reduction'!AJ113),9))","v":0.99998316200000004},{"$f":"VALUE(FIXED(EXP(AK$4*-1*'PM2.5 reduction'!AK113),9))","v":0.99999258000000002},{"$f":"VALUE(FIXED(EXP(AL$4*-1*'PM2.5 reduction'!AL113),9))","v":0.99998971699999994},{"$f":"VALUE(FIXED(EXP(AM$4*-1*'PM2.5 reduction'!AM113),9))","v":0.99997752900000003},{"$f":"VALUE(FIXED(EXP(AN$4*-1*'PM2.5 reduction'!AN113),9))","v":0.99999374799999996},{"$f":"VALUE(FIXED(EXP(AO$4*-1*'PM2.5 reduction'!AO113),9))","v":0.99999374799999996},{"$f":"VALUE(FIXED(EXP(AP$4*-1*'PM2.5 reduction'!AP113),9))","v":0.99998644400000003},{"$f":"VALUE(FIXED(EXP(AQ$4*-1*'PM2.5 reduction'!AQ113),9))","v":0.99997956799999999},{"$f":"VALUE(FIXED(EXP(AR$4*-1*'PM2.5 reduction'!AR113),9))","v":0.99997926599999998},{"$f":"VALUE(FIXED(EXP(AS$4*-1*'PM2.5 reduction'!AS113),9))","v":0.99999272400000006},{"$f":"VALUE(FIXED(EXP(AT$4*-1*'PM2.5 reduction'!AT113),9))","v":1},{"$f":"VALUE(FIXED(EXP(AU$4*-1*'PM2.5 reduction'!AU113),9))","v":1},{"$f":"VALUE(FIXED(EXP(AV$4*-1*'PM2.5 reduction'!AV113),9))","v":0.999989923},{"$f":"VALUE(FIXED(EXP(AW$4*-1*'PM2.5 reduction'!AW113),9))","v":0.99998021000000004},{"$f":"VALUE(FIXED(EXP(AX$4*-1*'PM2.5 reduction'!AX113),9))","v":0.99998468900000004},{"$f":"VALUE(FIXED(EXP(AY$4*-1*'PM2.5 reduction'!AY113),9))","v":0.99998168499999995},{"$f":"VALUE(FIXED(EXP(AZ$4*-1*'PM2.5 reduction'!AZ113),9))","v":0.99997994999999995},{"$f":"VALUE(FIXED(EXP(BA$4*-1*'PM2.5 reduction'!BA113),9))","v":0.99997864400000003},{"$f":"VALUE(FIXED(EXP(BB$4*-1*'PM2.5 reduction'!BB113),9))","v":0.99998157300000001},{"$f":"VALUE(FIXED(EXP(BC$4*-1*'PM2.5 reduction'!BC113),9))","v":0.99999515900000002}]
[null,"Female 80-84",{"$f":"VALUE(FIXED(EXP(C$4*-1*'PM2.5 reduction'!C114),9))","v":0.99996469200000004},{"$f":"VALUE(FIXED(EXP(D$4*-1*'PM2.5 reduction'!D114),9))","v":0.99996956100000001},{"$f":"VALUE(FIXED(EXP(E$4*-1*'PM2.5 reduction'!E114),9))","v":0.99998830000000005},{"$f":"VALUE(FIXED(EXP(F$4*-1*'PM2.5 reduction'!F114),9))","v":0.99999156099999997},{"$f":"VALUE(FIXED(EXP(G$4*-1*'PM2.5 reduction'!G114),9))","v":0.99999576599999995},{"$f":"VALUE(FIXED(EXP(H$4*-1*'PM2.5 reduction'!H114),9))","v":0.99998976399999995},{"$f":"VALUE(FIXED(EXP(I$4*-1*'PM2.5 reduction'!I114),9))","v":0.99999273099999997},{"$f":"VALUE(FIXED(EXP(J$4*-1*'PM2.5 reduction'!J114),9))","v":0.99998494199999999},{"$f":"VALUE(FIXED(EXP(K$4*-1*'PM2.5 reduction'!K114),9))","v":0.99998485199999998},{"$f":"VALUE(FIXED(EXP(L$4*-1*'PM2.5 reduction'!L114),9))","v":0.99999278700000005},{"$f":"VALUE(FIXED(EXP(M$4*-1*'PM2.5 reduction'!M114),9))","v":0.99999278700000005},{"$f":"VALUE(FIXED(EXP(N$4*-1*'PM2.5 reduction'!N114),9))","v":0.99997251200000004},{"$f":"VALUE(FIXED(EXP(O$4*-1*'PM2.5 reduction'!O114),9))","v":0.99999035199999997},{"$f":"VALUE(FIXED(EXP(P$4*-1*'PM2.5 reduction'!P114),9))","v":0.99997365299999996},{"$f":"VALUE(FIXED(EXP(Q$4*-1*'PM2.5 reduction'!Q114),9))","v":0.99998536800000004},{"$f":"VALUE(FIXED(EXP(R$4*-1*'PM2.5 reduction'!R114),9))","v":0.99997969600000003},{"$f":"VALUE(FIXED(EXP(S$4*-1*'PM2.5 reduction'!S114),9))","v":0.99997901499999997},{"$f":"VALUE(FIXED(EXP(T$4*-1*'PM2.5 reduction'!T114),9))","v":0.99996271699999995},{"$f":"VALUE(FIXED(EXP(U$4*-1*'PM2.5 reduction'!U114),9))","v":0.99999515900000002},{"$f":"VALUE(FIXED(EXP(V$4*-1*'PM2.5 reduction'!V114),9))","v":0.99998045099999999},{"$f":"VALUE(FIXED(EXP(W$4*-1*'PM2.5 reduction'!W114),9))","v":0.99998335500000002},{"$f":"VALUE(FIXED(EXP(X$4*-1*'PM2.5 reduction'!X114),9))","v":0.99998335500000002},{"$f":"VALUE(FIXED(EXP(Y$4*-1*'PM2.5 reduction'!Y114),9))","v":0.99998181399999997},{"$f":"VALUE(FIXED(EXP(Z$4*-1*'PM2.5 reduction'!Z114),9))","v":0.999966727},{"$f":"VALUE(FIXED(EXP(AA$4*-1*'PM2.5 reduction'!AA114),9))","v":0.99997558900000005},{"$f":"VALUE(FIXED(EXP(AB$4*-1*'PM2.5 reduction'!AB114),9))","v":0.99997381699999999},{"$f":"VALUE(FIXED(EXP(AC$4*-1*'PM2.5 reduction'!AC114),9))","v":0.99997283000000003},{"$f":"VALUE(FIXED(EXP(AD$4*-1*'PM2.5 reduction'!AD114),9))","v":0.99999361499999995},{"$f":"VALUE(FIXED(EXP(AE$4*-1*'PM2.5 reduction'!AE114),9))","v":0.99999288399999997},{"$f":"VALUE(FIXED(EXP(AF$4*-1*'PM2.5 reduction'!AF114),9))","v":0.99998258900000003},{"$f":"VALUE(FIXED(EXP(AG$4*-1*'PM2.5 reduction'!AG114),9))","v":0.99999288399999997},{"$f":"VALUE(FIXED(EXP(AH$4*-1*'PM2.5 reduction'!AH114),9))","v":0.99997878399999995},{"$f":"VALUE(FIXED(EXP(AI$4*-1*'PM2.5 reduction'!AI114),9))","v":0.99997533299999997},{"$f":"VALUE(FIXED(EXP(AJ$4*-1*'PM2.5 reduction'!AJ114),9))","v":0.99998304199999999},{"$f":"VALUE(FIXED(EXP(AK$4*-1*'PM2.5 reduction'!AK114),9))","v":0.99999260000000001},{"$f":"VALUE(FIXED(EXP(AL$4*-1*'PM2.5 reduction'!AL114),9))","v":0.99999002100000001},{"$f":"VALUE(FIXED(EXP(AM$4*-1*'PM2.5 reduction'!AM114),9))","v":0.99997753700000003},{"$f":"VALUE(FIXED(EXP(AN$4*-1*'PM2.5 reduction'!AN114),9))","v":0.99999371800000003},{"$f":"VALUE(FIXED(EXP(AO$4*-1*'PM2.5 reduction'!AO114),9))","v":0.99999371800000003},{"$f":"VALUE(FIXED(EXP(AP$4*-1*'PM2.5 reduction'!AP114),9))","v":0.99998577099999997},{"$f":"VALUE(FIXED(EXP(AQ$4*-1*'PM2.5 reduction'!AQ114),9))","v":0.99997970300000005},{"$f":"VALUE(FIXED(EXP(AR$4*-1*'PM2.5 reduction'!AR114),9))","v":0.99997911399999995},{"$f":"VALUE(FIXED(EXP(AS$4*-1*'PM2.5 reduction'!AS114),9))","v":0.99999273099999997},{"$f":"VALUE(FIXED(EXP(AT$4*-1*'PM2.5 reduction'!AT114),9))","v":1},{"$f":"VALUE(FIXED(EXP(AU$4*-1*'PM2.5 reduction'!AU114),9))","v":1},{"$f":"VALUE(FIXED(EXP(AV$4*-1*'PM2.5 reduction'!AV114),9))","v":0.99998878899999999},{"$f":"VALUE(FIXED(EXP(AW$4*-1*'PM2.5 reduction'!AW114),9))","v":0.99998013100000005},{"$f":"VALUE(FIXED(EXP(AX$4*-1*'PM2.5 reduction'!AX114),9))","v":0.99998501699999998},{"$f":"VALUE(FIXED(EXP(AY$4*-1*'PM2.5 reduction'!AY114),9))","v":0.99998187800000005},{"$f":"VALUE(FIXED(EXP(AZ$4*-1*'PM2.5 reduction'!AZ114),9))","v":0.99998021500000001},{"$f":"VALUE(FIXED(EXP(BA$4*-1*'PM2.5 reduction'!BA114),9))","v":0.99997912600000005},{"$f":"VALUE(FIXED(EXP(BB$4*-1*'PM2.5 reduction'!BB114),9))","v":0.99998159900000005},{"$f":"VALUE(FIXED(EXP(BC$4*-1*'PM2.5 reduction'!BC114),9))","v":0.99999515900000002}]
[null,"Female 85-89",{"$f":"VALUE(FIXED(EXP(C$4*-1*'PM2.5 reduction'!C115),9))","v":0.99996529700000003},{"$f":"VALUE(FIXED(EXP(D$4*-1*'PM2.5 reduction'!D115),9))","v":0.99997091900000001},{"$f":"VALUE(FIXED(EXP(E$4*-1*'PM2.5 reduction'!E115),9))","v":0.99999026599999996},{"$f":"VALUE(FIXED(EXP(F$4*-1*'PM2.5 reduction'!F115),9))","v":0.99999152000000002},{"$f":"VALUE(FIXED(EXP(G$4*-1*'PM2.5 reduction'!G115),9))","v":0.99999582300000001},{"$f":"VALUE(FIXED(EXP(H$4*-1*'PM2.5 reduction'!H115),9))","v":0.999989079},{"$f":"VALUE(FIXED(EXP(I$4*-1*'PM2.5 reduction'!I115),9))","v":0.99999283800000005},{"$f":"VALUE(FIXED(EXP(J$4*-1*'PM2.5 reduction'!J115),9))","v":0.99998490799999995},{"$f":"VALUE(FIXED(EXP(K$4*-1*'PM2.5 reduction'!K115),9))","v":0.99998382100000005},{"$f":"VALUE(FIXED(EXP(L$4*-1*'PM2.5 reduction'!L115),9))","v":0.99999305199999999},{"$f":"VALUE(FIXED(EXP(M$4*-1*'PM2.5 reduction'!M115),9))","v":0.99999305199999999},{"$f":"VALUE(FIXED(EXP(N$4*-1*'PM2.5 reduction'!N115),9))","v":0.99997158100000005},{"$f":"VALUE(FIXED(EXP(O$4*-1*'PM2.5 reduction'!O115),9))","v":0.99998963900000004},{"$f":"VALUE(FIXED(EXP(P$4*-1*'PM2.5 reduction'!P115),9))","v":0.999973102},{"$f":"VALUE(FIXED(EXP(Q$4*-1*'PM2.5 reduction'!Q115),9))","v":0.99998440499999997},{"$f":"VALUE(FIXED(EXP(R$4*-1*'PM2.5 reduction'!R115),9))","v":0.99997975299999997},{"$f":"VALUE(FIXED(EXP(S$4*-1*'PM2.5 reduction'!S115),9))","v":0.99997822800000002},{"$f":"VALUE(FIXED(EXP(T$4*-1*'PM2.5 reduction'!T115),9))","v":0.99996227599999998},{"$f":"VALUE(FIXED(EXP(U$4*-1*'PM2.5 reduction'!U115),9))","v":0.99999515900000002},{"$f":"VALUE(FIXED(EXP(V$4*-1*'PM2.5 reduction'!V115),9))","v":0.99998128200000003},{"$f":"VALUE(FIXED(EXP(W$4*-1*'PM2.5 reduction'!W115),9))","v":0.99998268499999998},{"$f":"VALUE(FIXED(EXP(X$4*-1*'PM2.5 reduction'!X115),9))","v":0.99998268499999998},{"$f":"VALUE(FIXED(EXP(Y$4*-1*'PM2.5 reduction'!Y115),9))","v":0.99998228700000003},{"$f":"VALUE(FIXED(EXP(Z$4*-1*'PM2.5 reduction'!Z115),9))","v":0.99996569800000001},{"$f":"VALUE(FIXED(EXP(AA$4*-1*'PM2.5 reduction'!AA115),9))","v":0.999974472},{"$f":"VALUE(FIXED(EXP(AB$4*-1*'PM2.5 reduction'!AB115),9))","v":0.99997519599999996},{"$f":"VALUE(FIXED(EXP(AC$4*-1*'PM2.5 reduction'!AC115),9))","v":0.99997137300000005},{"$f":"VALUE(FIXED(EXP(AD$4*-1*'PM2.5 reduction'!AD115),9))","v":0.99999354900000004},{"$f":"VALUE(FIXED(EXP(AE$4*-1*'PM2.5 reduction'!AE115),9))","v":0.99999277099999995},{"$f":"VALUE(FIXED(EXP(AF$4*-1*'PM2.5 reduction'!AF115),9))","v":0.99998156299999996},{"$f":"VALUE(FIXED(EXP(AG$4*-1*'PM2.5 reduction'!AG115),9))","v":0.99999277099999995},{"$f":"VALUE(FIXED(EXP(AH$4*-1*'PM2.5 reduction'!AH115),9))","v":0.99997797700000002},{"$f":"VALUE(FIXED(EXP(AI$4*-1*'PM2.5 reduction'!AI115),9))","v":0.99997430700000001},{"$f":"VALUE(FIXED(EXP(AJ$4*-1*'PM2.5 reduction'!AJ115),9))","v":0.99998373500000004},{"$f":"VALUE(FIXED(EXP(AK$4*-1*'PM2.5 reduction'!AK115),9))","v":0.99999220200000005},{"$f":"VALUE(FIXED(EXP(AL$4*-1*'PM2.5 reduction'!AL115),9))","v":0.99998980299999995},{"$f":"VALUE(FIXED(EXP(AM$4*-1*'PM2.5 reduction'!AM115),9))","v":0.99997707499999999},{"$f":"VALUE(FIXED(EXP(AN$4*-1*'PM2.5 reduction'!AN115),9))","v":0.999993994},{"$f":"VALUE(FIXED(EXP(AO$4*-1*'PM2.5 reduction'!AO115),9))","v":0.999993994},{"$f":"VALUE(FIXED(EXP(AP$4*-1*'PM2.5 reduction'!AP115),9))","v":0.99998619200000005},{"$f":"VALUE(FIXED(EXP(AQ$4*-1*'PM2.5 reduction'!AQ115),9))","v":0.99997981999999996},{"$f":"VALUE(FIXED(EXP(AR$4*-1*'PM2.5 reduction'!AR115),9))","v":0.99997855300000005},{"$f":"VALUE(FIXED(EXP(AS$4*-1*'PM2.5 reduction'!AS115),9))","v":0.99999283800000005},{"$f":"VALUE(FIXED(EXP(AT$4*-1*'PM2.5 reduction'!AT115),9))","v":1},{"$f":"VALUE(FIXED(EXP(AU$4*-1*'PM2.5 reduction'!AU115),9))","v":1},{"$f":"VALUE(FIXED(EXP(AV$4*-1*'PM2.5 reduction'!AV115),9))","v":0.99998770299999995},{"$f":"VALUE(FIXED(EXP(AW$4*-1*'PM2.5 reduction'!AW115),9))","v":0.99997886800000002},{"$f":"VALUE(FIXED(EXP(AX$4*-1*'PM2.5 reduction'!AX115),9))","v":0.99998593800000002},{"$f":"VALUE(FIXED(EXP(AY$4*-1*'PM2.5 reduction'!AY115),9))","v":0.99998211400000003},{"$f":"VALUE(FIXED(EXP(AZ$4*-1*'PM2.5 reduction'!AZ115),9))","v":0.99998151000000002},{"$f":"VALUE(FIXED(EXP(BA$4*-1*'PM2.5 reduction'!BA115),9))","v":0.99997782999999996},{"$f":"VALUE(FIXED(EXP(BB$4*-1*'PM2.5 reduction'!BB115),9))","v":0.99998069099999998},{"$f":"VALUE(FIXED(EXP(BC$4*-1*'PM2.5 reduction'!BC115),9))","v":0.99999515900000002}]
[null,"Female 90+",{"$f":"VALUE(FIXED(EXP(C$4*-1*'PM2.5 reduction'!C116),9))","v":0.99996385499999996},{"$f":"VALUE(FIXED(EXP(D$4*-1*'PM2.5 reduction'!D116),9))","v":0.99997127500000005},{"$f":"VALUE(FIXED(EXP(E$4*-1*'PM2.5 reduction'!E116),9))","v":0.99999159500000001},{"$f":"VALUE(FIXED(EXP(F$4*-1*'PM2.5 reduction'!F116),9))","v":0.99999106000000004},{"$f":"VALUE(FIXED(EXP(G$4*-1*'PM2.5 reduction'!G116),9))","v":0.99999590599999999},{"$f":"VALUE(FIXED(EXP(H$4*-1*'PM2.5 reduction'!H116),9))","v":0.99998886600000003},{"$f":"VALUE(FIXED(EXP(I$4*-1*'PM2.5 reduction'!I116),9))","v":0.999992785},{"$f":"VALUE(FIXED(EXP(J$4*-1*'PM2.5 reduction'!J116),9))","v":0.99998368500000001},{"$f":"VALUE(FIXED(EXP(K$4*-1*'PM2.5 reduction'!K116),9))","v":0.99998359199999998},{"$f":"VALUE(FIXED(EXP(L$4*-1*'PM2.5 reduction'!L116),9))","v":0.99999199100000002},{"$f":"VALUE(FIXED(EXP(M$4*-1*'PM2.5 reduction'!M116),9))","v":0.99999199100000002},{"$f":"VALUE(FIXED(EXP(N$4*-1*'PM2.5 reduction'!N116),9))","v":0.99997139199999996},{"$f":"VALUE(FIXED(EXP(O$4*-1*'PM2.5 reduction'!O116),9))","v":0.99998857699999999},{"$f":"VALUE(FIXED(EXP(P$4*-1*'PM2.5 reduction'!P116),9))","v":0.99997335200000004},{"$f":"VALUE(FIXED(EXP(Q$4*-1*'PM2.5 reduction'!Q116),9))","v":0.999985236},{"$f":"VALUE(FIXED(EXP(R$4*-1*'PM2.5 reduction'!R116),9))","v":0.99998012400000003},{"$f":"VALUE(FIXED(EXP(S$4*-1*'PM2.5 reduction'!S116),9))","v":0.99997734000000005},{"$f":"VALUE(FIXED(EXP(T$4*-1*'PM2.5 reduction'!T116),9))","v":0.99995962500000002},{"$f":"VALUE(FIXED(EXP(U$4*-1*'PM2.5 reduction'!U116),9))","v":0.99999515900000002},{"$f":"VALUE(FIXED(EXP(V$4*-1*'PM2.5 reduction'!V116),9))","v":0.99998183900000004},{"$f":"VALUE(FIXED(EXP(W$4*-1*'PM2.5 reduction'!W116),9))","v":0.999982763},{"$f":"VALUE(FIXED(EXP(X$4*-1*'PM2.5 reduction'!X116),9))","v":0.999982763},{"$f":"VALUE(FIXED(EXP(Y$4*-1*'PM2.5 reduction'!Y116),9))","v":0.99998239099999997},{"$f":"VALUE(FIXED(EXP(Z$4*-1*'PM2.5 reduction'!Z116),9))","v":0.99996745200000003},{"$f":"VALUE(FIXED(EXP(AA$4*-1*'PM2.5 reduction'!AA116),9))","v":0.99997421500000006},{"$f":"VALUE(FIXED(EXP(AB$4*-1*'PM2.5 reduction'!AB116),9))","v":0.99997527799999997},{"$f":"VALUE(FIXED(EXP(AC$4*-1*'PM2.5 reduction'!AC116),9))","v":0.999971622},{"$f":"VALUE(FIXED(EXP(AD$4*-1*'PM2.5 reduction'!AD116),9))","v":0.99999318299999995},{"$f":"VALUE(FIXED(EXP(AE$4*-1*'PM2.5 reduction'!AE116),9))","v":0.99999228399999995},{"$f":"VALUE(FIXED(EXP(AF$4*-1*'PM2.5 reduction'!AF116),9))","v":0.99997605899999997},{"$f":"VALUE(FIXED(EXP(AG$4*-1*'PM2.5 reduction'!AG116),9))","v":0.99999228399999995},{"$f":"VALUE(FIXED(EXP(AH$4*-1*'PM2.5 reduction'!AH116),9))","v":0.99997755600000005},{"$f":"VALUE(FIXED(EXP(AI$4*-1*'PM2.5 reduction'!AI116),9))","v":0.99997248100000002},{"$f":"VALUE(FIXED(EXP(AJ$4*-1*'PM2.5 reduction'!AJ116),9))","v":0.99998415900000004},{"$f":"VALUE(FIXED(EXP(AK$4*-1*'PM2.5 reduction'!AK116),9))","v":0.999992345},{"$f":"VALUE(FIXED(EXP(AL$4*-1*'PM2.5 reduction'!AL116),9))","v":0.99999047299999999},{"$f":"VALUE(FIXED(EXP(AM$4*-1*'PM2.5 reduction'!AM116),9))","v":0.99997649899999996},{"$f":"VALUE(FIXED(EXP(AN$4*-1*'PM2.5 reduction'!AN116),9))","v":0.99999440799999995},{"$f":"VALUE(FIXED(EXP(AO$4*-1*'PM2.5 reduction'!AO116),9))","v":0.99999440799999995},{"$f":"VALUE(FIXED(EXP(AP$4*-1*'PM2.5 reduction'!AP116),9))","v":0.99998568300000001},{"$f":"VALUE(FIXED(EXP(AQ$4*-1*'PM2.5 reduction'!AQ116),9))","v":0.999980337},{"$f":"VALUE(FIXED(EXP(AR$4*-1*'PM2.5 reduction'!AR116),9))","v":0.99997869399999995},{"$f":"VALUE(FIXED(EXP(AS$4*-1*'PM2.5 reduction'!AS116),9))","v":0.999992785},{"$f":"VALUE(FIXED(EXP(AT$4*-1*'PM2.5 reduction'!AT116),9))","v":1},{"$f":"VALUE(FIXED(EXP(AU$4*-1*'PM2.5 reduction'!AU116),9))","v":1},{"$f":"VALUE(FIXED(EXP(AV$4*-1*'PM2.5 reduction'!AV116),9))","v":0.99998788199999999},{"$f":"VALUE(FIXED(EXP(AW$4*-1*'PM2.5 reduction'!AW116),9))","v":0.99997849299999997},{"$f":"VALUE(FIXED(EXP(AX$4*-1*'PM2.5 reduction'!AX116),9))","v":0.99998376600000005},{"$f":"VALUE(FIXED(EXP(AY$4*-1*'PM2.5 reduction'!AY116),9))","v":0.99998177200000005},{"$f":"VALUE(FIXED(EXP(AZ$4*-1*'PM2.5 reduction'!AZ116),9))","v":0.99998072100000002},{"$f":"VALUE(FIXED(EXP(BA$4*-1*'PM2.5 reduction'!BA116),9))","v":0.99997887200000002},{"$f":"VALUE(FIXED(EXP(BB$4*-1*'PM2.5 reduction'!BB116),9))","v":0.99998060499999997},{"$f":"VALUE(FIXED(EXP(BC$4*-1*'PM2.5 reduction'!BC116),9))","v":0.99999515900000002}]
[null,"Male 0-4",{"$f":"VALUE(FIXED(EXP(C$4*-1*'PM2.5 reduction'!C117),9))","v":0.99996556599999997},{"$f":"VALUE(FIXED(EXP(D$4*-1*'PM2.5 reduction'!D117),9))","v":0.99996919799999995},{"$f":"VALUE(FIXED(EXP(E$4*-1*'PM2.5 reduction'!E117),9))","v":0.99999049500000003},{"$f":"VALUE(FIXED(EXP(F$4*-1*'PM2.5 reduction'!F117),9))","v":0.99999234699999995},{"$f":"VALUE(FIXED(EXP(G$4*-1*'PM2.5 reduction'!G117),9))","v":0.99999620199999995},{"$f":"VALUE(FIXED(EXP(H$4*-1*'PM2.5 reduction'!H117),9))","v":0.99999062699999997},{"$f":"VALUE(FIXED(EXP(I$4*-1*'PM2.5 reduction'!I117),9))","v":0.99999300199999996},{"$f":"VALUE(FIXED(EXP(J$4*-1*'PM2.5 reduction'!J117),9))","v":0.99998449},{"$f":"VALUE(FIXED(EXP(K$4*-1*'PM2.5 reduction'!K117),9))","v":0.99998406200000001},{"$f":"VALUE(FIXED(EXP(L$4*-1*'PM2.5 reduction'!L117),9))","v":0.99999370700000001},{"$f":"VALUE(FIXED(EXP(M$4*-1*'PM2.5 reduction'!M117),9))","v":0.99999370700000001},{"$f":"VALUE(FIXED(EXP(N$4*-1*'PM2.5 reduction'!N117),9))","v":0.99997091999999999},{"$f":"VALUE(FIXED(EXP(O$4*-1*'PM2.5 reduction'!O117),9))","v":0.99999097999999997},{"$f":"VALUE(FIXED(EXP(P$4*-1*'PM2.5 reduction'!P117),9))","v":0.99997271200000004},{"$f":"VALUE(FIXED(EXP(Q$4*-1*'PM2.5 reduction'!Q117),9))","v":0.99998560999999997},{"$f":"VALUE(FIXED(EXP(R$4*-1*'PM2.5 reduction'!R117),9))","v":0.99997991900000005},{"$f":"VALUE(FIXED(EXP(S$4*-1*'PM2.5 reduction'!S117),9))","v":0.99997769800000003},{"$f":"VALUE(FIXED(EXP(T$4*-1*'PM2.5 reduction'!T117),9))","v":0.99996337499999999},{"$f":"VALUE(FIXED(EXP(U$4*-1*'PM2.5 reduction'!U117),9))","v":0.99999515900000002},{"$f":"VALUE(FIXED(EXP(V$4*-1*'PM2.5 reduction'!V117),9))","v":0.99998110200000001},{"$f":"VALUE(FIXED(EXP(W$4*-1*'PM2.5 reduction'!W117),9))","v":0.99998302900000002},{"$f":"VALUE(FIXED(EXP(X$4*-1*'PM2.5 reduction'!X117),9))","v":0.99998302900000002},{"$f":"VALUE(FIXED(EXP(Y$4*-1*'PM2.5 reduction'!Y117),9))","v":0.99998221799999998},{"$f":"VALUE(FIXED(EXP(Z$4*-1*'PM2.5 reduction'!Z117),9))","v":0.99996507899999998},{"$f":"VALUE(FIXED(EXP(AA$4*-1*'PM2.5 reduction'!AA117),9))","v":0.99997504299999995},{"$f":"VALUE(FIXED(EXP(AB$4*-1*'PM2.5 reduction'!AB117),9))","v":0.99997380800000002},{"$f":"VALUE(FIXED(EXP(AC$4*-1*'PM2.5 reduction'!AC117),9))","v":0.99997103300000001},{"$f":"VALUE(FIXED(EXP(AD$4*-1*'PM2.5 reduction'!AD117),9))","v":0.99999356800000005},{"$f":"VALUE(FIXED(EXP(AE$4*-1*'PM2.5 reduction'!AE117),9))","v":0.99999295399999999},{"$f":"VALUE(FIXED(EXP(AF$4*-1*'PM2.5 reduction'!AF117),9))","v":0.99998264599999998},{"$f":"VALUE(FIXED(EXP(AG$4*-1*'PM2.5 reduction'!AG117),9))","v":0.99999295399999999},{"$f":"VALUE(FIXED(EXP(AH$4*-1*'PM2.5 reduction'!AH117),9))","v":0.99997981700000005},{"$f":"VALUE(FIXED(EXP(AI$4*-1*'PM2.5 reduction'!AI117),9))","v":0.99997481600000004},{"$f":"VALUE(FIXED(EXP(AJ$4*-1*'PM2.5 reduction'!AJ117),9))","v":0.99998356600000005},{"$f":"VALUE(FIXED(EXP(AK$4*-1*'PM2.5 reduction'!AK117),9))","v":0.99999293499999997},{"$f":"VALUE(FIXED(EXP(AL$4*-1*'PM2.5 reduction'!AL117),9))","v":0.99999059700000004},{"$f":"VALUE(FIXED(EXP(AM$4*-1*'PM2.5 reduction'!AM117),9))","v":0.99997814200000001},{"$f":"VALUE(FIXED(EXP(AN$4*-1*'PM2.5 reduction'!AN117),9))","v":0.99999345900000003},{"$f":"VALUE(FIXED(EXP(AO$4*-1*'PM2.5 reduction'!AO117),9))","v":0.99999345900000003},{"$f":"VALUE(FIXED(EXP(AP$4*-1*'PM2.5 reduction'!AP117),9))","v":0.99998611900000001},{"$f":"VALUE(FIXED(EXP(AQ$4*-1*'PM2.5 reduction'!AQ117),9))","v":0.99997953100000003},{"$f":"VALUE(FIXED(EXP(AR$4*-1*'PM2.5 reduction'!AR117),9))","v":0.99997857000000001},{"$f":"VALUE(FIXED(EXP(AS$4*-1*'PM2.5 reduction'!AS117),9))","v":0.99999300199999996},{"$f":"VALUE(FIXED(EXP(AT$4*-1*'PM2.5 reduction'!AT117),9))","v":1},{"$f":"VALUE(FIXED(EXP(AU$4*-1*'PM2.5 reduction'!AU117),9))","v":1},{"$f":"VALUE(FIXED(EXP(AV$4*-1*'PM2.5 reduction'!AV117),9))","v":0.99999009699999997},{"$f":"VALUE(FIXED(EXP(AW$4*-1*'PM2.5 reduction'!AW117),9))","v":0.99998173099999998},{"$f":"VALUE(FIXED(EXP(AX$4*-1*'PM2.5 reduction'!AX117),9))","v":0.999984918},{"$f":"VALUE(FIXED(EXP(AY$4*-1*'PM2.5 reduction'!AY117),9))","v":0.99998167900000001},{"$f":"VALUE(FIXED(EXP(AZ$4*-1*'PM2.5 reduction'!AZ117),9))","v":0.99998024600000002},{"$f":"VALUE(FIXED(EXP(BA$4*-1*'PM2.5 reduction'!BA117),9))","v":0.99997933299999997},{"$f":"VALUE(FIXED(EXP(BB$4*-1*'PM2.5 reduction'!BB117),9))","v":0.99998121299999998},{"$f":"VALUE(FIXED(EXP(BC$4*-1*'PM2.5 reduction'!BC117),9))","v":0.99999515900000002}]
[null,"Male 5-9",{"$f":"VALUE(FIXED(EXP(C$4*-1*'PM2.5 reduction'!C118),9))","v":0.99996638400000004},{"$f":"VALUE(FIXED(EXP(D$4*-1*'PM2.5 reduction'!D118),9))","v":0.99997077599999995},{"$f":"VALUE(FIXED(EXP(E$4*-1*'PM2.5 reduction'!E118),9))","v":0.99999063899999996},{"$f":"VALUE(FIXED(EXP(F$4*-1*'PM2.5 reduction'!F118),9))","v":0.99999244700000001},{"$f":"VALUE(FIXED(EXP(G$4*-1*'PM2.5 reduction'!G118),9))","v":0.99999635499999995},{"$f":"VALUE(FIXED(EXP(H$4*-1*'PM2.5 reduction'!H118),9))","v":0.99999060100000003},{"$f":"VALUE(FIXED(EXP(I$4*-1*'PM2.5 reduction'!I118),9))","v":0.99999277900000005},{"$f":"VALUE(FIXED(EXP(J$4*-1*'PM2.5 reduction'!J118),9))","v":0.99998434000000003},{"$f":"VALUE(FIXED(EXP(K$4*-1*'PM2.5 reduction'!K118),9))","v":0.99998407099999997},{"$f":"VALUE(FIXED(EXP(L$4*-1*'PM2.5 reduction'!L118),9))","v":0.99999398500000003},{"$f":"VALUE(FIXED(EXP(M$4*-1*'PM2.5 reduction'!M118),9))","v":0.99999398500000003},{"$f":"VALUE(FIXED(EXP(N$4*-1*'PM2.5 reduction'!N118),9))","v":0.99997218099999996},{"$f":"VALUE(FIXED(EXP(O$4*-1*'PM2.5 reduction'!O118),9))","v":0.99999094600000005},{"$f":"VALUE(FIXED(EXP(P$4*-1*'PM2.5 reduction'!P118),9))","v":0.99997269799999999},{"$f":"VALUE(FIXED(EXP(Q$4*-1*'PM2.5 reduction'!Q118),9))","v":0.99998511999999995},{"$f":"VALUE(FIXED(EXP(R$4*-1*'PM2.5 reduction'!R118),9))","v":0.99998010699999995},{"$f":"VALUE(FIXED(EXP(S$4*-1*'PM2.5 reduction'!S118),9))","v":0.99997820299999995},{"$f":"VALUE(FIXED(EXP(T$4*-1*'PM2.5 reduction'!T118),9))","v":0.99996359999999995},{"$f":"VALUE(FIXED(EXP(U$4*-1*'PM2.5 reduction'!U118),9))","v":0.99999515900000002},{"$f":"VALUE(FIXED(EXP(V$4*-1*'PM2.5 reduction'!V118),9))","v":0.99998135399999999},{"$f":"VALUE(FIXED(EXP(W$4*-1*'PM2.5 reduction'!W118),9))","v":0.99998337400000004},{"$f":"VALUE(FIXED(EXP(X$4*-1*'PM2.5 reduction'!X118),9))","v":0.99998337400000004},{"$f":"VALUE(FIXED(EXP(Y$4*-1*'PM2.5 reduction'!Y118),9))","v":0.99998227399999995},{"$f":"VALUE(FIXED(EXP(Z$4*-1*'PM2.5 reduction'!Z118),9))","v":0.99996596599999998},{"$f":"VALUE(FIXED(EXP(AA$4*-1*'PM2.5 reduction'!AA118),9))","v":0.99997572899999998},{"$f":"VALUE(FIXED(EXP(AB$4*-1*'PM2.5 reduction'!AB118),9))","v":0.99997567200000004},{"$f":"VALUE(FIXED(EXP(AC$4*-1*'PM2.5 reduction'!AC118),9))","v":0.99997210400000003},{"$f":"VALUE(FIXED(EXP(AD$4*-1*'PM2.5 reduction'!AD118),9))","v":0.99999382000000003},{"$f":"VALUE(FIXED(EXP(AE$4*-1*'PM2.5 reduction'!AE118),9))","v":0.99999326499999996},{"$f":"VALUE(FIXED(EXP(AF$4*-1*'PM2.5 reduction'!AF118),9))","v":0.99998273500000001},{"$f":"VALUE(FIXED(EXP(AG$4*-1*'PM2.5 reduction'!AG118),9))","v":0.99999326499999996},{"$f":"VALUE(FIXED(EXP(AH$4*-1*'PM2.5 reduction'!AH118),9))","v":0.999979756},{"$f":"VALUE(FIXED(EXP(AI$4*-1*'PM2.5 reduction'!AI118),9))","v":0.99997542100000003},{"$f":"VALUE(FIXED(EXP(AJ$4*-1*'PM2.5 reduction'!AJ118),9))","v":0.99998343700000003},{"$f":"VALUE(FIXED(EXP(AK$4*-1*'PM2.5 reduction'!AK118),9))","v":0.99999297399999998},{"$f":"VALUE(FIXED(EXP(AL$4*-1*'PM2.5 reduction'!AL118),9))","v":0.999990873},{"$f":"VALUE(FIXED(EXP(AM$4*-1*'PM2.5 reduction'!AM118),9))","v":0.99997812699999999},{"$f":"VALUE(FIXED(EXP(AN$4*-1*'PM2.5 reduction'!AN118),9))","v":0.99999358000000005},{"$f":"VALUE(FIXED(EXP(AO$4*-1*'PM2.5 reduction'!AO118),9))","v":0.99999358000000005},{"$f":"VALUE(FIXED(EXP(AP$4*-1*'PM2.5 reduction'!AP118),9))","v":0.99998673699999996},{"$f":"VALUE(FIXED(EXP(AQ$4*-1*'PM2.5 reduction'!AQ118),9))","v":0.99998005599999995},{"$f":"VALUE(FIXED(EXP(AR$4*-1*'PM2.5 reduction'!AR118),9))","v":0.99997925200000004},{"$f":"VALUE(FIXED(EXP(AS$4*-1*'PM2.5 reduction'!AS118),9))","v":0.99999277900000005},{"$f":"VALUE(FIXED(EXP(AT$4*-1*'PM2.5 reduction'!AT118),9))","v":1},{"$f":"VALUE(FIXED(EXP(AU$4*-1*'PM2.5 reduction'!AU118),9))","v":1},{"$f":"VALUE(FIXED(EXP(AV$4*-1*'PM2.5 reduction'!AV118),9))","v":0.99998978599999999},{"$f":"VALUE(FIXED(EXP(AW$4*-1*'PM2.5 reduction'!AW118),9))","v":0.99998189000000004},{"$f":"VALUE(FIXED(EXP(AX$4*-1*'PM2.5 reduction'!AX118),9))","v":0.99998463299999996},{"$f":"VALUE(FIXED(EXP(AY$4*-1*'PM2.5 reduction'!AY118),9))","v":0.99998227100000003},{"$f":"VALUE(FIXED(EXP(AZ$4*-1*'PM2.5 reduction'!AZ118),9))","v":0.99998098400000002},{"$f":"VALUE(FIXED(EXP(BA$4*-1*'PM2.5 reduction'!BA118),9))","v":0.99997910800000001},{"$f":"VALUE(FIXED(EXP(BB$4*-1*'PM2.5 reduction'!BB118),9))","v":0.99998119900000004},{"$f":"VALUE(FIXED(EXP(BC$4*-1*'PM2.5 reduction'!BC118),9))","v":0.99999515900000002}]
[null,"Male 10-15",{"$f":"VALUE(FIXED(EXP(C$4*-1*'PM2.5 reduction'!C119),9))","v":0.99996638000000004},{"$f":"VALUE(FIXED(EXP(D$4*-1*'PM2.5 reduction'!D119),9))","v":0.99997008799999998},{"$f":"VALUE(FIXED(EXP(E$4*-1*'PM2.5 reduction'!E119),9))","v":0.99999132599999996},{"$f":"VALUE(FIXED(EXP(F$4*-1*'PM2.5 reduction'!F119),9))","v":0.99999228399999995},{"$f":"VALUE(FIXED(EXP(G$4*-1*'PM2.5 reduction'!G119),9))","v":0.99999637600000002},{"$f":"VALUE(FIXED(EXP(H$4*-1*'PM2.5 reduction'!H119),9))","v":0.99999035400000003},{"$f":"VALUE(FIXED(EXP(I$4*-1*'PM2.5 reduction'!I119),9))","v":0.99999279900000004},{"$f":"VALUE(FIXED(EXP(J$4*-1*'PM2.5 reduction'!J119),9))","v":0.99998445700000005},{"$f":"VALUE(FIXED(EXP(K$4*-1*'PM2.5 reduction'!K119),9))","v":0.999984333},{"$f":"VALUE(FIXED(EXP(L$4*-1*'PM2.5 reduction'!L119),9))","v":0.999993664},{"$f":"VALUE(FIXED(EXP(M$4*-1*'PM2.5 reduction'!M119),9))","v":0.999993664},{"$f":"VALUE(FIXED(EXP(N$4*-1*'PM2.5 reduction'!N119),9))","v":0.99997228599999999},{"$f":"VALUE(FIXED(EXP(O$4*-1*'PM2.5 reduction'!O119),9))","v":0.999990771},{"$f":"VALUE(FIXED(EXP(P$4*-1*'PM2.5 reduction'!P119),9))","v":0.99997287899999998},{"$f":"VALUE(FIXED(EXP(Q$4*-1*'PM2.5 reduction'!Q119),9))","v":0.99998563900000004},{"$f":"VALUE(FIXED(EXP(R$4*-1*'PM2.5 reduction'!R119),9))","v":0.999978904},{"$f":"VALUE(FIXED(EXP(S$4*-1*'PM2.5 reduction'!S119),9))","v":0.99997880800000005},{"$f":"VALUE(FIXED(EXP(T$4*-1*'PM2.5 reduction'!T119),9))","v":0.99996353400000004},{"$f":"VALUE(FIXED(EXP(U$4*-1*'PM2.5 reduction'!U119),9))","v":0.99999515900000002},{"$f":"VALUE(FIXED(EXP(V$4*-1*'PM2.5 reduction'!V119),9))","v":0.999981919},{"$f":"VALUE(FIXED(EXP(W$4*-1*'PM2.5 reduction'!W119),9))","v":0.99998336600000004},{"$f":"VALUE(FIXED(EXP(X$4*-1*'PM2.5 reduction'!X119),9))","v":0.99998336600000004},{"$f":"VALUE(FIXED(EXP(Y$4*-1*'PM2.5 reduction'!Y119),9))","v":0.99998272200000005},{"$f":"VALUE(FIXED(EXP(Z$4*-1*'PM2.5 reduction'!Z119),9))","v":0.99996633599999996},{"$f":"VALUE(FIXED(EXP(AA$4*-1*'PM2.5 reduction'!AA119),9))","v":0.99997614300000004},{"$f":"VALUE(FIXED(EXP(AB$4*-1*'PM2.5 reduction'!AB119),9))","v":0.999974629},{"$f":"VALUE(FIXED(EXP(AC$4*-1*'PM2.5 reduction'!AC119),9))","v":0.99997265199999996},{"$f":"VALUE(FIXED(EXP(AD$4*-1*'PM2.5 reduction'!AD119),9))","v":0.999994092},{"$f":"VALUE(FIXED(EXP(AE$4*-1*'PM2.5 reduction'!AE119),9))","v":0.99999343299999999},{"$f":"VALUE(FIXED(EXP(AF$4*-1*'PM2.5 reduction'!AF119),9))","v":0.99998458000000001},{"$f":"VALUE(FIXED(EXP(AG$4*-1*'PM2.5 reduction'!AG119),9))","v":0.99999343299999999},{"$f":"VALUE(FIXED(EXP(AH$4*-1*'PM2.5 reduction'!AH119),9))","v":0.99997982200000002},{"$f":"VALUE(FIXED(EXP(AI$4*-1*'PM2.5 reduction'!AI119),9))","v":0.99997614400000001},{"$f":"VALUE(FIXED(EXP(AJ$4*-1*'PM2.5 reduction'!AJ119),9))","v":0.99998320500000004},{"$f":"VALUE(FIXED(EXP(AK$4*-1*'PM2.5 reduction'!AK119),9))","v":0.99999318800000003},{"$f":"VALUE(FIXED(EXP(AL$4*-1*'PM2.5 reduction'!AL119),9))","v":0.99999054600000004},{"$f":"VALUE(FIXED(EXP(AM$4*-1*'PM2.5 reduction'!AM119),9))","v":0.99997801900000005},{"$f":"VALUE(FIXED(EXP(AN$4*-1*'PM2.5 reduction'!AN119),9))","v":0.99999342199999997},{"$f":"VALUE(FIXED(EXP(AO$4*-1*'PM2.5 reduction'!AO119),9))","v":0.99999342199999997},{"$f":"VALUE(FIXED(EXP(AP$4*-1*'PM2.5 reduction'!AP119),9))","v":0.99998687399999997},{"$f":"VALUE(FIXED(EXP(AQ$4*-1*'PM2.5 reduction'!AQ119),9))","v":0.99998003400000002},{"$f":"VALUE(FIXED(EXP(AR$4*-1*'PM2.5 reduction'!AR119),9))","v":0.99997959000000003},{"$f":"VALUE(FIXED(EXP(AS$4*-1*'PM2.5 reduction'!AS119),9))","v":0.99999279900000004},{"$f":"VALUE(FIXED(EXP(AT$4*-1*'PM2.5 reduction'!AT119),9))","v":1},{"$f":"VALUE(FIXED(EXP(AU$4*-1*'PM2.5 reduction'!AU119),9))","v":1},{"$f":"VALUE(FIXED(EXP(AV$4*-1*'PM2.5 reduction'!AV119),9))","v":0.99998944599999995},{"$f":"VALUE(FIXED(EXP(AW$4*-1*'PM2.5 reduction'!AW119),9))","v":0.99998215400000001},{"$f":"VALUE(FIXED(EXP(AX$4*-1*'PM2.5 reduction'!AX119),9))","v":0.99998458599999995},{"$f":"VALUE(FIXED(EXP(AY$4*-1*'PM2.5 reduction'!AY119),9))","v":0.99998251100000002},{"$f":"VALUE(FIXED(EXP(AZ$4*-1*'PM2.5 reduction'!AZ119),9))","v":0.99998147299999995},{"$f":"VALUE(FIXED(EXP(BA$4*-1*'PM2.5 reduction'!BA119),9))","v":0.99997883899999995},{"$f":"VALUE(FIXED(EXP(BB$4*-1*'PM2.5 reduction'!BB119),9))","v":0.99998144899999997},{"$f":"VALUE(FIXED(EXP(BC$4*-1*'PM2.5 reduction'!BC119),9))","v":0.99999515900000002}]
[null,"Male 16-19",{"$f":"VALUE(FIXED(EXP(C$4*-1*'PM2.5 reduction'!C120),9))","v":0.99996559399999996},{"$f":"VALUE(FIXED(EXP(D$4*-1*'PM2.5 reduction'!D120),9))","v":0.99996969300000005},{"$f":"VALUE(FIXED(EXP(E$4*-1*'PM2.5 reduction'!E120),9))","v":0.99999064599999998},{"$f":"VALUE(FIXED(EXP(F$4*-1*'PM2.5 reduction'!F120),9))","v":0.99999233399999998},{"$f":"VALUE(FIXED(EXP(G$4*-1*'PM2.5 reduction'!G120),9))","v":0.99999610999999999},{"$f":"VALUE(FIXED(EXP(H$4*-1*'PM2.5 reduction'!H120),9))","v":0.99999061199999995},{"$f":"VALUE(FIXED(EXP(I$4*-1*'PM2.5 reduction'!I120),9))","v":0.99999270699999998},{"$f":"VALUE(FIXED(EXP(J$4*-1*'PM2.5 reduction'!J120),9))","v":0.999983442},{"$f":"VALUE(FIXED(EXP(K$4*-1*'PM2.5 reduction'!K120),9))","v":0.99998410999999998},{"$f":"VALUE(FIXED(EXP(L$4*-1*'PM2.5 reduction'!L120),9))","v":0.99999386999999995},{"$f":"VALUE(FIXED(EXP(M$4*-1*'PM2.5 reduction'!M120),9))","v":0.99999386999999995},{"$f":"VALUE(FIXED(EXP(N$4*-1*'PM2.5 reduction'!N120),9))","v":0.99996755299999995},{"$f":"VALUE(FIXED(EXP(O$4*-1*'PM2.5 reduction'!O120),9))","v":0.99999151500000005},{"$f":"VALUE(FIXED(EXP(P$4*-1*'PM2.5 reduction'!P120),9))","v":0.99997311499999997},{"$f":"VALUE(FIXED(EXP(Q$4*-1*'PM2.5 reduction'!Q120),9))","v":0.99998604999999996},{"$f":"VALUE(FIXED(EXP(R$4*-1*'PM2.5 reduction'!R120),9))","v":0.99997926000000004},{"$f":"VALUE(FIXED(EXP(S$4*-1*'PM2.5 reduction'!S120),9))","v":0.99997615500000003},{"$f":"VALUE(FIXED(EXP(T$4*-1*'PM2.5 reduction'!T120),9))","v":0.99995827100000001},{"$f":"VALUE(FIXED(EXP(U$4*-1*'PM2.5 reduction'!U120),9))","v":0.99999515900000002},{"$f":"VALUE(FIXED(EXP(V$4*-1*'PM2.5 reduction'!V120),9))","v":0.999981232},{"$f":"VALUE(FIXED(EXP(W$4*-1*'PM2.5 reduction'!W120),9))","v":0.99998329100000005},{"$f":"VALUE(FIXED(EXP(X$4*-1*'PM2.5 reduction'!X120),9))","v":0.99998329100000005},{"$f":"VALUE(FIXED(EXP(Y$4*-1*'PM2.5 reduction'!Y120),9))","v":0.99998194799999995},{"$f":"VALUE(FIXED(EXP(Z$4*-1*'PM2.5 reduction'!Z120),9))","v":0.99996381199999995},{"$f":"VALUE(FIXED(EXP(AA$4*-1*'PM2.5 reduction'!AA120),9))","v":0.99997493699999995},{"$f":"VALUE(FIXED(EXP(AB$4*-1*'PM2.5 reduction'!AB120),9))","v":0.99997449599999999},{"$f":"VALUE(FIXED(EXP(AC$4*-1*'PM2.5 reduction'!AC120),9))","v":0.99997080999999999},{"$f":"VALUE(FIXED(EXP(AD$4*-1*'PM2.5 reduction'!AD120),9))","v":0.99999396299999999},{"$f":"VALUE(FIXED(EXP(AE$4*-1*'PM2.5 reduction'!AE120),9))","v":0.99999354699999998},{"$f":"VALUE(FIXED(EXP(AF$4*-1*'PM2.5 reduction'!AF120),9))","v":0.999984227},{"$f":"VALUE(FIXED(EXP(AG$4*-1*'PM2.5 reduction'!AG120),9))","v":0.99999354699999998},{"$f":"VALUE(FIXED(EXP(AH$4*-1*'PM2.5 reduction'!AH120),9))","v":0.99997973799999995},{"$f":"VALUE(FIXED(EXP(AI$4*-1*'PM2.5 reduction'!AI120),9))","v":0.99997245199999996},{"$f":"VALUE(FIXED(EXP(AJ$4*-1*'PM2.5 reduction'!AJ120),9))","v":0.99998273299999996},{"$f":"VALUE(FIXED(EXP(AK$4*-1*'PM2.5 reduction'!AK120),9))","v":0.99999270900000004},{"$f":"VALUE(FIXED(EXP(AL$4*-1*'PM2.5 reduction'!AL120),9))","v":0.99999030600000005},{"$f":"VALUE(FIXED(EXP(AM$4*-1*'PM2.5 reduction'!AM120),9))","v":0.999977805},{"$f":"VALUE(FIXED(EXP(AN$4*-1*'PM2.5 reduction'!AN120),9))","v":0.99999378900000002},{"$f":"VALUE(FIXED(EXP(AO$4*-1*'PM2.5 reduction'!AO120),9))","v":0.99999378900000002},{"$f":"VALUE(FIXED(EXP(AP$4*-1*'PM2.5 reduction'!AP120),9))","v":0.99998711399999995},{"$f":"VALUE(FIXED(EXP(AQ$4*-1*'PM2.5 reduction'!AQ120),9))","v":0.99998040399999999},{"$f":"VALUE(FIXED(EXP(AR$4*-1*'PM2.5 reduction'!AR120),9))","v":0.999978111},{"$f":"VALUE(FIXED(EXP(AS$4*-1*'PM2.5 reduction'!AS120),9))","v":0.99999270699999998},{"$f":"VALUE(FIXED(EXP(AT$4*-1*'PM2.5 reduction'!AT120),9))","v":1},{"$f":"VALUE(FIXED(EXP(AU$4*-1*'PM2.5 reduction'!AU120),9))","v":1},{"$f":"VALUE(FIXED(EXP(AV$4*-1*'PM2.5 reduction'!AV120),9))","v":0.99998970099999995},{"$f":"VALUE(FIXED(EXP(AW$4*-1*'PM2.5 reduction'!AW120),9))","v":0.999982127},{"$f":"VALUE(FIXED(EXP(AX$4*-1*'PM2.5 reduction'!AX120),9))","v":0.99998287900000005},{"$f":"VALUE(FIXED(EXP(AY$4*-1*'PM2.5 reduction'!AY120),9))","v":0.99998114699999996},{"$f":"VALUE(FIXED(EXP(AZ$4*-1*'PM2.5 reduction'!AZ120),9))","v":0.99997849699999997},{"$f":"VALUE(FIXED(EXP(BA$4*-1*'PM2.5 reduction'!BA120),9))","v":0.99997874899999994},{"$f":"VALUE(FIXED(EXP(BB$4*-1*'PM2.5 reduction'!BB120),9))","v":0.999981334},{"$f":"VALUE(FIXED(EXP(BC$4*-1*'PM2.5 reduction'!BC120),9))","v":0.99999515900000002}]
[null,"Male 20-24",{"$f":"VALUE(FIXED(EXP(C$4*-1*'PM2.5 reduction'!C121),9))","v":0.99996018399999997},{"$f":"VALUE(FIXED(EXP(D$4*-1*'PM2.5 reduction'!D121),9))","v":0.99996340900000003},{"$f":"VALUE(FIXED(EXP(E$4*-1*'PM2.5 reduction'!E121),9))","v":0.99999020699999996},{"$f":"VALUE(FIXED(EXP(F$4*-1*'PM2.5 reduction'!F121),9))","v":0.999992298},{"$f":"VALUE(FIXED(EXP(G$4*-1*'PM2.5 reduction'!G121),9))","v":0.999996302},{"$f":"VALUE(FIXED(EXP(H$4*-1*'PM2.5 reduction'!H121),9))","v":0.99999007699999998},{"$f":"VALUE(FIXED(EXP(I$4*-1*'PM2.5 reduction'!I121),9))","v":0.99999242099999996},{"$f":"VALUE(FIXED(EXP(J$4*-1*'PM2.5 reduction'!J121),9))","v":0.99998120899999998},{"$f":"VALUE(FIXED(EXP(K$4*-1*'PM2.5 reduction'!K121),9))","v":0.99998469099999998},{"$f":"VALUE(FIXED(EXP(L$4*-1*'PM2.5 reduction'!L121),9))","v":0.99999365100000004},{"$f":"VALUE(FIXED(EXP(M$4*-1*'PM2.5 reduction'!M121),9))","v":0.99999365100000004},{"$f":"VALUE(FIXED(EXP(N$4*-1*'PM2.5 reduction'!N121),9))","v":0.99996069600000004},{"$f":"VALUE(FIXED(EXP(O$4*-1*'PM2.5 reduction'!O121),9))","v":0.99999057400000002},{"$f":"VALUE(FIXED(EXP(P$4*-1*'PM2.5 reduction'!P121),9))","v":0.99997270699999996},{"$f":"VALUE(FIXED(EXP(Q$4*-1*'PM2.5 reduction'!Q121),9))","v":0.99998553899999998},{"$f":"VALUE(FIXED(EXP(R$4*-1*'PM2.5 reduction'!R121),9))","v":0.999979532},{"$f":"VALUE(FIXED(EXP(S$4*-1*'PM2.5 reduction'!S121),9))","v":0.99997182299999998},{"$f":"VALUE(FIXED(EXP(T$4*-1*'PM2.5 reduction'!T121),9))","v":0.99995242799999995},{"$f":"VALUE(FIXED(EXP(U$4*-1*'PM2.5 reduction'!U121),9))","v":0.99999515900000002},{"$f":"VALUE(FIXED(EXP(V$4*-1*'PM2.5 reduction'!V121),9))","v":0.99998153000000001},{"$f":"VALUE(FIXED(EXP(W$4*-1*'PM2.5 reduction'!W121),9))","v":0.99998329699999999},{"$f":"VALUE(FIXED(EXP(X$4*-1*'PM2.5 reduction'!X121),9))","v":0.99998329699999999},{"$f":"VALUE(FIXED(EXP(Y$4*-1*'PM2.5 reduction'!Y121),9))","v":0.99998139399999997},{"$f":"VALUE(FIXED(EXP(Z$4*-1*'PM2.5 reduction'!Z121),9))","v":0.99995759399999995},{"$f":"VALUE(FIXED(EXP(AA$4*-1*'PM2.5 reduction'!AA121),9))","v":0.99997148999999996},{"$f":"VALUE(FIXED(EXP(AB$4*-1*'PM2.5 reduction'!AB121),9))","v":0.99996726000000002},{"$f":"VALUE(FIXED(EXP(AC$4*-1*'PM2.5 reduction'!AC121),9))","v":0.99996584899999996},{"$f":"VALUE(FIXED(EXP(AD$4*-1*'PM2.5 reduction'!AD121),9))","v":0.99999362000000003},{"$f":"VALUE(FIXED(EXP(AE$4*-1*'PM2.5 reduction'!AE121),9))","v":0.99999297700000001},{"$f":"VALUE(FIXED(EXP(AF$4*-1*'PM2.5 reduction'!AF121),9))","v":0.99998226199999996},{"$f":"VALUE(FIXED(EXP(AG$4*-1*'PM2.5 reduction'!AG121),9))","v":0.99999297700000001},{"$f":"VALUE(FIXED(EXP(AH$4*-1*'PM2.5 reduction'!AH121),9))","v":0.99997950000000002},{"$f":"VALUE(FIXED(EXP(AI$4*-1*'PM2.5 reduction'!AI121),9))","v":0.99996707500000004},{"$f":"VALUE(FIXED(EXP(AJ$4*-1*'PM2.5 reduction'!AJ121),9))","v":0.99998299099999999},{"$f":"VALUE(FIXED(EXP(AK$4*-1*'PM2.5 reduction'!AK121),9))","v":0.99999217200000001},{"$f":"VALUE(FIXED(EXP(AL$4*-1*'PM2.5 reduction'!AL121),9))","v":0.99999029299999997},{"$f":"VALUE(FIXED(EXP(AM$4*-1*'PM2.5 reduction'!AM121),9))","v":0.999977738},{"$f":"VALUE(FIXED(EXP(AN$4*-1*'PM2.5 reduction'!AN121),9))","v":0.99999364099999999},{"$f":"VALUE(FIXED(EXP(AO$4*-1*'PM2.5 reduction'!AO121),9))","v":0.99999364099999999},{"$f":"VALUE(FIXED(EXP(AP$4*-1*'PM2.5 reduction'!AP121),9))","v":0.99998536500000001},{"$f":"VALUE(FIXED(EXP(AQ$4*-1*'PM2.5 reduction'!AQ121),9))","v":0.99997940200000002},{"$f":"VALUE(FIXED(EXP(AR$4*-1*'PM2.5 reduction'!AR121),9))","v":0.99997385599999999},{"$f":"VALUE(FIXED(EXP(AS$4*-1*'PM2.5 reduction'!AS121),9))","v":0.99999242099999996},{"$f":"VALUE(FIXED(EXP(AT$4*-1*'PM2.5 reduction'!AT121),9))","v":1},{"$f":"VALUE(FIXED(EXP(AU$4*-1*'PM2.5 reduction'!AU121),9))","v":1},{"$f":"VALUE(FIXED(EXP(AV$4*-1*'PM2.5 reduction'!AV121),9))","v":0.99998900800000001},{"$f":"VALUE(FIXED(EXP(AW$4*-1*'PM2.5 reduction'!AW121),9))","v":0.99998153300000003},{"$f":"VALUE(FIXED(EXP(AX$4*-1*'PM2.5 reduction'!AX121),9))","v":0.99997915000000004},{"$f":"VALUE(FIXED(EXP(AY$4*-1*'PM2.5 reduction'!AY121),9))","v":0.99997573799999995},{"$f":"VALUE(FIXED(EXP(AZ$4*-1*'PM2.5 reduction'!AZ121),9))","v":0.99997048399999999},{"$f":"VALUE(FIXED(EXP(BA$4*-1*'PM2.5 reduction'!BA121),9))","v":0.99997863799999998},{"$f":"VALUE(FIXED(EXP(BB$4*-1*'PM2.5 reduction'!BB121),9))","v":0.99998089099999998},{"$f":"VALUE(FIXED(EXP(BC$4*-1*'PM2.5 reduction'!BC121),9))","v":0.99999515900000002}]
[null,"Male 25-29",{"$f":"VALUE(FIXED(EXP(C$4*-1*'PM2.5 reduction'!C122),9))","v":0.99995945600000002},{"$f":"VALUE(FIXED(EXP(D$4*-1*'PM2.5 reduction'!D122),9))","v":0.999962927},{"$f":"VALUE(FIXED(EXP(E$4*-1*'PM2.5 reduction'!E122),9))","v":0.99999009400000005},{"$f":"VALUE(FIXED(EXP(F$4*-1*'PM2.5 reduction'!F122),9))","v":0.99999210000000005},{"$f":"VALUE(FIXED(EXP(G$4*-1*'PM2.5 reduction'!G122),9))","v":0.99999614699999995},{"$f":"VALUE(FIXED(EXP(H$4*-1*'PM2.5 reduction'!H122),9))","v":0.99998970200000004},{"$f":"VALUE(FIXED(EXP(I$4*-1*'PM2.5 reduction'!I122),9))","v":0.99999236899999999},{"$f":"VALUE(FIXED(EXP(J$4*-1*'PM2.5 reduction'!J122),9))","v":0.99998337000000004},{"$f":"VALUE(FIXED(EXP(K$4*-1*'PM2.5 reduction'!K122),9))","v":0.99998473799999998},{"$f":"VALUE(FIXED(EXP(L$4*-1*'PM2.5 reduction'!L122),9))","v":0.99999277399999997},{"$f":"VALUE(FIXED(EXP(M$4*-1*'PM2.5 reduction'!M122),9))","v":0.99999277399999997},{"$f":"VALUE(FIXED(EXP(N$4*-1*'PM2.5 reduction'!N122),9))","v":0.99996543800000004},{"$f":"VALUE(FIXED(EXP(O$4*-1*'PM2.5 reduction'!O122),9))","v":0.99998987299999997},{"$f":"VALUE(FIXED(EXP(P$4*-1*'PM2.5 reduction'!P122),9))","v":0.99997238399999999},{"$f":"VALUE(FIXED(EXP(Q$4*-1*'PM2.5 reduction'!Q122),9))","v":0.99998593400000002},{"$f":"VALUE(FIXED(EXP(R$4*-1*'PM2.5 reduction'!R122),9))","v":0.99998023199999997},{"$f":"VALUE(FIXED(EXP(S$4*-1*'PM2.5 reduction'!S122),9))","v":0.999970684},{"$f":"VALUE(FIXED(EXP(T$4*-1*'PM2.5 reduction'!T122),9))","v":0.99995561899999996},{"$f":"VALUE(FIXED(EXP(U$4*-1*'PM2.5 reduction'!U122),9))","v":0.99999515900000002},{"$f":"VALUE(FIXED(EXP(V$4*-1*'PM2.5 reduction'!V122),9))","v":0.99998063000000004},{"$f":"VALUE(FIXED(EXP(W$4*-1*'PM2.5 reduction'!W122),9))","v":0.99998289799999995},{"$f":"VALUE(FIXED(EXP(X$4*-1*'PM2.5 reduction'!X122),9))","v":0.99998289799999995},{"$f":"VALUE(FIXED(EXP(Y$4*-1*'PM2.5 reduction'!Y122),9))","v":0.99998172699999999},{"$f":"VALUE(FIXED(EXP(Z$4*-1*'PM2.5 reduction'!Z122),9))","v":0.99996070199999998},{"$f":"VALUE(FIXED(EXP(AA$4*-1*'PM2.5 reduction'!AA122),9))","v":0.99997109799999995},{"$f":"VALUE(FIXED(EXP(AB$4*-1*'PM2.5 reduction'!AB122),9))","v":0.99996657899999997},{"$f":"VALUE(FIXED(EXP(AC$4*-1*'PM2.5 reduction'!AC122),9))","v":0.99996631700000005},{"$f":"VALUE(FIXED(EXP(AD$4*-1*'PM2.5 reduction'!AD122),9))","v":0.99999356299999997},{"$f":"VALUE(FIXED(EXP(AE$4*-1*'PM2.5 reduction'!AE122),9))","v":0.99999318199999998},{"$f":"VALUE(FIXED(EXP(AF$4*-1*'PM2.5 reduction'!AF122),9))","v":0.99998257599999996},{"$f":"VALUE(FIXED(EXP(AG$4*-1*'PM2.5 reduction'!AG122),9))","v":0.99999318199999998},{"$f":"VALUE(FIXED(EXP(AH$4*-1*'PM2.5 reduction'!AH122),9))","v":0.99997910400000001},{"$f":"VALUE(FIXED(EXP(AI$4*-1*'PM2.5 reduction'!AI122),9))","v":0.99996618999999998},{"$f":"VALUE(FIXED(EXP(AJ$4*-1*'PM2.5 reduction'!AJ122),9))","v":0.99998319899999999},{"$f":"VALUE(FIXED(EXP(AK$4*-1*'PM2.5 reduction'!AK122),9))","v":0.99999185700000004},{"$f":"VALUE(FIXED(EXP(AL$4*-1*'PM2.5 reduction'!AL122),9))","v":0.99999005200000002},{"$f":"VALUE(FIXED(EXP(AM$4*-1*'PM2.5 reduction'!AM122),9))","v":0.99997752399999995},{"$f":"VALUE(FIXED(EXP(AN$4*-1*'PM2.5 reduction'!AN122),9))","v":0.999993994},{"$f":"VALUE(FIXED(EXP(AO$4*-1*'PM2.5 reduction'!AO122),9))","v":0.999993994},{"$f":"VALUE(FIXED(EXP(AP$4*-1*'PM2.5 reduction'!AP122),9))","v":0.99998420200000004},{"$f":"VALUE(FIXED(EXP(AQ$4*-1*'PM2.5 reduction'!AQ122),9))","v":0.999978955},{"$f":"VALUE(FIXED(EXP(AR$4*-1*'PM2.5 reduction'!AR122),9))","v":0.99997320499999998},{"$f":"VALUE(FIXED(EXP(AS$4*-1*'PM2.5 reduction'!AS122),9))","v":0.99999236899999999},{"$f":"VALUE(FIXED(EXP(AT$4*-1*'PM2.5 reduction'!AT122),9))","v":1},{"$f":"VALUE(FIXED(EXP(AU$4*-1*'PM2.5 reduction'!AU122),9))","v":1},{"$f":"VALUE(FIXED(EXP(AV$4*-1*'PM2.5 reduction'!AV122),9))","v":0.99998906200000004},{"$f":"VALUE(FIXED(EXP(AW$4*-1*'PM2.5 reduction'!AW122),9))","v":0.99998089000000001},{"$f":"VALUE(FIXED(EXP(AX$4*-1*'PM2.5 reduction'!AX122),9))","v":0.99998262199999999},{"$f":"VALUE(FIXED(EXP(AY$4*-1*'PM2.5 reduction'!AY122),9))","v":0.99997807699999997},{"$f":"VALUE(FIXED(EXP(AZ$4*-1*'PM2.5 reduction'!AZ122),9))","v":0.99997432399999997},{"$f":"VALUE(FIXED(EXP(BA$4*-1*'PM2.5 reduction'!BA122),9))","v":0.99997913999999999},{"$f":"VALUE(FIXED(EXP(BB$4*-1*'PM2.5 reduction'!BB122),9))","v":0.99998085999999997},{"$f":"VALUE(FIXED(EXP(BC$4*-1*'PM2.5 reduction'!BC122),9))","v":0.99999515900000002}]
[null,"Male 30-34",{"$f":"VALUE(FIXED(EXP(C$4*-1*'PM2.5 reduction'!C123),9))","v":0.99996233899999998},{"$f":"VALUE(FIXED(EXP(D$4*-1*'PM2.5 reduction'!D123),9))","v":0.99996573899999996},{"$f":"VALUE(FIXED(EXP(E$4*-1*'PM2.5 reduction'!E123),9))","v":0.99998965100000003},{"$f":"VALUE(FIXED(EXP(F$4*-1*'PM2.5 reduction'!F123),9))","v":0.999992149},{"$f":"VALUE(FIXED(EXP(G$4*-1*'PM2.5 reduction'!G123),9))","v":0.99999625199999997},{"$f":"VALUE(FIXED(EXP(H$4*-1*'PM2.5 reduction'!H123),9))","v":0.99998959899999995},{"$f":"VALUE(FIXED(EXP(I$4*-1*'PM2.5 reduction'!I123),9))","v":0.99999250799999995},{"$f":"VALUE(FIXED(EXP(J$4*-1*'PM2.5 reduction'!J123),9))","v":0.99998299999999996},{"$f":"VALUE(FIXED(EXP(K$4*-1*'PM2.5 reduction'!K123),9))","v":0.99998385499999998},{"$f":"VALUE(FIXED(EXP(L$4*-1*'PM2.5 reduction'!L123),9))","v":0.99999324599999995},{"$f":"VALUE(FIXED(EXP(M$4*-1*'PM2.5 reduction'!M123),9))","v":0.99999324599999995},{"$f":"VALUE(FIXED(EXP(N$4*-1*'PM2.5 reduction'!N123),9))","v":0.999968097},{"$f":"VALUE(FIXED(EXP(O$4*-1*'PM2.5 reduction'!O123),9))","v":0.99998969199999999},{"$f":"VALUE(FIXED(EXP(P$4*-1*'PM2.5 reduction'!P123),9))","v":0.99997271099999996},{"$f":"VALUE(FIXED(EXP(Q$4*-1*'PM2.5 reduction'!Q123),9))","v":0.99998502},{"$f":"VALUE(FIXED(EXP(R$4*-1*'PM2.5 reduction'!R123),9))","v":0.999979383},{"$f":"VALUE(FIXED(EXP(S$4*-1*'PM2.5 reduction'!S123),9))","v":0.99997161099999998},{"$f":"VALUE(FIXED(EXP(T$4*-1*'PM2.5 reduction'!T123),9))","v":0.99995683599999996},{"$f":"VALUE(FIXED(EXP(U$4*-1*'PM2.5 reduction'!U123),9))","v":0.99999515900000002},{"$f":"VALUE(FIXED(EXP(V$4*-1*'PM2.5 reduction'!V123),9))","v":0.99998043800000003},{"$f":"VALUE(FIXED(EXP(W$4*-1*'PM2.5 reduction'!W123),9))","v":0.99998270300000003},{"$f":"VALUE(FIXED(EXP(X$4*-1*'PM2.5 reduction'!X123),9))","v":0.99998270300000003},{"$f":"VALUE(FIXED(EXP(Y$4*-1*'PM2.5 reduction'!Y123),9))","v":0.999981338},{"$f":"VALUE(FIXED(EXP(Z$4*-1*'PM2.5 reduction'!Z123),9))","v":0.99996148200000001},{"$f":"VALUE(FIXED(EXP(AA$4*-1*'PM2.5 reduction'!AA123),9))","v":0.99997158500000005},{"$f":"VALUE(FIXED(EXP(AB$4*-1*'PM2.5 reduction'!AB123),9))","v":0.99996931600000005},{"$f":"VALUE(FIXED(EXP(AC$4*-1*'PM2.5 reduction'!AC123),9))","v":0.99996703099999995},{"$f":"VALUE(FIXED(EXP(AD$4*-1*'PM2.5 reduction'!AD123),9))","v":0.99999319600000003},{"$f":"VALUE(FIXED(EXP(AE$4*-1*'PM2.5 reduction'!AE123),9))","v":0.999992726},{"$f":"VALUE(FIXED(EXP(AF$4*-1*'PM2.5 reduction'!AF123),9))","v":0.99998249299999997},{"$f":"VALUE(FIXED(EXP(AG$4*-1*'PM2.5 reduction'!AG123),9))","v":0.999992726},{"$f":"VALUE(FIXED(EXP(AH$4*-1*'PM2.5 reduction'!AH123),9))","v":0.99997886199999997},{"$f":"VALUE(FIXED(EXP(AI$4*-1*'PM2.5 reduction'!AI123),9))","v":0.99996755400000004},{"$f":"VALUE(FIXED(EXP(AJ$4*-1*'PM2.5 reduction'!AJ123),9))","v":0.99998359699999995},{"$f":"VALUE(FIXED(EXP(AK$4*-1*'PM2.5 reduction'!AK123),9))","v":0.99999186399999995},{"$f":"VALUE(FIXED(EXP(AL$4*-1*'PM2.5 reduction'!AL123),9))","v":0.99999006300000004},{"$f":"VALUE(FIXED(EXP(AM$4*-1*'PM2.5 reduction'!AM123),9))","v":0.99997766200000004},{"$f":"VALUE(FIXED(EXP(AN$4*-1*'PM2.5 reduction'!AN123),9))","v":0.99999391500000001},{"$f":"VALUE(FIXED(EXP(AO$4*-1*'PM2.5 reduction'!AO123),9))","v":0.99999391500000001},{"$f":"VALUE(FIXED(EXP(AP$4*-1*'PM2.5 reduction'!AP123),9))","v":0.999983921},{"$f":"VALUE(FIXED(EXP(AQ$4*-1*'PM2.5 reduction'!AQ123),9))","v":0.99997934499999996},{"$f":"VALUE(FIXED(EXP(AR$4*-1*'PM2.5 reduction'!AR123),9))","v":0.999974213},{"$f":"VALUE(FIXED(EXP(AS$4*-1*'PM2.5 reduction'!AS123),9))","v":0.99999250799999995},{"$f":"VALUE(FIXED(EXP(AT$4*-1*'PM2.5 reduction'!AT123),9))","v":1},{"$f":"VALUE(FIXED(EXP(AU$4*-1*'PM2.5 reduction'!AU123),9))","v":1},{"$f":"VALUE(FIXED(EXP(AV$4*-1*'PM2.5 reduction'!AV123),9))","v":0.99998884099999996},{"$f":"VALUE(FIXED(EXP(AW$4*-1*'PM2.5 reduction'!AW123),9))","v":0.99998039599999999},{"$f":"VALUE(FIXED(EXP(AX$4*-1*'PM2.5 reduction'!AX123),9))","v":0.999982327},{"$f":"VALUE(FIXED(EXP(AY$4*-1*'PM2.5 reduction'!AY123),9))","v":0.99997977199999999},{"$f":"VALUE(FIXED(EXP(AZ$4*-1*'PM2.5 reduction'!AZ123),9))","v":0.99997729800000001},{"$f":"VALUE(FIXED(EXP(BA$4*-1*'PM2.5 reduction'!BA123),9))","v":0.99997947600000003},{"$f":"VALUE(FIXED(EXP(BB$4*-1*'PM2.5 reduction'!BB123),9))","v":0.99998089300000004},{"$f":"VALUE(FIXED(EXP(BC$4*-1*'PM2.5 reduction'!BC123),9))","v":0.99999515900000002}]
[null,"Male 35-39",{"$f":"VALUE(FIXED(EXP(C$4*-1*'PM2.5 reduction'!C124),9))","v":0.99996468800000005},{"$f":"VALUE(FIXED(EXP(D$4*-1*'PM2.5 reduction'!D124),9))","v":0.99996818799999998},{"$f":"VALUE(FIXED(EXP(E$4*-1*'PM2.5 reduction'!E124),9))","v":0.99998993199999997},{"$f":"VALUE(FIXED(EXP(F$4*-1*'PM2.5 reduction'!F124),9))","v":0.99999235900000005},{"$f":"VALUE(FIXED(EXP(G$4*-1*'PM2.5 reduction'!G124),9))","v":0.99999621299999997},{"$f":"VALUE(FIXED(EXP(H$4*-1*'PM2.5 reduction'!H124),9))","v":0.999989982},{"$f":"VALUE(FIXED(EXP(I$4*-1*'PM2.5 reduction'!I124),9))","v":0.99999243400000004},{"$f":"VALUE(FIXED(EXP(J$4*-1*'PM2.5 reduction'!J124),9))","v":0.99998326999999998},{"$f":"VALUE(FIXED(EXP(K$4*-1*'PM2.5 reduction'!K124),9))","v":0.99998376899999997},{"$f":"VALUE(FIXED(EXP(L$4*-1*'PM2.5 reduction'!L124),9))","v":0.99999307400000004},{"$f":"VALUE(FIXED(EXP(M$4*-1*'PM2.5 reduction'!M124),9))","v":0.99999307400000004},{"$f":"VALUE(FIXED(EXP(N$4*-1*'PM2.5 reduction'!N124),9))","v":0.99996909499999997},{"$f":"VALUE(FIXED(EXP(O$4*-1*'PM2.5 reduction'!O124),9))","v":0.99999020900000002},{"$f":"VALUE(FIXED(EXP(P$4*-1*'PM2.5 reduction'!P124),9))","v":0.99997251700000001},{"$f":"VALUE(FIXED(EXP(Q$4*-1*'PM2.5 reduction'!Q124),9))","v":0.99998507299999995},{"$f":"VALUE(FIXED(EXP(R$4*-1*'PM2.5 reduction'!R124),9))","v":0.99997980099999995},{"$f":"VALUE(FIXED(EXP(S$4*-1*'PM2.5 reduction'!S124),9))","v":0.99997350500000004},{"$f":"VALUE(FIXED(EXP(T$4*-1*'PM2.5 reduction'!T124),9))","v":0.99995780700000003},{"$f":"VALUE(FIXED(EXP(U$4*-1*'PM2.5 reduction'!U124),9))","v":0.99999515900000002},{"$f":"VALUE(FIXED(EXP(V$4*-1*'PM2.5 reduction'!V124),9))","v":0.99998087300000005},{"$f":"VALUE(FIXED(EXP(W$4*-1*'PM2.5 reduction'!W124),9))","v":0.99998313400000005},{"$f":"VALUE(FIXED(EXP(X$4*-1*'PM2.5 reduction'!X124),9))","v":0.99998313400000005},{"$f":"VALUE(FIXED(EXP(Y$4*-1*'PM2.5 reduction'!Y124),9))","v":0.99998157899999995},{"$f":"VALUE(FIXED(EXP(Z$4*-1*'PM2.5 reduction'!Z124),9))","v":0.99996245100000003},{"$f":"VALUE(FIXED(EXP(AA$4*-1*'PM2.5 reduction'!AA124),9))","v":0.99997265899999999},{"$f":"VALUE(FIXED(EXP(AB$4*-1*'PM2.5 reduction'!AB124),9))","v":0.99997232999999996},{"$f":"VALUE(FIXED(EXP(AC$4*-1*'PM2.5 reduction'!AC124),9))","v":0.99996803199999995},{"$f":"VALUE(FIXED(EXP(AD$4*-1*'PM2.5 reduction'!AD124),9))","v":0.99999317200000004},{"$f":"VALUE(FIXED(EXP(AE$4*-1*'PM2.5 reduction'!AE124),9))","v":0.99999257600000002},{"$f":"VALUE(FIXED(EXP(AF$4*-1*'PM2.5 reduction'!AF124),9))","v":0.999982233},{"$f":"VALUE(FIXED(EXP(AG$4*-1*'PM2.5 reduction'!AG124),9))","v":0.99999257600000002},{"$f":"VALUE(FIXED(EXP(AH$4*-1*'PM2.5 reduction'!AH124),9))","v":0.99997923399999999},{"$f":"VALUE(FIXED(EXP(AI$4*-1*'PM2.5 reduction'!AI124),9))","v":0.99996930299999998},{"$f":"VALUE(FIXED(EXP(AJ$4*-1*'PM2.5 reduction'!AJ124),9))","v":0.99998359000000003},{"$f":"VALUE(FIXED(EXP(AK$4*-1*'PM2.5 reduction'!AK124),9))","v":0.99999201199999999},{"$f":"VALUE(FIXED(EXP(AL$4*-1*'PM2.5 reduction'!AL124),9))","v":0.99999037000000002},{"$f":"VALUE(FIXED(EXP(AM$4*-1*'PM2.5 reduction'!AM124),9))","v":0.99997783299999998},{"$f":"VALUE(FIXED(EXP(AN$4*-1*'PM2.5 reduction'!AN124),9))","v":0.99999359399999999},{"$f":"VALUE(FIXED(EXP(AO$4*-1*'PM2.5 reduction'!AO124),9))","v":0.99999359399999999},{"$f":"VALUE(FIXED(EXP(AP$4*-1*'PM2.5 reduction'!AP124),9))","v":0.99998525599999999},{"$f":"VALUE(FIXED(EXP(AQ$4*-1*'PM2.5 reduction'!AQ124),9))","v":0.99997923899999996},{"$f":"VALUE(FIXED(EXP(AR$4*-1*'PM2.5 reduction'!AR124),9))","v":0.99997568999999997},{"$f":"VALUE(FIXED(EXP(AS$4*-1*'PM2.5 reduction'!AS124),9))","v":0.99999243400000004},{"$f":"VALUE(FIXED(EXP(AT$4*-1*'PM2.5 reduction'!AT124),9))","v":1},{"$f":"VALUE(FIXED(EXP(AU$4*-1*'PM2.5 reduction'!AU124),9))","v":1},{"$f":"VALUE(FIXED(EXP(AV$4*-1*'PM2.5 reduction'!AV124),9))","v":0.999989299},{"$f":"VALUE(FIXED(EXP(AW$4*-1*'PM2.5 reduction'!AW124),9))","v":0.99998091},{"$f":"VALUE(FIXED(EXP(AX$4*-1*'PM2.5 reduction'!AX124),9))","v":0.99998275199999997},{"$f":"VALUE(FIXED(EXP(AY$4*-1*'PM2.5 reduction'!AY124),9))","v":0.99998119699999999},{"$f":"VALUE(FIXED(EXP(AZ$4*-1*'PM2.5 reduction'!AZ124),9))","v":0.99997919300000004},{"$f":"VALUE(FIXED(EXP(BA$4*-1*'PM2.5 reduction'!BA124),9))","v":0.99997913699999996},{"$f":"VALUE(FIXED(EXP(BB$4*-1*'PM2.5 reduction'!BB124),9))","v":0.99998076300000005},{"$f":"VALUE(FIXED(EXP(BC$4*-1*'PM2.5 reduction'!BC124),9))","v":0.99999515900000002}]
[null,"Male 40-44",{"$f":"VALUE(FIXED(EXP(C$4*-1*'PM2.5 reduction'!C125),9))","v":0.99996373299999997},{"$f":"VALUE(FIXED(EXP(D$4*-1*'PM2.5 reduction'!D125),9))","v":0.999967245},{"$f":"VALUE(FIXED(EXP(E$4*-1*'PM2.5 reduction'!E125),9))","v":0.99998983900000005},{"$f":"VALUE(FIXED(EXP(F$4*-1*'PM2.5 reduction'!F125),9))","v":0.99999230800000005},{"$f":"VALUE(FIXED(EXP(G$4*-1*'PM2.5 reduction'!G125),9))","v":0.99999611499999996},{"$f":"VALUE(FIXED(EXP(H$4*-1*'PM2.5 reduction'!H125),9))","v":0.999989872},{"$f":"VALUE(FIXED(EXP(I$4*-1*'PM2.5 reduction'!I125),9))","v":0.999992824},{"$f":"VALUE(FIXED(EXP(J$4*-1*'PM2.5 reduction'!J125),9))","v":0.99998405000000001},{"$f":"VALUE(FIXED(EXP(K$4*-1*'PM2.5 reduction'!K125),9))","v":0.99998421000000004},{"$f":"VALUE(FIXED(EXP(L$4*-1*'PM2.5 reduction'!L125),9))","v":0.99999358199999999},{"$f":"VALUE(FIXED(EXP(M$4*-1*'PM2.5 reduction'!M125),9))","v":0.99999358199999999},{"$f":"VALUE(FIXED(EXP(N$4*-1*'PM2.5 reduction'!N125),9))","v":0.99997070899999996},{"$f":"VALUE(FIXED(EXP(O$4*-1*'PM2.5 reduction'!O125),9))","v":0.99999063399999999},{"$f":"VALUE(FIXED(EXP(P$4*-1*'PM2.5 reduction'!P125),9))","v":0.99997251399999998},{"$f":"VALUE(FIXED(EXP(Q$4*-1*'PM2.5 reduction'!Q125),9))","v":0.99998532299999998},{"$f":"VALUE(FIXED(EXP(R$4*-1*'PM2.5 reduction'!R125),9))","v":0.99997913100000002},{"$f":"VALUE(FIXED(EXP(S$4*-1*'PM2.5 reduction'!S125),9))","v":0.99997503499999996},{"$f":"VALUE(FIXED(EXP(T$4*-1*'PM2.5 reduction'!T125),9))","v":0.99995890600000004},{"$f":"VALUE(FIXED(EXP(U$4*-1*'PM2.5 reduction'!U125),9))","v":0.99999515900000002},{"$f":"VALUE(FIXED(EXP(V$4*-1*'PM2.5 reduction'!V125),9))","v":0.99998034000000002},{"$f":"VALUE(FIXED(EXP(W$4*-1*'PM2.5 reduction'!W125),9))","v":0.99998306400000003},{"$f":"VALUE(FIXED(EXP(X$4*-1*'PM2.5 reduction'!X125),9))","v":0.99998306400000003},{"$f":"VALUE(FIXED(EXP(Y$4*-1*'PM2.5 reduction'!Y125),9))","v":0.99998151000000002},{"$f":"VALUE(FIXED(EXP(Z$4*-1*'PM2.5 reduction'!Z125),9))","v":0.99996337899999999},{"$f":"VALUE(FIXED(EXP(AA$4*-1*'PM2.5 reduction'!AA125),9))","v":0.99997411599999997},{"$f":"VALUE(FIXED(EXP(AB$4*-1*'PM2.5 reduction'!AB125),9))","v":0.99997128599999996},{"$f":"VALUE(FIXED(EXP(AC$4*-1*'PM2.5 reduction'!AC125),9))","v":0.99996971999999995},{"$f":"VALUE(FIXED(EXP(AD$4*-1*'PM2.5 reduction'!AD125),9))","v":0.99999346499999997},{"$f":"VALUE(FIXED(EXP(AE$4*-1*'PM2.5 reduction'!AE125),9))","v":0.99999284499999996},{"$f":"VALUE(FIXED(EXP(AF$4*-1*'PM2.5 reduction'!AF125),9))","v":0.99998372599999996},{"$f":"VALUE(FIXED(EXP(AG$4*-1*'PM2.5 reduction'!AG125),9))","v":0.99999284499999996},{"$f":"VALUE(FIXED(EXP(AH$4*-1*'PM2.5 reduction'!AH125),9))","v":0.99997920399999995},{"$f":"VALUE(FIXED(EXP(AI$4*-1*'PM2.5 reduction'!AI125),9))","v":0.99997102400000004},{"$f":"VALUE(FIXED(EXP(AJ$4*-1*'PM2.5 reduction'!AJ125),9))","v":0.99998331200000001},{"$f":"VALUE(FIXED(EXP(AK$4*-1*'PM2.5 reduction'!AK125),9))","v":0.99999183300000005},{"$f":"VALUE(FIXED(EXP(AL$4*-1*'PM2.5 reduction'!AL125),9))","v":0.99999002699999995},{"$f":"VALUE(FIXED(EXP(AM$4*-1*'PM2.5 reduction'!AM125),9))","v":0.99997772799999995},{"$f":"VALUE(FIXED(EXP(AN$4*-1*'PM2.5 reduction'!AN125),9))","v":0.99999374799999996},{"$f":"VALUE(FIXED(EXP(AO$4*-1*'PM2.5 reduction'!AO125),9))","v":0.99999374799999996},{"$f":"VALUE(FIXED(EXP(AP$4*-1*'PM2.5 reduction'!AP125),9))","v":0.99998544300000003},{"$f":"VALUE(FIXED(EXP(AQ$4*-1*'PM2.5 reduction'!AQ125),9))","v":0.99997959599999997},{"$f":"VALUE(FIXED(EXP(AR$4*-1*'PM2.5 reduction'!AR125),9))","v":0.99997697799999996},{"$f":"VALUE(FIXED(EXP(AS$4*-1*'PM2.5 reduction'!AS125),9))","v":0.999992824},{"$f":"VALUE(FIXED(EXP(AT$4*-1*'PM2.5 reduction'!AT125),9))","v":1},{"$f":"VALUE(FIXED(EXP(AU$4*-1*'PM2.5 reduction'!AU125),9))","v":1},{"$f":"VALUE(FIXED(EXP(AV$4*-1*'PM2.5 reduction'!AV125),9))","v":0.99998847899999999},{"$f":"VALUE(FIXED(EXP(AW$4*-1*'PM2.5 reduction'!AW125),9))","v":0.99998105100000001},{"$f":"VALUE(FIXED(EXP(AX$4*-1*'PM2.5 reduction'!AX125),9))","v":0.99998386500000003},{"$f":"VALUE(FIXED(EXP(AY$4*-1*'PM2.5 reduction'!AY125),9))","v":0.99998162899999998},{"$f":"VALUE(FIXED(EXP(AZ$4*-1*'PM2.5 reduction'!AZ125),9))","v":0.99997990400000003},{"$f":"VALUE(FIXED(EXP(BA$4*-1*'PM2.5 reduction'!BA125),9))","v":0.99997903200000005},{"$f":"VALUE(FIXED(EXP(BB$4*-1*'PM2.5 reduction'!BB125),9))","v":0.99998106499999995},{"$f":"VALUE(FIXED(EXP(BC$4*-1*'PM2.5 reduction'!BC125),9))","v":0.99999515900000002}]
[null,"Male 45-49",{"$f":"VALUE(FIXED(EXP(C$4*-1*'PM2.5 reduction'!C126),9))","v":0.99996485700000004},{"$f":"VALUE(FIXED(EXP(D$4*-1*'PM2.5 reduction'!D126),9))","v":0.99996821800000002},{"$f":"VALUE(FIXED(EXP(E$4*-1*'PM2.5 reduction'!E126),9))","v":0.99999010600000005},{"$f":"VALUE(FIXED(EXP(F$4*-1*'PM2.5 reduction'!F126),9))","v":0.999992094},{"$f":"VALUE(FIXED(EXP(G$4*-1*'PM2.5 reduction'!G126),9))","v":0.99999601699999996},{"$f":"VALUE(FIXED(EXP(H$4*-1*'PM2.5 reduction'!H126),9))","v":0.99999015700000005},{"$f":"VALUE(FIXED(EXP(I$4*-1*'PM2.5 reduction'!I126),9))","v":0.99999242300000002},{"$f":"VALUE(FIXED(EXP(J$4*-1*'PM2.5 reduction'!J126),9))","v":0.999984121},{"$f":"VALUE(FIXED(EXP(K$4*-1*'PM2.5 reduction'!K126),9))","v":0.99998426900000004},{"$f":"VALUE(FIXED(EXP(L$4*-1*'PM2.5 reduction'!L126),9))","v":0.99999301500000004},{"$f":"VALUE(FIXED(EXP(M$4*-1*'PM2.5 reduction'!M126),9))","v":0.99999301500000004},{"$f":"VALUE(FIXED(EXP(N$4*-1*'PM2.5 reduction'!N126),9))","v":0.99997040100000001},{"$f":"VALUE(FIXED(EXP(O$4*-1*'PM2.5 reduction'!O126),9))","v":0.99999056500000005},{"$f":"VALUE(FIXED(EXP(P$4*-1*'PM2.5 reduction'!P126),9))","v":0.99997270599999999},{"$f":"VALUE(FIXED(EXP(Q$4*-1*'PM2.5 reduction'!Q126),9))","v":0.99998589400000004},{"$f":"VALUE(FIXED(EXP(R$4*-1*'PM2.5 reduction'!R126),9))","v":0.99997940100000005},{"$f":"VALUE(FIXED(EXP(S$4*-1*'PM2.5 reduction'!S126),9))","v":0.99997625000000001},{"$f":"VALUE(FIXED(EXP(T$4*-1*'PM2.5 reduction'!T126),9))","v":0.99995874100000004},{"$f":"VALUE(FIXED(EXP(U$4*-1*'PM2.5 reduction'!U126),9))","v":0.99999515900000002},{"$f":"VALUE(FIXED(EXP(V$4*-1*'PM2.5 reduction'!V126),9))","v":0.99998075600000003},{"$f":"VALUE(FIXED(EXP(W$4*-1*'PM2.5 reduction'!W126),9))","v":0.99998364699999998},{"$f":"VALUE(FIXED(EXP(X$4*-1*'PM2.5 reduction'!X126),9))","v":0.99998364699999998},{"$f":"VALUE(FIXED(EXP(Y$4*-1*'PM2.5 reduction'!Y126),9))","v":0.99998185399999995},{"$f":"VALUE(FIXED(EXP(Z$4*-1*'PM2.5 reduction'!Z126),9))","v":0.99996483599999997},{"$f":"VALUE(FIXED(EXP(AA$4*-1*'PM2.5 reduction'!AA126),9))","v":0.99997504000000004},{"$f":"VALUE(FIXED(EXP(AB$4*-1*'PM2.5 reduction'!AB126),9))","v":0.999972729},{"$f":"VALUE(FIXED(EXP(AC$4*-1*'PM2.5 reduction'!AC126),9))","v":0.999971045},{"$f":"VALUE(FIXED(EXP(AD$4*-1*'PM2.5 reduction'!AD126),9))","v":0.99999389800000005},{"$f":"VALUE(FIXED(EXP(AE$4*-1*'PM2.5 reduction'!AE126),9))","v":0.99999332200000002},{"$f":"VALUE(FIXED(EXP(AF$4*-1*'PM2.5 reduction'!AF126),9))","v":0.99998265600000003},{"$f":"VALUE(FIXED(EXP(AG$4*-1*'PM2.5 reduction'!AG126),9))","v":0.99999332200000002},{"$f":"VALUE(FIXED(EXP(AH$4*-1*'PM2.5 reduction'!AH126),9))","v":0.99997948999999997},{"$f":"VALUE(FIXED(EXP(AI$4*-1*'PM2.5 reduction'!AI126),9))","v":0.99997220399999998},{"$f":"VALUE(FIXED(EXP(AJ$4*-1*'PM2.5 reduction'!AJ126),9))","v":0.99998316899999995},{"$f":"VALUE(FIXED(EXP(AK$4*-1*'PM2.5 reduction'!AK126),9))","v":0.99999192800000003},{"$f":"VALUE(FIXED(EXP(AL$4*-1*'PM2.5 reduction'!AL126),9))","v":0.99999062699999997},{"$f":"VALUE(FIXED(EXP(AM$4*-1*'PM2.5 reduction'!AM126),9))","v":0.99997800100000001},{"$f":"VALUE(FIXED(EXP(AN$4*-1*'PM2.5 reduction'!AN126),9))","v":0.99999368},{"$f":"VALUE(FIXED(EXP(AO$4*-1*'PM2.5 reduction'!AO126),9))","v":0.99999368},{"$f":"VALUE(FIXED(EXP(AP$4*-1*'PM2.5 reduction'!AP126),9))","v":0.99998579700000001},{"$f":"VALUE(FIXED(EXP(AQ$4*-1*'PM2.5 reduction'!AQ126),9))","v":0.99997973600000001},{"$f":"VALUE(FIXED(EXP(AR$4*-1*'PM2.5 reduction'!AR126),9))","v":0.99997792500000005},{"$f":"VALUE(FIXED(EXP(AS$4*-1*'PM2.5 reduction'!AS126),9))","v":0.99999242300000002},{"$f":"VALUE(FIXED(EXP(AT$4*-1*'PM2.5 reduction'!AT126),9))","v":1},{"$f":"VALUE(FIXED(EXP(AU$4*-1*'PM2.5 reduction'!AU126),9))","v":1},{"$f":"VALUE(FIXED(EXP(AV$4*-1*'PM2.5 reduction'!AV126),9))","v":0.99998889999999996},{"$f":"VALUE(FIXED(EXP(AW$4*-1*'PM2.5 reduction'!AW126),9))","v":0.99998118899999999},{"$f":"VALUE(FIXED(EXP(AX$4*-1*'PM2.5 reduction'!AX126),9))","v":0.99998393100000005},{"$f":"VALUE(FIXED(EXP(AY$4*-1*'PM2.5 reduction'!AY126),9))","v":0.99998175700000003},{"$f":"VALUE(FIXED(EXP(AZ$4*-1*'PM2.5 reduction'!AZ126),9))","v":0.99997951900000004},{"$f":"VALUE(FIXED(EXP(BA$4*-1*'PM2.5 reduction'!BA126),9))","v":0.99997918299999999},{"$f":"VALUE(FIXED(EXP(BB$4*-1*'PM2.5 reduction'!BB126),9))","v":0.99998135700000002},{"$f":"VALUE(FIXED(EXP(BC$4*-1*'PM2.5 reduction'!BC126),9))","v":0.99999515900000002}]
[null,"Male 50-54",{"$f":"VALUE(FIXED(EXP(C$4*-1*'PM2.5 reduction'!C127),9))","v":0.99996572399999994},{"$f":"VALUE(FIXED(EXP(D$4*-1*'PM2.5 reduction'!D127),9))","v":0.99996965400000004},{"$f":"VALUE(FIXED(EXP(E$4*-1*'PM2.5 reduction'!E127),9))","v":0.99999033900000001},{"$f":"VALUE(FIXED(EXP(F$4*-1*'PM2.5 reduction'!F127),9))","v":0.99999206100000004},{"$f":"VALUE(FIXED(EXP(G$4*-1*'PM2.5 reduction'!G127),9))","v":0.99999632100000002},{"$f":"VALUE(FIXED(EXP(H$4*-1*'PM2.5 reduction'!H127),9))","v":0.99999017700000004},{"$f":"VALUE(FIXED(EXP(I$4*-1*'PM2.5 reduction'!I127),9))","v":0.99999274100000002},{"$f":"VALUE(FIXED(EXP(J$4*-1*'PM2.5 reduction'!J127),9))","v":0.99998472400000005},{"$f":"VALUE(FIXED(EXP(K$4*-1*'PM2.5 reduction'!K127),9))","v":0.99998495099999996},{"$f":"VALUE(FIXED(EXP(L$4*-1*'PM2.5 reduction'!L127),9))","v":0.99999317399999998},{"$f":"VALUE(FIXED(EXP(M$4*-1*'PM2.5 reduction'!M127),9))","v":0.99999317399999998},{"$f":"VALUE(FIXED(EXP(N$4*-1*'PM2.5 reduction'!N127),9))","v":0.99997046300000003},{"$f":"VALUE(FIXED(EXP(O$4*-1*'PM2.5 reduction'!O127),9))","v":0.99999092700000003},{"$f":"VALUE(FIXED(EXP(P$4*-1*'PM2.5 reduction'!P127),9))","v":0.99997304099999995},{"$f":"VALUE(FIXED(EXP(Q$4*-1*'PM2.5 reduction'!Q127),9))","v":0.99998578800000004},{"$f":"VALUE(FIXED(EXP(R$4*-1*'PM2.5 reduction'!R127),9))","v":0.99997897899999999},{"$f":"VALUE(FIXED(EXP(S$4*-1*'PM2.5 reduction'!S127),9))","v":0.99997701900000002},{"$f":"VALUE(FIXED(EXP(T$4*-1*'PM2.5 reduction'!T127),9))","v":0.99996001599999995},{"$f":"VALUE(FIXED(EXP(U$4*-1*'PM2.5 reduction'!U127),9))","v":0.99999515900000002},{"$f":"VALUE(FIXED(EXP(V$4*-1*'PM2.5 reduction'!V127),9))","v":0.99998058899999998},{"$f":"VALUE(FIXED(EXP(W$4*-1*'PM2.5 reduction'!W127),9))","v":0.99998308899999999},{"$f":"VALUE(FIXED(EXP(X$4*-1*'PM2.5 reduction'!X127),9))","v":0.99998308899999999},{"$f":"VALUE(FIXED(EXP(Y$4*-1*'PM2.5 reduction'!Y127),9))","v":0.99998200199999998},{"$f":"VALUE(FIXED(EXP(Z$4*-1*'PM2.5 reduction'!Z127),9))","v":0.99996508100000003},{"$f":"VALUE(FIXED(EXP(AA$4*-1*'PM2.5 reduction'!AA127),9))","v":0.99997529699999999},{"$f":"VALUE(FIXED(EXP(AB$4*-1*'PM2.5 reduction'!AB127),9))","v":0.99997416900000002},{"$f":"VALUE(FIXED(EXP(AC$4*-1*'PM2.5 reduction'!AC127),9))","v":0.999971732},{"$f":"VALUE(FIXED(EXP(AD$4*-1*'PM2.5 reduction'!AD127),9))","v":0.99999379899999996},{"$f":"VALUE(FIXED(EXP(AE$4*-1*'PM2.5 reduction'!AE127),9))","v":0.99999317799999998},{"$f":"VALUE(FIXED(EXP(AF$4*-1*'PM2.5 reduction'!AF127),9))","v":0.99998252499999996},{"$f":"VALUE(FIXED(EXP(AG$4*-1*'PM2.5 reduction'!AG127),9))","v":0.99999317799999998},{"$f":"VALUE(FIXED(EXP(AH$4*-1*'PM2.5 reduction'!AH127),9))","v":0.99997933100000003},{"$f":"VALUE(FIXED(EXP(AI$4*-1*'PM2.5 reduction'!AI127),9))","v":0.99997328600000002},{"$f":"VALUE(FIXED(EXP(AJ$4*-1*'PM2.5 reduction'!AJ127),9))","v":0.99998303300000002},{"$f":"VALUE(FIXED(EXP(AK$4*-1*'PM2.5 reduction'!AK127),9))","v":0.99999206900000004},{"$f":"VALUE(FIXED(EXP(AL$4*-1*'PM2.5 reduction'!AL127),9))","v":0.99999030099999997},{"$f":"VALUE(FIXED(EXP(AM$4*-1*'PM2.5 reduction'!AM127),9))","v":0.99997772500000004},{"$f":"VALUE(FIXED(EXP(AN$4*-1*'PM2.5 reduction'!AN127),9))","v":0.99999362999999997},{"$f":"VALUE(FIXED(EXP(AO$4*-1*'PM2.5 reduction'!AO127),9))","v":0.99999362999999997},{"$f":"VALUE(FIXED(EXP(AP$4*-1*'PM2.5 reduction'!AP127),9))","v":0.99998633800000003},{"$f":"VALUE(FIXED(EXP(AQ$4*-1*'PM2.5 reduction'!AQ127),9))","v":0.99998021000000004},{"$f":"VALUE(FIXED(EXP(AR$4*-1*'PM2.5 reduction'!AR127),9))","v":0.99997847500000003},{"$f":"VALUE(FIXED(EXP(AS$4*-1*'PM2.5 reduction'!AS127),9))","v":0.99999274100000002},{"$f":"VALUE(FIXED(EXP(AT$4*-1*'PM2.5 reduction'!AT127),9))","v":1},{"$f":"VALUE(FIXED(EXP(AU$4*-1*'PM2.5 reduction'!AU127),9))","v":1},{"$f":"VALUE(FIXED(EXP(AV$4*-1*'PM2.5 reduction'!AV127),9))","v":0.99998896500000001},{"$f":"VALUE(FIXED(EXP(AW$4*-1*'PM2.5 reduction'!AW127),9))","v":0.99998111700000003},{"$f":"VALUE(FIXED(EXP(AX$4*-1*'PM2.5 reduction'!AX127),9))","v":0.99998447800000001},{"$f":"VALUE(FIXED(EXP(AY$4*-1*'PM2.5 reduction'!AY127),9))","v":0.99998188700000001},{"$f":"VALUE(FIXED(EXP(AZ$4*-1*'PM2.5 reduction'!AZ127),9))","v":0.999980337},{"$f":"VALUE(FIXED(EXP(BA$4*-1*'PM2.5 reduction'!BA127),9))","v":0.99997900100000003},{"$f":"VALUE(FIXED(EXP(BB$4*-1*'PM2.5 reduction'!BB127),9))","v":0.99998134999999999},{"$f":"VALUE(FIXED(EXP(BC$4*-1*'PM2.5 reduction'!BC127),9))","v":0.99999515900000002}]
[null,"Male 55-59",{"$f":"VALUE(FIXED(EXP(C$4*-1*'PM2.5 reduction'!C128),9))","v":0.99996555300000001},{"$f":"VALUE(FIXED(EXP(D$4*-1*'PM2.5 reduction'!D128),9))","v":0.99996975399999999},{"$f":"VALUE(FIXED(EXP(E$4*-1*'PM2.5 reduction'!E128),9))","v":0.999990131},{"$f":"VALUE(FIXED(EXP(F$4*-1*'PM2.5 reduction'!F128),9))","v":0.99999178600000005},{"$f":"VALUE(FIXED(EXP(G$4*-1*'PM2.5 reduction'!G128),9))","v":0.99999623500000001},{"$f":"VALUE(FIXED(EXP(H$4*-1*'PM2.5 reduction'!H128),9))","v":0.99999038600000001},{"$f":"VALUE(FIXED(EXP(I$4*-1*'PM2.5 reduction'!I128),9))","v":0.99999232100000002},{"$f":"VALUE(FIXED(EXP(J$4*-1*'PM2.5 reduction'!J128),9))","v":0.99998442899999995},{"$f":"VALUE(FIXED(EXP(K$4*-1*'PM2.5 reduction'!K128),9))","v":0.99998461000000005},{"$f":"VALUE(FIXED(EXP(L$4*-1*'PM2.5 reduction'!L128),9))","v":0.99999370399999998},{"$f":"VALUE(FIXED(EXP(M$4*-1*'PM2.5 reduction'!M128),9))","v":0.99999370399999998},{"$f":"VALUE(FIXED(EXP(N$4*-1*'PM2.5 reduction'!N128),9))","v":0.999970095},{"$f":"VALUE(FIXED(EXP(O$4*-1*'PM2.5 reduction'!O128),9))","v":0.99999147899999996},{"$f":"VALUE(FIXED(EXP(P$4*-1*'PM2.5 reduction'!P128),9))","v":0.99997230199999998},{"$f":"VALUE(FIXED(EXP(Q$4*-1*'PM2.5 reduction'!Q128),9))","v":0.99998552900000004},{"$f":"VALUE(FIXED(EXP(R$4*-1*'PM2.5 reduction'!R128),9))","v":0.99997934300000002},{"$f":"VALUE(FIXED(EXP(S$4*-1*'PM2.5 reduction'!S128),9))","v":0.99997756599999998},{"$f":"VALUE(FIXED(EXP(T$4*-1*'PM2.5 reduction'!T128),9))","v":0.99996048400000004},{"$f":"VALUE(FIXED(EXP(U$4*-1*'PM2.5 reduction'!U128),9))","v":0.99999515900000002},{"$f":"VALUE(FIXED(EXP(V$4*-1*'PM2.5 reduction'!V128),9))","v":0.99998088900000004},{"$f":"VALUE(FIXED(EXP(W$4*-1*'PM2.5 reduction'!W128),9))","v":0.99998342900000003},{"$f":"VALUE(FIXED(EXP(X$4*-1*'PM2.5 reduction'!X128),9))","v":0.99998342900000003},{"$f":"VALUE(FIXED(EXP(Y$4*-1*'PM2.5 reduction'!Y128),9))","v":0.99998204899999998},{"$f":"VALUE(FIXED(EXP(Z$4*-1*'PM2.5 reduction'!Z128),9))","v":0.99996586600000004},{"$f":"VALUE(FIXED(EXP(AA$4*-1*'PM2.5 reduction'!AA128),9))","v":0.99997566400000004},{"$f":"VALUE(FIXED(EXP(AB$4*-1*'PM2.5 reduction'!AB128),9))","v":0.99997402999999996},{"$f":"VALUE(FIXED(EXP(AC$4*-1*'PM2.5 reduction'!AC128),9))","v":0.99997222100000005},{"$f":"VALUE(FIXED(EXP(AD$4*-1*'PM2.5 reduction'!AD128),9))","v":0.99999391599999998},{"$f":"VALUE(FIXED(EXP(AE$4*-1*'PM2.5 reduction'!AE128),9))","v":0.99999339799999998},{"$f":"VALUE(FIXED(EXP(AF$4*-1*'PM2.5 reduction'!AF128),9))","v":0.999983607},{"$f":"VALUE(FIXED(EXP(AG$4*-1*'PM2.5 reduction'!AG128),9))","v":0.99999339799999998},{"$f":"VALUE(FIXED(EXP(AH$4*-1*'PM2.5 reduction'!AH128),9))","v":0.999979375},{"$f":"VALUE(FIXED(EXP(AI$4*-1*'PM2.5 reduction'!AI128),9))","v":0.99997393199999995},{"$f":"VALUE(FIXED(EXP(AJ$4*-1*'PM2.5 reduction'!AJ128),9))","v":0.99998297400000002},{"$f":"VALUE(FIXED(EXP(AK$4*-1*'PM2.5 reduction'!AK128),9))","v":0.99999225800000002},{"$f":"VALUE(FIXED(EXP(AL$4*-1*'PM2.5 reduction'!AL128),9))","v":0.99999013699999995},{"$f":"VALUE(FIXED(EXP(AM$4*-1*'PM2.5 reduction'!AM128),9))","v":0.99997762000000001},{"$f":"VALUE(FIXED(EXP(AN$4*-1*'PM2.5 reduction'!AN128),9))","v":0.99999377300000003},{"$f":"VALUE(FIXED(EXP(AO$4*-1*'PM2.5 reduction'!AO128),9))","v":0.99999377300000003},{"$f":"VALUE(FIXED(EXP(AP$4*-1*'PM2.5 reduction'!AP128),9))","v":0.99998709200000002},{"$f":"VALUE(FIXED(EXP(AQ$4*-1*'PM2.5 reduction'!AQ128),9))","v":0.99997982399999996},{"$f":"VALUE(FIXED(EXP(AR$4*-1*'PM2.5 reduction'!AR128),9))","v":0.99997876200000002},{"$f":"VALUE(FIXED(EXP(AS$4*-1*'PM2.5 reduction'!AS128),9))","v":0.99999232100000002},{"$f":"VALUE(FIXED(EXP(AT$4*-1*'PM2.5 reduction'!AT128),9))","v":1},{"$f":"VALUE(FIXED(EXP(AU$4*-1*'PM2.5 reduction'!AU128),9))","v":1},{"$f":"VALUE(FIXED(EXP(AV$4*-1*'PM2.5 reduction'!AV128),9))","v":0.99998905599999999},{"$f":"VALUE(FIXED(EXP(AW$4*-1*'PM2.5 reduction'!AW128),9))","v":0.99998116500000001},{"$f":"VALUE(FIXED(EXP(AX$4*-1*'PM2.5 reduction'!AX128),9))","v":0.99998425000000002},{"$f":"VALUE(FIXED(EXP(AY$4*-1*'PM2.5 reduction'!AY128),9))","v":0.999981868},{"$f":"VALUE(FIXED(EXP(AZ$4*-1*'PM2.5 reduction'!AZ128),9))","v":0.99997982699999999},{"$f":"VALUE(FIXED(EXP(BA$4*-1*'PM2.5 reduction'!BA128),9))","v":0.99997967099999996},{"$f":"VALUE(FIXED(EXP(BB$4*-1*'PM2.5 reduction'!BB128),9))","v":0.99998153599999995},{"$f":"VALUE(FIXED(EXP(BC$4*-1*'PM2.5 reduction'!BC128),9))","v":0.99999515900000002}]
[null,"Male 60-64",{"$f":"VALUE(FIXED(EXP(C$4*-1*'PM2.5 reduction'!C129),9))","v":0.99996580199999996},{"$f":"VALUE(FIXED(EXP(D$4*-1*'PM2.5 reduction'!D129),9))","v":0.99996968500000005},{"$f":"VALUE(FIXED(EXP(E$4*-1*'PM2.5 reduction'!E129),9))","v":0.99999019499999997},{"$f":"VALUE(FIXED(EXP(F$4*-1*'PM2.5 reduction'!F129),9))","v":0.99999210999999999},{"$f":"VALUE(FIXED(EXP(G$4*-1*'PM2.5 reduction'!G129),9))","v":0.99999613200000004},{"$f":"VALUE(FIXED(EXP(H$4*-1*'PM2.5 reduction'!H129),9))","v":0.99999057199999997},{"$f":"VALUE(FIXED(EXP(I$4*-1*'PM2.5 reduction'!I129),9))","v":0.99999276599999998},{"$f":"VALUE(FIXED(EXP(J$4*-1*'PM2.5 reduction'!J129),9))","v":0.99998480999999995},{"$f":"VALUE(FIXED(EXP(K$4*-1*'PM2.5 reduction'!K129),9))","v":0.999984965},{"$f":"VALUE(FIXED(EXP(L$4*-1*'PM2.5 reduction'!L129),9))","v":0.99999408499999998},{"$f":"VALUE(FIXED(EXP(M$4*-1*'PM2.5 reduction'!M129),9))","v":0.99999408499999998},{"$f":"VALUE(FIXED(EXP(N$4*-1*'PM2.5 reduction'!N129),9))","v":0.99997082199999998},{"$f":"VALUE(FIXED(EXP(O$4*-1*'PM2.5 reduction'!O129),9))","v":0.99999170699999995},{"$f":"VALUE(FIXED(EXP(P$4*-1*'PM2.5 reduction'!P129),9))","v":0.99997282200000004},{"$f":"VALUE(FIXED(EXP(Q$4*-1*'PM2.5 reduction'!Q129),9))","v":0.99998520300000004},{"$f":"VALUE(FIXED(EXP(R$4*-1*'PM2.5 reduction'!R129),9))","v":0.99998013100000005},{"$f":"VALUE(FIXED(EXP(S$4*-1*'PM2.5 reduction'!S129),9))","v":0.99997789699999995},{"$f":"VALUE(FIXED(EXP(T$4*-1*'PM2.5 reduction'!T129),9))","v":0.999960179},{"$f":"VALUE(FIXED(EXP(U$4*-1*'PM2.5 reduction'!U129),9))","v":0.99999515900000002},{"$f":"VALUE(FIXED(EXP(V$4*-1*'PM2.5 reduction'!V129),9))","v":0.99998075600000003},{"$f":"VALUE(FIXED(EXP(W$4*-1*'PM2.5 reduction'!W129),9))","v":0.999983599},{"$f":"VALUE(FIXED(EXP(X$4*-1*'PM2.5 reduction'!X129),9))","v":0.999983599},{"$f":"VALUE(FIXED(EXP(Y$4*-1*'PM2.5 reduction'!Y129),9))","v":0.99998211800000003},{"$f":"VALUE(FIXED(EXP(Z$4*-1*'PM2.5 reduction'!Z129),9))","v":0.99996614100000003},{"$f":"VALUE(FIXED(EXP(AA$4*-1*'PM2.5 reduction'!AA129),9))","v":0.99997584299999998},{"$f":"VALUE(FIXED(EXP(AB$4*-1*'PM2.5 reduction'!AB129),9))","v":0.99997390799999997},{"$f":"VALUE(FIXED(EXP(AC$4*-1*'PM2.5 reduction'!AC129),9))","v":0.99997255200000001},{"$f":"VALUE(FIXED(EXP(AD$4*-1*'PM2.5 reduction'!AD129),9))","v":0.99999420500000002},{"$f":"VALUE(FIXED(EXP(AE$4*-1*'PM2.5 reduction'!AE129),9))","v":0.99999363200000002},{"$f":"VALUE(FIXED(EXP(AF$4*-1*'PM2.5 reduction'!AF129),9))","v":0.99998286999999997},{"$f":"VALUE(FIXED(EXP(AG$4*-1*'PM2.5 reduction'!AG129),9))","v":0.99999363200000002},{"$f":"VALUE(FIXED(EXP(AH$4*-1*'PM2.5 reduction'!AH129),9))","v":0.99997920399999995},{"$f":"VALUE(FIXED(EXP(AI$4*-1*'PM2.5 reduction'!AI129),9))","v":0.99997391800000002},{"$f":"VALUE(FIXED(EXP(AJ$4*-1*'PM2.5 reduction'!AJ129),9))","v":0.99998294399999998},{"$f":"VALUE(FIXED(EXP(AK$4*-1*'PM2.5 reduction'!AK129),9))","v":0.99999255799999998},{"$f":"VALUE(FIXED(EXP(AL$4*-1*'PM2.5 reduction'!AL129),9))","v":0.99999009400000005},{"$f":"VALUE(FIXED(EXP(AM$4*-1*'PM2.5 reduction'!AM129),9))","v":0.99997764499999997},{"$f":"VALUE(FIXED(EXP(AN$4*-1*'PM2.5 reduction'!AN129),9))","v":0.99999361899999994},{"$f":"VALUE(FIXED(EXP(AO$4*-1*'PM2.5 reduction'!AO129),9))","v":0.99999361899999994},{"$f":"VALUE(FIXED(EXP(AP$4*-1*'PM2.5 reduction'!AP129),9))","v":0.99998597199999995},{"$f":"VALUE(FIXED(EXP(AQ$4*-1*'PM2.5 reduction'!AQ129),9))","v":0.99997980200000003},{"$f":"VALUE(FIXED(EXP(AR$4*-1*'PM2.5 reduction'!AR129),9))","v":0.99997907100000005},{"$f":"VALUE(FIXED(EXP(AS$4*-1*'PM2.5 reduction'!AS129),9))","v":0.99999276599999998},{"$f":"VALUE(FIXED(EXP(AT$4*-1*'PM2.5 reduction'!AT129),9))","v":1},{"$f":"VALUE(FIXED(EXP(AU$4*-1*'PM2.5 reduction'!AU129),9))","v":1},{"$f":"VALUE(FIXED(EXP(AV$4*-1*'PM2.5 reduction'!AV129),9))","v":0.99998960999999997},{"$f":"VALUE(FIXED(EXP(AW$4*-1*'PM2.5 reduction'!AW129),9))","v":0.99998094800000004},{"$f":"VALUE(FIXED(EXP(AX$4*-1*'PM2.5 reduction'!AX129),9))","v":0.99998464300000001},{"$f":"VALUE(FIXED(EXP(AY$4*-1*'PM2.5 reduction'!AY129),9))","v":0.99998229199999999},{"$f":"VALUE(FIXED(EXP(AZ$4*-1*'PM2.5 reduction'!AZ129),9))","v":0.99998061199999999},{"$f":"VALUE(FIXED(EXP(BA$4*-1*'PM2.5 reduction'!BA129),9))","v":0.99997973399999995},{"$f":"VALUE(FIXED(EXP(BB$4*-1*'PM2.5 reduction'!BB129),9))","v":0.999981699},{"$f":"VALUE(FIXED(EXP(BC$4*-1*'PM2.5 reduction'!BC129),9))","v":0.99999515900000002}]
[null,"Male 65-69",{"$f":"VALUE(FIXED(EXP(C$4*-1*'PM2.5 reduction'!C130),9))","v":0.99996505800000002},{"$f":"VALUE(FIXED(EXP(D$4*-1*'PM2.5 reduction'!D130),9))","v":0.99997030899999995},{"$f":"VALUE(FIXED(EXP(E$4*-1*'PM2.5 reduction'!E130),9))","v":0.99999023099999995},{"$f":"VALUE(FIXED(EXP(F$4*-1*'PM2.5 reduction'!F130),9))","v":0.999991988},{"$f":"VALUE(FIXED(EXP(G$4*-1*'PM2.5 reduction'!G130),9))","v":0.99999612000000004},{"$f":"VALUE(FIXED(EXP(H$4*-1*'PM2.5 reduction'!H130),9))","v":0.999990512},{"$f":"VALUE(FIXED(EXP(I$4*-1*'PM2.5 reduction'!I130),9))","v":0.99999299200000002},{"$f":"VALUE(FIXED(EXP(J$4*-1*'PM2.5 reduction'!J130),9))","v":0.99998455900000005},{"$f":"VALUE(FIXED(EXP(K$4*-1*'PM2.5 reduction'!K130),9))","v":0.99998486799999997},{"$f":"VALUE(FIXED(EXP(L$4*-1*'PM2.5 reduction'!L130),9))","v":0.99999339700000001},{"$f":"VALUE(FIXED(EXP(M$4*-1*'PM2.5 reduction'!M130),9))","v":0.99999339700000001},{"$f":"VALUE(FIXED(EXP(N$4*-1*'PM2.5 reduction'!N130),9))","v":0.99997088499999998},{"$f":"VALUE(FIXED(EXP(O$4*-1*'PM2.5 reduction'!O130),9))","v":0.99999159999999998},{"$f":"VALUE(FIXED(EXP(P$4*-1*'PM2.5 reduction'!P130),9))","v":0.99997284099999995},{"$f":"VALUE(FIXED(EXP(Q$4*-1*'PM2.5 reduction'!Q130),9))","v":0.99998562099999999},{"$f":"VALUE(FIXED(EXP(R$4*-1*'PM2.5 reduction'!R130),9))","v":0.99997999100000001},{"$f":"VALUE(FIXED(EXP(S$4*-1*'PM2.5 reduction'!S130),9))","v":0.99997892899999996},{"$f":"VALUE(FIXED(EXP(T$4*-1*'PM2.5 reduction'!T130),9))","v":0.99996170200000001},{"$f":"VALUE(FIXED(EXP(U$4*-1*'PM2.5 reduction'!U130),9))","v":0.99999515900000002},{"$f":"VALUE(FIXED(EXP(V$4*-1*'PM2.5 reduction'!V130),9))","v":0.999981334},{"$f":"VALUE(FIXED(EXP(W$4*-1*'PM2.5 reduction'!W130),9))","v":0.99998368400000004},{"$f":"VALUE(FIXED(EXP(X$4*-1*'PM2.5 reduction'!X130),9))","v":0.99998368400000004},{"$f":"VALUE(FIXED(EXP(Y$4*-1*'PM2.5 reduction'!Y130),9))","v":0.99998232300000001},{"$f":"VALUE(FIXED(EXP(Z$4*-1*'PM2.5 reduction'!Z130),9))","v":0.99996535399999997},{"$f":"VALUE(FIXED(EXP(AA$4*-1*'PM2.5 reduction'!AA130),9))","v":0.99997610000000003},{"$f":"VALUE(FIXED(EXP(AB$4*-1*'PM2.5 reduction'!AB130),9))","v":0.99997488999999995},{"$f":"VALUE(FIXED(EXP(AC$4*-1*'PM2.5 reduction'!AC130),9))","v":0.999972321},{"$f":"VALUE(FIXED(EXP(AD$4*-1*'PM2.5 reduction'!AD130),9))","v":0.99999386400000001},{"$f":"VALUE(FIXED(EXP(AE$4*-1*'PM2.5 reduction'!AE130),9))","v":0.99999325699999997},{"$f":"VALUE(FIXED(EXP(AF$4*-1*'PM2.5 reduction'!AF130),9))","v":0.99998214500000004},{"$f":"VALUE(FIXED(EXP(AG$4*-1*'PM2.5 reduction'!AG130),9))","v":0.99999325699999997},{"$f":"VALUE(FIXED(EXP(AH$4*-1*'PM2.5 reduction'!AH130),9))","v":0.99997968699999995},{"$f":"VALUE(FIXED(EXP(AI$4*-1*'PM2.5 reduction'!AI130),9))","v":0.99997519599999996},{"$f":"VALUE(FIXED(EXP(AJ$4*-1*'PM2.5 reduction'!AJ130),9))","v":0.99998288499999999},{"$f":"VALUE(FIXED(EXP(AK$4*-1*'PM2.5 reduction'!AK130),9))","v":0.99999245800000003},{"$f":"VALUE(FIXED(EXP(AL$4*-1*'PM2.5 reduction'!AL130),9))","v":0.99999002800000003},{"$f":"VALUE(FIXED(EXP(AM$4*-1*'PM2.5 reduction'!AM130),9))","v":0.99997795499999997},{"$f":"VALUE(FIXED(EXP(AN$4*-1*'PM2.5 reduction'!AN130),9))","v":0.99999353800000002},{"$f":"VALUE(FIXED(EXP(AO$4*-1*'PM2.5 reduction'!AO130),9))","v":0.99999353800000002},{"$f":"VALUE(FIXED(EXP(AP$4*-1*'PM2.5 reduction'!AP130),9))","v":0.99998599799999999},{"$f":"VALUE(FIXED(EXP(AQ$4*-1*'PM2.5 reduction'!AQ130),9))","v":0.99997940100000005},{"$f":"VALUE(FIXED(EXP(AR$4*-1*'PM2.5 reduction'!AR130),9))","v":0.99997966900000002},{"$f":"VALUE(FIXED(EXP(AS$4*-1*'PM2.5 reduction'!AS130),9))","v":0.99999299200000002},{"$f":"VALUE(FIXED(EXP(AT$4*-1*'PM2.5 reduction'!AT130),9))","v":1},{"$f":"VALUE(FIXED(EXP(AU$4*-1*'PM2.5 reduction'!AU130),9))","v":1},{"$f":"VALUE(FIXED(EXP(AV$4*-1*'PM2.5 reduction'!AV130),9))","v":0.99998972100000005},{"$f":"VALUE(FIXED(EXP(AW$4*-1*'PM2.5 reduction'!AW130),9))","v":0.99998159499999995},{"$f":"VALUE(FIXED(EXP(AX$4*-1*'PM2.5 reduction'!AX130),9))","v":0.99998426299999998},{"$f":"VALUE(FIXED(EXP(AY$4*-1*'PM2.5 reduction'!AY130),9))","v":0.99998214900000004},{"$f":"VALUE(FIXED(EXP(AZ$4*-1*'PM2.5 reduction'!AZ130),9))","v":0.99998009200000004},{"$f":"VALUE(FIXED(EXP(BA$4*-1*'PM2.5 reduction'!BA130),9))","v":0.99997919999999996},{"$f":"VALUE(FIXED(EXP(BB$4*-1*'PM2.5 reduction'!BB130),9))","v":0.99998168700000001},{"$f":"VALUE(FIXED(EXP(BC$4*-1*'PM2.5 reduction'!BC130),9))","v":0.99999515900000002}]
[null,"Male 70-74",{"$f":"VALUE(FIXED(EXP(C$4*-1*'PM2.5 reduction'!C131),9))","v":0.99996496899999998},{"$f":"VALUE(FIXED(EXP(D$4*-1*'PM2.5 reduction'!D131),9))","v":0.999971049},{"$f":"VALUE(FIXED(EXP(E$4*-1*'PM2.5 reduction'!E131),9))","v":0.99999021499999996},{"$f":"VALUE(FIXED(EXP(F$4*-1*'PM2.5 reduction'!F131),9))","v":0.99999199100000002},{"$f":"VALUE(FIXED(EXP(G$4*-1*'PM2.5 reduction'!G131),9))","v":0.99999600499999997},{"$f":"VALUE(FIXED(EXP(H$4*-1*'PM2.5 reduction'!H131),9))","v":0.99999051999999999},{"$f":"VALUE(FIXED(EXP(I$4*-1*'PM2.5 reduction'!I131),9))","v":0.99999258700000004},{"$f":"VALUE(FIXED(EXP(J$4*-1*'PM2.5 reduction'!J131),9))","v":0.99998494199999999},{"$f":"VALUE(FIXED(EXP(K$4*-1*'PM2.5 reduction'!K131),9))","v":0.99998530200000002},{"$f":"VALUE(FIXED(EXP(L$4*-1*'PM2.5 reduction'!L131),9))","v":0.99999348799999999},{"$f":"VALUE(FIXED(EXP(M$4*-1*'PM2.5 reduction'!M131),9))","v":0.99999348799999999},{"$f":"VALUE(FIXED(EXP(N$4*-1*'PM2.5 reduction'!N131),9))","v":0.99997124400000004},{"$f":"VALUE(FIXED(EXP(O$4*-1*'PM2.5 reduction'!O131),9))","v":0.99999163899999999},{"$f":"VALUE(FIXED(EXP(P$4*-1*'PM2.5 reduction'!P131),9))","v":0.99997272500000001},{"$f":"VALUE(FIXED(EXP(Q$4*-1*'PM2.5 reduction'!Q131),9))","v":0.99998569900000001},{"$f":"VALUE(FIXED(EXP(R$4*-1*'PM2.5 reduction'!R131),9))","v":0.99997959700000005},{"$f":"VALUE(FIXED(EXP(S$4*-1*'PM2.5 reduction'!S131),9))","v":0.99997896500000005},{"$f":"VALUE(FIXED(EXP(T$4*-1*'PM2.5 reduction'!T131),9))","v":0.99996187999999997},{"$f":"VALUE(FIXED(EXP(U$4*-1*'PM2.5 reduction'!U131),9))","v":0.99999515900000002},{"$f":"VALUE(FIXED(EXP(V$4*-1*'PM2.5 reduction'!V131),9))","v":0.999980706},{"$f":"VALUE(FIXED(EXP(W$4*-1*'PM2.5 reduction'!W131),9))","v":0.99998351500000004},{"$f":"VALUE(FIXED(EXP(X$4*-1*'PM2.5 reduction'!X131),9))","v":0.99998351500000004},{"$f":"VALUE(FIXED(EXP(Y$4*-1*'PM2.5 reduction'!Y131),9))","v":0.99998197600000005},{"$f":"VALUE(FIXED(EXP(Z$4*-1*'PM2.5 reduction'!Z131),9))","v":0.99996584600000005},{"$f":"VALUE(FIXED(EXP(AA$4*-1*'PM2.5 reduction'!AA131),9))","v":0.99997619999999998},{"$f":"VALUE(FIXED(EXP(AB$4*-1*'PM2.5 reduction'!AB131),9))","v":0.99997560699999999},{"$f":"VALUE(FIXED(EXP(AC$4*-1*'PM2.5 reduction'!AC131),9))","v":0.99997252299999995},{"$f":"VALUE(FIXED(EXP(AD$4*-1*'PM2.5 reduction'!AD131),9))","v":0.99999389599999999},{"$f":"VALUE(FIXED(EXP(AE$4*-1*'PM2.5 reduction'!AE131),9))","v":0.99999321799999996},{"$f":"VALUE(FIXED(EXP(AF$4*-1*'PM2.5 reduction'!AF131),9))","v":0.99998236200000001},{"$f":"VALUE(FIXED(EXP(AG$4*-1*'PM2.5 reduction'!AG131),9))","v":0.99999321799999996},{"$f":"VALUE(FIXED(EXP(AH$4*-1*'PM2.5 reduction'!AH131),9))","v":0.99997957500000001},{"$f":"VALUE(FIXED(EXP(AI$4*-1*'PM2.5 reduction'!AI131),9))","v":0.99997539999999996},{"$f":"VALUE(FIXED(EXP(AJ$4*-1*'PM2.5 reduction'!AJ131),9))","v":0.99998293400000005},{"$f":"VALUE(FIXED(EXP(AK$4*-1*'PM2.5 reduction'!AK131),9))","v":0.99999218000000001},{"$f":"VALUE(FIXED(EXP(AL$4*-1*'PM2.5 reduction'!AL131),9))","v":0.99998988200000005},{"$f":"VALUE(FIXED(EXP(AM$4*-1*'PM2.5 reduction'!AM131),9))","v":0.99997766799999999},{"$f":"VALUE(FIXED(EXP(AN$4*-1*'PM2.5 reduction'!AN131),9))","v":0.99999376699999998},{"$f":"VALUE(FIXED(EXP(AO$4*-1*'PM2.5 reduction'!AO131),9))","v":0.99999376699999998},{"$f":"VALUE(FIXED(EXP(AP$4*-1*'PM2.5 reduction'!AP131),9))","v":0.99998651599999999},{"$f":"VALUE(FIXED(EXP(AQ$4*-1*'PM2.5 reduction'!AQ131),9))","v":0.99997892700000002},{"$f":"VALUE(FIXED(EXP(AR$4*-1*'PM2.5 reduction'!AR131),9))","v":0.99997973100000004},{"$f":"VALUE(FIXED(EXP(AS$4*-1*'PM2.5 reduction'!AS131),9))","v":0.99999258700000004},{"$f":"VALUE(FIXED(EXP(AT$4*-1*'PM2.5 reduction'!AT131),9))","v":1},{"$f":"VALUE(FIXED(EXP(AU$4*-1*'PM2.5 reduction'!AU131),9))","v":1},{"$f":"VALUE(FIXED(EXP(AV$4*-1*'PM2.5 reduction'!AV131),9))","v":0.999989821},{"$f":"VALUE(FIXED(EXP(AW$4*-1*'PM2.5 reduction'!AW131),9))","v":0.99998165500000002},{"$f":"VALUE(FIXED(EXP(AX$4*-1*'PM2.5 reduction'!AX131),9))","v":0.99998454699999995},{"$f":"VALUE(FIXED(EXP(AY$4*-1*'PM2.5 reduction'!AY131),9))","v":0.99998216699999998},{"$f":"VALUE(FIXED(EXP(AZ$4*-1*'PM2.5 reduction'!AZ131),9))","v":0.99998034099999999},{"$f":"VALUE(FIXED(EXP(BA$4*-1*'PM2.5 reduction'!BA131),9))","v":0.99997856200000002},{"$f":"VALUE(FIXED(EXP(BB$4*-1*'PM2.5 reduction'!BB131),9))","v":0.99998159399999997},{"$f":"VALUE(FIXED(EXP(BC$4*-1*'PM2.5 reduction'!BC131),9))","v":0.99999515900000002}]
[null,"Male 75-79",{"$f":"VALUE(FIXED(EXP(C$4*-1*'PM2.5 reduction'!C132),9))","v":0.99996426900000002},{"$f":"VALUE(FIXED(EXP(D$4*-1*'PM2.5 reduction'!D132),9))","v":0.99996976900000001},{"$f":"VALUE(FIXED(EXP(E$4*-1*'PM2.5 reduction'!E132),9))","v":0.999989448},{"$f":"VALUE(FIXED(EXP(F$4*-1*'PM2.5 reduction'!F132),9))","v":0.99999218599999995},{"$f":"VALUE(FIXED(EXP(G$4*-1*'PM2.5 reduction'!G132),9))","v":0.99999593899999994},{"$f":"VALUE(FIXED(EXP(H$4*-1*'PM2.5 reduction'!H132),9))","v":0.99999022699999995},{"$f":"VALUE(FIXED(EXP(I$4*-1*'PM2.5 reduction'!I132),9))","v":0.99999278400000002},{"$f":"VALUE(FIXED(EXP(J$4*-1*'PM2.5 reduction'!J132),9))","v":0.99998502899999997},{"$f":"VALUE(FIXED(EXP(K$4*-1*'PM2.5 reduction'!K132),9))","v":0.99998599600000004},{"$f":"VALUE(FIXED(EXP(L$4*-1*'PM2.5 reduction'!L132),9))","v":0.99999314699999997},{"$f":"VALUE(FIXED(EXP(M$4*-1*'PM2.5 reduction'!M132),9))","v":0.99999314699999997},{"$f":"VALUE(FIXED(EXP(N$4*-1*'PM2.5 reduction'!N132),9))","v":0.99997192199999996},{"$f":"VALUE(FIXED(EXP(O$4*-1*'PM2.5 reduction'!O132),9))","v":0.999991136},{"$f":"VALUE(FIXED(EXP(P$4*-1*'PM2.5 reduction'!P132),9))","v":0.99997336800000003},{"$f":"VALUE(FIXED(EXP(Q$4*-1*'PM2.5 reduction'!Q132),9))","v":0.99998589500000001},{"$f":"VALUE(FIXED(EXP(R$4*-1*'PM2.5 reduction'!R132),9))","v":0.99998020499999996},{"$f":"VALUE(FIXED(EXP(S$4*-1*'PM2.5 reduction'!S132),9))","v":0.99997914600000004},{"$f":"VALUE(FIXED(EXP(T$4*-1*'PM2.5 reduction'!T132),9))","v":0.99996206700000001},{"$f":"VALUE(FIXED(EXP(U$4*-1*'PM2.5 reduction'!U132),9))","v":0.99999515900000002},{"$f":"VALUE(FIXED(EXP(V$4*-1*'PM2.5 reduction'!V132),9))","v":0.99998088600000001},{"$f":"VALUE(FIXED(EXP(W$4*-1*'PM2.5 reduction'!W132),9))","v":0.99998334600000005},{"$f":"VALUE(FIXED(EXP(X$4*-1*'PM2.5 reduction'!X132),9))","v":0.99998334600000005},{"$f":"VALUE(FIXED(EXP(Y$4*-1*'PM2.5 reduction'!Y132),9))","v":0.99998218100000003},{"$f":"VALUE(FIXED(EXP(Z$4*-1*'PM2.5 reduction'!Z132),9))","v":0.99996621600000002},{"$f":"VALUE(FIXED(EXP(AA$4*-1*'PM2.5 reduction'!AA132),9))","v":0.99997614999999995},{"$f":"VALUE(FIXED(EXP(AB$4*-1*'PM2.5 reduction'!AB132),9))","v":0.99997414900000003},{"$f":"VALUE(FIXED(EXP(AC$4*-1*'PM2.5 reduction'!AC132),9))","v":0.99997311099999997},{"$f":"VALUE(FIXED(EXP(AD$4*-1*'PM2.5 reduction'!AD132),9))","v":0.99999362400000003},{"$f":"VALUE(FIXED(EXP(AE$4*-1*'PM2.5 reduction'!AE132),9))","v":0.99999302499999998},{"$f":"VALUE(FIXED(EXP(AF$4*-1*'PM2.5 reduction'!AF132),9))","v":0.99998316799999998},{"$f":"VALUE(FIXED(EXP(AG$4*-1*'PM2.5 reduction'!AG132),9))","v":0.99999302499999998},{"$f":"VALUE(FIXED(EXP(AH$4*-1*'PM2.5 reduction'!AH132),9))","v":0.99997910099999998},{"$f":"VALUE(FIXED(EXP(AI$4*-1*'PM2.5 reduction'!AI132),9))","v":0.99997573799999995},{"$f":"VALUE(FIXED(EXP(AJ$4*-1*'PM2.5 reduction'!AJ132),9))","v":0.999983654},{"$f":"VALUE(FIXED(EXP(AK$4*-1*'PM2.5 reduction'!AK132),9))","v":0.99999190900000001},{"$f":"VALUE(FIXED(EXP(AL$4*-1*'PM2.5 reduction'!AL132),9))","v":0.99998970099999995},{"$f":"VALUE(FIXED(EXP(AM$4*-1*'PM2.5 reduction'!AM132),9))","v":0.99997789000000004},{"$f":"VALUE(FIXED(EXP(AN$4*-1*'PM2.5 reduction'!AN132),9))","v":0.99999384300000005},{"$f":"VALUE(FIXED(EXP(AO$4*-1*'PM2.5 reduction'!AO132),9))","v":0.99999384300000005},{"$f":"VALUE(FIXED(EXP(AP$4*-1*'PM2.5 reduction'!AP132),9))","v":0.99998615899999999},{"$f":"VALUE(FIXED(EXP(AQ$4*-1*'PM2.5 reduction'!AQ132),9))","v":0.99997956200000004},{"$f":"VALUE(FIXED(EXP(AR$4*-1*'PM2.5 reduction'!AR132),9))","v":0.99997961099999999},{"$f":"VALUE(FIXED(EXP(AS$4*-1*'PM2.5 reduction'!AS132),9))","v":0.99999278400000002},{"$f":"VALUE(FIXED(EXP(AT$4*-1*'PM2.5 reduction'!AT132),9))","v":1},{"$f":"VALUE(FIXED(EXP(AU$4*-1*'PM2.5 reduction'!AU132),9))","v":1},{"$f":"VALUE(FIXED(EXP(AV$4*-1*'PM2.5 reduction'!AV132),9))","v":0.99998960599999998},{"$f":"VALUE(FIXED(EXP(AW$4*-1*'PM2.5 reduction'!AW132),9))","v":0.99998044200000002},{"$f":"VALUE(FIXED(EXP(AX$4*-1*'PM2.5 reduction'!AX132),9))","v":0.99998415699999998},{"$f":"VALUE(FIXED(EXP(AY$4*-1*'PM2.5 reduction'!AY132),9))","v":0.99998201499999995},{"$f":"VALUE(FIXED(EXP(AZ$4*-1*'PM2.5 reduction'!AZ132),9))","v":0.99998042099999995},{"$f":"VALUE(FIXED(EXP(BA$4*-1*'PM2.5 reduction'!BA132),9))","v":0.99997901700000003},{"$f":"VALUE(FIXED(EXP(BB$4*-1*'PM2.5 reduction'!BB132),9))","v":0.99998135499999996},{"$f":"VALUE(FIXED(EXP(BC$4*-1*'PM2.5 reduction'!BC132),9))","v":0.99999515900000002}]
[null,"Male 80-84",{"$f":"VALUE(FIXED(EXP(C$4*-1*'PM2.5 reduction'!C133),9))","v":0.99996426000000005},{"$f":"VALUE(FIXED(EXP(D$4*-1*'PM2.5 reduction'!D133),9))","v":0.99997017899999996},{"$f":"VALUE(FIXED(EXP(E$4*-1*'PM2.5 reduction'!E133),9))","v":0.99998970499999995},{"$f":"VALUE(FIXED(EXP(F$4*-1*'PM2.5 reduction'!F133),9))","v":0.99999194300000005},{"$f":"VALUE(FIXED(EXP(G$4*-1*'PM2.5 reduction'!G133),9))","v":0.99999617500000004},{"$f":"VALUE(FIXED(EXP(H$4*-1*'PM2.5 reduction'!H133),9))","v":0.99999019899999997},{"$f":"VALUE(FIXED(EXP(I$4*-1*'PM2.5 reduction'!I133),9))","v":0.99999276000000004},{"$f":"VALUE(FIXED(EXP(J$4*-1*'PM2.5 reduction'!J133),9))","v":0.99998589000000004},{"$f":"VALUE(FIXED(EXP(K$4*-1*'PM2.5 reduction'!K133),9))","v":0.99998736600000004},{"$f":"VALUE(FIXED(EXP(L$4*-1*'PM2.5 reduction'!L133),9))","v":0.99999329199999998},{"$f":"VALUE(FIXED(EXP(M$4*-1*'PM2.5 reduction'!M133),9))","v":0.99999329199999998},{"$f":"VALUE(FIXED(EXP(N$4*-1*'PM2.5 reduction'!N133),9))","v":0.99997200600000002},{"$f":"VALUE(FIXED(EXP(O$4*-1*'PM2.5 reduction'!O133),9))","v":0.99999074300000002},{"$f":"VALUE(FIXED(EXP(P$4*-1*'PM2.5 reduction'!P133),9))","v":0.99997292199999999},{"$f":"VALUE(FIXED(EXP(Q$4*-1*'PM2.5 reduction'!Q133),9))","v":0.99998468299999999},{"$f":"VALUE(FIXED(EXP(R$4*-1*'PM2.5 reduction'!R133),9))","v":0.99998030000000004},{"$f":"VALUE(FIXED(EXP(S$4*-1*'PM2.5 reduction'!S133),9))","v":0.99997896600000002},{"$f":"VALUE(FIXED(EXP(T$4*-1*'PM2.5 reduction'!T133),9))","v":0.99996226300000002},{"$f":"VALUE(FIXED(EXP(U$4*-1*'PM2.5 reduction'!U133),9))","v":0.99999515900000002},{"$f":"VALUE(FIXED(EXP(V$4*-1*'PM2.5 reduction'!V133),9))","v":0.99998083599999998},{"$f":"VALUE(FIXED(EXP(W$4*-1*'PM2.5 reduction'!W133),9))","v":0.99998342200000001},{"$f":"VALUE(FIXED(EXP(X$4*-1*'PM2.5 reduction'!X133),9))","v":0.99998342200000001},{"$f":"VALUE(FIXED(EXP(Y$4*-1*'PM2.5 reduction'!Y133),9))","v":0.99998231299999996},{"$f":"VALUE(FIXED(EXP(Z$4*-1*'PM2.5 reduction'!Z133),9))","v":0.99996543400000004},{"$f":"VALUE(FIXED(EXP(AA$4*-1*'PM2.5 reduction'!AA133),9))","v":0.99997587300000002},{"$f":"VALUE(FIXED(EXP(AB$4*-1*'PM2.5 reduction'!AB133),9))","v":0.99997445399999996},{"$f":"VALUE(FIXED(EXP(AC$4*-1*'PM2.5 reduction'!AC133),9))","v":0.99997281800000004},{"$f":"VALUE(FIXED(EXP(AD$4*-1*'PM2.5 reduction'!AD133),9))","v":0.99999404000000003},{"$f":"VALUE(FIXED(EXP(AE$4*-1*'PM2.5 reduction'!AE133),9))","v":0.99999329100000001},{"$f":"VALUE(FIXED(EXP(AF$4*-1*'PM2.5 reduction'!AF133),9))","v":0.99998330499999999},{"$f":"VALUE(FIXED(EXP(AG$4*-1*'PM2.5 reduction'!AG133),9))","v":0.99999329100000001},{"$f":"VALUE(FIXED(EXP(AH$4*-1*'PM2.5 reduction'!AH133),9))","v":0.99997893900000001},{"$f":"VALUE(FIXED(EXP(AI$4*-1*'PM2.5 reduction'!AI133),9))","v":0.99997533500000002},{"$f":"VALUE(FIXED(EXP(AJ$4*-1*'PM2.5 reduction'!AJ133),9))","v":0.99998366299999997},{"$f":"VALUE(FIXED(EXP(AK$4*-1*'PM2.5 reduction'!AK133),9))","v":0.99999269099999999},{"$f":"VALUE(FIXED(EXP(AL$4*-1*'PM2.5 reduction'!AL133),9))","v":0.99998990200000004},{"$f":"VALUE(FIXED(EXP(AM$4*-1*'PM2.5 reduction'!AM133),9))","v":0.99997792600000002},{"$f":"VALUE(FIXED(EXP(AN$4*-1*'PM2.5 reduction'!AN133),9))","v":0.999993994},{"$f":"VALUE(FIXED(EXP(AO$4*-1*'PM2.5 reduction'!AO133),9))","v":0.999993994},{"$f":"VALUE(FIXED(EXP(AP$4*-1*'PM2.5 reduction'!AP133),9))","v":0.99998520499999999},{"$f":"VALUE(FIXED(EXP(AQ$4*-1*'PM2.5 reduction'!AQ133),9))","v":0.999980062},{"$f":"VALUE(FIXED(EXP(AR$4*-1*'PM2.5 reduction'!AR133),9))","v":0.99997949200000003},{"$f":"VALUE(FIXED(EXP(AS$4*-1*'PM2.5 reduction'!AS133),9))","v":0.99999276000000004},{"$f":"VALUE(FIXED(EXP(AT$4*-1*'PM2.5 reduction'!AT133),9))","v":1},{"$f":"VALUE(FIXED(EXP(AU$4*-1*'PM2.5 reduction'!AU133),9))","v":1},{"$f":"VALUE(FIXED(EXP(AV$4*-1*'PM2.5 reduction'!AV133),9))","v":0.99998979399999999},{"$f":"VALUE(FIXED(EXP(AW$4*-1*'PM2.5 reduction'!AW133),9))","v":0.99998007099999997},{"$f":"VALUE(FIXED(EXP(AX$4*-1*'PM2.5 reduction'!AX133),9))","v":0.99998474199999998},{"$f":"VALUE(FIXED(EXP(AY$4*-1*'PM2.5 reduction'!AY133),9))","v":0.99998210899999995},{"$f":"VALUE(FIXED(EXP(AZ$4*-1*'PM2.5 reduction'!AZ133),9))","v":0.99998056800000001},{"$f":"VALUE(FIXED(EXP(BA$4*-1*'PM2.5 reduction'!BA133),9))","v":0.99997928400000002},{"$f":"VALUE(FIXED(EXP(BB$4*-1*'PM2.5 reduction'!BB133),9))","v":0.99998183399999996},{"$f":"VALUE(FIXED(EXP(BC$4*-1*'PM2.5 reduction'!BC133),9))","v":0.99999515900000002}]
[null,"Male 85-89",{"$f":"VALUE(FIXED(EXP(C$4*-1*'PM2.5 reduction'!C134),9))","v":0.99996619099999995},{"$f":"VALUE(FIXED(EXP(D$4*-1*'PM2.5 reduction'!D134),9))","v":0.99997100000000005},{"$f":"VALUE(FIXED(EXP(E$4*-1*'PM2.5 reduction'!E134),9))","v":0.99998939099999995},{"$f":"VALUE(FIXED(EXP(F$4*-1*'PM2.5 reduction'!F134),9))","v":0.99999209300000003},{"$f":"VALUE(FIXED(EXP(G$4*-1*'PM2.5 reduction'!G134),9))","v":0.99999588100000003},{"$f":"VALUE(FIXED(EXP(H$4*-1*'PM2.5 reduction'!H134),9))","v":0.99998938000000004},{"$f":"VALUE(FIXED(EXP(I$4*-1*'PM2.5 reduction'!I134),9))","v":0.999992455},{"$f":"VALUE(FIXED(EXP(J$4*-1*'PM2.5 reduction'!J134),9))","v":0.99998447599999996},{"$f":"VALUE(FIXED(EXP(K$4*-1*'PM2.5 reduction'!K134),9))","v":0.99998524200000005},{"$f":"VALUE(FIXED(EXP(L$4*-1*'PM2.5 reduction'!L134),9))","v":0.99999303299999998},{"$f":"VALUE(FIXED(EXP(M$4*-1*'PM2.5 reduction'!M134),9))","v":0.99999303299999998},{"$f":"VALUE(FIXED(EXP(N$4*-1*'PM2.5 reduction'!N134),9))","v":0.99997157199999998},{"$f":"VALUE(FIXED(EXP(O$4*-1*'PM2.5 reduction'!O134),9))","v":0.99999020500000002},{"$f":"VALUE(FIXED(EXP(P$4*-1*'PM2.5 reduction'!P134),9))","v":0.99997407400000005},{"$f":"VALUE(FIXED(EXP(Q$4*-1*'PM2.5 reduction'!Q134),9))","v":0.99998487700000005},{"$f":"VALUE(FIXED(EXP(R$4*-1*'PM2.5 reduction'!R134),9))","v":0.99997898299999999},{"$f":"VALUE(FIXED(EXP(S$4*-1*'PM2.5 reduction'!S134),9))","v":0.99997924400000004},{"$f":"VALUE(FIXED(EXP(T$4*-1*'PM2.5 reduction'!T134),9))","v":0.99996199799999996},{"$f":"VALUE(FIXED(EXP(U$4*-1*'PM2.5 reduction'!U134),9))","v":0.99999515900000002},{"$f":"VALUE(FIXED(EXP(V$4*-1*'PM2.5 reduction'!V134),9))","v":0.99998015699999998},{"$f":"VALUE(FIXED(EXP(W$4*-1*'PM2.5 reduction'!W134),9))","v":0.999983328},{"$f":"VALUE(FIXED(EXP(X$4*-1*'PM2.5 reduction'!X134),9))","v":0.999983328},{"$f":"VALUE(FIXED(EXP(Y$4*-1*'PM2.5 reduction'!Y134),9))","v":0.99998144300000003},{"$f":"VALUE(FIXED(EXP(Z$4*-1*'PM2.5 reduction'!Z134),9))","v":0.99996580800000001},{"$f":"VALUE(FIXED(EXP(AA$4*-1*'PM2.5 reduction'!AA134),9))","v":0.99997570300000005},{"$f":"VALUE(FIXED(EXP(AB$4*-1*'PM2.5 reduction'!AB134),9))","v":0.99997487799999996},{"$f":"VALUE(FIXED(EXP(AC$4*-1*'PM2.5 reduction'!AC134),9))","v":0.99997259100000002},{"$f":"VALUE(FIXED(EXP(AD$4*-1*'PM2.5 reduction'!AD134),9))","v":0.99999340299999995},{"$f":"VALUE(FIXED(EXP(AE$4*-1*'PM2.5 reduction'!AE134),9))","v":0.99999269199999996},{"$f":"VALUE(FIXED(EXP(AF$4*-1*'PM2.5 reduction'!AF134),9))","v":0.999982178},{"$f":"VALUE(FIXED(EXP(AG$4*-1*'PM2.5 reduction'!AG134),9))","v":0.99999269199999996},{"$f":"VALUE(FIXED(EXP(AH$4*-1*'PM2.5 reduction'!AH134),9))","v":0.99997884699999995},{"$f":"VALUE(FIXED(EXP(AI$4*-1*'PM2.5 reduction'!AI134),9))","v":0.99997482900000001},{"$f":"VALUE(FIXED(EXP(AJ$4*-1*'PM2.5 reduction'!AJ134),9))","v":0.99998345200000005},{"$f":"VALUE(FIXED(EXP(AK$4*-1*'PM2.5 reduction'!AK134),9))","v":0.99999208299999998},{"$f":"VALUE(FIXED(EXP(AL$4*-1*'PM2.5 reduction'!AL134),9))","v":0.99999001600000004},{"$f":"VALUE(FIXED(EXP(AM$4*-1*'PM2.5 reduction'!AM134),9))","v":0.99997740899999998},{"$f":"VALUE(FIXED(EXP(AN$4*-1*'PM2.5 reduction'!AN134),9))","v":0.99999354600000001},{"$f":"VALUE(FIXED(EXP(AO$4*-1*'PM2.5 reduction'!AO134),9))","v":0.99999354600000001},{"$f":"VALUE(FIXED(EXP(AP$4*-1*'PM2.5 reduction'!AP134),9))","v":0.999986182},{"$f":"VALUE(FIXED(EXP(AQ$4*-1*'PM2.5 reduction'!AQ134),9))","v":0.99998045700000004},{"$f":"VALUE(FIXED(EXP(AR$4*-1*'PM2.5 reduction'!AR134),9))","v":0.99997955699999996},{"$f":"VALUE(FIXED(EXP(AS$4*-1*'PM2.5 reduction'!AS134),9))","v":0.999992455},{"$f":"VALUE(FIXED(EXP(AT$4*-1*'PM2.5 reduction'!AT134),9))","v":1},{"$f":"VALUE(FIXED(EXP(AU$4*-1*'PM2.5 reduction'!AU134),9))","v":1},{"$f":"VALUE(FIXED(EXP(AV$4*-1*'PM2.5 reduction'!AV134),9))","v":0.99998791799999998},{"$f":"VALUE(FIXED(EXP(AW$4*-1*'PM2.5 reduction'!AW134),9))","v":0.99998039299999997},{"$f":"VALUE(FIXED(EXP(AX$4*-1*'PM2.5 reduction'!AX134),9))","v":0.99998389399999998},{"$f":"VALUE(FIXED(EXP(AY$4*-1*'PM2.5 reduction'!AY134),9))","v":0.99998219700000002},{"$f":"VALUE(FIXED(EXP(AZ$4*-1*'PM2.5 reduction'!AZ134),9))","v":0.99998086200000003},{"$f":"VALUE(FIXED(EXP(BA$4*-1*'PM2.5 reduction'!BA134),9))","v":0.99997894399999998},{"$f":"VALUE(FIXED(EXP(BB$4*-1*'PM2.5 reduction'!BB134),9))","v":0.99998152799999995},{"$f":"VALUE(FIXED(EXP(BC$4*-1*'PM2.5 reduction'!BC134),9))","v":0.99999515900000002}]
[null,"Male 90+",{"$f":"VALUE(FIXED(EXP(C$4*-1*'PM2.5 reduction'!C135),9))","v":0.99996741099999997},{"$f":"VALUE(FIXED(EXP(D$4*-1*'PM2.5 reduction'!D135),9))","v":0.99997332699999997},{"$f":"VALUE(FIXED(EXP(E$4*-1*'PM2.5 reduction'!E135),9))","v":0.99999048400000001},{"$f":"VALUE(FIXED(EXP(F$4*-1*'PM2.5 reduction'!F135),9))","v":0.99999211600000004},{"$f":"VALUE(FIXED(EXP(G$4*-1*'PM2.5 reduction'!G135),9))","v":0.99999608799999995},{"$f":"VALUE(FIXED(EXP(H$4*-1*'PM2.5 reduction'!H135),9))","v":0.99998816000000001},{"$f":"VALUE(FIXED(EXP(I$4*-1*'PM2.5 reduction'!I135),9))","v":0.99999354799999995},{"$f":"VALUE(FIXED(EXP(J$4*-1*'PM2.5 reduction'!J135),9))","v":0.99998826200000002},{"$f":"VALUE(FIXED(EXP(K$4*-1*'PM2.5 reduction'!K135),9))","v":0.99998883299999997},{"$f":"VALUE(FIXED(EXP(L$4*-1*'PM2.5 reduction'!L135),9))","v":0.99999230800000005},{"$f":"VALUE(FIXED(EXP(M$4*-1*'PM2.5 reduction'!M135),9))","v":0.99999230800000005},{"$f":"VALUE(FIXED(EXP(N$4*-1*'PM2.5 reduction'!N135),9))","v":0.999970896},{"$f":"VALUE(FIXED(EXP(O$4*-1*'PM2.5 reduction'!O135),9))","v":0.99998904700000002},{"$f":"VALUE(FIXED(EXP(P$4*-1*'PM2.5 reduction'!P135),9))","v":0.99997334999999998},{"$f":"VALUE(FIXED(EXP(Q$4*-1*'PM2.5 reduction'!Q135),9))","v":0.99998676900000005},{"$f":"VALUE(FIXED(EXP(R$4*-1*'PM2.5 reduction'!R135),9))","v":0.99997598300000001},{"$f":"VALUE(FIXED(EXP(S$4*-1*'PM2.5 reduction'!S135),9))","v":0.99997687499999999},{"$f":"VALUE(FIXED(EXP(T$4*-1*'PM2.5 reduction'!T135),9))","v":0.99995843100000004},{"$f":"VALUE(FIXED(EXP(U$4*-1*'PM2.5 reduction'!U135),9))","v":0.99999515900000002},{"$f":"VALUE(FIXED(EXP(V$4*-1*'PM2.5 reduction'!V135),9))","v":0.99998136900000001},{"$f":"VALUE(FIXED(EXP(W$4*-1*'PM2.5 reduction'!W135),9))","v":0.99998229299999997},{"$f":"VALUE(FIXED(EXP(X$4*-1*'PM2.5 reduction'!X135),9))","v":0.99998229299999997},{"$f":"VALUE(FIXED(EXP(Y$4*-1*'PM2.5 reduction'!Y135),9))","v":0.99998334799999999},{"$f":"VALUE(FIXED(EXP(Z$4*-1*'PM2.5 reduction'!Z135),9))","v":0.999966735},{"$f":"VALUE(FIXED(EXP(AA$4*-1*'PM2.5 reduction'!AA135),9))","v":0.99997514399999998},{"$f":"VALUE(FIXED(EXP(AB$4*-1*'PM2.5 reduction'!AB135),9))","v":0.99997685700000005},{"$f":"VALUE(FIXED(EXP(AC$4*-1*'PM2.5 reduction'!AC135),9))","v":0.99997225899999997},{"$f":"VALUE(FIXED(EXP(AD$4*-1*'PM2.5 reduction'!AD135),9))","v":0.99999370399999998},{"$f":"VALUE(FIXED(EXP(AE$4*-1*'PM2.5 reduction'!AE135),9))","v":0.99999313400000001},{"$f":"VALUE(FIXED(EXP(AF$4*-1*'PM2.5 reduction'!AF135),9))","v":0.99998451300000002},{"$f":"VALUE(FIXED(EXP(AG$4*-1*'PM2.5 reduction'!AG135),9))","v":0.99999313400000001},{"$f":"VALUE(FIXED(EXP(AH$4*-1*'PM2.5 reduction'!AH135),9))","v":0.99997869299999997},{"$f":"VALUE(FIXED(EXP(AI$4*-1*'PM2.5 reduction'!AI135),9))","v":0.99997224699999998},{"$f":"VALUE(FIXED(EXP(AJ$4*-1*'PM2.5 reduction'!AJ135),9))","v":0.99998302500000003},{"$f":"VALUE(FIXED(EXP(AK$4*-1*'PM2.5 reduction'!AK135),9))","v":0.99999274000000005},{"$f":"VALUE(FIXED(EXP(AL$4*-1*'PM2.5 reduction'!AL135),9))","v":0.99998965100000003},{"$f":"VALUE(FIXED(EXP(AM$4*-1*'PM2.5 reduction'!AM135),9))","v":0.99997621199999998},{"$f":"VALUE(FIXED(EXP(AN$4*-1*'PM2.5 reduction'!AN135),9))","v":0.99999417800000001},{"$f":"VALUE(FIXED(EXP(AO$4*-1*'PM2.5 reduction'!AO135),9))","v":0.99999417800000001},{"$f":"VALUE(FIXED(EXP(AP$4*-1*'PM2.5 reduction'!AP135),9))","v":0.99998555300000003},{"$f":"VALUE(FIXED(EXP(AQ$4*-1*'PM2.5 reduction'!AQ135),9))","v":0.99997855099999999},{"$f":"VALUE(FIXED(EXP(AR$4*-1*'PM2.5 reduction'!AR135),9))","v":0.99997901600000005},{"$f":"VALUE(FIXED(EXP(AS$4*-1*'PM2.5 reduction'!AS135),9))","v":0.99999354799999995},{"$f":"VALUE(FIXED(EXP(AT$4*-1*'PM2.5 reduction'!AT135),9))","v":1},{"$f":"VALUE(FIXED(EXP(AU$4*-1*'PM2.5 reduction'!AU135),9))","v":1},{"$f":"VALUE(FIXED(EXP(AV$4*-1*'PM2.5 reduction'!AV135),9))","v":0.99998595499999998},{"$f":"VALUE(FIXED(EXP(AW$4*-1*'PM2.5 reduction'!AW135),9))","v":0.99998113399999999},{"$f":"VALUE(FIXED(EXP(AX$4*-1*'PM2.5 reduction'!AX135),9))","v":0.99998765199999995},{"$f":"VALUE(FIXED(EXP(AY$4*-1*'PM2.5 reduction'!AY135),9))","v":0.99998140300000005},{"$f":"VALUE(FIXED(EXP(AZ$4*-1*'PM2.5 reduction'!AZ135),9))","v":0.99998044699999999},{"$f":"VALUE(FIXED(EXP(BA$4*-1*'PM2.5 reduction'!BA135),9))","v":0.99997862100000001},{"$f":"VALUE(FIXED(EXP(BB$4*-1*'PM2.5 reduction'!BB135),9))","v":0.99998166799999999},{"$f":"VALUE(FIXED(EXP(BC$4*-1*'PM2.5 reduction'!BC135),9))","v":0.99999515900000002}]
["SIMD Q3","Female 0-4",{"$f":"VALUE(FIXED(EXP(C$4*-1*'PM2.5 reduction'!C136),9))","v":0.99996242999999996},{"$f":"VALUE(FIXED(EXP(D$4*-1*'PM2.5 reduction'!D136),9))","v":0.99997774100000003},{"$f":"VALUE(FIXED(EXP(E$4*-1*'PM2.5 reduction'!E136),9))","v":0.99999384700000005},{"$f":"VALUE(FIXED(EXP(F$4*-1*'PM2.5 reduction'!F136),9))","v":0.99999214999999997},{"$f":"VALUE(FIXED(EXP(G$4*-1*'PM2.5 reduction'!G136),9))","v":0.99999661399999995},{"$f":"VALUE(FIXED(EXP(H$4*-1*'PM2.5 reduction'!H136),9))","v":0.99998901399999995},{"$f":"VALUE(FIXED(EXP(I$4*-1*'PM2.5 reduction'!I136),9))","v":0.99999490599999996},{"$f":"VALUE(FIXED(EXP(J$4*-1*'PM2.5 reduction'!J136),9))","v":0.99999049500000003},{"$f":"VALUE(FIXED(EXP(K$4*-1*'PM2.5 reduction'!K136),9))","v":0.99998997700000003},{"$f":"VALUE(FIXED(EXP(L$4*-1*'PM2.5 reduction'!L136),9))","v":0.99999370899999995},{"$f":"VALUE(FIXED(EXP(M$4*-1*'PM2.5 reduction'!M136),9))","v":0.99999370899999995},{"$f":"VALUE(FIXED(EXP(N$4*-1*'PM2.5 reduction'!N136),9))","v":0.99996897200000001},{"$f":"VALUE(FIXED(EXP(O$4*-1*'PM2.5 reduction'!O136),9))","v":0.99998993599999997},{"$f":"VALUE(FIXED(EXP(P$4*-1*'PM2.5 reduction'!P136),9))","v":0.99997503700000001},{"$f":"VALUE(FIXED(EXP(Q$4*-1*'PM2.5 reduction'!Q136),9))","v":0.99998738200000004},{"$f":"VALUE(FIXED(EXP(R$4*-1*'PM2.5 reduction'!R136),9))","v":0.99997787699999996},{"$f":"VALUE(FIXED(EXP(S$4*-1*'PM2.5 reduction'!S136),9))","v":0.999977169},{"$f":"VALUE(FIXED(EXP(T$4*-1*'PM2.5 reduction'!T136),9))","v":0.99996047700000001},{"$f":"VALUE(FIXED(EXP(U$4*-1*'PM2.5 reduction'!U136),9))","v":0.99999554400000001},{"$f":"VALUE(FIXED(EXP(V$4*-1*'PM2.5 reduction'!V136),9))","v":0.99998082799999999},{"$f":"VALUE(FIXED(EXP(W$4*-1*'PM2.5 reduction'!W136),9))","v":0.99998436899999998},{"$f":"VALUE(FIXED(EXP(X$4*-1*'PM2.5 reduction'!X136),9))","v":0.99998436899999998},{"$f":"VALUE(FIXED(EXP(Y$4*-1*'PM2.5 reduction'!Y136),9))","v":0.99998421500000001},{"$f":"VALUE(FIXED(EXP(Z$4*-1*'PM2.5 reduction'!Z136),9))","v":0.99996233800000001},{"$f":"VALUE(FIXED(EXP(AA$4*-1*'PM2.5 reduction'!AA136),9))","v":0.99997328600000002},{"$f":"VALUE(FIXED(EXP(AB$4*-1*'PM2.5 reduction'!AB136),9))","v":0.99998074299999995},{"$f":"VALUE(FIXED(EXP(AC$4*-1*'PM2.5 reduction'!AC136),9))","v":0.99996939900000004},{"$f":"VALUE(FIXED(EXP(AD$4*-1*'PM2.5 reduction'!AD136),9))","v":0.99999479899999999},{"$f":"VALUE(FIXED(EXP(AE$4*-1*'PM2.5 reduction'!AE136),9))","v":0.99999446599999997},{"$f":"VALUE(FIXED(EXP(AF$4*-1*'PM2.5 reduction'!AF136),9))","v":0.99998554200000001},{"$f":"VALUE(FIXED(EXP(AG$4*-1*'PM2.5 reduction'!AG136),9))","v":0.99999446599999997},{"$f":"VALUE(FIXED(EXP(AH$4*-1*'PM2.5 reduction'!AH136),9))","v":0.99997821499999995},{"$f":"VALUE(FIXED(EXP(AI$4*-1*'PM2.5 reduction'!AI136),9))","v":0.99997123700000001},{"$f":"VALUE(FIXED(EXP(AJ$4*-1*'PM2.5 reduction'!AJ136),9))","v":0.99998526600000004},{"$f":"VALUE(FIXED(EXP(AK$4*-1*'PM2.5 reduction'!AK136),9))","v":0.99999160499999995},{"$f":"VALUE(FIXED(EXP(AL$4*-1*'PM2.5 reduction'!AL136),9))","v":0.99999192800000003},{"$f":"VALUE(FIXED(EXP(AM$4*-1*'PM2.5 reduction'!AM136),9))","v":0.99997708799999996},{"$f":"VALUE(FIXED(EXP(AN$4*-1*'PM2.5 reduction'!AN136),9))","v":0.99999390200000005},{"$f":"VALUE(FIXED(EXP(AO$4*-1*'PM2.5 reduction'!AO136),9))","v":0.99999390200000005},{"$f":"VALUE(FIXED(EXP(AP$4*-1*'PM2.5 reduction'!AP136),9))","v":0.99999037300000004},{"$f":"VALUE(FIXED(EXP(AQ$4*-1*'PM2.5 reduction'!AQ136),9))","v":0.99998101500000003},{"$f":"VALUE(FIXED(EXP(AR$4*-1*'PM2.5 reduction'!AR136),9))","v":0.99997890899999997},{"$f":"VALUE(FIXED(EXP(AS$4*-1*'PM2.5 reduction'!AS136),9))","v":0.99999490599999996},{"$f":"VALUE(FIXED(EXP(AT$4*-1*'PM2.5 reduction'!AT136),9))","v":1},{"$f":"VALUE(FIXED(EXP(AU$4*-1*'PM2.5 reduction'!AU136),9))","v":1},{"$f":"VALUE(FIXED(EXP(AV$4*-1*'PM2.5 reduction'!AV136),9))","v":0.999985766},{"$f":"VALUE(FIXED(EXP(AW$4*-1*'PM2.5 reduction'!AW136),9))","v":0.99997967700000001},{"$f":"VALUE(FIXED(EXP(AX$4*-1*'PM2.5 reduction'!AX136),9))","v":0.99999089900000004},{"$f":"VALUE(FIXED(EXP(AY$4*-1*'PM2.5 reduction'!AY136),9))","v":0.99998460899999997},{"$f":"VALUE(FIXED(EXP(AZ$4*-1*'PM2.5 reduction'!AZ136),9))","v":0.99998486200000003},{"$f":"VALUE(FIXED(EXP(BA$4*-1*'PM2.5 reduction'!BA136),9))","v":0.99997990000000003},{"$f":"VALUE(FIXED(EXP(BB$4*-1*'PM2.5 reduction'!BB136),9))","v":0.99998302999999999},{"$f":"VALUE(FIXED(EXP(BC$4*-1*'PM2.5 reduction'!BC136),9))","v":0.99999554400000001}]
[null,"Female 5-9",{"$f":"VALUE(FIXED(EXP(C$4*-1*'PM2.5 reduction'!C137),9))","v":0.99996453600000001},{"$f":"VALUE(FIXED(EXP(D$4*-1*'PM2.5 reduction'!D137),9))","v":0.99997905899999995},{"$f":"VALUE(FIXED(EXP(E$4*-1*'PM2.5 reduction'!E137),9))","v":0.99999395000000002},{"$f":"VALUE(FIXED(EXP(F$4*-1*'PM2.5 reduction'!F137),9))","v":0.99999225800000002},{"$f":"VALUE(FIXED(EXP(G$4*-1*'PM2.5 reduction'!G137),9))","v":0.99999666600000003},{"$f":"VALUE(FIXED(EXP(H$4*-1*'PM2.5 reduction'!H137),9))","v":0.99998925699999996},{"$f":"VALUE(FIXED(EXP(I$4*-1*'PM2.5 reduction'!I137),9))","v":0.999995101},{"$f":"VALUE(FIXED(EXP(J$4*-1*'PM2.5 reduction'!J137),9))","v":0.99999012099999995},{"$f":"VALUE(FIXED(EXP(K$4*-1*'PM2.5 reduction'!K137),9))","v":0.99999019},{"$f":"VALUE(FIXED(EXP(L$4*-1*'PM2.5 reduction'!L137),9))","v":0.99999316599999999},{"$f":"VALUE(FIXED(EXP(M$4*-1*'PM2.5 reduction'!M137),9))","v":0.99999316599999999},{"$f":"VALUE(FIXED(EXP(N$4*-1*'PM2.5 reduction'!N137),9))","v":0.99996937299999999},{"$f":"VALUE(FIXED(EXP(O$4*-1*'PM2.5 reduction'!O137),9))","v":0.99998972699999999},{"$f":"VALUE(FIXED(EXP(P$4*-1*'PM2.5 reduction'!P137),9))","v":0.99997433700000005},{"$f":"VALUE(FIXED(EXP(Q$4*-1*'PM2.5 reduction'!Q137),9))","v":0.99998711299999998},{"$f":"VALUE(FIXED(EXP(R$4*-1*'PM2.5 reduction'!R137),9))","v":0.99997841899999995},{"$f":"VALUE(FIXED(EXP(S$4*-1*'PM2.5 reduction'!S137),9))","v":0.99997904100000001},{"$f":"VALUE(FIXED(EXP(T$4*-1*'PM2.5 reduction'!T137),9))","v":0.99996264800000001},{"$f":"VALUE(FIXED(EXP(U$4*-1*'PM2.5 reduction'!U137),9))","v":0.99999545899999998},{"$f":"VALUE(FIXED(EXP(V$4*-1*'PM2.5 reduction'!V137),9))","v":0.99998070400000005},{"$f":"VALUE(FIXED(EXP(W$4*-1*'PM2.5 reduction'!W137),9))","v":0.99998424200000002},{"$f":"VALUE(FIXED(EXP(X$4*-1*'PM2.5 reduction'!X137),9))","v":0.99998424200000002},{"$f":"VALUE(FIXED(EXP(Y$4*-1*'PM2.5 reduction'!Y137),9))","v":0.99998424399999997},{"$f":"VALUE(FIXED(EXP(Z$4*-1*'PM2.5 reduction'!Z137),9))","v":0.99996502300000001},{"$f":"VALUE(FIXED(EXP(AA$4*-1*'PM2.5 reduction'!AA137),9))","v":0.99997511100000003},{"$f":"VALUE(FIXED(EXP(AB$4*-1*'PM2.5 reduction'!AB137),9))","v":0.99998207500000003},{"$f":"VALUE(FIXED(EXP(AC$4*-1*'PM2.5 reduction'!AC137),9))","v":0.99997243300000005},{"$f":"VALUE(FIXED(EXP(AD$4*-1*'PM2.5 reduction'!AD137),9))","v":0.99999524399999995},{"$f":"VALUE(FIXED(EXP(AE$4*-1*'PM2.5 reduction'!AE137),9))","v":0.99999489200000002},{"$f":"VALUE(FIXED(EXP(AF$4*-1*'PM2.5 reduction'!AF137),9))","v":0.99998552900000004},{"$f":"VALUE(FIXED(EXP(AG$4*-1*'PM2.5 reduction'!AG137),9))","v":0.99999489200000002},{"$f":"VALUE(FIXED(EXP(AH$4*-1*'PM2.5 reduction'!AH137),9))","v":0.99997840199999999},{"$f":"VALUE(FIXED(EXP(AI$4*-1*'PM2.5 reduction'!AI137),9))","v":0.99997357799999997},{"$f":"VALUE(FIXED(EXP(AJ$4*-1*'PM2.5 reduction'!AJ137),9))","v":0.99998434700000005},{"$f":"VALUE(FIXED(EXP(AK$4*-1*'PM2.5 reduction'!AK137),9))","v":0.99999180600000004},{"$f":"VALUE(FIXED(EXP(AL$4*-1*'PM2.5 reduction'!AL137),9))","v":0.99999172599999997},{"$f":"VALUE(FIXED(EXP(AM$4*-1*'PM2.5 reduction'!AM137),9))","v":0.99997735799999998},{"$f":"VALUE(FIXED(EXP(AN$4*-1*'PM2.5 reduction'!AN137),9))","v":0.999993833},{"$f":"VALUE(FIXED(EXP(AO$4*-1*'PM2.5 reduction'!AO137),9))","v":0.999993833},{"$f":"VALUE(FIXED(EXP(AP$4*-1*'PM2.5 reduction'!AP137),9))","v":0.99999148199999999},{"$f":"VALUE(FIXED(EXP(AQ$4*-1*'PM2.5 reduction'!AQ137),9))","v":0.99998139200000002},{"$f":"VALUE(FIXED(EXP(AR$4*-1*'PM2.5 reduction'!AR137),9))","v":0.99998039999999999},{"$f":"VALUE(FIXED(EXP(AS$4*-1*'PM2.5 reduction'!AS137),9))","v":0.999995101},{"$f":"VALUE(FIXED(EXP(AT$4*-1*'PM2.5 reduction'!AT137),9))","v":1},{"$f":"VALUE(FIXED(EXP(AU$4*-1*'PM2.5 reduction'!AU137),9))","v":1},{"$f":"VALUE(FIXED(EXP(AV$4*-1*'PM2.5 reduction'!AV137),9))","v":0.99998611800000003},{"$f":"VALUE(FIXED(EXP(AW$4*-1*'PM2.5 reduction'!AW137),9))","v":0.99997982100000005},{"$f":"VALUE(FIXED(EXP(AX$4*-1*'PM2.5 reduction'!AX137),9))","v":0.99999006599999996},{"$f":"VALUE(FIXED(EXP(AY$4*-1*'PM2.5 reduction'!AY137),9))","v":0.999985134},{"$f":"VALUE(FIXED(EXP(AZ$4*-1*'PM2.5 reduction'!AZ137),9))","v":0.99998613800000002},{"$f":"VALUE(FIXED(EXP(BA$4*-1*'PM2.5 reduction'!BA137),9))","v":0.99998027},{"$f":"VALUE(FIXED(EXP(BB$4*-1*'PM2.5 reduction'!BB137),9))","v":0.99998307600000003},{"$f":"VALUE(FIXED(EXP(BC$4*-1*'PM2.5 reduction'!BC137),9))","v":0.99999545899999998}]
[null,"Female 10-15",{"$f":"VALUE(FIXED(EXP(C$4*-1*'PM2.5 reduction'!C138),9))","v":0.99996832099999999},{"$f":"VALUE(FIXED(EXP(D$4*-1*'PM2.5 reduction'!D138),9))","v":0.99998282100000002},{"$f":"VALUE(FIXED(EXP(E$4*-1*'PM2.5 reduction'!E138),9))","v":0.99999441700000002},{"$f":"VALUE(FIXED(EXP(F$4*-1*'PM2.5 reduction'!F138),9))","v":0.99999230900000002},{"$f":"VALUE(FIXED(EXP(G$4*-1*'PM2.5 reduction'!G138),9))","v":0.99999670299999999},{"$f":"VALUE(FIXED(EXP(H$4*-1*'PM2.5 reduction'!H138),9))","v":0.99998971699999994},{"$f":"VALUE(FIXED(EXP(I$4*-1*'PM2.5 reduction'!I138),9))","v":0.99999519599999998},{"$f":"VALUE(FIXED(EXP(J$4*-1*'PM2.5 reduction'!J138),9))","v":0.999989715},{"$f":"VALUE(FIXED(EXP(K$4*-1*'PM2.5 reduction'!K138),9))","v":0.99998999899999996},{"$f":"VALUE(FIXED(EXP(L$4*-1*'PM2.5 reduction'!L138),9))","v":0.99999316699999996},{"$f":"VALUE(FIXED(EXP(M$4*-1*'PM2.5 reduction'!M138),9))","v":0.99999316699999996},{"$f":"VALUE(FIXED(EXP(N$4*-1*'PM2.5 reduction'!N138),9))","v":0.99996997200000004},{"$f":"VALUE(FIXED(EXP(O$4*-1*'PM2.5 reduction'!O138),9))","v":0.99999096799999998},{"$f":"VALUE(FIXED(EXP(P$4*-1*'PM2.5 reduction'!P138),9))","v":0.99997544599999999},{"$f":"VALUE(FIXED(EXP(Q$4*-1*'PM2.5 reduction'!Q138),9))","v":0.99998691399999995},{"$f":"VALUE(FIXED(EXP(R$4*-1*'PM2.5 reduction'!R138),9))","v":0.99997797700000002},{"$f":"VALUE(FIXED(EXP(S$4*-1*'PM2.5 reduction'!S138),9))","v":0.99998038600000005},{"$f":"VALUE(FIXED(EXP(T$4*-1*'PM2.5 reduction'!T138),9))","v":0.99996326800000002},{"$f":"VALUE(FIXED(EXP(U$4*-1*'PM2.5 reduction'!U138),9))","v":0.99999556499999998},{"$f":"VALUE(FIXED(EXP(V$4*-1*'PM2.5 reduction'!V138),9))","v":0.99998043199999997},{"$f":"VALUE(FIXED(EXP(W$4*-1*'PM2.5 reduction'!W138),9))","v":0.99998459699999998},{"$f":"VALUE(FIXED(EXP(X$4*-1*'PM2.5 reduction'!X138),9))","v":0.99998459699999998},{"$f":"VALUE(FIXED(EXP(Y$4*-1*'PM2.5 reduction'!Y138),9))","v":0.99998379400000004},{"$f":"VALUE(FIXED(EXP(Z$4*-1*'PM2.5 reduction'!Z138),9))","v":0.99996611999999996},{"$f":"VALUE(FIXED(EXP(AA$4*-1*'PM2.5 reduction'!AA138),9))","v":0.99997585200000005},{"$f":"VALUE(FIXED(EXP(AB$4*-1*'PM2.5 reduction'!AB138),9))","v":0.99998498999999996},{"$f":"VALUE(FIXED(EXP(AC$4*-1*'PM2.5 reduction'!AC138),9))","v":0.99997374999999999},{"$f":"VALUE(FIXED(EXP(AD$4*-1*'PM2.5 reduction'!AD138),9))","v":0.99999508599999998},{"$f":"VALUE(FIXED(EXP(AE$4*-1*'PM2.5 reduction'!AE138),9))","v":0.99999472899999997},{"$f":"VALUE(FIXED(EXP(AF$4*-1*'PM2.5 reduction'!AF138),9))","v":0.99998548200000004},{"$f":"VALUE(FIXED(EXP(AG$4*-1*'PM2.5 reduction'!AG138),9))","v":0.99999472899999997},{"$f":"VALUE(FIXED(EXP(AH$4*-1*'PM2.5 reduction'!AH138),9))","v":0.99997838999999999},{"$f":"VALUE(FIXED(EXP(AI$4*-1*'PM2.5 reduction'!AI138),9))","v":0.99997521599999994},{"$f":"VALUE(FIXED(EXP(AJ$4*-1*'PM2.5 reduction'!AJ138),9))","v":0.999984541},{"$f":"VALUE(FIXED(EXP(AK$4*-1*'PM2.5 reduction'!AK138),9))","v":0.99999172999999997},{"$f":"VALUE(FIXED(EXP(AL$4*-1*'PM2.5 reduction'!AL138),9))","v":0.99999183999999997},{"$f":"VALUE(FIXED(EXP(AM$4*-1*'PM2.5 reduction'!AM138),9))","v":0.99997718899999999},{"$f":"VALUE(FIXED(EXP(AN$4*-1*'PM2.5 reduction'!AN138),9))","v":0.99999383900000005},{"$f":"VALUE(FIXED(EXP(AO$4*-1*'PM2.5 reduction'!AO138),9))","v":0.99999383900000005},{"$f":"VALUE(FIXED(EXP(AP$4*-1*'PM2.5 reduction'!AP138),9))","v":0.99999075900000001},{"$f":"VALUE(FIXED(EXP(AQ$4*-1*'PM2.5 reduction'!AQ138),9))","v":0.99998127000000003},{"$f":"VALUE(FIXED(EXP(AR$4*-1*'PM2.5 reduction'!AR138),9))","v":0.99998115099999996},{"$f":"VALUE(FIXED(EXP(AS$4*-1*'PM2.5 reduction'!AS138),9))","v":0.99999519599999998},{"$f":"VALUE(FIXED(EXP(AT$4*-1*'PM2.5 reduction'!AT138),9))","v":1},{"$f":"VALUE(FIXED(EXP(AU$4*-1*'PM2.5 reduction'!AU138),9))","v":1},{"$f":"VALUE(FIXED(EXP(AV$4*-1*'PM2.5 reduction'!AV138),9))","v":0.99998621399999998},{"$f":"VALUE(FIXED(EXP(AW$4*-1*'PM2.5 reduction'!AW138),9))","v":0.99997992599999996},{"$f":"VALUE(FIXED(EXP(AX$4*-1*'PM2.5 reduction'!AX138),9))","v":0.99998950900000005},{"$f":"VALUE(FIXED(EXP(AY$4*-1*'PM2.5 reduction'!AY138),9))","v":0.99998502099999997},{"$f":"VALUE(FIXED(EXP(AZ$4*-1*'PM2.5 reduction'!AZ138),9))","v":0.99998545900000002},{"$f":"VALUE(FIXED(EXP(BA$4*-1*'PM2.5 reduction'!BA138),9))","v":0.99998064499999995},{"$f":"VALUE(FIXED(EXP(BB$4*-1*'PM2.5 reduction'!BB138),9))","v":0.99998304699999996},{"$f":"VALUE(FIXED(EXP(BC$4*-1*'PM2.5 reduction'!BC138),9))","v":0.99999556499999998}]
[null,"Female 16-19",{"$f":"VALUE(FIXED(EXP(C$4*-1*'PM2.5 reduction'!C139),9))","v":0.99996155099999995},{"$f":"VALUE(FIXED(EXP(D$4*-1*'PM2.5 reduction'!D139),9))","v":0.99997387400000004},{"$f":"VALUE(FIXED(EXP(E$4*-1*'PM2.5 reduction'!E139),9))","v":0.99999397099999998},{"$f":"VALUE(FIXED(EXP(F$4*-1*'PM2.5 reduction'!F139),9))","v":0.999992345},{"$f":"VALUE(FIXED(EXP(G$4*-1*'PM2.5 reduction'!G139),9))","v":0.99999681100000004},{"$f":"VALUE(FIXED(EXP(H$4*-1*'PM2.5 reduction'!H139),9))","v":0.99998875799999998},{"$f":"VALUE(FIXED(EXP(I$4*-1*'PM2.5 reduction'!I139),9))","v":0.999995042},{"$f":"VALUE(FIXED(EXP(J$4*-1*'PM2.5 reduction'!J139),9))","v":0.99998693100000002},{"$f":"VALUE(FIXED(EXP(K$4*-1*'PM2.5 reduction'!K139),9))","v":0.99998900300000004},{"$f":"VALUE(FIXED(EXP(L$4*-1*'PM2.5 reduction'!L139),9))","v":0.99999316199999999},{"$f":"VALUE(FIXED(EXP(M$4*-1*'PM2.5 reduction'!M139),9))","v":0.99999316199999999},{"$f":"VALUE(FIXED(EXP(N$4*-1*'PM2.5 reduction'!N139),9))","v":0.99996447200000005},{"$f":"VALUE(FIXED(EXP(O$4*-1*'PM2.5 reduction'!O139),9))","v":0.99998959600000004},{"$f":"VALUE(FIXED(EXP(P$4*-1*'PM2.5 reduction'!P139),9))","v":0.99997520799999995},{"$f":"VALUE(FIXED(EXP(Q$4*-1*'PM2.5 reduction'!Q139),9))","v":0.99998739800000003},{"$f":"VALUE(FIXED(EXP(R$4*-1*'PM2.5 reduction'!R139),9))","v":0.99997705100000001},{"$f":"VALUE(FIXED(EXP(S$4*-1*'PM2.5 reduction'!S139),9))","v":0.99997121499999997},{"$f":"VALUE(FIXED(EXP(T$4*-1*'PM2.5 reduction'!T139),9))","v":0.99994395800000002},{"$f":"VALUE(FIXED(EXP(U$4*-1*'PM2.5 reduction'!U139),9))","v":0.99999551600000003},{"$f":"VALUE(FIXED(EXP(V$4*-1*'PM2.5 reduction'!V139),9))","v":0.999980965},{"$f":"VALUE(FIXED(EXP(W$4*-1*'PM2.5 reduction'!W139),9))","v":0.999985189},{"$f":"VALUE(FIXED(EXP(X$4*-1*'PM2.5 reduction'!X139),9))","v":0.999985189},{"$f":"VALUE(FIXED(EXP(Y$4*-1*'PM2.5 reduction'!Y139),9))","v":0.99998320500000004},{"$f":"VALUE(FIXED(EXP(Z$4*-1*'PM2.5 reduction'!Z139),9))","v":0.99994226200000003},{"$f":"VALUE(FIXED(EXP(AA$4*-1*'PM2.5 reduction'!AA139),9))","v":0.99996404100000003},{"$f":"VALUE(FIXED(EXP(AB$4*-1*'PM2.5 reduction'!AB139),9))","v":0.99997743900000002},{"$f":"VALUE(FIXED(EXP(AC$4*-1*'PM2.5 reduction'!AC139),9))","v":0.99995546300000004},{"$f":"VALUE(FIXED(EXP(AD$4*-1*'PM2.5 reduction'!AD139),9))","v":0.99999471699999998},{"$f":"VALUE(FIXED(EXP(AE$4*-1*'PM2.5 reduction'!AE139),9))","v":0.99999427799999996},{"$f":"VALUE(FIXED(EXP(AF$4*-1*'PM2.5 reduction'!AF139),9))","v":0.99998534500000003},{"$f":"VALUE(FIXED(EXP(AG$4*-1*'PM2.5 reduction'!AG139),9))","v":0.99999427799999996},{"$f":"VALUE(FIXED(EXP(AH$4*-1*'PM2.5 reduction'!AH139),9))","v":0.99997870300000002},{"$f":"VALUE(FIXED(EXP(AI$4*-1*'PM2.5 reduction'!AI139),9))","v":0.99996142600000004},{"$f":"VALUE(FIXED(EXP(AJ$4*-1*'PM2.5 reduction'!AJ139),9))","v":0.99998420300000002},{"$f":"VALUE(FIXED(EXP(AK$4*-1*'PM2.5 reduction'!AK139),9))","v":0.99999192699999995},{"$f":"VALUE(FIXED(EXP(AL$4*-1*'PM2.5 reduction'!AL139),9))","v":0.99999123000000001},{"$f":"VALUE(FIXED(EXP(AM$4*-1*'PM2.5 reduction'!AM139),9))","v":0.99997764499999997},{"$f":"VALUE(FIXED(EXP(AN$4*-1*'PM2.5 reduction'!AN139),9))","v":0.99999378900000002},{"$f":"VALUE(FIXED(EXP(AO$4*-1*'PM2.5 reduction'!AO139),9))","v":0.99999378900000002},{"$f":"VALUE(FIXED(EXP(AP$4*-1*'PM2.5 reduction'!AP139),9))","v":0.999990512},{"$f":"VALUE(FIXED(EXP(AQ$4*-1*'PM2.5 reduction'!AQ139),9))","v":0.99998083900000001},{"$f":"VALUE(FIXED(EXP(AR$4*-1*'PM2.5 reduction'!AR139),9))","v":0.99997269300000002},{"$f":"VALUE(FIXED(EXP(AS$4*-1*'PM2.5 reduction'!AS139),9))","v":0.999995042},{"$f":"VALUE(FIXED(EXP(AT$4*-1*'PM2.5 reduction'!AT139),9))","v":1},{"$f":"VALUE(FIXED(EXP(AU$4*-1*'PM2.5 reduction'!AU139),9))","v":1},{"$f":"VALUE(FIXED(EXP(AV$4*-1*'PM2.5 reduction'!AV139),9))","v":0.99998585100000004},{"$f":"VALUE(FIXED(EXP(AW$4*-1*'PM2.5 reduction'!AW139),9))","v":0.99998001599999997},{"$f":"VALUE(FIXED(EXP(AX$4*-1*'PM2.5 reduction'!AX139),9))","v":0.99998569400000004},{"$f":"VALUE(FIXED(EXP(AY$4*-1*'PM2.5 reduction'!AY139),9))","v":0.99998281300000003},{"$f":"VALUE(FIXED(EXP(AZ$4*-1*'PM2.5 reduction'!AZ139),9))","v":0.99998061500000002},{"$f":"VALUE(FIXED(EXP(BA$4*-1*'PM2.5 reduction'!BA139),9))","v":0.99998006699999997},{"$f":"VALUE(FIXED(EXP(BB$4*-1*'PM2.5 reduction'!BB139),9))","v":0.99998297400000002},{"$f":"VALUE(FIXED(EXP(BC$4*-1*'PM2.5 reduction'!BC139),9))","v":0.99999551600000003}]
[null,"Female 20-24",{"$f":"VALUE(FIXED(EXP(C$4*-1*'PM2.5 reduction'!C140),9))","v":0.99995351099999996},{"$f":"VALUE(FIXED(EXP(D$4*-1*'PM2.5 reduction'!D140),9))","v":0.99996342800000004},{"$f":"VALUE(FIXED(EXP(E$4*-1*'PM2.5 reduction'!E140),9))","v":0.99999352900000005},{"$f":"VALUE(FIXED(EXP(F$4*-1*'PM2.5 reduction'!F140),9))","v":0.99999220899999997},{"$f":"VALUE(FIXED(EXP(G$4*-1*'PM2.5 reduction'!G140),9))","v":0.99999691400000001},{"$f":"VALUE(FIXED(EXP(H$4*-1*'PM2.5 reduction'!H140),9))","v":0.99998907299999995},{"$f":"VALUE(FIXED(EXP(I$4*-1*'PM2.5 reduction'!I140),9))","v":0.99999486000000004},{"$f":"VALUE(FIXED(EXP(J$4*-1*'PM2.5 reduction'!J140),9))","v":0.99998245200000002},{"$f":"VALUE(FIXED(EXP(K$4*-1*'PM2.5 reduction'!K140),9))","v":0.99998940199999997},{"$f":"VALUE(FIXED(EXP(L$4*-1*'PM2.5 reduction'!L140),9))","v":0.99999302199999995},{"$f":"VALUE(FIXED(EXP(M$4*-1*'PM2.5 reduction'!M140),9))","v":0.99999302199999995},{"$f":"VALUE(FIXED(EXP(N$4*-1*'PM2.5 reduction'!N140),9))","v":0.99996365600000003},{"$f":"VALUE(FIXED(EXP(O$4*-1*'PM2.5 reduction'!O140),9))","v":0.99998982400000003},{"$f":"VALUE(FIXED(EXP(P$4*-1*'PM2.5 reduction'!P140),9))","v":0.99997455999999996},{"$f":"VALUE(FIXED(EXP(Q$4*-1*'PM2.5 reduction'!Q140),9))","v":0.99998541900000004},{"$f":"VALUE(FIXED(EXP(R$4*-1*'PM2.5 reduction'!R140),9))","v":0.99997764499999997},{"$f":"VALUE(FIXED(EXP(S$4*-1*'PM2.5 reduction'!S140),9))","v":0.99995946300000005},{"$f":"VALUE(FIXED(EXP(T$4*-1*'PM2.5 reduction'!T140),9))","v":0.99993884099999997},{"$f":"VALUE(FIXED(EXP(U$4*-1*'PM2.5 reduction'!U140),9))","v":0.99999553200000002},{"$f":"VALUE(FIXED(EXP(V$4*-1*'PM2.5 reduction'!V140),9))","v":0.99998050299999997},{"$f":"VALUE(FIXED(EXP(W$4*-1*'PM2.5 reduction'!W140),9))","v":0.99998614200000002},{"$f":"VALUE(FIXED(EXP(X$4*-1*'PM2.5 reduction'!X140),9))","v":0.99998614200000002},{"$f":"VALUE(FIXED(EXP(Y$4*-1*'PM2.5 reduction'!Y140),9))","v":0.99998149999999997},{"$f":"VALUE(FIXED(EXP(Z$4*-1*'PM2.5 reduction'!Z140),9))","v":0.99993950200000004},{"$f":"VALUE(FIXED(EXP(AA$4*-1*'PM2.5 reduction'!AA140),9))","v":0.99995747499999998},{"$f":"VALUE(FIXED(EXP(AB$4*-1*'PM2.5 reduction'!AB140),9))","v":0.99996705900000005},{"$f":"VALUE(FIXED(EXP(AC$4*-1*'PM2.5 reduction'!AC140),9))","v":0.99994938899999997},{"$f":"VALUE(FIXED(EXP(AD$4*-1*'PM2.5 reduction'!AD140),9))","v":0.99999449399999996},{"$f":"VALUE(FIXED(EXP(AE$4*-1*'PM2.5 reduction'!AE140),9))","v":0.99999408000000001},{"$f":"VALUE(FIXED(EXP(AF$4*-1*'PM2.5 reduction'!AF140),9))","v":0.99998547500000001},{"$f":"VALUE(FIXED(EXP(AG$4*-1*'PM2.5 reduction'!AG140),9))","v":0.99999408000000001},{"$f":"VALUE(FIXED(EXP(AH$4*-1*'PM2.5 reduction'!AH140),9))","v":0.99997830799999998},{"$f":"VALUE(FIXED(EXP(AI$4*-1*'PM2.5 reduction'!AI140),9))","v":0.99994957200000001},{"$f":"VALUE(FIXED(EXP(AJ$4*-1*'PM2.5 reduction'!AJ140),9))","v":0.99998483999999999},{"$f":"VALUE(FIXED(EXP(AK$4*-1*'PM2.5 reduction'!AK140),9))","v":0.99999179699999996},{"$f":"VALUE(FIXED(EXP(AL$4*-1*'PM2.5 reduction'!AL140),9))","v":0.99999121300000005},{"$f":"VALUE(FIXED(EXP(AM$4*-1*'PM2.5 reduction'!AM140),9))","v":0.999977428},{"$f":"VALUE(FIXED(EXP(AN$4*-1*'PM2.5 reduction'!AN140),9))","v":0.99999371100000001},{"$f":"VALUE(FIXED(EXP(AO$4*-1*'PM2.5 reduction'!AO140),9))","v":0.99999371100000001},{"$f":"VALUE(FIXED(EXP(AP$4*-1*'PM2.5 reduction'!AP140),9))","v":0.99998979700000001},{"$f":"VALUE(FIXED(EXP(AQ$4*-1*'PM2.5 reduction'!AQ140),9))","v":0.99998030100000002},{"$f":"VALUE(FIXED(EXP(AR$4*-1*'PM2.5 reduction'!AR140),9))","v":0.99996452499999999},{"$f":"VALUE(FIXED(EXP(AS$4*-1*'PM2.5 reduction'!AS140),9))","v":0.99999486000000004},{"$f":"VALUE(FIXED(EXP(AT$4*-1*'PM2.5 reduction'!AT140),9))","v":1},{"$f":"VALUE(FIXED(EXP(AU$4*-1*'PM2.5 reduction'!AU140),9))","v":1},{"$f":"VALUE(FIXED(EXP(AV$4*-1*'PM2.5 reduction'!AV140),9))","v":0.99998649799999995},{"$f":"VALUE(FIXED(EXP(AW$4*-1*'PM2.5 reduction'!AW140),9))","v":0.999979273},{"$f":"VALUE(FIXED(EXP(AX$4*-1*'PM2.5 reduction'!AX140),9))","v":0.99998041900000001},{"$f":"VALUE(FIXED(EXP(AY$4*-1*'PM2.5 reduction'!AY140),9))","v":0.99998210200000004},{"$f":"VALUE(FIXED(EXP(AZ$4*-1*'PM2.5 reduction'!AZ140),9))","v":0.99997813599999996},{"$f":"VALUE(FIXED(EXP(BA$4*-1*'PM2.5 reduction'!BA140),9))","v":0.99997989600000003},{"$f":"VALUE(FIXED(EXP(BB$4*-1*'PM2.5 reduction'!BB140),9))","v":0.999983497},{"$f":"VALUE(FIXED(EXP(BC$4*-1*'PM2.5 reduction'!BC140),9))","v":0.99999553200000002}]
[null,"Female 25-29",{"$f":"VALUE(FIXED(EXP(C$4*-1*'PM2.5 reduction'!C141),9))","v":0.999954334},{"$f":"VALUE(FIXED(EXP(D$4*-1*'PM2.5 reduction'!D141),9))","v":0.999964933},{"$f":"VALUE(FIXED(EXP(E$4*-1*'PM2.5 reduction'!E141),9))","v":0.99999343500000004},{"$f":"VALUE(FIXED(EXP(F$4*-1*'PM2.5 reduction'!F141),9))","v":0.999992663},{"$f":"VALUE(FIXED(EXP(G$4*-1*'PM2.5 reduction'!G141),9))","v":0.99999638999999996},{"$f":"VALUE(FIXED(EXP(H$4*-1*'PM2.5 reduction'!H141),9))","v":0.99998874599999998},{"$f":"VALUE(FIXED(EXP(I$4*-1*'PM2.5 reduction'!I141),9))","v":0.99999495800000004},{"$f":"VALUE(FIXED(EXP(J$4*-1*'PM2.5 reduction'!J141),9))","v":0.99998705300000001},{"$f":"VALUE(FIXED(EXP(K$4*-1*'PM2.5 reduction'!K141),9))","v":0.99998821500000001},{"$f":"VALUE(FIXED(EXP(L$4*-1*'PM2.5 reduction'!L141),9))","v":0.99999297799999998},{"$f":"VALUE(FIXED(EXP(M$4*-1*'PM2.5 reduction'!M141),9))","v":0.99999297799999998},{"$f":"VALUE(FIXED(EXP(N$4*-1*'PM2.5 reduction'!N141),9))","v":0.99996725200000003},{"$f":"VALUE(FIXED(EXP(O$4*-1*'PM2.5 reduction'!O141),9))","v":0.99998911999999995},{"$f":"VALUE(FIXED(EXP(P$4*-1*'PM2.5 reduction'!P141),9))","v":0.99997494300000001},{"$f":"VALUE(FIXED(EXP(Q$4*-1*'PM2.5 reduction'!Q141),9))","v":0.99998541299999999},{"$f":"VALUE(FIXED(EXP(R$4*-1*'PM2.5 reduction'!R141),9))","v":0.99997636199999995},{"$f":"VALUE(FIXED(EXP(S$4*-1*'PM2.5 reduction'!S141),9))","v":0.99996312899999995},{"$f":"VALUE(FIXED(EXP(T$4*-1*'PM2.5 reduction'!T141),9))","v":0.99994881999999996},{"$f":"VALUE(FIXED(EXP(U$4*-1*'PM2.5 reduction'!U141),9))","v":0.99999560899999995},{"$f":"VALUE(FIXED(EXP(V$4*-1*'PM2.5 reduction'!V141),9))","v":0.99997984699999998},{"$f":"VALUE(FIXED(EXP(W$4*-1*'PM2.5 reduction'!W141),9))","v":0.99998468200000001},{"$f":"VALUE(FIXED(EXP(X$4*-1*'PM2.5 reduction'!X141),9))","v":0.99998468200000001},{"$f":"VALUE(FIXED(EXP(Y$4*-1*'PM2.5 reduction'!Y141),9))","v":0.99998314099999996},{"$f":"VALUE(FIXED(EXP(Z$4*-1*'PM2.5 reduction'!Z141),9))","v":0.99995387499999999},{"$f":"VALUE(FIXED(EXP(AA$4*-1*'PM2.5 reduction'!AA141),9))","v":0.99996601100000004},{"$f":"VALUE(FIXED(EXP(AB$4*-1*'PM2.5 reduction'!AB141),9))","v":0.99996897799999995},{"$f":"VALUE(FIXED(EXP(AC$4*-1*'PM2.5 reduction'!AC141),9))","v":0.99996058600000004},{"$f":"VALUE(FIXED(EXP(AD$4*-1*'PM2.5 reduction'!AD141),9))","v":0.99999446299999994},{"$f":"VALUE(FIXED(EXP(AE$4*-1*'PM2.5 reduction'!AE141),9))","v":0.99999409699999997},{"$f":"VALUE(FIXED(EXP(AF$4*-1*'PM2.5 reduction'!AF141),9))","v":0.99998538199999998},{"$f":"VALUE(FIXED(EXP(AG$4*-1*'PM2.5 reduction'!AG141),9))","v":0.99999409699999997},{"$f":"VALUE(FIXED(EXP(AH$4*-1*'PM2.5 reduction'!AH141),9))","v":0.99997819600000004},{"$f":"VALUE(FIXED(EXP(AI$4*-1*'PM2.5 reduction'!AI141),9))","v":0.99995602299999997},{"$f":"VALUE(FIXED(EXP(AJ$4*-1*'PM2.5 reduction'!AJ141),9))","v":0.99998458000000001},{"$f":"VALUE(FIXED(EXP(AK$4*-1*'PM2.5 reduction'!AK141),9))","v":0.99999166399999995},{"$f":"VALUE(FIXED(EXP(AL$4*-1*'PM2.5 reduction'!AL141),9))","v":0.99999150699999995},{"$f":"VALUE(FIXED(EXP(AM$4*-1*'PM2.5 reduction'!AM141),9))","v":0.99997736599999998},{"$f":"VALUE(FIXED(EXP(AN$4*-1*'PM2.5 reduction'!AN141),9))","v":0.99999369100000002},{"$f":"VALUE(FIXED(EXP(AO$4*-1*'PM2.5 reduction'!AO141),9))","v":0.99999369100000002},{"$f":"VALUE(FIXED(EXP(AP$4*-1*'PM2.5 reduction'!AP141),9))","v":0.99998988200000005},{"$f":"VALUE(FIXED(EXP(AQ$4*-1*'PM2.5 reduction'!AQ141),9))","v":0.99997975699999997},{"$f":"VALUE(FIXED(EXP(AR$4*-1*'PM2.5 reduction'!AR141),9))","v":0.99996906900000004},{"$f":"VALUE(FIXED(EXP(AS$4*-1*'PM2.5 reduction'!AS141),9))","v":0.99999495800000004},{"$f":"VALUE(FIXED(EXP(AT$4*-1*'PM2.5 reduction'!AT141),9))","v":1},{"$f":"VALUE(FIXED(EXP(AU$4*-1*'PM2.5 reduction'!AU141),9))","v":1},{"$f":"VALUE(FIXED(EXP(AV$4*-1*'PM2.5 reduction'!AV141),9))","v":0.99998578100000002},{"$f":"VALUE(FIXED(EXP(AW$4*-1*'PM2.5 reduction'!AW141),9))","v":0.99997912700000002},{"$f":"VALUE(FIXED(EXP(AX$4*-1*'PM2.5 reduction'!AX141),9))","v":0.99998655800000003},{"$f":"VALUE(FIXED(EXP(AY$4*-1*'PM2.5 reduction'!AY141),9))","v":0.99998181200000003},{"$f":"VALUE(FIXED(EXP(AZ$4*-1*'PM2.5 reduction'!AZ141),9))","v":0.99997898500000004},{"$f":"VALUE(FIXED(EXP(BA$4*-1*'PM2.5 reduction'!BA141),9))","v":0.99998061199999999},{"$f":"VALUE(FIXED(EXP(BB$4*-1*'PM2.5 reduction'!BB141),9))","v":0.99998302299999997},{"$f":"VALUE(FIXED(EXP(BC$4*-1*'PM2.5 reduction'!BC141),9))","v":0.99999560899999995}]
[null,"Female 30-34",{"$f":"VALUE(FIXED(EXP(C$4*-1*'PM2.5 reduction'!C142),9))","v":0.99995871800000002},{"$f":"VALUE(FIXED(EXP(D$4*-1*'PM2.5 reduction'!D142),9))","v":0.99997095300000005},{"$f":"VALUE(FIXED(EXP(E$4*-1*'PM2.5 reduction'!E142),9))","v":0.99999381300000001},{"$f":"VALUE(FIXED(EXP(F$4*-1*'PM2.5 reduction'!F142),9))","v":0.99999227599999996},{"$f":"VALUE(FIXED(EXP(G$4*-1*'PM2.5 reduction'!G142),9))","v":0.99999663800000005},{"$f":"VALUE(FIXED(EXP(H$4*-1*'PM2.5 reduction'!H142),9))","v":0.99998904799999999},{"$f":"VALUE(FIXED(EXP(I$4*-1*'PM2.5 reduction'!I142),9))","v":0.99999492599999995},{"$f":"VALUE(FIXED(EXP(J$4*-1*'PM2.5 reduction'!J142),9))","v":0.99998882},{"$f":"VALUE(FIXED(EXP(K$4*-1*'PM2.5 reduction'!K142),9))","v":0.99998872999999999},{"$f":"VALUE(FIXED(EXP(L$4*-1*'PM2.5 reduction'!L142),9))","v":0.99999370099999996},{"$f":"VALUE(FIXED(EXP(M$4*-1*'PM2.5 reduction'!M142),9))","v":0.99999370099999996},{"$f":"VALUE(FIXED(EXP(N$4*-1*'PM2.5 reduction'!N142),9))","v":0.99996902200000004},{"$f":"VALUE(FIXED(EXP(O$4*-1*'PM2.5 reduction'!O142),9))","v":0.99998998800000005},{"$f":"VALUE(FIXED(EXP(P$4*-1*'PM2.5 reduction'!P142),9))","v":0.99997547399999998},{"$f":"VALUE(FIXED(EXP(Q$4*-1*'PM2.5 reduction'!Q142),9))","v":0.99998609800000005},{"$f":"VALUE(FIXED(EXP(R$4*-1*'PM2.5 reduction'!R142),9))","v":0.999977385},{"$f":"VALUE(FIXED(EXP(S$4*-1*'PM2.5 reduction'!S142),9))","v":0.99996838600000004},{"$f":"VALUE(FIXED(EXP(T$4*-1*'PM2.5 reduction'!T142),9))","v":0.99995344500000005},{"$f":"VALUE(FIXED(EXP(U$4*-1*'PM2.5 reduction'!U142),9))","v":0.99999550199999998},{"$f":"VALUE(FIXED(EXP(V$4*-1*'PM2.5 reduction'!V142),9))","v":0.99998021800000003},{"$f":"VALUE(FIXED(EXP(W$4*-1*'PM2.5 reduction'!W142),9))","v":0.99998416300000004},{"$f":"VALUE(FIXED(EXP(X$4*-1*'PM2.5 reduction'!X142),9))","v":0.99998416300000004},{"$f":"VALUE(FIXED(EXP(Y$4*-1*'PM2.5 reduction'!Y142),9))","v":0.99998313500000002},{"$f":"VALUE(FIXED(EXP(Z$4*-1*'PM2.5 reduction'!Z142),9))","v":0.99995823900000003},{"$f":"VALUE(FIXED(EXP(AA$4*-1*'PM2.5 reduction'!AA142),9))","v":0.99996980800000002},{"$f":"VALUE(FIXED(EXP(AB$4*-1*'PM2.5 reduction'!AB142),9))","v":0.99997475999999996},{"$f":"VALUE(FIXED(EXP(AC$4*-1*'PM2.5 reduction'!AC142),9))","v":0.99996499100000003},{"$f":"VALUE(FIXED(EXP(AD$4*-1*'PM2.5 reduction'!AD142),9))","v":0.99999449100000004},{"$f":"VALUE(FIXED(EXP(AE$4*-1*'PM2.5 reduction'!AE142),9))","v":0.99999415199999997},{"$f":"VALUE(FIXED(EXP(AF$4*-1*'PM2.5 reduction'!AF142),9))","v":0.99998544599999994},{"$f":"VALUE(FIXED(EXP(AG$4*-1*'PM2.5 reduction'!AG142),9))","v":0.99999415199999997},{"$f":"VALUE(FIXED(EXP(AH$4*-1*'PM2.5 reduction'!AH142),9))","v":0.99997816500000003},{"$f":"VALUE(FIXED(EXP(AI$4*-1*'PM2.5 reduction'!AI142),9))","v":0.99996150399999995},{"$f":"VALUE(FIXED(EXP(AJ$4*-1*'PM2.5 reduction'!AJ142),9))","v":0.99998446299999999},{"$f":"VALUE(FIXED(EXP(AK$4*-1*'PM2.5 reduction'!AK142),9))","v":0.99999160799999998},{"$f":"VALUE(FIXED(EXP(AL$4*-1*'PM2.5 reduction'!AL142),9))","v":0.99999186299999998},{"$f":"VALUE(FIXED(EXP(AM$4*-1*'PM2.5 reduction'!AM142),9))","v":0.999977063},{"$f":"VALUE(FIXED(EXP(AN$4*-1*'PM2.5 reduction'!AN142),9))","v":0.99999368799999999},{"$f":"VALUE(FIXED(EXP(AO$4*-1*'PM2.5 reduction'!AO142),9))","v":0.99999368799999999},{"$f":"VALUE(FIXED(EXP(AP$4*-1*'PM2.5 reduction'!AP142),9))","v":0.99998914100000003},{"$f":"VALUE(FIXED(EXP(AQ$4*-1*'PM2.5 reduction'!AQ142),9))","v":0.99998020300000001},{"$f":"VALUE(FIXED(EXP(AR$4*-1*'PM2.5 reduction'!AR142),9))","v":0.99997347199999997},{"$f":"VALUE(FIXED(EXP(AS$4*-1*'PM2.5 reduction'!AS142),9))","v":0.99999492599999995},{"$f":"VALUE(FIXED(EXP(AT$4*-1*'PM2.5 reduction'!AT142),9))","v":1},{"$f":"VALUE(FIXED(EXP(AU$4*-1*'PM2.5 reduction'!AU142),9))","v":1},{"$f":"VALUE(FIXED(EXP(AV$4*-1*'PM2.5 reduction'!AV142),9))","v":0.99998563399999996},{"$f":"VALUE(FIXED(EXP(AW$4*-1*'PM2.5 reduction'!AW142),9))","v":0.99997945899999996},{"$f":"VALUE(FIXED(EXP(AX$4*-1*'PM2.5 reduction'!AX142),9))","v":0.99998889700000004},{"$f":"VALUE(FIXED(EXP(AY$4*-1*'PM2.5 reduction'!AY142),9))","v":0.99998346299999996},{"$f":"VALUE(FIXED(EXP(AZ$4*-1*'PM2.5 reduction'!AZ142),9))","v":0.99998275800000003},{"$f":"VALUE(FIXED(EXP(BA$4*-1*'PM2.5 reduction'!BA142),9))","v":0.99998101299999997},{"$f":"VALUE(FIXED(EXP(BB$4*-1*'PM2.5 reduction'!BB142),9))","v":0.99998358600000004},{"$f":"VALUE(FIXED(EXP(BC$4*-1*'PM2.5 reduction'!BC142),9))","v":0.99999550199999998}]
[null,"Female 35-39",{"$f":"VALUE(FIXED(EXP(C$4*-1*'PM2.5 reduction'!C143),9))","v":0.99996145999999997},{"$f":"VALUE(FIXED(EXP(D$4*-1*'PM2.5 reduction'!D143),9))","v":0.999975426},{"$f":"VALUE(FIXED(EXP(E$4*-1*'PM2.5 reduction'!E143),9))","v":0.99999404800000002},{"$f":"VALUE(FIXED(EXP(F$4*-1*'PM2.5 reduction'!F143),9))","v":0.99999221800000004},{"$f":"VALUE(FIXED(EXP(G$4*-1*'PM2.5 reduction'!G143),9))","v":0.99999651099999998},{"$f":"VALUE(FIXED(EXP(H$4*-1*'PM2.5 reduction'!H143),9))","v":0.99998859699999998},{"$f":"VALUE(FIXED(EXP(I$4*-1*'PM2.5 reduction'!I143),9))","v":0.99999514199999995},{"$f":"VALUE(FIXED(EXP(J$4*-1*'PM2.5 reduction'!J143),9))","v":0.99998873099999996},{"$f":"VALUE(FIXED(EXP(K$4*-1*'PM2.5 reduction'!K143),9))","v":0.999989884},{"$f":"VALUE(FIXED(EXP(L$4*-1*'PM2.5 reduction'!L143),9))","v":0.99999306200000004},{"$f":"VALUE(FIXED(EXP(M$4*-1*'PM2.5 reduction'!M143),9))","v":0.99999306200000004},{"$f":"VALUE(FIXED(EXP(N$4*-1*'PM2.5 reduction'!N143),9))","v":0.999969055},{"$f":"VALUE(FIXED(EXP(O$4*-1*'PM2.5 reduction'!O143),9))","v":0.99998863800000004},{"$f":"VALUE(FIXED(EXP(P$4*-1*'PM2.5 reduction'!P143),9))","v":0.99997565099999997},{"$f":"VALUE(FIXED(EXP(Q$4*-1*'PM2.5 reduction'!Q143),9))","v":0.99998495099999996},{"$f":"VALUE(FIXED(EXP(R$4*-1*'PM2.5 reduction'!R143),9))","v":0.99997766899999996},{"$f":"VALUE(FIXED(EXP(S$4*-1*'PM2.5 reduction'!S143),9))","v":0.999971269},{"$f":"VALUE(FIXED(EXP(T$4*-1*'PM2.5 reduction'!T143),9))","v":0.99995309099999996},{"$f":"VALUE(FIXED(EXP(U$4*-1*'PM2.5 reduction'!U143),9))","v":0.99999550999999998},{"$f":"VALUE(FIXED(EXP(V$4*-1*'PM2.5 reduction'!V143),9))","v":0.99998036199999996},{"$f":"VALUE(FIXED(EXP(W$4*-1*'PM2.5 reduction'!W143),9))","v":0.99998439800000005},{"$f":"VALUE(FIXED(EXP(X$4*-1*'PM2.5 reduction'!X143),9))","v":0.99998439800000005},{"$f":"VALUE(FIXED(EXP(Y$4*-1*'PM2.5 reduction'!Y143),9))","v":0.99998328299999995},{"$f":"VALUE(FIXED(EXP(Z$4*-1*'PM2.5 reduction'!Z143),9))","v":0.99996077500000002},{"$f":"VALUE(FIXED(EXP(AA$4*-1*'PM2.5 reduction'!AA143),9))","v":0.99997231499999994},{"$f":"VALUE(FIXED(EXP(AB$4*-1*'PM2.5 reduction'!AB143),9))","v":0.99997875899999999},{"$f":"VALUE(FIXED(EXP(AC$4*-1*'PM2.5 reduction'!AC143),9))","v":0.99996818799999998},{"$f":"VALUE(FIXED(EXP(AD$4*-1*'PM2.5 reduction'!AD143),9))","v":0.99999445799999997},{"$f":"VALUE(FIXED(EXP(AE$4*-1*'PM2.5 reduction'!AE143),9))","v":0.99999410099999997},{"$f":"VALUE(FIXED(EXP(AF$4*-1*'PM2.5 reduction'!AF143),9))","v":0.99998553899999998},{"$f":"VALUE(FIXED(EXP(AG$4*-1*'PM2.5 reduction'!AG143),9))","v":0.99999410099999997},{"$f":"VALUE(FIXED(EXP(AH$4*-1*'PM2.5 reduction'!AH143),9))","v":0.99997840800000004},{"$f":"VALUE(FIXED(EXP(AI$4*-1*'PM2.5 reduction'!AI143),9))","v":0.999963504},{"$f":"VALUE(FIXED(EXP(AJ$4*-1*'PM2.5 reduction'!AJ143),9))","v":0.99998445000000002},{"$f":"VALUE(FIXED(EXP(AK$4*-1*'PM2.5 reduction'!AK143),9))","v":0.99999168900000002},{"$f":"VALUE(FIXED(EXP(AL$4*-1*'PM2.5 reduction'!AL143),9))","v":0.99999151200000003},{"$f":"VALUE(FIXED(EXP(AM$4*-1*'PM2.5 reduction'!AM143),9))","v":0.999977322},{"$f":"VALUE(FIXED(EXP(AN$4*-1*'PM2.5 reduction'!AN143),9))","v":0.99999355999999995},{"$f":"VALUE(FIXED(EXP(AO$4*-1*'PM2.5 reduction'!AO143),9))","v":0.99999355999999995},{"$f":"VALUE(FIXED(EXP(AP$4*-1*'PM2.5 reduction'!AP143),9))","v":0.99999009699999997},{"$f":"VALUE(FIXED(EXP(AQ$4*-1*'PM2.5 reduction'!AQ143),9))","v":0.999980023},{"$f":"VALUE(FIXED(EXP(AR$4*-1*'PM2.5 reduction'!AR143),9))","v":0.99997601700000005},{"$f":"VALUE(FIXED(EXP(AS$4*-1*'PM2.5 reduction'!AS143),9))","v":0.99999514199999995},{"$f":"VALUE(FIXED(EXP(AT$4*-1*'PM2.5 reduction'!AT143),9))","v":1},{"$f":"VALUE(FIXED(EXP(AU$4*-1*'PM2.5 reduction'!AU143),9))","v":1},{"$f":"VALUE(FIXED(EXP(AV$4*-1*'PM2.5 reduction'!AV143),9))","v":0.99998592500000005},{"$f":"VALUE(FIXED(EXP(AW$4*-1*'PM2.5 reduction'!AW143),9))","v":0.99997981400000002},{"$f":"VALUE(FIXED(EXP(AX$4*-1*'PM2.5 reduction'!AX143),9))","v":0.99998801400000004},{"$f":"VALUE(FIXED(EXP(AY$4*-1*'PM2.5 reduction'!AY143),9))","v":0.99998437900000003},{"$f":"VALUE(FIXED(EXP(AZ$4*-1*'PM2.5 reduction'!AZ143),9))","v":0.99998435600000002},{"$f":"VALUE(FIXED(EXP(BA$4*-1*'PM2.5 reduction'!BA143),9))","v":0.99998056599999996},{"$f":"VALUE(FIXED(EXP(BB$4*-1*'PM2.5 reduction'!BB143),9))","v":0.99998298699999999},{"$f":"VALUE(FIXED(EXP(BC$4*-1*'PM2.5 reduction'!BC143),9))","v":0.99999550999999998}]
[null,"Female 40-44",{"$f":"VALUE(FIXED(EXP(C$4*-1*'PM2.5 reduction'!C144),9))","v":0.99996260400000003},{"$f":"VALUE(FIXED(EXP(D$4*-1*'PM2.5 reduction'!D144),9))","v":0.99997793199999996},{"$f":"VALUE(FIXED(EXP(E$4*-1*'PM2.5 reduction'!E144),9))","v":0.99999375499999998},{"$f":"VALUE(FIXED(EXP(F$4*-1*'PM2.5 reduction'!F144),9))","v":0.99999205199999996},{"$f":"VALUE(FIXED(EXP(G$4*-1*'PM2.5 reduction'!G144),9))","v":0.99999663800000005},{"$f":"VALUE(FIXED(EXP(H$4*-1*'PM2.5 reduction'!H144),9))","v":0.99998948700000001},{"$f":"VALUE(FIXED(EXP(I$4*-1*'PM2.5 reduction'!I144),9))","v":0.99999499999999997},{"$f":"VALUE(FIXED(EXP(J$4*-1*'PM2.5 reduction'!J144),9))","v":0.99998991199999998},{"$f":"VALUE(FIXED(EXP(K$4*-1*'PM2.5 reduction'!K144),9))","v":0.99998911000000001},{"$f":"VALUE(FIXED(EXP(L$4*-1*'PM2.5 reduction'!L144),9))","v":0.99999318199999998},{"$f":"VALUE(FIXED(EXP(M$4*-1*'PM2.5 reduction'!M144),9))","v":0.99999318199999998},{"$f":"VALUE(FIXED(EXP(N$4*-1*'PM2.5 reduction'!N144),9))","v":0.99996902700000001},{"$f":"VALUE(FIXED(EXP(O$4*-1*'PM2.5 reduction'!O144),9))","v":0.99999057599999996},{"$f":"VALUE(FIXED(EXP(P$4*-1*'PM2.5 reduction'!P144),9))","v":0.99997408700000001},{"$f":"VALUE(FIXED(EXP(Q$4*-1*'PM2.5 reduction'!Q144),9))","v":0.99998596799999995},{"$f":"VALUE(FIXED(EXP(R$4*-1*'PM2.5 reduction'!R144),9))","v":0.99997820599999998},{"$f":"VALUE(FIXED(EXP(S$4*-1*'PM2.5 reduction'!S144),9))","v":0.99997570499999999},{"$f":"VALUE(FIXED(EXP(T$4*-1*'PM2.5 reduction'!T144),9))","v":0.99995690599999998},{"$f":"VALUE(FIXED(EXP(U$4*-1*'PM2.5 reduction'!U144),9))","v":0.99999566399999995},{"$f":"VALUE(FIXED(EXP(V$4*-1*'PM2.5 reduction'!V144),9))","v":0.99998057200000001},{"$f":"VALUE(FIXED(EXP(W$4*-1*'PM2.5 reduction'!W144),9))","v":0.99998453799999998},{"$f":"VALUE(FIXED(EXP(X$4*-1*'PM2.5 reduction'!X144),9))","v":0.99998453799999998},{"$f":"VALUE(FIXED(EXP(Y$4*-1*'PM2.5 reduction'!Y144),9))","v":0.99998396499999997},{"$f":"VALUE(FIXED(EXP(Z$4*-1*'PM2.5 reduction'!Z144),9))","v":0.99996238299999995},{"$f":"VALUE(FIXED(EXP(AA$4*-1*'PM2.5 reduction'!AA144),9))","v":0.99997402300000005},{"$f":"VALUE(FIXED(EXP(AB$4*-1*'PM2.5 reduction'!AB144),9))","v":0.99998099500000004},{"$f":"VALUE(FIXED(EXP(AC$4*-1*'PM2.5 reduction'!AC144),9))","v":0.99997053300000005},{"$f":"VALUE(FIXED(EXP(AD$4*-1*'PM2.5 reduction'!AD144),9))","v":0.999994995},{"$f":"VALUE(FIXED(EXP(AE$4*-1*'PM2.5 reduction'!AE144),9))","v":0.99999463700000002},{"$f":"VALUE(FIXED(EXP(AF$4*-1*'PM2.5 reduction'!AF144),9))","v":0.99998529999999997},{"$f":"VALUE(FIXED(EXP(AG$4*-1*'PM2.5 reduction'!AG144),9))","v":0.99999463700000002},{"$f":"VALUE(FIXED(EXP(AH$4*-1*'PM2.5 reduction'!AH144),9))","v":0.99997863600000003},{"$f":"VALUE(FIXED(EXP(AI$4*-1*'PM2.5 reduction'!AI144),9))","v":0.99996871399999998},{"$f":"VALUE(FIXED(EXP(AJ$4*-1*'PM2.5 reduction'!AJ144),9))","v":0.99998505900000001},{"$f":"VALUE(FIXED(EXP(AK$4*-1*'PM2.5 reduction'!AK144),9))","v":0.99999192800000003},{"$f":"VALUE(FIXED(EXP(AL$4*-1*'PM2.5 reduction'!AL144),9))","v":0.99999139400000003},{"$f":"VALUE(FIXED(EXP(AM$4*-1*'PM2.5 reduction'!AM144),9))","v":0.99997751400000001},{"$f":"VALUE(FIXED(EXP(AN$4*-1*'PM2.5 reduction'!AN144),9))","v":0.99999378800000005},{"$f":"VALUE(FIXED(EXP(AO$4*-1*'PM2.5 reduction'!AO144),9))","v":0.99999378800000005},{"$f":"VALUE(FIXED(EXP(AP$4*-1*'PM2.5 reduction'!AP144),9))","v":0.99999053599999999},{"$f":"VALUE(FIXED(EXP(AQ$4*-1*'PM2.5 reduction'!AQ144),9))","v":0.99998050400000005},{"$f":"VALUE(FIXED(EXP(AR$4*-1*'PM2.5 reduction'!AR144),9))","v":0.99997868700000003},{"$f":"VALUE(FIXED(EXP(AS$4*-1*'PM2.5 reduction'!AS144),9))","v":0.99999499999999997},{"$f":"VALUE(FIXED(EXP(AT$4*-1*'PM2.5 reduction'!AT144),9))","v":1},{"$f":"VALUE(FIXED(EXP(AU$4*-1*'PM2.5 reduction'!AU144),9))","v":1},{"$f":"VALUE(FIXED(EXP(AV$4*-1*'PM2.5 reduction'!AV144),9))","v":0.99998626700000004},{"$f":"VALUE(FIXED(EXP(AW$4*-1*'PM2.5 reduction'!AW144),9))","v":0.99998012599999997},{"$f":"VALUE(FIXED(EXP(AX$4*-1*'PM2.5 reduction'!AX144),9))","v":0.99999047100000005},{"$f":"VALUE(FIXED(EXP(AY$4*-1*'PM2.5 reduction'!AY144),9))","v":0.99998506700000001},{"$f":"VALUE(FIXED(EXP(AZ$4*-1*'PM2.5 reduction'!AZ144),9))","v":0.99998565299999997},{"$f":"VALUE(FIXED(EXP(BA$4*-1*'PM2.5 reduction'!BA144),9))","v":0.99998003400000002},{"$f":"VALUE(FIXED(EXP(BB$4*-1*'PM2.5 reduction'!BB144),9))","v":0.99998322699999997},{"$f":"VALUE(FIXED(EXP(BC$4*-1*'PM2.5 reduction'!BC144),9))","v":0.99999566399999995}]
[null,"Female 45-49",{"$f":"VALUE(FIXED(EXP(C$4*-1*'PM2.5 reduction'!C145),9))","v":0.99996555399999998},{"$f":"VALUE(FIXED(EXP(D$4*-1*'PM2.5 reduction'!D145),9))","v":0.99998066500000005},{"$f":"VALUE(FIXED(EXP(E$4*-1*'PM2.5 reduction'!E145),9))","v":0.99999388199999995},{"$f":"VALUE(FIXED(EXP(F$4*-1*'PM2.5 reduction'!F145),9))","v":0.99999246100000005},{"$f":"VALUE(FIXED(EXP(G$4*-1*'PM2.5 reduction'!G145),9))","v":0.99999662199999995},{"$f":"VALUE(FIXED(EXP(H$4*-1*'PM2.5 reduction'!H145),9))","v":0.99998908799999997},{"$f":"VALUE(FIXED(EXP(I$4*-1*'PM2.5 reduction'!I145),9))","v":0.99999497599999998},{"$f":"VALUE(FIXED(EXP(J$4*-1*'PM2.5 reduction'!J145),9))","v":0.99998977499999997},{"$f":"VALUE(FIXED(EXP(K$4*-1*'PM2.5 reduction'!K145),9))","v":0.99998879500000004},{"$f":"VALUE(FIXED(EXP(L$4*-1*'PM2.5 reduction'!L145),9))","v":0.99999309700000005},{"$f":"VALUE(FIXED(EXP(M$4*-1*'PM2.5 reduction'!M145),9))","v":0.99999309700000005},{"$f":"VALUE(FIXED(EXP(N$4*-1*'PM2.5 reduction'!N145),9))","v":0.999970582},{"$f":"VALUE(FIXED(EXP(O$4*-1*'PM2.5 reduction'!O145),9))","v":0.99999000599999999},{"$f":"VALUE(FIXED(EXP(P$4*-1*'PM2.5 reduction'!P145),9))","v":0.99997527600000002},{"$f":"VALUE(FIXED(EXP(Q$4*-1*'PM2.5 reduction'!Q145),9))","v":0.999986767},{"$f":"VALUE(FIXED(EXP(R$4*-1*'PM2.5 reduction'!R145),9))","v":0.99997752200000001},{"$f":"VALUE(FIXED(EXP(S$4*-1*'PM2.5 reduction'!S145),9))","v":0.99997839799999999},{"$f":"VALUE(FIXED(EXP(T$4*-1*'PM2.5 reduction'!T145),9))","v":0.99995830900000005},{"$f":"VALUE(FIXED(EXP(U$4*-1*'PM2.5 reduction'!U145),9))","v":0.99999551900000005},{"$f":"VALUE(FIXED(EXP(V$4*-1*'PM2.5 reduction'!V145),9))","v":0.99998084899999995},{"$f":"VALUE(FIXED(EXP(W$4*-1*'PM2.5 reduction'!W145),9))","v":0.99998499600000001},{"$f":"VALUE(FIXED(EXP(X$4*-1*'PM2.5 reduction'!X145),9))","v":0.99998499600000001},{"$f":"VALUE(FIXED(EXP(Y$4*-1*'PM2.5 reduction'!Y145),9))","v":0.99998397800000005},{"$f":"VALUE(FIXED(EXP(Z$4*-1*'PM2.5 reduction'!Z145),9))","v":0.99996417400000004},{"$f":"VALUE(FIXED(EXP(AA$4*-1*'PM2.5 reduction'!AA145),9))","v":0.99997500800000005},{"$f":"VALUE(FIXED(EXP(AB$4*-1*'PM2.5 reduction'!AB145),9))","v":0.99998329100000005},{"$f":"VALUE(FIXED(EXP(AC$4*-1*'PM2.5 reduction'!AC145),9))","v":0.99997239699999996},{"$f":"VALUE(FIXED(EXP(AD$4*-1*'PM2.5 reduction'!AD145),9))","v":0.99999461099999998},{"$f":"VALUE(FIXED(EXP(AE$4*-1*'PM2.5 reduction'!AE145),9))","v":0.999994206},{"$f":"VALUE(FIXED(EXP(AF$4*-1*'PM2.5 reduction'!AF145),9))","v":0.99998536000000005},{"$f":"VALUE(FIXED(EXP(AG$4*-1*'PM2.5 reduction'!AG145),9))","v":0.999994206},{"$f":"VALUE(FIXED(EXP(AH$4*-1*'PM2.5 reduction'!AH145),9))","v":0.99997845799999996},{"$f":"VALUE(FIXED(EXP(AI$4*-1*'PM2.5 reduction'!AI145),9))","v":0.99997211100000005},{"$f":"VALUE(FIXED(EXP(AJ$4*-1*'PM2.5 reduction'!AJ145),9))","v":0.99998479200000001},{"$f":"VALUE(FIXED(EXP(AK$4*-1*'PM2.5 reduction'!AK145),9))","v":0.99999208100000003},{"$f":"VALUE(FIXED(EXP(AL$4*-1*'PM2.5 reduction'!AL145),9))","v":0.99999132300000004},{"$f":"VALUE(FIXED(EXP(AM$4*-1*'PM2.5 reduction'!AM145),9))","v":0.99997712500000002},{"$f":"VALUE(FIXED(EXP(AN$4*-1*'PM2.5 reduction'!AN145),9))","v":0.99999370200000004},{"$f":"VALUE(FIXED(EXP(AO$4*-1*'PM2.5 reduction'!AO145),9))","v":0.99999370200000004},{"$f":"VALUE(FIXED(EXP(AP$4*-1*'PM2.5 reduction'!AP145),9))","v":0.99999055199999998},{"$f":"VALUE(FIXED(EXP(AQ$4*-1*'PM2.5 reduction'!AQ145),9))","v":0.99998109700000004},{"$f":"VALUE(FIXED(EXP(AR$4*-1*'PM2.5 reduction'!AR145),9))","v":0.99998002699999999},{"$f":"VALUE(FIXED(EXP(AS$4*-1*'PM2.5 reduction'!AS145),9))","v":0.99999497599999998},{"$f":"VALUE(FIXED(EXP(AT$4*-1*'PM2.5 reduction'!AT145),9))","v":1},{"$f":"VALUE(FIXED(EXP(AU$4*-1*'PM2.5 reduction'!AU145),9))","v":1},{"$f":"VALUE(FIXED(EXP(AV$4*-1*'PM2.5 reduction'!AV145),9))","v":0.99998580800000003},{"$f":"VALUE(FIXED(EXP(AW$4*-1*'PM2.5 reduction'!AW145),9))","v":0.99998002200000002},{"$f":"VALUE(FIXED(EXP(AX$4*-1*'PM2.5 reduction'!AX145),9))","v":0.99999073800000005},{"$f":"VALUE(FIXED(EXP(AY$4*-1*'PM2.5 reduction'!AY145),9))","v":0.99998511599999995},{"$f":"VALUE(FIXED(EXP(AZ$4*-1*'PM2.5 reduction'!AZ145),9))","v":0.99998525800000004},{"$f":"VALUE(FIXED(EXP(BA$4*-1*'PM2.5 reduction'!BA145),9))","v":0.99998058899999998},{"$f":"VALUE(FIXED(EXP(BB$4*-1*'PM2.5 reduction'!BB145),9))","v":0.99998308000000002},{"$f":"VALUE(FIXED(EXP(BC$4*-1*'PM2.5 reduction'!BC145),9))","v":0.99999551900000005}]
[null,"Female 50-54",{"$f":"VALUE(FIXED(EXP(C$4*-1*'PM2.5 reduction'!C146),9))","v":0.99996606200000004},{"$f":"VALUE(FIXED(EXP(D$4*-1*'PM2.5 reduction'!D146),9))","v":0.99997983300000004},{"$f":"VALUE(FIXED(EXP(E$4*-1*'PM2.5 reduction'!E146),9))","v":0.99999398299999998},{"$f":"VALUE(FIXED(EXP(F$4*-1*'PM2.5 reduction'!F146),9))","v":0.999992565},{"$f":"VALUE(FIXED(EXP(G$4*-1*'PM2.5 reduction'!G146),9))","v":0.99999674999999999},{"$f":"VALUE(FIXED(EXP(H$4*-1*'PM2.5 reduction'!H146),9))","v":0.99998921799999996},{"$f":"VALUE(FIXED(EXP(I$4*-1*'PM2.5 reduction'!I146),9))","v":0.99999521999999996},{"$f":"VALUE(FIXED(EXP(J$4*-1*'PM2.5 reduction'!J146),9))","v":0.99999007100000004},{"$f":"VALUE(FIXED(EXP(K$4*-1*'PM2.5 reduction'!K146),9))","v":0.99998895600000004},{"$f":"VALUE(FIXED(EXP(L$4*-1*'PM2.5 reduction'!L146),9))","v":0.99999316199999999},{"$f":"VALUE(FIXED(EXP(M$4*-1*'PM2.5 reduction'!M146),9))","v":0.99999316199999999},{"$f":"VALUE(FIXED(EXP(N$4*-1*'PM2.5 reduction'!N146),9))","v":0.99997071599999998},{"$f":"VALUE(FIXED(EXP(O$4*-1*'PM2.5 reduction'!O146),9))","v":0.99999021499999996},{"$f":"VALUE(FIXED(EXP(P$4*-1*'PM2.5 reduction'!P146),9))","v":0.99997465399999996},{"$f":"VALUE(FIXED(EXP(Q$4*-1*'PM2.5 reduction'!Q146),9))","v":0.99998571999999997},{"$f":"VALUE(FIXED(EXP(R$4*-1*'PM2.5 reduction'!R146),9))","v":0.99997740099999999},{"$f":"VALUE(FIXED(EXP(S$4*-1*'PM2.5 reduction'!S146),9))","v":0.99997865100000005},{"$f":"VALUE(FIXED(EXP(T$4*-1*'PM2.5 reduction'!T146),9))","v":0.99995900999999998},{"$f":"VALUE(FIXED(EXP(U$4*-1*'PM2.5 reduction'!U146),9))","v":0.99999565700000004},{"$f":"VALUE(FIXED(EXP(V$4*-1*'PM2.5 reduction'!V146),9))","v":0.99997992300000005},{"$f":"VALUE(FIXED(EXP(W$4*-1*'PM2.5 reduction'!W146),9))","v":0.99998492299999997},{"$f":"VALUE(FIXED(EXP(X$4*-1*'PM2.5 reduction'!X146),9))","v":0.99998492299999997},{"$f":"VALUE(FIXED(EXP(Y$4*-1*'PM2.5 reduction'!Y146),9))","v":0.99998352199999996},{"$f":"VALUE(FIXED(EXP(Z$4*-1*'PM2.5 reduction'!Z146),9))","v":0.99996572900000003},{"$f":"VALUE(FIXED(EXP(AA$4*-1*'PM2.5 reduction'!AA146),9))","v":0.99997530499999998},{"$f":"VALUE(FIXED(EXP(AB$4*-1*'PM2.5 reduction'!AB146),9))","v":0.99998245600000002},{"$f":"VALUE(FIXED(EXP(AC$4*-1*'PM2.5 reduction'!AC146),9))","v":0.99997282200000004},{"$f":"VALUE(FIXED(EXP(AD$4*-1*'PM2.5 reduction'!AD146),9))","v":0.99999463300000002},{"$f":"VALUE(FIXED(EXP(AE$4*-1*'PM2.5 reduction'!AE146),9))","v":0.99999415899999999},{"$f":"VALUE(FIXED(EXP(AF$4*-1*'PM2.5 reduction'!AF146),9))","v":0.99998520000000002},{"$f":"VALUE(FIXED(EXP(AG$4*-1*'PM2.5 reduction'!AG146),9))","v":0.99999415899999999},{"$f":"VALUE(FIXED(EXP(AH$4*-1*'PM2.5 reduction'!AH146),9))","v":0.99997867299999998},{"$f":"VALUE(FIXED(EXP(AI$4*-1*'PM2.5 reduction'!AI146),9))","v":0.99997242799999997},{"$f":"VALUE(FIXED(EXP(AJ$4*-1*'PM2.5 reduction'!AJ146),9))","v":0.99998452000000004},{"$f":"VALUE(FIXED(EXP(AK$4*-1*'PM2.5 reduction'!AK146),9))","v":0.99999159500000001},{"$f":"VALUE(FIXED(EXP(AL$4*-1*'PM2.5 reduction'!AL146),9))","v":0.99999136799999999},{"$f":"VALUE(FIXED(EXP(AM$4*-1*'PM2.5 reduction'!AM146),9))","v":0.99997765900000002},{"$f":"VALUE(FIXED(EXP(AN$4*-1*'PM2.5 reduction'!AN146),9))","v":0.99999381799999998},{"$f":"VALUE(FIXED(EXP(AO$4*-1*'PM2.5 reduction'!AO146),9))","v":0.99999381799999998},{"$f":"VALUE(FIXED(EXP(AP$4*-1*'PM2.5 reduction'!AP146),9))","v":0.99999064699999995},{"$f":"VALUE(FIXED(EXP(AQ$4*-1*'PM2.5 reduction'!AQ146),9))","v":0.999980498},{"$f":"VALUE(FIXED(EXP(AR$4*-1*'PM2.5 reduction'!AR146),9))","v":0.99998015500000004},{"$f":"VALUE(FIXED(EXP(AS$4*-1*'PM2.5 reduction'!AS146),9))","v":0.99999521999999996},{"$f":"VALUE(FIXED(EXP(AT$4*-1*'PM2.5 reduction'!AT146),9))","v":1},{"$f":"VALUE(FIXED(EXP(AU$4*-1*'PM2.5 reduction'!AU146),9))","v":1},{"$f":"VALUE(FIXED(EXP(AV$4*-1*'PM2.5 reduction'!AV146),9))","v":0.999986233},{"$f":"VALUE(FIXED(EXP(AW$4*-1*'PM2.5 reduction'!AW146),9))","v":0.99997978600000004},{"$f":"VALUE(FIXED(EXP(AX$4*-1*'PM2.5 reduction'!AX146),9))","v":0.99999107600000003},{"$f":"VALUE(FIXED(EXP(AY$4*-1*'PM2.5 reduction'!AY146),9))","v":0.99998486399999997},{"$f":"VALUE(FIXED(EXP(AZ$4*-1*'PM2.5 reduction'!AZ146),9))","v":0.999984804},{"$f":"VALUE(FIXED(EXP(BA$4*-1*'PM2.5 reduction'!BA146),9))","v":0.99998044600000002},{"$f":"VALUE(FIXED(EXP(BB$4*-1*'PM2.5 reduction'!BB146),9))","v":0.999983344},{"$f":"VALUE(FIXED(EXP(BC$4*-1*'PM2.5 reduction'!BC146),9))","v":0.99999565700000004}]
[null,"Female 55-59",{"$f":"VALUE(FIXED(EXP(C$4*-1*'PM2.5 reduction'!C147),9))","v":0.99996665799999995},{"$f":"VALUE(FIXED(EXP(D$4*-1*'PM2.5 reduction'!D147),9))","v":0.99997987600000005},{"$f":"VALUE(FIXED(EXP(E$4*-1*'PM2.5 reduction'!E147),9))","v":0.99999364999999996},{"$f":"VALUE(FIXED(EXP(F$4*-1*'PM2.5 reduction'!F147),9))","v":0.99999221000000005},{"$f":"VALUE(FIXED(EXP(G$4*-1*'PM2.5 reduction'!G147),9))","v":0.99999664300000002},{"$f":"VALUE(FIXED(EXP(H$4*-1*'PM2.5 reduction'!H147),9))","v":0.999988973},{"$f":"VALUE(FIXED(EXP(I$4*-1*'PM2.5 reduction'!I147),9))","v":0.99999512199999996},{"$f":"VALUE(FIXED(EXP(J$4*-1*'PM2.5 reduction'!J147),9))","v":0.99999052099999997},{"$f":"VALUE(FIXED(EXP(K$4*-1*'PM2.5 reduction'!K147),9))","v":0.99998966499999997},{"$f":"VALUE(FIXED(EXP(L$4*-1*'PM2.5 reduction'!L147),9))","v":0.99999311000000002},{"$f":"VALUE(FIXED(EXP(M$4*-1*'PM2.5 reduction'!M147),9))","v":0.99999311000000002},{"$f":"VALUE(FIXED(EXP(N$4*-1*'PM2.5 reduction'!N147),9))","v":0.99997016500000002},{"$f":"VALUE(FIXED(EXP(O$4*-1*'PM2.5 reduction'!O147),9))","v":0.99998982199999997},{"$f":"VALUE(FIXED(EXP(P$4*-1*'PM2.5 reduction'!P147),9))","v":0.99997507100000005},{"$f":"VALUE(FIXED(EXP(Q$4*-1*'PM2.5 reduction'!Q147),9))","v":0.99998586},{"$f":"VALUE(FIXED(EXP(R$4*-1*'PM2.5 reduction'!R147),9))","v":0.99997708600000001},{"$f":"VALUE(FIXED(EXP(S$4*-1*'PM2.5 reduction'!S147),9))","v":0.99997904000000004},{"$f":"VALUE(FIXED(EXP(T$4*-1*'PM2.5 reduction'!T147),9))","v":0.99995865299999998},{"$f":"VALUE(FIXED(EXP(U$4*-1*'PM2.5 reduction'!U147),9))","v":0.99999564200000002},{"$f":"VALUE(FIXED(EXP(V$4*-1*'PM2.5 reduction'!V147),9))","v":0.99998021500000001},{"$f":"VALUE(FIXED(EXP(W$4*-1*'PM2.5 reduction'!W147),9))","v":0.99998509999999996},{"$f":"VALUE(FIXED(EXP(X$4*-1*'PM2.5 reduction'!X147),9))","v":0.99998509999999996},{"$f":"VALUE(FIXED(EXP(Y$4*-1*'PM2.5 reduction'!Y147),9))","v":0.99998389899999995},{"$f":"VALUE(FIXED(EXP(Z$4*-1*'PM2.5 reduction'!Z147),9))","v":0.99996561500000003},{"$f":"VALUE(FIXED(EXP(AA$4*-1*'PM2.5 reduction'!AA147),9))","v":0.99997537599999997},{"$f":"VALUE(FIXED(EXP(AB$4*-1*'PM2.5 reduction'!AB147),9))","v":0.99998241799999998},{"$f":"VALUE(FIXED(EXP(AC$4*-1*'PM2.5 reduction'!AC147),9))","v":0.99997296400000002},{"$f":"VALUE(FIXED(EXP(AD$4*-1*'PM2.5 reduction'!AD147),9))","v":0.99999450899999998},{"$f":"VALUE(FIXED(EXP(AE$4*-1*'PM2.5 reduction'!AE147),9))","v":0.99999412300000001},{"$f":"VALUE(FIXED(EXP(AF$4*-1*'PM2.5 reduction'!AF147),9))","v":0.99998529300000005},{"$f":"VALUE(FIXED(EXP(AG$4*-1*'PM2.5 reduction'!AG147),9))","v":0.99999412300000001},{"$f":"VALUE(FIXED(EXP(AH$4*-1*'PM2.5 reduction'!AH147),9))","v":0.99997844300000005},{"$f":"VALUE(FIXED(EXP(AI$4*-1*'PM2.5 reduction'!AI147),9))","v":0.99997254099999999},{"$f":"VALUE(FIXED(EXP(AJ$4*-1*'PM2.5 reduction'!AJ147),9))","v":0.99998482099999997},{"$f":"VALUE(FIXED(EXP(AK$4*-1*'PM2.5 reduction'!AK147),9))","v":0.99999166100000003},{"$f":"VALUE(FIXED(EXP(AL$4*-1*'PM2.5 reduction'!AL147),9))","v":0.99999146500000002},{"$f":"VALUE(FIXED(EXP(AM$4*-1*'PM2.5 reduction'!AM147),9))","v":0.99997763900000003},{"$f":"VALUE(FIXED(EXP(AN$4*-1*'PM2.5 reduction'!AN147),9))","v":0.99999368},{"$f":"VALUE(FIXED(EXP(AO$4*-1*'PM2.5 reduction'!AO147),9))","v":0.99999368},{"$f":"VALUE(FIXED(EXP(AP$4*-1*'PM2.5 reduction'!AP147),9))","v":0.99999056099999994},{"$f":"VALUE(FIXED(EXP(AQ$4*-1*'PM2.5 reduction'!AQ147),9))","v":0.99998058700000003},{"$f":"VALUE(FIXED(EXP(AR$4*-1*'PM2.5 reduction'!AR147),9))","v":0.99998024200000002},{"$f":"VALUE(FIXED(EXP(AS$4*-1*'PM2.5 reduction'!AS147),9))","v":0.99999512199999996},{"$f":"VALUE(FIXED(EXP(AT$4*-1*'PM2.5 reduction'!AT147),9))","v":1},{"$f":"VALUE(FIXED(EXP(AU$4*-1*'PM2.5 reduction'!AU147),9))","v":1},{"$f":"VALUE(FIXED(EXP(AV$4*-1*'PM2.5 reduction'!AV147),9))","v":0.99998581200000003},{"$f":"VALUE(FIXED(EXP(AW$4*-1*'PM2.5 reduction'!AW147),9))","v":0.99997926199999998},{"$f":"VALUE(FIXED(EXP(AX$4*-1*'PM2.5 reduction'!AX147),9))","v":0.99999135400000005},{"$f":"VALUE(FIXED(EXP(AY$4*-1*'PM2.5 reduction'!AY147),9))","v":0.99998468200000001},{"$f":"VALUE(FIXED(EXP(AZ$4*-1*'PM2.5 reduction'!AZ147),9))","v":0.999984239},{"$f":"VALUE(FIXED(EXP(BA$4*-1*'PM2.5 reduction'!BA147),9))","v":0.99998036300000004},{"$f":"VALUE(FIXED(EXP(BB$4*-1*'PM2.5 reduction'!BB147),9))","v":0.99998364799999995},{"$f":"VALUE(FIXED(EXP(BC$4*-1*'PM2.5 reduction'!BC147),9))","v":0.99999564200000002}]
[null,"Female 60-64",{"$f":"VALUE(FIXED(EXP(C$4*-1*'PM2.5 reduction'!C148),9))","v":0.99996664599999996},{"$f":"VALUE(FIXED(EXP(D$4*-1*'PM2.5 reduction'!D148),9))","v":0.99998050299999997},{"$f":"VALUE(FIXED(EXP(E$4*-1*'PM2.5 reduction'!E148),9))","v":0.999993884},{"$f":"VALUE(FIXED(EXP(F$4*-1*'PM2.5 reduction'!F148),9))","v":0.99999242200000005},{"$f":"VALUE(FIXED(EXP(G$4*-1*'PM2.5 reduction'!G148),9))","v":0.99999708700000001},{"$f":"VALUE(FIXED(EXP(H$4*-1*'PM2.5 reduction'!H148),9))","v":0.99998904},{"$f":"VALUE(FIXED(EXP(I$4*-1*'PM2.5 reduction'!I148),9))","v":0.99999511699999999},{"$f":"VALUE(FIXED(EXP(J$4*-1*'PM2.5 reduction'!J148),9))","v":0.99999095299999996},{"$f":"VALUE(FIXED(EXP(K$4*-1*'PM2.5 reduction'!K148),9))","v":0.99998964000000001},{"$f":"VALUE(FIXED(EXP(L$4*-1*'PM2.5 reduction'!L148),9))","v":0.99999389299999997},{"$f":"VALUE(FIXED(EXP(M$4*-1*'PM2.5 reduction'!M148),9))","v":0.99999389299999997},{"$f":"VALUE(FIXED(EXP(N$4*-1*'PM2.5 reduction'!N148),9))","v":0.99997140200000001},{"$f":"VALUE(FIXED(EXP(O$4*-1*'PM2.5 reduction'!O148),9))","v":0.99999012600000003},{"$f":"VALUE(FIXED(EXP(P$4*-1*'PM2.5 reduction'!P148),9))","v":0.99997455400000002},{"$f":"VALUE(FIXED(EXP(Q$4*-1*'PM2.5 reduction'!Q148),9))","v":0.99998619300000002},{"$f":"VALUE(FIXED(EXP(R$4*-1*'PM2.5 reduction'!R148),9))","v":0.99997736500000001},{"$f":"VALUE(FIXED(EXP(S$4*-1*'PM2.5 reduction'!S148),9))","v":0.99997952099999998},{"$f":"VALUE(FIXED(EXP(T$4*-1*'PM2.5 reduction'!T148),9))","v":0.99995975199999998},{"$f":"VALUE(FIXED(EXP(U$4*-1*'PM2.5 reduction'!U148),9))","v":0.999995525},{"$f":"VALUE(FIXED(EXP(V$4*-1*'PM2.5 reduction'!V148),9))","v":0.99998082200000005},{"$f":"VALUE(FIXED(EXP(W$4*-1*'PM2.5 reduction'!W148),9))","v":0.99998473399999999},{"$f":"VALUE(FIXED(EXP(X$4*-1*'PM2.5 reduction'!X148),9))","v":0.99998473399999999},{"$f":"VALUE(FIXED(EXP(Y$4*-1*'PM2.5 reduction'!Y148),9))","v":0.99998438300000003},{"$f":"VALUE(FIXED(EXP(Z$4*-1*'PM2.5 reduction'!Z148),9))","v":0.99996546500000005},{"$f":"VALUE(FIXED(EXP(AA$4*-1*'PM2.5 reduction'!AA148),9))","v":0.99997567099999995},{"$f":"VALUE(FIXED(EXP(AB$4*-1*'PM2.5 reduction'!AB148),9))","v":0.99998278299999999},{"$f":"VALUE(FIXED(EXP(AC$4*-1*'PM2.5 reduction'!AC148),9))","v":0.99997312199999999},{"$f":"VALUE(FIXED(EXP(AD$4*-1*'PM2.5 reduction'!AD148),9))","v":0.99999498399999998},{"$f":"VALUE(FIXED(EXP(AE$4*-1*'PM2.5 reduction'!AE148),9))","v":0.99999459199999996},{"$f":"VALUE(FIXED(EXP(AF$4*-1*'PM2.5 reduction'!AF148),9))","v":0.99998521200000001},{"$f":"VALUE(FIXED(EXP(AG$4*-1*'PM2.5 reduction'!AG148),9))","v":0.99999459199999996},{"$f":"VALUE(FIXED(EXP(AH$4*-1*'PM2.5 reduction'!AH148),9))","v":0.99997873199999998},{"$f":"VALUE(FIXED(EXP(AI$4*-1*'PM2.5 reduction'!AI148),9))","v":0.99997311200000005},{"$f":"VALUE(FIXED(EXP(AJ$4*-1*'PM2.5 reduction'!AJ148),9))","v":0.999984655},{"$f":"VALUE(FIXED(EXP(AK$4*-1*'PM2.5 reduction'!AK148),9))","v":0.99999147399999999},{"$f":"VALUE(FIXED(EXP(AL$4*-1*'PM2.5 reduction'!AL148),9))","v":0.99999117400000004},{"$f":"VALUE(FIXED(EXP(AM$4*-1*'PM2.5 reduction'!AM148),9))","v":0.99997767400000004},{"$f":"VALUE(FIXED(EXP(AN$4*-1*'PM2.5 reduction'!AN148),9))","v":0.99999368099999997},{"$f":"VALUE(FIXED(EXP(AO$4*-1*'PM2.5 reduction'!AO148),9))","v":0.99999368099999997},{"$f":"VALUE(FIXED(EXP(AP$4*-1*'PM2.5 reduction'!AP148),9))","v":0.999991242},{"$f":"VALUE(FIXED(EXP(AQ$4*-1*'PM2.5 reduction'!AQ148),9))","v":0.99997986900000002},{"$f":"VALUE(FIXED(EXP(AR$4*-1*'PM2.5 reduction'!AR148),9))","v":0.99998088799999996},{"$f":"VALUE(FIXED(EXP(AS$4*-1*'PM2.5 reduction'!AS148),9))","v":0.99999511699999999},{"$f":"VALUE(FIXED(EXP(AT$4*-1*'PM2.5 reduction'!AT148),9))","v":1},{"$f":"VALUE(FIXED(EXP(AU$4*-1*'PM2.5 reduction'!AU148),9))","v":1},{"$f":"VALUE(FIXED(EXP(AV$4*-1*'PM2.5 reduction'!AV148),9))","v":0.99998610799999998},{"$f":"VALUE(FIXED(EXP(AW$4*-1*'PM2.5 reduction'!AW148),9))","v":0.999979807},{"$f":"VALUE(FIXED(EXP(AX$4*-1*'PM2.5 reduction'!AX148),9))","v":0.999992043},{"$f":"VALUE(FIXED(EXP(AY$4*-1*'PM2.5 reduction'!AY148),9))","v":0.99998489000000002},{"$f":"VALUE(FIXED(EXP(AZ$4*-1*'PM2.5 reduction'!AZ148),9))","v":0.99998504799999999},{"$f":"VALUE(FIXED(EXP(BA$4*-1*'PM2.5 reduction'!BA148),9))","v":0.99998044500000005},{"$f":"VALUE(FIXED(EXP(BB$4*-1*'PM2.5 reduction'!BB148),9))","v":0.99998391499999995},{"$f":"VALUE(FIXED(EXP(BC$4*-1*'PM2.5 reduction'!BC148),9))","v":0.999995525}]
[null,"Female 65-69",{"$f":"VALUE(FIXED(EXP(C$4*-1*'PM2.5 reduction'!C149),9))","v":0.99996631199999997},{"$f":"VALUE(FIXED(EXP(D$4*-1*'PM2.5 reduction'!D149),9))","v":0.99998120099999999},{"$f":"VALUE(FIXED(EXP(E$4*-1*'PM2.5 reduction'!E149),9))","v":0.99999383799999997},{"$f":"VALUE(FIXED(EXP(F$4*-1*'PM2.5 reduction'!F149),9))","v":0.99999247899999999},{"$f":"VALUE(FIXED(EXP(G$4*-1*'PM2.5 reduction'!G149),9))","v":0.99999663100000002},{"$f":"VALUE(FIXED(EXP(H$4*-1*'PM2.5 reduction'!H149),9))","v":0.99998898199999997},{"$f":"VALUE(FIXED(EXP(I$4*-1*'PM2.5 reduction'!I149),9))","v":0.99999502100000004},{"$f":"VALUE(FIXED(EXP(J$4*-1*'PM2.5 reduction'!J149),9))","v":0.99999134300000003},{"$f":"VALUE(FIXED(EXP(K$4*-1*'PM2.5 reduction'!K149),9))","v":0.999990614},{"$f":"VALUE(FIXED(EXP(L$4*-1*'PM2.5 reduction'!L149),9))","v":0.99999338699999996},{"$f":"VALUE(FIXED(EXP(M$4*-1*'PM2.5 reduction'!M149),9))","v":0.99999338699999996},{"$f":"VALUE(FIXED(EXP(N$4*-1*'PM2.5 reduction'!N149),9))","v":0.99997001100000005},{"$f":"VALUE(FIXED(EXP(O$4*-1*'PM2.5 reduction'!O149),9))","v":0.99999004599999997},{"$f":"VALUE(FIXED(EXP(P$4*-1*'PM2.5 reduction'!P149),9))","v":0.99997512700000002},{"$f":"VALUE(FIXED(EXP(Q$4*-1*'PM2.5 reduction'!Q149),9))","v":0.99998641799999999},{"$f":"VALUE(FIXED(EXP(R$4*-1*'PM2.5 reduction'!R149),9))","v":0.99997800000000003},{"$f":"VALUE(FIXED(EXP(S$4*-1*'PM2.5 reduction'!S149),9))","v":0.99998054700000005},{"$f":"VALUE(FIXED(EXP(T$4*-1*'PM2.5 reduction'!T149),9))","v":0.99996087},{"$f":"VALUE(FIXED(EXP(U$4*-1*'PM2.5 reduction'!U149),9))","v":0.99999549399999998},{"$f":"VALUE(FIXED(EXP(V$4*-1*'PM2.5 reduction'!V149),9))","v":0.99998004200000001},{"$f":"VALUE(FIXED(EXP(W$4*-1*'PM2.5 reduction'!W149),9))","v":0.99998498899999999},{"$f":"VALUE(FIXED(EXP(X$4*-1*'PM2.5 reduction'!X149),9))","v":0.99998498899999999},{"$f":"VALUE(FIXED(EXP(Y$4*-1*'PM2.5 reduction'!Y149),9))","v":0.99998421500000001},{"$f":"VALUE(FIXED(EXP(Z$4*-1*'PM2.5 reduction'!Z149),9))","v":0.99996583400000005},{"$f":"VALUE(FIXED(EXP(AA$4*-1*'PM2.5 reduction'!AA149),9))","v":0.99997651600000004},{"$f":"VALUE(FIXED(EXP(AB$4*-1*'PM2.5 reduction'!AB149),9))","v":0.99998337500000001},{"$f":"VALUE(FIXED(EXP(AC$4*-1*'PM2.5 reduction'!AC149),9))","v":0.99997418800000004},{"$f":"VALUE(FIXED(EXP(AD$4*-1*'PM2.5 reduction'!AD149),9))","v":0.99999478799999997},{"$f":"VALUE(FIXED(EXP(AE$4*-1*'PM2.5 reduction'!AE149),9))","v":0.99999446999999997},{"$f":"VALUE(FIXED(EXP(AF$4*-1*'PM2.5 reduction'!AF149),9))","v":0.99998521100000004},{"$f":"VALUE(FIXED(EXP(AG$4*-1*'PM2.5 reduction'!AG149),9))","v":0.99999446999999997},{"$f":"VALUE(FIXED(EXP(AH$4*-1*'PM2.5 reduction'!AH149),9))","v":0.99997935100000002},{"$f":"VALUE(FIXED(EXP(AI$4*-1*'PM2.5 reduction'!AI149),9))","v":0.99997415999999995},{"$f":"VALUE(FIXED(EXP(AJ$4*-1*'PM2.5 reduction'!AJ149),9))","v":0.99998455100000005},{"$f":"VALUE(FIXED(EXP(AK$4*-1*'PM2.5 reduction'!AK149),9))","v":0.99999152499999999},{"$f":"VALUE(FIXED(EXP(AL$4*-1*'PM2.5 reduction'!AL149),9))","v":0.99999138300000001},{"$f":"VALUE(FIXED(EXP(AM$4*-1*'PM2.5 reduction'!AM149),9))","v":0.99997823299999999},{"$f":"VALUE(FIXED(EXP(AN$4*-1*'PM2.5 reduction'!AN149),9))","v":0.99999372900000005},{"$f":"VALUE(FIXED(EXP(AO$4*-1*'PM2.5 reduction'!AO149),9))","v":0.99999372900000005},{"$f":"VALUE(FIXED(EXP(AP$4*-1*'PM2.5 reduction'!AP149),9))","v":0.99999121499999999},{"$f":"VALUE(FIXED(EXP(AQ$4*-1*'PM2.5 reduction'!AQ149),9))","v":0.99998082700000002},{"$f":"VALUE(FIXED(EXP(AR$4*-1*'PM2.5 reduction'!AR149),9))","v":0.99998159200000003},{"$f":"VALUE(FIXED(EXP(AS$4*-1*'PM2.5 reduction'!AS149),9))","v":0.99999502100000004},{"$f":"VALUE(FIXED(EXP(AT$4*-1*'PM2.5 reduction'!AT149),9))","v":1},{"$f":"VALUE(FIXED(EXP(AU$4*-1*'PM2.5 reduction'!AU149),9))","v":1},{"$f":"VALUE(FIXED(EXP(AV$4*-1*'PM2.5 reduction'!AV149),9))","v":0.99998584999999995},{"$f":"VALUE(FIXED(EXP(AW$4*-1*'PM2.5 reduction'!AW149),9))","v":0.99998061900000002},{"$f":"VALUE(FIXED(EXP(AX$4*-1*'PM2.5 reduction'!AX149),9))","v":0.99999200700000002},{"$f":"VALUE(FIXED(EXP(AY$4*-1*'PM2.5 reduction'!AY149),9))","v":0.99998482099999997},{"$f":"VALUE(FIXED(EXP(AZ$4*-1*'PM2.5 reduction'!AZ149),9))","v":0.99998464200000003},{"$f":"VALUE(FIXED(EXP(BA$4*-1*'PM2.5 reduction'!BA149),9))","v":0.99998034000000002},{"$f":"VALUE(FIXED(EXP(BB$4*-1*'PM2.5 reduction'!BB149),9))","v":0.99998394700000004},{"$f":"VALUE(FIXED(EXP(BC$4*-1*'PM2.5 reduction'!BC149),9))","v":0.99999549399999998}]
[null,"Female 70-74",{"$f":"VALUE(FIXED(EXP(C$4*-1*'PM2.5 reduction'!C150),9))","v":0.99997009100000001},{"$f":"VALUE(FIXED(EXP(D$4*-1*'PM2.5 reduction'!D150),9))","v":0.99998353399999995},{"$f":"VALUE(FIXED(EXP(E$4*-1*'PM2.5 reduction'!E150),9))","v":0.99999420800000005},{"$f":"VALUE(FIXED(EXP(F$4*-1*'PM2.5 reduction'!F150),9))","v":0.99999276100000001},{"$f":"VALUE(FIXED(EXP(G$4*-1*'PM2.5 reduction'!G150),9))","v":0.99999712500000004},{"$f":"VALUE(FIXED(EXP(H$4*-1*'PM2.5 reduction'!H150),9))","v":0.99998894299999996},{"$f":"VALUE(FIXED(EXP(I$4*-1*'PM2.5 reduction'!I150),9))","v":0.99999506800000004},{"$f":"VALUE(FIXED(EXP(J$4*-1*'PM2.5 reduction'!J150),9))","v":0.99999088999999997},{"$f":"VALUE(FIXED(EXP(K$4*-1*'PM2.5 reduction'!K150),9))","v":0.99999008599999994},{"$f":"VALUE(FIXED(EXP(L$4*-1*'PM2.5 reduction'!L150),9))","v":0.99999365200000001},{"$f":"VALUE(FIXED(EXP(M$4*-1*'PM2.5 reduction'!M150),9))","v":0.99999365200000001},{"$f":"VALUE(FIXED(EXP(N$4*-1*'PM2.5 reduction'!N150),9))","v":0.99997112099999996},{"$f":"VALUE(FIXED(EXP(O$4*-1*'PM2.5 reduction'!O150),9))","v":0.99998953700000004},{"$f":"VALUE(FIXED(EXP(P$4*-1*'PM2.5 reduction'!P150),9))","v":0.99997372699999998},{"$f":"VALUE(FIXED(EXP(Q$4*-1*'PM2.5 reduction'!Q150),9))","v":0.99998712199999995},{"$f":"VALUE(FIXED(EXP(R$4*-1*'PM2.5 reduction'!R150),9))","v":0.99997831800000003},{"$f":"VALUE(FIXED(EXP(S$4*-1*'PM2.5 reduction'!S150),9))","v":0.99998083599999998},{"$f":"VALUE(FIXED(EXP(T$4*-1*'PM2.5 reduction'!T150),9))","v":0.99996172999999999},{"$f":"VALUE(FIXED(EXP(U$4*-1*'PM2.5 reduction'!U150),9))","v":0.99999546800000005},{"$f":"VALUE(FIXED(EXP(V$4*-1*'PM2.5 reduction'!V150),9))","v":0.99997940100000005},{"$f":"VALUE(FIXED(EXP(W$4*-1*'PM2.5 reduction'!W150),9))","v":0.99998484700000001},{"$f":"VALUE(FIXED(EXP(X$4*-1*'PM2.5 reduction'!X150),9))","v":0.99998484700000001},{"$f":"VALUE(FIXED(EXP(Y$4*-1*'PM2.5 reduction'!Y150),9))","v":0.99998389600000004},{"$f":"VALUE(FIXED(EXP(Z$4*-1*'PM2.5 reduction'!Z150),9))","v":0.99996511099999996},{"$f":"VALUE(FIXED(EXP(AA$4*-1*'PM2.5 reduction'!AA150),9))","v":0.99997613399999996},{"$f":"VALUE(FIXED(EXP(AB$4*-1*'PM2.5 reduction'!AB150),9))","v":0.99998520499999999},{"$f":"VALUE(FIXED(EXP(AC$4*-1*'PM2.5 reduction'!AC150),9))","v":0.99997392399999996},{"$f":"VALUE(FIXED(EXP(AD$4*-1*'PM2.5 reduction'!AD150),9))","v":0.99999468400000002},{"$f":"VALUE(FIXED(EXP(AE$4*-1*'PM2.5 reduction'!AE150),9))","v":0.99999409500000003},{"$f":"VALUE(FIXED(EXP(AF$4*-1*'PM2.5 reduction'!AF150),9))","v":0.99998495499999995},{"$f":"VALUE(FIXED(EXP(AG$4*-1*'PM2.5 reduction'!AG150),9))","v":0.99999409500000003},{"$f":"VALUE(FIXED(EXP(AH$4*-1*'PM2.5 reduction'!AH150),9))","v":0.99997868400000001},{"$f":"VALUE(FIXED(EXP(AI$4*-1*'PM2.5 reduction'!AI150),9))","v":0.99997505399999997},{"$f":"VALUE(FIXED(EXP(AJ$4*-1*'PM2.5 reduction'!AJ150),9))","v":0.99998447099999999},{"$f":"VALUE(FIXED(EXP(AK$4*-1*'PM2.5 reduction'!AK150),9))","v":0.99999079000000002},{"$f":"VALUE(FIXED(EXP(AL$4*-1*'PM2.5 reduction'!AL150),9))","v":0.99999141999999996},{"$f":"VALUE(FIXED(EXP(AM$4*-1*'PM2.5 reduction'!AM150),9))","v":0.99997768499999995},{"$f":"VALUE(FIXED(EXP(AN$4*-1*'PM2.5 reduction'!AN150),9))","v":0.99999373300000005},{"$f":"VALUE(FIXED(EXP(AO$4*-1*'PM2.5 reduction'!AO150),9))","v":0.99999373300000005},{"$f":"VALUE(FIXED(EXP(AP$4*-1*'PM2.5 reduction'!AP150),9))","v":0.99999131299999999},{"$f":"VALUE(FIXED(EXP(AQ$4*-1*'PM2.5 reduction'!AQ150),9))","v":0.99998114100000002},{"$f":"VALUE(FIXED(EXP(AR$4*-1*'PM2.5 reduction'!AR150),9))","v":0.99998188499999996},{"$f":"VALUE(FIXED(EXP(AS$4*-1*'PM2.5 reduction'!AS150),9))","v":0.99999506800000004},{"$f":"VALUE(FIXED(EXP(AT$4*-1*'PM2.5 reduction'!AT150),9))","v":1},{"$f":"VALUE(FIXED(EXP(AU$4*-1*'PM2.5 reduction'!AU150),9))","v":1},{"$f":"VALUE(FIXED(EXP(AV$4*-1*'PM2.5 reduction'!AV150),9))","v":0.99998632200000004},{"$f":"VALUE(FIXED(EXP(AW$4*-1*'PM2.5 reduction'!AW150),9))","v":0.999979748},{"$f":"VALUE(FIXED(EXP(AX$4*-1*'PM2.5 reduction'!AX150),9))","v":0.99999157299999997},{"$f":"VALUE(FIXED(EXP(AY$4*-1*'PM2.5 reduction'!AY150),9))","v":0.99998525800000004},{"$f":"VALUE(FIXED(EXP(AZ$4*-1*'PM2.5 reduction'!AZ150),9))","v":0.99998566899999997},{"$f":"VALUE(FIXED(EXP(BA$4*-1*'PM2.5 reduction'!BA150),9))","v":0.99997940600000002},{"$f":"VALUE(FIXED(EXP(BB$4*-1*'PM2.5 reduction'!BB150),9))","v":0.99998427999999995},{"$f":"VALUE(FIXED(EXP(BC$4*-1*'PM2.5 reduction'!BC150),9))","v":0.99999546800000005}]
[null,"Female 75-79",{"$f":"VALUE(FIXED(EXP(C$4*-1*'PM2.5 reduction'!C151),9))","v":0.99997098900000003},{"$f":"VALUE(FIXED(EXP(D$4*-1*'PM2.5 reduction'!D151),9))","v":0.99998294600000004},{"$f":"VALUE(FIXED(EXP(E$4*-1*'PM2.5 reduction'!E151),9))","v":0.99999380400000004},{"$f":"VALUE(FIXED(EXP(F$4*-1*'PM2.5 reduction'!F151),9))","v":0.999992667},{"$f":"VALUE(FIXED(EXP(G$4*-1*'PM2.5 reduction'!G151),9))","v":0.99999763500000005},{"$f":"VALUE(FIXED(EXP(H$4*-1*'PM2.5 reduction'!H151),9))","v":0.99998884399999999},{"$f":"VALUE(FIXED(EXP(I$4*-1*'PM2.5 reduction'!I151),9))","v":0.99999507499999996},{"$f":"VALUE(FIXED(EXP(J$4*-1*'PM2.5 reduction'!J151),9))","v":0.99999061499999997},{"$f":"VALUE(FIXED(EXP(K$4*-1*'PM2.5 reduction'!K151),9))","v":0.99998831600000004},{"$f":"VALUE(FIXED(EXP(L$4*-1*'PM2.5 reduction'!L151),9))","v":0.99999391400000004},{"$f":"VALUE(FIXED(EXP(M$4*-1*'PM2.5 reduction'!M151),9))","v":0.99999391400000004},{"$f":"VALUE(FIXED(EXP(N$4*-1*'PM2.5 reduction'!N151),9))","v":0.99997086400000001},{"$f":"VALUE(FIXED(EXP(O$4*-1*'PM2.5 reduction'!O151),9))","v":0.99998964199999996},{"$f":"VALUE(FIXED(EXP(P$4*-1*'PM2.5 reduction'!P151),9))","v":0.99997370799999996},{"$f":"VALUE(FIXED(EXP(Q$4*-1*'PM2.5 reduction'!Q151),9))","v":0.99998779800000004},{"$f":"VALUE(FIXED(EXP(R$4*-1*'PM2.5 reduction'!R151),9))","v":0.99997844999999996},{"$f":"VALUE(FIXED(EXP(S$4*-1*'PM2.5 reduction'!S151),9))","v":0.99998084700000001},{"$f":"VALUE(FIXED(EXP(T$4*-1*'PM2.5 reduction'!T151),9))","v":0.99996172500000002},{"$f":"VALUE(FIXED(EXP(U$4*-1*'PM2.5 reduction'!U151),9))","v":0.99999546100000003},{"$f":"VALUE(FIXED(EXP(V$4*-1*'PM2.5 reduction'!V151),9))","v":0.99997951399999996},{"$f":"VALUE(FIXED(EXP(W$4*-1*'PM2.5 reduction'!W151),9))","v":0.99998509599999996},{"$f":"VALUE(FIXED(EXP(X$4*-1*'PM2.5 reduction'!X151),9))","v":0.99998509599999996},{"$f":"VALUE(FIXED(EXP(Y$4*-1*'PM2.5 reduction'!Y151),9))","v":0.99998383400000002},{"$f":"VALUE(FIXED(EXP(Z$4*-1*'PM2.5 reduction'!Z151),9))","v":0.99996481199999998},{"$f":"VALUE(FIXED(EXP(AA$4*-1*'PM2.5 reduction'!AA151),9))","v":0.99997622799999997},{"$f":"VALUE(FIXED(EXP(AB$4*-1*'PM2.5 reduction'!AB151),9))","v":0.999984859},{"$f":"VALUE(FIXED(EXP(AC$4*-1*'PM2.5 reduction'!AC151),9))","v":0.99997397300000002},{"$f":"VALUE(FIXED(EXP(AD$4*-1*'PM2.5 reduction'!AD151),9))","v":0.99999499300000005},{"$f":"VALUE(FIXED(EXP(AE$4*-1*'PM2.5 reduction'!AE151),9))","v":0.99999449100000004},{"$f":"VALUE(FIXED(EXP(AF$4*-1*'PM2.5 reduction'!AF151),9))","v":0.99998507299999995},{"$f":"VALUE(FIXED(EXP(AG$4*-1*'PM2.5 reduction'!AG151),9))","v":0.99999449100000004},{"$f":"VALUE(FIXED(EXP(AH$4*-1*'PM2.5 reduction'!AH151),9))","v":0.99997874799999997},{"$f":"VALUE(FIXED(EXP(AI$4*-1*'PM2.5 reduction'!AI151),9))","v":0.99997484699999994},{"$f":"VALUE(FIXED(EXP(AJ$4*-1*'PM2.5 reduction'!AJ151),9))","v":0.99998408400000005},{"$f":"VALUE(FIXED(EXP(AK$4*-1*'PM2.5 reduction'!AK151),9))","v":0.99999104900000002},{"$f":"VALUE(FIXED(EXP(AL$4*-1*'PM2.5 reduction'!AL151),9))","v":0.99999127600000004},{"$f":"VALUE(FIXED(EXP(AM$4*-1*'PM2.5 reduction'!AM151),9))","v":0.99997759500000005},{"$f":"VALUE(FIXED(EXP(AN$4*-1*'PM2.5 reduction'!AN151),9))","v":0.99999374600000002},{"$f":"VALUE(FIXED(EXP(AO$4*-1*'PM2.5 reduction'!AO151),9))","v":0.99999374600000002},{"$f":"VALUE(FIXED(EXP(AP$4*-1*'PM2.5 reduction'!AP151),9))","v":0.99999043799999998},{"$f":"VALUE(FIXED(EXP(AQ$4*-1*'PM2.5 reduction'!AQ151),9))","v":0.999981126},{"$f":"VALUE(FIXED(EXP(AR$4*-1*'PM2.5 reduction'!AR151),9))","v":0.99998163500000004},{"$f":"VALUE(FIXED(EXP(AS$4*-1*'PM2.5 reduction'!AS151),9))","v":0.99999507499999996},{"$f":"VALUE(FIXED(EXP(AT$4*-1*'PM2.5 reduction'!AT151),9))","v":1},{"$f":"VALUE(FIXED(EXP(AU$4*-1*'PM2.5 reduction'!AU151),9))","v":1},{"$f":"VALUE(FIXED(EXP(AV$4*-1*'PM2.5 reduction'!AV151),9))","v":0.99998581600000003},{"$f":"VALUE(FIXED(EXP(AW$4*-1*'PM2.5 reduction'!AW151),9))","v":0.99997978700000001},{"$f":"VALUE(FIXED(EXP(AX$4*-1*'PM2.5 reduction'!AX151),9))","v":0.999992451},{"$f":"VALUE(FIXED(EXP(AY$4*-1*'PM2.5 reduction'!AY151),9))","v":0.999984596},{"$f":"VALUE(FIXED(EXP(AZ$4*-1*'PM2.5 reduction'!AZ151),9))","v":0.99998410500000001},{"$f":"VALUE(FIXED(EXP(BA$4*-1*'PM2.5 reduction'!BA151),9))","v":0.99998073499999995},{"$f":"VALUE(FIXED(EXP(BB$4*-1*'PM2.5 reduction'!BB151),9))","v":0.99998430199999999},{"$f":"VALUE(FIXED(EXP(BC$4*-1*'PM2.5 reduction'!BC151),9))","v":0.99999546100000003}]
[null,"Female 80-84",{"$f":"VALUE(FIXED(EXP(C$4*-1*'PM2.5 reduction'!C152),9))","v":0.99997083799999997},{"$f":"VALUE(FIXED(EXP(D$4*-1*'PM2.5 reduction'!D152),9))","v":0.99998136199999998},{"$f":"VALUE(FIXED(EXP(E$4*-1*'PM2.5 reduction'!E152),9))","v":0.99999357600000005},{"$f":"VALUE(FIXED(EXP(F$4*-1*'PM2.5 reduction'!F152),9))","v":0.999992349},{"$f":"VALUE(FIXED(EXP(G$4*-1*'PM2.5 reduction'!G152),9))","v":0.99999738000000005},{"$f":"VALUE(FIXED(EXP(H$4*-1*'PM2.5 reduction'!H152),9))","v":0.99998910699999999},{"$f":"VALUE(FIXED(EXP(I$4*-1*'PM2.5 reduction'!I152),9))","v":0.99999489200000002},{"$f":"VALUE(FIXED(EXP(J$4*-1*'PM2.5 reduction'!J152),9))","v":0.999991411},{"$f":"VALUE(FIXED(EXP(K$4*-1*'PM2.5 reduction'!K152),9))","v":0.99998864399999998},{"$f":"VALUE(FIXED(EXP(L$4*-1*'PM2.5 reduction'!L152),9))","v":0.99999401600000004},{"$f":"VALUE(FIXED(EXP(M$4*-1*'PM2.5 reduction'!M152),9))","v":0.99999401600000004},{"$f":"VALUE(FIXED(EXP(N$4*-1*'PM2.5 reduction'!N152),9))","v":0.99997045600000001},{"$f":"VALUE(FIXED(EXP(O$4*-1*'PM2.5 reduction'!O152),9))","v":0.99999008},{"$f":"VALUE(FIXED(EXP(P$4*-1*'PM2.5 reduction'!P152),9))","v":0.99997493100000001},{"$f":"VALUE(FIXED(EXP(Q$4*-1*'PM2.5 reduction'!Q152),9))","v":0.99998749099999995},{"$f":"VALUE(FIXED(EXP(R$4*-1*'PM2.5 reduction'!R152),9))","v":0.999977212},{"$f":"VALUE(FIXED(EXP(S$4*-1*'PM2.5 reduction'!S152),9))","v":0.99998042799999998},{"$f":"VALUE(FIXED(EXP(T$4*-1*'PM2.5 reduction'!T152),9))","v":0.99996257099999997},{"$f":"VALUE(FIXED(EXP(U$4*-1*'PM2.5 reduction'!U152),9))","v":0.99999532599999996},{"$f":"VALUE(FIXED(EXP(V$4*-1*'PM2.5 reduction'!V152),9))","v":0.99997909600000001},{"$f":"VALUE(FIXED(EXP(W$4*-1*'PM2.5 reduction'!W152),9))","v":0.99998450800000005},{"$f":"VALUE(FIXED(EXP(X$4*-1*'PM2.5 reduction'!X152),9))","v":0.99998450800000005},{"$f":"VALUE(FIXED(EXP(Y$4*-1*'PM2.5 reduction'!Y152),9))","v":0.99998447599999996},{"$f":"VALUE(FIXED(EXP(Z$4*-1*'PM2.5 reduction'!Z152),9))","v":0.99996510500000002},{"$f":"VALUE(FIXED(EXP(AA$4*-1*'PM2.5 reduction'!AA152),9))","v":0.99997535800000004},{"$f":"VALUE(FIXED(EXP(AB$4*-1*'PM2.5 reduction'!AB152),9))","v":0.99998374999999995},{"$f":"VALUE(FIXED(EXP(AC$4*-1*'PM2.5 reduction'!AC152),9))","v":0.99997296300000005},{"$f":"VALUE(FIXED(EXP(AD$4*-1*'PM2.5 reduction'!AD152),9))","v":0.99999485099999996},{"$f":"VALUE(FIXED(EXP(AE$4*-1*'PM2.5 reduction'!AE152),9))","v":0.99999443600000004},{"$f":"VALUE(FIXED(EXP(AF$4*-1*'PM2.5 reduction'!AF152),9))","v":0.99998421000000004},{"$f":"VALUE(FIXED(EXP(AG$4*-1*'PM2.5 reduction'!AG152),9))","v":0.99999443600000004},{"$f":"VALUE(FIXED(EXP(AH$4*-1*'PM2.5 reduction'!AH152),9))","v":0.99997833199999997},{"$f":"VALUE(FIXED(EXP(AI$4*-1*'PM2.5 reduction'!AI152),9))","v":0.99997423200000002},{"$f":"VALUE(FIXED(EXP(AJ$4*-1*'PM2.5 reduction'!AJ152),9))","v":0.99998450800000005},{"$f":"VALUE(FIXED(EXP(AK$4*-1*'PM2.5 reduction'!AK152),9))","v":0.99999043600000004},{"$f":"VALUE(FIXED(EXP(AL$4*-1*'PM2.5 reduction'!AL152),9))","v":0.99999114600000005},{"$f":"VALUE(FIXED(EXP(AM$4*-1*'PM2.5 reduction'!AM152),9))","v":0.99997735600000004},{"$f":"VALUE(FIXED(EXP(AN$4*-1*'PM2.5 reduction'!AN152),9))","v":0.99999373999999996},{"$f":"VALUE(FIXED(EXP(AO$4*-1*'PM2.5 reduction'!AO152),9))","v":0.99999373999999996},{"$f":"VALUE(FIXED(EXP(AP$4*-1*'PM2.5 reduction'!AP152),9))","v":0.99999110400000002},{"$f":"VALUE(FIXED(EXP(AQ$4*-1*'PM2.5 reduction'!AQ152),9))","v":0.99997973399999995},{"$f":"VALUE(FIXED(EXP(AR$4*-1*'PM2.5 reduction'!AR152),9))","v":0.99998094599999998},{"$f":"VALUE(FIXED(EXP(AS$4*-1*'PM2.5 reduction'!AS152),9))","v":0.99999489200000002},{"$f":"VALUE(FIXED(EXP(AT$4*-1*'PM2.5 reduction'!AT152),9))","v":1},{"$f":"VALUE(FIXED(EXP(AU$4*-1*'PM2.5 reduction'!AU152),9))","v":1},{"$f":"VALUE(FIXED(EXP(AV$4*-1*'PM2.5 reduction'!AV152),9))","v":0.99998637599999995},{"$f":"VALUE(FIXED(EXP(AW$4*-1*'PM2.5 reduction'!AW152),9))","v":0.99997912799999999},{"$f":"VALUE(FIXED(EXP(AX$4*-1*'PM2.5 reduction'!AX152),9))","v":0.99999335300000003},{"$f":"VALUE(FIXED(EXP(AY$4*-1*'PM2.5 reduction'!AY152),9))","v":0.99998363700000004},{"$f":"VALUE(FIXED(EXP(AZ$4*-1*'PM2.5 reduction'!AZ152),9))","v":0.99998292300000002},{"$f":"VALUE(FIXED(EXP(BA$4*-1*'PM2.5 reduction'!BA152),9))","v":0.99998041699999995},{"$f":"VALUE(FIXED(EXP(BB$4*-1*'PM2.5 reduction'!BB152),9))","v":0.999984231},{"$f":"VALUE(FIXED(EXP(BC$4*-1*'PM2.5 reduction'!BC152),9))","v":0.99999532599999996}]
[null,"Female 85-89",{"$f":"VALUE(FIXED(EXP(C$4*-1*'PM2.5 reduction'!C153),9))","v":0.99996944399999999},{"$f":"VALUE(FIXED(EXP(D$4*-1*'PM2.5 reduction'!D153),9))","v":0.99998258100000004},{"$f":"VALUE(FIXED(EXP(E$4*-1*'PM2.5 reduction'!E153),9))","v":0.99999333400000001},{"$f":"VALUE(FIXED(EXP(F$4*-1*'PM2.5 reduction'!F153),9))","v":0.99999173500000005},{"$f":"VALUE(FIXED(EXP(G$4*-1*'PM2.5 reduction'!G153),9))","v":0.99999737300000002},{"$f":"VALUE(FIXED(EXP(H$4*-1*'PM2.5 reduction'!H153),9))","v":0.99998873799999999},{"$f":"VALUE(FIXED(EXP(I$4*-1*'PM2.5 reduction'!I153),9))","v":0.99999525700000003},{"$f":"VALUE(FIXED(EXP(J$4*-1*'PM2.5 reduction'!J153),9))","v":0.99999066599999997},{"$f":"VALUE(FIXED(EXP(K$4*-1*'PM2.5 reduction'!K153),9))","v":0.99998826100000004},{"$f":"VALUE(FIXED(EXP(L$4*-1*'PM2.5 reduction'!L153),9))","v":0.99999421899999996},{"$f":"VALUE(FIXED(EXP(M$4*-1*'PM2.5 reduction'!M153),9))","v":0.99999421899999996},{"$f":"VALUE(FIXED(EXP(N$4*-1*'PM2.5 reduction'!N153),9))","v":0.99996948900000004},{"$f":"VALUE(FIXED(EXP(O$4*-1*'PM2.5 reduction'!O153),9))","v":0.99998933999999995},{"$f":"VALUE(FIXED(EXP(P$4*-1*'PM2.5 reduction'!P153),9))","v":0.99997157000000003},{"$f":"VALUE(FIXED(EXP(Q$4*-1*'PM2.5 reduction'!Q153),9))","v":0.99998695599999998},{"$f":"VALUE(FIXED(EXP(R$4*-1*'PM2.5 reduction'!R153),9))","v":0.99997656300000004},{"$f":"VALUE(FIXED(EXP(S$4*-1*'PM2.5 reduction'!S153),9))","v":0.99997966100000002},{"$f":"VALUE(FIXED(EXP(T$4*-1*'PM2.5 reduction'!T153),9))","v":0.99996178199999997},{"$f":"VALUE(FIXED(EXP(U$4*-1*'PM2.5 reduction'!U153),9))","v":0.99999542600000002},{"$f":"VALUE(FIXED(EXP(V$4*-1*'PM2.5 reduction'!V153),9))","v":0.99997865799999996},{"$f":"VALUE(FIXED(EXP(W$4*-1*'PM2.5 reduction'!W153),9))","v":0.99998508699999999},{"$f":"VALUE(FIXED(EXP(X$4*-1*'PM2.5 reduction'!X153),9))","v":0.99998508699999999},{"$f":"VALUE(FIXED(EXP(Y$4*-1*'PM2.5 reduction'!Y153),9))","v":0.99998379299999995},{"$f":"VALUE(FIXED(EXP(Z$4*-1*'PM2.5 reduction'!Z153),9))","v":0.99996506699999999},{"$f":"VALUE(FIXED(EXP(AA$4*-1*'PM2.5 reduction'!AA153),9))","v":0.99997510599999995},{"$f":"VALUE(FIXED(EXP(AB$4*-1*'PM2.5 reduction'!AB153),9))","v":0.99998406299999998},{"$f":"VALUE(FIXED(EXP(AC$4*-1*'PM2.5 reduction'!AC153),9))","v":0.99997267499999998},{"$f":"VALUE(FIXED(EXP(AD$4*-1*'PM2.5 reduction'!AD153),9))","v":0.99999507799999998},{"$f":"VALUE(FIXED(EXP(AE$4*-1*'PM2.5 reduction'!AE153),9))","v":0.99999484699999996},{"$f":"VALUE(FIXED(EXP(AF$4*-1*'PM2.5 reduction'!AF153),9))","v":0.99998408500000002},{"$f":"VALUE(FIXED(EXP(AG$4*-1*'PM2.5 reduction'!AG153),9))","v":0.99999484699999996},{"$f":"VALUE(FIXED(EXP(AH$4*-1*'PM2.5 reduction'!AH153),9))","v":0.99997827100000003},{"$f":"VALUE(FIXED(EXP(AI$4*-1*'PM2.5 reduction'!AI153),9))","v":0.99997250699999995},{"$f":"VALUE(FIXED(EXP(AJ$4*-1*'PM2.5 reduction'!AJ153),9))","v":0.99998410500000001},{"$f":"VALUE(FIXED(EXP(AK$4*-1*'PM2.5 reduction'!AK153),9))","v":0.99998935},{"$f":"VALUE(FIXED(EXP(AL$4*-1*'PM2.5 reduction'!AL153),9))","v":0.99999164699999998},{"$f":"VALUE(FIXED(EXP(AM$4*-1*'PM2.5 reduction'!AM153),9))","v":0.99997693700000001},{"$f":"VALUE(FIXED(EXP(AN$4*-1*'PM2.5 reduction'!AN153),9))","v":0.99999447200000002},{"$f":"VALUE(FIXED(EXP(AO$4*-1*'PM2.5 reduction'!AO153),9))","v":0.99999447200000002},{"$f":"VALUE(FIXED(EXP(AP$4*-1*'PM2.5 reduction'!AP153),9))","v":0.99999110700000005},{"$f":"VALUE(FIXED(EXP(AQ$4*-1*'PM2.5 reduction'!AQ153),9))","v":0.999980074},{"$f":"VALUE(FIXED(EXP(AR$4*-1*'PM2.5 reduction'!AR153),9))","v":0.99998084499999995},{"$f":"VALUE(FIXED(EXP(AS$4*-1*'PM2.5 reduction'!AS153),9))","v":0.99999525700000003},{"$f":"VALUE(FIXED(EXP(AT$4*-1*'PM2.5 reduction'!AT153),9))","v":1},{"$f":"VALUE(FIXED(EXP(AU$4*-1*'PM2.5 reduction'!AU153),9))","v":1},{"$f":"VALUE(FIXED(EXP(AV$4*-1*'PM2.5 reduction'!AV153),9))","v":0.99998558900000001},{"$f":"VALUE(FIXED(EXP(AW$4*-1*'PM2.5 reduction'!AW153),9))","v":0.99997916799999997},{"$f":"VALUE(FIXED(EXP(AX$4*-1*'PM2.5 reduction'!AX153),9))","v":0.99999214199999997},{"$f":"VALUE(FIXED(EXP(AY$4*-1*'PM2.5 reduction'!AY153),9))","v":0.99998435799999996},{"$f":"VALUE(FIXED(EXP(AZ$4*-1*'PM2.5 reduction'!AZ153),9))","v":0.99998376200000005},{"$f":"VALUE(FIXED(EXP(BA$4*-1*'PM2.5 reduction'!BA153),9))","v":0.99997984200000001},{"$f":"VALUE(FIXED(EXP(BB$4*-1*'PM2.5 reduction'!BB153),9))","v":0.99998391200000003},{"$f":"VALUE(FIXED(EXP(BC$4*-1*'PM2.5 reduction'!BC153),9))","v":0.99999542600000002}]
[null,"Female 90+",{"$f":"VALUE(FIXED(EXP(C$4*-1*'PM2.5 reduction'!C154),9))","v":0.99996985599999999},{"$f":"VALUE(FIXED(EXP(D$4*-1*'PM2.5 reduction'!D154),9))","v":0.99998140000000002},{"$f":"VALUE(FIXED(EXP(E$4*-1*'PM2.5 reduction'!E154),9))","v":0.99999240300000003},{"$f":"VALUE(FIXED(EXP(F$4*-1*'PM2.5 reduction'!F154),9))","v":0.99999106500000001},{"$f":"VALUE(FIXED(EXP(G$4*-1*'PM2.5 reduction'!G154),9))","v":0.99999706300000002},{"$f":"VALUE(FIXED(EXP(H$4*-1*'PM2.5 reduction'!H154),9))","v":0.99998911499999998},{"$f":"VALUE(FIXED(EXP(I$4*-1*'PM2.5 reduction'!I154),9))","v":0.99999510599999997},{"$f":"VALUE(FIXED(EXP(J$4*-1*'PM2.5 reduction'!J154),9))","v":0.99999326899999996},{"$f":"VALUE(FIXED(EXP(K$4*-1*'PM2.5 reduction'!K154),9))","v":0.99999020000000005},{"$f":"VALUE(FIXED(EXP(L$4*-1*'PM2.5 reduction'!L154),9))","v":0.999993876},{"$f":"VALUE(FIXED(EXP(M$4*-1*'PM2.5 reduction'!M154),9))","v":0.999993876},{"$f":"VALUE(FIXED(EXP(N$4*-1*'PM2.5 reduction'!N154),9))","v":0.99996993499999998},{"$f":"VALUE(FIXED(EXP(O$4*-1*'PM2.5 reduction'!O154),9))","v":0.99998959300000001},{"$f":"VALUE(FIXED(EXP(P$4*-1*'PM2.5 reduction'!P154),9))","v":0.99996991000000002},{"$f":"VALUE(FIXED(EXP(Q$4*-1*'PM2.5 reduction'!Q154),9))","v":0.99998749099999995},{"$f":"VALUE(FIXED(EXP(R$4*-1*'PM2.5 reduction'!R154),9))","v":0.99997451699999995},{"$f":"VALUE(FIXED(EXP(S$4*-1*'PM2.5 reduction'!S154),9))","v":0.99997804499999998},{"$f":"VALUE(FIXED(EXP(T$4*-1*'PM2.5 reduction'!T154),9))","v":0.99996095200000001},{"$f":"VALUE(FIXED(EXP(U$4*-1*'PM2.5 reduction'!U154),9))","v":0.99999531200000003},{"$f":"VALUE(FIXED(EXP(V$4*-1*'PM2.5 reduction'!V154),9))","v":0.99997831299999995},{"$f":"VALUE(FIXED(EXP(W$4*-1*'PM2.5 reduction'!W154),9))","v":0.99998391499999995},{"$f":"VALUE(FIXED(EXP(X$4*-1*'PM2.5 reduction'!X154),9))","v":0.99998391499999995},{"$f":"VALUE(FIXED(EXP(Y$4*-1*'PM2.5 reduction'!Y154),9))","v":0.99998669299999998},{"$f":"VALUE(FIXED(EXP(Z$4*-1*'PM2.5 reduction'!Z154),9))","v":0.99996523599999998},{"$f":"VALUE(FIXED(EXP(AA$4*-1*'PM2.5 reduction'!AA154),9))","v":0.99997558099999995},{"$f":"VALUE(FIXED(EXP(AB$4*-1*'PM2.5 reduction'!AB154),9))","v":0.99998309699999999},{"$f":"VALUE(FIXED(EXP(AC$4*-1*'PM2.5 reduction'!AC154),9))","v":0.99997324200000004},{"$f":"VALUE(FIXED(EXP(AD$4*-1*'PM2.5 reduction'!AD154),9))","v":0.99999493699999997},{"$f":"VALUE(FIXED(EXP(AE$4*-1*'PM2.5 reduction'!AE154),9))","v":0.99999446000000003},{"$f":"VALUE(FIXED(EXP(AF$4*-1*'PM2.5 reduction'!AF154),9))","v":0.99998387600000005},{"$f":"VALUE(FIXED(EXP(AG$4*-1*'PM2.5 reduction'!AG154),9))","v":0.99999446000000003},{"$f":"VALUE(FIXED(EXP(AH$4*-1*'PM2.5 reduction'!AH154),9))","v":0.99997974300000003},{"$f":"VALUE(FIXED(EXP(AI$4*-1*'PM2.5 reduction'!AI154),9))","v":0.99997224900000004},{"$f":"VALUE(FIXED(EXP(AJ$4*-1*'PM2.5 reduction'!AJ154),9))","v":0.99998336200000004},{"$f":"VALUE(FIXED(EXP(AK$4*-1*'PM2.5 reduction'!AK154),9))","v":0.999987709},{"$f":"VALUE(FIXED(EXP(AL$4*-1*'PM2.5 reduction'!AL154),9))","v":0.99999145599999995},{"$f":"VALUE(FIXED(EXP(AM$4*-1*'PM2.5 reduction'!AM154),9))","v":0.99997847600000001},{"$f":"VALUE(FIXED(EXP(AN$4*-1*'PM2.5 reduction'!AN154),9))","v":0.999994253},{"$f":"VALUE(FIXED(EXP(AO$4*-1*'PM2.5 reduction'!AO154),9))","v":0.999994253},{"$f":"VALUE(FIXED(EXP(AP$4*-1*'PM2.5 reduction'!AP154),9))","v":0.99999209300000003},{"$f":"VALUE(FIXED(EXP(AQ$4*-1*'PM2.5 reduction'!AQ154),9))","v":0.99998100499999998},{"$f":"VALUE(FIXED(EXP(AR$4*-1*'PM2.5 reduction'!AR154),9))","v":0.99998061400000005},{"$f":"VALUE(FIXED(EXP(AS$4*-1*'PM2.5 reduction'!AS154),9))","v":0.99999510599999997},{"$f":"VALUE(FIXED(EXP(AT$4*-1*'PM2.5 reduction'!AT154),9))","v":1},{"$f":"VALUE(FIXED(EXP(AU$4*-1*'PM2.5 reduction'!AU154),9))","v":1},{"$f":"VALUE(FIXED(EXP(AV$4*-1*'PM2.5 reduction'!AV154),9))","v":0.99998484099999996},{"$f":"VALUE(FIXED(EXP(AW$4*-1*'PM2.5 reduction'!AW154),9))","v":0.99998038700000003},{"$f":"VALUE(FIXED(EXP(AX$4*-1*'PM2.5 reduction'!AX154),9))","v":0.99999403600000003},{"$f":"VALUE(FIXED(EXP(AY$4*-1*'PM2.5 reduction'!AY154),9))","v":0.99998415500000004},{"$f":"VALUE(FIXED(EXP(AZ$4*-1*'PM2.5 reduction'!AZ154),9))","v":0.99998431899999995},{"$f":"VALUE(FIXED(EXP(BA$4*-1*'PM2.5 reduction'!BA154),9))","v":0.999982751},{"$f":"VALUE(FIXED(EXP(BB$4*-1*'PM2.5 reduction'!BB154),9))","v":0.99998368599999998},{"$f":"VALUE(FIXED(EXP(BC$4*-1*'PM2.5 reduction'!BC154),9))","v":0.99999531200000003}]
[null,"Male 0-4",{"$f":"VALUE(FIXED(EXP(C$4*-1*'PM2.5 reduction'!C155),9))","v":0.99996344999999998},{"$f":"VALUE(FIXED(EXP(D$4*-1*'PM2.5 reduction'!D155),9))","v":0.99997785900000002},{"$f":"VALUE(FIXED(EXP(E$4*-1*'PM2.5 reduction'!E155),9))","v":0.99999367100000003},{"$f":"VALUE(FIXED(EXP(F$4*-1*'PM2.5 reduction'!F155),9))","v":0.99999238000000001},{"$f":"VALUE(FIXED(EXP(G$4*-1*'PM2.5 reduction'!G155),9))","v":0.99999637500000005},{"$f":"VALUE(FIXED(EXP(H$4*-1*'PM2.5 reduction'!H155),9))","v":0.99998912100000004},{"$f":"VALUE(FIXED(EXP(I$4*-1*'PM2.5 reduction'!I155),9))","v":0.99999497999999998},{"$f":"VALUE(FIXED(EXP(J$4*-1*'PM2.5 reduction'!J155),9))","v":0.99999073599999999},{"$f":"VALUE(FIXED(EXP(K$4*-1*'PM2.5 reduction'!K155),9))","v":0.99999023399999998},{"$f":"VALUE(FIXED(EXP(L$4*-1*'PM2.5 reduction'!L155),9))","v":0.99999374500000004},{"$f":"VALUE(FIXED(EXP(M$4*-1*'PM2.5 reduction'!M155),9))","v":0.99999374500000004},{"$f":"VALUE(FIXED(EXP(N$4*-1*'PM2.5 reduction'!N155),9))","v":0.99996886399999996},{"$f":"VALUE(FIXED(EXP(O$4*-1*'PM2.5 reduction'!O155),9))","v":0.99998906600000004},{"$f":"VALUE(FIXED(EXP(P$4*-1*'PM2.5 reduction'!P155),9))","v":0.99997601400000002},{"$f":"VALUE(FIXED(EXP(Q$4*-1*'PM2.5 reduction'!Q155),9))","v":0.99998577799999999},{"$f":"VALUE(FIXED(EXP(R$4*-1*'PM2.5 reduction'!R155),9))","v":0.99997759100000005},{"$f":"VALUE(FIXED(EXP(S$4*-1*'PM2.5 reduction'!S155),9))","v":0.99997692699999996},{"$f":"VALUE(FIXED(EXP(T$4*-1*'PM2.5 reduction'!T155),9))","v":0.99996008800000002},{"$f":"VALUE(FIXED(EXP(U$4*-1*'PM2.5 reduction'!U155),9))","v":0.99999552199999997},{"$f":"VALUE(FIXED(EXP(V$4*-1*'PM2.5 reduction'!V155),9))","v":0.99998108900000005},{"$f":"VALUE(FIXED(EXP(W$4*-1*'PM2.5 reduction'!W155),9))","v":0.99998451399999999},{"$f":"VALUE(FIXED(EXP(X$4*-1*'PM2.5 reduction'!X155),9))","v":0.99998451399999999},{"$f":"VALUE(FIXED(EXP(Y$4*-1*'PM2.5 reduction'!Y155),9))","v":0.99998454999999997},{"$f":"VALUE(FIXED(EXP(Z$4*-1*'PM2.5 reduction'!Z155),9))","v":0.99996182199999994},{"$f":"VALUE(FIXED(EXP(AA$4*-1*'PM2.5 reduction'!AA155),9))","v":0.99997370900000004},{"$f":"VALUE(FIXED(EXP(AB$4*-1*'PM2.5 reduction'!AB155),9))","v":0.99998091899999997},{"$f":"VALUE(FIXED(EXP(AC$4*-1*'PM2.5 reduction'!AC155),9))","v":0.99996986899999996},{"$f":"VALUE(FIXED(EXP(AD$4*-1*'PM2.5 reduction'!AD155),9))","v":0.99999501599999996},{"$f":"VALUE(FIXED(EXP(AE$4*-1*'PM2.5 reduction'!AE155),9))","v":0.99999468199999997},{"$f":"VALUE(FIXED(EXP(AF$4*-1*'PM2.5 reduction'!AF155),9))","v":0.99998537899999995},{"$f":"VALUE(FIXED(EXP(AG$4*-1*'PM2.5 reduction'!AG155),9))","v":0.99999468199999997},{"$f":"VALUE(FIXED(EXP(AH$4*-1*'PM2.5 reduction'!AH155),9))","v":0.99997850300000002},{"$f":"VALUE(FIXED(EXP(AI$4*-1*'PM2.5 reduction'!AI155),9))","v":0.99997060500000001},{"$f":"VALUE(FIXED(EXP(AJ$4*-1*'PM2.5 reduction'!AJ155),9))","v":0.999985024},{"$f":"VALUE(FIXED(EXP(AK$4*-1*'PM2.5 reduction'!AK155),9))","v":0.99999183899999999},{"$f":"VALUE(FIXED(EXP(AL$4*-1*'PM2.5 reduction'!AL155),9))","v":0.99999179299999996},{"$f":"VALUE(FIXED(EXP(AM$4*-1*'PM2.5 reduction'!AM155),9))","v":0.99997740499999999},{"$f":"VALUE(FIXED(EXP(AN$4*-1*'PM2.5 reduction'!AN155),9))","v":0.99999358500000002},{"$f":"VALUE(FIXED(EXP(AO$4*-1*'PM2.5 reduction'!AO155),9))","v":0.99999358500000002},{"$f":"VALUE(FIXED(EXP(AP$4*-1*'PM2.5 reduction'!AP155),9))","v":0.99998971800000003},{"$f":"VALUE(FIXED(EXP(AQ$4*-1*'PM2.5 reduction'!AQ155),9))","v":0.99998041599999998},{"$f":"VALUE(FIXED(EXP(AR$4*-1*'PM2.5 reduction'!AR155),9))","v":0.99997904000000004},{"$f":"VALUE(FIXED(EXP(AS$4*-1*'PM2.5 reduction'!AS155),9))","v":0.99999497999999998},{"$f":"VALUE(FIXED(EXP(AT$4*-1*'PM2.5 reduction'!AT155),9))","v":1},{"$f":"VALUE(FIXED(EXP(AU$4*-1*'PM2.5 reduction'!AU155),9))","v":1},{"$f":"VALUE(FIXED(EXP(AV$4*-1*'PM2.5 reduction'!AV155),9))","v":0.99998685700000001},{"$f":"VALUE(FIXED(EXP(AW$4*-1*'PM2.5 reduction'!AW155),9))","v":0.99997981000000002},{"$f":"VALUE(FIXED(EXP(AX$4*-1*'PM2.5 reduction'!AX155),9))","v":0.99999119999999997},{"$f":"VALUE(FIXED(EXP(AY$4*-1*'PM2.5 reduction'!AY155),9))","v":0.99998437600000001},{"$f":"VALUE(FIXED(EXP(AZ$4*-1*'PM2.5 reduction'!AZ155),9))","v":0.99998423700000005},{"$f":"VALUE(FIXED(EXP(BA$4*-1*'PM2.5 reduction'!BA155),9))","v":0.99998103000000005},{"$f":"VALUE(FIXED(EXP(BB$4*-1*'PM2.5 reduction'!BB155),9))","v":0.99998321800000001},{"$f":"VALUE(FIXED(EXP(BC$4*-1*'PM2.5 reduction'!BC155),9))","v":0.99999552199999997}]
[null,"Male 5-9",{"$f":"VALUE(FIXED(EXP(C$4*-1*'PM2.5 reduction'!C156),9))","v":0.99996540199999995},{"$f":"VALUE(FIXED(EXP(D$4*-1*'PM2.5 reduction'!D156),9))","v":0.99998034599999996},{"$f":"VALUE(FIXED(EXP(E$4*-1*'PM2.5 reduction'!E156),9))","v":0.99999439000000001},{"$f":"VALUE(FIXED(EXP(F$4*-1*'PM2.5 reduction'!F156),9))","v":0.99999241900000002},{"$f":"VALUE(FIXED(EXP(G$4*-1*'PM2.5 reduction'!G156),9))","v":0.99999688499999995},{"$f":"VALUE(FIXED(EXP(H$4*-1*'PM2.5 reduction'!H156),9))","v":0.99998943799999995},{"$f":"VALUE(FIXED(EXP(I$4*-1*'PM2.5 reduction'!I156),9))","v":0.99999521899999999},{"$f":"VALUE(FIXED(EXP(J$4*-1*'PM2.5 reduction'!J156),9))","v":0.99999014799999997},{"$f":"VALUE(FIXED(EXP(K$4*-1*'PM2.5 reduction'!K156),9))","v":0.99998921699999999},{"$f":"VALUE(FIXED(EXP(L$4*-1*'PM2.5 reduction'!L156),9))","v":0.99999358100000002},{"$f":"VALUE(FIXED(EXP(M$4*-1*'PM2.5 reduction'!M156),9))","v":0.99999358100000002},{"$f":"VALUE(FIXED(EXP(N$4*-1*'PM2.5 reduction'!N156),9))","v":0.99997011099999999},{"$f":"VALUE(FIXED(EXP(O$4*-1*'PM2.5 reduction'!O156),9))","v":0.99999107099999995},{"$f":"VALUE(FIXED(EXP(P$4*-1*'PM2.5 reduction'!P156),9))","v":0.99997497499999999},{"$f":"VALUE(FIXED(EXP(Q$4*-1*'PM2.5 reduction'!Q156),9))","v":0.99998748999999998},{"$f":"VALUE(FIXED(EXP(R$4*-1*'PM2.5 reduction'!R156),9))","v":0.99997816100000003},{"$f":"VALUE(FIXED(EXP(S$4*-1*'PM2.5 reduction'!S156),9))","v":0.99997917000000003},{"$f":"VALUE(FIXED(EXP(T$4*-1*'PM2.5 reduction'!T156),9))","v":0.99996230100000005},{"$f":"VALUE(FIXED(EXP(U$4*-1*'PM2.5 reduction'!U156),9))","v":0.99999542799999996},{"$f":"VALUE(FIXED(EXP(V$4*-1*'PM2.5 reduction'!V156),9))","v":0.99998020200000004},{"$f":"VALUE(FIXED(EXP(W$4*-1*'PM2.5 reduction'!W156),9))","v":0.99998477799999996},{"$f":"VALUE(FIXED(EXP(X$4*-1*'PM2.5 reduction'!X156),9))","v":0.99998477799999996},{"$f":"VALUE(FIXED(EXP(Y$4*-1*'PM2.5 reduction'!Y156),9))","v":0.99998335800000004},{"$f":"VALUE(FIXED(EXP(Z$4*-1*'PM2.5 reduction'!Z156),9))","v":0.99996440099999995},{"$f":"VALUE(FIXED(EXP(AA$4*-1*'PM2.5 reduction'!AA156),9))","v":0.99997502000000005},{"$f":"VALUE(FIXED(EXP(AB$4*-1*'PM2.5 reduction'!AB156),9))","v":0.99998301000000001},{"$f":"VALUE(FIXED(EXP(AC$4*-1*'PM2.5 reduction'!AC156),9))","v":0.99997235399999995},{"$f":"VALUE(FIXED(EXP(AD$4*-1*'PM2.5 reduction'!AD156),9))","v":0.99999506299999996},{"$f":"VALUE(FIXED(EXP(AE$4*-1*'PM2.5 reduction'!AE156),9))","v":0.99999466299999995},{"$f":"VALUE(FIXED(EXP(AF$4*-1*'PM2.5 reduction'!AF156),9))","v":0.99998524899999996},{"$f":"VALUE(FIXED(EXP(AG$4*-1*'PM2.5 reduction'!AG156),9))","v":0.99999466299999995},{"$f":"VALUE(FIXED(EXP(AH$4*-1*'PM2.5 reduction'!AH156),9))","v":0.99997840299999996},{"$f":"VALUE(FIXED(EXP(AI$4*-1*'PM2.5 reduction'!AI156),9))","v":0.99997385000000005},{"$f":"VALUE(FIXED(EXP(AJ$4*-1*'PM2.5 reduction'!AJ156),9))","v":0.99998408400000005},{"$f":"VALUE(FIXED(EXP(AK$4*-1*'PM2.5 reduction'!AK156),9))","v":0.99999191899999995},{"$f":"VALUE(FIXED(EXP(AL$4*-1*'PM2.5 reduction'!AL156),9))","v":0.99999130300000005},{"$f":"VALUE(FIXED(EXP(AM$4*-1*'PM2.5 reduction'!AM156),9))","v":0.99997732500000003},{"$f":"VALUE(FIXED(EXP(AN$4*-1*'PM2.5 reduction'!AN156),9))","v":0.99999389000000005},{"$f":"VALUE(FIXED(EXP(AO$4*-1*'PM2.5 reduction'!AO156),9))","v":0.99999389000000005},{"$f":"VALUE(FIXED(EXP(AP$4*-1*'PM2.5 reduction'!AP156),9))","v":0.99999056200000003},{"$f":"VALUE(FIXED(EXP(AQ$4*-1*'PM2.5 reduction'!AQ156),9))","v":0.99998063000000004},{"$f":"VALUE(FIXED(EXP(AR$4*-1*'PM2.5 reduction'!AR156),9))","v":0.99998043400000003},{"$f":"VALUE(FIXED(EXP(AS$4*-1*'PM2.5 reduction'!AS156),9))","v":0.99999521899999999},{"$f":"VALUE(FIXED(EXP(AT$4*-1*'PM2.5 reduction'!AT156),9))","v":1},{"$f":"VALUE(FIXED(EXP(AU$4*-1*'PM2.5 reduction'!AU156),9))","v":1},{"$f":"VALUE(FIXED(EXP(AV$4*-1*'PM2.5 reduction'!AV156),9))","v":0.99998590700000001},{"$f":"VALUE(FIXED(EXP(AW$4*-1*'PM2.5 reduction'!AW156),9))","v":0.99997975500000003},{"$f":"VALUE(FIXED(EXP(AX$4*-1*'PM2.5 reduction'!AX156),9))","v":0.999990885},{"$f":"VALUE(FIXED(EXP(AY$4*-1*'PM2.5 reduction'!AY156),9))","v":0.99998505199999999},{"$f":"VALUE(FIXED(EXP(AZ$4*-1*'PM2.5 reduction'!AZ156),9))","v":0.99998535700000002},{"$f":"VALUE(FIXED(EXP(BA$4*-1*'PM2.5 reduction'!BA156),9))","v":0.99998018},{"$f":"VALUE(FIXED(EXP(BB$4*-1*'PM2.5 reduction'!BB156),9))","v":0.99998257300000004},{"$f":"VALUE(FIXED(EXP(BC$4*-1*'PM2.5 reduction'!BC156),9))","v":0.99999542799999996}]
[null,"Male 10-15",{"$f":"VALUE(FIXED(EXP(C$4*-1*'PM2.5 reduction'!C157),9))","v":0.999967685},{"$f":"VALUE(FIXED(EXP(D$4*-1*'PM2.5 reduction'!D157),9))","v":0.999983018},{"$f":"VALUE(FIXED(EXP(E$4*-1*'PM2.5 reduction'!E157),9))","v":0.99999395599999996},{"$f":"VALUE(FIXED(EXP(F$4*-1*'PM2.5 reduction'!F157),9))","v":0.99999212699999995},{"$f":"VALUE(FIXED(EXP(G$4*-1*'PM2.5 reduction'!G157),9))","v":0.99999650600000001},{"$f":"VALUE(FIXED(EXP(H$4*-1*'PM2.5 reduction'!H157),9))","v":0.99998911899999998},{"$f":"VALUE(FIXED(EXP(I$4*-1*'PM2.5 reduction'!I157),9))","v":0.99999509499999994},{"$f":"VALUE(FIXED(EXP(J$4*-1*'PM2.5 reduction'!J157),9))","v":0.999990453},{"$f":"VALUE(FIXED(EXP(K$4*-1*'PM2.5 reduction'!K157),9))","v":0.99998967800000005},{"$f":"VALUE(FIXED(EXP(L$4*-1*'PM2.5 reduction'!L157),9))","v":0.99999344300000004},{"$f":"VALUE(FIXED(EXP(M$4*-1*'PM2.5 reduction'!M157),9))","v":0.99999344300000004},{"$f":"VALUE(FIXED(EXP(N$4*-1*'PM2.5 reduction'!N157),9))","v":0.99997001200000002},{"$f":"VALUE(FIXED(EXP(O$4*-1*'PM2.5 reduction'!O157),9))","v":0.999990025},{"$f":"VALUE(FIXED(EXP(P$4*-1*'PM2.5 reduction'!P157),9))","v":0.99997584299999998},{"$f":"VALUE(FIXED(EXP(Q$4*-1*'PM2.5 reduction'!Q157),9))","v":0.99998699000000002},{"$f":"VALUE(FIXED(EXP(R$4*-1*'PM2.5 reduction'!R157),9))","v":0.99997763399999995},{"$f":"VALUE(FIXED(EXP(S$4*-1*'PM2.5 reduction'!S157),9))","v":0.99998053099999995},{"$f":"VALUE(FIXED(EXP(T$4*-1*'PM2.5 reduction'!T157),9))","v":0.99996289900000002},{"$f":"VALUE(FIXED(EXP(U$4*-1*'PM2.5 reduction'!U157),9))","v":0.99999545899999998},{"$f":"VALUE(FIXED(EXP(V$4*-1*'PM2.5 reduction'!V157),9))","v":0.99998133},{"$f":"VALUE(FIXED(EXP(W$4*-1*'PM2.5 reduction'!W157),9))","v":0.99998498700000005},{"$f":"VALUE(FIXED(EXP(X$4*-1*'PM2.5 reduction'!X157),9))","v":0.99998498700000005},{"$f":"VALUE(FIXED(EXP(Y$4*-1*'PM2.5 reduction'!Y157),9))","v":0.99998453799999998},{"$f":"VALUE(FIXED(EXP(Z$4*-1*'PM2.5 reduction'!Z157),9))","v":0.99996512800000004},{"$f":"VALUE(FIXED(EXP(AA$4*-1*'PM2.5 reduction'!AA157),9))","v":0.99997564000000005},{"$f":"VALUE(FIXED(EXP(AB$4*-1*'PM2.5 reduction'!AB157),9))","v":0.99998534299999997},{"$f":"VALUE(FIXED(EXP(AC$4*-1*'PM2.5 reduction'!AC157),9))","v":0.999973059},{"$f":"VALUE(FIXED(EXP(AD$4*-1*'PM2.5 reduction'!AD157),9))","v":0.99999479400000002},{"$f":"VALUE(FIXED(EXP(AE$4*-1*'PM2.5 reduction'!AE157),9))","v":0.99999434600000003},{"$f":"VALUE(FIXED(EXP(AF$4*-1*'PM2.5 reduction'!AF157),9))","v":0.999985491},{"$f":"VALUE(FIXED(EXP(AG$4*-1*'PM2.5 reduction'!AG157),9))","v":0.99999434600000003},{"$f":"VALUE(FIXED(EXP(AH$4*-1*'PM2.5 reduction'!AH157),9))","v":0.99997884199999998},{"$f":"VALUE(FIXED(EXP(AI$4*-1*'PM2.5 reduction'!AI157),9))","v":0.99997480299999997},{"$f":"VALUE(FIXED(EXP(AJ$4*-1*'PM2.5 reduction'!AJ157),9))","v":0.99998454000000003},{"$f":"VALUE(FIXED(EXP(AK$4*-1*'PM2.5 reduction'!AK157),9))","v":0.99999207899999998},{"$f":"VALUE(FIXED(EXP(AL$4*-1*'PM2.5 reduction'!AL157),9))","v":0.99999152999999996},{"$f":"VALUE(FIXED(EXP(AM$4*-1*'PM2.5 reduction'!AM157),9))","v":0.99997763200000001},{"$f":"VALUE(FIXED(EXP(AN$4*-1*'PM2.5 reduction'!AN157),9))","v":0.99999349999999998},{"$f":"VALUE(FIXED(EXP(AO$4*-1*'PM2.5 reduction'!AO157),9))","v":0.99999349999999998},{"$f":"VALUE(FIXED(EXP(AP$4*-1*'PM2.5 reduction'!AP157),9))","v":0.99999164500000004},{"$f":"VALUE(FIXED(EXP(AQ$4*-1*'PM2.5 reduction'!AQ157),9))","v":0.99998124600000005},{"$f":"VALUE(FIXED(EXP(AR$4*-1*'PM2.5 reduction'!AR157),9))","v":0.99998125999999998},{"$f":"VALUE(FIXED(EXP(AS$4*-1*'PM2.5 reduction'!AS157),9))","v":0.99999509499999994},{"$f":"VALUE(FIXED(EXP(AT$4*-1*'PM2.5 reduction'!AT157),9))","v":1},{"$f":"VALUE(FIXED(EXP(AU$4*-1*'PM2.5 reduction'!AU157),9))","v":1},{"$f":"VALUE(FIXED(EXP(AV$4*-1*'PM2.5 reduction'!AV157),9))","v":0.99998590499999995},{"$f":"VALUE(FIXED(EXP(AW$4*-1*'PM2.5 reduction'!AW157),9))","v":0.99998043299999995},{"$f":"VALUE(FIXED(EXP(AX$4*-1*'PM2.5 reduction'!AX157),9))","v":0.99999106100000001},{"$f":"VALUE(FIXED(EXP(AY$4*-1*'PM2.5 reduction'!AY157),9))","v":0.99998537600000004},{"$f":"VALUE(FIXED(EXP(AZ$4*-1*'PM2.5 reduction'!AZ157),9))","v":0.99998580500000001},{"$f":"VALUE(FIXED(EXP(BA$4*-1*'PM2.5 reduction'!BA157),9))","v":0.99998068900000003},{"$f":"VALUE(FIXED(EXP(BB$4*-1*'PM2.5 reduction'!BB157),9))","v":0.999983014},{"$f":"VALUE(FIXED(EXP(BC$4*-1*'PM2.5 reduction'!BC157),9))","v":0.99999545899999998}]
[null,"Male 16-19",{"$f":"VALUE(FIXED(EXP(C$4*-1*'PM2.5 reduction'!C158),9))","v":0.99996344100000001},{"$f":"VALUE(FIXED(EXP(D$4*-1*'PM2.5 reduction'!D158),9))","v":0.99997803399999996},{"$f":"VALUE(FIXED(EXP(E$4*-1*'PM2.5 reduction'!E158),9))","v":0.99999394100000005},{"$f":"VALUE(FIXED(EXP(F$4*-1*'PM2.5 reduction'!F158),9))","v":0.99999227499999999},{"$f":"VALUE(FIXED(EXP(G$4*-1*'PM2.5 reduction'!G158),9))","v":0.99999684700000002},{"$f":"VALUE(FIXED(EXP(H$4*-1*'PM2.5 reduction'!H158),9))","v":0.99998854000000004},{"$f":"VALUE(FIXED(EXP(I$4*-1*'PM2.5 reduction'!I158),9))","v":0.99999496300000001},{"$f":"VALUE(FIXED(EXP(J$4*-1*'PM2.5 reduction'!J158),9))","v":0.99998889899999999},{"$f":"VALUE(FIXED(EXP(K$4*-1*'PM2.5 reduction'!K158),9))","v":0.99998859799999995},{"$f":"VALUE(FIXED(EXP(L$4*-1*'PM2.5 reduction'!L158),9))","v":0.99999338400000004},{"$f":"VALUE(FIXED(EXP(M$4*-1*'PM2.5 reduction'!M158),9))","v":0.99999338400000004},{"$f":"VALUE(FIXED(EXP(N$4*-1*'PM2.5 reduction'!N158),9))","v":0.99996613400000001},{"$f":"VALUE(FIXED(EXP(O$4*-1*'PM2.5 reduction'!O158),9))","v":0.99998870200000001},{"$f":"VALUE(FIXED(EXP(P$4*-1*'PM2.5 reduction'!P158),9))","v":0.99997528599999996},{"$f":"VALUE(FIXED(EXP(Q$4*-1*'PM2.5 reduction'!Q158),9))","v":0.99998674099999996},{"$f":"VALUE(FIXED(EXP(R$4*-1*'PM2.5 reduction'!R158),9))","v":0.99997694199999998},{"$f":"VALUE(FIXED(EXP(S$4*-1*'PM2.5 reduction'!S158),9))","v":0.99997406},{"$f":"VALUE(FIXED(EXP(T$4*-1*'PM2.5 reduction'!T158),9))","v":0.99994888999999998},{"$f":"VALUE(FIXED(EXP(U$4*-1*'PM2.5 reduction'!U158),9))","v":0.99999546399999995},{"$f":"VALUE(FIXED(EXP(V$4*-1*'PM2.5 reduction'!V158),9))","v":0.99998054300000006},{"$f":"VALUE(FIXED(EXP(W$4*-1*'PM2.5 reduction'!W158),9))","v":0.99998489099999999},{"$f":"VALUE(FIXED(EXP(X$4*-1*'PM2.5 reduction'!X158),9))","v":0.99998489099999999},{"$f":"VALUE(FIXED(EXP(Y$4*-1*'PM2.5 reduction'!Y158),9))","v":0.99998365199999995},{"$f":"VALUE(FIXED(EXP(Z$4*-1*'PM2.5 reduction'!Z158),9))","v":0.99994875400000005},{"$f":"VALUE(FIXED(EXP(AA$4*-1*'PM2.5 reduction'!AA158),9))","v":0.99996803099999998},{"$f":"VALUE(FIXED(EXP(AB$4*-1*'PM2.5 reduction'!AB158),9))","v":0.99998086600000002},{"$f":"VALUE(FIXED(EXP(AC$4*-1*'PM2.5 reduction'!AC158),9))","v":0.99996111200000004},{"$f":"VALUE(FIXED(EXP(AD$4*-1*'PM2.5 reduction'!AD158),9))","v":0.99999508199999998},{"$f":"VALUE(FIXED(EXP(AE$4*-1*'PM2.5 reduction'!AE158),9))","v":0.99999463200000005},{"$f":"VALUE(FIXED(EXP(AF$4*-1*'PM2.5 reduction'!AF158),9))","v":0.99998530799999996},{"$f":"VALUE(FIXED(EXP(AG$4*-1*'PM2.5 reduction'!AG158),9))","v":0.99999463200000005},{"$f":"VALUE(FIXED(EXP(AH$4*-1*'PM2.5 reduction'!AH158),9))","v":0.99997853299999995},{"$f":"VALUE(FIXED(EXP(AI$4*-1*'PM2.5 reduction'!AI158),9))","v":0.99996560899999998},{"$f":"VALUE(FIXED(EXP(AJ$4*-1*'PM2.5 reduction'!AJ158),9))","v":0.99998444500000006},{"$f":"VALUE(FIXED(EXP(AK$4*-1*'PM2.5 reduction'!AK158),9))","v":0.99999190299999996},{"$f":"VALUE(FIXED(EXP(AL$4*-1*'PM2.5 reduction'!AL158),9))","v":0.99999195600000002},{"$f":"VALUE(FIXED(EXP(AM$4*-1*'PM2.5 reduction'!AM158),9))","v":0.99997759900000005},{"$f":"VALUE(FIXED(EXP(AN$4*-1*'PM2.5 reduction'!AN158),9))","v":0.99999385500000004},{"$f":"VALUE(FIXED(EXP(AO$4*-1*'PM2.5 reduction'!AO158),9))","v":0.99999385500000004},{"$f":"VALUE(FIXED(EXP(AP$4*-1*'PM2.5 reduction'!AP158),9))","v":0.99999135400000005},{"$f":"VALUE(FIXED(EXP(AQ$4*-1*'PM2.5 reduction'!AQ158),9))","v":0.99998074800000003},{"$f":"VALUE(FIXED(EXP(AR$4*-1*'PM2.5 reduction'!AR158),9))","v":0.99997571399999996},{"$f":"VALUE(FIXED(EXP(AS$4*-1*'PM2.5 reduction'!AS158),9))","v":0.99999496300000001},{"$f":"VALUE(FIXED(EXP(AT$4*-1*'PM2.5 reduction'!AT158),9))","v":1},{"$f":"VALUE(FIXED(EXP(AU$4*-1*'PM2.5 reduction'!AU158),9))","v":1},{"$f":"VALUE(FIXED(EXP(AV$4*-1*'PM2.5 reduction'!AV158),9))","v":0.99998588300000002},{"$f":"VALUE(FIXED(EXP(AW$4*-1*'PM2.5 reduction'!AW158),9))","v":0.99997971299999999},{"$f":"VALUE(FIXED(EXP(AX$4*-1*'PM2.5 reduction'!AX158),9))","v":0.99998919600000002},{"$f":"VALUE(FIXED(EXP(AY$4*-1*'PM2.5 reduction'!AY158),9))","v":0.99998415399999996},{"$f":"VALUE(FIXED(EXP(AZ$4*-1*'PM2.5 reduction'!AZ158),9))","v":0.99998345300000002},{"$f":"VALUE(FIXED(EXP(BA$4*-1*'PM2.5 reduction'!BA158),9))","v":0.999980058},{"$f":"VALUE(FIXED(EXP(BB$4*-1*'PM2.5 reduction'!BB158),9))","v":0.99998266400000002},{"$f":"VALUE(FIXED(EXP(BC$4*-1*'PM2.5 reduction'!BC158),9))","v":0.99999546399999995}]
[null,"Male 20-24",{"$f":"VALUE(FIXED(EXP(C$4*-1*'PM2.5 reduction'!C159),9))","v":0.99995321999999998},{"$f":"VALUE(FIXED(EXP(D$4*-1*'PM2.5 reduction'!D159),9))","v":0.99996378699999999},{"$f":"VALUE(FIXED(EXP(E$4*-1*'PM2.5 reduction'!E159),9))","v":0.99999400599999999},{"$f":"VALUE(FIXED(EXP(F$4*-1*'PM2.5 reduction'!F159),9))","v":0.99999219699999997},{"$f":"VALUE(FIXED(EXP(G$4*-1*'PM2.5 reduction'!G159),9))","v":0.99999627899999999},{"$f":"VALUE(FIXED(EXP(H$4*-1*'PM2.5 reduction'!H159),9))","v":0.99998914800000005},{"$f":"VALUE(FIXED(EXP(I$4*-1*'PM2.5 reduction'!I159),9))","v":0.999995097},{"$f":"VALUE(FIXED(EXP(J$4*-1*'PM2.5 reduction'!J159),9))","v":0.99998504200000005},{"$f":"VALUE(FIXED(EXP(K$4*-1*'PM2.5 reduction'!K159),9))","v":0.999989923},{"$f":"VALUE(FIXED(EXP(L$4*-1*'PM2.5 reduction'!L159),9))","v":0.99999328200000004},{"$f":"VALUE(FIXED(EXP(M$4*-1*'PM2.5 reduction'!M159),9))","v":0.99999328200000004},{"$f":"VALUE(FIXED(EXP(N$4*-1*'PM2.5 reduction'!N159),9))","v":0.99996405899999996},{"$f":"VALUE(FIXED(EXP(O$4*-1*'PM2.5 reduction'!O159),9))","v":0.99999001499999995},{"$f":"VALUE(FIXED(EXP(P$4*-1*'PM2.5 reduction'!P159),9))","v":0.99997475899999999},{"$f":"VALUE(FIXED(EXP(Q$4*-1*'PM2.5 reduction'!Q159),9))","v":0.99998576500000003},{"$f":"VALUE(FIXED(EXP(R$4*-1*'PM2.5 reduction'!R159),9))","v":0.99997767199999998},{"$f":"VALUE(FIXED(EXP(S$4*-1*'PM2.5 reduction'!S159),9))","v":0.99996341499999997},{"$f":"VALUE(FIXED(EXP(T$4*-1*'PM2.5 reduction'!T159),9))","v":0.99994093699999997},{"$f":"VALUE(FIXED(EXP(U$4*-1*'PM2.5 reduction'!U159),9))","v":0.99999555600000001},{"$f":"VALUE(FIXED(EXP(V$4*-1*'PM2.5 reduction'!V159),9))","v":0.99998021500000001},{"$f":"VALUE(FIXED(EXP(W$4*-1*'PM2.5 reduction'!W159),9))","v":0.99998606599999995},{"$f":"VALUE(FIXED(EXP(X$4*-1*'PM2.5 reduction'!X159),9))","v":0.99998606599999995},{"$f":"VALUE(FIXED(EXP(Y$4*-1*'PM2.5 reduction'!Y159),9))","v":0.99998259499999997},{"$f":"VALUE(FIXED(EXP(Z$4*-1*'PM2.5 reduction'!Z159),9))","v":0.99994117800000004},{"$f":"VALUE(FIXED(EXP(AA$4*-1*'PM2.5 reduction'!AA159),9))","v":0.99996001599999995},{"$f":"VALUE(FIXED(EXP(AB$4*-1*'PM2.5 reduction'!AB159),9))","v":0.99996684499999999},{"$f":"VALUE(FIXED(EXP(AC$4*-1*'PM2.5 reduction'!AC159),9))","v":0.99995214099999996},{"$f":"VALUE(FIXED(EXP(AD$4*-1*'PM2.5 reduction'!AD159),9))","v":0.99999477400000003},{"$f":"VALUE(FIXED(EXP(AE$4*-1*'PM2.5 reduction'!AE159),9))","v":0.99999447399999997},{"$f":"VALUE(FIXED(EXP(AF$4*-1*'PM2.5 reduction'!AF159),9))","v":0.99998527199999998},{"$f":"VALUE(FIXED(EXP(AG$4*-1*'PM2.5 reduction'!AG159),9))","v":0.99999447399999997},{"$f":"VALUE(FIXED(EXP(AH$4*-1*'PM2.5 reduction'!AH159),9))","v":0.99997820999999998},{"$f":"VALUE(FIXED(EXP(AI$4*-1*'PM2.5 reduction'!AI159),9))","v":0.99995359699999997},{"$f":"VALUE(FIXED(EXP(AJ$4*-1*'PM2.5 reduction'!AJ159),9))","v":0.99998429799999999},{"$f":"VALUE(FIXED(EXP(AK$4*-1*'PM2.5 reduction'!AK159),9))","v":0.99999183899999999},{"$f":"VALUE(FIXED(EXP(AL$4*-1*'PM2.5 reduction'!AL159),9))","v":0.99999155200000001},{"$f":"VALUE(FIXED(EXP(AM$4*-1*'PM2.5 reduction'!AM159),9))","v":0.99997746700000001},{"$f":"VALUE(FIXED(EXP(AN$4*-1*'PM2.5 reduction'!AN159),9))","v":0.99999388},{"$f":"VALUE(FIXED(EXP(AO$4*-1*'PM2.5 reduction'!AO159),9))","v":0.99999388},{"$f":"VALUE(FIXED(EXP(AP$4*-1*'PM2.5 reduction'!AP159),9))","v":0.99998936999999999},{"$f":"VALUE(FIXED(EXP(AQ$4*-1*'PM2.5 reduction'!AQ159),9))","v":0.99998088600000001},{"$f":"VALUE(FIXED(EXP(AR$4*-1*'PM2.5 reduction'!AR159),9))","v":0.99996721600000005},{"$f":"VALUE(FIXED(EXP(AS$4*-1*'PM2.5 reduction'!AS159),9))","v":0.999995097},{"$f":"VALUE(FIXED(EXP(AT$4*-1*'PM2.5 reduction'!AT159),9))","v":1},{"$f":"VALUE(FIXED(EXP(AU$4*-1*'PM2.5 reduction'!AU159),9))","v":1},{"$f":"VALUE(FIXED(EXP(AV$4*-1*'PM2.5 reduction'!AV159),9))","v":0.99998590600000004},{"$f":"VALUE(FIXED(EXP(AW$4*-1*'PM2.5 reduction'!AW159),9))","v":0.99997904000000004},{"$f":"VALUE(FIXED(EXP(AX$4*-1*'PM2.5 reduction'!AX159),9))","v":0.99998288400000002},{"$f":"VALUE(FIXED(EXP(AY$4*-1*'PM2.5 reduction'!AY159),9))","v":0.99998314700000002},{"$f":"VALUE(FIXED(EXP(AZ$4*-1*'PM2.5 reduction'!AZ159),9))","v":0.99998030000000004},{"$f":"VALUE(FIXED(EXP(BA$4*-1*'PM2.5 reduction'!BA159),9))","v":0.99998012300000005},{"$f":"VALUE(FIXED(EXP(BB$4*-1*'PM2.5 reduction'!BB159),9))","v":0.99998315599999998},{"$f":"VALUE(FIXED(EXP(BC$4*-1*'PM2.5 reduction'!BC159),9))","v":0.99999555600000001}]
[null,"Male 25-29",{"$f":"VALUE(FIXED(EXP(C$4*-1*'PM2.5 reduction'!C160),9))","v":0.999952285},{"$f":"VALUE(FIXED(EXP(D$4*-1*'PM2.5 reduction'!D160),9))","v":0.99996134400000003},{"$f":"VALUE(FIXED(EXP(E$4*-1*'PM2.5 reduction'!E160),9))","v":0.99999346700000002},{"$f":"VALUE(FIXED(EXP(F$4*-1*'PM2.5 reduction'!F160),9))","v":0.99999232900000001},{"$f":"VALUE(FIXED(EXP(G$4*-1*'PM2.5 reduction'!G160),9))","v":0.99999734100000004},{"$f":"VALUE(FIXED(EXP(H$4*-1*'PM2.5 reduction'!H160),9))","v":0.99998860099999998},{"$f":"VALUE(FIXED(EXP(I$4*-1*'PM2.5 reduction'!I160),9))","v":0.99999493500000003},{"$f":"VALUE(FIXED(EXP(J$4*-1*'PM2.5 reduction'!J160),9))","v":0.99998751900000005},{"$f":"VALUE(FIXED(EXP(K$4*-1*'PM2.5 reduction'!K160),9))","v":0.999990567},{"$f":"VALUE(FIXED(EXP(L$4*-1*'PM2.5 reduction'!L160),9))","v":0.999992345},{"$f":"VALUE(FIXED(EXP(M$4*-1*'PM2.5 reduction'!M160),9))","v":0.999992345},{"$f":"VALUE(FIXED(EXP(N$4*-1*'PM2.5 reduction'!N160),9))","v":0.99996653800000002},{"$f":"VALUE(FIXED(EXP(O$4*-1*'PM2.5 reduction'!O160),9))","v":0.99998943200000001},{"$f":"VALUE(FIXED(EXP(P$4*-1*'PM2.5 reduction'!P160),9))","v":0.99997481600000004},{"$f":"VALUE(FIXED(EXP(Q$4*-1*'PM2.5 reduction'!Q160),9))","v":0.99998443400000003},{"$f":"VALUE(FIXED(EXP(R$4*-1*'PM2.5 reduction'!R160),9))","v":0.99997757600000003},{"$f":"VALUE(FIXED(EXP(S$4*-1*'PM2.5 reduction'!S160),9))","v":0.99996399999999996},{"$f":"VALUE(FIXED(EXP(T$4*-1*'PM2.5 reduction'!T160),9))","v":0.99994882399999996},{"$f":"VALUE(FIXED(EXP(U$4*-1*'PM2.5 reduction'!U160),9))","v":0.99999549600000004},{"$f":"VALUE(FIXED(EXP(V$4*-1*'PM2.5 reduction'!V160),9))","v":0.99998006699999997},{"$f":"VALUE(FIXED(EXP(W$4*-1*'PM2.5 reduction'!W160),9))","v":0.99998441999999998},{"$f":"VALUE(FIXED(EXP(X$4*-1*'PM2.5 reduction'!X160),9))","v":0.99998441999999998},{"$f":"VALUE(FIXED(EXP(Y$4*-1*'PM2.5 reduction'!Y160),9))","v":0.99998341700000004},{"$f":"VALUE(FIXED(EXP(Z$4*-1*'PM2.5 reduction'!Z160),9))","v":0.99995087299999996},{"$f":"VALUE(FIXED(EXP(AA$4*-1*'PM2.5 reduction'!AA160),9))","v":0.99996467700000002},{"$f":"VALUE(FIXED(EXP(AB$4*-1*'PM2.5 reduction'!AB160),9))","v":0.99996510599999999},{"$f":"VALUE(FIXED(EXP(AC$4*-1*'PM2.5 reduction'!AC160),9))","v":0.99995906000000001},{"$f":"VALUE(FIXED(EXP(AD$4*-1*'PM2.5 reduction'!AD160),9))","v":0.99999476799999998},{"$f":"VALUE(FIXED(EXP(AE$4*-1*'PM2.5 reduction'!AE160),9))","v":0.99999438200000001},{"$f":"VALUE(FIXED(EXP(AF$4*-1*'PM2.5 reduction'!AF160),9))","v":0.99998514299999997},{"$f":"VALUE(FIXED(EXP(AG$4*-1*'PM2.5 reduction'!AG160),9))","v":0.99999438200000001},{"$f":"VALUE(FIXED(EXP(AH$4*-1*'PM2.5 reduction'!AH160),9))","v":0.99997799200000004},{"$f":"VALUE(FIXED(EXP(AI$4*-1*'PM2.5 reduction'!AI160),9))","v":0.99995667399999999},{"$f":"VALUE(FIXED(EXP(AJ$4*-1*'PM2.5 reduction'!AJ160),9))","v":0.99998477900000005},{"$f":"VALUE(FIXED(EXP(AK$4*-1*'PM2.5 reduction'!AK160),9))","v":0.99999164900000004},{"$f":"VALUE(FIXED(EXP(AL$4*-1*'PM2.5 reduction'!AL160),9))","v":0.99999116600000004},{"$f":"VALUE(FIXED(EXP(AM$4*-1*'PM2.5 reduction'!AM160),9))","v":0.99997749700000005},{"$f":"VALUE(FIXED(EXP(AN$4*-1*'PM2.5 reduction'!AN160),9))","v":0.99999386800000001},{"$f":"VALUE(FIXED(EXP(AO$4*-1*'PM2.5 reduction'!AO160),9))","v":0.99999386800000001},{"$f":"VALUE(FIXED(EXP(AP$4*-1*'PM2.5 reduction'!AP160),9))","v":0.99998989199999999},{"$f":"VALUE(FIXED(EXP(AQ$4*-1*'PM2.5 reduction'!AQ160),9))","v":0.99997996200000006},{"$f":"VALUE(FIXED(EXP(AR$4*-1*'PM2.5 reduction'!AR160),9))","v":0.99996843800000002},{"$f":"VALUE(FIXED(EXP(AS$4*-1*'PM2.5 reduction'!AS160),9))","v":0.99999493500000003},{"$f":"VALUE(FIXED(EXP(AT$4*-1*'PM2.5 reduction'!AT160),9))","v":1},{"$f":"VALUE(FIXED(EXP(AU$4*-1*'PM2.5 reduction'!AU160),9))","v":1},{"$f":"VALUE(FIXED(EXP(AV$4*-1*'PM2.5 reduction'!AV160),9))","v":0.99998563399999996},{"$f":"VALUE(FIXED(EXP(AW$4*-1*'PM2.5 reduction'!AW160),9))","v":0.99997852399999998},{"$f":"VALUE(FIXED(EXP(AX$4*-1*'PM2.5 reduction'!AX160),9))","v":0.99998654899999995},{"$f":"VALUE(FIXED(EXP(AY$4*-1*'PM2.5 reduction'!AY160),9))","v":0.99998166799999999},{"$f":"VALUE(FIXED(EXP(AZ$4*-1*'PM2.5 reduction'!AZ160),9))","v":0.99997897700000005},{"$f":"VALUE(FIXED(EXP(BA$4*-1*'PM2.5 reduction'!BA160),9))","v":0.99998048799999995},{"$f":"VALUE(FIXED(EXP(BB$4*-1*'PM2.5 reduction'!BB160),9))","v":0.99998309799999996},{"$f":"VALUE(FIXED(EXP(BC$4*-1*'PM2.5 reduction'!BC160),9))","v":0.99999549600000004}]
[null,"Male 30-34",{"$f":"VALUE(FIXED(EXP(C$4*-1*'PM2.5 reduction'!C161),9))","v":0.99995465800000005},{"$f":"VALUE(FIXED(EXP(D$4*-1*'PM2.5 reduction'!D161),9))","v":0.99996559900000004},{"$f":"VALUE(FIXED(EXP(E$4*-1*'PM2.5 reduction'!E161),9))","v":0.99999364199999996},{"$f":"VALUE(FIXED(EXP(F$4*-1*'PM2.5 reduction'!F161),9))","v":0.99999215200000002},{"$f":"VALUE(FIXED(EXP(G$4*-1*'PM2.5 reduction'!G161),9))","v":0.99999655600000004},{"$f":"VALUE(FIXED(EXP(H$4*-1*'PM2.5 reduction'!H161),9))","v":0.99998867700000005},{"$f":"VALUE(FIXED(EXP(I$4*-1*'PM2.5 reduction'!I161),9))","v":0.99999480900000004},{"$f":"VALUE(FIXED(EXP(J$4*-1*'PM2.5 reduction'!J161),9))","v":0.99998796199999995},{"$f":"VALUE(FIXED(EXP(K$4*-1*'PM2.5 reduction'!K161),9))","v":0.99998878300000005},{"$f":"VALUE(FIXED(EXP(L$4*-1*'PM2.5 reduction'!L161),9))","v":0.99999338199999999},{"$f":"VALUE(FIXED(EXP(M$4*-1*'PM2.5 reduction'!M161),9))","v":0.99999338199999999},{"$f":"VALUE(FIXED(EXP(N$4*-1*'PM2.5 reduction'!N161),9))","v":0.99996933600000004},{"$f":"VALUE(FIXED(EXP(O$4*-1*'PM2.5 reduction'!O161),9))","v":0.99998921100000004},{"$f":"VALUE(FIXED(EXP(P$4*-1*'PM2.5 reduction'!P161),9))","v":0.99997469900000002},{"$f":"VALUE(FIXED(EXP(Q$4*-1*'PM2.5 reduction'!Q161),9))","v":0.99998565399999995},{"$f":"VALUE(FIXED(EXP(R$4*-1*'PM2.5 reduction'!R161),9))","v":0.99997717399999997},{"$f":"VALUE(FIXED(EXP(S$4*-1*'PM2.5 reduction'!S161),9))","v":0.99996678299999997},{"$f":"VALUE(FIXED(EXP(T$4*-1*'PM2.5 reduction'!T161),9))","v":0.99995215500000001},{"$f":"VALUE(FIXED(EXP(U$4*-1*'PM2.5 reduction'!U161),9))","v":0.99999552300000005},{"$f":"VALUE(FIXED(EXP(V$4*-1*'PM2.5 reduction'!V161),9))","v":0.99997941499999998},{"$f":"VALUE(FIXED(EXP(W$4*-1*'PM2.5 reduction'!W161),9))","v":0.99998418499999997},{"$f":"VALUE(FIXED(EXP(X$4*-1*'PM2.5 reduction'!X161),9))","v":0.99998418499999997},{"$f":"VALUE(FIXED(EXP(Y$4*-1*'PM2.5 reduction'!Y161),9))","v":0.99998265600000003},{"$f":"VALUE(FIXED(EXP(Z$4*-1*'PM2.5 reduction'!Z161),9))","v":0.99995527299999998},{"$f":"VALUE(FIXED(EXP(AA$4*-1*'PM2.5 reduction'!AA161),9))","v":0.99996772599999995},{"$f":"VALUE(FIXED(EXP(AB$4*-1*'PM2.5 reduction'!AB161),9))","v":0.99996959699999999},{"$f":"VALUE(FIXED(EXP(AC$4*-1*'PM2.5 reduction'!AC161),9))","v":0.999962393},{"$f":"VALUE(FIXED(EXP(AD$4*-1*'PM2.5 reduction'!AD161),9))","v":0.99999421399999999},{"$f":"VALUE(FIXED(EXP(AE$4*-1*'PM2.5 reduction'!AE161),9))","v":0.99999394900000005},{"$f":"VALUE(FIXED(EXP(AF$4*-1*'PM2.5 reduction'!AF161),9))","v":0.99998529999999997},{"$f":"VALUE(FIXED(EXP(AG$4*-1*'PM2.5 reduction'!AG161),9))","v":0.99999394900000005},{"$f":"VALUE(FIXED(EXP(AH$4*-1*'PM2.5 reduction'!AH161),9))","v":0.99997841899999995},{"$f":"VALUE(FIXED(EXP(AI$4*-1*'PM2.5 reduction'!AI161),9))","v":0.99995989799999996},{"$f":"VALUE(FIXED(EXP(AJ$4*-1*'PM2.5 reduction'!AJ161),9))","v":0.99998495899999995},{"$f":"VALUE(FIXED(EXP(AK$4*-1*'PM2.5 reduction'!AK161),9))","v":0.99999158600000004},{"$f":"VALUE(FIXED(EXP(AL$4*-1*'PM2.5 reduction'!AL161),9))","v":0.99999140500000006},{"$f":"VALUE(FIXED(EXP(AM$4*-1*'PM2.5 reduction'!AM161),9))","v":0.999977475},{"$f":"VALUE(FIXED(EXP(AN$4*-1*'PM2.5 reduction'!AN161),9))","v":0.99999382199999998},{"$f":"VALUE(FIXED(EXP(AO$4*-1*'PM2.5 reduction'!AO161),9))","v":0.99999382199999998},{"$f":"VALUE(FIXED(EXP(AP$4*-1*'PM2.5 reduction'!AP161),9))","v":0.99998959700000001},{"$f":"VALUE(FIXED(EXP(AQ$4*-1*'PM2.5 reduction'!AQ161),9))","v":0.99997985899999997},{"$f":"VALUE(FIXED(EXP(AR$4*-1*'PM2.5 reduction'!AR161),9))","v":0.99997133800000004},{"$f":"VALUE(FIXED(EXP(AS$4*-1*'PM2.5 reduction'!AS161),9))","v":0.99999480900000004},{"$f":"VALUE(FIXED(EXP(AT$4*-1*'PM2.5 reduction'!AT161),9))","v":1},{"$f":"VALUE(FIXED(EXP(AU$4*-1*'PM2.5 reduction'!AU161),9))","v":1},{"$f":"VALUE(FIXED(EXP(AV$4*-1*'PM2.5 reduction'!AV161),9))","v":0.99998572900000005},{"$f":"VALUE(FIXED(EXP(AW$4*-1*'PM2.5 reduction'!AW161),9))","v":0.99997943899999997},{"$f":"VALUE(FIXED(EXP(AX$4*-1*'PM2.5 reduction'!AX161),9))","v":0.99998746999999999},{"$f":"VALUE(FIXED(EXP(AY$4*-1*'PM2.5 reduction'!AY161),9))","v":0.99998301000000001},{"$f":"VALUE(FIXED(EXP(AZ$4*-1*'PM2.5 reduction'!AZ161),9))","v":0.99998188399999999},{"$f":"VALUE(FIXED(EXP(BA$4*-1*'PM2.5 reduction'!BA161),9))","v":0.99998076999999996},{"$f":"VALUE(FIXED(EXP(BB$4*-1*'PM2.5 reduction'!BB161),9))","v":0.99998343099999998},{"$f":"VALUE(FIXED(EXP(BC$4*-1*'PM2.5 reduction'!BC161),9))","v":0.99999552300000005}]
[null,"Male 35-39",{"$f":"VALUE(FIXED(EXP(C$4*-1*'PM2.5 reduction'!C162),9))","v":0.99995770500000003},{"$f":"VALUE(FIXED(EXP(D$4*-1*'PM2.5 reduction'!D162),9))","v":0.99997059600000004},{"$f":"VALUE(FIXED(EXP(E$4*-1*'PM2.5 reduction'!E162),9))","v":0.99999379200000005},{"$f":"VALUE(FIXED(EXP(F$4*-1*'PM2.5 reduction'!F162),9))","v":0.99999231399999999},{"$f":"VALUE(FIXED(EXP(G$4*-1*'PM2.5 reduction'!G162),9))","v":0.99999674400000005},{"$f":"VALUE(FIXED(EXP(H$4*-1*'PM2.5 reduction'!H162),9))","v":0.99998870399999995},{"$f":"VALUE(FIXED(EXP(I$4*-1*'PM2.5 reduction'!I162),9))","v":0.99999503000000001},{"$f":"VALUE(FIXED(EXP(J$4*-1*'PM2.5 reduction'!J162),9))","v":0.99998844899999995},{"$f":"VALUE(FIXED(EXP(K$4*-1*'PM2.5 reduction'!K162),9))","v":0.99998824500000005},{"$f":"VALUE(FIXED(EXP(L$4*-1*'PM2.5 reduction'!L162),9))","v":0.99999350799999998},{"$f":"VALUE(FIXED(EXP(M$4*-1*'PM2.5 reduction'!M162),9))","v":0.99999350799999998},{"$f":"VALUE(FIXED(EXP(N$4*-1*'PM2.5 reduction'!N162),9))","v":0.99996761199999995},{"$f":"VALUE(FIXED(EXP(O$4*-1*'PM2.5 reduction'!O162),9))","v":0.99998887999999997},{"$f":"VALUE(FIXED(EXP(P$4*-1*'PM2.5 reduction'!P162),9))","v":0.99997545499999996},{"$f":"VALUE(FIXED(EXP(Q$4*-1*'PM2.5 reduction'!Q162),9))","v":0.99998665399999997},{"$f":"VALUE(FIXED(EXP(R$4*-1*'PM2.5 reduction'!R162),9))","v":0.99997772399999996},{"$f":"VALUE(FIXED(EXP(S$4*-1*'PM2.5 reduction'!S162),9))","v":0.99996929400000001},{"$f":"VALUE(FIXED(EXP(T$4*-1*'PM2.5 reduction'!T162),9))","v":0.99995299400000004},{"$f":"VALUE(FIXED(EXP(U$4*-1*'PM2.5 reduction'!U162),9))","v":0.99999570299999996},{"$f":"VALUE(FIXED(EXP(V$4*-1*'PM2.5 reduction'!V162),9))","v":0.99998003199999996},{"$f":"VALUE(FIXED(EXP(W$4*-1*'PM2.5 reduction'!W162),9))","v":0.99998383899999999},{"$f":"VALUE(FIXED(EXP(X$4*-1*'PM2.5 reduction'!X162),9))","v":0.99998383899999999},{"$f":"VALUE(FIXED(EXP(Y$4*-1*'PM2.5 reduction'!Y162),9))","v":0.99998272300000002},{"$f":"VALUE(FIXED(EXP(Z$4*-1*'PM2.5 reduction'!Z162),9))","v":0.99995883299999999},{"$f":"VALUE(FIXED(EXP(AA$4*-1*'PM2.5 reduction'!AA162),9))","v":0.99997046700000003},{"$f":"VALUE(FIXED(EXP(AB$4*-1*'PM2.5 reduction'!AB162),9))","v":0.999974421},{"$f":"VALUE(FIXED(EXP(AC$4*-1*'PM2.5 reduction'!AC162),9))","v":0.99996569700000004},{"$f":"VALUE(FIXED(EXP(AD$4*-1*'PM2.5 reduction'!AD162),9))","v":0.99999449799999995},{"$f":"VALUE(FIXED(EXP(AE$4*-1*'PM2.5 reduction'!AE162),9))","v":0.99999424400000003},{"$f":"VALUE(FIXED(EXP(AF$4*-1*'PM2.5 reduction'!AF162),9))","v":0.99998533300000003},{"$f":"VALUE(FIXED(EXP(AG$4*-1*'PM2.5 reduction'!AG162),9))","v":0.99999424400000003},{"$f":"VALUE(FIXED(EXP(AH$4*-1*'PM2.5 reduction'!AH162),9))","v":0.99997817700000002},{"$f":"VALUE(FIXED(EXP(AI$4*-1*'PM2.5 reduction'!AI162),9))","v":0.99996245500000003},{"$f":"VALUE(FIXED(EXP(AJ$4*-1*'PM2.5 reduction'!AJ162),9))","v":0.99998501799999995},{"$f":"VALUE(FIXED(EXP(AK$4*-1*'PM2.5 reduction'!AK162),9))","v":0.99999154199999996},{"$f":"VALUE(FIXED(EXP(AL$4*-1*'PM2.5 reduction'!AL162),9))","v":0.99999173200000002},{"$f":"VALUE(FIXED(EXP(AM$4*-1*'PM2.5 reduction'!AM162),9))","v":0.99997720300000004},{"$f":"VALUE(FIXED(EXP(AN$4*-1*'PM2.5 reduction'!AN162),9))","v":0.99999381399999998},{"$f":"VALUE(FIXED(EXP(AO$4*-1*'PM2.5 reduction'!AO162),9))","v":0.99999381399999998},{"$f":"VALUE(FIXED(EXP(AP$4*-1*'PM2.5 reduction'!AP162),9))","v":0.99998847800000001},{"$f":"VALUE(FIXED(EXP(AQ$4*-1*'PM2.5 reduction'!AQ162),9))","v":0.99997939000000002},{"$f":"VALUE(FIXED(EXP(AR$4*-1*'PM2.5 reduction'!AR162),9))","v":0.99997403299999998},{"$f":"VALUE(FIXED(EXP(AS$4*-1*'PM2.5 reduction'!AS162),9))","v":0.99999503000000001},{"$f":"VALUE(FIXED(EXP(AT$4*-1*'PM2.5 reduction'!AT162),9))","v":1},{"$f":"VALUE(FIXED(EXP(AU$4*-1*'PM2.5 reduction'!AU162),9))","v":1},{"$f":"VALUE(FIXED(EXP(AV$4*-1*'PM2.5 reduction'!AV162),9))","v":0.99998549199999998},{"$f":"VALUE(FIXED(EXP(AW$4*-1*'PM2.5 reduction'!AW162),9))","v":0.99997934399999999},{"$f":"VALUE(FIXED(EXP(AX$4*-1*'PM2.5 reduction'!AX162),9))","v":0.99998857799999996},{"$f":"VALUE(FIXED(EXP(AY$4*-1*'PM2.5 reduction'!AY162),9))","v":0.99998316200000004},{"$f":"VALUE(FIXED(EXP(AZ$4*-1*'PM2.5 reduction'!AZ162),9))","v":0.99998246499999999},{"$f":"VALUE(FIXED(EXP(BA$4*-1*'PM2.5 reduction'!BA162),9))","v":0.999980015},{"$f":"VALUE(FIXED(EXP(BB$4*-1*'PM2.5 reduction'!BB162),9))","v":0.99998341899999998},{"$f":"VALUE(FIXED(EXP(BC$4*-1*'PM2.5 reduction'!BC162),9))","v":0.99999570299999996}]
[null,"Male 40-44",{"$f":"VALUE(FIXED(EXP(C$4*-1*'PM2.5 reduction'!C163),9))","v":0.99995916100000004},{"$f":"VALUE(FIXED(EXP(D$4*-1*'PM2.5 reduction'!D163),9))","v":0.99997392299999999},{"$f":"VALUE(FIXED(EXP(E$4*-1*'PM2.5 reduction'!E163),9))","v":0.99999374600000002},{"$f":"VALUE(FIXED(EXP(F$4*-1*'PM2.5 reduction'!F163),9))","v":0.99999239799999995},{"$f":"VALUE(FIXED(EXP(G$4*-1*'PM2.5 reduction'!G163),9))","v":0.99999675499999996},{"$f":"VALUE(FIXED(EXP(H$4*-1*'PM2.5 reduction'!H163),9))","v":0.99998920499999999},{"$f":"VALUE(FIXED(EXP(I$4*-1*'PM2.5 reduction'!I163),9))","v":0.999995254},{"$f":"VALUE(FIXED(EXP(J$4*-1*'PM2.5 reduction'!J163),9))","v":0.99998886600000003},{"$f":"VALUE(FIXED(EXP(K$4*-1*'PM2.5 reduction'!K163),9))","v":0.99998893600000005},{"$f":"VALUE(FIXED(EXP(L$4*-1*'PM2.5 reduction'!L163),9))","v":0.99999321900000004},{"$f":"VALUE(FIXED(EXP(M$4*-1*'PM2.5 reduction'!M163),9))","v":0.99999321900000004},{"$f":"VALUE(FIXED(EXP(N$4*-1*'PM2.5 reduction'!N163),9))","v":0.99996869399999999},{"$f":"VALUE(FIXED(EXP(O$4*-1*'PM2.5 reduction'!O163),9))","v":0.99998982999999997},{"$f":"VALUE(FIXED(EXP(P$4*-1*'PM2.5 reduction'!P163),9))","v":0.99997501300000002},{"$f":"VALUE(FIXED(EXP(Q$4*-1*'PM2.5 reduction'!Q163),9))","v":0.999985707},{"$f":"VALUE(FIXED(EXP(R$4*-1*'PM2.5 reduction'!R163),9))","v":0.99997840800000004},{"$f":"VALUE(FIXED(EXP(S$4*-1*'PM2.5 reduction'!S163),9))","v":0.99997339699999999},{"$f":"VALUE(FIXED(EXP(T$4*-1*'PM2.5 reduction'!T163),9))","v":0.999954067},{"$f":"VALUE(FIXED(EXP(U$4*-1*'PM2.5 reduction'!U163),9))","v":0.99999552199999997},{"$f":"VALUE(FIXED(EXP(V$4*-1*'PM2.5 reduction'!V163),9))","v":0.99998026699999998},{"$f":"VALUE(FIXED(EXP(W$4*-1*'PM2.5 reduction'!W163),9))","v":0.99998413100000005},{"$f":"VALUE(FIXED(EXP(X$4*-1*'PM2.5 reduction'!X163),9))","v":0.99998413100000005},{"$f":"VALUE(FIXED(EXP(Y$4*-1*'PM2.5 reduction'!Y163),9))","v":0.99998330499999999},{"$f":"VALUE(FIXED(EXP(Z$4*-1*'PM2.5 reduction'!Z163),9))","v":0.99995989500000004},{"$f":"VALUE(FIXED(EXP(AA$4*-1*'PM2.5 reduction'!AA163),9))","v":0.99997284799999997},{"$f":"VALUE(FIXED(EXP(AB$4*-1*'PM2.5 reduction'!AB163),9))","v":0.99997752500000003},{"$f":"VALUE(FIXED(EXP(AC$4*-1*'PM2.5 reduction'!AC163),9))","v":0.99996853299999999},{"$f":"VALUE(FIXED(EXP(AD$4*-1*'PM2.5 reduction'!AD163),9))","v":0.99999467099999995},{"$f":"VALUE(FIXED(EXP(AE$4*-1*'PM2.5 reduction'!AE163),9))","v":0.99999428099999998},{"$f":"VALUE(FIXED(EXP(AF$4*-1*'PM2.5 reduction'!AF163),9))","v":0.99998520999999996},{"$f":"VALUE(FIXED(EXP(AG$4*-1*'PM2.5 reduction'!AG163),9))","v":0.99999428099999998},{"$f":"VALUE(FIXED(EXP(AH$4*-1*'PM2.5 reduction'!AH163),9))","v":0.999978594},{"$f":"VALUE(FIXED(EXP(AI$4*-1*'PM2.5 reduction'!AI163),9))","v":0.99996594000000005},{"$f":"VALUE(FIXED(EXP(AJ$4*-1*'PM2.5 reduction'!AJ163),9))","v":0.99998486399999997},{"$f":"VALUE(FIXED(EXP(AK$4*-1*'PM2.5 reduction'!AK163),9))","v":0.99999179800000004},{"$f":"VALUE(FIXED(EXP(AL$4*-1*'PM2.5 reduction'!AL163),9))","v":0.99999183899999999},{"$f":"VALUE(FIXED(EXP(AM$4*-1*'PM2.5 reduction'!AM163),9))","v":0.99997730900000004},{"$f":"VALUE(FIXED(EXP(AN$4*-1*'PM2.5 reduction'!AN163),9))","v":0.99999376600000001},{"$f":"VALUE(FIXED(EXP(AO$4*-1*'PM2.5 reduction'!AO163),9))","v":0.99999376600000001},{"$f":"VALUE(FIXED(EXP(AP$4*-1*'PM2.5 reduction'!AP163),9))","v":0.99999008199999995},{"$f":"VALUE(FIXED(EXP(AQ$4*-1*'PM2.5 reduction'!AQ163),9))","v":0.99998013900000005},{"$f":"VALUE(FIXED(EXP(AR$4*-1*'PM2.5 reduction'!AR163),9))","v":0.99997683400000004},{"$f":"VALUE(FIXED(EXP(AS$4*-1*'PM2.5 reduction'!AS163),9))","v":0.999995254},{"$f":"VALUE(FIXED(EXP(AT$4*-1*'PM2.5 reduction'!AT163),9))","v":1},{"$f":"VALUE(FIXED(EXP(AU$4*-1*'PM2.5 reduction'!AU163),9))","v":1},{"$f":"VALUE(FIXED(EXP(AV$4*-1*'PM2.5 reduction'!AV163),9))","v":0.99998629000000006},{"$f":"VALUE(FIXED(EXP(AW$4*-1*'PM2.5 reduction'!AW163),9))","v":0.99998025499999998},{"$f":"VALUE(FIXED(EXP(AX$4*-1*'PM2.5 reduction'!AX163),9))","v":0.99998880899999998},{"$f":"VALUE(FIXED(EXP(AY$4*-1*'PM2.5 reduction'!AY163),9))","v":0.999984066},{"$f":"VALUE(FIXED(EXP(AZ$4*-1*'PM2.5 reduction'!AZ163),9))","v":0.99998398899999996},{"$f":"VALUE(FIXED(EXP(BA$4*-1*'PM2.5 reduction'!BA163),9))","v":0.99998041199999999},{"$f":"VALUE(FIXED(EXP(BB$4*-1*'PM2.5 reduction'!BB163),9))","v":0.99998293199999999},{"$f":"VALUE(FIXED(EXP(BC$4*-1*'PM2.5 reduction'!BC163),9))","v":0.99999552199999997}]
[null,"Male 45-49",{"$f":"VALUE(FIXED(EXP(C$4*-1*'PM2.5 reduction'!C164),9))","v":0.99996152299999996},{"$f":"VALUE(FIXED(EXP(D$4*-1*'PM2.5 reduction'!D164),9))","v":0.99997601700000005},{"$f":"VALUE(FIXED(EXP(E$4*-1*'PM2.5 reduction'!E164),9))","v":0.99999397099999998},{"$f":"VALUE(FIXED(EXP(F$4*-1*'PM2.5 reduction'!F164),9))","v":0.99999244700000001},{"$f":"VALUE(FIXED(EXP(G$4*-1*'PM2.5 reduction'!G164),9))","v":0.99999678000000003},{"$f":"VALUE(FIXED(EXP(H$4*-1*'PM2.5 reduction'!H164),9))","v":0.99998941699999999},{"$f":"VALUE(FIXED(EXP(I$4*-1*'PM2.5 reduction'!I164),9))","v":0.99999498799999997},{"$f":"VALUE(FIXED(EXP(J$4*-1*'PM2.5 reduction'!J164),9))","v":0.99998962300000005},{"$f":"VALUE(FIXED(EXP(K$4*-1*'PM2.5 reduction'!K164),9))","v":0.99998916699999996},{"$f":"VALUE(FIXED(EXP(L$4*-1*'PM2.5 reduction'!L164),9))","v":0.99999306700000001},{"$f":"VALUE(FIXED(EXP(M$4*-1*'PM2.5 reduction'!M164),9))","v":0.99999306700000001},{"$f":"VALUE(FIXED(EXP(N$4*-1*'PM2.5 reduction'!N164),9))","v":0.99996888699999997},{"$f":"VALUE(FIXED(EXP(O$4*-1*'PM2.5 reduction'!O164),9))","v":0.999990394},{"$f":"VALUE(FIXED(EXP(P$4*-1*'PM2.5 reduction'!P164),9))","v":0.99997567399999998},{"$f":"VALUE(FIXED(EXP(Q$4*-1*'PM2.5 reduction'!Q164),9))","v":0.99998732199999996},{"$f":"VALUE(FIXED(EXP(R$4*-1*'PM2.5 reduction'!R164),9))","v":0.99997744499999996},{"$f":"VALUE(FIXED(EXP(S$4*-1*'PM2.5 reduction'!S164),9))","v":0.99997661699999996},{"$f":"VALUE(FIXED(EXP(T$4*-1*'PM2.5 reduction'!T164),9))","v":0.99995590099999998},{"$f":"VALUE(FIXED(EXP(U$4*-1*'PM2.5 reduction'!U164),9))","v":0.999995403},{"$f":"VALUE(FIXED(EXP(V$4*-1*'PM2.5 reduction'!V164),9))","v":0.99997998499999996},{"$f":"VALUE(FIXED(EXP(W$4*-1*'PM2.5 reduction'!W164),9))","v":0.99998484799999998},{"$f":"VALUE(FIXED(EXP(X$4*-1*'PM2.5 reduction'!X164),9))","v":0.99998484799999998},{"$f":"VALUE(FIXED(EXP(Y$4*-1*'PM2.5 reduction'!Y164),9))","v":0.99998327600000003},{"$f":"VALUE(FIXED(EXP(Z$4*-1*'PM2.5 reduction'!Z164),9))","v":0.99996128500000003},{"$f":"VALUE(FIXED(EXP(AA$4*-1*'PM2.5 reduction'!AA164),9))","v":0.99997373499999997},{"$f":"VALUE(FIXED(EXP(AB$4*-1*'PM2.5 reduction'!AB164),9))","v":0.99997956799999999},{"$f":"VALUE(FIXED(EXP(AC$4*-1*'PM2.5 reduction'!AC164),9))","v":0.99996988399999998},{"$f":"VALUE(FIXED(EXP(AD$4*-1*'PM2.5 reduction'!AD164),9))","v":0.99999471900000003},{"$f":"VALUE(FIXED(EXP(AE$4*-1*'PM2.5 reduction'!AE164),9))","v":0.99999432700000002},{"$f":"VALUE(FIXED(EXP(AF$4*-1*'PM2.5 reduction'!AF164),9))","v":0.99998516999999998},{"$f":"VALUE(FIXED(EXP(AG$4*-1*'PM2.5 reduction'!AG164),9))","v":0.99999432700000002},{"$f":"VALUE(FIXED(EXP(AH$4*-1*'PM2.5 reduction'!AH164),9))","v":0.99997856200000002},{"$f":"VALUE(FIXED(EXP(AI$4*-1*'PM2.5 reduction'!AI164),9))","v":0.99996956100000001},{"$f":"VALUE(FIXED(EXP(AJ$4*-1*'PM2.5 reduction'!AJ164),9))","v":0.99998480099999998},{"$f":"VALUE(FIXED(EXP(AK$4*-1*'PM2.5 reduction'!AK164),9))","v":0.99999189300000002},{"$f":"VALUE(FIXED(EXP(AL$4*-1*'PM2.5 reduction'!AL164),9))","v":0.99999129399999998},{"$f":"VALUE(FIXED(EXP(AM$4*-1*'PM2.5 reduction'!AM164),9))","v":0.99997726399999998},{"$f":"VALUE(FIXED(EXP(AN$4*-1*'PM2.5 reduction'!AN164),9))","v":0.99999382699999995},{"$f":"VALUE(FIXED(EXP(AO$4*-1*'PM2.5 reduction'!AO164),9))","v":0.99999382699999995},{"$f":"VALUE(FIXED(EXP(AP$4*-1*'PM2.5 reduction'!AP164),9))","v":0.99999075299999995},{"$f":"VALUE(FIXED(EXP(AQ$4*-1*'PM2.5 reduction'!AQ164),9))","v":0.99998076400000002},{"$f":"VALUE(FIXED(EXP(AR$4*-1*'PM2.5 reduction'!AR164),9))","v":0.99997857899999998},{"$f":"VALUE(FIXED(EXP(AS$4*-1*'PM2.5 reduction'!AS164),9))","v":0.99999498799999997},{"$f":"VALUE(FIXED(EXP(AT$4*-1*'PM2.5 reduction'!AT164),9))","v":1},{"$f":"VALUE(FIXED(EXP(AU$4*-1*'PM2.5 reduction'!AU164),9))","v":1},{"$f":"VALUE(FIXED(EXP(AV$4*-1*'PM2.5 reduction'!AV164),9))","v":0.99998645799999997},{"$f":"VALUE(FIXED(EXP(AW$4*-1*'PM2.5 reduction'!AW164),9))","v":0.99998004399999996},{"$f":"VALUE(FIXED(EXP(AX$4*-1*'PM2.5 reduction'!AX164),9))","v":0.99999006199999996},{"$f":"VALUE(FIXED(EXP(AY$4*-1*'PM2.5 reduction'!AY164),9))","v":0.99998478499999999},{"$f":"VALUE(FIXED(EXP(AZ$4*-1*'PM2.5 reduction'!AZ164),9))","v":0.99998470900000003},{"$f":"VALUE(FIXED(EXP(BA$4*-1*'PM2.5 reduction'!BA164),9))","v":0.99997995399999995},{"$f":"VALUE(FIXED(EXP(BB$4*-1*'PM2.5 reduction'!BB164),9))","v":0.99998332400000001},{"$f":"VALUE(FIXED(EXP(BC$4*-1*'PM2.5 reduction'!BC164),9))","v":0.999995403}]
[null,"Male 50-54",{"$f":"VALUE(FIXED(EXP(C$4*-1*'PM2.5 reduction'!C165),9))","v":0.99996347699999999},{"$f":"VALUE(FIXED(EXP(D$4*-1*'PM2.5 reduction'!D165),9))","v":0.99997741100000004},{"$f":"VALUE(FIXED(EXP(E$4*-1*'PM2.5 reduction'!E165),9))","v":0.99999396900000004},{"$f":"VALUE(FIXED(EXP(F$4*-1*'PM2.5 reduction'!F165),9))","v":0.99999238000000001},{"$f":"VALUE(FIXED(EXP(G$4*-1*'PM2.5 reduction'!G165),9))","v":0.99999702599999996},{"$f":"VALUE(FIXED(EXP(H$4*-1*'PM2.5 reduction'!H165),9))","v":0.99998916000000004},{"$f":"VALUE(FIXED(EXP(I$4*-1*'PM2.5 reduction'!I165),9))","v":0.99999511699999999},{"$f":"VALUE(FIXED(EXP(J$4*-1*'PM2.5 reduction'!J165),9))","v":0.99998959200000004},{"$f":"VALUE(FIXED(EXP(K$4*-1*'PM2.5 reduction'!K165),9))","v":0.99998950200000003},{"$f":"VALUE(FIXED(EXP(L$4*-1*'PM2.5 reduction'!L165),9))","v":0.99999310900000005},{"$f":"VALUE(FIXED(EXP(M$4*-1*'PM2.5 reduction'!M165),9))","v":0.99999310900000005},{"$f":"VALUE(FIXED(EXP(N$4*-1*'PM2.5 reduction'!N165),9))","v":0.99996975700000001},{"$f":"VALUE(FIXED(EXP(O$4*-1*'PM2.5 reduction'!O165),9))","v":0.99998964899999998},{"$f":"VALUE(FIXED(EXP(P$4*-1*'PM2.5 reduction'!P165),9))","v":0.99997445600000001},{"$f":"VALUE(FIXED(EXP(Q$4*-1*'PM2.5 reduction'!Q165),9))","v":0.99998630300000002},{"$f":"VALUE(FIXED(EXP(R$4*-1*'PM2.5 reduction'!R165),9))","v":0.99997798800000004},{"$f":"VALUE(FIXED(EXP(S$4*-1*'PM2.5 reduction'!S165),9))","v":0.99997692599999999},{"$f":"VALUE(FIXED(EXP(T$4*-1*'PM2.5 reduction'!T165),9))","v":0.99995612499999997},{"$f":"VALUE(FIXED(EXP(U$4*-1*'PM2.5 reduction'!U165),9))","v":0.99999548299999996},{"$f":"VALUE(FIXED(EXP(V$4*-1*'PM2.5 reduction'!V165),9))","v":0.99998030800000004},{"$f":"VALUE(FIXED(EXP(W$4*-1*'PM2.5 reduction'!W165),9))","v":0.99998484099999996},{"$f":"VALUE(FIXED(EXP(X$4*-1*'PM2.5 reduction'!X165),9))","v":0.99998484099999996},{"$f":"VALUE(FIXED(EXP(Y$4*-1*'PM2.5 reduction'!Y165),9))","v":0.99998337400000004},{"$f":"VALUE(FIXED(EXP(Z$4*-1*'PM2.5 reduction'!Z165),9))","v":0.99996407700000001},{"$f":"VALUE(FIXED(EXP(AA$4*-1*'PM2.5 reduction'!AA165),9))","v":0.99997485200000003},{"$f":"VALUE(FIXED(EXP(AB$4*-1*'PM2.5 reduction'!AB165),9))","v":0.99998035600000001},{"$f":"VALUE(FIXED(EXP(AC$4*-1*'PM2.5 reduction'!AC165),9))","v":0.99997218499999996},{"$f":"VALUE(FIXED(EXP(AD$4*-1*'PM2.5 reduction'!AD165),9))","v":0.99999471900000003},{"$f":"VALUE(FIXED(EXP(AE$4*-1*'PM2.5 reduction'!AE165),9))","v":0.99999421499999996},{"$f":"VALUE(FIXED(EXP(AF$4*-1*'PM2.5 reduction'!AF165),9))","v":0.99998526600000004},{"$f":"VALUE(FIXED(EXP(AG$4*-1*'PM2.5 reduction'!AG165),9))","v":0.99999421499999996},{"$f":"VALUE(FIXED(EXP(AH$4*-1*'PM2.5 reduction'!AH165),9))","v":0.99997836100000004},{"$f":"VALUE(FIXED(EXP(AI$4*-1*'PM2.5 reduction'!AI165),9))","v":0.99996982199999995},{"$f":"VALUE(FIXED(EXP(AJ$4*-1*'PM2.5 reduction'!AJ165),9))","v":0.99998510799999996},{"$f":"VALUE(FIXED(EXP(AK$4*-1*'PM2.5 reduction'!AK165),9))","v":0.99999158700000002},{"$f":"VALUE(FIXED(EXP(AL$4*-1*'PM2.5 reduction'!AL165),9))","v":0.999991513},{"$f":"VALUE(FIXED(EXP(AM$4*-1*'PM2.5 reduction'!AM165),9))","v":0.99997753899999997},{"$f":"VALUE(FIXED(EXP(AN$4*-1*'PM2.5 reduction'!AN165),9))","v":0.99999368799999999},{"$f":"VALUE(FIXED(EXP(AO$4*-1*'PM2.5 reduction'!AO165),9))","v":0.99999368799999999},{"$f":"VALUE(FIXED(EXP(AP$4*-1*'PM2.5 reduction'!AP165),9))","v":0.99999045499999994},{"$f":"VALUE(FIXED(EXP(AQ$4*-1*'PM2.5 reduction'!AQ165),9))","v":0.99998072100000002},{"$f":"VALUE(FIXED(EXP(AR$4*-1*'PM2.5 reduction'!AR165),9))","v":0.99997924500000002},{"$f":"VALUE(FIXED(EXP(AS$4*-1*'PM2.5 reduction'!AS165),9))","v":0.99999511699999999},{"$f":"VALUE(FIXED(EXP(AT$4*-1*'PM2.5 reduction'!AT165),9))","v":1},{"$f":"VALUE(FIXED(EXP(AU$4*-1*'PM2.5 reduction'!AU165),9))","v":1},{"$f":"VALUE(FIXED(EXP(AV$4*-1*'PM2.5 reduction'!AV165),9))","v":0.99998623200000003},{"$f":"VALUE(FIXED(EXP(AW$4*-1*'PM2.5 reduction'!AW165),9))","v":0.99997930999999995},{"$f":"VALUE(FIXED(EXP(AX$4*-1*'PM2.5 reduction'!AX165),9))","v":0.99998967299999997},{"$f":"VALUE(FIXED(EXP(AY$4*-1*'PM2.5 reduction'!AY165),9))","v":0.99998442700000001},{"$f":"VALUE(FIXED(EXP(AZ$4*-1*'PM2.5 reduction'!AZ165),9))","v":0.99998400499999995},{"$f":"VALUE(FIXED(EXP(BA$4*-1*'PM2.5 reduction'!BA165),9))","v":0.99998114299999996},{"$f":"VALUE(FIXED(EXP(BB$4*-1*'PM2.5 reduction'!BB165),9))","v":0.99998334899999997},{"$f":"VALUE(FIXED(EXP(BC$4*-1*'PM2.5 reduction'!BC165),9))","v":0.99999548299999996}]
[null,"Male 55-59",{"$f":"VALUE(FIXED(EXP(C$4*-1*'PM2.5 reduction'!C166),9))","v":0.99996283500000005},{"$f":"VALUE(FIXED(EXP(D$4*-1*'PM2.5 reduction'!D166),9))","v":0.99997724200000004},{"$f":"VALUE(FIXED(EXP(E$4*-1*'PM2.5 reduction'!E166),9))","v":0.99999381700000001},{"$f":"VALUE(FIXED(EXP(F$4*-1*'PM2.5 reduction'!F166),9))","v":0.9999922},{"$f":"VALUE(FIXED(EXP(G$4*-1*'PM2.5 reduction'!G166),9))","v":0.99999657900000005},{"$f":"VALUE(FIXED(EXP(H$4*-1*'PM2.5 reduction'!H166),9))","v":0.99998933499999998},{"$f":"VALUE(FIXED(EXP(I$4*-1*'PM2.5 reduction'!I166),9))","v":0.99999512099999999},{"$f":"VALUE(FIXED(EXP(J$4*-1*'PM2.5 reduction'!J166),9))","v":0.99999021099999996},{"$f":"VALUE(FIXED(EXP(K$4*-1*'PM2.5 reduction'!K166),9))","v":0.99998963799999996},{"$f":"VALUE(FIXED(EXP(L$4*-1*'PM2.5 reduction'!L166),9))","v":0.999992832},{"$f":"VALUE(FIXED(EXP(M$4*-1*'PM2.5 reduction'!M166),9))","v":0.999992832},{"$f":"VALUE(FIXED(EXP(N$4*-1*'PM2.5 reduction'!N166),9))","v":0.99996958899999999},{"$f":"VALUE(FIXED(EXP(O$4*-1*'PM2.5 reduction'!O166),9))","v":0.99999059899999998},{"$f":"VALUE(FIXED(EXP(P$4*-1*'PM2.5 reduction'!P166),9))","v":0.99997355399999999},{"$f":"VALUE(FIXED(EXP(Q$4*-1*'PM2.5 reduction'!Q166),9))","v":0.99998569299999995},{"$f":"VALUE(FIXED(EXP(R$4*-1*'PM2.5 reduction'!R166),9))","v":0.99997681299999996},{"$f":"VALUE(FIXED(EXP(S$4*-1*'PM2.5 reduction'!S166),9))","v":0.99997809599999998},{"$f":"VALUE(FIXED(EXP(T$4*-1*'PM2.5 reduction'!T166),9))","v":0.99995707099999998},{"$f":"VALUE(FIXED(EXP(U$4*-1*'PM2.5 reduction'!U166),9))","v":0.999995525},{"$f":"VALUE(FIXED(EXP(V$4*-1*'PM2.5 reduction'!V166),9))","v":0.99997997100000002},{"$f":"VALUE(FIXED(EXP(W$4*-1*'PM2.5 reduction'!W166),9))","v":0.99998493200000005},{"$f":"VALUE(FIXED(EXP(X$4*-1*'PM2.5 reduction'!X166),9))","v":0.99998493200000005},{"$f":"VALUE(FIXED(EXP(Y$4*-1*'PM2.5 reduction'!Y166),9))","v":0.99998366500000002},{"$f":"VALUE(FIXED(EXP(Z$4*-1*'PM2.5 reduction'!Z166),9))","v":0.99996443599999996},{"$f":"VALUE(FIXED(EXP(AA$4*-1*'PM2.5 reduction'!AA166),9))","v":0.99997498900000004},{"$f":"VALUE(FIXED(EXP(AB$4*-1*'PM2.5 reduction'!AB166),9))","v":0.99997996300000003},{"$f":"VALUE(FIXED(EXP(AC$4*-1*'PM2.5 reduction'!AC166),9))","v":0.99997243199999997},{"$f":"VALUE(FIXED(EXP(AD$4*-1*'PM2.5 reduction'!AD166),9))","v":0.99999454399999999},{"$f":"VALUE(FIXED(EXP(AE$4*-1*'PM2.5 reduction'!AE166),9))","v":0.99999417400000001},{"$f":"VALUE(FIXED(EXP(AF$4*-1*'PM2.5 reduction'!AF166),9))","v":0.99998519500000005},{"$f":"VALUE(FIXED(EXP(AG$4*-1*'PM2.5 reduction'!AG166),9))","v":0.99999417400000001},{"$f":"VALUE(FIXED(EXP(AH$4*-1*'PM2.5 reduction'!AH166),9))","v":0.999978386},{"$f":"VALUE(FIXED(EXP(AI$4*-1*'PM2.5 reduction'!AI166),9))","v":0.99997123499999996},{"$f":"VALUE(FIXED(EXP(AJ$4*-1*'PM2.5 reduction'!AJ166),9))","v":0.99998445499999999},{"$f":"VALUE(FIXED(EXP(AK$4*-1*'PM2.5 reduction'!AK166),9))","v":0.99999114600000005},{"$f":"VALUE(FIXED(EXP(AL$4*-1*'PM2.5 reduction'!AL166),9))","v":0.99999140200000003},{"$f":"VALUE(FIXED(EXP(AM$4*-1*'PM2.5 reduction'!AM166),9))","v":0.99997729199999996},{"$f":"VALUE(FIXED(EXP(AN$4*-1*'PM2.5 reduction'!AN166),9))","v":0.99999357799999999},{"$f":"VALUE(FIXED(EXP(AO$4*-1*'PM2.5 reduction'!AO166),9))","v":0.99999357799999999},{"$f":"VALUE(FIXED(EXP(AP$4*-1*'PM2.5 reduction'!AP166),9))","v":0.99999080100000004},{"$f":"VALUE(FIXED(EXP(AQ$4*-1*'PM2.5 reduction'!AQ166),9))","v":0.99998061500000002},{"$f":"VALUE(FIXED(EXP(AR$4*-1*'PM2.5 reduction'!AR166),9))","v":0.999979595},{"$f":"VALUE(FIXED(EXP(AS$4*-1*'PM2.5 reduction'!AS166),9))","v":0.99999512099999999},{"$f":"VALUE(FIXED(EXP(AT$4*-1*'PM2.5 reduction'!AT166),9))","v":1},{"$f":"VALUE(FIXED(EXP(AU$4*-1*'PM2.5 reduction'!AU166),9))","v":1},{"$f":"VALUE(FIXED(EXP(AV$4*-1*'PM2.5 reduction'!AV166),9))","v":0.99998574100000004},{"$f":"VALUE(FIXED(EXP(AW$4*-1*'PM2.5 reduction'!AW166),9))","v":0.99997945600000004},{"$f":"VALUE(FIXED(EXP(AX$4*-1*'PM2.5 reduction'!AX166),9))","v":0.999990771},{"$f":"VALUE(FIXED(EXP(AY$4*-1*'PM2.5 reduction'!AY166),9))","v":0.99998441299999996},{"$f":"VALUE(FIXED(EXP(AZ$4*-1*'PM2.5 reduction'!AZ166),9))","v":0.99998382900000005},{"$f":"VALUE(FIXED(EXP(BA$4*-1*'PM2.5 reduction'!BA166),9))","v":0.99998093499999996},{"$f":"VALUE(FIXED(EXP(BB$4*-1*'PM2.5 reduction'!BB166),9))","v":0.99998349499999994},{"$f":"VALUE(FIXED(EXP(BC$4*-1*'PM2.5 reduction'!BC166),9))","v":0.999995525}]
[null,"Male 60-64",{"$f":"VALUE(FIXED(EXP(C$4*-1*'PM2.5 reduction'!C167),9))","v":0.99996336200000002},{"$f":"VALUE(FIXED(EXP(D$4*-1*'PM2.5 reduction'!D167),9))","v":0.99997797099999997},{"$f":"VALUE(FIXED(EXP(E$4*-1*'PM2.5 reduction'!E167),9))","v":0.99999388700000003},{"$f":"VALUE(FIXED(EXP(F$4*-1*'PM2.5 reduction'!F167),9))","v":0.99999232800000004},{"$f":"VALUE(FIXED(EXP(G$4*-1*'PM2.5 reduction'!G167),9))","v":0.99999684799999999},{"$f":"VALUE(FIXED(EXP(H$4*-1*'PM2.5 reduction'!H167),9))","v":0.99998923699999998},{"$f":"VALUE(FIXED(EXP(I$4*-1*'PM2.5 reduction'!I167),9))","v":0.99999514599999995},{"$f":"VALUE(FIXED(EXP(J$4*-1*'PM2.5 reduction'!J167),9))","v":0.99999026599999996},{"$f":"VALUE(FIXED(EXP(K$4*-1*'PM2.5 reduction'!K167),9))","v":0.99998895200000004},{"$f":"VALUE(FIXED(EXP(L$4*-1*'PM2.5 reduction'!L167),9))","v":0.99999336500000002},{"$f":"VALUE(FIXED(EXP(M$4*-1*'PM2.5 reduction'!M167),9))","v":0.99999336500000002},{"$f":"VALUE(FIXED(EXP(N$4*-1*'PM2.5 reduction'!N167),9))","v":0.99996996699999996},{"$f":"VALUE(FIXED(EXP(O$4*-1*'PM2.5 reduction'!O167),9))","v":0.99999073999999999},{"$f":"VALUE(FIXED(EXP(P$4*-1*'PM2.5 reduction'!P167),9))","v":0.999974523},{"$f":"VALUE(FIXED(EXP(Q$4*-1*'PM2.5 reduction'!Q167),9))","v":0.99998679000000001},{"$f":"VALUE(FIXED(EXP(R$4*-1*'PM2.5 reduction'!R167),9))","v":0.99997698499999998},{"$f":"VALUE(FIXED(EXP(S$4*-1*'PM2.5 reduction'!S167),9))","v":0.999978535},{"$f":"VALUE(FIXED(EXP(T$4*-1*'PM2.5 reduction'!T167),9))","v":0.99995799200000002},{"$f":"VALUE(FIXED(EXP(U$4*-1*'PM2.5 reduction'!U167),9))","v":0.99999560099999996},{"$f":"VALUE(FIXED(EXP(V$4*-1*'PM2.5 reduction'!V167),9))","v":0.999980757},{"$f":"VALUE(FIXED(EXP(W$4*-1*'PM2.5 reduction'!W167),9))","v":0.99998474999999998},{"$f":"VALUE(FIXED(EXP(X$4*-1*'PM2.5 reduction'!X167),9))","v":0.99998474999999998},{"$f":"VALUE(FIXED(EXP(Y$4*-1*'PM2.5 reduction'!Y167),9))","v":0.99998434899999999},{"$f":"VALUE(FIXED(EXP(Z$4*-1*'PM2.5 reduction'!Z167),9))","v":0.99996477699999997},{"$f":"VALUE(FIXED(EXP(AA$4*-1*'PM2.5 reduction'!AA167),9))","v":0.99997507100000005},{"$f":"VALUE(FIXED(EXP(AB$4*-1*'PM2.5 reduction'!AB167),9))","v":0.99998083299999996},{"$f":"VALUE(FIXED(EXP(AC$4*-1*'PM2.5 reduction'!AC167),9))","v":0.99997225199999995},{"$f":"VALUE(FIXED(EXP(AD$4*-1*'PM2.5 reduction'!AD167),9))","v":0.99999447399999997},{"$f":"VALUE(FIXED(EXP(AE$4*-1*'PM2.5 reduction'!AE167),9))","v":0.99999405299999999},{"$f":"VALUE(FIXED(EXP(AF$4*-1*'PM2.5 reduction'!AF167),9))","v":0.99998508900000005},{"$f":"VALUE(FIXED(EXP(AG$4*-1*'PM2.5 reduction'!AG167),9))","v":0.99999405299999999},{"$f":"VALUE(FIXED(EXP(AH$4*-1*'PM2.5 reduction'!AH167),9))","v":0.99997859899999997},{"$f":"VALUE(FIXED(EXP(AI$4*-1*'PM2.5 reduction'!AI167),9))","v":0.99997179899999999},{"$f":"VALUE(FIXED(EXP(AJ$4*-1*'PM2.5 reduction'!AJ167),9))","v":0.99998436499999999},{"$f":"VALUE(FIXED(EXP(AK$4*-1*'PM2.5 reduction'!AK167),9))","v":0.99999157699999996},{"$f":"VALUE(FIXED(EXP(AL$4*-1*'PM2.5 reduction'!AL167),9))","v":0.99999142399999996},{"$f":"VALUE(FIXED(EXP(AM$4*-1*'PM2.5 reduction'!AM167),9))","v":0.99997720400000001},{"$f":"VALUE(FIXED(EXP(AN$4*-1*'PM2.5 reduction'!AN167),9))","v":0.99999362999999997},{"$f":"VALUE(FIXED(EXP(AO$4*-1*'PM2.5 reduction'!AO167),9))","v":0.99999362999999997},{"$f":"VALUE(FIXED(EXP(AP$4*-1*'PM2.5 reduction'!AP167),9))","v":0.99999046599999997},{"$f":"VALUE(FIXED(EXP(AQ$4*-1*'PM2.5 reduction'!AQ167),9))","v":0.99998019800000004},{"$f":"VALUE(FIXED(EXP(AR$4*-1*'PM2.5 reduction'!AR167),9))","v":0.99998019100000002},{"$f":"VALUE(FIXED(EXP(AS$4*-1*'PM2.5 reduction'!AS167),9))","v":0.99999514599999995},{"$f":"VALUE(FIXED(EXP(AT$4*-1*'PM2.5 reduction'!AT167),9))","v":1},{"$f":"VALUE(FIXED(EXP(AU$4*-1*'PM2.5 reduction'!AU167),9))","v":1},{"$f":"VALUE(FIXED(EXP(AV$4*-1*'PM2.5 reduction'!AV167),9))","v":0.99998598500000002},{"$f":"VALUE(FIXED(EXP(AW$4*-1*'PM2.5 reduction'!AW167),9))","v":0.99997994999999995},{"$f":"VALUE(FIXED(EXP(AX$4*-1*'PM2.5 reduction'!AX167),9))","v":0.99999149799999998},{"$f":"VALUE(FIXED(EXP(AY$4*-1*'PM2.5 reduction'!AY167),9))","v":0.99998458499999998},{"$f":"VALUE(FIXED(EXP(AZ$4*-1*'PM2.5 reduction'!AZ167),9))","v":0.99998442300000001},{"$f":"VALUE(FIXED(EXP(BA$4*-1*'PM2.5 reduction'!BA167),9))","v":0.99998077100000005},{"$f":"VALUE(FIXED(EXP(BB$4*-1*'PM2.5 reduction'!BB167),9))","v":0.99998363300000004},{"$f":"VALUE(FIXED(EXP(BC$4*-1*'PM2.5 reduction'!BC167),9))","v":0.99999560099999996}]
[null,"Male 65-69",{"$f":"VALUE(FIXED(EXP(C$4*-1*'PM2.5 reduction'!C168),9))","v":0.99996593},{"$f":"VALUE(FIXED(EXP(D$4*-1*'PM2.5 reduction'!D168),9))","v":0.99998058000000001},{"$f":"VALUE(FIXED(EXP(E$4*-1*'PM2.5 reduction'!E168),9))","v":0.99999389500000002},{"$f":"VALUE(FIXED(EXP(F$4*-1*'PM2.5 reduction'!F168),9))","v":0.99999256000000003},{"$f":"VALUE(FIXED(EXP(G$4*-1*'PM2.5 reduction'!G168),9))","v":0.99999709299999995},{"$f":"VALUE(FIXED(EXP(H$4*-1*'PM2.5 reduction'!H168),9))","v":0.99998940199999997},{"$f":"VALUE(FIXED(EXP(I$4*-1*'PM2.5 reduction'!I168),9))","v":0.99999510400000002},{"$f":"VALUE(FIXED(EXP(J$4*-1*'PM2.5 reduction'!J168),9))","v":0.999990618},{"$f":"VALUE(FIXED(EXP(K$4*-1*'PM2.5 reduction'!K168),9))","v":0.99998982999999997},{"$f":"VALUE(FIXED(EXP(L$4*-1*'PM2.5 reduction'!L168),9))","v":0.999993668},{"$f":"VALUE(FIXED(EXP(M$4*-1*'PM2.5 reduction'!M168),9))","v":0.999993668},{"$f":"VALUE(FIXED(EXP(N$4*-1*'PM2.5 reduction'!N168),9))","v":0.99997002999999995},{"$f":"VALUE(FIXED(EXP(O$4*-1*'PM2.5 reduction'!O168),9))","v":0.99999062400000005},{"$f":"VALUE(FIXED(EXP(P$4*-1*'PM2.5 reduction'!P168),9))","v":0.99997437},{"$f":"VALUE(FIXED(EXP(Q$4*-1*'PM2.5 reduction'!Q168),9))","v":0.999986288},{"$f":"VALUE(FIXED(EXP(R$4*-1*'PM2.5 reduction'!R168),9))","v":0.99997810799999998},{"$f":"VALUE(FIXED(EXP(S$4*-1*'PM2.5 reduction'!S168),9))","v":0.99997985599999994},{"$f":"VALUE(FIXED(EXP(T$4*-1*'PM2.5 reduction'!T168),9))","v":0.99995989200000002},{"$f":"VALUE(FIXED(EXP(U$4*-1*'PM2.5 reduction'!U168),9))","v":0.99999568500000002},{"$f":"VALUE(FIXED(EXP(V$4*-1*'PM2.5 reduction'!V168),9))","v":0.99998035600000001},{"$f":"VALUE(FIXED(EXP(W$4*-1*'PM2.5 reduction'!W168),9))","v":0.99998506700000001},{"$f":"VALUE(FIXED(EXP(X$4*-1*'PM2.5 reduction'!X168),9))","v":0.99998506700000001},{"$f":"VALUE(FIXED(EXP(Y$4*-1*'PM2.5 reduction'!Y168),9))","v":0.999984121},{"$f":"VALUE(FIXED(EXP(Z$4*-1*'PM2.5 reduction'!Z168),9))","v":0.99996460499999995},{"$f":"VALUE(FIXED(EXP(AA$4*-1*'PM2.5 reduction'!AA168),9))","v":0.99997587399999999},{"$f":"VALUE(FIXED(EXP(AB$4*-1*'PM2.5 reduction'!AB168),9))","v":0.99998285600000003},{"$f":"VALUE(FIXED(EXP(AC$4*-1*'PM2.5 reduction'!AC168),9))","v":0.999973212},{"$f":"VALUE(FIXED(EXP(AD$4*-1*'PM2.5 reduction'!AD168),9))","v":0.99999500399999997},{"$f":"VALUE(FIXED(EXP(AE$4*-1*'PM2.5 reduction'!AE168),9))","v":0.999994626},{"$f":"VALUE(FIXED(EXP(AF$4*-1*'PM2.5 reduction'!AF168),9))","v":0.99998502499999997},{"$f":"VALUE(FIXED(EXP(AG$4*-1*'PM2.5 reduction'!AG168),9))","v":0.999994626},{"$f":"VALUE(FIXED(EXP(AH$4*-1*'PM2.5 reduction'!AH168),9))","v":0.99997903399999999},{"$f":"VALUE(FIXED(EXP(AI$4*-1*'PM2.5 reduction'!AI168),9))","v":0.99997323100000002},{"$f":"VALUE(FIXED(EXP(AJ$4*-1*'PM2.5 reduction'!AJ168),9))","v":0.99998448299999998},{"$f":"VALUE(FIXED(EXP(AK$4*-1*'PM2.5 reduction'!AK168),9))","v":0.99999150599999997},{"$f":"VALUE(FIXED(EXP(AL$4*-1*'PM2.5 reduction'!AL168),9))","v":0.99999118099999995},{"$f":"VALUE(FIXED(EXP(AM$4*-1*'PM2.5 reduction'!AM168),9))","v":0.99997801100000006},{"$f":"VALUE(FIXED(EXP(AN$4*-1*'PM2.5 reduction'!AN168),9))","v":0.99999365799999995},{"$f":"VALUE(FIXED(EXP(AO$4*-1*'PM2.5 reduction'!AO168),9))","v":0.99999365799999995},{"$f":"VALUE(FIXED(EXP(AP$4*-1*'PM2.5 reduction'!AP168),9))","v":0.99999079700000004},{"$f":"VALUE(FIXED(EXP(AQ$4*-1*'PM2.5 reduction'!AQ168),9))","v":0.99998059299999997},{"$f":"VALUE(FIXED(EXP(AR$4*-1*'PM2.5 reduction'!AR168),9))","v":0.99998122300000003},{"$f":"VALUE(FIXED(EXP(AS$4*-1*'PM2.5 reduction'!AS168),9))","v":0.99999510400000002},{"$f":"VALUE(FIXED(EXP(AT$4*-1*'PM2.5 reduction'!AT168),9))","v":1},{"$f":"VALUE(FIXED(EXP(AU$4*-1*'PM2.5 reduction'!AU168),9))","v":1},{"$f":"VALUE(FIXED(EXP(AV$4*-1*'PM2.5 reduction'!AV168),9))","v":0.99998637700000004},{"$f":"VALUE(FIXED(EXP(AW$4*-1*'PM2.5 reduction'!AW168),9))","v":0.99998023400000002},{"$f":"VALUE(FIXED(EXP(AX$4*-1*'PM2.5 reduction'!AX168),9))","v":0.99999137400000004},{"$f":"VALUE(FIXED(EXP(AY$4*-1*'PM2.5 reduction'!AY168),9))","v":0.99998487199999997},{"$f":"VALUE(FIXED(EXP(AZ$4*-1*'PM2.5 reduction'!AZ168),9))","v":0.99998467199999996},{"$f":"VALUE(FIXED(EXP(BA$4*-1*'PM2.5 reduction'!BA168),9))","v":0.99998055799999996},{"$f":"VALUE(FIXED(EXP(BB$4*-1*'PM2.5 reduction'!BB168),9))","v":0.99998408000000005},{"$f":"VALUE(FIXED(EXP(BC$4*-1*'PM2.5 reduction'!BC168),9))","v":0.99999568500000002}]
[null,"Male 70-74",{"$f":"VALUE(FIXED(EXP(C$4*-1*'PM2.5 reduction'!C169),9))","v":0.99996656799999994},{"$f":"VALUE(FIXED(EXP(D$4*-1*'PM2.5 reduction'!D169),9))","v":0.99998174200000001},{"$f":"VALUE(FIXED(EXP(E$4*-1*'PM2.5 reduction'!E169),9))","v":0.999994139},{"$f":"VALUE(FIXED(EXP(F$4*-1*'PM2.5 reduction'!F169),9))","v":0.99999265999999998},{"$f":"VALUE(FIXED(EXP(G$4*-1*'PM2.5 reduction'!G169),9))","v":0.99999700499999999},{"$f":"VALUE(FIXED(EXP(H$4*-1*'PM2.5 reduction'!H169),9))","v":0.99998923799999995},{"$f":"VALUE(FIXED(EXP(I$4*-1*'PM2.5 reduction'!I169),9))","v":0.99999507499999996},{"$f":"VALUE(FIXED(EXP(J$4*-1*'PM2.5 reduction'!J169),9))","v":0.99999174999999996},{"$f":"VALUE(FIXED(EXP(K$4*-1*'PM2.5 reduction'!K169),9))","v":0.99999064100000001},{"$f":"VALUE(FIXED(EXP(L$4*-1*'PM2.5 reduction'!L169),9))","v":0.99999354699999998},{"$f":"VALUE(FIXED(EXP(M$4*-1*'PM2.5 reduction'!M169),9))","v":0.99999354699999998},{"$f":"VALUE(FIXED(EXP(N$4*-1*'PM2.5 reduction'!N169),9))","v":0.99997039600000004},{"$f":"VALUE(FIXED(EXP(O$4*-1*'PM2.5 reduction'!O169),9))","v":0.99999005600000002},{"$f":"VALUE(FIXED(EXP(P$4*-1*'PM2.5 reduction'!P169),9))","v":0.99997343400000005},{"$f":"VALUE(FIXED(EXP(Q$4*-1*'PM2.5 reduction'!Q169),9))","v":0.99998678500000004},{"$f":"VALUE(FIXED(EXP(R$4*-1*'PM2.5 reduction'!R169),9))","v":0.99997800999999997},{"$f":"VALUE(FIXED(EXP(S$4*-1*'PM2.5 reduction'!S169),9))","v":0.99998102799999999},{"$f":"VALUE(FIXED(EXP(T$4*-1*'PM2.5 reduction'!T169),9))","v":0.99995959599999995},{"$f":"VALUE(FIXED(EXP(U$4*-1*'PM2.5 reduction'!U169),9))","v":0.99999540799999997},{"$f":"VALUE(FIXED(EXP(V$4*-1*'PM2.5 reduction'!V169),9))","v":0.99997944699999997},{"$f":"VALUE(FIXED(EXP(W$4*-1*'PM2.5 reduction'!W169),9))","v":0.99998512100000003},{"$f":"VALUE(FIXED(EXP(X$4*-1*'PM2.5 reduction'!X169),9))","v":0.99998512100000003},{"$f":"VALUE(FIXED(EXP(Y$4*-1*'PM2.5 reduction'!Y169),9))","v":0.99998380899999995},{"$f":"VALUE(FIXED(EXP(Z$4*-1*'PM2.5 reduction'!Z169),9))","v":0.99996500799999999},{"$f":"VALUE(FIXED(EXP(AA$4*-1*'PM2.5 reduction'!AA169),9))","v":0.99997623099999999},{"$f":"VALUE(FIXED(EXP(AB$4*-1*'PM2.5 reduction'!AB169),9))","v":0.99998380600000003},{"$f":"VALUE(FIXED(EXP(AC$4*-1*'PM2.5 reduction'!AC169),9))","v":0.99997384300000003},{"$f":"VALUE(FIXED(EXP(AD$4*-1*'PM2.5 reduction'!AD169),9))","v":0.99999488599999997},{"$f":"VALUE(FIXED(EXP(AE$4*-1*'PM2.5 reduction'!AE169),9))","v":0.99999452200000005},{"$f":"VALUE(FIXED(EXP(AF$4*-1*'PM2.5 reduction'!AF169),9))","v":0.99998495600000004},{"$f":"VALUE(FIXED(EXP(AG$4*-1*'PM2.5 reduction'!AG169),9))","v":0.99999452200000005},{"$f":"VALUE(FIXED(EXP(AH$4*-1*'PM2.5 reduction'!AH169),9))","v":0.99997916099999995},{"$f":"VALUE(FIXED(EXP(AI$4*-1*'PM2.5 reduction'!AI169),9))","v":0.99997480400000005},{"$f":"VALUE(FIXED(EXP(AJ$4*-1*'PM2.5 reduction'!AJ169),9))","v":0.99998468399999996},{"$f":"VALUE(FIXED(EXP(AK$4*-1*'PM2.5 reduction'!AK169),9))","v":0.99999141000000002},{"$f":"VALUE(FIXED(EXP(AL$4*-1*'PM2.5 reduction'!AL169),9))","v":0.99999116499999996},{"$f":"VALUE(FIXED(EXP(AM$4*-1*'PM2.5 reduction'!AM169),9))","v":0.99997826899999998},{"$f":"VALUE(FIXED(EXP(AN$4*-1*'PM2.5 reduction'!AN169),9))","v":0.99999375300000004},{"$f":"VALUE(FIXED(EXP(AO$4*-1*'PM2.5 reduction'!AO169),9))","v":0.99999375300000004},{"$f":"VALUE(FIXED(EXP(AP$4*-1*'PM2.5 reduction'!AP169),9))","v":0.999991038},{"$f":"VALUE(FIXED(EXP(AQ$4*-1*'PM2.5 reduction'!AQ169),9))","v":0.99998137399999998},{"$f":"VALUE(FIXED(EXP(AR$4*-1*'PM2.5 reduction'!AR169),9))","v":0.999981809},{"$f":"VALUE(FIXED(EXP(AS$4*-1*'PM2.5 reduction'!AS169),9))","v":0.99999507499999996},{"$f":"VALUE(FIXED(EXP(AT$4*-1*'PM2.5 reduction'!AT169),9))","v":1},{"$f":"VALUE(FIXED(EXP(AU$4*-1*'PM2.5 reduction'!AU169),9))","v":1},{"$f":"VALUE(FIXED(EXP(AV$4*-1*'PM2.5 reduction'!AV169),9))","v":0.99998664800000003},{"$f":"VALUE(FIXED(EXP(AW$4*-1*'PM2.5 reduction'!AW169),9))","v":0.99998014999999996},{"$f":"VALUE(FIXED(EXP(AX$4*-1*'PM2.5 reduction'!AX169),9))","v":0.99999281799999995},{"$f":"VALUE(FIXED(EXP(AY$4*-1*'PM2.5 reduction'!AY169),9))","v":0.99998511899999998},{"$f":"VALUE(FIXED(EXP(AZ$4*-1*'PM2.5 reduction'!AZ169),9))","v":0.99998511700000003},{"$f":"VALUE(FIXED(EXP(BA$4*-1*'PM2.5 reduction'!BA169),9))","v":0.99997979699999995},{"$f":"VALUE(FIXED(EXP(BB$4*-1*'PM2.5 reduction'!BB169),9))","v":0.99998425899999999},{"$f":"VALUE(FIXED(EXP(BC$4*-1*'PM2.5 reduction'!BC169),9))","v":0.99999540799999997}]
[null,"Male 75-79",{"$f":"VALUE(FIXED(EXP(C$4*-1*'PM2.5 reduction'!C170),9))","v":0.99997062599999997},{"$f":"VALUE(FIXED(EXP(D$4*-1*'PM2.5 reduction'!D170),9))","v":0.99998267399999996},{"$f":"VALUE(FIXED(EXP(E$4*-1*'PM2.5 reduction'!E170),9))","v":0.99999402500000001},{"$f":"VALUE(FIXED(EXP(F$4*-1*'PM2.5 reduction'!F170),9))","v":0.99999271199999995},{"$f":"VALUE(FIXED(EXP(G$4*-1*'PM2.5 reduction'!G170),9))","v":0.99999696900000001},{"$f":"VALUE(FIXED(EXP(H$4*-1*'PM2.5 reduction'!H170),9))","v":0.99998861999999999},{"$f":"VALUE(FIXED(EXP(I$4*-1*'PM2.5 reduction'!I170),9))","v":0.99999514599999995},{"$f":"VALUE(FIXED(EXP(J$4*-1*'PM2.5 reduction'!J170),9))","v":0.99999089200000002},{"$f":"VALUE(FIXED(EXP(K$4*-1*'PM2.5 reduction'!K170),9))","v":0.99998863900000001},{"$f":"VALUE(FIXED(EXP(L$4*-1*'PM2.5 reduction'!L170),9))","v":0.99999410099999997},{"$f":"VALUE(FIXED(EXP(M$4*-1*'PM2.5 reduction'!M170),9))","v":0.99999410099999997},{"$f":"VALUE(FIXED(EXP(N$4*-1*'PM2.5 reduction'!N170),9))","v":0.999970362},{"$f":"VALUE(FIXED(EXP(O$4*-1*'PM2.5 reduction'!O170),9))","v":0.99998936500000002},{"$f":"VALUE(FIXED(EXP(P$4*-1*'PM2.5 reduction'!P170),9))","v":0.99997517499999999},{"$f":"VALUE(FIXED(EXP(Q$4*-1*'PM2.5 reduction'!Q170),9))","v":0.99998798},{"$f":"VALUE(FIXED(EXP(R$4*-1*'PM2.5 reduction'!R170),9))","v":0.99997779499999995},{"$f":"VALUE(FIXED(EXP(S$4*-1*'PM2.5 reduction'!S170),9))","v":0.99998123999999999},{"$f":"VALUE(FIXED(EXP(T$4*-1*'PM2.5 reduction'!T170),9))","v":0.99996105400000002},{"$f":"VALUE(FIXED(EXP(U$4*-1*'PM2.5 reduction'!U170),9))","v":0.99999542900000005},{"$f":"VALUE(FIXED(EXP(V$4*-1*'PM2.5 reduction'!V170),9))","v":0.99997920900000004},{"$f":"VALUE(FIXED(EXP(W$4*-1*'PM2.5 reduction'!W170),9))","v":0.999985295},{"$f":"VALUE(FIXED(EXP(X$4*-1*'PM2.5 reduction'!X170),9))","v":0.999985295},{"$f":"VALUE(FIXED(EXP(Y$4*-1*'PM2.5 reduction'!Y170),9))","v":0.99998357400000004},{"$f":"VALUE(FIXED(EXP(Z$4*-1*'PM2.5 reduction'!Z170),9))","v":0.99996366000000003},{"$f":"VALUE(FIXED(EXP(AA$4*-1*'PM2.5 reduction'!AA170),9))","v":0.99997568199999998},{"$f":"VALUE(FIXED(EXP(AB$4*-1*'PM2.5 reduction'!AB170),9))","v":0.99998473899999996},{"$f":"VALUE(FIXED(EXP(AC$4*-1*'PM2.5 reduction'!AC170),9))","v":0.99997296700000005},{"$f":"VALUE(FIXED(EXP(AD$4*-1*'PM2.5 reduction'!AD170),9))","v":0.99999451699999997},{"$f":"VALUE(FIXED(EXP(AE$4*-1*'PM2.5 reduction'!AE170),9))","v":0.99999410499999997},{"$f":"VALUE(FIXED(EXP(AF$4*-1*'PM2.5 reduction'!AF170),9))","v":0.99998487300000005},{"$f":"VALUE(FIXED(EXP(AG$4*-1*'PM2.5 reduction'!AG170),9))","v":0.99999410499999997},{"$f":"VALUE(FIXED(EXP(AH$4*-1*'PM2.5 reduction'!AH170),9))","v":0.99997862699999995},{"$f":"VALUE(FIXED(EXP(AI$4*-1*'PM2.5 reduction'!AI170),9))","v":0.999975014},{"$f":"VALUE(FIXED(EXP(AJ$4*-1*'PM2.5 reduction'!AJ170),9))","v":0.999984757},{"$f":"VALUE(FIXED(EXP(AK$4*-1*'PM2.5 reduction'!AK170),9))","v":0.99999106299999996},{"$f":"VALUE(FIXED(EXP(AL$4*-1*'PM2.5 reduction'!AL170),9))","v":0.99999123300000003},{"$f":"VALUE(FIXED(EXP(AM$4*-1*'PM2.5 reduction'!AM170),9))","v":0.99997728399999997},{"$f":"VALUE(FIXED(EXP(AN$4*-1*'PM2.5 reduction'!AN170),9))","v":0.99999386899999998},{"$f":"VALUE(FIXED(EXP(AO$4*-1*'PM2.5 reduction'!AO170),9))","v":0.99999386899999998},{"$f":"VALUE(FIXED(EXP(AP$4*-1*'PM2.5 reduction'!AP170),9))","v":0.99999244099999995},{"$f":"VALUE(FIXED(EXP(AQ$4*-1*'PM2.5 reduction'!AQ170),9))","v":0.99998092199999999},{"$f":"VALUE(FIXED(EXP(AR$4*-1*'PM2.5 reduction'!AR170),9))","v":0.99998175899999997},{"$f":"VALUE(FIXED(EXP(AS$4*-1*'PM2.5 reduction'!AS170),9))","v":0.99999514599999995},{"$f":"VALUE(FIXED(EXP(AT$4*-1*'PM2.5 reduction'!AT170),9))","v":1},{"$f":"VALUE(FIXED(EXP(AU$4*-1*'PM2.5 reduction'!AU170),9))","v":1},{"$f":"VALUE(FIXED(EXP(AV$4*-1*'PM2.5 reduction'!AV170),9))","v":0.99998566700000002},{"$f":"VALUE(FIXED(EXP(AW$4*-1*'PM2.5 reduction'!AW170),9))","v":0.99997988599999998},{"$f":"VALUE(FIXED(EXP(AX$4*-1*'PM2.5 reduction'!AX170),9))","v":0.99999269400000002},{"$f":"VALUE(FIXED(EXP(AY$4*-1*'PM2.5 reduction'!AY170),9))","v":0.99998514400000005},{"$f":"VALUE(FIXED(EXP(AZ$4*-1*'PM2.5 reduction'!AZ170),9))","v":0.99998499299999999},{"$f":"VALUE(FIXED(EXP(BA$4*-1*'PM2.5 reduction'!BA170),9))","v":0.99998007600000005},{"$f":"VALUE(FIXED(EXP(BB$4*-1*'PM2.5 reduction'!BB170),9))","v":0.99998417699999997},{"$f":"VALUE(FIXED(EXP(BC$4*-1*'PM2.5 reduction'!BC170),9))","v":0.99999542900000005}]
[null,"Male 80-84",{"$f":"VALUE(FIXED(EXP(C$4*-1*'PM2.5 reduction'!C171),9))","v":0.99997030399999998},{"$f":"VALUE(FIXED(EXP(D$4*-1*'PM2.5 reduction'!D171),9))","v":0.99998196500000003},{"$f":"VALUE(FIXED(EXP(E$4*-1*'PM2.5 reduction'!E171),9))","v":0.99999358199999999},{"$f":"VALUE(FIXED(EXP(F$4*-1*'PM2.5 reduction'!F171),9))","v":0.99999258599999996},{"$f":"VALUE(FIXED(EXP(G$4*-1*'PM2.5 reduction'!G171),9))","v":0.99999754500000004},{"$f":"VALUE(FIXED(EXP(H$4*-1*'PM2.5 reduction'!H171),9))","v":0.99998944599999995},{"$f":"VALUE(FIXED(EXP(I$4*-1*'PM2.5 reduction'!I171),9))","v":0.99999503300000003},{"$f":"VALUE(FIXED(EXP(J$4*-1*'PM2.5 reduction'!J171),9))","v":0.99999138399999998},{"$f":"VALUE(FIXED(EXP(K$4*-1*'PM2.5 reduction'!K171),9))","v":0.99998861800000005},{"$f":"VALUE(FIXED(EXP(L$4*-1*'PM2.5 reduction'!L171),9))","v":0.99999402199999998},{"$f":"VALUE(FIXED(EXP(M$4*-1*'PM2.5 reduction'!M171),9))","v":0.99999402199999998},{"$f":"VALUE(FIXED(EXP(N$4*-1*'PM2.5 reduction'!N171),9))","v":0.99996976100000001},{"$f":"VALUE(FIXED(EXP(O$4*-1*'PM2.5 reduction'!O171),9))","v":0.99999093400000005},{"$f":"VALUE(FIXED(EXP(P$4*-1*'PM2.5 reduction'!P171),9))","v":0.999974323},{"$f":"VALUE(FIXED(EXP(Q$4*-1*'PM2.5 reduction'!Q171),9))","v":0.999988082},{"$f":"VALUE(FIXED(EXP(R$4*-1*'PM2.5 reduction'!R171),9))","v":0.99997839399999999},{"$f":"VALUE(FIXED(EXP(S$4*-1*'PM2.5 reduction'!S171),9))","v":0.99998039999999999},{"$f":"VALUE(FIXED(EXP(T$4*-1*'PM2.5 reduction'!T171),9))","v":0.99996187599999997},{"$f":"VALUE(FIXED(EXP(U$4*-1*'PM2.5 reduction'!U171),9))","v":0.999995419},{"$f":"VALUE(FIXED(EXP(V$4*-1*'PM2.5 reduction'!V171),9))","v":0.99997930800000001},{"$f":"VALUE(FIXED(EXP(W$4*-1*'PM2.5 reduction'!W171),9))","v":0.99998492999999999},{"$f":"VALUE(FIXED(EXP(X$4*-1*'PM2.5 reduction'!X171),9))","v":0.99998492999999999},{"$f":"VALUE(FIXED(EXP(Y$4*-1*'PM2.5 reduction'!Y171),9))","v":0.999984435},{"$f":"VALUE(FIXED(EXP(Z$4*-1*'PM2.5 reduction'!Z171),9))","v":0.99996463199999996},{"$f":"VALUE(FIXED(EXP(AA$4*-1*'PM2.5 reduction'!AA171),9))","v":0.99997587300000002},{"$f":"VALUE(FIXED(EXP(AB$4*-1*'PM2.5 reduction'!AB171),9))","v":0.99998390699999995},{"$f":"VALUE(FIXED(EXP(AC$4*-1*'PM2.5 reduction'!AC171),9))","v":0.99997346099999995},{"$f":"VALUE(FIXED(EXP(AD$4*-1*'PM2.5 reduction'!AD171),9))","v":0.99999509499999994},{"$f":"VALUE(FIXED(EXP(AE$4*-1*'PM2.5 reduction'!AE171),9))","v":0.99999454200000004},{"$f":"VALUE(FIXED(EXP(AF$4*-1*'PM2.5 reduction'!AF171),9))","v":0.99998461400000005},{"$f":"VALUE(FIXED(EXP(AG$4*-1*'PM2.5 reduction'!AG171),9))","v":0.99999454200000004},{"$f":"VALUE(FIXED(EXP(AH$4*-1*'PM2.5 reduction'!AH171),9))","v":0.999978802},{"$f":"VALUE(FIXED(EXP(AI$4*-1*'PM2.5 reduction'!AI171),9))","v":0.99997406700000002},{"$f":"VALUE(FIXED(EXP(AJ$4*-1*'PM2.5 reduction'!AJ171),9))","v":0.99998405999999995},{"$f":"VALUE(FIXED(EXP(AK$4*-1*'PM2.5 reduction'!AK171),9))","v":0.99999089799999996},{"$f":"VALUE(FIXED(EXP(AL$4*-1*'PM2.5 reduction'!AL171),9))","v":0.99999126900000002},{"$f":"VALUE(FIXED(EXP(AM$4*-1*'PM2.5 reduction'!AM171),9))","v":0.999978331},{"$f":"VALUE(FIXED(EXP(AN$4*-1*'PM2.5 reduction'!AN171),9))","v":0.99999395599999996},{"$f":"VALUE(FIXED(EXP(AO$4*-1*'PM2.5 reduction'!AO171),9))","v":0.99999395599999996},{"$f":"VALUE(FIXED(EXP(AP$4*-1*'PM2.5 reduction'!AP171),9))","v":0.99999063099999996},{"$f":"VALUE(FIXED(EXP(AQ$4*-1*'PM2.5 reduction'!AQ171),9))","v":0.99998094699999995},{"$f":"VALUE(FIXED(EXP(AR$4*-1*'PM2.5 reduction'!AR171),9))","v":0.999981593},{"$f":"VALUE(FIXED(EXP(AS$4*-1*'PM2.5 reduction'!AS171),9))","v":0.99999503300000003},{"$f":"VALUE(FIXED(EXP(AT$4*-1*'PM2.5 reduction'!AT171),9))","v":1},{"$f":"VALUE(FIXED(EXP(AU$4*-1*'PM2.5 reduction'!AU171),9))","v":1},{"$f":"VALUE(FIXED(EXP(AV$4*-1*'PM2.5 reduction'!AV171),9))","v":0.99998608600000005},{"$f":"VALUE(FIXED(EXP(AW$4*-1*'PM2.5 reduction'!AW171),9))","v":0.99997921499999998},{"$f":"VALUE(FIXED(EXP(AX$4*-1*'PM2.5 reduction'!AX171),9))","v":0.99999304300000003},{"$f":"VALUE(FIXED(EXP(AY$4*-1*'PM2.5 reduction'!AY171),9))","v":0.99998453399999998},{"$f":"VALUE(FIXED(EXP(AZ$4*-1*'PM2.5 reduction'!AZ171),9))","v":0.99998416899999998},{"$f":"VALUE(FIXED(EXP(BA$4*-1*'PM2.5 reduction'!BA171),9))","v":0.99998008900000002},{"$f":"VALUE(FIXED(EXP(BB$4*-1*'PM2.5 reduction'!BB171),9))","v":0.99998482},{"$f":"VALUE(FIXED(EXP(BC$4*-1*'PM2.5 reduction'!BC171),9))","v":0.999995419}]
[null,"Male 85-89",{"$f":"VALUE(FIXED(EXP(C$4*-1*'PM2.5 reduction'!C172),9))","v":0.99996671199999998},{"$f":"VALUE(FIXED(EXP(D$4*-1*'PM2.5 reduction'!D172),9))","v":0.99998076999999996},{"$f":"VALUE(FIXED(EXP(E$4*-1*'PM2.5 reduction'!E172),9))","v":0.99999387500000003},{"$f":"VALUE(FIXED(EXP(F$4*-1*'PM2.5 reduction'!F172),9))","v":0.99999191899999995},{"$f":"VALUE(FIXED(EXP(G$4*-1*'PM2.5 reduction'!G172),9))","v":0.99999784700000005},{"$f":"VALUE(FIXED(EXP(H$4*-1*'PM2.5 reduction'!H172),9))","v":0.99998910799999996},{"$f":"VALUE(FIXED(EXP(I$4*-1*'PM2.5 reduction'!I172),9))","v":0.99999524699999998},{"$f":"VALUE(FIXED(EXP(J$4*-1*'PM2.5 reduction'!J172),9))","v":0.99999174300000004},{"$f":"VALUE(FIXED(EXP(K$4*-1*'PM2.5 reduction'!K172),9))","v":0.99998944700000003},{"$f":"VALUE(FIXED(EXP(L$4*-1*'PM2.5 reduction'!L172),9))","v":0.99999426499999999},{"$f":"VALUE(FIXED(EXP(M$4*-1*'PM2.5 reduction'!M172),9))","v":0.99999426499999999},{"$f":"VALUE(FIXED(EXP(N$4*-1*'PM2.5 reduction'!N172),9))","v":0.99996956699999995},{"$f":"VALUE(FIXED(EXP(O$4*-1*'PM2.5 reduction'!O172),9))","v":0.99999045200000003},{"$f":"VALUE(FIXED(EXP(P$4*-1*'PM2.5 reduction'!P172),9))","v":0.99997414399999995},{"$f":"VALUE(FIXED(EXP(Q$4*-1*'PM2.5 reduction'!Q172),9))","v":0.99998777500000002},{"$f":"VALUE(FIXED(EXP(R$4*-1*'PM2.5 reduction'!R172),9))","v":0.99997676700000004},{"$f":"VALUE(FIXED(EXP(S$4*-1*'PM2.5 reduction'!S172),9))","v":0.99998010199999998},{"$f":"VALUE(FIXED(EXP(T$4*-1*'PM2.5 reduction'!T172),9))","v":0.99996032199999996},{"$f":"VALUE(FIXED(EXP(U$4*-1*'PM2.5 reduction'!U172),9))","v":0.999995195},{"$f":"VALUE(FIXED(EXP(V$4*-1*'PM2.5 reduction'!V172),9))","v":0.999979587},{"$f":"VALUE(FIXED(EXP(W$4*-1*'PM2.5 reduction'!W172),9))","v":0.99998478700000004},{"$f":"VALUE(FIXED(EXP(X$4*-1*'PM2.5 reduction'!X172),9))","v":0.99998478700000004},{"$f":"VALUE(FIXED(EXP(Y$4*-1*'PM2.5 reduction'!Y172),9))","v":0.99998383700000004},{"$f":"VALUE(FIXED(EXP(Z$4*-1*'PM2.5 reduction'!Z172),9))","v":0.99996405300000002},{"$f":"VALUE(FIXED(EXP(AA$4*-1*'PM2.5 reduction'!AA172),9))","v":0.99997577400000004},{"$f":"VALUE(FIXED(EXP(AB$4*-1*'PM2.5 reduction'!AB172),9))","v":0.99998301300000003},{"$f":"VALUE(FIXED(EXP(AC$4*-1*'PM2.5 reduction'!AC172),9))","v":0.99997376800000004},{"$f":"VALUE(FIXED(EXP(AD$4*-1*'PM2.5 reduction'!AD172),9))","v":0.99999517299999996},{"$f":"VALUE(FIXED(EXP(AE$4*-1*'PM2.5 reduction'!AE172),9))","v":0.99999472700000003},{"$f":"VALUE(FIXED(EXP(AF$4*-1*'PM2.5 reduction'!AF172),9))","v":0.99998420200000004},{"$f":"VALUE(FIXED(EXP(AG$4*-1*'PM2.5 reduction'!AG172),9))","v":0.99999472700000003},{"$f":"VALUE(FIXED(EXP(AH$4*-1*'PM2.5 reduction'!AH172),9))","v":0.99997819099999996},{"$f":"VALUE(FIXED(EXP(AI$4*-1*'PM2.5 reduction'!AI172),9))","v":0.99997335799999998},{"$f":"VALUE(FIXED(EXP(AJ$4*-1*'PM2.5 reduction'!AJ172),9))","v":0.99998543100000004},{"$f":"VALUE(FIXED(EXP(AK$4*-1*'PM2.5 reduction'!AK172),9))","v":0.99998965399999995},{"$f":"VALUE(FIXED(EXP(AL$4*-1*'PM2.5 reduction'!AL172),9))","v":0.99999132300000004},{"$f":"VALUE(FIXED(EXP(AM$4*-1*'PM2.5 reduction'!AM172),9))","v":0.99997746399999998},{"$f":"VALUE(FIXED(EXP(AN$4*-1*'PM2.5 reduction'!AN172),9))","v":0.99999370200000004},{"$f":"VALUE(FIXED(EXP(AO$4*-1*'PM2.5 reduction'!AO172),9))","v":0.99999370200000004},{"$f":"VALUE(FIXED(EXP(AP$4*-1*'PM2.5 reduction'!AP172),9))","v":0.99999117800000004},{"$f":"VALUE(FIXED(EXP(AQ$4*-1*'PM2.5 reduction'!AQ172),9))","v":0.99998030699999996},{"$f":"VALUE(FIXED(EXP(AR$4*-1*'PM2.5 reduction'!AR172),9))","v":0.99998118800000002},{"$f":"VALUE(FIXED(EXP(AS$4*-1*'PM2.5 reduction'!AS172),9))","v":0.99999524699999998},{"$f":"VALUE(FIXED(EXP(AT$4*-1*'PM2.5 reduction'!AT172),9))","v":1},{"$f":"VALUE(FIXED(EXP(AU$4*-1*'PM2.5 reduction'!AU172),9))","v":1},{"$f":"VALUE(FIXED(EXP(AV$4*-1*'PM2.5 reduction'!AV172),9))","v":0.99998590399999998},{"$f":"VALUE(FIXED(EXP(AW$4*-1*'PM2.5 reduction'!AW172),9))","v":0.99997876200000002},{"$f":"VALUE(FIXED(EXP(AX$4*-1*'PM2.5 reduction'!AX172),9))","v":0.999993405},{"$f":"VALUE(FIXED(EXP(AY$4*-1*'PM2.5 reduction'!AY172),9))","v":0.99998379800000003},{"$f":"VALUE(FIXED(EXP(AZ$4*-1*'PM2.5 reduction'!AZ172),9))","v":0.99998302100000003},{"$f":"VALUE(FIXED(EXP(BA$4*-1*'PM2.5 reduction'!BA172),9))","v":0.99998083599999998},{"$f":"VALUE(FIXED(EXP(BB$4*-1*'PM2.5 reduction'!BB172),9))","v":0.99998332400000001},{"$f":"VALUE(FIXED(EXP(BC$4*-1*'PM2.5 reduction'!BC172),9))","v":0.999995195}]
[null,"Male 90+",{"$f":"VALUE(FIXED(EXP(C$4*-1*'PM2.5 reduction'!C173),9))","v":0.99996992600000001},{"$f":"VALUE(FIXED(EXP(D$4*-1*'PM2.5 reduction'!D173),9))","v":0.99998282800000005},{"$f":"VALUE(FIXED(EXP(E$4*-1*'PM2.5 reduction'!E173),9))","v":0.99999388700000003},{"$f":"VALUE(FIXED(EXP(F$4*-1*'PM2.5 reduction'!F173),9))","v":0.999991976},{"$f":"VALUE(FIXED(EXP(G$4*-1*'PM2.5 reduction'!G173),9))","v":0.99999762400000003},{"$f":"VALUE(FIXED(EXP(H$4*-1*'PM2.5 reduction'!H173),9))","v":0.99998891000000001},{"$f":"VALUE(FIXED(EXP(I$4*-1*'PM2.5 reduction'!I173),9))","v":0.99999525300000003},{"$f":"VALUE(FIXED(EXP(J$4*-1*'PM2.5 reduction'!J173),9))","v":0.99999031999999999},{"$f":"VALUE(FIXED(EXP(K$4*-1*'PM2.5 reduction'!K173),9))","v":0.99998742699999998},{"$f":"VALUE(FIXED(EXP(L$4*-1*'PM2.5 reduction'!L173),9))","v":0.99999376399999995},{"$f":"VALUE(FIXED(EXP(M$4*-1*'PM2.5 reduction'!M173),9))","v":0.99999376399999995},{"$f":"VALUE(FIXED(EXP(N$4*-1*'PM2.5 reduction'!N173),9))","v":0.99997239000000004},{"$f":"VALUE(FIXED(EXP(O$4*-1*'PM2.5 reduction'!O173),9))","v":0.99998994299999999},{"$f":"VALUE(FIXED(EXP(P$4*-1*'PM2.5 reduction'!P173),9))","v":0.99997523399999999},{"$f":"VALUE(FIXED(EXP(Q$4*-1*'PM2.5 reduction'!Q173),9))","v":0.99998878700000005},{"$f":"VALUE(FIXED(EXP(R$4*-1*'PM2.5 reduction'!R173),9))","v":0.99997643199999997},{"$f":"VALUE(FIXED(EXP(S$4*-1*'PM2.5 reduction'!S173),9))","v":0.99997978499999995},{"$f":"VALUE(FIXED(EXP(T$4*-1*'PM2.5 reduction'!T173),9))","v":0.99995900599999998},{"$f":"VALUE(FIXED(EXP(U$4*-1*'PM2.5 reduction'!U173),9))","v":0.99999509900000005},{"$f":"VALUE(FIXED(EXP(V$4*-1*'PM2.5 reduction'!V173),9))","v":0.99998055100000005},{"$f":"VALUE(FIXED(EXP(W$4*-1*'PM2.5 reduction'!W173),9))","v":0.99998557899999996},{"$f":"VALUE(FIXED(EXP(X$4*-1*'PM2.5 reduction'!X173),9))","v":0.99998557899999996},{"$f":"VALUE(FIXED(EXP(Y$4*-1*'PM2.5 reduction'!Y173),9))","v":0.99998418},{"$f":"VALUE(FIXED(EXP(Z$4*-1*'PM2.5 reduction'!Z173),9))","v":0.99996571999999995},{"$f":"VALUE(FIXED(EXP(AA$4*-1*'PM2.5 reduction'!AA173),9))","v":0.99997589799999997},{"$f":"VALUE(FIXED(EXP(AB$4*-1*'PM2.5 reduction'!AB173),9))","v":0.99998470699999997},{"$f":"VALUE(FIXED(EXP(AC$4*-1*'PM2.5 reduction'!AC173),9))","v":0.99997351999999995},{"$f":"VALUE(FIXED(EXP(AD$4*-1*'PM2.5 reduction'!AD173),9))","v":0.99999495400000005},{"$f":"VALUE(FIXED(EXP(AE$4*-1*'PM2.5 reduction'!AE173),9))","v":0.99999422599999999},{"$f":"VALUE(FIXED(EXP(AF$4*-1*'PM2.5 reduction'!AF173),9))","v":0.99998397400000005},{"$f":"VALUE(FIXED(EXP(AG$4*-1*'PM2.5 reduction'!AG173),9))","v":0.99999422599999999},{"$f":"VALUE(FIXED(EXP(AH$4*-1*'PM2.5 reduction'!AH173),9))","v":0.99997909500000004},{"$f":"VALUE(FIXED(EXP(AI$4*-1*'PM2.5 reduction'!AI173),9))","v":0.99997271499999996},{"$f":"VALUE(FIXED(EXP(AJ$4*-1*'PM2.5 reduction'!AJ173),9))","v":0.99998306000000003},{"$f":"VALUE(FIXED(EXP(AK$4*-1*'PM2.5 reduction'!AK173),9))","v":0.99998998800000005},{"$f":"VALUE(FIXED(EXP(AL$4*-1*'PM2.5 reduction'!AL173),9))","v":0.99999082699999997},{"$f":"VALUE(FIXED(EXP(AM$4*-1*'PM2.5 reduction'!AM173),9))","v":0.99997714199999999},{"$f":"VALUE(FIXED(EXP(AN$4*-1*'PM2.5 reduction'!AN173),9))","v":0.99999435299999995},{"$f":"VALUE(FIXED(EXP(AO$4*-1*'PM2.5 reduction'!AO173),9))","v":0.99999435299999995},{"$f":"VALUE(FIXED(EXP(AP$4*-1*'PM2.5 reduction'!AP173),9))","v":0.99999115000000005},{"$f":"VALUE(FIXED(EXP(AQ$4*-1*'PM2.5 reduction'!AQ173),9))","v":0.99997958499999995},{"$f":"VALUE(FIXED(EXP(AR$4*-1*'PM2.5 reduction'!AR173),9))","v":0.99998146899999996},{"$f":"VALUE(FIXED(EXP(AS$4*-1*'PM2.5 reduction'!AS173),9))","v":0.99999525300000003},{"$f":"VALUE(FIXED(EXP(AT$4*-1*'PM2.5 reduction'!AT173),9))","v":1},{"$f":"VALUE(FIXED(EXP(AU$4*-1*'PM2.5 reduction'!AU173),9))","v":1},{"$f":"VALUE(FIXED(EXP(AV$4*-1*'PM2.5 reduction'!AV173),9))","v":0.99998466100000005},{"$f":"VALUE(FIXED(EXP(AW$4*-1*'PM2.5 reduction'!AW173),9))","v":0.99998041400000004},{"$f":"VALUE(FIXED(EXP(AX$4*-1*'PM2.5 reduction'!AX173),9))","v":0.99999426499999999},{"$f":"VALUE(FIXED(EXP(AY$4*-1*'PM2.5 reduction'!AY173),9))","v":0.99998545400000005},{"$f":"VALUE(FIXED(EXP(AZ$4*-1*'PM2.5 reduction'!AZ173),9))","v":0.99998536599999999},{"$f":"VALUE(FIXED(EXP(BA$4*-1*'PM2.5 reduction'!BA173),9))","v":0.99997938600000003},{"$f":"VALUE(FIXED(EXP(BB$4*-1*'PM2.5 reduction'!BB173),9))","v":0.999984074},{"$f":"VALUE(FIXED(EXP(BC$4*-1*'PM2.5 reduction'!BC173),9))","v":0.99999509900000005}]
["SIMD Q4","Female 0-4",{"$f":"VALUE(FIXED(EXP(C$4*-1*'PM2.5 reduction'!C174),9))","v":0.99996648099999996},{"$f":"VALUE(FIXED(EXP(D$4*-1*'PM2.5 reduction'!D174),9))","v":0.99997897700000005},{"$f":"VALUE(FIXED(EXP(E$4*-1*'PM2.5 reduction'!E174),9))","v":0.99999367100000003},{"$f":"VALUE(FIXED(EXP(F$4*-1*'PM2.5 reduction'!F174),9))","v":0.99999290100000005},{"$f":"VALUE(FIXED(EXP(G$4*-1*'PM2.5 reduction'!G174),9))","v":0.99999097100000001},{"$f":"VALUE(FIXED(EXP(H$4*-1*'PM2.5 reduction'!H174),9))","v":0.99998744799999995},{"$f":"VALUE(FIXED(EXP(I$4*-1*'PM2.5 reduction'!I174),9))","v":0.99999591899999996},{"$f":"VALUE(FIXED(EXP(J$4*-1*'PM2.5 reduction'!J174),9))","v":0.99998756899999997},{"$f":"VALUE(FIXED(EXP(K$4*-1*'PM2.5 reduction'!K174),9))","v":0.99998703},{"$f":"VALUE(FIXED(EXP(L$4*-1*'PM2.5 reduction'!L174),9))","v":0.99999357},{"$f":"VALUE(FIXED(EXP(M$4*-1*'PM2.5 reduction'!M174),9))","v":0.99999357},{"$f":"VALUE(FIXED(EXP(N$4*-1*'PM2.5 reduction'!N174),9))","v":0.99997274300000005},{"$f":"VALUE(FIXED(EXP(O$4*-1*'PM2.5 reduction'!O174),9))","v":0.999985754},{"$f":"VALUE(FIXED(EXP(P$4*-1*'PM2.5 reduction'!P174),9))","v":0.99997624299999999},{"$f":"VALUE(FIXED(EXP(Q$4*-1*'PM2.5 reduction'!Q174),9))","v":0.99998631900000001},{"$f":"VALUE(FIXED(EXP(R$4*-1*'PM2.5 reduction'!R174),9))","v":0.99998024600000002},{"$f":"VALUE(FIXED(EXP(S$4*-1*'PM2.5 reduction'!S174),9))","v":0.99997409999999998},{"$f":"VALUE(FIXED(EXP(T$4*-1*'PM2.5 reduction'!T174),9))","v":0.99996010199999996},{"$f":"VALUE(FIXED(EXP(U$4*-1*'PM2.5 reduction'!U174),9))","v":1},{"$f":"VALUE(FIXED(EXP(V$4*-1*'PM2.5 reduction'!V174),9))","v":0.99998108600000002},{"$f":"VALUE(FIXED(EXP(W$4*-1*'PM2.5 reduction'!W174),9))","v":0.99998490100000004},{"$f":"VALUE(FIXED(EXP(X$4*-1*'PM2.5 reduction'!X174),9))","v":0.99998490100000004},{"$f":"VALUE(FIXED(EXP(Y$4*-1*'PM2.5 reduction'!Y174),9))","v":0.99998399400000004},{"$f":"VALUE(FIXED(EXP(Z$4*-1*'PM2.5 reduction'!Z174),9))","v":0.99996287399999995},{"$f":"VALUE(FIXED(EXP(AA$4*-1*'PM2.5 reduction'!AA174),9))","v":0.99997401200000002},{"$f":"VALUE(FIXED(EXP(AB$4*-1*'PM2.5 reduction'!AB174),9))","v":0.999980278},{"$f":"VALUE(FIXED(EXP(AC$4*-1*'PM2.5 reduction'!AC174),9))","v":0.99997071699999995},{"$f":"VALUE(FIXED(EXP(AD$4*-1*'PM2.5 reduction'!AD174),9))","v":0.99999121999999996},{"$f":"VALUE(FIXED(EXP(AE$4*-1*'PM2.5 reduction'!AE174),9))","v":0.99999122900000004},{"$f":"VALUE(FIXED(EXP(AF$4*-1*'PM2.5 reduction'!AF174),9))","v":0.99998484700000001},{"$f":"VALUE(FIXED(EXP(AG$4*-1*'PM2.5 reduction'!AG174),9))","v":0.99999122900000004},{"$f":"VALUE(FIXED(EXP(AH$4*-1*'PM2.5 reduction'!AH174),9))","v":0.99997880100000003},{"$f":"VALUE(FIXED(EXP(AI$4*-1*'PM2.5 reduction'!AI174),9))","v":0.99996868100000003},{"$f":"VALUE(FIXED(EXP(AJ$4*-1*'PM2.5 reduction'!AJ174),9))","v":0.99998404799999996},{"$f":"VALUE(FIXED(EXP(AK$4*-1*'PM2.5 reduction'!AK174),9))","v":0.99999455500000001},{"$f":"VALUE(FIXED(EXP(AL$4*-1*'PM2.5 reduction'!AL174),9))","v":0.999991203},{"$f":"VALUE(FIXED(EXP(AM$4*-1*'PM2.5 reduction'!AM174),9))","v":0.99997704399999998},{"$f":"VALUE(FIXED(EXP(AN$4*-1*'PM2.5 reduction'!AN174),9))","v":0.99999550000000004},{"$f":"VALUE(FIXED(EXP(AO$4*-1*'PM2.5 reduction'!AO174),9))","v":0.99999550000000004},{"$f":"VALUE(FIXED(EXP(AP$4*-1*'PM2.5 reduction'!AP174),9))","v":0.99999229499999998},{"$f":"VALUE(FIXED(EXP(AQ$4*-1*'PM2.5 reduction'!AQ174),9))","v":0.99997926400000003},{"$f":"VALUE(FIXED(EXP(AR$4*-1*'PM2.5 reduction'!AR174),9))","v":0.999978217},{"$f":"VALUE(FIXED(EXP(AS$4*-1*'PM2.5 reduction'!AS174),9))","v":0.99999591899999996},{"$f":"VALUE(FIXED(EXP(AT$4*-1*'PM2.5 reduction'!AT174),9))","v":0.99999641900000003},{"$f":"VALUE(FIXED(EXP(AU$4*-1*'PM2.5 reduction'!AU174),9))","v":0.99999641900000003},{"$f":"VALUE(FIXED(EXP(AV$4*-1*'PM2.5 reduction'!AV174),9))","v":0.99998416099999998},{"$f":"VALUE(FIXED(EXP(AW$4*-1*'PM2.5 reduction'!AW174),9))","v":0.99998002200000002},{"$f":"VALUE(FIXED(EXP(AX$4*-1*'PM2.5 reduction'!AX174),9))","v":0.99998778200000005},{"$f":"VALUE(FIXED(EXP(AY$4*-1*'PM2.5 reduction'!AY174),9))","v":0.99998580800000003},{"$f":"VALUE(FIXED(EXP(AZ$4*-1*'PM2.5 reduction'!AZ174),9))","v":0.99998646300000005},{"$f":"VALUE(FIXED(EXP(BA$4*-1*'PM2.5 reduction'!BA174),9))","v":0.99998353500000003},{"$f":"VALUE(FIXED(EXP(BB$4*-1*'PM2.5 reduction'!BB174),9))","v":0.99998255999999996},{"$f":"VALUE(FIXED(EXP(BC$4*-1*'PM2.5 reduction'!BC174),9))","v":1}]
[null,"Female 5-9",{"$f":"VALUE(FIXED(EXP(C$4*-1*'PM2.5 reduction'!C175),9))","v":0.99996850699999995},{"$f":"VALUE(FIXED(EXP(D$4*-1*'PM2.5 reduction'!D175),9))","v":0.99998285399999998},{"$f":"VALUE(FIXED(EXP(E$4*-1*'PM2.5 reduction'!E175),9))","v":0.99999395300000005},{"$f":"VALUE(FIXED(EXP(F$4*-1*'PM2.5 reduction'!F175),9))","v":0.99999265800000003},{"$f":"VALUE(FIXED(EXP(G$4*-1*'PM2.5 reduction'!G175),9))","v":0.99999086400000003},{"$f":"VALUE(FIXED(EXP(H$4*-1*'PM2.5 reduction'!H175),9))","v":0.99998784100000004},{"$f":"VALUE(FIXED(EXP(I$4*-1*'PM2.5 reduction'!I175),9))","v":0.999995721},{"$f":"VALUE(FIXED(EXP(J$4*-1*'PM2.5 reduction'!J175),9))","v":0.99998748500000001},{"$f":"VALUE(FIXED(EXP(K$4*-1*'PM2.5 reduction'!K175),9))","v":0.99998561600000002},{"$f":"VALUE(FIXED(EXP(L$4*-1*'PM2.5 reduction'!L175),9))","v":0.99999391900000001},{"$f":"VALUE(FIXED(EXP(M$4*-1*'PM2.5 reduction'!M175),9))","v":0.99999391900000001},{"$f":"VALUE(FIXED(EXP(N$4*-1*'PM2.5 reduction'!N175),9))","v":0.99997350900000004},{"$f":"VALUE(FIXED(EXP(O$4*-1*'PM2.5 reduction'!O175),9))","v":0.99998682500000002},{"$f":"VALUE(FIXED(EXP(P$4*-1*'PM2.5 reduction'!P175),9))","v":0.99997493400000004},{"$f":"VALUE(FIXED(EXP(Q$4*-1*'PM2.5 reduction'!Q175),9))","v":0.99998835399999997},{"$f":"VALUE(FIXED(EXP(R$4*-1*'PM2.5 reduction'!R175),9))","v":0.99998061999999999},{"$f":"VALUE(FIXED(EXP(S$4*-1*'PM2.5 reduction'!S175),9))","v":0.99997647199999995},{"$f":"VALUE(FIXED(EXP(T$4*-1*'PM2.5 reduction'!T175),9))","v":0.99996210200000002},{"$f":"VALUE(FIXED(EXP(U$4*-1*'PM2.5 reduction'!U175),9))","v":1},{"$f":"VALUE(FIXED(EXP(V$4*-1*'PM2.5 reduction'!V175),9))","v":0.99998092299999997},{"$f":"VALUE(FIXED(EXP(W$4*-1*'PM2.5 reduction'!W175),9))","v":0.99998473300000001},{"$f":"VALUE(FIXED(EXP(X$4*-1*'PM2.5 reduction'!X175),9))","v":0.99998473300000001},{"$f":"VALUE(FIXED(EXP(Y$4*-1*'PM2.5 reduction'!Y175),9))","v":0.99998363700000004},{"$f":"VALUE(FIXED(EXP(Z$4*-1*'PM2.5 reduction'!Z175),9))","v":0.99996437299999996},{"$f":"VALUE(FIXED(EXP(AA$4*-1*'PM2.5 reduction'!AA175),9))","v":0.99997514899999995},{"$f":"VALUE(FIXED(EXP(AB$4*-1*'PM2.5 reduction'!AB175),9))","v":0.99998403199999997},{"$f":"VALUE(FIXED(EXP(AC$4*-1*'PM2.5 reduction'!AC175),9))","v":0.99997221199999997},{"$f":"VALUE(FIXED(EXP(AD$4*-1*'PM2.5 reduction'!AD175),9))","v":0.99999168100000002},{"$f":"VALUE(FIXED(EXP(AE$4*-1*'PM2.5 reduction'!AE175),9))","v":0.99999173900000005},{"$f":"VALUE(FIXED(EXP(AF$4*-1*'PM2.5 reduction'!AF175),9))","v":0.99998479900000004},{"$f":"VALUE(FIXED(EXP(AG$4*-1*'PM2.5 reduction'!AG175),9))","v":0.99999173900000005},{"$f":"VALUE(FIXED(EXP(AH$4*-1*'PM2.5 reduction'!AH175),9))","v":0.99997876500000005},{"$f":"VALUE(FIXED(EXP(AI$4*-1*'PM2.5 reduction'!AI175),9))","v":0.99997185300000002},{"$f":"VALUE(FIXED(EXP(AJ$4*-1*'PM2.5 reduction'!AJ175),9))","v":0.99998354499999997},{"$f":"VALUE(FIXED(EXP(AK$4*-1*'PM2.5 reduction'!AK175),9))","v":0.99999394500000005},{"$f":"VALUE(FIXED(EXP(AL$4*-1*'PM2.5 reduction'!AL175),9))","v":0.99999128400000004},{"$f":"VALUE(FIXED(EXP(AM$4*-1*'PM2.5 reduction'!AM175),9))","v":0.99997698099999999},{"$f":"VALUE(FIXED(EXP(AN$4*-1*'PM2.5 reduction'!AN175),9))","v":0.99999582899999995},{"$f":"VALUE(FIXED(EXP(AO$4*-1*'PM2.5 reduction'!AO175),9))","v":0.99999582899999995},{"$f":"VALUE(FIXED(EXP(AP$4*-1*'PM2.5 reduction'!AP175),9))","v":0.99999223599999998},{"$f":"VALUE(FIXED(EXP(AQ$4*-1*'PM2.5 reduction'!AQ175),9))","v":0.99997930999999995},{"$f":"VALUE(FIXED(EXP(AR$4*-1*'PM2.5 reduction'!AR175),9))","v":0.99997986100000003},{"$f":"VALUE(FIXED(EXP(AS$4*-1*'PM2.5 reduction'!AS175),9))","v":0.999995721},{"$f":"VALUE(FIXED(EXP(AT$4*-1*'PM2.5 reduction'!AT175),9))","v":0.999996828},{"$f":"VALUE(FIXED(EXP(AU$4*-1*'PM2.5 reduction'!AU175),9))","v":0.999996828},{"$f":"VALUE(FIXED(EXP(AV$4*-1*'PM2.5 reduction'!AV175),9))","v":0.99998456499999999},{"$f":"VALUE(FIXED(EXP(AW$4*-1*'PM2.5 reduction'!AW175),9))","v":0.999980117},{"$f":"VALUE(FIXED(EXP(AX$4*-1*'PM2.5 reduction'!AX175),9))","v":0.99998856800000002},{"$f":"VALUE(FIXED(EXP(AY$4*-1*'PM2.5 reduction'!AY175),9))","v":0.99998592500000005},{"$f":"VALUE(FIXED(EXP(AZ$4*-1*'PM2.5 reduction'!AZ175),9))","v":0.99998686699999995},{"$f":"VALUE(FIXED(EXP(BA$4*-1*'PM2.5 reduction'!BA175),9))","v":0.99998322299999998},{"$f":"VALUE(FIXED(EXP(BB$4*-1*'PM2.5 reduction'!BB175),9))","v":0.99998268700000004},{"$f":"VALUE(FIXED(EXP(BC$4*-1*'PM2.5 reduction'!BC175),9))","v":1}]
[null,"Female 10-15",{"$f":"VALUE(FIXED(EXP(C$4*-1*'PM2.5 reduction'!C176),9))","v":0.99996924099999995},{"$f":"VALUE(FIXED(EXP(D$4*-1*'PM2.5 reduction'!D176),9))","v":0.99998347600000004},{"$f":"VALUE(FIXED(EXP(E$4*-1*'PM2.5 reduction'!E176),9))","v":0.99999370600000004},{"$f":"VALUE(FIXED(EXP(F$4*-1*'PM2.5 reduction'!F176),9))","v":0.99999291199999996},{"$f":"VALUE(FIXED(EXP(G$4*-1*'PM2.5 reduction'!G176),9))","v":0.99999082100000003},{"$f":"VALUE(FIXED(EXP(H$4*-1*'PM2.5 reduction'!H176),9))","v":0.99998772700000005},{"$f":"VALUE(FIXED(EXP(I$4*-1*'PM2.5 reduction'!I176),9))","v":0.99999589700000002},{"$f":"VALUE(FIXED(EXP(J$4*-1*'PM2.5 reduction'!J176),9))","v":0.999988722},{"$f":"VALUE(FIXED(EXP(K$4*-1*'PM2.5 reduction'!K176),9))","v":0.99998431899999995},{"$f":"VALUE(FIXED(EXP(L$4*-1*'PM2.5 reduction'!L176),9))","v":0.99999366099999998},{"$f":"VALUE(FIXED(EXP(M$4*-1*'PM2.5 reduction'!M176),9))","v":0.99999366099999998},{"$f":"VALUE(FIXED(EXP(N$4*-1*'PM2.5 reduction'!N176),9))","v":0.99997341399999995},{"$f":"VALUE(FIXED(EXP(O$4*-1*'PM2.5 reduction'!O176),9))","v":0.99998652499999996},{"$f":"VALUE(FIXED(EXP(P$4*-1*'PM2.5 reduction'!P176),9))","v":0.99997660600000005},{"$f":"VALUE(FIXED(EXP(Q$4*-1*'PM2.5 reduction'!Q176),9))","v":0.99998763099999999},{"$f":"VALUE(FIXED(EXP(R$4*-1*'PM2.5 reduction'!R176),9))","v":0.99997972599999996},{"$f":"VALUE(FIXED(EXP(S$4*-1*'PM2.5 reduction'!S176),9))","v":0.99997766399999999},{"$f":"VALUE(FIXED(EXP(T$4*-1*'PM2.5 reduction'!T176),9))","v":0.99996236299999997},{"$f":"VALUE(FIXED(EXP(U$4*-1*'PM2.5 reduction'!U176),9))","v":1},{"$f":"VALUE(FIXED(EXP(V$4*-1*'PM2.5 reduction'!V176),9))","v":0.99998038700000003},{"$f":"VALUE(FIXED(EXP(W$4*-1*'PM2.5 reduction'!W176),9))","v":0.99998489899999998},{"$f":"VALUE(FIXED(EXP(X$4*-1*'PM2.5 reduction'!X176),9))","v":0.99998489899999998},{"$f":"VALUE(FIXED(EXP(Y$4*-1*'PM2.5 reduction'!Y176),9))","v":0.99998457900000004},{"$f":"VALUE(FIXED(EXP(Z$4*-1*'PM2.5 reduction'!Z176),9))","v":0.99996470699999995},{"$f":"VALUE(FIXED(EXP(AA$4*-1*'PM2.5 reduction'!AA176),9))","v":0.99997596099999997},{"$f":"VALUE(FIXED(EXP(AB$4*-1*'PM2.5 reduction'!AB176),9))","v":0.99998426299999998},{"$f":"VALUE(FIXED(EXP(AC$4*-1*'PM2.5 reduction'!AC176),9))","v":0.99997338199999997},{"$f":"VALUE(FIXED(EXP(AD$4*-1*'PM2.5 reduction'!AD176),9))","v":0.99999081300000003},{"$f":"VALUE(FIXED(EXP(AE$4*-1*'PM2.5 reduction'!AE176),9))","v":0.99999081199999995},{"$f":"VALUE(FIXED(EXP(AF$4*-1*'PM2.5 reduction'!AF176),9))","v":0.99998435200000002},{"$f":"VALUE(FIXED(EXP(AG$4*-1*'PM2.5 reduction'!AG176),9))","v":0.99999081199999995},{"$f":"VALUE(FIXED(EXP(AH$4*-1*'PM2.5 reduction'!AH176),9))","v":0.99997908400000002},{"$f":"VALUE(FIXED(EXP(AI$4*-1*'PM2.5 reduction'!AI176),9))","v":0.99997273900000005},{"$f":"VALUE(FIXED(EXP(AJ$4*-1*'PM2.5 reduction'!AJ176),9))","v":0.99998482300000002},{"$f":"VALUE(FIXED(EXP(AK$4*-1*'PM2.5 reduction'!AK176),9))","v":0.99999151799999997},{"$f":"VALUE(FIXED(EXP(AL$4*-1*'PM2.5 reduction'!AL176),9))","v":0.99999134999999995},{"$f":"VALUE(FIXED(EXP(AM$4*-1*'PM2.5 reduction'!AM176),9))","v":0.99997769000000003},{"$f":"VALUE(FIXED(EXP(AN$4*-1*'PM2.5 reduction'!AN176),9))","v":0.99999573500000005},{"$f":"VALUE(FIXED(EXP(AO$4*-1*'PM2.5 reduction'!AO176),9))","v":0.99999573500000005},{"$f":"VALUE(FIXED(EXP(AP$4*-1*'PM2.5 reduction'!AP176),9))","v":0.99999255099999995},{"$f":"VALUE(FIXED(EXP(AQ$4*-1*'PM2.5 reduction'!AQ176),9))","v":0.999979332},{"$f":"VALUE(FIXED(EXP(AR$4*-1*'PM2.5 reduction'!AR176),9))","v":0.99998060700000002},{"$f":"VALUE(FIXED(EXP(AS$4*-1*'PM2.5 reduction'!AS176),9))","v":0.99999589700000002},{"$f":"VALUE(FIXED(EXP(AT$4*-1*'PM2.5 reduction'!AT176),9))","v":0.99999658199999997},{"$f":"VALUE(FIXED(EXP(AU$4*-1*'PM2.5 reduction'!AU176),9))","v":0.99999658199999997},{"$f":"VALUE(FIXED(EXP(AV$4*-1*'PM2.5 reduction'!AV176),9))","v":0.99998379999999998},{"$f":"VALUE(FIXED(EXP(AW$4*-1*'PM2.5 reduction'!AW176),9))","v":0.99998019699999996},{"$f":"VALUE(FIXED(EXP(AX$4*-1*'PM2.5 reduction'!AX176),9))","v":0.99999038200000001},{"$f":"VALUE(FIXED(EXP(AY$4*-1*'PM2.5 reduction'!AY176),9))","v":0.99998628599999995},{"$f":"VALUE(FIXED(EXP(AZ$4*-1*'PM2.5 reduction'!AZ176),9))","v":0.99998745899999997},{"$f":"VALUE(FIXED(EXP(BA$4*-1*'PM2.5 reduction'!BA176),9))","v":0.99998316399999998},{"$f":"VALUE(FIXED(EXP(BB$4*-1*'PM2.5 reduction'!BB176),9))","v":0.99998282599999999},{"$f":"VALUE(FIXED(EXP(BC$4*-1*'PM2.5 reduction'!BC176),9))","v":1}]
[null,"Female 16-19",{"$f":"VALUE(FIXED(EXP(C$4*-1*'PM2.5 reduction'!C177),9))","v":0.99994898700000001},{"$f":"VALUE(FIXED(EXP(D$4*-1*'PM2.5 reduction'!D177),9))","v":0.99996404400000005},{"$f":"VALUE(FIXED(EXP(E$4*-1*'PM2.5 reduction'!E177),9))","v":0.99999391100000001},{"$f":"VALUE(FIXED(EXP(F$4*-1*'PM2.5 reduction'!F177),9))","v":0.99999273},{"$f":"VALUE(FIXED(EXP(G$4*-1*'PM2.5 reduction'!G177),9))","v":0.99999094700000002},{"$f":"VALUE(FIXED(EXP(H$4*-1*'PM2.5 reduction'!H177),9))","v":0.999988031},{"$f":"VALUE(FIXED(EXP(I$4*-1*'PM2.5 reduction'!I177),9))","v":0.99999573200000003},{"$f":"VALUE(FIXED(EXP(J$4*-1*'PM2.5 reduction'!J177),9))","v":0.99998637400000001},{"$f":"VALUE(FIXED(EXP(K$4*-1*'PM2.5 reduction'!K177),9))","v":0.99998613300000005},{"$f":"VALUE(FIXED(EXP(L$4*-1*'PM2.5 reduction'!L177),9))","v":0.99999396299999999},{"$f":"VALUE(FIXED(EXP(M$4*-1*'PM2.5 reduction'!M177),9))","v":0.99999396299999999},{"$f":"VALUE(FIXED(EXP(N$4*-1*'PM2.5 reduction'!N177),9))","v":0.99997375300000002},{"$f":"VALUE(FIXED(EXP(O$4*-1*'PM2.5 reduction'!O177),9))","v":0.99998668999999996},{"$f":"VALUE(FIXED(EXP(P$4*-1*'PM2.5 reduction'!P177),9))","v":0.99997634199999996},{"$f":"VALUE(FIXED(EXP(Q$4*-1*'PM2.5 reduction'!Q177),9))","v":0.999986865},{"$f":"VALUE(FIXED(EXP(R$4*-1*'PM2.5 reduction'!R177),9))","v":0.99998090799999995},{"$f":"VALUE(FIXED(EXP(S$4*-1*'PM2.5 reduction'!S177),9))","v":0.99997362300000003},{"$f":"VALUE(FIXED(EXP(T$4*-1*'PM2.5 reduction'!T177),9))","v":0.99995701999999997},{"$f":"VALUE(FIXED(EXP(U$4*-1*'PM2.5 reduction'!U177),9))","v":1},{"$f":"VALUE(FIXED(EXP(V$4*-1*'PM2.5 reduction'!V177),9))","v":0.99998045099999999},{"$f":"VALUE(FIXED(EXP(W$4*-1*'PM2.5 reduction'!W177),9))","v":0.99998531199999996},{"$f":"VALUE(FIXED(EXP(X$4*-1*'PM2.5 reduction'!X177),9))","v":0.99998531199999996},{"$f":"VALUE(FIXED(EXP(Y$4*-1*'PM2.5 reduction'!Y177),9))","v":0.999983603},{"$f":"VALUE(FIXED(EXP(Z$4*-1*'PM2.5 reduction'!Z177),9))","v":0.999961243},{"$f":"VALUE(FIXED(EXP(AA$4*-1*'PM2.5 reduction'!AA177),9))","v":0.99997417799999999},{"$f":"VALUE(FIXED(EXP(AB$4*-1*'PM2.5 reduction'!AB177),9))","v":0.99996574800000004},{"$f":"VALUE(FIXED(EXP(AC$4*-1*'PM2.5 reduction'!AC177),9))","v":0.99997074900000005},{"$f":"VALUE(FIXED(EXP(AD$4*-1*'PM2.5 reduction'!AD177),9))","v":0.99999097199999998},{"$f":"VALUE(FIXED(EXP(AE$4*-1*'PM2.5 reduction'!AE177),9))","v":0.999990975},{"$f":"VALUE(FIXED(EXP(AF$4*-1*'PM2.5 reduction'!AF177),9))","v":0.99998622699999995},{"$f":"VALUE(FIXED(EXP(AG$4*-1*'PM2.5 reduction'!AG177),9))","v":0.999990975},{"$f":"VALUE(FIXED(EXP(AH$4*-1*'PM2.5 reduction'!AH177),9))","v":0.99997898399999996},{"$f":"VALUE(FIXED(EXP(AI$4*-1*'PM2.5 reduction'!AI177),9))","v":0.99996767200000003},{"$f":"VALUE(FIXED(EXP(AJ$4*-1*'PM2.5 reduction'!AJ177),9))","v":0.999983493},{"$f":"VALUE(FIXED(EXP(AK$4*-1*'PM2.5 reduction'!AK177),9))","v":0.99999230400000005},{"$f":"VALUE(FIXED(EXP(AL$4*-1*'PM2.5 reduction'!AL177),9))","v":0.99999153799999996},{"$f":"VALUE(FIXED(EXP(AM$4*-1*'PM2.5 reduction'!AM177),9))","v":0.99997762800000001},{"$f":"VALUE(FIXED(EXP(AN$4*-1*'PM2.5 reduction'!AN177),9))","v":0.999995776},{"$f":"VALUE(FIXED(EXP(AO$4*-1*'PM2.5 reduction'!AO177),9))","v":0.999995776},{"$f":"VALUE(FIXED(EXP(AP$4*-1*'PM2.5 reduction'!AP177),9))","v":0.99999226200000002},{"$f":"VALUE(FIXED(EXP(AQ$4*-1*'PM2.5 reduction'!AQ177),9))","v":0.999979069},{"$f":"VALUE(FIXED(EXP(AR$4*-1*'PM2.5 reduction'!AR177),9))","v":0.99997637900000003},{"$f":"VALUE(FIXED(EXP(AS$4*-1*'PM2.5 reduction'!AS177),9))","v":0.99999573200000003},{"$f":"VALUE(FIXED(EXP(AT$4*-1*'PM2.5 reduction'!AT177),9))","v":0.99999669199999996},{"$f":"VALUE(FIXED(EXP(AU$4*-1*'PM2.5 reduction'!AU177),9))","v":0.99999669199999996},{"$f":"VALUE(FIXED(EXP(AV$4*-1*'PM2.5 reduction'!AV177),9))","v":0.99998401699999995},{"$f":"VALUE(FIXED(EXP(AW$4*-1*'PM2.5 reduction'!AW177),9))","v":0.99998023000000003},{"$f":"VALUE(FIXED(EXP(AX$4*-1*'PM2.5 reduction'!AX177),9))","v":0.99998644000000003},{"$f":"VALUE(FIXED(EXP(AY$4*-1*'PM2.5 reduction'!AY177),9))","v":0.99998585399999995},{"$f":"VALUE(FIXED(EXP(AZ$4*-1*'PM2.5 reduction'!AZ177),9))","v":0.99998622199999998},{"$f":"VALUE(FIXED(EXP(BA$4*-1*'PM2.5 reduction'!BA177),9))","v":0.99998320500000004},{"$f":"VALUE(FIXED(EXP(BB$4*-1*'PM2.5 reduction'!BB177),9))","v":0.99998366299999997},{"$f":"VALUE(FIXED(EXP(BC$4*-1*'PM2.5 reduction'!BC177),9))","v":1}]
[null,"Female 20-24",{"$f":"VALUE(FIXED(EXP(C$4*-1*'PM2.5 reduction'!C178),9))","v":0.99995245700000002},{"$f":"VALUE(FIXED(EXP(D$4*-1*'PM2.5 reduction'!D178),9))","v":0.999961659},{"$f":"VALUE(FIXED(EXP(E$4*-1*'PM2.5 reduction'!E178),9))","v":0.99999338199999999},{"$f":"VALUE(FIXED(EXP(F$4*-1*'PM2.5 reduction'!F178),9))","v":0.99999300199999996},{"$f":"VALUE(FIXED(EXP(G$4*-1*'PM2.5 reduction'!G178),9))","v":0.99999090899999998},{"$f":"VALUE(FIXED(EXP(H$4*-1*'PM2.5 reduction'!H178),9))","v":0.99998727600000004},{"$f":"VALUE(FIXED(EXP(I$4*-1*'PM2.5 reduction'!I178),9))","v":0.99999562200000003},{"$f":"VALUE(FIXED(EXP(J$4*-1*'PM2.5 reduction'!J178),9))","v":0.99998159200000003},{"$f":"VALUE(FIXED(EXP(K$4*-1*'PM2.5 reduction'!K178),9))","v":0.99998584800000001},{"$f":"VALUE(FIXED(EXP(L$4*-1*'PM2.5 reduction'!L178),9))","v":0.99999348099999996},{"$f":"VALUE(FIXED(EXP(M$4*-1*'PM2.5 reduction'!M178),9))","v":0.99999348099999996},{"$f":"VALUE(FIXED(EXP(N$4*-1*'PM2.5 reduction'!N178),9))","v":0.99997449900000002},{"$f":"VALUE(FIXED(EXP(O$4*-1*'PM2.5 reduction'!O178),9))","v":0.99998468399999996},{"$f":"VALUE(FIXED(EXP(P$4*-1*'PM2.5 reduction'!P178),9))","v":0.99997636899999998},{"$f":"VALUE(FIXED(EXP(Q$4*-1*'PM2.5 reduction'!Q178),9))","v":0.99998575300000003},{"$f":"VALUE(FIXED(EXP(R$4*-1*'PM2.5 reduction'!R178),9))","v":0.99997986400000005},{"$f":"VALUE(FIXED(EXP(S$4*-1*'PM2.5 reduction'!S178),9))","v":0.99996252900000004},{"$f":"VALUE(FIXED(EXP(T$4*-1*'PM2.5 reduction'!T178),9))","v":0.99994975200000003},{"$f":"VALUE(FIXED(EXP(U$4*-1*'PM2.5 reduction'!U178),9))","v":1},{"$f":"VALUE(FIXED(EXP(V$4*-1*'PM2.5 reduction'!V178),9))","v":0.99997941999999995},{"$f":"VALUE(FIXED(EXP(W$4*-1*'PM2.5 reduction'!W178),9))","v":0.99998514800000005},{"$f":"VALUE(FIXED(EXP(X$4*-1*'PM2.5 reduction'!X178),9))","v":0.99998514800000005},{"$f":"VALUE(FIXED(EXP(Y$4*-1*'PM2.5 reduction'!Y178),9))","v":0.99998076499999999},{"$f":"VALUE(FIXED(EXP(Z$4*-1*'PM2.5 reduction'!Z178),9))","v":0.99995308500000002},{"$f":"VALUE(FIXED(EXP(AA$4*-1*'PM2.5 reduction'!AA178),9))","v":0.99996540199999995},{"$f":"VALUE(FIXED(EXP(AB$4*-1*'PM2.5 reduction'!AB178),9))","v":0.99996262300000005},{"$f":"VALUE(FIXED(EXP(AC$4*-1*'PM2.5 reduction'!AC178),9))","v":0.99996074700000004},{"$f":"VALUE(FIXED(EXP(AD$4*-1*'PM2.5 reduction'!AD178),9))","v":0.99999041399999999},{"$f":"VALUE(FIXED(EXP(AE$4*-1*'PM2.5 reduction'!AE178),9))","v":0.99999037000000002},{"$f":"VALUE(FIXED(EXP(AF$4*-1*'PM2.5 reduction'!AF178),9))","v":0.99998541699999999},{"$f":"VALUE(FIXED(EXP(AG$4*-1*'PM2.5 reduction'!AG178),9))","v":0.99999037000000002},{"$f":"VALUE(FIXED(EXP(AH$4*-1*'PM2.5 reduction'!AH178),9))","v":0.99997863899999995},{"$f":"VALUE(FIXED(EXP(AI$4*-1*'PM2.5 reduction'!AI178),9))","v":0.99995743199999998},{"$f":"VALUE(FIXED(EXP(AJ$4*-1*'PM2.5 reduction'!AJ178),9))","v":0.99998435900000004},{"$f":"VALUE(FIXED(EXP(AK$4*-1*'PM2.5 reduction'!AK178),9))","v":0.99999185700000004},{"$f":"VALUE(FIXED(EXP(AL$4*-1*'PM2.5 reduction'!AL178),9))","v":0.999991238},{"$f":"VALUE(FIXED(EXP(AM$4*-1*'PM2.5 reduction'!AM178),9))","v":0.99997723699999996},{"$f":"VALUE(FIXED(EXP(AN$4*-1*'PM2.5 reduction'!AN178),9))","v":0.99999584600000002},{"$f":"VALUE(FIXED(EXP(AO$4*-1*'PM2.5 reduction'!AO178),9))","v":0.99999584600000002},{"$f":"VALUE(FIXED(EXP(AP$4*-1*'PM2.5 reduction'!AP178),9))","v":0.99999200899999996},{"$f":"VALUE(FIXED(EXP(AQ$4*-1*'PM2.5 reduction'!AQ178),9))","v":0.99997907900000005},{"$f":"VALUE(FIXED(EXP(AR$4*-1*'PM2.5 reduction'!AR178),9))","v":0.99996862399999997},{"$f":"VALUE(FIXED(EXP(AS$4*-1*'PM2.5 reduction'!AS178),9))","v":0.99999562200000003},{"$f":"VALUE(FIXED(EXP(AT$4*-1*'PM2.5 reduction'!AT178),9))","v":0.99999658899999999},{"$f":"VALUE(FIXED(EXP(AU$4*-1*'PM2.5 reduction'!AU178),9))","v":0.99999658899999999},{"$f":"VALUE(FIXED(EXP(AV$4*-1*'PM2.5 reduction'!AV178),9))","v":0.99998438599999995},{"$f":"VALUE(FIXED(EXP(AW$4*-1*'PM2.5 reduction'!AW178),9))","v":0.99997985199999995},{"$f":"VALUE(FIXED(EXP(AX$4*-1*'PM2.5 reduction'!AX178),9))","v":0.99998103199999999},{"$f":"VALUE(FIXED(EXP(AY$4*-1*'PM2.5 reduction'!AY178),9))","v":0.99998283600000004},{"$f":"VALUE(FIXED(EXP(AZ$4*-1*'PM2.5 reduction'!AZ178),9))","v":0.99998195899999998},{"$f":"VALUE(FIXED(EXP(BA$4*-1*'PM2.5 reduction'!BA178),9))","v":0.99998282599999999},{"$f":"VALUE(FIXED(EXP(BB$4*-1*'PM2.5 reduction'!BB178),9))","v":0.99998366800000005},{"$f":"VALUE(FIXED(EXP(BC$4*-1*'PM2.5 reduction'!BC178),9))","v":1}]
[null,"Female 25-29",{"$f":"VALUE(FIXED(EXP(C$4*-1*'PM2.5 reduction'!C179),9))","v":0.999957859},{"$f":"VALUE(FIXED(EXP(D$4*-1*'PM2.5 reduction'!D179),9))","v":0.99996722000000005},{"$f":"VALUE(FIXED(EXP(E$4*-1*'PM2.5 reduction'!E179),9))","v":0.99999327599999999},{"$f":"VALUE(FIXED(EXP(F$4*-1*'PM2.5 reduction'!F179),9))","v":0.99999274000000005},{"$f":"VALUE(FIXED(EXP(G$4*-1*'PM2.5 reduction'!G179),9))","v":0.99999081999999995},{"$f":"VALUE(FIXED(EXP(H$4*-1*'PM2.5 reduction'!H179),9))","v":0.99998689100000004},{"$f":"VALUE(FIXED(EXP(I$4*-1*'PM2.5 reduction'!I179),9))","v":0.99999584699999999},{"$f":"VALUE(FIXED(EXP(J$4*-1*'PM2.5 reduction'!J179),9))","v":0.99998428900000003},{"$f":"VALUE(FIXED(EXP(K$4*-1*'PM2.5 reduction'!K179),9))","v":0.99998388199999999},{"$f":"VALUE(FIXED(EXP(L$4*-1*'PM2.5 reduction'!L179),9))","v":0.99999336699999997},{"$f":"VALUE(FIXED(EXP(M$4*-1*'PM2.5 reduction'!M179),9))","v":0.99999336699999997},{"$f":"VALUE(FIXED(EXP(N$4*-1*'PM2.5 reduction'!N179),9))","v":0.99997371899999998},{"$f":"VALUE(FIXED(EXP(O$4*-1*'PM2.5 reduction'!O179),9))","v":0.99998305300000001},{"$f":"VALUE(FIXED(EXP(P$4*-1*'PM2.5 reduction'!P179),9))","v":0.99997609799999998},{"$f":"VALUE(FIXED(EXP(Q$4*-1*'PM2.5 reduction'!Q179),9))","v":0.99998709699999999},{"$f":"VALUE(FIXED(EXP(R$4*-1*'PM2.5 reduction'!R179),9))","v":0.99997927399999997},{"$f":"VALUE(FIXED(EXP(S$4*-1*'PM2.5 reduction'!S179),9))","v":0.99996248600000004},{"$f":"VALUE(FIXED(EXP(T$4*-1*'PM2.5 reduction'!T179),9))","v":0.99995276300000002},{"$f":"VALUE(FIXED(EXP(U$4*-1*'PM2.5 reduction'!U179),9))","v":1},{"$f":"VALUE(FIXED(EXP(V$4*-1*'PM2.5 reduction'!V179),9))","v":0.999979489},{"$f":"VALUE(FIXED(EXP(W$4*-1*'PM2.5 reduction'!W179),9))","v":0.99998478999999996},{"$f":"VALUE(FIXED(EXP(X$4*-1*'PM2.5 reduction'!X179),9))","v":0.99998478999999996},{"$f":"VALUE(FIXED(EXP(Y$4*-1*'PM2.5 reduction'!Y179),9))","v":0.99998188399999999},{"$f":"VALUE(FIXED(EXP(Z$4*-1*'PM2.5 reduction'!Z179),9))","v":0.99995674999999995},{"$f":"VALUE(FIXED(EXP(AA$4*-1*'PM2.5 reduction'!AA179),9))","v":0.99996786400000004},{"$f":"VALUE(FIXED(EXP(AB$4*-1*'PM2.5 reduction'!AB179),9))","v":0.99996881199999998},{"$f":"VALUE(FIXED(EXP(AC$4*-1*'PM2.5 reduction'!AC179),9))","v":0.99996341099999997},{"$f":"VALUE(FIXED(EXP(AD$4*-1*'PM2.5 reduction'!AD179),9))","v":0.99999107899999995},{"$f":"VALUE(FIXED(EXP(AE$4*-1*'PM2.5 reduction'!AE179),9))","v":0.99999109600000002},{"$f":"VALUE(FIXED(EXP(AF$4*-1*'PM2.5 reduction'!AF179),9))","v":0.99998345700000002},{"$f":"VALUE(FIXED(EXP(AG$4*-1*'PM2.5 reduction'!AG179),9))","v":0.99999109600000002},{"$f":"VALUE(FIXED(EXP(AH$4*-1*'PM2.5 reduction'!AH179),9))","v":0.99997821200000003},{"$f":"VALUE(FIXED(EXP(AI$4*-1*'PM2.5 reduction'!AI179),9))","v":0.99995835700000002},{"$f":"VALUE(FIXED(EXP(AJ$4*-1*'PM2.5 reduction'!AJ179),9))","v":0.99998515399999999},{"$f":"VALUE(FIXED(EXP(AK$4*-1*'PM2.5 reduction'!AK179),9))","v":0.99999381600000004},{"$f":"VALUE(FIXED(EXP(AL$4*-1*'PM2.5 reduction'!AL179),9))","v":0.99999121199999996},{"$f":"VALUE(FIXED(EXP(AM$4*-1*'PM2.5 reduction'!AM179),9))","v":0.99997695399999997},{"$f":"VALUE(FIXED(EXP(AN$4*-1*'PM2.5 reduction'!AN179),9))","v":0.99999581000000004},{"$f":"VALUE(FIXED(EXP(AO$4*-1*'PM2.5 reduction'!AO179),9))","v":0.99999581000000004},{"$f":"VALUE(FIXED(EXP(AP$4*-1*'PM2.5 reduction'!AP179),9))","v":0.999991509},{"$f":"VALUE(FIXED(EXP(AQ$4*-1*'PM2.5 reduction'!AQ179),9))","v":0.99997849500000002},{"$f":"VALUE(FIXED(EXP(AR$4*-1*'PM2.5 reduction'!AR179),9))","v":0.99997002899999998},{"$f":"VALUE(FIXED(EXP(AS$4*-1*'PM2.5 reduction'!AS179),9))","v":0.99999584699999999},{"$f":"VALUE(FIXED(EXP(AT$4*-1*'PM2.5 reduction'!AT179),9))","v":0.99999632299999996},{"$f":"VALUE(FIXED(EXP(AU$4*-1*'PM2.5 reduction'!AU179),9))","v":0.99999632299999996},{"$f":"VALUE(FIXED(EXP(AV$4*-1*'PM2.5 reduction'!AV179),9))","v":0.999984702},{"$f":"VALUE(FIXED(EXP(AW$4*-1*'PM2.5 reduction'!AW179),9))","v":0.99997921300000003},{"$f":"VALUE(FIXED(EXP(AX$4*-1*'PM2.5 reduction'!AX179),9))","v":0.99998437699999998},{"$f":"VALUE(FIXED(EXP(AY$4*-1*'PM2.5 reduction'!AY179),9))","v":0.99998452599999998},{"$f":"VALUE(FIXED(EXP(AZ$4*-1*'PM2.5 reduction'!AZ179),9))","v":0.99998439500000003},{"$f":"VALUE(FIXED(EXP(BA$4*-1*'PM2.5 reduction'!BA179),9))","v":0.99998219799999999},{"$f":"VALUE(FIXED(EXP(BB$4*-1*'PM2.5 reduction'!BB179),9))","v":0.99998279000000001},{"$f":"VALUE(FIXED(EXP(BC$4*-1*'PM2.5 reduction'!BC179),9))","v":1}]
[null,"Female 30-34",{"$f":"VALUE(FIXED(EXP(C$4*-1*'PM2.5 reduction'!C180),9))","v":0.99996167199999997},{"$f":"VALUE(FIXED(EXP(D$4*-1*'PM2.5 reduction'!D180),9))","v":0.99997252000000003},{"$f":"VALUE(FIXED(EXP(E$4*-1*'PM2.5 reduction'!E180),9))","v":0.99999342300000005},{"$f":"VALUE(FIXED(EXP(F$4*-1*'PM2.5 reduction'!F180),9))","v":0.99999277799999997},{"$f":"VALUE(FIXED(EXP(G$4*-1*'PM2.5 reduction'!G180),9))","v":0.99999101800000001},{"$f":"VALUE(FIXED(EXP(H$4*-1*'PM2.5 reduction'!H180),9))","v":0.99998738899999995},{"$f":"VALUE(FIXED(EXP(I$4*-1*'PM2.5 reduction'!I180),9))","v":0.99999504100000003},{"$f":"VALUE(FIXED(EXP(J$4*-1*'PM2.5 reduction'!J180),9))","v":0.99998477200000002},{"$f":"VALUE(FIXED(EXP(K$4*-1*'PM2.5 reduction'!K180),9))","v":0.99998434599999997},{"$f":"VALUE(FIXED(EXP(L$4*-1*'PM2.5 reduction'!L180),9))","v":0.99999344300000004},{"$f":"VALUE(FIXED(EXP(M$4*-1*'PM2.5 reduction'!M180),9))","v":0.99999344300000004},{"$f":"VALUE(FIXED(EXP(N$4*-1*'PM2.5 reduction'!N180),9))","v":0.99997291600000004},{"$f":"VALUE(FIXED(EXP(O$4*-1*'PM2.5 reduction'!O180),9))","v":0.99998576500000003},{"$f":"VALUE(FIXED(EXP(P$4*-1*'PM2.5 reduction'!P180),9))","v":0.99997636400000001},{"$f":"VALUE(FIXED(EXP(Q$4*-1*'PM2.5 reduction'!Q180),9))","v":0.99998609900000002},{"$f":"VALUE(FIXED(EXP(R$4*-1*'PM2.5 reduction'!R180),9))","v":0.99998016899999997},{"$f":"VALUE(FIXED(EXP(S$4*-1*'PM2.5 reduction'!S180),9))","v":0.99996622099999999},{"$f":"VALUE(FIXED(EXP(T$4*-1*'PM2.5 reduction'!T180),9))","v":0.99995494699999998},{"$f":"VALUE(FIXED(EXP(U$4*-1*'PM2.5 reduction'!U180),9))","v":1},{"$f":"VALUE(FIXED(EXP(V$4*-1*'PM2.5 reduction'!V180),9))","v":0.99998006100000003},{"$f":"VALUE(FIXED(EXP(W$4*-1*'PM2.5 reduction'!W180),9))","v":0.99998461900000002},{"$f":"VALUE(FIXED(EXP(X$4*-1*'PM2.5 reduction'!X180),9))","v":0.99998461900000002},{"$f":"VALUE(FIXED(EXP(Y$4*-1*'PM2.5 reduction'!Y180),9))","v":0.999982186},{"$f":"VALUE(FIXED(EXP(Z$4*-1*'PM2.5 reduction'!Z180),9))","v":0.99995959000000001},{"$f":"VALUE(FIXED(EXP(AA$4*-1*'PM2.5 reduction'!AA180),9))","v":0.99997039200000004},{"$f":"VALUE(FIXED(EXP(AB$4*-1*'PM2.5 reduction'!AB180),9))","v":0.99997404999999995},{"$f":"VALUE(FIXED(EXP(AC$4*-1*'PM2.5 reduction'!AC180),9))","v":0.99996608600000003},{"$f":"VALUE(FIXED(EXP(AD$4*-1*'PM2.5 reduction'!AD180),9))","v":0.99999035199999997},{"$f":"VALUE(FIXED(EXP(AE$4*-1*'PM2.5 reduction'!AE180),9))","v":0.99999031299999996},{"$f":"VALUE(FIXED(EXP(AF$4*-1*'PM2.5 reduction'!AF180),9))","v":0.99998401299999995},{"$f":"VALUE(FIXED(EXP(AG$4*-1*'PM2.5 reduction'!AG180),9))","v":0.99999031299999996},{"$f":"VALUE(FIXED(EXP(AH$4*-1*'PM2.5 reduction'!AH180),9))","v":0.999978582},{"$f":"VALUE(FIXED(EXP(AI$4*-1*'PM2.5 reduction'!AI180),9))","v":0.99996137399999996},{"$f":"VALUE(FIXED(EXP(AJ$4*-1*'PM2.5 reduction'!AJ180),9))","v":0.99998413799999997},{"$f":"VALUE(FIXED(EXP(AK$4*-1*'PM2.5 reduction'!AK180),9))","v":0.99999432700000002},{"$f":"VALUE(FIXED(EXP(AL$4*-1*'PM2.5 reduction'!AL180),9))","v":0.99999104000000005},{"$f":"VALUE(FIXED(EXP(AM$4*-1*'PM2.5 reduction'!AM180),9))","v":0.999977169},{"$f":"VALUE(FIXED(EXP(AN$4*-1*'PM2.5 reduction'!AN180),9))","v":0.99999524100000003},{"$f":"VALUE(FIXED(EXP(AO$4*-1*'PM2.5 reduction'!AO180),9))","v":0.99999524100000003},{"$f":"VALUE(FIXED(EXP(AP$4*-1*'PM2.5 reduction'!AP180),9))","v":0.99999155500000003},{"$f":"VALUE(FIXED(EXP(AQ$4*-1*'PM2.5 reduction'!AQ180),9))","v":0.99997857599999995},{"$f":"VALUE(FIXED(EXP(AR$4*-1*'PM2.5 reduction'!AR180),9))","v":0.99997321500000003},{"$f":"VALUE(FIXED(EXP(AS$4*-1*'PM2.5 reduction'!AS180),9))","v":0.99999504100000003},{"$f":"VALUE(FIXED(EXP(AT$4*-1*'PM2.5 reduction'!AT180),9))","v":0.99999682700000003},{"$f":"VALUE(FIXED(EXP(AU$4*-1*'PM2.5 reduction'!AU180),9))","v":0.99999682700000003},{"$f":"VALUE(FIXED(EXP(AV$4*-1*'PM2.5 reduction'!AV180),9))","v":0.999984714},{"$f":"VALUE(FIXED(EXP(AW$4*-1*'PM2.5 reduction'!AW180),9))","v":0.99997972199999996},{"$f":"VALUE(FIXED(EXP(AX$4*-1*'PM2.5 reduction'!AX180),9))","v":0.99998491700000003},{"$f":"VALUE(FIXED(EXP(AY$4*-1*'PM2.5 reduction'!AY180),9))","v":0.99998511800000001},{"$f":"VALUE(FIXED(EXP(AZ$4*-1*'PM2.5 reduction'!AZ180),9))","v":0.99998541699999999},{"$f":"VALUE(FIXED(EXP(BA$4*-1*'PM2.5 reduction'!BA180),9))","v":0.99998236799999995},{"$f":"VALUE(FIXED(EXP(BB$4*-1*'PM2.5 reduction'!BB180),9))","v":0.99998272099999996},{"$f":"VALUE(FIXED(EXP(BC$4*-1*'PM2.5 reduction'!BC180),9))","v":1}]
[null,"Female 35-39",{"$f":"VALUE(FIXED(EXP(C$4*-1*'PM2.5 reduction'!C181),9))","v":0.99996511899999996},{"$f":"VALUE(FIXED(EXP(D$4*-1*'PM2.5 reduction'!D181),9))","v":0.99997686200000002},{"$f":"VALUE(FIXED(EXP(E$4*-1*'PM2.5 reduction'!E181),9))","v":0.99999334900000003},{"$f":"VALUE(FIXED(EXP(F$4*-1*'PM2.5 reduction'!F181),9))","v":0.99999282300000003},{"$f":"VALUE(FIXED(EXP(G$4*-1*'PM2.5 reduction'!G181),9))","v":0.99999090800000001},{"$f":"VALUE(FIXED(EXP(H$4*-1*'PM2.5 reduction'!H181),9))","v":0.99998768100000002},{"$f":"VALUE(FIXED(EXP(I$4*-1*'PM2.5 reduction'!I181),9))","v":0.99999568500000002},{"$f":"VALUE(FIXED(EXP(J$4*-1*'PM2.5 reduction'!J181),9))","v":0.99998668400000001},{"$f":"VALUE(FIXED(EXP(K$4*-1*'PM2.5 reduction'!K181),9))","v":0.99998496100000001},{"$f":"VALUE(FIXED(EXP(L$4*-1*'PM2.5 reduction'!L181),9))","v":0.99999325800000005},{"$f":"VALUE(FIXED(EXP(M$4*-1*'PM2.5 reduction'!M181),9))","v":0.99999325800000005},{"$f":"VALUE(FIXED(EXP(N$4*-1*'PM2.5 reduction'!N181),9))","v":0.99997324499999996},{"$f":"VALUE(FIXED(EXP(O$4*-1*'PM2.5 reduction'!O181),9))","v":0.99998686199999998},{"$f":"VALUE(FIXED(EXP(P$4*-1*'PM2.5 reduction'!P181),9))","v":0.99997641299999995},{"$f":"VALUE(FIXED(EXP(Q$4*-1*'PM2.5 reduction'!Q181),9))","v":0.99998774199999996},{"$f":"VALUE(FIXED(EXP(R$4*-1*'PM2.5 reduction'!R181),9))","v":0.99997943300000003},{"$f":"VALUE(FIXED(EXP(S$4*-1*'PM2.5 reduction'!S181),9))","v":0.99997034699999998},{"$f":"VALUE(FIXED(EXP(T$4*-1*'PM2.5 reduction'!T181),9))","v":0.99995696599999995},{"$f":"VALUE(FIXED(EXP(U$4*-1*'PM2.5 reduction'!U181),9))","v":1},{"$f":"VALUE(FIXED(EXP(V$4*-1*'PM2.5 reduction'!V181),9))","v":0.99998106499999995},{"$f":"VALUE(FIXED(EXP(W$4*-1*'PM2.5 reduction'!W181),9))","v":0.99998484200000004},{"$f":"VALUE(FIXED(EXP(X$4*-1*'PM2.5 reduction'!X181),9))","v":0.99998484200000004},{"$f":"VALUE(FIXED(EXP(Y$4*-1*'PM2.5 reduction'!Y181),9))","v":0.99998351100000005},{"$f":"VALUE(FIXED(EXP(Z$4*-1*'PM2.5 reduction'!Z181),9))","v":0.99996236299999997},{"$f":"VALUE(FIXED(EXP(AA$4*-1*'PM2.5 reduction'!AA181),9))","v":0.99997349099999999},{"$f":"VALUE(FIXED(EXP(AB$4*-1*'PM2.5 reduction'!AB181),9))","v":0.99997820599999998},{"$f":"VALUE(FIXED(EXP(AC$4*-1*'PM2.5 reduction'!AC181),9))","v":0.999969832},{"$f":"VALUE(FIXED(EXP(AD$4*-1*'PM2.5 reduction'!AD181),9))","v":0.99999136300000002},{"$f":"VALUE(FIXED(EXP(AE$4*-1*'PM2.5 reduction'!AE181),9))","v":0.99999139599999998},{"$f":"VALUE(FIXED(EXP(AF$4*-1*'PM2.5 reduction'!AF181),9))","v":0.99998553700000004},{"$f":"VALUE(FIXED(EXP(AG$4*-1*'PM2.5 reduction'!AG181),9))","v":0.99999139599999998},{"$f":"VALUE(FIXED(EXP(AH$4*-1*'PM2.5 reduction'!AH181),9))","v":0.99997871299999996},{"$f":"VALUE(FIXED(EXP(AI$4*-1*'PM2.5 reduction'!AI181),9))","v":0.99996522799999998},{"$f":"VALUE(FIXED(EXP(AJ$4*-1*'PM2.5 reduction'!AJ181),9))","v":0.99998332300000004},{"$f":"VALUE(FIXED(EXP(AK$4*-1*'PM2.5 reduction'!AK181),9))","v":0.99999337600000004},{"$f":"VALUE(FIXED(EXP(AL$4*-1*'PM2.5 reduction'!AL181),9))","v":0.99999119999999997},{"$f":"VALUE(FIXED(EXP(AM$4*-1*'PM2.5 reduction'!AM181),9))","v":0.99997716400000003},{"$f":"VALUE(FIXED(EXP(AN$4*-1*'PM2.5 reduction'!AN181),9))","v":0.99999527700000002},{"$f":"VALUE(FIXED(EXP(AO$4*-1*'PM2.5 reduction'!AO181),9))","v":0.99999527700000002},{"$f":"VALUE(FIXED(EXP(AP$4*-1*'PM2.5 reduction'!AP181),9))","v":0.999992039},{"$f":"VALUE(FIXED(EXP(AQ$4*-1*'PM2.5 reduction'!AQ181),9))","v":0.99997924000000005},{"$f":"VALUE(FIXED(EXP(AR$4*-1*'PM2.5 reduction'!AR181),9))","v":0.99997657200000001},{"$f":"VALUE(FIXED(EXP(AS$4*-1*'PM2.5 reduction'!AS181),9))","v":0.99999568500000002},{"$f":"VALUE(FIXED(EXP(AT$4*-1*'PM2.5 reduction'!AT181),9))","v":0.99999666799999998},{"$f":"VALUE(FIXED(EXP(AU$4*-1*'PM2.5 reduction'!AU181),9))","v":0.99999666799999998},{"$f":"VALUE(FIXED(EXP(AV$4*-1*'PM2.5 reduction'!AV181),9))","v":0.99998421699999995},{"$f":"VALUE(FIXED(EXP(AW$4*-1*'PM2.5 reduction'!AW181),9))","v":0.99997980200000003},{"$f":"VALUE(FIXED(EXP(AX$4*-1*'PM2.5 reduction'!AX181),9))","v":0.99998737500000001},{"$f":"VALUE(FIXED(EXP(AY$4*-1*'PM2.5 reduction'!AY181),9))","v":0.99998552299999999},{"$f":"VALUE(FIXED(EXP(AZ$4*-1*'PM2.5 reduction'!AZ181),9))","v":0.99998601200000004},{"$f":"VALUE(FIXED(EXP(BA$4*-1*'PM2.5 reduction'!BA181),9))","v":0.99998336300000001},{"$f":"VALUE(FIXED(EXP(BB$4*-1*'PM2.5 reduction'!BB181),9))","v":0.999982288},{"$f":"VALUE(FIXED(EXP(BC$4*-1*'PM2.5 reduction'!BC181),9))","v":1}]
[null,"Female 40-44",{"$f":"VALUE(FIXED(EXP(C$4*-1*'PM2.5 reduction'!C182),9))","v":0.99996586099999996},{"$f":"VALUE(FIXED(EXP(D$4*-1*'PM2.5 reduction'!D182),9))","v":0.99998034300000005},{"$f":"VALUE(FIXED(EXP(E$4*-1*'PM2.5 reduction'!E182),9))","v":0.99999382199999998},{"$f":"VALUE(FIXED(EXP(F$4*-1*'PM2.5 reduction'!F182),9))","v":0.999992624},{"$f":"VALUE(FIXED(EXP(G$4*-1*'PM2.5 reduction'!G182),9))","v":0.99999098900000005},{"$f":"VALUE(FIXED(EXP(H$4*-1*'PM2.5 reduction'!H182),9))","v":0.99998736399999999},{"$f":"VALUE(FIXED(EXP(I$4*-1*'PM2.5 reduction'!I182),9))","v":0.99999549300000001},{"$f":"VALUE(FIXED(EXP(J$4*-1*'PM2.5 reduction'!J182),9))","v":0.99998740799999997},{"$f":"VALUE(FIXED(EXP(K$4*-1*'PM2.5 reduction'!K182),9))","v":0.999985389},{"$f":"VALUE(FIXED(EXP(L$4*-1*'PM2.5 reduction'!L182),9))","v":0.99999398900000003},{"$f":"VALUE(FIXED(EXP(M$4*-1*'PM2.5 reduction'!M182),9))","v":0.99999398900000003},{"$f":"VALUE(FIXED(EXP(N$4*-1*'PM2.5 reduction'!N182),9))","v":0.99997428899999996},{"$f":"VALUE(FIXED(EXP(O$4*-1*'PM2.5 reduction'!O182),9))","v":0.99998531599999996},{"$f":"VALUE(FIXED(EXP(P$4*-1*'PM2.5 reduction'!P182),9))","v":0.99997574099999997},{"$f":"VALUE(FIXED(EXP(Q$4*-1*'PM2.5 reduction'!Q182),9))","v":0.99998747799999999},{"$f":"VALUE(FIXED(EXP(R$4*-1*'PM2.5 reduction'!R182),9))","v":0.99997957500000001},{"$f":"VALUE(FIXED(EXP(S$4*-1*'PM2.5 reduction'!S182),9))","v":0.99997349000000002},{"$f":"VALUE(FIXED(EXP(T$4*-1*'PM2.5 reduction'!T182),9))","v":0.99995793200000005},{"$f":"VALUE(FIXED(EXP(U$4*-1*'PM2.5 reduction'!U182),9))","v":1},{"$f":"VALUE(FIXED(EXP(V$4*-1*'PM2.5 reduction'!V182),9))","v":0.99998025999999995},{"$f":"VALUE(FIXED(EXP(W$4*-1*'PM2.5 reduction'!W182),9))","v":0.99998479299999998},{"$f":"VALUE(FIXED(EXP(X$4*-1*'PM2.5 reduction'!X182),9))","v":0.99998479299999998},{"$f":"VALUE(FIXED(EXP(Y$4*-1*'PM2.5 reduction'!Y182),9))","v":0.99998330000000002},{"$f":"VALUE(FIXED(EXP(Z$4*-1*'PM2.5 reduction'!Z182),9))","v":0.99996272799999997},{"$f":"VALUE(FIXED(EXP(AA$4*-1*'PM2.5 reduction'!AA182),9))","v":0.99997457499999998},{"$f":"VALUE(FIXED(EXP(AB$4*-1*'PM2.5 reduction'!AB182),9))","v":0.99998128900000005},{"$f":"VALUE(FIXED(EXP(AC$4*-1*'PM2.5 reduction'!AC182),9))","v":0.99997126000000003},{"$f":"VALUE(FIXED(EXP(AD$4*-1*'PM2.5 reduction'!AD182),9))","v":0.99999112800000001},{"$f":"VALUE(FIXED(EXP(AE$4*-1*'PM2.5 reduction'!AE182),9))","v":0.99999113699999997},{"$f":"VALUE(FIXED(EXP(AF$4*-1*'PM2.5 reduction'!AF182),9))","v":0.99998501900000003},{"$f":"VALUE(FIXED(EXP(AG$4*-1*'PM2.5 reduction'!AG182),9))","v":0.99999113699999997},{"$f":"VALUE(FIXED(EXP(AH$4*-1*'PM2.5 reduction'!AH182),9))","v":0.99997884699999995},{"$f":"VALUE(FIXED(EXP(AI$4*-1*'PM2.5 reduction'!AI182),9))","v":0.99996806599999999},{"$f":"VALUE(FIXED(EXP(AJ$4*-1*'PM2.5 reduction'!AJ182),9))","v":0.99998409899999996},{"$f":"VALUE(FIXED(EXP(AK$4*-1*'PM2.5 reduction'!AK182),9))","v":0.99999279900000004},{"$f":"VALUE(FIXED(EXP(AL$4*-1*'PM2.5 reduction'!AL182),9))","v":0.99999137599999999},{"$f":"VALUE(FIXED(EXP(AM$4*-1*'PM2.5 reduction'!AM182),9))","v":0.99997753099999998},{"$f":"VALUE(FIXED(EXP(AN$4*-1*'PM2.5 reduction'!AN182),9))","v":0.99999579699999996},{"$f":"VALUE(FIXED(EXP(AO$4*-1*'PM2.5 reduction'!AO182),9))","v":0.99999579699999996},{"$f":"VALUE(FIXED(EXP(AP$4*-1*'PM2.5 reduction'!AP182),9))","v":0.99999227800000001},{"$f":"VALUE(FIXED(EXP(AQ$4*-1*'PM2.5 reduction'!AQ182),9))","v":0.99997904000000004},{"$f":"VALUE(FIXED(EXP(AR$4*-1*'PM2.5 reduction'!AR182),9))","v":0.99997839300000002},{"$f":"VALUE(FIXED(EXP(AS$4*-1*'PM2.5 reduction'!AS182),9))","v":0.99999549300000001},{"$f":"VALUE(FIXED(EXP(AT$4*-1*'PM2.5 reduction'!AT182),9))","v":0.99999684700000002},{"$f":"VALUE(FIXED(EXP(AU$4*-1*'PM2.5 reduction'!AU182),9))","v":0.99999684700000002},{"$f":"VALUE(FIXED(EXP(AV$4*-1*'PM2.5 reduction'!AV182),9))","v":0.99998433600000003},{"$f":"VALUE(FIXED(EXP(AW$4*-1*'PM2.5 reduction'!AW182),9))","v":0.99997984699999998},{"$f":"VALUE(FIXED(EXP(AX$4*-1*'PM2.5 reduction'!AX182),9))","v":0.99998830400000005},{"$f":"VALUE(FIXED(EXP(AY$4*-1*'PM2.5 reduction'!AY182),9))","v":0.99998599399999999},{"$f":"VALUE(FIXED(EXP(AZ$4*-1*'PM2.5 reduction'!AZ182),9))","v":0.999986979},{"$f":"VALUE(FIXED(EXP(BA$4*-1*'PM2.5 reduction'!BA182),9))","v":0.99998323200000006},{"$f":"VALUE(FIXED(EXP(BB$4*-1*'PM2.5 reduction'!BB182),9))","v":0.999983187},{"$f":"VALUE(FIXED(EXP(BC$4*-1*'PM2.5 reduction'!BC182),9))","v":1}]
[null,"Female 45-49",{"$f":"VALUE(FIXED(EXP(C$4*-1*'PM2.5 reduction'!C183),9))","v":0.99996718500000004},{"$f":"VALUE(FIXED(EXP(D$4*-1*'PM2.5 reduction'!D183),9))","v":0.99998177600000004},{"$f":"VALUE(FIXED(EXP(E$4*-1*'PM2.5 reduction'!E183),9))","v":0.99999393599999997},{"$f":"VALUE(FIXED(EXP(F$4*-1*'PM2.5 reduction'!F183),9))","v":0.999992824},{"$f":"VALUE(FIXED(EXP(G$4*-1*'PM2.5 reduction'!G183),9))","v":0.99999098099999995},{"$f":"VALUE(FIXED(EXP(H$4*-1*'PM2.5 reduction'!H183),9))","v":0.99998773200000002},{"$f":"VALUE(FIXED(EXP(I$4*-1*'PM2.5 reduction'!I183),9))","v":0.99999566600000001},{"$f":"VALUE(FIXED(EXP(J$4*-1*'PM2.5 reduction'!J183),9))","v":0.99998690199999996},{"$f":"VALUE(FIXED(EXP(K$4*-1*'PM2.5 reduction'!K183),9))","v":0.99998419100000002},{"$f":"VALUE(FIXED(EXP(L$4*-1*'PM2.5 reduction'!L183),9))","v":0.99999382699999995},{"$f":"VALUE(FIXED(EXP(M$4*-1*'PM2.5 reduction'!M183),9))","v":0.99999382699999995},{"$f":"VALUE(FIXED(EXP(N$4*-1*'PM2.5 reduction'!N183),9))","v":0.999973106},{"$f":"VALUE(FIXED(EXP(O$4*-1*'PM2.5 reduction'!O183),9))","v":0.99998590700000001},{"$f":"VALUE(FIXED(EXP(P$4*-1*'PM2.5 reduction'!P183),9))","v":0.99997589799999997},{"$f":"VALUE(FIXED(EXP(Q$4*-1*'PM2.5 reduction'!Q183),9))","v":0.99998703700000002},{"$f":"VALUE(FIXED(EXP(R$4*-1*'PM2.5 reduction'!R183),9))","v":0.999979909},{"$f":"VALUE(FIXED(EXP(S$4*-1*'PM2.5 reduction'!S183),9))","v":0.99997549799999996},{"$f":"VALUE(FIXED(EXP(T$4*-1*'PM2.5 reduction'!T183),9))","v":0.99995943399999998},{"$f":"VALUE(FIXED(EXP(U$4*-1*'PM2.5 reduction'!U183),9))","v":1},{"$f":"VALUE(FIXED(EXP(V$4*-1*'PM2.5 reduction'!V183),9))","v":0.99998052500000001},{"$f":"VALUE(FIXED(EXP(W$4*-1*'PM2.5 reduction'!W183),9))","v":0.99998520099999999},{"$f":"VALUE(FIXED(EXP(X$4*-1*'PM2.5 reduction'!X183),9))","v":0.99998520099999999},{"$f":"VALUE(FIXED(EXP(Y$4*-1*'PM2.5 reduction'!Y183),9))","v":0.99998321300000004},{"$f":"VALUE(FIXED(EXP(Z$4*-1*'PM2.5 reduction'!Z183),9))","v":0.99996451099999994},{"$f":"VALUE(FIXED(EXP(AA$4*-1*'PM2.5 reduction'!AA183),9))","v":0.99997543300000002},{"$f":"VALUE(FIXED(EXP(AB$4*-1*'PM2.5 reduction'!AB183),9))","v":0.99998244000000003},{"$f":"VALUE(FIXED(EXP(AC$4*-1*'PM2.5 reduction'!AC183),9))","v":0.99997305800000003},{"$f":"VALUE(FIXED(EXP(AD$4*-1*'PM2.5 reduction'!AD183),9))","v":0.99999080900000004},{"$f":"VALUE(FIXED(EXP(AE$4*-1*'PM2.5 reduction'!AE183),9))","v":0.99999079300000004},{"$f":"VALUE(FIXED(EXP(AF$4*-1*'PM2.5 reduction'!AF183),9))","v":0.99998673100000002},{"$f":"VALUE(FIXED(EXP(AG$4*-1*'PM2.5 reduction'!AG183),9))","v":0.99999079300000004},{"$f":"VALUE(FIXED(EXP(AH$4*-1*'PM2.5 reduction'!AH183),9))","v":0.99997874399999997},{"$f":"VALUE(FIXED(EXP(AI$4*-1*'PM2.5 reduction'!AI183),9))","v":0.99997001399999996},{"$f":"VALUE(FIXED(EXP(AJ$4*-1*'PM2.5 reduction'!AJ183),9))","v":0.99998282500000002},{"$f":"VALUE(FIXED(EXP(AK$4*-1*'PM2.5 reduction'!AK183),9))","v":0.9999903},{"$f":"VALUE(FIXED(EXP(AL$4*-1*'PM2.5 reduction'!AL183),9))","v":0.99999136},{"$f":"VALUE(FIXED(EXP(AM$4*-1*'PM2.5 reduction'!AM183),9))","v":0.99997754699999997},{"$f":"VALUE(FIXED(EXP(AN$4*-1*'PM2.5 reduction'!AN183),9))","v":0.99999560899999995},{"$f":"VALUE(FIXED(EXP(AO$4*-1*'PM2.5 reduction'!AO183),9))","v":0.99999560899999995},{"$f":"VALUE(FIXED(EXP(AP$4*-1*'PM2.5 reduction'!AP183),9))","v":0.99999236599999997},{"$f":"VALUE(FIXED(EXP(AQ$4*-1*'PM2.5 reduction'!AQ183),9))","v":0.99997931399999995},{"$f":"VALUE(FIXED(EXP(AR$4*-1*'PM2.5 reduction'!AR183),9))","v":0.99997947099999995},{"$f":"VALUE(FIXED(EXP(AS$4*-1*'PM2.5 reduction'!AS183),9))","v":0.99999566600000001},{"$f":"VALUE(FIXED(EXP(AT$4*-1*'PM2.5 reduction'!AT183),9))","v":0.99999642899999996},{"$f":"VALUE(FIXED(EXP(AU$4*-1*'PM2.5 reduction'!AU183),9))","v":0.99999642899999996},{"$f":"VALUE(FIXED(EXP(AV$4*-1*'PM2.5 reduction'!AV183),9))","v":0.99998450500000002},{"$f":"VALUE(FIXED(EXP(AW$4*-1*'PM2.5 reduction'!AW183),9))","v":0.99997977699999996},{"$f":"VALUE(FIXED(EXP(AX$4*-1*'PM2.5 reduction'!AX183),9))","v":0.99998857600000002},{"$f":"VALUE(FIXED(EXP(AY$4*-1*'PM2.5 reduction'!AY183),9))","v":0.99998610700000001},{"$f":"VALUE(FIXED(EXP(AZ$4*-1*'PM2.5 reduction'!AZ183),9))","v":0.99998675999999997},{"$f":"VALUE(FIXED(EXP(BA$4*-1*'PM2.5 reduction'!BA183),9))","v":0.99998274600000003},{"$f":"VALUE(FIXED(EXP(BB$4*-1*'PM2.5 reduction'!BB183),9))","v":0.99998303499999996},{"$f":"VALUE(FIXED(EXP(BC$4*-1*'PM2.5 reduction'!BC183),9))","v":1}]
[null,"Female 50-54",{"$f":"VALUE(FIXED(EXP(C$4*-1*'PM2.5 reduction'!C184),9))","v":0.99996936700000005},{"$f":"VALUE(FIXED(EXP(D$4*-1*'PM2.5 reduction'!D184),9))","v":0.99998218900000002},{"$f":"VALUE(FIXED(EXP(E$4*-1*'PM2.5 reduction'!E184),9))","v":0.999993464},{"$f":"VALUE(FIXED(EXP(F$4*-1*'PM2.5 reduction'!F184),9))","v":0.99999289599999996},{"$f":"VALUE(FIXED(EXP(G$4*-1*'PM2.5 reduction'!G184),9))","v":0.99999097100000001},{"$f":"VALUE(FIXED(EXP(H$4*-1*'PM2.5 reduction'!H184),9))","v":0.99998781999999997},{"$f":"VALUE(FIXED(EXP(I$4*-1*'PM2.5 reduction'!I184),9))","v":0.999995576},{"$f":"VALUE(FIXED(EXP(J$4*-1*'PM2.5 reduction'!J184),9))","v":0.99998662999999999},{"$f":"VALUE(FIXED(EXP(K$4*-1*'PM2.5 reduction'!K184),9))","v":0.99998351900000004},{"$f":"VALUE(FIXED(EXP(L$4*-1*'PM2.5 reduction'!L184),9))","v":0.99999370600000004},{"$f":"VALUE(FIXED(EXP(M$4*-1*'PM2.5 reduction'!M184),9))","v":0.99999370600000004},{"$f":"VALUE(FIXED(EXP(N$4*-1*'PM2.5 reduction'!N184),9))","v":0.99997365000000005},{"$f":"VALUE(FIXED(EXP(O$4*-1*'PM2.5 reduction'!O184),9))","v":0.99998614799999996},{"$f":"VALUE(FIXED(EXP(P$4*-1*'PM2.5 reduction'!P184),9))","v":0.99997638700000002},{"$f":"VALUE(FIXED(EXP(Q$4*-1*'PM2.5 reduction'!Q184),9))","v":0.999986021},{"$f":"VALUE(FIXED(EXP(R$4*-1*'PM2.5 reduction'!R184),9))","v":0.999979799},{"$f":"VALUE(FIXED(EXP(S$4*-1*'PM2.5 reduction'!S184),9))","v":0.99997566299999996},{"$f":"VALUE(FIXED(EXP(T$4*-1*'PM2.5 reduction'!T184),9))","v":0.999961455},{"$f":"VALUE(FIXED(EXP(U$4*-1*'PM2.5 reduction'!U184),9))","v":1},{"$f":"VALUE(FIXED(EXP(V$4*-1*'PM2.5 reduction'!V184),9))","v":0.99998022799999997},{"$f":"VALUE(FIXED(EXP(W$4*-1*'PM2.5 reduction'!W184),9))","v":0.99998542899999998},{"$f":"VALUE(FIXED(EXP(X$4*-1*'PM2.5 reduction'!X184),9))","v":0.99998542899999998},{"$f":"VALUE(FIXED(EXP(Y$4*-1*'PM2.5 reduction'!Y184),9))","v":0.99998306999999997},{"$f":"VALUE(FIXED(EXP(Z$4*-1*'PM2.5 reduction'!Z184),9))","v":0.99996486299999998},{"$f":"VALUE(FIXED(EXP(AA$4*-1*'PM2.5 reduction'!AA184),9))","v":0.99997548700000005},{"$f":"VALUE(FIXED(EXP(AB$4*-1*'PM2.5 reduction'!AB184),9))","v":0.99998296099999995},{"$f":"VALUE(FIXED(EXP(AC$4*-1*'PM2.5 reduction'!AC184),9))","v":0.99997331300000003},{"$f":"VALUE(FIXED(EXP(AD$4*-1*'PM2.5 reduction'!AD184),9))","v":0.99999050300000003},{"$f":"VALUE(FIXED(EXP(AE$4*-1*'PM2.5 reduction'!AE184),9))","v":0.99999046700000005},{"$f":"VALUE(FIXED(EXP(AF$4*-1*'PM2.5 reduction'!AF184),9))","v":0.99998542099999999},{"$f":"VALUE(FIXED(EXP(AG$4*-1*'PM2.5 reduction'!AG184),9))","v":0.99999046700000005},{"$f":"VALUE(FIXED(EXP(AH$4*-1*'PM2.5 reduction'!AH184),9))","v":0.99997877800000001},{"$f":"VALUE(FIXED(EXP(AI$4*-1*'PM2.5 reduction'!AI184),9))","v":0.99997046599999995},{"$f":"VALUE(FIXED(EXP(AJ$4*-1*'PM2.5 reduction'!AJ184),9))","v":0.99998342900000003},{"$f":"VALUE(FIXED(EXP(AK$4*-1*'PM2.5 reduction'!AK184),9))","v":0.99999203299999995},{"$f":"VALUE(FIXED(EXP(AL$4*-1*'PM2.5 reduction'!AL184),9))","v":0.99999114},{"$f":"VALUE(FIXED(EXP(AM$4*-1*'PM2.5 reduction'!AM184),9))","v":0.99997696000000003},{"$f":"VALUE(FIXED(EXP(AN$4*-1*'PM2.5 reduction'!AN184),9))","v":0.99999570400000004},{"$f":"VALUE(FIXED(EXP(AO$4*-1*'PM2.5 reduction'!AO184),9))","v":0.99999570400000004},{"$f":"VALUE(FIXED(EXP(AP$4*-1*'PM2.5 reduction'!AP184),9))","v":0.99999293899999997},{"$f":"VALUE(FIXED(EXP(AQ$4*-1*'PM2.5 reduction'!AQ184),9))","v":0.99997927499999995},{"$f":"VALUE(FIXED(EXP(AR$4*-1*'PM2.5 reduction'!AR184),9))","v":0.99997962200000001},{"$f":"VALUE(FIXED(EXP(AS$4*-1*'PM2.5 reduction'!AS184),9))","v":0.999995576},{"$f":"VALUE(FIXED(EXP(AT$4*-1*'PM2.5 reduction'!AT184),9))","v":0.99999623800000004},{"$f":"VALUE(FIXED(EXP(AU$4*-1*'PM2.5 reduction'!AU184),9))","v":0.99999623800000004},{"$f":"VALUE(FIXED(EXP(AV$4*-1*'PM2.5 reduction'!AV184),9))","v":0.99998453300000001},{"$f":"VALUE(FIXED(EXP(AW$4*-1*'PM2.5 reduction'!AW184),9))","v":0.99998034099999999},{"$f":"VALUE(FIXED(EXP(AX$4*-1*'PM2.5 reduction'!AX184),9))","v":0.99998810699999996},{"$f":"VALUE(FIXED(EXP(AY$4*-1*'PM2.5 reduction'!AY184),9))","v":0.99998624899999999},{"$f":"VALUE(FIXED(EXP(AZ$4*-1*'PM2.5 reduction'!AZ184),9))","v":0.99998675400000003},{"$f":"VALUE(FIXED(EXP(BA$4*-1*'PM2.5 reduction'!BA184),9))","v":0.999983328},{"$f":"VALUE(FIXED(EXP(BB$4*-1*'PM2.5 reduction'!BB184),9))","v":0.99998357199999999},{"$f":"VALUE(FIXED(EXP(BC$4*-1*'PM2.5 reduction'!BC184),9))","v":1}]
[null,"Female 55-59",{"$f":"VALUE(FIXED(EXP(C$4*-1*'PM2.5 reduction'!C185),9))","v":0.99996904900000005},{"$f":"VALUE(FIXED(EXP(D$4*-1*'PM2.5 reduction'!D185),9))","v":0.999982225},{"$f":"VALUE(FIXED(EXP(E$4*-1*'PM2.5 reduction'!E185),9))","v":0.999993719},{"$f":"VALUE(FIXED(EXP(F$4*-1*'PM2.5 reduction'!F185),9))","v":0.99999276100000001},{"$f":"VALUE(FIXED(EXP(G$4*-1*'PM2.5 reduction'!G185),9))","v":0.99999094700000002},{"$f":"VALUE(FIXED(EXP(H$4*-1*'PM2.5 reduction'!H185),9))","v":0.99998701099999998},{"$f":"VALUE(FIXED(EXP(I$4*-1*'PM2.5 reduction'!I185),9))","v":0.99999536899999997},{"$f":"VALUE(FIXED(EXP(J$4*-1*'PM2.5 reduction'!J185),9))","v":0.99998631199999999},{"$f":"VALUE(FIXED(EXP(K$4*-1*'PM2.5 reduction'!K185),9))","v":0.99998446500000004},{"$f":"VALUE(FIXED(EXP(L$4*-1*'PM2.5 reduction'!L185),9))","v":0.99999369800000004},{"$f":"VALUE(FIXED(EXP(M$4*-1*'PM2.5 reduction'!M185),9))","v":0.99999369800000004},{"$f":"VALUE(FIXED(EXP(N$4*-1*'PM2.5 reduction'!N185),9))","v":0.99997243000000002},{"$f":"VALUE(FIXED(EXP(O$4*-1*'PM2.5 reduction'!O185),9))","v":0.99998463999999998},{"$f":"VALUE(FIXED(EXP(P$4*-1*'PM2.5 reduction'!P185),9))","v":0.99997600900000005},{"$f":"VALUE(FIXED(EXP(Q$4*-1*'PM2.5 reduction'!Q185),9))","v":0.99998614100000005},{"$f":"VALUE(FIXED(EXP(R$4*-1*'PM2.5 reduction'!R185),9))","v":0.99997935100000002},{"$f":"VALUE(FIXED(EXP(S$4*-1*'PM2.5 reduction'!S185),9))","v":0.99997598300000001},{"$f":"VALUE(FIXED(EXP(T$4*-1*'PM2.5 reduction'!T185),9))","v":0.999961726},{"$f":"VALUE(FIXED(EXP(U$4*-1*'PM2.5 reduction'!U185),9))","v":1},{"$f":"VALUE(FIXED(EXP(V$4*-1*'PM2.5 reduction'!V185),9))","v":0.99998068699999998},{"$f":"VALUE(FIXED(EXP(W$4*-1*'PM2.5 reduction'!W185),9))","v":0.99998516999999998},{"$f":"VALUE(FIXED(EXP(X$4*-1*'PM2.5 reduction'!X185),9))","v":0.99998516999999998},{"$f":"VALUE(FIXED(EXP(Y$4*-1*'PM2.5 reduction'!Y185),9))","v":0.99998317000000003},{"$f":"VALUE(FIXED(EXP(Z$4*-1*'PM2.5 reduction'!Z185),9))","v":0.99996428599999998},{"$f":"VALUE(FIXED(EXP(AA$4*-1*'PM2.5 reduction'!AA185),9))","v":0.99997530099999998},{"$f":"VALUE(FIXED(EXP(AB$4*-1*'PM2.5 reduction'!AB185),9))","v":0.99998297899999999},{"$f":"VALUE(FIXED(EXP(AC$4*-1*'PM2.5 reduction'!AC185),9))","v":0.99997319200000001},{"$f":"VALUE(FIXED(EXP(AD$4*-1*'PM2.5 reduction'!AD185),9))","v":0.99999062800000005},{"$f":"VALUE(FIXED(EXP(AE$4*-1*'PM2.5 reduction'!AE185),9))","v":0.99999059999999995},{"$f":"VALUE(FIXED(EXP(AF$4*-1*'PM2.5 reduction'!AF185),9))","v":0.999986084},{"$f":"VALUE(FIXED(EXP(AG$4*-1*'PM2.5 reduction'!AG185),9))","v":0.99999059999999995},{"$f":"VALUE(FIXED(EXP(AH$4*-1*'PM2.5 reduction'!AH185),9))","v":0.99997874600000003},{"$f":"VALUE(FIXED(EXP(AI$4*-1*'PM2.5 reduction'!AI185),9))","v":0.99997069000000005},{"$f":"VALUE(FIXED(EXP(AJ$4*-1*'PM2.5 reduction'!AJ185),9))","v":0.99998385499999998},{"$f":"VALUE(FIXED(EXP(AK$4*-1*'PM2.5 reduction'!AK185),9))","v":0.99999183800000002},{"$f":"VALUE(FIXED(EXP(AL$4*-1*'PM2.5 reduction'!AL185),9))","v":0.99999118799999998},{"$f":"VALUE(FIXED(EXP(AM$4*-1*'PM2.5 reduction'!AM185),9))","v":0.99997713300000002},{"$f":"VALUE(FIXED(EXP(AN$4*-1*'PM2.5 reduction'!AN185),9))","v":0.999995407},{"$f":"VALUE(FIXED(EXP(AO$4*-1*'PM2.5 reduction'!AO185),9))","v":0.999995407},{"$f":"VALUE(FIXED(EXP(AP$4*-1*'PM2.5 reduction'!AP185),9))","v":0.99999300099999999},{"$f":"VALUE(FIXED(EXP(AQ$4*-1*'PM2.5 reduction'!AQ185),9))","v":0.99997925099999996},{"$f":"VALUE(FIXED(EXP(AR$4*-1*'PM2.5 reduction'!AR185),9))","v":0.99997950700000005},{"$f":"VALUE(FIXED(EXP(AS$4*-1*'PM2.5 reduction'!AS185),9))","v":0.99999536899999997},{"$f":"VALUE(FIXED(EXP(AT$4*-1*'PM2.5 reduction'!AT185),9))","v":0.99999653399999999},{"$f":"VALUE(FIXED(EXP(AU$4*-1*'PM2.5 reduction'!AU185),9))","v":0.99999653399999999},{"$f":"VALUE(FIXED(EXP(AV$4*-1*'PM2.5 reduction'!AV185),9))","v":0.99998435399999996},{"$f":"VALUE(FIXED(EXP(AW$4*-1*'PM2.5 reduction'!AW185),9))","v":0.99997994599999995},{"$f":"VALUE(FIXED(EXP(AX$4*-1*'PM2.5 reduction'!AX185),9))","v":0.999987352},{"$f":"VALUE(FIXED(EXP(AY$4*-1*'PM2.5 reduction'!AY185),9))","v":0.99998541399999996},{"$f":"VALUE(FIXED(EXP(AZ$4*-1*'PM2.5 reduction'!AZ185),9))","v":0.99998556800000005},{"$f":"VALUE(FIXED(EXP(BA$4*-1*'PM2.5 reduction'!BA185),9))","v":0.99998273000000004},{"$f":"VALUE(FIXED(EXP(BB$4*-1*'PM2.5 reduction'!BB185),9))","v":0.99998383400000002},{"$f":"VALUE(FIXED(EXP(BC$4*-1*'PM2.5 reduction'!BC185),9))","v":1}]
[null,"Female 60-64",{"$f":"VALUE(FIXED(EXP(C$4*-1*'PM2.5 reduction'!C186),9))","v":0.999969844},{"$f":"VALUE(FIXED(EXP(D$4*-1*'PM2.5 reduction'!D186),9))","v":0.99998272099999996},{"$f":"VALUE(FIXED(EXP(E$4*-1*'PM2.5 reduction'!E186),9))","v":0.99999364300000004},{"$f":"VALUE(FIXED(EXP(F$4*-1*'PM2.5 reduction'!F186),9))","v":0.99999269700000004},{"$f":"VALUE(FIXED(EXP(G$4*-1*'PM2.5 reduction'!G186),9))","v":0.99999092099999998},{"$f":"VALUE(FIXED(EXP(H$4*-1*'PM2.5 reduction'!H186),9))","v":0.99998712199999995},{"$f":"VALUE(FIXED(EXP(I$4*-1*'PM2.5 reduction'!I186),9))","v":0.99999534400000001},{"$f":"VALUE(FIXED(EXP(J$4*-1*'PM2.5 reduction'!J186),9))","v":0.99998655400000003},{"$f":"VALUE(FIXED(EXP(K$4*-1*'PM2.5 reduction'!K186),9))","v":0.99998338799999997},{"$f":"VALUE(FIXED(EXP(L$4*-1*'PM2.5 reduction'!L186),9))","v":0.99999361799999997},{"$f":"VALUE(FIXED(EXP(M$4*-1*'PM2.5 reduction'!M186),9))","v":0.99999361799999997},{"$f":"VALUE(FIXED(EXP(N$4*-1*'PM2.5 reduction'!N186),9))","v":0.999972953},{"$f":"VALUE(FIXED(EXP(O$4*-1*'PM2.5 reduction'!O186),9))","v":0.99998470299999997},{"$f":"VALUE(FIXED(EXP(P$4*-1*'PM2.5 reduction'!P186),9))","v":0.99997687099999999},{"$f":"VALUE(FIXED(EXP(Q$4*-1*'PM2.5 reduction'!Q186),9))","v":0.99998776499999997},{"$f":"VALUE(FIXED(EXP(R$4*-1*'PM2.5 reduction'!R186),9))","v":0.99997880500000003},{"$f":"VALUE(FIXED(EXP(S$4*-1*'PM2.5 reduction'!S186),9))","v":0.99997637800000005},{"$f":"VALUE(FIXED(EXP(T$4*-1*'PM2.5 reduction'!T186),9))","v":0.99996146600000002},{"$f":"VALUE(FIXED(EXP(U$4*-1*'PM2.5 reduction'!U186),9))","v":1},{"$f":"VALUE(FIXED(EXP(V$4*-1*'PM2.5 reduction'!V186),9))","v":0.99998076599999997},{"$f":"VALUE(FIXED(EXP(W$4*-1*'PM2.5 reduction'!W186),9))","v":0.99998525999999999},{"$f":"VALUE(FIXED(EXP(X$4*-1*'PM2.5 reduction'!X186),9))","v":0.99998525999999999},{"$f":"VALUE(FIXED(EXP(Y$4*-1*'PM2.5 reduction'!Y186),9))","v":0.99998335400000005},{"$f":"VALUE(FIXED(EXP(Z$4*-1*'PM2.5 reduction'!Z186),9))","v":0.999964725},{"$f":"VALUE(FIXED(EXP(AA$4*-1*'PM2.5 reduction'!AA186),9))","v":0.99997574700000003},{"$f":"VALUE(FIXED(EXP(AB$4*-1*'PM2.5 reduction'!AB186),9))","v":0.999983395},{"$f":"VALUE(FIXED(EXP(AC$4*-1*'PM2.5 reduction'!AC186),9))","v":0.99997358800000002},{"$f":"VALUE(FIXED(EXP(AD$4*-1*'PM2.5 reduction'!AD186),9))","v":0.99999062599999999},{"$f":"VALUE(FIXED(EXP(AE$4*-1*'PM2.5 reduction'!AE186),9))","v":0.99999059099999998},{"$f":"VALUE(FIXED(EXP(AF$4*-1*'PM2.5 reduction'!AF186),9))","v":0.99998544499999997},{"$f":"VALUE(FIXED(EXP(AG$4*-1*'PM2.5 reduction'!AG186),9))","v":0.99999059099999998},{"$f":"VALUE(FIXED(EXP(AH$4*-1*'PM2.5 reduction'!AH186),9))","v":0.99997918299999999},{"$f":"VALUE(FIXED(EXP(AI$4*-1*'PM2.5 reduction'!AI186),9))","v":0.99997063799999997},{"$f":"VALUE(FIXED(EXP(AJ$4*-1*'PM2.5 reduction'!AJ186),9))","v":0.99998422899999995},{"$f":"VALUE(FIXED(EXP(AK$4*-1*'PM2.5 reduction'!AK186),9))","v":0.99999160499999995},{"$f":"VALUE(FIXED(EXP(AL$4*-1*'PM2.5 reduction'!AL186),9))","v":0.999991195},{"$f":"VALUE(FIXED(EXP(AM$4*-1*'PM2.5 reduction'!AM186),9))","v":0.99997740300000004},{"$f":"VALUE(FIXED(EXP(AN$4*-1*'PM2.5 reduction'!AN186),9))","v":0.99999589700000002},{"$f":"VALUE(FIXED(EXP(AO$4*-1*'PM2.5 reduction'!AO186),9))","v":0.99999589700000002},{"$f":"VALUE(FIXED(EXP(AP$4*-1*'PM2.5 reduction'!AP186),9))","v":0.99999357099999997},{"$f":"VALUE(FIXED(EXP(AQ$4*-1*'PM2.5 reduction'!AQ186),9))","v":0.99997918399999997},{"$f":"VALUE(FIXED(EXP(AR$4*-1*'PM2.5 reduction'!AR186),9))","v":0.99998021000000004},{"$f":"VALUE(FIXED(EXP(AS$4*-1*'PM2.5 reduction'!AS186),9))","v":0.99999534400000001},{"$f":"VALUE(FIXED(EXP(AT$4*-1*'PM2.5 reduction'!AT186),9))","v":0.99999658700000005},{"$f":"VALUE(FIXED(EXP(AU$4*-1*'PM2.5 reduction'!AU186),9))","v":0.99999658700000005},{"$f":"VALUE(FIXED(EXP(AV$4*-1*'PM2.5 reduction'!AV186),9))","v":0.99998429200000005},{"$f":"VALUE(FIXED(EXP(AW$4*-1*'PM2.5 reduction'!AW186),9))","v":0.99998048399999995},{"$f":"VALUE(FIXED(EXP(AX$4*-1*'PM2.5 reduction'!AX186),9))","v":0.99998812199999998},{"$f":"VALUE(FIXED(EXP(AY$4*-1*'PM2.5 reduction'!AY186),9))","v":0.999986453},{"$f":"VALUE(FIXED(EXP(AZ$4*-1*'PM2.5 reduction'!AZ186),9))","v":0.99998717400000003},{"$f":"VALUE(FIXED(EXP(BA$4*-1*'PM2.5 reduction'!BA186),9))","v":0.99998337999999998},{"$f":"VALUE(FIXED(EXP(BB$4*-1*'PM2.5 reduction'!BB186),9))","v":0.99998368599999998},{"$f":"VALUE(FIXED(EXP(BC$4*-1*'PM2.5 reduction'!BC186),9))","v":1}]
[null,"Female 65-69",{"$f":"VALUE(FIXED(EXP(C$4*-1*'PM2.5 reduction'!C187),9))","v":0.99997101700000002},{"$f":"VALUE(FIXED(EXP(D$4*-1*'PM2.5 reduction'!D187),9))","v":0.99998294899999995},{"$f":"VALUE(FIXED(EXP(E$4*-1*'PM2.5 reduction'!E187),9))","v":0.99999358199999999},{"$f":"VALUE(FIXED(EXP(F$4*-1*'PM2.5 reduction'!F187),9))","v":0.99999247700000005},{"$f":"VALUE(FIXED(EXP(G$4*-1*'PM2.5 reduction'!G187),9))","v":0.99999091100000004},{"$f":"VALUE(FIXED(EXP(H$4*-1*'PM2.5 reduction'!H187),9))","v":0.99998704000000005},{"$f":"VALUE(FIXED(EXP(I$4*-1*'PM2.5 reduction'!I187),9))","v":0.99999540600000003},{"$f":"VALUE(FIXED(EXP(J$4*-1*'PM2.5 reduction'!J187),9))","v":0.99998623099999995},{"$f":"VALUE(FIXED(EXP(K$4*-1*'PM2.5 reduction'!K187),9))","v":0.99998440499999997},{"$f":"VALUE(FIXED(EXP(L$4*-1*'PM2.5 reduction'!L187),9))","v":0.99999387699999998},{"$f":"VALUE(FIXED(EXP(M$4*-1*'PM2.5 reduction'!M187),9))","v":0.99999387699999998},{"$f":"VALUE(FIXED(EXP(N$4*-1*'PM2.5 reduction'!N187),9))","v":0.99997358999999997},{"$f":"VALUE(FIXED(EXP(O$4*-1*'PM2.5 reduction'!O187),9))","v":0.99998477500000005},{"$f":"VALUE(FIXED(EXP(P$4*-1*'PM2.5 reduction'!P187),9))","v":0.99997673399999998},{"$f":"VALUE(FIXED(EXP(Q$4*-1*'PM2.5 reduction'!Q187),9))","v":0.99998706000000004},{"$f":"VALUE(FIXED(EXP(R$4*-1*'PM2.5 reduction'!R187),9))","v":0.99997799499999995},{"$f":"VALUE(FIXED(EXP(S$4*-1*'PM2.5 reduction'!S187),9))","v":0.99997756599999998},{"$f":"VALUE(FIXED(EXP(T$4*-1*'PM2.5 reduction'!T187),9))","v":0.99996273000000002},{"$f":"VALUE(FIXED(EXP(U$4*-1*'PM2.5 reduction'!U187),9))","v":1},{"$f":"VALUE(FIXED(EXP(V$4*-1*'PM2.5 reduction'!V187),9))","v":0.99998023800000002},{"$f":"VALUE(FIXED(EXP(W$4*-1*'PM2.5 reduction'!W187),9))","v":0.99998526600000004},{"$f":"VALUE(FIXED(EXP(X$4*-1*'PM2.5 reduction'!X187),9))","v":0.99998526600000004},{"$f":"VALUE(FIXED(EXP(Y$4*-1*'PM2.5 reduction'!Y187),9))","v":0.99998287600000002},{"$f":"VALUE(FIXED(EXP(Z$4*-1*'PM2.5 reduction'!Z187),9))","v":0.99996492800000003},{"$f":"VALUE(FIXED(EXP(AA$4*-1*'PM2.5 reduction'!AA187),9))","v":0.99997565099999997},{"$f":"VALUE(FIXED(EXP(AB$4*-1*'PM2.5 reduction'!AB187),9))","v":0.99998363999999995},{"$f":"VALUE(FIXED(EXP(AC$4*-1*'PM2.5 reduction'!AC187),9))","v":0.99997370799999996},{"$f":"VALUE(FIXED(EXP(AD$4*-1*'PM2.5 reduction'!AD187),9))","v":0.99999092000000001},{"$f":"VALUE(FIXED(EXP(AE$4*-1*'PM2.5 reduction'!AE187),9))","v":0.99999092099999998},{"$f":"VALUE(FIXED(EXP(AF$4*-1*'PM2.5 reduction'!AF187),9))","v":0.99998441900000001},{"$f":"VALUE(FIXED(EXP(AG$4*-1*'PM2.5 reduction'!AG187),9))","v":0.99999092099999998},{"$f":"VALUE(FIXED(EXP(AH$4*-1*'PM2.5 reduction'!AH187),9))","v":0.99997891100000003},{"$f":"VALUE(FIXED(EXP(AI$4*-1*'PM2.5 reduction'!AI187),9))","v":0.99997177000000004},{"$f":"VALUE(FIXED(EXP(AJ$4*-1*'PM2.5 reduction'!AJ187),9))","v":0.99998330199999996},{"$f":"VALUE(FIXED(EXP(AK$4*-1*'PM2.5 reduction'!AK187),9))","v":0.99999157900000002},{"$f":"VALUE(FIXED(EXP(AL$4*-1*'PM2.5 reduction'!AL187),9))","v":0.999991093},{"$f":"VALUE(FIXED(EXP(AM$4*-1*'PM2.5 reduction'!AM187),9))","v":0.99997716199999997},{"$f":"VALUE(FIXED(EXP(AN$4*-1*'PM2.5 reduction'!AN187),9))","v":0.99999521899999999},{"$f":"VALUE(FIXED(EXP(AO$4*-1*'PM2.5 reduction'!AO187),9))","v":0.99999521899999999},{"$f":"VALUE(FIXED(EXP(AP$4*-1*'PM2.5 reduction'!AP187),9))","v":0.99999359499999996},{"$f":"VALUE(FIXED(EXP(AQ$4*-1*'PM2.5 reduction'!AQ187),9))","v":0.99997904199999998},{"$f":"VALUE(FIXED(EXP(AR$4*-1*'PM2.5 reduction'!AR187),9))","v":0.99998064799999997},{"$f":"VALUE(FIXED(EXP(AS$4*-1*'PM2.5 reduction'!AS187),9))","v":0.99999540600000003},{"$f":"VALUE(FIXED(EXP(AT$4*-1*'PM2.5 reduction'!AT187),9))","v":0.99999658700000005},{"$f":"VALUE(FIXED(EXP(AU$4*-1*'PM2.5 reduction'!AU187),9))","v":0.99999658700000005},{"$f":"VALUE(FIXED(EXP(AV$4*-1*'PM2.5 reduction'!AV187),9))","v":0.99998459299999998},{"$f":"VALUE(FIXED(EXP(AW$4*-1*'PM2.5 reduction'!AW187),9))","v":0.99998009499999996},{"$f":"VALUE(FIXED(EXP(AX$4*-1*'PM2.5 reduction'!AX187),9))","v":0.99998727300000001},{"$f":"VALUE(FIXED(EXP(AY$4*-1*'PM2.5 reduction'!AY187),9))","v":0.99998653400000004},{"$f":"VALUE(FIXED(EXP(AZ$4*-1*'PM2.5 reduction'!AZ187),9))","v":0.99998730899999999},{"$f":"VALUE(FIXED(EXP(BA$4*-1*'PM2.5 reduction'!BA187),9))","v":0.99998369799999998},{"$f":"VALUE(FIXED(EXP(BB$4*-1*'PM2.5 reduction'!BB187),9))","v":0.99998361599999996},{"$f":"VALUE(FIXED(EXP(BC$4*-1*'PM2.5 reduction'!BC187),9))","v":1}]
[null,"Female 70-74",{"$f":"VALUE(FIXED(EXP(C$4*-1*'PM2.5 reduction'!C188),9))","v":0.99997086300000004},{"$f":"VALUE(FIXED(EXP(D$4*-1*'PM2.5 reduction'!D188),9))","v":0.99998415600000001},{"$f":"VALUE(FIXED(EXP(E$4*-1*'PM2.5 reduction'!E188),9))","v":0.99999383600000002},{"$f":"VALUE(FIXED(EXP(F$4*-1*'PM2.5 reduction'!F188),9))","v":0.99999302599999995},{"$f":"VALUE(FIXED(EXP(G$4*-1*'PM2.5 reduction'!G188),9))","v":0.999990924},{"$f":"VALUE(FIXED(EXP(H$4*-1*'PM2.5 reduction'!H188),9))","v":0.99998744500000003},{"$f":"VALUE(FIXED(EXP(I$4*-1*'PM2.5 reduction'!I188),9))","v":0.99999575799999996},{"$f":"VALUE(FIXED(EXP(J$4*-1*'PM2.5 reduction'!J188),9))","v":0.99998590799999998},{"$f":"VALUE(FIXED(EXP(K$4*-1*'PM2.5 reduction'!K188),9))","v":0.99998387499999997},{"$f":"VALUE(FIXED(EXP(L$4*-1*'PM2.5 reduction'!L188),9))","v":0.99999390300000002},{"$f":"VALUE(FIXED(EXP(M$4*-1*'PM2.5 reduction'!M188),9))","v":0.99999390300000002},{"$f":"VALUE(FIXED(EXP(N$4*-1*'PM2.5 reduction'!N188),9))","v":0.99997303400000004},{"$f":"VALUE(FIXED(EXP(O$4*-1*'PM2.5 reduction'!O188),9))","v":0.99998673999999999},{"$f":"VALUE(FIXED(EXP(P$4*-1*'PM2.5 reduction'!P188),9))","v":0.99997630900000001},{"$f":"VALUE(FIXED(EXP(Q$4*-1*'PM2.5 reduction'!Q188),9))","v":0.99998678500000004},{"$f":"VALUE(FIXED(EXP(R$4*-1*'PM2.5 reduction'!R188),9))","v":0.99997712100000002},{"$f":"VALUE(FIXED(EXP(S$4*-1*'PM2.5 reduction'!S188),9))","v":0.999978531},{"$f":"VALUE(FIXED(EXP(T$4*-1*'PM2.5 reduction'!T188),9))","v":0.99996355999999997},{"$f":"VALUE(FIXED(EXP(U$4*-1*'PM2.5 reduction'!U188),9))","v":1},{"$f":"VALUE(FIXED(EXP(V$4*-1*'PM2.5 reduction'!V188),9))","v":0.99997919099999999},{"$f":"VALUE(FIXED(EXP(W$4*-1*'PM2.5 reduction'!W188),9))","v":0.99998570600000003},{"$f":"VALUE(FIXED(EXP(X$4*-1*'PM2.5 reduction'!X188),9))","v":0.99998570600000003},{"$f":"VALUE(FIXED(EXP(Y$4*-1*'PM2.5 reduction'!Y188),9))","v":0.99998215400000001},{"$f":"VALUE(FIXED(EXP(Z$4*-1*'PM2.5 reduction'!Z188),9))","v":0.99996502799999998},{"$f":"VALUE(FIXED(EXP(AA$4*-1*'PM2.5 reduction'!AA188),9))","v":0.99997572800000001},{"$f":"VALUE(FIXED(EXP(AB$4*-1*'PM2.5 reduction'!AB188),9))","v":0.99998476700000005},{"$f":"VALUE(FIXED(EXP(AC$4*-1*'PM2.5 reduction'!AC188),9))","v":0.99997415099999998},{"$f":"VALUE(FIXED(EXP(AD$4*-1*'PM2.5 reduction'!AD188),9))","v":0.99999085099999996},{"$f":"VALUE(FIXED(EXP(AE$4*-1*'PM2.5 reduction'!AE188),9))","v":0.99999084000000005},{"$f":"VALUE(FIXED(EXP(AF$4*-1*'PM2.5 reduction'!AF188),9))","v":0.99998493799999999},{"$f":"VALUE(FIXED(EXP(AG$4*-1*'PM2.5 reduction'!AG188),9))","v":0.99999084000000005},{"$f":"VALUE(FIXED(EXP(AH$4*-1*'PM2.5 reduction'!AH188),9))","v":0.99997864299999994},{"$f":"VALUE(FIXED(EXP(AI$4*-1*'PM2.5 reduction'!AI188),9))","v":0.999972368},{"$f":"VALUE(FIXED(EXP(AJ$4*-1*'PM2.5 reduction'!AJ188),9))","v":0.99998391499999995},{"$f":"VALUE(FIXED(EXP(AK$4*-1*'PM2.5 reduction'!AK188),9))","v":0.99999119700000005},{"$f":"VALUE(FIXED(EXP(AL$4*-1*'PM2.5 reduction'!AL188),9))","v":0.99999127499999996},{"$f":"VALUE(FIXED(EXP(AM$4*-1*'PM2.5 reduction'!AM188),9))","v":0.99997725699999995},{"$f":"VALUE(FIXED(EXP(AN$4*-1*'PM2.5 reduction'!AN188),9))","v":0.999995894},{"$f":"VALUE(FIXED(EXP(AO$4*-1*'PM2.5 reduction'!AO188),9))","v":0.999995894},{"$f":"VALUE(FIXED(EXP(AP$4*-1*'PM2.5 reduction'!AP188),9))","v":0.99999344499999998},{"$f":"VALUE(FIXED(EXP(AQ$4*-1*'PM2.5 reduction'!AQ188),9))","v":0.99997976099999997},{"$f":"VALUE(FIXED(EXP(AR$4*-1*'PM2.5 reduction'!AR188),9))","v":0.99998140199999996},{"$f":"VALUE(FIXED(EXP(AS$4*-1*'PM2.5 reduction'!AS188),9))","v":0.99999575799999996},{"$f":"VALUE(FIXED(EXP(AT$4*-1*'PM2.5 reduction'!AT188),9))","v":0.99999631200000005},{"$f":"VALUE(FIXED(EXP(AU$4*-1*'PM2.5 reduction'!AU188),9))","v":0.99999631200000005},{"$f":"VALUE(FIXED(EXP(AV$4*-1*'PM2.5 reduction'!AV188),9))","v":0.99998461999999999},{"$f":"VALUE(FIXED(EXP(AW$4*-1*'PM2.5 reduction'!AW188),9))","v":0.99997963899999998},{"$f":"VALUE(FIXED(EXP(AX$4*-1*'PM2.5 reduction'!AX188),9))","v":0.99998728599999998},{"$f":"VALUE(FIXED(EXP(AY$4*-1*'PM2.5 reduction'!AY188),9))","v":0.99998719400000002},{"$f":"VALUE(FIXED(EXP(AZ$4*-1*'PM2.5 reduction'!AZ188),9))","v":0.99998804399999996},{"$f":"VALUE(FIXED(EXP(BA$4*-1*'PM2.5 reduction'!BA188),9))","v":0.99998321899999998},{"$f":"VALUE(FIXED(EXP(BB$4*-1*'PM2.5 reduction'!BB188),9))","v":0.99998315800000004},{"$f":"VALUE(FIXED(EXP(BC$4*-1*'PM2.5 reduction'!BC188),9))","v":1}]
[null,"Female 75-79",{"$f":"VALUE(FIXED(EXP(C$4*-1*'PM2.5 reduction'!C189),9))","v":0.99996903800000003},{"$f":"VALUE(FIXED(EXP(D$4*-1*'PM2.5 reduction'!D189),9))","v":0.99998340299999999},{"$f":"VALUE(FIXED(EXP(E$4*-1*'PM2.5 reduction'!E189),9))","v":0.99999364400000001},{"$f":"VALUE(FIXED(EXP(F$4*-1*'PM2.5 reduction'!F189),9))","v":0.999992557},{"$f":"VALUE(FIXED(EXP(G$4*-1*'PM2.5 reduction'!G189),9))","v":0.999990877},{"$f":"VALUE(FIXED(EXP(H$4*-1*'PM2.5 reduction'!H189),9))","v":0.99998666400000003},{"$f":"VALUE(FIXED(EXP(I$4*-1*'PM2.5 reduction'!I189),9))","v":0.99999546500000003},{"$f":"VALUE(FIXED(EXP(J$4*-1*'PM2.5 reduction'!J189),9))","v":0.99998613300000005},{"$f":"VALUE(FIXED(EXP(K$4*-1*'PM2.5 reduction'!K189),9))","v":0.99998501900000003},{"$f":"VALUE(FIXED(EXP(L$4*-1*'PM2.5 reduction'!L189),9))","v":0.99999399300000003},{"$f":"VALUE(FIXED(EXP(M$4*-1*'PM2.5 reduction'!M189),9))","v":0.99999399300000003},{"$f":"VALUE(FIXED(EXP(N$4*-1*'PM2.5 reduction'!N189),9))","v":0.99997264799999996},{"$f":"VALUE(FIXED(EXP(O$4*-1*'PM2.5 reduction'!O189),9))","v":0.99998503999999999},{"$f":"VALUE(FIXED(EXP(P$4*-1*'PM2.5 reduction'!P189),9))","v":0.99997559300000005},{"$f":"VALUE(FIXED(EXP(Q$4*-1*'PM2.5 reduction'!Q189),9))","v":0.99998608899999997},{"$f":"VALUE(FIXED(EXP(R$4*-1*'PM2.5 reduction'!R189),9))","v":0.99997745400000004},{"$f":"VALUE(FIXED(EXP(S$4*-1*'PM2.5 reduction'!S189),9))","v":0.999977742},{"$f":"VALUE(FIXED(EXP(T$4*-1*'PM2.5 reduction'!T189),9))","v":0.99996300199999999},{"$f":"VALUE(FIXED(EXP(U$4*-1*'PM2.5 reduction'!U189),9))","v":1},{"$f":"VALUE(FIXED(EXP(V$4*-1*'PM2.5 reduction'!V189),9))","v":0.99997885099999995},{"$f":"VALUE(FIXED(EXP(W$4*-1*'PM2.5 reduction'!W189),9))","v":0.99998560400000003},{"$f":"VALUE(FIXED(EXP(X$4*-1*'PM2.5 reduction'!X189),9))","v":0.99998560400000003},{"$f":"VALUE(FIXED(EXP(Y$4*-1*'PM2.5 reduction'!Y189),9))","v":0.99998193199999996},{"$f":"VALUE(FIXED(EXP(Z$4*-1*'PM2.5 reduction'!Z189),9))","v":0.99996510699999996},{"$f":"VALUE(FIXED(EXP(AA$4*-1*'PM2.5 reduction'!AA189),9))","v":0.99997507100000005},{"$f":"VALUE(FIXED(EXP(AB$4*-1*'PM2.5 reduction'!AB189),9))","v":0.99998406399999995},{"$f":"VALUE(FIXED(EXP(AC$4*-1*'PM2.5 reduction'!AC189),9))","v":0.99997343100000002},{"$f":"VALUE(FIXED(EXP(AD$4*-1*'PM2.5 reduction'!AD189),9))","v":0.99999018299999998},{"$f":"VALUE(FIXED(EXP(AE$4*-1*'PM2.5 reduction'!AE189),9))","v":0.99999007100000004},{"$f":"VALUE(FIXED(EXP(AF$4*-1*'PM2.5 reduction'!AF189),9))","v":0.99998322900000003},{"$f":"VALUE(FIXED(EXP(AG$4*-1*'PM2.5 reduction'!AG189),9))","v":0.99999007100000004},{"$f":"VALUE(FIXED(EXP(AH$4*-1*'PM2.5 reduction'!AH189),9))","v":0.99997819200000004},{"$f":"VALUE(FIXED(EXP(AI$4*-1*'PM2.5 reduction'!AI189),9))","v":0.99997127399999997},{"$f":"VALUE(FIXED(EXP(AJ$4*-1*'PM2.5 reduction'!AJ189),9))","v":0.99998345899999996},{"$f":"VALUE(FIXED(EXP(AK$4*-1*'PM2.5 reduction'!AK189),9))","v":0.99999133100000004},{"$f":"VALUE(FIXED(EXP(AL$4*-1*'PM2.5 reduction'!AL189),9))","v":0.99999103600000006},{"$f":"VALUE(FIXED(EXP(AM$4*-1*'PM2.5 reduction'!AM189),9))","v":0.99997650900000001},{"$f":"VALUE(FIXED(EXP(AN$4*-1*'PM2.5 reduction'!AN189),9))","v":0.99999539299999995},{"$f":"VALUE(FIXED(EXP(AO$4*-1*'PM2.5 reduction'!AO189),9))","v":0.99999539299999995},{"$f":"VALUE(FIXED(EXP(AP$4*-1*'PM2.5 reduction'!AP189),9))","v":0.99999368700000002},{"$f":"VALUE(FIXED(EXP(AQ$4*-1*'PM2.5 reduction'!AQ189),9))","v":0.99997879499999998},{"$f":"VALUE(FIXED(EXP(AR$4*-1*'PM2.5 reduction'!AR189),9))","v":0.99998069999999994},{"$f":"VALUE(FIXED(EXP(AS$4*-1*'PM2.5 reduction'!AS189),9))","v":0.99999546500000003},{"$f":"VALUE(FIXED(EXP(AT$4*-1*'PM2.5 reduction'!AT189),9))","v":0.99999602300000001},{"$f":"VALUE(FIXED(EXP(AU$4*-1*'PM2.5 reduction'!AU189),9))","v":0.99999602300000001},{"$f":"VALUE(FIXED(EXP(AV$4*-1*'PM2.5 reduction'!AV189),9))","v":0.999984541},{"$f":"VALUE(FIXED(EXP(AW$4*-1*'PM2.5 reduction'!AW189),9))","v":0.99997938500000005},{"$f":"VALUE(FIXED(EXP(AX$4*-1*'PM2.5 reduction'!AX189),9))","v":0.99998666400000003},{"$f":"VALUE(FIXED(EXP(AY$4*-1*'PM2.5 reduction'!AY189),9))","v":0.99998724999999999},{"$f":"VALUE(FIXED(EXP(AZ$4*-1*'PM2.5 reduction'!AZ189),9))","v":0.99998805499999999},{"$f":"VALUE(FIXED(EXP(BA$4*-1*'PM2.5 reduction'!BA189),9))","v":0.99998279899999998},{"$f":"VALUE(FIXED(EXP(BB$4*-1*'PM2.5 reduction'!BB189),9))","v":0.99998350000000003},{"$f":"VALUE(FIXED(EXP(BC$4*-1*'PM2.5 reduction'!BC189),9))","v":1}]
[null,"Female 80-84",{"$f":"VALUE(FIXED(EXP(C$4*-1*'PM2.5 reduction'!C190),9))","v":0.99996804699999997},{"$f":"VALUE(FIXED(EXP(D$4*-1*'PM2.5 reduction'!D190),9))","v":0.99998351399999996},{"$f":"VALUE(FIXED(EXP(E$4*-1*'PM2.5 reduction'!E190),9))","v":0.99999368099999997},{"$f":"VALUE(FIXED(EXP(F$4*-1*'PM2.5 reduction'!F190),9))","v":0.999992773},{"$f":"VALUE(FIXED(EXP(G$4*-1*'PM2.5 reduction'!G190),9))","v":0.99999081499999998},{"$f":"VALUE(FIXED(EXP(H$4*-1*'PM2.5 reduction'!H190),9))","v":0.99998637899999998},{"$f":"VALUE(FIXED(EXP(I$4*-1*'PM2.5 reduction'!I190),9))","v":0.99999543700000004},{"$f":"VALUE(FIXED(EXP(J$4*-1*'PM2.5 reduction'!J190),9))","v":0.99998625299999999},{"$f":"VALUE(FIXED(EXP(K$4*-1*'PM2.5 reduction'!K190),9))","v":0.99998695100000001},{"$f":"VALUE(FIXED(EXP(L$4*-1*'PM2.5 reduction'!L190),9))","v":0.99999403600000003},{"$f":"VALUE(FIXED(EXP(M$4*-1*'PM2.5 reduction'!M190),9))","v":0.99999403600000003},{"$f":"VALUE(FIXED(EXP(N$4*-1*'PM2.5 reduction'!N190),9))","v":0.99997224299999998},{"$f":"VALUE(FIXED(EXP(O$4*-1*'PM2.5 reduction'!O190),9))","v":0.99998420200000004},{"$f":"VALUE(FIXED(EXP(P$4*-1*'PM2.5 reduction'!P190),9))","v":0.99997528300000005},{"$f":"VALUE(FIXED(EXP(Q$4*-1*'PM2.5 reduction'!Q190),9))","v":0.99998754300000003},{"$f":"VALUE(FIXED(EXP(R$4*-1*'PM2.5 reduction'!R190),9))","v":0.99997586699999996},{"$f":"VALUE(FIXED(EXP(S$4*-1*'PM2.5 reduction'!S190),9))","v":0.99997676999999996},{"$f":"VALUE(FIXED(EXP(T$4*-1*'PM2.5 reduction'!T190),9))","v":0.99996390099999999},{"$f":"VALUE(FIXED(EXP(U$4*-1*'PM2.5 reduction'!U190),9))","v":1},{"$f":"VALUE(FIXED(EXP(V$4*-1*'PM2.5 reduction'!V190),9))","v":0.999976278},{"$f":"VALUE(FIXED(EXP(W$4*-1*'PM2.5 reduction'!W190),9))","v":0.99998523399999995},{"$f":"VALUE(FIXED(EXP(X$4*-1*'PM2.5 reduction'!X190),9))","v":0.99998523399999995},{"$f":"VALUE(FIXED(EXP(Y$4*-1*'PM2.5 reduction'!Y190),9))","v":0.99998085699999995},{"$f":"VALUE(FIXED(EXP(Z$4*-1*'PM2.5 reduction'!Z190),9))","v":0.99996476700000003},{"$f":"VALUE(FIXED(EXP(AA$4*-1*'PM2.5 reduction'!AA190),9))","v":0.99997444300000005},{"$f":"VALUE(FIXED(EXP(AB$4*-1*'PM2.5 reduction'!AB190),9))","v":0.99998406100000004},{"$f":"VALUE(FIXED(EXP(AC$4*-1*'PM2.5 reduction'!AC190),9))","v":0.99997286100000005},{"$f":"VALUE(FIXED(EXP(AD$4*-1*'PM2.5 reduction'!AD190),9))","v":0.99999035999999997},{"$f":"VALUE(FIXED(EXP(AE$4*-1*'PM2.5 reduction'!AE190),9))","v":0.99999029100000003},{"$f":"VALUE(FIXED(EXP(AF$4*-1*'PM2.5 reduction'!AF190),9))","v":0.999981699},{"$f":"VALUE(FIXED(EXP(AG$4*-1*'PM2.5 reduction'!AG190),9))","v":0.99999029100000003},{"$f":"VALUE(FIXED(EXP(AH$4*-1*'PM2.5 reduction'!AH190),9))","v":0.99997778100000001},{"$f":"VALUE(FIXED(EXP(AI$4*-1*'PM2.5 reduction'!AI190),9))","v":0.99997095999999996},{"$f":"VALUE(FIXED(EXP(AJ$4*-1*'PM2.5 reduction'!AJ190),9))","v":0.99998406500000003},{"$f":"VALUE(FIXED(EXP(AK$4*-1*'PM2.5 reduction'!AK190),9))","v":0.99999068899999999},{"$f":"VALUE(FIXED(EXP(AL$4*-1*'PM2.5 reduction'!AL190),9))","v":0.99999095900000001},{"$f":"VALUE(FIXED(EXP(AM$4*-1*'PM2.5 reduction'!AM190),9))","v":0.99997601999999997},{"$f":"VALUE(FIXED(EXP(AN$4*-1*'PM2.5 reduction'!AN190),9))","v":0.99999580300000002},{"$f":"VALUE(FIXED(EXP(AO$4*-1*'PM2.5 reduction'!AO190),9))","v":0.99999580300000002},{"$f":"VALUE(FIXED(EXP(AP$4*-1*'PM2.5 reduction'!AP190),9))","v":0.99999340000000003},{"$f":"VALUE(FIXED(EXP(AQ$4*-1*'PM2.5 reduction'!AQ190),9))","v":0.99997827500000003},{"$f":"VALUE(FIXED(EXP(AR$4*-1*'PM2.5 reduction'!AR190),9))","v":0.99998021599999998},{"$f":"VALUE(FIXED(EXP(AS$4*-1*'PM2.5 reduction'!AS190),9))","v":0.99999543700000004},{"$f":"VALUE(FIXED(EXP(AT$4*-1*'PM2.5 reduction'!AT190),9))","v":0.99999618400000001},{"$f":"VALUE(FIXED(EXP(AU$4*-1*'PM2.5 reduction'!AU190),9))","v":0.99999618400000001},{"$f":"VALUE(FIXED(EXP(AV$4*-1*'PM2.5 reduction'!AV190),9))","v":0.99998451799999999},{"$f":"VALUE(FIXED(EXP(AW$4*-1*'PM2.5 reduction'!AW190),9))","v":0.99997877000000002},{"$f":"VALUE(FIXED(EXP(AX$4*-1*'PM2.5 reduction'!AX190),9))","v":0.99998598400000005},{"$f":"VALUE(FIXED(EXP(AY$4*-1*'PM2.5 reduction'!AY190),9))","v":0.99998652399999999},{"$f":"VALUE(FIXED(EXP(AZ$4*-1*'PM2.5 reduction'!AZ190),9))","v":0.99998703899999997},{"$f":"VALUE(FIXED(EXP(BA$4*-1*'PM2.5 reduction'!BA190),9))","v":0.99998220400000004},{"$f":"VALUE(FIXED(EXP(BB$4*-1*'PM2.5 reduction'!BB190),9))","v":0.99998405999999995},{"$f":"VALUE(FIXED(EXP(BC$4*-1*'PM2.5 reduction'!BC190),9))","v":1}]
[null,"Female 85-89",{"$f":"VALUE(FIXED(EXP(C$4*-1*'PM2.5 reduction'!C191),9))","v":0.99996684499999999},{"$f":"VALUE(FIXED(EXP(D$4*-1*'PM2.5 reduction'!D191),9))","v":0.999983336},{"$f":"VALUE(FIXED(EXP(E$4*-1*'PM2.5 reduction'!E191),9))","v":0.99999387900000003},{"$f":"VALUE(FIXED(EXP(F$4*-1*'PM2.5 reduction'!F191),9))","v":0.999992561},{"$f":"VALUE(FIXED(EXP(G$4*-1*'PM2.5 reduction'!G191),9))","v":0.99999073100000002},{"$f":"VALUE(FIXED(EXP(H$4*-1*'PM2.5 reduction'!H191),9))","v":0.99998644699999995},{"$f":"VALUE(FIXED(EXP(I$4*-1*'PM2.5 reduction'!I191),9))","v":0.99999551600000003},{"$f":"VALUE(FIXED(EXP(J$4*-1*'PM2.5 reduction'!J191),9))","v":0.99998547400000004},{"$f":"VALUE(FIXED(EXP(K$4*-1*'PM2.5 reduction'!K191),9))","v":0.999987301},{"$f":"VALUE(FIXED(EXP(L$4*-1*'PM2.5 reduction'!L191),9))","v":0.99999387799999995},{"$f":"VALUE(FIXED(EXP(M$4*-1*'PM2.5 reduction'!M191),9))","v":0.99999387799999995},{"$f":"VALUE(FIXED(EXP(N$4*-1*'PM2.5 reduction'!N191),9))","v":0.99997495999999997},{"$f":"VALUE(FIXED(EXP(O$4*-1*'PM2.5 reduction'!O191),9))","v":0.99998482899999996},{"$f":"VALUE(FIXED(EXP(P$4*-1*'PM2.5 reduction'!P191),9))","v":0.99997427500000002},{"$f":"VALUE(FIXED(EXP(Q$4*-1*'PM2.5 reduction'!Q191),9))","v":0.99998799100000002},{"$f":"VALUE(FIXED(EXP(R$4*-1*'PM2.5 reduction'!R191),9))","v":0.99997551100000004},{"$f":"VALUE(FIXED(EXP(S$4*-1*'PM2.5 reduction'!S191),9))","v":0.99997521700000003},{"$f":"VALUE(FIXED(EXP(T$4*-1*'PM2.5 reduction'!T191),9))","v":0.99996429099999995},{"$f":"VALUE(FIXED(EXP(U$4*-1*'PM2.5 reduction'!U191),9))","v":1},{"$f":"VALUE(FIXED(EXP(V$4*-1*'PM2.5 reduction'!V191),9))","v":0.999976486},{"$f":"VALUE(FIXED(EXP(W$4*-1*'PM2.5 reduction'!W191),9))","v":0.99998474100000001},{"$f":"VALUE(FIXED(EXP(X$4*-1*'PM2.5 reduction'!X191),9))","v":0.99998474100000001},{"$f":"VALUE(FIXED(EXP(Y$4*-1*'PM2.5 reduction'!Y191),9))","v":0.99998078899999998},{"$f":"VALUE(FIXED(EXP(Z$4*-1*'PM2.5 reduction'!Z191),9))","v":0.99996417599999998},{"$f":"VALUE(FIXED(EXP(AA$4*-1*'PM2.5 reduction'!AA191),9))","v":0.99997381600000002},{"$f":"VALUE(FIXED(EXP(AB$4*-1*'PM2.5 reduction'!AB191),9))","v":0.99998367700000002},{"$f":"VALUE(FIXED(EXP(AC$4*-1*'PM2.5 reduction'!AC191),9))","v":0.99997190899999999},{"$f":"VALUE(FIXED(EXP(AD$4*-1*'PM2.5 reduction'!AD191),9))","v":0.99998894599999999},{"$f":"VALUE(FIXED(EXP(AE$4*-1*'PM2.5 reduction'!AE191),9))","v":0.99998856599999997},{"$f":"VALUE(FIXED(EXP(AF$4*-1*'PM2.5 reduction'!AF191),9))","v":0.99998048399999995},{"$f":"VALUE(FIXED(EXP(AG$4*-1*'PM2.5 reduction'!AG191),9))","v":0.99998856599999997},{"$f":"VALUE(FIXED(EXP(AH$4*-1*'PM2.5 reduction'!AH191),9))","v":0.99997840400000004},{"$f":"VALUE(FIXED(EXP(AI$4*-1*'PM2.5 reduction'!AI191),9))","v":0.99996958000000002},{"$f":"VALUE(FIXED(EXP(AJ$4*-1*'PM2.5 reduction'!AJ191),9))","v":0.99998398700000002},{"$f":"VALUE(FIXED(EXP(AK$4*-1*'PM2.5 reduction'!AK191),9))","v":0.99998856199999997},{"$f":"VALUE(FIXED(EXP(AL$4*-1*'PM2.5 reduction'!AL191),9))","v":0.99999065399999998},{"$f":"VALUE(FIXED(EXP(AM$4*-1*'PM2.5 reduction'!AM191),9))","v":0.99997623099999999},{"$f":"VALUE(FIXED(EXP(AN$4*-1*'PM2.5 reduction'!AN191),9))","v":0.99999532999999996},{"$f":"VALUE(FIXED(EXP(AO$4*-1*'PM2.5 reduction'!AO191),9))","v":0.99999532999999996},{"$f":"VALUE(FIXED(EXP(AP$4*-1*'PM2.5 reduction'!AP191),9))","v":0.999993829},{"$f":"VALUE(FIXED(EXP(AQ$4*-1*'PM2.5 reduction'!AQ191),9))","v":0.99997654899999999},{"$f":"VALUE(FIXED(EXP(AR$4*-1*'PM2.5 reduction'!AR191),9))","v":0.99997950700000005},{"$f":"VALUE(FIXED(EXP(AS$4*-1*'PM2.5 reduction'!AS191),9))","v":0.99999551600000003},{"$f":"VALUE(FIXED(EXP(AT$4*-1*'PM2.5 reduction'!AT191),9))","v":0.99999688099999995},{"$f":"VALUE(FIXED(EXP(AU$4*-1*'PM2.5 reduction'!AU191),9))","v":0.99999688099999995},{"$f":"VALUE(FIXED(EXP(AV$4*-1*'PM2.5 reduction'!AV191),9))","v":0.99998451300000002},{"$f":"VALUE(FIXED(EXP(AW$4*-1*'PM2.5 reduction'!AW191),9))","v":0.99997916399999998},{"$f":"VALUE(FIXED(EXP(AX$4*-1*'PM2.5 reduction'!AX191),9))","v":0.99998480999999995},{"$f":"VALUE(FIXED(EXP(AY$4*-1*'PM2.5 reduction'!AY191),9))","v":0.999986504},{"$f":"VALUE(FIXED(EXP(AZ$4*-1*'PM2.5 reduction'!AZ191),9))","v":0.99998717299999995},{"$f":"VALUE(FIXED(EXP(BA$4*-1*'PM2.5 reduction'!BA191),9))","v":0.99998239799999999},{"$f":"VALUE(FIXED(EXP(BB$4*-1*'PM2.5 reduction'!BB191),9))","v":0.99998348500000001},{"$f":"VALUE(FIXED(EXP(BC$4*-1*'PM2.5 reduction'!BC191),9))","v":1}]
[null,"Female 90+",{"$f":"VALUE(FIXED(EXP(C$4*-1*'PM2.5 reduction'!C192),9))","v":0.99996416099999996},{"$f":"VALUE(FIXED(EXP(D$4*-1*'PM2.5 reduction'!D192),9))","v":0.99998383199999996},{"$f":"VALUE(FIXED(EXP(E$4*-1*'PM2.5 reduction'!E192),9))","v":0.99999309999999997},{"$f":"VALUE(FIXED(EXP(F$4*-1*'PM2.5 reduction'!F192),9))","v":0.99999308499999995},{"$f":"VALUE(FIXED(EXP(G$4*-1*'PM2.5 reduction'!G192),9))","v":0.99999067100000005},{"$f":"VALUE(FIXED(EXP(H$4*-1*'PM2.5 reduction'!H192),9))","v":0.99998612899999995},{"$f":"VALUE(FIXED(EXP(I$4*-1*'PM2.5 reduction'!I192),9))","v":0.99999494499999997},{"$f":"VALUE(FIXED(EXP(J$4*-1*'PM2.5 reduction'!J192),9))","v":0.99998811300000001},{"$f":"VALUE(FIXED(EXP(K$4*-1*'PM2.5 reduction'!K192),9))","v":0.99998710099999999},{"$f":"VALUE(FIXED(EXP(L$4*-1*'PM2.5 reduction'!L192),9))","v":0.99999417099999999},{"$f":"VALUE(FIXED(EXP(M$4*-1*'PM2.5 reduction'!M192),9))","v":0.99999417099999999},{"$f":"VALUE(FIXED(EXP(N$4*-1*'PM2.5 reduction'!N192),9))","v":0.99997718099999999},{"$f":"VALUE(FIXED(EXP(O$4*-1*'PM2.5 reduction'!O192),9))","v":0.99998137099999995},{"$f":"VALUE(FIXED(EXP(P$4*-1*'PM2.5 reduction'!P192),9))","v":0.999974378},{"$f":"VALUE(FIXED(EXP(Q$4*-1*'PM2.5 reduction'!Q192),9))","v":0.99999095199999999},{"$f":"VALUE(FIXED(EXP(R$4*-1*'PM2.5 reduction'!R192),9))","v":0.99997460900000001},{"$f":"VALUE(FIXED(EXP(S$4*-1*'PM2.5 reduction'!S192),9))","v":0.99997420000000004},{"$f":"VALUE(FIXED(EXP(T$4*-1*'PM2.5 reduction'!T192),9))","v":0.999962507},{"$f":"VALUE(FIXED(EXP(U$4*-1*'PM2.5 reduction'!U192),9))","v":1},{"$f":"VALUE(FIXED(EXP(V$4*-1*'PM2.5 reduction'!V192),9))","v":0.99997568999999997},{"$f":"VALUE(FIXED(EXP(W$4*-1*'PM2.5 reduction'!W192),9))","v":0.99998520499999999},{"$f":"VALUE(FIXED(EXP(X$4*-1*'PM2.5 reduction'!X192),9))","v":0.99998520499999999},{"$f":"VALUE(FIXED(EXP(Y$4*-1*'PM2.5 reduction'!Y192),9))","v":0.99998110399999995},{"$f":"VALUE(FIXED(EXP(Z$4*-1*'PM2.5 reduction'!Z192),9))","v":0.99996359599999995},{"$f":"VALUE(FIXED(EXP(AA$4*-1*'PM2.5 reduction'!AA192),9))","v":0.99997304399999998},{"$f":"VALUE(FIXED(EXP(AB$4*-1*'PM2.5 reduction'!AB192),9))","v":0.99998434800000002},{"$f":"VALUE(FIXED(EXP(AC$4*-1*'PM2.5 reduction'!AC192),9))","v":0.99997126599999997},{"$f":"VALUE(FIXED(EXP(AD$4*-1*'PM2.5 reduction'!AD192),9))","v":0.99998786500000003},{"$f":"VALUE(FIXED(EXP(AE$4*-1*'PM2.5 reduction'!AE192),9))","v":0.99998690999999995},{"$f":"VALUE(FIXED(EXP(AF$4*-1*'PM2.5 reduction'!AF192),9))","v":0.99997952899999998},{"$f":"VALUE(FIXED(EXP(AG$4*-1*'PM2.5 reduction'!AG192),9))","v":0.99998690999999995},{"$f":"VALUE(FIXED(EXP(AH$4*-1*'PM2.5 reduction'!AH192),9))","v":0.99997799799999998},{"$f":"VALUE(FIXED(EXP(AI$4*-1*'PM2.5 reduction'!AI192),9))","v":0.99996714900000006},{"$f":"VALUE(FIXED(EXP(AJ$4*-1*'PM2.5 reduction'!AJ192),9))","v":0.99998380600000003},{"$f":"VALUE(FIXED(EXP(AK$4*-1*'PM2.5 reduction'!AK192),9))","v":0.99999311499999999},{"$f":"VALUE(FIXED(EXP(AL$4*-1*'PM2.5 reduction'!AL192),9))","v":0.99999140099999995},{"$f":"VALUE(FIXED(EXP(AM$4*-1*'PM2.5 reduction'!AM192),9))","v":0.99997498100000004},{"$f":"VALUE(FIXED(EXP(AN$4*-1*'PM2.5 reduction'!AN192),9))","v":0.99999661200000001},{"$f":"VALUE(FIXED(EXP(AO$4*-1*'PM2.5 reduction'!AO192),9))","v":0.99999661200000001},{"$f":"VALUE(FIXED(EXP(AP$4*-1*'PM2.5 reduction'!AP192),9))","v":0.99999316599999999},{"$f":"VALUE(FIXED(EXP(AQ$4*-1*'PM2.5 reduction'!AQ192),9))","v":0.99997564100000003},{"$f":"VALUE(FIXED(EXP(AR$4*-1*'PM2.5 reduction'!AR192),9))","v":0.99997937699999995},{"$f":"VALUE(FIXED(EXP(AS$4*-1*'PM2.5 reduction'!AS192),9))","v":0.99999494499999997},{"$f":"VALUE(FIXED(EXP(AT$4*-1*'PM2.5 reduction'!AT192),9))","v":0.999996318},{"$f":"VALUE(FIXED(EXP(AU$4*-1*'PM2.5 reduction'!AU192),9))","v":0.999996318},{"$f":"VALUE(FIXED(EXP(AV$4*-1*'PM2.5 reduction'!AV192),9))","v":0.99998336499999996},{"$f":"VALUE(FIXED(EXP(AW$4*-1*'PM2.5 reduction'!AW192),9))","v":0.99997895999999997},{"$f":"VALUE(FIXED(EXP(AX$4*-1*'PM2.5 reduction'!AX192),9))","v":0.99998832000000004},{"$f":"VALUE(FIXED(EXP(AY$4*-1*'PM2.5 reduction'!AY192),9))","v":0.999987497},{"$f":"VALUE(FIXED(EXP(AZ$4*-1*'PM2.5 reduction'!AZ192),9))","v":0.99998836499999999},{"$f":"VALUE(FIXED(EXP(BA$4*-1*'PM2.5 reduction'!BA192),9))","v":0.99998224999999996},{"$f":"VALUE(FIXED(EXP(BB$4*-1*'PM2.5 reduction'!BB192),9))","v":0.999982602},{"$f":"VALUE(FIXED(EXP(BC$4*-1*'PM2.5 reduction'!BC192),9))","v":1}]
[null,"Male 0-4",{"$f":"VALUE(FIXED(EXP(C$4*-1*'PM2.5 reduction'!C193),9))","v":0.99996466399999995},{"$f":"VALUE(FIXED(EXP(D$4*-1*'PM2.5 reduction'!D193),9))","v":0.99997840199999999},{"$f":"VALUE(FIXED(EXP(E$4*-1*'PM2.5 reduction'!E193),9))","v":0.99999369000000005},{"$f":"VALUE(FIXED(EXP(F$4*-1*'PM2.5 reduction'!F193),9))","v":0.99999249899999998},{"$f":"VALUE(FIXED(EXP(G$4*-1*'PM2.5 reduction'!G193),9))","v":0.99999093100000003},{"$f":"VALUE(FIXED(EXP(H$4*-1*'PM2.5 reduction'!H193),9))","v":0.99998778700000002},{"$f":"VALUE(FIXED(EXP(I$4*-1*'PM2.5 reduction'!I193),9))","v":0.99999586100000004},{"$f":"VALUE(FIXED(EXP(J$4*-1*'PM2.5 reduction'!J193),9))","v":0.99998595099999998},{"$f":"VALUE(FIXED(EXP(K$4*-1*'PM2.5 reduction'!K193),9))","v":0.99998482300000002},{"$f":"VALUE(FIXED(EXP(L$4*-1*'PM2.5 reduction'!L193),9))","v":0.99999373400000002},{"$f":"VALUE(FIXED(EXP(M$4*-1*'PM2.5 reduction'!M193),9))","v":0.99999373400000002},{"$f":"VALUE(FIXED(EXP(N$4*-1*'PM2.5 reduction'!N193),9))","v":0.99997318599999996},{"$f":"VALUE(FIXED(EXP(O$4*-1*'PM2.5 reduction'!O193),9))","v":0.99998630799999999},{"$f":"VALUE(FIXED(EXP(P$4*-1*'PM2.5 reduction'!P193),9))","v":0.99997686200000002},{"$f":"VALUE(FIXED(EXP(Q$4*-1*'PM2.5 reduction'!Q193),9))","v":0.99998638399999995},{"$f":"VALUE(FIXED(EXP(R$4*-1*'PM2.5 reduction'!R193),9))","v":0.99997916099999995},{"$f":"VALUE(FIXED(EXP(S$4*-1*'PM2.5 reduction'!S193),9))","v":0.99997418900000001},{"$f":"VALUE(FIXED(EXP(T$4*-1*'PM2.5 reduction'!T193),9))","v":0.99996095500000004},{"$f":"VALUE(FIXED(EXP(U$4*-1*'PM2.5 reduction'!U193),9))","v":1},{"$f":"VALUE(FIXED(EXP(V$4*-1*'PM2.5 reduction'!V193),9))","v":0.99998092100000002},{"$f":"VALUE(FIXED(EXP(W$4*-1*'PM2.5 reduction'!W193),9))","v":0.99998478999999996},{"$f":"VALUE(FIXED(EXP(X$4*-1*'PM2.5 reduction'!X193),9))","v":0.99998478999999996},{"$f":"VALUE(FIXED(EXP(Y$4*-1*'PM2.5 reduction'!Y193),9))","v":0.99998315900000001},{"$f":"VALUE(FIXED(EXP(Z$4*-1*'PM2.5 reduction'!Z193),9))","v":0.999963618},{"$f":"VALUE(FIXED(EXP(AA$4*-1*'PM2.5 reduction'!AA193),9))","v":0.99997434399999996},{"$f":"VALUE(FIXED(EXP(AB$4*-1*'PM2.5 reduction'!AB193),9))","v":0.99998010299999995},{"$f":"VALUE(FIXED(EXP(AC$4*-1*'PM2.5 reduction'!AC193),9))","v":0.99997110499999997},{"$f":"VALUE(FIXED(EXP(AD$4*-1*'PM2.5 reduction'!AD193),9))","v":0.99999079700000004},{"$f":"VALUE(FIXED(EXP(AE$4*-1*'PM2.5 reduction'!AE193),9))","v":0.99999079000000002},{"$f":"VALUE(FIXED(EXP(AF$4*-1*'PM2.5 reduction'!AF193),9))","v":0.99998479799999995},{"$f":"VALUE(FIXED(EXP(AG$4*-1*'PM2.5 reduction'!AG193),9))","v":0.99999079000000002},{"$f":"VALUE(FIXED(EXP(AH$4*-1*'PM2.5 reduction'!AH193),9))","v":0.99997884699999995},{"$f":"VALUE(FIXED(EXP(AI$4*-1*'PM2.5 reduction'!AI193),9))","v":0.99996886799999996},{"$f":"VALUE(FIXED(EXP(AJ$4*-1*'PM2.5 reduction'!AJ193),9))","v":0.99998274300000001},{"$f":"VALUE(FIXED(EXP(AK$4*-1*'PM2.5 reduction'!AK193),9))","v":0.99999331300000005},{"$f":"VALUE(FIXED(EXP(AL$4*-1*'PM2.5 reduction'!AL193),9))","v":0.99999109799999997},{"$f":"VALUE(FIXED(EXP(AM$4*-1*'PM2.5 reduction'!AM193),9))","v":0.99997730600000001},{"$f":"VALUE(FIXED(EXP(AN$4*-1*'PM2.5 reduction'!AN193),9))","v":0.999995627},{"$f":"VALUE(FIXED(EXP(AO$4*-1*'PM2.5 reduction'!AO193),9))","v":0.999995627},{"$f":"VALUE(FIXED(EXP(AP$4*-1*'PM2.5 reduction'!AP193),9))","v":0.999991937},{"$f":"VALUE(FIXED(EXP(AQ$4*-1*'PM2.5 reduction'!AQ193),9))","v":0.99997946900000001},{"$f":"VALUE(FIXED(EXP(AR$4*-1*'PM2.5 reduction'!AR193),9))","v":0.99997827800000005},{"$f":"VALUE(FIXED(EXP(AS$4*-1*'PM2.5 reduction'!AS193),9))","v":0.99999586100000004},{"$f":"VALUE(FIXED(EXP(AT$4*-1*'PM2.5 reduction'!AT193),9))","v":0.999996946},{"$f":"VALUE(FIXED(EXP(AU$4*-1*'PM2.5 reduction'!AU193),9))","v":0.999996946},{"$f":"VALUE(FIXED(EXP(AV$4*-1*'PM2.5 reduction'!AV193),9))","v":0.99998473399999999},{"$f":"VALUE(FIXED(EXP(AW$4*-1*'PM2.5 reduction'!AW193),9))","v":0.99997987600000005},{"$f":"VALUE(FIXED(EXP(AX$4*-1*'PM2.5 reduction'!AX193),9))","v":0.99998647600000001},{"$f":"VALUE(FIXED(EXP(AY$4*-1*'PM2.5 reduction'!AY193),9))","v":0.99998573700000004},{"$f":"VALUE(FIXED(EXP(AZ$4*-1*'PM2.5 reduction'!AZ193),9))","v":0.99998643099999995},{"$f":"VALUE(FIXED(EXP(BA$4*-1*'PM2.5 reduction'!BA193),9))","v":0.99998284000000004},{"$f":"VALUE(FIXED(EXP(BB$4*-1*'PM2.5 reduction'!BB193),9))","v":0.99998225600000001},{"$f":"VALUE(FIXED(EXP(BC$4*-1*'PM2.5 reduction'!BC193),9))","v":1}]
[null,"Male 5-9",{"$f":"VALUE(FIXED(EXP(C$4*-1*'PM2.5 reduction'!C194),9))","v":0.99996708400000001},{"$f":"VALUE(FIXED(EXP(D$4*-1*'PM2.5 reduction'!D194),9))","v":0.99998121600000001},{"$f":"VALUE(FIXED(EXP(E$4*-1*'PM2.5 reduction'!E194),9))","v":0.99999368899999996},{"$f":"VALUE(FIXED(EXP(F$4*-1*'PM2.5 reduction'!F194),9))","v":0.99999265299999995},{"$f":"VALUE(FIXED(EXP(G$4*-1*'PM2.5 reduction'!G194),9))","v":0.99999093500000003},{"$f":"VALUE(FIXED(EXP(H$4*-1*'PM2.5 reduction'!H194),9))","v":0.99998772300000005},{"$f":"VALUE(FIXED(EXP(I$4*-1*'PM2.5 reduction'!I194),9))","v":0.99999582799999998},{"$f":"VALUE(FIXED(EXP(J$4*-1*'PM2.5 reduction'!J194),9))","v":0.99998778099999996},{"$f":"VALUE(FIXED(EXP(K$4*-1*'PM2.5 reduction'!K194),9))","v":0.99998562099999999},{"$f":"VALUE(FIXED(EXP(L$4*-1*'PM2.5 reduction'!L194),9))","v":0.99999376799999995},{"$f":"VALUE(FIXED(EXP(M$4*-1*'PM2.5 reduction'!M194),9))","v":0.99999376799999995},{"$f":"VALUE(FIXED(EXP(N$4*-1*'PM2.5 reduction'!N194),9))","v":0.99997307300000005},{"$f":"VALUE(FIXED(EXP(O$4*-1*'PM2.5 reduction'!O194),9))","v":0.99998703799999999},{"$f":"VALUE(FIXED(EXP(P$4*-1*'PM2.5 reduction'!P194),9))","v":0.99997617500000002},{"$f":"VALUE(FIXED(EXP(Q$4*-1*'PM2.5 reduction'!Q194),9))","v":0.99998790500000001},{"$f":"VALUE(FIXED(EXP(R$4*-1*'PM2.5 reduction'!R194),9))","v":0.99997969799999997},{"$f":"VALUE(FIXED(EXP(S$4*-1*'PM2.5 reduction'!S194),9))","v":0.99997636099999998},{"$f":"VALUE(FIXED(EXP(T$4*-1*'PM2.5 reduction'!T194),9))","v":0.99996170600000001},{"$f":"VALUE(FIXED(EXP(U$4*-1*'PM2.5 reduction'!U194),9))","v":1},{"$f":"VALUE(FIXED(EXP(V$4*-1*'PM2.5 reduction'!V194),9))","v":0.99998169000000003},{"$f":"VALUE(FIXED(EXP(W$4*-1*'PM2.5 reduction'!W194),9))","v":0.99998472400000005},{"$f":"VALUE(FIXED(EXP(X$4*-1*'PM2.5 reduction'!X194),9))","v":0.99998472400000005},{"$f":"VALUE(FIXED(EXP(Y$4*-1*'PM2.5 reduction'!Y194),9))","v":0.99998436099999999},{"$f":"VALUE(FIXED(EXP(Z$4*-1*'PM2.5 reduction'!Z194),9))","v":0.99996410700000005},{"$f":"VALUE(FIXED(EXP(AA$4*-1*'PM2.5 reduction'!AA194),9))","v":0.99997541300000004},{"$f":"VALUE(FIXED(EXP(AB$4*-1*'PM2.5 reduction'!AB194),9))","v":0.99998260100000003},{"$f":"VALUE(FIXED(EXP(AC$4*-1*'PM2.5 reduction'!AC194),9))","v":0.99997274199999997},{"$f":"VALUE(FIXED(EXP(AD$4*-1*'PM2.5 reduction'!AD194),9))","v":0.99999116099999996},{"$f":"VALUE(FIXED(EXP(AE$4*-1*'PM2.5 reduction'!AE194),9))","v":0.99999117800000004},{"$f":"VALUE(FIXED(EXP(AF$4*-1*'PM2.5 reduction'!AF194),9))","v":0.99998680299999998},{"$f":"VALUE(FIXED(EXP(AG$4*-1*'PM2.5 reduction'!AG194),9))","v":0.99999117800000004},{"$f":"VALUE(FIXED(EXP(AH$4*-1*'PM2.5 reduction'!AH194),9))","v":0.99997883099999996},{"$f":"VALUE(FIXED(EXP(AI$4*-1*'PM2.5 reduction'!AI194),9))","v":0.99997157299999995},{"$f":"VALUE(FIXED(EXP(AJ$4*-1*'PM2.5 reduction'!AJ194),9))","v":0.99998406799999995},{"$f":"VALUE(FIXED(EXP(AK$4*-1*'PM2.5 reduction'!AK194),9))","v":0.99999385399999996},{"$f":"VALUE(FIXED(EXP(AL$4*-1*'PM2.5 reduction'!AL194),9))","v":0.99999131200000002},{"$f":"VALUE(FIXED(EXP(AM$4*-1*'PM2.5 reduction'!AM194),9))","v":0.999976961},{"$f":"VALUE(FIXED(EXP(AN$4*-1*'PM2.5 reduction'!AN194),9))","v":0.99999612999999998},{"$f":"VALUE(FIXED(EXP(AO$4*-1*'PM2.5 reduction'!AO194),9))","v":0.99999612999999998},{"$f":"VALUE(FIXED(EXP(AP$4*-1*'PM2.5 reduction'!AP194),9))","v":0.99999218999999995},{"$f":"VALUE(FIXED(EXP(AQ$4*-1*'PM2.5 reduction'!AQ194),9))","v":0.99997955199999999},{"$f":"VALUE(FIXED(EXP(AR$4*-1*'PM2.5 reduction'!AR194),9))","v":0.99997979000000004},{"$f":"VALUE(FIXED(EXP(AS$4*-1*'PM2.5 reduction'!AS194),9))","v":0.99999582799999998},{"$f":"VALUE(FIXED(EXP(AT$4*-1*'PM2.5 reduction'!AT194),9))","v":0.99999685400000005},{"$f":"VALUE(FIXED(EXP(AU$4*-1*'PM2.5 reduction'!AU194),9))","v":0.99999685400000005},{"$f":"VALUE(FIXED(EXP(AV$4*-1*'PM2.5 reduction'!AV194),9))","v":0.99998417299999998},{"$f":"VALUE(FIXED(EXP(AW$4*-1*'PM2.5 reduction'!AW194),9))","v":0.99998029399999999},{"$f":"VALUE(FIXED(EXP(AX$4*-1*'PM2.5 reduction'!AX194),9))","v":0.99998892900000003},{"$f":"VALUE(FIXED(EXP(AY$4*-1*'PM2.5 reduction'!AY194),9))","v":0.99998561100000005},{"$f":"VALUE(FIXED(EXP(AZ$4*-1*'PM2.5 reduction'!AZ194),9))","v":0.999986343},{"$f":"VALUE(FIXED(EXP(BA$4*-1*'PM2.5 reduction'!BA194),9))","v":0.99998282699999996},{"$f":"VALUE(FIXED(EXP(BB$4*-1*'PM2.5 reduction'!BB194),9))","v":0.99998256399999996},{"$f":"VALUE(FIXED(EXP(BC$4*-1*'PM2.5 reduction'!BC194),9))","v":1}]
[null,"Male 10-15",{"$f":"VALUE(FIXED(EXP(C$4*-1*'PM2.5 reduction'!C195),9))","v":0.999968262},{"$f":"VALUE(FIXED(EXP(D$4*-1*'PM2.5 reduction'!D195),9))","v":0.99998299999999996},{"$f":"VALUE(FIXED(EXP(E$4*-1*'PM2.5 reduction'!E195),9))","v":0.99999387399999995},{"$f":"VALUE(FIXED(EXP(F$4*-1*'PM2.5 reduction'!F195),9))","v":0.99999271099999998},{"$f":"VALUE(FIXED(EXP(G$4*-1*'PM2.5 reduction'!G195),9))","v":0.99999090599999996},{"$f":"VALUE(FIXED(EXP(H$4*-1*'PM2.5 reduction'!H195),9))","v":0.999987768},{"$f":"VALUE(FIXED(EXP(I$4*-1*'PM2.5 reduction'!I195),9))","v":0.99999565300000004},{"$f":"VALUE(FIXED(EXP(J$4*-1*'PM2.5 reduction'!J195),9))","v":0.99998912200000001},{"$f":"VALUE(FIXED(EXP(K$4*-1*'PM2.5 reduction'!K195),9))","v":0.99998759599999998},{"$f":"VALUE(FIXED(EXP(L$4*-1*'PM2.5 reduction'!L195),9))","v":0.99999396100000004},{"$f":"VALUE(FIXED(EXP(M$4*-1*'PM2.5 reduction'!M195),9))","v":0.99999396100000004},{"$f":"VALUE(FIXED(EXP(N$4*-1*'PM2.5 reduction'!N195),9))","v":0.99997329300000004},{"$f":"VALUE(FIXED(EXP(O$4*-1*'PM2.5 reduction'!O195),9))","v":0.99998592799999997},{"$f":"VALUE(FIXED(EXP(P$4*-1*'PM2.5 reduction'!P195),9))","v":0.99997558099999995},{"$f":"VALUE(FIXED(EXP(Q$4*-1*'PM2.5 reduction'!Q195),9))","v":0.99998828399999995},{"$f":"VALUE(FIXED(EXP(R$4*-1*'PM2.5 reduction'!R195),9))","v":0.99997949200000003},{"$f":"VALUE(FIXED(EXP(S$4*-1*'PM2.5 reduction'!S195),9))","v":0.99997802999999996},{"$f":"VALUE(FIXED(EXP(T$4*-1*'PM2.5 reduction'!T195),9))","v":0.99996299700000002},{"$f":"VALUE(FIXED(EXP(U$4*-1*'PM2.5 reduction'!U195),9))","v":1},{"$f":"VALUE(FIXED(EXP(V$4*-1*'PM2.5 reduction'!V195),9))","v":0.999980706},{"$f":"VALUE(FIXED(EXP(W$4*-1*'PM2.5 reduction'!W195),9))","v":0.99998489599999996},{"$f":"VALUE(FIXED(EXP(X$4*-1*'PM2.5 reduction'!X195),9))","v":0.99998489599999996},{"$f":"VALUE(FIXED(EXP(Y$4*-1*'PM2.5 reduction'!Y195),9))","v":0.99998487999999996},{"$f":"VALUE(FIXED(EXP(Z$4*-1*'PM2.5 reduction'!Z195),9))","v":0.99996495399999996},{"$f":"VALUE(FIXED(EXP(AA$4*-1*'PM2.5 reduction'!AA195),9))","v":0.99997596099999997},{"$f":"VALUE(FIXED(EXP(AB$4*-1*'PM2.5 reduction'!AB195),9))","v":0.99998394700000004},{"$f":"VALUE(FIXED(EXP(AC$4*-1*'PM2.5 reduction'!AC195),9))","v":0.99997354999999999},{"$f":"VALUE(FIXED(EXP(AD$4*-1*'PM2.5 reduction'!AD195),9))","v":0.99999095699999996},{"$f":"VALUE(FIXED(EXP(AE$4*-1*'PM2.5 reduction'!AE195),9))","v":0.99999096399999998},{"$f":"VALUE(FIXED(EXP(AF$4*-1*'PM2.5 reduction'!AF195),9))","v":0.99998691699999998},{"$f":"VALUE(FIXED(EXP(AG$4*-1*'PM2.5 reduction'!AG195),9))","v":0.99999096399999998},{"$f":"VALUE(FIXED(EXP(AH$4*-1*'PM2.5 reduction'!AH195),9))","v":0.99997897999999996},{"$f":"VALUE(FIXED(EXP(AI$4*-1*'PM2.5 reduction'!AI195),9))","v":0.99997324300000001},{"$f":"VALUE(FIXED(EXP(AJ$4*-1*'PM2.5 reduction'!AJ195),9))","v":0.99998376300000003},{"$f":"VALUE(FIXED(EXP(AK$4*-1*'PM2.5 reduction'!AK195),9))","v":0.99999216499999999},{"$f":"VALUE(FIXED(EXP(AL$4*-1*'PM2.5 reduction'!AL195),9))","v":0.99999126400000005},{"$f":"VALUE(FIXED(EXP(AM$4*-1*'PM2.5 reduction'!AM195),9))","v":0.999977687},{"$f":"VALUE(FIXED(EXP(AN$4*-1*'PM2.5 reduction'!AN195),9))","v":0.99999578700000002},{"$f":"VALUE(FIXED(EXP(AO$4*-1*'PM2.5 reduction'!AO195),9))","v":0.99999578700000002},{"$f":"VALUE(FIXED(EXP(AP$4*-1*'PM2.5 reduction'!AP195),9))","v":0.99999317099999996},{"$f":"VALUE(FIXED(EXP(AQ$4*-1*'PM2.5 reduction'!AQ195),9))","v":0.99997946000000004},{"$f":"VALUE(FIXED(EXP(AR$4*-1*'PM2.5 reduction'!AR195),9))","v":0.99998074100000001},{"$f":"VALUE(FIXED(EXP(AS$4*-1*'PM2.5 reduction'!AS195),9))","v":0.99999565300000004},{"$f":"VALUE(FIXED(EXP(AT$4*-1*'PM2.5 reduction'!AT195),9))","v":0.99999713899999998},{"$f":"VALUE(FIXED(EXP(AU$4*-1*'PM2.5 reduction'!AU195),9))","v":0.99999713899999998},{"$f":"VALUE(FIXED(EXP(AV$4*-1*'PM2.5 reduction'!AV195),9))","v":0.99998458099999998},{"$f":"VALUE(FIXED(EXP(AW$4*-1*'PM2.5 reduction'!AW195),9))","v":0.99998002200000002},{"$f":"VALUE(FIXED(EXP(AX$4*-1*'PM2.5 reduction'!AX195),9))","v":0.99998973199999996},{"$f":"VALUE(FIXED(EXP(AY$4*-1*'PM2.5 reduction'!AY195),9))","v":0.999986123},{"$f":"VALUE(FIXED(EXP(AZ$4*-1*'PM2.5 reduction'!AZ195),9))","v":0.999987081},{"$f":"VALUE(FIXED(EXP(BA$4*-1*'PM2.5 reduction'!BA195),9))","v":0.99998308899999999},{"$f":"VALUE(FIXED(EXP(BB$4*-1*'PM2.5 reduction'!BB195),9))","v":0.999983065},{"$f":"VALUE(FIXED(EXP(BC$4*-1*'PM2.5 reduction'!BC195),9))","v":1}]
[null,"Male 16-19",{"$f":"VALUE(FIXED(EXP(C$4*-1*'PM2.5 reduction'!C196),9))","v":0.99995359399999995},{"$f":"VALUE(FIXED(EXP(D$4*-1*'PM2.5 reduction'!D196),9))","v":0.99997015300000003},{"$f":"VALUE(FIXED(EXP(E$4*-1*'PM2.5 reduction'!E196),9))","v":0.99999338299999996},{"$f":"VALUE(FIXED(EXP(F$4*-1*'PM2.5 reduction'!F196),9))","v":0.99999292399999995},{"$f":"VALUE(FIXED(EXP(G$4*-1*'PM2.5 reduction'!G196),9))","v":0.99999090800000001},{"$f":"VALUE(FIXED(EXP(H$4*-1*'PM2.5 reduction'!H196),9))","v":0.99998751500000005},{"$f":"VALUE(FIXED(EXP(I$4*-1*'PM2.5 reduction'!I196),9))","v":0.99999548999999999},{"$f":"VALUE(FIXED(EXP(J$4*-1*'PM2.5 reduction'!J196),9))","v":0.99998736099999996},{"$f":"VALUE(FIXED(EXP(K$4*-1*'PM2.5 reduction'!K196),9))","v":0.99998620400000005},{"$f":"VALUE(FIXED(EXP(L$4*-1*'PM2.5 reduction'!L196),9))","v":0.99999419300000003},{"$f":"VALUE(FIXED(EXP(M$4*-1*'PM2.5 reduction'!M196),9))","v":0.99999419300000003},{"$f":"VALUE(FIXED(EXP(N$4*-1*'PM2.5 reduction'!N196),9))","v":0.99997381399999996},{"$f":"VALUE(FIXED(EXP(O$4*-1*'PM2.5 reduction'!O196),9))","v":0.99998572200000002},{"$f":"VALUE(FIXED(EXP(P$4*-1*'PM2.5 reduction'!P196),9))","v":0.99997589899999995},{"$f":"VALUE(FIXED(EXP(Q$4*-1*'PM2.5 reduction'!Q196),9))","v":0.99998735800000005},{"$f":"VALUE(FIXED(EXP(R$4*-1*'PM2.5 reduction'!R196),9))","v":0.99997991500000005},{"$f":"VALUE(FIXED(EXP(S$4*-1*'PM2.5 reduction'!S196),9))","v":0.99997591200000002},{"$f":"VALUE(FIXED(EXP(T$4*-1*'PM2.5 reduction'!T196),9))","v":0.99996002900000003},{"$f":"VALUE(FIXED(EXP(U$4*-1*'PM2.5 reduction'!U196),9))","v":1},{"$f":"VALUE(FIXED(EXP(V$4*-1*'PM2.5 reduction'!V196),9))","v":0.99998109300000004},{"$f":"VALUE(FIXED(EXP(W$4*-1*'PM2.5 reduction'!W196),9))","v":0.99998553899999998},{"$f":"VALUE(FIXED(EXP(X$4*-1*'PM2.5 reduction'!X196),9))","v":0.99998553899999998},{"$f":"VALUE(FIXED(EXP(Y$4*-1*'PM2.5 reduction'!Y196),9))","v":0.99998388299999996},{"$f":"VALUE(FIXED(EXP(Z$4*-1*'PM2.5 reduction'!Z196),9))","v":0.99996122499999995},{"$f":"VALUE(FIXED(EXP(AA$4*-1*'PM2.5 reduction'!AA196),9))","v":0.99997461300000001},{"$f":"VALUE(FIXED(EXP(AB$4*-1*'PM2.5 reduction'!AB196),9))","v":0.99997147099999995},{"$f":"VALUE(FIXED(EXP(AC$4*-1*'PM2.5 reduction'!AC196),9))","v":0.999971524},{"$f":"VALUE(FIXED(EXP(AD$4*-1*'PM2.5 reduction'!AD196),9))","v":0.99999118899999995},{"$f":"VALUE(FIXED(EXP(AE$4*-1*'PM2.5 reduction'!AE196),9))","v":0.99999121499999999},{"$f":"VALUE(FIXED(EXP(AF$4*-1*'PM2.5 reduction'!AF196),9))","v":0.99998569100000001},{"$f":"VALUE(FIXED(EXP(AG$4*-1*'PM2.5 reduction'!AG196),9))","v":0.99999121499999999},{"$f":"VALUE(FIXED(EXP(AH$4*-1*'PM2.5 reduction'!AH196),9))","v":0.99997889799999995},{"$f":"VALUE(FIXED(EXP(AI$4*-1*'PM2.5 reduction'!AI196),9))","v":0.99997006200000005},{"$f":"VALUE(FIXED(EXP(AJ$4*-1*'PM2.5 reduction'!AJ196),9))","v":0.99998441900000001},{"$f":"VALUE(FIXED(EXP(AK$4*-1*'PM2.5 reduction'!AK196),9))","v":0.99999117900000001},{"$f":"VALUE(FIXED(EXP(AL$4*-1*'PM2.5 reduction'!AL196),9))","v":0.99999113900000003},{"$f":"VALUE(FIXED(EXP(AM$4*-1*'PM2.5 reduction'!AM196),9))","v":0.99997750600000002},{"$f":"VALUE(FIXED(EXP(AN$4*-1*'PM2.5 reduction'!AN196),9))","v":0.99999551099999995},{"$f":"VALUE(FIXED(EXP(AO$4*-1*'PM2.5 reduction'!AO196),9))","v":0.99999551099999995},{"$f":"VALUE(FIXED(EXP(AP$4*-1*'PM2.5 reduction'!AP196),9))","v":0.99999297499999995},{"$f":"VALUE(FIXED(EXP(AQ$4*-1*'PM2.5 reduction'!AQ196),9))","v":0.99997927799999997},{"$f":"VALUE(FIXED(EXP(AR$4*-1*'PM2.5 reduction'!AR196),9))","v":0.99997837499999997},{"$f":"VALUE(FIXED(EXP(AS$4*-1*'PM2.5 reduction'!AS196),9))","v":0.99999548999999999},{"$f":"VALUE(FIXED(EXP(AT$4*-1*'PM2.5 reduction'!AT196),9))","v":0.99999641800000005},{"$f":"VALUE(FIXED(EXP(AU$4*-1*'PM2.5 reduction'!AU196),9))","v":0.99999641800000005},{"$f":"VALUE(FIXED(EXP(AV$4*-1*'PM2.5 reduction'!AV196),9))","v":0.99998396199999995},{"$f":"VALUE(FIXED(EXP(AW$4*-1*'PM2.5 reduction'!AW196),9))","v":0.99998004200000001},{"$f":"VALUE(FIXED(EXP(AX$4*-1*'PM2.5 reduction'!AX196),9))","v":0.99998787600000005},{"$f":"VALUE(FIXED(EXP(AY$4*-1*'PM2.5 reduction'!AY196),9))","v":0.99998617499999998},{"$f":"VALUE(FIXED(EXP(AZ$4*-1*'PM2.5 reduction'!AZ196),9))","v":0.99998657199999996},{"$f":"VALUE(FIXED(EXP(BA$4*-1*'PM2.5 reduction'!BA196),9))","v":0.99998323200000006},{"$f":"VALUE(FIXED(EXP(BB$4*-1*'PM2.5 reduction'!BB196),9))","v":0.99998389600000004},{"$f":"VALUE(FIXED(EXP(BC$4*-1*'PM2.5 reduction'!BC196),9))","v":1}]
[null,"Male 20-24",{"$f":"VALUE(FIXED(EXP(C$4*-1*'PM2.5 reduction'!C197),9))","v":0.99995205899999995},{"$f":"VALUE(FIXED(EXP(D$4*-1*'PM2.5 reduction'!D197),9))","v":0.99996316799999996},{"$f":"VALUE(FIXED(EXP(E$4*-1*'PM2.5 reduction'!E197),9))","v":0.99999333999999995},{"$f":"VALUE(FIXED(EXP(F$4*-1*'PM2.5 reduction'!F197),9))","v":0.99999276999999998},{"$f":"VALUE(FIXED(EXP(G$4*-1*'PM2.5 reduction'!G197),9))","v":0.99999091799999995},{"$f":"VALUE(FIXED(EXP(H$4*-1*'PM2.5 reduction'!H197),9))","v":0.99998753100000004},{"$f":"VALUE(FIXED(EXP(I$4*-1*'PM2.5 reduction'!I197),9))","v":0.99999564699999999},{"$f":"VALUE(FIXED(EXP(J$4*-1*'PM2.5 reduction'!J197),9))","v":0.99998326800000004},{"$f":"VALUE(FIXED(EXP(K$4*-1*'PM2.5 reduction'!K197),9))","v":0.999983866},{"$f":"VALUE(FIXED(EXP(L$4*-1*'PM2.5 reduction'!L197),9))","v":0.99999401099999996},{"$f":"VALUE(FIXED(EXP(M$4*-1*'PM2.5 reduction'!M197),9))","v":0.99999401099999996},{"$f":"VALUE(FIXED(EXP(N$4*-1*'PM2.5 reduction'!N197),9))","v":0.99997505499999995},{"$f":"VALUE(FIXED(EXP(O$4*-1*'PM2.5 reduction'!O197),9))","v":0.99998504700000002},{"$f":"VALUE(FIXED(EXP(P$4*-1*'PM2.5 reduction'!P197),9))","v":0.99997672000000004},{"$f":"VALUE(FIXED(EXP(Q$4*-1*'PM2.5 reduction'!Q197),9))","v":0.99998557899999996},{"$f":"VALUE(FIXED(EXP(R$4*-1*'PM2.5 reduction'!R197),9))","v":0.999978755},{"$f":"VALUE(FIXED(EXP(S$4*-1*'PM2.5 reduction'!S197),9))","v":0.99996460899999995},{"$f":"VALUE(FIXED(EXP(T$4*-1*'PM2.5 reduction'!T197),9))","v":0.99995056000000004},{"$f":"VALUE(FIXED(EXP(U$4*-1*'PM2.5 reduction'!U197),9))","v":1},{"$f":"VALUE(FIXED(EXP(V$4*-1*'PM2.5 reduction'!V197),9))","v":0.99998031200000004},{"$f":"VALUE(FIXED(EXP(W$4*-1*'PM2.5 reduction'!W197),9))","v":0.99998467499999999},{"$f":"VALUE(FIXED(EXP(X$4*-1*'PM2.5 reduction'!X197),9))","v":0.99998467499999999},{"$f":"VALUE(FIXED(EXP(Y$4*-1*'PM2.5 reduction'!Y197),9))","v":0.99998181500000005},{"$f":"VALUE(FIXED(EXP(Z$4*-1*'PM2.5 reduction'!Z197),9))","v":0.99995368100000004},{"$f":"VALUE(FIXED(EXP(AA$4*-1*'PM2.5 reduction'!AA197),9))","v":0.99996716900000004},{"$f":"VALUE(FIXED(EXP(AB$4*-1*'PM2.5 reduction'!AB197),9))","v":0.99996434099999998},{"$f":"VALUE(FIXED(EXP(AC$4*-1*'PM2.5 reduction'!AC197),9))","v":0.99996242999999996},{"$f":"VALUE(FIXED(EXP(AD$4*-1*'PM2.5 reduction'!AD197),9))","v":0.99999049399999995},{"$f":"VALUE(FIXED(EXP(AE$4*-1*'PM2.5 reduction'!AE197),9))","v":0.99999046700000005},{"$f":"VALUE(FIXED(EXP(AF$4*-1*'PM2.5 reduction'!AF197),9))","v":0.99998499699999999},{"$f":"VALUE(FIXED(EXP(AG$4*-1*'PM2.5 reduction'!AG197),9))","v":0.99999046700000005},{"$f":"VALUE(FIXED(EXP(AH$4*-1*'PM2.5 reduction'!AH197),9))","v":0.99997878600000001},{"$f":"VALUE(FIXED(EXP(AI$4*-1*'PM2.5 reduction'!AI197),9))","v":0.99995916100000004},{"$f":"VALUE(FIXED(EXP(AJ$4*-1*'PM2.5 reduction'!AJ197),9))","v":0.99998455500000005},{"$f":"VALUE(FIXED(EXP(AK$4*-1*'PM2.5 reduction'!AK197),9))","v":0.99999068300000005},{"$f":"VALUE(FIXED(EXP(AL$4*-1*'PM2.5 reduction'!AL197),9))","v":0.99999087600000003},{"$f":"VALUE(FIXED(EXP(AM$4*-1*'PM2.5 reduction'!AM197),9))","v":0.999977381},{"$f":"VALUE(FIXED(EXP(AN$4*-1*'PM2.5 reduction'!AN197),9))","v":0.99999512300000004},{"$f":"VALUE(FIXED(EXP(AO$4*-1*'PM2.5 reduction'!AO197),9))","v":0.99999512300000004},{"$f":"VALUE(FIXED(EXP(AP$4*-1*'PM2.5 reduction'!AP197),9))","v":0.99999243800000004},{"$f":"VALUE(FIXED(EXP(AQ$4*-1*'PM2.5 reduction'!AQ197),9))","v":0.99997925200000004},{"$f":"VALUE(FIXED(EXP(AR$4*-1*'PM2.5 reduction'!AR197),9))","v":0.99997068499999997},{"$f":"VALUE(FIXED(EXP(AS$4*-1*'PM2.5 reduction'!AS197),9))","v":0.99999564699999999},{"$f":"VALUE(FIXED(EXP(AT$4*-1*'PM2.5 reduction'!AT197),9))","v":0.99999706099999996},{"$f":"VALUE(FIXED(EXP(AU$4*-1*'PM2.5 reduction'!AU197),9))","v":0.99999706099999996},{"$f":"VALUE(FIXED(EXP(AV$4*-1*'PM2.5 reduction'!AV197),9))","v":0.99998479200000001},{"$f":"VALUE(FIXED(EXP(AW$4*-1*'PM2.5 reduction'!AW197),9))","v":0.99998007700000002},{"$f":"VALUE(FIXED(EXP(AX$4*-1*'PM2.5 reduction'!AX197),9))","v":0.99998314499999996},{"$f":"VALUE(FIXED(EXP(AY$4*-1*'PM2.5 reduction'!AY197),9))","v":0.99998425300000005},{"$f":"VALUE(FIXED(EXP(AZ$4*-1*'PM2.5 reduction'!AZ197),9))","v":0.99998407499999997},{"$f":"VALUE(FIXED(EXP(BA$4*-1*'PM2.5 reduction'!BA197),9))","v":0.99998309299999999},{"$f":"VALUE(FIXED(EXP(BB$4*-1*'PM2.5 reduction'!BB197),9))","v":0.99998299599999996},{"$f":"VALUE(FIXED(EXP(BC$4*-1*'PM2.5 reduction'!BC197),9))","v":1}]
[null,"Male 25-29",{"$f":"VALUE(FIXED(EXP(C$4*-1*'PM2.5 reduction'!C198),9))","v":0.99995689399999999},{"$f":"VALUE(FIXED(EXP(D$4*-1*'PM2.5 reduction'!D198),9))","v":0.99996616000000005},{"$f":"VALUE(FIXED(EXP(E$4*-1*'PM2.5 reduction'!E198),9))","v":0.99999344199999995},{"$f":"VALUE(FIXED(EXP(F$4*-1*'PM2.5 reduction'!F198),9))","v":0.99999296500000001},{"$f":"VALUE(FIXED(EXP(G$4*-1*'PM2.5 reduction'!G198),9))","v":0.99999104699999997},{"$f":"VALUE(FIXED(EXP(H$4*-1*'PM2.5 reduction'!H198),9))","v":0.99998697999999997},{"$f":"VALUE(FIXED(EXP(I$4*-1*'PM2.5 reduction'!I198),9))","v":0.99999572699999995},{"$f":"VALUE(FIXED(EXP(J$4*-1*'PM2.5 reduction'!J198),9))","v":0.99998382100000005},{"$f":"VALUE(FIXED(EXP(K$4*-1*'PM2.5 reduction'!K198),9))","v":0.99998272200000005},{"$f":"VALUE(FIXED(EXP(L$4*-1*'PM2.5 reduction'!L198),9))","v":0.99999289700000005},{"$f":"VALUE(FIXED(EXP(M$4*-1*'PM2.5 reduction'!M198),9))","v":0.99999289700000005},{"$f":"VALUE(FIXED(EXP(N$4*-1*'PM2.5 reduction'!N198),9))","v":0.99997422400000002},{"$f":"VALUE(FIXED(EXP(O$4*-1*'PM2.5 reduction'!O198),9))","v":0.99998519200000002},{"$f":"VALUE(FIXED(EXP(P$4*-1*'PM2.5 reduction'!P198),9))","v":0.99997676300000005},{"$f":"VALUE(FIXED(EXP(Q$4*-1*'PM2.5 reduction'!Q198),9))","v":0.99998588899999996},{"$f":"VALUE(FIXED(EXP(R$4*-1*'PM2.5 reduction'!R198),9))","v":0.99997823399999997},{"$f":"VALUE(FIXED(EXP(S$4*-1*'PM2.5 reduction'!S198),9))","v":0.99996314900000005},{"$f":"VALUE(FIXED(EXP(T$4*-1*'PM2.5 reduction'!T198),9))","v":0.99995367599999996},{"$f":"VALUE(FIXED(EXP(U$4*-1*'PM2.5 reduction'!U198),9))","v":1},{"$f":"VALUE(FIXED(EXP(V$4*-1*'PM2.5 reduction'!V198),9))","v":0.99998060300000002},{"$f":"VALUE(FIXED(EXP(W$4*-1*'PM2.5 reduction'!W198),9))","v":0.99998458999999995},{"$f":"VALUE(FIXED(EXP(X$4*-1*'PM2.5 reduction'!X198),9))","v":0.99998458999999995},{"$f":"VALUE(FIXED(EXP(Y$4*-1*'PM2.5 reduction'!Y198),9))","v":0.99998211199999998},{"$f":"VALUE(FIXED(EXP(Z$4*-1*'PM2.5 reduction'!Z198),9))","v":0.99995587799999996},{"$f":"VALUE(FIXED(EXP(AA$4*-1*'PM2.5 reduction'!AA198),9))","v":0.99996780299999999},{"$f":"VALUE(FIXED(EXP(AB$4*-1*'PM2.5 reduction'!AB198),9))","v":0.99996733199999999},{"$f":"VALUE(FIXED(EXP(AC$4*-1*'PM2.5 reduction'!AC198),9))","v":0.99996364999999998},{"$f":"VALUE(FIXED(EXP(AD$4*-1*'PM2.5 reduction'!AD198),9))","v":0.99998929299999995},{"$f":"VALUE(FIXED(EXP(AE$4*-1*'PM2.5 reduction'!AE198),9))","v":0.99998923900000003},{"$f":"VALUE(FIXED(EXP(AF$4*-1*'PM2.5 reduction'!AF198),9))","v":0.99998451799999999},{"$f":"VALUE(FIXED(EXP(AG$4*-1*'PM2.5 reduction'!AG198),9))","v":0.99998923900000003},{"$f":"VALUE(FIXED(EXP(AH$4*-1*'PM2.5 reduction'!AH198),9))","v":0.99997850799999999},{"$f":"VALUE(FIXED(EXP(AI$4*-1*'PM2.5 reduction'!AI198),9))","v":0.99995884099999999},{"$f":"VALUE(FIXED(EXP(AJ$4*-1*'PM2.5 reduction'!AJ198),9))","v":0.99998539799999997},{"$f":"VALUE(FIXED(EXP(AK$4*-1*'PM2.5 reduction'!AK198),9))","v":0.99999106500000001},{"$f":"VALUE(FIXED(EXP(AL$4*-1*'PM2.5 reduction'!AL198),9))","v":0.999990885},{"$f":"VALUE(FIXED(EXP(AM$4*-1*'PM2.5 reduction'!AM198),9))","v":0.99997678599999995},{"$f":"VALUE(FIXED(EXP(AN$4*-1*'PM2.5 reduction'!AN198),9))","v":0.99999507499999996},{"$f":"VALUE(FIXED(EXP(AO$4*-1*'PM2.5 reduction'!AO198),9))","v":0.99999507499999996},{"$f":"VALUE(FIXED(EXP(AP$4*-1*'PM2.5 reduction'!AP198),9))","v":0.99999102399999995},{"$f":"VALUE(FIXED(EXP(AQ$4*-1*'PM2.5 reduction'!AQ198),9))","v":0.99997842100000001},{"$f":"VALUE(FIXED(EXP(AR$4*-1*'PM2.5 reduction'!AR198),9))","v":0.99997014900000003},{"$f":"VALUE(FIXED(EXP(AS$4*-1*'PM2.5 reduction'!AS198),9))","v":0.99999572699999995},{"$f":"VALUE(FIXED(EXP(AT$4*-1*'PM2.5 reduction'!AT198),9))","v":0.99999630500000003},{"$f":"VALUE(FIXED(EXP(AU$4*-1*'PM2.5 reduction'!AU198),9))","v":0.99999630500000003},{"$f":"VALUE(FIXED(EXP(AV$4*-1*'PM2.5 reduction'!AV198),9))","v":0.99998459500000003},{"$f":"VALUE(FIXED(EXP(AW$4*-1*'PM2.5 reduction'!AW198),9))","v":0.99997993699999999},{"$f":"VALUE(FIXED(EXP(AX$4*-1*'PM2.5 reduction'!AX198),9))","v":0.99998409799999999},{"$f":"VALUE(FIXED(EXP(AY$4*-1*'PM2.5 reduction'!AY198),9))","v":0.99998434300000005},{"$f":"VALUE(FIXED(EXP(AZ$4*-1*'PM2.5 reduction'!AZ198),9))","v":0.99998422600000003},{"$f":"VALUE(FIXED(EXP(BA$4*-1*'PM2.5 reduction'!BA198),9))","v":0.99998322399999995},{"$f":"VALUE(FIXED(EXP(BB$4*-1*'PM2.5 reduction'!BB198),9))","v":0.99998258399999995},{"$f":"VALUE(FIXED(EXP(BC$4*-1*'PM2.5 reduction'!BC198),9))","v":1}]
[null,"Male 30-34",{"$f":"VALUE(FIXED(EXP(C$4*-1*'PM2.5 reduction'!C199),9))","v":0.99995984999999998},{"$f":"VALUE(FIXED(EXP(D$4*-1*'PM2.5 reduction'!D199),9))","v":0.99997054399999996},{"$f":"VALUE(FIXED(EXP(E$4*-1*'PM2.5 reduction'!E199),9))","v":0.99999350600000003},{"$f":"VALUE(FIXED(EXP(F$4*-1*'PM2.5 reduction'!F199),9))","v":0.99999260000000001},{"$f":"VALUE(FIXED(EXP(G$4*-1*'PM2.5 reduction'!G199),9))","v":0.99999101400000001},{"$f":"VALUE(FIXED(EXP(H$4*-1*'PM2.5 reduction'!H199),9))","v":0.99998685499999995},{"$f":"VALUE(FIXED(EXP(I$4*-1*'PM2.5 reduction'!I199),9))","v":0.99999532700000004},{"$f":"VALUE(FIXED(EXP(J$4*-1*'PM2.5 reduction'!J199),9))","v":0.99998461599999999},{"$f":"VALUE(FIXED(EXP(K$4*-1*'PM2.5 reduction'!K199),9))","v":0.99998470399999995},{"$f":"VALUE(FIXED(EXP(L$4*-1*'PM2.5 reduction'!L199),9))","v":0.99999302199999995},{"$f":"VALUE(FIXED(EXP(M$4*-1*'PM2.5 reduction'!M199),9))","v":0.99999302199999995},{"$f":"VALUE(FIXED(EXP(N$4*-1*'PM2.5 reduction'!N199),9))","v":0.99997335799999998},{"$f":"VALUE(FIXED(EXP(O$4*-1*'PM2.5 reduction'!O199),9))","v":0.99998514199999999},{"$f":"VALUE(FIXED(EXP(P$4*-1*'PM2.5 reduction'!P199),9))","v":0.99997617800000005},{"$f":"VALUE(FIXED(EXP(Q$4*-1*'PM2.5 reduction'!Q199),9))","v":0.999986445},{"$f":"VALUE(FIXED(EXP(R$4*-1*'PM2.5 reduction'!R199),9))","v":0.99997922100000003},{"$f":"VALUE(FIXED(EXP(S$4*-1*'PM2.5 reduction'!S199),9))","v":0.99996463199999996},{"$f":"VALUE(FIXED(EXP(T$4*-1*'PM2.5 reduction'!T199),9))","v":0.99995429899999999},{"$f":"VALUE(FIXED(EXP(U$4*-1*'PM2.5 reduction'!U199),9))","v":1},{"$f":"VALUE(FIXED(EXP(V$4*-1*'PM2.5 reduction'!V199),9))","v":0.99997939199999997},{"$f":"VALUE(FIXED(EXP(W$4*-1*'PM2.5 reduction'!W199),9))","v":0.99998475200000003},{"$f":"VALUE(FIXED(EXP(X$4*-1*'PM2.5 reduction'!X199),9))","v":0.99998475200000003},{"$f":"VALUE(FIXED(EXP(Y$4*-1*'PM2.5 reduction'!Y199),9))","v":0.99998169100000001},{"$f":"VALUE(FIXED(EXP(Z$4*-1*'PM2.5 reduction'!Z199),9))","v":0.99995870499999995},{"$f":"VALUE(FIXED(EXP(AA$4*-1*'PM2.5 reduction'!AA199),9))","v":0.99996963400000005},{"$f":"VALUE(FIXED(EXP(AB$4*-1*'PM2.5 reduction'!AB199),9))","v":0.99997187600000004},{"$f":"VALUE(FIXED(EXP(AC$4*-1*'PM2.5 reduction'!AC199),9))","v":0.99996495699999999},{"$f":"VALUE(FIXED(EXP(AD$4*-1*'PM2.5 reduction'!AD199),9))","v":0.99999023899999995},{"$f":"VALUE(FIXED(EXP(AE$4*-1*'PM2.5 reduction'!AE199),9))","v":0.99999021399999999},{"$f":"VALUE(FIXED(EXP(AF$4*-1*'PM2.5 reduction'!AF199),9))","v":0.99998229000000005},{"$f":"VALUE(FIXED(EXP(AG$4*-1*'PM2.5 reduction'!AG199),9))","v":0.99999021399999999},{"$f":"VALUE(FIXED(EXP(AH$4*-1*'PM2.5 reduction'!AH199),9))","v":0.99997860599999999},{"$f":"VALUE(FIXED(EXP(AI$4*-1*'PM2.5 reduction'!AI199),9))","v":0.99996011799999995},{"$f":"VALUE(FIXED(EXP(AJ$4*-1*'PM2.5 reduction'!AJ199),9))","v":0.99998344699999997},{"$f":"VALUE(FIXED(EXP(AK$4*-1*'PM2.5 reduction'!AK199),9))","v":0.99999194199999997},{"$f":"VALUE(FIXED(EXP(AL$4*-1*'PM2.5 reduction'!AL199),9))","v":0.99999102500000003},{"$f":"VALUE(FIXED(EXP(AM$4*-1*'PM2.5 reduction'!AM199),9))","v":0.99997697200000002},{"$f":"VALUE(FIXED(EXP(AN$4*-1*'PM2.5 reduction'!AN199),9))","v":0.99999490300000005},{"$f":"VALUE(FIXED(EXP(AO$4*-1*'PM2.5 reduction'!AO199),9))","v":0.99999490300000005},{"$f":"VALUE(FIXED(EXP(AP$4*-1*'PM2.5 reduction'!AP199),9))","v":0.99999138700000001},{"$f":"VALUE(FIXED(EXP(AQ$4*-1*'PM2.5 reduction'!AQ199),9))","v":0.99997824499999999},{"$f":"VALUE(FIXED(EXP(AR$4*-1*'PM2.5 reduction'!AR199),9))","v":0.99997197199999999},{"$f":"VALUE(FIXED(EXP(AS$4*-1*'PM2.5 reduction'!AS199),9))","v":0.99999532700000004},{"$f":"VALUE(FIXED(EXP(AT$4*-1*'PM2.5 reduction'!AT199),9))","v":0.99999629800000001},{"$f":"VALUE(FIXED(EXP(AU$4*-1*'PM2.5 reduction'!AU199),9))","v":0.99999629800000001},{"$f":"VALUE(FIXED(EXP(AV$4*-1*'PM2.5 reduction'!AV199),9))","v":0.999984659},{"$f":"VALUE(FIXED(EXP(AW$4*-1*'PM2.5 reduction'!AW199),9))","v":0.99997994000000001},{"$f":"VALUE(FIXED(EXP(AX$4*-1*'PM2.5 reduction'!AX199),9))","v":0.99998457500000004},{"$f":"VALUE(FIXED(EXP(AY$4*-1*'PM2.5 reduction'!AY199),9))","v":0.99998526499999996},{"$f":"VALUE(FIXED(EXP(AZ$4*-1*'PM2.5 reduction'!AZ199),9))","v":0.99998559799999998},{"$f":"VALUE(FIXED(EXP(BA$4*-1*'PM2.5 reduction'!BA199),9))","v":0.99998137499999995},{"$f":"VALUE(FIXED(EXP(BB$4*-1*'PM2.5 reduction'!BB199),9))","v":0.99998206000000001},{"$f":"VALUE(FIXED(EXP(BC$4*-1*'PM2.5 reduction'!BC199),9))","v":1}]
[null,"Male 35-39",{"$f":"VALUE(FIXED(EXP(C$4*-1*'PM2.5 reduction'!C200),9))","v":0.99996296100000004},{"$f":"VALUE(FIXED(EXP(D$4*-1*'PM2.5 reduction'!D200),9))","v":0.99997505900000005},{"$f":"VALUE(FIXED(EXP(E$4*-1*'PM2.5 reduction'!E200),9))","v":0.99999340299999995},{"$f":"VALUE(FIXED(EXP(F$4*-1*'PM2.5 reduction'!F200),9))","v":0.99999316299999996},{"$f":"VALUE(FIXED(EXP(G$4*-1*'PM2.5 reduction'!G200),9))","v":0.99999100900000004},{"$f":"VALUE(FIXED(EXP(H$4*-1*'PM2.5 reduction'!H200),9))","v":0.99998707399999998},{"$f":"VALUE(FIXED(EXP(I$4*-1*'PM2.5 reduction'!I200),9))","v":0.99999525099999997},{"$f":"VALUE(FIXED(EXP(J$4*-1*'PM2.5 reduction'!J200),9))","v":0.99998497099999994},{"$f":"VALUE(FIXED(EXP(K$4*-1*'PM2.5 reduction'!K200),9))","v":0.99998387700000002},{"$f":"VALUE(FIXED(EXP(L$4*-1*'PM2.5 reduction'!L200),9))","v":0.99999387699999998},{"$f":"VALUE(FIXED(EXP(M$4*-1*'PM2.5 reduction'!M200),9))","v":0.99999387699999998},{"$f":"VALUE(FIXED(EXP(N$4*-1*'PM2.5 reduction'!N200),9))","v":0.99997364399999999},{"$f":"VALUE(FIXED(EXP(O$4*-1*'PM2.5 reduction'!O200),9))","v":0.99998491300000003},{"$f":"VALUE(FIXED(EXP(P$4*-1*'PM2.5 reduction'!P200),9))","v":0.99997616899999997},{"$f":"VALUE(FIXED(EXP(Q$4*-1*'PM2.5 reduction'!Q200),9))","v":0.99998760600000003},{"$f":"VALUE(FIXED(EXP(R$4*-1*'PM2.5 reduction'!R200),9))","v":0.999979438},{"$f":"VALUE(FIXED(EXP(S$4*-1*'PM2.5 reduction'!S200),9))","v":0.99996868900000002},{"$f":"VALUE(FIXED(EXP(T$4*-1*'PM2.5 reduction'!T200),9))","v":0.99995625799999999},{"$f":"VALUE(FIXED(EXP(U$4*-1*'PM2.5 reduction'!U200),9))","v":1},{"$f":"VALUE(FIXED(EXP(V$4*-1*'PM2.5 reduction'!V200),9))","v":0.99997964900000003},{"$f":"VALUE(FIXED(EXP(W$4*-1*'PM2.5 reduction'!W200),9))","v":0.99998468100000004},{"$f":"VALUE(FIXED(EXP(X$4*-1*'PM2.5 reduction'!X200),9))","v":0.99998468100000004},{"$f":"VALUE(FIXED(EXP(Y$4*-1*'PM2.5 reduction'!Y200),9))","v":0.99998219099999996},{"$f":"VALUE(FIXED(EXP(Z$4*-1*'PM2.5 reduction'!Z200),9))","v":0.99995992300000003},{"$f":"VALUE(FIXED(EXP(AA$4*-1*'PM2.5 reduction'!AA200),9))","v":0.99997164299999997},{"$f":"VALUE(FIXED(EXP(AB$4*-1*'PM2.5 reduction'!AB200),9))","v":0.99997633900000005},{"$f":"VALUE(FIXED(EXP(AC$4*-1*'PM2.5 reduction'!AC200),9))","v":0.99996705299999999},{"$f":"VALUE(FIXED(EXP(AD$4*-1*'PM2.5 reduction'!AD200),9))","v":0.99999006800000001},{"$f":"VALUE(FIXED(EXP(AE$4*-1*'PM2.5 reduction'!AE200),9))","v":0.99999000100000002},{"$f":"VALUE(FIXED(EXP(AF$4*-1*'PM2.5 reduction'!AF200),9))","v":0.99998455200000003},{"$f":"VALUE(FIXED(EXP(AG$4*-1*'PM2.5 reduction'!AG200),9))","v":0.99999000100000002},{"$f":"VALUE(FIXED(EXP(AH$4*-1*'PM2.5 reduction'!AH200),9))","v":0.99997839700000002},{"$f":"VALUE(FIXED(EXP(AI$4*-1*'PM2.5 reduction'!AI200),9))","v":0.99996348700000004},{"$f":"VALUE(FIXED(EXP(AJ$4*-1*'PM2.5 reduction'!AJ200),9))","v":0.99998356399999999},{"$f":"VALUE(FIXED(EXP(AK$4*-1*'PM2.5 reduction'!AK200),9))","v":0.99999141700000005},{"$f":"VALUE(FIXED(EXP(AL$4*-1*'PM2.5 reduction'!AL200),9))","v":0.99999107499999995},{"$f":"VALUE(FIXED(EXP(AM$4*-1*'PM2.5 reduction'!AM200),9))","v":0.99997693899999995},{"$f":"VALUE(FIXED(EXP(AN$4*-1*'PM2.5 reduction'!AN200),9))","v":0.99999482100000003},{"$f":"VALUE(FIXED(EXP(AO$4*-1*'PM2.5 reduction'!AO200),9))","v":0.99999482100000003},{"$f":"VALUE(FIXED(EXP(AP$4*-1*'PM2.5 reduction'!AP200),9))","v":0.99999118300000001},{"$f":"VALUE(FIXED(EXP(AQ$4*-1*'PM2.5 reduction'!AQ200),9))","v":0.99997838699999997},{"$f":"VALUE(FIXED(EXP(AR$4*-1*'PM2.5 reduction'!AR200),9))","v":0.99997486099999999},{"$f":"VALUE(FIXED(EXP(AS$4*-1*'PM2.5 reduction'!AS200),9))","v":0.99999525099999997},{"$f":"VALUE(FIXED(EXP(AT$4*-1*'PM2.5 reduction'!AT200),9))","v":0.99999662700000003},{"$f":"VALUE(FIXED(EXP(AU$4*-1*'PM2.5 reduction'!AU200),9))","v":0.99999662700000003},{"$f":"VALUE(FIXED(EXP(AV$4*-1*'PM2.5 reduction'!AV200),9))","v":0.99998467000000002},{"$f":"VALUE(FIXED(EXP(AW$4*-1*'PM2.5 reduction'!AW200),9))","v":0.99997942399999995},{"$f":"VALUE(FIXED(EXP(AX$4*-1*'PM2.5 reduction'!AX200),9))","v":0.99998540300000005},{"$f":"VALUE(FIXED(EXP(AY$4*-1*'PM2.5 reduction'!AY200),9))","v":0.99998549999999997},{"$f":"VALUE(FIXED(EXP(AZ$4*-1*'PM2.5 reduction'!AZ200),9))","v":0.99998616200000001},{"$f":"VALUE(FIXED(EXP(BA$4*-1*'PM2.5 reduction'!BA200),9))","v":0.99998273699999995},{"$f":"VALUE(FIXED(EXP(BB$4*-1*'PM2.5 reduction'!BB200),9))","v":0.99998243399999998},{"$f":"VALUE(FIXED(EXP(BC$4*-1*'PM2.5 reduction'!BC200),9))","v":1}]
[null,"Male 40-44",{"$f":"VALUE(FIXED(EXP(C$4*-1*'PM2.5 reduction'!C201),9))","v":0.99996356399999997},{"$f":"VALUE(FIXED(EXP(D$4*-1*'PM2.5 reduction'!D201),9))","v":0.99997714000000004},{"$f":"VALUE(FIXED(EXP(E$4*-1*'PM2.5 reduction'!E201),9))","v":0.99999340800000003},{"$f":"VALUE(FIXED(EXP(F$4*-1*'PM2.5 reduction'!F201),9))","v":0.99999283000000005},{"$f":"VALUE(FIXED(EXP(G$4*-1*'PM2.5 reduction'!G201),9))","v":0.99999101400000001},{"$f":"VALUE(FIXED(EXP(H$4*-1*'PM2.5 reduction'!H201),9))","v":0.99998728800000003},{"$f":"VALUE(FIXED(EXP(I$4*-1*'PM2.5 reduction'!I201),9))","v":0.99999539699999995},{"$f":"VALUE(FIXED(EXP(J$4*-1*'PM2.5 reduction'!J201),9))","v":0.99998624400000002},{"$f":"VALUE(FIXED(EXP(K$4*-1*'PM2.5 reduction'!K201),9))","v":0.99998511499999998},{"$f":"VALUE(FIXED(EXP(L$4*-1*'PM2.5 reduction'!L201),9))","v":0.99999313400000001},{"$f":"VALUE(FIXED(EXP(M$4*-1*'PM2.5 reduction'!M201),9))","v":0.99999313400000001},{"$f":"VALUE(FIXED(EXP(N$4*-1*'PM2.5 reduction'!N201),9))","v":0.99997388099999995},{"$f":"VALUE(FIXED(EXP(O$4*-1*'PM2.5 reduction'!O201),9))","v":0.99998563699999998},{"$f":"VALUE(FIXED(EXP(P$4*-1*'PM2.5 reduction'!P201),9))","v":0.99997564999999999},{"$f":"VALUE(FIXED(EXP(Q$4*-1*'PM2.5 reduction'!Q201),9))","v":0.999987662},{"$f":"VALUE(FIXED(EXP(R$4*-1*'PM2.5 reduction'!R201),9))","v":0.99998053499999995},{"$f":"VALUE(FIXED(EXP(S$4*-1*'PM2.5 reduction'!S201),9))","v":0.99997165600000004},{"$f":"VALUE(FIXED(EXP(T$4*-1*'PM2.5 reduction'!T201),9))","v":0.99995688199999999},{"$f":"VALUE(FIXED(EXP(U$4*-1*'PM2.5 reduction'!U201),9))","v":1},{"$f":"VALUE(FIXED(EXP(V$4*-1*'PM2.5 reduction'!V201),9))","v":0.99998016300000003},{"$f":"VALUE(FIXED(EXP(W$4*-1*'PM2.5 reduction'!W201),9))","v":0.99998462799999999},{"$f":"VALUE(FIXED(EXP(X$4*-1*'PM2.5 reduction'!X201),9))","v":0.99998462799999999},{"$f":"VALUE(FIXED(EXP(Y$4*-1*'PM2.5 reduction'!Y201),9))","v":0.99998282400000005},{"$f":"VALUE(FIXED(EXP(Z$4*-1*'PM2.5 reduction'!Z201),9))","v":0.99996094599999996},{"$f":"VALUE(FIXED(EXP(AA$4*-1*'PM2.5 reduction'!AA201),9))","v":0.99997343900000002},{"$f":"VALUE(FIXED(EXP(AB$4*-1*'PM2.5 reduction'!AB201),9))","v":0.99997837899999997},{"$f":"VALUE(FIXED(EXP(AC$4*-1*'PM2.5 reduction'!AC201),9))","v":0.99996953399999999},{"$f":"VALUE(FIXED(EXP(AD$4*-1*'PM2.5 reduction'!AD201),9))","v":0.99999007200000001},{"$f":"VALUE(FIXED(EXP(AE$4*-1*'PM2.5 reduction'!AE201),9))","v":0.99998998500000003},{"$f":"VALUE(FIXED(EXP(AF$4*-1*'PM2.5 reduction'!AF201),9))","v":0.99998596699999998},{"$f":"VALUE(FIXED(EXP(AG$4*-1*'PM2.5 reduction'!AG201),9))","v":0.99998998500000003},{"$f":"VALUE(FIXED(EXP(AH$4*-1*'PM2.5 reduction'!AH201),9))","v":0.99997879899999997},{"$f":"VALUE(FIXED(EXP(AI$4*-1*'PM2.5 reduction'!AI201),9))","v":0.99996632600000002},{"$f":"VALUE(FIXED(EXP(AJ$4*-1*'PM2.5 reduction'!AJ201),9))","v":0.99998365300000003},{"$f":"VALUE(FIXED(EXP(AK$4*-1*'PM2.5 reduction'!AK201),9))","v":0.99999276199999998},{"$f":"VALUE(FIXED(EXP(AL$4*-1*'PM2.5 reduction'!AL201),9))","v":0.99999101099999999},{"$f":"VALUE(FIXED(EXP(AM$4*-1*'PM2.5 reduction'!AM201),9))","v":0.99997727300000006},{"$f":"VALUE(FIXED(EXP(AN$4*-1*'PM2.5 reduction'!AN201),9))","v":0.99999545400000001},{"$f":"VALUE(FIXED(EXP(AO$4*-1*'PM2.5 reduction'!AO201),9))","v":0.99999545400000001},{"$f":"VALUE(FIXED(EXP(AP$4*-1*'PM2.5 reduction'!AP201),9))","v":0.99999241000000005},{"$f":"VALUE(FIXED(EXP(AQ$4*-1*'PM2.5 reduction'!AQ201),9))","v":0.99997911900000003},{"$f":"VALUE(FIXED(EXP(AR$4*-1*'PM2.5 reduction'!AR201),9))","v":0.99997698000000002},{"$f":"VALUE(FIXED(EXP(AS$4*-1*'PM2.5 reduction'!AS201),9))","v":0.99999539699999995},{"$f":"VALUE(FIXED(EXP(AT$4*-1*'PM2.5 reduction'!AT201),9))","v":0.99999686399999999},{"$f":"VALUE(FIXED(EXP(AU$4*-1*'PM2.5 reduction'!AU201),9))","v":0.99999686399999999},{"$f":"VALUE(FIXED(EXP(AV$4*-1*'PM2.5 reduction'!AV201),9))","v":0.99998427099999998},{"$f":"VALUE(FIXED(EXP(AW$4*-1*'PM2.5 reduction'!AW201),9))","v":0.99997998799999999},{"$f":"VALUE(FIXED(EXP(AX$4*-1*'PM2.5 reduction'!AX201),9))","v":0.99998673500000002},{"$f":"VALUE(FIXED(EXP(AY$4*-1*'PM2.5 reduction'!AY201),9))","v":0.99998582499999999},{"$f":"VALUE(FIXED(EXP(AZ$4*-1*'PM2.5 reduction'!AZ201),9))","v":0.99998683799999999},{"$f":"VALUE(FIXED(EXP(BA$4*-1*'PM2.5 reduction'!BA201),9))","v":0.99998264299999995},{"$f":"VALUE(FIXED(EXP(BB$4*-1*'PM2.5 reduction'!BB201),9))","v":0.999982221},{"$f":"VALUE(FIXED(EXP(BC$4*-1*'PM2.5 reduction'!BC201),9))","v":1}]
[null,"Male 45-49",{"$f":"VALUE(FIXED(EXP(C$4*-1*'PM2.5 reduction'!C202),9))","v":0.999966668},{"$f":"VALUE(FIXED(EXP(D$4*-1*'PM2.5 reduction'!D202),9))","v":0.99998018200000005},{"$f":"VALUE(FIXED(EXP(E$4*-1*'PM2.5 reduction'!E202),9))","v":0.99999361600000003},{"$f":"VALUE(FIXED(EXP(F$4*-1*'PM2.5 reduction'!F202),9))","v":0.99999266499999995},{"$f":"VALUE(FIXED(EXP(G$4*-1*'PM2.5 reduction'!G202),9))","v":0.99999096899999995},{"$f":"VALUE(FIXED(EXP(H$4*-1*'PM2.5 reduction'!H202),9))","v":0.99998757500000002},{"$f":"VALUE(FIXED(EXP(I$4*-1*'PM2.5 reduction'!I202),9))","v":0.999995788},{"$f":"VALUE(FIXED(EXP(J$4*-1*'PM2.5 reduction'!J202),9))","v":0.99998682999999999},{"$f":"VALUE(FIXED(EXP(K$4*-1*'PM2.5 reduction'!K202),9))","v":0.99998498199999997},{"$f":"VALUE(FIXED(EXP(L$4*-1*'PM2.5 reduction'!L202),9))","v":0.99999381200000004},{"$f":"VALUE(FIXED(EXP(M$4*-1*'PM2.5 reduction'!M202),9))","v":0.99999381200000004},{"$f":"VALUE(FIXED(EXP(N$4*-1*'PM2.5 reduction'!N202),9))","v":0.99997344300000002},{"$f":"VALUE(FIXED(EXP(O$4*-1*'PM2.5 reduction'!O202),9))","v":0.99998615599999996},{"$f":"VALUE(FIXED(EXP(P$4*-1*'PM2.5 reduction'!P202),9))","v":0.99997519999999995},{"$f":"VALUE(FIXED(EXP(Q$4*-1*'PM2.5 reduction'!Q202),9))","v":0.99998797900000003},{"$f":"VALUE(FIXED(EXP(R$4*-1*'PM2.5 reduction'!R202),9))","v":0.99997918500000005},{"$f":"VALUE(FIXED(EXP(S$4*-1*'PM2.5 reduction'!S202),9))","v":0.99997430899999995},{"$f":"VALUE(FIXED(EXP(T$4*-1*'PM2.5 reduction'!T202),9))","v":0.99995820999999996},{"$f":"VALUE(FIXED(EXP(U$4*-1*'PM2.5 reduction'!U202),9))","v":1},{"$f":"VALUE(FIXED(EXP(V$4*-1*'PM2.5 reduction'!V202),9))","v":0.99998068600000001},{"$f":"VALUE(FIXED(EXP(W$4*-1*'PM2.5 reduction'!W202),9))","v":0.99998506600000003},{"$f":"VALUE(FIXED(EXP(X$4*-1*'PM2.5 reduction'!X202),9))","v":0.99998506600000003},{"$f":"VALUE(FIXED(EXP(Y$4*-1*'PM2.5 reduction'!Y202),9))","v":0.99998331399999996},{"$f":"VALUE(FIXED(EXP(Z$4*-1*'PM2.5 reduction'!Z202),9))","v":0.99996342800000004},{"$f":"VALUE(FIXED(EXP(AA$4*-1*'PM2.5 reduction'!AA202),9))","v":0.99997483399999998},{"$f":"VALUE(FIXED(EXP(AB$4*-1*'PM2.5 reduction'!AB202),9))","v":0.99998120899999998},{"$f":"VALUE(FIXED(EXP(AC$4*-1*'PM2.5 reduction'!AC202),9))","v":0.99997178900000006},{"$f":"VALUE(FIXED(EXP(AD$4*-1*'PM2.5 reduction'!AD202),9))","v":0.99999063099999996},{"$f":"VALUE(FIXED(EXP(AE$4*-1*'PM2.5 reduction'!AE202),9))","v":0.99999060399999995},{"$f":"VALUE(FIXED(EXP(AF$4*-1*'PM2.5 reduction'!AF202),9))","v":0.999986021},{"$f":"VALUE(FIXED(EXP(AG$4*-1*'PM2.5 reduction'!AG202),9))","v":0.99999060399999995},{"$f":"VALUE(FIXED(EXP(AH$4*-1*'PM2.5 reduction'!AH202),9))","v":0.99997892899999996},{"$f":"VALUE(FIXED(EXP(AI$4*-1*'PM2.5 reduction'!AI202),9))","v":0.99996864500000004},{"$f":"VALUE(FIXED(EXP(AJ$4*-1*'PM2.5 reduction'!AJ202),9))","v":0.99998299999999996},{"$f":"VALUE(FIXED(EXP(AK$4*-1*'PM2.5 reduction'!AK202),9))","v":0.99999165800000001},{"$f":"VALUE(FIXED(EXP(AL$4*-1*'PM2.5 reduction'!AL202),9))","v":0.99999117199999998},{"$f":"VALUE(FIXED(EXP(AM$4*-1*'PM2.5 reduction'!AM202),9))","v":0.99997735700000001},{"$f":"VALUE(FIXED(EXP(AN$4*-1*'PM2.5 reduction'!AN202),9))","v":0.99999559800000004},{"$f":"VALUE(FIXED(EXP(AO$4*-1*'PM2.5 reduction'!AO202),9))","v":0.99999559800000004},{"$f":"VALUE(FIXED(EXP(AP$4*-1*'PM2.5 reduction'!AP202),9))","v":0.99999193399999997},{"$f":"VALUE(FIXED(EXP(AQ$4*-1*'PM2.5 reduction'!AQ202),9))","v":0.99997902100000002},{"$f":"VALUE(FIXED(EXP(AR$4*-1*'PM2.5 reduction'!AR202),9))","v":0.99997872399999999},{"$f":"VALUE(FIXED(EXP(AS$4*-1*'PM2.5 reduction'!AS202),9))","v":0.999995788},{"$f":"VALUE(FIXED(EXP(AT$4*-1*'PM2.5 reduction'!AT202),9))","v":0.99999685599999999},{"$f":"VALUE(FIXED(EXP(AU$4*-1*'PM2.5 reduction'!AU202),9))","v":0.99999685599999999},{"$f":"VALUE(FIXED(EXP(AV$4*-1*'PM2.5 reduction'!AV202),9))","v":0.999984231},{"$f":"VALUE(FIXED(EXP(AW$4*-1*'PM2.5 reduction'!AW202),9))","v":0.99998026100000004},{"$f":"VALUE(FIXED(EXP(AX$4*-1*'PM2.5 reduction'!AX202),9))","v":0.99998769200000004},{"$f":"VALUE(FIXED(EXP(AY$4*-1*'PM2.5 reduction'!AY202),9))","v":0.99998594500000004},{"$f":"VALUE(FIXED(EXP(AZ$4*-1*'PM2.5 reduction'!AZ202),9))","v":0.99998667799999996},{"$f":"VALUE(FIXED(EXP(BA$4*-1*'PM2.5 reduction'!BA202),9))","v":0.999982857},{"$f":"VALUE(FIXED(EXP(BB$4*-1*'PM2.5 reduction'!BB202),9))","v":0.999983128},{"$f":"VALUE(FIXED(EXP(BC$4*-1*'PM2.5 reduction'!BC202),9))","v":1}]
[null,"Male 50-54",{"$f":"VALUE(FIXED(EXP(C$4*-1*'PM2.5 reduction'!C203),9))","v":0.99996773500000002},{"$f":"VALUE(FIXED(EXP(D$4*-1*'PM2.5 reduction'!D203),9))","v":0.99998094199999998},{"$f":"VALUE(FIXED(EXP(E$4*-1*'PM2.5 reduction'!E203),9))","v":0.99999379099999997},{"$f":"VALUE(FIXED(EXP(F$4*-1*'PM2.5 reduction'!F203),9))","v":0.99999266499999995},{"$f":"VALUE(FIXED(EXP(G$4*-1*'PM2.5 reduction'!G203),9))","v":0.99999092099999998},{"$f":"VALUE(FIXED(EXP(H$4*-1*'PM2.5 reduction'!H203),9))","v":0.99998747300000002},{"$f":"VALUE(FIXED(EXP(I$4*-1*'PM2.5 reduction'!I203),9))","v":0.99999540799999997},{"$f":"VALUE(FIXED(EXP(J$4*-1*'PM2.5 reduction'!J203),9))","v":0.99998648300000004},{"$f":"VALUE(FIXED(EXP(K$4*-1*'PM2.5 reduction'!K203),9))","v":0.99998290300000003},{"$f":"VALUE(FIXED(EXP(L$4*-1*'PM2.5 reduction'!L203),9))","v":0.99999356500000003},{"$f":"VALUE(FIXED(EXP(M$4*-1*'PM2.5 reduction'!M203),9))","v":0.99999356500000003},{"$f":"VALUE(FIXED(EXP(N$4*-1*'PM2.5 reduction'!N203),9))","v":0.99997335600000004},{"$f":"VALUE(FIXED(EXP(O$4*-1*'PM2.5 reduction'!O203),9))","v":0.99998458999999995},{"$f":"VALUE(FIXED(EXP(P$4*-1*'PM2.5 reduction'!P203),9))","v":0.99997648500000003},{"$f":"VALUE(FIXED(EXP(Q$4*-1*'PM2.5 reduction'!Q203),9))","v":0.999986916},{"$f":"VALUE(FIXED(EXP(R$4*-1*'PM2.5 reduction'!R203),9))","v":0.99998022900000005},{"$f":"VALUE(FIXED(EXP(S$4*-1*'PM2.5 reduction'!S203),9))","v":0.99997447799999994},{"$f":"VALUE(FIXED(EXP(T$4*-1*'PM2.5 reduction'!T203),9))","v":0.99995873400000002},{"$f":"VALUE(FIXED(EXP(U$4*-1*'PM2.5 reduction'!U203),9))","v":1},{"$f":"VALUE(FIXED(EXP(V$4*-1*'PM2.5 reduction'!V203),9))","v":0.99997971299999999},{"$f":"VALUE(FIXED(EXP(W$4*-1*'PM2.5 reduction'!W203),9))","v":0.99998540899999999},{"$f":"VALUE(FIXED(EXP(X$4*-1*'PM2.5 reduction'!X203),9))","v":0.99998540899999999},{"$f":"VALUE(FIXED(EXP(Y$4*-1*'PM2.5 reduction'!Y203),9))","v":0.99998275800000003},{"$f":"VALUE(FIXED(EXP(Z$4*-1*'PM2.5 reduction'!Z203),9))","v":0.99996362500000002},{"$f":"VALUE(FIXED(EXP(AA$4*-1*'PM2.5 reduction'!AA203),9))","v":0.99997523300000002},{"$f":"VALUE(FIXED(EXP(AB$4*-1*'PM2.5 reduction'!AB203),9))","v":0.99998177799999999},{"$f":"VALUE(FIXED(EXP(AC$4*-1*'PM2.5 reduction'!AC203),9))","v":0.99997279699999997},{"$f":"VALUE(FIXED(EXP(AD$4*-1*'PM2.5 reduction'!AD203),9))","v":0.99999075800000004},{"$f":"VALUE(FIXED(EXP(AE$4*-1*'PM2.5 reduction'!AE203),9))","v":0.99999074399999999},{"$f":"VALUE(FIXED(EXP(AF$4*-1*'PM2.5 reduction'!AF203),9))","v":0.999985613},{"$f":"VALUE(FIXED(EXP(AG$4*-1*'PM2.5 reduction'!AG203),9))","v":0.99999074399999999},{"$f":"VALUE(FIXED(EXP(AH$4*-1*'PM2.5 reduction'!AH203),9))","v":0.99997864700000005},{"$f":"VALUE(FIXED(EXP(AI$4*-1*'PM2.5 reduction'!AI203),9))","v":0.99996863199999997},{"$f":"VALUE(FIXED(EXP(AJ$4*-1*'PM2.5 reduction'!AJ203),9))","v":0.99998337699999995},{"$f":"VALUE(FIXED(EXP(AK$4*-1*'PM2.5 reduction'!AK203),9))","v":0.99999195900000004},{"$f":"VALUE(FIXED(EXP(AL$4*-1*'PM2.5 reduction'!AL203),9))","v":0.99999123400000001},{"$f":"VALUE(FIXED(EXP(AM$4*-1*'PM2.5 reduction'!AM203),9))","v":0.99997728600000002},{"$f":"VALUE(FIXED(EXP(AN$4*-1*'PM2.5 reduction'!AN203),9))","v":0.999995615},{"$f":"VALUE(FIXED(EXP(AO$4*-1*'PM2.5 reduction'!AO203),9))","v":0.999995615},{"$f":"VALUE(FIXED(EXP(AP$4*-1*'PM2.5 reduction'!AP203),9))","v":0.99999316400000005},{"$f":"VALUE(FIXED(EXP(AQ$4*-1*'PM2.5 reduction'!AQ203),9))","v":0.99997952199999995},{"$f":"VALUE(FIXED(EXP(AR$4*-1*'PM2.5 reduction'!AR203),9))","v":0.99997910899999998},{"$f":"VALUE(FIXED(EXP(AS$4*-1*'PM2.5 reduction'!AS203),9))","v":0.99999540799999997},{"$f":"VALUE(FIXED(EXP(AT$4*-1*'PM2.5 reduction'!AT203),9))","v":0.999996459},{"$f":"VALUE(FIXED(EXP(AU$4*-1*'PM2.5 reduction'!AU203),9))","v":0.999996459},{"$f":"VALUE(FIXED(EXP(AV$4*-1*'PM2.5 reduction'!AV203),9))","v":0.99998458000000001},{"$f":"VALUE(FIXED(EXP(AW$4*-1*'PM2.5 reduction'!AW203),9))","v":0.99997977800000004},{"$f":"VALUE(FIXED(EXP(AX$4*-1*'PM2.5 reduction'!AX203),9))","v":0.99998808900000002},{"$f":"VALUE(FIXED(EXP(AY$4*-1*'PM2.5 reduction'!AY203),9))","v":0.99998627900000003},{"$f":"VALUE(FIXED(EXP(AZ$4*-1*'PM2.5 reduction'!AZ203),9))","v":0.99998686400000003},{"$f":"VALUE(FIXED(EXP(BA$4*-1*'PM2.5 reduction'!BA203),9))","v":0.999983332},{"$f":"VALUE(FIXED(EXP(BB$4*-1*'PM2.5 reduction'!BB203),9))","v":0.99998341999999996},{"$f":"VALUE(FIXED(EXP(BC$4*-1*'PM2.5 reduction'!BC203),9))","v":1}]
[null,"Male 55-59",{"$f":"VALUE(FIXED(EXP(C$4*-1*'PM2.5 reduction'!C204),9))","v":0.99996785399999999},{"$f":"VALUE(FIXED(EXP(D$4*-1*'PM2.5 reduction'!D204),9))","v":0.99998107199999997},{"$f":"VALUE(FIXED(EXP(E$4*-1*'PM2.5 reduction'!E204),9))","v":0.99999355199999995},{"$f":"VALUE(FIXED(EXP(F$4*-1*'PM2.5 reduction'!F204),9))","v":0.99999294900000002},{"$f":"VALUE(FIXED(EXP(G$4*-1*'PM2.5 reduction'!G204),9))","v":0.99999095800000004},{"$f":"VALUE(FIXED(EXP(H$4*-1*'PM2.5 reduction'!H204),9))","v":0.99998723099999998},{"$f":"VALUE(FIXED(EXP(I$4*-1*'PM2.5 reduction'!I204),9))","v":0.99999559000000005},{"$f":"VALUE(FIXED(EXP(J$4*-1*'PM2.5 reduction'!J204),9))","v":0.99998560700000005},{"$f":"VALUE(FIXED(EXP(K$4*-1*'PM2.5 reduction'!K204),9))","v":0.99998399400000004},{"$f":"VALUE(FIXED(EXP(L$4*-1*'PM2.5 reduction'!L204),9))","v":0.99999372399999997},{"$f":"VALUE(FIXED(EXP(M$4*-1*'PM2.5 reduction'!M204),9))","v":0.99999372399999997},{"$f":"VALUE(FIXED(EXP(N$4*-1*'PM2.5 reduction'!N204),9))","v":0.99997298999999995},{"$f":"VALUE(FIXED(EXP(O$4*-1*'PM2.5 reduction'!O204),9))","v":0.99998513700000002},{"$f":"VALUE(FIXED(EXP(P$4*-1*'PM2.5 reduction'!P204),9))","v":0.99997577500000001},{"$f":"VALUE(FIXED(EXP(Q$4*-1*'PM2.5 reduction'!Q204),9))","v":0.99998654099999995},{"$f":"VALUE(FIXED(EXP(R$4*-1*'PM2.5 reduction'!R204),9))","v":0.99997892700000002},{"$f":"VALUE(FIXED(EXP(S$4*-1*'PM2.5 reduction'!S204),9))","v":0.99997575500000002},{"$f":"VALUE(FIXED(EXP(T$4*-1*'PM2.5 reduction'!T204),9))","v":0.99996079800000004},{"$f":"VALUE(FIXED(EXP(U$4*-1*'PM2.5 reduction'!U204),9))","v":1},{"$f":"VALUE(FIXED(EXP(V$4*-1*'PM2.5 reduction'!V204),9))","v":0.99998095399999998},{"$f":"VALUE(FIXED(EXP(W$4*-1*'PM2.5 reduction'!W204),9))","v":0.99998539099999995},{"$f":"VALUE(FIXED(EXP(X$4*-1*'PM2.5 reduction'!X204),9))","v":0.99998539099999995},{"$f":"VALUE(FIXED(EXP(Y$4*-1*'PM2.5 reduction'!Y204),9))","v":0.99998294600000004},{"$f":"VALUE(FIXED(EXP(Z$4*-1*'PM2.5 reduction'!Z204),9))","v":0.99996488699999997},{"$f":"VALUE(FIXED(EXP(AA$4*-1*'PM2.5 reduction'!AA204),9))","v":0.99997534799999999},{"$f":"VALUE(FIXED(EXP(AB$4*-1*'PM2.5 reduction'!AB204),9))","v":0.99998186300000003},{"$f":"VALUE(FIXED(EXP(AC$4*-1*'PM2.5 reduction'!AC204),9))","v":0.99997329199999996},{"$f":"VALUE(FIXED(EXP(AD$4*-1*'PM2.5 reduction'!AD204),9))","v":0.99999043399999998},{"$f":"VALUE(FIXED(EXP(AE$4*-1*'PM2.5 reduction'!AE204),9))","v":0.99999038600000001},{"$f":"VALUE(FIXED(EXP(AF$4*-1*'PM2.5 reduction'!AF204),9))","v":0.99998426399999996},{"$f":"VALUE(FIXED(EXP(AG$4*-1*'PM2.5 reduction'!AG204),9))","v":0.99999038600000001},{"$f":"VALUE(FIXED(EXP(AH$4*-1*'PM2.5 reduction'!AH204),9))","v":0.99997855999999996},{"$f":"VALUE(FIXED(EXP(AI$4*-1*'PM2.5 reduction'!AI204),9))","v":0.99997033300000004},{"$f":"VALUE(FIXED(EXP(AJ$4*-1*'PM2.5 reduction'!AJ204),9))","v":0.99998304800000004},{"$f":"VALUE(FIXED(EXP(AK$4*-1*'PM2.5 reduction'!AK204),9))","v":0.99999117100000001},{"$f":"VALUE(FIXED(EXP(AL$4*-1*'PM2.5 reduction'!AL204),9))","v":0.99999101400000001},{"$f":"VALUE(FIXED(EXP(AM$4*-1*'PM2.5 reduction'!AM204),9))","v":0.99997651499999995},{"$f":"VALUE(FIXED(EXP(AN$4*-1*'PM2.5 reduction'!AN204),9))","v":0.99999607700000004},{"$f":"VALUE(FIXED(EXP(AO$4*-1*'PM2.5 reduction'!AO204),9))","v":0.99999607700000004},{"$f":"VALUE(FIXED(EXP(AP$4*-1*'PM2.5 reduction'!AP204),9))","v":0.99999305800000005},{"$f":"VALUE(FIXED(EXP(AQ$4*-1*'PM2.5 reduction'!AQ204),9))","v":0.999979489},{"$f":"VALUE(FIXED(EXP(AR$4*-1*'PM2.5 reduction'!AR204),9))","v":0.99997943899999997},{"$f":"VALUE(FIXED(EXP(AS$4*-1*'PM2.5 reduction'!AS204),9))","v":0.99999559000000005},{"$f":"VALUE(FIXED(EXP(AT$4*-1*'PM2.5 reduction'!AT204),9))","v":0.99999632400000005},{"$f":"VALUE(FIXED(EXP(AU$4*-1*'PM2.5 reduction'!AU204),9))","v":0.99999632400000005},{"$f":"VALUE(FIXED(EXP(AV$4*-1*'PM2.5 reduction'!AV204),9))","v":0.99998462799999999},{"$f":"VALUE(FIXED(EXP(AW$4*-1*'PM2.5 reduction'!AW204),9))","v":0.99998015399999995},{"$f":"VALUE(FIXED(EXP(AX$4*-1*'PM2.5 reduction'!AX204),9))","v":0.99998647299999999},{"$f":"VALUE(FIXED(EXP(AY$4*-1*'PM2.5 reduction'!AY204),9))","v":0.999985821},{"$f":"VALUE(FIXED(EXP(AZ$4*-1*'PM2.5 reduction'!AZ204),9))","v":0.99998607500000003},{"$f":"VALUE(FIXED(EXP(BA$4*-1*'PM2.5 reduction'!BA204),9))","v":0.99998279099999998},{"$f":"VALUE(FIXED(EXP(BB$4*-1*'PM2.5 reduction'!BB204),9))","v":0.99998319300000005},{"$f":"VALUE(FIXED(EXP(BC$4*-1*'PM2.5 reduction'!BC204),9))","v":1}]
[null,"Male 60-64",{"$f":"VALUE(FIXED(EXP(C$4*-1*'PM2.5 reduction'!C205),9))","v":0.99996888900000003},{"$f":"VALUE(FIXED(EXP(D$4*-1*'PM2.5 reduction'!D205),9))","v":0.99998173499999998},{"$f":"VALUE(FIXED(EXP(E$4*-1*'PM2.5 reduction'!E205),9))","v":0.99999376100000004},{"$f":"VALUE(FIXED(EXP(F$4*-1*'PM2.5 reduction'!F205),9))","v":0.99999265400000004},{"$f":"VALUE(FIXED(EXP(G$4*-1*'PM2.5 reduction'!G205),9))","v":0.99999098600000003},{"$f":"VALUE(FIXED(EXP(H$4*-1*'PM2.5 reduction'!H205),9))","v":0.99998738300000001},{"$f":"VALUE(FIXED(EXP(I$4*-1*'PM2.5 reduction'!I205),9))","v":0.99999513699999998},{"$f":"VALUE(FIXED(EXP(J$4*-1*'PM2.5 reduction'!J205),9))","v":0.99998584800000001},{"$f":"VALUE(FIXED(EXP(K$4*-1*'PM2.5 reduction'!K205),9))","v":0.99998294300000001},{"$f":"VALUE(FIXED(EXP(L$4*-1*'PM2.5 reduction'!L205),9))","v":0.99999343100000004},{"$f":"VALUE(FIXED(EXP(M$4*-1*'PM2.5 reduction'!M205),9))","v":0.99999343100000004},{"$f":"VALUE(FIXED(EXP(N$4*-1*'PM2.5 reduction'!N205),9))","v":0.99997282399999998},{"$f":"VALUE(FIXED(EXP(O$4*-1*'PM2.5 reduction'!O205),9))","v":0.99998524300000002},{"$f":"VALUE(FIXED(EXP(P$4*-1*'PM2.5 reduction'!P205),9))","v":0.99997702399999999},{"$f":"VALUE(FIXED(EXP(Q$4*-1*'PM2.5 reduction'!Q205),9))","v":0.99998776599999994},{"$f":"VALUE(FIXED(EXP(R$4*-1*'PM2.5 reduction'!R205),9))","v":0.99997968599999998},{"$f":"VALUE(FIXED(EXP(S$4*-1*'PM2.5 reduction'!S205),9))","v":0.99997497899999999},{"$f":"VALUE(FIXED(EXP(T$4*-1*'PM2.5 reduction'!T205),9))","v":0.99995992700000003},{"$f":"VALUE(FIXED(EXP(U$4*-1*'PM2.5 reduction'!U205),9))","v":1},{"$f":"VALUE(FIXED(EXP(V$4*-1*'PM2.5 reduction'!V205),9))","v":0.99998098199999996},{"$f":"VALUE(FIXED(EXP(W$4*-1*'PM2.5 reduction'!W205),9))","v":0.99998536299999996},{"$f":"VALUE(FIXED(EXP(X$4*-1*'PM2.5 reduction'!X205),9))","v":0.99998536299999996},{"$f":"VALUE(FIXED(EXP(Y$4*-1*'PM2.5 reduction'!Y205),9))","v":0.99998317599999997},{"$f":"VALUE(FIXED(EXP(Z$4*-1*'PM2.5 reduction'!Z205),9))","v":0.99996401099999999},{"$f":"VALUE(FIXED(EXP(AA$4*-1*'PM2.5 reduction'!AA205),9))","v":0.99997548599999997},{"$f":"VALUE(FIXED(EXP(AB$4*-1*'PM2.5 reduction'!AB205),9))","v":0.99998249400000006},{"$f":"VALUE(FIXED(EXP(AC$4*-1*'PM2.5 reduction'!AC205),9))","v":0.999973216},{"$f":"VALUE(FIXED(EXP(AD$4*-1*'PM2.5 reduction'!AD205),9))","v":0.99999106000000004},{"$f":"VALUE(FIXED(EXP(AE$4*-1*'PM2.5 reduction'!AE205),9))","v":0.99999106599999998},{"$f":"VALUE(FIXED(EXP(AF$4*-1*'PM2.5 reduction'!AF205),9))","v":0.99998642999999998},{"$f":"VALUE(FIXED(EXP(AG$4*-1*'PM2.5 reduction'!AG205),9))","v":0.99999106599999998},{"$f":"VALUE(FIXED(EXP(AH$4*-1*'PM2.5 reduction'!AH205),9))","v":0.99997917300000005},{"$f":"VALUE(FIXED(EXP(AI$4*-1*'PM2.5 reduction'!AI205),9))","v":0.99996913399999998},{"$f":"VALUE(FIXED(EXP(AJ$4*-1*'PM2.5 reduction'!AJ205),9))","v":0.99998547299999996},{"$f":"VALUE(FIXED(EXP(AK$4*-1*'PM2.5 reduction'!AK205),9))","v":0.99999178399999999},{"$f":"VALUE(FIXED(EXP(AL$4*-1*'PM2.5 reduction'!AL205),9))","v":0.99999100299999999},{"$f":"VALUE(FIXED(EXP(AM$4*-1*'PM2.5 reduction'!AM205),9))","v":0.999977479},{"$f":"VALUE(FIXED(EXP(AN$4*-1*'PM2.5 reduction'!AN205),9))","v":0.99999575699999999},{"$f":"VALUE(FIXED(EXP(AO$4*-1*'PM2.5 reduction'!AO205),9))","v":0.99999575699999999},{"$f":"VALUE(FIXED(EXP(AP$4*-1*'PM2.5 reduction'!AP205),9))","v":0.99999328499999995},{"$f":"VALUE(FIXED(EXP(AQ$4*-1*'PM2.5 reduction'!AQ205),9))","v":0.99997925600000004},{"$f":"VALUE(FIXED(EXP(AR$4*-1*'PM2.5 reduction'!AR205),9))","v":0.99997972300000004},{"$f":"VALUE(FIXED(EXP(AS$4*-1*'PM2.5 reduction'!AS205),9))","v":0.99999513699999998},{"$f":"VALUE(FIXED(EXP(AT$4*-1*'PM2.5 reduction'!AT205),9))","v":0.999996828},{"$f":"VALUE(FIXED(EXP(AU$4*-1*'PM2.5 reduction'!AU205),9))","v":0.999996828},{"$f":"VALUE(FIXED(EXP(AV$4*-1*'PM2.5 reduction'!AV205),9))","v":0.99998507199999997},{"$f":"VALUE(FIXED(EXP(AW$4*-1*'PM2.5 reduction'!AW205),9))","v":0.99998047999999995},{"$f":"VALUE(FIXED(EXP(AX$4*-1*'PM2.5 reduction'!AX205),9))","v":0.99998726299999996},{"$f":"VALUE(FIXED(EXP(AY$4*-1*'PM2.5 reduction'!AY205),9))","v":0.99998614799999996},{"$f":"VALUE(FIXED(EXP(AZ$4*-1*'PM2.5 reduction'!AZ205),9))","v":0.99998659300000003},{"$f":"VALUE(FIXED(EXP(BA$4*-1*'PM2.5 reduction'!BA205),9))","v":0.99998319199999997},{"$f":"VALUE(FIXED(EXP(BB$4*-1*'PM2.5 reduction'!BB205),9))","v":0.99998377400000005},{"$f":"VALUE(FIXED(EXP(BC$4*-1*'PM2.5 reduction'!BC205),9))","v":1}]
[null,"Male 65-69",{"$f":"VALUE(FIXED(EXP(C$4*-1*'PM2.5 reduction'!C206),9))","v":0.99997093800000003},{"$f":"VALUE(FIXED(EXP(D$4*-1*'PM2.5 reduction'!D206),9))","v":0.99998331799999995},{"$f":"VALUE(FIXED(EXP(E$4*-1*'PM2.5 reduction'!E206),9))","v":0.99999382699999995},{"$f":"VALUE(FIXED(EXP(F$4*-1*'PM2.5 reduction'!F206),9))","v":0.99999246600000002},{"$f":"VALUE(FIXED(EXP(G$4*-1*'PM2.5 reduction'!G206),9))","v":0.999990936},{"$f":"VALUE(FIXED(EXP(H$4*-1*'PM2.5 reduction'!H206),9))","v":0.99998719999999996},{"$f":"VALUE(FIXED(EXP(I$4*-1*'PM2.5 reduction'!I206),9))","v":0.99999547099999997},{"$f":"VALUE(FIXED(EXP(J$4*-1*'PM2.5 reduction'!J206),9))","v":0.99998608200000005},{"$f":"VALUE(FIXED(EXP(K$4*-1*'PM2.5 reduction'!K206),9))","v":0.999984066},{"$f":"VALUE(FIXED(EXP(L$4*-1*'PM2.5 reduction'!L206),9))","v":0.99999357799999999},{"$f":"VALUE(FIXED(EXP(M$4*-1*'PM2.5 reduction'!M206),9))","v":0.99999357799999999},{"$f":"VALUE(FIXED(EXP(N$4*-1*'PM2.5 reduction'!N206),9))","v":0.99997299299999998},{"$f":"VALUE(FIXED(EXP(O$4*-1*'PM2.5 reduction'!O206),9))","v":0.99998526300000001},{"$f":"VALUE(FIXED(EXP(P$4*-1*'PM2.5 reduction'!P206),9))","v":0.99997708500000004},{"$f":"VALUE(FIXED(EXP(Q$4*-1*'PM2.5 reduction'!Q206),9))","v":0.99998686400000003},{"$f":"VALUE(FIXED(EXP(R$4*-1*'PM2.5 reduction'!R206),9))","v":0.99997857899999998},{"$f":"VALUE(FIXED(EXP(S$4*-1*'PM2.5 reduction'!S206),9))","v":0.99997737499999995},{"$f":"VALUE(FIXED(EXP(T$4*-1*'PM2.5 reduction'!T206),9))","v":0.999961404},{"$f":"VALUE(FIXED(EXP(U$4*-1*'PM2.5 reduction'!U206),9))","v":1},{"$f":"VALUE(FIXED(EXP(V$4*-1*'PM2.5 reduction'!V206),9))","v":0.99998033399999997},{"$f":"VALUE(FIXED(EXP(W$4*-1*'PM2.5 reduction'!W206),9))","v":0.999985715},{"$f":"VALUE(FIXED(EXP(X$4*-1*'PM2.5 reduction'!X206),9))","v":0.999985715},{"$f":"VALUE(FIXED(EXP(Y$4*-1*'PM2.5 reduction'!Y206),9))","v":0.99998290400000001},{"$f":"VALUE(FIXED(EXP(Z$4*-1*'PM2.5 reduction'!Z206),9))","v":0.99996448100000002},{"$f":"VALUE(FIXED(EXP(AA$4*-1*'PM2.5 reduction'!AA206),9))","v":0.99997565099999997},{"$f":"VALUE(FIXED(EXP(AB$4*-1*'PM2.5 reduction'!AB206),9))","v":0.99998399599999999},{"$f":"VALUE(FIXED(EXP(AC$4*-1*'PM2.5 reduction'!AC206),9))","v":0.999973483},{"$f":"VALUE(FIXED(EXP(AD$4*-1*'PM2.5 reduction'!AD206),9))","v":0.99999082699999997},{"$f":"VALUE(FIXED(EXP(AE$4*-1*'PM2.5 reduction'!AE206),9))","v":0.99999081000000001},{"$f":"VALUE(FIXED(EXP(AF$4*-1*'PM2.5 reduction'!AF206),9))","v":0.99998494000000004},{"$f":"VALUE(FIXED(EXP(AG$4*-1*'PM2.5 reduction'!AG206),9))","v":0.99999081000000001},{"$f":"VALUE(FIXED(EXP(AH$4*-1*'PM2.5 reduction'!AH206),9))","v":0.99997919700000004},{"$f":"VALUE(FIXED(EXP(AI$4*-1*'PM2.5 reduction'!AI206),9))","v":0.99997106400000002},{"$f":"VALUE(FIXED(EXP(AJ$4*-1*'PM2.5 reduction'!AJ206),9))","v":0.99998365},{"$f":"VALUE(FIXED(EXP(AK$4*-1*'PM2.5 reduction'!AK206),9))","v":0.99999217699999998},{"$f":"VALUE(FIXED(EXP(AL$4*-1*'PM2.5 reduction'!AL206),9))","v":0.99999133200000001},{"$f":"VALUE(FIXED(EXP(AM$4*-1*'PM2.5 reduction'!AM206),9))","v":0.99997755300000002},{"$f":"VALUE(FIXED(EXP(AN$4*-1*'PM2.5 reduction'!AN206),9))","v":0.99999521300000005},{"$f":"VALUE(FIXED(EXP(AO$4*-1*'PM2.5 reduction'!AO206),9))","v":0.99999521300000005},{"$f":"VALUE(FIXED(EXP(AP$4*-1*'PM2.5 reduction'!AP206),9))","v":0.99999394500000005},{"$f":"VALUE(FIXED(EXP(AQ$4*-1*'PM2.5 reduction'!AQ206),9))","v":0.99997939499999999},{"$f":"VALUE(FIXED(EXP(AR$4*-1*'PM2.5 reduction'!AR206),9))","v":0.99998054199999997},{"$f":"VALUE(FIXED(EXP(AS$4*-1*'PM2.5 reduction'!AS206),9))","v":0.99999547099999997},{"$f":"VALUE(FIXED(EXP(AT$4*-1*'PM2.5 reduction'!AT206),9))","v":0.99999648100000005},{"$f":"VALUE(FIXED(EXP(AU$4*-1*'PM2.5 reduction'!AU206),9))","v":0.99999648100000005},{"$f":"VALUE(FIXED(EXP(AV$4*-1*'PM2.5 reduction'!AV206),9))","v":0.99998421800000004},{"$f":"VALUE(FIXED(EXP(AW$4*-1*'PM2.5 reduction'!AW206),9))","v":0.999980286},{"$f":"VALUE(FIXED(EXP(AX$4*-1*'PM2.5 reduction'!AX206),9))","v":0.99998714899999996},{"$f":"VALUE(FIXED(EXP(AY$4*-1*'PM2.5 reduction'!AY206),9))","v":0.99998658699999998},{"$f":"VALUE(FIXED(EXP(AZ$4*-1*'PM2.5 reduction'!AZ206),9))","v":0.99998714399999999},{"$f":"VALUE(FIXED(EXP(BA$4*-1*'PM2.5 reduction'!BA206),9))","v":0.99998325799999999},{"$f":"VALUE(FIXED(EXP(BB$4*-1*'PM2.5 reduction'!BB206),9))","v":0.99998337800000003},{"$f":"VALUE(FIXED(EXP(BC$4*-1*'PM2.5 reduction'!BC206),9))","v":1}]
[null,"Male 70-74",{"$f":"VALUE(FIXED(EXP(C$4*-1*'PM2.5 reduction'!C207),9))","v":0.99996952500000003},{"$f":"VALUE(FIXED(EXP(D$4*-1*'PM2.5 reduction'!D207),9))","v":0.99998258799999995},{"$f":"VALUE(FIXED(EXP(E$4*-1*'PM2.5 reduction'!E207),9))","v":0.99999361200000003},{"$f":"VALUE(FIXED(EXP(F$4*-1*'PM2.5 reduction'!F207),9))","v":0.99999283299999997},{"$f":"VALUE(FIXED(EXP(G$4*-1*'PM2.5 reduction'!G207),9))","v":0.99999097699999995},{"$f":"VALUE(FIXED(EXP(H$4*-1*'PM2.5 reduction'!H207),9))","v":0.999987242},{"$f":"VALUE(FIXED(EXP(I$4*-1*'PM2.5 reduction'!I207),9))","v":0.99999556199999995},{"$f":"VALUE(FIXED(EXP(J$4*-1*'PM2.5 reduction'!J207),9))","v":0.999986084},{"$f":"VALUE(FIXED(EXP(K$4*-1*'PM2.5 reduction'!K207),9))","v":0.99998532100000004},{"$f":"VALUE(FIXED(EXP(L$4*-1*'PM2.5 reduction'!L207),9))","v":0.99999387500000003},{"$f":"VALUE(FIXED(EXP(M$4*-1*'PM2.5 reduction'!M207),9))","v":0.99999387500000003},{"$f":"VALUE(FIXED(EXP(N$4*-1*'PM2.5 reduction'!N207),9))","v":0.99997388499999995},{"$f":"VALUE(FIXED(EXP(O$4*-1*'PM2.5 reduction'!O207),9))","v":0.99998551400000002},{"$f":"VALUE(FIXED(EXP(P$4*-1*'PM2.5 reduction'!P207),9))","v":0.99997628900000002},{"$f":"VALUE(FIXED(EXP(Q$4*-1*'PM2.5 reduction'!Q207),9))","v":0.99998675699999995},{"$f":"VALUE(FIXED(EXP(R$4*-1*'PM2.5 reduction'!R207),9))","v":0.99997736999999998},{"$f":"VALUE(FIXED(EXP(S$4*-1*'PM2.5 reduction'!S207),9))","v":0.99997889900000003},{"$f":"VALUE(FIXED(EXP(T$4*-1*'PM2.5 reduction'!T207),9))","v":0.99996355100000001},{"$f":"VALUE(FIXED(EXP(U$4*-1*'PM2.5 reduction'!U207),9))","v":1},{"$f":"VALUE(FIXED(EXP(V$4*-1*'PM2.5 reduction'!V207),9))","v":0.99997950999999996},{"$f":"VALUE(FIXED(EXP(W$4*-1*'PM2.5 reduction'!W207),9))","v":0.99998540899999999},{"$f":"VALUE(FIXED(EXP(X$4*-1*'PM2.5 reduction'!X207),9))","v":0.99998540899999999},{"$f":"VALUE(FIXED(EXP(Y$4*-1*'PM2.5 reduction'!Y207),9))","v":0.99998247500000004},{"$f":"VALUE(FIXED(EXP(Z$4*-1*'PM2.5 reduction'!Z207),9))","v":0.99996517799999995},{"$f":"VALUE(FIXED(EXP(AA$4*-1*'PM2.5 reduction'!AA207),9))","v":0.99997574099999997},{"$f":"VALUE(FIXED(EXP(AB$4*-1*'PM2.5 reduction'!AB207),9))","v":0.99998335800000004},{"$f":"VALUE(FIXED(EXP(AC$4*-1*'PM2.5 reduction'!AC207),9))","v":0.999974064},{"$f":"VALUE(FIXED(EXP(AD$4*-1*'PM2.5 reduction'!AD207),9))","v":0.99999074499999996},{"$f":"VALUE(FIXED(EXP(AE$4*-1*'PM2.5 reduction'!AE207),9))","v":0.99999071100000003},{"$f":"VALUE(FIXED(EXP(AF$4*-1*'PM2.5 reduction'!AF207),9))","v":0.999985279},{"$f":"VALUE(FIXED(EXP(AG$4*-1*'PM2.5 reduction'!AG207),9))","v":0.99999071100000003},{"$f":"VALUE(FIXED(EXP(AH$4*-1*'PM2.5 reduction'!AH207),9))","v":0.99997853699999995},{"$f":"VALUE(FIXED(EXP(AI$4*-1*'PM2.5 reduction'!AI207),9))","v":0.99997295100000005},{"$f":"VALUE(FIXED(EXP(AJ$4*-1*'PM2.5 reduction'!AJ207),9))","v":0.99998366599999999},{"$f":"VALUE(FIXED(EXP(AK$4*-1*'PM2.5 reduction'!AK207),9))","v":0.99999189899999996},{"$f":"VALUE(FIXED(EXP(AL$4*-1*'PM2.5 reduction'!AL207),9))","v":0.99999129099999995},{"$f":"VALUE(FIXED(EXP(AM$4*-1*'PM2.5 reduction'!AM207),9))","v":0.99997701500000002},{"$f":"VALUE(FIXED(EXP(AN$4*-1*'PM2.5 reduction'!AN207),9))","v":0.99999516600000005},{"$f":"VALUE(FIXED(EXP(AO$4*-1*'PM2.5 reduction'!AO207),9))","v":0.99999516600000005},{"$f":"VALUE(FIXED(EXP(AP$4*-1*'PM2.5 reduction'!AP207),9))","v":0.99999332299999999},{"$f":"VALUE(FIXED(EXP(AQ$4*-1*'PM2.5 reduction'!AQ207),9))","v":0.99997953100000003},{"$f":"VALUE(FIXED(EXP(AR$4*-1*'PM2.5 reduction'!AR207),9))","v":0.99998124600000005},{"$f":"VALUE(FIXED(EXP(AS$4*-1*'PM2.5 reduction'!AS207),9))","v":0.99999556199999995},{"$f":"VALUE(FIXED(EXP(AT$4*-1*'PM2.5 reduction'!AT207),9))","v":0.99999641800000005},{"$f":"VALUE(FIXED(EXP(AU$4*-1*'PM2.5 reduction'!AU207),9))","v":0.99999641800000005},{"$f":"VALUE(FIXED(EXP(AV$4*-1*'PM2.5 reduction'!AV207),9))","v":0.99998442700000001},{"$f":"VALUE(FIXED(EXP(AW$4*-1*'PM2.5 reduction'!AW207),9))","v":0.99997966299999996},{"$f":"VALUE(FIXED(EXP(AX$4*-1*'PM2.5 reduction'!AX207),9))","v":0.999986547},{"$f":"VALUE(FIXED(EXP(AY$4*-1*'PM2.5 reduction'!AY207),9))","v":0.99998708199999997},{"$f":"VALUE(FIXED(EXP(AZ$4*-1*'PM2.5 reduction'!AZ207),9))","v":0.99998806699999998},{"$f":"VALUE(FIXED(EXP(BA$4*-1*'PM2.5 reduction'!BA207),9))","v":0.99998378099999996},{"$f":"VALUE(FIXED(EXP(BB$4*-1*'PM2.5 reduction'!BB207),9))","v":0.99998345499999997},{"$f":"VALUE(FIXED(EXP(BC$4*-1*'PM2.5 reduction'!BC207),9))","v":1}]
[null,"Male 75-79",{"$f":"VALUE(FIXED(EXP(C$4*-1*'PM2.5 reduction'!C208),9))","v":0.99997091599999999},{"$f":"VALUE(FIXED(EXP(D$4*-1*'PM2.5 reduction'!D208),9))","v":0.99998414000000002},{"$f":"VALUE(FIXED(EXP(E$4*-1*'PM2.5 reduction'!E208),9))","v":0.99999386800000001},{"$f":"VALUE(FIXED(EXP(F$4*-1*'PM2.5 reduction'!F208),9))","v":0.99999256700000005},{"$f":"VALUE(FIXED(EXP(G$4*-1*'PM2.5 reduction'!G208),9))","v":0.99999087399999997},{"$f":"VALUE(FIXED(EXP(H$4*-1*'PM2.5 reduction'!H208),9))","v":0.99998716499999996},{"$f":"VALUE(FIXED(EXP(I$4*-1*'PM2.5 reduction'!I208),9))","v":0.99999535699999997},{"$f":"VALUE(FIXED(EXP(J$4*-1*'PM2.5 reduction'!J208),9))","v":0.99998649900000003},{"$f":"VALUE(FIXED(EXP(K$4*-1*'PM2.5 reduction'!K208),9))","v":0.99998428500000003},{"$f":"VALUE(FIXED(EXP(L$4*-1*'PM2.5 reduction'!L208),9))","v":0.99999403799999997},{"$f":"VALUE(FIXED(EXP(M$4*-1*'PM2.5 reduction'!M208),9))","v":0.99999403799999997},{"$f":"VALUE(FIXED(EXP(N$4*-1*'PM2.5 reduction'!N208),9))","v":0.99997235799999995},{"$f":"VALUE(FIXED(EXP(O$4*-1*'PM2.5 reduction'!O208),9))","v":0.99998534900000002},{"$f":"VALUE(FIXED(EXP(P$4*-1*'PM2.5 reduction'!P208),9))","v":0.99997676599999996},{"$f":"VALUE(FIXED(EXP(Q$4*-1*'PM2.5 reduction'!Q208),9))","v":0.99998798899999997},{"$f":"VALUE(FIXED(EXP(R$4*-1*'PM2.5 reduction'!R208),9))","v":0.99997807599999999},{"$f":"VALUE(FIXED(EXP(S$4*-1*'PM2.5 reduction'!S208),9))","v":0.99997804599999995},{"$f":"VALUE(FIXED(EXP(T$4*-1*'PM2.5 reduction'!T208),9))","v":0.99996290700000001},{"$f":"VALUE(FIXED(EXP(U$4*-1*'PM2.5 reduction'!U208),9))","v":1},{"$f":"VALUE(FIXED(EXP(V$4*-1*'PM2.5 reduction'!V208),9))","v":0.99997957900000001},{"$f":"VALUE(FIXED(EXP(W$4*-1*'PM2.5 reduction'!W208),9))","v":0.99998518199999997},{"$f":"VALUE(FIXED(EXP(X$4*-1*'PM2.5 reduction'!X208),9))","v":0.99998518199999997},{"$f":"VALUE(FIXED(EXP(Y$4*-1*'PM2.5 reduction'!Y208),9))","v":0.99998229299999997},{"$f":"VALUE(FIXED(EXP(Z$4*-1*'PM2.5 reduction'!Z208),9))","v":0.99996462600000002},{"$f":"VALUE(FIXED(EXP(AA$4*-1*'PM2.5 reduction'!AA208),9))","v":0.99997533900000002},{"$f":"VALUE(FIXED(EXP(AB$4*-1*'PM2.5 reduction'!AB208),9))","v":0.99998463900000001},{"$f":"VALUE(FIXED(EXP(AC$4*-1*'PM2.5 reduction'!AC208),9))","v":0.99997380400000002},{"$f":"VALUE(FIXED(EXP(AD$4*-1*'PM2.5 reduction'!AD208),9))","v":0.99999025399999997},{"$f":"VALUE(FIXED(EXP(AE$4*-1*'PM2.5 reduction'!AE208),9))","v":0.99999015300000005},{"$f":"VALUE(FIXED(EXP(AF$4*-1*'PM2.5 reduction'!AF208),9))","v":0.99998340799999996},{"$f":"VALUE(FIXED(EXP(AG$4*-1*'PM2.5 reduction'!AG208),9))","v":0.99999015300000005},{"$f":"VALUE(FIXED(EXP(AH$4*-1*'PM2.5 reduction'!AH208),9))","v":0.99997838699999997},{"$f":"VALUE(FIXED(EXP(AI$4*-1*'PM2.5 reduction'!AI208),9))","v":0.999971795},{"$f":"VALUE(FIXED(EXP(AJ$4*-1*'PM2.5 reduction'!AJ208),9))","v":0.99998376200000005},{"$f":"VALUE(FIXED(EXP(AK$4*-1*'PM2.5 reduction'!AK208),9))","v":0.99998944000000001},{"$f":"VALUE(FIXED(EXP(AL$4*-1*'PM2.5 reduction'!AL208),9))","v":0.99999141000000002},{"$f":"VALUE(FIXED(EXP(AM$4*-1*'PM2.5 reduction'!AM208),9))","v":0.99997670999999999},{"$f":"VALUE(FIXED(EXP(AN$4*-1*'PM2.5 reduction'!AN208),9))","v":0.99999559599999999},{"$f":"VALUE(FIXED(EXP(AO$4*-1*'PM2.5 reduction'!AO208),9))","v":0.99999559599999999},{"$f":"VALUE(FIXED(EXP(AP$4*-1*'PM2.5 reduction'!AP208),9))","v":0.99999352699999999},{"$f":"VALUE(FIXED(EXP(AQ$4*-1*'PM2.5 reduction'!AQ208),9))","v":0.99997942200000001},{"$f":"VALUE(FIXED(EXP(AR$4*-1*'PM2.5 reduction'!AR208),9))","v":0.99998104499999996},{"$f":"VALUE(FIXED(EXP(AS$4*-1*'PM2.5 reduction'!AS208),9))","v":0.99999535699999997},{"$f":"VALUE(FIXED(EXP(AT$4*-1*'PM2.5 reduction'!AT208),9))","v":0.99999670500000004},{"$f":"VALUE(FIXED(EXP(AU$4*-1*'PM2.5 reduction'!AU208),9))","v":0.99999670500000004},{"$f":"VALUE(FIXED(EXP(AV$4*-1*'PM2.5 reduction'!AV208),9))","v":0.99998416400000001},{"$f":"VALUE(FIXED(EXP(AW$4*-1*'PM2.5 reduction'!AW208),9))","v":0.99997961499999999},{"$f":"VALUE(FIXED(EXP(AX$4*-1*'PM2.5 reduction'!AX208),9))","v":0.99998759800000003},{"$f":"VALUE(FIXED(EXP(AY$4*-1*'PM2.5 reduction'!AY208),9))","v":0.99998710999999996},{"$f":"VALUE(FIXED(EXP(AZ$4*-1*'PM2.5 reduction'!AZ208),9))","v":0.99998807700000003},{"$f":"VALUE(FIXED(EXP(BA$4*-1*'PM2.5 reduction'!BA208),9))","v":0.99998341099999999},{"$f":"VALUE(FIXED(EXP(BB$4*-1*'PM2.5 reduction'!BB208),9))","v":0.99998306599999998},{"$f":"VALUE(FIXED(EXP(BC$4*-1*'PM2.5 reduction'!BC208),9))","v":1}]
[null,"Male 80-84",{"$f":"VALUE(FIXED(EXP(C$4*-1*'PM2.5 reduction'!C209),9))","v":0.99996913099999996},{"$f":"VALUE(FIXED(EXP(D$4*-1*'PM2.5 reduction'!D209),9))","v":0.99998330700000004},{"$f":"VALUE(FIXED(EXP(E$4*-1*'PM2.5 reduction'!E209),9))","v":0.99999364400000001},{"$f":"VALUE(FIXED(EXP(F$4*-1*'PM2.5 reduction'!F209),9))","v":0.99999259699999998},{"$f":"VALUE(FIXED(EXP(G$4*-1*'PM2.5 reduction'!G209),9))","v":0.999990924},{"$f":"VALUE(FIXED(EXP(H$4*-1*'PM2.5 reduction'!H209),9))","v":0.99998674700000001},{"$f":"VALUE(FIXED(EXP(I$4*-1*'PM2.5 reduction'!I209),9))","v":0.99999535299999998},{"$f":"VALUE(FIXED(EXP(J$4*-1*'PM2.5 reduction'!J209),9))","v":0.99998652600000004},{"$f":"VALUE(FIXED(EXP(K$4*-1*'PM2.5 reduction'!K209),9))","v":0.99998530500000005},{"$f":"VALUE(FIXED(EXP(L$4*-1*'PM2.5 reduction'!L209),9))","v":0.999993574},{"$f":"VALUE(FIXED(EXP(M$4*-1*'PM2.5 reduction'!M209),9))","v":0.999993574},{"$f":"VALUE(FIXED(EXP(N$4*-1*'PM2.5 reduction'!N209),9))","v":0.99997321100000003},{"$f":"VALUE(FIXED(EXP(O$4*-1*'PM2.5 reduction'!O209),9))","v":0.99998552399999996},{"$f":"VALUE(FIXED(EXP(P$4*-1*'PM2.5 reduction'!P209),9))","v":0.99997533800000005},{"$f":"VALUE(FIXED(EXP(Q$4*-1*'PM2.5 reduction'!Q209),9))","v":0.99998679400000001},{"$f":"VALUE(FIXED(EXP(R$4*-1*'PM2.5 reduction'!R209),9))","v":0.99997781299999999},{"$f":"VALUE(FIXED(EXP(S$4*-1*'PM2.5 reduction'!S209),9))","v":0.99997773700000003},{"$f":"VALUE(FIXED(EXP(T$4*-1*'PM2.5 reduction'!T209),9))","v":0.99996338500000004},{"$f":"VALUE(FIXED(EXP(U$4*-1*'PM2.5 reduction'!U209),9))","v":1},{"$f":"VALUE(FIXED(EXP(V$4*-1*'PM2.5 reduction'!V209),9))","v":0.99997852700000001},{"$f":"VALUE(FIXED(EXP(W$4*-1*'PM2.5 reduction'!W209),9))","v":0.99998532200000001},{"$f":"VALUE(FIXED(EXP(X$4*-1*'PM2.5 reduction'!X209),9))","v":0.99998532200000001},{"$f":"VALUE(FIXED(EXP(Y$4*-1*'PM2.5 reduction'!Y209),9))","v":0.99998179799999998},{"$f":"VALUE(FIXED(EXP(Z$4*-1*'PM2.5 reduction'!Z209),9))","v":0.99996500499999996},{"$f":"VALUE(FIXED(EXP(AA$4*-1*'PM2.5 reduction'!AA209),9))","v":0.99997490899999997},{"$f":"VALUE(FIXED(EXP(AB$4*-1*'PM2.5 reduction'!AB209),9))","v":0.99998387799999999},{"$f":"VALUE(FIXED(EXP(AC$4*-1*'PM2.5 reduction'!AC209),9))","v":0.99997319399999995},{"$f":"VALUE(FIXED(EXP(AD$4*-1*'PM2.5 reduction'!AD209),9))","v":0.99999053400000004},{"$f":"VALUE(FIXED(EXP(AE$4*-1*'PM2.5 reduction'!AE209),9))","v":0.99999045900000005},{"$f":"VALUE(FIXED(EXP(AF$4*-1*'PM2.5 reduction'!AF209),9))","v":0.99998169100000001},{"$f":"VALUE(FIXED(EXP(AG$4*-1*'PM2.5 reduction'!AG209),9))","v":0.99999045900000005},{"$f":"VALUE(FIXED(EXP(AH$4*-1*'PM2.5 reduction'!AH209),9))","v":0.99997853400000003},{"$f":"VALUE(FIXED(EXP(AI$4*-1*'PM2.5 reduction'!AI209),9))","v":0.99997142000000006},{"$f":"VALUE(FIXED(EXP(AJ$4*-1*'PM2.5 reduction'!AJ209),9))","v":0.99998419599999999},{"$f":"VALUE(FIXED(EXP(AK$4*-1*'PM2.5 reduction'!AK209),9))","v":0.99999052200000005},{"$f":"VALUE(FIXED(EXP(AL$4*-1*'PM2.5 reduction'!AL209),9))","v":0.99999090499999999},{"$f":"VALUE(FIXED(EXP(AM$4*-1*'PM2.5 reduction'!AM209),9))","v":0.99997711899999997},{"$f":"VALUE(FIXED(EXP(AN$4*-1*'PM2.5 reduction'!AN209),9))","v":0.99999539299999995},{"$f":"VALUE(FIXED(EXP(AO$4*-1*'PM2.5 reduction'!AO209),9))","v":0.99999539299999995},{"$f":"VALUE(FIXED(EXP(AP$4*-1*'PM2.5 reduction'!AP209),9))","v":0.99999345299999998},{"$f":"VALUE(FIXED(EXP(AQ$4*-1*'PM2.5 reduction'!AQ209),9))","v":0.99997936200000004},{"$f":"VALUE(FIXED(EXP(AR$4*-1*'PM2.5 reduction'!AR209),9))","v":0.99998060300000002},{"$f":"VALUE(FIXED(EXP(AS$4*-1*'PM2.5 reduction'!AS209),9))","v":0.99999535299999998},{"$f":"VALUE(FIXED(EXP(AT$4*-1*'PM2.5 reduction'!AT209),9))","v":0.99999649199999996},{"$f":"VALUE(FIXED(EXP(AU$4*-1*'PM2.5 reduction'!AU209),9))","v":0.99999649199999996},{"$f":"VALUE(FIXED(EXP(AV$4*-1*'PM2.5 reduction'!AV209),9))","v":0.999984294},{"$f":"VALUE(FIXED(EXP(AW$4*-1*'PM2.5 reduction'!AW209),9))","v":0.999979336},{"$f":"VALUE(FIXED(EXP(AX$4*-1*'PM2.5 reduction'!AX209),9))","v":0.99998709900000005},{"$f":"VALUE(FIXED(EXP(AY$4*-1*'PM2.5 reduction'!AY209),9))","v":0.99998654600000003},{"$f":"VALUE(FIXED(EXP(AZ$4*-1*'PM2.5 reduction'!AZ209),9))","v":0.99998706299999995},{"$f":"VALUE(FIXED(EXP(BA$4*-1*'PM2.5 reduction'!BA209),9))","v":0.99998288000000002},{"$f":"VALUE(FIXED(EXP(BB$4*-1*'PM2.5 reduction'!BB209),9))","v":0.99998361000000002},{"$f":"VALUE(FIXED(EXP(BC$4*-1*'PM2.5 reduction'!BC209),9))","v":1}]
[null,"Male 85-89",{"$f":"VALUE(FIXED(EXP(C$4*-1*'PM2.5 reduction'!C210),9))","v":0.99996747699999999},{"$f":"VALUE(FIXED(EXP(D$4*-1*'PM2.5 reduction'!D210),9))","v":0.99998407600000006},{"$f":"VALUE(FIXED(EXP(E$4*-1*'PM2.5 reduction'!E210),9))","v":0.99999353700000004},{"$f":"VALUE(FIXED(EXP(F$4*-1*'PM2.5 reduction'!F210),9))","v":0.99999294100000002},{"$f":"VALUE(FIXED(EXP(G$4*-1*'PM2.5 reduction'!G210),9))","v":0.99999088599999997},{"$f":"VALUE(FIXED(EXP(H$4*-1*'PM2.5 reduction'!H210),9))","v":0.99998636900000004},{"$f":"VALUE(FIXED(EXP(I$4*-1*'PM2.5 reduction'!I210),9))","v":0.99999553500000005},{"$f":"VALUE(FIXED(EXP(J$4*-1*'PM2.5 reduction'!J210),9))","v":0.99998746800000005},{"$f":"VALUE(FIXED(EXP(K$4*-1*'PM2.5 reduction'!K210),9))","v":0.99998824600000003},{"$f":"VALUE(FIXED(EXP(L$4*-1*'PM2.5 reduction'!L210),9))","v":0.99999371599999998},{"$f":"VALUE(FIXED(EXP(M$4*-1*'PM2.5 reduction'!M210),9))","v":0.99999371599999998},{"$f":"VALUE(FIXED(EXP(N$4*-1*'PM2.5 reduction'!N210),9))","v":0.99997271600000004},{"$f":"VALUE(FIXED(EXP(O$4*-1*'PM2.5 reduction'!O210),9))","v":0.99998367499999996},{"$f":"VALUE(FIXED(EXP(P$4*-1*'PM2.5 reduction'!P210),9))","v":0.999975171},{"$f":"VALUE(FIXED(EXP(Q$4*-1*'PM2.5 reduction'!Q210),9))","v":0.99998787499999997},{"$f":"VALUE(FIXED(EXP(R$4*-1*'PM2.5 reduction'!R210),9))","v":0.99997637800000005},{"$f":"VALUE(FIXED(EXP(S$4*-1*'PM2.5 reduction'!S210),9))","v":0.99997584399999995},{"$f":"VALUE(FIXED(EXP(T$4*-1*'PM2.5 reduction'!T210),9))","v":0.99996202700000003},{"$f":"VALUE(FIXED(EXP(U$4*-1*'PM2.5 reduction'!U210),9))","v":1},{"$f":"VALUE(FIXED(EXP(V$4*-1*'PM2.5 reduction'!V210),9))","v":0.99997679699999997},{"$f":"VALUE(FIXED(EXP(W$4*-1*'PM2.5 reduction'!W210),9))","v":0.99998637700000004},{"$f":"VALUE(FIXED(EXP(X$4*-1*'PM2.5 reduction'!X210),9))","v":0.99998637700000004},{"$f":"VALUE(FIXED(EXP(Y$4*-1*'PM2.5 reduction'!Y210),9))","v":0.99998158199999998},{"$f":"VALUE(FIXED(EXP(Z$4*-1*'PM2.5 reduction'!Z210),9))","v":0.99996354300000001},{"$f":"VALUE(FIXED(EXP(AA$4*-1*'PM2.5 reduction'!AA210),9))","v":0.99997373199999995},{"$f":"VALUE(FIXED(EXP(AB$4*-1*'PM2.5 reduction'!AB210),9))","v":0.99998456899999999},{"$f":"VALUE(FIXED(EXP(AC$4*-1*'PM2.5 reduction'!AC210),9))","v":0.99997220499999995},{"$f":"VALUE(FIXED(EXP(AD$4*-1*'PM2.5 reduction'!AD210),9))","v":0.99998972100000005},{"$f":"VALUE(FIXED(EXP(AE$4*-1*'PM2.5 reduction'!AE210),9))","v":0.99998955},{"$f":"VALUE(FIXED(EXP(AF$4*-1*'PM2.5 reduction'!AF210),9))","v":0.99998072400000004},{"$f":"VALUE(FIXED(EXP(AG$4*-1*'PM2.5 reduction'!AG210),9))","v":0.99998955},{"$f":"VALUE(FIXED(EXP(AH$4*-1*'PM2.5 reduction'!AH210),9))","v":0.99997736000000004},{"$f":"VALUE(FIXED(EXP(AI$4*-1*'PM2.5 reduction'!AI210),9))","v":0.99996973099999997},{"$f":"VALUE(FIXED(EXP(AJ$4*-1*'PM2.5 reduction'!AJ210),9))","v":0.99998442399999998},{"$f":"VALUE(FIXED(EXP(AK$4*-1*'PM2.5 reduction'!AK210),9))","v":0.99998941200000002},{"$f":"VALUE(FIXED(EXP(AL$4*-1*'PM2.5 reduction'!AL210),9))","v":0.99999098799999997},{"$f":"VALUE(FIXED(EXP(AM$4*-1*'PM2.5 reduction'!AM210),9))","v":0.99997530499999998},{"$f":"VALUE(FIXED(EXP(AN$4*-1*'PM2.5 reduction'!AN210),9))","v":0.99999516600000005},{"$f":"VALUE(FIXED(EXP(AO$4*-1*'PM2.5 reduction'!AO210),9))","v":0.99999516600000005},{"$f":"VALUE(FIXED(EXP(AP$4*-1*'PM2.5 reduction'!AP210),9))","v":0.99999363299999999},{"$f":"VALUE(FIXED(EXP(AQ$4*-1*'PM2.5 reduction'!AQ210),9))","v":0.99997767000000004},{"$f":"VALUE(FIXED(EXP(AR$4*-1*'PM2.5 reduction'!AR210),9))","v":0.99997987600000005},{"$f":"VALUE(FIXED(EXP(AS$4*-1*'PM2.5 reduction'!AS210),9))","v":0.99999553500000005},{"$f":"VALUE(FIXED(EXP(AT$4*-1*'PM2.5 reduction'!AT210),9))","v":0.99999610800000005},{"$f":"VALUE(FIXED(EXP(AU$4*-1*'PM2.5 reduction'!AU210),9))","v":0.99999610800000005},{"$f":"VALUE(FIXED(EXP(AV$4*-1*'PM2.5 reduction'!AV210),9))","v":0.99998365499999997},{"$f":"VALUE(FIXED(EXP(AW$4*-1*'PM2.5 reduction'!AW210),9))","v":0.99997837000000001},{"$f":"VALUE(FIXED(EXP(AX$4*-1*'PM2.5 reduction'!AX210),9))","v":0.99998717999999998},{"$f":"VALUE(FIXED(EXP(AY$4*-1*'PM2.5 reduction'!AY210),9))","v":0.99998745200000005},{"$f":"VALUE(FIXED(EXP(AZ$4*-1*'PM2.5 reduction'!AZ210),9))","v":0.99998780899999995},{"$f":"VALUE(FIXED(EXP(BA$4*-1*'PM2.5 reduction'!BA210),9))","v":0.99998273500000001},{"$f":"VALUE(FIXED(EXP(BB$4*-1*'PM2.5 reduction'!BB210),9))","v":0.99998391399999997},{"$f":"VALUE(FIXED(EXP(BC$4*-1*'PM2.5 reduction'!BC210),9))","v":1}]
[null,"Male 90+",{"$f":"VALUE(FIXED(EXP(C$4*-1*'PM2.5 reduction'!C211),9))","v":0.999960603},{"$f":"VALUE(FIXED(EXP(D$4*-1*'PM2.5 reduction'!D211),9))","v":0.99998410500000001},{"$f":"VALUE(FIXED(EXP(E$4*-1*'PM2.5 reduction'!E211),9))","v":0.99999276400000003},{"$f":"VALUE(FIXED(EXP(F$4*-1*'PM2.5 reduction'!F211),9))","v":0.99999327900000001},{"$f":"VALUE(FIXED(EXP(G$4*-1*'PM2.5 reduction'!G211),9))","v":0.99999069200000001},{"$f":"VALUE(FIXED(EXP(H$4*-1*'PM2.5 reduction'!H211),9))","v":0.99998479399999995},{"$f":"VALUE(FIXED(EXP(I$4*-1*'PM2.5 reduction'!I211),9))","v":0.99999507899999995},{"$f":"VALUE(FIXED(EXP(J$4*-1*'PM2.5 reduction'!J211),9))","v":0.99998760200000003},{"$f":"VALUE(FIXED(EXP(K$4*-1*'PM2.5 reduction'!K211),9))","v":0.99998587400000005},{"$f":"VALUE(FIXED(EXP(L$4*-1*'PM2.5 reduction'!L211),9))","v":0.99999280400000001},{"$f":"VALUE(FIXED(EXP(M$4*-1*'PM2.5 reduction'!M211),9))","v":0.99999280400000001},{"$f":"VALUE(FIXED(EXP(N$4*-1*'PM2.5 reduction'!N211),9))","v":0.99997495000000003},{"$f":"VALUE(FIXED(EXP(O$4*-1*'PM2.5 reduction'!O211),9))","v":0.99998258299999998},{"$f":"VALUE(FIXED(EXP(P$4*-1*'PM2.5 reduction'!P211),9))","v":0.99997470600000005},{"$f":"VALUE(FIXED(EXP(Q$4*-1*'PM2.5 reduction'!Q211),9))","v":0.99998939099999995},{"$f":"VALUE(FIXED(EXP(R$4*-1*'PM2.5 reduction'!R211),9))","v":0.99997490300000003},{"$f":"VALUE(FIXED(EXP(S$4*-1*'PM2.5 reduction'!S211),9))","v":0.99997450899999996},{"$f":"VALUE(FIXED(EXP(T$4*-1*'PM2.5 reduction'!T211),9))","v":0.99996465199999995},{"$f":"VALUE(FIXED(EXP(U$4*-1*'PM2.5 reduction'!U211),9))","v":1},{"$f":"VALUE(FIXED(EXP(V$4*-1*'PM2.5 reduction'!V211),9))","v":0.99997679699999997},{"$f":"VALUE(FIXED(EXP(W$4*-1*'PM2.5 reduction'!W211),9))","v":0.99998703600000005},{"$f":"VALUE(FIXED(EXP(X$4*-1*'PM2.5 reduction'!X211),9))","v":0.99998703600000005},{"$f":"VALUE(FIXED(EXP(Y$4*-1*'PM2.5 reduction'!Y211),9))","v":0.99998116500000001},{"$f":"VALUE(FIXED(EXP(Z$4*-1*'PM2.5 reduction'!Z211),9))","v":0.99996356900000005},{"$f":"VALUE(FIXED(EXP(AA$4*-1*'PM2.5 reduction'!AA211),9))","v":0.999973997},{"$f":"VALUE(FIXED(EXP(AB$4*-1*'PM2.5 reduction'!AB211),9))","v":0.99998462200000005},{"$f":"VALUE(FIXED(EXP(AC$4*-1*'PM2.5 reduction'!AC211),9))","v":0.99997180399999996},{"$f":"VALUE(FIXED(EXP(AD$4*-1*'PM2.5 reduction'!AD211),9))","v":0.999988612},{"$f":"VALUE(FIXED(EXP(AE$4*-1*'PM2.5 reduction'!AE211),9))","v":0.99998826500000004},{"$f":"VALUE(FIXED(EXP(AF$4*-1*'PM2.5 reduction'!AF211),9))","v":0.99998119600000002},{"$f":"VALUE(FIXED(EXP(AG$4*-1*'PM2.5 reduction'!AG211),9))","v":0.99998826500000004},{"$f":"VALUE(FIXED(EXP(AH$4*-1*'PM2.5 reduction'!AH211),9))","v":0.99997961400000002},{"$f":"VALUE(FIXED(EXP(AI$4*-1*'PM2.5 reduction'!AI211),9))","v":0.99996866799999995},{"$f":"VALUE(FIXED(EXP(AJ$4*-1*'PM2.5 reduction'!AJ211),9))","v":0.99998185399999995},{"$f":"VALUE(FIXED(EXP(AK$4*-1*'PM2.5 reduction'!AK211),9))","v":0.99999581999999998},{"$f":"VALUE(FIXED(EXP(AL$4*-1*'PM2.5 reduction'!AL211),9))","v":0.99998973400000002},{"$f":"VALUE(FIXED(EXP(AM$4*-1*'PM2.5 reduction'!AM211),9))","v":0.99997859200000005},{"$f":"VALUE(FIXED(EXP(AN$4*-1*'PM2.5 reduction'!AN211),9))","v":0.99999591600000004},{"$f":"VALUE(FIXED(EXP(AO$4*-1*'PM2.5 reduction'!AO211),9))","v":0.99999591600000004},{"$f":"VALUE(FIXED(EXP(AP$4*-1*'PM2.5 reduction'!AP211),9))","v":0.99999314500000003},{"$f":"VALUE(FIXED(EXP(AQ$4*-1*'PM2.5 reduction'!AQ211),9))","v":0.99997657699999998},{"$f":"VALUE(FIXED(EXP(AR$4*-1*'PM2.5 reduction'!AR211),9))","v":0.99997971399999996},{"$f":"VALUE(FIXED(EXP(AS$4*-1*'PM2.5 reduction'!AS211),9))","v":0.99999507899999995},{"$f":"VALUE(FIXED(EXP(AT$4*-1*'PM2.5 reduction'!AT211),9))","v":0.99999750099999996},{"$f":"VALUE(FIXED(EXP(AU$4*-1*'PM2.5 reduction'!AU211),9))","v":0.99999750099999996},{"$f":"VALUE(FIXED(EXP(AV$4*-1*'PM2.5 reduction'!AV211),9))","v":0.99998376700000002},{"$f":"VALUE(FIXED(EXP(AW$4*-1*'PM2.5 reduction'!AW211),9))","v":0.999980223},{"$f":"VALUE(FIXED(EXP(AX$4*-1*'PM2.5 reduction'!AX211),9))","v":0.99998792599999997},{"$f":"VALUE(FIXED(EXP(AY$4*-1*'PM2.5 reduction'!AY211),9))","v":0.99998666999999997},{"$f":"VALUE(FIXED(EXP(AZ$4*-1*'PM2.5 reduction'!AZ211),9))","v":0.99998654899999995},{"$f":"VALUE(FIXED(EXP(BA$4*-1*'PM2.5 reduction'!BA211),9))","v":0.99998332300000004},{"$f":"VALUE(FIXED(EXP(BB$4*-1*'PM2.5 reduction'!BB211),9))","v":0.99997983199999996},{"$f":"VALUE(FIXED(EXP(BC$4*-1*'PM2.5 reduction'!BC211),9))","v":1}]
["SIMD Q5 (least deprived)","Female 0-4",{"$f":"VALUE(FIXED(EXP(C$4*-1*'PM2.5 reduction'!C212),9))","v":0.99996868000000005},{"$f":"VALUE(FIXED(EXP(D$4*-1*'PM2.5 reduction'!D212),9))","v":0.99997949699999999},{"$f":"VALUE(FIXED(EXP(E$4*-1*'PM2.5 reduction'!E212),9))","v":0.99999382000000003},{"$f":"VALUE(FIXED(EXP(F$4*-1*'PM2.5 reduction'!F212),9))","v":0.99999256599999997},{"$f":"VALUE(FIXED(EXP(G$4*-1*'PM2.5 reduction'!G212),9))","v":0.999994418},{"$f":"VALUE(FIXED(EXP(H$4*-1*'PM2.5 reduction'!H212),9))","v":0.99998782900000005},{"$f":"VALUE(FIXED(EXP(I$4*-1*'PM2.5 reduction'!I212),9))","v":0.999995466},{"$f":"VALUE(FIXED(EXP(J$4*-1*'PM2.5 reduction'!J212),9))","v":0.99998749899999995},{"$f":"VALUE(FIXED(EXP(K$4*-1*'PM2.5 reduction'!K212),9))","v":0.99998474699999995},{"$f":"VALUE(FIXED(EXP(L$4*-1*'PM2.5 reduction'!L212),9))","v":0.99999279100000005},{"$f":"VALUE(FIXED(EXP(M$4*-1*'PM2.5 reduction'!M212),9))","v":0.99999279100000005},{"$f":"VALUE(FIXED(EXP(N$4*-1*'PM2.5 reduction'!N212),9))","v":0.99997969900000006},{"$f":"VALUE(FIXED(EXP(O$4*-1*'PM2.5 reduction'!O212),9))","v":0.99998640999999999},{"$f":"VALUE(FIXED(EXP(P$4*-1*'PM2.5 reduction'!P212),9))","v":0.999975528},{"$f":"VALUE(FIXED(EXP(Q$4*-1*'PM2.5 reduction'!Q212),9))","v":0.99999091100000004},{"$f":"VALUE(FIXED(EXP(R$4*-1*'PM2.5 reduction'!R212),9))","v":0.99997440999999998},{"$f":"VALUE(FIXED(EXP(S$4*-1*'PM2.5 reduction'!S212),9))","v":0.99997068200000006},{"$f":"VALUE(FIXED(EXP(T$4*-1*'PM2.5 reduction'!T212),9))","v":0.99996138000000001},{"$f":"VALUE(FIXED(EXP(U$4*-1*'PM2.5 reduction'!U212),9))","v":1},{"$f":"VALUE(FIXED(EXP(V$4*-1*'PM2.5 reduction'!V212),9))","v":0.999981589},{"$f":"VALUE(FIXED(EXP(W$4*-1*'PM2.5 reduction'!W212),9))","v":0.99998542400000001},{"$f":"VALUE(FIXED(EXP(X$4*-1*'PM2.5 reduction'!X212),9))","v":0.99998542400000001},{"$f":"VALUE(FIXED(EXP(Y$4*-1*'PM2.5 reduction'!Y212),9))","v":0.99998423000000003},{"$f":"VALUE(FIXED(EXP(Z$4*-1*'PM2.5 reduction'!Z212),9))","v":0.99996385499999996},{"$f":"VALUE(FIXED(EXP(AA$4*-1*'PM2.5 reduction'!AA212),9))","v":0.99997482900000001},{"$f":"VALUE(FIXED(EXP(AB$4*-1*'PM2.5 reduction'!AB212),9))","v":0.999980019},{"$f":"VALUE(FIXED(EXP(AC$4*-1*'PM2.5 reduction'!AC212),9))","v":0.99997267400000001},{"$f":"VALUE(FIXED(EXP(AD$4*-1*'PM2.5 reduction'!AD212),9))","v":0.99999159999999998},{"$f":"VALUE(FIXED(EXP(AE$4*-1*'PM2.5 reduction'!AE212),9))","v":0.99999063700000002},{"$f":"VALUE(FIXED(EXP(AF$4*-1*'PM2.5 reduction'!AF212),9))","v":0.99998993300000005},{"$f":"VALUE(FIXED(EXP(AG$4*-1*'PM2.5 reduction'!AG212),9))","v":0.99999063700000002},{"$f":"VALUE(FIXED(EXP(AH$4*-1*'PM2.5 reduction'!AH212),9))","v":0.99998149199999997},{"$f":"VALUE(FIXED(EXP(AI$4*-1*'PM2.5 reduction'!AI212),9))","v":0.99996707299999998},{"$f":"VALUE(FIXED(EXP(AJ$4*-1*'PM2.5 reduction'!AJ212),9))","v":0.99998427300000003},{"$f":"VALUE(FIXED(EXP(AK$4*-1*'PM2.5 reduction'!AK212),9))","v":0.99999318199999998},{"$f":"VALUE(FIXED(EXP(AL$4*-1*'PM2.5 reduction'!AL212),9))","v":0.99999072},{"$f":"VALUE(FIXED(EXP(AM$4*-1*'PM2.5 reduction'!AM212),9))","v":0.99997900200000001},{"$f":"VALUE(FIXED(EXP(AN$4*-1*'PM2.5 reduction'!AN212),9))","v":1},{"$f":"VALUE(FIXED(EXP(AO$4*-1*'PM2.5 reduction'!AO212),9))","v":1},{"$f":"VALUE(FIXED(EXP(AP$4*-1*'PM2.5 reduction'!AP212),9))","v":0.99999012899999995},{"$f":"VALUE(FIXED(EXP(AQ$4*-1*'PM2.5 reduction'!AQ212),9))","v":0.99998173099999998},{"$f":"VALUE(FIXED(EXP(AR$4*-1*'PM2.5 reduction'!AR212),9))","v":0.99997628000000005},{"$f":"VALUE(FIXED(EXP(AS$4*-1*'PM2.5 reduction'!AS212),9))","v":0.999995466},{"$f":"VALUE(FIXED(EXP(AT$4*-1*'PM2.5 reduction'!AT212),9))","v":1},{"$f":"VALUE(FIXED(EXP(AU$4*-1*'PM2.5 reduction'!AU212),9))","v":1},{"$f":"VALUE(FIXED(EXP(AV$4*-1*'PM2.5 reduction'!AV212),9))","v":0.99998770699999995},{"$f":"VALUE(FIXED(EXP(AW$4*-1*'PM2.5 reduction'!AW212),9))","v":0.99998324800000005},{"$f":"VALUE(FIXED(EXP(AX$4*-1*'PM2.5 reduction'!AX212),9))","v":0.99998808400000005},{"$f":"VALUE(FIXED(EXP(AY$4*-1*'PM2.5 reduction'!AY212),9))","v":0.99998623799999997},{"$f":"VALUE(FIXED(EXP(AZ$4*-1*'PM2.5 reduction'!AZ212),9))","v":0.99998708000000003},{"$f":"VALUE(FIXED(EXP(BA$4*-1*'PM2.5 reduction'!BA212),9))","v":0.99998741999999996},{"$f":"VALUE(FIXED(EXP(BB$4*-1*'PM2.5 reduction'!BB212),9))","v":0.99998471899999997},{"$f":"VALUE(FIXED(EXP(BC$4*-1*'PM2.5 reduction'!BC212),9))","v":1}]
[null,"Female 5-9",{"$f":"VALUE(FIXED(EXP(C$4*-1*'PM2.5 reduction'!C213),9))","v":0.99997045100000004},{"$f":"VALUE(FIXED(EXP(D$4*-1*'PM2.5 reduction'!D213),9))","v":0.99998155099999997},{"$f":"VALUE(FIXED(EXP(E$4*-1*'PM2.5 reduction'!E213),9))","v":0.99999382599999997},{"$f":"VALUE(FIXED(EXP(F$4*-1*'PM2.5 reduction'!F213),9))","v":0.99999276599999998},{"$f":"VALUE(FIXED(EXP(G$4*-1*'PM2.5 reduction'!G213),9))","v":0.99999439099999998},{"$f":"VALUE(FIXED(EXP(H$4*-1*'PM2.5 reduction'!H213),9))","v":0.99998852800000004},{"$f":"VALUE(FIXED(EXP(I$4*-1*'PM2.5 reduction'!I213),9))","v":0.99999545899999998},{"$f":"VALUE(FIXED(EXP(J$4*-1*'PM2.5 reduction'!J213),9))","v":0.99998856000000003},{"$f":"VALUE(FIXED(EXP(K$4*-1*'PM2.5 reduction'!K213),9))","v":0.99998667500000005},{"$f":"VALUE(FIXED(EXP(L$4*-1*'PM2.5 reduction'!L213),9))","v":0.99999290900000004},{"$f":"VALUE(FIXED(EXP(M$4*-1*'PM2.5 reduction'!M213),9))","v":0.99999290900000004},{"$f":"VALUE(FIXED(EXP(N$4*-1*'PM2.5 reduction'!N213),9))","v":0.99997999699999995},{"$f":"VALUE(FIXED(EXP(O$4*-1*'PM2.5 reduction'!O213),9))","v":0.99998721199999996},{"$f":"VALUE(FIXED(EXP(P$4*-1*'PM2.5 reduction'!P213),9))","v":0.99997555299999996},{"$f":"VALUE(FIXED(EXP(Q$4*-1*'PM2.5 reduction'!Q213),9))","v":0.99999120100000005},{"$f":"VALUE(FIXED(EXP(R$4*-1*'PM2.5 reduction'!R213),9))","v":0.99997478100000003},{"$f":"VALUE(FIXED(EXP(S$4*-1*'PM2.5 reduction'!S213),9))","v":0.99997235500000003},{"$f":"VALUE(FIXED(EXP(T$4*-1*'PM2.5 reduction'!T213),9))","v":0.99996254200000001},{"$f":"VALUE(FIXED(EXP(U$4*-1*'PM2.5 reduction'!U213),9))","v":1},{"$f":"VALUE(FIXED(EXP(V$4*-1*'PM2.5 reduction'!V213),9))","v":0.99998184400000001},{"$f":"VALUE(FIXED(EXP(W$4*-1*'PM2.5 reduction'!W213),9))","v":0.99998533499999998},{"$f":"VALUE(FIXED(EXP(X$4*-1*'PM2.5 reduction'!X213),9))","v":0.99998533499999998},{"$f":"VALUE(FIXED(EXP(Y$4*-1*'PM2.5 reduction'!Y213),9))","v":0.99998493700000002},{"$f":"VALUE(FIXED(EXP(Z$4*-1*'PM2.5 reduction'!Z213),9))","v":0.99996413799999995},{"$f":"VALUE(FIXED(EXP(AA$4*-1*'PM2.5 reduction'!AA213),9))","v":0.99997564800000005},{"$f":"VALUE(FIXED(EXP(AB$4*-1*'PM2.5 reduction'!AB213),9))","v":0.99998200500000001},{"$f":"VALUE(FIXED(EXP(AC$4*-1*'PM2.5 reduction'!AC213),9))","v":0.99997339399999996},{"$f":"VALUE(FIXED(EXP(AD$4*-1*'PM2.5 reduction'!AD213),9))","v":0.99999192100000001},{"$f":"VALUE(FIXED(EXP(AE$4*-1*'PM2.5 reduction'!AE213),9))","v":0.99999116700000001},{"$f":"VALUE(FIXED(EXP(AF$4*-1*'PM2.5 reduction'!AF213),9))","v":0.99998931800000002},{"$f":"VALUE(FIXED(EXP(AG$4*-1*'PM2.5 reduction'!AG213),9))","v":0.99999116700000001},{"$f":"VALUE(FIXED(EXP(AH$4*-1*'PM2.5 reduction'!AH213),9))","v":0.99998151899999999},{"$f":"VALUE(FIXED(EXP(AI$4*-1*'PM2.5 reduction'!AI213),9))","v":0.99996868500000002},{"$f":"VALUE(FIXED(EXP(AJ$4*-1*'PM2.5 reduction'!AJ213),9))","v":0.99998376499999997},{"$f":"VALUE(FIXED(EXP(AK$4*-1*'PM2.5 reduction'!AK213),9))","v":0.999993036},{"$f":"VALUE(FIXED(EXP(AL$4*-1*'PM2.5 reduction'!AL213),9))","v":0.99999078799999996},{"$f":"VALUE(FIXED(EXP(AM$4*-1*'PM2.5 reduction'!AM213),9))","v":0.99997935400000004},{"$f":"VALUE(FIXED(EXP(AN$4*-1*'PM2.5 reduction'!AN213),9))","v":1},{"$f":"VALUE(FIXED(EXP(AO$4*-1*'PM2.5 reduction'!AO213),9))","v":1},{"$f":"VALUE(FIXED(EXP(AP$4*-1*'PM2.5 reduction'!AP213),9))","v":0.999990449},{"$f":"VALUE(FIXED(EXP(AQ$4*-1*'PM2.5 reduction'!AQ213),9))","v":0.99998155399999999},{"$f":"VALUE(FIXED(EXP(AR$4*-1*'PM2.5 reduction'!AR213),9))","v":0.99997763100000003},{"$f":"VALUE(FIXED(EXP(AS$4*-1*'PM2.5 reduction'!AS213),9))","v":0.99999545899999998},{"$f":"VALUE(FIXED(EXP(AT$4*-1*'PM2.5 reduction'!AT213),9))","v":1},{"$f":"VALUE(FIXED(EXP(AU$4*-1*'PM2.5 reduction'!AU213),9))","v":1},{"$f":"VALUE(FIXED(EXP(AV$4*-1*'PM2.5 reduction'!AV213),9))","v":0.99998824500000005},{"$f":"VALUE(FIXED(EXP(AW$4*-1*'PM2.5 reduction'!AW213),9))","v":0.99998313599999999},{"$f":"VALUE(FIXED(EXP(AX$4*-1*'PM2.5 reduction'!AX213),9))","v":0.99998893499999997},{"$f":"VALUE(FIXED(EXP(AY$4*-1*'PM2.5 reduction'!AY213),9))","v":0.99998638500000003},{"$f":"VALUE(FIXED(EXP(AZ$4*-1*'PM2.5 reduction'!AZ213),9))","v":0.99998763599999996},{"$f":"VALUE(FIXED(EXP(BA$4*-1*'PM2.5 reduction'!BA213),9))","v":0.99998600299999996},{"$f":"VALUE(FIXED(EXP(BB$4*-1*'PM2.5 reduction'!BB213),9))","v":0.99998498300000005},{"$f":"VALUE(FIXED(EXP(BC$4*-1*'PM2.5 reduction'!BC213),9))","v":1}]
[null,"Female 10-15",{"$f":"VALUE(FIXED(EXP(C$4*-1*'PM2.5 reduction'!C214),9))","v":0.99997080199999999},{"$f":"VALUE(FIXED(EXP(D$4*-1*'PM2.5 reduction'!D214),9))","v":0.99998197099999997},{"$f":"VALUE(FIXED(EXP(E$4*-1*'PM2.5 reduction'!E214),9))","v":0.99999392399999998},{"$f":"VALUE(FIXED(EXP(F$4*-1*'PM2.5 reduction'!F214),9))","v":0.99999273399999999},{"$f":"VALUE(FIXED(EXP(G$4*-1*'PM2.5 reduction'!G214),9))","v":0.99999433100000001},{"$f":"VALUE(FIXED(EXP(H$4*-1*'PM2.5 reduction'!H214),9))","v":0.99998788900000002},{"$f":"VALUE(FIXED(EXP(I$4*-1*'PM2.5 reduction'!I214),9))","v":0.99999551799999997},{"$f":"VALUE(FIXED(EXP(J$4*-1*'PM2.5 reduction'!J214),9))","v":0.99998895399999999},{"$f":"VALUE(FIXED(EXP(K$4*-1*'PM2.5 reduction'!K214),9))","v":0.99998810100000002},{"$f":"VALUE(FIXED(EXP(L$4*-1*'PM2.5 reduction'!L214),9))","v":0.99999256299999995},{"$f":"VALUE(FIXED(EXP(M$4*-1*'PM2.5 reduction'!M214),9))","v":0.99999256299999995},{"$f":"VALUE(FIXED(EXP(N$4*-1*'PM2.5 reduction'!N214),9))","v":0.99997990199999998},{"$f":"VALUE(FIXED(EXP(O$4*-1*'PM2.5 reduction'!O214),9))","v":0.99998646000000002},{"$f":"VALUE(FIXED(EXP(P$4*-1*'PM2.5 reduction'!P214),9))","v":0.99997545899999996},{"$f":"VALUE(FIXED(EXP(Q$4*-1*'PM2.5 reduction'!Q214),9))","v":0.999991925},{"$f":"VALUE(FIXED(EXP(R$4*-1*'PM2.5 reduction'!R214),9))","v":0.99997498500000004},{"$f":"VALUE(FIXED(EXP(S$4*-1*'PM2.5 reduction'!S214),9))","v":0.99997337500000005},{"$f":"VALUE(FIXED(EXP(T$4*-1*'PM2.5 reduction'!T214),9))","v":0.99996335999999997},{"$f":"VALUE(FIXED(EXP(U$4*-1*'PM2.5 reduction'!U214),9))","v":1},{"$f":"VALUE(FIXED(EXP(V$4*-1*'PM2.5 reduction'!V214),9))","v":0.99998178500000001},{"$f":"VALUE(FIXED(EXP(W$4*-1*'PM2.5 reduction'!W214),9))","v":0.99998499600000001},{"$f":"VALUE(FIXED(EXP(X$4*-1*'PM2.5 reduction'!X214),9))","v":0.99998499600000001},{"$f":"VALUE(FIXED(EXP(Y$4*-1*'PM2.5 reduction'!Y214),9))","v":0.99998499399999996},{"$f":"VALUE(FIXED(EXP(Z$4*-1*'PM2.5 reduction'!Z214),9))","v":0.99996568900000005},{"$f":"VALUE(FIXED(EXP(AA$4*-1*'PM2.5 reduction'!AA214),9))","v":0.99997634599999996},{"$f":"VALUE(FIXED(EXP(AB$4*-1*'PM2.5 reduction'!AB214),9))","v":0.99998252600000004},{"$f":"VALUE(FIXED(EXP(AC$4*-1*'PM2.5 reduction'!AC214),9))","v":0.99997434200000002},{"$f":"VALUE(FIXED(EXP(AD$4*-1*'PM2.5 reduction'!AD214),9))","v":0.99999162799999997},{"$f":"VALUE(FIXED(EXP(AE$4*-1*'PM2.5 reduction'!AE214),9))","v":0.99999057000000002},{"$f":"VALUE(FIXED(EXP(AF$4*-1*'PM2.5 reduction'!AF214),9))","v":0.99999000500000002},{"$f":"VALUE(FIXED(EXP(AG$4*-1*'PM2.5 reduction'!AG214),9))","v":0.99999057000000002},{"$f":"VALUE(FIXED(EXP(AH$4*-1*'PM2.5 reduction'!AH214),9))","v":0.999981852},{"$f":"VALUE(FIXED(EXP(AI$4*-1*'PM2.5 reduction'!AI214),9))","v":0.99997006200000005},{"$f":"VALUE(FIXED(EXP(AJ$4*-1*'PM2.5 reduction'!AJ214),9))","v":0.99998309600000002},{"$f":"VALUE(FIXED(EXP(AK$4*-1*'PM2.5 reduction'!AK214),9))","v":0.99999357700000002},{"$f":"VALUE(FIXED(EXP(AL$4*-1*'PM2.5 reduction'!AL214),9))","v":0.99999092599999995},{"$f":"VALUE(FIXED(EXP(AM$4*-1*'PM2.5 reduction'!AM214),9))","v":0.99997932599999995},{"$f":"VALUE(FIXED(EXP(AN$4*-1*'PM2.5 reduction'!AN214),9))","v":1},{"$f":"VALUE(FIXED(EXP(AO$4*-1*'PM2.5 reduction'!AO214),9))","v":1},{"$f":"VALUE(FIXED(EXP(AP$4*-1*'PM2.5 reduction'!AP214),9))","v":0.99999055400000003},{"$f":"VALUE(FIXED(EXP(AQ$4*-1*'PM2.5 reduction'!AQ214),9))","v":0.99998206499999998},{"$f":"VALUE(FIXED(EXP(AR$4*-1*'PM2.5 reduction'!AR214),9))","v":0.99997841899999995},{"$f":"VALUE(FIXED(EXP(AS$4*-1*'PM2.5 reduction'!AS214),9))","v":0.99999551799999997},{"$f":"VALUE(FIXED(EXP(AT$4*-1*'PM2.5 reduction'!AT214),9))","v":1},{"$f":"VALUE(FIXED(EXP(AU$4*-1*'PM2.5 reduction'!AU214),9))","v":1},{"$f":"VALUE(FIXED(EXP(AV$4*-1*'PM2.5 reduction'!AV214),9))","v":0.99998751399999997},{"$f":"VALUE(FIXED(EXP(AW$4*-1*'PM2.5 reduction'!AW214),9))","v":0.99998382200000002},{"$f":"VALUE(FIXED(EXP(AX$4*-1*'PM2.5 reduction'!AX214),9))","v":0.99998909999999996},{"$f":"VALUE(FIXED(EXP(AY$4*-1*'PM2.5 reduction'!AY214),9))","v":0.99998625299999999},{"$f":"VALUE(FIXED(EXP(AZ$4*-1*'PM2.5 reduction'!AZ214),9))","v":0.99998747700000001},{"$f":"VALUE(FIXED(EXP(BA$4*-1*'PM2.5 reduction'!BA214),9))","v":0.99998615999999996},{"$f":"VALUE(FIXED(EXP(BB$4*-1*'PM2.5 reduction'!BB214),9))","v":0.99998524799999999},{"$f":"VALUE(FIXED(EXP(BC$4*-1*'PM2.5 reduction'!BC214),9))","v":1}]
[null,"Female 16-19",{"$f":"VALUE(FIXED(EXP(C$4*-1*'PM2.5 reduction'!C215),9))","v":0.99996822900000004},{"$f":"VALUE(FIXED(EXP(D$4*-1*'PM2.5 reduction'!D215),9))","v":0.99997995100000003},{"$f":"VALUE(FIXED(EXP(E$4*-1*'PM2.5 reduction'!E215),9))","v":0.99999371299999995},{"$f":"VALUE(FIXED(EXP(F$4*-1*'PM2.5 reduction'!F215),9))","v":0.99999265599999998},{"$f":"VALUE(FIXED(EXP(G$4*-1*'PM2.5 reduction'!G215),9))","v":0.99999427200000002},{"$f":"VALUE(FIXED(EXP(H$4*-1*'PM2.5 reduction'!H215),9))","v":0.99998757699999996},{"$f":"VALUE(FIXED(EXP(I$4*-1*'PM2.5 reduction'!I215),9))","v":0.99999539999999998},{"$f":"VALUE(FIXED(EXP(J$4*-1*'PM2.5 reduction'!J215),9))","v":0.99998879399999996},{"$f":"VALUE(FIXED(EXP(K$4*-1*'PM2.5 reduction'!K215),9))","v":0.99998776199999995},{"$f":"VALUE(FIXED(EXP(L$4*-1*'PM2.5 reduction'!L215),9))","v":0.99999229300000003},{"$f":"VALUE(FIXED(EXP(M$4*-1*'PM2.5 reduction'!M215),9))","v":0.99999229300000003},{"$f":"VALUE(FIXED(EXP(N$4*-1*'PM2.5 reduction'!N215),9))","v":0.999970888},{"$f":"VALUE(FIXED(EXP(O$4*-1*'PM2.5 reduction'!O215),9))","v":0.99998564400000001},{"$f":"VALUE(FIXED(EXP(P$4*-1*'PM2.5 reduction'!P215),9))","v":0.99997541899999998},{"$f":"VALUE(FIXED(EXP(Q$4*-1*'PM2.5 reduction'!Q215),9))","v":0.99999142900000004},{"$f":"VALUE(FIXED(EXP(R$4*-1*'PM2.5 reduction'!R215),9))","v":0.99997512200000005},{"$f":"VALUE(FIXED(EXP(S$4*-1*'PM2.5 reduction'!S215),9))","v":0.99996926100000005},{"$f":"VALUE(FIXED(EXP(T$4*-1*'PM2.5 reduction'!T215),9))","v":0.99995857099999996},{"$f":"VALUE(FIXED(EXP(U$4*-1*'PM2.5 reduction'!U215),9))","v":1},{"$f":"VALUE(FIXED(EXP(V$4*-1*'PM2.5 reduction'!V215),9))","v":0.99998198000000005},{"$f":"VALUE(FIXED(EXP(W$4*-1*'PM2.5 reduction'!W215),9))","v":0.99998690099999998},{"$f":"VALUE(FIXED(EXP(X$4*-1*'PM2.5 reduction'!X215),9))","v":0.99998690099999998},{"$f":"VALUE(FIXED(EXP(Y$4*-1*'PM2.5 reduction'!Y215),9))","v":0.99998519799999996},{"$f":"VALUE(FIXED(EXP(Z$4*-1*'PM2.5 reduction'!Z215),9))","v":0.99995553699999995},{"$f":"VALUE(FIXED(EXP(AA$4*-1*'PM2.5 reduction'!AA215),9))","v":0.99997257299999998},{"$f":"VALUE(FIXED(EXP(AB$4*-1*'PM2.5 reduction'!AB215),9))","v":0.99998043199999997},{"$f":"VALUE(FIXED(EXP(AC$4*-1*'PM2.5 reduction'!AC215),9))","v":0.99996980000000002},{"$f":"VALUE(FIXED(EXP(AD$4*-1*'PM2.5 reduction'!AD215),9))","v":0.99999154800000001},{"$f":"VALUE(FIXED(EXP(AE$4*-1*'PM2.5 reduction'!AE215),9))","v":0.99999085799999998},{"$f":"VALUE(FIXED(EXP(AF$4*-1*'PM2.5 reduction'!AF215),9))","v":0.99998957300000002},{"$f":"VALUE(FIXED(EXP(AG$4*-1*'PM2.5 reduction'!AG215),9))","v":0.99999085799999998},{"$f":"VALUE(FIXED(EXP(AH$4*-1*'PM2.5 reduction'!AH215),9))","v":0.999981232},{"$f":"VALUE(FIXED(EXP(AI$4*-1*'PM2.5 reduction'!AI215),9))","v":0.999964988},{"$f":"VALUE(FIXED(EXP(AJ$4*-1*'PM2.5 reduction'!AJ215),9))","v":0.999984804},{"$f":"VALUE(FIXED(EXP(AK$4*-1*'PM2.5 reduction'!AK215),9))","v":0.99999311599999996},{"$f":"VALUE(FIXED(EXP(AL$4*-1*'PM2.5 reduction'!AL215),9))","v":0.99999064000000004},{"$f":"VALUE(FIXED(EXP(AM$4*-1*'PM2.5 reduction'!AM215),9))","v":0.99997905600000003},{"$f":"VALUE(FIXED(EXP(AN$4*-1*'PM2.5 reduction'!AN215),9))","v":1},{"$f":"VALUE(FIXED(EXP(AO$4*-1*'PM2.5 reduction'!AO215),9))","v":1},{"$f":"VALUE(FIXED(EXP(AP$4*-1*'PM2.5 reduction'!AP215),9))","v":0.99999000500000002},{"$f":"VALUE(FIXED(EXP(AQ$4*-1*'PM2.5 reduction'!AQ215),9))","v":0.999982276},{"$f":"VALUE(FIXED(EXP(AR$4*-1*'PM2.5 reduction'!AR215),9))","v":0.99997485699999999},{"$f":"VALUE(FIXED(EXP(AS$4*-1*'PM2.5 reduction'!AS215),9))","v":0.99999539999999998},{"$f":"VALUE(FIXED(EXP(AT$4*-1*'PM2.5 reduction'!AT215),9))","v":1},{"$f":"VALUE(FIXED(EXP(AU$4*-1*'PM2.5 reduction'!AU215),9))","v":1},{"$f":"VALUE(FIXED(EXP(AV$4*-1*'PM2.5 reduction'!AV215),9))","v":0.99998763899999998},{"$f":"VALUE(FIXED(EXP(AW$4*-1*'PM2.5 reduction'!AW215),9))","v":0.99998320200000002},{"$f":"VALUE(FIXED(EXP(AX$4*-1*'PM2.5 reduction'!AX215),9))","v":0.99998896199999998},{"$f":"VALUE(FIXED(EXP(AY$4*-1*'PM2.5 reduction'!AY215),9))","v":0.99998424100000005},{"$f":"VALUE(FIXED(EXP(AZ$4*-1*'PM2.5 reduction'!AZ215),9))","v":0.99998182300000005},{"$f":"VALUE(FIXED(EXP(BA$4*-1*'PM2.5 reduction'!BA215),9))","v":0.99998568700000001},{"$f":"VALUE(FIXED(EXP(BB$4*-1*'PM2.5 reduction'!BB215),9))","v":0.99998558100000001},{"$f":"VALUE(FIXED(EXP(BC$4*-1*'PM2.5 reduction'!BC215),9))","v":1}]
[null,"Female 20-24",{"$f":"VALUE(FIXED(EXP(C$4*-1*'PM2.5 reduction'!C216),9))","v":0.99996134400000003},{"$f":"VALUE(FIXED(EXP(D$4*-1*'PM2.5 reduction'!D216),9))","v":0.99997147399999997},{"$f":"VALUE(FIXED(EXP(E$4*-1*'PM2.5 reduction'!E216),9))","v":0.99999354900000004},{"$f":"VALUE(FIXED(EXP(F$4*-1*'PM2.5 reduction'!F216),9))","v":0.999992667},{"$f":"VALUE(FIXED(EXP(G$4*-1*'PM2.5 reduction'!G216),9))","v":0.999994308},{"$f":"VALUE(FIXED(EXP(H$4*-1*'PM2.5 reduction'!H216),9))","v":0.99998794000000002},{"$f":"VALUE(FIXED(EXP(I$4*-1*'PM2.5 reduction'!I216),9))","v":0.99999549099999996},{"$f":"VALUE(FIXED(EXP(J$4*-1*'PM2.5 reduction'!J216),9))","v":0.999986241},{"$f":"VALUE(FIXED(EXP(K$4*-1*'PM2.5 reduction'!K216),9))","v":0.99998604300000005},{"$f":"VALUE(FIXED(EXP(L$4*-1*'PM2.5 reduction'!L216),9))","v":0.99999258599999996},{"$f":"VALUE(FIXED(EXP(M$4*-1*'PM2.5 reduction'!M216),9))","v":0.99999258599999996},{"$f":"VALUE(FIXED(EXP(N$4*-1*'PM2.5 reduction'!N216),9))","v":0.999972258},{"$f":"VALUE(FIXED(EXP(O$4*-1*'PM2.5 reduction'!O216),9))","v":0.99998629900000002},{"$f":"VALUE(FIXED(EXP(P$4*-1*'PM2.5 reduction'!P216),9))","v":0.99997552199999995},{"$f":"VALUE(FIXED(EXP(Q$4*-1*'PM2.5 reduction'!Q216),9))","v":0.99999140600000003},{"$f":"VALUE(FIXED(EXP(R$4*-1*'PM2.5 reduction'!R216),9))","v":0.99997494300000001},{"$f":"VALUE(FIXED(EXP(S$4*-1*'PM2.5 reduction'!S216),9))","v":0.99996063099999999},{"$f":"VALUE(FIXED(EXP(T$4*-1*'PM2.5 reduction'!T216),9))","v":0.99995087299999996},{"$f":"VALUE(FIXED(EXP(U$4*-1*'PM2.5 reduction'!U216),9))","v":1},{"$f":"VALUE(FIXED(EXP(V$4*-1*'PM2.5 reduction'!V216),9))","v":0.99998085699999995},{"$f":"VALUE(FIXED(EXP(W$4*-1*'PM2.5 reduction'!W216),9))","v":0.99998898999999997},{"$f":"VALUE(FIXED(EXP(X$4*-1*'PM2.5 reduction'!X216),9))","v":0.99998898999999997},{"$f":"VALUE(FIXED(EXP(Y$4*-1*'PM2.5 reduction'!Y216),9))","v":0.99998366599999999},{"$f":"VALUE(FIXED(EXP(Z$4*-1*'PM2.5 reduction'!Z216),9))","v":0.99995227200000003},{"$f":"VALUE(FIXED(EXP(AA$4*-1*'PM2.5 reduction'!AA216),9))","v":0.99996680900000001},{"$f":"VALUE(FIXED(EXP(AB$4*-1*'PM2.5 reduction'!AB216),9))","v":0.99997207799999999},{"$f":"VALUE(FIXED(EXP(AC$4*-1*'PM2.5 reduction'!AC216),9))","v":0.99996349200000001},{"$f":"VALUE(FIXED(EXP(AD$4*-1*'PM2.5 reduction'!AD216),9))","v":0.99999118899999995},{"$f":"VALUE(FIXED(EXP(AE$4*-1*'PM2.5 reduction'!AE216),9))","v":0.99999019099999997},{"$f":"VALUE(FIXED(EXP(AF$4*-1*'PM2.5 reduction'!AF216),9))","v":0.99998856300000005},{"$f":"VALUE(FIXED(EXP(AG$4*-1*'PM2.5 reduction'!AG216),9))","v":0.99999019099999997},{"$f":"VALUE(FIXED(EXP(AH$4*-1*'PM2.5 reduction'!AH216),9))","v":0.99998080499999997},{"$f":"VALUE(FIXED(EXP(AI$4*-1*'PM2.5 reduction'!AI216),9))","v":0.99995465800000005},{"$f":"VALUE(FIXED(EXP(AJ$4*-1*'PM2.5 reduction'!AJ216),9))","v":0.99998520000000002},{"$f":"VALUE(FIXED(EXP(AK$4*-1*'PM2.5 reduction'!AK216),9))","v":0.99999343600000001},{"$f":"VALUE(FIXED(EXP(AL$4*-1*'PM2.5 reduction'!AL216),9))","v":0.99999098799999997},{"$f":"VALUE(FIXED(EXP(AM$4*-1*'PM2.5 reduction'!AM216),9))","v":0.99997921199999995},{"$f":"VALUE(FIXED(EXP(AN$4*-1*'PM2.5 reduction'!AN216),9))","v":1},{"$f":"VALUE(FIXED(EXP(AO$4*-1*'PM2.5 reduction'!AO216),9))","v":1},{"$f":"VALUE(FIXED(EXP(AP$4*-1*'PM2.5 reduction'!AP216),9))","v":0.99999076399999998},{"$f":"VALUE(FIXED(EXP(AQ$4*-1*'PM2.5 reduction'!AQ216),9))","v":0.99998177099999996},{"$f":"VALUE(FIXED(EXP(AR$4*-1*'PM2.5 reduction'!AR216),9))","v":0.99996715599999997},{"$f":"VALUE(FIXED(EXP(AS$4*-1*'PM2.5 reduction'!AS216),9))","v":0.99999549099999996},{"$f":"VALUE(FIXED(EXP(AT$4*-1*'PM2.5 reduction'!AT216),9))","v":1},{"$f":"VALUE(FIXED(EXP(AU$4*-1*'PM2.5 reduction'!AU216),9))","v":1},{"$f":"VALUE(FIXED(EXP(AV$4*-1*'PM2.5 reduction'!AV216),9))","v":0.99998763599999996},{"$f":"VALUE(FIXED(EXP(AW$4*-1*'PM2.5 reduction'!AW216),9))","v":0.99998199200000004},{"$f":"VALUE(FIXED(EXP(AX$4*-1*'PM2.5 reduction'!AX216),9))","v":0.99998626999999995},{"$f":"VALUE(FIXED(EXP(AY$4*-1*'PM2.5 reduction'!AY216),9))","v":0.99998616100000004},{"$f":"VALUE(FIXED(EXP(AZ$4*-1*'PM2.5 reduction'!AZ216),9))","v":0.99998176999999999},{"$f":"VALUE(FIXED(EXP(BA$4*-1*'PM2.5 reduction'!BA216),9))","v":0.99998746800000005},{"$f":"VALUE(FIXED(EXP(BB$4*-1*'PM2.5 reduction'!BB216),9))","v":0.99998452800000004},{"$f":"VALUE(FIXED(EXP(BC$4*-1*'PM2.5 reduction'!BC216),9))","v":1}]
[null,"Female 25-29",{"$f":"VALUE(FIXED(EXP(C$4*-1*'PM2.5 reduction'!C217),9))","v":0.99996109499999997},{"$f":"VALUE(FIXED(EXP(D$4*-1*'PM2.5 reduction'!D217),9))","v":0.99996923199999999},{"$f":"VALUE(FIXED(EXP(E$4*-1*'PM2.5 reduction'!E217),9))","v":0.99999334200000001},{"$f":"VALUE(FIXED(EXP(F$4*-1*'PM2.5 reduction'!F217),9))","v":0.999991992},{"$f":"VALUE(FIXED(EXP(G$4*-1*'PM2.5 reduction'!G217),9))","v":0.99999444800000004},{"$f":"VALUE(FIXED(EXP(H$4*-1*'PM2.5 reduction'!H217),9))","v":0.99998756600000005},{"$f":"VALUE(FIXED(EXP(I$4*-1*'PM2.5 reduction'!I217),9))","v":0.99999543499999999},{"$f":"VALUE(FIXED(EXP(J$4*-1*'PM2.5 reduction'!J217),9))","v":0.99998683899999996},{"$f":"VALUE(FIXED(EXP(K$4*-1*'PM2.5 reduction'!K217),9))","v":0.99998485400000003},{"$f":"VALUE(FIXED(EXP(L$4*-1*'PM2.5 reduction'!L217),9))","v":0.99999265000000004},{"$f":"VALUE(FIXED(EXP(M$4*-1*'PM2.5 reduction'!M217),9))","v":0.99999265000000004},{"$f":"VALUE(FIXED(EXP(N$4*-1*'PM2.5 reduction'!N217),9))","v":0.99997670000000005},{"$f":"VALUE(FIXED(EXP(O$4*-1*'PM2.5 reduction'!O217),9))","v":0.99998640900000002},{"$f":"VALUE(FIXED(EXP(P$4*-1*'PM2.5 reduction'!P217),9))","v":0.99997547899999994},{"$f":"VALUE(FIXED(EXP(Q$4*-1*'PM2.5 reduction'!Q217),9))","v":0.99998987500000003},{"$f":"VALUE(FIXED(EXP(R$4*-1*'PM2.5 reduction'!R217),9))","v":0.999975375},{"$f":"VALUE(FIXED(EXP(S$4*-1*'PM2.5 reduction'!S217),9))","v":0.99995950199999994},{"$f":"VALUE(FIXED(EXP(T$4*-1*'PM2.5 reduction'!T217),9))","v":0.99995184599999998},{"$f":"VALUE(FIXED(EXP(U$4*-1*'PM2.5 reduction'!U217),9))","v":1},{"$f":"VALUE(FIXED(EXP(V$4*-1*'PM2.5 reduction'!V217),9))","v":0.99998153199999995},{"$f":"VALUE(FIXED(EXP(W$4*-1*'PM2.5 reduction'!W217),9))","v":0.99998657499999999},{"$f":"VALUE(FIXED(EXP(X$4*-1*'PM2.5 reduction'!X217),9))","v":0.99998657499999999},{"$f":"VALUE(FIXED(EXP(Y$4*-1*'PM2.5 reduction'!Y217),9))","v":0.99998426100000004},{"$f":"VALUE(FIXED(EXP(Z$4*-1*'PM2.5 reduction'!Z217),9))","v":0.99995777799999996},{"$f":"VALUE(FIXED(EXP(AA$4*-1*'PM2.5 reduction'!AA217),9))","v":0.999968988},{"$f":"VALUE(FIXED(EXP(AB$4*-1*'PM2.5 reduction'!AB217),9))","v":0.99996997499999996},{"$f":"VALUE(FIXED(EXP(AC$4*-1*'PM2.5 reduction'!AC217),9))","v":0.99996598000000003},{"$f":"VALUE(FIXED(EXP(AD$4*-1*'PM2.5 reduction'!AD217),9))","v":0.99999176099999998},{"$f":"VALUE(FIXED(EXP(AE$4*-1*'PM2.5 reduction'!AE217),9))","v":0.99999104100000002},{"$f":"VALUE(FIXED(EXP(AF$4*-1*'PM2.5 reduction'!AF217),9))","v":0.99998731299999999},{"$f":"VALUE(FIXED(EXP(AG$4*-1*'PM2.5 reduction'!AG217),9))","v":0.99999104100000002},{"$f":"VALUE(FIXED(EXP(AH$4*-1*'PM2.5 reduction'!AH217),9))","v":0.99998104600000004},{"$f":"VALUE(FIXED(EXP(AI$4*-1*'PM2.5 reduction'!AI217),9))","v":0.99995564000000003},{"$f":"VALUE(FIXED(EXP(AJ$4*-1*'PM2.5 reduction'!AJ217),9))","v":0.99998460700000003},{"$f":"VALUE(FIXED(EXP(AK$4*-1*'PM2.5 reduction'!AK217),9))","v":0.99999345500000003},{"$f":"VALUE(FIXED(EXP(AL$4*-1*'PM2.5 reduction'!AL217),9))","v":0.99999055299999995},{"$f":"VALUE(FIXED(EXP(AM$4*-1*'PM2.5 reduction'!AM217),9))","v":0.99997858900000003},{"$f":"VALUE(FIXED(EXP(AN$4*-1*'PM2.5 reduction'!AN217),9))","v":1},{"$f":"VALUE(FIXED(EXP(AO$4*-1*'PM2.5 reduction'!AO217),9))","v":1},{"$f":"VALUE(FIXED(EXP(AP$4*-1*'PM2.5 reduction'!AP217),9))","v":0.99998979099999996},{"$f":"VALUE(FIXED(EXP(AQ$4*-1*'PM2.5 reduction'!AQ217),9))","v":0.99998131300000004},{"$f":"VALUE(FIXED(EXP(AR$4*-1*'PM2.5 reduction'!AR217),9))","v":0.999967469},{"$f":"VALUE(FIXED(EXP(AS$4*-1*'PM2.5 reduction'!AS217),9))","v":0.99999543499999999},{"$f":"VALUE(FIXED(EXP(AT$4*-1*'PM2.5 reduction'!AT217),9))","v":1},{"$f":"VALUE(FIXED(EXP(AU$4*-1*'PM2.5 reduction'!AU217),9))","v":1},{"$f":"VALUE(FIXED(EXP(AV$4*-1*'PM2.5 reduction'!AV217),9))","v":0.99998746900000002},{"$f":"VALUE(FIXED(EXP(AW$4*-1*'PM2.5 reduction'!AW217),9))","v":0.99998289799999995},{"$f":"VALUE(FIXED(EXP(AX$4*-1*'PM2.5 reduction'!AX217),9))","v":0.99998710000000002},{"$f":"VALUE(FIXED(EXP(AY$4*-1*'PM2.5 reduction'!AY217),9))","v":0.99998539200000003},{"$f":"VALUE(FIXED(EXP(AZ$4*-1*'PM2.5 reduction'!AZ217),9))","v":0.99998414199999996},{"$f":"VALUE(FIXED(EXP(BA$4*-1*'PM2.5 reduction'!BA217),9))","v":0.99998576100000003},{"$f":"VALUE(FIXED(EXP(BB$4*-1*'PM2.5 reduction'!BB217),9))","v":0.99998378099999996},{"$f":"VALUE(FIXED(EXP(BC$4*-1*'PM2.5 reduction'!BC217),9))","v":1}]
[null,"Female 30-34",{"$f":"VALUE(FIXED(EXP(C$4*-1*'PM2.5 reduction'!C218),9))","v":0.99996384299999996},{"$f":"VALUE(FIXED(EXP(D$4*-1*'PM2.5 reduction'!D218),9))","v":0.99997377799999998},{"$f":"VALUE(FIXED(EXP(E$4*-1*'PM2.5 reduction'!E218),9))","v":0.99999369800000004},{"$f":"VALUE(FIXED(EXP(F$4*-1*'PM2.5 reduction'!F218),9))","v":0.99999274900000001},{"$f":"VALUE(FIXED(EXP(G$4*-1*'PM2.5 reduction'!G218),9))","v":0.99999438200000001},{"$f":"VALUE(FIXED(EXP(H$4*-1*'PM2.5 reduction'!H218),9))","v":0.99998851200000005},{"$f":"VALUE(FIXED(EXP(I$4*-1*'PM2.5 reduction'!I218),9))","v":0.99999538399999999},{"$f":"VALUE(FIXED(EXP(J$4*-1*'PM2.5 reduction'!J218),9))","v":0.99998674499999995},{"$f":"VALUE(FIXED(EXP(K$4*-1*'PM2.5 reduction'!K218),9))","v":0.99998578500000002},{"$f":"VALUE(FIXED(EXP(L$4*-1*'PM2.5 reduction'!L218),9))","v":0.99999252800000005},{"$f":"VALUE(FIXED(EXP(M$4*-1*'PM2.5 reduction'!M218),9))","v":0.99999252800000005},{"$f":"VALUE(FIXED(EXP(N$4*-1*'PM2.5 reduction'!N218),9))","v":0.99997887799999996},{"$f":"VALUE(FIXED(EXP(O$4*-1*'PM2.5 reduction'!O218),9))","v":0.99998735400000005},{"$f":"VALUE(FIXED(EXP(P$4*-1*'PM2.5 reduction'!P218),9))","v":0.99997546199999998},{"$f":"VALUE(FIXED(EXP(Q$4*-1*'PM2.5 reduction'!Q218),9))","v":0.99999039700000003},{"$f":"VALUE(FIXED(EXP(R$4*-1*'PM2.5 reduction'!R218),9))","v":0.99997502000000005},{"$f":"VALUE(FIXED(EXP(S$4*-1*'PM2.5 reduction'!S218),9))","v":0.99996263600000002},{"$f":"VALUE(FIXED(EXP(T$4*-1*'PM2.5 reduction'!T218),9))","v":0.99995300899999995},{"$f":"VALUE(FIXED(EXP(U$4*-1*'PM2.5 reduction'!U218),9))","v":1},{"$f":"VALUE(FIXED(EXP(V$4*-1*'PM2.5 reduction'!V218),9))","v":0.99998202000000003},{"$f":"VALUE(FIXED(EXP(W$4*-1*'PM2.5 reduction'!W218),9))","v":0.99998543200000001},{"$f":"VALUE(FIXED(EXP(X$4*-1*'PM2.5 reduction'!X218),9))","v":0.99998543200000001},{"$f":"VALUE(FIXED(EXP(Y$4*-1*'PM2.5 reduction'!Y218),9))","v":0.99998393799999996},{"$f":"VALUE(FIXED(EXP(Z$4*-1*'PM2.5 reduction'!Z218),9))","v":0.99995974700000001},{"$f":"VALUE(FIXED(EXP(AA$4*-1*'PM2.5 reduction'!AA218),9))","v":0.99997127100000005},{"$f":"VALUE(FIXED(EXP(AB$4*-1*'PM2.5 reduction'!AB218),9))","v":0.99997444499999999},{"$f":"VALUE(FIXED(EXP(AC$4*-1*'PM2.5 reduction'!AC218),9))","v":0.99996797199999998},{"$f":"VALUE(FIXED(EXP(AD$4*-1*'PM2.5 reduction'!AD218),9))","v":0.99999126699999996},{"$f":"VALUE(FIXED(EXP(AE$4*-1*'PM2.5 reduction'!AE218),9))","v":0.99999080299999998},{"$f":"VALUE(FIXED(EXP(AF$4*-1*'PM2.5 reduction'!AF218),9))","v":0.99998811799999998},{"$f":"VALUE(FIXED(EXP(AG$4*-1*'PM2.5 reduction'!AG218),9))","v":0.99999080299999998},{"$f":"VALUE(FIXED(EXP(AH$4*-1*'PM2.5 reduction'!AH218),9))","v":0.99998095600000003},{"$f":"VALUE(FIXED(EXP(AI$4*-1*'PM2.5 reduction'!AI218),9))","v":0.99995825299999996},{"$f":"VALUE(FIXED(EXP(AJ$4*-1*'PM2.5 reduction'!AJ218),9))","v":0.99998586599999995},{"$f":"VALUE(FIXED(EXP(AK$4*-1*'PM2.5 reduction'!AK218),9))","v":0.99999301100000004},{"$f":"VALUE(FIXED(EXP(AL$4*-1*'PM2.5 reduction'!AL218),9))","v":0.99999091699999998},{"$f":"VALUE(FIXED(EXP(AM$4*-1*'PM2.5 reduction'!AM218),9))","v":0.99997847100000004},{"$f":"VALUE(FIXED(EXP(AN$4*-1*'PM2.5 reduction'!AN218),9))","v":1},{"$f":"VALUE(FIXED(EXP(AO$4*-1*'PM2.5 reduction'!AO218),9))","v":1},{"$f":"VALUE(FIXED(EXP(AP$4*-1*'PM2.5 reduction'!AP218),9))","v":0.99998980599999998},{"$f":"VALUE(FIXED(EXP(AQ$4*-1*'PM2.5 reduction'!AQ218),9))","v":0.99998066100000005},{"$f":"VALUE(FIXED(EXP(AR$4*-1*'PM2.5 reduction'!AR218),9))","v":0.99997081499999996},{"$f":"VALUE(FIXED(EXP(AS$4*-1*'PM2.5 reduction'!AS218),9))","v":0.99999538399999999},{"$f":"VALUE(FIXED(EXP(AT$4*-1*'PM2.5 reduction'!AT218),9))","v":1},{"$f":"VALUE(FIXED(EXP(AU$4*-1*'PM2.5 reduction'!AU218),9))","v":1},{"$f":"VALUE(FIXED(EXP(AV$4*-1*'PM2.5 reduction'!AV218),9))","v":0.99998818599999995},{"$f":"VALUE(FIXED(EXP(AW$4*-1*'PM2.5 reduction'!AW218),9))","v":0.99998290099999998},{"$f":"VALUE(FIXED(EXP(AX$4*-1*'PM2.5 reduction'!AX218),9))","v":0.99998694200000005},{"$f":"VALUE(FIXED(EXP(AY$4*-1*'PM2.5 reduction'!AY218),9))","v":0.999985809},{"$f":"VALUE(FIXED(EXP(AZ$4*-1*'PM2.5 reduction'!AZ218),9))","v":0.99998620500000002},{"$f":"VALUE(FIXED(EXP(BA$4*-1*'PM2.5 reduction'!BA218),9))","v":0.99998710800000001},{"$f":"VALUE(FIXED(EXP(BB$4*-1*'PM2.5 reduction'!BB218),9))","v":0.99998399699999996},{"$f":"VALUE(FIXED(EXP(BC$4*-1*'PM2.5 reduction'!BC218),9))","v":1}]
[null,"Female 35-39",{"$f":"VALUE(FIXED(EXP(C$4*-1*'PM2.5 reduction'!C219),9))","v":0.99996721300000002},{"$f":"VALUE(FIXED(EXP(D$4*-1*'PM2.5 reduction'!D219),9))","v":0.99997737099999995},{"$f":"VALUE(FIXED(EXP(E$4*-1*'PM2.5 reduction'!E219),9))","v":0.99999379399999999},{"$f":"VALUE(FIXED(EXP(F$4*-1*'PM2.5 reduction'!F219),9))","v":0.99999285500000001},{"$f":"VALUE(FIXED(EXP(G$4*-1*'PM2.5 reduction'!G219),9))","v":0.99999438799999996},{"$f":"VALUE(FIXED(EXP(H$4*-1*'PM2.5 reduction'!H219),9))","v":0.99998821299999996},{"$f":"VALUE(FIXED(EXP(I$4*-1*'PM2.5 reduction'!I219),9))","v":0.99999546500000003},{"$f":"VALUE(FIXED(EXP(J$4*-1*'PM2.5 reduction'!J219),9))","v":0.99998820200000005},{"$f":"VALUE(FIXED(EXP(K$4*-1*'PM2.5 reduction'!K219),9))","v":0.99998610200000004},{"$f":"VALUE(FIXED(EXP(L$4*-1*'PM2.5 reduction'!L219),9))","v":0.99999251},{"$f":"VALUE(FIXED(EXP(M$4*-1*'PM2.5 reduction'!M219),9))","v":0.99999251},{"$f":"VALUE(FIXED(EXP(N$4*-1*'PM2.5 reduction'!N219),9))","v":0.99997805900000003},{"$f":"VALUE(FIXED(EXP(O$4*-1*'PM2.5 reduction'!O219),9))","v":0.99998675100000001},{"$f":"VALUE(FIXED(EXP(P$4*-1*'PM2.5 reduction'!P219),9))","v":0.99997544800000004},{"$f":"VALUE(FIXED(EXP(Q$4*-1*'PM2.5 reduction'!Q219),9))","v":0.99999083300000002},{"$f":"VALUE(FIXED(EXP(R$4*-1*'PM2.5 reduction'!R219),9))","v":0.99997459600000005},{"$f":"VALUE(FIXED(EXP(S$4*-1*'PM2.5 reduction'!S219),9))","v":0.99996756099999995},{"$f":"VALUE(FIXED(EXP(T$4*-1*'PM2.5 reduction'!T219),9))","v":0.99995785800000003},{"$f":"VALUE(FIXED(EXP(U$4*-1*'PM2.5 reduction'!U219),9))","v":1},{"$f":"VALUE(FIXED(EXP(V$4*-1*'PM2.5 reduction'!V219),9))","v":0.99998235099999999},{"$f":"VALUE(FIXED(EXP(W$4*-1*'PM2.5 reduction'!W219),9))","v":0.99998543500000003},{"$f":"VALUE(FIXED(EXP(X$4*-1*'PM2.5 reduction'!X219),9))","v":0.99998543500000003},{"$f":"VALUE(FIXED(EXP(Y$4*-1*'PM2.5 reduction'!Y219),9))","v":0.99998486499999995},{"$f":"VALUE(FIXED(EXP(Z$4*-1*'PM2.5 reduction'!Z219),9))","v":0.999961765},{"$f":"VALUE(FIXED(EXP(AA$4*-1*'PM2.5 reduction'!AA219),9))","v":0.99997382499999998},{"$f":"VALUE(FIXED(EXP(AB$4*-1*'PM2.5 reduction'!AB219),9))","v":0.99997779899999995},{"$f":"VALUE(FIXED(EXP(AC$4*-1*'PM2.5 reduction'!AC219),9))","v":0.99997131800000005},{"$f":"VALUE(FIXED(EXP(AD$4*-1*'PM2.5 reduction'!AD219),9))","v":0.99999166100000003},{"$f":"VALUE(FIXED(EXP(AE$4*-1*'PM2.5 reduction'!AE219),9))","v":0.99999086699999995},{"$f":"VALUE(FIXED(EXP(AF$4*-1*'PM2.5 reduction'!AF219),9))","v":0.99998966099999997},{"$f":"VALUE(FIXED(EXP(AG$4*-1*'PM2.5 reduction'!AG219),9))","v":0.99999086699999995},{"$f":"VALUE(FIXED(EXP(AH$4*-1*'PM2.5 reduction'!AH219),9))","v":0.99998090100000003},{"$f":"VALUE(FIXED(EXP(AI$4*-1*'PM2.5 reduction'!AI219),9))","v":0.99996350099999998},{"$f":"VALUE(FIXED(EXP(AJ$4*-1*'PM2.5 reduction'!AJ219),9))","v":0.99998423700000005},{"$f":"VALUE(FIXED(EXP(AK$4*-1*'PM2.5 reduction'!AK219),9))","v":0.99999291099999998},{"$f":"VALUE(FIXED(EXP(AL$4*-1*'PM2.5 reduction'!AL219),9))","v":0.99999066999999997},{"$f":"VALUE(FIXED(EXP(AM$4*-1*'PM2.5 reduction'!AM219),9))","v":0.999978692},{"$f":"VALUE(FIXED(EXP(AN$4*-1*'PM2.5 reduction'!AN219),9))","v":1},{"$f":"VALUE(FIXED(EXP(AO$4*-1*'PM2.5 reduction'!AO219),9))","v":1},{"$f":"VALUE(FIXED(EXP(AP$4*-1*'PM2.5 reduction'!AP219),9))","v":0.99998999099999997},{"$f":"VALUE(FIXED(EXP(AQ$4*-1*'PM2.5 reduction'!AQ219),9))","v":0.99998120800000001},{"$f":"VALUE(FIXED(EXP(AR$4*-1*'PM2.5 reduction'!AR219),9))","v":0.99997428399999999},{"$f":"VALUE(FIXED(EXP(AS$4*-1*'PM2.5 reduction'!AS219),9))","v":0.99999546500000003},{"$f":"VALUE(FIXED(EXP(AT$4*-1*'PM2.5 reduction'!AT219),9))","v":1},{"$f":"VALUE(FIXED(EXP(AU$4*-1*'PM2.5 reduction'!AU219),9))","v":1},{"$f":"VALUE(FIXED(EXP(AV$4*-1*'PM2.5 reduction'!AV219),9))","v":0.99998794099999999},{"$f":"VALUE(FIXED(EXP(AW$4*-1*'PM2.5 reduction'!AW219),9))","v":0.99998254499999994},{"$f":"VALUE(FIXED(EXP(AX$4*-1*'PM2.5 reduction'!AX219),9))","v":0.99998872999999999},{"$f":"VALUE(FIXED(EXP(AY$4*-1*'PM2.5 reduction'!AY219),9))","v":0.99998581099999995},{"$f":"VALUE(FIXED(EXP(AZ$4*-1*'PM2.5 reduction'!AZ219),9))","v":0.99998624800000002},{"$f":"VALUE(FIXED(EXP(BA$4*-1*'PM2.5 reduction'!BA219),9))","v":0.99998635800000002},{"$f":"VALUE(FIXED(EXP(BB$4*-1*'PM2.5 reduction'!BB219),9))","v":0.99998474500000001},{"$f":"VALUE(FIXED(EXP(BC$4*-1*'PM2.5 reduction'!BC219),9))","v":1}]
[null,"Female 40-44",{"$f":"VALUE(FIXED(EXP(C$4*-1*'PM2.5 reduction'!C220),9))","v":0.99996924300000001},{"$f":"VALUE(FIXED(EXP(D$4*-1*'PM2.5 reduction'!D220),9))","v":0.99997994700000004},{"$f":"VALUE(FIXED(EXP(E$4*-1*'PM2.5 reduction'!E220),9))","v":0.99999381600000004},{"$f":"VALUE(FIXED(EXP(F$4*-1*'PM2.5 reduction'!F220),9))","v":0.99999271300000003},{"$f":"VALUE(FIXED(EXP(G$4*-1*'PM2.5 reduction'!G220),9))","v":0.99999439099999998},{"$f":"VALUE(FIXED(EXP(H$4*-1*'PM2.5 reduction'!H220),9))","v":0.99998806600000001},{"$f":"VALUE(FIXED(EXP(I$4*-1*'PM2.5 reduction'!I220),9))","v":0.99999551499999995},{"$f":"VALUE(FIXED(EXP(J$4*-1*'PM2.5 reduction'!J220),9))","v":0.99998827000000001},{"$f":"VALUE(FIXED(EXP(K$4*-1*'PM2.5 reduction'!K220),9))","v":0.99998609800000005},{"$f":"VALUE(FIXED(EXP(L$4*-1*'PM2.5 reduction'!L220),9))","v":0.99999270100000004},{"$f":"VALUE(FIXED(EXP(M$4*-1*'PM2.5 reduction'!M220),9))","v":0.99999270100000004},{"$f":"VALUE(FIXED(EXP(N$4*-1*'PM2.5 reduction'!N220),9))","v":0.99997975699999997},{"$f":"VALUE(FIXED(EXP(O$4*-1*'PM2.5 reduction'!O220),9))","v":0.99998674700000001},{"$f":"VALUE(FIXED(EXP(P$4*-1*'PM2.5 reduction'!P220),9))","v":0.99997567399999998},{"$f":"VALUE(FIXED(EXP(Q$4*-1*'PM2.5 reduction'!Q220),9))","v":0.99999139599999998},{"$f":"VALUE(FIXED(EXP(R$4*-1*'PM2.5 reduction'!R220),9))","v":0.99997483200000004},{"$f":"VALUE(FIXED(EXP(S$4*-1*'PM2.5 reduction'!S220),9))","v":0.99997046599999995},{"$f":"VALUE(FIXED(EXP(T$4*-1*'PM2.5 reduction'!T220),9))","v":0.99996016899999995},{"$f":"VALUE(FIXED(EXP(U$4*-1*'PM2.5 reduction'!U220),9))","v":1},{"$f":"VALUE(FIXED(EXP(V$4*-1*'PM2.5 reduction'!V220),9))","v":0.99998159499999995},{"$f":"VALUE(FIXED(EXP(W$4*-1*'PM2.5 reduction'!W220),9))","v":0.99998503699999997},{"$f":"VALUE(FIXED(EXP(X$4*-1*'PM2.5 reduction'!X220),9))","v":0.99998503699999997},{"$f":"VALUE(FIXED(EXP(Y$4*-1*'PM2.5 reduction'!Y220),9))","v":0.99998425800000001},{"$f":"VALUE(FIXED(EXP(Z$4*-1*'PM2.5 reduction'!Z220),9))","v":0.99996251300000005},{"$f":"VALUE(FIXED(EXP(AA$4*-1*'PM2.5 reduction'!AA220),9))","v":0.99997488400000001},{"$f":"VALUE(FIXED(EXP(AB$4*-1*'PM2.5 reduction'!AB220),9))","v":0.99998054800000002},{"$f":"VALUE(FIXED(EXP(AC$4*-1*'PM2.5 reduction'!AC220),9))","v":0.99997247099999997},{"$f":"VALUE(FIXED(EXP(AD$4*-1*'PM2.5 reduction'!AD220),9))","v":0.99999133200000001},{"$f":"VALUE(FIXED(EXP(AE$4*-1*'PM2.5 reduction'!AE220),9))","v":0.999990512},{"$f":"VALUE(FIXED(EXP(AF$4*-1*'PM2.5 reduction'!AF220),9))","v":0.99998934299999997},{"$f":"VALUE(FIXED(EXP(AG$4*-1*'PM2.5 reduction'!AG220),9))","v":0.999990512},{"$f":"VALUE(FIXED(EXP(AH$4*-1*'PM2.5 reduction'!AH220),9))","v":0.99998151499999999},{"$f":"VALUE(FIXED(EXP(AI$4*-1*'PM2.5 reduction'!AI220),9))","v":0.99996655400000001},{"$f":"VALUE(FIXED(EXP(AJ$4*-1*'PM2.5 reduction'!AJ220),9))","v":0.99998410000000004},{"$f":"VALUE(FIXED(EXP(AK$4*-1*'PM2.5 reduction'!AK220),9))","v":0.99999318000000004},{"$f":"VALUE(FIXED(EXP(AL$4*-1*'PM2.5 reduction'!AL220),9))","v":0.99999058399999996},{"$f":"VALUE(FIXED(EXP(AM$4*-1*'PM2.5 reduction'!AM220),9))","v":0.99997908199999996},{"$f":"VALUE(FIXED(EXP(AN$4*-1*'PM2.5 reduction'!AN220),9))","v":1},{"$f":"VALUE(FIXED(EXP(AO$4*-1*'PM2.5 reduction'!AO220),9))","v":1},{"$f":"VALUE(FIXED(EXP(AP$4*-1*'PM2.5 reduction'!AP220),9))","v":0.99999074700000001},{"$f":"VALUE(FIXED(EXP(AQ$4*-1*'PM2.5 reduction'!AQ220),9))","v":0.99998164300000003},{"$f":"VALUE(FIXED(EXP(AR$4*-1*'PM2.5 reduction'!AR220),9))","v":0.99997643899999999},{"$f":"VALUE(FIXED(EXP(AS$4*-1*'PM2.5 reduction'!AS220),9))","v":0.99999551499999995},{"$f":"VALUE(FIXED(EXP(AT$4*-1*'PM2.5 reduction'!AT220),9))","v":1},{"$f":"VALUE(FIXED(EXP(AU$4*-1*'PM2.5 reduction'!AU220),9))","v":1},{"$f":"VALUE(FIXED(EXP(AV$4*-1*'PM2.5 reduction'!AV220),9))","v":0.99998786799999995},{"$f":"VALUE(FIXED(EXP(AW$4*-1*'PM2.5 reduction'!AW220),9))","v":0.99998323300000003},{"$f":"VALUE(FIXED(EXP(AX$4*-1*'PM2.5 reduction'!AX220),9))","v":0.99998873099999996},{"$f":"VALUE(FIXED(EXP(AY$4*-1*'PM2.5 reduction'!AY220),9))","v":0.99998620100000002},{"$f":"VALUE(FIXED(EXP(AZ$4*-1*'PM2.5 reduction'!AZ220),9))","v":0.99998747600000004},{"$f":"VALUE(FIXED(EXP(BA$4*-1*'PM2.5 reduction'!BA220),9))","v":0.99998731600000001},{"$f":"VALUE(FIXED(EXP(BB$4*-1*'PM2.5 reduction'!BB220),9))","v":0.99998487599999997},{"$f":"VALUE(FIXED(EXP(BC$4*-1*'PM2.5 reduction'!BC220),9))","v":1}]
[null,"Female 45-49",{"$f":"VALUE(FIXED(EXP(C$4*-1*'PM2.5 reduction'!C221),9))","v":0.99996988099999995},{"$f":"VALUE(FIXED(EXP(D$4*-1*'PM2.5 reduction'!D221),9))","v":0.99998071899999996},{"$f":"VALUE(FIXED(EXP(E$4*-1*'PM2.5 reduction'!E221),9))","v":0.99999369000000005},{"$f":"VALUE(FIXED(EXP(F$4*-1*'PM2.5 reduction'!F221),9))","v":0.99999270100000004},{"$f":"VALUE(FIXED(EXP(G$4*-1*'PM2.5 reduction'!G221),9))","v":0.99999431599999999},{"$f":"VALUE(FIXED(EXP(H$4*-1*'PM2.5 reduction'!H221),9))","v":0.99998791300000001},{"$f":"VALUE(FIXED(EXP(I$4*-1*'PM2.5 reduction'!I221),9))","v":0.999995517},{"$f":"VALUE(FIXED(EXP(J$4*-1*'PM2.5 reduction'!J221),9))","v":0.99998824799999997},{"$f":"VALUE(FIXED(EXP(K$4*-1*'PM2.5 reduction'!K221),9))","v":0.99998688700000005},{"$f":"VALUE(FIXED(EXP(L$4*-1*'PM2.5 reduction'!L221),9))","v":0.99999253399999999},{"$f":"VALUE(FIXED(EXP(M$4*-1*'PM2.5 reduction'!M221),9))","v":0.99999253399999999},{"$f":"VALUE(FIXED(EXP(N$4*-1*'PM2.5 reduction'!N221),9))","v":0.99998008000000005},{"$f":"VALUE(FIXED(EXP(O$4*-1*'PM2.5 reduction'!O221),9))","v":0.99998669299999998},{"$f":"VALUE(FIXED(EXP(P$4*-1*'PM2.5 reduction'!P221),9))","v":0.99997559499999999},{"$f":"VALUE(FIXED(EXP(Q$4*-1*'PM2.5 reduction'!Q221),9))","v":0.99999150400000003},{"$f":"VALUE(FIXED(EXP(R$4*-1*'PM2.5 reduction'!R221),9))","v":0.999975269},{"$f":"VALUE(FIXED(EXP(S$4*-1*'PM2.5 reduction'!S221),9))","v":0.99997160900000004},{"$f":"VALUE(FIXED(EXP(T$4*-1*'PM2.5 reduction'!T221),9))","v":0.99996108299999997},{"$f":"VALUE(FIXED(EXP(U$4*-1*'PM2.5 reduction'!U221),9))","v":1},{"$f":"VALUE(FIXED(EXP(V$4*-1*'PM2.5 reduction'!V221),9))","v":0.99998145100000002},{"$f":"VALUE(FIXED(EXP(W$4*-1*'PM2.5 reduction'!W221),9))","v":0.99998543200000001},{"$f":"VALUE(FIXED(EXP(X$4*-1*'PM2.5 reduction'!X221),9))","v":0.99998543200000001},{"$f":"VALUE(FIXED(EXP(Y$4*-1*'PM2.5 reduction'!Y221),9))","v":0.99998441500000002},{"$f":"VALUE(FIXED(EXP(Z$4*-1*'PM2.5 reduction'!Z221),9))","v":0.99996344800000003},{"$f":"VALUE(FIXED(EXP(AA$4*-1*'PM2.5 reduction'!AA221),9))","v":0.99997548700000005},{"$f":"VALUE(FIXED(EXP(AB$4*-1*'PM2.5 reduction'!AB221),9))","v":0.99998129199999997},{"$f":"VALUE(FIXED(EXP(AC$4*-1*'PM2.5 reduction'!AC221),9))","v":0.99997330799999995},{"$f":"VALUE(FIXED(EXP(AD$4*-1*'PM2.5 reduction'!AD221),9))","v":0.99999163199999996},{"$f":"VALUE(FIXED(EXP(AE$4*-1*'PM2.5 reduction'!AE221),9))","v":0.99999079199999996},{"$f":"VALUE(FIXED(EXP(AF$4*-1*'PM2.5 reduction'!AF221),9))","v":0.99998979499999996},{"$f":"VALUE(FIXED(EXP(AG$4*-1*'PM2.5 reduction'!AG221),9))","v":0.99999079199999996},{"$f":"VALUE(FIXED(EXP(AH$4*-1*'PM2.5 reduction'!AH221),9))","v":0.99998141399999996},{"$f":"VALUE(FIXED(EXP(AI$4*-1*'PM2.5 reduction'!AI221),9))","v":0.99996785300000002},{"$f":"VALUE(FIXED(EXP(AJ$4*-1*'PM2.5 reduction'!AJ221),9))","v":0.99998361999999996},{"$f":"VALUE(FIXED(EXP(AK$4*-1*'PM2.5 reduction'!AK221),9))","v":0.999993138},{"$f":"VALUE(FIXED(EXP(AL$4*-1*'PM2.5 reduction'!AL221),9))","v":0.999990665},{"$f":"VALUE(FIXED(EXP(AM$4*-1*'PM2.5 reduction'!AM221),9))","v":0.99997949699999999},{"$f":"VALUE(FIXED(EXP(AN$4*-1*'PM2.5 reduction'!AN221),9))","v":1},{"$f":"VALUE(FIXED(EXP(AO$4*-1*'PM2.5 reduction'!AO221),9))","v":1},{"$f":"VALUE(FIXED(EXP(AP$4*-1*'PM2.5 reduction'!AP221),9))","v":0.99999054300000001},{"$f":"VALUE(FIXED(EXP(AQ$4*-1*'PM2.5 reduction'!AQ221),9))","v":0.99998173800000001},{"$f":"VALUE(FIXED(EXP(AR$4*-1*'PM2.5 reduction'!AR221),9))","v":0.99997729199999996},{"$f":"VALUE(FIXED(EXP(AS$4*-1*'PM2.5 reduction'!AS221),9))","v":0.999995517},{"$f":"VALUE(FIXED(EXP(AT$4*-1*'PM2.5 reduction'!AT221),9))","v":1},{"$f":"VALUE(FIXED(EXP(AU$4*-1*'PM2.5 reduction'!AU221),9))","v":1},{"$f":"VALUE(FIXED(EXP(AV$4*-1*'PM2.5 reduction'!AV221),9))","v":0.99998743199999995},{"$f":"VALUE(FIXED(EXP(AW$4*-1*'PM2.5 reduction'!AW221),9))","v":0.99998299599999996},{"$f":"VALUE(FIXED(EXP(AX$4*-1*'PM2.5 reduction'!AX221),9))","v":0.99998849099999998},{"$f":"VALUE(FIXED(EXP(AY$4*-1*'PM2.5 reduction'!AY221),9))","v":0.99998637000000001},{"$f":"VALUE(FIXED(EXP(AZ$4*-1*'PM2.5 reduction'!AZ221),9))","v":0.999987289},{"$f":"VALUE(FIXED(EXP(BA$4*-1*'PM2.5 reduction'!BA221),9))","v":0.99998670899999997},{"$f":"VALUE(FIXED(EXP(BB$4*-1*'PM2.5 reduction'!BB221),9))","v":0.99998533899999997},{"$f":"VALUE(FIXED(EXP(BC$4*-1*'PM2.5 reduction'!BC221),9))","v":1}]
[null,"Female 50-54",{"$f":"VALUE(FIXED(EXP(C$4*-1*'PM2.5 reduction'!C222),9))","v":0.99996975300000002},{"$f":"VALUE(FIXED(EXP(D$4*-1*'PM2.5 reduction'!D222),9))","v":0.99997977299999996},{"$f":"VALUE(FIXED(EXP(E$4*-1*'PM2.5 reduction'!E222),9))","v":0.99999348499999996},{"$f":"VALUE(FIXED(EXP(F$4*-1*'PM2.5 reduction'!F222),9))","v":0.999992573},{"$f":"VALUE(FIXED(EXP(G$4*-1*'PM2.5 reduction'!G222),9))","v":0.99999428700000004},{"$f":"VALUE(FIXED(EXP(H$4*-1*'PM2.5 reduction'!H222),9))","v":0.99998804100000005},{"$f":"VALUE(FIXED(EXP(I$4*-1*'PM2.5 reduction'!I222),9))","v":0.99999554899999998},{"$f":"VALUE(FIXED(EXP(J$4*-1*'PM2.5 reduction'!J222),9))","v":0.99998921500000004},{"$f":"VALUE(FIXED(EXP(K$4*-1*'PM2.5 reduction'!K222),9))","v":0.99998699599999996},{"$f":"VALUE(FIXED(EXP(L$4*-1*'PM2.5 reduction'!L222),9))","v":0.99999246100000005},{"$f":"VALUE(FIXED(EXP(M$4*-1*'PM2.5 reduction'!M222),9))","v":0.99999246100000005},{"$f":"VALUE(FIXED(EXP(N$4*-1*'PM2.5 reduction'!N222),9))","v":0.99997942699999998},{"$f":"VALUE(FIXED(EXP(O$4*-1*'PM2.5 reduction'!O222),9))","v":0.99998679599999996},{"$f":"VALUE(FIXED(EXP(P$4*-1*'PM2.5 reduction'!P222),9))","v":0.99997541499999998},{"$f":"VALUE(FIXED(EXP(Q$4*-1*'PM2.5 reduction'!Q222),9))","v":0.99999194999999996},{"$f":"VALUE(FIXED(EXP(R$4*-1*'PM2.5 reduction'!R222),9))","v":0.99997508400000001},{"$f":"VALUE(FIXED(EXP(S$4*-1*'PM2.5 reduction'!S222),9))","v":0.99997151100000004},{"$f":"VALUE(FIXED(EXP(T$4*-1*'PM2.5 reduction'!T222),9))","v":0.99996172500000002},{"$f":"VALUE(FIXED(EXP(U$4*-1*'PM2.5 reduction'!U222),9))","v":1},{"$f":"VALUE(FIXED(EXP(V$4*-1*'PM2.5 reduction'!V222),9))","v":0.999980969},{"$f":"VALUE(FIXED(EXP(W$4*-1*'PM2.5 reduction'!W222),9))","v":0.99998546499999996},{"$f":"VALUE(FIXED(EXP(X$4*-1*'PM2.5 reduction'!X222),9))","v":0.99998546499999996},{"$f":"VALUE(FIXED(EXP(Y$4*-1*'PM2.5 reduction'!Y222),9))","v":0.99998461400000005},{"$f":"VALUE(FIXED(EXP(Z$4*-1*'PM2.5 reduction'!Z222),9))","v":0.99996360399999995},{"$f":"VALUE(FIXED(EXP(AA$4*-1*'PM2.5 reduction'!AA222),9))","v":0.99997540100000004},{"$f":"VALUE(FIXED(EXP(AB$4*-1*'PM2.5 reduction'!AB222),9))","v":0.99998043000000003},{"$f":"VALUE(FIXED(EXP(AC$4*-1*'PM2.5 reduction'!AC222),9))","v":0.99997334299999996},{"$f":"VALUE(FIXED(EXP(AD$4*-1*'PM2.5 reduction'!AD222),9))","v":0.999991301},{"$f":"VALUE(FIXED(EXP(AE$4*-1*'PM2.5 reduction'!AE222),9))","v":0.99999039999999995},{"$f":"VALUE(FIXED(EXP(AF$4*-1*'PM2.5 reduction'!AF222),9))","v":0.99998909999999996},{"$f":"VALUE(FIXED(EXP(AG$4*-1*'PM2.5 reduction'!AG222),9))","v":0.99999039999999995},{"$f":"VALUE(FIXED(EXP(AH$4*-1*'PM2.5 reduction'!AH222),9))","v":0.99998096599999997},{"$f":"VALUE(FIXED(EXP(AI$4*-1*'PM2.5 reduction'!AI222),9))","v":0.99996797999999998},{"$f":"VALUE(FIXED(EXP(AJ$4*-1*'PM2.5 reduction'!AJ222),9))","v":0.99998397000000006},{"$f":"VALUE(FIXED(EXP(AK$4*-1*'PM2.5 reduction'!AK222),9))","v":0.99999374299999999},{"$f":"VALUE(FIXED(EXP(AL$4*-1*'PM2.5 reduction'!AL222),9))","v":0.99999079000000002},{"$f":"VALUE(FIXED(EXP(AM$4*-1*'PM2.5 reduction'!AM222),9))","v":0.99997871299999996},{"$f":"VALUE(FIXED(EXP(AN$4*-1*'PM2.5 reduction'!AN222),9))","v":1},{"$f":"VALUE(FIXED(EXP(AO$4*-1*'PM2.5 reduction'!AO222),9))","v":1},{"$f":"VALUE(FIXED(EXP(AP$4*-1*'PM2.5 reduction'!AP222),9))","v":0.99999100699999999},{"$f":"VALUE(FIXED(EXP(AQ$4*-1*'PM2.5 reduction'!AQ222),9))","v":0.99998141399999996},{"$f":"VALUE(FIXED(EXP(AR$4*-1*'PM2.5 reduction'!AR222),9))","v":0.99997727199999997},{"$f":"VALUE(FIXED(EXP(AS$4*-1*'PM2.5 reduction'!AS222),9))","v":0.99999554899999998},{"$f":"VALUE(FIXED(EXP(AT$4*-1*'PM2.5 reduction'!AT222),9))","v":1},{"$f":"VALUE(FIXED(EXP(AU$4*-1*'PM2.5 reduction'!AU222),9))","v":1},{"$f":"VALUE(FIXED(EXP(AV$4*-1*'PM2.5 reduction'!AV222),9))","v":0.99998769300000001},{"$f":"VALUE(FIXED(EXP(AW$4*-1*'PM2.5 reduction'!AW222),9))","v":0.99998261700000002},{"$f":"VALUE(FIXED(EXP(AX$4*-1*'PM2.5 reduction'!AX222),9))","v":0.999989605},{"$f":"VALUE(FIXED(EXP(AY$4*-1*'PM2.5 reduction'!AY222),9))","v":0.99998639},{"$f":"VALUE(FIXED(EXP(AZ$4*-1*'PM2.5 reduction'!AZ222),9))","v":0.99998715599999999},{"$f":"VALUE(FIXED(EXP(BA$4*-1*'PM2.5 reduction'!BA222),9))","v":0.99998709900000005},{"$f":"VALUE(FIXED(EXP(BB$4*-1*'PM2.5 reduction'!BB222),9))","v":0.99998558100000001},{"$f":"VALUE(FIXED(EXP(BC$4*-1*'PM2.5 reduction'!BC222),9))","v":1}]
[null,"Female 55-59",{"$f":"VALUE(FIXED(EXP(C$4*-1*'PM2.5 reduction'!C223),9))","v":0.99997011400000002},{"$f":"VALUE(FIXED(EXP(D$4*-1*'PM2.5 reduction'!D223),9))","v":0.99998001199999997},{"$f":"VALUE(FIXED(EXP(E$4*-1*'PM2.5 reduction'!E223),9))","v":0.99999355099999998},{"$f":"VALUE(FIXED(EXP(F$4*-1*'PM2.5 reduction'!F223),9))","v":0.99999236999999996},{"$f":"VALUE(FIXED(EXP(G$4*-1*'PM2.5 reduction'!G223),9))","v":0.99999426400000002},{"$f":"VALUE(FIXED(EXP(H$4*-1*'PM2.5 reduction'!H223),9))","v":0.99998794300000005},{"$f":"VALUE(FIXED(EXP(I$4*-1*'PM2.5 reduction'!I223),9))","v":0.99999556300000003},{"$f":"VALUE(FIXED(EXP(J$4*-1*'PM2.5 reduction'!J223),9))","v":0.99998872500000002},{"$f":"VALUE(FIXED(EXP(K$4*-1*'PM2.5 reduction'!K223),9))","v":0.999987454},{"$f":"VALUE(FIXED(EXP(L$4*-1*'PM2.5 reduction'!L223),9))","v":0.99999262},{"$f":"VALUE(FIXED(EXP(M$4*-1*'PM2.5 reduction'!M223),9))","v":0.99999262},{"$f":"VALUE(FIXED(EXP(N$4*-1*'PM2.5 reduction'!N223),9))","v":0.99997972099999999},{"$f":"VALUE(FIXED(EXP(O$4*-1*'PM2.5 reduction'!O223),9))","v":0.99998637999999995},{"$f":"VALUE(FIXED(EXP(P$4*-1*'PM2.5 reduction'!P223),9))","v":0.99997560299999999},{"$f":"VALUE(FIXED(EXP(Q$4*-1*'PM2.5 reduction'!Q223),9))","v":0.99999179299999996},{"$f":"VALUE(FIXED(EXP(R$4*-1*'PM2.5 reduction'!R223),9))","v":0.99997501499999997},{"$f":"VALUE(FIXED(EXP(S$4*-1*'PM2.5 reduction'!S223),9))","v":0.99997144299999996},{"$f":"VALUE(FIXED(EXP(T$4*-1*'PM2.5 reduction'!T223),9))","v":0.99996203900000002},{"$f":"VALUE(FIXED(EXP(U$4*-1*'PM2.5 reduction'!U223),9))","v":1},{"$f":"VALUE(FIXED(EXP(V$4*-1*'PM2.5 reduction'!V223),9))","v":0.99998106200000003},{"$f":"VALUE(FIXED(EXP(W$4*-1*'PM2.5 reduction'!W223),9))","v":0.99998601499999995},{"$f":"VALUE(FIXED(EXP(X$4*-1*'PM2.5 reduction'!X223),9))","v":0.99998601499999995},{"$f":"VALUE(FIXED(EXP(Y$4*-1*'PM2.5 reduction'!Y223),9))","v":0.99998457399999996},{"$f":"VALUE(FIXED(EXP(Z$4*-1*'PM2.5 reduction'!Z223),9))","v":0.99996404299999997},{"$f":"VALUE(FIXED(EXP(AA$4*-1*'PM2.5 reduction'!AA223),9))","v":0.99997542800000006},{"$f":"VALUE(FIXED(EXP(AB$4*-1*'PM2.5 reduction'!AB223),9))","v":0.99998067999999996},{"$f":"VALUE(FIXED(EXP(AC$4*-1*'PM2.5 reduction'!AC223),9))","v":0.99997353},{"$f":"VALUE(FIXED(EXP(AD$4*-1*'PM2.5 reduction'!AD223),9))","v":0.99999163899999999},{"$f":"VALUE(FIXED(EXP(AE$4*-1*'PM2.5 reduction'!AE223),9))","v":0.99999077199999997},{"$f":"VALUE(FIXED(EXP(AF$4*-1*'PM2.5 reduction'!AF223),9))","v":0.99998889099999999},{"$f":"VALUE(FIXED(EXP(AG$4*-1*'PM2.5 reduction'!AG223),9))","v":0.99999077199999997},{"$f":"VALUE(FIXED(EXP(AH$4*-1*'PM2.5 reduction'!AH223),9))","v":0.999980757},{"$f":"VALUE(FIXED(EXP(AI$4*-1*'PM2.5 reduction'!AI223),9))","v":0.99996756499999995},{"$f":"VALUE(FIXED(EXP(AJ$4*-1*'PM2.5 reduction'!AJ223),9))","v":0.99998493499999996},{"$f":"VALUE(FIXED(EXP(AK$4*-1*'PM2.5 reduction'!AK223),9))","v":0.99999323500000004},{"$f":"VALUE(FIXED(EXP(AL$4*-1*'PM2.5 reduction'!AL223),9))","v":0.99999127200000004},{"$f":"VALUE(FIXED(EXP(AM$4*-1*'PM2.5 reduction'!AM223),9))","v":0.999978857},{"$f":"VALUE(FIXED(EXP(AN$4*-1*'PM2.5 reduction'!AN223),9))","v":1},{"$f":"VALUE(FIXED(EXP(AO$4*-1*'PM2.5 reduction'!AO223),9))","v":1},{"$f":"VALUE(FIXED(EXP(AP$4*-1*'PM2.5 reduction'!AP223),9))","v":0.99999068000000002},{"$f":"VALUE(FIXED(EXP(AQ$4*-1*'PM2.5 reduction'!AQ223),9))","v":0.999982021},{"$f":"VALUE(FIXED(EXP(AR$4*-1*'PM2.5 reduction'!AR223),9))","v":0.99997738400000002},{"$f":"VALUE(FIXED(EXP(AS$4*-1*'PM2.5 reduction'!AS223),9))","v":0.99999556300000003},{"$f":"VALUE(FIXED(EXP(AT$4*-1*'PM2.5 reduction'!AT223),9))","v":1},{"$f":"VALUE(FIXED(EXP(AU$4*-1*'PM2.5 reduction'!AU223),9))","v":1},{"$f":"VALUE(FIXED(EXP(AV$4*-1*'PM2.5 reduction'!AV223),9))","v":0.99998772700000005},{"$f":"VALUE(FIXED(EXP(AW$4*-1*'PM2.5 reduction'!AW223),9))","v":0.99998215300000004},{"$f":"VALUE(FIXED(EXP(AX$4*-1*'PM2.5 reduction'!AX223),9))","v":0.999988934},{"$f":"VALUE(FIXED(EXP(AY$4*-1*'PM2.5 reduction'!AY223),9))","v":0.999986551},{"$f":"VALUE(FIXED(EXP(AZ$4*-1*'PM2.5 reduction'!AZ223),9))","v":0.99998698200000002},{"$f":"VALUE(FIXED(EXP(BA$4*-1*'PM2.5 reduction'!BA223),9))","v":0.99998721800000001},{"$f":"VALUE(FIXED(EXP(BB$4*-1*'PM2.5 reduction'!BB223),9))","v":0.99998584899999998},{"$f":"VALUE(FIXED(EXP(BC$4*-1*'PM2.5 reduction'!BC223),9))","v":1}]
[null,"Female 60-64",{"$f":"VALUE(FIXED(EXP(C$4*-1*'PM2.5 reduction'!C224),9))","v":0.99997031599999997},{"$f":"VALUE(FIXED(EXP(D$4*-1*'PM2.5 reduction'!D224),9))","v":0.99998087400000002},{"$f":"VALUE(FIXED(EXP(E$4*-1*'PM2.5 reduction'!E224),9))","v":0.99999347599999999},{"$f":"VALUE(FIXED(EXP(F$4*-1*'PM2.5 reduction'!F224),9))","v":0.99999267300000005},{"$f":"VALUE(FIXED(EXP(G$4*-1*'PM2.5 reduction'!G224),9))","v":0.99999424400000003},{"$f":"VALUE(FIXED(EXP(H$4*-1*'PM2.5 reduction'!H224),9))","v":0.999988035},{"$f":"VALUE(FIXED(EXP(I$4*-1*'PM2.5 reduction'!I224),9))","v":0.99999545599999995},{"$f":"VALUE(FIXED(EXP(J$4*-1*'PM2.5 reduction'!J224),9))","v":0.99998842300000002},{"$f":"VALUE(FIXED(EXP(K$4*-1*'PM2.5 reduction'!K224),9))","v":0.99998800099999996},{"$f":"VALUE(FIXED(EXP(L$4*-1*'PM2.5 reduction'!L224),9))","v":0.99999272299999997},{"$f":"VALUE(FIXED(EXP(M$4*-1*'PM2.5 reduction'!M224),9))","v":0.99999272299999997},{"$f":"VALUE(FIXED(EXP(N$4*-1*'PM2.5 reduction'!N224),9))","v":0.99997970300000005},{"$f":"VALUE(FIXED(EXP(O$4*-1*'PM2.5 reduction'!O224),9))","v":0.99998709299999999},{"$f":"VALUE(FIXED(EXP(P$4*-1*'PM2.5 reduction'!P224),9))","v":0.99997552899999997},{"$f":"VALUE(FIXED(EXP(Q$4*-1*'PM2.5 reduction'!Q224),9))","v":0.99999285199999999},{"$f":"VALUE(FIXED(EXP(R$4*-1*'PM2.5 reduction'!R224),9))","v":0.999974904},{"$f":"VALUE(FIXED(EXP(S$4*-1*'PM2.5 reduction'!S224),9))","v":0.99997212499999999},{"$f":"VALUE(FIXED(EXP(T$4*-1*'PM2.5 reduction'!T224),9))","v":0.99996241799999996},{"$f":"VALUE(FIXED(EXP(U$4*-1*'PM2.5 reduction'!U224),9))","v":1},{"$f":"VALUE(FIXED(EXP(V$4*-1*'PM2.5 reduction'!V224),9))","v":0.99998110600000001},{"$f":"VALUE(FIXED(EXP(W$4*-1*'PM2.5 reduction'!W224),9))","v":0.99998665499999995},{"$f":"VALUE(FIXED(EXP(X$4*-1*'PM2.5 reduction'!X224),9))","v":0.99998665499999995},{"$f":"VALUE(FIXED(EXP(Y$4*-1*'PM2.5 reduction'!Y224),9))","v":0.99998463400000004},{"$f":"VALUE(FIXED(EXP(Z$4*-1*'PM2.5 reduction'!Z224),9))","v":0.99996367799999997},{"$f":"VALUE(FIXED(EXP(AA$4*-1*'PM2.5 reduction'!AA224),9))","v":0.99997518500000004},{"$f":"VALUE(FIXED(EXP(AB$4*-1*'PM2.5 reduction'!AB224),9))","v":0.99998172699999999},{"$f":"VALUE(FIXED(EXP(AC$4*-1*'PM2.5 reduction'!AC224),9))","v":0.99997331599999995},{"$f":"VALUE(FIXED(EXP(AD$4*-1*'PM2.5 reduction'!AD224),9))","v":0.99999163999999996},{"$f":"VALUE(FIXED(EXP(AE$4*-1*'PM2.5 reduction'!AE224),9))","v":0.99999090899999998},{"$f":"VALUE(FIXED(EXP(AF$4*-1*'PM2.5 reduction'!AF224),9))","v":0.99998889700000004},{"$f":"VALUE(FIXED(EXP(AG$4*-1*'PM2.5 reduction'!AG224),9))","v":0.99999090899999998},{"$f":"VALUE(FIXED(EXP(AH$4*-1*'PM2.5 reduction'!AH224),9))","v":0.99998070800000005},{"$f":"VALUE(FIXED(EXP(AI$4*-1*'PM2.5 reduction'!AI224),9))","v":0.99996801199999996},{"$f":"VALUE(FIXED(EXP(AJ$4*-1*'PM2.5 reduction'!AJ224),9))","v":0.99998509999999996},{"$f":"VALUE(FIXED(EXP(AK$4*-1*'PM2.5 reduction'!AK224),9))","v":0.99999363200000002},{"$f":"VALUE(FIXED(EXP(AL$4*-1*'PM2.5 reduction'!AL224),9))","v":0.99999133900000003},{"$f":"VALUE(FIXED(EXP(AM$4*-1*'PM2.5 reduction'!AM224),9))","v":0.99997875000000003},{"$f":"VALUE(FIXED(EXP(AN$4*-1*'PM2.5 reduction'!AN224),9))","v":1},{"$f":"VALUE(FIXED(EXP(AO$4*-1*'PM2.5 reduction'!AO224),9))","v":1},{"$f":"VALUE(FIXED(EXP(AP$4*-1*'PM2.5 reduction'!AP224),9))","v":0.99999110199999997},{"$f":"VALUE(FIXED(EXP(AQ$4*-1*'PM2.5 reduction'!AQ224),9))","v":0.99998170200000003},{"$f":"VALUE(FIXED(EXP(AR$4*-1*'PM2.5 reduction'!AR224),9))","v":0.99997776299999996},{"$f":"VALUE(FIXED(EXP(AS$4*-1*'PM2.5 reduction'!AS224),9))","v":0.99999545599999995},{"$f":"VALUE(FIXED(EXP(AT$4*-1*'PM2.5 reduction'!AT224),9))","v":1},{"$f":"VALUE(FIXED(EXP(AU$4*-1*'PM2.5 reduction'!AU224),9))","v":1},{"$f":"VALUE(FIXED(EXP(AV$4*-1*'PM2.5 reduction'!AV224),9))","v":0.99998751399999997},{"$f":"VALUE(FIXED(EXP(AW$4*-1*'PM2.5 reduction'!AW224),9))","v":0.99998196699999997},{"$f":"VALUE(FIXED(EXP(AX$4*-1*'PM2.5 reduction'!AX224),9))","v":0.99998850900000003},{"$f":"VALUE(FIXED(EXP(AY$4*-1*'PM2.5 reduction'!AY224),9))","v":0.99998733200000001},{"$f":"VALUE(FIXED(EXP(AZ$4*-1*'PM2.5 reduction'!AZ224),9))","v":0.99998789899999996},{"$f":"VALUE(FIXED(EXP(BA$4*-1*'PM2.5 reduction'!BA224),9))","v":0.99998693599999999},{"$f":"VALUE(FIXED(EXP(BB$4*-1*'PM2.5 reduction'!BB224),9))","v":0.99998633599999998},{"$f":"VALUE(FIXED(EXP(BC$4*-1*'PM2.5 reduction'!BC224),9))","v":1}]
[null,"Female 65-69",{"$f":"VALUE(FIXED(EXP(C$4*-1*'PM2.5 reduction'!C225),9))","v":0.99997013700000004},{"$f":"VALUE(FIXED(EXP(D$4*-1*'PM2.5 reduction'!D225),9))","v":0.99998031700000001},{"$f":"VALUE(FIXED(EXP(E$4*-1*'PM2.5 reduction'!E225),9))","v":0.99999339899999995},{"$f":"VALUE(FIXED(EXP(F$4*-1*'PM2.5 reduction'!F225),9))","v":0.99999186799999995},{"$f":"VALUE(FIXED(EXP(G$4*-1*'PM2.5 reduction'!G225),9))","v":0.99999423200000004},{"$f":"VALUE(FIXED(EXP(H$4*-1*'PM2.5 reduction'!H225),9))","v":0.999988141},{"$f":"VALUE(FIXED(EXP(I$4*-1*'PM2.5 reduction'!I225),9))","v":0.99999548699999996},{"$f":"VALUE(FIXED(EXP(J$4*-1*'PM2.5 reduction'!J225),9))","v":0.99998867499999999},{"$f":"VALUE(FIXED(EXP(K$4*-1*'PM2.5 reduction'!K225),9))","v":0.99998893200000005},{"$f":"VALUE(FIXED(EXP(L$4*-1*'PM2.5 reduction'!L225),9))","v":0.99999291599999995},{"$f":"VALUE(FIXED(EXP(M$4*-1*'PM2.5 reduction'!M225),9))","v":0.99999291599999995},{"$f":"VALUE(FIXED(EXP(N$4*-1*'PM2.5 reduction'!N225),9))","v":0.99997962900000004},{"$f":"VALUE(FIXED(EXP(O$4*-1*'PM2.5 reduction'!O225),9))","v":0.99998747200000004},{"$f":"VALUE(FIXED(EXP(P$4*-1*'PM2.5 reduction'!P225),9))","v":0.99997550099999999},{"$f":"VALUE(FIXED(EXP(Q$4*-1*'PM2.5 reduction'!Q225),9))","v":0.99999305599999999},{"$f":"VALUE(FIXED(EXP(R$4*-1*'PM2.5 reduction'!R225),9))","v":0.99997488000000001},{"$f":"VALUE(FIXED(EXP(S$4*-1*'PM2.5 reduction'!S225),9))","v":0.99997250800000004},{"$f":"VALUE(FIXED(EXP(T$4*-1*'PM2.5 reduction'!T225),9))","v":0.99996307399999995},{"$f":"VALUE(FIXED(EXP(U$4*-1*'PM2.5 reduction'!U225),9))","v":1},{"$f":"VALUE(FIXED(EXP(V$4*-1*'PM2.5 reduction'!V225),9))","v":0.99998054400000003},{"$f":"VALUE(FIXED(EXP(W$4*-1*'PM2.5 reduction'!W225),9))","v":0.99998654399999998},{"$f":"VALUE(FIXED(EXP(X$4*-1*'PM2.5 reduction'!X225),9))","v":0.99998654399999998},{"$f":"VALUE(FIXED(EXP(Y$4*-1*'PM2.5 reduction'!Y225),9))","v":0.99998468900000004},{"$f":"VALUE(FIXED(EXP(Z$4*-1*'PM2.5 reduction'!Z225),9))","v":0.999963308},{"$f":"VALUE(FIXED(EXP(AA$4*-1*'PM2.5 reduction'!AA225),9))","v":0.99997544400000005},{"$f":"VALUE(FIXED(EXP(AB$4*-1*'PM2.5 reduction'!AB225),9))","v":0.99998131999999995},{"$f":"VALUE(FIXED(EXP(AC$4*-1*'PM2.5 reduction'!AC225),9))","v":0.99997363800000005},{"$f":"VALUE(FIXED(EXP(AD$4*-1*'PM2.5 reduction'!AD225),9))","v":0.99999175399999995},{"$f":"VALUE(FIXED(EXP(AE$4*-1*'PM2.5 reduction'!AE225),9))","v":0.99999077400000003},{"$f":"VALUE(FIXED(EXP(AF$4*-1*'PM2.5 reduction'!AF225),9))","v":0.999989982},{"$f":"VALUE(FIXED(EXP(AG$4*-1*'PM2.5 reduction'!AG225),9))","v":0.99999077400000003},{"$f":"VALUE(FIXED(EXP(AH$4*-1*'PM2.5 reduction'!AH225),9))","v":0.99998098000000002},{"$f":"VALUE(FIXED(EXP(AI$4*-1*'PM2.5 reduction'!AI225),9))","v":0.99996814599999995},{"$f":"VALUE(FIXED(EXP(AJ$4*-1*'PM2.5 reduction'!AJ225),9))","v":0.99998525000000005},{"$f":"VALUE(FIXED(EXP(AK$4*-1*'PM2.5 reduction'!AK225),9))","v":0.99999328700000001},{"$f":"VALUE(FIXED(EXP(AL$4*-1*'PM2.5 reduction'!AL225),9))","v":0.99999140500000006},{"$f":"VALUE(FIXED(EXP(AM$4*-1*'PM2.5 reduction'!AM225),9))","v":0.99997882000000005},{"$f":"VALUE(FIXED(EXP(AN$4*-1*'PM2.5 reduction'!AN225),9))","v":1},{"$f":"VALUE(FIXED(EXP(AO$4*-1*'PM2.5 reduction'!AO225),9))","v":1},{"$f":"VALUE(FIXED(EXP(AP$4*-1*'PM2.5 reduction'!AP225),9))","v":0.99999159299999996},{"$f":"VALUE(FIXED(EXP(AQ$4*-1*'PM2.5 reduction'!AQ225),9))","v":0.99998206599999995},{"$f":"VALUE(FIXED(EXP(AR$4*-1*'PM2.5 reduction'!AR225),9))","v":0.99997807500000002},{"$f":"VALUE(FIXED(EXP(AS$4*-1*'PM2.5 reduction'!AS225),9))","v":0.99999548699999996},{"$f":"VALUE(FIXED(EXP(AT$4*-1*'PM2.5 reduction'!AT225),9))","v":1},{"$f":"VALUE(FIXED(EXP(AU$4*-1*'PM2.5 reduction'!AU225),9))","v":1},{"$f":"VALUE(FIXED(EXP(AV$4*-1*'PM2.5 reduction'!AV225),9))","v":0.999987662},{"$f":"VALUE(FIXED(EXP(AW$4*-1*'PM2.5 reduction'!AW225),9))","v":0.99998239499999997},{"$f":"VALUE(FIXED(EXP(AX$4*-1*'PM2.5 reduction'!AX225),9))","v":0.99998862200000005},{"$f":"VALUE(FIXED(EXP(AY$4*-1*'PM2.5 reduction'!AY225),9))","v":0.99998735000000005},{"$f":"VALUE(FIXED(EXP(AZ$4*-1*'PM2.5 reduction'!AZ225),9))","v":0.99998799100000002},{"$f":"VALUE(FIXED(EXP(BA$4*-1*'PM2.5 reduction'!BA225),9))","v":0.99998685899999995},{"$f":"VALUE(FIXED(EXP(BB$4*-1*'PM2.5 reduction'!BB225),9))","v":0.99998682699999997},{"$f":"VALUE(FIXED(EXP(BC$4*-1*'PM2.5 reduction'!BC225),9))","v":1}]
[null,"Female 70-74",{"$f":"VALUE(FIXED(EXP(C$4*-1*'PM2.5 reduction'!C226),9))","v":0.99997006700000002},{"$f":"VALUE(FIXED(EXP(D$4*-1*'PM2.5 reduction'!D226),9))","v":0.99998039800000005},{"$f":"VALUE(FIXED(EXP(E$4*-1*'PM2.5 reduction'!E226),9))","v":0.99999363699999999},{"$f":"VALUE(FIXED(EXP(F$4*-1*'PM2.5 reduction'!F226),9))","v":0.99999181400000003},{"$f":"VALUE(FIXED(EXP(G$4*-1*'PM2.5 reduction'!G226),9))","v":0.99999422800000004},{"$f":"VALUE(FIXED(EXP(H$4*-1*'PM2.5 reduction'!H226),9))","v":0.99998825700000005},{"$f":"VALUE(FIXED(EXP(I$4*-1*'PM2.5 reduction'!I226),9))","v":0.99999551399999997},{"$f":"VALUE(FIXED(EXP(J$4*-1*'PM2.5 reduction'!J226),9))","v":0.99998797299999997},{"$f":"VALUE(FIXED(EXP(K$4*-1*'PM2.5 reduction'!K226),9))","v":0.99998811399999998},{"$f":"VALUE(FIXED(EXP(L$4*-1*'PM2.5 reduction'!L226),9))","v":0.99999291499999998},{"$f":"VALUE(FIXED(EXP(M$4*-1*'PM2.5 reduction'!M226),9))","v":0.99999291499999998},{"$f":"VALUE(FIXED(EXP(N$4*-1*'PM2.5 reduction'!N226),9))","v":0.99997983499999998},{"$f":"VALUE(FIXED(EXP(O$4*-1*'PM2.5 reduction'!O226),9))","v":0.99998726100000002},{"$f":"VALUE(FIXED(EXP(P$4*-1*'PM2.5 reduction'!P226),9))","v":0.99997525899999995},{"$f":"VALUE(FIXED(EXP(Q$4*-1*'PM2.5 reduction'!Q226),9))","v":0.99999434399999998},{"$f":"VALUE(FIXED(EXP(R$4*-1*'PM2.5 reduction'!R226),9))","v":0.99997486999999996},{"$f":"VALUE(FIXED(EXP(S$4*-1*'PM2.5 reduction'!S226),9))","v":0.99997275200000002},{"$f":"VALUE(FIXED(EXP(T$4*-1*'PM2.5 reduction'!T226),9))","v":0.99996320800000005},{"$f":"VALUE(FIXED(EXP(U$4*-1*'PM2.5 reduction'!U226),9))","v":1},{"$f":"VALUE(FIXED(EXP(V$4*-1*'PM2.5 reduction'!V226),9))","v":0.99997962900000004},{"$f":"VALUE(FIXED(EXP(W$4*-1*'PM2.5 reduction'!W226),9))","v":0.99998667900000004},{"$f":"VALUE(FIXED(EXP(X$4*-1*'PM2.5 reduction'!X226),9))","v":0.99998667900000004},{"$f":"VALUE(FIXED(EXP(Y$4*-1*'PM2.5 reduction'!Y226),9))","v":0.99998409700000002},{"$f":"VALUE(FIXED(EXP(Z$4*-1*'PM2.5 reduction'!Z226),9))","v":0.99996398399999997},{"$f":"VALUE(FIXED(EXP(AA$4*-1*'PM2.5 reduction'!AA226),9))","v":0.99997579999999997},{"$f":"VALUE(FIXED(EXP(AB$4*-1*'PM2.5 reduction'!AB226),9))","v":0.99998152399999995},{"$f":"VALUE(FIXED(EXP(AC$4*-1*'PM2.5 reduction'!AC226),9))","v":0.99997417},{"$f":"VALUE(FIXED(EXP(AD$4*-1*'PM2.5 reduction'!AD226),9))","v":0.99999172000000003},{"$f":"VALUE(FIXED(EXP(AE$4*-1*'PM2.5 reduction'!AE226),9))","v":0.99999071100000003},{"$f":"VALUE(FIXED(EXP(AF$4*-1*'PM2.5 reduction'!AF226),9))","v":0.99998972500000005},{"$f":"VALUE(FIXED(EXP(AG$4*-1*'PM2.5 reduction'!AG226),9))","v":0.99999071100000003},{"$f":"VALUE(FIXED(EXP(AH$4*-1*'PM2.5 reduction'!AH226),9))","v":0.99998092299999997},{"$f":"VALUE(FIXED(EXP(AI$4*-1*'PM2.5 reduction'!AI226),9))","v":0.99996849899999996},{"$f":"VALUE(FIXED(EXP(AJ$4*-1*'PM2.5 reduction'!AJ226),9))","v":0.99998524200000005},{"$f":"VALUE(FIXED(EXP(AK$4*-1*'PM2.5 reduction'!AK226),9))","v":0.999993464},{"$f":"VALUE(FIXED(EXP(AL$4*-1*'PM2.5 reduction'!AL226),9))","v":0.99999174099999999},{"$f":"VALUE(FIXED(EXP(AM$4*-1*'PM2.5 reduction'!AM226),9))","v":0.99997883099999996},{"$f":"VALUE(FIXED(EXP(AN$4*-1*'PM2.5 reduction'!AN226),9))","v":1},{"$f":"VALUE(FIXED(EXP(AO$4*-1*'PM2.5 reduction'!AO226),9))","v":1},{"$f":"VALUE(FIXED(EXP(AP$4*-1*'PM2.5 reduction'!AP226),9))","v":0.99999159999999998},{"$f":"VALUE(FIXED(EXP(AQ$4*-1*'PM2.5 reduction'!AQ226),9))","v":0.99998164899999997},{"$f":"VALUE(FIXED(EXP(AR$4*-1*'PM2.5 reduction'!AR226),9))","v":0.99997833000000003},{"$f":"VALUE(FIXED(EXP(AS$4*-1*'PM2.5 reduction'!AS226),9))","v":0.99999551399999997},{"$f":"VALUE(FIXED(EXP(AT$4*-1*'PM2.5 reduction'!AT226),9))","v":1},{"$f":"VALUE(FIXED(EXP(AU$4*-1*'PM2.5 reduction'!AU226),9))","v":1},{"$f":"VALUE(FIXED(EXP(AV$4*-1*'PM2.5 reduction'!AV226),9))","v":0.99998781699999995},{"$f":"VALUE(FIXED(EXP(AW$4*-1*'PM2.5 reduction'!AW226),9))","v":0.99998212500000005},{"$f":"VALUE(FIXED(EXP(AX$4*-1*'PM2.5 reduction'!AX226),9))","v":0.99998794999999996},{"$f":"VALUE(FIXED(EXP(AY$4*-1*'PM2.5 reduction'!AY226),9))","v":0.99998740200000003},{"$f":"VALUE(FIXED(EXP(AZ$4*-1*'PM2.5 reduction'!AZ226),9))","v":0.99998793699999999},{"$f":"VALUE(FIXED(EXP(BA$4*-1*'PM2.5 reduction'!BA226),9))","v":0.99998625799999996},{"$f":"VALUE(FIXED(EXP(BB$4*-1*'PM2.5 reduction'!BB226),9))","v":0.99998718099999995},{"$f":"VALUE(FIXED(EXP(BC$4*-1*'PM2.5 reduction'!BC226),9))","v":1}]
[null,"Female 75-79",{"$f":"VALUE(FIXED(EXP(C$4*-1*'PM2.5 reduction'!C227),9))","v":0.99997041799999997},{"$f":"VALUE(FIXED(EXP(D$4*-1*'PM2.5 reduction'!D227),9))","v":0.99998031300000001},{"$f":"VALUE(FIXED(EXP(E$4*-1*'PM2.5 reduction'!E227),9))","v":0.99999353499999999},{"$f":"VALUE(FIXED(EXP(F$4*-1*'PM2.5 reduction'!F227),9))","v":0.99999184399999996},{"$f":"VALUE(FIXED(EXP(G$4*-1*'PM2.5 reduction'!G227),9))","v":0.99999437599999996},{"$f":"VALUE(FIXED(EXP(H$4*-1*'PM2.5 reduction'!H227),9))","v":0.99998821400000004},{"$f":"VALUE(FIXED(EXP(I$4*-1*'PM2.5 reduction'!I227),9))","v":0.99999545899999998},{"$f":"VALUE(FIXED(EXP(J$4*-1*'PM2.5 reduction'!J227),9))","v":0.99998836700000004},{"$f":"VALUE(FIXED(EXP(K$4*-1*'PM2.5 reduction'!K227),9))","v":0.99998899100000005},{"$f":"VALUE(FIXED(EXP(L$4*-1*'PM2.5 reduction'!L227),9))","v":0.99999291800000001},{"$f":"VALUE(FIXED(EXP(M$4*-1*'PM2.5 reduction'!M227),9))","v":0.99999291800000001},{"$f":"VALUE(FIXED(EXP(N$4*-1*'PM2.5 reduction'!N227),9))","v":0.99997966599999999},{"$f":"VALUE(FIXED(EXP(O$4*-1*'PM2.5 reduction'!O227),9))","v":0.99998707799999997},{"$f":"VALUE(FIXED(EXP(P$4*-1*'PM2.5 reduction'!P227),9))","v":0.999974951},{"$f":"VALUE(FIXED(EXP(Q$4*-1*'PM2.5 reduction'!Q227),9))","v":0.99999442699999996},{"$f":"VALUE(FIXED(EXP(R$4*-1*'PM2.5 reduction'!R227),9))","v":0.99997457700000003},{"$f":"VALUE(FIXED(EXP(S$4*-1*'PM2.5 reduction'!S227),9))","v":0.99997223999999996},{"$f":"VALUE(FIXED(EXP(T$4*-1*'PM2.5 reduction'!T227),9))","v":0.99996323099999995},{"$f":"VALUE(FIXED(EXP(U$4*-1*'PM2.5 reduction'!U227),9))","v":1},{"$f":"VALUE(FIXED(EXP(V$4*-1*'PM2.5 reduction'!V227),9))","v":0.99997945600000004},{"$f":"VALUE(FIXED(EXP(W$4*-1*'PM2.5 reduction'!W227),9))","v":0.99998720500000005},{"$f":"VALUE(FIXED(EXP(X$4*-1*'PM2.5 reduction'!X227),9))","v":0.99998720500000005},{"$f":"VALUE(FIXED(EXP(Y$4*-1*'PM2.5 reduction'!Y227),9))","v":0.999984506},{"$f":"VALUE(FIXED(EXP(Z$4*-1*'PM2.5 reduction'!Z227),9))","v":0.99996434899999997},{"$f":"VALUE(FIXED(EXP(AA$4*-1*'PM2.5 reduction'!AA227),9))","v":0.99997525600000003},{"$f":"VALUE(FIXED(EXP(AB$4*-1*'PM2.5 reduction'!AB227),9))","v":0.99998135799999999},{"$f":"VALUE(FIXED(EXP(AC$4*-1*'PM2.5 reduction'!AC227),9))","v":0.99997367699999995},{"$f":"VALUE(FIXED(EXP(AD$4*-1*'PM2.5 reduction'!AD227),9))","v":0.99999105899999996},{"$f":"VALUE(FIXED(EXP(AE$4*-1*'PM2.5 reduction'!AE227),9))","v":0.99999002299999995},{"$f":"VALUE(FIXED(EXP(AF$4*-1*'PM2.5 reduction'!AF227),9))","v":0.999990245},{"$f":"VALUE(FIXED(EXP(AG$4*-1*'PM2.5 reduction'!AG227),9))","v":0.99999002299999995},{"$f":"VALUE(FIXED(EXP(AH$4*-1*'PM2.5 reduction'!AH227),9))","v":0.99998072999999998},{"$f":"VALUE(FIXED(EXP(AI$4*-1*'PM2.5 reduction'!AI227),9))","v":0.99996800900000005},{"$f":"VALUE(FIXED(EXP(AJ$4*-1*'PM2.5 reduction'!AJ227),9))","v":0.999986814},{"$f":"VALUE(FIXED(EXP(AK$4*-1*'PM2.5 reduction'!AK227),9))","v":0.99999441099999997},{"$f":"VALUE(FIXED(EXP(AL$4*-1*'PM2.5 reduction'!AL227),9))","v":0.99999178200000005},{"$f":"VALUE(FIXED(EXP(AM$4*-1*'PM2.5 reduction'!AM227),9))","v":0.99997846999999995},{"$f":"VALUE(FIXED(EXP(AN$4*-1*'PM2.5 reduction'!AN227),9))","v":1},{"$f":"VALUE(FIXED(EXP(AO$4*-1*'PM2.5 reduction'!AO227),9))","v":1},{"$f":"VALUE(FIXED(EXP(AP$4*-1*'PM2.5 reduction'!AP227),9))","v":0.99999158700000002},{"$f":"VALUE(FIXED(EXP(AQ$4*-1*'PM2.5 reduction'!AQ227),9))","v":0.99998117900000005},{"$f":"VALUE(FIXED(EXP(AR$4*-1*'PM2.5 reduction'!AR227),9))","v":0.99997791999999996},{"$f":"VALUE(FIXED(EXP(AS$4*-1*'PM2.5 reduction'!AS227),9))","v":0.99999545899999998},{"$f":"VALUE(FIXED(EXP(AT$4*-1*'PM2.5 reduction'!AT227),9))","v":1},{"$f":"VALUE(FIXED(EXP(AU$4*-1*'PM2.5 reduction'!AU227),9))","v":1},{"$f":"VALUE(FIXED(EXP(AV$4*-1*'PM2.5 reduction'!AV227),9))","v":0.99998791600000003},{"$f":"VALUE(FIXED(EXP(AW$4*-1*'PM2.5 reduction'!AW227),9))","v":0.99998203399999996},{"$f":"VALUE(FIXED(EXP(AX$4*-1*'PM2.5 reduction'!AX227),9))","v":0.999988286},{"$f":"VALUE(FIXED(EXP(AY$4*-1*'PM2.5 reduction'!AY227),9))","v":0.99998762799999996},{"$f":"VALUE(FIXED(EXP(AZ$4*-1*'PM2.5 reduction'!AZ227),9))","v":0.99998790299999996},{"$f":"VALUE(FIXED(EXP(BA$4*-1*'PM2.5 reduction'!BA227),9))","v":0.99998436700000004},{"$f":"VALUE(FIXED(EXP(BB$4*-1*'PM2.5 reduction'!BB227),9))","v":0.999986928},{"$f":"VALUE(FIXED(EXP(BC$4*-1*'PM2.5 reduction'!BC227),9))","v":1}]
[null,"Female 80-84",{"$f":"VALUE(FIXED(EXP(C$4*-1*'PM2.5 reduction'!C228),9))","v":0.99996908200000001},{"$f":"VALUE(FIXED(EXP(D$4*-1*'PM2.5 reduction'!D228),9))","v":0.999978806},{"$f":"VALUE(FIXED(EXP(E$4*-1*'PM2.5 reduction'!E228),9))","v":0.99999336599999999},{"$f":"VALUE(FIXED(EXP(F$4*-1*'PM2.5 reduction'!F228),9))","v":0.99999189399999999},{"$f":"VALUE(FIXED(EXP(G$4*-1*'PM2.5 reduction'!G228),9))","v":0.99999419099999998},{"$f":"VALUE(FIXED(EXP(H$4*-1*'PM2.5 reduction'!H228),9))","v":0.99998796499999998},{"$f":"VALUE(FIXED(EXP(I$4*-1*'PM2.5 reduction'!I228),9))","v":0.999995458},{"$f":"VALUE(FIXED(EXP(J$4*-1*'PM2.5 reduction'!J228),9))","v":0.99998604899999999},{"$f":"VALUE(FIXED(EXP(K$4*-1*'PM2.5 reduction'!K228),9))","v":0.99998636799999996},{"$f":"VALUE(FIXED(EXP(L$4*-1*'PM2.5 reduction'!L228),9))","v":0.99999313999999995},{"$f":"VALUE(FIXED(EXP(M$4*-1*'PM2.5 reduction'!M228),9))","v":0.99999313999999995},{"$f":"VALUE(FIXED(EXP(N$4*-1*'PM2.5 reduction'!N228),9))","v":0.99997923499999997},{"$f":"VALUE(FIXED(EXP(O$4*-1*'PM2.5 reduction'!O228),9))","v":0.99998705200000004},{"$f":"VALUE(FIXED(EXP(P$4*-1*'PM2.5 reduction'!P228),9))","v":0.99997488499999998},{"$f":"VALUE(FIXED(EXP(Q$4*-1*'PM2.5 reduction'!Q228),9))","v":0.99999492700000003},{"$f":"VALUE(FIXED(EXP(R$4*-1*'PM2.5 reduction'!R228),9))","v":0.99997402800000001},{"$f":"VALUE(FIXED(EXP(S$4*-1*'PM2.5 reduction'!S228),9))","v":0.99997145799999998},{"$f":"VALUE(FIXED(EXP(T$4*-1*'PM2.5 reduction'!T228),9))","v":0.99996379199999996},{"$f":"VALUE(FIXED(EXP(U$4*-1*'PM2.5 reduction'!U228),9))","v":1},{"$f":"VALUE(FIXED(EXP(V$4*-1*'PM2.5 reduction'!V228),9))","v":0.99997767999999998},{"$f":"VALUE(FIXED(EXP(W$4*-1*'PM2.5 reduction'!W228),9))","v":0.99998757999999999},{"$f":"VALUE(FIXED(EXP(X$4*-1*'PM2.5 reduction'!X228),9))","v":0.99998757999999999},{"$f":"VALUE(FIXED(EXP(Y$4*-1*'PM2.5 reduction'!Y228),9))","v":0.99998243499999995},{"$f":"VALUE(FIXED(EXP(Z$4*-1*'PM2.5 reduction'!Z228),9))","v":0.999963673},{"$f":"VALUE(FIXED(EXP(AA$4*-1*'PM2.5 reduction'!AA228),9))","v":0.99997457199999995},{"$f":"VALUE(FIXED(EXP(AB$4*-1*'PM2.5 reduction'!AB228),9))","v":0.999979917},{"$f":"VALUE(FIXED(EXP(AC$4*-1*'PM2.5 reduction'!AC228),9))","v":0.99997291399999999},{"$f":"VALUE(FIXED(EXP(AD$4*-1*'PM2.5 reduction'!AD228),9))","v":0.99999137000000005},{"$f":"VALUE(FIXED(EXP(AE$4*-1*'PM2.5 reduction'!AE228),9))","v":0.99999057800000002},{"$f":"VALUE(FIXED(EXP(AF$4*-1*'PM2.5 reduction'!AF228),9))","v":0.99998915099999997},{"$f":"VALUE(FIXED(EXP(AG$4*-1*'PM2.5 reduction'!AG228),9))","v":0.99999057800000002},{"$f":"VALUE(FIXED(EXP(AH$4*-1*'PM2.5 reduction'!AH228),9))","v":0.99998074000000003},{"$f":"VALUE(FIXED(EXP(AI$4*-1*'PM2.5 reduction'!AI228),9))","v":0.999967571},{"$f":"VALUE(FIXED(EXP(AJ$4*-1*'PM2.5 reduction'!AJ228),9))","v":0.99998476300000005},{"$f":"VALUE(FIXED(EXP(AK$4*-1*'PM2.5 reduction'!AK228),9))","v":0.99999455999999998},{"$f":"VALUE(FIXED(EXP(AL$4*-1*'PM2.5 reduction'!AL228),9))","v":0.99999201500000001},{"$f":"VALUE(FIXED(EXP(AM$4*-1*'PM2.5 reduction'!AM228),9))","v":0.99997903200000005},{"$f":"VALUE(FIXED(EXP(AN$4*-1*'PM2.5 reduction'!AN228),9))","v":1},{"$f":"VALUE(FIXED(EXP(AO$4*-1*'PM2.5 reduction'!AO228),9))","v":1},{"$f":"VALUE(FIXED(EXP(AP$4*-1*'PM2.5 reduction'!AP228),9))","v":0.99999168000000005},{"$f":"VALUE(FIXED(EXP(AQ$4*-1*'PM2.5 reduction'!AQ228),9))","v":0.99998055399999997},{"$f":"VALUE(FIXED(EXP(AR$4*-1*'PM2.5 reduction'!AR228),9))","v":0.99997713799999999},{"$f":"VALUE(FIXED(EXP(AS$4*-1*'PM2.5 reduction'!AS228),9))","v":0.999995458},{"$f":"VALUE(FIXED(EXP(AT$4*-1*'PM2.5 reduction'!AT228),9))","v":1},{"$f":"VALUE(FIXED(EXP(AU$4*-1*'PM2.5 reduction'!AU228),9))","v":1},{"$f":"VALUE(FIXED(EXP(AV$4*-1*'PM2.5 reduction'!AV228),9))","v":0.99998730999999996},{"$f":"VALUE(FIXED(EXP(AW$4*-1*'PM2.5 reduction'!AW228),9))","v":0.99998160300000005},{"$f":"VALUE(FIXED(EXP(AX$4*-1*'PM2.5 reduction'!AX228),9))","v":0.99998601600000003},{"$f":"VALUE(FIXED(EXP(AY$4*-1*'PM2.5 reduction'!AY228),9))","v":0.99998778300000002},{"$f":"VALUE(FIXED(EXP(AZ$4*-1*'PM2.5 reduction'!AZ228),9))","v":0.99998790100000001},{"$f":"VALUE(FIXED(EXP(BA$4*-1*'PM2.5 reduction'!BA228),9))","v":0.999986559},{"$f":"VALUE(FIXED(EXP(BB$4*-1*'PM2.5 reduction'!BB228),9))","v":0.99998738700000001},{"$f":"VALUE(FIXED(EXP(BC$4*-1*'PM2.5 reduction'!BC228),9))","v":1}]
[null,"Female 85-89",{"$f":"VALUE(FIXED(EXP(C$4*-1*'PM2.5 reduction'!C229),9))","v":0.99996976299999996},{"$f":"VALUE(FIXED(EXP(D$4*-1*'PM2.5 reduction'!D229),9))","v":0.99997845699999999},{"$f":"VALUE(FIXED(EXP(E$4*-1*'PM2.5 reduction'!E229),9))","v":0.99999405799999996},{"$f":"VALUE(FIXED(EXP(F$4*-1*'PM2.5 reduction'!F229),9))","v":0.99999152700000005},{"$f":"VALUE(FIXED(EXP(G$4*-1*'PM2.5 reduction'!G229),9))","v":0.99999406999999996},{"$f":"VALUE(FIXED(EXP(H$4*-1*'PM2.5 reduction'!H229),9))","v":0.99998737299999996},{"$f":"VALUE(FIXED(EXP(I$4*-1*'PM2.5 reduction'!I229),9))","v":0.99999542200000002},{"$f":"VALUE(FIXED(EXP(J$4*-1*'PM2.5 reduction'!J229),9))","v":0.99998416800000001},{"$f":"VALUE(FIXED(EXP(K$4*-1*'PM2.5 reduction'!K229),9))","v":0.99998689600000001},{"$f":"VALUE(FIXED(EXP(L$4*-1*'PM2.5 reduction'!L229),9))","v":0.99999289999999996},{"$f":"VALUE(FIXED(EXP(M$4*-1*'PM2.5 reduction'!M229),9))","v":0.99999289999999996},{"$f":"VALUE(FIXED(EXP(N$4*-1*'PM2.5 reduction'!N229),9))","v":0.99997978499999995},{"$f":"VALUE(FIXED(EXP(O$4*-1*'PM2.5 reduction'!O229),9))","v":0.99998511999999995},{"$f":"VALUE(FIXED(EXP(P$4*-1*'PM2.5 reduction'!P229),9))","v":0.99997482500000001},{"$f":"VALUE(FIXED(EXP(Q$4*-1*'PM2.5 reduction'!Q229),9))","v":0.99999488299999995},{"$f":"VALUE(FIXED(EXP(R$4*-1*'PM2.5 reduction'!R229),9))","v":0.99997370600000002},{"$f":"VALUE(FIXED(EXP(S$4*-1*'PM2.5 reduction'!S229),9))","v":0.99997041600000003},{"$f":"VALUE(FIXED(EXP(T$4*-1*'PM2.5 reduction'!T229),9))","v":0.99996339199999995},{"$f":"VALUE(FIXED(EXP(U$4*-1*'PM2.5 reduction'!U229),9))","v":1},{"$f":"VALUE(FIXED(EXP(V$4*-1*'PM2.5 reduction'!V229),9))","v":0.99997876500000005},{"$f":"VALUE(FIXED(EXP(W$4*-1*'PM2.5 reduction'!W229),9))","v":0.99998821599999999},{"$f":"VALUE(FIXED(EXP(X$4*-1*'PM2.5 reduction'!X229),9))","v":0.99998821599999999},{"$f":"VALUE(FIXED(EXP(Y$4*-1*'PM2.5 reduction'!Y229),9))","v":0.99998187699999996},{"$f":"VALUE(FIXED(EXP(Z$4*-1*'PM2.5 reduction'!Z229),9))","v":0.99996421800000002},{"$f":"VALUE(FIXED(EXP(AA$4*-1*'PM2.5 reduction'!AA229),9))","v":0.99997396800000005},{"$f":"VALUE(FIXED(EXP(AB$4*-1*'PM2.5 reduction'!AB229),9))","v":0.99997956099999996},{"$f":"VALUE(FIXED(EXP(AC$4*-1*'PM2.5 reduction'!AC229),9))","v":0.99997270999999999},{"$f":"VALUE(FIXED(EXP(AD$4*-1*'PM2.5 reduction'!AD229),9))","v":0.99999089399999996},{"$f":"VALUE(FIXED(EXP(AE$4*-1*'PM2.5 reduction'!AE229),9))","v":0.99998987900000003},{"$f":"VALUE(FIXED(EXP(AF$4*-1*'PM2.5 reduction'!AF229),9))","v":0.99999110300000005},{"$f":"VALUE(FIXED(EXP(AG$4*-1*'PM2.5 reduction'!AG229),9))","v":0.99998987900000003},{"$f":"VALUE(FIXED(EXP(AH$4*-1*'PM2.5 reduction'!AH229),9))","v":0.99998007099999997},{"$f":"VALUE(FIXED(EXP(AI$4*-1*'PM2.5 reduction'!AI229),9))","v":0.99996687299999998},{"$f":"VALUE(FIXED(EXP(AJ$4*-1*'PM2.5 reduction'!AJ229),9))","v":0.99998087899999999},{"$f":"VALUE(FIXED(EXP(AK$4*-1*'PM2.5 reduction'!AK229),9))","v":0.99999363799999996},{"$f":"VALUE(FIXED(EXP(AL$4*-1*'PM2.5 reduction'!AL229),9))","v":0.99999300499999999},{"$f":"VALUE(FIXED(EXP(AM$4*-1*'PM2.5 reduction'!AM229),9))","v":0.99997778800000003},{"$f":"VALUE(FIXED(EXP(AN$4*-1*'PM2.5 reduction'!AN229),9))","v":1},{"$f":"VALUE(FIXED(EXP(AO$4*-1*'PM2.5 reduction'!AO229),9))","v":1},{"$f":"VALUE(FIXED(EXP(AP$4*-1*'PM2.5 reduction'!AP229),9))","v":0.99999099999999996},{"$f":"VALUE(FIXED(EXP(AQ$4*-1*'PM2.5 reduction'!AQ229),9))","v":0.999980223},{"$f":"VALUE(FIXED(EXP(AR$4*-1*'PM2.5 reduction'!AR229),9))","v":0.99997609899999995},{"$f":"VALUE(FIXED(EXP(AS$4*-1*'PM2.5 reduction'!AS229),9))","v":0.99999542200000002},{"$f":"VALUE(FIXED(EXP(AT$4*-1*'PM2.5 reduction'!AT229),9))","v":1},{"$f":"VALUE(FIXED(EXP(AU$4*-1*'PM2.5 reduction'!AU229),9))","v":1},{"$f":"VALUE(FIXED(EXP(AV$4*-1*'PM2.5 reduction'!AV229),9))","v":0.99998726500000001},{"$f":"VALUE(FIXED(EXP(AW$4*-1*'PM2.5 reduction'!AW229),9))","v":0.99998102099999997},{"$f":"VALUE(FIXED(EXP(AX$4*-1*'PM2.5 reduction'!AX229),9))","v":0.99998392700000005},{"$f":"VALUE(FIXED(EXP(AY$4*-1*'PM2.5 reduction'!AY229),9))","v":0.99998777800000005},{"$f":"VALUE(FIXED(EXP(AZ$4*-1*'PM2.5 reduction'!AZ229),9))","v":0.99998751299999999},{"$f":"VALUE(FIXED(EXP(BA$4*-1*'PM2.5 reduction'!BA229),9))","v":0.99998625799999996},{"$f":"VALUE(FIXED(EXP(BB$4*-1*'PM2.5 reduction'!BB229),9))","v":0.99998805300000004},{"$f":"VALUE(FIXED(EXP(BC$4*-1*'PM2.5 reduction'!BC229),9))","v":1}]
[null,"Female 90+",{"$f":"VALUE(FIXED(EXP(C$4*-1*'PM2.5 reduction'!C230),9))","v":0.99996915099999995},{"$f":"VALUE(FIXED(EXP(D$4*-1*'PM2.5 reduction'!D230),9))","v":0.99997791700000005},{"$f":"VALUE(FIXED(EXP(E$4*-1*'PM2.5 reduction'!E230),9))","v":0.99999353499999999},{"$f":"VALUE(FIXED(EXP(F$4*-1*'PM2.5 reduction'!F230),9))","v":0.99999108800000003},{"$f":"VALUE(FIXED(EXP(G$4*-1*'PM2.5 reduction'!G230),9))","v":0.99999388199999995},{"$f":"VALUE(FIXED(EXP(H$4*-1*'PM2.5 reduction'!H230),9))","v":0.99998592600000002},{"$f":"VALUE(FIXED(EXP(I$4*-1*'PM2.5 reduction'!I230),9))","v":0.99999561000000003},{"$f":"VALUE(FIXED(EXP(J$4*-1*'PM2.5 reduction'!J230),9))","v":0.99998314399999999},{"$f":"VALUE(FIXED(EXP(K$4*-1*'PM2.5 reduction'!K230),9))","v":0.99998692700000003},{"$f":"VALUE(FIXED(EXP(L$4*-1*'PM2.5 reduction'!L230),9))","v":0.99999285100000002},{"$f":"VALUE(FIXED(EXP(M$4*-1*'PM2.5 reduction'!M230),9))","v":0.99999285100000002},{"$f":"VALUE(FIXED(EXP(N$4*-1*'PM2.5 reduction'!N230),9))","v":0.99997942500000003},{"$f":"VALUE(FIXED(EXP(O$4*-1*'PM2.5 reduction'!O230),9))","v":0.999980588},{"$f":"VALUE(FIXED(EXP(P$4*-1*'PM2.5 reduction'!P230),9))","v":0.99997449000000005},{"$f":"VALUE(FIXED(EXP(Q$4*-1*'PM2.5 reduction'!Q230),9))","v":0.99999514099999998},{"$f":"VALUE(FIXED(EXP(R$4*-1*'PM2.5 reduction'!R230),9))","v":0.99997443100000005},{"$f":"VALUE(FIXED(EXP(S$4*-1*'PM2.5 reduction'!S230),9))","v":0.99997072200000003},{"$f":"VALUE(FIXED(EXP(T$4*-1*'PM2.5 reduction'!T230),9))","v":0.99996333800000003},{"$f":"VALUE(FIXED(EXP(U$4*-1*'PM2.5 reduction'!U230),9))","v":1},{"$f":"VALUE(FIXED(EXP(V$4*-1*'PM2.5 reduction'!V230),9))","v":0.99997783600000001},{"$f":"VALUE(FIXED(EXP(W$4*-1*'PM2.5 reduction'!W230),9))","v":0.99998869899999998},{"$f":"VALUE(FIXED(EXP(X$4*-1*'PM2.5 reduction'!X230),9))","v":0.99998869899999998},{"$f":"VALUE(FIXED(EXP(Y$4*-1*'PM2.5 reduction'!Y230),9))","v":0.99998046699999998},{"$f":"VALUE(FIXED(EXP(Z$4*-1*'PM2.5 reduction'!Z230),9))","v":0.99996286899999998},{"$f":"VALUE(FIXED(EXP(AA$4*-1*'PM2.5 reduction'!AA230),9))","v":0.99997357399999998},{"$f":"VALUE(FIXED(EXP(AB$4*-1*'PM2.5 reduction'!AB230),9))","v":0.99997914799999998},{"$f":"VALUE(FIXED(EXP(AC$4*-1*'PM2.5 reduction'!AC230),9))","v":0.99997217299999996},{"$f":"VALUE(FIXED(EXP(AD$4*-1*'PM2.5 reduction'!AD230),9))","v":0.99999012899999995},{"$f":"VALUE(FIXED(EXP(AE$4*-1*'PM2.5 reduction'!AE230),9))","v":0.99998835799999997},{"$f":"VALUE(FIXED(EXP(AF$4*-1*'PM2.5 reduction'!AF230),9))","v":0.99999125700000002},{"$f":"VALUE(FIXED(EXP(AG$4*-1*'PM2.5 reduction'!AG230),9))","v":0.99998835799999997},{"$f":"VALUE(FIXED(EXP(AH$4*-1*'PM2.5 reduction'!AH230),9))","v":0.99998173300000004},{"$f":"VALUE(FIXED(EXP(AI$4*-1*'PM2.5 reduction'!AI230),9))","v":0.99996633999999995},{"$f":"VALUE(FIXED(EXP(AJ$4*-1*'PM2.5 reduction'!AJ230),9))","v":0.99998297599999997},{"$f":"VALUE(FIXED(EXP(AK$4*-1*'PM2.5 reduction'!AK230),9))","v":0.99999483600000005},{"$f":"VALUE(FIXED(EXP(AL$4*-1*'PM2.5 reduction'!AL230),9))","v":0.99999323900000003},{"$f":"VALUE(FIXED(EXP(AM$4*-1*'PM2.5 reduction'!AM230),9))","v":0.99998189599999998},{"$f":"VALUE(FIXED(EXP(AN$4*-1*'PM2.5 reduction'!AN230),9))","v":1},{"$f":"VALUE(FIXED(EXP(AO$4*-1*'PM2.5 reduction'!AO230),9))","v":1},{"$f":"VALUE(FIXED(EXP(AP$4*-1*'PM2.5 reduction'!AP230),9))","v":0.99999074600000004},{"$f":"VALUE(FIXED(EXP(AQ$4*-1*'PM2.5 reduction'!AQ230),9))","v":0.99997916899999995},{"$f":"VALUE(FIXED(EXP(AR$4*-1*'PM2.5 reduction'!AR230),9))","v":0.99997591500000005},{"$f":"VALUE(FIXED(EXP(AS$4*-1*'PM2.5 reduction'!AS230),9))","v":0.99999561000000003},{"$f":"VALUE(FIXED(EXP(AT$4*-1*'PM2.5 reduction'!AT230),9))","v":1},{"$f":"VALUE(FIXED(EXP(AU$4*-1*'PM2.5 reduction'!AU230),9))","v":1},{"$f":"VALUE(FIXED(EXP(AV$4*-1*'PM2.5 reduction'!AV230),9))","v":0.99998627900000003},{"$f":"VALUE(FIXED(EXP(AW$4*-1*'PM2.5 reduction'!AW230),9))","v":0.99998166200000005},{"$f":"VALUE(FIXED(EXP(AX$4*-1*'PM2.5 reduction'!AX230),9))","v":0.99998286599999997},{"$f":"VALUE(FIXED(EXP(AY$4*-1*'PM2.5 reduction'!AY230),9))","v":0.99998833600000003},{"$f":"VALUE(FIXED(EXP(AZ$4*-1*'PM2.5 reduction'!AZ230),9))","v":0.99998806500000004},{"$f":"VALUE(FIXED(EXP(BA$4*-1*'PM2.5 reduction'!BA230),9))","v":0.99998294899999995},{"$f":"VALUE(FIXED(EXP(BB$4*-1*'PM2.5 reduction'!BB230),9))","v":0.999988561},{"$f":"VALUE(FIXED(EXP(BC$4*-1*'PM2.5 reduction'!BC230),9))","v":1}]
[null,"Male 0-4",{"$f":"VALUE(FIXED(EXP(C$4*-1*'PM2.5 reduction'!C231),9))","v":0.99996922899999996},{"$f":"VALUE(FIXED(EXP(D$4*-1*'PM2.5 reduction'!D231),9))","v":0.99997942799999995},{"$f":"VALUE(FIXED(EXP(E$4*-1*'PM2.5 reduction'!E231),9))","v":0.99999381799999998},{"$f":"VALUE(FIXED(EXP(F$4*-1*'PM2.5 reduction'!F231),9))","v":0.99999317799999998},{"$f":"VALUE(FIXED(EXP(G$4*-1*'PM2.5 reduction'!G231),9))","v":0.99999445600000003},{"$f":"VALUE(FIXED(EXP(H$4*-1*'PM2.5 reduction'!H231),9))","v":0.99998860700000003},{"$f":"VALUE(FIXED(EXP(I$4*-1*'PM2.5 reduction'!I231),9))","v":0.99999543099999999},{"$f":"VALUE(FIXED(EXP(J$4*-1*'PM2.5 reduction'!J231),9))","v":0.99998798499999997},{"$f":"VALUE(FIXED(EXP(K$4*-1*'PM2.5 reduction'!K231),9))","v":0.99998615700000004},{"$f":"VALUE(FIXED(EXP(L$4*-1*'PM2.5 reduction'!L231),9))","v":0.99999244499999995},{"$f":"VALUE(FIXED(EXP(M$4*-1*'PM2.5 reduction'!M231),9))","v":0.99999244499999995},{"$f":"VALUE(FIXED(EXP(N$4*-1*'PM2.5 reduction'!N231),9))","v":0.99997935599999999},{"$f":"VALUE(FIXED(EXP(O$4*-1*'PM2.5 reduction'!O231),9))","v":0.99998777400000005},{"$f":"VALUE(FIXED(EXP(P$4*-1*'PM2.5 reduction'!P231),9))","v":0.99997570700000005},{"$f":"VALUE(FIXED(EXP(Q$4*-1*'PM2.5 reduction'!Q231),9))","v":0.99999095500000001},{"$f":"VALUE(FIXED(EXP(R$4*-1*'PM2.5 reduction'!R231),9))","v":0.99997462000000004},{"$f":"VALUE(FIXED(EXP(S$4*-1*'PM2.5 reduction'!S231),9))","v":0.99997057300000003},{"$f":"VALUE(FIXED(EXP(T$4*-1*'PM2.5 reduction'!T231),9))","v":0.999961345},{"$f":"VALUE(FIXED(EXP(U$4*-1*'PM2.5 reduction'!U231),9))","v":1},{"$f":"VALUE(FIXED(EXP(V$4*-1*'PM2.5 reduction'!V231),9))","v":0.99998295199999998},{"$f":"VALUE(FIXED(EXP(W$4*-1*'PM2.5 reduction'!W231),9))","v":0.99998549299999995},{"$f":"VALUE(FIXED(EXP(X$4*-1*'PM2.5 reduction'!X231),9))","v":0.99998549299999995},{"$f":"VALUE(FIXED(EXP(Y$4*-1*'PM2.5 reduction'!Y231),9))","v":0.99998529400000002},{"$f":"VALUE(FIXED(EXP(Z$4*-1*'PM2.5 reduction'!Z231),9))","v":0.99996339700000003},{"$f":"VALUE(FIXED(EXP(AA$4*-1*'PM2.5 reduction'!AA231),9))","v":0.99997487100000004},{"$f":"VALUE(FIXED(EXP(AB$4*-1*'PM2.5 reduction'!AB231),9))","v":0.99998010000000004},{"$f":"VALUE(FIXED(EXP(AC$4*-1*'PM2.5 reduction'!AC231),9))","v":0.99997270100000002},{"$f":"VALUE(FIXED(EXP(AD$4*-1*'PM2.5 reduction'!AD231),9))","v":0.99999170299999995},{"$f":"VALUE(FIXED(EXP(AE$4*-1*'PM2.5 reduction'!AE231),9))","v":0.999990818},{"$f":"VALUE(FIXED(EXP(AF$4*-1*'PM2.5 reduction'!AF231),9))","v":0.99998937700000001},{"$f":"VALUE(FIXED(EXP(AG$4*-1*'PM2.5 reduction'!AG231),9))","v":0.999990818},{"$f":"VALUE(FIXED(EXP(AH$4*-1*'PM2.5 reduction'!AH231),9))","v":0.99998115799999998},{"$f":"VALUE(FIXED(EXP(AI$4*-1*'PM2.5 reduction'!AI231),9))","v":0.99996693800000003},{"$f":"VALUE(FIXED(EXP(AJ$4*-1*'PM2.5 reduction'!AJ231),9))","v":0.99998486399999997},{"$f":"VALUE(FIXED(EXP(AK$4*-1*'PM2.5 reduction'!AK231),9))","v":0.99999280400000001},{"$f":"VALUE(FIXED(EXP(AL$4*-1*'PM2.5 reduction'!AL231),9))","v":0.99999079499999999},{"$f":"VALUE(FIXED(EXP(AM$4*-1*'PM2.5 reduction'!AM231),9))","v":0.99997864999999997},{"$f":"VALUE(FIXED(EXP(AN$4*-1*'PM2.5 reduction'!AN231),9))","v":1},{"$f":"VALUE(FIXED(EXP(AO$4*-1*'PM2.5 reduction'!AO231),9))","v":1},{"$f":"VALUE(FIXED(EXP(AP$4*-1*'PM2.5 reduction'!AP231),9))","v":0.99999017800000001},{"$f":"VALUE(FIXED(EXP(AQ$4*-1*'PM2.5 reduction'!AQ231),9))","v":0.99998198699999996},{"$f":"VALUE(FIXED(EXP(AR$4*-1*'PM2.5 reduction'!AR231),9))","v":0.99997632400000003},{"$f":"VALUE(FIXED(EXP(AS$4*-1*'PM2.5 reduction'!AS231),9))","v":0.99999543099999999},{"$f":"VALUE(FIXED(EXP(AT$4*-1*'PM2.5 reduction'!AT231),9))","v":1},{"$f":"VALUE(FIXED(EXP(AU$4*-1*'PM2.5 reduction'!AU231),9))","v":1},{"$f":"VALUE(FIXED(EXP(AV$4*-1*'PM2.5 reduction'!AV231),9))","v":0.99998813099999995},{"$f":"VALUE(FIXED(EXP(AW$4*-1*'PM2.5 reduction'!AW231),9))","v":0.99998282500000002},{"$f":"VALUE(FIXED(EXP(AX$4*-1*'PM2.5 reduction'!AX231),9))","v":0.99998838700000003},{"$f":"VALUE(FIXED(EXP(AY$4*-1*'PM2.5 reduction'!AY231),9))","v":0.99998632799999998},{"$f":"VALUE(FIXED(EXP(AZ$4*-1*'PM2.5 reduction'!AZ231),9))","v":0.999987183},{"$f":"VALUE(FIXED(EXP(BA$4*-1*'PM2.5 reduction'!BA231),9))","v":0.99998664699999995},{"$f":"VALUE(FIXED(EXP(BB$4*-1*'PM2.5 reduction'!BB231),9))","v":0.99998464499999995},{"$f":"VALUE(FIXED(EXP(BC$4*-1*'PM2.5 reduction'!BC231),9))","v":1}]
[null,"Male 5-9",{"$f":"VALUE(FIXED(EXP(C$4*-1*'PM2.5 reduction'!C232),9))","v":0.99997071800000004},{"$f":"VALUE(FIXED(EXP(D$4*-1*'PM2.5 reduction'!D232),9))","v":0.99998163399999995},{"$f":"VALUE(FIXED(EXP(E$4*-1*'PM2.5 reduction'!E232),9))","v":0.999993998},{"$f":"VALUE(FIXED(EXP(F$4*-1*'PM2.5 reduction'!F232),9))","v":0.99999291499999998},{"$f":"VALUE(FIXED(EXP(G$4*-1*'PM2.5 reduction'!G232),9))","v":0.999994414},{"$f":"VALUE(FIXED(EXP(H$4*-1*'PM2.5 reduction'!H232),9))","v":0.99998808500000003},{"$f":"VALUE(FIXED(EXP(I$4*-1*'PM2.5 reduction'!I232),9))","v":0.99999546399999995},{"$f":"VALUE(FIXED(EXP(J$4*-1*'PM2.5 reduction'!J232),9))","v":0.99998864300000001},{"$f":"VALUE(FIXED(EXP(K$4*-1*'PM2.5 reduction'!K232),9))","v":0.99998639499999997},{"$f":"VALUE(FIXED(EXP(L$4*-1*'PM2.5 reduction'!L232),9))","v":0.999992714},{"$f":"VALUE(FIXED(EXP(M$4*-1*'PM2.5 reduction'!M232),9))","v":0.999992714},{"$f":"VALUE(FIXED(EXP(N$4*-1*'PM2.5 reduction'!N232),9))","v":0.99998048299999998},{"$f":"VALUE(FIXED(EXP(O$4*-1*'PM2.5 reduction'!O232),9))","v":0.99998671800000005},{"$f":"VALUE(FIXED(EXP(P$4*-1*'PM2.5 reduction'!P232),9))","v":0.99997540299999998},{"$f":"VALUE(FIXED(EXP(Q$4*-1*'PM2.5 reduction'!Q232),9))","v":0.99999172599999997},{"$f":"VALUE(FIXED(EXP(R$4*-1*'PM2.5 reduction'!R232),9))","v":0.99997475700000005},{"$f":"VALUE(FIXED(EXP(S$4*-1*'PM2.5 reduction'!S232),9))","v":0.999972784},{"$f":"VALUE(FIXED(EXP(T$4*-1*'PM2.5 reduction'!T232),9))","v":0.99996324000000003},{"$f":"VALUE(FIXED(EXP(U$4*-1*'PM2.5 reduction'!U232),9))","v":1},{"$f":"VALUE(FIXED(EXP(V$4*-1*'PM2.5 reduction'!V232),9))","v":0.99998216900000003},{"$f":"VALUE(FIXED(EXP(W$4*-1*'PM2.5 reduction'!W232),9))","v":0.999985236},{"$f":"VALUE(FIXED(EXP(X$4*-1*'PM2.5 reduction'!X232),9))","v":0.999985236},{"$f":"VALUE(FIXED(EXP(Y$4*-1*'PM2.5 reduction'!Y232),9))","v":0.99998493300000002},{"$f":"VALUE(FIXED(EXP(Z$4*-1*'PM2.5 reduction'!Z232),9))","v":0.99996423400000001},{"$f":"VALUE(FIXED(EXP(AA$4*-1*'PM2.5 reduction'!AA232),9))","v":0.99997551399999995},{"$f":"VALUE(FIXED(EXP(AB$4*-1*'PM2.5 reduction'!AB232),9))","v":0.99998211000000004},{"$f":"VALUE(FIXED(EXP(AC$4*-1*'PM2.5 reduction'!AC232),9))","v":0.99997346399999998},{"$f":"VALUE(FIXED(EXP(AD$4*-1*'PM2.5 reduction'!AD232),9))","v":0.99999176599999995},{"$f":"VALUE(FIXED(EXP(AE$4*-1*'PM2.5 reduction'!AE232),9))","v":0.99999088400000002},{"$f":"VALUE(FIXED(EXP(AF$4*-1*'PM2.5 reduction'!AF232),9))","v":0.99998941200000002},{"$f":"VALUE(FIXED(EXP(AG$4*-1*'PM2.5 reduction'!AG232),9))","v":0.99999088400000002},{"$f":"VALUE(FIXED(EXP(AH$4*-1*'PM2.5 reduction'!AH232),9))","v":0.99998130500000004},{"$f":"VALUE(FIXED(EXP(AI$4*-1*'PM2.5 reduction'!AI232),9))","v":0.99996904799999997},{"$f":"VALUE(FIXED(EXP(AJ$4*-1*'PM2.5 reduction'!AJ232),9))","v":0.99998458000000001},{"$f":"VALUE(FIXED(EXP(AK$4*-1*'PM2.5 reduction'!AK232),9))","v":0.99999313000000001},{"$f":"VALUE(FIXED(EXP(AL$4*-1*'PM2.5 reduction'!AL232),9))","v":0.99999060900000003},{"$f":"VALUE(FIXED(EXP(AM$4*-1*'PM2.5 reduction'!AM232),9))","v":0.99997893400000004},{"$f":"VALUE(FIXED(EXP(AN$4*-1*'PM2.5 reduction'!AN232),9))","v":1},{"$f":"VALUE(FIXED(EXP(AO$4*-1*'PM2.5 reduction'!AO232),9))","v":1},{"$f":"VALUE(FIXED(EXP(AP$4*-1*'PM2.5 reduction'!AP232),9))","v":0.999990559},{"$f":"VALUE(FIXED(EXP(AQ$4*-1*'PM2.5 reduction'!AQ232),9))","v":0.99998180199999998},{"$f":"VALUE(FIXED(EXP(AR$4*-1*'PM2.5 reduction'!AR232),9))","v":0.99997782700000004},{"$f":"VALUE(FIXED(EXP(AS$4*-1*'PM2.5 reduction'!AS232),9))","v":0.99999546399999995},{"$f":"VALUE(FIXED(EXP(AT$4*-1*'PM2.5 reduction'!AT232),9))","v":1},{"$f":"VALUE(FIXED(EXP(AU$4*-1*'PM2.5 reduction'!AU232),9))","v":1},{"$f":"VALUE(FIXED(EXP(AV$4*-1*'PM2.5 reduction'!AV232),9))","v":0.99998798200000005},{"$f":"VALUE(FIXED(EXP(AW$4*-1*'PM2.5 reduction'!AW232),9))","v":0.99998309900000004},{"$f":"VALUE(FIXED(EXP(AX$4*-1*'PM2.5 reduction'!AX232),9))","v":0.99998903800000005},{"$f":"VALUE(FIXED(EXP(AY$4*-1*'PM2.5 reduction'!AY232),9))","v":0.99998629400000005},{"$f":"VALUE(FIXED(EXP(AZ$4*-1*'PM2.5 reduction'!AZ232),9))","v":0.99998749099999995},{"$f":"VALUE(FIXED(EXP(BA$4*-1*'PM2.5 reduction'!BA232),9))","v":0.99998846299999999},{"$f":"VALUE(FIXED(EXP(BB$4*-1*'PM2.5 reduction'!BB232),9))","v":0.99998501399999995},{"$f":"VALUE(FIXED(EXP(BC$4*-1*'PM2.5 reduction'!BC232),9))","v":1}]
[null,"Male 10-15",{"$f":"VALUE(FIXED(EXP(C$4*-1*'PM2.5 reduction'!C233),9))","v":0.99997044899999998},{"$f":"VALUE(FIXED(EXP(D$4*-1*'PM2.5 reduction'!D233),9))","v":0.99998207100000003},{"$f":"VALUE(FIXED(EXP(E$4*-1*'PM2.5 reduction'!E233),9))","v":0.99999386099999998},{"$f":"VALUE(FIXED(EXP(F$4*-1*'PM2.5 reduction'!F233),9))","v":0.999992832},{"$f":"VALUE(FIXED(EXP(G$4*-1*'PM2.5 reduction'!G233),9))","v":0.99999430899999997},{"$f":"VALUE(FIXED(EXP(H$4*-1*'PM2.5 reduction'!H233),9))","v":0.999987666},{"$f":"VALUE(FIXED(EXP(I$4*-1*'PM2.5 reduction'!I233),9))","v":0.99999541800000002},{"$f":"VALUE(FIXED(EXP(J$4*-1*'PM2.5 reduction'!J233),9))","v":0.99998918199999998},{"$f":"VALUE(FIXED(EXP(K$4*-1*'PM2.5 reduction'!K233),9))","v":0.99998682500000002},{"$f":"VALUE(FIXED(EXP(L$4*-1*'PM2.5 reduction'!L233),9))","v":0.99999263299999996},{"$f":"VALUE(FIXED(EXP(M$4*-1*'PM2.5 reduction'!M233),9))","v":0.99999263299999996},{"$f":"VALUE(FIXED(EXP(N$4*-1*'PM2.5 reduction'!N233),9))","v":0.99997986400000005},{"$f":"VALUE(FIXED(EXP(O$4*-1*'PM2.5 reduction'!O233),9))","v":0.99998589199999999},{"$f":"VALUE(FIXED(EXP(P$4*-1*'PM2.5 reduction'!P233),9))","v":0.99997581099999999},{"$f":"VALUE(FIXED(EXP(Q$4*-1*'PM2.5 reduction'!Q233),9))","v":0.99999172700000005},{"$f":"VALUE(FIXED(EXP(R$4*-1*'PM2.5 reduction'!R233),9))","v":0.99997488000000001},{"$f":"VALUE(FIXED(EXP(S$4*-1*'PM2.5 reduction'!S233),9))","v":0.99997365900000001},{"$f":"VALUE(FIXED(EXP(T$4*-1*'PM2.5 reduction'!T233),9))","v":0.99996405600000005},{"$f":"VALUE(FIXED(EXP(U$4*-1*'PM2.5 reduction'!U233),9))","v":1},{"$f":"VALUE(FIXED(EXP(V$4*-1*'PM2.5 reduction'!V233),9))","v":0.99998225299999999},{"$f":"VALUE(FIXED(EXP(W$4*-1*'PM2.5 reduction'!W233),9))","v":0.99998558500000001},{"$f":"VALUE(FIXED(EXP(X$4*-1*'PM2.5 reduction'!X233),9))","v":0.99998558500000001},{"$f":"VALUE(FIXED(EXP(Y$4*-1*'PM2.5 reduction'!Y233),9))","v":0.99998551000000002},{"$f":"VALUE(FIXED(EXP(Z$4*-1*'PM2.5 reduction'!Z233),9))","v":0.99996525199999997},{"$f":"VALUE(FIXED(EXP(AA$4*-1*'PM2.5 reduction'!AA233),9))","v":0.99997625599999995},{"$f":"VALUE(FIXED(EXP(AB$4*-1*'PM2.5 reduction'!AB233),9))","v":0.99998266000000002},{"$f":"VALUE(FIXED(EXP(AC$4*-1*'PM2.5 reduction'!AC233),9))","v":0.99997436299999998},{"$f":"VALUE(FIXED(EXP(AD$4*-1*'PM2.5 reduction'!AD233),9))","v":0.99999170599999998},{"$f":"VALUE(FIXED(EXP(AE$4*-1*'PM2.5 reduction'!AE233),9))","v":0.99999075199999998},{"$f":"VALUE(FIXED(EXP(AF$4*-1*'PM2.5 reduction'!AF233),9))","v":0.999990147},{"$f":"VALUE(FIXED(EXP(AG$4*-1*'PM2.5 reduction'!AG233),9))","v":0.99999075199999998},{"$f":"VALUE(FIXED(EXP(AH$4*-1*'PM2.5 reduction'!AH233),9))","v":0.99998148799999997},{"$f":"VALUE(FIXED(EXP(AI$4*-1*'PM2.5 reduction'!AI233),9))","v":0.99997017200000005},{"$f":"VALUE(FIXED(EXP(AJ$4*-1*'PM2.5 reduction'!AJ233),9))","v":0.99998384500000004},{"$f":"VALUE(FIXED(EXP(AK$4*-1*'PM2.5 reduction'!AK233),9))","v":0.99999332699999999},{"$f":"VALUE(FIXED(EXP(AL$4*-1*'PM2.5 reduction'!AL233),9))","v":0.99999065600000003},{"$f":"VALUE(FIXED(EXP(AM$4*-1*'PM2.5 reduction'!AM233),9))","v":0.99997917599999997},{"$f":"VALUE(FIXED(EXP(AN$4*-1*'PM2.5 reduction'!AN233),9))","v":1},{"$f":"VALUE(FIXED(EXP(AO$4*-1*'PM2.5 reduction'!AO233),9))","v":1},{"$f":"VALUE(FIXED(EXP(AP$4*-1*'PM2.5 reduction'!AP233),9))","v":0.99999050499999997},{"$f":"VALUE(FIXED(EXP(AQ$4*-1*'PM2.5 reduction'!AQ233),9))","v":0.99998216200000001},{"$f":"VALUE(FIXED(EXP(AR$4*-1*'PM2.5 reduction'!AR233),9))","v":0.99997846199999996},{"$f":"VALUE(FIXED(EXP(AS$4*-1*'PM2.5 reduction'!AS233),9))","v":0.99999541800000002},{"$f":"VALUE(FIXED(EXP(AT$4*-1*'PM2.5 reduction'!AT233),9))","v":1},{"$f":"VALUE(FIXED(EXP(AU$4*-1*'PM2.5 reduction'!AU233),9))","v":1},{"$f":"VALUE(FIXED(EXP(AV$4*-1*'PM2.5 reduction'!AV233),9))","v":0.99998740799999997},{"$f":"VALUE(FIXED(EXP(AW$4*-1*'PM2.5 reduction'!AW233),9))","v":0.99998361300000005},{"$f":"VALUE(FIXED(EXP(AX$4*-1*'PM2.5 reduction'!AX233),9))","v":0.99998961600000003},{"$f":"VALUE(FIXED(EXP(AY$4*-1*'PM2.5 reduction'!AY233),9))","v":0.99998648099999998},{"$f":"VALUE(FIXED(EXP(AZ$4*-1*'PM2.5 reduction'!AZ233),9))","v":0.99998739400000003},{"$f":"VALUE(FIXED(EXP(BA$4*-1*'PM2.5 reduction'!BA233),9))","v":0.99998640999999999},{"$f":"VALUE(FIXED(EXP(BB$4*-1*'PM2.5 reduction'!BB233),9))","v":0.99998538299999995},{"$f":"VALUE(FIXED(EXP(BC$4*-1*'PM2.5 reduction'!BC233),9))","v":1}]
[null,"Male 16-19",{"$f":"VALUE(FIXED(EXP(C$4*-1*'PM2.5 reduction'!C234),9))","v":0.99996929599999995},{"$f":"VALUE(FIXED(EXP(D$4*-1*'PM2.5 reduction'!D234),9))","v":0.99998134400000005},{"$f":"VALUE(FIXED(EXP(E$4*-1*'PM2.5 reduction'!E234),9))","v":0.99999374500000004},{"$f":"VALUE(FIXED(EXP(F$4*-1*'PM2.5 reduction'!F234),9))","v":0.99999245699999995},{"$f":"VALUE(FIXED(EXP(G$4*-1*'PM2.5 reduction'!G234),9))","v":0.99999434700000001},{"$f":"VALUE(FIXED(EXP(H$4*-1*'PM2.5 reduction'!H234),9))","v":0.99998791899999995},{"$f":"VALUE(FIXED(EXP(I$4*-1*'PM2.5 reduction'!I234),9))","v":0.99999548299999996},{"$f":"VALUE(FIXED(EXP(J$4*-1*'PM2.5 reduction'!J234),9))","v":0.99998847700000004},{"$f":"VALUE(FIXED(EXP(K$4*-1*'PM2.5 reduction'!K234),9))","v":0.99998678699999999},{"$f":"VALUE(FIXED(EXP(L$4*-1*'PM2.5 reduction'!L234),9))","v":0.99999234199999998},{"$f":"VALUE(FIXED(EXP(M$4*-1*'PM2.5 reduction'!M234),9))","v":0.99999234199999998},{"$f":"VALUE(FIXED(EXP(N$4*-1*'PM2.5 reduction'!N234),9))","v":0.99997072799999998},{"$f":"VALUE(FIXED(EXP(O$4*-1*'PM2.5 reduction'!O234),9))","v":0.99998619300000002},{"$f":"VALUE(FIXED(EXP(P$4*-1*'PM2.5 reduction'!P234),9))","v":0.99997527600000002},{"$f":"VALUE(FIXED(EXP(Q$4*-1*'PM2.5 reduction'!Q234),9))","v":0.99999180300000001},{"$f":"VALUE(FIXED(EXP(R$4*-1*'PM2.5 reduction'!R234),9))","v":0.99997480900000002},{"$f":"VALUE(FIXED(EXP(S$4*-1*'PM2.5 reduction'!S234),9))","v":0.99997056299999998},{"$f":"VALUE(FIXED(EXP(T$4*-1*'PM2.5 reduction'!T234),9))","v":0.99996088100000002},{"$f":"VALUE(FIXED(EXP(U$4*-1*'PM2.5 reduction'!U234),9))","v":1},{"$f":"VALUE(FIXED(EXP(V$4*-1*'PM2.5 reduction'!V234),9))","v":0.99998193000000002},{"$f":"VALUE(FIXED(EXP(W$4*-1*'PM2.5 reduction'!W234),9))","v":0.99998604400000002},{"$f":"VALUE(FIXED(EXP(X$4*-1*'PM2.5 reduction'!X234),9))","v":0.99998604400000002},{"$f":"VALUE(FIXED(EXP(Y$4*-1*'PM2.5 reduction'!Y234),9))","v":0.99998503699999997},{"$f":"VALUE(FIXED(EXP(Z$4*-1*'PM2.5 reduction'!Z234),9))","v":0.99995693299999999},{"$f":"VALUE(FIXED(EXP(AA$4*-1*'PM2.5 reduction'!AA234),9))","v":0.99997367400000003},{"$f":"VALUE(FIXED(EXP(AB$4*-1*'PM2.5 reduction'!AB234),9))","v":0.99998201900000006},{"$f":"VALUE(FIXED(EXP(AC$4*-1*'PM2.5 reduction'!AC234),9))","v":0.99997102500000001},{"$f":"VALUE(FIXED(EXP(AD$4*-1*'PM2.5 reduction'!AD234),9))","v":0.99999174400000002},{"$f":"VALUE(FIXED(EXP(AE$4*-1*'PM2.5 reduction'!AE234),9))","v":0.99999067100000005},{"$f":"VALUE(FIXED(EXP(AF$4*-1*'PM2.5 reduction'!AF234),9))","v":0.99998822099999995},{"$f":"VALUE(FIXED(EXP(AG$4*-1*'PM2.5 reduction'!AG234),9))","v":0.99999067100000005},{"$f":"VALUE(FIXED(EXP(AH$4*-1*'PM2.5 reduction'!AH234),9))","v":0.99998132100000003},{"$f":"VALUE(FIXED(EXP(AI$4*-1*'PM2.5 reduction'!AI234),9))","v":0.99996694600000002},{"$f":"VALUE(FIXED(EXP(AJ$4*-1*'PM2.5 reduction'!AJ234),9))","v":0.99998478899999999},{"$f":"VALUE(FIXED(EXP(AK$4*-1*'PM2.5 reduction'!AK234),9))","v":0.99999396900000004},{"$f":"VALUE(FIXED(EXP(AL$4*-1*'PM2.5 reduction'!AL234),9))","v":0.99999077400000003},{"$f":"VALUE(FIXED(EXP(AM$4*-1*'PM2.5 reduction'!AM234),9))","v":0.99997898799999996},{"$f":"VALUE(FIXED(EXP(AN$4*-1*'PM2.5 reduction'!AN234),9))","v":1},{"$f":"VALUE(FIXED(EXP(AO$4*-1*'PM2.5 reduction'!AO234),9))","v":1},{"$f":"VALUE(FIXED(EXP(AP$4*-1*'PM2.5 reduction'!AP234),9))","v":0.99999106199999999},{"$f":"VALUE(FIXED(EXP(AQ$4*-1*'PM2.5 reduction'!AQ234),9))","v":0.99998177399999999},{"$f":"VALUE(FIXED(EXP(AR$4*-1*'PM2.5 reduction'!AR234),9))","v":0.99997609300000001},{"$f":"VALUE(FIXED(EXP(AS$4*-1*'PM2.5 reduction'!AS234),9))","v":0.99999548299999996},{"$f":"VALUE(FIXED(EXP(AT$4*-1*'PM2.5 reduction'!AT234),9))","v":1},{"$f":"VALUE(FIXED(EXP(AU$4*-1*'PM2.5 reduction'!AU234),9))","v":1},{"$f":"VALUE(FIXED(EXP(AV$4*-1*'PM2.5 reduction'!AV234),9))","v":0.99998762799999996},{"$f":"VALUE(FIXED(EXP(AW$4*-1*'PM2.5 reduction'!AW234),9))","v":0.99998314300000002},{"$f":"VALUE(FIXED(EXP(AX$4*-1*'PM2.5 reduction'!AX234),9))","v":0.99998880400000001},{"$f":"VALUE(FIXED(EXP(AY$4*-1*'PM2.5 reduction'!AY234),9))","v":0.99998396899999997},{"$f":"VALUE(FIXED(EXP(AZ$4*-1*'PM2.5 reduction'!AZ234),9))","v":0.99998228600000005},{"$f":"VALUE(FIXED(EXP(BA$4*-1*'PM2.5 reduction'!BA234),9))","v":0.99998651199999999},{"$f":"VALUE(FIXED(EXP(BB$4*-1*'PM2.5 reduction'!BB234),9))","v":0.999985491},{"$f":"VALUE(FIXED(EXP(BC$4*-1*'PM2.5 reduction'!BC234),9))","v":1}]
[null,"Male 20-24",{"$f":"VALUE(FIXED(EXP(C$4*-1*'PM2.5 reduction'!C235),9))","v":0.99996279700000001},{"$f":"VALUE(FIXED(EXP(D$4*-1*'PM2.5 reduction'!D235),9))","v":0.99997422199999997},{"$f":"VALUE(FIXED(EXP(E$4*-1*'PM2.5 reduction'!E235),9))","v":0.999993523},{"$f":"VALUE(FIXED(EXP(F$4*-1*'PM2.5 reduction'!F235),9))","v":0.99999243599999998},{"$f":"VALUE(FIXED(EXP(G$4*-1*'PM2.5 reduction'!G235),9))","v":0.99999434399999998},{"$f":"VALUE(FIXED(EXP(H$4*-1*'PM2.5 reduction'!H235),9))","v":0.99998803000000003},{"$f":"VALUE(FIXED(EXP(I$4*-1*'PM2.5 reduction'!I235),9))","v":0.99999547700000002},{"$f":"VALUE(FIXED(EXP(J$4*-1*'PM2.5 reduction'!J235),9))","v":0.99998713900000002},{"$f":"VALUE(FIXED(EXP(K$4*-1*'PM2.5 reduction'!K235),9))","v":0.99998635300000005},{"$f":"VALUE(FIXED(EXP(L$4*-1*'PM2.5 reduction'!L235),9))","v":0.99999258800000002},{"$f":"VALUE(FIXED(EXP(M$4*-1*'PM2.5 reduction'!M235),9))","v":0.99999258800000002},{"$f":"VALUE(FIXED(EXP(N$4*-1*'PM2.5 reduction'!N235),9))","v":0.99997075199999996},{"$f":"VALUE(FIXED(EXP(O$4*-1*'PM2.5 reduction'!O235),9))","v":0.99998646199999996},{"$f":"VALUE(FIXED(EXP(P$4*-1*'PM2.5 reduction'!P235),9))","v":0.99997518799999996},{"$f":"VALUE(FIXED(EXP(Q$4*-1*'PM2.5 reduction'!Q235),9))","v":0.99999130199999997},{"$f":"VALUE(FIXED(EXP(R$4*-1*'PM2.5 reduction'!R235),9))","v":0.99997510899999997},{"$f":"VALUE(FIXED(EXP(S$4*-1*'PM2.5 reduction'!S235),9))","v":0.99996282000000003},{"$f":"VALUE(FIXED(EXP(T$4*-1*'PM2.5 reduction'!T235),9))","v":0.99995264900000003},{"$f":"VALUE(FIXED(EXP(U$4*-1*'PM2.5 reduction'!U235),9))","v":1},{"$f":"VALUE(FIXED(EXP(V$4*-1*'PM2.5 reduction'!V235),9))","v":0.999981279},{"$f":"VALUE(FIXED(EXP(W$4*-1*'PM2.5 reduction'!W235),9))","v":0.99998836800000002},{"$f":"VALUE(FIXED(EXP(X$4*-1*'PM2.5 reduction'!X235),9))","v":0.99998836800000002},{"$f":"VALUE(FIXED(EXP(Y$4*-1*'PM2.5 reduction'!Y235),9))","v":0.99998419199999999},{"$f":"VALUE(FIXED(EXP(Z$4*-1*'PM2.5 reduction'!Z235),9))","v":0.99995263599999995},{"$f":"VALUE(FIXED(EXP(AA$4*-1*'PM2.5 reduction'!AA235),9))","v":0.99996907999999995},{"$f":"VALUE(FIXED(EXP(AB$4*-1*'PM2.5 reduction'!AB235),9))","v":0.99997500699999997},{"$f":"VALUE(FIXED(EXP(AC$4*-1*'PM2.5 reduction'!AC235),9))","v":0.99996584200000005},{"$f":"VALUE(FIXED(EXP(AD$4*-1*'PM2.5 reduction'!AD235),9))","v":0.99999153600000001},{"$f":"VALUE(FIXED(EXP(AE$4*-1*'PM2.5 reduction'!AE235),9))","v":0.99999065899999995},{"$f":"VALUE(FIXED(EXP(AF$4*-1*'PM2.5 reduction'!AF235),9))","v":0.99998820499999996},{"$f":"VALUE(FIXED(EXP(AG$4*-1*'PM2.5 reduction'!AG235),9))","v":0.99999065899999995},{"$f":"VALUE(FIXED(EXP(AH$4*-1*'PM2.5 reduction'!AH235),9))","v":0.99998094400000004},{"$f":"VALUE(FIXED(EXP(AI$4*-1*'PM2.5 reduction'!AI235),9))","v":0.99995782300000002},{"$f":"VALUE(FIXED(EXP(AJ$4*-1*'PM2.5 reduction'!AJ235),9))","v":0.99998718900000005},{"$f":"VALUE(FIXED(EXP(AK$4*-1*'PM2.5 reduction'!AK235),9))","v":0.99999314699999997},{"$f":"VALUE(FIXED(EXP(AL$4*-1*'PM2.5 reduction'!AL235),9))","v":0.99999063399999999},{"$f":"VALUE(FIXED(EXP(AM$4*-1*'PM2.5 reduction'!AM235),9))","v":0.99997923399999999},{"$f":"VALUE(FIXED(EXP(AN$4*-1*'PM2.5 reduction'!AN235),9))","v":1},{"$f":"VALUE(FIXED(EXP(AO$4*-1*'PM2.5 reduction'!AO235),9))","v":1},{"$f":"VALUE(FIXED(EXP(AP$4*-1*'PM2.5 reduction'!AP235),9))","v":0.99999043099999996},{"$f":"VALUE(FIXED(EXP(AQ$4*-1*'PM2.5 reduction'!AQ235),9))","v":0.99998199799999998},{"$f":"VALUE(FIXED(EXP(AR$4*-1*'PM2.5 reduction'!AR235),9))","v":0.99996979100000005},{"$f":"VALUE(FIXED(EXP(AS$4*-1*'PM2.5 reduction'!AS235),9))","v":0.99999547700000002},{"$f":"VALUE(FIXED(EXP(AT$4*-1*'PM2.5 reduction'!AT235),9))","v":1},{"$f":"VALUE(FIXED(EXP(AU$4*-1*'PM2.5 reduction'!AU235),9))","v":1},{"$f":"VALUE(FIXED(EXP(AV$4*-1*'PM2.5 reduction'!AV235),9))","v":0.99998785899999998},{"$f":"VALUE(FIXED(EXP(AW$4*-1*'PM2.5 reduction'!AW235),9))","v":0.99998223799999997},{"$f":"VALUE(FIXED(EXP(AX$4*-1*'PM2.5 reduction'!AX235),9))","v":0.99998724800000005},{"$f":"VALUE(FIXED(EXP(AY$4*-1*'PM2.5 reduction'!AY235),9))","v":0.99998514999999999},{"$f":"VALUE(FIXED(EXP(AZ$4*-1*'PM2.5 reduction'!AZ235),9))","v":0.99998163399999995},{"$f":"VALUE(FIXED(EXP(BA$4*-1*'PM2.5 reduction'!BA235),9))","v":0.999987458},{"$f":"VALUE(FIXED(EXP(BB$4*-1*'PM2.5 reduction'!BB235),9))","v":0.99998495799999998},{"$f":"VALUE(FIXED(EXP(BC$4*-1*'PM2.5 reduction'!BC235),9))","v":1}]
[null,"Male 25-29",{"$f":"VALUE(FIXED(EXP(C$4*-1*'PM2.5 reduction'!C236),9))","v":0.99996125899999999},{"$f":"VALUE(FIXED(EXP(D$4*-1*'PM2.5 reduction'!D236),9))","v":0.999969475},{"$f":"VALUE(FIXED(EXP(E$4*-1*'PM2.5 reduction'!E236),9))","v":0.99999330900000005},{"$f":"VALUE(FIXED(EXP(F$4*-1*'PM2.5 reduction'!F236),9))","v":0.99999232800000004},{"$f":"VALUE(FIXED(EXP(G$4*-1*'PM2.5 reduction'!G236),9))","v":0.99999444699999995},{"$f":"VALUE(FIXED(EXP(H$4*-1*'PM2.5 reduction'!H236),9))","v":0.99998806600000001},{"$f":"VALUE(FIXED(EXP(I$4*-1*'PM2.5 reduction'!I236),9))","v":0.99999557400000005},{"$f":"VALUE(FIXED(EXP(J$4*-1*'PM2.5 reduction'!J236),9))","v":0.99998690499999998},{"$f":"VALUE(FIXED(EXP(K$4*-1*'PM2.5 reduction'!K236),9))","v":0.99998535099999997},{"$f":"VALUE(FIXED(EXP(L$4*-1*'PM2.5 reduction'!L236),9))","v":0.99999267999999997},{"$f":"VALUE(FIXED(EXP(M$4*-1*'PM2.5 reduction'!M236),9))","v":0.99999267999999997},{"$f":"VALUE(FIXED(EXP(N$4*-1*'PM2.5 reduction'!N236),9))","v":0.99997614099999999},{"$f":"VALUE(FIXED(EXP(O$4*-1*'PM2.5 reduction'!O236),9))","v":0.99998627900000003},{"$f":"VALUE(FIXED(EXP(P$4*-1*'PM2.5 reduction'!P236),9))","v":0.99997523899999996},{"$f":"VALUE(FIXED(EXP(Q$4*-1*'PM2.5 reduction'!Q236),9))","v":0.999990975},{"$f":"VALUE(FIXED(EXP(R$4*-1*'PM2.5 reduction'!R236),9))","v":0.99997495400000003},{"$f":"VALUE(FIXED(EXP(S$4*-1*'PM2.5 reduction'!S236),9))","v":0.99996113799999997},{"$f":"VALUE(FIXED(EXP(T$4*-1*'PM2.5 reduction'!T236),9))","v":0.99995342499999995},{"$f":"VALUE(FIXED(EXP(U$4*-1*'PM2.5 reduction'!U236),9))","v":1},{"$f":"VALUE(FIXED(EXP(V$4*-1*'PM2.5 reduction'!V236),9))","v":0.99998067000000002},{"$f":"VALUE(FIXED(EXP(W$4*-1*'PM2.5 reduction'!W236),9))","v":0.99998652899999996},{"$f":"VALUE(FIXED(EXP(X$4*-1*'PM2.5 reduction'!X236),9))","v":0.99998652899999996},{"$f":"VALUE(FIXED(EXP(Y$4*-1*'PM2.5 reduction'!Y236),9))","v":0.99998334200000005},{"$f":"VALUE(FIXED(EXP(Z$4*-1*'PM2.5 reduction'!Z236),9))","v":0.99995683000000002},{"$f":"VALUE(FIXED(EXP(AA$4*-1*'PM2.5 reduction'!AA236),9))","v":0.99996918499999998},{"$f":"VALUE(FIXED(EXP(AB$4*-1*'PM2.5 reduction'!AB236),9))","v":0.99997017099999996},{"$f":"VALUE(FIXED(EXP(AC$4*-1*'PM2.5 reduction'!AC236),9))","v":0.99996633499999998},{"$f":"VALUE(FIXED(EXP(AD$4*-1*'PM2.5 reduction'!AD236),9))","v":0.99999125700000002},{"$f":"VALUE(FIXED(EXP(AE$4*-1*'PM2.5 reduction'!AE236),9))","v":0.99999018900000003},{"$f":"VALUE(FIXED(EXP(AF$4*-1*'PM2.5 reduction'!AF236),9))","v":0.99998706500000001},{"$f":"VALUE(FIXED(EXP(AG$4*-1*'PM2.5 reduction'!AG236),9))","v":0.99999018900000003},{"$f":"VALUE(FIXED(EXP(AH$4*-1*'PM2.5 reduction'!AH236),9))","v":0.99998072800000004},{"$f":"VALUE(FIXED(EXP(AI$4*-1*'PM2.5 reduction'!AI236),9))","v":0.99995752800000004},{"$f":"VALUE(FIXED(EXP(AJ$4*-1*'PM2.5 reduction'!AJ236),9))","v":0.99998668999999996},{"$f":"VALUE(FIXED(EXP(AK$4*-1*'PM2.5 reduction'!AK236),9))","v":0.99999304499999997},{"$f":"VALUE(FIXED(EXP(AL$4*-1*'PM2.5 reduction'!AL236),9))","v":0.99999078299999999},{"$f":"VALUE(FIXED(EXP(AM$4*-1*'PM2.5 reduction'!AM236),9))","v":0.99997851599999998},{"$f":"VALUE(FIXED(EXP(AN$4*-1*'PM2.5 reduction'!AN236),9))","v":1},{"$f":"VALUE(FIXED(EXP(AO$4*-1*'PM2.5 reduction'!AO236),9))","v":1},{"$f":"VALUE(FIXED(EXP(AP$4*-1*'PM2.5 reduction'!AP236),9))","v":0.99999026400000002},{"$f":"VALUE(FIXED(EXP(AQ$4*-1*'PM2.5 reduction'!AQ236),9))","v":0.99998167800000004},{"$f":"VALUE(FIXED(EXP(AR$4*-1*'PM2.5 reduction'!AR236),9))","v":0.99996826800000005},{"$f":"VALUE(FIXED(EXP(AS$4*-1*'PM2.5 reduction'!AS236),9))","v":0.99999557400000005},{"$f":"VALUE(FIXED(EXP(AT$4*-1*'PM2.5 reduction'!AT236),9))","v":1},{"$f":"VALUE(FIXED(EXP(AU$4*-1*'PM2.5 reduction'!AU236),9))","v":1},{"$f":"VALUE(FIXED(EXP(AV$4*-1*'PM2.5 reduction'!AV236),9))","v":0.99998852699999996},{"$f":"VALUE(FIXED(EXP(AW$4*-1*'PM2.5 reduction'!AW236),9))","v":0.99998266800000002},{"$f":"VALUE(FIXED(EXP(AX$4*-1*'PM2.5 reduction'!AX236),9))","v":0.99998713400000006},{"$f":"VALUE(FIXED(EXP(AY$4*-1*'PM2.5 reduction'!AY236),9))","v":0.99998496800000003},{"$f":"VALUE(FIXED(EXP(AZ$4*-1*'PM2.5 reduction'!AZ236),9))","v":0.99998357900000001},{"$f":"VALUE(FIXED(EXP(BA$4*-1*'PM2.5 reduction'!BA236),9))","v":0.99998783999999996},{"$f":"VALUE(FIXED(EXP(BB$4*-1*'PM2.5 reduction'!BB236),9))","v":0.99998393600000002},{"$f":"VALUE(FIXED(EXP(BC$4*-1*'PM2.5 reduction'!BC236),9))","v":1}]
[null,"Male 30-34",{"$f":"VALUE(FIXED(EXP(C$4*-1*'PM2.5 reduction'!C237),9))","v":0.99996094999999996},{"$f":"VALUE(FIXED(EXP(D$4*-1*'PM2.5 reduction'!D237),9))","v":0.99997062599999997},{"$f":"VALUE(FIXED(EXP(E$4*-1*'PM2.5 reduction'!E237),9))","v":0.99999359300000001},{"$f":"VALUE(FIXED(EXP(F$4*-1*'PM2.5 reduction'!F237),9))","v":0.99999296400000004},{"$f":"VALUE(FIXED(EXP(G$4*-1*'PM2.5 reduction'!G237),9))","v":0.99999437999999996},{"$f":"VALUE(FIXED(EXP(H$4*-1*'PM2.5 reduction'!H237),9))","v":0.99998823000000003},{"$f":"VALUE(FIXED(EXP(I$4*-1*'PM2.5 reduction'!I237),9))","v":0.99999563599999997},{"$f":"VALUE(FIXED(EXP(J$4*-1*'PM2.5 reduction'!J237),9))","v":0.99998646199999996},{"$f":"VALUE(FIXED(EXP(K$4*-1*'PM2.5 reduction'!K237),9))","v":0.99998556900000002},{"$f":"VALUE(FIXED(EXP(L$4*-1*'PM2.5 reduction'!L237),9))","v":0.99999280599999996},{"$f":"VALUE(FIXED(EXP(M$4*-1*'PM2.5 reduction'!M237),9))","v":0.99999280599999996},{"$f":"VALUE(FIXED(EXP(N$4*-1*'PM2.5 reduction'!N237),9))","v":0.99997699500000004},{"$f":"VALUE(FIXED(EXP(O$4*-1*'PM2.5 reduction'!O237),9))","v":0.99998752700000004},{"$f":"VALUE(FIXED(EXP(P$4*-1*'PM2.5 reduction'!P237),9))","v":0.99997546500000001},{"$f":"VALUE(FIXED(EXP(Q$4*-1*'PM2.5 reduction'!Q237),9))","v":0.99999019},{"$f":"VALUE(FIXED(EXP(R$4*-1*'PM2.5 reduction'!R237),9))","v":0.99997482599999998},{"$f":"VALUE(FIXED(EXP(S$4*-1*'PM2.5 reduction'!S237),9))","v":0.99996134699999994},{"$f":"VALUE(FIXED(EXP(T$4*-1*'PM2.5 reduction'!T237),9))","v":0.99995219300000004},{"$f":"VALUE(FIXED(EXP(U$4*-1*'PM2.5 reduction'!U237),9))","v":1},{"$f":"VALUE(FIXED(EXP(V$4*-1*'PM2.5 reduction'!V237),9))","v":0.99998136299999996},{"$f":"VALUE(FIXED(EXP(W$4*-1*'PM2.5 reduction'!W237),9))","v":0.99998595999999995},{"$f":"VALUE(FIXED(EXP(X$4*-1*'PM2.5 reduction'!X237),9))","v":0.99998595999999995},{"$f":"VALUE(FIXED(EXP(Y$4*-1*'PM2.5 reduction'!Y237),9))","v":0.99998331799999995},{"$f":"VALUE(FIXED(EXP(Z$4*-1*'PM2.5 reduction'!Z237),9))","v":0.99995830200000002},{"$f":"VALUE(FIXED(EXP(AA$4*-1*'PM2.5 reduction'!AA237),9))","v":0.99997005800000005},{"$f":"VALUE(FIXED(EXP(AB$4*-1*'PM2.5 reduction'!AB237),9))","v":0.99997128300000004},{"$f":"VALUE(FIXED(EXP(AC$4*-1*'PM2.5 reduction'!AC237),9))","v":0.99996696500000004},{"$f":"VALUE(FIXED(EXP(AD$4*-1*'PM2.5 reduction'!AD237),9))","v":0.99999065899999995},{"$f":"VALUE(FIXED(EXP(AE$4*-1*'PM2.5 reduction'!AE237),9))","v":0.99998989800000004},{"$f":"VALUE(FIXED(EXP(AF$4*-1*'PM2.5 reduction'!AF237),9))","v":0.99998802200000003},{"$f":"VALUE(FIXED(EXP(AG$4*-1*'PM2.5 reduction'!AG237),9))","v":0.99998989800000004},{"$f":"VALUE(FIXED(EXP(AH$4*-1*'PM2.5 reduction'!AH237),9))","v":0.99998044200000002},{"$f":"VALUE(FIXED(EXP(AI$4*-1*'PM2.5 reduction'!AI237),9))","v":0.99995694099999999},{"$f":"VALUE(FIXED(EXP(AJ$4*-1*'PM2.5 reduction'!AJ237),9))","v":0.99998592500000005},{"$f":"VALUE(FIXED(EXP(AK$4*-1*'PM2.5 reduction'!AK237),9))","v":0.99999417999999995},{"$f":"VALUE(FIXED(EXP(AL$4*-1*'PM2.5 reduction'!AL237),9))","v":0.99999104699999997},{"$f":"VALUE(FIXED(EXP(AM$4*-1*'PM2.5 reduction'!AM237),9))","v":0.99997771599999996},{"$f":"VALUE(FIXED(EXP(AN$4*-1*'PM2.5 reduction'!AN237),9))","v":1},{"$f":"VALUE(FIXED(EXP(AO$4*-1*'PM2.5 reduction'!AO237),9))","v":1},{"$f":"VALUE(FIXED(EXP(AP$4*-1*'PM2.5 reduction'!AP237),9))","v":0.99998999},{"$f":"VALUE(FIXED(EXP(AQ$4*-1*'PM2.5 reduction'!AQ237),9))","v":0.999980808},{"$f":"VALUE(FIXED(EXP(AR$4*-1*'PM2.5 reduction'!AR237),9))","v":0.99996918700000004},{"$f":"VALUE(FIXED(EXP(AS$4*-1*'PM2.5 reduction'!AS237),9))","v":0.99999563599999997},{"$f":"VALUE(FIXED(EXP(AT$4*-1*'PM2.5 reduction'!AT237),9))","v":1},{"$f":"VALUE(FIXED(EXP(AU$4*-1*'PM2.5 reduction'!AU237),9))","v":1},{"$f":"VALUE(FIXED(EXP(AV$4*-1*'PM2.5 reduction'!AV237),9))","v":0.99998717100000001},{"$f":"VALUE(FIXED(EXP(AW$4*-1*'PM2.5 reduction'!AW237),9))","v":0.99998249900000002},{"$f":"VALUE(FIXED(EXP(AX$4*-1*'PM2.5 reduction'!AX237),9))","v":0.99998664100000001},{"$f":"VALUE(FIXED(EXP(AY$4*-1*'PM2.5 reduction'!AY237),9))","v":0.99998588899999996},{"$f":"VALUE(FIXED(EXP(AZ$4*-1*'PM2.5 reduction'!AZ237),9))","v":0.999985809},{"$f":"VALUE(FIXED(EXP(BA$4*-1*'PM2.5 reduction'!BA237),9))","v":0.99998609999999999},{"$f":"VALUE(FIXED(EXP(BB$4*-1*'PM2.5 reduction'!BB237),9))","v":0.99998372800000002},{"$f":"VALUE(FIXED(EXP(BC$4*-1*'PM2.5 reduction'!BC237),9))","v":1}]
[null,"Male 35-39",{"$f":"VALUE(FIXED(EXP(C$4*-1*'PM2.5 reduction'!C238),9))","v":0.99996411799999996},{"$f":"VALUE(FIXED(EXP(D$4*-1*'PM2.5 reduction'!D238),9))","v":0.99997438999999999},{"$f":"VALUE(FIXED(EXP(E$4*-1*'PM2.5 reduction'!E238),9))","v":0.99999368700000002},{"$f":"VALUE(FIXED(EXP(F$4*-1*'PM2.5 reduction'!F238),9))","v":0.99999266399999998},{"$f":"VALUE(FIXED(EXP(G$4*-1*'PM2.5 reduction'!G238),9))","v":0.99999439999999995},{"$f":"VALUE(FIXED(EXP(H$4*-1*'PM2.5 reduction'!H238),9))","v":0.99998812999999998},{"$f":"VALUE(FIXED(EXP(I$4*-1*'PM2.5 reduction'!I238),9))","v":0.99999548699999996},{"$f":"VALUE(FIXED(EXP(J$4*-1*'PM2.5 reduction'!J238),9))","v":0.99998743300000004},{"$f":"VALUE(FIXED(EXP(K$4*-1*'PM2.5 reduction'!K238),9))","v":0.99998653299999996},{"$f":"VALUE(FIXED(EXP(L$4*-1*'PM2.5 reduction'!L238),9))","v":0.99999271899999997},{"$f":"VALUE(FIXED(EXP(M$4*-1*'PM2.5 reduction'!M238),9))","v":0.99999271899999997},{"$f":"VALUE(FIXED(EXP(N$4*-1*'PM2.5 reduction'!N238),9))","v":0.99997766300000002},{"$f":"VALUE(FIXED(EXP(O$4*-1*'PM2.5 reduction'!O238),9))","v":0.99998686999999997},{"$f":"VALUE(FIXED(EXP(P$4*-1*'PM2.5 reduction'!P238),9))","v":0.99997557100000001},{"$f":"VALUE(FIXED(EXP(Q$4*-1*'PM2.5 reduction'!Q238),9))","v":0.999990449},{"$f":"VALUE(FIXED(EXP(R$4*-1*'PM2.5 reduction'!R238),9))","v":0.99997478200000001},{"$f":"VALUE(FIXED(EXP(S$4*-1*'PM2.5 reduction'!S238),9))","v":0.99996593199999995},{"$f":"VALUE(FIXED(EXP(T$4*-1*'PM2.5 reduction'!T238),9))","v":0.99995605499999995},{"$f":"VALUE(FIXED(EXP(U$4*-1*'PM2.5 reduction'!U238),9))","v":1},{"$f":"VALUE(FIXED(EXP(V$4*-1*'PM2.5 reduction'!V238),9))","v":0.99998264699999995},{"$f":"VALUE(FIXED(EXP(W$4*-1*'PM2.5 reduction'!W238),9))","v":0.99998543699999998},{"$f":"VALUE(FIXED(EXP(X$4*-1*'PM2.5 reduction'!X238),9))","v":0.99998543699999998},{"$f":"VALUE(FIXED(EXP(Y$4*-1*'PM2.5 reduction'!Y238),9))","v":0.99998452199999999},{"$f":"VALUE(FIXED(EXP(Z$4*-1*'PM2.5 reduction'!Z238),9))","v":0.99996061599999997},{"$f":"VALUE(FIXED(EXP(AA$4*-1*'PM2.5 reduction'!AA238),9))","v":0.99997293799999998},{"$f":"VALUE(FIXED(EXP(AB$4*-1*'PM2.5 reduction'!AB238),9))","v":0.99997486899999999},{"$f":"VALUE(FIXED(EXP(AC$4*-1*'PM2.5 reduction'!AC238),9))","v":0.99997005999999999},{"$f":"VALUE(FIXED(EXP(AD$4*-1*'PM2.5 reduction'!AD238),9))","v":0.99999090700000004},{"$f":"VALUE(FIXED(EXP(AE$4*-1*'PM2.5 reduction'!AE238),9))","v":0.99999022900000001},{"$f":"VALUE(FIXED(EXP(AF$4*-1*'PM2.5 reduction'!AF238),9))","v":0.99998870200000001},{"$f":"VALUE(FIXED(EXP(AG$4*-1*'PM2.5 reduction'!AG238),9))","v":0.99999022900000001},{"$f":"VALUE(FIXED(EXP(AH$4*-1*'PM2.5 reduction'!AH238),9))","v":0.99998112299999997},{"$f":"VALUE(FIXED(EXP(AI$4*-1*'PM2.5 reduction'!AI238),9))","v":0.99996156300000005},{"$f":"VALUE(FIXED(EXP(AJ$4*-1*'PM2.5 reduction'!AJ238),9))","v":0.99998456400000002},{"$f":"VALUE(FIXED(EXP(AK$4*-1*'PM2.5 reduction'!AK238),9))","v":0.99999295799999999},{"$f":"VALUE(FIXED(EXP(AL$4*-1*'PM2.5 reduction'!AL238),9))","v":0.999990457},{"$f":"VALUE(FIXED(EXP(AM$4*-1*'PM2.5 reduction'!AM238),9))","v":0.99997847699999998},{"$f":"VALUE(FIXED(EXP(AN$4*-1*'PM2.5 reduction'!AN238),9))","v":1},{"$f":"VALUE(FIXED(EXP(AO$4*-1*'PM2.5 reduction'!AO238),9))","v":1},{"$f":"VALUE(FIXED(EXP(AP$4*-1*'PM2.5 reduction'!AP238),9))","v":0.999990343},{"$f":"VALUE(FIXED(EXP(AQ$4*-1*'PM2.5 reduction'!AQ238),9))","v":0.99998181100000005},{"$f":"VALUE(FIXED(EXP(AR$4*-1*'PM2.5 reduction'!AR238),9))","v":0.99997285999999996},{"$f":"VALUE(FIXED(EXP(AS$4*-1*'PM2.5 reduction'!AS238),9))","v":0.99999548699999996},{"$f":"VALUE(FIXED(EXP(AT$4*-1*'PM2.5 reduction'!AT238),9))","v":1},{"$f":"VALUE(FIXED(EXP(AU$4*-1*'PM2.5 reduction'!AU238),9))","v":1},{"$f":"VALUE(FIXED(EXP(AV$4*-1*'PM2.5 reduction'!AV238),9))","v":0.99998790999999998},{"$f":"VALUE(FIXED(EXP(AW$4*-1*'PM2.5 reduction'!AW238),9))","v":0.99998301300000003},{"$f":"VALUE(FIXED(EXP(AX$4*-1*'PM2.5 reduction'!AX238),9))","v":0.99998762200000002},{"$f":"VALUE(FIXED(EXP(AY$4*-1*'PM2.5 reduction'!AY238),9))","v":0.99998571599999997},{"$f":"VALUE(FIXED(EXP(AZ$4*-1*'PM2.5 reduction'!AZ238),9))","v":0.99998604300000005},{"$f":"VALUE(FIXED(EXP(BA$4*-1*'PM2.5 reduction'!BA238),9))","v":0.99998657300000005},{"$f":"VALUE(FIXED(EXP(BB$4*-1*'PM2.5 reduction'!BB238),9))","v":0.99998464499999995},{"$f":"VALUE(FIXED(EXP(BC$4*-1*'PM2.5 reduction'!BC238),9))","v":1}]
[null,"Male 40-44",{"$f":"VALUE(FIXED(EXP(C$4*-1*'PM2.5 reduction'!C239),9))","v":0.99996828999999998},{"$f":"VALUE(FIXED(EXP(D$4*-1*'PM2.5 reduction'!D239),9))","v":0.99997889399999995},{"$f":"VALUE(FIXED(EXP(E$4*-1*'PM2.5 reduction'!E239),9))","v":0.99999376799999995},{"$f":"VALUE(FIXED(EXP(F$4*-1*'PM2.5 reduction'!F239),9))","v":0.99999261900000003},{"$f":"VALUE(FIXED(EXP(G$4*-1*'PM2.5 reduction'!G239),9))","v":0.99999434300000001},{"$f":"VALUE(FIXED(EXP(H$4*-1*'PM2.5 reduction'!H239),9))","v":0.999987972},{"$f":"VALUE(FIXED(EXP(I$4*-1*'PM2.5 reduction'!I239),9))","v":0.99999558499999996},{"$f":"VALUE(FIXED(EXP(J$4*-1*'PM2.5 reduction'!J239),9))","v":0.99998841699999996},{"$f":"VALUE(FIXED(EXP(K$4*-1*'PM2.5 reduction'!K239),9))","v":0.99998738300000001},{"$f":"VALUE(FIXED(EXP(L$4*-1*'PM2.5 reduction'!L239),9))","v":0.999992557},{"$f":"VALUE(FIXED(EXP(M$4*-1*'PM2.5 reduction'!M239),9))","v":0.999992557},{"$f":"VALUE(FIXED(EXP(N$4*-1*'PM2.5 reduction'!N239),9))","v":0.99997985899999997},{"$f":"VALUE(FIXED(EXP(O$4*-1*'PM2.5 reduction'!O239),9))","v":0.99998672300000002},{"$f":"VALUE(FIXED(EXP(P$4*-1*'PM2.5 reduction'!P239),9))","v":0.99997586100000002},{"$f":"VALUE(FIXED(EXP(Q$4*-1*'PM2.5 reduction'!Q239),9))","v":0.99999155399999995},{"$f":"VALUE(FIXED(EXP(R$4*-1*'PM2.5 reduction'!R239),9))","v":0.99997466899999998},{"$f":"VALUE(FIXED(EXP(S$4*-1*'PM2.5 reduction'!S239),9))","v":0.99996928399999996},{"$f":"VALUE(FIXED(EXP(T$4*-1*'PM2.5 reduction'!T239),9))","v":0.99995897199999995},{"$f":"VALUE(FIXED(EXP(U$4*-1*'PM2.5 reduction'!U239),9))","v":1},{"$f":"VALUE(FIXED(EXP(V$4*-1*'PM2.5 reduction'!V239),9))","v":0.99998165299999997},{"$f":"VALUE(FIXED(EXP(W$4*-1*'PM2.5 reduction'!W239),9))","v":0.99998512399999995},{"$f":"VALUE(FIXED(EXP(X$4*-1*'PM2.5 reduction'!X239),9))","v":0.99998512399999995},{"$f":"VALUE(FIXED(EXP(Y$4*-1*'PM2.5 reduction'!Y239),9))","v":0.99998463900000001},{"$f":"VALUE(FIXED(EXP(Z$4*-1*'PM2.5 reduction'!Z239),9))","v":0.99996140600000005},{"$f":"VALUE(FIXED(EXP(AA$4*-1*'PM2.5 reduction'!AA239),9))","v":0.99997412100000005},{"$f":"VALUE(FIXED(EXP(AB$4*-1*'PM2.5 reduction'!AB239),9))","v":0.99997955900000002},{"$f":"VALUE(FIXED(EXP(AC$4*-1*'PM2.5 reduction'!AC239),9))","v":0.99997150899999998},{"$f":"VALUE(FIXED(EXP(AD$4*-1*'PM2.5 reduction'!AD239),9))","v":0.99999155699999998},{"$f":"VALUE(FIXED(EXP(AE$4*-1*'PM2.5 reduction'!AE239),9))","v":0.99999072200000005},{"$f":"VALUE(FIXED(EXP(AF$4*-1*'PM2.5 reduction'!AF239),9))","v":0.99998958500000001},{"$f":"VALUE(FIXED(EXP(AG$4*-1*'PM2.5 reduction'!AG239),9))","v":0.99999072200000005},{"$f":"VALUE(FIXED(EXP(AH$4*-1*'PM2.5 reduction'!AH239),9))","v":0.99998099500000004},{"$f":"VALUE(FIXED(EXP(AI$4*-1*'PM2.5 reduction'!AI239),9))","v":0.99996526100000005},{"$f":"VALUE(FIXED(EXP(AJ$4*-1*'PM2.5 reduction'!AJ239),9))","v":0.99998463900000001},{"$f":"VALUE(FIXED(EXP(AK$4*-1*'PM2.5 reduction'!AK239),9))","v":0.99999356299999997},{"$f":"VALUE(FIXED(EXP(AL$4*-1*'PM2.5 reduction'!AL239),9))","v":0.99999080600000001},{"$f":"VALUE(FIXED(EXP(AM$4*-1*'PM2.5 reduction'!AM239),9))","v":0.99997908400000002},{"$f":"VALUE(FIXED(EXP(AN$4*-1*'PM2.5 reduction'!AN239),9))","v":1},{"$f":"VALUE(FIXED(EXP(AO$4*-1*'PM2.5 reduction'!AO239),9))","v":1},{"$f":"VALUE(FIXED(EXP(AP$4*-1*'PM2.5 reduction'!AP239),9))","v":0.99999051400000005},{"$f":"VALUE(FIXED(EXP(AQ$4*-1*'PM2.5 reduction'!AQ239),9))","v":0.99998134699999996},{"$f":"VALUE(FIXED(EXP(AR$4*-1*'PM2.5 reduction'!AR239),9))","v":0.999975583},{"$f":"VALUE(FIXED(EXP(AS$4*-1*'PM2.5 reduction'!AS239),9))","v":0.99999558499999996},{"$f":"VALUE(FIXED(EXP(AT$4*-1*'PM2.5 reduction'!AT239),9))","v":1},{"$f":"VALUE(FIXED(EXP(AU$4*-1*'PM2.5 reduction'!AU239),9))","v":1},{"$f":"VALUE(FIXED(EXP(AV$4*-1*'PM2.5 reduction'!AV239),9))","v":0.99998762399999996},{"$f":"VALUE(FIXED(EXP(AW$4*-1*'PM2.5 reduction'!AW239),9))","v":0.99998243099999995},{"$f":"VALUE(FIXED(EXP(AX$4*-1*'PM2.5 reduction'!AX239),9))","v":0.99998861500000003},{"$f":"VALUE(FIXED(EXP(AY$4*-1*'PM2.5 reduction'!AY239),9))","v":0.99998615400000002},{"$f":"VALUE(FIXED(EXP(AZ$4*-1*'PM2.5 reduction'!AZ239),9))","v":0.99998738300000001},{"$f":"VALUE(FIXED(EXP(BA$4*-1*'PM2.5 reduction'!BA239),9))","v":0.99998654499999995},{"$f":"VALUE(FIXED(EXP(BB$4*-1*'PM2.5 reduction'!BB239),9))","v":0.99998480599999995},{"$f":"VALUE(FIXED(EXP(BC$4*-1*'PM2.5 reduction'!BC239),9))","v":1}]
[null,"Male 45-49",{"$f":"VALUE(FIXED(EXP(C$4*-1*'PM2.5 reduction'!C240),9))","v":0.99996892599999998},{"$f":"VALUE(FIXED(EXP(D$4*-1*'PM2.5 reduction'!D240),9))","v":0.99997988999999998},{"$f":"VALUE(FIXED(EXP(E$4*-1*'PM2.5 reduction'!E240),9))","v":0.99999374900000004},{"$f":"VALUE(FIXED(EXP(F$4*-1*'PM2.5 reduction'!F240),9))","v":0.999992769},{"$f":"VALUE(FIXED(EXP(G$4*-1*'PM2.5 reduction'!G240),9))","v":0.99999428000000001},{"$f":"VALUE(FIXED(EXP(H$4*-1*'PM2.5 reduction'!H240),9))","v":0.99998810400000004},{"$f":"VALUE(FIXED(EXP(I$4*-1*'PM2.5 reduction'!I240),9))","v":0.99999554099999999},{"$f":"VALUE(FIXED(EXP(J$4*-1*'PM2.5 reduction'!J240),9))","v":0.9999884},{"$f":"VALUE(FIXED(EXP(K$4*-1*'PM2.5 reduction'!K240),9))","v":0.99998664199999998},{"$f":"VALUE(FIXED(EXP(L$4*-1*'PM2.5 reduction'!L240),9))","v":0.99999268100000005},{"$f":"VALUE(FIXED(EXP(M$4*-1*'PM2.5 reduction'!M240),9))","v":0.99999268100000005},{"$f":"VALUE(FIXED(EXP(N$4*-1*'PM2.5 reduction'!N240),9))","v":0.99997992000000002},{"$f":"VALUE(FIXED(EXP(O$4*-1*'PM2.5 reduction'!O240),9))","v":0.999986716},{"$f":"VALUE(FIXED(EXP(P$4*-1*'PM2.5 reduction'!P240),9))","v":0.99997573100000003},{"$f":"VALUE(FIXED(EXP(Q$4*-1*'PM2.5 reduction'!Q240),9))","v":0.99999169899999996},{"$f":"VALUE(FIXED(EXP(R$4*-1*'PM2.5 reduction'!R240),9))","v":0.99997497000000002},{"$f":"VALUE(FIXED(EXP(S$4*-1*'PM2.5 reduction'!S240),9))","v":0.99997108899999998},{"$f":"VALUE(FIXED(EXP(T$4*-1*'PM2.5 reduction'!T240),9))","v":0.99996045499999997},{"$f":"VALUE(FIXED(EXP(U$4*-1*'PM2.5 reduction'!U240),9))","v":1},{"$f":"VALUE(FIXED(EXP(V$4*-1*'PM2.5 reduction'!V240),9))","v":0.99998117099999995},{"$f":"VALUE(FIXED(EXP(W$4*-1*'PM2.5 reduction'!W240),9))","v":0.99998539200000003},{"$f":"VALUE(FIXED(EXP(X$4*-1*'PM2.5 reduction'!X240),9))","v":0.99998539200000003},{"$f":"VALUE(FIXED(EXP(Y$4*-1*'PM2.5 reduction'!Y240),9))","v":0.99998444799999997},{"$f":"VALUE(FIXED(EXP(Z$4*-1*'PM2.5 reduction'!Z240),9))","v":0.99996246200000005},{"$f":"VALUE(FIXED(EXP(AA$4*-1*'PM2.5 reduction'!AA240),9))","v":0.99997499899999998},{"$f":"VALUE(FIXED(EXP(AB$4*-1*'PM2.5 reduction'!AB240),9))","v":0.99998054700000005},{"$f":"VALUE(FIXED(EXP(AC$4*-1*'PM2.5 reduction'!AC240),9))","v":0.999972572},{"$f":"VALUE(FIXED(EXP(AD$4*-1*'PM2.5 reduction'!AD240),9))","v":0.99999127600000004},{"$f":"VALUE(FIXED(EXP(AE$4*-1*'PM2.5 reduction'!AE240),9))","v":0.99999054300000001},{"$f":"VALUE(FIXED(EXP(AF$4*-1*'PM2.5 reduction'!AF240),9))","v":0.99998995300000004},{"$f":"VALUE(FIXED(EXP(AG$4*-1*'PM2.5 reduction'!AG240),9))","v":0.99999054300000001},{"$f":"VALUE(FIXED(EXP(AH$4*-1*'PM2.5 reduction'!AH240),9))","v":0.99998153899999997},{"$f":"VALUE(FIXED(EXP(AI$4*-1*'PM2.5 reduction'!AI240),9))","v":0.99996709299999997},{"$f":"VALUE(FIXED(EXP(AJ$4*-1*'PM2.5 reduction'!AJ240),9))","v":0.99998376499999997},{"$f":"VALUE(FIXED(EXP(AK$4*-1*'PM2.5 reduction'!AK240),9))","v":0.99999339399999998},{"$f":"VALUE(FIXED(EXP(AL$4*-1*'PM2.5 reduction'!AL240),9))","v":0.99999059300000004},{"$f":"VALUE(FIXED(EXP(AM$4*-1*'PM2.5 reduction'!AM240),9))","v":0.999979548},{"$f":"VALUE(FIXED(EXP(AN$4*-1*'PM2.5 reduction'!AN240),9))","v":1},{"$f":"VALUE(FIXED(EXP(AO$4*-1*'PM2.5 reduction'!AO240),9))","v":1},{"$f":"VALUE(FIXED(EXP(AP$4*-1*'PM2.5 reduction'!AP240),9))","v":0.99999066400000003},{"$f":"VALUE(FIXED(EXP(AQ$4*-1*'PM2.5 reduction'!AQ240),9))","v":0.999981491},{"$f":"VALUE(FIXED(EXP(AR$4*-1*'PM2.5 reduction'!AR240),9))","v":0.99997676599999996},{"$f":"VALUE(FIXED(EXP(AS$4*-1*'PM2.5 reduction'!AS240),9))","v":0.99999554099999999},{"$f":"VALUE(FIXED(EXP(AT$4*-1*'PM2.5 reduction'!AT240),9))","v":1},{"$f":"VALUE(FIXED(EXP(AU$4*-1*'PM2.5 reduction'!AU240),9))","v":1},{"$f":"VALUE(FIXED(EXP(AV$4*-1*'PM2.5 reduction'!AV240),9))","v":0.99998800399999999},{"$f":"VALUE(FIXED(EXP(AW$4*-1*'PM2.5 reduction'!AW240),9))","v":0.99998306800000003},{"$f":"VALUE(FIXED(EXP(AX$4*-1*'PM2.5 reduction'!AX240),9))","v":0.99998877900000005},{"$f":"VALUE(FIXED(EXP(AY$4*-1*'PM2.5 reduction'!AY240),9))","v":0.99998617400000001},{"$f":"VALUE(FIXED(EXP(AZ$4*-1*'PM2.5 reduction'!AZ240),9))","v":0.999987034},{"$f":"VALUE(FIXED(EXP(BA$4*-1*'PM2.5 reduction'!BA240),9))","v":0.99998670199999995},{"$f":"VALUE(FIXED(EXP(BB$4*-1*'PM2.5 reduction'!BB240),9))","v":0.99998517399999998},{"$f":"VALUE(FIXED(EXP(BC$4*-1*'PM2.5 reduction'!BC240),9))","v":1}]
[null,"Male 50-54",{"$f":"VALUE(FIXED(EXP(C$4*-1*'PM2.5 reduction'!C241),9))","v":0.99996924899999995},{"$f":"VALUE(FIXED(EXP(D$4*-1*'PM2.5 reduction'!D241),9))","v":0.99997986999999999},{"$f":"VALUE(FIXED(EXP(E$4*-1*'PM2.5 reduction'!E241),9))","v":0.99999365500000004},{"$f":"VALUE(FIXED(EXP(F$4*-1*'PM2.5 reduction'!F241),9))","v":0.99999252800000005},{"$f":"VALUE(FIXED(EXP(G$4*-1*'PM2.5 reduction'!G241),9))","v":0.99999435000000003},{"$f":"VALUE(FIXED(EXP(H$4*-1*'PM2.5 reduction'!H241),9))","v":0.99998792700000005},{"$f":"VALUE(FIXED(EXP(I$4*-1*'PM2.5 reduction'!I241),9))","v":0.99999552899999999},{"$f":"VALUE(FIXED(EXP(J$4*-1*'PM2.5 reduction'!J241),9))","v":0.99998822399999998},{"$f":"VALUE(FIXED(EXP(K$4*-1*'PM2.5 reduction'!K241),9))","v":0.99998707799999997},{"$f":"VALUE(FIXED(EXP(L$4*-1*'PM2.5 reduction'!L241),9))","v":0.999992467},{"$f":"VALUE(FIXED(EXP(M$4*-1*'PM2.5 reduction'!M241),9))","v":0.999992467},{"$f":"VALUE(FIXED(EXP(N$4*-1*'PM2.5 reduction'!N241),9))","v":0.99998018200000005},{"$f":"VALUE(FIXED(EXP(O$4*-1*'PM2.5 reduction'!O241),9))","v":0.99998619300000002},{"$f":"VALUE(FIXED(EXP(P$4*-1*'PM2.5 reduction'!P241),9))","v":0.99997525899999995},{"$f":"VALUE(FIXED(EXP(Q$4*-1*'PM2.5 reduction'!Q241),9))","v":0.99999171600000003},{"$f":"VALUE(FIXED(EXP(R$4*-1*'PM2.5 reduction'!R241),9))","v":0.99997511699999997},{"$f":"VALUE(FIXED(EXP(S$4*-1*'PM2.5 reduction'!S241),9))","v":0.99997093800000003},{"$f":"VALUE(FIXED(EXP(T$4*-1*'PM2.5 reduction'!T241),9))","v":0.99996070999999997},{"$f":"VALUE(FIXED(EXP(U$4*-1*'PM2.5 reduction'!U241),9))","v":1},{"$f":"VALUE(FIXED(EXP(V$4*-1*'PM2.5 reduction'!V241),9))","v":0.99998104899999996},{"$f":"VALUE(FIXED(EXP(W$4*-1*'PM2.5 reduction'!W241),9))","v":0.99998556400000005},{"$f":"VALUE(FIXED(EXP(X$4*-1*'PM2.5 reduction'!X241),9))","v":0.99998556400000005},{"$f":"VALUE(FIXED(EXP(Y$4*-1*'PM2.5 reduction'!Y241),9))","v":0.99998411600000003},{"$f":"VALUE(FIXED(EXP(Z$4*-1*'PM2.5 reduction'!Z241),9))","v":0.99996354499999995},{"$f":"VALUE(FIXED(EXP(AA$4*-1*'PM2.5 reduction'!AA241),9))","v":0.99997540299999998},{"$f":"VALUE(FIXED(EXP(AB$4*-1*'PM2.5 reduction'!AB241),9))","v":0.99998059900000003},{"$f":"VALUE(FIXED(EXP(AC$4*-1*'PM2.5 reduction'!AC241),9))","v":0.99997328699999999},{"$f":"VALUE(FIXED(EXP(AD$4*-1*'PM2.5 reduction'!AD241),9))","v":0.99999130899999999},{"$f":"VALUE(FIXED(EXP(AE$4*-1*'PM2.5 reduction'!AE241),9))","v":0.999990351},{"$f":"VALUE(FIXED(EXP(AF$4*-1*'PM2.5 reduction'!AF241),9))","v":0.99998953000000002},{"$f":"VALUE(FIXED(EXP(AG$4*-1*'PM2.5 reduction'!AG241),9))","v":0.999990351},{"$f":"VALUE(FIXED(EXP(AH$4*-1*'PM2.5 reduction'!AH241),9))","v":0.99998111300000003},{"$f":"VALUE(FIXED(EXP(AI$4*-1*'PM2.5 reduction'!AI241),9))","v":0.99996740799999995},{"$f":"VALUE(FIXED(EXP(AJ$4*-1*'PM2.5 reduction'!AJ241),9))","v":0.99998427099999998},{"$f":"VALUE(FIXED(EXP(AK$4*-1*'PM2.5 reduction'!AK241),9))","v":0.99999387299999998},{"$f":"VALUE(FIXED(EXP(AL$4*-1*'PM2.5 reduction'!AL241),9))","v":0.99999067900000005},{"$f":"VALUE(FIXED(EXP(AM$4*-1*'PM2.5 reduction'!AM241),9))","v":0.99997903499999996},{"$f":"VALUE(FIXED(EXP(AN$4*-1*'PM2.5 reduction'!AN241),9))","v":1},{"$f":"VALUE(FIXED(EXP(AO$4*-1*'PM2.5 reduction'!AO241),9))","v":1},{"$f":"VALUE(FIXED(EXP(AP$4*-1*'PM2.5 reduction'!AP241),9))","v":0.99999069500000004},{"$f":"VALUE(FIXED(EXP(AQ$4*-1*'PM2.5 reduction'!AQ241),9))","v":0.99998150200000002},{"$f":"VALUE(FIXED(EXP(AR$4*-1*'PM2.5 reduction'!AR241),9))","v":0.99997709599999995},{"$f":"VALUE(FIXED(EXP(AS$4*-1*'PM2.5 reduction'!AS241),9))","v":0.99999552899999999},{"$f":"VALUE(FIXED(EXP(AT$4*-1*'PM2.5 reduction'!AT241),9))","v":1},{"$f":"VALUE(FIXED(EXP(AU$4*-1*'PM2.5 reduction'!AU241),9))","v":1},{"$f":"VALUE(FIXED(EXP(AV$4*-1*'PM2.5 reduction'!AV241),9))","v":0.99998775200000001},{"$f":"VALUE(FIXED(EXP(AW$4*-1*'PM2.5 reduction'!AW241),9))","v":0.999982806},{"$f":"VALUE(FIXED(EXP(AX$4*-1*'PM2.5 reduction'!AX241),9))","v":0.99998845000000003},{"$f":"VALUE(FIXED(EXP(AY$4*-1*'PM2.5 reduction'!AY241),9))","v":0.999986755},{"$f":"VALUE(FIXED(EXP(AZ$4*-1*'PM2.5 reduction'!AZ241),9))","v":0.99998774599999996},{"$f":"VALUE(FIXED(EXP(BA$4*-1*'PM2.5 reduction'!BA241),9))","v":0.99998684900000001},{"$f":"VALUE(FIXED(EXP(BB$4*-1*'PM2.5 reduction'!BB241),9))","v":0.99998548600000003},{"$f":"VALUE(FIXED(EXP(BC$4*-1*'PM2.5 reduction'!BC241),9))","v":1}]
[null,"Male 55-59",{"$f":"VALUE(FIXED(EXP(C$4*-1*'PM2.5 reduction'!C242),9))","v":0.99996992399999995},{"$f":"VALUE(FIXED(EXP(D$4*-1*'PM2.5 reduction'!D242),9))","v":0.99997984600000001},{"$f":"VALUE(FIXED(EXP(E$4*-1*'PM2.5 reduction'!E242),9))","v":0.99999350600000003},{"$f":"VALUE(FIXED(EXP(F$4*-1*'PM2.5 reduction'!F242),9))","v":0.99999237200000002},{"$f":"VALUE(FIXED(EXP(G$4*-1*'PM2.5 reduction'!G242),9))","v":0.99999433699999996},{"$f":"VALUE(FIXED(EXP(H$4*-1*'PM2.5 reduction'!H242),9))","v":0.99998785300000004},{"$f":"VALUE(FIXED(EXP(I$4*-1*'PM2.5 reduction'!I242),9))","v":0.99999548800000004},{"$f":"VALUE(FIXED(EXP(J$4*-1*'PM2.5 reduction'!J242),9))","v":0.99998887000000003},{"$f":"VALUE(FIXED(EXP(K$4*-1*'PM2.5 reduction'!K242),9))","v":0.99998832500000001},{"$f":"VALUE(FIXED(EXP(L$4*-1*'PM2.5 reduction'!L242),9))","v":0.999992616},{"$f":"VALUE(FIXED(EXP(M$4*-1*'PM2.5 reduction'!M242),9))","v":0.999992616},{"$f":"VALUE(FIXED(EXP(N$4*-1*'PM2.5 reduction'!N242),9))","v":0.99997969900000006},{"$f":"VALUE(FIXED(EXP(O$4*-1*'PM2.5 reduction'!O242),9))","v":0.99998651500000002},{"$f":"VALUE(FIXED(EXP(P$4*-1*'PM2.5 reduction'!P242),9))","v":0.99997552999999995},{"$f":"VALUE(FIXED(EXP(Q$4*-1*'PM2.5 reduction'!Q242),9))","v":0.999992031},{"$f":"VALUE(FIXED(EXP(R$4*-1*'PM2.5 reduction'!R242),9))","v":0.99997512099999997},{"$f":"VALUE(FIXED(EXP(S$4*-1*'PM2.5 reduction'!S242),9))","v":0.99997173800000005},{"$f":"VALUE(FIXED(EXP(T$4*-1*'PM2.5 reduction'!T242),9))","v":0.99996186899999995},{"$f":"VALUE(FIXED(EXP(U$4*-1*'PM2.5 reduction'!U242),9))","v":1},{"$f":"VALUE(FIXED(EXP(V$4*-1*'PM2.5 reduction'!V242),9))","v":0.999981232},{"$f":"VALUE(FIXED(EXP(W$4*-1*'PM2.5 reduction'!W242),9))","v":0.99998588300000002},{"$f":"VALUE(FIXED(EXP(X$4*-1*'PM2.5 reduction'!X242),9))","v":0.99998588300000002},{"$f":"VALUE(FIXED(EXP(Y$4*-1*'PM2.5 reduction'!Y242),9))","v":0.99998457900000004},{"$f":"VALUE(FIXED(EXP(Z$4*-1*'PM2.5 reduction'!Z242),9))","v":0.99996281600000003},{"$f":"VALUE(FIXED(EXP(AA$4*-1*'PM2.5 reduction'!AA242),9))","v":0.99997534799999999},{"$f":"VALUE(FIXED(EXP(AB$4*-1*'PM2.5 reduction'!AB242),9))","v":0.99998050199999999},{"$f":"VALUE(FIXED(EXP(AC$4*-1*'PM2.5 reduction'!AC242),9))","v":0.99997334699999996},{"$f":"VALUE(FIXED(EXP(AD$4*-1*'PM2.5 reduction'!AD242),9))","v":0.99999198300000003},{"$f":"VALUE(FIXED(EXP(AE$4*-1*'PM2.5 reduction'!AE242),9))","v":0.99999121899999999},{"$f":"VALUE(FIXED(EXP(AF$4*-1*'PM2.5 reduction'!AF242),9))","v":0.99998873600000004},{"$f":"VALUE(FIXED(EXP(AG$4*-1*'PM2.5 reduction'!AG242),9))","v":0.99999121899999999},{"$f":"VALUE(FIXED(EXP(AH$4*-1*'PM2.5 reduction'!AH242),9))","v":0.99998092299999997},{"$f":"VALUE(FIXED(EXP(AI$4*-1*'PM2.5 reduction'!AI242),9))","v":0.99996792899999998},{"$f":"VALUE(FIXED(EXP(AJ$4*-1*'PM2.5 reduction'!AJ242),9))","v":0.99998437900000003},{"$f":"VALUE(FIXED(EXP(AK$4*-1*'PM2.5 reduction'!AK242),9))","v":0.99999341399999997},{"$f":"VALUE(FIXED(EXP(AL$4*-1*'PM2.5 reduction'!AL242),9))","v":0.99999129600000003},{"$f":"VALUE(FIXED(EXP(AM$4*-1*'PM2.5 reduction'!AM242),9))","v":0.99997882199999999},{"$f":"VALUE(FIXED(EXP(AN$4*-1*'PM2.5 reduction'!AN242),9))","v":1},{"$f":"VALUE(FIXED(EXP(AO$4*-1*'PM2.5 reduction'!AO242),9))","v":1},{"$f":"VALUE(FIXED(EXP(AP$4*-1*'PM2.5 reduction'!AP242),9))","v":0.99999092499999997},{"$f":"VALUE(FIXED(EXP(AQ$4*-1*'PM2.5 reduction'!AQ242),9))","v":0.99998175499999997},{"$f":"VALUE(FIXED(EXP(AR$4*-1*'PM2.5 reduction'!AR242),9))","v":0.99997732900000003},{"$f":"VALUE(FIXED(EXP(AS$4*-1*'PM2.5 reduction'!AS242),9))","v":0.99999548800000004},{"$f":"VALUE(FIXED(EXP(AT$4*-1*'PM2.5 reduction'!AT242),9))","v":1},{"$f":"VALUE(FIXED(EXP(AU$4*-1*'PM2.5 reduction'!AU242),9))","v":1},{"$f":"VALUE(FIXED(EXP(AV$4*-1*'PM2.5 reduction'!AV242),9))","v":0.99998751200000002},{"$f":"VALUE(FIXED(EXP(AW$4*-1*'PM2.5 reduction'!AW242),9))","v":0.99998246700000004},{"$f":"VALUE(FIXED(EXP(AX$4*-1*'PM2.5 reduction'!AX242),9))","v":0.99998895899999996},{"$f":"VALUE(FIXED(EXP(AY$4*-1*'PM2.5 reduction'!AY242),9))","v":0.99998651699999996},{"$f":"VALUE(FIXED(EXP(AZ$4*-1*'PM2.5 reduction'!AZ242),9))","v":0.99998708000000003},{"$f":"VALUE(FIXED(EXP(BA$4*-1*'PM2.5 reduction'!BA242),9))","v":0.999987124},{"$f":"VALUE(FIXED(EXP(BB$4*-1*'PM2.5 reduction'!BB242),9))","v":0.99998596100000003},{"$f":"VALUE(FIXED(EXP(BC$4*-1*'PM2.5 reduction'!BC242),9))","v":1}]
[null,"Male 60-64",{"$f":"VALUE(FIXED(EXP(C$4*-1*'PM2.5 reduction'!C243),9))","v":0.99996923100000001},{"$f":"VALUE(FIXED(EXP(D$4*-1*'PM2.5 reduction'!D243),9))","v":0.99997977800000004},{"$f":"VALUE(FIXED(EXP(E$4*-1*'PM2.5 reduction'!E243),9))","v":0.99999333300000004},{"$f":"VALUE(FIXED(EXP(F$4*-1*'PM2.5 reduction'!F243),9))","v":0.99999237299999999},{"$f":"VALUE(FIXED(EXP(G$4*-1*'PM2.5 reduction'!G243),9))","v":0.99999425399999997},{"$f":"VALUE(FIXED(EXP(H$4*-1*'PM2.5 reduction'!H243),9))","v":0.99998811200000004},{"$f":"VALUE(FIXED(EXP(I$4*-1*'PM2.5 reduction'!I243),9))","v":0.99999545199999995},{"$f":"VALUE(FIXED(EXP(J$4*-1*'PM2.5 reduction'!J243),9))","v":0.99998889000000002},{"$f":"VALUE(FIXED(EXP(K$4*-1*'PM2.5 reduction'!K243),9))","v":0.99998823299999995},{"$f":"VALUE(FIXED(EXP(L$4*-1*'PM2.5 reduction'!L243),9))","v":0.99999265199999998},{"$f":"VALUE(FIXED(EXP(M$4*-1*'PM2.5 reduction'!M243),9))","v":0.99999265199999998},{"$f":"VALUE(FIXED(EXP(N$4*-1*'PM2.5 reduction'!N243),9))","v":0.99997992599999996},{"$f":"VALUE(FIXED(EXP(O$4*-1*'PM2.5 reduction'!O243),9))","v":0.99998716899999995},{"$f":"VALUE(FIXED(EXP(P$4*-1*'PM2.5 reduction'!P243),9))","v":0.999975524},{"$f":"VALUE(FIXED(EXP(Q$4*-1*'PM2.5 reduction'!Q243),9))","v":0.99999257100000005},{"$f":"VALUE(FIXED(EXP(R$4*-1*'PM2.5 reduction'!R243),9))","v":0.99997500699999997},{"$f":"VALUE(FIXED(EXP(S$4*-1*'PM2.5 reduction'!S243),9))","v":0.99997195900000002},{"$f":"VALUE(FIXED(EXP(T$4*-1*'PM2.5 reduction'!T243),9))","v":0.99996212200000001},{"$f":"VALUE(FIXED(EXP(U$4*-1*'PM2.5 reduction'!U243),9))","v":1},{"$f":"VALUE(FIXED(EXP(V$4*-1*'PM2.5 reduction'!V243),9))","v":0.999980973},{"$f":"VALUE(FIXED(EXP(W$4*-1*'PM2.5 reduction'!W243),9))","v":0.99998644699999995},{"$f":"VALUE(FIXED(EXP(X$4*-1*'PM2.5 reduction'!X243),9))","v":0.99998644699999995},{"$f":"VALUE(FIXED(EXP(Y$4*-1*'PM2.5 reduction'!Y243),9))","v":0.99998464499999995},{"$f":"VALUE(FIXED(EXP(Z$4*-1*'PM2.5 reduction'!Z243),9))","v":0.999963343},{"$f":"VALUE(FIXED(EXP(AA$4*-1*'PM2.5 reduction'!AA243),9))","v":0.99997527200000003},{"$f":"VALUE(FIXED(EXP(AB$4*-1*'PM2.5 reduction'!AB243),9))","v":0.99998058499999998},{"$f":"VALUE(FIXED(EXP(AC$4*-1*'PM2.5 reduction'!AC243),9))","v":0.99997331599999995},{"$f":"VALUE(FIXED(EXP(AD$4*-1*'PM2.5 reduction'!AD243),9))","v":0.99999173200000002},{"$f":"VALUE(FIXED(EXP(AE$4*-1*'PM2.5 reduction'!AE243),9))","v":0.99999094300000002},{"$f":"VALUE(FIXED(EXP(AF$4*-1*'PM2.5 reduction'!AF243),9))","v":0.99998994900000004},{"$f":"VALUE(FIXED(EXP(AG$4*-1*'PM2.5 reduction'!AG243),9))","v":0.99999094300000002},{"$f":"VALUE(FIXED(EXP(AH$4*-1*'PM2.5 reduction'!AH243),9))","v":0.999980753},{"$f":"VALUE(FIXED(EXP(AI$4*-1*'PM2.5 reduction'!AI243),9))","v":0.999967842},{"$f":"VALUE(FIXED(EXP(AJ$4*-1*'PM2.5 reduction'!AJ243),9))","v":0.99998559499999995},{"$f":"VALUE(FIXED(EXP(AK$4*-1*'PM2.5 reduction'!AK243),9))","v":0.99999331400000002},{"$f":"VALUE(FIXED(EXP(AL$4*-1*'PM2.5 reduction'!AL243),9))","v":0.99999121000000002},{"$f":"VALUE(FIXED(EXP(AM$4*-1*'PM2.5 reduction'!AM243),9))","v":0.99997878600000001},{"$f":"VALUE(FIXED(EXP(AN$4*-1*'PM2.5 reduction'!AN243),9))","v":1},{"$f":"VALUE(FIXED(EXP(AO$4*-1*'PM2.5 reduction'!AO243),9))","v":1},{"$f":"VALUE(FIXED(EXP(AP$4*-1*'PM2.5 reduction'!AP243),9))","v":0.99999109399999997},{"$f":"VALUE(FIXED(EXP(AQ$4*-1*'PM2.5 reduction'!AQ243),9))","v":0.99998173899999998},{"$f":"VALUE(FIXED(EXP(AR$4*-1*'PM2.5 reduction'!AR243),9))","v":0.999977593},{"$f":"VALUE(FIXED(EXP(AS$4*-1*'PM2.5 reduction'!AS243),9))","v":0.99999545199999995},{"$f":"VALUE(FIXED(EXP(AT$4*-1*'PM2.5 reduction'!AT243),9))","v":1},{"$f":"VALUE(FIXED(EXP(AU$4*-1*'PM2.5 reduction'!AU243),9))","v":1},{"$f":"VALUE(FIXED(EXP(AV$4*-1*'PM2.5 reduction'!AV243),9))","v":0.99998751799999996},{"$f":"VALUE(FIXED(EXP(AW$4*-1*'PM2.5 reduction'!AW243),9))","v":0.99998211000000004},{"$f":"VALUE(FIXED(EXP(AX$4*-1*'PM2.5 reduction'!AX243),9))","v":0.99998902499999998},{"$f":"VALUE(FIXED(EXP(AY$4*-1*'PM2.5 reduction'!AY243),9))","v":0.99998710099999999},{"$f":"VALUE(FIXED(EXP(AZ$4*-1*'PM2.5 reduction'!AZ243),9))","v":0.99998765000000001},{"$f":"VALUE(FIXED(EXP(BA$4*-1*'PM2.5 reduction'!BA243),9))","v":0.99998648899999998},{"$f":"VALUE(FIXED(EXP(BB$4*-1*'PM2.5 reduction'!BB243),9))","v":0.99998643600000003},{"$f":"VALUE(FIXED(EXP(BC$4*-1*'PM2.5 reduction'!BC243),9))","v":1}]
[null,"Male 65-69",{"$f":"VALUE(FIXED(EXP(C$4*-1*'PM2.5 reduction'!C244),9))","v":0.99996995700000002},{"$f":"VALUE(FIXED(EXP(D$4*-1*'PM2.5 reduction'!D244),9))","v":0.99998047899999998},{"$f":"VALUE(FIXED(EXP(E$4*-1*'PM2.5 reduction'!E244),9))","v":0.99999368799999999},{"$f":"VALUE(FIXED(EXP(F$4*-1*'PM2.5 reduction'!F244),9))","v":0.99999218700000003},{"$f":"VALUE(FIXED(EXP(G$4*-1*'PM2.5 reduction'!G244),9))","v":0.99999420100000003},{"$f":"VALUE(FIXED(EXP(H$4*-1*'PM2.5 reduction'!H244),9))","v":0.99998812500000001},{"$f":"VALUE(FIXED(EXP(I$4*-1*'PM2.5 reduction'!I244),9))","v":0.99999556300000003},{"$f":"VALUE(FIXED(EXP(J$4*-1*'PM2.5 reduction'!J244),9))","v":0.99998800099999996},{"$f":"VALUE(FIXED(EXP(K$4*-1*'PM2.5 reduction'!K244),9))","v":0.99998848600000001},{"$f":"VALUE(FIXED(EXP(L$4*-1*'PM2.5 reduction'!L244),9))","v":0.99999273200000005},{"$f":"VALUE(FIXED(EXP(M$4*-1*'PM2.5 reduction'!M244),9))","v":0.99999273200000005},{"$f":"VALUE(FIXED(EXP(N$4*-1*'PM2.5 reduction'!N244),9))","v":0.99997947499999995},{"$f":"VALUE(FIXED(EXP(O$4*-1*'PM2.5 reduction'!O244),9))","v":0.99998720600000002},{"$f":"VALUE(FIXED(EXP(P$4*-1*'PM2.5 reduction'!P244),9))","v":0.99997561400000001},{"$f":"VALUE(FIXED(EXP(Q$4*-1*'PM2.5 reduction'!Q244),9))","v":0.99999308600000003},{"$f":"VALUE(FIXED(EXP(R$4*-1*'PM2.5 reduction'!R244),9))","v":0.99997494300000001},{"$f":"VALUE(FIXED(EXP(S$4*-1*'PM2.5 reduction'!S244),9))","v":0.999972482},{"$f":"VALUE(FIXED(EXP(T$4*-1*'PM2.5 reduction'!T244),9))","v":0.99996262400000002},{"$f":"VALUE(FIXED(EXP(U$4*-1*'PM2.5 reduction'!U244),9))","v":1},{"$f":"VALUE(FIXED(EXP(V$4*-1*'PM2.5 reduction'!V244),9))","v":0.99998037799999995},{"$f":"VALUE(FIXED(EXP(W$4*-1*'PM2.5 reduction'!W244),9))","v":0.99998653999999998},{"$f":"VALUE(FIXED(EXP(X$4*-1*'PM2.5 reduction'!X244),9))","v":0.99998653999999998},{"$f":"VALUE(FIXED(EXP(Y$4*-1*'PM2.5 reduction'!Y244),9))","v":0.999984184},{"$f":"VALUE(FIXED(EXP(Z$4*-1*'PM2.5 reduction'!Z244),9))","v":0.99996344199999998},{"$f":"VALUE(FIXED(EXP(AA$4*-1*'PM2.5 reduction'!AA244),9))","v":0.99997534799999999},{"$f":"VALUE(FIXED(EXP(AB$4*-1*'PM2.5 reduction'!AB244),9))","v":0.99998137499999995},{"$f":"VALUE(FIXED(EXP(AC$4*-1*'PM2.5 reduction'!AC244),9))","v":0.999973538},{"$f":"VALUE(FIXED(EXP(AD$4*-1*'PM2.5 reduction'!AD244),9))","v":0.99999179699999996},{"$f":"VALUE(FIXED(EXP(AE$4*-1*'PM2.5 reduction'!AE244),9))","v":0.99999095800000004},{"$f":"VALUE(FIXED(EXP(AF$4*-1*'PM2.5 reduction'!AF244),9))","v":0.99998916699999996},{"$f":"VALUE(FIXED(EXP(AG$4*-1*'PM2.5 reduction'!AG244),9))","v":0.99999095800000004},{"$f":"VALUE(FIXED(EXP(AH$4*-1*'PM2.5 reduction'!AH244),9))","v":0.999980812},{"$f":"VALUE(FIXED(EXP(AI$4*-1*'PM2.5 reduction'!AI244),9))","v":0.99996795800000005},{"$f":"VALUE(FIXED(EXP(AJ$4*-1*'PM2.5 reduction'!AJ244),9))","v":0.99998486900000005},{"$f":"VALUE(FIXED(EXP(AK$4*-1*'PM2.5 reduction'!AK244),9))","v":0.99999332100000005},{"$f":"VALUE(FIXED(EXP(AL$4*-1*'PM2.5 reduction'!AL244),9))","v":0.99999144900000003},{"$f":"VALUE(FIXED(EXP(AM$4*-1*'PM2.5 reduction'!AM244),9))","v":0.99997894399999998},{"$f":"VALUE(FIXED(EXP(AN$4*-1*'PM2.5 reduction'!AN244),9))","v":1},{"$f":"VALUE(FIXED(EXP(AO$4*-1*'PM2.5 reduction'!AO244),9))","v":1},{"$f":"VALUE(FIXED(EXP(AP$4*-1*'PM2.5 reduction'!AP244),9))","v":0.99999144799999995},{"$f":"VALUE(FIXED(EXP(AQ$4*-1*'PM2.5 reduction'!AQ244),9))","v":0.999981864},{"$f":"VALUE(FIXED(EXP(AR$4*-1*'PM2.5 reduction'!AR244),9))","v":0.999978068},{"$f":"VALUE(FIXED(EXP(AS$4*-1*'PM2.5 reduction'!AS244),9))","v":0.99999556300000003},{"$f":"VALUE(FIXED(EXP(AT$4*-1*'PM2.5 reduction'!AT244),9))","v":1},{"$f":"VALUE(FIXED(EXP(AU$4*-1*'PM2.5 reduction'!AU244),9))","v":1},{"$f":"VALUE(FIXED(EXP(AV$4*-1*'PM2.5 reduction'!AV244),9))","v":0.999987768},{"$f":"VALUE(FIXED(EXP(AW$4*-1*'PM2.5 reduction'!AW244),9))","v":0.99998209000000005},{"$f":"VALUE(FIXED(EXP(AX$4*-1*'PM2.5 reduction'!AX244),9))","v":0.99998789700000001},{"$f":"VALUE(FIXED(EXP(AY$4*-1*'PM2.5 reduction'!AY244),9))","v":0.99998735400000005},{"$f":"VALUE(FIXED(EXP(AZ$4*-1*'PM2.5 reduction'!AZ244),9))","v":0.999988031},{"$f":"VALUE(FIXED(EXP(BA$4*-1*'PM2.5 reduction'!BA244),9))","v":0.99998744399999995},{"$f":"VALUE(FIXED(EXP(BB$4*-1*'PM2.5 reduction'!BB244),9))","v":0.99998663099999996},{"$f":"VALUE(FIXED(EXP(BC$4*-1*'PM2.5 reduction'!BC244),9))","v":1}]
[null,"Male 70-74",{"$f":"VALUE(FIXED(EXP(C$4*-1*'PM2.5 reduction'!C245),9))","v":0.99997042999999997},{"$f":"VALUE(FIXED(EXP(D$4*-1*'PM2.5 reduction'!D245),9))","v":0.99998118899999999},{"$f":"VALUE(FIXED(EXP(E$4*-1*'PM2.5 reduction'!E245),9))","v":0.99999342099999999},{"$f":"VALUE(FIXED(EXP(F$4*-1*'PM2.5 reduction'!F245),9))","v":0.99999193600000003},{"$f":"VALUE(FIXED(EXP(G$4*-1*'PM2.5 reduction'!G245),9))","v":0.99999426199999997},{"$f":"VALUE(FIXED(EXP(H$4*-1*'PM2.5 reduction'!H245),9))","v":0.99998830100000002},{"$f":"VALUE(FIXED(EXP(I$4*-1*'PM2.5 reduction'!I245),9))","v":0.99999554499999999},{"$f":"VALUE(FIXED(EXP(J$4*-1*'PM2.5 reduction'!J245),9))","v":0.99998862600000005},{"$f":"VALUE(FIXED(EXP(K$4*-1*'PM2.5 reduction'!K245),9))","v":0.99998936999999999},{"$f":"VALUE(FIXED(EXP(L$4*-1*'PM2.5 reduction'!L245),9))","v":0.99999281900000003},{"$f":"VALUE(FIXED(EXP(M$4*-1*'PM2.5 reduction'!M245),9))","v":0.99999281900000003},{"$f":"VALUE(FIXED(EXP(N$4*-1*'PM2.5 reduction'!N245),9))","v":0.999979866},{"$f":"VALUE(FIXED(EXP(O$4*-1*'PM2.5 reduction'!O245),9))","v":0.99998749200000003},{"$f":"VALUE(FIXED(EXP(P$4*-1*'PM2.5 reduction'!P245),9))","v":0.999975324},{"$f":"VALUE(FIXED(EXP(Q$4*-1*'PM2.5 reduction'!Q245),9))","v":0.99999417999999995},{"$f":"VALUE(FIXED(EXP(R$4*-1*'PM2.5 reduction'!R245),9))","v":0.999974951},{"$f":"VALUE(FIXED(EXP(S$4*-1*'PM2.5 reduction'!S245),9))","v":0.99997318199999996},{"$f":"VALUE(FIXED(EXP(T$4*-1*'PM2.5 reduction'!T245),9))","v":0.99996322800000004},{"$f":"VALUE(FIXED(EXP(U$4*-1*'PM2.5 reduction'!U245),9))","v":1},{"$f":"VALUE(FIXED(EXP(V$4*-1*'PM2.5 reduction'!V245),9))","v":0.99998034000000002},{"$f":"VALUE(FIXED(EXP(W$4*-1*'PM2.5 reduction'!W245),9))","v":0.99998668199999996},{"$f":"VALUE(FIXED(EXP(X$4*-1*'PM2.5 reduction'!X245),9))","v":0.99998668199999996},{"$f":"VALUE(FIXED(EXP(Y$4*-1*'PM2.5 reduction'!Y245),9))","v":0.99998454400000003},{"$f":"VALUE(FIXED(EXP(Z$4*-1*'PM2.5 reduction'!Z245),9))","v":0.99996360100000004},{"$f":"VALUE(FIXED(EXP(AA$4*-1*'PM2.5 reduction'!AA245),9))","v":0.999975791},{"$f":"VALUE(FIXED(EXP(AB$4*-1*'PM2.5 reduction'!AB245),9))","v":0.999982221},{"$f":"VALUE(FIXED(EXP(AC$4*-1*'PM2.5 reduction'!AC245),9))","v":0.99997397399999999},{"$f":"VALUE(FIXED(EXP(AD$4*-1*'PM2.5 reduction'!AD245),9))","v":0.99999181800000003},{"$f":"VALUE(FIXED(EXP(AE$4*-1*'PM2.5 reduction'!AE245),9))","v":0.999990767},{"$f":"VALUE(FIXED(EXP(AF$4*-1*'PM2.5 reduction'!AF245),9))","v":0.99998993800000002},{"$f":"VALUE(FIXED(EXP(AG$4*-1*'PM2.5 reduction'!AG245),9))","v":0.999990767},{"$f":"VALUE(FIXED(EXP(AH$4*-1*'PM2.5 reduction'!AH245),9))","v":0.99998131400000001},{"$f":"VALUE(FIXED(EXP(AI$4*-1*'PM2.5 reduction'!AI245),9))","v":0.999968627},{"$f":"VALUE(FIXED(EXP(AJ$4*-1*'PM2.5 reduction'!AJ245),9))","v":0.99998585699999998},{"$f":"VALUE(FIXED(EXP(AK$4*-1*'PM2.5 reduction'!AK245),9))","v":0.999993664},{"$f":"VALUE(FIXED(EXP(AL$4*-1*'PM2.5 reduction'!AL245),9))","v":0.99999155200000001},{"$f":"VALUE(FIXED(EXP(AM$4*-1*'PM2.5 reduction'!AM245),9))","v":0.99997921599999995},{"$f":"VALUE(FIXED(EXP(AN$4*-1*'PM2.5 reduction'!AN245),9))","v":1},{"$f":"VALUE(FIXED(EXP(AO$4*-1*'PM2.5 reduction'!AO245),9))","v":1},{"$f":"VALUE(FIXED(EXP(AP$4*-1*'PM2.5 reduction'!AP245),9))","v":0.99999173900000005},{"$f":"VALUE(FIXED(EXP(AQ$4*-1*'PM2.5 reduction'!AQ245),9))","v":0.99998195899999998},{"$f":"VALUE(FIXED(EXP(AR$4*-1*'PM2.5 reduction'!AR245),9))","v":0.99997864700000005},{"$f":"VALUE(FIXED(EXP(AS$4*-1*'PM2.5 reduction'!AS245),9))","v":0.99999554499999999},{"$f":"VALUE(FIXED(EXP(AT$4*-1*'PM2.5 reduction'!AT245),9))","v":1},{"$f":"VALUE(FIXED(EXP(AU$4*-1*'PM2.5 reduction'!AU245),9))","v":1},{"$f":"VALUE(FIXED(EXP(AV$4*-1*'PM2.5 reduction'!AV245),9))","v":0.999987866},{"$f":"VALUE(FIXED(EXP(AW$4*-1*'PM2.5 reduction'!AW245),9))","v":0.999982449},{"$f":"VALUE(FIXED(EXP(AX$4*-1*'PM2.5 reduction'!AX245),9))","v":0.99998847400000002},{"$f":"VALUE(FIXED(EXP(AY$4*-1*'PM2.5 reduction'!AY245),9))","v":0.99998759800000003},{"$f":"VALUE(FIXED(EXP(AZ$4*-1*'PM2.5 reduction'!AZ245),9))","v":0.99998832199999999},{"$f":"VALUE(FIXED(EXP(BA$4*-1*'PM2.5 reduction'!BA245),9))","v":0.999986559},{"$f":"VALUE(FIXED(EXP(BB$4*-1*'PM2.5 reduction'!BB245),9))","v":0.99998690199999996},{"$f":"VALUE(FIXED(EXP(BC$4*-1*'PM2.5 reduction'!BC245),9))","v":1}]
[null,"Male 75-79",{"$f":"VALUE(FIXED(EXP(C$4*-1*'PM2.5 reduction'!C246),9))","v":0.99997043799999996},{"$f":"VALUE(FIXED(EXP(D$4*-1*'PM2.5 reduction'!D246),9))","v":0.99998081900000002},{"$f":"VALUE(FIXED(EXP(E$4*-1*'PM2.5 reduction'!E246),9))","v":0.99999345699999997},{"$f":"VALUE(FIXED(EXP(F$4*-1*'PM2.5 reduction'!F246),9))","v":0.99999176199999995},{"$f":"VALUE(FIXED(EXP(G$4*-1*'PM2.5 reduction'!G246),9))","v":0.99999427500000004},{"$f":"VALUE(FIXED(EXP(H$4*-1*'PM2.5 reduction'!H246),9))","v":0.99998800899999996},{"$f":"VALUE(FIXED(EXP(I$4*-1*'PM2.5 reduction'!I246),9))","v":0.99999552199999997},{"$f":"VALUE(FIXED(EXP(J$4*-1*'PM2.5 reduction'!J246),9))","v":0.99998871099999997},{"$f":"VALUE(FIXED(EXP(K$4*-1*'PM2.5 reduction'!K246),9))","v":0.99998907100000001},{"$f":"VALUE(FIXED(EXP(L$4*-1*'PM2.5 reduction'!L246),9))","v":0.99999309999999997},{"$f":"VALUE(FIXED(EXP(M$4*-1*'PM2.5 reduction'!M246),9))","v":0.99999309999999997},{"$f":"VALUE(FIXED(EXP(N$4*-1*'PM2.5 reduction'!N246),9))","v":0.99997955599999999},{"$f":"VALUE(FIXED(EXP(O$4*-1*'PM2.5 reduction'!O246),9))","v":0.99998684400000004},{"$f":"VALUE(FIXED(EXP(P$4*-1*'PM2.5 reduction'!P246),9))","v":0.99997483099999995},{"$f":"VALUE(FIXED(EXP(Q$4*-1*'PM2.5 reduction'!Q246),9))","v":0.99999425900000005},{"$f":"VALUE(FIXED(EXP(R$4*-1*'PM2.5 reduction'!R246),9))","v":0.99997486700000005},{"$f":"VALUE(FIXED(EXP(S$4*-1*'PM2.5 reduction'!S246),9))","v":0.99997334100000002},{"$f":"VALUE(FIXED(EXP(T$4*-1*'PM2.5 reduction'!T246),9))","v":0.99996405899999996},{"$f":"VALUE(FIXED(EXP(U$4*-1*'PM2.5 reduction'!U246),9))","v":1},{"$f":"VALUE(FIXED(EXP(V$4*-1*'PM2.5 reduction'!V246),9))","v":0.99997916799999997},{"$f":"VALUE(FIXED(EXP(W$4*-1*'PM2.5 reduction'!W246),9))","v":0.99998686699999995},{"$f":"VALUE(FIXED(EXP(X$4*-1*'PM2.5 reduction'!X246),9))","v":0.99998686699999995},{"$f":"VALUE(FIXED(EXP(Y$4*-1*'PM2.5 reduction'!Y246),9))","v":0.99998462300000002},{"$f":"VALUE(FIXED(EXP(Z$4*-1*'PM2.5 reduction'!Z246),9))","v":0.99996361199999995},{"$f":"VALUE(FIXED(EXP(AA$4*-1*'PM2.5 reduction'!AA246),9))","v":0.99997539199999996},{"$f":"VALUE(FIXED(EXP(AB$4*-1*'PM2.5 reduction'!AB246),9))","v":0.99998198900000002},{"$f":"VALUE(FIXED(EXP(AC$4*-1*'PM2.5 reduction'!AC246),9))","v":0.99997381299999999},{"$f":"VALUE(FIXED(EXP(AD$4*-1*'PM2.5 reduction'!AD246),9))","v":0.99999176899999997},{"$f":"VALUE(FIXED(EXP(AE$4*-1*'PM2.5 reduction'!AE246),9))","v":0.999990877},{"$f":"VALUE(FIXED(EXP(AF$4*-1*'PM2.5 reduction'!AF246),9))","v":0.99998997099999998},{"$f":"VALUE(FIXED(EXP(AG$4*-1*'PM2.5 reduction'!AG246),9))","v":0.999990877},{"$f":"VALUE(FIXED(EXP(AH$4*-1*'PM2.5 reduction'!AH246),9))","v":0.99998081500000002},{"$f":"VALUE(FIXED(EXP(AI$4*-1*'PM2.5 reduction'!AI246),9))","v":0.99996940199999995},{"$f":"VALUE(FIXED(EXP(AJ$4*-1*'PM2.5 reduction'!AJ246),9))","v":0.999986241},{"$f":"VALUE(FIXED(EXP(AK$4*-1*'PM2.5 reduction'!AK246),9))","v":0.999994088},{"$f":"VALUE(FIXED(EXP(AL$4*-1*'PM2.5 reduction'!AL246),9))","v":0.99999147200000005},{"$f":"VALUE(FIXED(EXP(AM$4*-1*'PM2.5 reduction'!AM246),9))","v":0.999978068},{"$f":"VALUE(FIXED(EXP(AN$4*-1*'PM2.5 reduction'!AN246),9))","v":1},{"$f":"VALUE(FIXED(EXP(AO$4*-1*'PM2.5 reduction'!AO246),9))","v":1},{"$f":"VALUE(FIXED(EXP(AP$4*-1*'PM2.5 reduction'!AP246),9))","v":0.99999170500000001},{"$f":"VALUE(FIXED(EXP(AQ$4*-1*'PM2.5 reduction'!AQ246),9))","v":0.99998177099999996},{"$f":"VALUE(FIXED(EXP(AR$4*-1*'PM2.5 reduction'!AR246),9))","v":0.99997852099999995},{"$f":"VALUE(FIXED(EXP(AS$4*-1*'PM2.5 reduction'!AS246),9))","v":0.99999552199999997},{"$f":"VALUE(FIXED(EXP(AT$4*-1*'PM2.5 reduction'!AT246),9))","v":1},{"$f":"VALUE(FIXED(EXP(AU$4*-1*'PM2.5 reduction'!AU246),9))","v":1},{"$f":"VALUE(FIXED(EXP(AV$4*-1*'PM2.5 reduction'!AV246),9))","v":0.99998771399999997},{"$f":"VALUE(FIXED(EXP(AW$4*-1*'PM2.5 reduction'!AW246),9))","v":0.99998237400000001},{"$f":"VALUE(FIXED(EXP(AX$4*-1*'PM2.5 reduction'!AX246),9))","v":0.99998866399999997},{"$f":"VALUE(FIXED(EXP(AY$4*-1*'PM2.5 reduction'!AY246),9))","v":0.99998741300000005},{"$f":"VALUE(FIXED(EXP(AZ$4*-1*'PM2.5 reduction'!AZ246),9))","v":0.99998778099999996},{"$f":"VALUE(FIXED(EXP(BA$4*-1*'PM2.5 reduction'!BA246),9))","v":0.99998691900000003},{"$f":"VALUE(FIXED(EXP(BB$4*-1*'PM2.5 reduction'!BB246),9))","v":0.99998710300000004},{"$f":"VALUE(FIXED(EXP(BC$4*-1*'PM2.5 reduction'!BC246),9))","v":1}]
[null,"Male 80-84",{"$f":"VALUE(FIXED(EXP(C$4*-1*'PM2.5 reduction'!C247),9))","v":0.99997033300000004},{"$f":"VALUE(FIXED(EXP(D$4*-1*'PM2.5 reduction'!D247),9))","v":0.999979901},{"$f":"VALUE(FIXED(EXP(E$4*-1*'PM2.5 reduction'!E247),9))","v":0.99999368600000005},{"$f":"VALUE(FIXED(EXP(F$4*-1*'PM2.5 reduction'!F247),9))","v":0.999992255},{"$f":"VALUE(FIXED(EXP(G$4*-1*'PM2.5 reduction'!G247),9))","v":0.99999424299999995},{"$f":"VALUE(FIXED(EXP(H$4*-1*'PM2.5 reduction'!H247),9))","v":0.99998878000000002},{"$f":"VALUE(FIXED(EXP(I$4*-1*'PM2.5 reduction'!I247),9))","v":0.99999547499999997},{"$f":"VALUE(FIXED(EXP(J$4*-1*'PM2.5 reduction'!J247),9))","v":0.99998747200000004},{"$f":"VALUE(FIXED(EXP(K$4*-1*'PM2.5 reduction'!K247),9))","v":0.99998842600000004},{"$f":"VALUE(FIXED(EXP(L$4*-1*'PM2.5 reduction'!L247),9))","v":0.99999328600000004},{"$f":"VALUE(FIXED(EXP(M$4*-1*'PM2.5 reduction'!M247),9))","v":0.99999328600000004},{"$f":"VALUE(FIXED(EXP(N$4*-1*'PM2.5 reduction'!N247),9))","v":0.99997890599999995},{"$f":"VALUE(FIXED(EXP(O$4*-1*'PM2.5 reduction'!O247),9))","v":0.99998770400000003},{"$f":"VALUE(FIXED(EXP(P$4*-1*'PM2.5 reduction'!P247),9))","v":0.99997491299999997},{"$f":"VALUE(FIXED(EXP(Q$4*-1*'PM2.5 reduction'!Q247),9))","v":0.99999521000000002},{"$f":"VALUE(FIXED(EXP(R$4*-1*'PM2.5 reduction'!R247),9))","v":0.99997420199999998},{"$f":"VALUE(FIXED(EXP(S$4*-1*'PM2.5 reduction'!S247),9))","v":0.99997245700000004},{"$f":"VALUE(FIXED(EXP(T$4*-1*'PM2.5 reduction'!T247),9))","v":0.99996396700000001},{"$f":"VALUE(FIXED(EXP(U$4*-1*'PM2.5 reduction'!U247),9))","v":1},{"$f":"VALUE(FIXED(EXP(V$4*-1*'PM2.5 reduction'!V247),9))","v":0.99997960500000005},{"$f":"VALUE(FIXED(EXP(W$4*-1*'PM2.5 reduction'!W247),9))","v":0.99998766100000003},{"$f":"VALUE(FIXED(EXP(X$4*-1*'PM2.5 reduction'!X247),9))","v":0.99998766100000003},{"$f":"VALUE(FIXED(EXP(Y$4*-1*'PM2.5 reduction'!Y247),9))","v":0.99998398099999997},{"$f":"VALUE(FIXED(EXP(Z$4*-1*'PM2.5 reduction'!Z247),9))","v":0.99996339300000003},{"$f":"VALUE(FIXED(EXP(AA$4*-1*'PM2.5 reduction'!AA247),9))","v":0.99997508599999996},{"$f":"VALUE(FIXED(EXP(AB$4*-1*'PM2.5 reduction'!AB247),9))","v":0.99998090399999995},{"$f":"VALUE(FIXED(EXP(AC$4*-1*'PM2.5 reduction'!AC247),9))","v":0.99997349199999996},{"$f":"VALUE(FIXED(EXP(AD$4*-1*'PM2.5 reduction'!AD247),9))","v":0.99999091799999995},{"$f":"VALUE(FIXED(EXP(AE$4*-1*'PM2.5 reduction'!AE247),9))","v":0.99999006800000001},{"$f":"VALUE(FIXED(EXP(AF$4*-1*'PM2.5 reduction'!AF247),9))","v":0.99999040699999997},{"$f":"VALUE(FIXED(EXP(AG$4*-1*'PM2.5 reduction'!AG247),9))","v":0.99999006800000001},{"$f":"VALUE(FIXED(EXP(AH$4*-1*'PM2.5 reduction'!AH247),9))","v":0.99998088699999998},{"$f":"VALUE(FIXED(EXP(AI$4*-1*'PM2.5 reduction'!AI247),9))","v":0.99996816499999996},{"$f":"VALUE(FIXED(EXP(AJ$4*-1*'PM2.5 reduction'!AJ247),9))","v":0.99998578900000001},{"$f":"VALUE(FIXED(EXP(AK$4*-1*'PM2.5 reduction'!AK247),9))","v":0.99999398100000003},{"$f":"VALUE(FIXED(EXP(AL$4*-1*'PM2.5 reduction'!AL247),9))","v":0.99999186600000001},{"$f":"VALUE(FIXED(EXP(AM$4*-1*'PM2.5 reduction'!AM247),9))","v":0.99997813800000002},{"$f":"VALUE(FIXED(EXP(AN$4*-1*'PM2.5 reduction'!AN247),9))","v":1},{"$f":"VALUE(FIXED(EXP(AO$4*-1*'PM2.5 reduction'!AO247),9))","v":1},{"$f":"VALUE(FIXED(EXP(AP$4*-1*'PM2.5 reduction'!AP247),9))","v":0.99999203999999997},{"$f":"VALUE(FIXED(EXP(AQ$4*-1*'PM2.5 reduction'!AQ247),9))","v":0.999981279},{"$f":"VALUE(FIXED(EXP(AR$4*-1*'PM2.5 reduction'!AR247),9))","v":0.99997785299999997},{"$f":"VALUE(FIXED(EXP(AS$4*-1*'PM2.5 reduction'!AS247),9))","v":0.99999547499999997},{"$f":"VALUE(FIXED(EXP(AT$4*-1*'PM2.5 reduction'!AT247),9))","v":1},{"$f":"VALUE(FIXED(EXP(AU$4*-1*'PM2.5 reduction'!AU247),9))","v":1},{"$f":"VALUE(FIXED(EXP(AV$4*-1*'PM2.5 reduction'!AV247),9))","v":0.99998838999999995},{"$f":"VALUE(FIXED(EXP(AW$4*-1*'PM2.5 reduction'!AW247),9))","v":0.99998202800000002},{"$f":"VALUE(FIXED(EXP(AX$4*-1*'PM2.5 reduction'!AX247),9))","v":0.99998735599999999},{"$f":"VALUE(FIXED(EXP(AY$4*-1*'PM2.5 reduction'!AY247),9))","v":0.99998767700000002},{"$f":"VALUE(FIXED(EXP(AZ$4*-1*'PM2.5 reduction'!AZ247),9))","v":0.99998768800000004},{"$f":"VALUE(FIXED(EXP(BA$4*-1*'PM2.5 reduction'!BA247),9))","v":0.99998559600000003},{"$f":"VALUE(FIXED(EXP(BB$4*-1*'PM2.5 reduction'!BB247),9))","v":0.99998672700000002},{"$f":"VALUE(FIXED(EXP(BC$4*-1*'PM2.5 reduction'!BC247),9))","v":1}]
[null,"Male 85-89",{"$f":"VALUE(FIXED(EXP(C$4*-1*'PM2.5 reduction'!C248),9))","v":0.99997108199999996},{"$f":"VALUE(FIXED(EXP(D$4*-1*'PM2.5 reduction'!D248),9))","v":0.999980384},{"$f":"VALUE(FIXED(EXP(E$4*-1*'PM2.5 reduction'!E248),9))","v":0.99999370499999995},{"$f":"VALUE(FIXED(EXP(F$4*-1*'PM2.5 reduction'!F248),9))","v":0.99999239600000001},{"$f":"VALUE(FIXED(EXP(G$4*-1*'PM2.5 reduction'!G248),9))","v":0.99999415599999997},{"$f":"VALUE(FIXED(EXP(H$4*-1*'PM2.5 reduction'!H248),9))","v":0.99998761000000003},{"$f":"VALUE(FIXED(EXP(I$4*-1*'PM2.5 reduction'!I248),9))","v":0.99999549700000001},{"$f":"VALUE(FIXED(EXP(J$4*-1*'PM2.5 reduction'!J248),9))","v":0.99998563299999998},{"$f":"VALUE(FIXED(EXP(K$4*-1*'PM2.5 reduction'!K248),9))","v":0.99998650300000003},{"$f":"VALUE(FIXED(EXP(L$4*-1*'PM2.5 reduction'!L248),9))","v":0.99999330500000005},{"$f":"VALUE(FIXED(EXP(M$4*-1*'PM2.5 reduction'!M248),9))","v":0.99999330500000005},{"$f":"VALUE(FIXED(EXP(N$4*-1*'PM2.5 reduction'!N248),9))","v":0.99997977400000004},{"$f":"VALUE(FIXED(EXP(O$4*-1*'PM2.5 reduction'!O248),9))","v":0.99998620699999996},{"$f":"VALUE(FIXED(EXP(P$4*-1*'PM2.5 reduction'!P248),9))","v":0.99997535299999996},{"$f":"VALUE(FIXED(EXP(Q$4*-1*'PM2.5 reduction'!Q248),9))","v":0.999995042},{"$f":"VALUE(FIXED(EXP(R$4*-1*'PM2.5 reduction'!R248),9))","v":0.99997461700000001},{"$f":"VALUE(FIXED(EXP(S$4*-1*'PM2.5 reduction'!S248),9))","v":0.99997065799999996},{"$f":"VALUE(FIXED(EXP(T$4*-1*'PM2.5 reduction'!T248),9))","v":0.99996270700000001},{"$f":"VALUE(FIXED(EXP(U$4*-1*'PM2.5 reduction'!U248),9))","v":1},{"$f":"VALUE(FIXED(EXP(V$4*-1*'PM2.5 reduction'!V248),9))","v":0.99997765400000005},{"$f":"VALUE(FIXED(EXP(W$4*-1*'PM2.5 reduction'!W248),9))","v":0.99998710700000004},{"$f":"VALUE(FIXED(EXP(X$4*-1*'PM2.5 reduction'!X248),9))","v":0.99998710700000004},{"$f":"VALUE(FIXED(EXP(Y$4*-1*'PM2.5 reduction'!Y248),9))","v":0.99998198400000005},{"$f":"VALUE(FIXED(EXP(Z$4*-1*'PM2.5 reduction'!Z248),9))","v":0.99996418899999995},{"$f":"VALUE(FIXED(EXP(AA$4*-1*'PM2.5 reduction'!AA248),9))","v":0.99997533199999999},{"$f":"VALUE(FIXED(EXP(AB$4*-1*'PM2.5 reduction'!AB248),9))","v":0.99998167500000001},{"$f":"VALUE(FIXED(EXP(AC$4*-1*'PM2.5 reduction'!AC248),9))","v":0.99997383100000004},{"$f":"VALUE(FIXED(EXP(AD$4*-1*'PM2.5 reduction'!AD248),9))","v":0.99999156600000005},{"$f":"VALUE(FIXED(EXP(AE$4*-1*'PM2.5 reduction'!AE248),9))","v":0.99999050499999997},{"$f":"VALUE(FIXED(EXP(AF$4*-1*'PM2.5 reduction'!AF248),9))","v":0.99999070800000001},{"$f":"VALUE(FIXED(EXP(AG$4*-1*'PM2.5 reduction'!AG248),9))","v":0.99999050499999997},{"$f":"VALUE(FIXED(EXP(AH$4*-1*'PM2.5 reduction'!AH248),9))","v":0.99998160899999999},{"$f":"VALUE(FIXED(EXP(AI$4*-1*'PM2.5 reduction'!AI248),9))","v":0.99996624199999995},{"$f":"VALUE(FIXED(EXP(AJ$4*-1*'PM2.5 reduction'!AJ248),9))","v":0.99998379500000001},{"$f":"VALUE(FIXED(EXP(AK$4*-1*'PM2.5 reduction'!AK248),9))","v":0.99999424199999998},{"$f":"VALUE(FIXED(EXP(AL$4*-1*'PM2.5 reduction'!AL248),9))","v":0.99999257900000005},{"$f":"VALUE(FIXED(EXP(AM$4*-1*'PM2.5 reduction'!AM248),9))","v":0.99998023300000005},{"$f":"VALUE(FIXED(EXP(AN$4*-1*'PM2.5 reduction'!AN248),9))","v":1},{"$f":"VALUE(FIXED(EXP(AO$4*-1*'PM2.5 reduction'!AO248),9))","v":1},{"$f":"VALUE(FIXED(EXP(AP$4*-1*'PM2.5 reduction'!AP248),9))","v":0.99999175900000004},{"$f":"VALUE(FIXED(EXP(AQ$4*-1*'PM2.5 reduction'!AQ248),9))","v":0.99998107999999997},{"$f":"VALUE(FIXED(EXP(AR$4*-1*'PM2.5 reduction'!AR248),9))","v":0.99997725800000004},{"$f":"VALUE(FIXED(EXP(AS$4*-1*'PM2.5 reduction'!AS248),9))","v":0.99999549700000001},{"$f":"VALUE(FIXED(EXP(AT$4*-1*'PM2.5 reduction'!AT248),9))","v":1},{"$f":"VALUE(FIXED(EXP(AU$4*-1*'PM2.5 reduction'!AU248),9))","v":1},{"$f":"VALUE(FIXED(EXP(AV$4*-1*'PM2.5 reduction'!AV248),9))","v":0.99998691500000003},{"$f":"VALUE(FIXED(EXP(AW$4*-1*'PM2.5 reduction'!AW248),9))","v":0.99998226099999998},{"$f":"VALUE(FIXED(EXP(AX$4*-1*'PM2.5 reduction'!AX248),9))","v":0.99998548099999995},{"$f":"VALUE(FIXED(EXP(AY$4*-1*'PM2.5 reduction'!AY248),9))","v":0.99998752000000002},{"$f":"VALUE(FIXED(EXP(AZ$4*-1*'PM2.5 reduction'!AZ248),9))","v":0.99998777100000003},{"$f":"VALUE(FIXED(EXP(BA$4*-1*'PM2.5 reduction'!BA248),9))","v":0.999989566},{"$f":"VALUE(FIXED(EXP(BB$4*-1*'PM2.5 reduction'!BB248),9))","v":0.99998777699999997},{"$f":"VALUE(FIXED(EXP(BC$4*-1*'PM2.5 reduction'!BC248),9))","v":1}]
[null,"Male 90+",{"$f":"VALUE(FIXED(EXP(C$4*-1*'PM2.5 reduction'!C249),9))","v":0.99996845400000001},{"$f":"VALUE(FIXED(EXP(D$4*-1*'PM2.5 reduction'!D249),9))","v":0.99997891800000005},{"$f":"VALUE(FIXED(EXP(E$4*-1*'PM2.5 reduction'!E249),9))","v":0.999993833},{"$f":"VALUE(FIXED(EXP(F$4*-1*'PM2.5 reduction'!F249),9))","v":0.99999132899999998},{"$f":"VALUE(FIXED(EXP(G$4*-1*'PM2.5 reduction'!G249),9))","v":0.999994312},{"$f":"VALUE(FIXED(EXP(H$4*-1*'PM2.5 reduction'!H249),9))","v":0.99998789099999996},{"$f":"VALUE(FIXED(EXP(I$4*-1*'PM2.5 reduction'!I249),9))","v":0.99999561400000003},{"$f":"VALUE(FIXED(EXP(J$4*-1*'PM2.5 reduction'!J249),9))","v":0.99998534900000002},{"$f":"VALUE(FIXED(EXP(K$4*-1*'PM2.5 reduction'!K249),9))","v":0.99998644199999998},{"$f":"VALUE(FIXED(EXP(L$4*-1*'PM2.5 reduction'!L249),9))","v":0.99999296900000001},{"$f":"VALUE(FIXED(EXP(M$4*-1*'PM2.5 reduction'!M249),9))","v":0.99999296900000001},{"$f":"VALUE(FIXED(EXP(N$4*-1*'PM2.5 reduction'!N249),9))","v":0.99997782999999996},{"$f":"VALUE(FIXED(EXP(O$4*-1*'PM2.5 reduction'!O249),9))","v":0.99998856700000005},{"$f":"VALUE(FIXED(EXP(P$4*-1*'PM2.5 reduction'!P249),9))","v":0.99997466300000004},{"$f":"VALUE(FIXED(EXP(Q$4*-1*'PM2.5 reduction'!Q249),9))","v":0.99999564100000005},{"$f":"VALUE(FIXED(EXP(R$4*-1*'PM2.5 reduction'!R249),9))","v":0.99997414900000003},{"$f":"VALUE(FIXED(EXP(S$4*-1*'PM2.5 reduction'!S249),9))","v":0.99996965299999996},{"$f":"VALUE(FIXED(EXP(T$4*-1*'PM2.5 reduction'!T249),9))","v":0.99996249699999995},{"$f":"VALUE(FIXED(EXP(U$4*-1*'PM2.5 reduction'!U249),9))","v":1},{"$f":"VALUE(FIXED(EXP(V$4*-1*'PM2.5 reduction'!V249),9))","v":0.99997800400000003},{"$f":"VALUE(FIXED(EXP(W$4*-1*'PM2.5 reduction'!W249),9))","v":0.99998813600000003},{"$f":"VALUE(FIXED(EXP(X$4*-1*'PM2.5 reduction'!X249),9))","v":0.99998813600000003},{"$f":"VALUE(FIXED(EXP(Y$4*-1*'PM2.5 reduction'!Y249),9))","v":0.99998150900000005},{"$f":"VALUE(FIXED(EXP(Z$4*-1*'PM2.5 reduction'!Z249),9))","v":0.99996452300000005},{"$f":"VALUE(FIXED(EXP(AA$4*-1*'PM2.5 reduction'!AA249),9))","v":0.99997406099999997},{"$f":"VALUE(FIXED(EXP(AB$4*-1*'PM2.5 reduction'!AB249),9))","v":0.99998002799999997},{"$f":"VALUE(FIXED(EXP(AC$4*-1*'PM2.5 reduction'!AC249),9))","v":0.99997285400000002},{"$f":"VALUE(FIXED(EXP(AD$4*-1*'PM2.5 reduction'!AD249),9))","v":0.99999122399999996},{"$f":"VALUE(FIXED(EXP(AE$4*-1*'PM2.5 reduction'!AE249),9))","v":0.99999070899999998},{"$f":"VALUE(FIXED(EXP(AF$4*-1*'PM2.5 reduction'!AF249),9))","v":0.99999020599999999},{"$f":"VALUE(FIXED(EXP(AG$4*-1*'PM2.5 reduction'!AG249),9))","v":0.99999070899999998},{"$f":"VALUE(FIXED(EXP(AH$4*-1*'PM2.5 reduction'!AH249),9))","v":0.99997988599999998},{"$f":"VALUE(FIXED(EXP(AI$4*-1*'PM2.5 reduction'!AI249),9))","v":0.99996631800000002},{"$f":"VALUE(FIXED(EXP(AJ$4*-1*'PM2.5 reduction'!AJ249),9))","v":0.99998211599999998},{"$f":"VALUE(FIXED(EXP(AK$4*-1*'PM2.5 reduction'!AK249),9))","v":0.99999556700000003},{"$f":"VALUE(FIXED(EXP(AL$4*-1*'PM2.5 reduction'!AL249),9))","v":0.99999303699999997},{"$f":"VALUE(FIXED(EXP(AM$4*-1*'PM2.5 reduction'!AM249),9))","v":0.99997812100000005},{"$f":"VALUE(FIXED(EXP(AN$4*-1*'PM2.5 reduction'!AN249),9))","v":1},{"$f":"VALUE(FIXED(EXP(AO$4*-1*'PM2.5 reduction'!AO249),9))","v":1},{"$f":"VALUE(FIXED(EXP(AP$4*-1*'PM2.5 reduction'!AP249),9))","v":0.999991619},{"$f":"VALUE(FIXED(EXP(AQ$4*-1*'PM2.5 reduction'!AQ249),9))","v":0.99998057900000004},{"$f":"VALUE(FIXED(EXP(AR$4*-1*'PM2.5 reduction'!AR249),9))","v":0.99997610199999998},{"$f":"VALUE(FIXED(EXP(AS$4*-1*'PM2.5 reduction'!AS249),9))","v":0.99999561400000003},{"$f":"VALUE(FIXED(EXP(AT$4*-1*'PM2.5 reduction'!AT249),9))","v":1},{"$f":"VALUE(FIXED(EXP(AU$4*-1*'PM2.5 reduction'!AU249),9))","v":1},{"$f":"VALUE(FIXED(EXP(AV$4*-1*'PM2.5 reduction'!AV249),9))","v":0.99998595700000004},{"$f":"VALUE(FIXED(EXP(AW$4*-1*'PM2.5 reduction'!AW249),9))","v":0.99998093300000002},{"$f":"VALUE(FIXED(EXP(AX$4*-1*'PM2.5 reduction'!AX249),9))","v":0.99998526499999996},{"$f":"VALUE(FIXED(EXP(AY$4*-1*'PM2.5 reduction'!AY249),9))","v":0.99998770800000003},{"$f":"VALUE(FIXED(EXP(AZ$4*-1*'PM2.5 reduction'!AZ249),9))","v":0.999987454},{"$f":"VALUE(FIXED(EXP(BA$4*-1*'PM2.5 reduction'!BA249),9))","v":1},{"$f":"VALUE(FIXED(EXP(BB$4*-1*'PM2.5 reduction'!BB249),9))","v":0.99998733100000003},{"$f":"VALUE(FIXED(EXP(BC$4*-1*'PM2.5 reduction'!BC249),9))","v":1}]

{"sheet":"RateRatios_PM25_hosp","index":18,"n_rows":249,"n_cols":55,"rows_kept":249,"cut":false,"hidden":true,"merged":[]}
["Intervention Rate Ratios for the predicted reduction in pollutant concentration, by subgroup"]
[]
["SIMD","group","Aberdeen City Local Authority","Aberdeen City Region Deal","Aberdeenshire Local Authority","Angus Local Authority","Argyll & Bute Local Authority","Ayrshire & Arran Health Board","Borders Health Board","Clackmannanshire & Stirling IJB","Clackmannanshire Local Authority","Dumfries & Galloway Health Board","Dumfries & Galloway Local Authority","Dundee City Local Authority","East Ayrshire Local Authority","East Dunbartonshire Local Authority","East Lothian Local Authority","East Renfrewshire Local Authority","Edinburgh & SE Scotland City Region Deal","Edinburgh, City of Local Authority","Eilean Siar Local Authority","Falkirk Local Authority","Fife Health Board","Fife Local Authority","Forth Valley Health Board","Glasgow City Local Authority","Glasgow City Region Deal","Grampian Health Board","Greater Glasgow & Clyde Health Board","Highland Health Board","Highland Local Authority","Inverclyde Local Authority","Inverness & Highland City Region Deal","Lanarkshire Health Board","Lothian Health Board","Midlothian Local Authority","Moray Local Authority","North Ayrshire Local Authority","North Lanarkshire Local Authority","Orkney Health Board","Orkney Islands Local Authority","Perth & Kinross Local Authority","Renfrewshire Local Authority","Scotland","Scottish Borders Local Authority","Shetland Health Board","Shetland Islands Local Authority","South Ayrshire Local Authority","South Lanarkshire Local Authority","Stirling Local Authority","Tay Cities Region Deal ","Tayside Health Board","West Dunbartonshire Local Authority","West Lothian Local Authority","Western Isles Health Board"]
["SIMD","coefficient per 1 ug.m-3 increase",1.1332868530700327E-2,1.1332868530700327E-2,1.1332868530700327E-2,1.1332868530700327E-2,1.1332868530700327E-2,1.1332868530700327E-2,1.1332868530700327E-2,1.1332868530700327E-2,1.1332868530700327E-2,1.1332868530700327E-2,1.1332868530700327E-2,1.1332868530700327E-2,1.1332868530700327E-2,1.1332868530700327E-2,1.1332868530700327E-2,1.1332868530700327E-2,1.1332868530700327E-2,1.1332868530700327E-2,1.1332868530700327E-2,1.1332868530700327E-2,1.1332868530700327E-2,1.1332868530700327E-2,1.1332868530700327E-2,1.1332868530700327E-2,1.1332868530700327E-2,1.1332868530700327E-2,1.1332868530700327E-2,1.1332868530700327E-2,1.1332868530700327E-2,1.1332868530700327E-2,1.1332868530700327E-2,1.1332868530700327E-2,1.1332868530700327E-2,1.1332868530700327E-2,1.1332868530700327E-2,1.1332868530700327E-2,1.1332868530700327E-2,1.1332868530700327E-2,1.1332868530700327E-2,1.1332868530700327E-2,1.1332868530700327E-2,1.1332868530700327E-2,1.1332868530700327E-2,1.1332868530700327E-2,1.1332868530700327E-2,1.1332868530700327E-2,1.1332868530700327E-2,1.1332868530700327E-2,1.1332868530700327E-2,1.1332868530700327E-2,1.1332868530700327E-2,1.1332868530700327E-2,1.1332868530700327E-2]
["All quintiles","16+ Males and Females"]
["Q1 and Q2","16+ Males and Females"]
["SIMD Q1 (most deprived)","16+ Males and Females"]
["SIMD Q2"]
["SIMD Q3"]
["SIMD Q4"]
["SIMD Q5 (least deprived)"]
["SIMD Q1 (most deprived)","16+ Females"]
["SIMD Q2"]
["SIMD Q3"]
["SIMD Q4"]
["SIMD Q5 (least deprived)"]
["SIMD Q1 (most deprived)","16+ Males"]
["SIMD Q2"]
["SIMD Q3"]
["SIMD Q4"]
["SIMD Q5 (least deprived)"]
["All quintiles","Female 0-4"]
[null,"Female 5-9"]
[null,"Female 10-15"]
[null,"Female 16-19"]
[null,"Female 20-24"]
[null,"Female 25-29"]
[null,"Female 30-34"]
[null,"Female 35-39"]
[null,"Female 40-44"]
[null,"Female 45-49"]
[null,"Female 50-54"]
[null,"Female 55-59"]
[null,"Female 60-64"]
[null,"Female 65-69"]
[null,"Female 70-74"]
[null,"Female 75-79"]
[null,"Female 80-84"]
[null,"Female 85-89"]
[null,"Female 90+"]
[null,"Male 0-4"]
[null,"Male 5-9"]
[null,"Male 10-15"]
[null,"Male 16-19"]
[null,"Male 20-24"]
[null,"Male 25-29"]
[null,"Male 30-34"]
[null,"Male 35-39"]
[null,"Male 40-44"]
[null,"Male 45-49"]
[null,"Male 50-54"]
[null,"Male 55-59"]
[null,"Male 60-64"]
[null,"Male 65-69"]
[null,"Male 70-74"]
[null,"Male 75-79"]
[null,"Male 80-84"]
[null,"Male 85-89"]
[null,"Male 90+"]
["SIMD Q1 (most deprived)","Female 0-4",{"$f":"VALUE(FIXED(EXP(C$4*-1*'PM2.5 reduction'!C60),9))","v":0.99993619300000003},{"$f":"VALUE(FIXED(EXP(D$4*-1*'PM2.5 reduction'!D60),9))","v":0.99994024699999995},{"$f":"VALUE(FIXED(EXP(E$4*-1*'PM2.5 reduction'!E60),9))","v":0.99997605599999995},{"$f":"VALUE(FIXED(EXP(F$4*-1*'PM2.5 reduction'!F60),9))","v":0.99998555700000002},{"$f":"VALUE(FIXED(EXP(G$4*-1*'PM2.5 reduction'!G60),9))","v":0.99999005200000002},{"$f":"VALUE(FIXED(EXP(H$4*-1*'PM2.5 reduction'!H60),9))","v":0.99997794799999995},{"$f":"VALUE(FIXED(EXP(I$4*-1*'PM2.5 reduction'!I60),9))","v":0.99999025900000005},{"$f":"VALUE(FIXED(EXP(J$4*-1*'PM2.5 reduction'!J60),9))","v":0.99997084800000002},{"$f":"VALUE(FIXED(EXP(K$4*-1*'PM2.5 reduction'!K60),9))","v":0.99996807099999996},{"$f":"VALUE(FIXED(EXP(L$4*-1*'PM2.5 reduction'!L60),9))","v":0.99998875099999995},{"$f":"VALUE(FIXED(EXP(M$4*-1*'PM2.5 reduction'!M60),9))","v":0.99998875099999995},{"$f":"VALUE(FIXED(EXP(N$4*-1*'PM2.5 reduction'!N60),9))","v":0.999945372},{"$f":"VALUE(FIXED(EXP(O$4*-1*'PM2.5 reduction'!O60),9))","v":0.99997719100000004},{"$f":"VALUE(FIXED(EXP(P$4*-1*'PM2.5 reduction'!P60),9))","v":0.99995532799999998},{"$f":"VALUE(FIXED(EXP(Q$4*-1*'PM2.5 reduction'!Q60),9))","v":0.99998080899999997},{"$f":"VALUE(FIXED(EXP(R$4*-1*'PM2.5 reduction'!R60),9))","v":0.99996185299999996},{"$f":"VALUE(FIXED(EXP(S$4*-1*'PM2.5 reduction'!S60),9))","v":0.99995848300000001},{"$f":"VALUE(FIXED(EXP(T$4*-1*'PM2.5 reduction'!T60),9))","v":0.99993897399999998},{"$f":"VALUE(FIXED(EXP(U$4*-1*'PM2.5 reduction'!U60),9))","v":1},{"$f":"VALUE(FIXED(EXP(V$4*-1*'PM2.5 reduction'!V60),9))","v":0.99995689499999996},{"$f":"VALUE(FIXED(EXP(W$4*-1*'PM2.5 reduction'!W60),9))","v":0.99997154099999996},{"$f":"VALUE(FIXED(EXP(X$4*-1*'PM2.5 reduction'!X60),9))","v":0.99997154099999996},{"$f":"VALUE(FIXED(EXP(Y$4*-1*'PM2.5 reduction'!Y60),9))","v":0.99996399000000002},{"$f":"VALUE(FIXED(EXP(Z$4*-1*'PM2.5 reduction'!Z60),9))","v":0.99993836400000002},{"$f":"VALUE(FIXED(EXP(AA$4*-1*'PM2.5 reduction'!AA60),9))","v":0.99994841099999998},{"$f":"VALUE(FIXED(EXP(AB$4*-1*'PM2.5 reduction'!AB60),9))","v":0.99994212599999999},{"$f":"VALUE(FIXED(EXP(AC$4*-1*'PM2.5 reduction'!AC60),9))","v":0.99994481599999996},{"$f":"VALUE(FIXED(EXP(AD$4*-1*'PM2.5 reduction'!AD60),9))","v":0.99998932100000004},{"$f":"VALUE(FIXED(EXP(AE$4*-1*'PM2.5 reduction'!AE60),9))","v":0.99998895700000001},{"$f":"VALUE(FIXED(EXP(AF$4*-1*'PM2.5 reduction'!AF60),9))","v":0.99996862799999997},{"$f":"VALUE(FIXED(EXP(AG$4*-1*'PM2.5 reduction'!AG60),9))","v":0.99998895700000001},{"$f":"VALUE(FIXED(EXP(AH$4*-1*'PM2.5 reduction'!AH60),9))","v":0.99995741900000001},{"$f":"VALUE(FIXED(EXP(AI$4*-1*'PM2.5 reduction'!AI60),9))","v":0.99994930599999998},{"$f":"VALUE(FIXED(EXP(AJ$4*-1*'PM2.5 reduction'!AJ60),9))","v":0.99997070499999996},{"$f":"VALUE(FIXED(EXP(AK$4*-1*'PM2.5 reduction'!AK60),9))","v":0.99998216200000001},{"$f":"VALUE(FIXED(EXP(AL$4*-1*'PM2.5 reduction'!AL60),9))","v":0.99997946999999998},{"$f":"VALUE(FIXED(EXP(AM$4*-1*'PM2.5 reduction'!AM60),9))","v":0.999954279},{"$f":"VALUE(FIXED(EXP(AN$4*-1*'PM2.5 reduction'!AN60),9))","v":1},{"$f":"VALUE(FIXED(EXP(AO$4*-1*'PM2.5 reduction'!AO60),9))","v":1},{"$f":"VALUE(FIXED(EXP(AP$4*-1*'PM2.5 reduction'!AP60),9))","v":0.99996860899999995},{"$f":"VALUE(FIXED(EXP(AQ$4*-1*'PM2.5 reduction'!AQ60),9))","v":0.99995608000000002},{"$f":"VALUE(FIXED(EXP(AR$4*-1*'PM2.5 reduction'!AR60),9))","v":0.99995489400000004},{"$f":"VALUE(FIXED(EXP(AS$4*-1*'PM2.5 reduction'!AS60),9))","v":0.99999025900000005},{"$f":"VALUE(FIXED(EXP(AT$4*-1*'PM2.5 reduction'!AT60),9))","v":1},{"$f":"VALUE(FIXED(EXP(AU$4*-1*'PM2.5 reduction'!AU60),9))","v":1},{"$f":"VALUE(FIXED(EXP(AV$4*-1*'PM2.5 reduction'!AV60),9))","v":0.99997530599999995},{"$f":"VALUE(FIXED(EXP(AW$4*-1*'PM2.5 reduction'!AW60),9))","v":0.99996249299999995},{"$f":"VALUE(FIXED(EXP(AX$4*-1*'PM2.5 reduction'!AX60),9))","v":0.99997443200000002},{"$f":"VALUE(FIXED(EXP(AY$4*-1*'PM2.5 reduction'!AY60),9))","v":0.99996144499999995},{"$f":"VALUE(FIXED(EXP(AZ$4*-1*'PM2.5 reduction'!AZ60),9))","v":0.99995209100000004},{"$f":"VALUE(FIXED(EXP(BA$4*-1*'PM2.5 reduction'!BA60),9))","v":0.99996229800000003},{"$f":"VALUE(FIXED(EXP(BB$4*-1*'PM2.5 reduction'!BB60),9))","v":0.99996651000000003},{"$f":"VALUE(FIXED(EXP(BC$4*-1*'PM2.5 reduction'!BC60),9))","v":1}]
[null,"Female 5-9",{"$f":"VALUE(FIXED(EXP(C$4*-1*'PM2.5 reduction'!C61),9))","v":0.99993522499999998},{"$f":"VALUE(FIXED(EXP(D$4*-1*'PM2.5 reduction'!D61),9))","v":0.99994071100000004},{"$f":"VALUE(FIXED(EXP(E$4*-1*'PM2.5 reduction'!E61),9))","v":0.99997665300000005},{"$f":"VALUE(FIXED(EXP(F$4*-1*'PM2.5 reduction'!F61),9))","v":0.99998519299999999},{"$f":"VALUE(FIXED(EXP(G$4*-1*'PM2.5 reduction'!G61),9))","v":0.99999042000000005},{"$f":"VALUE(FIXED(EXP(H$4*-1*'PM2.5 reduction'!H61),9))","v":0.99997831800000003},{"$f":"VALUE(FIXED(EXP(I$4*-1*'PM2.5 reduction'!I61),9))","v":0.99999013800000003},{"$f":"VALUE(FIXED(EXP(J$4*-1*'PM2.5 reduction'!J61),9))","v":0.99997158200000003},{"$f":"VALUE(FIXED(EXP(K$4*-1*'PM2.5 reduction'!K61),9))","v":0.99996891099999996},{"$f":"VALUE(FIXED(EXP(L$4*-1*'PM2.5 reduction'!L61),9))","v":0.99998869800000001},{"$f":"VALUE(FIXED(EXP(M$4*-1*'PM2.5 reduction'!M61),9))","v":0.99998869800000001},{"$f":"VALUE(FIXED(EXP(N$4*-1*'PM2.5 reduction'!N61),9))","v":0.99994708200000004},{"$f":"VALUE(FIXED(EXP(O$4*-1*'PM2.5 reduction'!O61),9))","v":0.99997703299999996},{"$f":"VALUE(FIXED(EXP(P$4*-1*'PM2.5 reduction'!P61),9))","v":0.99995446300000002},{"$f":"VALUE(FIXED(EXP(Q$4*-1*'PM2.5 reduction'!Q61),9))","v":0.99998120099999999},{"$f":"VALUE(FIXED(EXP(R$4*-1*'PM2.5 reduction'!R61),9))","v":0.99996362500000002},{"$f":"VALUE(FIXED(EXP(S$4*-1*'PM2.5 reduction'!S61),9))","v":0.999959139},{"$f":"VALUE(FIXED(EXP(T$4*-1*'PM2.5 reduction'!T61),9))","v":0.99994012700000001},{"$f":"VALUE(FIXED(EXP(U$4*-1*'PM2.5 reduction'!U61),9))","v":1},{"$f":"VALUE(FIXED(EXP(V$4*-1*'PM2.5 reduction'!V61),9))","v":0.999956807},{"$f":"VALUE(FIXED(EXP(W$4*-1*'PM2.5 reduction'!W61),9))","v":0.99997217500000002},{"$f":"VALUE(FIXED(EXP(X$4*-1*'PM2.5 reduction'!X61),9))","v":0.99997217500000002},{"$f":"VALUE(FIXED(EXP(Y$4*-1*'PM2.5 reduction'!Y61),9))","v":0.99996409200000003},{"$f":"VALUE(FIXED(EXP(Z$4*-1*'PM2.5 reduction'!Z61),9))","v":0.99993939600000004},{"$f":"VALUE(FIXED(EXP(AA$4*-1*'PM2.5 reduction'!AA61),9))","v":0.99994953399999997},{"$f":"VALUE(FIXED(EXP(AB$4*-1*'PM2.5 reduction'!AB61),9))","v":0.999942463},{"$f":"VALUE(FIXED(EXP(AC$4*-1*'PM2.5 reduction'!AC61),9))","v":0.99994620899999997},{"$f":"VALUE(FIXED(EXP(AD$4*-1*'PM2.5 reduction'!AD61),9))","v":0.99998939499999995},{"$f":"VALUE(FIXED(EXP(AE$4*-1*'PM2.5 reduction'!AE61),9))","v":0.99998874100000001},{"$f":"VALUE(FIXED(EXP(AF$4*-1*'PM2.5 reduction'!AF61),9))","v":0.99996997499999996},{"$f":"VALUE(FIXED(EXP(AG$4*-1*'PM2.5 reduction'!AG61),9))","v":0.99998874100000001},{"$f":"VALUE(FIXED(EXP(AH$4*-1*'PM2.5 reduction'!AH61),9))","v":0.99995721199999998},{"$f":"VALUE(FIXED(EXP(AI$4*-1*'PM2.5 reduction'!AI61),9))","v":0.999950275},{"$f":"VALUE(FIXED(EXP(AJ$4*-1*'PM2.5 reduction'!AJ61),9))","v":0.99997194},{"$f":"VALUE(FIXED(EXP(AK$4*-1*'PM2.5 reduction'!AK61),9))","v":0.99998216200000001},{"$f":"VALUE(FIXED(EXP(AL$4*-1*'PM2.5 reduction'!AL61),9))","v":0.99998021800000003},{"$f":"VALUE(FIXED(EXP(AM$4*-1*'PM2.5 reduction'!AM61),9))","v":0.99995375900000005},{"$f":"VALUE(FIXED(EXP(AN$4*-1*'PM2.5 reduction'!AN61),9))","v":1},{"$f":"VALUE(FIXED(EXP(AO$4*-1*'PM2.5 reduction'!AO61),9))","v":1},{"$f":"VALUE(FIXED(EXP(AP$4*-1*'PM2.5 reduction'!AP61),9))","v":0.99997068200000006},{"$f":"VALUE(FIXED(EXP(AQ$4*-1*'PM2.5 reduction'!AQ61),9))","v":0.99995637999999998},{"$f":"VALUE(FIXED(EXP(AR$4*-1*'PM2.5 reduction'!AR61),9))","v":0.999956014},{"$f":"VALUE(FIXED(EXP(AS$4*-1*'PM2.5 reduction'!AS61),9))","v":0.99999013800000003},{"$f":"VALUE(FIXED(EXP(AT$4*-1*'PM2.5 reduction'!AT61),9))","v":1},{"$f":"VALUE(FIXED(EXP(AU$4*-1*'PM2.5 reduction'!AU61),9))","v":1},{"$f":"VALUE(FIXED(EXP(AV$4*-1*'PM2.5 reduction'!AV61),9))","v":0.99997528999999996},{"$f":"VALUE(FIXED(EXP(AW$4*-1*'PM2.5 reduction'!AW61),9))","v":0.99996348700000004},{"$f":"VALUE(FIXED(EXP(AX$4*-1*'PM2.5 reduction'!AX61),9))","v":0.99997482100000001},{"$f":"VALUE(FIXED(EXP(AY$4*-1*'PM2.5 reduction'!AY61),9))","v":0.99996309000000005},{"$f":"VALUE(FIXED(EXP(AZ$4*-1*'PM2.5 reduction'!AZ61),9))","v":0.99995425599999999},{"$f":"VALUE(FIXED(EXP(BA$4*-1*'PM2.5 reduction'!BA61),9))","v":0.999963571},{"$f":"VALUE(FIXED(EXP(BB$4*-1*'PM2.5 reduction'!BB61),9))","v":0.99996702100000001},{"$f":"VALUE(FIXED(EXP(BC$4*-1*'PM2.5 reduction'!BC61),9))","v":1}]
[null,"Female 10-15",{"$f":"VALUE(FIXED(EXP(C$4*-1*'PM2.5 reduction'!C62),9))","v":0.99993874400000005},{"$f":"VALUE(FIXED(EXP(D$4*-1*'PM2.5 reduction'!D62),9))","v":0.99994147499999997},{"$f":"VALUE(FIXED(EXP(E$4*-1*'PM2.5 reduction'!E62),9))","v":0.99997655600000002},{"$f":"VALUE(FIXED(EXP(F$4*-1*'PM2.5 reduction'!F62),9))","v":0.99998556500000002},{"$f":"VALUE(FIXED(EXP(G$4*-1*'PM2.5 reduction'!G62),9))","v":0.99998966899999997},{"$f":"VALUE(FIXED(EXP(H$4*-1*'PM2.5 reduction'!H62),9))","v":0.99997819200000004},{"$f":"VALUE(FIXED(EXP(I$4*-1*'PM2.5 reduction'!I62),9))","v":0.99999000800000004},{"$f":"VALUE(FIXED(EXP(J$4*-1*'PM2.5 reduction'!J62),9))","v":0.99997218099999996},{"$f":"VALUE(FIXED(EXP(K$4*-1*'PM2.5 reduction'!K62),9))","v":0.999969581},{"$f":"VALUE(FIXED(EXP(L$4*-1*'PM2.5 reduction'!L62),9))","v":0.99998905900000001},{"$f":"VALUE(FIXED(EXP(M$4*-1*'PM2.5 reduction'!M62),9))","v":0.99998905900000001},{"$f":"VALUE(FIXED(EXP(N$4*-1*'PM2.5 reduction'!N62),9))","v":0.99994572900000001},{"$f":"VALUE(FIXED(EXP(O$4*-1*'PM2.5 reduction'!O62),9))","v":0.99997634199999996},{"$f":"VALUE(FIXED(EXP(P$4*-1*'PM2.5 reduction'!P62),9))","v":0.99995270300000005},{"$f":"VALUE(FIXED(EXP(Q$4*-1*'PM2.5 reduction'!Q62),9))","v":0.99998100599999995},{"$f":"VALUE(FIXED(EXP(R$4*-1*'PM2.5 reduction'!R62),9))","v":0.99996386199999998},{"$f":"VALUE(FIXED(EXP(S$4*-1*'PM2.5 reduction'!S62),9))","v":0.99996022100000004},{"$f":"VALUE(FIXED(EXP(T$4*-1*'PM2.5 reduction'!T62),9))","v":0.99994111900000004},{"$f":"VALUE(FIXED(EXP(U$4*-1*'PM2.5 reduction'!U62),9))","v":1},{"$f":"VALUE(FIXED(EXP(V$4*-1*'PM2.5 reduction'!V62),9))","v":0.99995768200000001},{"$f":"VALUE(FIXED(EXP(W$4*-1*'PM2.5 reduction'!W62),9))","v":0.99997261800000004},{"$f":"VALUE(FIXED(EXP(X$4*-1*'PM2.5 reduction'!X62),9))","v":0.99997261800000004},{"$f":"VALUE(FIXED(EXP(Y$4*-1*'PM2.5 reduction'!Y62),9))","v":0.99996524499999995},{"$f":"VALUE(FIXED(EXP(Z$4*-1*'PM2.5 reduction'!Z62),9))","v":0.99994042500000002},{"$f":"VALUE(FIXED(EXP(AA$4*-1*'PM2.5 reduction'!AA62),9))","v":0.99995072399999996},{"$f":"VALUE(FIXED(EXP(AB$4*-1*'PM2.5 reduction'!AB62),9))","v":0.99994360100000002},{"$f":"VALUE(FIXED(EXP(AC$4*-1*'PM2.5 reduction'!AC62),9))","v":0.99994751599999998},{"$f":"VALUE(FIXED(EXP(AD$4*-1*'PM2.5 reduction'!AD62),9))","v":0.99998924700000003},{"$f":"VALUE(FIXED(EXP(AE$4*-1*'PM2.5 reduction'!AE62),9))","v":0.99998902000000001},{"$f":"VALUE(FIXED(EXP(AF$4*-1*'PM2.5 reduction'!AF62),9))","v":0.99997051699999995},{"$f":"VALUE(FIXED(EXP(AG$4*-1*'PM2.5 reduction'!AG62),9))","v":0.99998902000000001},{"$f":"VALUE(FIXED(EXP(AH$4*-1*'PM2.5 reduction'!AH62),9))","v":0.99995750100000003},{"$f":"VALUE(FIXED(EXP(AI$4*-1*'PM2.5 reduction'!AI62),9))","v":0.99995174399999998},{"$f":"VALUE(FIXED(EXP(AJ$4*-1*'PM2.5 reduction'!AJ62),9))","v":0.99997283199999998},{"$f":"VALUE(FIXED(EXP(AK$4*-1*'PM2.5 reduction'!AK62),9))","v":0.99998216200000001},{"$f":"VALUE(FIXED(EXP(AL$4*-1*'PM2.5 reduction'!AL62),9))","v":0.99998008999999999},{"$f":"VALUE(FIXED(EXP(AM$4*-1*'PM2.5 reduction'!AM62),9))","v":0.99995413499999997},{"$f":"VALUE(FIXED(EXP(AN$4*-1*'PM2.5 reduction'!AN62),9))","v":1},{"$f":"VALUE(FIXED(EXP(AO$4*-1*'PM2.5 reduction'!AO62),9))","v":1},{"$f":"VALUE(FIXED(EXP(AP$4*-1*'PM2.5 reduction'!AP62),9))","v":0.99997150300000004},{"$f":"VALUE(FIXED(EXP(AQ$4*-1*'PM2.5 reduction'!AQ62),9))","v":0.99995795600000004},{"$f":"VALUE(FIXED(EXP(AR$4*-1*'PM2.5 reduction'!AR62),9))","v":0.999957121},{"$f":"VALUE(FIXED(EXP(AS$4*-1*'PM2.5 reduction'!AS62),9))","v":0.99999000800000004},{"$f":"VALUE(FIXED(EXP(AT$4*-1*'PM2.5 reduction'!AT62),9))","v":1},{"$f":"VALUE(FIXED(EXP(AU$4*-1*'PM2.5 reduction'!AU62),9))","v":1},{"$f":"VALUE(FIXED(EXP(AV$4*-1*'PM2.5 reduction'!AV62),9))","v":0.99997606000000006},{"$f":"VALUE(FIXED(EXP(AW$4*-1*'PM2.5 reduction'!AW62),9))","v":0.99996333900000001},{"$f":"VALUE(FIXED(EXP(AX$4*-1*'PM2.5 reduction'!AX62),9))","v":0.99997494399999998},{"$f":"VALUE(FIXED(EXP(AY$4*-1*'PM2.5 reduction'!AY62),9))","v":0.99996293599999997},{"$f":"VALUE(FIXED(EXP(AZ$4*-1*'PM2.5 reduction'!AZ62),9))","v":0.99995379299999998},{"$f":"VALUE(FIXED(EXP(BA$4*-1*'PM2.5 reduction'!BA62),9))","v":0.99996360100000004},{"$f":"VALUE(FIXED(EXP(BB$4*-1*'PM2.5 reduction'!BB62),9))","v":0.99996704400000003},{"$f":"VALUE(FIXED(EXP(BC$4*-1*'PM2.5 reduction'!BC62),9))","v":1}]
[null,"Female 16-19",{"$f":"VALUE(FIXED(EXP(C$4*-1*'PM2.5 reduction'!C63),9))","v":0.99993672600000005},{"$f":"VALUE(FIXED(EXP(D$4*-1*'PM2.5 reduction'!D63),9))","v":0.99994163300000005},{"$f":"VALUE(FIXED(EXP(E$4*-1*'PM2.5 reduction'!E63),9))","v":0.99997725900000001},{"$f":"VALUE(FIXED(EXP(F$4*-1*'PM2.5 reduction'!F63),9))","v":0.99998532100000004},{"$f":"VALUE(FIXED(EXP(G$4*-1*'PM2.5 reduction'!G63),9))","v":0.9999903},{"$f":"VALUE(FIXED(EXP(H$4*-1*'PM2.5 reduction'!H63),9))","v":0.99997854100000005},{"$f":"VALUE(FIXED(EXP(I$4*-1*'PM2.5 reduction'!I63),9))","v":0.99998975099999998},{"$f":"VALUE(FIXED(EXP(J$4*-1*'PM2.5 reduction'!J63),9))","v":0.99997055499999998},{"$f":"VALUE(FIXED(EXP(K$4*-1*'PM2.5 reduction'!K63),9))","v":0.99996870299999996},{"$f":"VALUE(FIXED(EXP(L$4*-1*'PM2.5 reduction'!L63),9))","v":0.99998890399999996},{"$f":"VALUE(FIXED(EXP(M$4*-1*'PM2.5 reduction'!M63),9))","v":0.99998890399999996},{"$f":"VALUE(FIXED(EXP(N$4*-1*'PM2.5 reduction'!N63),9))","v":0.99994387600000001},{"$f":"VALUE(FIXED(EXP(O$4*-1*'PM2.5 reduction'!O63),9))","v":0.99997735799999998},{"$f":"VALUE(FIXED(EXP(P$4*-1*'PM2.5 reduction'!P63),9))","v":0.99995397500000005},{"$f":"VALUE(FIXED(EXP(Q$4*-1*'PM2.5 reduction'!Q63),9))","v":0.99998126700000001},{"$f":"VALUE(FIXED(EXP(R$4*-1*'PM2.5 reduction'!R63),9))","v":0.99996253099999999},{"$f":"VALUE(FIXED(EXP(S$4*-1*'PM2.5 reduction'!S63),9))","v":0.99996000699999998},{"$f":"VALUE(FIXED(EXP(T$4*-1*'PM2.5 reduction'!T63),9))","v":0.99993926499999997},{"$f":"VALUE(FIXED(EXP(U$4*-1*'PM2.5 reduction'!U63),9))","v":1},{"$f":"VALUE(FIXED(EXP(V$4*-1*'PM2.5 reduction'!V63),9))","v":0.99995657400000004},{"$f":"VALUE(FIXED(EXP(W$4*-1*'PM2.5 reduction'!W63),9))","v":0.99997304200000003},{"$f":"VALUE(FIXED(EXP(X$4*-1*'PM2.5 reduction'!X63),9))","v":0.99997304200000003},{"$f":"VALUE(FIXED(EXP(Y$4*-1*'PM2.5 reduction'!Y63),9))","v":0.99996414},{"$f":"VALUE(FIXED(EXP(Z$4*-1*'PM2.5 reduction'!Z63),9))","v":0.99993669799999996},{"$f":"VALUE(FIXED(EXP(AA$4*-1*'PM2.5 reduction'!AA63),9))","v":0.99994845200000004},{"$f":"VALUE(FIXED(EXP(AB$4*-1*'PM2.5 reduction'!AB63),9))","v":0.99994327000000005},{"$f":"VALUE(FIXED(EXP(AC$4*-1*'PM2.5 reduction'!AC63),9))","v":0.99994444000000005},{"$f":"VALUE(FIXED(EXP(AD$4*-1*'PM2.5 reduction'!AD63),9))","v":0.999989397},{"$f":"VALUE(FIXED(EXP(AE$4*-1*'PM2.5 reduction'!AE63),9))","v":0.99998890500000004},{"$f":"VALUE(FIXED(EXP(AF$4*-1*'PM2.5 reduction'!AF63),9))","v":0.99997057499999997},{"$f":"VALUE(FIXED(EXP(AG$4*-1*'PM2.5 reduction'!AG63),9))","v":0.99998890500000004},{"$f":"VALUE(FIXED(EXP(AH$4*-1*'PM2.5 reduction'!AH63),9))","v":0.99995703000000002},{"$f":"VALUE(FIXED(EXP(AI$4*-1*'PM2.5 reduction'!AI63),9))","v":0.999950326},{"$f":"VALUE(FIXED(EXP(AJ$4*-1*'PM2.5 reduction'!AJ63),9))","v":0.99997274199999997},{"$f":"VALUE(FIXED(EXP(AK$4*-1*'PM2.5 reduction'!AK63),9))","v":0.99998216200000001},{"$f":"VALUE(FIXED(EXP(AL$4*-1*'PM2.5 reduction'!AL63),9))","v":0.99998034400000002},{"$f":"VALUE(FIXED(EXP(AM$4*-1*'PM2.5 reduction'!AM63),9))","v":0.999953694},{"$f":"VALUE(FIXED(EXP(AN$4*-1*'PM2.5 reduction'!AN63),9))","v":1},{"$f":"VALUE(FIXED(EXP(AO$4*-1*'PM2.5 reduction'!AO63),9))","v":1},{"$f":"VALUE(FIXED(EXP(AP$4*-1*'PM2.5 reduction'!AP63),9))","v":0.999969102},{"$f":"VALUE(FIXED(EXP(AQ$4*-1*'PM2.5 reduction'!AQ63),9))","v":0.999955916},{"$f":"VALUE(FIXED(EXP(AR$4*-1*'PM2.5 reduction'!AR63),9))","v":0.99995560000000006},{"$f":"VALUE(FIXED(EXP(AS$4*-1*'PM2.5 reduction'!AS63),9))","v":0.99998975099999998},{"$f":"VALUE(FIXED(EXP(AT$4*-1*'PM2.5 reduction'!AT63),9))","v":1},{"$f":"VALUE(FIXED(EXP(AU$4*-1*'PM2.5 reduction'!AU63),9))","v":1},{"$f":"VALUE(FIXED(EXP(AV$4*-1*'PM2.5 reduction'!AV63),9))","v":0.99997567499999995},{"$f":"VALUE(FIXED(EXP(AW$4*-1*'PM2.5 reduction'!AW63),9))","v":0.99996277600000005},{"$f":"VALUE(FIXED(EXP(AX$4*-1*'PM2.5 reduction'!AX63),9))","v":0.99997219100000001},{"$f":"VALUE(FIXED(EXP(AY$4*-1*'PM2.5 reduction'!AY63),9))","v":0.99996191499999998},{"$f":"VALUE(FIXED(EXP(AZ$4*-1*'PM2.5 reduction'!AZ63),9))","v":0.99995164700000005},{"$f":"VALUE(FIXED(EXP(BA$4*-1*'PM2.5 reduction'!BA63),9))","v":0.99996311999999998},{"$f":"VALUE(FIXED(EXP(BB$4*-1*'PM2.5 reduction'!BB63),9))","v":0.99996610600000002},{"$f":"VALUE(FIXED(EXP(BC$4*-1*'PM2.5 reduction'!BC63),9))","v":1}]
[null,"Female 20-24",{"$f":"VALUE(FIXED(EXP(C$4*-1*'PM2.5 reduction'!C64),9))","v":0.99993313500000003},{"$f":"VALUE(FIXED(EXP(D$4*-1*'PM2.5 reduction'!D64),9))","v":0.99993738499999996},{"$f":"VALUE(FIXED(EXP(E$4*-1*'PM2.5 reduction'!E64),9))","v":0.99997564100000003},{"$f":"VALUE(FIXED(EXP(F$4*-1*'PM2.5 reduction'!F64),9))","v":0.999985444},{"$f":"VALUE(FIXED(EXP(G$4*-1*'PM2.5 reduction'!G64),9))","v":0.99998990700000001},{"$f":"VALUE(FIXED(EXP(H$4*-1*'PM2.5 reduction'!H64),9))","v":0.999977436},{"$f":"VALUE(FIXED(EXP(I$4*-1*'PM2.5 reduction'!I64),9))","v":0.99998983399999997},{"$f":"VALUE(FIXED(EXP(J$4*-1*'PM2.5 reduction'!J64),9))","v":0.99996801599999996},{"$f":"VALUE(FIXED(EXP(K$4*-1*'PM2.5 reduction'!K64),9))","v":0.99996895399999997},{"$f":"VALUE(FIXED(EXP(L$4*-1*'PM2.5 reduction'!L64),9))","v":0.99998907299999995},{"$f":"VALUE(FIXED(EXP(M$4*-1*'PM2.5 reduction'!M64),9))","v":0.99998907299999995},{"$f":"VALUE(FIXED(EXP(N$4*-1*'PM2.5 reduction'!N64),9))","v":0.99993730000000003},{"$f":"VALUE(FIXED(EXP(O$4*-1*'PM2.5 reduction'!O64),9))","v":0.99997619599999998},{"$f":"VALUE(FIXED(EXP(P$4*-1*'PM2.5 reduction'!P64),9))","v":0.99995587399999997},{"$f":"VALUE(FIXED(EXP(Q$4*-1*'PM2.5 reduction'!Q64),9))","v":0.99998113499999997},{"$f":"VALUE(FIXED(EXP(R$4*-1*'PM2.5 reduction'!R64),9))","v":0.99996216800000004},{"$f":"VALUE(FIXED(EXP(S$4*-1*'PM2.5 reduction'!S64),9))","v":0.999956709},{"$f":"VALUE(FIXED(EXP(T$4*-1*'PM2.5 reduction'!T64),9))","v":0.99993574100000004},{"$f":"VALUE(FIXED(EXP(U$4*-1*'PM2.5 reduction'!U64),9))","v":1},{"$f":"VALUE(FIXED(EXP(V$4*-1*'PM2.5 reduction'!V64),9))","v":0.999956556},{"$f":"VALUE(FIXED(EXP(W$4*-1*'PM2.5 reduction'!W64),9))","v":0.99997206500000002},{"$f":"VALUE(FIXED(EXP(X$4*-1*'PM2.5 reduction'!X64),9))","v":0.99997206500000002},{"$f":"VALUE(FIXED(EXP(Y$4*-1*'PM2.5 reduction'!Y64),9))","v":0.99996268899999996},{"$f":"VALUE(FIXED(EXP(Z$4*-1*'PM2.5 reduction'!Z64),9))","v":0.99993390800000004},{"$f":"VALUE(FIXED(EXP(AA$4*-1*'PM2.5 reduction'!AA64),9))","v":0.99994565199999996},{"$f":"VALUE(FIXED(EXP(AB$4*-1*'PM2.5 reduction'!AB64),9))","v":0.99993940800000003},{"$f":"VALUE(FIXED(EXP(AC$4*-1*'PM2.5 reduction'!AC64),9))","v":0.99994152199999997},{"$f":"VALUE(FIXED(EXP(AD$4*-1*'PM2.5 reduction'!AD64),9))","v":0.99998928600000003},{"$f":"VALUE(FIXED(EXP(AE$4*-1*'PM2.5 reduction'!AE64),9))","v":0.99998895200000004},{"$f":"VALUE(FIXED(EXP(AF$4*-1*'PM2.5 reduction'!AF64),9))","v":0.99996838799999999},{"$f":"VALUE(FIXED(EXP(AG$4*-1*'PM2.5 reduction'!AG64),9))","v":0.99998895200000004},{"$f":"VALUE(FIXED(EXP(AH$4*-1*'PM2.5 reduction'!AH64),9))","v":0.99995655299999997},{"$f":"VALUE(FIXED(EXP(AI$4*-1*'PM2.5 reduction'!AI64),9))","v":0.999947382},{"$f":"VALUE(FIXED(EXP(AJ$4*-1*'PM2.5 reduction'!AJ64),9))","v":0.99997159300000005},{"$f":"VALUE(FIXED(EXP(AK$4*-1*'PM2.5 reduction'!AK64),9))","v":0.99998216200000001},{"$f":"VALUE(FIXED(EXP(AL$4*-1*'PM2.5 reduction'!AL64),9))","v":0.99997944100000002},{"$f":"VALUE(FIXED(EXP(AM$4*-1*'PM2.5 reduction'!AM64),9))","v":0.99995345599999996},{"$f":"VALUE(FIXED(EXP(AN$4*-1*'PM2.5 reduction'!AN64),9))","v":1},{"$f":"VALUE(FIXED(EXP(AO$4*-1*'PM2.5 reduction'!AO64),9))","v":1},{"$f":"VALUE(FIXED(EXP(AP$4*-1*'PM2.5 reduction'!AP64),9))","v":0.99995933400000003},{"$f":"VALUE(FIXED(EXP(AQ$4*-1*'PM2.5 reduction'!AQ64),9))","v":0.99995259400000003},{"$f":"VALUE(FIXED(EXP(AR$4*-1*'PM2.5 reduction'!AR64),9))","v":0.99995210899999998},{"$f":"VALUE(FIXED(EXP(AS$4*-1*'PM2.5 reduction'!AS64),9))","v":0.99998983399999997},{"$f":"VALUE(FIXED(EXP(AT$4*-1*'PM2.5 reduction'!AT64),9))","v":1},{"$f":"VALUE(FIXED(EXP(AU$4*-1*'PM2.5 reduction'!AU64),9))","v":1},{"$f":"VALUE(FIXED(EXP(AV$4*-1*'PM2.5 reduction'!AV64),9))","v":0.99997425200000001},{"$f":"VALUE(FIXED(EXP(AW$4*-1*'PM2.5 reduction'!AW64),9))","v":0.99996176400000003},{"$f":"VALUE(FIXED(EXP(AX$4*-1*'PM2.5 reduction'!AX64),9))","v":0.99996720100000003},{"$f":"VALUE(FIXED(EXP(AY$4*-1*'PM2.5 reduction'!AY64),9))","v":0.99995592499999997},{"$f":"VALUE(FIXED(EXP(AZ$4*-1*'PM2.5 reduction'!AZ64),9))","v":0.99994452599999994},{"$f":"VALUE(FIXED(EXP(BA$4*-1*'PM2.5 reduction'!BA64),9))","v":0.99996088599999999},{"$f":"VALUE(FIXED(EXP(BB$4*-1*'PM2.5 reduction'!BB64),9))","v":0.99996593700000003},{"$f":"VALUE(FIXED(EXP(BC$4*-1*'PM2.5 reduction'!BC64),9))","v":1}]
[null,"Female 25-29",{"$f":"VALUE(FIXED(EXP(C$4*-1*'PM2.5 reduction'!C65),9))","v":0.999933454},{"$f":"VALUE(FIXED(EXP(D$4*-1*'PM2.5 reduction'!D65),9))","v":0.99993797699999998},{"$f":"VALUE(FIXED(EXP(E$4*-1*'PM2.5 reduction'!E65),9))","v":0.99997540299999998},{"$f":"VALUE(FIXED(EXP(F$4*-1*'PM2.5 reduction'!F65),9))","v":0.999986441},{"$f":"VALUE(FIXED(EXP(G$4*-1*'PM2.5 reduction'!G65),9))","v":0.99999019700000003},{"$f":"VALUE(FIXED(EXP(H$4*-1*'PM2.5 reduction'!H65),9))","v":0.99997657799999995},{"$f":"VALUE(FIXED(EXP(I$4*-1*'PM2.5 reduction'!I65),9))","v":0.99999001799999998},{"$f":"VALUE(FIXED(EXP(J$4*-1*'PM2.5 reduction'!J65),9))","v":0.99996976699999995},{"$f":"VALUE(FIXED(EXP(K$4*-1*'PM2.5 reduction'!K65),9))","v":0.99996775999999998},{"$f":"VALUE(FIXED(EXP(L$4*-1*'PM2.5 reduction'!L65),9))","v":0.99998862600000005},{"$f":"VALUE(FIXED(EXP(M$4*-1*'PM2.5 reduction'!M65),9))","v":0.99998862600000005},{"$f":"VALUE(FIXED(EXP(N$4*-1*'PM2.5 reduction'!N65),9))","v":0.99994073000000006},{"$f":"VALUE(FIXED(EXP(O$4*-1*'PM2.5 reduction'!O65),9))","v":0.999974429},{"$f":"VALUE(FIXED(EXP(P$4*-1*'PM2.5 reduction'!P65),9))","v":0.99995200100000003},{"$f":"VALUE(FIXED(EXP(Q$4*-1*'PM2.5 reduction'!Q65),9))","v":0.999980588},{"$f":"VALUE(FIXED(EXP(R$4*-1*'PM2.5 reduction'!R65),9))","v":0.99996138099999998},{"$f":"VALUE(FIXED(EXP(S$4*-1*'PM2.5 reduction'!S65),9))","v":0.99995418800000002},{"$f":"VALUE(FIXED(EXP(T$4*-1*'PM2.5 reduction'!T65),9))","v":0.99993541200000002},{"$f":"VALUE(FIXED(EXP(U$4*-1*'PM2.5 reduction'!U65),9))","v":1},{"$f":"VALUE(FIXED(EXP(V$4*-1*'PM2.5 reduction'!V65),9))","v":0.99995547799999995},{"$f":"VALUE(FIXED(EXP(W$4*-1*'PM2.5 reduction'!W65),9))","v":0.99997195900000002},{"$f":"VALUE(FIXED(EXP(X$4*-1*'PM2.5 reduction'!X65),9))","v":0.99997195900000002},{"$f":"VALUE(FIXED(EXP(Y$4*-1*'PM2.5 reduction'!Y65),9))","v":0.99996275700000004},{"$f":"VALUE(FIXED(EXP(Z$4*-1*'PM2.5 reduction'!Z65),9))","v":0.99993518199999998},{"$f":"VALUE(FIXED(EXP(AA$4*-1*'PM2.5 reduction'!AA65),9))","v":0.99994481400000002},{"$f":"VALUE(FIXED(EXP(AB$4*-1*'PM2.5 reduction'!AB65),9))","v":0.99993902499999998},{"$f":"VALUE(FIXED(EXP(AC$4*-1*'PM2.5 reduction'!AC65),9))","v":0.99994104900000003},{"$f":"VALUE(FIXED(EXP(AD$4*-1*'PM2.5 reduction'!AD65),9))","v":0.99998928099999995},{"$f":"VALUE(FIXED(EXP(AE$4*-1*'PM2.5 reduction'!AE65),9))","v":0.99998884099999996},{"$f":"VALUE(FIXED(EXP(AF$4*-1*'PM2.5 reduction'!AF65),9))","v":0.99996738900000004},{"$f":"VALUE(FIXED(EXP(AG$4*-1*'PM2.5 reduction'!AG65),9))","v":0.99998884099999996},{"$f":"VALUE(FIXED(EXP(AH$4*-1*'PM2.5 reduction'!AH65),9))","v":0.99995668400000004},{"$f":"VALUE(FIXED(EXP(AI$4*-1*'PM2.5 reduction'!AI65),9))","v":0.99994462699999997},{"$f":"VALUE(FIXED(EXP(AJ$4*-1*'PM2.5 reduction'!AJ65),9))","v":0.99996981399999996},{"$f":"VALUE(FIXED(EXP(AK$4*-1*'PM2.5 reduction'!AK65),9))","v":0.99998216200000001},{"$f":"VALUE(FIXED(EXP(AL$4*-1*'PM2.5 reduction'!AL65),9))","v":0.99997928700000005},{"$f":"VALUE(FIXED(EXP(AM$4*-1*'PM2.5 reduction'!AM65),9))","v":0.99995369599999995},{"$f":"VALUE(FIXED(EXP(AN$4*-1*'PM2.5 reduction'!AN65),9))","v":1},{"$f":"VALUE(FIXED(EXP(AO$4*-1*'PM2.5 reduction'!AO65),9))","v":1},{"$f":"VALUE(FIXED(EXP(AP$4*-1*'PM2.5 reduction'!AP65),9))","v":0.99996046500000002},{"$f":"VALUE(FIXED(EXP(AQ$4*-1*'PM2.5 reduction'!AQ65),9))","v":0.99995227799999997},{"$f":"VALUE(FIXED(EXP(AR$4*-1*'PM2.5 reduction'!AR65),9))","v":0.99995062400000001},{"$f":"VALUE(FIXED(EXP(AS$4*-1*'PM2.5 reduction'!AS65),9))","v":0.99999001799999998},{"$f":"VALUE(FIXED(EXP(AT$4*-1*'PM2.5 reduction'!AT65),9))","v":1},{"$f":"VALUE(FIXED(EXP(AU$4*-1*'PM2.5 reduction'!AU65),9))","v":1},{"$f":"VALUE(FIXED(EXP(AV$4*-1*'PM2.5 reduction'!AV65),9))","v":0.99997308200000001},{"$f":"VALUE(FIXED(EXP(AW$4*-1*'PM2.5 reduction'!AW65),9))","v":0.99996189899999999},{"$f":"VALUE(FIXED(EXP(AX$4*-1*'PM2.5 reduction'!AX65),9))","v":0.99997128599999996},{"$f":"VALUE(FIXED(EXP(AY$4*-1*'PM2.5 reduction'!AY65),9))","v":0.99995674599999995},{"$f":"VALUE(FIXED(EXP(AZ$4*-1*'PM2.5 reduction'!AZ65),9))","v":0.99994633799999999},{"$f":"VALUE(FIXED(EXP(BA$4*-1*'PM2.5 reduction'!BA65),9))","v":0.99996163699999996},{"$f":"VALUE(FIXED(EXP(BB$4*-1*'PM2.5 reduction'!BB65),9))","v":0.99996697199999995},{"$f":"VALUE(FIXED(EXP(BC$4*-1*'PM2.5 reduction'!BC65),9))","v":1}]
[null,"Female 30-34",{"$f":"VALUE(FIXED(EXP(C$4*-1*'PM2.5 reduction'!C66),9))","v":0.99993628599999995},{"$f":"VALUE(FIXED(EXP(D$4*-1*'PM2.5 reduction'!D66),9))","v":0.99994033599999999},{"$f":"VALUE(FIXED(EXP(E$4*-1*'PM2.5 reduction'!E66),9))","v":0.99997568100000001},{"$f":"VALUE(FIXED(EXP(F$4*-1*'PM2.5 reduction'!F66),9))","v":0.99998531700000004},{"$f":"VALUE(FIXED(EXP(G$4*-1*'PM2.5 reduction'!G66),9))","v":0.99999017800000001},{"$f":"VALUE(FIXED(EXP(H$4*-1*'PM2.5 reduction'!H66),9))","v":0.99997658599999995},{"$f":"VALUE(FIXED(EXP(I$4*-1*'PM2.5 reduction'!I66),9))","v":0.99998966899999997},{"$f":"VALUE(FIXED(EXP(J$4*-1*'PM2.5 reduction'!J66),9))","v":0.999970005},{"$f":"VALUE(FIXED(EXP(K$4*-1*'PM2.5 reduction'!K66),9))","v":0.99996768899999999},{"$f":"VALUE(FIXED(EXP(L$4*-1*'PM2.5 reduction'!L66),9))","v":0.99998841500000002},{"$f":"VALUE(FIXED(EXP(M$4*-1*'PM2.5 reduction'!M66),9))","v":0.99998841500000002},{"$f":"VALUE(FIXED(EXP(N$4*-1*'PM2.5 reduction'!N66),9))","v":0.99994367100000003},{"$f":"VALUE(FIXED(EXP(O$4*-1*'PM2.5 reduction'!O66),9))","v":0.99997362300000003},{"$f":"VALUE(FIXED(EXP(P$4*-1*'PM2.5 reduction'!P66),9))","v":0.99995295799999995},{"$f":"VALUE(FIXED(EXP(Q$4*-1*'PM2.5 reduction'!Q66),9))","v":0.99998031600000004},{"$f":"VALUE(FIXED(EXP(R$4*-1*'PM2.5 reduction'!R66),9))","v":0.99996337499999999},{"$f":"VALUE(FIXED(EXP(S$4*-1*'PM2.5 reduction'!S66),9))","v":0.99995397799999997},{"$f":"VALUE(FIXED(EXP(T$4*-1*'PM2.5 reduction'!T66),9))","v":0.99993634600000003},{"$f":"VALUE(FIXED(EXP(U$4*-1*'PM2.5 reduction'!U66),9))","v":1},{"$f":"VALUE(FIXED(EXP(V$4*-1*'PM2.5 reduction'!V66),9))","v":0.99995700799999998},{"$f":"VALUE(FIXED(EXP(W$4*-1*'PM2.5 reduction'!W66),9))","v":0.99997123600000004},{"$f":"VALUE(FIXED(EXP(X$4*-1*'PM2.5 reduction'!X66),9))","v":0.99997123600000004},{"$f":"VALUE(FIXED(EXP(Y$4*-1*'PM2.5 reduction'!Y66),9))","v":0.99996312200000004},{"$f":"VALUE(FIXED(EXP(Z$4*-1*'PM2.5 reduction'!Z66),9))","v":0.99993613100000001},{"$f":"VALUE(FIXED(EXP(AA$4*-1*'PM2.5 reduction'!AA66),9))","v":0.99994654900000002},{"$f":"VALUE(FIXED(EXP(AB$4*-1*'PM2.5 reduction'!AB66),9))","v":0.99994188900000003},{"$f":"VALUE(FIXED(EXP(AC$4*-1*'PM2.5 reduction'!AC66),9))","v":0.99994260199999996},{"$f":"VALUE(FIXED(EXP(AD$4*-1*'PM2.5 reduction'!AD66),9))","v":0.99998922400000001},{"$f":"VALUE(FIXED(EXP(AE$4*-1*'PM2.5 reduction'!AE66),9))","v":0.99998879699999998},{"$f":"VALUE(FIXED(EXP(AF$4*-1*'PM2.5 reduction'!AF66),9))","v":0.99996793299999998},{"$f":"VALUE(FIXED(EXP(AG$4*-1*'PM2.5 reduction'!AG66),9))","v":0.99998879699999998},{"$f":"VALUE(FIXED(EXP(AH$4*-1*'PM2.5 reduction'!AH66),9))","v":0.99995676099999997},{"$f":"VALUE(FIXED(EXP(AI$4*-1*'PM2.5 reduction'!AI66),9))","v":0.99994551799999998},{"$f":"VALUE(FIXED(EXP(AJ$4*-1*'PM2.5 reduction'!AJ66),9))","v":0.99997023100000004},{"$f":"VALUE(FIXED(EXP(AK$4*-1*'PM2.5 reduction'!AK66),9))","v":0.99998216200000001},{"$f":"VALUE(FIXED(EXP(AL$4*-1*'PM2.5 reduction'!AL66),9))","v":0.99997963899999998},{"$f":"VALUE(FIXED(EXP(AM$4*-1*'PM2.5 reduction'!AM66),9))","v":0.99995377600000002},{"$f":"VALUE(FIXED(EXP(AN$4*-1*'PM2.5 reduction'!AN66),9))","v":1},{"$f":"VALUE(FIXED(EXP(AO$4*-1*'PM2.5 reduction'!AO66),9))","v":1},{"$f":"VALUE(FIXED(EXP(AP$4*-1*'PM2.5 reduction'!AP66),9))","v":0.999964827},{"$f":"VALUE(FIXED(EXP(AQ$4*-1*'PM2.5 reduction'!AQ66),9))","v":0.99995482300000005},{"$f":"VALUE(FIXED(EXP(AR$4*-1*'PM2.5 reduction'!AR66),9))","v":0.99995215400000004},{"$f":"VALUE(FIXED(EXP(AS$4*-1*'PM2.5 reduction'!AS66),9))","v":0.99998966899999997},{"$f":"VALUE(FIXED(EXP(AT$4*-1*'PM2.5 reduction'!AT66),9))","v":1},{"$f":"VALUE(FIXED(EXP(AU$4*-1*'PM2.5 reduction'!AU66),9))","v":1},{"$f":"VALUE(FIXED(EXP(AV$4*-1*'PM2.5 reduction'!AV66),9))","v":0.99997415300000003},{"$f":"VALUE(FIXED(EXP(AW$4*-1*'PM2.5 reduction'!AW66),9))","v":0.99996158700000004},{"$f":"VALUE(FIXED(EXP(AX$4*-1*'PM2.5 reduction'!AX66),9))","v":0.99997214499999998},{"$f":"VALUE(FIXED(EXP(AY$4*-1*'PM2.5 reduction'!AY66),9))","v":0.999959178},{"$f":"VALUE(FIXED(EXP(AZ$4*-1*'PM2.5 reduction'!AZ66),9))","v":0.999950483},{"$f":"VALUE(FIXED(EXP(BA$4*-1*'PM2.5 reduction'!BA66),9))","v":0.99996189599999996},{"$f":"VALUE(FIXED(EXP(BB$4*-1*'PM2.5 reduction'!BB66),9))","v":0.99996733199999999},{"$f":"VALUE(FIXED(EXP(BC$4*-1*'PM2.5 reduction'!BC66),9))","v":1}]
[null,"Female 35-39",{"$f":"VALUE(FIXED(EXP(C$4*-1*'PM2.5 reduction'!C67),9))","v":0.99993572799999997},{"$f":"VALUE(FIXED(EXP(D$4*-1*'PM2.5 reduction'!D67),9))","v":0.99993989299999997},{"$f":"VALUE(FIXED(EXP(E$4*-1*'PM2.5 reduction'!E67),9))","v":0.99997731199999995},{"$f":"VALUE(FIXED(EXP(F$4*-1*'PM2.5 reduction'!F67),9))","v":0.99998479799999995},{"$f":"VALUE(FIXED(EXP(G$4*-1*'PM2.5 reduction'!G67),9))","v":0.99999014600000002},{"$f":"VALUE(FIXED(EXP(H$4*-1*'PM2.5 reduction'!H67),9))","v":0.99997751300000004},{"$f":"VALUE(FIXED(EXP(I$4*-1*'PM2.5 reduction'!I67),9))","v":0.99999003799999997},{"$f":"VALUE(FIXED(EXP(J$4*-1*'PM2.5 reduction'!J67),9))","v":0.99997080199999999},{"$f":"VALUE(FIXED(EXP(K$4*-1*'PM2.5 reduction'!K67),9))","v":0.99996924099999995},{"$f":"VALUE(FIXED(EXP(L$4*-1*'PM2.5 reduction'!L67),9))","v":0.99998897899999994},{"$f":"VALUE(FIXED(EXP(M$4*-1*'PM2.5 reduction'!M67),9))","v":0.99998897899999994},{"$f":"VALUE(FIXED(EXP(N$4*-1*'PM2.5 reduction'!N67),9))","v":0.99994460699999999},{"$f":"VALUE(FIXED(EXP(O$4*-1*'PM2.5 reduction'!O67),9))","v":0.99997491699999996},{"$f":"VALUE(FIXED(EXP(P$4*-1*'PM2.5 reduction'!P67),9))","v":0.99995418599999997},{"$f":"VALUE(FIXED(EXP(Q$4*-1*'PM2.5 reduction'!Q67),9))","v":0.99998067000000002},{"$f":"VALUE(FIXED(EXP(R$4*-1*'PM2.5 reduction'!R67),9))","v":0.99996236100000002},{"$f":"VALUE(FIXED(EXP(S$4*-1*'PM2.5 reduction'!S67),9))","v":0.99995579700000004},{"$f":"VALUE(FIXED(EXP(T$4*-1*'PM2.5 reduction'!T67),9))","v":0.99993729899999995},{"$f":"VALUE(FIXED(EXP(U$4*-1*'PM2.5 reduction'!U67),9))","v":1},{"$f":"VALUE(FIXED(EXP(V$4*-1*'PM2.5 reduction'!V67),9))","v":0.99995655999999999},{"$f":"VALUE(FIXED(EXP(W$4*-1*'PM2.5 reduction'!W67),9))","v":0.99997206100000002},{"$f":"VALUE(FIXED(EXP(X$4*-1*'PM2.5 reduction'!X67),9))","v":0.99997206100000002},{"$f":"VALUE(FIXED(EXP(Y$4*-1*'PM2.5 reduction'!Y67),9))","v":0.99996394700000002},{"$f":"VALUE(FIXED(EXP(Z$4*-1*'PM2.5 reduction'!Z67),9))","v":0.99993738799999998},{"$f":"VALUE(FIXED(EXP(AA$4*-1*'PM2.5 reduction'!AA67),9))","v":0.99994757700000003},{"$f":"VALUE(FIXED(EXP(AB$4*-1*'PM2.5 reduction'!AB67),9))","v":0.99994147},{"$f":"VALUE(FIXED(EXP(AC$4*-1*'PM2.5 reduction'!AC67),9))","v":0.99994383899999995},{"$f":"VALUE(FIXED(EXP(AD$4*-1*'PM2.5 reduction'!AD67),9))","v":0.99998891400000001},{"$f":"VALUE(FIXED(EXP(AE$4*-1*'PM2.5 reduction'!AE67),9))","v":0.99998825099999999},{"$f":"VALUE(FIXED(EXP(AF$4*-1*'PM2.5 reduction'!AF67),9))","v":0.99996918499999998},{"$f":"VALUE(FIXED(EXP(AG$4*-1*'PM2.5 reduction'!AG67),9))","v":0.99998825099999999},{"$f":"VALUE(FIXED(EXP(AH$4*-1*'PM2.5 reduction'!AH67),9))","v":0.99995684200000001},{"$f":"VALUE(FIXED(EXP(AI$4*-1*'PM2.5 reduction'!AI67),9))","v":0.99994703500000004},{"$f":"VALUE(FIXED(EXP(AJ$4*-1*'PM2.5 reduction'!AJ67),9))","v":0.99997159199999996},{"$f":"VALUE(FIXED(EXP(AK$4*-1*'PM2.5 reduction'!AK67),9))","v":0.99998216200000001},{"$f":"VALUE(FIXED(EXP(AL$4*-1*'PM2.5 reduction'!AL67),9))","v":0.99998013200000002},{"$f":"VALUE(FIXED(EXP(AM$4*-1*'PM2.5 reduction'!AM67),9))","v":0.99995352800000004},{"$f":"VALUE(FIXED(EXP(AN$4*-1*'PM2.5 reduction'!AN67),9))","v":1},{"$f":"VALUE(FIXED(EXP(AO$4*-1*'PM2.5 reduction'!AO67),9))","v":1},{"$f":"VALUE(FIXED(EXP(AP$4*-1*'PM2.5 reduction'!AP67),9))","v":0.99997029100000001},{"$f":"VALUE(FIXED(EXP(AQ$4*-1*'PM2.5 reduction'!AQ67),9))","v":0.99995464899999997},{"$f":"VALUE(FIXED(EXP(AR$4*-1*'PM2.5 reduction'!AR67),9))","v":0.99995340200000005},{"$f":"VALUE(FIXED(EXP(AS$4*-1*'PM2.5 reduction'!AS67),9))","v":0.99999003799999997},{"$f":"VALUE(FIXED(EXP(AT$4*-1*'PM2.5 reduction'!AT67),9))","v":1},{"$f":"VALUE(FIXED(EXP(AU$4*-1*'PM2.5 reduction'!AU67),9))","v":1},{"$f":"VALUE(FIXED(EXP(AV$4*-1*'PM2.5 reduction'!AV67),9))","v":0.99997472600000004},{"$f":"VALUE(FIXED(EXP(AW$4*-1*'PM2.5 reduction'!AW67),9))","v":0.99996222499999998},{"$f":"VALUE(FIXED(EXP(AX$4*-1*'PM2.5 reduction'!AX67),9))","v":0.99997276899999998},{"$f":"VALUE(FIXED(EXP(AY$4*-1*'PM2.5 reduction'!AY67),9))","v":0.99996129},{"$f":"VALUE(FIXED(EXP(AZ$4*-1*'PM2.5 reduction'!AZ67),9))","v":0.99995254200000006},{"$f":"VALUE(FIXED(EXP(BA$4*-1*'PM2.5 reduction'!BA67),9))","v":0.99996258500000001},{"$f":"VALUE(FIXED(EXP(BB$4*-1*'PM2.5 reduction'!BB67),9))","v":0.99996674799999996},{"$f":"VALUE(FIXED(EXP(BC$4*-1*'PM2.5 reduction'!BC67),9))","v":1}]
[null,"Female 40-44",{"$f":"VALUE(FIXED(EXP(C$4*-1*'PM2.5 reduction'!C68),9))","v":0.99993728800000004},{"$f":"VALUE(FIXED(EXP(D$4*-1*'PM2.5 reduction'!D68),9))","v":0.99994071200000001},{"$f":"VALUE(FIXED(EXP(E$4*-1*'PM2.5 reduction'!E68),9))","v":0.99997647599999995},{"$f":"VALUE(FIXED(EXP(F$4*-1*'PM2.5 reduction'!F68),9))","v":0.99998548700000001},{"$f":"VALUE(FIXED(EXP(G$4*-1*'PM2.5 reduction'!G68),9))","v":0.99999004300000005},{"$f":"VALUE(FIXED(EXP(H$4*-1*'PM2.5 reduction'!H68),9))","v":0.99997760499999999},{"$f":"VALUE(FIXED(EXP(I$4*-1*'PM2.5 reduction'!I68),9))","v":0.99998959399999998},{"$f":"VALUE(FIXED(EXP(J$4*-1*'PM2.5 reduction'!J68),9))","v":0.99997076500000004},{"$f":"VALUE(FIXED(EXP(K$4*-1*'PM2.5 reduction'!K68),9))","v":0.99996865700000004},{"$f":"VALUE(FIXED(EXP(L$4*-1*'PM2.5 reduction'!L68),9))","v":0.99998837399999996},{"$f":"VALUE(FIXED(EXP(M$4*-1*'PM2.5 reduction'!M68),9))","v":0.99998837399999996},{"$f":"VALUE(FIXED(EXP(N$4*-1*'PM2.5 reduction'!N68),9))","v":0.999944838},{"$f":"VALUE(FIXED(EXP(O$4*-1*'PM2.5 reduction'!O68),9))","v":0.99997557400000003},{"$f":"VALUE(FIXED(EXP(P$4*-1*'PM2.5 reduction'!P68),9))","v":0.99995390200000001},{"$f":"VALUE(FIXED(EXP(Q$4*-1*'PM2.5 reduction'!Q68),9))","v":0.99998128500000005},{"$f":"VALUE(FIXED(EXP(R$4*-1*'PM2.5 reduction'!R68),9))","v":0.999961926},{"$f":"VALUE(FIXED(EXP(S$4*-1*'PM2.5 reduction'!S68),9))","v":0.99995826200000004},{"$f":"VALUE(FIXED(EXP(T$4*-1*'PM2.5 reduction'!T68),9))","v":0.99993785300000004},{"$f":"VALUE(FIXED(EXP(U$4*-1*'PM2.5 reduction'!U68),9))","v":1},{"$f":"VALUE(FIXED(EXP(V$4*-1*'PM2.5 reduction'!V68),9))","v":0.99995574499999995},{"$f":"VALUE(FIXED(EXP(W$4*-1*'PM2.5 reduction'!W68),9))","v":0.99997209200000003},{"$f":"VALUE(FIXED(EXP(X$4*-1*'PM2.5 reduction'!X68),9))","v":0.99997209200000003},{"$f":"VALUE(FIXED(EXP(Y$4*-1*'PM2.5 reduction'!Y68),9))","v":0.99996279300000002},{"$f":"VALUE(FIXED(EXP(Z$4*-1*'PM2.5 reduction'!Z68),9))","v":0.99993867299999994},{"$f":"VALUE(FIXED(EXP(AA$4*-1*'PM2.5 reduction'!AA68),9))","v":0.99994866400000004},{"$f":"VALUE(FIXED(EXP(AB$4*-1*'PM2.5 reduction'!AB68),9))","v":0.99994250900000003},{"$f":"VALUE(FIXED(EXP(AC$4*-1*'PM2.5 reduction'!AC68),9))","v":0.99994501000000002},{"$f":"VALUE(FIXED(EXP(AD$4*-1*'PM2.5 reduction'!AD68),9))","v":0.99998991800000003},{"$f":"VALUE(FIXED(EXP(AE$4*-1*'PM2.5 reduction'!AE68),9))","v":0.99998984099999999},{"$f":"VALUE(FIXED(EXP(AF$4*-1*'PM2.5 reduction'!AF68),9))","v":0.999968152},{"$f":"VALUE(FIXED(EXP(AG$4*-1*'PM2.5 reduction'!AG68),9))","v":0.99998984099999999},{"$f":"VALUE(FIXED(EXP(AH$4*-1*'PM2.5 reduction'!AH68),9))","v":0.99995685899999998},{"$f":"VALUE(FIXED(EXP(AI$4*-1*'PM2.5 reduction'!AI68),9))","v":0.99994921699999995},{"$f":"VALUE(FIXED(EXP(AJ$4*-1*'PM2.5 reduction'!AJ68),9))","v":0.99997103399999998},{"$f":"VALUE(FIXED(EXP(AK$4*-1*'PM2.5 reduction'!AK68),9))","v":0.99998216200000001},{"$f":"VALUE(FIXED(EXP(AL$4*-1*'PM2.5 reduction'!AL68),9))","v":0.99997989799999998},{"$f":"VALUE(FIXED(EXP(AM$4*-1*'PM2.5 reduction'!AM68),9))","v":0.99995367099999999},{"$f":"VALUE(FIXED(EXP(AN$4*-1*'PM2.5 reduction'!AN68),9))","v":1},{"$f":"VALUE(FIXED(EXP(AO$4*-1*'PM2.5 reduction'!AO68),9))","v":1},{"$f":"VALUE(FIXED(EXP(AP$4*-1*'PM2.5 reduction'!AP68),9))","v":0.99996998500000001},{"$f":"VALUE(FIXED(EXP(AQ$4*-1*'PM2.5 reduction'!AQ68),9))","v":0.99995449199999997},{"$f":"VALUE(FIXED(EXP(AR$4*-1*'PM2.5 reduction'!AR68),9))","v":0.99995500199999998},{"$f":"VALUE(FIXED(EXP(AS$4*-1*'PM2.5 reduction'!AS68),9))","v":0.99998959399999998},{"$f":"VALUE(FIXED(EXP(AT$4*-1*'PM2.5 reduction'!AT68),9))","v":1},{"$f":"VALUE(FIXED(EXP(AU$4*-1*'PM2.5 reduction'!AU68),9))","v":1},{"$f":"VALUE(FIXED(EXP(AV$4*-1*'PM2.5 reduction'!AV68),9))","v":0.99997483099999995},{"$f":"VALUE(FIXED(EXP(AW$4*-1*'PM2.5 reduction'!AW68),9))","v":0.999962295},{"$f":"VALUE(FIXED(EXP(AX$4*-1*'PM2.5 reduction'!AX68),9))","v":0.99997307999999996},{"$f":"VALUE(FIXED(EXP(AY$4*-1*'PM2.5 reduction'!AY68),9))","v":0.99996240999999997},{"$f":"VALUE(FIXED(EXP(AZ$4*-1*'PM2.5 reduction'!AZ68),9))","v":0.99995272300000004},{"$f":"VALUE(FIXED(EXP(BA$4*-1*'PM2.5 reduction'!BA68),9))","v":0.99996253899999998},{"$f":"VALUE(FIXED(EXP(BB$4*-1*'PM2.5 reduction'!BB68),9))","v":0.99996686599999995},{"$f":"VALUE(FIXED(EXP(BC$4*-1*'PM2.5 reduction'!BC68),9))","v":1}]
[null,"Female 45-49",{"$f":"VALUE(FIXED(EXP(C$4*-1*'PM2.5 reduction'!C69),9))","v":0.99993562700000005},{"$f":"VALUE(FIXED(EXP(D$4*-1*'PM2.5 reduction'!D69),9))","v":0.99993956299999998},{"$f":"VALUE(FIXED(EXP(E$4*-1*'PM2.5 reduction'!E69),9))","v":0.99997594999999995},{"$f":"VALUE(FIXED(EXP(F$4*-1*'PM2.5 reduction'!F69),9))","v":0.99998505599999998},{"$f":"VALUE(FIXED(EXP(G$4*-1*'PM2.5 reduction'!G69),9))","v":0.999990245},{"$f":"VALUE(FIXED(EXP(H$4*-1*'PM2.5 reduction'!H69),9))","v":0.99997789100000001},{"$f":"VALUE(FIXED(EXP(I$4*-1*'PM2.5 reduction'!I69),9))","v":0.99999025900000005},{"$f":"VALUE(FIXED(EXP(J$4*-1*'PM2.5 reduction'!J69),9))","v":0.99997135500000001},{"$f":"VALUE(FIXED(EXP(K$4*-1*'PM2.5 reduction'!K69),9))","v":0.99996825899999997},{"$f":"VALUE(FIXED(EXP(L$4*-1*'PM2.5 reduction'!L69),9))","v":0.99998900800000001},{"$f":"VALUE(FIXED(EXP(M$4*-1*'PM2.5 reduction'!M69),9))","v":0.99998900800000001},{"$f":"VALUE(FIXED(EXP(N$4*-1*'PM2.5 reduction'!N69),9))","v":0.99994469600000002},{"$f":"VALUE(FIXED(EXP(O$4*-1*'PM2.5 reduction'!O69),9))","v":0.99997559800000002},{"$f":"VALUE(FIXED(EXP(P$4*-1*'PM2.5 reduction'!P69),9))","v":0.999951704},{"$f":"VALUE(FIXED(EXP(Q$4*-1*'PM2.5 reduction'!Q69),9))","v":0.99998072000000005},{"$f":"VALUE(FIXED(EXP(R$4*-1*'PM2.5 reduction'!R69),9))","v":0.99996360200000001},{"$f":"VALUE(FIXED(EXP(S$4*-1*'PM2.5 reduction'!S69),9))","v":0.99995888799999999},{"$f":"VALUE(FIXED(EXP(T$4*-1*'PM2.5 reduction'!T69),9))","v":0.99993806100000004},{"$f":"VALUE(FIXED(EXP(U$4*-1*'PM2.5 reduction'!U69),9))","v":1},{"$f":"VALUE(FIXED(EXP(V$4*-1*'PM2.5 reduction'!V69),9))","v":0.99995589900000004},{"$f":"VALUE(FIXED(EXP(W$4*-1*'PM2.5 reduction'!W69),9))","v":0.99997220600000003},{"$f":"VALUE(FIXED(EXP(X$4*-1*'PM2.5 reduction'!X69),9))","v":0.99997220600000003},{"$f":"VALUE(FIXED(EXP(Y$4*-1*'PM2.5 reduction'!Y69),9))","v":0.99996417500000001},{"$f":"VALUE(FIXED(EXP(Z$4*-1*'PM2.5 reduction'!Z69),9))","v":0.99993928600000004},{"$f":"VALUE(FIXED(EXP(AA$4*-1*'PM2.5 reduction'!AA69),9))","v":0.99994936599999995},{"$f":"VALUE(FIXED(EXP(AB$4*-1*'PM2.5 reduction'!AB69),9))","v":0.99994151099999995},{"$f":"VALUE(FIXED(EXP(AC$4*-1*'PM2.5 reduction'!AC69),9))","v":0.99994604099999995},{"$f":"VALUE(FIXED(EXP(AD$4*-1*'PM2.5 reduction'!AD69),9))","v":0.99998973599999996},{"$f":"VALUE(FIXED(EXP(AE$4*-1*'PM2.5 reduction'!AE69),9))","v":0.99998947299999996},{"$f":"VALUE(FIXED(EXP(AF$4*-1*'PM2.5 reduction'!AF69),9))","v":0.99996886399999996},{"$f":"VALUE(FIXED(EXP(AG$4*-1*'PM2.5 reduction'!AG69),9))","v":0.99998947299999996},{"$f":"VALUE(FIXED(EXP(AH$4*-1*'PM2.5 reduction'!AH69),9))","v":0.99995727599999995},{"$f":"VALUE(FIXED(EXP(AI$4*-1*'PM2.5 reduction'!AI69),9))","v":0.999949227},{"$f":"VALUE(FIXED(EXP(AJ$4*-1*'PM2.5 reduction'!AJ69),9))","v":0.99997132399999999},{"$f":"VALUE(FIXED(EXP(AK$4*-1*'PM2.5 reduction'!AK69),9))","v":0.99998216200000001},{"$f":"VALUE(FIXED(EXP(AL$4*-1*'PM2.5 reduction'!AL69),9))","v":0.99998017100000003},{"$f":"VALUE(FIXED(EXP(AM$4*-1*'PM2.5 reduction'!AM69),9))","v":0.99995379699999998},{"$f":"VALUE(FIXED(EXP(AN$4*-1*'PM2.5 reduction'!AN69),9))","v":1},{"$f":"VALUE(FIXED(EXP(AO$4*-1*'PM2.5 reduction'!AO69),9))","v":1},{"$f":"VALUE(FIXED(EXP(AP$4*-1*'PM2.5 reduction'!AP69),9))","v":0.99996638199999999},{"$f":"VALUE(FIXED(EXP(AQ$4*-1*'PM2.5 reduction'!AQ69),9))","v":0.99995593100000002},{"$f":"VALUE(FIXED(EXP(AR$4*-1*'PM2.5 reduction'!AR69),9))","v":0.99995547500000004},{"$f":"VALUE(FIXED(EXP(AS$4*-1*'PM2.5 reduction'!AS69),9))","v":0.99999025900000005},{"$f":"VALUE(FIXED(EXP(AT$4*-1*'PM2.5 reduction'!AT69),9))","v":1},{"$f":"VALUE(FIXED(EXP(AU$4*-1*'PM2.5 reduction'!AU69),9))","v":1},{"$f":"VALUE(FIXED(EXP(AV$4*-1*'PM2.5 reduction'!AV69),9))","v":0.99997601800000002},{"$f":"VALUE(FIXED(EXP(AW$4*-1*'PM2.5 reduction'!AW69),9))","v":0.999963033},{"$f":"VALUE(FIXED(EXP(AX$4*-1*'PM2.5 reduction'!AX69),9))","v":0.99997416500000003},{"$f":"VALUE(FIXED(EXP(AY$4*-1*'PM2.5 reduction'!AY69),9))","v":0.99996246600000005},{"$f":"VALUE(FIXED(EXP(AZ$4*-1*'PM2.5 reduction'!AZ69),9))","v":0.99995195599999998},{"$f":"VALUE(FIXED(EXP(BA$4*-1*'PM2.5 reduction'!BA69),9))","v":0.99996212600000001},{"$f":"VALUE(FIXED(EXP(BB$4*-1*'PM2.5 reduction'!BB69),9))","v":0.99996669599999999},{"$f":"VALUE(FIXED(EXP(BC$4*-1*'PM2.5 reduction'!BC69),9))","v":1}]
[null,"Female 50-54",{"$f":"VALUE(FIXED(EXP(C$4*-1*'PM2.5 reduction'!C70),9))","v":0.99993702600000001},{"$f":"VALUE(FIXED(EXP(D$4*-1*'PM2.5 reduction'!D70),9))","v":0.99994038799999996},{"$f":"VALUE(FIXED(EXP(E$4*-1*'PM2.5 reduction'!E70),9))","v":0.99997571799999996},{"$f":"VALUE(FIXED(EXP(F$4*-1*'PM2.5 reduction'!F70),9))","v":0.999985613},{"$f":"VALUE(FIXED(EXP(G$4*-1*'PM2.5 reduction'!G70),9))","v":0.99998990899999995},{"$f":"VALUE(FIXED(EXP(H$4*-1*'PM2.5 reduction'!H70),9))","v":0.99997782499999999},{"$f":"VALUE(FIXED(EXP(I$4*-1*'PM2.5 reduction'!I70),9))","v":0.99998978199999999},{"$f":"VALUE(FIXED(EXP(J$4*-1*'PM2.5 reduction'!J70),9))","v":0.99997062800000003},{"$f":"VALUE(FIXED(EXP(K$4*-1*'PM2.5 reduction'!K70),9))","v":0.99996809200000003},{"$f":"VALUE(FIXED(EXP(L$4*-1*'PM2.5 reduction'!L70),9))","v":0.99998897200000003},{"$f":"VALUE(FIXED(EXP(M$4*-1*'PM2.5 reduction'!M70),9))","v":0.99998897200000003},{"$f":"VALUE(FIXED(EXP(N$4*-1*'PM2.5 reduction'!N70),9))","v":0.99994514999999995},{"$f":"VALUE(FIXED(EXP(O$4*-1*'PM2.5 reduction'!O70),9))","v":0.99997608199999999},{"$f":"VALUE(FIXED(EXP(P$4*-1*'PM2.5 reduction'!P70),9))","v":0.99995241099999999},{"$f":"VALUE(FIXED(EXP(Q$4*-1*'PM2.5 reduction'!Q70),9))","v":0.99998131599999995},{"$f":"VALUE(FIXED(EXP(R$4*-1*'PM2.5 reduction'!R70),9))","v":0.99996096599999995},{"$f":"VALUE(FIXED(EXP(S$4*-1*'PM2.5 reduction'!S70),9))","v":0.99995996799999998},{"$f":"VALUE(FIXED(EXP(T$4*-1*'PM2.5 reduction'!T70),9))","v":0.99993863599999999},{"$f":"VALUE(FIXED(EXP(U$4*-1*'PM2.5 reduction'!U70),9))","v":1},{"$f":"VALUE(FIXED(EXP(V$4*-1*'PM2.5 reduction'!V70),9))","v":0.99995577000000002},{"$f":"VALUE(FIXED(EXP(W$4*-1*'PM2.5 reduction'!W70),9))","v":0.99997247499999997},{"$f":"VALUE(FIXED(EXP(X$4*-1*'PM2.5 reduction'!X70),9))","v":0.99997247499999997},{"$f":"VALUE(FIXED(EXP(Y$4*-1*'PM2.5 reduction'!Y70),9))","v":0.999963194},{"$f":"VALUE(FIXED(EXP(Z$4*-1*'PM2.5 reduction'!Z70),9))","v":0.99993972099999995},{"$f":"VALUE(FIXED(EXP(AA$4*-1*'PM2.5 reduction'!AA70),9))","v":0.99994910400000003},{"$f":"VALUE(FIXED(EXP(AB$4*-1*'PM2.5 reduction'!AB70),9))","v":0.99994215799999997},{"$f":"VALUE(FIXED(EXP(AC$4*-1*'PM2.5 reduction'!AC70),9))","v":0.99994595200000003},{"$f":"VALUE(FIXED(EXP(AD$4*-1*'PM2.5 reduction'!AD70),9))","v":0.99998961799999997},{"$f":"VALUE(FIXED(EXP(AE$4*-1*'PM2.5 reduction'!AE70),9))","v":0.99998945900000002},{"$f":"VALUE(FIXED(EXP(AF$4*-1*'PM2.5 reduction'!AF70),9))","v":0.99996788199999997},{"$f":"VALUE(FIXED(EXP(AG$4*-1*'PM2.5 reduction'!AG70),9))","v":0.99998945900000002},{"$f":"VALUE(FIXED(EXP(AH$4*-1*'PM2.5 reduction'!AH70),9))","v":0.99995666000000005},{"$f":"VALUE(FIXED(EXP(AI$4*-1*'PM2.5 reduction'!AI70),9))","v":0.99995019600000001},{"$f":"VALUE(FIXED(EXP(AJ$4*-1*'PM2.5 reduction'!AJ70),9))","v":0.99996851499999995},{"$f":"VALUE(FIXED(EXP(AK$4*-1*'PM2.5 reduction'!AK70),9))","v":0.99998216200000001},{"$f":"VALUE(FIXED(EXP(AL$4*-1*'PM2.5 reduction'!AL70),9))","v":0.99998006800000006},{"$f":"VALUE(FIXED(EXP(AM$4*-1*'PM2.5 reduction'!AM70),9))","v":0.99995325400000001},{"$f":"VALUE(FIXED(EXP(AN$4*-1*'PM2.5 reduction'!AN70),9))","v":1},{"$f":"VALUE(FIXED(EXP(AO$4*-1*'PM2.5 reduction'!AO70),9))","v":1},{"$f":"VALUE(FIXED(EXP(AP$4*-1*'PM2.5 reduction'!AP70),9))","v":0.99996733299999996},{"$f":"VALUE(FIXED(EXP(AQ$4*-1*'PM2.5 reduction'!AQ70),9))","v":0.999955225},{"$f":"VALUE(FIXED(EXP(AR$4*-1*'PM2.5 reduction'!AR70),9))","v":0.99995531500000001},{"$f":"VALUE(FIXED(EXP(AS$4*-1*'PM2.5 reduction'!AS70),9))","v":0.99998978199999999},{"$f":"VALUE(FIXED(EXP(AT$4*-1*'PM2.5 reduction'!AT70),9))","v":1},{"$f":"VALUE(FIXED(EXP(AU$4*-1*'PM2.5 reduction'!AU70),9))","v":1},{"$f":"VALUE(FIXED(EXP(AV$4*-1*'PM2.5 reduction'!AV70),9))","v":0.99997444700000004},{"$f":"VALUE(FIXED(EXP(AW$4*-1*'PM2.5 reduction'!AW70),9))","v":0.99996234900000003},{"$f":"VALUE(FIXED(EXP(AX$4*-1*'PM2.5 reduction'!AX70),9))","v":0.99997319100000004},{"$f":"VALUE(FIXED(EXP(AY$4*-1*'PM2.5 reduction'!AY70),9))","v":0.99996193499999997},{"$f":"VALUE(FIXED(EXP(AZ$4*-1*'PM2.5 reduction'!AZ70),9))","v":0.99995166700000004},{"$f":"VALUE(FIXED(EXP(BA$4*-1*'PM2.5 reduction'!BA70),9))","v":0.99996300199999999},{"$f":"VALUE(FIXED(EXP(BB$4*-1*'PM2.5 reduction'!BB70),9))","v":0.99996725600000003},{"$f":"VALUE(FIXED(EXP(BC$4*-1*'PM2.5 reduction'!BC70),9))","v":1}]
[null,"Female 55-59",{"$f":"VALUE(FIXED(EXP(C$4*-1*'PM2.5 reduction'!C71),9))","v":0.99993610399999999},{"$f":"VALUE(FIXED(EXP(D$4*-1*'PM2.5 reduction'!D71),9))","v":0.99994012099999996},{"$f":"VALUE(FIXED(EXP(E$4*-1*'PM2.5 reduction'!E71),9))","v":0.99997559899999999},{"$f":"VALUE(FIXED(EXP(F$4*-1*'PM2.5 reduction'!F71),9))","v":0.99998604000000002},{"$f":"VALUE(FIXED(EXP(G$4*-1*'PM2.5 reduction'!G71),9))","v":0.99999028499999998},{"$f":"VALUE(FIXED(EXP(H$4*-1*'PM2.5 reduction'!H71),9))","v":0.99997766200000004},{"$f":"VALUE(FIXED(EXP(I$4*-1*'PM2.5 reduction'!I71),9))","v":0.999989774},{"$f":"VALUE(FIXED(EXP(J$4*-1*'PM2.5 reduction'!J71),9))","v":0.99997046000000001},{"$f":"VALUE(FIXED(EXP(K$4*-1*'PM2.5 reduction'!K71),9))","v":0.999967104},{"$f":"VALUE(FIXED(EXP(L$4*-1*'PM2.5 reduction'!L71),9))","v":0.999989197},{"$f":"VALUE(FIXED(EXP(M$4*-1*'PM2.5 reduction'!M71),9))","v":0.999989197},{"$f":"VALUE(FIXED(EXP(N$4*-1*'PM2.5 reduction'!N71),9))","v":0.99994442100000003},{"$f":"VALUE(FIXED(EXP(O$4*-1*'PM2.5 reduction'!O71),9))","v":0.99997594300000003},{"$f":"VALUE(FIXED(EXP(P$4*-1*'PM2.5 reduction'!P71),9))","v":0.99995368200000001},{"$f":"VALUE(FIXED(EXP(Q$4*-1*'PM2.5 reduction'!Q71),9))","v":0.99998072800000004},{"$f":"VALUE(FIXED(EXP(R$4*-1*'PM2.5 reduction'!R71),9))","v":0.99996386299999995},{"$f":"VALUE(FIXED(EXP(S$4*-1*'PM2.5 reduction'!S71),9))","v":0.99995950700000003},{"$f":"VALUE(FIXED(EXP(T$4*-1*'PM2.5 reduction'!T71),9))","v":0.99993929500000001},{"$f":"VALUE(FIXED(EXP(U$4*-1*'PM2.5 reduction'!U71),9))","v":1},{"$f":"VALUE(FIXED(EXP(V$4*-1*'PM2.5 reduction'!V71),9))","v":0.99995623},{"$f":"VALUE(FIXED(EXP(W$4*-1*'PM2.5 reduction'!W71),9))","v":0.99997241599999998},{"$f":"VALUE(FIXED(EXP(X$4*-1*'PM2.5 reduction'!X71),9))","v":0.99997241599999998},{"$f":"VALUE(FIXED(EXP(Y$4*-1*'PM2.5 reduction'!Y71),9))","v":0.99996346300000005},{"$f":"VALUE(FIXED(EXP(Z$4*-1*'PM2.5 reduction'!Z71),9))","v":0.99993952500000005},{"$f":"VALUE(FIXED(EXP(AA$4*-1*'PM2.5 reduction'!AA71),9))","v":0.99994942399999998},{"$f":"VALUE(FIXED(EXP(AB$4*-1*'PM2.5 reduction'!AB71),9))","v":0.99994189899999997},{"$f":"VALUE(FIXED(EXP(AC$4*-1*'PM2.5 reduction'!AC71),9))","v":0.99994609099999998},{"$f":"VALUE(FIXED(EXP(AD$4*-1*'PM2.5 reduction'!AD71),9))","v":0.99998956800000005},{"$f":"VALUE(FIXED(EXP(AE$4*-1*'PM2.5 reduction'!AE71),9))","v":0.99998915600000005},{"$f":"VALUE(FIXED(EXP(AF$4*-1*'PM2.5 reduction'!AF71),9))","v":0.99996744400000004},{"$f":"VALUE(FIXED(EXP(AG$4*-1*'PM2.5 reduction'!AG71),9))","v":0.99998915600000005},{"$f":"VALUE(FIXED(EXP(AH$4*-1*'PM2.5 reduction'!AH71),9))","v":0.999957125},{"$f":"VALUE(FIXED(EXP(AI$4*-1*'PM2.5 reduction'!AI71),9))","v":0.99995067599999998},{"$f":"VALUE(FIXED(EXP(AJ$4*-1*'PM2.5 reduction'!AJ71),9))","v":0.99997244399999996},{"$f":"VALUE(FIXED(EXP(AK$4*-1*'PM2.5 reduction'!AK71),9))","v":0.99998216200000001},{"$f":"VALUE(FIXED(EXP(AL$4*-1*'PM2.5 reduction'!AL71),9))","v":0.99997955299999997},{"$f":"VALUE(FIXED(EXP(AM$4*-1*'PM2.5 reduction'!AM71),9))","v":0.99995370699999997},{"$f":"VALUE(FIXED(EXP(AN$4*-1*'PM2.5 reduction'!AN71),9))","v":1},{"$f":"VALUE(FIXED(EXP(AO$4*-1*'PM2.5 reduction'!AO71),9))","v":1},{"$f":"VALUE(FIXED(EXP(AP$4*-1*'PM2.5 reduction'!AP71),9))","v":0.99996873399999997},{"$f":"VALUE(FIXED(EXP(AQ$4*-1*'PM2.5 reduction'!AQ71),9))","v":0.99995559599999995},{"$f":"VALUE(FIXED(EXP(AR$4*-1*'PM2.5 reduction'!AR71),9))","v":0.99995542800000004},{"$f":"VALUE(FIXED(EXP(AS$4*-1*'PM2.5 reduction'!AS71),9))","v":0.999989774},{"$f":"VALUE(FIXED(EXP(AT$4*-1*'PM2.5 reduction'!AT71),9))","v":1},{"$f":"VALUE(FIXED(EXP(AU$4*-1*'PM2.5 reduction'!AU71),9))","v":1},{"$f":"VALUE(FIXED(EXP(AV$4*-1*'PM2.5 reduction'!AV71),9))","v":0.99997520900000003},{"$f":"VALUE(FIXED(EXP(AW$4*-1*'PM2.5 reduction'!AW71),9))","v":0.99996241200000002},{"$f":"VALUE(FIXED(EXP(AX$4*-1*'PM2.5 reduction'!AX71),9))","v":0.99997379600000003},{"$f":"VALUE(FIXED(EXP(AY$4*-1*'PM2.5 reduction'!AY71),9))","v":0.99996154699999995},{"$f":"VALUE(FIXED(EXP(AZ$4*-1*'PM2.5 reduction'!AZ71),9))","v":0.99995149900000002},{"$f":"VALUE(FIXED(EXP(BA$4*-1*'PM2.5 reduction'!BA71),9))","v":0.99996243799999995},{"$f":"VALUE(FIXED(EXP(BB$4*-1*'PM2.5 reduction'!BB71),9))","v":0.99996738699999999},{"$f":"VALUE(FIXED(EXP(BC$4*-1*'PM2.5 reduction'!BC71),9))","v":1}]
[null,"Female 60-64",{"$f":"VALUE(FIXED(EXP(C$4*-1*'PM2.5 reduction'!C72),9))","v":0.99993686900000001},{"$f":"VALUE(FIXED(EXP(D$4*-1*'PM2.5 reduction'!D72),9))","v":0.99994118799999998},{"$f":"VALUE(FIXED(EXP(E$4*-1*'PM2.5 reduction'!E72),9))","v":0.99997680200000005},{"$f":"VALUE(FIXED(EXP(F$4*-1*'PM2.5 reduction'!F72),9))","v":0.99998579300000001},{"$f":"VALUE(FIXED(EXP(G$4*-1*'PM2.5 reduction'!G72),9))","v":0.999990029},{"$f":"VALUE(FIXED(EXP(H$4*-1*'PM2.5 reduction'!H72),9))","v":0.999977809},{"$f":"VALUE(FIXED(EXP(I$4*-1*'PM2.5 reduction'!I72),9))","v":0.99998989900000002},{"$f":"VALUE(FIXED(EXP(J$4*-1*'PM2.5 reduction'!J72),9))","v":0.99997223000000002},{"$f":"VALUE(FIXED(EXP(K$4*-1*'PM2.5 reduction'!K72),9))","v":0.99997047100000003},{"$f":"VALUE(FIXED(EXP(L$4*-1*'PM2.5 reduction'!L72),9))","v":0.99998943799999995},{"$f":"VALUE(FIXED(EXP(M$4*-1*'PM2.5 reduction'!M72),9))","v":0.99998943799999995},{"$f":"VALUE(FIXED(EXP(N$4*-1*'PM2.5 reduction'!N72),9))","v":0.99994303699999998},{"$f":"VALUE(FIXED(EXP(O$4*-1*'PM2.5 reduction'!O72),9))","v":0.99997601700000005},{"$f":"VALUE(FIXED(EXP(P$4*-1*'PM2.5 reduction'!P72),9))","v":0.999954071},{"$f":"VALUE(FIXED(EXP(Q$4*-1*'PM2.5 reduction'!Q72),9))","v":0.99998116400000003},{"$f":"VALUE(FIXED(EXP(R$4*-1*'PM2.5 reduction'!R72),9))","v":0.999963253},{"$f":"VALUE(FIXED(EXP(S$4*-1*'PM2.5 reduction'!S72),9))","v":0.99996043300000004},{"$f":"VALUE(FIXED(EXP(T$4*-1*'PM2.5 reduction'!T72),9))","v":0.99993875600000004},{"$f":"VALUE(FIXED(EXP(U$4*-1*'PM2.5 reduction'!U72),9))","v":1},{"$f":"VALUE(FIXED(EXP(V$4*-1*'PM2.5 reduction'!V72),9))","v":0.99995652700000004},{"$f":"VALUE(FIXED(EXP(W$4*-1*'PM2.5 reduction'!W72),9))","v":0.99997261699999995},{"$f":"VALUE(FIXED(EXP(X$4*-1*'PM2.5 reduction'!X72),9))","v":0.99997261699999995},{"$f":"VALUE(FIXED(EXP(Y$4*-1*'PM2.5 reduction'!Y72),9))","v":0.99996400799999996},{"$f":"VALUE(FIXED(EXP(Z$4*-1*'PM2.5 reduction'!Z72),9))","v":0.99993980999999998},{"$f":"VALUE(FIXED(EXP(AA$4*-1*'PM2.5 reduction'!AA72),9))","v":0.99994984399999998},{"$f":"VALUE(FIXED(EXP(AB$4*-1*'PM2.5 reduction'!AB72),9))","v":0.99994453500000002},{"$f":"VALUE(FIXED(EXP(AC$4*-1*'PM2.5 reduction'!AC72),9))","v":0.99994639600000002},{"$f":"VALUE(FIXED(EXP(AD$4*-1*'PM2.5 reduction'!AD72),9))","v":0.99998989699999996},{"$f":"VALUE(FIXED(EXP(AE$4*-1*'PM2.5 reduction'!AE72),9))","v":0.99998982400000003},{"$f":"VALUE(FIXED(EXP(AF$4*-1*'PM2.5 reduction'!AF72),9))","v":0.99996734499999995},{"$f":"VALUE(FIXED(EXP(AG$4*-1*'PM2.5 reduction'!AG72),9))","v":0.99998982400000003},{"$f":"VALUE(FIXED(EXP(AH$4*-1*'PM2.5 reduction'!AH72),9))","v":0.99995688299999996},{"$f":"VALUE(FIXED(EXP(AI$4*-1*'PM2.5 reduction'!AI72),9))","v":0.99995080199999997},{"$f":"VALUE(FIXED(EXP(AJ$4*-1*'PM2.5 reduction'!AJ72),9))","v":0.99997076200000001},{"$f":"VALUE(FIXED(EXP(AK$4*-1*'PM2.5 reduction'!AK72),9))","v":0.99998216200000001},{"$f":"VALUE(FIXED(EXP(AL$4*-1*'PM2.5 reduction'!AL72),9))","v":0.99997980099999995},{"$f":"VALUE(FIXED(EXP(AM$4*-1*'PM2.5 reduction'!AM72),9))","v":0.99995342200000004},{"$f":"VALUE(FIXED(EXP(AN$4*-1*'PM2.5 reduction'!AN72),9))","v":1},{"$f":"VALUE(FIXED(EXP(AO$4*-1*'PM2.5 reduction'!AO72),9))","v":1},{"$f":"VALUE(FIXED(EXP(AP$4*-1*'PM2.5 reduction'!AP72),9))","v":0.99997058500000002},{"$f":"VALUE(FIXED(EXP(AQ$4*-1*'PM2.5 reduction'!AQ72),9))","v":0.99995502599999997},{"$f":"VALUE(FIXED(EXP(AR$4*-1*'PM2.5 reduction'!AR72),9))","v":0.99995615699999996},{"$f":"VALUE(FIXED(EXP(AS$4*-1*'PM2.5 reduction'!AS72),9))","v":0.99998989900000002},{"$f":"VALUE(FIXED(EXP(AT$4*-1*'PM2.5 reduction'!AT72),9))","v":1},{"$f":"VALUE(FIXED(EXP(AU$4*-1*'PM2.5 reduction'!AU72),9))","v":1},{"$f":"VALUE(FIXED(EXP(AV$4*-1*'PM2.5 reduction'!AV72),9))","v":0.99997533400000005},{"$f":"VALUE(FIXED(EXP(AW$4*-1*'PM2.5 reduction'!AW72),9))","v":0.99996214000000005},{"$f":"VALUE(FIXED(EXP(AX$4*-1*'PM2.5 reduction'!AX72),9))","v":0.99997435000000001},{"$f":"VALUE(FIXED(EXP(AY$4*-1*'PM2.5 reduction'!AY72),9))","v":0.99996179100000004},{"$f":"VALUE(FIXED(EXP(AZ$4*-1*'PM2.5 reduction'!AZ72),9))","v":0.99995109999999998},{"$f":"VALUE(FIXED(EXP(BA$4*-1*'PM2.5 reduction'!BA72),9))","v":0.99996252100000005},{"$f":"VALUE(FIXED(EXP(BB$4*-1*'PM2.5 reduction'!BB72),9))","v":0.99996791799999996},{"$f":"VALUE(FIXED(EXP(BC$4*-1*'PM2.5 reduction'!BC72),9))","v":1}]
[null,"Female 65-69",{"$f":"VALUE(FIXED(EXP(C$4*-1*'PM2.5 reduction'!C73),9))","v":0.99993839699999998},{"$f":"VALUE(FIXED(EXP(D$4*-1*'PM2.5 reduction'!D73),9))","v":0.99994286099999996},{"$f":"VALUE(FIXED(EXP(E$4*-1*'PM2.5 reduction'!E73),9))","v":0.99997484999999997},{"$f":"VALUE(FIXED(EXP(F$4*-1*'PM2.5 reduction'!F73),9))","v":0.99998614100000005},{"$f":"VALUE(FIXED(EXP(G$4*-1*'PM2.5 reduction'!G73),9))","v":0.99999024000000003},{"$f":"VALUE(FIXED(EXP(H$4*-1*'PM2.5 reduction'!H73),9))","v":0.99997839600000005},{"$f":"VALUE(FIXED(EXP(I$4*-1*'PM2.5 reduction'!I73),9))","v":0.99998977},{"$f":"VALUE(FIXED(EXP(J$4*-1*'PM2.5 reduction'!J73),9))","v":0.999970841},{"$f":"VALUE(FIXED(EXP(K$4*-1*'PM2.5 reduction'!K73),9))","v":0.99996873900000005},{"$f":"VALUE(FIXED(EXP(L$4*-1*'PM2.5 reduction'!L73),9))","v":0.99998910900000004},{"$f":"VALUE(FIXED(EXP(M$4*-1*'PM2.5 reduction'!M73),9))","v":0.99998910900000004},{"$f":"VALUE(FIXED(EXP(N$4*-1*'PM2.5 reduction'!N73),9))","v":0.99994458500000005},{"$f":"VALUE(FIXED(EXP(O$4*-1*'PM2.5 reduction'!O73),9))","v":0.99997809100000001},{"$f":"VALUE(FIXED(EXP(P$4*-1*'PM2.5 reduction'!P73),9))","v":0.99995462000000002},{"$f":"VALUE(FIXED(EXP(Q$4*-1*'PM2.5 reduction'!Q73),9))","v":0.99998188799999999},{"$f":"VALUE(FIXED(EXP(R$4*-1*'PM2.5 reduction'!R73),9))","v":0.99996282000000003},{"$f":"VALUE(FIXED(EXP(S$4*-1*'PM2.5 reduction'!S73),9))","v":0.999960297},{"$f":"VALUE(FIXED(EXP(T$4*-1*'PM2.5 reduction'!T73),9))","v":0.999938416},{"$f":"VALUE(FIXED(EXP(U$4*-1*'PM2.5 reduction'!U73),9))","v":1},{"$f":"VALUE(FIXED(EXP(V$4*-1*'PM2.5 reduction'!V73),9))","v":0.99995585499999995},{"$f":"VALUE(FIXED(EXP(W$4*-1*'PM2.5 reduction'!W73),9))","v":0.99997250599999998},{"$f":"VALUE(FIXED(EXP(X$4*-1*'PM2.5 reduction'!X73),9))","v":0.99997250599999998},{"$f":"VALUE(FIXED(EXP(Y$4*-1*'PM2.5 reduction'!Y73),9))","v":0.999963457},{"$f":"VALUE(FIXED(EXP(Z$4*-1*'PM2.5 reduction'!Z73),9))","v":0.99993917600000004},{"$f":"VALUE(FIXED(EXP(AA$4*-1*'PM2.5 reduction'!AA73),9))","v":0.99995009199999996},{"$f":"VALUE(FIXED(EXP(AB$4*-1*'PM2.5 reduction'!AB73),9))","v":0.99994582700000001},{"$f":"VALUE(FIXED(EXP(AC$4*-1*'PM2.5 reduction'!AC73),9))","v":0.999946483},{"$f":"VALUE(FIXED(EXP(AD$4*-1*'PM2.5 reduction'!AD73),9))","v":0.99998964599999995},{"$f":"VALUE(FIXED(EXP(AE$4*-1*'PM2.5 reduction'!AE73),9))","v":0.99998918400000003},{"$f":"VALUE(FIXED(EXP(AF$4*-1*'PM2.5 reduction'!AF73),9))","v":0.99996752200000005},{"$f":"VALUE(FIXED(EXP(AG$4*-1*'PM2.5 reduction'!AG73),9))","v":0.99998918400000003},{"$f":"VALUE(FIXED(EXP(AH$4*-1*'PM2.5 reduction'!AH73),9))","v":0.99995723000000003},{"$f":"VALUE(FIXED(EXP(AI$4*-1*'PM2.5 reduction'!AI73),9))","v":0.99995068099999995},{"$f":"VALUE(FIXED(EXP(AJ$4*-1*'PM2.5 reduction'!AJ73),9))","v":0.99997048600000005},{"$f":"VALUE(FIXED(EXP(AK$4*-1*'PM2.5 reduction'!AK73),9))","v":0.99998216200000001},{"$f":"VALUE(FIXED(EXP(AL$4*-1*'PM2.5 reduction'!AL73),9))","v":0.99997960200000002},{"$f":"VALUE(FIXED(EXP(AM$4*-1*'PM2.5 reduction'!AM73),9))","v":0.99995350500000002},{"$f":"VALUE(FIXED(EXP(AN$4*-1*'PM2.5 reduction'!AN73),9))","v":1},{"$f":"VALUE(FIXED(EXP(AO$4*-1*'PM2.5 reduction'!AO73),9))","v":1},{"$f":"VALUE(FIXED(EXP(AP$4*-1*'PM2.5 reduction'!AP73),9))","v":0.99996901900000001},{"$f":"VALUE(FIXED(EXP(AQ$4*-1*'PM2.5 reduction'!AQ73),9))","v":0.99995531400000004},{"$f":"VALUE(FIXED(EXP(AR$4*-1*'PM2.5 reduction'!AR73),9))","v":0.99995639199999997},{"$f":"VALUE(FIXED(EXP(AS$4*-1*'PM2.5 reduction'!AS73),9))","v":0.99998977},{"$f":"VALUE(FIXED(EXP(AT$4*-1*'PM2.5 reduction'!AT73),9))","v":1},{"$f":"VALUE(FIXED(EXP(AU$4*-1*'PM2.5 reduction'!AU73),9))","v":1},{"$f":"VALUE(FIXED(EXP(AV$4*-1*'PM2.5 reduction'!AV73),9))","v":0.999975104},{"$f":"VALUE(FIXED(EXP(AW$4*-1*'PM2.5 reduction'!AW73),9))","v":0.99996274399999996},{"$f":"VALUE(FIXED(EXP(AX$4*-1*'PM2.5 reduction'!AX73),9))","v":0.99997333799999999},{"$f":"VALUE(FIXED(EXP(AY$4*-1*'PM2.5 reduction'!AY73),9))","v":0.99996194299999996},{"$f":"VALUE(FIXED(EXP(AZ$4*-1*'PM2.5 reduction'!AZ73),9))","v":0.999951056},{"$f":"VALUE(FIXED(EXP(BA$4*-1*'PM2.5 reduction'!BA73),9))","v":0.99996340100000003},{"$f":"VALUE(FIXED(EXP(BB$4*-1*'PM2.5 reduction'!BB73),9))","v":0.99996740200000001},{"$f":"VALUE(FIXED(EXP(BC$4*-1*'PM2.5 reduction'!BC73),9))","v":1}]
[null,"Female 70-74",{"$f":"VALUE(FIXED(EXP(C$4*-1*'PM2.5 reduction'!C74),9))","v":0.999937521},{"$f":"VALUE(FIXED(EXP(D$4*-1*'PM2.5 reduction'!D74),9))","v":0.99994203100000001},{"$f":"VALUE(FIXED(EXP(E$4*-1*'PM2.5 reduction'!E74),9))","v":0.99997427900000002},{"$f":"VALUE(FIXED(EXP(F$4*-1*'PM2.5 reduction'!F74),9))","v":0.99998533199999995},{"$f":"VALUE(FIXED(EXP(G$4*-1*'PM2.5 reduction'!G74),9))","v":0.99999009100000003},{"$f":"VALUE(FIXED(EXP(H$4*-1*'PM2.5 reduction'!H74),9))","v":0.99997780999999997},{"$f":"VALUE(FIXED(EXP(I$4*-1*'PM2.5 reduction'!I74),9))","v":0.99998953499999998},{"$f":"VALUE(FIXED(EXP(J$4*-1*'PM2.5 reduction'!J74),9))","v":0.99997085200000002},{"$f":"VALUE(FIXED(EXP(K$4*-1*'PM2.5 reduction'!K74),9))","v":0.99996803400000001},{"$f":"VALUE(FIXED(EXP(L$4*-1*'PM2.5 reduction'!L74),9))","v":0.99998932600000001},{"$f":"VALUE(FIXED(EXP(M$4*-1*'PM2.5 reduction'!M74),9))","v":0.99998932600000001},{"$f":"VALUE(FIXED(EXP(N$4*-1*'PM2.5 reduction'!N74),9))","v":0.99994358500000002},{"$f":"VALUE(FIXED(EXP(O$4*-1*'PM2.5 reduction'!O74),9))","v":0.99997616700000003},{"$f":"VALUE(FIXED(EXP(P$4*-1*'PM2.5 reduction'!P74),9))","v":0.99995136699999998},{"$f":"VALUE(FIXED(EXP(Q$4*-1*'PM2.5 reduction'!Q74),9))","v":0.99998142899999998},{"$f":"VALUE(FIXED(EXP(R$4*-1*'PM2.5 reduction'!R74),9))","v":0.99996262000000002},{"$f":"VALUE(FIXED(EXP(S$4*-1*'PM2.5 reduction'!S74),9))","v":0.99996065300000003},{"$f":"VALUE(FIXED(EXP(T$4*-1*'PM2.5 reduction'!T74),9))","v":0.99993776700000003},{"$f":"VALUE(FIXED(EXP(U$4*-1*'PM2.5 reduction'!U74),9))","v":1},{"$f":"VALUE(FIXED(EXP(V$4*-1*'PM2.5 reduction'!V74),9))","v":0.99995609500000004},{"$f":"VALUE(FIXED(EXP(W$4*-1*'PM2.5 reduction'!W74),9))","v":0.99997253699999999},{"$f":"VALUE(FIXED(EXP(X$4*-1*'PM2.5 reduction'!X74),9))","v":0.99997253699999999},{"$f":"VALUE(FIXED(EXP(Y$4*-1*'PM2.5 reduction'!Y74),9))","v":0.99996371799999995},{"$f":"VALUE(FIXED(EXP(Z$4*-1*'PM2.5 reduction'!Z74),9))","v":0.99993915600000005},{"$f":"VALUE(FIXED(EXP(AA$4*-1*'PM2.5 reduction'!AA74),9))","v":0.99994969},{"$f":"VALUE(FIXED(EXP(AB$4*-1*'PM2.5 reduction'!AB74),9))","v":0.99994401600000005},{"$f":"VALUE(FIXED(EXP(AC$4*-1*'PM2.5 reduction'!AC74),9))","v":0.99994578000000001},{"$f":"VALUE(FIXED(EXP(AD$4*-1*'PM2.5 reduction'!AD74),9))","v":0.99998963900000004},{"$f":"VALUE(FIXED(EXP(AE$4*-1*'PM2.5 reduction'!AE74),9))","v":0.99998934399999995},{"$f":"VALUE(FIXED(EXP(AF$4*-1*'PM2.5 reduction'!AF74),9))","v":0.99996507999999995},{"$f":"VALUE(FIXED(EXP(AG$4*-1*'PM2.5 reduction'!AG74),9))","v":0.99998934399999995},{"$f":"VALUE(FIXED(EXP(AH$4*-1*'PM2.5 reduction'!AH74),9))","v":0.99995756199999997},{"$f":"VALUE(FIXED(EXP(AI$4*-1*'PM2.5 reduction'!AI74),9))","v":0.99995045400000004},{"$f":"VALUE(FIXED(EXP(AJ$4*-1*'PM2.5 reduction'!AJ74),9))","v":0.99996888100000003},{"$f":"VALUE(FIXED(EXP(AK$4*-1*'PM2.5 reduction'!AK74),9))","v":0.99998216200000001},{"$f":"VALUE(FIXED(EXP(AL$4*-1*'PM2.5 reduction'!AL74),9))","v":0.99997903799999999},{"$f":"VALUE(FIXED(EXP(AM$4*-1*'PM2.5 reduction'!AM74),9))","v":0.99995382099999996},{"$f":"VALUE(FIXED(EXP(AN$4*-1*'PM2.5 reduction'!AN74),9))","v":1},{"$f":"VALUE(FIXED(EXP(AO$4*-1*'PM2.5 reduction'!AO74),9))","v":1},{"$f":"VALUE(FIXED(EXP(AP$4*-1*'PM2.5 reduction'!AP74),9))","v":0.99997153599999999},{"$f":"VALUE(FIXED(EXP(AQ$4*-1*'PM2.5 reduction'!AQ74),9))","v":0.99995614700000002},{"$f":"VALUE(FIXED(EXP(AR$4*-1*'PM2.5 reduction'!AR74),9))","v":0.99995620100000004},{"$f":"VALUE(FIXED(EXP(AS$4*-1*'PM2.5 reduction'!AS74),9))","v":0.99998953499999998},{"$f":"VALUE(FIXED(EXP(AT$4*-1*'PM2.5 reduction'!AT74),9))","v":1},{"$f":"VALUE(FIXED(EXP(AU$4*-1*'PM2.5 reduction'!AU74),9))","v":1},{"$f":"VALUE(FIXED(EXP(AV$4*-1*'PM2.5 reduction'!AV74),9))","v":0.99997690500000003},{"$f":"VALUE(FIXED(EXP(AW$4*-1*'PM2.5 reduction'!AW74),9))","v":0.99996349900000003},{"$f":"VALUE(FIXED(EXP(AX$4*-1*'PM2.5 reduction'!AX74),9))","v":0.99997373700000003},{"$f":"VALUE(FIXED(EXP(AY$4*-1*'PM2.5 reduction'!AY74),9))","v":0.99996248600000004},{"$f":"VALUE(FIXED(EXP(AZ$4*-1*'PM2.5 reduction'!AZ74),9))","v":0.99995134500000005},{"$f":"VALUE(FIXED(EXP(BA$4*-1*'PM2.5 reduction'!BA74),9))","v":0.99996227800000004},{"$f":"VALUE(FIXED(EXP(BB$4*-1*'PM2.5 reduction'!BB74),9))","v":0.99996739400000001},{"$f":"VALUE(FIXED(EXP(BC$4*-1*'PM2.5 reduction'!BC74),9))","v":1}]
[null,"Female 75-79",{"$f":"VALUE(FIXED(EXP(C$4*-1*'PM2.5 reduction'!C75),9))","v":0.99993702399999995},{"$f":"VALUE(FIXED(EXP(D$4*-1*'PM2.5 reduction'!D75),9))","v":0.99994107200000004},{"$f":"VALUE(FIXED(EXP(E$4*-1*'PM2.5 reduction'!E75),9))","v":0.99997521300000003},{"$f":"VALUE(FIXED(EXP(F$4*-1*'PM2.5 reduction'!F75),9))","v":0.99998531700000004},{"$f":"VALUE(FIXED(EXP(G$4*-1*'PM2.5 reduction'!G75),9))","v":0.99998979600000004},{"$f":"VALUE(FIXED(EXP(H$4*-1*'PM2.5 reduction'!H75),9))","v":0.99997746099999996},{"$f":"VALUE(FIXED(EXP(I$4*-1*'PM2.5 reduction'!I75),9))","v":0.99998931099999999},{"$f":"VALUE(FIXED(EXP(J$4*-1*'PM2.5 reduction'!J75),9))","v":0.99996996299999996},{"$f":"VALUE(FIXED(EXP(K$4*-1*'PM2.5 reduction'!K75),9))","v":0.99996834300000004},{"$f":"VALUE(FIXED(EXP(L$4*-1*'PM2.5 reduction'!L75),9))","v":0.99998964899999998},{"$f":"VALUE(FIXED(EXP(M$4*-1*'PM2.5 reduction'!M75),9))","v":0.99998964899999998},{"$f":"VALUE(FIXED(EXP(N$4*-1*'PM2.5 reduction'!N75),9))","v":0.99994319700000001},{"$f":"VALUE(FIXED(EXP(O$4*-1*'PM2.5 reduction'!O75),9))","v":0.999974908},{"$f":"VALUE(FIXED(EXP(P$4*-1*'PM2.5 reduction'!P75),9))","v":0.99995399900000004},{"$f":"VALUE(FIXED(EXP(Q$4*-1*'PM2.5 reduction'!Q75),9))","v":0.99998047800000001},{"$f":"VALUE(FIXED(EXP(R$4*-1*'PM2.5 reduction'!R75),9))","v":0.999962554},{"$f":"VALUE(FIXED(EXP(S$4*-1*'PM2.5 reduction'!S75),9))","v":0.99995953199999998},{"$f":"VALUE(FIXED(EXP(T$4*-1*'PM2.5 reduction'!T75),9))","v":0.99993735800000005},{"$f":"VALUE(FIXED(EXP(U$4*-1*'PM2.5 reduction'!U75),9))","v":1},{"$f":"VALUE(FIXED(EXP(V$4*-1*'PM2.5 reduction'!V75),9))","v":0.99995566300000005},{"$f":"VALUE(FIXED(EXP(W$4*-1*'PM2.5 reduction'!W75),9))","v":0.99997277699999998},{"$f":"VALUE(FIXED(EXP(X$4*-1*'PM2.5 reduction'!X75),9))","v":0.99997277699999998},{"$f":"VALUE(FIXED(EXP(Y$4*-1*'PM2.5 reduction'!Y75),9))","v":0.99996183400000005},{"$f":"VALUE(FIXED(EXP(Z$4*-1*'PM2.5 reduction'!Z75),9))","v":0.99993836700000005},{"$f":"VALUE(FIXED(EXP(AA$4*-1*'PM2.5 reduction'!AA75),9))","v":0.99994852899999997},{"$f":"VALUE(FIXED(EXP(AB$4*-1*'PM2.5 reduction'!AB75),9))","v":0.99994288200000003},{"$f":"VALUE(FIXED(EXP(AC$4*-1*'PM2.5 reduction'!AC75),9))","v":0.99994514700000003},{"$f":"VALUE(FIXED(EXP(AD$4*-1*'PM2.5 reduction'!AD75),9))","v":0.99998893899999997},{"$f":"VALUE(FIXED(EXP(AE$4*-1*'PM2.5 reduction'!AE75),9))","v":0.99998835200000002},{"$f":"VALUE(FIXED(EXP(AF$4*-1*'PM2.5 reduction'!AF75),9))","v":0.99996547800000002},{"$f":"VALUE(FIXED(EXP(AG$4*-1*'PM2.5 reduction'!AG75),9))","v":0.99998835200000002},{"$f":"VALUE(FIXED(EXP(AH$4*-1*'PM2.5 reduction'!AH75),9))","v":0.99995626299999996},{"$f":"VALUE(FIXED(EXP(AI$4*-1*'PM2.5 reduction'!AI75),9))","v":0.99994909300000001},{"$f":"VALUE(FIXED(EXP(AJ$4*-1*'PM2.5 reduction'!AJ75),9))","v":0.99996756200000003},{"$f":"VALUE(FIXED(EXP(AK$4*-1*'PM2.5 reduction'!AK75),9))","v":0.99998216200000001},{"$f":"VALUE(FIXED(EXP(AL$4*-1*'PM2.5 reduction'!AL75),9))","v":0.99997954899999997},{"$f":"VALUE(FIXED(EXP(AM$4*-1*'PM2.5 reduction'!AM75),9))","v":0.999952175},{"$f":"VALUE(FIXED(EXP(AN$4*-1*'PM2.5 reduction'!AN75),9))","v":1},{"$f":"VALUE(FIXED(EXP(AO$4*-1*'PM2.5 reduction'!AO75),9))","v":1},{"$f":"VALUE(FIXED(EXP(AP$4*-1*'PM2.5 reduction'!AP75),9))","v":0.99996970299999999},{"$f":"VALUE(FIXED(EXP(AQ$4*-1*'PM2.5 reduction'!AQ75),9))","v":0.99995587600000002},{"$f":"VALUE(FIXED(EXP(AR$4*-1*'PM2.5 reduction'!AR75),9))","v":0.99995483699999999},{"$f":"VALUE(FIXED(EXP(AS$4*-1*'PM2.5 reduction'!AS75),9))","v":0.99998931099999999},{"$f":"VALUE(FIXED(EXP(AT$4*-1*'PM2.5 reduction'!AT75),9))","v":1},{"$f":"VALUE(FIXED(EXP(AU$4*-1*'PM2.5 reduction'!AU75),9))","v":1},{"$f":"VALUE(FIXED(EXP(AV$4*-1*'PM2.5 reduction'!AV75),9))","v":0.99997546800000003},{"$f":"VALUE(FIXED(EXP(AW$4*-1*'PM2.5 reduction'!AW75),9))","v":0.99996268200000005},{"$f":"VALUE(FIXED(EXP(AX$4*-1*'PM2.5 reduction'!AX75),9))","v":0.99997172400000001},{"$f":"VALUE(FIXED(EXP(AY$4*-1*'PM2.5 reduction'!AY75),9))","v":0.99996185900000001},{"$f":"VALUE(FIXED(EXP(AZ$4*-1*'PM2.5 reduction'!AZ75),9))","v":0.99995064899999997},{"$f":"VALUE(FIXED(EXP(BA$4*-1*'PM2.5 reduction'!BA75),9))","v":0.99996343200000004},{"$f":"VALUE(FIXED(EXP(BB$4*-1*'PM2.5 reduction'!BB75),9))","v":0.99996707699999998},{"$f":"VALUE(FIXED(EXP(BC$4*-1*'PM2.5 reduction'!BC75),9))","v":1}]
[null,"Female 80-84",{"$f":"VALUE(FIXED(EXP(C$4*-1*'PM2.5 reduction'!C76),9))","v":0.99993748400000004},{"$f":"VALUE(FIXED(EXP(D$4*-1*'PM2.5 reduction'!D76),9))","v":0.99994222700000002},{"$f":"VALUE(FIXED(EXP(E$4*-1*'PM2.5 reduction'!E76),9))","v":0.99997439499999996},{"$f":"VALUE(FIXED(EXP(F$4*-1*'PM2.5 reduction'!F76),9))","v":0.99998760900000006},{"$f":"VALUE(FIXED(EXP(G$4*-1*'PM2.5 reduction'!G76),9))","v":0.99998993599999997},{"$f":"VALUE(FIXED(EXP(H$4*-1*'PM2.5 reduction'!H76),9))","v":0.99997671499999996},{"$f":"VALUE(FIXED(EXP(I$4*-1*'PM2.5 reduction'!I76),9))","v":0.99998948399999998},{"$f":"VALUE(FIXED(EXP(J$4*-1*'PM2.5 reduction'!J76),9))","v":0.99997132300000002},{"$f":"VALUE(FIXED(EXP(K$4*-1*'PM2.5 reduction'!K76),9))","v":0.99996821800000002},{"$f":"VALUE(FIXED(EXP(L$4*-1*'PM2.5 reduction'!L76),9))","v":0.999989562},{"$f":"VALUE(FIXED(EXP(M$4*-1*'PM2.5 reduction'!M76),9))","v":0.999989562},{"$f":"VALUE(FIXED(EXP(N$4*-1*'PM2.5 reduction'!N76),9))","v":0.99994336299999997},{"$f":"VALUE(FIXED(EXP(O$4*-1*'PM2.5 reduction'!O76),9))","v":0.99997310500000003},{"$f":"VALUE(FIXED(EXP(P$4*-1*'PM2.5 reduction'!P76),9))","v":0.99995349},{"$f":"VALUE(FIXED(EXP(Q$4*-1*'PM2.5 reduction'!Q76),9))","v":0.99998062300000001},{"$f":"VALUE(FIXED(EXP(R$4*-1*'PM2.5 reduction'!R76),9))","v":0.99996305900000004},{"$f":"VALUE(FIXED(EXP(S$4*-1*'PM2.5 reduction'!S76),9))","v":0.99995951500000002},{"$f":"VALUE(FIXED(EXP(T$4*-1*'PM2.5 reduction'!T76),9))","v":0.99993804799999997},{"$f":"VALUE(FIXED(EXP(U$4*-1*'PM2.5 reduction'!U76),9))","v":1},{"$f":"VALUE(FIXED(EXP(V$4*-1*'PM2.5 reduction'!V76),9))","v":0.99995612300000003},{"$f":"VALUE(FIXED(EXP(W$4*-1*'PM2.5 reduction'!W76),9))","v":0.99997280300000002},{"$f":"VALUE(FIXED(EXP(X$4*-1*'PM2.5 reduction'!X76),9))","v":0.99997280300000002},{"$f":"VALUE(FIXED(EXP(Y$4*-1*'PM2.5 reduction'!Y76),9))","v":0.99996276299999998},{"$f":"VALUE(FIXED(EXP(Z$4*-1*'PM2.5 reduction'!Z76),9))","v":0.99993833499999996},{"$f":"VALUE(FIXED(EXP(AA$4*-1*'PM2.5 reduction'!AA76),9))","v":0.99994807699999999},{"$f":"VALUE(FIXED(EXP(AB$4*-1*'PM2.5 reduction'!AB76),9))","v":0.99994433999999999},{"$f":"VALUE(FIXED(EXP(AC$4*-1*'PM2.5 reduction'!AC76),9))","v":0.99994464100000002},{"$f":"VALUE(FIXED(EXP(AD$4*-1*'PM2.5 reduction'!AD76),9))","v":0.99998922000000001},{"$f":"VALUE(FIXED(EXP(AE$4*-1*'PM2.5 reduction'!AE76),9))","v":0.99998859799999995},{"$f":"VALUE(FIXED(EXP(AF$4*-1*'PM2.5 reduction'!AF76),9))","v":0.999963304},{"$f":"VALUE(FIXED(EXP(AG$4*-1*'PM2.5 reduction'!AG76),9))","v":0.99998859799999995},{"$f":"VALUE(FIXED(EXP(AH$4*-1*'PM2.5 reduction'!AH76),9))","v":0.99995618799999997},{"$f":"VALUE(FIXED(EXP(AI$4*-1*'PM2.5 reduction'!AI76),9))","v":0.99994949499999997},{"$f":"VALUE(FIXED(EXP(AJ$4*-1*'PM2.5 reduction'!AJ76),9))","v":0.999966994},{"$f":"VALUE(FIXED(EXP(AK$4*-1*'PM2.5 reduction'!AK76),9))","v":0.99998216200000001},{"$f":"VALUE(FIXED(EXP(AL$4*-1*'PM2.5 reduction'!AL76),9))","v":0.99997940699999999},{"$f":"VALUE(FIXED(EXP(AM$4*-1*'PM2.5 reduction'!AM76),9))","v":0.99995252499999998},{"$f":"VALUE(FIXED(EXP(AN$4*-1*'PM2.5 reduction'!AN76),9))","v":1},{"$f":"VALUE(FIXED(EXP(AO$4*-1*'PM2.5 reduction'!AO76),9))","v":1},{"$f":"VALUE(FIXED(EXP(AP$4*-1*'PM2.5 reduction'!AP76),9))","v":0.99996612900000004},{"$f":"VALUE(FIXED(EXP(AQ$4*-1*'PM2.5 reduction'!AQ76),9))","v":0.99995473999999995},{"$f":"VALUE(FIXED(EXP(AR$4*-1*'PM2.5 reduction'!AR76),9))","v":0.99995425999999998},{"$f":"VALUE(FIXED(EXP(AS$4*-1*'PM2.5 reduction'!AS76),9))","v":0.99998948399999998},{"$f":"VALUE(FIXED(EXP(AT$4*-1*'PM2.5 reduction'!AT76),9))","v":1},{"$f":"VALUE(FIXED(EXP(AU$4*-1*'PM2.5 reduction'!AU76),9))","v":1},{"$f":"VALUE(FIXED(EXP(AV$4*-1*'PM2.5 reduction'!AV76),9))","v":0.99997619599999998},{"$f":"VALUE(FIXED(EXP(AW$4*-1*'PM2.5 reduction'!AW76),9))","v":0.99996167000000002},{"$f":"VALUE(FIXED(EXP(AX$4*-1*'PM2.5 reduction'!AX76),9))","v":0.99997408899999995},{"$f":"VALUE(FIXED(EXP(AY$4*-1*'PM2.5 reduction'!AY76),9))","v":0.99996137600000001},{"$f":"VALUE(FIXED(EXP(AZ$4*-1*'PM2.5 reduction'!AZ76),9))","v":0.99995037799999997},{"$f":"VALUE(FIXED(EXP(BA$4*-1*'PM2.5 reduction'!BA76),9))","v":0.99996078200000005},{"$f":"VALUE(FIXED(EXP(BB$4*-1*'PM2.5 reduction'!BB76),9))","v":0.99996722199999999},{"$f":"VALUE(FIXED(EXP(BC$4*-1*'PM2.5 reduction'!BC76),9))","v":1}]
[null,"Female 85-89",{"$f":"VALUE(FIXED(EXP(C$4*-1*'PM2.5 reduction'!C77),9))","v":0.99993432500000001},{"$f":"VALUE(FIXED(EXP(D$4*-1*'PM2.5 reduction'!D77),9))","v":0.99993836199999997},{"$f":"VALUE(FIXED(EXP(E$4*-1*'PM2.5 reduction'!E77),9))","v":0.99997537299999995},{"$f":"VALUE(FIXED(EXP(F$4*-1*'PM2.5 reduction'!F77),9))","v":0.99998520499999999},{"$f":"VALUE(FIXED(EXP(G$4*-1*'PM2.5 reduction'!G77),9))","v":0.99999016200000002},{"$f":"VALUE(FIXED(EXP(H$4*-1*'PM2.5 reduction'!H77),9))","v":0.99997382899999998},{"$f":"VALUE(FIXED(EXP(I$4*-1*'PM2.5 reduction'!I77),9))","v":0.99998927900000001},{"$f":"VALUE(FIXED(EXP(J$4*-1*'PM2.5 reduction'!J77),9))","v":0.99996895100000005},{"$f":"VALUE(FIXED(EXP(K$4*-1*'PM2.5 reduction'!K77),9))","v":0.99996680699999996},{"$f":"VALUE(FIXED(EXP(L$4*-1*'PM2.5 reduction'!L77),9))","v":0.99998800899999996},{"$f":"VALUE(FIXED(EXP(M$4*-1*'PM2.5 reduction'!M77),9))","v":0.99998800899999996},{"$f":"VALUE(FIXED(EXP(N$4*-1*'PM2.5 reduction'!N77),9))","v":0.99994387200000001},{"$f":"VALUE(FIXED(EXP(O$4*-1*'PM2.5 reduction'!O77),9))","v":0.99996818499999995},{"$f":"VALUE(FIXED(EXP(P$4*-1*'PM2.5 reduction'!P77),9))","v":0.99995247899999995},{"$f":"VALUE(FIXED(EXP(Q$4*-1*'PM2.5 reduction'!Q77),9))","v":0.99997927499999995},{"$f":"VALUE(FIXED(EXP(R$4*-1*'PM2.5 reduction'!R77),9))","v":0.99996226899999996},{"$f":"VALUE(FIXED(EXP(S$4*-1*'PM2.5 reduction'!S77),9))","v":0.99995751200000005},{"$f":"VALUE(FIXED(EXP(T$4*-1*'PM2.5 reduction'!T77),9))","v":0.99993827499999999},{"$f":"VALUE(FIXED(EXP(U$4*-1*'PM2.5 reduction'!U77),9))","v":1},{"$f":"VALUE(FIXED(EXP(V$4*-1*'PM2.5 reduction'!V77),9))","v":0.99995515099999999},{"$f":"VALUE(FIXED(EXP(W$4*-1*'PM2.5 reduction'!W77),9))","v":0.99997111500000002},{"$f":"VALUE(FIXED(EXP(X$4*-1*'PM2.5 reduction'!X77),9))","v":0.99997111500000002},{"$f":"VALUE(FIXED(EXP(Y$4*-1*'PM2.5 reduction'!Y77),9))","v":0.99996054199999995},{"$f":"VALUE(FIXED(EXP(Z$4*-1*'PM2.5 reduction'!Z77),9))","v":0.999938043},{"$f":"VALUE(FIXED(EXP(AA$4*-1*'PM2.5 reduction'!AA77),9))","v":0.99994768499999998},{"$f":"VALUE(FIXED(EXP(AB$4*-1*'PM2.5 reduction'!AB77),9))","v":0.99994105799999999},{"$f":"VALUE(FIXED(EXP(AC$4*-1*'PM2.5 reduction'!AC77),9))","v":0.99994424900000001},{"$f":"VALUE(FIXED(EXP(AD$4*-1*'PM2.5 reduction'!AD77),9))","v":0.99998906799999998},{"$f":"VALUE(FIXED(EXP(AE$4*-1*'PM2.5 reduction'!AE77),9))","v":0.999987772},{"$f":"VALUE(FIXED(EXP(AF$4*-1*'PM2.5 reduction'!AF77),9))","v":0.999962193},{"$f":"VALUE(FIXED(EXP(AG$4*-1*'PM2.5 reduction'!AG77),9))","v":0.999987772},{"$f":"VALUE(FIXED(EXP(AH$4*-1*'PM2.5 reduction'!AH77),9))","v":0.99995590999999995},{"$f":"VALUE(FIXED(EXP(AI$4*-1*'PM2.5 reduction'!AI77),9))","v":0.99994759700000002},{"$f":"VALUE(FIXED(EXP(AJ$4*-1*'PM2.5 reduction'!AJ77),9))","v":0.999964305},{"$f":"VALUE(FIXED(EXP(AK$4*-1*'PM2.5 reduction'!AK77),9))","v":0.99998216200000001},{"$f":"VALUE(FIXED(EXP(AL$4*-1*'PM2.5 reduction'!AL77),9))","v":0.99997866300000005},{"$f":"VALUE(FIXED(EXP(AM$4*-1*'PM2.5 reduction'!AM77),9))","v":0.99995286999999999},{"$f":"VALUE(FIXED(EXP(AN$4*-1*'PM2.5 reduction'!AN77),9))","v":1},{"$f":"VALUE(FIXED(EXP(AO$4*-1*'PM2.5 reduction'!AO77),9))","v":1},{"$f":"VALUE(FIXED(EXP(AP$4*-1*'PM2.5 reduction'!AP77),9))","v":0.99996753299999996},{"$f":"VALUE(FIXED(EXP(AQ$4*-1*'PM2.5 reduction'!AQ77),9))","v":0.99995478400000004},{"$f":"VALUE(FIXED(EXP(AR$4*-1*'PM2.5 reduction'!AR77),9))","v":0.99995345000000002},{"$f":"VALUE(FIXED(EXP(AS$4*-1*'PM2.5 reduction'!AS77),9))","v":0.99998927900000001},{"$f":"VALUE(FIXED(EXP(AT$4*-1*'PM2.5 reduction'!AT77),9))","v":1},{"$f":"VALUE(FIXED(EXP(AU$4*-1*'PM2.5 reduction'!AU77),9))","v":1},{"$f":"VALUE(FIXED(EXP(AV$4*-1*'PM2.5 reduction'!AV77),9))","v":0.99997492399999999},{"$f":"VALUE(FIXED(EXP(AW$4*-1*'PM2.5 reduction'!AW77),9))","v":0.99996102099999995},{"$f":"VALUE(FIXED(EXP(AX$4*-1*'PM2.5 reduction'!AX77),9))","v":0.99997142699999997},{"$f":"VALUE(FIXED(EXP(AY$4*-1*'PM2.5 reduction'!AY77),9))","v":0.99995979700000004},{"$f":"VALUE(FIXED(EXP(AZ$4*-1*'PM2.5 reduction'!AZ77),9))","v":0.99994993399999998},{"$f":"VALUE(FIXED(EXP(BA$4*-1*'PM2.5 reduction'!BA77),9))","v":0.99995959099999998},{"$f":"VALUE(FIXED(EXP(BB$4*-1*'PM2.5 reduction'!BB77),9))","v":0.99996967599999997},{"$f":"VALUE(FIXED(EXP(BC$4*-1*'PM2.5 reduction'!BC77),9))","v":1}]
[null,"Female 90+",{"$f":"VALUE(FIXED(EXP(C$4*-1*'PM2.5 reduction'!C78),9))","v":0.99993456199999997},{"$f":"VALUE(FIXED(EXP(D$4*-1*'PM2.5 reduction'!D78),9))","v":0.99993725200000005},{"$f":"VALUE(FIXED(EXP(E$4*-1*'PM2.5 reduction'!E78),9))","v":0.99997275799999996},{"$f":"VALUE(FIXED(EXP(F$4*-1*'PM2.5 reduction'!F78),9))","v":0.99998496100000001},{"$f":"VALUE(FIXED(EXP(G$4*-1*'PM2.5 reduction'!G78),9))","v":0.99999067900000005},{"$f":"VALUE(FIXED(EXP(H$4*-1*'PM2.5 reduction'!H78),9))","v":0.999974205},{"$f":"VALUE(FIXED(EXP(I$4*-1*'PM2.5 reduction'!I78),9))","v":0.99998980999999998},{"$f":"VALUE(FIXED(EXP(J$4*-1*'PM2.5 reduction'!J78),9))","v":0.999970621},{"$f":"VALUE(FIXED(EXP(K$4*-1*'PM2.5 reduction'!K78),9))","v":0.99997022800000002},{"$f":"VALUE(FIXED(EXP(L$4*-1*'PM2.5 reduction'!L78),9))","v":0.99999127200000004},{"$f":"VALUE(FIXED(EXP(M$4*-1*'PM2.5 reduction'!M78),9))","v":0.99999127200000004},{"$f":"VALUE(FIXED(EXP(N$4*-1*'PM2.5 reduction'!N78),9))","v":0.99994325100000003},{"$f":"VALUE(FIXED(EXP(O$4*-1*'PM2.5 reduction'!O78),9))","v":0.99996766100000001},{"$f":"VALUE(FIXED(EXP(P$4*-1*'PM2.5 reduction'!P78),9))","v":0.99995014100000001},{"$f":"VALUE(FIXED(EXP(Q$4*-1*'PM2.5 reduction'!Q78),9))","v":0.99998056199999996},{"$f":"VALUE(FIXED(EXP(R$4*-1*'PM2.5 reduction'!R78),9))","v":0.99995908899999997},{"$f":"VALUE(FIXED(EXP(S$4*-1*'PM2.5 reduction'!S78),9))","v":0.99995916600000001},{"$f":"VALUE(FIXED(EXP(T$4*-1*'PM2.5 reduction'!T78),9))","v":0.99993907699999995},{"$f":"VALUE(FIXED(EXP(U$4*-1*'PM2.5 reduction'!U78),9))","v":1},{"$f":"VALUE(FIXED(EXP(V$4*-1*'PM2.5 reduction'!V78),9))","v":0.99995302500000005},{"$f":"VALUE(FIXED(EXP(W$4*-1*'PM2.5 reduction'!W78),9))","v":0.99997196300000002},{"$f":"VALUE(FIXED(EXP(X$4*-1*'PM2.5 reduction'!X78),9))","v":0.99997196300000002},{"$f":"VALUE(FIXED(EXP(Y$4*-1*'PM2.5 reduction'!Y78),9))","v":0.99996028199999998},{"$f":"VALUE(FIXED(EXP(Z$4*-1*'PM2.5 reduction'!Z78),9))","v":0.99993842799999999},{"$f":"VALUE(FIXED(EXP(AA$4*-1*'PM2.5 reduction'!AA78),9))","v":0.99994782199999999},{"$f":"VALUE(FIXED(EXP(AB$4*-1*'PM2.5 reduction'!AB78),9))","v":0.99993848200000002},{"$f":"VALUE(FIXED(EXP(AC$4*-1*'PM2.5 reduction'!AC78),9))","v":0.99994371299999996},{"$f":"VALUE(FIXED(EXP(AD$4*-1*'PM2.5 reduction'!AD78),9))","v":0.99998970200000004},{"$f":"VALUE(FIXED(EXP(AE$4*-1*'PM2.5 reduction'!AE78),9))","v":0.99998872500000002},{"$f":"VALUE(FIXED(EXP(AF$4*-1*'PM2.5 reduction'!AF78),9))","v":0.99996297000000001},{"$f":"VALUE(FIXED(EXP(AG$4*-1*'PM2.5 reduction'!AG78),9))","v":0.99998872500000002},{"$f":"VALUE(FIXED(EXP(AH$4*-1*'PM2.5 reduction'!AH78),9))","v":0.99995704600000002},{"$f":"VALUE(FIXED(EXP(AI$4*-1*'PM2.5 reduction'!AI78),9))","v":0.99994999200000001},{"$f":"VALUE(FIXED(EXP(AJ$4*-1*'PM2.5 reduction'!AJ78),9))","v":0.99997068600000005},{"$f":"VALUE(FIXED(EXP(AK$4*-1*'PM2.5 reduction'!AK78),9))","v":0.99998216200000001},{"$f":"VALUE(FIXED(EXP(AL$4*-1*'PM2.5 reduction'!AL78),9))","v":0.999978802},{"$f":"VALUE(FIXED(EXP(AM$4*-1*'PM2.5 reduction'!AM78),9))","v":0.99995332100000001},{"$f":"VALUE(FIXED(EXP(AN$4*-1*'PM2.5 reduction'!AN78),9))","v":1},{"$f":"VALUE(FIXED(EXP(AO$4*-1*'PM2.5 reduction'!AO78),9))","v":1},{"$f":"VALUE(FIXED(EXP(AP$4*-1*'PM2.5 reduction'!AP78),9))","v":0.99996371699999997},{"$f":"VALUE(FIXED(EXP(AQ$4*-1*'PM2.5 reduction'!AQ78),9))","v":0.999952917},{"$f":"VALUE(FIXED(EXP(AR$4*-1*'PM2.5 reduction'!AR78),9))","v":0.99995345499999999},{"$f":"VALUE(FIXED(EXP(AS$4*-1*'PM2.5 reduction'!AS78),9))","v":0.99998980999999998},{"$f":"VALUE(FIXED(EXP(AT$4*-1*'PM2.5 reduction'!AT78),9))","v":1},{"$f":"VALUE(FIXED(EXP(AU$4*-1*'PM2.5 reduction'!AU78),9))","v":1},{"$f":"VALUE(FIXED(EXP(AV$4*-1*'PM2.5 reduction'!AV78),9))","v":0.99997530599999995},{"$f":"VALUE(FIXED(EXP(AW$4*-1*'PM2.5 reduction'!AW78),9))","v":0.99996225800000005},{"$f":"VALUE(FIXED(EXP(AX$4*-1*'PM2.5 reduction'!AX78),9))","v":0.99997128999999996},{"$f":"VALUE(FIXED(EXP(AY$4*-1*'PM2.5 reduction'!AY78),9))","v":0.99996000299999999},{"$f":"VALUE(FIXED(EXP(AZ$4*-1*'PM2.5 reduction'!AZ78),9))","v":0.99994787299999999},{"$f":"VALUE(FIXED(EXP(BA$4*-1*'PM2.5 reduction'!BA78),9))","v":0.99996027700000001},{"$f":"VALUE(FIXED(EXP(BB$4*-1*'PM2.5 reduction'!BB78),9))","v":0.99996717300000004},{"$f":"VALUE(FIXED(EXP(BC$4*-1*'PM2.5 reduction'!BC78),9))","v":1}]
[null,"Male 0-4",{"$f":"VALUE(FIXED(EXP(C$4*-1*'PM2.5 reduction'!C79),9))","v":0.99993506700000001},{"$f":"VALUE(FIXED(EXP(D$4*-1*'PM2.5 reduction'!D79),9))","v":0.99993962999999997},{"$f":"VALUE(FIXED(EXP(E$4*-1*'PM2.5 reduction'!E79),9))","v":0.99997603800000001},{"$f":"VALUE(FIXED(EXP(F$4*-1*'PM2.5 reduction'!F79),9))","v":0.99998452500000001},{"$f":"VALUE(FIXED(EXP(G$4*-1*'PM2.5 reduction'!G79),9))","v":0.99999031299999996},{"$f":"VALUE(FIXED(EXP(H$4*-1*'PM2.5 reduction'!H79),9))","v":0.99997803699999999},{"$f":"VALUE(FIXED(EXP(I$4*-1*'PM2.5 reduction'!I79),9))","v":0.99999000800000004},{"$f":"VALUE(FIXED(EXP(J$4*-1*'PM2.5 reduction'!J79),9))","v":0.99997059399999999},{"$f":"VALUE(FIXED(EXP(K$4*-1*'PM2.5 reduction'!K79),9))","v":0.99996815500000003},{"$f":"VALUE(FIXED(EXP(L$4*-1*'PM2.5 reduction'!L79),9))","v":0.99998904200000005},{"$f":"VALUE(FIXED(EXP(M$4*-1*'PM2.5 reduction'!M79),9))","v":0.99998904200000005},{"$f":"VALUE(FIXED(EXP(N$4*-1*'PM2.5 reduction'!N79),9))","v":0.99994524100000004},{"$f":"VALUE(FIXED(EXP(O$4*-1*'PM2.5 reduction'!O79),9))","v":0.99997723699999996},{"$f":"VALUE(FIXED(EXP(P$4*-1*'PM2.5 reduction'!P79),9))","v":0.99995338300000003},{"$f":"VALUE(FIXED(EXP(Q$4*-1*'PM2.5 reduction'!Q79),9))","v":0.99998060499999997},{"$f":"VALUE(FIXED(EXP(R$4*-1*'PM2.5 reduction'!R79),9))","v":0.99996199699999999},{"$f":"VALUE(FIXED(EXP(S$4*-1*'PM2.5 reduction'!S79),9))","v":0.99995856699999996},{"$f":"VALUE(FIXED(EXP(T$4*-1*'PM2.5 reduction'!T79),9))","v":0.99993958100000002},{"$f":"VALUE(FIXED(EXP(U$4*-1*'PM2.5 reduction'!U79),9))","v":1},{"$f":"VALUE(FIXED(EXP(V$4*-1*'PM2.5 reduction'!V79),9))","v":0.99995693299999999},{"$f":"VALUE(FIXED(EXP(W$4*-1*'PM2.5 reduction'!W79),9))","v":0.99997146299999995},{"$f":"VALUE(FIXED(EXP(X$4*-1*'PM2.5 reduction'!X79),9))","v":0.99997146299999995},{"$f":"VALUE(FIXED(EXP(Y$4*-1*'PM2.5 reduction'!Y79),9))","v":0.99996395699999996},{"$f":"VALUE(FIXED(EXP(Z$4*-1*'PM2.5 reduction'!Z79),9))","v":0.99993806799999996},{"$f":"VALUE(FIXED(EXP(AA$4*-1*'PM2.5 reduction'!AA79),9))","v":0.99994823399999999},{"$f":"VALUE(FIXED(EXP(AB$4*-1*'PM2.5 reduction'!AB79),9))","v":0.99994113600000001},{"$f":"VALUE(FIXED(EXP(AC$4*-1*'PM2.5 reduction'!AC79),9))","v":0.99994455699999996},{"$f":"VALUE(FIXED(EXP(AD$4*-1*'PM2.5 reduction'!AD79),9))","v":0.99998954900000003},{"$f":"VALUE(FIXED(EXP(AE$4*-1*'PM2.5 reduction'!AE79),9))","v":0.99998922599999995},{"$f":"VALUE(FIXED(EXP(AF$4*-1*'PM2.5 reduction'!AF79),9))","v":0.99996957500000005},{"$f":"VALUE(FIXED(EXP(AG$4*-1*'PM2.5 reduction'!AG79),9))","v":0.99998922599999995},{"$f":"VALUE(FIXED(EXP(AH$4*-1*'PM2.5 reduction'!AH79),9))","v":0.99995708400000005},{"$f":"VALUE(FIXED(EXP(AI$4*-1*'PM2.5 reduction'!AI79),9))","v":0.99994977799999996},{"$f":"VALUE(FIXED(EXP(AJ$4*-1*'PM2.5 reduction'!AJ79),9))","v":0.99997143300000002},{"$f":"VALUE(FIXED(EXP(AK$4*-1*'PM2.5 reduction'!AK79),9))","v":0.99998216200000001},{"$f":"VALUE(FIXED(EXP(AL$4*-1*'PM2.5 reduction'!AL79),9))","v":0.99997994300000004},{"$f":"VALUE(FIXED(EXP(AM$4*-1*'PM2.5 reduction'!AM79),9))","v":0.99995384399999998},{"$f":"VALUE(FIXED(EXP(AN$4*-1*'PM2.5 reduction'!AN79),9))","v":1},{"$f":"VALUE(FIXED(EXP(AO$4*-1*'PM2.5 reduction'!AO79),9))","v":1},{"$f":"VALUE(FIXED(EXP(AP$4*-1*'PM2.5 reduction'!AP79),9))","v":0.999968839},{"$f":"VALUE(FIXED(EXP(AQ$4*-1*'PM2.5 reduction'!AQ79),9))","v":0.99995607200000003},{"$f":"VALUE(FIXED(EXP(AR$4*-1*'PM2.5 reduction'!AR79),9))","v":0.99995492100000005},{"$f":"VALUE(FIXED(EXP(AS$4*-1*'PM2.5 reduction'!AS79),9))","v":0.99999000800000004},{"$f":"VALUE(FIXED(EXP(AT$4*-1*'PM2.5 reduction'!AT79),9))","v":1},{"$f":"VALUE(FIXED(EXP(AU$4*-1*'PM2.5 reduction'!AU79),9))","v":1},{"$f":"VALUE(FIXED(EXP(AV$4*-1*'PM2.5 reduction'!AV79),9))","v":0.99997457999999995},{"$f":"VALUE(FIXED(EXP(AW$4*-1*'PM2.5 reduction'!AW79),9))","v":0.99996275300000004},{"$f":"VALUE(FIXED(EXP(AX$4*-1*'PM2.5 reduction'!AX79),9))","v":0.99997390500000005},{"$f":"VALUE(FIXED(EXP(AY$4*-1*'PM2.5 reduction'!AY79),9))","v":0.99996168500000004},{"$f":"VALUE(FIXED(EXP(AZ$4*-1*'PM2.5 reduction'!AZ79),9))","v":0.99995253799999995},{"$f":"VALUE(FIXED(EXP(BA$4*-1*'PM2.5 reduction'!BA79),9))","v":0.99996286499999998},{"$f":"VALUE(FIXED(EXP(BB$4*-1*'PM2.5 reduction'!BB79),9))","v":0.99996708899999998},{"$f":"VALUE(FIXED(EXP(BC$4*-1*'PM2.5 reduction'!BC79),9))","v":1}]
[null,"Male 5-9",{"$f":"VALUE(FIXED(EXP(C$4*-1*'PM2.5 reduction'!C80),9))","v":0.999936885},{"$f":"VALUE(FIXED(EXP(D$4*-1*'PM2.5 reduction'!D80),9))","v":0.99994184799999997},{"$f":"VALUE(FIXED(EXP(E$4*-1*'PM2.5 reduction'!E80),9))","v":0.99997593299999998},{"$f":"VALUE(FIXED(EXP(F$4*-1*'PM2.5 reduction'!F80),9))","v":0.99998580400000003},{"$f":"VALUE(FIXED(EXP(G$4*-1*'PM2.5 reduction'!G80),9))","v":0.99998994299999999},{"$f":"VALUE(FIXED(EXP(H$4*-1*'PM2.5 reduction'!H80),9))","v":0.99997802999999996},{"$f":"VALUE(FIXED(EXP(I$4*-1*'PM2.5 reduction'!I80),9))","v":0.99999002199999998},{"$f":"VALUE(FIXED(EXP(J$4*-1*'PM2.5 reduction'!J80),9))","v":0.99997082500000001},{"$f":"VALUE(FIXED(EXP(K$4*-1*'PM2.5 reduction'!K80),9))","v":0.99996809799999997},{"$f":"VALUE(FIXED(EXP(L$4*-1*'PM2.5 reduction'!L80),9))","v":0.99998895300000001},{"$f":"VALUE(FIXED(EXP(M$4*-1*'PM2.5 reduction'!M80),9))","v":0.99998895300000001},{"$f":"VALUE(FIXED(EXP(N$4*-1*'PM2.5 reduction'!N80),9))","v":0.99994733899999999},{"$f":"VALUE(FIXED(EXP(O$4*-1*'PM2.5 reduction'!O80),9))","v":0.99997643999999997},{"$f":"VALUE(FIXED(EXP(P$4*-1*'PM2.5 reduction'!P80),9))","v":0.99995378700000004},{"$f":"VALUE(FIXED(EXP(Q$4*-1*'PM2.5 reduction'!Q80),9))","v":0.99998124600000005},{"$f":"VALUE(FIXED(EXP(R$4*-1*'PM2.5 reduction'!R80),9))","v":0.99996328099999998},{"$f":"VALUE(FIXED(EXP(S$4*-1*'PM2.5 reduction'!S80),9))","v":0.99995889800000004},{"$f":"VALUE(FIXED(EXP(T$4*-1*'PM2.5 reduction'!T80),9))","v":0.99993979600000005},{"$f":"VALUE(FIXED(EXP(U$4*-1*'PM2.5 reduction'!U80),9))","v":1},{"$f":"VALUE(FIXED(EXP(V$4*-1*'PM2.5 reduction'!V80),9))","v":0.99995741299999996},{"$f":"VALUE(FIXED(EXP(W$4*-1*'PM2.5 reduction'!W80),9))","v":0.99997251200000004},{"$f":"VALUE(FIXED(EXP(X$4*-1*'PM2.5 reduction'!X80),9))","v":0.99997251200000004},{"$f":"VALUE(FIXED(EXP(Y$4*-1*'PM2.5 reduction'!Y80),9))","v":0.99996428800000003},{"$f":"VALUE(FIXED(EXP(Z$4*-1*'PM2.5 reduction'!Z80),9))","v":0.99993933499999998},{"$f":"VALUE(FIXED(EXP(AA$4*-1*'PM2.5 reduction'!AA80),9))","v":0.99994955200000002},{"$f":"VALUE(FIXED(EXP(AB$4*-1*'PM2.5 reduction'!AB80),9))","v":0.999943676},{"$f":"VALUE(FIXED(EXP(AC$4*-1*'PM2.5 reduction'!AC80),9))","v":0.99994629300000004},{"$f":"VALUE(FIXED(EXP(AD$4*-1*'PM2.5 reduction'!AD80),9))","v":0.99998958800000004},{"$f":"VALUE(FIXED(EXP(AE$4*-1*'PM2.5 reduction'!AE80),9))","v":0.99998941500000005},{"$f":"VALUE(FIXED(EXP(AF$4*-1*'PM2.5 reduction'!AF80),9))","v":0.999970735},{"$f":"VALUE(FIXED(EXP(AG$4*-1*'PM2.5 reduction'!AG80),9))","v":0.99998941500000005},{"$f":"VALUE(FIXED(EXP(AH$4*-1*'PM2.5 reduction'!AH80),9))","v":0.99995692199999997},{"$f":"VALUE(FIXED(EXP(AI$4*-1*'PM2.5 reduction'!AI80),9))","v":0.99994997500000005},{"$f":"VALUE(FIXED(EXP(AJ$4*-1*'PM2.5 reduction'!AJ80),9))","v":0.99997225899999997},{"$f":"VALUE(FIXED(EXP(AK$4*-1*'PM2.5 reduction'!AK80),9))","v":0.99998216200000001},{"$f":"VALUE(FIXED(EXP(AL$4*-1*'PM2.5 reduction'!AL80),9))","v":0.999980129},{"$f":"VALUE(FIXED(EXP(AM$4*-1*'PM2.5 reduction'!AM80),9))","v":0.99995387000000002},{"$f":"VALUE(FIXED(EXP(AN$4*-1*'PM2.5 reduction'!AN80),9))","v":1},{"$f":"VALUE(FIXED(EXP(AO$4*-1*'PM2.5 reduction'!AO80),9))","v":1},{"$f":"VALUE(FIXED(EXP(AP$4*-1*'PM2.5 reduction'!AP80),9))","v":0.99997073199999997},{"$f":"VALUE(FIXED(EXP(AQ$4*-1*'PM2.5 reduction'!AQ80),9))","v":0.99995754199999998},{"$f":"VALUE(FIXED(EXP(AR$4*-1*'PM2.5 reduction'!AR80),9))","v":0.999956183},{"$f":"VALUE(FIXED(EXP(AS$4*-1*'PM2.5 reduction'!AS80),9))","v":0.99999002199999998},{"$f":"VALUE(FIXED(EXP(AT$4*-1*'PM2.5 reduction'!AT80),9))","v":1},{"$f":"VALUE(FIXED(EXP(AU$4*-1*'PM2.5 reduction'!AU80),9))","v":1},{"$f":"VALUE(FIXED(EXP(AV$4*-1*'PM2.5 reduction'!AV80),9))","v":0.999974896},{"$f":"VALUE(FIXED(EXP(AW$4*-1*'PM2.5 reduction'!AW80),9))","v":0.999962613},{"$f":"VALUE(FIXED(EXP(AX$4*-1*'PM2.5 reduction'!AX80),9))","v":0.99997368900000005},{"$f":"VALUE(FIXED(EXP(AY$4*-1*'PM2.5 reduction'!AY80),9))","v":0.99996370700000003},{"$f":"VALUE(FIXED(EXP(AZ$4*-1*'PM2.5 reduction'!AZ80),9))","v":0.99995477099999996},{"$f":"VALUE(FIXED(EXP(BA$4*-1*'PM2.5 reduction'!BA80),9))","v":0.99996258699999996},{"$f":"VALUE(FIXED(EXP(BB$4*-1*'PM2.5 reduction'!BB80),9))","v":0.99996770300000004},{"$f":"VALUE(FIXED(EXP(BC$4*-1*'PM2.5 reduction'!BC80),9))","v":1}]
[null,"Male 10-15",{"$f":"VALUE(FIXED(EXP(C$4*-1*'PM2.5 reduction'!C81),9))","v":0.99993755600000001},{"$f":"VALUE(FIXED(EXP(D$4*-1*'PM2.5 reduction'!D81),9))","v":0.99994149899999996},{"$f":"VALUE(FIXED(EXP(E$4*-1*'PM2.5 reduction'!E81),9))","v":0.999975842},{"$f":"VALUE(FIXED(EXP(F$4*-1*'PM2.5 reduction'!F81),9))","v":0.999985291},{"$f":"VALUE(FIXED(EXP(G$4*-1*'PM2.5 reduction'!G81),9))","v":0.99999017400000001},{"$f":"VALUE(FIXED(EXP(H$4*-1*'PM2.5 reduction'!H81),9))","v":0.99997829599999999},{"$f":"VALUE(FIXED(EXP(I$4*-1*'PM2.5 reduction'!I81),9))","v":0.99999007699999998},{"$f":"VALUE(FIXED(EXP(J$4*-1*'PM2.5 reduction'!J81),9))","v":0.99997063799999997},{"$f":"VALUE(FIXED(EXP(K$4*-1*'PM2.5 reduction'!K81),9))","v":0.99996754399999999},{"$f":"VALUE(FIXED(EXP(L$4*-1*'PM2.5 reduction'!L81),9))","v":0.99998855200000003},{"$f":"VALUE(FIXED(EXP(M$4*-1*'PM2.5 reduction'!M81),9))","v":0.99998855200000003},{"$f":"VALUE(FIXED(EXP(N$4*-1*'PM2.5 reduction'!N81),9))","v":0.99994672600000001},{"$f":"VALUE(FIXED(EXP(O$4*-1*'PM2.5 reduction'!O81),9))","v":0.99997665899999999},{"$f":"VALUE(FIXED(EXP(P$4*-1*'PM2.5 reduction'!P81),9))","v":0.99995464000000001},{"$f":"VALUE(FIXED(EXP(Q$4*-1*'PM2.5 reduction'!Q81),9))","v":0.99998121399999995},{"$f":"VALUE(FIXED(EXP(R$4*-1*'PM2.5 reduction'!R81),9))","v":0.99996319199999995},{"$f":"VALUE(FIXED(EXP(S$4*-1*'PM2.5 reduction'!S81),9))","v":0.99995986999999997},{"$f":"VALUE(FIXED(EXP(T$4*-1*'PM2.5 reduction'!T81),9))","v":0.99994058399999997},{"$f":"VALUE(FIXED(EXP(U$4*-1*'PM2.5 reduction'!U81),9))","v":1},{"$f":"VALUE(FIXED(EXP(V$4*-1*'PM2.5 reduction'!V81),9))","v":0.99995698899999996},{"$f":"VALUE(FIXED(EXP(W$4*-1*'PM2.5 reduction'!W81),9))","v":0.99997208999999998},{"$f":"VALUE(FIXED(EXP(X$4*-1*'PM2.5 reduction'!X81),9))","v":0.99997208999999998},{"$f":"VALUE(FIXED(EXP(Y$4*-1*'PM2.5 reduction'!Y81),9))","v":0.99996396399999998},{"$f":"VALUE(FIXED(EXP(Z$4*-1*'PM2.5 reduction'!Z81),9))","v":0.99994017300000004},{"$f":"VALUE(FIXED(EXP(AA$4*-1*'PM2.5 reduction'!AA81),9))","v":0.99995018499999999},{"$f":"VALUE(FIXED(EXP(AB$4*-1*'PM2.5 reduction'!AB81),9))","v":0.99994396500000005},{"$f":"VALUE(FIXED(EXP(AC$4*-1*'PM2.5 reduction'!AC81),9))","v":0.99994699499999995},{"$f":"VALUE(FIXED(EXP(AD$4*-1*'PM2.5 reduction'!AD81),9))","v":0.99998927199999998},{"$f":"VALUE(FIXED(EXP(AE$4*-1*'PM2.5 reduction'!AE81),9))","v":0.99998874299999996},{"$f":"VALUE(FIXED(EXP(AF$4*-1*'PM2.5 reduction'!AF81),9))","v":0.99997121300000003},{"$f":"VALUE(FIXED(EXP(AG$4*-1*'PM2.5 reduction'!AG81),9))","v":0.99998874299999996},{"$f":"VALUE(FIXED(EXP(AH$4*-1*'PM2.5 reduction'!AH81),9))","v":0.99995716700000004},{"$f":"VALUE(FIXED(EXP(AI$4*-1*'PM2.5 reduction'!AI81),9))","v":0.99995168800000001},{"$f":"VALUE(FIXED(EXP(AJ$4*-1*'PM2.5 reduction'!AJ81),9))","v":0.99997195500000002},{"$f":"VALUE(FIXED(EXP(AK$4*-1*'PM2.5 reduction'!AK81),9))","v":0.99998216200000001},{"$f":"VALUE(FIXED(EXP(AL$4*-1*'PM2.5 reduction'!AL81),9))","v":0.99998010400000004},{"$f":"VALUE(FIXED(EXP(AM$4*-1*'PM2.5 reduction'!AM81),9))","v":0.99995409400000002},{"$f":"VALUE(FIXED(EXP(AN$4*-1*'PM2.5 reduction'!AN81),9))","v":1},{"$f":"VALUE(FIXED(EXP(AO$4*-1*'PM2.5 reduction'!AO81),9))","v":1},{"$f":"VALUE(FIXED(EXP(AP$4*-1*'PM2.5 reduction'!AP81),9))","v":0.99997277699999998},{"$f":"VALUE(FIXED(EXP(AQ$4*-1*'PM2.5 reduction'!AQ81),9))","v":0.99995812399999995},{"$f":"VALUE(FIXED(EXP(AR$4*-1*'PM2.5 reduction'!AR81),9))","v":0.99995653600000001},{"$f":"VALUE(FIXED(EXP(AS$4*-1*'PM2.5 reduction'!AS81),9))","v":0.99999007699999998},{"$f":"VALUE(FIXED(EXP(AT$4*-1*'PM2.5 reduction'!AT81),9))","v":1},{"$f":"VALUE(FIXED(EXP(AU$4*-1*'PM2.5 reduction'!AU81),9))","v":1},{"$f":"VALUE(FIXED(EXP(AV$4*-1*'PM2.5 reduction'!AV81),9))","v":0.99997589600000003},{"$f":"VALUE(FIXED(EXP(AW$4*-1*'PM2.5 reduction'!AW81),9))","v":0.99996305299999999},{"$f":"VALUE(FIXED(EXP(AX$4*-1*'PM2.5 reduction'!AX81),9))","v":0.99997425399999995},{"$f":"VALUE(FIXED(EXP(AY$4*-1*'PM2.5 reduction'!AY81),9))","v":0.99996279300000002},{"$f":"VALUE(FIXED(EXP(AZ$4*-1*'PM2.5 reduction'!AZ81),9))","v":0.99995438699999994},{"$f":"VALUE(FIXED(EXP(BA$4*-1*'PM2.5 reduction'!BA81),9))","v":0.99996273300000005},{"$f":"VALUE(FIXED(EXP(BB$4*-1*'PM2.5 reduction'!BB81),9))","v":0.99996718399999995},{"$f":"VALUE(FIXED(EXP(BC$4*-1*'PM2.5 reduction'!BC81),9))","v":1}]
[null,"Male 16-19",{"$f":"VALUE(FIXED(EXP(C$4*-1*'PM2.5 reduction'!C82),9))","v":0.999937352},{"$f":"VALUE(FIXED(EXP(D$4*-1*'PM2.5 reduction'!D82),9))","v":0.99994002800000004},{"$f":"VALUE(FIXED(EXP(E$4*-1*'PM2.5 reduction'!E82),9))","v":0.99997727599999997},{"$f":"VALUE(FIXED(EXP(F$4*-1*'PM2.5 reduction'!F82),9))","v":0.99998509199999996},{"$f":"VALUE(FIXED(EXP(G$4*-1*'PM2.5 reduction'!G82),9))","v":0.99999027399999996},{"$f":"VALUE(FIXED(EXP(H$4*-1*'PM2.5 reduction'!H82),9))","v":0.99997833000000003},{"$f":"VALUE(FIXED(EXP(I$4*-1*'PM2.5 reduction'!I82),9))","v":0.99998998299999997},{"$f":"VALUE(FIXED(EXP(J$4*-1*'PM2.5 reduction'!J82),9))","v":0.99997082800000003},{"$f":"VALUE(FIXED(EXP(K$4*-1*'PM2.5 reduction'!K82),9))","v":0.99996834199999995},{"$f":"VALUE(FIXED(EXP(L$4*-1*'PM2.5 reduction'!L82),9))","v":0.99998878700000005},{"$f":"VALUE(FIXED(EXP(M$4*-1*'PM2.5 reduction'!M82),9))","v":0.99998878700000005},{"$f":"VALUE(FIXED(EXP(N$4*-1*'PM2.5 reduction'!N82),9))","v":0.99994309999999997},{"$f":"VALUE(FIXED(EXP(O$4*-1*'PM2.5 reduction'!O82),9))","v":0.99997766099999996},{"$f":"VALUE(FIXED(EXP(P$4*-1*'PM2.5 reduction'!P82),9))","v":0.99995383999999998},{"$f":"VALUE(FIXED(EXP(Q$4*-1*'PM2.5 reduction'!Q82),9))","v":0.99998108600000002},{"$f":"VALUE(FIXED(EXP(R$4*-1*'PM2.5 reduction'!R82),9))","v":0.99996394700000002},{"$f":"VALUE(FIXED(EXP(S$4*-1*'PM2.5 reduction'!S82),9))","v":0.99995992499999997},{"$f":"VALUE(FIXED(EXP(T$4*-1*'PM2.5 reduction'!T82),9))","v":0.99993995599999996},{"$f":"VALUE(FIXED(EXP(U$4*-1*'PM2.5 reduction'!U82),9))","v":1},{"$f":"VALUE(FIXED(EXP(V$4*-1*'PM2.5 reduction'!V82),9))","v":0.99995730999999999},{"$f":"VALUE(FIXED(EXP(W$4*-1*'PM2.5 reduction'!W82),9))","v":0.99997221700000005},{"$f":"VALUE(FIXED(EXP(X$4*-1*'PM2.5 reduction'!X82),9))","v":0.99997221700000005},{"$f":"VALUE(FIXED(EXP(Y$4*-1*'PM2.5 reduction'!Y82),9))","v":0.999964925},{"$f":"VALUE(FIXED(EXP(Z$4*-1*'PM2.5 reduction'!Z82),9))","v":0.99993767200000006},{"$f":"VALUE(FIXED(EXP(AA$4*-1*'PM2.5 reduction'!AA82),9))","v":0.99994866900000001},{"$f":"VALUE(FIXED(EXP(AB$4*-1*'PM2.5 reduction'!AB82),9))","v":0.999942475},{"$f":"VALUE(FIXED(EXP(AC$4*-1*'PM2.5 reduction'!AC82),9))","v":0.99994483499999998},{"$f":"VALUE(FIXED(EXP(AD$4*-1*'PM2.5 reduction'!AD82),9))","v":0.99999017199999995},{"$f":"VALUE(FIXED(EXP(AE$4*-1*'PM2.5 reduction'!AE82),9))","v":0.99999010099999996},{"$f":"VALUE(FIXED(EXP(AF$4*-1*'PM2.5 reduction'!AF82),9))","v":0.99997100000000005},{"$f":"VALUE(FIXED(EXP(AG$4*-1*'PM2.5 reduction'!AG82),9))","v":0.99999010099999996},{"$f":"VALUE(FIXED(EXP(AH$4*-1*'PM2.5 reduction'!AH82),9))","v":0.99995745400000002},{"$f":"VALUE(FIXED(EXP(AI$4*-1*'PM2.5 reduction'!AI82),9))","v":0.99995093999999995},{"$f":"VALUE(FIXED(EXP(AJ$4*-1*'PM2.5 reduction'!AJ82),9))","v":0.99997041600000003},{"$f":"VALUE(FIXED(EXP(AK$4*-1*'PM2.5 reduction'!AK82),9))","v":0.99998216200000001},{"$f":"VALUE(FIXED(EXP(AL$4*-1*'PM2.5 reduction'!AL82),9))","v":0.99998014700000004},{"$f":"VALUE(FIXED(EXP(AM$4*-1*'PM2.5 reduction'!AM82),9))","v":0.99995428600000003},{"$f":"VALUE(FIXED(EXP(AN$4*-1*'PM2.5 reduction'!AN82),9))","v":1},{"$f":"VALUE(FIXED(EXP(AO$4*-1*'PM2.5 reduction'!AO82),9))","v":1},{"$f":"VALUE(FIXED(EXP(AP$4*-1*'PM2.5 reduction'!AP82),9))","v":0.99997301500000002},{"$f":"VALUE(FIXED(EXP(AQ$4*-1*'PM2.5 reduction'!AQ82),9))","v":0.99995683700000004},{"$f":"VALUE(FIXED(EXP(AR$4*-1*'PM2.5 reduction'!AR82),9))","v":0.99995549699999997},{"$f":"VALUE(FIXED(EXP(AS$4*-1*'PM2.5 reduction'!AS82),9))","v":0.99998998299999997},{"$f":"VALUE(FIXED(EXP(AT$4*-1*'PM2.5 reduction'!AT82),9))","v":1},{"$f":"VALUE(FIXED(EXP(AU$4*-1*'PM2.5 reduction'!AU82),9))","v":1},{"$f":"VALUE(FIXED(EXP(AV$4*-1*'PM2.5 reduction'!AV82),9))","v":0.99997405100000003},{"$f":"VALUE(FIXED(EXP(AW$4*-1*'PM2.5 reduction'!AW82),9))","v":0.99996329299999998},{"$f":"VALUE(FIXED(EXP(AX$4*-1*'PM2.5 reduction'!AX82),9))","v":0.99997318099999999},{"$f":"VALUE(FIXED(EXP(AY$4*-1*'PM2.5 reduction'!AY82),9))","v":0.99996194599999999},{"$f":"VALUE(FIXED(EXP(AZ$4*-1*'PM2.5 reduction'!AZ82),9))","v":0.99995207200000003},{"$f":"VALUE(FIXED(EXP(BA$4*-1*'PM2.5 reduction'!BA82),9))","v":0.99996238699999995},{"$f":"VALUE(FIXED(EXP(BB$4*-1*'PM2.5 reduction'!BB82),9))","v":0.99996618999999998},{"$f":"VALUE(FIXED(EXP(BC$4*-1*'PM2.5 reduction'!BC82),9))","v":1}]
[null,"Male 20-24",{"$f":"VALUE(FIXED(EXP(C$4*-1*'PM2.5 reduction'!C83),9))","v":0.99993262400000005},{"$f":"VALUE(FIXED(EXP(D$4*-1*'PM2.5 reduction'!D83),9))","v":0.99993843299999996},{"$f":"VALUE(FIXED(EXP(E$4*-1*'PM2.5 reduction'!E83),9))","v":0.99997601199999997},{"$f":"VALUE(FIXED(EXP(F$4*-1*'PM2.5 reduction'!F83),9))","v":0.99998562999999996},{"$f":"VALUE(FIXED(EXP(G$4*-1*'PM2.5 reduction'!G83),9))","v":0.99999032499999996},{"$f":"VALUE(FIXED(EXP(H$4*-1*'PM2.5 reduction'!H83),9))","v":0.99997792600000002},{"$f":"VALUE(FIXED(EXP(I$4*-1*'PM2.5 reduction'!I83),9))","v":0.99998996699999998},{"$f":"VALUE(FIXED(EXP(J$4*-1*'PM2.5 reduction'!J83),9))","v":0.99996784999999999},{"$f":"VALUE(FIXED(EXP(K$4*-1*'PM2.5 reduction'!K83),9))","v":0.99996859599999999},{"$f":"VALUE(FIXED(EXP(L$4*-1*'PM2.5 reduction'!L83),9))","v":0.99998876599999997},{"$f":"VALUE(FIXED(EXP(M$4*-1*'PM2.5 reduction'!M83),9))","v":0.99998876599999997},{"$f":"VALUE(FIXED(EXP(N$4*-1*'PM2.5 reduction'!N83),9))","v":0.99993669799999996},{"$f":"VALUE(FIXED(EXP(O$4*-1*'PM2.5 reduction'!O83),9))","v":0.99997635100000004},{"$f":"VALUE(FIXED(EXP(P$4*-1*'PM2.5 reduction'!P83),9))","v":0.99995652899999998},{"$f":"VALUE(FIXED(EXP(Q$4*-1*'PM2.5 reduction'!Q83),9))","v":0.99998142199999995},{"$f":"VALUE(FIXED(EXP(R$4*-1*'PM2.5 reduction'!R83),9))","v":0.99996244599999995},{"$f":"VALUE(FIXED(EXP(S$4*-1*'PM2.5 reduction'!S83),9))","v":0.99995777699999999},{"$f":"VALUE(FIXED(EXP(T$4*-1*'PM2.5 reduction'!T83),9))","v":0.99993703300000003},{"$f":"VALUE(FIXED(EXP(U$4*-1*'PM2.5 reduction'!U83),9))","v":1},{"$f":"VALUE(FIXED(EXP(V$4*-1*'PM2.5 reduction'!V83),9))","v":0.99995579899999998},{"$f":"VALUE(FIXED(EXP(W$4*-1*'PM2.5 reduction'!W83),9))","v":0.99997211500000005},{"$f":"VALUE(FIXED(EXP(X$4*-1*'PM2.5 reduction'!X83),9))","v":0.99997211500000005},{"$f":"VALUE(FIXED(EXP(Y$4*-1*'PM2.5 reduction'!Y83),9))","v":0.99996200999999996},{"$f":"VALUE(FIXED(EXP(Z$4*-1*'PM2.5 reduction'!Z83),9))","v":0.99993383599999996},{"$f":"VALUE(FIXED(EXP(AA$4*-1*'PM2.5 reduction'!AA83),9))","v":0.99994555500000004},{"$f":"VALUE(FIXED(EXP(AB$4*-1*'PM2.5 reduction'!AB83),9))","v":0.99994010099999997},{"$f":"VALUE(FIXED(EXP(AC$4*-1*'PM2.5 reduction'!AC83),9))","v":0.99994115699999997},{"$f":"VALUE(FIXED(EXP(AD$4*-1*'PM2.5 reduction'!AD83),9))","v":0.99998960199999998},{"$f":"VALUE(FIXED(EXP(AE$4*-1*'PM2.5 reduction'!AE83),9))","v":0.99998905500000002},{"$f":"VALUE(FIXED(EXP(AF$4*-1*'PM2.5 reduction'!AF83),9))","v":0.99996904200000003},{"$f":"VALUE(FIXED(EXP(AG$4*-1*'PM2.5 reduction'!AG83),9))","v":0.99998905500000002},{"$f":"VALUE(FIXED(EXP(AH$4*-1*'PM2.5 reduction'!AH83),9))","v":0.99995662699999999},{"$f":"VALUE(FIXED(EXP(AI$4*-1*'PM2.5 reduction'!AI83),9))","v":0.99994868800000003},{"$f":"VALUE(FIXED(EXP(AJ$4*-1*'PM2.5 reduction'!AJ83),9))","v":0.99997011599999996},{"$f":"VALUE(FIXED(EXP(AK$4*-1*'PM2.5 reduction'!AK83),9))","v":0.99998216200000001},{"$f":"VALUE(FIXED(EXP(AL$4*-1*'PM2.5 reduction'!AL83),9))","v":0.99997999199999998},{"$f":"VALUE(FIXED(EXP(AM$4*-1*'PM2.5 reduction'!AM83),9))","v":0.99995379799999995},{"$f":"VALUE(FIXED(EXP(AN$4*-1*'PM2.5 reduction'!AN83),9))","v":1},{"$f":"VALUE(FIXED(EXP(AO$4*-1*'PM2.5 reduction'!AO83),9))","v":1},{"$f":"VALUE(FIXED(EXP(AP$4*-1*'PM2.5 reduction'!AP83),9))","v":0.99996296900000003},{"$f":"VALUE(FIXED(EXP(AQ$4*-1*'PM2.5 reduction'!AQ83),9))","v":0.99995309399999999},{"$f":"VALUE(FIXED(EXP(AR$4*-1*'PM2.5 reduction'!AR83),9))","v":0.99995217599999997},{"$f":"VALUE(FIXED(EXP(AS$4*-1*'PM2.5 reduction'!AS83),9))","v":0.99998996699999998},{"$f":"VALUE(FIXED(EXP(AT$4*-1*'PM2.5 reduction'!AT83),9))","v":1},{"$f":"VALUE(FIXED(EXP(AU$4*-1*'PM2.5 reduction'!AU83),9))","v":1},{"$f":"VALUE(FIXED(EXP(AV$4*-1*'PM2.5 reduction'!AV83),9))","v":0.99997499300000003},{"$f":"VALUE(FIXED(EXP(AW$4*-1*'PM2.5 reduction'!AW83),9))","v":0.99996178700000005},{"$f":"VALUE(FIXED(EXP(AX$4*-1*'PM2.5 reduction'!AX83),9))","v":0.99996720400000005},{"$f":"VALUE(FIXED(EXP(AY$4*-1*'PM2.5 reduction'!AY83),9))","v":0.99995698799999999},{"$f":"VALUE(FIXED(EXP(AZ$4*-1*'PM2.5 reduction'!AZ83),9))","v":0.99994539999999998},{"$f":"VALUE(FIXED(EXP(BA$4*-1*'PM2.5 reduction'!BA83),9))","v":0.99996222000000001},{"$f":"VALUE(FIXED(EXP(BB$4*-1*'PM2.5 reduction'!BB83),9))","v":0.999966154},{"$f":"VALUE(FIXED(EXP(BC$4*-1*'PM2.5 reduction'!BC83),9))","v":1}]
[null,"Male 25-29",{"$f":"VALUE(FIXED(EXP(C$4*-1*'PM2.5 reduction'!C84),9))","v":0.99993300900000004},{"$f":"VALUE(FIXED(EXP(D$4*-1*'PM2.5 reduction'!D84),9))","v":0.99993599600000005},{"$f":"VALUE(FIXED(EXP(E$4*-1*'PM2.5 reduction'!E84),9))","v":0.99997575100000002},{"$f":"VALUE(FIXED(EXP(F$4*-1*'PM2.5 reduction'!F84),9))","v":0.99998558199999998},{"$f":"VALUE(FIXED(EXP(G$4*-1*'PM2.5 reduction'!G84),9))","v":0.99998999700000002},{"$f":"VALUE(FIXED(EXP(H$4*-1*'PM2.5 reduction'!H84),9))","v":0.99997676499999999},{"$f":"VALUE(FIXED(EXP(I$4*-1*'PM2.5 reduction'!I84),9))","v":0.99998966600000005},{"$f":"VALUE(FIXED(EXP(J$4*-1*'PM2.5 reduction'!J84),9))","v":0.999970676},{"$f":"VALUE(FIXED(EXP(K$4*-1*'PM2.5 reduction'!K84),9))","v":0.99996868100000003},{"$f":"VALUE(FIXED(EXP(L$4*-1*'PM2.5 reduction'!L84),9))","v":0.999988722},{"$f":"VALUE(FIXED(EXP(M$4*-1*'PM2.5 reduction'!M84),9))","v":0.999988722},{"$f":"VALUE(FIXED(EXP(N$4*-1*'PM2.5 reduction'!N84),9))","v":0.99993759999999998},{"$f":"VALUE(FIXED(EXP(O$4*-1*'PM2.5 reduction'!O84),9))","v":0.99997413899999998},{"$f":"VALUE(FIXED(EXP(P$4*-1*'PM2.5 reduction'!P84),9))","v":0.99995449400000003},{"$f":"VALUE(FIXED(EXP(Q$4*-1*'PM2.5 reduction'!Q84),9))","v":0.99998053499999995},{"$f":"VALUE(FIXED(EXP(R$4*-1*'PM2.5 reduction'!R84),9))","v":0.99996269999999998},{"$f":"VALUE(FIXED(EXP(S$4*-1*'PM2.5 reduction'!S84),9))","v":0.99995318700000002},{"$f":"VALUE(FIXED(EXP(T$4*-1*'PM2.5 reduction'!T84),9))","v":0.99993531700000005},{"$f":"VALUE(FIXED(EXP(U$4*-1*'PM2.5 reduction'!U84),9))","v":1},{"$f":"VALUE(FIXED(EXP(V$4*-1*'PM2.5 reduction'!V84),9))","v":0.99995568400000001},{"$f":"VALUE(FIXED(EXP(W$4*-1*'PM2.5 reduction'!W84),9))","v":0.99997127200000002},{"$f":"VALUE(FIXED(EXP(X$4*-1*'PM2.5 reduction'!X84),9))","v":0.99997127200000002},{"$f":"VALUE(FIXED(EXP(Y$4*-1*'PM2.5 reduction'!Y84),9))","v":0.99996286400000001},{"$f":"VALUE(FIXED(EXP(Z$4*-1*'PM2.5 reduction'!Z84),9))","v":0.99993405899999999},{"$f":"VALUE(FIXED(EXP(AA$4*-1*'PM2.5 reduction'!AA84),9))","v":0.99994404299999995},{"$f":"VALUE(FIXED(EXP(AB$4*-1*'PM2.5 reduction'!AB84),9))","v":0.99993658399999996},{"$f":"VALUE(FIXED(EXP(AC$4*-1*'PM2.5 reduction'!AC84),9))","v":0.99994020400000005},{"$f":"VALUE(FIXED(EXP(AD$4*-1*'PM2.5 reduction'!AD84),9))","v":0.99998927900000001},{"$f":"VALUE(FIXED(EXP(AE$4*-1*'PM2.5 reduction'!AE84),9))","v":0.99998886600000003},{"$f":"VALUE(FIXED(EXP(AF$4*-1*'PM2.5 reduction'!AF84),9))","v":0.99996775000000004},{"$f":"VALUE(FIXED(EXP(AG$4*-1*'PM2.5 reduction'!AG84),9))","v":0.99998886600000003},{"$f":"VALUE(FIXED(EXP(AH$4*-1*'PM2.5 reduction'!AH84),9))","v":0.99995618500000005},{"$f":"VALUE(FIXED(EXP(AI$4*-1*'PM2.5 reduction'!AI84),9))","v":0.99994419199999995},{"$f":"VALUE(FIXED(EXP(AJ$4*-1*'PM2.5 reduction'!AJ84),9))","v":0.99996756499999995},{"$f":"VALUE(FIXED(EXP(AK$4*-1*'PM2.5 reduction'!AK84),9))","v":0.99998216200000001},{"$f":"VALUE(FIXED(EXP(AL$4*-1*'PM2.5 reduction'!AL84),9))","v":0.99997973399999995},{"$f":"VALUE(FIXED(EXP(AM$4*-1*'PM2.5 reduction'!AM84),9))","v":0.99995341500000001},{"$f":"VALUE(FIXED(EXP(AN$4*-1*'PM2.5 reduction'!AN84),9))","v":1},{"$f":"VALUE(FIXED(EXP(AO$4*-1*'PM2.5 reduction'!AO84),9))","v":1},{"$f":"VALUE(FIXED(EXP(AP$4*-1*'PM2.5 reduction'!AP84),9))","v":0.99995716000000001},{"$f":"VALUE(FIXED(EXP(AQ$4*-1*'PM2.5 reduction'!AQ84),9))","v":0.99995229200000002},{"$f":"VALUE(FIXED(EXP(AR$4*-1*'PM2.5 reduction'!AR84),9))","v":0.99994950999999999},{"$f":"VALUE(FIXED(EXP(AS$4*-1*'PM2.5 reduction'!AS84),9))","v":0.99998966600000005},{"$f":"VALUE(FIXED(EXP(AT$4*-1*'PM2.5 reduction'!AT84),9))","v":1},{"$f":"VALUE(FIXED(EXP(AU$4*-1*'PM2.5 reduction'!AU84),9))","v":1},{"$f":"VALUE(FIXED(EXP(AV$4*-1*'PM2.5 reduction'!AV84),9))","v":0.99997416400000005},{"$f":"VALUE(FIXED(EXP(AW$4*-1*'PM2.5 reduction'!AW84),9))","v":0.99996128900000003},{"$f":"VALUE(FIXED(EXP(AX$4*-1*'PM2.5 reduction'!AX84),9))","v":0.99997203400000001},{"$f":"VALUE(FIXED(EXP(AY$4*-1*'PM2.5 reduction'!AY84),9))","v":0.99995406899999995},{"$f":"VALUE(FIXED(EXP(AZ$4*-1*'PM2.5 reduction'!AZ84),9))","v":0.99994394200000003},{"$f":"VALUE(FIXED(EXP(BA$4*-1*'PM2.5 reduction'!BA84),9))","v":0.99996233199999995},{"$f":"VALUE(FIXED(EXP(BB$4*-1*'PM2.5 reduction'!BB84),9))","v":0.99996624000000001},{"$f":"VALUE(FIXED(EXP(BC$4*-1*'PM2.5 reduction'!BC84),9))","v":1}]
[null,"Male 30-34",{"$f":"VALUE(FIXED(EXP(C$4*-1*'PM2.5 reduction'!C85),9))","v":0.99993417100000004},{"$f":"VALUE(FIXED(EXP(D$4*-1*'PM2.5 reduction'!D85),9))","v":0.99993921500000005},{"$f":"VALUE(FIXED(EXP(E$4*-1*'PM2.5 reduction'!E85),9))","v":0.99997508000000002},{"$f":"VALUE(FIXED(EXP(F$4*-1*'PM2.5 reduction'!F85),9))","v":0.99998482899999996},{"$f":"VALUE(FIXED(EXP(G$4*-1*'PM2.5 reduction'!G85),9))","v":0.99999013800000003},{"$f":"VALUE(FIXED(EXP(H$4*-1*'PM2.5 reduction'!H85),9))","v":0.99997674000000003},{"$f":"VALUE(FIXED(EXP(I$4*-1*'PM2.5 reduction'!I85),9))","v":0.99998938999999998},{"$f":"VALUE(FIXED(EXP(J$4*-1*'PM2.5 reduction'!J85),9))","v":0.99996978299999995},{"$f":"VALUE(FIXED(EXP(K$4*-1*'PM2.5 reduction'!K85),9))","v":0.99996892299999995},{"$f":"VALUE(FIXED(EXP(L$4*-1*'PM2.5 reduction'!L85),9))","v":0.99998838000000001},{"$f":"VALUE(FIXED(EXP(M$4*-1*'PM2.5 reduction'!M85),9))","v":0.99998838000000001},{"$f":"VALUE(FIXED(EXP(N$4*-1*'PM2.5 reduction'!N85),9))","v":0.99993897399999998},{"$f":"VALUE(FIXED(EXP(O$4*-1*'PM2.5 reduction'!O85),9))","v":0.99997374000000006},{"$f":"VALUE(FIXED(EXP(P$4*-1*'PM2.5 reduction'!P85),9))","v":0.99995129500000002},{"$f":"VALUE(FIXED(EXP(Q$4*-1*'PM2.5 reduction'!Q85),9))","v":0.99998058499999998},{"$f":"VALUE(FIXED(EXP(R$4*-1*'PM2.5 reduction'!R85),9))","v":0.99996210399999996},{"$f":"VALUE(FIXED(EXP(S$4*-1*'PM2.5 reduction'!S85),9))","v":0.99995363599999998},{"$f":"VALUE(FIXED(EXP(T$4*-1*'PM2.5 reduction'!T85),9))","v":0.99993467000000003},{"$f":"VALUE(FIXED(EXP(U$4*-1*'PM2.5 reduction'!U85),9))","v":1},{"$f":"VALUE(FIXED(EXP(V$4*-1*'PM2.5 reduction'!V85),9))","v":0.99995398499999999},{"$f":"VALUE(FIXED(EXP(W$4*-1*'PM2.5 reduction'!W85),9))","v":0.99997079499999997},{"$f":"VALUE(FIXED(EXP(X$4*-1*'PM2.5 reduction'!X85),9))","v":0.99997079499999997},{"$f":"VALUE(FIXED(EXP(Y$4*-1*'PM2.5 reduction'!Y85),9))","v":0.999961341},{"$f":"VALUE(FIXED(EXP(Z$4*-1*'PM2.5 reduction'!Z85),9))","v":0.999934086},{"$f":"VALUE(FIXED(EXP(AA$4*-1*'PM2.5 reduction'!AA85),9))","v":0.99994439400000001},{"$f":"VALUE(FIXED(EXP(AB$4*-1*'PM2.5 reduction'!AB85),9))","v":0.99993968600000005},{"$f":"VALUE(FIXED(EXP(AC$4*-1*'PM2.5 reduction'!AC85),9))","v":0.99994030700000003},{"$f":"VALUE(FIXED(EXP(AD$4*-1*'PM2.5 reduction'!AD85),9))","v":0.99998843400000004},{"$f":"VALUE(FIXED(EXP(AE$4*-1*'PM2.5 reduction'!AE85),9))","v":0.99998776199999995},{"$f":"VALUE(FIXED(EXP(AF$4*-1*'PM2.5 reduction'!AF85),9))","v":0.99996656699999997},{"$f":"VALUE(FIXED(EXP(AG$4*-1*'PM2.5 reduction'!AG85),9))","v":0.99998776199999995},{"$f":"VALUE(FIXED(EXP(AH$4*-1*'PM2.5 reduction'!AH85),9))","v":0.999956446},{"$f":"VALUE(FIXED(EXP(AI$4*-1*'PM2.5 reduction'!AI85),9))","v":0.99994435599999998},{"$f":"VALUE(FIXED(EXP(AJ$4*-1*'PM2.5 reduction'!AJ85),9))","v":0.99996860300000001},{"$f":"VALUE(FIXED(EXP(AK$4*-1*'PM2.5 reduction'!AK85),9))","v":0.99998216200000001},{"$f":"VALUE(FIXED(EXP(AL$4*-1*'PM2.5 reduction'!AL85),9))","v":0.999979697},{"$f":"VALUE(FIXED(EXP(AM$4*-1*'PM2.5 reduction'!AM85),9))","v":0.99995316199999995},{"$f":"VALUE(FIXED(EXP(AN$4*-1*'PM2.5 reduction'!AN85),9))","v":1},{"$f":"VALUE(FIXED(EXP(AO$4*-1*'PM2.5 reduction'!AO85),9))","v":1},{"$f":"VALUE(FIXED(EXP(AP$4*-1*'PM2.5 reduction'!AP85),9))","v":0.99995801699999998},{"$f":"VALUE(FIXED(EXP(AQ$4*-1*'PM2.5 reduction'!AQ85),9))","v":0.99995257400000004},{"$f":"VALUE(FIXED(EXP(AR$4*-1*'PM2.5 reduction'!AR85),9))","v":0.99994984899999995},{"$f":"VALUE(FIXED(EXP(AS$4*-1*'PM2.5 reduction'!AS85),9))","v":0.99998938999999998},{"$f":"VALUE(FIXED(EXP(AT$4*-1*'PM2.5 reduction'!AT85),9))","v":1},{"$f":"VALUE(FIXED(EXP(AU$4*-1*'PM2.5 reduction'!AU85),9))","v":1},{"$f":"VALUE(FIXED(EXP(AV$4*-1*'PM2.5 reduction'!AV85),9))","v":0.99997451800000003},{"$f":"VALUE(FIXED(EXP(AW$4*-1*'PM2.5 reduction'!AW85),9))","v":0.99996220000000002},{"$f":"VALUE(FIXED(EXP(AX$4*-1*'PM2.5 reduction'!AX85),9))","v":0.99997059200000005},{"$f":"VALUE(FIXED(EXP(AY$4*-1*'PM2.5 reduction'!AY85),9))","v":0.99995560299999997},{"$f":"VALUE(FIXED(EXP(AZ$4*-1*'PM2.5 reduction'!AZ85),9))","v":0.999944791},{"$f":"VALUE(FIXED(EXP(BA$4*-1*'PM2.5 reduction'!BA85),9))","v":0.99996122899999995},{"$f":"VALUE(FIXED(EXP(BB$4*-1*'PM2.5 reduction'!BB85),9))","v":0.99996666599999995},{"$f":"VALUE(FIXED(EXP(BC$4*-1*'PM2.5 reduction'!BC85),9))","v":1}]
[null,"Male 35-39",{"$f":"VALUE(FIXED(EXP(C$4*-1*'PM2.5 reduction'!C86),9))","v":0.99993356799999999},{"$f":"VALUE(FIXED(EXP(D$4*-1*'PM2.5 reduction'!D86),9))","v":0.99993684999999999},{"$f":"VALUE(FIXED(EXP(E$4*-1*'PM2.5 reduction'!E86),9))","v":0.99997629499999996},{"$f":"VALUE(FIXED(EXP(F$4*-1*'PM2.5 reduction'!F86),9))","v":0.99998404399999996},{"$f":"VALUE(FIXED(EXP(G$4*-1*'PM2.5 reduction'!G86),9))","v":0.99998975599999995},{"$f":"VALUE(FIXED(EXP(H$4*-1*'PM2.5 reduction'!H86),9))","v":0.99997634300000005},{"$f":"VALUE(FIXED(EXP(I$4*-1*'PM2.5 reduction'!I86),9))","v":0.99999011500000001},{"$f":"VALUE(FIXED(EXP(J$4*-1*'PM2.5 reduction'!J86),9))","v":0.99997021799999997},{"$f":"VALUE(FIXED(EXP(K$4*-1*'PM2.5 reduction'!K86),9))","v":0.99996732300000002},{"$f":"VALUE(FIXED(EXP(L$4*-1*'PM2.5 reduction'!L86),9))","v":0.99998820799999999},{"$f":"VALUE(FIXED(EXP(M$4*-1*'PM2.5 reduction'!M86),9))","v":0.99998820799999999},{"$f":"VALUE(FIXED(EXP(N$4*-1*'PM2.5 reduction'!N86),9))","v":0.999942039},{"$f":"VALUE(FIXED(EXP(O$4*-1*'PM2.5 reduction'!O86),9))","v":0.99997255200000001},{"$f":"VALUE(FIXED(EXP(P$4*-1*'PM2.5 reduction'!P86),9))","v":0.99995587399999997},{"$f":"VALUE(FIXED(EXP(Q$4*-1*'PM2.5 reduction'!Q86),9))","v":0.999980604},{"$f":"VALUE(FIXED(EXP(R$4*-1*'PM2.5 reduction'!R86),9))","v":0.99996277099999997},{"$f":"VALUE(FIXED(EXP(S$4*-1*'PM2.5 reduction'!S86),9))","v":0.99995491700000005},{"$f":"VALUE(FIXED(EXP(T$4*-1*'PM2.5 reduction'!T86),9))","v":0.99993649399999995},{"$f":"VALUE(FIXED(EXP(U$4*-1*'PM2.5 reduction'!U86),9))","v":1},{"$f":"VALUE(FIXED(EXP(V$4*-1*'PM2.5 reduction'!V86),9))","v":0.99995567399999996},{"$f":"VALUE(FIXED(EXP(W$4*-1*'PM2.5 reduction'!W86),9))","v":0.99997132499999997},{"$f":"VALUE(FIXED(EXP(X$4*-1*'PM2.5 reduction'!X86),9))","v":0.99997132499999997},{"$f":"VALUE(FIXED(EXP(Y$4*-1*'PM2.5 reduction'!Y86),9))","v":0.99996216199999999},{"$f":"VALUE(FIXED(EXP(Z$4*-1*'PM2.5 reduction'!Z86),9))","v":0.99993536299999997},{"$f":"VALUE(FIXED(EXP(AA$4*-1*'PM2.5 reduction'!AA86),9))","v":0.99994576599999996},{"$f":"VALUE(FIXED(EXP(AB$4*-1*'PM2.5 reduction'!AB86),9))","v":0.99993843699999996},{"$f":"VALUE(FIXED(EXP(AC$4*-1*'PM2.5 reduction'!AC86),9))","v":0.99994149099999996},{"$f":"VALUE(FIXED(EXP(AD$4*-1*'PM2.5 reduction'!AD86),9))","v":0.99998924099999997},{"$f":"VALUE(FIXED(EXP(AE$4*-1*'PM2.5 reduction'!AE86),9))","v":0.999988985},{"$f":"VALUE(FIXED(EXP(AF$4*-1*'PM2.5 reduction'!AF86),9))","v":0.99996632299999999},{"$f":"VALUE(FIXED(EXP(AG$4*-1*'PM2.5 reduction'!AG86),9))","v":0.999988985},{"$f":"VALUE(FIXED(EXP(AH$4*-1*'PM2.5 reduction'!AH86),9))","v":0.99995648599999998},{"$f":"VALUE(FIXED(EXP(AI$4*-1*'PM2.5 reduction'!AI86),9))","v":0.99994598099999998},{"$f":"VALUE(FIXED(EXP(AJ$4*-1*'PM2.5 reduction'!AJ86),9))","v":0.99996886900000004},{"$f":"VALUE(FIXED(EXP(AK$4*-1*'PM2.5 reduction'!AK86),9))","v":0.99998216200000001},{"$f":"VALUE(FIXED(EXP(AL$4*-1*'PM2.5 reduction'!AL86),9))","v":0.99997938200000003},{"$f":"VALUE(FIXED(EXP(AM$4*-1*'PM2.5 reduction'!AM86),9))","v":0.99995350900000002},{"$f":"VALUE(FIXED(EXP(AN$4*-1*'PM2.5 reduction'!AN86),9))","v":1},{"$f":"VALUE(FIXED(EXP(AO$4*-1*'PM2.5 reduction'!AO86),9))","v":1},{"$f":"VALUE(FIXED(EXP(AP$4*-1*'PM2.5 reduction'!AP86),9))","v":0.99996246799999999},{"$f":"VALUE(FIXED(EXP(AQ$4*-1*'PM2.5 reduction'!AQ86),9))","v":0.99995248400000003},{"$f":"VALUE(FIXED(EXP(AR$4*-1*'PM2.5 reduction'!AR86),9))","v":0.99995132900000006},{"$f":"VALUE(FIXED(EXP(AS$4*-1*'PM2.5 reduction'!AS86),9))","v":0.99999011500000001},{"$f":"VALUE(FIXED(EXP(AT$4*-1*'PM2.5 reduction'!AT86),9))","v":1},{"$f":"VALUE(FIXED(EXP(AU$4*-1*'PM2.5 reduction'!AU86),9))","v":1},{"$f":"VALUE(FIXED(EXP(AV$4*-1*'PM2.5 reduction'!AV86),9))","v":0.999974896},{"$f":"VALUE(FIXED(EXP(AW$4*-1*'PM2.5 reduction'!AW86),9))","v":0.99996142499999996},{"$f":"VALUE(FIXED(EXP(AX$4*-1*'PM2.5 reduction'!AX86),9))","v":0.99997362400000001},{"$f":"VALUE(FIXED(EXP(AY$4*-1*'PM2.5 reduction'!AY86),9))","v":0.99995951500000002},{"$f":"VALUE(FIXED(EXP(AZ$4*-1*'PM2.5 reduction'!AZ86),9))","v":0.99994951300000001},{"$f":"VALUE(FIXED(EXP(BA$4*-1*'PM2.5 reduction'!BA86),9))","v":0.99996109499999997},{"$f":"VALUE(FIXED(EXP(BB$4*-1*'PM2.5 reduction'!BB86),9))","v":0.99996691400000004},{"$f":"VALUE(FIXED(EXP(BC$4*-1*'PM2.5 reduction'!BC86),9))","v":1}]
[null,"Male 40-44",{"$f":"VALUE(FIXED(EXP(C$4*-1*'PM2.5 reduction'!C87),9))","v":0.99993606000000002},{"$f":"VALUE(FIXED(EXP(D$4*-1*'PM2.5 reduction'!D87),9))","v":0.99994013599999998},{"$f":"VALUE(FIXED(EXP(E$4*-1*'PM2.5 reduction'!E87),9))","v":0.99997707199999997},{"$f":"VALUE(FIXED(EXP(F$4*-1*'PM2.5 reduction'!F87),9))","v":0.99998467099999999},{"$f":"VALUE(FIXED(EXP(G$4*-1*'PM2.5 reduction'!G87),9))","v":0.99998969999999998},{"$f":"VALUE(FIXED(EXP(H$4*-1*'PM2.5 reduction'!H87),9))","v":0.999976588},{"$f":"VALUE(FIXED(EXP(I$4*-1*'PM2.5 reduction'!I87),9))","v":0.99998967900000002},{"$f":"VALUE(FIXED(EXP(J$4*-1*'PM2.5 reduction'!J87),9))","v":0.99997036699999997},{"$f":"VALUE(FIXED(EXP(K$4*-1*'PM2.5 reduction'!K87),9))","v":0.99996844799999995},{"$f":"VALUE(FIXED(EXP(L$4*-1*'PM2.5 reduction'!L87),9))","v":0.99998880400000001},{"$f":"VALUE(FIXED(EXP(M$4*-1*'PM2.5 reduction'!M87),9))","v":0.99998880400000001},{"$f":"VALUE(FIXED(EXP(N$4*-1*'PM2.5 reduction'!N87),9))","v":0.99994285400000005},{"$f":"VALUE(FIXED(EXP(O$4*-1*'PM2.5 reduction'!O87),9))","v":0.99997379799999997},{"$f":"VALUE(FIXED(EXP(P$4*-1*'PM2.5 reduction'!P87),9))","v":0.99995323599999997},{"$f":"VALUE(FIXED(EXP(Q$4*-1*'PM2.5 reduction'!Q87),9))","v":0.99998061800000004},{"$f":"VALUE(FIXED(EXP(R$4*-1*'PM2.5 reduction'!R87),9))","v":0.999962986},{"$f":"VALUE(FIXED(EXP(S$4*-1*'PM2.5 reduction'!S87),9))","v":0.99995612700000003},{"$f":"VALUE(FIXED(EXP(T$4*-1*'PM2.5 reduction'!T87),9))","v":0.99993717000000004},{"$f":"VALUE(FIXED(EXP(U$4*-1*'PM2.5 reduction'!U87),9))","v":1},{"$f":"VALUE(FIXED(EXP(V$4*-1*'PM2.5 reduction'!V87),9))","v":0.99995516500000003},{"$f":"VALUE(FIXED(EXP(W$4*-1*'PM2.5 reduction'!W87),9))","v":0.99997135199999998},{"$f":"VALUE(FIXED(EXP(X$4*-1*'PM2.5 reduction'!X87),9))","v":0.99997135199999998},{"$f":"VALUE(FIXED(EXP(Y$4*-1*'PM2.5 reduction'!Y87),9))","v":0.99996174500000001},{"$f":"VALUE(FIXED(EXP(Z$4*-1*'PM2.5 reduction'!Z87),9))","v":0.99993529599999997},{"$f":"VALUE(FIXED(EXP(AA$4*-1*'PM2.5 reduction'!AA87),9))","v":0.99994632900000002},{"$f":"VALUE(FIXED(EXP(AB$4*-1*'PM2.5 reduction'!AB87),9))","v":0.99994200600000005},{"$f":"VALUE(FIXED(EXP(AC$4*-1*'PM2.5 reduction'!AC87),9))","v":0.99994168699999997},{"$f":"VALUE(FIXED(EXP(AD$4*-1*'PM2.5 reduction'!AD87),9))","v":0.99998939899999995},{"$f":"VALUE(FIXED(EXP(AE$4*-1*'PM2.5 reduction'!AE87),9))","v":0.99998925299999997},{"$f":"VALUE(FIXED(EXP(AF$4*-1*'PM2.5 reduction'!AF87),9))","v":0.99996731100000003},{"$f":"VALUE(FIXED(EXP(AG$4*-1*'PM2.5 reduction'!AG87),9))","v":0.99998925299999997},{"$f":"VALUE(FIXED(EXP(AH$4*-1*'PM2.5 reduction'!AH87),9))","v":0.99995669700000001},{"$f":"VALUE(FIXED(EXP(AI$4*-1*'PM2.5 reduction'!AI87),9))","v":0.99994740500000001},{"$f":"VALUE(FIXED(EXP(AJ$4*-1*'PM2.5 reduction'!AJ87),9))","v":0.99997120299999998},{"$f":"VALUE(FIXED(EXP(AK$4*-1*'PM2.5 reduction'!AK87),9))","v":0.99998216200000001},{"$f":"VALUE(FIXED(EXP(AL$4*-1*'PM2.5 reduction'!AL87),9))","v":0.999979693},{"$f":"VALUE(FIXED(EXP(AM$4*-1*'PM2.5 reduction'!AM87),9))","v":0.99995344799999997},{"$f":"VALUE(FIXED(EXP(AN$4*-1*'PM2.5 reduction'!AN87),9))","v":1},{"$f":"VALUE(FIXED(EXP(AO$4*-1*'PM2.5 reduction'!AO87),9))","v":1},{"$f":"VALUE(FIXED(EXP(AP$4*-1*'PM2.5 reduction'!AP87),9))","v":0.99996582000000001},{"$f":"VALUE(FIXED(EXP(AQ$4*-1*'PM2.5 reduction'!AQ87),9))","v":0.999953176},{"$f":"VALUE(FIXED(EXP(AR$4*-1*'PM2.5 reduction'!AR87),9))","v":0.99995265099999997},{"$f":"VALUE(FIXED(EXP(AS$4*-1*'PM2.5 reduction'!AS87),9))","v":0.99998967900000002},{"$f":"VALUE(FIXED(EXP(AT$4*-1*'PM2.5 reduction'!AT87),9))","v":1},{"$f":"VALUE(FIXED(EXP(AU$4*-1*'PM2.5 reduction'!AU87),9))","v":1},{"$f":"VALUE(FIXED(EXP(AV$4*-1*'PM2.5 reduction'!AV87),9))","v":0.99997349199999996},{"$f":"VALUE(FIXED(EXP(AW$4*-1*'PM2.5 reduction'!AW87),9))","v":0.99996190699999998},{"$f":"VALUE(FIXED(EXP(AX$4*-1*'PM2.5 reduction'!AX87),9))","v":0.99997258499999997},{"$f":"VALUE(FIXED(EXP(AY$4*-1*'PM2.5 reduction'!AY87),9))","v":0.999961235},{"$f":"VALUE(FIXED(EXP(AZ$4*-1*'PM2.5 reduction'!AZ87),9))","v":0.99995132799999997},{"$f":"VALUE(FIXED(EXP(BA$4*-1*'PM2.5 reduction'!BA87),9))","v":0.99996146100000005},{"$f":"VALUE(FIXED(EXP(BB$4*-1*'PM2.5 reduction'!BB87),9))","v":0.99996664800000001},{"$f":"VALUE(FIXED(EXP(BC$4*-1*'PM2.5 reduction'!BC87),9))","v":1}]
[null,"Male 45-49",{"$f":"VALUE(FIXED(EXP(C$4*-1*'PM2.5 reduction'!C88),9))","v":0.99993442700000001},{"$f":"VALUE(FIXED(EXP(D$4*-1*'PM2.5 reduction'!D88),9))","v":0.99993826200000002},{"$f":"VALUE(FIXED(EXP(E$4*-1*'PM2.5 reduction'!E88),9))","v":0.99997567899999995},{"$f":"VALUE(FIXED(EXP(F$4*-1*'PM2.5 reduction'!F88),9))","v":0.99998519399999997},{"$f":"VALUE(FIXED(EXP(G$4*-1*'PM2.5 reduction'!G88),9))","v":0.99998988200000005},{"$f":"VALUE(FIXED(EXP(H$4*-1*'PM2.5 reduction'!H88),9))","v":0.99997789299999995},{"$f":"VALUE(FIXED(EXP(I$4*-1*'PM2.5 reduction'!I88),9))","v":0.99998969400000004},{"$f":"VALUE(FIXED(EXP(J$4*-1*'PM2.5 reduction'!J88),9))","v":0.99997043200000002},{"$f":"VALUE(FIXED(EXP(K$4*-1*'PM2.5 reduction'!K88),9))","v":0.99996899100000003},{"$f":"VALUE(FIXED(EXP(L$4*-1*'PM2.5 reduction'!L88),9))","v":0.99998942400000002},{"$f":"VALUE(FIXED(EXP(M$4*-1*'PM2.5 reduction'!M88),9))","v":0.99998942400000002},{"$f":"VALUE(FIXED(EXP(N$4*-1*'PM2.5 reduction'!N88),9))","v":0.99994105099999997},{"$f":"VALUE(FIXED(EXP(O$4*-1*'PM2.5 reduction'!O88),9))","v":0.99997561700000004},{"$f":"VALUE(FIXED(EXP(P$4*-1*'PM2.5 reduction'!P88),9))","v":0.999951425},{"$f":"VALUE(FIXED(EXP(Q$4*-1*'PM2.5 reduction'!Q88),9))","v":0.99998089099999998},{"$f":"VALUE(FIXED(EXP(R$4*-1*'PM2.5 reduction'!R88),9))","v":0.99996158999999996},{"$f":"VALUE(FIXED(EXP(S$4*-1*'PM2.5 reduction'!S88),9))","v":0.99995819699999999},{"$f":"VALUE(FIXED(EXP(T$4*-1*'PM2.5 reduction'!T88),9))","v":0.999936979},{"$f":"VALUE(FIXED(EXP(U$4*-1*'PM2.5 reduction'!U88),9))","v":1},{"$f":"VALUE(FIXED(EXP(V$4*-1*'PM2.5 reduction'!V88),9))","v":0.99995539899999997},{"$f":"VALUE(FIXED(EXP(W$4*-1*'PM2.5 reduction'!W88),9))","v":0.99997258899999997},{"$f":"VALUE(FIXED(EXP(X$4*-1*'PM2.5 reduction'!X88),9))","v":0.99997258899999997},{"$f":"VALUE(FIXED(EXP(Y$4*-1*'PM2.5 reduction'!Y88),9))","v":0.99996226499999996},{"$f":"VALUE(FIXED(EXP(Z$4*-1*'PM2.5 reduction'!Z88),9))","v":0.99993706599999999},{"$f":"VALUE(FIXED(EXP(AA$4*-1*'PM2.5 reduction'!AA88),9))","v":0.99994788099999998},{"$f":"VALUE(FIXED(EXP(AB$4*-1*'PM2.5 reduction'!AB88),9))","v":0.99994084400000005},{"$f":"VALUE(FIXED(EXP(AC$4*-1*'PM2.5 reduction'!AC88),9))","v":0.999943833},{"$f":"VALUE(FIXED(EXP(AD$4*-1*'PM2.5 reduction'!AD88),9))","v":0.99998929000000003},{"$f":"VALUE(FIXED(EXP(AE$4*-1*'PM2.5 reduction'!AE88),9))","v":0.99998894400000005},{"$f":"VALUE(FIXED(EXP(AF$4*-1*'PM2.5 reduction'!AF88),9))","v":0.99996702199999998},{"$f":"VALUE(FIXED(EXP(AG$4*-1*'PM2.5 reduction'!AG88),9))","v":0.99998894400000005},{"$f":"VALUE(FIXED(EXP(AH$4*-1*'PM2.5 reduction'!AH88),9))","v":0.99995679199999998},{"$f":"VALUE(FIXED(EXP(AI$4*-1*'PM2.5 reduction'!AI88),9))","v":0.999948171},{"$f":"VALUE(FIXED(EXP(AJ$4*-1*'PM2.5 reduction'!AJ88),9))","v":0.99996943299999996},{"$f":"VALUE(FIXED(EXP(AK$4*-1*'PM2.5 reduction'!AK88),9))","v":0.99998216200000001},{"$f":"VALUE(FIXED(EXP(AL$4*-1*'PM2.5 reduction'!AL88),9))","v":0.99998033399999997},{"$f":"VALUE(FIXED(EXP(AM$4*-1*'PM2.5 reduction'!AM88),9))","v":0.99995341199999999},{"$f":"VALUE(FIXED(EXP(AN$4*-1*'PM2.5 reduction'!AN88),9))","v":1},{"$f":"VALUE(FIXED(EXP(AO$4*-1*'PM2.5 reduction'!AO88),9))","v":1},{"$f":"VALUE(FIXED(EXP(AP$4*-1*'PM2.5 reduction'!AP88),9))","v":0.99996458200000005},{"$f":"VALUE(FIXED(EXP(AQ$4*-1*'PM2.5 reduction'!AQ88),9))","v":0.99995441699999998},{"$f":"VALUE(FIXED(EXP(AR$4*-1*'PM2.5 reduction'!AR88),9))","v":0.99995384499999995},{"$f":"VALUE(FIXED(EXP(AS$4*-1*'PM2.5 reduction'!AS88),9))","v":0.99998969400000004},{"$f":"VALUE(FIXED(EXP(AT$4*-1*'PM2.5 reduction'!AT88),9))","v":1},{"$f":"VALUE(FIXED(EXP(AU$4*-1*'PM2.5 reduction'!AU88),9))","v":1},{"$f":"VALUE(FIXED(EXP(AV$4*-1*'PM2.5 reduction'!AV88),9))","v":0.99997532700000002},{"$f":"VALUE(FIXED(EXP(AW$4*-1*'PM2.5 reduction'!AW88),9))","v":0.99996247800000004},{"$f":"VALUE(FIXED(EXP(AX$4*-1*'PM2.5 reduction'!AX88),9))","v":0.99997207300000002},{"$f":"VALUE(FIXED(EXP(AY$4*-1*'PM2.5 reduction'!AY88),9))","v":0.99996059500000001},{"$f":"VALUE(FIXED(EXP(AZ$4*-1*'PM2.5 reduction'!AZ88),9))","v":0.999948744},{"$f":"VALUE(FIXED(EXP(BA$4*-1*'PM2.5 reduction'!BA88),9))","v":0.99996267800000005},{"$f":"VALUE(FIXED(EXP(BB$4*-1*'PM2.5 reduction'!BB88),9))","v":0.99996698500000003},{"$f":"VALUE(FIXED(EXP(BC$4*-1*'PM2.5 reduction'!BC88),9))","v":1}]
[null,"Male 50-54",{"$f":"VALUE(FIXED(EXP(C$4*-1*'PM2.5 reduction'!C89),9))","v":0.99993620500000002},{"$f":"VALUE(FIXED(EXP(D$4*-1*'PM2.5 reduction'!D89),9))","v":0.99993972499999995},{"$f":"VALUE(FIXED(EXP(E$4*-1*'PM2.5 reduction'!E89),9))","v":0.99997577000000004},{"$f":"VALUE(FIXED(EXP(F$4*-1*'PM2.5 reduction'!F89),9))","v":0.999986021},{"$f":"VALUE(FIXED(EXP(G$4*-1*'PM2.5 reduction'!G89),9))","v":0.99999002199999998},{"$f":"VALUE(FIXED(EXP(H$4*-1*'PM2.5 reduction'!H89),9))","v":0.99997764700000003},{"$f":"VALUE(FIXED(EXP(I$4*-1*'PM2.5 reduction'!I89),9))","v":0.99998961399999997},{"$f":"VALUE(FIXED(EXP(J$4*-1*'PM2.5 reduction'!J89),9))","v":0.99997033700000004},{"$f":"VALUE(FIXED(EXP(K$4*-1*'PM2.5 reduction'!K89),9))","v":0.99996819100000001},{"$f":"VALUE(FIXED(EXP(L$4*-1*'PM2.5 reduction'!L89),9))","v":0.99998927900000001},{"$f":"VALUE(FIXED(EXP(M$4*-1*'PM2.5 reduction'!M89),9))","v":0.99998927900000001},{"$f":"VALUE(FIXED(EXP(N$4*-1*'PM2.5 reduction'!N89),9))","v":0.99994270600000001},{"$f":"VALUE(FIXED(EXP(O$4*-1*'PM2.5 reduction'!O89),9))","v":0.99997602600000002},{"$f":"VALUE(FIXED(EXP(P$4*-1*'PM2.5 reduction'!P89),9))","v":0.999953117},{"$f":"VALUE(FIXED(EXP(Q$4*-1*'PM2.5 reduction'!Q89),9))","v":0.99998121399999995},{"$f":"VALUE(FIXED(EXP(R$4*-1*'PM2.5 reduction'!R89),9))","v":0.99996254600000001},{"$f":"VALUE(FIXED(EXP(S$4*-1*'PM2.5 reduction'!S89),9))","v":0.99995778800000001},{"$f":"VALUE(FIXED(EXP(T$4*-1*'PM2.5 reduction'!T89),9))","v":0.99993698499999994},{"$f":"VALUE(FIXED(EXP(U$4*-1*'PM2.5 reduction'!U89),9))","v":1},{"$f":"VALUE(FIXED(EXP(V$4*-1*'PM2.5 reduction'!V89),9))","v":0.99995540599999999},{"$f":"VALUE(FIXED(EXP(W$4*-1*'PM2.5 reduction'!W89),9))","v":0.99997270599999999},{"$f":"VALUE(FIXED(EXP(X$4*-1*'PM2.5 reduction'!X89),9))","v":0.99997270599999999},{"$f":"VALUE(FIXED(EXP(Y$4*-1*'PM2.5 reduction'!Y89),9))","v":0.99996257200000005},{"$f":"VALUE(FIXED(EXP(Z$4*-1*'PM2.5 reduction'!Z89),9))","v":0.99993704900000002},{"$f":"VALUE(FIXED(EXP(AA$4*-1*'PM2.5 reduction'!AA89),9))","v":0.99994793999999998},{"$f":"VALUE(FIXED(EXP(AB$4*-1*'PM2.5 reduction'!AB89),9))","v":0.99994153200000002},{"$f":"VALUE(FIXED(EXP(AC$4*-1*'PM2.5 reduction'!AC89),9))","v":0.999944359},{"$f":"VALUE(FIXED(EXP(AD$4*-1*'PM2.5 reduction'!AD89),9))","v":0.99998945699999997},{"$f":"VALUE(FIXED(EXP(AE$4*-1*'PM2.5 reduction'!AE89),9))","v":0.99998904799999999},{"$f":"VALUE(FIXED(EXP(AF$4*-1*'PM2.5 reduction'!AF89),9))","v":0.99996665799999995},{"$f":"VALUE(FIXED(EXP(AG$4*-1*'PM2.5 reduction'!AG89),9))","v":0.99998904799999999},{"$f":"VALUE(FIXED(EXP(AH$4*-1*'PM2.5 reduction'!AH89),9))","v":0.99995635699999996},{"$f":"VALUE(FIXED(EXP(AI$4*-1*'PM2.5 reduction'!AI89),9))","v":0.99994817700000005},{"$f":"VALUE(FIXED(EXP(AJ$4*-1*'PM2.5 reduction'!AJ89),9))","v":0.99997085399999996},{"$f":"VALUE(FIXED(EXP(AK$4*-1*'PM2.5 reduction'!AK89),9))","v":0.99998216200000001},{"$f":"VALUE(FIXED(EXP(AL$4*-1*'PM2.5 reduction'!AL89),9))","v":0.99997970199999997},{"$f":"VALUE(FIXED(EXP(AM$4*-1*'PM2.5 reduction'!AM89),9))","v":0.99995313399999997},{"$f":"VALUE(FIXED(EXP(AN$4*-1*'PM2.5 reduction'!AN89),9))","v":1},{"$f":"VALUE(FIXED(EXP(AO$4*-1*'PM2.5 reduction'!AO89),9))","v":1},{"$f":"VALUE(FIXED(EXP(AP$4*-1*'PM2.5 reduction'!AP89),9))","v":0.99996773400000005},{"$f":"VALUE(FIXED(EXP(AQ$4*-1*'PM2.5 reduction'!AQ89),9))","v":0.99995468600000004},{"$f":"VALUE(FIXED(EXP(AR$4*-1*'PM2.5 reduction'!AR89),9))","v":0.99995412900000002},{"$f":"VALUE(FIXED(EXP(AS$4*-1*'PM2.5 reduction'!AS89),9))","v":0.99998961399999997},{"$f":"VALUE(FIXED(EXP(AT$4*-1*'PM2.5 reduction'!AT89),9))","v":1},{"$f":"VALUE(FIXED(EXP(AU$4*-1*'PM2.5 reduction'!AU89),9))","v":1},{"$f":"VALUE(FIXED(EXP(AV$4*-1*'PM2.5 reduction'!AV89),9))","v":0.99997482100000001},{"$f":"VALUE(FIXED(EXP(AW$4*-1*'PM2.5 reduction'!AW89),9))","v":0.99996205599999999},{"$f":"VALUE(FIXED(EXP(AX$4*-1*'PM2.5 reduction'!AX89),9))","v":0.99997266399999996},{"$f":"VALUE(FIXED(EXP(AY$4*-1*'PM2.5 reduction'!AY89),9))","v":0.99996122700000001},{"$f":"VALUE(FIXED(EXP(AZ$4*-1*'PM2.5 reduction'!AZ89),9))","v":0.99995077700000001},{"$f":"VALUE(FIXED(EXP(BA$4*-1*'PM2.5 reduction'!BA89),9))","v":0.99996322299999996},{"$f":"VALUE(FIXED(EXP(BB$4*-1*'PM2.5 reduction'!BB89),9))","v":0.99996713999999998},{"$f":"VALUE(FIXED(EXP(BC$4*-1*'PM2.5 reduction'!BC89),9))","v":1}]
[null,"Male 55-59",{"$f":"VALUE(FIXED(EXP(C$4*-1*'PM2.5 reduction'!C90),9))","v":0.99993626499999999},{"$f":"VALUE(FIXED(EXP(D$4*-1*'PM2.5 reduction'!D90),9))","v":0.999941046},{"$f":"VALUE(FIXED(EXP(E$4*-1*'PM2.5 reduction'!E90),9))","v":0.99997594199999995},{"$f":"VALUE(FIXED(EXP(F$4*-1*'PM2.5 reduction'!F90),9))","v":0.99998623200000003},{"$f":"VALUE(FIXED(EXP(G$4*-1*'PM2.5 reduction'!G90),9))","v":0.999989919},{"$f":"VALUE(FIXED(EXP(H$4*-1*'PM2.5 reduction'!H90),9))","v":0.99997727000000003},{"$f":"VALUE(FIXED(EXP(I$4*-1*'PM2.5 reduction'!I90),9))","v":0.99998942999999996},{"$f":"VALUE(FIXED(EXP(J$4*-1*'PM2.5 reduction'!J90),9))","v":0.99997023799999996},{"$f":"VALUE(FIXED(EXP(K$4*-1*'PM2.5 reduction'!K90),9))","v":0.99996809399999997},{"$f":"VALUE(FIXED(EXP(L$4*-1*'PM2.5 reduction'!L90),9))","v":0.99998932299999999},{"$f":"VALUE(FIXED(EXP(M$4*-1*'PM2.5 reduction'!M90),9))","v":0.99998932299999999},{"$f":"VALUE(FIXED(EXP(N$4*-1*'PM2.5 reduction'!N90),9))","v":0.99994295300000002},{"$f":"VALUE(FIXED(EXP(O$4*-1*'PM2.5 reduction'!O90),9))","v":0.99997513299999996},{"$f":"VALUE(FIXED(EXP(P$4*-1*'PM2.5 reduction'!P90),9))","v":0.99995416199999998},{"$f":"VALUE(FIXED(EXP(Q$4*-1*'PM2.5 reduction'!Q90),9))","v":0.99998103100000002},{"$f":"VALUE(FIXED(EXP(R$4*-1*'PM2.5 reduction'!R90),9))","v":0.99996345499999995},{"$f":"VALUE(FIXED(EXP(S$4*-1*'PM2.5 reduction'!S90),9))","v":0.99995963099999996},{"$f":"VALUE(FIXED(EXP(T$4*-1*'PM2.5 reduction'!T90),9))","v":0.99993838499999999},{"$f":"VALUE(FIXED(EXP(U$4*-1*'PM2.5 reduction'!U90),9))","v":1},{"$f":"VALUE(FIXED(EXP(V$4*-1*'PM2.5 reduction'!V90),9))","v":0.99995592899999997},{"$f":"VALUE(FIXED(EXP(W$4*-1*'PM2.5 reduction'!W90),9))","v":0.99997233100000005},{"$f":"VALUE(FIXED(EXP(X$4*-1*'PM2.5 reduction'!X90),9))","v":0.99997233100000005},{"$f":"VALUE(FIXED(EXP(Y$4*-1*'PM2.5 reduction'!Y90),9))","v":0.99996320000000005},{"$f":"VALUE(FIXED(EXP(Z$4*-1*'PM2.5 reduction'!Z90),9))","v":0.99993785999999996},{"$f":"VALUE(FIXED(EXP(AA$4*-1*'PM2.5 reduction'!AA90),9))","v":0.99994867799999998},{"$f":"VALUE(FIXED(EXP(AB$4*-1*'PM2.5 reduction'!AB90),9))","v":0.99994295},{"$f":"VALUE(FIXED(EXP(AC$4*-1*'PM2.5 reduction'!AC90),9))","v":0.99994492499999998},{"$f":"VALUE(FIXED(EXP(AD$4*-1*'PM2.5 reduction'!AD90),9))","v":0.99998979099999996},{"$f":"VALUE(FIXED(EXP(AE$4*-1*'PM2.5 reduction'!AE90),9))","v":0.99998972399999997},{"$f":"VALUE(FIXED(EXP(AF$4*-1*'PM2.5 reduction'!AF90),9))","v":0.99996587699999995},{"$f":"VALUE(FIXED(EXP(AG$4*-1*'PM2.5 reduction'!AG90),9))","v":0.99998972399999997},{"$f":"VALUE(FIXED(EXP(AH$4*-1*'PM2.5 reduction'!AH90),9))","v":0.99995700200000004},{"$f":"VALUE(FIXED(EXP(AI$4*-1*'PM2.5 reduction'!AI90),9))","v":0.99994966799999996},{"$f":"VALUE(FIXED(EXP(AJ$4*-1*'PM2.5 reduction'!AJ90),9))","v":0.99997063399999997},{"$f":"VALUE(FIXED(EXP(AK$4*-1*'PM2.5 reduction'!AK90),9))","v":0.99998216200000001},{"$f":"VALUE(FIXED(EXP(AL$4*-1*'PM2.5 reduction'!AL90),9))","v":0.99997960900000005},{"$f":"VALUE(FIXED(EXP(AM$4*-1*'PM2.5 reduction'!AM90),9))","v":0.99995359699999997},{"$f":"VALUE(FIXED(EXP(AN$4*-1*'PM2.5 reduction'!AN90),9))","v":1},{"$f":"VALUE(FIXED(EXP(AO$4*-1*'PM2.5 reduction'!AO90),9))","v":1},{"$f":"VALUE(FIXED(EXP(AP$4*-1*'PM2.5 reduction'!AP90),9))","v":0.99996663500000005},{"$f":"VALUE(FIXED(EXP(AQ$4*-1*'PM2.5 reduction'!AQ90),9))","v":0.99995542299999995},{"$f":"VALUE(FIXED(EXP(AR$4*-1*'PM2.5 reduction'!AR90),9))","v":0.99995500000000004},{"$f":"VALUE(FIXED(EXP(AS$4*-1*'PM2.5 reduction'!AS90),9))","v":0.99998942999999996},{"$f":"VALUE(FIXED(EXP(AT$4*-1*'PM2.5 reduction'!AT90),9))","v":1},{"$f":"VALUE(FIXED(EXP(AU$4*-1*'PM2.5 reduction'!AU90),9))","v":1},{"$f":"VALUE(FIXED(EXP(AV$4*-1*'PM2.5 reduction'!AV90),9))","v":0.99997452499999995},{"$f":"VALUE(FIXED(EXP(AW$4*-1*'PM2.5 reduction'!AW90),9))","v":0.99996247599999999},{"$f":"VALUE(FIXED(EXP(AX$4*-1*'PM2.5 reduction'!AX90),9))","v":0.99997244900000004},{"$f":"VALUE(FIXED(EXP(AY$4*-1*'PM2.5 reduction'!AY90),9))","v":0.99996098099999997},{"$f":"VALUE(FIXED(EXP(AZ$4*-1*'PM2.5 reduction'!AZ90),9))","v":0.99994987999999996},{"$f":"VALUE(FIXED(EXP(BA$4*-1*'PM2.5 reduction'!BA90),9))","v":0.99996190399999996},{"$f":"VALUE(FIXED(EXP(BB$4*-1*'PM2.5 reduction'!BB90),9))","v":0.99996734399999998},{"$f":"VALUE(FIXED(EXP(BC$4*-1*'PM2.5 reduction'!BC90),9))","v":1}]
[null,"Male 60-64",{"$f":"VALUE(FIXED(EXP(C$4*-1*'PM2.5 reduction'!C91),9))","v":0.99993938900000001},{"$f":"VALUE(FIXED(EXP(D$4*-1*'PM2.5 reduction'!D91),9))","v":0.99994231499999997},{"$f":"VALUE(FIXED(EXP(E$4*-1*'PM2.5 reduction'!E91),9))","v":0.99997631899999995},{"$f":"VALUE(FIXED(EXP(F$4*-1*'PM2.5 reduction'!F91),9))","v":0.99998587999999999},{"$f":"VALUE(FIXED(EXP(G$4*-1*'PM2.5 reduction'!G91),9))","v":0.99999017099999998},{"$f":"VALUE(FIXED(EXP(H$4*-1*'PM2.5 reduction'!H91),9))","v":0.99997758199999998},{"$f":"VALUE(FIXED(EXP(I$4*-1*'PM2.5 reduction'!I91),9))","v":0.99998978599999999},{"$f":"VALUE(FIXED(EXP(J$4*-1*'PM2.5 reduction'!J91),9))","v":0.99997099599999995},{"$f":"VALUE(FIXED(EXP(K$4*-1*'PM2.5 reduction'!K91),9))","v":0.99996926799999997},{"$f":"VALUE(FIXED(EXP(L$4*-1*'PM2.5 reduction'!L91),9))","v":0.99998969800000004},{"$f":"VALUE(FIXED(EXP(M$4*-1*'PM2.5 reduction'!M91),9))","v":0.99998969800000004},{"$f":"VALUE(FIXED(EXP(N$4*-1*'PM2.5 reduction'!N91),9))","v":0.99994226399999997},{"$f":"VALUE(FIXED(EXP(O$4*-1*'PM2.5 reduction'!O91),9))","v":0.999975422},{"$f":"VALUE(FIXED(EXP(P$4*-1*'PM2.5 reduction'!P91),9))","v":0.99995344200000003},{"$f":"VALUE(FIXED(EXP(Q$4*-1*'PM2.5 reduction'!Q91),9))","v":0.99998105599999998},{"$f":"VALUE(FIXED(EXP(R$4*-1*'PM2.5 reduction'!R91),9))","v":0.99996401899999998},{"$f":"VALUE(FIXED(EXP(S$4*-1*'PM2.5 reduction'!S91),9))","v":0.99995852399999996},{"$f":"VALUE(FIXED(EXP(T$4*-1*'PM2.5 reduction'!T91),9))","v":0.99993732000000002},{"$f":"VALUE(FIXED(EXP(U$4*-1*'PM2.5 reduction'!U91),9))","v":1},{"$f":"VALUE(FIXED(EXP(V$4*-1*'PM2.5 reduction'!V91),9))","v":0.99995588300000005},{"$f":"VALUE(FIXED(EXP(W$4*-1*'PM2.5 reduction'!W91),9))","v":0.99997218600000004},{"$f":"VALUE(FIXED(EXP(X$4*-1*'PM2.5 reduction'!X91),9))","v":0.99997218600000004},{"$f":"VALUE(FIXED(EXP(Y$4*-1*'PM2.5 reduction'!Y91),9))","v":0.99996322000000004},{"$f":"VALUE(FIXED(EXP(Z$4*-1*'PM2.5 reduction'!Z91),9))","v":0.99993751500000005},{"$f":"VALUE(FIXED(EXP(AA$4*-1*'PM2.5 reduction'!AA91),9))","v":0.99994831200000001},{"$f":"VALUE(FIXED(EXP(AB$4*-1*'PM2.5 reduction'!AB91),9))","v":0.999943951},{"$f":"VALUE(FIXED(EXP(AC$4*-1*'PM2.5 reduction'!AC91),9))","v":0.99994448199999997},{"$f":"VALUE(FIXED(EXP(AD$4*-1*'PM2.5 reduction'!AD91),9))","v":0.99998990600000004},{"$f":"VALUE(FIXED(EXP(AE$4*-1*'PM2.5 reduction'!AE91),9))","v":0.99998972600000002},{"$f":"VALUE(FIXED(EXP(AF$4*-1*'PM2.5 reduction'!AF91),9))","v":0.99996617099999996},{"$f":"VALUE(FIXED(EXP(AG$4*-1*'PM2.5 reduction'!AG91),9))","v":0.99998972600000002},{"$f":"VALUE(FIXED(EXP(AH$4*-1*'PM2.5 reduction'!AH91),9))","v":0.99995664900000003},{"$f":"VALUE(FIXED(EXP(AI$4*-1*'PM2.5 reduction'!AI91),9))","v":0.99994841199999995},{"$f":"VALUE(FIXED(EXP(AJ$4*-1*'PM2.5 reduction'!AJ91),9))","v":0.99996847300000002},{"$f":"VALUE(FIXED(EXP(AK$4*-1*'PM2.5 reduction'!AK91),9))","v":0.99998216200000001},{"$f":"VALUE(FIXED(EXP(AL$4*-1*'PM2.5 reduction'!AL91),9))","v":0.99998013799999996},{"$f":"VALUE(FIXED(EXP(AM$4*-1*'PM2.5 reduction'!AM91),9))","v":0.99995344200000003},{"$f":"VALUE(FIXED(EXP(AN$4*-1*'PM2.5 reduction'!AN91),9))","v":1},{"$f":"VALUE(FIXED(EXP(AO$4*-1*'PM2.5 reduction'!AO91),9))","v":1},{"$f":"VALUE(FIXED(EXP(AP$4*-1*'PM2.5 reduction'!AP91),9))","v":0.99996615499999997},{"$f":"VALUE(FIXED(EXP(AQ$4*-1*'PM2.5 reduction'!AQ91),9))","v":0.99995373499999995},{"$f":"VALUE(FIXED(EXP(AR$4*-1*'PM2.5 reduction'!AR91),9))","v":0.99995470900000005},{"$f":"VALUE(FIXED(EXP(AS$4*-1*'PM2.5 reduction'!AS91),9))","v":0.99998978599999999},{"$f":"VALUE(FIXED(EXP(AT$4*-1*'PM2.5 reduction'!AT91),9))","v":1},{"$f":"VALUE(FIXED(EXP(AU$4*-1*'PM2.5 reduction'!AU91),9))","v":1},{"$f":"VALUE(FIXED(EXP(AV$4*-1*'PM2.5 reduction'!AV91),9))","v":0.99997432399999997},{"$f":"VALUE(FIXED(EXP(AW$4*-1*'PM2.5 reduction'!AW91),9))","v":0.99996154999999998},{"$f":"VALUE(FIXED(EXP(AX$4*-1*'PM2.5 reduction'!AX91),9))","v":0.99997285899999999},{"$f":"VALUE(FIXED(EXP(AY$4*-1*'PM2.5 reduction'!AY91),9))","v":0.99996062900000005},{"$f":"VALUE(FIXED(EXP(AZ$4*-1*'PM2.5 reduction'!AZ91),9))","v":0.99994917900000002},{"$f":"VALUE(FIXED(EXP(BA$4*-1*'PM2.5 reduction'!BA91),9))","v":0.99996332499999996},{"$f":"VALUE(FIXED(EXP(BB$4*-1*'PM2.5 reduction'!BB91),9))","v":0.99996790000000002},{"$f":"VALUE(FIXED(EXP(BC$4*-1*'PM2.5 reduction'!BC91),9))","v":1}]
[null,"Male 65-69",{"$f":"VALUE(FIXED(EXP(C$4*-1*'PM2.5 reduction'!C92),9))","v":0.99993855799999998},{"$f":"VALUE(FIXED(EXP(D$4*-1*'PM2.5 reduction'!D92),9))","v":0.99994249499999999},{"$f":"VALUE(FIXED(EXP(E$4*-1*'PM2.5 reduction'!E92),9))","v":0.99997509299999998},{"$f":"VALUE(FIXED(EXP(F$4*-1*'PM2.5 reduction'!F92),9))","v":0.99998546499999996},{"$f":"VALUE(FIXED(EXP(G$4*-1*'PM2.5 reduction'!G92),9))","v":0.99998979200000004},{"$f":"VALUE(FIXED(EXP(H$4*-1*'PM2.5 reduction'!H92),9))","v":0.99997787000000005},{"$f":"VALUE(FIXED(EXP(I$4*-1*'PM2.5 reduction'!I92),9))","v":0.99998975700000003},{"$f":"VALUE(FIXED(EXP(J$4*-1*'PM2.5 reduction'!J92),9))","v":0.99997065900000004},{"$f":"VALUE(FIXED(EXP(K$4*-1*'PM2.5 reduction'!K92),9))","v":0.99996813799999995},{"$f":"VALUE(FIXED(EXP(L$4*-1*'PM2.5 reduction'!L92),9))","v":0.99998991000000004},{"$f":"VALUE(FIXED(EXP(M$4*-1*'PM2.5 reduction'!M92),9))","v":0.99998991000000004},{"$f":"VALUE(FIXED(EXP(N$4*-1*'PM2.5 reduction'!N92),9))","v":0.999943727},{"$f":"VALUE(FIXED(EXP(O$4*-1*'PM2.5 reduction'!O92),9))","v":0.99997638300000002},{"$f":"VALUE(FIXED(EXP(P$4*-1*'PM2.5 reduction'!P92),9))","v":0.999955606},{"$f":"VALUE(FIXED(EXP(Q$4*-1*'PM2.5 reduction'!Q92),9))","v":0.99998102099999997},{"$f":"VALUE(FIXED(EXP(R$4*-1*'PM2.5 reduction'!R92),9))","v":0.99996107400000001},{"$f":"VALUE(FIXED(EXP(S$4*-1*'PM2.5 reduction'!S92),9))","v":0.99996083300000005},{"$f":"VALUE(FIXED(EXP(T$4*-1*'PM2.5 reduction'!T92),9))","v":0.99993832800000004},{"$f":"VALUE(FIXED(EXP(U$4*-1*'PM2.5 reduction'!U92),9))","v":1},{"$f":"VALUE(FIXED(EXP(V$4*-1*'PM2.5 reduction'!V92),9))","v":0.99995616399999998},{"$f":"VALUE(FIXED(EXP(W$4*-1*'PM2.5 reduction'!W92),9))","v":0.99997275200000002},{"$f":"VALUE(FIXED(EXP(X$4*-1*'PM2.5 reduction'!X92),9))","v":0.99997275200000002},{"$f":"VALUE(FIXED(EXP(Y$4*-1*'PM2.5 reduction'!Y92),9))","v":0.99996296399999995},{"$f":"VALUE(FIXED(EXP(Z$4*-1*'PM2.5 reduction'!Z92),9))","v":0.99993760799999998},{"$f":"VALUE(FIXED(EXP(AA$4*-1*'PM2.5 reduction'!AA92),9))","v":0.99994888699999995},{"$f":"VALUE(FIXED(EXP(AB$4*-1*'PM2.5 reduction'!AB92),9))","v":0.99994429799999995},{"$f":"VALUE(FIXED(EXP(AC$4*-1*'PM2.5 reduction'!AC92),9))","v":0.99994488599999998},{"$f":"VALUE(FIXED(EXP(AD$4*-1*'PM2.5 reduction'!AD92),9))","v":0.99999021099999996},{"$f":"VALUE(FIXED(EXP(AE$4*-1*'PM2.5 reduction'!AE92),9))","v":0.99999043399999998},{"$f":"VALUE(FIXED(EXP(AF$4*-1*'PM2.5 reduction'!AF92),9))","v":0.99996580700000004},{"$f":"VALUE(FIXED(EXP(AG$4*-1*'PM2.5 reduction'!AG92),9))","v":0.99999043399999998},{"$f":"VALUE(FIXED(EXP(AH$4*-1*'PM2.5 reduction'!AH92),9))","v":0.99995688800000004},{"$f":"VALUE(FIXED(EXP(AI$4*-1*'PM2.5 reduction'!AI92),9))","v":0.99995062599999995},{"$f":"VALUE(FIXED(EXP(AJ$4*-1*'PM2.5 reduction'!AJ92),9))","v":0.99996984499999997},{"$f":"VALUE(FIXED(EXP(AK$4*-1*'PM2.5 reduction'!AK92),9))","v":0.99998216200000001},{"$f":"VALUE(FIXED(EXP(AL$4*-1*'PM2.5 reduction'!AL92),9))","v":0.99997977100000002},{"$f":"VALUE(FIXED(EXP(AM$4*-1*'PM2.5 reduction'!AM92),9))","v":0.99995338499999997},{"$f":"VALUE(FIXED(EXP(AN$4*-1*'PM2.5 reduction'!AN92),9))","v":1},{"$f":"VALUE(FIXED(EXP(AO$4*-1*'PM2.5 reduction'!AO92),9))","v":1},{"$f":"VALUE(FIXED(EXP(AP$4*-1*'PM2.5 reduction'!AP92),9))","v":0.99996658900000002},{"$f":"VALUE(FIXED(EXP(AQ$4*-1*'PM2.5 reduction'!AQ92),9))","v":0.99995405500000001},{"$f":"VALUE(FIXED(EXP(AR$4*-1*'PM2.5 reduction'!AR92),9))","v":0.99995570899999997},{"$f":"VALUE(FIXED(EXP(AS$4*-1*'PM2.5 reduction'!AS92),9))","v":0.99998975700000003},{"$f":"VALUE(FIXED(EXP(AT$4*-1*'PM2.5 reduction'!AT92),9))","v":1},{"$f":"VALUE(FIXED(EXP(AU$4*-1*'PM2.5 reduction'!AU92),9))","v":1},{"$f":"VALUE(FIXED(EXP(AV$4*-1*'PM2.5 reduction'!AV92),9))","v":0.99997516099999995},{"$f":"VALUE(FIXED(EXP(AW$4*-1*'PM2.5 reduction'!AW92),9))","v":0.99996234699999997},{"$f":"VALUE(FIXED(EXP(AX$4*-1*'PM2.5 reduction'!AX92),9))","v":0.99997344600000004},{"$f":"VALUE(FIXED(EXP(AY$4*-1*'PM2.5 reduction'!AY92),9))","v":0.99996169099999999},{"$f":"VALUE(FIXED(EXP(AZ$4*-1*'PM2.5 reduction'!AZ92),9))","v":0.99995049400000002},{"$f":"VALUE(FIXED(EXP(BA$4*-1*'PM2.5 reduction'!BA92),9))","v":0.99996290399999999},{"$f":"VALUE(FIXED(EXP(BB$4*-1*'PM2.5 reduction'!BB92),9))","v":0.99996759700000004},{"$f":"VALUE(FIXED(EXP(BC$4*-1*'PM2.5 reduction'!BC92),9))","v":1}]
[null,"Male 70-74",{"$f":"VALUE(FIXED(EXP(C$4*-1*'PM2.5 reduction'!C93),9))","v":0.99993582999999997},{"$f":"VALUE(FIXED(EXP(D$4*-1*'PM2.5 reduction'!D93),9))","v":0.99993992899999995},{"$f":"VALUE(FIXED(EXP(E$4*-1*'PM2.5 reduction'!E93),9))","v":0.99997511100000003},{"$f":"VALUE(FIXED(EXP(F$4*-1*'PM2.5 reduction'!F93),9))","v":0.99998641099999996},{"$f":"VALUE(FIXED(EXP(G$4*-1*'PM2.5 reduction'!G93),9))","v":0.99999028899999998},{"$f":"VALUE(FIXED(EXP(H$4*-1*'PM2.5 reduction'!H93),9))","v":0.99997788700000001},{"$f":"VALUE(FIXED(EXP(I$4*-1*'PM2.5 reduction'!I93),9))","v":0.99998938999999998},{"$f":"VALUE(FIXED(EXP(J$4*-1*'PM2.5 reduction'!J93),9))","v":0.999970315},{"$f":"VALUE(FIXED(EXP(K$4*-1*'PM2.5 reduction'!K93),9))","v":0.99996864100000005},{"$f":"VALUE(FIXED(EXP(L$4*-1*'PM2.5 reduction'!L93),9))","v":0.99998969000000004},{"$f":"VALUE(FIXED(EXP(M$4*-1*'PM2.5 reduction'!M93),9))","v":0.99998969000000004},{"$f":"VALUE(FIXED(EXP(N$4*-1*'PM2.5 reduction'!N93),9))","v":0.99994405200000003},{"$f":"VALUE(FIXED(EXP(O$4*-1*'PM2.5 reduction'!O93),9))","v":0.99997626699999997},{"$f":"VALUE(FIXED(EXP(P$4*-1*'PM2.5 reduction'!P93),9))","v":0.99995175199999997},{"$f":"VALUE(FIXED(EXP(Q$4*-1*'PM2.5 reduction'!Q93),9))","v":0.99998094199999998},{"$f":"VALUE(FIXED(EXP(R$4*-1*'PM2.5 reduction'!R93),9))","v":0.99996173499999996},{"$f":"VALUE(FIXED(EXP(S$4*-1*'PM2.5 reduction'!S93),9))","v":0.99996081000000003},{"$f":"VALUE(FIXED(EXP(T$4*-1*'PM2.5 reduction'!T93),9))","v":0.99993658500000004},{"$f":"VALUE(FIXED(EXP(U$4*-1*'PM2.5 reduction'!U93),9))","v":1},{"$f":"VALUE(FIXED(EXP(V$4*-1*'PM2.5 reduction'!V93),9))","v":0.99995524999999996},{"$f":"VALUE(FIXED(EXP(W$4*-1*'PM2.5 reduction'!W93),9))","v":0.99997296700000005},{"$f":"VALUE(FIXED(EXP(X$4*-1*'PM2.5 reduction'!X93),9))","v":0.99997296700000005},{"$f":"VALUE(FIXED(EXP(Y$4*-1*'PM2.5 reduction'!Y93),9))","v":0.99996306300000004},{"$f":"VALUE(FIXED(EXP(Z$4*-1*'PM2.5 reduction'!Z93),9))","v":0.99993736700000002},{"$f":"VALUE(FIXED(EXP(AA$4*-1*'PM2.5 reduction'!AA93),9))","v":0.99994896799999999},{"$f":"VALUE(FIXED(EXP(AB$4*-1*'PM2.5 reduction'!AB93),9))","v":0.99994251499999998},{"$f":"VALUE(FIXED(EXP(AC$4*-1*'PM2.5 reduction'!AC93),9))","v":0.99994466800000004},{"$f":"VALUE(FIXED(EXP(AD$4*-1*'PM2.5 reduction'!AD93),9))","v":0.99999036799999996},{"$f":"VALUE(FIXED(EXP(AE$4*-1*'PM2.5 reduction'!AE93),9))","v":0.99999043300000001},{"$f":"VALUE(FIXED(EXP(AF$4*-1*'PM2.5 reduction'!AF93),9))","v":0.99996779599999996},{"$f":"VALUE(FIXED(EXP(AG$4*-1*'PM2.5 reduction'!AG93),9))","v":0.99999043300000001},{"$f":"VALUE(FIXED(EXP(AH$4*-1*'PM2.5 reduction'!AH93),9))","v":0.99995749},{"$f":"VALUE(FIXED(EXP(AI$4*-1*'PM2.5 reduction'!AI93),9))","v":0.99995002200000005},{"$f":"VALUE(FIXED(EXP(AJ$4*-1*'PM2.5 reduction'!AJ93),9))","v":0.99996852999999997},{"$f":"VALUE(FIXED(EXP(AK$4*-1*'PM2.5 reduction'!AK93),9))","v":0.99998216200000001},{"$f":"VALUE(FIXED(EXP(AL$4*-1*'PM2.5 reduction'!AL93),9))","v":0.999979548},{"$f":"VALUE(FIXED(EXP(AM$4*-1*'PM2.5 reduction'!AM93),9))","v":0.99995348100000003},{"$f":"VALUE(FIXED(EXP(AN$4*-1*'PM2.5 reduction'!AN93),9))","v":1},{"$f":"VALUE(FIXED(EXP(AO$4*-1*'PM2.5 reduction'!AO93),9))","v":1},{"$f":"VALUE(FIXED(EXP(AP$4*-1*'PM2.5 reduction'!AP93),9))","v":0.99996806999999999},{"$f":"VALUE(FIXED(EXP(AQ$4*-1*'PM2.5 reduction'!AQ93),9))","v":0.99995425400000004},{"$f":"VALUE(FIXED(EXP(AR$4*-1*'PM2.5 reduction'!AR93),9))","v":0.99995577199999996},{"$f":"VALUE(FIXED(EXP(AS$4*-1*'PM2.5 reduction'!AS93),9))","v":0.99998938999999998},{"$f":"VALUE(FIXED(EXP(AT$4*-1*'PM2.5 reduction'!AT93),9))","v":1},{"$f":"VALUE(FIXED(EXP(AU$4*-1*'PM2.5 reduction'!AU93),9))","v":1},{"$f":"VALUE(FIXED(EXP(AV$4*-1*'PM2.5 reduction'!AV93),9))","v":0.99997598499999996},{"$f":"VALUE(FIXED(EXP(AW$4*-1*'PM2.5 reduction'!AW93),9))","v":0.99996322199999998},{"$f":"VALUE(FIXED(EXP(AX$4*-1*'PM2.5 reduction'!AX93),9))","v":0.99997238099999997},{"$f":"VALUE(FIXED(EXP(AY$4*-1*'PM2.5 reduction'!AY93),9))","v":0.99996229599999997},{"$f":"VALUE(FIXED(EXP(AZ$4*-1*'PM2.5 reduction'!AZ93),9))","v":0.99995088499999996},{"$f":"VALUE(FIXED(EXP(BA$4*-1*'PM2.5 reduction'!BA93),9))","v":0.99996311299999996},{"$f":"VALUE(FIXED(EXP(BB$4*-1*'PM2.5 reduction'!BB93),9))","v":0.99996707100000004},{"$f":"VALUE(FIXED(EXP(BC$4*-1*'PM2.5 reduction'!BC93),9))","v":1}]
[null,"Male 75-79",{"$f":"VALUE(FIXED(EXP(C$4*-1*'PM2.5 reduction'!C94),9))","v":0.99993835499999995},{"$f":"VALUE(FIXED(EXP(D$4*-1*'PM2.5 reduction'!D94),9))","v":0.99994597399999996},{"$f":"VALUE(FIXED(EXP(E$4*-1*'PM2.5 reduction'!E94),9))","v":0.99997424400000001},{"$f":"VALUE(FIXED(EXP(F$4*-1*'PM2.5 reduction'!F94),9))","v":0.99998529800000002},{"$f":"VALUE(FIXED(EXP(G$4*-1*'PM2.5 reduction'!G94),9))","v":0.99999035599999997},{"$f":"VALUE(FIXED(EXP(H$4*-1*'PM2.5 reduction'!H94),9))","v":0.99997776000000005},{"$f":"VALUE(FIXED(EXP(I$4*-1*'PM2.5 reduction'!I94),9))","v":0.99998916299999996},{"$f":"VALUE(FIXED(EXP(J$4*-1*'PM2.5 reduction'!J94),9))","v":0.99997162399999995},{"$f":"VALUE(FIXED(EXP(K$4*-1*'PM2.5 reduction'!K94),9))","v":0.99996977899999995},{"$f":"VALUE(FIXED(EXP(L$4*-1*'PM2.5 reduction'!L94),9))","v":0.99998916999999998},{"$f":"VALUE(FIXED(EXP(M$4*-1*'PM2.5 reduction'!M94),9))","v":0.99998916999999998},{"$f":"VALUE(FIXED(EXP(N$4*-1*'PM2.5 reduction'!N94),9))","v":0.999943056},{"$f":"VALUE(FIXED(EXP(O$4*-1*'PM2.5 reduction'!O94),9))","v":0.99997616600000006},{"$f":"VALUE(FIXED(EXP(P$4*-1*'PM2.5 reduction'!P94),9))","v":0.99995328100000003},{"$f":"VALUE(FIXED(EXP(Q$4*-1*'PM2.5 reduction'!Q94),9))","v":0.99998071099999997},{"$f":"VALUE(FIXED(EXP(R$4*-1*'PM2.5 reduction'!R94),9))","v":0.99996234799999995},{"$f":"VALUE(FIXED(EXP(S$4*-1*'PM2.5 reduction'!S94),9))","v":0.99995979499999998},{"$f":"VALUE(FIXED(EXP(T$4*-1*'PM2.5 reduction'!T94),9))","v":0.99993729899999995},{"$f":"VALUE(FIXED(EXP(U$4*-1*'PM2.5 reduction'!U94),9))","v":1},{"$f":"VALUE(FIXED(EXP(V$4*-1*'PM2.5 reduction'!V94),9))","v":0.99995630000000002},{"$f":"VALUE(FIXED(EXP(W$4*-1*'PM2.5 reduction'!W94),9))","v":0.99997250500000001},{"$f":"VALUE(FIXED(EXP(X$4*-1*'PM2.5 reduction'!X94),9))","v":0.99997250500000001},{"$f":"VALUE(FIXED(EXP(Y$4*-1*'PM2.5 reduction'!Y94),9))","v":0.99996347699999999},{"$f":"VALUE(FIXED(EXP(Z$4*-1*'PM2.5 reduction'!Z94),9))","v":0.99993724799999995},{"$f":"VALUE(FIXED(EXP(AA$4*-1*'PM2.5 reduction'!AA94),9))","v":0.99994862500000004},{"$f":"VALUE(FIXED(EXP(AB$4*-1*'PM2.5 reduction'!AB94),9))","v":0.99994733599999996},{"$f":"VALUE(FIXED(EXP(AC$4*-1*'PM2.5 reduction'!AC94),9))","v":0.99994457800000003},{"$f":"VALUE(FIXED(EXP(AD$4*-1*'PM2.5 reduction'!AD94),9))","v":0.99998903800000005},{"$f":"VALUE(FIXED(EXP(AE$4*-1*'PM2.5 reduction'!AE94),9))","v":0.99998832999999998},{"$f":"VALUE(FIXED(EXP(AF$4*-1*'PM2.5 reduction'!AF94),9))","v":0.99996474499999999},{"$f":"VALUE(FIXED(EXP(AG$4*-1*'PM2.5 reduction'!AG94),9))","v":0.99998832999999998},{"$f":"VALUE(FIXED(EXP(AH$4*-1*'PM2.5 reduction'!AH94),9))","v":0.99995704699999999},{"$f":"VALUE(FIXED(EXP(AI$4*-1*'PM2.5 reduction'!AI94),9))","v":0.99995028900000005},{"$f":"VALUE(FIXED(EXP(AJ$4*-1*'PM2.5 reduction'!AJ94),9))","v":0.99996927000000002},{"$f":"VALUE(FIXED(EXP(AK$4*-1*'PM2.5 reduction'!AK94),9))","v":0.99998216200000001},{"$f":"VALUE(FIXED(EXP(AL$4*-1*'PM2.5 reduction'!AL94),9))","v":0.99997953699999997},{"$f":"VALUE(FIXED(EXP(AM$4*-1*'PM2.5 reduction'!AM94),9))","v":0.999952909},{"$f":"VALUE(FIXED(EXP(AN$4*-1*'PM2.5 reduction'!AN94),9))","v":1},{"$f":"VALUE(FIXED(EXP(AO$4*-1*'PM2.5 reduction'!AO94),9))","v":1},{"$f":"VALUE(FIXED(EXP(AP$4*-1*'PM2.5 reduction'!AP94),9))","v":0.99996742999999999},{"$f":"VALUE(FIXED(EXP(AQ$4*-1*'PM2.5 reduction'!AQ94),9))","v":0.99995552799999998},{"$f":"VALUE(FIXED(EXP(AR$4*-1*'PM2.5 reduction'!AR94),9))","v":0.99995554099999995},{"$f":"VALUE(FIXED(EXP(AS$4*-1*'PM2.5 reduction'!AS94),9))","v":0.99998916299999996},{"$f":"VALUE(FIXED(EXP(AT$4*-1*'PM2.5 reduction'!AT94),9))","v":1},{"$f":"VALUE(FIXED(EXP(AU$4*-1*'PM2.5 reduction'!AU94),9))","v":1},{"$f":"VALUE(FIXED(EXP(AV$4*-1*'PM2.5 reduction'!AV94),9))","v":0.99997561099999999},{"$f":"VALUE(FIXED(EXP(AW$4*-1*'PM2.5 reduction'!AW94),9))","v":0.99996357800000002},{"$f":"VALUE(FIXED(EXP(AX$4*-1*'PM2.5 reduction'!AX94),9))","v":0.99997346899999995},{"$f":"VALUE(FIXED(EXP(AY$4*-1*'PM2.5 reduction'!AY94),9))","v":0.99996145400000003},{"$f":"VALUE(FIXED(EXP(AZ$4*-1*'PM2.5 reduction'!AZ94),9))","v":0.99995087400000005},{"$f":"VALUE(FIXED(EXP(BA$4*-1*'PM2.5 reduction'!BA94),9))","v":0.99996246300000002},{"$f":"VALUE(FIXED(EXP(BB$4*-1*'PM2.5 reduction'!BB94),9))","v":0.99996735199999998},{"$f":"VALUE(FIXED(EXP(BC$4*-1*'PM2.5 reduction'!BC94),9))","v":1}]
[null,"Male 80-84",{"$f":"VALUE(FIXED(EXP(C$4*-1*'PM2.5 reduction'!C95),9))","v":0.99993753200000002},{"$f":"VALUE(FIXED(EXP(D$4*-1*'PM2.5 reduction'!D95),9))","v":0.99994267000000003},{"$f":"VALUE(FIXED(EXP(E$4*-1*'PM2.5 reduction'!E95),9))","v":0.99997349599999996},{"$f":"VALUE(FIXED(EXP(F$4*-1*'PM2.5 reduction'!F95),9))","v":0.99998688800000002},{"$f":"VALUE(FIXED(EXP(G$4*-1*'PM2.5 reduction'!G95),9))","v":0.99999022599999998},{"$f":"VALUE(FIXED(EXP(H$4*-1*'PM2.5 reduction'!H95),9))","v":0.99997790600000003},{"$f":"VALUE(FIXED(EXP(I$4*-1*'PM2.5 reduction'!I95),9))","v":0.99998963600000002},{"$f":"VALUE(FIXED(EXP(J$4*-1*'PM2.5 reduction'!J95),9))","v":0.99996964799999999},{"$f":"VALUE(FIXED(EXP(K$4*-1*'PM2.5 reduction'!K95),9))","v":0.99996627599999999},{"$f":"VALUE(FIXED(EXP(L$4*-1*'PM2.5 reduction'!L95),9))","v":0.99998978500000002},{"$f":"VALUE(FIXED(EXP(M$4*-1*'PM2.5 reduction'!M95),9))","v":0.99998978500000002},{"$f":"VALUE(FIXED(EXP(N$4*-1*'PM2.5 reduction'!N95),9))","v":0.99994270200000002},{"$f":"VALUE(FIXED(EXP(O$4*-1*'PM2.5 reduction'!O95),9))","v":0.99997714800000004},{"$f":"VALUE(FIXED(EXP(P$4*-1*'PM2.5 reduction'!P95),9))","v":0.99995597700000005},{"$f":"VALUE(FIXED(EXP(Q$4*-1*'PM2.5 reduction'!Q95),9))","v":0.99998063999999998},{"$f":"VALUE(FIXED(EXP(R$4*-1*'PM2.5 reduction'!R95),9))","v":0.999961392},{"$f":"VALUE(FIXED(EXP(S$4*-1*'PM2.5 reduction'!S95),9))","v":0.999959131},{"$f":"VALUE(FIXED(EXP(T$4*-1*'PM2.5 reduction'!T95),9))","v":0.99993689699999999},{"$f":"VALUE(FIXED(EXP(U$4*-1*'PM2.5 reduction'!U95),9))","v":1},{"$f":"VALUE(FIXED(EXP(V$4*-1*'PM2.5 reduction'!V95),9))","v":0.99995661700000005},{"$f":"VALUE(FIXED(EXP(W$4*-1*'PM2.5 reduction'!W95),9))","v":0.99997144999999998},{"$f":"VALUE(FIXED(EXP(X$4*-1*'PM2.5 reduction'!X95),9))","v":0.99997144999999998},{"$f":"VALUE(FIXED(EXP(Y$4*-1*'PM2.5 reduction'!Y95),9))","v":0.99996152699999996},{"$f":"VALUE(FIXED(EXP(Z$4*-1*'PM2.5 reduction'!Z95),9))","v":0.99993733799999995},{"$f":"VALUE(FIXED(EXP(AA$4*-1*'PM2.5 reduction'!AA95),9))","v":0.99994824900000001},{"$f":"VALUE(FIXED(EXP(AB$4*-1*'PM2.5 reduction'!AB95),9))","v":0.99994364099999999},{"$f":"VALUE(FIXED(EXP(AC$4*-1*'PM2.5 reduction'!AC95),9))","v":0.99994419899999998},{"$f":"VALUE(FIXED(EXP(AD$4*-1*'PM2.5 reduction'!AD95),9))","v":0.99999049900000003},{"$f":"VALUE(FIXED(EXP(AE$4*-1*'PM2.5 reduction'!AE95),9))","v":0.99999067600000002},{"$f":"VALUE(FIXED(EXP(AF$4*-1*'PM2.5 reduction'!AF95),9))","v":0.99996441000000003},{"$f":"VALUE(FIXED(EXP(AG$4*-1*'PM2.5 reduction'!AG95),9))","v":0.99999067600000002},{"$f":"VALUE(FIXED(EXP(AH$4*-1*'PM2.5 reduction'!AH95),9))","v":0.99995667099999996},{"$f":"VALUE(FIXED(EXP(AI$4*-1*'PM2.5 reduction'!AI95),9))","v":0.99994927199999994},{"$f":"VALUE(FIXED(EXP(AJ$4*-1*'PM2.5 reduction'!AJ95),9))","v":0.99996934000000004},{"$f":"VALUE(FIXED(EXP(AK$4*-1*'PM2.5 reduction'!AK95),9))","v":0.99998216200000001},{"$f":"VALUE(FIXED(EXP(AL$4*-1*'PM2.5 reduction'!AL95),9))","v":0.99997915100000001},{"$f":"VALUE(FIXED(EXP(AM$4*-1*'PM2.5 reduction'!AM95),9))","v":0.99995301000000003},{"$f":"VALUE(FIXED(EXP(AN$4*-1*'PM2.5 reduction'!AN95),9))","v":1},{"$f":"VALUE(FIXED(EXP(AO$4*-1*'PM2.5 reduction'!AO95),9))","v":1},{"$f":"VALUE(FIXED(EXP(AP$4*-1*'PM2.5 reduction'!AP95),9))","v":0.99996751299999997},{"$f":"VALUE(FIXED(EXP(AQ$4*-1*'PM2.5 reduction'!AQ95),9))","v":0.99995653799999995},{"$f":"VALUE(FIXED(EXP(AR$4*-1*'PM2.5 reduction'!AR95),9))","v":0.99995508},{"$f":"VALUE(FIXED(EXP(AS$4*-1*'PM2.5 reduction'!AS95),9))","v":0.99998963600000002},{"$f":"VALUE(FIXED(EXP(AT$4*-1*'PM2.5 reduction'!AT95),9))","v":1},{"$f":"VALUE(FIXED(EXP(AU$4*-1*'PM2.5 reduction'!AU95),9))","v":1},{"$f":"VALUE(FIXED(EXP(AV$4*-1*'PM2.5 reduction'!AV95),9))","v":0.99997620899999995},{"$f":"VALUE(FIXED(EXP(AW$4*-1*'PM2.5 reduction'!AW95),9))","v":0.99996263600000002},{"$f":"VALUE(FIXED(EXP(AX$4*-1*'PM2.5 reduction'!AX95),9))","v":0.99997277600000001},{"$f":"VALUE(FIXED(EXP(AY$4*-1*'PM2.5 reduction'!AY95),9))","v":0.99996139500000003},{"$f":"VALUE(FIXED(EXP(AZ$4*-1*'PM2.5 reduction'!AZ95),9))","v":0.99995049899999999},{"$f":"VALUE(FIXED(EXP(BA$4*-1*'PM2.5 reduction'!BA95),9))","v":0.99996165599999998},{"$f":"VALUE(FIXED(EXP(BB$4*-1*'PM2.5 reduction'!BB95),9))","v":0.99996725099999995},{"$f":"VALUE(FIXED(EXP(BC$4*-1*'PM2.5 reduction'!BC95),9))","v":1}]
[null,"Male 85-89",{"$f":"VALUE(FIXED(EXP(C$4*-1*'PM2.5 reduction'!C96),9))","v":0.999934235},{"$f":"VALUE(FIXED(EXP(D$4*-1*'PM2.5 reduction'!D96),9))","v":0.99994316500000002},{"$f":"VALUE(FIXED(EXP(E$4*-1*'PM2.5 reduction'!E96),9))","v":0.99997613699999999},{"$f":"VALUE(FIXED(EXP(F$4*-1*'PM2.5 reduction'!F96),9))","v":0.99998473700000001},{"$f":"VALUE(FIXED(EXP(G$4*-1*'PM2.5 reduction'!G96),9))","v":0.99998903900000002},{"$f":"VALUE(FIXED(EXP(H$4*-1*'PM2.5 reduction'!H96),9))","v":0.99997529500000004},{"$f":"VALUE(FIXED(EXP(I$4*-1*'PM2.5 reduction'!I96),9))","v":0.99998944099999998},{"$f":"VALUE(FIXED(EXP(J$4*-1*'PM2.5 reduction'!J96),9))","v":0.99996876000000001},{"$f":"VALUE(FIXED(EXP(K$4*-1*'PM2.5 reduction'!K96),9))","v":0.99996632299999999},{"$f":"VALUE(FIXED(EXP(L$4*-1*'PM2.5 reduction'!L96),9))","v":0.999988616},{"$f":"VALUE(FIXED(EXP(M$4*-1*'PM2.5 reduction'!M96),9))","v":0.999988616},{"$f":"VALUE(FIXED(EXP(N$4*-1*'PM2.5 reduction'!N96),9))","v":0.99994277499999995},{"$f":"VALUE(FIXED(EXP(O$4*-1*'PM2.5 reduction'!O96),9))","v":0.99996939900000004},{"$f":"VALUE(FIXED(EXP(P$4*-1*'PM2.5 reduction'!P96),9))","v":0.99995710699999996},{"$f":"VALUE(FIXED(EXP(Q$4*-1*'PM2.5 reduction'!Q96),9))","v":0.99998046200000001},{"$f":"VALUE(FIXED(EXP(R$4*-1*'PM2.5 reduction'!R96),9))","v":0.99995993400000005},{"$f":"VALUE(FIXED(EXP(S$4*-1*'PM2.5 reduction'!S96),9))","v":0.99996032000000001},{"$f":"VALUE(FIXED(EXP(T$4*-1*'PM2.5 reduction'!T96),9))","v":0.99993740399999997},{"$f":"VALUE(FIXED(EXP(U$4*-1*'PM2.5 reduction'!U96),9))","v":1},{"$f":"VALUE(FIXED(EXP(V$4*-1*'PM2.5 reduction'!V96),9))","v":0.99995731799999998},{"$f":"VALUE(FIXED(EXP(W$4*-1*'PM2.5 reduction'!W96),9))","v":0.99997233500000005},{"$f":"VALUE(FIXED(EXP(X$4*-1*'PM2.5 reduction'!X96),9))","v":0.99997233500000005},{"$f":"VALUE(FIXED(EXP(Y$4*-1*'PM2.5 reduction'!Y96),9))","v":0.99996258900000001},{"$f":"VALUE(FIXED(EXP(Z$4*-1*'PM2.5 reduction'!Z96),9))","v":0.99993801199999999},{"$f":"VALUE(FIXED(EXP(AA$4*-1*'PM2.5 reduction'!AA96),9))","v":0.999948367},{"$f":"VALUE(FIXED(EXP(AB$4*-1*'PM2.5 reduction'!AB96),9))","v":0.99994556400000001},{"$f":"VALUE(FIXED(EXP(AC$4*-1*'PM2.5 reduction'!AC96),9))","v":0.99994445399999998},{"$f":"VALUE(FIXED(EXP(AD$4*-1*'PM2.5 reduction'!AD96),9))","v":0.999988243},{"$f":"VALUE(FIXED(EXP(AE$4*-1*'PM2.5 reduction'!AE96),9))","v":0.99998758899999995},{"$f":"VALUE(FIXED(EXP(AF$4*-1*'PM2.5 reduction'!AF96),9))","v":0.99996405799999999},{"$f":"VALUE(FIXED(EXP(AG$4*-1*'PM2.5 reduction'!AG96),9))","v":0.99998758899999995},{"$f":"VALUE(FIXED(EXP(AH$4*-1*'PM2.5 reduction'!AH96),9))","v":0.99995681800000003},{"$f":"VALUE(FIXED(EXP(AI$4*-1*'PM2.5 reduction'!AI96),9))","v":0.99995037600000003},{"$f":"VALUE(FIXED(EXP(AJ$4*-1*'PM2.5 reduction'!AJ96),9))","v":0.99996951599999995},{"$f":"VALUE(FIXED(EXP(AK$4*-1*'PM2.5 reduction'!AK96),9))","v":0.99998216200000001},{"$f":"VALUE(FIXED(EXP(AL$4*-1*'PM2.5 reduction'!AL96),9))","v":0.99998006900000003},{"$f":"VALUE(FIXED(EXP(AM$4*-1*'PM2.5 reduction'!AM96),9))","v":0.99995186400000002},{"$f":"VALUE(FIXED(EXP(AN$4*-1*'PM2.5 reduction'!AN96),9))","v":1},{"$f":"VALUE(FIXED(EXP(AO$4*-1*'PM2.5 reduction'!AO96),9))","v":1},{"$f":"VALUE(FIXED(EXP(AP$4*-1*'PM2.5 reduction'!AP96),9))","v":0.99996648099999996},{"$f":"VALUE(FIXED(EXP(AQ$4*-1*'PM2.5 reduction'!AQ96),9))","v":0.99995537300000004},{"$f":"VALUE(FIXED(EXP(AR$4*-1*'PM2.5 reduction'!AR96),9))","v":0.99995505299999998},{"$f":"VALUE(FIXED(EXP(AS$4*-1*'PM2.5 reduction'!AS96),9))","v":0.99998944099999998},{"$f":"VALUE(FIXED(EXP(AT$4*-1*'PM2.5 reduction'!AT96),9))","v":1},{"$f":"VALUE(FIXED(EXP(AU$4*-1*'PM2.5 reduction'!AU96),9))","v":1},{"$f":"VALUE(FIXED(EXP(AV$4*-1*'PM2.5 reduction'!AV96),9))","v":0.99997452499999995},{"$f":"VALUE(FIXED(EXP(AW$4*-1*'PM2.5 reduction'!AW96),9))","v":0.99996363200000005},{"$f":"VALUE(FIXED(EXP(AX$4*-1*'PM2.5 reduction'!AX96),9))","v":0.99997203199999996},{"$f":"VALUE(FIXED(EXP(AY$4*-1*'PM2.5 reduction'!AY96),9))","v":0.99996086799999995},{"$f":"VALUE(FIXED(EXP(AZ$4*-1*'PM2.5 reduction'!AZ96),9))","v":0.99994948299999997},{"$f":"VALUE(FIXED(EXP(BA$4*-1*'PM2.5 reduction'!BA96),9))","v":0.99996060399999998},{"$f":"VALUE(FIXED(EXP(BB$4*-1*'PM2.5 reduction'!BB96),9))","v":0.99996773400000005},{"$f":"VALUE(FIXED(EXP(BC$4*-1*'PM2.5 reduction'!BC96),9))","v":1}]
[null,"Male 90+",{"$f":"VALUE(FIXED(EXP(C$4*-1*'PM2.5 reduction'!C97),9))","v":0.99994209499999998},{"$f":"VALUE(FIXED(EXP(D$4*-1*'PM2.5 reduction'!D97),9))","v":0.99994725200000001},{"$f":"VALUE(FIXED(EXP(E$4*-1*'PM2.5 reduction'!E97),9))","v":0.999974327},{"$f":"VALUE(FIXED(EXP(F$4*-1*'PM2.5 reduction'!F97),9))","v":0.99998469800000001},{"$f":"VALUE(FIXED(EXP(G$4*-1*'PM2.5 reduction'!G97),9))","v":0.99999037400000002},{"$f":"VALUE(FIXED(EXP(H$4*-1*'PM2.5 reduction'!H97),9))","v":0.999974959},{"$f":"VALUE(FIXED(EXP(I$4*-1*'PM2.5 reduction'!I97),9))","v":0.99998698900000005},{"$f":"VALUE(FIXED(EXP(J$4*-1*'PM2.5 reduction'!J97),9))","v":0.99996719099999998},{"$f":"VALUE(FIXED(EXP(K$4*-1*'PM2.5 reduction'!K97),9))","v":0.99996545999999997},{"$f":"VALUE(FIXED(EXP(L$4*-1*'PM2.5 reduction'!L97),9))","v":0.99999138300000001},{"$f":"VALUE(FIXED(EXP(M$4*-1*'PM2.5 reduction'!M97),9))","v":0.99999138300000001},{"$f":"VALUE(FIXED(EXP(N$4*-1*'PM2.5 reduction'!N97),9))","v":0.99994401399999999},{"$f":"VALUE(FIXED(EXP(O$4*-1*'PM2.5 reduction'!O97),9))","v":0.99996950200000001},{"$f":"VALUE(FIXED(EXP(P$4*-1*'PM2.5 reduction'!P97),9))","v":0.99995847999999998},{"$f":"VALUE(FIXED(EXP(Q$4*-1*'PM2.5 reduction'!Q97),9))","v":0.99997953900000003},{"$f":"VALUE(FIXED(EXP(R$4*-1*'PM2.5 reduction'!R97),9))","v":0.99996266300000003},{"$f":"VALUE(FIXED(EXP(S$4*-1*'PM2.5 reduction'!S97),9))","v":0.99995920400000005},{"$f":"VALUE(FIXED(EXP(T$4*-1*'PM2.5 reduction'!T97),9))","v":0.99993721499999999},{"$f":"VALUE(FIXED(EXP(U$4*-1*'PM2.5 reduction'!U97),9))","v":1},{"$f":"VALUE(FIXED(EXP(V$4*-1*'PM2.5 reduction'!V97),9))","v":0.99995557700000004},{"$f":"VALUE(FIXED(EXP(W$4*-1*'PM2.5 reduction'!W97),9))","v":0.99997131100000003},{"$f":"VALUE(FIXED(EXP(X$4*-1*'PM2.5 reduction'!X97),9))","v":0.99997131100000003},{"$f":"VALUE(FIXED(EXP(Y$4*-1*'PM2.5 reduction'!Y97),9))","v":0.99995985600000004},{"$f":"VALUE(FIXED(EXP(Z$4*-1*'PM2.5 reduction'!Z97),9))","v":0.99993637300000004},{"$f":"VALUE(FIXED(EXP(AA$4*-1*'PM2.5 reduction'!AA97),9))","v":0.999948002},{"$f":"VALUE(FIXED(EXP(AB$4*-1*'PM2.5 reduction'!AB97),9))","v":0.99994983800000004},{"$f":"VALUE(FIXED(EXP(AC$4*-1*'PM2.5 reduction'!AC97),9))","v":0.99994340699999995},{"$f":"VALUE(FIXED(EXP(AD$4*-1*'PM2.5 reduction'!AD97),9))","v":0.99999026099999999},{"$f":"VALUE(FIXED(EXP(AE$4*-1*'PM2.5 reduction'!AE97),9))","v":0.99999013599999997},{"$f":"VALUE(FIXED(EXP(AF$4*-1*'PM2.5 reduction'!AF97),9))","v":0.99996573600000005},{"$f":"VALUE(FIXED(EXP(AG$4*-1*'PM2.5 reduction'!AG97),9))","v":0.99999013599999997},{"$f":"VALUE(FIXED(EXP(AH$4*-1*'PM2.5 reduction'!AH97),9))","v":0.99995817200000003},{"$f":"VALUE(FIXED(EXP(AI$4*-1*'PM2.5 reduction'!AI97),9))","v":0.99995148099999998},{"$f":"VALUE(FIXED(EXP(AJ$4*-1*'PM2.5 reduction'!AJ97),9))","v":0.99996753599999999},{"$f":"VALUE(FIXED(EXP(AK$4*-1*'PM2.5 reduction'!AK97),9))","v":0.99998216200000001},{"$f":"VALUE(FIXED(EXP(AL$4*-1*'PM2.5 reduction'!AL97),9))","v":0.99997909500000004},{"$f":"VALUE(FIXED(EXP(AM$4*-1*'PM2.5 reduction'!AM97),9))","v":0.99995355500000005},{"$f":"VALUE(FIXED(EXP(AN$4*-1*'PM2.5 reduction'!AN97),9))","v":1},{"$f":"VALUE(FIXED(EXP(AO$4*-1*'PM2.5 reduction'!AO97),9))","v":1},{"$f":"VALUE(FIXED(EXP(AP$4*-1*'PM2.5 reduction'!AP97),9))","v":0.99995557999999996},{"$f":"VALUE(FIXED(EXP(AQ$4*-1*'PM2.5 reduction'!AQ97),9))","v":0.99995569799999995},{"$f":"VALUE(FIXED(EXP(AR$4*-1*'PM2.5 reduction'!AR97),9))","v":0.999954067},{"$f":"VALUE(FIXED(EXP(AS$4*-1*'PM2.5 reduction'!AS97),9))","v":0.99998698900000005},{"$f":"VALUE(FIXED(EXP(AT$4*-1*'PM2.5 reduction'!AT97),9))","v":1},{"$f":"VALUE(FIXED(EXP(AU$4*-1*'PM2.5 reduction'!AU97),9))","v":1},{"$f":"VALUE(FIXED(EXP(AV$4*-1*'PM2.5 reduction'!AV97),9))","v":0.99997588900000001},{"$f":"VALUE(FIXED(EXP(AW$4*-1*'PM2.5 reduction'!AW97),9))","v":0.99996466900000003},{"$f":"VALUE(FIXED(EXP(AX$4*-1*'PM2.5 reduction'!AX97),9))","v":0.99997354000000005},{"$f":"VALUE(FIXED(EXP(AY$4*-1*'PM2.5 reduction'!AY97),9))","v":0.99996031500000004},{"$f":"VALUE(FIXED(EXP(AZ$4*-1*'PM2.5 reduction'!AZ97),9))","v":0.99994733000000002},{"$f":"VALUE(FIXED(EXP(BA$4*-1*'PM2.5 reduction'!BA97),9))","v":0.999958703},{"$f":"VALUE(FIXED(EXP(BB$4*-1*'PM2.5 reduction'!BB97),9))","v":0.99996935799999997},{"$f":"VALUE(FIXED(EXP(BC$4*-1*'PM2.5 reduction'!BC97),9))","v":1}]
["SIMD Q2","Female 0-4",{"$f":"VALUE(FIXED(EXP(C$4*-1*'PM2.5 reduction'!C98),9))","v":0.99993608199999995},{"$f":"VALUE(FIXED(EXP(D$4*-1*'PM2.5 reduction'!D98),9))","v":0.99994210299999997},{"$f":"VALUE(FIXED(EXP(E$4*-1*'PM2.5 reduction'!E98),9))","v":0.99998159200000003},{"$f":"VALUE(FIXED(EXP(F$4*-1*'PM2.5 reduction'!F98),9))","v":0.99998589699999996},{"$f":"VALUE(FIXED(EXP(G$4*-1*'PM2.5 reduction'!G98),9))","v":0.99999315700000002},{"$f":"VALUE(FIXED(EXP(H$4*-1*'PM2.5 reduction'!H98),9))","v":0.99998170799999997},{"$f":"VALUE(FIXED(EXP(I$4*-1*'PM2.5 reduction'!I98),9))","v":0.99998703899999997},{"$f":"VALUE(FIXED(EXP(J$4*-1*'PM2.5 reduction'!J98),9))","v":0.99996928100000004},{"$f":"VALUE(FIXED(EXP(K$4*-1*'PM2.5 reduction'!K98),9))","v":0.99997006700000002},{"$f":"VALUE(FIXED(EXP(L$4*-1*'PM2.5 reduction'!L98),9))","v":0.99998788299999997},{"$f":"VALUE(FIXED(EXP(M$4*-1*'PM2.5 reduction'!M98),9))","v":0.99998788299999997},{"$f":"VALUE(FIXED(EXP(N$4*-1*'PM2.5 reduction'!N98),9))","v":0.99994512300000005},{"$f":"VALUE(FIXED(EXP(O$4*-1*'PM2.5 reduction'!O98),9))","v":0.9999827},{"$f":"VALUE(FIXED(EXP(P$4*-1*'PM2.5 reduction'!P98),9))","v":0.99994831500000003},{"$f":"VALUE(FIXED(EXP(Q$4*-1*'PM2.5 reduction'!Q98),9))","v":0.999971528},{"$f":"VALUE(FIXED(EXP(R$4*-1*'PM2.5 reduction'!R98),9))","v":0.99996181399999995},{"$f":"VALUE(FIXED(EXP(S$4*-1*'PM2.5 reduction'!S98),9))","v":0.99995754699999995},{"$f":"VALUE(FIXED(EXP(T$4*-1*'PM2.5 reduction'!T98),9))","v":0.99992960399999997},{"$f":"VALUE(FIXED(EXP(U$4*-1*'PM2.5 reduction'!U98),9))","v":0.99999088000000003},{"$f":"VALUE(FIXED(EXP(V$4*-1*'PM2.5 reduction'!V98),9))","v":0.99996499400000005},{"$f":"VALUE(FIXED(EXP(W$4*-1*'PM2.5 reduction'!W98),9))","v":0.99996826299999997},{"$f":"VALUE(FIXED(EXP(X$4*-1*'PM2.5 reduction'!X98),9))","v":0.99996826299999997},{"$f":"VALUE(FIXED(EXP(Y$4*-1*'PM2.5 reduction'!Y98),9))","v":0.99996651999999997},{"$f":"VALUE(FIXED(EXP(Z$4*-1*'PM2.5 reduction'!Z98),9))","v":0.99993349300000001},{"$f":"VALUE(FIXED(EXP(AA$4*-1*'PM2.5 reduction'!AA98),9))","v":0.99995241300000004},{"$f":"VALUE(FIXED(EXP(AB$4*-1*'PM2.5 reduction'!AB98),9))","v":0.99994919000000004},{"$f":"VALUE(FIXED(EXP(AC$4*-1*'PM2.5 reduction'!AC98),9))","v":0.99994475000000005},{"$f":"VALUE(FIXED(EXP(AD$4*-1*'PM2.5 reduction'!AD98),9))","v":0.99998762900000004},{"$f":"VALUE(FIXED(EXP(AE$4*-1*'PM2.5 reduction'!AE98),9))","v":0.99998649399999995},{"$f":"VALUE(FIXED(EXP(AF$4*-1*'PM2.5 reduction'!AF98),9))","v":0.99996611300000005},{"$f":"VALUE(FIXED(EXP(AG$4*-1*'PM2.5 reduction'!AG98),9))","v":0.99998649399999995},{"$f":"VALUE(FIXED(EXP(AH$4*-1*'PM2.5 reduction'!AH98),9))","v":0.99996175600000003},{"$f":"VALUE(FIXED(EXP(AI$4*-1*'PM2.5 reduction'!AI98),9))","v":0.99995142800000003},{"$f":"VALUE(FIXED(EXP(AJ$4*-1*'PM2.5 reduction'!AJ98),9))","v":0.99996811200000002},{"$f":"VALUE(FIXED(EXP(AK$4*-1*'PM2.5 reduction'!AK98),9))","v":0.99998564300000004},{"$f":"VALUE(FIXED(EXP(AL$4*-1*'PM2.5 reduction'!AL98),9))","v":0.99998210600000004},{"$f":"VALUE(FIXED(EXP(AM$4*-1*'PM2.5 reduction'!AM98),9))","v":0.99995860299999995},{"$f":"VALUE(FIXED(EXP(AN$4*-1*'PM2.5 reduction'!AN98),9))","v":0.99998751500000005},{"$f":"VALUE(FIXED(EXP(AO$4*-1*'PM2.5 reduction'!AO98),9))","v":0.99998751500000005},{"$f":"VALUE(FIXED(EXP(AP$4*-1*'PM2.5 reduction'!AP98),9))","v":0.99997218700000001},{"$f":"VALUE(FIXED(EXP(AQ$4*-1*'PM2.5 reduction'!AQ98),9))","v":0.99996243200000001},{"$f":"VALUE(FIXED(EXP(AR$4*-1*'PM2.5 reduction'!AR98),9))","v":0.99995899099999996},{"$f":"VALUE(FIXED(EXP(AS$4*-1*'PM2.5 reduction'!AS98),9))","v":0.99998703899999997},{"$f":"VALUE(FIXED(EXP(AT$4*-1*'PM2.5 reduction'!AT98),9))","v":1},{"$f":"VALUE(FIXED(EXP(AU$4*-1*'PM2.5 reduction'!AU98),9))","v":1},{"$f":"VALUE(FIXED(EXP(AV$4*-1*'PM2.5 reduction'!AV98),9))","v":0.99998000099999995},{"$f":"VALUE(FIXED(EXP(AW$4*-1*'PM2.5 reduction'!AW98),9))","v":0.99996558700000004},{"$f":"VALUE(FIXED(EXP(AX$4*-1*'PM2.5 reduction'!AX98),9))","v":0.99996848599999999},{"$f":"VALUE(FIXED(EXP(AY$4*-1*'PM2.5 reduction'!AY98),9))","v":0.99996538400000001},{"$f":"VALUE(FIXED(EXP(AZ$4*-1*'PM2.5 reduction'!AZ98),9))","v":0.999962146},{"$f":"VALUE(FIXED(EXP(BA$4*-1*'PM2.5 reduction'!BA98),9))","v":0.99996105400000002},{"$f":"VALUE(FIXED(EXP(BB$4*-1*'PM2.5 reduction'!BB98),9))","v":0.99996382699999997},{"$f":"VALUE(FIXED(EXP(BC$4*-1*'PM2.5 reduction'!BC98),9))","v":0.99999088000000003}]
[null,"Female 5-9",{"$f":"VALUE(FIXED(EXP(C$4*-1*'PM2.5 reduction'!C99),9))","v":0.99993758099999996},{"$f":"VALUE(FIXED(EXP(D$4*-1*'PM2.5 reduction'!D99),9))","v":0.99994547199999995},{"$f":"VALUE(FIXED(EXP(E$4*-1*'PM2.5 reduction'!E99),9))","v":0.99998293199999999},{"$f":"VALUE(FIXED(EXP(F$4*-1*'PM2.5 reduction'!F99),9))","v":0.99998566899999997},{"$f":"VALUE(FIXED(EXP(G$4*-1*'PM2.5 reduction'!G99),9))","v":0.999993142},{"$f":"VALUE(FIXED(EXP(H$4*-1*'PM2.5 reduction'!H99),9))","v":0.99998188899999996},{"$f":"VALUE(FIXED(EXP(I$4*-1*'PM2.5 reduction'!I99),9))","v":0.99998687600000002},{"$f":"VALUE(FIXED(EXP(J$4*-1*'PM2.5 reduction'!J99),9))","v":0.99996983500000003},{"$f":"VALUE(FIXED(EXP(K$4*-1*'PM2.5 reduction'!K99),9))","v":0.99997009800000003},{"$f":"VALUE(FIXED(EXP(L$4*-1*'PM2.5 reduction'!L99),9))","v":0.99998757400000005},{"$f":"VALUE(FIXED(EXP(M$4*-1*'PM2.5 reduction'!M99),9))","v":0.99998757400000005},{"$f":"VALUE(FIXED(EXP(N$4*-1*'PM2.5 reduction'!N99),9))","v":0.99994710200000003},{"$f":"VALUE(FIXED(EXP(O$4*-1*'PM2.5 reduction'!O99),9))","v":0.99998289500000004},{"$f":"VALUE(FIXED(EXP(P$4*-1*'PM2.5 reduction'!P99),9))","v":0.99994913799999996},{"$f":"VALUE(FIXED(EXP(Q$4*-1*'PM2.5 reduction'!Q99),9))","v":0.99997259500000002},{"$f":"VALUE(FIXED(EXP(R$4*-1*'PM2.5 reduction'!R99),9))","v":0.99996219099999994},{"$f":"VALUE(FIXED(EXP(S$4*-1*'PM2.5 reduction'!S99),9))","v":0.99995867400000005},{"$f":"VALUE(FIXED(EXP(T$4*-1*'PM2.5 reduction'!T99),9))","v":0.999931719},{"$f":"VALUE(FIXED(EXP(U$4*-1*'PM2.5 reduction'!U99),9))","v":0.99999088000000003},{"$f":"VALUE(FIXED(EXP(V$4*-1*'PM2.5 reduction'!V99),9))","v":0.99996448500000001},{"$f":"VALUE(FIXED(EXP(W$4*-1*'PM2.5 reduction'!W99),9))","v":0.99996875399999996},{"$f":"VALUE(FIXED(EXP(X$4*-1*'PM2.5 reduction'!X99),9))","v":0.99996875399999996},{"$f":"VALUE(FIXED(EXP(Y$4*-1*'PM2.5 reduction'!Y99),9))","v":0.99996600599999996},{"$f":"VALUE(FIXED(EXP(Z$4*-1*'PM2.5 reduction'!Z99),9))","v":0.99993569400000004},{"$f":"VALUE(FIXED(EXP(AA$4*-1*'PM2.5 reduction'!AA99),9))","v":0.99995453499999998},{"$f":"VALUE(FIXED(EXP(AB$4*-1*'PM2.5 reduction'!AB99),9))","v":0.99995336999999995},{"$f":"VALUE(FIXED(EXP(AC$4*-1*'PM2.5 reduction'!AC99),9))","v":0.99994788400000001},{"$f":"VALUE(FIXED(EXP(AD$4*-1*'PM2.5 reduction'!AD99),9))","v":0.99998892699999997},{"$f":"VALUE(FIXED(EXP(AE$4*-1*'PM2.5 reduction'!AE99),9))","v":0.99998793500000005},{"$f":"VALUE(FIXED(EXP(AF$4*-1*'PM2.5 reduction'!AF99),9))","v":0.999966566},{"$f":"VALUE(FIXED(EXP(AG$4*-1*'PM2.5 reduction'!AG99),9))","v":0.99998793500000005},{"$f":"VALUE(FIXED(EXP(AH$4*-1*'PM2.5 reduction'!AH99),9))","v":0.99996185500000001},{"$f":"VALUE(FIXED(EXP(AI$4*-1*'PM2.5 reduction'!AI99),9))","v":0.99995336300000004},{"$f":"VALUE(FIXED(EXP(AJ$4*-1*'PM2.5 reduction'!AJ99),9))","v":0.99996889099999997},{"$f":"VALUE(FIXED(EXP(AK$4*-1*'PM2.5 reduction'!AK99),9))","v":0.99998581200000003},{"$f":"VALUE(FIXED(EXP(AL$4*-1*'PM2.5 reduction'!AL99),9))","v":0.99998261799999999},{"$f":"VALUE(FIXED(EXP(AM$4*-1*'PM2.5 reduction'!AM99),9))","v":0.99995841900000004},{"$f":"VALUE(FIXED(EXP(AN$4*-1*'PM2.5 reduction'!AN99),9))","v":0.99998773200000002},{"$f":"VALUE(FIXED(EXP(AO$4*-1*'PM2.5 reduction'!AO99),9))","v":0.99998773200000002},{"$f":"VALUE(FIXED(EXP(AP$4*-1*'PM2.5 reduction'!AP99),9))","v":0.99997451400000004},{"$f":"VALUE(FIXED(EXP(AQ$4*-1*'PM2.5 reduction'!AQ99),9))","v":0.99996236900000002},{"$f":"VALUE(FIXED(EXP(AR$4*-1*'PM2.5 reduction'!AR99),9))","v":0.99996085800000001},{"$f":"VALUE(FIXED(EXP(AS$4*-1*'PM2.5 reduction'!AS99),9))","v":0.99998687600000002},{"$f":"VALUE(FIXED(EXP(AT$4*-1*'PM2.5 reduction'!AT99),9))","v":1},{"$f":"VALUE(FIXED(EXP(AU$4*-1*'PM2.5 reduction'!AU99),9))","v":1},{"$f":"VALUE(FIXED(EXP(AV$4*-1*'PM2.5 reduction'!AV99),9))","v":0.99997965},{"$f":"VALUE(FIXED(EXP(AW$4*-1*'PM2.5 reduction'!AW99),9))","v":0.99996619399999997},{"$f":"VALUE(FIXED(EXP(AX$4*-1*'PM2.5 reduction'!AX99),9))","v":0.99996954999999998},{"$f":"VALUE(FIXED(EXP(AY$4*-1*'PM2.5 reduction'!AY99),9))","v":0.99996667800000005},{"$f":"VALUE(FIXED(EXP(AZ$4*-1*'PM2.5 reduction'!AZ99),9))","v":0.99996435299999997},{"$f":"VALUE(FIXED(EXP(BA$4*-1*'PM2.5 reduction'!BA99),9))","v":0.99996169599999996},{"$f":"VALUE(FIXED(EXP(BB$4*-1*'PM2.5 reduction'!BB99),9))","v":0.99996502499999995},{"$f":"VALUE(FIXED(EXP(BC$4*-1*'PM2.5 reduction'!BC99),9))","v":0.99999088000000003}]
[null,"Female 10-15",{"$f":"VALUE(FIXED(EXP(C$4*-1*'PM2.5 reduction'!C100),9))","v":0.99993799800000005},{"$f":"VALUE(FIXED(EXP(D$4*-1*'PM2.5 reduction'!D100),9))","v":0.99994475999999999},{"$f":"VALUE(FIXED(EXP(E$4*-1*'PM2.5 reduction'!E100),9))","v":0.99998226199999996},{"$f":"VALUE(FIXED(EXP(F$4*-1*'PM2.5 reduction'!F100),9))","v":0.99998501100000003},{"$f":"VALUE(FIXED(EXP(G$4*-1*'PM2.5 reduction'!G100),9))","v":0.999993197},{"$f":"VALUE(FIXED(EXP(H$4*-1*'PM2.5 reduction'!H100),9))","v":0.99998216799999995},{"$f":"VALUE(FIXED(EXP(I$4*-1*'PM2.5 reduction'!I100),9))","v":0.99998718099999995},{"$f":"VALUE(FIXED(EXP(J$4*-1*'PM2.5 reduction'!J100),9))","v":0.99997014799999995},{"$f":"VALUE(FIXED(EXP(K$4*-1*'PM2.5 reduction'!K100),9))","v":0.99997025699999997},{"$f":"VALUE(FIXED(EXP(L$4*-1*'PM2.5 reduction'!L100),9))","v":0.99998826500000004},{"$f":"VALUE(FIXED(EXP(M$4*-1*'PM2.5 reduction'!M100),9))","v":0.99998826500000004},{"$f":"VALUE(FIXED(EXP(N$4*-1*'PM2.5 reduction'!N100),9))","v":0.99994766899999998},{"$f":"VALUE(FIXED(EXP(O$4*-1*'PM2.5 reduction'!O100),9))","v":0.99998290000000001},{"$f":"VALUE(FIXED(EXP(P$4*-1*'PM2.5 reduction'!P100),9))","v":0.99994882399999996},{"$f":"VALUE(FIXED(EXP(Q$4*-1*'PM2.5 reduction'!Q100),9))","v":0.99997362700000003},{"$f":"VALUE(FIXED(EXP(R$4*-1*'PM2.5 reduction'!R100),9))","v":0.999962036},{"$f":"VALUE(FIXED(EXP(S$4*-1*'PM2.5 reduction'!S100),9))","v":0.99996046100000002},{"$f":"VALUE(FIXED(EXP(T$4*-1*'PM2.5 reduction'!T100),9))","v":0.999931978},{"$f":"VALUE(FIXED(EXP(U$4*-1*'PM2.5 reduction'!U100),9))","v":0.99999088000000003},{"$f":"VALUE(FIXED(EXP(V$4*-1*'PM2.5 reduction'!V100),9))","v":0.99996589599999997},{"$f":"VALUE(FIXED(EXP(W$4*-1*'PM2.5 reduction'!W100),9))","v":0.99996856099999998},{"$f":"VALUE(FIXED(EXP(X$4*-1*'PM2.5 reduction'!X100),9))","v":0.99996856099999998},{"$f":"VALUE(FIXED(EXP(Y$4*-1*'PM2.5 reduction'!Y100),9))","v":0.99996719499999998},{"$f":"VALUE(FIXED(EXP(Z$4*-1*'PM2.5 reduction'!Z100),9))","v":0.99993737400000005},{"$f":"VALUE(FIXED(EXP(AA$4*-1*'PM2.5 reduction'!AA100),9))","v":0.99995514600000002},{"$f":"VALUE(FIXED(EXP(AB$4*-1*'PM2.5 reduction'!AB100),9))","v":0.99995197800000002},{"$f":"VALUE(FIXED(EXP(AC$4*-1*'PM2.5 reduction'!AC100),9))","v":0.99994898499999996},{"$f":"VALUE(FIXED(EXP(AD$4*-1*'PM2.5 reduction'!AD100),9))","v":0.99998853499999996},{"$f":"VALUE(FIXED(EXP(AE$4*-1*'PM2.5 reduction'!AE100),9))","v":0.99998740399999997},{"$f":"VALUE(FIXED(EXP(AF$4*-1*'PM2.5 reduction'!AF100),9))","v":0.99996824799999995},{"$f":"VALUE(FIXED(EXP(AG$4*-1*'PM2.5 reduction'!AG100),9))","v":0.99998740399999997},{"$f":"VALUE(FIXED(EXP(AH$4*-1*'PM2.5 reduction'!AH100),9))","v":0.999961867},{"$f":"VALUE(FIXED(EXP(AI$4*-1*'PM2.5 reduction'!AI100),9))","v":0.99995534600000002},{"$f":"VALUE(FIXED(EXP(AJ$4*-1*'PM2.5 reduction'!AJ100),9))","v":0.99996888500000003},{"$f":"VALUE(FIXED(EXP(AK$4*-1*'PM2.5 reduction'!AK100),9))","v":0.99998593599999996},{"$f":"VALUE(FIXED(EXP(AL$4*-1*'PM2.5 reduction'!AL100),9))","v":0.99998258500000003},{"$f":"VALUE(FIXED(EXP(AM$4*-1*'PM2.5 reduction'!AM100),9))","v":0.99995834900000002},{"$f":"VALUE(FIXED(EXP(AN$4*-1*'PM2.5 reduction'!AN100),9))","v":0.99998785300000004},{"$f":"VALUE(FIXED(EXP(AO$4*-1*'PM2.5 reduction'!AO100),9))","v":0.99998785300000004},{"$f":"VALUE(FIXED(EXP(AP$4*-1*'PM2.5 reduction'!AP100),9))","v":0.99997577699999995},{"$f":"VALUE(FIXED(EXP(AQ$4*-1*'PM2.5 reduction'!AQ100),9))","v":0.99996241399999997},{"$f":"VALUE(FIXED(EXP(AR$4*-1*'PM2.5 reduction'!AR100),9))","v":0.99996174999999998},{"$f":"VALUE(FIXED(EXP(AS$4*-1*'PM2.5 reduction'!AS100),9))","v":0.99998718099999995},{"$f":"VALUE(FIXED(EXP(AT$4*-1*'PM2.5 reduction'!AT100),9))","v":1},{"$f":"VALUE(FIXED(EXP(AU$4*-1*'PM2.5 reduction'!AU100),9))","v":1},{"$f":"VALUE(FIXED(EXP(AV$4*-1*'PM2.5 reduction'!AV100),9))","v":0.99998049200000005},{"$f":"VALUE(FIXED(EXP(AW$4*-1*'PM2.5 reduction'!AW100),9))","v":0.99996669100000002},{"$f":"VALUE(FIXED(EXP(AX$4*-1*'PM2.5 reduction'!AX100),9))","v":0.99997001600000002},{"$f":"VALUE(FIXED(EXP(AY$4*-1*'PM2.5 reduction'!AY100),9))","v":0.99996687799999995},{"$f":"VALUE(FIXED(EXP(AZ$4*-1*'PM2.5 reduction'!AZ100),9))","v":0.99996477100000003},{"$f":"VALUE(FIXED(EXP(BA$4*-1*'PM2.5 reduction'!BA100),9))","v":0.99996015000000005},{"$f":"VALUE(FIXED(EXP(BB$4*-1*'PM2.5 reduction'!BB100),9))","v":0.99996423099999998},{"$f":"VALUE(FIXED(EXP(BC$4*-1*'PM2.5 reduction'!BC100),9))","v":0.99999088000000003}]
[null,"Female 16-19",{"$f":"VALUE(FIXED(EXP(C$4*-1*'PM2.5 reduction'!C101),9))","v":0.99993477500000005},{"$f":"VALUE(FIXED(EXP(D$4*-1*'PM2.5 reduction'!D101),9))","v":0.99994194000000003},{"$f":"VALUE(FIXED(EXP(E$4*-1*'PM2.5 reduction'!E101),9))","v":0.99998312600000006},{"$f":"VALUE(FIXED(EXP(F$4*-1*'PM2.5 reduction'!F101),9))","v":0.99998555200000006},{"$f":"VALUE(FIXED(EXP(G$4*-1*'PM2.5 reduction'!G101),9))","v":0.99999312200000001},{"$f":"VALUE(FIXED(EXP(H$4*-1*'PM2.5 reduction'!H101),9))","v":0.99998205200000001},{"$f":"VALUE(FIXED(EXP(I$4*-1*'PM2.5 reduction'!I101),9))","v":0.99998653800000004},{"$f":"VALUE(FIXED(EXP(J$4*-1*'PM2.5 reduction'!J101),9))","v":0.99996874000000002},{"$f":"VALUE(FIXED(EXP(K$4*-1*'PM2.5 reduction'!K101),9))","v":0.99996984},{"$f":"VALUE(FIXED(EXP(L$4*-1*'PM2.5 reduction'!L101),9))","v":0.99998795100000004},{"$f":"VALUE(FIXED(EXP(M$4*-1*'PM2.5 reduction'!M101),9))","v":0.99998795100000004},{"$f":"VALUE(FIXED(EXP(N$4*-1*'PM2.5 reduction'!N101),9))","v":0.99993779599999999},{"$f":"VALUE(FIXED(EXP(O$4*-1*'PM2.5 reduction'!O101),9))","v":0.99998358399999998},{"$f":"VALUE(FIXED(EXP(P$4*-1*'PM2.5 reduction'!P101),9))","v":0.99994942499999995},{"$f":"VALUE(FIXED(EXP(Q$4*-1*'PM2.5 reduction'!Q101),9))","v":0.99997297299999999},{"$f":"VALUE(FIXED(EXP(R$4*-1*'PM2.5 reduction'!R101),9))","v":0.99996175300000001},{"$f":"VALUE(FIXED(EXP(S$4*-1*'PM2.5 reduction'!S101),9))","v":0.99995245399999999},{"$f":"VALUE(FIXED(EXP(T$4*-1*'PM2.5 reduction'!T101),9))","v":0.99991582599999995},{"$f":"VALUE(FIXED(EXP(U$4*-1*'PM2.5 reduction'!U101),9))","v":0.99999088000000003},{"$f":"VALUE(FIXED(EXP(V$4*-1*'PM2.5 reduction'!V101),9))","v":0.99996570200000001},{"$f":"VALUE(FIXED(EXP(W$4*-1*'PM2.5 reduction'!W101),9))","v":0.99996875100000004},{"$f":"VALUE(FIXED(EXP(X$4*-1*'PM2.5 reduction'!X101),9))","v":0.99996875100000004},{"$f":"VALUE(FIXED(EXP(Y$4*-1*'PM2.5 reduction'!Y101),9))","v":0.99996684300000005},{"$f":"VALUE(FIXED(EXP(Z$4*-1*'PM2.5 reduction'!Z101),9))","v":0.999930282},{"$f":"VALUE(FIXED(EXP(AA$4*-1*'PM2.5 reduction'!AA101),9))","v":0.99995194600000004},{"$f":"VALUE(FIXED(EXP(AB$4*-1*'PM2.5 reduction'!AB101),9))","v":0.99994884299999998},{"$f":"VALUE(FIXED(EXP(AC$4*-1*'PM2.5 reduction'!AC101),9))","v":0.99994376799999996},{"$f":"VALUE(FIXED(EXP(AD$4*-1*'PM2.5 reduction'!AD101),9))","v":0.99998854599999998},{"$f":"VALUE(FIXED(EXP(AE$4*-1*'PM2.5 reduction'!AE101),9))","v":0.99998743599999995},{"$f":"VALUE(FIXED(EXP(AF$4*-1*'PM2.5 reduction'!AF101),9))","v":0.99996978999999997},{"$f":"VALUE(FIXED(EXP(AG$4*-1*'PM2.5 reduction'!AG101),9))","v":0.99998743599999995},{"$f":"VALUE(FIXED(EXP(AH$4*-1*'PM2.5 reduction'!AH101),9))","v":0.99996193799999999},{"$f":"VALUE(FIXED(EXP(AI$4*-1*'PM2.5 reduction'!AI101),9))","v":0.99994423499999996},{"$f":"VALUE(FIXED(EXP(AJ$4*-1*'PM2.5 reduction'!AJ101),9))","v":0.99996837299999997},{"$f":"VALUE(FIXED(EXP(AK$4*-1*'PM2.5 reduction'!AK101),9))","v":0.99998551099999999},{"$f":"VALUE(FIXED(EXP(AL$4*-1*'PM2.5 reduction'!AL101),9))","v":0.999981487},{"$f":"VALUE(FIXED(EXP(AM$4*-1*'PM2.5 reduction'!AM101),9))","v":0.999958613},{"$f":"VALUE(FIXED(EXP(AN$4*-1*'PM2.5 reduction'!AN101),9))","v":0.99998859799999995},{"$f":"VALUE(FIXED(EXP(AO$4*-1*'PM2.5 reduction'!AO101),9))","v":0.99998859799999995},{"$f":"VALUE(FIXED(EXP(AP$4*-1*'PM2.5 reduction'!AP101),9))","v":0.99997646500000004},{"$f":"VALUE(FIXED(EXP(AQ$4*-1*'PM2.5 reduction'!AQ101),9))","v":0.99996191599999995},{"$f":"VALUE(FIXED(EXP(AR$4*-1*'PM2.5 reduction'!AR101),9))","v":0.99995697500000003},{"$f":"VALUE(FIXED(EXP(AS$4*-1*'PM2.5 reduction'!AS101),9))","v":0.99998653800000004},{"$f":"VALUE(FIXED(EXP(AT$4*-1*'PM2.5 reduction'!AT101),9))","v":1},{"$f":"VALUE(FIXED(EXP(AU$4*-1*'PM2.5 reduction'!AU101),9))","v":1},{"$f":"VALUE(FIXED(EXP(AV$4*-1*'PM2.5 reduction'!AV101),9))","v":0.99998034000000002},{"$f":"VALUE(FIXED(EXP(AW$4*-1*'PM2.5 reduction'!AW101),9))","v":0.99996642199999997},{"$f":"VALUE(FIXED(EXP(AX$4*-1*'PM2.5 reduction'!AX101),9))","v":0.99996763600000005},{"$f":"VALUE(FIXED(EXP(AY$4*-1*'PM2.5 reduction'!AY101),9))","v":0.99996347500000005},{"$f":"VALUE(FIXED(EXP(AZ$4*-1*'PM2.5 reduction'!AZ101),9))","v":0.99995782300000002},{"$f":"VALUE(FIXED(EXP(BA$4*-1*'PM2.5 reduction'!BA101),9))","v":0.99996067899999996},{"$f":"VALUE(FIXED(EXP(BB$4*-1*'PM2.5 reduction'!BB101),9))","v":0.99996399800000002},{"$f":"VALUE(FIXED(EXP(BC$4*-1*'PM2.5 reduction'!BC101),9))","v":0.99999088000000003}]
[null,"Female 20-24",{"$f":"VALUE(FIXED(EXP(C$4*-1*'PM2.5 reduction'!C102),9))","v":0.99992476699999999},{"$f":"VALUE(FIXED(EXP(D$4*-1*'PM2.5 reduction'!D102),9))","v":0.99993055500000005},{"$f":"VALUE(FIXED(EXP(E$4*-1*'PM2.5 reduction'!E102),9))","v":0.99998159200000003},{"$f":"VALUE(FIXED(EXP(F$4*-1*'PM2.5 reduction'!F102),9))","v":0.99998533599999995},{"$f":"VALUE(FIXED(EXP(G$4*-1*'PM2.5 reduction'!G102),9))","v":0.99999285900000001},{"$f":"VALUE(FIXED(EXP(H$4*-1*'PM2.5 reduction'!H102),9))","v":0.99998144499999997},{"$f":"VALUE(FIXED(EXP(I$4*-1*'PM2.5 reduction'!I102),9))","v":0.99998492000000005},{"$f":"VALUE(FIXED(EXP(J$4*-1*'PM2.5 reduction'!J102),9))","v":0.99996423300000004},{"$f":"VALUE(FIXED(EXP(K$4*-1*'PM2.5 reduction'!K102),9))","v":0.99996948699999999},{"$f":"VALUE(FIXED(EXP(L$4*-1*'PM2.5 reduction'!L102),9))","v":0.99998772499999999},{"$f":"VALUE(FIXED(EXP(M$4*-1*'PM2.5 reduction'!M102),9))","v":0.99998772499999999},{"$f":"VALUE(FIXED(EXP(N$4*-1*'PM2.5 reduction'!N102),9))","v":0.99992785799999995},{"$f":"VALUE(FIXED(EXP(O$4*-1*'PM2.5 reduction'!O102),9))","v":0.99998208499999997},{"$f":"VALUE(FIXED(EXP(P$4*-1*'PM2.5 reduction'!P102),9))","v":0.99994715599999995},{"$f":"VALUE(FIXED(EXP(Q$4*-1*'PM2.5 reduction'!Q102),9))","v":0.99997093400000003},{"$f":"VALUE(FIXED(EXP(R$4*-1*'PM2.5 reduction'!R102),9))","v":0.99996068800000004},{"$f":"VALUE(FIXED(EXP(S$4*-1*'PM2.5 reduction'!S102),9))","v":0.99993944499999998},{"$f":"VALUE(FIXED(EXP(T$4*-1*'PM2.5 reduction'!T102),9))","v":0.999904872},{"$f":"VALUE(FIXED(EXP(U$4*-1*'PM2.5 reduction'!U102),9))","v":0.99999088000000003},{"$f":"VALUE(FIXED(EXP(V$4*-1*'PM2.5 reduction'!V102),9))","v":0.99996363600000004},{"$f":"VALUE(FIXED(EXP(W$4*-1*'PM2.5 reduction'!W102),9))","v":0.99996803300000003},{"$f":"VALUE(FIXED(EXP(X$4*-1*'PM2.5 reduction'!X102),9))","v":0.99996803300000003},{"$f":"VALUE(FIXED(EXP(Y$4*-1*'PM2.5 reduction'!Y102),9))","v":0.99996388700000005},{"$f":"VALUE(FIXED(EXP(Z$4*-1*'PM2.5 reduction'!Z102),9))","v":0.999917681},{"$f":"VALUE(FIXED(EXP(AA$4*-1*'PM2.5 reduction'!AA102),9))","v":0.99994486999999999},{"$f":"VALUE(FIXED(EXP(AB$4*-1*'PM2.5 reduction'!AB102),9))","v":0.99993924000000001},{"$f":"VALUE(FIXED(EXP(AC$4*-1*'PM2.5 reduction'!AC102),9))","v":0.99993298200000003},{"$f":"VALUE(FIXED(EXP(AD$4*-1*'PM2.5 reduction'!AD102),9))","v":0.99998736300000002},{"$f":"VALUE(FIXED(EXP(AE$4*-1*'PM2.5 reduction'!AE102),9))","v":0.99998615800000001},{"$f":"VALUE(FIXED(EXP(AF$4*-1*'PM2.5 reduction'!AF102),9))","v":0.99996664499999999},{"$f":"VALUE(FIXED(EXP(AG$4*-1*'PM2.5 reduction'!AG102),9))","v":0.99998615800000001},{"$f":"VALUE(FIXED(EXP(AH$4*-1*'PM2.5 reduction'!AH102),9))","v":0.99996144399999998},{"$f":"VALUE(FIXED(EXP(AI$4*-1*'PM2.5 reduction'!AI102),9))","v":0.99992933299999998},{"$f":"VALUE(FIXED(EXP(AJ$4*-1*'PM2.5 reduction'!AJ102),9))","v":0.99996818899999995},{"$f":"VALUE(FIXED(EXP(AK$4*-1*'PM2.5 reduction'!AK102),9))","v":0.99998474199999998},{"$f":"VALUE(FIXED(EXP(AL$4*-1*'PM2.5 reduction'!AL102),9))","v":0.99998201600000003},{"$f":"VALUE(FIXED(EXP(AM$4*-1*'PM2.5 reduction'!AM102),9))","v":0.99995813700000002},{"$f":"VALUE(FIXED(EXP(AN$4*-1*'PM2.5 reduction'!AN102),9))","v":0.99998856999999997},{"$f":"VALUE(FIXED(EXP(AO$4*-1*'PM2.5 reduction'!AO102),9))","v":0.99998856999999997},{"$f":"VALUE(FIXED(EXP(AP$4*-1*'PM2.5 reduction'!AP102),9))","v":0.99997236599999995},{"$f":"VALUE(FIXED(EXP(AQ$4*-1*'PM2.5 reduction'!AQ102),9))","v":0.99996049600000003},{"$f":"VALUE(FIXED(EXP(AR$4*-1*'PM2.5 reduction'!AR102),9))","v":0.99994785200000003},{"$f":"VALUE(FIXED(EXP(AS$4*-1*'PM2.5 reduction'!AS102),9))","v":0.99998492000000005},{"$f":"VALUE(FIXED(EXP(AT$4*-1*'PM2.5 reduction'!AT102),9))","v":1},{"$f":"VALUE(FIXED(EXP(AU$4*-1*'PM2.5 reduction'!AU102),9))","v":1},{"$f":"VALUE(FIXED(EXP(AV$4*-1*'PM2.5 reduction'!AV102),9))","v":0.99998001700000005},{"$f":"VALUE(FIXED(EXP(AW$4*-1*'PM2.5 reduction'!AW102),9))","v":0.99996516499999999},{"$f":"VALUE(FIXED(EXP(AX$4*-1*'PM2.5 reduction'!AX102),9))","v":0.99996162099999997},{"$f":"VALUE(FIXED(EXP(AY$4*-1*'PM2.5 reduction'!AY102),9))","v":0.99995552700000001},{"$f":"VALUE(FIXED(EXP(AZ$4*-1*'PM2.5 reduction'!AZ102),9))","v":0.99994649000000002},{"$f":"VALUE(FIXED(EXP(BA$4*-1*'PM2.5 reduction'!BA102),9))","v":0.99996147899999999},{"$f":"VALUE(FIXED(EXP(BB$4*-1*'PM2.5 reduction'!BB102),9))","v":0.99996391200000001},{"$f":"VALUE(FIXED(EXP(BC$4*-1*'PM2.5 reduction'!BC102),9))","v":0.99999088000000003}]
[null,"Female 25-29",{"$f":"VALUE(FIXED(EXP(C$4*-1*'PM2.5 reduction'!C103),9))","v":0.999927016},{"$f":"VALUE(FIXED(EXP(D$4*-1*'PM2.5 reduction'!D103),9))","v":0.999932771},{"$f":"VALUE(FIXED(EXP(E$4*-1*'PM2.5 reduction'!E103),9))","v":0.99998189400000004},{"$f":"VALUE(FIXED(EXP(F$4*-1*'PM2.5 reduction'!F103),9))","v":0.99998542800000001},{"$f":"VALUE(FIXED(EXP(G$4*-1*'PM2.5 reduction'!G103),9))","v":0.99999279399999996},{"$f":"VALUE(FIXED(EXP(H$4*-1*'PM2.5 reduction'!H103),9))","v":0.99998085000000003},{"$f":"VALUE(FIXED(EXP(I$4*-1*'PM2.5 reduction'!I103),9))","v":0.99998549599999997},{"$f":"VALUE(FIXED(EXP(J$4*-1*'PM2.5 reduction'!J103),9))","v":0.999969263},{"$f":"VALUE(FIXED(EXP(K$4*-1*'PM2.5 reduction'!K103),9))","v":0.99997079},{"$f":"VALUE(FIXED(EXP(L$4*-1*'PM2.5 reduction'!L103),9))","v":0.99998712199999995},{"$f":"VALUE(FIXED(EXP(M$4*-1*'PM2.5 reduction'!M103),9))","v":0.99998712199999995},{"$f":"VALUE(FIXED(EXP(N$4*-1*'PM2.5 reduction'!N103),9))","v":0.99993947299999997},{"$f":"VALUE(FIXED(EXP(O$4*-1*'PM2.5 reduction'!O103),9))","v":0.99998187699999996},{"$f":"VALUE(FIXED(EXP(P$4*-1*'PM2.5 reduction'!P103),9))","v":0.99994929700000001},{"$f":"VALUE(FIXED(EXP(Q$4*-1*'PM2.5 reduction'!Q103),9))","v":0.99997125499999995},{"$f":"VALUE(FIXED(EXP(R$4*-1*'PM2.5 reduction'!R103),9))","v":0.99996162600000005},{"$f":"VALUE(FIXED(EXP(S$4*-1*'PM2.5 reduction'!S103),9))","v":0.99994462100000003},{"$f":"VALUE(FIXED(EXP(T$4*-1*'PM2.5 reduction'!T103),9))","v":0.99991679600000005},{"$f":"VALUE(FIXED(EXP(U$4*-1*'PM2.5 reduction'!U103),9))","v":0.99999088000000003},{"$f":"VALUE(FIXED(EXP(V$4*-1*'PM2.5 reduction'!V103),9))","v":0.99996424699999997},{"$f":"VALUE(FIXED(EXP(W$4*-1*'PM2.5 reduction'!W103),9))","v":0.99996780200000002},{"$f":"VALUE(FIXED(EXP(X$4*-1*'PM2.5 reduction'!X103),9))","v":0.99996780200000002},{"$f":"VALUE(FIXED(EXP(Y$4*-1*'PM2.5 reduction'!Y103),9))","v":0.99996619600000003},{"$f":"VALUE(FIXED(EXP(Z$4*-1*'PM2.5 reduction'!Z103),9))","v":0.99992780599999997},{"$f":"VALUE(FIXED(EXP(AA$4*-1*'PM2.5 reduction'!AA103),9))","v":0.99994663699999997},{"$f":"VALUE(FIXED(EXP(AB$4*-1*'PM2.5 reduction'!AB103),9))","v":0.99993918000000004},{"$f":"VALUE(FIXED(EXP(AC$4*-1*'PM2.5 reduction'!AC103),9))","v":0.99993801999999998},{"$f":"VALUE(FIXED(EXP(AD$4*-1*'PM2.5 reduction'!AD103),9))","v":0.99998702900000003},{"$f":"VALUE(FIXED(EXP(AE$4*-1*'PM2.5 reduction'!AE103),9))","v":0.99998595000000001},{"$f":"VALUE(FIXED(EXP(AF$4*-1*'PM2.5 reduction'!AF103),9))","v":0.999966676},{"$f":"VALUE(FIXED(EXP(AG$4*-1*'PM2.5 reduction'!AG103),9))","v":0.99998595000000001},{"$f":"VALUE(FIXED(EXP(AH$4*-1*'PM2.5 reduction'!AH103),9))","v":0.99996068500000002},{"$f":"VALUE(FIXED(EXP(AI$4*-1*'PM2.5 reduction'!AI103),9))","v":0.99993632799999999},{"$f":"VALUE(FIXED(EXP(AJ$4*-1*'PM2.5 reduction'!AJ103),9))","v":0.99996826999999999},{"$f":"VALUE(FIXED(EXP(AK$4*-1*'PM2.5 reduction'!AK103),9))","v":0.99998422600000003},{"$f":"VALUE(FIXED(EXP(AL$4*-1*'PM2.5 reduction'!AL103),9))","v":0.99998124300000002},{"$f":"VALUE(FIXED(EXP(AM$4*-1*'PM2.5 reduction'!AM103),9))","v":0.99995758499999998},{"$f":"VALUE(FIXED(EXP(AN$4*-1*'PM2.5 reduction'!AN103),9))","v":0.99998836800000002},{"$f":"VALUE(FIXED(EXP(AO$4*-1*'PM2.5 reduction'!AO103),9))","v":0.99998836800000002},{"$f":"VALUE(FIXED(EXP(AP$4*-1*'PM2.5 reduction'!AP103),9))","v":0.99997373599999995},{"$f":"VALUE(FIXED(EXP(AQ$4*-1*'PM2.5 reduction'!AQ103),9))","v":0.99996103800000002},{"$f":"VALUE(FIXED(EXP(AR$4*-1*'PM2.5 reduction'!AR103),9))","v":0.99995071300000005},{"$f":"VALUE(FIXED(EXP(AS$4*-1*'PM2.5 reduction'!AS103),9))","v":0.99998549599999997},{"$f":"VALUE(FIXED(EXP(AT$4*-1*'PM2.5 reduction'!AT103),9))","v":1},{"$f":"VALUE(FIXED(EXP(AU$4*-1*'PM2.5 reduction'!AU103),9))","v":1},{"$f":"VALUE(FIXED(EXP(AV$4*-1*'PM2.5 reduction'!AV103),9))","v":0.99997900900000003},{"$f":"VALUE(FIXED(EXP(AW$4*-1*'PM2.5 reduction'!AW103),9))","v":0.99996432000000002},{"$f":"VALUE(FIXED(EXP(AX$4*-1*'PM2.5 reduction'!AX103),9))","v":0.99996818899999995},{"$f":"VALUE(FIXED(EXP(AY$4*-1*'PM2.5 reduction'!AY103),9))","v":0.99996119000000006},{"$f":"VALUE(FIXED(EXP(AZ$4*-1*'PM2.5 reduction'!AZ103),9))","v":0.99995582100000002},{"$f":"VALUE(FIXED(EXP(BA$4*-1*'PM2.5 reduction'!BA103),9))","v":0.99996094700000004},{"$f":"VALUE(FIXED(EXP(BB$4*-1*'PM2.5 reduction'!BB103),9))","v":0.99996402399999995},{"$f":"VALUE(FIXED(EXP(BC$4*-1*'PM2.5 reduction'!BC103),9))","v":0.99999088000000003}]
[null,"Female 30-34",{"$f":"VALUE(FIXED(EXP(C$4*-1*'PM2.5 reduction'!C104),9))","v":0.99993242699999996},{"$f":"VALUE(FIXED(EXP(D$4*-1*'PM2.5 reduction'!D104),9))","v":0.99993745700000003},{"$f":"VALUE(FIXED(EXP(E$4*-1*'PM2.5 reduction'!E104),9))","v":0.99998063000000004},{"$f":"VALUE(FIXED(EXP(F$4*-1*'PM2.5 reduction'!F104),9))","v":0.99998500000000001},{"$f":"VALUE(FIXED(EXP(G$4*-1*'PM2.5 reduction'!G104),9))","v":0.99999297399999998},{"$f":"VALUE(FIXED(EXP(H$4*-1*'PM2.5 reduction'!H104),9))","v":0.99998052500000001},{"$f":"VALUE(FIXED(EXP(I$4*-1*'PM2.5 reduction'!I104),9))","v":0.99998611000000004},{"$f":"VALUE(FIXED(EXP(J$4*-1*'PM2.5 reduction'!J104),9))","v":0.99996891899999996},{"$f":"VALUE(FIXED(EXP(K$4*-1*'PM2.5 reduction'!K104),9))","v":0.99996998400000003},{"$f":"VALUE(FIXED(EXP(L$4*-1*'PM2.5 reduction'!L104),9))","v":0.99998796700000003},{"$f":"VALUE(FIXED(EXP(M$4*-1*'PM2.5 reduction'!M104),9))","v":0.99998796700000003},{"$f":"VALUE(FIXED(EXP(N$4*-1*'PM2.5 reduction'!N104),9))","v":0.99994390300000002},{"$f":"VALUE(FIXED(EXP(O$4*-1*'PM2.5 reduction'!O104),9))","v":0.999980706},{"$f":"VALUE(FIXED(EXP(P$4*-1*'PM2.5 reduction'!P104),9))","v":0.99994784699999995},{"$f":"VALUE(FIXED(EXP(Q$4*-1*'PM2.5 reduction'!Q104),9))","v":0.99997219699999995},{"$f":"VALUE(FIXED(EXP(R$4*-1*'PM2.5 reduction'!R104),9))","v":0.99996213},{"$f":"VALUE(FIXED(EXP(S$4*-1*'PM2.5 reduction'!S104),9))","v":0.99994823799999999},{"$f":"VALUE(FIXED(EXP(T$4*-1*'PM2.5 reduction'!T104),9))","v":0.99991973700000003},{"$f":"VALUE(FIXED(EXP(U$4*-1*'PM2.5 reduction'!U104),9))","v":0.99999088000000003},{"$f":"VALUE(FIXED(EXP(V$4*-1*'PM2.5 reduction'!V104),9))","v":0.999963712},{"$f":"VALUE(FIXED(EXP(W$4*-1*'PM2.5 reduction'!W104),9))","v":0.99996849799999998},{"$f":"VALUE(FIXED(EXP(X$4*-1*'PM2.5 reduction'!X104),9))","v":0.99996849799999998},{"$f":"VALUE(FIXED(EXP(Y$4*-1*'PM2.5 reduction'!Y104),9))","v":0.99996538400000001},{"$f":"VALUE(FIXED(EXP(Z$4*-1*'PM2.5 reduction'!Z104),9))","v":0.99992983899999999},{"$f":"VALUE(FIXED(EXP(AA$4*-1*'PM2.5 reduction'!AA104),9))","v":0.99994916899999997},{"$f":"VALUE(FIXED(EXP(AB$4*-1*'PM2.5 reduction'!AB104),9))","v":0.99994451399999995},{"$f":"VALUE(FIXED(EXP(AC$4*-1*'PM2.5 reduction'!AC104),9))","v":0.99994055900000001},{"$f":"VALUE(FIXED(EXP(AD$4*-1*'PM2.5 reduction'!AD104),9))","v":0.99998782100000005},{"$f":"VALUE(FIXED(EXP(AE$4*-1*'PM2.5 reduction'!AE104),9))","v":0.99998683799999999},{"$f":"VALUE(FIXED(EXP(AF$4*-1*'PM2.5 reduction'!AF104),9))","v":0.99996654200000001},{"$f":"VALUE(FIXED(EXP(AG$4*-1*'PM2.5 reduction'!AG104),9))","v":0.99998683799999999},{"$f":"VALUE(FIXED(EXP(AH$4*-1*'PM2.5 reduction'!AH104),9))","v":0.99996077800000005},{"$f":"VALUE(FIXED(EXP(AI$4*-1*'PM2.5 reduction'!AI104),9))","v":0.99994051500000003},{"$f":"VALUE(FIXED(EXP(AJ$4*-1*'PM2.5 reduction'!AJ104),9))","v":0.99996931700000002},{"$f":"VALUE(FIXED(EXP(AK$4*-1*'PM2.5 reduction'!AK104),9))","v":0.99998443999999997},{"$f":"VALUE(FIXED(EXP(AL$4*-1*'PM2.5 reduction'!AL104),9))","v":0.99998160400000002},{"$f":"VALUE(FIXED(EXP(AM$4*-1*'PM2.5 reduction'!AM104),9))","v":0.999958126},{"$f":"VALUE(FIXED(EXP(AN$4*-1*'PM2.5 reduction'!AN104),9))","v":0.99998838899999998},{"$f":"VALUE(FIXED(EXP(AO$4*-1*'PM2.5 reduction'!AO104),9))","v":0.99998838899999998},{"$f":"VALUE(FIXED(EXP(AP$4*-1*'PM2.5 reduction'!AP104),9))","v":0.99997315099999995},{"$f":"VALUE(FIXED(EXP(AQ$4*-1*'PM2.5 reduction'!AQ104),9))","v":0.99996102899999995},{"$f":"VALUE(FIXED(EXP(AR$4*-1*'PM2.5 reduction'!AR104),9))","v":0.99995365999999997},{"$f":"VALUE(FIXED(EXP(AS$4*-1*'PM2.5 reduction'!AS104),9))","v":0.99998611000000004},{"$f":"VALUE(FIXED(EXP(AT$4*-1*'PM2.5 reduction'!AT104),9))","v":1},{"$f":"VALUE(FIXED(EXP(AU$4*-1*'PM2.5 reduction'!AU104),9))","v":1},{"$f":"VALUE(FIXED(EXP(AV$4*-1*'PM2.5 reduction'!AV104),9))","v":0.99997889200000001},{"$f":"VALUE(FIXED(EXP(AW$4*-1*'PM2.5 reduction'!AW104),9))","v":0.99996394700000002},{"$f":"VALUE(FIXED(EXP(AX$4*-1*'PM2.5 reduction'!AX104),9))","v":0.99996795400000005},{"$f":"VALUE(FIXED(EXP(AY$4*-1*'PM2.5 reduction'!AY104),9))","v":0.99996447899999996},{"$f":"VALUE(FIXED(EXP(AZ$4*-1*'PM2.5 reduction'!AZ104),9))","v":0.99996081999999997},{"$f":"VALUE(FIXED(EXP(BA$4*-1*'PM2.5 reduction'!BA104),9))","v":0.99996147700000004},{"$f":"VALUE(FIXED(EXP(BB$4*-1*'PM2.5 reduction'!BB104),9))","v":0.99996377800000003},{"$f":"VALUE(FIXED(EXP(BC$4*-1*'PM2.5 reduction'!BC104),9))","v":0.99999088000000003}]
[null,"Female 35-39",{"$f":"VALUE(FIXED(EXP(C$4*-1*'PM2.5 reduction'!C105),9))","v":0.99993279400000001},{"$f":"VALUE(FIXED(EXP(D$4*-1*'PM2.5 reduction'!D105),9))","v":0.99994023099999996},{"$f":"VALUE(FIXED(EXP(E$4*-1*'PM2.5 reduction'!E105),9))","v":0.99998273699999995},{"$f":"VALUE(FIXED(EXP(F$4*-1*'PM2.5 reduction'!F105),9))","v":0.99998551099999999},{"$f":"VALUE(FIXED(EXP(G$4*-1*'PM2.5 reduction'!G105),9))","v":0.99999290600000001},{"$f":"VALUE(FIXED(EXP(H$4*-1*'PM2.5 reduction'!H105),9))","v":0.99998117600000003},{"$f":"VALUE(FIXED(EXP(I$4*-1*'PM2.5 reduction'!I105),9))","v":0.99998628899999997},{"$f":"VALUE(FIXED(EXP(J$4*-1*'PM2.5 reduction'!J105),9))","v":0.999969726},{"$f":"VALUE(FIXED(EXP(K$4*-1*'PM2.5 reduction'!K105),9))","v":0.99997076799999995},{"$f":"VALUE(FIXED(EXP(L$4*-1*'PM2.5 reduction'!L105),9))","v":0.99998812400000003},{"$f":"VALUE(FIXED(EXP(M$4*-1*'PM2.5 reduction'!M105),9))","v":0.99998812400000003},{"$f":"VALUE(FIXED(EXP(N$4*-1*'PM2.5 reduction'!N105),9))","v":0.99994454300000002},{"$f":"VALUE(FIXED(EXP(O$4*-1*'PM2.5 reduction'!O105),9))","v":0.99998139100000005},{"$f":"VALUE(FIXED(EXP(P$4*-1*'PM2.5 reduction'!P105),9))","v":0.999948014},{"$f":"VALUE(FIXED(EXP(Q$4*-1*'PM2.5 reduction'!Q105),9))","v":0.99997243300000005},{"$f":"VALUE(FIXED(EXP(R$4*-1*'PM2.5 reduction'!R105),9))","v":0.99996016600000004},{"$f":"VALUE(FIXED(EXP(S$4*-1*'PM2.5 reduction'!S105),9))","v":0.99995291500000005},{"$f":"VALUE(FIXED(EXP(T$4*-1*'PM2.5 reduction'!T105),9))","v":0.999922596},{"$f":"VALUE(FIXED(EXP(U$4*-1*'PM2.5 reduction'!U105),9))","v":0.99999088000000003},{"$f":"VALUE(FIXED(EXP(V$4*-1*'PM2.5 reduction'!V105),9))","v":0.99996444699999998},{"$f":"VALUE(FIXED(EXP(W$4*-1*'PM2.5 reduction'!W105),9))","v":0.99996859400000004},{"$f":"VALUE(FIXED(EXP(X$4*-1*'PM2.5 reduction'!X105),9))","v":0.99996859400000004},{"$f":"VALUE(FIXED(EXP(Y$4*-1*'PM2.5 reduction'!Y105),9))","v":0.99996618299999995},{"$f":"VALUE(FIXED(EXP(Z$4*-1*'PM2.5 reduction'!Z105),9))","v":0.99993238399999995},{"$f":"VALUE(FIXED(EXP(AA$4*-1*'PM2.5 reduction'!AA105),9))","v":0.999950966},{"$f":"VALUE(FIXED(EXP(AB$4*-1*'PM2.5 reduction'!AB105),9))","v":0.99994747100000003},{"$f":"VALUE(FIXED(EXP(AC$4*-1*'PM2.5 reduction'!AC105),9))","v":0.99994297300000001},{"$f":"VALUE(FIXED(EXP(AD$4*-1*'PM2.5 reduction'!AD105),9))","v":0.99998753600000001},{"$f":"VALUE(FIXED(EXP(AE$4*-1*'PM2.5 reduction'!AE105),9))","v":0.999986449},{"$f":"VALUE(FIXED(EXP(AF$4*-1*'PM2.5 reduction'!AF105),9))","v":0.99996674200000002},{"$f":"VALUE(FIXED(EXP(AG$4*-1*'PM2.5 reduction'!AG105),9))","v":0.999986449},{"$f":"VALUE(FIXED(EXP(AH$4*-1*'PM2.5 reduction'!AH105),9))","v":0.99996103199999997},{"$f":"VALUE(FIXED(EXP(AI$4*-1*'PM2.5 reduction'!AI105),9))","v":0.99994570900000002},{"$f":"VALUE(FIXED(EXP(AJ$4*-1*'PM2.5 reduction'!AJ105),9))","v":0.99996803000000001},{"$f":"VALUE(FIXED(EXP(AK$4*-1*'PM2.5 reduction'!AK105),9))","v":0.99998577700000002},{"$f":"VALUE(FIXED(EXP(AL$4*-1*'PM2.5 reduction'!AL105),9))","v":0.99998187100000002},{"$f":"VALUE(FIXED(EXP(AM$4*-1*'PM2.5 reduction'!AM105),9))","v":0.99995809999999996},{"$f":"VALUE(FIXED(EXP(AN$4*-1*'PM2.5 reduction'!AN105),9))","v":0.99998793200000002},{"$f":"VALUE(FIXED(EXP(AO$4*-1*'PM2.5 reduction'!AO105),9))","v":0.99998793200000002},{"$f":"VALUE(FIXED(EXP(AP$4*-1*'PM2.5 reduction'!AP105),9))","v":0.99997392900000004},{"$f":"VALUE(FIXED(EXP(AQ$4*-1*'PM2.5 reduction'!AQ105),9))","v":0.99996095900000004},{"$f":"VALUE(FIXED(EXP(AR$4*-1*'PM2.5 reduction'!AR105),9))","v":0.99995658600000004},{"$f":"VALUE(FIXED(EXP(AS$4*-1*'PM2.5 reduction'!AS105),9))","v":0.99998628899999997},{"$f":"VALUE(FIXED(EXP(AT$4*-1*'PM2.5 reduction'!AT105),9))","v":1},{"$f":"VALUE(FIXED(EXP(AU$4*-1*'PM2.5 reduction'!AU105),9))","v":1},{"$f":"VALUE(FIXED(EXP(AV$4*-1*'PM2.5 reduction'!AV105),9))","v":0.99998007099999997},{"$f":"VALUE(FIXED(EXP(AW$4*-1*'PM2.5 reduction'!AW105),9))","v":0.99996468400000005},{"$f":"VALUE(FIXED(EXP(AX$4*-1*'PM2.5 reduction'!AX105),9))","v":0.99996874099999999},{"$f":"VALUE(FIXED(EXP(AY$4*-1*'PM2.5 reduction'!AY105),9))","v":0.99996528200000001},{"$f":"VALUE(FIXED(EXP(AZ$4*-1*'PM2.5 reduction'!AZ105),9))","v":0.99996155499999995},{"$f":"VALUE(FIXED(EXP(BA$4*-1*'PM2.5 reduction'!BA105),9))","v":0.99995964699999995},{"$f":"VALUE(FIXED(EXP(BB$4*-1*'PM2.5 reduction'!BB105),9))","v":0.99996406500000001},{"$f":"VALUE(FIXED(EXP(BC$4*-1*'PM2.5 reduction'!BC105),9))","v":0.99999088000000003}]
[null,"Female 40-44",{"$f":"VALUE(FIXED(EXP(C$4*-1*'PM2.5 reduction'!C106),9))","v":0.99993458999999996},{"$f":"VALUE(FIXED(EXP(D$4*-1*'PM2.5 reduction'!D106),9))","v":0.99994131200000003},{"$f":"VALUE(FIXED(EXP(E$4*-1*'PM2.5 reduction'!E106),9))","v":0.99998225200000002},{"$f":"VALUE(FIXED(EXP(F$4*-1*'PM2.5 reduction'!F106),9))","v":0.99998490100000004},{"$f":"VALUE(FIXED(EXP(G$4*-1*'PM2.5 reduction'!G106),9))","v":0.99999293499999997},{"$f":"VALUE(FIXED(EXP(H$4*-1*'PM2.5 reduction'!H106),9))","v":0.999981342},{"$f":"VALUE(FIXED(EXP(I$4*-1*'PM2.5 reduction'!I106),9))","v":0.99998638100000004},{"$f":"VALUE(FIXED(EXP(J$4*-1*'PM2.5 reduction'!J106),9))","v":0.99996967199999998},{"$f":"VALUE(FIXED(EXP(K$4*-1*'PM2.5 reduction'!K106),9))","v":0.99997004499999997},{"$f":"VALUE(FIXED(EXP(L$4*-1*'PM2.5 reduction'!L106),9))","v":0.99998751200000002},{"$f":"VALUE(FIXED(EXP(M$4*-1*'PM2.5 reduction'!M106),9))","v":0.99998751200000002},{"$f":"VALUE(FIXED(EXP(N$4*-1*'PM2.5 reduction'!N106),9))","v":0.99994685000000005},{"$f":"VALUE(FIXED(EXP(O$4*-1*'PM2.5 reduction'!O106),9))","v":0.99998228},{"$f":"VALUE(FIXED(EXP(P$4*-1*'PM2.5 reduction'!P106),9))","v":0.99994742800000003},{"$f":"VALUE(FIXED(EXP(Q$4*-1*'PM2.5 reduction'!Q106),9))","v":0.99997311600000005},{"$f":"VALUE(FIXED(EXP(R$4*-1*'PM2.5 reduction'!R106),9))","v":0.99996070400000003},{"$f":"VALUE(FIXED(EXP(S$4*-1*'PM2.5 reduction'!S106),9))","v":0.99995546499999999},{"$f":"VALUE(FIXED(EXP(T$4*-1*'PM2.5 reduction'!T106),9))","v":0.99992529500000005},{"$f":"VALUE(FIXED(EXP(U$4*-1*'PM2.5 reduction'!U106),9))","v":0.99999088000000003},{"$f":"VALUE(FIXED(EXP(V$4*-1*'PM2.5 reduction'!V106),9))","v":0.99996465199999995},{"$f":"VALUE(FIXED(EXP(W$4*-1*'PM2.5 reduction'!W106),9))","v":0.99996846800000005},{"$f":"VALUE(FIXED(EXP(X$4*-1*'PM2.5 reduction'!X106),9))","v":0.99996846800000005},{"$f":"VALUE(FIXED(EXP(Y$4*-1*'PM2.5 reduction'!Y106),9))","v":0.99996632200000002},{"$f":"VALUE(FIXED(EXP(Z$4*-1*'PM2.5 reduction'!Z106),9))","v":0.99993390100000001},{"$f":"VALUE(FIXED(EXP(AA$4*-1*'PM2.5 reduction'!AA106),9))","v":0.99995301000000003},{"$f":"VALUE(FIXED(EXP(AB$4*-1*'PM2.5 reduction'!AB106),9))","v":0.99994908900000001},{"$f":"VALUE(FIXED(EXP(AC$4*-1*'PM2.5 reduction'!AC106),9))","v":0.99994569200000005},{"$f":"VALUE(FIXED(EXP(AD$4*-1*'PM2.5 reduction'!AD106),9))","v":0.999987717},{"$f":"VALUE(FIXED(EXP(AE$4*-1*'PM2.5 reduction'!AE106),9))","v":0.99998654099999995},{"$f":"VALUE(FIXED(EXP(AF$4*-1*'PM2.5 reduction'!AF106),9))","v":0.99996664700000004},{"$f":"VALUE(FIXED(EXP(AG$4*-1*'PM2.5 reduction'!AG106),9))","v":0.99998654099999995},{"$f":"VALUE(FIXED(EXP(AH$4*-1*'PM2.5 reduction'!AH106),9))","v":0.99996150900000003},{"$f":"VALUE(FIXED(EXP(AI$4*-1*'PM2.5 reduction'!AI106),9))","v":0.99994847600000003},{"$f":"VALUE(FIXED(EXP(AJ$4*-1*'PM2.5 reduction'!AJ106),9))","v":0.99996781099999998},{"$f":"VALUE(FIXED(EXP(AK$4*-1*'PM2.5 reduction'!AK106),9))","v":0.99998574100000004},{"$f":"VALUE(FIXED(EXP(AL$4*-1*'PM2.5 reduction'!AL106),9))","v":0.99998203399999996},{"$f":"VALUE(FIXED(EXP(AM$4*-1*'PM2.5 reduction'!AM106),9))","v":0.99995847299999996},{"$f":"VALUE(FIXED(EXP(AN$4*-1*'PM2.5 reduction'!AN106),9))","v":0.999988137},{"$f":"VALUE(FIXED(EXP(AO$4*-1*'PM2.5 reduction'!AO106),9))","v":0.999988137},{"$f":"VALUE(FIXED(EXP(AP$4*-1*'PM2.5 reduction'!AP106),9))","v":0.99997424700000004},{"$f":"VALUE(FIXED(EXP(AQ$4*-1*'PM2.5 reduction'!AQ106),9))","v":0.99996162},{"$f":"VALUE(FIXED(EXP(AR$4*-1*'PM2.5 reduction'!AR106),9))","v":0.99995883299999999},{"$f":"VALUE(FIXED(EXP(AS$4*-1*'PM2.5 reduction'!AS106),9))","v":0.99998638100000004},{"$f":"VALUE(FIXED(EXP(AT$4*-1*'PM2.5 reduction'!AT106),9))","v":1},{"$f":"VALUE(FIXED(EXP(AU$4*-1*'PM2.5 reduction'!AU106),9))","v":1},{"$f":"VALUE(FIXED(EXP(AV$4*-1*'PM2.5 reduction'!AV106),9))","v":0.99997897499999999},{"$f":"VALUE(FIXED(EXP(AW$4*-1*'PM2.5 reduction'!AW106),9))","v":0.99996540599999995},{"$f":"VALUE(FIXED(EXP(AX$4*-1*'PM2.5 reduction'!AX106),9))","v":0.99996923900000001},{"$f":"VALUE(FIXED(EXP(AY$4*-1*'PM2.5 reduction'!AY106),9))","v":0.99996644099999998},{"$f":"VALUE(FIXED(EXP(AZ$4*-1*'PM2.5 reduction'!AZ106),9))","v":0.99996388700000005},{"$f":"VALUE(FIXED(EXP(BA$4*-1*'PM2.5 reduction'!BA106),9))","v":0.99996117799999995},{"$f":"VALUE(FIXED(EXP(BB$4*-1*'PM2.5 reduction'!BB106),9))","v":0.99996423899999998},{"$f":"VALUE(FIXED(EXP(BC$4*-1*'PM2.5 reduction'!BC106),9))","v":0.99999088000000003}]
[null,"Female 45-49",{"$f":"VALUE(FIXED(EXP(C$4*-1*'PM2.5 reduction'!C107),9))","v":0.99993569999999998},{"$f":"VALUE(FIXED(EXP(D$4*-1*'PM2.5 reduction'!D107),9))","v":0.99994349000000005},{"$f":"VALUE(FIXED(EXP(E$4*-1*'PM2.5 reduction'!E107),9))","v":0.99998257999999995},{"$f":"VALUE(FIXED(EXP(F$4*-1*'PM2.5 reduction'!F107),9))","v":0.99998565800000005},{"$f":"VALUE(FIXED(EXP(G$4*-1*'PM2.5 reduction'!G107),9))","v":0.99999300199999996},{"$f":"VALUE(FIXED(EXP(H$4*-1*'PM2.5 reduction'!H107),9))","v":0.99998160599999997},{"$f":"VALUE(FIXED(EXP(I$4*-1*'PM2.5 reduction'!I107),9))","v":0.99998630200000005},{"$f":"VALUE(FIXED(EXP(J$4*-1*'PM2.5 reduction'!J107),9))","v":0.99997029100000001},{"$f":"VALUE(FIXED(EXP(K$4*-1*'PM2.5 reduction'!K107),9))","v":0.99996991400000002},{"$f":"VALUE(FIXED(EXP(L$4*-1*'PM2.5 reduction'!L107),9))","v":0.99998757699999996},{"$f":"VALUE(FIXED(EXP(M$4*-1*'PM2.5 reduction'!M107),9))","v":0.99998757699999996},{"$f":"VALUE(FIXED(EXP(N$4*-1*'PM2.5 reduction'!N107),9))","v":0.999945046},{"$f":"VALUE(FIXED(EXP(O$4*-1*'PM2.5 reduction'!O107),9))","v":0.99998305600000004},{"$f":"VALUE(FIXED(EXP(P$4*-1*'PM2.5 reduction'!P107),9))","v":0.99994811500000003},{"$f":"VALUE(FIXED(EXP(Q$4*-1*'PM2.5 reduction'!Q107),9))","v":0.99997290400000005},{"$f":"VALUE(FIXED(EXP(R$4*-1*'PM2.5 reduction'!R107),9))","v":0.99996122200000004},{"$f":"VALUE(FIXED(EXP(S$4*-1*'PM2.5 reduction'!S107),9))","v":0.99995790900000003},{"$f":"VALUE(FIXED(EXP(T$4*-1*'PM2.5 reduction'!T107),9))","v":0.999926066},{"$f":"VALUE(FIXED(EXP(U$4*-1*'PM2.5 reduction'!U107),9))","v":0.99999088000000003},{"$f":"VALUE(FIXED(EXP(V$4*-1*'PM2.5 reduction'!V107),9))","v":0.999964505},{"$f":"VALUE(FIXED(EXP(W$4*-1*'PM2.5 reduction'!W107),9))","v":0.99996874099999999},{"$f":"VALUE(FIXED(EXP(X$4*-1*'PM2.5 reduction'!X107),9))","v":0.99996874099999999},{"$f":"VALUE(FIXED(EXP(Y$4*-1*'PM2.5 reduction'!Y107),9))","v":0.999966456},{"$f":"VALUE(FIXED(EXP(Z$4*-1*'PM2.5 reduction'!Z107),9))","v":0.99993570200000004},{"$f":"VALUE(FIXED(EXP(AA$4*-1*'PM2.5 reduction'!AA107),9))","v":0.99995388799999996},{"$f":"VALUE(FIXED(EXP(AB$4*-1*'PM2.5 reduction'!AB107),9))","v":0.99995140100000002},{"$f":"VALUE(FIXED(EXP(AC$4*-1*'PM2.5 reduction'!AC107),9))","v":0.99994752899999995},{"$f":"VALUE(FIXED(EXP(AD$4*-1*'PM2.5 reduction'!AD107),9))","v":0.99998826100000004},{"$f":"VALUE(FIXED(EXP(AE$4*-1*'PM2.5 reduction'!AE107),9))","v":0.99998726400000004},{"$f":"VALUE(FIXED(EXP(AF$4*-1*'PM2.5 reduction'!AF107),9))","v":0.999967826},{"$f":"VALUE(FIXED(EXP(AG$4*-1*'PM2.5 reduction'!AG107),9))","v":0.99998726400000004},{"$f":"VALUE(FIXED(EXP(AH$4*-1*'PM2.5 reduction'!AH107),9))","v":0.99996121900000001},{"$f":"VALUE(FIXED(EXP(AI$4*-1*'PM2.5 reduction'!AI107),9))","v":0.99995151800000004},{"$f":"VALUE(FIXED(EXP(AJ$4*-1*'PM2.5 reduction'!AJ107),9))","v":0.99996774799999999},{"$f":"VALUE(FIXED(EXP(AK$4*-1*'PM2.5 reduction'!AK107),9))","v":0.99998519799999996},{"$f":"VALUE(FIXED(EXP(AL$4*-1*'PM2.5 reduction'!AL107),9))","v":0.99998193899999999},{"$f":"VALUE(FIXED(EXP(AM$4*-1*'PM2.5 reduction'!AM107),9))","v":0.99995792999999999},{"$f":"VALUE(FIXED(EXP(AN$4*-1*'PM2.5 reduction'!AN107),9))","v":0.99998809600000005},{"$f":"VALUE(FIXED(EXP(AO$4*-1*'PM2.5 reduction'!AO107),9))","v":0.99998809600000005},{"$f":"VALUE(FIXED(EXP(AP$4*-1*'PM2.5 reduction'!AP107),9))","v":0.99997657500000003},{"$f":"VALUE(FIXED(EXP(AQ$4*-1*'PM2.5 reduction'!AQ107),9))","v":0.99996193},{"$f":"VALUE(FIXED(EXP(AR$4*-1*'PM2.5 reduction'!AR107),9))","v":0.99996014799999999},{"$f":"VALUE(FIXED(EXP(AS$4*-1*'PM2.5 reduction'!AS107),9))","v":0.99998630200000005},{"$f":"VALUE(FIXED(EXP(AT$4*-1*'PM2.5 reduction'!AT107),9))","v":1},{"$f":"VALUE(FIXED(EXP(AU$4*-1*'PM2.5 reduction'!AU107),9))","v":1},{"$f":"VALUE(FIXED(EXP(AV$4*-1*'PM2.5 reduction'!AV107),9))","v":0.99997890499999997},{"$f":"VALUE(FIXED(EXP(AW$4*-1*'PM2.5 reduction'!AW107),9))","v":0.999965043},{"$f":"VALUE(FIXED(EXP(AX$4*-1*'PM2.5 reduction'!AX107),9))","v":0.99997073700000005},{"$f":"VALUE(FIXED(EXP(AY$4*-1*'PM2.5 reduction'!AY107),9))","v":0.99996695999999996},{"$f":"VALUE(FIXED(EXP(AZ$4*-1*'PM2.5 reduction'!AZ107),9))","v":0.99996468699999996},{"$f":"VALUE(FIXED(EXP(BA$4*-1*'PM2.5 reduction'!BA107),9))","v":0.99996041800000002},{"$f":"VALUE(FIXED(EXP(BB$4*-1*'PM2.5 reduction'!BB107),9))","v":0.999964521},{"$f":"VALUE(FIXED(EXP(BC$4*-1*'PM2.5 reduction'!BC107),9))","v":0.99999088000000003}]
[null,"Female 50-54",{"$f":"VALUE(FIXED(EXP(C$4*-1*'PM2.5 reduction'!C108),9))","v":0.99993648199999996},{"$f":"VALUE(FIXED(EXP(D$4*-1*'PM2.5 reduction'!D108),9))","v":0.99994370499999996},{"$f":"VALUE(FIXED(EXP(E$4*-1*'PM2.5 reduction'!E108),9))","v":0.99998105900000001},{"$f":"VALUE(FIXED(EXP(F$4*-1*'PM2.5 reduction'!F108),9))","v":0.99998485000000004},{"$f":"VALUE(FIXED(EXP(G$4*-1*'PM2.5 reduction'!G108),9))","v":0.99999271499999998},{"$f":"VALUE(FIXED(EXP(H$4*-1*'PM2.5 reduction'!H108),9))","v":0.99998144600000005},{"$f":"VALUE(FIXED(EXP(I$4*-1*'PM2.5 reduction'!I108),9))","v":0.999986029},{"$f":"VALUE(FIXED(EXP(J$4*-1*'PM2.5 reduction'!J108),9))","v":0.999971159},{"$f":"VALUE(FIXED(EXP(K$4*-1*'PM2.5 reduction'!K108),9))","v":0.99997111699999996},{"$f":"VALUE(FIXED(EXP(L$4*-1*'PM2.5 reduction'!L108),9))","v":0.99998790299999996},{"$f":"VALUE(FIXED(EXP(M$4*-1*'PM2.5 reduction'!M108),9))","v":0.99998790299999996},{"$f":"VALUE(FIXED(EXP(N$4*-1*'PM2.5 reduction'!N108),9))","v":0.99994411500000002},{"$f":"VALUE(FIXED(EXP(O$4*-1*'PM2.5 reduction'!O108),9))","v":0.99998233800000003},{"$f":"VALUE(FIXED(EXP(P$4*-1*'PM2.5 reduction'!P108),9))","v":0.99994853500000003},{"$f":"VALUE(FIXED(EXP(Q$4*-1*'PM2.5 reduction'!Q108),9))","v":0.99997221400000003},{"$f":"VALUE(FIXED(EXP(R$4*-1*'PM2.5 reduction'!R108),9))","v":0.99996099999999999},{"$f":"VALUE(FIXED(EXP(S$4*-1*'PM2.5 reduction'!S108),9))","v":0.99995930799999999},{"$f":"VALUE(FIXED(EXP(T$4*-1*'PM2.5 reduction'!T108),9))","v":0.99992873900000001},{"$f":"VALUE(FIXED(EXP(U$4*-1*'PM2.5 reduction'!U108),9))","v":0.99999088000000003},{"$f":"VALUE(FIXED(EXP(V$4*-1*'PM2.5 reduction'!V108),9))","v":0.99996421400000002},{"$f":"VALUE(FIXED(EXP(W$4*-1*'PM2.5 reduction'!W108),9))","v":0.99996864399999996},{"$f":"VALUE(FIXED(EXP(X$4*-1*'PM2.5 reduction'!X108),9))","v":0.99996864399999996},{"$f":"VALUE(FIXED(EXP(Y$4*-1*'PM2.5 reduction'!Y108),9))","v":0.999966523},{"$f":"VALUE(FIXED(EXP(Z$4*-1*'PM2.5 reduction'!Z108),9))","v":0.99993655000000004},{"$f":"VALUE(FIXED(EXP(AA$4*-1*'PM2.5 reduction'!AA108),9))","v":0.999954012},{"$f":"VALUE(FIXED(EXP(AB$4*-1*'PM2.5 reduction'!AB108),9))","v":0.999951696},{"$f":"VALUE(FIXED(EXP(AC$4*-1*'PM2.5 reduction'!AC108),9))","v":0.99994808199999996},{"$f":"VALUE(FIXED(EXP(AD$4*-1*'PM2.5 reduction'!AD108),9))","v":0.99998824900000005},{"$f":"VALUE(FIXED(EXP(AE$4*-1*'PM2.5 reduction'!AE108),9))","v":0.99998701599999995},{"$f":"VALUE(FIXED(EXP(AF$4*-1*'PM2.5 reduction'!AF108),9))","v":0.99996717499999999},{"$f":"VALUE(FIXED(EXP(AG$4*-1*'PM2.5 reduction'!AG108),9))","v":0.99998701599999995},{"$f":"VALUE(FIXED(EXP(AH$4*-1*'PM2.5 reduction'!AH108),9))","v":0.99996083599999996},{"$f":"VALUE(FIXED(EXP(AI$4*-1*'PM2.5 reduction'!AI108),9))","v":0.99995297299999997},{"$f":"VALUE(FIXED(EXP(AJ$4*-1*'PM2.5 reduction'!AJ108),9))","v":0.99996801099999999},{"$f":"VALUE(FIXED(EXP(AK$4*-1*'PM2.5 reduction'!AK108),9))","v":0.99998595999999995},{"$f":"VALUE(FIXED(EXP(AL$4*-1*'PM2.5 reduction'!AL108),9))","v":0.99998173000000001},{"$f":"VALUE(FIXED(EXP(AM$4*-1*'PM2.5 reduction'!AM108),9))","v":0.99995769099999998},{"$f":"VALUE(FIXED(EXP(AN$4*-1*'PM2.5 reduction'!AN108),9))","v":0.999988196},{"$f":"VALUE(FIXED(EXP(AO$4*-1*'PM2.5 reduction'!AO108),9))","v":0.999988196},{"$f":"VALUE(FIXED(EXP(AP$4*-1*'PM2.5 reduction'!AP108),9))","v":0.99997521899999997},{"$f":"VALUE(FIXED(EXP(AQ$4*-1*'PM2.5 reduction'!AQ108),9))","v":0.999962138},{"$f":"VALUE(FIXED(EXP(AR$4*-1*'PM2.5 reduction'!AR108),9))","v":0.999960289},{"$f":"VALUE(FIXED(EXP(AS$4*-1*'PM2.5 reduction'!AS108),9))","v":0.999986029},{"$f":"VALUE(FIXED(EXP(AT$4*-1*'PM2.5 reduction'!AT108),9))","v":1},{"$f":"VALUE(FIXED(EXP(AU$4*-1*'PM2.5 reduction'!AU108),9))","v":1},{"$f":"VALUE(FIXED(EXP(AV$4*-1*'PM2.5 reduction'!AV108),9))","v":0.99997998399999999},{"$f":"VALUE(FIXED(EXP(AW$4*-1*'PM2.5 reduction'!AW108),9))","v":0.99996444699999998},{"$f":"VALUE(FIXED(EXP(AX$4*-1*'PM2.5 reduction'!AX108),9))","v":0.99997120100000003},{"$f":"VALUE(FIXED(EXP(AY$4*-1*'PM2.5 reduction'!AY108),9))","v":0.99996554999999998},{"$f":"VALUE(FIXED(EXP(AZ$4*-1*'PM2.5 reduction'!AZ108),9))","v":0.99996138599999995},{"$f":"VALUE(FIXED(EXP(BA$4*-1*'PM2.5 reduction'!BA108),9))","v":0.99996054700000003},{"$f":"VALUE(FIXED(EXP(BB$4*-1*'PM2.5 reduction'!BB108),9))","v":0.99996506699999999},{"$f":"VALUE(FIXED(EXP(BC$4*-1*'PM2.5 reduction'!BC108),9))","v":0.99999088000000003}]
[null,"Female 55-59",{"$f":"VALUE(FIXED(EXP(C$4*-1*'PM2.5 reduction'!C109),9))","v":0.99993681700000003},{"$f":"VALUE(FIXED(EXP(D$4*-1*'PM2.5 reduction'!D109),9))","v":0.99994447900000005},{"$f":"VALUE(FIXED(EXP(E$4*-1*'PM2.5 reduction'!E109),9))","v":0.99998131000000001},{"$f":"VALUE(FIXED(EXP(F$4*-1*'PM2.5 reduction'!F109),9))","v":0.99998523299999997},{"$f":"VALUE(FIXED(EXP(G$4*-1*'PM2.5 reduction'!G109),9))","v":0.999992981},{"$f":"VALUE(FIXED(EXP(H$4*-1*'PM2.5 reduction'!H109),9))","v":0.999981597},{"$f":"VALUE(FIXED(EXP(I$4*-1*'PM2.5 reduction'!I109),9))","v":0.99998637400000001},{"$f":"VALUE(FIXED(EXP(J$4*-1*'PM2.5 reduction'!J109),9))","v":0.99997072300000001},{"$f":"VALUE(FIXED(EXP(K$4*-1*'PM2.5 reduction'!K109),9))","v":0.99997083600000003},{"$f":"VALUE(FIXED(EXP(L$4*-1*'PM2.5 reduction'!L109),9))","v":0.99998793799999997},{"$f":"VALUE(FIXED(EXP(M$4*-1*'PM2.5 reduction'!M109),9))","v":0.99998793799999997},{"$f":"VALUE(FIXED(EXP(N$4*-1*'PM2.5 reduction'!N109),9))","v":0.99994478200000003},{"$f":"VALUE(FIXED(EXP(O$4*-1*'PM2.5 reduction'!O109),9))","v":0.99998355800000005},{"$f":"VALUE(FIXED(EXP(P$4*-1*'PM2.5 reduction'!P109),9))","v":0.99994855299999996},{"$f":"VALUE(FIXED(EXP(Q$4*-1*'PM2.5 reduction'!Q109),9))","v":0.99997286100000005},{"$f":"VALUE(FIXED(EXP(R$4*-1*'PM2.5 reduction'!R109),9))","v":0.99996288600000005},{"$f":"VALUE(FIXED(EXP(S$4*-1*'PM2.5 reduction'!S109),9))","v":0.99995943300000001},{"$f":"VALUE(FIXED(EXP(T$4*-1*'PM2.5 reduction'!T109),9))","v":0.99992885300000001},{"$f":"VALUE(FIXED(EXP(U$4*-1*'PM2.5 reduction'!U109),9))","v":0.99999088000000003},{"$f":"VALUE(FIXED(EXP(V$4*-1*'PM2.5 reduction'!V109),9))","v":0.99996384599999999},{"$f":"VALUE(FIXED(EXP(W$4*-1*'PM2.5 reduction'!W109),9))","v":0.99996894800000002},{"$f":"VALUE(FIXED(EXP(X$4*-1*'PM2.5 reduction'!X109),9))","v":0.99996894800000002},{"$f":"VALUE(FIXED(EXP(Y$4*-1*'PM2.5 reduction'!Y109),9))","v":0.99996618000000004},{"$f":"VALUE(FIXED(EXP(Z$4*-1*'PM2.5 reduction'!Z109),9))","v":0.99993561799999997},{"$f":"VALUE(FIXED(EXP(AA$4*-1*'PM2.5 reduction'!AA109),9))","v":0.99995377900000004},{"$f":"VALUE(FIXED(EXP(AB$4*-1*'PM2.5 reduction'!AB109),9))","v":0.99995300899999995},{"$f":"VALUE(FIXED(EXP(AC$4*-1*'PM2.5 reduction'!AC109),9))","v":0.99994770499999996},{"$f":"VALUE(FIXED(EXP(AD$4*-1*'PM2.5 reduction'!AD109),9))","v":0.99998849400000001},{"$f":"VALUE(FIXED(EXP(AE$4*-1*'PM2.5 reduction'!AE109),9))","v":0.99998722699999998},{"$f":"VALUE(FIXED(EXP(AF$4*-1*'PM2.5 reduction'!AF109),9))","v":0.99996871399999998},{"$f":"VALUE(FIXED(EXP(AG$4*-1*'PM2.5 reduction'!AG109),9))","v":0.99998722699999998},{"$f":"VALUE(FIXED(EXP(AH$4*-1*'PM2.5 reduction'!AH109),9))","v":0.99996053500000004},{"$f":"VALUE(FIXED(EXP(AI$4*-1*'PM2.5 reduction'!AI109),9))","v":0.99995318899999996},{"$f":"VALUE(FIXED(EXP(AJ$4*-1*'PM2.5 reduction'!AJ109),9))","v":0.99996784699999997},{"$f":"VALUE(FIXED(EXP(AK$4*-1*'PM2.5 reduction'!AK109),9))","v":0.99998704599999999},{"$f":"VALUE(FIXED(EXP(AL$4*-1*'PM2.5 reduction'!AL109),9))","v":0.999981546},{"$f":"VALUE(FIXED(EXP(AM$4*-1*'PM2.5 reduction'!AM109),9))","v":0.99995703700000005},{"$f":"VALUE(FIXED(EXP(AN$4*-1*'PM2.5 reduction'!AN109),9))","v":0.99998765899999997},{"$f":"VALUE(FIXED(EXP(AO$4*-1*'PM2.5 reduction'!AO109),9))","v":0.99998765899999997},{"$f":"VALUE(FIXED(EXP(AP$4*-1*'PM2.5 reduction'!AP109),9))","v":0.99997335600000004},{"$f":"VALUE(FIXED(EXP(AQ$4*-1*'PM2.5 reduction'!AQ109),9))","v":0.99996170600000001},{"$f":"VALUE(FIXED(EXP(AR$4*-1*'PM2.5 reduction'!AR109),9))","v":0.99996052000000002},{"$f":"VALUE(FIXED(EXP(AS$4*-1*'PM2.5 reduction'!AS109),9))","v":0.99998637400000001},{"$f":"VALUE(FIXED(EXP(AT$4*-1*'PM2.5 reduction'!AT109),9))","v":1},{"$f":"VALUE(FIXED(EXP(AU$4*-1*'PM2.5 reduction'!AU109),9))","v":1},{"$f":"VALUE(FIXED(EXP(AV$4*-1*'PM2.5 reduction'!AV109),9))","v":0.99997903499999996},{"$f":"VALUE(FIXED(EXP(AW$4*-1*'PM2.5 reduction'!AW109),9))","v":0.99996434599999995},{"$f":"VALUE(FIXED(EXP(AX$4*-1*'PM2.5 reduction'!AX109),9))","v":0.99997061300000001},{"$f":"VALUE(FIXED(EXP(AY$4*-1*'PM2.5 reduction'!AY109),9))","v":0.99996605000000005},{"$f":"VALUE(FIXED(EXP(AZ$4*-1*'PM2.5 reduction'!AZ109),9))","v":0.999962511},{"$f":"VALUE(FIXED(EXP(BA$4*-1*'PM2.5 reduction'!BA109),9))","v":0.99996142700000001},{"$f":"VALUE(FIXED(EXP(BB$4*-1*'PM2.5 reduction'!BB109),9))","v":0.99996457299999997},{"$f":"VALUE(FIXED(EXP(BC$4*-1*'PM2.5 reduction'!BC109),9))","v":0.99999088000000003}]
[null,"Female 60-64",{"$f":"VALUE(FIXED(EXP(C$4*-1*'PM2.5 reduction'!C110),9))","v":0.99993636299999999},{"$f":"VALUE(FIXED(EXP(D$4*-1*'PM2.5 reduction'!D110),9))","v":0.99994431800000005},{"$f":"VALUE(FIXED(EXP(E$4*-1*'PM2.5 reduction'!E110),9))","v":0.99998292099999997},{"$f":"VALUE(FIXED(EXP(F$4*-1*'PM2.5 reduction'!F110),9))","v":0.99998481800000005},{"$f":"VALUE(FIXED(EXP(G$4*-1*'PM2.5 reduction'!G110),9))","v":0.99999265999999998},{"$f":"VALUE(FIXED(EXP(H$4*-1*'PM2.5 reduction'!H110),9))","v":0.99998200100000001},{"$f":"VALUE(FIXED(EXP(I$4*-1*'PM2.5 reduction'!I110),9))","v":0.999986229},{"$f":"VALUE(FIXED(EXP(J$4*-1*'PM2.5 reduction'!J110),9))","v":0.99997233699999999},{"$f":"VALUE(FIXED(EXP(K$4*-1*'PM2.5 reduction'!K110),9))","v":0.99997253699999999},{"$f":"VALUE(FIXED(EXP(L$4*-1*'PM2.5 reduction'!L110),9))","v":0.99998738700000001},{"$f":"VALUE(FIXED(EXP(M$4*-1*'PM2.5 reduction'!M110),9))","v":0.99998738700000001},{"$f":"VALUE(FIXED(EXP(N$4*-1*'PM2.5 reduction'!N110),9))","v":0.99994619399999995},{"$f":"VALUE(FIXED(EXP(O$4*-1*'PM2.5 reduction'!O110),9))","v":0.99998388900000001},{"$f":"VALUE(FIXED(EXP(P$4*-1*'PM2.5 reduction'!P110),9))","v":0.999949109},{"$f":"VALUE(FIXED(EXP(Q$4*-1*'PM2.5 reduction'!Q110),9))","v":0.99997372399999995},{"$f":"VALUE(FIXED(EXP(R$4*-1*'PM2.5 reduction'!R110),9))","v":0.999960972},{"$f":"VALUE(FIXED(EXP(S$4*-1*'PM2.5 reduction'!S110),9))","v":0.999960022},{"$f":"VALUE(FIXED(EXP(T$4*-1*'PM2.5 reduction'!T110),9))","v":0.99992873900000001},{"$f":"VALUE(FIXED(EXP(U$4*-1*'PM2.5 reduction'!U110),9))","v":0.99999088000000003},{"$f":"VALUE(FIXED(EXP(V$4*-1*'PM2.5 reduction'!V110),9))","v":0.99996471399999998},{"$f":"VALUE(FIXED(EXP(W$4*-1*'PM2.5 reduction'!W110),9))","v":0.99996916300000005},{"$f":"VALUE(FIXED(EXP(X$4*-1*'PM2.5 reduction'!X110),9))","v":0.99996916300000005},{"$f":"VALUE(FIXED(EXP(Y$4*-1*'PM2.5 reduction'!Y110),9))","v":0.99996705399999997},{"$f":"VALUE(FIXED(EXP(Z$4*-1*'PM2.5 reduction'!Z110),9))","v":0.99993619300000003},{"$f":"VALUE(FIXED(EXP(AA$4*-1*'PM2.5 reduction'!AA110),9))","v":0.99995503699999999},{"$f":"VALUE(FIXED(EXP(AB$4*-1*'PM2.5 reduction'!AB110),9))","v":0.99995328500000003},{"$f":"VALUE(FIXED(EXP(AC$4*-1*'PM2.5 reduction'!AC110),9))","v":0.99994813100000002},{"$f":"VALUE(FIXED(EXP(AD$4*-1*'PM2.5 reduction'!AD110),9))","v":0.99998850800000005},{"$f":"VALUE(FIXED(EXP(AE$4*-1*'PM2.5 reduction'!AE110),9))","v":0.99998754099999998},{"$f":"VALUE(FIXED(EXP(AF$4*-1*'PM2.5 reduction'!AF110),9))","v":0.99996703799999997},{"$f":"VALUE(FIXED(EXP(AG$4*-1*'PM2.5 reduction'!AG110),9))","v":0.99998754099999998},{"$f":"VALUE(FIXED(EXP(AH$4*-1*'PM2.5 reduction'!AH110),9))","v":0.99996168200000002},{"$f":"VALUE(FIXED(EXP(AI$4*-1*'PM2.5 reduction'!AI110),9))","v":0.99995350500000002},{"$f":"VALUE(FIXED(EXP(AJ$4*-1*'PM2.5 reduction'!AJ110),9))","v":0.99996724800000003},{"$f":"VALUE(FIXED(EXP(AK$4*-1*'PM2.5 reduction'!AK110),9))","v":0.99998529800000002},{"$f":"VALUE(FIXED(EXP(AL$4*-1*'PM2.5 reduction'!AL110),9))","v":0.99998127000000003},{"$f":"VALUE(FIXED(EXP(AM$4*-1*'PM2.5 reduction'!AM110),9))","v":0.99995849299999995},{"$f":"VALUE(FIXED(EXP(AN$4*-1*'PM2.5 reduction'!AN110),9))","v":0.99998785899999998},{"$f":"VALUE(FIXED(EXP(AO$4*-1*'PM2.5 reduction'!AO110),9))","v":0.99998785899999998},{"$f":"VALUE(FIXED(EXP(AP$4*-1*'PM2.5 reduction'!AP110),9))","v":0.99997539800000002},{"$f":"VALUE(FIXED(EXP(AQ$4*-1*'PM2.5 reduction'!AQ110),9))","v":0.99996149400000001},{"$f":"VALUE(FIXED(EXP(AR$4*-1*'PM2.5 reduction'!AR110),9))","v":0.99996138099999998},{"$f":"VALUE(FIXED(EXP(AS$4*-1*'PM2.5 reduction'!AS110),9))","v":0.999986229},{"$f":"VALUE(FIXED(EXP(AT$4*-1*'PM2.5 reduction'!AT110),9))","v":1},{"$f":"VALUE(FIXED(EXP(AU$4*-1*'PM2.5 reduction'!AU110),9))","v":1},{"$f":"VALUE(FIXED(EXP(AV$4*-1*'PM2.5 reduction'!AV110),9))","v":0.99998045700000004},{"$f":"VALUE(FIXED(EXP(AW$4*-1*'PM2.5 reduction'!AW110),9))","v":0.99996527999999996},{"$f":"VALUE(FIXED(EXP(AX$4*-1*'PM2.5 reduction'!AX110),9))","v":0.99997213799999995},{"$f":"VALUE(FIXED(EXP(AY$4*-1*'PM2.5 reduction'!AY110),9))","v":0.99996666999999995},{"$f":"VALUE(FIXED(EXP(AZ$4*-1*'PM2.5 reduction'!AZ110),9))","v":0.99996351900000002},{"$f":"VALUE(FIXED(EXP(BA$4*-1*'PM2.5 reduction'!BA110),9))","v":0.99996170799999995},{"$f":"VALUE(FIXED(EXP(BB$4*-1*'PM2.5 reduction'!BB110),9))","v":0.99996437599999999},{"$f":"VALUE(FIXED(EXP(BC$4*-1*'PM2.5 reduction'!BC110),9))","v":0.99999088000000003}]
[null,"Female 65-69",{"$f":"VALUE(FIXED(EXP(C$4*-1*'PM2.5 reduction'!C111),9))","v":0.99993458099999999},{"$f":"VALUE(FIXED(EXP(D$4*-1*'PM2.5 reduction'!D111),9))","v":0.99994417899999999},{"$f":"VALUE(FIXED(EXP(E$4*-1*'PM2.5 reduction'!E111),9))","v":0.99998085800000003},{"$f":"VALUE(FIXED(EXP(F$4*-1*'PM2.5 reduction'!F111),9))","v":0.99998484799999998},{"$f":"VALUE(FIXED(EXP(G$4*-1*'PM2.5 reduction'!G111),9))","v":0.99999266799999997},{"$f":"VALUE(FIXED(EXP(H$4*-1*'PM2.5 reduction'!H111),9))","v":0.99998183500000004},{"$f":"VALUE(FIXED(EXP(I$4*-1*'PM2.5 reduction'!I111),9))","v":0.99998669900000003},{"$f":"VALUE(FIXED(EXP(J$4*-1*'PM2.5 reduction'!J111),9))","v":0.99997085699999999},{"$f":"VALUE(FIXED(EXP(K$4*-1*'PM2.5 reduction'!K111),9))","v":0.99997112600000004},{"$f":"VALUE(FIXED(EXP(L$4*-1*'PM2.5 reduction'!L111),9))","v":0.99998755399999995},{"$f":"VALUE(FIXED(EXP(M$4*-1*'PM2.5 reduction'!M111),9))","v":0.99998755399999995},{"$f":"VALUE(FIXED(EXP(N$4*-1*'PM2.5 reduction'!N111),9))","v":0.99994616700000005},{"$f":"VALUE(FIXED(EXP(O$4*-1*'PM2.5 reduction'!O111),9))","v":0.99998361499999999},{"$f":"VALUE(FIXED(EXP(P$4*-1*'PM2.5 reduction'!P111),9))","v":0.99994910299999995},{"$f":"VALUE(FIXED(EXP(Q$4*-1*'PM2.5 reduction'!Q111),9))","v":0.99997257299999998},{"$f":"VALUE(FIXED(EXP(R$4*-1*'PM2.5 reduction'!R111),9))","v":0.99996194699999996},{"$f":"VALUE(FIXED(EXP(S$4*-1*'PM2.5 reduction'!S111),9))","v":0.99996082399999997},{"$f":"VALUE(FIXED(EXP(T$4*-1*'PM2.5 reduction'!T111),9))","v":0.99993023599999997},{"$f":"VALUE(FIXED(EXP(U$4*-1*'PM2.5 reduction'!U111),9))","v":0.99999088000000003},{"$f":"VALUE(FIXED(EXP(V$4*-1*'PM2.5 reduction'!V111),9))","v":0.999964521},{"$f":"VALUE(FIXED(EXP(W$4*-1*'PM2.5 reduction'!W111),9))","v":0.99996909700000003},{"$f":"VALUE(FIXED(EXP(X$4*-1*'PM2.5 reduction'!X111),9))","v":0.99996909700000003},{"$f":"VALUE(FIXED(EXP(Y$4*-1*'PM2.5 reduction'!Y111),9))","v":0.99996657899999997},{"$f":"VALUE(FIXED(EXP(Z$4*-1*'PM2.5 reduction'!Z111),9))","v":0.99993637000000002},{"$f":"VALUE(FIXED(EXP(AA$4*-1*'PM2.5 reduction'!AA111),9))","v":0.99995570199999995},{"$f":"VALUE(FIXED(EXP(AB$4*-1*'PM2.5 reduction'!AB111),9))","v":0.99995313900000005},{"$f":"VALUE(FIXED(EXP(AC$4*-1*'PM2.5 reduction'!AC111),9))","v":0.99994904200000001},{"$f":"VALUE(FIXED(EXP(AD$4*-1*'PM2.5 reduction'!AD111),9))","v":0.99998837299999999},{"$f":"VALUE(FIXED(EXP(AE$4*-1*'PM2.5 reduction'!AE111),9))","v":0.99998728299999995},{"$f":"VALUE(FIXED(EXP(AF$4*-1*'PM2.5 reduction'!AF111),9))","v":0.99996792499999998},{"$f":"VALUE(FIXED(EXP(AG$4*-1*'PM2.5 reduction'!AG111),9))","v":0.99998728299999995},{"$f":"VALUE(FIXED(EXP(AH$4*-1*'PM2.5 reduction'!AH111),9))","v":0.99996226499999996},{"$f":"VALUE(FIXED(EXP(AI$4*-1*'PM2.5 reduction'!AI111),9))","v":0.99995442400000001},{"$f":"VALUE(FIXED(EXP(AJ$4*-1*'PM2.5 reduction'!AJ111),9))","v":0.99996890599999999},{"$f":"VALUE(FIXED(EXP(AK$4*-1*'PM2.5 reduction'!AK111),9))","v":0.99998622000000004},{"$f":"VALUE(FIXED(EXP(AL$4*-1*'PM2.5 reduction'!AL111),9))","v":0.99998130100000004},{"$f":"VALUE(FIXED(EXP(AM$4*-1*'PM2.5 reduction'!AM111),9))","v":0.999959229},{"$f":"VALUE(FIXED(EXP(AN$4*-1*'PM2.5 reduction'!AN111),9))","v":0.99998791899999995},{"$f":"VALUE(FIXED(EXP(AO$4*-1*'PM2.5 reduction'!AO111),9))","v":0.99998791899999995},{"$f":"VALUE(FIXED(EXP(AP$4*-1*'PM2.5 reduction'!AP111),9))","v":0.99997410900000006},{"$f":"VALUE(FIXED(EXP(AQ$4*-1*'PM2.5 reduction'!AQ111),9))","v":0.99996104200000002},{"$f":"VALUE(FIXED(EXP(AR$4*-1*'PM2.5 reduction'!AR111),9))","v":0.99996202000000001},{"$f":"VALUE(FIXED(EXP(AS$4*-1*'PM2.5 reduction'!AS111),9))","v":0.99998669900000003},{"$f":"VALUE(FIXED(EXP(AT$4*-1*'PM2.5 reduction'!AT111),9))","v":1},{"$f":"VALUE(FIXED(EXP(AU$4*-1*'PM2.5 reduction'!AU111),9))","v":1},{"$f":"VALUE(FIXED(EXP(AV$4*-1*'PM2.5 reduction'!AV111),9))","v":0.999980227},{"$f":"VALUE(FIXED(EXP(AW$4*-1*'PM2.5 reduction'!AW111),9))","v":0.99996567700000005},{"$f":"VALUE(FIXED(EXP(AX$4*-1*'PM2.5 reduction'!AX111),9))","v":0.99997055800000001},{"$f":"VALUE(FIXED(EXP(AY$4*-1*'PM2.5 reduction'!AY111),9))","v":0.99996643699999999},{"$f":"VALUE(FIXED(EXP(AZ$4*-1*'PM2.5 reduction'!AZ111),9))","v":0.99996296200000001},{"$f":"VALUE(FIXED(EXP(BA$4*-1*'PM2.5 reduction'!BA111),9))","v":0.99995971299999997},{"$f":"VALUE(FIXED(EXP(BB$4*-1*'PM2.5 reduction'!BB111),9))","v":0.99996480499999996},{"$f":"VALUE(FIXED(EXP(BC$4*-1*'PM2.5 reduction'!BC111),9))","v":0.99999088000000003}]
[null,"Female 70-74",{"$f":"VALUE(FIXED(EXP(C$4*-1*'PM2.5 reduction'!C112),9))","v":0.99993566199999995},{"$f":"VALUE(FIXED(EXP(D$4*-1*'PM2.5 reduction'!D112),9))","v":0.99994622},{"$f":"VALUE(FIXED(EXP(E$4*-1*'PM2.5 reduction'!E112),9))","v":0.99998056999999996},{"$f":"VALUE(FIXED(EXP(F$4*-1*'PM2.5 reduction'!F112),9))","v":0.99998498099999999},{"$f":"VALUE(FIXED(EXP(G$4*-1*'PM2.5 reduction'!G112),9))","v":0.99999272400000006},{"$f":"VALUE(FIXED(EXP(H$4*-1*'PM2.5 reduction'!H112),9))","v":0.99998164599999995},{"$f":"VALUE(FIXED(EXP(I$4*-1*'PM2.5 reduction'!I112),9))","v":0.99998634600000003},{"$f":"VALUE(FIXED(EXP(J$4*-1*'PM2.5 reduction'!J112),9))","v":0.99997196799999999},{"$f":"VALUE(FIXED(EXP(K$4*-1*'PM2.5 reduction'!K112),9))","v":0.99997303999999998},{"$f":"VALUE(FIXED(EXP(L$4*-1*'PM2.5 reduction'!L112),9))","v":0.99998779999999998},{"$f":"VALUE(FIXED(EXP(M$4*-1*'PM2.5 reduction'!M112),9))","v":0.99998779999999998},{"$f":"VALUE(FIXED(EXP(N$4*-1*'PM2.5 reduction'!N112),9))","v":0.99994575600000002},{"$f":"VALUE(FIXED(EXP(O$4*-1*'PM2.5 reduction'!O112),9))","v":0.99998330899999999},{"$f":"VALUE(FIXED(EXP(P$4*-1*'PM2.5 reduction'!P112),9))","v":0.99994999100000004},{"$f":"VALUE(FIXED(EXP(Q$4*-1*'PM2.5 reduction'!Q112),9))","v":0.99997281999999998},{"$f":"VALUE(FIXED(EXP(R$4*-1*'PM2.5 reduction'!R112),9))","v":0.99996236800000005},{"$f":"VALUE(FIXED(EXP(S$4*-1*'PM2.5 reduction'!S112),9))","v":0.99996162600000005},{"$f":"VALUE(FIXED(EXP(T$4*-1*'PM2.5 reduction'!T112),9))","v":0.99993160599999997},{"$f":"VALUE(FIXED(EXP(U$4*-1*'PM2.5 reduction'!U112),9))","v":0.99999088000000003},{"$f":"VALUE(FIXED(EXP(V$4*-1*'PM2.5 reduction'!V112),9))","v":0.99996378200000002},{"$f":"VALUE(FIXED(EXP(W$4*-1*'PM2.5 reduction'!W112),9))","v":0.99996910500000002},{"$f":"VALUE(FIXED(EXP(X$4*-1*'PM2.5 reduction'!X112),9))","v":0.99996910500000002},{"$f":"VALUE(FIXED(EXP(Y$4*-1*'PM2.5 reduction'!Y112),9))","v":0.99996638500000001},{"$f":"VALUE(FIXED(EXP(Z$4*-1*'PM2.5 reduction'!Z112),9))","v":0.99993605500000005},{"$f":"VALUE(FIXED(EXP(AA$4*-1*'PM2.5 reduction'!AA112),9))","v":0.99995515300000004},{"$f":"VALUE(FIXED(EXP(AB$4*-1*'PM2.5 reduction'!AB112),9))","v":0.99995536100000004},{"$f":"VALUE(FIXED(EXP(AC$4*-1*'PM2.5 reduction'!AC112),9))","v":0.99994905599999995},{"$f":"VALUE(FIXED(EXP(AD$4*-1*'PM2.5 reduction'!AD112),9))","v":0.99998865100000001},{"$f":"VALUE(FIXED(EXP(AE$4*-1*'PM2.5 reduction'!AE112),9))","v":0.99998751900000005},{"$f":"VALUE(FIXED(EXP(AF$4*-1*'PM2.5 reduction'!AF112),9))","v":0.99996689999999999},{"$f":"VALUE(FIXED(EXP(AG$4*-1*'PM2.5 reduction'!AG112),9))","v":0.99998751900000005},{"$f":"VALUE(FIXED(EXP(AH$4*-1*'PM2.5 reduction'!AH112),9))","v":0.99996074300000004},{"$f":"VALUE(FIXED(EXP(AI$4*-1*'PM2.5 reduction'!AI112),9))","v":0.99995542900000001},{"$f":"VALUE(FIXED(EXP(AJ$4*-1*'PM2.5 reduction'!AJ112),9))","v":0.99996802299999998},{"$f":"VALUE(FIXED(EXP(AK$4*-1*'PM2.5 reduction'!AK112),9))","v":0.99998585200000001},{"$f":"VALUE(FIXED(EXP(AL$4*-1*'PM2.5 reduction'!AL112),9))","v":0.99998068500000004},{"$f":"VALUE(FIXED(EXP(AM$4*-1*'PM2.5 reduction'!AM112),9))","v":0.99995804099999996},{"$f":"VALUE(FIXED(EXP(AN$4*-1*'PM2.5 reduction'!AN112),9))","v":0.99998842499999996},{"$f":"VALUE(FIXED(EXP(AO$4*-1*'PM2.5 reduction'!AO112),9))","v":0.99998842499999996},{"$f":"VALUE(FIXED(EXP(AP$4*-1*'PM2.5 reduction'!AP112),9))","v":0.99997484800000003},{"$f":"VALUE(FIXED(EXP(AQ$4*-1*'PM2.5 reduction'!AQ112),9))","v":0.99996106500000004},{"$f":"VALUE(FIXED(EXP(AR$4*-1*'PM2.5 reduction'!AR112),9))","v":0.99996222300000004},{"$f":"VALUE(FIXED(EXP(AS$4*-1*'PM2.5 reduction'!AS112),9))","v":0.99998634600000003},{"$f":"VALUE(FIXED(EXP(AT$4*-1*'PM2.5 reduction'!AT112),9))","v":1},{"$f":"VALUE(FIXED(EXP(AU$4*-1*'PM2.5 reduction'!AU112),9))","v":1},{"$f":"VALUE(FIXED(EXP(AV$4*-1*'PM2.5 reduction'!AV112),9))","v":0.99998059299999997},{"$f":"VALUE(FIXED(EXP(AW$4*-1*'PM2.5 reduction'!AW112),9))","v":0.99996392599999995},{"$f":"VALUE(FIXED(EXP(AX$4*-1*'PM2.5 reduction'!AX112),9))","v":0.99997093000000004},{"$f":"VALUE(FIXED(EXP(AY$4*-1*'PM2.5 reduction'!AY112),9))","v":0.99996663299999999},{"$f":"VALUE(FIXED(EXP(AZ$4*-1*'PM2.5 reduction'!AZ112),9))","v":0.99996357199999997},{"$f":"VALUE(FIXED(EXP(BA$4*-1*'PM2.5 reduction'!BA112),9))","v":0.99995931900000001},{"$f":"VALUE(FIXED(EXP(BB$4*-1*'PM2.5 reduction'!BB112),9))","v":0.99996489099999997},{"$f":"VALUE(FIXED(EXP(BC$4*-1*'PM2.5 reduction'!BC112),9))","v":0.99999088000000003}]
[null,"Female 75-79",{"$f":"VALUE(FIXED(EXP(C$4*-1*'PM2.5 reduction'!C113),9))","v":0.99993347200000005},{"$f":"VALUE(FIXED(EXP(D$4*-1*'PM2.5 reduction'!D113),9))","v":0.99994324700000004},{"$f":"VALUE(FIXED(EXP(E$4*-1*'PM2.5 reduction'!E113),9))","v":0.99998028999999999},{"$f":"VALUE(FIXED(EXP(F$4*-1*'PM2.5 reduction'!F113),9))","v":0.999984545},{"$f":"VALUE(FIXED(EXP(G$4*-1*'PM2.5 reduction'!G113),9))","v":0.99999258300000005},{"$f":"VALUE(FIXED(EXP(H$4*-1*'PM2.5 reduction'!H113),9))","v":0.99998134599999999},{"$f":"VALUE(FIXED(EXP(I$4*-1*'PM2.5 reduction'!I113),9))","v":0.999986292},{"$f":"VALUE(FIXED(EXP(J$4*-1*'PM2.5 reduction'!J113),9))","v":0.99997085500000005},{"$f":"VALUE(FIXED(EXP(K$4*-1*'PM2.5 reduction'!K113),9))","v":0.99997044000000002},{"$f":"VALUE(FIXED(EXP(L$4*-1*'PM2.5 reduction'!L113),9))","v":0.99998749899999995},{"$f":"VALUE(FIXED(EXP(M$4*-1*'PM2.5 reduction'!M113),9))","v":0.99998749899999995},{"$f":"VALUE(FIXED(EXP(N$4*-1*'PM2.5 reduction'!N113),9))","v":0.99994704300000004},{"$f":"VALUE(FIXED(EXP(O$4*-1*'PM2.5 reduction'!O113),9))","v":0.99998220299999996},{"$f":"VALUE(FIXED(EXP(P$4*-1*'PM2.5 reduction'!P113),9))","v":0.99994894899999998},{"$f":"VALUE(FIXED(EXP(Q$4*-1*'PM2.5 reduction'!Q113),9))","v":0.999972631},{"$f":"VALUE(FIXED(EXP(R$4*-1*'PM2.5 reduction'!R113),9))","v":0.99996170799999995},{"$f":"VALUE(FIXED(EXP(S$4*-1*'PM2.5 reduction'!S113),9))","v":0.99996046000000005},{"$f":"VALUE(FIXED(EXP(T$4*-1*'PM2.5 reduction'!T113),9))","v":0.99993067000000002},{"$f":"VALUE(FIXED(EXP(U$4*-1*'PM2.5 reduction'!U113),9))","v":0.99999088000000003},{"$f":"VALUE(FIXED(EXP(V$4*-1*'PM2.5 reduction'!V113),9))","v":0.99996337499999999},{"$f":"VALUE(FIXED(EXP(W$4*-1*'PM2.5 reduction'!W113),9))","v":0.99996831100000005},{"$f":"VALUE(FIXED(EXP(X$4*-1*'PM2.5 reduction'!X113),9))","v":0.99996831100000005},{"$f":"VALUE(FIXED(EXP(Y$4*-1*'PM2.5 reduction'!Y113),9))","v":0.99996581699999998},{"$f":"VALUE(FIXED(EXP(Z$4*-1*'PM2.5 reduction'!Z113),9))","v":0.99993584499999999},{"$f":"VALUE(FIXED(EXP(AA$4*-1*'PM2.5 reduction'!AA113),9))","v":0.99995409899999999},{"$f":"VALUE(FIXED(EXP(AB$4*-1*'PM2.5 reduction'!AB113),9))","v":0.99995236300000001},{"$f":"VALUE(FIXED(EXP(AC$4*-1*'PM2.5 reduction'!AC113),9))","v":0.99994839899999999},{"$f":"VALUE(FIXED(EXP(AD$4*-1*'PM2.5 reduction'!AD113),9))","v":0.999988035},{"$f":"VALUE(FIXED(EXP(AE$4*-1*'PM2.5 reduction'!AE113),9))","v":0.99998670999999995},{"$f":"VALUE(FIXED(EXP(AF$4*-1*'PM2.5 reduction'!AF113),9))","v":0.999966464},{"$f":"VALUE(FIXED(EXP(AG$4*-1*'PM2.5 reduction'!AG113),9))","v":0.99998670999999995},{"$f":"VALUE(FIXED(EXP(AH$4*-1*'PM2.5 reduction'!AH113),9))","v":0.99996004500000002},{"$f":"VALUE(FIXED(EXP(AI$4*-1*'PM2.5 reduction'!AI113),9))","v":0.99995434999999999},{"$f":"VALUE(FIXED(EXP(AJ$4*-1*'PM2.5 reduction'!AJ113),9))","v":0.99996827799999999},{"$f":"VALUE(FIXED(EXP(AK$4*-1*'PM2.5 reduction'!AK113),9))","v":0.999986021},{"$f":"VALUE(FIXED(EXP(AL$4*-1*'PM2.5 reduction'!AL113),9))","v":0.99998062600000004},{"$f":"VALUE(FIXED(EXP(AM$4*-1*'PM2.5 reduction'!AM113),9))","v":0.99995766600000002},{"$f":"VALUE(FIXED(EXP(AN$4*-1*'PM2.5 reduction'!AN113),9))","v":0.99998822099999995},{"$f":"VALUE(FIXED(EXP(AO$4*-1*'PM2.5 reduction'!AO113),9))","v":0.99998822099999995},{"$f":"VALUE(FIXED(EXP(AP$4*-1*'PM2.5 reduction'!AP113),9))","v":0.99997446099999998},{"$f":"VALUE(FIXED(EXP(AQ$4*-1*'PM2.5 reduction'!AQ113),9))","v":0.99996150699999997},{"$f":"VALUE(FIXED(EXP(AR$4*-1*'PM2.5 reduction'!AR113),9))","v":0.99996093900000005},{"$f":"VALUE(FIXED(EXP(AS$4*-1*'PM2.5 reduction'!AS113),9))","v":0.999986292},{"$f":"VALUE(FIXED(EXP(AT$4*-1*'PM2.5 reduction'!AT113),9))","v":1},{"$f":"VALUE(FIXED(EXP(AU$4*-1*'PM2.5 reduction'!AU113),9))","v":1},{"$f":"VALUE(FIXED(EXP(AV$4*-1*'PM2.5 reduction'!AV113),9))","v":0.99998101399999995},{"$f":"VALUE(FIXED(EXP(AW$4*-1*'PM2.5 reduction'!AW113),9))","v":0.99996271599999997},{"$f":"VALUE(FIXED(EXP(AX$4*-1*'PM2.5 reduction'!AX113),9))","v":0.999971155},{"$f":"VALUE(FIXED(EXP(AY$4*-1*'PM2.5 reduction'!AY113),9))","v":0.99996549599999995},{"$f":"VALUE(FIXED(EXP(AZ$4*-1*'PM2.5 reduction'!AZ113),9))","v":0.99996222599999995},{"$f":"VALUE(FIXED(EXP(BA$4*-1*'PM2.5 reduction'!BA113),9))","v":0.999959767},{"$f":"VALUE(FIXED(EXP(BB$4*-1*'PM2.5 reduction'!BB113),9))","v":0.99996528399999995},{"$f":"VALUE(FIXED(EXP(BC$4*-1*'PM2.5 reduction'!BC113),9))","v":0.99999088000000003}]
[null,"Female 80-84",{"$f":"VALUE(FIXED(EXP(C$4*-1*'PM2.5 reduction'!C114),9))","v":0.99993348199999998},{"$f":"VALUE(FIXED(EXP(D$4*-1*'PM2.5 reduction'!D114),9))","v":0.99994265400000004},{"$f":"VALUE(FIXED(EXP(E$4*-1*'PM2.5 reduction'!E114),9))","v":0.99997795700000003},{"$f":"VALUE(FIXED(EXP(F$4*-1*'PM2.5 reduction'!F114),9))","v":0.99998410100000001},{"$f":"VALUE(FIXED(EXP(G$4*-1*'PM2.5 reduction'!G114),9))","v":0.99999202399999998},{"$f":"VALUE(FIXED(EXP(H$4*-1*'PM2.5 reduction'!H114),9))","v":0.99998071600000005},{"$f":"VALUE(FIXED(EXP(I$4*-1*'PM2.5 reduction'!I114),9))","v":0.99998630499999996},{"$f":"VALUE(FIXED(EXP(J$4*-1*'PM2.5 reduction'!J114),9))","v":0.99997163099999997},{"$f":"VALUE(FIXED(EXP(K$4*-1*'PM2.5 reduction'!K114),9))","v":0.99997146100000001},{"$f":"VALUE(FIXED(EXP(L$4*-1*'PM2.5 reduction'!L114),9))","v":0.99998641200000005},{"$f":"VALUE(FIXED(EXP(M$4*-1*'PM2.5 reduction'!M114),9))","v":0.99998641200000005},{"$f":"VALUE(FIXED(EXP(N$4*-1*'PM2.5 reduction'!N114),9))","v":0.999948214},{"$f":"VALUE(FIXED(EXP(O$4*-1*'PM2.5 reduction'!O114),9))","v":0.99998182400000002},{"$f":"VALUE(FIXED(EXP(P$4*-1*'PM2.5 reduction'!P114),9))","v":0.99995036299999995},{"$f":"VALUE(FIXED(EXP(Q$4*-1*'PM2.5 reduction'!Q114),9))","v":0.99997243300000005},{"$f":"VALUE(FIXED(EXP(R$4*-1*'PM2.5 reduction'!R114),9))","v":0.99996174800000004},{"$f":"VALUE(FIXED(EXP(S$4*-1*'PM2.5 reduction'!S114),9))","v":0.99996046599999999},{"$f":"VALUE(FIXED(EXP(T$4*-1*'PM2.5 reduction'!T114),9))","v":0.99992976},{"$f":"VALUE(FIXED(EXP(U$4*-1*'PM2.5 reduction'!U114),9))","v":0.99999088000000003},{"$f":"VALUE(FIXED(EXP(V$4*-1*'PM2.5 reduction'!V114),9))","v":0.99996317099999998},{"$f":"VALUE(FIXED(EXP(W$4*-1*'PM2.5 reduction'!W114),9))","v":0.99996864200000002},{"$f":"VALUE(FIXED(EXP(X$4*-1*'PM2.5 reduction'!X114),9))","v":0.99996864200000002},{"$f":"VALUE(FIXED(EXP(Y$4*-1*'PM2.5 reduction'!Y114),9))","v":0.99996573899999996},{"$f":"VALUE(FIXED(EXP(Z$4*-1*'PM2.5 reduction'!Z114),9))","v":0.99993731500000005},{"$f":"VALUE(FIXED(EXP(AA$4*-1*'PM2.5 reduction'!AA114),9))","v":0.99995400999999995},{"$f":"VALUE(FIXED(EXP(AB$4*-1*'PM2.5 reduction'!AB114),9))","v":0.99995067299999996},{"$f":"VALUE(FIXED(EXP(AC$4*-1*'PM2.5 reduction'!AC114),9))","v":0.99994881300000005},{"$f":"VALUE(FIXED(EXP(AD$4*-1*'PM2.5 reduction'!AD114),9))","v":0.99998797100000003},{"$f":"VALUE(FIXED(EXP(AE$4*-1*'PM2.5 reduction'!AE114),9))","v":0.99998659400000001},{"$f":"VALUE(FIXED(EXP(AF$4*-1*'PM2.5 reduction'!AF114),9))","v":0.99996719899999997},{"$f":"VALUE(FIXED(EXP(AG$4*-1*'PM2.5 reduction'!AG114),9))","v":0.99998659400000001},{"$f":"VALUE(FIXED(EXP(AH$4*-1*'PM2.5 reduction'!AH114),9))","v":0.99996003},{"$f":"VALUE(FIXED(EXP(AI$4*-1*'PM2.5 reduction'!AI114),9))","v":0.99995352800000004},{"$f":"VALUE(FIXED(EXP(AJ$4*-1*'PM2.5 reduction'!AJ114),9))","v":0.99996805099999997},{"$f":"VALUE(FIXED(EXP(AK$4*-1*'PM2.5 reduction'!AK114),9))","v":0.99998605799999996},{"$f":"VALUE(FIXED(EXP(AL$4*-1*'PM2.5 reduction'!AL114),9))","v":0.99998120099999999},{"$f":"VALUE(FIXED(EXP(AM$4*-1*'PM2.5 reduction'!AM114),9))","v":0.99995767999999996},{"$f":"VALUE(FIXED(EXP(AN$4*-1*'PM2.5 reduction'!AN114),9))","v":0.99998816499999998},{"$f":"VALUE(FIXED(EXP(AO$4*-1*'PM2.5 reduction'!AO114),9))","v":0.99998816499999998},{"$f":"VALUE(FIXED(EXP(AP$4*-1*'PM2.5 reduction'!AP114),9))","v":0.99997319299999998},{"$f":"VALUE(FIXED(EXP(AQ$4*-1*'PM2.5 reduction'!AQ114),9))","v":0.999961761},{"$f":"VALUE(FIXED(EXP(AR$4*-1*'PM2.5 reduction'!AR114),9))","v":0.99996065199999995},{"$f":"VALUE(FIXED(EXP(AS$4*-1*'PM2.5 reduction'!AS114),9))","v":0.99998630499999996},{"$f":"VALUE(FIXED(EXP(AT$4*-1*'PM2.5 reduction'!AT114),9))","v":1},{"$f":"VALUE(FIXED(EXP(AU$4*-1*'PM2.5 reduction'!AU114),9))","v":1},{"$f":"VALUE(FIXED(EXP(AV$4*-1*'PM2.5 reduction'!AV114),9))","v":0.99997887900000004},{"$f":"VALUE(FIXED(EXP(AW$4*-1*'PM2.5 reduction'!AW114),9))","v":0.99996256800000005},{"$f":"VALUE(FIXED(EXP(AX$4*-1*'PM2.5 reduction'!AX114),9))","v":0.99997177299999995},{"$f":"VALUE(FIXED(EXP(AY$4*-1*'PM2.5 reduction'!AY114),9))","v":0.99996585800000004},{"$f":"VALUE(FIXED(EXP(AZ$4*-1*'PM2.5 reduction'!AZ114),9))","v":0.99996272600000002},{"$f":"VALUE(FIXED(EXP(BA$4*-1*'PM2.5 reduction'!BA114),9))","v":0.99996067499999997},{"$f":"VALUE(FIXED(EXP(BB$4*-1*'PM2.5 reduction'!BB114),9))","v":0.99996533399999998},{"$f":"VALUE(FIXED(EXP(BC$4*-1*'PM2.5 reduction'!BC114),9))","v":0.99999088000000003}]
[null,"Female 85-89",{"$f":"VALUE(FIXED(EXP(C$4*-1*'PM2.5 reduction'!C115),9))","v":0.99993462200000005},{"$f":"VALUE(FIXED(EXP(D$4*-1*'PM2.5 reduction'!D115),9))","v":0.99994521300000005},{"$f":"VALUE(FIXED(EXP(E$4*-1*'PM2.5 reduction'!E115),9))","v":0.99998166099999997},{"$f":"VALUE(FIXED(EXP(F$4*-1*'PM2.5 reduction'!F115),9))","v":0.99998402500000005},{"$f":"VALUE(FIXED(EXP(G$4*-1*'PM2.5 reduction'!G115),9))","v":0.99999213099999995},{"$f":"VALUE(FIXED(EXP(H$4*-1*'PM2.5 reduction'!H115),9))","v":0.999979426},{"$f":"VALUE(FIXED(EXP(I$4*-1*'PM2.5 reduction'!I115),9))","v":0.99998650600000005},{"$f":"VALUE(FIXED(EXP(J$4*-1*'PM2.5 reduction'!J115),9))","v":0.99997156700000001},{"$f":"VALUE(FIXED(EXP(K$4*-1*'PM2.5 reduction'!K115),9))","v":0.99996951999999995},{"$f":"VALUE(FIXED(EXP(L$4*-1*'PM2.5 reduction'!L115),9))","v":0.99998690999999995},{"$f":"VALUE(FIXED(EXP(M$4*-1*'PM2.5 reduction'!M115),9))","v":0.99998690999999995},{"$f":"VALUE(FIXED(EXP(N$4*-1*'PM2.5 reduction'!N115),9))","v":0.99994646099999995},{"$f":"VALUE(FIXED(EXP(O$4*-1*'PM2.5 reduction'!O115),9))","v":0.99998047999999995},{"$f":"VALUE(FIXED(EXP(P$4*-1*'PM2.5 reduction'!P115),9))","v":0.999949325},{"$f":"VALUE(FIXED(EXP(Q$4*-1*'PM2.5 reduction'!Q115),9))","v":0.99997062000000003},{"$f":"VALUE(FIXED(EXP(R$4*-1*'PM2.5 reduction'!R115),9))","v":0.99996185599999998},{"$f":"VALUE(FIXED(EXP(S$4*-1*'PM2.5 reduction'!S115),9))","v":0.99995898299999997},{"$f":"VALUE(FIXED(EXP(T$4*-1*'PM2.5 reduction'!T115),9))","v":0.99992892899999997},{"$f":"VALUE(FIXED(EXP(U$4*-1*'PM2.5 reduction'!U115),9))","v":0.99999088000000003},{"$f":"VALUE(FIXED(EXP(V$4*-1*'PM2.5 reduction'!V115),9))","v":0.99996473500000005},{"$f":"VALUE(FIXED(EXP(W$4*-1*'PM2.5 reduction'!W115),9))","v":0.99996737899999999},{"$f":"VALUE(FIXED(EXP(X$4*-1*'PM2.5 reduction'!X115),9))","v":0.99996737899999999},{"$f":"VALUE(FIXED(EXP(Y$4*-1*'PM2.5 reduction'!Y115),9))","v":0.99996662999999997},{"$f":"VALUE(FIXED(EXP(Z$4*-1*'PM2.5 reduction'!Z115),9))","v":0.99993537700000001},{"$f":"VALUE(FIXED(EXP(AA$4*-1*'PM2.5 reduction'!AA115),9))","v":0.99995190599999995},{"$f":"VALUE(FIXED(EXP(AB$4*-1*'PM2.5 reduction'!AB115),9))","v":0.99995327099999998},{"$f":"VALUE(FIXED(EXP(AC$4*-1*'PM2.5 reduction'!AC115),9))","v":0.99994606900000005},{"$f":"VALUE(FIXED(EXP(AD$4*-1*'PM2.5 reduction'!AD115),9))","v":0.99998784600000001},{"$f":"VALUE(FIXED(EXP(AE$4*-1*'PM2.5 reduction'!AE115),9))","v":0.99998637999999995},{"$f":"VALUE(FIXED(EXP(AF$4*-1*'PM2.5 reduction'!AF115),9))","v":0.99996526600000002},{"$f":"VALUE(FIXED(EXP(AG$4*-1*'PM2.5 reduction'!AG115),9))","v":0.99998637999999995},{"$f":"VALUE(FIXED(EXP(AH$4*-1*'PM2.5 reduction'!AH115),9))","v":0.99995851000000002},{"$f":"VALUE(FIXED(EXP(AI$4*-1*'PM2.5 reduction'!AI115),9))","v":0.99995159600000005},{"$f":"VALUE(FIXED(EXP(AJ$4*-1*'PM2.5 reduction'!AJ115),9))","v":0.999969357},{"$f":"VALUE(FIXED(EXP(AK$4*-1*'PM2.5 reduction'!AK115),9))","v":0.99998530900000004},{"$f":"VALUE(FIXED(EXP(AL$4*-1*'PM2.5 reduction'!AL115),9))","v":0.99998078899999998},{"$f":"VALUE(FIXED(EXP(AM$4*-1*'PM2.5 reduction'!AM115),9))","v":0.999956811},{"$f":"VALUE(FIXED(EXP(AN$4*-1*'PM2.5 reduction'!AN115),9))","v":0.99998868500000004},{"$f":"VALUE(FIXED(EXP(AO$4*-1*'PM2.5 reduction'!AO115),9))","v":0.99998868500000004},{"$f":"VALUE(FIXED(EXP(AP$4*-1*'PM2.5 reduction'!AP115),9))","v":0.99997398699999995},{"$f":"VALUE(FIXED(EXP(AQ$4*-1*'PM2.5 reduction'!AQ115),9))","v":0.999961981},{"$f":"VALUE(FIXED(EXP(AR$4*-1*'PM2.5 reduction'!AR115),9))","v":0.99995959400000001},{"$f":"VALUE(FIXED(EXP(AS$4*-1*'PM2.5 reduction'!AS115),9))","v":0.99998650600000005},{"$f":"VALUE(FIXED(EXP(AT$4*-1*'PM2.5 reduction'!AT115),9))","v":1},{"$f":"VALUE(FIXED(EXP(AU$4*-1*'PM2.5 reduction'!AU115),9))","v":1},{"$f":"VALUE(FIXED(EXP(AV$4*-1*'PM2.5 reduction'!AV115),9))","v":0.99997683299999995},{"$f":"VALUE(FIXED(EXP(AW$4*-1*'PM2.5 reduction'!AW115),9))","v":0.99996018900000005},{"$f":"VALUE(FIXED(EXP(AX$4*-1*'PM2.5 reduction'!AX115),9))","v":0.99997350799999996},{"$f":"VALUE(FIXED(EXP(AY$4*-1*'PM2.5 reduction'!AY115),9))","v":0.99996630399999997},{"$f":"VALUE(FIXED(EXP(AZ$4*-1*'PM2.5 reduction'!AZ115),9))","v":0.99996516599999996},{"$f":"VALUE(FIXED(EXP(BA$4*-1*'PM2.5 reduction'!BA115),9))","v":0.999958232},{"$f":"VALUE(FIXED(EXP(BB$4*-1*'PM2.5 reduction'!BB115),9))","v":0.99996362299999997},{"$f":"VALUE(FIXED(EXP(BC$4*-1*'PM2.5 reduction'!BC115),9))","v":0.99999088000000003}]
[null,"Female 90+",{"$f":"VALUE(FIXED(EXP(C$4*-1*'PM2.5 reduction'!C116),9))","v":0.99993190499999995},{"$f":"VALUE(FIXED(EXP(D$4*-1*'PM2.5 reduction'!D116),9))","v":0.99994588299999998},{"$f":"VALUE(FIXED(EXP(E$4*-1*'PM2.5 reduction'!E116),9))","v":0.99998416400000001},{"$f":"VALUE(FIXED(EXP(F$4*-1*'PM2.5 reduction'!F116),9))","v":0.99998315699999996},{"$f":"VALUE(FIXED(EXP(G$4*-1*'PM2.5 reduction'!G116),9))","v":0.99999228600000001},{"$f":"VALUE(FIXED(EXP(H$4*-1*'PM2.5 reduction'!H116),9))","v":0.99997902500000002},{"$f":"VALUE(FIXED(EXP(I$4*-1*'PM2.5 reduction'!I116),9))","v":0.99998640699999997},{"$f":"VALUE(FIXED(EXP(J$4*-1*'PM2.5 reduction'!J116),9))","v":0.999969263},{"$f":"VALUE(FIXED(EXP(K$4*-1*'PM2.5 reduction'!K116),9))","v":0.99996908799999995},{"$f":"VALUE(FIXED(EXP(L$4*-1*'PM2.5 reduction'!L116),9))","v":0.99998491199999995},{"$f":"VALUE(FIXED(EXP(M$4*-1*'PM2.5 reduction'!M116),9))","v":0.99998491199999995},{"$f":"VALUE(FIXED(EXP(N$4*-1*'PM2.5 reduction'!N116),9))","v":0.99994610399999995},{"$f":"VALUE(FIXED(EXP(O$4*-1*'PM2.5 reduction'!O116),9))","v":0.99997847900000003},{"$f":"VALUE(FIXED(EXP(P$4*-1*'PM2.5 reduction'!P116),9))","v":0.999949796},{"$f":"VALUE(FIXED(EXP(Q$4*-1*'PM2.5 reduction'!Q116),9))","v":0.99997218499999996},{"$f":"VALUE(FIXED(EXP(R$4*-1*'PM2.5 reduction'!R116),9))","v":0.999962554},{"$f":"VALUE(FIXED(EXP(S$4*-1*'PM2.5 reduction'!S116),9))","v":0.99995730900000002},{"$f":"VALUE(FIXED(EXP(T$4*-1*'PM2.5 reduction'!T116),9))","v":0.99992393499999999},{"$f":"VALUE(FIXED(EXP(U$4*-1*'PM2.5 reduction'!U116),9))","v":0.99999088000000003},{"$f":"VALUE(FIXED(EXP(V$4*-1*'PM2.5 reduction'!V116),9))","v":0.99996578599999997},{"$f":"VALUE(FIXED(EXP(W$4*-1*'PM2.5 reduction'!W116),9))","v":0.99996752600000005},{"$f":"VALUE(FIXED(EXP(X$4*-1*'PM2.5 reduction'!X116),9))","v":0.99996752600000005},{"$f":"VALUE(FIXED(EXP(Y$4*-1*'PM2.5 reduction'!Y116),9))","v":0.99996682599999998},{"$f":"VALUE(FIXED(EXP(Z$4*-1*'PM2.5 reduction'!Z116),9))","v":0.99993868100000005},{"$f":"VALUE(FIXED(EXP(AA$4*-1*'PM2.5 reduction'!AA116),9))","v":0.99995142199999998},{"$f":"VALUE(FIXED(EXP(AB$4*-1*'PM2.5 reduction'!AB116),9))","v":0.99995342499999995},{"$f":"VALUE(FIXED(EXP(AC$4*-1*'PM2.5 reduction'!AC116),9))","v":0.999946538},{"$f":"VALUE(FIXED(EXP(AD$4*-1*'PM2.5 reduction'!AD116),9))","v":0.99998715699999996},{"$f":"VALUE(FIXED(EXP(AE$4*-1*'PM2.5 reduction'!AE116),9))","v":0.99998546399999999},{"$f":"VALUE(FIXED(EXP(AF$4*-1*'PM2.5 reduction'!AF116),9))","v":0.99995489699999995},{"$f":"VALUE(FIXED(EXP(AG$4*-1*'PM2.5 reduction'!AG116),9))","v":0.99998546399999999},{"$f":"VALUE(FIXED(EXP(AH$4*-1*'PM2.5 reduction'!AH116),9))","v":0.99995771600000005},{"$f":"VALUE(FIXED(EXP(AI$4*-1*'PM2.5 reduction'!AI116),9))","v":0.99994815500000001},{"$f":"VALUE(FIXED(EXP(AJ$4*-1*'PM2.5 reduction'!AJ116),9))","v":0.99997015600000005},{"$f":"VALUE(FIXED(EXP(AK$4*-1*'PM2.5 reduction'!AK116),9))","v":0.99998557700000001},{"$f":"VALUE(FIXED(EXP(AL$4*-1*'PM2.5 reduction'!AL116),9))","v":0.99998205200000001},{"$f":"VALUE(FIXED(EXP(AM$4*-1*'PM2.5 reduction'!AM116),9))","v":0.99995572499999996},{"$f":"VALUE(FIXED(EXP(AN$4*-1*'PM2.5 reduction'!AN116),9))","v":0.99998946399999999},{"$f":"VALUE(FIXED(EXP(AO$4*-1*'PM2.5 reduction'!AO116),9))","v":0.99998946399999999},{"$f":"VALUE(FIXED(EXP(AP$4*-1*'PM2.5 reduction'!AP116),9))","v":0.99997302799999999},{"$f":"VALUE(FIXED(EXP(AQ$4*-1*'PM2.5 reduction'!AQ116),9))","v":0.99996295499999999},{"$f":"VALUE(FIXED(EXP(AR$4*-1*'PM2.5 reduction'!AR116),9))","v":0.99995986000000003},{"$f":"VALUE(FIXED(EXP(AS$4*-1*'PM2.5 reduction'!AS116),9))","v":0.99998640699999997},{"$f":"VALUE(FIXED(EXP(AT$4*-1*'PM2.5 reduction'!AT116),9))","v":1},{"$f":"VALUE(FIXED(EXP(AU$4*-1*'PM2.5 reduction'!AU116),9))","v":1},{"$f":"VALUE(FIXED(EXP(AV$4*-1*'PM2.5 reduction'!AV116),9))","v":0.99997716999999997},{"$f":"VALUE(FIXED(EXP(AW$4*-1*'PM2.5 reduction'!AW116),9))","v":0.99995948099999998},{"$f":"VALUE(FIXED(EXP(AX$4*-1*'PM2.5 reduction'!AX116),9))","v":0.99996941500000003},{"$f":"VALUE(FIXED(EXP(AY$4*-1*'PM2.5 reduction'!AY116),9))","v":0.99996565800000003},{"$f":"VALUE(FIXED(EXP(AZ$4*-1*'PM2.5 reduction'!AZ116),9))","v":0.99996368000000002},{"$f":"VALUE(FIXED(EXP(BA$4*-1*'PM2.5 reduction'!BA116),9))","v":0.99996019599999997},{"$f":"VALUE(FIXED(EXP(BB$4*-1*'PM2.5 reduction'!BB116),9))","v":0.999963461},{"$f":"VALUE(FIXED(EXP(BC$4*-1*'PM2.5 reduction'!BC116),9))","v":0.99999088000000003}]
[null,"Male 0-4",{"$f":"VALUE(FIXED(EXP(C$4*-1*'PM2.5 reduction'!C117),9))","v":0.99993512900000003},{"$f":"VALUE(FIXED(EXP(D$4*-1*'PM2.5 reduction'!D117),9))","v":0.99994197100000004},{"$f":"VALUE(FIXED(EXP(E$4*-1*'PM2.5 reduction'!E117),9))","v":0.99998209199999999},{"$f":"VALUE(FIXED(EXP(F$4*-1*'PM2.5 reduction'!F117),9))","v":0.99998558100000001},{"$f":"VALUE(FIXED(EXP(G$4*-1*'PM2.5 reduction'!G117),9))","v":0.99999284600000005},{"$f":"VALUE(FIXED(EXP(H$4*-1*'PM2.5 reduction'!H117),9))","v":0.99998234100000005},{"$f":"VALUE(FIXED(EXP(I$4*-1*'PM2.5 reduction'!I117),9))","v":0.99998681599999995},{"$f":"VALUE(FIXED(EXP(J$4*-1*'PM2.5 reduction'!J117),9))","v":0.99997077999999995},{"$f":"VALUE(FIXED(EXP(K$4*-1*'PM2.5 reduction'!K117),9))","v":0.99996997399999998},{"$f":"VALUE(FIXED(EXP(L$4*-1*'PM2.5 reduction'!L117),9))","v":0.99998814400000002},{"$f":"VALUE(FIXED(EXP(M$4*-1*'PM2.5 reduction'!M117),9))","v":0.99998814400000002},{"$f":"VALUE(FIXED(EXP(N$4*-1*'PM2.5 reduction'!N117),9))","v":0.99994521400000003},{"$f":"VALUE(FIXED(EXP(O$4*-1*'PM2.5 reduction'!O117),9))","v":0.99998300699999998},{"$f":"VALUE(FIXED(EXP(P$4*-1*'PM2.5 reduction'!P117),9))","v":0.999948591},{"$f":"VALUE(FIXED(EXP(Q$4*-1*'PM2.5 reduction'!Q117),9))","v":0.99997289},{"$f":"VALUE(FIXED(EXP(R$4*-1*'PM2.5 reduction'!R117),9))","v":0.99996216699999996},{"$f":"VALUE(FIXED(EXP(S$4*-1*'PM2.5 reduction'!S117),9))","v":0.99995798400000002},{"$f":"VALUE(FIXED(EXP(T$4*-1*'PM2.5 reduction'!T117),9))","v":0.99993100000000001},{"$f":"VALUE(FIXED(EXP(U$4*-1*'PM2.5 reduction'!U117),9))","v":0.99999088000000003},{"$f":"VALUE(FIXED(EXP(V$4*-1*'PM2.5 reduction'!V117),9))","v":0.99996439699999995},{"$f":"VALUE(FIXED(EXP(W$4*-1*'PM2.5 reduction'!W117),9))","v":0.99996802799999995},{"$f":"VALUE(FIXED(EXP(X$4*-1*'PM2.5 reduction'!X117),9))","v":0.99996802799999995},{"$f":"VALUE(FIXED(EXP(Y$4*-1*'PM2.5 reduction'!Y117),9))","v":0.99996649900000001},{"$f":"VALUE(FIXED(EXP(Z$4*-1*'PM2.5 reduction'!Z117),9))","v":0.99993421199999999},{"$f":"VALUE(FIXED(EXP(AA$4*-1*'PM2.5 reduction'!AA117),9))","v":0.99995298200000005},{"$f":"VALUE(FIXED(EXP(AB$4*-1*'PM2.5 reduction'!AB117),9))","v":0.99995065500000002},{"$f":"VALUE(FIXED(EXP(AC$4*-1*'PM2.5 reduction'!AC117),9))","v":0.999945427},{"$f":"VALUE(FIXED(EXP(AD$4*-1*'PM2.5 reduction'!AD117),9))","v":0.99998788199999999},{"$f":"VALUE(FIXED(EXP(AE$4*-1*'PM2.5 reduction'!AE117),9))","v":0.99998672600000005},{"$f":"VALUE(FIXED(EXP(AF$4*-1*'PM2.5 reduction'!AF117),9))","v":0.99996730700000003},{"$f":"VALUE(FIXED(EXP(AG$4*-1*'PM2.5 reduction'!AG117),9))","v":0.99998672600000005},{"$f":"VALUE(FIXED(EXP(AH$4*-1*'PM2.5 reduction'!AH117),9))","v":0.99996197600000003},{"$f":"VALUE(FIXED(EXP(AI$4*-1*'PM2.5 reduction'!AI117),9))","v":0.99995255500000002},{"$f":"VALUE(FIXED(EXP(AJ$4*-1*'PM2.5 reduction'!AJ117),9))","v":0.99996903800000003},{"$f":"VALUE(FIXED(EXP(AK$4*-1*'PM2.5 reduction'!AK117),9))","v":0.99998668999999996},{"$f":"VALUE(FIXED(EXP(AL$4*-1*'PM2.5 reduction'!AL117),9))","v":0.999982284},{"$f":"VALUE(FIXED(EXP(AM$4*-1*'PM2.5 reduction'!AM117),9))","v":0.999958821},{"$f":"VALUE(FIXED(EXP(AN$4*-1*'PM2.5 reduction'!AN117),9))","v":0.99998767700000002},{"$f":"VALUE(FIXED(EXP(AO$4*-1*'PM2.5 reduction'!AO117),9))","v":0.99998767700000002},{"$f":"VALUE(FIXED(EXP(AP$4*-1*'PM2.5 reduction'!AP117),9))","v":0.999973848},{"$f":"VALUE(FIXED(EXP(AQ$4*-1*'PM2.5 reduction'!AQ117),9))","v":0.99996143800000004},{"$f":"VALUE(FIXED(EXP(AR$4*-1*'PM2.5 reduction'!AR117),9))","v":0.99995962599999999},{"$f":"VALUE(FIXED(EXP(AS$4*-1*'PM2.5 reduction'!AS117),9))","v":0.99998681599999995},{"$f":"VALUE(FIXED(EXP(AT$4*-1*'PM2.5 reduction'!AT117),9))","v":1},{"$f":"VALUE(FIXED(EXP(AU$4*-1*'PM2.5 reduction'!AU117),9))","v":1},{"$f":"VALUE(FIXED(EXP(AV$4*-1*'PM2.5 reduction'!AV117),9))","v":0.99998134299999997},{"$f":"VALUE(FIXED(EXP(AW$4*-1*'PM2.5 reduction'!AW117),9))","v":0.99996558199999996},{"$f":"VALUE(FIXED(EXP(AX$4*-1*'PM2.5 reduction'!AX117),9))","v":0.99997158500000005},{"$f":"VALUE(FIXED(EXP(AY$4*-1*'PM2.5 reduction'!AY117),9))","v":0.99996548299999999},{"$f":"VALUE(FIXED(EXP(AZ$4*-1*'PM2.5 reduction'!AZ117),9))","v":0.99996278500000002},{"$f":"VALUE(FIXED(EXP(BA$4*-1*'PM2.5 reduction'!BA117),9))","v":0.99996106500000004},{"$f":"VALUE(FIXED(EXP(BB$4*-1*'PM2.5 reduction'!BB117),9))","v":0.99996460499999995},{"$f":"VALUE(FIXED(EXP(BC$4*-1*'PM2.5 reduction'!BC117),9))","v":0.99999088000000003}]
[null,"Male 5-9",{"$f":"VALUE(FIXED(EXP(C$4*-1*'PM2.5 reduction'!C118),9))","v":0.999936669},{"$f":"VALUE(FIXED(EXP(D$4*-1*'PM2.5 reduction'!D118),9))","v":0.999944944},{"$f":"VALUE(FIXED(EXP(E$4*-1*'PM2.5 reduction'!E118),9))","v":0.99998236399999996},{"$f":"VALUE(FIXED(EXP(F$4*-1*'PM2.5 reduction'!F118),9))","v":0.99998577},{"$f":"VALUE(FIXED(EXP(G$4*-1*'PM2.5 reduction'!G118),9))","v":0.99999313300000003},{"$f":"VALUE(FIXED(EXP(H$4*-1*'PM2.5 reduction'!H118),9))","v":0.99998229199999999},{"$f":"VALUE(FIXED(EXP(I$4*-1*'PM2.5 reduction'!I118),9))","v":0.99998639499999997},{"$f":"VALUE(FIXED(EXP(J$4*-1*'PM2.5 reduction'!J118),9))","v":0.99997049800000004},{"$f":"VALUE(FIXED(EXP(K$4*-1*'PM2.5 reduction'!K118),9))","v":0.99996999099999995},{"$f":"VALUE(FIXED(EXP(L$4*-1*'PM2.5 reduction'!L118),9))","v":0.99998866799999997},{"$f":"VALUE(FIXED(EXP(M$4*-1*'PM2.5 reduction'!M118),9))","v":0.99998866799999997},{"$f":"VALUE(FIXED(EXP(N$4*-1*'PM2.5 reduction'!N118),9))","v":0.99994759099999997},{"$f":"VALUE(FIXED(EXP(O$4*-1*'PM2.5 reduction'!O118),9))","v":0.99998294200000004},{"$f":"VALUE(FIXED(EXP(P$4*-1*'PM2.5 reduction'!P118),9))","v":0.99994856499999996},{"$f":"VALUE(FIXED(EXP(Q$4*-1*'PM2.5 reduction'!Q118),9))","v":0.99997196700000002},{"$f":"VALUE(FIXED(EXP(R$4*-1*'PM2.5 reduction'!R118),9))","v":0.99996252200000002},{"$f":"VALUE(FIXED(EXP(S$4*-1*'PM2.5 reduction'!S118),9))","v":0.99995893499999999},{"$f":"VALUE(FIXED(EXP(T$4*-1*'PM2.5 reduction'!T118),9))","v":0.99993142400000001},{"$f":"VALUE(FIXED(EXP(U$4*-1*'PM2.5 reduction'!U118),9))","v":0.99999088000000003},{"$f":"VALUE(FIXED(EXP(V$4*-1*'PM2.5 reduction'!V118),9))","v":0.99996487099999998},{"$f":"VALUE(FIXED(EXP(W$4*-1*'PM2.5 reduction'!W118),9))","v":0.99996867700000003},{"$f":"VALUE(FIXED(EXP(X$4*-1*'PM2.5 reduction'!X118),9))","v":0.99996867700000003},{"$f":"VALUE(FIXED(EXP(Y$4*-1*'PM2.5 reduction'!Y118),9))","v":0.99996660500000001},{"$f":"VALUE(FIXED(EXP(Z$4*-1*'PM2.5 reduction'!Z118),9))","v":0.99993588099999997},{"$f":"VALUE(FIXED(EXP(AA$4*-1*'PM2.5 reduction'!AA118),9))","v":0.99995427400000003},{"$f":"VALUE(FIXED(EXP(AB$4*-1*'PM2.5 reduction'!AB118),9))","v":0.99995416800000003},{"$f":"VALUE(FIXED(EXP(AC$4*-1*'PM2.5 reduction'!AC118),9))","v":0.99994744499999999},{"$f":"VALUE(FIXED(EXP(AD$4*-1*'PM2.5 reduction'!AD118),9))","v":0.99998835799999997},{"$f":"VALUE(FIXED(EXP(AE$4*-1*'PM2.5 reduction'!AE118),9))","v":0.99998731200000002},{"$f":"VALUE(FIXED(EXP(AF$4*-1*'PM2.5 reduction'!AF118),9))","v":0.99996747399999997},{"$f":"VALUE(FIXED(EXP(AG$4*-1*'PM2.5 reduction'!AG118),9))","v":0.99998731200000002},{"$f":"VALUE(FIXED(EXP(AH$4*-1*'PM2.5 reduction'!AH118),9))","v":0.99996186099999995},{"$f":"VALUE(FIXED(EXP(AI$4*-1*'PM2.5 reduction'!AI118),9))","v":0.99995369499999998},{"$f":"VALUE(FIXED(EXP(AJ$4*-1*'PM2.5 reduction'!AJ118),9))","v":0.99996879599999999},{"$f":"VALUE(FIXED(EXP(AK$4*-1*'PM2.5 reduction'!AK118),9))","v":0.99998676399999997},{"$f":"VALUE(FIXED(EXP(AL$4*-1*'PM2.5 reduction'!AL118),9))","v":0.99998280500000003},{"$f":"VALUE(FIXED(EXP(AM$4*-1*'PM2.5 reduction'!AM118),9))","v":0.99995879300000001},{"$f":"VALUE(FIXED(EXP(AN$4*-1*'PM2.5 reduction'!AN118),9))","v":0.99998790500000001},{"$f":"VALUE(FIXED(EXP(AO$4*-1*'PM2.5 reduction'!AO118),9))","v":0.99998790500000001},{"$f":"VALUE(FIXED(EXP(AP$4*-1*'PM2.5 reduction'!AP118),9))","v":0.99997501300000002},{"$f":"VALUE(FIXED(EXP(AQ$4*-1*'PM2.5 reduction'!AQ118),9))","v":0.99996242599999996},{"$f":"VALUE(FIXED(EXP(AR$4*-1*'PM2.5 reduction'!AR118),9))","v":0.99996091200000004},{"$f":"VALUE(FIXED(EXP(AS$4*-1*'PM2.5 reduction'!AS118),9))","v":0.99998639499999997},{"$f":"VALUE(FIXED(EXP(AT$4*-1*'PM2.5 reduction'!AT118),9))","v":1},{"$f":"VALUE(FIXED(EXP(AU$4*-1*'PM2.5 reduction'!AU118),9))","v":1},{"$f":"VALUE(FIXED(EXP(AV$4*-1*'PM2.5 reduction'!AV118),9))","v":0.99998075799999997},{"$f":"VALUE(FIXED(EXP(AW$4*-1*'PM2.5 reduction'!AW118),9))","v":0.99996588200000003},{"$f":"VALUE(FIXED(EXP(AX$4*-1*'PM2.5 reduction'!AX118),9))","v":0.999971049},{"$f":"VALUE(FIXED(EXP(AY$4*-1*'PM2.5 reduction'!AY118),9))","v":0.99996660000000004},{"$f":"VALUE(FIXED(EXP(AZ$4*-1*'PM2.5 reduction'!AZ118),9))","v":0.99996417400000004},{"$f":"VALUE(FIXED(EXP(BA$4*-1*'PM2.5 reduction'!BA118),9))","v":0.99996063999999996},{"$f":"VALUE(FIXED(EXP(BB$4*-1*'PM2.5 reduction'!BB118),9))","v":0.99996457900000002},{"$f":"VALUE(FIXED(EXP(BC$4*-1*'PM2.5 reduction'!BC118),9))","v":0.99999088000000003}]
[null,"Male 10-15",{"$f":"VALUE(FIXED(EXP(C$4*-1*'PM2.5 reduction'!C119),9))","v":0.99993666199999998},{"$f":"VALUE(FIXED(EXP(D$4*-1*'PM2.5 reduction'!D119),9))","v":0.99994364800000002},{"$f":"VALUE(FIXED(EXP(E$4*-1*'PM2.5 reduction'!E119),9))","v":0.999983658},{"$f":"VALUE(FIXED(EXP(F$4*-1*'PM2.5 reduction'!F119),9))","v":0.99998546300000002},{"$f":"VALUE(FIXED(EXP(G$4*-1*'PM2.5 reduction'!G119),9))","v":0.99999317300000001},{"$f":"VALUE(FIXED(EXP(H$4*-1*'PM2.5 reduction'!H119),9))","v":0.99998182700000005},{"$f":"VALUE(FIXED(EXP(I$4*-1*'PM2.5 reduction'!I119),9))","v":0.99998643300000001},{"$f":"VALUE(FIXED(EXP(J$4*-1*'PM2.5 reduction'!J119),9))","v":0.99997071800000004},{"$f":"VALUE(FIXED(EXP(K$4*-1*'PM2.5 reduction'!K119),9))","v":0.99997048399999999},{"$f":"VALUE(FIXED(EXP(L$4*-1*'PM2.5 reduction'!L119),9))","v":0.99998806299999998},{"$f":"VALUE(FIXED(EXP(M$4*-1*'PM2.5 reduction'!M119),9))","v":0.99998806299999998},{"$f":"VALUE(FIXED(EXP(N$4*-1*'PM2.5 reduction'!N119),9))","v":0.99994778900000003},{"$f":"VALUE(FIXED(EXP(O$4*-1*'PM2.5 reduction'!O119),9))","v":0.99998261300000002},{"$f":"VALUE(FIXED(EXP(P$4*-1*'PM2.5 reduction'!P119),9))","v":0.999948905},{"$f":"VALUE(FIXED(EXP(Q$4*-1*'PM2.5 reduction'!Q119),9))","v":0.999972945},{"$f":"VALUE(FIXED(EXP(R$4*-1*'PM2.5 reduction'!R119),9))","v":0.99996025600000005},{"$f":"VALUE(FIXED(EXP(S$4*-1*'PM2.5 reduction'!S119),9))","v":0.99996007600000003},{"$f":"VALUE(FIXED(EXP(T$4*-1*'PM2.5 reduction'!T119),9))","v":0.99993129999999997},{"$f":"VALUE(FIXED(EXP(U$4*-1*'PM2.5 reduction'!U119),9))","v":0.99999088000000003},{"$f":"VALUE(FIXED(EXP(V$4*-1*'PM2.5 reduction'!V119),9))","v":0.99996593499999997},{"$f":"VALUE(FIXED(EXP(W$4*-1*'PM2.5 reduction'!W119),9))","v":0.99996866200000001},{"$f":"VALUE(FIXED(EXP(X$4*-1*'PM2.5 reduction'!X119),9))","v":0.99996866200000001},{"$f":"VALUE(FIXED(EXP(Y$4*-1*'PM2.5 reduction'!Y119),9))","v":0.99996744999999998},{"$f":"VALUE(FIXED(EXP(Z$4*-1*'PM2.5 reduction'!Z119),9))","v":0.99993657999999996},{"$f":"VALUE(FIXED(EXP(AA$4*-1*'PM2.5 reduction'!AA119),9))","v":0.99995505500000004},{"$f":"VALUE(FIXED(EXP(AB$4*-1*'PM2.5 reduction'!AB119),9))","v":0.99995220200000001},{"$f":"VALUE(FIXED(EXP(AC$4*-1*'PM2.5 reduction'!AC119),9))","v":0.999948477},{"$f":"VALUE(FIXED(EXP(AD$4*-1*'PM2.5 reduction'!AD119),9))","v":0.99998887000000003},{"$f":"VALUE(FIXED(EXP(AE$4*-1*'PM2.5 reduction'!AE119),9))","v":0.99998762799999996},{"$f":"VALUE(FIXED(EXP(AF$4*-1*'PM2.5 reduction'!AF119),9))","v":0.99997094900000005},{"$f":"VALUE(FIXED(EXP(AG$4*-1*'PM2.5 reduction'!AG119),9))","v":0.99998762799999996},{"$f":"VALUE(FIXED(EXP(AH$4*-1*'PM2.5 reduction'!AH119),9))","v":0.99996198599999997},{"$f":"VALUE(FIXED(EXP(AI$4*-1*'PM2.5 reduction'!AI119),9))","v":0.99995505600000001},{"$f":"VALUE(FIXED(EXP(AJ$4*-1*'PM2.5 reduction'!AJ119),9))","v":0.99996835900000003},{"$f":"VALUE(FIXED(EXP(AK$4*-1*'PM2.5 reduction'!AK119),9))","v":0.99998716600000004},{"$f":"VALUE(FIXED(EXP(AL$4*-1*'PM2.5 reduction'!AL119),9))","v":0.99998218999999999},{"$f":"VALUE(FIXED(EXP(AM$4*-1*'PM2.5 reduction'!AM119),9))","v":0.99995858900000001},{"$f":"VALUE(FIXED(EXP(AN$4*-1*'PM2.5 reduction'!AN119),9))","v":0.99998760799999997},{"$f":"VALUE(FIXED(EXP(AO$4*-1*'PM2.5 reduction'!AO119),9))","v":0.99998760799999997},{"$f":"VALUE(FIXED(EXP(AP$4*-1*'PM2.5 reduction'!AP119),9))","v":0.99997527100000005},{"$f":"VALUE(FIXED(EXP(AQ$4*-1*'PM2.5 reduction'!AQ119),9))","v":0.99996238599999998},{"$f":"VALUE(FIXED(EXP(AR$4*-1*'PM2.5 reduction'!AR119),9))","v":0.99996154900000001},{"$f":"VALUE(FIXED(EXP(AS$4*-1*'PM2.5 reduction'!AS119),9))","v":0.99998643300000001},{"$f":"VALUE(FIXED(EXP(AT$4*-1*'PM2.5 reduction'!AT119),9))","v":1},{"$f":"VALUE(FIXED(EXP(AU$4*-1*'PM2.5 reduction'!AU119),9))","v":1},{"$f":"VALUE(FIXED(EXP(AV$4*-1*'PM2.5 reduction'!AV119),9))","v":0.999980117},{"$f":"VALUE(FIXED(EXP(AW$4*-1*'PM2.5 reduction'!AW119),9))","v":0.99996637799999999},{"$f":"VALUE(FIXED(EXP(AX$4*-1*'PM2.5 reduction'!AX119),9))","v":0.99997095999999996},{"$f":"VALUE(FIXED(EXP(AY$4*-1*'PM2.5 reduction'!AY119),9))","v":0.99996705200000002},{"$f":"VALUE(FIXED(EXP(AZ$4*-1*'PM2.5 reduction'!AZ119),9))","v":0.99996509700000002},{"$f":"VALUE(FIXED(EXP(BA$4*-1*'PM2.5 reduction'!BA119),9))","v":0.99996013299999997},{"$f":"VALUE(FIXED(EXP(BB$4*-1*'PM2.5 reduction'!BB119),9))","v":0.99996505199999997},{"$f":"VALUE(FIXED(EXP(BC$4*-1*'PM2.5 reduction'!BC119),9))","v":0.99999088000000003}]
[null,"Male 16-19",{"$f":"VALUE(FIXED(EXP(C$4*-1*'PM2.5 reduction'!C120),9))","v":0.99993518100000001},{"$f":"VALUE(FIXED(EXP(D$4*-1*'PM2.5 reduction'!D120),9))","v":0.99994290299999999},{"$f":"VALUE(FIXED(EXP(E$4*-1*'PM2.5 reduction'!E120),9))","v":0.99998237700000003},{"$f":"VALUE(FIXED(EXP(F$4*-1*'PM2.5 reduction'!F120),9))","v":0.999985558},{"$f":"VALUE(FIXED(EXP(G$4*-1*'PM2.5 reduction'!G120),9))","v":0.999992671},{"$f":"VALUE(FIXED(EXP(H$4*-1*'PM2.5 reduction'!H120),9))","v":0.99998231400000004},{"$f":"VALUE(FIXED(EXP(I$4*-1*'PM2.5 reduction'!I120),9))","v":0.99998626000000002},{"$f":"VALUE(FIXED(EXP(J$4*-1*'PM2.5 reduction'!J120),9))","v":0.99996880499999996},{"$f":"VALUE(FIXED(EXP(K$4*-1*'PM2.5 reduction'!K120),9))","v":0.99997006499999996},{"$f":"VALUE(FIXED(EXP(L$4*-1*'PM2.5 reduction'!L120),9))","v":0.999988451},{"$f":"VALUE(FIXED(EXP(M$4*-1*'PM2.5 reduction'!M120),9))","v":0.999988451},{"$f":"VALUE(FIXED(EXP(N$4*-1*'PM2.5 reduction'!N120),9))","v":0.99993887199999998},{"$f":"VALUE(FIXED(EXP(O$4*-1*'PM2.5 reduction'!O120),9))","v":0.99998401400000003},{"$f":"VALUE(FIXED(EXP(P$4*-1*'PM2.5 reduction'!P120),9))","v":0.99994935100000004},{"$f":"VALUE(FIXED(EXP(Q$4*-1*'PM2.5 reduction'!Q120),9))","v":0.99997371899999998},{"$f":"VALUE(FIXED(EXP(R$4*-1*'PM2.5 reduction'!R120),9))","v":0.99996092700000005},{"$f":"VALUE(FIXED(EXP(S$4*-1*'PM2.5 reduction'!S120),9))","v":0.99995507699999997},{"$f":"VALUE(FIXED(EXP(T$4*-1*'PM2.5 reduction'!T120),9))","v":0.99992138399999997},{"$f":"VALUE(FIXED(EXP(U$4*-1*'PM2.5 reduction'!U120),9))","v":0.99999088000000003},{"$f":"VALUE(FIXED(EXP(V$4*-1*'PM2.5 reduction'!V120),9))","v":0.99996464200000001},{"$f":"VALUE(FIXED(EXP(W$4*-1*'PM2.5 reduction'!W120),9))","v":0.999968521},{"$f":"VALUE(FIXED(EXP(X$4*-1*'PM2.5 reduction'!X120),9))","v":0.999968521},{"$f":"VALUE(FIXED(EXP(Y$4*-1*'PM2.5 reduction'!Y120),9))","v":0.99996598999999997},{"$f":"VALUE(FIXED(EXP(Z$4*-1*'PM2.5 reduction'!Z120),9))","v":0.99993182400000002},{"$f":"VALUE(FIXED(EXP(AA$4*-1*'PM2.5 reduction'!AA120),9))","v":0.99995278200000004},{"$f":"VALUE(FIXED(EXP(AB$4*-1*'PM2.5 reduction'!AB120),9))","v":0.99995195100000001},{"$f":"VALUE(FIXED(EXP(AC$4*-1*'PM2.5 reduction'!AC120),9))","v":0.99994500799999997},{"$f":"VALUE(FIXED(EXP(AD$4*-1*'PM2.5 reduction'!AD120),9))","v":0.99998862700000002},{"$f":"VALUE(FIXED(EXP(AE$4*-1*'PM2.5 reduction'!AE120),9))","v":0.99998784299999999},{"$f":"VALUE(FIXED(EXP(AF$4*-1*'PM2.5 reduction'!AF120),9))","v":0.99997028499999996},{"$f":"VALUE(FIXED(EXP(AG$4*-1*'PM2.5 reduction'!AG120),9))","v":0.99998784299999999},{"$f":"VALUE(FIXED(EXP(AH$4*-1*'PM2.5 reduction'!AH120),9))","v":0.999961828},{"$f":"VALUE(FIXED(EXP(AI$4*-1*'PM2.5 reduction'!AI120),9))","v":0.99994810000000001},{"$f":"VALUE(FIXED(EXP(AJ$4*-1*'PM2.5 reduction'!AJ120),9))","v":0.999967469},{"$f":"VALUE(FIXED(EXP(AK$4*-1*'PM2.5 reduction'!AK120),9))","v":0.99998626300000004},{"$f":"VALUE(FIXED(EXP(AL$4*-1*'PM2.5 reduction'!AL120),9))","v":0.99998173700000004},{"$f":"VALUE(FIXED(EXP(AM$4*-1*'PM2.5 reduction'!AM120),9))","v":0.999958185},{"$f":"VALUE(FIXED(EXP(AN$4*-1*'PM2.5 reduction'!AN120),9))","v":0.99998829899999997},{"$f":"VALUE(FIXED(EXP(AO$4*-1*'PM2.5 reduction'!AO120),9))","v":0.99998829899999997},{"$f":"VALUE(FIXED(EXP(AP$4*-1*'PM2.5 reduction'!AP120),9))","v":0.99997572300000004},{"$f":"VALUE(FIXED(EXP(AQ$4*-1*'PM2.5 reduction'!AQ120),9))","v":0.99996308099999998},{"$f":"VALUE(FIXED(EXP(AR$4*-1*'PM2.5 reduction'!AR120),9))","v":0.99995876100000003},{"$f":"VALUE(FIXED(EXP(AS$4*-1*'PM2.5 reduction'!AS120),9))","v":0.99998626000000002},{"$f":"VALUE(FIXED(EXP(AT$4*-1*'PM2.5 reduction'!AT120),9))","v":1},{"$f":"VALUE(FIXED(EXP(AU$4*-1*'PM2.5 reduction'!AU120),9))","v":1},{"$f":"VALUE(FIXED(EXP(AV$4*-1*'PM2.5 reduction'!AV120),9))","v":0.99998059800000005},{"$f":"VALUE(FIXED(EXP(AW$4*-1*'PM2.5 reduction'!AW120),9))","v":0.99996632900000004},{"$f":"VALUE(FIXED(EXP(AX$4*-1*'PM2.5 reduction'!AX120),9))","v":0.99996774399999999},{"$f":"VALUE(FIXED(EXP(AY$4*-1*'PM2.5 reduction'!AY120),9))","v":0.99996448199999999},{"$f":"VALUE(FIXED(EXP(AZ$4*-1*'PM2.5 reduction'!AZ120),9))","v":0.99995948899999998},{"$f":"VALUE(FIXED(EXP(BA$4*-1*'PM2.5 reduction'!BA120),9))","v":0.99995996399999998},{"$f":"VALUE(FIXED(EXP(BB$4*-1*'PM2.5 reduction'!BB120),9))","v":0.99996483400000002},{"$f":"VALUE(FIXED(EXP(BC$4*-1*'PM2.5 reduction'!BC120),9))","v":0.99999088000000003}]
[null,"Male 20-24",{"$f":"VALUE(FIXED(EXP(C$4*-1*'PM2.5 reduction'!C121),9))","v":0.99992498900000004},{"$f":"VALUE(FIXED(EXP(D$4*-1*'PM2.5 reduction'!D121),9))","v":0.99993106499999995},{"$f":"VALUE(FIXED(EXP(E$4*-1*'PM2.5 reduction'!E121),9))","v":0.99998154900000003},{"$f":"VALUE(FIXED(EXP(F$4*-1*'PM2.5 reduction'!F121),9))","v":0.99998549000000003},{"$f":"VALUE(FIXED(EXP(G$4*-1*'PM2.5 reduction'!G121),9))","v":0.999993032},{"$f":"VALUE(FIXED(EXP(H$4*-1*'PM2.5 reduction'!H121),9))","v":0.99998130500000004},{"$f":"VALUE(FIXED(EXP(I$4*-1*'PM2.5 reduction'!I121),9))","v":0.99998572100000005},{"$f":"VALUE(FIXED(EXP(J$4*-1*'PM2.5 reduction'!J121),9))","v":0.99996459800000004},{"$f":"VALUE(FIXED(EXP(K$4*-1*'PM2.5 reduction'!K121),9))","v":0.99997115800000003},{"$f":"VALUE(FIXED(EXP(L$4*-1*'PM2.5 reduction'!L121),9))","v":0.99998803800000002},{"$f":"VALUE(FIXED(EXP(M$4*-1*'PM2.5 reduction'!M121),9))","v":0.99998803800000002},{"$f":"VALUE(FIXED(EXP(N$4*-1*'PM2.5 reduction'!N121),9))","v":0.99992595399999995},{"$f":"VALUE(FIXED(EXP(O$4*-1*'PM2.5 reduction'!O121),9))","v":0.99998224099999999},{"$f":"VALUE(FIXED(EXP(P$4*-1*'PM2.5 reduction'!P121),9))","v":0.99994857999999998},{"$f":"VALUE(FIXED(EXP(Q$4*-1*'PM2.5 reduction'!Q121),9))","v":0.99997275600000002},{"$f":"VALUE(FIXED(EXP(R$4*-1*'PM2.5 reduction'!R121),9))","v":0.99996143800000004},{"$f":"VALUE(FIXED(EXP(S$4*-1*'PM2.5 reduction'!S121),9))","v":0.99994691599999996},{"$f":"VALUE(FIXED(EXP(T$4*-1*'PM2.5 reduction'!T121),9))","v":0.99991037699999996},{"$f":"VALUE(FIXED(EXP(U$4*-1*'PM2.5 reduction'!U121),9))","v":0.99999088000000003},{"$f":"VALUE(FIXED(EXP(V$4*-1*'PM2.5 reduction'!V121),9))","v":0.99996520300000002},{"$f":"VALUE(FIXED(EXP(W$4*-1*'PM2.5 reduction'!W121),9))","v":0.99996853100000005},{"$f":"VALUE(FIXED(EXP(X$4*-1*'PM2.5 reduction'!X121),9))","v":0.99996853100000005},{"$f":"VALUE(FIXED(EXP(Y$4*-1*'PM2.5 reduction'!Y121),9))","v":0.99996494700000005},{"$f":"VALUE(FIXED(EXP(Z$4*-1*'PM2.5 reduction'!Z121),9))","v":0.99992010899999995},{"$f":"VALUE(FIXED(EXP(AA$4*-1*'PM2.5 reduction'!AA121),9))","v":0.99994628799999996},{"$f":"VALUE(FIXED(EXP(AB$4*-1*'PM2.5 reduction'!AB121),9))","v":0.99993831899999996},{"$f":"VALUE(FIXED(EXP(AC$4*-1*'PM2.5 reduction'!AC121),9))","v":0.99993566199999995},{"$f":"VALUE(FIXED(EXP(AD$4*-1*'PM2.5 reduction'!AD121),9))","v":0.99998798},{"$f":"VALUE(FIXED(EXP(AE$4*-1*'PM2.5 reduction'!AE121),9))","v":0.99998676900000005},{"$f":"VALUE(FIXED(EXP(AF$4*-1*'PM2.5 reduction'!AF121),9))","v":0.99996658299999996},{"$f":"VALUE(FIXED(EXP(AG$4*-1*'PM2.5 reduction'!AG121),9))","v":0.99998676900000005},{"$f":"VALUE(FIXED(EXP(AH$4*-1*'PM2.5 reduction'!AH121),9))","v":0.99996137799999996},{"$f":"VALUE(FIXED(EXP(AI$4*-1*'PM2.5 reduction'!AI121),9))","v":0.99993797100000004},{"$f":"VALUE(FIXED(EXP(AJ$4*-1*'PM2.5 reduction'!AJ121),9))","v":0.99996795500000002},{"$f":"VALUE(FIXED(EXP(AK$4*-1*'PM2.5 reduction'!AK121),9))","v":0.99998525299999996},{"$f":"VALUE(FIXED(EXP(AL$4*-1*'PM2.5 reduction'!AL121),9))","v":0.99998171199999997},{"$f":"VALUE(FIXED(EXP(AM$4*-1*'PM2.5 reduction'!AM121),9))","v":0.99995805999999998},{"$f":"VALUE(FIXED(EXP(AN$4*-1*'PM2.5 reduction'!AN121),9))","v":0.99998801999999998},{"$f":"VALUE(FIXED(EXP(AO$4*-1*'PM2.5 reduction'!AO121),9))","v":0.99998801999999998},{"$f":"VALUE(FIXED(EXP(AP$4*-1*'PM2.5 reduction'!AP121),9))","v":0.999972427},{"$f":"VALUE(FIXED(EXP(AQ$4*-1*'PM2.5 reduction'!AQ121),9))","v":0.99996119400000005},{"$f":"VALUE(FIXED(EXP(AR$4*-1*'PM2.5 reduction'!AR121),9))","v":0.999950746},{"$f":"VALUE(FIXED(EXP(AS$4*-1*'PM2.5 reduction'!AS121),9))","v":0.99998572100000005},{"$f":"VALUE(FIXED(EXP(AT$4*-1*'PM2.5 reduction'!AT121),9))","v":1},{"$f":"VALUE(FIXED(EXP(AU$4*-1*'PM2.5 reduction'!AU121),9))","v":1},{"$f":"VALUE(FIXED(EXP(AV$4*-1*'PM2.5 reduction'!AV121),9))","v":0.99997929200000002},{"$f":"VALUE(FIXED(EXP(AW$4*-1*'PM2.5 reduction'!AW121),9))","v":0.99996520899999997},{"$f":"VALUE(FIXED(EXP(AX$4*-1*'PM2.5 reduction'!AX121),9))","v":0.99996072000000003},{"$f":"VALUE(FIXED(EXP(AY$4*-1*'PM2.5 reduction'!AY121),9))","v":0.999954291},{"$f":"VALUE(FIXED(EXP(AZ$4*-1*'PM2.5 reduction'!AZ121),9))","v":0.99994439199999996},{"$f":"VALUE(FIXED(EXP(BA$4*-1*'PM2.5 reduction'!BA121),9))","v":0.99995975500000001},{"$f":"VALUE(FIXED(EXP(BB$4*-1*'PM2.5 reduction'!BB121),9))","v":0.99996399999999996},{"$f":"VALUE(FIXED(EXP(BC$4*-1*'PM2.5 reduction'!BC121),9))","v":0.99999088000000003}]
[null,"Male 25-29",{"$f":"VALUE(FIXED(EXP(C$4*-1*'PM2.5 reduction'!C122),9))","v":0.99992361699999999},{"$f":"VALUE(FIXED(EXP(D$4*-1*'PM2.5 reduction'!D122),9))","v":0.99993015699999999},{"$f":"VALUE(FIXED(EXP(E$4*-1*'PM2.5 reduction'!E122),9))","v":0.999981338},{"$f":"VALUE(FIXED(EXP(F$4*-1*'PM2.5 reduction'!F122),9))","v":0.99998511599999995},{"$f":"VALUE(FIXED(EXP(G$4*-1*'PM2.5 reduction'!G122),9))","v":0.99999274000000005},{"$f":"VALUE(FIXED(EXP(H$4*-1*'PM2.5 reduction'!H122),9))","v":0.9999806},{"$f":"VALUE(FIXED(EXP(I$4*-1*'PM2.5 reduction'!I122),9))","v":0.99998562400000002},{"$f":"VALUE(FIXED(EXP(J$4*-1*'PM2.5 reduction'!J122),9))","v":0.99996867099999998},{"$f":"VALUE(FIXED(EXP(K$4*-1*'PM2.5 reduction'!K122),9))","v":0.99997124699999995},{"$f":"VALUE(FIXED(EXP(L$4*-1*'PM2.5 reduction'!L122),9))","v":0.999986386},{"$f":"VALUE(FIXED(EXP(M$4*-1*'PM2.5 reduction'!M122),9))","v":0.999986386},{"$f":"VALUE(FIXED(EXP(N$4*-1*'PM2.5 reduction'!N122),9))","v":0.99993488699999999},{"$f":"VALUE(FIXED(EXP(O$4*-1*'PM2.5 reduction'!O122),9))","v":0.99998092100000002},{"$f":"VALUE(FIXED(EXP(P$4*-1*'PM2.5 reduction'!P122),9))","v":0.99994797400000002},{"$f":"VALUE(FIXED(EXP(Q$4*-1*'PM2.5 reduction'!Q122),9))","v":0.99997349999999996},{"$f":"VALUE(FIXED(EXP(R$4*-1*'PM2.5 reduction'!R122),9))","v":0.99996275700000004},{"$f":"VALUE(FIXED(EXP(S$4*-1*'PM2.5 reduction'!S122),9))","v":0.99994476899999996},{"$f":"VALUE(FIXED(EXP(T$4*-1*'PM2.5 reduction'!T122),9))","v":0.99991638800000004},{"$f":"VALUE(FIXED(EXP(U$4*-1*'PM2.5 reduction'!U122),9))","v":0.99999088000000003},{"$f":"VALUE(FIXED(EXP(V$4*-1*'PM2.5 reduction'!V122),9))","v":0.99996350700000003},{"$f":"VALUE(FIXED(EXP(W$4*-1*'PM2.5 reduction'!W122),9))","v":0.99996778100000006},{"$f":"VALUE(FIXED(EXP(X$4*-1*'PM2.5 reduction'!X122),9))","v":0.99996778100000006},{"$f":"VALUE(FIXED(EXP(Y$4*-1*'PM2.5 reduction'!Y122),9))","v":0.99996557500000005},{"$f":"VALUE(FIXED(EXP(Z$4*-1*'PM2.5 reduction'!Z122),9))","v":0.999925964},{"$f":"VALUE(FIXED(EXP(AA$4*-1*'PM2.5 reduction'!AA122),9))","v":0.99994554999999996},{"$f":"VALUE(FIXED(EXP(AB$4*-1*'PM2.5 reduction'!AB122),9))","v":0.99993703700000003},{"$f":"VALUE(FIXED(EXP(AC$4*-1*'PM2.5 reduction'!AC122),9))","v":0.99993654300000001},{"$f":"VALUE(FIXED(EXP(AD$4*-1*'PM2.5 reduction'!AD122),9))","v":0.99998787300000003},{"$f":"VALUE(FIXED(EXP(AE$4*-1*'PM2.5 reduction'!AE122),9))","v":0.99998715500000002},{"$f":"VALUE(FIXED(EXP(AF$4*-1*'PM2.5 reduction'!AF122),9))","v":0.99996717400000001},{"$f":"VALUE(FIXED(EXP(AG$4*-1*'PM2.5 reduction'!AG122),9))","v":0.99998715500000002},{"$f":"VALUE(FIXED(EXP(AH$4*-1*'PM2.5 reduction'!AH122),9))","v":0.99996063300000004},{"$f":"VALUE(FIXED(EXP(AI$4*-1*'PM2.5 reduction'!AI122),9))","v":0.999936304},{"$f":"VALUE(FIXED(EXP(AJ$4*-1*'PM2.5 reduction'!AJ122),9))","v":0.99996834800000001},{"$f":"VALUE(FIXED(EXP(AK$4*-1*'PM2.5 reduction'!AK122),9))","v":0.999984659},{"$f":"VALUE(FIXED(EXP(AL$4*-1*'PM2.5 reduction'!AL122),9))","v":0.99998125800000004},{"$f":"VALUE(FIXED(EXP(AM$4*-1*'PM2.5 reduction'!AM122),9))","v":0.99995765700000006},{"$f":"VALUE(FIXED(EXP(AN$4*-1*'PM2.5 reduction'!AN122),9))","v":0.99998868500000004},{"$f":"VALUE(FIXED(EXP(AO$4*-1*'PM2.5 reduction'!AO122),9))","v":0.99998868500000004},{"$f":"VALUE(FIXED(EXP(AP$4*-1*'PM2.5 reduction'!AP122),9))","v":0.99997023799999996},{"$f":"VALUE(FIXED(EXP(AQ$4*-1*'PM2.5 reduction'!AQ122),9))","v":0.999960352},{"$f":"VALUE(FIXED(EXP(AR$4*-1*'PM2.5 reduction'!AR122),9))","v":0.99994952000000004},{"$f":"VALUE(FIXED(EXP(AS$4*-1*'PM2.5 reduction'!AS122),9))","v":0.99998562400000002},{"$f":"VALUE(FIXED(EXP(AT$4*-1*'PM2.5 reduction'!AT122),9))","v":1},{"$f":"VALUE(FIXED(EXP(AU$4*-1*'PM2.5 reduction'!AU122),9))","v":1},{"$f":"VALUE(FIXED(EXP(AV$4*-1*'PM2.5 reduction'!AV122),9))","v":0.99997939400000002},{"$f":"VALUE(FIXED(EXP(AW$4*-1*'PM2.5 reduction'!AW122),9))","v":0.99996399700000005},{"$f":"VALUE(FIXED(EXP(AX$4*-1*'PM2.5 reduction'!AX122),9))","v":0.99996726000000002},{"$f":"VALUE(FIXED(EXP(AY$4*-1*'PM2.5 reduction'!AY122),9))","v":0.99995869900000001},{"$f":"VALUE(FIXED(EXP(AZ$4*-1*'PM2.5 reduction'!AZ122),9))","v":0.99995162800000004},{"$f":"VALUE(FIXED(EXP(BA$4*-1*'PM2.5 reduction'!BA122),9))","v":0.99996070000000004},{"$f":"VALUE(FIXED(EXP(BB$4*-1*'PM2.5 reduction'!BB122),9))","v":0.99996394099999997},{"$f":"VALUE(FIXED(EXP(BC$4*-1*'PM2.5 reduction'!BC122),9))","v":0.99999088000000003}]
[null,"Male 30-34",{"$f":"VALUE(FIXED(EXP(C$4*-1*'PM2.5 reduction'!C123),9))","v":0.99992904800000004},{"$f":"VALUE(FIXED(EXP(D$4*-1*'PM2.5 reduction'!D123),9))","v":0.99993545399999995},{"$f":"VALUE(FIXED(EXP(E$4*-1*'PM2.5 reduction'!E123),9))","v":0.99998050299999997},{"$f":"VALUE(FIXED(EXP(F$4*-1*'PM2.5 reduction'!F123),9))","v":0.99998520899999999},{"$f":"VALUE(FIXED(EXP(G$4*-1*'PM2.5 reduction'!G123),9))","v":0.99999294000000005},{"$f":"VALUE(FIXED(EXP(H$4*-1*'PM2.5 reduction'!H123),9))","v":0.99998040600000004},{"$f":"VALUE(FIXED(EXP(I$4*-1*'PM2.5 reduction'!I123),9))","v":0.99998588600000005},{"$f":"VALUE(FIXED(EXP(J$4*-1*'PM2.5 reduction'!J123),9))","v":0.99996797199999998},{"$f":"VALUE(FIXED(EXP(K$4*-1*'PM2.5 reduction'!K123),9))","v":0.99996958400000002},{"$f":"VALUE(FIXED(EXP(L$4*-1*'PM2.5 reduction'!L123),9))","v":0.99998727499999995},{"$f":"VALUE(FIXED(EXP(M$4*-1*'PM2.5 reduction'!M123),9))","v":0.99998727499999995},{"$f":"VALUE(FIXED(EXP(N$4*-1*'PM2.5 reduction'!N123),9))","v":0.99993989699999997},{"$f":"VALUE(FIXED(EXP(O$4*-1*'PM2.5 reduction'!O123),9))","v":0.99998058000000001},{"$f":"VALUE(FIXED(EXP(P$4*-1*'PM2.5 reduction'!P123),9))","v":0.99994859000000003},{"$f":"VALUE(FIXED(EXP(Q$4*-1*'PM2.5 reduction'!Q123),9))","v":0.99997177800000003},{"$f":"VALUE(FIXED(EXP(R$4*-1*'PM2.5 reduction'!R123),9))","v":0.99996115799999996},{"$f":"VALUE(FIXED(EXP(S$4*-1*'PM2.5 reduction'!S123),9))","v":0.99994651700000003},{"$f":"VALUE(FIXED(EXP(T$4*-1*'PM2.5 reduction'!T123),9))","v":0.999918682},{"$f":"VALUE(FIXED(EXP(U$4*-1*'PM2.5 reduction'!U123),9))","v":0.99999088000000003},{"$f":"VALUE(FIXED(EXP(V$4*-1*'PM2.5 reduction'!V123),9))","v":0.99996314600000002},{"$f":"VALUE(FIXED(EXP(W$4*-1*'PM2.5 reduction'!W123),9))","v":0.99996741300000003},{"$f":"VALUE(FIXED(EXP(X$4*-1*'PM2.5 reduction'!X123),9))","v":0.99996741300000003},{"$f":"VALUE(FIXED(EXP(Y$4*-1*'PM2.5 reduction'!Y123),9))","v":0.99996484100000005},{"$f":"VALUE(FIXED(EXP(Z$4*-1*'PM2.5 reduction'!Z123),9))","v":0.99992743399999995},{"$f":"VALUE(FIXED(EXP(AA$4*-1*'PM2.5 reduction'!AA123),9))","v":0.99994646700000001},{"$f":"VALUE(FIXED(EXP(AB$4*-1*'PM2.5 reduction'!AB123),9))","v":0.99994219200000001},{"$f":"VALUE(FIXED(EXP(AC$4*-1*'PM2.5 reduction'!AC123),9))","v":0.99993788699999997},{"$f":"VALUE(FIXED(EXP(AD$4*-1*'PM2.5 reduction'!AD123),9))","v":0.99998718200000003},{"$f":"VALUE(FIXED(EXP(AE$4*-1*'PM2.5 reduction'!AE123),9))","v":0.99998629699999997},{"$f":"VALUE(FIXED(EXP(AF$4*-1*'PM2.5 reduction'!AF123),9))","v":0.99996701799999999},{"$f":"VALUE(FIXED(EXP(AG$4*-1*'PM2.5 reduction'!AG123),9))","v":0.99998629699999997},{"$f":"VALUE(FIXED(EXP(AH$4*-1*'PM2.5 reduction'!AH123),9))","v":0.99996017699999995},{"$f":"VALUE(FIXED(EXP(AI$4*-1*'PM2.5 reduction'!AI123),9))","v":0.99993887299999995},{"$f":"VALUE(FIXED(EXP(AJ$4*-1*'PM2.5 reduction'!AJ123),9))","v":0.99996909700000003},{"$f":"VALUE(FIXED(EXP(AK$4*-1*'PM2.5 reduction'!AK123),9))","v":0.99998467099999999},{"$f":"VALUE(FIXED(EXP(AL$4*-1*'PM2.5 reduction'!AL123),9))","v":0.999981279},{"$f":"VALUE(FIXED(EXP(AM$4*-1*'PM2.5 reduction'!AM123),9))","v":0.99995791700000003},{"$f":"VALUE(FIXED(EXP(AN$4*-1*'PM2.5 reduction'!AN123),9))","v":0.99998853600000004},{"$f":"VALUE(FIXED(EXP(AO$4*-1*'PM2.5 reduction'!AO123),9))","v":0.99998853600000004},{"$f":"VALUE(FIXED(EXP(AP$4*-1*'PM2.5 reduction'!AP123),9))","v":0.99996970699999999},{"$f":"VALUE(FIXED(EXP(AQ$4*-1*'PM2.5 reduction'!AQ123),9))","v":0.999961086},{"$f":"VALUE(FIXED(EXP(AR$4*-1*'PM2.5 reduction'!AR123),9))","v":0.99995141899999995},{"$f":"VALUE(FIXED(EXP(AS$4*-1*'PM2.5 reduction'!AS123),9))","v":0.99998588600000005},{"$f":"VALUE(FIXED(EXP(AT$4*-1*'PM2.5 reduction'!AT123),9))","v":1},{"$f":"VALUE(FIXED(EXP(AU$4*-1*'PM2.5 reduction'!AU123),9))","v":1},{"$f":"VALUE(FIXED(EXP(AV$4*-1*'PM2.5 reduction'!AV123),9))","v":0.99997897700000005},{"$f":"VALUE(FIXED(EXP(AW$4*-1*'PM2.5 reduction'!AW123),9))","v":0.99996306599999996},{"$f":"VALUE(FIXED(EXP(AX$4*-1*'PM2.5 reduction'!AX123),9))","v":0.99996670499999996},{"$f":"VALUE(FIXED(EXP(AY$4*-1*'PM2.5 reduction'!AY123),9))","v":0.99996189199999996},{"$f":"VALUE(FIXED(EXP(AZ$4*-1*'PM2.5 reduction'!AZ123),9))","v":0.999957231},{"$f":"VALUE(FIXED(EXP(BA$4*-1*'PM2.5 reduction'!BA123),9))","v":0.99996133300000001},{"$f":"VALUE(FIXED(EXP(BB$4*-1*'PM2.5 reduction'!BB123),9))","v":0.99996400200000002},{"$f":"VALUE(FIXED(EXP(BC$4*-1*'PM2.5 reduction'!BC123),9))","v":0.99999088000000003}]
[null,"Male 35-39",{"$f":"VALUE(FIXED(EXP(C$4*-1*'PM2.5 reduction'!C124),9))","v":0.99993347300000002},{"$f":"VALUE(FIXED(EXP(D$4*-1*'PM2.5 reduction'!D124),9))","v":0.99994006700000004},{"$f":"VALUE(FIXED(EXP(E$4*-1*'PM2.5 reduction'!E124),9))","v":0.99998103199999999},{"$f":"VALUE(FIXED(EXP(F$4*-1*'PM2.5 reduction'!F124),9))","v":0.99998560400000003},{"$f":"VALUE(FIXED(EXP(G$4*-1*'PM2.5 reduction'!G124),9))","v":0.99999286600000004},{"$f":"VALUE(FIXED(EXP(H$4*-1*'PM2.5 reduction'!H124),9))","v":0.999981126},{"$f":"VALUE(FIXED(EXP(I$4*-1*'PM2.5 reduction'!I124),9))","v":0.99998574600000001},{"$f":"VALUE(FIXED(EXP(J$4*-1*'PM2.5 reduction'!J124),9))","v":0.99996848000000005},{"$f":"VALUE(FIXED(EXP(K$4*-1*'PM2.5 reduction'!K124),9))","v":0.99996942099999997},{"$f":"VALUE(FIXED(EXP(L$4*-1*'PM2.5 reduction'!L124),9))","v":0.99998695199999998},{"$f":"VALUE(FIXED(EXP(M$4*-1*'PM2.5 reduction'!M124),9))","v":0.99998695199999998},{"$f":"VALUE(FIXED(EXP(N$4*-1*'PM2.5 reduction'!N124),9))","v":0.999941776},{"$f":"VALUE(FIXED(EXP(O$4*-1*'PM2.5 reduction'!O124),9))","v":0.99998155499999997},{"$f":"VALUE(FIXED(EXP(P$4*-1*'PM2.5 reduction'!P124),9))","v":0.99994822299999997},{"$f":"VALUE(FIXED(EXP(Q$4*-1*'PM2.5 reduction'!Q124),9))","v":0.99997187899999995},{"$f":"VALUE(FIXED(EXP(R$4*-1*'PM2.5 reduction'!R124),9))","v":0.99996194599999999},{"$f":"VALUE(FIXED(EXP(S$4*-1*'PM2.5 reduction'!S124),9))","v":0.99995008399999996},{"$f":"VALUE(FIXED(EXP(T$4*-1*'PM2.5 reduction'!T124),9))","v":0.99992051100000001},{"$f":"VALUE(FIXED(EXP(U$4*-1*'PM2.5 reduction'!U124),9))","v":0.99999088000000003},{"$f":"VALUE(FIXED(EXP(V$4*-1*'PM2.5 reduction'!V124),9))","v":0.99996396600000004},{"$f":"VALUE(FIXED(EXP(W$4*-1*'PM2.5 reduction'!W124),9))","v":0.99996822500000004},{"$f":"VALUE(FIXED(EXP(X$4*-1*'PM2.5 reduction'!X124),9))","v":0.99996822500000004},{"$f":"VALUE(FIXED(EXP(Y$4*-1*'PM2.5 reduction'!Y124),9))","v":0.99996529599999995},{"$f":"VALUE(FIXED(EXP(Z$4*-1*'PM2.5 reduction'!Z124),9))","v":0.99992926000000004},{"$f":"VALUE(FIXED(EXP(AA$4*-1*'PM2.5 reduction'!AA124),9))","v":0.99994849100000005},{"$f":"VALUE(FIXED(EXP(AB$4*-1*'PM2.5 reduction'!AB124),9))","v":0.99994787100000004},{"$f":"VALUE(FIXED(EXP(AC$4*-1*'PM2.5 reduction'!AC124),9))","v":0.99993977300000003},{"$f":"VALUE(FIXED(EXP(AD$4*-1*'PM2.5 reduction'!AD124),9))","v":0.99998713699999997},{"$f":"VALUE(FIXED(EXP(AE$4*-1*'PM2.5 reduction'!AE124),9))","v":0.99998601200000004},{"$f":"VALUE(FIXED(EXP(AF$4*-1*'PM2.5 reduction'!AF124),9))","v":0.99996652799999997},{"$f":"VALUE(FIXED(EXP(AG$4*-1*'PM2.5 reduction'!AG124),9))","v":0.99998601200000004},{"$f":"VALUE(FIXED(EXP(AH$4*-1*'PM2.5 reduction'!AH124),9))","v":0.999960878},{"$f":"VALUE(FIXED(EXP(AI$4*-1*'PM2.5 reduction'!AI124),9))","v":0.99994216899999999},{"$f":"VALUE(FIXED(EXP(AJ$4*-1*'PM2.5 reduction'!AJ124),9))","v":0.99996908299999998},{"$f":"VALUE(FIXED(EXP(AK$4*-1*'PM2.5 reduction'!AK124),9))","v":0.99998494999999998},{"$f":"VALUE(FIXED(EXP(AL$4*-1*'PM2.5 reduction'!AL124),9))","v":0.99998185799999995},{"$f":"VALUE(FIXED(EXP(AM$4*-1*'PM2.5 reduction'!AM124),9))","v":0.99995823699999997},{"$f":"VALUE(FIXED(EXP(AN$4*-1*'PM2.5 reduction'!AN124),9))","v":0.99998793200000002},{"$f":"VALUE(FIXED(EXP(AO$4*-1*'PM2.5 reduction'!AO124),9))","v":0.99998793200000002},{"$f":"VALUE(FIXED(EXP(AP$4*-1*'PM2.5 reduction'!AP124),9))","v":0.99997222200000002},{"$f":"VALUE(FIXED(EXP(AQ$4*-1*'PM2.5 reduction'!AQ124),9))","v":0.99996088699999996},{"$f":"VALUE(FIXED(EXP(AR$4*-1*'PM2.5 reduction'!AR124),9))","v":0.99995420099999999},{"$f":"VALUE(FIXED(EXP(AS$4*-1*'PM2.5 reduction'!AS124),9))","v":0.99998574600000001},{"$f":"VALUE(FIXED(EXP(AT$4*-1*'PM2.5 reduction'!AT124),9))","v":1},{"$f":"VALUE(FIXED(EXP(AU$4*-1*'PM2.5 reduction'!AU124),9))","v":1},{"$f":"VALUE(FIXED(EXP(AV$4*-1*'PM2.5 reduction'!AV124),9))","v":0.99997983899999998},{"$f":"VALUE(FIXED(EXP(AW$4*-1*'PM2.5 reduction'!AW124),9))","v":0.99996403499999997},{"$f":"VALUE(FIXED(EXP(AX$4*-1*'PM2.5 reduction'!AX124),9))","v":0.99996750599999995},{"$f":"VALUE(FIXED(EXP(AY$4*-1*'PM2.5 reduction'!AY124),9))","v":0.99996457599999999},{"$f":"VALUE(FIXED(EXP(AZ$4*-1*'PM2.5 reduction'!AZ124),9))","v":0.99996080099999995},{"$f":"VALUE(FIXED(EXP(BA$4*-1*'PM2.5 reduction'!BA124),9))","v":0.99996069499999996},{"$f":"VALUE(FIXED(EXP(BB$4*-1*'PM2.5 reduction'!BB124),9))","v":0.99996375699999995},{"$f":"VALUE(FIXED(EXP(BC$4*-1*'PM2.5 reduction'!BC124),9))","v":0.99999088000000003}]
[null,"Male 40-44",{"$f":"VALUE(FIXED(EXP(C$4*-1*'PM2.5 reduction'!C125),9))","v":0.99993167500000002},{"$f":"VALUE(FIXED(EXP(D$4*-1*'PM2.5 reduction'!D125),9))","v":0.99993829199999995},{"$f":"VALUE(FIXED(EXP(E$4*-1*'PM2.5 reduction'!E125),9))","v":0.99998085599999997},{"$f":"VALUE(FIXED(EXP(F$4*-1*'PM2.5 reduction'!F125),9))","v":0.99998550799999997},{"$f":"VALUE(FIXED(EXP(G$4*-1*'PM2.5 reduction'!G125),9))","v":0.99999268100000005},{"$f":"VALUE(FIXED(EXP(H$4*-1*'PM2.5 reduction'!H125),9))","v":0.999980918},{"$f":"VALUE(FIXED(EXP(I$4*-1*'PM2.5 reduction'!I125),9))","v":0.99998648099999998},{"$f":"VALUE(FIXED(EXP(J$4*-1*'PM2.5 reduction'!J125),9))","v":0.99996995099999997},{"$f":"VALUE(FIXED(EXP(K$4*-1*'PM2.5 reduction'!K125),9))","v":0.99997025299999998},{"$f":"VALUE(FIXED(EXP(L$4*-1*'PM2.5 reduction'!L125),9))","v":0.99998790900000001},{"$f":"VALUE(FIXED(EXP(M$4*-1*'PM2.5 reduction'!M125),9))","v":0.99998790900000001},{"$f":"VALUE(FIXED(EXP(N$4*-1*'PM2.5 reduction'!N125),9))","v":0.99994481700000004},{"$f":"VALUE(FIXED(EXP(O$4*-1*'PM2.5 reduction'!O125),9))","v":0.99998235499999999},{"$f":"VALUE(FIXED(EXP(P$4*-1*'PM2.5 reduction'!P125),9))","v":0.99994821700000003},{"$f":"VALUE(FIXED(EXP(Q$4*-1*'PM2.5 reduction'!Q125),9))","v":0.99997234899999998},{"$f":"VALUE(FIXED(EXP(R$4*-1*'PM2.5 reduction'!R125),9))","v":0.99996068400000004},{"$f":"VALUE(FIXED(EXP(S$4*-1*'PM2.5 reduction'!S125),9))","v":0.99995296700000003},{"$f":"VALUE(FIXED(EXP(T$4*-1*'PM2.5 reduction'!T125),9))","v":0.99992258199999995},{"$f":"VALUE(FIXED(EXP(U$4*-1*'PM2.5 reduction'!U125),9))","v":0.99999088000000003},{"$f":"VALUE(FIXED(EXP(V$4*-1*'PM2.5 reduction'!V125),9))","v":0.99996296200000001},{"$f":"VALUE(FIXED(EXP(W$4*-1*'PM2.5 reduction'!W125),9))","v":0.999968093},{"$f":"VALUE(FIXED(EXP(X$4*-1*'PM2.5 reduction'!X125),9))","v":0.999968093},{"$f":"VALUE(FIXED(EXP(Y$4*-1*'PM2.5 reduction'!Y125),9))","v":0.99996516499999999},{"$f":"VALUE(FIXED(EXP(Z$4*-1*'PM2.5 reduction'!Z125),9))","v":0.99993100800000001},{"$f":"VALUE(FIXED(EXP(AA$4*-1*'PM2.5 reduction'!AA125),9))","v":0.99995123500000005},{"$f":"VALUE(FIXED(EXP(AB$4*-1*'PM2.5 reduction'!AB125),9))","v":0.99994590400000005},{"$f":"VALUE(FIXED(EXP(AC$4*-1*'PM2.5 reduction'!AC125),9))","v":0.99994295300000002},{"$f":"VALUE(FIXED(EXP(AD$4*-1*'PM2.5 reduction'!AD125),9))","v":0.99998768800000004},{"$f":"VALUE(FIXED(EXP(AE$4*-1*'PM2.5 reduction'!AE125),9))","v":0.99998652099999996},{"$f":"VALUE(FIXED(EXP(AF$4*-1*'PM2.5 reduction'!AF125),9))","v":0.99996934100000001},{"$f":"VALUE(FIXED(EXP(AG$4*-1*'PM2.5 reduction'!AG125),9))","v":0.99998652099999996},{"$f":"VALUE(FIXED(EXP(AH$4*-1*'PM2.5 reduction'!AH125),9))","v":0.99996081999999997},{"$f":"VALUE(FIXED(EXP(AI$4*-1*'PM2.5 reduction'!AI125),9))","v":0.99994541000000003},{"$f":"VALUE(FIXED(EXP(AJ$4*-1*'PM2.5 reduction'!AJ125),9))","v":0.99996856000000001},{"$f":"VALUE(FIXED(EXP(AK$4*-1*'PM2.5 reduction'!AK125),9))","v":0.99998461299999997},{"$f":"VALUE(FIXED(EXP(AL$4*-1*'PM2.5 reduction'!AL125),9))","v":0.99998120999999995},{"$f":"VALUE(FIXED(EXP(AM$4*-1*'PM2.5 reduction'!AM125),9))","v":0.99995804099999996},{"$f":"VALUE(FIXED(EXP(AN$4*-1*'PM2.5 reduction'!AN125),9))","v":0.99998822099999995},{"$f":"VALUE(FIXED(EXP(AO$4*-1*'PM2.5 reduction'!AO125),9))","v":0.99998822099999995},{"$f":"VALUE(FIXED(EXP(AP$4*-1*'PM2.5 reduction'!AP125),9))","v":0.99997257500000003},{"$f":"VALUE(FIXED(EXP(AQ$4*-1*'PM2.5 reduction'!AQ125),9))","v":0.99996155900000006},{"$f":"VALUE(FIXED(EXP(AR$4*-1*'PM2.5 reduction'!AR125),9))","v":0.99995662799999996},{"$f":"VALUE(FIXED(EXP(AS$4*-1*'PM2.5 reduction'!AS125),9))","v":0.99998648099999998},{"$f":"VALUE(FIXED(EXP(AT$4*-1*'PM2.5 reduction'!AT125),9))","v":1},{"$f":"VALUE(FIXED(EXP(AU$4*-1*'PM2.5 reduction'!AU125),9))","v":1},{"$f":"VALUE(FIXED(EXP(AV$4*-1*'PM2.5 reduction'!AV125),9))","v":0.99997829500000002},{"$f":"VALUE(FIXED(EXP(AW$4*-1*'PM2.5 reduction'!AW125),9))","v":0.999964301},{"$f":"VALUE(FIXED(EXP(AX$4*-1*'PM2.5 reduction'!AX125),9))","v":0.99996960199999996},{"$f":"VALUE(FIXED(EXP(AY$4*-1*'PM2.5 reduction'!AY125),9))","v":0.99996538999999995},{"$f":"VALUE(FIXED(EXP(AZ$4*-1*'PM2.5 reduction'!AZ125),9))","v":0.99996213899999997},{"$f":"VALUE(FIXED(EXP(BA$4*-1*'PM2.5 reduction'!BA125),9))","v":0.999960497},{"$f":"VALUE(FIXED(EXP(BB$4*-1*'PM2.5 reduction'!BB125),9))","v":0.99996432599999996},{"$f":"VALUE(FIXED(EXP(BC$4*-1*'PM2.5 reduction'!BC125),9))","v":0.99999088000000003}]
[null,"Male 45-49",{"$f":"VALUE(FIXED(EXP(C$4*-1*'PM2.5 reduction'!C126),9))","v":0.99993379199999999},{"$f":"VALUE(FIXED(EXP(D$4*-1*'PM2.5 reduction'!D126),9))","v":0.99994012399999999},{"$f":"VALUE(FIXED(EXP(E$4*-1*'PM2.5 reduction'!E126),9))","v":0.99998136100000001},{"$f":"VALUE(FIXED(EXP(F$4*-1*'PM2.5 reduction'!F126),9))","v":0.99998510500000004},{"$f":"VALUE(FIXED(EXP(G$4*-1*'PM2.5 reduction'!G126),9))","v":0.99999249700000004},{"$f":"VALUE(FIXED(EXP(H$4*-1*'PM2.5 reduction'!H126),9))","v":0.99998145599999999},{"$f":"VALUE(FIXED(EXP(I$4*-1*'PM2.5 reduction'!I126),9))","v":0.99998572600000002},{"$f":"VALUE(FIXED(EXP(J$4*-1*'PM2.5 reduction'!J126),9))","v":0.99997008499999995},{"$f":"VALUE(FIXED(EXP(K$4*-1*'PM2.5 reduction'!K126),9))","v":0.99997036299999997},{"$f":"VALUE(FIXED(EXP(L$4*-1*'PM2.5 reduction'!L126),9))","v":0.99998684100000002},{"$f":"VALUE(FIXED(EXP(M$4*-1*'PM2.5 reduction'!M126),9))","v":0.99998684100000002},{"$f":"VALUE(FIXED(EXP(N$4*-1*'PM2.5 reduction'!N126),9))","v":0.99994423700000001},{"$f":"VALUE(FIXED(EXP(O$4*-1*'PM2.5 reduction'!O126),9))","v":0.99998222400000003},{"$f":"VALUE(FIXED(EXP(P$4*-1*'PM2.5 reduction'!P126),9))","v":0.99994857999999998},{"$f":"VALUE(FIXED(EXP(Q$4*-1*'PM2.5 reduction'!Q126),9))","v":0.999973424},{"$f":"VALUE(FIXED(EXP(R$4*-1*'PM2.5 reduction'!R126),9))","v":0.999961192},{"$f":"VALUE(FIXED(EXP(S$4*-1*'PM2.5 reduction'!S126),9))","v":0.99995525600000001},{"$f":"VALUE(FIXED(EXP(T$4*-1*'PM2.5 reduction'!T126),9))","v":0.99992227},{"$f":"VALUE(FIXED(EXP(U$4*-1*'PM2.5 reduction'!U126),9))","v":0.99999088000000003},{"$f":"VALUE(FIXED(EXP(V$4*-1*'PM2.5 reduction'!V126),9))","v":0.99996374600000004},{"$f":"VALUE(FIXED(EXP(W$4*-1*'PM2.5 reduction'!W126),9))","v":0.99996919100000003},{"$f":"VALUE(FIXED(EXP(X$4*-1*'PM2.5 reduction'!X126),9))","v":0.99996919100000003},{"$f":"VALUE(FIXED(EXP(Y$4*-1*'PM2.5 reduction'!Y126),9))","v":0.99996581399999995},{"$f":"VALUE(FIXED(EXP(Z$4*-1*'PM2.5 reduction'!Z126),9))","v":0.99993375200000001},{"$f":"VALUE(FIXED(EXP(AA$4*-1*'PM2.5 reduction'!AA126),9))","v":0.99995297599999999},{"$f":"VALUE(FIXED(EXP(AB$4*-1*'PM2.5 reduction'!AB126),9))","v":0.99994862299999998},{"$f":"VALUE(FIXED(EXP(AC$4*-1*'PM2.5 reduction'!AC126),9))","v":0.99994545000000001},{"$f":"VALUE(FIXED(EXP(AD$4*-1*'PM2.5 reduction'!AD126),9))","v":0.99998850399999994},{"$f":"VALUE(FIXED(EXP(AE$4*-1*'PM2.5 reduction'!AE126),9))","v":0.99998741800000002},{"$f":"VALUE(FIXED(EXP(AF$4*-1*'PM2.5 reduction'!AF126),9))","v":0.99996732499999996},{"$f":"VALUE(FIXED(EXP(AG$4*-1*'PM2.5 reduction'!AG126),9))","v":0.99998741800000002},{"$f":"VALUE(FIXED(EXP(AH$4*-1*'PM2.5 reduction'!AH126),9))","v":0.99996136099999999},{"$f":"VALUE(FIXED(EXP(AI$4*-1*'PM2.5 reduction'!AI126),9))","v":0.99994763399999997},{"$f":"VALUE(FIXED(EXP(AJ$4*-1*'PM2.5 reduction'!AJ126),9))","v":0.99996829099999995},{"$f":"VALUE(FIXED(EXP(AK$4*-1*'PM2.5 reduction'!AK126),9))","v":0.99998479299999998},{"$f":"VALUE(FIXED(EXP(AL$4*-1*'PM2.5 reduction'!AL126),9))","v":0.99998234200000002},{"$f":"VALUE(FIXED(EXP(AM$4*-1*'PM2.5 reduction'!AM126),9))","v":0.999958554},{"$f":"VALUE(FIXED(EXP(AN$4*-1*'PM2.5 reduction'!AN126),9))","v":0.99998809300000002},{"$f":"VALUE(FIXED(EXP(AO$4*-1*'PM2.5 reduction'!AO126),9))","v":0.99998809300000002},{"$f":"VALUE(FIXED(EXP(AP$4*-1*'PM2.5 reduction'!AP126),9))","v":0.99997324099999996},{"$f":"VALUE(FIXED(EXP(AQ$4*-1*'PM2.5 reduction'!AQ126),9))","v":0.99996182300000003},{"$f":"VALUE(FIXED(EXP(AR$4*-1*'PM2.5 reduction'!AR126),9))","v":0.99995841200000002},{"$f":"VALUE(FIXED(EXP(AS$4*-1*'PM2.5 reduction'!AS126),9))","v":0.99998572600000002},{"$f":"VALUE(FIXED(EXP(AT$4*-1*'PM2.5 reduction'!AT126),9))","v":1},{"$f":"VALUE(FIXED(EXP(AU$4*-1*'PM2.5 reduction'!AU126),9))","v":1},{"$f":"VALUE(FIXED(EXP(AV$4*-1*'PM2.5 reduction'!AV126),9))","v":0.99997908800000002},{"$f":"VALUE(FIXED(EXP(AW$4*-1*'PM2.5 reduction'!AW126),9))","v":0.99996456099999997},{"$f":"VALUE(FIXED(EXP(AX$4*-1*'PM2.5 reduction'!AX126),9))","v":0.999969726},{"$f":"VALUE(FIXED(EXP(AY$4*-1*'PM2.5 reduction'!AY126),9))","v":0.99996563100000002},{"$f":"VALUE(FIXED(EXP(AZ$4*-1*'PM2.5 reduction'!AZ126),9))","v":0.99996141400000005},{"$f":"VALUE(FIXED(EXP(BA$4*-1*'PM2.5 reduction'!BA126),9))","v":0.99996078099999997},{"$f":"VALUE(FIXED(EXP(BB$4*-1*'PM2.5 reduction'!BB126),9))","v":0.99996487700000003},{"$f":"VALUE(FIXED(EXP(BC$4*-1*'PM2.5 reduction'!BC126),9))","v":0.99999088000000003}]
[null,"Male 50-54",{"$f":"VALUE(FIXED(EXP(C$4*-1*'PM2.5 reduction'!C127),9))","v":0.99993542599999996},{"$f":"VALUE(FIXED(EXP(D$4*-1*'PM2.5 reduction'!D127),9))","v":0.99994282899999998},{"$f":"VALUE(FIXED(EXP(E$4*-1*'PM2.5 reduction'!E127),9))","v":0.99998179899999995},{"$f":"VALUE(FIXED(EXP(F$4*-1*'PM2.5 reduction'!F127),9))","v":0.99998504399999999},{"$f":"VALUE(FIXED(EXP(G$4*-1*'PM2.5 reduction'!G127),9))","v":0.99999306799999998},{"$f":"VALUE(FIXED(EXP(H$4*-1*'PM2.5 reduction'!H127),9))","v":0.99998149300000005},{"$f":"VALUE(FIXED(EXP(I$4*-1*'PM2.5 reduction'!I127),9))","v":0.99998632499999995},{"$f":"VALUE(FIXED(EXP(J$4*-1*'PM2.5 reduction'!J127),9))","v":0.99997122100000002},{"$f":"VALUE(FIXED(EXP(K$4*-1*'PM2.5 reduction'!K127),9))","v":0.99997164900000002},{"$f":"VALUE(FIXED(EXP(L$4*-1*'PM2.5 reduction'!L127),9))","v":0.99998714},{"$f":"VALUE(FIXED(EXP(M$4*-1*'PM2.5 reduction'!M127),9))","v":0.99998714},{"$f":"VALUE(FIXED(EXP(N$4*-1*'PM2.5 reduction'!N127),9))","v":0.99994435299999995},{"$f":"VALUE(FIXED(EXP(O$4*-1*'PM2.5 reduction'!O127),9))","v":0.99998290700000003},{"$f":"VALUE(FIXED(EXP(P$4*-1*'PM2.5 reduction'!P127),9))","v":0.999949211},{"$f":"VALUE(FIXED(EXP(Q$4*-1*'PM2.5 reduction'!Q127),9))","v":0.99997322499999997},{"$f":"VALUE(FIXED(EXP(R$4*-1*'PM2.5 reduction'!R127),9))","v":0.99996039699999995},{"$f":"VALUE(FIXED(EXP(S$4*-1*'PM2.5 reduction'!S127),9))","v":0.99995670400000003},{"$f":"VALUE(FIXED(EXP(T$4*-1*'PM2.5 reduction'!T127),9))","v":0.99992467200000001},{"$f":"VALUE(FIXED(EXP(U$4*-1*'PM2.5 reduction'!U127),9))","v":0.99999088000000003},{"$f":"VALUE(FIXED(EXP(V$4*-1*'PM2.5 reduction'!V127),9))","v":0.99996342999999999},{"$f":"VALUE(FIXED(EXP(W$4*-1*'PM2.5 reduction'!W127),9))","v":0.99996814099999998},{"$f":"VALUE(FIXED(EXP(X$4*-1*'PM2.5 reduction'!X127),9))","v":0.99996814099999998},{"$f":"VALUE(FIXED(EXP(Y$4*-1*'PM2.5 reduction'!Y127),9))","v":0.99996609199999997},{"$f":"VALUE(FIXED(EXP(Z$4*-1*'PM2.5 reduction'!Z127),9))","v":0.99993421400000004},{"$f":"VALUE(FIXED(EXP(AA$4*-1*'PM2.5 reduction'!AA127),9))","v":0.99995346100000004},{"$f":"VALUE(FIXED(EXP(AB$4*-1*'PM2.5 reduction'!AB127),9))","v":0.999951335},{"$f":"VALUE(FIXED(EXP(AC$4*-1*'PM2.5 reduction'!AC127),9))","v":0.99994674400000005},{"$f":"VALUE(FIXED(EXP(AD$4*-1*'PM2.5 reduction'!AD127),9))","v":0.99998831799999999},{"$f":"VALUE(FIXED(EXP(AE$4*-1*'PM2.5 reduction'!AE127),9))","v":0.99998714799999999},{"$f":"VALUE(FIXED(EXP(AF$4*-1*'PM2.5 reduction'!AF127),9))","v":0.99996707900000004},{"$f":"VALUE(FIXED(EXP(AG$4*-1*'PM2.5 reduction'!AG127),9))","v":0.99998714799999999},{"$f":"VALUE(FIXED(EXP(AH$4*-1*'PM2.5 reduction'!AH127),9))","v":0.99996105999999996},{"$f":"VALUE(FIXED(EXP(AI$4*-1*'PM2.5 reduction'!AI127),9))","v":0.99994967199999996},{"$f":"VALUE(FIXED(EXP(AJ$4*-1*'PM2.5 reduction'!AJ127),9))","v":0.99996803499999998},{"$f":"VALUE(FIXED(EXP(AK$4*-1*'PM2.5 reduction'!AK127),9))","v":0.99998505900000001},{"$f":"VALUE(FIXED(EXP(AL$4*-1*'PM2.5 reduction'!AL127),9))","v":0.99998172799999996},{"$f":"VALUE(FIXED(EXP(AM$4*-1*'PM2.5 reduction'!AM127),9))","v":0.99995803599999999},{"$f":"VALUE(FIXED(EXP(AN$4*-1*'PM2.5 reduction'!AN127),9))","v":0.99998799800000004},{"$f":"VALUE(FIXED(EXP(AO$4*-1*'PM2.5 reduction'!AO127),9))","v":0.99998799800000004},{"$f":"VALUE(FIXED(EXP(AP$4*-1*'PM2.5 reduction'!AP127),9))","v":0.99997426099999998},{"$f":"VALUE(FIXED(EXP(AQ$4*-1*'PM2.5 reduction'!AQ127),9))","v":0.99996271699999995},{"$f":"VALUE(FIXED(EXP(AR$4*-1*'PM2.5 reduction'!AR127),9))","v":0.99995944800000003},{"$f":"VALUE(FIXED(EXP(AS$4*-1*'PM2.5 reduction'!AS127),9))","v":0.99998632499999995},{"$f":"VALUE(FIXED(EXP(AT$4*-1*'PM2.5 reduction'!AT127),9))","v":1},{"$f":"VALUE(FIXED(EXP(AU$4*-1*'PM2.5 reduction'!AU127),9))","v":1},{"$f":"VALUE(FIXED(EXP(AV$4*-1*'PM2.5 reduction'!AV127),9))","v":0.99997921000000001},{"$f":"VALUE(FIXED(EXP(AW$4*-1*'PM2.5 reduction'!AW127),9))","v":0.99996442500000005},{"$f":"VALUE(FIXED(EXP(AX$4*-1*'PM2.5 reduction'!AX127),9))","v":0.99997075800000002},{"$f":"VALUE(FIXED(EXP(AY$4*-1*'PM2.5 reduction'!AY127),9))","v":0.999965875},{"$f":"VALUE(FIXED(EXP(AZ$4*-1*'PM2.5 reduction'!AZ127),9))","v":0.99996295599999996},{"$f":"VALUE(FIXED(EXP(BA$4*-1*'PM2.5 reduction'!BA127),9))","v":0.99996043899999998},{"$f":"VALUE(FIXED(EXP(BB$4*-1*'PM2.5 reduction'!BB127),9))","v":0.99996486399999995},{"$f":"VALUE(FIXED(EXP(BC$4*-1*'PM2.5 reduction'!BC127),9))","v":0.99999088000000003}]
[null,"Male 55-59",{"$f":"VALUE(FIXED(EXP(C$4*-1*'PM2.5 reduction'!C128),9))","v":0.99993510299999999},{"$f":"VALUE(FIXED(EXP(D$4*-1*'PM2.5 reduction'!D128),9))","v":0.99994301900000004},{"$f":"VALUE(FIXED(EXP(E$4*-1*'PM2.5 reduction'!E128),9))","v":0.99998140800000002},{"$f":"VALUE(FIXED(EXP(F$4*-1*'PM2.5 reduction'!F128),9))","v":0.99998452500000001},{"$f":"VALUE(FIXED(EXP(G$4*-1*'PM2.5 reduction'!G128),9))","v":0.99999290799999996},{"$f":"VALUE(FIXED(EXP(H$4*-1*'PM2.5 reduction'!H128),9))","v":0.99998188799999999},{"$f":"VALUE(FIXED(EXP(I$4*-1*'PM2.5 reduction'!I128),9))","v":0.99998553400000001},{"$f":"VALUE(FIXED(EXP(J$4*-1*'PM2.5 reduction'!J128),9))","v":0.99997066499999998},{"$f":"VALUE(FIXED(EXP(K$4*-1*'PM2.5 reduction'!K128),9))","v":0.999971006},{"$f":"VALUE(FIXED(EXP(L$4*-1*'PM2.5 reduction'!L128),9))","v":0.99998813799999997},{"$f":"VALUE(FIXED(EXP(M$4*-1*'PM2.5 reduction'!M128),9))","v":0.99998813799999997},{"$f":"VALUE(FIXED(EXP(N$4*-1*'PM2.5 reduction'!N128),9))","v":0.99994366099999998},{"$f":"VALUE(FIXED(EXP(O$4*-1*'PM2.5 reduction'!O128),9))","v":0.99998394599999996},{"$f":"VALUE(FIXED(EXP(P$4*-1*'PM2.5 reduction'!P128),9))","v":0.99994781799999999},{"$f":"VALUE(FIXED(EXP(Q$4*-1*'PM2.5 reduction'!Q128),9))","v":0.999972737},{"$f":"VALUE(FIXED(EXP(R$4*-1*'PM2.5 reduction'!R128),9))","v":0.99996108399999994},{"$f":"VALUE(FIXED(EXP(S$4*-1*'PM2.5 reduction'!S128),9))","v":0.99995773499999996},{"$f":"VALUE(FIXED(EXP(T$4*-1*'PM2.5 reduction'!T128),9))","v":0.99992555400000005},{"$f":"VALUE(FIXED(EXP(U$4*-1*'PM2.5 reduction'!U128),9))","v":0.99999088000000003},{"$f":"VALUE(FIXED(EXP(V$4*-1*'PM2.5 reduction'!V128),9))","v":0.99996399499999999},{"$f":"VALUE(FIXED(EXP(W$4*-1*'PM2.5 reduction'!W128),9))","v":0.99996878099999997},{"$f":"VALUE(FIXED(EXP(X$4*-1*'PM2.5 reduction'!X128),9))","v":0.99996878099999997},{"$f":"VALUE(FIXED(EXP(Y$4*-1*'PM2.5 reduction'!Y128),9))","v":0.99996618000000004},{"$f":"VALUE(FIXED(EXP(Z$4*-1*'PM2.5 reduction'!Z128),9))","v":0.99993569299999996},{"$f":"VALUE(FIXED(EXP(AA$4*-1*'PM2.5 reduction'!AA128),9))","v":0.99995415200000004},{"$f":"VALUE(FIXED(EXP(AB$4*-1*'PM2.5 reduction'!AB128),9))","v":0.99995107400000005},{"$f":"VALUE(FIXED(EXP(AC$4*-1*'PM2.5 reduction'!AC128),9))","v":0.99994766599999996},{"$f":"VALUE(FIXED(EXP(AD$4*-1*'PM2.5 reduction'!AD128),9))","v":0.99998853799999998},{"$f":"VALUE(FIXED(EXP(AE$4*-1*'PM2.5 reduction'!AE128),9))","v":0.99998756099999997},{"$f":"VALUE(FIXED(EXP(AF$4*-1*'PM2.5 reduction'!AF128),9))","v":0.99996911700000002},{"$f":"VALUE(FIXED(EXP(AG$4*-1*'PM2.5 reduction'!AG128),9))","v":0.99998756099999997},{"$f":"VALUE(FIXED(EXP(AH$4*-1*'PM2.5 reduction'!AH128),9))","v":0.99996114400000002},{"$f":"VALUE(FIXED(EXP(AI$4*-1*'PM2.5 reduction'!AI128),9))","v":0.99995089000000004},{"$f":"VALUE(FIXED(EXP(AJ$4*-1*'PM2.5 reduction'!AJ128),9))","v":0.99996792300000004},{"$f":"VALUE(FIXED(EXP(AK$4*-1*'PM2.5 reduction'!AK128),9))","v":0.99998541500000004},{"$f":"VALUE(FIXED(EXP(AL$4*-1*'PM2.5 reduction'!AL128),9))","v":0.99998141900000004},{"$f":"VALUE(FIXED(EXP(AM$4*-1*'PM2.5 reduction'!AM128),9))","v":0.99995783699999996},{"$f":"VALUE(FIXED(EXP(AN$4*-1*'PM2.5 reduction'!AN128),9))","v":0.99998826900000004},{"$f":"VALUE(FIXED(EXP(AO$4*-1*'PM2.5 reduction'!AO128),9))","v":0.99998826900000004},{"$f":"VALUE(FIXED(EXP(AP$4*-1*'PM2.5 reduction'!AP128),9))","v":0.99997568100000001},{"$f":"VALUE(FIXED(EXP(AQ$4*-1*'PM2.5 reduction'!AQ128),9))","v":0.99996198800000002},{"$f":"VALUE(FIXED(EXP(AR$4*-1*'PM2.5 reduction'!AR128),9))","v":0.99995998900000005},{"$f":"VALUE(FIXED(EXP(AS$4*-1*'PM2.5 reduction'!AS128),9))","v":0.99998553400000001},{"$f":"VALUE(FIXED(EXP(AT$4*-1*'PM2.5 reduction'!AT128),9))","v":1},{"$f":"VALUE(FIXED(EXP(AU$4*-1*'PM2.5 reduction'!AU128),9))","v":1},{"$f":"VALUE(FIXED(EXP(AV$4*-1*'PM2.5 reduction'!AV128),9))","v":0.99997938200000003},{"$f":"VALUE(FIXED(EXP(AW$4*-1*'PM2.5 reduction'!AW128),9))","v":0.99996451500000005},{"$f":"VALUE(FIXED(EXP(AX$4*-1*'PM2.5 reduction'!AX128),9))","v":0.99997032699999999},{"$f":"VALUE(FIXED(EXP(AY$4*-1*'PM2.5 reduction'!AY128),9))","v":0.99996583900000002},{"$f":"VALUE(FIXED(EXP(AZ$4*-1*'PM2.5 reduction'!AZ128),9))","v":0.99996199500000005},{"$f":"VALUE(FIXED(EXP(BA$4*-1*'PM2.5 reduction'!BA128),9))","v":0.99996169999999995},{"$f":"VALUE(FIXED(EXP(BB$4*-1*'PM2.5 reduction'!BB128),9))","v":0.99996521500000002},{"$f":"VALUE(FIXED(EXP(BC$4*-1*'PM2.5 reduction'!BC128),9))","v":0.99999088000000003}]
[null,"Male 60-64",{"$f":"VALUE(FIXED(EXP(C$4*-1*'PM2.5 reduction'!C129),9))","v":0.99993557300000002},{"$f":"VALUE(FIXED(EXP(D$4*-1*'PM2.5 reduction'!D129),9))","v":0.99994288899999995},{"$f":"VALUE(FIXED(EXP(E$4*-1*'PM2.5 reduction'!E129),9))","v":0.99998152799999995},{"$f":"VALUE(FIXED(EXP(F$4*-1*'PM2.5 reduction'!F129),9))","v":0.99998513600000005},{"$f":"VALUE(FIXED(EXP(G$4*-1*'PM2.5 reduction'!G129),9))","v":0.999992714},{"$f":"VALUE(FIXED(EXP(H$4*-1*'PM2.5 reduction'!H129),9))","v":0.999982237},{"$f":"VALUE(FIXED(EXP(I$4*-1*'PM2.5 reduction'!I129),9))","v":0.99998637199999996},{"$f":"VALUE(FIXED(EXP(J$4*-1*'PM2.5 reduction'!J129),9))","v":0.99997138299999999},{"$f":"VALUE(FIXED(EXP(K$4*-1*'PM2.5 reduction'!K129),9))","v":0.99997167499999995},{"$f":"VALUE(FIXED(EXP(L$4*-1*'PM2.5 reduction'!L129),9))","v":0.99998885699999995},{"$f":"VALUE(FIXED(EXP(M$4*-1*'PM2.5 reduction'!M129),9))","v":0.99998885699999995},{"$f":"VALUE(FIXED(EXP(N$4*-1*'PM2.5 reduction'!N129),9))","v":0.99994503000000001},{"$f":"VALUE(FIXED(EXP(O$4*-1*'PM2.5 reduction'!O129),9))","v":0.99998437699999998},{"$f":"VALUE(FIXED(EXP(P$4*-1*'PM2.5 reduction'!P129),9))","v":0.99994879800000003},{"$f":"VALUE(FIXED(EXP(Q$4*-1*'PM2.5 reduction'!Q129),9))","v":0.99997212199999996},{"$f":"VALUE(FIXED(EXP(R$4*-1*'PM2.5 reduction'!R129),9))","v":0.99996256699999997},{"$f":"VALUE(FIXED(EXP(S$4*-1*'PM2.5 reduction'!S129),9))","v":0.99995836000000005},{"$f":"VALUE(FIXED(EXP(T$4*-1*'PM2.5 reduction'!T129),9))","v":0.99992497899999999},{"$f":"VALUE(FIXED(EXP(U$4*-1*'PM2.5 reduction'!U129),9))","v":0.99999088000000003},{"$f":"VALUE(FIXED(EXP(V$4*-1*'PM2.5 reduction'!V129),9))","v":0.99996374399999999},{"$f":"VALUE(FIXED(EXP(W$4*-1*'PM2.5 reduction'!W129),9))","v":0.999969102},{"$f":"VALUE(FIXED(EXP(X$4*-1*'PM2.5 reduction'!X129),9))","v":0.999969102},{"$f":"VALUE(FIXED(EXP(Y$4*-1*'PM2.5 reduction'!Y129),9))","v":0.999966311},{"$f":"VALUE(FIXED(EXP(Z$4*-1*'PM2.5 reduction'!Z129),9))","v":0.99993621099999996},{"$f":"VALUE(FIXED(EXP(AA$4*-1*'PM2.5 reduction'!AA129),9))","v":0.99995448899999995},{"$f":"VALUE(FIXED(EXP(AB$4*-1*'PM2.5 reduction'!AB129),9))","v":0.99995084300000003},{"$f":"VALUE(FIXED(EXP(AC$4*-1*'PM2.5 reduction'!AC129),9))","v":0.99994828999999996},{"$f":"VALUE(FIXED(EXP(AD$4*-1*'PM2.5 reduction'!AD129),9))","v":0.999989083},{"$f":"VALUE(FIXED(EXP(AE$4*-1*'PM2.5 reduction'!AE129),9))","v":0.99998800200000004},{"$f":"VALUE(FIXED(EXP(AF$4*-1*'PM2.5 reduction'!AF129),9))","v":0.999967728},{"$f":"VALUE(FIXED(EXP(AG$4*-1*'PM2.5 reduction'!AG129),9))","v":0.99998800200000004},{"$f":"VALUE(FIXED(EXP(AH$4*-1*'PM2.5 reduction'!AH129),9))","v":0.99996082100000006},{"$f":"VALUE(FIXED(EXP(AI$4*-1*'PM2.5 reduction'!AI129),9))","v":0.99995086200000005},{"$f":"VALUE(FIXED(EXP(AJ$4*-1*'PM2.5 reduction'!AJ129),9))","v":0.99996786699999995},{"$f":"VALUE(FIXED(EXP(AK$4*-1*'PM2.5 reduction'!AK129),9))","v":0.99998597899999997},{"$f":"VALUE(FIXED(EXP(AL$4*-1*'PM2.5 reduction'!AL129),9))","v":0.999981338},{"$f":"VALUE(FIXED(EXP(AM$4*-1*'PM2.5 reduction'!AM129),9))","v":0.99995788399999996},{"$f":"VALUE(FIXED(EXP(AN$4*-1*'PM2.5 reduction'!AN129),9))","v":0.99998797900000003},{"$f":"VALUE(FIXED(EXP(AO$4*-1*'PM2.5 reduction'!AO129),9))","v":0.99998797900000003},{"$f":"VALUE(FIXED(EXP(AP$4*-1*'PM2.5 reduction'!AP129),9))","v":0.99997357200000003},{"$f":"VALUE(FIXED(EXP(AQ$4*-1*'PM2.5 reduction'!AQ129),9))","v":0.99996194800000004},{"$f":"VALUE(FIXED(EXP(AR$4*-1*'PM2.5 reduction'!AR129),9))","v":0.99996057000000005},{"$f":"VALUE(FIXED(EXP(AS$4*-1*'PM2.5 reduction'!AS129),9))","v":0.99998637199999996},{"$f":"VALUE(FIXED(EXP(AT$4*-1*'PM2.5 reduction'!AT129),9))","v":1},{"$f":"VALUE(FIXED(EXP(AU$4*-1*'PM2.5 reduction'!AU129),9))","v":1},{"$f":"VALUE(FIXED(EXP(AV$4*-1*'PM2.5 reduction'!AV129),9))","v":0.99998042600000003},{"$f":"VALUE(FIXED(EXP(AW$4*-1*'PM2.5 reduction'!AW129),9))","v":0.99996410700000005},{"$f":"VALUE(FIXED(EXP(AX$4*-1*'PM2.5 reduction'!AX129),9))","v":0.99997106800000002},{"$f":"VALUE(FIXED(EXP(AY$4*-1*'PM2.5 reduction'!AY129),9))","v":0.99996663900000005},{"$f":"VALUE(FIXED(EXP(AZ$4*-1*'PM2.5 reduction'!AZ129),9))","v":0.99996347399999996},{"$f":"VALUE(FIXED(EXP(BA$4*-1*'PM2.5 reduction'!BA129),9))","v":0.99996182},{"$f":"VALUE(FIXED(EXP(BB$4*-1*'PM2.5 reduction'!BB129),9))","v":0.99996552100000002},{"$f":"VALUE(FIXED(EXP(BC$4*-1*'PM2.5 reduction'!BC129),9))","v":0.99999088000000003}]
[null,"Male 65-69",{"$f":"VALUE(FIXED(EXP(C$4*-1*'PM2.5 reduction'!C130),9))","v":0.99993417100000004},{"$f":"VALUE(FIXED(EXP(D$4*-1*'PM2.5 reduction'!D130),9))","v":0.99994406400000002},{"$f":"VALUE(FIXED(EXP(E$4*-1*'PM2.5 reduction'!E130),9))","v":0.99998159600000003},{"$f":"VALUE(FIXED(EXP(F$4*-1*'PM2.5 reduction'!F130),9))","v":0.99998490600000001},{"$f":"VALUE(FIXED(EXP(G$4*-1*'PM2.5 reduction'!G130),9))","v":0.99999269099999999},{"$f":"VALUE(FIXED(EXP(H$4*-1*'PM2.5 reduction'!H130),9))","v":0.99998212600000003},{"$f":"VALUE(FIXED(EXP(I$4*-1*'PM2.5 reduction'!I130),9))","v":0.99998679800000001},{"$f":"VALUE(FIXED(EXP(J$4*-1*'PM2.5 reduction'!J130),9))","v":0.99997090899999996},{"$f":"VALUE(FIXED(EXP(K$4*-1*'PM2.5 reduction'!K130),9))","v":0.99997149100000005},{"$f":"VALUE(FIXED(EXP(L$4*-1*'PM2.5 reduction'!L130),9))","v":0.99998756},{"$f":"VALUE(FIXED(EXP(M$4*-1*'PM2.5 reduction'!M130),9))","v":0.99998756},{"$f":"VALUE(FIXED(EXP(N$4*-1*'PM2.5 reduction'!N130),9))","v":0.99994514899999998},{"$f":"VALUE(FIXED(EXP(O$4*-1*'PM2.5 reduction'!O130),9))","v":0.99998417399999995},{"$f":"VALUE(FIXED(EXP(P$4*-1*'PM2.5 reduction'!P130),9))","v":0.99994883300000004},{"$f":"VALUE(FIXED(EXP(Q$4*-1*'PM2.5 reduction'!Q130),9))","v":0.99997290999999999},{"$f":"VALUE(FIXED(EXP(R$4*-1*'PM2.5 reduction'!R130),9))","v":0.999962303},{"$f":"VALUE(FIXED(EXP(S$4*-1*'PM2.5 reduction'!S130),9))","v":0.99996030300000005},{"$f":"VALUE(FIXED(EXP(T$4*-1*'PM2.5 reduction'!T130),9))","v":0.99992784800000001},{"$f":"VALUE(FIXED(EXP(U$4*-1*'PM2.5 reduction'!U130),9))","v":0.99999088000000003},{"$f":"VALUE(FIXED(EXP(V$4*-1*'PM2.5 reduction'!V130),9))","v":0.99996483400000002},{"$f":"VALUE(FIXED(EXP(W$4*-1*'PM2.5 reduction'!W130),9))","v":0.99996926100000005},{"$f":"VALUE(FIXED(EXP(X$4*-1*'PM2.5 reduction'!X130),9))","v":0.99996926100000005},{"$f":"VALUE(FIXED(EXP(Y$4*-1*'PM2.5 reduction'!Y130),9))","v":0.99996669599999999},{"$f":"VALUE(FIXED(EXP(Z$4*-1*'PM2.5 reduction'!Z130),9))","v":0.99993472900000002},{"$f":"VALUE(FIXED(EXP(AA$4*-1*'PM2.5 reduction'!AA130),9))","v":0.99995497300000002},{"$f":"VALUE(FIXED(EXP(AB$4*-1*'PM2.5 reduction'!AB130),9))","v":0.99995269399999998},{"$f":"VALUE(FIXED(EXP(AC$4*-1*'PM2.5 reduction'!AC130),9))","v":0.999947853},{"$f":"VALUE(FIXED(EXP(AD$4*-1*'PM2.5 reduction'!AD130),9))","v":0.99998844099999995},{"$f":"VALUE(FIXED(EXP(AE$4*-1*'PM2.5 reduction'!AE130),9))","v":0.99998729600000003},{"$f":"VALUE(FIXED(EXP(AF$4*-1*'PM2.5 reduction'!AF130),9))","v":0.99996636299999997},{"$f":"VALUE(FIXED(EXP(AG$4*-1*'PM2.5 reduction'!AG130),9))","v":0.99998729600000003},{"$f":"VALUE(FIXED(EXP(AH$4*-1*'PM2.5 reduction'!AH130),9))","v":0.99996173099999996},{"$f":"VALUE(FIXED(EXP(AI$4*-1*'PM2.5 reduction'!AI130),9))","v":0.99995327099999998},{"$f":"VALUE(FIXED(EXP(AJ$4*-1*'PM2.5 reduction'!AJ130),9))","v":0.99996775599999999},{"$f":"VALUE(FIXED(EXP(AK$4*-1*'PM2.5 reduction'!AK130),9))","v":0.99998578999999999},{"$f":"VALUE(FIXED(EXP(AL$4*-1*'PM2.5 reduction'!AL130),9))","v":0.99998121200000001},{"$f":"VALUE(FIXED(EXP(AM$4*-1*'PM2.5 reduction'!AM130),9))","v":0.99995846799999999},{"$f":"VALUE(FIXED(EXP(AN$4*-1*'PM2.5 reduction'!AN130),9))","v":0.99998782600000002},{"$f":"VALUE(FIXED(EXP(AO$4*-1*'PM2.5 reduction'!AO130),9))","v":0.99998782600000002},{"$f":"VALUE(FIXED(EXP(AP$4*-1*'PM2.5 reduction'!AP130),9))","v":0.99997362099999998},{"$f":"VALUE(FIXED(EXP(AQ$4*-1*'PM2.5 reduction'!AQ130),9))","v":0.99996119299999997},{"$f":"VALUE(FIXED(EXP(AR$4*-1*'PM2.5 reduction'!AR130),9))","v":0.99996169800000001},{"$f":"VALUE(FIXED(EXP(AS$4*-1*'PM2.5 reduction'!AS130),9))","v":0.99998679800000001},{"$f":"VALUE(FIXED(EXP(AT$4*-1*'PM2.5 reduction'!AT130),9))","v":1},{"$f":"VALUE(FIXED(EXP(AU$4*-1*'PM2.5 reduction'!AU130),9))","v":1},{"$f":"VALUE(FIXED(EXP(AV$4*-1*'PM2.5 reduction'!AV130),9))","v":0.99998063500000001},{"$f":"VALUE(FIXED(EXP(AW$4*-1*'PM2.5 reduction'!AW130),9))","v":0.99996532699999996},{"$f":"VALUE(FIXED(EXP(AX$4*-1*'PM2.5 reduction'!AX130),9))","v":0.99997035199999995},{"$f":"VALUE(FIXED(EXP(AY$4*-1*'PM2.5 reduction'!AY130),9))","v":0.99996636999999999},{"$f":"VALUE(FIXED(EXP(AZ$4*-1*'PM2.5 reduction'!AZ130),9))","v":0.99996249400000004},{"$f":"VALUE(FIXED(EXP(BA$4*-1*'PM2.5 reduction'!BA130),9))","v":0.99996081299999995},{"$f":"VALUE(FIXED(EXP(BB$4*-1*'PM2.5 reduction'!BB130),9))","v":0.99996549899999998},{"$f":"VALUE(FIXED(EXP(BC$4*-1*'PM2.5 reduction'!BC130),9))","v":0.99999088000000003}]
[null,"Male 70-74",{"$f":"VALUE(FIXED(EXP(C$4*-1*'PM2.5 reduction'!C131),9))","v":0.99993400300000002},{"$f":"VALUE(FIXED(EXP(D$4*-1*'PM2.5 reduction'!D131),9))","v":0.99994545700000004},{"$f":"VALUE(FIXED(EXP(E$4*-1*'PM2.5 reduction'!E131),9))","v":0.99998156500000002},{"$f":"VALUE(FIXED(EXP(F$4*-1*'PM2.5 reduction'!F131),9))","v":0.99998491199999995},{"$f":"VALUE(FIXED(EXP(G$4*-1*'PM2.5 reduction'!G131),9))","v":0.99999247400000002},{"$f":"VALUE(FIXED(EXP(H$4*-1*'PM2.5 reduction'!H131),9))","v":0.99998214100000005},{"$f":"VALUE(FIXED(EXP(I$4*-1*'PM2.5 reduction'!I131),9))","v":0.99998603500000005},{"$f":"VALUE(FIXED(EXP(J$4*-1*'PM2.5 reduction'!J131),9))","v":0.99997163200000005},{"$f":"VALUE(FIXED(EXP(K$4*-1*'PM2.5 reduction'!K131),9))","v":0.99997230999999998},{"$f":"VALUE(FIXED(EXP(L$4*-1*'PM2.5 reduction'!L131),9))","v":0.99998773200000002},{"$f":"VALUE(FIXED(EXP(M$4*-1*'PM2.5 reduction'!M131),9))","v":0.99998773200000002},{"$f":"VALUE(FIXED(EXP(N$4*-1*'PM2.5 reduction'!N131),9))","v":0.99994582499999995},{"$f":"VALUE(FIXED(EXP(O$4*-1*'PM2.5 reduction'!O131),9))","v":0.99998424900000005},{"$f":"VALUE(FIXED(EXP(P$4*-1*'PM2.5 reduction'!P131),9))","v":0.99994861499999999},{"$f":"VALUE(FIXED(EXP(Q$4*-1*'PM2.5 reduction'!Q131),9))","v":0.99997305800000003},{"$f":"VALUE(FIXED(EXP(R$4*-1*'PM2.5 reduction'!R131),9))","v":0.999961561},{"$f":"VALUE(FIXED(EXP(S$4*-1*'PM2.5 reduction'!S131),9))","v":0.99996037100000001},{"$f":"VALUE(FIXED(EXP(T$4*-1*'PM2.5 reduction'!T131),9))","v":0.99992818299999997},{"$f":"VALUE(FIXED(EXP(U$4*-1*'PM2.5 reduction'!U131),9))","v":0.99999088000000003},{"$f":"VALUE(FIXED(EXP(V$4*-1*'PM2.5 reduction'!V131),9))","v":0.99996365099999995},{"$f":"VALUE(FIXED(EXP(W$4*-1*'PM2.5 reduction'!W131),9))","v":0.99996894300000005},{"$f":"VALUE(FIXED(EXP(X$4*-1*'PM2.5 reduction'!X131),9))","v":0.99996894300000005},{"$f":"VALUE(FIXED(EXP(Y$4*-1*'PM2.5 reduction'!Y131),9))","v":0.999966044},{"$f":"VALUE(FIXED(EXP(Z$4*-1*'PM2.5 reduction'!Z131),9))","v":0.99993565600000001},{"$f":"VALUE(FIXED(EXP(AA$4*-1*'PM2.5 reduction'!AA131),9))","v":0.99995516200000001},{"$f":"VALUE(FIXED(EXP(AB$4*-1*'PM2.5 reduction'!AB131),9))","v":0.99995404499999996},{"$f":"VALUE(FIXED(EXP(AC$4*-1*'PM2.5 reduction'!AC131),9))","v":0.99994823499999996},{"$f":"VALUE(FIXED(EXP(AD$4*-1*'PM2.5 reduction'!AD131),9))","v":0.99998849999999995},{"$f":"VALUE(FIXED(EXP(AE$4*-1*'PM2.5 reduction'!AE131),9))","v":0.99998722200000001},{"$f":"VALUE(FIXED(EXP(AF$4*-1*'PM2.5 reduction'!AF131),9))","v":0.99996677099999998},{"$f":"VALUE(FIXED(EXP(AG$4*-1*'PM2.5 reduction'!AG131),9))","v":0.99998722200000001},{"$f":"VALUE(FIXED(EXP(AH$4*-1*'PM2.5 reduction'!AH131),9))","v":0.99996151899999997},{"$f":"VALUE(FIXED(EXP(AI$4*-1*'PM2.5 reduction'!AI131),9))","v":0.99995365400000003},{"$f":"VALUE(FIXED(EXP(AJ$4*-1*'PM2.5 reduction'!AJ131),9))","v":0.99996784800000005},{"$f":"VALUE(FIXED(EXP(AK$4*-1*'PM2.5 reduction'!AK131),9))","v":0.99998526700000001},{"$f":"VALUE(FIXED(EXP(AL$4*-1*'PM2.5 reduction'!AL131),9))","v":0.99998093899999996},{"$f":"VALUE(FIXED(EXP(AM$4*-1*'PM2.5 reduction'!AM131),9))","v":0.99995792800000005},{"$f":"VALUE(FIXED(EXP(AN$4*-1*'PM2.5 reduction'!AN131),9))","v":0.99998825800000002},{"$f":"VALUE(FIXED(EXP(AO$4*-1*'PM2.5 reduction'!AO131),9))","v":0.99998825800000002},{"$f":"VALUE(FIXED(EXP(AP$4*-1*'PM2.5 reduction'!AP131),9))","v":0.99997459600000005},{"$f":"VALUE(FIXED(EXP(AQ$4*-1*'PM2.5 reduction'!AQ131),9))","v":0.99996029900000005},{"$f":"VALUE(FIXED(EXP(AR$4*-1*'PM2.5 reduction'!AR131),9))","v":0.99996181399999995},{"$f":"VALUE(FIXED(EXP(AS$4*-1*'PM2.5 reduction'!AS131),9))","v":0.99998603500000005},{"$f":"VALUE(FIXED(EXP(AT$4*-1*'PM2.5 reduction'!AT131),9))","v":1},{"$f":"VALUE(FIXED(EXP(AU$4*-1*'PM2.5 reduction'!AU131),9))","v":1},{"$f":"VALUE(FIXED(EXP(AV$4*-1*'PM2.5 reduction'!AV131),9))","v":0.99998082200000005},{"$f":"VALUE(FIXED(EXP(AW$4*-1*'PM2.5 reduction'!AW131),9))","v":0.99996543900000001},{"$f":"VALUE(FIXED(EXP(AX$4*-1*'PM2.5 reduction'!AX131),9))","v":0.99997088700000003},{"$f":"VALUE(FIXED(EXP(AY$4*-1*'PM2.5 reduction'!AY131),9))","v":0.99996640199999998},{"$f":"VALUE(FIXED(EXP(AZ$4*-1*'PM2.5 reduction'!AZ131),9))","v":0.99996296200000001},{"$f":"VALUE(FIXED(EXP(BA$4*-1*'PM2.5 reduction'!BA131),9))","v":0.99995961099999997},{"$f":"VALUE(FIXED(EXP(BB$4*-1*'PM2.5 reduction'!BB131),9))","v":0.99996532299999996},{"$f":"VALUE(FIXED(EXP(BC$4*-1*'PM2.5 reduction'!BC131),9))","v":0.99999088000000003}]
[null,"Male 75-79",{"$f":"VALUE(FIXED(EXP(C$4*-1*'PM2.5 reduction'!C132),9))","v":0.99993268400000002},{"$f":"VALUE(FIXED(EXP(D$4*-1*'PM2.5 reduction'!D132),9))","v":0.99994304499999997},{"$f":"VALUE(FIXED(EXP(E$4*-1*'PM2.5 reduction'!E132),9))","v":0.99998012000000003},{"$f":"VALUE(FIXED(EXP(F$4*-1*'PM2.5 reduction'!F132),9))","v":0.99998527800000003},{"$f":"VALUE(FIXED(EXP(G$4*-1*'PM2.5 reduction'!G132),9))","v":0.99999234999999997},{"$f":"VALUE(FIXED(EXP(H$4*-1*'PM2.5 reduction'!H132),9))","v":0.99998158800000003},{"$f":"VALUE(FIXED(EXP(I$4*-1*'PM2.5 reduction'!I132),9))","v":0.99998640599999999},{"$f":"VALUE(FIXED(EXP(J$4*-1*'PM2.5 reduction'!J132),9))","v":0.99997179400000002},{"$f":"VALUE(FIXED(EXP(K$4*-1*'PM2.5 reduction'!K132),9))","v":0.99997361600000001},{"$f":"VALUE(FIXED(EXP(L$4*-1*'PM2.5 reduction'!L132),9))","v":0.99998708999999997},{"$f":"VALUE(FIXED(EXP(M$4*-1*'PM2.5 reduction'!M132),9))","v":0.99998708999999997},{"$f":"VALUE(FIXED(EXP(N$4*-1*'PM2.5 reduction'!N132),9))","v":0.99994710200000003},{"$f":"VALUE(FIXED(EXP(O$4*-1*'PM2.5 reduction'!O132),9))","v":0.99998330000000002},{"$f":"VALUE(FIXED(EXP(P$4*-1*'PM2.5 reduction'!P132),9))","v":0.99994982700000001},{"$f":"VALUE(FIXED(EXP(Q$4*-1*'PM2.5 reduction'!Q132),9))","v":0.99997342600000005},{"$f":"VALUE(FIXED(EXP(R$4*-1*'PM2.5 reduction'!R132),9))","v":0.99996270700000001},{"$f":"VALUE(FIXED(EXP(S$4*-1*'PM2.5 reduction'!S132),9))","v":0.99996071200000003},{"$f":"VALUE(FIXED(EXP(T$4*-1*'PM2.5 reduction'!T132),9))","v":0.99992853599999998},{"$f":"VALUE(FIXED(EXP(U$4*-1*'PM2.5 reduction'!U132),9))","v":0.99999088000000003},{"$f":"VALUE(FIXED(EXP(V$4*-1*'PM2.5 reduction'!V132),9))","v":0.99996398900000005},{"$f":"VALUE(FIXED(EXP(W$4*-1*'PM2.5 reduction'!W132),9))","v":0.99996862399999997},{"$f":"VALUE(FIXED(EXP(X$4*-1*'PM2.5 reduction'!X132),9))","v":0.99996862399999997},{"$f":"VALUE(FIXED(EXP(Y$4*-1*'PM2.5 reduction'!Y132),9))","v":0.99996643100000004},{"$f":"VALUE(FIXED(EXP(Z$4*-1*'PM2.5 reduction'!Z132),9))","v":0.99993635300000006},{"$f":"VALUE(FIXED(EXP(AA$4*-1*'PM2.5 reduction'!AA132),9))","v":0.999955068},{"$f":"VALUE(FIXED(EXP(AB$4*-1*'PM2.5 reduction'!AB132),9))","v":0.99995129800000004},{"$f":"VALUE(FIXED(EXP(AC$4*-1*'PM2.5 reduction'!AC132),9))","v":0.99994934199999996},{"$f":"VALUE(FIXED(EXP(AD$4*-1*'PM2.5 reduction'!AD132),9))","v":0.99998798799999999},{"$f":"VALUE(FIXED(EXP(AE$4*-1*'PM2.5 reduction'!AE132),9))","v":0.99998686000000003},{"$f":"VALUE(FIXED(EXP(AF$4*-1*'PM2.5 reduction'!AF132),9))","v":0.99996828900000001},{"$f":"VALUE(FIXED(EXP(AG$4*-1*'PM2.5 reduction'!AG132),9))","v":0.99998686000000003},{"$f":"VALUE(FIXED(EXP(AH$4*-1*'PM2.5 reduction'!AH132),9))","v":0.99996062699999999},{"$f":"VALUE(FIXED(EXP(AI$4*-1*'PM2.5 reduction'!AI132),9))","v":0.99995429199999997},{"$f":"VALUE(FIXED(EXP(AJ$4*-1*'PM2.5 reduction'!AJ132),9))","v":0.999969204},{"$f":"VALUE(FIXED(EXP(AK$4*-1*'PM2.5 reduction'!AK132),9))","v":0.99998475600000003},{"$f":"VALUE(FIXED(EXP(AL$4*-1*'PM2.5 reduction'!AL132),9))","v":0.999980596},{"$f":"VALUE(FIXED(EXP(AM$4*-1*'PM2.5 reduction'!AM132),9))","v":0.999958346},{"$f":"VALUE(FIXED(EXP(AN$4*-1*'PM2.5 reduction'!AN132),9))","v":0.99998840099999997},{"$f":"VALUE(FIXED(EXP(AO$4*-1*'PM2.5 reduction'!AO132),9))","v":0.99998840099999997},{"$f":"VALUE(FIXED(EXP(AP$4*-1*'PM2.5 reduction'!AP132),9))","v":0.99997392500000004},{"$f":"VALUE(FIXED(EXP(AQ$4*-1*'PM2.5 reduction'!AQ132),9))","v":0.99996149599999995},{"$f":"VALUE(FIXED(EXP(AR$4*-1*'PM2.5 reduction'!AR132),9))","v":0.99996158700000004},{"$f":"VALUE(FIXED(EXP(AS$4*-1*'PM2.5 reduction'!AS132),9))","v":0.99998640599999999},{"$f":"VALUE(FIXED(EXP(AT$4*-1*'PM2.5 reduction'!AT132),9))","v":1},{"$f":"VALUE(FIXED(EXP(AU$4*-1*'PM2.5 reduction'!AU132),9))","v":1},{"$f":"VALUE(FIXED(EXP(AV$4*-1*'PM2.5 reduction'!AV132),9))","v":0.99998041800000004},{"$f":"VALUE(FIXED(EXP(AW$4*-1*'PM2.5 reduction'!AW132),9))","v":0.99996315400000002},{"$f":"VALUE(FIXED(EXP(AX$4*-1*'PM2.5 reduction'!AX132),9))","v":0.99997015199999995},{"$f":"VALUE(FIXED(EXP(AY$4*-1*'PM2.5 reduction'!AY132),9))","v":0.99996611800000001},{"$f":"VALUE(FIXED(EXP(AZ$4*-1*'PM2.5 reduction'!AZ132),9))","v":0.99996311400000004},{"$f":"VALUE(FIXED(EXP(BA$4*-1*'PM2.5 reduction'!BA132),9))","v":0.99996046900000002},{"$f":"VALUE(FIXED(EXP(BB$4*-1*'PM2.5 reduction'!BB132),9))","v":0.999964874},{"$f":"VALUE(FIXED(EXP(BC$4*-1*'PM2.5 reduction'!BC132),9))","v":0.99999088000000003}]
[null,"Male 80-84",{"$f":"VALUE(FIXED(EXP(C$4*-1*'PM2.5 reduction'!C133),9))","v":0.99993266800000002},{"$f":"VALUE(FIXED(EXP(D$4*-1*'PM2.5 reduction'!D133),9))","v":0.99994381799999998},{"$f":"VALUE(FIXED(EXP(E$4*-1*'PM2.5 reduction'!E133),9))","v":0.99998060499999997},{"$f":"VALUE(FIXED(EXP(F$4*-1*'PM2.5 reduction'!F133),9))","v":0.99998482},{"$f":"VALUE(FIXED(EXP(G$4*-1*'PM2.5 reduction'!G133),9))","v":0.99999279399999996},{"$f":"VALUE(FIXED(EXP(H$4*-1*'PM2.5 reduction'!H133),9))","v":0.99998153599999995},{"$f":"VALUE(FIXED(EXP(I$4*-1*'PM2.5 reduction'!I133),9))","v":0.99998635999999996},{"$f":"VALUE(FIXED(EXP(J$4*-1*'PM2.5 reduction'!J133),9))","v":0.99997341699999998},{"$f":"VALUE(FIXED(EXP(K$4*-1*'PM2.5 reduction'!K133),9))","v":0.99997619900000001},{"$f":"VALUE(FIXED(EXP(L$4*-1*'PM2.5 reduction'!L133),9))","v":0.99998736099999996},{"$f":"VALUE(FIXED(EXP(M$4*-1*'PM2.5 reduction'!M133),9))","v":0.99998736099999996},{"$f":"VALUE(FIXED(EXP(N$4*-1*'PM2.5 reduction'!N133),9))","v":0.99994726},{"$f":"VALUE(FIXED(EXP(O$4*-1*'PM2.5 reduction'!O133),9))","v":0.99998255999999996},{"$f":"VALUE(FIXED(EXP(P$4*-1*'PM2.5 reduction'!P133),9))","v":0.99994898499999996},{"$f":"VALUE(FIXED(EXP(Q$4*-1*'PM2.5 reduction'!Q133),9))","v":0.99997114399999998},{"$f":"VALUE(FIXED(EXP(R$4*-1*'PM2.5 reduction'!R133),9))","v":0.99996288600000005},{"$f":"VALUE(FIXED(EXP(S$4*-1*'PM2.5 reduction'!S133),9))","v":0.99996037299999996},{"$f":"VALUE(FIXED(EXP(T$4*-1*'PM2.5 reduction'!T133),9))","v":0.99992890599999995},{"$f":"VALUE(FIXED(EXP(U$4*-1*'PM2.5 reduction'!U133),9))","v":0.99999088000000003},{"$f":"VALUE(FIXED(EXP(V$4*-1*'PM2.5 reduction'!V133),9))","v":0.99996389600000002},{"$f":"VALUE(FIXED(EXP(W$4*-1*'PM2.5 reduction'!W133),9))","v":0.99996876800000001},{"$f":"VALUE(FIXED(EXP(X$4*-1*'PM2.5 reduction'!X133),9))","v":0.99996876800000001},{"$f":"VALUE(FIXED(EXP(Y$4*-1*'PM2.5 reduction'!Y133),9))","v":0.99996667900000002},{"$f":"VALUE(FIXED(EXP(Z$4*-1*'PM2.5 reduction'!Z133),9))","v":0.99993487999999997},{"$f":"VALUE(FIXED(EXP(AA$4*-1*'PM2.5 reduction'!AA133),9))","v":0.999954546},{"$f":"VALUE(FIXED(EXP(AB$4*-1*'PM2.5 reduction'!AB133),9))","v":0.99995187200000002},{"$f":"VALUE(FIXED(EXP(AC$4*-1*'PM2.5 reduction'!AC133),9))","v":0.999948791},{"$f":"VALUE(FIXED(EXP(AD$4*-1*'PM2.5 reduction'!AD133),9))","v":0.99998877200000003},{"$f":"VALUE(FIXED(EXP(AE$4*-1*'PM2.5 reduction'!AE133),9))","v":0.99998736099999996},{"$f":"VALUE(FIXED(EXP(AF$4*-1*'PM2.5 reduction'!AF133),9))","v":0.99996854599999996},{"$f":"VALUE(FIXED(EXP(AG$4*-1*'PM2.5 reduction'!AG133),9))","v":0.99998736099999996},{"$f":"VALUE(FIXED(EXP(AH$4*-1*'PM2.5 reduction'!AH133),9))","v":0.99996032199999996},{"$f":"VALUE(FIXED(EXP(AI$4*-1*'PM2.5 reduction'!AI133),9))","v":0.99995353300000001},{"$f":"VALUE(FIXED(EXP(AJ$4*-1*'PM2.5 reduction'!AJ133),9))","v":0.99996922200000005},{"$f":"VALUE(FIXED(EXP(AK$4*-1*'PM2.5 reduction'!AK133),9))","v":0.99998622999999998},{"$f":"VALUE(FIXED(EXP(AL$4*-1*'PM2.5 reduction'!AL133),9))","v":0.99998097699999999},{"$f":"VALUE(FIXED(EXP(AM$4*-1*'PM2.5 reduction'!AM133),9))","v":0.99995841299999999},{"$f":"VALUE(FIXED(EXP(AN$4*-1*'PM2.5 reduction'!AN133),9))","v":0.99998868500000004},{"$f":"VALUE(FIXED(EXP(AO$4*-1*'PM2.5 reduction'!AO133),9))","v":0.99998868500000004},{"$f":"VALUE(FIXED(EXP(AP$4*-1*'PM2.5 reduction'!AP133),9))","v":0.99997212599999996},{"$f":"VALUE(FIXED(EXP(AQ$4*-1*'PM2.5 reduction'!AQ133),9))","v":0.99996243699999998},{"$f":"VALUE(FIXED(EXP(AR$4*-1*'PM2.5 reduction'!AR133),9))","v":0.99996136400000002},{"$f":"VALUE(FIXED(EXP(AS$4*-1*'PM2.5 reduction'!AS133),9))","v":0.99998635999999996},{"$f":"VALUE(FIXED(EXP(AT$4*-1*'PM2.5 reduction'!AT133),9))","v":1},{"$f":"VALUE(FIXED(EXP(AU$4*-1*'PM2.5 reduction'!AU133),9))","v":1},{"$f":"VALUE(FIXED(EXP(AV$4*-1*'PM2.5 reduction'!AV133),9))","v":0.99998077299999999},{"$f":"VALUE(FIXED(EXP(AW$4*-1*'PM2.5 reduction'!AW133),9))","v":0.99996245500000003},{"$f":"VALUE(FIXED(EXP(AX$4*-1*'PM2.5 reduction'!AX133),9))","v":0.99997125399999998},{"$f":"VALUE(FIXED(EXP(AY$4*-1*'PM2.5 reduction'!AY133),9))","v":0.99996629500000001},{"$f":"VALUE(FIXED(EXP(AZ$4*-1*'PM2.5 reduction'!AZ133),9))","v":0.99996339099999998},{"$f":"VALUE(FIXED(EXP(BA$4*-1*'PM2.5 reduction'!BA133),9))","v":0.99996097299999998},{"$f":"VALUE(FIXED(EXP(BB$4*-1*'PM2.5 reduction'!BB133),9))","v":0.99996577600000003},{"$f":"VALUE(FIXED(EXP(BC$4*-1*'PM2.5 reduction'!BC133),9))","v":0.99999088000000003}]
[null,"Male 85-89",{"$f":"VALUE(FIXED(EXP(C$4*-1*'PM2.5 reduction'!C134),9))","v":0.99993630499999997},{"$f":"VALUE(FIXED(EXP(D$4*-1*'PM2.5 reduction'!D134),9))","v":0.999945364},{"$f":"VALUE(FIXED(EXP(E$4*-1*'PM2.5 reduction'!E134),9))","v":0.99998001299999995},{"$f":"VALUE(FIXED(EXP(F$4*-1*'PM2.5 reduction'!F134),9))","v":0.99998510299999999},{"$f":"VALUE(FIXED(EXP(G$4*-1*'PM2.5 reduction'!G134),9))","v":0.999992239},{"$f":"VALUE(FIXED(EXP(H$4*-1*'PM2.5 reduction'!H134),9))","v":0.99997999199999998},{"$f":"VALUE(FIXED(EXP(I$4*-1*'PM2.5 reduction'!I134),9))","v":0.99998578500000002},{"$f":"VALUE(FIXED(EXP(J$4*-1*'PM2.5 reduction'!J134),9))","v":0.99997075300000005},{"$f":"VALUE(FIXED(EXP(K$4*-1*'PM2.5 reduction'!K134),9))","v":0.99997219599999998},{"$f":"VALUE(FIXED(EXP(L$4*-1*'PM2.5 reduction'!L134),9))","v":0.99998687500000005},{"$f":"VALUE(FIXED(EXP(M$4*-1*'PM2.5 reduction'!M134),9))","v":0.99998687500000005},{"$f":"VALUE(FIXED(EXP(N$4*-1*'PM2.5 reduction'!N134),9))","v":0.99994644200000005},{"$f":"VALUE(FIXED(EXP(O$4*-1*'PM2.5 reduction'!O134),9))","v":0.999981546},{"$f":"VALUE(FIXED(EXP(P$4*-1*'PM2.5 reduction'!P134),9))","v":0.99995115599999995},{"$f":"VALUE(FIXED(EXP(Q$4*-1*'PM2.5 reduction'!Q134),9))","v":0.99997150899999998},{"$f":"VALUE(FIXED(EXP(R$4*-1*'PM2.5 reduction'!R134),9))","v":0.99996040500000005},{"$f":"VALUE(FIXED(EXP(S$4*-1*'PM2.5 reduction'!S134),9))","v":0.99996089700000002},{"$f":"VALUE(FIXED(EXP(T$4*-1*'PM2.5 reduction'!T134),9))","v":0.99992840699999996},{"$f":"VALUE(FIXED(EXP(U$4*-1*'PM2.5 reduction'!U134),9))","v":0.99999088000000003},{"$f":"VALUE(FIXED(EXP(V$4*-1*'PM2.5 reduction'!V134),9))","v":0.99996261600000003},{"$f":"VALUE(FIXED(EXP(W$4*-1*'PM2.5 reduction'!W134),9))","v":0.99996859100000002},{"$f":"VALUE(FIXED(EXP(X$4*-1*'PM2.5 reduction'!X134),9))","v":0.99996859100000002},{"$f":"VALUE(FIXED(EXP(Y$4*-1*'PM2.5 reduction'!Y134),9))","v":0.999965039},{"$f":"VALUE(FIXED(EXP(Z$4*-1*'PM2.5 reduction'!Z134),9))","v":0.99993558400000004},{"$f":"VALUE(FIXED(EXP(AA$4*-1*'PM2.5 reduction'!AA134),9))","v":0.99995422499999997},{"$f":"VALUE(FIXED(EXP(AB$4*-1*'PM2.5 reduction'!AB134),9))","v":0.99995267200000004},{"$f":"VALUE(FIXED(EXP(AC$4*-1*'PM2.5 reduction'!AC134),9))","v":0.99994836300000001},{"$f":"VALUE(FIXED(EXP(AD$4*-1*'PM2.5 reduction'!AD134),9))","v":0.99998757100000002},{"$f":"VALUE(FIXED(EXP(AE$4*-1*'PM2.5 reduction'!AE134),9))","v":0.99998623200000003},{"$f":"VALUE(FIXED(EXP(AF$4*-1*'PM2.5 reduction'!AF134),9))","v":0.99996642400000002},{"$f":"VALUE(FIXED(EXP(AG$4*-1*'PM2.5 reduction'!AG134),9))","v":0.99998623200000003},{"$f":"VALUE(FIXED(EXP(AH$4*-1*'PM2.5 reduction'!AH134),9))","v":0.99996014799999999},{"$f":"VALUE(FIXED(EXP(AI$4*-1*'PM2.5 reduction'!AI134),9))","v":0.99995257900000001},{"$f":"VALUE(FIXED(EXP(AJ$4*-1*'PM2.5 reduction'!AJ134),9))","v":0.99996882399999998},{"$f":"VALUE(FIXED(EXP(AK$4*-1*'PM2.5 reduction'!AK134),9))","v":0.99998508500000005},{"$f":"VALUE(FIXED(EXP(AL$4*-1*'PM2.5 reduction'!AL134),9))","v":0.99998119100000005},{"$f":"VALUE(FIXED(EXP(AM$4*-1*'PM2.5 reduction'!AM134),9))","v":0.999957439},{"$f":"VALUE(FIXED(EXP(AN$4*-1*'PM2.5 reduction'!AN134),9))","v":0.99998783999999996},{"$f":"VALUE(FIXED(EXP(AO$4*-1*'PM2.5 reduction'!AO134),9))","v":0.99998783999999996},{"$f":"VALUE(FIXED(EXP(AP$4*-1*'PM2.5 reduction'!AP134),9))","v":0.99997396699999996},{"$f":"VALUE(FIXED(EXP(AQ$4*-1*'PM2.5 reduction'!AQ134),9))","v":0.99996318100000003},{"$f":"VALUE(FIXED(EXP(AR$4*-1*'PM2.5 reduction'!AR134),9))","v":0.99996148600000001},{"$f":"VALUE(FIXED(EXP(AS$4*-1*'PM2.5 reduction'!AS134),9))","v":0.99998578500000002},{"$f":"VALUE(FIXED(EXP(AT$4*-1*'PM2.5 reduction'!AT134),9))","v":1},{"$f":"VALUE(FIXED(EXP(AU$4*-1*'PM2.5 reduction'!AU134),9))","v":1},{"$f":"VALUE(FIXED(EXP(AV$4*-1*'PM2.5 reduction'!AV134),9))","v":0.99997723900000002},{"$f":"VALUE(FIXED(EXP(AW$4*-1*'PM2.5 reduction'!AW134),9))","v":0.99996306199999996},{"$f":"VALUE(FIXED(EXP(AX$4*-1*'PM2.5 reduction'!AX134),9))","v":0.99996965699999996},{"$f":"VALUE(FIXED(EXP(AY$4*-1*'PM2.5 reduction'!AY134),9))","v":0.99996646},{"$f":"VALUE(FIXED(EXP(AZ$4*-1*'PM2.5 reduction'!AZ134),9))","v":0.99996394499999997},{"$f":"VALUE(FIXED(EXP(BA$4*-1*'PM2.5 reduction'!BA134),9))","v":0.99996033200000001},{"$f":"VALUE(FIXED(EXP(BB$4*-1*'PM2.5 reduction'!BB134),9))","v":0.9999652},{"$f":"VALUE(FIXED(EXP(BC$4*-1*'PM2.5 reduction'!BC134),9))","v":0.99999088000000003}]
[null,"Male 90+",{"$f":"VALUE(FIXED(EXP(C$4*-1*'PM2.5 reduction'!C135),9))","v":0.99993860400000001},{"$f":"VALUE(FIXED(EXP(D$4*-1*'PM2.5 reduction'!D135),9))","v":0.99994974999999997},{"$f":"VALUE(FIXED(EXP(E$4*-1*'PM2.5 reduction'!E135),9))","v":0.99998207299999997},{"$f":"VALUE(FIXED(EXP(F$4*-1*'PM2.5 reduction'!F135),9))","v":0.99998514699999996},{"$f":"VALUE(FIXED(EXP(G$4*-1*'PM2.5 reduction'!G135),9))","v":0.99999262899999997},{"$f":"VALUE(FIXED(EXP(H$4*-1*'PM2.5 reduction'!H135),9))","v":0.99997769400000003},{"$f":"VALUE(FIXED(EXP(I$4*-1*'PM2.5 reduction'!I135),9))","v":0.99998784399999996},{"$f":"VALUE(FIXED(EXP(J$4*-1*'PM2.5 reduction'!J135),9))","v":0.99997788600000004},{"$f":"VALUE(FIXED(EXP(K$4*-1*'PM2.5 reduction'!K135),9))","v":0.99997896200000003},{"$f":"VALUE(FIXED(EXP(L$4*-1*'PM2.5 reduction'!L135),9))","v":0.99998550799999997},{"$f":"VALUE(FIXED(EXP(M$4*-1*'PM2.5 reduction'!M135),9))","v":0.99998550799999997},{"$f":"VALUE(FIXED(EXP(N$4*-1*'PM2.5 reduction'!N135),9))","v":0.99994516899999997},{"$f":"VALUE(FIXED(EXP(O$4*-1*'PM2.5 reduction'!O135),9))","v":0.99997936399999998},{"$f":"VALUE(FIXED(EXP(P$4*-1*'PM2.5 reduction'!P135),9))","v":0.999949792},{"$f":"VALUE(FIXED(EXP(Q$4*-1*'PM2.5 reduction'!Q135),9))","v":0.99997507299999999},{"$f":"VALUE(FIXED(EXP(R$4*-1*'PM2.5 reduction'!R135),9))","v":0.999954754},{"$f":"VALUE(FIXED(EXP(S$4*-1*'PM2.5 reduction'!S135),9))","v":0.99995643400000001},{"$f":"VALUE(FIXED(EXP(T$4*-1*'PM2.5 reduction'!T135),9))","v":0.99992168699999995},{"$f":"VALUE(FIXED(EXP(U$4*-1*'PM2.5 reduction'!U135),9))","v":0.99999088000000003},{"$f":"VALUE(FIXED(EXP(V$4*-1*'PM2.5 reduction'!V135),9))","v":0.99996490000000005},{"$f":"VALUE(FIXED(EXP(W$4*-1*'PM2.5 reduction'!W135),9))","v":0.99996664199999996},{"$f":"VALUE(FIXED(EXP(X$4*-1*'PM2.5 reduction'!X135),9))","v":0.99996664199999996},{"$f":"VALUE(FIXED(EXP(Y$4*-1*'PM2.5 reduction'!Y135),9))","v":0.99996862799999997},{"$f":"VALUE(FIXED(EXP(Z$4*-1*'PM2.5 reduction'!Z135),9))","v":0.99993732999999996},{"$f":"VALUE(FIXED(EXP(AA$4*-1*'PM2.5 reduction'!AA135),9))","v":0.999953172},{"$f":"VALUE(FIXED(EXP(AB$4*-1*'PM2.5 reduction'!AB135),9))","v":0.999956399},{"$f":"VALUE(FIXED(EXP(AC$4*-1*'PM2.5 reduction'!AC135),9))","v":0.99994773699999995},{"$f":"VALUE(FIXED(EXP(AD$4*-1*'PM2.5 reduction'!AD135),9))","v":0.99998813799999997},{"$f":"VALUE(FIXED(EXP(AE$4*-1*'PM2.5 reduction'!AE135),9))","v":0.99998706400000004},{"$f":"VALUE(FIXED(EXP(AF$4*-1*'PM2.5 reduction'!AF135),9))","v":0.99997082400000004},{"$f":"VALUE(FIXED(EXP(AG$4*-1*'PM2.5 reduction'!AG135),9))","v":0.99998706400000004},{"$f":"VALUE(FIXED(EXP(AH$4*-1*'PM2.5 reduction'!AH135),9))","v":0.99995985799999998},{"$f":"VALUE(FIXED(EXP(AI$4*-1*'PM2.5 reduction'!AI135),9))","v":0.99994771500000001},{"$f":"VALUE(FIXED(EXP(AJ$4*-1*'PM2.5 reduction'!AJ135),9))","v":0.99996801899999999},{"$f":"VALUE(FIXED(EXP(AK$4*-1*'PM2.5 reduction'!AK135),9))","v":0.99998632200000004},{"$f":"VALUE(FIXED(EXP(AL$4*-1*'PM2.5 reduction'!AL135),9))","v":0.99998050199999999},{"$f":"VALUE(FIXED(EXP(AM$4*-1*'PM2.5 reduction'!AM135),9))","v":0.99995518500000002},{"$f":"VALUE(FIXED(EXP(AN$4*-1*'PM2.5 reduction'!AN135),9))","v":0.99998903100000003},{"$f":"VALUE(FIXED(EXP(AO$4*-1*'PM2.5 reduction'!AO135),9))","v":0.99998903100000003},{"$f":"VALUE(FIXED(EXP(AP$4*-1*'PM2.5 reduction'!AP135),9))","v":0.99997278300000003},{"$f":"VALUE(FIXED(EXP(AQ$4*-1*'PM2.5 reduction'!AQ135),9))","v":0.99995959099999998},{"$f":"VALUE(FIXED(EXP(AR$4*-1*'PM2.5 reduction'!AR135),9))","v":0.99996046699999996},{"$f":"VALUE(FIXED(EXP(AS$4*-1*'PM2.5 reduction'!AS135),9))","v":0.99998784399999996},{"$f":"VALUE(FIXED(EXP(AT$4*-1*'PM2.5 reduction'!AT135),9))","v":1},{"$f":"VALUE(FIXED(EXP(AU$4*-1*'PM2.5 reduction'!AU135),9))","v":1},{"$f":"VALUE(FIXED(EXP(AV$4*-1*'PM2.5 reduction'!AV135),9))","v":0.99997354000000005},{"$f":"VALUE(FIXED(EXP(AW$4*-1*'PM2.5 reduction'!AW135),9))","v":0.99996445599999995},{"$f":"VALUE(FIXED(EXP(AX$4*-1*'PM2.5 reduction'!AX135),9))","v":0.999976737},{"$f":"VALUE(FIXED(EXP(AY$4*-1*'PM2.5 reduction'!AY135),9))","v":0.99996496300000004},{"$f":"VALUE(FIXED(EXP(AZ$4*-1*'PM2.5 reduction'!AZ135),9))","v":0.99996316399999996},{"$f":"VALUE(FIXED(EXP(BA$4*-1*'PM2.5 reduction'!BA135),9))","v":0.99995972399999999},{"$f":"VALUE(FIXED(EXP(BB$4*-1*'PM2.5 reduction'!BB135),9))","v":0.999965463},{"$f":"VALUE(FIXED(EXP(BC$4*-1*'PM2.5 reduction'!BC135),9))","v":0.99999088000000003}]
["SIMD Q3","Female 0-4",{"$f":"VALUE(FIXED(EXP(C$4*-1*'PM2.5 reduction'!C136),9))","v":0.99992922100000003},{"$f":"VALUE(FIXED(EXP(D$4*-1*'PM2.5 reduction'!D136),9))","v":0.99995806600000003},{"$f":"VALUE(FIXED(EXP(E$4*-1*'PM2.5 reduction'!E136),9))","v":0.999988408},{"$f":"VALUE(FIXED(EXP(F$4*-1*'PM2.5 reduction'!F136),9))","v":0.99998521200000001},{"$f":"VALUE(FIXED(EXP(G$4*-1*'PM2.5 reduction'!G136),9))","v":0.99999362000000003},{"$f":"VALUE(FIXED(EXP(H$4*-1*'PM2.5 reduction'!H136),9))","v":0.99997930199999996},{"$f":"VALUE(FIXED(EXP(I$4*-1*'PM2.5 reduction'!I136),9))","v":0.99999040400000005},{"$f":"VALUE(FIXED(EXP(J$4*-1*'PM2.5 reduction'!J136),9))","v":0.99998209299999996},{"$f":"VALUE(FIXED(EXP(K$4*-1*'PM2.5 reduction'!K136),9))","v":0.99998111599999995},{"$f":"VALUE(FIXED(EXP(L$4*-1*'PM2.5 reduction'!L136),9))","v":0.99998814899999999},{"$f":"VALUE(FIXED(EXP(M$4*-1*'PM2.5 reduction'!M136),9))","v":0.99998814899999999},{"$f":"VALUE(FIXED(EXP(N$4*-1*'PM2.5 reduction'!N136),9))","v":0.99994154599999996},{"$f":"VALUE(FIXED(EXP(O$4*-1*'PM2.5 reduction'!O136),9))","v":0.99998103900000002},{"$f":"VALUE(FIXED(EXP(P$4*-1*'PM2.5 reduction'!P136),9))","v":0.99995297000000005},{"$f":"VALUE(FIXED(EXP(Q$4*-1*'PM2.5 reduction'!Q136),9))","v":0.99997622900000005},{"$f":"VALUE(FIXED(EXP(R$4*-1*'PM2.5 reduction'!R136),9))","v":0.99995832100000004},{"$f":"VALUE(FIXED(EXP(S$4*-1*'PM2.5 reduction'!S136),9))","v":0.99995698799999999},{"$f":"VALUE(FIXED(EXP(T$4*-1*'PM2.5 reduction'!T136),9))","v":0.99992554099999997},{"$f":"VALUE(FIXED(EXP(U$4*-1*'PM2.5 reduction'!U136),9))","v":0.99999160600000003},{"$f":"VALUE(FIXED(EXP(V$4*-1*'PM2.5 reduction'!V136),9))","v":0.999963881},{"$f":"VALUE(FIXED(EXP(W$4*-1*'PM2.5 reduction'!W136),9))","v":0.99997055199999996},{"$f":"VALUE(FIXED(EXP(X$4*-1*'PM2.5 reduction'!X136),9))","v":0.99997055199999996},{"$f":"VALUE(FIXED(EXP(Y$4*-1*'PM2.5 reduction'!Y136),9))","v":0.99997026300000003},{"$f":"VALUE(FIXED(EXP(Z$4*-1*'PM2.5 reduction'!Z136),9))","v":0.99992904599999999},{"$f":"VALUE(FIXED(EXP(AA$4*-1*'PM2.5 reduction'!AA136),9))","v":0.99994967199999996},{"$f":"VALUE(FIXED(EXP(AB$4*-1*'PM2.5 reduction'!AB136),9))","v":0.99996372099999997},{"$f":"VALUE(FIXED(EXP(AC$4*-1*'PM2.5 reduction'!AC136),9))","v":0.99994234900000001},{"$f":"VALUE(FIXED(EXP(AD$4*-1*'PM2.5 reduction'!AD136),9))","v":0.99999020100000002},{"$f":"VALUE(FIXED(EXP(AE$4*-1*'PM2.5 reduction'!AE136),9))","v":0.99998957399999999},{"$f":"VALUE(FIXED(EXP(AF$4*-1*'PM2.5 reduction'!AF136),9))","v":0.99997276099999999},{"$f":"VALUE(FIXED(EXP(AG$4*-1*'PM2.5 reduction'!AG136),9))","v":0.99998957399999999},{"$f":"VALUE(FIXED(EXP(AH$4*-1*'PM2.5 reduction'!AH136),9))","v":0.99995895800000001},{"$f":"VALUE(FIXED(EXP(AI$4*-1*'PM2.5 reduction'!AI136),9))","v":0.99994581100000002},{"$f":"VALUE(FIXED(EXP(AJ$4*-1*'PM2.5 reduction'!AJ136),9))","v":0.99997224200000001},{"$f":"VALUE(FIXED(EXP(AK$4*-1*'PM2.5 reduction'!AK136),9))","v":0.99998418300000003},{"$f":"VALUE(FIXED(EXP(AL$4*-1*'PM2.5 reduction'!AL136),9))","v":0.99998479200000001},{"$f":"VALUE(FIXED(EXP(AM$4*-1*'PM2.5 reduction'!AM136),9))","v":0.99995683499999999},{"$f":"VALUE(FIXED(EXP(AN$4*-1*'PM2.5 reduction'!AN136),9))","v":0.99998851200000005},{"$f":"VALUE(FIXED(EXP(AO$4*-1*'PM2.5 reduction'!AO136),9))","v":0.99998851200000005},{"$f":"VALUE(FIXED(EXP(AP$4*-1*'PM2.5 reduction'!AP136),9))","v":0.999981864},{"$f":"VALUE(FIXED(EXP(AQ$4*-1*'PM2.5 reduction'!AQ136),9))","v":0.99996423300000004},{"$f":"VALUE(FIXED(EXP(AR$4*-1*'PM2.5 reduction'!AR136),9))","v":0.99996026400000004},{"$f":"VALUE(FIXED(EXP(AS$4*-1*'PM2.5 reduction'!AS136),9))","v":0.99999040400000005},{"$f":"VALUE(FIXED(EXP(AT$4*-1*'PM2.5 reduction'!AT136),9))","v":1},{"$f":"VALUE(FIXED(EXP(AU$4*-1*'PM2.5 reduction'!AU136),9))","v":1},{"$f":"VALUE(FIXED(EXP(AV$4*-1*'PM2.5 reduction'!AV136),9))","v":0.99997318400000001},{"$f":"VALUE(FIXED(EXP(AW$4*-1*'PM2.5 reduction'!AW136),9))","v":0.99996171199999995},{"$f":"VALUE(FIXED(EXP(AX$4*-1*'PM2.5 reduction'!AX136),9))","v":0.99998285499999995},{"$f":"VALUE(FIXED(EXP(AY$4*-1*'PM2.5 reduction'!AY136),9))","v":0.99997100299999997},{"$f":"VALUE(FIXED(EXP(AZ$4*-1*'PM2.5 reduction'!AZ136),9))","v":0.99997148000000002},{"$f":"VALUE(FIXED(EXP(BA$4*-1*'PM2.5 reduction'!BA136),9))","v":0.99996213199999995},{"$f":"VALUE(FIXED(EXP(BB$4*-1*'PM2.5 reduction'!BB136),9))","v":0.99996803000000001},{"$f":"VALUE(FIXED(EXP(BC$4*-1*'PM2.5 reduction'!BC136),9))","v":0.99999160600000003}]
[null,"Female 5-9",{"$f":"VALUE(FIXED(EXP(C$4*-1*'PM2.5 reduction'!C137),9))","v":0.999933187},{"$f":"VALUE(FIXED(EXP(D$4*-1*'PM2.5 reduction'!D137),9))","v":0.999960548},{"$f":"VALUE(FIXED(EXP(E$4*-1*'PM2.5 reduction'!E137),9))","v":0.99998860199999995},{"$f":"VALUE(FIXED(EXP(F$4*-1*'PM2.5 reduction'!F137),9))","v":0.99998541299999999},{"$f":"VALUE(FIXED(EXP(G$4*-1*'PM2.5 reduction'!G137),9))","v":0.99999371800000003},{"$f":"VALUE(FIXED(EXP(H$4*-1*'PM2.5 reduction'!H137),9))","v":0.99997976099999997},{"$f":"VALUE(FIXED(EXP(I$4*-1*'PM2.5 reduction'!I137),9))","v":0.99999077000000003},{"$f":"VALUE(FIXED(EXP(J$4*-1*'PM2.5 reduction'!J137),9))","v":0.99998138800000003},{"$f":"VALUE(FIXED(EXP(K$4*-1*'PM2.5 reduction'!K137),9))","v":0.99998151800000001},{"$f":"VALUE(FIXED(EXP(L$4*-1*'PM2.5 reduction'!L137),9))","v":0.99998712499999998},{"$f":"VALUE(FIXED(EXP(M$4*-1*'PM2.5 reduction'!M137),9))","v":0.99998712499999998},{"$f":"VALUE(FIXED(EXP(N$4*-1*'PM2.5 reduction'!N137),9))","v":0.99994229999999995},{"$f":"VALUE(FIXED(EXP(O$4*-1*'PM2.5 reduction'!O137),9))","v":0.99998064600000003},{"$f":"VALUE(FIXED(EXP(P$4*-1*'PM2.5 reduction'!P137),9))","v":0.99995165100000005},{"$f":"VALUE(FIXED(EXP(Q$4*-1*'PM2.5 reduction'!Q137),9))","v":0.99997572199999996},{"$f":"VALUE(FIXED(EXP(R$4*-1*'PM2.5 reduction'!R137),9))","v":0.99995934099999995},{"$f":"VALUE(FIXED(EXP(S$4*-1*'PM2.5 reduction'!S137),9))","v":0.999960513},{"$f":"VALUE(FIXED(EXP(T$4*-1*'PM2.5 reduction'!T137),9))","v":0.99992963099999999},{"$f":"VALUE(FIXED(EXP(U$4*-1*'PM2.5 reduction'!U137),9))","v":0.99999144399999995},{"$f":"VALUE(FIXED(EXP(V$4*-1*'PM2.5 reduction'!V137),9))","v":0.99996364800000004},{"$f":"VALUE(FIXED(EXP(W$4*-1*'PM2.5 reduction'!W137),9))","v":0.99997031199999997},{"$f":"VALUE(FIXED(EXP(X$4*-1*'PM2.5 reduction'!X137),9))","v":0.99997031199999997},{"$f":"VALUE(FIXED(EXP(Y$4*-1*'PM2.5 reduction'!Y137),9))","v":0.99997031599999997},{"$f":"VALUE(FIXED(EXP(Z$4*-1*'PM2.5 reduction'!Z137),9))","v":0.99993410599999999},{"$f":"VALUE(FIXED(EXP(AA$4*-1*'PM2.5 reduction'!AA137),9))","v":0.99995310999999998},{"$f":"VALUE(FIXED(EXP(AB$4*-1*'PM2.5 reduction'!AB137),9))","v":0.99996622899999998},{"$f":"VALUE(FIXED(EXP(AC$4*-1*'PM2.5 reduction'!AC137),9))","v":0.99994806599999997},{"$f":"VALUE(FIXED(EXP(AD$4*-1*'PM2.5 reduction'!AD137),9))","v":0.99999103899999997},{"$f":"VALUE(FIXED(EXP(AE$4*-1*'PM2.5 reduction'!AE137),9))","v":0.99999037700000004},{"$f":"VALUE(FIXED(EXP(AF$4*-1*'PM2.5 reduction'!AF137),9))","v":0.99997273799999997},{"$f":"VALUE(FIXED(EXP(AG$4*-1*'PM2.5 reduction'!AG137),9))","v":0.99999037700000004},{"$f":"VALUE(FIXED(EXP(AH$4*-1*'PM2.5 reduction'!AH137),9))","v":0.99995931100000002},{"$f":"VALUE(FIXED(EXP(AI$4*-1*'PM2.5 reduction'!AI137),9))","v":0.99995022200000006},{"$f":"VALUE(FIXED(EXP(AJ$4*-1*'PM2.5 reduction'!AJ137),9))","v":0.99997051000000003},{"$f":"VALUE(FIXED(EXP(AK$4*-1*'PM2.5 reduction'!AK137),9))","v":0.99998456300000005},{"$f":"VALUE(FIXED(EXP(AL$4*-1*'PM2.5 reduction'!AL137),9))","v":0.99998441100000002},{"$f":"VALUE(FIXED(EXP(AM$4*-1*'PM2.5 reduction'!AM137),9))","v":0.99995734400000003},{"$f":"VALUE(FIXED(EXP(AN$4*-1*'PM2.5 reduction'!AN137),9))","v":0.99998838199999995},{"$f":"VALUE(FIXED(EXP(AO$4*-1*'PM2.5 reduction'!AO137),9))","v":0.99998838199999995},{"$f":"VALUE(FIXED(EXP(AP$4*-1*'PM2.5 reduction'!AP137),9))","v":0.99998395200000001},{"$f":"VALUE(FIXED(EXP(AQ$4*-1*'PM2.5 reduction'!AQ137),9))","v":0.99996494400000002},{"$f":"VALUE(FIXED(EXP(AR$4*-1*'PM2.5 reduction'!AR137),9))","v":0.99996307399999995},{"$f":"VALUE(FIXED(EXP(AS$4*-1*'PM2.5 reduction'!AS137),9))","v":0.99999077000000003},{"$f":"VALUE(FIXED(EXP(AT$4*-1*'PM2.5 reduction'!AT137),9))","v":1},{"$f":"VALUE(FIXED(EXP(AU$4*-1*'PM2.5 reduction'!AU137),9))","v":1},{"$f":"VALUE(FIXED(EXP(AV$4*-1*'PM2.5 reduction'!AV137),9))","v":0.99997384600000006},{"$f":"VALUE(FIXED(EXP(AW$4*-1*'PM2.5 reduction'!AW137),9))","v":0.99996198300000005},{"$f":"VALUE(FIXED(EXP(AX$4*-1*'PM2.5 reduction'!AX137),9))","v":0.99998128500000005},{"$f":"VALUE(FIXED(EXP(AY$4*-1*'PM2.5 reduction'!AY137),9))","v":0.99997199400000003},{"$f":"VALUE(FIXED(EXP(AZ$4*-1*'PM2.5 reduction'!AZ137),9))","v":0.99997388399999998},{"$f":"VALUE(FIXED(EXP(BA$4*-1*'PM2.5 reduction'!BA137),9))","v":0.99996282999999997},{"$f":"VALUE(FIXED(EXP(BB$4*-1*'PM2.5 reduction'!BB137),9))","v":0.99996811600000002},{"$f":"VALUE(FIXED(EXP(BC$4*-1*'PM2.5 reduction'!BC137),9))","v":0.99999144399999995}]
[null,"Female 10-15",{"$f":"VALUE(FIXED(EXP(C$4*-1*'PM2.5 reduction'!C138),9))","v":0.99994031800000005},{"$f":"VALUE(FIXED(EXP(D$4*-1*'PM2.5 reduction'!D138),9))","v":0.99996763600000005},{"$f":"VALUE(FIXED(EXP(E$4*-1*'PM2.5 reduction'!E138),9))","v":0.99998948099999996},{"$f":"VALUE(FIXED(EXP(F$4*-1*'PM2.5 reduction'!F138),9))","v":0.99998551099999999},{"$f":"VALUE(FIXED(EXP(G$4*-1*'PM2.5 reduction'!G138),9))","v":0.99999378800000005},{"$f":"VALUE(FIXED(EXP(H$4*-1*'PM2.5 reduction'!H138),9))","v":0.99998062700000001},{"$f":"VALUE(FIXED(EXP(I$4*-1*'PM2.5 reduction'!I138),9))","v":0.99999094899999996},{"$f":"VALUE(FIXED(EXP(J$4*-1*'PM2.5 reduction'!J138),9))","v":0.99998062200000004},{"$f":"VALUE(FIXED(EXP(K$4*-1*'PM2.5 reduction'!K138),9))","v":0.99998115799999998},{"$f":"VALUE(FIXED(EXP(L$4*-1*'PM2.5 reduction'!L138),9))","v":0.99998712599999995},{"$f":"VALUE(FIXED(EXP(M$4*-1*'PM2.5 reduction'!M138),9))","v":0.99998712599999995},{"$f":"VALUE(FIXED(EXP(N$4*-1*'PM2.5 reduction'!N138),9))","v":0.99994342899999999},{"$f":"VALUE(FIXED(EXP(O$4*-1*'PM2.5 reduction'!O138),9))","v":0.99998298399999996},{"$f":"VALUE(FIXED(EXP(P$4*-1*'PM2.5 reduction'!P138),9))","v":0.99995374100000001},{"$f":"VALUE(FIXED(EXP(Q$4*-1*'PM2.5 reduction'!Q138),9))","v":0.99997534700000001},{"$f":"VALUE(FIXED(EXP(R$4*-1*'PM2.5 reduction'!R138),9))","v":0.99995850900000005},{"$f":"VALUE(FIXED(EXP(S$4*-1*'PM2.5 reduction'!S138),9))","v":0.99996304700000005},{"$f":"VALUE(FIXED(EXP(T$4*-1*'PM2.5 reduction'!T138),9))","v":0.99993079799999995},{"$f":"VALUE(FIXED(EXP(U$4*-1*'PM2.5 reduction'!U138),9))","v":0.99999164500000004},{"$f":"VALUE(FIXED(EXP(V$4*-1*'PM2.5 reduction'!V138),9))","v":0.99996313400000003},{"$f":"VALUE(FIXED(EXP(W$4*-1*'PM2.5 reduction'!W138),9))","v":0.99997098100000004},{"$f":"VALUE(FIXED(EXP(X$4*-1*'PM2.5 reduction'!X138),9))","v":0.99997098100000004},{"$f":"VALUE(FIXED(EXP(Y$4*-1*'PM2.5 reduction'!Y138),9))","v":0.99996946900000006},{"$f":"VALUE(FIXED(EXP(Z$4*-1*'PM2.5 reduction'!Z138),9))","v":0.99993617199999996},{"$f":"VALUE(FIXED(EXP(AA$4*-1*'PM2.5 reduction'!AA138),9))","v":0.99995450500000005},{"$f":"VALUE(FIXED(EXP(AB$4*-1*'PM2.5 reduction'!AB138),9))","v":0.99997172199999995},{"$f":"VALUE(FIXED(EXP(AC$4*-1*'PM2.5 reduction'!AC138),9))","v":0.99995054500000002},{"$f":"VALUE(FIXED(EXP(AD$4*-1*'PM2.5 reduction'!AD138),9))","v":0.99999074099999996},{"$f":"VALUE(FIXED(EXP(AE$4*-1*'PM2.5 reduction'!AE138),9))","v":0.99999006999999995},{"$f":"VALUE(FIXED(EXP(AF$4*-1*'PM2.5 reduction'!AF138),9))","v":0.99997264900000005},{"$f":"VALUE(FIXED(EXP(AG$4*-1*'PM2.5 reduction'!AG138),9))","v":0.99999006999999995},{"$f":"VALUE(FIXED(EXP(AH$4*-1*'PM2.5 reduction'!AH138),9))","v":0.99995928899999997},{"$f":"VALUE(FIXED(EXP(AI$4*-1*'PM2.5 reduction'!AI138),9))","v":0.99995330900000001},{"$f":"VALUE(FIXED(EXP(AJ$4*-1*'PM2.5 reduction'!AJ138),9))","v":0.99997087699999998},{"$f":"VALUE(FIXED(EXP(AK$4*-1*'PM2.5 reduction'!AK138),9))","v":0.99998441999999998},{"$f":"VALUE(FIXED(EXP(AL$4*-1*'PM2.5 reduction'!AL138),9))","v":0.99998462700000001},{"$f":"VALUE(FIXED(EXP(AM$4*-1*'PM2.5 reduction'!AM138),9))","v":0.99995702500000005},{"$f":"VALUE(FIXED(EXP(AN$4*-1*'PM2.5 reduction'!AN138),9))","v":0.99998839299999998},{"$f":"VALUE(FIXED(EXP(AO$4*-1*'PM2.5 reduction'!AO138),9))","v":0.99998839299999998},{"$f":"VALUE(FIXED(EXP(AP$4*-1*'PM2.5 reduction'!AP138),9))","v":0.99998259},{"$f":"VALUE(FIXED(EXP(AQ$4*-1*'PM2.5 reduction'!AQ138),9))","v":0.99996471300000001},{"$f":"VALUE(FIXED(EXP(AR$4*-1*'PM2.5 reduction'!AR138),9))","v":0.99996448900000001},{"$f":"VALUE(FIXED(EXP(AS$4*-1*'PM2.5 reduction'!AS138),9))","v":0.99999094899999996},{"$f":"VALUE(FIXED(EXP(AT$4*-1*'PM2.5 reduction'!AT138),9))","v":1},{"$f":"VALUE(FIXED(EXP(AU$4*-1*'PM2.5 reduction'!AU138),9))","v":1},{"$f":"VALUE(FIXED(EXP(AV$4*-1*'PM2.5 reduction'!AV138),9))","v":0.99997402899999999},{"$f":"VALUE(FIXED(EXP(AW$4*-1*'PM2.5 reduction'!AW138),9))","v":0.99996218199999998},{"$f":"VALUE(FIXED(EXP(AX$4*-1*'PM2.5 reduction'!AX138),9))","v":0.999980235},{"$f":"VALUE(FIXED(EXP(AY$4*-1*'PM2.5 reduction'!AY138),9))","v":0.99997178099999995},{"$f":"VALUE(FIXED(EXP(AZ$4*-1*'PM2.5 reduction'!AZ138),9))","v":0.99997260399999999},{"$f":"VALUE(FIXED(EXP(BA$4*-1*'PM2.5 reduction'!BA138),9))","v":0.99996353599999999},{"$f":"VALUE(FIXED(EXP(BB$4*-1*'PM2.5 reduction'!BB138),9))","v":0.99996806100000002},{"$f":"VALUE(FIXED(EXP(BC$4*-1*'PM2.5 reduction'!BC138),9))","v":0.99999164500000004}]
[null,"Female 16-19",{"$f":"VALUE(FIXED(EXP(C$4*-1*'PM2.5 reduction'!C139),9))","v":0.99992756500000002},{"$f":"VALUE(FIXED(EXP(D$4*-1*'PM2.5 reduction'!D139),9))","v":0.99995078000000004},{"$f":"VALUE(FIXED(EXP(E$4*-1*'PM2.5 reduction'!E139),9))","v":0.99998864200000004},{"$f":"VALUE(FIXED(EXP(F$4*-1*'PM2.5 reduction'!F139),9))","v":0.99998557799999999},{"$f":"VALUE(FIXED(EXP(G$4*-1*'PM2.5 reduction'!G139),9))","v":0.99999399300000003},{"$f":"VALUE(FIXED(EXP(H$4*-1*'PM2.5 reduction'!H139),9))","v":0.99997882000000005},{"$f":"VALUE(FIXED(EXP(I$4*-1*'PM2.5 reduction'!I139),9))","v":0.99999065899999995},{"$f":"VALUE(FIXED(EXP(J$4*-1*'PM2.5 reduction'!J139),9))","v":0.99997537800000003},{"$f":"VALUE(FIXED(EXP(K$4*-1*'PM2.5 reduction'!K139),9))","v":0.99997928300000005},{"$f":"VALUE(FIXED(EXP(L$4*-1*'PM2.5 reduction'!L139),9))","v":0.99998711699999998},{"$f":"VALUE(FIXED(EXP(M$4*-1*'PM2.5 reduction'!M139),9))","v":0.99998711699999998},{"$f":"VALUE(FIXED(EXP(N$4*-1*'PM2.5 reduction'!N139),9))","v":0.99993306699999995},{"$f":"VALUE(FIXED(EXP(O$4*-1*'PM2.5 reduction'!O139),9))","v":0.99998039900000002},{"$f":"VALUE(FIXED(EXP(P$4*-1*'PM2.5 reduction'!P139),9))","v":0.99995329300000002},{"$f":"VALUE(FIXED(EXP(Q$4*-1*'PM2.5 reduction'!Q139),9))","v":0.99997625800000001},{"$f":"VALUE(FIXED(EXP(R$4*-1*'PM2.5 reduction'!R139),9))","v":0.99995676499999997},{"$f":"VALUE(FIXED(EXP(S$4*-1*'PM2.5 reduction'!S139),9))","v":0.99994577100000004},{"$f":"VALUE(FIXED(EXP(T$4*-1*'PM2.5 reduction'!T139),9))","v":0.999894422},{"$f":"VALUE(FIXED(EXP(U$4*-1*'PM2.5 reduction'!U139),9))","v":0.99999155200000001},{"$f":"VALUE(FIXED(EXP(V$4*-1*'PM2.5 reduction'!V139),9))","v":0.99996413900000003},{"$f":"VALUE(FIXED(EXP(W$4*-1*'PM2.5 reduction'!W139),9))","v":0.99997209600000003},{"$f":"VALUE(FIXED(EXP(X$4*-1*'PM2.5 reduction'!X139),9))","v":0.99997209600000003},{"$f":"VALUE(FIXED(EXP(Y$4*-1*'PM2.5 reduction'!Y139),9))","v":0.99996835900000003},{"$f":"VALUE(FIXED(EXP(Z$4*-1*'PM2.5 reduction'!Z139),9))","v":0.99989122600000002},{"$f":"VALUE(FIXED(EXP(AA$4*-1*'PM2.5 reduction'!AA139),9))","v":0.99993225600000002},{"$f":"VALUE(FIXED(EXP(AB$4*-1*'PM2.5 reduction'!AB139),9))","v":0.99995749599999995},{"$f":"VALUE(FIXED(EXP(AC$4*-1*'PM2.5 reduction'!AC139),9))","v":0.999916095},{"$f":"VALUE(FIXED(EXP(AD$4*-1*'PM2.5 reduction'!AD139),9))","v":0.99999004800000002},{"$f":"VALUE(FIXED(EXP(AE$4*-1*'PM2.5 reduction'!AE139),9))","v":0.99998922000000001},{"$f":"VALUE(FIXED(EXP(AF$4*-1*'PM2.5 reduction'!AF139),9))","v":0.99997239100000002},{"$f":"VALUE(FIXED(EXP(AG$4*-1*'PM2.5 reduction'!AG139),9))","v":0.99998922000000001},{"$f":"VALUE(FIXED(EXP(AH$4*-1*'PM2.5 reduction'!AH139),9))","v":0.999959877},{"$f":"VALUE(FIXED(EXP(AI$4*-1*'PM2.5 reduction'!AI139),9))","v":0.99992732900000003},{"$f":"VALUE(FIXED(EXP(AJ$4*-1*'PM2.5 reduction'!AJ139),9))","v":0.99997023799999996},{"$f":"VALUE(FIXED(EXP(AK$4*-1*'PM2.5 reduction'!AK139),9))","v":0.99998479100000004},{"$f":"VALUE(FIXED(EXP(AL$4*-1*'PM2.5 reduction'!AL139),9))","v":0.99998347799999998},{"$f":"VALUE(FIXED(EXP(AM$4*-1*'PM2.5 reduction'!AM139),9))","v":0.99995788500000005},{"$f":"VALUE(FIXED(EXP(AN$4*-1*'PM2.5 reduction'!AN139),9))","v":0.999988298},{"$f":"VALUE(FIXED(EXP(AO$4*-1*'PM2.5 reduction'!AO139),9))","v":0.999988298},{"$f":"VALUE(FIXED(EXP(AP$4*-1*'PM2.5 reduction'!AP139),9))","v":0.99998212500000005},{"$f":"VALUE(FIXED(EXP(AQ$4*-1*'PM2.5 reduction'!AQ139),9))","v":0.99996390199999996},{"$f":"VALUE(FIXED(EXP(AR$4*-1*'PM2.5 reduction'!AR139),9))","v":0.99994855400000004},{"$f":"VALUE(FIXED(EXP(AS$4*-1*'PM2.5 reduction'!AS139),9))","v":0.99999065899999995},{"$f":"VALUE(FIXED(EXP(AT$4*-1*'PM2.5 reduction'!AT139),9))","v":1},{"$f":"VALUE(FIXED(EXP(AU$4*-1*'PM2.5 reduction'!AU139),9))","v":1},{"$f":"VALUE(FIXED(EXP(AV$4*-1*'PM2.5 reduction'!AV139),9))","v":0.99997334299999996},{"$f":"VALUE(FIXED(EXP(AW$4*-1*'PM2.5 reduction'!AW139),9))","v":0.99996235099999997},{"$f":"VALUE(FIXED(EXP(AX$4*-1*'PM2.5 reduction'!AX139),9))","v":0.99997304899999995},{"$f":"VALUE(FIXED(EXP(AY$4*-1*'PM2.5 reduction'!AY139),9))","v":0.99996762100000003},{"$f":"VALUE(FIXED(EXP(AZ$4*-1*'PM2.5 reduction'!AZ139),9))","v":0.99996347900000004},{"$f":"VALUE(FIXED(EXP(BA$4*-1*'PM2.5 reduction'!BA139),9))","v":0.99996244700000003},{"$f":"VALUE(FIXED(EXP(BB$4*-1*'PM2.5 reduction'!BB139),9))","v":0.99996792300000004},{"$f":"VALUE(FIXED(EXP(BC$4*-1*'PM2.5 reduction'!BC139),9))","v":0.99999155200000001}]
[null,"Female 20-24",{"$f":"VALUE(FIXED(EXP(C$4*-1*'PM2.5 reduction'!C140),9))","v":0.99991241799999997},{"$f":"VALUE(FIXED(EXP(D$4*-1*'PM2.5 reduction'!D140),9))","v":0.99993110100000004},{"$f":"VALUE(FIXED(EXP(E$4*-1*'PM2.5 reduction'!E140),9))","v":0.99998780899999995},{"$f":"VALUE(FIXED(EXP(F$4*-1*'PM2.5 reduction'!F140),9))","v":0.99998532299999998},{"$f":"VALUE(FIXED(EXP(G$4*-1*'PM2.5 reduction'!G140),9))","v":0.99999418600000001},{"$f":"VALUE(FIXED(EXP(H$4*-1*'PM2.5 reduction'!H140),9))","v":0.99997941400000001},{"$f":"VALUE(FIXED(EXP(I$4*-1*'PM2.5 reduction'!I140),9))","v":0.99999031699999996},{"$f":"VALUE(FIXED(EXP(J$4*-1*'PM2.5 reduction'!J140),9))","v":0.99996693999999997},{"$f":"VALUE(FIXED(EXP(K$4*-1*'PM2.5 reduction'!K140),9))","v":0.99998003300000005},{"$f":"VALUE(FIXED(EXP(L$4*-1*'PM2.5 reduction'!L140),9))","v":0.99998685399999998},{"$f":"VALUE(FIXED(EXP(M$4*-1*'PM2.5 reduction'!M140),9))","v":0.99998685399999998},{"$f":"VALUE(FIXED(EXP(N$4*-1*'PM2.5 reduction'!N140),9))","v":0.99993153099999998},{"$f":"VALUE(FIXED(EXP(O$4*-1*'PM2.5 reduction'!O140),9))","v":0.99998082899999996},{"$f":"VALUE(FIXED(EXP(P$4*-1*'PM2.5 reduction'!P140),9))","v":0.99995207100000005},{"$f":"VALUE(FIXED(EXP(Q$4*-1*'PM2.5 reduction'!Q140),9))","v":0.99997252999999997},{"$f":"VALUE(FIXED(EXP(R$4*-1*'PM2.5 reduction'!R140),9))","v":0.99995788399999996},{"$f":"VALUE(FIXED(EXP(S$4*-1*'PM2.5 reduction'!S140),9))","v":0.99992362999999995},{"$f":"VALUE(FIXED(EXP(T$4*-1*'PM2.5 reduction'!T140),9))","v":0.99988478000000003},{"$f":"VALUE(FIXED(EXP(U$4*-1*'PM2.5 reduction'!U140),9))","v":0.99999158300000002},{"$f":"VALUE(FIXED(EXP(V$4*-1*'PM2.5 reduction'!V140),9))","v":0.99996326899999999},{"$f":"VALUE(FIXED(EXP(W$4*-1*'PM2.5 reduction'!W140),9))","v":0.99997389299999995},{"$f":"VALUE(FIXED(EXP(X$4*-1*'PM2.5 reduction'!X140),9))","v":0.99997389299999995},{"$f":"VALUE(FIXED(EXP(Y$4*-1*'PM2.5 reduction'!Y140),9))","v":0.99996514700000005},{"$f":"VALUE(FIXED(EXP(Z$4*-1*'PM2.5 reduction'!Z140),9))","v":0.99988602599999998},{"$f":"VALUE(FIXED(EXP(AA$4*-1*'PM2.5 reduction'!AA140),9))","v":0.99991988499999995},{"$f":"VALUE(FIXED(EXP(AB$4*-1*'PM2.5 reduction'!AB140),9))","v":0.999937941},{"$f":"VALUE(FIXED(EXP(AC$4*-1*'PM2.5 reduction'!AC140),9))","v":0.99990465100000003},{"$f":"VALUE(FIXED(EXP(AD$4*-1*'PM2.5 reduction'!AD140),9))","v":0.99998962599999996},{"$f":"VALUE(FIXED(EXP(AE$4*-1*'PM2.5 reduction'!AE140),9))","v":0.99998884799999999},{"$f":"VALUE(FIXED(EXP(AF$4*-1*'PM2.5 reduction'!AF140),9))","v":0.999972635},{"$f":"VALUE(FIXED(EXP(AG$4*-1*'PM2.5 reduction'!AG140),9))","v":0.99998884799999999},{"$f":"VALUE(FIXED(EXP(AH$4*-1*'PM2.5 reduction'!AH140),9))","v":0.99995913400000003},{"$f":"VALUE(FIXED(EXP(AI$4*-1*'PM2.5 reduction'!AI140),9))","v":0.99990499700000002},{"$f":"VALUE(FIXED(EXP(AJ$4*-1*'PM2.5 reduction'!AJ140),9))","v":0.99997143799999999},{"$f":"VALUE(FIXED(EXP(AK$4*-1*'PM2.5 reduction'!AK140),9))","v":0.999984545},{"$f":"VALUE(FIXED(EXP(AL$4*-1*'PM2.5 reduction'!AL140),9))","v":0.999983446},{"$f":"VALUE(FIXED(EXP(AM$4*-1*'PM2.5 reduction'!AM140),9))","v":0.99995747400000001},{"$f":"VALUE(FIXED(EXP(AN$4*-1*'PM2.5 reduction'!AN140),9))","v":0.99998815200000002},{"$f":"VALUE(FIXED(EXP(AO$4*-1*'PM2.5 reduction'!AO140),9))","v":0.99998815200000002},{"$f":"VALUE(FIXED(EXP(AP$4*-1*'PM2.5 reduction'!AP140),9))","v":0.99998077799999996},{"$f":"VALUE(FIXED(EXP(AQ$4*-1*'PM2.5 reduction'!AQ140),9))","v":0.99996288700000002},{"$f":"VALUE(FIXED(EXP(AR$4*-1*'PM2.5 reduction'!AR140),9))","v":0.99993316600000004},{"$f":"VALUE(FIXED(EXP(AS$4*-1*'PM2.5 reduction'!AS140),9))","v":0.99999031699999996},{"$f":"VALUE(FIXED(EXP(AT$4*-1*'PM2.5 reduction'!AT140),9))","v":1},{"$f":"VALUE(FIXED(EXP(AU$4*-1*'PM2.5 reduction'!AU140),9))","v":1},{"$f":"VALUE(FIXED(EXP(AV$4*-1*'PM2.5 reduction'!AV140),9))","v":0.99997456200000001},{"$f":"VALUE(FIXED(EXP(AW$4*-1*'PM2.5 reduction'!AW140),9))","v":0.99996095100000004},{"$f":"VALUE(FIXED(EXP(AX$4*-1*'PM2.5 reduction'!AX140),9))","v":0.99996311000000004},{"$f":"VALUE(FIXED(EXP(AY$4*-1*'PM2.5 reduction'!AY140),9))","v":0.99996627999999999},{"$f":"VALUE(FIXED(EXP(AZ$4*-1*'PM2.5 reduction'!AZ140),9))","v":0.99995880800000003},{"$f":"VALUE(FIXED(EXP(BA$4*-1*'PM2.5 reduction'!BA140),9))","v":0.99996212600000001},{"$f":"VALUE(FIXED(EXP(BB$4*-1*'PM2.5 reduction'!BB140),9))","v":0.99996890900000002},{"$f":"VALUE(FIXED(EXP(BC$4*-1*'PM2.5 reduction'!BC140),9))","v":0.99999158300000002}]
[null,"Female 25-29",{"$f":"VALUE(FIXED(EXP(C$4*-1*'PM2.5 reduction'!C141),9))","v":0.99991396700000001},{"$f":"VALUE(FIXED(EXP(D$4*-1*'PM2.5 reduction'!D141),9))","v":0.99993393500000005},{"$f":"VALUE(FIXED(EXP(E$4*-1*'PM2.5 reduction'!E141),9))","v":0.99998763199999996},{"$f":"VALUE(FIXED(EXP(F$4*-1*'PM2.5 reduction'!F141),9))","v":0.99998617700000003},{"$f":"VALUE(FIXED(EXP(G$4*-1*'PM2.5 reduction'!G141),9))","v":0.99999319799999997},{"$f":"VALUE(FIXED(EXP(H$4*-1*'PM2.5 reduction'!H141),9))","v":0.999978798},{"$f":"VALUE(FIXED(EXP(I$4*-1*'PM2.5 reduction'!I141),9))","v":0.99999050099999998},{"$f":"VALUE(FIXED(EXP(J$4*-1*'PM2.5 reduction'!J141),9))","v":0.99997560900000004},{"$f":"VALUE(FIXED(EXP(K$4*-1*'PM2.5 reduction'!K141),9))","v":0.999977797},{"$f":"VALUE(FIXED(EXP(L$4*-1*'PM2.5 reduction'!L141),9))","v":0.999986771},{"$f":"VALUE(FIXED(EXP(M$4*-1*'PM2.5 reduction'!M141),9))","v":0.999986771},{"$f":"VALUE(FIXED(EXP(N$4*-1*'PM2.5 reduction'!N141),9))","v":0.99993830399999994},{"$f":"VALUE(FIXED(EXP(O$4*-1*'PM2.5 reduction'!O141),9))","v":0.99997950199999996},{"$f":"VALUE(FIXED(EXP(P$4*-1*'PM2.5 reduction'!P141),9))","v":0.99995279400000003},{"$f":"VALUE(FIXED(EXP(Q$4*-1*'PM2.5 reduction'!Q141),9))","v":0.99997251899999995},{"$f":"VALUE(FIXED(EXP(R$4*-1*'PM2.5 reduction'!R141),9))","v":0.99995546700000004},{"$f":"VALUE(FIXED(EXP(S$4*-1*'PM2.5 reduction'!S141),9))","v":0.99993053600000004},{"$f":"VALUE(FIXED(EXP(T$4*-1*'PM2.5 reduction'!T141),9))","v":0.99990358000000001},{"$f":"VALUE(FIXED(EXP(U$4*-1*'PM2.5 reduction'!U141),9))","v":0.99999172700000005},{"$f":"VALUE(FIXED(EXP(V$4*-1*'PM2.5 reduction'!V141),9))","v":0.99996203299999997},{"$f":"VALUE(FIXED(EXP(W$4*-1*'PM2.5 reduction'!W141),9))","v":0.99997114200000004},{"$f":"VALUE(FIXED(EXP(X$4*-1*'PM2.5 reduction'!X141),9))","v":0.99997114200000004},{"$f":"VALUE(FIXED(EXP(Y$4*-1*'PM2.5 reduction'!Y141),9))","v":0.99996823899999998},{"$f":"VALUE(FIXED(EXP(Z$4*-1*'PM2.5 reduction'!Z141),9))","v":0.99991310300000003},{"$f":"VALUE(FIXED(EXP(AA$4*-1*'PM2.5 reduction'!AA141),9))","v":0.99993596600000001},{"$f":"VALUE(FIXED(EXP(AB$4*-1*'PM2.5 reduction'!AB141),9))","v":0.99994155600000001},{"$f":"VALUE(FIXED(EXP(AC$4*-1*'PM2.5 reduction'!AC141),9))","v":0.99992574599999995},{"$f":"VALUE(FIXED(EXP(AD$4*-1*'PM2.5 reduction'!AD141),9))","v":0.99998956800000005},{"$f":"VALUE(FIXED(EXP(AE$4*-1*'PM2.5 reduction'!AE141),9))","v":0.99998887800000003},{"$f":"VALUE(FIXED(EXP(AF$4*-1*'PM2.5 reduction'!AF141),9))","v":0.99997245999999995},{"$f":"VALUE(FIXED(EXP(AG$4*-1*'PM2.5 reduction'!AG141),9))","v":0.99998887800000003},{"$f":"VALUE(FIXED(EXP(AH$4*-1*'PM2.5 reduction'!AH141),9))","v":0.99995892200000003},{"$f":"VALUE(FIXED(EXP(AI$4*-1*'PM2.5 reduction'!AI141),9))","v":0.99991714899999995},{"$f":"VALUE(FIXED(EXP(AJ$4*-1*'PM2.5 reduction'!AJ141),9))","v":0.99997094900000005},{"$f":"VALUE(FIXED(EXP(AK$4*-1*'PM2.5 reduction'!AK141),9))","v":0.99998429600000005},{"$f":"VALUE(FIXED(EXP(AL$4*-1*'PM2.5 reduction'!AL141),9))","v":0.99998399999999998},{"$f":"VALUE(FIXED(EXP(AM$4*-1*'PM2.5 reduction'!AM141),9))","v":0.99995735900000005},{"$f":"VALUE(FIXED(EXP(AN$4*-1*'PM2.5 reduction'!AN141),9))","v":0.99998811300000001},{"$f":"VALUE(FIXED(EXP(AO$4*-1*'PM2.5 reduction'!AO141),9))","v":0.99998811300000001},{"$f":"VALUE(FIXED(EXP(AP$4*-1*'PM2.5 reduction'!AP141),9))","v":0.99998093899999996},{"$f":"VALUE(FIXED(EXP(AQ$4*-1*'PM2.5 reduction'!AQ141),9))","v":0.99996186200000003},{"$f":"VALUE(FIXED(EXP(AR$4*-1*'PM2.5 reduction'!AR141),9))","v":0.99994172800000003},{"$f":"VALUE(FIXED(EXP(AS$4*-1*'PM2.5 reduction'!AS141),9))","v":0.99999050099999998},{"$f":"VALUE(FIXED(EXP(AT$4*-1*'PM2.5 reduction'!AT141),9))","v":1},{"$f":"VALUE(FIXED(EXP(AU$4*-1*'PM2.5 reduction'!AU141),9))","v":1},{"$f":"VALUE(FIXED(EXP(AV$4*-1*'PM2.5 reduction'!AV141),9))","v":0.999973212},{"$f":"VALUE(FIXED(EXP(AW$4*-1*'PM2.5 reduction'!AW141),9))","v":0.99996067700000002},{"$f":"VALUE(FIXED(EXP(AX$4*-1*'PM2.5 reduction'!AX141),9))","v":0.99997467600000001},{"$f":"VALUE(FIXED(EXP(AY$4*-1*'PM2.5 reduction'!AY141),9))","v":0.99996573399999999},{"$f":"VALUE(FIXED(EXP(AZ$4*-1*'PM2.5 reduction'!AZ141),9))","v":0.99996040900000005},{"$f":"VALUE(FIXED(EXP(BA$4*-1*'PM2.5 reduction'!BA141),9))","v":0.99996347299999999},{"$f":"VALUE(FIXED(EXP(BB$4*-1*'PM2.5 reduction'!BB141),9))","v":0.99996801499999999},{"$f":"VALUE(FIXED(EXP(BC$4*-1*'PM2.5 reduction'!BC141),9))","v":0.99999172700000005}]
[null,"Female 30-34",{"$f":"VALUE(FIXED(EXP(C$4*-1*'PM2.5 reduction'!C142),9))","v":0.99992222799999997},{"$f":"VALUE(FIXED(EXP(D$4*-1*'PM2.5 reduction'!D142),9))","v":0.99994527600000005},{"$f":"VALUE(FIXED(EXP(E$4*-1*'PM2.5 reduction'!E142),9))","v":0.99998834400000003},{"$f":"VALUE(FIXED(EXP(F$4*-1*'PM2.5 reduction'!F142),9))","v":0.99998544700000003},{"$f":"VALUE(FIXED(EXP(G$4*-1*'PM2.5 reduction'!G142),9))","v":0.99999366599999995},{"$f":"VALUE(FIXED(EXP(H$4*-1*'PM2.5 reduction'!H142),9))","v":0.99997936600000004},{"$f":"VALUE(FIXED(EXP(I$4*-1*'PM2.5 reduction'!I142),9))","v":0.99999044000000004},{"$f":"VALUE(FIXED(EXP(J$4*-1*'PM2.5 reduction'!J142),9))","v":0.99997893800000004},{"$f":"VALUE(FIXED(EXP(K$4*-1*'PM2.5 reduction'!K142),9))","v":0.99997876799999996},{"$f":"VALUE(FIXED(EXP(L$4*-1*'PM2.5 reduction'!L142),9))","v":0.999988133},{"$f":"VALUE(FIXED(EXP(M$4*-1*'PM2.5 reduction'!M142),9))","v":0.999988133},{"$f":"VALUE(FIXED(EXP(N$4*-1*'PM2.5 reduction'!N142),9))","v":0.99994163899999999},{"$f":"VALUE(FIXED(EXP(O$4*-1*'PM2.5 reduction'!O142),9))","v":0.99998113700000002},{"$f":"VALUE(FIXED(EXP(P$4*-1*'PM2.5 reduction'!P142),9))","v":0.99995379399999995},{"$f":"VALUE(FIXED(EXP(Q$4*-1*'PM2.5 reduction'!Q142),9))","v":0.99997380800000002},{"$f":"VALUE(FIXED(EXP(R$4*-1*'PM2.5 reduction'!R142),9))","v":0.99995739500000003},{"$f":"VALUE(FIXED(EXP(S$4*-1*'PM2.5 reduction'!S142),9))","v":0.99994044000000004},{"$f":"VALUE(FIXED(EXP(T$4*-1*'PM2.5 reduction'!T142),9))","v":0.99991229299999995},{"$f":"VALUE(FIXED(EXP(U$4*-1*'PM2.5 reduction'!U142),9))","v":0.99999152599999996},{"$f":"VALUE(FIXED(EXP(V$4*-1*'PM2.5 reduction'!V142),9))","v":0.99996273199999997},{"$f":"VALUE(FIXED(EXP(W$4*-1*'PM2.5 reduction'!W142),9))","v":0.99997016400000005},{"$f":"VALUE(FIXED(EXP(X$4*-1*'PM2.5 reduction'!X142),9))","v":0.99997016400000005},{"$f":"VALUE(FIXED(EXP(Y$4*-1*'PM2.5 reduction'!Y142),9))","v":0.99996822600000002},{"$f":"VALUE(FIXED(EXP(Z$4*-1*'PM2.5 reduction'!Z142),9))","v":0.99992132600000005},{"$f":"VALUE(FIXED(EXP(AA$4*-1*'PM2.5 reduction'!AA142),9))","v":0.99994311899999999},{"$f":"VALUE(FIXED(EXP(AB$4*-1*'PM2.5 reduction'!AB142),9))","v":0.99995244999999999},{"$f":"VALUE(FIXED(EXP(AC$4*-1*'PM2.5 reduction'!AC142),9))","v":0.99993404500000005},{"$f":"VALUE(FIXED(EXP(AD$4*-1*'PM2.5 reduction'!AD142),9))","v":0.99998962199999997},{"$f":"VALUE(FIXED(EXP(AE$4*-1*'PM2.5 reduction'!AE142),9))","v":0.99998898199999997},{"$f":"VALUE(FIXED(EXP(AF$4*-1*'PM2.5 reduction'!AF142),9))","v":0.99997258},{"$f":"VALUE(FIXED(EXP(AG$4*-1*'PM2.5 reduction'!AG142),9))","v":0.99998898199999997},{"$f":"VALUE(FIXED(EXP(AH$4*-1*'PM2.5 reduction'!AH142),9))","v":0.99995886300000003},{"$f":"VALUE(FIXED(EXP(AI$4*-1*'PM2.5 reduction'!AI142),9))","v":0.99992747500000001},{"$f":"VALUE(FIXED(EXP(AJ$4*-1*'PM2.5 reduction'!AJ142),9))","v":0.99997072899999995},{"$f":"VALUE(FIXED(EXP(AK$4*-1*'PM2.5 reduction'!AK142),9))","v":0.99998418899999997},{"$f":"VALUE(FIXED(EXP(AL$4*-1*'PM2.5 reduction'!AL142),9))","v":0.99998467099999999},{"$f":"VALUE(FIXED(EXP(AM$4*-1*'PM2.5 reduction'!AM142),9))","v":0.99995678700000001},{"$f":"VALUE(FIXED(EXP(AN$4*-1*'PM2.5 reduction'!AN142),9))","v":0.99998810900000001},{"$f":"VALUE(FIXED(EXP(AO$4*-1*'PM2.5 reduction'!AO142),9))","v":0.99998810900000001},{"$f":"VALUE(FIXED(EXP(AP$4*-1*'PM2.5 reduction'!AP142),9))","v":0.99997954300000003},{"$f":"VALUE(FIXED(EXP(AQ$4*-1*'PM2.5 reduction'!AQ142),9))","v":0.99996270300000001},{"$f":"VALUE(FIXED(EXP(AR$4*-1*'PM2.5 reduction'!AR142),9))","v":0.99995002200000005},{"$f":"VALUE(FIXED(EXP(AS$4*-1*'PM2.5 reduction'!AS142),9))","v":0.99999044000000004},{"$f":"VALUE(FIXED(EXP(AT$4*-1*'PM2.5 reduction'!AT142),9))","v":1},{"$f":"VALUE(FIXED(EXP(AU$4*-1*'PM2.5 reduction'!AU142),9))","v":1},{"$f":"VALUE(FIXED(EXP(AV$4*-1*'PM2.5 reduction'!AV142),9))","v":0.99997293600000003},{"$f":"VALUE(FIXED(EXP(AW$4*-1*'PM2.5 reduction'!AW142),9))","v":0.999961302},{"$f":"VALUE(FIXED(EXP(AX$4*-1*'PM2.5 reduction'!AX142),9))","v":0.99997908199999996},{"$f":"VALUE(FIXED(EXP(AY$4*-1*'PM2.5 reduction'!AY142),9))","v":0.99996884500000005},{"$f":"VALUE(FIXED(EXP(AZ$4*-1*'PM2.5 reduction'!AZ142),9))","v":0.99996751699999997},{"$f":"VALUE(FIXED(EXP(BA$4*-1*'PM2.5 reduction'!BA142),9))","v":0.99996422799999996},{"$f":"VALUE(FIXED(EXP(BB$4*-1*'PM2.5 reduction'!BB142),9))","v":0.99996907599999996},{"$f":"VALUE(FIXED(EXP(BC$4*-1*'PM2.5 reduction'!BC142),9))","v":0.99999152599999996}]
[null,"Female 35-39",{"$f":"VALUE(FIXED(EXP(C$4*-1*'PM2.5 reduction'!C143),9))","v":0.999927393},{"$f":"VALUE(FIXED(EXP(D$4*-1*'PM2.5 reduction'!D143),9))","v":0.99995370400000005},{"$f":"VALUE(FIXED(EXP(E$4*-1*'PM2.5 reduction'!E143),9))","v":0.99998878700000005},{"$f":"VALUE(FIXED(EXP(F$4*-1*'PM2.5 reduction'!F143),9))","v":0.999985338},{"$f":"VALUE(FIXED(EXP(G$4*-1*'PM2.5 reduction'!G143),9))","v":0.99999342700000005},{"$f":"VALUE(FIXED(EXP(H$4*-1*'PM2.5 reduction'!H143),9))","v":0.99997851599999998},{"$f":"VALUE(FIXED(EXP(I$4*-1*'PM2.5 reduction'!I143),9))","v":0.99999084699999996},{"$f":"VALUE(FIXED(EXP(J$4*-1*'PM2.5 reduction'!J143),9))","v":0.99997877000000002},{"$f":"VALUE(FIXED(EXP(K$4*-1*'PM2.5 reduction'!K143),9))","v":0.99998094100000001},{"$f":"VALUE(FIXED(EXP(L$4*-1*'PM2.5 reduction'!L143),9))","v":0.99998692899999997},{"$f":"VALUE(FIXED(EXP(M$4*-1*'PM2.5 reduction'!M143),9))","v":0.99998692899999997},{"$f":"VALUE(FIXED(EXP(N$4*-1*'PM2.5 reduction'!N143),9))","v":0.99994170000000004},{"$f":"VALUE(FIXED(EXP(O$4*-1*'PM2.5 reduction'!O143),9))","v":0.999978594},{"$f":"VALUE(FIXED(EXP(P$4*-1*'PM2.5 reduction'!P143),9))","v":0.99995412699999997},{"$f":"VALUE(FIXED(EXP(Q$4*-1*'PM2.5 reduction'!Q143),9))","v":0.99997164699999996},{"$f":"VALUE(FIXED(EXP(R$4*-1*'PM2.5 reduction'!R143),9))","v":0.99995792999999999},{"$f":"VALUE(FIXED(EXP(S$4*-1*'PM2.5 reduction'!S143),9))","v":0.99994587300000004},{"$f":"VALUE(FIXED(EXP(T$4*-1*'PM2.5 reduction'!T143),9))","v":0.99991162600000005},{"$f":"VALUE(FIXED(EXP(U$4*-1*'PM2.5 reduction'!U143),9))","v":0.99999154099999998},{"$f":"VALUE(FIXED(EXP(V$4*-1*'PM2.5 reduction'!V143),9))","v":0.99996300299999996},{"$f":"VALUE(FIXED(EXP(W$4*-1*'PM2.5 reduction'!W143),9))","v":0.99997060599999998},{"$f":"VALUE(FIXED(EXP(X$4*-1*'PM2.5 reduction'!X143),9))","v":0.99997060599999998},{"$f":"VALUE(FIXED(EXP(Y$4*-1*'PM2.5 reduction'!Y143),9))","v":0.99996850599999998},{"$f":"VALUE(FIXED(EXP(Z$4*-1*'PM2.5 reduction'!Z143),9))","v":0.99992610100000001},{"$f":"VALUE(FIXED(EXP(AA$4*-1*'PM2.5 reduction'!AA143),9))","v":0.99994784199999998},{"$f":"VALUE(FIXED(EXP(AB$4*-1*'PM2.5 reduction'!AB143),9))","v":0.999959983},{"$f":"VALUE(FIXED(EXP(AC$4*-1*'PM2.5 reduction'!AC143),9))","v":0.99994006800000002},{"$f":"VALUE(FIXED(EXP(AD$4*-1*'PM2.5 reduction'!AD143),9))","v":0.99998955899999997},{"$f":"VALUE(FIXED(EXP(AE$4*-1*'PM2.5 reduction'!AE143),9))","v":0.99998888699999999},{"$f":"VALUE(FIXED(EXP(AF$4*-1*'PM2.5 reduction'!AF143),9))","v":0.99997275699999999},{"$f":"VALUE(FIXED(EXP(AG$4*-1*'PM2.5 reduction'!AG143),9))","v":0.99998888699999999},{"$f":"VALUE(FIXED(EXP(AH$4*-1*'PM2.5 reduction'!AH143),9))","v":0.99995932200000004},{"$f":"VALUE(FIXED(EXP(AI$4*-1*'PM2.5 reduction'!AI143),9))","v":0.99993124300000003},{"$f":"VALUE(FIXED(EXP(AJ$4*-1*'PM2.5 reduction'!AJ143),9))","v":0.99997070399999999},{"$f":"VALUE(FIXED(EXP(AK$4*-1*'PM2.5 reduction'!AK143),9))","v":0.99998434199999997},{"$f":"VALUE(FIXED(EXP(AL$4*-1*'PM2.5 reduction'!AL143),9))","v":0.99998400799999998},{"$f":"VALUE(FIXED(EXP(AM$4*-1*'PM2.5 reduction'!AM143),9))","v":0.99995727499999998},{"$f":"VALUE(FIXED(EXP(AN$4*-1*'PM2.5 reduction'!AN143),9))","v":0.99998786699999997},{"$f":"VALUE(FIXED(EXP(AO$4*-1*'PM2.5 reduction'!AO143),9))","v":0.99998786699999997},{"$f":"VALUE(FIXED(EXP(AP$4*-1*'PM2.5 reduction'!AP143),9))","v":0.99998134299999997},{"$f":"VALUE(FIXED(EXP(AQ$4*-1*'PM2.5 reduction'!AQ143),9))","v":0.99996236500000002},{"$f":"VALUE(FIXED(EXP(AR$4*-1*'PM2.5 reduction'!AR143),9))","v":0.999954817},{"$f":"VALUE(FIXED(EXP(AS$4*-1*'PM2.5 reduction'!AS143),9))","v":0.99999084699999996},{"$f":"VALUE(FIXED(EXP(AT$4*-1*'PM2.5 reduction'!AT143),9))","v":1},{"$f":"VALUE(FIXED(EXP(AU$4*-1*'PM2.5 reduction'!AU143),9))","v":1},{"$f":"VALUE(FIXED(EXP(AV$4*-1*'PM2.5 reduction'!AV143),9))","v":0.999973483},{"$f":"VALUE(FIXED(EXP(AW$4*-1*'PM2.5 reduction'!AW143),9))","v":0.99996196999999998},{"$f":"VALUE(FIXED(EXP(AX$4*-1*'PM2.5 reduction'!AX143),9))","v":0.99997741900000003},{"$f":"VALUE(FIXED(EXP(AY$4*-1*'PM2.5 reduction'!AY143),9))","v":0.99997057},{"$f":"VALUE(FIXED(EXP(AZ$4*-1*'PM2.5 reduction'!AZ143),9))","v":0.99997052799999997},{"$f":"VALUE(FIXED(EXP(BA$4*-1*'PM2.5 reduction'!BA143),9))","v":0.99996338799999995},{"$f":"VALUE(FIXED(EXP(BB$4*-1*'PM2.5 reduction'!BB143),9))","v":0.99996794899999997},{"$f":"VALUE(FIXED(EXP(BC$4*-1*'PM2.5 reduction'!BC143),9))","v":0.99999154099999998}]
[null,"Female 40-44",{"$f":"VALUE(FIXED(EXP(C$4*-1*'PM2.5 reduction'!C144),9))","v":0.999929548},{"$f":"VALUE(FIXED(EXP(D$4*-1*'PM2.5 reduction'!D144),9))","v":0.99995842599999996},{"$f":"VALUE(FIXED(EXP(E$4*-1*'PM2.5 reduction'!E144),9))","v":0.999988235},{"$f":"VALUE(FIXED(EXP(F$4*-1*'PM2.5 reduction'!F144),9))","v":0.99998502700000003},{"$f":"VALUE(FIXED(EXP(G$4*-1*'PM2.5 reduction'!G144),9))","v":0.99999366599999995},{"$f":"VALUE(FIXED(EXP(H$4*-1*'PM2.5 reduction'!H144),9))","v":0.99998019400000004},{"$f":"VALUE(FIXED(EXP(I$4*-1*'PM2.5 reduction'!I144),9))","v":0.99999058100000005},{"$f":"VALUE(FIXED(EXP(J$4*-1*'PM2.5 reduction'!J144),9))","v":0.99998099399999996},{"$f":"VALUE(FIXED(EXP(K$4*-1*'PM2.5 reduction'!K144),9))","v":0.99997948400000003},{"$f":"VALUE(FIXED(EXP(L$4*-1*'PM2.5 reduction'!L144),9))","v":0.99998715500000002},{"$f":"VALUE(FIXED(EXP(M$4*-1*'PM2.5 reduction'!M144),9))","v":0.99998715500000002},{"$f":"VALUE(FIXED(EXP(N$4*-1*'PM2.5 reduction'!N144),9))","v":0.99994164799999996},{"$f":"VALUE(FIXED(EXP(O$4*-1*'PM2.5 reduction'!O144),9))","v":0.99998224499999999},{"$f":"VALUE(FIXED(EXP(P$4*-1*'PM2.5 reduction'!P144),9))","v":0.99995118000000005},{"$f":"VALUE(FIXED(EXP(Q$4*-1*'PM2.5 reduction'!Q144),9))","v":0.99997356400000004},{"$f":"VALUE(FIXED(EXP(R$4*-1*'PM2.5 reduction'!R144),9))","v":0.99995894100000005},{"$f":"VALUE(FIXED(EXP(S$4*-1*'PM2.5 reduction'!S144),9))","v":0.99995422899999997},{"$f":"VALUE(FIXED(EXP(T$4*-1*'PM2.5 reduction'!T144),9))","v":0.99991881299999996},{"$f":"VALUE(FIXED(EXP(U$4*-1*'PM2.5 reduction'!U144),9))","v":0.99999183000000003},{"$f":"VALUE(FIXED(EXP(V$4*-1*'PM2.5 reduction'!V144),9))","v":0.99996339700000003},{"$f":"VALUE(FIXED(EXP(W$4*-1*'PM2.5 reduction'!W144),9))","v":0.99997086899999998},{"$f":"VALUE(FIXED(EXP(X$4*-1*'PM2.5 reduction'!X144),9))","v":0.99997086899999998},{"$f":"VALUE(FIXED(EXP(Y$4*-1*'PM2.5 reduction'!Y144),9))","v":0.99996978999999997},{"$f":"VALUE(FIXED(EXP(Z$4*-1*'PM2.5 reduction'!Z144),9))","v":0.99992913100000003},{"$f":"VALUE(FIXED(EXP(AA$4*-1*'PM2.5 reduction'!AA144),9))","v":0.99995106},{"$f":"VALUE(FIXED(EXP(AB$4*-1*'PM2.5 reduction'!AB144),9))","v":0.99996419599999997},{"$f":"VALUE(FIXED(EXP(AC$4*-1*'PM2.5 reduction'!AC144),9))","v":0.99994448599999997},{"$f":"VALUE(FIXED(EXP(AD$4*-1*'PM2.5 reduction'!AD144),9))","v":0.99999057199999997},{"$f":"VALUE(FIXED(EXP(AE$4*-1*'PM2.5 reduction'!AE144),9))","v":0.99998989599999999},{"$f":"VALUE(FIXED(EXP(AF$4*-1*'PM2.5 reduction'!AF144),9))","v":0.99997230599999998},{"$f":"VALUE(FIXED(EXP(AG$4*-1*'PM2.5 reduction'!AG144),9))","v":0.99998989599999999},{"$f":"VALUE(FIXED(EXP(AH$4*-1*'PM2.5 reduction'!AH144),9))","v":0.99995975199999998},{"$f":"VALUE(FIXED(EXP(AI$4*-1*'PM2.5 reduction'!AI144),9))","v":0.99994106000000005},{"$f":"VALUE(FIXED(EXP(AJ$4*-1*'PM2.5 reduction'!AJ144),9))","v":0.99997185099999997},{"$f":"VALUE(FIXED(EXP(AK$4*-1*'PM2.5 reduction'!AK144),9))","v":0.99998479299999998},{"$f":"VALUE(FIXED(EXP(AL$4*-1*'PM2.5 reduction'!AL144),9))","v":0.99998378600000004},{"$f":"VALUE(FIXED(EXP(AM$4*-1*'PM2.5 reduction'!AM144),9))","v":0.99995763699999995},{"$f":"VALUE(FIXED(EXP(AN$4*-1*'PM2.5 reduction'!AN144),9))","v":0.99998829700000003},{"$f":"VALUE(FIXED(EXP(AO$4*-1*'PM2.5 reduction'!AO144),9))","v":0.99998829700000003},{"$f":"VALUE(FIXED(EXP(AP$4*-1*'PM2.5 reduction'!AP144),9))","v":0.99998217099999998},{"$f":"VALUE(FIXED(EXP(AQ$4*-1*'PM2.5 reduction'!AQ144),9))","v":0.99996326999999996},{"$f":"VALUE(FIXED(EXP(AR$4*-1*'PM2.5 reduction'!AR144),9))","v":0.99995984800000004},{"$f":"VALUE(FIXED(EXP(AS$4*-1*'PM2.5 reduction'!AS144),9))","v":0.99999058100000005},{"$f":"VALUE(FIXED(EXP(AT$4*-1*'PM2.5 reduction'!AT144),9))","v":1},{"$f":"VALUE(FIXED(EXP(AU$4*-1*'PM2.5 reduction'!AU144),9))","v":1},{"$f":"VALUE(FIXED(EXP(AV$4*-1*'PM2.5 reduction'!AV144),9))","v":0.99997412699999999},{"$f":"VALUE(FIXED(EXP(AW$4*-1*'PM2.5 reduction'!AW144),9))","v":0.99996255899999997},{"$f":"VALUE(FIXED(EXP(AX$4*-1*'PM2.5 reduction'!AX144),9))","v":0.99998204700000004},{"$f":"VALUE(FIXED(EXP(AY$4*-1*'PM2.5 reduction'!AY144),9))","v":0.99997186599999999},{"$f":"VALUE(FIXED(EXP(AZ$4*-1*'PM2.5 reduction'!AZ144),9))","v":0.99997297100000004},{"$f":"VALUE(FIXED(EXP(BA$4*-1*'PM2.5 reduction'!BA144),9))","v":0.99996238500000001},{"$f":"VALUE(FIXED(EXP(BB$4*-1*'PM2.5 reduction'!BB144),9))","v":0.99996840099999995},{"$f":"VALUE(FIXED(EXP(BC$4*-1*'PM2.5 reduction'!BC144),9))","v":0.99999183000000003}]
[null,"Female 45-49",{"$f":"VALUE(FIXED(EXP(C$4*-1*'PM2.5 reduction'!C145),9))","v":0.99993510600000002},{"$f":"VALUE(FIXED(EXP(D$4*-1*'PM2.5 reduction'!D145),9))","v":0.99996357300000005},{"$f":"VALUE(FIXED(EXP(E$4*-1*'PM2.5 reduction'!E145),9))","v":0.99998847400000002},{"$f":"VALUE(FIXED(EXP(F$4*-1*'PM2.5 reduction'!F145),9))","v":0.99998579600000004},{"$f":"VALUE(FIXED(EXP(G$4*-1*'PM2.5 reduction'!G145),9))","v":0.99999363500000005},{"$f":"VALUE(FIXED(EXP(H$4*-1*'PM2.5 reduction'!H145),9))","v":0.999979442},{"$f":"VALUE(FIXED(EXP(I$4*-1*'PM2.5 reduction'!I145),9))","v":0.99999053500000001},{"$f":"VALUE(FIXED(EXP(J$4*-1*'PM2.5 reduction'!J145),9))","v":0.99998073700000001},{"$f":"VALUE(FIXED(EXP(K$4*-1*'PM2.5 reduction'!K145),9))","v":0.99997888899999998},{"$f":"VALUE(FIXED(EXP(L$4*-1*'PM2.5 reduction'!L145),9))","v":0.99998699400000002},{"$f":"VALUE(FIXED(EXP(M$4*-1*'PM2.5 reduction'!M145),9))","v":0.99998699400000002},{"$f":"VALUE(FIXED(EXP(N$4*-1*'PM2.5 reduction'!N145),9))","v":0.99994457800000003},{"$f":"VALUE(FIXED(EXP(O$4*-1*'PM2.5 reduction'!O145),9))","v":0.99998117200000003},{"$f":"VALUE(FIXED(EXP(P$4*-1*'PM2.5 reduction'!P145),9))","v":0.99995342099999995},{"$f":"VALUE(FIXED(EXP(Q$4*-1*'PM2.5 reduction'!Q145),9))","v":0.99997506999999997},{"$f":"VALUE(FIXED(EXP(R$4*-1*'PM2.5 reduction'!R145),9))","v":0.99995765299999995},{"$f":"VALUE(FIXED(EXP(S$4*-1*'PM2.5 reduction'!S145),9))","v":0.99995930200000005},{"$f":"VALUE(FIXED(EXP(T$4*-1*'PM2.5 reduction'!T145),9))","v":0.99992145700000001},{"$f":"VALUE(FIXED(EXP(U$4*-1*'PM2.5 reduction'!U145),9))","v":0.99999155699999998},{"$f":"VALUE(FIXED(EXP(V$4*-1*'PM2.5 reduction'!V145),9))","v":0.99996392000000001},{"$f":"VALUE(FIXED(EXP(W$4*-1*'PM2.5 reduction'!W145),9))","v":0.99997173299999997},{"$f":"VALUE(FIXED(EXP(X$4*-1*'PM2.5 reduction'!X145),9))","v":0.99997173299999997},{"$f":"VALUE(FIXED(EXP(Y$4*-1*'PM2.5 reduction'!Y145),9))","v":0.99996981600000001},{"$f":"VALUE(FIXED(EXP(Z$4*-1*'PM2.5 reduction'!Z145),9))","v":0.99993250700000003},{"$f":"VALUE(FIXED(EXP(AA$4*-1*'PM2.5 reduction'!AA145),9))","v":0.99995291600000002},{"$f":"VALUE(FIXED(EXP(AB$4*-1*'PM2.5 reduction'!AB145),9))","v":0.99996852000000003},{"$f":"VALUE(FIXED(EXP(AC$4*-1*'PM2.5 reduction'!AC145),9))","v":0.999947998},{"$f":"VALUE(FIXED(EXP(AD$4*-1*'PM2.5 reduction'!AD145),9))","v":0.99998984700000004},{"$f":"VALUE(FIXED(EXP(AE$4*-1*'PM2.5 reduction'!AE145),9))","v":0.99998908500000006},{"$f":"VALUE(FIXED(EXP(AF$4*-1*'PM2.5 reduction'!AF145),9))","v":0.999972419},{"$f":"VALUE(FIXED(EXP(AG$4*-1*'PM2.5 reduction'!AG145),9))","v":0.99998908500000006},{"$f":"VALUE(FIXED(EXP(AH$4*-1*'PM2.5 reduction'!AH145),9))","v":0.99995941700000002},{"$f":"VALUE(FIXED(EXP(AI$4*-1*'PM2.5 reduction'!AI145),9))","v":0.99994745799999996},{"$f":"VALUE(FIXED(EXP(AJ$4*-1*'PM2.5 reduction'!AJ145),9))","v":0.99997134799999998},{"$f":"VALUE(FIXED(EXP(AK$4*-1*'PM2.5 reduction'!AK145),9))","v":0.99998507999999997},{"$f":"VALUE(FIXED(EXP(AL$4*-1*'PM2.5 reduction'!AL145),9))","v":0.999983654},{"$f":"VALUE(FIXED(EXP(AM$4*-1*'PM2.5 reduction'!AM145),9))","v":0.99995690400000004},{"$f":"VALUE(FIXED(EXP(AN$4*-1*'PM2.5 reduction'!AN145),9))","v":0.99998813399999997},{"$f":"VALUE(FIXED(EXP(AO$4*-1*'PM2.5 reduction'!AO145),9))","v":0.99998813399999997},{"$f":"VALUE(FIXED(EXP(AP$4*-1*'PM2.5 reduction'!AP145),9))","v":0.99998220000000004},{"$f":"VALUE(FIXED(EXP(AQ$4*-1*'PM2.5 reduction'!AQ145),9))","v":0.99996438700000001},{"$f":"VALUE(FIXED(EXP(AR$4*-1*'PM2.5 reduction'!AR145),9))","v":0.99996237099999996},{"$f":"VALUE(FIXED(EXP(AS$4*-1*'PM2.5 reduction'!AS145),9))","v":0.99999053500000001},{"$f":"VALUE(FIXED(EXP(AT$4*-1*'PM2.5 reduction'!AT145),9))","v":1},{"$f":"VALUE(FIXED(EXP(AU$4*-1*'PM2.5 reduction'!AU145),9))","v":1},{"$f":"VALUE(FIXED(EXP(AV$4*-1*'PM2.5 reduction'!AV145),9))","v":0.99997326399999997},{"$f":"VALUE(FIXED(EXP(AW$4*-1*'PM2.5 reduction'!AW145),9))","v":0.99996236299999997},{"$f":"VALUE(FIXED(EXP(AX$4*-1*'PM2.5 reduction'!AX145),9))","v":0.99998255199999997},{"$f":"VALUE(FIXED(EXP(AY$4*-1*'PM2.5 reduction'!AY145),9))","v":0.99997195900000002},{"$f":"VALUE(FIXED(EXP(AZ$4*-1*'PM2.5 reduction'!AZ145),9))","v":0.99997222699999999},{"$f":"VALUE(FIXED(EXP(BA$4*-1*'PM2.5 reduction'!BA145),9))","v":0.99996343099999996},{"$f":"VALUE(FIXED(EXP(BB$4*-1*'PM2.5 reduction'!BB145),9))","v":0.99996812300000004},{"$f":"VALUE(FIXED(EXP(BC$4*-1*'PM2.5 reduction'!BC145),9))","v":0.99999155699999998}]
[null,"Female 50-54",{"$f":"VALUE(FIXED(EXP(C$4*-1*'PM2.5 reduction'!C146),9))","v":0.99993606300000004},{"$f":"VALUE(FIXED(EXP(D$4*-1*'PM2.5 reduction'!D146),9))","v":0.99996200599999996},{"$f":"VALUE(FIXED(EXP(E$4*-1*'PM2.5 reduction'!E146),9))","v":0.99998866500000005},{"$f":"VALUE(FIXED(EXP(F$4*-1*'PM2.5 reduction'!F146),9))","v":0.99998599200000005},{"$f":"VALUE(FIXED(EXP(G$4*-1*'PM2.5 reduction'!G146),9))","v":0.99999387799999995},{"$f":"VALUE(FIXED(EXP(H$4*-1*'PM2.5 reduction'!H146),9))","v":0.99997968699999995},{"$f":"VALUE(FIXED(EXP(I$4*-1*'PM2.5 reduction'!I146),9))","v":0.99999099499999999},{"$f":"VALUE(FIXED(EXP(J$4*-1*'PM2.5 reduction'!J146),9))","v":0.99998129400000002},{"$f":"VALUE(FIXED(EXP(K$4*-1*'PM2.5 reduction'!K146),9))","v":0.99997919400000002},{"$f":"VALUE(FIXED(EXP(L$4*-1*'PM2.5 reduction'!L146),9))","v":0.99998711799999995},{"$f":"VALUE(FIXED(EXP(M$4*-1*'PM2.5 reduction'!M146),9))","v":0.99998711799999995},{"$f":"VALUE(FIXED(EXP(N$4*-1*'PM2.5 reduction'!N146),9))","v":0.99994483000000001},{"$f":"VALUE(FIXED(EXP(O$4*-1*'PM2.5 reduction'!O146),9))","v":0.99998156599999999},{"$f":"VALUE(FIXED(EXP(P$4*-1*'PM2.5 reduction'!P146),9))","v":0.99995224999999999},{"$f":"VALUE(FIXED(EXP(Q$4*-1*'PM2.5 reduction'!Q146),9))","v":0.99997309700000003},{"$f":"VALUE(FIXED(EXP(R$4*-1*'PM2.5 reduction'!R146),9))","v":0.99995742399999998},{"$f":"VALUE(FIXED(EXP(S$4*-1*'PM2.5 reduction'!S146),9))","v":0.99995977800000002},{"$f":"VALUE(FIXED(EXP(T$4*-1*'PM2.5 reduction'!T146),9))","v":0.99992277799999996},{"$f":"VALUE(FIXED(EXP(U$4*-1*'PM2.5 reduction'!U146),9))","v":0.999991819},{"$f":"VALUE(FIXED(EXP(V$4*-1*'PM2.5 reduction'!V146),9))","v":0.99996217600000004},{"$f":"VALUE(FIXED(EXP(W$4*-1*'PM2.5 reduction'!W146),9))","v":0.99997159499999999},{"$f":"VALUE(FIXED(EXP(X$4*-1*'PM2.5 reduction'!X146),9))","v":0.99997159499999999},{"$f":"VALUE(FIXED(EXP(Y$4*-1*'PM2.5 reduction'!Y146),9))","v":0.99996895600000002},{"$f":"VALUE(FIXED(EXP(Z$4*-1*'PM2.5 reduction'!Z146),9))","v":0.99993543500000004},{"$f":"VALUE(FIXED(EXP(AA$4*-1*'PM2.5 reduction'!AA146),9))","v":0.99995347499999998},{"$f":"VALUE(FIXED(EXP(AB$4*-1*'PM2.5 reduction'!AB146),9))","v":0.99996694799999997},{"$f":"VALUE(FIXED(EXP(AC$4*-1*'PM2.5 reduction'!AC146),9))","v":0.99994879699999994},{"$f":"VALUE(FIXED(EXP(AD$4*-1*'PM2.5 reduction'!AD146),9))","v":0.99998988799999999},{"$f":"VALUE(FIXED(EXP(AE$4*-1*'PM2.5 reduction'!AE146),9))","v":0.99998899600000002},{"$f":"VALUE(FIXED(EXP(AF$4*-1*'PM2.5 reduction'!AF146),9))","v":0.99997211600000002},{"$f":"VALUE(FIXED(EXP(AG$4*-1*'PM2.5 reduction'!AG146),9))","v":0.99998899600000002},{"$f":"VALUE(FIXED(EXP(AH$4*-1*'PM2.5 reduction'!AH146),9))","v":0.99995982100000003},{"$f":"VALUE(FIXED(EXP(AI$4*-1*'PM2.5 reduction'!AI146),9))","v":0.99994805600000003},{"$f":"VALUE(FIXED(EXP(AJ$4*-1*'PM2.5 reduction'!AJ146),9))","v":0.99997083600000003},{"$f":"VALUE(FIXED(EXP(AK$4*-1*'PM2.5 reduction'!AK146),9))","v":0.99998416499999998},{"$f":"VALUE(FIXED(EXP(AL$4*-1*'PM2.5 reduction'!AL146),9))","v":0.99998373699999998},{"$f":"VALUE(FIXED(EXP(AM$4*-1*'PM2.5 reduction'!AM146),9))","v":0.99995791000000001},{"$f":"VALUE(FIXED(EXP(AN$4*-1*'PM2.5 reduction'!AN146),9))","v":0.99998835399999997},{"$f":"VALUE(FIXED(EXP(AO$4*-1*'PM2.5 reduction'!AO146),9))","v":0.99998835399999997},{"$f":"VALUE(FIXED(EXP(AP$4*-1*'PM2.5 reduction'!AP146),9))","v":0.99998237899999998},{"$f":"VALUE(FIXED(EXP(AQ$4*-1*'PM2.5 reduction'!AQ146),9))","v":0.99996325900000005},{"$f":"VALUE(FIXED(EXP(AR$4*-1*'PM2.5 reduction'!AR146),9))","v":0.999962613},{"$f":"VALUE(FIXED(EXP(AS$4*-1*'PM2.5 reduction'!AS146),9))","v":0.99999099499999999},{"$f":"VALUE(FIXED(EXP(AT$4*-1*'PM2.5 reduction'!AT146),9))","v":1},{"$f":"VALUE(FIXED(EXP(AU$4*-1*'PM2.5 reduction'!AU146),9))","v":1},{"$f":"VALUE(FIXED(EXP(AV$4*-1*'PM2.5 reduction'!AV146),9))","v":0.99997406300000002},{"$f":"VALUE(FIXED(EXP(AW$4*-1*'PM2.5 reduction'!AW146),9))","v":0.99996191800000001},{"$f":"VALUE(FIXED(EXP(AX$4*-1*'PM2.5 reduction'!AX146),9))","v":0.99998318799999997},{"$f":"VALUE(FIXED(EXP(AY$4*-1*'PM2.5 reduction'!AY146),9))","v":0.99997148499999999},{"$f":"VALUE(FIXED(EXP(AZ$4*-1*'PM2.5 reduction'!AZ146),9))","v":0.99997137000000003},{"$f":"VALUE(FIXED(EXP(BA$4*-1*'PM2.5 reduction'!BA146),9))","v":0.99996316200000002},{"$f":"VALUE(FIXED(EXP(BB$4*-1*'PM2.5 reduction'!BB146),9))","v":0.99996861999999997},{"$f":"VALUE(FIXED(EXP(BC$4*-1*'PM2.5 reduction'!BC146),9))","v":0.999991819}]
[null,"Female 55-59",{"$f":"VALUE(FIXED(EXP(C$4*-1*'PM2.5 reduction'!C147),9))","v":0.99993718399999998},{"$f":"VALUE(FIXED(EXP(D$4*-1*'PM2.5 reduction'!D147),9))","v":0.99996208600000003},{"$f":"VALUE(FIXED(EXP(E$4*-1*'PM2.5 reduction'!E147),9))","v":0.99998803700000005},{"$f":"VALUE(FIXED(EXP(F$4*-1*'PM2.5 reduction'!F147),9))","v":0.99998532399999995},{"$f":"VALUE(FIXED(EXP(G$4*-1*'PM2.5 reduction'!G147),9))","v":0.999993676},{"$f":"VALUE(FIXED(EXP(H$4*-1*'PM2.5 reduction'!H147),9))","v":0.999979226},{"$f":"VALUE(FIXED(EXP(I$4*-1*'PM2.5 reduction'!I147),9))","v":0.99999081000000001},{"$f":"VALUE(FIXED(EXP(J$4*-1*'PM2.5 reduction'!J147),9))","v":0.99998214200000002},{"$f":"VALUE(FIXED(EXP(K$4*-1*'PM2.5 reduction'!K147),9))","v":0.99998052900000001},{"$f":"VALUE(FIXED(EXP(L$4*-1*'PM2.5 reduction'!L147),9))","v":0.99998701999999995},{"$f":"VALUE(FIXED(EXP(M$4*-1*'PM2.5 reduction'!M147),9))","v":0.99998701999999995},{"$f":"VALUE(FIXED(EXP(N$4*-1*'PM2.5 reduction'!N147),9))","v":0.99994379200000005},{"$f":"VALUE(FIXED(EXP(O$4*-1*'PM2.5 reduction'!O147),9))","v":0.99998082399999999},{"$f":"VALUE(FIXED(EXP(P$4*-1*'PM2.5 reduction'!P147),9))","v":0.99995303499999999},{"$f":"VALUE(FIXED(EXP(Q$4*-1*'PM2.5 reduction'!Q147),9))","v":0.99997336000000003},{"$f":"VALUE(FIXED(EXP(R$4*-1*'PM2.5 reduction'!R147),9))","v":0.99995683000000002},{"$f":"VALUE(FIXED(EXP(S$4*-1*'PM2.5 reduction'!S147),9))","v":0.99996051200000002},{"$f":"VALUE(FIXED(EXP(T$4*-1*'PM2.5 reduction'!T147),9))","v":0.99992210400000003},{"$f":"VALUE(FIXED(EXP(U$4*-1*'PM2.5 reduction'!U147),9))","v":0.99999179000000005},{"$f":"VALUE(FIXED(EXP(V$4*-1*'PM2.5 reduction'!V147),9))","v":0.99996272600000002},{"$f":"VALUE(FIXED(EXP(W$4*-1*'PM2.5 reduction'!W147),9))","v":0.99997192800000001},{"$f":"VALUE(FIXED(EXP(X$4*-1*'PM2.5 reduction'!X147),9))","v":0.99997192800000001},{"$f":"VALUE(FIXED(EXP(Y$4*-1*'PM2.5 reduction'!Y147),9))","v":0.99996966700000001},{"$f":"VALUE(FIXED(EXP(Z$4*-1*'PM2.5 reduction'!Z147),9))","v":0.99993522000000001},{"$f":"VALUE(FIXED(EXP(AA$4*-1*'PM2.5 reduction'!AA147),9))","v":0.99995360899999997},{"$f":"VALUE(FIXED(EXP(AB$4*-1*'PM2.5 reduction'!AB147),9))","v":0.999966876},{"$f":"VALUE(FIXED(EXP(AC$4*-1*'PM2.5 reduction'!AC147),9))","v":0.99994906500000003},{"$f":"VALUE(FIXED(EXP(AD$4*-1*'PM2.5 reduction'!AD147),9))","v":0.99998965500000003},{"$f":"VALUE(FIXED(EXP(AE$4*-1*'PM2.5 reduction'!AE147),9))","v":0.99998892900000003},{"$f":"VALUE(FIXED(EXP(AF$4*-1*'PM2.5 reduction'!AF147),9))","v":0.99997229300000001},{"$f":"VALUE(FIXED(EXP(AG$4*-1*'PM2.5 reduction'!AG147),9))","v":0.99998892900000003},{"$f":"VALUE(FIXED(EXP(AH$4*-1*'PM2.5 reduction'!AH147),9))","v":0.99995938799999995},{"$f":"VALUE(FIXED(EXP(AI$4*-1*'PM2.5 reduction'!AI147),9))","v":0.99994826800000003},{"$f":"VALUE(FIXED(EXP(AJ$4*-1*'PM2.5 reduction'!AJ147),9))","v":0.99997140399999995},{"$f":"VALUE(FIXED(EXP(AK$4*-1*'PM2.5 reduction'!AK147),9))","v":0.99998428900000003},{"$f":"VALUE(FIXED(EXP(AL$4*-1*'PM2.5 reduction'!AL147),9))","v":0.999983921},{"$f":"VALUE(FIXED(EXP(AM$4*-1*'PM2.5 reduction'!AM147),9))","v":0.99995787199999997},{"$f":"VALUE(FIXED(EXP(AN$4*-1*'PM2.5 reduction'!AN147),9))","v":0.99998809399999999},{"$f":"VALUE(FIXED(EXP(AO$4*-1*'PM2.5 reduction'!AO147),9))","v":0.99998809399999999},{"$f":"VALUE(FIXED(EXP(AP$4*-1*'PM2.5 reduction'!AP147),9))","v":0.99998221700000001},{"$f":"VALUE(FIXED(EXP(AQ$4*-1*'PM2.5 reduction'!AQ147),9))","v":0.99996342599999999},{"$f":"VALUE(FIXED(EXP(AR$4*-1*'PM2.5 reduction'!AR147),9))","v":0.99996277600000005},{"$f":"VALUE(FIXED(EXP(AS$4*-1*'PM2.5 reduction'!AS147),9))","v":0.99999081000000001},{"$f":"VALUE(FIXED(EXP(AT$4*-1*'PM2.5 reduction'!AT147),9))","v":1},{"$f":"VALUE(FIXED(EXP(AU$4*-1*'PM2.5 reduction'!AU147),9))","v":1},{"$f":"VALUE(FIXED(EXP(AV$4*-1*'PM2.5 reduction'!AV147),9))","v":0.99997327000000003},{"$f":"VALUE(FIXED(EXP(AW$4*-1*'PM2.5 reduction'!AW147),9))","v":0.99996092999999997},{"$f":"VALUE(FIXED(EXP(AX$4*-1*'PM2.5 reduction'!AX147),9))","v":0.99998371100000005},{"$f":"VALUE(FIXED(EXP(AY$4*-1*'PM2.5 reduction'!AY147),9))","v":0.99997114200000004},{"$f":"VALUE(FIXED(EXP(AZ$4*-1*'PM2.5 reduction'!AZ147),9))","v":0.999970307},{"$f":"VALUE(FIXED(EXP(BA$4*-1*'PM2.5 reduction'!BA147),9))","v":0.99996300500000002},{"$f":"VALUE(FIXED(EXP(BB$4*-1*'PM2.5 reduction'!BB147),9))","v":0.99996919299999998},{"$f":"VALUE(FIXED(EXP(BC$4*-1*'PM2.5 reduction'!BC147),9))","v":0.99999179000000005}]
[null,"Female 60-64",{"$f":"VALUE(FIXED(EXP(C$4*-1*'PM2.5 reduction'!C148),9))","v":0.99993716300000002},{"$f":"VALUE(FIXED(EXP(D$4*-1*'PM2.5 reduction'!D148),9))","v":0.99996326899999999},{"$f":"VALUE(FIXED(EXP(E$4*-1*'PM2.5 reduction'!E148),9))","v":0.99998847800000001},{"$f":"VALUE(FIXED(EXP(F$4*-1*'PM2.5 reduction'!F148),9))","v":0.99998572299999999},{"$f":"VALUE(FIXED(EXP(G$4*-1*'PM2.5 reduction'!G148),9))","v":0.99999451100000003},{"$f":"VALUE(FIXED(EXP(H$4*-1*'PM2.5 reduction'!H148),9))","v":0.99997935199999999},{"$f":"VALUE(FIXED(EXP(I$4*-1*'PM2.5 reduction'!I148),9))","v":0.99999079999999996},{"$f":"VALUE(FIXED(EXP(J$4*-1*'PM2.5 reduction'!J148),9))","v":0.99998295599999998},{"$f":"VALUE(FIXED(EXP(K$4*-1*'PM2.5 reduction'!K148),9))","v":0.99998048299999998},{"$f":"VALUE(FIXED(EXP(L$4*-1*'PM2.5 reduction'!L148),9))","v":0.99998849499999998},{"$f":"VALUE(FIXED(EXP(M$4*-1*'PM2.5 reduction'!M148),9))","v":0.99998849499999998},{"$f":"VALUE(FIXED(EXP(N$4*-1*'PM2.5 reduction'!N148),9))","v":0.99994612299999996},{"$f":"VALUE(FIXED(EXP(O$4*-1*'PM2.5 reduction'!O148),9))","v":0.99998139699999999},{"$f":"VALUE(FIXED(EXP(P$4*-1*'PM2.5 reduction'!P148),9))","v":0.999952061},{"$f":"VALUE(FIXED(EXP(Q$4*-1*'PM2.5 reduction'!Q148),9))","v":0.99997398699999995},{"$f":"VALUE(FIXED(EXP(R$4*-1*'PM2.5 reduction'!R148),9))","v":0.99995735600000002},{"$f":"VALUE(FIXED(EXP(S$4*-1*'PM2.5 reduction'!S148),9))","v":0.99996141900000002},{"$f":"VALUE(FIXED(EXP(T$4*-1*'PM2.5 reduction'!T148),9))","v":0.999924174},{"$f":"VALUE(FIXED(EXP(U$4*-1*'PM2.5 reduction'!U148),9))","v":0.99999157000000005},{"$f":"VALUE(FIXED(EXP(V$4*-1*'PM2.5 reduction'!V148),9))","v":0.99996386999999998},{"$f":"VALUE(FIXED(EXP(W$4*-1*'PM2.5 reduction'!W148),9))","v":0.99997123899999996},{"$f":"VALUE(FIXED(EXP(X$4*-1*'PM2.5 reduction'!X148),9))","v":0.99997123899999996},{"$f":"VALUE(FIXED(EXP(Y$4*-1*'PM2.5 reduction'!Y148),9))","v":0.99997057700000003},{"$f":"VALUE(FIXED(EXP(Z$4*-1*'PM2.5 reduction'!Z148),9))","v":0.999934938},{"$f":"VALUE(FIXED(EXP(AA$4*-1*'PM2.5 reduction'!AA148),9))","v":0.99995416400000003},{"$f":"VALUE(FIXED(EXP(AB$4*-1*'PM2.5 reduction'!AB148),9))","v":0.99996756499999995},{"$f":"VALUE(FIXED(EXP(AC$4*-1*'PM2.5 reduction'!AC148),9))","v":0.99994936300000004},{"$f":"VALUE(FIXED(EXP(AD$4*-1*'PM2.5 reduction'!AD148),9))","v":0.99999054899999995},{"$f":"VALUE(FIXED(EXP(AE$4*-1*'PM2.5 reduction'!AE148),9))","v":0.99998981200000003},{"$f":"VALUE(FIXED(EXP(AF$4*-1*'PM2.5 reduction'!AF148),9))","v":0.99997213900000004},{"$f":"VALUE(FIXED(EXP(AG$4*-1*'PM2.5 reduction'!AG148),9))","v":0.99998981200000003},{"$f":"VALUE(FIXED(EXP(AH$4*-1*'PM2.5 reduction'!AH148),9))","v":0.999959932},{"$f":"VALUE(FIXED(EXP(AI$4*-1*'PM2.5 reduction'!AI148),9))","v":0.99994934300000005},{"$f":"VALUE(FIXED(EXP(AJ$4*-1*'PM2.5 reduction'!AJ148),9))","v":0.99997109100000003},{"$f":"VALUE(FIXED(EXP(AK$4*-1*'PM2.5 reduction'!AK148),9))","v":0.99998393799999996},{"$f":"VALUE(FIXED(EXP(AL$4*-1*'PM2.5 reduction'!AL148),9))","v":0.99998337199999998},{"$f":"VALUE(FIXED(EXP(AM$4*-1*'PM2.5 reduction'!AM148),9))","v":0.99995793899999996},{"$f":"VALUE(FIXED(EXP(AN$4*-1*'PM2.5 reduction'!AN148),9))","v":0.99998809399999999},{"$f":"VALUE(FIXED(EXP(AO$4*-1*'PM2.5 reduction'!AO148),9))","v":0.99998809399999999},{"$f":"VALUE(FIXED(EXP(AP$4*-1*'PM2.5 reduction'!AP148),9))","v":0.999983501},{"$f":"VALUE(FIXED(EXP(AQ$4*-1*'PM2.5 reduction'!AQ148),9))","v":0.99996207500000001},{"$f":"VALUE(FIXED(EXP(AR$4*-1*'PM2.5 reduction'!AR148),9))","v":0.99996399499999999},{"$f":"VALUE(FIXED(EXP(AS$4*-1*'PM2.5 reduction'!AS148),9))","v":0.99999079999999996},{"$f":"VALUE(FIXED(EXP(AT$4*-1*'PM2.5 reduction'!AT148),9))","v":1},{"$f":"VALUE(FIXED(EXP(AU$4*-1*'PM2.5 reduction'!AU148),9))","v":1},{"$f":"VALUE(FIXED(EXP(AV$4*-1*'PM2.5 reduction'!AV148),9))","v":0.99997382800000001},{"$f":"VALUE(FIXED(EXP(AW$4*-1*'PM2.5 reduction'!AW148),9))","v":0.99996195700000001},{"$f":"VALUE(FIXED(EXP(AX$4*-1*'PM2.5 reduction'!AX148),9))","v":0.99998500899999998},{"$f":"VALUE(FIXED(EXP(AY$4*-1*'PM2.5 reduction'!AY148),9))","v":0.99997153400000005},{"$f":"VALUE(FIXED(EXP(AZ$4*-1*'PM2.5 reduction'!AZ148),9))","v":0.99997183099999998},{"$f":"VALUE(FIXED(EXP(BA$4*-1*'PM2.5 reduction'!BA148),9))","v":0.99996315899999999},{"$f":"VALUE(FIXED(EXP(BB$4*-1*'PM2.5 reduction'!BB148),9))","v":0.99996969599999996},{"$f":"VALUE(FIXED(EXP(BC$4*-1*'PM2.5 reduction'!BC148),9))","v":0.99999157000000005}]
[null,"Female 65-69",{"$f":"VALUE(FIXED(EXP(C$4*-1*'PM2.5 reduction'!C149),9))","v":0.99993653400000004},{"$f":"VALUE(FIXED(EXP(D$4*-1*'PM2.5 reduction'!D149),9))","v":0.99996458300000002},{"$f":"VALUE(FIXED(EXP(E$4*-1*'PM2.5 reduction'!E149),9))","v":0.99998839100000003},{"$f":"VALUE(FIXED(EXP(F$4*-1*'PM2.5 reduction'!F149),9))","v":0.99998582999999996},{"$f":"VALUE(FIXED(EXP(G$4*-1*'PM2.5 reduction'!G149),9))","v":0.99999365399999995},{"$f":"VALUE(FIXED(EXP(H$4*-1*'PM2.5 reduction'!H149),9))","v":0.99997924199999999},{"$f":"VALUE(FIXED(EXP(I$4*-1*'PM2.5 reduction'!I149),9))","v":0.99999062000000005},{"$f":"VALUE(FIXED(EXP(J$4*-1*'PM2.5 reduction'!J149),9))","v":0.99998369099999995},{"$f":"VALUE(FIXED(EXP(K$4*-1*'PM2.5 reduction'!K149),9))","v":0.99998231699999995},{"$f":"VALUE(FIXED(EXP(L$4*-1*'PM2.5 reduction'!L149),9))","v":0.99998754099999998},{"$f":"VALUE(FIXED(EXP(M$4*-1*'PM2.5 reduction'!M149),9))","v":0.99998754099999998},{"$f":"VALUE(FIXED(EXP(N$4*-1*'PM2.5 reduction'!N149),9))","v":0.99994350099999996},{"$f":"VALUE(FIXED(EXP(O$4*-1*'PM2.5 reduction'!O149),9))","v":0.99998124799999999},{"$f":"VALUE(FIXED(EXP(P$4*-1*'PM2.5 reduction'!P149),9))","v":0.99995314099999999},{"$f":"VALUE(FIXED(EXP(Q$4*-1*'PM2.5 reduction'!Q149),9))","v":0.99997441200000003},{"$f":"VALUE(FIXED(EXP(R$4*-1*'PM2.5 reduction'!R149),9))","v":0.999958554},{"$f":"VALUE(FIXED(EXP(S$4*-1*'PM2.5 reduction'!S149),9))","v":0.99996335199999997},{"$f":"VALUE(FIXED(EXP(T$4*-1*'PM2.5 reduction'!T149),9))","v":0.99992628100000003},{"$f":"VALUE(FIXED(EXP(U$4*-1*'PM2.5 reduction'!U149),9))","v":0.99999151100000006},{"$f":"VALUE(FIXED(EXP(V$4*-1*'PM2.5 reduction'!V149),9))","v":0.99996239899999995},{"$f":"VALUE(FIXED(EXP(W$4*-1*'PM2.5 reduction'!W149),9))","v":0.99997171900000004},{"$f":"VALUE(FIXED(EXP(X$4*-1*'PM2.5 reduction'!X149),9))","v":0.99997171900000004},{"$f":"VALUE(FIXED(EXP(Y$4*-1*'PM2.5 reduction'!Y149),9))","v":0.99997026099999997},{"$f":"VALUE(FIXED(EXP(Z$4*-1*'PM2.5 reduction'!Z149),9))","v":0.99993563299999999},{"$f":"VALUE(FIXED(EXP(AA$4*-1*'PM2.5 reduction'!AA149),9))","v":0.99995575699999995},{"$f":"VALUE(FIXED(EXP(AB$4*-1*'PM2.5 reduction'!AB149),9))","v":0.99996867899999997},{"$f":"VALUE(FIXED(EXP(AC$4*-1*'PM2.5 reduction'!AC149),9))","v":0.99995137099999998},{"$f":"VALUE(FIXED(EXP(AD$4*-1*'PM2.5 reduction'!AD149),9))","v":0.99999017999999995},{"$f":"VALUE(FIXED(EXP(AE$4*-1*'PM2.5 reduction'!AE149),9))","v":0.99998958199999999},{"$f":"VALUE(FIXED(EXP(AF$4*-1*'PM2.5 reduction'!AF149),9))","v":0.99997213799999995},{"$f":"VALUE(FIXED(EXP(AG$4*-1*'PM2.5 reduction'!AG149),9))","v":0.99998958199999999},{"$f":"VALUE(FIXED(EXP(AH$4*-1*'PM2.5 reduction'!AH149),9))","v":0.99996109799999999},{"$f":"VALUE(FIXED(EXP(AI$4*-1*'PM2.5 reduction'!AI149),9))","v":0.99995131900000001},{"$f":"VALUE(FIXED(EXP(AJ$4*-1*'PM2.5 reduction'!AJ149),9))","v":0.99997089500000003},{"$f":"VALUE(FIXED(EXP(AK$4*-1*'PM2.5 reduction'!AK149),9))","v":0.99998403400000002},{"$f":"VALUE(FIXED(EXP(AL$4*-1*'PM2.5 reduction'!AL149),9))","v":0.99998376600000005},{"$f":"VALUE(FIXED(EXP(AM$4*-1*'PM2.5 reduction'!AM149),9))","v":0.99995899200000005},{"$f":"VALUE(FIXED(EXP(AN$4*-1*'PM2.5 reduction'!AN149),9))","v":0.99998818599999995},{"$f":"VALUE(FIXED(EXP(AO$4*-1*'PM2.5 reduction'!AO149),9))","v":0.99998818599999995},{"$f":"VALUE(FIXED(EXP(AP$4*-1*'PM2.5 reduction'!AP149),9))","v":0.99998344900000002},{"$f":"VALUE(FIXED(EXP(AQ$4*-1*'PM2.5 reduction'!AQ149),9))","v":0.99996387900000006},{"$f":"VALUE(FIXED(EXP(AR$4*-1*'PM2.5 reduction'!AR149),9))","v":0.99996532000000005},{"$f":"VALUE(FIXED(EXP(AS$4*-1*'PM2.5 reduction'!AS149),9))","v":0.99999062000000005},{"$f":"VALUE(FIXED(EXP(AT$4*-1*'PM2.5 reduction'!AT149),9))","v":1},{"$f":"VALUE(FIXED(EXP(AU$4*-1*'PM2.5 reduction'!AU149),9))","v":1},{"$f":"VALUE(FIXED(EXP(AV$4*-1*'PM2.5 reduction'!AV149),9))","v":0.99997334199999999},{"$f":"VALUE(FIXED(EXP(AW$4*-1*'PM2.5 reduction'!AW149),9))","v":0.99996348599999996},{"$f":"VALUE(FIXED(EXP(AX$4*-1*'PM2.5 reduction'!AX149),9))","v":0.99998494100000002},{"$f":"VALUE(FIXED(EXP(AY$4*-1*'PM2.5 reduction'!AY149),9))","v":0.99997140399999995},{"$f":"VALUE(FIXED(EXP(AZ$4*-1*'PM2.5 reduction'!AZ149),9))","v":0.99997106700000005},{"$f":"VALUE(FIXED(EXP(BA$4*-1*'PM2.5 reduction'!BA149),9))","v":0.99996296100000004},{"$f":"VALUE(FIXED(EXP(BB$4*-1*'PM2.5 reduction'!BB149),9))","v":0.99996975700000001},{"$f":"VALUE(FIXED(EXP(BC$4*-1*'PM2.5 reduction'!BC149),9))","v":0.99999151100000006}]
[null,"Female 70-74",{"$f":"VALUE(FIXED(EXP(C$4*-1*'PM2.5 reduction'!C150),9))","v":0.99994365200000002},{"$f":"VALUE(FIXED(EXP(D$4*-1*'PM2.5 reduction'!D150),9))","v":0.99996897799999995},{"$f":"VALUE(FIXED(EXP(E$4*-1*'PM2.5 reduction'!E150),9))","v":0.99998908799999997},{"$f":"VALUE(FIXED(EXP(F$4*-1*'PM2.5 reduction'!F150),9))","v":0.99998636100000005},{"$f":"VALUE(FIXED(EXP(G$4*-1*'PM2.5 reduction'!G150),9))","v":0.99999458399999996},{"$f":"VALUE(FIXED(EXP(H$4*-1*'PM2.5 reduction'!H150),9))","v":0.99997916899999995},{"$f":"VALUE(FIXED(EXP(I$4*-1*'PM2.5 reduction'!I150),9))","v":0.99999070800000001},{"$f":"VALUE(FIXED(EXP(J$4*-1*'PM2.5 reduction'!J150),9))","v":0.99998283700000001},{"$f":"VALUE(FIXED(EXP(K$4*-1*'PM2.5 reduction'!K150),9))","v":0.99998132299999998},{"$f":"VALUE(FIXED(EXP(L$4*-1*'PM2.5 reduction'!L150),9))","v":0.99998804100000005},{"$f":"VALUE(FIXED(EXP(M$4*-1*'PM2.5 reduction'!M150),9))","v":0.99998804100000005},{"$f":"VALUE(FIXED(EXP(N$4*-1*'PM2.5 reduction'!N150),9))","v":0.99994559299999997},{"$f":"VALUE(FIXED(EXP(O$4*-1*'PM2.5 reduction'!O150),9))","v":0.99998028699999997},{"$f":"VALUE(FIXED(EXP(P$4*-1*'PM2.5 reduction'!P150),9))","v":0.99995050200000002},{"$f":"VALUE(FIXED(EXP(Q$4*-1*'PM2.5 reduction'!Q150),9))","v":0.99997573900000003},{"$f":"VALUE(FIXED(EXP(R$4*-1*'PM2.5 reduction'!R150),9))","v":0.99995915199999996},{"$f":"VALUE(FIXED(EXP(S$4*-1*'PM2.5 reduction'!S150),9))","v":0.99996389500000005},{"$f":"VALUE(FIXED(EXP(T$4*-1*'PM2.5 reduction'!T150),9))","v":0.99992790099999995},{"$f":"VALUE(FIXED(EXP(U$4*-1*'PM2.5 reduction'!U150),9))","v":0.999991462},{"$f":"VALUE(FIXED(EXP(V$4*-1*'PM2.5 reduction'!V150),9))","v":0.999961192},{"$f":"VALUE(FIXED(EXP(W$4*-1*'PM2.5 reduction'!W150),9))","v":0.99997145200000004},{"$f":"VALUE(FIXED(EXP(X$4*-1*'PM2.5 reduction'!X150),9))","v":0.99997145200000004},{"$f":"VALUE(FIXED(EXP(Y$4*-1*'PM2.5 reduction'!Y150),9))","v":0.99996966099999995},{"$f":"VALUE(FIXED(EXP(Z$4*-1*'PM2.5 reduction'!Z150),9))","v":0.99993427099999999},{"$f":"VALUE(FIXED(EXP(AA$4*-1*'PM2.5 reduction'!AA150),9))","v":0.99995503799999996},{"$f":"VALUE(FIXED(EXP(AB$4*-1*'PM2.5 reduction'!AB150),9))","v":0.99997212700000004},{"$f":"VALUE(FIXED(EXP(AC$4*-1*'PM2.5 reduction'!AC150),9))","v":0.99995087299999996},{"$f":"VALUE(FIXED(EXP(AD$4*-1*'PM2.5 reduction'!AD150),9))","v":0.99998998400000005},{"$f":"VALUE(FIXED(EXP(AE$4*-1*'PM2.5 reduction'!AE150),9))","v":0.999988875},{"$f":"VALUE(FIXED(EXP(AF$4*-1*'PM2.5 reduction'!AF150),9))","v":0.99997165499999996},{"$f":"VALUE(FIXED(EXP(AG$4*-1*'PM2.5 reduction'!AG150),9))","v":0.999988875},{"$f":"VALUE(FIXED(EXP(AH$4*-1*'PM2.5 reduction'!AH150),9))","v":0.99995984199999999},{"$f":"VALUE(FIXED(EXP(AI$4*-1*'PM2.5 reduction'!AI150),9))","v":0.99995300200000004},{"$f":"VALUE(FIXED(EXP(AJ$4*-1*'PM2.5 reduction'!AJ150),9))","v":0.999970743},{"$f":"VALUE(FIXED(EXP(AK$4*-1*'PM2.5 reduction'!AK150),9))","v":0.999982649},{"$f":"VALUE(FIXED(EXP(AL$4*-1*'PM2.5 reduction'!AL150),9))","v":0.99998383499999999},{"$f":"VALUE(FIXED(EXP(AM$4*-1*'PM2.5 reduction'!AM150),9))","v":0.99995795899999995},{"$f":"VALUE(FIXED(EXP(AN$4*-1*'PM2.5 reduction'!AN150),9))","v":0.999988192},{"$f":"VALUE(FIXED(EXP(AO$4*-1*'PM2.5 reduction'!AO150),9))","v":0.999988192},{"$f":"VALUE(FIXED(EXP(AP$4*-1*'PM2.5 reduction'!AP150),9))","v":0.99998363300000004},{"$f":"VALUE(FIXED(EXP(AQ$4*-1*'PM2.5 reduction'!AQ150),9))","v":0.99996447099999997},{"$f":"VALUE(FIXED(EXP(AR$4*-1*'PM2.5 reduction'!AR150),9))","v":0.99996587100000001},{"$f":"VALUE(FIXED(EXP(AS$4*-1*'PM2.5 reduction'!AS150),9))","v":0.99999070800000001},{"$f":"VALUE(FIXED(EXP(AT$4*-1*'PM2.5 reduction'!AT150),9))","v":1},{"$f":"VALUE(FIXED(EXP(AU$4*-1*'PM2.5 reduction'!AU150),9))","v":1},{"$f":"VALUE(FIXED(EXP(AV$4*-1*'PM2.5 reduction'!AV150),9))","v":0.99997423100000005},{"$f":"VALUE(FIXED(EXP(AW$4*-1*'PM2.5 reduction'!AW150),9))","v":0.99996184600000004},{"$f":"VALUE(FIXED(EXP(AX$4*-1*'PM2.5 reduction'!AX150),9))","v":0.99998412299999995},{"$f":"VALUE(FIXED(EXP(AY$4*-1*'PM2.5 reduction'!AY150),9))","v":0.99997222600000002},{"$f":"VALUE(FIXED(EXP(AZ$4*-1*'PM2.5 reduction'!AZ150),9))","v":0.999973},{"$f":"VALUE(FIXED(EXP(BA$4*-1*'PM2.5 reduction'!BA150),9))","v":0.99996120099999997},{"$f":"VALUE(FIXED(EXP(BB$4*-1*'PM2.5 reduction'!BB150),9))","v":0.99997038400000005},{"$f":"VALUE(FIXED(EXP(BC$4*-1*'PM2.5 reduction'!BC150),9))","v":0.999991462}]
[null,"Female 75-79",{"$f":"VALUE(FIXED(EXP(C$4*-1*'PM2.5 reduction'!C151),9))","v":0.99994534499999999},{"$f":"VALUE(FIXED(EXP(D$4*-1*'PM2.5 reduction'!D151),9))","v":0.99996787099999995},{"$f":"VALUE(FIXED(EXP(E$4*-1*'PM2.5 reduction'!E151),9))","v":0.99998832699999995},{"$f":"VALUE(FIXED(EXP(F$4*-1*'PM2.5 reduction'!F151),9))","v":0.99998618500000003},{"$f":"VALUE(FIXED(EXP(G$4*-1*'PM2.5 reduction'!G151),9))","v":0.99999554499999999},{"$f":"VALUE(FIXED(EXP(H$4*-1*'PM2.5 reduction'!H151),9))","v":0.99997898200000002},{"$f":"VALUE(FIXED(EXP(I$4*-1*'PM2.5 reduction'!I151),9))","v":0.99999072099999997},{"$f":"VALUE(FIXED(EXP(J$4*-1*'PM2.5 reduction'!J151),9))","v":0.99998231900000001},{"$f":"VALUE(FIXED(EXP(K$4*-1*'PM2.5 reduction'!K151),9))","v":0.99997798800000004},{"$f":"VALUE(FIXED(EXP(L$4*-1*'PM2.5 reduction'!L151),9))","v":0.99998853499999996},{"$f":"VALUE(FIXED(EXP(M$4*-1*'PM2.5 reduction'!M151),9))","v":0.99998853499999996},{"$f":"VALUE(FIXED(EXP(N$4*-1*'PM2.5 reduction'!N151),9))","v":0.999945109},{"$f":"VALUE(FIXED(EXP(O$4*-1*'PM2.5 reduction'!O151),9))","v":0.99998048699999997},{"$f":"VALUE(FIXED(EXP(P$4*-1*'PM2.5 reduction'!P151),9))","v":0.99995046600000004},{"$f":"VALUE(FIXED(EXP(Q$4*-1*'PM2.5 reduction'!Q151),9))","v":0.999977012},{"$f":"VALUE(FIXED(EXP(R$4*-1*'PM2.5 reduction'!R151),9))","v":0.99995940000000005},{"$f":"VALUE(FIXED(EXP(S$4*-1*'PM2.5 reduction'!S151),9))","v":0.99996391600000001},{"$f":"VALUE(FIXED(EXP(T$4*-1*'PM2.5 reduction'!T151),9))","v":0.99992789199999998},{"$f":"VALUE(FIXED(EXP(U$4*-1*'PM2.5 reduction'!U151),9))","v":0.99999144900000003},{"$f":"VALUE(FIXED(EXP(V$4*-1*'PM2.5 reduction'!V151),9))","v":0.99996140600000005},{"$f":"VALUE(FIXED(EXP(W$4*-1*'PM2.5 reduction'!W151),9))","v":0.99997192099999999},{"$f":"VALUE(FIXED(EXP(X$4*-1*'PM2.5 reduction'!X151),9))","v":0.99997192099999999},{"$f":"VALUE(FIXED(EXP(Y$4*-1*'PM2.5 reduction'!Y151),9))","v":0.99996954299999996},{"$f":"VALUE(FIXED(EXP(Z$4*-1*'PM2.5 reduction'!Z151),9))","v":0.99993370699999995},{"$f":"VALUE(FIXED(EXP(AA$4*-1*'PM2.5 reduction'!AA151),9))","v":0.99995521499999995},{"$f":"VALUE(FIXED(EXP(AB$4*-1*'PM2.5 reduction'!AB151),9))","v":0.99997147500000005},{"$f":"VALUE(FIXED(EXP(AC$4*-1*'PM2.5 reduction'!AC151),9))","v":0.999950966},{"$f":"VALUE(FIXED(EXP(AD$4*-1*'PM2.5 reduction'!AD151),9))","v":0.999990567},{"$f":"VALUE(FIXED(EXP(AE$4*-1*'PM2.5 reduction'!AE151),9))","v":0.999989621},{"$f":"VALUE(FIXED(EXP(AF$4*-1*'PM2.5 reduction'!AF151),9))","v":0.99997187799999998},{"$f":"VALUE(FIXED(EXP(AG$4*-1*'PM2.5 reduction'!AG151),9))","v":0.999989621},{"$f":"VALUE(FIXED(EXP(AH$4*-1*'PM2.5 reduction'!AH151),9))","v":0.99995996300000001},{"$f":"VALUE(FIXED(EXP(AI$4*-1*'PM2.5 reduction'!AI151),9))","v":0.99995261300000005},{"$f":"VALUE(FIXED(EXP(AJ$4*-1*'PM2.5 reduction'!AJ151),9))","v":0.99997001600000002},{"$f":"VALUE(FIXED(EXP(AK$4*-1*'PM2.5 reduction'!AK151),9))","v":0.99998313599999999},{"$f":"VALUE(FIXED(EXP(AL$4*-1*'PM2.5 reduction'!AL151),9))","v":0.99998356300000002},{"$f":"VALUE(FIXED(EXP(AM$4*-1*'PM2.5 reduction'!AM151),9))","v":0.99995779100000004},{"$f":"VALUE(FIXED(EXP(AN$4*-1*'PM2.5 reduction'!AN151),9))","v":0.99998821800000004},{"$f":"VALUE(FIXED(EXP(AO$4*-1*'PM2.5 reduction'!AO151),9))","v":0.99998821800000004},{"$f":"VALUE(FIXED(EXP(AP$4*-1*'PM2.5 reduction'!AP151),9))","v":0.99998198599999999},{"$f":"VALUE(FIXED(EXP(AQ$4*-1*'PM2.5 reduction'!AQ151),9))","v":0.99996444299999998},{"$f":"VALUE(FIXED(EXP(AR$4*-1*'PM2.5 reduction'!AR151),9))","v":0.99996540099999998},{"$f":"VALUE(FIXED(EXP(AS$4*-1*'PM2.5 reduction'!AS151),9))","v":0.99999072099999997},{"$f":"VALUE(FIXED(EXP(AT$4*-1*'PM2.5 reduction'!AT151),9))","v":1},{"$f":"VALUE(FIXED(EXP(AU$4*-1*'PM2.5 reduction'!AU151),9))","v":1},{"$f":"VALUE(FIXED(EXP(AV$4*-1*'PM2.5 reduction'!AV151),9))","v":0.99997327800000002},{"$f":"VALUE(FIXED(EXP(AW$4*-1*'PM2.5 reduction'!AW151),9))","v":0.99996191899999998},{"$f":"VALUE(FIXED(EXP(AX$4*-1*'PM2.5 reduction'!AX151),9))","v":0.99998577799999999},{"$f":"VALUE(FIXED(EXP(AY$4*-1*'PM2.5 reduction'!AY151),9))","v":0.99997097899999998},{"$f":"VALUE(FIXED(EXP(AZ$4*-1*'PM2.5 reduction'!AZ151),9))","v":0.99997005400000005},{"$f":"VALUE(FIXED(EXP(BA$4*-1*'PM2.5 reduction'!BA151),9))","v":0.99996370499999998},{"$f":"VALUE(FIXED(EXP(BB$4*-1*'PM2.5 reduction'!BB151),9))","v":0.999970425},{"$f":"VALUE(FIXED(EXP(BC$4*-1*'PM2.5 reduction'!BC151),9))","v":0.99999144900000003}]
[null,"Female 80-84",{"$f":"VALUE(FIXED(EXP(C$4*-1*'PM2.5 reduction'!C152),9))","v":0.99994506000000005},{"$f":"VALUE(FIXED(EXP(D$4*-1*'PM2.5 reduction'!D152),9))","v":0.99996488699999997},{"$f":"VALUE(FIXED(EXP(E$4*-1*'PM2.5 reduction'!E152),9))","v":0.99998789600000004},{"$f":"VALUE(FIXED(EXP(F$4*-1*'PM2.5 reduction'!F152),9))","v":0.99998558599999998},{"$f":"VALUE(FIXED(EXP(G$4*-1*'PM2.5 reduction'!G152),9))","v":0.99999506400000004},{"$f":"VALUE(FIXED(EXP(H$4*-1*'PM2.5 reduction'!H152),9))","v":0.99997947799999998},{"$f":"VALUE(FIXED(EXP(I$4*-1*'PM2.5 reduction'!I152),9))","v":0.99999037800000001},{"$f":"VALUE(FIXED(EXP(J$4*-1*'PM2.5 reduction'!J152),9))","v":0.999983819},{"$f":"VALUE(FIXED(EXP(K$4*-1*'PM2.5 reduction'!K152),9))","v":0.99997860599999999},{"$f":"VALUE(FIXED(EXP(L$4*-1*'PM2.5 reduction'!L152),9))","v":0.99998872699999997},{"$f":"VALUE(FIXED(EXP(M$4*-1*'PM2.5 reduction'!M152),9))","v":0.99998872699999997},{"$f":"VALUE(FIXED(EXP(N$4*-1*'PM2.5 reduction'!N152),9))","v":0.99994433999999999},{"$f":"VALUE(FIXED(EXP(O$4*-1*'PM2.5 reduction'!O152),9))","v":0.99998131099999998},{"$f":"VALUE(FIXED(EXP(P$4*-1*'PM2.5 reduction'!P152),9))","v":0.99995277100000002},{"$f":"VALUE(FIXED(EXP(Q$4*-1*'PM2.5 reduction'!Q152),9))","v":0.99997643400000003},{"$f":"VALUE(FIXED(EXP(R$4*-1*'PM2.5 reduction'!R152),9))","v":0.99995706900000003},{"$f":"VALUE(FIXED(EXP(S$4*-1*'PM2.5 reduction'!S152),9))","v":0.99996312799999998},{"$f":"VALUE(FIXED(EXP(T$4*-1*'PM2.5 reduction'!T152),9))","v":0.99992948599999998},{"$f":"VALUE(FIXED(EXP(U$4*-1*'PM2.5 reduction'!U152),9))","v":0.999991195},{"$f":"VALUE(FIXED(EXP(V$4*-1*'PM2.5 reduction'!V152),9))","v":0.99996061700000005},{"$f":"VALUE(FIXED(EXP(W$4*-1*'PM2.5 reduction'!W152),9))","v":0.99997081300000001},{"$f":"VALUE(FIXED(EXP(X$4*-1*'PM2.5 reduction'!X152),9))","v":0.99997081300000001},{"$f":"VALUE(FIXED(EXP(Y$4*-1*'PM2.5 reduction'!Y152),9))","v":0.99997075300000005},{"$f":"VALUE(FIXED(EXP(Z$4*-1*'PM2.5 reduction'!Z152),9))","v":0.99993425899999999},{"$f":"VALUE(FIXED(EXP(AA$4*-1*'PM2.5 reduction'!AA152),9))","v":0.99995357500000004},{"$f":"VALUE(FIXED(EXP(AB$4*-1*'PM2.5 reduction'!AB152),9))","v":0.99996938499999999},{"$f":"VALUE(FIXED(EXP(AC$4*-1*'PM2.5 reduction'!AC152),9))","v":0.99994906299999997},{"$f":"VALUE(FIXED(EXP(AD$4*-1*'PM2.5 reduction'!AD152),9))","v":0.9999903},{"$f":"VALUE(FIXED(EXP(AE$4*-1*'PM2.5 reduction'!AE152),9))","v":0.99998951800000002},{"$f":"VALUE(FIXED(EXP(AF$4*-1*'PM2.5 reduction'!AF152),9))","v":0.999970252},{"$f":"VALUE(FIXED(EXP(AG$4*-1*'PM2.5 reduction'!AG152),9))","v":0.99998951800000002},{"$f":"VALUE(FIXED(EXP(AH$4*-1*'PM2.5 reduction'!AH152),9))","v":0.999959178},{"$f":"VALUE(FIXED(EXP(AI$4*-1*'PM2.5 reduction'!AI152),9))","v":0.99995145399999996},{"$f":"VALUE(FIXED(EXP(AJ$4*-1*'PM2.5 reduction'!AJ152),9))","v":0.99997081399999999},{"$f":"VALUE(FIXED(EXP(AK$4*-1*'PM2.5 reduction'!AK152),9))","v":0.99998198100000002},{"$f":"VALUE(FIXED(EXP(AL$4*-1*'PM2.5 reduction'!AL152),9))","v":0.99998331900000004},{"$f":"VALUE(FIXED(EXP(AM$4*-1*'PM2.5 reduction'!AM152),9))","v":0.99995733899999995},{"$f":"VALUE(FIXED(EXP(AN$4*-1*'PM2.5 reduction'!AN152),9))","v":0.99998820700000002},{"$f":"VALUE(FIXED(EXP(AO$4*-1*'PM2.5 reduction'!AO152),9))","v":0.99998820700000002},{"$f":"VALUE(FIXED(EXP(AP$4*-1*'PM2.5 reduction'!AP152),9))","v":0.99998324000000005},{"$f":"VALUE(FIXED(EXP(AQ$4*-1*'PM2.5 reduction'!AQ152),9))","v":0.99996182},{"$f":"VALUE(FIXED(EXP(AR$4*-1*'PM2.5 reduction'!AR152),9))","v":0.99996410300000005},{"$f":"VALUE(FIXED(EXP(AS$4*-1*'PM2.5 reduction'!AS152),9))","v":0.99999037800000001},{"$f":"VALUE(FIXED(EXP(AT$4*-1*'PM2.5 reduction'!AT152),9))","v":1},{"$f":"VALUE(FIXED(EXP(AU$4*-1*'PM2.5 reduction'!AU152),9))","v":1},{"$f":"VALUE(FIXED(EXP(AV$4*-1*'PM2.5 reduction'!AV152),9))","v":0.99997433199999997},{"$f":"VALUE(FIXED(EXP(AW$4*-1*'PM2.5 reduction'!AW152),9))","v":0.99996067799999999},{"$f":"VALUE(FIXED(EXP(AX$4*-1*'PM2.5 reduction'!AX152),9))","v":0.99998747700000001},{"$f":"VALUE(FIXED(EXP(AY$4*-1*'PM2.5 reduction'!AY152),9))","v":0.99996917299999999},{"$f":"VALUE(FIXED(EXP(AZ$4*-1*'PM2.5 reduction'!AZ152),9))","v":0.99996782699999998},{"$f":"VALUE(FIXED(EXP(BA$4*-1*'PM2.5 reduction'!BA152),9))","v":0.99996310600000005},{"$f":"VALUE(FIXED(EXP(BB$4*-1*'PM2.5 reduction'!BB152),9))","v":0.99997029199999998},{"$f":"VALUE(FIXED(EXP(BC$4*-1*'PM2.5 reduction'!BC152),9))","v":0.999991195}]
[null,"Female 85-89",{"$f":"VALUE(FIXED(EXP(C$4*-1*'PM2.5 reduction'!C153),9))","v":0.99994243299999996},{"$f":"VALUE(FIXED(EXP(D$4*-1*'PM2.5 reduction'!D153),9))","v":0.99996718299999998},{"$f":"VALUE(FIXED(EXP(E$4*-1*'PM2.5 reduction'!E153),9))","v":0.999987442},{"$f":"VALUE(FIXED(EXP(F$4*-1*'PM2.5 reduction'!F153),9))","v":0.99998442899999995},{"$f":"VALUE(FIXED(EXP(G$4*-1*'PM2.5 reduction'!G153),9))","v":0.99999505099999997},{"$f":"VALUE(FIXED(EXP(H$4*-1*'PM2.5 reduction'!H153),9))","v":0.99997878200000001},{"$f":"VALUE(FIXED(EXP(I$4*-1*'PM2.5 reduction'!I153),9))","v":0.99999106500000001},{"$f":"VALUE(FIXED(EXP(J$4*-1*'PM2.5 reduction'!J153),9))","v":0.99998241600000004},{"$f":"VALUE(FIXED(EXP(K$4*-1*'PM2.5 reduction'!K153),9))","v":0.99997788399999998},{"$f":"VALUE(FIXED(EXP(L$4*-1*'PM2.5 reduction'!L153),9))","v":0.99998911000000001},{"$f":"VALUE(FIXED(EXP(M$4*-1*'PM2.5 reduction'!M153),9))","v":0.99998911000000001},{"$f":"VALUE(FIXED(EXP(N$4*-1*'PM2.5 reduction'!N153),9))","v":0.999942518},{"$f":"VALUE(FIXED(EXP(O$4*-1*'PM2.5 reduction'!O153),9))","v":0.999979917},{"$f":"VALUE(FIXED(EXP(P$4*-1*'PM2.5 reduction'!P153),9))","v":0.99994643900000002},{"$f":"VALUE(FIXED(EXP(Q$4*-1*'PM2.5 reduction'!Q153),9))","v":0.99997542500000003},{"$f":"VALUE(FIXED(EXP(R$4*-1*'PM2.5 reduction'!R153),9))","v":0.99995584599999998},{"$f":"VALUE(FIXED(EXP(S$4*-1*'PM2.5 reduction'!S153),9))","v":0.99996168200000002},{"$f":"VALUE(FIXED(EXP(T$4*-1*'PM2.5 reduction'!T153),9))","v":0.99992800000000004},{"$f":"VALUE(FIXED(EXP(U$4*-1*'PM2.5 reduction'!U153),9))","v":0.99999138399999998},{"$f":"VALUE(FIXED(EXP(V$4*-1*'PM2.5 reduction'!V153),9))","v":0.99995979300000004},{"$f":"VALUE(FIXED(EXP(W$4*-1*'PM2.5 reduction'!W153),9))","v":0.99997190400000002},{"$f":"VALUE(FIXED(EXP(X$4*-1*'PM2.5 reduction'!X153),9))","v":0.99997190400000002},{"$f":"VALUE(FIXED(EXP(Y$4*-1*'PM2.5 reduction'!Y153),9))","v":0.99996946600000003},{"$f":"VALUE(FIXED(EXP(Z$4*-1*'PM2.5 reduction'!Z153),9))","v":0.999934188},{"$f":"VALUE(FIXED(EXP(AA$4*-1*'PM2.5 reduction'!AA153),9))","v":0.99995310199999998},{"$f":"VALUE(FIXED(EXP(AB$4*-1*'PM2.5 reduction'!AB153),9))","v":0.99996997499999996},{"$f":"VALUE(FIXED(EXP(AC$4*-1*'PM2.5 reduction'!AC153),9))","v":0.99994852000000001},{"$f":"VALUE(FIXED(EXP(AD$4*-1*'PM2.5 reduction'!AD153),9))","v":0.99999072700000002},{"$f":"VALUE(FIXED(EXP(AE$4*-1*'PM2.5 reduction'!AE153),9))","v":0.999990292},{"$f":"VALUE(FIXED(EXP(AF$4*-1*'PM2.5 reduction'!AF153),9))","v":0.99997001699999999},{"$f":"VALUE(FIXED(EXP(AG$4*-1*'PM2.5 reduction'!AG153),9))","v":0.999990292},{"$f":"VALUE(FIXED(EXP(AH$4*-1*'PM2.5 reduction'!AH153),9))","v":0.99995906400000001},{"$f":"VALUE(FIXED(EXP(AI$4*-1*'PM2.5 reduction'!AI153),9))","v":0.99994820500000003},{"$f":"VALUE(FIXED(EXP(AJ$4*-1*'PM2.5 reduction'!AJ153),9))","v":0.99997005400000005},{"$f":"VALUE(FIXED(EXP(AK$4*-1*'PM2.5 reduction'!AK153),9))","v":0.99997993699999999},{"$f":"VALUE(FIXED(EXP(AL$4*-1*'PM2.5 reduction'!AL153),9))","v":0.99998426299999998},{"$f":"VALUE(FIXED(EXP(AM$4*-1*'PM2.5 reduction'!AM153),9))","v":0.99995655000000006},{"$f":"VALUE(FIXED(EXP(AN$4*-1*'PM2.5 reduction'!AN153),9))","v":0.99998958500000001},{"$f":"VALUE(FIXED(EXP(AO$4*-1*'PM2.5 reduction'!AO153),9))","v":0.99998958500000001},{"$f":"VALUE(FIXED(EXP(AP$4*-1*'PM2.5 reduction'!AP153),9))","v":0.99998324699999996},{"$f":"VALUE(FIXED(EXP(AQ$4*-1*'PM2.5 reduction'!AQ153),9))","v":0.99996246},{"$f":"VALUE(FIXED(EXP(AR$4*-1*'PM2.5 reduction'!AR153),9))","v":0.99996391200000001},{"$f":"VALUE(FIXED(EXP(AS$4*-1*'PM2.5 reduction'!AS153),9))","v":0.99999106500000001},{"$f":"VALUE(FIXED(EXP(AT$4*-1*'PM2.5 reduction'!AT153),9))","v":1},{"$f":"VALUE(FIXED(EXP(AU$4*-1*'PM2.5 reduction'!AU153),9))","v":1},{"$f":"VALUE(FIXED(EXP(AV$4*-1*'PM2.5 reduction'!AV153),9))","v":0.99997285000000002},{"$f":"VALUE(FIXED(EXP(AW$4*-1*'PM2.5 reduction'!AW153),9))","v":0.99996075399999995},{"$f":"VALUE(FIXED(EXP(AX$4*-1*'PM2.5 reduction'!AX153),9))","v":0.99998519500000005},{"$f":"VALUE(FIXED(EXP(AY$4*-1*'PM2.5 reduction'!AY153),9))","v":0.999970531},{"$f":"VALUE(FIXED(EXP(AZ$4*-1*'PM2.5 reduction'!AZ153),9))","v":0.99996940899999998},{"$f":"VALUE(FIXED(EXP(BA$4*-1*'PM2.5 reduction'!BA153),9))","v":0.99996202300000003},{"$f":"VALUE(FIXED(EXP(BB$4*-1*'PM2.5 reduction'!BB153),9))","v":0.99996969000000002},{"$f":"VALUE(FIXED(EXP(BC$4*-1*'PM2.5 reduction'!BC153),9))","v":0.99999138399999998}]
[null,"Female 90+",{"$f":"VALUE(FIXED(EXP(C$4*-1*'PM2.5 reduction'!C154),9))","v":0.99994321100000005},{"$f":"VALUE(FIXED(EXP(D$4*-1*'PM2.5 reduction'!D154),9))","v":0.99996495900000004},{"$f":"VALUE(FIXED(EXP(E$4*-1*'PM2.5 reduction'!E154),9))","v":0.99998568799999998},{"$f":"VALUE(FIXED(EXP(F$4*-1*'PM2.5 reduction'!F154),9))","v":0.99998316799999998},{"$f":"VALUE(FIXED(EXP(G$4*-1*'PM2.5 reduction'!G154),9))","v":0.99999446700000005},{"$f":"VALUE(FIXED(EXP(H$4*-1*'PM2.5 reduction'!H154),9))","v":0.99997949399999997},{"$f":"VALUE(FIXED(EXP(I$4*-1*'PM2.5 reduction'!I154),9))","v":0.99999077999999997},{"$f":"VALUE(FIXED(EXP(J$4*-1*'PM2.5 reduction'!J154),9))","v":0.99998731900000004},{"$f":"VALUE(FIXED(EXP(K$4*-1*'PM2.5 reduction'!K154),9))","v":0.99998153599999995},{"$f":"VALUE(FIXED(EXP(L$4*-1*'PM2.5 reduction'!L154),9))","v":0.99998846200000002},{"$f":"VALUE(FIXED(EXP(M$4*-1*'PM2.5 reduction'!M154),9))","v":0.99998846200000002},{"$f":"VALUE(FIXED(EXP(N$4*-1*'PM2.5 reduction'!N154),9))","v":0.999943358},{"$f":"VALUE(FIXED(EXP(O$4*-1*'PM2.5 reduction'!O154),9))","v":0.99998039299999997},{"$f":"VALUE(FIXED(EXP(P$4*-1*'PM2.5 reduction'!P154),9))","v":0.99994331199999997},{"$f":"VALUE(FIXED(EXP(Q$4*-1*'PM2.5 reduction'!Q154),9))","v":0.99997643400000003},{"$f":"VALUE(FIXED(EXP(R$4*-1*'PM2.5 reduction'!R154),9))","v":0.99995199099999998},{"$f":"VALUE(FIXED(EXP(S$4*-1*'PM2.5 reduction'!S154),9))","v":0.99995863799999996},{"$f":"VALUE(FIXED(EXP(T$4*-1*'PM2.5 reduction'!T154),9))","v":0.99992643699999995},{"$f":"VALUE(FIXED(EXP(U$4*-1*'PM2.5 reduction'!U154),9))","v":0.99999116799999999},{"$f":"VALUE(FIXED(EXP(V$4*-1*'PM2.5 reduction'!V154),9))","v":0.99995914200000002},{"$f":"VALUE(FIXED(EXP(W$4*-1*'PM2.5 reduction'!W154),9))","v":0.99996969599999996},{"$f":"VALUE(FIXED(EXP(X$4*-1*'PM2.5 reduction'!X154),9))","v":0.99996969599999996},{"$f":"VALUE(FIXED(EXP(Y$4*-1*'PM2.5 reduction'!Y154),9))","v":0.99997493100000001},{"$f":"VALUE(FIXED(EXP(Z$4*-1*'PM2.5 reduction'!Z154),9))","v":0.99993450699999997},{"$f":"VALUE(FIXED(EXP(AA$4*-1*'PM2.5 reduction'!AA154),9))","v":0.99995399699999998},{"$f":"VALUE(FIXED(EXP(AB$4*-1*'PM2.5 reduction'!AB154),9))","v":0.999968156},{"$f":"VALUE(FIXED(EXP(AC$4*-1*'PM2.5 reduction'!AC154),9))","v":0.999949588},{"$f":"VALUE(FIXED(EXP(AD$4*-1*'PM2.5 reduction'!AD154),9))","v":0.99999046199999997},{"$f":"VALUE(FIXED(EXP(AE$4*-1*'PM2.5 reduction'!AE154),9))","v":0.99998956299999997},{"$f":"VALUE(FIXED(EXP(AF$4*-1*'PM2.5 reduction'!AF154),9))","v":0.99996962199999995},{"$f":"VALUE(FIXED(EXP(AG$4*-1*'PM2.5 reduction'!AG154),9))","v":0.99998956299999997},{"$f":"VALUE(FIXED(EXP(AH$4*-1*'PM2.5 reduction'!AH154),9))","v":0.99996183599999999},{"$f":"VALUE(FIXED(EXP(AI$4*-1*'PM2.5 reduction'!AI154),9))","v":0.99994771800000004},{"$f":"VALUE(FIXED(EXP(AJ$4*-1*'PM2.5 reduction'!AJ154),9))","v":0.99996865499999998},{"$f":"VALUE(FIXED(EXP(AK$4*-1*'PM2.5 reduction'!AK154),9))","v":0.99997684399999998},{"$f":"VALUE(FIXED(EXP(AL$4*-1*'PM2.5 reduction'!AL154),9))","v":0.99998390400000003},{"$f":"VALUE(FIXED(EXP(AM$4*-1*'PM2.5 reduction'!AM154),9))","v":0.999959449},{"$f":"VALUE(FIXED(EXP(AN$4*-1*'PM2.5 reduction'!AN154),9))","v":0.99998917300000001},{"$f":"VALUE(FIXED(EXP(AO$4*-1*'PM2.5 reduction'!AO154),9))","v":0.99998917300000001},{"$f":"VALUE(FIXED(EXP(AP$4*-1*'PM2.5 reduction'!AP154),9))","v":0.99998510299999999},{"$f":"VALUE(FIXED(EXP(AQ$4*-1*'PM2.5 reduction'!AQ154),9))","v":0.99996421400000002},{"$f":"VALUE(FIXED(EXP(AR$4*-1*'PM2.5 reduction'!AR154),9))","v":0.99996347699999999},{"$f":"VALUE(FIXED(EXP(AS$4*-1*'PM2.5 reduction'!AS154),9))","v":0.99999077999999997},{"$f":"VALUE(FIXED(EXP(AT$4*-1*'PM2.5 reduction'!AT154),9))","v":1},{"$f":"VALUE(FIXED(EXP(AU$4*-1*'PM2.5 reduction'!AU154),9))","v":1},{"$f":"VALUE(FIXED(EXP(AV$4*-1*'PM2.5 reduction'!AV154),9))","v":0.99997144100000002},{"$f":"VALUE(FIXED(EXP(AW$4*-1*'PM2.5 reduction'!AW154),9))","v":0.99996304899999999},{"$f":"VALUE(FIXED(EXP(AX$4*-1*'PM2.5 reduction'!AX154),9))","v":0.999988765},{"$f":"VALUE(FIXED(EXP(AY$4*-1*'PM2.5 reduction'!AY154),9))","v":0.99997014900000003},{"$f":"VALUE(FIXED(EXP(AZ$4*-1*'PM2.5 reduction'!AZ154),9))","v":0.99997045799999995},{"$f":"VALUE(FIXED(EXP(BA$4*-1*'PM2.5 reduction'!BA154),9))","v":0.99996750300000004},{"$f":"VALUE(FIXED(EXP(BB$4*-1*'PM2.5 reduction'!BB154),9))","v":0.99996926399999997},{"$f":"VALUE(FIXED(EXP(BC$4*-1*'PM2.5 reduction'!BC154),9))","v":0.99999116799999999}]
[null,"Male 0-4",{"$f":"VALUE(FIXED(EXP(C$4*-1*'PM2.5 reduction'!C155),9))","v":0.999931142},{"$f":"VALUE(FIXED(EXP(D$4*-1*'PM2.5 reduction'!D155),9))","v":0.999958287},{"$f":"VALUE(FIXED(EXP(E$4*-1*'PM2.5 reduction'!E155),9))","v":0.99998807700000003},{"$f":"VALUE(FIXED(EXP(F$4*-1*'PM2.5 reduction'!F155),9))","v":0.99998564400000001},{"$f":"VALUE(FIXED(EXP(G$4*-1*'PM2.5 reduction'!G155),9))","v":0.99999317099999996},{"$f":"VALUE(FIXED(EXP(H$4*-1*'PM2.5 reduction'!H155),9))","v":0.99997950400000002},{"$f":"VALUE(FIXED(EXP(I$4*-1*'PM2.5 reduction'!I155),9))","v":0.99999054200000004},{"$f":"VALUE(FIXED(EXP(J$4*-1*'PM2.5 reduction'!J155),9))","v":0.999982547},{"$f":"VALUE(FIXED(EXP(K$4*-1*'PM2.5 reduction'!K155),9))","v":0.99998160199999997},{"$f":"VALUE(FIXED(EXP(L$4*-1*'PM2.5 reduction'!L155),9))","v":0.99998821500000001},{"$f":"VALUE(FIXED(EXP(M$4*-1*'PM2.5 reduction'!M155),9))","v":0.99998821500000001},{"$f":"VALUE(FIXED(EXP(N$4*-1*'PM2.5 reduction'!N155),9))","v":0.99994134199999996},{"$f":"VALUE(FIXED(EXP(O$4*-1*'PM2.5 reduction'!O155),9))","v":0.99997939999999996},{"$f":"VALUE(FIXED(EXP(P$4*-1*'PM2.5 reduction'!P155),9))","v":0.99995481200000003},{"$f":"VALUE(FIXED(EXP(Q$4*-1*'PM2.5 reduction'!Q155),9))","v":0.99997320599999995},{"$f":"VALUE(FIXED(EXP(R$4*-1*'PM2.5 reduction'!R155),9))","v":0.99995778199999996},{"$f":"VALUE(FIXED(EXP(S$4*-1*'PM2.5 reduction'!S155),9))","v":0.99995653200000001},{"$f":"VALUE(FIXED(EXP(T$4*-1*'PM2.5 reduction'!T155),9))","v":0.99992480800000005},{"$f":"VALUE(FIXED(EXP(U$4*-1*'PM2.5 reduction'!U155),9))","v":0.999991564},{"$f":"VALUE(FIXED(EXP(V$4*-1*'PM2.5 reduction'!V155),9))","v":0.99996437299999996},{"$f":"VALUE(FIXED(EXP(W$4*-1*'PM2.5 reduction'!W155),9))","v":0.99997082599999998},{"$f":"VALUE(FIXED(EXP(X$4*-1*'PM2.5 reduction'!X155),9))","v":0.99997082599999998},{"$f":"VALUE(FIXED(EXP(Y$4*-1*'PM2.5 reduction'!Y155),9))","v":0.99997089299999997},{"$f":"VALUE(FIXED(EXP(Z$4*-1*'PM2.5 reduction'!Z155),9))","v":0.99992807399999994},{"$f":"VALUE(FIXED(EXP(AA$4*-1*'PM2.5 reduction'!AA155),9))","v":0.99995046799999998},{"$f":"VALUE(FIXED(EXP(AB$4*-1*'PM2.5 reduction'!AB155),9))","v":0.99996405300000002},{"$f":"VALUE(FIXED(EXP(AC$4*-1*'PM2.5 reduction'!AC155),9))","v":0.99994323500000004},{"$f":"VALUE(FIXED(EXP(AD$4*-1*'PM2.5 reduction'!AD155),9))","v":0.99999061},{"$f":"VALUE(FIXED(EXP(AE$4*-1*'PM2.5 reduction'!AE155),9))","v":0.999989982},{"$f":"VALUE(FIXED(EXP(AF$4*-1*'PM2.5 reduction'!AF155),9))","v":0.99997245499999998},{"$f":"VALUE(FIXED(EXP(AG$4*-1*'PM2.5 reduction'!AG155),9))","v":0.999989982},{"$f":"VALUE(FIXED(EXP(AH$4*-1*'PM2.5 reduction'!AH155),9))","v":0.99995950099999997},{"$f":"VALUE(FIXED(EXP(AI$4*-1*'PM2.5 reduction'!AI155),9))","v":0.99994462100000003},{"$f":"VALUE(FIXED(EXP(AJ$4*-1*'PM2.5 reduction'!AJ155),9))","v":0.99997178600000003},{"$f":"VALUE(FIXED(EXP(AK$4*-1*'PM2.5 reduction'!AK155),9))","v":0.99998462499999996},{"$f":"VALUE(FIXED(EXP(AL$4*-1*'PM2.5 reduction'!AL155),9))","v":0.99998453899999995},{"$f":"VALUE(FIXED(EXP(AM$4*-1*'PM2.5 reduction'!AM155),9))","v":0.99995743299999995},{"$f":"VALUE(FIXED(EXP(AN$4*-1*'PM2.5 reduction'!AN155),9))","v":0.99998791499999995},{"$f":"VALUE(FIXED(EXP(AO$4*-1*'PM2.5 reduction'!AO155),9))","v":0.99998791499999995},{"$f":"VALUE(FIXED(EXP(AP$4*-1*'PM2.5 reduction'!AP155),9))","v":0.99998063000000004},{"$f":"VALUE(FIXED(EXP(AQ$4*-1*'PM2.5 reduction'!AQ155),9))","v":0.99996310499999996},{"$f":"VALUE(FIXED(EXP(AR$4*-1*'PM2.5 reduction'!AR155),9))","v":0.99996051200000002},{"$f":"VALUE(FIXED(EXP(AS$4*-1*'PM2.5 reduction'!AS155),9))","v":0.99999054200000004},{"$f":"VALUE(FIXED(EXP(AT$4*-1*'PM2.5 reduction'!AT155),9))","v":1},{"$f":"VALUE(FIXED(EXP(AU$4*-1*'PM2.5 reduction'!AU155),9))","v":1},{"$f":"VALUE(FIXED(EXP(AV$4*-1*'PM2.5 reduction'!AV155),9))","v":0.99997523799999999},{"$f":"VALUE(FIXED(EXP(AW$4*-1*'PM2.5 reduction'!AW155),9))","v":0.99996196299999995},{"$f":"VALUE(FIXED(EXP(AX$4*-1*'PM2.5 reduction'!AX155),9))","v":0.99998342100000004},{"$f":"VALUE(FIXED(EXP(AY$4*-1*'PM2.5 reduction'!AY155),9))","v":0.99997056500000003},{"$f":"VALUE(FIXED(EXP(AZ$4*-1*'PM2.5 reduction'!AZ155),9))","v":0.999970303},{"$f":"VALUE(FIXED(EXP(BA$4*-1*'PM2.5 reduction'!BA155),9))","v":0.99996426199999999},{"$f":"VALUE(FIXED(EXP(BB$4*-1*'PM2.5 reduction'!BB155),9))","v":0.99996838300000002},{"$f":"VALUE(FIXED(EXP(BC$4*-1*'PM2.5 reduction'!BC155),9))","v":0.999991564}]
[null,"Male 5-9",{"$f":"VALUE(FIXED(EXP(C$4*-1*'PM2.5 reduction'!C156),9))","v":0.99993481900000003},{"$f":"VALUE(FIXED(EXP(D$4*-1*'PM2.5 reduction'!D156),9))","v":0.99996297300000003},{"$f":"VALUE(FIXED(EXP(E$4*-1*'PM2.5 reduction'!E156),9))","v":0.99998943100000004},{"$f":"VALUE(FIXED(EXP(F$4*-1*'PM2.5 reduction'!F156),9))","v":0.99998571800000002},{"$f":"VALUE(FIXED(EXP(G$4*-1*'PM2.5 reduction'!G156),9))","v":0.99999413199999998},{"$f":"VALUE(FIXED(EXP(H$4*-1*'PM2.5 reduction'!H156),9))","v":0.99998010199999998},{"$f":"VALUE(FIXED(EXP(I$4*-1*'PM2.5 reduction'!I156),9))","v":0.99999099400000002},{"$f":"VALUE(FIXED(EXP(J$4*-1*'PM2.5 reduction'!J156),9))","v":0.99998143900000003},{"$f":"VALUE(FIXED(EXP(K$4*-1*'PM2.5 reduction'!K156),9))","v":0.99997968599999998},{"$f":"VALUE(FIXED(EXP(L$4*-1*'PM2.5 reduction'!L156),9))","v":0.99998790699999995},{"$f":"VALUE(FIXED(EXP(M$4*-1*'PM2.5 reduction'!M156),9))","v":0.99998790699999995},{"$f":"VALUE(FIXED(EXP(N$4*-1*'PM2.5 reduction'!N156),9))","v":0.99994369000000005},{"$f":"VALUE(FIXED(EXP(O$4*-1*'PM2.5 reduction'!O156),9))","v":0.99998317800000003},{"$f":"VALUE(FIXED(EXP(P$4*-1*'PM2.5 reduction'!P156),9))","v":0.99995285300000003},{"$f":"VALUE(FIXED(EXP(Q$4*-1*'PM2.5 reduction'!Q156),9))","v":0.99997643199999997},{"$f":"VALUE(FIXED(EXP(R$4*-1*'PM2.5 reduction'!R156),9))","v":0.99995885600000001},{"$f":"VALUE(FIXED(EXP(S$4*-1*'PM2.5 reduction'!S156),9))","v":0.99996075799999995},{"$f":"VALUE(FIXED(EXP(T$4*-1*'PM2.5 reduction'!T156),9))","v":0.99992897800000002},{"$f":"VALUE(FIXED(EXP(U$4*-1*'PM2.5 reduction'!U156),9))","v":0.99999138600000004},{"$f":"VALUE(FIXED(EXP(V$4*-1*'PM2.5 reduction'!V156),9))","v":0.99996270099999995},{"$f":"VALUE(FIXED(EXP(W$4*-1*'PM2.5 reduction'!W156),9))","v":0.99997132200000005},{"$f":"VALUE(FIXED(EXP(X$4*-1*'PM2.5 reduction'!X156),9))","v":0.99997132200000005},{"$f":"VALUE(FIXED(EXP(Y$4*-1*'PM2.5 reduction'!Y156),9))","v":0.99996864799999996},{"$f":"VALUE(FIXED(EXP(Z$4*-1*'PM2.5 reduction'!Z156),9))","v":0.99993293400000005},{"$f":"VALUE(FIXED(EXP(AA$4*-1*'PM2.5 reduction'!AA156),9))","v":0.99995293900000004},{"$f":"VALUE(FIXED(EXP(AB$4*-1*'PM2.5 reduction'!AB156),9))","v":0.999967991},{"$f":"VALUE(FIXED(EXP(AC$4*-1*'PM2.5 reduction'!AC156),9))","v":0.99994791699999996},{"$f":"VALUE(FIXED(EXP(AD$4*-1*'PM2.5 reduction'!AD156),9))","v":0.99999069900000004},{"$f":"VALUE(FIXED(EXP(AE$4*-1*'PM2.5 reduction'!AE156),9))","v":0.99998994600000002},{"$f":"VALUE(FIXED(EXP(AF$4*-1*'PM2.5 reduction'!AF156),9))","v":0.99997220899999995},{"$f":"VALUE(FIXED(EXP(AG$4*-1*'PM2.5 reduction'!AG156),9))","v":0.99998994600000002},{"$f":"VALUE(FIXED(EXP(AH$4*-1*'PM2.5 reduction'!AH156),9))","v":0.99995931299999996},{"$f":"VALUE(FIXED(EXP(AI$4*-1*'PM2.5 reduction'!AI156),9))","v":0.99995073400000001},{"$f":"VALUE(FIXED(EXP(AJ$4*-1*'PM2.5 reduction'!AJ156),9))","v":0.99997001500000005},{"$f":"VALUE(FIXED(EXP(AK$4*-1*'PM2.5 reduction'!AK156),9))","v":0.99998477500000005},{"$f":"VALUE(FIXED(EXP(AL$4*-1*'PM2.5 reduction'!AL156),9))","v":0.99998361499999999},{"$f":"VALUE(FIXED(EXP(AM$4*-1*'PM2.5 reduction'!AM156),9))","v":0.99995728100000003},{"$f":"VALUE(FIXED(EXP(AN$4*-1*'PM2.5 reduction'!AN156),9))","v":0.99998849000000001},{"$f":"VALUE(FIXED(EXP(AO$4*-1*'PM2.5 reduction'!AO156),9))","v":0.99998849000000001},{"$f":"VALUE(FIXED(EXP(AP$4*-1*'PM2.5 reduction'!AP156),9))","v":0.99998221799999998},{"$f":"VALUE(FIXED(EXP(AQ$4*-1*'PM2.5 reduction'!AQ156),9))","v":0.999963508},{"$f":"VALUE(FIXED(EXP(AR$4*-1*'PM2.5 reduction'!AR156),9))","v":0.999963139},{"$f":"VALUE(FIXED(EXP(AS$4*-1*'PM2.5 reduction'!AS156),9))","v":0.99999099400000002},{"$f":"VALUE(FIXED(EXP(AT$4*-1*'PM2.5 reduction'!AT156),9))","v":1},{"$f":"VALUE(FIXED(EXP(AU$4*-1*'PM2.5 reduction'!AU156),9))","v":1},{"$f":"VALUE(FIXED(EXP(AV$4*-1*'PM2.5 reduction'!AV156),9))","v":0.99997345000000004},{"$f":"VALUE(FIXED(EXP(AW$4*-1*'PM2.5 reduction'!AW156),9))","v":0.99996185999999998},{"$f":"VALUE(FIXED(EXP(AX$4*-1*'PM2.5 reduction'!AX156),9))","v":0.99998282800000005},{"$f":"VALUE(FIXED(EXP(AY$4*-1*'PM2.5 reduction'!AY156),9))","v":0.999971838},{"$f":"VALUE(FIXED(EXP(AZ$4*-1*'PM2.5 reduction'!AZ156),9))","v":0.99997241400000003},{"$f":"VALUE(FIXED(EXP(BA$4*-1*'PM2.5 reduction'!BA156),9))","v":0.99996266},{"$f":"VALUE(FIXED(EXP(BB$4*-1*'PM2.5 reduction'!BB156),9))","v":0.99996716900000004},{"$f":"VALUE(FIXED(EXP(BC$4*-1*'PM2.5 reduction'!BC156),9))","v":0.99999138600000004}]
[null,"Male 10-15",{"$f":"VALUE(FIXED(EXP(C$4*-1*'PM2.5 reduction'!C157),9))","v":0.99993912100000004},{"$f":"VALUE(FIXED(EXP(D$4*-1*'PM2.5 reduction'!D157),9))","v":0.99996800699999999},{"$f":"VALUE(FIXED(EXP(E$4*-1*'PM2.5 reduction'!E157),9))","v":0.99998861299999997},{"$f":"VALUE(FIXED(EXP(F$4*-1*'PM2.5 reduction'!F157),9))","v":0.99998516800000004},{"$f":"VALUE(FIXED(EXP(G$4*-1*'PM2.5 reduction'!G157),9))","v":0.999993417},{"$f":"VALUE(FIXED(EXP(H$4*-1*'PM2.5 reduction'!H157),9))","v":0.99997950000000002},{"$f":"VALUE(FIXED(EXP(I$4*-1*'PM2.5 reduction'!I157),9))","v":0.99999075800000004},{"$f":"VALUE(FIXED(EXP(J$4*-1*'PM2.5 reduction'!J157),9))","v":0.99998201399999997},{"$f":"VALUE(FIXED(EXP(K$4*-1*'PM2.5 reduction'!K157),9))","v":0.99998055299999999},{"$f":"VALUE(FIXED(EXP(L$4*-1*'PM2.5 reduction'!L157),9))","v":0.99998764699999998},{"$f":"VALUE(FIXED(EXP(M$4*-1*'PM2.5 reduction'!M157),9))","v":0.99998764699999998},{"$f":"VALUE(FIXED(EXP(N$4*-1*'PM2.5 reduction'!N157),9))","v":0.99994350399999998},{"$f":"VALUE(FIXED(EXP(O$4*-1*'PM2.5 reduction'!O157),9))","v":0.99998120700000004},{"$f":"VALUE(FIXED(EXP(P$4*-1*'PM2.5 reduction'!P157),9))","v":0.99995448899999995},{"$f":"VALUE(FIXED(EXP(Q$4*-1*'PM2.5 reduction'!Q157),9))","v":0.999975489},{"$f":"VALUE(FIXED(EXP(R$4*-1*'PM2.5 reduction'!R157),9))","v":0.999957863},{"$f":"VALUE(FIXED(EXP(S$4*-1*'PM2.5 reduction'!S157),9))","v":0.99996331999999999},{"$f":"VALUE(FIXED(EXP(T$4*-1*'PM2.5 reduction'!T157),9))","v":0.99993010400000004},{"$f":"VALUE(FIXED(EXP(U$4*-1*'PM2.5 reduction'!U157),9))","v":0.99999144399999995},{"$f":"VALUE(FIXED(EXP(V$4*-1*'PM2.5 reduction'!V157),9))","v":0.99996482600000003},{"$f":"VALUE(FIXED(EXP(W$4*-1*'PM2.5 reduction'!W157),9))","v":0.99997171600000001},{"$f":"VALUE(FIXED(EXP(X$4*-1*'PM2.5 reduction'!X157),9))","v":0.99997171600000001},{"$f":"VALUE(FIXED(EXP(Y$4*-1*'PM2.5 reduction'!Y157),9))","v":0.99997086999999996},{"$f":"VALUE(FIXED(EXP(Z$4*-1*'PM2.5 reduction'!Z157),9))","v":0.999934302},{"$f":"VALUE(FIXED(EXP(AA$4*-1*'PM2.5 reduction'!AA157),9))","v":0.99995410699999998},{"$f":"VALUE(FIXED(EXP(AB$4*-1*'PM2.5 reduction'!AB157),9))","v":0.99997238700000002},{"$f":"VALUE(FIXED(EXP(AC$4*-1*'PM2.5 reduction'!AC157),9))","v":0.99994924399999996},{"$f":"VALUE(FIXED(EXP(AD$4*-1*'PM2.5 reduction'!AD157),9))","v":0.99999019099999997},{"$f":"VALUE(FIXED(EXP(AE$4*-1*'PM2.5 reduction'!AE157),9))","v":0.99998934799999994},{"$f":"VALUE(FIXED(EXP(AF$4*-1*'PM2.5 reduction'!AF157),9))","v":0.99997266500000004},{"$f":"VALUE(FIXED(EXP(AG$4*-1*'PM2.5 reduction'!AG157),9))","v":0.99998934799999994},{"$f":"VALUE(FIXED(EXP(AH$4*-1*'PM2.5 reduction'!AH157),9))","v":0.99996013800000005},{"$f":"VALUE(FIXED(EXP(AI$4*-1*'PM2.5 reduction'!AI157),9))","v":0.99995252999999995},{"$f":"VALUE(FIXED(EXP(AJ$4*-1*'PM2.5 reduction'!AJ157),9))","v":0.99997087500000004},{"$f":"VALUE(FIXED(EXP(AK$4*-1*'PM2.5 reduction'!AK157),9))","v":0.99998507700000006},{"$f":"VALUE(FIXED(EXP(AL$4*-1*'PM2.5 reduction'!AL157),9))","v":0.99998404299999999},{"$f":"VALUE(FIXED(EXP(AM$4*-1*'PM2.5 reduction'!AM157),9))","v":0.99995785999999998},{"$f":"VALUE(FIXED(EXP(AN$4*-1*'PM2.5 reduction'!AN157),9))","v":0.99998775299999998},{"$f":"VALUE(FIXED(EXP(AO$4*-1*'PM2.5 reduction'!AO157),9))","v":0.99998775299999998},{"$f":"VALUE(FIXED(EXP(AP$4*-1*'PM2.5 reduction'!AP157),9))","v":0.99998425999999996},{"$f":"VALUE(FIXED(EXP(AQ$4*-1*'PM2.5 reduction'!AQ157),9))","v":0.99996466900000003},{"$f":"VALUE(FIXED(EXP(AR$4*-1*'PM2.5 reduction'!AR157),9))","v":0.99996469399999999},{"$f":"VALUE(FIXED(EXP(AS$4*-1*'PM2.5 reduction'!AS157),9))","v":0.99999075800000004},{"$f":"VALUE(FIXED(EXP(AT$4*-1*'PM2.5 reduction'!AT157),9))","v":1},{"$f":"VALUE(FIXED(EXP(AU$4*-1*'PM2.5 reduction'!AU157),9))","v":1},{"$f":"VALUE(FIXED(EXP(AV$4*-1*'PM2.5 reduction'!AV157),9))","v":0.99997344600000004},{"$f":"VALUE(FIXED(EXP(AW$4*-1*'PM2.5 reduction'!AW157),9))","v":0.99996313699999995},{"$f":"VALUE(FIXED(EXP(AX$4*-1*'PM2.5 reduction'!AX157),9))","v":0.99998315900000001},{"$f":"VALUE(FIXED(EXP(AY$4*-1*'PM2.5 reduction'!AY157),9))","v":0.99997244799999996},{"$f":"VALUE(FIXED(EXP(AZ$4*-1*'PM2.5 reduction'!AZ157),9))","v":0.99997325599999998},{"$f":"VALUE(FIXED(EXP(BA$4*-1*'PM2.5 reduction'!BA157),9))","v":0.999963618},{"$f":"VALUE(FIXED(EXP(BB$4*-1*'PM2.5 reduction'!BB157),9))","v":0.99996799800000002},{"$f":"VALUE(FIXED(EXP(BC$4*-1*'PM2.5 reduction'!BC157),9))","v":0.99999144399999995}]
[null,"Male 16-19",{"$f":"VALUE(FIXED(EXP(C$4*-1*'PM2.5 reduction'!C158),9))","v":0.99993112500000003},{"$f":"VALUE(FIXED(EXP(D$4*-1*'PM2.5 reduction'!D158),9))","v":0.99995861600000002},{"$f":"VALUE(FIXED(EXP(E$4*-1*'PM2.5 reduction'!E158),9))","v":0.99998858499999999},{"$f":"VALUE(FIXED(EXP(F$4*-1*'PM2.5 reduction'!F158),9))","v":0.99998544599999994},{"$f":"VALUE(FIXED(EXP(G$4*-1*'PM2.5 reduction'!G158),9))","v":0.99999406099999999},{"$f":"VALUE(FIXED(EXP(H$4*-1*'PM2.5 reduction'!H158),9))","v":0.99997840999999998},{"$f":"VALUE(FIXED(EXP(I$4*-1*'PM2.5 reduction'!I158),9))","v":0.99999051000000005},{"$f":"VALUE(FIXED(EXP(J$4*-1*'PM2.5 reduction'!J158),9))","v":0.99997908700000004},{"$f":"VALUE(FIXED(EXP(K$4*-1*'PM2.5 reduction'!K158),9))","v":0.99997851999999998},{"$f":"VALUE(FIXED(EXP(L$4*-1*'PM2.5 reduction'!L158),9))","v":0.99998753600000001},{"$f":"VALUE(FIXED(EXP(M$4*-1*'PM2.5 reduction'!M158),9))","v":0.99998753600000001},{"$f":"VALUE(FIXED(EXP(N$4*-1*'PM2.5 reduction'!N158),9))","v":0.99993619899999997},{"$f":"VALUE(FIXED(EXP(O$4*-1*'PM2.5 reduction'!O158),9))","v":0.99997871599999999},{"$f":"VALUE(FIXED(EXP(P$4*-1*'PM2.5 reduction'!P158),9))","v":0.99995343999999997},{"$f":"VALUE(FIXED(EXP(Q$4*-1*'PM2.5 reduction'!Q158),9))","v":0.99997502000000005},{"$f":"VALUE(FIXED(EXP(R$4*-1*'PM2.5 reduction'!R158),9))","v":0.99995655999999999},{"$f":"VALUE(FIXED(EXP(S$4*-1*'PM2.5 reduction'!S158),9))","v":0.99995112900000005},{"$f":"VALUE(FIXED(EXP(T$4*-1*'PM2.5 reduction'!T158),9))","v":0.99990371099999997},{"$f":"VALUE(FIXED(EXP(U$4*-1*'PM2.5 reduction'!U158),9))","v":0.99999145499999997},{"$f":"VALUE(FIXED(EXP(V$4*-1*'PM2.5 reduction'!V158),9))","v":0.999963343},{"$f":"VALUE(FIXED(EXP(W$4*-1*'PM2.5 reduction'!W158),9))","v":0.99997153599999999},{"$f":"VALUE(FIXED(EXP(X$4*-1*'PM2.5 reduction'!X158),9))","v":0.99997153599999999},{"$f":"VALUE(FIXED(EXP(Y$4*-1*'PM2.5 reduction'!Y158),9))","v":0.9999692},{"$f":"VALUE(FIXED(EXP(Z$4*-1*'PM2.5 reduction'!Z158),9))","v":0.99990345599999997},{"$f":"VALUE(FIXED(EXP(AA$4*-1*'PM2.5 reduction'!AA158),9))","v":0.99993977199999995},{"$f":"VALUE(FIXED(EXP(AB$4*-1*'PM2.5 reduction'!AB158),9))","v":0.99996395100000002},{"$f":"VALUE(FIXED(EXP(AC$4*-1*'PM2.5 reduction'!AC158),9))","v":0.99992673700000001},{"$f":"VALUE(FIXED(EXP(AD$4*-1*'PM2.5 reduction'!AD158),9))","v":0.99999073400000005},{"$f":"VALUE(FIXED(EXP(AE$4*-1*'PM2.5 reduction'!AE158),9))","v":0.99998988700000002},{"$f":"VALUE(FIXED(EXP(AF$4*-1*'PM2.5 reduction'!AF158),9))","v":0.999972321},{"$f":"VALUE(FIXED(EXP(AG$4*-1*'PM2.5 reduction'!AG158),9))","v":0.99998988700000002},{"$f":"VALUE(FIXED(EXP(AH$4*-1*'PM2.5 reduction'!AH158),9))","v":0.99995955800000003},{"$f":"VALUE(FIXED(EXP(AI$4*-1*'PM2.5 reduction'!AI158),9))","v":0.99993520899999999},{"$f":"VALUE(FIXED(EXP(AJ$4*-1*'PM2.5 reduction'!AJ158),9))","v":0.99997069500000002},{"$f":"VALUE(FIXED(EXP(AK$4*-1*'PM2.5 reduction'!AK158),9))","v":0.99998474599999998},{"$f":"VALUE(FIXED(EXP(AL$4*-1*'PM2.5 reduction'!AL158),9))","v":0.99998484499999996},{"$f":"VALUE(FIXED(EXP(AM$4*-1*'PM2.5 reduction'!AM158),9))","v":0.99995779699999998},{"$f":"VALUE(FIXED(EXP(AN$4*-1*'PM2.5 reduction'!AN158),9))","v":0.99998842300000002},{"$f":"VALUE(FIXED(EXP(AO$4*-1*'PM2.5 reduction'!AO158),9))","v":0.99998842300000002},{"$f":"VALUE(FIXED(EXP(AP$4*-1*'PM2.5 reduction'!AP158),9))","v":0.99998371100000005},{"$f":"VALUE(FIXED(EXP(AQ$4*-1*'PM2.5 reduction'!AQ158),9))","v":0.99996373000000005},{"$f":"VALUE(FIXED(EXP(AR$4*-1*'PM2.5 reduction'!AR158),9))","v":0.99995424700000002},{"$f":"VALUE(FIXED(EXP(AS$4*-1*'PM2.5 reduction'!AS158),9))","v":0.99999051000000005},{"$f":"VALUE(FIXED(EXP(AT$4*-1*'PM2.5 reduction'!AT158),9))","v":1},{"$f":"VALUE(FIXED(EXP(AU$4*-1*'PM2.5 reduction'!AU158),9))","v":1},{"$f":"VALUE(FIXED(EXP(AV$4*-1*'PM2.5 reduction'!AV158),9))","v":0.99997340499999998},{"$f":"VALUE(FIXED(EXP(AW$4*-1*'PM2.5 reduction'!AW158),9))","v":0.99996178099999999},{"$f":"VALUE(FIXED(EXP(AX$4*-1*'PM2.5 reduction'!AX158),9))","v":0.99997964500000003},{"$f":"VALUE(FIXED(EXP(AY$4*-1*'PM2.5 reduction'!AY158),9))","v":0.99997014799999995},{"$f":"VALUE(FIXED(EXP(AZ$4*-1*'PM2.5 reduction'!AZ158),9))","v":0.999968827},{"$f":"VALUE(FIXED(EXP(BA$4*-1*'PM2.5 reduction'!BA158),9))","v":0.99996242999999996},{"$f":"VALUE(FIXED(EXP(BB$4*-1*'PM2.5 reduction'!BB158),9))","v":0.99996733900000001},{"$f":"VALUE(FIXED(EXP(BC$4*-1*'PM2.5 reduction'!BC158),9))","v":0.99999145499999997}]
[null,"Male 20-24",{"$f":"VALUE(FIXED(EXP(C$4*-1*'PM2.5 reduction'!C159),9))","v":0.99991186899999995},{"$f":"VALUE(FIXED(EXP(D$4*-1*'PM2.5 reduction'!D159),9))","v":0.99993177700000002},{"$f":"VALUE(FIXED(EXP(E$4*-1*'PM2.5 reduction'!E159),9))","v":0.99998870799999995},{"$f":"VALUE(FIXED(EXP(F$4*-1*'PM2.5 reduction'!F159),9))","v":0.99998529899999999},{"$f":"VALUE(FIXED(EXP(G$4*-1*'PM2.5 reduction'!G159),9))","v":0.999992989},{"$f":"VALUE(FIXED(EXP(H$4*-1*'PM2.5 reduction'!H159),9))","v":0.99997955500000002},{"$f":"VALUE(FIXED(EXP(I$4*-1*'PM2.5 reduction'!I159),9))","v":0.99999076399999998},{"$f":"VALUE(FIXED(EXP(J$4*-1*'PM2.5 reduction'!J159),9))","v":0.99997181899999998},{"$f":"VALUE(FIXED(EXP(K$4*-1*'PM2.5 reduction'!K159),9))","v":0.99998101500000003},{"$f":"VALUE(FIXED(EXP(L$4*-1*'PM2.5 reduction'!L159),9))","v":0.999987344},{"$f":"VALUE(FIXED(EXP(M$4*-1*'PM2.5 reduction'!M159),9))","v":0.999987344},{"$f":"VALUE(FIXED(EXP(N$4*-1*'PM2.5 reduction'!N159),9))","v":0.999932288},{"$f":"VALUE(FIXED(EXP(O$4*-1*'PM2.5 reduction'!O159),9))","v":0.99998118899999999},{"$f":"VALUE(FIXED(EXP(P$4*-1*'PM2.5 reduction'!P159),9))","v":0.99995244699999997},{"$f":"VALUE(FIXED(EXP(Q$4*-1*'PM2.5 reduction'!Q159),9))","v":0.99997318099999999},{"$f":"VALUE(FIXED(EXP(R$4*-1*'PM2.5 reduction'!R159),9))","v":0.99995793499999996},{"$f":"VALUE(FIXED(EXP(S$4*-1*'PM2.5 reduction'!S159),9))","v":0.99993107699999995},{"$f":"VALUE(FIXED(EXP(T$4*-1*'PM2.5 reduction'!T159),9))","v":0.99988873},{"$f":"VALUE(FIXED(EXP(U$4*-1*'PM2.5 reduction'!U159),9))","v":0.99999162699999999},{"$f":"VALUE(FIXED(EXP(V$4*-1*'PM2.5 reduction'!V159),9))","v":0.99996272500000005},{"$f":"VALUE(FIXED(EXP(W$4*-1*'PM2.5 reduction'!W159),9))","v":0.99997374800000005},{"$f":"VALUE(FIXED(EXP(X$4*-1*'PM2.5 reduction'!X159),9))","v":0.99997374800000005},{"$f":"VALUE(FIXED(EXP(Y$4*-1*'PM2.5 reduction'!Y159),9))","v":0.99996721},{"$f":"VALUE(FIXED(EXP(Z$4*-1*'PM2.5 reduction'!Z159),9))","v":0.99988918299999996},{"$f":"VALUE(FIXED(EXP(AA$4*-1*'PM2.5 reduction'!AA159),9))","v":0.99992467200000001},{"$f":"VALUE(FIXED(EXP(AB$4*-1*'PM2.5 reduction'!AB159),9))","v":0.99993753799999996},{"$f":"VALUE(FIXED(EXP(AC$4*-1*'PM2.5 reduction'!AC159),9))","v":0.99990983600000005},{"$f":"VALUE(FIXED(EXP(AD$4*-1*'PM2.5 reduction'!AD159),9))","v":0.99999015400000002},{"$f":"VALUE(FIXED(EXP(AE$4*-1*'PM2.5 reduction'!AE159),9))","v":0.99998958900000001},{"$f":"VALUE(FIXED(EXP(AF$4*-1*'PM2.5 reduction'!AF159),9))","v":0.99997225300000003},{"$f":"VALUE(FIXED(EXP(AG$4*-1*'PM2.5 reduction'!AG159),9))","v":0.99998958900000001},{"$f":"VALUE(FIXED(EXP(AH$4*-1*'PM2.5 reduction'!AH159),9))","v":0.99995894799999996},{"$f":"VALUE(FIXED(EXP(AI$4*-1*'PM2.5 reduction'!AI159),9))","v":0.99991258000000005},{"$f":"VALUE(FIXED(EXP(AJ$4*-1*'PM2.5 reduction'!AJ159),9))","v":0.99997041799999997},{"$f":"VALUE(FIXED(EXP(AK$4*-1*'PM2.5 reduction'!AK159),9))","v":0.99998462499999996},{"$f":"VALUE(FIXED(EXP(AL$4*-1*'PM2.5 reduction'!AL159),9))","v":0.99998408400000005},{"$f":"VALUE(FIXED(EXP(AM$4*-1*'PM2.5 reduction'!AM159),9))","v":0.999957549},{"$f":"VALUE(FIXED(EXP(AN$4*-1*'PM2.5 reduction'!AN159),9))","v":0.99998847000000002},{"$f":"VALUE(FIXED(EXP(AO$4*-1*'PM2.5 reduction'!AO159),9))","v":0.99998847000000002},{"$f":"VALUE(FIXED(EXP(AP$4*-1*'PM2.5 reduction'!AP159),9))","v":0.99997997400000005},{"$f":"VALUE(FIXED(EXP(AQ$4*-1*'PM2.5 reduction'!AQ159),9))","v":0.99996399000000002},{"$f":"VALUE(FIXED(EXP(AR$4*-1*'PM2.5 reduction'!AR159),9))","v":0.99993823699999995},{"$f":"VALUE(FIXED(EXP(AS$4*-1*'PM2.5 reduction'!AS159),9))","v":0.99999076399999998},{"$f":"VALUE(FIXED(EXP(AT$4*-1*'PM2.5 reduction'!AT159),9))","v":1},{"$f":"VALUE(FIXED(EXP(AU$4*-1*'PM2.5 reduction'!AU159),9))","v":1},{"$f":"VALUE(FIXED(EXP(AV$4*-1*'PM2.5 reduction'!AV159),9))","v":0.99997344700000002},{"$f":"VALUE(FIXED(EXP(AW$4*-1*'PM2.5 reduction'!AW159),9))","v":0.99996051200000002},{"$f":"VALUE(FIXED(EXP(AX$4*-1*'PM2.5 reduction'!AX159),9))","v":0.99996775500000001},{"$f":"VALUE(FIXED(EXP(AY$4*-1*'PM2.5 reduction'!AY159),9))","v":0.99996825},{"$f":"VALUE(FIXED(EXP(AZ$4*-1*'PM2.5 reduction'!AZ159),9))","v":0.99996288700000002},{"$f":"VALUE(FIXED(EXP(BA$4*-1*'PM2.5 reduction'!BA159),9))","v":0.99996255199999995},{"$f":"VALUE(FIXED(EXP(BB$4*-1*'PM2.5 reduction'!BB159),9))","v":0.99996826699999997},{"$f":"VALUE(FIXED(EXP(BC$4*-1*'PM2.5 reduction'!BC159),9))","v":0.99999162699999999}]
[null,"Male 25-29",{"$f":"VALUE(FIXED(EXP(C$4*-1*'PM2.5 reduction'!C160),9))","v":0.99991010800000002},{"$f":"VALUE(FIXED(EXP(D$4*-1*'PM2.5 reduction'!D160),9))","v":0.99992717499999995},{"$f":"VALUE(FIXED(EXP(E$4*-1*'PM2.5 reduction'!E160),9))","v":0.99998769200000004},{"$f":"VALUE(FIXED(EXP(F$4*-1*'PM2.5 reduction'!F160),9))","v":0.99998554900000003},{"$f":"VALUE(FIXED(EXP(G$4*-1*'PM2.5 reduction'!G160),9))","v":0.99999499000000003},{"$f":"VALUE(FIXED(EXP(H$4*-1*'PM2.5 reduction'!H160),9))","v":0.99997852600000003},{"$f":"VALUE(FIXED(EXP(I$4*-1*'PM2.5 reduction'!I160),9))","v":0.999990457},{"$f":"VALUE(FIXED(EXP(J$4*-1*'PM2.5 reduction'!J160),9))","v":0.99997648699999997},{"$f":"VALUE(FIXED(EXP(K$4*-1*'PM2.5 reduction'!K160),9))","v":0.999982229},{"$f":"VALUE(FIXED(EXP(L$4*-1*'PM2.5 reduction'!L160),9))","v":0.99998557700000001},{"$f":"VALUE(FIXED(EXP(M$4*-1*'PM2.5 reduction'!M160),9))","v":0.99998557700000001},{"$f":"VALUE(FIXED(EXP(N$4*-1*'PM2.5 reduction'!N160),9))","v":0.99993695999999999},{"$f":"VALUE(FIXED(EXP(O$4*-1*'PM2.5 reduction'!O160),9))","v":0.99998008999999999},{"$f":"VALUE(FIXED(EXP(P$4*-1*'PM2.5 reduction'!P160),9))","v":0.99995255500000002},{"$f":"VALUE(FIXED(EXP(Q$4*-1*'PM2.5 reduction'!Q160),9))","v":0.99997067299999998},{"$f":"VALUE(FIXED(EXP(R$4*-1*'PM2.5 reduction'!R160),9))","v":0.999957753},{"$f":"VALUE(FIXED(EXP(S$4*-1*'PM2.5 reduction'!S160),9))","v":0.99993217700000003},{"$f":"VALUE(FIXED(EXP(T$4*-1*'PM2.5 reduction'!T160),9))","v":0.99990358800000001},{"$f":"VALUE(FIXED(EXP(U$4*-1*'PM2.5 reduction'!U160),9))","v":0.99999151500000005},{"$f":"VALUE(FIXED(EXP(V$4*-1*'PM2.5 reduction'!V160),9))","v":0.99996244700000003},{"$f":"VALUE(FIXED(EXP(W$4*-1*'PM2.5 reduction'!W160),9))","v":0.99997064700000005},{"$f":"VALUE(FIXED(EXP(X$4*-1*'PM2.5 reduction'!X160),9))","v":0.99997064700000005},{"$f":"VALUE(FIXED(EXP(Y$4*-1*'PM2.5 reduction'!Y160),9))","v":0.99996875900000004},{"$f":"VALUE(FIXED(EXP(Z$4*-1*'PM2.5 reduction'!Z160),9))","v":0.999907447},{"$f":"VALUE(FIXED(EXP(AA$4*-1*'PM2.5 reduction'!AA160),9))","v":0.999933454},{"$f":"VALUE(FIXED(EXP(AB$4*-1*'PM2.5 reduction'!AB160),9))","v":0.99993426100000005},{"$f":"VALUE(FIXED(EXP(AC$4*-1*'PM2.5 reduction'!AC160),9))","v":0.99992287099999999},{"$f":"VALUE(FIXED(EXP(AD$4*-1*'PM2.5 reduction'!AD160),9))","v":0.99999014200000003},{"$f":"VALUE(FIXED(EXP(AE$4*-1*'PM2.5 reduction'!AE160),9))","v":0.99998941600000002},{"$f":"VALUE(FIXED(EXP(AF$4*-1*'PM2.5 reduction'!AF160),9))","v":0.99997201000000002},{"$f":"VALUE(FIXED(EXP(AG$4*-1*'PM2.5 reduction'!AG160),9))","v":0.99998941600000002},{"$f":"VALUE(FIXED(EXP(AH$4*-1*'PM2.5 reduction'!AH160),9))","v":0.99995853899999998},{"$f":"VALUE(FIXED(EXP(AI$4*-1*'PM2.5 reduction'!AI160),9))","v":0.999918376},{"$f":"VALUE(FIXED(EXP(AJ$4*-1*'PM2.5 reduction'!AJ160),9))","v":0.99997132499999997},{"$f":"VALUE(FIXED(EXP(AK$4*-1*'PM2.5 reduction'!AK160),9))","v":0.99998426600000001},{"$f":"VALUE(FIXED(EXP(AL$4*-1*'PM2.5 reduction'!AL160),9))","v":0.99998335599999999},{"$f":"VALUE(FIXED(EXP(AM$4*-1*'PM2.5 reduction'!AM160),9))","v":0.99995760499999997},{"$f":"VALUE(FIXED(EXP(AN$4*-1*'PM2.5 reduction'!AN160),9))","v":0.99998844799999997},{"$f":"VALUE(FIXED(EXP(AO$4*-1*'PM2.5 reduction'!AO160),9))","v":0.99998844799999997},{"$f":"VALUE(FIXED(EXP(AP$4*-1*'PM2.5 reduction'!AP160),9))","v":0.999980957},{"$f":"VALUE(FIXED(EXP(AQ$4*-1*'PM2.5 reduction'!AQ160),9))","v":0.99996224899999997},{"$f":"VALUE(FIXED(EXP(AR$4*-1*'PM2.5 reduction'!AR160),9))","v":0.99994053900000002},{"$f":"VALUE(FIXED(EXP(AS$4*-1*'PM2.5 reduction'!AS160),9))","v":0.999990457},{"$f":"VALUE(FIXED(EXP(AT$4*-1*'PM2.5 reduction'!AT160),9))","v":1},{"$f":"VALUE(FIXED(EXP(AU$4*-1*'PM2.5 reduction'!AU160),9))","v":1},{"$f":"VALUE(FIXED(EXP(AV$4*-1*'PM2.5 reduction'!AV160),9))","v":0.99997293499999995},{"$f":"VALUE(FIXED(EXP(AW$4*-1*'PM2.5 reduction'!AW160),9))","v":0.99995953900000001},{"$f":"VALUE(FIXED(EXP(AX$4*-1*'PM2.5 reduction'!AX160),9))","v":0.99997465900000004},{"$f":"VALUE(FIXED(EXP(AY$4*-1*'PM2.5 reduction'!AY160),9))","v":0.999965463},{"$f":"VALUE(FIXED(EXP(AZ$4*-1*'PM2.5 reduction'!AZ160),9))","v":0.99996039299999995},{"$f":"VALUE(FIXED(EXP(BA$4*-1*'PM2.5 reduction'!BA160),9))","v":0.99996324000000003},{"$f":"VALUE(FIXED(EXP(BB$4*-1*'PM2.5 reduction'!BB160),9))","v":0.999968156},{"$f":"VALUE(FIXED(EXP(BC$4*-1*'PM2.5 reduction'!BC160),9))","v":0.99999151500000005}]
[null,"Male 30-34",{"$f":"VALUE(FIXED(EXP(C$4*-1*'PM2.5 reduction'!C161),9))","v":0.99991457800000005},{"$f":"VALUE(FIXED(EXP(D$4*-1*'PM2.5 reduction'!D161),9))","v":0.99993518999999997},{"$f":"VALUE(FIXED(EXP(E$4*-1*'PM2.5 reduction'!E161),9))","v":0.99998802200000003},{"$f":"VALUE(FIXED(EXP(F$4*-1*'PM2.5 reduction'!F161),9))","v":0.99998521500000004},{"$f":"VALUE(FIXED(EXP(G$4*-1*'PM2.5 reduction'!G161),9))","v":0.99999351299999995},{"$f":"VALUE(FIXED(EXP(H$4*-1*'PM2.5 reduction'!H161),9))","v":0.99997866700000004},{"$f":"VALUE(FIXED(EXP(I$4*-1*'PM2.5 reduction'!I161),9))","v":0.99999021899999996},{"$f":"VALUE(FIXED(EXP(J$4*-1*'PM2.5 reduction'!J161),9))","v":0.99997731999999995},{"$f":"VALUE(FIXED(EXP(K$4*-1*'PM2.5 reduction'!K161),9))","v":0.99997886800000002},{"$f":"VALUE(FIXED(EXP(L$4*-1*'PM2.5 reduction'!L161),9))","v":0.99998753299999998},{"$f":"VALUE(FIXED(EXP(M$4*-1*'PM2.5 reduction'!M161),9))","v":0.99998753299999998},{"$f":"VALUE(FIXED(EXP(N$4*-1*'PM2.5 reduction'!N161),9))","v":0.99994223100000001},{"$f":"VALUE(FIXED(EXP(O$4*-1*'PM2.5 reduction'!O161),9))","v":0.99997967399999999},{"$f":"VALUE(FIXED(EXP(P$4*-1*'PM2.5 reduction'!P161),9))","v":0.99995233500000003},{"$f":"VALUE(FIXED(EXP(Q$4*-1*'PM2.5 reduction'!Q161),9))","v":0.99997297200000002},{"$f":"VALUE(FIXED(EXP(R$4*-1*'PM2.5 reduction'!R161),9))","v":0.99995699699999996},{"$f":"VALUE(FIXED(EXP(S$4*-1*'PM2.5 reduction'!S161),9))","v":0.99993742200000002},{"$f":"VALUE(FIXED(EXP(T$4*-1*'PM2.5 reduction'!T161),9))","v":0.99990986199999998},{"$f":"VALUE(FIXED(EXP(U$4*-1*'PM2.5 reduction'!U161),9))","v":0.99999156499999997},{"$f":"VALUE(FIXED(EXP(V$4*-1*'PM2.5 reduction'!V161),9))","v":0.99996121800000004},{"$f":"VALUE(FIXED(EXP(W$4*-1*'PM2.5 reduction'!W161),9))","v":0.99997020599999997},{"$f":"VALUE(FIXED(EXP(X$4*-1*'PM2.5 reduction'!X161),9))","v":0.99997020599999997},{"$f":"VALUE(FIXED(EXP(Y$4*-1*'PM2.5 reduction'!Y161),9))","v":0.99996732499999996},{"$f":"VALUE(FIXED(EXP(Z$4*-1*'PM2.5 reduction'!Z161),9))","v":0.99991573700000003},{"$f":"VALUE(FIXED(EXP(AA$4*-1*'PM2.5 reduction'!AA161),9))","v":0.99993919799999997},{"$f":"VALUE(FIXED(EXP(AB$4*-1*'PM2.5 reduction'!AB161),9))","v":0.99994272200000001},{"$f":"VALUE(FIXED(EXP(AC$4*-1*'PM2.5 reduction'!AC161),9))","v":0.99992915100000002},{"$f":"VALUE(FIXED(EXP(AD$4*-1*'PM2.5 reduction'!AD161),9))","v":0.99998909899999999},{"$f":"VALUE(FIXED(EXP(AE$4*-1*'PM2.5 reduction'!AE161),9))","v":0.99998859900000003},{"$f":"VALUE(FIXED(EXP(AF$4*-1*'PM2.5 reduction'!AF161),9))","v":0.99997230599999998},{"$f":"VALUE(FIXED(EXP(AG$4*-1*'PM2.5 reduction'!AG161),9))","v":0.99998859900000003},{"$f":"VALUE(FIXED(EXP(AH$4*-1*'PM2.5 reduction'!AH161),9))","v":0.999959343},{"$f":"VALUE(FIXED(EXP(AI$4*-1*'PM2.5 reduction'!AI161),9))","v":0.99992444899999999},{"$f":"VALUE(FIXED(EXP(AJ$4*-1*'PM2.5 reduction'!AJ161),9))","v":0.99997166299999996},{"$f":"VALUE(FIXED(EXP(AK$4*-1*'PM2.5 reduction'!AK161),9))","v":0.99998414899999999},{"$f":"VALUE(FIXED(EXP(AL$4*-1*'PM2.5 reduction'!AL161),9))","v":0.999983807},{"$f":"VALUE(FIXED(EXP(AM$4*-1*'PM2.5 reduction'!AM161),9))","v":0.99995756400000002},{"$f":"VALUE(FIXED(EXP(AN$4*-1*'PM2.5 reduction'!AN161),9))","v":0.99998836199999996},{"$f":"VALUE(FIXED(EXP(AO$4*-1*'PM2.5 reduction'!AO161),9))","v":0.99998836199999996},{"$f":"VALUE(FIXED(EXP(AP$4*-1*'PM2.5 reduction'!AP161),9))","v":0.99998040099999996},{"$f":"VALUE(FIXED(EXP(AQ$4*-1*'PM2.5 reduction'!AQ161),9))","v":0.99996205599999999},{"$f":"VALUE(FIXED(EXP(AR$4*-1*'PM2.5 reduction'!AR161),9))","v":0.99994600199999994},{"$f":"VALUE(FIXED(EXP(AS$4*-1*'PM2.5 reduction'!AS161),9))","v":0.99999021899999996},{"$f":"VALUE(FIXED(EXP(AT$4*-1*'PM2.5 reduction'!AT161),9))","v":1},{"$f":"VALUE(FIXED(EXP(AU$4*-1*'PM2.5 reduction'!AU161),9))","v":1},{"$f":"VALUE(FIXED(EXP(AV$4*-1*'PM2.5 reduction'!AV161),9))","v":0.99997311300000002},{"$f":"VALUE(FIXED(EXP(AW$4*-1*'PM2.5 reduction'!AW161),9))","v":0.99996126399999996},{"$f":"VALUE(FIXED(EXP(AX$4*-1*'PM2.5 reduction'!AX161),9))","v":0.99997639400000005},{"$f":"VALUE(FIXED(EXP(AY$4*-1*'PM2.5 reduction'!AY161),9))","v":0.99996799199999997},{"$f":"VALUE(FIXED(EXP(AZ$4*-1*'PM2.5 reduction'!AZ161),9))","v":0.99996587000000003},{"$f":"VALUE(FIXED(EXP(BA$4*-1*'PM2.5 reduction'!BA161),9))","v":0.99996377199999997},{"$f":"VALUE(FIXED(EXP(BB$4*-1*'PM2.5 reduction'!BB161),9))","v":0.99996878499999997},{"$f":"VALUE(FIXED(EXP(BC$4*-1*'PM2.5 reduction'!BC161),9))","v":0.99999156499999997}]
[null,"Male 35-39",{"$f":"VALUE(FIXED(EXP(C$4*-1*'PM2.5 reduction'!C162),9))","v":0.999920319},{"$f":"VALUE(FIXED(EXP(D$4*-1*'PM2.5 reduction'!D162),9))","v":0.99994460399999996},{"$f":"VALUE(FIXED(EXP(E$4*-1*'PM2.5 reduction'!E162),9))","v":0.99998830400000005},{"$f":"VALUE(FIXED(EXP(F$4*-1*'PM2.5 reduction'!F162),9))","v":0.99998551999999996},{"$f":"VALUE(FIXED(EXP(G$4*-1*'PM2.5 reduction'!G162),9))","v":0.99999386599999995},{"$f":"VALUE(FIXED(EXP(H$4*-1*'PM2.5 reduction'!H162),9))","v":0.99997871900000002},{"$f":"VALUE(FIXED(EXP(I$4*-1*'PM2.5 reduction'!I162),9))","v":0.99999063700000002},{"$f":"VALUE(FIXED(EXP(J$4*-1*'PM2.5 reduction'!J162),9))","v":0.99997823900000005},{"$f":"VALUE(FIXED(EXP(K$4*-1*'PM2.5 reduction'!K162),9))","v":0.99997785400000005},{"$f":"VALUE(FIXED(EXP(L$4*-1*'PM2.5 reduction'!L162),9))","v":0.99998776899999997},{"$f":"VALUE(FIXED(EXP(M$4*-1*'PM2.5 reduction'!M162),9))","v":0.99998776899999997},{"$f":"VALUE(FIXED(EXP(N$4*-1*'PM2.5 reduction'!N162),9))","v":0.99993898199999998},{"$f":"VALUE(FIXED(EXP(O$4*-1*'PM2.5 reduction'!O162),9))","v":0.99997905099999995},{"$f":"VALUE(FIXED(EXP(P$4*-1*'PM2.5 reduction'!P162),9))","v":0.999953757},{"$f":"VALUE(FIXED(EXP(Q$4*-1*'PM2.5 reduction'!Q162),9))","v":0.99997485699999999},{"$f":"VALUE(FIXED(EXP(R$4*-1*'PM2.5 reduction'!R162),9))","v":0.99995803299999997},{"$f":"VALUE(FIXED(EXP(S$4*-1*'PM2.5 reduction'!S162),9))","v":0.99994215200000003},{"$f":"VALUE(FIXED(EXP(T$4*-1*'PM2.5 reduction'!T162),9))","v":0.99991144399999998},{"$f":"VALUE(FIXED(EXP(U$4*-1*'PM2.5 reduction'!U162),9))","v":0.99999190500000001},{"$f":"VALUE(FIXED(EXP(V$4*-1*'PM2.5 reduction'!V162),9))","v":0.99996238100000001},{"$f":"VALUE(FIXED(EXP(W$4*-1*'PM2.5 reduction'!W162),9))","v":0.99996955300000001},{"$f":"VALUE(FIXED(EXP(X$4*-1*'PM2.5 reduction'!X162),9))","v":0.99996955300000001},{"$f":"VALUE(FIXED(EXP(Y$4*-1*'PM2.5 reduction'!Y162),9))","v":0.99996744999999998},{"$f":"VALUE(FIXED(EXP(Z$4*-1*'PM2.5 reduction'!Z162),9))","v":0.99992244399999997},{"$f":"VALUE(FIXED(EXP(AA$4*-1*'PM2.5 reduction'!AA162),9))","v":0.99994436099999995},{"$f":"VALUE(FIXED(EXP(AB$4*-1*'PM2.5 reduction'!AB162),9))","v":0.99995181},{"$f":"VALUE(FIXED(EXP(AC$4*-1*'PM2.5 reduction'!AC162),9))","v":0.99993537499999996},{"$f":"VALUE(FIXED(EXP(AD$4*-1*'PM2.5 reduction'!AD162),9))","v":0.99998963399999996},{"$f":"VALUE(FIXED(EXP(AE$4*-1*'PM2.5 reduction'!AE162),9))","v":0.99998915700000002},{"$f":"VALUE(FIXED(EXP(AF$4*-1*'PM2.5 reduction'!AF162),9))","v":0.999972368},{"$f":"VALUE(FIXED(EXP(AG$4*-1*'PM2.5 reduction'!AG162),9))","v":0.99998915700000002},{"$f":"VALUE(FIXED(EXP(AH$4*-1*'PM2.5 reduction'!AH162),9))","v":0.99995888600000005},{"$f":"VALUE(FIXED(EXP(AI$4*-1*'PM2.5 reduction'!AI162),9))","v":0.99992926699999995},{"$f":"VALUE(FIXED(EXP(AJ$4*-1*'PM2.5 reduction'!AJ162),9))","v":0.99997177500000001},{"$f":"VALUE(FIXED(EXP(AK$4*-1*'PM2.5 reduction'!AK162),9))","v":0.99998406500000003},{"$f":"VALUE(FIXED(EXP(AL$4*-1*'PM2.5 reduction'!AL162),9))","v":0.99998442399999998},{"$f":"VALUE(FIXED(EXP(AM$4*-1*'PM2.5 reduction'!AM162),9))","v":0.99995705199999996},{"$f":"VALUE(FIXED(EXP(AN$4*-1*'PM2.5 reduction'!AN162),9))","v":0.999988345},{"$f":"VALUE(FIXED(EXP(AO$4*-1*'PM2.5 reduction'!AO162),9))","v":0.999988345},{"$f":"VALUE(FIXED(EXP(AP$4*-1*'PM2.5 reduction'!AP162),9))","v":0.99997829299999996},{"$f":"VALUE(FIXED(EXP(AQ$4*-1*'PM2.5 reduction'!AQ162),9))","v":0.99996117200000001},{"$f":"VALUE(FIXED(EXP(AR$4*-1*'PM2.5 reduction'!AR162),9))","v":0.99995107900000002},{"$f":"VALUE(FIXED(EXP(AS$4*-1*'PM2.5 reduction'!AS162),9))","v":0.99999063700000002},{"$f":"VALUE(FIXED(EXP(AT$4*-1*'PM2.5 reduction'!AT162),9))","v":1},{"$f":"VALUE(FIXED(EXP(AU$4*-1*'PM2.5 reduction'!AU162),9))","v":1},{"$f":"VALUE(FIXED(EXP(AV$4*-1*'PM2.5 reduction'!AV162),9))","v":0.99997266699999998},{"$f":"VALUE(FIXED(EXP(AW$4*-1*'PM2.5 reduction'!AW162),9))","v":0.99996108500000003},{"$f":"VALUE(FIXED(EXP(AX$4*-1*'PM2.5 reduction'!AX162),9))","v":0.99997848099999997},{"$f":"VALUE(FIXED(EXP(AY$4*-1*'PM2.5 reduction'!AY162),9))","v":0.99996827799999999},{"$f":"VALUE(FIXED(EXP(AZ$4*-1*'PM2.5 reduction'!AZ162),9))","v":0.99996696399999996},{"$f":"VALUE(FIXED(EXP(BA$4*-1*'PM2.5 reduction'!BA162),9))","v":0.99996234900000003},{"$f":"VALUE(FIXED(EXP(BB$4*-1*'PM2.5 reduction'!BB162),9))","v":0.99996876199999996},{"$f":"VALUE(FIXED(EXP(BC$4*-1*'PM2.5 reduction'!BC162),9))","v":0.99999190500000001}]
[null,"Male 40-44",{"$f":"VALUE(FIXED(EXP(C$4*-1*'PM2.5 reduction'!C163),9))","v":0.99992306200000003},{"$f":"VALUE(FIXED(EXP(D$4*-1*'PM2.5 reduction'!D163),9))","v":0.99995087100000002},{"$f":"VALUE(FIXED(EXP(E$4*-1*'PM2.5 reduction'!E163),9))","v":0.99998821800000004},{"$f":"VALUE(FIXED(EXP(F$4*-1*'PM2.5 reduction'!F163),9))","v":0.99998567699999996},{"$f":"VALUE(FIXED(EXP(G$4*-1*'PM2.5 reduction'!G163),9))","v":0.99999388700000003},{"$f":"VALUE(FIXED(EXP(H$4*-1*'PM2.5 reduction'!H163),9))","v":0.99997966299999996},{"$f":"VALUE(FIXED(EXP(I$4*-1*'PM2.5 reduction'!I163),9))","v":0.99999105899999996},{"$f":"VALUE(FIXED(EXP(J$4*-1*'PM2.5 reduction'!J163),9))","v":0.99997902299999997},{"$f":"VALUE(FIXED(EXP(K$4*-1*'PM2.5 reduction'!K163),9))","v":0.99997915500000001},{"$f":"VALUE(FIXED(EXP(L$4*-1*'PM2.5 reduction'!L163),9))","v":0.99998722500000004},{"$f":"VALUE(FIXED(EXP(M$4*-1*'PM2.5 reduction'!M163),9))","v":0.99998722500000004},{"$f":"VALUE(FIXED(EXP(N$4*-1*'PM2.5 reduction'!N163),9))","v":0.99994102100000004},{"$f":"VALUE(FIXED(EXP(O$4*-1*'PM2.5 reduction'!O163),9))","v":0.99998083999999998},{"$f":"VALUE(FIXED(EXP(P$4*-1*'PM2.5 reduction'!P163),9))","v":0.99995292599999996},{"$f":"VALUE(FIXED(EXP(Q$4*-1*'PM2.5 reduction'!Q163),9))","v":0.99997307300000005},{"$f":"VALUE(FIXED(EXP(R$4*-1*'PM2.5 reduction'!R163),9))","v":0.99995932200000004},{"$f":"VALUE(FIXED(EXP(S$4*-1*'PM2.5 reduction'!S163),9))","v":0.99994988200000001},{"$f":"VALUE(FIXED(EXP(T$4*-1*'PM2.5 reduction'!T163),9))","v":0.99991346400000003},{"$f":"VALUE(FIXED(EXP(U$4*-1*'PM2.5 reduction'!U163),9))","v":0.999991564},{"$f":"VALUE(FIXED(EXP(V$4*-1*'PM2.5 reduction'!V163),9))","v":0.99996282400000003},{"$f":"VALUE(FIXED(EXP(W$4*-1*'PM2.5 reduction'!W163),9))","v":0.99997010200000003},{"$f":"VALUE(FIXED(EXP(X$4*-1*'PM2.5 reduction'!X163),9))","v":0.99997010200000003},{"$f":"VALUE(FIXED(EXP(Y$4*-1*'PM2.5 reduction'!Y163),9))","v":0.99996854800000001},{"$f":"VALUE(FIXED(EXP(Z$4*-1*'PM2.5 reduction'!Z163),9))","v":0.999924445},{"$f":"VALUE(FIXED(EXP(AA$4*-1*'PM2.5 reduction'!AA163),9))","v":0.99994884699999997},{"$f":"VALUE(FIXED(EXP(AB$4*-1*'PM2.5 reduction'!AB163),9))","v":0.99995765700000006},{"$f":"VALUE(FIXED(EXP(AC$4*-1*'PM2.5 reduction'!AC163),9))","v":0.99994071900000003},{"$f":"VALUE(FIXED(EXP(AD$4*-1*'PM2.5 reduction'!AD163),9))","v":0.99998995899999998},{"$f":"VALUE(FIXED(EXP(AE$4*-1*'PM2.5 reduction'!AE163),9))","v":0.99998922499999998},{"$f":"VALUE(FIXED(EXP(AF$4*-1*'PM2.5 reduction'!AF163),9))","v":0.99997213600000001},{"$f":"VALUE(FIXED(EXP(AG$4*-1*'PM2.5 reduction'!AG163),9))","v":0.99998922499999998},{"$f":"VALUE(FIXED(EXP(AH$4*-1*'PM2.5 reduction'!AH163),9))","v":0.99995967200000002},{"$f":"VALUE(FIXED(EXP(AI$4*-1*'PM2.5 reduction'!AI163),9))","v":0.99993583399999997},{"$f":"VALUE(FIXED(EXP(AJ$4*-1*'PM2.5 reduction'!AJ163),9))","v":0.99997148400000002},{"$f":"VALUE(FIXED(EXP(AK$4*-1*'PM2.5 reduction'!AK163),9))","v":0.999984549},{"$f":"VALUE(FIXED(EXP(AL$4*-1*'PM2.5 reduction'!AL163),9))","v":0.99998462499999996},{"$f":"VALUE(FIXED(EXP(AM$4*-1*'PM2.5 reduction'!AM163),9))","v":0.99995725099999999},{"$f":"VALUE(FIXED(EXP(AN$4*-1*'PM2.5 reduction'!AN163),9))","v":0.99998825499999999},{"$f":"VALUE(FIXED(EXP(AO$4*-1*'PM2.5 reduction'!AO163),9))","v":0.99998825499999999},{"$f":"VALUE(FIXED(EXP(AP$4*-1*'PM2.5 reduction'!AP163),9))","v":0.99998131499999998},{"$f":"VALUE(FIXED(EXP(AQ$4*-1*'PM2.5 reduction'!AQ163),9))","v":0.99996258299999996},{"$f":"VALUE(FIXED(EXP(AR$4*-1*'PM2.5 reduction'!AR163),9))","v":0.99995635699999996},{"$f":"VALUE(FIXED(EXP(AS$4*-1*'PM2.5 reduction'!AS163),9))","v":0.99999105899999996},{"$f":"VALUE(FIXED(EXP(AT$4*-1*'PM2.5 reduction'!AT163),9))","v":1},{"$f":"VALUE(FIXED(EXP(AU$4*-1*'PM2.5 reduction'!AU163),9))","v":1},{"$f":"VALUE(FIXED(EXP(AV$4*-1*'PM2.5 reduction'!AV163),9))","v":0.99997417},{"$f":"VALUE(FIXED(EXP(AW$4*-1*'PM2.5 reduction'!AW163),9))","v":0.99996280199999998},{"$f":"VALUE(FIXED(EXP(AX$4*-1*'PM2.5 reduction'!AX163),9))","v":0.99997891699999997},{"$f":"VALUE(FIXED(EXP(AY$4*-1*'PM2.5 reduction'!AY163),9))","v":0.99996998100000001},{"$f":"VALUE(FIXED(EXP(AZ$4*-1*'PM2.5 reduction'!AZ163),9))","v":0.99996983699999997},{"$f":"VALUE(FIXED(EXP(BA$4*-1*'PM2.5 reduction'!BA163),9))","v":0.99996309699999997},{"$f":"VALUE(FIXED(EXP(BB$4*-1*'PM2.5 reduction'!BB163),9))","v":0.99996784500000002},{"$f":"VALUE(FIXED(EXP(BC$4*-1*'PM2.5 reduction'!BC163),9))","v":0.999991564}]
[null,"Male 45-49",{"$f":"VALUE(FIXED(EXP(C$4*-1*'PM2.5 reduction'!C164),9))","v":0.99992751199999996},{"$f":"VALUE(FIXED(EXP(D$4*-1*'PM2.5 reduction'!D164),9))","v":0.999954817},{"$f":"VALUE(FIXED(EXP(E$4*-1*'PM2.5 reduction'!E164),9))","v":0.99998864099999996},{"$f":"VALUE(FIXED(EXP(F$4*-1*'PM2.5 reduction'!F164),9))","v":0.99998577099999997},{"$f":"VALUE(FIXED(EXP(G$4*-1*'PM2.5 reduction'!G164),9))","v":0.99999393400000003},{"$f":"VALUE(FIXED(EXP(H$4*-1*'PM2.5 reduction'!H164),9))","v":0.99998006299999997},{"$f":"VALUE(FIXED(EXP(I$4*-1*'PM2.5 reduction'!I164),9))","v":0.99999055800000003},{"$f":"VALUE(FIXED(EXP(J$4*-1*'PM2.5 reduction'!J164),9))","v":0.99998045000000002},{"$f":"VALUE(FIXED(EXP(K$4*-1*'PM2.5 reduction'!K164),9))","v":0.99997959199999997},{"$f":"VALUE(FIXED(EXP(L$4*-1*'PM2.5 reduction'!L164),9))","v":0.99998693800000005},{"$f":"VALUE(FIXED(EXP(M$4*-1*'PM2.5 reduction'!M164),9))","v":0.99998693800000005},{"$f":"VALUE(FIXED(EXP(N$4*-1*'PM2.5 reduction'!N164),9))","v":0.99994138399999999},{"$f":"VALUE(FIXED(EXP(O$4*-1*'PM2.5 reduction'!O164),9))","v":0.99998190200000003},{"$f":"VALUE(FIXED(EXP(P$4*-1*'PM2.5 reduction'!P164),9))","v":0.99995416999999998},{"$f":"VALUE(FIXED(EXP(Q$4*-1*'PM2.5 reduction'!Q164),9))","v":0.99997611600000003},{"$f":"VALUE(FIXED(EXP(R$4*-1*'PM2.5 reduction'!R164),9))","v":0.99995750699999997},{"$f":"VALUE(FIXED(EXP(S$4*-1*'PM2.5 reduction'!S164),9))","v":0.99995594700000001},{"$f":"VALUE(FIXED(EXP(T$4*-1*'PM2.5 reduction'!T164),9))","v":0.99991692099999996},{"$f":"VALUE(FIXED(EXP(U$4*-1*'PM2.5 reduction'!U164),9))","v":0.99999133900000003},{"$f":"VALUE(FIXED(EXP(V$4*-1*'PM2.5 reduction'!V164),9))","v":0.99996229299999995},{"$f":"VALUE(FIXED(EXP(W$4*-1*'PM2.5 reduction'!W164),9))","v":0.99997145399999998},{"$f":"VALUE(FIXED(EXP(X$4*-1*'PM2.5 reduction'!X164),9))","v":0.99997145399999998},{"$f":"VALUE(FIXED(EXP(Y$4*-1*'PM2.5 reduction'!Y164),9))","v":0.99996849200000004},{"$f":"VALUE(FIXED(EXP(Z$4*-1*'PM2.5 reduction'!Z164),9))","v":0.999927063},{"$f":"VALUE(FIXED(EXP(AA$4*-1*'PM2.5 reduction'!AA164),9))","v":0.99995051800000001},{"$f":"VALUE(FIXED(EXP(AB$4*-1*'PM2.5 reduction'!AB164),9))","v":0.999961506},{"$f":"VALUE(FIXED(EXP(AC$4*-1*'PM2.5 reduction'!AC164),9))","v":0.999943264},{"$f":"VALUE(FIXED(EXP(AD$4*-1*'PM2.5 reduction'!AD164),9))","v":0.99999005100000005},{"$f":"VALUE(FIXED(EXP(AE$4*-1*'PM2.5 reduction'!AE164),9))","v":0.99998931199999996},{"$f":"VALUE(FIXED(EXP(AF$4*-1*'PM2.5 reduction'!AF164),9))","v":0.99997206199999999},{"$f":"VALUE(FIXED(EXP(AG$4*-1*'PM2.5 reduction'!AG164),9))","v":0.99998931199999996},{"$f":"VALUE(FIXED(EXP(AH$4*-1*'PM2.5 reduction'!AH164),9))","v":0.99995961099999997},{"$f":"VALUE(FIXED(EXP(AI$4*-1*'PM2.5 reduction'!AI164),9))","v":0.99994265400000004},{"$f":"VALUE(FIXED(EXP(AJ$4*-1*'PM2.5 reduction'!AJ164),9))","v":0.99997136600000003},{"$f":"VALUE(FIXED(EXP(AK$4*-1*'PM2.5 reduction'!AK164),9))","v":0.99998472699999996},{"$f":"VALUE(FIXED(EXP(AL$4*-1*'PM2.5 reduction'!AL164),9))","v":0.99998359800000003},{"$f":"VALUE(FIXED(EXP(AM$4*-1*'PM2.5 reduction'!AM164),9))","v":0.99995716700000004},{"$f":"VALUE(FIXED(EXP(AN$4*-1*'PM2.5 reduction'!AN164),9))","v":0.99998836999999996},{"$f":"VALUE(FIXED(EXP(AO$4*-1*'PM2.5 reduction'!AO164),9))","v":0.99998836999999996},{"$f":"VALUE(FIXED(EXP(AP$4*-1*'PM2.5 reduction'!AP164),9))","v":0.99998257800000001},{"$f":"VALUE(FIXED(EXP(AQ$4*-1*'PM2.5 reduction'!AQ164),9))","v":0.99996375900000001},{"$f":"VALUE(FIXED(EXP(AR$4*-1*'PM2.5 reduction'!AR164),9))","v":0.99995964400000004},{"$f":"VALUE(FIXED(EXP(AS$4*-1*'PM2.5 reduction'!AS164),9))","v":0.99999055800000003},{"$f":"VALUE(FIXED(EXP(AT$4*-1*'PM2.5 reduction'!AT164),9))","v":1},{"$f":"VALUE(FIXED(EXP(AU$4*-1*'PM2.5 reduction'!AU164),9))","v":1},{"$f":"VALUE(FIXED(EXP(AV$4*-1*'PM2.5 reduction'!AV164),9))","v":0.99997448799999999},{"$f":"VALUE(FIXED(EXP(AW$4*-1*'PM2.5 reduction'!AW164),9))","v":0.99996240400000003},{"$f":"VALUE(FIXED(EXP(AX$4*-1*'PM2.5 reduction'!AX164),9))","v":0.99998127699999995},{"$f":"VALUE(FIXED(EXP(AY$4*-1*'PM2.5 reduction'!AY164),9))","v":0.99997133500000002},{"$f":"VALUE(FIXED(EXP(AZ$4*-1*'PM2.5 reduction'!AZ164),9))","v":0.99997119099999998},{"$f":"VALUE(FIXED(EXP(BA$4*-1*'PM2.5 reduction'!BA164),9))","v":0.99996223399999995},{"$f":"VALUE(FIXED(EXP(BB$4*-1*'PM2.5 reduction'!BB164),9))","v":0.99996858300000002},{"$f":"VALUE(FIXED(EXP(BC$4*-1*'PM2.5 reduction'!BC164),9))","v":0.99999133900000003}]
[null,"Male 50-54",{"$f":"VALUE(FIXED(EXP(C$4*-1*'PM2.5 reduction'!C165),9))","v":0.999931193},{"$f":"VALUE(FIXED(EXP(D$4*-1*'PM2.5 reduction'!D165),9))","v":0.99995744399999997},{"$f":"VALUE(FIXED(EXP(E$4*-1*'PM2.5 reduction'!E165),9))","v":0.99998863800000004},{"$f":"VALUE(FIXED(EXP(F$4*-1*'PM2.5 reduction'!F165),9))","v":0.99998564499999998},{"$f":"VALUE(FIXED(EXP(G$4*-1*'PM2.5 reduction'!G165),9))","v":0.99999439700000003},{"$f":"VALUE(FIXED(EXP(H$4*-1*'PM2.5 reduction'!H165),9))","v":0.99997957800000004},{"$f":"VALUE(FIXED(EXP(I$4*-1*'PM2.5 reduction'!I165),9))","v":0.99999079999999996},{"$f":"VALUE(FIXED(EXP(J$4*-1*'PM2.5 reduction'!J165),9))","v":0.999980392},{"$f":"VALUE(FIXED(EXP(K$4*-1*'PM2.5 reduction'!K165),9))","v":0.99998022099999995},{"$f":"VALUE(FIXED(EXP(L$4*-1*'PM2.5 reduction'!L165),9))","v":0.99998701700000003},{"$f":"VALUE(FIXED(EXP(M$4*-1*'PM2.5 reduction'!M165),9))","v":0.99998701700000003},{"$f":"VALUE(FIXED(EXP(N$4*-1*'PM2.5 reduction'!N165),9))","v":0.99994302400000001},{"$f":"VALUE(FIXED(EXP(O$4*-1*'PM2.5 reduction'!O165),9))","v":0.999980498},{"$f":"VALUE(FIXED(EXP(P$4*-1*'PM2.5 reduction'!P165),9))","v":0.99995187600000002},{"$f":"VALUE(FIXED(EXP(Q$4*-1*'PM2.5 reduction'!Q165),9))","v":0.99997419499999995},{"$f":"VALUE(FIXED(EXP(R$4*-1*'PM2.5 reduction'!R165),9))","v":0.99995853099999998},{"$f":"VALUE(FIXED(EXP(S$4*-1*'PM2.5 reduction'!S165),9))","v":0.99995652899999998},{"$f":"VALUE(FIXED(EXP(T$4*-1*'PM2.5 reduction'!T165),9))","v":0.99991734300000001},{"$f":"VALUE(FIXED(EXP(U$4*-1*'PM2.5 reduction'!U165),9))","v":0.99999148999999998},{"$f":"VALUE(FIXED(EXP(V$4*-1*'PM2.5 reduction'!V165),9))","v":0.99996290200000004},{"$f":"VALUE(FIXED(EXP(W$4*-1*'PM2.5 reduction'!W165),9))","v":0.99997144100000002},{"$f":"VALUE(FIXED(EXP(X$4*-1*'PM2.5 reduction'!X165),9))","v":0.99997144100000002},{"$f":"VALUE(FIXED(EXP(Y$4*-1*'PM2.5 reduction'!Y165),9))","v":0.99996867700000003},{"$f":"VALUE(FIXED(EXP(Z$4*-1*'PM2.5 reduction'!Z165),9))","v":0.99993232300000001},{"$f":"VALUE(FIXED(EXP(AA$4*-1*'PM2.5 reduction'!AA165),9))","v":0.99995262200000001},{"$f":"VALUE(FIXED(EXP(AB$4*-1*'PM2.5 reduction'!AB165),9))","v":0.99996299099999997},{"$f":"VALUE(FIXED(EXP(AC$4*-1*'PM2.5 reduction'!AC165),9))","v":0.99994759799999999},{"$f":"VALUE(FIXED(EXP(AD$4*-1*'PM2.5 reduction'!AD165),9))","v":0.99999005100000005},{"$f":"VALUE(FIXED(EXP(AE$4*-1*'PM2.5 reduction'!AE165),9))","v":0.99998910100000005},{"$f":"VALUE(FIXED(EXP(AF$4*-1*'PM2.5 reduction'!AF165),9))","v":0.99997224200000001},{"$f":"VALUE(FIXED(EXP(AG$4*-1*'PM2.5 reduction'!AG165),9))","v":0.99998910100000005},{"$f":"VALUE(FIXED(EXP(AH$4*-1*'PM2.5 reduction'!AH165),9))","v":0.999959233},{"$f":"VALUE(FIXED(EXP(AI$4*-1*'PM2.5 reduction'!AI165),9))","v":0.999943146},{"$f":"VALUE(FIXED(EXP(AJ$4*-1*'PM2.5 reduction'!AJ165),9))","v":0.999971944},{"$f":"VALUE(FIXED(EXP(AK$4*-1*'PM2.5 reduction'!AK165),9))","v":0.99998414999999996},{"$f":"VALUE(FIXED(EXP(AL$4*-1*'PM2.5 reduction'!AL165),9))","v":0.99998401100000001},{"$f":"VALUE(FIXED(EXP(AM$4*-1*'PM2.5 reduction'!AM165),9))","v":0.99995768399999996},{"$f":"VALUE(FIXED(EXP(AN$4*-1*'PM2.5 reduction'!AN165),9))","v":0.99998810800000004},{"$f":"VALUE(FIXED(EXP(AO$4*-1*'PM2.5 reduction'!AO165),9))","v":0.99998810800000004},{"$f":"VALUE(FIXED(EXP(AP$4*-1*'PM2.5 reduction'!AP165),9))","v":0.999982017},{"$f":"VALUE(FIXED(EXP(AQ$4*-1*'PM2.5 reduction'!AQ165),9))","v":0.99996367900000005},{"$f":"VALUE(FIXED(EXP(AR$4*-1*'PM2.5 reduction'!AR165),9))","v":0.99996089799999999},{"$f":"VALUE(FIXED(EXP(AS$4*-1*'PM2.5 reduction'!AS165),9))","v":0.99999079999999996},{"$f":"VALUE(FIXED(EXP(AT$4*-1*'PM2.5 reduction'!AT165),9))","v":1},{"$f":"VALUE(FIXED(EXP(AU$4*-1*'PM2.5 reduction'!AU165),9))","v":1},{"$f":"VALUE(FIXED(EXP(AV$4*-1*'PM2.5 reduction'!AV165),9))","v":0.99997406200000005},{"$f":"VALUE(FIXED(EXP(AW$4*-1*'PM2.5 reduction'!AW165),9))","v":0.99996102099999995},{"$f":"VALUE(FIXED(EXP(AX$4*-1*'PM2.5 reduction'!AX165),9))","v":0.99998054300000006},{"$f":"VALUE(FIXED(EXP(AY$4*-1*'PM2.5 reduction'!AY165),9))","v":0.99997066099999998},{"$f":"VALUE(FIXED(EXP(AZ$4*-1*'PM2.5 reduction'!AZ165),9))","v":0.99996986600000004},{"$f":"VALUE(FIXED(EXP(BA$4*-1*'PM2.5 reduction'!BA165),9))","v":0.99996447499999996},{"$f":"VALUE(FIXED(EXP(BB$4*-1*'PM2.5 reduction'!BB165),9))","v":0.99996863000000002},{"$f":"VALUE(FIXED(EXP(BC$4*-1*'PM2.5 reduction'!BC165),9))","v":0.99999148999999998}]
[null,"Male 55-59",{"$f":"VALUE(FIXED(EXP(C$4*-1*'PM2.5 reduction'!C166),9))","v":0.99992998399999999},{"$f":"VALUE(FIXED(EXP(D$4*-1*'PM2.5 reduction'!D166),9))","v":0.99995712599999997},{"$f":"VALUE(FIXED(EXP(E$4*-1*'PM2.5 reduction'!E166),9))","v":0.99998835100000005},{"$f":"VALUE(FIXED(EXP(F$4*-1*'PM2.5 reduction'!F166),9))","v":0.99998530500000005},{"$f":"VALUE(FIXED(EXP(G$4*-1*'PM2.5 reduction'!G166),9))","v":0.99999355599999995},{"$f":"VALUE(FIXED(EXP(H$4*-1*'PM2.5 reduction'!H166),9))","v":0.99997990800000003},{"$f":"VALUE(FIXED(EXP(I$4*-1*'PM2.5 reduction'!I166),9))","v":0.99999080699999998},{"$f":"VALUE(FIXED(EXP(J$4*-1*'PM2.5 reduction'!J166),9))","v":0.99998155700000002},{"$f":"VALUE(FIXED(EXP(K$4*-1*'PM2.5 reduction'!K166),9))","v":0.99998047700000003},{"$f":"VALUE(FIXED(EXP(L$4*-1*'PM2.5 reduction'!L166),9))","v":0.99998649500000003},{"$f":"VALUE(FIXED(EXP(M$4*-1*'PM2.5 reduction'!M166),9))","v":0.99998649500000003},{"$f":"VALUE(FIXED(EXP(N$4*-1*'PM2.5 reduction'!N166),9))","v":0.99994270699999999},{"$f":"VALUE(FIXED(EXP(O$4*-1*'PM2.5 reduction'!O166),9))","v":0.99998228899999997},{"$f":"VALUE(FIXED(EXP(P$4*-1*'PM2.5 reduction'!P166),9))","v":0.999950177},{"$f":"VALUE(FIXED(EXP(Q$4*-1*'PM2.5 reduction'!Q166),9))","v":0.99997304600000003},{"$f":"VALUE(FIXED(EXP(R$4*-1*'PM2.5 reduction'!R166),9))","v":0.99995631600000001},{"$f":"VALUE(FIXED(EXP(S$4*-1*'PM2.5 reduction'!S166),9))","v":0.99995873300000004},{"$f":"VALUE(FIXED(EXP(T$4*-1*'PM2.5 reduction'!T166),9))","v":0.99991912500000002},{"$f":"VALUE(FIXED(EXP(U$4*-1*'PM2.5 reduction'!U166),9))","v":0.99999157000000005},{"$f":"VALUE(FIXED(EXP(V$4*-1*'PM2.5 reduction'!V166),9))","v":0.99996226600000004},{"$f":"VALUE(FIXED(EXP(W$4*-1*'PM2.5 reduction'!W166),9))","v":0.99997161199999995},{"$f":"VALUE(FIXED(EXP(X$4*-1*'PM2.5 reduction'!X166),9))","v":0.99997161199999995},{"$f":"VALUE(FIXED(EXP(Y$4*-1*'PM2.5 reduction'!Y166),9))","v":0.99996922600000004},{"$f":"VALUE(FIXED(EXP(Z$4*-1*'PM2.5 reduction'!Z166),9))","v":0.99993299899999999},{"$f":"VALUE(FIXED(EXP(AA$4*-1*'PM2.5 reduction'!AA166),9))","v":0.99995288000000004},{"$f":"VALUE(FIXED(EXP(AB$4*-1*'PM2.5 reduction'!AB166),9))","v":0.999962252},{"$f":"VALUE(FIXED(EXP(AC$4*-1*'PM2.5 reduction'!AC166),9))","v":0.99994806199999997},{"$f":"VALUE(FIXED(EXP(AD$4*-1*'PM2.5 reduction'!AD166),9))","v":0.99998972100000005},{"$f":"VALUE(FIXED(EXP(AE$4*-1*'PM2.5 reduction'!AE166),9))","v":0.999989024},{"$f":"VALUE(FIXED(EXP(AF$4*-1*'PM2.5 reduction'!AF166),9))","v":0.99997210700000005},{"$f":"VALUE(FIXED(EXP(AG$4*-1*'PM2.5 reduction'!AG166),9))","v":0.999989024},{"$f":"VALUE(FIXED(EXP(AH$4*-1*'PM2.5 reduction'!AH166),9))","v":0.99995928000000001},{"$f":"VALUE(FIXED(EXP(AI$4*-1*'PM2.5 reduction'!AI166),9))","v":0.99994580899999996},{"$f":"VALUE(FIXED(EXP(AJ$4*-1*'PM2.5 reduction'!AJ166),9))","v":0.99997071400000004},{"$f":"VALUE(FIXED(EXP(AK$4*-1*'PM2.5 reduction'!AK166),9))","v":0.99998331900000004},{"$f":"VALUE(FIXED(EXP(AL$4*-1*'PM2.5 reduction'!AL166),9))","v":0.99998380200000003},{"$f":"VALUE(FIXED(EXP(AM$4*-1*'PM2.5 reduction'!AM166),9))","v":0.99995721900000001},{"$f":"VALUE(FIXED(EXP(AN$4*-1*'PM2.5 reduction'!AN166),9))","v":0.99998790100000001},{"$f":"VALUE(FIXED(EXP(AO$4*-1*'PM2.5 reduction'!AO166),9))","v":0.99998790100000001},{"$f":"VALUE(FIXED(EXP(AP$4*-1*'PM2.5 reduction'!AP166),9))","v":0.99998266899999999},{"$f":"VALUE(FIXED(EXP(AQ$4*-1*'PM2.5 reduction'!AQ166),9))","v":0.99996348000000002},{"$f":"VALUE(FIXED(EXP(AR$4*-1*'PM2.5 reduction'!AR166),9))","v":0.999961557},{"$f":"VALUE(FIXED(EXP(AS$4*-1*'PM2.5 reduction'!AS166),9))","v":0.99999080699999998},{"$f":"VALUE(FIXED(EXP(AT$4*-1*'PM2.5 reduction'!AT166),9))","v":1},{"$f":"VALUE(FIXED(EXP(AU$4*-1*'PM2.5 reduction'!AU166),9))","v":1},{"$f":"VALUE(FIXED(EXP(AV$4*-1*'PM2.5 reduction'!AV166),9))","v":0.99997313600000004},{"$f":"VALUE(FIXED(EXP(AW$4*-1*'PM2.5 reduction'!AW166),9))","v":0.99996129600000005},{"$f":"VALUE(FIXED(EXP(AX$4*-1*'PM2.5 reduction'!AX166),9))","v":0.99998261200000005},{"$f":"VALUE(FIXED(EXP(AY$4*-1*'PM2.5 reduction'!AY166),9))","v":0.99997063399999997},{"$f":"VALUE(FIXED(EXP(AZ$4*-1*'PM2.5 reduction'!AZ166),9))","v":0.99996953499999996},{"$f":"VALUE(FIXED(EXP(BA$4*-1*'PM2.5 reduction'!BA166),9))","v":0.99996408199999998},{"$f":"VALUE(FIXED(EXP(BB$4*-1*'PM2.5 reduction'!BB166),9))","v":0.99996890599999999},{"$f":"VALUE(FIXED(EXP(BC$4*-1*'PM2.5 reduction'!BC166),9))","v":0.99999157000000005}]
[null,"Male 60-64",{"$f":"VALUE(FIXED(EXP(C$4*-1*'PM2.5 reduction'!C167),9))","v":0.99993097600000003},{"$f":"VALUE(FIXED(EXP(D$4*-1*'PM2.5 reduction'!D167),9))","v":0.999958499},{"$f":"VALUE(FIXED(EXP(E$4*-1*'PM2.5 reduction'!E167),9))","v":0.99998848299999998},{"$f":"VALUE(FIXED(EXP(F$4*-1*'PM2.5 reduction'!F167),9))","v":0.99998554699999997},{"$f":"VALUE(FIXED(EXP(G$4*-1*'PM2.5 reduction'!G167),9))","v":0.99999406099999999},{"$f":"VALUE(FIXED(EXP(H$4*-1*'PM2.5 reduction'!H167),9))","v":0.99997972400000001},{"$f":"VALUE(FIXED(EXP(I$4*-1*'PM2.5 reduction'!I167),9))","v":0.99999085600000004},{"$f":"VALUE(FIXED(EXP(J$4*-1*'PM2.5 reduction'!J167),9))","v":0.99998166099999997},{"$f":"VALUE(FIXED(EXP(K$4*-1*'PM2.5 reduction'!K167),9))","v":0.99997918699999999},{"$f":"VALUE(FIXED(EXP(L$4*-1*'PM2.5 reduction'!L167),9))","v":0.99998749899999995},{"$f":"VALUE(FIXED(EXP(M$4*-1*'PM2.5 reduction'!M167),9))","v":0.99998749899999995},{"$f":"VALUE(FIXED(EXP(N$4*-1*'PM2.5 reduction'!N167),9))","v":0.99994341900000006},{"$f":"VALUE(FIXED(EXP(O$4*-1*'PM2.5 reduction'!O167),9))","v":0.999982555},{"$f":"VALUE(FIXED(EXP(P$4*-1*'PM2.5 reduction'!P167),9))","v":0.99995200299999998},{"$f":"VALUE(FIXED(EXP(Q$4*-1*'PM2.5 reduction'!Q167),9))","v":0.999975112},{"$f":"VALUE(FIXED(EXP(R$4*-1*'PM2.5 reduction'!R167),9))","v":0.99995664100000003},{"$f":"VALUE(FIXED(EXP(S$4*-1*'PM2.5 reduction'!S167),9))","v":0.99995956100000005},{"$f":"VALUE(FIXED(EXP(T$4*-1*'PM2.5 reduction'!T167),9))","v":0.99992085799999997},{"$f":"VALUE(FIXED(EXP(U$4*-1*'PM2.5 reduction'!U167),9))","v":0.99999171200000003},{"$f":"VALUE(FIXED(EXP(V$4*-1*'PM2.5 reduction'!V167),9))","v":0.99996374799999999},{"$f":"VALUE(FIXED(EXP(W$4*-1*'PM2.5 reduction'!W167),9))","v":0.99997126999999997},{"$f":"VALUE(FIXED(EXP(X$4*-1*'PM2.5 reduction'!X167),9))","v":0.99997126999999997},{"$f":"VALUE(FIXED(EXP(Y$4*-1*'PM2.5 reduction'!Y167),9))","v":0.999970515},{"$f":"VALUE(FIXED(EXP(Z$4*-1*'PM2.5 reduction'!Z167),9))","v":0.99993364200000001},{"$f":"VALUE(FIXED(EXP(AA$4*-1*'PM2.5 reduction'!AA167),9))","v":0.99995303400000002},{"$f":"VALUE(FIXED(EXP(AB$4*-1*'PM2.5 reduction'!AB167),9))","v":0.99996388999999997},{"$f":"VALUE(FIXED(EXP(AC$4*-1*'PM2.5 reduction'!AC167),9))","v":0.99994772499999995},{"$f":"VALUE(FIXED(EXP(AD$4*-1*'PM2.5 reduction'!AD167),9))","v":0.99998958800000004},{"$f":"VALUE(FIXED(EXP(AE$4*-1*'PM2.5 reduction'!AE167),9))","v":0.99998879500000004},{"$f":"VALUE(FIXED(EXP(AF$4*-1*'PM2.5 reduction'!AF167),9))","v":0.99997190800000002},{"$f":"VALUE(FIXED(EXP(AG$4*-1*'PM2.5 reduction'!AG167),9))","v":0.99998879500000004},{"$f":"VALUE(FIXED(EXP(AH$4*-1*'PM2.5 reduction'!AH167),9))","v":0.99995968099999999},{"$f":"VALUE(FIXED(EXP(AI$4*-1*'PM2.5 reduction'!AI167),9))","v":0.99994687000000004},{"$f":"VALUE(FIXED(EXP(AJ$4*-1*'PM2.5 reduction'!AJ167),9))","v":0.99997054399999996},{"$f":"VALUE(FIXED(EXP(AK$4*-1*'PM2.5 reduction'!AK167),9))","v":0.99998413100000005},{"$f":"VALUE(FIXED(EXP(AL$4*-1*'PM2.5 reduction'!AL167),9))","v":0.99998384299999998},{"$f":"VALUE(FIXED(EXP(AM$4*-1*'PM2.5 reduction'!AM167),9))","v":0.99995705300000004},{"$f":"VALUE(FIXED(EXP(AN$4*-1*'PM2.5 reduction'!AN167),9))","v":0.99998799999999999},{"$f":"VALUE(FIXED(EXP(AO$4*-1*'PM2.5 reduction'!AO167),9))","v":0.99998799999999999},{"$f":"VALUE(FIXED(EXP(AP$4*-1*'PM2.5 reduction'!AP167),9))","v":0.99998203799999996},{"$f":"VALUE(FIXED(EXP(AQ$4*-1*'PM2.5 reduction'!AQ167),9))","v":0.99996269400000004},{"$f":"VALUE(FIXED(EXP(AR$4*-1*'PM2.5 reduction'!AR167),9))","v":0.99996267999999999},{"$f":"VALUE(FIXED(EXP(AS$4*-1*'PM2.5 reduction'!AS167),9))","v":0.99999085600000004},{"$f":"VALUE(FIXED(EXP(AT$4*-1*'PM2.5 reduction'!AT167),9))","v":1},{"$f":"VALUE(FIXED(EXP(AU$4*-1*'PM2.5 reduction'!AU167),9))","v":1},{"$f":"VALUE(FIXED(EXP(AV$4*-1*'PM2.5 reduction'!AV167),9))","v":0.99997359699999999},{"$f":"VALUE(FIXED(EXP(AW$4*-1*'PM2.5 reduction'!AW167),9))","v":0.99996222599999995},{"$f":"VALUE(FIXED(EXP(AX$4*-1*'PM2.5 reduction'!AX167),9))","v":0.99998398200000005},{"$f":"VALUE(FIXED(EXP(AY$4*-1*'PM2.5 reduction'!AY167),9))","v":0.99997095800000002},{"$f":"VALUE(FIXED(EXP(AZ$4*-1*'PM2.5 reduction'!AZ167),9))","v":0.99997065299999999},{"$f":"VALUE(FIXED(EXP(BA$4*-1*'PM2.5 reduction'!BA167),9))","v":0.99996377400000003},{"$f":"VALUE(FIXED(EXP(BB$4*-1*'PM2.5 reduction'!BB167),9))","v":0.99996916599999996},{"$f":"VALUE(FIXED(EXP(BC$4*-1*'PM2.5 reduction'!BC167),9))","v":0.99999171200000003}]
[null,"Male 65-69",{"$f":"VALUE(FIXED(EXP(C$4*-1*'PM2.5 reduction'!C168),9))","v":0.99993581399999998},{"$f":"VALUE(FIXED(EXP(D$4*-1*'PM2.5 reduction'!D168),9))","v":0.99996341399999999},{"$f":"VALUE(FIXED(EXP(E$4*-1*'PM2.5 reduction'!E168),9))","v":0.99998849899999998},{"$f":"VALUE(FIXED(EXP(F$4*-1*'PM2.5 reduction'!F168),9))","v":0.999985982},{"$f":"VALUE(FIXED(EXP(G$4*-1*'PM2.5 reduction'!G168),9))","v":0.99999452200000005},{"$f":"VALUE(FIXED(EXP(H$4*-1*'PM2.5 reduction'!H168),9))","v":0.99998003400000002},{"$f":"VALUE(FIXED(EXP(I$4*-1*'PM2.5 reduction'!I168),9))","v":0.99999077700000005},{"$f":"VALUE(FIXED(EXP(J$4*-1*'PM2.5 reduction'!J168),9))","v":0.99998232499999995},{"$f":"VALUE(FIXED(EXP(K$4*-1*'PM2.5 reduction'!K168),9))","v":0.99998083999999998},{"$f":"VALUE(FIXED(EXP(L$4*-1*'PM2.5 reduction'!L168),9))","v":0.99998807000000001},{"$f":"VALUE(FIXED(EXP(M$4*-1*'PM2.5 reduction'!M168),9))","v":0.99998807000000001},{"$f":"VALUE(FIXED(EXP(N$4*-1*'PM2.5 reduction'!N168),9))","v":0.99994353800000002},{"$f":"VALUE(FIXED(EXP(O$4*-1*'PM2.5 reduction'!O168),9))","v":0.999982335},{"$f":"VALUE(FIXED(EXP(P$4*-1*'PM2.5 reduction'!P168),9))","v":0.99995171400000005},{"$f":"VALUE(FIXED(EXP(Q$4*-1*'PM2.5 reduction'!Q168),9))","v":0.99997416800000005},{"$f":"VALUE(FIXED(EXP(R$4*-1*'PM2.5 reduction'!R168),9))","v":0.99995875599999995},{"$f":"VALUE(FIXED(EXP(S$4*-1*'PM2.5 reduction'!S168),9))","v":0.99996204899999996},{"$f":"VALUE(FIXED(EXP(T$4*-1*'PM2.5 reduction'!T168),9))","v":0.99992443900000005},{"$f":"VALUE(FIXED(EXP(U$4*-1*'PM2.5 reduction'!U168),9))","v":0.99999187},{"$f":"VALUE(FIXED(EXP(V$4*-1*'PM2.5 reduction'!V168),9))","v":0.99996299200000005},{"$f":"VALUE(FIXED(EXP(W$4*-1*'PM2.5 reduction'!W168),9))","v":0.99997186699999996},{"$f":"VALUE(FIXED(EXP(X$4*-1*'PM2.5 reduction'!X168),9))","v":0.99997186699999996},{"$f":"VALUE(FIXED(EXP(Y$4*-1*'PM2.5 reduction'!Y168),9))","v":0.99997008499999995},{"$f":"VALUE(FIXED(EXP(Z$4*-1*'PM2.5 reduction'!Z168),9))","v":0.99993331699999999},{"$f":"VALUE(FIXED(EXP(AA$4*-1*'PM2.5 reduction'!AA168),9))","v":0.99995454800000005},{"$f":"VALUE(FIXED(EXP(AB$4*-1*'PM2.5 reduction'!AB168),9))","v":0.99996770099999999},{"$f":"VALUE(FIXED(EXP(AC$4*-1*'PM2.5 reduction'!AC168),9))","v":0.999949533},{"$f":"VALUE(FIXED(EXP(AD$4*-1*'PM2.5 reduction'!AD168),9))","v":0.99999058799999996},{"$f":"VALUE(FIXED(EXP(AE$4*-1*'PM2.5 reduction'!AE168),9))","v":0.999989876},{"$f":"VALUE(FIXED(EXP(AF$4*-1*'PM2.5 reduction'!AF168),9))","v":0.999971787},{"$f":"VALUE(FIXED(EXP(AG$4*-1*'PM2.5 reduction'!AG168),9))","v":0.999989876},{"$f":"VALUE(FIXED(EXP(AH$4*-1*'PM2.5 reduction'!AH168),9))","v":0.999960501},{"$f":"VALUE(FIXED(EXP(AI$4*-1*'PM2.5 reduction'!AI168),9))","v":0.99994956700000004},{"$f":"VALUE(FIXED(EXP(AJ$4*-1*'PM2.5 reduction'!AJ168),9))","v":0.99997076699999998},{"$f":"VALUE(FIXED(EXP(AK$4*-1*'PM2.5 reduction'!AK168),9))","v":0.99998399800000004},{"$f":"VALUE(FIXED(EXP(AL$4*-1*'PM2.5 reduction'!AL168),9))","v":0.99998338600000003},{"$f":"VALUE(FIXED(EXP(AM$4*-1*'PM2.5 reduction'!AM168),9))","v":0.99995857399999999},{"$f":"VALUE(FIXED(EXP(AN$4*-1*'PM2.5 reduction'!AN168),9))","v":0.99998805099999999},{"$f":"VALUE(FIXED(EXP(AO$4*-1*'PM2.5 reduction'!AO168),9))","v":0.99998805099999999},{"$f":"VALUE(FIXED(EXP(AP$4*-1*'PM2.5 reduction'!AP168),9))","v":0.99998266099999999},{"$f":"VALUE(FIXED(EXP(AQ$4*-1*'PM2.5 reduction'!AQ168),9))","v":0.99996343799999998},{"$f":"VALUE(FIXED(EXP(AR$4*-1*'PM2.5 reduction'!AR168),9))","v":0.99996462500000005},{"$f":"VALUE(FIXED(EXP(AS$4*-1*'PM2.5 reduction'!AS168),9))","v":0.99999077700000005},{"$f":"VALUE(FIXED(EXP(AT$4*-1*'PM2.5 reduction'!AT168),9))","v":1},{"$f":"VALUE(FIXED(EXP(AU$4*-1*'PM2.5 reduction'!AU168),9))","v":1},{"$f":"VALUE(FIXED(EXP(AV$4*-1*'PM2.5 reduction'!AV168),9))","v":0.99997433499999999},{"$f":"VALUE(FIXED(EXP(AW$4*-1*'PM2.5 reduction'!AW168),9))","v":0.99996276200000001},{"$f":"VALUE(FIXED(EXP(AX$4*-1*'PM2.5 reduction'!AX168),9))","v":0.99998374800000001},{"$f":"VALUE(FIXED(EXP(AY$4*-1*'PM2.5 reduction'!AY168),9))","v":0.99997149900000004},{"$f":"VALUE(FIXED(EXP(AZ$4*-1*'PM2.5 reduction'!AZ168),9))","v":0.99997112200000005},{"$f":"VALUE(FIXED(EXP(BA$4*-1*'PM2.5 reduction'!BA168),9))","v":0.99996337099999999},{"$f":"VALUE(FIXED(EXP(BB$4*-1*'PM2.5 reduction'!BB168),9))","v":0.99997000800000002},{"$f":"VALUE(FIXED(EXP(BC$4*-1*'PM2.5 reduction'!BC168),9))","v":0.99999187}]
[null,"Male 70-74",{"$f":"VALUE(FIXED(EXP(C$4*-1*'PM2.5 reduction'!C169),9))","v":0.99993701599999996},{"$f":"VALUE(FIXED(EXP(D$4*-1*'PM2.5 reduction'!D169),9))","v":0.99996560300000004},{"$f":"VALUE(FIXED(EXP(E$4*-1*'PM2.5 reduction'!E169),9))","v":0.99998895700000001},{"$f":"VALUE(FIXED(EXP(F$4*-1*'PM2.5 reduction'!F169),9))","v":0.99998617199999995},{"$f":"VALUE(FIXED(EXP(G$4*-1*'PM2.5 reduction'!G169),9))","v":0.99999435800000003},{"$f":"VALUE(FIXED(EXP(H$4*-1*'PM2.5 reduction'!H169),9))","v":0.99997972499999999},{"$f":"VALUE(FIXED(EXP(I$4*-1*'PM2.5 reduction'!I169),9))","v":0.99999072200000005},{"$f":"VALUE(FIXED(EXP(J$4*-1*'PM2.5 reduction'!J169),9))","v":0.99998445599999997},{"$f":"VALUE(FIXED(EXP(K$4*-1*'PM2.5 reduction'!K169),9))","v":0.99998236699999998},{"$f":"VALUE(FIXED(EXP(L$4*-1*'PM2.5 reduction'!L169),9))","v":0.99998784399999996},{"$f":"VALUE(FIXED(EXP(M$4*-1*'PM2.5 reduction'!M169),9))","v":0.99998784399999996},{"$f":"VALUE(FIXED(EXP(N$4*-1*'PM2.5 reduction'!N169),9))","v":0.99994422699999996},{"$f":"VALUE(FIXED(EXP(O$4*-1*'PM2.5 reduction'!O169),9))","v":0.99998126700000001},{"$f":"VALUE(FIXED(EXP(P$4*-1*'PM2.5 reduction'!P169),9))","v":0.99994995200000003},{"$f":"VALUE(FIXED(EXP(Q$4*-1*'PM2.5 reduction'!Q169),9))","v":0.99997510300000003},{"$f":"VALUE(FIXED(EXP(R$4*-1*'PM2.5 reduction'!R169),9))","v":0.99995857200000005},{"$f":"VALUE(FIXED(EXP(S$4*-1*'PM2.5 reduction'!S169),9))","v":0.99996425799999999},{"$f":"VALUE(FIXED(EXP(T$4*-1*'PM2.5 reduction'!T169),9))","v":0.99992388099999996},{"$f":"VALUE(FIXED(EXP(U$4*-1*'PM2.5 reduction'!U169),9))","v":0.99999134899999997},{"$f":"VALUE(FIXED(EXP(V$4*-1*'PM2.5 reduction'!V169),9))","v":0.99996127899999998},{"$f":"VALUE(FIXED(EXP(W$4*-1*'PM2.5 reduction'!W169),9))","v":0.99997196799999999},{"$f":"VALUE(FIXED(EXP(X$4*-1*'PM2.5 reduction'!X169),9))","v":0.99997196799999999},{"$f":"VALUE(FIXED(EXP(Y$4*-1*'PM2.5 reduction'!Y169),9))","v":0.99996949700000004},{"$f":"VALUE(FIXED(EXP(Z$4*-1*'PM2.5 reduction'!Z169),9))","v":0.99993407599999995},{"$f":"VALUE(FIXED(EXP(AA$4*-1*'PM2.5 reduction'!AA169),9))","v":0.99995522100000001},{"$f":"VALUE(FIXED(EXP(AB$4*-1*'PM2.5 reduction'!AB169),9))","v":0.99996949199999996},{"$f":"VALUE(FIXED(EXP(AC$4*-1*'PM2.5 reduction'!AC169),9))","v":0.99995072100000004},{"$f":"VALUE(FIXED(EXP(AD$4*-1*'PM2.5 reduction'!AD169),9))","v":0.99999036399999996},{"$f":"VALUE(FIXED(EXP(AE$4*-1*'PM2.5 reduction'!AE169),9))","v":0.99998967999999999},{"$f":"VALUE(FIXED(EXP(AF$4*-1*'PM2.5 reduction'!AF169),9))","v":0.99997165700000001},{"$f":"VALUE(FIXED(EXP(AG$4*-1*'PM2.5 reduction'!AG169),9))","v":0.99998967999999999},{"$f":"VALUE(FIXED(EXP(AH$4*-1*'PM2.5 reduction'!AH169),9))","v":0.99996074099999999},{"$f":"VALUE(FIXED(EXP(AI$4*-1*'PM2.5 reduction'!AI169),9))","v":0.99995253100000003},{"$f":"VALUE(FIXED(EXP(AJ$4*-1*'PM2.5 reduction'!AJ169),9))","v":0.99997114499999995},{"$f":"VALUE(FIXED(EXP(AK$4*-1*'PM2.5 reduction'!AK169),9))","v":0.99998381700000005},{"$f":"VALUE(FIXED(EXP(AL$4*-1*'PM2.5 reduction'!AL169),9))","v":0.99998335599999999},{"$f":"VALUE(FIXED(EXP(AM$4*-1*'PM2.5 reduction'!AM169),9))","v":0.99995906000000001},{"$f":"VALUE(FIXED(EXP(AN$4*-1*'PM2.5 reduction'!AN169),9))","v":0.99998823100000001},{"$f":"VALUE(FIXED(EXP(AO$4*-1*'PM2.5 reduction'!AO169),9))","v":0.99998823100000001},{"$f":"VALUE(FIXED(EXP(AP$4*-1*'PM2.5 reduction'!AP169),9))","v":0.99998311500000003},{"$f":"VALUE(FIXED(EXP(AQ$4*-1*'PM2.5 reduction'!AQ169),9))","v":0.99996490800000004},{"$f":"VALUE(FIXED(EXP(AR$4*-1*'PM2.5 reduction'!AR169),9))","v":0.99996573},{"$f":"VALUE(FIXED(EXP(AS$4*-1*'PM2.5 reduction'!AS169),9))","v":0.99999072200000005},{"$f":"VALUE(FIXED(EXP(AT$4*-1*'PM2.5 reduction'!AT169),9))","v":1},{"$f":"VALUE(FIXED(EXP(AU$4*-1*'PM2.5 reduction'!AU169),9))","v":1},{"$f":"VALUE(FIXED(EXP(AV$4*-1*'PM2.5 reduction'!AV169),9))","v":0.999974845},{"$f":"VALUE(FIXED(EXP(AW$4*-1*'PM2.5 reduction'!AW169),9))","v":0.99996260299999995},{"$f":"VALUE(FIXED(EXP(AX$4*-1*'PM2.5 reduction'!AX169),9))","v":0.99998646800000002},{"$f":"VALUE(FIXED(EXP(AY$4*-1*'PM2.5 reduction'!AY169),9))","v":0.99997196399999999},{"$f":"VALUE(FIXED(EXP(AZ$4*-1*'PM2.5 reduction'!AZ169),9))","v":0.99997196099999996},{"$f":"VALUE(FIXED(EXP(BA$4*-1*'PM2.5 reduction'!BA169),9))","v":0.99996193899999997},{"$f":"VALUE(FIXED(EXP(BB$4*-1*'PM2.5 reduction'!BB169),9))","v":0.99997034500000004},{"$f":"VALUE(FIXED(EXP(BC$4*-1*'PM2.5 reduction'!BC169),9))","v":0.99999134899999997}]
[null,"Male 75-79",{"$f":"VALUE(FIXED(EXP(C$4*-1*'PM2.5 reduction'!C170),9))","v":0.99994466000000004},{"$f":"VALUE(FIXED(EXP(D$4*-1*'PM2.5 reduction'!D170),9))","v":0.99996735800000003},{"$f":"VALUE(FIXED(EXP(E$4*-1*'PM2.5 reduction'!E170),9))","v":0.99998874299999996},{"$f":"VALUE(FIXED(EXP(F$4*-1*'PM2.5 reduction'!F170),9))","v":0.99998626899999998},{"$f":"VALUE(FIXED(EXP(G$4*-1*'PM2.5 reduction'!G170),9))","v":0.99999428899999998},{"$f":"VALUE(FIXED(EXP(H$4*-1*'PM2.5 reduction'!H170),9))","v":0.99997855999999996},{"$f":"VALUE(FIXED(EXP(I$4*-1*'PM2.5 reduction'!I170),9))","v":0.99999085499999996},{"$f":"VALUE(FIXED(EXP(J$4*-1*'PM2.5 reduction'!J170),9))","v":0.99998284000000004},{"$f":"VALUE(FIXED(EXP(K$4*-1*'PM2.5 reduction'!K170),9))","v":0.99997859700000002},{"$f":"VALUE(FIXED(EXP(L$4*-1*'PM2.5 reduction'!L170),9))","v":0.99998888600000002},{"$f":"VALUE(FIXED(EXP(M$4*-1*'PM2.5 reduction'!M170),9))","v":0.99998888600000002},{"$f":"VALUE(FIXED(EXP(N$4*-1*'PM2.5 reduction'!N170),9))","v":0.99994416399999997},{"$f":"VALUE(FIXED(EXP(O$4*-1*'PM2.5 reduction'!O170),9))","v":0.99997996300000003},{"$f":"VALUE(FIXED(EXP(P$4*-1*'PM2.5 reduction'!P170),9))","v":0.99995323000000003},{"$f":"VALUE(FIXED(EXP(Q$4*-1*'PM2.5 reduction'!Q170),9))","v":0.99997735399999998},{"$f":"VALUE(FIXED(EXP(R$4*-1*'PM2.5 reduction'!R170),9))","v":0.99995816599999998},{"$f":"VALUE(FIXED(EXP(S$4*-1*'PM2.5 reduction'!S170),9))","v":0.99996465700000003},{"$f":"VALUE(FIXED(EXP(T$4*-1*'PM2.5 reduction'!T170),9))","v":0.99992662700000001},{"$f":"VALUE(FIXED(EXP(U$4*-1*'PM2.5 reduction'!U170),9))","v":0.99999138799999998},{"$f":"VALUE(FIXED(EXP(V$4*-1*'PM2.5 reduction'!V170),9))","v":0.99996083099999999},{"$f":"VALUE(FIXED(EXP(W$4*-1*'PM2.5 reduction'!W170),9))","v":0.99997229700000001},{"$f":"VALUE(FIXED(EXP(X$4*-1*'PM2.5 reduction'!X170),9))","v":0.99997229700000001},{"$f":"VALUE(FIXED(EXP(Y$4*-1*'PM2.5 reduction'!Y170),9))","v":0.99996905400000002},{"$f":"VALUE(FIXED(EXP(Z$4*-1*'PM2.5 reduction'!Z170),9))","v":0.99993153700000004},{"$f":"VALUE(FIXED(EXP(AA$4*-1*'PM2.5 reduction'!AA170),9))","v":0.99995418700000005},{"$f":"VALUE(FIXED(EXP(AB$4*-1*'PM2.5 reduction'!AB170),9))","v":0.99997124900000001},{"$f":"VALUE(FIXED(EXP(AC$4*-1*'PM2.5 reduction'!AC170),9))","v":0.99994907099999997},{"$f":"VALUE(FIXED(EXP(AD$4*-1*'PM2.5 reduction'!AD170),9))","v":0.99998967100000002},{"$f":"VALUE(FIXED(EXP(AE$4*-1*'PM2.5 reduction'!AE170),9))","v":0.99998889400000002},{"$f":"VALUE(FIXED(EXP(AF$4*-1*'PM2.5 reduction'!AF170),9))","v":0.99997150000000001},{"$f":"VALUE(FIXED(EXP(AG$4*-1*'PM2.5 reduction'!AG170),9))","v":0.99998889400000002},{"$f":"VALUE(FIXED(EXP(AH$4*-1*'PM2.5 reduction'!AH170),9))","v":0.99995973400000004},{"$f":"VALUE(FIXED(EXP(AI$4*-1*'PM2.5 reduction'!AI170),9))","v":0.99995292700000005},{"$f":"VALUE(FIXED(EXP(AJ$4*-1*'PM2.5 reduction'!AJ170),9))","v":0.99997128300000004},{"$f":"VALUE(FIXED(EXP(AK$4*-1*'PM2.5 reduction'!AK170),9))","v":0.99998316399999998},{"$f":"VALUE(FIXED(EXP(AL$4*-1*'PM2.5 reduction'!AL170),9))","v":0.99998348400000003},{"$f":"VALUE(FIXED(EXP(AM$4*-1*'PM2.5 reduction'!AM170),9))","v":0.99995720399999999},{"$f":"VALUE(FIXED(EXP(AN$4*-1*'PM2.5 reduction'!AN170),9))","v":0.99998844899999995},{"$f":"VALUE(FIXED(EXP(AO$4*-1*'PM2.5 reduction'!AO170),9))","v":0.99998844899999995},{"$f":"VALUE(FIXED(EXP(AP$4*-1*'PM2.5 reduction'!AP170),9))","v":0.999985758},{"$f":"VALUE(FIXED(EXP(AQ$4*-1*'PM2.5 reduction'!AQ170),9))","v":0.99996405700000002},{"$f":"VALUE(FIXED(EXP(AR$4*-1*'PM2.5 reduction'!AR170),9))","v":0.99996563400000005},{"$f":"VALUE(FIXED(EXP(AS$4*-1*'PM2.5 reduction'!AS170),9))","v":0.99999085499999996},{"$f":"VALUE(FIXED(EXP(AT$4*-1*'PM2.5 reduction'!AT170),9))","v":1},{"$f":"VALUE(FIXED(EXP(AU$4*-1*'PM2.5 reduction'!AU170),9))","v":1},{"$f":"VALUE(FIXED(EXP(AV$4*-1*'PM2.5 reduction'!AV170),9))","v":0.99997299699999997},{"$f":"VALUE(FIXED(EXP(AW$4*-1*'PM2.5 reduction'!AW170),9))","v":0.99996210600000002},{"$f":"VALUE(FIXED(EXP(AX$4*-1*'PM2.5 reduction'!AX170),9))","v":0.99998623499999995},{"$f":"VALUE(FIXED(EXP(AY$4*-1*'PM2.5 reduction'!AY170),9))","v":0.99997201099999999},{"$f":"VALUE(FIXED(EXP(AZ$4*-1*'PM2.5 reduction'!AZ170),9))","v":0.999971728},{"$f":"VALUE(FIXED(EXP(BA$4*-1*'PM2.5 reduction'!BA170),9))","v":0.99996246300000002},{"$f":"VALUE(FIXED(EXP(BB$4*-1*'PM2.5 reduction'!BB170),9))","v":0.99997019099999995},{"$f":"VALUE(FIXED(EXP(BC$4*-1*'PM2.5 reduction'!BC170),9))","v":0.99999138799999998}]
[null,"Male 80-84",{"$f":"VALUE(FIXED(EXP(C$4*-1*'PM2.5 reduction'!C171),9))","v":0.99994405399999997},{"$f":"VALUE(FIXED(EXP(D$4*-1*'PM2.5 reduction'!D171),9))","v":0.99996602300000004},{"$f":"VALUE(FIXED(EXP(E$4*-1*'PM2.5 reduction'!E171),9))","v":0.99998790800000004},{"$f":"VALUE(FIXED(EXP(F$4*-1*'PM2.5 reduction'!F171),9))","v":0.99998603100000005},{"$f":"VALUE(FIXED(EXP(G$4*-1*'PM2.5 reduction'!G171),9))","v":0.99999537500000002},{"$f":"VALUE(FIXED(EXP(H$4*-1*'PM2.5 reduction'!H171),9))","v":0.999980117},{"$f":"VALUE(FIXED(EXP(I$4*-1*'PM2.5 reduction'!I171),9))","v":0.99999064199999999},{"$f":"VALUE(FIXED(EXP(J$4*-1*'PM2.5 reduction'!J171),9))","v":0.99998376700000002},{"$f":"VALUE(FIXED(EXP(K$4*-1*'PM2.5 reduction'!K171),9))","v":0.99997855599999996},{"$f":"VALUE(FIXED(EXP(L$4*-1*'PM2.5 reduction'!L171),9))","v":0.99998873700000002},{"$f":"VALUE(FIXED(EXP(M$4*-1*'PM2.5 reduction'!M171),9))","v":0.99998873700000002},{"$f":"VALUE(FIXED(EXP(N$4*-1*'PM2.5 reduction'!N171),9))","v":0.99994303200000001},{"$f":"VALUE(FIXED(EXP(O$4*-1*'PM2.5 reduction'!O171),9))","v":0.99998291900000003},{"$f":"VALUE(FIXED(EXP(P$4*-1*'PM2.5 reduction'!P171),9))","v":0.99995162500000001},{"$f":"VALUE(FIXED(EXP(Q$4*-1*'PM2.5 reduction'!Q171),9))","v":0.99997754699999997},{"$f":"VALUE(FIXED(EXP(R$4*-1*'PM2.5 reduction'!R171),9))","v":0.999959296},{"$f":"VALUE(FIXED(EXP(S$4*-1*'PM2.5 reduction'!S171),9))","v":0.99996307399999995},{"$f":"VALUE(FIXED(EXP(T$4*-1*'PM2.5 reduction'!T171),9))","v":0.99992817700000003},{"$f":"VALUE(FIXED(EXP(U$4*-1*'PM2.5 reduction'!U171),9))","v":0.99999136899999996},{"$f":"VALUE(FIXED(EXP(V$4*-1*'PM2.5 reduction'!V171),9))","v":0.99996101699999995},{"$f":"VALUE(FIXED(EXP(W$4*-1*'PM2.5 reduction'!W171),9))","v":0.99997160900000004},{"$f":"VALUE(FIXED(EXP(X$4*-1*'PM2.5 reduction'!X171),9))","v":0.99997160900000004},{"$f":"VALUE(FIXED(EXP(Y$4*-1*'PM2.5 reduction'!Y171),9))","v":0.999970676},{"$f":"VALUE(FIXED(EXP(Z$4*-1*'PM2.5 reduction'!Z171),9))","v":0.99993336799999999},{"$f":"VALUE(FIXED(EXP(AA$4*-1*'PM2.5 reduction'!AA171),9))","v":0.99995454500000003},{"$f":"VALUE(FIXED(EXP(AB$4*-1*'PM2.5 reduction'!AB171),9))","v":0.99996968100000005},{"$f":"VALUE(FIXED(EXP(AC$4*-1*'PM2.5 reduction'!AC171),9))","v":0.99995000099999998},{"$f":"VALUE(FIXED(EXP(AD$4*-1*'PM2.5 reduction'!AD171),9))","v":0.99999075999999998},{"$f":"VALUE(FIXED(EXP(AE$4*-1*'PM2.5 reduction'!AE171),9))","v":0.99998971699999994},{"$f":"VALUE(FIXED(EXP(AF$4*-1*'PM2.5 reduction'!AF171),9))","v":0.99997101300000002},{"$f":"VALUE(FIXED(EXP(AG$4*-1*'PM2.5 reduction'!AG171),9))","v":0.99998971699999994},{"$f":"VALUE(FIXED(EXP(AH$4*-1*'PM2.5 reduction'!AH171),9))","v":0.99996006299999995},{"$f":"VALUE(FIXED(EXP(AI$4*-1*'PM2.5 reduction'!AI171),9))","v":0.99995114299999999},{"$f":"VALUE(FIXED(EXP(AJ$4*-1*'PM2.5 reduction'!AJ171),9))","v":0.99996996900000001},{"$f":"VALUE(FIXED(EXP(AK$4*-1*'PM2.5 reduction'!AK171),9))","v":0.99998285200000003},{"$f":"VALUE(FIXED(EXP(AL$4*-1*'PM2.5 reduction'!AL171),9))","v":0.999983552},{"$f":"VALUE(FIXED(EXP(AM$4*-1*'PM2.5 reduction'!AM171),9))","v":0.99995917599999995},{"$f":"VALUE(FIXED(EXP(AN$4*-1*'PM2.5 reduction'!AN171),9))","v":0.99998861400000005},{"$f":"VALUE(FIXED(EXP(AO$4*-1*'PM2.5 reduction'!AO171),9))","v":0.99998861400000005},{"$f":"VALUE(FIXED(EXP(AP$4*-1*'PM2.5 reduction'!AP171),9))","v":0.99998234900000005},{"$f":"VALUE(FIXED(EXP(AQ$4*-1*'PM2.5 reduction'!AQ171),9))","v":0.99996410499999999},{"$f":"VALUE(FIXED(EXP(AR$4*-1*'PM2.5 reduction'!AR171),9))","v":0.99996532100000002},{"$f":"VALUE(FIXED(EXP(AS$4*-1*'PM2.5 reduction'!AS171),9))","v":0.99999064199999999},{"$f":"VALUE(FIXED(EXP(AT$4*-1*'PM2.5 reduction'!AT171),9))","v":1},{"$f":"VALUE(FIXED(EXP(AU$4*-1*'PM2.5 reduction'!AU171),9))","v":1},{"$f":"VALUE(FIXED(EXP(AV$4*-1*'PM2.5 reduction'!AV171),9))","v":0.99997378599999998},{"$f":"VALUE(FIXED(EXP(AW$4*-1*'PM2.5 reduction'!AW171),9))","v":0.99996084200000002},{"$f":"VALUE(FIXED(EXP(AX$4*-1*'PM2.5 reduction'!AX171),9))","v":0.99998689299999999},{"$f":"VALUE(FIXED(EXP(AY$4*-1*'PM2.5 reduction'!AY171),9))","v":0.99997086300000004},{"$f":"VALUE(FIXED(EXP(AZ$4*-1*'PM2.5 reduction'!AZ171),9))","v":0.99997017600000004},{"$f":"VALUE(FIXED(EXP(BA$4*-1*'PM2.5 reduction'!BA171),9))","v":0.99996248899999995},{"$f":"VALUE(FIXED(EXP(BB$4*-1*'PM2.5 reduction'!BB171),9))","v":0.99997140100000004},{"$f":"VALUE(FIXED(EXP(BC$4*-1*'PM2.5 reduction'!BC171),9))","v":0.99999136899999996}]
[null,"Male 85-89",{"$f":"VALUE(FIXED(EXP(C$4*-1*'PM2.5 reduction'!C172),9))","v":0.99993728800000004},{"$f":"VALUE(FIXED(EXP(D$4*-1*'PM2.5 reduction'!D172),9))","v":0.999963771},{"$f":"VALUE(FIXED(EXP(E$4*-1*'PM2.5 reduction'!E172),9))","v":0.99998845999999997},{"$f":"VALUE(FIXED(EXP(F$4*-1*'PM2.5 reduction'!F172),9))","v":0.99998477600000002},{"$f":"VALUE(FIXED(EXP(G$4*-1*'PM2.5 reduction'!G172),9))","v":0.99999594400000003},{"$f":"VALUE(FIXED(EXP(H$4*-1*'PM2.5 reduction'!H172),9))","v":0.99997948000000003},{"$f":"VALUE(FIXED(EXP(I$4*-1*'PM2.5 reduction'!I172),9))","v":0.99999104500000002},{"$f":"VALUE(FIXED(EXP(J$4*-1*'PM2.5 reduction'!J172),9))","v":0.999984443},{"$f":"VALUE(FIXED(EXP(K$4*-1*'PM2.5 reduction'!K172),9))","v":0.99998011899999995},{"$f":"VALUE(FIXED(EXP(L$4*-1*'PM2.5 reduction'!L172),9))","v":0.99998919600000002},{"$f":"VALUE(FIXED(EXP(M$4*-1*'PM2.5 reduction'!M172),9))","v":0.99998919600000002},{"$f":"VALUE(FIXED(EXP(N$4*-1*'PM2.5 reduction'!N172),9))","v":0.99994266499999995},{"$f":"VALUE(FIXED(EXP(O$4*-1*'PM2.5 reduction'!O172),9))","v":0.99998201200000003},{"$f":"VALUE(FIXED(EXP(P$4*-1*'PM2.5 reduction'!P172),9))","v":0.99995128799999999},{"$f":"VALUE(FIXED(EXP(Q$4*-1*'PM2.5 reduction'!Q172),9))","v":0.99997696800000002},{"$f":"VALUE(FIXED(EXP(R$4*-1*'PM2.5 reduction'!R172),9))","v":0.99995622900000003},{"$f":"VALUE(FIXED(EXP(S$4*-1*'PM2.5 reduction'!S172),9))","v":0.99996251199999997},{"$f":"VALUE(FIXED(EXP(T$4*-1*'PM2.5 reduction'!T172),9))","v":0.99992524900000002},{"$f":"VALUE(FIXED(EXP(U$4*-1*'PM2.5 reduction'!U172),9))","v":0.99999094700000002},{"$f":"VALUE(FIXED(EXP(V$4*-1*'PM2.5 reduction'!V172),9))","v":0.99996154199999998},{"$f":"VALUE(FIXED(EXP(W$4*-1*'PM2.5 reduction'!W172),9))","v":0.99997133999999999},{"$f":"VALUE(FIXED(EXP(X$4*-1*'PM2.5 reduction'!X172),9))","v":0.99997133999999999},{"$f":"VALUE(FIXED(EXP(Y$4*-1*'PM2.5 reduction'!Y172),9))","v":0.99996954900000001},{"$f":"VALUE(FIXED(EXP(Z$4*-1*'PM2.5 reduction'!Z172),9))","v":0.99993227799999995},{"$f":"VALUE(FIXED(EXP(AA$4*-1*'PM2.5 reduction'!AA172),9))","v":0.99995435899999996},{"$f":"VALUE(FIXED(EXP(AB$4*-1*'PM2.5 reduction'!AB172),9))","v":0.99996799700000005},{"$f":"VALUE(FIXED(EXP(AC$4*-1*'PM2.5 reduction'!AC172),9))","v":0.99995057899999995},{"$f":"VALUE(FIXED(EXP(AD$4*-1*'PM2.5 reduction'!AD172),9))","v":0.99999090599999996},{"$f":"VALUE(FIXED(EXP(AE$4*-1*'PM2.5 reduction'!AE172),9))","v":0.99999006599999996},{"$f":"VALUE(FIXED(EXP(AF$4*-1*'PM2.5 reduction'!AF172),9))","v":0.99997023699999998},{"$f":"VALUE(FIXED(EXP(AG$4*-1*'PM2.5 reduction'!AG172),9))","v":0.99999006599999996},{"$f":"VALUE(FIXED(EXP(AH$4*-1*'PM2.5 reduction'!AH172),9))","v":0.99995891199999998},{"$f":"VALUE(FIXED(EXP(AI$4*-1*'PM2.5 reduction'!AI172),9))","v":0.99994980700000002},{"$f":"VALUE(FIXED(EXP(AJ$4*-1*'PM2.5 reduction'!AJ172),9))","v":0.99997255200000001},{"$f":"VALUE(FIXED(EXP(AK$4*-1*'PM2.5 reduction'!AK172),9))","v":0.99998050900000002},{"$f":"VALUE(FIXED(EXP(AL$4*-1*'PM2.5 reduction'!AL172),9))","v":0.999983654},{"$f":"VALUE(FIXED(EXP(AM$4*-1*'PM2.5 reduction'!AM172),9))","v":0.99995754299999995},{"$f":"VALUE(FIXED(EXP(AN$4*-1*'PM2.5 reduction'!AN172),9))","v":0.99998813399999997},{"$f":"VALUE(FIXED(EXP(AO$4*-1*'PM2.5 reduction'!AO172),9))","v":0.99998813399999997},{"$f":"VALUE(FIXED(EXP(AP$4*-1*'PM2.5 reduction'!AP172),9))","v":0.99998337900000001},{"$f":"VALUE(FIXED(EXP(AQ$4*-1*'PM2.5 reduction'!AQ172),9))","v":0.99996289900000002},{"$f":"VALUE(FIXED(EXP(AR$4*-1*'PM2.5 reduction'!AR172),9))","v":0.99996455900000003},{"$f":"VALUE(FIXED(EXP(AS$4*-1*'PM2.5 reduction'!AS172),9))","v":0.99999104500000002},{"$f":"VALUE(FIXED(EXP(AT$4*-1*'PM2.5 reduction'!AT172),9))","v":1},{"$f":"VALUE(FIXED(EXP(AU$4*-1*'PM2.5 reduction'!AU172),9))","v":1},{"$f":"VALUE(FIXED(EXP(AV$4*-1*'PM2.5 reduction'!AV172),9))","v":0.99997344300000002},{"$f":"VALUE(FIXED(EXP(AW$4*-1*'PM2.5 reduction'!AW172),9))","v":0.99995998799999997},{"$f":"VALUE(FIXED(EXP(AX$4*-1*'PM2.5 reduction'!AX172),9))","v":0.99998757500000002},{"$f":"VALUE(FIXED(EXP(AY$4*-1*'PM2.5 reduction'!AY172),9))","v":0.999969475},{"$f":"VALUE(FIXED(EXP(AZ$4*-1*'PM2.5 reduction'!AZ172),9))","v":0.99996801199999996},{"$f":"VALUE(FIXED(EXP(BA$4*-1*'PM2.5 reduction'!BA172),9))","v":0.99996389500000005},{"$f":"VALUE(FIXED(EXP(BB$4*-1*'PM2.5 reduction'!BB172),9))","v":0.99996858200000005},{"$f":"VALUE(FIXED(EXP(BC$4*-1*'PM2.5 reduction'!BC172),9))","v":0.99999094700000002}]
[null,"Male 90+",{"$f":"VALUE(FIXED(EXP(C$4*-1*'PM2.5 reduction'!C173),9))","v":0.99994334200000001},{"$f":"VALUE(FIXED(EXP(D$4*-1*'PM2.5 reduction'!D173),9))","v":0.99996764800000004},{"$f":"VALUE(FIXED(EXP(E$4*-1*'PM2.5 reduction'!E173),9))","v":0.99998848299999998},{"$f":"VALUE(FIXED(EXP(F$4*-1*'PM2.5 reduction'!F173),9))","v":0.99998488299999999},{"$f":"VALUE(FIXED(EXP(G$4*-1*'PM2.5 reduction'!G173),9))","v":0.99999552300000005},{"$f":"VALUE(FIXED(EXP(H$4*-1*'PM2.5 reduction'!H173),9))","v":0.99997910800000001},{"$f":"VALUE(FIXED(EXP(I$4*-1*'PM2.5 reduction'!I173),9))","v":0.99999105799999999},{"$f":"VALUE(FIXED(EXP(J$4*-1*'PM2.5 reduction'!J173),9))","v":0.99998176299999997},{"$f":"VALUE(FIXED(EXP(K$4*-1*'PM2.5 reduction'!K173),9))","v":0.99997631300000001},{"$f":"VALUE(FIXED(EXP(L$4*-1*'PM2.5 reduction'!L173),9))","v":0.99998825199999997},{"$f":"VALUE(FIXED(EXP(M$4*-1*'PM2.5 reduction'!M173),9))","v":0.99998825199999997},{"$f":"VALUE(FIXED(EXP(N$4*-1*'PM2.5 reduction'!N173),9))","v":0.99994798399999996},{"$f":"VALUE(FIXED(EXP(O$4*-1*'PM2.5 reduction'!O173),9))","v":0.99998105299999995},{"$f":"VALUE(FIXED(EXP(P$4*-1*'PM2.5 reduction'!P173),9))","v":0.99995334199999997},{"$f":"VALUE(FIXED(EXP(Q$4*-1*'PM2.5 reduction'!Q173),9))","v":0.99997887500000004},{"$f":"VALUE(FIXED(EXP(R$4*-1*'PM2.5 reduction'!R173),9))","v":0.99995559899999997},{"$f":"VALUE(FIXED(EXP(S$4*-1*'PM2.5 reduction'!S173),9))","v":0.99996191499999998},{"$f":"VALUE(FIXED(EXP(T$4*-1*'PM2.5 reduction'!T173),9))","v":0.99992276899999999},{"$f":"VALUE(FIXED(EXP(U$4*-1*'PM2.5 reduction'!U173),9))","v":0.99999076600000003},{"$f":"VALUE(FIXED(EXP(V$4*-1*'PM2.5 reduction'!V173),9))","v":0.999963359},{"$f":"VALUE(FIXED(EXP(W$4*-1*'PM2.5 reduction'!W173),9))","v":0.99997283199999998},{"$f":"VALUE(FIXED(EXP(X$4*-1*'PM2.5 reduction'!X173),9))","v":0.99997283199999998},{"$f":"VALUE(FIXED(EXP(Y$4*-1*'PM2.5 reduction'!Y173),9))","v":0.99997019499999995},{"$f":"VALUE(FIXED(EXP(Z$4*-1*'PM2.5 reduction'!Z173),9))","v":0.99993541900000005},{"$f":"VALUE(FIXED(EXP(AA$4*-1*'PM2.5 reduction'!AA173),9))","v":0.999954593},{"$f":"VALUE(FIXED(EXP(AB$4*-1*'PM2.5 reduction'!AB173),9))","v":0.99997118799999996},{"$f":"VALUE(FIXED(EXP(AC$4*-1*'PM2.5 reduction'!AC173),9))","v":0.99995011199999995},{"$f":"VALUE(FIXED(EXP(AD$4*-1*'PM2.5 reduction'!AD173),9))","v":0.99999049299999998},{"$f":"VALUE(FIXED(EXP(AE$4*-1*'PM2.5 reduction'!AE173),9))","v":0.99998912100000004},{"$f":"VALUE(FIXED(EXP(AF$4*-1*'PM2.5 reduction'!AF173),9))","v":0.99996980700000004},{"$f":"VALUE(FIXED(EXP(AG$4*-1*'PM2.5 reduction'!AG173),9))","v":0.99998912100000004},{"$f":"VALUE(FIXED(EXP(AH$4*-1*'PM2.5 reduction'!AH173),9))","v":0.999960615},{"$f":"VALUE(FIXED(EXP(AI$4*-1*'PM2.5 reduction'!AI173),9))","v":0.99994859700000005},{"$f":"VALUE(FIXED(EXP(AJ$4*-1*'PM2.5 reduction'!AJ173),9))","v":0.99996808500000001},{"$f":"VALUE(FIXED(EXP(AK$4*-1*'PM2.5 reduction'!AK173),9))","v":0.99998113799999999},{"$f":"VALUE(FIXED(EXP(AL$4*-1*'PM2.5 reduction'!AL173),9))","v":0.99998271900000002},{"$f":"VALUE(FIXED(EXP(AM$4*-1*'PM2.5 reduction'!AM173),9))","v":0.99995693699999999},{"$f":"VALUE(FIXED(EXP(AN$4*-1*'PM2.5 reduction'!AN173),9))","v":0.99998936199999999},{"$f":"VALUE(FIXED(EXP(AO$4*-1*'PM2.5 reduction'!AO173),9))","v":0.99998936199999999},{"$f":"VALUE(FIXED(EXP(AP$4*-1*'PM2.5 reduction'!AP173),9))","v":0.99998332599999995},{"$f":"VALUE(FIXED(EXP(AQ$4*-1*'PM2.5 reduction'!AQ173),9))","v":0.99996153799999998},{"$f":"VALUE(FIXED(EXP(AR$4*-1*'PM2.5 reduction'!AR173),9))","v":0.99996508799999995},{"$f":"VALUE(FIXED(EXP(AS$4*-1*'PM2.5 reduction'!AS173),9))","v":0.99999105799999999},{"$f":"VALUE(FIXED(EXP(AT$4*-1*'PM2.5 reduction'!AT173),9))","v":1},{"$f":"VALUE(FIXED(EXP(AU$4*-1*'PM2.5 reduction'!AU173),9))","v":1},{"$f":"VALUE(FIXED(EXP(AV$4*-1*'PM2.5 reduction'!AV173),9))","v":0.99997110199999995},{"$f":"VALUE(FIXED(EXP(AW$4*-1*'PM2.5 reduction'!AW173),9))","v":0.99996310099999997},{"$f":"VALUE(FIXED(EXP(AX$4*-1*'PM2.5 reduction'!AX173),9))","v":0.99998919600000002},{"$f":"VALUE(FIXED(EXP(AY$4*-1*'PM2.5 reduction'!AY173),9))","v":0.99997259500000002},{"$f":"VALUE(FIXED(EXP(AZ$4*-1*'PM2.5 reduction'!AZ173),9))","v":0.99997243099999999},{"$f":"VALUE(FIXED(EXP(BA$4*-1*'PM2.5 reduction'!BA173),9))","v":0.99996116499999999},{"$f":"VALUE(FIXED(EXP(BB$4*-1*'PM2.5 reduction'!BB173),9))","v":0.99996999600000003},{"$f":"VALUE(FIXED(EXP(BC$4*-1*'PM2.5 reduction'!BC173),9))","v":0.99999076600000003}]
["SIMD Q4","Female 0-4",{"$f":"VALUE(FIXED(EXP(C$4*-1*'PM2.5 reduction'!C174),9))","v":0.99993685099999996},{"$f":"VALUE(FIXED(EXP(D$4*-1*'PM2.5 reduction'!D174),9))","v":0.99996039400000003},{"$f":"VALUE(FIXED(EXP(E$4*-1*'PM2.5 reduction'!E174),9))","v":0.99998807700000003},{"$f":"VALUE(FIXED(EXP(F$4*-1*'PM2.5 reduction'!F174),9))","v":0.99998662599999999},{"$f":"VALUE(FIXED(EXP(G$4*-1*'PM2.5 reduction'!G174),9))","v":0.99998298900000004},{"$f":"VALUE(FIXED(EXP(H$4*-1*'PM2.5 reduction'!H174),9))","v":0.99997635200000001},{"$f":"VALUE(FIXED(EXP(I$4*-1*'PM2.5 reduction'!I174),9))","v":0.99999231200000005},{"$f":"VALUE(FIXED(EXP(J$4*-1*'PM2.5 reduction'!J174),9))","v":0.99997658},{"$f":"VALUE(FIXED(EXP(K$4*-1*'PM2.5 reduction'!K174),9))","v":0.99997556499999996},{"$f":"VALUE(FIXED(EXP(L$4*-1*'PM2.5 reduction'!L174),9))","v":0.99998788699999996},{"$f":"VALUE(FIXED(EXP(M$4*-1*'PM2.5 reduction'!M174),9))","v":0.99998788699999996},{"$f":"VALUE(FIXED(EXP(N$4*-1*'PM2.5 reduction'!N174),9))","v":0.99994864900000002},{"$f":"VALUE(FIXED(EXP(O$4*-1*'PM2.5 reduction'!O174),9))","v":0.99997316000000003},{"$f":"VALUE(FIXED(EXP(P$4*-1*'PM2.5 reduction'!P174),9))","v":0.99995524300000005},{"$f":"VALUE(FIXED(EXP(Q$4*-1*'PM2.5 reduction'!Q174),9))","v":0.99997422599999997},{"$f":"VALUE(FIXED(EXP(R$4*-1*'PM2.5 reduction'!R174),9))","v":0.99996278500000002},{"$f":"VALUE(FIXED(EXP(S$4*-1*'PM2.5 reduction'!S174),9))","v":0.99995120500000001},{"$f":"VALUE(FIXED(EXP(T$4*-1*'PM2.5 reduction'!T174),9))","v":0.99992483399999998},{"$f":"VALUE(FIXED(EXP(U$4*-1*'PM2.5 reduction'!U174),9))","v":1},{"$f":"VALUE(FIXED(EXP(V$4*-1*'PM2.5 reduction'!V174),9))","v":0.99996436600000005},{"$f":"VALUE(FIXED(EXP(W$4*-1*'PM2.5 reduction'!W174),9))","v":0.99997155500000001},{"$f":"VALUE(FIXED(EXP(X$4*-1*'PM2.5 reduction'!X174),9))","v":0.99997155500000001},{"$f":"VALUE(FIXED(EXP(Y$4*-1*'PM2.5 reduction'!Y174),9))","v":0.99996984499999997},{"$f":"VALUE(FIXED(EXP(Z$4*-1*'PM2.5 reduction'!Z174),9))","v":0.99993005700000004},{"$f":"VALUE(FIXED(EXP(AA$4*-1*'PM2.5 reduction'!AA174),9))","v":0.99995104000000001},{"$f":"VALUE(FIXED(EXP(AB$4*-1*'PM2.5 reduction'!AB174),9))","v":0.99996284499999999},{"$f":"VALUE(FIXED(EXP(AC$4*-1*'PM2.5 reduction'!AC174),9))","v":0.99994483300000003},{"$f":"VALUE(FIXED(EXP(AD$4*-1*'PM2.5 reduction'!AD174),9))","v":0.99998345799999999},{"$f":"VALUE(FIXED(EXP(AE$4*-1*'PM2.5 reduction'!AE174),9))","v":0.99998347499999996},{"$f":"VALUE(FIXED(EXP(AF$4*-1*'PM2.5 reduction'!AF174),9))","v":0.99997145200000004},{"$f":"VALUE(FIXED(EXP(AG$4*-1*'PM2.5 reduction'!AG174),9))","v":0.99998347499999996},{"$f":"VALUE(FIXED(EXP(AH$4*-1*'PM2.5 reduction'!AH174),9))","v":0.99996006299999995},{"$f":"VALUE(FIXED(EXP(AI$4*-1*'PM2.5 reduction'!AI174),9))","v":0.99994099599999997},{"$f":"VALUE(FIXED(EXP(AJ$4*-1*'PM2.5 reduction'!AJ174),9))","v":0.99996994800000005},{"$f":"VALUE(FIXED(EXP(AK$4*-1*'PM2.5 reduction'!AK174),9))","v":0.99998974299999999},{"$f":"VALUE(FIXED(EXP(AL$4*-1*'PM2.5 reduction'!AL174),9))","v":0.99998342699999998},{"$f":"VALUE(FIXED(EXP(AM$4*-1*'PM2.5 reduction'!AM174),9))","v":0.999956752},{"$f":"VALUE(FIXED(EXP(AN$4*-1*'PM2.5 reduction'!AN174),9))","v":0.99999152199999997},{"$f":"VALUE(FIXED(EXP(AO$4*-1*'PM2.5 reduction'!AO174),9))","v":0.99999152199999997},{"$f":"VALUE(FIXED(EXP(AP$4*-1*'PM2.5 reduction'!AP174),9))","v":0.99998548300000001},{"$f":"VALUE(FIXED(EXP(AQ$4*-1*'PM2.5 reduction'!AQ174),9))","v":0.99996093500000005},{"$f":"VALUE(FIXED(EXP(AR$4*-1*'PM2.5 reduction'!AR174),9))","v":0.99995896200000001},{"$f":"VALUE(FIXED(EXP(AS$4*-1*'PM2.5 reduction'!AS174),9))","v":0.99999231200000005},{"$f":"VALUE(FIXED(EXP(AT$4*-1*'PM2.5 reduction'!AT174),9))","v":0.99999325299999997},{"$f":"VALUE(FIXED(EXP(AU$4*-1*'PM2.5 reduction'!AU174),9))","v":0.99999325299999997},{"$f":"VALUE(FIXED(EXP(AV$4*-1*'PM2.5 reduction'!AV174),9))","v":0.99997016000000005},{"$f":"VALUE(FIXED(EXP(AW$4*-1*'PM2.5 reduction'!AW174),9))","v":0.99996236299999997},{"$f":"VALUE(FIXED(EXP(AX$4*-1*'PM2.5 reduction'!AX174),9))","v":0.99997698199999996},{"$f":"VALUE(FIXED(EXP(AY$4*-1*'PM2.5 reduction'!AY174),9))","v":0.999973263},{"$f":"VALUE(FIXED(EXP(AZ$4*-1*'PM2.5 reduction'!AZ174),9))","v":0.99997449599999999},{"$f":"VALUE(FIXED(EXP(BA$4*-1*'PM2.5 reduction'!BA174),9))","v":0.99996898000000001},{"$f":"VALUE(FIXED(EXP(BB$4*-1*'PM2.5 reduction'!BB174),9))","v":0.99996714399999997},{"$f":"VALUE(FIXED(EXP(BC$4*-1*'PM2.5 reduction'!BC174),9))","v":1}]
[null,"Female 5-9",{"$f":"VALUE(FIXED(EXP(C$4*-1*'PM2.5 reduction'!C175),9))","v":0.99994066800000003},{"$f":"VALUE(FIXED(EXP(D$4*-1*'PM2.5 reduction'!D175),9))","v":0.99996769699999999},{"$f":"VALUE(FIXED(EXP(E$4*-1*'PM2.5 reduction'!E175),9))","v":0.999988608},{"$f":"VALUE(FIXED(EXP(F$4*-1*'PM2.5 reduction'!F175),9))","v":0.99998616699999998},{"$f":"VALUE(FIXED(EXP(G$4*-1*'PM2.5 reduction'!G175),9))","v":0.99998278900000004},{"$f":"VALUE(FIXED(EXP(H$4*-1*'PM2.5 reduction'!H175),9))","v":0.99997709300000004},{"$f":"VALUE(FIXED(EXP(I$4*-1*'PM2.5 reduction'!I175),9))","v":0.99999193799999997},{"$f":"VALUE(FIXED(EXP(J$4*-1*'PM2.5 reduction'!J175),9))","v":0.99997642200000003},{"$f":"VALUE(FIXED(EXP(K$4*-1*'PM2.5 reduction'!K175),9))","v":0.99997290100000003},{"$f":"VALUE(FIXED(EXP(L$4*-1*'PM2.5 reduction'!L175),9))","v":0.99998854299999995},{"$f":"VALUE(FIXED(EXP(M$4*-1*'PM2.5 reduction'!M175),9))","v":0.99998854299999995},{"$f":"VALUE(FIXED(EXP(N$4*-1*'PM2.5 reduction'!N175),9))","v":0.99995009199999996},{"$f":"VALUE(FIXED(EXP(O$4*-1*'PM2.5 reduction'!O175),9))","v":0.99997517800000002},{"$f":"VALUE(FIXED(EXP(P$4*-1*'PM2.5 reduction'!P175),9))","v":0.99995277699999996},{"$f":"VALUE(FIXED(EXP(Q$4*-1*'PM2.5 reduction'!Q175),9))","v":0.99997806},{"$f":"VALUE(FIXED(EXP(R$4*-1*'PM2.5 reduction'!R175),9))","v":0.99996348999999995},{"$f":"VALUE(FIXED(EXP(S$4*-1*'PM2.5 reduction'!S175),9))","v":0.99995567500000004},{"$f":"VALUE(FIXED(EXP(T$4*-1*'PM2.5 reduction'!T175),9))","v":0.99992860299999997},{"$f":"VALUE(FIXED(EXP(U$4*-1*'PM2.5 reduction'!U175),9))","v":1},{"$f":"VALUE(FIXED(EXP(V$4*-1*'PM2.5 reduction'!V175),9))","v":0.99996405899999996},{"$f":"VALUE(FIXED(EXP(W$4*-1*'PM2.5 reduction'!W175),9))","v":0.99997123799999998},{"$f":"VALUE(FIXED(EXP(X$4*-1*'PM2.5 reduction'!X175),9))","v":0.99997123799999998},{"$f":"VALUE(FIXED(EXP(Y$4*-1*'PM2.5 reduction'!Y175),9))","v":0.99996917299999999},{"$f":"VALUE(FIXED(EXP(Z$4*-1*'PM2.5 reduction'!Z175),9))","v":0.999932881},{"$f":"VALUE(FIXED(EXP(AA$4*-1*'PM2.5 reduction'!AA175),9))","v":0.99995318099999997},{"$f":"VALUE(FIXED(EXP(AB$4*-1*'PM2.5 reduction'!AB175),9))","v":0.99996991700000004},{"$f":"VALUE(FIXED(EXP(AC$4*-1*'PM2.5 reduction'!AC175),9))","v":0.99994764899999999},{"$f":"VALUE(FIXED(EXP(AD$4*-1*'PM2.5 reduction'!AD175),9))","v":0.99998432800000003},{"$f":"VALUE(FIXED(EXP(AE$4*-1*'PM2.5 reduction'!AE175),9))","v":0.99998443599999998},{"$f":"VALUE(FIXED(EXP(AF$4*-1*'PM2.5 reduction'!AF175),9))","v":0.99997136200000003},{"$f":"VALUE(FIXED(EXP(AG$4*-1*'PM2.5 reduction'!AG175),9))","v":0.99998443599999998},{"$f":"VALUE(FIXED(EXP(AH$4*-1*'PM2.5 reduction'!AH175),9))","v":0.99995999499999999},{"$f":"VALUE(FIXED(EXP(AI$4*-1*'PM2.5 reduction'!AI175),9))","v":0.99994697200000004},{"$f":"VALUE(FIXED(EXP(AJ$4*-1*'PM2.5 reduction'!AJ175),9))","v":0.99996899900000003},{"$f":"VALUE(FIXED(EXP(AK$4*-1*'PM2.5 reduction'!AK175),9))","v":0.99998859299999998},{"$f":"VALUE(FIXED(EXP(AL$4*-1*'PM2.5 reduction'!AL175),9))","v":0.99998357800000004},{"$f":"VALUE(FIXED(EXP(AM$4*-1*'PM2.5 reduction'!AM175),9))","v":0.99995663400000001},{"$f":"VALUE(FIXED(EXP(AN$4*-1*'PM2.5 reduction'!AN175),9))","v":0.999992141},{"$f":"VALUE(FIXED(EXP(AO$4*-1*'PM2.5 reduction'!AO175),9))","v":0.999992141},{"$f":"VALUE(FIXED(EXP(AP$4*-1*'PM2.5 reduction'!AP175),9))","v":0.99998537200000004},{"$f":"VALUE(FIXED(EXP(AQ$4*-1*'PM2.5 reduction'!AQ175),9))","v":0.99996102099999995},{"$f":"VALUE(FIXED(EXP(AR$4*-1*'PM2.5 reduction'!AR175),9))","v":0.99996205900000001},{"$f":"VALUE(FIXED(EXP(AS$4*-1*'PM2.5 reduction'!AS175),9))","v":0.99999193799999997},{"$f":"VALUE(FIXED(EXP(AT$4*-1*'PM2.5 reduction'!AT175),9))","v":0.99999402500000001},{"$f":"VALUE(FIXED(EXP(AU$4*-1*'PM2.5 reduction'!AU175),9))","v":0.99999402500000001},{"$f":"VALUE(FIXED(EXP(AV$4*-1*'PM2.5 reduction'!AV175),9))","v":0.99997092099999996},{"$f":"VALUE(FIXED(EXP(AW$4*-1*'PM2.5 reduction'!AW175),9))","v":0.99996254100000004},{"$f":"VALUE(FIXED(EXP(AX$4*-1*'PM2.5 reduction'!AX175),9))","v":0.99997846300000004},{"$f":"VALUE(FIXED(EXP(AY$4*-1*'PM2.5 reduction'!AY175),9))","v":0.999973483},{"$f":"VALUE(FIXED(EXP(AZ$4*-1*'PM2.5 reduction'!AZ175),9))","v":0.99997525799999998},{"$f":"VALUE(FIXED(EXP(BA$4*-1*'PM2.5 reduction'!BA175),9))","v":0.99996839299999996},{"$f":"VALUE(FIXED(EXP(BB$4*-1*'PM2.5 reduction'!BB175),9))","v":0.99996738299999999},{"$f":"VALUE(FIXED(EXP(BC$4*-1*'PM2.5 reduction'!BC175),9))","v":1}]
[null,"Female 10-15",{"$f":"VALUE(FIXED(EXP(C$4*-1*'PM2.5 reduction'!C176),9))","v":0.999942051},{"$f":"VALUE(FIXED(EXP(D$4*-1*'PM2.5 reduction'!D176),9))","v":0.99996886900000004},{"$f":"VALUE(FIXED(EXP(E$4*-1*'PM2.5 reduction'!E176),9))","v":0.99998814199999997},{"$f":"VALUE(FIXED(EXP(F$4*-1*'PM2.5 reduction'!F176),9))","v":0.99998664599999998},{"$f":"VALUE(FIXED(EXP(G$4*-1*'PM2.5 reduction'!G176),9))","v":0.99998270700000003},{"$f":"VALUE(FIXED(EXP(H$4*-1*'PM2.5 reduction'!H176),9))","v":0.99997687899999999},{"$f":"VALUE(FIXED(EXP(I$4*-1*'PM2.5 reduction'!I176),9))","v":0.99999227000000002},{"$f":"VALUE(FIXED(EXP(J$4*-1*'PM2.5 reduction'!J176),9))","v":0.99997875199999997},{"$f":"VALUE(FIXED(EXP(K$4*-1*'PM2.5 reduction'!K176),9))","v":0.99997045699999998},{"$f":"VALUE(FIXED(EXP(L$4*-1*'PM2.5 reduction'!L176),9))","v":0.99998805700000004},{"$f":"VALUE(FIXED(EXP(M$4*-1*'PM2.5 reduction'!M176),9))","v":0.99998805700000004},{"$f":"VALUE(FIXED(EXP(N$4*-1*'PM2.5 reduction'!N176),9))","v":0.999949914},{"$f":"VALUE(FIXED(EXP(O$4*-1*'PM2.5 reduction'!O176),9))","v":0.99997461399999998},{"$f":"VALUE(FIXED(EXP(P$4*-1*'PM2.5 reduction'!P176),9))","v":0.99995592700000002},{"$f":"VALUE(FIXED(EXP(Q$4*-1*'PM2.5 reduction'!Q176),9))","v":0.99997669700000003},{"$f":"VALUE(FIXED(EXP(R$4*-1*'PM2.5 reduction'!R176),9))","v":0.99996180400000001},{"$f":"VALUE(FIXED(EXP(S$4*-1*'PM2.5 reduction'!S176),9))","v":0.99995791999999994},{"$f":"VALUE(FIXED(EXP(T$4*-1*'PM2.5 reduction'!T176),9))","v":0.99992909399999996},{"$f":"VALUE(FIXED(EXP(U$4*-1*'PM2.5 reduction'!U176),9))","v":1},{"$f":"VALUE(FIXED(EXP(V$4*-1*'PM2.5 reduction'!V176),9))","v":0.99996304999999996},{"$f":"VALUE(FIXED(EXP(W$4*-1*'PM2.5 reduction'!W176),9))","v":0.99997155000000004},{"$f":"VALUE(FIXED(EXP(X$4*-1*'PM2.5 reduction'!X176),9))","v":0.99997155000000004},{"$f":"VALUE(FIXED(EXP(Y$4*-1*'PM2.5 reduction'!Y176),9))","v":0.999970947},{"$f":"VALUE(FIXED(EXP(Z$4*-1*'PM2.5 reduction'!Z176),9))","v":0.999933509},{"$f":"VALUE(FIXED(EXP(AA$4*-1*'PM2.5 reduction'!AA176),9))","v":0.999954711},{"$f":"VALUE(FIXED(EXP(AB$4*-1*'PM2.5 reduction'!AB176),9))","v":0.99997035300000003},{"$f":"VALUE(FIXED(EXP(AC$4*-1*'PM2.5 reduction'!AC176),9))","v":0.99994985300000006},{"$f":"VALUE(FIXED(EXP(AD$4*-1*'PM2.5 reduction'!AD176),9))","v":0.99998269200000001},{"$f":"VALUE(FIXED(EXP(AE$4*-1*'PM2.5 reduction'!AE176),9))","v":0.99998269100000003},{"$f":"VALUE(FIXED(EXP(AF$4*-1*'PM2.5 reduction'!AF176),9))","v":0.999970519},{"$f":"VALUE(FIXED(EXP(AG$4*-1*'PM2.5 reduction'!AG176),9))","v":0.99998269100000003},{"$f":"VALUE(FIXED(EXP(AH$4*-1*'PM2.5 reduction'!AH176),9))","v":0.99996059599999998},{"$f":"VALUE(FIXED(EXP(AI$4*-1*'PM2.5 reduction'!AI176),9))","v":0.99994864100000003},{"$f":"VALUE(FIXED(EXP(AJ$4*-1*'PM2.5 reduction'!AJ176),9))","v":0.99997140600000001},{"$f":"VALUE(FIXED(EXP(AK$4*-1*'PM2.5 reduction'!AK176),9))","v":0.999984019},{"$f":"VALUE(FIXED(EXP(AL$4*-1*'PM2.5 reduction'!AL176),9))","v":0.99998370299999995},{"$f":"VALUE(FIXED(EXP(AM$4*-1*'PM2.5 reduction'!AM176),9))","v":0.99995796999999997},{"$f":"VALUE(FIXED(EXP(AN$4*-1*'PM2.5 reduction'!AN176),9))","v":0.99999196400000001},{"$f":"VALUE(FIXED(EXP(AO$4*-1*'PM2.5 reduction'!AO176),9))","v":0.99999196400000001},{"$f":"VALUE(FIXED(EXP(AP$4*-1*'PM2.5 reduction'!AP176),9))","v":0.99998596699999998},{"$f":"VALUE(FIXED(EXP(AQ$4*-1*'PM2.5 reduction'!AQ176),9))","v":0.99996106200000001},{"$f":"VALUE(FIXED(EXP(AR$4*-1*'PM2.5 reduction'!AR176),9))","v":0.99996346400000002},{"$f":"VALUE(FIXED(EXP(AS$4*-1*'PM2.5 reduction'!AS176),9))","v":0.99999227000000002},{"$f":"VALUE(FIXED(EXP(AT$4*-1*'PM2.5 reduction'!AT176),9))","v":0.99999355999999995},{"$f":"VALUE(FIXED(EXP(AU$4*-1*'PM2.5 reduction'!AU176),9))","v":0.99999355999999995},{"$f":"VALUE(FIXED(EXP(AV$4*-1*'PM2.5 reduction'!AV176),9))","v":0.99996947999999997},{"$f":"VALUE(FIXED(EXP(AW$4*-1*'PM2.5 reduction'!AW176),9))","v":0.99996269100000001},{"$f":"VALUE(FIXED(EXP(AX$4*-1*'PM2.5 reduction'!AX176),9))","v":0.99998187999999999},{"$f":"VALUE(FIXED(EXP(AY$4*-1*'PM2.5 reduction'!AY176),9))","v":0.99997416299999997},{"$f":"VALUE(FIXED(EXP(AZ$4*-1*'PM2.5 reduction'!AZ176),9))","v":0.99997637399999995},{"$f":"VALUE(FIXED(EXP(BA$4*-1*'PM2.5 reduction'!BA176),9))","v":0.99996828199999999},{"$f":"VALUE(FIXED(EXP(BB$4*-1*'PM2.5 reduction'!BB176),9))","v":0.99996764400000004},{"$f":"VALUE(FIXED(EXP(BC$4*-1*'PM2.5 reduction'!BC176),9))","v":1}]
[null,"Female 16-19",{"$f":"VALUE(FIXED(EXP(C$4*-1*'PM2.5 reduction'!C177),9))","v":0.99990389499999999},{"$f":"VALUE(FIXED(EXP(D$4*-1*'PM2.5 reduction'!D177),9))","v":0.99993226000000002},{"$f":"VALUE(FIXED(EXP(E$4*-1*'PM2.5 reduction'!E177),9))","v":0.99998852900000001},{"$f":"VALUE(FIXED(EXP(F$4*-1*'PM2.5 reduction'!F177),9))","v":0.99998630300000002},{"$f":"VALUE(FIXED(EXP(G$4*-1*'PM2.5 reduction'!G177),9))","v":0.99998294499999996},{"$f":"VALUE(FIXED(EXP(H$4*-1*'PM2.5 reduction'!H177),9))","v":0.99997745100000002},{"$f":"VALUE(FIXED(EXP(I$4*-1*'PM2.5 reduction'!I177),9))","v":0.99999196000000001},{"$f":"VALUE(FIXED(EXP(J$4*-1*'PM2.5 reduction'!J177),9))","v":0.99997432900000005},{"$f":"VALUE(FIXED(EXP(K$4*-1*'PM2.5 reduction'!K177),9))","v":0.99997387400000004},{"$f":"VALUE(FIXED(EXP(L$4*-1*'PM2.5 reduction'!L177),9))","v":0.99998862600000005},{"$f":"VALUE(FIXED(EXP(M$4*-1*'PM2.5 reduction'!M177),9))","v":0.99998862600000005},{"$f":"VALUE(FIXED(EXP(N$4*-1*'PM2.5 reduction'!N177),9))","v":0.99995055099999997},{"$f":"VALUE(FIXED(EXP(O$4*-1*'PM2.5 reduction'!O177),9))","v":0.99997492399999999},{"$f":"VALUE(FIXED(EXP(P$4*-1*'PM2.5 reduction'!P177),9))","v":0.99995542900000001},{"$f":"VALUE(FIXED(EXP(Q$4*-1*'PM2.5 reduction'!Q177),9))","v":0.99997525300000001},{"$f":"VALUE(FIXED(EXP(R$4*-1*'PM2.5 reduction'!R177),9))","v":0.99996403199999995},{"$f":"VALUE(FIXED(EXP(S$4*-1*'PM2.5 reduction'!S177),9))","v":0.99995030699999998},{"$f":"VALUE(FIXED(EXP(T$4*-1*'PM2.5 reduction'!T177),9))","v":0.99991902899999996},{"$f":"VALUE(FIXED(EXP(U$4*-1*'PM2.5 reduction'!U177),9))","v":1},{"$f":"VALUE(FIXED(EXP(V$4*-1*'PM2.5 reduction'!V177),9))","v":0.99996317099999998},{"$f":"VALUE(FIXED(EXP(W$4*-1*'PM2.5 reduction'!W177),9))","v":0.99997232899999999},{"$f":"VALUE(FIXED(EXP(X$4*-1*'PM2.5 reduction'!X177),9))","v":0.99997232899999999},{"$f":"VALUE(FIXED(EXP(Y$4*-1*'PM2.5 reduction'!Y177),9))","v":0.99996910900000002},{"$f":"VALUE(FIXED(EXP(Z$4*-1*'PM2.5 reduction'!Z177),9))","v":0.99992698400000002},{"$f":"VALUE(FIXED(EXP(AA$4*-1*'PM2.5 reduction'!AA177),9))","v":0.99995135300000004},{"$f":"VALUE(FIXED(EXP(AB$4*-1*'PM2.5 reduction'!AB177),9))","v":0.99993547000000005},{"$f":"VALUE(FIXED(EXP(AC$4*-1*'PM2.5 reduction'!AC177),9))","v":0.999944893},{"$f":"VALUE(FIXED(EXP(AD$4*-1*'PM2.5 reduction'!AD177),9))","v":0.99998299199999996},{"$f":"VALUE(FIXED(EXP(AE$4*-1*'PM2.5 reduction'!AE177),9))","v":0.99998299800000001},{"$f":"VALUE(FIXED(EXP(AF$4*-1*'PM2.5 reduction'!AF177),9))","v":0.99997405299999997},{"$f":"VALUE(FIXED(EXP(AG$4*-1*'PM2.5 reduction'!AG177),9))","v":0.99998299800000001},{"$f":"VALUE(FIXED(EXP(AH$4*-1*'PM2.5 reduction'!AH177),9))","v":0.99996040600000002},{"$f":"VALUE(FIXED(EXP(AI$4*-1*'PM2.5 reduction'!AI177),9))","v":0.99993909599999997},{"$f":"VALUE(FIXED(EXP(AJ$4*-1*'PM2.5 reduction'!AJ177),9))","v":0.99996890199999999},{"$f":"VALUE(FIXED(EXP(AK$4*-1*'PM2.5 reduction'!AK177),9))","v":0.99998550200000003},{"$f":"VALUE(FIXED(EXP(AL$4*-1*'PM2.5 reduction'!AL177),9))","v":0.99998405700000004},{"$f":"VALUE(FIXED(EXP(AM$4*-1*'PM2.5 reduction'!AM177),9))","v":0.99995785100000001},{"$f":"VALUE(FIXED(EXP(AN$4*-1*'PM2.5 reduction'!AN177),9))","v":0.999992043},{"$f":"VALUE(FIXED(EXP(AO$4*-1*'PM2.5 reduction'!AO177),9))","v":0.999992043},{"$f":"VALUE(FIXED(EXP(AP$4*-1*'PM2.5 reduction'!AP177),9))","v":0.99998542300000004},{"$f":"VALUE(FIXED(EXP(AQ$4*-1*'PM2.5 reduction'!AQ177),9))","v":0.99996056700000002},{"$f":"VALUE(FIXED(EXP(AR$4*-1*'PM2.5 reduction'!AR177),9))","v":0.99995549900000003},{"$f":"VALUE(FIXED(EXP(AS$4*-1*'PM2.5 reduction'!AS177),9))","v":0.99999196000000001},{"$f":"VALUE(FIXED(EXP(AT$4*-1*'PM2.5 reduction'!AT177),9))","v":0.99999376699999998},{"$f":"VALUE(FIXED(EXP(AU$4*-1*'PM2.5 reduction'!AU177),9))","v":0.99999376699999998},{"$f":"VALUE(FIXED(EXP(AV$4*-1*'PM2.5 reduction'!AV177),9))","v":0.99996988799999997},{"$f":"VALUE(FIXED(EXP(AW$4*-1*'PM2.5 reduction'!AW177),9))","v":0.99996275400000001},{"$f":"VALUE(FIXED(EXP(AX$4*-1*'PM2.5 reduction'!AX177),9))","v":0.99997445299999999},{"$f":"VALUE(FIXED(EXP(AY$4*-1*'PM2.5 reduction'!AY177),9))","v":0.99997334900000001},{"$f":"VALUE(FIXED(EXP(AZ$4*-1*'PM2.5 reduction'!AZ177),9))","v":0.99997404199999995},{"$f":"VALUE(FIXED(EXP(BA$4*-1*'PM2.5 reduction'!BA177),9))","v":0.99996835900000003},{"$f":"VALUE(FIXED(EXP(BB$4*-1*'PM2.5 reduction'!BB177),9))","v":0.99996922200000005},{"$f":"VALUE(FIXED(EXP(BC$4*-1*'PM2.5 reduction'!BC177),9))","v":1}]
[null,"Female 20-24",{"$f":"VALUE(FIXED(EXP(C$4*-1*'PM2.5 reduction'!C178),9))","v":0.99991043099999999},{"$f":"VALUE(FIXED(EXP(D$4*-1*'PM2.5 reduction'!D178),9))","v":0.99992776800000005},{"$f":"VALUE(FIXED(EXP(E$4*-1*'PM2.5 reduction'!E178),9))","v":0.99998753100000004},{"$f":"VALUE(FIXED(EXP(F$4*-1*'PM2.5 reduction'!F178),9))","v":0.99998681499999997},{"$f":"VALUE(FIXED(EXP(G$4*-1*'PM2.5 reduction'!G178),9))","v":0.99998287200000002},{"$f":"VALUE(FIXED(EXP(H$4*-1*'PM2.5 reduction'!H178),9))","v":0.99997602900000004},{"$f":"VALUE(FIXED(EXP(I$4*-1*'PM2.5 reduction'!I178),9))","v":0.99999175200000001},{"$f":"VALUE(FIXED(EXP(J$4*-1*'PM2.5 reduction'!J178),9))","v":0.99996532000000005},{"$f":"VALUE(FIXED(EXP(K$4*-1*'PM2.5 reduction'!K178),9))","v":0.99997333799999999},{"$f":"VALUE(FIXED(EXP(L$4*-1*'PM2.5 reduction'!L178),9))","v":0.99998771900000005},{"$f":"VALUE(FIXED(EXP(M$4*-1*'PM2.5 reduction'!M178),9))","v":0.99998771900000005},{"$f":"VALUE(FIXED(EXP(N$4*-1*'PM2.5 reduction'!N178),9))","v":0.99995195699999995},{"$f":"VALUE(FIXED(EXP(O$4*-1*'PM2.5 reduction'!O178),9))","v":0.99997114399999998},{"$f":"VALUE(FIXED(EXP(P$4*-1*'PM2.5 reduction'!P178),9))","v":0.99995548099999998},{"$f":"VALUE(FIXED(EXP(Q$4*-1*'PM2.5 reduction'!Q178),9))","v":0.99997315899999994},{"$f":"VALUE(FIXED(EXP(R$4*-1*'PM2.5 reduction'!R178),9))","v":0.99996206399999998},{"$f":"VALUE(FIXED(EXP(S$4*-1*'PM2.5 reduction'!S178),9))","v":0.99992940600000002},{"$f":"VALUE(FIXED(EXP(T$4*-1*'PM2.5 reduction'!T178),9))","v":0.99990533500000001},{"$f":"VALUE(FIXED(EXP(U$4*-1*'PM2.5 reduction'!U178),9))","v":1},{"$f":"VALUE(FIXED(EXP(V$4*-1*'PM2.5 reduction'!V178),9))","v":0.99996122700000001},{"$f":"VALUE(FIXED(EXP(W$4*-1*'PM2.5 reduction'!W178),9))","v":0.99997201999999996},{"$f":"VALUE(FIXED(EXP(X$4*-1*'PM2.5 reduction'!X178),9))","v":0.99997201999999996},{"$f":"VALUE(FIXED(EXP(Y$4*-1*'PM2.5 reduction'!Y178),9))","v":0.99996376200000003},{"$f":"VALUE(FIXED(EXP(Z$4*-1*'PM2.5 reduction'!Z178),9))","v":0.99991161500000003},{"$f":"VALUE(FIXED(EXP(AA$4*-1*'PM2.5 reduction'!AA178),9))","v":0.99993481900000003},{"$f":"VALUE(FIXED(EXP(AB$4*-1*'PM2.5 reduction'!AB178),9))","v":0.99992958399999998},{"$f":"VALUE(FIXED(EXP(AC$4*-1*'PM2.5 reduction'!AC178),9))","v":0.99992605000000001},{"$f":"VALUE(FIXED(EXP(AD$4*-1*'PM2.5 reduction'!AD178),9))","v":0.99998193999999996},{"$f":"VALUE(FIXED(EXP(AE$4*-1*'PM2.5 reduction'!AE178),9))","v":0.99998185699999997},{"$f":"VALUE(FIXED(EXP(AF$4*-1*'PM2.5 reduction'!AF178),9))","v":0.999972525},{"$f":"VALUE(FIXED(EXP(AG$4*-1*'PM2.5 reduction'!AG178),9))","v":0.99998185699999997},{"$f":"VALUE(FIXED(EXP(AH$4*-1*'PM2.5 reduction'!AH178),9))","v":0.99995975800000003},{"$f":"VALUE(FIXED(EXP(AI$4*-1*'PM2.5 reduction'!AI178),9))","v":0.99991980400000002},{"$f":"VALUE(FIXED(EXP(AJ$4*-1*'PM2.5 reduction'!AJ178),9))","v":0.99997053400000002},{"$f":"VALUE(FIXED(EXP(AK$4*-1*'PM2.5 reduction'!AK178),9))","v":0.99998465800000003},{"$f":"VALUE(FIXED(EXP(AL$4*-1*'PM2.5 reduction'!AL178),9))","v":0.99998349200000003},{"$f":"VALUE(FIXED(EXP(AM$4*-1*'PM2.5 reduction'!AM178),9))","v":0.99995711600000003},{"$f":"VALUE(FIXED(EXP(AN$4*-1*'PM2.5 reduction'!AN178),9))","v":0.99999217399999996},{"$f":"VALUE(FIXED(EXP(AO$4*-1*'PM2.5 reduction'!AO178),9))","v":0.99999217399999996},{"$f":"VALUE(FIXED(EXP(AP$4*-1*'PM2.5 reduction'!AP178),9))","v":0.99998494500000001},{"$f":"VALUE(FIXED(EXP(AQ$4*-1*'PM2.5 reduction'!AQ178),9))","v":0.99996058499999996},{"$f":"VALUE(FIXED(EXP(AR$4*-1*'PM2.5 reduction'!AR178),9))","v":0.99994088999999997},{"$f":"VALUE(FIXED(EXP(AS$4*-1*'PM2.5 reduction'!AS178),9))","v":0.99999175200000001},{"$f":"VALUE(FIXED(EXP(AT$4*-1*'PM2.5 reduction'!AT178),9))","v":0.999993574},{"$f":"VALUE(FIXED(EXP(AU$4*-1*'PM2.5 reduction'!AU178),9))","v":0.999993574},{"$f":"VALUE(FIXED(EXP(AV$4*-1*'PM2.5 reduction'!AV178),9))","v":0.99997058299999997},{"$f":"VALUE(FIXED(EXP(AW$4*-1*'PM2.5 reduction'!AW178),9))","v":0.99996204200000005},{"$f":"VALUE(FIXED(EXP(AX$4*-1*'PM2.5 reduction'!AX178),9))","v":0.99996426400000005},{"$f":"VALUE(FIXED(EXP(AY$4*-1*'PM2.5 reduction'!AY178),9))","v":0.99996766400000003},{"$f":"VALUE(FIXED(EXP(AZ$4*-1*'PM2.5 reduction'!AZ178),9))","v":0.99996601200000002},{"$f":"VALUE(FIXED(EXP(BA$4*-1*'PM2.5 reduction'!BA178),9))","v":0.99996764400000004},{"$f":"VALUE(FIXED(EXP(BB$4*-1*'PM2.5 reduction'!BB178),9))","v":0.99996923100000001},{"$f":"VALUE(FIXED(EXP(BC$4*-1*'PM2.5 reduction'!BC178),9))","v":1}]
[null,"Female 25-29",{"$f":"VALUE(FIXED(EXP(C$4*-1*'PM2.5 reduction'!C179),9))","v":0.99992060900000002},{"$f":"VALUE(FIXED(EXP(D$4*-1*'PM2.5 reduction'!D179),9))","v":0.99993824499999995},{"$f":"VALUE(FIXED(EXP(E$4*-1*'PM2.5 reduction'!E179),9))","v":0.99998733200000001},{"$f":"VALUE(FIXED(EXP(F$4*-1*'PM2.5 reduction'!F179),9))","v":0.99998632200000004},{"$f":"VALUE(FIXED(EXP(G$4*-1*'PM2.5 reduction'!G179),9))","v":0.999982704},{"$f":"VALUE(FIXED(EXP(H$4*-1*'PM2.5 reduction'!H179),9))","v":0.99997530400000001},{"$f":"VALUE(FIXED(EXP(I$4*-1*'PM2.5 reduction'!I179),9))","v":0.99999217500000004},{"$f":"VALUE(FIXED(EXP(J$4*-1*'PM2.5 reduction'!J179),9))","v":0.99997040000000004},{"$f":"VALUE(FIXED(EXP(K$4*-1*'PM2.5 reduction'!K179),9))","v":0.99996963400000005},{"$f":"VALUE(FIXED(EXP(L$4*-1*'PM2.5 reduction'!L179),9))","v":0.99998750300000006},{"$f":"VALUE(FIXED(EXP(M$4*-1*'PM2.5 reduction'!M179),9))","v":0.99998750300000006},{"$f":"VALUE(FIXED(EXP(N$4*-1*'PM2.5 reduction'!N179),9))","v":0.999950487},{"$f":"VALUE(FIXED(EXP(O$4*-1*'PM2.5 reduction'!O179),9))","v":0.99996807300000001},{"$f":"VALUE(FIXED(EXP(P$4*-1*'PM2.5 reduction'!P179),9))","v":0.99995497},{"$f":"VALUE(FIXED(EXP(Q$4*-1*'PM2.5 reduction'!Q179),9))","v":0.99997569200000003},{"$f":"VALUE(FIXED(EXP(R$4*-1*'PM2.5 reduction'!R179),9))","v":0.99996095399999996},{"$f":"VALUE(FIXED(EXP(S$4*-1*'PM2.5 reduction'!S179),9))","v":0.99992932499999998},{"$f":"VALUE(FIXED(EXP(T$4*-1*'PM2.5 reduction'!T179),9))","v":0.99991100799999999},{"$f":"VALUE(FIXED(EXP(U$4*-1*'PM2.5 reduction'!U179),9))","v":1},{"$f":"VALUE(FIXED(EXP(V$4*-1*'PM2.5 reduction'!V179),9))","v":0.99996135900000005},{"$f":"VALUE(FIXED(EXP(W$4*-1*'PM2.5 reduction'!W179),9))","v":0.99997134499999996},{"$f":"VALUE(FIXED(EXP(X$4*-1*'PM2.5 reduction'!X179),9))","v":0.99997134499999996},{"$f":"VALUE(FIXED(EXP(Y$4*-1*'PM2.5 reduction'!Y179),9))","v":0.99996587100000001},{"$f":"VALUE(FIXED(EXP(Z$4*-1*'PM2.5 reduction'!Z179),9))","v":0.99991851899999995},{"$f":"VALUE(FIXED(EXP(AA$4*-1*'PM2.5 reduction'!AA179),9))","v":0.99993945799999995},{"$f":"VALUE(FIXED(EXP(AB$4*-1*'PM2.5 reduction'!AB179),9))","v":0.99994124399999995},{"$f":"VALUE(FIXED(EXP(AC$4*-1*'PM2.5 reduction'!AC179),9))","v":0.99993106799999998},{"$f":"VALUE(FIXED(EXP(AD$4*-1*'PM2.5 reduction'!AD179),9))","v":0.99998319300000005},{"$f":"VALUE(FIXED(EXP(AE$4*-1*'PM2.5 reduction'!AE179),9))","v":0.99998322500000003},{"$f":"VALUE(FIXED(EXP(AF$4*-1*'PM2.5 reduction'!AF179),9))","v":0.99996883299999995},{"$f":"VALUE(FIXED(EXP(AG$4*-1*'PM2.5 reduction'!AG179),9))","v":0.99998322500000003},{"$f":"VALUE(FIXED(EXP(AH$4*-1*'PM2.5 reduction'!AH179),9))","v":0.99995895099999998},{"$f":"VALUE(FIXED(EXP(AI$4*-1*'PM2.5 reduction'!AI179),9))","v":0.99992154799999999},{"$f":"VALUE(FIXED(EXP(AJ$4*-1*'PM2.5 reduction'!AJ179),9))","v":0.99997203099999998},{"$f":"VALUE(FIXED(EXP(AK$4*-1*'PM2.5 reduction'!AK179),9))","v":0.999988349},{"$f":"VALUE(FIXED(EXP(AL$4*-1*'PM2.5 reduction'!AL179),9))","v":0.99998344299999997},{"$f":"VALUE(FIXED(EXP(AM$4*-1*'PM2.5 reduction'!AM179),9))","v":0.99995658200000004},{"$f":"VALUE(FIXED(EXP(AN$4*-1*'PM2.5 reduction'!AN179),9))","v":0.99999210699999996},{"$f":"VALUE(FIXED(EXP(AO$4*-1*'PM2.5 reduction'!AO179),9))","v":0.99999210699999996},{"$f":"VALUE(FIXED(EXP(AP$4*-1*'PM2.5 reduction'!AP179),9))","v":0.99998400200000004},{"$f":"VALUE(FIXED(EXP(AQ$4*-1*'PM2.5 reduction'!AQ179),9))","v":0.99995948499999998},{"$f":"VALUE(FIXED(EXP(AR$4*-1*'PM2.5 reduction'!AR179),9))","v":0.99994353599999997},{"$f":"VALUE(FIXED(EXP(AS$4*-1*'PM2.5 reduction'!AS179),9))","v":0.99999217500000004},{"$f":"VALUE(FIXED(EXP(AT$4*-1*'PM2.5 reduction'!AT179),9))","v":0.99999307199999998},{"$f":"VALUE(FIXED(EXP(AU$4*-1*'PM2.5 reduction'!AU179),9))","v":0.99999307199999998},{"$f":"VALUE(FIXED(EXP(AV$4*-1*'PM2.5 reduction'!AV179),9))","v":0.99997117800000002},{"$f":"VALUE(FIXED(EXP(AW$4*-1*'PM2.5 reduction'!AW179),9))","v":0.99996083800000002},{"$f":"VALUE(FIXED(EXP(AX$4*-1*'PM2.5 reduction'!AX179),9))","v":0.99997056699999998},{"$f":"VALUE(FIXED(EXP(AY$4*-1*'PM2.5 reduction'!AY179),9))","v":0.99997084700000005},{"$f":"VALUE(FIXED(EXP(AZ$4*-1*'PM2.5 reduction'!AZ179),9))","v":0.99997060000000004},{"$f":"VALUE(FIXED(EXP(BA$4*-1*'PM2.5 reduction'!BA179),9))","v":0.99996646199999994},{"$f":"VALUE(FIXED(EXP(BB$4*-1*'PM2.5 reduction'!BB179),9))","v":0.99996757800000002},{"$f":"VALUE(FIXED(EXP(BC$4*-1*'PM2.5 reduction'!BC179),9))","v":1}]
[null,"Female 30-34",{"$f":"VALUE(FIXED(EXP(C$4*-1*'PM2.5 reduction'!C180),9))","v":0.99992779300000001},{"$f":"VALUE(FIXED(EXP(D$4*-1*'PM2.5 reduction'!D180),9))","v":0.99994822999999999},{"$f":"VALUE(FIXED(EXP(E$4*-1*'PM2.5 reduction'!E180),9))","v":0.99998760900000006},{"$f":"VALUE(FIXED(EXP(F$4*-1*'PM2.5 reduction'!F180),9))","v":0.999986394},{"$f":"VALUE(FIXED(EXP(G$4*-1*'PM2.5 reduction'!G180),9))","v":0.99998307900000005},{"$f":"VALUE(FIXED(EXP(H$4*-1*'PM2.5 reduction'!H180),9))","v":0.99997624100000004},{"$f":"VALUE(FIXED(EXP(I$4*-1*'PM2.5 reduction'!I180),9))","v":0.99999065799999998},{"$f":"VALUE(FIXED(EXP(J$4*-1*'PM2.5 reduction'!J180),9))","v":0.999971312},{"$f":"VALUE(FIXED(EXP(K$4*-1*'PM2.5 reduction'!K180),9))","v":0.99997050799999998},{"$f":"VALUE(FIXED(EXP(L$4*-1*'PM2.5 reduction'!L180),9))","v":0.99998764699999998},{"$f":"VALUE(FIXED(EXP(M$4*-1*'PM2.5 reduction'!M180),9))","v":0.99998764699999998},{"$f":"VALUE(FIXED(EXP(N$4*-1*'PM2.5 reduction'!N180),9))","v":0.99994897500000002},{"$f":"VALUE(FIXED(EXP(O$4*-1*'PM2.5 reduction'!O180),9))","v":0.99997318199999996},{"$f":"VALUE(FIXED(EXP(P$4*-1*'PM2.5 reduction'!P180),9))","v":0.99995546999999996},{"$f":"VALUE(FIXED(EXP(Q$4*-1*'PM2.5 reduction'!Q180),9))","v":0.99997381200000002},{"$f":"VALUE(FIXED(EXP(R$4*-1*'PM2.5 reduction'!R180),9))","v":0.99996263900000004},{"$f":"VALUE(FIXED(EXP(S$4*-1*'PM2.5 reduction'!S180),9))","v":0.99993636299999999},{"$f":"VALUE(FIXED(EXP(T$4*-1*'PM2.5 reduction'!T180),9))","v":0.99991512299999996},{"$f":"VALUE(FIXED(EXP(U$4*-1*'PM2.5 reduction'!U180),9))","v":1},{"$f":"VALUE(FIXED(EXP(V$4*-1*'PM2.5 reduction'!V180),9))","v":0.99996243500000004},{"$f":"VALUE(FIXED(EXP(W$4*-1*'PM2.5 reduction'!W180),9))","v":0.99997102299999996},{"$f":"VALUE(FIXED(EXP(X$4*-1*'PM2.5 reduction'!X180),9))","v":0.99997102299999996},{"$f":"VALUE(FIXED(EXP(Y$4*-1*'PM2.5 reduction'!Y180),9))","v":0.99996643900000004},{"$f":"VALUE(FIXED(EXP(Z$4*-1*'PM2.5 reduction'!Z180),9))","v":0.99992386899999997},{"$f":"VALUE(FIXED(EXP(AA$4*-1*'PM2.5 reduction'!AA180),9))","v":0.99994421899999997},{"$f":"VALUE(FIXED(EXP(AB$4*-1*'PM2.5 reduction'!AB180),9))","v":0.99995111199999998},{"$f":"VALUE(FIXED(EXP(AC$4*-1*'PM2.5 reduction'!AC180),9))","v":0.99993610700000002},{"$f":"VALUE(FIXED(EXP(AD$4*-1*'PM2.5 reduction'!AD180),9))","v":0.99998182400000002},{"$f":"VALUE(FIXED(EXP(AE$4*-1*'PM2.5 reduction'!AE180),9))","v":0.99998175},{"$f":"VALUE(FIXED(EXP(AF$4*-1*'PM2.5 reduction'!AF180),9))","v":0.99996988099999995},{"$f":"VALUE(FIXED(EXP(AG$4*-1*'PM2.5 reduction'!AG180),9))","v":0.99998175},{"$f":"VALUE(FIXED(EXP(AH$4*-1*'PM2.5 reduction'!AH180),9))","v":0.99995964999999998},{"$f":"VALUE(FIXED(EXP(AI$4*-1*'PM2.5 reduction'!AI180),9))","v":0.99992723100000003},{"$f":"VALUE(FIXED(EXP(AJ$4*-1*'PM2.5 reduction'!AJ180),9))","v":0.99997011599999996},{"$f":"VALUE(FIXED(EXP(AK$4*-1*'PM2.5 reduction'!AK180),9))","v":0.99998931300000005},{"$f":"VALUE(FIXED(EXP(AL$4*-1*'PM2.5 reduction'!AL180),9))","v":0.99998312},{"$f":"VALUE(FIXED(EXP(AM$4*-1*'PM2.5 reduction'!AM180),9))","v":0.99995698600000005},{"$f":"VALUE(FIXED(EXP(AN$4*-1*'PM2.5 reduction'!AN180),9))","v":0.999991034},{"$f":"VALUE(FIXED(EXP(AO$4*-1*'PM2.5 reduction'!AO180),9))","v":0.999991034},{"$f":"VALUE(FIXED(EXP(AP$4*-1*'PM2.5 reduction'!AP180),9))","v":0.99998408999999999},{"$f":"VALUE(FIXED(EXP(AQ$4*-1*'PM2.5 reduction'!AQ180),9))","v":0.99995963799999998},{"$f":"VALUE(FIXED(EXP(AR$4*-1*'PM2.5 reduction'!AR180),9))","v":0.999949537},{"$f":"VALUE(FIXED(EXP(AS$4*-1*'PM2.5 reduction'!AS180),9))","v":0.99999065799999998},{"$f":"VALUE(FIXED(EXP(AT$4*-1*'PM2.5 reduction'!AT180),9))","v":0.99999402199999998},{"$f":"VALUE(FIXED(EXP(AU$4*-1*'PM2.5 reduction'!AU180),9))","v":0.99999402199999998},{"$f":"VALUE(FIXED(EXP(AV$4*-1*'PM2.5 reduction'!AV180),9))","v":0.999971202},{"$f":"VALUE(FIXED(EXP(AW$4*-1*'PM2.5 reduction'!AW180),9))","v":0.99996179699999999},{"$f":"VALUE(FIXED(EXP(AX$4*-1*'PM2.5 reduction'!AX180),9))","v":0.99997158500000005},{"$f":"VALUE(FIXED(EXP(AY$4*-1*'PM2.5 reduction'!AY180),9))","v":0.99997196300000002},{"$f":"VALUE(FIXED(EXP(AZ$4*-1*'PM2.5 reduction'!AZ180),9))","v":0.99997252599999997},{"$f":"VALUE(FIXED(EXP(BA$4*-1*'PM2.5 reduction'!BA180),9))","v":0.999966782},{"$f":"VALUE(FIXED(EXP(BB$4*-1*'PM2.5 reduction'!BB180),9))","v":0.99996744699999995},{"$f":"VALUE(FIXED(EXP(BC$4*-1*'PM2.5 reduction'!BC180),9))","v":1}]
[null,"Female 35-39",{"$f":"VALUE(FIXED(EXP(C$4*-1*'PM2.5 reduction'!C181),9))","v":0.99993428600000001},{"$f":"VALUE(FIXED(EXP(D$4*-1*'PM2.5 reduction'!D181),9))","v":0.99995641000000002},{"$f":"VALUE(FIXED(EXP(E$4*-1*'PM2.5 reduction'!E181),9))","v":0.99998746900000002},{"$f":"VALUE(FIXED(EXP(F$4*-1*'PM2.5 reduction'!F181),9))","v":0.99998648000000001},{"$f":"VALUE(FIXED(EXP(G$4*-1*'PM2.5 reduction'!G181),9))","v":0.99998287100000005},{"$f":"VALUE(FIXED(EXP(H$4*-1*'PM2.5 reduction'!H181),9))","v":0.999976792},{"$f":"VALUE(FIXED(EXP(I$4*-1*'PM2.5 reduction'!I181),9))","v":0.99999187099999998},{"$f":"VALUE(FIXED(EXP(J$4*-1*'PM2.5 reduction'!J181),9))","v":0.99997491299999997},{"$f":"VALUE(FIXED(EXP(K$4*-1*'PM2.5 reduction'!K181),9))","v":0.99997166699999995},{"$f":"VALUE(FIXED(EXP(L$4*-1*'PM2.5 reduction'!L181),9))","v":0.99998729900000005},{"$f":"VALUE(FIXED(EXP(M$4*-1*'PM2.5 reduction'!M181),9))","v":0.99998729900000005},{"$f":"VALUE(FIXED(EXP(N$4*-1*'PM2.5 reduction'!N181),9))","v":0.99994959400000005},{"$f":"VALUE(FIXED(EXP(O$4*-1*'PM2.5 reduction'!O181),9))","v":0.99997524900000001},{"$f":"VALUE(FIXED(EXP(P$4*-1*'PM2.5 reduction'!P181),9))","v":0.99995556299999999},{"$f":"VALUE(FIXED(EXP(Q$4*-1*'PM2.5 reduction'!Q181),9))","v":0.999976906},{"$f":"VALUE(FIXED(EXP(R$4*-1*'PM2.5 reduction'!R181),9))","v":0.99996125199999997},{"$f":"VALUE(FIXED(EXP(S$4*-1*'PM2.5 reduction'!S181),9))","v":0.99994413599999998},{"$f":"VALUE(FIXED(EXP(T$4*-1*'PM2.5 reduction'!T181),9))","v":0.99991892699999996},{"$f":"VALUE(FIXED(EXP(U$4*-1*'PM2.5 reduction'!U181),9))","v":1},{"$f":"VALUE(FIXED(EXP(V$4*-1*'PM2.5 reduction'!V181),9))","v":0.99996432599999996},{"$f":"VALUE(FIXED(EXP(W$4*-1*'PM2.5 reduction'!W181),9))","v":0.99997144199999999},{"$f":"VALUE(FIXED(EXP(X$4*-1*'PM2.5 reduction'!X181),9))","v":0.99997144199999999},{"$f":"VALUE(FIXED(EXP(Y$4*-1*'PM2.5 reduction'!Y181),9))","v":0.99996893499999995},{"$f":"VALUE(FIXED(EXP(Z$4*-1*'PM2.5 reduction'!Z181),9))","v":0.99992909399999996},{"$f":"VALUE(FIXED(EXP(AA$4*-1*'PM2.5 reduction'!AA181),9))","v":0.999950059},{"$f":"VALUE(FIXED(EXP(AB$4*-1*'PM2.5 reduction'!AB181),9))","v":0.99995894100000005},{"$f":"VALUE(FIXED(EXP(AC$4*-1*'PM2.5 reduction'!AC181),9))","v":0.99994316500000002},{"$f":"VALUE(FIXED(EXP(AD$4*-1*'PM2.5 reduction'!AD181),9))","v":0.99998372899999999},{"$f":"VALUE(FIXED(EXP(AE$4*-1*'PM2.5 reduction'!AE181),9))","v":0.99998379000000004},{"$f":"VALUE(FIXED(EXP(AF$4*-1*'PM2.5 reduction'!AF181),9))","v":0.99997275200000002},{"$f":"VALUE(FIXED(EXP(AG$4*-1*'PM2.5 reduction'!AG181),9))","v":0.99998379000000004},{"$f":"VALUE(FIXED(EXP(AH$4*-1*'PM2.5 reduction'!AH181),9))","v":0.99995989600000001},{"$f":"VALUE(FIXED(EXP(AI$4*-1*'PM2.5 reduction'!AI181),9))","v":0.99993449199999995},{"$f":"VALUE(FIXED(EXP(AJ$4*-1*'PM2.5 reduction'!AJ181),9))","v":0.99996858200000005},{"$f":"VALUE(FIXED(EXP(AK$4*-1*'PM2.5 reduction'!AK181),9))","v":0.99998752099999999},{"$f":"VALUE(FIXED(EXP(AL$4*-1*'PM2.5 reduction'!AL181),9))","v":0.99998342200000001},{"$f":"VALUE(FIXED(EXP(AM$4*-1*'PM2.5 reduction'!AM181),9))","v":0.99995697699999997},{"$f":"VALUE(FIXED(EXP(AN$4*-1*'PM2.5 reduction'!AN181),9))","v":0.99999110199999997},{"$f":"VALUE(FIXED(EXP(AO$4*-1*'PM2.5 reduction'!AO181),9))","v":0.99999110199999997},{"$f":"VALUE(FIXED(EXP(AP$4*-1*'PM2.5 reduction'!AP181),9))","v":0.99998500199999996},{"$f":"VALUE(FIXED(EXP(AQ$4*-1*'PM2.5 reduction'!AQ181),9))","v":0.99996088800000005},{"$f":"VALUE(FIXED(EXP(AR$4*-1*'PM2.5 reduction'!AR181),9))","v":0.99995586199999997},{"$f":"VALUE(FIXED(EXP(AS$4*-1*'PM2.5 reduction'!AS181),9))","v":0.99999187099999998},{"$f":"VALUE(FIXED(EXP(AT$4*-1*'PM2.5 reduction'!AT181),9))","v":0.999993723},{"$f":"VALUE(FIXED(EXP(AU$4*-1*'PM2.5 reduction'!AU181),9))","v":0.999993723},{"$f":"VALUE(FIXED(EXP(AV$4*-1*'PM2.5 reduction'!AV181),9))","v":0.99997026600000005},{"$f":"VALUE(FIXED(EXP(AW$4*-1*'PM2.5 reduction'!AW181),9))","v":0.99996194800000004},{"$f":"VALUE(FIXED(EXP(AX$4*-1*'PM2.5 reduction'!AX181),9))","v":0.999976215},{"$f":"VALUE(FIXED(EXP(AY$4*-1*'PM2.5 reduction'!AY181),9))","v":0.99997272599999998},{"$f":"VALUE(FIXED(EXP(AZ$4*-1*'PM2.5 reduction'!AZ181),9))","v":0.99997364700000002},{"$f":"VALUE(FIXED(EXP(BA$4*-1*'PM2.5 reduction'!BA181),9))","v":0.99996865700000004},{"$f":"VALUE(FIXED(EXP(BB$4*-1*'PM2.5 reduction'!BB181),9))","v":0.99996663100000005},{"$f":"VALUE(FIXED(EXP(BC$4*-1*'PM2.5 reduction'!BC181),9))","v":1}]
[null,"Female 40-44",{"$f":"VALUE(FIXED(EXP(C$4*-1*'PM2.5 reduction'!C182),9))","v":0.99993568300000002},{"$f":"VALUE(FIXED(EXP(D$4*-1*'PM2.5 reduction'!D182),9))","v":0.99996296699999998},{"$f":"VALUE(FIXED(EXP(E$4*-1*'PM2.5 reduction'!E182),9))","v":0.99998836000000002},{"$f":"VALUE(FIXED(EXP(F$4*-1*'PM2.5 reduction'!F182),9))","v":0.99998610399999999},{"$f":"VALUE(FIXED(EXP(G$4*-1*'PM2.5 reduction'!G182),9))","v":0.99998302400000005},{"$f":"VALUE(FIXED(EXP(H$4*-1*'PM2.5 reduction'!H182),9))","v":0.99997619500000001},{"$f":"VALUE(FIXED(EXP(I$4*-1*'PM2.5 reduction'!I182),9))","v":0.999991509},{"$f":"VALUE(FIXED(EXP(J$4*-1*'PM2.5 reduction'!J182),9))","v":0.99997627600000005},{"$f":"VALUE(FIXED(EXP(K$4*-1*'PM2.5 reduction'!K182),9))","v":0.99997247300000003},{"$f":"VALUE(FIXED(EXP(L$4*-1*'PM2.5 reduction'!L182),9))","v":0.99998867499999999},{"$f":"VALUE(FIXED(EXP(M$4*-1*'PM2.5 reduction'!M182),9))","v":0.99998867499999999},{"$f":"VALUE(FIXED(EXP(N$4*-1*'PM2.5 reduction'!N182),9))","v":0.99995156100000004},{"$f":"VALUE(FIXED(EXP(O$4*-1*'PM2.5 reduction'!O182),9))","v":0.99997233600000002},{"$f":"VALUE(FIXED(EXP(P$4*-1*'PM2.5 reduction'!P182),9))","v":0.99995429800000002},{"$f":"VALUE(FIXED(EXP(Q$4*-1*'PM2.5 reduction'!Q182),9))","v":0.99997641000000004},{"$f":"VALUE(FIXED(EXP(R$4*-1*'PM2.5 reduction'!R182),9))","v":0.99996152000000005},{"$f":"VALUE(FIXED(EXP(S$4*-1*'PM2.5 reduction'!S182),9))","v":0.99995005599999998},{"$f":"VALUE(FIXED(EXP(T$4*-1*'PM2.5 reduction'!T182),9))","v":0.99992074600000003},{"$f":"VALUE(FIXED(EXP(U$4*-1*'PM2.5 reduction'!U182),9))","v":1},{"$f":"VALUE(FIXED(EXP(V$4*-1*'PM2.5 reduction'!V182),9))","v":0.99996280999999998},{"$f":"VALUE(FIXED(EXP(W$4*-1*'PM2.5 reduction'!W182),9))","v":0.99997135000000004},{"$f":"VALUE(FIXED(EXP(X$4*-1*'PM2.5 reduction'!X182),9))","v":0.99997135000000004},{"$f":"VALUE(FIXED(EXP(Y$4*-1*'PM2.5 reduction'!Y182),9))","v":0.99996853900000005},{"$f":"VALUE(FIXED(EXP(Z$4*-1*'PM2.5 reduction'!Z182),9))","v":0.99992978099999996},{"$f":"VALUE(FIXED(EXP(AA$4*-1*'PM2.5 reduction'!AA182),9))","v":0.99995210000000001},{"$f":"VALUE(FIXED(EXP(AB$4*-1*'PM2.5 reduction'!AB182),9))","v":0.99996474899999999},{"$f":"VALUE(FIXED(EXP(AC$4*-1*'PM2.5 reduction'!AC182),9))","v":0.99994585499999999},{"$f":"VALUE(FIXED(EXP(AD$4*-1*'PM2.5 reduction'!AD182),9))","v":0.99998328599999997},{"$f":"VALUE(FIXED(EXP(AE$4*-1*'PM2.5 reduction'!AE182),9))","v":0.99998330199999996},{"$f":"VALUE(FIXED(EXP(AF$4*-1*'PM2.5 reduction'!AF182),9))","v":0.99997177699999995},{"$f":"VALUE(FIXED(EXP(AG$4*-1*'PM2.5 reduction'!AG182),9))","v":0.99998330199999996},{"$f":"VALUE(FIXED(EXP(AH$4*-1*'PM2.5 reduction'!AH182),9))","v":0.99996014799999999},{"$f":"VALUE(FIXED(EXP(AI$4*-1*'PM2.5 reduction'!AI182),9))","v":0.99993983799999997},{"$f":"VALUE(FIXED(EXP(AJ$4*-1*'PM2.5 reduction'!AJ182),9))","v":0.99997004199999995},{"$f":"VALUE(FIXED(EXP(AK$4*-1*'PM2.5 reduction'!AK182),9))","v":0.99998643399999998},{"$f":"VALUE(FIXED(EXP(AL$4*-1*'PM2.5 reduction'!AL182),9))","v":0.99998375299999998},{"$f":"VALUE(FIXED(EXP(AM$4*-1*'PM2.5 reduction'!AM182),9))","v":0.99995767000000002},{"$f":"VALUE(FIXED(EXP(AN$4*-1*'PM2.5 reduction'!AN182),9))","v":0.999992082},{"$f":"VALUE(FIXED(EXP(AO$4*-1*'PM2.5 reduction'!AO182),9))","v":0.999992082},{"$f":"VALUE(FIXED(EXP(AP$4*-1*'PM2.5 reduction'!AP182),9))","v":0.999985452},{"$f":"VALUE(FIXED(EXP(AQ$4*-1*'PM2.5 reduction'!AQ182),9))","v":0.99996051200000002},{"$f":"VALUE(FIXED(EXP(AR$4*-1*'PM2.5 reduction'!AR182),9))","v":0.99995929299999997},{"$f":"VALUE(FIXED(EXP(AS$4*-1*'PM2.5 reduction'!AS182),9))","v":0.999991509},{"$f":"VALUE(FIXED(EXP(AT$4*-1*'PM2.5 reduction'!AT182),9))","v":0.99999405900000005},{"$f":"VALUE(FIXED(EXP(AU$4*-1*'PM2.5 reduction'!AU182),9))","v":0.99999405900000005},{"$f":"VALUE(FIXED(EXP(AV$4*-1*'PM2.5 reduction'!AV182),9))","v":0.99997048899999996},{"$f":"VALUE(FIXED(EXP(AW$4*-1*'PM2.5 reduction'!AW182),9))","v":0.999962032},{"$f":"VALUE(FIXED(EXP(AX$4*-1*'PM2.5 reduction'!AX182),9))","v":0.99997796500000002},{"$f":"VALUE(FIXED(EXP(AY$4*-1*'PM2.5 reduction'!AY182),9))","v":0.99997361200000001},{"$f":"VALUE(FIXED(EXP(AZ$4*-1*'PM2.5 reduction'!AZ182),9))","v":0.99997546900000001},{"$f":"VALUE(FIXED(EXP(BA$4*-1*'PM2.5 reduction'!BA182),9))","v":0.99996840899999995},{"$f":"VALUE(FIXED(EXP(BB$4*-1*'PM2.5 reduction'!BB182),9))","v":0.99996832400000002},{"$f":"VALUE(FIXED(EXP(BC$4*-1*'PM2.5 reduction'!BC182),9))","v":1}]
[null,"Female 45-49",{"$f":"VALUE(FIXED(EXP(C$4*-1*'PM2.5 reduction'!C183),9))","v":0.99993817900000004},{"$f":"VALUE(FIXED(EXP(D$4*-1*'PM2.5 reduction'!D183),9))","v":0.99996566799999997},{"$f":"VALUE(FIXED(EXP(E$4*-1*'PM2.5 reduction'!E183),9))","v":0.99998857600000002},{"$f":"VALUE(FIXED(EXP(F$4*-1*'PM2.5 reduction'!F183),9))","v":0.99998648099999998},{"$f":"VALUE(FIXED(EXP(G$4*-1*'PM2.5 reduction'!G183),9))","v":0.99998300799999995},{"$f":"VALUE(FIXED(EXP(H$4*-1*'PM2.5 reduction'!H183),9))","v":0.99997688699999998},{"$f":"VALUE(FIXED(EXP(I$4*-1*'PM2.5 reduction'!I183),9))","v":0.999991835},{"$f":"VALUE(FIXED(EXP(J$4*-1*'PM2.5 reduction'!J183),9))","v":0.99997532300000003},{"$f":"VALUE(FIXED(EXP(K$4*-1*'PM2.5 reduction'!K183),9))","v":0.99997021600000002},{"$f":"VALUE(FIXED(EXP(L$4*-1*'PM2.5 reduction'!L183),9))","v":0.99998837100000004},{"$f":"VALUE(FIXED(EXP(M$4*-1*'PM2.5 reduction'!M183),9))","v":0.99998837100000004},{"$f":"VALUE(FIXED(EXP(N$4*-1*'PM2.5 reduction'!N183),9))","v":0.999949333},{"$f":"VALUE(FIXED(EXP(O$4*-1*'PM2.5 reduction'!O183),9))","v":0.99997344899999996},{"$f":"VALUE(FIXED(EXP(P$4*-1*'PM2.5 reduction'!P183),9))","v":0.99995459200000003},{"$f":"VALUE(FIXED(EXP(Q$4*-1*'PM2.5 reduction'!Q183),9))","v":0.999975579},{"$f":"VALUE(FIXED(EXP(R$4*-1*'PM2.5 reduction'!R183),9))","v":0.99996214900000002},{"$f":"VALUE(FIXED(EXP(S$4*-1*'PM2.5 reduction'!S183),9))","v":0.99995383900000001},{"$f":"VALUE(FIXED(EXP(T$4*-1*'PM2.5 reduction'!T183),9))","v":0.99992357499999995},{"$f":"VALUE(FIXED(EXP(U$4*-1*'PM2.5 reduction'!U183),9))","v":1},{"$f":"VALUE(FIXED(EXP(V$4*-1*'PM2.5 reduction'!V183),9))","v":0.99996331000000005},{"$f":"VALUE(FIXED(EXP(W$4*-1*'PM2.5 reduction'!W183),9))","v":0.99997211900000005},{"$f":"VALUE(FIXED(EXP(X$4*-1*'PM2.5 reduction'!X183),9))","v":0.99997211900000005},{"$f":"VALUE(FIXED(EXP(Y$4*-1*'PM2.5 reduction'!Y183),9))","v":0.99996837299999997},{"$f":"VALUE(FIXED(EXP(Z$4*-1*'PM2.5 reduction'!Z183),9))","v":0.99993314099999997},{"$f":"VALUE(FIXED(EXP(AA$4*-1*'PM2.5 reduction'!AA183),9))","v":0.99995371600000005},{"$f":"VALUE(FIXED(EXP(AB$4*-1*'PM2.5 reduction'!AB183),9))","v":0.99996691699999996},{"$f":"VALUE(FIXED(EXP(AC$4*-1*'PM2.5 reduction'!AC183),9))","v":0.99994924299999999},{"$f":"VALUE(FIXED(EXP(AD$4*-1*'PM2.5 reduction'!AD183),9))","v":0.99998268400000001},{"$f":"VALUE(FIXED(EXP(AE$4*-1*'PM2.5 reduction'!AE183),9))","v":0.99998265399999997},{"$f":"VALUE(FIXED(EXP(AF$4*-1*'PM2.5 reduction'!AF183),9))","v":0.99997500100000003},{"$f":"VALUE(FIXED(EXP(AG$4*-1*'PM2.5 reduction'!AG183),9))","v":0.99998265399999997},{"$f":"VALUE(FIXED(EXP(AH$4*-1*'PM2.5 reduction'!AH183),9))","v":0.99995995500000001},{"$f":"VALUE(FIXED(EXP(AI$4*-1*'PM2.5 reduction'!AI183),9))","v":0.99994350700000001},{"$f":"VALUE(FIXED(EXP(AJ$4*-1*'PM2.5 reduction'!AJ183),9))","v":0.99996764299999996},{"$f":"VALUE(FIXED(EXP(AK$4*-1*'PM2.5 reduction'!AK183),9))","v":0.99998172500000004},{"$f":"VALUE(FIXED(EXP(AL$4*-1*'PM2.5 reduction'!AL183),9))","v":0.99998372300000005},{"$f":"VALUE(FIXED(EXP(AM$4*-1*'PM2.5 reduction'!AM183),9))","v":0.99995769899999998},{"$f":"VALUE(FIXED(EXP(AN$4*-1*'PM2.5 reduction'!AN183),9))","v":0.99999172800000002},{"$f":"VALUE(FIXED(EXP(AO$4*-1*'PM2.5 reduction'!AO183),9))","v":0.99999172800000002},{"$f":"VALUE(FIXED(EXP(AP$4*-1*'PM2.5 reduction'!AP183),9))","v":0.99998561699999999},{"$f":"VALUE(FIXED(EXP(AQ$4*-1*'PM2.5 reduction'!AQ183),9))","v":0.99996102899999995},{"$f":"VALUE(FIXED(EXP(AR$4*-1*'PM2.5 reduction'!AR183),9))","v":0.99996132400000004},{"$f":"VALUE(FIXED(EXP(AS$4*-1*'PM2.5 reduction'!AS183),9))","v":0.999991835},{"$f":"VALUE(FIXED(EXP(AT$4*-1*'PM2.5 reduction'!AT183),9))","v":0.99999327199999999},{"$f":"VALUE(FIXED(EXP(AU$4*-1*'PM2.5 reduction'!AU183),9))","v":0.99999327199999999},{"$f":"VALUE(FIXED(EXP(AV$4*-1*'PM2.5 reduction'!AV183),9))","v":0.99997080800000004},{"$f":"VALUE(FIXED(EXP(AW$4*-1*'PM2.5 reduction'!AW183),9))","v":0.99996190100000004},{"$f":"VALUE(FIXED(EXP(AX$4*-1*'PM2.5 reduction'!AX183),9))","v":0.99997847699999998},{"$f":"VALUE(FIXED(EXP(AY$4*-1*'PM2.5 reduction'!AY183),9))","v":0.99997382499999998},{"$f":"VALUE(FIXED(EXP(AZ$4*-1*'PM2.5 reduction'!AZ183),9))","v":0.99997505600000003},{"$f":"VALUE(FIXED(EXP(BA$4*-1*'PM2.5 reduction'!BA183),9))","v":0.99996749299999999},{"$f":"VALUE(FIXED(EXP(BB$4*-1*'PM2.5 reduction'!BB183),9))","v":0.99996803899999998},{"$f":"VALUE(FIXED(EXP(BC$4*-1*'PM2.5 reduction'!BC183),9))","v":1}]
[null,"Female 50-54",{"$f":"VALUE(FIXED(EXP(C$4*-1*'PM2.5 reduction'!C184),9))","v":0.99994228900000004},{"$f":"VALUE(FIXED(EXP(D$4*-1*'PM2.5 reduction'!D184),9))","v":0.99996644400000001},{"$f":"VALUE(FIXED(EXP(E$4*-1*'PM2.5 reduction'!E184),9))","v":0.99998768699999996},{"$f":"VALUE(FIXED(EXP(F$4*-1*'PM2.5 reduction'!F184),9))","v":0.99998661600000005},{"$f":"VALUE(FIXED(EXP(G$4*-1*'PM2.5 reduction'!G184),9))","v":0.99998298900000004},{"$f":"VALUE(FIXED(EXP(H$4*-1*'PM2.5 reduction'!H184),9))","v":0.99997705199999998},{"$f":"VALUE(FIXED(EXP(I$4*-1*'PM2.5 reduction'!I184),9))","v":0.99999166500000003},{"$f":"VALUE(FIXED(EXP(J$4*-1*'PM2.5 reduction'!J184),9))","v":0.99997481099999996},{"$f":"VALUE(FIXED(EXP(K$4*-1*'PM2.5 reduction'!K184),9))","v":0.99996895100000005},{"$f":"VALUE(FIXED(EXP(L$4*-1*'PM2.5 reduction'!L184),9))","v":0.99998814199999997},{"$f":"VALUE(FIXED(EXP(M$4*-1*'PM2.5 reduction'!M184),9))","v":0.99998814199999997},{"$f":"VALUE(FIXED(EXP(N$4*-1*'PM2.5 reduction'!N184),9))","v":0.99995035799999998},{"$f":"VALUE(FIXED(EXP(O$4*-1*'PM2.5 reduction'!O184),9))","v":0.999973903},{"$f":"VALUE(FIXED(EXP(P$4*-1*'PM2.5 reduction'!P184),9))","v":0.99995551400000005},{"$f":"VALUE(FIXED(EXP(Q$4*-1*'PM2.5 reduction'!Q184),9))","v":0.99997366499999996},{"$f":"VALUE(FIXED(EXP(R$4*-1*'PM2.5 reduction'!R184),9))","v":0.99996194199999999},{"$f":"VALUE(FIXED(EXP(S$4*-1*'PM2.5 reduction'!S184),9))","v":0.99995414999999999},{"$f":"VALUE(FIXED(EXP(T$4*-1*'PM2.5 reduction'!T184),9))","v":0.99992738299999995},{"$f":"VALUE(FIXED(EXP(U$4*-1*'PM2.5 reduction'!U184),9))","v":1},{"$f":"VALUE(FIXED(EXP(V$4*-1*'PM2.5 reduction'!V184),9))","v":0.99996275099999998},{"$f":"VALUE(FIXED(EXP(W$4*-1*'PM2.5 reduction'!W184),9))","v":0.99997254899999999},{"$f":"VALUE(FIXED(EXP(X$4*-1*'PM2.5 reduction'!X184),9))","v":0.99997254899999999},{"$f":"VALUE(FIXED(EXP(Y$4*-1*'PM2.5 reduction'!Y184),9))","v":0.999968105},{"$f":"VALUE(FIXED(EXP(Z$4*-1*'PM2.5 reduction'!Z184),9))","v":0.99993380399999998},{"$f":"VALUE(FIXED(EXP(AA$4*-1*'PM2.5 reduction'!AA184),9))","v":0.99995381900000002},{"$f":"VALUE(FIXED(EXP(AB$4*-1*'PM2.5 reduction'!AB184),9))","v":0.99996790000000002},{"$f":"VALUE(FIXED(EXP(AC$4*-1*'PM2.5 reduction'!AC184),9))","v":0.99994972400000004},{"$f":"VALUE(FIXED(EXP(AD$4*-1*'PM2.5 reduction'!AD184),9))","v":0.99998210700000001},{"$f":"VALUE(FIXED(EXP(AE$4*-1*'PM2.5 reduction'!AE184),9))","v":0.99998204000000002},{"$f":"VALUE(FIXED(EXP(AF$4*-1*'PM2.5 reduction'!AF184),9))","v":0.999972533},{"$f":"VALUE(FIXED(EXP(AG$4*-1*'PM2.5 reduction'!AG184),9))","v":0.99998204000000002},{"$f":"VALUE(FIXED(EXP(AH$4*-1*'PM2.5 reduction'!AH184),9))","v":0.99996001999999995},{"$f":"VALUE(FIXED(EXP(AI$4*-1*'PM2.5 reduction'!AI184),9))","v":0.999944359},{"$f":"VALUE(FIXED(EXP(AJ$4*-1*'PM2.5 reduction'!AJ184),9))","v":0.99996878099999997},{"$f":"VALUE(FIXED(EXP(AK$4*-1*'PM2.5 reduction'!AK184),9))","v":0.99998499100000005},{"$f":"VALUE(FIXED(EXP(AL$4*-1*'PM2.5 reduction'!AL184),9))","v":0.99998330899999999},{"$f":"VALUE(FIXED(EXP(AM$4*-1*'PM2.5 reduction'!AM184),9))","v":0.99995659400000003},{"$f":"VALUE(FIXED(EXP(AN$4*-1*'PM2.5 reduction'!AN184),9))","v":0.99999190599999999},{"$f":"VALUE(FIXED(EXP(AO$4*-1*'PM2.5 reduction'!AO184),9))","v":0.99999190599999999},{"$f":"VALUE(FIXED(EXP(AP$4*-1*'PM2.5 reduction'!AP184),9))","v":0.99998669600000001},{"$f":"VALUE(FIXED(EXP(AQ$4*-1*'PM2.5 reduction'!AQ184),9))","v":0.99996095500000004},{"$f":"VALUE(FIXED(EXP(AR$4*-1*'PM2.5 reduction'!AR184),9))","v":0.999961608},{"$f":"VALUE(FIXED(EXP(AS$4*-1*'PM2.5 reduction'!AS184),9))","v":0.99999166500000003},{"$f":"VALUE(FIXED(EXP(AT$4*-1*'PM2.5 reduction'!AT184),9))","v":0.99999291300000004},{"$f":"VALUE(FIXED(EXP(AU$4*-1*'PM2.5 reduction'!AU184),9))","v":0.99999291300000004},{"$f":"VALUE(FIXED(EXP(AV$4*-1*'PM2.5 reduction'!AV184),9))","v":0.99997086000000002},{"$f":"VALUE(FIXED(EXP(AW$4*-1*'PM2.5 reduction'!AW184),9))","v":0.99996296200000001},{"$f":"VALUE(FIXED(EXP(AX$4*-1*'PM2.5 reduction'!AX184),9))","v":0.99997759399999997},{"$f":"VALUE(FIXED(EXP(AY$4*-1*'PM2.5 reduction'!AY184),9))","v":0.99997409400000004},{"$f":"VALUE(FIXED(EXP(AZ$4*-1*'PM2.5 reduction'!AZ184),9))","v":0.99997504500000001},{"$f":"VALUE(FIXED(EXP(BA$4*-1*'PM2.5 reduction'!BA184),9))","v":0.99996859000000005},{"$f":"VALUE(FIXED(EXP(BB$4*-1*'PM2.5 reduction'!BB184),9))","v":0.99996905000000003},{"$f":"VALUE(FIXED(EXP(BC$4*-1*'PM2.5 reduction'!BC184),9))","v":1}]
[null,"Female 55-59",{"$f":"VALUE(FIXED(EXP(C$4*-1*'PM2.5 reduction'!C185),9))","v":0.99994168900000002},{"$f":"VALUE(FIXED(EXP(D$4*-1*'PM2.5 reduction'!D185),9))","v":0.99996651299999995},{"$f":"VALUE(FIXED(EXP(E$4*-1*'PM2.5 reduction'!E185),9))","v":0.99998816599999996},{"$f":"VALUE(FIXED(EXP(F$4*-1*'PM2.5 reduction'!F185),9))","v":0.99998636200000002},{"$f":"VALUE(FIXED(EXP(G$4*-1*'PM2.5 reduction'!G185),9))","v":0.99998294399999998},{"$f":"VALUE(FIXED(EXP(H$4*-1*'PM2.5 reduction'!H185),9))","v":0.99997552899999997},{"$f":"VALUE(FIXED(EXP(I$4*-1*'PM2.5 reduction'!I185),9))","v":0.99999127499999996},{"$f":"VALUE(FIXED(EXP(J$4*-1*'PM2.5 reduction'!J185),9))","v":0.99997421200000003},{"$f":"VALUE(FIXED(EXP(K$4*-1*'PM2.5 reduction'!K185),9))","v":0.99997073299999995},{"$f":"VALUE(FIXED(EXP(L$4*-1*'PM2.5 reduction'!L185),9))","v":0.99998812699999995},{"$f":"VALUE(FIXED(EXP(M$4*-1*'PM2.5 reduction'!M185),9))","v":0.99998812699999995},{"$f":"VALUE(FIXED(EXP(N$4*-1*'PM2.5 reduction'!N185),9))","v":0.99994806000000003},{"$f":"VALUE(FIXED(EXP(O$4*-1*'PM2.5 reduction'!O185),9))","v":0.99997106199999997},{"$f":"VALUE(FIXED(EXP(P$4*-1*'PM2.5 reduction'!P185),9))","v":0.99995480299999995},{"$f":"VALUE(FIXED(EXP(Q$4*-1*'PM2.5 reduction'!Q185),9))","v":0.99997389000000003},{"$f":"VALUE(FIXED(EXP(R$4*-1*'PM2.5 reduction'!R185),9))","v":0.99996109799999999},{"$f":"VALUE(FIXED(EXP(S$4*-1*'PM2.5 reduction'!S185),9))","v":0.99995475199999995},{"$f":"VALUE(FIXED(EXP(T$4*-1*'PM2.5 reduction'!T185),9))","v":0.99992789299999996},{"$f":"VALUE(FIXED(EXP(U$4*-1*'PM2.5 reduction'!U185),9))","v":1},{"$f":"VALUE(FIXED(EXP(V$4*-1*'PM2.5 reduction'!V185),9))","v":0.99996361600000006},{"$f":"VALUE(FIXED(EXP(W$4*-1*'PM2.5 reduction'!W185),9))","v":0.99997206100000002},{"$f":"VALUE(FIXED(EXP(X$4*-1*'PM2.5 reduction'!X185),9))","v":0.99997206100000002},{"$f":"VALUE(FIXED(EXP(Y$4*-1*'PM2.5 reduction'!Y185),9))","v":0.99996829200000004},{"$f":"VALUE(FIXED(EXP(Z$4*-1*'PM2.5 reduction'!Z185),9))","v":0.99993271699999997},{"$f":"VALUE(FIXED(EXP(AA$4*-1*'PM2.5 reduction'!AA185),9))","v":0.99995346799999996},{"$f":"VALUE(FIXED(EXP(AB$4*-1*'PM2.5 reduction'!AB185),9))","v":0.99996793399999995},{"$f":"VALUE(FIXED(EXP(AC$4*-1*'PM2.5 reduction'!AC185),9))","v":0.99994949600000005},{"$f":"VALUE(FIXED(EXP(AD$4*-1*'PM2.5 reduction'!AD185),9))","v":0.99998234399999997},{"$f":"VALUE(FIXED(EXP(AE$4*-1*'PM2.5 reduction'!AE185),9))","v":0.99998229100000002},{"$f":"VALUE(FIXED(EXP(AF$4*-1*'PM2.5 reduction'!AF185),9))","v":0.99997378199999998},{"$f":"VALUE(FIXED(EXP(AG$4*-1*'PM2.5 reduction'!AG185),9))","v":0.99998229100000002},{"$f":"VALUE(FIXED(EXP(AH$4*-1*'PM2.5 reduction'!AH185),9))","v":0.99995995800000004},{"$f":"VALUE(FIXED(EXP(AI$4*-1*'PM2.5 reduction'!AI185),9))","v":0.99994477999999998},{"$f":"VALUE(FIXED(EXP(AJ$4*-1*'PM2.5 reduction'!AJ185),9))","v":0.99996958300000005},{"$f":"VALUE(FIXED(EXP(AK$4*-1*'PM2.5 reduction'!AK185),9))","v":0.99998462399999999},{"$f":"VALUE(FIXED(EXP(AL$4*-1*'PM2.5 reduction'!AL185),9))","v":0.99998339800000002},{"$f":"VALUE(FIXED(EXP(AM$4*-1*'PM2.5 reduction'!AM185),9))","v":0.99995691900000006},{"$f":"VALUE(FIXED(EXP(AN$4*-1*'PM2.5 reduction'!AN185),9))","v":0.99999134599999995},{"$f":"VALUE(FIXED(EXP(AO$4*-1*'PM2.5 reduction'!AO185),9))","v":0.99999134599999995},{"$f":"VALUE(FIXED(EXP(AP$4*-1*'PM2.5 reduction'!AP185),9))","v":0.99998681499999997},{"$f":"VALUE(FIXED(EXP(AQ$4*-1*'PM2.5 reduction'!AQ185),9))","v":0.99996090999999998},{"$f":"VALUE(FIXED(EXP(AR$4*-1*'PM2.5 reduction'!AR185),9))","v":0.99996139100000003},{"$f":"VALUE(FIXED(EXP(AS$4*-1*'PM2.5 reduction'!AS185),9))","v":0.99999127499999996},{"$f":"VALUE(FIXED(EXP(AT$4*-1*'PM2.5 reduction'!AT185),9))","v":0.99999347000000005},{"$f":"VALUE(FIXED(EXP(AU$4*-1*'PM2.5 reduction'!AU185),9))","v":0.99999347000000005},{"$f":"VALUE(FIXED(EXP(AV$4*-1*'PM2.5 reduction'!AV185),9))","v":0.99997052399999997},{"$f":"VALUE(FIXED(EXP(AW$4*-1*'PM2.5 reduction'!AW185),9))","v":0.99996221900000004},{"$f":"VALUE(FIXED(EXP(AX$4*-1*'PM2.5 reduction'!AX185),9))","v":0.999976172},{"$f":"VALUE(FIXED(EXP(AY$4*-1*'PM2.5 reduction'!AY185),9))","v":0.999972521},{"$f":"VALUE(FIXED(EXP(AZ$4*-1*'PM2.5 reduction'!AZ185),9))","v":0.99997281100000002},{"$f":"VALUE(FIXED(EXP(BA$4*-1*'PM2.5 reduction'!BA185),9))","v":0.99996746299999995},{"$f":"VALUE(FIXED(EXP(BB$4*-1*'PM2.5 reduction'!BB185),9))","v":0.99996954299999996},{"$f":"VALUE(FIXED(EXP(BC$4*-1*'PM2.5 reduction'!BC185),9))","v":1}]
[null,"Female 60-64",{"$f":"VALUE(FIXED(EXP(C$4*-1*'PM2.5 reduction'!C186),9))","v":0.99994318800000004},{"$f":"VALUE(FIXED(EXP(D$4*-1*'PM2.5 reduction'!D186),9))","v":0.99996744599999998},{"$f":"VALUE(FIXED(EXP(E$4*-1*'PM2.5 reduction'!E186),9))","v":0.999988023},{"$f":"VALUE(FIXED(EXP(F$4*-1*'PM2.5 reduction'!F186),9))","v":0.999986241},{"$f":"VALUE(FIXED(EXP(G$4*-1*'PM2.5 reduction'!G186),9))","v":0.99998289600000001},{"$f":"VALUE(FIXED(EXP(H$4*-1*'PM2.5 reduction'!H186),9))","v":0.99997573799999995},{"$f":"VALUE(FIXED(EXP(I$4*-1*'PM2.5 reduction'!I186),9))","v":0.99999122900000004},{"$f":"VALUE(FIXED(EXP(J$4*-1*'PM2.5 reduction'!J186),9))","v":0.99997466700000004},{"$f":"VALUE(FIXED(EXP(K$4*-1*'PM2.5 reduction'!K186),9))","v":0.99996870299999996},{"$f":"VALUE(FIXED(EXP(L$4*-1*'PM2.5 reduction'!L186),9))","v":0.99998797699999997},{"$f":"VALUE(FIXED(EXP(M$4*-1*'PM2.5 reduction'!M186),9))","v":0.99998797699999997},{"$f":"VALUE(FIXED(EXP(N$4*-1*'PM2.5 reduction'!N186),9))","v":0.99994904500000004},{"$f":"VALUE(FIXED(EXP(O$4*-1*'PM2.5 reduction'!O186),9))","v":0.99997118100000004},{"$f":"VALUE(FIXED(EXP(P$4*-1*'PM2.5 reduction'!P186),9))","v":0.99995642699999998},{"$f":"VALUE(FIXED(EXP(Q$4*-1*'PM2.5 reduction'!Q186),9))","v":0.99997694999999998},{"$f":"VALUE(FIXED(EXP(R$4*-1*'PM2.5 reduction'!R186),9))","v":0.99996006999999998},{"$f":"VALUE(FIXED(EXP(S$4*-1*'PM2.5 reduction'!S186),9))","v":0.99995549699999997},{"$f":"VALUE(FIXED(EXP(T$4*-1*'PM2.5 reduction'!T186),9))","v":0.99992740300000005},{"$f":"VALUE(FIXED(EXP(U$4*-1*'PM2.5 reduction'!U186),9))","v":1},{"$f":"VALUE(FIXED(EXP(V$4*-1*'PM2.5 reduction'!V186),9))","v":0.99996376399999998},{"$f":"VALUE(FIXED(EXP(W$4*-1*'PM2.5 reduction'!W186),9))","v":0.99997223099999999},{"$f":"VALUE(FIXED(EXP(X$4*-1*'PM2.5 reduction'!X186),9))","v":0.99997223099999999},{"$f":"VALUE(FIXED(EXP(Y$4*-1*'PM2.5 reduction'!Y186),9))","v":0.99996863899999999},{"$f":"VALUE(FIXED(EXP(Z$4*-1*'PM2.5 reduction'!Z186),9))","v":0.99993354300000004},{"$f":"VALUE(FIXED(EXP(AA$4*-1*'PM2.5 reduction'!AA186),9))","v":0.99995430900000004},{"$f":"VALUE(FIXED(EXP(AB$4*-1*'PM2.5 reduction'!AB186),9))","v":0.99996871700000001},{"$f":"VALUE(FIXED(EXP(AC$4*-1*'PM2.5 reduction'!AC186),9))","v":0.99995024200000004},{"$f":"VALUE(FIXED(EXP(AD$4*-1*'PM2.5 reduction'!AD186),9))","v":0.99998233999999997},{"$f":"VALUE(FIXED(EXP(AE$4*-1*'PM2.5 reduction'!AE186),9))","v":0.99998227299999998},{"$f":"VALUE(FIXED(EXP(AF$4*-1*'PM2.5 reduction'!AF186),9))","v":0.99997257799999995},{"$f":"VALUE(FIXED(EXP(AG$4*-1*'PM2.5 reduction'!AG186),9))","v":0.99998227299999998},{"$f":"VALUE(FIXED(EXP(AH$4*-1*'PM2.5 reduction'!AH186),9))","v":0.99996078099999997},{"$f":"VALUE(FIXED(EXP(AI$4*-1*'PM2.5 reduction'!AI186),9))","v":0.99994468299999995},{"$f":"VALUE(FIXED(EXP(AJ$4*-1*'PM2.5 reduction'!AJ186),9))","v":0.99997028899999996},{"$f":"VALUE(FIXED(EXP(AK$4*-1*'PM2.5 reduction'!AK186),9))","v":0.999984184},{"$f":"VALUE(FIXED(EXP(AL$4*-1*'PM2.5 reduction'!AL186),9))","v":0.99998341199999996},{"$f":"VALUE(FIXED(EXP(AM$4*-1*'PM2.5 reduction'!AM186),9))","v":0.99995742799999998},{"$f":"VALUE(FIXED(EXP(AN$4*-1*'PM2.5 reduction'!AN186),9))","v":0.99999227099999999},{"$f":"VALUE(FIXED(EXP(AO$4*-1*'PM2.5 reduction'!AO186),9))","v":0.99999227099999999},{"$f":"VALUE(FIXED(EXP(AP$4*-1*'PM2.5 reduction'!AP186),9))","v":0.99998788800000005},{"$f":"VALUE(FIXED(EXP(AQ$4*-1*'PM2.5 reduction'!AQ186),9))","v":0.99996078399999999},{"$f":"VALUE(FIXED(EXP(AR$4*-1*'PM2.5 reduction'!AR186),9))","v":0.99996271599999997},{"$f":"VALUE(FIXED(EXP(AS$4*-1*'PM2.5 reduction'!AS186),9))","v":0.99999122900000004},{"$f":"VALUE(FIXED(EXP(AT$4*-1*'PM2.5 reduction'!AT186),9))","v":0.99999357},{"$f":"VALUE(FIXED(EXP(AU$4*-1*'PM2.5 reduction'!AU186),9))","v":0.99999357},{"$f":"VALUE(FIXED(EXP(AV$4*-1*'PM2.5 reduction'!AV186),9))","v":0.99997040599999998},{"$f":"VALUE(FIXED(EXP(AW$4*-1*'PM2.5 reduction'!AW186),9))","v":0.99996323200000004},{"$f":"VALUE(FIXED(EXP(AX$4*-1*'PM2.5 reduction'!AX186),9))","v":0.99997762199999995},{"$f":"VALUE(FIXED(EXP(AY$4*-1*'PM2.5 reduction'!AY186),9))","v":0.99997447699999997},{"$f":"VALUE(FIXED(EXP(AZ$4*-1*'PM2.5 reduction'!AZ186),9))","v":0.99997583700000003},{"$f":"VALUE(FIXED(EXP(BA$4*-1*'PM2.5 reduction'!BA186),9))","v":0.99996868800000005},{"$f":"VALUE(FIXED(EXP(BB$4*-1*'PM2.5 reduction'!BB186),9))","v":0.99996926399999997},{"$f":"VALUE(FIXED(EXP(BC$4*-1*'PM2.5 reduction'!BC186),9))","v":1}]
[null,"Female 65-69",{"$f":"VALUE(FIXED(EXP(C$4*-1*'PM2.5 reduction'!C187),9))","v":0.99994539699999996},{"$f":"VALUE(FIXED(EXP(D$4*-1*'PM2.5 reduction'!D187),9))","v":0.999967877},{"$f":"VALUE(FIXED(EXP(E$4*-1*'PM2.5 reduction'!E187),9))","v":0.99998790800000004},{"$f":"VALUE(FIXED(EXP(F$4*-1*'PM2.5 reduction'!F187),9))","v":0.99998582700000005},{"$f":"VALUE(FIXED(EXP(G$4*-1*'PM2.5 reduction'!G187),9))","v":0.99998287600000002},{"$f":"VALUE(FIXED(EXP(H$4*-1*'PM2.5 reduction'!H187),9))","v":0.99997558399999997},{"$f":"VALUE(FIXED(EXP(I$4*-1*'PM2.5 reduction'!I187),9))","v":0.99999134499999998},{"$f":"VALUE(FIXED(EXP(J$4*-1*'PM2.5 reduction'!J187),9))","v":0.99997406},{"$f":"VALUE(FIXED(EXP(K$4*-1*'PM2.5 reduction'!K187),9))","v":0.99997061899999995},{"$f":"VALUE(FIXED(EXP(L$4*-1*'PM2.5 reduction'!L187),9))","v":0.99998846500000005},{"$f":"VALUE(FIXED(EXP(M$4*-1*'PM2.5 reduction'!M187),9))","v":0.99998846500000005},{"$f":"VALUE(FIXED(EXP(N$4*-1*'PM2.5 reduction'!N187),9))","v":0.99995024399999999},{"$f":"VALUE(FIXED(EXP(O$4*-1*'PM2.5 reduction'!O187),9))","v":0.99997131699999997},{"$f":"VALUE(FIXED(EXP(P$4*-1*'PM2.5 reduction'!P187),9))","v":0.99995616799999998},{"$f":"VALUE(FIXED(EXP(Q$4*-1*'PM2.5 reduction'!Q187),9))","v":0.99997562100000004},{"$f":"VALUE(FIXED(EXP(R$4*-1*'PM2.5 reduction'!R187),9))","v":0.99995854299999998},{"$f":"VALUE(FIXED(EXP(S$4*-1*'PM2.5 reduction'!S187),9))","v":0.99995773499999996},{"$f":"VALUE(FIXED(EXP(T$4*-1*'PM2.5 reduction'!T187),9))","v":0.99992978399999999},{"$f":"VALUE(FIXED(EXP(U$4*-1*'PM2.5 reduction'!U187),9))","v":1},{"$f":"VALUE(FIXED(EXP(V$4*-1*'PM2.5 reduction'!V187),9))","v":0.99996277},{"$f":"VALUE(FIXED(EXP(W$4*-1*'PM2.5 reduction'!W187),9))","v":0.99997224100000004},{"$f":"VALUE(FIXED(EXP(X$4*-1*'PM2.5 reduction'!X187),9))","v":0.99997224100000004},{"$f":"VALUE(FIXED(EXP(Y$4*-1*'PM2.5 reduction'!Y187),9))","v":0.99996773900000002},{"$f":"VALUE(FIXED(EXP(Z$4*-1*'PM2.5 reduction'!Z187),9))","v":0.999933925},{"$f":"VALUE(FIXED(EXP(AA$4*-1*'PM2.5 reduction'!AA187),9))","v":0.99995412699999997},{"$f":"VALUE(FIXED(EXP(AB$4*-1*'PM2.5 reduction'!AB187),9))","v":0.99996917900000004},{"$f":"VALUE(FIXED(EXP(AC$4*-1*'PM2.5 reduction'!AC187),9))","v":0.99995046700000001},{"$f":"VALUE(FIXED(EXP(AD$4*-1*'PM2.5 reduction'!AD187),9))","v":0.99998289299999998},{"$f":"VALUE(FIXED(EXP(AE$4*-1*'PM2.5 reduction'!AE187),9))","v":0.99998289500000004},{"$f":"VALUE(FIXED(EXP(AF$4*-1*'PM2.5 reduction'!AF187),9))","v":0.99997064700000005},{"$f":"VALUE(FIXED(EXP(AG$4*-1*'PM2.5 reduction'!AG187),9))","v":0.99998289500000004},{"$f":"VALUE(FIXED(EXP(AH$4*-1*'PM2.5 reduction'!AH187),9))","v":0.99996026900000001},{"$f":"VALUE(FIXED(EXP(AI$4*-1*'PM2.5 reduction'!AI187),9))","v":0.99994681500000004},{"$f":"VALUE(FIXED(EXP(AJ$4*-1*'PM2.5 reduction'!AJ187),9))","v":0.99996854199999996},{"$f":"VALUE(FIXED(EXP(AK$4*-1*'PM2.5 reduction'!AK187),9))","v":0.99998413500000005},{"$f":"VALUE(FIXED(EXP(AL$4*-1*'PM2.5 reduction'!AL187),9))","v":0.99998321999999995},{"$f":"VALUE(FIXED(EXP(AM$4*-1*'PM2.5 reduction'!AM187),9))","v":0.99995697500000003},{"$f":"VALUE(FIXED(EXP(AN$4*-1*'PM2.5 reduction'!AN187),9))","v":0.99999099300000005},{"$f":"VALUE(FIXED(EXP(AO$4*-1*'PM2.5 reduction'!AO187),9))","v":0.99999099300000005},{"$f":"VALUE(FIXED(EXP(AP$4*-1*'PM2.5 reduction'!AP187),9))","v":0.999987933},{"$f":"VALUE(FIXED(EXP(AQ$4*-1*'PM2.5 reduction'!AQ187),9))","v":0.99996051600000002},{"$f":"VALUE(FIXED(EXP(AR$4*-1*'PM2.5 reduction'!AR187),9))","v":0.99996354200000004},{"$f":"VALUE(FIXED(EXP(AS$4*-1*'PM2.5 reduction'!AS187),9))","v":0.99999134499999998},{"$f":"VALUE(FIXED(EXP(AT$4*-1*'PM2.5 reduction'!AT187),9))","v":0.99999357},{"$f":"VALUE(FIXED(EXP(AU$4*-1*'PM2.5 reduction'!AU187),9))","v":0.99999357},{"$f":"VALUE(FIXED(EXP(AV$4*-1*'PM2.5 reduction'!AV187),9))","v":0.99997097400000001},{"$f":"VALUE(FIXED(EXP(AW$4*-1*'PM2.5 reduction'!AW187),9))","v":0.999962499},{"$f":"VALUE(FIXED(EXP(AX$4*-1*'PM2.5 reduction'!AX187),9))","v":0.99997602200000002},{"$f":"VALUE(FIXED(EXP(AY$4*-1*'PM2.5 reduction'!AY187),9))","v":0.99997463099999995},{"$f":"VALUE(FIXED(EXP(AZ$4*-1*'PM2.5 reduction'!AZ187),9))","v":0.99997608999999998},{"$f":"VALUE(FIXED(EXP(BA$4*-1*'PM2.5 reduction'!BA187),9))","v":0.99996928799999996},{"$f":"VALUE(FIXED(EXP(BB$4*-1*'PM2.5 reduction'!BB187),9))","v":0.99996913300000001},{"$f":"VALUE(FIXED(EXP(BC$4*-1*'PM2.5 reduction'!BC187),9))","v":1}]
[null,"Female 70-74",{"$f":"VALUE(FIXED(EXP(C$4*-1*'PM2.5 reduction'!C188),9))","v":0.99994510700000006},{"$f":"VALUE(FIXED(EXP(D$4*-1*'PM2.5 reduction'!D188),9))","v":0.99997015099999997},{"$f":"VALUE(FIXED(EXP(E$4*-1*'PM2.5 reduction'!E188),9))","v":0.99998838599999995},{"$f":"VALUE(FIXED(EXP(F$4*-1*'PM2.5 reduction'!F188),9))","v":0.999986861},{"$f":"VALUE(FIXED(EXP(G$4*-1*'PM2.5 reduction'!G188),9))","v":0.99998290099999998},{"$f":"VALUE(FIXED(EXP(H$4*-1*'PM2.5 reduction'!H188),9))","v":0.99997634599999996},{"$f":"VALUE(FIXED(EXP(I$4*-1*'PM2.5 reduction'!I188),9))","v":0.99999200700000002},{"$f":"VALUE(FIXED(EXP(J$4*-1*'PM2.5 reduction'!J188),9))","v":0.99997345100000001},{"$f":"VALUE(FIXED(EXP(K$4*-1*'PM2.5 reduction'!K188),9))","v":0.99996962099999998},{"$f":"VALUE(FIXED(EXP(L$4*-1*'PM2.5 reduction'!L188),9))","v":0.99998851300000002},{"$f":"VALUE(FIXED(EXP(M$4*-1*'PM2.5 reduction'!M188),9))","v":0.99998851300000002},{"$f":"VALUE(FIXED(EXP(N$4*-1*'PM2.5 reduction'!N188),9))","v":0.99994919800000004},{"$f":"VALUE(FIXED(EXP(O$4*-1*'PM2.5 reduction'!O188),9))","v":0.99997501799999999},{"$f":"VALUE(FIXED(EXP(P$4*-1*'PM2.5 reduction'!P188),9))","v":0.99995536799999996},{"$f":"VALUE(FIXED(EXP(Q$4*-1*'PM2.5 reduction'!Q188),9))","v":0.999975104},{"$f":"VALUE(FIXED(EXP(R$4*-1*'PM2.5 reduction'!R188),9))","v":0.99995689700000001},{"$f":"VALUE(FIXED(EXP(S$4*-1*'PM2.5 reduction'!S188),9))","v":0.99995955299999995},{"$f":"VALUE(FIXED(EXP(T$4*-1*'PM2.5 reduction'!T188),9))","v":0.99993135},{"$f":"VALUE(FIXED(EXP(U$4*-1*'PM2.5 reduction'!U188),9))","v":1},{"$f":"VALUE(FIXED(EXP(V$4*-1*'PM2.5 reduction'!V188),9))","v":0.99996079599999999},{"$f":"VALUE(FIXED(EXP(W$4*-1*'PM2.5 reduction'!W188),9))","v":0.99997307000000002},{"$f":"VALUE(FIXED(EXP(X$4*-1*'PM2.5 reduction'!X188),9))","v":0.99997307000000002},{"$f":"VALUE(FIXED(EXP(Y$4*-1*'PM2.5 reduction'!Y188),9))","v":0.99996637899999996},{"$f":"VALUE(FIXED(EXP(Z$4*-1*'PM2.5 reduction'!Z188),9))","v":0.99993411499999996},{"$f":"VALUE(FIXED(EXP(AA$4*-1*'PM2.5 reduction'!AA188),9))","v":0.99995427299999995},{"$f":"VALUE(FIXED(EXP(AB$4*-1*'PM2.5 reduction'!AB188),9))","v":0.99997130199999995},{"$f":"VALUE(FIXED(EXP(AC$4*-1*'PM2.5 reduction'!AC188),9))","v":0.99995130099999996},{"$f":"VALUE(FIXED(EXP(AD$4*-1*'PM2.5 reduction'!AD188),9))","v":0.999982763},{"$f":"VALUE(FIXED(EXP(AE$4*-1*'PM2.5 reduction'!AE188),9))","v":0.99998274200000004},{"$f":"VALUE(FIXED(EXP(AF$4*-1*'PM2.5 reduction'!AF188),9))","v":0.99997162299999998},{"$f":"VALUE(FIXED(EXP(AG$4*-1*'PM2.5 reduction'!AG188),9))","v":0.99998274200000004},{"$f":"VALUE(FIXED(EXP(AH$4*-1*'PM2.5 reduction'!AH188),9))","v":0.99995976399999997},{"$f":"VALUE(FIXED(EXP(AI$4*-1*'PM2.5 reduction'!AI188),9))","v":0.99994794300000001},{"$f":"VALUE(FIXED(EXP(AJ$4*-1*'PM2.5 reduction'!AJ188),9))","v":0.99996969599999996},{"$f":"VALUE(FIXED(EXP(AK$4*-1*'PM2.5 reduction'!AK188),9))","v":0.99998341499999999},{"$f":"VALUE(FIXED(EXP(AL$4*-1*'PM2.5 reduction'!AL188),9))","v":0.99998356099999997},{"$f":"VALUE(FIXED(EXP(AM$4*-1*'PM2.5 reduction'!AM188),9))","v":0.99995715299999999},{"$f":"VALUE(FIXED(EXP(AN$4*-1*'PM2.5 reduction'!AN188),9))","v":0.99999226399999996},{"$f":"VALUE(FIXED(EXP(AO$4*-1*'PM2.5 reduction'!AO188),9))","v":0.99999226399999996},{"$f":"VALUE(FIXED(EXP(AP$4*-1*'PM2.5 reduction'!AP188),9))","v":0.99998765099999998},{"$f":"VALUE(FIXED(EXP(AQ$4*-1*'PM2.5 reduction'!AQ188),9))","v":0.99996187000000003},{"$f":"VALUE(FIXED(EXP(AR$4*-1*'PM2.5 reduction'!AR188),9))","v":0.99996496199999996},{"$f":"VALUE(FIXED(EXP(AS$4*-1*'PM2.5 reduction'!AS188),9))","v":0.99999200700000002},{"$f":"VALUE(FIXED(EXP(AT$4*-1*'PM2.5 reduction'!AT188),9))","v":0.99999305299999997},{"$f":"VALUE(FIXED(EXP(AU$4*-1*'PM2.5 reduction'!AU188),9))","v":0.99999305299999997},{"$f":"VALUE(FIXED(EXP(AV$4*-1*'PM2.5 reduction'!AV188),9))","v":0.99997102400000004},{"$f":"VALUE(FIXED(EXP(AW$4*-1*'PM2.5 reduction'!AW188),9))","v":0.99996164099999996},{"$f":"VALUE(FIXED(EXP(AX$4*-1*'PM2.5 reduction'!AX188),9))","v":0.99997604600000001},{"$f":"VALUE(FIXED(EXP(AY$4*-1*'PM2.5 reduction'!AY188),9))","v":0.99997587399999999},{"$f":"VALUE(FIXED(EXP(AZ$4*-1*'PM2.5 reduction'!AZ188),9))","v":0.99997747599999998},{"$f":"VALUE(FIXED(EXP(BA$4*-1*'PM2.5 reduction'!BA188),9))","v":0.99996838499999996},{"$f":"VALUE(FIXED(EXP(BB$4*-1*'PM2.5 reduction'!BB188),9))","v":0.99996827099999996},{"$f":"VALUE(FIXED(EXP(BC$4*-1*'PM2.5 reduction'!BC188),9))","v":1}]
[null,"Female 75-79",{"$f":"VALUE(FIXED(EXP(C$4*-1*'PM2.5 reduction'!C189),9))","v":0.99994166900000003},{"$f":"VALUE(FIXED(EXP(D$4*-1*'PM2.5 reduction'!D189),9))","v":0.99996873100000006},{"$f":"VALUE(FIXED(EXP(E$4*-1*'PM2.5 reduction'!E189),9))","v":0.99998802600000003},{"$f":"VALUE(FIXED(EXP(F$4*-1*'PM2.5 reduction'!F189),9))","v":0.999985978},{"$f":"VALUE(FIXED(EXP(G$4*-1*'PM2.5 reduction'!G189),9))","v":0.99998281300000003},{"$f":"VALUE(FIXED(EXP(H$4*-1*'PM2.5 reduction'!H189),9))","v":0.99997487500000004},{"$f":"VALUE(FIXED(EXP(I$4*-1*'PM2.5 reduction'!I189),9))","v":0.99999145499999997},{"$f":"VALUE(FIXED(EXP(J$4*-1*'PM2.5 reduction'!J189),9))","v":0.99997387500000001},{"$f":"VALUE(FIXED(EXP(K$4*-1*'PM2.5 reduction'!K189),9))","v":0.99997177599999998},{"$f":"VALUE(FIXED(EXP(L$4*-1*'PM2.5 reduction'!L189),9))","v":0.99998868299999999},{"$f":"VALUE(FIXED(EXP(M$4*-1*'PM2.5 reduction'!M189),9))","v":0.99998868299999999},{"$f":"VALUE(FIXED(EXP(N$4*-1*'PM2.5 reduction'!N189),9))","v":0.99994846999999998},{"$f":"VALUE(FIXED(EXP(O$4*-1*'PM2.5 reduction'!O189),9))","v":0.99997181599999996},{"$f":"VALUE(FIXED(EXP(P$4*-1*'PM2.5 reduction'!P189),9))","v":0.99995401799999994},{"$f":"VALUE(FIXED(EXP(Q$4*-1*'PM2.5 reduction'!Q189),9))","v":0.99997379200000003},{"$f":"VALUE(FIXED(EXP(R$4*-1*'PM2.5 reduction'!R189),9))","v":0.99995752299999996},{"$f":"VALUE(FIXED(EXP(S$4*-1*'PM2.5 reduction'!S189),9))","v":0.99995806600000003},{"$f":"VALUE(FIXED(EXP(T$4*-1*'PM2.5 reduction'!T189),9))","v":0.999930298},{"$f":"VALUE(FIXED(EXP(U$4*-1*'PM2.5 reduction'!U189),9))","v":1},{"$f":"VALUE(FIXED(EXP(V$4*-1*'PM2.5 reduction'!V189),9))","v":0.99996015599999999},{"$f":"VALUE(FIXED(EXP(W$4*-1*'PM2.5 reduction'!W189),9))","v":0.99997287899999998},{"$f":"VALUE(FIXED(EXP(X$4*-1*'PM2.5 reduction'!X189),9))","v":0.99997287899999998},{"$f":"VALUE(FIXED(EXP(Y$4*-1*'PM2.5 reduction'!Y189),9))","v":0.99996596000000004},{"$f":"VALUE(FIXED(EXP(Z$4*-1*'PM2.5 reduction'!Z189),9))","v":0.99993426399999996},{"$f":"VALUE(FIXED(EXP(AA$4*-1*'PM2.5 reduction'!AA189),9))","v":0.99995303499999999},{"$f":"VALUE(FIXED(EXP(AB$4*-1*'PM2.5 reduction'!AB189),9))","v":0.99996997700000001},{"$f":"VALUE(FIXED(EXP(AC$4*-1*'PM2.5 reduction'!AC189),9))","v":0.99994994599999998},{"$f":"VALUE(FIXED(EXP(AD$4*-1*'PM2.5 reduction'!AD189),9))","v":0.99998150399999997},{"$f":"VALUE(FIXED(EXP(AE$4*-1*'PM2.5 reduction'!AE189),9))","v":0.99998129400000002},{"$f":"VALUE(FIXED(EXP(AF$4*-1*'PM2.5 reduction'!AF189),9))","v":0.99996840499999995},{"$f":"VALUE(FIXED(EXP(AG$4*-1*'PM2.5 reduction'!AG189),9))","v":0.99998129400000002},{"$f":"VALUE(FIXED(EXP(AH$4*-1*'PM2.5 reduction'!AH189),9))","v":0.99995891400000003},{"$f":"VALUE(FIXED(EXP(AI$4*-1*'PM2.5 reduction'!AI189),9))","v":0.99994588200000001},{"$f":"VALUE(FIXED(EXP(AJ$4*-1*'PM2.5 reduction'!AJ189),9))","v":0.99996883700000005},{"$f":"VALUE(FIXED(EXP(AK$4*-1*'PM2.5 reduction'!AK189),9))","v":0.99998366800000005},{"$f":"VALUE(FIXED(EXP(AL$4*-1*'PM2.5 reduction'!AL189),9))","v":0.99998311200000001},{"$f":"VALUE(FIXED(EXP(AM$4*-1*'PM2.5 reduction'!AM189),9))","v":0.99995574300000001},{"$f":"VALUE(FIXED(EXP(AN$4*-1*'PM2.5 reduction'!AN189),9))","v":0.99999132099999999},{"$f":"VALUE(FIXED(EXP(AO$4*-1*'PM2.5 reduction'!AO189),9))","v":0.99999132099999999},{"$f":"VALUE(FIXED(EXP(AP$4*-1*'PM2.5 reduction'!AP189),9))","v":0.99998810599999999},{"$f":"VALUE(FIXED(EXP(AQ$4*-1*'PM2.5 reduction'!AQ189),9))","v":0.99996004999999999},{"$f":"VALUE(FIXED(EXP(AR$4*-1*'PM2.5 reduction'!AR189),9))","v":0.99996363899999996},{"$f":"VALUE(FIXED(EXP(AS$4*-1*'PM2.5 reduction'!AS189),9))","v":0.99999145499999997},{"$f":"VALUE(FIXED(EXP(AT$4*-1*'PM2.5 reduction'!AT189),9))","v":0.99999250799999995},{"$f":"VALUE(FIXED(EXP(AU$4*-1*'PM2.5 reduction'!AU189),9))","v":0.99999250799999995},{"$f":"VALUE(FIXED(EXP(AV$4*-1*'PM2.5 reduction'!AV189),9))","v":0.99997087600000001},{"$f":"VALUE(FIXED(EXP(AW$4*-1*'PM2.5 reduction'!AW189),9))","v":0.99996116300000004},{"$f":"VALUE(FIXED(EXP(AX$4*-1*'PM2.5 reduction'!AX189),9))","v":0.99997487600000001},{"$f":"VALUE(FIXED(EXP(AY$4*-1*'PM2.5 reduction'!AY189),9))","v":0.99997597900000001},{"$f":"VALUE(FIXED(EXP(AZ$4*-1*'PM2.5 reduction'!AZ189),9))","v":0.99997749499999999},{"$f":"VALUE(FIXED(EXP(BA$4*-1*'PM2.5 reduction'!BA189),9))","v":0.99996759400000002},{"$f":"VALUE(FIXED(EXP(BB$4*-1*'PM2.5 reduction'!BB189),9))","v":0.99996891499999996},{"$f":"VALUE(FIXED(EXP(BC$4*-1*'PM2.5 reduction'!BC189),9))","v":1}]
[null,"Female 80-84",{"$f":"VALUE(FIXED(EXP(C$4*-1*'PM2.5 reduction'!C190),9))","v":0.99993980199999999},{"$f":"VALUE(FIXED(EXP(D$4*-1*'PM2.5 reduction'!D190),9))","v":0.99996894199999997},{"$f":"VALUE(FIXED(EXP(E$4*-1*'PM2.5 reduction'!E190),9))","v":0.99998809600000005},{"$f":"VALUE(FIXED(EXP(F$4*-1*'PM2.5 reduction'!F190),9))","v":0.99998638399999995},{"$f":"VALUE(FIXED(EXP(G$4*-1*'PM2.5 reduction'!G190),9))","v":0.99998269500000003},{"$f":"VALUE(FIXED(EXP(H$4*-1*'PM2.5 reduction'!H190),9))","v":0.99997433899999999},{"$f":"VALUE(FIXED(EXP(I$4*-1*'PM2.5 reduction'!I190),9))","v":0.99999140399999997},{"$f":"VALUE(FIXED(EXP(J$4*-1*'PM2.5 reduction'!J190),9))","v":0.99997410200000003},{"$f":"VALUE(FIXED(EXP(K$4*-1*'PM2.5 reduction'!K190),9))","v":0.99997541599999995},{"$f":"VALUE(FIXED(EXP(L$4*-1*'PM2.5 reduction'!L190),9))","v":0.99998876400000003},{"$f":"VALUE(FIXED(EXP(M$4*-1*'PM2.5 reduction'!M190),9))","v":0.99998876400000003},{"$f":"VALUE(FIXED(EXP(N$4*-1*'PM2.5 reduction'!N190),9))","v":0.99994770600000005},{"$f":"VALUE(FIXED(EXP(O$4*-1*'PM2.5 reduction'!O190),9))","v":0.99997023799999996},{"$f":"VALUE(FIXED(EXP(P$4*-1*'PM2.5 reduction'!P190),9))","v":0.99995343400000003},{"$f":"VALUE(FIXED(EXP(Q$4*-1*'PM2.5 reduction'!Q190),9))","v":0.99997652999999997},{"$f":"VALUE(FIXED(EXP(R$4*-1*'PM2.5 reduction'!R190),9))","v":0.99995453400000001},{"$f":"VALUE(FIXED(EXP(S$4*-1*'PM2.5 reduction'!S190),9))","v":0.99995623600000005},{"$f":"VALUE(FIXED(EXP(T$4*-1*'PM2.5 reduction'!T190),9))","v":0.99993199200000005},{"$f":"VALUE(FIXED(EXP(U$4*-1*'PM2.5 reduction'!U190),9))","v":1},{"$f":"VALUE(FIXED(EXP(V$4*-1*'PM2.5 reduction'!V190),9))","v":0.99995530799999999},{"$f":"VALUE(FIXED(EXP(W$4*-1*'PM2.5 reduction'!W190),9))","v":0.99997218200000004},{"$f":"VALUE(FIXED(EXP(X$4*-1*'PM2.5 reduction'!X190),9))","v":0.99997218200000004},{"$f":"VALUE(FIXED(EXP(Y$4*-1*'PM2.5 reduction'!Y190),9))","v":0.99996393500000003},{"$f":"VALUE(FIXED(EXP(Z$4*-1*'PM2.5 reduction'!Z190),9))","v":0.99993362399999997},{"$f":"VALUE(FIXED(EXP(AA$4*-1*'PM2.5 reduction'!AA190),9))","v":0.999951853},{"$f":"VALUE(FIXED(EXP(AB$4*-1*'PM2.5 reduction'!AB190),9))","v":0.99996997200000004},{"$f":"VALUE(FIXED(EXP(AC$4*-1*'PM2.5 reduction'!AC190),9))","v":0.99994887099999996},{"$f":"VALUE(FIXED(EXP(AD$4*-1*'PM2.5 reduction'!AD190),9))","v":0.99998183900000004},{"$f":"VALUE(FIXED(EXP(AE$4*-1*'PM2.5 reduction'!AE190),9))","v":0.99998170799999997},{"$f":"VALUE(FIXED(EXP(AF$4*-1*'PM2.5 reduction'!AF190),9))","v":0.99996552100000002},{"$f":"VALUE(FIXED(EXP(AG$4*-1*'PM2.5 reduction'!AG190),9))","v":0.99998170799999997},{"$f":"VALUE(FIXED(EXP(AH$4*-1*'PM2.5 reduction'!AH190),9))","v":0.99995814000000005},{"$f":"VALUE(FIXED(EXP(AI$4*-1*'PM2.5 reduction'!AI190),9))","v":0.99994528999999999},{"$f":"VALUE(FIXED(EXP(AJ$4*-1*'PM2.5 reduction'!AJ190),9))","v":0.99996998000000004},{"$f":"VALUE(FIXED(EXP(AK$4*-1*'PM2.5 reduction'!AK190),9))","v":0.99998245799999996},{"$f":"VALUE(FIXED(EXP(AL$4*-1*'PM2.5 reduction'!AL190),9))","v":0.99998296799999997},{"$f":"VALUE(FIXED(EXP(AM$4*-1*'PM2.5 reduction'!AM190),9))","v":0.99995482199999997},{"$f":"VALUE(FIXED(EXP(AN$4*-1*'PM2.5 reduction'!AN190),9))","v":0.999992094},{"$f":"VALUE(FIXED(EXP(AO$4*-1*'PM2.5 reduction'!AO190),9))","v":0.999992094},{"$f":"VALUE(FIXED(EXP(AP$4*-1*'PM2.5 reduction'!AP190),9))","v":0.99998756700000002},{"$f":"VALUE(FIXED(EXP(AQ$4*-1*'PM2.5 reduction'!AQ190),9))","v":0.99995907100000003},{"$f":"VALUE(FIXED(EXP(AR$4*-1*'PM2.5 reduction'!AR190),9))","v":0.999962727},{"$f":"VALUE(FIXED(EXP(AS$4*-1*'PM2.5 reduction'!AS190),9))","v":0.99999140399999997},{"$f":"VALUE(FIXED(EXP(AT$4*-1*'PM2.5 reduction'!AT190),9))","v":0.99999281100000004},{"$f":"VALUE(FIXED(EXP(AU$4*-1*'PM2.5 reduction'!AU190),9))","v":0.99999281100000004},{"$f":"VALUE(FIXED(EXP(AV$4*-1*'PM2.5 reduction'!AV190),9))","v":0.99997083200000003},{"$f":"VALUE(FIXED(EXP(AW$4*-1*'PM2.5 reduction'!AW190),9))","v":0.99996000399999996},{"$f":"VALUE(FIXED(EXP(AX$4*-1*'PM2.5 reduction'!AX190),9))","v":0.99997359399999997},{"$f":"VALUE(FIXED(EXP(AY$4*-1*'PM2.5 reduction'!AY190),9))","v":0.99997461099999996},{"$f":"VALUE(FIXED(EXP(AZ$4*-1*'PM2.5 reduction'!AZ190),9))","v":0.999975583},{"$f":"VALUE(FIXED(EXP(BA$4*-1*'PM2.5 reduction'!BA190),9))","v":0.99996647400000005},{"$f":"VALUE(FIXED(EXP(BB$4*-1*'PM2.5 reduction'!BB190),9))","v":0.99996996900000001},{"$f":"VALUE(FIXED(EXP(BC$4*-1*'PM2.5 reduction'!BC190),9))","v":1}]
[null,"Female 85-89",{"$f":"VALUE(FIXED(EXP(C$4*-1*'PM2.5 reduction'!C191),9))","v":0.99993753799999996},{"$f":"VALUE(FIXED(EXP(D$4*-1*'PM2.5 reduction'!D191),9))","v":0.99996860600000004},{"$f":"VALUE(FIXED(EXP(E$4*-1*'PM2.5 reduction'!E191),9))","v":0.99998846799999996},{"$f":"VALUE(FIXED(EXP(F$4*-1*'PM2.5 reduction'!F191),9))","v":0.99998598599999999},{"$f":"VALUE(FIXED(EXP(G$4*-1*'PM2.5 reduction'!G191),9))","v":0.99998253800000003},{"$f":"VALUE(FIXED(EXP(H$4*-1*'PM2.5 reduction'!H191),9))","v":0.99997446599999995},{"$f":"VALUE(FIXED(EXP(I$4*-1*'PM2.5 reduction'!I191),9))","v":0.99999155200000001},{"$f":"VALUE(FIXED(EXP(J$4*-1*'PM2.5 reduction'!J191),9))","v":0.99997263400000003},{"$f":"VALUE(FIXED(EXP(K$4*-1*'PM2.5 reduction'!K191),9))","v":0.99997607499999996},{"$f":"VALUE(FIXED(EXP(L$4*-1*'PM2.5 reduction'!L191),9))","v":0.99998846600000002},{"$f":"VALUE(FIXED(EXP(M$4*-1*'PM2.5 reduction'!M191),9))","v":0.99998846600000002},{"$f":"VALUE(FIXED(EXP(N$4*-1*'PM2.5 reduction'!N191),9))","v":0.99995282500000005},{"$f":"VALUE(FIXED(EXP(O$4*-1*'PM2.5 reduction'!O191),9))","v":0.99997141899999997},{"$f":"VALUE(FIXED(EXP(P$4*-1*'PM2.5 reduction'!P191),9))","v":0.99995153400000003},{"$f":"VALUE(FIXED(EXP(Q$4*-1*'PM2.5 reduction'!Q191),9))","v":0.99997737499999995},{"$f":"VALUE(FIXED(EXP(R$4*-1*'PM2.5 reduction'!R191),9))","v":0.99995386500000005},{"$f":"VALUE(FIXED(EXP(S$4*-1*'PM2.5 reduction'!S191),9))","v":0.99995330999999998},{"$f":"VALUE(FIXED(EXP(T$4*-1*'PM2.5 reduction'!T191),9))","v":0.99993272700000002},{"$f":"VALUE(FIXED(EXP(U$4*-1*'PM2.5 reduction'!U191),9))","v":1},{"$f":"VALUE(FIXED(EXP(V$4*-1*'PM2.5 reduction'!V191),9))","v":0.99995570099999997},{"$f":"VALUE(FIXED(EXP(W$4*-1*'PM2.5 reduction'!W191),9))","v":0.99997125200000003},{"$f":"VALUE(FIXED(EXP(X$4*-1*'PM2.5 reduction'!X191),9))","v":0.99997125200000003},{"$f":"VALUE(FIXED(EXP(Y$4*-1*'PM2.5 reduction'!Y191),9))","v":0.99996380699999998},{"$f":"VALUE(FIXED(EXP(Z$4*-1*'PM2.5 reduction'!Z191),9))","v":0.99993251000000005},{"$f":"VALUE(FIXED(EXP(AA$4*-1*'PM2.5 reduction'!AA191),9))","v":0.99995067100000001},{"$f":"VALUE(FIXED(EXP(AB$4*-1*'PM2.5 reduction'!AB191),9))","v":0.99996924799999998},{"$f":"VALUE(FIXED(EXP(AC$4*-1*'PM2.5 reduction'!AC191),9))","v":0.99994707699999996},{"$f":"VALUE(FIXED(EXP(AD$4*-1*'PM2.5 reduction'!AD191),9))","v":0.999979175},{"$f":"VALUE(FIXED(EXP(AE$4*-1*'PM2.5 reduction'!AE191),9))","v":0.99997845900000004},{"$f":"VALUE(FIXED(EXP(AF$4*-1*'PM2.5 reduction'!AF191),9))","v":0.99996323300000001},{"$f":"VALUE(FIXED(EXP(AG$4*-1*'PM2.5 reduction'!AG191),9))","v":0.99997845900000004},{"$f":"VALUE(FIXED(EXP(AH$4*-1*'PM2.5 reduction'!AH191),9))","v":0.99995931500000002},{"$f":"VALUE(FIXED(EXP(AI$4*-1*'PM2.5 reduction'!AI191),9))","v":0.99994269099999999},{"$f":"VALUE(FIXED(EXP(AJ$4*-1*'PM2.5 reduction'!AJ191),9))","v":0.99996983100000003},{"$f":"VALUE(FIXED(EXP(AK$4*-1*'PM2.5 reduction'!AK191),9))","v":0.99997844999999996},{"$f":"VALUE(FIXED(EXP(AL$4*-1*'PM2.5 reduction'!AL191),9))","v":0.99998239300000002},{"$f":"VALUE(FIXED(EXP(AM$4*-1*'PM2.5 reduction'!AM191),9))","v":0.99995521899999995},{"$f":"VALUE(FIXED(EXP(AN$4*-1*'PM2.5 reduction'!AN191),9))","v":0.99999120200000002},{"$f":"VALUE(FIXED(EXP(AO$4*-1*'PM2.5 reduction'!AO191),9))","v":0.99999120200000002},{"$f":"VALUE(FIXED(EXP(AP$4*-1*'PM2.5 reduction'!AP191),9))","v":0.99998837399999996},{"$f":"VALUE(FIXED(EXP(AQ$4*-1*'PM2.5 reduction'!AQ191),9))","v":0.99995582000000005},{"$f":"VALUE(FIXED(EXP(AR$4*-1*'PM2.5 reduction'!AR191),9))","v":0.999961392},{"$f":"VALUE(FIXED(EXP(AS$4*-1*'PM2.5 reduction'!AS191),9))","v":0.99999155200000001},{"$f":"VALUE(FIXED(EXP(AT$4*-1*'PM2.5 reduction'!AT191),9))","v":0.99999412399999998},{"$f":"VALUE(FIXED(EXP(AU$4*-1*'PM2.5 reduction'!AU191),9))","v":0.99999412399999998},{"$f":"VALUE(FIXED(EXP(AV$4*-1*'PM2.5 reduction'!AV191),9))","v":0.99997082299999995},{"$f":"VALUE(FIXED(EXP(AW$4*-1*'PM2.5 reduction'!AW191),9))","v":0.99996074599999996},{"$f":"VALUE(FIXED(EXP(AX$4*-1*'PM2.5 reduction'!AX191),9))","v":0.99997138200000002},{"$f":"VALUE(FIXED(EXP(AY$4*-1*'PM2.5 reduction'!AY191),9))","v":0.99997457499999998},{"$f":"VALUE(FIXED(EXP(AZ$4*-1*'PM2.5 reduction'!AZ191),9))","v":0.99997583499999998},{"$f":"VALUE(FIXED(EXP(BA$4*-1*'PM2.5 reduction'!BA191),9))","v":0.99996683900000005},{"$f":"VALUE(FIXED(EXP(BB$4*-1*'PM2.5 reduction'!BB191),9))","v":0.99996888699999997},{"$f":"VALUE(FIXED(EXP(BC$4*-1*'PM2.5 reduction'!BC191),9))","v":1}]
[null,"Female 90+",{"$f":"VALUE(FIXED(EXP(C$4*-1*'PM2.5 reduction'!C192),9))","v":0.99993248199999996},{"$f":"VALUE(FIXED(EXP(D$4*-1*'PM2.5 reduction'!D192),9))","v":0.99996954000000005},{"$f":"VALUE(FIXED(EXP(E$4*-1*'PM2.5 reduction'!E192),9))","v":0.99998700100000004},{"$f":"VALUE(FIXED(EXP(F$4*-1*'PM2.5 reduction'!F192),9))","v":0.99998697199999997},{"$f":"VALUE(FIXED(EXP(G$4*-1*'PM2.5 reduction'!G192),9))","v":0.99998242500000001},{"$f":"VALUE(FIXED(EXP(H$4*-1*'PM2.5 reduction'!H192),9))","v":0.99997386799999999},{"$f":"VALUE(FIXED(EXP(I$4*-1*'PM2.5 reduction'!I192),9))","v":0.99999047600000002},{"$f":"VALUE(FIXED(EXP(J$4*-1*'PM2.5 reduction'!J192),9))","v":0.99997760499999999},{"$f":"VALUE(FIXED(EXP(K$4*-1*'PM2.5 reduction'!K192),9))","v":0.99997569900000005},{"$f":"VALUE(FIXED(EXP(L$4*-1*'PM2.5 reduction'!L192),9))","v":0.99998901900000003},{"$f":"VALUE(FIXED(EXP(M$4*-1*'PM2.5 reduction'!M192),9))","v":0.99998901900000003},{"$f":"VALUE(FIXED(EXP(N$4*-1*'PM2.5 reduction'!N192),9))","v":0.99995701000000003},{"$f":"VALUE(FIXED(EXP(O$4*-1*'PM2.5 reduction'!O192),9))","v":0.99996490299999996},{"$f":"VALUE(FIXED(EXP(P$4*-1*'PM2.5 reduction'!P192),9))","v":0.99995172899999996},{"$f":"VALUE(FIXED(EXP(Q$4*-1*'PM2.5 reduction'!Q192),9))","v":0.99998295400000003},{"$f":"VALUE(FIXED(EXP(R$4*-1*'PM2.5 reduction'!R192),9))","v":0.99995216399999998},{"$f":"VALUE(FIXED(EXP(S$4*-1*'PM2.5 reduction'!S192),9))","v":0.99995139399999999},{"$f":"VALUE(FIXED(EXP(T$4*-1*'PM2.5 reduction'!T192),9))","v":0.99992936499999996},{"$f":"VALUE(FIXED(EXP(U$4*-1*'PM2.5 reduction'!U192),9))","v":1},{"$f":"VALUE(FIXED(EXP(V$4*-1*'PM2.5 reduction'!V192),9))","v":0.99995420000000002},{"$f":"VALUE(FIXED(EXP(W$4*-1*'PM2.5 reduction'!W192),9))","v":0.99997212599999996},{"$f":"VALUE(FIXED(EXP(X$4*-1*'PM2.5 reduction'!X192),9))","v":0.99997212599999996},{"$f":"VALUE(FIXED(EXP(Y$4*-1*'PM2.5 reduction'!Y192),9))","v":0.99996439999999998},{"$f":"VALUE(FIXED(EXP(Z$4*-1*'PM2.5 reduction'!Z192),9))","v":0.99993141600000002},{"$f":"VALUE(FIXED(EXP(AA$4*-1*'PM2.5 reduction'!AA192),9))","v":0.999949215},{"$f":"VALUE(FIXED(EXP(AB$4*-1*'PM2.5 reduction'!AB192),9))","v":0.99997051199999998},{"$f":"VALUE(FIXED(EXP(AC$4*-1*'PM2.5 reduction'!AC192),9))","v":0.99994586699999999},{"$f":"VALUE(FIXED(EXP(AD$4*-1*'PM2.5 reduction'!AD192),9))","v":0.99997713799999999},{"$f":"VALUE(FIXED(EXP(AE$4*-1*'PM2.5 reduction'!AE192),9))","v":0.99997533900000002},{"$f":"VALUE(FIXED(EXP(AF$4*-1*'PM2.5 reduction'!AF192),9))","v":0.99996143400000004},{"$f":"VALUE(FIXED(EXP(AG$4*-1*'PM2.5 reduction'!AG192),9))","v":0.99997533900000002},{"$f":"VALUE(FIXED(EXP(AH$4*-1*'PM2.5 reduction'!AH192),9))","v":0.99995855},{"$f":"VALUE(FIXED(EXP(AI$4*-1*'PM2.5 reduction'!AI192),9))","v":0.99993811099999996},{"$f":"VALUE(FIXED(EXP(AJ$4*-1*'PM2.5 reduction'!AJ192),9))","v":0.99996949000000002},{"$f":"VALUE(FIXED(EXP(AK$4*-1*'PM2.5 reduction'!AK192),9))","v":0.99998702900000003},{"$f":"VALUE(FIXED(EXP(AL$4*-1*'PM2.5 reduction'!AL192),9))","v":0.99998379999999998},{"$f":"VALUE(FIXED(EXP(AM$4*-1*'PM2.5 reduction'!AM192),9))","v":0.99995286400000005},{"$f":"VALUE(FIXED(EXP(AN$4*-1*'PM2.5 reduction'!AN192),9))","v":0.99999361799999997},{"$f":"VALUE(FIXED(EXP(AO$4*-1*'PM2.5 reduction'!AO192),9))","v":0.99999361799999997},{"$f":"VALUE(FIXED(EXP(AP$4*-1*'PM2.5 reduction'!AP192),9))","v":0.999987124},{"$f":"VALUE(FIXED(EXP(AQ$4*-1*'PM2.5 reduction'!AQ192),9))","v":0.99995410799999995},{"$f":"VALUE(FIXED(EXP(AR$4*-1*'PM2.5 reduction'!AR192),9))","v":0.99996114800000002},{"$f":"VALUE(FIXED(EXP(AS$4*-1*'PM2.5 reduction'!AS192),9))","v":0.99999047600000002},{"$f":"VALUE(FIXED(EXP(AT$4*-1*'PM2.5 reduction'!AT192),9))","v":0.99999306300000002},{"$f":"VALUE(FIXED(EXP(AU$4*-1*'PM2.5 reduction'!AU192),9))","v":0.99999306300000002},{"$f":"VALUE(FIXED(EXP(AV$4*-1*'PM2.5 reduction'!AV192),9))","v":0.99996866100000004},{"$f":"VALUE(FIXED(EXP(AW$4*-1*'PM2.5 reduction'!AW192),9))","v":0.99996036200000005},{"$f":"VALUE(FIXED(EXP(AX$4*-1*'PM2.5 reduction'!AX192),9))","v":0.99997799399999998},{"$f":"VALUE(FIXED(EXP(AY$4*-1*'PM2.5 reduction'!AY192),9))","v":0.99997644500000005},{"$f":"VALUE(FIXED(EXP(AZ$4*-1*'PM2.5 reduction'!AZ192),9))","v":0.99997807999999999},{"$f":"VALUE(FIXED(EXP(BA$4*-1*'PM2.5 reduction'!BA192),9))","v":0.99996655999999995},{"$f":"VALUE(FIXED(EXP(BB$4*-1*'PM2.5 reduction'!BB192),9))","v":0.99996722299999996},{"$f":"VALUE(FIXED(EXP(BC$4*-1*'PM2.5 reduction'!BC192),9))","v":1}]
[null,"Male 0-4",{"$f":"VALUE(FIXED(EXP(C$4*-1*'PM2.5 reduction'!C193),9))","v":0.99993342799999996},{"$f":"VALUE(FIXED(EXP(D$4*-1*'PM2.5 reduction'!D193),9))","v":0.99995931000000005},{"$f":"VALUE(FIXED(EXP(E$4*-1*'PM2.5 reduction'!E193),9))","v":0.99998811200000004},{"$f":"VALUE(FIXED(EXP(F$4*-1*'PM2.5 reduction'!F193),9))","v":0.99998586899999997},{"$f":"VALUE(FIXED(EXP(G$4*-1*'PM2.5 reduction'!G193),9))","v":0.99998291399999994},{"$f":"VALUE(FIXED(EXP(H$4*-1*'PM2.5 reduction'!H193),9))","v":0.99997699200000001},{"$f":"VALUE(FIXED(EXP(I$4*-1*'PM2.5 reduction'!I193),9))","v":0.99999220300000002},{"$f":"VALUE(FIXED(EXP(J$4*-1*'PM2.5 reduction'!J193),9))","v":0.99997353200000005},{"$f":"VALUE(FIXED(EXP(K$4*-1*'PM2.5 reduction'!K193),9))","v":0.99997140699999998},{"$f":"VALUE(FIXED(EXP(L$4*-1*'PM2.5 reduction'!L193),9))","v":0.99998819500000002},{"$f":"VALUE(FIXED(EXP(M$4*-1*'PM2.5 reduction'!M193),9))","v":0.99998819500000002},{"$f":"VALUE(FIXED(EXP(N$4*-1*'PM2.5 reduction'!N193),9))","v":0.99994948500000003},{"$f":"VALUE(FIXED(EXP(O$4*-1*'PM2.5 reduction'!O193),9))","v":0.99997420400000003},{"$f":"VALUE(FIXED(EXP(P$4*-1*'PM2.5 reduction'!P193),9))","v":0.99995640900000005},{"$f":"VALUE(FIXED(EXP(Q$4*-1*'PM2.5 reduction'!Q193),9))","v":0.99997434900000004},{"$f":"VALUE(FIXED(EXP(R$4*-1*'PM2.5 reduction'!R193),9))","v":0.99996074099999999},{"$f":"VALUE(FIXED(EXP(S$4*-1*'PM2.5 reduction'!S193),9))","v":0.999951374},{"$f":"VALUE(FIXED(EXP(T$4*-1*'PM2.5 reduction'!T193),9))","v":0.99992644200000003},{"$f":"VALUE(FIXED(EXP(U$4*-1*'PM2.5 reduction'!U193),9))","v":1},{"$f":"VALUE(FIXED(EXP(V$4*-1*'PM2.5 reduction'!V193),9))","v":0.99996405600000005},{"$f":"VALUE(FIXED(EXP(W$4*-1*'PM2.5 reduction'!W193),9))","v":0.99997134600000004},{"$f":"VALUE(FIXED(EXP(X$4*-1*'PM2.5 reduction'!X193),9))","v":0.99997134600000004},{"$f":"VALUE(FIXED(EXP(Y$4*-1*'PM2.5 reduction'!Y193),9))","v":0.99996827200000005},{"$f":"VALUE(FIXED(EXP(Z$4*-1*'PM2.5 reduction'!Z193),9))","v":0.99993145800000005},{"$f":"VALUE(FIXED(EXP(AA$4*-1*'PM2.5 reduction'!AA193),9))","v":0.99995166400000002},{"$f":"VALUE(FIXED(EXP(AB$4*-1*'PM2.5 reduction'!AB193),9))","v":0.99996251400000002},{"$f":"VALUE(FIXED(EXP(AC$4*-1*'PM2.5 reduction'!AC193),9))","v":0.99994556300000004},{"$f":"VALUE(FIXED(EXP(AD$4*-1*'PM2.5 reduction'!AD193),9))","v":0.99998266199999997},{"$f":"VALUE(FIXED(EXP(AE$4*-1*'PM2.5 reduction'!AE193),9))","v":0.99998264800000003},{"$f":"VALUE(FIXED(EXP(AF$4*-1*'PM2.5 reduction'!AF193),9))","v":0.999971359},{"$f":"VALUE(FIXED(EXP(AG$4*-1*'PM2.5 reduction'!AG193),9))","v":0.99998264800000003},{"$f":"VALUE(FIXED(EXP(AH$4*-1*'PM2.5 reduction'!AH193),9))","v":0.99996014899999996},{"$f":"VALUE(FIXED(EXP(AI$4*-1*'PM2.5 reduction'!AI193),9))","v":0.99994134800000001},{"$f":"VALUE(FIXED(EXP(AJ$4*-1*'PM2.5 reduction'!AJ193),9))","v":0.99996748899999999},{"$f":"VALUE(FIXED(EXP(AK$4*-1*'PM2.5 reduction'!AK193),9))","v":0.99998740200000003},{"$f":"VALUE(FIXED(EXP(AL$4*-1*'PM2.5 reduction'!AL193),9))","v":0.99998322900000003},{"$f":"VALUE(FIXED(EXP(AM$4*-1*'PM2.5 reduction'!AM193),9))","v":0.99995724500000005},{"$f":"VALUE(FIXED(EXP(AN$4*-1*'PM2.5 reduction'!AN193),9))","v":0.99999176199999995},{"$f":"VALUE(FIXED(EXP(AO$4*-1*'PM2.5 reduction'!AO193),9))","v":0.99999176199999995},{"$f":"VALUE(FIXED(EXP(AP$4*-1*'PM2.5 reduction'!AP193),9))","v":0.99998480999999995},{"$f":"VALUE(FIXED(EXP(AQ$4*-1*'PM2.5 reduction'!AQ193),9))","v":0.99996132000000004},{"$f":"VALUE(FIXED(EXP(AR$4*-1*'PM2.5 reduction'!AR193),9))","v":0.99995907699999997},{"$f":"VALUE(FIXED(EXP(AS$4*-1*'PM2.5 reduction'!AS193),9))","v":0.99999220300000002},{"$f":"VALUE(FIXED(EXP(AT$4*-1*'PM2.5 reduction'!AT193),9))","v":0.99999424699999995},{"$f":"VALUE(FIXED(EXP(AU$4*-1*'PM2.5 reduction'!AU193),9))","v":0.99999424699999995},{"$f":"VALUE(FIXED(EXP(AV$4*-1*'PM2.5 reduction'!AV193),9))","v":0.99997124000000004},{"$f":"VALUE(FIXED(EXP(AW$4*-1*'PM2.5 reduction'!AW193),9))","v":0.999962087},{"$f":"VALUE(FIXED(EXP(AX$4*-1*'PM2.5 reduction'!AX193),9))","v":0.99997452200000003},{"$f":"VALUE(FIXED(EXP(AY$4*-1*'PM2.5 reduction'!AY193),9))","v":0.99997312900000002},{"$f":"VALUE(FIXED(EXP(AZ$4*-1*'PM2.5 reduction'!AZ193),9))","v":0.99997443600000002},{"$f":"VALUE(FIXED(EXP(BA$4*-1*'PM2.5 reduction'!BA193),9))","v":0.99996767099999995},{"$f":"VALUE(FIXED(EXP(BB$4*-1*'PM2.5 reduction'!BB193),9))","v":0.99996657099999997},{"$f":"VALUE(FIXED(EXP(BC$4*-1*'PM2.5 reduction'!BC193),9))","v":1}]
[null,"Male 5-9",{"$f":"VALUE(FIXED(EXP(C$4*-1*'PM2.5 reduction'!C194),9))","v":0.999937988},{"$f":"VALUE(FIXED(EXP(D$4*-1*'PM2.5 reduction'!D194),9))","v":0.999964611},{"$f":"VALUE(FIXED(EXP(E$4*-1*'PM2.5 reduction'!E194),9))","v":0.99998810999999999},{"$f":"VALUE(FIXED(EXP(F$4*-1*'PM2.5 reduction'!F194),9))","v":0.99998615800000001},{"$f":"VALUE(FIXED(EXP(G$4*-1*'PM2.5 reduction'!G194),9))","v":0.99998292300000002},{"$f":"VALUE(FIXED(EXP(H$4*-1*'PM2.5 reduction'!H194),9))","v":0.99997687000000002},{"$f":"VALUE(FIXED(EXP(I$4*-1*'PM2.5 reduction'!I194),9))","v":0.999992141},{"$f":"VALUE(FIXED(EXP(J$4*-1*'PM2.5 reduction'!J194),9))","v":0.99997697900000004},{"$f":"VALUE(FIXED(EXP(K$4*-1*'PM2.5 reduction'!K194),9))","v":0.99997290999999999},{"$f":"VALUE(FIXED(EXP(L$4*-1*'PM2.5 reduction'!L194),9))","v":0.99998825899999999},{"$f":"VALUE(FIXED(EXP(M$4*-1*'PM2.5 reduction'!M194),9))","v":0.99998825899999999},{"$f":"VALUE(FIXED(EXP(N$4*-1*'PM2.5 reduction'!N194),9))","v":0.99994927099999997},{"$f":"VALUE(FIXED(EXP(O$4*-1*'PM2.5 reduction'!O194),9))","v":0.999975579},{"$f":"VALUE(FIXED(EXP(P$4*-1*'PM2.5 reduction'!P194),9))","v":0.99995511400000003},{"$f":"VALUE(FIXED(EXP(Q$4*-1*'PM2.5 reduction'!Q194),9))","v":0.99997721399999995},{"$f":"VALUE(FIXED(EXP(R$4*-1*'PM2.5 reduction'!R194),9))","v":0.99996175200000004},{"$f":"VALUE(FIXED(EXP(S$4*-1*'PM2.5 reduction'!S194),9))","v":0.99995546499999999},{"$f":"VALUE(FIXED(EXP(T$4*-1*'PM2.5 reduction'!T194),9))","v":0.99992785699999998},{"$f":"VALUE(FIXED(EXP(U$4*-1*'PM2.5 reduction'!U194),9))","v":1},{"$f":"VALUE(FIXED(EXP(V$4*-1*'PM2.5 reduction'!V194),9))","v":0.99996550399999995},{"$f":"VALUE(FIXED(EXP(W$4*-1*'PM2.5 reduction'!W194),9))","v":0.99997122000000005},{"$f":"VALUE(FIXED(EXP(X$4*-1*'PM2.5 reduction'!X194),9))","v":0.99997122000000005},{"$f":"VALUE(FIXED(EXP(Y$4*-1*'PM2.5 reduction'!Y194),9))","v":0.99997053700000005},{"$f":"VALUE(FIXED(EXP(Z$4*-1*'PM2.5 reduction'!Z194),9))","v":0.99993237899999998},{"$f":"VALUE(FIXED(EXP(AA$4*-1*'PM2.5 reduction'!AA194),9))","v":0.99995367800000001},{"$f":"VALUE(FIXED(EXP(AB$4*-1*'PM2.5 reduction'!AB194),9))","v":0.99996722100000002},{"$f":"VALUE(FIXED(EXP(AC$4*-1*'PM2.5 reduction'!AC194),9))","v":0.99994864800000005},{"$f":"VALUE(FIXED(EXP(AD$4*-1*'PM2.5 reduction'!AD194),9))","v":0.99998334799999999},{"$f":"VALUE(FIXED(EXP(AE$4*-1*'PM2.5 reduction'!AE194),9))","v":0.99998337999999998},{"$f":"VALUE(FIXED(EXP(AF$4*-1*'PM2.5 reduction'!AF194),9))","v":0.99997513699999996},{"$f":"VALUE(FIXED(EXP(AG$4*-1*'PM2.5 reduction'!AG194),9))","v":0.99998337999999998},{"$f":"VALUE(FIXED(EXP(AH$4*-1*'PM2.5 reduction'!AH194),9))","v":0.99996011799999995},{"$f":"VALUE(FIXED(EXP(AI$4*-1*'PM2.5 reduction'!AI194),9))","v":0.99994644399999999},{"$f":"VALUE(FIXED(EXP(AJ$4*-1*'PM2.5 reduction'!AJ194),9))","v":0.99996998400000003},{"$f":"VALUE(FIXED(EXP(AK$4*-1*'PM2.5 reduction'!AK194),9))","v":0.99998842099999996},{"$f":"VALUE(FIXED(EXP(AL$4*-1*'PM2.5 reduction'!AL194),9))","v":0.99998363199999996},{"$f":"VALUE(FIXED(EXP(AM$4*-1*'PM2.5 reduction'!AM194),9))","v":0.99995659599999998},{"$f":"VALUE(FIXED(EXP(AN$4*-1*'PM2.5 reduction'!AN194),9))","v":0.99999270900000004},{"$f":"VALUE(FIXED(EXP(AO$4*-1*'PM2.5 reduction'!AO194),9))","v":0.99999270900000004},{"$f":"VALUE(FIXED(EXP(AP$4*-1*'PM2.5 reduction'!AP194),9))","v":0.99998528600000003},{"$f":"VALUE(FIXED(EXP(AQ$4*-1*'PM2.5 reduction'!AQ194),9))","v":0.99996147700000004},{"$f":"VALUE(FIXED(EXP(AR$4*-1*'PM2.5 reduction'!AR194),9))","v":0.99996192500000003},{"$f":"VALUE(FIXED(EXP(AS$4*-1*'PM2.5 reduction'!AS194),9))","v":0.999992141},{"$f":"VALUE(FIXED(EXP(AT$4*-1*'PM2.5 reduction'!AT194),9))","v":0.99999407299999998},{"$f":"VALUE(FIXED(EXP(AU$4*-1*'PM2.5 reduction'!AU194),9))","v":0.99999407299999998},{"$f":"VALUE(FIXED(EXP(AV$4*-1*'PM2.5 reduction'!AV194),9))","v":0.99997018299999996},{"$f":"VALUE(FIXED(EXP(AW$4*-1*'PM2.5 reduction'!AW194),9))","v":0.99996287399999995},{"$f":"VALUE(FIXED(EXP(AX$4*-1*'PM2.5 reduction'!AX194),9))","v":0.99997914200000004},{"$f":"VALUE(FIXED(EXP(AY$4*-1*'PM2.5 reduction'!AY194),9))","v":0.99997289099999997},{"$f":"VALUE(FIXED(EXP(AZ$4*-1*'PM2.5 reduction'!AZ194),9))","v":0.99997427100000003},{"$f":"VALUE(FIXED(EXP(BA$4*-1*'PM2.5 reduction'!BA194),9))","v":0.99996764599999999},{"$f":"VALUE(FIXED(EXP(BB$4*-1*'PM2.5 reduction'!BB194),9))","v":0.99996715199999997},{"$f":"VALUE(FIXED(EXP(BC$4*-1*'PM2.5 reduction'!BC194),9))","v":1}]
[null,"Male 10-15",{"$f":"VALUE(FIXED(EXP(C$4*-1*'PM2.5 reduction'!C195),9))","v":0.999940206},{"$f":"VALUE(FIXED(EXP(D$4*-1*'PM2.5 reduction'!D195),9))","v":0.99996797199999998},{"$f":"VALUE(FIXED(EXP(E$4*-1*'PM2.5 reduction'!E195),9))","v":0.99998845800000002},{"$f":"VALUE(FIXED(EXP(F$4*-1*'PM2.5 reduction'!F195),9))","v":0.99998626800000001},{"$f":"VALUE(FIXED(EXP(G$4*-1*'PM2.5 reduction'!G195),9))","v":0.99998286599999997},{"$f":"VALUE(FIXED(EXP(H$4*-1*'PM2.5 reduction'!H195),9))","v":0.99997695600000003},{"$f":"VALUE(FIXED(EXP(I$4*-1*'PM2.5 reduction'!I195),9))","v":0.99999181100000001},{"$f":"VALUE(FIXED(EXP(J$4*-1*'PM2.5 reduction'!J195),9))","v":0.99997950700000005},{"$f":"VALUE(FIXED(EXP(K$4*-1*'PM2.5 reduction'!K195),9))","v":0.999976631},{"$f":"VALUE(FIXED(EXP(L$4*-1*'PM2.5 reduction'!L195),9))","v":0.99998862200000005},{"$f":"VALUE(FIXED(EXP(M$4*-1*'PM2.5 reduction'!M195),9))","v":0.99998862200000005},{"$f":"VALUE(FIXED(EXP(N$4*-1*'PM2.5 reduction'!N195),9))","v":0.99994968500000003},{"$f":"VALUE(FIXED(EXP(O$4*-1*'PM2.5 reduction'!O195),9))","v":0.99997348900000005},{"$f":"VALUE(FIXED(EXP(P$4*-1*'PM2.5 reduction'!P195),9))","v":0.99995399600000001},{"$f":"VALUE(FIXED(EXP(Q$4*-1*'PM2.5 reduction'!Q195),9))","v":0.99997792799999996},{"$f":"VALUE(FIXED(EXP(R$4*-1*'PM2.5 reduction'!R195),9))","v":0.99996136400000002},{"$f":"VALUE(FIXED(EXP(S$4*-1*'PM2.5 reduction'!S195),9))","v":0.99995860999999997},{"$f":"VALUE(FIXED(EXP(T$4*-1*'PM2.5 reduction'!T195),9))","v":0.99993028900000003},{"$f":"VALUE(FIXED(EXP(U$4*-1*'PM2.5 reduction'!U195),9))","v":1},{"$f":"VALUE(FIXED(EXP(V$4*-1*'PM2.5 reduction'!V195),9))","v":0.99996365099999995},{"$f":"VALUE(FIXED(EXP(W$4*-1*'PM2.5 reduction'!W195),9))","v":0.99997154499999996},{"$f":"VALUE(FIXED(EXP(X$4*-1*'PM2.5 reduction'!X195),9))","v":0.99997154499999996},{"$f":"VALUE(FIXED(EXP(Y$4*-1*'PM2.5 reduction'!Y195),9))","v":0.99997151500000003},{"$f":"VALUE(FIXED(EXP(Z$4*-1*'PM2.5 reduction'!Z195),9))","v":0.99993397500000003},{"$f":"VALUE(FIXED(EXP(AA$4*-1*'PM2.5 reduction'!AA195),9))","v":0.99995471199999997},{"$f":"VALUE(FIXED(EXP(AB$4*-1*'PM2.5 reduction'!AB195),9))","v":0.99996975600000004},{"$f":"VALUE(FIXED(EXP(AC$4*-1*'PM2.5 reduction'!AC195),9))","v":0.99995016999999997},{"$f":"VALUE(FIXED(EXP(AD$4*-1*'PM2.5 reduction'!AD195),9))","v":0.99998296399999997},{"$f":"VALUE(FIXED(EXP(AE$4*-1*'PM2.5 reduction'!AE195),9))","v":0.99998297599999997},{"$f":"VALUE(FIXED(EXP(AF$4*-1*'PM2.5 reduction'!AF195),9))","v":0.99997535100000001},{"$f":"VALUE(FIXED(EXP(AG$4*-1*'PM2.5 reduction'!AG195),9))","v":0.99998297599999997},{"$f":"VALUE(FIXED(EXP(AH$4*-1*'PM2.5 reduction'!AH195),9))","v":0.999960399},{"$f":"VALUE(FIXED(EXP(AI$4*-1*'PM2.5 reduction'!AI195),9))","v":0.99994959100000003},{"$f":"VALUE(FIXED(EXP(AJ$4*-1*'PM2.5 reduction'!AJ195),9))","v":0.99996941100000003},{"$f":"VALUE(FIXED(EXP(AK$4*-1*'PM2.5 reduction'!AK195),9))","v":0.99998523900000003},{"$f":"VALUE(FIXED(EXP(AL$4*-1*'PM2.5 reduction'!AL195),9))","v":0.99998354099999998},{"$f":"VALUE(FIXED(EXP(AM$4*-1*'PM2.5 reduction'!AM195),9))","v":0.99995796400000003},{"$f":"VALUE(FIXED(EXP(AN$4*-1*'PM2.5 reduction'!AN195),9))","v":0.99999206399999996},{"$f":"VALUE(FIXED(EXP(AO$4*-1*'PM2.5 reduction'!AO195),9))","v":0.99999206399999996},{"$f":"VALUE(FIXED(EXP(AP$4*-1*'PM2.5 reduction'!AP195),9))","v":0.99998713400000006},{"$f":"VALUE(FIXED(EXP(AQ$4*-1*'PM2.5 reduction'!AQ195),9))","v":0.99996130299999997},{"$f":"VALUE(FIXED(EXP(AR$4*-1*'PM2.5 reduction'!AR195),9))","v":0.99996371699999997},{"$f":"VALUE(FIXED(EXP(AS$4*-1*'PM2.5 reduction'!AS195),9))","v":0.99999181100000001},{"$f":"VALUE(FIXED(EXP(AT$4*-1*'PM2.5 reduction'!AT195),9))","v":0.99999461000000001},{"$f":"VALUE(FIXED(EXP(AU$4*-1*'PM2.5 reduction'!AU195),9))","v":0.99999461000000001},{"$f":"VALUE(FIXED(EXP(AV$4*-1*'PM2.5 reduction'!AV195),9))","v":0.999970951},{"$f":"VALUE(FIXED(EXP(AW$4*-1*'PM2.5 reduction'!AW195),9))","v":0.99996236100000002},{"$f":"VALUE(FIXED(EXP(AX$4*-1*'PM2.5 reduction'!AX195),9))","v":0.999980655},{"$f":"VALUE(FIXED(EXP(AY$4*-1*'PM2.5 reduction'!AY195),9))","v":0.99997385599999999},{"$f":"VALUE(FIXED(EXP(AZ$4*-1*'PM2.5 reduction'!AZ195),9))","v":0.99997566000000004},{"$f":"VALUE(FIXED(EXP(BA$4*-1*'PM2.5 reduction'!BA195),9))","v":0.99996814099999998},{"$f":"VALUE(FIXED(EXP(BB$4*-1*'PM2.5 reduction'!BB195),9))","v":0.99996809499999995},{"$f":"VALUE(FIXED(EXP(BC$4*-1*'PM2.5 reduction'!BC195),9))","v":1}]
[null,"Male 16-19",{"$f":"VALUE(FIXED(EXP(C$4*-1*'PM2.5 reduction'!C196),9))","v":0.999912574},{"$f":"VALUE(FIXED(EXP(D$4*-1*'PM2.5 reduction'!D196),9))","v":0.99994376900000004},{"$f":"VALUE(FIXED(EXP(E$4*-1*'PM2.5 reduction'!E196),9))","v":0.99998753500000004},{"$f":"VALUE(FIXED(EXP(F$4*-1*'PM2.5 reduction'!F196),9))","v":0.99998666800000002},{"$f":"VALUE(FIXED(EXP(G$4*-1*'PM2.5 reduction'!G196),9))","v":0.99998287100000005},{"$f":"VALUE(FIXED(EXP(H$4*-1*'PM2.5 reduction'!H196),9))","v":0.99997647899999997},{"$f":"VALUE(FIXED(EXP(I$4*-1*'PM2.5 reduction'!I196),9))","v":0.99999150400000003},{"$f":"VALUE(FIXED(EXP(J$4*-1*'PM2.5 reduction'!J196),9))","v":0.99997618899999996},{"$f":"VALUE(FIXED(EXP(K$4*-1*'PM2.5 reduction'!K196),9))","v":0.999974009},{"$f":"VALUE(FIXED(EXP(L$4*-1*'PM2.5 reduction'!L196),9))","v":0.99998905999999999},{"$f":"VALUE(FIXED(EXP(M$4*-1*'PM2.5 reduction'!M196),9))","v":0.99998905999999999},{"$f":"VALUE(FIXED(EXP(N$4*-1*'PM2.5 reduction'!N196),9))","v":0.99995066600000004},{"$f":"VALUE(FIXED(EXP(O$4*-1*'PM2.5 reduction'!O196),9))","v":0.99997310100000003},{"$f":"VALUE(FIXED(EXP(P$4*-1*'PM2.5 reduction'!P196),9))","v":0.99995459399999997},{"$f":"VALUE(FIXED(EXP(Q$4*-1*'PM2.5 reduction'!Q196),9))","v":0.99997618300000002},{"$f":"VALUE(FIXED(EXP(R$4*-1*'PM2.5 reduction'!R196),9))","v":0.99996216100000002},{"$f":"VALUE(FIXED(EXP(S$4*-1*'PM2.5 reduction'!S196),9))","v":0.99995462000000002},{"$f":"VALUE(FIXED(EXP(T$4*-1*'PM2.5 reduction'!T196),9))","v":0.999924696},{"$f":"VALUE(FIXED(EXP(U$4*-1*'PM2.5 reduction'!U196),9))","v":1},{"$f":"VALUE(FIXED(EXP(V$4*-1*'PM2.5 reduction'!V196),9))","v":0.99996437999999999},{"$f":"VALUE(FIXED(EXP(W$4*-1*'PM2.5 reduction'!W196),9))","v":0.99997275699999999},{"$f":"VALUE(FIXED(EXP(X$4*-1*'PM2.5 reduction'!X196),9))","v":0.99997275699999999},{"$f":"VALUE(FIXED(EXP(Y$4*-1*'PM2.5 reduction'!Y196),9))","v":0.999969636},{"$f":"VALUE(FIXED(EXP(Z$4*-1*'PM2.5 reduction'!Z196),9))","v":0.99992694999999998},{"$f":"VALUE(FIXED(EXP(AA$4*-1*'PM2.5 reduction'!AA196),9))","v":0.99995217199999997},{"$f":"VALUE(FIXED(EXP(AB$4*-1*'PM2.5 reduction'!AB196),9))","v":0.99994625299999995},{"$f":"VALUE(FIXED(EXP(AC$4*-1*'PM2.5 reduction'!AC196),9))","v":0.99994635200000004},{"$f":"VALUE(FIXED(EXP(AD$4*-1*'PM2.5 reduction'!AD196),9))","v":0.99998339999999997},{"$f":"VALUE(FIXED(EXP(AE$4*-1*'PM2.5 reduction'!AE196),9))","v":0.99998345},{"$f":"VALUE(FIXED(EXP(AF$4*-1*'PM2.5 reduction'!AF196),9))","v":0.99997304300000001},{"$f":"VALUE(FIXED(EXP(AG$4*-1*'PM2.5 reduction'!AG196),9))","v":0.99998345},{"$f":"VALUE(FIXED(EXP(AH$4*-1*'PM2.5 reduction'!AH196),9))","v":0.99996024500000003},{"$f":"VALUE(FIXED(EXP(AI$4*-1*'PM2.5 reduction'!AI196),9))","v":0.99994359899999996},{"$f":"VALUE(FIXED(EXP(AJ$4*-1*'PM2.5 reduction'!AJ196),9))","v":0.99997064599999996},{"$f":"VALUE(FIXED(EXP(AK$4*-1*'PM2.5 reduction'!AK196),9))","v":0.99998338099999995},{"$f":"VALUE(FIXED(EXP(AL$4*-1*'PM2.5 reduction'!AL196),9))","v":0.99998330700000004},{"$f":"VALUE(FIXED(EXP(AM$4*-1*'PM2.5 reduction'!AM196),9))","v":0.99995762200000005},{"$f":"VALUE(FIXED(EXP(AN$4*-1*'PM2.5 reduction'!AN196),9))","v":0.99999154300000004},{"$f":"VALUE(FIXED(EXP(AO$4*-1*'PM2.5 reduction'!AO196),9))","v":0.99999154300000004},{"$f":"VALUE(FIXED(EXP(AP$4*-1*'PM2.5 reduction'!AP196),9))","v":0.99998676500000006},{"$f":"VALUE(FIXED(EXP(AQ$4*-1*'PM2.5 reduction'!AQ196),9))","v":0.99996096000000001},{"$f":"VALUE(FIXED(EXP(AR$4*-1*'PM2.5 reduction'!AR196),9))","v":0.99995925900000004},{"$f":"VALUE(FIXED(EXP(AS$4*-1*'PM2.5 reduction'!AS196),9))","v":0.99999150400000003},{"$f":"VALUE(FIXED(EXP(AT$4*-1*'PM2.5 reduction'!AT196),9))","v":0.99999325100000003},{"$f":"VALUE(FIXED(EXP(AU$4*-1*'PM2.5 reduction'!AU196),9))","v":0.99999325100000003},{"$f":"VALUE(FIXED(EXP(AV$4*-1*'PM2.5 reduction'!AV196),9))","v":0.99996978599999997},{"$f":"VALUE(FIXED(EXP(AW$4*-1*'PM2.5 reduction'!AW196),9))","v":0.99996240000000003},{"$f":"VALUE(FIXED(EXP(AX$4*-1*'PM2.5 reduction'!AX196),9))","v":0.99997715899999995},{"$f":"VALUE(FIXED(EXP(AY$4*-1*'PM2.5 reduction'!AY196),9))","v":0.999973954},{"$f":"VALUE(FIXED(EXP(AZ$4*-1*'PM2.5 reduction'!AZ196),9))","v":0.99997470099999997},{"$f":"VALUE(FIXED(EXP(BA$4*-1*'PM2.5 reduction'!BA196),9))","v":0.999968411},{"$f":"VALUE(FIXED(EXP(BB$4*-1*'PM2.5 reduction'!BB196),9))","v":0.99996966099999995},{"$f":"VALUE(FIXED(EXP(BC$4*-1*'PM2.5 reduction'!BC196),9))","v":1}]
[null,"Male 20-24",{"$f":"VALUE(FIXED(EXP(C$4*-1*'PM2.5 reduction'!C197),9))","v":0.99990968099999999},{"$f":"VALUE(FIXED(EXP(D$4*-1*'PM2.5 reduction'!D197),9))","v":0.99993061000000005},{"$f":"VALUE(FIXED(EXP(E$4*-1*'PM2.5 reduction'!E197),9))","v":0.99998745200000005},{"$f":"VALUE(FIXED(EXP(F$4*-1*'PM2.5 reduction'!F197),9))","v":0.99998637899999998},{"$f":"VALUE(FIXED(EXP(G$4*-1*'PM2.5 reduction'!G197),9))","v":0.99998288999999996},{"$f":"VALUE(FIXED(EXP(H$4*-1*'PM2.5 reduction'!H197),9))","v":0.99997650900000001},{"$f":"VALUE(FIXED(EXP(I$4*-1*'PM2.5 reduction'!I197),9))","v":0.99999179800000004},{"$f":"VALUE(FIXED(EXP(J$4*-1*'PM2.5 reduction'!J197),9))","v":0.99996847700000002},{"$f":"VALUE(FIXED(EXP(K$4*-1*'PM2.5 reduction'!K197),9))","v":0.99996960400000001},{"$f":"VALUE(FIXED(EXP(L$4*-1*'PM2.5 reduction'!L197),9))","v":0.99998871600000006},{"$f":"VALUE(FIXED(EXP(M$4*-1*'PM2.5 reduction'!M197),9))","v":0.99998871600000006},{"$f":"VALUE(FIXED(EXP(N$4*-1*'PM2.5 reduction'!N197),9))","v":0.99995300399999998},{"$f":"VALUE(FIXED(EXP(O$4*-1*'PM2.5 reduction'!O197),9))","v":0.99997183000000001},{"$f":"VALUE(FIXED(EXP(P$4*-1*'PM2.5 reduction'!P197),9))","v":0.99995614099999997},{"$f":"VALUE(FIXED(EXP(Q$4*-1*'PM2.5 reduction'!Q197),9))","v":0.99997283199999998},{"$f":"VALUE(FIXED(EXP(R$4*-1*'PM2.5 reduction'!R197),9))","v":0.99995997599999997},{"$f":"VALUE(FIXED(EXP(S$4*-1*'PM2.5 reduction'!S197),9))","v":0.99993332499999998},{"$f":"VALUE(FIXED(EXP(T$4*-1*'PM2.5 reduction'!T197),9))","v":0.99990685800000001},{"$f":"VALUE(FIXED(EXP(U$4*-1*'PM2.5 reduction'!U197),9))","v":1},{"$f":"VALUE(FIXED(EXP(V$4*-1*'PM2.5 reduction'!V197),9))","v":0.99996290899999996},{"$f":"VALUE(FIXED(EXP(W$4*-1*'PM2.5 reduction'!W197),9))","v":0.99997112799999999},{"$f":"VALUE(FIXED(EXP(X$4*-1*'PM2.5 reduction'!X197),9))","v":0.99997112799999999},{"$f":"VALUE(FIXED(EXP(Y$4*-1*'PM2.5 reduction'!Y197),9))","v":0.99996573899999996},{"$f":"VALUE(FIXED(EXP(Z$4*-1*'PM2.5 reduction'!Z197),9))","v":0.99991273700000005},{"$f":"VALUE(FIXED(EXP(AA$4*-1*'PM2.5 reduction'!AA197),9))","v":0.999938149},{"$f":"VALUE(FIXED(EXP(AB$4*-1*'PM2.5 reduction'!AB197),9))","v":0.99993282100000003},{"$f":"VALUE(FIXED(EXP(AC$4*-1*'PM2.5 reduction'!AC197),9))","v":0.99992921999999995},{"$f":"VALUE(FIXED(EXP(AD$4*-1*'PM2.5 reduction'!AD197),9))","v":0.99998209100000002},{"$f":"VALUE(FIXED(EXP(AE$4*-1*'PM2.5 reduction'!AE197),9))","v":0.99998204099999999},{"$f":"VALUE(FIXED(EXP(AF$4*-1*'PM2.5 reduction'!AF197),9))","v":0.999971736},{"$f":"VALUE(FIXED(EXP(AG$4*-1*'PM2.5 reduction'!AG197),9))","v":0.99998204099999999},{"$f":"VALUE(FIXED(EXP(AH$4*-1*'PM2.5 reduction'!AH197),9))","v":0.999960034},{"$f":"VALUE(FIXED(EXP(AI$4*-1*'PM2.5 reduction'!AI197),9))","v":0.99992306200000003},{"$f":"VALUE(FIXED(EXP(AJ$4*-1*'PM2.5 reduction'!AJ197),9))","v":0.99997090099999997},{"$f":"VALUE(FIXED(EXP(AK$4*-1*'PM2.5 reduction'!AK197),9))","v":0.99998244700000005},{"$f":"VALUE(FIXED(EXP(AL$4*-1*'PM2.5 reduction'!AL197),9))","v":0.99998281099999997},{"$f":"VALUE(FIXED(EXP(AM$4*-1*'PM2.5 reduction'!AM197),9))","v":0.99995738599999995},{"$f":"VALUE(FIXED(EXP(AN$4*-1*'PM2.5 reduction'!AN197),9))","v":0.99999081300000003},{"$f":"VALUE(FIXED(EXP(AO$4*-1*'PM2.5 reduction'!AO197),9))","v":0.99999081300000003},{"$f":"VALUE(FIXED(EXP(AP$4*-1*'PM2.5 reduction'!AP197),9))","v":0.999985754},{"$f":"VALUE(FIXED(EXP(AQ$4*-1*'PM2.5 reduction'!AQ197),9))","v":0.99996091099999995},{"$f":"VALUE(FIXED(EXP(AR$4*-1*'PM2.5 reduction'!AR197),9))","v":0.99994477299999995},{"$f":"VALUE(FIXED(EXP(AS$4*-1*'PM2.5 reduction'!AS197),9))","v":0.99999179800000004},{"$f":"VALUE(FIXED(EXP(AT$4*-1*'PM2.5 reduction'!AT197),9))","v":0.99999446199999997},{"$f":"VALUE(FIXED(EXP(AU$4*-1*'PM2.5 reduction'!AU197),9))","v":0.99999446199999997},{"$f":"VALUE(FIXED(EXP(AV$4*-1*'PM2.5 reduction'!AV197),9))","v":0.99997134799999998},{"$f":"VALUE(FIXED(EXP(AW$4*-1*'PM2.5 reduction'!AW197),9))","v":0.99996246600000005},{"$f":"VALUE(FIXED(EXP(AX$4*-1*'PM2.5 reduction'!AX197),9))","v":0.99996824600000001},{"$f":"VALUE(FIXED(EXP(AY$4*-1*'PM2.5 reduction'!AY197),9))","v":0.99997033199999996},{"$f":"VALUE(FIXED(EXP(AZ$4*-1*'PM2.5 reduction'!AZ197),9))","v":0.99996999799999997},{"$f":"VALUE(FIXED(EXP(BA$4*-1*'PM2.5 reduction'!BA197),9))","v":0.99996814700000003},{"$f":"VALUE(FIXED(EXP(BB$4*-1*'PM2.5 reduction'!BB197),9))","v":0.99996796499999996},{"$f":"VALUE(FIXED(EXP(BC$4*-1*'PM2.5 reduction'!BC197),9))","v":1}]
[null,"Male 25-29",{"$f":"VALUE(FIXED(EXP(C$4*-1*'PM2.5 reduction'!C198),9))","v":0.99991878999999995},{"$f":"VALUE(FIXED(EXP(D$4*-1*'PM2.5 reduction'!D198),9))","v":0.99993624699999994},{"$f":"VALUE(FIXED(EXP(E$4*-1*'PM2.5 reduction'!E198),9))","v":0.99998764399999995},{"$f":"VALUE(FIXED(EXP(F$4*-1*'PM2.5 reduction'!F198),9))","v":0.99998674600000004},{"$f":"VALUE(FIXED(EXP(G$4*-1*'PM2.5 reduction'!G198),9))","v":0.99998313400000005},{"$f":"VALUE(FIXED(EXP(H$4*-1*'PM2.5 reduction'!H198),9))","v":0.99997547099999995},{"$f":"VALUE(FIXED(EXP(I$4*-1*'PM2.5 reduction'!I198),9))","v":0.99999194999999996},{"$f":"VALUE(FIXED(EXP(J$4*-1*'PM2.5 reduction'!J198),9))","v":0.99996951999999995},{"$f":"VALUE(FIXED(EXP(K$4*-1*'PM2.5 reduction'!K198),9))","v":0.99996744800000004},{"$f":"VALUE(FIXED(EXP(L$4*-1*'PM2.5 reduction'!L198),9))","v":0.99998661899999997},{"$f":"VALUE(FIXED(EXP(M$4*-1*'PM2.5 reduction'!M198),9))","v":0.99998661899999997},{"$f":"VALUE(FIXED(EXP(N$4*-1*'PM2.5 reduction'!N198),9))","v":0.99995144000000002},{"$f":"VALUE(FIXED(EXP(O$4*-1*'PM2.5 reduction'!O198),9))","v":0.99997210199999997},{"$f":"VALUE(FIXED(EXP(P$4*-1*'PM2.5 reduction'!P198),9))","v":0.99995622200000001},{"$f":"VALUE(FIXED(EXP(Q$4*-1*'PM2.5 reduction'!Q198),9))","v":0.99997341500000003},{"$f":"VALUE(FIXED(EXP(R$4*-1*'PM2.5 reduction'!R198),9))","v":0.99995899300000002},{"$f":"VALUE(FIXED(EXP(S$4*-1*'PM2.5 reduction'!S198),9))","v":0.99993057399999996},{"$f":"VALUE(FIXED(EXP(T$4*-1*'PM2.5 reduction'!T198),9))","v":0.99991272799999997},{"$f":"VALUE(FIXED(EXP(U$4*-1*'PM2.5 reduction'!U198),9))","v":1},{"$f":"VALUE(FIXED(EXP(V$4*-1*'PM2.5 reduction'!V198),9))","v":0.999963457},{"$f":"VALUE(FIXED(EXP(W$4*-1*'PM2.5 reduction'!W198),9))","v":0.99997096900000004},{"$f":"VALUE(FIXED(EXP(X$4*-1*'PM2.5 reduction'!X198),9))","v":0.99997096900000004},{"$f":"VALUE(FIXED(EXP(Y$4*-1*'PM2.5 reduction'!Y198),9))","v":0.99996629999999997},{"$f":"VALUE(FIXED(EXP(Z$4*-1*'PM2.5 reduction'!Z198),9))","v":0.99991687600000001},{"$f":"VALUE(FIXED(EXP(AA$4*-1*'PM2.5 reduction'!AA198),9))","v":0.99993934200000001},{"$f":"VALUE(FIXED(EXP(AB$4*-1*'PM2.5 reduction'!AB198),9))","v":0.99993845599999998},{"$f":"VALUE(FIXED(EXP(AC$4*-1*'PM2.5 reduction'!AC198),9))","v":0.99993151899999999},{"$f":"VALUE(FIXED(EXP(AD$4*-1*'PM2.5 reduction'!AD198),9))","v":0.99997982900000004},{"$f":"VALUE(FIXED(EXP(AE$4*-1*'PM2.5 reduction'!AE198),9))","v":0.99997972599999996},{"$f":"VALUE(FIXED(EXP(AF$4*-1*'PM2.5 reduction'!AF198),9))","v":0.99997083200000003},{"$f":"VALUE(FIXED(EXP(AG$4*-1*'PM2.5 reduction'!AG198),9))","v":0.99997972599999996},{"$f":"VALUE(FIXED(EXP(AH$4*-1*'PM2.5 reduction'!AH198),9))","v":0.99995951000000005},{"$f":"VALUE(FIXED(EXP(AI$4*-1*'PM2.5 reduction'!AI198),9))","v":0.99992245899999999},{"$f":"VALUE(FIXED(EXP(AJ$4*-1*'PM2.5 reduction'!AJ198),9))","v":0.99997248999999999},{"$f":"VALUE(FIXED(EXP(AK$4*-1*'PM2.5 reduction'!AK198),9))","v":0.99998316700000001},{"$f":"VALUE(FIXED(EXP(AL$4*-1*'PM2.5 reduction'!AL198),9))","v":0.99998282800000005},{"$f":"VALUE(FIXED(EXP(AM$4*-1*'PM2.5 reduction'!AM198),9))","v":0.99995626500000001},{"$f":"VALUE(FIXED(EXP(AN$4*-1*'PM2.5 reduction'!AN198),9))","v":0.99999072099999997},{"$f":"VALUE(FIXED(EXP(AO$4*-1*'PM2.5 reduction'!AO198),9))","v":0.99999072099999997},{"$f":"VALUE(FIXED(EXP(AP$4*-1*'PM2.5 reduction'!AP198),9))","v":0.99998308899999999},{"$f":"VALUE(FIXED(EXP(AQ$4*-1*'PM2.5 reduction'!AQ198),9))","v":0.99995934600000003},{"$f":"VALUE(FIXED(EXP(AR$4*-1*'PM2.5 reduction'!AR198),9))","v":0.99994376100000004},{"$f":"VALUE(FIXED(EXP(AS$4*-1*'PM2.5 reduction'!AS198),9))","v":0.99999194999999996},{"$f":"VALUE(FIXED(EXP(AT$4*-1*'PM2.5 reduction'!AT198),9))","v":0.99999303799999995},{"$f":"VALUE(FIXED(EXP(AU$4*-1*'PM2.5 reduction'!AU198),9))","v":0.99999303799999995},{"$f":"VALUE(FIXED(EXP(AV$4*-1*'PM2.5 reduction'!AV198),9))","v":0.99997097700000004},{"$f":"VALUE(FIXED(EXP(AW$4*-1*'PM2.5 reduction'!AW198),9))","v":0.99996220099999999},{"$f":"VALUE(FIXED(EXP(AX$4*-1*'PM2.5 reduction'!AX198),9))","v":0.99997004099999998},{"$f":"VALUE(FIXED(EXP(AY$4*-1*'PM2.5 reduction'!AY198),9))","v":0.99997050300000001},{"$f":"VALUE(FIXED(EXP(AZ$4*-1*'PM2.5 reduction'!AZ198),9))","v":0.99997028300000002},{"$f":"VALUE(FIXED(EXP(BA$4*-1*'PM2.5 reduction'!BA198),9))","v":0.99996839400000004},{"$f":"VALUE(FIXED(EXP(BB$4*-1*'PM2.5 reduction'!BB198),9))","v":0.99996718900000003},{"$f":"VALUE(FIXED(EXP(BC$4*-1*'PM2.5 reduction'!BC198),9))","v":1}]
[null,"Male 30-34",{"$f":"VALUE(FIXED(EXP(C$4*-1*'PM2.5 reduction'!C199),9))","v":0.99992435999999996},{"$f":"VALUE(FIXED(EXP(D$4*-1*'PM2.5 reduction'!D199),9))","v":0.99994450599999996},{"$f":"VALUE(FIXED(EXP(E$4*-1*'PM2.5 reduction'!E199),9))","v":0.99998776599999994},{"$f":"VALUE(FIXED(EXP(F$4*-1*'PM2.5 reduction'!F199),9))","v":0.99998605900000004},{"$f":"VALUE(FIXED(EXP(G$4*-1*'PM2.5 reduction'!G199),9))","v":0.99998307099999995},{"$f":"VALUE(FIXED(EXP(H$4*-1*'PM2.5 reduction'!H199),9))","v":0.99997523499999996},{"$f":"VALUE(FIXED(EXP(I$4*-1*'PM2.5 reduction'!I199),9))","v":0.99999119599999997},{"$f":"VALUE(FIXED(EXP(J$4*-1*'PM2.5 reduction'!J199),9))","v":0.99997101700000002},{"$f":"VALUE(FIXED(EXP(K$4*-1*'PM2.5 reduction'!K199),9))","v":0.99997118399999996},{"$f":"VALUE(FIXED(EXP(L$4*-1*'PM2.5 reduction'!L199),9))","v":0.99998685399999998},{"$f":"VALUE(FIXED(EXP(M$4*-1*'PM2.5 reduction'!M199),9))","v":0.99998685399999998},{"$f":"VALUE(FIXED(EXP(N$4*-1*'PM2.5 reduction'!N199),9))","v":0.99994980700000002},{"$f":"VALUE(FIXED(EXP(O$4*-1*'PM2.5 reduction'!O199),9))","v":0.99997200900000005},{"$f":"VALUE(FIXED(EXP(P$4*-1*'PM2.5 reduction'!P199),9))","v":0.99995511999999998},{"$f":"VALUE(FIXED(EXP(Q$4*-1*'PM2.5 reduction'!Q199),9))","v":0.99997446300000004},{"$f":"VALUE(FIXED(EXP(R$4*-1*'PM2.5 reduction'!R199),9))","v":0.99996085400000001},{"$f":"VALUE(FIXED(EXP(S$4*-1*'PM2.5 reduction'!S199),9))","v":0.99993336799999999},{"$f":"VALUE(FIXED(EXP(T$4*-1*'PM2.5 reduction'!T199),9))","v":0.99991390199999997},{"$f":"VALUE(FIXED(EXP(U$4*-1*'PM2.5 reduction'!U199),9))","v":1},{"$f":"VALUE(FIXED(EXP(V$4*-1*'PM2.5 reduction'!V199),9))","v":0.99996117500000004},{"$f":"VALUE(FIXED(EXP(W$4*-1*'PM2.5 reduction'!W199),9))","v":0.99997127200000002},{"$f":"VALUE(FIXED(EXP(X$4*-1*'PM2.5 reduction'!X199),9))","v":0.99997127200000002},{"$f":"VALUE(FIXED(EXP(Y$4*-1*'PM2.5 reduction'!Y199),9))","v":0.99996550699999998},{"$f":"VALUE(FIXED(EXP(Z$4*-1*'PM2.5 reduction'!Z199),9))","v":0.99992220300000001},{"$f":"VALUE(FIXED(EXP(AA$4*-1*'PM2.5 reduction'!AA199),9))","v":0.99994279200000002},{"$f":"VALUE(FIXED(EXP(AB$4*-1*'PM2.5 reduction'!AB199),9))","v":0.99994701600000002},{"$f":"VALUE(FIXED(EXP(AC$4*-1*'PM2.5 reduction'!AC199),9))","v":0.99993398},{"$f":"VALUE(FIXED(EXP(AD$4*-1*'PM2.5 reduction'!AD199),9))","v":0.99998160999999997},{"$f":"VALUE(FIXED(EXP(AE$4*-1*'PM2.5 reduction'!AE199),9))","v":0.99998156400000004},{"$f":"VALUE(FIXED(EXP(AF$4*-1*'PM2.5 reduction'!AF199),9))","v":0.99996663600000002},{"$f":"VALUE(FIXED(EXP(AG$4*-1*'PM2.5 reduction'!AG199),9))","v":0.99998156400000004},{"$f":"VALUE(FIXED(EXP(AH$4*-1*'PM2.5 reduction'!AH199),9))","v":0.99995969399999995},{"$f":"VALUE(FIXED(EXP(AI$4*-1*'PM2.5 reduction'!AI199),9))","v":0.999924865},{"$f":"VALUE(FIXED(EXP(AJ$4*-1*'PM2.5 reduction'!AJ199),9))","v":0.99996881400000004},{"$f":"VALUE(FIXED(EXP(AK$4*-1*'PM2.5 reduction'!AK199),9))","v":0.99998482},{"$f":"VALUE(FIXED(EXP(AL$4*-1*'PM2.5 reduction'!AL199),9))","v":0.99998309100000005},{"$f":"VALUE(FIXED(EXP(AM$4*-1*'PM2.5 reduction'!AM199),9))","v":0.99995661599999996},{"$f":"VALUE(FIXED(EXP(AN$4*-1*'PM2.5 reduction'!AN199),9))","v":0.99999039700000003},{"$f":"VALUE(FIXED(EXP(AO$4*-1*'PM2.5 reduction'!AO199),9))","v":0.99999039700000003},{"$f":"VALUE(FIXED(EXP(AP$4*-1*'PM2.5 reduction'!AP199),9))","v":0.99998377299999996},{"$f":"VALUE(FIXED(EXP(AQ$4*-1*'PM2.5 reduction'!AQ199),9))","v":0.99995901399999998},{"$f":"VALUE(FIXED(EXP(AR$4*-1*'PM2.5 reduction'!AR199),9))","v":0.99994719700000001},{"$f":"VALUE(FIXED(EXP(AS$4*-1*'PM2.5 reduction'!AS199),9))","v":0.99999119599999997},{"$f":"VALUE(FIXED(EXP(AT$4*-1*'PM2.5 reduction'!AT199),9))","v":0.99999302499999998},{"$f":"VALUE(FIXED(EXP(AU$4*-1*'PM2.5 reduction'!AU199),9))","v":0.99999302499999998},{"$f":"VALUE(FIXED(EXP(AV$4*-1*'PM2.5 reduction'!AV199),9))","v":0.99997109699999998},{"$f":"VALUE(FIXED(EXP(AW$4*-1*'PM2.5 reduction'!AW199),9))","v":0.99996220700000005},{"$f":"VALUE(FIXED(EXP(AX$4*-1*'PM2.5 reduction'!AX199),9))","v":0.999970939},{"$f":"VALUE(FIXED(EXP(AY$4*-1*'PM2.5 reduction'!AY199),9))","v":0.99997223999999996},{"$f":"VALUE(FIXED(EXP(AZ$4*-1*'PM2.5 reduction'!AZ199),9))","v":0.99997286699999999},{"$f":"VALUE(FIXED(EXP(BA$4*-1*'PM2.5 reduction'!BA199),9))","v":0.99996491200000004},{"$f":"VALUE(FIXED(EXP(BB$4*-1*'PM2.5 reduction'!BB199),9))","v":0.999966201},{"$f":"VALUE(FIXED(EXP(BC$4*-1*'PM2.5 reduction'!BC199),9))","v":1}]
[null,"Male 35-39",{"$f":"VALUE(FIXED(EXP(C$4*-1*'PM2.5 reduction'!C200),9))","v":0.99993022099999995},{"$f":"VALUE(FIXED(EXP(D$4*-1*'PM2.5 reduction'!D200),9))","v":0.99995301199999997},{"$f":"VALUE(FIXED(EXP(E$4*-1*'PM2.5 reduction'!E200),9))","v":0.99998757199999999},{"$f":"VALUE(FIXED(EXP(F$4*-1*'PM2.5 reduction'!F200),9))","v":0.99998711900000004},{"$f":"VALUE(FIXED(EXP(G$4*-1*'PM2.5 reduction'!G200),9))","v":0.99998306100000001},{"$f":"VALUE(FIXED(EXP(H$4*-1*'PM2.5 reduction'!H200),9))","v":0.99997564900000002},{"$f":"VALUE(FIXED(EXP(I$4*-1*'PM2.5 reduction'!I200),9))","v":0.99999105300000002},{"$f":"VALUE(FIXED(EXP(J$4*-1*'PM2.5 reduction'!J200),9))","v":0.99997168599999997},{"$f":"VALUE(FIXED(EXP(K$4*-1*'PM2.5 reduction'!K200),9))","v":0.99996962599999994},{"$f":"VALUE(FIXED(EXP(L$4*-1*'PM2.5 reduction'!L200),9))","v":0.99998846500000005},{"$f":"VALUE(FIXED(EXP(M$4*-1*'PM2.5 reduction'!M200),9))","v":0.99998846500000005},{"$f":"VALUE(FIXED(EXP(N$4*-1*'PM2.5 reduction'!N200),9))","v":0.99995034599999999},{"$f":"VALUE(FIXED(EXP(O$4*-1*'PM2.5 reduction'!O200),9))","v":0.99997157599999997},{"$f":"VALUE(FIXED(EXP(P$4*-1*'PM2.5 reduction'!P200),9))","v":0.99995510399999998},{"$f":"VALUE(FIXED(EXP(Q$4*-1*'PM2.5 reduction'!Q200),9))","v":0.99997665000000002},{"$f":"VALUE(FIXED(EXP(R$4*-1*'PM2.5 reduction'!R200),9))","v":0.99996126200000002},{"$f":"VALUE(FIXED(EXP(S$4*-1*'PM2.5 reduction'!S200),9))","v":0.99994101199999996},{"$f":"VALUE(FIXED(EXP(T$4*-1*'PM2.5 reduction'!T200),9))","v":0.99991759300000005},{"$f":"VALUE(FIXED(EXP(U$4*-1*'PM2.5 reduction'!U200),9))","v":1},{"$f":"VALUE(FIXED(EXP(V$4*-1*'PM2.5 reduction'!V200),9))","v":0.999961659},{"$f":"VALUE(FIXED(EXP(W$4*-1*'PM2.5 reduction'!W200),9))","v":0.99997113999999998},{"$f":"VALUE(FIXED(EXP(X$4*-1*'PM2.5 reduction'!X200),9))","v":0.99997113999999998},{"$f":"VALUE(FIXED(EXP(Y$4*-1*'PM2.5 reduction'!Y200),9))","v":0.99996644800000001},{"$f":"VALUE(FIXED(EXP(Z$4*-1*'PM2.5 reduction'!Z200),9))","v":0.99992449800000005},{"$f":"VALUE(FIXED(EXP(AA$4*-1*'PM2.5 reduction'!AA200),9))","v":0.999946577},{"$f":"VALUE(FIXED(EXP(AB$4*-1*'PM2.5 reduction'!AB200),9))","v":0.99995542299999995},{"$f":"VALUE(FIXED(EXP(AC$4*-1*'PM2.5 reduction'!AC200),9))","v":0.99993792999999997},{"$f":"VALUE(FIXED(EXP(AD$4*-1*'PM2.5 reduction'!AD200),9))","v":0.99998128799999997},{"$f":"VALUE(FIXED(EXP(AE$4*-1*'PM2.5 reduction'!AE200),9))","v":0.99998116199999998},{"$f":"VALUE(FIXED(EXP(AF$4*-1*'PM2.5 reduction'!AF200),9))","v":0.999970896},{"$f":"VALUE(FIXED(EXP(AG$4*-1*'PM2.5 reduction'!AG200),9))","v":0.99998116199999998},{"$f":"VALUE(FIXED(EXP(AH$4*-1*'PM2.5 reduction'!AH200),9))","v":0.9999593},{"$f":"VALUE(FIXED(EXP(AI$4*-1*'PM2.5 reduction'!AI200),9))","v":0.99993121200000001},{"$f":"VALUE(FIXED(EXP(AJ$4*-1*'PM2.5 reduction'!AJ200),9))","v":0.99996903500000001},{"$f":"VALUE(FIXED(EXP(AK$4*-1*'PM2.5 reduction'!AK200),9))","v":0.99998382900000005},{"$f":"VALUE(FIXED(EXP(AL$4*-1*'PM2.5 reduction'!AL200),9))","v":0.99998318500000005},{"$f":"VALUE(FIXED(EXP(AM$4*-1*'PM2.5 reduction'!AM200),9))","v":0.99995655500000002},{"$f":"VALUE(FIXED(EXP(AN$4*-1*'PM2.5 reduction'!AN200),9))","v":0.99999024299999995},{"$f":"VALUE(FIXED(EXP(AO$4*-1*'PM2.5 reduction'!AO200),9))","v":0.99999024299999995},{"$f":"VALUE(FIXED(EXP(AP$4*-1*'PM2.5 reduction'!AP200),9))","v":0.99998338899999994},{"$f":"VALUE(FIXED(EXP(AQ$4*-1*'PM2.5 reduction'!AQ200),9))","v":0.99995928199999995},{"$f":"VALUE(FIXED(EXP(AR$4*-1*'PM2.5 reduction'!AR200),9))","v":0.99995263899999998},{"$f":"VALUE(FIXED(EXP(AS$4*-1*'PM2.5 reduction'!AS200),9))","v":0.99999105300000002},{"$f":"VALUE(FIXED(EXP(AT$4*-1*'PM2.5 reduction'!AT200),9))","v":0.99999364499999999},{"$f":"VALUE(FIXED(EXP(AU$4*-1*'PM2.5 reduction'!AU200),9))","v":0.99999364499999999},{"$f":"VALUE(FIXED(EXP(AV$4*-1*'PM2.5 reduction'!AV200),9))","v":0.99997111800000005},{"$f":"VALUE(FIXED(EXP(AW$4*-1*'PM2.5 reduction'!AW200),9))","v":0.99996123599999998},{"$f":"VALUE(FIXED(EXP(AX$4*-1*'PM2.5 reduction'!AX200),9))","v":0.99997250100000001},{"$f":"VALUE(FIXED(EXP(AY$4*-1*'PM2.5 reduction'!AY200),9))","v":0.99997268299999997},{"$f":"VALUE(FIXED(EXP(AZ$4*-1*'PM2.5 reduction'!AZ200),9))","v":0.99997393000000001},{"$f":"VALUE(FIXED(EXP(BA$4*-1*'PM2.5 reduction'!BA200),9))","v":0.99996747699999999},{"$f":"VALUE(FIXED(EXP(BB$4*-1*'PM2.5 reduction'!BB200),9))","v":0.99996690600000004},{"$f":"VALUE(FIXED(EXP(BC$4*-1*'PM2.5 reduction'!BC200),9))","v":1}]
[null,"Male 40-44",{"$f":"VALUE(FIXED(EXP(C$4*-1*'PM2.5 reduction'!C201),9))","v":0.99993135600000005},{"$f":"VALUE(FIXED(EXP(D$4*-1*'PM2.5 reduction'!D201),9))","v":0.99995693200000002},{"$f":"VALUE(FIXED(EXP(E$4*-1*'PM2.5 reduction'!E201),9))","v":0.99998757999999999},{"$f":"VALUE(FIXED(EXP(F$4*-1*'PM2.5 reduction'!F201),9))","v":0.99998649100000003},{"$f":"VALUE(FIXED(EXP(G$4*-1*'PM2.5 reduction'!G201),9))","v":0.99998307099999995},{"$f":"VALUE(FIXED(EXP(H$4*-1*'PM2.5 reduction'!H201),9))","v":0.99997605099999998},{"$f":"VALUE(FIXED(EXP(I$4*-1*'PM2.5 reduction'!I201),9))","v":0.99999132800000001},{"$f":"VALUE(FIXED(EXP(J$4*-1*'PM2.5 reduction'!J201),9))","v":0.99997408399999999},{"$f":"VALUE(FIXED(EXP(K$4*-1*'PM2.5 reduction'!K201),9))","v":0.99997195699999997},{"$f":"VALUE(FIXED(EXP(L$4*-1*'PM2.5 reduction'!L201),9))","v":0.99998706400000004},{"$f":"VALUE(FIXED(EXP(M$4*-1*'PM2.5 reduction'!M201),9))","v":0.99998706400000004},{"$f":"VALUE(FIXED(EXP(N$4*-1*'PM2.5 reduction'!N201),9))","v":0.999950793},{"$f":"VALUE(FIXED(EXP(O$4*-1*'PM2.5 reduction'!O201),9))","v":0.99997294000000003},{"$f":"VALUE(FIXED(EXP(P$4*-1*'PM2.5 reduction'!P201),9))","v":0.999954126},{"$f":"VALUE(FIXED(EXP(Q$4*-1*'PM2.5 reduction'!Q201),9))","v":0.99997675500000005},{"$f":"VALUE(FIXED(EXP(R$4*-1*'PM2.5 reduction'!R201),9))","v":0.99996332799999998},{"$f":"VALUE(FIXED(EXP(S$4*-1*'PM2.5 reduction'!S201),9))","v":0.99994660099999999},{"$f":"VALUE(FIXED(EXP(T$4*-1*'PM2.5 reduction'!T201),9))","v":0.99991876800000001},{"$f":"VALUE(FIXED(EXP(U$4*-1*'PM2.5 reduction'!U201),9))","v":1},{"$f":"VALUE(FIXED(EXP(V$4*-1*'PM2.5 reduction'!V201),9))","v":0.99996262800000002},{"$f":"VALUE(FIXED(EXP(W$4*-1*'PM2.5 reduction'!W201),9))","v":0.99997103899999995},{"$f":"VALUE(FIXED(EXP(X$4*-1*'PM2.5 reduction'!X201),9))","v":0.99997103899999995},{"$f":"VALUE(FIXED(EXP(Y$4*-1*'PM2.5 reduction'!Y201),9))","v":0.99996764000000005},{"$f":"VALUE(FIXED(EXP(Z$4*-1*'PM2.5 reduction'!Z201),9))","v":0.99992642499999995},{"$f":"VALUE(FIXED(EXP(AA$4*-1*'PM2.5 reduction'!AA201),9))","v":0.99994996000000003},{"$f":"VALUE(FIXED(EXP(AB$4*-1*'PM2.5 reduction'!AB201),9))","v":0.99995926700000004},{"$f":"VALUE(FIXED(EXP(AC$4*-1*'PM2.5 reduction'!AC201),9))","v":0.99994260400000001},{"$f":"VALUE(FIXED(EXP(AD$4*-1*'PM2.5 reduction'!AD201),9))","v":0.99998129599999996},{"$f":"VALUE(FIXED(EXP(AE$4*-1*'PM2.5 reduction'!AE201),9))","v":0.99998113200000005},{"$f":"VALUE(FIXED(EXP(AF$4*-1*'PM2.5 reduction'!AF201),9))","v":0.99997356299999995},{"$f":"VALUE(FIXED(EXP(AG$4*-1*'PM2.5 reduction'!AG201),9))","v":0.99998113200000005},{"$f":"VALUE(FIXED(EXP(AH$4*-1*'PM2.5 reduction'!AH201),9))","v":0.99996005899999996},{"$f":"VALUE(FIXED(EXP(AI$4*-1*'PM2.5 reduction'!AI201),9))","v":0.99993655999999997},{"$f":"VALUE(FIXED(EXP(AJ$4*-1*'PM2.5 reduction'!AJ201),9))","v":0.99996920300000003},{"$f":"VALUE(FIXED(EXP(AK$4*-1*'PM2.5 reduction'!AK201),9))","v":0.99998636299999999},{"$f":"VALUE(FIXED(EXP(AL$4*-1*'PM2.5 reduction'!AL201),9))","v":0.999983065},{"$f":"VALUE(FIXED(EXP(AM$4*-1*'PM2.5 reduction'!AM201),9))","v":0.99995718300000003},{"$f":"VALUE(FIXED(EXP(AN$4*-1*'PM2.5 reduction'!AN201),9))","v":0.99999143499999998},{"$f":"VALUE(FIXED(EXP(AO$4*-1*'PM2.5 reduction'!AO201),9))","v":0.99999143499999998},{"$f":"VALUE(FIXED(EXP(AP$4*-1*'PM2.5 reduction'!AP201),9))","v":0.99998570099999995},{"$f":"VALUE(FIXED(EXP(AQ$4*-1*'PM2.5 reduction'!AQ201),9))","v":0.99996065999999995},{"$f":"VALUE(FIXED(EXP(AR$4*-1*'PM2.5 reduction'!AR201),9))","v":0.99995663199999996},{"$f":"VALUE(FIXED(EXP(AS$4*-1*'PM2.5 reduction'!AS201),9))","v":0.99999132800000001},{"$f":"VALUE(FIXED(EXP(AT$4*-1*'PM2.5 reduction'!AT201),9))","v":0.999994092},{"$f":"VALUE(FIXED(EXP(AU$4*-1*'PM2.5 reduction'!AU201),9))","v":0.999994092},{"$f":"VALUE(FIXED(EXP(AV$4*-1*'PM2.5 reduction'!AV201),9))","v":0.999970366},{"$f":"VALUE(FIXED(EXP(AW$4*-1*'PM2.5 reduction'!AW201),9))","v":0.99996229800000003},{"$f":"VALUE(FIXED(EXP(AX$4*-1*'PM2.5 reduction'!AX201),9))","v":0.99997501},{"$f":"VALUE(FIXED(EXP(AY$4*-1*'PM2.5 reduction'!AY201),9))","v":0.99997329499999998},{"$f":"VALUE(FIXED(EXP(AZ$4*-1*'PM2.5 reduction'!AZ201),9))","v":0.99997520299999998},{"$f":"VALUE(FIXED(EXP(BA$4*-1*'PM2.5 reduction'!BA201),9))","v":0.9999673},{"$f":"VALUE(FIXED(EXP(BB$4*-1*'PM2.5 reduction'!BB201),9))","v":0.99996650399999998},{"$f":"VALUE(FIXED(EXP(BC$4*-1*'PM2.5 reduction'!BC201),9))","v":1}]
[null,"Male 45-49",{"$f":"VALUE(FIXED(EXP(C$4*-1*'PM2.5 reduction'!C202),9))","v":0.99993720500000005},{"$f":"VALUE(FIXED(EXP(D$4*-1*'PM2.5 reduction'!D202),9))","v":0.99996266300000003},{"$f":"VALUE(FIXED(EXP(E$4*-1*'PM2.5 reduction'!E202),9))","v":0.99998797299999997},{"$f":"VALUE(FIXED(EXP(F$4*-1*'PM2.5 reduction'!F202),9))","v":0.99998617999999995},{"$f":"VALUE(FIXED(EXP(G$4*-1*'PM2.5 reduction'!G202),9))","v":0.99998298500000005},{"$f":"VALUE(FIXED(EXP(H$4*-1*'PM2.5 reduction'!H202),9))","v":0.99997659100000003},{"$f":"VALUE(FIXED(EXP(I$4*-1*'PM2.5 reduction'!I202),9))","v":0.99999206500000004},{"$f":"VALUE(FIXED(EXP(J$4*-1*'PM2.5 reduction'!J202),9))","v":0.99997518900000004},{"$f":"VALUE(FIXED(EXP(K$4*-1*'PM2.5 reduction'!K202),9))","v":0.99997170700000004},{"$f":"VALUE(FIXED(EXP(L$4*-1*'PM2.5 reduction'!L202),9))","v":0.99998834199999997},{"$f":"VALUE(FIXED(EXP(M$4*-1*'PM2.5 reduction'!M202),9))","v":0.99998834199999997},{"$f":"VALUE(FIXED(EXP(N$4*-1*'PM2.5 reduction'!N202),9))","v":0.99994996899999999},{"$f":"VALUE(FIXED(EXP(O$4*-1*'PM2.5 reduction'!O202),9))","v":0.99997391899999999},{"$f":"VALUE(FIXED(EXP(P$4*-1*'PM2.5 reduction'!P202),9))","v":0.99995327899999997},{"$f":"VALUE(FIXED(EXP(Q$4*-1*'PM2.5 reduction'!Q202),9))","v":0.99997735200000004},{"$f":"VALUE(FIXED(EXP(R$4*-1*'PM2.5 reduction'!R202),9))","v":0.99996078499999996},{"$f":"VALUE(FIXED(EXP(S$4*-1*'PM2.5 reduction'!S202),9))","v":0.99995159899999997},{"$f":"VALUE(FIXED(EXP(T$4*-1*'PM2.5 reduction'!T202),9))","v":0.99992126999999997},{"$f":"VALUE(FIXED(EXP(U$4*-1*'PM2.5 reduction'!U202),9))","v":1},{"$f":"VALUE(FIXED(EXP(V$4*-1*'PM2.5 reduction'!V202),9))","v":0.99996361300000003},{"$f":"VALUE(FIXED(EXP(W$4*-1*'PM2.5 reduction'!W202),9))","v":0.99997186599999999},{"$f":"VALUE(FIXED(EXP(X$4*-1*'PM2.5 reduction'!X202),9))","v":0.99997186599999999},{"$f":"VALUE(FIXED(EXP(Y$4*-1*'PM2.5 reduction'!Y202),9))","v":0.99996856499999998},{"$f":"VALUE(FIXED(EXP(Z$4*-1*'PM2.5 reduction'!Z202),9))","v":0.99993110100000004},{"$f":"VALUE(FIXED(EXP(AA$4*-1*'PM2.5 reduction'!AA202),9))","v":0.99995258799999998},{"$f":"VALUE(FIXED(EXP(AB$4*-1*'PM2.5 reduction'!AB202),9))","v":0.99996459800000004},{"$f":"VALUE(FIXED(EXP(AC$4*-1*'PM2.5 reduction'!AC202),9))","v":0.999946852},{"$f":"VALUE(FIXED(EXP(AD$4*-1*'PM2.5 reduction'!AD202),9))","v":0.99998234900000005},{"$f":"VALUE(FIXED(EXP(AE$4*-1*'PM2.5 reduction'!AE202),9))","v":0.99998229800000005},{"$f":"VALUE(FIXED(EXP(AF$4*-1*'PM2.5 reduction'!AF202),9))","v":0.99997366399999998},{"$f":"VALUE(FIXED(EXP(AG$4*-1*'PM2.5 reduction'!AG202),9))","v":0.99998229800000005},{"$f":"VALUE(FIXED(EXP(AH$4*-1*'PM2.5 reduction'!AH202),9))","v":0.99996030300000005},{"$f":"VALUE(FIXED(EXP(AI$4*-1*'PM2.5 reduction'!AI202),9))","v":0.99994092800000001},{"$f":"VALUE(FIXED(EXP(AJ$4*-1*'PM2.5 reduction'!AJ202),9))","v":0.99996797299999995},{"$f":"VALUE(FIXED(EXP(AK$4*-1*'PM2.5 reduction'!AK202),9))","v":0.99998428299999997},{"$f":"VALUE(FIXED(EXP(AL$4*-1*'PM2.5 reduction'!AL202),9))","v":0.99998336799999998},{"$f":"VALUE(FIXED(EXP(AM$4*-1*'PM2.5 reduction'!AM202),9))","v":0.99995734199999997},{"$f":"VALUE(FIXED(EXP(AN$4*-1*'PM2.5 reduction'!AN202),9))","v":0.99999170699999995},{"$f":"VALUE(FIXED(EXP(AO$4*-1*'PM2.5 reduction'!AO202),9))","v":0.99999170699999995},{"$f":"VALUE(FIXED(EXP(AP$4*-1*'PM2.5 reduction'!AP202),9))","v":0.999984804},{"$f":"VALUE(FIXED(EXP(AQ$4*-1*'PM2.5 reduction'!AQ202),9))","v":0.99996047700000001},{"$f":"VALUE(FIXED(EXP(AR$4*-1*'PM2.5 reduction'!AR202),9))","v":0.99995991699999998},{"$f":"VALUE(FIXED(EXP(AS$4*-1*'PM2.5 reduction'!AS202),9))","v":0.99999206500000004},{"$f":"VALUE(FIXED(EXP(AT$4*-1*'PM2.5 reduction'!AT202),9))","v":0.99999407600000001},{"$f":"VALUE(FIXED(EXP(AU$4*-1*'PM2.5 reduction'!AU202),9))","v":0.99999407600000001},{"$f":"VALUE(FIXED(EXP(AV$4*-1*'PM2.5 reduction'!AV202),9))","v":0.99997029199999998},{"$f":"VALUE(FIXED(EXP(AW$4*-1*'PM2.5 reduction'!AW202),9))","v":0.99996281200000003},{"$f":"VALUE(FIXED(EXP(AX$4*-1*'PM2.5 reduction'!AX202),9))","v":0.99997681299999996},{"$f":"VALUE(FIXED(EXP(AY$4*-1*'PM2.5 reduction'!AY202),9))","v":0.999973522},{"$f":"VALUE(FIXED(EXP(AZ$4*-1*'PM2.5 reduction'!AZ202),9))","v":0.99997490200000005},{"$f":"VALUE(FIXED(EXP(BA$4*-1*'PM2.5 reduction'!BA202),9))","v":0.99996770300000004},{"$f":"VALUE(FIXED(EXP(BB$4*-1*'PM2.5 reduction'!BB202),9))","v":0.99996821400000002},{"$f":"VALUE(FIXED(EXP(BC$4*-1*'PM2.5 reduction'!BC202),9))","v":1}]
[null,"Male 50-54",{"$f":"VALUE(FIXED(EXP(C$4*-1*'PM2.5 reduction'!C203),9))","v":0.99993921399999997},{"$f":"VALUE(FIXED(EXP(D$4*-1*'PM2.5 reduction'!D203),9))","v":0.99996409600000002},{"$f":"VALUE(FIXED(EXP(E$4*-1*'PM2.5 reduction'!E203),9))","v":0.999988302},{"$f":"VALUE(FIXED(EXP(F$4*-1*'PM2.5 reduction'!F203),9))","v":0.99998617999999995},{"$f":"VALUE(FIXED(EXP(G$4*-1*'PM2.5 reduction'!G203),9))","v":0.99998289600000001},{"$f":"VALUE(FIXED(EXP(H$4*-1*'PM2.5 reduction'!H203),9))","v":0.99997639999999999},{"$f":"VALUE(FIXED(EXP(I$4*-1*'PM2.5 reduction'!I203),9))","v":0.999991348},{"$f":"VALUE(FIXED(EXP(J$4*-1*'PM2.5 reduction'!J203),9))","v":0.99997453400000003},{"$f":"VALUE(FIXED(EXP(K$4*-1*'PM2.5 reduction'!K203),9))","v":0.99996779000000002},{"$f":"VALUE(FIXED(EXP(L$4*-1*'PM2.5 reduction'!L203),9))","v":0.99998787600000005},{"$f":"VALUE(FIXED(EXP(M$4*-1*'PM2.5 reduction'!M203),9))","v":0.99998787600000005},{"$f":"VALUE(FIXED(EXP(N$4*-1*'PM2.5 reduction'!N203),9))","v":0.99994980499999997},{"$f":"VALUE(FIXED(EXP(O$4*-1*'PM2.5 reduction'!O203),9))","v":0.99997096799999996},{"$f":"VALUE(FIXED(EXP(P$4*-1*'PM2.5 reduction'!P203),9))","v":0.99995569799999995},{"$f":"VALUE(FIXED(EXP(Q$4*-1*'PM2.5 reduction'!Q203),9))","v":0.99997535100000001},{"$f":"VALUE(FIXED(EXP(R$4*-1*'PM2.5 reduction'!R203),9))","v":0.99996275199999995},{"$f":"VALUE(FIXED(EXP(S$4*-1*'PM2.5 reduction'!S203),9))","v":0.99995191800000005},{"$f":"VALUE(FIXED(EXP(T$4*-1*'PM2.5 reduction'!T203),9))","v":0.99992225700000004},{"$f":"VALUE(FIXED(EXP(U$4*-1*'PM2.5 reduction'!U203),9))","v":1},{"$f":"VALUE(FIXED(EXP(V$4*-1*'PM2.5 reduction'!V203),9))","v":0.99996178000000002},{"$f":"VALUE(FIXED(EXP(W$4*-1*'PM2.5 reduction'!W203),9))","v":0.99997251099999995},{"$f":"VALUE(FIXED(EXP(X$4*-1*'PM2.5 reduction'!X203),9))","v":0.99997251099999995},{"$f":"VALUE(FIXED(EXP(Y$4*-1*'PM2.5 reduction'!Y203),9))","v":0.999967516},{"$f":"VALUE(FIXED(EXP(Z$4*-1*'PM2.5 reduction'!Z203),9))","v":0.99993147199999999},{"$f":"VALUE(FIXED(EXP(AA$4*-1*'PM2.5 reduction'!AA203),9))","v":0.99995334000000002},{"$f":"VALUE(FIXED(EXP(AB$4*-1*'PM2.5 reduction'!AB203),9))","v":0.99996567000000003},{"$f":"VALUE(FIXED(EXP(AC$4*-1*'PM2.5 reduction'!AC203),9))","v":0.99994875100000002},{"$f":"VALUE(FIXED(EXP(AD$4*-1*'PM2.5 reduction'!AD203),9))","v":0.99998258799999995},{"$f":"VALUE(FIXED(EXP(AE$4*-1*'PM2.5 reduction'!AE203),9))","v":0.99998256299999999},{"$f":"VALUE(FIXED(EXP(AF$4*-1*'PM2.5 reduction'!AF203),9))","v":0.99997289600000006},{"$f":"VALUE(FIXED(EXP(AG$4*-1*'PM2.5 reduction'!AG203),9))","v":0.99998256299999999},{"$f":"VALUE(FIXED(EXP(AH$4*-1*'PM2.5 reduction'!AH203),9))","v":0.99995977199999997},{"$f":"VALUE(FIXED(EXP(AI$4*-1*'PM2.5 reduction'!AI203),9))","v":0.99994090400000002},{"$f":"VALUE(FIXED(EXP(AJ$4*-1*'PM2.5 reduction'!AJ203),9))","v":0.99996868400000005},{"$f":"VALUE(FIXED(EXP(AK$4*-1*'PM2.5 reduction'!AK203),9))","v":0.99998485100000001},{"$f":"VALUE(FIXED(EXP(AL$4*-1*'PM2.5 reduction'!AL203),9))","v":0.99998348500000001},{"$f":"VALUE(FIXED(EXP(AM$4*-1*'PM2.5 reduction'!AM203),9))","v":0.99995720799999999},{"$f":"VALUE(FIXED(EXP(AN$4*-1*'PM2.5 reduction'!AN203),9))","v":0.99999173900000005},{"$f":"VALUE(FIXED(EXP(AO$4*-1*'PM2.5 reduction'!AO203),9))","v":0.99999173900000005},{"$f":"VALUE(FIXED(EXP(AP$4*-1*'PM2.5 reduction'!AP203),9))","v":0.99998712099999998},{"$f":"VALUE(FIXED(EXP(AQ$4*-1*'PM2.5 reduction'!AQ203),9))","v":0.99996142099999996},{"$f":"VALUE(FIXED(EXP(AR$4*-1*'PM2.5 reduction'!AR203),9))","v":0.99996064200000001},{"$f":"VALUE(FIXED(EXP(AS$4*-1*'PM2.5 reduction'!AS203),9))","v":0.999991348},{"$f":"VALUE(FIXED(EXP(AT$4*-1*'PM2.5 reduction'!AT203),9))","v":0.99999332900000004},{"$f":"VALUE(FIXED(EXP(AU$4*-1*'PM2.5 reduction'!AU203),9))","v":0.99999332900000004},{"$f":"VALUE(FIXED(EXP(AV$4*-1*'PM2.5 reduction'!AV203),9))","v":0.99997095000000003},{"$f":"VALUE(FIXED(EXP(AW$4*-1*'PM2.5 reduction'!AW203),9))","v":0.99996190200000001},{"$f":"VALUE(FIXED(EXP(AX$4*-1*'PM2.5 reduction'!AX203),9))","v":0.99997756100000001},{"$f":"VALUE(FIXED(EXP(AY$4*-1*'PM2.5 reduction'!AY203),9))","v":0.99997415000000001},{"$f":"VALUE(FIXED(EXP(AZ$4*-1*'PM2.5 reduction'!AZ203),9))","v":0.99997525200000004},{"$f":"VALUE(FIXED(EXP(BA$4*-1*'PM2.5 reduction'!BA203),9))","v":0.99996859800000004},{"$f":"VALUE(FIXED(EXP(BB$4*-1*'PM2.5 reduction'!BB203),9))","v":0.99996876400000001},{"$f":"VALUE(FIXED(EXP(BC$4*-1*'PM2.5 reduction'!BC203),9))","v":1}]
[null,"Male 55-59",{"$f":"VALUE(FIXED(EXP(C$4*-1*'PM2.5 reduction'!C204),9))","v":0.99993943799999996},{"$f":"VALUE(FIXED(EXP(D$4*-1*'PM2.5 reduction'!D204),9))","v":0.99996434000000001},{"$f":"VALUE(FIXED(EXP(E$4*-1*'PM2.5 reduction'!E204),9))","v":0.99998785199999995},{"$f":"VALUE(FIXED(EXP(F$4*-1*'PM2.5 reduction'!F204),9))","v":0.99998671500000003},{"$f":"VALUE(FIXED(EXP(G$4*-1*'PM2.5 reduction'!G204),9))","v":0.99998296499999995},{"$f":"VALUE(FIXED(EXP(H$4*-1*'PM2.5 reduction'!H204),9))","v":0.99997594300000003},{"$f":"VALUE(FIXED(EXP(I$4*-1*'PM2.5 reduction'!I204),9))","v":0.99999169200000004},{"$f":"VALUE(FIXED(EXP(J$4*-1*'PM2.5 reduction'!J204),9))","v":0.99997288399999995},{"$f":"VALUE(FIXED(EXP(K$4*-1*'PM2.5 reduction'!K204),9))","v":0.99996984499999997},{"$f":"VALUE(FIXED(EXP(L$4*-1*'PM2.5 reduction'!L204),9))","v":0.99998817600000001},{"$f":"VALUE(FIXED(EXP(M$4*-1*'PM2.5 reduction'!M204),9))","v":0.99998817600000001},{"$f":"VALUE(FIXED(EXP(N$4*-1*'PM2.5 reduction'!N204),9))","v":0.99994911399999997},{"$f":"VALUE(FIXED(EXP(O$4*-1*'PM2.5 reduction'!O204),9))","v":0.999971999},{"$f":"VALUE(FIXED(EXP(P$4*-1*'PM2.5 reduction'!P204),9))","v":0.99995436100000001},{"$f":"VALUE(FIXED(EXP(Q$4*-1*'PM2.5 reduction'!Q204),9))","v":0.999974645},{"$f":"VALUE(FIXED(EXP(R$4*-1*'PM2.5 reduction'!R204),9))","v":0.99996030000000002},{"$f":"VALUE(FIXED(EXP(S$4*-1*'PM2.5 reduction'!S204),9))","v":0.99995432299999998},{"$f":"VALUE(FIXED(EXP(T$4*-1*'PM2.5 reduction'!T204),9))","v":0.99992614599999996},{"$f":"VALUE(FIXED(EXP(U$4*-1*'PM2.5 reduction'!U204),9))","v":1},{"$f":"VALUE(FIXED(EXP(V$4*-1*'PM2.5 reduction'!V204),9))","v":0.99996411799999996},{"$f":"VALUE(FIXED(EXP(W$4*-1*'PM2.5 reduction'!W204),9))","v":0.99997247700000003},{"$f":"VALUE(FIXED(EXP(X$4*-1*'PM2.5 reduction'!X204),9))","v":0.99997247700000003},{"$f":"VALUE(FIXED(EXP(Y$4*-1*'PM2.5 reduction'!Y204),9))","v":0.99996787200000004},{"$f":"VALUE(FIXED(EXP(Z$4*-1*'PM2.5 reduction'!Z204),9))","v":0.99993385000000001},{"$f":"VALUE(FIXED(EXP(AA$4*-1*'PM2.5 reduction'!AA204),9))","v":0.99995355699999999},{"$f":"VALUE(FIXED(EXP(AB$4*-1*'PM2.5 reduction'!AB204),9))","v":0.99996583100000003},{"$f":"VALUE(FIXED(EXP(AC$4*-1*'PM2.5 reduction'!AC204),9))","v":0.99994968399999995},{"$f":"VALUE(FIXED(EXP(AD$4*-1*'PM2.5 reduction'!AD204),9))","v":0.99998197799999999},{"$f":"VALUE(FIXED(EXP(AE$4*-1*'PM2.5 reduction'!AE204),9))","v":0.99998188700000001},{"$f":"VALUE(FIXED(EXP(AF$4*-1*'PM2.5 reduction'!AF204),9))","v":0.99997035499999998},{"$f":"VALUE(FIXED(EXP(AG$4*-1*'PM2.5 reduction'!AG204),9))","v":0.99998188700000001},{"$f":"VALUE(FIXED(EXP(AH$4*-1*'PM2.5 reduction'!AH204),9))","v":0.99995960699999997},{"$f":"VALUE(FIXED(EXP(AI$4*-1*'PM2.5 reduction'!AI204),9))","v":0.99994411000000005},{"$f":"VALUE(FIXED(EXP(AJ$4*-1*'PM2.5 reduction'!AJ204),9))","v":0.99996806400000005},{"$f":"VALUE(FIXED(EXP(AK$4*-1*'PM2.5 reduction'!AK204),9))","v":0.99998336700000001},{"$f":"VALUE(FIXED(EXP(AL$4*-1*'PM2.5 reduction'!AL204),9))","v":0.99998307099999995},{"$f":"VALUE(FIXED(EXP(AM$4*-1*'PM2.5 reduction'!AM204),9))","v":0.999955755},{"$f":"VALUE(FIXED(EXP(AN$4*-1*'PM2.5 reduction'!AN204),9))","v":0.99999260899999998},{"$f":"VALUE(FIXED(EXP(AO$4*-1*'PM2.5 reduction'!AO204),9))","v":0.99999260899999998},{"$f":"VALUE(FIXED(EXP(AP$4*-1*'PM2.5 reduction'!AP204),9))","v":0.99998692199999994},{"$f":"VALUE(FIXED(EXP(AQ$4*-1*'PM2.5 reduction'!AQ204),9))","v":0.99996135900000005},{"$f":"VALUE(FIXED(EXP(AR$4*-1*'PM2.5 reduction'!AR204),9))","v":0.99996126399999996},{"$f":"VALUE(FIXED(EXP(AS$4*-1*'PM2.5 reduction'!AS204),9))","v":0.99999169200000004},{"$f":"VALUE(FIXED(EXP(AT$4*-1*'PM2.5 reduction'!AT204),9))","v":0.99999307400000004},{"$f":"VALUE(FIXED(EXP(AU$4*-1*'PM2.5 reduction'!AU204),9))","v":0.99999307400000004},{"$f":"VALUE(FIXED(EXP(AV$4*-1*'PM2.5 reduction'!AV204),9))","v":0.99997103899999995},{"$f":"VALUE(FIXED(EXP(AW$4*-1*'PM2.5 reduction'!AW204),9))","v":0.99996261099999995},{"$f":"VALUE(FIXED(EXP(AX$4*-1*'PM2.5 reduction'!AX204),9))","v":0.99997451599999998},{"$f":"VALUE(FIXED(EXP(AY$4*-1*'PM2.5 reduction'!AY204),9))","v":0.99997328799999996},{"$f":"VALUE(FIXED(EXP(AZ$4*-1*'PM2.5 reduction'!AZ204),9))","v":0.99997376599999999},{"$f":"VALUE(FIXED(EXP(BA$4*-1*'PM2.5 reduction'!BA204),9))","v":0.99996757999999997},{"$f":"VALUE(FIXED(EXP(BB$4*-1*'PM2.5 reduction'!BB204),9))","v":0.99996833600000001},{"$f":"VALUE(FIXED(EXP(BC$4*-1*'PM2.5 reduction'!BC204),9))","v":1}]
[null,"Male 60-64",{"$f":"VALUE(FIXED(EXP(C$4*-1*'PM2.5 reduction'!C205),9))","v":0.99994138899999996},{"$f":"VALUE(FIXED(EXP(D$4*-1*'PM2.5 reduction'!D205),9))","v":0.99996558899999999},{"$f":"VALUE(FIXED(EXP(E$4*-1*'PM2.5 reduction'!E205),9))","v":0.99998824500000005},{"$f":"VALUE(FIXED(EXP(F$4*-1*'PM2.5 reduction'!F205),9))","v":0.99998616100000004},{"$f":"VALUE(FIXED(EXP(G$4*-1*'PM2.5 reduction'!G205),9))","v":0.99998301700000003},{"$f":"VALUE(FIXED(EXP(H$4*-1*'PM2.5 reduction'!H205),9))","v":0.99997623000000002},{"$f":"VALUE(FIXED(EXP(I$4*-1*'PM2.5 reduction'!I205),9))","v":0.99999083899999996},{"$f":"VALUE(FIXED(EXP(J$4*-1*'PM2.5 reduction'!J205),9))","v":0.99997333799999999},{"$f":"VALUE(FIXED(EXP(K$4*-1*'PM2.5 reduction'!K205),9))","v":0.99996786500000001},{"$f":"VALUE(FIXED(EXP(L$4*-1*'PM2.5 reduction'!L205),9))","v":0.99998762500000005},{"$f":"VALUE(FIXED(EXP(M$4*-1*'PM2.5 reduction'!M205),9))","v":0.99998762500000005},{"$f":"VALUE(FIXED(EXP(N$4*-1*'PM2.5 reduction'!N205),9))","v":0.99994880200000003},{"$f":"VALUE(FIXED(EXP(O$4*-1*'PM2.5 reduction'!O205),9))","v":0.99997219900000001},{"$f":"VALUE(FIXED(EXP(P$4*-1*'PM2.5 reduction'!P205),9))","v":0.99995671500000005},{"$f":"VALUE(FIXED(EXP(Q$4*-1*'PM2.5 reduction'!Q205),9))","v":0.99997695200000003},{"$f":"VALUE(FIXED(EXP(R$4*-1*'PM2.5 reduction'!R205),9))","v":0.99996172800000005},{"$f":"VALUE(FIXED(EXP(S$4*-1*'PM2.5 reduction'!S205),9))","v":0.99995286100000003},{"$f":"VALUE(FIXED(EXP(T$4*-1*'PM2.5 reduction'!T205),9))","v":0.99992450399999999},{"$f":"VALUE(FIXED(EXP(U$4*-1*'PM2.5 reduction'!U205),9))","v":1},{"$f":"VALUE(FIXED(EXP(V$4*-1*'PM2.5 reduction'!V205),9))","v":0.99996417100000001},{"$f":"VALUE(FIXED(EXP(W$4*-1*'PM2.5 reduction'!W205),9))","v":0.99997242500000005},{"$f":"VALUE(FIXED(EXP(X$4*-1*'PM2.5 reduction'!X205),9))","v":0.99997242500000005},{"$f":"VALUE(FIXED(EXP(Y$4*-1*'PM2.5 reduction'!Y205),9))","v":0.99996830299999995},{"$f":"VALUE(FIXED(EXP(Z$4*-1*'PM2.5 reduction'!Z205),9))","v":0.99993219899999997},{"$f":"VALUE(FIXED(EXP(AA$4*-1*'PM2.5 reduction'!AA205),9))","v":0.99995381699999997},{"$f":"VALUE(FIXED(EXP(AB$4*-1*'PM2.5 reduction'!AB205),9))","v":0.99996702000000004},{"$f":"VALUE(FIXED(EXP(AC$4*-1*'PM2.5 reduction'!AC205),9))","v":0.99994954000000003},{"$f":"VALUE(FIXED(EXP(AD$4*-1*'PM2.5 reduction'!AD205),9))","v":0.99998315599999998},{"$f":"VALUE(FIXED(EXP(AE$4*-1*'PM2.5 reduction'!AE205),9))","v":0.99998316799999998},{"$f":"VALUE(FIXED(EXP(AF$4*-1*'PM2.5 reduction'!AF205),9))","v":0.99997443399999997},{"$f":"VALUE(FIXED(EXP(AG$4*-1*'PM2.5 reduction'!AG205),9))","v":0.99998316799999998},{"$f":"VALUE(FIXED(EXP(AH$4*-1*'PM2.5 reduction'!AH205),9))","v":0.99996076199999995},{"$f":"VALUE(FIXED(EXP(AI$4*-1*'PM2.5 reduction'!AI205),9))","v":0.99994185000000002},{"$f":"VALUE(FIXED(EXP(AJ$4*-1*'PM2.5 reduction'!AJ205),9))","v":0.99997263199999997},{"$f":"VALUE(FIXED(EXP(AK$4*-1*'PM2.5 reduction'!AK205),9))","v":0.99998452199999999},{"$f":"VALUE(FIXED(EXP(AL$4*-1*'PM2.5 reduction'!AL205),9))","v":0.99998304999999998},{"$f":"VALUE(FIXED(EXP(AM$4*-1*'PM2.5 reduction'!AM205),9))","v":0.99995757100000005},{"$f":"VALUE(FIXED(EXP(AN$4*-1*'PM2.5 reduction'!AN205),9))","v":0.99999200700000002},{"$f":"VALUE(FIXED(EXP(AO$4*-1*'PM2.5 reduction'!AO205),9))","v":0.99999200700000002},{"$f":"VALUE(FIXED(EXP(AP$4*-1*'PM2.5 reduction'!AP205),9))","v":0.999987348},{"$f":"VALUE(FIXED(EXP(AQ$4*-1*'PM2.5 reduction'!AQ205),9))","v":0.99996091799999998},{"$f":"VALUE(FIXED(EXP(AR$4*-1*'PM2.5 reduction'!AR205),9))","v":0.99996179900000004},{"$f":"VALUE(FIXED(EXP(AS$4*-1*'PM2.5 reduction'!AS205),9))","v":0.99999083899999996},{"$f":"VALUE(FIXED(EXP(AT$4*-1*'PM2.5 reduction'!AT205),9))","v":0.99999402299999995},{"$f":"VALUE(FIXED(EXP(AU$4*-1*'PM2.5 reduction'!AU205),9))","v":0.99999402299999995},{"$f":"VALUE(FIXED(EXP(AV$4*-1*'PM2.5 reduction'!AV205),9))","v":0.99997187499999995},{"$f":"VALUE(FIXED(EXP(AW$4*-1*'PM2.5 reduction'!AW205),9))","v":0.99996322400000004},{"$f":"VALUE(FIXED(EXP(AX$4*-1*'PM2.5 reduction'!AX205),9))","v":0.99997600499999995},{"$f":"VALUE(FIXED(EXP(AY$4*-1*'PM2.5 reduction'!AY205),9))","v":0.999973903},{"$f":"VALUE(FIXED(EXP(AZ$4*-1*'PM2.5 reduction'!AZ205),9))","v":0.99997474200000003},{"$f":"VALUE(FIXED(EXP(BA$4*-1*'PM2.5 reduction'!BA205),9))","v":0.99996833500000004},{"$f":"VALUE(FIXED(EXP(BB$4*-1*'PM2.5 reduction'!BB205),9))","v":0.99996943000000005},{"$f":"VALUE(FIXED(EXP(BC$4*-1*'PM2.5 reduction'!BC205),9))","v":1}]
[null,"Male 65-69",{"$f":"VALUE(FIXED(EXP(C$4*-1*'PM2.5 reduction'!C206),9))","v":0.99994524799999995},{"$f":"VALUE(FIXED(EXP(D$4*-1*'PM2.5 reduction'!D206),9))","v":0.99996857100000003},{"$f":"VALUE(FIXED(EXP(E$4*-1*'PM2.5 reduction'!E206),9))","v":0.99998836999999996},{"$f":"VALUE(FIXED(EXP(F$4*-1*'PM2.5 reduction'!F206),9))","v":0.99998580500000001},{"$f":"VALUE(FIXED(EXP(G$4*-1*'PM2.5 reduction'!G206),9))","v":0.999982924},{"$f":"VALUE(FIXED(EXP(H$4*-1*'PM2.5 reduction'!H206),9))","v":0.99997588500000001},{"$f":"VALUE(FIXED(EXP(I$4*-1*'PM2.5 reduction'!I206),9))","v":0.99999146800000005},{"$f":"VALUE(FIXED(EXP(J$4*-1*'PM2.5 reduction'!J206),9))","v":0.99997378000000003},{"$f":"VALUE(FIXED(EXP(K$4*-1*'PM2.5 reduction'!K206),9))","v":0.99996998100000001},{"$f":"VALUE(FIXED(EXP(L$4*-1*'PM2.5 reduction'!L206),9))","v":0.99998790100000001},{"$f":"VALUE(FIXED(EXP(M$4*-1*'PM2.5 reduction'!M206),9))","v":0.99998790100000001},{"$f":"VALUE(FIXED(EXP(N$4*-1*'PM2.5 reduction'!N206),9))","v":0.999949121},{"$f":"VALUE(FIXED(EXP(O$4*-1*'PM2.5 reduction'!O206),9))","v":0.99997223499999999},{"$f":"VALUE(FIXED(EXP(P$4*-1*'PM2.5 reduction'!P206),9))","v":0.99995682900000005},{"$f":"VALUE(FIXED(EXP(Q$4*-1*'PM2.5 reduction'!Q206),9))","v":0.99997525200000004},{"$f":"VALUE(FIXED(EXP(R$4*-1*'PM2.5 reduction'!R206),9))","v":0.99995964299999995},{"$f":"VALUE(FIXED(EXP(S$4*-1*'PM2.5 reduction'!S206),9))","v":0.99995737600000001},{"$f":"VALUE(FIXED(EXP(T$4*-1*'PM2.5 reduction'!T206),9))","v":0.999927287},{"$f":"VALUE(FIXED(EXP(U$4*-1*'PM2.5 reduction'!U206),9))","v":1},{"$f":"VALUE(FIXED(EXP(V$4*-1*'PM2.5 reduction'!V206),9))","v":0.99996295000000002},{"$f":"VALUE(FIXED(EXP(W$4*-1*'PM2.5 reduction'!W206),9))","v":0.99997308699999998},{"$f":"VALUE(FIXED(EXP(X$4*-1*'PM2.5 reduction'!X206),9))","v":0.99997308699999998},{"$f":"VALUE(FIXED(EXP(Y$4*-1*'PM2.5 reduction'!Y206),9))","v":0.99996779199999997},{"$f":"VALUE(FIXED(EXP(Z$4*-1*'PM2.5 reduction'!Z206),9))","v":0.99993308400000003},{"$f":"VALUE(FIXED(EXP(AA$4*-1*'PM2.5 reduction'!AA206),9))","v":0.99995412699999997},{"$f":"VALUE(FIXED(EXP(AB$4*-1*'PM2.5 reduction'!AB206),9))","v":0.99996985000000005},{"$f":"VALUE(FIXED(EXP(AC$4*-1*'PM2.5 reduction'!AC206),9))","v":0.99995004399999998},{"$f":"VALUE(FIXED(EXP(AD$4*-1*'PM2.5 reduction'!AD206),9))","v":0.99998271699999997},{"$f":"VALUE(FIXED(EXP(AE$4*-1*'PM2.5 reduction'!AE206),9))","v":0.99998268599999995},{"$f":"VALUE(FIXED(EXP(AF$4*-1*'PM2.5 reduction'!AF206),9))","v":0.99997162799999995},{"$f":"VALUE(FIXED(EXP(AG$4*-1*'PM2.5 reduction'!AG206),9))","v":0.99998268599999995},{"$f":"VALUE(FIXED(EXP(AH$4*-1*'PM2.5 reduction'!AH206),9))","v":0.99996080899999995},{"$f":"VALUE(FIXED(EXP(AI$4*-1*'PM2.5 reduction'!AI206),9))","v":0.99994548500000002},{"$f":"VALUE(FIXED(EXP(AJ$4*-1*'PM2.5 reduction'!AJ206),9))","v":0.99996919799999995},{"$f":"VALUE(FIXED(EXP(AK$4*-1*'PM2.5 reduction'!AK206),9))","v":0.99998526099999996},{"$f":"VALUE(FIXED(EXP(AL$4*-1*'PM2.5 reduction'!AL206),9))","v":0.99998366900000002},{"$f":"VALUE(FIXED(EXP(AM$4*-1*'PM2.5 reduction'!AM206),9))","v":0.99995771099999997},{"$f":"VALUE(FIXED(EXP(AN$4*-1*'PM2.5 reduction'!AN206),9))","v":0.99999098099999995},{"$f":"VALUE(FIXED(EXP(AO$4*-1*'PM2.5 reduction'!AO206),9))","v":0.99999098099999995},{"$f":"VALUE(FIXED(EXP(AP$4*-1*'PM2.5 reduction'!AP206),9))","v":0.99998859200000001},{"$f":"VALUE(FIXED(EXP(AQ$4*-1*'PM2.5 reduction'!AQ206),9))","v":0.99996118199999995},{"$f":"VALUE(FIXED(EXP(AR$4*-1*'PM2.5 reduction'!AR206),9))","v":0.999963343},{"$f":"VALUE(FIXED(EXP(AS$4*-1*'PM2.5 reduction'!AS206),9))","v":0.99999146800000005},{"$f":"VALUE(FIXED(EXP(AT$4*-1*'PM2.5 reduction'!AT206),9))","v":0.99999336999999999},{"$f":"VALUE(FIXED(EXP(AU$4*-1*'PM2.5 reduction'!AU206),9))","v":0.99999336999999999},{"$f":"VALUE(FIXED(EXP(AV$4*-1*'PM2.5 reduction'!AV206),9))","v":0.99997026700000002},{"$f":"VALUE(FIXED(EXP(AW$4*-1*'PM2.5 reduction'!AW206),9))","v":0.99996285900000004},{"$f":"VALUE(FIXED(EXP(AX$4*-1*'PM2.5 reduction'!AX206),9))","v":0.99997578899999995},{"$f":"VALUE(FIXED(EXP(AY$4*-1*'PM2.5 reduction'!AY206),9))","v":0.99997473000000003},{"$f":"VALUE(FIXED(EXP(AZ$4*-1*'PM2.5 reduction'!AZ206),9))","v":0.99997577999999998},{"$f":"VALUE(FIXED(EXP(BA$4*-1*'PM2.5 reduction'!BA206),9))","v":0.999968458},{"$f":"VALUE(FIXED(EXP(BB$4*-1*'PM2.5 reduction'!BB206),9))","v":0.99996868400000005},{"$f":"VALUE(FIXED(EXP(BC$4*-1*'PM2.5 reduction'!BC206),9))","v":1}]
[null,"Male 70-74",{"$f":"VALUE(FIXED(EXP(C$4*-1*'PM2.5 reduction'!C207),9))","v":0.99994258599999997},{"$f":"VALUE(FIXED(EXP(D$4*-1*'PM2.5 reduction'!D207),9))","v":0.99996719700000003},{"$f":"VALUE(FIXED(EXP(E$4*-1*'PM2.5 reduction'!E207),9))","v":0.99998796599999995},{"$f":"VALUE(FIXED(EXP(F$4*-1*'PM2.5 reduction'!F207),9))","v":0.99998649799999995},{"$f":"VALUE(FIXED(EXP(G$4*-1*'PM2.5 reduction'!G207),9))","v":0.99998300200000001},{"$f":"VALUE(FIXED(EXP(H$4*-1*'PM2.5 reduction'!H207),9))","v":0.99997596499999997},{"$f":"VALUE(FIXED(EXP(I$4*-1*'PM2.5 reduction'!I207),9))","v":0.99999163899999999},{"$f":"VALUE(FIXED(EXP(J$4*-1*'PM2.5 reduction'!J207),9))","v":0.99997378299999995},{"$f":"VALUE(FIXED(EXP(K$4*-1*'PM2.5 reduction'!K207),9))","v":0.99997234499999998},{"$f":"VALUE(FIXED(EXP(L$4*-1*'PM2.5 reduction'!L207),9))","v":0.99998846100000005},{"$f":"VALUE(FIXED(EXP(M$4*-1*'PM2.5 reduction'!M207),9))","v":0.99998846100000005},{"$f":"VALUE(FIXED(EXP(N$4*-1*'PM2.5 reduction'!N207),9))","v":0.999950801},{"$f":"VALUE(FIXED(EXP(O$4*-1*'PM2.5 reduction'!O207),9))","v":0.99997270800000004},{"$f":"VALUE(FIXED(EXP(P$4*-1*'PM2.5 reduction'!P207),9))","v":0.99995532899999995},{"$f":"VALUE(FIXED(EXP(Q$4*-1*'PM2.5 reduction'!Q207),9))","v":0.99997505200000003},{"$f":"VALUE(FIXED(EXP(R$4*-1*'PM2.5 reduction'!R207),9))","v":0.99995736599999996},{"$f":"VALUE(FIXED(EXP(S$4*-1*'PM2.5 reduction'!S207),9))","v":0.99996024699999997},{"$f":"VALUE(FIXED(EXP(T$4*-1*'PM2.5 reduction'!T207),9))","v":0.99993133199999995},{"$f":"VALUE(FIXED(EXP(U$4*-1*'PM2.5 reduction'!U207),9))","v":1},{"$f":"VALUE(FIXED(EXP(V$4*-1*'PM2.5 reduction'!V207),9))","v":0.99996139699999997},{"$f":"VALUE(FIXED(EXP(W$4*-1*'PM2.5 reduction'!W207),9))","v":0.99997251099999995},{"$f":"VALUE(FIXED(EXP(X$4*-1*'PM2.5 reduction'!X207),9))","v":0.99997251099999995},{"$f":"VALUE(FIXED(EXP(Y$4*-1*'PM2.5 reduction'!Y207),9))","v":0.99996698399999995},{"$f":"VALUE(FIXED(EXP(Z$4*-1*'PM2.5 reduction'!Z207),9))","v":0.99993439699999997},{"$f":"VALUE(FIXED(EXP(AA$4*-1*'PM2.5 reduction'!AA207),9))","v":0.99995429599999996},{"$f":"VALUE(FIXED(EXP(AB$4*-1*'PM2.5 reduction'!AB207),9))","v":0.99996864699999999},{"$f":"VALUE(FIXED(EXP(AC$4*-1*'PM2.5 reduction'!AC207),9))","v":0.99995113700000005},{"$f":"VALUE(FIXED(EXP(AD$4*-1*'PM2.5 reduction'!AD207),9))","v":0.99998256500000005},{"$f":"VALUE(FIXED(EXP(AE$4*-1*'PM2.5 reduction'!AE207),9))","v":0.99998249900000002},{"$f":"VALUE(FIXED(EXP(AF$4*-1*'PM2.5 reduction'!AF207),9))","v":0.999972266},{"$f":"VALUE(FIXED(EXP(AG$4*-1*'PM2.5 reduction'!AG207),9))","v":0.99998249900000002},{"$f":"VALUE(FIXED(EXP(AH$4*-1*'PM2.5 reduction'!AH207),9))","v":0.99995956399999997},{"$f":"VALUE(FIXED(EXP(AI$4*-1*'PM2.5 reduction'!AI207),9))","v":0.99994903999999996},{"$f":"VALUE(FIXED(EXP(AJ$4*-1*'PM2.5 reduction'!AJ207),9))","v":0.99996922700000002},{"$f":"VALUE(FIXED(EXP(AK$4*-1*'PM2.5 reduction'!AK207),9))","v":0.99998473799999998},{"$f":"VALUE(FIXED(EXP(AL$4*-1*'PM2.5 reduction'!AL207),9))","v":0.99998359199999998},{"$f":"VALUE(FIXED(EXP(AM$4*-1*'PM2.5 reduction'!AM207),9))","v":0.99995669700000001},{"$f":"VALUE(FIXED(EXP(AN$4*-1*'PM2.5 reduction'!AN207),9))","v":0.99999089200000002},{"$f":"VALUE(FIXED(EXP(AO$4*-1*'PM2.5 reduction'!AO207),9))","v":0.99999089200000002},{"$f":"VALUE(FIXED(EXP(AP$4*-1*'PM2.5 reduction'!AP207),9))","v":0.99998742200000001},{"$f":"VALUE(FIXED(EXP(AQ$4*-1*'PM2.5 reduction'!AQ207),9))","v":0.99996143599999998},{"$f":"VALUE(FIXED(EXP(AR$4*-1*'PM2.5 reduction'!AR207),9))","v":0.99996466799999995},{"$f":"VALUE(FIXED(EXP(AS$4*-1*'PM2.5 reduction'!AS207),9))","v":0.99999163899999999},{"$f":"VALUE(FIXED(EXP(AT$4*-1*'PM2.5 reduction'!AT207),9))","v":0.99999325100000003},{"$f":"VALUE(FIXED(EXP(AU$4*-1*'PM2.5 reduction'!AU207),9))","v":0.99999325100000003},{"$f":"VALUE(FIXED(EXP(AV$4*-1*'PM2.5 reduction'!AV207),9))","v":0.99997066099999998},{"$f":"VALUE(FIXED(EXP(AW$4*-1*'PM2.5 reduction'!AW207),9))","v":0.99996168600000002},{"$f":"VALUE(FIXED(EXP(AX$4*-1*'PM2.5 reduction'!AX207),9))","v":0.99997465600000002},{"$f":"VALUE(FIXED(EXP(AY$4*-1*'PM2.5 reduction'!AY207),9))","v":0.99997566400000004},{"$f":"VALUE(FIXED(EXP(AZ$4*-1*'PM2.5 reduction'!AZ207),9))","v":0.99997751800000001},{"$f":"VALUE(FIXED(EXP(BA$4*-1*'PM2.5 reduction'!BA207),9))","v":0.99996944399999999},{"$f":"VALUE(FIXED(EXP(BB$4*-1*'PM2.5 reduction'!BB207),9))","v":0.99996883000000003},{"$f":"VALUE(FIXED(EXP(BC$4*-1*'PM2.5 reduction'!BC207),9))","v":1}]
[null,"Male 75-79",{"$f":"VALUE(FIXED(EXP(C$4*-1*'PM2.5 reduction'!C208),9))","v":0.99994520799999997},{"$f":"VALUE(FIXED(EXP(D$4*-1*'PM2.5 reduction'!D208),9))","v":0.99997012100000005},{"$f":"VALUE(FIXED(EXP(E$4*-1*'PM2.5 reduction'!E208),9))","v":0.99998844799999997},{"$f":"VALUE(FIXED(EXP(F$4*-1*'PM2.5 reduction'!F208),9))","v":0.99998599700000002},{"$f":"VALUE(FIXED(EXP(G$4*-1*'PM2.5 reduction'!G208),9))","v":0.99998280699999997},{"$f":"VALUE(FIXED(EXP(H$4*-1*'PM2.5 reduction'!H208),9))","v":0.99997581899999999},{"$f":"VALUE(FIXED(EXP(I$4*-1*'PM2.5 reduction'!I208),9))","v":0.99999125200000005},{"$f":"VALUE(FIXED(EXP(J$4*-1*'PM2.5 reduction'!J208),9))","v":0.99997456399999995},{"$f":"VALUE(FIXED(EXP(K$4*-1*'PM2.5 reduction'!K208),9))","v":0.99997039399999998},{"$f":"VALUE(FIXED(EXP(L$4*-1*'PM2.5 reduction'!L208),9))","v":0.999988769},{"$f":"VALUE(FIXED(EXP(M$4*-1*'PM2.5 reduction'!M208),9))","v":0.999988769},{"$f":"VALUE(FIXED(EXP(N$4*-1*'PM2.5 reduction'!N208),9))","v":0.99994792399999999},{"$f":"VALUE(FIXED(EXP(O$4*-1*'PM2.5 reduction'!O208),9))","v":0.99997239900000001},{"$f":"VALUE(FIXED(EXP(P$4*-1*'PM2.5 reduction'!P208),9))","v":0.99995622799999995},{"$f":"VALUE(FIXED(EXP(Q$4*-1*'PM2.5 reduction'!Q208),9))","v":0.99997737099999995},{"$f":"VALUE(FIXED(EXP(R$4*-1*'PM2.5 reduction'!R208),9))","v":0.99995869500000001},{"$f":"VALUE(FIXED(EXP(S$4*-1*'PM2.5 reduction'!S208),9))","v":0.99995864000000001},{"$f":"VALUE(FIXED(EXP(T$4*-1*'PM2.5 reduction'!T208),9))","v":0.99993011799999998},{"$f":"VALUE(FIXED(EXP(U$4*-1*'PM2.5 reduction'!U208),9))","v":1},{"$f":"VALUE(FIXED(EXP(V$4*-1*'PM2.5 reduction'!V208),9))","v":0.99996152800000004},{"$f":"VALUE(FIXED(EXP(W$4*-1*'PM2.5 reduction'!W208),9))","v":0.99997208299999996},{"$f":"VALUE(FIXED(EXP(X$4*-1*'PM2.5 reduction'!X208),9))","v":0.99997208299999996},{"$f":"VALUE(FIXED(EXP(Y$4*-1*'PM2.5 reduction'!Y208),9))","v":0.99996664000000002},{"$f":"VALUE(FIXED(EXP(Z$4*-1*'PM2.5 reduction'!Z208),9))","v":0.999933356},{"$f":"VALUE(FIXED(EXP(AA$4*-1*'PM2.5 reduction'!AA208),9))","v":0.99995354000000003},{"$f":"VALUE(FIXED(EXP(AB$4*-1*'PM2.5 reduction'!AB208),9))","v":0.99997106000000002},{"$f":"VALUE(FIXED(EXP(AC$4*-1*'PM2.5 reduction'!AC208),9))","v":0.99995064700000003},{"$f":"VALUE(FIXED(EXP(AD$4*-1*'PM2.5 reduction'!AD208),9))","v":0.99998163900000003},{"$f":"VALUE(FIXED(EXP(AE$4*-1*'PM2.5 reduction'!AE208),9))","v":0.99998144899999997},{"$f":"VALUE(FIXED(EXP(AF$4*-1*'PM2.5 reduction'!AF208),9))","v":0.99996874199999997},{"$f":"VALUE(FIXED(EXP(AG$4*-1*'PM2.5 reduction'!AG208),9))","v":0.99998144899999997},{"$f":"VALUE(FIXED(EXP(AH$4*-1*'PM2.5 reduction'!AH208),9))","v":0.99995928199999995},{"$f":"VALUE(FIXED(EXP(AI$4*-1*'PM2.5 reduction'!AI208),9))","v":0.99994686300000002},{"$f":"VALUE(FIXED(EXP(AJ$4*-1*'PM2.5 reduction'!AJ208),9))","v":0.99996940899999998},{"$f":"VALUE(FIXED(EXP(AK$4*-1*'PM2.5 reduction'!AK208),9))","v":0.99998010599999998},{"$f":"VALUE(FIXED(EXP(AL$4*-1*'PM2.5 reduction'!AL208),9))","v":0.99998381700000005},{"$f":"VALUE(FIXED(EXP(AM$4*-1*'PM2.5 reduction'!AM208),9))","v":0.99995612199999995},{"$f":"VALUE(FIXED(EXP(AN$4*-1*'PM2.5 reduction'!AN208),9))","v":0.99999170199999998},{"$f":"VALUE(FIXED(EXP(AO$4*-1*'PM2.5 reduction'!AO208),9))","v":0.99999170199999998},{"$f":"VALUE(FIXED(EXP(AP$4*-1*'PM2.5 reduction'!AP208),9))","v":0.99998780499999995},{"$f":"VALUE(FIXED(EXP(AQ$4*-1*'PM2.5 reduction'!AQ208),9))","v":0.99996123199999998},{"$f":"VALUE(FIXED(EXP(AR$4*-1*'PM2.5 reduction'!AR208),9))","v":0.99996428900000001},{"$f":"VALUE(FIXED(EXP(AS$4*-1*'PM2.5 reduction'!AS208),9))","v":0.99999125200000005},{"$f":"VALUE(FIXED(EXP(AT$4*-1*'PM2.5 reduction'!AT208),9))","v":0.99999379200000005},{"$f":"VALUE(FIXED(EXP(AU$4*-1*'PM2.5 reduction'!AU208),9))","v":0.99999379200000005},{"$f":"VALUE(FIXED(EXP(AV$4*-1*'PM2.5 reduction'!AV208),9))","v":0.99997016599999999},{"$f":"VALUE(FIXED(EXP(AW$4*-1*'PM2.5 reduction'!AW208),9))","v":0.99996159600000001},{"$f":"VALUE(FIXED(EXP(AX$4*-1*'PM2.5 reduction'!AX208),9))","v":0.999976635},{"$f":"VALUE(FIXED(EXP(AY$4*-1*'PM2.5 reduction'!AY208),9))","v":0.99997571600000001},{"$f":"VALUE(FIXED(EXP(AZ$4*-1*'PM2.5 reduction'!AZ208),9))","v":0.99997753700000003},{"$f":"VALUE(FIXED(EXP(BA$4*-1*'PM2.5 reduction'!BA208),9))","v":0.99996874700000005},{"$f":"VALUE(FIXED(EXP(BB$4*-1*'PM2.5 reduction'!BB208),9))","v":0.999968097},{"$f":"VALUE(FIXED(EXP(BC$4*-1*'PM2.5 reduction'!BC208),9))","v":1}]
[null,"Male 80-84",{"$f":"VALUE(FIXED(EXP(C$4*-1*'PM2.5 reduction'!C209),9))","v":0.99994184399999997},{"$f":"VALUE(FIXED(EXP(D$4*-1*'PM2.5 reduction'!D209),9))","v":0.99996854999999996},{"$f":"VALUE(FIXED(EXP(E$4*-1*'PM2.5 reduction'!E209),9))","v":0.99998802499999995},{"$f":"VALUE(FIXED(EXP(F$4*-1*'PM2.5 reduction'!F209),9))","v":0.99998605299999999},{"$f":"VALUE(FIXED(EXP(G$4*-1*'PM2.5 reduction'!G209),9))","v":0.99998290199999995},{"$f":"VALUE(FIXED(EXP(H$4*-1*'PM2.5 reduction'!H209),9))","v":0.99997503200000004},{"$f":"VALUE(FIXED(EXP(I$4*-1*'PM2.5 reduction'!I209),9))","v":0.99999124500000003},{"$f":"VALUE(FIXED(EXP(J$4*-1*'PM2.5 reduction'!J209),9))","v":0.99997461600000004},{"$f":"VALUE(FIXED(EXP(K$4*-1*'PM2.5 reduction'!K209),9))","v":0.99997231499999994},{"$f":"VALUE(FIXED(EXP(L$4*-1*'PM2.5 reduction'!L209),9))","v":0.99998789300000002},{"$f":"VALUE(FIXED(EXP(M$4*-1*'PM2.5 reduction'!M209),9))","v":0.99998789300000002},{"$f":"VALUE(FIXED(EXP(N$4*-1*'PM2.5 reduction'!N209),9))","v":0.99994953099999995},{"$f":"VALUE(FIXED(EXP(O$4*-1*'PM2.5 reduction'!O209),9))","v":0.99997272699999995},{"$f":"VALUE(FIXED(EXP(P$4*-1*'PM2.5 reduction'!P209),9))","v":0.99995353799999998},{"$f":"VALUE(FIXED(EXP(Q$4*-1*'PM2.5 reduction'!Q209),9))","v":0.99997512099999997},{"$f":"VALUE(FIXED(EXP(R$4*-1*'PM2.5 reduction'!R209),9))","v":0.99995820000000002},{"$f":"VALUE(FIXED(EXP(S$4*-1*'PM2.5 reduction'!S209),9))","v":0.99995805800000004},{"$f":"VALUE(FIXED(EXP(T$4*-1*'PM2.5 reduction'!T209),9))","v":0.99993101900000003},{"$f":"VALUE(FIXED(EXP(U$4*-1*'PM2.5 reduction'!U209),9))","v":1},{"$f":"VALUE(FIXED(EXP(V$4*-1*'PM2.5 reduction'!V209),9))","v":0.99995954600000003},{"$f":"VALUE(FIXED(EXP(W$4*-1*'PM2.5 reduction'!W209),9))","v":0.99997234599999996},{"$f":"VALUE(FIXED(EXP(X$4*-1*'PM2.5 reduction'!X209),9))","v":0.99997234599999996},{"$f":"VALUE(FIXED(EXP(Y$4*-1*'PM2.5 reduction'!Y209),9))","v":0.99996570699999998},{"$f":"VALUE(FIXED(EXP(Z$4*-1*'PM2.5 reduction'!Z209),9))","v":0.99993407099999998},{"$f":"VALUE(FIXED(EXP(AA$4*-1*'PM2.5 reduction'!AA209),9))","v":0.99995272899999998},{"$f":"VALUE(FIXED(EXP(AB$4*-1*'PM2.5 reduction'!AB209),9))","v":0.999969628},{"$f":"VALUE(FIXED(EXP(AC$4*-1*'PM2.5 reduction'!AC209),9))","v":0.99994949899999996},{"$f":"VALUE(FIXED(EXP(AD$4*-1*'PM2.5 reduction'!AD209),9))","v":0.99998216600000001},{"$f":"VALUE(FIXED(EXP(AE$4*-1*'PM2.5 reduction'!AE209),9))","v":0.99998202599999997},{"$f":"VALUE(FIXED(EXP(AF$4*-1*'PM2.5 reduction'!AF209),9))","v":0.999965506},{"$f":"VALUE(FIXED(EXP(AG$4*-1*'PM2.5 reduction'!AG209),9))","v":0.99998202599999997},{"$f":"VALUE(FIXED(EXP(AH$4*-1*'PM2.5 reduction'!AH209),9))","v":0.999959559},{"$f":"VALUE(FIXED(EXP(AI$4*-1*'PM2.5 reduction'!AI209),9))","v":0.999946157},{"$f":"VALUE(FIXED(EXP(AJ$4*-1*'PM2.5 reduction'!AJ209),9))","v":0.99997022599999996},{"$f":"VALUE(FIXED(EXP(AK$4*-1*'PM2.5 reduction'!AK209),9))","v":0.99998214399999996},{"$f":"VALUE(FIXED(EXP(AL$4*-1*'PM2.5 reduction'!AL209),9))","v":0.99998286599999997},{"$f":"VALUE(FIXED(EXP(AM$4*-1*'PM2.5 reduction'!AM209),9))","v":0.99995689300000001},{"$f":"VALUE(FIXED(EXP(AN$4*-1*'PM2.5 reduction'!AN209),9))","v":0.99999132099999999},{"$f":"VALUE(FIXED(EXP(AO$4*-1*'PM2.5 reduction'!AO209),9))","v":0.99999132099999999},{"$f":"VALUE(FIXED(EXP(AP$4*-1*'PM2.5 reduction'!AP209),9))","v":0.999987666},{"$f":"VALUE(FIXED(EXP(AQ$4*-1*'PM2.5 reduction'!AQ209),9))","v":0.99996111899999995},{"$f":"VALUE(FIXED(EXP(AR$4*-1*'PM2.5 reduction'!AR209),9))","v":0.999963457},{"$f":"VALUE(FIXED(EXP(AS$4*-1*'PM2.5 reduction'!AS209),9))","v":0.99999124500000003},{"$f":"VALUE(FIXED(EXP(AT$4*-1*'PM2.5 reduction'!AT209),9))","v":0.99999339099999995},{"$f":"VALUE(FIXED(EXP(AU$4*-1*'PM2.5 reduction'!AU209),9))","v":0.99999339099999995},{"$f":"VALUE(FIXED(EXP(AV$4*-1*'PM2.5 reduction'!AV209),9))","v":0.99997040999999998},{"$f":"VALUE(FIXED(EXP(AW$4*-1*'PM2.5 reduction'!AW209),9))","v":0.99996106900000004},{"$f":"VALUE(FIXED(EXP(AX$4*-1*'PM2.5 reduction'!AX209),9))","v":0.99997569500000005},{"$f":"VALUE(FIXED(EXP(AY$4*-1*'PM2.5 reduction'!AY209),9))","v":0.99997465299999999},{"$f":"VALUE(FIXED(EXP(AZ$4*-1*'PM2.5 reduction'!AZ209),9))","v":0.99997562799999995},{"$f":"VALUE(FIXED(EXP(BA$4*-1*'PM2.5 reduction'!BA209),9))","v":0.99996774700000002},{"$f":"VALUE(FIXED(EXP(BB$4*-1*'PM2.5 reduction'!BB209),9))","v":0.99996912199999999},{"$f":"VALUE(FIXED(EXP(BC$4*-1*'PM2.5 reduction'!BC209),9))","v":1}]
[null,"Male 85-89",{"$f":"VALUE(FIXED(EXP(C$4*-1*'PM2.5 reduction'!C210),9))","v":0.99993872900000003},{"$f":"VALUE(FIXED(EXP(D$4*-1*'PM2.5 reduction'!D210),9))","v":0.99996999900000005},{"$f":"VALUE(FIXED(EXP(E$4*-1*'PM2.5 reduction'!E210),9))","v":0.999987823},{"$f":"VALUE(FIXED(EXP(F$4*-1*'PM2.5 reduction'!F210),9))","v":0.99998670199999995},{"$f":"VALUE(FIXED(EXP(G$4*-1*'PM2.5 reduction'!G210),9))","v":0.99998282999999999},{"$f":"VALUE(FIXED(EXP(H$4*-1*'PM2.5 reduction'!H210),9))","v":0.99997431999999997},{"$f":"VALUE(FIXED(EXP(I$4*-1*'PM2.5 reduction'!I210),9))","v":0.99999158799999999},{"$f":"VALUE(FIXED(EXP(J$4*-1*'PM2.5 reduction'!J210),9))","v":0.99997638899999997},{"$f":"VALUE(FIXED(EXP(K$4*-1*'PM2.5 reduction'!K210),9))","v":0.999977856},{"$f":"VALUE(FIXED(EXP(L$4*-1*'PM2.5 reduction'!L210),9))","v":0.99998816099999999},{"$f":"VALUE(FIXED(EXP(M$4*-1*'PM2.5 reduction'!M210),9))","v":0.99998816099999999},{"$f":"VALUE(FIXED(EXP(N$4*-1*'PM2.5 reduction'!N210),9))","v":0.99994859700000005},{"$f":"VALUE(FIXED(EXP(O$4*-1*'PM2.5 reduction'!O210),9))","v":0.99996924499999995},{"$f":"VALUE(FIXED(EXP(P$4*-1*'PM2.5 reduction'!P210),9))","v":0.999953223},{"$f":"VALUE(FIXED(EXP(Q$4*-1*'PM2.5 reduction'!Q210),9))","v":0.99997715700000001},{"$f":"VALUE(FIXED(EXP(R$4*-1*'PM2.5 reduction'!R210),9))","v":0.99995549800000005},{"$f":"VALUE(FIXED(EXP(S$4*-1*'PM2.5 reduction'!S210),9))","v":0.999954491},{"$f":"VALUE(FIXED(EXP(T$4*-1*'PM2.5 reduction'!T210),9))","v":0.99992846099999999},{"$f":"VALUE(FIXED(EXP(U$4*-1*'PM2.5 reduction'!U210),9))","v":1},{"$f":"VALUE(FIXED(EXP(V$4*-1*'PM2.5 reduction'!V210),9))","v":0.99995628700000005},{"$f":"VALUE(FIXED(EXP(W$4*-1*'PM2.5 reduction'!W210),9))","v":0.99997433499999999},{"$f":"VALUE(FIXED(EXP(X$4*-1*'PM2.5 reduction'!X210),9))","v":0.99997433499999999},{"$f":"VALUE(FIXED(EXP(Y$4*-1*'PM2.5 reduction'!Y210),9))","v":0.999965302},{"$f":"VALUE(FIXED(EXP(Z$4*-1*'PM2.5 reduction'!Z210),9))","v":0.99993131800000001},{"$f":"VALUE(FIXED(EXP(AA$4*-1*'PM2.5 reduction'!AA210),9))","v":0.99995051199999996},{"$f":"VALUE(FIXED(EXP(AB$4*-1*'PM2.5 reduction'!AB210),9))","v":0.99997092899999995},{"$f":"VALUE(FIXED(EXP(AC$4*-1*'PM2.5 reduction'!AC210),9))","v":0.99994763499999995},{"$f":"VALUE(FIXED(EXP(AD$4*-1*'PM2.5 reduction'!AD210),9))","v":0.99998063500000001},{"$f":"VALUE(FIXED(EXP(AE$4*-1*'PM2.5 reduction'!AE210),9))","v":0.99998031300000001},{"$f":"VALUE(FIXED(EXP(AF$4*-1*'PM2.5 reduction'!AF210),9))","v":0.99996368499999999},{"$f":"VALUE(FIXED(EXP(AG$4*-1*'PM2.5 reduction'!AG210),9))","v":0.99998031300000001},{"$f":"VALUE(FIXED(EXP(AH$4*-1*'PM2.5 reduction'!AH210),9))","v":0.99995734800000002},{"$f":"VALUE(FIXED(EXP(AI$4*-1*'PM2.5 reduction'!AI210),9))","v":0.99994297399999998},{"$f":"VALUE(FIXED(EXP(AJ$4*-1*'PM2.5 reduction'!AJ210),9))","v":0.99997065600000001},{"$f":"VALUE(FIXED(EXP(AK$4*-1*'PM2.5 reduction'!AK210),9))","v":0.99998005300000004},{"$f":"VALUE(FIXED(EXP(AL$4*-1*'PM2.5 reduction'!AL210),9))","v":0.999983022},{"$f":"VALUE(FIXED(EXP(AM$4*-1*'PM2.5 reduction'!AM210),9))","v":0.99995347499999998},{"$f":"VALUE(FIXED(EXP(AN$4*-1*'PM2.5 reduction'!AN210),9))","v":0.99999089200000002},{"$f":"VALUE(FIXED(EXP(AO$4*-1*'PM2.5 reduction'!AO210),9))","v":0.99999089200000002},{"$f":"VALUE(FIXED(EXP(AP$4*-1*'PM2.5 reduction'!AP210),9))","v":0.99998800499999996},{"$f":"VALUE(FIXED(EXP(AQ$4*-1*'PM2.5 reduction'!AQ210),9))","v":0.99995793200000005},{"$f":"VALUE(FIXED(EXP(AR$4*-1*'PM2.5 reduction'!AR210),9))","v":0.99996208799999997},{"$f":"VALUE(FIXED(EXP(AS$4*-1*'PM2.5 reduction'!AS210),9))","v":0.99999158799999999},{"$f":"VALUE(FIXED(EXP(AT$4*-1*'PM2.5 reduction'!AT210),9))","v":0.99999266799999997},{"$f":"VALUE(FIXED(EXP(AU$4*-1*'PM2.5 reduction'!AU210),9))","v":0.99999266799999997},{"$f":"VALUE(FIXED(EXP(AV$4*-1*'PM2.5 reduction'!AV210),9))","v":0.99996920700000003},{"$f":"VALUE(FIXED(EXP(AW$4*-1*'PM2.5 reduction'!AW210),9))","v":0.99995924999999997},{"$f":"VALUE(FIXED(EXP(AX$4*-1*'PM2.5 reduction'!AX210),9))","v":0.99997584699999997},{"$f":"VALUE(FIXED(EXP(AY$4*-1*'PM2.5 reduction'!AY210),9))","v":0.99997636099999998},{"$f":"VALUE(FIXED(EXP(AZ$4*-1*'PM2.5 reduction'!AZ210),9))","v":0.99997703199999999},{"$f":"VALUE(FIXED(EXP(BA$4*-1*'PM2.5 reduction'!BA210),9))","v":0.999967473},{"$f":"VALUE(FIXED(EXP(BB$4*-1*'PM2.5 reduction'!BB210),9))","v":0.99996969400000002},{"$f":"VALUE(FIXED(EXP(BC$4*-1*'PM2.5 reduction'!BC210),9))","v":1}]
[null,"Male 90+",{"$f":"VALUE(FIXED(EXP(C$4*-1*'PM2.5 reduction'!C211),9))","v":0.99992577900000001},{"$f":"VALUE(FIXED(EXP(D$4*-1*'PM2.5 reduction'!D211),9))","v":0.99997005500000002},{"$f":"VALUE(FIXED(EXP(E$4*-1*'PM2.5 reduction'!E211),9))","v":0.99998636799999996},{"$f":"VALUE(FIXED(EXP(F$4*-1*'PM2.5 reduction'!F211),9))","v":0.99998733900000003},{"$f":"VALUE(FIXED(EXP(G$4*-1*'PM2.5 reduction'!G211),9))","v":0.99998246499999999},{"$f":"VALUE(FIXED(EXP(H$4*-1*'PM2.5 reduction'!H211),9))","v":0.99997135199999998},{"$f":"VALUE(FIXED(EXP(I$4*-1*'PM2.5 reduction'!I211),9))","v":0.999990728},{"$f":"VALUE(FIXED(EXP(J$4*-1*'PM2.5 reduction'!J211),9))","v":0.999976643},{"$f":"VALUE(FIXED(EXP(K$4*-1*'PM2.5 reduction'!K211),9))","v":0.99997338700000005},{"$f":"VALUE(FIXED(EXP(L$4*-1*'PM2.5 reduction'!L211),9))","v":0.99998644299999995},{"$f":"VALUE(FIXED(EXP(M$4*-1*'PM2.5 reduction'!M211),9))","v":0.99998644299999995},{"$f":"VALUE(FIXED(EXP(N$4*-1*'PM2.5 reduction'!N211),9))","v":0.99995280600000003},{"$f":"VALUE(FIXED(EXP(O$4*-1*'PM2.5 reduction'!O211),9))","v":0.99996718699999998},{"$f":"VALUE(FIXED(EXP(P$4*-1*'PM2.5 reduction'!P211),9))","v":0.99995234700000002},{"$f":"VALUE(FIXED(EXP(Q$4*-1*'PM2.5 reduction'!Q211),9))","v":0.99998001299999995},{"$f":"VALUE(FIXED(EXP(R$4*-1*'PM2.5 reduction'!R211),9))","v":0.99995271699999999},{"$f":"VALUE(FIXED(EXP(S$4*-1*'PM2.5 reduction'!S211),9))","v":0.99995197499999999},{"$f":"VALUE(FIXED(EXP(T$4*-1*'PM2.5 reduction'!T211),9))","v":0.99993340500000005},{"$f":"VALUE(FIXED(EXP(U$4*-1*'PM2.5 reduction'!U211),9))","v":1},{"$f":"VALUE(FIXED(EXP(V$4*-1*'PM2.5 reduction'!V211),9))","v":0.99995628599999997},{"$f":"VALUE(FIXED(EXP(W$4*-1*'PM2.5 reduction'!W211),9))","v":0.99997557599999998},{"$f":"VALUE(FIXED(EXP(X$4*-1*'PM2.5 reduction'!X211),9))","v":0.99997557599999998},{"$f":"VALUE(FIXED(EXP(Y$4*-1*'PM2.5 reduction'!Y211),9))","v":0.99996451500000005},{"$f":"VALUE(FIXED(EXP(Z$4*-1*'PM2.5 reduction'!Z211),9))","v":0.99993136500000002},{"$f":"VALUE(FIXED(EXP(AA$4*-1*'PM2.5 reduction'!AA211),9))","v":0.99995101200000003},{"$f":"VALUE(FIXED(EXP(AB$4*-1*'PM2.5 reduction'!AB211),9))","v":0.99997102900000001},{"$f":"VALUE(FIXED(EXP(AC$4*-1*'PM2.5 reduction'!AC211),9))","v":0.99994687900000001},{"$f":"VALUE(FIXED(EXP(AD$4*-1*'PM2.5 reduction'!AD211),9))","v":0.99997854500000005},{"$f":"VALUE(FIXED(EXP(AE$4*-1*'PM2.5 reduction'!AE211),9))","v":0.99997789199999998},{"$f":"VALUE(FIXED(EXP(AF$4*-1*'PM2.5 reduction'!AF211),9))","v":0.99996457400000005},{"$f":"VALUE(FIXED(EXP(AG$4*-1*'PM2.5 reduction'!AG211),9))","v":0.99997789199999998},{"$f":"VALUE(FIXED(EXP(AH$4*-1*'PM2.5 reduction'!AH211),9))","v":0.99996159299999998},{"$f":"VALUE(FIXED(EXP(AI$4*-1*'PM2.5 reduction'!AI211),9))","v":0.99994097299999996},{"$f":"VALUE(FIXED(EXP(AJ$4*-1*'PM2.5 reduction'!AJ211),9))","v":0.99996581299999998},{"$f":"VALUE(FIXED(EXP(AK$4*-1*'PM2.5 reduction'!AK211),9))","v":0.99999212400000004},{"$f":"VALUE(FIXED(EXP(AL$4*-1*'PM2.5 reduction'!AL211),9))","v":0.99998065999999997},{"$f":"VALUE(FIXED(EXP(AM$4*-1*'PM2.5 reduction'!AM211),9))","v":0.999959669},{"$f":"VALUE(FIXED(EXP(AN$4*-1*'PM2.5 reduction'!AN211),9))","v":0.99999230500000003},{"$f":"VALUE(FIXED(EXP(AO$4*-1*'PM2.5 reduction'!AO211),9))","v":0.99999230500000003},{"$f":"VALUE(FIXED(EXP(AP$4*-1*'PM2.5 reduction'!AP211),9))","v":0.99998708599999997},{"$f":"VALUE(FIXED(EXP(AQ$4*-1*'PM2.5 reduction'!AQ211),9))","v":0.99995587200000002},{"$f":"VALUE(FIXED(EXP(AR$4*-1*'PM2.5 reduction'!AR211),9))","v":0.99996178099999999},{"$f":"VALUE(FIXED(EXP(AS$4*-1*'PM2.5 reduction'!AS211),9))","v":0.999990728},{"$f":"VALUE(FIXED(EXP(AT$4*-1*'PM2.5 reduction'!AT211),9))","v":0.99999529099999995},{"$f":"VALUE(FIXED(EXP(AU$4*-1*'PM2.5 reduction'!AU211),9))","v":0.99999529099999995},{"$f":"VALUE(FIXED(EXP(AV$4*-1*'PM2.5 reduction'!AV211),9))","v":0.99996941800000005},{"$f":"VALUE(FIXED(EXP(AW$4*-1*'PM2.5 reduction'!AW211),9))","v":0.99996274200000002},{"$f":"VALUE(FIXED(EXP(AX$4*-1*'PM2.5 reduction'!AX211),9))","v":0.99997725299999995},{"$f":"VALUE(FIXED(EXP(AY$4*-1*'PM2.5 reduction'!AY211),9))","v":0.99997488700000003},{"$f":"VALUE(FIXED(EXP(AZ$4*-1*'PM2.5 reduction'!AZ211),9))","v":0.99997465799999996},{"$f":"VALUE(FIXED(EXP(BA$4*-1*'PM2.5 reduction'!BA211),9))","v":0.99996858200000005},{"$f":"VALUE(FIXED(EXP(BB$4*-1*'PM2.5 reduction'!BB211),9))","v":0.99996200400000002},{"$f":"VALUE(FIXED(EXP(BC$4*-1*'PM2.5 reduction'!BC211),9))","v":1}]
["SIMD Q5 (least deprived)","Female 0-4",{"$f":"VALUE(FIXED(EXP(C$4*-1*'PM2.5 reduction'!C212),9))","v":0.999940995},{"$f":"VALUE(FIXED(EXP(D$4*-1*'PM2.5 reduction'!D212),9))","v":0.99996137299999999},{"$f":"VALUE(FIXED(EXP(E$4*-1*'PM2.5 reduction'!E212),9))","v":0.99998835699999999},{"$f":"VALUE(FIXED(EXP(F$4*-1*'PM2.5 reduction'!F212),9))","v":0.99998599399999999},{"$f":"VALUE(FIXED(EXP(G$4*-1*'PM2.5 reduction'!G212),9))","v":0.99998948300000001},{"$f":"VALUE(FIXED(EXP(H$4*-1*'PM2.5 reduction'!H212),9))","v":0.999977071},{"$f":"VALUE(FIXED(EXP(I$4*-1*'PM2.5 reduction'!I212),9))","v":0.99999145700000003},{"$f":"VALUE(FIXED(EXP(J$4*-1*'PM2.5 reduction'!J212),9))","v":0.99997644799999996},{"$f":"VALUE(FIXED(EXP(K$4*-1*'PM2.5 reduction'!K212),9))","v":0.99997126300000005},{"$f":"VALUE(FIXED(EXP(L$4*-1*'PM2.5 reduction'!L212),9))","v":0.99998641799999999},{"$f":"VALUE(FIXED(EXP(M$4*-1*'PM2.5 reduction'!M212),9))","v":0.99998641799999999},{"$f":"VALUE(FIXED(EXP(N$4*-1*'PM2.5 reduction'!N212),9))","v":0.99996175300000001},{"$f":"VALUE(FIXED(EXP(O$4*-1*'PM2.5 reduction'!O212),9))","v":0.99997439700000001},{"$f":"VALUE(FIXED(EXP(P$4*-1*'PM2.5 reduction'!P212),9))","v":0.99995389700000004},{"$f":"VALUE(FIXED(EXP(Q$4*-1*'PM2.5 reduction'!Q212),9))","v":0.99998287699999999},{"$f":"VALUE(FIXED(EXP(R$4*-1*'PM2.5 reduction'!R212),9))","v":0.99995179000000001},{"$f":"VALUE(FIXED(EXP(S$4*-1*'PM2.5 reduction'!S212),9))","v":0.99994476700000001},{"$f":"VALUE(FIXED(EXP(T$4*-1*'PM2.5 reduction'!T212),9))","v":0.99992724099999997},{"$f":"VALUE(FIXED(EXP(U$4*-1*'PM2.5 reduction'!U212),9))","v":1},{"$f":"VALUE(FIXED(EXP(V$4*-1*'PM2.5 reduction'!V212),9))","v":0.99996531499999997},{"$f":"VALUE(FIXED(EXP(W$4*-1*'PM2.5 reduction'!W212),9))","v":0.99997254000000002},{"$f":"VALUE(FIXED(EXP(X$4*-1*'PM2.5 reduction'!X212),9))","v":0.99997254000000002},{"$f":"VALUE(FIXED(EXP(Y$4*-1*'PM2.5 reduction'!Y212),9))","v":0.99997028899999996},{"$f":"VALUE(FIXED(EXP(Z$4*-1*'PM2.5 reduction'!Z212),9))","v":0.99993190399999998},{"$f":"VALUE(FIXED(EXP(AA$4*-1*'PM2.5 reduction'!AA212),9))","v":0.99995257900000001},{"$f":"VALUE(FIXED(EXP(AB$4*-1*'PM2.5 reduction'!AB212),9))","v":0.99996235600000005},{"$f":"VALUE(FIXED(EXP(AC$4*-1*'PM2.5 reduction'!AC212),9))","v":0.99994851900000004},{"$f":"VALUE(FIXED(EXP(AD$4*-1*'PM2.5 reduction'!AD212),9))","v":0.99998417500000003},{"$f":"VALUE(FIXED(EXP(AE$4*-1*'PM2.5 reduction'!AE212),9))","v":0.99998236100000004},{"$f":"VALUE(FIXED(EXP(AF$4*-1*'PM2.5 reduction'!AF212),9))","v":0.99998103400000005},{"$f":"VALUE(FIXED(EXP(AG$4*-1*'PM2.5 reduction'!AG212),9))","v":0.99998236100000004},{"$f":"VALUE(FIXED(EXP(AH$4*-1*'PM2.5 reduction'!AH212),9))","v":0.99996513099999995},{"$f":"VALUE(FIXED(EXP(AI$4*-1*'PM2.5 reduction'!AI212),9))","v":0.99993796800000001},{"$f":"VALUE(FIXED(EXP(AJ$4*-1*'PM2.5 reduction'!AJ212),9))","v":0.99997037099999997},{"$f":"VALUE(FIXED(EXP(AK$4*-1*'PM2.5 reduction'!AK212),9))","v":0.99998715599999999},{"$f":"VALUE(FIXED(EXP(AL$4*-1*'PM2.5 reduction'!AL212),9))","v":0.99998251699999996},{"$f":"VALUE(FIXED(EXP(AM$4*-1*'PM2.5 reduction'!AM212),9))","v":0.99996044100000003},{"$f":"VALUE(FIXED(EXP(AN$4*-1*'PM2.5 reduction'!AN212),9))","v":1},{"$f":"VALUE(FIXED(EXP(AO$4*-1*'PM2.5 reduction'!AO212),9))","v":1},{"$f":"VALUE(FIXED(EXP(AP$4*-1*'PM2.5 reduction'!AP212),9))","v":0.99998140400000002},{"$f":"VALUE(FIXED(EXP(AQ$4*-1*'PM2.5 reduction'!AQ212),9))","v":0.99996558199999996},{"$f":"VALUE(FIXED(EXP(AR$4*-1*'PM2.5 reduction'!AR212),9))","v":0.99995531199999999},{"$f":"VALUE(FIXED(EXP(AS$4*-1*'PM2.5 reduction'!AS212),9))","v":0.99999145700000003},{"$f":"VALUE(FIXED(EXP(AT$4*-1*'PM2.5 reduction'!AT212),9))","v":1},{"$f":"VALUE(FIXED(EXP(AU$4*-1*'PM2.5 reduction'!AU212),9))","v":1},{"$f":"VALUE(FIXED(EXP(AV$4*-1*'PM2.5 reduction'!AV212),9))","v":0.99997684099999995},{"$f":"VALUE(FIXED(EXP(AW$4*-1*'PM2.5 reduction'!AW212),9))","v":0.99996843999999996},{"$f":"VALUE(FIXED(EXP(AX$4*-1*'PM2.5 reduction'!AX212),9))","v":0.99997754999999999},{"$f":"VALUE(FIXED(EXP(AY$4*-1*'PM2.5 reduction'!AY212),9))","v":0.99997407199999999},{"$f":"VALUE(FIXED(EXP(AZ$4*-1*'PM2.5 reduction'!AZ212),9))","v":0.99997565899999996},{"$f":"VALUE(FIXED(EXP(BA$4*-1*'PM2.5 reduction'!BA212),9))","v":0.99997630000000004},{"$f":"VALUE(FIXED(EXP(BB$4*-1*'PM2.5 reduction'!BB212),9))","v":0.99997121099999997},{"$f":"VALUE(FIXED(EXP(BC$4*-1*'PM2.5 reduction'!BC212),9))","v":1}]
[null,"Female 5-9",{"$f":"VALUE(FIXED(EXP(C$4*-1*'PM2.5 reduction'!C213),9))","v":0.99994433100000002},{"$f":"VALUE(FIXED(EXP(D$4*-1*'PM2.5 reduction'!D213),9))","v":0.99996524200000003},{"$f":"VALUE(FIXED(EXP(E$4*-1*'PM2.5 reduction'!E213),9))","v":0.99998836899999999},{"$f":"VALUE(FIXED(EXP(F$4*-1*'PM2.5 reduction'!F213),9))","v":0.99998637099999999},{"$f":"VALUE(FIXED(EXP(G$4*-1*'PM2.5 reduction'!G213),9))","v":0.99998943200000001},{"$f":"VALUE(FIXED(EXP(H$4*-1*'PM2.5 reduction'!H213),9))","v":0.99997838800000005},{"$f":"VALUE(FIXED(EXP(I$4*-1*'PM2.5 reduction'!I213),9))","v":0.99999144500000003},{"$f":"VALUE(FIXED(EXP(J$4*-1*'PM2.5 reduction'!J213),9))","v":0.99997844599999997},{"$f":"VALUE(FIXED(EXP(K$4*-1*'PM2.5 reduction'!K213),9))","v":0.999974896},{"$f":"VALUE(FIXED(EXP(L$4*-1*'PM2.5 reduction'!L213),9))","v":0.99998664199999998},{"$f":"VALUE(FIXED(EXP(M$4*-1*'PM2.5 reduction'!M213),9))","v":0.99998664199999998},{"$f":"VALUE(FIXED(EXP(N$4*-1*'PM2.5 reduction'!N213),9))","v":0.99996231599999996},{"$f":"VALUE(FIXED(EXP(O$4*-1*'PM2.5 reduction'!O213),9))","v":0.99997590700000005},{"$f":"VALUE(FIXED(EXP(P$4*-1*'PM2.5 reduction'!P213),9))","v":0.99995394299999996},{"$f":"VALUE(FIXED(EXP(Q$4*-1*'PM2.5 reduction'!Q213),9))","v":0.99998342299999998},{"$f":"VALUE(FIXED(EXP(R$4*-1*'PM2.5 reduction'!R213),9))","v":0.999952489},{"$f":"VALUE(FIXED(EXP(S$4*-1*'PM2.5 reduction'!S213),9))","v":0.99994791699999996},{"$f":"VALUE(FIXED(EXP(T$4*-1*'PM2.5 reduction'!T213),9))","v":0.99992943099999998},{"$f":"VALUE(FIXED(EXP(U$4*-1*'PM2.5 reduction'!U213),9))","v":1},{"$f":"VALUE(FIXED(EXP(V$4*-1*'PM2.5 reduction'!V213),9))","v":0.99996579500000005},{"$f":"VALUE(FIXED(EXP(W$4*-1*'PM2.5 reduction'!W213),9))","v":0.999972372},{"$f":"VALUE(FIXED(EXP(X$4*-1*'PM2.5 reduction'!X213),9))","v":0.999972372},{"$f":"VALUE(FIXED(EXP(Y$4*-1*'PM2.5 reduction'!Y213),9))","v":0.99997162100000003},{"$f":"VALUE(FIXED(EXP(Z$4*-1*'PM2.5 reduction'!Z213),9))","v":0.99993243799999998},{"$f":"VALUE(FIXED(EXP(AA$4*-1*'PM2.5 reduction'!AA213),9))","v":0.999954122},{"$f":"VALUE(FIXED(EXP(AB$4*-1*'PM2.5 reduction'!AB213),9))","v":0.99996609800000003},{"$f":"VALUE(FIXED(EXP(AC$4*-1*'PM2.5 reduction'!AC213),9))","v":0.99994987499999999},{"$f":"VALUE(FIXED(EXP(AD$4*-1*'PM2.5 reduction'!AD213),9))","v":0.99998478000000002},{"$f":"VALUE(FIXED(EXP(AE$4*-1*'PM2.5 reduction'!AE213),9))","v":0.99998335800000004},{"$f":"VALUE(FIXED(EXP(AF$4*-1*'PM2.5 reduction'!AF213),9))","v":0.99997987600000005},{"$f":"VALUE(FIXED(EXP(AG$4*-1*'PM2.5 reduction'!AG213),9))","v":0.99998335800000004},{"$f":"VALUE(FIXED(EXP(AH$4*-1*'PM2.5 reduction'!AH213),9))","v":0.99996518300000004},{"$f":"VALUE(FIXED(EXP(AI$4*-1*'PM2.5 reduction'!AI213),9))","v":0.99994100399999997},{"$f":"VALUE(FIXED(EXP(AJ$4*-1*'PM2.5 reduction'!AJ213),9))","v":0.99996941399999995},{"$f":"VALUE(FIXED(EXP(AK$4*-1*'PM2.5 reduction'!AK213),9))","v":0.99998688000000002},{"$f":"VALUE(FIXED(EXP(AL$4*-1*'PM2.5 reduction'!AL213),9))","v":0.999982645},{"$f":"VALUE(FIXED(EXP(AM$4*-1*'PM2.5 reduction'!AM213),9))","v":0.99996110500000002},{"$f":"VALUE(FIXED(EXP(AN$4*-1*'PM2.5 reduction'!AN213),9))","v":1},{"$f":"VALUE(FIXED(EXP(AO$4*-1*'PM2.5 reduction'!AO213),9))","v":1},{"$f":"VALUE(FIXED(EXP(AP$4*-1*'PM2.5 reduction'!AP213),9))","v":0.99998200599999998},{"$f":"VALUE(FIXED(EXP(AQ$4*-1*'PM2.5 reduction'!AQ213),9))","v":0.99996524799999997},{"$f":"VALUE(FIXED(EXP(AR$4*-1*'PM2.5 reduction'!AR213),9))","v":0.99995785800000003},{"$f":"VALUE(FIXED(EXP(AS$4*-1*'PM2.5 reduction'!AS213),9))","v":0.99999144500000003},{"$f":"VALUE(FIXED(EXP(AT$4*-1*'PM2.5 reduction'!AT213),9))","v":1},{"$f":"VALUE(FIXED(EXP(AU$4*-1*'PM2.5 reduction'!AU213),9))","v":1},{"$f":"VALUE(FIXED(EXP(AV$4*-1*'PM2.5 reduction'!AV213),9))","v":0.99997785400000005},{"$f":"VALUE(FIXED(EXP(AW$4*-1*'PM2.5 reduction'!AW213),9))","v":0.99996823000000001},{"$f":"VALUE(FIXED(EXP(AX$4*-1*'PM2.5 reduction'!AX213),9))","v":0.99997915299999995},{"$f":"VALUE(FIXED(EXP(AY$4*-1*'PM2.5 reduction'!AY213),9))","v":0.99997434900000004},{"$f":"VALUE(FIXED(EXP(AZ$4*-1*'PM2.5 reduction'!AZ213),9))","v":0.99997670699999996},{"$f":"VALUE(FIXED(EXP(BA$4*-1*'PM2.5 reduction'!BA213),9))","v":0.99997363100000003},{"$f":"VALUE(FIXED(EXP(BB$4*-1*'PM2.5 reduction'!BB213),9))","v":0.99997170899999999},{"$f":"VALUE(FIXED(EXP(BC$4*-1*'PM2.5 reduction'!BC213),9))","v":1}]
[null,"Female 10-15",{"$f":"VALUE(FIXED(EXP(C$4*-1*'PM2.5 reduction'!C214),9))","v":0.99994499100000001},{"$f":"VALUE(FIXED(EXP(D$4*-1*'PM2.5 reduction'!D214),9))","v":0.99996603399999995},{"$f":"VALUE(FIXED(EXP(E$4*-1*'PM2.5 reduction'!E214),9))","v":0.999988553},{"$f":"VALUE(FIXED(EXP(F$4*-1*'PM2.5 reduction'!F214),9))","v":0.99998631100000002},{"$f":"VALUE(FIXED(EXP(G$4*-1*'PM2.5 reduction'!G214),9))","v":0.99998931899999999},{"$f":"VALUE(FIXED(EXP(H$4*-1*'PM2.5 reduction'!H214),9))","v":0.99997718400000002},{"$f":"VALUE(FIXED(EXP(I$4*-1*'PM2.5 reduction'!I214),9))","v":0.999991556},{"$f":"VALUE(FIXED(EXP(J$4*-1*'PM2.5 reduction'!J214),9))","v":0.99997918900000005},{"$f":"VALUE(FIXED(EXP(K$4*-1*'PM2.5 reduction'!K214),9))","v":0.99997758199999998},{"$f":"VALUE(FIXED(EXP(L$4*-1*'PM2.5 reduction'!L214),9))","v":0.99998598900000002},{"$f":"VALUE(FIXED(EXP(M$4*-1*'PM2.5 reduction'!M214),9))","v":0.99998598900000002},{"$f":"VALUE(FIXED(EXP(N$4*-1*'PM2.5 reduction'!N214),9))","v":0.99996213599999995},{"$f":"VALUE(FIXED(EXP(O$4*-1*'PM2.5 reduction'!O214),9))","v":0.99997449000000005},{"$f":"VALUE(FIXED(EXP(P$4*-1*'PM2.5 reduction'!P214),9))","v":0.99995376599999997},{"$f":"VALUE(FIXED(EXP(Q$4*-1*'PM2.5 reduction'!Q214),9))","v":0.99998478599999996},{"$f":"VALUE(FIXED(EXP(R$4*-1*'PM2.5 reduction'!R214),9))","v":0.99995287300000002},{"$f":"VALUE(FIXED(EXP(S$4*-1*'PM2.5 reduction'!S214),9))","v":0.99994983900000001},{"$f":"VALUE(FIXED(EXP(T$4*-1*'PM2.5 reduction'!T214),9))","v":0.99993097099999995},{"$f":"VALUE(FIXED(EXP(U$4*-1*'PM2.5 reduction'!U214),9))","v":1},{"$f":"VALUE(FIXED(EXP(V$4*-1*'PM2.5 reduction'!V214),9))","v":0.99996568399999997},{"$f":"VALUE(FIXED(EXP(W$4*-1*'PM2.5 reduction'!W214),9))","v":0.99997173299999997},{"$f":"VALUE(FIXED(EXP(X$4*-1*'PM2.5 reduction'!X214),9))","v":0.99997173299999997},{"$f":"VALUE(FIXED(EXP(Y$4*-1*'PM2.5 reduction'!Y214),9))","v":0.99997172899999998},{"$f":"VALUE(FIXED(EXP(Z$4*-1*'PM2.5 reduction'!Z214),9))","v":0.99993536000000005},{"$f":"VALUE(FIXED(EXP(AA$4*-1*'PM2.5 reduction'!AA214),9))","v":0.99995543600000003},{"$f":"VALUE(FIXED(EXP(AB$4*-1*'PM2.5 reduction'!AB214),9))","v":0.99996707900000004},{"$f":"VALUE(FIXED(EXP(AC$4*-1*'PM2.5 reduction'!AC214),9))","v":0.99995166099999999},{"$f":"VALUE(FIXED(EXP(AD$4*-1*'PM2.5 reduction'!AD214),9))","v":0.999984227},{"$f":"VALUE(FIXED(EXP(AE$4*-1*'PM2.5 reduction'!AE214),9))","v":0.99998223500000005},{"$f":"VALUE(FIXED(EXP(AF$4*-1*'PM2.5 reduction'!AF214),9))","v":0.99998116999999997},{"$f":"VALUE(FIXED(EXP(AG$4*-1*'PM2.5 reduction'!AG214),9))","v":0.99998223500000005},{"$f":"VALUE(FIXED(EXP(AH$4*-1*'PM2.5 reduction'!AH214),9))","v":0.99996581100000004},{"$f":"VALUE(FIXED(EXP(AI$4*-1*'PM2.5 reduction'!AI214),9))","v":0.99994359799999999},{"$f":"VALUE(FIXED(EXP(AJ$4*-1*'PM2.5 reduction'!AJ214),9))","v":0.99996815299999997},{"$f":"VALUE(FIXED(EXP(AK$4*-1*'PM2.5 reduction'!AK214),9))","v":0.99998789799999999},{"$f":"VALUE(FIXED(EXP(AL$4*-1*'PM2.5 reduction'!AL214),9))","v":0.99998290499999998},{"$f":"VALUE(FIXED(EXP(AM$4*-1*'PM2.5 reduction'!AM214),9))","v":0.99996105199999996},{"$f":"VALUE(FIXED(EXP(AN$4*-1*'PM2.5 reduction'!AN214),9))","v":1},{"$f":"VALUE(FIXED(EXP(AO$4*-1*'PM2.5 reduction'!AO214),9))","v":1},{"$f":"VALUE(FIXED(EXP(AP$4*-1*'PM2.5 reduction'!AP214),9))","v":0.99998220500000001},{"$f":"VALUE(FIXED(EXP(AQ$4*-1*'PM2.5 reduction'!AQ214),9))","v":0.99996621100000005},{"$f":"VALUE(FIXED(EXP(AR$4*-1*'PM2.5 reduction'!AR214),9))","v":0.999959343},{"$f":"VALUE(FIXED(EXP(AS$4*-1*'PM2.5 reduction'!AS214),9))","v":0.999991556},{"$f":"VALUE(FIXED(EXP(AT$4*-1*'PM2.5 reduction'!AT214),9))","v":1},{"$f":"VALUE(FIXED(EXP(AU$4*-1*'PM2.5 reduction'!AU214),9))","v":1},{"$f":"VALUE(FIXED(EXP(AV$4*-1*'PM2.5 reduction'!AV214),9))","v":0.99997647599999995},{"$f":"VALUE(FIXED(EXP(AW$4*-1*'PM2.5 reduction'!AW214),9))","v":0.999969522},{"$f":"VALUE(FIXED(EXP(AX$4*-1*'PM2.5 reduction'!AX214),9))","v":0.99997946500000001},{"$f":"VALUE(FIXED(EXP(AY$4*-1*'PM2.5 reduction'!AY214),9))","v":0.99997410200000003},{"$f":"VALUE(FIXED(EXP(AZ$4*-1*'PM2.5 reduction'!AZ214),9))","v":0.99997640600000004},{"$f":"VALUE(FIXED(EXP(BA$4*-1*'PM2.5 reduction'!BA214),9))","v":0.99997392699999998},{"$f":"VALUE(FIXED(EXP(BB$4*-1*'PM2.5 reduction'!BB214),9))","v":0.99997220899999995},{"$f":"VALUE(FIXED(EXP(BC$4*-1*'PM2.5 reduction'!BC214),9))","v":1}]
[null,"Female 16-19",{"$f":"VALUE(FIXED(EXP(C$4*-1*'PM2.5 reduction'!C215),9))","v":0.99994014600000003},{"$f":"VALUE(FIXED(EXP(D$4*-1*'PM2.5 reduction'!D215),9))","v":0.99996222899999998},{"$f":"VALUE(FIXED(EXP(E$4*-1*'PM2.5 reduction'!E215),9))","v":0.99998815500000005},{"$f":"VALUE(FIXED(EXP(F$4*-1*'PM2.5 reduction'!F215),9))","v":0.99998616500000004},{"$f":"VALUE(FIXED(EXP(G$4*-1*'PM2.5 reduction'!G215),9))","v":0.99998920800000002},{"$f":"VALUE(FIXED(EXP(H$4*-1*'PM2.5 reduction'!H215),9))","v":0.99997659500000002},{"$f":"VALUE(FIXED(EXP(I$4*-1*'PM2.5 reduction'!I215),9))","v":0.99999133399999995},{"$f":"VALUE(FIXED(EXP(J$4*-1*'PM2.5 reduction'!J215),9))","v":0.99997888800000001},{"$f":"VALUE(FIXED(EXP(K$4*-1*'PM2.5 reduction'!K215),9))","v":0.99997694400000003},{"$f":"VALUE(FIXED(EXP(L$4*-1*'PM2.5 reduction'!L215),9))","v":0.99998547999999998},{"$f":"VALUE(FIXED(EXP(M$4*-1*'PM2.5 reduction'!M215),9))","v":0.99998547999999998},{"$f":"VALUE(FIXED(EXP(N$4*-1*'PM2.5 reduction'!N215),9))","v":0.99994515399999995},{"$f":"VALUE(FIXED(EXP(O$4*-1*'PM2.5 reduction'!O215),9))","v":0.99997295500000005},{"$f":"VALUE(FIXED(EXP(P$4*-1*'PM2.5 reduction'!P215),9))","v":0.99995369099999998},{"$f":"VALUE(FIXED(EXP(Q$4*-1*'PM2.5 reduction'!Q215),9))","v":0.99998385199999995},{"$f":"VALUE(FIXED(EXP(R$4*-1*'PM2.5 reduction'!R215),9))","v":0.99995313200000002},{"$f":"VALUE(FIXED(EXP(S$4*-1*'PM2.5 reduction'!S215),9))","v":0.99994208900000003},{"$f":"VALUE(FIXED(EXP(T$4*-1*'PM2.5 reduction'!T215),9))","v":0.99992194999999995},{"$f":"VALUE(FIXED(EXP(U$4*-1*'PM2.5 reduction'!U215),9))","v":1},{"$f":"VALUE(FIXED(EXP(V$4*-1*'PM2.5 reduction'!V215),9))","v":0.99996605000000005},{"$f":"VALUE(FIXED(EXP(W$4*-1*'PM2.5 reduction'!W215),9))","v":0.99997532200000006},{"$f":"VALUE(FIXED(EXP(X$4*-1*'PM2.5 reduction'!X215),9))","v":0.99997532200000006},{"$f":"VALUE(FIXED(EXP(Y$4*-1*'PM2.5 reduction'!Y215),9))","v":0.999972113},{"$f":"VALUE(FIXED(EXP(Z$4*-1*'PM2.5 reduction'!Z215),9))","v":0.99991623399999996},{"$f":"VALUE(FIXED(EXP(AA$4*-1*'PM2.5 reduction'!AA215),9))","v":0.999948328},{"$f":"VALUE(FIXED(EXP(AB$4*-1*'PM2.5 reduction'!AB215),9))","v":0.999963135},{"$f":"VALUE(FIXED(EXP(AC$4*-1*'PM2.5 reduction'!AC215),9))","v":0.99994310399999997},{"$f":"VALUE(FIXED(EXP(AD$4*-1*'PM2.5 reduction'!AD215),9))","v":0.99998407700000003},{"$f":"VALUE(FIXED(EXP(AE$4*-1*'PM2.5 reduction'!AE215),9))","v":0.99998277599999996},{"$f":"VALUE(FIXED(EXP(AF$4*-1*'PM2.5 reduction'!AF215),9))","v":0.99998035600000001},{"$f":"VALUE(FIXED(EXP(AG$4*-1*'PM2.5 reduction'!AG215),9))","v":0.99998277599999996},{"$f":"VALUE(FIXED(EXP(AH$4*-1*'PM2.5 reduction'!AH215),9))","v":0.99996464100000004},{"$f":"VALUE(FIXED(EXP(AI$4*-1*'PM2.5 reduction'!AI215),9))","v":0.999934039},{"$f":"VALUE(FIXED(EXP(AJ$4*-1*'PM2.5 reduction'!AJ215),9))","v":0.999971371},{"$f":"VALUE(FIXED(EXP(AK$4*-1*'PM2.5 reduction'!AK215),9))","v":0.99998703},{"$f":"VALUE(FIXED(EXP(AL$4*-1*'PM2.5 reduction'!AL215),9))","v":0.99998236600000001},{"$f":"VALUE(FIXED(EXP(AM$4*-1*'PM2.5 reduction'!AM215),9))","v":0.99996054300000004},{"$f":"VALUE(FIXED(EXP(AN$4*-1*'PM2.5 reduction'!AN215),9))","v":1},{"$f":"VALUE(FIXED(EXP(AO$4*-1*'PM2.5 reduction'!AO215),9))","v":1},{"$f":"VALUE(FIXED(EXP(AP$4*-1*'PM2.5 reduction'!AP215),9))","v":0.999981169},{"$f":"VALUE(FIXED(EXP(AQ$4*-1*'PM2.5 reduction'!AQ215),9))","v":0.99996660900000001},{"$f":"VALUE(FIXED(EXP(AR$4*-1*'PM2.5 reduction'!AR215),9))","v":0.99995263099999998},{"$f":"VALUE(FIXED(EXP(AS$4*-1*'PM2.5 reduction'!AS215),9))","v":0.99999133399999995},{"$f":"VALUE(FIXED(EXP(AT$4*-1*'PM2.5 reduction'!AT215),9))","v":1},{"$f":"VALUE(FIXED(EXP(AU$4*-1*'PM2.5 reduction'!AU215),9))","v":1},{"$f":"VALUE(FIXED(EXP(AV$4*-1*'PM2.5 reduction'!AV215),9))","v":0.99997671300000002},{"$f":"VALUE(FIXED(EXP(AW$4*-1*'PM2.5 reduction'!AW215),9))","v":0.999968352},{"$f":"VALUE(FIXED(EXP(AX$4*-1*'PM2.5 reduction'!AX215),9))","v":0.99997920500000004},{"$f":"VALUE(FIXED(EXP(AY$4*-1*'PM2.5 reduction'!AY215),9))","v":0.99997031000000003},{"$f":"VALUE(FIXED(EXP(AZ$4*-1*'PM2.5 reduction'!AZ215),9))","v":0.99996575499999996},{"$f":"VALUE(FIXED(EXP(BA$4*-1*'PM2.5 reduction'!BA215),9))","v":0.99997303500000001},{"$f":"VALUE(FIXED(EXP(BB$4*-1*'PM2.5 reduction'!BB215),9))","v":0.99997283400000003},{"$f":"VALUE(FIXED(EXP(BC$4*-1*'PM2.5 reduction'!BC215),9))","v":1}]
[null,"Female 20-24",{"$f":"VALUE(FIXED(EXP(C$4*-1*'PM2.5 reduction'!C216),9))","v":0.99992717399999997},{"$f":"VALUE(FIXED(EXP(D$4*-1*'PM2.5 reduction'!D216),9))","v":0.999946259},{"$f":"VALUE(FIXED(EXP(E$4*-1*'PM2.5 reduction'!E216),9))","v":0.99998784699999999},{"$f":"VALUE(FIXED(EXP(F$4*-1*'PM2.5 reduction'!F216),9))","v":0.99998618500000003},{"$f":"VALUE(FIXED(EXP(G$4*-1*'PM2.5 reduction'!G216),9))","v":0.99998927599999998},{"$f":"VALUE(FIXED(EXP(H$4*-1*'PM2.5 reduction'!H216),9))","v":0.99997727800000002},{"$f":"VALUE(FIXED(EXP(I$4*-1*'PM2.5 reduction'!I216),9))","v":0.99999150599999997},{"$f":"VALUE(FIXED(EXP(J$4*-1*'PM2.5 reduction'!J216),9))","v":0.99997407800000004},{"$f":"VALUE(FIXED(EXP(K$4*-1*'PM2.5 reduction'!K216),9))","v":0.99997370600000002},{"$f":"VALUE(FIXED(EXP(L$4*-1*'PM2.5 reduction'!L216),9))","v":0.99998603200000002},{"$f":"VALUE(FIXED(EXP(M$4*-1*'PM2.5 reduction'!M216),9))","v":0.99998603200000002},{"$f":"VALUE(FIXED(EXP(N$4*-1*'PM2.5 reduction'!N216),9))","v":0.999947735},{"$f":"VALUE(FIXED(EXP(O$4*-1*'PM2.5 reduction'!O216),9))","v":0.99997418800000004},{"$f":"VALUE(FIXED(EXP(P$4*-1*'PM2.5 reduction'!P216),9))","v":0.99995388399999996},{"$f":"VALUE(FIXED(EXP(Q$4*-1*'PM2.5 reduction'!Q216),9))","v":0.99998380899999995},{"$f":"VALUE(FIXED(EXP(R$4*-1*'PM2.5 reduction'!R216),9))","v":0.99995279400000003},{"$f":"VALUE(FIXED(EXP(S$4*-1*'PM2.5 reduction'!S216),9))","v":0.99992583000000002},{"$f":"VALUE(FIXED(EXP(T$4*-1*'PM2.5 reduction'!T216),9))","v":0.99990744799999998},{"$f":"VALUE(FIXED(EXP(U$4*-1*'PM2.5 reduction'!U216),9))","v":1},{"$f":"VALUE(FIXED(EXP(V$4*-1*'PM2.5 reduction'!V216),9))","v":0.99996393500000003},{"$f":"VALUE(FIXED(EXP(W$4*-1*'PM2.5 reduction'!W216),9))","v":0.99997925799999998},{"$f":"VALUE(FIXED(EXP(X$4*-1*'PM2.5 reduction'!X216),9))","v":0.99997925799999998},{"$f":"VALUE(FIXED(EXP(Y$4*-1*'PM2.5 reduction'!Y216),9))","v":0.99996922799999999},{"$f":"VALUE(FIXED(EXP(Z$4*-1*'PM2.5 reduction'!Z216),9))","v":0.99991008199999998},{"$f":"VALUE(FIXED(EXP(AA$4*-1*'PM2.5 reduction'!AA216),9))","v":0.99993746900000002},{"$f":"VALUE(FIXED(EXP(AB$4*-1*'PM2.5 reduction'!AB216),9))","v":0.99994739700000002},{"$f":"VALUE(FIXED(EXP(AC$4*-1*'PM2.5 reduction'!AC216),9))","v":0.99993122000000001},{"$f":"VALUE(FIXED(EXP(AD$4*-1*'PM2.5 reduction'!AD216),9))","v":0.99998340100000005},{"$f":"VALUE(FIXED(EXP(AE$4*-1*'PM2.5 reduction'!AE216),9))","v":0.99998151899999999},{"$f":"VALUE(FIXED(EXP(AF$4*-1*'PM2.5 reduction'!AF216),9))","v":0.99997845299999999},{"$f":"VALUE(FIXED(EXP(AG$4*-1*'PM2.5 reduction'!AG216),9))","v":0.99998151899999999},{"$f":"VALUE(FIXED(EXP(AH$4*-1*'PM2.5 reduction'!AH216),9))","v":0.99996383799999999},{"$f":"VALUE(FIXED(EXP(AI$4*-1*'PM2.5 reduction'!AI216),9))","v":0.99991457800000005},{"$f":"VALUE(FIXED(EXP(AJ$4*-1*'PM2.5 reduction'!AJ216),9))","v":0.99997211699999999},{"$f":"VALUE(FIXED(EXP(AK$4*-1*'PM2.5 reduction'!AK216),9))","v":0.99998763400000001},{"$f":"VALUE(FIXED(EXP(AL$4*-1*'PM2.5 reduction'!AL216),9))","v":0.99998302100000003},{"$f":"VALUE(FIXED(EXP(AM$4*-1*'PM2.5 reduction'!AM216),9))","v":0.99996083599999996},{"$f":"VALUE(FIXED(EXP(AN$4*-1*'PM2.5 reduction'!AN216),9))","v":1},{"$f":"VALUE(FIXED(EXP(AO$4*-1*'PM2.5 reduction'!AO216),9))","v":1},{"$f":"VALUE(FIXED(EXP(AP$4*-1*'PM2.5 reduction'!AP216),9))","v":0.99998260000000005},{"$f":"VALUE(FIXED(EXP(AQ$4*-1*'PM2.5 reduction'!AQ216),9))","v":0.99996565800000003},{"$f":"VALUE(FIXED(EXP(AR$4*-1*'PM2.5 reduction'!AR216),9))","v":0.99993812299999996},{"$f":"VALUE(FIXED(EXP(AS$4*-1*'PM2.5 reduction'!AS216),9))","v":0.99999150599999997},{"$f":"VALUE(FIXED(EXP(AT$4*-1*'PM2.5 reduction'!AT216),9))","v":1},{"$f":"VALUE(FIXED(EXP(AU$4*-1*'PM2.5 reduction'!AU216),9))","v":1},{"$f":"VALUE(FIXED(EXP(AV$4*-1*'PM2.5 reduction'!AV216),9))","v":0.99997670699999996},{"$f":"VALUE(FIXED(EXP(AW$4*-1*'PM2.5 reduction'!AW216),9))","v":0.99996607400000004},{"$f":"VALUE(FIXED(EXP(AX$4*-1*'PM2.5 reduction'!AX216),9))","v":0.99997413300000004},{"$f":"VALUE(FIXED(EXP(AY$4*-1*'PM2.5 reduction'!AY216),9))","v":0.99997392699999998},{"$f":"VALUE(FIXED(EXP(AZ$4*-1*'PM2.5 reduction'!AZ216),9))","v":0.99996565500000001},{"$f":"VALUE(FIXED(EXP(BA$4*-1*'PM2.5 reduction'!BA216),9))","v":0.99997639000000005},{"$f":"VALUE(FIXED(EXP(BB$4*-1*'PM2.5 reduction'!BB216),9))","v":0.99997085100000005},{"$f":"VALUE(FIXED(EXP(BC$4*-1*'PM2.5 reduction'!BC216),9))","v":1}]
[null,"Female 25-29",{"$f":"VALUE(FIXED(EXP(C$4*-1*'PM2.5 reduction'!C217),9))","v":0.99992670500000003},{"$f":"VALUE(FIXED(EXP(D$4*-1*'PM2.5 reduction'!D217),9))","v":0.99994203500000001},{"$f":"VALUE(FIXED(EXP(E$4*-1*'PM2.5 reduction'!E217),9))","v":0.99998745600000005},{"$f":"VALUE(FIXED(EXP(F$4*-1*'PM2.5 reduction'!F217),9))","v":0.99998491199999995},{"$f":"VALUE(FIXED(EXP(G$4*-1*'PM2.5 reduction'!G217),9))","v":0.99998953999999995},{"$f":"VALUE(FIXED(EXP(H$4*-1*'PM2.5 reduction'!H217),9))","v":0.99997657500000003},{"$f":"VALUE(FIXED(EXP(I$4*-1*'PM2.5 reduction'!I217),9))","v":0.99999139999999997},{"$f":"VALUE(FIXED(EXP(J$4*-1*'PM2.5 reduction'!J217),9))","v":0.99997520500000003},{"$f":"VALUE(FIXED(EXP(K$4*-1*'PM2.5 reduction'!K217),9))","v":0.999971465},{"$f":"VALUE(FIXED(EXP(L$4*-1*'PM2.5 reduction'!L217),9))","v":0.99998615199999996},{"$f":"VALUE(FIXED(EXP(M$4*-1*'PM2.5 reduction'!M217),9))","v":0.99998615199999996},{"$f":"VALUE(FIXED(EXP(N$4*-1*'PM2.5 reduction'!N217),9))","v":0.99995610400000001},{"$f":"VALUE(FIXED(EXP(O$4*-1*'PM2.5 reduction'!O217),9))","v":0.99997439499999996},{"$f":"VALUE(FIXED(EXP(P$4*-1*'PM2.5 reduction'!P217),9))","v":0.999953804},{"$f":"VALUE(FIXED(EXP(Q$4*-1*'PM2.5 reduction'!Q217),9))","v":0.99998092500000002},{"$f":"VALUE(FIXED(EXP(R$4*-1*'PM2.5 reduction'!R217),9))","v":0.99995360700000002},{"$f":"VALUE(FIXED(EXP(S$4*-1*'PM2.5 reduction'!S217),9))","v":0.99992370500000005},{"$f":"VALUE(FIXED(EXP(T$4*-1*'PM2.5 reduction'!T217),9))","v":0.99990928099999998},{"$f":"VALUE(FIXED(EXP(U$4*-1*'PM2.5 reduction'!U217),9))","v":1},{"$f":"VALUE(FIXED(EXP(V$4*-1*'PM2.5 reduction'!V217),9))","v":0.99996520700000002},{"$f":"VALUE(FIXED(EXP(W$4*-1*'PM2.5 reduction'!W217),9))","v":0.99997470799999999},{"$f":"VALUE(FIXED(EXP(X$4*-1*'PM2.5 reduction'!X217),9))","v":0.99997470799999999},{"$f":"VALUE(FIXED(EXP(Y$4*-1*'PM2.5 reduction'!Y217),9))","v":0.99997034799999995},{"$f":"VALUE(FIXED(EXP(Z$4*-1*'PM2.5 reduction'!Z217),9))","v":0.99992045699999998},{"$f":"VALUE(FIXED(EXP(AA$4*-1*'PM2.5 reduction'!AA217),9))","v":0.99994157400000006},{"$f":"VALUE(FIXED(EXP(AB$4*-1*'PM2.5 reduction'!AB217),9))","v":0.99994343399999996},{"$f":"VALUE(FIXED(EXP(AC$4*-1*'PM2.5 reduction'!AC217),9))","v":0.99993590899999996},{"$f":"VALUE(FIXED(EXP(AD$4*-1*'PM2.5 reduction'!AD217),9))","v":0.99998447700000004},{"$f":"VALUE(FIXED(EXP(AE$4*-1*'PM2.5 reduction'!AE217),9))","v":0.99998312199999995},{"$f":"VALUE(FIXED(EXP(AF$4*-1*'PM2.5 reduction'!AF217),9))","v":0.99997609799999998},{"$f":"VALUE(FIXED(EXP(AG$4*-1*'PM2.5 reduction'!AG217),9))","v":0.99998312199999995},{"$f":"VALUE(FIXED(EXP(AH$4*-1*'PM2.5 reduction'!AH217),9))","v":0.99996429200000003},{"$f":"VALUE(FIXED(EXP(AI$4*-1*'PM2.5 reduction'!AI217),9))","v":0.99991642800000002},{"$f":"VALUE(FIXED(EXP(AJ$4*-1*'PM2.5 reduction'!AJ217),9))","v":0.99997100100000003},{"$f":"VALUE(FIXED(EXP(AK$4*-1*'PM2.5 reduction'!AK217),9))","v":0.99998766900000002},{"$f":"VALUE(FIXED(EXP(AL$4*-1*'PM2.5 reduction'!AL217),9))","v":0.99998220299999996},{"$f":"VALUE(FIXED(EXP(AM$4*-1*'PM2.5 reduction'!AM217),9))","v":0.99995966300000005},{"$f":"VALUE(FIXED(EXP(AN$4*-1*'PM2.5 reduction'!AN217),9))","v":1},{"$f":"VALUE(FIXED(EXP(AO$4*-1*'PM2.5 reduction'!AO217),9))","v":1},{"$f":"VALUE(FIXED(EXP(AP$4*-1*'PM2.5 reduction'!AP217),9))","v":0.99998076599999997},{"$f":"VALUE(FIXED(EXP(AQ$4*-1*'PM2.5 reduction'!AQ217),9))","v":0.99996479500000002},{"$f":"VALUE(FIXED(EXP(AR$4*-1*'PM2.5 reduction'!AR217),9))","v":0.99993871300000003},{"$f":"VALUE(FIXED(EXP(AS$4*-1*'PM2.5 reduction'!AS217),9))","v":0.99999139999999997},{"$f":"VALUE(FIXED(EXP(AT$4*-1*'PM2.5 reduction'!AT217),9))","v":1},{"$f":"VALUE(FIXED(EXP(AU$4*-1*'PM2.5 reduction'!AU217),9))","v":1},{"$f":"VALUE(FIXED(EXP(AV$4*-1*'PM2.5 reduction'!AV217),9))","v":0.99997639100000002},{"$f":"VALUE(FIXED(EXP(AW$4*-1*'PM2.5 reduction'!AW217),9))","v":0.99996777999999997},{"$f":"VALUE(FIXED(EXP(AX$4*-1*'PM2.5 reduction'!AX217),9))","v":0.999975697},{"$f":"VALUE(FIXED(EXP(AY$4*-1*'PM2.5 reduction'!AY217),9))","v":0.99997247899999997},{"$f":"VALUE(FIXED(EXP(AZ$4*-1*'PM2.5 reduction'!AZ217),9))","v":0.99997012299999999},{"$f":"VALUE(FIXED(EXP(BA$4*-1*'PM2.5 reduction'!BA217),9))","v":0.99997317500000005},{"$f":"VALUE(FIXED(EXP(BB$4*-1*'PM2.5 reduction'!BB217),9))","v":0.99996944499999996},{"$f":"VALUE(FIXED(EXP(BC$4*-1*'PM2.5 reduction'!BC217),9))","v":1}]
[null,"Female 30-34",{"$f":"VALUE(FIXED(EXP(C$4*-1*'PM2.5 reduction'!C218),9))","v":0.99993188200000005},{"$f":"VALUE(FIXED(EXP(D$4*-1*'PM2.5 reduction'!D218),9))","v":0.99995059799999997},{"$f":"VALUE(FIXED(EXP(E$4*-1*'PM2.5 reduction'!E218),9))","v":0.99998812699999995},{"$f":"VALUE(FIXED(EXP(F$4*-1*'PM2.5 reduction'!F218),9))","v":0.99998633999999997},{"$f":"VALUE(FIXED(EXP(G$4*-1*'PM2.5 reduction'!G218),9))","v":0.99998941600000002},{"$f":"VALUE(FIXED(EXP(H$4*-1*'PM2.5 reduction'!H218),9))","v":0.99997835800000001},{"$f":"VALUE(FIXED(EXP(I$4*-1*'PM2.5 reduction'!I218),9))","v":0.99999130300000005},{"$f":"VALUE(FIXED(EXP(J$4*-1*'PM2.5 reduction'!J218),9))","v":0.99997502800000004},{"$f":"VALUE(FIXED(EXP(K$4*-1*'PM2.5 reduction'!K218),9))","v":0.99997321900000002},{"$f":"VALUE(FIXED(EXP(L$4*-1*'PM2.5 reduction'!L218),9))","v":0.99998592399999997},{"$f":"VALUE(FIXED(EXP(M$4*-1*'PM2.5 reduction'!M218),9))","v":0.99998592399999997},{"$f":"VALUE(FIXED(EXP(N$4*-1*'PM2.5 reduction'!N218),9))","v":0.99996020699999999},{"$f":"VALUE(FIXED(EXP(O$4*-1*'PM2.5 reduction'!O218),9))","v":0.99997617599999999},{"$f":"VALUE(FIXED(EXP(P$4*-1*'PM2.5 reduction'!P218),9))","v":0.99995377100000005},{"$f":"VALUE(FIXED(EXP(Q$4*-1*'PM2.5 reduction'!Q218),9))","v":0.99998190899999995},{"$f":"VALUE(FIXED(EXP(R$4*-1*'PM2.5 reduction'!R218),9))","v":0.99995293799999996},{"$f":"VALUE(FIXED(EXP(S$4*-1*'PM2.5 reduction'!S218),9))","v":0.99992960799999997},{"$f":"VALUE(FIXED(EXP(T$4*-1*'PM2.5 reduction'!T218),9))","v":0.99991147300000005},{"$f":"VALUE(FIXED(EXP(U$4*-1*'PM2.5 reduction'!U218),9))","v":1},{"$f":"VALUE(FIXED(EXP(V$4*-1*'PM2.5 reduction'!V218),9))","v":0.99996612600000001},{"$f":"VALUE(FIXED(EXP(W$4*-1*'PM2.5 reduction'!W218),9))","v":0.99997255399999996},{"$f":"VALUE(FIXED(EXP(X$4*-1*'PM2.5 reduction'!X218),9))","v":0.99997255399999996},{"$f":"VALUE(FIXED(EXP(Y$4*-1*'PM2.5 reduction'!Y218),9))","v":0.99996974000000005},{"$f":"VALUE(FIXED(EXP(Z$4*-1*'PM2.5 reduction'!Z218),9))","v":0.999924166},{"$f":"VALUE(FIXED(EXP(AA$4*-1*'PM2.5 reduction'!AA218),9))","v":0.99994587599999996},{"$f":"VALUE(FIXED(EXP(AB$4*-1*'PM2.5 reduction'!AB218),9))","v":0.99995185600000003},{"$f":"VALUE(FIXED(EXP(AC$4*-1*'PM2.5 reduction'!AC218),9))","v":0.99993966099999998},{"$f":"VALUE(FIXED(EXP(AD$4*-1*'PM2.5 reduction'!AD218),9))","v":0.999983548},{"$f":"VALUE(FIXED(EXP(AE$4*-1*'PM2.5 reduction'!AE218),9))","v":0.99998267399999996},{"$f":"VALUE(FIXED(EXP(AF$4*-1*'PM2.5 reduction'!AF218),9))","v":0.99997761500000004},{"$f":"VALUE(FIXED(EXP(AG$4*-1*'PM2.5 reduction'!AG218),9))","v":0.99998267399999996},{"$f":"VALUE(FIXED(EXP(AH$4*-1*'PM2.5 reduction'!AH218),9))","v":0.99996412199999996},{"$f":"VALUE(FIXED(EXP(AI$4*-1*'PM2.5 reduction'!AI218),9))","v":0.99992135100000001},{"$f":"VALUE(FIXED(EXP(AJ$4*-1*'PM2.5 reduction'!AJ218),9))","v":0.99997337100000006},{"$f":"VALUE(FIXED(EXP(AK$4*-1*'PM2.5 reduction'!AK218),9))","v":0.99998683300000002},{"$f":"VALUE(FIXED(EXP(AL$4*-1*'PM2.5 reduction'!AL218),9))","v":0.99998288800000001},{"$f":"VALUE(FIXED(EXP(AM$4*-1*'PM2.5 reduction'!AM218),9))","v":0.99995944000000003},{"$f":"VALUE(FIXED(EXP(AN$4*-1*'PM2.5 reduction'!AN218),9))","v":1},{"$f":"VALUE(FIXED(EXP(AO$4*-1*'PM2.5 reduction'!AO218),9))","v":1},{"$f":"VALUE(FIXED(EXP(AP$4*-1*'PM2.5 reduction'!AP218),9))","v":0.99998079500000003},{"$f":"VALUE(FIXED(EXP(AQ$4*-1*'PM2.5 reduction'!AQ218),9))","v":0.99996356600000003},{"$f":"VALUE(FIXED(EXP(AR$4*-1*'PM2.5 reduction'!AR218),9))","v":0.99994501700000005},{"$f":"VALUE(FIXED(EXP(AS$4*-1*'PM2.5 reduction'!AS218),9))","v":0.99999130300000005},{"$f":"VALUE(FIXED(EXP(AT$4*-1*'PM2.5 reduction'!AT218),9))","v":1},{"$f":"VALUE(FIXED(EXP(AU$4*-1*'PM2.5 reduction'!AU218),9))","v":1},{"$f":"VALUE(FIXED(EXP(AV$4*-1*'PM2.5 reduction'!AV218),9))","v":0.999977742},{"$f":"VALUE(FIXED(EXP(AW$4*-1*'PM2.5 reduction'!AW218),9))","v":0.99996778500000005},{"$f":"VALUE(FIXED(EXP(AX$4*-1*'PM2.5 reduction'!AX218),9))","v":0.99997539999999996},{"$f":"VALUE(FIXED(EXP(AY$4*-1*'PM2.5 reduction'!AY218),9))","v":0.99997326499999994},{"$f":"VALUE(FIXED(EXP(AZ$4*-1*'PM2.5 reduction'!AZ218),9))","v":0.99997400999999997},{"$f":"VALUE(FIXED(EXP(BA$4*-1*'PM2.5 reduction'!BA218),9))","v":0.99997571299999999},{"$f":"VALUE(FIXED(EXP(BB$4*-1*'PM2.5 reduction'!BB218),9))","v":0.99996985100000002},{"$f":"VALUE(FIXED(EXP(BC$4*-1*'PM2.5 reduction'!BC218),9))","v":1}]
[null,"Female 35-39",{"$f":"VALUE(FIXED(EXP(C$4*-1*'PM2.5 reduction'!C219),9))","v":0.99993823100000001},{"$f":"VALUE(FIXED(EXP(D$4*-1*'PM2.5 reduction'!D219),9))","v":0.99995736899999998},{"$f":"VALUE(FIXED(EXP(E$4*-1*'PM2.5 reduction'!E219),9))","v":0.99998830900000002},{"$f":"VALUE(FIXED(EXP(F$4*-1*'PM2.5 reduction'!F219),9))","v":0.99998653900000001},{"$f":"VALUE(FIXED(EXP(G$4*-1*'PM2.5 reduction'!G219),9))","v":0.99998942800000001},{"$f":"VALUE(FIXED(EXP(H$4*-1*'PM2.5 reduction'!H219),9))","v":0.999977793},{"$f":"VALUE(FIXED(EXP(I$4*-1*'PM2.5 reduction'!I219),9))","v":0.99999145599999995},{"$f":"VALUE(FIXED(EXP(J$4*-1*'PM2.5 reduction'!J219),9))","v":0.99997777399999999},{"$f":"VALUE(FIXED(EXP(K$4*-1*'PM2.5 reduction'!K219),9))","v":0.99997381600000002},{"$f":"VALUE(FIXED(EXP(L$4*-1*'PM2.5 reduction'!L219),9))","v":0.99998589000000004},{"$f":"VALUE(FIXED(EXP(M$4*-1*'PM2.5 reduction'!M219),9))","v":0.99998589000000004},{"$f":"VALUE(FIXED(EXP(N$4*-1*'PM2.5 reduction'!N219),9))","v":0.999958664},{"$f":"VALUE(FIXED(EXP(O$4*-1*'PM2.5 reduction'!O219),9))","v":0.99997504000000004},{"$f":"VALUE(FIXED(EXP(P$4*-1*'PM2.5 reduction'!P219),9))","v":0.999953745},{"$f":"VALUE(FIXED(EXP(Q$4*-1*'PM2.5 reduction'!Q219),9))","v":0.99998273000000004},{"$f":"VALUE(FIXED(EXP(R$4*-1*'PM2.5 reduction'!R219),9))","v":0.99995213999999999},{"$f":"VALUE(FIXED(EXP(S$4*-1*'PM2.5 reduction'!S219),9))","v":0.999938887},{"$f":"VALUE(FIXED(EXP(T$4*-1*'PM2.5 reduction'!T219),9))","v":0.99992060699999996},{"$f":"VALUE(FIXED(EXP(U$4*-1*'PM2.5 reduction'!U219),9))","v":1},{"$f":"VALUE(FIXED(EXP(V$4*-1*'PM2.5 reduction'!V219),9))","v":0.99996674900000004},{"$f":"VALUE(FIXED(EXP(W$4*-1*'PM2.5 reduction'!W219),9))","v":0.99997255900000004},{"$f":"VALUE(FIXED(EXP(X$4*-1*'PM2.5 reduction'!X219),9))","v":0.99997255900000004},{"$f":"VALUE(FIXED(EXP(Y$4*-1*'PM2.5 reduction'!Y219),9))","v":0.99997148599999996},{"$f":"VALUE(FIXED(EXP(Z$4*-1*'PM2.5 reduction'!Z219),9))","v":0.99992796799999994},{"$f":"VALUE(FIXED(EXP(AA$4*-1*'PM2.5 reduction'!AA219),9))","v":0.999950687},{"$f":"VALUE(FIXED(EXP(AB$4*-1*'PM2.5 reduction'!AB219),9))","v":0.99995817399999998},{"$f":"VALUE(FIXED(EXP(AC$4*-1*'PM2.5 reduction'!AC219),9))","v":0.99994596400000002},{"$f":"VALUE(FIXED(EXP(AD$4*-1*'PM2.5 reduction'!AD219),9))","v":0.99998429},{"$f":"VALUE(FIXED(EXP(AE$4*-1*'PM2.5 reduction'!AE219),9))","v":0.99998279400000001},{"$f":"VALUE(FIXED(EXP(AF$4*-1*'PM2.5 reduction'!AF219),9))","v":0.99998052199999998},{"$f":"VALUE(FIXED(EXP(AG$4*-1*'PM2.5 reduction'!AG219),9))","v":0.99998279400000001},{"$f":"VALUE(FIXED(EXP(AH$4*-1*'PM2.5 reduction'!AH219),9))","v":0.99996401800000001},{"$f":"VALUE(FIXED(EXP(AI$4*-1*'PM2.5 reduction'!AI219),9))","v":0.99993123699999997},{"$f":"VALUE(FIXED(EXP(AJ$4*-1*'PM2.5 reduction'!AJ219),9))","v":0.999970303},{"$f":"VALUE(FIXED(EXP(AK$4*-1*'PM2.5 reduction'!AK219),9))","v":0.99998664500000001},{"$f":"VALUE(FIXED(EXP(AL$4*-1*'PM2.5 reduction'!AL219),9))","v":0.99998242299999995},{"$f":"VALUE(FIXED(EXP(AM$4*-1*'PM2.5 reduction'!AM219),9))","v":0.99995985700000001},{"$f":"VALUE(FIXED(EXP(AN$4*-1*'PM2.5 reduction'!AN219),9))","v":1},{"$f":"VALUE(FIXED(EXP(AO$4*-1*'PM2.5 reduction'!AO219),9))","v":1},{"$f":"VALUE(FIXED(EXP(AP$4*-1*'PM2.5 reduction'!AP219),9))","v":0.99998114299999996},{"$f":"VALUE(FIXED(EXP(AQ$4*-1*'PM2.5 reduction'!AQ219),9))","v":0.99996459599999998},{"$f":"VALUE(FIXED(EXP(AR$4*-1*'PM2.5 reduction'!AR219),9))","v":0.99995155199999997},{"$f":"VALUE(FIXED(EXP(AS$4*-1*'PM2.5 reduction'!AS219),9))","v":0.99999145599999995},{"$f":"VALUE(FIXED(EXP(AT$4*-1*'PM2.5 reduction'!AT219),9))","v":1},{"$f":"VALUE(FIXED(EXP(AU$4*-1*'PM2.5 reduction'!AU219),9))","v":1},{"$f":"VALUE(FIXED(EXP(AV$4*-1*'PM2.5 reduction'!AV219),9))","v":0.99997728100000005},{"$f":"VALUE(FIXED(EXP(AW$4*-1*'PM2.5 reduction'!AW219),9))","v":0.99996711500000002},{"$f":"VALUE(FIXED(EXP(AX$4*-1*'PM2.5 reduction'!AX219),9))","v":0.99997876699999999},{"$f":"VALUE(FIXED(EXP(AY$4*-1*'PM2.5 reduction'!AY219),9))","v":0.99997326900000005},{"$f":"VALUE(FIXED(EXP(AZ$4*-1*'PM2.5 reduction'!AZ219),9))","v":0.99997409199999998},{"$f":"VALUE(FIXED(EXP(BA$4*-1*'PM2.5 reduction'!BA219),9))","v":0.99997429900000001},{"$f":"VALUE(FIXED(EXP(BB$4*-1*'PM2.5 reduction'!BB219),9))","v":0.99997125899999995},{"$f":"VALUE(FIXED(EXP(BC$4*-1*'PM2.5 reduction'!BC219),9))","v":1}]
[null,"Female 40-44",{"$f":"VALUE(FIXED(EXP(C$4*-1*'PM2.5 reduction'!C220),9))","v":0.999942055},{"$f":"VALUE(FIXED(EXP(D$4*-1*'PM2.5 reduction'!D220),9))","v":0.99996222099999998},{"$f":"VALUE(FIXED(EXP(E$4*-1*'PM2.5 reduction'!E220),9))","v":0.999988349},{"$f":"VALUE(FIXED(EXP(F$4*-1*'PM2.5 reduction'!F220),9))","v":0.99998627100000004},{"$f":"VALUE(FIXED(EXP(G$4*-1*'PM2.5 reduction'!G220),9))","v":0.99998943299999998},{"$f":"VALUE(FIXED(EXP(H$4*-1*'PM2.5 reduction'!H220),9))","v":0.99997751700000004},{"$f":"VALUE(FIXED(EXP(I$4*-1*'PM2.5 reduction'!I220),9))","v":0.99999154999999995},{"$f":"VALUE(FIXED(EXP(J$4*-1*'PM2.5 reduction'!J220),9))","v":0.99997789999999998},{"$f":"VALUE(FIXED(EXP(K$4*-1*'PM2.5 reduction'!K220),9))","v":0.99997380899999999},{"$f":"VALUE(FIXED(EXP(L$4*-1*'PM2.5 reduction'!L220),9))","v":0.99998624800000002},{"$f":"VALUE(FIXED(EXP(M$4*-1*'PM2.5 reduction'!M220),9))","v":0.99998624800000002},{"$f":"VALUE(FIXED(EXP(N$4*-1*'PM2.5 reduction'!N220),9))","v":0.99996186300000001},{"$f":"VALUE(FIXED(EXP(O$4*-1*'PM2.5 reduction'!O220),9))","v":0.99997503099999996},{"$f":"VALUE(FIXED(EXP(P$4*-1*'PM2.5 reduction'!P220),9))","v":0.99995416999999998},{"$f":"VALUE(FIXED(EXP(Q$4*-1*'PM2.5 reduction'!Q220),9))","v":0.99998379100000001},{"$f":"VALUE(FIXED(EXP(R$4*-1*'PM2.5 reduction'!R220),9))","v":0.99995258499999995},{"$f":"VALUE(FIXED(EXP(S$4*-1*'PM2.5 reduction'!S220),9))","v":0.999944359},{"$f":"VALUE(FIXED(EXP(T$4*-1*'PM2.5 reduction'!T220),9))","v":0.99992496099999995},{"$f":"VALUE(FIXED(EXP(U$4*-1*'PM2.5 reduction'!U220),9))","v":1},{"$f":"VALUE(FIXED(EXP(V$4*-1*'PM2.5 reduction'!V220),9))","v":0.99996532599999999},{"$f":"VALUE(FIXED(EXP(W$4*-1*'PM2.5 reduction'!W220),9))","v":0.99997181099999999},{"$f":"VALUE(FIXED(EXP(X$4*-1*'PM2.5 reduction'!X220),9))","v":0.99997181099999999},{"$f":"VALUE(FIXED(EXP(Y$4*-1*'PM2.5 reduction'!Y220),9))","v":0.99997034299999998},{"$f":"VALUE(FIXED(EXP(Z$4*-1*'PM2.5 reduction'!Z220),9))","v":0.99992937699999995},{"$f":"VALUE(FIXED(EXP(AA$4*-1*'PM2.5 reduction'!AA220),9))","v":0.99995268199999998},{"$f":"VALUE(FIXED(EXP(AB$4*-1*'PM2.5 reduction'!AB220),9))","v":0.99996335400000003},{"$f":"VALUE(FIXED(EXP(AC$4*-1*'PM2.5 reduction'!AC220),9))","v":0.99994813699999996},{"$f":"VALUE(FIXED(EXP(AD$4*-1*'PM2.5 reduction'!AD220),9))","v":0.99998366999999999},{"$f":"VALUE(FIXED(EXP(AE$4*-1*'PM2.5 reduction'!AE220),9))","v":0.99998212500000005},{"$f":"VALUE(FIXED(EXP(AF$4*-1*'PM2.5 reduction'!AF220),9))","v":0.99997992300000005},{"$f":"VALUE(FIXED(EXP(AG$4*-1*'PM2.5 reduction'!AG220),9))","v":0.99998212500000005},{"$f":"VALUE(FIXED(EXP(AH$4*-1*'PM2.5 reduction'!AH220),9))","v":0.99996517399999996},{"$f":"VALUE(FIXED(EXP(AI$4*-1*'PM2.5 reduction'!AI220),9))","v":0.99993699000000003},{"$f":"VALUE(FIXED(EXP(AJ$4*-1*'PM2.5 reduction'!AJ220),9))","v":0.99997004499999997},{"$f":"VALUE(FIXED(EXP(AK$4*-1*'PM2.5 reduction'!AK220),9))","v":0.99998715100000002},{"$f":"VALUE(FIXED(EXP(AL$4*-1*'PM2.5 reduction'!AL220),9))","v":0.99998226099999998},{"$f":"VALUE(FIXED(EXP(AM$4*-1*'PM2.5 reduction'!AM220),9))","v":0.99996059199999998},{"$f":"VALUE(FIXED(EXP(AN$4*-1*'PM2.5 reduction'!AN220),9))","v":1},{"$f":"VALUE(FIXED(EXP(AO$4*-1*'PM2.5 reduction'!AO220),9))","v":1},{"$f":"VALUE(FIXED(EXP(AP$4*-1*'PM2.5 reduction'!AP220),9))","v":0.99998256799999996},{"$f":"VALUE(FIXED(EXP(AQ$4*-1*'PM2.5 reduction'!AQ220),9))","v":0.99996541699999997},{"$f":"VALUE(FIXED(EXP(AR$4*-1*'PM2.5 reduction'!AR220),9))","v":0.99995561200000005},{"$f":"VALUE(FIXED(EXP(AS$4*-1*'PM2.5 reduction'!AS220),9))","v":0.99999154999999995},{"$f":"VALUE(FIXED(EXP(AT$4*-1*'PM2.5 reduction'!AT220),9))","v":1},{"$f":"VALUE(FIXED(EXP(AU$4*-1*'PM2.5 reduction'!AU220),9))","v":1},{"$f":"VALUE(FIXED(EXP(AV$4*-1*'PM2.5 reduction'!AV220),9))","v":0.99997714400000004},{"$f":"VALUE(FIXED(EXP(AW$4*-1*'PM2.5 reduction'!AW220),9))","v":0.999968411},{"$f":"VALUE(FIXED(EXP(AX$4*-1*'PM2.5 reduction'!AX220),9))","v":0.99997876900000005},{"$f":"VALUE(FIXED(EXP(AY$4*-1*'PM2.5 reduction'!AY220),9))","v":0.99997400400000003},{"$f":"VALUE(FIXED(EXP(AZ$4*-1*'PM2.5 reduction'!AZ220),9))","v":0.99997640499999996},{"$f":"VALUE(FIXED(EXP(BA$4*-1*'PM2.5 reduction'!BA220),9))","v":0.999976105},{"$f":"VALUE(FIXED(EXP(BB$4*-1*'PM2.5 reduction'!BB220),9))","v":0.99997150700000004},{"$f":"VALUE(FIXED(EXP(BC$4*-1*'PM2.5 reduction'!BC220),9))","v":1}]
[null,"Female 45-49",{"$f":"VALUE(FIXED(EXP(C$4*-1*'PM2.5 reduction'!C221),9))","v":0.999943256},{"$f":"VALUE(FIXED(EXP(D$4*-1*'PM2.5 reduction'!D221),9))","v":0.99996367399999997},{"$f":"VALUE(FIXED(EXP(E$4*-1*'PM2.5 reduction'!E221),9))","v":0.99998811200000004},{"$f":"VALUE(FIXED(EXP(F$4*-1*'PM2.5 reduction'!F221),9))","v":0.99998624899999999},{"$f":"VALUE(FIXED(EXP(G$4*-1*'PM2.5 reduction'!G221),9))","v":0.999989291},{"$f":"VALUE(FIXED(EXP(H$4*-1*'PM2.5 reduction'!H221),9))","v":0.999977228},{"$f":"VALUE(FIXED(EXP(I$4*-1*'PM2.5 reduction'!I221),9))","v":0.99999155299999998},{"$f":"VALUE(FIXED(EXP(J$4*-1*'PM2.5 reduction'!J221),9))","v":0.99997785900000002},{"$f":"VALUE(FIXED(EXP(K$4*-1*'PM2.5 reduction'!K221),9))","v":0.99997529600000001},{"$f":"VALUE(FIXED(EXP(L$4*-1*'PM2.5 reduction'!L221),9))","v":0.99998593300000005},{"$f":"VALUE(FIXED(EXP(M$4*-1*'PM2.5 reduction'!M221),9))","v":0.99998593300000005},{"$f":"VALUE(FIXED(EXP(N$4*-1*'PM2.5 reduction'!N221),9))","v":0.99996247100000002},{"$f":"VALUE(FIXED(EXP(O$4*-1*'PM2.5 reduction'!O221),9))","v":0.99997493000000004},{"$f":"VALUE(FIXED(EXP(P$4*-1*'PM2.5 reduction'!P221),9))","v":0.99995402200000005},{"$f":"VALUE(FIXED(EXP(Q$4*-1*'PM2.5 reduction'!Q221),9))","v":0.99998399500000001},{"$f":"VALUE(FIXED(EXP(R$4*-1*'PM2.5 reduction'!R221),9))","v":0.99995340899999996},{"$f":"VALUE(FIXED(EXP(S$4*-1*'PM2.5 reduction'!S221),9))","v":0.99994651300000004},{"$f":"VALUE(FIXED(EXP(T$4*-1*'PM2.5 reduction'!T221),9))","v":0.99992668299999998},{"$f":"VALUE(FIXED(EXP(U$4*-1*'PM2.5 reduction'!U221),9))","v":1},{"$f":"VALUE(FIXED(EXP(V$4*-1*'PM2.5 reduction'!V221),9))","v":0.99996505400000002},{"$f":"VALUE(FIXED(EXP(W$4*-1*'PM2.5 reduction'!W221),9))","v":0.99997255500000004},{"$f":"VALUE(FIXED(EXP(X$4*-1*'PM2.5 reduction'!X221),9))","v":0.99997255500000004},{"$f":"VALUE(FIXED(EXP(Y$4*-1*'PM2.5 reduction'!Y221),9))","v":0.99997063900000005},{"$f":"VALUE(FIXED(EXP(Z$4*-1*'PM2.5 reduction'!Z221),9))","v":0.99993113700000003},{"$f":"VALUE(FIXED(EXP(AA$4*-1*'PM2.5 reduction'!AA221),9))","v":0.99995381800000005},{"$f":"VALUE(FIXED(EXP(AB$4*-1*'PM2.5 reduction'!AB221),9))","v":0.99996475500000004},{"$f":"VALUE(FIXED(EXP(AC$4*-1*'PM2.5 reduction'!AC221),9))","v":0.99994971399999999},{"$f":"VALUE(FIXED(EXP(AD$4*-1*'PM2.5 reduction'!AD221),9))","v":0.99998423599999997},{"$f":"VALUE(FIXED(EXP(AE$4*-1*'PM2.5 reduction'!AE221),9))","v":0.999982653},{"$f":"VALUE(FIXED(EXP(AF$4*-1*'PM2.5 reduction'!AF221),9))","v":0.99998077500000004},{"$f":"VALUE(FIXED(EXP(AG$4*-1*'PM2.5 reduction'!AG221),9))","v":0.999982653},{"$f":"VALUE(FIXED(EXP(AH$4*-1*'PM2.5 reduction'!AH221),9))","v":0.99996498499999997},{"$f":"VALUE(FIXED(EXP(AI$4*-1*'PM2.5 reduction'!AI221),9))","v":0.99993943699999999},{"$f":"VALUE(FIXED(EXP(AJ$4*-1*'PM2.5 reduction'!AJ221),9))","v":0.99996914100000001},{"$f":"VALUE(FIXED(EXP(AK$4*-1*'PM2.5 reduction'!AK221),9))","v":0.99998707200000003},{"$f":"VALUE(FIXED(EXP(AL$4*-1*'PM2.5 reduction'!AL221),9))","v":0.99998241200000004},{"$f":"VALUE(FIXED(EXP(AM$4*-1*'PM2.5 reduction'!AM221),9))","v":0.99996137399999996},{"$f":"VALUE(FIXED(EXP(AN$4*-1*'PM2.5 reduction'!AN221),9))","v":1},{"$f":"VALUE(FIXED(EXP(AO$4*-1*'PM2.5 reduction'!AO221),9))","v":1},{"$f":"VALUE(FIXED(EXP(AP$4*-1*'PM2.5 reduction'!AP221),9))","v":0.99998218299999997},{"$f":"VALUE(FIXED(EXP(AQ$4*-1*'PM2.5 reduction'!AQ221),9))","v":0.99996559500000004},{"$f":"VALUE(FIXED(EXP(AR$4*-1*'PM2.5 reduction'!AR221),9))","v":0.99995721800000004},{"$f":"VALUE(FIXED(EXP(AS$4*-1*'PM2.5 reduction'!AS221),9))","v":0.99999155299999998},{"$f":"VALUE(FIXED(EXP(AT$4*-1*'PM2.5 reduction'!AT221),9))","v":1},{"$f":"VALUE(FIXED(EXP(AU$4*-1*'PM2.5 reduction'!AU221),9))","v":1},{"$f":"VALUE(FIXED(EXP(AV$4*-1*'PM2.5 reduction'!AV221),9))","v":0.999976321},{"$f":"VALUE(FIXED(EXP(AW$4*-1*'PM2.5 reduction'!AW221),9))","v":0.99996796600000004},{"$f":"VALUE(FIXED(EXP(AX$4*-1*'PM2.5 reduction'!AX221),9))","v":0.99997831800000003},{"$f":"VALUE(FIXED(EXP(AY$4*-1*'PM2.5 reduction'!AY221),9))","v":0.99997432200000003},{"$f":"VALUE(FIXED(EXP(AZ$4*-1*'PM2.5 reduction'!AZ221),9))","v":0.99997605300000003},{"$f":"VALUE(FIXED(EXP(BA$4*-1*'PM2.5 reduction'!BA221),9))","v":0.99997495999999997},{"$f":"VALUE(FIXED(EXP(BB$4*-1*'PM2.5 reduction'!BB221),9))","v":0.99997237999999999},{"$f":"VALUE(FIXED(EXP(BC$4*-1*'PM2.5 reduction'!BC221),9))","v":1}]
[null,"Female 50-54",{"$f":"VALUE(FIXED(EXP(C$4*-1*'PM2.5 reduction'!C222),9))","v":0.99994301600000002},{"$f":"VALUE(FIXED(EXP(D$4*-1*'PM2.5 reduction'!D222),9))","v":0.99996189300000005},{"$f":"VALUE(FIXED(EXP(E$4*-1*'PM2.5 reduction'!E222),9))","v":0.99998772499999999},{"$f":"VALUE(FIXED(EXP(F$4*-1*'PM2.5 reduction'!F222),9))","v":0.99998600900000001},{"$f":"VALUE(FIXED(EXP(G$4*-1*'PM2.5 reduction'!G222),9))","v":0.99998923699999998},{"$f":"VALUE(FIXED(EXP(H$4*-1*'PM2.5 reduction'!H222),9))","v":0.99997747000000003},{"$f":"VALUE(FIXED(EXP(I$4*-1*'PM2.5 reduction'!I222),9))","v":0.99999161400000003},{"$f":"VALUE(FIXED(EXP(J$4*-1*'PM2.5 reduction'!J222),9))","v":0.99997968199999998},{"$f":"VALUE(FIXED(EXP(K$4*-1*'PM2.5 reduction'!K222),9))","v":0.99997550199999996},{"$f":"VALUE(FIXED(EXP(L$4*-1*'PM2.5 reduction'!L222),9))","v":0.99998579600000004},{"$f":"VALUE(FIXED(EXP(M$4*-1*'PM2.5 reduction'!M222),9))","v":0.99998579600000004},{"$f":"VALUE(FIXED(EXP(N$4*-1*'PM2.5 reduction'!N222),9))","v":0.99996124200000003},{"$f":"VALUE(FIXED(EXP(O$4*-1*'PM2.5 reduction'!O222),9))","v":0.99997512499999996},{"$f":"VALUE(FIXED(EXP(P$4*-1*'PM2.5 reduction'!P222),9))","v":0.99995368299999998},{"$f":"VALUE(FIXED(EXP(Q$4*-1*'PM2.5 reduction'!Q222),9))","v":0.99998483299999996},{"$f":"VALUE(FIXED(EXP(R$4*-1*'PM2.5 reduction'!R222),9))","v":0.99995305899999998},{"$f":"VALUE(FIXED(EXP(S$4*-1*'PM2.5 reduction'!S222),9))","v":0.99994632800000005},{"$f":"VALUE(FIXED(EXP(T$4*-1*'PM2.5 reduction'!T222),9))","v":0.99992789199999998},{"$f":"VALUE(FIXED(EXP(U$4*-1*'PM2.5 reduction'!U222),9))","v":1},{"$f":"VALUE(FIXED(EXP(V$4*-1*'PM2.5 reduction'!V222),9))","v":0.99996414700000003},{"$f":"VALUE(FIXED(EXP(W$4*-1*'PM2.5 reduction'!W222),9))","v":0.99997261599999998},{"$f":"VALUE(FIXED(EXP(X$4*-1*'PM2.5 reduction'!X222),9))","v":0.99997261599999998},{"$f":"VALUE(FIXED(EXP(Y$4*-1*'PM2.5 reduction'!Y222),9))","v":0.99997101300000002},{"$f":"VALUE(FIXED(EXP(Z$4*-1*'PM2.5 reduction'!Z222),9))","v":0.99993143200000001},{"$f":"VALUE(FIXED(EXP(AA$4*-1*'PM2.5 reduction'!AA222),9))","v":0.99995365700000005},{"$f":"VALUE(FIXED(EXP(AB$4*-1*'PM2.5 reduction'!AB222),9))","v":0.99996313100000001},{"$f":"VALUE(FIXED(EXP(AC$4*-1*'PM2.5 reduction'!AC222),9))","v":0.99994977900000004},{"$f":"VALUE(FIXED(EXP(AD$4*-1*'PM2.5 reduction'!AD222),9))","v":0.99998361199999997},{"$f":"VALUE(FIXED(EXP(AE$4*-1*'PM2.5 reduction'!AE222),9))","v":0.99998191400000003},{"$f":"VALUE(FIXED(EXP(AF$4*-1*'PM2.5 reduction'!AF222),9))","v":0.99997946400000004},{"$f":"VALUE(FIXED(EXP(AG$4*-1*'PM2.5 reduction'!AG222),9))","v":0.99998191400000003},{"$f":"VALUE(FIXED(EXP(AH$4*-1*'PM2.5 reduction'!AH222),9))","v":0.99996414099999997},{"$f":"VALUE(FIXED(EXP(AI$4*-1*'PM2.5 reduction'!AI222),9))","v":0.999939676},{"$f":"VALUE(FIXED(EXP(AJ$4*-1*'PM2.5 reduction'!AJ222),9))","v":0.99996980000000002},{"$f":"VALUE(FIXED(EXP(AK$4*-1*'PM2.5 reduction'!AK222),9))","v":0.99998821199999999},{"$f":"VALUE(FIXED(EXP(AL$4*-1*'PM2.5 reduction'!AL222),9))","v":0.99998264999999997},{"$f":"VALUE(FIXED(EXP(AM$4*-1*'PM2.5 reduction'!AM222),9))","v":0.99995989699999999},{"$f":"VALUE(FIXED(EXP(AN$4*-1*'PM2.5 reduction'!AN222),9))","v":1},{"$f":"VALUE(FIXED(EXP(AO$4*-1*'PM2.5 reduction'!AO222),9))","v":1},{"$f":"VALUE(FIXED(EXP(AP$4*-1*'PM2.5 reduction'!AP222),9))","v":0.99998305700000001},{"$f":"VALUE(FIXED(EXP(AQ$4*-1*'PM2.5 reduction'!AQ222),9))","v":0.999964984},{"$f":"VALUE(FIXED(EXP(AR$4*-1*'PM2.5 reduction'!AR222),9))","v":0.99995718199999994},{"$f":"VALUE(FIXED(EXP(AS$4*-1*'PM2.5 reduction'!AS222),9))","v":0.99999161400000003},{"$f":"VALUE(FIXED(EXP(AT$4*-1*'PM2.5 reduction'!AT222),9))","v":1},{"$f":"VALUE(FIXED(EXP(AU$4*-1*'PM2.5 reduction'!AU222),9))","v":1},{"$f":"VALUE(FIXED(EXP(AV$4*-1*'PM2.5 reduction'!AV222),9))","v":0.99997681299999996},{"$f":"VALUE(FIXED(EXP(AW$4*-1*'PM2.5 reduction'!AW222),9))","v":0.99996725099999995},{"$f":"VALUE(FIXED(EXP(AX$4*-1*'PM2.5 reduction'!AX222),9))","v":0.99998041699999995},{"$f":"VALUE(FIXED(EXP(AY$4*-1*'PM2.5 reduction'!AY222),9))","v":0.99997435899999998},{"$f":"VALUE(FIXED(EXP(AZ$4*-1*'PM2.5 reduction'!AZ222),9))","v":0.99997580200000002},{"$f":"VALUE(FIXED(EXP(BA$4*-1*'PM2.5 reduction'!BA222),9))","v":0.99997569500000005},{"$f":"VALUE(FIXED(EXP(BB$4*-1*'PM2.5 reduction'!BB222),9))","v":0.99997283400000003},{"$f":"VALUE(FIXED(EXP(BC$4*-1*'PM2.5 reduction'!BC222),9))","v":1}]
[null,"Female 55-59",{"$f":"VALUE(FIXED(EXP(C$4*-1*'PM2.5 reduction'!C223),9))","v":0.99994369599999999},{"$f":"VALUE(FIXED(EXP(D$4*-1*'PM2.5 reduction'!D223),9))","v":0.99996234399999995},{"$f":"VALUE(FIXED(EXP(E$4*-1*'PM2.5 reduction'!E223),9))","v":0.99998785099999998},{"$f":"VALUE(FIXED(EXP(F$4*-1*'PM2.5 reduction'!F223),9))","v":0.99998562499999999},{"$f":"VALUE(FIXED(EXP(G$4*-1*'PM2.5 reduction'!G223),9))","v":0.99998919399999997},{"$f":"VALUE(FIXED(EXP(H$4*-1*'PM2.5 reduction'!H223),9))","v":0.99997728500000005},{"$f":"VALUE(FIXED(EXP(I$4*-1*'PM2.5 reduction'!I223),9))","v":0.99999163999999996},{"$f":"VALUE(FIXED(EXP(J$4*-1*'PM2.5 reduction'!J223),9))","v":0.99997875800000002},{"$f":"VALUE(FIXED(EXP(K$4*-1*'PM2.5 reduction'!K223),9))","v":0.99997636300000003},{"$f":"VALUE(FIXED(EXP(L$4*-1*'PM2.5 reduction'!L223),9))","v":0.99998609699999996},{"$f":"VALUE(FIXED(EXP(M$4*-1*'PM2.5 reduction'!M223),9))","v":0.99998609699999996},{"$f":"VALUE(FIXED(EXP(N$4*-1*'PM2.5 reduction'!N223),9))","v":0.99996179600000001},{"$f":"VALUE(FIXED(EXP(O$4*-1*'PM2.5 reduction'!O223),9))","v":0.99997433999999996},{"$f":"VALUE(FIXED(EXP(P$4*-1*'PM2.5 reduction'!P223),9))","v":0.99995403599999999},{"$f":"VALUE(FIXED(EXP(Q$4*-1*'PM2.5 reduction'!Q223),9))","v":0.99998453899999995},{"$f":"VALUE(FIXED(EXP(R$4*-1*'PM2.5 reduction'!R223),9))","v":0.99995292999999996},{"$f":"VALUE(FIXED(EXP(S$4*-1*'PM2.5 reduction'!S223),9))","v":0.99994619900000004},{"$f":"VALUE(FIXED(EXP(T$4*-1*'PM2.5 reduction'!T223),9))","v":0.99992848300000003},{"$f":"VALUE(FIXED(EXP(U$4*-1*'PM2.5 reduction'!U223),9))","v":1},{"$f":"VALUE(FIXED(EXP(V$4*-1*'PM2.5 reduction'!V223),9))","v":0.99996432199999996},{"$f":"VALUE(FIXED(EXP(W$4*-1*'PM2.5 reduction'!W223),9))","v":0.99997365400000005},{"$f":"VALUE(FIXED(EXP(X$4*-1*'PM2.5 reduction'!X223),9))","v":0.99997365400000005},{"$f":"VALUE(FIXED(EXP(Y$4*-1*'PM2.5 reduction'!Y223),9))","v":0.99997093699999995},{"$f":"VALUE(FIXED(EXP(Z$4*-1*'PM2.5 reduction'!Z223),9))","v":0.99993225900000005},{"$f":"VALUE(FIXED(EXP(AA$4*-1*'PM2.5 reduction'!AA223),9))","v":0.99995370800000005},{"$f":"VALUE(FIXED(EXP(AB$4*-1*'PM2.5 reduction'!AB223),9))","v":0.99996360200000001},{"$f":"VALUE(FIXED(EXP(AC$4*-1*'PM2.5 reduction'!AC223),9))","v":0.99995013300000002},{"$f":"VALUE(FIXED(EXP(AD$4*-1*'PM2.5 reduction'!AD223),9))","v":0.99998424799999996},{"$f":"VALUE(FIXED(EXP(AE$4*-1*'PM2.5 reduction'!AE223),9))","v":0.99998261499999996},{"$f":"VALUE(FIXED(EXP(AF$4*-1*'PM2.5 reduction'!AF223),9))","v":0.99997907100000005},{"$f":"VALUE(FIXED(EXP(AG$4*-1*'PM2.5 reduction'!AG223),9))","v":0.99998261499999996},{"$f":"VALUE(FIXED(EXP(AH$4*-1*'PM2.5 reduction'!AH223),9))","v":0.99996374700000001},{"$f":"VALUE(FIXED(EXP(AI$4*-1*'PM2.5 reduction'!AI223),9))","v":0.99993889400000002},{"$f":"VALUE(FIXED(EXP(AJ$4*-1*'PM2.5 reduction'!AJ223),9))","v":0.99997161800000001},{"$f":"VALUE(FIXED(EXP(AK$4*-1*'PM2.5 reduction'!AK223),9))","v":0.99998725499999996},{"$f":"VALUE(FIXED(EXP(AL$4*-1*'PM2.5 reduction'!AL223),9))","v":0.99998355699999997},{"$f":"VALUE(FIXED(EXP(AM$4*-1*'PM2.5 reduction'!AM223),9))","v":0.99996016700000001},{"$f":"VALUE(FIXED(EXP(AN$4*-1*'PM2.5 reduction'!AN223),9))","v":1},{"$f":"VALUE(FIXED(EXP(AO$4*-1*'PM2.5 reduction'!AO223),9))","v":1},{"$f":"VALUE(FIXED(EXP(AP$4*-1*'PM2.5 reduction'!AP223),9))","v":0.999982441},{"$f":"VALUE(FIXED(EXP(AQ$4*-1*'PM2.5 reduction'!AQ223),9))","v":0.99996612799999995},{"$f":"VALUE(FIXED(EXP(AR$4*-1*'PM2.5 reduction'!AR223),9))","v":0.99995739299999997},{"$f":"VALUE(FIXED(EXP(AS$4*-1*'PM2.5 reduction'!AS223),9))","v":0.99999163999999996},{"$f":"VALUE(FIXED(EXP(AT$4*-1*'PM2.5 reduction'!AT223),9))","v":1},{"$f":"VALUE(FIXED(EXP(AU$4*-1*'PM2.5 reduction'!AU223),9))","v":1},{"$f":"VALUE(FIXED(EXP(AV$4*-1*'PM2.5 reduction'!AV223),9))","v":0.99997687899999999},{"$f":"VALUE(FIXED(EXP(AW$4*-1*'PM2.5 reduction'!AW223),9))","v":0.99996637700000002},{"$f":"VALUE(FIXED(EXP(AX$4*-1*'PM2.5 reduction'!AX223),9))","v":0.99997915299999995},{"$f":"VALUE(FIXED(EXP(AY$4*-1*'PM2.5 reduction'!AY223),9))","v":0.99997466199999996},{"$f":"VALUE(FIXED(EXP(AZ$4*-1*'PM2.5 reduction'!AZ223),9))","v":0.99997547499999995},{"$f":"VALUE(FIXED(EXP(BA$4*-1*'PM2.5 reduction'!BA223),9))","v":0.99997592000000002},{"$f":"VALUE(FIXED(EXP(BB$4*-1*'PM2.5 reduction'!BB223),9))","v":0.99997334100000002},{"$f":"VALUE(FIXED(EXP(BC$4*-1*'PM2.5 reduction'!BC223),9))","v":1}]
[null,"Female 60-64",{"$f":"VALUE(FIXED(EXP(C$4*-1*'PM2.5 reduction'!C224),9))","v":0.99994407699999999},{"$f":"VALUE(FIXED(EXP(D$4*-1*'PM2.5 reduction'!D224),9))","v":0.99996396700000001},{"$f":"VALUE(FIXED(EXP(E$4*-1*'PM2.5 reduction'!E224),9))","v":0.99998770800000003},{"$f":"VALUE(FIXED(EXP(F$4*-1*'PM2.5 reduction'!F224),9))","v":0.99998619600000005},{"$f":"VALUE(FIXED(EXP(G$4*-1*'PM2.5 reduction'!G224),9))","v":0.99998915499999996},{"$f":"VALUE(FIXED(EXP(H$4*-1*'PM2.5 reduction'!H224),9))","v":0.99997745800000004},{"$f":"VALUE(FIXED(EXP(I$4*-1*'PM2.5 reduction'!I224),9))","v":0.99999143800000001},{"$f":"VALUE(FIXED(EXP(J$4*-1*'PM2.5 reduction'!J224),9))","v":0.99997818900000002},{"$f":"VALUE(FIXED(EXP(K$4*-1*'PM2.5 reduction'!K224),9))","v":0.99997739399999996},{"$f":"VALUE(FIXED(EXP(L$4*-1*'PM2.5 reduction'!L224),9))","v":0.99998629000000006},{"$f":"VALUE(FIXED(EXP(M$4*-1*'PM2.5 reduction'!M224),9))","v":0.99998629000000006},{"$f":"VALUE(FIXED(EXP(N$4*-1*'PM2.5 reduction'!N224),9))","v":0.999961761},{"$f":"VALUE(FIXED(EXP(O$4*-1*'PM2.5 reduction'!O224),9))","v":0.99997568299999995},{"$f":"VALUE(FIXED(EXP(P$4*-1*'PM2.5 reduction'!P224),9))","v":0.99995389700000004},{"$f":"VALUE(FIXED(EXP(Q$4*-1*'PM2.5 reduction'!Q224),9))","v":0.99998653400000004},{"$f":"VALUE(FIXED(EXP(R$4*-1*'PM2.5 reduction'!R224),9))","v":0.99995272000000002},{"$f":"VALUE(FIXED(EXP(S$4*-1*'PM2.5 reduction'!S224),9))","v":0.999947484},{"$f":"VALUE(FIXED(EXP(T$4*-1*'PM2.5 reduction'!T224),9))","v":0.99992919800000002},{"$f":"VALUE(FIXED(EXP(U$4*-1*'PM2.5 reduction'!U224),9))","v":1},{"$f":"VALUE(FIXED(EXP(V$4*-1*'PM2.5 reduction'!V224),9))","v":0.99996440399999997},{"$f":"VALUE(FIXED(EXP(W$4*-1*'PM2.5 reduction'!W224),9))","v":0.99997485900000005},{"$f":"VALUE(FIXED(EXP(X$4*-1*'PM2.5 reduction'!X224),9))","v":0.99997485900000005},{"$f":"VALUE(FIXED(EXP(Y$4*-1*'PM2.5 reduction'!Y224),9))","v":0.99997105100000006},{"$f":"VALUE(FIXED(EXP(Z$4*-1*'PM2.5 reduction'!Z224),9))","v":0.99993156999999999},{"$f":"VALUE(FIXED(EXP(AA$4*-1*'PM2.5 reduction'!AA224),9))","v":0.99995325000000002},{"$f":"VALUE(FIXED(EXP(AB$4*-1*'PM2.5 reduction'!AB224),9))","v":0.99996557500000005},{"$f":"VALUE(FIXED(EXP(AC$4*-1*'PM2.5 reduction'!AC224),9))","v":0.99994972900000001},{"$f":"VALUE(FIXED(EXP(AD$4*-1*'PM2.5 reduction'!AD224),9))","v":0.99998424900000005},{"$f":"VALUE(FIXED(EXP(AE$4*-1*'PM2.5 reduction'!AE224),9))","v":0.99998287200000002},{"$f":"VALUE(FIXED(EXP(AF$4*-1*'PM2.5 reduction'!AF224),9))","v":0.99997908300000005},{"$f":"VALUE(FIXED(EXP(AG$4*-1*'PM2.5 reduction'!AG224),9))","v":0.99998287200000002},{"$f":"VALUE(FIXED(EXP(AH$4*-1*'PM2.5 reduction'!AH224),9))","v":0.99996365499999995},{"$f":"VALUE(FIXED(EXP(AI$4*-1*'PM2.5 reduction'!AI224),9))","v":0.99993973599999997},{"$f":"VALUE(FIXED(EXP(AJ$4*-1*'PM2.5 reduction'!AJ224),9))","v":0.99997192899999998},{"$f":"VALUE(FIXED(EXP(AK$4*-1*'PM2.5 reduction'!AK224),9))","v":0.99998800399999999},{"$f":"VALUE(FIXED(EXP(AL$4*-1*'PM2.5 reduction'!AL224),9))","v":0.99998368299999996},{"$f":"VALUE(FIXED(EXP(AM$4*-1*'PM2.5 reduction'!AM224),9))","v":0.99995996700000001},{"$f":"VALUE(FIXED(EXP(AN$4*-1*'PM2.5 reduction'!AN224),9))","v":1},{"$f":"VALUE(FIXED(EXP(AO$4*-1*'PM2.5 reduction'!AO224),9))","v":1},{"$f":"VALUE(FIXED(EXP(AP$4*-1*'PM2.5 reduction'!AP224),9))","v":0.99998323600000005},{"$f":"VALUE(FIXED(EXP(AQ$4*-1*'PM2.5 reduction'!AQ224),9))","v":0.99996552699999997},{"$f":"VALUE(FIXED(EXP(AR$4*-1*'PM2.5 reduction'!AR224),9))","v":0.99995810699999998},{"$f":"VALUE(FIXED(EXP(AS$4*-1*'PM2.5 reduction'!AS224),9))","v":0.99999143800000001},{"$f":"VALUE(FIXED(EXP(AT$4*-1*'PM2.5 reduction'!AT224),9))","v":1},{"$f":"VALUE(FIXED(EXP(AU$4*-1*'PM2.5 reduction'!AU224),9))","v":1},{"$f":"VALUE(FIXED(EXP(AV$4*-1*'PM2.5 reduction'!AV224),9))","v":0.999976478},{"$f":"VALUE(FIXED(EXP(AW$4*-1*'PM2.5 reduction'!AW224),9))","v":0.99996602700000004},{"$f":"VALUE(FIXED(EXP(AX$4*-1*'PM2.5 reduction'!AX224),9))","v":0.99997835199999996},{"$f":"VALUE(FIXED(EXP(AY$4*-1*'PM2.5 reduction'!AY224),9))","v":0.99997613299999999},{"$f":"VALUE(FIXED(EXP(AZ$4*-1*'PM2.5 reduction'!AZ224),9))","v":0.99997720300000004},{"$f":"VALUE(FIXED(EXP(BA$4*-1*'PM2.5 reduction'!BA224),9))","v":0.99997538900000005},{"$f":"VALUE(FIXED(EXP(BB$4*-1*'PM2.5 reduction'!BB224),9))","v":0.99997425799999995},{"$f":"VALUE(FIXED(EXP(BC$4*-1*'PM2.5 reduction'!BC224),9))","v":1}]
[null,"Female 65-69",{"$f":"VALUE(FIXED(EXP(C$4*-1*'PM2.5 reduction'!C225),9))","v":0.999943739},{"$f":"VALUE(FIXED(EXP(D$4*-1*'PM2.5 reduction'!D225),9))","v":0.99996291699999995},{"$f":"VALUE(FIXED(EXP(E$4*-1*'PM2.5 reduction'!E225),9))","v":0.99998756300000002},{"$f":"VALUE(FIXED(EXP(F$4*-1*'PM2.5 reduction'!F225),9))","v":0.99998467899999999},{"$f":"VALUE(FIXED(EXP(G$4*-1*'PM2.5 reduction'!G225),9))","v":0.999989134},{"$f":"VALUE(FIXED(EXP(H$4*-1*'PM2.5 reduction'!H225),9))","v":0.99997765800000005},{"$f":"VALUE(FIXED(EXP(I$4*-1*'PM2.5 reduction'!I225),9))","v":0.99999149799999998},{"$f":"VALUE(FIXED(EXP(J$4*-1*'PM2.5 reduction'!J225),9))","v":0.99997866400000002},{"$f":"VALUE(FIXED(EXP(K$4*-1*'PM2.5 reduction'!K225),9))","v":0.99997914700000001},{"$f":"VALUE(FIXED(EXP(L$4*-1*'PM2.5 reduction'!L225),9))","v":0.99998665399999997},{"$f":"VALUE(FIXED(EXP(M$4*-1*'PM2.5 reduction'!M225),9))","v":0.99998665399999997},{"$f":"VALUE(FIXED(EXP(N$4*-1*'PM2.5 reduction'!N225),9))","v":0.99996162200000005},{"$f":"VALUE(FIXED(EXP(O$4*-1*'PM2.5 reduction'!O225),9))","v":0.99997639800000004},{"$f":"VALUE(FIXED(EXP(P$4*-1*'PM2.5 reduction'!P225),9))","v":0.99995384499999995},{"$f":"VALUE(FIXED(EXP(Q$4*-1*'PM2.5 reduction'!Q225),9))","v":0.99998691699999998},{"$f":"VALUE(FIXED(EXP(R$4*-1*'PM2.5 reduction'!R225),9))","v":0.99995267600000004},{"$f":"VALUE(FIXED(EXP(S$4*-1*'PM2.5 reduction'!S225),9))","v":0.99994820600000001},{"$f":"VALUE(FIXED(EXP(T$4*-1*'PM2.5 reduction'!T225),9))","v":0.99993043299999995},{"$f":"VALUE(FIXED(EXP(U$4*-1*'PM2.5 reduction'!U225),9))","v":1},{"$f":"VALUE(FIXED(EXP(V$4*-1*'PM2.5 reduction'!V225),9))","v":0.99996334499999995},{"$f":"VALUE(FIXED(EXP(W$4*-1*'PM2.5 reduction'!W225),9))","v":0.99997464800000002},{"$f":"VALUE(FIXED(EXP(X$4*-1*'PM2.5 reduction'!X225),9))","v":0.99997464800000002},{"$f":"VALUE(FIXED(EXP(Y$4*-1*'PM2.5 reduction'!Y225),9))","v":0.99997115400000003},{"$f":"VALUE(FIXED(EXP(Z$4*-1*'PM2.5 reduction'!Z225),9))","v":0.99993087400000003},{"$f":"VALUE(FIXED(EXP(AA$4*-1*'PM2.5 reduction'!AA225),9))","v":0.99995373799999998},{"$f":"VALUE(FIXED(EXP(AB$4*-1*'PM2.5 reduction'!AB225),9))","v":0.99996480700000001},{"$f":"VALUE(FIXED(EXP(AC$4*-1*'PM2.5 reduction'!AC225),9))","v":0.99995033600000005},{"$f":"VALUE(FIXED(EXP(AD$4*-1*'PM2.5 reduction'!AD225),9))","v":0.99998446500000004},{"$f":"VALUE(FIXED(EXP(AE$4*-1*'PM2.5 reduction'!AE225),9))","v":0.99998261799999999},{"$f":"VALUE(FIXED(EXP(AF$4*-1*'PM2.5 reduction'!AF225),9))","v":0.999981126},{"$f":"VALUE(FIXED(EXP(AG$4*-1*'PM2.5 reduction'!AG225),9))","v":0.99998261799999999},{"$f":"VALUE(FIXED(EXP(AH$4*-1*'PM2.5 reduction'!AH225),9))","v":0.99996416700000001},{"$f":"VALUE(FIXED(EXP(AI$4*-1*'PM2.5 reduction'!AI225),9))","v":0.99993998900000003},{"$f":"VALUE(FIXED(EXP(AJ$4*-1*'PM2.5 reduction'!AJ225),9))","v":0.99997221199999997},{"$f":"VALUE(FIXED(EXP(AK$4*-1*'PM2.5 reduction'!AK225),9))","v":0.999987352},{"$f":"VALUE(FIXED(EXP(AL$4*-1*'PM2.5 reduction'!AL225),9))","v":0.99998380799999997},{"$f":"VALUE(FIXED(EXP(AM$4*-1*'PM2.5 reduction'!AM225),9))","v":0.99996009799999996},{"$f":"VALUE(FIXED(EXP(AN$4*-1*'PM2.5 reduction'!AN225),9))","v":1},{"$f":"VALUE(FIXED(EXP(AO$4*-1*'PM2.5 reduction'!AO225),9))","v":1},{"$f":"VALUE(FIXED(EXP(AP$4*-1*'PM2.5 reduction'!AP225),9))","v":0.99998416099999998},{"$f":"VALUE(FIXED(EXP(AQ$4*-1*'PM2.5 reduction'!AQ225),9))","v":0.99996621200000002},{"$f":"VALUE(FIXED(EXP(AR$4*-1*'PM2.5 reduction'!AR225),9))","v":0.99995869400000004},{"$f":"VALUE(FIXED(EXP(AS$4*-1*'PM2.5 reduction'!AS225),9))","v":0.99999149799999998},{"$f":"VALUE(FIXED(EXP(AT$4*-1*'PM2.5 reduction'!AT225),9))","v":1},{"$f":"VALUE(FIXED(EXP(AU$4*-1*'PM2.5 reduction'!AU225),9))","v":1},{"$f":"VALUE(FIXED(EXP(AV$4*-1*'PM2.5 reduction'!AV225),9))","v":0.99997675600000002},{"$f":"VALUE(FIXED(EXP(AW$4*-1*'PM2.5 reduction'!AW225),9))","v":0.99996683200000003},{"$f":"VALUE(FIXED(EXP(AX$4*-1*'PM2.5 reduction'!AX225),9))","v":0.99997856299999999},{"$f":"VALUE(FIXED(EXP(AY$4*-1*'PM2.5 reduction'!AY225),9))","v":0.999976168},{"$f":"VALUE(FIXED(EXP(AZ$4*-1*'PM2.5 reduction'!AZ225),9))","v":0.99997737499999995},{"$f":"VALUE(FIXED(EXP(BA$4*-1*'PM2.5 reduction'!BA225),9))","v":0.99997524299999996},{"$f":"VALUE(FIXED(EXP(BB$4*-1*'PM2.5 reduction'!BB225),9))","v":0.99997518200000002},{"$f":"VALUE(FIXED(EXP(BC$4*-1*'PM2.5 reduction'!BC225),9))","v":1}]
[null,"Female 70-74",{"$f":"VALUE(FIXED(EXP(C$4*-1*'PM2.5 reduction'!C226),9))","v":0.99994360699999996},{"$f":"VALUE(FIXED(EXP(D$4*-1*'PM2.5 reduction'!D226),9))","v":0.99996307100000004},{"$f":"VALUE(FIXED(EXP(E$4*-1*'PM2.5 reduction'!E226),9))","v":0.99998801299999995},{"$f":"VALUE(FIXED(EXP(F$4*-1*'PM2.5 reduction'!F226),9))","v":0.99998457699999999},{"$f":"VALUE(FIXED(EXP(G$4*-1*'PM2.5 reduction'!G226),9))","v":0.99998912600000001},{"$f":"VALUE(FIXED(EXP(H$4*-1*'PM2.5 reduction'!H226),9))","v":0.99997787699999996},{"$f":"VALUE(FIXED(EXP(I$4*-1*'PM2.5 reduction'!I226),9))","v":0.99999154800000001},{"$f":"VALUE(FIXED(EXP(J$4*-1*'PM2.5 reduction'!J226),9))","v":0.99997734100000002},{"$f":"VALUE(FIXED(EXP(K$4*-1*'PM2.5 reduction'!K226),9))","v":0.99997760800000002},{"$f":"VALUE(FIXED(EXP(L$4*-1*'PM2.5 reduction'!L226),9))","v":0.99998665099999995},{"$f":"VALUE(FIXED(EXP(M$4*-1*'PM2.5 reduction'!M226),9))","v":0.99998665099999995},{"$f":"VALUE(FIXED(EXP(N$4*-1*'PM2.5 reduction'!N226),9))","v":0.99996200999999996},{"$f":"VALUE(FIXED(EXP(O$4*-1*'PM2.5 reduction'!O226),9))","v":0.99997599999999998},{"$f":"VALUE(FIXED(EXP(P$4*-1*'PM2.5 reduction'!P226),9))","v":0.99995339000000005},{"$f":"VALUE(FIXED(EXP(Q$4*-1*'PM2.5 reduction'!Q226),9))","v":0.99998934399999995},{"$f":"VALUE(FIXED(EXP(R$4*-1*'PM2.5 reduction'!R226),9))","v":0.99995265700000002},{"$f":"VALUE(FIXED(EXP(S$4*-1*'PM2.5 reduction'!S226),9))","v":0.99994866500000001},{"$f":"VALUE(FIXED(EXP(T$4*-1*'PM2.5 reduction'!T226),9))","v":0.99993068600000001},{"$f":"VALUE(FIXED(EXP(U$4*-1*'PM2.5 reduction'!U226),9))","v":1},{"$f":"VALUE(FIXED(EXP(V$4*-1*'PM2.5 reduction'!V226),9))","v":0.99996162200000005},{"$f":"VALUE(FIXED(EXP(W$4*-1*'PM2.5 reduction'!W226),9))","v":0.999974904},{"$f":"VALUE(FIXED(EXP(X$4*-1*'PM2.5 reduction'!X226),9))","v":0.999974904},{"$f":"VALUE(FIXED(EXP(Y$4*-1*'PM2.5 reduction'!Y226),9))","v":0.99997003900000003},{"$f":"VALUE(FIXED(EXP(Z$4*-1*'PM2.5 reduction'!Z226),9))","v":0.99993214699999999},{"$f":"VALUE(FIXED(EXP(AA$4*-1*'PM2.5 reduction'!AA226),9))","v":0.99995440899999999},{"$f":"VALUE(FIXED(EXP(AB$4*-1*'PM2.5 reduction'!AB226),9))","v":0.99996519100000003},{"$f":"VALUE(FIXED(EXP(AC$4*-1*'PM2.5 reduction'!AC226),9))","v":0.99995133800000002},{"$f":"VALUE(FIXED(EXP(AD$4*-1*'PM2.5 reduction'!AD226),9))","v":0.99998440099999997},{"$f":"VALUE(FIXED(EXP(AE$4*-1*'PM2.5 reduction'!AE226),9))","v":0.9999825},{"$f":"VALUE(FIXED(EXP(AF$4*-1*'PM2.5 reduction'!AF226),9))","v":0.99998064200000003},{"$f":"VALUE(FIXED(EXP(AG$4*-1*'PM2.5 reduction'!AG226),9))","v":0.9999825},{"$f":"VALUE(FIXED(EXP(AH$4*-1*'PM2.5 reduction'!AH226),9))","v":0.99996406000000004},{"$f":"VALUE(FIXED(EXP(AI$4*-1*'PM2.5 reduction'!AI226),9))","v":0.99994065399999998},{"$f":"VALUE(FIXED(EXP(AJ$4*-1*'PM2.5 reduction'!AJ226),9))","v":0.99997219599999998},{"$f":"VALUE(FIXED(EXP(AK$4*-1*'PM2.5 reduction'!AK226),9))","v":0.99998768599999999},{"$f":"VALUE(FIXED(EXP(AL$4*-1*'PM2.5 reduction'!AL226),9))","v":0.99998443999999997},{"$f":"VALUE(FIXED(EXP(AM$4*-1*'PM2.5 reduction'!AM226),9))","v":0.99996011900000004},{"$f":"VALUE(FIXED(EXP(AN$4*-1*'PM2.5 reduction'!AN226),9))","v":1},{"$f":"VALUE(FIXED(EXP(AO$4*-1*'PM2.5 reduction'!AO226),9))","v":1},{"$f":"VALUE(FIXED(EXP(AP$4*-1*'PM2.5 reduction'!AP226),9))","v":0.99998417500000003},{"$f":"VALUE(FIXED(EXP(AQ$4*-1*'PM2.5 reduction'!AQ226),9))","v":0.99996542700000002},{"$f":"VALUE(FIXED(EXP(AR$4*-1*'PM2.5 reduction'!AR226),9))","v":0.99995917499999998},{"$f":"VALUE(FIXED(EXP(AS$4*-1*'PM2.5 reduction'!AS226),9))","v":0.99999154800000001},{"$f":"VALUE(FIXED(EXP(AT$4*-1*'PM2.5 reduction'!AT226),9))","v":1},{"$f":"VALUE(FIXED(EXP(AU$4*-1*'PM2.5 reduction'!AU226),9))","v":1},{"$f":"VALUE(FIXED(EXP(AV$4*-1*'PM2.5 reduction'!AV226),9))","v":0.99997704700000001},{"$f":"VALUE(FIXED(EXP(AW$4*-1*'PM2.5 reduction'!AW226),9))","v":0.99996632399999996},{"$f":"VALUE(FIXED(EXP(AX$4*-1*'PM2.5 reduction'!AX226),9))","v":0.99997729800000001},{"$f":"VALUE(FIXED(EXP(AY$4*-1*'PM2.5 reduction'!AY226),9))","v":0.999976266},{"$f":"VALUE(FIXED(EXP(AZ$4*-1*'PM2.5 reduction'!AZ226),9))","v":0.99997727300000006},{"$f":"VALUE(FIXED(EXP(BA$4*-1*'PM2.5 reduction'!BA226),9))","v":0.99997411000000003},{"$f":"VALUE(FIXED(EXP(BB$4*-1*'PM2.5 reduction'!BB226),9))","v":0.99997584900000003},{"$f":"VALUE(FIXED(EXP(BC$4*-1*'PM2.5 reduction'!BC226),9))","v":1}]
[null,"Female 75-79",{"$f":"VALUE(FIXED(EXP(C$4*-1*'PM2.5 reduction'!C227),9))","v":0.999944269},{"$f":"VALUE(FIXED(EXP(D$4*-1*'PM2.5 reduction'!D227),9))","v":0.99996291000000004},{"$f":"VALUE(FIXED(EXP(E$4*-1*'PM2.5 reduction'!E227),9))","v":0.99998781999999997},{"$f":"VALUE(FIXED(EXP(F$4*-1*'PM2.5 reduction'!F227),9))","v":0.99998463400000004},{"$f":"VALUE(FIXED(EXP(G$4*-1*'PM2.5 reduction'!G227),9))","v":0.99998940400000003},{"$f":"VALUE(FIXED(EXP(H$4*-1*'PM2.5 reduction'!H227),9))","v":0.99997779600000003},{"$f":"VALUE(FIXED(EXP(I$4*-1*'PM2.5 reduction'!I227),9))","v":0.99999144600000001},{"$f":"VALUE(FIXED(EXP(J$4*-1*'PM2.5 reduction'!J227),9))","v":0.99997808399999999},{"$f":"VALUE(FIXED(EXP(K$4*-1*'PM2.5 reduction'!K227),9))","v":0.99997925899999995},{"$f":"VALUE(FIXED(EXP(L$4*-1*'PM2.5 reduction'!L227),9))","v":0.999986657},{"$f":"VALUE(FIXED(EXP(M$4*-1*'PM2.5 reduction'!M227),9))","v":0.999986657},{"$f":"VALUE(FIXED(EXP(N$4*-1*'PM2.5 reduction'!N227),9))","v":0.99996169099999999},{"$f":"VALUE(FIXED(EXP(O$4*-1*'PM2.5 reduction'!O227),9))","v":0.99997565499999996},{"$f":"VALUE(FIXED(EXP(P$4*-1*'PM2.5 reduction'!P227),9))","v":0.99995280799999997},{"$f":"VALUE(FIXED(EXP(Q$4*-1*'PM2.5 reduction'!Q227),9))","v":0.99998949999999998},{"$f":"VALUE(FIXED(EXP(R$4*-1*'PM2.5 reduction'!R227),9))","v":0.99995210300000004},{"$f":"VALUE(FIXED(EXP(S$4*-1*'PM2.5 reduction'!S227),9))","v":0.99994770099999997},{"$f":"VALUE(FIXED(EXP(T$4*-1*'PM2.5 reduction'!T227),9))","v":0.99993072900000002},{"$f":"VALUE(FIXED(EXP(U$4*-1*'PM2.5 reduction'!U227),9))","v":1},{"$f":"VALUE(FIXED(EXP(V$4*-1*'PM2.5 reduction'!V227),9))","v":0.99996129499999997},{"$f":"VALUE(FIXED(EXP(W$4*-1*'PM2.5 reduction'!W227),9))","v":0.99997589499999995},{"$f":"VALUE(FIXED(EXP(X$4*-1*'PM2.5 reduction'!X227),9))","v":0.99997589499999995},{"$f":"VALUE(FIXED(EXP(Y$4*-1*'PM2.5 reduction'!Y227),9))","v":0.99997080900000002},{"$f":"VALUE(FIXED(EXP(Z$4*-1*'PM2.5 reduction'!Z227),9))","v":0.99993283600000005},{"$f":"VALUE(FIXED(EXP(AA$4*-1*'PM2.5 reduction'!AA227),9))","v":0.999953384},{"$f":"VALUE(FIXED(EXP(AB$4*-1*'PM2.5 reduction'!AB227),9))","v":0.99996487899999997},{"$f":"VALUE(FIXED(EXP(AC$4*-1*'PM2.5 reduction'!AC227),9))","v":0.99995040899999998},{"$f":"VALUE(FIXED(EXP(AD$4*-1*'PM2.5 reduction'!AD227),9))","v":0.99998315599999998},{"$f":"VALUE(FIXED(EXP(AE$4*-1*'PM2.5 reduction'!AE227),9))","v":0.99998120400000001},{"$f":"VALUE(FIXED(EXP(AF$4*-1*'PM2.5 reduction'!AF227),9))","v":0.99998162199999996},{"$f":"VALUE(FIXED(EXP(AG$4*-1*'PM2.5 reduction'!AG227),9))","v":0.99998120400000001},{"$f":"VALUE(FIXED(EXP(AH$4*-1*'PM2.5 reduction'!AH227),9))","v":0.99996369699999998},{"$f":"VALUE(FIXED(EXP(AI$4*-1*'PM2.5 reduction'!AI227),9))","v":0.99993973000000003},{"$f":"VALUE(FIXED(EXP(AJ$4*-1*'PM2.5 reduction'!AJ227),9))","v":0.99997515800000003},{"$f":"VALUE(FIXED(EXP(AK$4*-1*'PM2.5 reduction'!AK227),9))","v":0.99998947000000005},{"$f":"VALUE(FIXED(EXP(AL$4*-1*'PM2.5 reduction'!AL227),9))","v":0.99998451799999999},{"$f":"VALUE(FIXED(EXP(AM$4*-1*'PM2.5 reduction'!AM227),9))","v":0.99995943700000001},{"$f":"VALUE(FIXED(EXP(AN$4*-1*'PM2.5 reduction'!AN227),9))","v":1},{"$f":"VALUE(FIXED(EXP(AO$4*-1*'PM2.5 reduction'!AO227),9))","v":1},{"$f":"VALUE(FIXED(EXP(AP$4*-1*'PM2.5 reduction'!AP227),9))","v":0.99998414999999996},{"$f":"VALUE(FIXED(EXP(AQ$4*-1*'PM2.5 reduction'!AQ227),9))","v":0.99996454199999996},{"$f":"VALUE(FIXED(EXP(AR$4*-1*'PM2.5 reduction'!AR227),9))","v":0.99995840199999997},{"$f":"VALUE(FIXED(EXP(AS$4*-1*'PM2.5 reduction'!AS227),9))","v":0.99999144600000001},{"$f":"VALUE(FIXED(EXP(AT$4*-1*'PM2.5 reduction'!AT227),9))","v":1},{"$f":"VALUE(FIXED(EXP(AU$4*-1*'PM2.5 reduction'!AU227),9))","v":1},{"$f":"VALUE(FIXED(EXP(AV$4*-1*'PM2.5 reduction'!AV227),9))","v":0.99997723500000002},{"$f":"VALUE(FIXED(EXP(AW$4*-1*'PM2.5 reduction'!AW227),9))","v":0.99996615300000002},{"$f":"VALUE(FIXED(EXP(AX$4*-1*'PM2.5 reduction'!AX227),9))","v":0.99997793000000001},{"$f":"VALUE(FIXED(EXP(AY$4*-1*'PM2.5 reduction'!AY227),9))","v":0.99997669199999994},{"$f":"VALUE(FIXED(EXP(AZ$4*-1*'PM2.5 reduction'!AZ227),9))","v":0.99997720899999998},{"$f":"VALUE(FIXED(EXP(BA$4*-1*'PM2.5 reduction'!BA227),9))","v":0.99997054799999996},{"$f":"VALUE(FIXED(EXP(BB$4*-1*'PM2.5 reduction'!BB227),9))","v":0.99997537199999997},{"$f":"VALUE(FIXED(EXP(BC$4*-1*'PM2.5 reduction'!BC227),9))","v":1}]
[null,"Female 80-84",{"$f":"VALUE(FIXED(EXP(C$4*-1*'PM2.5 reduction'!C228),9))","v":0.99994175299999999},{"$f":"VALUE(FIXED(EXP(D$4*-1*'PM2.5 reduction'!D228),9))","v":0.99996007099999995},{"$f":"VALUE(FIXED(EXP(E$4*-1*'PM2.5 reduction'!E228),9))","v":0.99998750199999997},{"$f":"VALUE(FIXED(EXP(F$4*-1*'PM2.5 reduction'!F228),9))","v":0.99998472900000002},{"$f":"VALUE(FIXED(EXP(G$4*-1*'PM2.5 reduction'!G228),9))","v":0.99998905699999996},{"$f":"VALUE(FIXED(EXP(H$4*-1*'PM2.5 reduction'!H228),9))","v":0.99997732699999997},{"$f":"VALUE(FIXED(EXP(I$4*-1*'PM2.5 reduction'!I228),9))","v":0.99999144299999998},{"$f":"VALUE(FIXED(EXP(J$4*-1*'PM2.5 reduction'!J228),9))","v":0.99997371700000004},{"$f":"VALUE(FIXED(EXP(K$4*-1*'PM2.5 reduction'!K228),9))","v":0.99997431699999995},{"$f":"VALUE(FIXED(EXP(L$4*-1*'PM2.5 reduction'!L228),9))","v":0.99998707600000003},{"$f":"VALUE(FIXED(EXP(M$4*-1*'PM2.5 reduction'!M228),9))","v":0.99998707600000003},{"$f":"VALUE(FIXED(EXP(N$4*-1*'PM2.5 reduction'!N228),9))","v":0.99996088000000005},{"$f":"VALUE(FIXED(EXP(O$4*-1*'PM2.5 reduction'!O228),9))","v":0.99997560699999999},{"$f":"VALUE(FIXED(EXP(P$4*-1*'PM2.5 reduction'!P228),9))","v":0.99995268400000004},{"$f":"VALUE(FIXED(EXP(Q$4*-1*'PM2.5 reduction'!Q228),9))","v":0.99999044199999998},{"$f":"VALUE(FIXED(EXP(R$4*-1*'PM2.5 reduction'!R228),9))","v":0.99995107000000005},{"$f":"VALUE(FIXED(EXP(S$4*-1*'PM2.5 reduction'!S228),9))","v":0.99994622799999999},{"$f":"VALUE(FIXED(EXP(T$4*-1*'PM2.5 reduction'!T228),9))","v":0.99993178599999999},{"$f":"VALUE(FIXED(EXP(U$4*-1*'PM2.5 reduction'!U228),9))","v":1},{"$f":"VALUE(FIXED(EXP(V$4*-1*'PM2.5 reduction'!V228),9))","v":0.99995795099999996},{"$f":"VALUE(FIXED(EXP(W$4*-1*'PM2.5 reduction'!W228),9))","v":0.99997660200000005},{"$f":"VALUE(FIXED(EXP(X$4*-1*'PM2.5 reduction'!X228),9))","v":0.99997660200000005},{"$f":"VALUE(FIXED(EXP(Y$4*-1*'PM2.5 reduction'!Y228),9))","v":0.99996690700000002},{"$f":"VALUE(FIXED(EXP(Z$4*-1*'PM2.5 reduction'!Z228),9))","v":0.99993156299999997},{"$f":"VALUE(FIXED(EXP(AA$4*-1*'PM2.5 reduction'!AA228),9))","v":0.99995209500000004},{"$f":"VALUE(FIXED(EXP(AB$4*-1*'PM2.5 reduction'!AB228),9))","v":0.99996216400000004},{"$f":"VALUE(FIXED(EXP(AC$4*-1*'PM2.5 reduction'!AC228),9))","v":0.99994897199999999},{"$f":"VALUE(FIXED(EXP(AD$4*-1*'PM2.5 reduction'!AD228),9))","v":0.99998374099999998},{"$f":"VALUE(FIXED(EXP(AE$4*-1*'PM2.5 reduction'!AE228),9))","v":0.99998224999999996},{"$f":"VALUE(FIXED(EXP(AF$4*-1*'PM2.5 reduction'!AF228),9))","v":0.99997956099999996},{"$f":"VALUE(FIXED(EXP(AG$4*-1*'PM2.5 reduction'!AG228),9))","v":0.99998224999999996},{"$f":"VALUE(FIXED(EXP(AH$4*-1*'PM2.5 reduction'!AH228),9))","v":0.99996371500000003},{"$f":"VALUE(FIXED(EXP(AI$4*-1*'PM2.5 reduction'!AI228),9))","v":0.99993890500000004},{"$f":"VALUE(FIXED(EXP(AJ$4*-1*'PM2.5 reduction'!AJ228),9))","v":0.99997129299999998},{"$f":"VALUE(FIXED(EXP(AK$4*-1*'PM2.5 reduction'!AK228),9))","v":0.99998975099999998},{"$f":"VALUE(FIXED(EXP(AL$4*-1*'PM2.5 reduction'!AL228),9))","v":0.99998495600000004},{"$f":"VALUE(FIXED(EXP(AM$4*-1*'PM2.5 reduction'!AM228),9))","v":0.99996049600000003},{"$f":"VALUE(FIXED(EXP(AN$4*-1*'PM2.5 reduction'!AN228),9))","v":1},{"$f":"VALUE(FIXED(EXP(AO$4*-1*'PM2.5 reduction'!AO228),9))","v":1},{"$f":"VALUE(FIXED(EXP(AP$4*-1*'PM2.5 reduction'!AP228),9))","v":0.99998432500000001},{"$f":"VALUE(FIXED(EXP(AQ$4*-1*'PM2.5 reduction'!AQ228),9))","v":0.99996336500000005},{"$f":"VALUE(FIXED(EXP(AR$4*-1*'PM2.5 reduction'!AR228),9))","v":0.99995692899999999},{"$f":"VALUE(FIXED(EXP(AS$4*-1*'PM2.5 reduction'!AS228),9))","v":0.99999144299999998},{"$f":"VALUE(FIXED(EXP(AT$4*-1*'PM2.5 reduction'!AT228),9))","v":1},{"$f":"VALUE(FIXED(EXP(AU$4*-1*'PM2.5 reduction'!AU228),9))","v":1},{"$f":"VALUE(FIXED(EXP(AV$4*-1*'PM2.5 reduction'!AV228),9))","v":0.99997609200000004},{"$f":"VALUE(FIXED(EXP(AW$4*-1*'PM2.5 reduction'!AW228),9))","v":0.99996534100000001},{"$f":"VALUE(FIXED(EXP(AX$4*-1*'PM2.5 reduction'!AX228),9))","v":0.99997365500000002},{"$f":"VALUE(FIXED(EXP(AY$4*-1*'PM2.5 reduction'!AY228),9))","v":0.99997698300000004},{"$f":"VALUE(FIXED(EXP(AZ$4*-1*'PM2.5 reduction'!AZ228),9))","v":0.99997720599999995},{"$f":"VALUE(FIXED(EXP(BA$4*-1*'PM2.5 reduction'!BA228),9))","v":0.99997467699999998},{"$f":"VALUE(FIXED(EXP(BB$4*-1*'PM2.5 reduction'!BB228),9))","v":0.99997623700000005},{"$f":"VALUE(FIXED(EXP(BC$4*-1*'PM2.5 reduction'!BC228),9))","v":1}]
[null,"Female 85-89",{"$f":"VALUE(FIXED(EXP(C$4*-1*'PM2.5 reduction'!C229),9))","v":0.99994303500000004},{"$f":"VALUE(FIXED(EXP(D$4*-1*'PM2.5 reduction'!D229),9))","v":0.99995941300000002},{"$f":"VALUE(FIXED(EXP(E$4*-1*'PM2.5 reduction'!E229),9))","v":0.99998880499999998},{"$f":"VALUE(FIXED(EXP(F$4*-1*'PM2.5 reduction'!F229),9))","v":0.99998403700000005},{"$f":"VALUE(FIXED(EXP(G$4*-1*'PM2.5 reduction'!G229),9))","v":0.999988828},{"$f":"VALUE(FIXED(EXP(H$4*-1*'PM2.5 reduction'!H229),9))","v":0.999976211},{"$f":"VALUE(FIXED(EXP(I$4*-1*'PM2.5 reduction'!I229),9))","v":0.99999137599999999},{"$f":"VALUE(FIXED(EXP(J$4*-1*'PM2.5 reduction'!J229),9))","v":0.99997017300000002},{"$f":"VALUE(FIXED(EXP(K$4*-1*'PM2.5 reduction'!K229),9))","v":0.99997531299999998},{"$f":"VALUE(FIXED(EXP(L$4*-1*'PM2.5 reduction'!L229),9))","v":0.99998662299999996},{"$f":"VALUE(FIXED(EXP(M$4*-1*'PM2.5 reduction'!M229),9))","v":0.99998662299999996},{"$f":"VALUE(FIXED(EXP(N$4*-1*'PM2.5 reduction'!N229),9))","v":0.99996191599999995},{"$f":"VALUE(FIXED(EXP(O$4*-1*'PM2.5 reduction'!O229),9))","v":0.99997196600000005},{"$f":"VALUE(FIXED(EXP(P$4*-1*'PM2.5 reduction'!P229),9))","v":0.99995257100000001},{"$f":"VALUE(FIXED(EXP(Q$4*-1*'PM2.5 reduction'!Q229),9))","v":0.99999035999999997},{"$f":"VALUE(FIXED(EXP(R$4*-1*'PM2.5 reduction'!R229),9))","v":0.99995046300000001},{"$f":"VALUE(FIXED(EXP(S$4*-1*'PM2.5 reduction'!S229),9))","v":0.999944265},{"$f":"VALUE(FIXED(EXP(T$4*-1*'PM2.5 reduction'!T229),9))","v":0.99993103299999997},{"$f":"VALUE(FIXED(EXP(U$4*-1*'PM2.5 reduction'!U229),9))","v":1},{"$f":"VALUE(FIXED(EXP(V$4*-1*'PM2.5 reduction'!V229),9))","v":0.99995999400000002},{"$f":"VALUE(FIXED(EXP(W$4*-1*'PM2.5 reduction'!W229),9))","v":0.99997780000000003},{"$f":"VALUE(FIXED(EXP(X$4*-1*'PM2.5 reduction'!X229),9))","v":0.99997780000000003},{"$f":"VALUE(FIXED(EXP(Y$4*-1*'PM2.5 reduction'!Y229),9))","v":0.99996585800000004},{"$f":"VALUE(FIXED(EXP(Z$4*-1*'PM2.5 reduction'!Z229),9))","v":0.99993258799999996},{"$f":"VALUE(FIXED(EXP(AA$4*-1*'PM2.5 reduction'!AA229),9))","v":0.99995095700000003},{"$f":"VALUE(FIXED(EXP(AB$4*-1*'PM2.5 reduction'!AB229),9))","v":0.99996149300000003},{"$f":"VALUE(FIXED(EXP(AC$4*-1*'PM2.5 reduction'!AC229),9))","v":0.999948587},{"$f":"VALUE(FIXED(EXP(AD$4*-1*'PM2.5 reduction'!AD229),9))","v":0.99998284500000001},{"$f":"VALUE(FIXED(EXP(AE$4*-1*'PM2.5 reduction'!AE229),9))","v":0.99998093300000002},{"$f":"VALUE(FIXED(EXP(AF$4*-1*'PM2.5 reduction'!AF229),9))","v":0.999983238},{"$f":"VALUE(FIXED(EXP(AG$4*-1*'PM2.5 reduction'!AG229),9))","v":0.99998093300000002},{"$f":"VALUE(FIXED(EXP(AH$4*-1*'PM2.5 reduction'!AH229),9))","v":0.99996245500000003},{"$f":"VALUE(FIXED(EXP(AI$4*-1*'PM2.5 reduction'!AI229),9))","v":0.99993759100000001},{"$f":"VALUE(FIXED(EXP(AJ$4*-1*'PM2.5 reduction'!AJ229),9))","v":0.99996397699999995},{"$f":"VALUE(FIXED(EXP(AK$4*-1*'PM2.5 reduction'!AK229),9))","v":0.99998801500000001},{"$f":"VALUE(FIXED(EXP(AL$4*-1*'PM2.5 reduction'!AL229),9))","v":0.99998682100000003},{"$f":"VALUE(FIXED(EXP(AM$4*-1*'PM2.5 reduction'!AM229),9))","v":0.99995815300000002},{"$f":"VALUE(FIXED(EXP(AN$4*-1*'PM2.5 reduction'!AN229),9))","v":1},{"$f":"VALUE(FIXED(EXP(AO$4*-1*'PM2.5 reduction'!AO229),9))","v":1},{"$f":"VALUE(FIXED(EXP(AP$4*-1*'PM2.5 reduction'!AP229),9))","v":0.99998304400000004},{"$f":"VALUE(FIXED(EXP(AQ$4*-1*'PM2.5 reduction'!AQ229),9))","v":0.99996274100000004},{"$f":"VALUE(FIXED(EXP(AR$4*-1*'PM2.5 reduction'!AR229),9))","v":0.99995497200000005},{"$f":"VALUE(FIXED(EXP(AS$4*-1*'PM2.5 reduction'!AS229),9))","v":0.99999137599999999},{"$f":"VALUE(FIXED(EXP(AT$4*-1*'PM2.5 reduction'!AT229),9))","v":1},{"$f":"VALUE(FIXED(EXP(AU$4*-1*'PM2.5 reduction'!AU229),9))","v":1},{"$f":"VALUE(FIXED(EXP(AV$4*-1*'PM2.5 reduction'!AV229),9))","v":0.99997600799999997},{"$f":"VALUE(FIXED(EXP(AW$4*-1*'PM2.5 reduction'!AW229),9))","v":0.99996424500000003},{"$f":"VALUE(FIXED(EXP(AX$4*-1*'PM2.5 reduction'!AX229),9))","v":0.99996971899999998},{"$f":"VALUE(FIXED(EXP(AY$4*-1*'PM2.5 reduction'!AY229),9))","v":0.99997697500000005},{"$f":"VALUE(FIXED(EXP(AZ$4*-1*'PM2.5 reduction'!AZ229),9))","v":0.99997647599999995},{"$f":"VALUE(FIXED(EXP(BA$4*-1*'PM2.5 reduction'!BA229),9))","v":0.99997411000000003},{"$f":"VALUE(FIXED(EXP(BB$4*-1*'PM2.5 reduction'!BB229),9))","v":0.99997749199999997},{"$f":"VALUE(FIXED(EXP(BC$4*-1*'PM2.5 reduction'!BC229),9))","v":1}]
[null,"Female 90+",{"$f":"VALUE(FIXED(EXP(C$4*-1*'PM2.5 reduction'!C230),9))","v":0.99994188299999998},{"$f":"VALUE(FIXED(EXP(D$4*-1*'PM2.5 reduction'!D230),9))","v":0.999958397},{"$f":"VALUE(FIXED(EXP(E$4*-1*'PM2.5 reduction'!E230),9))","v":0.99998781999999997},{"$f":"VALUE(FIXED(EXP(F$4*-1*'PM2.5 reduction'!F230),9))","v":0.99998320900000004},{"$f":"VALUE(FIXED(EXP(G$4*-1*'PM2.5 reduction'!G230),9))","v":0.99998847400000002},{"$f":"VALUE(FIXED(EXP(H$4*-1*'PM2.5 reduction'!H230),9))","v":0.99997348600000002},{"$f":"VALUE(FIXED(EXP(I$4*-1*'PM2.5 reduction'!I230),9))","v":0.999991729},{"$f":"VALUE(FIXED(EXP(J$4*-1*'PM2.5 reduction'!J230),9))","v":0.99996824299999998},{"$f":"VALUE(FIXED(EXP(K$4*-1*'PM2.5 reduction'!K230),9))","v":0.99997537000000003},{"$f":"VALUE(FIXED(EXP(L$4*-1*'PM2.5 reduction'!L230),9))","v":0.99998653100000001},{"$f":"VALUE(FIXED(EXP(M$4*-1*'PM2.5 reduction'!M230),9))","v":0.99998653100000001},{"$f":"VALUE(FIXED(EXP(N$4*-1*'PM2.5 reduction'!N230),9))","v":0.99996123800000003},{"$f":"VALUE(FIXED(EXP(O$4*-1*'PM2.5 reduction'!O230),9))","v":0.99996342900000001},{"$f":"VALUE(FIXED(EXP(P$4*-1*'PM2.5 reduction'!P230),9))","v":0.99995194099999996},{"$f":"VALUE(FIXED(EXP(Q$4*-1*'PM2.5 reduction'!Q230),9))","v":0.99999084599999999},{"$f":"VALUE(FIXED(EXP(R$4*-1*'PM2.5 reduction'!R230),9))","v":0.99995182999999999},{"$f":"VALUE(FIXED(EXP(S$4*-1*'PM2.5 reduction'!S230),9))","v":0.99994484100000003},{"$f":"VALUE(FIXED(EXP(T$4*-1*'PM2.5 reduction'!T230),9))","v":0.99993093099999997},{"$f":"VALUE(FIXED(EXP(U$4*-1*'PM2.5 reduction'!U230),9))","v":1},{"$f":"VALUE(FIXED(EXP(V$4*-1*'PM2.5 reduction'!V230),9))","v":0.999958244},{"$f":"VALUE(FIXED(EXP(W$4*-1*'PM2.5 reduction'!W230),9))","v":0.99997870899999997},{"$f":"VALUE(FIXED(EXP(X$4*-1*'PM2.5 reduction'!X230),9))","v":0.99997870899999997},{"$f":"VALUE(FIXED(EXP(Y$4*-1*'PM2.5 reduction'!Y230),9))","v":0.99996320100000002},{"$f":"VALUE(FIXED(EXP(Z$4*-1*'PM2.5 reduction'!Z230),9))","v":0.99993004699999999},{"$f":"VALUE(FIXED(EXP(AA$4*-1*'PM2.5 reduction'!AA230),9))","v":0.99995021399999995},{"$f":"VALUE(FIXED(EXP(AB$4*-1*'PM2.5 reduction'!AB230),9))","v":0.999960717},{"$f":"VALUE(FIXED(EXP(AC$4*-1*'PM2.5 reduction'!AC230),9))","v":0.99994757499999998},{"$f":"VALUE(FIXED(EXP(AD$4*-1*'PM2.5 reduction'!AD230),9))","v":0.99998140300000005},{"$f":"VALUE(FIXED(EXP(AE$4*-1*'PM2.5 reduction'!AE230),9))","v":0.99997806700000003},{"$f":"VALUE(FIXED(EXP(AF$4*-1*'PM2.5 reduction'!AF230),9))","v":0.99998352800000001},{"$f":"VALUE(FIXED(EXP(AG$4*-1*'PM2.5 reduction'!AG230),9))","v":0.99997806700000003},{"$f":"VALUE(FIXED(EXP(AH$4*-1*'PM2.5 reduction'!AH230),9))","v":0.99996558599999996},{"$f":"VALUE(FIXED(EXP(AI$4*-1*'PM2.5 reduction'!AI230),9))","v":0.99993658600000002},{"$f":"VALUE(FIXED(EXP(AJ$4*-1*'PM2.5 reduction'!AJ230),9))","v":0.99996792700000003},{"$f":"VALUE(FIXED(EXP(AK$4*-1*'PM2.5 reduction'!AK230),9))","v":0.99999027100000004},{"$f":"VALUE(FIXED(EXP(AL$4*-1*'PM2.5 reduction'!AL230),9))","v":0.99998726299999996},{"$f":"VALUE(FIXED(EXP(AM$4*-1*'PM2.5 reduction'!AM230),9))","v":0.99996589300000005},{"$f":"VALUE(FIXED(EXP(AN$4*-1*'PM2.5 reduction'!AN230),9))","v":1},{"$f":"VALUE(FIXED(EXP(AO$4*-1*'PM2.5 reduction'!AO230),9))","v":1},{"$f":"VALUE(FIXED(EXP(AP$4*-1*'PM2.5 reduction'!AP230),9))","v":0.99998256600000002},{"$f":"VALUE(FIXED(EXP(AQ$4*-1*'PM2.5 reduction'!AQ230),9))","v":0.99996075500000003},{"$f":"VALUE(FIXED(EXP(AR$4*-1*'PM2.5 reduction'!AR230),9))","v":0.99995462400000001},{"$f":"VALUE(FIXED(EXP(AS$4*-1*'PM2.5 reduction'!AS230),9))","v":0.999991729},{"$f":"VALUE(FIXED(EXP(AT$4*-1*'PM2.5 reduction'!AT230),9))","v":1},{"$f":"VALUE(FIXED(EXP(AU$4*-1*'PM2.5 reduction'!AU230),9))","v":1},{"$f":"VALUE(FIXED(EXP(AV$4*-1*'PM2.5 reduction'!AV230),9))","v":0.99997415000000001},{"$f":"VALUE(FIXED(EXP(AW$4*-1*'PM2.5 reduction'!AW230),9))","v":0.99996545199999998},{"$f":"VALUE(FIXED(EXP(AX$4*-1*'PM2.5 reduction'!AX230),9))","v":0.99996772},{"$f":"VALUE(FIXED(EXP(AY$4*-1*'PM2.5 reduction'!AY230),9))","v":0.99997802499999999},{"$f":"VALUE(FIXED(EXP(AZ$4*-1*'PM2.5 reduction'!AZ230),9))","v":0.99997751499999998},{"$f":"VALUE(FIXED(EXP(BA$4*-1*'PM2.5 reduction'!BA230),9))","v":0.999967877},{"$f":"VALUE(FIXED(EXP(BB$4*-1*'PM2.5 reduction'!BB230),9))","v":0.99997844899999999},{"$f":"VALUE(FIXED(EXP(BC$4*-1*'PM2.5 reduction'!BC230),9))","v":1}]
[null,"Male 0-4",{"$f":"VALUE(FIXED(EXP(C$4*-1*'PM2.5 reduction'!C231),9))","v":0.99994202799999998},{"$f":"VALUE(FIXED(EXP(D$4*-1*'PM2.5 reduction'!D231),9))","v":0.99996124399999997},{"$f":"VALUE(FIXED(EXP(E$4*-1*'PM2.5 reduction'!E231),9))","v":0.99998835399999997},{"$f":"VALUE(FIXED(EXP(F$4*-1*'PM2.5 reduction'!F231),9))","v":0.99998714700000002},{"$f":"VALUE(FIXED(EXP(G$4*-1*'PM2.5 reduction'!G231),9))","v":0.99998955599999995},{"$f":"VALUE(FIXED(EXP(H$4*-1*'PM2.5 reduction'!H231),9))","v":0.999978535},{"$f":"VALUE(FIXED(EXP(I$4*-1*'PM2.5 reduction'!I231),9))","v":0.99999139199999998},{"$f":"VALUE(FIXED(EXP(J$4*-1*'PM2.5 reduction'!J231),9))","v":0.99997736400000004},{"$f":"VALUE(FIXED(EXP(K$4*-1*'PM2.5 reduction'!K231),9))","v":0.99997391999999996},{"$f":"VALUE(FIXED(EXP(L$4*-1*'PM2.5 reduction'!L231),9))","v":0.999985766},{"$f":"VALUE(FIXED(EXP(M$4*-1*'PM2.5 reduction'!M231),9))","v":0.999985766},{"$f":"VALUE(FIXED(EXP(N$4*-1*'PM2.5 reduction'!N231),9))","v":0.99996110800000004},{"$f":"VALUE(FIXED(EXP(O$4*-1*'PM2.5 reduction'!O231),9))","v":0.99997696599999997},{"$f":"VALUE(FIXED(EXP(P$4*-1*'PM2.5 reduction'!P231),9))","v":0.99995423400000005},{"$f":"VALUE(FIXED(EXP(Q$4*-1*'PM2.5 reduction'!Q231),9))","v":0.99998295999999998},{"$f":"VALUE(FIXED(EXP(R$4*-1*'PM2.5 reduction'!R231),9))","v":0.99995218600000002},{"$f":"VALUE(FIXED(EXP(S$4*-1*'PM2.5 reduction'!S231),9))","v":0.99994456099999995},{"$f":"VALUE(FIXED(EXP(T$4*-1*'PM2.5 reduction'!T231),9))","v":0.99992717600000003},{"$f":"VALUE(FIXED(EXP(U$4*-1*'PM2.5 reduction'!U231),9))","v":1},{"$f":"VALUE(FIXED(EXP(V$4*-1*'PM2.5 reduction'!V231),9))","v":0.99996788199999997},{"$f":"VALUE(FIXED(EXP(W$4*-1*'PM2.5 reduction'!W231),9))","v":0.99997266900000004},{"$f":"VALUE(FIXED(EXP(X$4*-1*'PM2.5 reduction'!X231),9))","v":0.99997266900000004},{"$f":"VALUE(FIXED(EXP(Y$4*-1*'PM2.5 reduction'!Y231),9))","v":0.99997229499999996},{"$f":"VALUE(FIXED(EXP(Z$4*-1*'PM2.5 reduction'!Z231),9))","v":0.99993104200000005},{"$f":"VALUE(FIXED(EXP(AA$4*-1*'PM2.5 reduction'!AA231),9))","v":0.99995265899999997},{"$f":"VALUE(FIXED(EXP(AB$4*-1*'PM2.5 reduction'!AB231),9))","v":0.99996250900000005},{"$f":"VALUE(FIXED(EXP(AC$4*-1*'PM2.5 reduction'!AC231),9))","v":0.99994857000000004},{"$f":"VALUE(FIXED(EXP(AD$4*-1*'PM2.5 reduction'!AD231),9))","v":0.99998436899999998},{"$f":"VALUE(FIXED(EXP(AE$4*-1*'PM2.5 reduction'!AE231),9))","v":0.99998270199999995},{"$f":"VALUE(FIXED(EXP(AF$4*-1*'PM2.5 reduction'!AF231),9))","v":0.99997998600000004},{"$f":"VALUE(FIXED(EXP(AG$4*-1*'PM2.5 reduction'!AG231),9))","v":0.99998270199999995},{"$f":"VALUE(FIXED(EXP(AH$4*-1*'PM2.5 reduction'!AH231),9))","v":0.99996450299999995},{"$f":"VALUE(FIXED(EXP(AI$4*-1*'PM2.5 reduction'!AI231),9))","v":0.99993771300000001},{"$f":"VALUE(FIXED(EXP(AJ$4*-1*'PM2.5 reduction'!AJ231),9))","v":0.99997148499999999},{"$f":"VALUE(FIXED(EXP(AK$4*-1*'PM2.5 reduction'!AK231),9))","v":0.99998644199999998},{"$f":"VALUE(FIXED(EXP(AL$4*-1*'PM2.5 reduction'!AL231),9))","v":0.99998265799999997},{"$f":"VALUE(FIXED(EXP(AM$4*-1*'PM2.5 reduction'!AM231),9))","v":0.99995977700000005},{"$f":"VALUE(FIXED(EXP(AN$4*-1*'PM2.5 reduction'!AN231),9))","v":1},{"$f":"VALUE(FIXED(EXP(AO$4*-1*'PM2.5 reduction'!AO231),9))","v":1},{"$f":"VALUE(FIXED(EXP(AP$4*-1*'PM2.5 reduction'!AP231),9))","v":0.99998149599999997},{"$f":"VALUE(FIXED(EXP(AQ$4*-1*'PM2.5 reduction'!AQ231),9))","v":0.99996606300000002},{"$f":"VALUE(FIXED(EXP(AR$4*-1*'PM2.5 reduction'!AR231),9))","v":0.99995539600000005},{"$f":"VALUE(FIXED(EXP(AS$4*-1*'PM2.5 reduction'!AS231),9))","v":0.99999139199999998},{"$f":"VALUE(FIXED(EXP(AT$4*-1*'PM2.5 reduction'!AT231),9))","v":1},{"$f":"VALUE(FIXED(EXP(AU$4*-1*'PM2.5 reduction'!AU231),9))","v":1},{"$f":"VALUE(FIXED(EXP(AV$4*-1*'PM2.5 reduction'!AV231),9))","v":0.99997764},{"$f":"VALUE(FIXED(EXP(AW$4*-1*'PM2.5 reduction'!AW231),9))","v":0.99996764199999999},{"$f":"VALUE(FIXED(EXP(AX$4*-1*'PM2.5 reduction'!AX231),9))","v":0.99997812100000005},{"$f":"VALUE(FIXED(EXP(AY$4*-1*'PM2.5 reduction'!AY231),9))","v":0.99997424199999996},{"$f":"VALUE(FIXED(EXP(AZ$4*-1*'PM2.5 reduction'!AZ231),9))","v":0.99997585300000003},{"$f":"VALUE(FIXED(EXP(BA$4*-1*'PM2.5 reduction'!BA231),9))","v":0.99997484299999995},{"$f":"VALUE(FIXED(EXP(BB$4*-1*'PM2.5 reduction'!BB231),9))","v":0.99997107200000002},{"$f":"VALUE(FIXED(EXP(BC$4*-1*'PM2.5 reduction'!BC231),9))","v":1}]
[null,"Male 5-9",{"$f":"VALUE(FIXED(EXP(C$4*-1*'PM2.5 reduction'!C232),9))","v":0.99994483499999998},{"$f":"VALUE(FIXED(EXP(D$4*-1*'PM2.5 reduction'!D232),9))","v":0.9999654},{"$f":"VALUE(FIXED(EXP(E$4*-1*'PM2.5 reduction'!E232),9))","v":0.99998869199999996},{"$f":"VALUE(FIXED(EXP(F$4*-1*'PM2.5 reduction'!F232),9))","v":0.99998665200000003},{"$f":"VALUE(FIXED(EXP(G$4*-1*'PM2.5 reduction'!G232),9))","v":0.99998947599999999},{"$f":"VALUE(FIXED(EXP(H$4*-1*'PM2.5 reduction'!H232),9))","v":0.99997755300000002},{"$f":"VALUE(FIXED(EXP(I$4*-1*'PM2.5 reduction'!I232),9))","v":0.999991454},{"$f":"VALUE(FIXED(EXP(J$4*-1*'PM2.5 reduction'!J232),9))","v":0.99997860400000005},{"$f":"VALUE(FIXED(EXP(K$4*-1*'PM2.5 reduction'!K232),9))","v":0.99997436900000003},{"$f":"VALUE(FIXED(EXP(L$4*-1*'PM2.5 reduction'!L232),9))","v":0.99998627200000001},{"$f":"VALUE(FIXED(EXP(M$4*-1*'PM2.5 reduction'!M232),9))","v":0.99998627200000001},{"$f":"VALUE(FIXED(EXP(N$4*-1*'PM2.5 reduction'!N232),9))","v":0.99996323099999995},{"$f":"VALUE(FIXED(EXP(O$4*-1*'PM2.5 reduction'!O232),9))","v":0.99997497800000001},{"$f":"VALUE(FIXED(EXP(P$4*-1*'PM2.5 reduction'!P232),9))","v":0.99995365999999997},{"$f":"VALUE(FIXED(EXP(Q$4*-1*'PM2.5 reduction'!Q232),9))","v":0.99998441199999999},{"$f":"VALUE(FIXED(EXP(R$4*-1*'PM2.5 reduction'!R232),9))","v":0.99995244299999997},{"$f":"VALUE(FIXED(EXP(S$4*-1*'PM2.5 reduction'!S232),9))","v":0.99994872599999995},{"$f":"VALUE(FIXED(EXP(T$4*-1*'PM2.5 reduction'!T232),9))","v":0.99993074599999998},{"$f":"VALUE(FIXED(EXP(U$4*-1*'PM2.5 reduction'!U232),9))","v":1},{"$f":"VALUE(FIXED(EXP(V$4*-1*'PM2.5 reduction'!V232),9))","v":0.99996640699999995},{"$f":"VALUE(FIXED(EXP(W$4*-1*'PM2.5 reduction'!W232),9))","v":0.99997218600000004},{"$f":"VALUE(FIXED(EXP(X$4*-1*'PM2.5 reduction'!X232),9))","v":0.99997218600000004},{"$f":"VALUE(FIXED(EXP(Y$4*-1*'PM2.5 reduction'!Y232),9))","v":0.99997161499999998},{"$f":"VALUE(FIXED(EXP(Z$4*-1*'PM2.5 reduction'!Z232),9))","v":0.99993262000000005},{"$f":"VALUE(FIXED(EXP(AA$4*-1*'PM2.5 reduction'!AA232),9))","v":0.99995387000000002},{"$f":"VALUE(FIXED(EXP(AB$4*-1*'PM2.5 reduction'!AB232),9))","v":0.99996629599999998},{"$f":"VALUE(FIXED(EXP(AC$4*-1*'PM2.5 reduction'!AC232),9))","v":0.99995000700000003},{"$f":"VALUE(FIXED(EXP(AD$4*-1*'PM2.5 reduction'!AD232),9))","v":0.99998448799999995},{"$f":"VALUE(FIXED(EXP(AE$4*-1*'PM2.5 reduction'!AE232),9))","v":0.99998282500000002},{"$f":"VALUE(FIXED(EXP(AF$4*-1*'PM2.5 reduction'!AF232),9))","v":0.99998005300000004},{"$f":"VALUE(FIXED(EXP(AG$4*-1*'PM2.5 reduction'!AG232),9))","v":0.99998282500000002},{"$f":"VALUE(FIXED(EXP(AH$4*-1*'PM2.5 reduction'!AH232),9))","v":0.99996477900000003},{"$f":"VALUE(FIXED(EXP(AI$4*-1*'PM2.5 reduction'!AI232),9))","v":0.99994168699999997},{"$f":"VALUE(FIXED(EXP(AJ$4*-1*'PM2.5 reduction'!AJ232),9))","v":0.99997094900000005},{"$f":"VALUE(FIXED(EXP(AK$4*-1*'PM2.5 reduction'!AK232),9))","v":0.99998705799999998},{"$f":"VALUE(FIXED(EXP(AL$4*-1*'PM2.5 reduction'!AL232),9))","v":0.99998230799999999},{"$f":"VALUE(FIXED(EXP(AM$4*-1*'PM2.5 reduction'!AM232),9))","v":0.99996031200000002},{"$f":"VALUE(FIXED(EXP(AN$4*-1*'PM2.5 reduction'!AN232),9))","v":1},{"$f":"VALUE(FIXED(EXP(AO$4*-1*'PM2.5 reduction'!AO232),9))","v":1},{"$f":"VALUE(FIXED(EXP(AP$4*-1*'PM2.5 reduction'!AP232),9))","v":0.99998221300000001},{"$f":"VALUE(FIXED(EXP(AQ$4*-1*'PM2.5 reduction'!AQ232),9))","v":0.99996571599999995},{"$f":"VALUE(FIXED(EXP(AR$4*-1*'PM2.5 reduction'!AR232),9))","v":0.99995822700000003},{"$f":"VALUE(FIXED(EXP(AS$4*-1*'PM2.5 reduction'!AS232),9))","v":0.999991454},{"$f":"VALUE(FIXED(EXP(AT$4*-1*'PM2.5 reduction'!AT232),9))","v":1},{"$f":"VALUE(FIXED(EXP(AU$4*-1*'PM2.5 reduction'!AU232),9))","v":1},{"$f":"VALUE(FIXED(EXP(AV$4*-1*'PM2.5 reduction'!AV232),9))","v":0.99997735899999995},{"$f":"VALUE(FIXED(EXP(AW$4*-1*'PM2.5 reduction'!AW232),9))","v":0.99996815900000002},{"$f":"VALUE(FIXED(EXP(AX$4*-1*'PM2.5 reduction'!AX232),9))","v":0.99997934799999999},{"$f":"VALUE(FIXED(EXP(AY$4*-1*'PM2.5 reduction'!AY232),9))","v":0.99997417899999996},{"$f":"VALUE(FIXED(EXP(AZ$4*-1*'PM2.5 reduction'!AZ232),9))","v":0.99997643400000003},{"$f":"VALUE(FIXED(EXP(BA$4*-1*'PM2.5 reduction'!BA232),9))","v":0.99997826499999998},{"$f":"VALUE(FIXED(EXP(BB$4*-1*'PM2.5 reduction'!BB232),9))","v":0.99997176700000001},{"$f":"VALUE(FIXED(EXP(BC$4*-1*'PM2.5 reduction'!BC232),9))","v":1}]
[null,"Male 10-15",{"$f":"VALUE(FIXED(EXP(C$4*-1*'PM2.5 reduction'!C233),9))","v":0.99994432600000005},{"$f":"VALUE(FIXED(EXP(D$4*-1*'PM2.5 reduction'!D233),9))","v":0.99996622199999996},{"$f":"VALUE(FIXED(EXP(E$4*-1*'PM2.5 reduction'!E233),9))","v":0.99998843400000004},{"$f":"VALUE(FIXED(EXP(F$4*-1*'PM2.5 reduction'!F233),9))","v":0.999986496},{"$f":"VALUE(FIXED(EXP(G$4*-1*'PM2.5 reduction'!G233),9))","v":0.99998927800000004},{"$f":"VALUE(FIXED(EXP(H$4*-1*'PM2.5 reduction'!H233),9))","v":0.99997676300000005},{"$f":"VALUE(FIXED(EXP(I$4*-1*'PM2.5 reduction'!I233),9))","v":0.99999136899999996},{"$f":"VALUE(FIXED(EXP(J$4*-1*'PM2.5 reduction'!J233),9))","v":0.99997961899999999},{"$f":"VALUE(FIXED(EXP(K$4*-1*'PM2.5 reduction'!K233),9))","v":0.99997517899999999},{"$f":"VALUE(FIXED(EXP(L$4*-1*'PM2.5 reduction'!L233),9))","v":0.99998612099999995},{"$f":"VALUE(FIXED(EXP(M$4*-1*'PM2.5 reduction'!M233),9))","v":0.99998612099999995},{"$f":"VALUE(FIXED(EXP(N$4*-1*'PM2.5 reduction'!N233),9))","v":0.99996206499999996},{"$f":"VALUE(FIXED(EXP(O$4*-1*'PM2.5 reduction'!O233),9))","v":0.99997342199999995},{"$f":"VALUE(FIXED(EXP(P$4*-1*'PM2.5 reduction'!P233),9))","v":0.99995442899999998},{"$f":"VALUE(FIXED(EXP(Q$4*-1*'PM2.5 reduction'!Q233),9))","v":0.99998441400000004},{"$f":"VALUE(FIXED(EXP(R$4*-1*'PM2.5 reduction'!R233),9))","v":0.99995267399999999},{"$f":"VALUE(FIXED(EXP(S$4*-1*'PM2.5 reduction'!S233),9))","v":0.99995037499999995},{"$f":"VALUE(FIXED(EXP(T$4*-1*'PM2.5 reduction'!T233),9))","v":0.99993228300000003},{"$f":"VALUE(FIXED(EXP(U$4*-1*'PM2.5 reduction'!U233),9))","v":1},{"$f":"VALUE(FIXED(EXP(V$4*-1*'PM2.5 reduction'!V233),9))","v":0.99996656500000003},{"$f":"VALUE(FIXED(EXP(W$4*-1*'PM2.5 reduction'!W233),9))","v":0.999972843},{"$f":"VALUE(FIXED(EXP(X$4*-1*'PM2.5 reduction'!X233),9))","v":0.999972843},{"$f":"VALUE(FIXED(EXP(Y$4*-1*'PM2.5 reduction'!Y233),9))","v":0.99997270100000002},{"$f":"VALUE(FIXED(EXP(Z$4*-1*'PM2.5 reduction'!Z233),9))","v":0.99993453700000001},{"$f":"VALUE(FIXED(EXP(AA$4*-1*'PM2.5 reduction'!AA233),9))","v":0.99995526700000004},{"$f":"VALUE(FIXED(EXP(AB$4*-1*'PM2.5 reduction'!AB233),9))","v":0.99996733199999999},{"$f":"VALUE(FIXED(EXP(AC$4*-1*'PM2.5 reduction'!AC233),9))","v":0.99995170200000005},{"$f":"VALUE(FIXED(EXP(AD$4*-1*'PM2.5 reduction'!AD233),9))","v":0.99998437399999995},{"$f":"VALUE(FIXED(EXP(AE$4*-1*'PM2.5 reduction'!AE233),9))","v":0.99998257700000004},{"$f":"VALUE(FIXED(EXP(AF$4*-1*'PM2.5 reduction'!AF233),9))","v":0.99998143699999997},{"$f":"VALUE(FIXED(EXP(AG$4*-1*'PM2.5 reduction'!AG233),9))","v":0.99998257700000004},{"$f":"VALUE(FIXED(EXP(AH$4*-1*'PM2.5 reduction'!AH233),9))","v":0.99996512400000004},{"$f":"VALUE(FIXED(EXP(AI$4*-1*'PM2.5 reduction'!AI233),9))","v":0.99994380500000002},{"$f":"VALUE(FIXED(EXP(AJ$4*-1*'PM2.5 reduction'!AJ233),9))","v":0.99996956400000003},{"$f":"VALUE(FIXED(EXP(AK$4*-1*'PM2.5 reduction'!AK233),9))","v":0.99998742799999996},{"$f":"VALUE(FIXED(EXP(AL$4*-1*'PM2.5 reduction'!AL233),9))","v":0.99998239700000002},{"$f":"VALUE(FIXED(EXP(AM$4*-1*'PM2.5 reduction'!AM233),9))","v":0.999960768},{"$f":"VALUE(FIXED(EXP(AN$4*-1*'PM2.5 reduction'!AN233),9))","v":1},{"$f":"VALUE(FIXED(EXP(AO$4*-1*'PM2.5 reduction'!AO233),9))","v":1},{"$f":"VALUE(FIXED(EXP(AP$4*-1*'PM2.5 reduction'!AP233),9))","v":0.99998211199999998},{"$f":"VALUE(FIXED(EXP(AQ$4*-1*'PM2.5 reduction'!AQ233),9))","v":0.99996639399999998},{"$f":"VALUE(FIXED(EXP(AR$4*-1*'PM2.5 reduction'!AR233),9))","v":0.99995942400000004},{"$f":"VALUE(FIXED(EXP(AS$4*-1*'PM2.5 reduction'!AS233),9))","v":0.99999136899999996},{"$f":"VALUE(FIXED(EXP(AT$4*-1*'PM2.5 reduction'!AT233),9))","v":1},{"$f":"VALUE(FIXED(EXP(AU$4*-1*'PM2.5 reduction'!AU233),9))","v":1},{"$f":"VALUE(FIXED(EXP(AV$4*-1*'PM2.5 reduction'!AV233),9))","v":0.999976278},{"$f":"VALUE(FIXED(EXP(AW$4*-1*'PM2.5 reduction'!AW233),9))","v":0.99996912800000004},{"$f":"VALUE(FIXED(EXP(AX$4*-1*'PM2.5 reduction'!AX233),9))","v":0.99998043599999997},{"$f":"VALUE(FIXED(EXP(AY$4*-1*'PM2.5 reduction'!AY233),9))","v":0.999974531},{"$f":"VALUE(FIXED(EXP(AZ$4*-1*'PM2.5 reduction'!AZ233),9))","v":0.99997625099999998},{"$f":"VALUE(FIXED(EXP(BA$4*-1*'PM2.5 reduction'!BA233),9))","v":0.99997439799999999},{"$f":"VALUE(FIXED(EXP(BB$4*-1*'PM2.5 reduction'!BB233),9))","v":0.99997246299999998},{"$f":"VALUE(FIXED(EXP(BC$4*-1*'PM2.5 reduction'!BC233),9))","v":1}]
[null,"Male 16-19",{"$f":"VALUE(FIXED(EXP(C$4*-1*'PM2.5 reduction'!C234),9))","v":0.99994215500000005},{"$f":"VALUE(FIXED(EXP(D$4*-1*'PM2.5 reduction'!D234),9))","v":0.99996485300000004},{"$f":"VALUE(FIXED(EXP(E$4*-1*'PM2.5 reduction'!E234),9))","v":0.99998821599999999},{"$f":"VALUE(FIXED(EXP(F$4*-1*'PM2.5 reduction'!F234),9))","v":0.99998578999999999},{"$f":"VALUE(FIXED(EXP(G$4*-1*'PM2.5 reduction'!G234),9))","v":0.99998935099999997},{"$f":"VALUE(FIXED(EXP(H$4*-1*'PM2.5 reduction'!H234),9))","v":0.99997724099999996},{"$f":"VALUE(FIXED(EXP(I$4*-1*'PM2.5 reduction'!I234),9))","v":0.99999148999999998},{"$f":"VALUE(FIXED(EXP(J$4*-1*'PM2.5 reduction'!J234),9))","v":0.99997829100000002},{"$f":"VALUE(FIXED(EXP(K$4*-1*'PM2.5 reduction'!K234),9))","v":0.999975108},{"$f":"VALUE(FIXED(EXP(L$4*-1*'PM2.5 reduction'!L234),9))","v":0.99998557200000004},{"$f":"VALUE(FIXED(EXP(M$4*-1*'PM2.5 reduction'!M234),9))","v":0.99998557200000004},{"$f":"VALUE(FIXED(EXP(N$4*-1*'PM2.5 reduction'!N234),9))","v":0.99994485300000002},{"$f":"VALUE(FIXED(EXP(O$4*-1*'PM2.5 reduction'!O234),9))","v":0.99997398800000004},{"$f":"VALUE(FIXED(EXP(P$4*-1*'PM2.5 reduction'!P234),9))","v":0.99995342099999995},{"$f":"VALUE(FIXED(EXP(Q$4*-1*'PM2.5 reduction'!Q234),9))","v":0.999984557},{"$f":"VALUE(FIXED(EXP(R$4*-1*'PM2.5 reduction'!R234),9))","v":0.99995254099999997},{"$f":"VALUE(FIXED(EXP(S$4*-1*'PM2.5 reduction'!S234),9))","v":0.99994454200000005},{"$f":"VALUE(FIXED(EXP(T$4*-1*'PM2.5 reduction'!T234),9))","v":0.99992630199999999},{"$f":"VALUE(FIXED(EXP(U$4*-1*'PM2.5 reduction'!U234),9))","v":1},{"$f":"VALUE(FIXED(EXP(V$4*-1*'PM2.5 reduction'!V234),9))","v":0.99996595700000002},{"$f":"VALUE(FIXED(EXP(W$4*-1*'PM2.5 reduction'!W234),9))","v":0.99997370699999999},{"$f":"VALUE(FIXED(EXP(X$4*-1*'PM2.5 reduction'!X234),9))","v":0.99997370699999999},{"$f":"VALUE(FIXED(EXP(Y$4*-1*'PM2.5 reduction'!Y234),9))","v":0.99997181000000002},{"$f":"VALUE(FIXED(EXP(Z$4*-1*'PM2.5 reduction'!Z234),9))","v":0.99991886500000005},{"$f":"VALUE(FIXED(EXP(AA$4*-1*'PM2.5 reduction'!AA234),9))","v":0.99995040300000004},{"$f":"VALUE(FIXED(EXP(AB$4*-1*'PM2.5 reduction'!AB234),9))","v":0.99996612500000004},{"$f":"VALUE(FIXED(EXP(AC$4*-1*'PM2.5 reduction'!AC234),9))","v":0.99994541199999998},{"$f":"VALUE(FIXED(EXP(AD$4*-1*'PM2.5 reduction'!AD234),9))","v":0.999984447},{"$f":"VALUE(FIXED(EXP(AE$4*-1*'PM2.5 reduction'!AE234),9))","v":0.99998242500000001},{"$f":"VALUE(FIXED(EXP(AF$4*-1*'PM2.5 reduction'!AF234),9))","v":0.99997780800000002},{"$f":"VALUE(FIXED(EXP(AG$4*-1*'PM2.5 reduction'!AG234),9))","v":0.99998242500000001},{"$f":"VALUE(FIXED(EXP(AH$4*-1*'PM2.5 reduction'!AH234),9))","v":0.99996480899999995},{"$f":"VALUE(FIXED(EXP(AI$4*-1*'PM2.5 reduction'!AI234),9))","v":0.99993772800000003},{"$f":"VALUE(FIXED(EXP(AJ$4*-1*'PM2.5 reduction'!AJ234),9))","v":0.99997134300000001},{"$f":"VALUE(FIXED(EXP(AK$4*-1*'PM2.5 reduction'!AK234),9))","v":0.99998863800000004},{"$f":"VALUE(FIXED(EXP(AL$4*-1*'PM2.5 reduction'!AL234),9))","v":0.99998261899999996},{"$f":"VALUE(FIXED(EXP(AM$4*-1*'PM2.5 reduction'!AM234),9))","v":0.99996041499999999},{"$f":"VALUE(FIXED(EXP(AN$4*-1*'PM2.5 reduction'!AN234),9))","v":1},{"$f":"VALUE(FIXED(EXP(AO$4*-1*'PM2.5 reduction'!AO234),9))","v":1},{"$f":"VALUE(FIXED(EXP(AP$4*-1*'PM2.5 reduction'!AP234),9))","v":0.99998316099999995},{"$f":"VALUE(FIXED(EXP(AQ$4*-1*'PM2.5 reduction'!AQ234),9))","v":0.99996566399999998},{"$f":"VALUE(FIXED(EXP(AR$4*-1*'PM2.5 reduction'!AR234),9))","v":0.99995496100000003},{"$f":"VALUE(FIXED(EXP(AS$4*-1*'PM2.5 reduction'!AS234),9))","v":0.99999148999999998},{"$f":"VALUE(FIXED(EXP(AT$4*-1*'PM2.5 reduction'!AT234),9))","v":1},{"$f":"VALUE(FIXED(EXP(AU$4*-1*'PM2.5 reduction'!AU234),9))","v":1},{"$f":"VALUE(FIXED(EXP(AV$4*-1*'PM2.5 reduction'!AV234),9))","v":0.99997669199999994},{"$f":"VALUE(FIXED(EXP(AW$4*-1*'PM2.5 reduction'!AW234),9))","v":0.99996824100000004},{"$f":"VALUE(FIXED(EXP(AX$4*-1*'PM2.5 reduction'!AX234),9))","v":0.99997890700000003},{"$f":"VALUE(FIXED(EXP(AY$4*-1*'PM2.5 reduction'!AY234),9))","v":0.99996979900000005},{"$f":"VALUE(FIXED(EXP(AZ$4*-1*'PM2.5 reduction'!AZ234),9))","v":0.99996662800000002},{"$f":"VALUE(FIXED(EXP(BA$4*-1*'PM2.5 reduction'!BA234),9))","v":0.99997458900000002},{"$f":"VALUE(FIXED(EXP(BB$4*-1*'PM2.5 reduction'!BB234),9))","v":0.99997266600000001},{"$f":"VALUE(FIXED(EXP(BC$4*-1*'PM2.5 reduction'!BC234),9))","v":1}]
[null,"Male 20-24",{"$f":"VALUE(FIXED(EXP(C$4*-1*'PM2.5 reduction'!C235),9))","v":0.99992991099999995},{"$f":"VALUE(FIXED(EXP(D$4*-1*'PM2.5 reduction'!D235),9))","v":0.99995143500000006},{"$f":"VALUE(FIXED(EXP(E$4*-1*'PM2.5 reduction'!E235),9))","v":0.99998779800000004},{"$f":"VALUE(FIXED(EXP(F$4*-1*'PM2.5 reduction'!F235),9))","v":0.99998575000000001},{"$f":"VALUE(FIXED(EXP(G$4*-1*'PM2.5 reduction'!G235),9))","v":0.99998934399999995},{"$f":"VALUE(FIXED(EXP(H$4*-1*'PM2.5 reduction'!H235),9))","v":0.99997744899999996},{"$f":"VALUE(FIXED(EXP(I$4*-1*'PM2.5 reduction'!I235),9))","v":0.99999147899999996},{"$f":"VALUE(FIXED(EXP(J$4*-1*'PM2.5 reduction'!J235),9))","v":0.99997577000000004},{"$f":"VALUE(FIXED(EXP(K$4*-1*'PM2.5 reduction'!K235),9))","v":0.99997428899999996},{"$f":"VALUE(FIXED(EXP(L$4*-1*'PM2.5 reduction'!L235),9))","v":0.99998603500000005},{"$f":"VALUE(FIXED(EXP(M$4*-1*'PM2.5 reduction'!M235),9))","v":0.99998603500000005},{"$f":"VALUE(FIXED(EXP(N$4*-1*'PM2.5 reduction'!N235),9))","v":0.999944897},{"$f":"VALUE(FIXED(EXP(O$4*-1*'PM2.5 reduction'!O235),9))","v":0.99997449500000002},{"$f":"VALUE(FIXED(EXP(P$4*-1*'PM2.5 reduction'!P235),9))","v":0.99995325400000001},{"$f":"VALUE(FIXED(EXP(Q$4*-1*'PM2.5 reduction'!Q235),9))","v":0.99998361300000005},{"$f":"VALUE(FIXED(EXP(R$4*-1*'PM2.5 reduction'!R235),9))","v":0.99995310599999998},{"$f":"VALUE(FIXED(EXP(S$4*-1*'PM2.5 reduction'!S235),9))","v":0.99992995600000001},{"$f":"VALUE(FIXED(EXP(T$4*-1*'PM2.5 reduction'!T235),9))","v":0.99991079299999996},{"$f":"VALUE(FIXED(EXP(U$4*-1*'PM2.5 reduction'!U235),9))","v":1},{"$f":"VALUE(FIXED(EXP(V$4*-1*'PM2.5 reduction'!V235),9))","v":0.99996472999999997},{"$f":"VALUE(FIXED(EXP(W$4*-1*'PM2.5 reduction'!W235),9))","v":0.99997808600000004},{"$f":"VALUE(FIXED(EXP(X$4*-1*'PM2.5 reduction'!X235),9))","v":0.99997808600000004},{"$f":"VALUE(FIXED(EXP(Y$4*-1*'PM2.5 reduction'!Y235),9))","v":0.99997021799999997},{"$f":"VALUE(FIXED(EXP(Z$4*-1*'PM2.5 reduction'!Z235),9))","v":0.99991076999999995},{"$f":"VALUE(FIXED(EXP(AA$4*-1*'PM2.5 reduction'!AA235),9))","v":0.99994174800000002},{"$f":"VALUE(FIXED(EXP(AB$4*-1*'PM2.5 reduction'!AB235),9))","v":0.999952913},{"$f":"VALUE(FIXED(EXP(AC$4*-1*'PM2.5 reduction'!AC235),9))","v":0.99993564899999998},{"$f":"VALUE(FIXED(EXP(AD$4*-1*'PM2.5 reduction'!AD235),9))","v":0.99998405400000001},{"$f":"VALUE(FIXED(EXP(AE$4*-1*'PM2.5 reduction'!AE235),9))","v":0.99998240199999999},{"$f":"VALUE(FIXED(EXP(AF$4*-1*'PM2.5 reduction'!AF235),9))","v":0.99997777899999996},{"$f":"VALUE(FIXED(EXP(AG$4*-1*'PM2.5 reduction'!AG235),9))","v":0.99998240199999999},{"$f":"VALUE(FIXED(EXP(AH$4*-1*'PM2.5 reduction'!AH235),9))","v":0.99996409900000005},{"$f":"VALUE(FIXED(EXP(AI$4*-1*'PM2.5 reduction'!AI235),9))","v":0.99992054200000002},{"$f":"VALUE(FIXED(EXP(AJ$4*-1*'PM2.5 reduction'!AJ235),9))","v":0.99997586500000002},{"$f":"VALUE(FIXED(EXP(AK$4*-1*'PM2.5 reduction'!AK235),9))","v":0.99998708800000002},{"$f":"VALUE(FIXED(EXP(AL$4*-1*'PM2.5 reduction'!AL235),9))","v":0.99998235400000002},{"$f":"VALUE(FIXED(EXP(AM$4*-1*'PM2.5 reduction'!AM235),9))","v":0.99996087899999997},{"$f":"VALUE(FIXED(EXP(AN$4*-1*'PM2.5 reduction'!AN235),9))","v":1},{"$f":"VALUE(FIXED(EXP(AO$4*-1*'PM2.5 reduction'!AO235),9))","v":1},{"$f":"VALUE(FIXED(EXP(AP$4*-1*'PM2.5 reduction'!AP235),9))","v":0.99998197300000002},{"$f":"VALUE(FIXED(EXP(AQ$4*-1*'PM2.5 reduction'!AQ235),9))","v":0.99996608399999998},{"$f":"VALUE(FIXED(EXP(AR$4*-1*'PM2.5 reduction'!AR235),9))","v":0.99994308700000001},{"$f":"VALUE(FIXED(EXP(AS$4*-1*'PM2.5 reduction'!AS235),9))","v":0.99999147899999996},{"$f":"VALUE(FIXED(EXP(AT$4*-1*'PM2.5 reduction'!AT235),9))","v":1},{"$f":"VALUE(FIXED(EXP(AU$4*-1*'PM2.5 reduction'!AU235),9))","v":1},{"$f":"VALUE(FIXED(EXP(AV$4*-1*'PM2.5 reduction'!AV235),9))","v":0.99997712599999999},{"$f":"VALUE(FIXED(EXP(AW$4*-1*'PM2.5 reduction'!AW235),9))","v":0.99996653800000002},{"$f":"VALUE(FIXED(EXP(AX$4*-1*'PM2.5 reduction'!AX235),9))","v":0.99997597599999999},{"$f":"VALUE(FIXED(EXP(AY$4*-1*'PM2.5 reduction'!AY235),9))","v":0.99997202200000002},{"$f":"VALUE(FIXED(EXP(AZ$4*-1*'PM2.5 reduction'!AZ235),9))","v":0.99996539900000003},{"$f":"VALUE(FIXED(EXP(BA$4*-1*'PM2.5 reduction'!BA235),9))","v":0.99997636999999995},{"$f":"VALUE(FIXED(EXP(BB$4*-1*'PM2.5 reduction'!BB235),9))","v":0.99997166199999998},{"$f":"VALUE(FIXED(EXP(BC$4*-1*'PM2.5 reduction'!BC235),9))","v":1}]
[null,"Male 25-29",{"$f":"VALUE(FIXED(EXP(C$4*-1*'PM2.5 reduction'!C236),9))","v":0.99992701399999995},{"$f":"VALUE(FIXED(EXP(D$4*-1*'PM2.5 reduction'!D236),9))","v":0.99994249199999996},{"$f":"VALUE(FIXED(EXP(E$4*-1*'PM2.5 reduction'!E236),9))","v":0.999987395},{"$f":"VALUE(FIXED(EXP(F$4*-1*'PM2.5 reduction'!F236),9))","v":0.99998554699999997},{"$f":"VALUE(FIXED(EXP(G$4*-1*'PM2.5 reduction'!G236),9))","v":0.99998953899999998},{"$f":"VALUE(FIXED(EXP(H$4*-1*'PM2.5 reduction'!H236),9))","v":0.99997751800000001},{"$f":"VALUE(FIXED(EXP(I$4*-1*'PM2.5 reduction'!I236),9))","v":0.99999166100000003},{"$f":"VALUE(FIXED(EXP(J$4*-1*'PM2.5 reduction'!J236),9))","v":0.99997532899999997},{"$f":"VALUE(FIXED(EXP(K$4*-1*'PM2.5 reduction'!K236),9))","v":0.99997240099999996},{"$f":"VALUE(FIXED(EXP(L$4*-1*'PM2.5 reduction'!L236),9))","v":0.99998620900000001},{"$f":"VALUE(FIXED(EXP(M$4*-1*'PM2.5 reduction'!M236),9))","v":0.99998620900000001},{"$f":"VALUE(FIXED(EXP(N$4*-1*'PM2.5 reduction'!N236),9))","v":0.99995504999999996},{"$f":"VALUE(FIXED(EXP(O$4*-1*'PM2.5 reduction'!O236),9))","v":0.99997415000000001},{"$f":"VALUE(FIXED(EXP(P$4*-1*'PM2.5 reduction'!P236),9))","v":0.99995335200000002},{"$f":"VALUE(FIXED(EXP(Q$4*-1*'PM2.5 reduction'!Q236),9))","v":0.99998299700000004},{"$f":"VALUE(FIXED(EXP(R$4*-1*'PM2.5 reduction'!R236),9))","v":0.99995281400000002},{"$f":"VALUE(FIXED(EXP(S$4*-1*'PM2.5 reduction'!S236),9))","v":0.99992678700000004},{"$f":"VALUE(FIXED(EXP(T$4*-1*'PM2.5 reduction'!T236),9))","v":0.999912256},{"$f":"VALUE(FIXED(EXP(U$4*-1*'PM2.5 reduction'!U236),9))","v":1},{"$f":"VALUE(FIXED(EXP(V$4*-1*'PM2.5 reduction'!V236),9))","v":0.99996358200000002},{"$f":"VALUE(FIXED(EXP(W$4*-1*'PM2.5 reduction'!W236),9))","v":0.99997462100000001},{"$f":"VALUE(FIXED(EXP(X$4*-1*'PM2.5 reduction'!X236),9))","v":0.99997462100000001},{"$f":"VALUE(FIXED(EXP(Y$4*-1*'PM2.5 reduction'!Y236),9))","v":0.99996861699999995},{"$f":"VALUE(FIXED(EXP(Z$4*-1*'PM2.5 reduction'!Z236),9))","v":0.99991867000000001},{"$f":"VALUE(FIXED(EXP(AA$4*-1*'PM2.5 reduction'!AA236),9))","v":0.99994194599999997},{"$f":"VALUE(FIXED(EXP(AB$4*-1*'PM2.5 reduction'!AB236),9))","v":0.99994380400000005},{"$f":"VALUE(FIXED(EXP(AC$4*-1*'PM2.5 reduction'!AC236),9))","v":0.99993657599999997},{"$f":"VALUE(FIXED(EXP(AD$4*-1*'PM2.5 reduction'!AD236),9))","v":0.99998352899999998},{"$f":"VALUE(FIXED(EXP(AE$4*-1*'PM2.5 reduction'!AE236),9))","v":0.99998151700000004},{"$f":"VALUE(FIXED(EXP(AF$4*-1*'PM2.5 reduction'!AF236),9))","v":0.99997563099999998},{"$f":"VALUE(FIXED(EXP(AG$4*-1*'PM2.5 reduction'!AG236),9))","v":0.99998151700000004},{"$f":"VALUE(FIXED(EXP(AH$4*-1*'PM2.5 reduction'!AH236),9))","v":0.99996369100000004},{"$f":"VALUE(FIXED(EXP(AI$4*-1*'PM2.5 reduction'!AI236),9))","v":0.99991998500000001},{"$f":"VALUE(FIXED(EXP(AJ$4*-1*'PM2.5 reduction'!AJ236),9))","v":0.99997492399999999},{"$f":"VALUE(FIXED(EXP(AK$4*-1*'PM2.5 reduction'!AK236),9))","v":0.99998689699999999},{"$f":"VALUE(FIXED(EXP(AL$4*-1*'PM2.5 reduction'!AL236),9))","v":0.99998263499999995},{"$f":"VALUE(FIXED(EXP(AM$4*-1*'PM2.5 reduction'!AM236),9))","v":0.99995952399999999},{"$f":"VALUE(FIXED(EXP(AN$4*-1*'PM2.5 reduction'!AN236),9))","v":1},{"$f":"VALUE(FIXED(EXP(AO$4*-1*'PM2.5 reduction'!AO236),9))","v":1},{"$f":"VALUE(FIXED(EXP(AP$4*-1*'PM2.5 reduction'!AP236),9))","v":0.99998165699999997},{"$f":"VALUE(FIXED(EXP(AQ$4*-1*'PM2.5 reduction'!AQ236),9))","v":0.99996548200000002},{"$f":"VALUE(FIXED(EXP(AR$4*-1*'PM2.5 reduction'!AR236),9))","v":0.99994021799999999},{"$f":"VALUE(FIXED(EXP(AS$4*-1*'PM2.5 reduction'!AS236),9))","v":0.99999166100000003},{"$f":"VALUE(FIXED(EXP(AT$4*-1*'PM2.5 reduction'!AT236),9))","v":1},{"$f":"VALUE(FIXED(EXP(AU$4*-1*'PM2.5 reduction'!AU236),9))","v":1},{"$f":"VALUE(FIXED(EXP(AV$4*-1*'PM2.5 reduction'!AV236),9))","v":0.99997838500000003},{"$f":"VALUE(FIXED(EXP(AW$4*-1*'PM2.5 reduction'!AW236),9))","v":0.99996734799999998},{"$f":"VALUE(FIXED(EXP(AX$4*-1*'PM2.5 reduction'!AX236),9))","v":0.99997576099999996},{"$f":"VALUE(FIXED(EXP(AY$4*-1*'PM2.5 reduction'!AY236),9))","v":0.99997168000000003},{"$f":"VALUE(FIXED(EXP(AZ$4*-1*'PM2.5 reduction'!AZ236),9))","v":0.99996906299999999},{"$f":"VALUE(FIXED(EXP(BA$4*-1*'PM2.5 reduction'!BA236),9))","v":0.99997709099999998},{"$f":"VALUE(FIXED(EXP(BB$4*-1*'PM2.5 reduction'!BB236),9))","v":0.99996973600000005},{"$f":"VALUE(FIXED(EXP(BC$4*-1*'PM2.5 reduction'!BC236),9))","v":1}]
[null,"Male 30-34",{"$f":"VALUE(FIXED(EXP(C$4*-1*'PM2.5 reduction'!C237),9))","v":0.99992643199999998},{"$f":"VALUE(FIXED(EXP(D$4*-1*'PM2.5 reduction'!D237),9))","v":0.99994466000000004},{"$f":"VALUE(FIXED(EXP(E$4*-1*'PM2.5 reduction'!E237),9))","v":0.99998792999999997},{"$f":"VALUE(FIXED(EXP(F$4*-1*'PM2.5 reduction'!F237),9))","v":0.99998674399999998},{"$f":"VALUE(FIXED(EXP(G$4*-1*'PM2.5 reduction'!G237),9))","v":0.99998941200000002},{"$f":"VALUE(FIXED(EXP(H$4*-1*'PM2.5 reduction'!H237),9))","v":0.99997782599999996},{"$f":"VALUE(FIXED(EXP(I$4*-1*'PM2.5 reduction'!I237),9))","v":0.99999177900000003},{"$f":"VALUE(FIXED(EXP(J$4*-1*'PM2.5 reduction'!J237),9))","v":0.99997449400000005},{"$f":"VALUE(FIXED(EXP(K$4*-1*'PM2.5 reduction'!K237),9))","v":0.99997281199999999},{"$f":"VALUE(FIXED(EXP(L$4*-1*'PM2.5 reduction'!L237),9))","v":0.99998644599999997},{"$f":"VALUE(FIXED(EXP(M$4*-1*'PM2.5 reduction'!M237),9))","v":0.99998644599999997},{"$f":"VALUE(FIXED(EXP(N$4*-1*'PM2.5 reduction'!N237),9))","v":0.99995666000000005},{"$f":"VALUE(FIXED(EXP(O$4*-1*'PM2.5 reduction'!O237),9))","v":0.99997650100000002},{"$f":"VALUE(FIXED(EXP(P$4*-1*'PM2.5 reduction'!P237),9))","v":0.99995377699999999},{"$f":"VALUE(FIXED(EXP(Q$4*-1*'PM2.5 reduction'!Q237),9))","v":0.99998151800000001},{"$f":"VALUE(FIXED(EXP(R$4*-1*'PM2.5 reduction'!R237),9))","v":0.99995257400000004},{"$f":"VALUE(FIXED(EXP(S$4*-1*'PM2.5 reduction'!S237),9))","v":0.99992717900000005},{"$f":"VALUE(FIXED(EXP(T$4*-1*'PM2.5 reduction'!T237),9))","v":0.99990993500000003},{"$f":"VALUE(FIXED(EXP(U$4*-1*'PM2.5 reduction'!U237),9))","v":1},{"$f":"VALUE(FIXED(EXP(V$4*-1*'PM2.5 reduction'!V237),9))","v":0.99996488900000002},{"$f":"VALUE(FIXED(EXP(W$4*-1*'PM2.5 reduction'!W237),9))","v":0.99997354999999999},{"$f":"VALUE(FIXED(EXP(X$4*-1*'PM2.5 reduction'!X237),9))","v":0.99997354999999999},{"$f":"VALUE(FIXED(EXP(Y$4*-1*'PM2.5 reduction'!Y237),9))","v":0.99996857100000003},{"$f":"VALUE(FIXED(EXP(Z$4*-1*'PM2.5 reduction'!Z237),9))","v":0.99992144299999997},{"$f":"VALUE(FIXED(EXP(AA$4*-1*'PM2.5 reduction'!AA237),9))","v":0.99994359099999996},{"$f":"VALUE(FIXED(EXP(AB$4*-1*'PM2.5 reduction'!AB237),9))","v":0.999945898},{"$f":"VALUE(FIXED(EXP(AC$4*-1*'PM2.5 reduction'!AC237),9))","v":0.99993776400000001},{"$f":"VALUE(FIXED(EXP(AD$4*-1*'PM2.5 reduction'!AD237),9))","v":0.99998240100000002},{"$f":"VALUE(FIXED(EXP(AE$4*-1*'PM2.5 reduction'!AE237),9))","v":0.999980969},{"$f":"VALUE(FIXED(EXP(AF$4*-1*'PM2.5 reduction'!AF237),9))","v":0.99997743299999997},{"$f":"VALUE(FIXED(EXP(AG$4*-1*'PM2.5 reduction'!AG237),9))","v":0.999980969},{"$f":"VALUE(FIXED(EXP(AH$4*-1*'PM2.5 reduction'!AH237),9))","v":0.99996315400000002},{"$f":"VALUE(FIXED(EXP(AI$4*-1*'PM2.5 reduction'!AI237),9))","v":0.99991887899999998},{"$f":"VALUE(FIXED(EXP(AJ$4*-1*'PM2.5 reduction'!AJ237),9))","v":0.99997348200000002},{"$f":"VALUE(FIXED(EXP(AK$4*-1*'PM2.5 reduction'!AK237),9))","v":0.999989036},{"$f":"VALUE(FIXED(EXP(AL$4*-1*'PM2.5 reduction'!AL237),9))","v":0.999983132},{"$f":"VALUE(FIXED(EXP(AM$4*-1*'PM2.5 reduction'!AM237),9))","v":0.99995801900000003},{"$f":"VALUE(FIXED(EXP(AN$4*-1*'PM2.5 reduction'!AN237),9))","v":1},{"$f":"VALUE(FIXED(EXP(AO$4*-1*'PM2.5 reduction'!AO237),9))","v":1},{"$f":"VALUE(FIXED(EXP(AP$4*-1*'PM2.5 reduction'!AP237),9))","v":0.99998114100000002},{"$f":"VALUE(FIXED(EXP(AQ$4*-1*'PM2.5 reduction'!AQ237),9))","v":0.99996384199999999},{"$f":"VALUE(FIXED(EXP(AR$4*-1*'PM2.5 reduction'!AR237),9))","v":0.99994194999999997},{"$f":"VALUE(FIXED(EXP(AS$4*-1*'PM2.5 reduction'!AS237),9))","v":0.99999177900000003},{"$f":"VALUE(FIXED(EXP(AT$4*-1*'PM2.5 reduction'!AT237),9))","v":1},{"$f":"VALUE(FIXED(EXP(AU$4*-1*'PM2.5 reduction'!AU237),9))","v":1},{"$f":"VALUE(FIXED(EXP(AV$4*-1*'PM2.5 reduction'!AV237),9))","v":0.99997583099999998},{"$f":"VALUE(FIXED(EXP(AW$4*-1*'PM2.5 reduction'!AW237),9))","v":0.99996702800000004},{"$f":"VALUE(FIXED(EXP(AX$4*-1*'PM2.5 reduction'!AX237),9))","v":0.99997483099999995},{"$f":"VALUE(FIXED(EXP(AY$4*-1*'PM2.5 reduction'!AY237),9))","v":0.999973416},{"$f":"VALUE(FIXED(EXP(AZ$4*-1*'PM2.5 reduction'!AZ237),9))","v":0.99997326499999994},{"$f":"VALUE(FIXED(EXP(BA$4*-1*'PM2.5 reduction'!BA237),9))","v":0.99997381299999999},{"$f":"VALUE(FIXED(EXP(BB$4*-1*'PM2.5 reduction'!BB237),9))","v":0.99996934400000004},{"$f":"VALUE(FIXED(EXP(BC$4*-1*'PM2.5 reduction'!BC237),9))","v":1}]
[null,"Male 35-39",{"$f":"VALUE(FIXED(EXP(C$4*-1*'PM2.5 reduction'!C238),9))","v":0.99993240100000003},{"$f":"VALUE(FIXED(EXP(D$4*-1*'PM2.5 reduction'!D238),9))","v":0.99995175300000005},{"$f":"VALUE(FIXED(EXP(E$4*-1*'PM2.5 reduction'!E238),9))","v":0.99998810599999999},{"$f":"VALUE(FIXED(EXP(F$4*-1*'PM2.5 reduction'!F238),9))","v":0.99998617999999995},{"$f":"VALUE(FIXED(EXP(G$4*-1*'PM2.5 reduction'!G238),9))","v":0.99998944899999997},{"$f":"VALUE(FIXED(EXP(H$4*-1*'PM2.5 reduction'!H238),9))","v":0.99997763799999995},{"$f":"VALUE(FIXED(EXP(I$4*-1*'PM2.5 reduction'!I238),9))","v":0.99999149700000001},{"$f":"VALUE(FIXED(EXP(J$4*-1*'PM2.5 reduction'!J238),9))","v":0.999976325},{"$f":"VALUE(FIXED(EXP(K$4*-1*'PM2.5 reduction'!K238),9))","v":0.99997462999999998},{"$f":"VALUE(FIXED(EXP(L$4*-1*'PM2.5 reduction'!L238),9))","v":0.99998628300000003},{"$f":"VALUE(FIXED(EXP(M$4*-1*'PM2.5 reduction'!M238),9))","v":0.99998628300000003},{"$f":"VALUE(FIXED(EXP(N$4*-1*'PM2.5 reduction'!N238),9))","v":0.999957918},{"$f":"VALUE(FIXED(EXP(O$4*-1*'PM2.5 reduction'!O238),9))","v":0.99997526400000003},{"$f":"VALUE(FIXED(EXP(P$4*-1*'PM2.5 reduction'!P238),9))","v":0.99995397600000002},{"$f":"VALUE(FIXED(EXP(Q$4*-1*'PM2.5 reduction'!Q238),9))","v":0.99998200599999998},{"$f":"VALUE(FIXED(EXP(R$4*-1*'PM2.5 reduction'!R238),9))","v":0.99995249100000005},{"$f":"VALUE(FIXED(EXP(S$4*-1*'PM2.5 reduction'!S238),9))","v":0.99993581799999998},{"$f":"VALUE(FIXED(EXP(T$4*-1*'PM2.5 reduction'!T238),9))","v":0.99991721},{"$f":"VALUE(FIXED(EXP(U$4*-1*'PM2.5 reduction'!U238),9))","v":1},{"$f":"VALUE(FIXED(EXP(V$4*-1*'PM2.5 reduction'!V238),9))","v":0.999967308},{"$f":"VALUE(FIXED(EXP(W$4*-1*'PM2.5 reduction'!W238),9))","v":0.99997256400000001},{"$f":"VALUE(FIXED(EXP(X$4*-1*'PM2.5 reduction'!X238),9))","v":0.99997256400000001},{"$f":"VALUE(FIXED(EXP(Y$4*-1*'PM2.5 reduction'!Y238),9))","v":0.99997084000000003},{"$f":"VALUE(FIXED(EXP(Z$4*-1*'PM2.5 reduction'!Z238),9))","v":0.99992580200000003},{"$f":"VALUE(FIXED(EXP(AA$4*-1*'PM2.5 reduction'!AA238),9))","v":0.99994901700000005},{"$f":"VALUE(FIXED(EXP(AB$4*-1*'PM2.5 reduction'!AB238),9))","v":0.99995265499999997},{"$f":"VALUE(FIXED(EXP(AC$4*-1*'PM2.5 reduction'!AC238),9))","v":0.99994359399999999},{"$f":"VALUE(FIXED(EXP(AD$4*-1*'PM2.5 reduction'!AD238),9))","v":0.99998286800000002},{"$f":"VALUE(FIXED(EXP(AE$4*-1*'PM2.5 reduction'!AE238),9))","v":0.99998159099999995},{"$f":"VALUE(FIXED(EXP(AF$4*-1*'PM2.5 reduction'!AF238),9))","v":0.99997871400000005},{"$f":"VALUE(FIXED(EXP(AG$4*-1*'PM2.5 reduction'!AG238),9))","v":0.99998159099999995},{"$f":"VALUE(FIXED(EXP(AH$4*-1*'PM2.5 reduction'!AH238),9))","v":0.99996443599999996},{"$f":"VALUE(FIXED(EXP(AI$4*-1*'PM2.5 reduction'!AI238),9))","v":0.99992758699999995},{"$f":"VALUE(FIXED(EXP(AJ$4*-1*'PM2.5 reduction'!AJ238),9))","v":0.99997091900000001},{"$f":"VALUE(FIXED(EXP(AK$4*-1*'PM2.5 reduction'!AK238),9))","v":0.99998673299999996},{"$f":"VALUE(FIXED(EXP(AL$4*-1*'PM2.5 reduction'!AL238),9))","v":0.99998202199999997},{"$f":"VALUE(FIXED(EXP(AM$4*-1*'PM2.5 reduction'!AM238),9))","v":0.99995945100000005},{"$f":"VALUE(FIXED(EXP(AN$4*-1*'PM2.5 reduction'!AN238),9))","v":1},{"$f":"VALUE(FIXED(EXP(AO$4*-1*'PM2.5 reduction'!AO238),9))","v":1},{"$f":"VALUE(FIXED(EXP(AP$4*-1*'PM2.5 reduction'!AP238),9))","v":0.99998180699999994},{"$f":"VALUE(FIXED(EXP(AQ$4*-1*'PM2.5 reduction'!AQ238),9))","v":0.99996573200000005},{"$f":"VALUE(FIXED(EXP(AR$4*-1*'PM2.5 reduction'!AR238),9))","v":0.99994886900000002},{"$f":"VALUE(FIXED(EXP(AS$4*-1*'PM2.5 reduction'!AS238),9))","v":0.99999149700000001},{"$f":"VALUE(FIXED(EXP(AT$4*-1*'PM2.5 reduction'!AT238),9))","v":1},{"$f":"VALUE(FIXED(EXP(AU$4*-1*'PM2.5 reduction'!AU238),9))","v":1},{"$f":"VALUE(FIXED(EXP(AV$4*-1*'PM2.5 reduction'!AV238),9))","v":0.99997722200000005},{"$f":"VALUE(FIXED(EXP(AW$4*-1*'PM2.5 reduction'!AW238),9))","v":0.99996799700000005},{"$f":"VALUE(FIXED(EXP(AX$4*-1*'PM2.5 reduction'!AX238),9))","v":0.99997667999999995},{"$f":"VALUE(FIXED(EXP(AY$4*-1*'PM2.5 reduction'!AY238),9))","v":0.99997309000000001},{"$f":"VALUE(FIXED(EXP(AZ$4*-1*'PM2.5 reduction'!AZ238),9))","v":0.99997370500000005},{"$f":"VALUE(FIXED(EXP(BA$4*-1*'PM2.5 reduction'!BA238),9))","v":0.99997470399999999},{"$f":"VALUE(FIXED(EXP(BB$4*-1*'PM2.5 reduction'!BB238),9))","v":0.99997107100000004},{"$f":"VALUE(FIXED(EXP(BC$4*-1*'PM2.5 reduction'!BC238),9))","v":1}]
[null,"Male 40-44",{"$f":"VALUE(FIXED(EXP(C$4*-1*'PM2.5 reduction'!C239),9))","v":0.999940261},{"$f":"VALUE(FIXED(EXP(D$4*-1*'PM2.5 reduction'!D239),9))","v":0.99996023700000003},{"$f":"VALUE(FIXED(EXP(E$4*-1*'PM2.5 reduction'!E239),9))","v":0.99998825899999999},{"$f":"VALUE(FIXED(EXP(F$4*-1*'PM2.5 reduction'!F239),9))","v":0.99998609500000002},{"$f":"VALUE(FIXED(EXP(G$4*-1*'PM2.5 reduction'!G239),9))","v":0.99998934299999997},{"$f":"VALUE(FIXED(EXP(H$4*-1*'PM2.5 reduction'!H239),9))","v":0.99997734000000005},{"$f":"VALUE(FIXED(EXP(I$4*-1*'PM2.5 reduction'!I239),9))","v":0.99999168299999996},{"$f":"VALUE(FIXED(EXP(J$4*-1*'PM2.5 reduction'!J239),9))","v":0.999978178},{"$f":"VALUE(FIXED(EXP(K$4*-1*'PM2.5 reduction'!K239),9))","v":0.99997623000000002},{"$f":"VALUE(FIXED(EXP(L$4*-1*'PM2.5 reduction'!L239),9))","v":0.999985978},{"$f":"VALUE(FIXED(EXP(M$4*-1*'PM2.5 reduction'!M239),9))","v":0.999985978},{"$f":"VALUE(FIXED(EXP(N$4*-1*'PM2.5 reduction'!N239),9))","v":0.99996205500000002},{"$f":"VALUE(FIXED(EXP(O$4*-1*'PM2.5 reduction'!O239),9))","v":0.99997498600000001},{"$f":"VALUE(FIXED(EXP(P$4*-1*'PM2.5 reduction'!P239),9))","v":0.99995452299999998},{"$f":"VALUE(FIXED(EXP(Q$4*-1*'PM2.5 reduction'!Q239),9))","v":0.99998408699999997},{"$f":"VALUE(FIXED(EXP(R$4*-1*'PM2.5 reduction'!R239),9))","v":0.999952277},{"$f":"VALUE(FIXED(EXP(S$4*-1*'PM2.5 reduction'!S239),9))","v":0.99994213200000004},{"$f":"VALUE(FIXED(EXP(T$4*-1*'PM2.5 reduction'!T239),9))","v":0.99992270500000002},{"$f":"VALUE(FIXED(EXP(U$4*-1*'PM2.5 reduction'!U239),9))","v":1},{"$f":"VALUE(FIXED(EXP(V$4*-1*'PM2.5 reduction'!V239),9))","v":0.99996543500000001},{"$f":"VALUE(FIXED(EXP(W$4*-1*'PM2.5 reduction'!W239),9))","v":0.99997197299999996},{"$f":"VALUE(FIXED(EXP(X$4*-1*'PM2.5 reduction'!X239),9))","v":0.99997197299999996},{"$f":"VALUE(FIXED(EXP(Y$4*-1*'PM2.5 reduction'!Y239),9))","v":0.99997106000000002},{"$f":"VALUE(FIXED(EXP(Z$4*-1*'PM2.5 reduction'!Z239),9))","v":0.999927291},{"$f":"VALUE(FIXED(EXP(AA$4*-1*'PM2.5 reduction'!AA239),9))","v":0.99995124499999999},{"$f":"VALUE(FIXED(EXP(AB$4*-1*'PM2.5 reduction'!AB239),9))","v":0.99996149000000001},{"$f":"VALUE(FIXED(EXP(AC$4*-1*'PM2.5 reduction'!AC239),9))","v":0.99994632400000005},{"$f":"VALUE(FIXED(EXP(AD$4*-1*'PM2.5 reduction'!AD239),9))","v":0.99998409300000002},{"$f":"VALUE(FIXED(EXP(AE$4*-1*'PM2.5 reduction'!AE239),9))","v":0.99998252099999996},{"$f":"VALUE(FIXED(EXP(AF$4*-1*'PM2.5 reduction'!AF239),9))","v":0.99998037799999995},{"$f":"VALUE(FIXED(EXP(AG$4*-1*'PM2.5 reduction'!AG239),9))","v":0.99998252099999996},{"$f":"VALUE(FIXED(EXP(AH$4*-1*'PM2.5 reduction'!AH239),9))","v":0.99996419599999997},{"$f":"VALUE(FIXED(EXP(AI$4*-1*'PM2.5 reduction'!AI239),9))","v":0.999934553},{"$f":"VALUE(FIXED(EXP(AJ$4*-1*'PM2.5 reduction'!AJ239),9))","v":0.99997106000000002},{"$f":"VALUE(FIXED(EXP(AK$4*-1*'PM2.5 reduction'!AK239),9))","v":0.99998787300000003},{"$f":"VALUE(FIXED(EXP(AL$4*-1*'PM2.5 reduction'!AL239),9))","v":0.99998267900000004},{"$f":"VALUE(FIXED(EXP(AM$4*-1*'PM2.5 reduction'!AM239),9))","v":0.99996059599999998},{"$f":"VALUE(FIXED(EXP(AN$4*-1*'PM2.5 reduction'!AN239),9))","v":1},{"$f":"VALUE(FIXED(EXP(AO$4*-1*'PM2.5 reduction'!AO239),9))","v":1},{"$f":"VALUE(FIXED(EXP(AP$4*-1*'PM2.5 reduction'!AP239),9))","v":0.99998212900000005},{"$f":"VALUE(FIXED(EXP(AQ$4*-1*'PM2.5 reduction'!AQ239),9))","v":0.99996485899999998},{"$f":"VALUE(FIXED(EXP(AR$4*-1*'PM2.5 reduction'!AR239),9))","v":0.99995400000000001},{"$f":"VALUE(FIXED(EXP(AS$4*-1*'PM2.5 reduction'!AS239),9))","v":0.99999168299999996},{"$f":"VALUE(FIXED(EXP(AT$4*-1*'PM2.5 reduction'!AT239),9))","v":1},{"$f":"VALUE(FIXED(EXP(AU$4*-1*'PM2.5 reduction'!AU239),9))","v":1},{"$f":"VALUE(FIXED(EXP(AV$4*-1*'PM2.5 reduction'!AV239),9))","v":0.99997668399999995},{"$f":"VALUE(FIXED(EXP(AW$4*-1*'PM2.5 reduction'!AW239),9))","v":0.99996689999999999},{"$f":"VALUE(FIXED(EXP(AX$4*-1*'PM2.5 reduction'!AX239),9))","v":0.99997855000000002},{"$f":"VALUE(FIXED(EXP(AY$4*-1*'PM2.5 reduction'!AY239),9))","v":0.99997391499999999},{"$f":"VALUE(FIXED(EXP(AZ$4*-1*'PM2.5 reduction'!AZ239),9))","v":0.99997623000000002},{"$f":"VALUE(FIXED(EXP(BA$4*-1*'PM2.5 reduction'!BA239),9))","v":0.99997465200000002},{"$f":"VALUE(FIXED(EXP(BB$4*-1*'PM2.5 reduction'!BB239),9))","v":0.99997137599999997},{"$f":"VALUE(FIXED(EXP(BC$4*-1*'PM2.5 reduction'!BC239),9))","v":1}]
[null,"Male 45-49",{"$f":"VALUE(FIXED(EXP(C$4*-1*'PM2.5 reduction'!C240),9))","v":0.99994145700000003},{"$f":"VALUE(FIXED(EXP(D$4*-1*'PM2.5 reduction'!D240),9))","v":0.99996211400000001},{"$f":"VALUE(FIXED(EXP(E$4*-1*'PM2.5 reduction'!E240),9))","v":0.99998822200000004},{"$f":"VALUE(FIXED(EXP(F$4*-1*'PM2.5 reduction'!F240),9))","v":0.99998637800000001},{"$f":"VALUE(FIXED(EXP(G$4*-1*'PM2.5 reduction'!G240),9))","v":0.99998922400000001},{"$f":"VALUE(FIXED(EXP(H$4*-1*'PM2.5 reduction'!H240),9))","v":0.99997758800000003},{"$f":"VALUE(FIXED(EXP(I$4*-1*'PM2.5 reduction'!I240),9))","v":0.99999159900000001},{"$f":"VALUE(FIXED(EXP(J$4*-1*'PM2.5 reduction'!J240),9))","v":0.99997814600000001},{"$f":"VALUE(FIXED(EXP(K$4*-1*'PM2.5 reduction'!K240),9))","v":0.99997483399999998},{"$f":"VALUE(FIXED(EXP(L$4*-1*'PM2.5 reduction'!L240),9))","v":0.99998621200000004},{"$f":"VALUE(FIXED(EXP(M$4*-1*'PM2.5 reduction'!M240),9))","v":0.99998621200000004},{"$f":"VALUE(FIXED(EXP(N$4*-1*'PM2.5 reduction'!N240),9))","v":0.99996217099999996},{"$f":"VALUE(FIXED(EXP(O$4*-1*'PM2.5 reduction'!O240),9))","v":0.99997497400000002},{"$f":"VALUE(FIXED(EXP(P$4*-1*'PM2.5 reduction'!P240),9))","v":0.999954279},{"$f":"VALUE(FIXED(EXP(Q$4*-1*'PM2.5 reduction'!Q240),9))","v":0.99998436099999999},{"$f":"VALUE(FIXED(EXP(R$4*-1*'PM2.5 reduction'!R240),9))","v":0.99995284399999995},{"$f":"VALUE(FIXED(EXP(S$4*-1*'PM2.5 reduction'!S240),9))","v":0.99994553200000003},{"$f":"VALUE(FIXED(EXP(T$4*-1*'PM2.5 reduction'!T240),9))","v":0.99992549900000005},{"$f":"VALUE(FIXED(EXP(U$4*-1*'PM2.5 reduction'!U240),9))","v":1},{"$f":"VALUE(FIXED(EXP(V$4*-1*'PM2.5 reduction'!V240),9))","v":0.99996452700000005},{"$f":"VALUE(FIXED(EXP(W$4*-1*'PM2.5 reduction'!W240),9))","v":0.99997247899999997},{"$f":"VALUE(FIXED(EXP(X$4*-1*'PM2.5 reduction'!X240),9))","v":0.99997247899999997},{"$f":"VALUE(FIXED(EXP(Y$4*-1*'PM2.5 reduction'!Y240),9))","v":0.99997070099999996},{"$f":"VALUE(FIXED(EXP(Z$4*-1*'PM2.5 reduction'!Z240),9))","v":0.999929281},{"$f":"VALUE(FIXED(EXP(AA$4*-1*'PM2.5 reduction'!AA240),9))","v":0.99995289899999995},{"$f":"VALUE(FIXED(EXP(AB$4*-1*'PM2.5 reduction'!AB240),9))","v":0.99996335199999997},{"$f":"VALUE(FIXED(EXP(AC$4*-1*'PM2.5 reduction'!AC240),9))","v":0.99994832700000003},{"$f":"VALUE(FIXED(EXP(AD$4*-1*'PM2.5 reduction'!AD240),9))","v":0.99998356499999996},{"$f":"VALUE(FIXED(EXP(AE$4*-1*'PM2.5 reduction'!AE240),9))","v":0.99998218299999997},{"$f":"VALUE(FIXED(EXP(AF$4*-1*'PM2.5 reduction'!AF240),9))","v":0.99998107199999997},{"$f":"VALUE(FIXED(EXP(AG$4*-1*'PM2.5 reduction'!AG240),9))","v":0.99998218299999997},{"$f":"VALUE(FIXED(EXP(AH$4*-1*'PM2.5 reduction'!AH240),9))","v":0.99996521900000002},{"$f":"VALUE(FIXED(EXP(AI$4*-1*'PM2.5 reduction'!AI240),9))","v":0.99993800499999996},{"$f":"VALUE(FIXED(EXP(AJ$4*-1*'PM2.5 reduction'!AJ240),9))","v":0.99996941399999995},{"$f":"VALUE(FIXED(EXP(AK$4*-1*'PM2.5 reduction'!AK240),9))","v":0.99998755399999995},{"$f":"VALUE(FIXED(EXP(AL$4*-1*'PM2.5 reduction'!AL240),9))","v":0.99998227799999995},{"$f":"VALUE(FIXED(EXP(AM$4*-1*'PM2.5 reduction'!AM240),9))","v":0.99996146799999996},{"$f":"VALUE(FIXED(EXP(AN$4*-1*'PM2.5 reduction'!AN240),9))","v":1},{"$f":"VALUE(FIXED(EXP(AO$4*-1*'PM2.5 reduction'!AO240),9))","v":1},{"$f":"VALUE(FIXED(EXP(AP$4*-1*'PM2.5 reduction'!AP240),9))","v":0.99998241200000004},{"$f":"VALUE(FIXED(EXP(AQ$4*-1*'PM2.5 reduction'!AQ240),9))","v":0.99996512900000001},{"$f":"VALUE(FIXED(EXP(AR$4*-1*'PM2.5 reduction'!AR240),9))","v":0.99995622900000003},{"$f":"VALUE(FIXED(EXP(AS$4*-1*'PM2.5 reduction'!AS240),9))","v":0.99999159900000001},{"$f":"VALUE(FIXED(EXP(AT$4*-1*'PM2.5 reduction'!AT240),9))","v":1},{"$f":"VALUE(FIXED(EXP(AU$4*-1*'PM2.5 reduction'!AU240),9))","v":1},{"$f":"VALUE(FIXED(EXP(AV$4*-1*'PM2.5 reduction'!AV240),9))","v":0.99997740000000002},{"$f":"VALUE(FIXED(EXP(AW$4*-1*'PM2.5 reduction'!AW240),9))","v":0.99996810000000003},{"$f":"VALUE(FIXED(EXP(AX$4*-1*'PM2.5 reduction'!AX240),9))","v":0.99997886000000002},{"$f":"VALUE(FIXED(EXP(AY$4*-1*'PM2.5 reduction'!AY240),9))","v":0.99997395200000005},{"$f":"VALUE(FIXED(EXP(AZ$4*-1*'PM2.5 reduction'!AZ240),9))","v":0.99997557199999998},{"$f":"VALUE(FIXED(EXP(BA$4*-1*'PM2.5 reduction'!BA240),9))","v":0.999974947},{"$f":"VALUE(FIXED(EXP(BB$4*-1*'PM2.5 reduction'!BB240),9))","v":0.99997206900000002},{"$f":"VALUE(FIXED(EXP(BC$4*-1*'PM2.5 reduction'!BC240),9))","v":1}]
[null,"Male 50-54",{"$f":"VALUE(FIXED(EXP(C$4*-1*'PM2.5 reduction'!C241),9))","v":0.99994206600000002},{"$f":"VALUE(FIXED(EXP(D$4*-1*'PM2.5 reduction'!D241),9))","v":0.99996207599999998},{"$f":"VALUE(FIXED(EXP(E$4*-1*'PM2.5 reduction'!E241),9))","v":0.99998804600000002},{"$f":"VALUE(FIXED(EXP(F$4*-1*'PM2.5 reduction'!F241),9))","v":0.999985923},{"$f":"VALUE(FIXED(EXP(G$4*-1*'PM2.5 reduction'!G241),9))","v":0.99998935499999997},{"$f":"VALUE(FIXED(EXP(H$4*-1*'PM2.5 reduction'!H241),9))","v":0.99997725500000001},{"$f":"VALUE(FIXED(EXP(I$4*-1*'PM2.5 reduction'!I241),9))","v":0.99999157599999999},{"$f":"VALUE(FIXED(EXP(J$4*-1*'PM2.5 reduction'!J241),9))","v":0.99997781399999996},{"$f":"VALUE(FIXED(EXP(K$4*-1*'PM2.5 reduction'!K241),9))","v":0.99997565600000005},{"$f":"VALUE(FIXED(EXP(L$4*-1*'PM2.5 reduction'!L241),9))","v":0.99998580699999995},{"$f":"VALUE(FIXED(EXP(M$4*-1*'PM2.5 reduction'!M241),9))","v":0.99998580699999995},{"$f":"VALUE(FIXED(EXP(N$4*-1*'PM2.5 reduction'!N241),9))","v":0.999962664},{"$f":"VALUE(FIXED(EXP(O$4*-1*'PM2.5 reduction'!O241),9))","v":0.99997398699999995},{"$f":"VALUE(FIXED(EXP(P$4*-1*'PM2.5 reduction'!P241),9))","v":0.99995338899999997},{"$f":"VALUE(FIXED(EXP(Q$4*-1*'PM2.5 reduction'!Q241),9))","v":0.999984392},{"$f":"VALUE(FIXED(EXP(R$4*-1*'PM2.5 reduction'!R241),9))","v":0.999953121},{"$f":"VALUE(FIXED(EXP(S$4*-1*'PM2.5 reduction'!S241),9))","v":0.99994524799999995},{"$f":"VALUE(FIXED(EXP(T$4*-1*'PM2.5 reduction'!T241),9))","v":0.99992597999999999},{"$f":"VALUE(FIXED(EXP(U$4*-1*'PM2.5 reduction'!U241),9))","v":1},{"$f":"VALUE(FIXED(EXP(V$4*-1*'PM2.5 reduction'!V241),9))","v":0.99996429600000003},{"$f":"VALUE(FIXED(EXP(W$4*-1*'PM2.5 reduction'!W241),9))","v":0.99997280300000002},{"$f":"VALUE(FIXED(EXP(X$4*-1*'PM2.5 reduction'!X241),9))","v":0.99997280300000002},{"$f":"VALUE(FIXED(EXP(Y$4*-1*'PM2.5 reduction'!Y241),9))","v":0.99997007599999999},{"$f":"VALUE(FIXED(EXP(Z$4*-1*'PM2.5 reduction'!Z241),9))","v":0.99993131999999996},{"$f":"VALUE(FIXED(EXP(AA$4*-1*'PM2.5 reduction'!AA241),9))","v":0.99995365899999999},{"$f":"VALUE(FIXED(EXP(AB$4*-1*'PM2.5 reduction'!AB241),9))","v":0.99996344999999998},{"$f":"VALUE(FIXED(EXP(AC$4*-1*'PM2.5 reduction'!AC241),9))","v":0.99994967499999998},{"$f":"VALUE(FIXED(EXP(AD$4*-1*'PM2.5 reduction'!AD241),9))","v":0.99998362600000001},{"$f":"VALUE(FIXED(EXP(AE$4*-1*'PM2.5 reduction'!AE241),9))","v":0.99998182099999999},{"$f":"VALUE(FIXED(EXP(AF$4*-1*'PM2.5 reduction'!AF241),9))","v":0.999980274},{"$f":"VALUE(FIXED(EXP(AG$4*-1*'PM2.5 reduction'!AG241),9))","v":0.99998182099999999},{"$f":"VALUE(FIXED(EXP(AH$4*-1*'PM2.5 reduction'!AH241),9))","v":0.99996441700000005},{"$f":"VALUE(FIXED(EXP(AI$4*-1*'PM2.5 reduction'!AI241),9))","v":0.99993859799999996},{"$f":"VALUE(FIXED(EXP(AJ$4*-1*'PM2.5 reduction'!AJ241),9))","v":0.99997036699999997},{"$f":"VALUE(FIXED(EXP(AK$4*-1*'PM2.5 reduction'!AK241),9))","v":0.99998845599999997},{"$f":"VALUE(FIXED(EXP(AL$4*-1*'PM2.5 reduction'!AL241),9))","v":0.99998244000000003},{"$f":"VALUE(FIXED(EXP(AM$4*-1*'PM2.5 reduction'!AM241),9))","v":0.99996050199999997},{"$f":"VALUE(FIXED(EXP(AN$4*-1*'PM2.5 reduction'!AN241),9))","v":1},{"$f":"VALUE(FIXED(EXP(AO$4*-1*'PM2.5 reduction'!AO241),9))","v":1},{"$f":"VALUE(FIXED(EXP(AP$4*-1*'PM2.5 reduction'!AP241),9))","v":0.99998246999999996},{"$f":"VALUE(FIXED(EXP(AQ$4*-1*'PM2.5 reduction'!AQ241),9))","v":0.99996514999999997},{"$f":"VALUE(FIXED(EXP(AR$4*-1*'PM2.5 reduction'!AR241),9))","v":0.99995685000000001},{"$f":"VALUE(FIXED(EXP(AS$4*-1*'PM2.5 reduction'!AS241),9))","v":0.99999157599999999},{"$f":"VALUE(FIXED(EXP(AT$4*-1*'PM2.5 reduction'!AT241),9))","v":1},{"$f":"VALUE(FIXED(EXP(AU$4*-1*'PM2.5 reduction'!AU241),9))","v":1},{"$f":"VALUE(FIXED(EXP(AV$4*-1*'PM2.5 reduction'!AV241),9))","v":0.99997692599999999},{"$f":"VALUE(FIXED(EXP(AW$4*-1*'PM2.5 reduction'!AW241),9))","v":0.99996760600000001},{"$f":"VALUE(FIXED(EXP(AX$4*-1*'PM2.5 reduction'!AX241),9))","v":0.99997824099999999},{"$f":"VALUE(FIXED(EXP(AY$4*-1*'PM2.5 reduction'!AY241),9))","v":0.99997504699999995},{"$f":"VALUE(FIXED(EXP(AZ$4*-1*'PM2.5 reduction'!AZ241),9))","v":0.99997691399999999},{"$f":"VALUE(FIXED(EXP(BA$4*-1*'PM2.5 reduction'!BA241),9))","v":0.99997522299999997},{"$f":"VALUE(FIXED(EXP(BB$4*-1*'PM2.5 reduction'!BB241),9))","v":0.99997265599999996},{"$f":"VALUE(FIXED(EXP(BC$4*-1*'PM2.5 reduction'!BC241),9))","v":1}]
[null,"Male 55-59",{"$f":"VALUE(FIXED(EXP(C$4*-1*'PM2.5 reduction'!C242),9))","v":0.99994333800000001},{"$f":"VALUE(FIXED(EXP(D$4*-1*'PM2.5 reduction'!D242),9))","v":0.99996202999999995},{"$f":"VALUE(FIXED(EXP(E$4*-1*'PM2.5 reduction'!E242),9))","v":0.99998776499999997},{"$f":"VALUE(FIXED(EXP(F$4*-1*'PM2.5 reduction'!F242),9))","v":0.99998562899999999},{"$f":"VALUE(FIXED(EXP(G$4*-1*'PM2.5 reduction'!G242),9))","v":0.99998933099999998},{"$f":"VALUE(FIXED(EXP(H$4*-1*'PM2.5 reduction'!H242),9))","v":0.99997711600000005},{"$f":"VALUE(FIXED(EXP(I$4*-1*'PM2.5 reduction'!I242),9))","v":0.99999149899999995},{"$f":"VALUE(FIXED(EXP(J$4*-1*'PM2.5 reduction'!J242),9))","v":0.99997903099999996},{"$f":"VALUE(FIXED(EXP(K$4*-1*'PM2.5 reduction'!K242),9))","v":0.99997800400000003},{"$f":"VALUE(FIXED(EXP(L$4*-1*'PM2.5 reduction'!L242),9))","v":0.99998608899999997},{"$f":"VALUE(FIXED(EXP(M$4*-1*'PM2.5 reduction'!M242),9))","v":0.99998608899999997},{"$f":"VALUE(FIXED(EXP(N$4*-1*'PM2.5 reduction'!N242),9))","v":0.99996175399999998},{"$f":"VALUE(FIXED(EXP(O$4*-1*'PM2.5 reduction'!O242),9))","v":0.99997459499999997},{"$f":"VALUE(FIXED(EXP(P$4*-1*'PM2.5 reduction'!P242),9))","v":0.99995389899999998},{"$f":"VALUE(FIXED(EXP(Q$4*-1*'PM2.5 reduction'!Q242),9))","v":0.99998498700000005},{"$f":"VALUE(FIXED(EXP(R$4*-1*'PM2.5 reduction'!R242),9))","v":0.999953129},{"$f":"VALUE(FIXED(EXP(S$4*-1*'PM2.5 reduction'!S242),9))","v":0.99994675499999996},{"$f":"VALUE(FIXED(EXP(T$4*-1*'PM2.5 reduction'!T242),9))","v":0.99992816299999998},{"$f":"VALUE(FIXED(EXP(U$4*-1*'PM2.5 reduction'!U242),9))","v":1},{"$f":"VALUE(FIXED(EXP(V$4*-1*'PM2.5 reduction'!V242),9))","v":0.99996464200000001},{"$f":"VALUE(FIXED(EXP(W$4*-1*'PM2.5 reduction'!W242),9))","v":0.99997340400000001},{"$f":"VALUE(FIXED(EXP(X$4*-1*'PM2.5 reduction'!X242),9))","v":0.99997340400000001},{"$f":"VALUE(FIXED(EXP(Y$4*-1*'PM2.5 reduction'!Y242),9))","v":0.999970947},{"$f":"VALUE(FIXED(EXP(Z$4*-1*'PM2.5 reduction'!Z242),9))","v":0.99992994700000004},{"$f":"VALUE(FIXED(EXP(AA$4*-1*'PM2.5 reduction'!AA242),9))","v":0.99995355600000002},{"$f":"VALUE(FIXED(EXP(AB$4*-1*'PM2.5 reduction'!AB242),9))","v":0.99996326700000004},{"$f":"VALUE(FIXED(EXP(AC$4*-1*'PM2.5 reduction'!AC242),9))","v":0.99994978599999995},{"$f":"VALUE(FIXED(EXP(AD$4*-1*'PM2.5 reduction'!AD242),9))","v":0.99998489700000004},{"$f":"VALUE(FIXED(EXP(AE$4*-1*'PM2.5 reduction'!AE242),9))","v":0.99998345600000005},{"$f":"VALUE(FIXED(EXP(AF$4*-1*'PM2.5 reduction'!AF242),9))","v":0.99997877899999998},{"$f":"VALUE(FIXED(EXP(AG$4*-1*'PM2.5 reduction'!AG242),9))","v":0.99998345600000005},{"$f":"VALUE(FIXED(EXP(AH$4*-1*'PM2.5 reduction'!AH242),9))","v":0.99996406000000004},{"$f":"VALUE(FIXED(EXP(AI$4*-1*'PM2.5 reduction'!AI242),9))","v":0.99993958000000005},{"$f":"VALUE(FIXED(EXP(AJ$4*-1*'PM2.5 reduction'!AJ242),9))","v":0.99997057},{"$f":"VALUE(FIXED(EXP(AK$4*-1*'PM2.5 reduction'!AK242),9))","v":0.99998759299999995},{"$f":"VALUE(FIXED(EXP(AL$4*-1*'PM2.5 reduction'!AL242),9))","v":0.999983603},{"$f":"VALUE(FIXED(EXP(AM$4*-1*'PM2.5 reduction'!AM242),9))","v":0.99996010099999999},{"$f":"VALUE(FIXED(EXP(AN$4*-1*'PM2.5 reduction'!AN242),9))","v":1},{"$f":"VALUE(FIXED(EXP(AO$4*-1*'PM2.5 reduction'!AO242),9))","v":1},{"$f":"VALUE(FIXED(EXP(AP$4*-1*'PM2.5 reduction'!AP242),9))","v":0.99998290199999995},{"$f":"VALUE(FIXED(EXP(AQ$4*-1*'PM2.5 reduction'!AQ242),9))","v":0.99996562700000002},{"$f":"VALUE(FIXED(EXP(AR$4*-1*'PM2.5 reduction'!AR242),9))","v":0.99995728800000006},{"$f":"VALUE(FIXED(EXP(AS$4*-1*'PM2.5 reduction'!AS242),9))","v":0.99999149899999995},{"$f":"VALUE(FIXED(EXP(AT$4*-1*'PM2.5 reduction'!AT242),9))","v":1},{"$f":"VALUE(FIXED(EXP(AU$4*-1*'PM2.5 reduction'!AU242),9))","v":1},{"$f":"VALUE(FIXED(EXP(AV$4*-1*'PM2.5 reduction'!AV242),9))","v":0.99997647300000003},{"$f":"VALUE(FIXED(EXP(AW$4*-1*'PM2.5 reduction'!AW242),9))","v":0.99996696799999996},{"$f":"VALUE(FIXED(EXP(AX$4*-1*'PM2.5 reduction'!AX242),9))","v":0.99997919999999996},{"$f":"VALUE(FIXED(EXP(AY$4*-1*'PM2.5 reduction'!AY242),9))","v":0.99997459899999996},{"$f":"VALUE(FIXED(EXP(AZ$4*-1*'PM2.5 reduction'!AZ242),9))","v":0.99997565899999996},{"$f":"VALUE(FIXED(EXP(BA$4*-1*'PM2.5 reduction'!BA242),9))","v":0.99997574300000003},{"$f":"VALUE(FIXED(EXP(BB$4*-1*'PM2.5 reduction'!BB242),9))","v":0.99997355200000004},{"$f":"VALUE(FIXED(EXP(BC$4*-1*'PM2.5 reduction'!BC242),9))","v":1}]
[null,"Male 60-64",{"$f":"VALUE(FIXED(EXP(C$4*-1*'PM2.5 reduction'!C243),9))","v":0.99994203299999995},{"$f":"VALUE(FIXED(EXP(D$4*-1*'PM2.5 reduction'!D243),9))","v":0.99996190299999999},{"$f":"VALUE(FIXED(EXP(E$4*-1*'PM2.5 reduction'!E243),9))","v":0.99998743899999998},{"$f":"VALUE(FIXED(EXP(F$4*-1*'PM2.5 reduction'!F243),9))","v":0.99998563200000001},{"$f":"VALUE(FIXED(EXP(G$4*-1*'PM2.5 reduction'!G243),9))","v":0.99998917399999998},{"$f":"VALUE(FIXED(EXP(H$4*-1*'PM2.5 reduction'!H243),9))","v":0.99997760400000002},{"$f":"VALUE(FIXED(EXP(I$4*-1*'PM2.5 reduction'!I243),9))","v":0.99999143099999999},{"$f":"VALUE(FIXED(EXP(J$4*-1*'PM2.5 reduction'!J243),9))","v":0.99997906999999997},{"$f":"VALUE(FIXED(EXP(K$4*-1*'PM2.5 reduction'!K243),9))","v":0.99997782999999996},{"$f":"VALUE(FIXED(EXP(L$4*-1*'PM2.5 reduction'!L243),9))","v":0.99998615599999996},{"$f":"VALUE(FIXED(EXP(M$4*-1*'PM2.5 reduction'!M243),9))","v":0.99998615599999996},{"$f":"VALUE(FIXED(EXP(N$4*-1*'PM2.5 reduction'!N243),9))","v":0.99996218199999998},{"$f":"VALUE(FIXED(EXP(O$4*-1*'PM2.5 reduction'!O243),9))","v":0.99997582600000001},{"$f":"VALUE(FIXED(EXP(P$4*-1*'PM2.5 reduction'!P243),9))","v":0.99995388799999996},{"$f":"VALUE(FIXED(EXP(Q$4*-1*'PM2.5 reduction'!Q243),9))","v":0.99998600299999996},{"$f":"VALUE(FIXED(EXP(R$4*-1*'PM2.5 reduction'!R243),9))","v":0.99995291500000005},{"$f":"VALUE(FIXED(EXP(S$4*-1*'PM2.5 reduction'!S243),9))","v":0.99994717200000005},{"$f":"VALUE(FIXED(EXP(T$4*-1*'PM2.5 reduction'!T243),9))","v":0.99992863899999995},{"$f":"VALUE(FIXED(EXP(U$4*-1*'PM2.5 reduction'!U243),9))","v":1},{"$f":"VALUE(FIXED(EXP(V$4*-1*'PM2.5 reduction'!V243),9))","v":0.99996415400000005},{"$f":"VALUE(FIXED(EXP(W$4*-1*'PM2.5 reduction'!W243),9))","v":0.99997446599999995},{"$f":"VALUE(FIXED(EXP(X$4*-1*'PM2.5 reduction'!X243),9))","v":0.99997446599999995},{"$f":"VALUE(FIXED(EXP(Y$4*-1*'PM2.5 reduction'!Y243),9))","v":0.99997107200000002},{"$f":"VALUE(FIXED(EXP(Z$4*-1*'PM2.5 reduction'!Z243),9))","v":0.99993094100000002},{"$f":"VALUE(FIXED(EXP(AA$4*-1*'PM2.5 reduction'!AA243),9))","v":0.99995341400000004},{"$f":"VALUE(FIXED(EXP(AB$4*-1*'PM2.5 reduction'!AB243),9))","v":0.99996342299999996},{"$f":"VALUE(FIXED(EXP(AC$4*-1*'PM2.5 reduction'!AC243),9))","v":0.99994972900000001},{"$f":"VALUE(FIXED(EXP(AD$4*-1*'PM2.5 reduction'!AD243),9))","v":0.99998442200000004},{"$f":"VALUE(FIXED(EXP(AE$4*-1*'PM2.5 reduction'!AE243),9))","v":0.99998293699999996},{"$f":"VALUE(FIXED(EXP(AF$4*-1*'PM2.5 reduction'!AF243),9))","v":0.99998106499999995},{"$f":"VALUE(FIXED(EXP(AG$4*-1*'PM2.5 reduction'!AG243),9))","v":0.99998293699999996},{"$f":"VALUE(FIXED(EXP(AH$4*-1*'PM2.5 reduction'!AH243),9))","v":0.99996373900000002},{"$f":"VALUE(FIXED(EXP(AI$4*-1*'PM2.5 reduction'!AI243),9))","v":0.99993941500000005},{"$f":"VALUE(FIXED(EXP(AJ$4*-1*'PM2.5 reduction'!AJ243),9))","v":0.99997286200000002},{"$f":"VALUE(FIXED(EXP(AK$4*-1*'PM2.5 reduction'!AK243),9))","v":0.999987403},{"$f":"VALUE(FIXED(EXP(AL$4*-1*'PM2.5 reduction'!AL243),9))","v":0.99998343899999997},{"$f":"VALUE(FIXED(EXP(AM$4*-1*'PM2.5 reduction'!AM243),9))","v":0.99996003300000003},{"$f":"VALUE(FIXED(EXP(AN$4*-1*'PM2.5 reduction'!AN243),9))","v":1},{"$f":"VALUE(FIXED(EXP(AO$4*-1*'PM2.5 reduction'!AO243),9))","v":1},{"$f":"VALUE(FIXED(EXP(AP$4*-1*'PM2.5 reduction'!AP243),9))","v":0.999983222},{"$f":"VALUE(FIXED(EXP(AQ$4*-1*'PM2.5 reduction'!AQ243),9))","v":0.99996559699999998},{"$f":"VALUE(FIXED(EXP(AR$4*-1*'PM2.5 reduction'!AR243),9))","v":0.99995778599999996},{"$f":"VALUE(FIXED(EXP(AS$4*-1*'PM2.5 reduction'!AS243),9))","v":0.99999143099999999},{"$f":"VALUE(FIXED(EXP(AT$4*-1*'PM2.5 reduction'!AT243),9))","v":1},{"$f":"VALUE(FIXED(EXP(AU$4*-1*'PM2.5 reduction'!AU243),9))","v":1},{"$f":"VALUE(FIXED(EXP(AV$4*-1*'PM2.5 reduction'!AV243),9))","v":0.99997648299999997},{"$f":"VALUE(FIXED(EXP(AW$4*-1*'PM2.5 reduction'!AW243),9))","v":0.99996629500000001},{"$f":"VALUE(FIXED(EXP(AX$4*-1*'PM2.5 reduction'!AX243),9))","v":0.999979324},{"$f":"VALUE(FIXED(EXP(AY$4*-1*'PM2.5 reduction'!AY243),9))","v":0.99997569900000005},{"$f":"VALUE(FIXED(EXP(AZ$4*-1*'PM2.5 reduction'!AZ243),9))","v":0.99997673300000001},{"$f":"VALUE(FIXED(EXP(BA$4*-1*'PM2.5 reduction'!BA243),9))","v":0.99997454500000005},{"$f":"VALUE(FIXED(EXP(BB$4*-1*'PM2.5 reduction'!BB243),9))","v":0.99997444599999996},{"$f":"VALUE(FIXED(EXP(BC$4*-1*'PM2.5 reduction'!BC243),9))","v":1}]
[null,"Male 65-69",{"$f":"VALUE(FIXED(EXP(C$4*-1*'PM2.5 reduction'!C244),9))","v":0.99994340000000004},{"$f":"VALUE(FIXED(EXP(D$4*-1*'PM2.5 reduction'!D244),9))","v":0.99996322299999996},{"$f":"VALUE(FIXED(EXP(E$4*-1*'PM2.5 reduction'!E244),9))","v":0.99998810699999996},{"$f":"VALUE(FIXED(EXP(F$4*-1*'PM2.5 reduction'!F244),9))","v":0.99998528099999995},{"$f":"VALUE(FIXED(EXP(G$4*-1*'PM2.5 reduction'!G244),9))","v":0.99998907400000003},{"$f":"VALUE(FIXED(EXP(H$4*-1*'PM2.5 reduction'!H244),9))","v":0.99997762899999998},{"$f":"VALUE(FIXED(EXP(I$4*-1*'PM2.5 reduction'!I244),9))","v":0.99999164100000004},{"$f":"VALUE(FIXED(EXP(J$4*-1*'PM2.5 reduction'!J244),9))","v":0.99997739399999996},{"$f":"VALUE(FIXED(EXP(K$4*-1*'PM2.5 reduction'!K244),9))","v":0.99997830700000001},{"$f":"VALUE(FIXED(EXP(L$4*-1*'PM2.5 reduction'!L244),9))","v":0.99998630700000002},{"$f":"VALUE(FIXED(EXP(M$4*-1*'PM2.5 reduction'!M244),9))","v":0.99998630700000002},{"$f":"VALUE(FIXED(EXP(N$4*-1*'PM2.5 reduction'!N244),9))","v":0.99996133200000004},{"$f":"VALUE(FIXED(EXP(O$4*-1*'PM2.5 reduction'!O244),9))","v":0.999975897},{"$f":"VALUE(FIXED(EXP(P$4*-1*'PM2.5 reduction'!P244),9))","v":0.99995405800000003},{"$f":"VALUE(FIXED(EXP(Q$4*-1*'PM2.5 reduction'!Q244),9))","v":0.999986975},{"$f":"VALUE(FIXED(EXP(R$4*-1*'PM2.5 reduction'!R244),9))","v":0.99995279400000003},{"$f":"VALUE(FIXED(EXP(S$4*-1*'PM2.5 reduction'!S244),9))","v":0.99994815699999995},{"$f":"VALUE(FIXED(EXP(T$4*-1*'PM2.5 reduction'!T244),9))","v":0.99992958600000004},{"$f":"VALUE(FIXED(EXP(U$4*-1*'PM2.5 reduction'!U244),9))","v":1},{"$f":"VALUE(FIXED(EXP(V$4*-1*'PM2.5 reduction'!V244),9))","v":0.999963033},{"$f":"VALUE(FIXED(EXP(W$4*-1*'PM2.5 reduction'!W244),9))","v":0.99997464199999997},{"$f":"VALUE(FIXED(EXP(X$4*-1*'PM2.5 reduction'!X244),9))","v":0.99997464199999997},{"$f":"VALUE(FIXED(EXP(Y$4*-1*'PM2.5 reduction'!Y244),9))","v":0.99997020299999995},{"$f":"VALUE(FIXED(EXP(Z$4*-1*'PM2.5 reduction'!Z244),9))","v":0.999931126},{"$f":"VALUE(FIXED(EXP(AA$4*-1*'PM2.5 reduction'!AA244),9))","v":0.99995355699999999},{"$f":"VALUE(FIXED(EXP(AB$4*-1*'PM2.5 reduction'!AB244),9))","v":0.99996491200000004},{"$f":"VALUE(FIXED(EXP(AC$4*-1*'PM2.5 reduction'!AC244),9))","v":0.99995014599999998},{"$f":"VALUE(FIXED(EXP(AD$4*-1*'PM2.5 reduction'!AD244),9))","v":0.999984545},{"$f":"VALUE(FIXED(EXP(AE$4*-1*'PM2.5 reduction'!AE244),9))","v":0.99998296499999995},{"$f":"VALUE(FIXED(EXP(AF$4*-1*'PM2.5 reduction'!AF244),9))","v":0.999979591},{"$f":"VALUE(FIXED(EXP(AG$4*-1*'PM2.5 reduction'!AG244),9))","v":0.99998296499999995},{"$f":"VALUE(FIXED(EXP(AH$4*-1*'PM2.5 reduction'!AH244),9))","v":0.99996384999999999},{"$f":"VALUE(FIXED(EXP(AI$4*-1*'PM2.5 reduction'!AI244),9))","v":0.99993963500000005},{"$f":"VALUE(FIXED(EXP(AJ$4*-1*'PM2.5 reduction'!AJ244),9))","v":0.99997149299999999},{"$f":"VALUE(FIXED(EXP(AK$4*-1*'PM2.5 reduction'!AK244),9))","v":0.99998741700000005},{"$f":"VALUE(FIXED(EXP(AL$4*-1*'PM2.5 reduction'!AL244),9))","v":0.99998389099999996},{"$f":"VALUE(FIXED(EXP(AM$4*-1*'PM2.5 reduction'!AM244),9))","v":0.99996033100000004},{"$f":"VALUE(FIXED(EXP(AN$4*-1*'PM2.5 reduction'!AN244),9))","v":1},{"$f":"VALUE(FIXED(EXP(AO$4*-1*'PM2.5 reduction'!AO244),9))","v":1},{"$f":"VALUE(FIXED(EXP(AP$4*-1*'PM2.5 reduction'!AP244),9))","v":0.99998388900000001},{"$f":"VALUE(FIXED(EXP(AQ$4*-1*'PM2.5 reduction'!AQ244),9))","v":0.999965832},{"$f":"VALUE(FIXED(EXP(AR$4*-1*'PM2.5 reduction'!AR244),9))","v":0.99995868099999996},{"$f":"VALUE(FIXED(EXP(AS$4*-1*'PM2.5 reduction'!AS244),9))","v":0.99999164100000004},{"$f":"VALUE(FIXED(EXP(AT$4*-1*'PM2.5 reduction'!AT244),9))","v":1},{"$f":"VALUE(FIXED(EXP(AU$4*-1*'PM2.5 reduction'!AU244),9))","v":1},{"$f":"VALUE(FIXED(EXP(AV$4*-1*'PM2.5 reduction'!AV244),9))","v":0.99997695499999995},{"$f":"VALUE(FIXED(EXP(AW$4*-1*'PM2.5 reduction'!AW244),9))","v":0.99996625800000005},{"$f":"VALUE(FIXED(EXP(AX$4*-1*'PM2.5 reduction'!AX244),9))","v":0.99997719900000004},{"$f":"VALUE(FIXED(EXP(AY$4*-1*'PM2.5 reduction'!AY244),9))","v":0.99997617599999999},{"$f":"VALUE(FIXED(EXP(AZ$4*-1*'PM2.5 reduction'!AZ244),9))","v":0.99997745199999999},{"$f":"VALUE(FIXED(EXP(BA$4*-1*'PM2.5 reduction'!BA244),9))","v":0.99997634499999999},{"$f":"VALUE(FIXED(EXP(BB$4*-1*'PM2.5 reduction'!BB244),9))","v":0.99997481300000002},{"$f":"VALUE(FIXED(EXP(BC$4*-1*'PM2.5 reduction'!BC244),9))","v":1}]
[null,"Male 70-74",{"$f":"VALUE(FIXED(EXP(C$4*-1*'PM2.5 reduction'!C245),9))","v":0.99994429200000001},{"$f":"VALUE(FIXED(EXP(D$4*-1*'PM2.5 reduction'!D245),9))","v":0.99996456199999995},{"$f":"VALUE(FIXED(EXP(E$4*-1*'PM2.5 reduction'!E245),9))","v":0.99998760600000003},{"$f":"VALUE(FIXED(EXP(F$4*-1*'PM2.5 reduction'!F245),9))","v":0.999984808},{"$f":"VALUE(FIXED(EXP(G$4*-1*'PM2.5 reduction'!G245),9))","v":0.99998918999999997},{"$f":"VALUE(FIXED(EXP(H$4*-1*'PM2.5 reduction'!H245),9))","v":0.99997795899999997},{"$f":"VALUE(FIXED(EXP(I$4*-1*'PM2.5 reduction'!I245),9))","v":0.999991607},{"$f":"VALUE(FIXED(EXP(J$4*-1*'PM2.5 reduction'!J245),9))","v":0.99997857199999995},{"$f":"VALUE(FIXED(EXP(K$4*-1*'PM2.5 reduction'!K245),9))","v":0.99997997299999997},{"$f":"VALUE(FIXED(EXP(L$4*-1*'PM2.5 reduction'!L245),9))","v":0.99998647200000002},{"$f":"VALUE(FIXED(EXP(M$4*-1*'PM2.5 reduction'!M245),9))","v":0.99998647200000002},{"$f":"VALUE(FIXED(EXP(N$4*-1*'PM2.5 reduction'!N245),9))","v":0.99996206799999998},{"$f":"VALUE(FIXED(EXP(O$4*-1*'PM2.5 reduction'!O245),9))","v":0.99997643599999997},{"$f":"VALUE(FIXED(EXP(P$4*-1*'PM2.5 reduction'!P245),9))","v":0.99995351099999996},{"$f":"VALUE(FIXED(EXP(Q$4*-1*'PM2.5 reduction'!Q245),9))","v":0.99998903500000003},{"$f":"VALUE(FIXED(EXP(R$4*-1*'PM2.5 reduction'!R245),9))","v":0.99995280900000005},{"$f":"VALUE(FIXED(EXP(S$4*-1*'PM2.5 reduction'!S245),9))","v":0.99994947599999995},{"$f":"VALUE(FIXED(EXP(T$4*-1*'PM2.5 reduction'!T245),9))","v":0.99993072299999997},{"$f":"VALUE(FIXED(EXP(U$4*-1*'PM2.5 reduction'!U245),9))","v":1},{"$f":"VALUE(FIXED(EXP(V$4*-1*'PM2.5 reduction'!V245),9))","v":0.99996295999999996},{"$f":"VALUE(FIXED(EXP(W$4*-1*'PM2.5 reduction'!W245),9))","v":0.99997491000000005},{"$f":"VALUE(FIXED(EXP(X$4*-1*'PM2.5 reduction'!X245),9))","v":0.99997491000000005},{"$f":"VALUE(FIXED(EXP(Y$4*-1*'PM2.5 reduction'!Y245),9))","v":0.99997088099999998},{"$f":"VALUE(FIXED(EXP(Z$4*-1*'PM2.5 reduction'!Z245),9))","v":0.99993142700000004},{"$f":"VALUE(FIXED(EXP(AA$4*-1*'PM2.5 reduction'!AA245),9))","v":0.99995439200000003},{"$f":"VALUE(FIXED(EXP(AB$4*-1*'PM2.5 reduction'!AB245),9))","v":0.99996650499999995},{"$f":"VALUE(FIXED(EXP(AC$4*-1*'PM2.5 reduction'!AC245),9))","v":0.99995096900000002},{"$f":"VALUE(FIXED(EXP(AD$4*-1*'PM2.5 reduction'!AD245),9))","v":0.99998458599999995},{"$f":"VALUE(FIXED(EXP(AE$4*-1*'PM2.5 reduction'!AE245),9))","v":0.99998260500000002},{"$f":"VALUE(FIXED(EXP(AF$4*-1*'PM2.5 reduction'!AF245),9))","v":0.99998104399999999},{"$f":"VALUE(FIXED(EXP(AG$4*-1*'PM2.5 reduction'!AG245),9))","v":0.99998260500000002},{"$f":"VALUE(FIXED(EXP(AH$4*-1*'PM2.5 reduction'!AH245),9))","v":0.99996479699999996},{"$f":"VALUE(FIXED(EXP(AI$4*-1*'PM2.5 reduction'!AI245),9))","v":0.99994089399999997},{"$f":"VALUE(FIXED(EXP(AJ$4*-1*'PM2.5 reduction'!AJ245),9))","v":0.99997335499999995},{"$f":"VALUE(FIXED(EXP(AK$4*-1*'PM2.5 reduction'!AK245),9))","v":0.99998806399999995},{"$f":"VALUE(FIXED(EXP(AL$4*-1*'PM2.5 reduction'!AL245),9))","v":0.99998408299999997},{"$f":"VALUE(FIXED(EXP(AM$4*-1*'PM2.5 reduction'!AM245),9))","v":0.99996084399999996},{"$f":"VALUE(FIXED(EXP(AN$4*-1*'PM2.5 reduction'!AN245),9))","v":1},{"$f":"VALUE(FIXED(EXP(AO$4*-1*'PM2.5 reduction'!AO245),9))","v":1},{"$f":"VALUE(FIXED(EXP(AP$4*-1*'PM2.5 reduction'!AP245),9))","v":0.99998443599999998},{"$f":"VALUE(FIXED(EXP(AQ$4*-1*'PM2.5 reduction'!AQ245),9))","v":0.99996601200000002},{"$f":"VALUE(FIXED(EXP(AR$4*-1*'PM2.5 reduction'!AR245),9))","v":0.99995977199999997},{"$f":"VALUE(FIXED(EXP(AS$4*-1*'PM2.5 reduction'!AS245),9))","v":0.999991607},{"$f":"VALUE(FIXED(EXP(AT$4*-1*'PM2.5 reduction'!AT245),9))","v":1},{"$f":"VALUE(FIXED(EXP(AU$4*-1*'PM2.5 reduction'!AU245),9))","v":1},{"$f":"VALUE(FIXED(EXP(AV$4*-1*'PM2.5 reduction'!AV245),9))","v":0.99997714100000001},{"$f":"VALUE(FIXED(EXP(AW$4*-1*'PM2.5 reduction'!AW245),9))","v":0.999966935},{"$f":"VALUE(FIXED(EXP(AX$4*-1*'PM2.5 reduction'!AX245),9))","v":0.99997828600000005},{"$f":"VALUE(FIXED(EXP(AY$4*-1*'PM2.5 reduction'!AY245),9))","v":0.999976635},{"$f":"VALUE(FIXED(EXP(AZ$4*-1*'PM2.5 reduction'!AZ245),9))","v":0.99997799799999998},{"$f":"VALUE(FIXED(EXP(BA$4*-1*'PM2.5 reduction'!BA245),9))","v":0.99997467699999998},{"$f":"VALUE(FIXED(EXP(BB$4*-1*'PM2.5 reduction'!BB245),9))","v":0.99997532300000003},{"$f":"VALUE(FIXED(EXP(BC$4*-1*'PM2.5 reduction'!BC245),9))","v":1}]
[null,"Male 75-79",{"$f":"VALUE(FIXED(EXP(C$4*-1*'PM2.5 reduction'!C246),9))","v":0.99994430599999995},{"$f":"VALUE(FIXED(EXP(D$4*-1*'PM2.5 reduction'!D246),9))","v":0.99996386299999995},{"$f":"VALUE(FIXED(EXP(E$4*-1*'PM2.5 reduction'!E246),9))","v":0.99998767300000002},{"$f":"VALUE(FIXED(EXP(F$4*-1*'PM2.5 reduction'!F246),9))","v":0.99998447899999998},{"$f":"VALUE(FIXED(EXP(G$4*-1*'PM2.5 reduction'!G246),9))","v":0.99998921399999996},{"$f":"VALUE(FIXED(EXP(H$4*-1*'PM2.5 reduction'!H246),9))","v":0.99997740899999998},{"$f":"VALUE(FIXED(EXP(I$4*-1*'PM2.5 reduction'!I246),9))","v":0.999991564},{"$f":"VALUE(FIXED(EXP(J$4*-1*'PM2.5 reduction'!J246),9))","v":0.99997873100000001},{"$f":"VALUE(FIXED(EXP(K$4*-1*'PM2.5 reduction'!K246),9))","v":0.99997940900000004},{"$f":"VALUE(FIXED(EXP(L$4*-1*'PM2.5 reduction'!L246),9))","v":0.99998699999999996},{"$f":"VALUE(FIXED(EXP(M$4*-1*'PM2.5 reduction'!M246),9))","v":0.99998699999999996},{"$f":"VALUE(FIXED(EXP(N$4*-1*'PM2.5 reduction'!N246),9))","v":0.99996148399999996},{"$f":"VALUE(FIXED(EXP(O$4*-1*'PM2.5 reduction'!O246),9))","v":0.99997521499999997},{"$f":"VALUE(FIXED(EXP(P$4*-1*'PM2.5 reduction'!P246),9))","v":0.99995258200000003},{"$f":"VALUE(FIXED(EXP(Q$4*-1*'PM2.5 reduction'!Q246),9))","v":0.99998918400000003},{"$f":"VALUE(FIXED(EXP(R$4*-1*'PM2.5 reduction'!R246),9))","v":0.99995265099999997},{"$f":"VALUE(FIXED(EXP(S$4*-1*'PM2.5 reduction'!S246),9))","v":0.99994977600000001},{"$f":"VALUE(FIXED(EXP(T$4*-1*'PM2.5 reduction'!T246),9))","v":0.99993228899999997},{"$f":"VALUE(FIXED(EXP(U$4*-1*'PM2.5 reduction'!U246),9))","v":1},{"$f":"VALUE(FIXED(EXP(V$4*-1*'PM2.5 reduction'!V246),9))","v":0.99996075399999995},{"$f":"VALUE(FIXED(EXP(W$4*-1*'PM2.5 reduction'!W246),9))","v":0.99997525799999998},{"$f":"VALUE(FIXED(EXP(X$4*-1*'PM2.5 reduction'!X246),9))","v":0.99997525799999998},{"$f":"VALUE(FIXED(EXP(Y$4*-1*'PM2.5 reduction'!Y246),9))","v":0.99997102999999998},{"$f":"VALUE(FIXED(EXP(Z$4*-1*'PM2.5 reduction'!Z246),9))","v":0.99993144700000003},{"$f":"VALUE(FIXED(EXP(AA$4*-1*'PM2.5 reduction'!AA246),9))","v":0.99995363999999998},{"$f":"VALUE(FIXED(EXP(AB$4*-1*'PM2.5 reduction'!AB246),9))","v":0.99996606799999999},{"$f":"VALUE(FIXED(EXP(AC$4*-1*'PM2.5 reduction'!AC246),9))","v":0.99995066600000004},{"$f":"VALUE(FIXED(EXP(AD$4*-1*'PM2.5 reduction'!AD246),9))","v":0.99998449300000003},{"$f":"VALUE(FIXED(EXP(AE$4*-1*'PM2.5 reduction'!AE246),9))","v":0.99998281300000003},{"$f":"VALUE(FIXED(EXP(AF$4*-1*'PM2.5 reduction'!AF246),9))","v":0.99998110500000004},{"$f":"VALUE(FIXED(EXP(AG$4*-1*'PM2.5 reduction'!AG246),9))","v":0.99998281300000003},{"$f":"VALUE(FIXED(EXP(AH$4*-1*'PM2.5 reduction'!AH246),9))","v":0.99996385700000001},{"$f":"VALUE(FIXED(EXP(AI$4*-1*'PM2.5 reduction'!AI246),9))","v":0.99994235499999995},{"$f":"VALUE(FIXED(EXP(AJ$4*-1*'PM2.5 reduction'!AJ246),9))","v":0.99997407800000004},{"$f":"VALUE(FIXED(EXP(AK$4*-1*'PM2.5 reduction'!AK246),9))","v":0.99998886200000003},{"$f":"VALUE(FIXED(EXP(AL$4*-1*'PM2.5 reduction'!AL246),9))","v":0.99998393399999996},{"$f":"VALUE(FIXED(EXP(AM$4*-1*'PM2.5 reduction'!AM246),9))","v":0.99995868099999996},{"$f":"VALUE(FIXED(EXP(AN$4*-1*'PM2.5 reduction'!AN246),9))","v":1},{"$f":"VALUE(FIXED(EXP(AO$4*-1*'PM2.5 reduction'!AO246),9))","v":1},{"$f":"VALUE(FIXED(EXP(AP$4*-1*'PM2.5 reduction'!AP246),9))","v":0.99998437200000001},{"$f":"VALUE(FIXED(EXP(AQ$4*-1*'PM2.5 reduction'!AQ246),9))","v":0.99996565699999995},{"$f":"VALUE(FIXED(EXP(AR$4*-1*'PM2.5 reduction'!AR246),9))","v":0.99995953400000004},{"$f":"VALUE(FIXED(EXP(AS$4*-1*'PM2.5 reduction'!AS246),9))","v":0.999991564},{"$f":"VALUE(FIXED(EXP(AT$4*-1*'PM2.5 reduction'!AT246),9))","v":1},{"$f":"VALUE(FIXED(EXP(AU$4*-1*'PM2.5 reduction'!AU246),9))","v":1},{"$f":"VALUE(FIXED(EXP(AV$4*-1*'PM2.5 reduction'!AV246),9))","v":0.99997685400000003},{"$f":"VALUE(FIXED(EXP(AW$4*-1*'PM2.5 reduction'!AW246),9))","v":0.99996679300000002},{"$f":"VALUE(FIXED(EXP(AX$4*-1*'PM2.5 reduction'!AX246),9))","v":0.99997864299999994},{"$f":"VALUE(FIXED(EXP(AY$4*-1*'PM2.5 reduction'!AY246),9))","v":0.99997628599999999},{"$f":"VALUE(FIXED(EXP(AZ$4*-1*'PM2.5 reduction'!AZ246),9))","v":0.99997698000000002},{"$f":"VALUE(FIXED(EXP(BA$4*-1*'PM2.5 reduction'!BA246),9))","v":0.99997535699999995},{"$f":"VALUE(FIXED(EXP(BB$4*-1*'PM2.5 reduction'!BB246),9))","v":0.99997570199999997},{"$f":"VALUE(FIXED(EXP(BC$4*-1*'PM2.5 reduction'!BC246),9))","v":1}]
[null,"Male 80-84",{"$f":"VALUE(FIXED(EXP(C$4*-1*'PM2.5 reduction'!C247),9))","v":0.99994410899999997},{"$f":"VALUE(FIXED(EXP(D$4*-1*'PM2.5 reduction'!D247),9))","v":0.99996213499999997},{"$f":"VALUE(FIXED(EXP(E$4*-1*'PM2.5 reduction'!E247),9))","v":0.99998810400000004},{"$f":"VALUE(FIXED(EXP(F$4*-1*'PM2.5 reduction'!F247),9))","v":0.99998540899999999},{"$f":"VALUE(FIXED(EXP(G$4*-1*'PM2.5 reduction'!G247),9))","v":0.99998915300000002},{"$f":"VALUE(FIXED(EXP(H$4*-1*'PM2.5 reduction'!H247),9))","v":0.99997886199999997},{"$f":"VALUE(FIXED(EXP(I$4*-1*'PM2.5 reduction'!I247),9))","v":0.99999147600000005},{"$f":"VALUE(FIXED(EXP(J$4*-1*'PM2.5 reduction'!J247),9))","v":0.99997639800000004},{"$f":"VALUE(FIXED(EXP(K$4*-1*'PM2.5 reduction'!K247),9))","v":0.99997819600000004},{"$f":"VALUE(FIXED(EXP(L$4*-1*'PM2.5 reduction'!L247),9))","v":0.99998735100000002},{"$f":"VALUE(FIXED(EXP(M$4*-1*'PM2.5 reduction'!M247),9))","v":0.99998735100000002},{"$f":"VALUE(FIXED(EXP(N$4*-1*'PM2.5 reduction'!N247),9))","v":0.99996026000000005},{"$f":"VALUE(FIXED(EXP(O$4*-1*'PM2.5 reduction'!O247),9))","v":0.99997683400000004},{"$f":"VALUE(FIXED(EXP(P$4*-1*'PM2.5 reduction'!P247),9))","v":0.99995273600000001},{"$f":"VALUE(FIXED(EXP(Q$4*-1*'PM2.5 reduction'!Q247),9))","v":0.99999097699999995},{"$f":"VALUE(FIXED(EXP(R$4*-1*'PM2.5 reduction'!R247),9))","v":0.99995139799999999},{"$f":"VALUE(FIXED(EXP(S$4*-1*'PM2.5 reduction'!S247),9))","v":0.99994810999999995},{"$f":"VALUE(FIXED(EXP(T$4*-1*'PM2.5 reduction'!T247),9))","v":0.99993211500000001},{"$f":"VALUE(FIXED(EXP(U$4*-1*'PM2.5 reduction'!U247),9))","v":1},{"$f":"VALUE(FIXED(EXP(V$4*-1*'PM2.5 reduction'!V247),9))","v":0.99996157699999999},{"$f":"VALUE(FIXED(EXP(W$4*-1*'PM2.5 reduction'!W247),9))","v":0.99997675399999997},{"$f":"VALUE(FIXED(EXP(X$4*-1*'PM2.5 reduction'!X247),9))","v":0.99997675399999997},{"$f":"VALUE(FIXED(EXP(Y$4*-1*'PM2.5 reduction'!Y247),9))","v":0.99996982099999998},{"$f":"VALUE(FIXED(EXP(Z$4*-1*'PM2.5 reduction'!Z247),9))","v":0.99993103500000002},{"$f":"VALUE(FIXED(EXP(AA$4*-1*'PM2.5 reduction'!AA247),9))","v":0.99995306399999995},{"$f":"VALUE(FIXED(EXP(AB$4*-1*'PM2.5 reduction'!AB247),9))","v":0.99996402500000003},{"$f":"VALUE(FIXED(EXP(AC$4*-1*'PM2.5 reduction'!AC247),9))","v":0.99995005999999997},{"$f":"VALUE(FIXED(EXP(AD$4*-1*'PM2.5 reduction'!AD247),9))","v":0.99998289100000004},{"$f":"VALUE(FIXED(EXP(AE$4*-1*'PM2.5 reduction'!AE247),9))","v":0.99998128900000005},{"$f":"VALUE(FIXED(EXP(AF$4*-1*'PM2.5 reduction'!AF247),9))","v":0.99998192600000002},{"$f":"VALUE(FIXED(EXP(AG$4*-1*'PM2.5 reduction'!AG247),9))","v":0.99998128900000005},{"$f":"VALUE(FIXED(EXP(AH$4*-1*'PM2.5 reduction'!AH247),9))","v":0.99996399199999997},{"$f":"VALUE(FIXED(EXP(AI$4*-1*'PM2.5 reduction'!AI247),9))","v":0.99994002500000001},{"$f":"VALUE(FIXED(EXP(AJ$4*-1*'PM2.5 reduction'!AJ247),9))","v":0.99997322700000002},{"$f":"VALUE(FIXED(EXP(AK$4*-1*'PM2.5 reduction'!AK247),9))","v":0.99998866099999995},{"$f":"VALUE(FIXED(EXP(AL$4*-1*'PM2.5 reduction'!AL247),9))","v":0.99998467599999996},{"$f":"VALUE(FIXED(EXP(AM$4*-1*'PM2.5 reduction'!AM247),9))","v":0.999958813},{"$f":"VALUE(FIXED(EXP(AN$4*-1*'PM2.5 reduction'!AN247),9))","v":1},{"$f":"VALUE(FIXED(EXP(AO$4*-1*'PM2.5 reduction'!AO247),9))","v":1},{"$f":"VALUE(FIXED(EXP(AP$4*-1*'PM2.5 reduction'!AP247),9))","v":0.99998500400000001},{"$f":"VALUE(FIXED(EXP(AQ$4*-1*'PM2.5 reduction'!AQ247),9))","v":0.99996473100000005},{"$f":"VALUE(FIXED(EXP(AR$4*-1*'PM2.5 reduction'!AR247),9))","v":0.99995827699999995},{"$f":"VALUE(FIXED(EXP(AS$4*-1*'PM2.5 reduction'!AS247),9))","v":0.99999147600000005},{"$f":"VALUE(FIXED(EXP(AT$4*-1*'PM2.5 reduction'!AT247),9))","v":1},{"$f":"VALUE(FIXED(EXP(AU$4*-1*'PM2.5 reduction'!AU247),9))","v":1},{"$f":"VALUE(FIXED(EXP(AV$4*-1*'PM2.5 reduction'!AV247),9))","v":0.99997812600000002},{"$f":"VALUE(FIXED(EXP(AW$4*-1*'PM2.5 reduction'!AW247),9))","v":0.999966142},{"$f":"VALUE(FIXED(EXP(AX$4*-1*'PM2.5 reduction'!AX247),9))","v":0.99997617999999999},{"$f":"VALUE(FIXED(EXP(AY$4*-1*'PM2.5 reduction'!AY247),9))","v":0.99997678499999998},{"$f":"VALUE(FIXED(EXP(AZ$4*-1*'PM2.5 reduction'!AZ247),9))","v":0.999976804},{"$f":"VALUE(FIXED(EXP(BA$4*-1*'PM2.5 reduction'!BA247),9))","v":0.99997286299999999},{"$f":"VALUE(FIXED(EXP(BB$4*-1*'PM2.5 reduction'!BB247),9))","v":0.99997499400000001},{"$f":"VALUE(FIXED(EXP(BC$4*-1*'PM2.5 reduction'!BC247),9))","v":1}]
[null,"Male 85-89",{"$f":"VALUE(FIXED(EXP(C$4*-1*'PM2.5 reduction'!C248),9))","v":0.99994552000000003},{"$f":"VALUE(FIXED(EXP(D$4*-1*'PM2.5 reduction'!D248),9))","v":0.99996304300000005},{"$f":"VALUE(FIXED(EXP(E$4*-1*'PM2.5 reduction'!E248),9))","v":0.999988141},{"$f":"VALUE(FIXED(EXP(F$4*-1*'PM2.5 reduction'!F248),9))","v":0.99998567500000002},{"$f":"VALUE(FIXED(EXP(G$4*-1*'PM2.5 reduction'!G248),9))","v":0.99998898999999997},{"$f":"VALUE(FIXED(EXP(H$4*-1*'PM2.5 reduction'!H248),9))","v":0.99997665800000002},{"$f":"VALUE(FIXED(EXP(I$4*-1*'PM2.5 reduction'!I248),9))","v":0.99999151600000002},{"$f":"VALUE(FIXED(EXP(J$4*-1*'PM2.5 reduction'!J248),9))","v":0.99997293300000001},{"$f":"VALUE(FIXED(EXP(K$4*-1*'PM2.5 reduction'!K248),9))","v":0.99997457199999995},{"$f":"VALUE(FIXED(EXP(L$4*-1*'PM2.5 reduction'!L248),9))","v":0.99998738700000001},{"$f":"VALUE(FIXED(EXP(M$4*-1*'PM2.5 reduction'!M248),9))","v":0.99998738700000001},{"$f":"VALUE(FIXED(EXP(N$4*-1*'PM2.5 reduction'!N248),9))","v":0.99996189599999996},{"$f":"VALUE(FIXED(EXP(O$4*-1*'PM2.5 reduction'!O248),9))","v":0.99997401399999997},{"$f":"VALUE(FIXED(EXP(P$4*-1*'PM2.5 reduction'!P248),9))","v":0.99995356499999999},{"$f":"VALUE(FIXED(EXP(Q$4*-1*'PM2.5 reduction'!Q248),9))","v":0.99999066000000003},{"$f":"VALUE(FIXED(EXP(R$4*-1*'PM2.5 reduction'!R248),9))","v":0.99995217999999997},{"$f":"VALUE(FIXED(EXP(S$4*-1*'PM2.5 reduction'!S248),9))","v":0.99994472099999998},{"$f":"VALUE(FIXED(EXP(T$4*-1*'PM2.5 reduction'!T248),9))","v":0.99992974300000004},{"$f":"VALUE(FIXED(EXP(U$4*-1*'PM2.5 reduction'!U248),9))","v":1},{"$f":"VALUE(FIXED(EXP(V$4*-1*'PM2.5 reduction'!V248),9))","v":0.99995790100000004},{"$f":"VALUE(FIXED(EXP(W$4*-1*'PM2.5 reduction'!W248),9))","v":0.99997571100000004},{"$f":"VALUE(FIXED(EXP(X$4*-1*'PM2.5 reduction'!X248),9))","v":0.99997571100000004},{"$f":"VALUE(FIXED(EXP(Y$4*-1*'PM2.5 reduction'!Y248),9))","v":0.99996605800000005},{"$f":"VALUE(FIXED(EXP(Z$4*-1*'PM2.5 reduction'!Z248),9))","v":0.99993253400000004},{"$f":"VALUE(FIXED(EXP(AA$4*-1*'PM2.5 reduction'!AA248),9))","v":0.99995352599999998},{"$f":"VALUE(FIXED(EXP(AB$4*-1*'PM2.5 reduction'!AB248),9))","v":0.99996547700000005},{"$f":"VALUE(FIXED(EXP(AC$4*-1*'PM2.5 reduction'!AC248),9))","v":0.99995069800000003},{"$f":"VALUE(FIXED(EXP(AD$4*-1*'PM2.5 reduction'!AD248),9))","v":0.99998411099999995},{"$f":"VALUE(FIXED(EXP(AE$4*-1*'PM2.5 reduction'!AE248),9))","v":0.99998211199999998},{"$f":"VALUE(FIXED(EXP(AF$4*-1*'PM2.5 reduction'!AF248),9))","v":0.99998249500000003},{"$f":"VALUE(FIXED(EXP(AG$4*-1*'PM2.5 reduction'!AG248),9))","v":0.99998211199999998},{"$f":"VALUE(FIXED(EXP(AH$4*-1*'PM2.5 reduction'!AH248),9))","v":0.99996535099999995},{"$f":"VALUE(FIXED(EXP(AI$4*-1*'PM2.5 reduction'!AI248),9))","v":0.99993640100000003},{"$f":"VALUE(FIXED(EXP(AJ$4*-1*'PM2.5 reduction'!AJ248),9))","v":0.99996947000000003},{"$f":"VALUE(FIXED(EXP(AK$4*-1*'PM2.5 reduction'!AK248),9))","v":0.99998915200000005},{"$f":"VALUE(FIXED(EXP(AL$4*-1*'PM2.5 reduction'!AL248),9))","v":0.99998601899999995},{"$f":"VALUE(FIXED(EXP(AM$4*-1*'PM2.5 reduction'!AM248),9))","v":0.99996275999999995},{"$f":"VALUE(FIXED(EXP(AN$4*-1*'PM2.5 reduction'!AN248),9))","v":1},{"$f":"VALUE(FIXED(EXP(AO$4*-1*'PM2.5 reduction'!AO248),9))","v":1},{"$f":"VALUE(FIXED(EXP(AP$4*-1*'PM2.5 reduction'!AP248),9))","v":0.99998447499999998},{"$f":"VALUE(FIXED(EXP(AQ$4*-1*'PM2.5 reduction'!AQ248),9))","v":0.99996435500000003},{"$f":"VALUE(FIXED(EXP(AR$4*-1*'PM2.5 reduction'!AR248),9))","v":0.99995715500000004},{"$f":"VALUE(FIXED(EXP(AS$4*-1*'PM2.5 reduction'!AS248),9))","v":0.99999151600000002},{"$f":"VALUE(FIXED(EXP(AT$4*-1*'PM2.5 reduction'!AT248),9))","v":1},{"$f":"VALUE(FIXED(EXP(AU$4*-1*'PM2.5 reduction'!AU248),9))","v":1},{"$f":"VALUE(FIXED(EXP(AV$4*-1*'PM2.5 reduction'!AV248),9))","v":0.99997534799999999},{"$f":"VALUE(FIXED(EXP(AW$4*-1*'PM2.5 reduction'!AW248),9))","v":0.99996658000000005},{"$f":"VALUE(FIXED(EXP(AX$4*-1*'PM2.5 reduction'!AX248),9))","v":0.99997264699999999},{"$f":"VALUE(FIXED(EXP(AY$4*-1*'PM2.5 reduction'!AY248),9))","v":0.99997648800000005},{"$f":"VALUE(FIXED(EXP(AZ$4*-1*'PM2.5 reduction'!AZ248),9))","v":0.99997696199999997},{"$f":"VALUE(FIXED(EXP(BA$4*-1*'PM2.5 reduction'!BA248),9))","v":0.99998034300000005},{"$f":"VALUE(FIXED(EXP(BB$4*-1*'PM2.5 reduction'!BB248),9))","v":0.99997697200000002},{"$f":"VALUE(FIXED(EXP(BC$4*-1*'PM2.5 reduction'!BC248),9))","v":1}]
[null,"Male 90+",{"$f":"VALUE(FIXED(EXP(C$4*-1*'PM2.5 reduction'!C249),9))","v":0.99994056899999995},{"$f":"VALUE(FIXED(EXP(D$4*-1*'PM2.5 reduction'!D249),9))","v":0.99996028299999995},{"$f":"VALUE(FIXED(EXP(E$4*-1*'PM2.5 reduction'!E249),9))","v":0.99998838099999998},{"$f":"VALUE(FIXED(EXP(F$4*-1*'PM2.5 reduction'!F249),9))","v":0.99998366400000005},{"$f":"VALUE(FIXED(EXP(G$4*-1*'PM2.5 reduction'!G249),9))","v":0.99998928399999998},{"$f":"VALUE(FIXED(EXP(H$4*-1*'PM2.5 reduction'!H249),9))","v":0.99997718700000005},{"$f":"VALUE(FIXED(EXP(I$4*-1*'PM2.5 reduction'!I249),9))","v":0.99999173600000002},{"$f":"VALUE(FIXED(EXP(J$4*-1*'PM2.5 reduction'!J249),9))","v":0.99997239699999996},{"$f":"VALUE(FIXED(EXP(K$4*-1*'PM2.5 reduction'!K249),9))","v":0.99997445699999998},{"$f":"VALUE(FIXED(EXP(L$4*-1*'PM2.5 reduction'!L249),9))","v":0.99998675299999995},{"$f":"VALUE(FIXED(EXP(M$4*-1*'PM2.5 reduction'!M249),9))","v":0.99998675299999995},{"$f":"VALUE(FIXED(EXP(N$4*-1*'PM2.5 reduction'!N249),9))","v":0.99995823299999997},{"$f":"VALUE(FIXED(EXP(O$4*-1*'PM2.5 reduction'!O249),9))","v":0.99997846000000001},{"$f":"VALUE(FIXED(EXP(P$4*-1*'PM2.5 reduction'!P249),9))","v":0.99995226699999995},{"$f":"VALUE(FIXED(EXP(Q$4*-1*'PM2.5 reduction'!Q249),9))","v":0.99999178799999999},{"$f":"VALUE(FIXED(EXP(R$4*-1*'PM2.5 reduction'!R249),9))","v":0.99995129800000004},{"$f":"VALUE(FIXED(EXP(S$4*-1*'PM2.5 reduction'!S249),9))","v":0.99994282800000001},{"$f":"VALUE(FIXED(EXP(T$4*-1*'PM2.5 reduction'!T249),9))","v":0.99992934600000005},{"$f":"VALUE(FIXED(EXP(U$4*-1*'PM2.5 reduction'!U249),9))","v":1},{"$f":"VALUE(FIXED(EXP(V$4*-1*'PM2.5 reduction'!V249),9))","v":0.99995856000000005},{"$f":"VALUE(FIXED(EXP(W$4*-1*'PM2.5 reduction'!W249),9))","v":0.99997764899999997},{"$f":"VALUE(FIXED(EXP(X$4*-1*'PM2.5 reduction'!X249),9))","v":0.99997764899999997},{"$f":"VALUE(FIXED(EXP(Y$4*-1*'PM2.5 reduction'!Y249),9))","v":0.99996516400000002},{"$f":"VALUE(FIXED(EXP(Z$4*-1*'PM2.5 reduction'!Z249),9))","v":0.99993316300000001},{"$f":"VALUE(FIXED(EXP(AA$4*-1*'PM2.5 reduction'!AA249),9))","v":0.99995113199999996},{"$f":"VALUE(FIXED(EXP(AB$4*-1*'PM2.5 reduction'!AB249),9))","v":0.99996237399999999},{"$f":"VALUE(FIXED(EXP(AC$4*-1*'PM2.5 reduction'!AC249),9))","v":0.999948858},{"$f":"VALUE(FIXED(EXP(AD$4*-1*'PM2.5 reduction'!AD249),9))","v":0.99998346599999999},{"$f":"VALUE(FIXED(EXP(AE$4*-1*'PM2.5 reduction'!AE249),9))","v":0.999982496},{"$f":"VALUE(FIXED(EXP(AF$4*-1*'PM2.5 reduction'!AF249),9))","v":0.99998154800000005},{"$f":"VALUE(FIXED(EXP(AG$4*-1*'PM2.5 reduction'!AG249),9))","v":0.999982496},{"$f":"VALUE(FIXED(EXP(AH$4*-1*'PM2.5 reduction'!AH249),9))","v":0.99996210699999999},{"$f":"VALUE(FIXED(EXP(AI$4*-1*'PM2.5 reduction'!AI249),9))","v":0.99993654399999998},{"$f":"VALUE(FIXED(EXP(AJ$4*-1*'PM2.5 reduction'!AJ249),9))","v":0.99996630799999997},{"$f":"VALUE(FIXED(EXP(AK$4*-1*'PM2.5 reduction'!AK249),9))","v":0.99999164799999996},{"$f":"VALUE(FIXED(EXP(AL$4*-1*'PM2.5 reduction'!AL249),9))","v":0.99998688099999999},{"$f":"VALUE(FIXED(EXP(AM$4*-1*'PM2.5 reduction'!AM249),9))","v":0.99995878100000002},{"$f":"VALUE(FIXED(EXP(AN$4*-1*'PM2.5 reduction'!AN249),9))","v":1},{"$f":"VALUE(FIXED(EXP(AO$4*-1*'PM2.5 reduction'!AO249),9))","v":1},{"$f":"VALUE(FIXED(EXP(AP$4*-1*'PM2.5 reduction'!AP249),9))","v":0.99998421100000001},{"$f":"VALUE(FIXED(EXP(AQ$4*-1*'PM2.5 reduction'!AQ249),9))","v":0.99996341200000005},{"$f":"VALUE(FIXED(EXP(AR$4*-1*'PM2.5 reduction'!AR249),9))","v":0.99995497799999999},{"$f":"VALUE(FIXED(EXP(AS$4*-1*'PM2.5 reduction'!AS249),9))","v":0.99999173600000002},{"$f":"VALUE(FIXED(EXP(AT$4*-1*'PM2.5 reduction'!AT249),9))","v":1},{"$f":"VALUE(FIXED(EXP(AU$4*-1*'PM2.5 reduction'!AU249),9))","v":1},{"$f":"VALUE(FIXED(EXP(AV$4*-1*'PM2.5 reduction'!AV249),9))","v":0.99997354299999996},{"$f":"VALUE(FIXED(EXP(AW$4*-1*'PM2.5 reduction'!AW249),9))","v":0.99996407799999998},{"$f":"VALUE(FIXED(EXP(AX$4*-1*'PM2.5 reduction'!AX249),9))","v":0.99997223899999998},{"$f":"VALUE(FIXED(EXP(AY$4*-1*'PM2.5 reduction'!AY249),9))","v":0.999976843},{"$f":"VALUE(FIXED(EXP(AZ$4*-1*'PM2.5 reduction'!AZ249),9))","v":0.99997636400000001},{"$f":"VALUE(FIXED(EXP(BA$4*-1*'PM2.5 reduction'!BA249),9))","v":1},{"$f":"VALUE(FIXED(EXP(BB$4*-1*'PM2.5 reduction'!BB249),9))","v":0.99997613100000005},{"$f":"VALUE(FIXED(EXP(BC$4*-1*'PM2.5 reduction'!BC249),9))","v":1}]

{"sheet":"RateRatios_NO2_mort","index":19,"n_rows":249,"n_cols":55,"rows_kept":249,"cut":false,"hidden":true,"merged":[]}
["Intervention Rate Ratios for the predicted reduction in pollutant concentration, by subgroup"]
[]
["SIMD","group","Aberdeen City Local Authority","Aberdeen City Region Deal","Aberdeenshire Local Authority","Angus Local Authority","Argyll & Bute Local Authority","Ayrshire & Arran Health Board","Borders Health Board","Clackmannanshire & Stirling IJB","Clackmannanshire Local Authority","Dumfries & Galloway Health Board","Dumfries & Galloway Local Authority","Dundee City Local Authority","East Ayrshire Local Authority","East Dunbartonshire Local Authority","East Lothian Local Authority","East Renfrewshire Local Authority","Edinburgh & SE Scotland City Region Deal","Edinburgh, City of Local Authority","Eilean Siar Local Authority","Falkirk Local Authority","Fife Health Board","Fife Local Authority","Forth Valley Health Board","Glasgow City Local Authority","Glasgow City Region Deal","Grampian Health Board","Greater Glasgow & Clyde Health Board","Highland Health Board","Highland Local Authority","Inverclyde Local Authority","Inverness & Highland City Region Deal","Lanarkshire Health Board","Lothian Health Board","Midlothian Local Authority","Moray Local Authority","North Ayrshire Local Authority","North Lanarkshire Local Authority","Orkney Health Board","Orkney Islands Local Authority","Perth & Kinross Local Authority","Renfrewshire Local Authority","Scotland","Scottish Borders Local Authority","Shetland Health Board","Shetland Islands Local Authority","South Ayrshire Local Authority","South Lanarkshire Local Authority","Stirling Local Authority","Tay Cities Region Deal ","Tayside Health Board","West Dunbartonshire Local Authority","West Lothian Local Authority","Western Isles Health Board"]
["SIMD","coefficient per 1 ug.m-3 increase",1.65440504355488E-3,1.65440504355488E-3,1.65440504355488E-3,1.65440504355488E-3,1.65440504355488E-3,1.65440504355488E-3,1.65440504355488E-3,1.65440504355488E-3,1.65440504355488E-3,1.65440504355488E-3,1.65440504355488E-3,1.65440504355488E-3,1.65440504355488E-3,1.65440504355488E-3,1.65440504355488E-3,1.65440504355488E-3,1.65440504355488E-3,1.65440504355488E-3,1.65440504355488E-3,1.65440504355488E-3,1.65440504355488E-3,1.65440504355488E-3,1.65440504355488E-3,1.65440504355488E-3,1.65440504355488E-3,1.65440504355488E-3,1.65440504355488E-3,1.65440504355488E-3,1.65440504355488E-3,1.65440504355488E-3,1.65440504355488E-3,1.65440504355488E-3,1.65440504355488E-3,1.65440504355488E-3,1.65440504355488E-3,1.65440504355488E-3,1.65440504355488E-3,1.65440504355488E-3,1.65440504355488E-3,1.65440504355488E-3,1.65440504355488E-3,1.65440504355488E-3,1.65440504355488E-3,1.65440504355488E-3,1.65440504355488E-3,1.65440504355488E-3,1.65440504355488E-3,1.65440504355488E-3,1.65440504355488E-3,1.65440504355488E-3,1.65440504355488E-3,1.65440504355488E-3,1.65440504355488E-3]
["All quintiles","16+ Males and Females"]
["Q1 and Q2","16+ Males and Females"]
["SIMD Q1 (most deprived)","16+ Males and Females"]
["SIMD Q2"]
["SIMD Q3"]
["SIMD Q4"]
["SIMD Q5 (least deprived)"]
["SIMD Q1 (most deprived)","16+ Females"]
["SIMD Q2"]
["SIMD Q3"]
["SIMD Q4"]
["SIMD Q5 (least deprived)"]
["SIMD Q1 (most deprived)","16+ Males"]
["SIMD Q2"]
["SIMD Q3"]
["SIMD Q4"]
["SIMD Q5 (least deprived)"]
["All quintiles","Female 0-4"]
[null,"Female 5-9"]
[null,"Female 10-15"]
[null,"Female 16-19"]
[null,"Female 20-24"]
[null,"Female 25-29"]
[null,"Female 30-34"]
[null,"Female 35-39"]
[null,"Female 40-44"]
[null,"Female 45-49"]
[null,"Female 50-54"]
[null,"Female 55-59"]
[null,"Female 60-64"]
[null,"Female 65-69"]
[null,"Female 70-74"]
[null,"Female 75-79"]
[null,"Female 80-84"]
[null,"Female 85-89"]
[null,"Female 90+"]
[null,"Male 0-4"]
[null,"Male 5-9"]
[null,"Male 10-15"]
[null,"Male 16-19"]
[null,"Male 20-24"]
[null,"Male 25-29"]
[null,"Male 30-34"]
[null,"Male 35-39"]
[null,"Male 40-44"]
[null,"Male 45-49"]
[null,"Male 50-54"]
[null,"Male 55-59"]
[null,"Male 60-64"]
[null,"Male 65-69"]
[null,"Male 70-74"]
[null,"Male 75-79"]
[null,"Male 80-84"]
[null,"Male 85-89"]
[null,"Male 90+"]
["SIMD Q1 (most deprived)","Female 0-4",{"$f":"VALUE(FIXED(EXP(C$4*-1*'PM2.5 reduction'!C60),9))","v":0.99999068499999999},{"$f":"VALUE(FIXED(EXP(D$4*-1*'PM2.5 reduction'!D60),9))","v":0.99999127700000001},{"$f":"VALUE(FIXED(EXP(E$4*-1*'PM2.5 reduction'!E60),9))","v":0.99999650500000004},{"$f":"VALUE(FIXED(EXP(F$4*-1*'PM2.5 reduction'!F60),9))","v":0.999997892},{"$f":"VALUE(FIXED(EXP(G$4*-1*'PM2.5 reduction'!G60),9))","v":0.99999854799999999},{"$f":"VALUE(FIXED(EXP(H$4*-1*'PM2.5 reduction'!H60),9))","v":0.999996781},{"$f":"VALUE(FIXED(EXP(I$4*-1*'PM2.5 reduction'!I60),9))","v":0.99999857800000003},{"$f":"VALUE(FIXED(EXP(J$4*-1*'PM2.5 reduction'!J60),9))","v":0.99999574400000002},{"$f":"VALUE(FIXED(EXP(K$4*-1*'PM2.5 reduction'!K60),9))","v":0.99999533900000004},{"$f":"VALUE(FIXED(EXP(L$4*-1*'PM2.5 reduction'!L60),9))","v":0.99999835800000003},{"$f":"VALUE(FIXED(EXP(M$4*-1*'PM2.5 reduction'!M60),9))","v":0.99999835800000003},{"$f":"VALUE(FIXED(EXP(N$4*-1*'PM2.5 reduction'!N60),9))","v":0.99999202499999995},{"$f":"VALUE(FIXED(EXP(O$4*-1*'PM2.5 reduction'!O60),9))","v":0.99999667000000003},{"$f":"VALUE(FIXED(EXP(P$4*-1*'PM2.5 reduction'!P60),9))","v":0.99999347900000002},{"$f":"VALUE(FIXED(EXP(Q$4*-1*'PM2.5 reduction'!Q60),9))","v":0.99999719799999998},{"$f":"VALUE(FIXED(EXP(R$4*-1*'PM2.5 reduction'!R60),9))","v":0.99999443099999996},{"$f":"VALUE(FIXED(EXP(S$4*-1*'PM2.5 reduction'!S60),9))","v":0.999993939},{"$f":"VALUE(FIXED(EXP(T$4*-1*'PM2.5 reduction'!T60),9))","v":0.99999109100000005},{"$f":"VALUE(FIXED(EXP(U$4*-1*'PM2.5 reduction'!U60),9))","v":1},{"$f":"VALUE(FIXED(EXP(V$4*-1*'PM2.5 reduction'!V60),9))","v":0.99999370700000001},{"$f":"VALUE(FIXED(EXP(W$4*-1*'PM2.5 reduction'!W60),9))","v":0.99999584500000005},{"$f":"VALUE(FIXED(EXP(X$4*-1*'PM2.5 reduction'!X60),9))","v":0.99999584500000005},{"$f":"VALUE(FIXED(EXP(Y$4*-1*'PM2.5 reduction'!Y60),9))","v":0.99999474300000002},{"$f":"VALUE(FIXED(EXP(Z$4*-1*'PM2.5 reduction'!Z60),9))","v":0.99999100200000002},{"$f":"VALUE(FIXED(EXP(AA$4*-1*'PM2.5 reduction'!AA60),9))","v":0.99999246900000005},{"$f":"VALUE(FIXED(EXP(AB$4*-1*'PM2.5 reduction'!AB60),9))","v":0.99999155100000003},{"$f":"VALUE(FIXED(EXP(AC$4*-1*'PM2.5 reduction'!AC60),9))","v":0.99999194400000002},{"$f":"VALUE(FIXED(EXP(AD$4*-1*'PM2.5 reduction'!AD60),9))","v":0.99999844100000002},{"$f":"VALUE(FIXED(EXP(AE$4*-1*'PM2.5 reduction'!AE60),9))","v":0.99999838799999996},{"$f":"VALUE(FIXED(EXP(AF$4*-1*'PM2.5 reduction'!AF60),9))","v":0.99999541999999997},{"$f":"VALUE(FIXED(EXP(AG$4*-1*'PM2.5 reduction'!AG60),9))","v":0.99999838799999996},{"$f":"VALUE(FIXED(EXP(AH$4*-1*'PM2.5 reduction'!AH60),9))","v":0.99999378400000005},{"$f":"VALUE(FIXED(EXP(AI$4*-1*'PM2.5 reduction'!AI60),9))","v":0.99999259900000004},{"$f":"VALUE(FIXED(EXP(AJ$4*-1*'PM2.5 reduction'!AJ60),9))","v":0.99999572299999995},{"$f":"VALUE(FIXED(EXP(AK$4*-1*'PM2.5 reduction'!AK60),9))","v":0.99999739600000004},{"$f":"VALUE(FIXED(EXP(AL$4*-1*'PM2.5 reduction'!AL60),9))","v":0.99999700300000005},{"$f":"VALUE(FIXED(EXP(AM$4*-1*'PM2.5 reduction'!AM60),9))","v":0.99999332500000004},{"$f":"VALUE(FIXED(EXP(AN$4*-1*'PM2.5 reduction'!AN60),9))","v":1},{"$f":"VALUE(FIXED(EXP(AO$4*-1*'PM2.5 reduction'!AO60),9))","v":1},{"$f":"VALUE(FIXED(EXP(AP$4*-1*'PM2.5 reduction'!AP60),9))","v":0.99999541700000005},{"$f":"VALUE(FIXED(EXP(AQ$4*-1*'PM2.5 reduction'!AQ60),9))","v":0.99999358800000004},{"$f":"VALUE(FIXED(EXP(AR$4*-1*'PM2.5 reduction'!AR60),9))","v":0.99999341500000005},{"$f":"VALUE(FIXED(EXP(AS$4*-1*'PM2.5 reduction'!AS60),9))","v":0.99999857800000003},{"$f":"VALUE(FIXED(EXP(AT$4*-1*'PM2.5 reduction'!AT60),9))","v":1},{"$f":"VALUE(FIXED(EXP(AU$4*-1*'PM2.5 reduction'!AU60),9))","v":1},{"$f":"VALUE(FIXED(EXP(AV$4*-1*'PM2.5 reduction'!AV60),9))","v":0.99999639500000004},{"$f":"VALUE(FIXED(EXP(AW$4*-1*'PM2.5 reduction'!AW60),9))","v":0.99999452499999997},{"$f":"VALUE(FIXED(EXP(AX$4*-1*'PM2.5 reduction'!AX60),9))","v":0.99999626799999997},{"$f":"VALUE(FIXED(EXP(AY$4*-1*'PM2.5 reduction'!AY60),9))","v":0.99999437199999996},{"$f":"VALUE(FIXED(EXP(AZ$4*-1*'PM2.5 reduction'!AZ60),9))","v":0.99999300599999996},{"$f":"VALUE(FIXED(EXP(BA$4*-1*'PM2.5 reduction'!BA60),9))","v":0.99999449600000001},{"$f":"VALUE(FIXED(EXP(BB$4*-1*'PM2.5 reduction'!BB60),9))","v":0.99999511100000005},{"$f":"VALUE(FIXED(EXP(BC$4*-1*'PM2.5 reduction'!BC60),9))","v":1}]
[null,"Female 5-9",{"$f":"VALUE(FIXED(EXP(C$4*-1*'PM2.5 reduction'!C61),9))","v":0.99999054399999998},{"$f":"VALUE(FIXED(EXP(D$4*-1*'PM2.5 reduction'!D61),9))","v":0.99999134499999998},{"$f":"VALUE(FIXED(EXP(E$4*-1*'PM2.5 reduction'!E61),9))","v":0.99999659200000002},{"$f":"VALUE(FIXED(EXP(F$4*-1*'PM2.5 reduction'!F61),9))","v":0.99999783799999997},{"$f":"VALUE(FIXED(EXP(G$4*-1*'PM2.5 reduction'!G61),9))","v":0.99999860100000004},{"$f":"VALUE(FIXED(EXP(H$4*-1*'PM2.5 reduction'!H61),9))","v":0.99999683500000003},{"$f":"VALUE(FIXED(EXP(I$4*-1*'PM2.5 reduction'!I61),9))","v":0.99999855999999998},{"$f":"VALUE(FIXED(EXP(J$4*-1*'PM2.5 reduction'!J61),9))","v":0.99999585099999999},{"$f":"VALUE(FIXED(EXP(K$4*-1*'PM2.5 reduction'!K61),9))","v":0.999995462},{"$f":"VALUE(FIXED(EXP(L$4*-1*'PM2.5 reduction'!L61),9))","v":0.99999835000000004},{"$f":"VALUE(FIXED(EXP(M$4*-1*'PM2.5 reduction'!M61),9))","v":0.99999835000000004},{"$f":"VALUE(FIXED(EXP(N$4*-1*'PM2.5 reduction'!N61),9))","v":0.99999227499999999},{"$f":"VALUE(FIXED(EXP(O$4*-1*'PM2.5 reduction'!O61),9))","v":0.99999664700000002},{"$f":"VALUE(FIXED(EXP(P$4*-1*'PM2.5 reduction'!P61),9))","v":0.99999335199999995},{"$f":"VALUE(FIXED(EXP(Q$4*-1*'PM2.5 reduction'!Q61),9))","v":0.999997256},{"$f":"VALUE(FIXED(EXP(R$4*-1*'PM2.5 reduction'!R61),9))","v":0.99999468999999996},{"$f":"VALUE(FIXED(EXP(S$4*-1*'PM2.5 reduction'!S61),9))","v":0.99999403499999995},{"$f":"VALUE(FIXED(EXP(T$4*-1*'PM2.5 reduction'!T61),9))","v":0.99999125899999997},{"$f":"VALUE(FIXED(EXP(U$4*-1*'PM2.5 reduction'!U61),9))","v":1},{"$f":"VALUE(FIXED(EXP(V$4*-1*'PM2.5 reduction'!V61),9))","v":0.99999369500000002},{"$f":"VALUE(FIXED(EXP(W$4*-1*'PM2.5 reduction'!W61),9))","v":0.99999593799999997},{"$f":"VALUE(FIXED(EXP(X$4*-1*'PM2.5 reduction'!X61),9))","v":0.99999593799999997},{"$f":"VALUE(FIXED(EXP(Y$4*-1*'PM2.5 reduction'!Y61),9))","v":0.99999475800000004},{"$f":"VALUE(FIXED(EXP(Z$4*-1*'PM2.5 reduction'!Z61),9))","v":0.99999115299999997},{"$f":"VALUE(FIXED(EXP(AA$4*-1*'PM2.5 reduction'!AA61),9))","v":0.99999263299999996},{"$f":"VALUE(FIXED(EXP(AB$4*-1*'PM2.5 reduction'!AB61),9))","v":0.99999159999999998},{"$f":"VALUE(FIXED(EXP(AC$4*-1*'PM2.5 reduction'!AC61),9))","v":0.99999214700000005},{"$f":"VALUE(FIXED(EXP(AD$4*-1*'PM2.5 reduction'!AD61),9))","v":0.99999845200000004},{"$f":"VALUE(FIXED(EXP(AE$4*-1*'PM2.5 reduction'!AE61),9))","v":0.99999835599999998},{"$f":"VALUE(FIXED(EXP(AF$4*-1*'PM2.5 reduction'!AF61),9))","v":0.99999561699999995},{"$f":"VALUE(FIXED(EXP(AG$4*-1*'PM2.5 reduction'!AG61),9))","v":0.99999835599999998},{"$f":"VALUE(FIXED(EXP(AH$4*-1*'PM2.5 reduction'!AH61),9))","v":0.99999375400000001},{"$f":"VALUE(FIXED(EXP(AI$4*-1*'PM2.5 reduction'!AI61),9))","v":0.99999274100000002},{"$f":"VALUE(FIXED(EXP(AJ$4*-1*'PM2.5 reduction'!AJ61),9))","v":0.99999590400000005},{"$f":"VALUE(FIXED(EXP(AK$4*-1*'PM2.5 reduction'!AK61),9))","v":0.99999739600000004},{"$f":"VALUE(FIXED(EXP(AL$4*-1*'PM2.5 reduction'!AL61),9))","v":0.99999711199999997},{"$f":"VALUE(FIXED(EXP(AM$4*-1*'PM2.5 reduction'!AM61),9))","v":0.99999324899999997},{"$f":"VALUE(FIXED(EXP(AN$4*-1*'PM2.5 reduction'!AN61),9))","v":1},{"$f":"VALUE(FIXED(EXP(AO$4*-1*'PM2.5 reduction'!AO61),9))","v":1},{"$f":"VALUE(FIXED(EXP(AP$4*-1*'PM2.5 reduction'!AP61),9))","v":0.99999572000000003},{"$f":"VALUE(FIXED(EXP(AQ$4*-1*'PM2.5 reduction'!AQ61),9))","v":0.99999363200000002},{"$f":"VALUE(FIXED(EXP(AR$4*-1*'PM2.5 reduction'!AR61),9))","v":0.99999357899999997},{"$f":"VALUE(FIXED(EXP(AS$4*-1*'PM2.5 reduction'!AS61),9))","v":0.99999855999999998},{"$f":"VALUE(FIXED(EXP(AT$4*-1*'PM2.5 reduction'!AT61),9))","v":1},{"$f":"VALUE(FIXED(EXP(AU$4*-1*'PM2.5 reduction'!AU61),9))","v":1},{"$f":"VALUE(FIXED(EXP(AV$4*-1*'PM2.5 reduction'!AV61),9))","v":0.99999639299999998},{"$f":"VALUE(FIXED(EXP(AW$4*-1*'PM2.5 reduction'!AW61),9))","v":0.99999466999999997},{"$f":"VALUE(FIXED(EXP(AX$4*-1*'PM2.5 reduction'!AX61),9))","v":0.99999632400000005},{"$f":"VALUE(FIXED(EXP(AY$4*-1*'PM2.5 reduction'!AY61),9))","v":0.99999461199999995},{"$f":"VALUE(FIXED(EXP(AZ$4*-1*'PM2.5 reduction'!AZ61),9))","v":0.99999332200000002},{"$f":"VALUE(FIXED(EXP(BA$4*-1*'PM2.5 reduction'!BA61),9))","v":0.99999468199999997},{"$f":"VALUE(FIXED(EXP(BB$4*-1*'PM2.5 reduction'!BB61),9))","v":0.99999518600000004},{"$f":"VALUE(FIXED(EXP(BC$4*-1*'PM2.5 reduction'!BC61),9))","v":1}]
[null,"Female 10-15",{"$f":"VALUE(FIXED(EXP(C$4*-1*'PM2.5 reduction'!C62),9))","v":0.99999105700000002},{"$f":"VALUE(FIXED(EXP(D$4*-1*'PM2.5 reduction'!D62),9))","v":0.99999145599999995},{"$f":"VALUE(FIXED(EXP(E$4*-1*'PM2.5 reduction'!E62),9))","v":0.99999657799999997},{"$f":"VALUE(FIXED(EXP(F$4*-1*'PM2.5 reduction'!F62),9))","v":0.99999789299999997},{"$f":"VALUE(FIXED(EXP(G$4*-1*'PM2.5 reduction'!G62),9))","v":0.99999849200000002},{"$f":"VALUE(FIXED(EXP(H$4*-1*'PM2.5 reduction'!H62),9))","v":0.99999681600000001},{"$f":"VALUE(FIXED(EXP(I$4*-1*'PM2.5 reduction'!I62),9))","v":0.99999854099999996},{"$f":"VALUE(FIXED(EXP(J$4*-1*'PM2.5 reduction'!J62),9))","v":0.99999593899999994},{"$f":"VALUE(FIXED(EXP(K$4*-1*'PM2.5 reduction'!K62),9))","v":0.99999555900000003},{"$f":"VALUE(FIXED(EXP(L$4*-1*'PM2.5 reduction'!L62),9))","v":0.99999840299999998},{"$f":"VALUE(FIXED(EXP(M$4*-1*'PM2.5 reduction'!M62),9))","v":0.99999840299999998},{"$f":"VALUE(FIXED(EXP(N$4*-1*'PM2.5 reduction'!N62),9))","v":0.99999207700000003},{"$f":"VALUE(FIXED(EXP(O$4*-1*'PM2.5 reduction'!O62),9))","v":0.99999654599999999},{"$f":"VALUE(FIXED(EXP(P$4*-1*'PM2.5 reduction'!P62),9))","v":0.999993095},{"$f":"VALUE(FIXED(EXP(Q$4*-1*'PM2.5 reduction'!Q62),9))","v":0.99999722700000004},{"$f":"VALUE(FIXED(EXP(R$4*-1*'PM2.5 reduction'!R62),9))","v":0.999994724},{"$f":"VALUE(FIXED(EXP(S$4*-1*'PM2.5 reduction'!S62),9))","v":0.99999419300000003},{"$f":"VALUE(FIXED(EXP(T$4*-1*'PM2.5 reduction'!T62),9))","v":0.99999140399999997},{"$f":"VALUE(FIXED(EXP(U$4*-1*'PM2.5 reduction'!U62),9))","v":1},{"$f":"VALUE(FIXED(EXP(V$4*-1*'PM2.5 reduction'!V62),9))","v":0.99999382199999998},{"$f":"VALUE(FIXED(EXP(W$4*-1*'PM2.5 reduction'!W62),9))","v":0.99999600300000002},{"$f":"VALUE(FIXED(EXP(X$4*-1*'PM2.5 reduction'!X62),9))","v":0.99999600300000002},{"$f":"VALUE(FIXED(EXP(Y$4*-1*'PM2.5 reduction'!Y62),9))","v":0.99999492599999995},{"$f":"VALUE(FIXED(EXP(Z$4*-1*'PM2.5 reduction'!Z62),9))","v":0.99999130300000005},{"$f":"VALUE(FIXED(EXP(AA$4*-1*'PM2.5 reduction'!AA62),9))","v":0.99999280599999996},{"$f":"VALUE(FIXED(EXP(AB$4*-1*'PM2.5 reduction'!AB62),9))","v":0.99999176700000003},{"$f":"VALUE(FIXED(EXP(AC$4*-1*'PM2.5 reduction'!AC62),9))","v":0.99999233799999998},{"$f":"VALUE(FIXED(EXP(AD$4*-1*'PM2.5 reduction'!AD62),9))","v":0.99999842999999999},{"$f":"VALUE(FIXED(EXP(AE$4*-1*'PM2.5 reduction'!AE62),9))","v":0.99999839700000004},{"$f":"VALUE(FIXED(EXP(AF$4*-1*'PM2.5 reduction'!AF62),9))","v":0.99999569600000004},{"$f":"VALUE(FIXED(EXP(AG$4*-1*'PM2.5 reduction'!AG62),9))","v":0.99999839700000004},{"$f":"VALUE(FIXED(EXP(AH$4*-1*'PM2.5 reduction'!AH62),9))","v":0.99999379600000005},{"$f":"VALUE(FIXED(EXP(AI$4*-1*'PM2.5 reduction'!AI62),9))","v":0.99999295499999996},{"$f":"VALUE(FIXED(EXP(AJ$4*-1*'PM2.5 reduction'!AJ62),9))","v":0.99999603400000003},{"$f":"VALUE(FIXED(EXP(AK$4*-1*'PM2.5 reduction'!AK62),9))","v":0.99999739600000004},{"$f":"VALUE(FIXED(EXP(AL$4*-1*'PM2.5 reduction'!AL62),9))","v":0.99999709400000003},{"$f":"VALUE(FIXED(EXP(AM$4*-1*'PM2.5 reduction'!AM62),9))","v":0.99999330399999997},{"$f":"VALUE(FIXED(EXP(AN$4*-1*'PM2.5 reduction'!AN62),9))","v":1},{"$f":"VALUE(FIXED(EXP(AO$4*-1*'PM2.5 reduction'!AO62),9))","v":1},{"$f":"VALUE(FIXED(EXP(AP$4*-1*'PM2.5 reduction'!AP62),9))","v":0.99999583999999997},{"$f":"VALUE(FIXED(EXP(AQ$4*-1*'PM2.5 reduction'!AQ62),9))","v":0.99999386199999996},{"$f":"VALUE(FIXED(EXP(AR$4*-1*'PM2.5 reduction'!AR62),9))","v":0.99999373999999996},{"$f":"VALUE(FIXED(EXP(AS$4*-1*'PM2.5 reduction'!AS62),9))","v":0.99999854099999996},{"$f":"VALUE(FIXED(EXP(AT$4*-1*'PM2.5 reduction'!AT62),9))","v":1},{"$f":"VALUE(FIXED(EXP(AU$4*-1*'PM2.5 reduction'!AU62),9))","v":1},{"$f":"VALUE(FIXED(EXP(AV$4*-1*'PM2.5 reduction'!AV62),9))","v":0.99999650500000004},{"$f":"VALUE(FIXED(EXP(AW$4*-1*'PM2.5 reduction'!AW62),9))","v":0.99999464800000004},{"$f":"VALUE(FIXED(EXP(AX$4*-1*'PM2.5 reduction'!AX62),9))","v":0.99999634199999998},{"$f":"VALUE(FIXED(EXP(AY$4*-1*'PM2.5 reduction'!AY62),9))","v":0.99999458900000004},{"$f":"VALUE(FIXED(EXP(AZ$4*-1*'PM2.5 reduction'!AZ62),9))","v":0.99999325400000005},{"$f":"VALUE(FIXED(EXP(BA$4*-1*'PM2.5 reduction'!BA62),9))","v":0.99999468599999997},{"$f":"VALUE(FIXED(EXP(BB$4*-1*'PM2.5 reduction'!BB62),9))","v":0.99999518899999995},{"$f":"VALUE(FIXED(EXP(BC$4*-1*'PM2.5 reduction'!BC62),9))","v":1}]
[null,"Female 16-19",{"$f":"VALUE(FIXED(EXP(C$4*-1*'PM2.5 reduction'!C63),9))","v":0.999990763},{"$f":"VALUE(FIXED(EXP(D$4*-1*'PM2.5 reduction'!D63),9))","v":0.99999147899999996},{"$f":"VALUE(FIXED(EXP(E$4*-1*'PM2.5 reduction'!E63),9))","v":0.99999667999999997},{"$f":"VALUE(FIXED(EXP(F$4*-1*'PM2.5 reduction'!F63),9))","v":0.99999785699999999},{"$f":"VALUE(FIXED(EXP(G$4*-1*'PM2.5 reduction'!G63),9))","v":0.99999858399999997},{"$f":"VALUE(FIXED(EXP(H$4*-1*'PM2.5 reduction'!H63),9))","v":0.99999686700000001},{"$f":"VALUE(FIXED(EXP(I$4*-1*'PM2.5 reduction'!I63),9))","v":0.99999850400000001},{"$f":"VALUE(FIXED(EXP(J$4*-1*'PM2.5 reduction'!J63),9))","v":0.99999570100000001},{"$f":"VALUE(FIXED(EXP(K$4*-1*'PM2.5 reduction'!K63),9))","v":0.99999543099999999},{"$f":"VALUE(FIXED(EXP(L$4*-1*'PM2.5 reduction'!L63),9))","v":0.99999837999999996},{"$f":"VALUE(FIXED(EXP(M$4*-1*'PM2.5 reduction'!M63),9))","v":0.99999837999999996},{"$f":"VALUE(FIXED(EXP(N$4*-1*'PM2.5 reduction'!N63),9))","v":0.99999180700000001},{"$f":"VALUE(FIXED(EXP(O$4*-1*'PM2.5 reduction'!O63),9))","v":0.99999669499999999},{"$f":"VALUE(FIXED(EXP(P$4*-1*'PM2.5 reduction'!P63),9))","v":0.99999328099999996},{"$f":"VALUE(FIXED(EXP(Q$4*-1*'PM2.5 reduction'!Q63),9))","v":0.99999726499999997},{"$f":"VALUE(FIXED(EXP(R$4*-1*'PM2.5 reduction'!R63),9))","v":0.99999453000000005},{"$f":"VALUE(FIXED(EXP(S$4*-1*'PM2.5 reduction'!S63),9))","v":0.99999416200000002},{"$f":"VALUE(FIXED(EXP(T$4*-1*'PM2.5 reduction'!T63),9))","v":0.99999113299999998},{"$f":"VALUE(FIXED(EXP(U$4*-1*'PM2.5 reduction'!U63),9))","v":1},{"$f":"VALUE(FIXED(EXP(V$4*-1*'PM2.5 reduction'!V63),9))","v":0.99999366000000001},{"$f":"VALUE(FIXED(EXP(W$4*-1*'PM2.5 reduction'!W63),9))","v":0.99999606500000005},{"$f":"VALUE(FIXED(EXP(X$4*-1*'PM2.5 reduction'!X63),9))","v":0.99999606500000005},{"$f":"VALUE(FIXED(EXP(Y$4*-1*'PM2.5 reduction'!Y63),9))","v":0.99999476499999995},{"$f":"VALUE(FIXED(EXP(Z$4*-1*'PM2.5 reduction'!Z63),9))","v":0.99999075900000001},{"$f":"VALUE(FIXED(EXP(AA$4*-1*'PM2.5 reduction'!AA63),9))","v":0.99999247499999999},{"$f":"VALUE(FIXED(EXP(AB$4*-1*'PM2.5 reduction'!AB63),9))","v":0.99999171799999997},{"$f":"VALUE(FIXED(EXP(AC$4*-1*'PM2.5 reduction'!AC63),9))","v":0.99999188900000002},{"$f":"VALUE(FIXED(EXP(AD$4*-1*'PM2.5 reduction'!AD63),9))","v":0.99999845200000004},{"$f":"VALUE(FIXED(EXP(AE$4*-1*'PM2.5 reduction'!AE63),9))","v":0.99999837999999996},{"$f":"VALUE(FIXED(EXP(AF$4*-1*'PM2.5 reduction'!AF63),9))","v":0.99999570400000004},{"$f":"VALUE(FIXED(EXP(AG$4*-1*'PM2.5 reduction'!AG63),9))","v":0.99999837999999996},{"$f":"VALUE(FIXED(EXP(AH$4*-1*'PM2.5 reduction'!AH63),9))","v":0.999993727},{"$f":"VALUE(FIXED(EXP(AI$4*-1*'PM2.5 reduction'!AI63),9))","v":0.99999274800000004},{"$f":"VALUE(FIXED(EXP(AJ$4*-1*'PM2.5 reduction'!AJ63),9))","v":0.99999602099999996},{"$f":"VALUE(FIXED(EXP(AK$4*-1*'PM2.5 reduction'!AK63),9))","v":0.99999739600000004},{"$f":"VALUE(FIXED(EXP(AL$4*-1*'PM2.5 reduction'!AL63),9))","v":0.99999713099999998},{"$f":"VALUE(FIXED(EXP(AM$4*-1*'PM2.5 reduction'!AM63),9))","v":0.99999324000000001},{"$f":"VALUE(FIXED(EXP(AN$4*-1*'PM2.5 reduction'!AN63),9))","v":1},{"$f":"VALUE(FIXED(EXP(AO$4*-1*'PM2.5 reduction'!AO63),9))","v":1},{"$f":"VALUE(FIXED(EXP(AP$4*-1*'PM2.5 reduction'!AP63),9))","v":0.99999548900000002},{"$f":"VALUE(FIXED(EXP(AQ$4*-1*'PM2.5 reduction'!AQ63),9))","v":0.99999356399999995},{"$f":"VALUE(FIXED(EXP(AR$4*-1*'PM2.5 reduction'!AR63),9))","v":0.99999351800000003},{"$f":"VALUE(FIXED(EXP(AS$4*-1*'PM2.5 reduction'!AS63),9))","v":0.99999850400000001},{"$f":"VALUE(FIXED(EXP(AT$4*-1*'PM2.5 reduction'!AT63),9))","v":1},{"$f":"VALUE(FIXED(EXP(AU$4*-1*'PM2.5 reduction'!AU63),9))","v":1},{"$f":"VALUE(FIXED(EXP(AV$4*-1*'PM2.5 reduction'!AV63),9))","v":0.99999644899999995},{"$f":"VALUE(FIXED(EXP(AW$4*-1*'PM2.5 reduction'!AW63),9))","v":0.99999456600000003},{"$f":"VALUE(FIXED(EXP(AX$4*-1*'PM2.5 reduction'!AX63),9))","v":0.99999594000000003},{"$f":"VALUE(FIXED(EXP(AY$4*-1*'PM2.5 reduction'!AY63),9))","v":0.99999444000000004},{"$f":"VALUE(FIXED(EXP(AZ$4*-1*'PM2.5 reduction'!AZ63),9))","v":0.99999294100000002},{"$f":"VALUE(FIXED(EXP(BA$4*-1*'PM2.5 reduction'!BA63),9))","v":0.99999461599999995},{"$f":"VALUE(FIXED(EXP(BB$4*-1*'PM2.5 reduction'!BB63),9))","v":0.99999505200000005},{"$f":"VALUE(FIXED(EXP(BC$4*-1*'PM2.5 reduction'!BC63),9))","v":1}]
[null,"Female 20-24",{"$f":"VALUE(FIXED(EXP(C$4*-1*'PM2.5 reduction'!C64),9))","v":0.99999023899999995},{"$f":"VALUE(FIXED(EXP(D$4*-1*'PM2.5 reduction'!D64),9))","v":0.99999085899999995},{"$f":"VALUE(FIXED(EXP(E$4*-1*'PM2.5 reduction'!E64),9))","v":0.99999644399999998},{"$f":"VALUE(FIXED(EXP(F$4*-1*'PM2.5 reduction'!F64),9))","v":0.99999787500000004},{"$f":"VALUE(FIXED(EXP(G$4*-1*'PM2.5 reduction'!G64),9))","v":0.99999852700000003},{"$f":"VALUE(FIXED(EXP(H$4*-1*'PM2.5 reduction'!H64),9))","v":0.99999670600000001},{"$f":"VALUE(FIXED(EXP(I$4*-1*'PM2.5 reduction'!I64),9))","v":0.999998516},{"$f":"VALUE(FIXED(EXP(J$4*-1*'PM2.5 reduction'!J64),9))","v":0.99999533100000004},{"$f":"VALUE(FIXED(EXP(K$4*-1*'PM2.5 reduction'!K64),9))","v":0.99999546800000005},{"$f":"VALUE(FIXED(EXP(L$4*-1*'PM2.5 reduction'!L64),9))","v":0.99999840500000003},{"$f":"VALUE(FIXED(EXP(M$4*-1*'PM2.5 reduction'!M64),9))","v":0.99999840500000003},{"$f":"VALUE(FIXED(EXP(N$4*-1*'PM2.5 reduction'!N64),9))","v":0.99999084699999996},{"$f":"VALUE(FIXED(EXP(O$4*-1*'PM2.5 reduction'!O64),9))","v":0.99999652500000002},{"$f":"VALUE(FIXED(EXP(P$4*-1*'PM2.5 reduction'!P64),9))","v":0.999993558},{"$f":"VALUE(FIXED(EXP(Q$4*-1*'PM2.5 reduction'!Q64),9))","v":0.99999724599999995},{"$f":"VALUE(FIXED(EXP(R$4*-1*'PM2.5 reduction'!R64),9))","v":0.99999447699999999},{"$f":"VALUE(FIXED(EXP(S$4*-1*'PM2.5 reduction'!S64),9))","v":0.99999368},{"$f":"VALUE(FIXED(EXP(T$4*-1*'PM2.5 reduction'!T64),9))","v":0.99999061899999997},{"$f":"VALUE(FIXED(EXP(U$4*-1*'PM2.5 reduction'!U64),9))","v":1},{"$f":"VALUE(FIXED(EXP(V$4*-1*'PM2.5 reduction'!V64),9))","v":0.99999365799999995},{"$f":"VALUE(FIXED(EXP(W$4*-1*'PM2.5 reduction'!W64),9))","v":0.99999592199999998},{"$f":"VALUE(FIXED(EXP(X$4*-1*'PM2.5 reduction'!X64),9))","v":0.99999592199999998},{"$f":"VALUE(FIXED(EXP(Y$4*-1*'PM2.5 reduction'!Y64),9))","v":0.99999455299999995},{"$f":"VALUE(FIXED(EXP(Z$4*-1*'PM2.5 reduction'!Z64),9))","v":0.999990351},{"$f":"VALUE(FIXED(EXP(AA$4*-1*'PM2.5 reduction'!AA64),9))","v":0.99999206600000001},{"$f":"VALUE(FIXED(EXP(AB$4*-1*'PM2.5 reduction'!AB64),9))","v":0.99999115400000005},{"$f":"VALUE(FIXED(EXP(AC$4*-1*'PM2.5 reduction'!AC64),9))","v":0.99999146299999997},{"$f":"VALUE(FIXED(EXP(AD$4*-1*'PM2.5 reduction'!AD64),9))","v":0.99999843600000005},{"$f":"VALUE(FIXED(EXP(AE$4*-1*'PM2.5 reduction'!AE64),9))","v":0.99999838699999999},{"$f":"VALUE(FIXED(EXP(AF$4*-1*'PM2.5 reduction'!AF64),9))","v":0.99999538499999996},{"$f":"VALUE(FIXED(EXP(AG$4*-1*'PM2.5 reduction'!AG64),9))","v":0.99999838699999999},{"$f":"VALUE(FIXED(EXP(AH$4*-1*'PM2.5 reduction'!AH64),9))","v":0.99999365699999998},{"$f":"VALUE(FIXED(EXP(AI$4*-1*'PM2.5 reduction'!AI64),9))","v":0.99999231899999996},{"$f":"VALUE(FIXED(EXP(AJ$4*-1*'PM2.5 reduction'!AJ64),9))","v":0.99999585300000005},{"$f":"VALUE(FIXED(EXP(AK$4*-1*'PM2.5 reduction'!AK64),9))","v":0.99999739600000004},{"$f":"VALUE(FIXED(EXP(AL$4*-1*'PM2.5 reduction'!AL64),9))","v":0.99999699900000005},{"$f":"VALUE(FIXED(EXP(AM$4*-1*'PM2.5 reduction'!AM64),9))","v":0.999993205},{"$f":"VALUE(FIXED(EXP(AN$4*-1*'PM2.5 reduction'!AN64),9))","v":1},{"$f":"VALUE(FIXED(EXP(AO$4*-1*'PM2.5 reduction'!AO64),9))","v":1},{"$f":"VALUE(FIXED(EXP(AP$4*-1*'PM2.5 reduction'!AP64),9))","v":0.99999406300000004},{"$f":"VALUE(FIXED(EXP(AQ$4*-1*'PM2.5 reduction'!AQ64),9))","v":0.99999307900000001},{"$f":"VALUE(FIXED(EXP(AR$4*-1*'PM2.5 reduction'!AR64),9))","v":0.99999300899999999},{"$f":"VALUE(FIXED(EXP(AS$4*-1*'PM2.5 reduction'!AS64),9))","v":0.999998516},{"$f":"VALUE(FIXED(EXP(AT$4*-1*'PM2.5 reduction'!AT64),9))","v":1},{"$f":"VALUE(FIXED(EXP(AU$4*-1*'PM2.5 reduction'!AU64),9))","v":1},{"$f":"VALUE(FIXED(EXP(AV$4*-1*'PM2.5 reduction'!AV64),9))","v":0.99999624099999995},{"$f":"VALUE(FIXED(EXP(AW$4*-1*'PM2.5 reduction'!AW64),9))","v":0.999994418},{"$f":"VALUE(FIXED(EXP(AX$4*-1*'PM2.5 reduction'!AX64),9))","v":0.99999521199999997},{"$f":"VALUE(FIXED(EXP(AY$4*-1*'PM2.5 reduction'!AY64),9))","v":0.999993566},{"$f":"VALUE(FIXED(EXP(AZ$4*-1*'PM2.5 reduction'!AZ64),9))","v":0.99999190199999999},{"$f":"VALUE(FIXED(EXP(BA$4*-1*'PM2.5 reduction'!BA64),9))","v":0.99999428999999995},{"$f":"VALUE(FIXED(EXP(BB$4*-1*'PM2.5 reduction'!BB64),9))","v":0.99999502699999998},{"$f":"VALUE(FIXED(EXP(BC$4*-1*'PM2.5 reduction'!BC64),9))","v":1}]
[null,"Female 25-29",{"$f":"VALUE(FIXED(EXP(C$4*-1*'PM2.5 reduction'!C65),9))","v":0.99999028499999998},{"$f":"VALUE(FIXED(EXP(D$4*-1*'PM2.5 reduction'!D65),9))","v":0.99999094499999996},{"$f":"VALUE(FIXED(EXP(E$4*-1*'PM2.5 reduction'!E65),9))","v":0.99999640899999998},{"$f":"VALUE(FIXED(EXP(F$4*-1*'PM2.5 reduction'!F65),9))","v":0.99999802100000001},{"$f":"VALUE(FIXED(EXP(G$4*-1*'PM2.5 reduction'!G65),9))","v":0.99999856899999995},{"$f":"VALUE(FIXED(EXP(H$4*-1*'PM2.5 reduction'!H65),9))","v":0.999996581},{"$f":"VALUE(FIXED(EXP(I$4*-1*'PM2.5 reduction'!I65),9))","v":0.99999854300000002},{"$f":"VALUE(FIXED(EXP(J$4*-1*'PM2.5 reduction'!J65),9))","v":0.99999558600000005},{"$f":"VALUE(FIXED(EXP(K$4*-1*'PM2.5 reduction'!K65),9))","v":0.99999529399999998},{"$f":"VALUE(FIXED(EXP(L$4*-1*'PM2.5 reduction'!L65),9))","v":0.99999833999999999},{"$f":"VALUE(FIXED(EXP(M$4*-1*'PM2.5 reduction'!M65),9))","v":0.99999833999999999},{"$f":"VALUE(FIXED(EXP(N$4*-1*'PM2.5 reduction'!N65),9))","v":0.99999134700000003},{"$f":"VALUE(FIXED(EXP(O$4*-1*'PM2.5 reduction'!O65),9))","v":0.99999626699999999},{"$f":"VALUE(FIXED(EXP(P$4*-1*'PM2.5 reduction'!P65),9))","v":0.999992993},{"$f":"VALUE(FIXED(EXP(Q$4*-1*'PM2.5 reduction'!Q65),9))","v":0.99999716599999999},{"$f":"VALUE(FIXED(EXP(R$4*-1*'PM2.5 reduction'!R65),9))","v":0.99999436200000003},{"$f":"VALUE(FIXED(EXP(S$4*-1*'PM2.5 reduction'!S65),9))","v":0.99999331199999997},{"$f":"VALUE(FIXED(EXP(T$4*-1*'PM2.5 reduction'!T65),9))","v":0.99999057099999999},{"$f":"VALUE(FIXED(EXP(U$4*-1*'PM2.5 reduction'!U65),9))","v":1},{"$f":"VALUE(FIXED(EXP(V$4*-1*'PM2.5 reduction'!V65),9))","v":0.99999349999999998},{"$f":"VALUE(FIXED(EXP(W$4*-1*'PM2.5 reduction'!W65),9))","v":0.99999590599999999},{"$f":"VALUE(FIXED(EXP(X$4*-1*'PM2.5 reduction'!X65),9))","v":0.99999590599999999},{"$f":"VALUE(FIXED(EXP(Y$4*-1*'PM2.5 reduction'!Y65),9))","v":0.999994563},{"$f":"VALUE(FIXED(EXP(Z$4*-1*'PM2.5 reduction'!Z65),9))","v":0.99999053699999996},{"$f":"VALUE(FIXED(EXP(AA$4*-1*'PM2.5 reduction'!AA65),9))","v":0.99999194400000002},{"$f":"VALUE(FIXED(EXP(AB$4*-1*'PM2.5 reduction'!AB65),9))","v":0.99999109900000005},{"$f":"VALUE(FIXED(EXP(AC$4*-1*'PM2.5 reduction'!AC65),9))","v":0.99999139400000003},{"$f":"VALUE(FIXED(EXP(AD$4*-1*'PM2.5 reduction'!AD65),9))","v":0.99999843499999996},{"$f":"VALUE(FIXED(EXP(AE$4*-1*'PM2.5 reduction'!AE65),9))","v":0.999998371},{"$f":"VALUE(FIXED(EXP(AF$4*-1*'PM2.5 reduction'!AF65),9))","v":0.99999523899999998},{"$f":"VALUE(FIXED(EXP(AG$4*-1*'PM2.5 reduction'!AG65),9))","v":0.999998371},{"$f":"VALUE(FIXED(EXP(AH$4*-1*'PM2.5 reduction'!AH65),9))","v":0.99999367699999997},{"$f":"VALUE(FIXED(EXP(AI$4*-1*'PM2.5 reduction'!AI65),9))","v":0.99999191600000004},{"$f":"VALUE(FIXED(EXP(AJ$4*-1*'PM2.5 reduction'!AJ65),9))","v":0.99999559299999996},{"$f":"VALUE(FIXED(EXP(AK$4*-1*'PM2.5 reduction'!AK65),9))","v":0.99999739600000004},{"$f":"VALUE(FIXED(EXP(AL$4*-1*'PM2.5 reduction'!AL65),9))","v":0.99999697600000004},{"$f":"VALUE(FIXED(EXP(AM$4*-1*'PM2.5 reduction'!AM65),9))","v":0.99999324000000001},{"$f":"VALUE(FIXED(EXP(AN$4*-1*'PM2.5 reduction'!AN65),9))","v":1},{"$f":"VALUE(FIXED(EXP(AO$4*-1*'PM2.5 reduction'!AO65),9))","v":1},{"$f":"VALUE(FIXED(EXP(AP$4*-1*'PM2.5 reduction'!AP65),9))","v":0.99999422800000004},{"$f":"VALUE(FIXED(EXP(AQ$4*-1*'PM2.5 reduction'!AQ65),9))","v":0.99999303299999998},{"$f":"VALUE(FIXED(EXP(AR$4*-1*'PM2.5 reduction'!AR65),9))","v":0.99999279200000002},{"$f":"VALUE(FIXED(EXP(AS$4*-1*'PM2.5 reduction'!AS65),9))","v":0.99999854300000002},{"$f":"VALUE(FIXED(EXP(AT$4*-1*'PM2.5 reduction'!AT65),9))","v":1},{"$f":"VALUE(FIXED(EXP(AU$4*-1*'PM2.5 reduction'!AU65),9))","v":1},{"$f":"VALUE(FIXED(EXP(AV$4*-1*'PM2.5 reduction'!AV65),9))","v":0.99999607000000001},{"$f":"VALUE(FIXED(EXP(AW$4*-1*'PM2.5 reduction'!AW65),9))","v":0.99999443799999999},{"$f":"VALUE(FIXED(EXP(AX$4*-1*'PM2.5 reduction'!AX65),9))","v":0.99999580799999999},{"$f":"VALUE(FIXED(EXP(AY$4*-1*'PM2.5 reduction'!AY65),9))","v":0.99999368499999997},{"$f":"VALUE(FIXED(EXP(AZ$4*-1*'PM2.5 reduction'!AZ65),9))","v":0.99999216599999996},{"$f":"VALUE(FIXED(EXP(BA$4*-1*'PM2.5 reduction'!BA65),9))","v":0.99999439999999995},{"$f":"VALUE(FIXED(EXP(BB$4*-1*'PM2.5 reduction'!BB65),9))","v":0.99999517800000004},{"$f":"VALUE(FIXED(EXP(BC$4*-1*'PM2.5 reduction'!BC65),9))","v":1}]
[null,"Female 30-34",{"$f":"VALUE(FIXED(EXP(C$4*-1*'PM2.5 reduction'!C66),9))","v":0.99999069900000004},{"$f":"VALUE(FIXED(EXP(D$4*-1*'PM2.5 reduction'!D66),9))","v":0.99999128999999998},{"$f":"VALUE(FIXED(EXP(E$4*-1*'PM2.5 reduction'!E66),9))","v":0.99999645000000004},{"$f":"VALUE(FIXED(EXP(F$4*-1*'PM2.5 reduction'!F66),9))","v":0.99999785699999999},{"$f":"VALUE(FIXED(EXP(G$4*-1*'PM2.5 reduction'!G66),9))","v":0.99999856600000003},{"$f":"VALUE(FIXED(EXP(H$4*-1*'PM2.5 reduction'!H66),9))","v":0.99999658199999997},{"$f":"VALUE(FIXED(EXP(I$4*-1*'PM2.5 reduction'!I66),9))","v":0.99999849200000002},{"$f":"VALUE(FIXED(EXP(J$4*-1*'PM2.5 reduction'!J66),9))","v":0.99999562099999995},{"$f":"VALUE(FIXED(EXP(K$4*-1*'PM2.5 reduction'!K66),9))","v":0.99999528299999996},{"$f":"VALUE(FIXED(EXP(L$4*-1*'PM2.5 reduction'!L66),9))","v":0.99999830899999997},{"$f":"VALUE(FIXED(EXP(M$4*-1*'PM2.5 reduction'!M66),9))","v":0.99999830899999997},{"$f":"VALUE(FIXED(EXP(N$4*-1*'PM2.5 reduction'!N66),9))","v":0.99999177699999997},{"$f":"VALUE(FIXED(EXP(O$4*-1*'PM2.5 reduction'!O66),9))","v":0.999996149},{"$f":"VALUE(FIXED(EXP(P$4*-1*'PM2.5 reduction'!P66),9))","v":0.99999313300000003},{"$f":"VALUE(FIXED(EXP(Q$4*-1*'PM2.5 reduction'!Q66),9))","v":0.99999712699999999},{"$f":"VALUE(FIXED(EXP(R$4*-1*'PM2.5 reduction'!R66),9))","v":0.99999465300000001},{"$f":"VALUE(FIXED(EXP(S$4*-1*'PM2.5 reduction'!S66),9))","v":0.99999328099999996},{"$f":"VALUE(FIXED(EXP(T$4*-1*'PM2.5 reduction'!T66),9))","v":0.99999070700000003},{"$f":"VALUE(FIXED(EXP(U$4*-1*'PM2.5 reduction'!U66),9))","v":1},{"$f":"VALUE(FIXED(EXP(V$4*-1*'PM2.5 reduction'!V66),9))","v":0.99999372399999997},{"$f":"VALUE(FIXED(EXP(W$4*-1*'PM2.5 reduction'!W66),9))","v":0.99999580099999996},{"$f":"VALUE(FIXED(EXP(X$4*-1*'PM2.5 reduction'!X66),9))","v":0.99999580099999996},{"$f":"VALUE(FIXED(EXP(Y$4*-1*'PM2.5 reduction'!Y66),9))","v":0.99999461599999995},{"$f":"VALUE(FIXED(EXP(Z$4*-1*'PM2.5 reduction'!Z66),9))","v":0.99999067600000002},{"$f":"VALUE(FIXED(EXP(AA$4*-1*'PM2.5 reduction'!AA66),9))","v":0.99999219699999997},{"$f":"VALUE(FIXED(EXP(AB$4*-1*'PM2.5 reduction'!AB66),9))","v":0.999991517},{"$f":"VALUE(FIXED(EXP(AC$4*-1*'PM2.5 reduction'!AC66),9))","v":0.99999162100000005},{"$f":"VALUE(FIXED(EXP(AD$4*-1*'PM2.5 reduction'!AD66),9))","v":0.99999842699999997},{"$f":"VALUE(FIXED(EXP(AE$4*-1*'PM2.5 reduction'!AE66),9))","v":0.99999836399999997},{"$f":"VALUE(FIXED(EXP(AF$4*-1*'PM2.5 reduction'!AF66),9))","v":0.99999531900000005},{"$f":"VALUE(FIXED(EXP(AG$4*-1*'PM2.5 reduction'!AG66),9))","v":0.99999836399999997},{"$f":"VALUE(FIXED(EXP(AH$4*-1*'PM2.5 reduction'!AH66),9))","v":0.99999368799999999},{"$f":"VALUE(FIXED(EXP(AI$4*-1*'PM2.5 reduction'!AI66),9))","v":0.99999204600000002},{"$f":"VALUE(FIXED(EXP(AJ$4*-1*'PM2.5 reduction'!AJ66),9))","v":0.99999565400000001},{"$f":"VALUE(FIXED(EXP(AK$4*-1*'PM2.5 reduction'!AK66),9))","v":0.99999739600000004},{"$f":"VALUE(FIXED(EXP(AL$4*-1*'PM2.5 reduction'!AL66),9))","v":0.99999702800000001},{"$f":"VALUE(FIXED(EXP(AM$4*-1*'PM2.5 reduction'!AM66),9))","v":0.999993252},{"$f":"VALUE(FIXED(EXP(AN$4*-1*'PM2.5 reduction'!AN66),9))","v":1},{"$f":"VALUE(FIXED(EXP(AO$4*-1*'PM2.5 reduction'!AO66),9))","v":1},{"$f":"VALUE(FIXED(EXP(AP$4*-1*'PM2.5 reduction'!AP66),9))","v":0.99999486500000001},{"$f":"VALUE(FIXED(EXP(AQ$4*-1*'PM2.5 reduction'!AQ66),9))","v":0.999993405},{"$f":"VALUE(FIXED(EXP(AR$4*-1*'PM2.5 reduction'!AR66),9))","v":0.99999301500000004},{"$f":"VALUE(FIXED(EXP(AS$4*-1*'PM2.5 reduction'!AS66),9))","v":0.99999849200000002},{"$f":"VALUE(FIXED(EXP(AT$4*-1*'PM2.5 reduction'!AT66),9))","v":1},{"$f":"VALUE(FIXED(EXP(AU$4*-1*'PM2.5 reduction'!AU66),9))","v":1},{"$f":"VALUE(FIXED(EXP(AV$4*-1*'PM2.5 reduction'!AV66),9))","v":0.99999622700000002},{"$f":"VALUE(FIXED(EXP(AW$4*-1*'PM2.5 reduction'!AW66),9))","v":0.99999439199999995},{"$f":"VALUE(FIXED(EXP(AX$4*-1*'PM2.5 reduction'!AX66),9))","v":0.99999593399999998},{"$f":"VALUE(FIXED(EXP(AY$4*-1*'PM2.5 reduction'!AY66),9))","v":0.999994041},{"$f":"VALUE(FIXED(EXP(AZ$4*-1*'PM2.5 reduction'!AZ66),9))","v":0.99999277099999995},{"$f":"VALUE(FIXED(EXP(BA$4*-1*'PM2.5 reduction'!BA66),9))","v":0.99999443700000001},{"$f":"VALUE(FIXED(EXP(BB$4*-1*'PM2.5 reduction'!BB66),9))","v":0.99999523099999998},{"$f":"VALUE(FIXED(EXP(BC$4*-1*'PM2.5 reduction'!BC66),9))","v":1}]
[null,"Female 35-39",{"$f":"VALUE(FIXED(EXP(C$4*-1*'PM2.5 reduction'!C67),9))","v":0.99999061700000003},{"$f":"VALUE(FIXED(EXP(D$4*-1*'PM2.5 reduction'!D67),9))","v":0.99999122500000004},{"$f":"VALUE(FIXED(EXP(E$4*-1*'PM2.5 reduction'!E67),9))","v":0.99999668799999997},{"$f":"VALUE(FIXED(EXP(F$4*-1*'PM2.5 reduction'!F67),9))","v":0.99999778100000003},{"$f":"VALUE(FIXED(EXP(G$4*-1*'PM2.5 reduction'!G67),9))","v":0.99999856200000004},{"$f":"VALUE(FIXED(EXP(H$4*-1*'PM2.5 reduction'!H67),9))","v":0.99999671700000003},{"$f":"VALUE(FIXED(EXP(I$4*-1*'PM2.5 reduction'!I67),9))","v":0.99999854600000004},{"$f":"VALUE(FIXED(EXP(J$4*-1*'PM2.5 reduction'!J67),9))","v":0.99999573799999997},{"$f":"VALUE(FIXED(EXP(K$4*-1*'PM2.5 reduction'!K67),9))","v":0.99999550999999998},{"$f":"VALUE(FIXED(EXP(L$4*-1*'PM2.5 reduction'!L67),9))","v":0.99999839099999999},{"$f":"VALUE(FIXED(EXP(M$4*-1*'PM2.5 reduction'!M67),9))","v":0.99999839099999999},{"$f":"VALUE(FIXED(EXP(N$4*-1*'PM2.5 reduction'!N67),9))","v":0.99999191300000001},{"$f":"VALUE(FIXED(EXP(O$4*-1*'PM2.5 reduction'!O67),9))","v":0.99999633799999998},{"$f":"VALUE(FIXED(EXP(P$4*-1*'PM2.5 reduction'!P67),9))","v":0.99999331199999997},{"$f":"VALUE(FIXED(EXP(Q$4*-1*'PM2.5 reduction'!Q67),9))","v":0.99999717799999999},{"$f":"VALUE(FIXED(EXP(R$4*-1*'PM2.5 reduction'!R67),9))","v":0.99999450499999998},{"$f":"VALUE(FIXED(EXP(S$4*-1*'PM2.5 reduction'!S67),9))","v":0.99999354699999998},{"$f":"VALUE(FIXED(EXP(T$4*-1*'PM2.5 reduction'!T67),9))","v":0.99999084699999996},{"$f":"VALUE(FIXED(EXP(U$4*-1*'PM2.5 reduction'!U67),9))","v":1},{"$f":"VALUE(FIXED(EXP(V$4*-1*'PM2.5 reduction'!V67),9))","v":0.99999365799999995},{"$f":"VALUE(FIXED(EXP(W$4*-1*'PM2.5 reduction'!W67),9))","v":0.99999592100000001},{"$f":"VALUE(FIXED(EXP(X$4*-1*'PM2.5 reduction'!X67),9))","v":0.99999592100000001},{"$f":"VALUE(FIXED(EXP(Y$4*-1*'PM2.5 reduction'!Y67),9))","v":0.99999473699999997},{"$f":"VALUE(FIXED(EXP(Z$4*-1*'PM2.5 reduction'!Z67),9))","v":0.99999085899999995},{"$f":"VALUE(FIXED(EXP(AA$4*-1*'PM2.5 reduction'!AA67),9))","v":0.99999234699999995},{"$f":"VALUE(FIXED(EXP(AB$4*-1*'PM2.5 reduction'!AB67),9))","v":0.99999145499999997},{"$f":"VALUE(FIXED(EXP(AC$4*-1*'PM2.5 reduction'!AC67),9))","v":0.99999180099999996},{"$f":"VALUE(FIXED(EXP(AD$4*-1*'PM2.5 reduction'!AD67),9))","v":0.99999838200000002},{"$f":"VALUE(FIXED(EXP(AE$4*-1*'PM2.5 reduction'!AE67),9))","v":0.99999828499999999},{"$f":"VALUE(FIXED(EXP(AF$4*-1*'PM2.5 reduction'!AF67),9))","v":0.99999550100000001},{"$f":"VALUE(FIXED(EXP(AG$4*-1*'PM2.5 reduction'!AG67),9))","v":0.99999828499999999},{"$f":"VALUE(FIXED(EXP(AH$4*-1*'PM2.5 reduction'!AH67),9))","v":0.99999369999999999},{"$f":"VALUE(FIXED(EXP(AI$4*-1*'PM2.5 reduction'!AI67),9))","v":0.99999226799999996},{"$f":"VALUE(FIXED(EXP(AJ$4*-1*'PM2.5 reduction'!AJ67),9))","v":0.99999585300000005},{"$f":"VALUE(FIXED(EXP(AK$4*-1*'PM2.5 reduction'!AK67),9))","v":0.99999739600000004},{"$f":"VALUE(FIXED(EXP(AL$4*-1*'PM2.5 reduction'!AL67),9))","v":0.99999709999999997},{"$f":"VALUE(FIXED(EXP(AM$4*-1*'PM2.5 reduction'!AM67),9))","v":0.99999321600000002},{"$f":"VALUE(FIXED(EXP(AN$4*-1*'PM2.5 reduction'!AN67),9))","v":1},{"$f":"VALUE(FIXED(EXP(AO$4*-1*'PM2.5 reduction'!AO67),9))","v":1},{"$f":"VALUE(FIXED(EXP(AP$4*-1*'PM2.5 reduction'!AP67),9))","v":0.99999566299999998},{"$f":"VALUE(FIXED(EXP(AQ$4*-1*'PM2.5 reduction'!AQ67),9))","v":0.99999337899999996},{"$f":"VALUE(FIXED(EXP(AR$4*-1*'PM2.5 reduction'!AR67),9))","v":0.999993197},{"$f":"VALUE(FIXED(EXP(AS$4*-1*'PM2.5 reduction'!AS67),9))","v":0.99999854600000004},{"$f":"VALUE(FIXED(EXP(AT$4*-1*'PM2.5 reduction'!AT67),9))","v":1},{"$f":"VALUE(FIXED(EXP(AU$4*-1*'PM2.5 reduction'!AU67),9))","v":1},{"$f":"VALUE(FIXED(EXP(AV$4*-1*'PM2.5 reduction'!AV67),9))","v":0.99999631},{"$f":"VALUE(FIXED(EXP(AW$4*-1*'PM2.5 reduction'!AW67),9))","v":0.99999448499999999},{"$f":"VALUE(FIXED(EXP(AX$4*-1*'PM2.5 reduction'!AX67),9))","v":0.99999602499999996},{"$f":"VALUE(FIXED(EXP(AY$4*-1*'PM2.5 reduction'!AY67),9))","v":0.99999434899999995},{"$f":"VALUE(FIXED(EXP(AZ$4*-1*'PM2.5 reduction'!AZ67),9))","v":0.99999307199999998},{"$f":"VALUE(FIXED(EXP(BA$4*-1*'PM2.5 reduction'!BA67),9))","v":0.99999453800000004},{"$f":"VALUE(FIXED(EXP(BB$4*-1*'PM2.5 reduction'!BB67),9))","v":0.99999514599999995},{"$f":"VALUE(FIXED(EXP(BC$4*-1*'PM2.5 reduction'!BC67),9))","v":1}]
[null,"Female 40-44",{"$f":"VALUE(FIXED(EXP(C$4*-1*'PM2.5 reduction'!C68),9))","v":0.99999084500000002},{"$f":"VALUE(FIXED(EXP(D$4*-1*'PM2.5 reduction'!D68),9))","v":0.99999134499999998},{"$f":"VALUE(FIXED(EXP(E$4*-1*'PM2.5 reduction'!E68),9))","v":0.99999656599999998},{"$f":"VALUE(FIXED(EXP(F$4*-1*'PM2.5 reduction'!F68),9))","v":0.99999788099999998},{"$f":"VALUE(FIXED(EXP(G$4*-1*'PM2.5 reduction'!G68),9))","v":0.99999854600000004},{"$f":"VALUE(FIXED(EXP(H$4*-1*'PM2.5 reduction'!H68),9))","v":0.99999673099999997},{"$f":"VALUE(FIXED(EXP(I$4*-1*'PM2.5 reduction'!I68),9))","v":0.99999848099999999},{"$f":"VALUE(FIXED(EXP(J$4*-1*'PM2.5 reduction'!J68),9))","v":0.99999573200000003},{"$f":"VALUE(FIXED(EXP(K$4*-1*'PM2.5 reduction'!K68),9))","v":0.99999542399999997},{"$f":"VALUE(FIXED(EXP(L$4*-1*'PM2.5 reduction'!L68),9))","v":0.99999830300000003},{"$f":"VALUE(FIXED(EXP(M$4*-1*'PM2.5 reduction'!M68),9))","v":0.99999830300000003},{"$f":"VALUE(FIXED(EXP(N$4*-1*'PM2.5 reduction'!N68),9))","v":0.99999194700000005},{"$f":"VALUE(FIXED(EXP(O$4*-1*'PM2.5 reduction'!O68),9))","v":0.99999643400000005},{"$f":"VALUE(FIXED(EXP(P$4*-1*'PM2.5 reduction'!P68),9))","v":0.99999327000000005},{"$f":"VALUE(FIXED(EXP(Q$4*-1*'PM2.5 reduction'!Q68),9))","v":0.99999726799999999},{"$f":"VALUE(FIXED(EXP(R$4*-1*'PM2.5 reduction'!R68),9))","v":0.99999444199999998},{"$f":"VALUE(FIXED(EXP(S$4*-1*'PM2.5 reduction'!S68),9))","v":0.99999390700000002},{"$f":"VALUE(FIXED(EXP(T$4*-1*'PM2.5 reduction'!T68),9))","v":0.99999092700000003},{"$f":"VALUE(FIXED(EXP(U$4*-1*'PM2.5 reduction'!U68),9))","v":1},{"$f":"VALUE(FIXED(EXP(V$4*-1*'PM2.5 reduction'!V68),9))","v":0.99999353899999999},{"$f":"VALUE(FIXED(EXP(W$4*-1*'PM2.5 reduction'!W68),9))","v":0.99999592599999998},{"$f":"VALUE(FIXED(EXP(X$4*-1*'PM2.5 reduction'!X68),9))","v":0.99999592599999998},{"$f":"VALUE(FIXED(EXP(Y$4*-1*'PM2.5 reduction'!Y68),9))","v":0.99999456799999997},{"$f":"VALUE(FIXED(EXP(Z$4*-1*'PM2.5 reduction'!Z68),9))","v":0.99999104699999997},{"$f":"VALUE(FIXED(EXP(AA$4*-1*'PM2.5 reduction'!AA68),9))","v":0.999992506},{"$f":"VALUE(FIXED(EXP(AB$4*-1*'PM2.5 reduction'!AB68),9))","v":0.999991607},{"$f":"VALUE(FIXED(EXP(AC$4*-1*'PM2.5 reduction'!AC68),9))","v":0.99999197200000001},{"$f":"VALUE(FIXED(EXP(AD$4*-1*'PM2.5 reduction'!AD68),9))","v":0.999998528},{"$f":"VALUE(FIXED(EXP(AE$4*-1*'PM2.5 reduction'!AE68),9))","v":0.99999851699999998},{"$f":"VALUE(FIXED(EXP(AF$4*-1*'PM2.5 reduction'!AF68),9))","v":0.99999535100000003},{"$f":"VALUE(FIXED(EXP(AG$4*-1*'PM2.5 reduction'!AG68),9))","v":0.99999851699999998},{"$f":"VALUE(FIXED(EXP(AH$4*-1*'PM2.5 reduction'!AH68),9))","v":0.99999370200000004},{"$f":"VALUE(FIXED(EXP(AI$4*-1*'PM2.5 reduction'!AI68),9))","v":0.99999258599999996},{"$f":"VALUE(FIXED(EXP(AJ$4*-1*'PM2.5 reduction'!AJ68),9))","v":0.99999577100000003},{"$f":"VALUE(FIXED(EXP(AK$4*-1*'PM2.5 reduction'!AK68),9))","v":0.99999739600000004},{"$f":"VALUE(FIXED(EXP(AL$4*-1*'PM2.5 reduction'!AL68),9))","v":0.99999706499999996},{"$f":"VALUE(FIXED(EXP(AM$4*-1*'PM2.5 reduction'!AM68),9))","v":0.99999323699999998},{"$f":"VALUE(FIXED(EXP(AN$4*-1*'PM2.5 reduction'!AN68),9))","v":1},{"$f":"VALUE(FIXED(EXP(AO$4*-1*'PM2.5 reduction'!AO68),9))","v":1},{"$f":"VALUE(FIXED(EXP(AP$4*-1*'PM2.5 reduction'!AP68),9))","v":0.99999561800000003},{"$f":"VALUE(FIXED(EXP(AQ$4*-1*'PM2.5 reduction'!AQ68),9))","v":0.99999335600000006},{"$f":"VALUE(FIXED(EXP(AR$4*-1*'PM2.5 reduction'!AR68),9))","v":0.99999343100000004},{"$f":"VALUE(FIXED(EXP(AS$4*-1*'PM2.5 reduction'!AS68),9))","v":0.99999848099999999},{"$f":"VALUE(FIXED(EXP(AT$4*-1*'PM2.5 reduction'!AT68),9))","v":1},{"$f":"VALUE(FIXED(EXP(AU$4*-1*'PM2.5 reduction'!AU68),9))","v":1},{"$f":"VALUE(FIXED(EXP(AV$4*-1*'PM2.5 reduction'!AV68),9))","v":0.99999632599999999},{"$f":"VALUE(FIXED(EXP(AW$4*-1*'PM2.5 reduction'!AW68),9))","v":0.99999449600000001},{"$f":"VALUE(FIXED(EXP(AX$4*-1*'PM2.5 reduction'!AX68),9))","v":0.99999607000000001},{"$f":"VALUE(FIXED(EXP(AY$4*-1*'PM2.5 reduction'!AY68),9))","v":0.999994512},{"$f":"VALUE(FIXED(EXP(AZ$4*-1*'PM2.5 reduction'!AZ68),9))","v":0.99999309800000002},{"$f":"VALUE(FIXED(EXP(BA$4*-1*'PM2.5 reduction'!BA68),9))","v":0.99999453100000002},{"$f":"VALUE(FIXED(EXP(BB$4*-1*'PM2.5 reduction'!BB68),9))","v":0.99999516300000002},{"$f":"VALUE(FIXED(EXP(BC$4*-1*'PM2.5 reduction'!BC68),9))","v":1}]
[null,"Female 45-49",{"$f":"VALUE(FIXED(EXP(C$4*-1*'PM2.5 reduction'!C69),9))","v":0.99999060200000001},{"$f":"VALUE(FIXED(EXP(D$4*-1*'PM2.5 reduction'!D69),9))","v":0.99999117699999995},{"$f":"VALUE(FIXED(EXP(E$4*-1*'PM2.5 reduction'!E69),9))","v":0.99999648900000004},{"$f":"VALUE(FIXED(EXP(F$4*-1*'PM2.5 reduction'!F69),9))","v":0.99999781799999998},{"$f":"VALUE(FIXED(EXP(G$4*-1*'PM2.5 reduction'!G69),9))","v":0.99999857599999997},{"$f":"VALUE(FIXED(EXP(H$4*-1*'PM2.5 reduction'!H69),9))","v":0.99999677200000003},{"$f":"VALUE(FIXED(EXP(I$4*-1*'PM2.5 reduction'!I69),9))","v":0.99999857800000003},{"$f":"VALUE(FIXED(EXP(J$4*-1*'PM2.5 reduction'!J69),9))","v":0.99999581800000004},{"$f":"VALUE(FIXED(EXP(K$4*-1*'PM2.5 reduction'!K69),9))","v":0.99999536600000005},{"$f":"VALUE(FIXED(EXP(L$4*-1*'PM2.5 reduction'!L69),9))","v":0.99999839499999998},{"$f":"VALUE(FIXED(EXP(M$4*-1*'PM2.5 reduction'!M69),9))","v":0.99999839499999998},{"$f":"VALUE(FIXED(EXP(N$4*-1*'PM2.5 reduction'!N69),9))","v":0.99999192599999998},{"$f":"VALUE(FIXED(EXP(O$4*-1*'PM2.5 reduction'!O69),9))","v":0.99999643800000004},{"$f":"VALUE(FIXED(EXP(P$4*-1*'PM2.5 reduction'!P69),9))","v":0.99999294900000002},{"$f":"VALUE(FIXED(EXP(Q$4*-1*'PM2.5 reduction'!Q69),9))","v":0.99999718500000001},{"$f":"VALUE(FIXED(EXP(R$4*-1*'PM2.5 reduction'!R69),9))","v":0.99999468599999997},{"$f":"VALUE(FIXED(EXP(S$4*-1*'PM2.5 reduction'!S69),9))","v":0.999993998},{"$f":"VALUE(FIXED(EXP(T$4*-1*'PM2.5 reduction'!T69),9))","v":0.99999095800000004},{"$f":"VALUE(FIXED(EXP(U$4*-1*'PM2.5 reduction'!U69),9))","v":1},{"$f":"VALUE(FIXED(EXP(V$4*-1*'PM2.5 reduction'!V69),9))","v":0.999993562},{"$f":"VALUE(FIXED(EXP(W$4*-1*'PM2.5 reduction'!W69),9))","v":0.99999594300000005},{"$f":"VALUE(FIXED(EXP(X$4*-1*'PM2.5 reduction'!X69),9))","v":0.99999594300000005},{"$f":"VALUE(FIXED(EXP(Y$4*-1*'PM2.5 reduction'!Y69),9))","v":0.99999477000000003},{"$f":"VALUE(FIXED(EXP(Z$4*-1*'PM2.5 reduction'!Z69),9))","v":0.99999113699999997},{"$f":"VALUE(FIXED(EXP(AA$4*-1*'PM2.5 reduction'!AA69),9))","v":0.99999260800000001},{"$f":"VALUE(FIXED(EXP(AB$4*-1*'PM2.5 reduction'!AB69),9))","v":0.99999146100000003},{"$f":"VALUE(FIXED(EXP(AC$4*-1*'PM2.5 reduction'!AC69),9))","v":0.99999212299999996},{"$f":"VALUE(FIXED(EXP(AD$4*-1*'PM2.5 reduction'!AD69),9))","v":0.99999850199999996},{"$f":"VALUE(FIXED(EXP(AE$4*-1*'PM2.5 reduction'!AE69),9))","v":0.99999846299999995},{"$f":"VALUE(FIXED(EXP(AF$4*-1*'PM2.5 reduction'!AF69),9))","v":0.99999545499999998},{"$f":"VALUE(FIXED(EXP(AG$4*-1*'PM2.5 reduction'!AG69),9))","v":0.99999846299999995},{"$f":"VALUE(FIXED(EXP(AH$4*-1*'PM2.5 reduction'!AH69),9))","v":0.99999376299999998},{"$f":"VALUE(FIXED(EXP(AI$4*-1*'PM2.5 reduction'!AI69),9))","v":0.99999258800000002},{"$f":"VALUE(FIXED(EXP(AJ$4*-1*'PM2.5 reduction'!AJ69),9))","v":0.99999581400000004},{"$f":"VALUE(FIXED(EXP(AK$4*-1*'PM2.5 reduction'!AK69),9))","v":0.99999739600000004},{"$f":"VALUE(FIXED(EXP(AL$4*-1*'PM2.5 reduction'!AL69),9))","v":0.99999710500000005},{"$f":"VALUE(FIXED(EXP(AM$4*-1*'PM2.5 reduction'!AM69),9))","v":0.99999325500000003},{"$f":"VALUE(FIXED(EXP(AN$4*-1*'PM2.5 reduction'!AN69),9))","v":1},{"$f":"VALUE(FIXED(EXP(AO$4*-1*'PM2.5 reduction'!AO69),9))","v":1},{"$f":"VALUE(FIXED(EXP(AP$4*-1*'PM2.5 reduction'!AP69),9))","v":0.99999509200000003},{"$f":"VALUE(FIXED(EXP(AQ$4*-1*'PM2.5 reduction'!AQ69),9))","v":0.99999356699999997},{"$f":"VALUE(FIXED(EXP(AR$4*-1*'PM2.5 reduction'!AR69),9))","v":0.99999349999999998},{"$f":"VALUE(FIXED(EXP(AS$4*-1*'PM2.5 reduction'!AS69),9))","v":0.99999857800000003},{"$f":"VALUE(FIXED(EXP(AT$4*-1*'PM2.5 reduction'!AT69),9))","v":1},{"$f":"VALUE(FIXED(EXP(AU$4*-1*'PM2.5 reduction'!AU69),9))","v":1},{"$f":"VALUE(FIXED(EXP(AV$4*-1*'PM2.5 reduction'!AV69),9))","v":0.99999649899999998},{"$f":"VALUE(FIXED(EXP(AW$4*-1*'PM2.5 reduction'!AW69),9))","v":0.99999460299999998},{"$f":"VALUE(FIXED(EXP(AX$4*-1*'PM2.5 reduction'!AX69),9))","v":0.99999622899999996},{"$f":"VALUE(FIXED(EXP(AY$4*-1*'PM2.5 reduction'!AY69),9))","v":0.99999452099999997},{"$f":"VALUE(FIXED(EXP(AZ$4*-1*'PM2.5 reduction'!AZ69),9))","v":0.99999298599999997},{"$f":"VALUE(FIXED(EXP(BA$4*-1*'PM2.5 reduction'!BA69),9))","v":0.99999447100000005},{"$f":"VALUE(FIXED(EXP(BB$4*-1*'PM2.5 reduction'!BB69),9))","v":0.99999513799999995},{"$f":"VALUE(FIXED(EXP(BC$4*-1*'PM2.5 reduction'!BC69),9))","v":1}]
[null,"Female 50-54",{"$f":"VALUE(FIXED(EXP(C$4*-1*'PM2.5 reduction'!C70),9))","v":0.99999080699999998},{"$f":"VALUE(FIXED(EXP(D$4*-1*'PM2.5 reduction'!D70),9))","v":0.999991297},{"$f":"VALUE(FIXED(EXP(E$4*-1*'PM2.5 reduction'!E70),9))","v":0.99999645500000001},{"$f":"VALUE(FIXED(EXP(F$4*-1*'PM2.5 reduction'!F70),9))","v":0.9999979},{"$f":"VALUE(FIXED(EXP(G$4*-1*'PM2.5 reduction'!G70),9))","v":0.99999852700000003},{"$f":"VALUE(FIXED(EXP(H$4*-1*'PM2.5 reduction'!H70),9))","v":0.99999676299999996},{"$f":"VALUE(FIXED(EXP(I$4*-1*'PM2.5 reduction'!I70),9))","v":0.99999850800000001},{"$f":"VALUE(FIXED(EXP(J$4*-1*'PM2.5 reduction'!J70),9))","v":0.99999571200000004},{"$f":"VALUE(FIXED(EXP(K$4*-1*'PM2.5 reduction'!K70),9))","v":0.99999534199999995},{"$f":"VALUE(FIXED(EXP(L$4*-1*'PM2.5 reduction'!L70),9))","v":0.99999839000000001},{"$f":"VALUE(FIXED(EXP(M$4*-1*'PM2.5 reduction'!M70),9))","v":0.99999839000000001},{"$f":"VALUE(FIXED(EXP(N$4*-1*'PM2.5 reduction'!N70),9))","v":0.99999199299999997},{"$f":"VALUE(FIXED(EXP(O$4*-1*'PM2.5 reduction'!O70),9))","v":0.99999650799999995},{"$f":"VALUE(FIXED(EXP(P$4*-1*'PM2.5 reduction'!P70),9))","v":0.99999305299999997},{"$f":"VALUE(FIXED(EXP(Q$4*-1*'PM2.5 reduction'!Q70),9))","v":0.99999727199999999},{"$f":"VALUE(FIXED(EXP(R$4*-1*'PM2.5 reduction'!R70),9))","v":0.99999430199999995},{"$f":"VALUE(FIXED(EXP(S$4*-1*'PM2.5 reduction'!S70),9))","v":0.99999415599999997},{"$f":"VALUE(FIXED(EXP(T$4*-1*'PM2.5 reduction'!T70),9))","v":0.999991042},{"$f":"VALUE(FIXED(EXP(U$4*-1*'PM2.5 reduction'!U70),9))","v":1},{"$f":"VALUE(FIXED(EXP(V$4*-1*'PM2.5 reduction'!V70),9))","v":0.99999354299999998},{"$f":"VALUE(FIXED(EXP(W$4*-1*'PM2.5 reduction'!W70),9))","v":0.99999598199999995},{"$f":"VALUE(FIXED(EXP(X$4*-1*'PM2.5 reduction'!X70),9))","v":0.99999598199999995},{"$f":"VALUE(FIXED(EXP(Y$4*-1*'PM2.5 reduction'!Y70),9))","v":0.99999462699999997},{"$f":"VALUE(FIXED(EXP(Z$4*-1*'PM2.5 reduction'!Z70),9))","v":0.99999119999999997},{"$f":"VALUE(FIXED(EXP(AA$4*-1*'PM2.5 reduction'!AA70),9))","v":0.99999256999999997},{"$f":"VALUE(FIXED(EXP(AB$4*-1*'PM2.5 reduction'!AB70),9))","v":0.999991556},{"$f":"VALUE(FIXED(EXP(AC$4*-1*'PM2.5 reduction'!AC70),9))","v":0.99999210999999999},{"$f":"VALUE(FIXED(EXP(AD$4*-1*'PM2.5 reduction'!AD70),9))","v":0.99999848400000002},{"$f":"VALUE(FIXED(EXP(AE$4*-1*'PM2.5 reduction'!AE70),9))","v":0.99999846100000001},{"$f":"VALUE(FIXED(EXP(AF$4*-1*'PM2.5 reduction'!AF70),9))","v":0.99999531100000005},{"$f":"VALUE(FIXED(EXP(AG$4*-1*'PM2.5 reduction'!AG70),9))","v":0.99999846100000001},{"$f":"VALUE(FIXED(EXP(AH$4*-1*'PM2.5 reduction'!AH70),9))","v":0.99999367299999997},{"$f":"VALUE(FIXED(EXP(AI$4*-1*'PM2.5 reduction'!AI70),9))","v":0.99999272900000002},{"$f":"VALUE(FIXED(EXP(AJ$4*-1*'PM2.5 reduction'!AJ70),9))","v":0.99999540399999998},{"$f":"VALUE(FIXED(EXP(AK$4*-1*'PM2.5 reduction'!AK70),9))","v":0.99999739600000004},{"$f":"VALUE(FIXED(EXP(AL$4*-1*'PM2.5 reduction'!AL70),9))","v":0.99999709000000003},{"$f":"VALUE(FIXED(EXP(AM$4*-1*'PM2.5 reduction'!AM70),9))","v":0.99999317600000004},{"$f":"VALUE(FIXED(EXP(AN$4*-1*'PM2.5 reduction'!AN70),9))","v":1},{"$f":"VALUE(FIXED(EXP(AO$4*-1*'PM2.5 reduction'!AO70),9))","v":1},{"$f":"VALUE(FIXED(EXP(AP$4*-1*'PM2.5 reduction'!AP70),9))","v":0.99999523099999998},{"$f":"VALUE(FIXED(EXP(AQ$4*-1*'PM2.5 reduction'!AQ70),9))","v":0.99999346300000003},{"$f":"VALUE(FIXED(EXP(AR$4*-1*'PM2.5 reduction'!AR70),9))","v":0.99999347699999996},{"$f":"VALUE(FIXED(EXP(AS$4*-1*'PM2.5 reduction'!AS70),9))","v":0.99999850800000001},{"$f":"VALUE(FIXED(EXP(AT$4*-1*'PM2.5 reduction'!AT70),9))","v":1},{"$f":"VALUE(FIXED(EXP(AU$4*-1*'PM2.5 reduction'!AU70),9))","v":1},{"$f":"VALUE(FIXED(EXP(AV$4*-1*'PM2.5 reduction'!AV70),9))","v":0.99999627000000002},{"$f":"VALUE(FIXED(EXP(AW$4*-1*'PM2.5 reduction'!AW70),9))","v":0.99999450300000003},{"$f":"VALUE(FIXED(EXP(AX$4*-1*'PM2.5 reduction'!AX70),9))","v":0.99999608600000001},{"$f":"VALUE(FIXED(EXP(AY$4*-1*'PM2.5 reduction'!AY70),9))","v":0.99999444299999996},{"$f":"VALUE(FIXED(EXP(AZ$4*-1*'PM2.5 reduction'!AZ70),9))","v":0.99999294400000005},{"$f":"VALUE(FIXED(EXP(BA$4*-1*'PM2.5 reduction'!BA70),9))","v":0.99999459899999998},{"$f":"VALUE(FIXED(EXP(BB$4*-1*'PM2.5 reduction'!BB70),9))","v":0.99999521999999996},{"$f":"VALUE(FIXED(EXP(BC$4*-1*'PM2.5 reduction'!BC70),9))","v":1}]
[null,"Female 55-59",{"$f":"VALUE(FIXED(EXP(C$4*-1*'PM2.5 reduction'!C71),9))","v":0.99999067200000002},{"$f":"VALUE(FIXED(EXP(D$4*-1*'PM2.5 reduction'!D71),9))","v":0.99999125899999997},{"$f":"VALUE(FIXED(EXP(E$4*-1*'PM2.5 reduction'!E71),9))","v":0.99999643800000004},{"$f":"VALUE(FIXED(EXP(F$4*-1*'PM2.5 reduction'!F71),9))","v":0.99999796200000002},{"$f":"VALUE(FIXED(EXP(G$4*-1*'PM2.5 reduction'!G71),9))","v":0.99999858200000002},{"$f":"VALUE(FIXED(EXP(H$4*-1*'PM2.5 reduction'!H71),9))","v":0.99999673899999997},{"$f":"VALUE(FIXED(EXP(I$4*-1*'PM2.5 reduction'!I71),9))","v":0.99999850700000004},{"$f":"VALUE(FIXED(EXP(J$4*-1*'PM2.5 reduction'!J71),9))","v":0.99999568800000005},{"$f":"VALUE(FIXED(EXP(K$4*-1*'PM2.5 reduction'!K71),9))","v":0.99999519800000003},{"$f":"VALUE(FIXED(EXP(L$4*-1*'PM2.5 reduction'!L71),9))","v":0.99999842299999997},{"$f":"VALUE(FIXED(EXP(M$4*-1*'PM2.5 reduction'!M71),9))","v":0.99999842299999997},{"$f":"VALUE(FIXED(EXP(N$4*-1*'PM2.5 reduction'!N71),9))","v":0.999991886},{"$f":"VALUE(FIXED(EXP(O$4*-1*'PM2.5 reduction'!O71),9))","v":0.99999648799999996},{"$f":"VALUE(FIXED(EXP(P$4*-1*'PM2.5 reduction'!P71),9))","v":0.99999323799999995},{"$f":"VALUE(FIXED(EXP(Q$4*-1*'PM2.5 reduction'!Q71),9))","v":0.99999718699999995},{"$f":"VALUE(FIXED(EXP(R$4*-1*'PM2.5 reduction'!R71),9))","v":0.99999472499999997},{"$f":"VALUE(FIXED(EXP(S$4*-1*'PM2.5 reduction'!S71),9))","v":0.99999408899999997},{"$f":"VALUE(FIXED(EXP(T$4*-1*'PM2.5 reduction'!T71),9))","v":0.99999113799999995},{"$f":"VALUE(FIXED(EXP(U$4*-1*'PM2.5 reduction'!U71),9))","v":1},{"$f":"VALUE(FIXED(EXP(V$4*-1*'PM2.5 reduction'!V71),9))","v":0.99999360999999998},{"$f":"VALUE(FIXED(EXP(W$4*-1*'PM2.5 reduction'!W71),9))","v":0.99999597299999998},{"$f":"VALUE(FIXED(EXP(X$4*-1*'PM2.5 reduction'!X71),9))","v":0.99999597299999998},{"$f":"VALUE(FIXED(EXP(Y$4*-1*'PM2.5 reduction'!Y71),9))","v":0.99999466599999998},{"$f":"VALUE(FIXED(EXP(Z$4*-1*'PM2.5 reduction'!Z71),9))","v":0.99999117100000001},{"$f":"VALUE(FIXED(EXP(AA$4*-1*'PM2.5 reduction'!AA71),9))","v":0.99999261699999997},{"$f":"VALUE(FIXED(EXP(AB$4*-1*'PM2.5 reduction'!AB71),9))","v":0.99999151799999997},{"$f":"VALUE(FIXED(EXP(AC$4*-1*'PM2.5 reduction'!AC71),9))","v":0.99999212999999998},{"$f":"VALUE(FIXED(EXP(AD$4*-1*'PM2.5 reduction'!AD71),9))","v":0.999998477},{"$f":"VALUE(FIXED(EXP(AE$4*-1*'PM2.5 reduction'!AE71),9))","v":0.99999841700000003},{"$f":"VALUE(FIXED(EXP(AF$4*-1*'PM2.5 reduction'!AF71),9))","v":0.99999524699999998},{"$f":"VALUE(FIXED(EXP(AG$4*-1*'PM2.5 reduction'!AG71),9))","v":0.99999841700000003},{"$f":"VALUE(FIXED(EXP(AH$4*-1*'PM2.5 reduction'!AH71),9))","v":0.99999374100000005},{"$f":"VALUE(FIXED(EXP(AI$4*-1*'PM2.5 reduction'!AI71),9))","v":0.99999279900000004},{"$f":"VALUE(FIXED(EXP(AJ$4*-1*'PM2.5 reduction'!AJ71),9))","v":0.99999597699999998},{"$f":"VALUE(FIXED(EXP(AK$4*-1*'PM2.5 reduction'!AK71),9))","v":0.99999739600000004},{"$f":"VALUE(FIXED(EXP(AL$4*-1*'PM2.5 reduction'!AL71),9))","v":0.99999701500000004},{"$f":"VALUE(FIXED(EXP(AM$4*-1*'PM2.5 reduction'!AM71),9))","v":0.99999324199999995},{"$f":"VALUE(FIXED(EXP(AN$4*-1*'PM2.5 reduction'!AN71),9))","v":1},{"$f":"VALUE(FIXED(EXP(AO$4*-1*'PM2.5 reduction'!AO71),9))","v":1},{"$f":"VALUE(FIXED(EXP(AP$4*-1*'PM2.5 reduction'!AP71),9))","v":0.99999543599999996},{"$f":"VALUE(FIXED(EXP(AQ$4*-1*'PM2.5 reduction'!AQ71),9))","v":0.99999351800000003},{"$f":"VALUE(FIXED(EXP(AR$4*-1*'PM2.5 reduction'!AR71),9))","v":0.99999349299999996},{"$f":"VALUE(FIXED(EXP(AS$4*-1*'PM2.5 reduction'!AS71),9))","v":0.99999850700000004},{"$f":"VALUE(FIXED(EXP(AT$4*-1*'PM2.5 reduction'!AT71),9))","v":1},{"$f":"VALUE(FIXED(EXP(AU$4*-1*'PM2.5 reduction'!AU71),9))","v":1},{"$f":"VALUE(FIXED(EXP(AV$4*-1*'PM2.5 reduction'!AV71),9))","v":0.99999638099999999},{"$f":"VALUE(FIXED(EXP(AW$4*-1*'PM2.5 reduction'!AW71),9))","v":0.99999451299999997},{"$f":"VALUE(FIXED(EXP(AX$4*-1*'PM2.5 reduction'!AX71),9))","v":0.99999617500000004},{"$f":"VALUE(FIXED(EXP(AY$4*-1*'PM2.5 reduction'!AY71),9))","v":0.99999438600000001},{"$f":"VALUE(FIXED(EXP(AZ$4*-1*'PM2.5 reduction'!AZ71),9))","v":0.99999291999999995},{"$f":"VALUE(FIXED(EXP(BA$4*-1*'PM2.5 reduction'!BA71),9))","v":0.999994516},{"$f":"VALUE(FIXED(EXP(BB$4*-1*'PM2.5 reduction'!BB71),9))","v":0.99999523899999998},{"$f":"VALUE(FIXED(EXP(BC$4*-1*'PM2.5 reduction'!BC71),9))","v":1}]
[null,"Female 60-64",{"$f":"VALUE(FIXED(EXP(C$4*-1*'PM2.5 reduction'!C72),9))","v":0.99999078399999997},{"$f":"VALUE(FIXED(EXP(D$4*-1*'PM2.5 reduction'!D72),9))","v":0.99999141400000002},{"$f":"VALUE(FIXED(EXP(E$4*-1*'PM2.5 reduction'!E72),9))","v":0.99999661299999998},{"$f":"VALUE(FIXED(EXP(F$4*-1*'PM2.5 reduction'!F72),9))","v":0.99999792600000004},{"$f":"VALUE(FIXED(EXP(G$4*-1*'PM2.5 reduction'!G72),9))","v":0.99999854399999999},{"$f":"VALUE(FIXED(EXP(H$4*-1*'PM2.5 reduction'!H72),9))","v":0.99999676000000004},{"$f":"VALUE(FIXED(EXP(I$4*-1*'PM2.5 reduction'!I72),9))","v":0.99999852499999997},{"$f":"VALUE(FIXED(EXP(J$4*-1*'PM2.5 reduction'!J72),9))","v":0.99999594599999997},{"$f":"VALUE(FIXED(EXP(K$4*-1*'PM2.5 reduction'!K72),9))","v":0.99999568900000002},{"$f":"VALUE(FIXED(EXP(L$4*-1*'PM2.5 reduction'!L72),9))","v":0.99999845799999998},{"$f":"VALUE(FIXED(EXP(M$4*-1*'PM2.5 reduction'!M72),9))","v":0.99999845799999998},{"$f":"VALUE(FIXED(EXP(N$4*-1*'PM2.5 reduction'!N72),9))","v":0.99999168400000005},{"$f":"VALUE(FIXED(EXP(O$4*-1*'PM2.5 reduction'!O72),9))","v":0.99999649899999998},{"$f":"VALUE(FIXED(EXP(P$4*-1*'PM2.5 reduction'!P72),9))","v":0.999993295},{"$f":"VALUE(FIXED(EXP(Q$4*-1*'PM2.5 reduction'!Q72),9))","v":0.99999724999999995},{"$f":"VALUE(FIXED(EXP(R$4*-1*'PM2.5 reduction'!R72),9))","v":0.99999463499999997},{"$f":"VALUE(FIXED(EXP(S$4*-1*'PM2.5 reduction'!S72),9))","v":0.99999422400000004},{"$f":"VALUE(FIXED(EXP(T$4*-1*'PM2.5 reduction'!T72),9))","v":0.99999105899999996},{"$f":"VALUE(FIXED(EXP(U$4*-1*'PM2.5 reduction'!U72),9))","v":1},{"$f":"VALUE(FIXED(EXP(V$4*-1*'PM2.5 reduction'!V72),9))","v":0.99999365399999995},{"$f":"VALUE(FIXED(EXP(W$4*-1*'PM2.5 reduction'!W72),9))","v":0.99999600300000002},{"$f":"VALUE(FIXED(EXP(X$4*-1*'PM2.5 reduction'!X72),9))","v":0.99999600300000002},{"$f":"VALUE(FIXED(EXP(Y$4*-1*'PM2.5 reduction'!Y72),9))","v":0.99999474600000005},{"$f":"VALUE(FIXED(EXP(Z$4*-1*'PM2.5 reduction'!Z72),9))","v":0.99999121300000005},{"$f":"VALUE(FIXED(EXP(AA$4*-1*'PM2.5 reduction'!AA72),9))","v":0.99999267800000002},{"$f":"VALUE(FIXED(EXP(AB$4*-1*'PM2.5 reduction'!AB72),9))","v":0.99999190299999996},{"$f":"VALUE(FIXED(EXP(AC$4*-1*'PM2.5 reduction'!AC72),9))","v":0.99999217500000004},{"$f":"VALUE(FIXED(EXP(AD$4*-1*'PM2.5 reduction'!AD72),9))","v":0.99999852499999997},{"$f":"VALUE(FIXED(EXP(AE$4*-1*'PM2.5 reduction'!AE72),9))","v":0.99999851399999995},{"$f":"VALUE(FIXED(EXP(AF$4*-1*'PM2.5 reduction'!AF72),9))","v":0.99999523300000004},{"$f":"VALUE(FIXED(EXP(AG$4*-1*'PM2.5 reduction'!AG72),9))","v":0.99999851399999995},{"$f":"VALUE(FIXED(EXP(AH$4*-1*'PM2.5 reduction'!AH72),9))","v":0.99999370600000004},{"$f":"VALUE(FIXED(EXP(AI$4*-1*'PM2.5 reduction'!AI72),9))","v":0.99999281799999995},{"$f":"VALUE(FIXED(EXP(AJ$4*-1*'PM2.5 reduction'!AJ72),9))","v":0.99999573200000003},{"$f":"VALUE(FIXED(EXP(AK$4*-1*'PM2.5 reduction'!AK72),9))","v":0.99999739600000004},{"$f":"VALUE(FIXED(EXP(AL$4*-1*'PM2.5 reduction'!AL72),9))","v":0.99999705100000003},{"$f":"VALUE(FIXED(EXP(AM$4*-1*'PM2.5 reduction'!AM72),9))","v":0.99999320000000003},{"$f":"VALUE(FIXED(EXP(AN$4*-1*'PM2.5 reduction'!AN72),9))","v":1},{"$f":"VALUE(FIXED(EXP(AO$4*-1*'PM2.5 reduction'!AO72),9))","v":1},{"$f":"VALUE(FIXED(EXP(AP$4*-1*'PM2.5 reduction'!AP72),9))","v":0.99999570599999998},{"$f":"VALUE(FIXED(EXP(AQ$4*-1*'PM2.5 reduction'!AQ72),9))","v":0.99999343399999996},{"$f":"VALUE(FIXED(EXP(AR$4*-1*'PM2.5 reduction'!AR72),9))","v":0.99999360000000004},{"$f":"VALUE(FIXED(EXP(AS$4*-1*'PM2.5 reduction'!AS72),9))","v":0.99999852499999997},{"$f":"VALUE(FIXED(EXP(AT$4*-1*'PM2.5 reduction'!AT72),9))","v":1},{"$f":"VALUE(FIXED(EXP(AU$4*-1*'PM2.5 reduction'!AU72),9))","v":1},{"$f":"VALUE(FIXED(EXP(AV$4*-1*'PM2.5 reduction'!AV72),9))","v":0.99999639900000004},{"$f":"VALUE(FIXED(EXP(AW$4*-1*'PM2.5 reduction'!AW72),9))","v":0.99999447299999999},{"$f":"VALUE(FIXED(EXP(AX$4*-1*'PM2.5 reduction'!AX72),9))","v":0.999996255},{"$f":"VALUE(FIXED(EXP(AY$4*-1*'PM2.5 reduction'!AY72),9))","v":0.99999442199999999},{"$f":"VALUE(FIXED(EXP(AZ$4*-1*'PM2.5 reduction'!AZ72),9))","v":0.99999286099999996},{"$f":"VALUE(FIXED(EXP(BA$4*-1*'PM2.5 reduction'!BA72),9))","v":0.99999452899999997},{"$f":"VALUE(FIXED(EXP(BB$4*-1*'PM2.5 reduction'!BB72),9))","v":0.99999531600000002},{"$f":"VALUE(FIXED(EXP(BC$4*-1*'PM2.5 reduction'!BC72),9))","v":1}]
[null,"Female 65-69",{"$f":"VALUE(FIXED(EXP(C$4*-1*'PM2.5 reduction'!C73),9))","v":0.99999100699999999},{"$f":"VALUE(FIXED(EXP(D$4*-1*'PM2.5 reduction'!D73),9))","v":0.99999165800000001},{"$f":"VALUE(FIXED(EXP(E$4*-1*'PM2.5 reduction'!E73),9))","v":0.99999632800000005},{"$f":"VALUE(FIXED(EXP(F$4*-1*'PM2.5 reduction'!F73),9))","v":0.99999797700000004},{"$f":"VALUE(FIXED(EXP(G$4*-1*'PM2.5 reduction'!G73),9))","v":0.999998575},{"$f":"VALUE(FIXED(EXP(H$4*-1*'PM2.5 reduction'!H73),9))","v":0.99999684600000005},{"$f":"VALUE(FIXED(EXP(I$4*-1*'PM2.5 reduction'!I73),9))","v":0.99999850700000004},{"$f":"VALUE(FIXED(EXP(J$4*-1*'PM2.5 reduction'!J73),9))","v":0.99999574300000005},{"$f":"VALUE(FIXED(EXP(K$4*-1*'PM2.5 reduction'!K73),9))","v":0.99999543599999996},{"$f":"VALUE(FIXED(EXP(L$4*-1*'PM2.5 reduction'!L73),9))","v":0.99999841},{"$f":"VALUE(FIXED(EXP(M$4*-1*'PM2.5 reduction'!M73),9))","v":0.99999841},{"$f":"VALUE(FIXED(EXP(N$4*-1*'PM2.5 reduction'!N73),9))","v":0.99999190999999998},{"$f":"VALUE(FIXED(EXP(O$4*-1*'PM2.5 reduction'!O73),9))","v":0.99999680199999996},{"$f":"VALUE(FIXED(EXP(P$4*-1*'PM2.5 reduction'!P73),9))","v":0.99999337499999996},{"$f":"VALUE(FIXED(EXP(Q$4*-1*'PM2.5 reduction'!Q73),9))","v":0.99999735599999995},{"$f":"VALUE(FIXED(EXP(R$4*-1*'PM2.5 reduction'!R73),9))","v":0.99999457199999997},{"$f":"VALUE(FIXED(EXP(S$4*-1*'PM2.5 reduction'!S73),9))","v":0.99999420400000005},{"$f":"VALUE(FIXED(EXP(T$4*-1*'PM2.5 reduction'!T73),9))","v":0.99999100900000004},{"$f":"VALUE(FIXED(EXP(U$4*-1*'PM2.5 reduction'!U73),9))","v":1},{"$f":"VALUE(FIXED(EXP(V$4*-1*'PM2.5 reduction'!V73),9))","v":0.99999355499999998},{"$f":"VALUE(FIXED(EXP(W$4*-1*'PM2.5 reduction'!W73),9))","v":0.99999598599999995},{"$f":"VALUE(FIXED(EXP(X$4*-1*'PM2.5 reduction'!X73),9))","v":0.99999598599999995},{"$f":"VALUE(FIXED(EXP(Y$4*-1*'PM2.5 reduction'!Y73),9))","v":0.999994665},{"$f":"VALUE(FIXED(EXP(Z$4*-1*'PM2.5 reduction'!Z73),9))","v":0.99999112099999998},{"$f":"VALUE(FIXED(EXP(AA$4*-1*'PM2.5 reduction'!AA73),9))","v":0.999992714},{"$f":"VALUE(FIXED(EXP(AB$4*-1*'PM2.5 reduction'!AB73),9))","v":0.99999209099999997},{"$f":"VALUE(FIXED(EXP(AC$4*-1*'PM2.5 reduction'!AC73),9))","v":0.99999218700000003},{"$f":"VALUE(FIXED(EXP(AD$4*-1*'PM2.5 reduction'!AD73),9))","v":0.99999848899999999},{"$f":"VALUE(FIXED(EXP(AE$4*-1*'PM2.5 reduction'!AE73),9))","v":0.99999842100000003},{"$f":"VALUE(FIXED(EXP(AF$4*-1*'PM2.5 reduction'!AF73),9))","v":0.99999525899999997},{"$f":"VALUE(FIXED(EXP(AG$4*-1*'PM2.5 reduction'!AG73),9))","v":0.99999842100000003},{"$f":"VALUE(FIXED(EXP(AH$4*-1*'PM2.5 reduction'!AH73),9))","v":0.99999375599999996},{"$f":"VALUE(FIXED(EXP(AI$4*-1*'PM2.5 reduction'!AI73),9))","v":0.99999280000000002},{"$f":"VALUE(FIXED(EXP(AJ$4*-1*'PM2.5 reduction'!AJ73),9))","v":0.99999569099999996},{"$f":"VALUE(FIXED(EXP(AK$4*-1*'PM2.5 reduction'!AK73),9))","v":0.99999739600000004},{"$f":"VALUE(FIXED(EXP(AL$4*-1*'PM2.5 reduction'!AL73),9))","v":0.99999702199999996},{"$f":"VALUE(FIXED(EXP(AM$4*-1*'PM2.5 reduction'!AM73),9))","v":0.99999321200000002},{"$f":"VALUE(FIXED(EXP(AN$4*-1*'PM2.5 reduction'!AN73),9))","v":1},{"$f":"VALUE(FIXED(EXP(AO$4*-1*'PM2.5 reduction'!AO73),9))","v":1},{"$f":"VALUE(FIXED(EXP(AP$4*-1*'PM2.5 reduction'!AP73),9))","v":0.99999547700000002},{"$f":"VALUE(FIXED(EXP(AQ$4*-1*'PM2.5 reduction'!AQ73),9))","v":0.99999347599999999},{"$f":"VALUE(FIXED(EXP(AR$4*-1*'PM2.5 reduction'!AR73),9))","v":0.99999363399999996},{"$f":"VALUE(FIXED(EXP(AS$4*-1*'PM2.5 reduction'!AS73),9))","v":0.99999850700000004},{"$f":"VALUE(FIXED(EXP(AT$4*-1*'PM2.5 reduction'!AT73),9))","v":1},{"$f":"VALUE(FIXED(EXP(AU$4*-1*'PM2.5 reduction'!AU73),9))","v":1},{"$f":"VALUE(FIXED(EXP(AV$4*-1*'PM2.5 reduction'!AV73),9))","v":0.99999636599999997},{"$f":"VALUE(FIXED(EXP(AW$4*-1*'PM2.5 reduction'!AW73),9))","v":0.99999456099999995},{"$f":"VALUE(FIXED(EXP(AX$4*-1*'PM2.5 reduction'!AX73),9))","v":0.99999610800000005},{"$f":"VALUE(FIXED(EXP(AY$4*-1*'PM2.5 reduction'!AY73),9))","v":0.99999444400000004},{"$f":"VALUE(FIXED(EXP(AZ$4*-1*'PM2.5 reduction'!AZ73),9))","v":0.99999285500000001},{"$f":"VALUE(FIXED(EXP(BA$4*-1*'PM2.5 reduction'!BA73),9))","v":0.99999465700000001},{"$f":"VALUE(FIXED(EXP(BB$4*-1*'PM2.5 reduction'!BB73),9))","v":0.99999524100000003},{"$f":"VALUE(FIXED(EXP(BC$4*-1*'PM2.5 reduction'!BC73),9))","v":1}]
[null,"Female 70-74",{"$f":"VALUE(FIXED(EXP(C$4*-1*'PM2.5 reduction'!C74),9))","v":0.99999087900000005},{"$f":"VALUE(FIXED(EXP(D$4*-1*'PM2.5 reduction'!D74),9))","v":0.99999153699999999},{"$f":"VALUE(FIXED(EXP(E$4*-1*'PM2.5 reduction'!E74),9))","v":0.99999624499999995},{"$f":"VALUE(FIXED(EXP(F$4*-1*'PM2.5 reduction'!F74),9))","v":0.99999785900000004},{"$f":"VALUE(FIXED(EXP(G$4*-1*'PM2.5 reduction'!G74),9))","v":0.99999855299999996},{"$f":"VALUE(FIXED(EXP(H$4*-1*'PM2.5 reduction'!H74),9))","v":0.99999676100000001},{"$f":"VALUE(FIXED(EXP(I$4*-1*'PM2.5 reduction'!I74),9))","v":0.99999847200000003},{"$f":"VALUE(FIXED(EXP(J$4*-1*'PM2.5 reduction'!J74),9))","v":0.99999574499999999},{"$f":"VALUE(FIXED(EXP(K$4*-1*'PM2.5 reduction'!K74),9))","v":0.99999533299999999},{"$f":"VALUE(FIXED(EXP(L$4*-1*'PM2.5 reduction'!L74),9))","v":0.99999844199999999},{"$f":"VALUE(FIXED(EXP(M$4*-1*'PM2.5 reduction'!M74),9))","v":0.99999844199999999},{"$f":"VALUE(FIXED(EXP(N$4*-1*'PM2.5 reduction'!N74),9))","v":0.99999176400000001},{"$f":"VALUE(FIXED(EXP(O$4*-1*'PM2.5 reduction'!O74),9))","v":0.99999652100000003},{"$f":"VALUE(FIXED(EXP(P$4*-1*'PM2.5 reduction'!P74),9))","v":0.99999289999999996},{"$f":"VALUE(FIXED(EXP(Q$4*-1*'PM2.5 reduction'!Q74),9))","v":0.99999728899999996},{"$f":"VALUE(FIXED(EXP(R$4*-1*'PM2.5 reduction'!R74),9))","v":0.99999454300000001},{"$f":"VALUE(FIXED(EXP(S$4*-1*'PM2.5 reduction'!S74),9))","v":0.99999425600000003},{"$f":"VALUE(FIXED(EXP(T$4*-1*'PM2.5 reduction'!T74),9))","v":0.99999091500000004},{"$f":"VALUE(FIXED(EXP(U$4*-1*'PM2.5 reduction'!U74),9))","v":1},{"$f":"VALUE(FIXED(EXP(V$4*-1*'PM2.5 reduction'!V74),9))","v":0.99999359099999996},{"$f":"VALUE(FIXED(EXP(W$4*-1*'PM2.5 reduction'!W74),9))","v":0.99999599100000003},{"$f":"VALUE(FIXED(EXP(X$4*-1*'PM2.5 reduction'!X74),9))","v":0.99999599100000003},{"$f":"VALUE(FIXED(EXP(Y$4*-1*'PM2.5 reduction'!Y74),9))","v":0.99999470300000004},{"$f":"VALUE(FIXED(EXP(Z$4*-1*'PM2.5 reduction'!Z74),9))","v":0.99999111799999996},{"$f":"VALUE(FIXED(EXP(AA$4*-1*'PM2.5 reduction'!AA74),9))","v":0.99999265500000001},{"$f":"VALUE(FIXED(EXP(AB$4*-1*'PM2.5 reduction'!AB74),9))","v":0.999991827},{"$f":"VALUE(FIXED(EXP(AC$4*-1*'PM2.5 reduction'!AC74),9))","v":0.99999208500000003},{"$f":"VALUE(FIXED(EXP(AD$4*-1*'PM2.5 reduction'!AD74),9))","v":0.99999848800000002},{"$f":"VALUE(FIXED(EXP(AE$4*-1*'PM2.5 reduction'!AE74),9))","v":0.99999844400000004},{"$f":"VALUE(FIXED(EXP(AF$4*-1*'PM2.5 reduction'!AF74),9))","v":0.99999490199999996},{"$f":"VALUE(FIXED(EXP(AG$4*-1*'PM2.5 reduction'!AG74),9))","v":0.99999844400000004},{"$f":"VALUE(FIXED(EXP(AH$4*-1*'PM2.5 reduction'!AH74),9))","v":0.99999380500000001},{"$f":"VALUE(FIXED(EXP(AI$4*-1*'PM2.5 reduction'!AI74),9))","v":0.99999276699999995},{"$f":"VALUE(FIXED(EXP(AJ$4*-1*'PM2.5 reduction'!AJ74),9))","v":0.99999545700000003},{"$f":"VALUE(FIXED(EXP(AK$4*-1*'PM2.5 reduction'!AK74),9))","v":0.99999739600000004},{"$f":"VALUE(FIXED(EXP(AL$4*-1*'PM2.5 reduction'!AL74),9))","v":0.99999693999999995},{"$f":"VALUE(FIXED(EXP(AM$4*-1*'PM2.5 reduction'!AM74),9))","v":0.99999325900000002},{"$f":"VALUE(FIXED(EXP(AN$4*-1*'PM2.5 reduction'!AN74),9))","v":1},{"$f":"VALUE(FIXED(EXP(AO$4*-1*'PM2.5 reduction'!AO74),9))","v":1},{"$f":"VALUE(FIXED(EXP(AP$4*-1*'PM2.5 reduction'!AP74),9))","v":0.99999584500000005},{"$f":"VALUE(FIXED(EXP(AQ$4*-1*'PM2.5 reduction'!AQ74),9))","v":0.99999359799999998},{"$f":"VALUE(FIXED(EXP(AR$4*-1*'PM2.5 reduction'!AR74),9))","v":0.99999360599999998},{"$f":"VALUE(FIXED(EXP(AS$4*-1*'PM2.5 reduction'!AS74),9))","v":0.99999847200000003},{"$f":"VALUE(FIXED(EXP(AT$4*-1*'PM2.5 reduction'!AT74),9))","v":1},{"$f":"VALUE(FIXED(EXP(AU$4*-1*'PM2.5 reduction'!AU74),9))","v":1},{"$f":"VALUE(FIXED(EXP(AV$4*-1*'PM2.5 reduction'!AV74),9))","v":0.999996628},{"$f":"VALUE(FIXED(EXP(AW$4*-1*'PM2.5 reduction'!AW74),9))","v":0.99999467099999995},{"$f":"VALUE(FIXED(EXP(AX$4*-1*'PM2.5 reduction'!AX74),9))","v":0.99999616599999996},{"$f":"VALUE(FIXED(EXP(AY$4*-1*'PM2.5 reduction'!AY74),9))","v":0.99999452300000002},{"$f":"VALUE(FIXED(EXP(AZ$4*-1*'PM2.5 reduction'!AZ74),9))","v":0.99999289700000005},{"$f":"VALUE(FIXED(EXP(BA$4*-1*'PM2.5 reduction'!BA74),9))","v":0.99999449299999998},{"$f":"VALUE(FIXED(EXP(BB$4*-1*'PM2.5 reduction'!BB74),9))","v":0.99999523999999995},{"$f":"VALUE(FIXED(EXP(BC$4*-1*'PM2.5 reduction'!BC74),9))","v":1}]
[null,"Female 75-79",{"$f":"VALUE(FIXED(EXP(C$4*-1*'PM2.5 reduction'!C75),9))","v":0.99999080600000001},{"$f":"VALUE(FIXED(EXP(D$4*-1*'PM2.5 reduction'!D75),9))","v":0.99999139699999995},{"$f":"VALUE(FIXED(EXP(E$4*-1*'PM2.5 reduction'!E75),9))","v":0.99999638199999996},{"$f":"VALUE(FIXED(EXP(F$4*-1*'PM2.5 reduction'!F75),9))","v":0.99999785699999999},{"$f":"VALUE(FIXED(EXP(G$4*-1*'PM2.5 reduction'!G75),9))","v":0.99999850999999995},{"$f":"VALUE(FIXED(EXP(H$4*-1*'PM2.5 reduction'!H75),9))","v":0.99999671000000001},{"$f":"VALUE(FIXED(EXP(I$4*-1*'PM2.5 reduction'!I75),9))","v":0.99999844000000004},{"$f":"VALUE(FIXED(EXP(J$4*-1*'PM2.5 reduction'!J75),9))","v":0.999995615},{"$f":"VALUE(FIXED(EXP(K$4*-1*'PM2.5 reduction'!K75),9))","v":0.99999537900000002},{"$f":"VALUE(FIXED(EXP(L$4*-1*'PM2.5 reduction'!L75),9))","v":0.99999848899999999},{"$f":"VALUE(FIXED(EXP(M$4*-1*'PM2.5 reduction'!M75),9))","v":0.99999848899999999},{"$f":"VALUE(FIXED(EXP(N$4*-1*'PM2.5 reduction'!N75),9))","v":0.99999170800000003},{"$f":"VALUE(FIXED(EXP(O$4*-1*'PM2.5 reduction'!O75),9))","v":0.99999633700000001},{"$f":"VALUE(FIXED(EXP(P$4*-1*'PM2.5 reduction'!P75),9))","v":0.99999328499999995},{"$f":"VALUE(FIXED(EXP(Q$4*-1*'PM2.5 reduction'!Q75),9))","v":0.99999715},{"$f":"VALUE(FIXED(EXP(R$4*-1*'PM2.5 reduction'!R75),9))","v":0.99999453299999996},{"$f":"VALUE(FIXED(EXP(S$4*-1*'PM2.5 reduction'!S75),9))","v":0.999994092},{"$f":"VALUE(FIXED(EXP(T$4*-1*'PM2.5 reduction'!T75),9))","v":0.99999085499999996},{"$f":"VALUE(FIXED(EXP(U$4*-1*'PM2.5 reduction'!U75),9))","v":1},{"$f":"VALUE(FIXED(EXP(V$4*-1*'PM2.5 reduction'!V75),9))","v":0.99999352699999999},{"$f":"VALUE(FIXED(EXP(W$4*-1*'PM2.5 reduction'!W75),9))","v":0.99999602600000004},{"$f":"VALUE(FIXED(EXP(X$4*-1*'PM2.5 reduction'!X75),9))","v":0.99999602600000004},{"$f":"VALUE(FIXED(EXP(Y$4*-1*'PM2.5 reduction'!Y75),9))","v":0.99999442800000005},{"$f":"VALUE(FIXED(EXP(Z$4*-1*'PM2.5 reduction'!Z75),9))","v":0.99999100200000002},{"$f":"VALUE(FIXED(EXP(AA$4*-1*'PM2.5 reduction'!AA75),9))","v":0.99999248600000001},{"$f":"VALUE(FIXED(EXP(AB$4*-1*'PM2.5 reduction'!AB75),9))","v":0.999991662},{"$f":"VALUE(FIXED(EXP(AC$4*-1*'PM2.5 reduction'!AC75),9))","v":0.999991992},{"$f":"VALUE(FIXED(EXP(AD$4*-1*'PM2.5 reduction'!AD75),9))","v":0.99999838500000005},{"$f":"VALUE(FIXED(EXP(AE$4*-1*'PM2.5 reduction'!AE75),9))","v":0.99999830000000001},{"$f":"VALUE(FIXED(EXP(AF$4*-1*'PM2.5 reduction'!AF75),9))","v":0.99999495999999999},{"$f":"VALUE(FIXED(EXP(AG$4*-1*'PM2.5 reduction'!AG75),9))","v":0.99999830000000001},{"$f":"VALUE(FIXED(EXP(AH$4*-1*'PM2.5 reduction'!AH75),9))","v":0.99999361499999995},{"$f":"VALUE(FIXED(EXP(AI$4*-1*'PM2.5 reduction'!AI75),9))","v":0.99999256800000003},{"$f":"VALUE(FIXED(EXP(AJ$4*-1*'PM2.5 reduction'!AJ75),9))","v":0.99999526400000005},{"$f":"VALUE(FIXED(EXP(AK$4*-1*'PM2.5 reduction'!AK75),9))","v":0.99999739600000004},{"$f":"VALUE(FIXED(EXP(AL$4*-1*'PM2.5 reduction'!AL75),9))","v":0.99999701399999996},{"$f":"VALUE(FIXED(EXP(AM$4*-1*'PM2.5 reduction'!AM75),9))","v":0.99999301799999996},{"$f":"VALUE(FIXED(EXP(AN$4*-1*'PM2.5 reduction'!AN75),9))","v":1},{"$f":"VALUE(FIXED(EXP(AO$4*-1*'PM2.5 reduction'!AO75),9))","v":1},{"$f":"VALUE(FIXED(EXP(AP$4*-1*'PM2.5 reduction'!AP75),9))","v":0.99999557699999997},{"$f":"VALUE(FIXED(EXP(AQ$4*-1*'PM2.5 reduction'!AQ75),9))","v":0.99999355899999998},{"$f":"VALUE(FIXED(EXP(AR$4*-1*'PM2.5 reduction'!AR75),9))","v":0.99999340699999995},{"$f":"VALUE(FIXED(EXP(AS$4*-1*'PM2.5 reduction'!AS75),9))","v":0.99999844000000004},{"$f":"VALUE(FIXED(EXP(AT$4*-1*'PM2.5 reduction'!AT75),9))","v":1},{"$f":"VALUE(FIXED(EXP(AU$4*-1*'PM2.5 reduction'!AU75),9))","v":1},{"$f":"VALUE(FIXED(EXP(AV$4*-1*'PM2.5 reduction'!AV75),9))","v":0.99999641900000003},{"$f":"VALUE(FIXED(EXP(AW$4*-1*'PM2.5 reduction'!AW75),9))","v":0.99999455199999998},{"$f":"VALUE(FIXED(EXP(AX$4*-1*'PM2.5 reduction'!AX75),9))","v":0.99999587199999995},{"$f":"VALUE(FIXED(EXP(AY$4*-1*'PM2.5 reduction'!AY75),9))","v":0.99999443200000004},{"$f":"VALUE(FIXED(EXP(AZ$4*-1*'PM2.5 reduction'!AZ75),9))","v":0.99999279600000002},{"$f":"VALUE(FIXED(EXP(BA$4*-1*'PM2.5 reduction'!BA75),9))","v":0.99999466199999998},{"$f":"VALUE(FIXED(EXP(BB$4*-1*'PM2.5 reduction'!BB75),9))","v":0.99999519400000003},{"$f":"VALUE(FIXED(EXP(BC$4*-1*'PM2.5 reduction'!BC75),9))","v":1}]
[null,"Female 80-84",{"$f":"VALUE(FIXED(EXP(C$4*-1*'PM2.5 reduction'!C76),9))","v":0.999990873},{"$f":"VALUE(FIXED(EXP(D$4*-1*'PM2.5 reduction'!D76),9))","v":0.99999156600000005},{"$f":"VALUE(FIXED(EXP(E$4*-1*'PM2.5 reduction'!E76),9))","v":0.99999626200000002},{"$f":"VALUE(FIXED(EXP(F$4*-1*'PM2.5 reduction'!F76),9))","v":0.99999819099999998},{"$f":"VALUE(FIXED(EXP(G$4*-1*'PM2.5 reduction'!G76),9))","v":0.99999853100000002},{"$f":"VALUE(FIXED(EXP(H$4*-1*'PM2.5 reduction'!H76),9))","v":0.99999660099999998},{"$f":"VALUE(FIXED(EXP(I$4*-1*'PM2.5 reduction'!I76),9))","v":0.999998465},{"$f":"VALUE(FIXED(EXP(J$4*-1*'PM2.5 reduction'!J76),9))","v":0.99999581400000004},{"$f":"VALUE(FIXED(EXP(K$4*-1*'PM2.5 reduction'!K76),9))","v":0.99999536},{"$f":"VALUE(FIXED(EXP(L$4*-1*'PM2.5 reduction'!L76),9))","v":0.99999847600000003},{"$f":"VALUE(FIXED(EXP(M$4*-1*'PM2.5 reduction'!M76),9))","v":0.99999847600000003},{"$f":"VALUE(FIXED(EXP(N$4*-1*'PM2.5 reduction'!N76),9))","v":0.99999173200000002},{"$f":"VALUE(FIXED(EXP(O$4*-1*'PM2.5 reduction'!O76),9))","v":0.99999607400000001},{"$f":"VALUE(FIXED(EXP(P$4*-1*'PM2.5 reduction'!P76),9))","v":0.99999320999999997},{"$f":"VALUE(FIXED(EXP(Q$4*-1*'PM2.5 reduction'!Q76),9))","v":0.99999717099999996},{"$f":"VALUE(FIXED(EXP(R$4*-1*'PM2.5 reduction'!R76),9))","v":0.99999460699999998},{"$f":"VALUE(FIXED(EXP(S$4*-1*'PM2.5 reduction'!S76),9))","v":0.99999408999999995},{"$f":"VALUE(FIXED(EXP(T$4*-1*'PM2.5 reduction'!T76),9))","v":0.99999095599999999},{"$f":"VALUE(FIXED(EXP(U$4*-1*'PM2.5 reduction'!U76),9))","v":1},{"$f":"VALUE(FIXED(EXP(V$4*-1*'PM2.5 reduction'!V76),9))","v":0.99999359499999996},{"$f":"VALUE(FIXED(EXP(W$4*-1*'PM2.5 reduction'!W76),9))","v":0.99999603000000004},{"$f":"VALUE(FIXED(EXP(X$4*-1*'PM2.5 reduction'!X76),9))","v":0.99999603000000004},{"$f":"VALUE(FIXED(EXP(Y$4*-1*'PM2.5 reduction'!Y76),9))","v":0.99999456399999997},{"$f":"VALUE(FIXED(EXP(Z$4*-1*'PM2.5 reduction'!Z76),9))","v":0.99999099800000002},{"$f":"VALUE(FIXED(EXP(AA$4*-1*'PM2.5 reduction'!AA76),9))","v":0.99999241999999999},{"$f":"VALUE(FIXED(EXP(AB$4*-1*'PM2.5 reduction'!AB76),9))","v":0.999991874},{"$f":"VALUE(FIXED(EXP(AC$4*-1*'PM2.5 reduction'!AC76),9))","v":0.99999191799999998},{"$f":"VALUE(FIXED(EXP(AD$4*-1*'PM2.5 reduction'!AD76),9))","v":0.999998426},{"$f":"VALUE(FIXED(EXP(AE$4*-1*'PM2.5 reduction'!AE76),9))","v":0.99999833599999999},{"$f":"VALUE(FIXED(EXP(AF$4*-1*'PM2.5 reduction'!AF76),9))","v":0.99999464299999996},{"$f":"VALUE(FIXED(EXP(AG$4*-1*'PM2.5 reduction'!AG76),9))","v":0.99999833599999999},{"$f":"VALUE(FIXED(EXP(AH$4*-1*'PM2.5 reduction'!AH76),9))","v":0.99999360400000004},{"$f":"VALUE(FIXED(EXP(AI$4*-1*'PM2.5 reduction'!AI76),9))","v":0.99999262700000002},{"$f":"VALUE(FIXED(EXP(AJ$4*-1*'PM2.5 reduction'!AJ76),9))","v":0.99999518200000004},{"$f":"VALUE(FIXED(EXP(AK$4*-1*'PM2.5 reduction'!AK76),9))","v":0.99999739600000004},{"$f":"VALUE(FIXED(EXP(AL$4*-1*'PM2.5 reduction'!AL76),9))","v":0.99999699399999997},{"$f":"VALUE(FIXED(EXP(AM$4*-1*'PM2.5 reduction'!AM76),9))","v":0.99999306899999996},{"$f":"VALUE(FIXED(EXP(AN$4*-1*'PM2.5 reduction'!AN76),9))","v":1},{"$f":"VALUE(FIXED(EXP(AO$4*-1*'PM2.5 reduction'!AO76),9))","v":1},{"$f":"VALUE(FIXED(EXP(AP$4*-1*'PM2.5 reduction'!AP76),9))","v":0.99999505499999997},{"$f":"VALUE(FIXED(EXP(AQ$4*-1*'PM2.5 reduction'!AQ76),9))","v":0.99999339300000001},{"$f":"VALUE(FIXED(EXP(AR$4*-1*'PM2.5 reduction'!AR76),9))","v":0.99999332299999999},{"$f":"VALUE(FIXED(EXP(AS$4*-1*'PM2.5 reduction'!AS76),9))","v":0.999998465},{"$f":"VALUE(FIXED(EXP(AT$4*-1*'PM2.5 reduction'!AT76),9))","v":1},{"$f":"VALUE(FIXED(EXP(AU$4*-1*'PM2.5 reduction'!AU76),9))","v":1},{"$f":"VALUE(FIXED(EXP(AV$4*-1*'PM2.5 reduction'!AV76),9))","v":0.99999652500000002},{"$f":"VALUE(FIXED(EXP(AW$4*-1*'PM2.5 reduction'!AW76),9))","v":0.99999440399999995},{"$f":"VALUE(FIXED(EXP(AX$4*-1*'PM2.5 reduction'!AX76),9))","v":0.99999621699999997},{"$f":"VALUE(FIXED(EXP(AY$4*-1*'PM2.5 reduction'!AY76),9))","v":0.99999436100000005},{"$f":"VALUE(FIXED(EXP(AZ$4*-1*'PM2.5 reduction'!AZ76),9))","v":0.99999275600000004},{"$f":"VALUE(FIXED(EXP(BA$4*-1*'PM2.5 reduction'!BA76),9))","v":0.99999427500000004},{"$f":"VALUE(FIXED(EXP(BB$4*-1*'PM2.5 reduction'!BB76),9))","v":0.99999521499999999},{"$f":"VALUE(FIXED(EXP(BC$4*-1*'PM2.5 reduction'!BC76),9))","v":1}]
[null,"Female 85-89",{"$f":"VALUE(FIXED(EXP(C$4*-1*'PM2.5 reduction'!C77),9))","v":0.99999041200000005},{"$f":"VALUE(FIXED(EXP(D$4*-1*'PM2.5 reduction'!D77),9))","v":0.99999100200000002},{"$f":"VALUE(FIXED(EXP(E$4*-1*'PM2.5 reduction'!E77),9))","v":0.99999640499999998},{"$f":"VALUE(FIXED(EXP(F$4*-1*'PM2.5 reduction'!F77),9))","v":0.99999784000000003},{"$f":"VALUE(FIXED(EXP(G$4*-1*'PM2.5 reduction'!G77),9))","v":0.99999856399999998},{"$f":"VALUE(FIXED(EXP(H$4*-1*'PM2.5 reduction'!H77),9))","v":0.99999617900000004},{"$f":"VALUE(FIXED(EXP(I$4*-1*'PM2.5 reduction'!I77),9))","v":0.99999843499999996},{"$f":"VALUE(FIXED(EXP(J$4*-1*'PM2.5 reduction'!J77),9))","v":0.99999546699999997},{"$f":"VALUE(FIXED(EXP(K$4*-1*'PM2.5 reduction'!K77),9))","v":0.99999515400000005},{"$f":"VALUE(FIXED(EXP(L$4*-1*'PM2.5 reduction'!L77),9))","v":0.99999824900000001},{"$f":"VALUE(FIXED(EXP(M$4*-1*'PM2.5 reduction'!M77),9))","v":0.99999824900000001},{"$f":"VALUE(FIXED(EXP(N$4*-1*'PM2.5 reduction'!N77),9))","v":0.99999180600000004},{"$f":"VALUE(FIXED(EXP(O$4*-1*'PM2.5 reduction'!O77),9))","v":0.99999535500000003},{"$f":"VALUE(FIXED(EXP(P$4*-1*'PM2.5 reduction'!P77),9))","v":0.99999306300000002},{"$f":"VALUE(FIXED(EXP(Q$4*-1*'PM2.5 reduction'!Q77),9))","v":0.99999697499999995},{"$f":"VALUE(FIXED(EXP(R$4*-1*'PM2.5 reduction'!R77),9))","v":0.99999449200000001},{"$f":"VALUE(FIXED(EXP(S$4*-1*'PM2.5 reduction'!S77),9))","v":0.99999379700000002},{"$f":"VALUE(FIXED(EXP(T$4*-1*'PM2.5 reduction'!T77),9))","v":0.99999098900000005},{"$f":"VALUE(FIXED(EXP(U$4*-1*'PM2.5 reduction'!U77),9))","v":1},{"$f":"VALUE(FIXED(EXP(V$4*-1*'PM2.5 reduction'!V77),9))","v":0.99999345299999998},{"$f":"VALUE(FIXED(EXP(W$4*-1*'PM2.5 reduction'!W77),9))","v":0.99999578300000003},{"$f":"VALUE(FIXED(EXP(X$4*-1*'PM2.5 reduction'!X77),9))","v":0.99999578300000003},{"$f":"VALUE(FIXED(EXP(Y$4*-1*'PM2.5 reduction'!Y77),9))","v":0.99999424000000003},{"$f":"VALUE(FIXED(EXP(Z$4*-1*'PM2.5 reduction'!Z77),9))","v":0.99999095500000001},{"$f":"VALUE(FIXED(EXP(AA$4*-1*'PM2.5 reduction'!AA77),9))","v":0.99999236300000005},{"$f":"VALUE(FIXED(EXP(AB$4*-1*'PM2.5 reduction'!AB77),9))","v":0.99999139500000001},{"$f":"VALUE(FIXED(EXP(AC$4*-1*'PM2.5 reduction'!AC77),9))","v":0.99999186100000004},{"$f":"VALUE(FIXED(EXP(AD$4*-1*'PM2.5 reduction'!AD77),9))","v":0.99999840399999995},{"$f":"VALUE(FIXED(EXP(AE$4*-1*'PM2.5 reduction'!AE77),9))","v":0.99999821499999997},{"$f":"VALUE(FIXED(EXP(AF$4*-1*'PM2.5 reduction'!AF77),9))","v":0.99999448099999999},{"$f":"VALUE(FIXED(EXP(AG$4*-1*'PM2.5 reduction'!AG77),9))","v":0.99999821499999997},{"$f":"VALUE(FIXED(EXP(AH$4*-1*'PM2.5 reduction'!AH77),9))","v":0.99999356399999995},{"$f":"VALUE(FIXED(EXP(AI$4*-1*'PM2.5 reduction'!AI77),9))","v":0.99999234999999997},{"$f":"VALUE(FIXED(EXP(AJ$4*-1*'PM2.5 reduction'!AJ77),9))","v":0.99999478900000005},{"$f":"VALUE(FIXED(EXP(AK$4*-1*'PM2.5 reduction'!AK77),9))","v":0.99999739600000004},{"$f":"VALUE(FIXED(EXP(AL$4*-1*'PM2.5 reduction'!AL77),9))","v":0.99999688499999995},{"$f":"VALUE(FIXED(EXP(AM$4*-1*'PM2.5 reduction'!AM77),9))","v":0.99999311999999996},{"$f":"VALUE(FIXED(EXP(AN$4*-1*'PM2.5 reduction'!AN77),9))","v":1},{"$f":"VALUE(FIXED(EXP(AO$4*-1*'PM2.5 reduction'!AO77),9))","v":1},{"$f":"VALUE(FIXED(EXP(AP$4*-1*'PM2.5 reduction'!AP77),9))","v":0.99999526000000005},{"$f":"VALUE(FIXED(EXP(AQ$4*-1*'PM2.5 reduction'!AQ77),9))","v":0.99999339899999995},{"$f":"VALUE(FIXED(EXP(AR$4*-1*'PM2.5 reduction'!AR77),9))","v":0.99999320400000002},{"$f":"VALUE(FIXED(EXP(AS$4*-1*'PM2.5 reduction'!AS77),9))","v":0.99999843499999996},{"$f":"VALUE(FIXED(EXP(AT$4*-1*'PM2.5 reduction'!AT77),9))","v":1},{"$f":"VALUE(FIXED(EXP(AU$4*-1*'PM2.5 reduction'!AU77),9))","v":1},{"$f":"VALUE(FIXED(EXP(AV$4*-1*'PM2.5 reduction'!AV77),9))","v":0.99999633899999996},{"$f":"VALUE(FIXED(EXP(AW$4*-1*'PM2.5 reduction'!AW77),9))","v":0.99999431000000005},{"$f":"VALUE(FIXED(EXP(AX$4*-1*'PM2.5 reduction'!AX77),9))","v":0.99999582899999995},{"$f":"VALUE(FIXED(EXP(AY$4*-1*'PM2.5 reduction'!AY77),9))","v":0.99999413100000001},{"$f":"VALUE(FIXED(EXP(AZ$4*-1*'PM2.5 reduction'!AZ77),9))","v":0.99999269099999999},{"$f":"VALUE(FIXED(EXP(BA$4*-1*'PM2.5 reduction'!BA77),9))","v":0.99999410099999997},{"$f":"VALUE(FIXED(EXP(BB$4*-1*'PM2.5 reduction'!BB77),9))","v":0.99999557299999997},{"$f":"VALUE(FIXED(EXP(BC$4*-1*'PM2.5 reduction'!BC77),9))","v":1}]
[null,"Female 90+",{"$f":"VALUE(FIXED(EXP(C$4*-1*'PM2.5 reduction'!C78),9))","v":0.99999044699999995},{"$f":"VALUE(FIXED(EXP(D$4*-1*'PM2.5 reduction'!D78),9))","v":0.99999084000000005},{"$f":"VALUE(FIXED(EXP(E$4*-1*'PM2.5 reduction'!E78),9))","v":0.99999602300000001},{"$f":"VALUE(FIXED(EXP(F$4*-1*'PM2.5 reduction'!F78),9))","v":0.99999780500000002},{"$f":"VALUE(FIXED(EXP(G$4*-1*'PM2.5 reduction'!G78),9))","v":0.99999863899999997},{"$f":"VALUE(FIXED(EXP(H$4*-1*'PM2.5 reduction'!H78),9))","v":0.99999623400000004},{"$f":"VALUE(FIXED(EXP(I$4*-1*'PM2.5 reduction'!I78),9))","v":0.99999851200000001},{"$f":"VALUE(FIXED(EXP(J$4*-1*'PM2.5 reduction'!J78),9))","v":0.99999571099999995},{"$f":"VALUE(FIXED(EXP(K$4*-1*'PM2.5 reduction'!K78),9))","v":0.99999565400000001},{"$f":"VALUE(FIXED(EXP(L$4*-1*'PM2.5 reduction'!L78),9))","v":0.99999872599999995},{"$f":"VALUE(FIXED(EXP(M$4*-1*'PM2.5 reduction'!M78),9))","v":0.99999872599999995},{"$f":"VALUE(FIXED(EXP(N$4*-1*'PM2.5 reduction'!N78),9))","v":0.99999171499999995},{"$f":"VALUE(FIXED(EXP(O$4*-1*'PM2.5 reduction'!O78),9))","v":0.99999527899999996},{"$f":"VALUE(FIXED(EXP(P$4*-1*'PM2.5 reduction'!P78),9))","v":0.99999272100000003},{"$f":"VALUE(FIXED(EXP(Q$4*-1*'PM2.5 reduction'!Q78),9))","v":0.99999716199999999},{"$f":"VALUE(FIXED(EXP(R$4*-1*'PM2.5 reduction'!R78),9))","v":0.99999402800000003},{"$f":"VALUE(FIXED(EXP(S$4*-1*'PM2.5 reduction'!S78),9))","v":0.99999403899999995},{"$f":"VALUE(FIXED(EXP(T$4*-1*'PM2.5 reduction'!T78),9))","v":0.99999110599999996},{"$f":"VALUE(FIXED(EXP(U$4*-1*'PM2.5 reduction'!U78),9))","v":1},{"$f":"VALUE(FIXED(EXP(V$4*-1*'PM2.5 reduction'!V78),9))","v":0.999993142},{"$f":"VALUE(FIXED(EXP(W$4*-1*'PM2.5 reduction'!W78),9))","v":0.99999590699999996},{"$f":"VALUE(FIXED(EXP(X$4*-1*'PM2.5 reduction'!X78),9))","v":0.99999590699999996},{"$f":"VALUE(FIXED(EXP(Y$4*-1*'PM2.5 reduction'!Y78),9))","v":0.999994202},{"$f":"VALUE(FIXED(EXP(Z$4*-1*'PM2.5 reduction'!Z78),9))","v":0.99999101099999999},{"$f":"VALUE(FIXED(EXP(AA$4*-1*'PM2.5 reduction'!AA78),9))","v":0.99999238300000004},{"$f":"VALUE(FIXED(EXP(AB$4*-1*'PM2.5 reduction'!AB78),9))","v":0.99999101899999998},{"$f":"VALUE(FIXED(EXP(AC$4*-1*'PM2.5 reduction'!AC78),9))","v":0.99999178300000002},{"$f":"VALUE(FIXED(EXP(AD$4*-1*'PM2.5 reduction'!AD78),9))","v":0.99999849699999999},{"$f":"VALUE(FIXED(EXP(AE$4*-1*'PM2.5 reduction'!AE78),9))","v":0.99999835400000003},{"$f":"VALUE(FIXED(EXP(AF$4*-1*'PM2.5 reduction'!AF78),9))","v":0.99999459400000001},{"$f":"VALUE(FIXED(EXP(AG$4*-1*'PM2.5 reduction'!AG78),9))","v":0.99999835400000003},{"$f":"VALUE(FIXED(EXP(AH$4*-1*'PM2.5 reduction'!AH78),9))","v":0.99999372900000005},{"$f":"VALUE(FIXED(EXP(AI$4*-1*'PM2.5 reduction'!AI78),9))","v":0.99999269899999998},{"$f":"VALUE(FIXED(EXP(AJ$4*-1*'PM2.5 reduction'!AJ78),9))","v":0.999995721},{"$f":"VALUE(FIXED(EXP(AK$4*-1*'PM2.5 reduction'!AK78),9))","v":0.99999739600000004},{"$f":"VALUE(FIXED(EXP(AL$4*-1*'PM2.5 reduction'!AL78),9))","v":0.99999690500000005},{"$f":"VALUE(FIXED(EXP(AM$4*-1*'PM2.5 reduction'!AM78),9))","v":0.99999318599999998},{"$f":"VALUE(FIXED(EXP(AN$4*-1*'PM2.5 reduction'!AN78),9))","v":1},{"$f":"VALUE(FIXED(EXP(AO$4*-1*'PM2.5 reduction'!AO78),9))","v":1},{"$f":"VALUE(FIXED(EXP(AP$4*-1*'PM2.5 reduction'!AP78),9))","v":0.99999470300000004},{"$f":"VALUE(FIXED(EXP(AQ$4*-1*'PM2.5 reduction'!AQ78),9))","v":0.99999312699999998},{"$f":"VALUE(FIXED(EXP(AR$4*-1*'PM2.5 reduction'!AR78),9))","v":0.999993205},{"$f":"VALUE(FIXED(EXP(AS$4*-1*'PM2.5 reduction'!AS78),9))","v":0.99999851200000001},{"$f":"VALUE(FIXED(EXP(AT$4*-1*'PM2.5 reduction'!AT78),9))","v":1},{"$f":"VALUE(FIXED(EXP(AU$4*-1*'PM2.5 reduction'!AU78),9))","v":1},{"$f":"VALUE(FIXED(EXP(AV$4*-1*'PM2.5 reduction'!AV78),9))","v":0.99999639500000004},{"$f":"VALUE(FIXED(EXP(AW$4*-1*'PM2.5 reduction'!AW78),9))","v":0.99999448999999996},{"$f":"VALUE(FIXED(EXP(AX$4*-1*'PM2.5 reduction'!AX78),9))","v":0.99999580899999996},{"$f":"VALUE(FIXED(EXP(AY$4*-1*'PM2.5 reduction'!AY78),9))","v":0.99999416100000005},{"$f":"VALUE(FIXED(EXP(AZ$4*-1*'PM2.5 reduction'!AZ78),9))","v":0.99999238999999995},{"$f":"VALUE(FIXED(EXP(BA$4*-1*'PM2.5 reduction'!BA78),9))","v":0.99999420100000003},{"$f":"VALUE(FIXED(EXP(BB$4*-1*'PM2.5 reduction'!BB78),9))","v":0.99999520799999997},{"$f":"VALUE(FIXED(EXP(BC$4*-1*'PM2.5 reduction'!BC78),9))","v":1}]
[null,"Male 0-4",{"$f":"VALUE(FIXED(EXP(C$4*-1*'PM2.5 reduction'!C79),9))","v":0.99999052099999997},{"$f":"VALUE(FIXED(EXP(D$4*-1*'PM2.5 reduction'!D79),9))","v":0.999991187},{"$f":"VALUE(FIXED(EXP(E$4*-1*'PM2.5 reduction'!E79),9))","v":0.99999650200000001},{"$f":"VALUE(FIXED(EXP(F$4*-1*'PM2.5 reduction'!F79),9))","v":0.99999774100000005},{"$f":"VALUE(FIXED(EXP(G$4*-1*'PM2.5 reduction'!G79),9))","v":0.99999858600000002},{"$f":"VALUE(FIXED(EXP(H$4*-1*'PM2.5 reduction'!H79),9))","v":0.99999679399999997},{"$f":"VALUE(FIXED(EXP(I$4*-1*'PM2.5 reduction'!I79),9))","v":0.99999854099999996},{"$f":"VALUE(FIXED(EXP(J$4*-1*'PM2.5 reduction'!J79),9))","v":0.99999570699999996},{"$f":"VALUE(FIXED(EXP(K$4*-1*'PM2.5 reduction'!K79),9))","v":0.99999535100000003},{"$f":"VALUE(FIXED(EXP(L$4*-1*'PM2.5 reduction'!L79),9))","v":0.99999839999999995},{"$f":"VALUE(FIXED(EXP(M$4*-1*'PM2.5 reduction'!M79),9))","v":0.99999839999999995},{"$f":"VALUE(FIXED(EXP(N$4*-1*'PM2.5 reduction'!N79),9))","v":0.99999200600000004},{"$f":"VALUE(FIXED(EXP(O$4*-1*'PM2.5 reduction'!O79),9))","v":0.99999667699999994},{"$f":"VALUE(FIXED(EXP(P$4*-1*'PM2.5 reduction'!P79),9))","v":0.99999319499999995},{"$f":"VALUE(FIXED(EXP(Q$4*-1*'PM2.5 reduction'!Q79),9))","v":0.99999716900000002},{"$f":"VALUE(FIXED(EXP(R$4*-1*'PM2.5 reduction'!R79),9))","v":0.99999445200000003},{"$f":"VALUE(FIXED(EXP(S$4*-1*'PM2.5 reduction'!S79),9))","v":0.99999395099999999},{"$f":"VALUE(FIXED(EXP(T$4*-1*'PM2.5 reduction'!T79),9))","v":0.99999117999999998},{"$f":"VALUE(FIXED(EXP(U$4*-1*'PM2.5 reduction'!U79),9))","v":1},{"$f":"VALUE(FIXED(EXP(V$4*-1*'PM2.5 reduction'!V79),9))","v":0.99999371299999995},{"$f":"VALUE(FIXED(EXP(W$4*-1*'PM2.5 reduction'!W79),9))","v":0.99999583400000003},{"$f":"VALUE(FIXED(EXP(X$4*-1*'PM2.5 reduction'!X79),9))","v":0.99999583400000003},{"$f":"VALUE(FIXED(EXP(Y$4*-1*'PM2.5 reduction'!Y79),9))","v":0.99999473800000005},{"$f":"VALUE(FIXED(EXP(Z$4*-1*'PM2.5 reduction'!Z79),9))","v":0.99999095900000001},{"$f":"VALUE(FIXED(EXP(AA$4*-1*'PM2.5 reduction'!AA79),9))","v":0.99999244300000001},{"$f":"VALUE(FIXED(EXP(AB$4*-1*'PM2.5 reduction'!AB79),9))","v":0.999991407},{"$f":"VALUE(FIXED(EXP(AC$4*-1*'PM2.5 reduction'!AC79),9))","v":0.99999190599999999},{"$f":"VALUE(FIXED(EXP(AD$4*-1*'PM2.5 reduction'!AD79),9))","v":0.99999847399999997},{"$f":"VALUE(FIXED(EXP(AE$4*-1*'PM2.5 reduction'!AE79),9))","v":0.99999842699999997},{"$f":"VALUE(FIXED(EXP(AF$4*-1*'PM2.5 reduction'!AF79),9))","v":0.99999555799999995},{"$f":"VALUE(FIXED(EXP(AG$4*-1*'PM2.5 reduction'!AG79),9))","v":0.99999842699999997},{"$f":"VALUE(FIXED(EXP(AH$4*-1*'PM2.5 reduction'!AH79),9))","v":0.99999373499999999},{"$f":"VALUE(FIXED(EXP(AI$4*-1*'PM2.5 reduction'!AI79),9))","v":0.99999266799999997},{"$f":"VALUE(FIXED(EXP(AJ$4*-1*'PM2.5 reduction'!AJ79),9))","v":0.99999583000000003},{"$f":"VALUE(FIXED(EXP(AK$4*-1*'PM2.5 reduction'!AK79),9))","v":0.99999739600000004},{"$f":"VALUE(FIXED(EXP(AL$4*-1*'PM2.5 reduction'!AL79),9))","v":0.99999707199999999},{"$f":"VALUE(FIXED(EXP(AM$4*-1*'PM2.5 reduction'!AM79),9))","v":0.99999326200000005},{"$f":"VALUE(FIXED(EXP(AN$4*-1*'PM2.5 reduction'!AN79),9))","v":1},{"$f":"VALUE(FIXED(EXP(AO$4*-1*'PM2.5 reduction'!AO79),9))","v":1},{"$f":"VALUE(FIXED(EXP(AP$4*-1*'PM2.5 reduction'!AP79),9))","v":0.99999545099999998},{"$f":"VALUE(FIXED(EXP(AQ$4*-1*'PM2.5 reduction'!AQ79),9))","v":0.99999358699999996},{"$f":"VALUE(FIXED(EXP(AR$4*-1*'PM2.5 reduction'!AR79),9))","v":0.99999341900000005},{"$f":"VALUE(FIXED(EXP(AS$4*-1*'PM2.5 reduction'!AS79),9))","v":0.99999854099999996},{"$f":"VALUE(FIXED(EXP(AT$4*-1*'PM2.5 reduction'!AT79),9))","v":1},{"$f":"VALUE(FIXED(EXP(AU$4*-1*'PM2.5 reduction'!AU79),9))","v":1},{"$f":"VALUE(FIXED(EXP(AV$4*-1*'PM2.5 reduction'!AV79),9))","v":0.99999628900000004},{"$f":"VALUE(FIXED(EXP(AW$4*-1*'PM2.5 reduction'!AW79),9))","v":0.99999456200000003},{"$f":"VALUE(FIXED(EXP(AX$4*-1*'PM2.5 reduction'!AX79),9))","v":0.99999618999999995},{"$f":"VALUE(FIXED(EXP(AY$4*-1*'PM2.5 reduction'!AY79),9))","v":0.99999440699999997},{"$f":"VALUE(FIXED(EXP(AZ$4*-1*'PM2.5 reduction'!AZ79),9))","v":0.99999307100000001},{"$f":"VALUE(FIXED(EXP(BA$4*-1*'PM2.5 reduction'!BA79),9))","v":0.99999457899999999},{"$f":"VALUE(FIXED(EXP(BB$4*-1*'PM2.5 reduction'!BB79),9))","v":0.999995195},{"$f":"VALUE(FIXED(EXP(BC$4*-1*'PM2.5 reduction'!BC79),9))","v":1}]
[null,"Male 5-9",{"$f":"VALUE(FIXED(EXP(C$4*-1*'PM2.5 reduction'!C80),9))","v":0.99999078600000002},{"$f":"VALUE(FIXED(EXP(D$4*-1*'PM2.5 reduction'!D80),9))","v":0.99999151100000006},{"$f":"VALUE(FIXED(EXP(E$4*-1*'PM2.5 reduction'!E80),9))","v":0.99999648699999999},{"$f":"VALUE(FIXED(EXP(F$4*-1*'PM2.5 reduction'!F80),9))","v":0.99999792799999998},{"$f":"VALUE(FIXED(EXP(G$4*-1*'PM2.5 reduction'!G80),9))","v":0.999998532},{"$f":"VALUE(FIXED(EXP(H$4*-1*'PM2.5 reduction'!H80),9))","v":0.99999679299999999},{"$f":"VALUE(FIXED(EXP(I$4*-1*'PM2.5 reduction'!I80),9))","v":0.99999854300000002},{"$f":"VALUE(FIXED(EXP(J$4*-1*'PM2.5 reduction'!J80),9))","v":0.99999574099999999},{"$f":"VALUE(FIXED(EXP(K$4*-1*'PM2.5 reduction'!K80),9))","v":0.99999534300000004},{"$f":"VALUE(FIXED(EXP(L$4*-1*'PM2.5 reduction'!L80),9))","v":0.99999838699999999},{"$f":"VALUE(FIXED(EXP(M$4*-1*'PM2.5 reduction'!M80),9))","v":0.99999838699999999},{"$f":"VALUE(FIXED(EXP(N$4*-1*'PM2.5 reduction'!N80),9))","v":0.99999231200000005},{"$f":"VALUE(FIXED(EXP(O$4*-1*'PM2.5 reduction'!O80),9))","v":0.99999656100000001},{"$f":"VALUE(FIXED(EXP(P$4*-1*'PM2.5 reduction'!P80),9))","v":0.99999325400000005},{"$f":"VALUE(FIXED(EXP(Q$4*-1*'PM2.5 reduction'!Q80),9))","v":0.99999726200000005},{"$f":"VALUE(FIXED(EXP(R$4*-1*'PM2.5 reduction'!R80),9))","v":0.99999464000000005},{"$f":"VALUE(FIXED(EXP(S$4*-1*'PM2.5 reduction'!S80),9))","v":0.99999400000000005},{"$f":"VALUE(FIXED(EXP(T$4*-1*'PM2.5 reduction'!T80),9))","v":0.99999121099999999},{"$f":"VALUE(FIXED(EXP(U$4*-1*'PM2.5 reduction'!U80),9))","v":1},{"$f":"VALUE(FIXED(EXP(V$4*-1*'PM2.5 reduction'!V80),9))","v":0.99999378299999997},{"$f":"VALUE(FIXED(EXP(W$4*-1*'PM2.5 reduction'!W80),9))","v":0.99999598700000003},{"$f":"VALUE(FIXED(EXP(X$4*-1*'PM2.5 reduction'!X80),9))","v":0.99999598700000003},{"$f":"VALUE(FIXED(EXP(Y$4*-1*'PM2.5 reduction'!Y80),9))","v":0.999994787},{"$f":"VALUE(FIXED(EXP(Z$4*-1*'PM2.5 reduction'!Z80),9))","v":0.999991144},{"$f":"VALUE(FIXED(EXP(AA$4*-1*'PM2.5 reduction'!AA80),9))","v":0.99999263500000002},{"$f":"VALUE(FIXED(EXP(AB$4*-1*'PM2.5 reduction'!AB80),9))","v":0.99999177699999997},{"$f":"VALUE(FIXED(EXP(AC$4*-1*'PM2.5 reduction'!AC80),9))","v":0.99999216000000002},{"$f":"VALUE(FIXED(EXP(AD$4*-1*'PM2.5 reduction'!AD80),9))","v":0.99999848000000002},{"$f":"VALUE(FIXED(EXP(AE$4*-1*'PM2.5 reduction'!AE80),9))","v":0.99999845499999995},{"$f":"VALUE(FIXED(EXP(AF$4*-1*'PM2.5 reduction'!AF80),9))","v":0.99999572800000003},{"$f":"VALUE(FIXED(EXP(AG$4*-1*'PM2.5 reduction'!AG80),9))","v":0.99999845499999995},{"$f":"VALUE(FIXED(EXP(AH$4*-1*'PM2.5 reduction'!AH80),9))","v":0.99999371100000001},{"$f":"VALUE(FIXED(EXP(AI$4*-1*'PM2.5 reduction'!AI80),9))","v":0.99999269700000004},{"$f":"VALUE(FIXED(EXP(AJ$4*-1*'PM2.5 reduction'!AJ80),9))","v":0.99999594999999997},{"$f":"VALUE(FIXED(EXP(AK$4*-1*'PM2.5 reduction'!AK80),9))","v":0.99999739600000004},{"$f":"VALUE(FIXED(EXP(AL$4*-1*'PM2.5 reduction'!AL80),9))","v":0.999997099},{"$f":"VALUE(FIXED(EXP(AM$4*-1*'PM2.5 reduction'!AM80),9))","v":0.99999326600000005},{"$f":"VALUE(FIXED(EXP(AN$4*-1*'PM2.5 reduction'!AN80),9))","v":1},{"$f":"VALUE(FIXED(EXP(AO$4*-1*'PM2.5 reduction'!AO80),9))","v":1},{"$f":"VALUE(FIXED(EXP(AP$4*-1*'PM2.5 reduction'!AP80),9))","v":0.99999572699999995},{"$f":"VALUE(FIXED(EXP(AQ$4*-1*'PM2.5 reduction'!AQ80),9))","v":0.99999380199999999},{"$f":"VALUE(FIXED(EXP(AR$4*-1*'PM2.5 reduction'!AR80),9))","v":0.99999360299999995},{"$f":"VALUE(FIXED(EXP(AS$4*-1*'PM2.5 reduction'!AS80),9))","v":0.99999854300000002},{"$f":"VALUE(FIXED(EXP(AT$4*-1*'PM2.5 reduction'!AT80),9))","v":1},{"$f":"VALUE(FIXED(EXP(AU$4*-1*'PM2.5 reduction'!AU80),9))","v":1},{"$f":"VALUE(FIXED(EXP(AV$4*-1*'PM2.5 reduction'!AV80),9))","v":0.99999633499999996},{"$f":"VALUE(FIXED(EXP(AW$4*-1*'PM2.5 reduction'!AW80),9))","v":0.99999454200000004},{"$f":"VALUE(FIXED(EXP(AX$4*-1*'PM2.5 reduction'!AX80),9))","v":0.99999615900000005},{"$f":"VALUE(FIXED(EXP(AY$4*-1*'PM2.5 reduction'!AY80),9))","v":0.99999470199999996},{"$f":"VALUE(FIXED(EXP(AZ$4*-1*'PM2.5 reduction'!AZ80),9))","v":0.99999339700000001},{"$f":"VALUE(FIXED(EXP(BA$4*-1*'PM2.5 reduction'!BA80),9))","v":0.99999453800000004},{"$f":"VALUE(FIXED(EXP(BB$4*-1*'PM2.5 reduction'!BB80),9))","v":0.99999528500000001},{"$f":"VALUE(FIXED(EXP(BC$4*-1*'PM2.5 reduction'!BC80),9))","v":1}]
[null,"Male 10-15",{"$f":"VALUE(FIXED(EXP(C$4*-1*'PM2.5 reduction'!C81),9))","v":0.99999088400000002},{"$f":"VALUE(FIXED(EXP(D$4*-1*'PM2.5 reduction'!D81),9))","v":0.99999146000000005},{"$f":"VALUE(FIXED(EXP(E$4*-1*'PM2.5 reduction'!E81),9))","v":0.99999647300000005},{"$f":"VALUE(FIXED(EXP(F$4*-1*'PM2.5 reduction'!F81),9))","v":0.99999785299999999},{"$f":"VALUE(FIXED(EXP(G$4*-1*'PM2.5 reduction'!G81),9))","v":0.99999856600000003},{"$f":"VALUE(FIXED(EXP(H$4*-1*'PM2.5 reduction'!H81),9))","v":0.999996832},{"$f":"VALUE(FIXED(EXP(I$4*-1*'PM2.5 reduction'!I81),9))","v":0.99999855100000001},{"$f":"VALUE(FIXED(EXP(J$4*-1*'PM2.5 reduction'!J81),9))","v":0.99999571399999998},{"$f":"VALUE(FIXED(EXP(K$4*-1*'PM2.5 reduction'!K81),9))","v":0.999995262},{"$f":"VALUE(FIXED(EXP(L$4*-1*'PM2.5 reduction'!L81),9))","v":0.99999832899999996},{"$f":"VALUE(FIXED(EXP(M$4*-1*'PM2.5 reduction'!M81),9))","v":0.99999832899999996},{"$f":"VALUE(FIXED(EXP(N$4*-1*'PM2.5 reduction'!N81),9))","v":0.99999222300000001},{"$f":"VALUE(FIXED(EXP(O$4*-1*'PM2.5 reduction'!O81),9))","v":0.99999659299999999},{"$f":"VALUE(FIXED(EXP(P$4*-1*'PM2.5 reduction'!P81),9))","v":0.99999337799999999},{"$f":"VALUE(FIXED(EXP(Q$4*-1*'PM2.5 reduction'!Q81),9))","v":0.99999725800000006},{"$f":"VALUE(FIXED(EXP(R$4*-1*'PM2.5 reduction'!R81),9))","v":0.99999462699999997},{"$f":"VALUE(FIXED(EXP(S$4*-1*'PM2.5 reduction'!S81),9))","v":0.99999414200000003},{"$f":"VALUE(FIXED(EXP(T$4*-1*'PM2.5 reduction'!T81),9))","v":0.99999132599999996},{"$f":"VALUE(FIXED(EXP(U$4*-1*'PM2.5 reduction'!U81),9))","v":1},{"$f":"VALUE(FIXED(EXP(V$4*-1*'PM2.5 reduction'!V81),9))","v":0.99999372099999995},{"$f":"VALUE(FIXED(EXP(W$4*-1*'PM2.5 reduction'!W81),9))","v":0.99999592599999998},{"$f":"VALUE(FIXED(EXP(X$4*-1*'PM2.5 reduction'!X81),9))","v":0.99999592599999998},{"$f":"VALUE(FIXED(EXP(Y$4*-1*'PM2.5 reduction'!Y81),9))","v":0.99999473900000002},{"$f":"VALUE(FIXED(EXP(Z$4*-1*'PM2.5 reduction'!Z81),9))","v":0.99999126599999999},{"$f":"VALUE(FIXED(EXP(AA$4*-1*'PM2.5 reduction'!AA81),9))","v":0.99999272800000005},{"$f":"VALUE(FIXED(EXP(AB$4*-1*'PM2.5 reduction'!AB81),9))","v":0.99999181999999998},{"$f":"VALUE(FIXED(EXP(AC$4*-1*'PM2.5 reduction'!AC81),9))","v":0.99999226200000002},{"$f":"VALUE(FIXED(EXP(AD$4*-1*'PM2.5 reduction'!AD81),9))","v":0.99999843399999999},{"$f":"VALUE(FIXED(EXP(AE$4*-1*'PM2.5 reduction'!AE81),9))","v":0.99999835699999995},{"$f":"VALUE(FIXED(EXP(AF$4*-1*'PM2.5 reduction'!AF81),9))","v":0.99999579800000005},{"$f":"VALUE(FIXED(EXP(AG$4*-1*'PM2.5 reduction'!AG81),9))","v":0.99999835699999995},{"$f":"VALUE(FIXED(EXP(AH$4*-1*'PM2.5 reduction'!AH81),9))","v":0.99999374699999999},{"$f":"VALUE(FIXED(EXP(AI$4*-1*'PM2.5 reduction'!AI81),9))","v":0.99999294699999997},{"$f":"VALUE(FIXED(EXP(AJ$4*-1*'PM2.5 reduction'!AJ81),9))","v":0.99999590599999999},{"$f":"VALUE(FIXED(EXP(AK$4*-1*'PM2.5 reduction'!AK81),9))","v":0.99999739600000004},{"$f":"VALUE(FIXED(EXP(AL$4*-1*'PM2.5 reduction'!AL81),9))","v":0.999997095},{"$f":"VALUE(FIXED(EXP(AM$4*-1*'PM2.5 reduction'!AM81),9))","v":0.99999329800000003},{"$f":"VALUE(FIXED(EXP(AN$4*-1*'PM2.5 reduction'!AN81),9))","v":1},{"$f":"VALUE(FIXED(EXP(AO$4*-1*'PM2.5 reduction'!AO81),9))","v":1},{"$f":"VALUE(FIXED(EXP(AP$4*-1*'PM2.5 reduction'!AP81),9))","v":0.99999602600000004},{"$f":"VALUE(FIXED(EXP(AQ$4*-1*'PM2.5 reduction'!AQ81),9))","v":0.99999388700000003},{"$f":"VALUE(FIXED(EXP(AR$4*-1*'PM2.5 reduction'!AR81),9))","v":0.99999365500000004},{"$f":"VALUE(FIXED(EXP(AS$4*-1*'PM2.5 reduction'!AS81),9))","v":0.99999855100000001},{"$f":"VALUE(FIXED(EXP(AT$4*-1*'PM2.5 reduction'!AT81),9))","v":1},{"$f":"VALUE(FIXED(EXP(AU$4*-1*'PM2.5 reduction'!AU81),9))","v":1},{"$f":"VALUE(FIXED(EXP(AV$4*-1*'PM2.5 reduction'!AV81),9))","v":0.99999648100000005},{"$f":"VALUE(FIXED(EXP(AW$4*-1*'PM2.5 reduction'!AW81),9))","v":0.99999460600000001},{"$f":"VALUE(FIXED(EXP(AX$4*-1*'PM2.5 reduction'!AX81),9))","v":0.99999624200000004},{"$f":"VALUE(FIXED(EXP(AY$4*-1*'PM2.5 reduction'!AY81),9))","v":0.99999456799999997},{"$f":"VALUE(FIXED(EXP(AZ$4*-1*'PM2.5 reduction'!AZ81),9))","v":0.99999334100000004},{"$f":"VALUE(FIXED(EXP(BA$4*-1*'PM2.5 reduction'!BA81),9))","v":0.99999455999999998},{"$f":"VALUE(FIXED(EXP(BB$4*-1*'PM2.5 reduction'!BB81),9))","v":0.99999520900000005},{"$f":"VALUE(FIXED(EXP(BC$4*-1*'PM2.5 reduction'!BC81),9))","v":1}]
[null,"Male 16-19",{"$f":"VALUE(FIXED(EXP(C$4*-1*'PM2.5 reduction'!C82),9))","v":0.99999085399999998},{"$f":"VALUE(FIXED(EXP(D$4*-1*'PM2.5 reduction'!D82),9))","v":0.99999124500000003},{"$f":"VALUE(FIXED(EXP(E$4*-1*'PM2.5 reduction'!E82),9))","v":0.999996683},{"$f":"VALUE(FIXED(EXP(F$4*-1*'PM2.5 reduction'!F82),9))","v":0.99999782400000004},{"$f":"VALUE(FIXED(EXP(G$4*-1*'PM2.5 reduction'!G82),9))","v":0.99999857999999997},{"$f":"VALUE(FIXED(EXP(H$4*-1*'PM2.5 reduction'!H82),9))","v":0.999996836},{"$f":"VALUE(FIXED(EXP(I$4*-1*'PM2.5 reduction'!I82),9))","v":0.99999853800000005},{"$f":"VALUE(FIXED(EXP(J$4*-1*'PM2.5 reduction'!J82),9))","v":0.99999574099999999},{"$f":"VALUE(FIXED(EXP(K$4*-1*'PM2.5 reduction'!K82),9))","v":0.99999537800000005},{"$f":"VALUE(FIXED(EXP(L$4*-1*'PM2.5 reduction'!L82),9))","v":0.999998363},{"$f":"VALUE(FIXED(EXP(M$4*-1*'PM2.5 reduction'!M82),9))","v":0.999998363},{"$f":"VALUE(FIXED(EXP(N$4*-1*'PM2.5 reduction'!N82),9))","v":0.99999169300000001},{"$f":"VALUE(FIXED(EXP(O$4*-1*'PM2.5 reduction'!O82),9))","v":0.99999673899999997},{"$f":"VALUE(FIXED(EXP(P$4*-1*'PM2.5 reduction'!P82),9))","v":0.99999326099999997},{"$f":"VALUE(FIXED(EXP(Q$4*-1*'PM2.5 reduction'!Q82),9))","v":0.99999723900000004},{"$f":"VALUE(FIXED(EXP(R$4*-1*'PM2.5 reduction'!R82),9))","v":0.99999473699999997},{"$f":"VALUE(FIXED(EXP(S$4*-1*'PM2.5 reduction'!S82),9))","v":0.99999415000000003},{"$f":"VALUE(FIXED(EXP(T$4*-1*'PM2.5 reduction'!T82),9))","v":0.99999123400000001},{"$f":"VALUE(FIXED(EXP(U$4*-1*'PM2.5 reduction'!U82),9))","v":1},{"$f":"VALUE(FIXED(EXP(V$4*-1*'PM2.5 reduction'!V82),9))","v":0.99999376799999995},{"$f":"VALUE(FIXED(EXP(W$4*-1*'PM2.5 reduction'!W82),9))","v":0.99999594400000003},{"$f":"VALUE(FIXED(EXP(X$4*-1*'PM2.5 reduction'!X82),9))","v":0.99999594400000003},{"$f":"VALUE(FIXED(EXP(Y$4*-1*'PM2.5 reduction'!Y82),9))","v":0.99999488000000003},{"$f":"VALUE(FIXED(EXP(Z$4*-1*'PM2.5 reduction'!Z82),9))","v":0.99999090099999999},{"$f":"VALUE(FIXED(EXP(AA$4*-1*'PM2.5 reduction'!AA82),9))","v":0.999992506},{"$f":"VALUE(FIXED(EXP(AB$4*-1*'PM2.5 reduction'!AB82),9))","v":0.99999160200000003},{"$f":"VALUE(FIXED(EXP(AC$4*-1*'PM2.5 reduction'!AC82),9))","v":0.99999194700000005},{"$f":"VALUE(FIXED(EXP(AD$4*-1*'PM2.5 reduction'!AD82),9))","v":0.99999856499999995},{"$f":"VALUE(FIXED(EXP(AE$4*-1*'PM2.5 reduction'!AE82),9))","v":0.99999855500000001},{"$f":"VALUE(FIXED(EXP(AF$4*-1*'PM2.5 reduction'!AF82),9))","v":0.99999576599999995},{"$f":"VALUE(FIXED(EXP(AG$4*-1*'PM2.5 reduction'!AG82),9))","v":0.99999855500000001},{"$f":"VALUE(FIXED(EXP(AH$4*-1*'PM2.5 reduction'!AH82),9))","v":0.99999378900000002},{"$f":"VALUE(FIXED(EXP(AI$4*-1*'PM2.5 reduction'!AI82),9))","v":0.99999283800000005},{"$f":"VALUE(FIXED(EXP(AJ$4*-1*'PM2.5 reduction'!AJ82),9))","v":0.99999568100000003},{"$f":"VALUE(FIXED(EXP(AK$4*-1*'PM2.5 reduction'!AK82),9))","v":0.99999739600000004},{"$f":"VALUE(FIXED(EXP(AL$4*-1*'PM2.5 reduction'!AL82),9))","v":0.99999710200000003},{"$f":"VALUE(FIXED(EXP(AM$4*-1*'PM2.5 reduction'!AM82),9))","v":0.99999332600000002},{"$f":"VALUE(FIXED(EXP(AN$4*-1*'PM2.5 reduction'!AN82),9))","v":1},{"$f":"VALUE(FIXED(EXP(AO$4*-1*'PM2.5 reduction'!AO82),9))","v":1},{"$f":"VALUE(FIXED(EXP(AP$4*-1*'PM2.5 reduction'!AP82),9))","v":0.99999606100000005},{"$f":"VALUE(FIXED(EXP(AQ$4*-1*'PM2.5 reduction'!AQ82),9))","v":0.99999369900000001},{"$f":"VALUE(FIXED(EXP(AR$4*-1*'PM2.5 reduction'!AR82),9))","v":0.99999350300000001},{"$f":"VALUE(FIXED(EXP(AS$4*-1*'PM2.5 reduction'!AS82),9))","v":0.99999853800000005},{"$f":"VALUE(FIXED(EXP(AT$4*-1*'PM2.5 reduction'!AT82),9))","v":1},{"$f":"VALUE(FIXED(EXP(AU$4*-1*'PM2.5 reduction'!AU82),9))","v":1},{"$f":"VALUE(FIXED(EXP(AV$4*-1*'PM2.5 reduction'!AV82),9))","v":0.999996212},{"$f":"VALUE(FIXED(EXP(AW$4*-1*'PM2.5 reduction'!AW82),9))","v":0.99999464100000002},{"$f":"VALUE(FIXED(EXP(AX$4*-1*'PM2.5 reduction'!AX82),9))","v":0.99999608500000003},{"$f":"VALUE(FIXED(EXP(AY$4*-1*'PM2.5 reduction'!AY82),9))","v":0.99999444500000001},{"$f":"VALUE(FIXED(EXP(AZ$4*-1*'PM2.5 reduction'!AZ82),9))","v":0.99999300300000005},{"$f":"VALUE(FIXED(EXP(BA$4*-1*'PM2.5 reduction'!BA82),9))","v":0.99999450899999998},{"$f":"VALUE(FIXED(EXP(BB$4*-1*'PM2.5 reduction'!BB82),9))","v":0.99999506400000004},{"$f":"VALUE(FIXED(EXP(BC$4*-1*'PM2.5 reduction'!BC82),9))","v":1}]
[null,"Male 20-24",{"$f":"VALUE(FIXED(EXP(C$4*-1*'PM2.5 reduction'!C83),9))","v":0.99999016399999996},{"$f":"VALUE(FIXED(EXP(D$4*-1*'PM2.5 reduction'!D83),9))","v":0.99999101199999996},{"$f":"VALUE(FIXED(EXP(E$4*-1*'PM2.5 reduction'!E83),9))","v":0.99999649800000001},{"$f":"VALUE(FIXED(EXP(F$4*-1*'PM2.5 reduction'!F83),9))","v":0.99999790200000005},{"$f":"VALUE(FIXED(EXP(G$4*-1*'PM2.5 reduction'!G83),9))","v":0.99999858799999997},{"$f":"VALUE(FIXED(EXP(H$4*-1*'PM2.5 reduction'!H83),9))","v":0.999996777},{"$f":"VALUE(FIXED(EXP(I$4*-1*'PM2.5 reduction'!I83),9))","v":0.99999853500000002},{"$f":"VALUE(FIXED(EXP(J$4*-1*'PM2.5 reduction'!J83),9))","v":0.99999530700000006},{"$f":"VALUE(FIXED(EXP(K$4*-1*'PM2.5 reduction'!K83),9))","v":0.999995415},{"$f":"VALUE(FIXED(EXP(L$4*-1*'PM2.5 reduction'!L83),9))","v":0.99999835999999998},{"$f":"VALUE(FIXED(EXP(M$4*-1*'PM2.5 reduction'!M83),9))","v":0.99999835999999998},{"$f":"VALUE(FIXED(EXP(N$4*-1*'PM2.5 reduction'!N83),9))","v":0.99999075900000001},{"$f":"VALUE(FIXED(EXP(O$4*-1*'PM2.5 reduction'!O83),9))","v":0.99999654800000004},{"$f":"VALUE(FIXED(EXP(P$4*-1*'PM2.5 reduction'!P83),9))","v":0.99999365399999995},{"$f":"VALUE(FIXED(EXP(Q$4*-1*'PM2.5 reduction'!Q83),9))","v":0.99999728799999998},{"$f":"VALUE(FIXED(EXP(R$4*-1*'PM2.5 reduction'!R83),9))","v":0.99999451800000005},{"$f":"VALUE(FIXED(EXP(S$4*-1*'PM2.5 reduction'!S83),9))","v":0.99999383600000002},{"$f":"VALUE(FIXED(EXP(T$4*-1*'PM2.5 reduction'!T83),9))","v":0.99999080799999995},{"$f":"VALUE(FIXED(EXP(U$4*-1*'PM2.5 reduction'!U83),9))","v":1},{"$f":"VALUE(FIXED(EXP(V$4*-1*'PM2.5 reduction'!V83),9))","v":0.99999354699999998},{"$f":"VALUE(FIXED(EXP(W$4*-1*'PM2.5 reduction'!W83),9))","v":0.99999592900000001},{"$f":"VALUE(FIXED(EXP(X$4*-1*'PM2.5 reduction'!X83),9))","v":0.99999592900000001},{"$f":"VALUE(FIXED(EXP(Y$4*-1*'PM2.5 reduction'!Y83),9))","v":0.99999445399999998},{"$f":"VALUE(FIXED(EXP(Z$4*-1*'PM2.5 reduction'!Z83),9))","v":0.99999034099999995},{"$f":"VALUE(FIXED(EXP(AA$4*-1*'PM2.5 reduction'!AA83),9))","v":0.99999205199999996},{"$f":"VALUE(FIXED(EXP(AB$4*-1*'PM2.5 reduction'!AB83),9))","v":0.99999125600000005},{"$f":"VALUE(FIXED(EXP(AC$4*-1*'PM2.5 reduction'!AC83),9))","v":0.99999141000000002},{"$f":"VALUE(FIXED(EXP(AD$4*-1*'PM2.5 reduction'!AD83),9))","v":0.99999848199999997},{"$f":"VALUE(FIXED(EXP(AE$4*-1*'PM2.5 reduction'!AE83),9))","v":0.99999840200000001},{"$f":"VALUE(FIXED(EXP(AF$4*-1*'PM2.5 reduction'!AF83),9))","v":0.99999548100000002},{"$f":"VALUE(FIXED(EXP(AG$4*-1*'PM2.5 reduction'!AG83),9))","v":0.99999840200000001},{"$f":"VALUE(FIXED(EXP(AH$4*-1*'PM2.5 reduction'!AH83),9))","v":0.999993668},{"$f":"VALUE(FIXED(EXP(AI$4*-1*'PM2.5 reduction'!AI83),9))","v":0.99999250900000003},{"$f":"VALUE(FIXED(EXP(AJ$4*-1*'PM2.5 reduction'!AJ83),9))","v":0.99999563700000005},{"$f":"VALUE(FIXED(EXP(AK$4*-1*'PM2.5 reduction'!AK83),9))","v":0.99999739600000004},{"$f":"VALUE(FIXED(EXP(AL$4*-1*'PM2.5 reduction'!AL83),9))","v":0.99999707900000001},{"$f":"VALUE(FIXED(EXP(AM$4*-1*'PM2.5 reduction'!AM83),9))","v":0.99999325500000003},{"$f":"VALUE(FIXED(EXP(AN$4*-1*'PM2.5 reduction'!AN83),9))","v":1},{"$f":"VALUE(FIXED(EXP(AO$4*-1*'PM2.5 reduction'!AO83),9))","v":1},{"$f":"VALUE(FIXED(EXP(AP$4*-1*'PM2.5 reduction'!AP83),9))","v":0.99999459400000001},{"$f":"VALUE(FIXED(EXP(AQ$4*-1*'PM2.5 reduction'!AQ83),9))","v":0.99999315200000005},{"$f":"VALUE(FIXED(EXP(AR$4*-1*'PM2.5 reduction'!AR83),9))","v":0.99999301799999996},{"$f":"VALUE(FIXED(EXP(AS$4*-1*'PM2.5 reduction'!AS83),9))","v":0.99999853500000002},{"$f":"VALUE(FIXED(EXP(AT$4*-1*'PM2.5 reduction'!AT83),9))","v":1},{"$f":"VALUE(FIXED(EXP(AU$4*-1*'PM2.5 reduction'!AU83),9))","v":1},{"$f":"VALUE(FIXED(EXP(AV$4*-1*'PM2.5 reduction'!AV83),9))","v":0.99999634900000001},{"$f":"VALUE(FIXED(EXP(AW$4*-1*'PM2.5 reduction'!AW83),9))","v":0.99999442199999999},{"$f":"VALUE(FIXED(EXP(AX$4*-1*'PM2.5 reduction'!AX83),9))","v":0.99999521199999997},{"$f":"VALUE(FIXED(EXP(AY$4*-1*'PM2.5 reduction'!AY83),9))","v":0.99999372099999995},{"$f":"VALUE(FIXED(EXP(AZ$4*-1*'PM2.5 reduction'!AZ83),9))","v":0.99999202899999995},{"$f":"VALUE(FIXED(EXP(BA$4*-1*'PM2.5 reduction'!BA83),9))","v":0.99999448499999999},{"$f":"VALUE(FIXED(EXP(BB$4*-1*'PM2.5 reduction'!BB83),9))","v":0.99999505899999996},{"$f":"VALUE(FIXED(EXP(BC$4*-1*'PM2.5 reduction'!BC83),9))","v":1}]
[null,"Male 25-29",{"$f":"VALUE(FIXED(EXP(C$4*-1*'PM2.5 reduction'!C84),9))","v":0.99999022000000004},{"$f":"VALUE(FIXED(EXP(D$4*-1*'PM2.5 reduction'!D84),9))","v":0.99999065600000003},{"$f":"VALUE(FIXED(EXP(E$4*-1*'PM2.5 reduction'!E84),9))","v":0.99999645999999998},{"$f":"VALUE(FIXED(EXP(F$4*-1*'PM2.5 reduction'!F84),9))","v":0.99999789500000003},{"$f":"VALUE(FIXED(EXP(G$4*-1*'PM2.5 reduction'!G84),9))","v":0.99999853999999999},{"$f":"VALUE(FIXED(EXP(H$4*-1*'PM2.5 reduction'!H84),9))","v":0.99999660800000001},{"$f":"VALUE(FIXED(EXP(I$4*-1*'PM2.5 reduction'!I84),9))","v":0.99999849100000004},{"$f":"VALUE(FIXED(EXP(J$4*-1*'PM2.5 reduction'!J84),9))","v":0.99999571899999995},{"$f":"VALUE(FIXED(EXP(K$4*-1*'PM2.5 reduction'!K84),9))","v":0.99999542799999996},{"$f":"VALUE(FIXED(EXP(L$4*-1*'PM2.5 reduction'!L84),9))","v":0.99999835400000003},{"$f":"VALUE(FIXED(EXP(M$4*-1*'PM2.5 reduction'!M84),9))","v":0.99999835400000003},{"$f":"VALUE(FIXED(EXP(N$4*-1*'PM2.5 reduction'!N84),9))","v":0.99999088999999997},{"$f":"VALUE(FIXED(EXP(O$4*-1*'PM2.5 reduction'!O84),9))","v":0.99999622499999996},{"$f":"VALUE(FIXED(EXP(P$4*-1*'PM2.5 reduction'!P84),9))","v":0.99999335700000003},{"$f":"VALUE(FIXED(EXP(Q$4*-1*'PM2.5 reduction'!Q84),9))","v":0.999997158},{"$f":"VALUE(FIXED(EXP(R$4*-1*'PM2.5 reduction'!R84),9))","v":0.99999455500000001},{"$f":"VALUE(FIXED(EXP(S$4*-1*'PM2.5 reduction'!S84),9))","v":0.99999316599999999},{"$f":"VALUE(FIXED(EXP(T$4*-1*'PM2.5 reduction'!T84),9))","v":0.99999055699999995},{"$f":"VALUE(FIXED(EXP(U$4*-1*'PM2.5 reduction'!U84),9))","v":1},{"$f":"VALUE(FIXED(EXP(V$4*-1*'PM2.5 reduction'!V84),9))","v":0.99999353099999999},{"$f":"VALUE(FIXED(EXP(W$4*-1*'PM2.5 reduction'!W84),9))","v":0.99999580600000004},{"$f":"VALUE(FIXED(EXP(X$4*-1*'PM2.5 reduction'!X84),9))","v":0.99999580600000004},{"$f":"VALUE(FIXED(EXP(Y$4*-1*'PM2.5 reduction'!Y84),9))","v":0.99999457899999999},{"$f":"VALUE(FIXED(EXP(Z$4*-1*'PM2.5 reduction'!Z84),9))","v":0.99999037300000004},{"$f":"VALUE(FIXED(EXP(AA$4*-1*'PM2.5 reduction'!AA84),9))","v":0.999991831},{"$f":"VALUE(FIXED(EXP(AB$4*-1*'PM2.5 reduction'!AB84),9))","v":0.99999074200000004},{"$f":"VALUE(FIXED(EXP(AC$4*-1*'PM2.5 reduction'!AC84),9))","v":0.99999127099999996},{"$f":"VALUE(FIXED(EXP(AD$4*-1*'PM2.5 reduction'!AD84),9))","v":0.99999843499999996},{"$f":"VALUE(FIXED(EXP(AE$4*-1*'PM2.5 reduction'!AE84),9))","v":0.99999837499999999},{"$f":"VALUE(FIXED(EXP(AF$4*-1*'PM2.5 reduction'!AF84),9))","v":0.99999529200000004},{"$f":"VALUE(FIXED(EXP(AG$4*-1*'PM2.5 reduction'!AG84),9))","v":0.99999837499999999},{"$f":"VALUE(FIXED(EXP(AH$4*-1*'PM2.5 reduction'!AH84),9))","v":0.99999360400000004},{"$f":"VALUE(FIXED(EXP(AI$4*-1*'PM2.5 reduction'!AI84),9))","v":0.99999185300000004},{"$f":"VALUE(FIXED(EXP(AJ$4*-1*'PM2.5 reduction'!AJ84),9))","v":0.99999526500000002},{"$f":"VALUE(FIXED(EXP(AK$4*-1*'PM2.5 reduction'!AK84),9))","v":0.99999739600000004},{"$f":"VALUE(FIXED(EXP(AL$4*-1*'PM2.5 reduction'!AL84),9))","v":0.99999704099999998},{"$f":"VALUE(FIXED(EXP(AM$4*-1*'PM2.5 reduction'!AM84),9))","v":0.99999319900000005},{"$f":"VALUE(FIXED(EXP(AN$4*-1*'PM2.5 reduction'!AN84),9))","v":1},{"$f":"VALUE(FIXED(EXP(AO$4*-1*'PM2.5 reduction'!AO84),9))","v":1},{"$f":"VALUE(FIXED(EXP(AP$4*-1*'PM2.5 reduction'!AP84),9))","v":0.99999374600000002},{"$f":"VALUE(FIXED(EXP(AQ$4*-1*'PM2.5 reduction'!AQ84),9))","v":0.99999303500000003},{"$f":"VALUE(FIXED(EXP(AR$4*-1*'PM2.5 reduction'!AR84),9))","v":0.99999262899999997},{"$f":"VALUE(FIXED(EXP(AS$4*-1*'PM2.5 reduction'!AS84),9))","v":0.99999849100000004},{"$f":"VALUE(FIXED(EXP(AT$4*-1*'PM2.5 reduction'!AT84),9))","v":1},{"$f":"VALUE(FIXED(EXP(AU$4*-1*'PM2.5 reduction'!AU84),9))","v":1},{"$f":"VALUE(FIXED(EXP(AV$4*-1*'PM2.5 reduction'!AV84),9))","v":0.99999622799999999},{"$f":"VALUE(FIXED(EXP(AW$4*-1*'PM2.5 reduction'!AW84),9))","v":0.99999434899999995},{"$f":"VALUE(FIXED(EXP(AX$4*-1*'PM2.5 reduction'!AX84),9))","v":0.99999591700000001},{"$f":"VALUE(FIXED(EXP(AY$4*-1*'PM2.5 reduction'!AY84),9))","v":0.999993295},{"$f":"VALUE(FIXED(EXP(AZ$4*-1*'PM2.5 reduction'!AZ84),9))","v":0.99999181599999998},{"$f":"VALUE(FIXED(EXP(BA$4*-1*'PM2.5 reduction'!BA84),9))","v":0.99999450099999998},{"$f":"VALUE(FIXED(EXP(BB$4*-1*'PM2.5 reduction'!BB84),9))","v":0.99999507200000004},{"$f":"VALUE(FIXED(EXP(BC$4*-1*'PM2.5 reduction'!BC84),9))","v":1}]
[null,"Male 30-34",{"$f":"VALUE(FIXED(EXP(C$4*-1*'PM2.5 reduction'!C85),9))","v":0.99999039000000001},{"$f":"VALUE(FIXED(EXP(D$4*-1*'PM2.5 reduction'!D85),9))","v":0.99999112599999995},{"$f":"VALUE(FIXED(EXP(E$4*-1*'PM2.5 reduction'!E85),9))","v":0.99999636199999997},{"$f":"VALUE(FIXED(EXP(F$4*-1*'PM2.5 reduction'!F85),9))","v":0.99999778500000003},{"$f":"VALUE(FIXED(EXP(G$4*-1*'PM2.5 reduction'!G85),9))","v":0.99999855999999998},{"$f":"VALUE(FIXED(EXP(H$4*-1*'PM2.5 reduction'!H85),9))","v":0.99999660400000001},{"$f":"VALUE(FIXED(EXP(I$4*-1*'PM2.5 reduction'!I85),9))","v":0.99999845099999995},{"$f":"VALUE(FIXED(EXP(J$4*-1*'PM2.5 reduction'!J85),9))","v":0.99999558899999996},{"$f":"VALUE(FIXED(EXP(K$4*-1*'PM2.5 reduction'!K85),9))","v":0.99999546299999997},{"$f":"VALUE(FIXED(EXP(L$4*-1*'PM2.5 reduction'!L85),9))","v":0.999998304},{"$f":"VALUE(FIXED(EXP(M$4*-1*'PM2.5 reduction'!M85),9))","v":0.999998304},{"$f":"VALUE(FIXED(EXP(N$4*-1*'PM2.5 reduction'!N85),9))","v":0.99999109100000005},{"$f":"VALUE(FIXED(EXP(O$4*-1*'PM2.5 reduction'!O85),9))","v":0.99999616599999996},{"$f":"VALUE(FIXED(EXP(P$4*-1*'PM2.5 reduction'!P85),9))","v":0.99999289000000002},{"$f":"VALUE(FIXED(EXP(Q$4*-1*'PM2.5 reduction'!Q85),9))","v":0.99999716599999999},{"$f":"VALUE(FIXED(EXP(R$4*-1*'PM2.5 reduction'!R85),9))","v":0.99999446800000003},{"$f":"VALUE(FIXED(EXP(S$4*-1*'PM2.5 reduction'!S85),9))","v":0.99999323200000001},{"$f":"VALUE(FIXED(EXP(T$4*-1*'PM2.5 reduction'!T85),9))","v":0.99999046300000005},{"$f":"VALUE(FIXED(EXP(U$4*-1*'PM2.5 reduction'!U85),9))","v":1},{"$f":"VALUE(FIXED(EXP(V$4*-1*'PM2.5 reduction'!V85),9))","v":0.99999328200000004},{"$f":"VALUE(FIXED(EXP(W$4*-1*'PM2.5 reduction'!W85),9))","v":0.999995737},{"$f":"VALUE(FIXED(EXP(X$4*-1*'PM2.5 reduction'!X85),9))","v":0.999995737},{"$f":"VALUE(FIXED(EXP(Y$4*-1*'PM2.5 reduction'!Y85),9))","v":0.99999435599999997},{"$f":"VALUE(FIXED(EXP(Z$4*-1*'PM2.5 reduction'!Z85),9))","v":0.99999037700000004},{"$f":"VALUE(FIXED(EXP(AA$4*-1*'PM2.5 reduction'!AA85),9))","v":0.999991882},{"$f":"VALUE(FIXED(EXP(AB$4*-1*'PM2.5 reduction'!AB85),9))","v":0.999991195},{"$f":"VALUE(FIXED(EXP(AC$4*-1*'PM2.5 reduction'!AC85),9))","v":0.99999128599999998},{"$f":"VALUE(FIXED(EXP(AD$4*-1*'PM2.5 reduction'!AD85),9))","v":0.999998312},{"$f":"VALUE(FIXED(EXP(AE$4*-1*'PM2.5 reduction'!AE85),9))","v":0.99999821300000002},{"$f":"VALUE(FIXED(EXP(AF$4*-1*'PM2.5 reduction'!AF85),9))","v":0.99999511900000004},{"$f":"VALUE(FIXED(EXP(AG$4*-1*'PM2.5 reduction'!AG85),9))","v":0.99999821300000002},{"$f":"VALUE(FIXED(EXP(AH$4*-1*'PM2.5 reduction'!AH85),9))","v":0.99999364199999996},{"$f":"VALUE(FIXED(EXP(AI$4*-1*'PM2.5 reduction'!AI85),9))","v":0.99999187700000003},{"$f":"VALUE(FIXED(EXP(AJ$4*-1*'PM2.5 reduction'!AJ85),9))","v":0.99999541599999997},{"$f":"VALUE(FIXED(EXP(AK$4*-1*'PM2.5 reduction'!AK85),9))","v":0.99999739600000004},{"$f":"VALUE(FIXED(EXP(AL$4*-1*'PM2.5 reduction'!AL85),9))","v":0.99999703600000001},{"$f":"VALUE(FIXED(EXP(AM$4*-1*'PM2.5 reduction'!AM85),9))","v":0.99999316199999999},{"$f":"VALUE(FIXED(EXP(AN$4*-1*'PM2.5 reduction'!AN85),9))","v":1},{"$f":"VALUE(FIXED(EXP(AO$4*-1*'PM2.5 reduction'!AO85),9))","v":1},{"$f":"VALUE(FIXED(EXP(AP$4*-1*'PM2.5 reduction'!AP85),9))","v":0.99999387100000003},{"$f":"VALUE(FIXED(EXP(AQ$4*-1*'PM2.5 reduction'!AQ85),9))","v":0.99999307599999998},{"$f":"VALUE(FIXED(EXP(AR$4*-1*'PM2.5 reduction'!AR85),9))","v":0.999992679},{"$f":"VALUE(FIXED(EXP(AS$4*-1*'PM2.5 reduction'!AS85),9))","v":0.99999845099999995},{"$f":"VALUE(FIXED(EXP(AT$4*-1*'PM2.5 reduction'!AT85),9))","v":1},{"$f":"VALUE(FIXED(EXP(AU$4*-1*'PM2.5 reduction'!AU85),9))","v":1},{"$f":"VALUE(FIXED(EXP(AV$4*-1*'PM2.5 reduction'!AV85),9))","v":0.99999627999999996},{"$f":"VALUE(FIXED(EXP(AW$4*-1*'PM2.5 reduction'!AW85),9))","v":0.99999448199999996},{"$f":"VALUE(FIXED(EXP(AX$4*-1*'PM2.5 reduction'!AX85),9))","v":0.99999570699999996},{"$f":"VALUE(FIXED(EXP(AY$4*-1*'PM2.5 reduction'!AY85),9))","v":0.999993519},{"$f":"VALUE(FIXED(EXP(AZ$4*-1*'PM2.5 reduction'!AZ85),9))","v":0.99999194000000002},{"$f":"VALUE(FIXED(EXP(BA$4*-1*'PM2.5 reduction'!BA85),9))","v":0.99999433999999998},{"$f":"VALUE(FIXED(EXP(BB$4*-1*'PM2.5 reduction'!BB85),9))","v":0.99999513399999995},{"$f":"VALUE(FIXED(EXP(BC$4*-1*'PM2.5 reduction'!BC85),9))","v":1}]
[null,"Male 35-39",{"$f":"VALUE(FIXED(EXP(C$4*-1*'PM2.5 reduction'!C86),9))","v":0.99999030200000005},{"$f":"VALUE(FIXED(EXP(D$4*-1*'PM2.5 reduction'!D86),9))","v":0.99999078100000005},{"$f":"VALUE(FIXED(EXP(E$4*-1*'PM2.5 reduction'!E86),9))","v":0.99999653899999996},{"$f":"VALUE(FIXED(EXP(F$4*-1*'PM2.5 reduction'!F86),9))","v":0.99999767100000003},{"$f":"VALUE(FIXED(EXP(G$4*-1*'PM2.5 reduction'!G86),9))","v":0.99999850499999998},{"$f":"VALUE(FIXED(EXP(H$4*-1*'PM2.5 reduction'!H86),9))","v":0.99999654599999999},{"$f":"VALUE(FIXED(EXP(I$4*-1*'PM2.5 reduction'!I86),9))","v":0.99999855699999995},{"$f":"VALUE(FIXED(EXP(J$4*-1*'PM2.5 reduction'!J86),9))","v":0.99999565199999996},{"$f":"VALUE(FIXED(EXP(K$4*-1*'PM2.5 reduction'!K86),9))","v":0.99999523000000001},{"$f":"VALUE(FIXED(EXP(L$4*-1*'PM2.5 reduction'!L86),9))","v":0.99999827900000005},{"$f":"VALUE(FIXED(EXP(M$4*-1*'PM2.5 reduction'!M86),9))","v":0.99999827900000005},{"$f":"VALUE(FIXED(EXP(N$4*-1*'PM2.5 reduction'!N86),9))","v":0.99999153799999996},{"$f":"VALUE(FIXED(EXP(O$4*-1*'PM2.5 reduction'!O86),9))","v":0.99999599299999997},{"$f":"VALUE(FIXED(EXP(P$4*-1*'PM2.5 reduction'!P86),9))","v":0.999993558},{"$f":"VALUE(FIXED(EXP(Q$4*-1*'PM2.5 reduction'!Q86),9))","v":0.99999716900000002},{"$f":"VALUE(FIXED(EXP(R$4*-1*'PM2.5 reduction'!R86),9))","v":0.99999456499999995},{"$f":"VALUE(FIXED(EXP(S$4*-1*'PM2.5 reduction'!S86),9))","v":0.99999341900000005},{"$f":"VALUE(FIXED(EXP(T$4*-1*'PM2.5 reduction'!T86),9))","v":0.99999072899999997},{"$f":"VALUE(FIXED(EXP(U$4*-1*'PM2.5 reduction'!U86),9))","v":1},{"$f":"VALUE(FIXED(EXP(V$4*-1*'PM2.5 reduction'!V86),9))","v":0.99999352900000005},{"$f":"VALUE(FIXED(EXP(W$4*-1*'PM2.5 reduction'!W86),9))","v":0.99999581400000004},{"$f":"VALUE(FIXED(EXP(X$4*-1*'PM2.5 reduction'!X86),9))","v":0.99999581400000004},{"$f":"VALUE(FIXED(EXP(Y$4*-1*'PM2.5 reduction'!Y86),9))","v":0.99999447600000002},{"$f":"VALUE(FIXED(EXP(Z$4*-1*'PM2.5 reduction'!Z86),9))","v":0.99999056399999997},{"$f":"VALUE(FIXED(EXP(AA$4*-1*'PM2.5 reduction'!AA86),9))","v":0.99999208299999998},{"$f":"VALUE(FIXED(EXP(AB$4*-1*'PM2.5 reduction'!AB86),9))","v":0.99999101300000004},{"$f":"VALUE(FIXED(EXP(AC$4*-1*'PM2.5 reduction'!AC86),9))","v":0.99999145899999997},{"$f":"VALUE(FIXED(EXP(AD$4*-1*'PM2.5 reduction'!AD86),9))","v":0.99999842900000002},{"$f":"VALUE(FIXED(EXP(AE$4*-1*'PM2.5 reduction'!AE86),9))","v":0.99999839199999996},{"$f":"VALUE(FIXED(EXP(AF$4*-1*'PM2.5 reduction'!AF86),9))","v":0.99999508400000003},{"$f":"VALUE(FIXED(EXP(AG$4*-1*'PM2.5 reduction'!AG86),9))","v":0.99999839199999996},{"$f":"VALUE(FIXED(EXP(AH$4*-1*'PM2.5 reduction'!AH86),9))","v":0.99999364800000001},{"$f":"VALUE(FIXED(EXP(AI$4*-1*'PM2.5 reduction'!AI86),9))","v":0.99999211399999999},{"$f":"VALUE(FIXED(EXP(AJ$4*-1*'PM2.5 reduction'!AJ86),9))","v":0.99999545499999998},{"$f":"VALUE(FIXED(EXP(AK$4*-1*'PM2.5 reduction'!AK86),9))","v":0.99999739600000004},{"$f":"VALUE(FIXED(EXP(AL$4*-1*'PM2.5 reduction'!AL86),9))","v":0.99999698999999997},{"$f":"VALUE(FIXED(EXP(AM$4*-1*'PM2.5 reduction'!AM86),9))","v":0.99999321299999999},{"$f":"VALUE(FIXED(EXP(AN$4*-1*'PM2.5 reduction'!AN86),9))","v":1},{"$f":"VALUE(FIXED(EXP(AO$4*-1*'PM2.5 reduction'!AO86),9))","v":1},{"$f":"VALUE(FIXED(EXP(AP$4*-1*'PM2.5 reduction'!AP86),9))","v":0.99999452099999997},{"$f":"VALUE(FIXED(EXP(AQ$4*-1*'PM2.5 reduction'!AQ86),9))","v":0.99999306300000002},{"$f":"VALUE(FIXED(EXP(AR$4*-1*'PM2.5 reduction'!AR86),9))","v":0.99999289499999999},{"$f":"VALUE(FIXED(EXP(AS$4*-1*'PM2.5 reduction'!AS86),9))","v":0.99999855699999995},{"$f":"VALUE(FIXED(EXP(AT$4*-1*'PM2.5 reduction'!AT86),9))","v":1},{"$f":"VALUE(FIXED(EXP(AU$4*-1*'PM2.5 reduction'!AU86),9))","v":1},{"$f":"VALUE(FIXED(EXP(AV$4*-1*'PM2.5 reduction'!AV86),9))","v":0.99999633499999996},{"$f":"VALUE(FIXED(EXP(AW$4*-1*'PM2.5 reduction'!AW86),9))","v":0.99999436900000005},{"$f":"VALUE(FIXED(EXP(AX$4*-1*'PM2.5 reduction'!AX86),9))","v":0.99999614999999997},{"$f":"VALUE(FIXED(EXP(AY$4*-1*'PM2.5 reduction'!AY86),9))","v":0.99999408999999995},{"$f":"VALUE(FIXED(EXP(AZ$4*-1*'PM2.5 reduction'!AZ86),9))","v":0.99999263000000005},{"$f":"VALUE(FIXED(EXP(BA$4*-1*'PM2.5 reduction'!BA86),9))","v":0.99999431999999999},{"$f":"VALUE(FIXED(EXP(BB$4*-1*'PM2.5 reduction'!BB86),9))","v":0.99999517000000004},{"$f":"VALUE(FIXED(EXP(BC$4*-1*'PM2.5 reduction'!BC86),9))","v":1}]
[null,"Male 40-44",{"$f":"VALUE(FIXED(EXP(C$4*-1*'PM2.5 reduction'!C87),9))","v":0.99999066599999997},{"$f":"VALUE(FIXED(EXP(D$4*-1*'PM2.5 reduction'!D87),9))","v":0.99999126100000002},{"$f":"VALUE(FIXED(EXP(E$4*-1*'PM2.5 reduction'!E87),9))","v":0.99999665299999996},{"$f":"VALUE(FIXED(EXP(F$4*-1*'PM2.5 reduction'!F87),9))","v":0.99999776200000001},{"$f":"VALUE(FIXED(EXP(G$4*-1*'PM2.5 reduction'!G87),9))","v":0.99999849600000001},{"$f":"VALUE(FIXED(EXP(H$4*-1*'PM2.5 reduction'!H87),9))","v":0.99999658199999997},{"$f":"VALUE(FIXED(EXP(I$4*-1*'PM2.5 reduction'!I87),9))","v":0.99999849299999999},{"$f":"VALUE(FIXED(EXP(J$4*-1*'PM2.5 reduction'!J87),9))","v":0.999995674},{"$f":"VALUE(FIXED(EXP(K$4*-1*'PM2.5 reduction'!K87),9))","v":0.99999539400000004},{"$f":"VALUE(FIXED(EXP(L$4*-1*'PM2.5 reduction'!L87),9))","v":0.99999836600000003},{"$f":"VALUE(FIXED(EXP(M$4*-1*'PM2.5 reduction'!M87),9))","v":0.99999836600000003},{"$f":"VALUE(FIXED(EXP(N$4*-1*'PM2.5 reduction'!N87),9))","v":0.99999165700000003},{"$f":"VALUE(FIXED(EXP(O$4*-1*'PM2.5 reduction'!O87),9))","v":0.99999617500000004},{"$f":"VALUE(FIXED(EXP(P$4*-1*'PM2.5 reduction'!P87),9))","v":0.99999317300000001},{"$f":"VALUE(FIXED(EXP(Q$4*-1*'PM2.5 reduction'!Q87),9))","v":0.99999716999999999},{"$f":"VALUE(FIXED(EXP(R$4*-1*'PM2.5 reduction'!R87),9))","v":0.99999459599999996},{"$f":"VALUE(FIXED(EXP(S$4*-1*'PM2.5 reduction'!S87),9))","v":0.99999359499999996},{"$f":"VALUE(FIXED(EXP(T$4*-1*'PM2.5 reduction'!T87),9))","v":0.99999082800000005},{"$f":"VALUE(FIXED(EXP(U$4*-1*'PM2.5 reduction'!U87),9))","v":1},{"$f":"VALUE(FIXED(EXP(V$4*-1*'PM2.5 reduction'!V87),9))","v":0.99999345500000003},{"$f":"VALUE(FIXED(EXP(W$4*-1*'PM2.5 reduction'!W87),9))","v":0.99999581800000004},{"$f":"VALUE(FIXED(EXP(X$4*-1*'PM2.5 reduction'!X87),9))","v":0.99999581800000004},{"$f":"VALUE(FIXED(EXP(Y$4*-1*'PM2.5 reduction'!Y87),9))","v":0.99999441499999997},{"$f":"VALUE(FIXED(EXP(Z$4*-1*'PM2.5 reduction'!Z87),9))","v":0.99999055400000003},{"$f":"VALUE(FIXED(EXP(AA$4*-1*'PM2.5 reduction'!AA87),9))","v":0.99999216499999999},{"$f":"VALUE(FIXED(EXP(AB$4*-1*'PM2.5 reduction'!AB87),9))","v":0.99999153399999996},{"$f":"VALUE(FIXED(EXP(AC$4*-1*'PM2.5 reduction'!AC87),9))","v":0.99999148699999996},{"$f":"VALUE(FIXED(EXP(AD$4*-1*'PM2.5 reduction'!AD87),9))","v":0.99999845200000004},{"$f":"VALUE(FIXED(EXP(AE$4*-1*'PM2.5 reduction'!AE87),9))","v":0.99999843099999997},{"$f":"VALUE(FIXED(EXP(AF$4*-1*'PM2.5 reduction'!AF87),9))","v":0.99999522799999996},{"$f":"VALUE(FIXED(EXP(AG$4*-1*'PM2.5 reduction'!AG87),9))","v":0.99999843099999997},{"$f":"VALUE(FIXED(EXP(AH$4*-1*'PM2.5 reduction'!AH87),9))","v":0.99999367800000005},{"$f":"VALUE(FIXED(EXP(AI$4*-1*'PM2.5 reduction'!AI87),9))","v":0.99999232199999999},{"$f":"VALUE(FIXED(EXP(AJ$4*-1*'PM2.5 reduction'!AJ87),9))","v":0.99999579599999999},{"$f":"VALUE(FIXED(EXP(AK$4*-1*'PM2.5 reduction'!AK87),9))","v":0.99999739600000004},{"$f":"VALUE(FIXED(EXP(AL$4*-1*'PM2.5 reduction'!AL87),9))","v":0.99999703600000001},{"$f":"VALUE(FIXED(EXP(AM$4*-1*'PM2.5 reduction'!AM87),9))","v":0.99999320400000002},{"$f":"VALUE(FIXED(EXP(AN$4*-1*'PM2.5 reduction'!AN87),9))","v":1},{"$f":"VALUE(FIXED(EXP(AO$4*-1*'PM2.5 reduction'!AO87),9))","v":1},{"$f":"VALUE(FIXED(EXP(AP$4*-1*'PM2.5 reduction'!AP87),9))","v":0.99999501000000002},{"$f":"VALUE(FIXED(EXP(AQ$4*-1*'PM2.5 reduction'!AQ87),9))","v":0.99999316400000005},{"$f":"VALUE(FIXED(EXP(AR$4*-1*'PM2.5 reduction'!AR87),9))","v":0.99999308799999997},{"$f":"VALUE(FIXED(EXP(AS$4*-1*'PM2.5 reduction'!AS87),9))","v":0.99999849299999999},{"$f":"VALUE(FIXED(EXP(AT$4*-1*'PM2.5 reduction'!AT87),9))","v":1},{"$f":"VALUE(FIXED(EXP(AU$4*-1*'PM2.5 reduction'!AU87),9))","v":1},{"$f":"VALUE(FIXED(EXP(AV$4*-1*'PM2.5 reduction'!AV87),9))","v":0.99999612999999998},{"$f":"VALUE(FIXED(EXP(AW$4*-1*'PM2.5 reduction'!AW87),9))","v":0.99999443899999996},{"$f":"VALUE(FIXED(EXP(AX$4*-1*'PM2.5 reduction'!AX87),9))","v":0.99999599800000005},{"$f":"VALUE(FIXED(EXP(AY$4*-1*'PM2.5 reduction'!AY87),9))","v":0.99999434099999995},{"$f":"VALUE(FIXED(EXP(AZ$4*-1*'PM2.5 reduction'!AZ87),9))","v":0.99999289499999999},{"$f":"VALUE(FIXED(EXP(BA$4*-1*'PM2.5 reduction'!BA87),9))","v":0.99999437400000002},{"$f":"VALUE(FIXED(EXP(BB$4*-1*'PM2.5 reduction'!BB87),9))","v":0.99999513100000004},{"$f":"VALUE(FIXED(EXP(BC$4*-1*'PM2.5 reduction'!BC87),9))","v":1}]
[null,"Male 45-49",{"$f":"VALUE(FIXED(EXP(C$4*-1*'PM2.5 reduction'!C88),9))","v":0.99999042699999996},{"$f":"VALUE(FIXED(EXP(D$4*-1*'PM2.5 reduction'!D88),9))","v":0.999990987},{"$f":"VALUE(FIXED(EXP(E$4*-1*'PM2.5 reduction'!E88),9))","v":0.99999645000000004},{"$f":"VALUE(FIXED(EXP(F$4*-1*'PM2.5 reduction'!F88),9))","v":0.99999783900000005},{"$f":"VALUE(FIXED(EXP(G$4*-1*'PM2.5 reduction'!G88),9))","v":0.99999852300000003},{"$f":"VALUE(FIXED(EXP(H$4*-1*'PM2.5 reduction'!H88),9))","v":0.99999677300000001},{"$f":"VALUE(FIXED(EXP(I$4*-1*'PM2.5 reduction'!I88),9))","v":0.99999849600000001},{"$f":"VALUE(FIXED(EXP(J$4*-1*'PM2.5 reduction'!J88),9))","v":0.99999568400000005},{"$f":"VALUE(FIXED(EXP(K$4*-1*'PM2.5 reduction'!K88),9))","v":0.99999547300000002},{"$f":"VALUE(FIXED(EXP(L$4*-1*'PM2.5 reduction'!L88),9))","v":0.99999845600000004},{"$f":"VALUE(FIXED(EXP(M$4*-1*'PM2.5 reduction'!M88),9))","v":0.99999845600000004},{"$f":"VALUE(FIXED(EXP(N$4*-1*'PM2.5 reduction'!N88),9))","v":0.99999139400000003},{"$f":"VALUE(FIXED(EXP(O$4*-1*'PM2.5 reduction'!O88),9))","v":0.99999644099999996},{"$f":"VALUE(FIXED(EXP(P$4*-1*'PM2.5 reduction'!P88),9))","v":0.99999290900000004},{"$f":"VALUE(FIXED(EXP(Q$4*-1*'PM2.5 reduction'!Q88),9))","v":0.99999720999999997},{"$f":"VALUE(FIXED(EXP(R$4*-1*'PM2.5 reduction'!R88),9))","v":0.99999439300000004},{"$f":"VALUE(FIXED(EXP(S$4*-1*'PM2.5 reduction'!S88),9))","v":0.99999389699999996},{"$f":"VALUE(FIXED(EXP(T$4*-1*'PM2.5 reduction'!T88),9))","v":0.99999079999999996},{"$f":"VALUE(FIXED(EXP(U$4*-1*'PM2.5 reduction'!U88),9))","v":1},{"$f":"VALUE(FIXED(EXP(V$4*-1*'PM2.5 reduction'!V88),9))","v":0.99999348899999996},{"$f":"VALUE(FIXED(EXP(W$4*-1*'PM2.5 reduction'!W88),9))","v":0.99999599800000005},{"$f":"VALUE(FIXED(EXP(X$4*-1*'PM2.5 reduction'!X88),9))","v":0.99999599800000005},{"$f":"VALUE(FIXED(EXP(Y$4*-1*'PM2.5 reduction'!Y88),9))","v":0.99999449100000004},{"$f":"VALUE(FIXED(EXP(Z$4*-1*'PM2.5 reduction'!Z88),9))","v":0.99999081199999995},{"$f":"VALUE(FIXED(EXP(AA$4*-1*'PM2.5 reduction'!AA88),9))","v":0.99999239100000004},{"$f":"VALUE(FIXED(EXP(AB$4*-1*'PM2.5 reduction'!AB88),9))","v":0.99999136399999999},{"$f":"VALUE(FIXED(EXP(AC$4*-1*'PM2.5 reduction'!AC88),9))","v":0.99999179999999999},{"$f":"VALUE(FIXED(EXP(AD$4*-1*'PM2.5 reduction'!AD88),9))","v":0.99999843700000002},{"$f":"VALUE(FIXED(EXP(AE$4*-1*'PM2.5 reduction'!AE88),9))","v":0.99999838600000002},{"$f":"VALUE(FIXED(EXP(AF$4*-1*'PM2.5 reduction'!AF88),9))","v":0.99999518600000004},{"$f":"VALUE(FIXED(EXP(AG$4*-1*'PM2.5 reduction'!AG88),9))","v":0.99999838600000002},{"$f":"VALUE(FIXED(EXP(AH$4*-1*'PM2.5 reduction'!AH88),9))","v":0.99999369199999999},{"$f":"VALUE(FIXED(EXP(AI$4*-1*'PM2.5 reduction'!AI88),9))","v":0.99999243400000004},{"$f":"VALUE(FIXED(EXP(AJ$4*-1*'PM2.5 reduction'!AJ88),9))","v":0.99999553799999996},{"$f":"VALUE(FIXED(EXP(AK$4*-1*'PM2.5 reduction'!AK88),9))","v":0.99999739600000004},{"$f":"VALUE(FIXED(EXP(AL$4*-1*'PM2.5 reduction'!AL88),9))","v":0.99999712900000004},{"$f":"VALUE(FIXED(EXP(AM$4*-1*'PM2.5 reduction'!AM88),9))","v":0.99999319900000005},{"$f":"VALUE(FIXED(EXP(AN$4*-1*'PM2.5 reduction'!AN88),9))","v":1},{"$f":"VALUE(FIXED(EXP(AO$4*-1*'PM2.5 reduction'!AO88),9))","v":1},{"$f":"VALUE(FIXED(EXP(AP$4*-1*'PM2.5 reduction'!AP88),9))","v":0.99999483},{"$f":"VALUE(FIXED(EXP(AQ$4*-1*'PM2.5 reduction'!AQ88),9))","v":0.99999334500000003},{"$f":"VALUE(FIXED(EXP(AR$4*-1*'PM2.5 reduction'!AR88),9))","v":0.99999326200000005},{"$f":"VALUE(FIXED(EXP(AS$4*-1*'PM2.5 reduction'!AS88),9))","v":0.99999849600000001},{"$f":"VALUE(FIXED(EXP(AT$4*-1*'PM2.5 reduction'!AT88),9))","v":1},{"$f":"VALUE(FIXED(EXP(AU$4*-1*'PM2.5 reduction'!AU88),9))","v":1},{"$f":"VALUE(FIXED(EXP(AV$4*-1*'PM2.5 reduction'!AV88),9))","v":0.99999639799999995},{"$f":"VALUE(FIXED(EXP(AW$4*-1*'PM2.5 reduction'!AW88),9))","v":0.99999452200000005},{"$f":"VALUE(FIXED(EXP(AX$4*-1*'PM2.5 reduction'!AX88),9))","v":0.99999592299999995},{"$f":"VALUE(FIXED(EXP(AY$4*-1*'PM2.5 reduction'!AY88),9))","v":0.99999424699999995},{"$f":"VALUE(FIXED(EXP(AZ$4*-1*'PM2.5 reduction'!AZ88),9))","v":0.99999251700000003},{"$f":"VALUE(FIXED(EXP(BA$4*-1*'PM2.5 reduction'!BA88),9))","v":0.99999455100000001},{"$f":"VALUE(FIXED(EXP(BB$4*-1*'PM2.5 reduction'!BB88),9))","v":0.99999517999999998},{"$f":"VALUE(FIXED(EXP(BC$4*-1*'PM2.5 reduction'!BC88),9))","v":1}]
[null,"Male 50-54",{"$f":"VALUE(FIXED(EXP(C$4*-1*'PM2.5 reduction'!C89),9))","v":0.99999068700000004},{"$f":"VALUE(FIXED(EXP(D$4*-1*'PM2.5 reduction'!D89),9))","v":0.99999120100000005},{"$f":"VALUE(FIXED(EXP(E$4*-1*'PM2.5 reduction'!E89),9))","v":0.999996463},{"$f":"VALUE(FIXED(EXP(F$4*-1*'PM2.5 reduction'!F89),9))","v":0.99999795899999999},{"$f":"VALUE(FIXED(EXP(G$4*-1*'PM2.5 reduction'!G89),9))","v":0.99999854300000002},{"$f":"VALUE(FIXED(EXP(H$4*-1*'PM2.5 reduction'!H89),9))","v":0.99999673700000002},{"$f":"VALUE(FIXED(EXP(I$4*-1*'PM2.5 reduction'!I89),9))","v":0.99999848400000002},{"$f":"VALUE(FIXED(EXP(J$4*-1*'PM2.5 reduction'!J89),9))","v":0.99999567},{"$f":"VALUE(FIXED(EXP(K$4*-1*'PM2.5 reduction'!K89),9))","v":0.999995356},{"$f":"VALUE(FIXED(EXP(L$4*-1*'PM2.5 reduction'!L89),9))","v":0.99999843499999996},{"$f":"VALUE(FIXED(EXP(M$4*-1*'PM2.5 reduction'!M89),9))","v":0.99999843499999996},{"$f":"VALUE(FIXED(EXP(N$4*-1*'PM2.5 reduction'!N89),9))","v":0.99999163599999996},{"$f":"VALUE(FIXED(EXP(O$4*-1*'PM2.5 reduction'!O89),9))","v":0.99999649999999995},{"$f":"VALUE(FIXED(EXP(P$4*-1*'PM2.5 reduction'!P89),9))","v":0.99999315600000005},{"$f":"VALUE(FIXED(EXP(Q$4*-1*'PM2.5 reduction'!Q89),9))","v":0.99999725699999997},{"$f":"VALUE(FIXED(EXP(R$4*-1*'PM2.5 reduction'!R89),9))","v":0.99999453199999999},{"$f":"VALUE(FIXED(EXP(S$4*-1*'PM2.5 reduction'!S89),9))","v":0.99999383799999997},{"$f":"VALUE(FIXED(EXP(T$4*-1*'PM2.5 reduction'!T89),9))","v":0.99999080100000004},{"$f":"VALUE(FIXED(EXP(U$4*-1*'PM2.5 reduction'!U89),9))","v":1},{"$f":"VALUE(FIXED(EXP(V$4*-1*'PM2.5 reduction'!V89),9))","v":0.99999349000000004},{"$f":"VALUE(FIXED(EXP(W$4*-1*'PM2.5 reduction'!W89),9))","v":0.99999601500000002},{"$f":"VALUE(FIXED(EXP(X$4*-1*'PM2.5 reduction'!X89),9))","v":0.99999601500000002},{"$f":"VALUE(FIXED(EXP(Y$4*-1*'PM2.5 reduction'!Y89),9))","v":0.99999453599999999},{"$f":"VALUE(FIXED(EXP(Z$4*-1*'PM2.5 reduction'!Z89),9))","v":0.99999081000000001},{"$f":"VALUE(FIXED(EXP(AA$4*-1*'PM2.5 reduction'!AA89),9))","v":0.9999924},{"$f":"VALUE(FIXED(EXP(AB$4*-1*'PM2.5 reduction'!AB89),9))","v":0.99999146500000002},{"$f":"VALUE(FIXED(EXP(AC$4*-1*'PM2.5 reduction'!AC89),9))","v":0.99999187700000003},{"$f":"VALUE(FIXED(EXP(AD$4*-1*'PM2.5 reduction'!AD89),9))","v":0.99999846100000001},{"$f":"VALUE(FIXED(EXP(AE$4*-1*'PM2.5 reduction'!AE89),9))","v":0.99999840100000004},{"$f":"VALUE(FIXED(EXP(AF$4*-1*'PM2.5 reduction'!AF89),9))","v":0.99999513299999998},{"$f":"VALUE(FIXED(EXP(AG$4*-1*'PM2.5 reduction'!AG89),9))","v":0.99999840100000004},{"$f":"VALUE(FIXED(EXP(AH$4*-1*'PM2.5 reduction'!AH89),9))","v":0.99999362899999999},{"$f":"VALUE(FIXED(EXP(AI$4*-1*'PM2.5 reduction'!AI89),9))","v":0.99999243500000001},{"$f":"VALUE(FIXED(EXP(AJ$4*-1*'PM2.5 reduction'!AJ89),9))","v":0.99999574499999999},{"$f":"VALUE(FIXED(EXP(AK$4*-1*'PM2.5 reduction'!AK89),9))","v":0.99999739600000004},{"$f":"VALUE(FIXED(EXP(AL$4*-1*'PM2.5 reduction'!AL89),9))","v":0.99999703699999998},{"$f":"VALUE(FIXED(EXP(AM$4*-1*'PM2.5 reduction'!AM89),9))","v":0.99999315799999999},{"$f":"VALUE(FIXED(EXP(AN$4*-1*'PM2.5 reduction'!AN89),9))","v":1},{"$f":"VALUE(FIXED(EXP(AO$4*-1*'PM2.5 reduction'!AO89),9))","v":1},{"$f":"VALUE(FIXED(EXP(AP$4*-1*'PM2.5 reduction'!AP89),9))","v":0.99999528999999998},{"$f":"VALUE(FIXED(EXP(AQ$4*-1*'PM2.5 reduction'!AQ89),9))","v":0.99999338500000001},{"$f":"VALUE(FIXED(EXP(AR$4*-1*'PM2.5 reduction'!AR89),9))","v":0.999993303},{"$f":"VALUE(FIXED(EXP(AS$4*-1*'PM2.5 reduction'!AS89),9))","v":0.99999848400000002},{"$f":"VALUE(FIXED(EXP(AT$4*-1*'PM2.5 reduction'!AT89),9))","v":1},{"$f":"VALUE(FIXED(EXP(AU$4*-1*'PM2.5 reduction'!AU89),9))","v":1},{"$f":"VALUE(FIXED(EXP(AV$4*-1*'PM2.5 reduction'!AV89),9))","v":0.99999632400000005},{"$f":"VALUE(FIXED(EXP(AW$4*-1*'PM2.5 reduction'!AW89),9))","v":0.999994461},{"$f":"VALUE(FIXED(EXP(AX$4*-1*'PM2.5 reduction'!AX89),9))","v":0.99999600899999996},{"$f":"VALUE(FIXED(EXP(AY$4*-1*'PM2.5 reduction'!AY89),9))","v":0.99999433999999998},{"$f":"VALUE(FIXED(EXP(AZ$4*-1*'PM2.5 reduction'!AZ89),9))","v":0.99999281399999995},{"$f":"VALUE(FIXED(EXP(BA$4*-1*'PM2.5 reduction'!BA89),9))","v":0.99999463099999997},{"$f":"VALUE(FIXED(EXP(BB$4*-1*'PM2.5 reduction'!BB89),9))","v":0.999995203},{"$f":"VALUE(FIXED(EXP(BC$4*-1*'PM2.5 reduction'!BC89),9))","v":1}]
[null,"Male 55-59",{"$f":"VALUE(FIXED(EXP(C$4*-1*'PM2.5 reduction'!C90),9))","v":0.99999069500000004},{"$f":"VALUE(FIXED(EXP(D$4*-1*'PM2.5 reduction'!D90),9))","v":0.99999139400000003},{"$f":"VALUE(FIXED(EXP(E$4*-1*'PM2.5 reduction'!E90),9))","v":0.99999648799999996},{"$f":"VALUE(FIXED(EXP(F$4*-1*'PM2.5 reduction'!F90),9))","v":0.99999799},{"$f":"VALUE(FIXED(EXP(G$4*-1*'PM2.5 reduction'!G90),9))","v":0.999998528},{"$f":"VALUE(FIXED(EXP(H$4*-1*'PM2.5 reduction'!H90),9))","v":0.99999668200000003},{"$f":"VALUE(FIXED(EXP(I$4*-1*'PM2.5 reduction'!I90),9))","v":0.99999845700000001},{"$f":"VALUE(FIXED(EXP(J$4*-1*'PM2.5 reduction'!J90),9))","v":0.99999565499999998},{"$f":"VALUE(FIXED(EXP(K$4*-1*'PM2.5 reduction'!K90),9))","v":0.99999534199999995},{"$f":"VALUE(FIXED(EXP(L$4*-1*'PM2.5 reduction'!L90),9))","v":0.99999844100000002},{"$f":"VALUE(FIXED(EXP(M$4*-1*'PM2.5 reduction'!M90),9))","v":0.99999844100000002},{"$f":"VALUE(FIXED(EXP(N$4*-1*'PM2.5 reduction'!N90),9))","v":0.99999167200000005},{"$f":"VALUE(FIXED(EXP(O$4*-1*'PM2.5 reduction'!O90),9))","v":0.99999636999999997},{"$f":"VALUE(FIXED(EXP(P$4*-1*'PM2.5 reduction'!P90),9))","v":0.99999330799999997},{"$f":"VALUE(FIXED(EXP(Q$4*-1*'PM2.5 reduction'!Q90),9))","v":0.99999723100000004},{"$f":"VALUE(FIXED(EXP(R$4*-1*'PM2.5 reduction'!R90),9))","v":0.999994665},{"$f":"VALUE(FIXED(EXP(S$4*-1*'PM2.5 reduction'!S90),9))","v":0.99999410700000002},{"$f":"VALUE(FIXED(EXP(T$4*-1*'PM2.5 reduction'!T90),9))","v":0.99999100500000004},{"$f":"VALUE(FIXED(EXP(U$4*-1*'PM2.5 reduction'!U90),9))","v":1},{"$f":"VALUE(FIXED(EXP(V$4*-1*'PM2.5 reduction'!V90),9))","v":0.999993566},{"$f":"VALUE(FIXED(EXP(W$4*-1*'PM2.5 reduction'!W90),9))","v":0.99999596099999999},{"$f":"VALUE(FIXED(EXP(X$4*-1*'PM2.5 reduction'!X90),9))","v":0.99999596099999999},{"$f":"VALUE(FIXED(EXP(Y$4*-1*'PM2.5 reduction'!Y90),9))","v":0.99999462800000005},{"$f":"VALUE(FIXED(EXP(Z$4*-1*'PM2.5 reduction'!Z90),9))","v":0.999990928},{"$f":"VALUE(FIXED(EXP(AA$4*-1*'PM2.5 reduction'!AA90),9))","v":0.99999250799999995},{"$f":"VALUE(FIXED(EXP(AB$4*-1*'PM2.5 reduction'!AB90),9))","v":0.99999167099999997},{"$f":"VALUE(FIXED(EXP(AC$4*-1*'PM2.5 reduction'!AC90),9))","v":0.99999196000000001},{"$f":"VALUE(FIXED(EXP(AD$4*-1*'PM2.5 reduction'!AD90),9))","v":0.99999850999999995},{"$f":"VALUE(FIXED(EXP(AE$4*-1*'PM2.5 reduction'!AE90),9))","v":0.99999850000000001},{"$f":"VALUE(FIXED(EXP(AF$4*-1*'PM2.5 reduction'!AF90),9))","v":0.99999501899999998},{"$f":"VALUE(FIXED(EXP(AG$4*-1*'PM2.5 reduction'!AG90),9))","v":0.99999850000000001},{"$f":"VALUE(FIXED(EXP(AH$4*-1*'PM2.5 reduction'!AH90),9))","v":0.999993723},{"$f":"VALUE(FIXED(EXP(AI$4*-1*'PM2.5 reduction'!AI90),9))","v":0.99999265199999998},{"$f":"VALUE(FIXED(EXP(AJ$4*-1*'PM2.5 reduction'!AJ90),9))","v":0.99999571300000001},{"$f":"VALUE(FIXED(EXP(AK$4*-1*'PM2.5 reduction'!AK90),9))","v":0.99999739600000004},{"$f":"VALUE(FIXED(EXP(AL$4*-1*'PM2.5 reduction'!AL90),9))","v":0.99999702300000004},{"$f":"VALUE(FIXED(EXP(AM$4*-1*'PM2.5 reduction'!AM90),9))","v":0.99999322599999996},{"$f":"VALUE(FIXED(EXP(AN$4*-1*'PM2.5 reduction'!AN90),9))","v":1},{"$f":"VALUE(FIXED(EXP(AO$4*-1*'PM2.5 reduction'!AO90),9))","v":1},{"$f":"VALUE(FIXED(EXP(AP$4*-1*'PM2.5 reduction'!AP90),9))","v":0.99999512899999998},{"$f":"VALUE(FIXED(EXP(AQ$4*-1*'PM2.5 reduction'!AQ90),9))","v":0.99999349199999998},{"$f":"VALUE(FIXED(EXP(AR$4*-1*'PM2.5 reduction'!AR90),9))","v":0.99999343100000004},{"$f":"VALUE(FIXED(EXP(AS$4*-1*'PM2.5 reduction'!AS90),9))","v":0.99999845700000001},{"$f":"VALUE(FIXED(EXP(AT$4*-1*'PM2.5 reduction'!AT90),9))","v":1},{"$f":"VALUE(FIXED(EXP(AU$4*-1*'PM2.5 reduction'!AU90),9))","v":1},{"$f":"VALUE(FIXED(EXP(AV$4*-1*'PM2.5 reduction'!AV90),9))","v":0.99999628100000004},{"$f":"VALUE(FIXED(EXP(AW$4*-1*'PM2.5 reduction'!AW90),9))","v":0.99999452200000005},{"$f":"VALUE(FIXED(EXP(AX$4*-1*'PM2.5 reduction'!AX90),9))","v":0.99999597799999995},{"$f":"VALUE(FIXED(EXP(AY$4*-1*'PM2.5 reduction'!AY90),9))","v":0.999994304},{"$f":"VALUE(FIXED(EXP(AZ$4*-1*'PM2.5 reduction'!AZ90),9))","v":0.99999268299999999},{"$f":"VALUE(FIXED(EXP(BA$4*-1*'PM2.5 reduction'!BA90),9))","v":0.99999443899999996},{"$f":"VALUE(FIXED(EXP(BB$4*-1*'PM2.5 reduction'!BB90),9))","v":0.99999523300000004},{"$f":"VALUE(FIXED(EXP(BC$4*-1*'PM2.5 reduction'!BC90),9))","v":1}]
[null,"Male 60-64",{"$f":"VALUE(FIXED(EXP(C$4*-1*'PM2.5 reduction'!C91),9))","v":0.99999115199999999},{"$f":"VALUE(FIXED(EXP(D$4*-1*'PM2.5 reduction'!D91),9))","v":0.99999157900000002},{"$f":"VALUE(FIXED(EXP(E$4*-1*'PM2.5 reduction'!E91),9))","v":0.99999654299999996},{"$f":"VALUE(FIXED(EXP(F$4*-1*'PM2.5 reduction'!F91),9))","v":0.999997939},{"$f":"VALUE(FIXED(EXP(G$4*-1*'PM2.5 reduction'!G91),9))","v":0.99999856499999995},{"$f":"VALUE(FIXED(EXP(H$4*-1*'PM2.5 reduction'!H91),9))","v":0.99999672699999997},{"$f":"VALUE(FIXED(EXP(I$4*-1*'PM2.5 reduction'!I91),9))","v":0.99999850899999998},{"$f":"VALUE(FIXED(EXP(J$4*-1*'PM2.5 reduction'!J91),9))","v":0.99999576599999995},{"$f":"VALUE(FIXED(EXP(K$4*-1*'PM2.5 reduction'!K91),9))","v":0.99999551399999997},{"$f":"VALUE(FIXED(EXP(L$4*-1*'PM2.5 reduction'!L91),9))","v":0.99999849600000001},{"$f":"VALUE(FIXED(EXP(M$4*-1*'PM2.5 reduction'!M91),9))","v":0.99999849600000001},{"$f":"VALUE(FIXED(EXP(N$4*-1*'PM2.5 reduction'!N91),9))","v":0.99999157100000002},{"$f":"VALUE(FIXED(EXP(O$4*-1*'PM2.5 reduction'!O91),9))","v":0.999996412},{"$f":"VALUE(FIXED(EXP(P$4*-1*'PM2.5 reduction'!P91),9))","v":0.99999320300000005},{"$f":"VALUE(FIXED(EXP(Q$4*-1*'PM2.5 reduction'!Q91),9))","v":0.99999723399999996},{"$f":"VALUE(FIXED(EXP(R$4*-1*'PM2.5 reduction'!R91),9))","v":0.99999474700000002},{"$f":"VALUE(FIXED(EXP(S$4*-1*'PM2.5 reduction'!S91),9))","v":0.99999394500000005},{"$f":"VALUE(FIXED(EXP(T$4*-1*'PM2.5 reduction'!T91),9))","v":0.99999084900000001},{"$f":"VALUE(FIXED(EXP(U$4*-1*'PM2.5 reduction'!U91),9))","v":1},{"$f":"VALUE(FIXED(EXP(V$4*-1*'PM2.5 reduction'!V91),9))","v":0.99999355999999995},{"$f":"VALUE(FIXED(EXP(W$4*-1*'PM2.5 reduction'!W91),9))","v":0.99999594000000003},{"$f":"VALUE(FIXED(EXP(X$4*-1*'PM2.5 reduction'!X91),9))","v":0.99999594000000003},{"$f":"VALUE(FIXED(EXP(Y$4*-1*'PM2.5 reduction'!Y91),9))","v":0.99999463099999997},{"$f":"VALUE(FIXED(EXP(Z$4*-1*'PM2.5 reduction'!Z91),9))","v":0.99999087799999997},{"$f":"VALUE(FIXED(EXP(AA$4*-1*'PM2.5 reduction'!AA91),9))","v":0.99999245400000003},{"$f":"VALUE(FIXED(EXP(AB$4*-1*'PM2.5 reduction'!AB91),9))","v":0.99999181800000003},{"$f":"VALUE(FIXED(EXP(AC$4*-1*'PM2.5 reduction'!AC91),9))","v":0.99999189499999996},{"$f":"VALUE(FIXED(EXP(AD$4*-1*'PM2.5 reduction'!AD91),9))","v":0.99999852600000005},{"$f":"VALUE(FIXED(EXP(AE$4*-1*'PM2.5 reduction'!AE91),9))","v":0.99999850000000001},{"$f":"VALUE(FIXED(EXP(AF$4*-1*'PM2.5 reduction'!AF91),9))","v":0.99999506199999999},{"$f":"VALUE(FIXED(EXP(AG$4*-1*'PM2.5 reduction'!AG91),9))","v":0.99999850000000001},{"$f":"VALUE(FIXED(EXP(AH$4*-1*'PM2.5 reduction'!AH91),9))","v":0.99999367100000003},{"$f":"VALUE(FIXED(EXP(AI$4*-1*'PM2.5 reduction'!AI91),9))","v":0.99999246900000005},{"$f":"VALUE(FIXED(EXP(AJ$4*-1*'PM2.5 reduction'!AJ91),9))","v":0.99999539699999995},{"$f":"VALUE(FIXED(EXP(AK$4*-1*'PM2.5 reduction'!AK91),9))","v":0.99999739600000004},{"$f":"VALUE(FIXED(EXP(AL$4*-1*'PM2.5 reduction'!AL91),9))","v":0.99999710100000005},{"$f":"VALUE(FIXED(EXP(AM$4*-1*'PM2.5 reduction'!AM91),9))","v":0.99999320300000005},{"$f":"VALUE(FIXED(EXP(AN$4*-1*'PM2.5 reduction'!AN91),9))","v":1},{"$f":"VALUE(FIXED(EXP(AO$4*-1*'PM2.5 reduction'!AO91),9))","v":1},{"$f":"VALUE(FIXED(EXP(AP$4*-1*'PM2.5 reduction'!AP91),9))","v":0.99999505899999996},{"$f":"VALUE(FIXED(EXP(AQ$4*-1*'PM2.5 reduction'!AQ91),9))","v":0.99999324599999995},{"$f":"VALUE(FIXED(EXP(AR$4*-1*'PM2.5 reduction'!AR91),9))","v":0.99999338800000004},{"$f":"VALUE(FIXED(EXP(AS$4*-1*'PM2.5 reduction'!AS91),9))","v":0.99999850899999998},{"$f":"VALUE(FIXED(EXP(AT$4*-1*'PM2.5 reduction'!AT91),9))","v":1},{"$f":"VALUE(FIXED(EXP(AU$4*-1*'PM2.5 reduction'!AU91),9))","v":1},{"$f":"VALUE(FIXED(EXP(AV$4*-1*'PM2.5 reduction'!AV91),9))","v":0.99999625199999997},{"$f":"VALUE(FIXED(EXP(AW$4*-1*'PM2.5 reduction'!AW91),9))","v":0.99999438699999998},{"$f":"VALUE(FIXED(EXP(AX$4*-1*'PM2.5 reduction'!AX91),9))","v":0.99999603800000003},{"$f":"VALUE(FIXED(EXP(AY$4*-1*'PM2.5 reduction'!AY91),9))","v":0.99999425200000003},{"$f":"VALUE(FIXED(EXP(AZ$4*-1*'PM2.5 reduction'!AZ91),9))","v":0.99999258099999999},{"$f":"VALUE(FIXED(EXP(BA$4*-1*'PM2.5 reduction'!BA91),9))","v":0.99999464599999999},{"$f":"VALUE(FIXED(EXP(BB$4*-1*'PM2.5 reduction'!BB91),9))","v":0.99999531399999997},{"$f":"VALUE(FIXED(EXP(BC$4*-1*'PM2.5 reduction'!BC91),9))","v":1}]
[null,"Male 65-69",{"$f":"VALUE(FIXED(EXP(C$4*-1*'PM2.5 reduction'!C92),9))","v":0.99999103},{"$f":"VALUE(FIXED(EXP(D$4*-1*'PM2.5 reduction'!D92),9))","v":0.99999160499999995},{"$f":"VALUE(FIXED(EXP(E$4*-1*'PM2.5 reduction'!E92),9))","v":0.99999636400000003},{"$f":"VALUE(FIXED(EXP(F$4*-1*'PM2.5 reduction'!F92),9))","v":0.99999787799999995},{"$f":"VALUE(FIXED(EXP(G$4*-1*'PM2.5 reduction'!G92),9))","v":0.99999850999999995},{"$f":"VALUE(FIXED(EXP(H$4*-1*'PM2.5 reduction'!H92),9))","v":0.99999676900000001},{"$f":"VALUE(FIXED(EXP(I$4*-1*'PM2.5 reduction'!I92),9))","v":0.99999850499999998},{"$f":"VALUE(FIXED(EXP(J$4*-1*'PM2.5 reduction'!J92),9))","v":0.99999571700000001},{"$f":"VALUE(FIXED(EXP(K$4*-1*'PM2.5 reduction'!K92),9))","v":0.99999534899999998},{"$f":"VALUE(FIXED(EXP(L$4*-1*'PM2.5 reduction'!L92),9))","v":0.99999852700000003},{"$f":"VALUE(FIXED(EXP(M$4*-1*'PM2.5 reduction'!M92),9))","v":0.99999852700000003},{"$f":"VALUE(FIXED(EXP(N$4*-1*'PM2.5 reduction'!N92),9))","v":0.99999178499999997},{"$f":"VALUE(FIXED(EXP(O$4*-1*'PM2.5 reduction'!O92),9))","v":0.99999655200000004},{"$f":"VALUE(FIXED(EXP(P$4*-1*'PM2.5 reduction'!P92),9))","v":0.999993519},{"$f":"VALUE(FIXED(EXP(Q$4*-1*'PM2.5 reduction'!Q92),9))","v":0.99999722899999999},{"$f":"VALUE(FIXED(EXP(R$4*-1*'PM2.5 reduction'!R92),9))","v":0.99999431699999997},{"$f":"VALUE(FIXED(EXP(S$4*-1*'PM2.5 reduction'!S92),9))","v":0.99999428199999996},{"$f":"VALUE(FIXED(EXP(T$4*-1*'PM2.5 reduction'!T92),9))","v":0.99999099700000005},{"$f":"VALUE(FIXED(EXP(U$4*-1*'PM2.5 reduction'!U92),9))","v":1},{"$f":"VALUE(FIXED(EXP(V$4*-1*'PM2.5 reduction'!V92),9))","v":0.99999360100000001},{"$f":"VALUE(FIXED(EXP(W$4*-1*'PM2.5 reduction'!W92),9))","v":0.99999602200000004},{"$f":"VALUE(FIXED(EXP(X$4*-1*'PM2.5 reduction'!X92),9))","v":0.99999602200000004},{"$f":"VALUE(FIXED(EXP(Y$4*-1*'PM2.5 reduction'!Y92),9))","v":0.99999459300000004},{"$f":"VALUE(FIXED(EXP(Z$4*-1*'PM2.5 reduction'!Z92),9))","v":0.99999089200000002},{"$f":"VALUE(FIXED(EXP(AA$4*-1*'PM2.5 reduction'!AA92),9))","v":0.99999253799999999},{"$f":"VALUE(FIXED(EXP(AB$4*-1*'PM2.5 reduction'!AB92),9))","v":0.99999186799999995},{"$f":"VALUE(FIXED(EXP(AC$4*-1*'PM2.5 reduction'!AC92),9))","v":0.99999195399999996},{"$f":"VALUE(FIXED(EXP(AD$4*-1*'PM2.5 reduction'!AD92),9))","v":0.999998571},{"$f":"VALUE(FIXED(EXP(AE$4*-1*'PM2.5 reduction'!AE92),9))","v":0.99999860299999999},{"$f":"VALUE(FIXED(EXP(AF$4*-1*'PM2.5 reduction'!AF92),9))","v":0.99999500799999996},{"$f":"VALUE(FIXED(EXP(AG$4*-1*'PM2.5 reduction'!AG92),9))","v":0.99999860299999999},{"$f":"VALUE(FIXED(EXP(AH$4*-1*'PM2.5 reduction'!AH92),9))","v":0.99999370600000004},{"$f":"VALUE(FIXED(EXP(AI$4*-1*'PM2.5 reduction'!AI92),9))","v":0.99999279200000002},{"$f":"VALUE(FIXED(EXP(AJ$4*-1*'PM2.5 reduction'!AJ92),9))","v":0.99999559800000004},{"$f":"VALUE(FIXED(EXP(AK$4*-1*'PM2.5 reduction'!AK92),9))","v":0.99999739600000004},{"$f":"VALUE(FIXED(EXP(AL$4*-1*'PM2.5 reduction'!AL92),9))","v":0.99999704700000003},{"$f":"VALUE(FIXED(EXP(AM$4*-1*'PM2.5 reduction'!AM92),9))","v":0.99999319499999995},{"$f":"VALUE(FIXED(EXP(AN$4*-1*'PM2.5 reduction'!AN92),9))","v":1},{"$f":"VALUE(FIXED(EXP(AO$4*-1*'PM2.5 reduction'!AO92),9))","v":1},{"$f":"VALUE(FIXED(EXP(AP$4*-1*'PM2.5 reduction'!AP92),9))","v":0.99999512199999996},{"$f":"VALUE(FIXED(EXP(AQ$4*-1*'PM2.5 reduction'!AQ92),9))","v":0.99999329299999995},{"$f":"VALUE(FIXED(EXP(AR$4*-1*'PM2.5 reduction'!AR92),9))","v":0.99999353400000002},{"$f":"VALUE(FIXED(EXP(AS$4*-1*'PM2.5 reduction'!AS92),9))","v":0.99999850499999998},{"$f":"VALUE(FIXED(EXP(AT$4*-1*'PM2.5 reduction'!AT92),9))","v":1},{"$f":"VALUE(FIXED(EXP(AU$4*-1*'PM2.5 reduction'!AU92),9))","v":1},{"$f":"VALUE(FIXED(EXP(AV$4*-1*'PM2.5 reduction'!AV92),9))","v":0.99999637399999997},{"$f":"VALUE(FIXED(EXP(AW$4*-1*'PM2.5 reduction'!AW92),9))","v":0.99999450300000003},{"$f":"VALUE(FIXED(EXP(AX$4*-1*'PM2.5 reduction'!AX92),9))","v":0.99999612400000004},{"$f":"VALUE(FIXED(EXP(AY$4*-1*'PM2.5 reduction'!AY92),9))","v":0.99999440699999997},{"$f":"VALUE(FIXED(EXP(AZ$4*-1*'PM2.5 reduction'!AZ92),9))","v":0.999992773},{"$f":"VALUE(FIXED(EXP(BA$4*-1*'PM2.5 reduction'!BA92),9))","v":0.99999458500000005},{"$f":"VALUE(FIXED(EXP(BB$4*-1*'PM2.5 reduction'!BB92),9))","v":0.99999526999999999},{"$f":"VALUE(FIXED(EXP(BC$4*-1*'PM2.5 reduction'!BC92),9))","v":1}]
[null,"Male 70-74",{"$f":"VALUE(FIXED(EXP(C$4*-1*'PM2.5 reduction'!C93),9))","v":0.99999063200000005},{"$f":"VALUE(FIXED(EXP(D$4*-1*'PM2.5 reduction'!D93),9))","v":0.99999123000000001},{"$f":"VALUE(FIXED(EXP(E$4*-1*'PM2.5 reduction'!E93),9))","v":0.99999636700000005},{"$f":"VALUE(FIXED(EXP(F$4*-1*'PM2.5 reduction'!F93),9))","v":0.99999801600000005},{"$f":"VALUE(FIXED(EXP(G$4*-1*'PM2.5 reduction'!G93),9))","v":0.99999858200000002},{"$f":"VALUE(FIXED(EXP(H$4*-1*'PM2.5 reduction'!H93),9))","v":0.99999677200000003},{"$f":"VALUE(FIXED(EXP(I$4*-1*'PM2.5 reduction'!I93),9))","v":0.99999845099999995},{"$f":"VALUE(FIXED(EXP(J$4*-1*'PM2.5 reduction'!J93),9))","v":0.99999566600000001},{"$f":"VALUE(FIXED(EXP(K$4*-1*'PM2.5 reduction'!K93),9))","v":0.99999542200000002},{"$f":"VALUE(FIXED(EXP(L$4*-1*'PM2.5 reduction'!L93),9))","v":0.99999849500000004},{"$f":"VALUE(FIXED(EXP(M$4*-1*'PM2.5 reduction'!M93),9))","v":0.99999849500000004},{"$f":"VALUE(FIXED(EXP(N$4*-1*'PM2.5 reduction'!N93),9))","v":0.99999183199999997},{"$f":"VALUE(FIXED(EXP(O$4*-1*'PM2.5 reduction'!O93),9))","v":0.99999653499999996},{"$f":"VALUE(FIXED(EXP(P$4*-1*'PM2.5 reduction'!P93),9))","v":0.99999295700000002},{"$f":"VALUE(FIXED(EXP(Q$4*-1*'PM2.5 reduction'!Q93),9))","v":0.99999721799999997},{"$f":"VALUE(FIXED(EXP(R$4*-1*'PM2.5 reduction'!R93),9))","v":0.999994414},{"$f":"VALUE(FIXED(EXP(S$4*-1*'PM2.5 reduction'!S93),9))","v":0.99999427900000004},{"$f":"VALUE(FIXED(EXP(T$4*-1*'PM2.5 reduction'!T93),9))","v":0.99999074200000004},{"$f":"VALUE(FIXED(EXP(U$4*-1*'PM2.5 reduction'!U93),9))","v":1},{"$f":"VALUE(FIXED(EXP(V$4*-1*'PM2.5 reduction'!V93),9))","v":0.99999346700000002},{"$f":"VALUE(FIXED(EXP(W$4*-1*'PM2.5 reduction'!W93),9))","v":0.99999605400000002},{"$f":"VALUE(FIXED(EXP(X$4*-1*'PM2.5 reduction'!X93),9))","v":0.99999605400000002},{"$f":"VALUE(FIXED(EXP(Y$4*-1*'PM2.5 reduction'!Y93),9))","v":0.99999460799999995},{"$f":"VALUE(FIXED(EXP(Z$4*-1*'PM2.5 reduction'!Z93),9))","v":0.99999085600000004},{"$f":"VALUE(FIXED(EXP(AA$4*-1*'PM2.5 reduction'!AA93),9))","v":0.99999254999999998},{"$f":"VALUE(FIXED(EXP(AB$4*-1*'PM2.5 reduction'!AB93),9))","v":0.99999160799999998},{"$f":"VALUE(FIXED(EXP(AC$4*-1*'PM2.5 reduction'!AC93),9))","v":0.99999192199999998},{"$f":"VALUE(FIXED(EXP(AD$4*-1*'PM2.5 reduction'!AD93),9))","v":0.99999859400000002},{"$f":"VALUE(FIXED(EXP(AE$4*-1*'PM2.5 reduction'!AE93),9))","v":0.99999860299999999},{"$f":"VALUE(FIXED(EXP(AF$4*-1*'PM2.5 reduction'!AF93),9))","v":0.99999529899999995},{"$f":"VALUE(FIXED(EXP(AG$4*-1*'PM2.5 reduction'!AG93),9))","v":0.99999860299999999},{"$f":"VALUE(FIXED(EXP(AH$4*-1*'PM2.5 reduction'!AH93),9))","v":0.99999379399999999},{"$f":"VALUE(FIXED(EXP(AI$4*-1*'PM2.5 reduction'!AI93),9))","v":0.99999270399999995},{"$f":"VALUE(FIXED(EXP(AJ$4*-1*'PM2.5 reduction'!AJ93),9))","v":0.99999540600000003},{"$f":"VALUE(FIXED(EXP(AK$4*-1*'PM2.5 reduction'!AK93),9))","v":0.99999739600000004},{"$f":"VALUE(FIXED(EXP(AL$4*-1*'PM2.5 reduction'!AL93),9))","v":0.99999701399999996},{"$f":"VALUE(FIXED(EXP(AM$4*-1*'PM2.5 reduction'!AM93),9))","v":0.99999320899999999},{"$f":"VALUE(FIXED(EXP(AN$4*-1*'PM2.5 reduction'!AN93),9))","v":1},{"$f":"VALUE(FIXED(EXP(AO$4*-1*'PM2.5 reduction'!AO93),9))","v":1},{"$f":"VALUE(FIXED(EXP(AP$4*-1*'PM2.5 reduction'!AP93),9))","v":0.99999533900000004},{"$f":"VALUE(FIXED(EXP(AQ$4*-1*'PM2.5 reduction'!AQ93),9))","v":0.99999332200000002},{"$f":"VALUE(FIXED(EXP(AR$4*-1*'PM2.5 reduction'!AR93),9))","v":0.99999354299999998},{"$f":"VALUE(FIXED(EXP(AS$4*-1*'PM2.5 reduction'!AS93),9))","v":0.99999845099999995},{"$f":"VALUE(FIXED(EXP(AT$4*-1*'PM2.5 reduction'!AT93),9))","v":1},{"$f":"VALUE(FIXED(EXP(AU$4*-1*'PM2.5 reduction'!AU93),9))","v":1},{"$f":"VALUE(FIXED(EXP(AV$4*-1*'PM2.5 reduction'!AV93),9))","v":0.99999649400000001},{"$f":"VALUE(FIXED(EXP(AW$4*-1*'PM2.5 reduction'!AW93),9))","v":0.99999463099999997},{"$f":"VALUE(FIXED(EXP(AX$4*-1*'PM2.5 reduction'!AX93),9))","v":0.99999596800000001},{"$f":"VALUE(FIXED(EXP(AY$4*-1*'PM2.5 reduction'!AY93),9))","v":0.99999449600000001},{"$f":"VALUE(FIXED(EXP(AZ$4*-1*'PM2.5 reduction'!AZ93),9))","v":0.99999283000000005},{"$f":"VALUE(FIXED(EXP(BA$4*-1*'PM2.5 reduction'!BA93),9))","v":0.99999461499999998},{"$f":"VALUE(FIXED(EXP(BB$4*-1*'PM2.5 reduction'!BB93),9))","v":0.99999519299999995},{"$f":"VALUE(FIXED(EXP(BC$4*-1*'PM2.5 reduction'!BC93),9))","v":1}]
[null,"Male 75-79",{"$f":"VALUE(FIXED(EXP(C$4*-1*'PM2.5 reduction'!C94),9))","v":0.99999100100000005},{"$f":"VALUE(FIXED(EXP(D$4*-1*'PM2.5 reduction'!D94),9))","v":0.99999211300000002},{"$f":"VALUE(FIXED(EXP(E$4*-1*'PM2.5 reduction'!E94),9))","v":0.99999623999999998},{"$f":"VALUE(FIXED(EXP(F$4*-1*'PM2.5 reduction'!F94),9))","v":0.99999785399999996},{"$f":"VALUE(FIXED(EXP(G$4*-1*'PM2.5 reduction'!G94),9))","v":0.99999859199999996},{"$f":"VALUE(FIXED(EXP(H$4*-1*'PM2.5 reduction'!H94),9))","v":0.99999675300000002},{"$f":"VALUE(FIXED(EXP(I$4*-1*'PM2.5 reduction'!I94),9))","v":0.999998418},{"$f":"VALUE(FIXED(EXP(J$4*-1*'PM2.5 reduction'!J94),9))","v":0.99999585700000004},{"$f":"VALUE(FIXED(EXP(K$4*-1*'PM2.5 reduction'!K94),9))","v":0.99999558799999999},{"$f":"VALUE(FIXED(EXP(L$4*-1*'PM2.5 reduction'!L94),9))","v":0.99999841899999997},{"$f":"VALUE(FIXED(EXP(M$4*-1*'PM2.5 reduction'!M94),9))","v":0.99999841899999997},{"$f":"VALUE(FIXED(EXP(N$4*-1*'PM2.5 reduction'!N94),9))","v":0.99999168699999996},{"$f":"VALUE(FIXED(EXP(O$4*-1*'PM2.5 reduction'!O94),9))","v":0.99999652100000003},{"$f":"VALUE(FIXED(EXP(P$4*-1*'PM2.5 reduction'!P94),9))","v":0.99999318000000004},{"$f":"VALUE(FIXED(EXP(Q$4*-1*'PM2.5 reduction'!Q94),9))","v":0.99999718400000004},{"$f":"VALUE(FIXED(EXP(R$4*-1*'PM2.5 reduction'!R94),9))","v":0.99999450300000003},{"$f":"VALUE(FIXED(EXP(S$4*-1*'PM2.5 reduction'!S94),9))","v":0.99999413100000001},{"$f":"VALUE(FIXED(EXP(T$4*-1*'PM2.5 reduction'!T94),9))","v":0.99999084599999999},{"$f":"VALUE(FIXED(EXP(U$4*-1*'PM2.5 reduction'!U94),9))","v":1},{"$f":"VALUE(FIXED(EXP(V$4*-1*'PM2.5 reduction'!V94),9))","v":0.99999362000000003},{"$f":"VALUE(FIXED(EXP(W$4*-1*'PM2.5 reduction'!W94),9))","v":0.99999598599999995},{"$f":"VALUE(FIXED(EXP(X$4*-1*'PM2.5 reduction'!X94),9))","v":0.99999598599999995},{"$f":"VALUE(FIXED(EXP(Y$4*-1*'PM2.5 reduction'!Y94),9))","v":0.99999466800000003},{"$f":"VALUE(FIXED(EXP(Z$4*-1*'PM2.5 reduction'!Z94),9))","v":0.99999083899999996},{"$f":"VALUE(FIXED(EXP(AA$4*-1*'PM2.5 reduction'!AA94),9))","v":0.99999249999999995},{"$f":"VALUE(FIXED(EXP(AB$4*-1*'PM2.5 reduction'!AB94),9))","v":0.99999231200000005},{"$f":"VALUE(FIXED(EXP(AC$4*-1*'PM2.5 reduction'!AC94),9))","v":0.99999190900000001},{"$f":"VALUE(FIXED(EXP(AD$4*-1*'PM2.5 reduction'!AD94),9))","v":0.99999839999999995},{"$f":"VALUE(FIXED(EXP(AE$4*-1*'PM2.5 reduction'!AE94),9))","v":0.99999829600000001},{"$f":"VALUE(FIXED(EXP(AF$4*-1*'PM2.5 reduction'!AF94),9))","v":0.99999485300000002},{"$f":"VALUE(FIXED(EXP(AG$4*-1*'PM2.5 reduction'!AG94),9))","v":0.99999829600000001},{"$f":"VALUE(FIXED(EXP(AH$4*-1*'PM2.5 reduction'!AH94),9))","v":0.99999372900000005},{"$f":"VALUE(FIXED(EXP(AI$4*-1*'PM2.5 reduction'!AI94),9))","v":0.99999274299999996},{"$f":"VALUE(FIXED(EXP(AJ$4*-1*'PM2.5 reduction'!AJ94),9))","v":0.99999551399999997},{"$f":"VALUE(FIXED(EXP(AK$4*-1*'PM2.5 reduction'!AK94),9))","v":0.99999739600000004},{"$f":"VALUE(FIXED(EXP(AL$4*-1*'PM2.5 reduction'!AL94),9))","v":0.99999701299999999},{"$f":"VALUE(FIXED(EXP(AM$4*-1*'PM2.5 reduction'!AM94),9))","v":0.99999312500000004},{"$f":"VALUE(FIXED(EXP(AN$4*-1*'PM2.5 reduction'!AN94),9))","v":1},{"$f":"VALUE(FIXED(EXP(AO$4*-1*'PM2.5 reduction'!AO94),9))","v":1},{"$f":"VALUE(FIXED(EXP(AP$4*-1*'PM2.5 reduction'!AP94),9))","v":0.99999524500000003},{"$f":"VALUE(FIXED(EXP(AQ$4*-1*'PM2.5 reduction'!AQ94),9))","v":0.99999350799999998},{"$f":"VALUE(FIXED(EXP(AR$4*-1*'PM2.5 reduction'!AR94),9))","v":0.99999351000000003},{"$f":"VALUE(FIXED(EXP(AS$4*-1*'PM2.5 reduction'!AS94),9))","v":0.999998418},{"$f":"VALUE(FIXED(EXP(AT$4*-1*'PM2.5 reduction'!AT94),9))","v":1},{"$f":"VALUE(FIXED(EXP(AU$4*-1*'PM2.5 reduction'!AU94),9))","v":1},{"$f":"VALUE(FIXED(EXP(AV$4*-1*'PM2.5 reduction'!AV94),9))","v":0.99999643999999999},{"$f":"VALUE(FIXED(EXP(AW$4*-1*'PM2.5 reduction'!AW94),9))","v":0.99999468300000005},{"$f":"VALUE(FIXED(EXP(AX$4*-1*'PM2.5 reduction'!AX94),9))","v":0.99999612699999996},{"$f":"VALUE(FIXED(EXP(AY$4*-1*'PM2.5 reduction'!AY94),9))","v":0.99999437300000005},{"$f":"VALUE(FIXED(EXP(AZ$4*-1*'PM2.5 reduction'!AZ94),9))","v":0.999992828},{"$f":"VALUE(FIXED(EXP(BA$4*-1*'PM2.5 reduction'!BA94),9))","v":0.99999452},{"$f":"VALUE(FIXED(EXP(BB$4*-1*'PM2.5 reduction'!BB94),9))","v":0.99999523400000001},{"$f":"VALUE(FIXED(EXP(BC$4*-1*'PM2.5 reduction'!BC94),9))","v":1}]
[null,"Male 80-84",{"$f":"VALUE(FIXED(EXP(C$4*-1*'PM2.5 reduction'!C95),9))","v":0.999990881},{"$f":"VALUE(FIXED(EXP(D$4*-1*'PM2.5 reduction'!D95),9))","v":0.99999163099999999},{"$f":"VALUE(FIXED(EXP(E$4*-1*'PM2.5 reduction'!E95),9))","v":0.99999613099999995},{"$f":"VALUE(FIXED(EXP(F$4*-1*'PM2.5 reduction'!F95),9))","v":0.99999808599999995},{"$f":"VALUE(FIXED(EXP(G$4*-1*'PM2.5 reduction'!G95),9))","v":0.99999857299999995},{"$f":"VALUE(FIXED(EXP(H$4*-1*'PM2.5 reduction'!H95),9))","v":0.99999677499999995},{"$f":"VALUE(FIXED(EXP(I$4*-1*'PM2.5 reduction'!I95),9))","v":0.99999848700000005},{"$f":"VALUE(FIXED(EXP(J$4*-1*'PM2.5 reduction'!J95),9))","v":0.99999556899999997},{"$f":"VALUE(FIXED(EXP(K$4*-1*'PM2.5 reduction'!K95),9))","v":0.99999507700000001},{"$f":"VALUE(FIXED(EXP(L$4*-1*'PM2.5 reduction'!L95),9))","v":0.99999850899999998},{"$f":"VALUE(FIXED(EXP(M$4*-1*'PM2.5 reduction'!M95),9))","v":0.99999850899999998},{"$f":"VALUE(FIXED(EXP(N$4*-1*'PM2.5 reduction'!N95),9))","v":0.99999163499999999},{"$f":"VALUE(FIXED(EXP(O$4*-1*'PM2.5 reduction'!O95),9))","v":0.99999666399999998},{"$f":"VALUE(FIXED(EXP(P$4*-1*'PM2.5 reduction'!P95),9))","v":0.99999357300000002},{"$f":"VALUE(FIXED(EXP(Q$4*-1*'PM2.5 reduction'!Q95),9))","v":0.99999717399999999},{"$f":"VALUE(FIXED(EXP(R$4*-1*'PM2.5 reduction'!R95),9))","v":0.99999436399999997},{"$f":"VALUE(FIXED(EXP(S$4*-1*'PM2.5 reduction'!S95),9))","v":0.99999403399999998},{"$f":"VALUE(FIXED(EXP(T$4*-1*'PM2.5 reduction'!T95),9))","v":0.99999078799999996},{"$f":"VALUE(FIXED(EXP(U$4*-1*'PM2.5 reduction'!U95),9))","v":1},{"$f":"VALUE(FIXED(EXP(V$4*-1*'PM2.5 reduction'!V95),9))","v":0.99999366700000003},{"$f":"VALUE(FIXED(EXP(W$4*-1*'PM2.5 reduction'!W95),9))","v":0.99999583199999997},{"$f":"VALUE(FIXED(EXP(X$4*-1*'PM2.5 reduction'!X95),9))","v":0.99999583199999997},{"$f":"VALUE(FIXED(EXP(Y$4*-1*'PM2.5 reduction'!Y95),9))","v":0.99999438299999999},{"$f":"VALUE(FIXED(EXP(Z$4*-1*'PM2.5 reduction'!Z95),9))","v":0.99999085200000004},{"$f":"VALUE(FIXED(EXP(AA$4*-1*'PM2.5 reduction'!AA95),9))","v":0.99999244499999995},{"$f":"VALUE(FIXED(EXP(AB$4*-1*'PM2.5 reduction'!AB95),9))","v":0.999991772},{"$f":"VALUE(FIXED(EXP(AC$4*-1*'PM2.5 reduction'!AC95),9))","v":0.99999185400000001},{"$f":"VALUE(FIXED(EXP(AD$4*-1*'PM2.5 reduction'!AD95),9))","v":0.99999861300000004},{"$f":"VALUE(FIXED(EXP(AE$4*-1*'PM2.5 reduction'!AE95),9))","v":0.99999863899999997},{"$f":"VALUE(FIXED(EXP(AF$4*-1*'PM2.5 reduction'!AF95),9))","v":0.99999480399999996},{"$f":"VALUE(FIXED(EXP(AG$4*-1*'PM2.5 reduction'!AG95),9))","v":0.99999863899999997},{"$f":"VALUE(FIXED(EXP(AH$4*-1*'PM2.5 reduction'!AH95),9))","v":0.99999367500000003},{"$f":"VALUE(FIXED(EXP(AI$4*-1*'PM2.5 reduction'!AI95),9))","v":0.99999259399999996},{"$f":"VALUE(FIXED(EXP(AJ$4*-1*'PM2.5 reduction'!AJ95),9))","v":0.99999552400000002},{"$f":"VALUE(FIXED(EXP(AK$4*-1*'PM2.5 reduction'!AK95),9))","v":0.99999739600000004},{"$f":"VALUE(FIXED(EXP(AL$4*-1*'PM2.5 reduction'!AL95),9))","v":0.99999695600000005},{"$f":"VALUE(FIXED(EXP(AM$4*-1*'PM2.5 reduction'!AM95),9))","v":0.99999313999999995},{"$f":"VALUE(FIXED(EXP(AN$4*-1*'PM2.5 reduction'!AN95),9))","v":1},{"$f":"VALUE(FIXED(EXP(AO$4*-1*'PM2.5 reduction'!AO95),9))","v":1},{"$f":"VALUE(FIXED(EXP(AP$4*-1*'PM2.5 reduction'!AP95),9))","v":0.99999525700000003},{"$f":"VALUE(FIXED(EXP(AQ$4*-1*'PM2.5 reduction'!AQ95),9))","v":0.99999365500000004},{"$f":"VALUE(FIXED(EXP(AR$4*-1*'PM2.5 reduction'!AR95),9))","v":0.99999344199999995},{"$f":"VALUE(FIXED(EXP(AS$4*-1*'PM2.5 reduction'!AS95),9))","v":0.99999848700000005},{"$f":"VALUE(FIXED(EXP(AT$4*-1*'PM2.5 reduction'!AT95),9))","v":1},{"$f":"VALUE(FIXED(EXP(AU$4*-1*'PM2.5 reduction'!AU95),9))","v":1},{"$f":"VALUE(FIXED(EXP(AV$4*-1*'PM2.5 reduction'!AV95),9))","v":0.99999652699999997},{"$f":"VALUE(FIXED(EXP(AW$4*-1*'PM2.5 reduction'!AW95),9))","v":0.99999454499999996},{"$f":"VALUE(FIXED(EXP(AX$4*-1*'PM2.5 reduction'!AX95),9))","v":0.99999602600000004},{"$f":"VALUE(FIXED(EXP(AY$4*-1*'PM2.5 reduction'!AY95),9))","v":0.99999436399999997},{"$f":"VALUE(FIXED(EXP(AZ$4*-1*'PM2.5 reduction'!AZ95),9))","v":0.99999277399999997},{"$f":"VALUE(FIXED(EXP(BA$4*-1*'PM2.5 reduction'!BA95),9))","v":0.999994402},{"$f":"VALUE(FIXED(EXP(BB$4*-1*'PM2.5 reduction'!BB95),9))","v":0.99999521899999999},{"$f":"VALUE(FIXED(EXP(BC$4*-1*'PM2.5 reduction'!BC95),9))","v":1}]
[null,"Male 85-89",{"$f":"VALUE(FIXED(EXP(C$4*-1*'PM2.5 reduction'!C96),9))","v":0.99999039899999997},{"$f":"VALUE(FIXED(EXP(D$4*-1*'PM2.5 reduction'!D96),9))","v":0.99999170299999995},{"$f":"VALUE(FIXED(EXP(E$4*-1*'PM2.5 reduction'!E96),9))","v":0.99999651599999995},{"$f":"VALUE(FIXED(EXP(F$4*-1*'PM2.5 reduction'!F96),9))","v":0.99999777199999995},{"$f":"VALUE(FIXED(EXP(G$4*-1*'PM2.5 reduction'!G96),9))","v":0.99999839999999995},{"$f":"VALUE(FIXED(EXP(H$4*-1*'PM2.5 reduction'!H96),9))","v":0.99999639299999998},{"$f":"VALUE(FIXED(EXP(I$4*-1*'PM2.5 reduction'!I96),9))","v":0.99999845799999998},{"$f":"VALUE(FIXED(EXP(J$4*-1*'PM2.5 reduction'!J96),9))","v":0.99999543899999999},{"$f":"VALUE(FIXED(EXP(K$4*-1*'PM2.5 reduction'!K96),9))","v":0.99999508400000003},{"$f":"VALUE(FIXED(EXP(L$4*-1*'PM2.5 reduction'!L96),9))","v":0.99999833800000004},{"$f":"VALUE(FIXED(EXP(M$4*-1*'PM2.5 reduction'!M96),9))","v":0.99999833800000004},{"$f":"VALUE(FIXED(EXP(N$4*-1*'PM2.5 reduction'!N96),9))","v":0.99999164600000001},{"$f":"VALUE(FIXED(EXP(O$4*-1*'PM2.5 reduction'!O96),9))","v":0.99999553299999999},{"$f":"VALUE(FIXED(EXP(P$4*-1*'PM2.5 reduction'!P96),9))","v":0.99999373800000002},{"$f":"VALUE(FIXED(EXP(Q$4*-1*'PM2.5 reduction'!Q96),9))","v":0.99999714799999995},{"$f":"VALUE(FIXED(EXP(R$4*-1*'PM2.5 reduction'!R96),9))","v":0.999994151},{"$f":"VALUE(FIXED(EXP(S$4*-1*'PM2.5 reduction'!S96),9))","v":0.99999420699999997},{"$f":"VALUE(FIXED(EXP(T$4*-1*'PM2.5 reduction'!T96),9))","v":0.99999086199999998},{"$f":"VALUE(FIXED(EXP(U$4*-1*'PM2.5 reduction'!U96),9))","v":1},{"$f":"VALUE(FIXED(EXP(V$4*-1*'PM2.5 reduction'!V96),9))","v":0.99999376900000003},{"$f":"VALUE(FIXED(EXP(W$4*-1*'PM2.5 reduction'!W96),9))","v":0.99999596099999999},{"$f":"VALUE(FIXED(EXP(X$4*-1*'PM2.5 reduction'!X96),9))","v":0.99999596099999999},{"$f":"VALUE(FIXED(EXP(Y$4*-1*'PM2.5 reduction'!Y96),9))","v":0.99999453900000002},{"$f":"VALUE(FIXED(EXP(Z$4*-1*'PM2.5 reduction'!Z96),9))","v":0.99999095100000002},{"$f":"VALUE(FIXED(EXP(AA$4*-1*'PM2.5 reduction'!AA96),9))","v":0.99999246200000003},{"$f":"VALUE(FIXED(EXP(AB$4*-1*'PM2.5 reduction'!AB96),9))","v":0.99999205300000005},{"$f":"VALUE(FIXED(EXP(AC$4*-1*'PM2.5 reduction'!AC96),9))","v":0.99999189099999997},{"$f":"VALUE(FIXED(EXP(AD$4*-1*'PM2.5 reduction'!AD96),9))","v":0.99999828400000002},{"$f":"VALUE(FIXED(EXP(AE$4*-1*'PM2.5 reduction'!AE96),9))","v":0.99999818799999995},{"$f":"VALUE(FIXED(EXP(AF$4*-1*'PM2.5 reduction'!AF96),9))","v":0.99999475299999996},{"$f":"VALUE(FIXED(EXP(AG$4*-1*'PM2.5 reduction'!AG96),9))","v":0.99999818799999995},{"$f":"VALUE(FIXED(EXP(AH$4*-1*'PM2.5 reduction'!AH96),9))","v":0.99999369599999999},{"$f":"VALUE(FIXED(EXP(AI$4*-1*'PM2.5 reduction'!AI96),9))","v":0.99999275600000004},{"$f":"VALUE(FIXED(EXP(AJ$4*-1*'PM2.5 reduction'!AJ96),9))","v":0.99999554999999996},{"$f":"VALUE(FIXED(EXP(AK$4*-1*'PM2.5 reduction'!AK96),9))","v":0.99999739600000004},{"$f":"VALUE(FIXED(EXP(AL$4*-1*'PM2.5 reduction'!AL96),9))","v":0.99999709000000003},{"$f":"VALUE(FIXED(EXP(AM$4*-1*'PM2.5 reduction'!AM96),9))","v":0.99999297300000001},{"$f":"VALUE(FIXED(EXP(AN$4*-1*'PM2.5 reduction'!AN96),9))","v":1},{"$f":"VALUE(FIXED(EXP(AO$4*-1*'PM2.5 reduction'!AO96),9))","v":1},{"$f":"VALUE(FIXED(EXP(AP$4*-1*'PM2.5 reduction'!AP96),9))","v":0.99999510700000005},{"$f":"VALUE(FIXED(EXP(AQ$4*-1*'PM2.5 reduction'!AQ96),9))","v":0.99999348499999996},{"$f":"VALUE(FIXED(EXP(AR$4*-1*'PM2.5 reduction'!AR96),9))","v":0.99999343799999996},{"$f":"VALUE(FIXED(EXP(AS$4*-1*'PM2.5 reduction'!AS96),9))","v":0.99999845799999998},{"$f":"VALUE(FIXED(EXP(AT$4*-1*'PM2.5 reduction'!AT96),9))","v":1},{"$f":"VALUE(FIXED(EXP(AU$4*-1*'PM2.5 reduction'!AU96),9))","v":1},{"$f":"VALUE(FIXED(EXP(AV$4*-1*'PM2.5 reduction'!AV96),9))","v":0.99999628100000004},{"$f":"VALUE(FIXED(EXP(AW$4*-1*'PM2.5 reduction'!AW96),9))","v":0.99999469100000005},{"$f":"VALUE(FIXED(EXP(AX$4*-1*'PM2.5 reduction'!AX96),9))","v":0.99999591700000001},{"$f":"VALUE(FIXED(EXP(AY$4*-1*'PM2.5 reduction'!AY96),9))","v":0.99999428700000004},{"$f":"VALUE(FIXED(EXP(AZ$4*-1*'PM2.5 reduction'!AZ96),9))","v":0.99999262499999997},{"$f":"VALUE(FIXED(EXP(BA$4*-1*'PM2.5 reduction'!BA96),9))","v":0.999994249},{"$f":"VALUE(FIXED(EXP(BB$4*-1*'PM2.5 reduction'!BB96),9))","v":0.99999528999999998},{"$f":"VALUE(FIXED(EXP(BC$4*-1*'PM2.5 reduction'!BC96),9))","v":1}]
[null,"Male 90+",{"$f":"VALUE(FIXED(EXP(C$4*-1*'PM2.5 reduction'!C97),9))","v":0.99999154700000004},{"$f":"VALUE(FIXED(EXP(D$4*-1*'PM2.5 reduction'!D97),9))","v":0.99999229999999995},{"$f":"VALUE(FIXED(EXP(E$4*-1*'PM2.5 reduction'!E97),9))","v":0.99999625199999997},{"$f":"VALUE(FIXED(EXP(F$4*-1*'PM2.5 reduction'!F97),9))","v":0.99999776600000001},{"$f":"VALUE(FIXED(EXP(G$4*-1*'PM2.5 reduction'!G97),9))","v":0.99999859499999999},{"$f":"VALUE(FIXED(EXP(H$4*-1*'PM2.5 reduction'!H97),9))","v":0.99999634400000004},{"$f":"VALUE(FIXED(EXP(I$4*-1*'PM2.5 reduction'!I97),9))","v":0.99999810099999997},{"$f":"VALUE(FIXED(EXP(J$4*-1*'PM2.5 reduction'!J97),9))","v":0.99999521000000002},{"$f":"VALUE(FIXED(EXP(K$4*-1*'PM2.5 reduction'!K97),9))","v":0.99999495800000004},{"$f":"VALUE(FIXED(EXP(L$4*-1*'PM2.5 reduction'!L97),9))","v":0.99999874200000005},{"$f":"VALUE(FIXED(EXP(M$4*-1*'PM2.5 reduction'!M97),9))","v":0.99999874200000005},{"$f":"VALUE(FIXED(EXP(N$4*-1*'PM2.5 reduction'!N97),9))","v":0.999991827},{"$f":"VALUE(FIXED(EXP(O$4*-1*'PM2.5 reduction'!O97),9))","v":0.99999554800000001},{"$f":"VALUE(FIXED(EXP(P$4*-1*'PM2.5 reduction'!P97),9))","v":0.999993939},{"$f":"VALUE(FIXED(EXP(Q$4*-1*'PM2.5 reduction'!Q97),9))","v":0.99999701299999999},{"$f":"VALUE(FIXED(EXP(R$4*-1*'PM2.5 reduction'!R97),9))","v":0.99999454899999995},{"$f":"VALUE(FIXED(EXP(S$4*-1*'PM2.5 reduction'!S97),9))","v":0.99999404400000003},{"$f":"VALUE(FIXED(EXP(T$4*-1*'PM2.5 reduction'!T97),9))","v":0.999990834},{"$f":"VALUE(FIXED(EXP(U$4*-1*'PM2.5 reduction'!U97),9))","v":1},{"$f":"VALUE(FIXED(EXP(V$4*-1*'PM2.5 reduction'!V97),9))","v":0.999993515},{"$f":"VALUE(FIXED(EXP(W$4*-1*'PM2.5 reduction'!W97),9))","v":0.99999581199999998},{"$f":"VALUE(FIXED(EXP(X$4*-1*'PM2.5 reduction'!X97),9))","v":0.99999581199999998},{"$f":"VALUE(FIXED(EXP(Y$4*-1*'PM2.5 reduction'!Y97),9))","v":0.99999413999999998},{"$f":"VALUE(FIXED(EXP(Z$4*-1*'PM2.5 reduction'!Z97),9))","v":0.99999071100000003},{"$f":"VALUE(FIXED(EXP(AA$4*-1*'PM2.5 reduction'!AA97),9))","v":0.99999240899999997},{"$f":"VALUE(FIXED(EXP(AB$4*-1*'PM2.5 reduction'!AB97),9))","v":0.99999267700000005},{"$f":"VALUE(FIXED(EXP(AC$4*-1*'PM2.5 reduction'!AC97),9))","v":0.99999173799999996},{"$f":"VALUE(FIXED(EXP(AD$4*-1*'PM2.5 reduction'!AD97),9))","v":0.99999857800000003},{"$f":"VALUE(FIXED(EXP(AE$4*-1*'PM2.5 reduction'!AE97),9))","v":0.99999855999999998},{"$f":"VALUE(FIXED(EXP(AF$4*-1*'PM2.5 reduction'!AF97),9))","v":0.99999499800000002},{"$f":"VALUE(FIXED(EXP(AG$4*-1*'PM2.5 reduction'!AG97),9))","v":0.99999855999999998},{"$f":"VALUE(FIXED(EXP(AH$4*-1*'PM2.5 reduction'!AH97),9))","v":0.99999389400000005},{"$f":"VALUE(FIXED(EXP(AI$4*-1*'PM2.5 reduction'!AI97),9))","v":0.99999291700000004},{"$f":"VALUE(FIXED(EXP(AJ$4*-1*'PM2.5 reduction'!AJ97),9))","v":0.99999526100000002},{"$f":"VALUE(FIXED(EXP(AK$4*-1*'PM2.5 reduction'!AK97),9))","v":0.99999739600000004},{"$f":"VALUE(FIXED(EXP(AL$4*-1*'PM2.5 reduction'!AL97),9))","v":0.99999694800000005},{"$f":"VALUE(FIXED(EXP(AM$4*-1*'PM2.5 reduction'!AM97),9))","v":0.99999322000000002},{"$f":"VALUE(FIXED(EXP(AN$4*-1*'PM2.5 reduction'!AN97),9))","v":1},{"$f":"VALUE(FIXED(EXP(AO$4*-1*'PM2.5 reduction'!AO97),9))","v":1},{"$f":"VALUE(FIXED(EXP(AP$4*-1*'PM2.5 reduction'!AP97),9))","v":0.999993515},{"$f":"VALUE(FIXED(EXP(AQ$4*-1*'PM2.5 reduction'!AQ97),9))","v":0.99999353300000005},{"$f":"VALUE(FIXED(EXP(AR$4*-1*'PM2.5 reduction'!AR97),9))","v":0.99999329400000003},{"$f":"VALUE(FIXED(EXP(AS$4*-1*'PM2.5 reduction'!AS97),9))","v":0.99999810099999997},{"$f":"VALUE(FIXED(EXP(AT$4*-1*'PM2.5 reduction'!AT97),9))","v":1},{"$f":"VALUE(FIXED(EXP(AU$4*-1*'PM2.5 reduction'!AU97),9))","v":1},{"$f":"VALUE(FIXED(EXP(AV$4*-1*'PM2.5 reduction'!AV97),9))","v":0.99999647999999997},{"$f":"VALUE(FIXED(EXP(AW$4*-1*'PM2.5 reduction'!AW97),9))","v":0.99999484199999999},{"$f":"VALUE(FIXED(EXP(AX$4*-1*'PM2.5 reduction'!AX97),9))","v":0.99999613700000001},{"$f":"VALUE(FIXED(EXP(AY$4*-1*'PM2.5 reduction'!AY97),9))","v":0.99999420699999997},{"$f":"VALUE(FIXED(EXP(AZ$4*-1*'PM2.5 reduction'!AZ97),9))","v":0.99999231099999997},{"$f":"VALUE(FIXED(EXP(BA$4*-1*'PM2.5 reduction'!BA97),9))","v":0.99999397099999998},{"$f":"VALUE(FIXED(EXP(BB$4*-1*'PM2.5 reduction'!BB97),9))","v":0.99999552700000005},{"$f":"VALUE(FIXED(EXP(BC$4*-1*'PM2.5 reduction'!BC97),9))","v":1}]
["SIMD Q2","Female 0-4",{"$f":"VALUE(FIXED(EXP(C$4*-1*'PM2.5 reduction'!C98),9))","v":0.999990669},{"$f":"VALUE(FIXED(EXP(D$4*-1*'PM2.5 reduction'!D98),9))","v":0.99999154800000001},{"$f":"VALUE(FIXED(EXP(E$4*-1*'PM2.5 reduction'!E98),9))","v":0.99999731300000005},{"$f":"VALUE(FIXED(EXP(F$4*-1*'PM2.5 reduction'!F98),9))","v":0.99999794099999995},{"$f":"VALUE(FIXED(EXP(G$4*-1*'PM2.5 reduction'!G98),9))","v":0.99999900100000005},{"$f":"VALUE(FIXED(EXP(H$4*-1*'PM2.5 reduction'!H98),9))","v":0.99999733000000002},{"$f":"VALUE(FIXED(EXP(I$4*-1*'PM2.5 reduction'!I98),9))","v":0.999998108},{"$f":"VALUE(FIXED(EXP(J$4*-1*'PM2.5 reduction'!J98),9))","v":0.99999551499999995},{"$f":"VALUE(FIXED(EXP(K$4*-1*'PM2.5 reduction'!K98),9))","v":0.99999563000000002},{"$f":"VALUE(FIXED(EXP(L$4*-1*'PM2.5 reduction'!L98),9))","v":0.99999823099999996},{"$f":"VALUE(FIXED(EXP(M$4*-1*'PM2.5 reduction'!M98),9))","v":0.99999823099999996},{"$f":"VALUE(FIXED(EXP(N$4*-1*'PM2.5 reduction'!N98),9))","v":0.99999198899999997},{"$f":"VALUE(FIXED(EXP(O$4*-1*'PM2.5 reduction'!O98),9))","v":0.99999747400000005},{"$f":"VALUE(FIXED(EXP(P$4*-1*'PM2.5 reduction'!P98),9))","v":0.999992455},{"$f":"VALUE(FIXED(EXP(Q$4*-1*'PM2.5 reduction'!Q98),9))","v":0.99999584399999997},{"$f":"VALUE(FIXED(EXP(R$4*-1*'PM2.5 reduction'!R98),9))","v":0.99999442500000002},{"$f":"VALUE(FIXED(EXP(S$4*-1*'PM2.5 reduction'!S98),9))","v":0.99999380299999996},{"$f":"VALUE(FIXED(EXP(T$4*-1*'PM2.5 reduction'!T98),9))","v":0.999989723},{"$f":"VALUE(FIXED(EXP(U$4*-1*'PM2.5 reduction'!U98),9))","v":0.99999866900000001},{"$f":"VALUE(FIXED(EXP(V$4*-1*'PM2.5 reduction'!V98),9))","v":0.99999488999999997},{"$f":"VALUE(FIXED(EXP(W$4*-1*'PM2.5 reduction'!W98),9))","v":0.99999536700000002},{"$f":"VALUE(FIXED(EXP(X$4*-1*'PM2.5 reduction'!X98),9))","v":0.99999536700000002},{"$f":"VALUE(FIXED(EXP(Y$4*-1*'PM2.5 reduction'!Y98),9))","v":0.99999511200000002},{"$f":"VALUE(FIXED(EXP(Z$4*-1*'PM2.5 reduction'!Z98),9))","v":0.99999029100000003},{"$f":"VALUE(FIXED(EXP(AA$4*-1*'PM2.5 reduction'!AA98),9))","v":0.99999305299999997},{"$f":"VALUE(FIXED(EXP(AB$4*-1*'PM2.5 reduction'!AB98),9))","v":0.99999258199999996},{"$f":"VALUE(FIXED(EXP(AC$4*-1*'PM2.5 reduction'!AC98),9))","v":0.99999193399999997},{"$f":"VALUE(FIXED(EXP(AD$4*-1*'PM2.5 reduction'!AD98),9))","v":0.99999819400000001},{"$f":"VALUE(FIXED(EXP(AE$4*-1*'PM2.5 reduction'!AE98),9))","v":0.99999802800000004},{"$f":"VALUE(FIXED(EXP(AF$4*-1*'PM2.5 reduction'!AF98),9))","v":0.99999505300000002},{"$f":"VALUE(FIXED(EXP(AG$4*-1*'PM2.5 reduction'!AG98),9))","v":0.99999802800000004},{"$f":"VALUE(FIXED(EXP(AH$4*-1*'PM2.5 reduction'!AH98),9))","v":0.99999441700000002},{"$f":"VALUE(FIXED(EXP(AI$4*-1*'PM2.5 reduction'!AI98),9))","v":0.99999290900000004},{"$f":"VALUE(FIXED(EXP(AJ$4*-1*'PM2.5 reduction'!AJ98),9))","v":0.99999534499999998},{"$f":"VALUE(FIXED(EXP(AK$4*-1*'PM2.5 reduction'!AK98),9))","v":0.99999790399999999},{"$f":"VALUE(FIXED(EXP(AL$4*-1*'PM2.5 reduction'!AL98),9))","v":0.99999738800000004},{"$f":"VALUE(FIXED(EXP(AM$4*-1*'PM2.5 reduction'!AM98),9))","v":0.99999395700000004},{"$f":"VALUE(FIXED(EXP(AN$4*-1*'PM2.5 reduction'!AN98),9))","v":0.99999817700000004},{"$f":"VALUE(FIXED(EXP(AO$4*-1*'PM2.5 reduction'!AO98),9))","v":0.99999817700000004},{"$f":"VALUE(FIXED(EXP(AP$4*-1*'PM2.5 reduction'!AP98),9))","v":0.99999594000000003},{"$f":"VALUE(FIXED(EXP(AQ$4*-1*'PM2.5 reduction'!AQ98),9))","v":0.999994516},{"$f":"VALUE(FIXED(EXP(AR$4*-1*'PM2.5 reduction'!AR98),9))","v":0.99999401300000001},{"$f":"VALUE(FIXED(EXP(AS$4*-1*'PM2.5 reduction'!AS98),9))","v":0.999998108},{"$f":"VALUE(FIXED(EXP(AT$4*-1*'PM2.5 reduction'!AT98),9))","v":1},{"$f":"VALUE(FIXED(EXP(AU$4*-1*'PM2.5 reduction'!AU98),9))","v":1},{"$f":"VALUE(FIXED(EXP(AV$4*-1*'PM2.5 reduction'!AV98),9))","v":0.99999707999999998},{"$f":"VALUE(FIXED(EXP(AW$4*-1*'PM2.5 reduction'!AW98),9))","v":0.99999497599999998},{"$f":"VALUE(FIXED(EXP(AX$4*-1*'PM2.5 reduction'!AX98),9))","v":0.99999539900000001},{"$f":"VALUE(FIXED(EXP(AY$4*-1*'PM2.5 reduction'!AY98),9))","v":0.99999494700000002},{"$f":"VALUE(FIXED(EXP(AZ$4*-1*'PM2.5 reduction'!AZ98),9))","v":0.99999447399999997},{"$f":"VALUE(FIXED(EXP(BA$4*-1*'PM2.5 reduction'!BA98),9))","v":0.99999431400000005},{"$f":"VALUE(FIXED(EXP(BB$4*-1*'PM2.5 reduction'!BB98),9))","v":0.99999471900000003},{"$f":"VALUE(FIXED(EXP(BC$4*-1*'PM2.5 reduction'!BC98),9))","v":0.99999866900000001}]
[null,"Female 5-9",{"$f":"VALUE(FIXED(EXP(C$4*-1*'PM2.5 reduction'!C99),9))","v":0.99999088800000002},{"$f":"VALUE(FIXED(EXP(D$4*-1*'PM2.5 reduction'!D99),9))","v":0.99999203999999997},{"$f":"VALUE(FIXED(EXP(E$4*-1*'PM2.5 reduction'!E99),9))","v":0.99999750799999998},{"$f":"VALUE(FIXED(EXP(F$4*-1*'PM2.5 reduction'!F99),9))","v":0.99999790799999999},{"$f":"VALUE(FIXED(EXP(G$4*-1*'PM2.5 reduction'!G99),9))","v":0.999998999},{"$f":"VALUE(FIXED(EXP(H$4*-1*'PM2.5 reduction'!H99),9))","v":0.99999735599999995},{"$f":"VALUE(FIXED(EXP(I$4*-1*'PM2.5 reduction'!I99),9))","v":0.99999808400000001},{"$f":"VALUE(FIXED(EXP(J$4*-1*'PM2.5 reduction'!J99),9))","v":0.99999559599999999},{"$f":"VALUE(FIXED(EXP(K$4*-1*'PM2.5 reduction'!K99),9))","v":0.99999563499999999},{"$f":"VALUE(FIXED(EXP(L$4*-1*'PM2.5 reduction'!L99),9))","v":0.99999818600000001},{"$f":"VALUE(FIXED(EXP(M$4*-1*'PM2.5 reduction'!M99),9))","v":0.99999818600000001},{"$f":"VALUE(FIXED(EXP(N$4*-1*'PM2.5 reduction'!N99),9))","v":0.99999227800000001},{"$f":"VALUE(FIXED(EXP(O$4*-1*'PM2.5 reduction'!O99),9))","v":0.99999750300000001},{"$f":"VALUE(FIXED(EXP(P$4*-1*'PM2.5 reduction'!P99),9))","v":0.99999257500000005},{"$f":"VALUE(FIXED(EXP(Q$4*-1*'PM2.5 reduction'!Q99),9))","v":0.99999599900000002},{"$f":"VALUE(FIXED(EXP(R$4*-1*'PM2.5 reduction'!R99),9))","v":0.99999448000000002},{"$f":"VALUE(FIXED(EXP(S$4*-1*'PM2.5 reduction'!S99),9))","v":0.99999396699999998},{"$f":"VALUE(FIXED(EXP(T$4*-1*'PM2.5 reduction'!T99),9))","v":0.99999003200000003},{"$f":"VALUE(FIXED(EXP(U$4*-1*'PM2.5 reduction'!U99),9))","v":0.99999866900000001},{"$f":"VALUE(FIXED(EXP(V$4*-1*'PM2.5 reduction'!V99),9))","v":0.99999481499999998},{"$f":"VALUE(FIXED(EXP(W$4*-1*'PM2.5 reduction'!W99),9))","v":0.99999543899999999},{"$f":"VALUE(FIXED(EXP(X$4*-1*'PM2.5 reduction'!X99),9))","v":0.99999543899999999},{"$f":"VALUE(FIXED(EXP(Y$4*-1*'PM2.5 reduction'!Y99),9))","v":0.99999503700000003},{"$f":"VALUE(FIXED(EXP(Z$4*-1*'PM2.5 reduction'!Z99),9))","v":0.99999061199999995},{"$f":"VALUE(FIXED(EXP(AA$4*-1*'PM2.5 reduction'!AA99),9))","v":0.99999336299999997},{"$f":"VALUE(FIXED(EXP(AB$4*-1*'PM2.5 reduction'!AB99),9))","v":0.999993193},{"$f":"VALUE(FIXED(EXP(AC$4*-1*'PM2.5 reduction'!AC99),9))","v":0.99999239200000001},{"$f":"VALUE(FIXED(EXP(AD$4*-1*'PM2.5 reduction'!AD99),9))","v":0.99999838399999996},{"$f":"VALUE(FIXED(EXP(AE$4*-1*'PM2.5 reduction'!AE99),9))","v":0.99999823899999996},{"$f":"VALUE(FIXED(EXP(AF$4*-1*'PM2.5 reduction'!AF99),9))","v":0.99999511900000004},{"$f":"VALUE(FIXED(EXP(AG$4*-1*'PM2.5 reduction'!AG99),9))","v":0.99999823899999996},{"$f":"VALUE(FIXED(EXP(AH$4*-1*'PM2.5 reduction'!AH99),9))","v":0.99999443099999996},{"$f":"VALUE(FIXED(EXP(AI$4*-1*'PM2.5 reduction'!AI99),9))","v":0.99999319200000003},{"$f":"VALUE(FIXED(EXP(AJ$4*-1*'PM2.5 reduction'!AJ99),9))","v":0.99999545899999998},{"$f":"VALUE(FIXED(EXP(AK$4*-1*'PM2.5 reduction'!AK99),9))","v":0.99999792899999995},{"$f":"VALUE(FIXED(EXP(AL$4*-1*'PM2.5 reduction'!AL99),9))","v":0.99999746199999995},{"$f":"VALUE(FIXED(EXP(AM$4*-1*'PM2.5 reduction'!AM99),9))","v":0.99999393000000003},{"$f":"VALUE(FIXED(EXP(AN$4*-1*'PM2.5 reduction'!AN99),9))","v":0.99999820900000003},{"$f":"VALUE(FIXED(EXP(AO$4*-1*'PM2.5 reduction'!AO99),9))","v":0.99999820900000003},{"$f":"VALUE(FIXED(EXP(AP$4*-1*'PM2.5 reduction'!AP99),9))","v":0.99999627899999999},{"$f":"VALUE(FIXED(EXP(AQ$4*-1*'PM2.5 reduction'!AQ99),9))","v":0.99999450599999995},{"$f":"VALUE(FIXED(EXP(AR$4*-1*'PM2.5 reduction'!AR99),9))","v":0.99999428599999995},{"$f":"VALUE(FIXED(EXP(AS$4*-1*'PM2.5 reduction'!AS99),9))","v":0.99999808400000001},{"$f":"VALUE(FIXED(EXP(AT$4*-1*'PM2.5 reduction'!AT99),9))","v":1},{"$f":"VALUE(FIXED(EXP(AU$4*-1*'PM2.5 reduction'!AU99),9))","v":1},{"$f":"VALUE(FIXED(EXP(AV$4*-1*'PM2.5 reduction'!AV99),9))","v":0.99999702899999998},{"$f":"VALUE(FIXED(EXP(AW$4*-1*'PM2.5 reduction'!AW99),9))","v":0.99999506500000002},{"$f":"VALUE(FIXED(EXP(AX$4*-1*'PM2.5 reduction'!AX99),9))","v":0.99999555500000004},{"$f":"VALUE(FIXED(EXP(AY$4*-1*'PM2.5 reduction'!AY99),9))","v":0.99999513500000003},{"$f":"VALUE(FIXED(EXP(AZ$4*-1*'PM2.5 reduction'!AZ99),9))","v":0.99999479599999996},{"$f":"VALUE(FIXED(EXP(BA$4*-1*'PM2.5 reduction'!BA99),9))","v":0.99999440799999995},{"$f":"VALUE(FIXED(EXP(BB$4*-1*'PM2.5 reduction'!BB99),9))","v":0.99999489399999997},{"$f":"VALUE(FIXED(EXP(BC$4*-1*'PM2.5 reduction'!BC99),9))","v":0.99999866900000001}]
[null,"Female 10-15",{"$f":"VALUE(FIXED(EXP(C$4*-1*'PM2.5 reduction'!C100),9))","v":0.99999094899999996},{"$f":"VALUE(FIXED(EXP(D$4*-1*'PM2.5 reduction'!D100),9))","v":0.99999193600000003},{"$f":"VALUE(FIXED(EXP(E$4*-1*'PM2.5 reduction'!E100),9))","v":0.99999741099999995},{"$f":"VALUE(FIXED(EXP(F$4*-1*'PM2.5 reduction'!F100),9))","v":0.99999781200000004},{"$f":"VALUE(FIXED(EXP(G$4*-1*'PM2.5 reduction'!G100),9))","v":0.999999007},{"$f":"VALUE(FIXED(EXP(H$4*-1*'PM2.5 reduction'!H100),9))","v":0.99999739700000001},{"$f":"VALUE(FIXED(EXP(I$4*-1*'PM2.5 reduction'!I100),9))","v":0.99999812899999996},{"$f":"VALUE(FIXED(EXP(J$4*-1*'PM2.5 reduction'!J100),9))","v":0.99999564200000002},{"$f":"VALUE(FIXED(EXP(K$4*-1*'PM2.5 reduction'!K100),9))","v":0.99999565800000001},{"$f":"VALUE(FIXED(EXP(L$4*-1*'PM2.5 reduction'!L100),9))","v":0.99999828700000004},{"$f":"VALUE(FIXED(EXP(M$4*-1*'PM2.5 reduction'!M100),9))","v":0.99999828700000004},{"$f":"VALUE(FIXED(EXP(N$4*-1*'PM2.5 reduction'!N100),9))","v":0.99999236000000002},{"$f":"VALUE(FIXED(EXP(O$4*-1*'PM2.5 reduction'!O100),9))","v":0.99999750399999998},{"$f":"VALUE(FIXED(EXP(P$4*-1*'PM2.5 reduction'!P100),9))","v":0.99999252900000002},{"$f":"VALUE(FIXED(EXP(Q$4*-1*'PM2.5 reduction'!Q100),9))","v":0.99999614999999997},{"$f":"VALUE(FIXED(EXP(R$4*-1*'PM2.5 reduction'!R100),9))","v":0.99999445799999997},{"$f":"VALUE(FIXED(EXP(S$4*-1*'PM2.5 reduction'!S100),9))","v":0.99999422800000004},{"$f":"VALUE(FIXED(EXP(T$4*-1*'PM2.5 reduction'!T100),9))","v":0.99999006999999995},{"$f":"VALUE(FIXED(EXP(U$4*-1*'PM2.5 reduction'!U100),9))","v":0.99999866900000001},{"$f":"VALUE(FIXED(EXP(V$4*-1*'PM2.5 reduction'!V100),9))","v":0.99999502100000004},{"$f":"VALUE(FIXED(EXP(W$4*-1*'PM2.5 reduction'!W100),9))","v":0.99999541000000003},{"$f":"VALUE(FIXED(EXP(X$4*-1*'PM2.5 reduction'!X100),9))","v":0.99999541000000003},{"$f":"VALUE(FIXED(EXP(Y$4*-1*'PM2.5 reduction'!Y100),9))","v":0.99999521099999999},{"$f":"VALUE(FIXED(EXP(Z$4*-1*'PM2.5 reduction'!Z100),9))","v":0.99999085700000001},{"$f":"VALUE(FIXED(EXP(AA$4*-1*'PM2.5 reduction'!AA100),9))","v":0.999993452},{"$f":"VALUE(FIXED(EXP(AB$4*-1*'PM2.5 reduction'!AB100),9))","v":0.999992989},{"$f":"VALUE(FIXED(EXP(AC$4*-1*'PM2.5 reduction'!AC100),9))","v":0.99999255300000001},{"$f":"VALUE(FIXED(EXP(AD$4*-1*'PM2.5 reduction'!AD100),9))","v":0.99999832600000005},{"$f":"VALUE(FIXED(EXP(AE$4*-1*'PM2.5 reduction'!AE100),9))","v":0.99999816100000005},{"$f":"VALUE(FIXED(EXP(AF$4*-1*'PM2.5 reduction'!AF100),9))","v":0.99999536499999997},{"$f":"VALUE(FIXED(EXP(AG$4*-1*'PM2.5 reduction'!AG100),9))","v":0.99999816100000005},{"$f":"VALUE(FIXED(EXP(AH$4*-1*'PM2.5 reduction'!AH100),9))","v":0.99999443300000002},{"$f":"VALUE(FIXED(EXP(AI$4*-1*'PM2.5 reduction'!AI100),9))","v":0.99999348099999996},{"$f":"VALUE(FIXED(EXP(AJ$4*-1*'PM2.5 reduction'!AJ100),9))","v":0.999995458},{"$f":"VALUE(FIXED(EXP(AK$4*-1*'PM2.5 reduction'!AK100),9))","v":0.999997947},{"$f":"VALUE(FIXED(EXP(AL$4*-1*'PM2.5 reduction'!AL100),9))","v":0.99999745799999995},{"$f":"VALUE(FIXED(EXP(AM$4*-1*'PM2.5 reduction'!AM100),9))","v":0.99999391999999998},{"$f":"VALUE(FIXED(EXP(AN$4*-1*'PM2.5 reduction'!AN100),9))","v":0.99999822699999996},{"$f":"VALUE(FIXED(EXP(AO$4*-1*'PM2.5 reduction'!AO100),9))","v":0.99999822699999996},{"$f":"VALUE(FIXED(EXP(AP$4*-1*'PM2.5 reduction'!AP100),9))","v":0.99999646399999997},{"$f":"VALUE(FIXED(EXP(AQ$4*-1*'PM2.5 reduction'!AQ100),9))","v":0.99999451299999997},{"$f":"VALUE(FIXED(EXP(AR$4*-1*'PM2.5 reduction'!AR100),9))","v":0.99999441600000005},{"$f":"VALUE(FIXED(EXP(AS$4*-1*'PM2.5 reduction'!AS100),9))","v":0.99999812899999996},{"$f":"VALUE(FIXED(EXP(AT$4*-1*'PM2.5 reduction'!AT100),9))","v":1},{"$f":"VALUE(FIXED(EXP(AU$4*-1*'PM2.5 reduction'!AU100),9))","v":1},{"$f":"VALUE(FIXED(EXP(AV$4*-1*'PM2.5 reduction'!AV100),9))","v":0.99999715199999994},{"$f":"VALUE(FIXED(EXP(AW$4*-1*'PM2.5 reduction'!AW100),9))","v":0.99999513699999998},{"$f":"VALUE(FIXED(EXP(AX$4*-1*'PM2.5 reduction'!AX100),9))","v":0.999995623},{"$f":"VALUE(FIXED(EXP(AY$4*-1*'PM2.5 reduction'!AY100),9))","v":0.99999516499999996},{"$f":"VALUE(FIXED(EXP(AZ$4*-1*'PM2.5 reduction'!AZ100),9))","v":0.99999485700000001},{"$f":"VALUE(FIXED(EXP(BA$4*-1*'PM2.5 reduction'!BA100),9))","v":0.99999418299999998},{"$f":"VALUE(FIXED(EXP(BB$4*-1*'PM2.5 reduction'!BB100),9))","v":0.99999477800000003},{"$f":"VALUE(FIXED(EXP(BC$4*-1*'PM2.5 reduction'!BC100),9))","v":0.99999866900000001}]
[null,"Female 16-19",{"$f":"VALUE(FIXED(EXP(C$4*-1*'PM2.5 reduction'!C101),9))","v":0.99999047799999996},{"$f":"VALUE(FIXED(EXP(D$4*-1*'PM2.5 reduction'!D101),9))","v":0.99999152400000002},{"$f":"VALUE(FIXED(EXP(E$4*-1*'PM2.5 reduction'!E101),9))","v":0.99999753700000005},{"$f":"VALUE(FIXED(EXP(F$4*-1*'PM2.5 reduction'!F101),9))","v":0.99999789100000003},{"$f":"VALUE(FIXED(EXP(G$4*-1*'PM2.5 reduction'!G101),9))","v":0.99999899599999997},{"$f":"VALUE(FIXED(EXP(H$4*-1*'PM2.5 reduction'!H101),9))","v":0.99999738000000005},{"$f":"VALUE(FIXED(EXP(I$4*-1*'PM2.5 reduction'!I101),9))","v":0.99999803499999995},{"$f":"VALUE(FIXED(EXP(J$4*-1*'PM2.5 reduction'!J101),9))","v":0.99999543700000004},{"$f":"VALUE(FIXED(EXP(K$4*-1*'PM2.5 reduction'!K101),9))","v":0.99999559699999996},{"$f":"VALUE(FIXED(EXP(L$4*-1*'PM2.5 reduction'!L101),9))","v":0.99999824100000001},{"$f":"VALUE(FIXED(EXP(M$4*-1*'PM2.5 reduction'!M101),9))","v":0.99999824100000001},{"$f":"VALUE(FIXED(EXP(N$4*-1*'PM2.5 reduction'!N101),9))","v":0.99999091900000003},{"$f":"VALUE(FIXED(EXP(O$4*-1*'PM2.5 reduction'!O101),9))","v":0.99999760400000004},{"$f":"VALUE(FIXED(EXP(P$4*-1*'PM2.5 reduction'!P101),9))","v":0.99999261699999997},{"$f":"VALUE(FIXED(EXP(Q$4*-1*'PM2.5 reduction'!Q101),9))","v":0.99999605400000002},{"$f":"VALUE(FIXED(EXP(R$4*-1*'PM2.5 reduction'!R101),9))","v":0.99999441700000002},{"$f":"VALUE(FIXED(EXP(S$4*-1*'PM2.5 reduction'!S101),9))","v":0.99999305900000002},{"$f":"VALUE(FIXED(EXP(T$4*-1*'PM2.5 reduction'!T101),9))","v":0.99998771200000003},{"$f":"VALUE(FIXED(EXP(U$4*-1*'PM2.5 reduction'!U101),9))","v":0.99999866900000001},{"$f":"VALUE(FIXED(EXP(V$4*-1*'PM2.5 reduction'!V101),9))","v":0.99999499300000005},{"$f":"VALUE(FIXED(EXP(W$4*-1*'PM2.5 reduction'!W101),9))","v":0.99999543800000001},{"$f":"VALUE(FIXED(EXP(X$4*-1*'PM2.5 reduction'!X101),9))","v":0.99999543800000001},{"$f":"VALUE(FIXED(EXP(Y$4*-1*'PM2.5 reduction'!Y101),9))","v":0.99999515999999999},{"$f":"VALUE(FIXED(EXP(Z$4*-1*'PM2.5 reduction'!Z101),9))","v":0.99998982199999997},{"$f":"VALUE(FIXED(EXP(AA$4*-1*'PM2.5 reduction'!AA101),9))","v":0.999992985},{"$f":"VALUE(FIXED(EXP(AB$4*-1*'PM2.5 reduction'!AB101),9))","v":0.99999253200000005},{"$f":"VALUE(FIXED(EXP(AC$4*-1*'PM2.5 reduction'!AC101),9))","v":0.99999179100000002},{"$f":"VALUE(FIXED(EXP(AD$4*-1*'PM2.5 reduction'!AD101),9))","v":0.99999832799999999},{"$f":"VALUE(FIXED(EXP(AE$4*-1*'PM2.5 reduction'!AE101),9))","v":0.99999816600000002},{"$f":"VALUE(FIXED(EXP(AF$4*-1*'PM2.5 reduction'!AF101),9))","v":0.99999559000000005},{"$f":"VALUE(FIXED(EXP(AG$4*-1*'PM2.5 reduction'!AG101),9))","v":0.99999816600000002},{"$f":"VALUE(FIXED(EXP(AH$4*-1*'PM2.5 reduction'!AH101),9))","v":0.99999444400000004},{"$f":"VALUE(FIXED(EXP(AI$4*-1*'PM2.5 reduction'!AI101),9))","v":0.99999185899999998},{"$f":"VALUE(FIXED(EXP(AJ$4*-1*'PM2.5 reduction'!AJ101),9))","v":0.99999538300000002},{"$f":"VALUE(FIXED(EXP(AK$4*-1*'PM2.5 reduction'!AK101),9))","v":0.99999788499999998},{"$f":"VALUE(FIXED(EXP(AL$4*-1*'PM2.5 reduction'!AL101),9))","v":0.99999729699999995},{"$f":"VALUE(FIXED(EXP(AM$4*-1*'PM2.5 reduction'!AM101),9))","v":0.99999395800000002},{"$f":"VALUE(FIXED(EXP(AN$4*-1*'PM2.5 reduction'!AN101),9))","v":0.99999833500000002},{"$f":"VALUE(FIXED(EXP(AO$4*-1*'PM2.5 reduction'!AO101),9))","v":0.99999833500000002},{"$f":"VALUE(FIXED(EXP(AP$4*-1*'PM2.5 reduction'!AP101),9))","v":0.99999656400000003},{"$f":"VALUE(FIXED(EXP(AQ$4*-1*'PM2.5 reduction'!AQ101),9))","v":0.99999444000000004},{"$f":"VALUE(FIXED(EXP(AR$4*-1*'PM2.5 reduction'!AR101),9))","v":0.999993719},{"$f":"VALUE(FIXED(EXP(AS$4*-1*'PM2.5 reduction'!AS101),9))","v":0.99999803499999995},{"$f":"VALUE(FIXED(EXP(AT$4*-1*'PM2.5 reduction'!AT101),9))","v":1},{"$f":"VALUE(FIXED(EXP(AU$4*-1*'PM2.5 reduction'!AU101),9))","v":1},{"$f":"VALUE(FIXED(EXP(AV$4*-1*'PM2.5 reduction'!AV101),9))","v":0.99999713000000001},{"$f":"VALUE(FIXED(EXP(AW$4*-1*'PM2.5 reduction'!AW101),9))","v":0.99999509799999997},{"$f":"VALUE(FIXED(EXP(AX$4*-1*'PM2.5 reduction'!AX101),9))","v":0.99999527499999996},{"$f":"VALUE(FIXED(EXP(AY$4*-1*'PM2.5 reduction'!AY101),9))","v":0.99999466800000003},{"$f":"VALUE(FIXED(EXP(AZ$4*-1*'PM2.5 reduction'!AZ101),9))","v":0.99999384300000005},{"$f":"VALUE(FIXED(EXP(BA$4*-1*'PM2.5 reduction'!BA101),9))","v":0.99999426000000002},{"$f":"VALUE(FIXED(EXP(BB$4*-1*'PM2.5 reduction'!BB101),9))","v":0.99999474399999999},{"$f":"VALUE(FIXED(EXP(BC$4*-1*'PM2.5 reduction'!BC101),9))","v":0.99999866900000001}]
[null,"Female 20-24",{"$f":"VALUE(FIXED(EXP(C$4*-1*'PM2.5 reduction'!C102),9))","v":0.99998901699999998},{"$f":"VALUE(FIXED(EXP(D$4*-1*'PM2.5 reduction'!D102),9))","v":0.99998986199999995},{"$f":"VALUE(FIXED(EXP(E$4*-1*'PM2.5 reduction'!E102),9))","v":0.99999731300000005},{"$f":"VALUE(FIXED(EXP(F$4*-1*'PM2.5 reduction'!F102),9))","v":0.99999785900000004},{"$f":"VALUE(FIXED(EXP(G$4*-1*'PM2.5 reduction'!G102),9))","v":0.99999895800000005},{"$f":"VALUE(FIXED(EXP(H$4*-1*'PM2.5 reduction'!H102),9))","v":0.99999729100000001},{"$f":"VALUE(FIXED(EXP(I$4*-1*'PM2.5 reduction'!I102),9))","v":0.99999779899999997},{"$f":"VALUE(FIXED(EXP(J$4*-1*'PM2.5 reduction'!J102),9))","v":0.999994779},{"$f":"VALUE(FIXED(EXP(K$4*-1*'PM2.5 reduction'!K102),9))","v":0.99999554599999996},{"$f":"VALUE(FIXED(EXP(L$4*-1*'PM2.5 reduction'!L102),9))","v":0.99999820800000006},{"$f":"VALUE(FIXED(EXP(M$4*-1*'PM2.5 reduction'!M102),9))","v":0.99999820800000006},{"$f":"VALUE(FIXED(EXP(N$4*-1*'PM2.5 reduction'!N102),9))","v":0.99998946799999999},{"$f":"VALUE(FIXED(EXP(O$4*-1*'PM2.5 reduction'!O102),9))","v":0.99999738500000002},{"$f":"VALUE(FIXED(EXP(P$4*-1*'PM2.5 reduction'!P102),9))","v":0.99999228500000004},{"$f":"VALUE(FIXED(EXP(Q$4*-1*'PM2.5 reduction'!Q102),9))","v":0.99999575699999999},{"$f":"VALUE(FIXED(EXP(R$4*-1*'PM2.5 reduction'!R102),9))","v":0.999994261},{"$f":"VALUE(FIXED(EXP(S$4*-1*'PM2.5 reduction'!S102),9))","v":0.99999115999999999},{"$f":"VALUE(FIXED(EXP(T$4*-1*'PM2.5 reduction'!T102),9))","v":0.99998611199999998},{"$f":"VALUE(FIXED(EXP(U$4*-1*'PM2.5 reduction'!U102),9))","v":0.99999866900000001},{"$f":"VALUE(FIXED(EXP(V$4*-1*'PM2.5 reduction'!V102),9))","v":0.99999469100000005},{"$f":"VALUE(FIXED(EXP(W$4*-1*'PM2.5 reduction'!W102),9))","v":0.99999533299999999},{"$f":"VALUE(FIXED(EXP(X$4*-1*'PM2.5 reduction'!X102),9))","v":0.99999533299999999},{"$f":"VALUE(FIXED(EXP(Y$4*-1*'PM2.5 reduction'!Y102),9))","v":0.999994728},{"$f":"VALUE(FIXED(EXP(Z$4*-1*'PM2.5 reduction'!Z102),9))","v":0.99998798200000005},{"$f":"VALUE(FIXED(EXP(AA$4*-1*'PM2.5 reduction'!AA102),9))","v":0.99999195200000002},{"$f":"VALUE(FIXED(EXP(AB$4*-1*'PM2.5 reduction'!AB102),9))","v":0.99999112999999995},{"$f":"VALUE(FIXED(EXP(AC$4*-1*'PM2.5 reduction'!AC102),9))","v":0.99999021600000004},{"$f":"VALUE(FIXED(EXP(AD$4*-1*'PM2.5 reduction'!AD102),9))","v":0.999998155},{"$f":"VALUE(FIXED(EXP(AE$4*-1*'PM2.5 reduction'!AE102),9))","v":0.99999797899999998},{"$f":"VALUE(FIXED(EXP(AF$4*-1*'PM2.5 reduction'!AF102),9))","v":0.99999513100000004},{"$f":"VALUE(FIXED(EXP(AG$4*-1*'PM2.5 reduction'!AG102),9))","v":0.99999797899999998},{"$f":"VALUE(FIXED(EXP(AH$4*-1*'PM2.5 reduction'!AH102),9))","v":0.99999437099999999},{"$f":"VALUE(FIXED(EXP(AI$4*-1*'PM2.5 reduction'!AI102),9))","v":0.99998968300000002},{"$f":"VALUE(FIXED(EXP(AJ$4*-1*'PM2.5 reduction'!AJ102),9))","v":0.999995356},{"$f":"VALUE(FIXED(EXP(AK$4*-1*'PM2.5 reduction'!AK102),9))","v":0.99999777300000003},{"$f":"VALUE(FIXED(EXP(AL$4*-1*'PM2.5 reduction'!AL102),9))","v":0.99999737499999997},{"$f":"VALUE(FIXED(EXP(AM$4*-1*'PM2.5 reduction'!AM102),9))","v":0.99999388899999997},{"$f":"VALUE(FIXED(EXP(AN$4*-1*'PM2.5 reduction'!AN102),9))","v":0.99999833100000002},{"$f":"VALUE(FIXED(EXP(AO$4*-1*'PM2.5 reduction'!AO102),9))","v":0.99999833100000002},{"$f":"VALUE(FIXED(EXP(AP$4*-1*'PM2.5 reduction'!AP102),9))","v":0.99999596599999996},{"$f":"VALUE(FIXED(EXP(AQ$4*-1*'PM2.5 reduction'!AQ102),9))","v":0.99999423300000001},{"$f":"VALUE(FIXED(EXP(AR$4*-1*'PM2.5 reduction'!AR102),9))","v":0.99999238700000004},{"$f":"VALUE(FIXED(EXP(AS$4*-1*'PM2.5 reduction'!AS102),9))","v":0.99999779899999997},{"$f":"VALUE(FIXED(EXP(AT$4*-1*'PM2.5 reduction'!AT102),9))","v":1},{"$f":"VALUE(FIXED(EXP(AU$4*-1*'PM2.5 reduction'!AU102),9))","v":1},{"$f":"VALUE(FIXED(EXP(AV$4*-1*'PM2.5 reduction'!AV102),9))","v":0.99999708300000001},{"$f":"VALUE(FIXED(EXP(AW$4*-1*'PM2.5 reduction'!AW102),9))","v":0.99999491500000004},{"$f":"VALUE(FIXED(EXP(AX$4*-1*'PM2.5 reduction'!AX102),9))","v":0.99999439700000003},{"$f":"VALUE(FIXED(EXP(AY$4*-1*'PM2.5 reduction'!AY102),9))","v":0.99999350799999998},{"$f":"VALUE(FIXED(EXP(AZ$4*-1*'PM2.5 reduction'!AZ102),9))","v":0.999992188},{"$f":"VALUE(FIXED(EXP(BA$4*-1*'PM2.5 reduction'!BA102),9))","v":0.99999437700000005},{"$f":"VALUE(FIXED(EXP(BB$4*-1*'PM2.5 reduction'!BB102),9))","v":0.999994732},{"$f":"VALUE(FIXED(EXP(BC$4*-1*'PM2.5 reduction'!BC102),9))","v":0.99999866900000001}]
[null,"Female 25-29",{"$f":"VALUE(FIXED(EXP(C$4*-1*'PM2.5 reduction'!C103),9))","v":0.99998934500000003},{"$f":"VALUE(FIXED(EXP(D$4*-1*'PM2.5 reduction'!D103),9))","v":0.99999018500000003},{"$f":"VALUE(FIXED(EXP(E$4*-1*'PM2.5 reduction'!E103),9))","v":0.99999735700000003},{"$f":"VALUE(FIXED(EXP(F$4*-1*'PM2.5 reduction'!F103),9))","v":0.99999787299999998},{"$f":"VALUE(FIXED(EXP(G$4*-1*'PM2.5 reduction'!G103),9))","v":0.999998948},{"$f":"VALUE(FIXED(EXP(H$4*-1*'PM2.5 reduction'!H103),9))","v":0.99999720400000003},{"$f":"VALUE(FIXED(EXP(I$4*-1*'PM2.5 reduction'!I103),9))","v":0.99999788300000003},{"$f":"VALUE(FIXED(EXP(J$4*-1*'PM2.5 reduction'!J103),9))","v":0.999995513},{"$f":"VALUE(FIXED(EXP(K$4*-1*'PM2.5 reduction'!K103),9))","v":0.99999573600000002},{"$f":"VALUE(FIXED(EXP(L$4*-1*'PM2.5 reduction'!L103),9))","v":0.99999811999999999},{"$f":"VALUE(FIXED(EXP(M$4*-1*'PM2.5 reduction'!M103),9))","v":0.99999811999999999},{"$f":"VALUE(FIXED(EXP(N$4*-1*'PM2.5 reduction'!N103),9))","v":0.99999116399999999},{"$f":"VALUE(FIXED(EXP(O$4*-1*'PM2.5 reduction'!O103),9))","v":0.999997354},{"$f":"VALUE(FIXED(EXP(P$4*-1*'PM2.5 reduction'!P103),9))","v":0.99999259799999995},{"$f":"VALUE(FIXED(EXP(Q$4*-1*'PM2.5 reduction'!Q103),9))","v":0.99999580399999999},{"$f":"VALUE(FIXED(EXP(R$4*-1*'PM2.5 reduction'!R103),9))","v":0.99999439800000001},{"$f":"VALUE(FIXED(EXP(S$4*-1*'PM2.5 reduction'!S103),9))","v":0.99999191499999995},{"$f":"VALUE(FIXED(EXP(T$4*-1*'PM2.5 reduction'!T103),9))","v":0.99998785300000004},{"$f":"VALUE(FIXED(EXP(U$4*-1*'PM2.5 reduction'!U103),9))","v":0.99999866900000001},{"$f":"VALUE(FIXED(EXP(V$4*-1*'PM2.5 reduction'!V103),9))","v":0.99999478100000005},{"$f":"VALUE(FIXED(EXP(W$4*-1*'PM2.5 reduction'!W103),9))","v":0.99999530000000003},{"$f":"VALUE(FIXED(EXP(X$4*-1*'PM2.5 reduction'!X103),9))","v":0.99999530000000003},{"$f":"VALUE(FIXED(EXP(Y$4*-1*'PM2.5 reduction'!Y103),9))","v":0.99999506500000002},{"$f":"VALUE(FIXED(EXP(Z$4*-1*'PM2.5 reduction'!Z103),9))","v":0.99998946099999997},{"$f":"VALUE(FIXED(EXP(AA$4*-1*'PM2.5 reduction'!AA103),9))","v":0.99999221000000005},{"$f":"VALUE(FIXED(EXP(AB$4*-1*'PM2.5 reduction'!AB103),9))","v":0.99999112099999998},{"$f":"VALUE(FIXED(EXP(AC$4*-1*'PM2.5 reduction'!AC103),9))","v":0.99999095199999999},{"$f":"VALUE(FIXED(EXP(AD$4*-1*'PM2.5 reduction'!AD103),9))","v":0.99999810600000005},{"$f":"VALUE(FIXED(EXP(AE$4*-1*'PM2.5 reduction'!AE103),9))","v":0.99999794900000005},{"$f":"VALUE(FIXED(EXP(AF$4*-1*'PM2.5 reduction'!AF103),9))","v":0.99999513500000003},{"$f":"VALUE(FIXED(EXP(AG$4*-1*'PM2.5 reduction'!AG103),9))","v":0.99999794900000005},{"$f":"VALUE(FIXED(EXP(AH$4*-1*'PM2.5 reduction'!AH103),9))","v":0.999994261},{"$f":"VALUE(FIXED(EXP(AI$4*-1*'PM2.5 reduction'!AI103),9))","v":0.99999070499999998},{"$f":"VALUE(FIXED(EXP(AJ$4*-1*'PM2.5 reduction'!AJ103),9))","v":0.999995368},{"$f":"VALUE(FIXED(EXP(AK$4*-1*'PM2.5 reduction'!AK103),9))","v":0.99999769699999996},{"$f":"VALUE(FIXED(EXP(AL$4*-1*'PM2.5 reduction'!AL103),9))","v":0.99999726200000005},{"$f":"VALUE(FIXED(EXP(AM$4*-1*'PM2.5 reduction'!AM103),9))","v":0.99999380800000004},{"$f":"VALUE(FIXED(EXP(AN$4*-1*'PM2.5 reduction'!AN103),9))","v":0.99999830199999995},{"$f":"VALUE(FIXED(EXP(AO$4*-1*'PM2.5 reduction'!AO103),9))","v":0.99999830199999995},{"$f":"VALUE(FIXED(EXP(AP$4*-1*'PM2.5 reduction'!AP103),9))","v":0.99999616599999996},{"$f":"VALUE(FIXED(EXP(AQ$4*-1*'PM2.5 reduction'!AQ103),9))","v":0.999994312},{"$f":"VALUE(FIXED(EXP(AR$4*-1*'PM2.5 reduction'!AR103),9))","v":0.99999280499999998},{"$f":"VALUE(FIXED(EXP(AS$4*-1*'PM2.5 reduction'!AS103),9))","v":0.99999788300000003},{"$f":"VALUE(FIXED(EXP(AT$4*-1*'PM2.5 reduction'!AT103),9))","v":1},{"$f":"VALUE(FIXED(EXP(AU$4*-1*'PM2.5 reduction'!AU103),9))","v":1},{"$f":"VALUE(FIXED(EXP(AV$4*-1*'PM2.5 reduction'!AV103),9))","v":0.99999693599999995},{"$f":"VALUE(FIXED(EXP(AW$4*-1*'PM2.5 reduction'!AW103),9))","v":0.99999479099999999},{"$f":"VALUE(FIXED(EXP(AX$4*-1*'PM2.5 reduction'!AX103),9))","v":0.999995356},{"$f":"VALUE(FIXED(EXP(AY$4*-1*'PM2.5 reduction'!AY103),9))","v":0.99999433400000004},{"$f":"VALUE(FIXED(EXP(AZ$4*-1*'PM2.5 reduction'!AZ103),9))","v":0.99999355099999998},{"$f":"VALUE(FIXED(EXP(BA$4*-1*'PM2.5 reduction'!BA103),9))","v":0.99999429900000003},{"$f":"VALUE(FIXED(EXP(BB$4*-1*'PM2.5 reduction'!BB103),9))","v":0.99999474799999999},{"$f":"VALUE(FIXED(EXP(BC$4*-1*'PM2.5 reduction'!BC103),9))","v":0.99999866900000001}]
[null,"Female 30-34",{"$f":"VALUE(FIXED(EXP(C$4*-1*'PM2.5 reduction'!C104),9))","v":0.999990135},{"$f":"VALUE(FIXED(EXP(D$4*-1*'PM2.5 reduction'!D104),9))","v":0.99999086999999998},{"$f":"VALUE(FIXED(EXP(E$4*-1*'PM2.5 reduction'!E104),9))","v":0.99999717200000005},{"$f":"VALUE(FIXED(EXP(F$4*-1*'PM2.5 reduction'!F104),9))","v":0.99999780999999999},{"$f":"VALUE(FIXED(EXP(G$4*-1*'PM2.5 reduction'!G104),9))","v":0.99999897400000004},{"$f":"VALUE(FIXED(EXP(H$4*-1*'PM2.5 reduction'!H104),9))","v":0.99999715700000003},{"$f":"VALUE(FIXED(EXP(I$4*-1*'PM2.5 reduction'!I104),9))","v":0.99999797199999996},{"$f":"VALUE(FIXED(EXP(J$4*-1*'PM2.5 reduction'!J104),9))","v":0.99999546299999997},{"$f":"VALUE(FIXED(EXP(K$4*-1*'PM2.5 reduction'!K104),9))","v":0.99999561800000003},{"$f":"VALUE(FIXED(EXP(L$4*-1*'PM2.5 reduction'!L104),9))","v":0.99999824299999995},{"$f":"VALUE(FIXED(EXP(M$4*-1*'PM2.5 reduction'!M104),9))","v":0.99999824299999995},{"$f":"VALUE(FIXED(EXP(N$4*-1*'PM2.5 reduction'!N104),9))","v":0.99999181100000001},{"$f":"VALUE(FIXED(EXP(O$4*-1*'PM2.5 reduction'!O104),9))","v":0.99999718299999996},{"$f":"VALUE(FIXED(EXP(P$4*-1*'PM2.5 reduction'!P104),9))","v":0.99999238599999996},{"$f":"VALUE(FIXED(EXP(Q$4*-1*'PM2.5 reduction'!Q104),9))","v":0.999995941},{"$f":"VALUE(FIXED(EXP(R$4*-1*'PM2.5 reduction'!R104),9))","v":0.99999447200000002},{"$f":"VALUE(FIXED(EXP(S$4*-1*'PM2.5 reduction'!S104),9))","v":0.99999244300000001},{"$f":"VALUE(FIXED(EXP(T$4*-1*'PM2.5 reduction'!T104),9))","v":0.99998828299999998},{"$f":"VALUE(FIXED(EXP(U$4*-1*'PM2.5 reduction'!U104),9))","v":0.99999866900000001},{"$f":"VALUE(FIXED(EXP(V$4*-1*'PM2.5 reduction'!V104),9))","v":0.99999470199999996},{"$f":"VALUE(FIXED(EXP(W$4*-1*'PM2.5 reduction'!W104),9))","v":0.99999540099999995},{"$f":"VALUE(FIXED(EXP(X$4*-1*'PM2.5 reduction'!X104),9))","v":0.99999540099999995},{"$f":"VALUE(FIXED(EXP(Y$4*-1*'PM2.5 reduction'!Y104),9))","v":0.99999494700000002},{"$f":"VALUE(FIXED(EXP(Z$4*-1*'PM2.5 reduction'!Z104),9))","v":0.99998975700000003},{"$f":"VALUE(FIXED(EXP(AA$4*-1*'PM2.5 reduction'!AA104),9))","v":0.99999257900000005},{"$f":"VALUE(FIXED(EXP(AB$4*-1*'PM2.5 reduction'!AB104),9))","v":0.99999190000000004},{"$f":"VALUE(FIXED(EXP(AC$4*-1*'PM2.5 reduction'!AC104),9))","v":0.99999132199999996},{"$f":"VALUE(FIXED(EXP(AD$4*-1*'PM2.5 reduction'!AD104),9))","v":0.99999822199999999},{"$f":"VALUE(FIXED(EXP(AE$4*-1*'PM2.5 reduction'!AE104),9))","v":0.99999807900000004},{"$f":"VALUE(FIXED(EXP(AF$4*-1*'PM2.5 reduction'!AF104),9))","v":0.99999511600000002},{"$f":"VALUE(FIXED(EXP(AG$4*-1*'PM2.5 reduction'!AG104),9))","v":0.99999807900000004},{"$f":"VALUE(FIXED(EXP(AH$4*-1*'PM2.5 reduction'!AH104),9))","v":0.99999427399999996},{"$f":"VALUE(FIXED(EXP(AI$4*-1*'PM2.5 reduction'!AI104),9))","v":0.99999131600000002},{"$f":"VALUE(FIXED(EXP(AJ$4*-1*'PM2.5 reduction'!AJ104),9))","v":0.999995521},{"$f":"VALUE(FIXED(EXP(AK$4*-1*'PM2.5 reduction'!AK104),9))","v":0.99999772899999995},{"$f":"VALUE(FIXED(EXP(AL$4*-1*'PM2.5 reduction'!AL104),9))","v":0.99999731400000003},{"$f":"VALUE(FIXED(EXP(AM$4*-1*'PM2.5 reduction'!AM104),9))","v":0.99999388700000003},{"$f":"VALUE(FIXED(EXP(AN$4*-1*'PM2.5 reduction'!AN104),9))","v":0.99999830499999998},{"$f":"VALUE(FIXED(EXP(AO$4*-1*'PM2.5 reduction'!AO104),9))","v":0.99999830499999998},{"$f":"VALUE(FIXED(EXP(AP$4*-1*'PM2.5 reduction'!AP104),9))","v":0.99999607999999995},{"$f":"VALUE(FIXED(EXP(AQ$4*-1*'PM2.5 reduction'!AQ104),9))","v":0.99999431100000002},{"$f":"VALUE(FIXED(EXP(AR$4*-1*'PM2.5 reduction'!AR104),9))","v":0.99999323500000004},{"$f":"VALUE(FIXED(EXP(AS$4*-1*'PM2.5 reduction'!AS104),9))","v":0.99999797199999996},{"$f":"VALUE(FIXED(EXP(AT$4*-1*'PM2.5 reduction'!AT104),9))","v":1},{"$f":"VALUE(FIXED(EXP(AU$4*-1*'PM2.5 reduction'!AU104),9))","v":1},{"$f":"VALUE(FIXED(EXP(AV$4*-1*'PM2.5 reduction'!AV104),9))","v":0.99999691899999998},{"$f":"VALUE(FIXED(EXP(AW$4*-1*'PM2.5 reduction'!AW104),9))","v":0.99999473699999997},{"$f":"VALUE(FIXED(EXP(AX$4*-1*'PM2.5 reduction'!AX104),9))","v":0.99999532199999996},{"$f":"VALUE(FIXED(EXP(AY$4*-1*'PM2.5 reduction'!AY104),9))","v":0.99999481499999998},{"$f":"VALUE(FIXED(EXP(AZ$4*-1*'PM2.5 reduction'!AZ104),9))","v":0.99999428000000001},{"$f":"VALUE(FIXED(EXP(BA$4*-1*'PM2.5 reduction'!BA104),9))","v":0.99999437599999996},{"$f":"VALUE(FIXED(EXP(BB$4*-1*'PM2.5 reduction'!BB104),9))","v":0.99999471200000001},{"$f":"VALUE(FIXED(EXP(BC$4*-1*'PM2.5 reduction'!BC104),9))","v":0.99999866900000001}]
[null,"Female 35-39",{"$f":"VALUE(FIXED(EXP(C$4*-1*'PM2.5 reduction'!C105),9))","v":0.99999018900000003},{"$f":"VALUE(FIXED(EXP(D$4*-1*'PM2.5 reduction'!D105),9))","v":0.99999127399999999},{"$f":"VALUE(FIXED(EXP(E$4*-1*'PM2.5 reduction'!E105),9))","v":0.99999747999999999},{"$f":"VALUE(FIXED(EXP(F$4*-1*'PM2.5 reduction'!F105),9))","v":0.99999788499999998},{"$f":"VALUE(FIXED(EXP(G$4*-1*'PM2.5 reduction'!G105),9))","v":0.99999896399999999},{"$f":"VALUE(FIXED(EXP(H$4*-1*'PM2.5 reduction'!H105),9))","v":0.999997252},{"$f":"VALUE(FIXED(EXP(I$4*-1*'PM2.5 reduction'!I105),9))","v":0.999997998},{"$f":"VALUE(FIXED(EXP(J$4*-1*'PM2.5 reduction'!J105),9))","v":0.99999558},{"$f":"VALUE(FIXED(EXP(K$4*-1*'PM2.5 reduction'!K105),9))","v":0.999995733},{"$f":"VALUE(FIXED(EXP(L$4*-1*'PM2.5 reduction'!L105),9))","v":0.99999826599999997},{"$f":"VALUE(FIXED(EXP(M$4*-1*'PM2.5 reduction'!M105),9))","v":0.99999826599999997},{"$f":"VALUE(FIXED(EXP(N$4*-1*'PM2.5 reduction'!N105),9))","v":0.99999190400000004},{"$f":"VALUE(FIXED(EXP(O$4*-1*'PM2.5 reduction'!O105),9))","v":0.99999728300000001},{"$f":"VALUE(FIXED(EXP(P$4*-1*'PM2.5 reduction'!P105),9))","v":0.99999241100000003},{"$f":"VALUE(FIXED(EXP(Q$4*-1*'PM2.5 reduction'!Q105),9))","v":0.99999597600000001},{"$f":"VALUE(FIXED(EXP(R$4*-1*'PM2.5 reduction'!R105),9))","v":0.99999418500000004},{"$f":"VALUE(FIXED(EXP(S$4*-1*'PM2.5 reduction'!S105),9))","v":0.99999312600000001},{"$f":"VALUE(FIXED(EXP(T$4*-1*'PM2.5 reduction'!T105),9))","v":0.99998869999999995},{"$f":"VALUE(FIXED(EXP(U$4*-1*'PM2.5 reduction'!U105),9))","v":0.99999866900000001},{"$f":"VALUE(FIXED(EXP(V$4*-1*'PM2.5 reduction'!V105),9))","v":0.99999481000000001},{"$f":"VALUE(FIXED(EXP(W$4*-1*'PM2.5 reduction'!W105),9))","v":0.999995415},{"$f":"VALUE(FIXED(EXP(X$4*-1*'PM2.5 reduction'!X105),9))","v":0.999995415},{"$f":"VALUE(FIXED(EXP(Y$4*-1*'PM2.5 reduction'!Y105),9))","v":0.99999506299999996},{"$f":"VALUE(FIXED(EXP(Z$4*-1*'PM2.5 reduction'!Z105),9))","v":0.99999012899999995},{"$f":"VALUE(FIXED(EXP(AA$4*-1*'PM2.5 reduction'!AA105),9))","v":0.99999284200000005},{"$f":"VALUE(FIXED(EXP(AB$4*-1*'PM2.5 reduction'!AB105),9))","v":0.99999233099999996},{"$f":"VALUE(FIXED(EXP(AC$4*-1*'PM2.5 reduction'!AC105),9))","v":0.99999167499999997},{"$f":"VALUE(FIXED(EXP(AD$4*-1*'PM2.5 reduction'!AD105),9))","v":0.99999818100000004},{"$f":"VALUE(FIXED(EXP(AE$4*-1*'PM2.5 reduction'!AE105),9))","v":0.99999802199999999},{"$f":"VALUE(FIXED(EXP(AF$4*-1*'PM2.5 reduction'!AF105),9))","v":0.99999514499999997},{"$f":"VALUE(FIXED(EXP(AG$4*-1*'PM2.5 reduction'!AG105),9))","v":0.99999802199999999},{"$f":"VALUE(FIXED(EXP(AH$4*-1*'PM2.5 reduction'!AH105),9))","v":0.99999431100000002},{"$f":"VALUE(FIXED(EXP(AI$4*-1*'PM2.5 reduction'!AI105),9))","v":0.99999207400000001},{"$f":"VALUE(FIXED(EXP(AJ$4*-1*'PM2.5 reduction'!AJ105),9))","v":0.99999533299999999},{"$f":"VALUE(FIXED(EXP(AK$4*-1*'PM2.5 reduction'!AK105),9))","v":0.99999792399999998},{"$f":"VALUE(FIXED(EXP(AL$4*-1*'PM2.5 reduction'!AL105),9))","v":0.99999735300000003},{"$f":"VALUE(FIXED(EXP(AM$4*-1*'PM2.5 reduction'!AM105),9))","v":0.99999388300000003},{"$f":"VALUE(FIXED(EXP(AN$4*-1*'PM2.5 reduction'!AN105),9))","v":0.99999823799999998},{"$f":"VALUE(FIXED(EXP(AO$4*-1*'PM2.5 reduction'!AO105),9))","v":0.99999823799999998},{"$f":"VALUE(FIXED(EXP(AP$4*-1*'PM2.5 reduction'!AP105),9))","v":0.99999619399999995},{"$f":"VALUE(FIXED(EXP(AQ$4*-1*'PM2.5 reduction'!AQ105),9))","v":0.99999430099999997},{"$f":"VALUE(FIXED(EXP(AR$4*-1*'PM2.5 reduction'!AR105),9))","v":0.99999366199999995},{"$f":"VALUE(FIXED(EXP(AS$4*-1*'PM2.5 reduction'!AS105),9))","v":0.999997998},{"$f":"VALUE(FIXED(EXP(AT$4*-1*'PM2.5 reduction'!AT105),9))","v":1},{"$f":"VALUE(FIXED(EXP(AU$4*-1*'PM2.5 reduction'!AU105),9))","v":1},{"$f":"VALUE(FIXED(EXP(AV$4*-1*'PM2.5 reduction'!AV105),9))","v":0.999997091},{"$f":"VALUE(FIXED(EXP(AW$4*-1*'PM2.5 reduction'!AW105),9))","v":0.99999484400000005},{"$f":"VALUE(FIXED(EXP(AX$4*-1*'PM2.5 reduction'!AX105),9))","v":0.99999543700000004},{"$f":"VALUE(FIXED(EXP(AY$4*-1*'PM2.5 reduction'!AY105),9))","v":0.999994932},{"$f":"VALUE(FIXED(EXP(AZ$4*-1*'PM2.5 reduction'!AZ105),9))","v":0.99999438799999996},{"$f":"VALUE(FIXED(EXP(BA$4*-1*'PM2.5 reduction'!BA105),9))","v":0.99999410899999996},{"$f":"VALUE(FIXED(EXP(BB$4*-1*'PM2.5 reduction'!BB105),9))","v":0.99999475400000004},{"$f":"VALUE(FIXED(EXP(BC$4*-1*'PM2.5 reduction'!BC105),9))","v":0.99999866900000001}]
[null,"Female 40-44",{"$f":"VALUE(FIXED(EXP(C$4*-1*'PM2.5 reduction'!C106),9))","v":0.99999045099999995},{"$f":"VALUE(FIXED(EXP(D$4*-1*'PM2.5 reduction'!D106),9))","v":0.99999143199999996},{"$f":"VALUE(FIXED(EXP(E$4*-1*'PM2.5 reduction'!E106),9))","v":0.999997409},{"$f":"VALUE(FIXED(EXP(F$4*-1*'PM2.5 reduction'!F106),9))","v":0.99999779600000005},{"$f":"VALUE(FIXED(EXP(G$4*-1*'PM2.5 reduction'!G106),9))","v":0.99999896899999996},{"$f":"VALUE(FIXED(EXP(H$4*-1*'PM2.5 reduction'!H106),9))","v":0.99999727599999999},{"$f":"VALUE(FIXED(EXP(I$4*-1*'PM2.5 reduction'!I106),9))","v":0.99999801200000005},{"$f":"VALUE(FIXED(EXP(J$4*-1*'PM2.5 reduction'!J106),9))","v":0.99999557299999997},{"$f":"VALUE(FIXED(EXP(K$4*-1*'PM2.5 reduction'!K106),9))","v":0.999995627},{"$f":"VALUE(FIXED(EXP(L$4*-1*'PM2.5 reduction'!L106),9))","v":0.99999817700000004},{"$f":"VALUE(FIXED(EXP(M$4*-1*'PM2.5 reduction'!M106),9))","v":0.99999817700000004},{"$f":"VALUE(FIXED(EXP(N$4*-1*'PM2.5 reduction'!N106),9))","v":0.99999224099999995},{"$f":"VALUE(FIXED(EXP(O$4*-1*'PM2.5 reduction'!O106),9))","v":0.999997413},{"$f":"VALUE(FIXED(EXP(P$4*-1*'PM2.5 reduction'!P106),9))","v":0.99999232500000002},{"$f":"VALUE(FIXED(EXP(Q$4*-1*'PM2.5 reduction'!Q106),9))","v":0.99999607499999998},{"$f":"VALUE(FIXED(EXP(R$4*-1*'PM2.5 reduction'!R106),9))","v":0.99999426300000005},{"$f":"VALUE(FIXED(EXP(S$4*-1*'PM2.5 reduction'!S106),9))","v":0.99999349800000004},{"$f":"VALUE(FIXED(EXP(T$4*-1*'PM2.5 reduction'!T106),9))","v":0.99998909400000002},{"$f":"VALUE(FIXED(EXP(U$4*-1*'PM2.5 reduction'!U106),9))","v":0.99999866900000001},{"$f":"VALUE(FIXED(EXP(V$4*-1*'PM2.5 reduction'!V106),9))","v":0.99999484000000005},{"$f":"VALUE(FIXED(EXP(W$4*-1*'PM2.5 reduction'!W106),9))","v":0.99999539699999995},{"$f":"VALUE(FIXED(EXP(X$4*-1*'PM2.5 reduction'!X106),9))","v":0.99999539699999995},{"$f":"VALUE(FIXED(EXP(Y$4*-1*'PM2.5 reduction'!Y106),9))","v":0.99999508400000003},{"$f":"VALUE(FIXED(EXP(Z$4*-1*'PM2.5 reduction'!Z106),9))","v":0.99999035000000003},{"$f":"VALUE(FIXED(EXP(AA$4*-1*'PM2.5 reduction'!AA106),9))","v":0.99999313999999995},{"$f":"VALUE(FIXED(EXP(AB$4*-1*'PM2.5 reduction'!AB106),9))","v":0.99999256800000003},{"$f":"VALUE(FIXED(EXP(AC$4*-1*'PM2.5 reduction'!AC106),9))","v":0.99999207199999995},{"$f":"VALUE(FIXED(EXP(AD$4*-1*'PM2.5 reduction'!AD106),9))","v":0.99999820699999997},{"$f":"VALUE(FIXED(EXP(AE$4*-1*'PM2.5 reduction'!AE106),9))","v":0.99999803499999995},{"$f":"VALUE(FIXED(EXP(AF$4*-1*'PM2.5 reduction'!AF106),9))","v":0.99999513100000004},{"$f":"VALUE(FIXED(EXP(AG$4*-1*'PM2.5 reduction'!AG106),9))","v":0.99999803499999995},{"$f":"VALUE(FIXED(EXP(AH$4*-1*'PM2.5 reduction'!AH106),9))","v":0.99999438100000004},{"$f":"VALUE(FIXED(EXP(AI$4*-1*'PM2.5 reduction'!AI106),9))","v":0.99999247800000002},{"$f":"VALUE(FIXED(EXP(AJ$4*-1*'PM2.5 reduction'!AJ106),9))","v":0.999995301},{"$f":"VALUE(FIXED(EXP(AK$4*-1*'PM2.5 reduction'!AK106),9))","v":0.99999791800000004},{"$f":"VALUE(FIXED(EXP(AL$4*-1*'PM2.5 reduction'!AL106),9))","v":0.99999737700000002},{"$f":"VALUE(FIXED(EXP(AM$4*-1*'PM2.5 reduction'!AM106),9))","v":0.99999393800000003},{"$f":"VALUE(FIXED(EXP(AN$4*-1*'PM2.5 reduction'!AN106),9))","v":0.99999826800000002},{"$f":"VALUE(FIXED(EXP(AO$4*-1*'PM2.5 reduction'!AO106),9))","v":0.99999826800000002},{"$f":"VALUE(FIXED(EXP(AP$4*-1*'PM2.5 reduction'!AP106),9))","v":0.99999623999999998},{"$f":"VALUE(FIXED(EXP(AQ$4*-1*'PM2.5 reduction'!AQ106),9))","v":0.99999439700000003},{"$f":"VALUE(FIXED(EXP(AR$4*-1*'PM2.5 reduction'!AR106),9))","v":0.99999399},{"$f":"VALUE(FIXED(EXP(AS$4*-1*'PM2.5 reduction'!AS106),9))","v":0.99999801200000005},{"$f":"VALUE(FIXED(EXP(AT$4*-1*'PM2.5 reduction'!AT106),9))","v":1},{"$f":"VALUE(FIXED(EXP(AU$4*-1*'PM2.5 reduction'!AU106),9))","v":1},{"$f":"VALUE(FIXED(EXP(AV$4*-1*'PM2.5 reduction'!AV106),9))","v":0.99999693099999998},{"$f":"VALUE(FIXED(EXP(AW$4*-1*'PM2.5 reduction'!AW106),9))","v":0.99999495000000005},{"$f":"VALUE(FIXED(EXP(AX$4*-1*'PM2.5 reduction'!AX106),9))","v":0.999995509},{"$f":"VALUE(FIXED(EXP(AY$4*-1*'PM2.5 reduction'!AY106),9))","v":0.999995101},{"$f":"VALUE(FIXED(EXP(AZ$4*-1*'PM2.5 reduction'!AZ106),9))","v":0.999994728},{"$f":"VALUE(FIXED(EXP(BA$4*-1*'PM2.5 reduction'!BA106),9))","v":0.99999433299999996},{"$f":"VALUE(FIXED(EXP(BB$4*-1*'PM2.5 reduction'!BB106),9))","v":0.999994779},{"$f":"VALUE(FIXED(EXP(BC$4*-1*'PM2.5 reduction'!BC106),9))","v":0.99999866900000001}]
[null,"Female 45-49",{"$f":"VALUE(FIXED(EXP(C$4*-1*'PM2.5 reduction'!C107),9))","v":0.99999061300000003},{"$f":"VALUE(FIXED(EXP(D$4*-1*'PM2.5 reduction'!D107),9))","v":0.99999174999999996},{"$f":"VALUE(FIXED(EXP(E$4*-1*'PM2.5 reduction'!E107),9))","v":0.99999745699999998},{"$f":"VALUE(FIXED(EXP(F$4*-1*'PM2.5 reduction'!F107),9))","v":0.99999790600000005},{"$f":"VALUE(FIXED(EXP(G$4*-1*'PM2.5 reduction'!G107),9))","v":0.99999897800000004},{"$f":"VALUE(FIXED(EXP(H$4*-1*'PM2.5 reduction'!H107),9))","v":0.999997315},{"$f":"VALUE(FIXED(EXP(I$4*-1*'PM2.5 reduction'!I107),9))","v":0.99999800000000005},{"$f":"VALUE(FIXED(EXP(J$4*-1*'PM2.5 reduction'!J107),9))","v":0.99999566299999998},{"$f":"VALUE(FIXED(EXP(K$4*-1*'PM2.5 reduction'!K107),9))","v":0.99999560799999998},{"$f":"VALUE(FIXED(EXP(L$4*-1*'PM2.5 reduction'!L107),9))","v":0.99999818699999998},{"$f":"VALUE(FIXED(EXP(M$4*-1*'PM2.5 reduction'!M107),9))","v":0.99999818699999998},{"$f":"VALUE(FIXED(EXP(N$4*-1*'PM2.5 reduction'!N107),9))","v":0.99999197699999998},{"$f":"VALUE(FIXED(EXP(O$4*-1*'PM2.5 reduction'!O107),9))","v":0.99999752600000003},{"$f":"VALUE(FIXED(EXP(P$4*-1*'PM2.5 reduction'!P107),9))","v":0.99999242499999996},{"$f":"VALUE(FIXED(EXP(Q$4*-1*'PM2.5 reduction'!Q107),9))","v":0.99999604399999997},{"$f":"VALUE(FIXED(EXP(R$4*-1*'PM2.5 reduction'!R107),9))","v":0.99999433900000001},{"$f":"VALUE(FIXED(EXP(S$4*-1*'PM2.5 reduction'!S107),9))","v":0.99999385500000004},{"$f":"VALUE(FIXED(EXP(T$4*-1*'PM2.5 reduction'!T107),9))","v":0.99998920700000005},{"$f":"VALUE(FIXED(EXP(U$4*-1*'PM2.5 reduction'!U107),9))","v":0.99999866900000001},{"$f":"VALUE(FIXED(EXP(V$4*-1*'PM2.5 reduction'!V107),9))","v":0.99999481800000001},{"$f":"VALUE(FIXED(EXP(W$4*-1*'PM2.5 reduction'!W107),9))","v":0.99999543700000004},{"$f":"VALUE(FIXED(EXP(X$4*-1*'PM2.5 reduction'!X107),9))","v":0.99999543700000004},{"$f":"VALUE(FIXED(EXP(Y$4*-1*'PM2.5 reduction'!Y107),9))","v":0.99999510300000005},{"$f":"VALUE(FIXED(EXP(Z$4*-1*'PM2.5 reduction'!Z107),9))","v":0.99999061300000003},{"$f":"VALUE(FIXED(EXP(AA$4*-1*'PM2.5 reduction'!AA107),9))","v":0.99999326799999999},{"$f":"VALUE(FIXED(EXP(AB$4*-1*'PM2.5 reduction'!AB107),9))","v":0.99999290500000004},{"$f":"VALUE(FIXED(EXP(AC$4*-1*'PM2.5 reduction'!AC107),9))","v":0.99999234000000004},{"$f":"VALUE(FIXED(EXP(AD$4*-1*'PM2.5 reduction'!AD107),9))","v":0.99999828599999996},{"$f":"VALUE(FIXED(EXP(AE$4*-1*'PM2.5 reduction'!AE107),9))","v":0.99999814099999995},{"$f":"VALUE(FIXED(EXP(AF$4*-1*'PM2.5 reduction'!AF107),9))","v":0.99999530299999995},{"$f":"VALUE(FIXED(EXP(AG$4*-1*'PM2.5 reduction'!AG107),9))","v":0.99999814099999995},{"$f":"VALUE(FIXED(EXP(AH$4*-1*'PM2.5 reduction'!AH107),9))","v":0.99999433800000004},{"$f":"VALUE(FIXED(EXP(AI$4*-1*'PM2.5 reduction'!AI107),9))","v":0.99999292200000001},{"$f":"VALUE(FIXED(EXP(AJ$4*-1*'PM2.5 reduction'!AJ107),9))","v":0.99999529200000004},{"$f":"VALUE(FIXED(EXP(AK$4*-1*'PM2.5 reduction'!AK107),9))","v":0.99999783900000005},{"$f":"VALUE(FIXED(EXP(AL$4*-1*'PM2.5 reduction'!AL107),9))","v":0.99999736299999997},{"$f":"VALUE(FIXED(EXP(AM$4*-1*'PM2.5 reduction'!AM107),9))","v":0.99999385799999996},{"$f":"VALUE(FIXED(EXP(AN$4*-1*'PM2.5 reduction'!AN107),9))","v":0.99999826199999997},{"$f":"VALUE(FIXED(EXP(AO$4*-1*'PM2.5 reduction'!AO107),9))","v":0.99999826199999997},{"$f":"VALUE(FIXED(EXP(AP$4*-1*'PM2.5 reduction'!AP107),9))","v":0.99999658000000002},{"$f":"VALUE(FIXED(EXP(AQ$4*-1*'PM2.5 reduction'!AQ107),9))","v":0.99999444199999998},{"$f":"VALUE(FIXED(EXP(AR$4*-1*'PM2.5 reduction'!AR107),9))","v":0.99999418200000001},{"$f":"VALUE(FIXED(EXP(AS$4*-1*'PM2.5 reduction'!AS107),9))","v":0.99999800000000005},{"$f":"VALUE(FIXED(EXP(AT$4*-1*'PM2.5 reduction'!AT107),9))","v":1},{"$f":"VALUE(FIXED(EXP(AU$4*-1*'PM2.5 reduction'!AU107),9))","v":1},{"$f":"VALUE(FIXED(EXP(AV$4*-1*'PM2.5 reduction'!AV107),9))","v":0.99999691999999996},{"$f":"VALUE(FIXED(EXP(AW$4*-1*'PM2.5 reduction'!AW107),9))","v":0.99999489699999999},{"$f":"VALUE(FIXED(EXP(AX$4*-1*'PM2.5 reduction'!AX107),9))","v":0.99999572800000003},{"$f":"VALUE(FIXED(EXP(AY$4*-1*'PM2.5 reduction'!AY107),9))","v":0.99999517699999996},{"$f":"VALUE(FIXED(EXP(AZ$4*-1*'PM2.5 reduction'!AZ107),9))","v":0.99999484500000002},{"$f":"VALUE(FIXED(EXP(BA$4*-1*'PM2.5 reduction'!BA107),9))","v":0.99999422199999999},{"$f":"VALUE(FIXED(EXP(BB$4*-1*'PM2.5 reduction'!BB107),9))","v":0.99999482100000003},{"$f":"VALUE(FIXED(EXP(BC$4*-1*'PM2.5 reduction'!BC107),9))","v":0.99999866900000001}]
[null,"Female 50-54",{"$f":"VALUE(FIXED(EXP(C$4*-1*'PM2.5 reduction'!C108),9))","v":0.99999072700000002},{"$f":"VALUE(FIXED(EXP(D$4*-1*'PM2.5 reduction'!D108),9))","v":0.99999178200000005},{"$f":"VALUE(FIXED(EXP(E$4*-1*'PM2.5 reduction'!E108),9))","v":0.99999723500000004},{"$f":"VALUE(FIXED(EXP(F$4*-1*'PM2.5 reduction'!F108),9))","v":0.99999778800000005},{"$f":"VALUE(FIXED(EXP(G$4*-1*'PM2.5 reduction'!G108),9))","v":0.999998936},{"$f":"VALUE(FIXED(EXP(H$4*-1*'PM2.5 reduction'!H108),9))","v":0.99999729100000001},{"$f":"VALUE(FIXED(EXP(I$4*-1*'PM2.5 reduction'!I108),9))","v":0.99999796100000005},{"$f":"VALUE(FIXED(EXP(J$4*-1*'PM2.5 reduction'!J108),9))","v":0.99999579000000005},{"$f":"VALUE(FIXED(EXP(K$4*-1*'PM2.5 reduction'!K108),9))","v":0.999995784},{"$f":"VALUE(FIXED(EXP(L$4*-1*'PM2.5 reduction'!L108),9))","v":0.99999823399999999},{"$f":"VALUE(FIXED(EXP(M$4*-1*'PM2.5 reduction'!M108),9))","v":0.99999823399999999},{"$f":"VALUE(FIXED(EXP(N$4*-1*'PM2.5 reduction'!N108),9))","v":0.99999184200000002},{"$f":"VALUE(FIXED(EXP(O$4*-1*'PM2.5 reduction'!O108),9))","v":0.99999742199999997},{"$f":"VALUE(FIXED(EXP(P$4*-1*'PM2.5 reduction'!P108),9))","v":0.99999248699999999},{"$f":"VALUE(FIXED(EXP(Q$4*-1*'PM2.5 reduction'!Q108),9))","v":0.99999594400000003},{"$f":"VALUE(FIXED(EXP(R$4*-1*'PM2.5 reduction'!R108),9))","v":0.99999430700000003},{"$f":"VALUE(FIXED(EXP(S$4*-1*'PM2.5 reduction'!S108),9))","v":0.99999406000000002},{"$f":"VALUE(FIXED(EXP(T$4*-1*'PM2.5 reduction'!T108),9))","v":0.99998959700000001},{"$f":"VALUE(FIXED(EXP(U$4*-1*'PM2.5 reduction'!U108),9))","v":0.99999866900000001},{"$f":"VALUE(FIXED(EXP(V$4*-1*'PM2.5 reduction'!V108),9))","v":0.99999477599999997},{"$f":"VALUE(FIXED(EXP(W$4*-1*'PM2.5 reduction'!W108),9))","v":0.99999542299999999},{"$f":"VALUE(FIXED(EXP(X$4*-1*'PM2.5 reduction'!X108),9))","v":0.99999542299999999},{"$f":"VALUE(FIXED(EXP(Y$4*-1*'PM2.5 reduction'!Y108),9))","v":0.99999511299999999},{"$f":"VALUE(FIXED(EXP(Z$4*-1*'PM2.5 reduction'!Z108),9))","v":0.99999073699999996},{"$f":"VALUE(FIXED(EXP(AA$4*-1*'PM2.5 reduction'!AA108),9))","v":0.99999328600000004},{"$f":"VALUE(FIXED(EXP(AB$4*-1*'PM2.5 reduction'!AB108),9))","v":0.99999294800000005},{"$f":"VALUE(FIXED(EXP(AC$4*-1*'PM2.5 reduction'!AC108),9))","v":0.99999242099999996},{"$f":"VALUE(FIXED(EXP(AD$4*-1*'PM2.5 reduction'!AD108),9))","v":0.99999828499999999},{"$f":"VALUE(FIXED(EXP(AE$4*-1*'PM2.5 reduction'!AE108),9))","v":0.99999810499999997},{"$f":"VALUE(FIXED(EXP(AF$4*-1*'PM2.5 reduction'!AF108),9))","v":0.99999520799999997},{"$f":"VALUE(FIXED(EXP(AG$4*-1*'PM2.5 reduction'!AG108),9))","v":0.99999810499999997},{"$f":"VALUE(FIXED(EXP(AH$4*-1*'PM2.5 reduction'!AH108),9))","v":0.99999428300000004},{"$f":"VALUE(FIXED(EXP(AI$4*-1*'PM2.5 reduction'!AI108),9))","v":0.99999313499999998},{"$f":"VALUE(FIXED(EXP(AJ$4*-1*'PM2.5 reduction'!AJ108),9))","v":0.99999532999999996},{"$f":"VALUE(FIXED(EXP(AK$4*-1*'PM2.5 reduction'!AK108),9))","v":0.99999795000000002},{"$f":"VALUE(FIXED(EXP(AL$4*-1*'PM2.5 reduction'!AL108),9))","v":0.99999733300000004},{"$f":"VALUE(FIXED(EXP(AM$4*-1*'PM2.5 reduction'!AM108),9))","v":0.99999382400000003},{"$f":"VALUE(FIXED(EXP(AN$4*-1*'PM2.5 reduction'!AN108),9))","v":0.99999827699999999},{"$f":"VALUE(FIXED(EXP(AO$4*-1*'PM2.5 reduction'!AO108),9))","v":0.99999827699999999},{"$f":"VALUE(FIXED(EXP(AP$4*-1*'PM2.5 reduction'!AP108),9))","v":0.99999638199999996},{"$f":"VALUE(FIXED(EXP(AQ$4*-1*'PM2.5 reduction'!AQ108),9))","v":0.99999447299999999},{"$f":"VALUE(FIXED(EXP(AR$4*-1*'PM2.5 reduction'!AR108),9))","v":0.99999420299999997},{"$f":"VALUE(FIXED(EXP(AS$4*-1*'PM2.5 reduction'!AS108),9))","v":0.99999796100000005},{"$f":"VALUE(FIXED(EXP(AT$4*-1*'PM2.5 reduction'!AT108),9))","v":1},{"$f":"VALUE(FIXED(EXP(AU$4*-1*'PM2.5 reduction'!AU108),9))","v":1},{"$f":"VALUE(FIXED(EXP(AV$4*-1*'PM2.5 reduction'!AV108),9))","v":0.99999707800000004},{"$f":"VALUE(FIXED(EXP(AW$4*-1*'PM2.5 reduction'!AW108),9))","v":0.99999481000000001},{"$f":"VALUE(FIXED(EXP(AX$4*-1*'PM2.5 reduction'!AX108),9))","v":0.99999579599999999},{"$f":"VALUE(FIXED(EXP(AY$4*-1*'PM2.5 reduction'!AY108),9))","v":0.99999497100000001},{"$f":"VALUE(FIXED(EXP(AZ$4*-1*'PM2.5 reduction'!AZ108),9))","v":0.999994363},{"$f":"VALUE(FIXED(EXP(BA$4*-1*'PM2.5 reduction'!BA108),9))","v":0.99999424000000003},{"$f":"VALUE(FIXED(EXP(BB$4*-1*'PM2.5 reduction'!BB108),9))","v":0.99999490000000002},{"$f":"VALUE(FIXED(EXP(BC$4*-1*'PM2.5 reduction'!BC108),9))","v":0.99999866900000001}]
[null,"Female 55-59",{"$f":"VALUE(FIXED(EXP(C$4*-1*'PM2.5 reduction'!C109),9))","v":0.99999077599999997},{"$f":"VALUE(FIXED(EXP(D$4*-1*'PM2.5 reduction'!D109),9))","v":0.99999189499999996},{"$f":"VALUE(FIXED(EXP(E$4*-1*'PM2.5 reduction'!E109),9))","v":0.99999727199999999},{"$f":"VALUE(FIXED(EXP(F$4*-1*'PM2.5 reduction'!F109),9))","v":0.99999784400000002},{"$f":"VALUE(FIXED(EXP(G$4*-1*'PM2.5 reduction'!G109),9))","v":0.99999897500000001},{"$f":"VALUE(FIXED(EXP(H$4*-1*'PM2.5 reduction'!H109),9))","v":0.99999731300000005},{"$f":"VALUE(FIXED(EXP(I$4*-1*'PM2.5 reduction'!I109),9))","v":0.99999801099999996},{"$f":"VALUE(FIXED(EXP(J$4*-1*'PM2.5 reduction'!J109),9))","v":0.99999572599999997},{"$f":"VALUE(FIXED(EXP(K$4*-1*'PM2.5 reduction'!K109),9))","v":0.99999574199999997},{"$f":"VALUE(FIXED(EXP(L$4*-1*'PM2.5 reduction'!L109),9))","v":0.99999823899999996},{"$f":"VALUE(FIXED(EXP(M$4*-1*'PM2.5 reduction'!M109),9))","v":0.99999823899999996},{"$f":"VALUE(FIXED(EXP(N$4*-1*'PM2.5 reduction'!N109),9))","v":0.99999193900000005},{"$f":"VALUE(FIXED(EXP(O$4*-1*'PM2.5 reduction'!O109),9))","v":0.99999760000000004},{"$f":"VALUE(FIXED(EXP(P$4*-1*'PM2.5 reduction'!P109),9))","v":0.99999248900000004},{"$f":"VALUE(FIXED(EXP(Q$4*-1*'PM2.5 reduction'!Q109),9))","v":0.99999603800000003},{"$f":"VALUE(FIXED(EXP(R$4*-1*'PM2.5 reduction'!R109),9))","v":0.99999458200000002},{"$f":"VALUE(FIXED(EXP(S$4*-1*'PM2.5 reduction'!S109),9))","v":0.99999407799999995},{"$f":"VALUE(FIXED(EXP(T$4*-1*'PM2.5 reduction'!T109),9))","v":0.999989613},{"$f":"VALUE(FIXED(EXP(U$4*-1*'PM2.5 reduction'!U109),9))","v":0.99999866900000001},{"$f":"VALUE(FIXED(EXP(V$4*-1*'PM2.5 reduction'!V109),9))","v":0.99999472199999995},{"$f":"VALUE(FIXED(EXP(W$4*-1*'PM2.5 reduction'!W109),9))","v":0.99999546699999997},{"$f":"VALUE(FIXED(EXP(X$4*-1*'PM2.5 reduction'!X109),9))","v":0.99999546699999997},{"$f":"VALUE(FIXED(EXP(Y$4*-1*'PM2.5 reduction'!Y109),9))","v":0.99999506299999996},{"$f":"VALUE(FIXED(EXP(Z$4*-1*'PM2.5 reduction'!Z109),9))","v":0.99999060100000003},{"$f":"VALUE(FIXED(EXP(AA$4*-1*'PM2.5 reduction'!AA109),9))","v":0.999993252},{"$f":"VALUE(FIXED(EXP(AB$4*-1*'PM2.5 reduction'!AB109),9))","v":0.99999313999999995},{"$f":"VALUE(FIXED(EXP(AC$4*-1*'PM2.5 reduction'!AC109),9))","v":0.99999236599999997},{"$f":"VALUE(FIXED(EXP(AD$4*-1*'PM2.5 reduction'!AD109),9))","v":0.99999832},{"$f":"VALUE(FIXED(EXP(AE$4*-1*'PM2.5 reduction'!AE109),9))","v":0.99999813500000001},{"$f":"VALUE(FIXED(EXP(AF$4*-1*'PM2.5 reduction'!AF109),9))","v":0.99999543300000004},{"$f":"VALUE(FIXED(EXP(AG$4*-1*'PM2.5 reduction'!AG109),9))","v":0.99999813500000001},{"$f":"VALUE(FIXED(EXP(AH$4*-1*'PM2.5 reduction'!AH109),9))","v":0.99999423899999995},{"$f":"VALUE(FIXED(EXP(AI$4*-1*'PM2.5 reduction'!AI109),9))","v":0.99999316599999999},{"$f":"VALUE(FIXED(EXP(AJ$4*-1*'PM2.5 reduction'!AJ109),9))","v":0.99999530599999997},{"$f":"VALUE(FIXED(EXP(AK$4*-1*'PM2.5 reduction'!AK109),9))","v":0.99999810899999997},{"$f":"VALUE(FIXED(EXP(AL$4*-1*'PM2.5 reduction'!AL109),9))","v":0.99999730600000003},{"$f":"VALUE(FIXED(EXP(AM$4*-1*'PM2.5 reduction'!AM109),9))","v":0.99999372799999997},{"$f":"VALUE(FIXED(EXP(AN$4*-1*'PM2.5 reduction'!AN109),9))","v":0.999998198},{"$f":"VALUE(FIXED(EXP(AO$4*-1*'PM2.5 reduction'!AO109),9))","v":0.999998198},{"$f":"VALUE(FIXED(EXP(AP$4*-1*'PM2.5 reduction'!AP109),9))","v":0.99999610999999999},{"$f":"VALUE(FIXED(EXP(AQ$4*-1*'PM2.5 reduction'!AQ109),9))","v":0.99999441},{"$f":"VALUE(FIXED(EXP(AR$4*-1*'PM2.5 reduction'!AR109),9))","v":0.99999423600000004},{"$f":"VALUE(FIXED(EXP(AS$4*-1*'PM2.5 reduction'!AS109),9))","v":0.99999801099999996},{"$f":"VALUE(FIXED(EXP(AT$4*-1*'PM2.5 reduction'!AT109),9))","v":1},{"$f":"VALUE(FIXED(EXP(AU$4*-1*'PM2.5 reduction'!AU109),9))","v":1},{"$f":"VALUE(FIXED(EXP(AV$4*-1*'PM2.5 reduction'!AV109),9))","v":0.99999693899999997},{"$f":"VALUE(FIXED(EXP(AW$4*-1*'PM2.5 reduction'!AW109),9))","v":0.99999479499999999},{"$f":"VALUE(FIXED(EXP(AX$4*-1*'PM2.5 reduction'!AX109),9))","v":0.99999570999999998},{"$f":"VALUE(FIXED(EXP(AY$4*-1*'PM2.5 reduction'!AY109),9))","v":0.99999504400000006},{"$f":"VALUE(FIXED(EXP(AZ$4*-1*'PM2.5 reduction'!AZ109),9))","v":0.99999452700000002},{"$f":"VALUE(FIXED(EXP(BA$4*-1*'PM2.5 reduction'!BA109),9))","v":0.99999436900000005},{"$f":"VALUE(FIXED(EXP(BB$4*-1*'PM2.5 reduction'!BB109),9))","v":0.99999482799999995},{"$f":"VALUE(FIXED(EXP(BC$4*-1*'PM2.5 reduction'!BC109),9))","v":0.99999866900000001}]
[null,"Female 60-64",{"$f":"VALUE(FIXED(EXP(C$4*-1*'PM2.5 reduction'!C110),9))","v":0.99999070999999995},{"$f":"VALUE(FIXED(EXP(D$4*-1*'PM2.5 reduction'!D110),9))","v":0.99999187099999998},{"$f":"VALUE(FIXED(EXP(E$4*-1*'PM2.5 reduction'!E110),9))","v":0.99999750700000001},{"$f":"VALUE(FIXED(EXP(F$4*-1*'PM2.5 reduction'!F110),9))","v":0.99999778399999995},{"$f":"VALUE(FIXED(EXP(G$4*-1*'PM2.5 reduction'!G110),9))","v":0.99999892800000001},{"$f":"VALUE(FIXED(EXP(H$4*-1*'PM2.5 reduction'!H110),9))","v":0.99999737300000002},{"$f":"VALUE(FIXED(EXP(I$4*-1*'PM2.5 reduction'!I110),9))","v":0.99999799},{"$f":"VALUE(FIXED(EXP(J$4*-1*'PM2.5 reduction'!J110),9))","v":0.99999596199999996},{"$f":"VALUE(FIXED(EXP(K$4*-1*'PM2.5 reduction'!K110),9))","v":0.99999599100000003},{"$f":"VALUE(FIXED(EXP(L$4*-1*'PM2.5 reduction'!L110),9))","v":0.999998159},{"$f":"VALUE(FIXED(EXP(M$4*-1*'PM2.5 reduction'!M110),9))","v":0.999998159},{"$f":"VALUE(FIXED(EXP(N$4*-1*'PM2.5 reduction'!N110),9))","v":0.999992145},{"$f":"VALUE(FIXED(EXP(O$4*-1*'PM2.5 reduction'!O110),9))","v":0.99999764800000002},{"$f":"VALUE(FIXED(EXP(P$4*-1*'PM2.5 reduction'!P110),9))","v":0.99999257100000005},{"$f":"VALUE(FIXED(EXP(Q$4*-1*'PM2.5 reduction'!Q110),9))","v":0.99999616400000002},{"$f":"VALUE(FIXED(EXP(R$4*-1*'PM2.5 reduction'!R110),9))","v":0.99999430300000003},{"$f":"VALUE(FIXED(EXP(S$4*-1*'PM2.5 reduction'!S110),9))","v":0.99999416399999996},{"$f":"VALUE(FIXED(EXP(T$4*-1*'PM2.5 reduction'!T110),9))","v":0.99998959700000001},{"$f":"VALUE(FIXED(EXP(U$4*-1*'PM2.5 reduction'!U110),9))","v":0.99999866900000001},{"$f":"VALUE(FIXED(EXP(V$4*-1*'PM2.5 reduction'!V110),9))","v":0.99999484900000002},{"$f":"VALUE(FIXED(EXP(W$4*-1*'PM2.5 reduction'!W110),9))","v":0.99999549799999998},{"$f":"VALUE(FIXED(EXP(X$4*-1*'PM2.5 reduction'!X110),9))","v":0.99999549799999998},{"$f":"VALUE(FIXED(EXP(Y$4*-1*'PM2.5 reduction'!Y110),9))","v":0.99999519000000003},{"$f":"VALUE(FIXED(EXP(Z$4*-1*'PM2.5 reduction'!Z110),9))","v":0.99999068499999999},{"$f":"VALUE(FIXED(EXP(AA$4*-1*'PM2.5 reduction'!AA110),9))","v":0.99999343600000001},{"$f":"VALUE(FIXED(EXP(AB$4*-1*'PM2.5 reduction'!AB110),9))","v":0.99999318000000004},{"$f":"VALUE(FIXED(EXP(AC$4*-1*'PM2.5 reduction'!AC110),9))","v":0.99999242799999999},{"$f":"VALUE(FIXED(EXP(AD$4*-1*'PM2.5 reduction'!AD110),9))","v":0.99999832200000005},{"$f":"VALUE(FIXED(EXP(AE$4*-1*'PM2.5 reduction'!AE110),9))","v":0.99999818100000004},{"$f":"VALUE(FIXED(EXP(AF$4*-1*'PM2.5 reduction'!AF110),9))","v":0.99999518799999998},{"$f":"VALUE(FIXED(EXP(AG$4*-1*'PM2.5 reduction'!AG110),9))","v":0.99999818100000004},{"$f":"VALUE(FIXED(EXP(AH$4*-1*'PM2.5 reduction'!AH110),9))","v":0.999994406},{"$f":"VALUE(FIXED(EXP(AI$4*-1*'PM2.5 reduction'!AI110),9))","v":0.99999321200000002},{"$f":"VALUE(FIXED(EXP(AJ$4*-1*'PM2.5 reduction'!AJ110),9))","v":0.99999521899999999},{"$f":"VALUE(FIXED(EXP(AK$4*-1*'PM2.5 reduction'!AK110),9))","v":0.99999785399999996},{"$f":"VALUE(FIXED(EXP(AL$4*-1*'PM2.5 reduction'!AL110),9))","v":0.99999726600000005},{"$f":"VALUE(FIXED(EXP(AM$4*-1*'PM2.5 reduction'!AM110),9))","v":0.99999394100000005},{"$f":"VALUE(FIXED(EXP(AN$4*-1*'PM2.5 reduction'!AN110),9))","v":0.99999822800000004},{"$f":"VALUE(FIXED(EXP(AO$4*-1*'PM2.5 reduction'!AO110),9))","v":0.99999822800000004},{"$f":"VALUE(FIXED(EXP(AP$4*-1*'PM2.5 reduction'!AP110),9))","v":0.99999640899999998},{"$f":"VALUE(FIXED(EXP(AQ$4*-1*'PM2.5 reduction'!AQ110),9))","v":0.99999437899999999},{"$f":"VALUE(FIXED(EXP(AR$4*-1*'PM2.5 reduction'!AR110),9))","v":0.99999436200000003},{"$f":"VALUE(FIXED(EXP(AS$4*-1*'PM2.5 reduction'!AS110),9))","v":0.99999799},{"$f":"VALUE(FIXED(EXP(AT$4*-1*'PM2.5 reduction'!AT110),9))","v":1},{"$f":"VALUE(FIXED(EXP(AU$4*-1*'PM2.5 reduction'!AU110),9))","v":1},{"$f":"VALUE(FIXED(EXP(AV$4*-1*'PM2.5 reduction'!AV110),9))","v":0.99999714699999998},{"$f":"VALUE(FIXED(EXP(AW$4*-1*'PM2.5 reduction'!AW110),9))","v":0.99999493100000003},{"$f":"VALUE(FIXED(EXP(AX$4*-1*'PM2.5 reduction'!AX110),9))","v":0.999995933},{"$f":"VALUE(FIXED(EXP(AY$4*-1*'PM2.5 reduction'!AY110),9))","v":0.99999513399999995},{"$f":"VALUE(FIXED(EXP(AZ$4*-1*'PM2.5 reduction'!AZ110),9))","v":0.99999467399999997},{"$f":"VALUE(FIXED(EXP(BA$4*-1*'PM2.5 reduction'!BA110),9))","v":0.99999441},{"$f":"VALUE(FIXED(EXP(BB$4*-1*'PM2.5 reduction'!BB110),9))","v":0.99999479899999999},{"$f":"VALUE(FIXED(EXP(BC$4*-1*'PM2.5 reduction'!BC110),9))","v":0.99999866900000001}]
[null,"Female 65-69",{"$f":"VALUE(FIXED(EXP(C$4*-1*'PM2.5 reduction'!C111),9))","v":0.99999044999999998},{"$f":"VALUE(FIXED(EXP(D$4*-1*'PM2.5 reduction'!D111),9))","v":0.99999185099999999},{"$f":"VALUE(FIXED(EXP(E$4*-1*'PM2.5 reduction'!E111),9))","v":0.99999720599999997},{"$f":"VALUE(FIXED(EXP(F$4*-1*'PM2.5 reduction'!F111),9))","v":0.99999778800000005},{"$f":"VALUE(FIXED(EXP(G$4*-1*'PM2.5 reduction'!G111),9))","v":0.99999892999999995},{"$f":"VALUE(FIXED(EXP(H$4*-1*'PM2.5 reduction'!H111),9))","v":0.99999734799999995},{"$f":"VALUE(FIXED(EXP(I$4*-1*'PM2.5 reduction'!I111),9))","v":0.99999805799999997},{"$f":"VALUE(FIXED(EXP(J$4*-1*'PM2.5 reduction'!J111),9))","v":0.99999574599999996},{"$f":"VALUE(FIXED(EXP(K$4*-1*'PM2.5 reduction'!K111),9))","v":0.99999578499999997},{"$f":"VALUE(FIXED(EXP(L$4*-1*'PM2.5 reduction'!L111),9))","v":0.99999818299999998},{"$f":"VALUE(FIXED(EXP(M$4*-1*'PM2.5 reduction'!M111),9))","v":0.99999818299999998},{"$f":"VALUE(FIXED(EXP(N$4*-1*'PM2.5 reduction'!N111),9))","v":0.999992141},{"$f":"VALUE(FIXED(EXP(O$4*-1*'PM2.5 reduction'!O111),9))","v":0.99999760800000004},{"$f":"VALUE(FIXED(EXP(P$4*-1*'PM2.5 reduction'!P111),9))","v":0.99999256999999997},{"$f":"VALUE(FIXED(EXP(Q$4*-1*'PM2.5 reduction'!Q111),9))","v":0.999995996},{"$f":"VALUE(FIXED(EXP(R$4*-1*'PM2.5 reduction'!R111),9))","v":0.99999444500000001},{"$f":"VALUE(FIXED(EXP(S$4*-1*'PM2.5 reduction'!S111),9))","v":0.99999428099999998},{"$f":"VALUE(FIXED(EXP(T$4*-1*'PM2.5 reduction'!T111),9))","v":0.99998981499999995},{"$f":"VALUE(FIXED(EXP(U$4*-1*'PM2.5 reduction'!U111),9))","v":0.99999866900000001},{"$f":"VALUE(FIXED(EXP(V$4*-1*'PM2.5 reduction'!V111),9))","v":0.99999482100000003},{"$f":"VALUE(FIXED(EXP(W$4*-1*'PM2.5 reduction'!W111),9))","v":0.99999548900000002},{"$f":"VALUE(FIXED(EXP(X$4*-1*'PM2.5 reduction'!X111),9))","v":0.99999548900000002},{"$f":"VALUE(FIXED(EXP(Y$4*-1*'PM2.5 reduction'!Y111),9))","v":0.99999512099999999},{"$f":"VALUE(FIXED(EXP(Z$4*-1*'PM2.5 reduction'!Z111),9))","v":0.99999071100000003},{"$f":"VALUE(FIXED(EXP(AA$4*-1*'PM2.5 reduction'!AA111),9))","v":0.99999353300000005},{"$f":"VALUE(FIXED(EXP(AB$4*-1*'PM2.5 reduction'!AB111),9))","v":0.99999315899999996},{"$f":"VALUE(FIXED(EXP(AC$4*-1*'PM2.5 reduction'!AC111),9))","v":0.999992561},{"$f":"VALUE(FIXED(EXP(AD$4*-1*'PM2.5 reduction'!AD111),9))","v":0.99999830300000003},{"$f":"VALUE(FIXED(EXP(AE$4*-1*'PM2.5 reduction'!AE111),9))","v":0.99999814399999998},{"$f":"VALUE(FIXED(EXP(AF$4*-1*'PM2.5 reduction'!AF111),9))","v":0.99999531799999997},{"$f":"VALUE(FIXED(EXP(AG$4*-1*'PM2.5 reduction'!AG111),9))","v":0.99999814399999998},{"$f":"VALUE(FIXED(EXP(AH$4*-1*'PM2.5 reduction'!AH111),9))","v":0.99999449100000004},{"$f":"VALUE(FIXED(EXP(AI$4*-1*'PM2.5 reduction'!AI111),9))","v":0.99999334699999998},{"$f":"VALUE(FIXED(EXP(AJ$4*-1*'PM2.5 reduction'!AJ111),9))","v":0.99999546100000003},{"$f":"VALUE(FIXED(EXP(AK$4*-1*'PM2.5 reduction'!AK111),9))","v":0.99999798799999995},{"$f":"VALUE(FIXED(EXP(AL$4*-1*'PM2.5 reduction'!AL111),9))","v":0.99999727000000005},{"$f":"VALUE(FIXED(EXP(AM$4*-1*'PM2.5 reduction'!AM111),9))","v":0.99999404800000002},{"$f":"VALUE(FIXED(EXP(AN$4*-1*'PM2.5 reduction'!AN111),9))","v":0.99999823600000004},{"$f":"VALUE(FIXED(EXP(AO$4*-1*'PM2.5 reduction'!AO111),9))","v":0.99999823600000004},{"$f":"VALUE(FIXED(EXP(AP$4*-1*'PM2.5 reduction'!AP111),9))","v":0.99999621999999999},{"$f":"VALUE(FIXED(EXP(AQ$4*-1*'PM2.5 reduction'!AQ111),9))","v":0.99999431299999997},{"$f":"VALUE(FIXED(EXP(AR$4*-1*'PM2.5 reduction'!AR111),9))","v":0.99999445600000003},{"$f":"VALUE(FIXED(EXP(AS$4*-1*'PM2.5 reduction'!AS111),9))","v":0.99999805799999997},{"$f":"VALUE(FIXED(EXP(AT$4*-1*'PM2.5 reduction'!AT111),9))","v":1},{"$f":"VALUE(FIXED(EXP(AU$4*-1*'PM2.5 reduction'!AU111),9))","v":1},{"$f":"VALUE(FIXED(EXP(AV$4*-1*'PM2.5 reduction'!AV111),9))","v":0.99999711300000005},{"$f":"VALUE(FIXED(EXP(AW$4*-1*'PM2.5 reduction'!AW111),9))","v":0.99999498899999995},{"$f":"VALUE(FIXED(EXP(AX$4*-1*'PM2.5 reduction'!AX111),9))","v":0.99999570199999999},{"$f":"VALUE(FIXED(EXP(AY$4*-1*'PM2.5 reduction'!AY111),9))","v":0.99999510000000003},{"$f":"VALUE(FIXED(EXP(AZ$4*-1*'PM2.5 reduction'!AZ111),9))","v":0.99999459300000004},{"$f":"VALUE(FIXED(EXP(BA$4*-1*'PM2.5 reduction'!BA111),9))","v":0.99999411900000001},{"$f":"VALUE(FIXED(EXP(BB$4*-1*'PM2.5 reduction'!BB111),9))","v":0.99999486199999998},{"$f":"VALUE(FIXED(EXP(BC$4*-1*'PM2.5 reduction'!BC111),9))","v":0.99999866900000001}]
[null,"Female 70-74",{"$f":"VALUE(FIXED(EXP(C$4*-1*'PM2.5 reduction'!C112),9))","v":0.99999060699999998},{"$f":"VALUE(FIXED(EXP(D$4*-1*'PM2.5 reduction'!D112),9))","v":0.999992149},{"$f":"VALUE(FIXED(EXP(E$4*-1*'PM2.5 reduction'!E112),9))","v":0.99999716400000005},{"$f":"VALUE(FIXED(EXP(F$4*-1*'PM2.5 reduction'!F112),9))","v":0.99999780699999996},{"$f":"VALUE(FIXED(EXP(G$4*-1*'PM2.5 reduction'!G112),9))","v":0.99999893799999995},{"$f":"VALUE(FIXED(EXP(H$4*-1*'PM2.5 reduction'!H112),9))","v":0.99999732100000005},{"$f":"VALUE(FIXED(EXP(I$4*-1*'PM2.5 reduction'!I112),9))","v":0.99999800699999997},{"$f":"VALUE(FIXED(EXP(J$4*-1*'PM2.5 reduction'!J112),9))","v":0.99999590800000004},{"$f":"VALUE(FIXED(EXP(K$4*-1*'PM2.5 reduction'!K112),9))","v":0.99999606399999996},{"$f":"VALUE(FIXED(EXP(L$4*-1*'PM2.5 reduction'!L112),9))","v":0.99999821899999997},{"$f":"VALUE(FIXED(EXP(M$4*-1*'PM2.5 reduction'!M112),9))","v":0.99999821899999997},{"$f":"VALUE(FIXED(EXP(N$4*-1*'PM2.5 reduction'!N112),9))","v":0.99999208100000003},{"$f":"VALUE(FIXED(EXP(O$4*-1*'PM2.5 reduction'!O112),9))","v":0.99999756299999998},{"$f":"VALUE(FIXED(EXP(P$4*-1*'PM2.5 reduction'!P112),9))","v":0.99999269899999998},{"$f":"VALUE(FIXED(EXP(Q$4*-1*'PM2.5 reduction'!Q112),9))","v":0.99999603199999998},{"$f":"VALUE(FIXED(EXP(R$4*-1*'PM2.5 reduction'!R112),9))","v":0.99999450599999995},{"$f":"VALUE(FIXED(EXP(S$4*-1*'PM2.5 reduction'!S112),9))","v":0.99999439800000001},{"$f":"VALUE(FIXED(EXP(T$4*-1*'PM2.5 reduction'!T112),9))","v":0.99999001499999995},{"$f":"VALUE(FIXED(EXP(U$4*-1*'PM2.5 reduction'!U112),9))","v":0.99999866900000001},{"$f":"VALUE(FIXED(EXP(V$4*-1*'PM2.5 reduction'!V112),9))","v":0.99999471299999998},{"$f":"VALUE(FIXED(EXP(W$4*-1*'PM2.5 reduction'!W112),9))","v":0.99999548999999999},{"$f":"VALUE(FIXED(EXP(X$4*-1*'PM2.5 reduction'!X112),9))","v":0.99999548999999999},{"$f":"VALUE(FIXED(EXP(Y$4*-1*'PM2.5 reduction'!Y112),9))","v":0.999995093},{"$f":"VALUE(FIXED(EXP(Z$4*-1*'PM2.5 reduction'!Z112),9))","v":0.999990665},{"$f":"VALUE(FIXED(EXP(AA$4*-1*'PM2.5 reduction'!AA112),9))","v":0.99999345299999998},{"$f":"VALUE(FIXED(EXP(AB$4*-1*'PM2.5 reduction'!AB112),9))","v":0.99999348300000002},{"$f":"VALUE(FIXED(EXP(AC$4*-1*'PM2.5 reduction'!AC112),9))","v":0.99999256299999995},{"$f":"VALUE(FIXED(EXP(AD$4*-1*'PM2.5 reduction'!AD112),9))","v":0.99999834300000001},{"$f":"VALUE(FIXED(EXP(AE$4*-1*'PM2.5 reduction'!AE112),9))","v":0.99999817800000002},{"$f":"VALUE(FIXED(EXP(AF$4*-1*'PM2.5 reduction'!AF112),9))","v":0.99999516799999999},{"$f":"VALUE(FIXED(EXP(AG$4*-1*'PM2.5 reduction'!AG112),9))","v":0.99999817800000002},{"$f":"VALUE(FIXED(EXP(AH$4*-1*'PM2.5 reduction'!AH112),9))","v":0.99999426899999999},{"$f":"VALUE(FIXED(EXP(AI$4*-1*'PM2.5 reduction'!AI112),9))","v":0.99999349299999996},{"$f":"VALUE(FIXED(EXP(AJ$4*-1*'PM2.5 reduction'!AJ112),9))","v":0.99999533200000001},{"$f":"VALUE(FIXED(EXP(AK$4*-1*'PM2.5 reduction'!AK112),9))","v":0.999997935},{"$f":"VALUE(FIXED(EXP(AL$4*-1*'PM2.5 reduction'!AL112),9))","v":0.99999718000000004},{"$f":"VALUE(FIXED(EXP(AM$4*-1*'PM2.5 reduction'!AM112),9))","v":0.99999387500000003},{"$f":"VALUE(FIXED(EXP(AN$4*-1*'PM2.5 reduction'!AN112),9))","v":0.99999830999999995},{"$f":"VALUE(FIXED(EXP(AO$4*-1*'PM2.5 reduction'!AO112),9))","v":0.99999830999999995},{"$f":"VALUE(FIXED(EXP(AP$4*-1*'PM2.5 reduction'!AP112),9))","v":0.99999632800000005},{"$f":"VALUE(FIXED(EXP(AQ$4*-1*'PM2.5 reduction'!AQ112),9))","v":0.99999431599999999},{"$f":"VALUE(FIXED(EXP(AR$4*-1*'PM2.5 reduction'!AR112),9))","v":0.99999448499999999},{"$f":"VALUE(FIXED(EXP(AS$4*-1*'PM2.5 reduction'!AS112),9))","v":0.99999800699999997},{"$f":"VALUE(FIXED(EXP(AT$4*-1*'PM2.5 reduction'!AT112),9))","v":1},{"$f":"VALUE(FIXED(EXP(AU$4*-1*'PM2.5 reduction'!AU112),9))","v":1},{"$f":"VALUE(FIXED(EXP(AV$4*-1*'PM2.5 reduction'!AV112),9))","v":0.99999716699999996},{"$f":"VALUE(FIXED(EXP(AW$4*-1*'PM2.5 reduction'!AW112),9))","v":0.99999473400000005},{"$f":"VALUE(FIXED(EXP(AX$4*-1*'PM2.5 reduction'!AX112),9))","v":0.99999575600000001},{"$f":"VALUE(FIXED(EXP(AY$4*-1*'PM2.5 reduction'!AY112),9))","v":0.99999512899999998},{"$f":"VALUE(FIXED(EXP(AZ$4*-1*'PM2.5 reduction'!AZ112),9))","v":0.99999468199999997},{"$f":"VALUE(FIXED(EXP(BA$4*-1*'PM2.5 reduction'!BA112),9))","v":0.99999406099999999},{"$f":"VALUE(FIXED(EXP(BB$4*-1*'PM2.5 reduction'!BB112),9))","v":0.99999487499999995},{"$f":"VALUE(FIXED(EXP(BC$4*-1*'PM2.5 reduction'!BC112),9))","v":0.99999866900000001}]
[null,"Female 75-79",{"$f":"VALUE(FIXED(EXP(C$4*-1*'PM2.5 reduction'!C113),9))","v":0.999990288},{"$f":"VALUE(FIXED(EXP(D$4*-1*'PM2.5 reduction'!D113),9))","v":0.99999171499999995},{"$f":"VALUE(FIXED(EXP(E$4*-1*'PM2.5 reduction'!E113),9))","v":0.99999712299999999},{"$f":"VALUE(FIXED(EXP(F$4*-1*'PM2.5 reduction'!F113),9))","v":0.99999774399999997},{"$f":"VALUE(FIXED(EXP(G$4*-1*'PM2.5 reduction'!G113),9))","v":0.99999891699999999},{"$f":"VALUE(FIXED(EXP(H$4*-1*'PM2.5 reduction'!H113),9))","v":0.99999727699999996},{"$f":"VALUE(FIXED(EXP(I$4*-1*'PM2.5 reduction'!I113),9))","v":0.99999799899999997},{"$f":"VALUE(FIXED(EXP(J$4*-1*'PM2.5 reduction'!J113),9))","v":0.99999574499999999},{"$f":"VALUE(FIXED(EXP(K$4*-1*'PM2.5 reduction'!K113),9))","v":0.99999568500000002},{"$f":"VALUE(FIXED(EXP(L$4*-1*'PM2.5 reduction'!L113),9))","v":0.99999817499999999},{"$f":"VALUE(FIXED(EXP(M$4*-1*'PM2.5 reduction'!M113),9))","v":0.99999817499999999},{"$f":"VALUE(FIXED(EXP(N$4*-1*'PM2.5 reduction'!N113),9))","v":0.99999226900000004},{"$f":"VALUE(FIXED(EXP(O$4*-1*'PM2.5 reduction'!O113),9))","v":0.99999740199999998},{"$f":"VALUE(FIXED(EXP(P$4*-1*'PM2.5 reduction'!P113),9))","v":0.99999254699999995},{"$f":"VALUE(FIXED(EXP(Q$4*-1*'PM2.5 reduction'!Q113),9))","v":0.99999600499999997},{"$f":"VALUE(FIXED(EXP(R$4*-1*'PM2.5 reduction'!R113),9))","v":0.99999441},{"$f":"VALUE(FIXED(EXP(S$4*-1*'PM2.5 reduction'!S113),9))","v":0.99999422800000004},{"$f":"VALUE(FIXED(EXP(T$4*-1*'PM2.5 reduction'!T113),9))","v":0.99998987900000003},{"$f":"VALUE(FIXED(EXP(U$4*-1*'PM2.5 reduction'!U113),9))","v":0.99999866900000001},{"$f":"VALUE(FIXED(EXP(V$4*-1*'PM2.5 reduction'!V113),9))","v":0.99999465300000001},{"$f":"VALUE(FIXED(EXP(W$4*-1*'PM2.5 reduction'!W113),9))","v":0.99999537400000005},{"$f":"VALUE(FIXED(EXP(X$4*-1*'PM2.5 reduction'!X113),9))","v":0.99999537400000005},{"$f":"VALUE(FIXED(EXP(Y$4*-1*'PM2.5 reduction'!Y113),9))","v":0.99999501000000002},{"$f":"VALUE(FIXED(EXP(Z$4*-1*'PM2.5 reduction'!Z113),9))","v":0.99999063399999999},{"$f":"VALUE(FIXED(EXP(AA$4*-1*'PM2.5 reduction'!AA113),9))","v":0.999993299},{"$f":"VALUE(FIXED(EXP(AB$4*-1*'PM2.5 reduction'!AB113),9))","v":0.99999304600000005},{"$f":"VALUE(FIXED(EXP(AC$4*-1*'PM2.5 reduction'!AC113),9))","v":0.999992467},{"$f":"VALUE(FIXED(EXP(AD$4*-1*'PM2.5 reduction'!AD113),9))","v":0.999998253},{"$f":"VALUE(FIXED(EXP(AE$4*-1*'PM2.5 reduction'!AE113),9))","v":0.99999806000000002},{"$f":"VALUE(FIXED(EXP(AF$4*-1*'PM2.5 reduction'!AF113),9))","v":0.99999510400000002},{"$f":"VALUE(FIXED(EXP(AG$4*-1*'PM2.5 reduction'!AG113),9))","v":0.99999806000000002},{"$f":"VALUE(FIXED(EXP(AH$4*-1*'PM2.5 reduction'!AH113),9))","v":0.99999416699999999},{"$f":"VALUE(FIXED(EXP(AI$4*-1*'PM2.5 reduction'!AI113),9))","v":0.99999333599999995},{"$f":"VALUE(FIXED(EXP(AJ$4*-1*'PM2.5 reduction'!AJ113),9))","v":0.99999536899999997},{"$f":"VALUE(FIXED(EXP(AK$4*-1*'PM2.5 reduction'!AK113),9))","v":0.99999795899999999},{"$f":"VALUE(FIXED(EXP(AL$4*-1*'PM2.5 reduction'!AL113),9))","v":0.99999717200000005},{"$f":"VALUE(FIXED(EXP(AM$4*-1*'PM2.5 reduction'!AM113),9))","v":0.99999382000000003},{"$f":"VALUE(FIXED(EXP(AN$4*-1*'PM2.5 reduction'!AN113),9))","v":0.99999828099999999},{"$f":"VALUE(FIXED(EXP(AO$4*-1*'PM2.5 reduction'!AO113),9))","v":0.99999828099999999},{"$f":"VALUE(FIXED(EXP(AP$4*-1*'PM2.5 reduction'!AP113),9))","v":0.99999627199999996},{"$f":"VALUE(FIXED(EXP(AQ$4*-1*'PM2.5 reduction'!AQ113),9))","v":0.99999438100000004},{"$f":"VALUE(FIXED(EXP(AR$4*-1*'PM2.5 reduction'!AR113),9))","v":0.99999429799999995},{"$f":"VALUE(FIXED(EXP(AS$4*-1*'PM2.5 reduction'!AS113),9))","v":0.99999799899999997},{"$f":"VALUE(FIXED(EXP(AT$4*-1*'PM2.5 reduction'!AT113),9))","v":1},{"$f":"VALUE(FIXED(EXP(AU$4*-1*'PM2.5 reduction'!AU113),9))","v":1},{"$f":"VALUE(FIXED(EXP(AV$4*-1*'PM2.5 reduction'!AV113),9))","v":0.99999722800000002},{"$f":"VALUE(FIXED(EXP(AW$4*-1*'PM2.5 reduction'!AW113),9))","v":0.99999455699999995},{"$f":"VALUE(FIXED(EXP(AX$4*-1*'PM2.5 reduction'!AX113),9))","v":0.99999578899999997},{"$f":"VALUE(FIXED(EXP(AY$4*-1*'PM2.5 reduction'!AY113),9))","v":0.99999496300000001},{"$f":"VALUE(FIXED(EXP(AZ$4*-1*'PM2.5 reduction'!AZ113),9))","v":0.99999448599999996},{"$f":"VALUE(FIXED(EXP(BA$4*-1*'PM2.5 reduction'!BA113),9))","v":0.99999412700000001},{"$f":"VALUE(FIXED(EXP(BB$4*-1*'PM2.5 reduction'!BB113),9))","v":0.999994932},{"$f":"VALUE(FIXED(EXP(BC$4*-1*'PM2.5 reduction'!BC113),9))","v":0.99999866900000001}]
[null,"Female 80-84",{"$f":"VALUE(FIXED(EXP(C$4*-1*'PM2.5 reduction'!C114),9))","v":0.99999028899999998},{"$f":"VALUE(FIXED(EXP(D$4*-1*'PM2.5 reduction'!D114),9))","v":0.99999162799999997},{"$f":"VALUE(FIXED(EXP(E$4*-1*'PM2.5 reduction'!E114),9))","v":0.99999678199999997},{"$f":"VALUE(FIXED(EXP(F$4*-1*'PM2.5 reduction'!F114),9))","v":0.99999767900000003},{"$f":"VALUE(FIXED(EXP(G$4*-1*'PM2.5 reduction'!G114),9))","v":0.99999883599999995},{"$f":"VALUE(FIXED(EXP(H$4*-1*'PM2.5 reduction'!H114),9))","v":0.99999718500000001},{"$f":"VALUE(FIXED(EXP(I$4*-1*'PM2.5 reduction'!I114),9))","v":0.99999800100000003},{"$f":"VALUE(FIXED(EXP(J$4*-1*'PM2.5 reduction'!J114),9))","v":0.99999585899999999},{"$f":"VALUE(FIXED(EXP(K$4*-1*'PM2.5 reduction'!K114),9))","v":0.99999583400000003},{"$f":"VALUE(FIXED(EXP(L$4*-1*'PM2.5 reduction'!L114),9))","v":0.99999801600000005},{"$f":"VALUE(FIXED(EXP(M$4*-1*'PM2.5 reduction'!M114),9))","v":0.99999801600000005},{"$f":"VALUE(FIXED(EXP(N$4*-1*'PM2.5 reduction'!N114),9))","v":0.99999243999999998},{"$f":"VALUE(FIXED(EXP(O$4*-1*'PM2.5 reduction'!O114),9))","v":0.99999734699999998},{"$f":"VALUE(FIXED(EXP(P$4*-1*'PM2.5 reduction'!P114),9))","v":0.99999275399999998},{"$f":"VALUE(FIXED(EXP(Q$4*-1*'PM2.5 reduction'!Q114),9))","v":0.99999597600000001},{"$f":"VALUE(FIXED(EXP(R$4*-1*'PM2.5 reduction'!R114),9))","v":0.99999441600000005},{"$f":"VALUE(FIXED(EXP(S$4*-1*'PM2.5 reduction'!S114),9))","v":0.99999422900000001},{"$f":"VALUE(FIXED(EXP(T$4*-1*'PM2.5 reduction'!T114),9))","v":0.99998974600000001},{"$f":"VALUE(FIXED(EXP(U$4*-1*'PM2.5 reduction'!U114),9))","v":0.99999866900000001},{"$f":"VALUE(FIXED(EXP(V$4*-1*'PM2.5 reduction'!V114),9))","v":0.99999462299999997},{"$f":"VALUE(FIXED(EXP(W$4*-1*'PM2.5 reduction'!W114),9))","v":0.99999542200000002},{"$f":"VALUE(FIXED(EXP(X$4*-1*'PM2.5 reduction'!X114),9))","v":0.99999542200000002},{"$f":"VALUE(FIXED(EXP(Y$4*-1*'PM2.5 reduction'!Y114),9))","v":0.99999499800000002},{"$f":"VALUE(FIXED(EXP(Z$4*-1*'PM2.5 reduction'!Z114),9))","v":0.99999084900000001},{"$f":"VALUE(FIXED(EXP(AA$4*-1*'PM2.5 reduction'!AA114),9))","v":0.99999328600000004},{"$f":"VALUE(FIXED(EXP(AB$4*-1*'PM2.5 reduction'!AB114),9))","v":0.99999279900000004},{"$f":"VALUE(FIXED(EXP(AC$4*-1*'PM2.5 reduction'!AC114),9))","v":0.99999252699999996},{"$f":"VALUE(FIXED(EXP(AD$4*-1*'PM2.5 reduction'!AD114),9))","v":0.99999824400000004},{"$f":"VALUE(FIXED(EXP(AE$4*-1*'PM2.5 reduction'!AE114),9))","v":0.99999804299999995},{"$f":"VALUE(FIXED(EXP(AF$4*-1*'PM2.5 reduction'!AF114),9))","v":0.99999521199999997},{"$f":"VALUE(FIXED(EXP(AG$4*-1*'PM2.5 reduction'!AG114),9))","v":0.99999804299999995},{"$f":"VALUE(FIXED(EXP(AH$4*-1*'PM2.5 reduction'!AH114),9))","v":0.99999416500000005},{"$f":"VALUE(FIXED(EXP(AI$4*-1*'PM2.5 reduction'!AI114),9))","v":0.99999321600000002},{"$f":"VALUE(FIXED(EXP(AJ$4*-1*'PM2.5 reduction'!AJ114),9))","v":0.99999533600000001},{"$f":"VALUE(FIXED(EXP(AK$4*-1*'PM2.5 reduction'!AK114),9))","v":0.99999796500000004},{"$f":"VALUE(FIXED(EXP(AL$4*-1*'PM2.5 reduction'!AL114),9))","v":0.999997256},{"$f":"VALUE(FIXED(EXP(AM$4*-1*'PM2.5 reduction'!AM114),9))","v":0.99999382199999998},{"$f":"VALUE(FIXED(EXP(AN$4*-1*'PM2.5 reduction'!AN114),9))","v":0.99999827200000002},{"$f":"VALUE(FIXED(EXP(AO$4*-1*'PM2.5 reduction'!AO114),9))","v":0.99999827200000002},{"$f":"VALUE(FIXED(EXP(AP$4*-1*'PM2.5 reduction'!AP114),9))","v":0.99999608699999998},{"$f":"VALUE(FIXED(EXP(AQ$4*-1*'PM2.5 reduction'!AQ114),9))","v":0.999994418},{"$f":"VALUE(FIXED(EXP(AR$4*-1*'PM2.5 reduction'!AR114),9))","v":0.99999425600000003},{"$f":"VALUE(FIXED(EXP(AS$4*-1*'PM2.5 reduction'!AS114),9))","v":0.99999800100000003},{"$f":"VALUE(FIXED(EXP(AT$4*-1*'PM2.5 reduction'!AT114),9))","v":1},{"$f":"VALUE(FIXED(EXP(AU$4*-1*'PM2.5 reduction'!AU114),9))","v":1},{"$f":"VALUE(FIXED(EXP(AV$4*-1*'PM2.5 reduction'!AV114),9))","v":0.99999691700000004},{"$f":"VALUE(FIXED(EXP(AW$4*-1*'PM2.5 reduction'!AW114),9))","v":0.99999453500000002},{"$f":"VALUE(FIXED(EXP(AX$4*-1*'PM2.5 reduction'!AX114),9))","v":0.99999587899999998},{"$f":"VALUE(FIXED(EXP(AY$4*-1*'PM2.5 reduction'!AY114),9))","v":0.99999501599999996},{"$f":"VALUE(FIXED(EXP(AZ$4*-1*'PM2.5 reduction'!AZ114),9))","v":0.99999455900000001},{"$f":"VALUE(FIXED(EXP(BA$4*-1*'PM2.5 reduction'!BA114),9))","v":0.99999425900000005},{"$f":"VALUE(FIXED(EXP(BB$4*-1*'PM2.5 reduction'!BB114),9))","v":0.99999493900000003},{"$f":"VALUE(FIXED(EXP(BC$4*-1*'PM2.5 reduction'!BC114),9))","v":0.99999866900000001}]
[null,"Female 85-89",{"$f":"VALUE(FIXED(EXP(C$4*-1*'PM2.5 reduction'!C115),9))","v":0.99999045600000003},{"$f":"VALUE(FIXED(EXP(D$4*-1*'PM2.5 reduction'!D115),9))","v":0.99999200200000005},{"$f":"VALUE(FIXED(EXP(E$4*-1*'PM2.5 reduction'!E115),9))","v":0.99999732299999999},{"$f":"VALUE(FIXED(EXP(F$4*-1*'PM2.5 reduction'!F115),9))","v":0.99999766800000001},{"$f":"VALUE(FIXED(EXP(G$4*-1*'PM2.5 reduction'!G115),9))","v":0.99999885099999997},{"$f":"VALUE(FIXED(EXP(H$4*-1*'PM2.5 reduction'!H115),9))","v":0.999996997},{"$f":"VALUE(FIXED(EXP(I$4*-1*'PM2.5 reduction'!I115),9))","v":0.99999802999999998},{"$f":"VALUE(FIXED(EXP(J$4*-1*'PM2.5 reduction'!J115),9))","v":0.99999584900000005},{"$f":"VALUE(FIXED(EXP(K$4*-1*'PM2.5 reduction'!K115),9))","v":0.99999554999999996},{"$f":"VALUE(FIXED(EXP(L$4*-1*'PM2.5 reduction'!L115),9))","v":0.99999808899999998},{"$f":"VALUE(FIXED(EXP(M$4*-1*'PM2.5 reduction'!M115),9))","v":0.99999808899999998},{"$f":"VALUE(FIXED(EXP(N$4*-1*'PM2.5 reduction'!N115),9))","v":0.99999218400000001},{"$f":"VALUE(FIXED(EXP(O$4*-1*'PM2.5 reduction'!O115),9))","v":0.99999715},{"$f":"VALUE(FIXED(EXP(P$4*-1*'PM2.5 reduction'!P115),9))","v":0.99999260199999995},{"$f":"VALUE(FIXED(EXP(Q$4*-1*'PM2.5 reduction'!Q115),9))","v":0.99999571099999995},{"$f":"VALUE(FIXED(EXP(R$4*-1*'PM2.5 reduction'!R115),9))","v":0.99999443200000004},{"$f":"VALUE(FIXED(EXP(S$4*-1*'PM2.5 reduction'!S115),9))","v":0.99999401200000004},{"$f":"VALUE(FIXED(EXP(T$4*-1*'PM2.5 reduction'!T115),9))","v":0.99998962499999999},{"$f":"VALUE(FIXED(EXP(U$4*-1*'PM2.5 reduction'!U115),9))","v":0.99999866900000001},{"$f":"VALUE(FIXED(EXP(V$4*-1*'PM2.5 reduction'!V115),9))","v":0.99999485200000005},{"$f":"VALUE(FIXED(EXP(W$4*-1*'PM2.5 reduction'!W115),9))","v":0.99999523800000001},{"$f":"VALUE(FIXED(EXP(X$4*-1*'PM2.5 reduction'!X115),9))","v":0.99999523800000001},{"$f":"VALUE(FIXED(EXP(Y$4*-1*'PM2.5 reduction'!Y115),9))","v":0.99999512800000001},{"$f":"VALUE(FIXED(EXP(Z$4*-1*'PM2.5 reduction'!Z115),9))","v":0.99999056600000003},{"$f":"VALUE(FIXED(EXP(AA$4*-1*'PM2.5 reduction'!AA115),9))","v":0.99999297899999995},{"$f":"VALUE(FIXED(EXP(AB$4*-1*'PM2.5 reduction'!AB115),9))","v":0.99999317799999998},{"$f":"VALUE(FIXED(EXP(AC$4*-1*'PM2.5 reduction'!AC115),9))","v":0.99999212699999995},{"$f":"VALUE(FIXED(EXP(AD$4*-1*'PM2.5 reduction'!AD115),9))","v":0.99999822599999999},{"$f":"VALUE(FIXED(EXP(AE$4*-1*'PM2.5 reduction'!AE115),9))","v":0.99999801200000005},{"$f":"VALUE(FIXED(EXP(AF$4*-1*'PM2.5 reduction'!AF115),9))","v":0.99999492899999998},{"$f":"VALUE(FIXED(EXP(AG$4*-1*'PM2.5 reduction'!AG115),9))","v":0.99999801200000005},{"$f":"VALUE(FIXED(EXP(AH$4*-1*'PM2.5 reduction'!AH115),9))","v":0.999993943},{"$f":"VALUE(FIXED(EXP(AI$4*-1*'PM2.5 reduction'!AI115),9))","v":0.999992934},{"$f":"VALUE(FIXED(EXP(AJ$4*-1*'PM2.5 reduction'!AJ115),9))","v":0.99999552700000005},{"$f":"VALUE(FIXED(EXP(AK$4*-1*'PM2.5 reduction'!AK115),9))","v":0.99999785500000005},{"$f":"VALUE(FIXED(EXP(AL$4*-1*'PM2.5 reduction'!AL115),9))","v":0.99999719600000003},{"$f":"VALUE(FIXED(EXP(AM$4*-1*'PM2.5 reduction'!AM115),9))","v":0.99999369500000002},{"$f":"VALUE(FIXED(EXP(AN$4*-1*'PM2.5 reduction'!AN115),9))","v":0.99999834799999998},{"$f":"VALUE(FIXED(EXP(AO$4*-1*'PM2.5 reduction'!AO115),9))","v":0.99999834799999998},{"$f":"VALUE(FIXED(EXP(AP$4*-1*'PM2.5 reduction'!AP115),9))","v":0.99999620199999995},{"$f":"VALUE(FIXED(EXP(AQ$4*-1*'PM2.5 reduction'!AQ115),9))","v":0.99999444999999998},{"$f":"VALUE(FIXED(EXP(AR$4*-1*'PM2.5 reduction'!AR115),9))","v":0.99999410099999997},{"$f":"VALUE(FIXED(EXP(AS$4*-1*'PM2.5 reduction'!AS115),9))","v":0.99999802999999998},{"$f":"VALUE(FIXED(EXP(AT$4*-1*'PM2.5 reduction'!AT115),9))","v":1},{"$f":"VALUE(FIXED(EXP(AU$4*-1*'PM2.5 reduction'!AU115),9))","v":1},{"$f":"VALUE(FIXED(EXP(AV$4*-1*'PM2.5 reduction'!AV115),9))","v":0.99999661799999995},{"$f":"VALUE(FIXED(EXP(AW$4*-1*'PM2.5 reduction'!AW115),9))","v":0.99999418799999995},{"$f":"VALUE(FIXED(EXP(AX$4*-1*'PM2.5 reduction'!AX115),9))","v":0.99999613300000001},{"$f":"VALUE(FIXED(EXP(AY$4*-1*'PM2.5 reduction'!AY115),9))","v":0.99999508100000001},{"$f":"VALUE(FIXED(EXP(AZ$4*-1*'PM2.5 reduction'!AZ115),9))","v":0.99999491500000004},{"$f":"VALUE(FIXED(EXP(BA$4*-1*'PM2.5 reduction'!BA115),9))","v":0.99999390200000005},{"$f":"VALUE(FIXED(EXP(BB$4*-1*'PM2.5 reduction'!BB115),9))","v":0.99999468999999996},{"$f":"VALUE(FIXED(EXP(BC$4*-1*'PM2.5 reduction'!BC115),9))","v":0.99999866900000001}]
[null,"Female 90+",{"$f":"VALUE(FIXED(EXP(C$4*-1*'PM2.5 reduction'!C116),9))","v":0.99999005900000004},{"$f":"VALUE(FIXED(EXP(D$4*-1*'PM2.5 reduction'!D116),9))","v":0.99999210000000005},{"$f":"VALUE(FIXED(EXP(E$4*-1*'PM2.5 reduction'!E116),9))","v":0.999997688},{"$f":"VALUE(FIXED(EXP(F$4*-1*'PM2.5 reduction'!F116),9))","v":0.99999754100000005},{"$f":"VALUE(FIXED(EXP(G$4*-1*'PM2.5 reduction'!G116),9))","v":0.99999887399999998},{"$f":"VALUE(FIXED(EXP(H$4*-1*'PM2.5 reduction'!H116),9))","v":0.999996938},{"$f":"VALUE(FIXED(EXP(I$4*-1*'PM2.5 reduction'!I116),9))","v":0.99999801600000005},{"$f":"VALUE(FIXED(EXP(J$4*-1*'PM2.5 reduction'!J116),9))","v":0.999995513},{"$f":"VALUE(FIXED(EXP(K$4*-1*'PM2.5 reduction'!K116),9))","v":0.99999548699999996},{"$f":"VALUE(FIXED(EXP(L$4*-1*'PM2.5 reduction'!L116),9))","v":0.99999779700000002},{"$f":"VALUE(FIXED(EXP(M$4*-1*'PM2.5 reduction'!M116),9))","v":0.99999779700000002},{"$f":"VALUE(FIXED(EXP(N$4*-1*'PM2.5 reduction'!N116),9))","v":0.99999213200000003},{"$f":"VALUE(FIXED(EXP(O$4*-1*'PM2.5 reduction'!O116),9))","v":0.99999685800000004},{"$f":"VALUE(FIXED(EXP(P$4*-1*'PM2.5 reduction'!P116),9))","v":0.999992671},{"$f":"VALUE(FIXED(EXP(Q$4*-1*'PM2.5 reduction'!Q116),9))","v":0.99999593899999994},{"$f":"VALUE(FIXED(EXP(R$4*-1*'PM2.5 reduction'!R116),9))","v":0.99999453299999996},{"$f":"VALUE(FIXED(EXP(S$4*-1*'PM2.5 reduction'!S116),9))","v":0.99999376799999995},{"$f":"VALUE(FIXED(EXP(T$4*-1*'PM2.5 reduction'!T116),9))","v":0.99998889499999999},{"$f":"VALUE(FIXED(EXP(U$4*-1*'PM2.5 reduction'!U116),9))","v":0.99999866900000001},{"$f":"VALUE(FIXED(EXP(V$4*-1*'PM2.5 reduction'!V116),9))","v":0.99999500500000005},{"$f":"VALUE(FIXED(EXP(W$4*-1*'PM2.5 reduction'!W116),9))","v":0.99999525899999997},{"$f":"VALUE(FIXED(EXP(X$4*-1*'PM2.5 reduction'!X116),9))","v":0.99999525899999997},{"$f":"VALUE(FIXED(EXP(Y$4*-1*'PM2.5 reduction'!Y116),9))","v":0.99999515699999997},{"$f":"VALUE(FIXED(EXP(Z$4*-1*'PM2.5 reduction'!Z116),9))","v":0.99999104800000005},{"$f":"VALUE(FIXED(EXP(AA$4*-1*'PM2.5 reduction'!AA116),9))","v":0.99999290799999996},{"$f":"VALUE(FIXED(EXP(AB$4*-1*'PM2.5 reduction'!AB116),9))","v":0.999993201},{"$f":"VALUE(FIXED(EXP(AC$4*-1*'PM2.5 reduction'!AC116),9))","v":0.99999219500000003},{"$f":"VALUE(FIXED(EXP(AD$4*-1*'PM2.5 reduction'!AD116),9))","v":0.99999812499999996},{"$f":"VALUE(FIXED(EXP(AE$4*-1*'PM2.5 reduction'!AE116),9))","v":0.99999787799999995},{"$f":"VALUE(FIXED(EXP(AF$4*-1*'PM2.5 reduction'!AF116),9))","v":0.99999341600000002},{"$f":"VALUE(FIXED(EXP(AG$4*-1*'PM2.5 reduction'!AG116),9))","v":0.99999787799999995},{"$f":"VALUE(FIXED(EXP(AH$4*-1*'PM2.5 reduction'!AH116),9))","v":0.99999382699999995},{"$f":"VALUE(FIXED(EXP(AI$4*-1*'PM2.5 reduction'!AI116),9))","v":0.99999243100000001},{"$f":"VALUE(FIXED(EXP(AJ$4*-1*'PM2.5 reduction'!AJ116),9))","v":0.99999564299999999},{"$f":"VALUE(FIXED(EXP(AK$4*-1*'PM2.5 reduction'!AK116),9))","v":0.99999789500000003},{"$f":"VALUE(FIXED(EXP(AL$4*-1*'PM2.5 reduction'!AL116),9))","v":0.99999738000000005},{"$f":"VALUE(FIXED(EXP(AM$4*-1*'PM2.5 reduction'!AM116),9))","v":0.99999353599999996},{"$f":"VALUE(FIXED(EXP(AN$4*-1*'PM2.5 reduction'!AN116),9))","v":0.99999846199999998},{"$f":"VALUE(FIXED(EXP(AO$4*-1*'PM2.5 reduction'!AO116),9))","v":0.99999846199999998},{"$f":"VALUE(FIXED(EXP(AP$4*-1*'PM2.5 reduction'!AP116),9))","v":0.99999606200000002},{"$f":"VALUE(FIXED(EXP(AQ$4*-1*'PM2.5 reduction'!AQ116),9))","v":0.99999459199999996},{"$f":"VALUE(FIXED(EXP(AR$4*-1*'PM2.5 reduction'!AR116),9))","v":0.99999413999999998},{"$f":"VALUE(FIXED(EXP(AS$4*-1*'PM2.5 reduction'!AS116),9))","v":0.99999801600000005},{"$f":"VALUE(FIXED(EXP(AT$4*-1*'PM2.5 reduction'!AT116),9))","v":1},{"$f":"VALUE(FIXED(EXP(AU$4*-1*'PM2.5 reduction'!AU116),9))","v":1},{"$f":"VALUE(FIXED(EXP(AV$4*-1*'PM2.5 reduction'!AV116),9))","v":0.99999666700000001},{"$f":"VALUE(FIXED(EXP(AW$4*-1*'PM2.5 reduction'!AW116),9))","v":0.99999408499999998},{"$f":"VALUE(FIXED(EXP(AX$4*-1*'PM2.5 reduction'!AX116),9))","v":0.99999553500000005},{"$f":"VALUE(FIXED(EXP(AY$4*-1*'PM2.5 reduction'!AY116),9))","v":0.999994987},{"$f":"VALUE(FIXED(EXP(AZ$4*-1*'PM2.5 reduction'!AZ116),9))","v":0.99999469799999996},{"$f":"VALUE(FIXED(EXP(BA$4*-1*'PM2.5 reduction'!BA116),9))","v":0.99999418900000003},{"$f":"VALUE(FIXED(EXP(BB$4*-1*'PM2.5 reduction'!BB116),9))","v":0.99999466599999998},{"$f":"VALUE(FIXED(EXP(BC$4*-1*'PM2.5 reduction'!BC116),9))","v":0.99999866900000001}]
[null,"Male 0-4",{"$f":"VALUE(FIXED(EXP(C$4*-1*'PM2.5 reduction'!C117),9))","v":0.99999053000000004},{"$f":"VALUE(FIXED(EXP(D$4*-1*'PM2.5 reduction'!D117),9))","v":0.99999152899999999},{"$f":"VALUE(FIXED(EXP(E$4*-1*'PM2.5 reduction'!E117),9))","v":0.99999738599999999},{"$f":"VALUE(FIXED(EXP(F$4*-1*'PM2.5 reduction'!F117),9))","v":0.99999789500000003},{"$f":"VALUE(FIXED(EXP(G$4*-1*'PM2.5 reduction'!G117),9))","v":0.99999895599999999},{"$f":"VALUE(FIXED(EXP(H$4*-1*'PM2.5 reduction'!H117),9))","v":0.99999742199999997},{"$f":"VALUE(FIXED(EXP(I$4*-1*'PM2.5 reduction'!I117),9))","v":0.99999807500000004},{"$f":"VALUE(FIXED(EXP(J$4*-1*'PM2.5 reduction'!J117),9))","v":0.99999573399999997},{"$f":"VALUE(FIXED(EXP(K$4*-1*'PM2.5 reduction'!K117),9))","v":0.99999561699999995},{"$f":"VALUE(FIXED(EXP(L$4*-1*'PM2.5 reduction'!L117),9))","v":0.999998269},{"$f":"VALUE(FIXED(EXP(M$4*-1*'PM2.5 reduction'!M117),9))","v":0.999998269},{"$f":"VALUE(FIXED(EXP(N$4*-1*'PM2.5 reduction'!N117),9))","v":0.99999200200000005},{"$f":"VALUE(FIXED(EXP(O$4*-1*'PM2.5 reduction'!O117),9))","v":0.999997519},{"$f":"VALUE(FIXED(EXP(P$4*-1*'PM2.5 reduction'!P117),9))","v":0.99999249499999998},{"$f":"VALUE(FIXED(EXP(Q$4*-1*'PM2.5 reduction'!Q117),9))","v":0.99999604200000003},{"$f":"VALUE(FIXED(EXP(R$4*-1*'PM2.5 reduction'!R117),9))","v":0.99999447699999999},{"$f":"VALUE(FIXED(EXP(S$4*-1*'PM2.5 reduction'!S117),9))","v":0.99999386599999995},{"$f":"VALUE(FIXED(EXP(T$4*-1*'PM2.5 reduction'!T117),9))","v":0.999989927},{"$f":"VALUE(FIXED(EXP(U$4*-1*'PM2.5 reduction'!U117),9))","v":0.99999866900000001},{"$f":"VALUE(FIXED(EXP(V$4*-1*'PM2.5 reduction'!V117),9))","v":0.99999480200000002},{"$f":"VALUE(FIXED(EXP(W$4*-1*'PM2.5 reduction'!W117),9))","v":0.99999533299999999},{"$f":"VALUE(FIXED(EXP(X$4*-1*'PM2.5 reduction'!X117),9))","v":0.99999533299999999},{"$f":"VALUE(FIXED(EXP(Y$4*-1*'PM2.5 reduction'!Y117),9))","v":0.99999510899999999},{"$f":"VALUE(FIXED(EXP(Z$4*-1*'PM2.5 reduction'!Z117),9))","v":0.99999039599999995},{"$f":"VALUE(FIXED(EXP(AA$4*-1*'PM2.5 reduction'!AA117),9))","v":0.99999313599999995},{"$f":"VALUE(FIXED(EXP(AB$4*-1*'PM2.5 reduction'!AB117),9))","v":0.99999279600000002},{"$f":"VALUE(FIXED(EXP(AC$4*-1*'PM2.5 reduction'!AC117),9))","v":0.99999203299999995},{"$f":"VALUE(FIXED(EXP(AD$4*-1*'PM2.5 reduction'!AD117),9))","v":0.99999823099999996},{"$f":"VALUE(FIXED(EXP(AE$4*-1*'PM2.5 reduction'!AE117),9))","v":0.99999806199999997},{"$f":"VALUE(FIXED(EXP(AF$4*-1*'PM2.5 reduction'!AF117),9))","v":0.99999522699999999},{"$f":"VALUE(FIXED(EXP(AG$4*-1*'PM2.5 reduction'!AG117),9))","v":0.99999806199999997},{"$f":"VALUE(FIXED(EXP(AH$4*-1*'PM2.5 reduction'!AH117),9))","v":0.99999444900000001},{"$f":"VALUE(FIXED(EXP(AI$4*-1*'PM2.5 reduction'!AI117),9))","v":0.99999307400000004},{"$f":"VALUE(FIXED(EXP(AJ$4*-1*'PM2.5 reduction'!AJ117),9))","v":0.99999548000000005},{"$f":"VALUE(FIXED(EXP(AK$4*-1*'PM2.5 reduction'!AK117),9))","v":0.999998057},{"$f":"VALUE(FIXED(EXP(AL$4*-1*'PM2.5 reduction'!AL117),9))","v":0.99999741399999997},{"$f":"VALUE(FIXED(EXP(AM$4*-1*'PM2.5 reduction'!AM117),9))","v":0.99999398799999994},{"$f":"VALUE(FIXED(EXP(AN$4*-1*'PM2.5 reduction'!AN117),9))","v":0.99999820100000003},{"$f":"VALUE(FIXED(EXP(AO$4*-1*'PM2.5 reduction'!AO117),9))","v":0.99999820100000003},{"$f":"VALUE(FIXED(EXP(AP$4*-1*'PM2.5 reduction'!AP117),9))","v":0.99999618199999996},{"$f":"VALUE(FIXED(EXP(AQ$4*-1*'PM2.5 reduction'!AQ117),9))","v":0.99999437000000002},{"$f":"VALUE(FIXED(EXP(AR$4*-1*'PM2.5 reduction'!AR117),9))","v":0.99999410600000005},{"$f":"VALUE(FIXED(EXP(AS$4*-1*'PM2.5 reduction'!AS117),9))","v":0.99999807500000004},{"$f":"VALUE(FIXED(EXP(AT$4*-1*'PM2.5 reduction'!AT117),9))","v":1},{"$f":"VALUE(FIXED(EXP(AU$4*-1*'PM2.5 reduction'!AU117),9))","v":1},{"$f":"VALUE(FIXED(EXP(AV$4*-1*'PM2.5 reduction'!AV117),9))","v":0.99999727599999999},{"$f":"VALUE(FIXED(EXP(AW$4*-1*'PM2.5 reduction'!AW117),9))","v":0.99999497500000001},{"$f":"VALUE(FIXED(EXP(AX$4*-1*'PM2.5 reduction'!AX117),9))","v":0.99999585199999996},{"$f":"VALUE(FIXED(EXP(AY$4*-1*'PM2.5 reduction'!AY117),9))","v":0.99999496099999996},{"$f":"VALUE(FIXED(EXP(AZ$4*-1*'PM2.5 reduction'!AZ117),9))","v":0.999994567},{"$f":"VALUE(FIXED(EXP(BA$4*-1*'PM2.5 reduction'!BA117),9))","v":0.99999431599999999},{"$f":"VALUE(FIXED(EXP(BB$4*-1*'PM2.5 reduction'!BB117),9))","v":0.99999483300000003},{"$f":"VALUE(FIXED(EXP(BC$4*-1*'PM2.5 reduction'!BC117),9))","v":0.99999866900000001}]
[null,"Male 5-9",{"$f":"VALUE(FIXED(EXP(C$4*-1*'PM2.5 reduction'!C118),9))","v":0.99999075500000001},{"$f":"VALUE(FIXED(EXP(D$4*-1*'PM2.5 reduction'!D118),9))","v":0.99999196300000004},{"$f":"VALUE(FIXED(EXP(E$4*-1*'PM2.5 reduction'!E118),9))","v":0.999997425},{"$f":"VALUE(FIXED(EXP(F$4*-1*'PM2.5 reduction'!F118),9))","v":0.99999792300000001},{"$f":"VALUE(FIXED(EXP(G$4*-1*'PM2.5 reduction'!G118),9))","v":0.99999899800000003},{"$f":"VALUE(FIXED(EXP(H$4*-1*'PM2.5 reduction'!H118),9))","v":0.99999741499999995},{"$f":"VALUE(FIXED(EXP(I$4*-1*'PM2.5 reduction'!I118),9))","v":0.99999801399999999},{"$f":"VALUE(FIXED(EXP(J$4*-1*'PM2.5 reduction'!J118),9))","v":0.99999569300000002},{"$f":"VALUE(FIXED(EXP(K$4*-1*'PM2.5 reduction'!K118),9))","v":0.999995619},{"$f":"VALUE(FIXED(EXP(L$4*-1*'PM2.5 reduction'!L118),9))","v":0.99999834600000004},{"$f":"VALUE(FIXED(EXP(M$4*-1*'PM2.5 reduction'!M118),9))","v":0.99999834600000004},{"$f":"VALUE(FIXED(EXP(N$4*-1*'PM2.5 reduction'!N118),9))","v":0.999992349},{"$f":"VALUE(FIXED(EXP(O$4*-1*'PM2.5 reduction'!O118),9))","v":0.99999751000000003},{"$f":"VALUE(FIXED(EXP(P$4*-1*'PM2.5 reduction'!P118),9))","v":0.99999249099999998},{"$f":"VALUE(FIXED(EXP(Q$4*-1*'PM2.5 reduction'!Q118),9))","v":0.99999590800000004},{"$f":"VALUE(FIXED(EXP(R$4*-1*'PM2.5 reduction'!R118),9))","v":0.99999452899999997},{"$f":"VALUE(FIXED(EXP(S$4*-1*'PM2.5 reduction'!S118),9))","v":0.99999400500000002},{"$f":"VALUE(FIXED(EXP(T$4*-1*'PM2.5 reduction'!T118),9))","v":0.99998998900000002},{"$f":"VALUE(FIXED(EXP(U$4*-1*'PM2.5 reduction'!U118),9))","v":0.99999866900000001},{"$f":"VALUE(FIXED(EXP(V$4*-1*'PM2.5 reduction'!V118),9))","v":0.99999487200000003},{"$f":"VALUE(FIXED(EXP(W$4*-1*'PM2.5 reduction'!W118),9))","v":0.99999542699999999},{"$f":"VALUE(FIXED(EXP(X$4*-1*'PM2.5 reduction'!X118),9))","v":0.99999542699999999},{"$f":"VALUE(FIXED(EXP(Y$4*-1*'PM2.5 reduction'!Y118),9))","v":0.99999512499999998},{"$f":"VALUE(FIXED(EXP(Z$4*-1*'PM2.5 reduction'!Z118),9))","v":0.99999063899999996},{"$f":"VALUE(FIXED(EXP(AA$4*-1*'PM2.5 reduction'!AA118),9))","v":0.99999332500000004},{"$f":"VALUE(FIXED(EXP(AB$4*-1*'PM2.5 reduction'!AB118),9))","v":0.99999330900000005},{"$f":"VALUE(FIXED(EXP(AC$4*-1*'PM2.5 reduction'!AC118),9))","v":0.99999232800000004},{"$f":"VALUE(FIXED(EXP(AD$4*-1*'PM2.5 reduction'!AD118),9))","v":0.99999830000000001},{"$f":"VALUE(FIXED(EXP(AE$4*-1*'PM2.5 reduction'!AE118),9))","v":0.99999814799999998},{"$f":"VALUE(FIXED(EXP(AF$4*-1*'PM2.5 reduction'!AF118),9))","v":0.99999525199999995},{"$f":"VALUE(FIXED(EXP(AG$4*-1*'PM2.5 reduction'!AG118),9))","v":0.99999814799999998},{"$f":"VALUE(FIXED(EXP(AH$4*-1*'PM2.5 reduction'!AH118),9))","v":0.99999443200000004},{"$f":"VALUE(FIXED(EXP(AI$4*-1*'PM2.5 reduction'!AI118),9))","v":0.99999324000000001},{"$f":"VALUE(FIXED(EXP(AJ$4*-1*'PM2.5 reduction'!AJ118),9))","v":0.99999544500000004},{"$f":"VALUE(FIXED(EXP(AK$4*-1*'PM2.5 reduction'!AK118),9))","v":0.99999806800000002},{"$f":"VALUE(FIXED(EXP(AL$4*-1*'PM2.5 reduction'!AL118),9))","v":0.99999749000000004},{"$f":"VALUE(FIXED(EXP(AM$4*-1*'PM2.5 reduction'!AM118),9))","v":0.99999398399999995},{"$f":"VALUE(FIXED(EXP(AN$4*-1*'PM2.5 reduction'!AN118),9))","v":0.99999823399999999},{"$f":"VALUE(FIXED(EXP(AO$4*-1*'PM2.5 reduction'!AO118),9))","v":0.99999823399999999},{"$f":"VALUE(FIXED(EXP(AP$4*-1*'PM2.5 reduction'!AP118),9))","v":0.99999635200000003},{"$f":"VALUE(FIXED(EXP(AQ$4*-1*'PM2.5 reduction'!AQ118),9))","v":0.99999451500000003},{"$f":"VALUE(FIXED(EXP(AR$4*-1*'PM2.5 reduction'!AR118),9))","v":0.99999429399999995},{"$f":"VALUE(FIXED(EXP(AS$4*-1*'PM2.5 reduction'!AS118),9))","v":0.99999801399999999},{"$f":"VALUE(FIXED(EXP(AT$4*-1*'PM2.5 reduction'!AT118),9))","v":1},{"$f":"VALUE(FIXED(EXP(AU$4*-1*'PM2.5 reduction'!AU118),9))","v":1},{"$f":"VALUE(FIXED(EXP(AV$4*-1*'PM2.5 reduction'!AV118),9))","v":0.99999719099999995},{"$f":"VALUE(FIXED(EXP(AW$4*-1*'PM2.5 reduction'!AW118),9))","v":0.99999501899999998},{"$f":"VALUE(FIXED(EXP(AX$4*-1*'PM2.5 reduction'!AX118),9))","v":0.99999577399999995},{"$f":"VALUE(FIXED(EXP(AY$4*-1*'PM2.5 reduction'!AY118),9))","v":0.99999512400000001},{"$f":"VALUE(FIXED(EXP(AZ$4*-1*'PM2.5 reduction'!AZ118),9))","v":0.99999477000000003},{"$f":"VALUE(FIXED(EXP(BA$4*-1*'PM2.5 reduction'!BA118),9))","v":0.99999425399999997},{"$f":"VALUE(FIXED(EXP(BB$4*-1*'PM2.5 reduction'!BB118),9))","v":0.99999482900000003},{"$f":"VALUE(FIXED(EXP(BC$4*-1*'PM2.5 reduction'!BC118),9))","v":0.99999866900000001}]
[null,"Male 10-15",{"$f":"VALUE(FIXED(EXP(C$4*-1*'PM2.5 reduction'!C119),9))","v":0.99999075400000004},{"$f":"VALUE(FIXED(EXP(D$4*-1*'PM2.5 reduction'!D119),9))","v":0.99999177299999997},{"$f":"VALUE(FIXED(EXP(E$4*-1*'PM2.5 reduction'!E119),9))","v":0.99999761399999998},{"$f":"VALUE(FIXED(EXP(F$4*-1*'PM2.5 reduction'!F119),9))","v":0.99999787799999995},{"$f":"VALUE(FIXED(EXP(G$4*-1*'PM2.5 reduction'!G119),9))","v":0.999999003},{"$f":"VALUE(FIXED(EXP(H$4*-1*'PM2.5 reduction'!H119),9))","v":0.99999734699999998},{"$f":"VALUE(FIXED(EXP(I$4*-1*'PM2.5 reduction'!I119),9))","v":0.99999801899999996},{"$f":"VALUE(FIXED(EXP(J$4*-1*'PM2.5 reduction'!J119),9))","v":0.999995725},{"$f":"VALUE(FIXED(EXP(K$4*-1*'PM2.5 reduction'!K119),9))","v":0.99999569099999996},{"$f":"VALUE(FIXED(EXP(L$4*-1*'PM2.5 reduction'!L119),9))","v":0.999998257},{"$f":"VALUE(FIXED(EXP(M$4*-1*'PM2.5 reduction'!M119),9))","v":0.999998257},{"$f":"VALUE(FIXED(EXP(N$4*-1*'PM2.5 reduction'!N119),9))","v":0.99999237799999996},{"$f":"VALUE(FIXED(EXP(O$4*-1*'PM2.5 reduction'!O119),9))","v":0.99999746199999995},{"$f":"VALUE(FIXED(EXP(P$4*-1*'PM2.5 reduction'!P119),9))","v":0.99999254100000001},{"$f":"VALUE(FIXED(EXP(Q$4*-1*'PM2.5 reduction'!Q119),9))","v":0.99999605000000003},{"$f":"VALUE(FIXED(EXP(R$4*-1*'PM2.5 reduction'!R119),9))","v":0.999994198},{"$f":"VALUE(FIXED(EXP(S$4*-1*'PM2.5 reduction'!S119),9))","v":0.99999417199999996},{"$f":"VALUE(FIXED(EXP(T$4*-1*'PM2.5 reduction'!T119),9))","v":0.99998997099999998},{"$f":"VALUE(FIXED(EXP(U$4*-1*'PM2.5 reduction'!U119),9))","v":0.99999866900000001},{"$f":"VALUE(FIXED(EXP(V$4*-1*'PM2.5 reduction'!V119),9))","v":0.99999502699999998},{"$f":"VALUE(FIXED(EXP(W$4*-1*'PM2.5 reduction'!W119),9))","v":0.99999542500000005},{"$f":"VALUE(FIXED(EXP(X$4*-1*'PM2.5 reduction'!X119),9))","v":0.99999542500000005},{"$f":"VALUE(FIXED(EXP(Y$4*-1*'PM2.5 reduction'!Y119),9))","v":0.99999524799999995},{"$f":"VALUE(FIXED(EXP(Z$4*-1*'PM2.5 reduction'!Z119),9))","v":0.99999074099999996},{"$f":"VALUE(FIXED(EXP(AA$4*-1*'PM2.5 reduction'!AA119),9))","v":0.99999343900000004},{"$f":"VALUE(FIXED(EXP(AB$4*-1*'PM2.5 reduction'!AB119),9))","v":0.99999302199999995},{"$f":"VALUE(FIXED(EXP(AC$4*-1*'PM2.5 reduction'!AC119),9))","v":0.99999247800000002},{"$f":"VALUE(FIXED(EXP(AD$4*-1*'PM2.5 reduction'!AD119),9))","v":0.99999837499999999},{"$f":"VALUE(FIXED(EXP(AE$4*-1*'PM2.5 reduction'!AE119),9))","v":0.99999819400000001},{"$f":"VALUE(FIXED(EXP(AF$4*-1*'PM2.5 reduction'!AF119),9))","v":0.99999575900000004},{"$f":"VALUE(FIXED(EXP(AG$4*-1*'PM2.5 reduction'!AG119),9))","v":0.99999819400000001},{"$f":"VALUE(FIXED(EXP(AH$4*-1*'PM2.5 reduction'!AH119),9))","v":0.99999444999999998},{"$f":"VALUE(FIXED(EXP(AI$4*-1*'PM2.5 reduction'!AI119),9))","v":0.99999343900000004},{"$f":"VALUE(FIXED(EXP(AJ$4*-1*'PM2.5 reduction'!AJ119),9))","v":0.99999538099999996},{"$f":"VALUE(FIXED(EXP(AK$4*-1*'PM2.5 reduction'!AK119),9))","v":0.99999812600000004},{"$f":"VALUE(FIXED(EXP(AL$4*-1*'PM2.5 reduction'!AL119),9))","v":0.99999740000000004},{"$f":"VALUE(FIXED(EXP(AM$4*-1*'PM2.5 reduction'!AM119),9))","v":0.99999395499999999},{"$f":"VALUE(FIXED(EXP(AN$4*-1*'PM2.5 reduction'!AN119),9))","v":0.99999819099999998},{"$f":"VALUE(FIXED(EXP(AO$4*-1*'PM2.5 reduction'!AO119),9))","v":0.99999819099999998},{"$f":"VALUE(FIXED(EXP(AP$4*-1*'PM2.5 reduction'!AP119),9))","v":0.99999638999999996},{"$f":"VALUE(FIXED(EXP(AQ$4*-1*'PM2.5 reduction'!AQ119),9))","v":0.99999450899999998},{"$f":"VALUE(FIXED(EXP(AR$4*-1*'PM2.5 reduction'!AR119),9))","v":0.99999438699999998},{"$f":"VALUE(FIXED(EXP(AS$4*-1*'PM2.5 reduction'!AS119),9))","v":0.99999801899999996},{"$f":"VALUE(FIXED(EXP(AT$4*-1*'PM2.5 reduction'!AT119),9))","v":1},{"$f":"VALUE(FIXED(EXP(AU$4*-1*'PM2.5 reduction'!AU119),9))","v":1},{"$f":"VALUE(FIXED(EXP(AV$4*-1*'PM2.5 reduction'!AV119),9))","v":0.99999709699999995},{"$f":"VALUE(FIXED(EXP(AW$4*-1*'PM2.5 reduction'!AW119),9))","v":0.99999509200000003},{"$f":"VALUE(FIXED(EXP(AX$4*-1*'PM2.5 reduction'!AX119),9))","v":0.99999576099999998},{"$f":"VALUE(FIXED(EXP(AY$4*-1*'PM2.5 reduction'!AY119),9))","v":0.99999519000000003},{"$f":"VALUE(FIXED(EXP(AZ$4*-1*'PM2.5 reduction'!AZ119),9))","v":0.99999490499999999},{"$f":"VALUE(FIXED(EXP(BA$4*-1*'PM2.5 reduction'!BA119),9))","v":0.99999417999999995},{"$f":"VALUE(FIXED(EXP(BB$4*-1*'PM2.5 reduction'!BB119),9))","v":0.99999489799999997},{"$f":"VALUE(FIXED(EXP(BC$4*-1*'PM2.5 reduction'!BC119),9))","v":0.99999866900000001}]
[null,"Male 16-19",{"$f":"VALUE(FIXED(EXP(C$4*-1*'PM2.5 reduction'!C120),9))","v":0.99999053699999996},{"$f":"VALUE(FIXED(EXP(D$4*-1*'PM2.5 reduction'!D120),9))","v":0.99999166500000003},{"$f":"VALUE(FIXED(EXP(E$4*-1*'PM2.5 reduction'!E120),9))","v":0.99999742700000005},{"$f":"VALUE(FIXED(EXP(F$4*-1*'PM2.5 reduction'!F120),9))","v":0.999997892},{"$f":"VALUE(FIXED(EXP(G$4*-1*'PM2.5 reduction'!G120),9))","v":0.99999892999999995},{"$f":"VALUE(FIXED(EXP(H$4*-1*'PM2.5 reduction'!H120),9))","v":0.99999741799999997},{"$f":"VALUE(FIXED(EXP(I$4*-1*'PM2.5 reduction'!I120),9))","v":0.999997994},{"$f":"VALUE(FIXED(EXP(J$4*-1*'PM2.5 reduction'!J120),9))","v":0.99999544600000001},{"$f":"VALUE(FIXED(EXP(K$4*-1*'PM2.5 reduction'!K120),9))","v":0.99999563000000002},{"$f":"VALUE(FIXED(EXP(L$4*-1*'PM2.5 reduction'!L120),9))","v":0.99999831400000005},{"$f":"VALUE(FIXED(EXP(M$4*-1*'PM2.5 reduction'!M120),9))","v":0.99999831400000005},{"$f":"VALUE(FIXED(EXP(N$4*-1*'PM2.5 reduction'!N120),9))","v":0.99999107600000003},{"$f":"VALUE(FIXED(EXP(O$4*-1*'PM2.5 reduction'!O120),9))","v":0.99999766599999995},{"$f":"VALUE(FIXED(EXP(P$4*-1*'PM2.5 reduction'!P120),9))","v":0.99999260599999995},{"$f":"VALUE(FIXED(EXP(Q$4*-1*'PM2.5 reduction'!Q120),9))","v":0.99999616300000005},{"$f":"VALUE(FIXED(EXP(R$4*-1*'PM2.5 reduction'!R120),9))","v":0.999994296},{"$f":"VALUE(FIXED(EXP(S$4*-1*'PM2.5 reduction'!S120),9))","v":0.99999344199999995},{"$f":"VALUE(FIXED(EXP(T$4*-1*'PM2.5 reduction'!T120),9))","v":0.99998852299999996},{"$f":"VALUE(FIXED(EXP(U$4*-1*'PM2.5 reduction'!U120),9))","v":0.99999866900000001},{"$f":"VALUE(FIXED(EXP(V$4*-1*'PM2.5 reduction'!V120),9))","v":0.999994838},{"$f":"VALUE(FIXED(EXP(W$4*-1*'PM2.5 reduction'!W120),9))","v":0.99999540499999995},{"$f":"VALUE(FIXED(EXP(X$4*-1*'PM2.5 reduction'!X120),9))","v":0.99999540499999995},{"$f":"VALUE(FIXED(EXP(Y$4*-1*'PM2.5 reduction'!Y120),9))","v":0.99999503499999998},{"$f":"VALUE(FIXED(EXP(Z$4*-1*'PM2.5 reduction'!Z120),9))","v":0.99999004700000005},{"$f":"VALUE(FIXED(EXP(AA$4*-1*'PM2.5 reduction'!AA120),9))","v":0.99999310699999999},{"$f":"VALUE(FIXED(EXP(AB$4*-1*'PM2.5 reduction'!AB120),9))","v":0.99999298599999997},{"$f":"VALUE(FIXED(EXP(AC$4*-1*'PM2.5 reduction'!AC120),9))","v":0.99999197200000001},{"$f":"VALUE(FIXED(EXP(AD$4*-1*'PM2.5 reduction'!AD120),9))","v":0.99999833999999999},{"$f":"VALUE(FIXED(EXP(AE$4*-1*'PM2.5 reduction'!AE120),9))","v":0.99999822500000002},{"$f":"VALUE(FIXED(EXP(AF$4*-1*'PM2.5 reduction'!AF120),9))","v":0.99999566200000001},{"$f":"VALUE(FIXED(EXP(AG$4*-1*'PM2.5 reduction'!AG120),9))","v":0.99999822500000002},{"$f":"VALUE(FIXED(EXP(AH$4*-1*'PM2.5 reduction'!AH120),9))","v":0.99999442699999996},{"$f":"VALUE(FIXED(EXP(AI$4*-1*'PM2.5 reduction'!AI120),9))","v":0.99999242300000002},{"$f":"VALUE(FIXED(EXP(AJ$4*-1*'PM2.5 reduction'!AJ120),9))","v":0.99999525099999997},{"$f":"VALUE(FIXED(EXP(AK$4*-1*'PM2.5 reduction'!AK120),9))","v":0.99999799499999997},{"$f":"VALUE(FIXED(EXP(AL$4*-1*'PM2.5 reduction'!AL120),9))","v":0.99999733400000002},{"$f":"VALUE(FIXED(EXP(AM$4*-1*'PM2.5 reduction'!AM120),9))","v":0.99999389599999999},{"$f":"VALUE(FIXED(EXP(AN$4*-1*'PM2.5 reduction'!AN120),9))","v":0.99999829200000001},{"$f":"VALUE(FIXED(EXP(AO$4*-1*'PM2.5 reduction'!AO120),9))","v":0.99999829200000001},{"$f":"VALUE(FIXED(EXP(AP$4*-1*'PM2.5 reduction'!AP120),9))","v":0.99999645599999998},{"$f":"VALUE(FIXED(EXP(AQ$4*-1*'PM2.5 reduction'!AQ120),9))","v":0.99999461000000001},{"$f":"VALUE(FIXED(EXP(AR$4*-1*'PM2.5 reduction'!AR120),9))","v":0.99999397999999995},{"$f":"VALUE(FIXED(EXP(AS$4*-1*'PM2.5 reduction'!AS120),9))","v":0.999997994},{"$f":"VALUE(FIXED(EXP(AT$4*-1*'PM2.5 reduction'!AT120),9))","v":1},{"$f":"VALUE(FIXED(EXP(AU$4*-1*'PM2.5 reduction'!AU120),9))","v":1},{"$f":"VALUE(FIXED(EXP(AV$4*-1*'PM2.5 reduction'!AV120),9))","v":0.99999716800000005},{"$f":"VALUE(FIXED(EXP(AW$4*-1*'PM2.5 reduction'!AW120),9))","v":0.99999508400000003},{"$f":"VALUE(FIXED(EXP(AX$4*-1*'PM2.5 reduction'!AX120),9))","v":0.99999529099999995},{"$f":"VALUE(FIXED(EXP(AY$4*-1*'PM2.5 reduction'!AY120),9))","v":0.99999481499999998},{"$f":"VALUE(FIXED(EXP(AZ$4*-1*'PM2.5 reduction'!AZ120),9))","v":0.99999408599999995},{"$f":"VALUE(FIXED(EXP(BA$4*-1*'PM2.5 reduction'!BA120),9))","v":0.999994155},{"$f":"VALUE(FIXED(EXP(BB$4*-1*'PM2.5 reduction'!BB120),9))","v":0.99999486599999998},{"$f":"VALUE(FIXED(EXP(BC$4*-1*'PM2.5 reduction'!BC120),9))","v":0.99999866900000001}]
[null,"Male 20-24",{"$f":"VALUE(FIXED(EXP(C$4*-1*'PM2.5 reduction'!C121),9))","v":0.99998904899999996},{"$f":"VALUE(FIXED(EXP(D$4*-1*'PM2.5 reduction'!D121),9))","v":0.99998993599999997},{"$f":"VALUE(FIXED(EXP(E$4*-1*'PM2.5 reduction'!E121),9))","v":0.999997307},{"$f":"VALUE(FIXED(EXP(F$4*-1*'PM2.5 reduction'!F121),9))","v":0.99999788199999995},{"$f":"VALUE(FIXED(EXP(G$4*-1*'PM2.5 reduction'!G121),9))","v":0.99999898300000001},{"$f":"VALUE(FIXED(EXP(H$4*-1*'PM2.5 reduction'!H121),9))","v":0.99999727100000002},{"$f":"VALUE(FIXED(EXP(I$4*-1*'PM2.5 reduction'!I121),9))","v":0.99999791599999999},{"$f":"VALUE(FIXED(EXP(J$4*-1*'PM2.5 reduction'!J121),9))","v":0.99999483199999994},{"$f":"VALUE(FIXED(EXP(K$4*-1*'PM2.5 reduction'!K121),9))","v":0.99999578899999997},{"$f":"VALUE(FIXED(EXP(L$4*-1*'PM2.5 reduction'!L121),9))","v":0.99999825399999998},{"$f":"VALUE(FIXED(EXP(M$4*-1*'PM2.5 reduction'!M121),9))","v":0.99999825399999998},{"$f":"VALUE(FIXED(EXP(N$4*-1*'PM2.5 reduction'!N121),9))","v":0.99998918999999997},{"$f":"VALUE(FIXED(EXP(O$4*-1*'PM2.5 reduction'!O121),9))","v":0.99999740699999995},{"$f":"VALUE(FIXED(EXP(P$4*-1*'PM2.5 reduction'!P121),9))","v":0.99999249300000004},{"$f":"VALUE(FIXED(EXP(Q$4*-1*'PM2.5 reduction'!Q121),9))","v":0.99999602300000001},{"$f":"VALUE(FIXED(EXP(R$4*-1*'PM2.5 reduction'!R121),9))","v":0.99999437099999999},{"$f":"VALUE(FIXED(EXP(S$4*-1*'PM2.5 reduction'!S121),9))","v":0.99999225000000003},{"$f":"VALUE(FIXED(EXP(T$4*-1*'PM2.5 reduction'!T121),9))","v":0.999986916},{"$f":"VALUE(FIXED(EXP(U$4*-1*'PM2.5 reduction'!U121),9))","v":0.99999866900000001},{"$f":"VALUE(FIXED(EXP(V$4*-1*'PM2.5 reduction'!V121),9))","v":0.99999492000000001},{"$f":"VALUE(FIXED(EXP(W$4*-1*'PM2.5 reduction'!W121),9))","v":0.99999540600000003},{"$f":"VALUE(FIXED(EXP(X$4*-1*'PM2.5 reduction'!X121),9))","v":0.99999540600000003},{"$f":"VALUE(FIXED(EXP(Y$4*-1*'PM2.5 reduction'!Y121),9))","v":0.99999488299999995},{"$f":"VALUE(FIXED(EXP(Z$4*-1*'PM2.5 reduction'!Z121),9))","v":0.999988337},{"$f":"VALUE(FIXED(EXP(AA$4*-1*'PM2.5 reduction'!AA121),9))","v":0.99999215900000005},{"$f":"VALUE(FIXED(EXP(AB$4*-1*'PM2.5 reduction'!AB121),9))","v":0.99999099499999999},{"$f":"VALUE(FIXED(EXP(AC$4*-1*'PM2.5 reduction'!AC121),9))","v":0.99999060699999998},{"$f":"VALUE(FIXED(EXP(AD$4*-1*'PM2.5 reduction'!AD121),9))","v":0.99999824500000001},{"$f":"VALUE(FIXED(EXP(AE$4*-1*'PM2.5 reduction'!AE121),9))","v":0.99999806800000002},{"$f":"VALUE(FIXED(EXP(AF$4*-1*'PM2.5 reduction'!AF121),9))","v":0.99999512199999996},{"$f":"VALUE(FIXED(EXP(AG$4*-1*'PM2.5 reduction'!AG121),9))","v":0.99999806800000002},{"$f":"VALUE(FIXED(EXP(AH$4*-1*'PM2.5 reduction'!AH121),9))","v":0.99999436200000003},{"$f":"VALUE(FIXED(EXP(AI$4*-1*'PM2.5 reduction'!AI121),9))","v":0.99999094499999996},{"$f":"VALUE(FIXED(EXP(AJ$4*-1*'PM2.5 reduction'!AJ121),9))","v":0.99999532199999996},{"$f":"VALUE(FIXED(EXP(AK$4*-1*'PM2.5 reduction'!AK121),9))","v":0.99999784700000005},{"$f":"VALUE(FIXED(EXP(AL$4*-1*'PM2.5 reduction'!AL121),9))","v":0.99999733000000002},{"$f":"VALUE(FIXED(EXP(AM$4*-1*'PM2.5 reduction'!AM121),9))","v":0.99999387699999998},{"$f":"VALUE(FIXED(EXP(AN$4*-1*'PM2.5 reduction'!AN121),9))","v":0.99999825099999995},{"$f":"VALUE(FIXED(EXP(AO$4*-1*'PM2.5 reduction'!AO121),9))","v":0.99999825099999995},{"$f":"VALUE(FIXED(EXP(AP$4*-1*'PM2.5 reduction'!AP121),9))","v":0.99999597500000004},{"$f":"VALUE(FIXED(EXP(AQ$4*-1*'PM2.5 reduction'!AQ121),9))","v":0.99999433500000001},{"$f":"VALUE(FIXED(EXP(AR$4*-1*'PM2.5 reduction'!AR121),9))","v":0.99999280999999995},{"$f":"VALUE(FIXED(EXP(AS$4*-1*'PM2.5 reduction'!AS121),9))","v":0.99999791599999999},{"$f":"VALUE(FIXED(EXP(AT$4*-1*'PM2.5 reduction'!AT121),9))","v":1},{"$f":"VALUE(FIXED(EXP(AU$4*-1*'PM2.5 reduction'!AU121),9))","v":1},{"$f":"VALUE(FIXED(EXP(AV$4*-1*'PM2.5 reduction'!AV121),9))","v":0.99999697700000001},{"$f":"VALUE(FIXED(EXP(AW$4*-1*'PM2.5 reduction'!AW121),9))","v":0.99999492099999998},{"$f":"VALUE(FIXED(EXP(AX$4*-1*'PM2.5 reduction'!AX121),9))","v":0.99999426599999997},{"$f":"VALUE(FIXED(EXP(AY$4*-1*'PM2.5 reduction'!AY121),9))","v":0.99999332699999999},{"$f":"VALUE(FIXED(EXP(AZ$4*-1*'PM2.5 reduction'!AZ121),9))","v":0.999991882},{"$f":"VALUE(FIXED(EXP(BA$4*-1*'PM2.5 reduction'!BA121),9))","v":0.99999412499999996},{"$f":"VALUE(FIXED(EXP(BB$4*-1*'PM2.5 reduction'!BB121),9))","v":0.99999474499999996},{"$f":"VALUE(FIXED(EXP(BC$4*-1*'PM2.5 reduction'!BC121),9))","v":0.99999866900000001}]
[null,"Male 25-29",{"$f":"VALUE(FIXED(EXP(C$4*-1*'PM2.5 reduction'!C122),9))","v":0.99998884899999996},{"$f":"VALUE(FIXED(EXP(D$4*-1*'PM2.5 reduction'!D122),9))","v":0.99998980400000004},{"$f":"VALUE(FIXED(EXP(E$4*-1*'PM2.5 reduction'!E122),9))","v":0.99999727599999999},{"$f":"VALUE(FIXED(EXP(F$4*-1*'PM2.5 reduction'!F122),9))","v":0.99999782699999995},{"$f":"VALUE(FIXED(EXP(G$4*-1*'PM2.5 reduction'!G122),9))","v":0.99999894},{"$f":"VALUE(FIXED(EXP(H$4*-1*'PM2.5 reduction'!H122),9))","v":0.99999716800000005},{"$f":"VALUE(FIXED(EXP(I$4*-1*'PM2.5 reduction'!I122),9))","v":0.99999790099999997},{"$f":"VALUE(FIXED(EXP(J$4*-1*'PM2.5 reduction'!J122),9))","v":0.99999542600000002},{"$f":"VALUE(FIXED(EXP(K$4*-1*'PM2.5 reduction'!K122),9))","v":0.99999580300000002},{"$f":"VALUE(FIXED(EXP(L$4*-1*'PM2.5 reduction'!L122),9))","v":0.99999801300000002},{"$f":"VALUE(FIXED(EXP(M$4*-1*'PM2.5 reduction'!M122),9))","v":0.99999801300000002},{"$f":"VALUE(FIXED(EXP(N$4*-1*'PM2.5 reduction'!N122),9))","v":0.99999049399999995},{"$f":"VALUE(FIXED(EXP(O$4*-1*'PM2.5 reduction'!O122),9))","v":0.99999721500000005},{"$f":"VALUE(FIXED(EXP(P$4*-1*'PM2.5 reduction'!P122),9))","v":0.99999240499999997},{"$f":"VALUE(FIXED(EXP(Q$4*-1*'PM2.5 reduction'!Q122),9))","v":0.99999613099999995},{"$f":"VALUE(FIXED(EXP(R$4*-1*'PM2.5 reduction'!R122),9))","v":0.999994563},{"$f":"VALUE(FIXED(EXP(S$4*-1*'PM2.5 reduction'!S122),9))","v":0.999991937},{"$f":"VALUE(FIXED(EXP(T$4*-1*'PM2.5 reduction'!T122),9))","v":0.99998779400000004},{"$f":"VALUE(FIXED(EXP(U$4*-1*'PM2.5 reduction'!U122),9))","v":0.99999866900000001},{"$f":"VALUE(FIXED(EXP(V$4*-1*'PM2.5 reduction'!V122),9))","v":0.999994673},{"$f":"VALUE(FIXED(EXP(W$4*-1*'PM2.5 reduction'!W122),9))","v":0.99999529600000003},{"$f":"VALUE(FIXED(EXP(X$4*-1*'PM2.5 reduction'!X122),9))","v":0.99999529600000003},{"$f":"VALUE(FIXED(EXP(Y$4*-1*'PM2.5 reduction'!Y122),9))","v":0.99999497400000004},{"$f":"VALUE(FIXED(EXP(Z$4*-1*'PM2.5 reduction'!Z122),9))","v":0.99998919200000003},{"$f":"VALUE(FIXED(EXP(AA$4*-1*'PM2.5 reduction'!AA122),9))","v":0.99999205099999999},{"$f":"VALUE(FIXED(EXP(AB$4*-1*'PM2.5 reduction'!AB122),9))","v":0.99999080799999995},{"$f":"VALUE(FIXED(EXP(AC$4*-1*'PM2.5 reduction'!AC122),9))","v":0.99999073599999999},{"$f":"VALUE(FIXED(EXP(AD$4*-1*'PM2.5 reduction'!AD122),9))","v":0.99999822999999999},{"$f":"VALUE(FIXED(EXP(AE$4*-1*'PM2.5 reduction'!AE122),9))","v":0.99999812499999996},{"$f":"VALUE(FIXED(EXP(AF$4*-1*'PM2.5 reduction'!AF122),9))","v":0.99999520799999997},{"$f":"VALUE(FIXED(EXP(AG$4*-1*'PM2.5 reduction'!AG122),9))","v":0.99999812499999996},{"$f":"VALUE(FIXED(EXP(AH$4*-1*'PM2.5 reduction'!AH122),9))","v":0.999994253},{"$f":"VALUE(FIXED(EXP(AI$4*-1*'PM2.5 reduction'!AI122),9))","v":0.99999070099999998},{"$f":"VALUE(FIXED(EXP(AJ$4*-1*'PM2.5 reduction'!AJ122),9))","v":0.99999537900000002},{"$f":"VALUE(FIXED(EXP(AK$4*-1*'PM2.5 reduction'!AK122),9))","v":0.99999775999999996},{"$f":"VALUE(FIXED(EXP(AL$4*-1*'PM2.5 reduction'!AL122),9))","v":0.999997264},{"$f":"VALUE(FIXED(EXP(AM$4*-1*'PM2.5 reduction'!AM122),9))","v":0.99999381799999998},{"$f":"VALUE(FIXED(EXP(AN$4*-1*'PM2.5 reduction'!AN122),9))","v":0.99999834799999998},{"$f":"VALUE(FIXED(EXP(AO$4*-1*'PM2.5 reduction'!AO122),9))","v":0.99999834799999998},{"$f":"VALUE(FIXED(EXP(AP$4*-1*'PM2.5 reduction'!AP122),9))","v":0.99999565499999998},{"$f":"VALUE(FIXED(EXP(AQ$4*-1*'PM2.5 reduction'!AQ122),9))","v":0.99999421200000005},{"$f":"VALUE(FIXED(EXP(AR$4*-1*'PM2.5 reduction'!AR122),9))","v":0.99999263100000002},{"$f":"VALUE(FIXED(EXP(AS$4*-1*'PM2.5 reduction'!AS122),9))","v":0.99999790099999997},{"$f":"VALUE(FIXED(EXP(AT$4*-1*'PM2.5 reduction'!AT122),9))","v":1},{"$f":"VALUE(FIXED(EXP(AU$4*-1*'PM2.5 reduction'!AU122),9))","v":1},{"$f":"VALUE(FIXED(EXP(AV$4*-1*'PM2.5 reduction'!AV122),9))","v":0.99999699200000003},{"$f":"VALUE(FIXED(EXP(AW$4*-1*'PM2.5 reduction'!AW122),9))","v":0.99999474399999999},{"$f":"VALUE(FIXED(EXP(AX$4*-1*'PM2.5 reduction'!AX122),9))","v":0.99999521999999996},{"$f":"VALUE(FIXED(EXP(AY$4*-1*'PM2.5 reduction'!AY122),9))","v":0.99999397099999998},{"$f":"VALUE(FIXED(EXP(AZ$4*-1*'PM2.5 reduction'!AZ122),9))","v":0.999992938},{"$f":"VALUE(FIXED(EXP(BA$4*-1*'PM2.5 reduction'!BA122),9))","v":0.99999426300000005},{"$f":"VALUE(FIXED(EXP(BB$4*-1*'PM2.5 reduction'!BB122),9))","v":0.999994736},{"$f":"VALUE(FIXED(EXP(BC$4*-1*'PM2.5 reduction'!BC122),9))","v":0.99999866900000001}]
[null,"Male 30-34",{"$f":"VALUE(FIXED(EXP(C$4*-1*'PM2.5 reduction'!C123),9))","v":0.99998964199999996},{"$f":"VALUE(FIXED(EXP(D$4*-1*'PM2.5 reduction'!D123),9))","v":0.99999057700000005},{"$f":"VALUE(FIXED(EXP(E$4*-1*'PM2.5 reduction'!E123),9))","v":0.999997154},{"$f":"VALUE(FIXED(EXP(F$4*-1*'PM2.5 reduction'!F123),9))","v":0.999997841},{"$f":"VALUE(FIXED(EXP(G$4*-1*'PM2.5 reduction'!G123),9))","v":0.99999896899999996},{"$f":"VALUE(FIXED(EXP(H$4*-1*'PM2.5 reduction'!H123),9))","v":0.99999713999999995},{"$f":"VALUE(FIXED(EXP(I$4*-1*'PM2.5 reduction'!I123),9))","v":0.99999793999999997},{"$f":"VALUE(FIXED(EXP(J$4*-1*'PM2.5 reduction'!J123),9))","v":0.99999532400000002},{"$f":"VALUE(FIXED(EXP(K$4*-1*'PM2.5 reduction'!K123),9))","v":0.99999556000000001},{"$f":"VALUE(FIXED(EXP(L$4*-1*'PM2.5 reduction'!L123),9))","v":0.99999814200000003},{"$f":"VALUE(FIXED(EXP(M$4*-1*'PM2.5 reduction'!M123),9))","v":0.99999814200000003},{"$f":"VALUE(FIXED(EXP(N$4*-1*'PM2.5 reduction'!N123),9))","v":0.99999122600000001},{"$f":"VALUE(FIXED(EXP(O$4*-1*'PM2.5 reduction'!O123),9))","v":0.99999716500000002},{"$f":"VALUE(FIXED(EXP(P$4*-1*'PM2.5 reduction'!P123),9))","v":0.99999249499999998},{"$f":"VALUE(FIXED(EXP(Q$4*-1*'PM2.5 reduction'!Q123),9))","v":0.99999587999999995},{"$f":"VALUE(FIXED(EXP(R$4*-1*'PM2.5 reduction'!R123),9))","v":0.99999433000000004},{"$f":"VALUE(FIXED(EXP(S$4*-1*'PM2.5 reduction'!S123),9))","v":0.999992192},{"$f":"VALUE(FIXED(EXP(T$4*-1*'PM2.5 reduction'!T123),9))","v":0.999988129},{"$f":"VALUE(FIXED(EXP(U$4*-1*'PM2.5 reduction'!U123),9))","v":0.99999866900000001},{"$f":"VALUE(FIXED(EXP(V$4*-1*'PM2.5 reduction'!V123),9))","v":0.99999461999999995},{"$f":"VALUE(FIXED(EXP(W$4*-1*'PM2.5 reduction'!W123),9))","v":0.99999524299999998},{"$f":"VALUE(FIXED(EXP(X$4*-1*'PM2.5 reduction'!X123),9))","v":0.99999524299999998},{"$f":"VALUE(FIXED(EXP(Y$4*-1*'PM2.5 reduction'!Y123),9))","v":0.99999486699999995},{"$f":"VALUE(FIXED(EXP(Z$4*-1*'PM2.5 reduction'!Z123),9))","v":0.99998940599999997},{"$f":"VALUE(FIXED(EXP(AA$4*-1*'PM2.5 reduction'!AA123),9))","v":0.99999218499999998},{"$f":"VALUE(FIXED(EXP(AB$4*-1*'PM2.5 reduction'!AB123),9))","v":0.99999156099999997},{"$f":"VALUE(FIXED(EXP(AC$4*-1*'PM2.5 reduction'!AC123),9))","v":0.999990932},{"$f":"VALUE(FIXED(EXP(AD$4*-1*'PM2.5 reduction'!AD123),9))","v":0.99999812899999996},{"$f":"VALUE(FIXED(EXP(AE$4*-1*'PM2.5 reduction'!AE123),9))","v":0.99999800000000005},{"$f":"VALUE(FIXED(EXP(AF$4*-1*'PM2.5 reduction'!AF123),9))","v":0.99999518499999995},{"$f":"VALUE(FIXED(EXP(AG$4*-1*'PM2.5 reduction'!AG123),9))","v":0.99999800000000005},{"$f":"VALUE(FIXED(EXP(AH$4*-1*'PM2.5 reduction'!AH123),9))","v":0.99999418600000001},{"$f":"VALUE(FIXED(EXP(AI$4*-1*'PM2.5 reduction'!AI123),9))","v":0.99999107600000003},{"$f":"VALUE(FIXED(EXP(AJ$4*-1*'PM2.5 reduction'!AJ123),9))","v":0.99999548900000002},{"$f":"VALUE(FIXED(EXP(AK$4*-1*'PM2.5 reduction'!AK123),9))","v":0.99999776200000001},{"$f":"VALUE(FIXED(EXP(AL$4*-1*'PM2.5 reduction'!AL123),9))","v":0.99999726700000002},{"$f":"VALUE(FIXED(EXP(AM$4*-1*'PM2.5 reduction'!AM123),9))","v":0.99999385600000001},{"$f":"VALUE(FIXED(EXP(AN$4*-1*'PM2.5 reduction'!AN123),9))","v":0.99999832600000005},{"$f":"VALUE(FIXED(EXP(AO$4*-1*'PM2.5 reduction'!AO123),9))","v":0.99999832600000005},{"$f":"VALUE(FIXED(EXP(AP$4*-1*'PM2.5 reduction'!AP123),9))","v":0.99999557800000005},{"$f":"VALUE(FIXED(EXP(AQ$4*-1*'PM2.5 reduction'!AQ123),9))","v":0.99999431900000002},{"$f":"VALUE(FIXED(EXP(AR$4*-1*'PM2.5 reduction'!AR123),9))","v":0.99999290799999996},{"$f":"VALUE(FIXED(EXP(AS$4*-1*'PM2.5 reduction'!AS123),9))","v":0.99999793999999997},{"$f":"VALUE(FIXED(EXP(AT$4*-1*'PM2.5 reduction'!AT123),9))","v":1},{"$f":"VALUE(FIXED(EXP(AU$4*-1*'PM2.5 reduction'!AU123),9))","v":1},{"$f":"VALUE(FIXED(EXP(AV$4*-1*'PM2.5 reduction'!AV123),9))","v":0.99999693099999998},{"$f":"VALUE(FIXED(EXP(AW$4*-1*'PM2.5 reduction'!AW123),9))","v":0.99999460799999995},{"$f":"VALUE(FIXED(EXP(AX$4*-1*'PM2.5 reduction'!AX123),9))","v":0.99999513900000003},{"$f":"VALUE(FIXED(EXP(AY$4*-1*'PM2.5 reduction'!AY123),9))","v":0.99999443700000001},{"$f":"VALUE(FIXED(EXP(AZ$4*-1*'PM2.5 reduction'!AZ123),9))","v":0.99999375599999996},{"$f":"VALUE(FIXED(EXP(BA$4*-1*'PM2.5 reduction'!BA123),9))","v":0.999994355},{"$f":"VALUE(FIXED(EXP(BB$4*-1*'PM2.5 reduction'!BB123),9))","v":0.99999474499999996},{"$f":"VALUE(FIXED(EXP(BC$4*-1*'PM2.5 reduction'!BC123),9))","v":0.99999866900000001}]
[null,"Male 35-39",{"$f":"VALUE(FIXED(EXP(C$4*-1*'PM2.5 reduction'!C124),9))","v":0.999990288},{"$f":"VALUE(FIXED(EXP(D$4*-1*'PM2.5 reduction'!D124),9))","v":0.99999125099999997},{"$f":"VALUE(FIXED(EXP(E$4*-1*'PM2.5 reduction'!E124),9))","v":0.99999723100000004},{"$f":"VALUE(FIXED(EXP(F$4*-1*'PM2.5 reduction'!F124),9))","v":0.99999789800000005},{"$f":"VALUE(FIXED(EXP(G$4*-1*'PM2.5 reduction'!G124),9))","v":0.99999895900000002},{"$f":"VALUE(FIXED(EXP(H$4*-1*'PM2.5 reduction'!H124),9))","v":0.99999724499999998},{"$f":"VALUE(FIXED(EXP(I$4*-1*'PM2.5 reduction'!I124),9))","v":0.99999791900000001},{"$f":"VALUE(FIXED(EXP(J$4*-1*'PM2.5 reduction'!J124),9))","v":0.99999539900000001},{"$f":"VALUE(FIXED(EXP(K$4*-1*'PM2.5 reduction'!K124),9))","v":0.99999553600000002},{"$f":"VALUE(FIXED(EXP(L$4*-1*'PM2.5 reduction'!L124),9))","v":0.99999809500000003},{"$f":"VALUE(FIXED(EXP(M$4*-1*'PM2.5 reduction'!M124),9))","v":0.99999809500000003},{"$f":"VALUE(FIXED(EXP(N$4*-1*'PM2.5 reduction'!N124),9))","v":0.99999150000000003},{"$f":"VALUE(FIXED(EXP(O$4*-1*'PM2.5 reduction'!O124),9))","v":0.999997307},{"$f":"VALUE(FIXED(EXP(P$4*-1*'PM2.5 reduction'!P124),9))","v":0.99999244099999995},{"$f":"VALUE(FIXED(EXP(Q$4*-1*'PM2.5 reduction'!Q124),9))","v":0.99999589499999997},{"$f":"VALUE(FIXED(EXP(R$4*-1*'PM2.5 reduction'!R124),9))","v":0.99999444500000001},{"$f":"VALUE(FIXED(EXP(S$4*-1*'PM2.5 reduction'!S124),9))","v":0.99999271300000003},{"$f":"VALUE(FIXED(EXP(T$4*-1*'PM2.5 reduction'!T124),9))","v":0.999988396},{"$f":"VALUE(FIXED(EXP(U$4*-1*'PM2.5 reduction'!U124),9))","v":0.99999866900000001},{"$f":"VALUE(FIXED(EXP(V$4*-1*'PM2.5 reduction'!V124),9))","v":0.99999473999999999},{"$f":"VALUE(FIXED(EXP(W$4*-1*'PM2.5 reduction'!W124),9))","v":0.99999536099999997},{"$f":"VALUE(FIXED(EXP(X$4*-1*'PM2.5 reduction'!X124),9))","v":0.99999536099999997},{"$f":"VALUE(FIXED(EXP(Y$4*-1*'PM2.5 reduction'!Y124),9))","v":0.99999493399999995},{"$f":"VALUE(FIXED(EXP(Z$4*-1*'PM2.5 reduction'!Z124),9))","v":0.99998967299999997},{"$f":"VALUE(FIXED(EXP(AA$4*-1*'PM2.5 reduction'!AA124),9))","v":0.99999247999999996},{"$f":"VALUE(FIXED(EXP(AB$4*-1*'PM2.5 reduction'!AB124),9))","v":0.99999238999999995},{"$f":"VALUE(FIXED(EXP(AC$4*-1*'PM2.5 reduction'!AC124),9))","v":0.99999120799999996},{"$f":"VALUE(FIXED(EXP(AD$4*-1*'PM2.5 reduction'!AD124),9))","v":0.99999812200000004},{"$f":"VALUE(FIXED(EXP(AE$4*-1*'PM2.5 reduction'!AE124),9))","v":0.99999795800000002},{"$f":"VALUE(FIXED(EXP(AF$4*-1*'PM2.5 reduction'!AF124),9))","v":0.99999511399999996},{"$f":"VALUE(FIXED(EXP(AG$4*-1*'PM2.5 reduction'!AG124),9))","v":0.99999795800000002},{"$f":"VALUE(FIXED(EXP(AH$4*-1*'PM2.5 reduction'!AH124),9))","v":0.99999428899999998},{"$f":"VALUE(FIXED(EXP(AI$4*-1*'PM2.5 reduction'!AI124),9))","v":0.99999155699999998},{"$f":"VALUE(FIXED(EXP(AJ$4*-1*'PM2.5 reduction'!AJ124),9))","v":0.99999548699999996},{"$f":"VALUE(FIXED(EXP(AK$4*-1*'PM2.5 reduction'!AK124),9))","v":0.99999780299999996},{"$f":"VALUE(FIXED(EXP(AL$4*-1*'PM2.5 reduction'!AL124),9))","v":0.99999735199999995},{"$f":"VALUE(FIXED(EXP(AM$4*-1*'PM2.5 reduction'!AM124),9))","v":0.99999390300000002},{"$f":"VALUE(FIXED(EXP(AN$4*-1*'PM2.5 reduction'!AN124),9))","v":0.99999823799999998},{"$f":"VALUE(FIXED(EXP(AO$4*-1*'PM2.5 reduction'!AO124),9))","v":0.99999823799999998},{"$f":"VALUE(FIXED(EXP(AP$4*-1*'PM2.5 reduction'!AP124),9))","v":0.999995945},{"$f":"VALUE(FIXED(EXP(AQ$4*-1*'PM2.5 reduction'!AQ124),9))","v":0.99999428999999995},{"$f":"VALUE(FIXED(EXP(AR$4*-1*'PM2.5 reduction'!AR124),9))","v":0.99999331400000002},{"$f":"VALUE(FIXED(EXP(AS$4*-1*'PM2.5 reduction'!AS124),9))","v":0.99999791900000001},{"$f":"VALUE(FIXED(EXP(AT$4*-1*'PM2.5 reduction'!AT124),9))","v":1},{"$f":"VALUE(FIXED(EXP(AU$4*-1*'PM2.5 reduction'!AU124),9))","v":1},{"$f":"VALUE(FIXED(EXP(AV$4*-1*'PM2.5 reduction'!AV124),9))","v":0.99999705699999997},{"$f":"VALUE(FIXED(EXP(AW$4*-1*'PM2.5 reduction'!AW124),9))","v":0.99999475000000004},{"$f":"VALUE(FIXED(EXP(AX$4*-1*'PM2.5 reduction'!AX124),9))","v":0.99999525600000005},{"$f":"VALUE(FIXED(EXP(AY$4*-1*'PM2.5 reduction'!AY124),9))","v":0.99999482900000003},{"$f":"VALUE(FIXED(EXP(AZ$4*-1*'PM2.5 reduction'!AZ124),9))","v":0.99999427799999996},{"$f":"VALUE(FIXED(EXP(BA$4*-1*'PM2.5 reduction'!BA124),9))","v":0.99999426199999997},{"$f":"VALUE(FIXED(EXP(BB$4*-1*'PM2.5 reduction'!BB124),9))","v":0.99999470899999998},{"$f":"VALUE(FIXED(EXP(BC$4*-1*'PM2.5 reduction'!BC124),9))","v":0.99999866900000001}]
[null,"Male 40-44",{"$f":"VALUE(FIXED(EXP(C$4*-1*'PM2.5 reduction'!C125),9))","v":0.999990025},{"$f":"VALUE(FIXED(EXP(D$4*-1*'PM2.5 reduction'!D125),9))","v":0.999990991},{"$f":"VALUE(FIXED(EXP(E$4*-1*'PM2.5 reduction'!E125),9))","v":0.999997205},{"$f":"VALUE(FIXED(EXP(F$4*-1*'PM2.5 reduction'!F125),9))","v":0.999997884},{"$f":"VALUE(FIXED(EXP(G$4*-1*'PM2.5 reduction'!G125),9))","v":0.99999893100000004},{"$f":"VALUE(FIXED(EXP(H$4*-1*'PM2.5 reduction'!H125),9))","v":0.99999721399999997},{"$f":"VALUE(FIXED(EXP(I$4*-1*'PM2.5 reduction'!I125),9))","v":0.99999802699999996},{"$f":"VALUE(FIXED(EXP(J$4*-1*'PM2.5 reduction'!J125),9))","v":0.99999561299999995},{"$f":"VALUE(FIXED(EXP(K$4*-1*'PM2.5 reduction'!K125),9))","v":0.99999565700000004},{"$f":"VALUE(FIXED(EXP(L$4*-1*'PM2.5 reduction'!L125),9))","v":0.99999823499999996},{"$f":"VALUE(FIXED(EXP(M$4*-1*'PM2.5 reduction'!M125),9))","v":0.99999823499999996},{"$f":"VALUE(FIXED(EXP(N$4*-1*'PM2.5 reduction'!N125),9))","v":0.99999194400000002},{"$f":"VALUE(FIXED(EXP(O$4*-1*'PM2.5 reduction'!O125),9))","v":0.99999742400000002},{"$f":"VALUE(FIXED(EXP(P$4*-1*'PM2.5 reduction'!P125),9))","v":0.99999243999999998},{"$f":"VALUE(FIXED(EXP(Q$4*-1*'PM2.5 reduction'!Q125),9))","v":0.99999596300000004},{"$f":"VALUE(FIXED(EXP(R$4*-1*'PM2.5 reduction'!R125),9))","v":0.99999426000000002},{"$f":"VALUE(FIXED(EXP(S$4*-1*'PM2.5 reduction'!S125),9))","v":0.99999313400000001},{"$f":"VALUE(FIXED(EXP(T$4*-1*'PM2.5 reduction'!T125),9))","v":0.99998869800000001},{"$f":"VALUE(FIXED(EXP(U$4*-1*'PM2.5 reduction'!U125),9))","v":0.99999866900000001},{"$f":"VALUE(FIXED(EXP(V$4*-1*'PM2.5 reduction'!V125),9))","v":0.99999459300000004},{"$f":"VALUE(FIXED(EXP(W$4*-1*'PM2.5 reduction'!W125),9))","v":0.99999534199999995},{"$f":"VALUE(FIXED(EXP(X$4*-1*'PM2.5 reduction'!X125),9))","v":0.99999534199999995},{"$f":"VALUE(FIXED(EXP(Y$4*-1*'PM2.5 reduction'!Y125),9))","v":0.99999491500000004},{"$f":"VALUE(FIXED(EXP(Z$4*-1*'PM2.5 reduction'!Z125),9))","v":0.99998992799999997},{"$f":"VALUE(FIXED(EXP(AA$4*-1*'PM2.5 reduction'!AA125),9))","v":0.99999288099999994},{"$f":"VALUE(FIXED(EXP(AB$4*-1*'PM2.5 reduction'!AB125),9))","v":0.99999210299999997},{"$f":"VALUE(FIXED(EXP(AC$4*-1*'PM2.5 reduction'!AC125),9))","v":0.99999167200000005},{"$f":"VALUE(FIXED(EXP(AD$4*-1*'PM2.5 reduction'!AD125),9))","v":0.99999820299999997},{"$f":"VALUE(FIXED(EXP(AE$4*-1*'PM2.5 reduction'!AE125),9))","v":0.99999803200000004},{"$f":"VALUE(FIXED(EXP(AF$4*-1*'PM2.5 reduction'!AF125),9))","v":0.99999552400000002},{"$f":"VALUE(FIXED(EXP(AG$4*-1*'PM2.5 reduction'!AG125),9))","v":0.99999803200000004},{"$f":"VALUE(FIXED(EXP(AH$4*-1*'PM2.5 reduction'!AH125),9))","v":0.99999428000000001},{"$f":"VALUE(FIXED(EXP(AI$4*-1*'PM2.5 reduction'!AI125),9))","v":0.999992031},{"$f":"VALUE(FIXED(EXP(AJ$4*-1*'PM2.5 reduction'!AJ125),9))","v":0.99999541000000003},{"$f":"VALUE(FIXED(EXP(AK$4*-1*'PM2.5 reduction'!AK125),9))","v":0.99999775400000002},{"$f":"VALUE(FIXED(EXP(AL$4*-1*'PM2.5 reduction'!AL125),9))","v":0.99999725699999997},{"$f":"VALUE(FIXED(EXP(AM$4*-1*'PM2.5 reduction'!AM125),9))","v":0.99999387500000003},{"$f":"VALUE(FIXED(EXP(AN$4*-1*'PM2.5 reduction'!AN125),9))","v":0.99999828099999999},{"$f":"VALUE(FIXED(EXP(AO$4*-1*'PM2.5 reduction'!AO125),9))","v":0.99999828099999999},{"$f":"VALUE(FIXED(EXP(AP$4*-1*'PM2.5 reduction'!AP125),9))","v":0.999995996},{"$f":"VALUE(FIXED(EXP(AQ$4*-1*'PM2.5 reduction'!AQ125),9))","v":0.99999438799999996},{"$f":"VALUE(FIXED(EXP(AR$4*-1*'PM2.5 reduction'!AR125),9))","v":0.999993668},{"$f":"VALUE(FIXED(EXP(AS$4*-1*'PM2.5 reduction'!AS125),9))","v":0.99999802699999996},{"$f":"VALUE(FIXED(EXP(AT$4*-1*'PM2.5 reduction'!AT125),9))","v":1},{"$f":"VALUE(FIXED(EXP(AU$4*-1*'PM2.5 reduction'!AU125),9))","v":1},{"$f":"VALUE(FIXED(EXP(AV$4*-1*'PM2.5 reduction'!AV125),9))","v":0.99999683100000003},{"$f":"VALUE(FIXED(EXP(AW$4*-1*'PM2.5 reduction'!AW125),9))","v":0.99999478799999997},{"$f":"VALUE(FIXED(EXP(AX$4*-1*'PM2.5 reduction'!AX125),9))","v":0.99999556199999995},{"$f":"VALUE(FIXED(EXP(AY$4*-1*'PM2.5 reduction'!AY125),9))","v":0.99999494700000002},{"$f":"VALUE(FIXED(EXP(AZ$4*-1*'PM2.5 reduction'!AZ125),9))","v":0.99999447299999999},{"$f":"VALUE(FIXED(EXP(BA$4*-1*'PM2.5 reduction'!BA125),9))","v":0.99999423300000001},{"$f":"VALUE(FIXED(EXP(BB$4*-1*'PM2.5 reduction'!BB125),9))","v":0.99999479199999997},{"$f":"VALUE(FIXED(EXP(BC$4*-1*'PM2.5 reduction'!BC125),9))","v":0.99999866900000001}]
[null,"Male 45-49",{"$f":"VALUE(FIXED(EXP(C$4*-1*'PM2.5 reduction'!C126),9))","v":0.99999033400000004},{"$f":"VALUE(FIXED(EXP(D$4*-1*'PM2.5 reduction'!D126),9))","v":0.99999125899999997},{"$f":"VALUE(FIXED(EXP(E$4*-1*'PM2.5 reduction'!E126),9))","v":0.99999727900000002},{"$f":"VALUE(FIXED(EXP(F$4*-1*'PM2.5 reduction'!F126),9))","v":0.99999782599999998},{"$f":"VALUE(FIXED(EXP(G$4*-1*'PM2.5 reduction'!G126),9))","v":0.99999890499999999},{"$f":"VALUE(FIXED(EXP(H$4*-1*'PM2.5 reduction'!H126),9))","v":0.99999729299999995},{"$f":"VALUE(FIXED(EXP(I$4*-1*'PM2.5 reduction'!I126),9))","v":0.99999791599999999},{"$f":"VALUE(FIXED(EXP(J$4*-1*'PM2.5 reduction'!J126),9))","v":0.99999563300000005},{"$f":"VALUE(FIXED(EXP(K$4*-1*'PM2.5 reduction'!K126),9))","v":0.99999567300000003},{"$f":"VALUE(FIXED(EXP(L$4*-1*'PM2.5 reduction'!L126),9))","v":0.99999807900000004},{"$f":"VALUE(FIXED(EXP(M$4*-1*'PM2.5 reduction'!M126),9))","v":0.99999807900000004},{"$f":"VALUE(FIXED(EXP(N$4*-1*'PM2.5 reduction'!N126),9))","v":0.99999185899999998},{"$f":"VALUE(FIXED(EXP(O$4*-1*'PM2.5 reduction'!O126),9))","v":0.99999740500000001},{"$f":"VALUE(FIXED(EXP(P$4*-1*'PM2.5 reduction'!P126),9))","v":0.99999249300000004},{"$f":"VALUE(FIXED(EXP(Q$4*-1*'PM2.5 reduction'!Q126),9))","v":0.99999612000000004},{"$f":"VALUE(FIXED(EXP(R$4*-1*'PM2.5 reduction'!R126),9))","v":0.99999433500000001},{"$f":"VALUE(FIXED(EXP(S$4*-1*'PM2.5 reduction'!S126),9))","v":0.999993468},{"$f":"VALUE(FIXED(EXP(T$4*-1*'PM2.5 reduction'!T126),9))","v":0.99998865199999998},{"$f":"VALUE(FIXED(EXP(U$4*-1*'PM2.5 reduction'!U126),9))","v":0.99999866900000001},{"$f":"VALUE(FIXED(EXP(V$4*-1*'PM2.5 reduction'!V126),9))","v":0.99999470700000004},{"$f":"VALUE(FIXED(EXP(W$4*-1*'PM2.5 reduction'!W126),9))","v":0.99999550199999998},{"$f":"VALUE(FIXED(EXP(X$4*-1*'PM2.5 reduction'!X126),9))","v":0.99999550199999998},{"$f":"VALUE(FIXED(EXP(Y$4*-1*'PM2.5 reduction'!Y126),9))","v":0.99999500900000005},{"$f":"VALUE(FIXED(EXP(Z$4*-1*'PM2.5 reduction'!Z126),9))","v":0.99999032899999996},{"$f":"VALUE(FIXED(EXP(AA$4*-1*'PM2.5 reduction'!AA126),9))","v":0.99999313499999998},{"$f":"VALUE(FIXED(EXP(AB$4*-1*'PM2.5 reduction'!AB126),9))","v":0.99999249999999995},{"$f":"VALUE(FIXED(EXP(AC$4*-1*'PM2.5 reduction'!AC126),9))","v":0.99999203599999997},{"$f":"VALUE(FIXED(EXP(AD$4*-1*'PM2.5 reduction'!AD126),9))","v":0.99999832200000005},{"$f":"VALUE(FIXED(EXP(AE$4*-1*'PM2.5 reduction'!AE126),9))","v":0.999998163},{"$f":"VALUE(FIXED(EXP(AF$4*-1*'PM2.5 reduction'!AF126),9))","v":0.99999523000000001},{"$f":"VALUE(FIXED(EXP(AG$4*-1*'PM2.5 reduction'!AG126),9))","v":0.999998163},{"$f":"VALUE(FIXED(EXP(AH$4*-1*'PM2.5 reduction'!AH126),9))","v":0.999994359},{"$f":"VALUE(FIXED(EXP(AI$4*-1*'PM2.5 reduction'!AI126),9))","v":0.99999235500000005},{"$f":"VALUE(FIXED(EXP(AJ$4*-1*'PM2.5 reduction'!AJ126),9))","v":0.99999537100000002},{"$f":"VALUE(FIXED(EXP(AK$4*-1*'PM2.5 reduction'!AK126),9))","v":0.99999777999999995},{"$f":"VALUE(FIXED(EXP(AL$4*-1*'PM2.5 reduction'!AL126),9))","v":0.99999742199999997},{"$f":"VALUE(FIXED(EXP(AM$4*-1*'PM2.5 reduction'!AM126),9))","v":0.99999394900000005},{"$f":"VALUE(FIXED(EXP(AN$4*-1*'PM2.5 reduction'!AN126),9))","v":0.99999826199999997},{"$f":"VALUE(FIXED(EXP(AO$4*-1*'PM2.5 reduction'!AO126),9))","v":0.99999826199999997},{"$f":"VALUE(FIXED(EXP(AP$4*-1*'PM2.5 reduction'!AP126),9))","v":0.999996094},{"$f":"VALUE(FIXED(EXP(AQ$4*-1*'PM2.5 reduction'!AQ126),9))","v":0.99999442699999996},{"$f":"VALUE(FIXED(EXP(AR$4*-1*'PM2.5 reduction'!AR126),9))","v":0.99999392899999995},{"$f":"VALUE(FIXED(EXP(AS$4*-1*'PM2.5 reduction'!AS126),9))","v":0.99999791599999999},{"$f":"VALUE(FIXED(EXP(AT$4*-1*'PM2.5 reduction'!AT126),9))","v":1},{"$f":"VALUE(FIXED(EXP(AU$4*-1*'PM2.5 reduction'!AU126),9))","v":1},{"$f":"VALUE(FIXED(EXP(AV$4*-1*'PM2.5 reduction'!AV126),9))","v":0.99999694699999997},{"$f":"VALUE(FIXED(EXP(AW$4*-1*'PM2.5 reduction'!AW126),9))","v":0.999994826},{"$f":"VALUE(FIXED(EXP(AX$4*-1*'PM2.5 reduction'!AX126),9))","v":0.99999558099999997},{"$f":"VALUE(FIXED(EXP(AY$4*-1*'PM2.5 reduction'!AY126),9))","v":0.999994983},{"$f":"VALUE(FIXED(EXP(AZ$4*-1*'PM2.5 reduction'!AZ126),9))","v":0.999994367},{"$f":"VALUE(FIXED(EXP(BA$4*-1*'PM2.5 reduction'!BA126),9))","v":0.99999427500000004},{"$f":"VALUE(FIXED(EXP(BB$4*-1*'PM2.5 reduction'!BB126),9))","v":0.99999487300000001},{"$f":"VALUE(FIXED(EXP(BC$4*-1*'PM2.5 reduction'!BC126),9))","v":0.99999866900000001}]
[null,"Male 50-54",{"$f":"VALUE(FIXED(EXP(C$4*-1*'PM2.5 reduction'!C127),9))","v":0.99999057300000005},{"$f":"VALUE(FIXED(EXP(D$4*-1*'PM2.5 reduction'!D127),9))","v":0.99999165400000001},{"$f":"VALUE(FIXED(EXP(E$4*-1*'PM2.5 reduction'!E127),9))","v":0.99999734299999998},{"$f":"VALUE(FIXED(EXP(F$4*-1*'PM2.5 reduction'!F127),9))","v":0.99999781700000001},{"$f":"VALUE(FIXED(EXP(G$4*-1*'PM2.5 reduction'!G127),9))","v":0.99999898799999998},{"$f":"VALUE(FIXED(EXP(H$4*-1*'PM2.5 reduction'!H127),9))","v":0.99999729800000003},{"$f":"VALUE(FIXED(EXP(I$4*-1*'PM2.5 reduction'!I127),9))","v":0.99999800400000005},{"$f":"VALUE(FIXED(EXP(J$4*-1*'PM2.5 reduction'!J127),9))","v":0.99999579900000002},{"$f":"VALUE(FIXED(EXP(K$4*-1*'PM2.5 reduction'!K127),9))","v":0.99999586100000004},{"$f":"VALUE(FIXED(EXP(L$4*-1*'PM2.5 reduction'!L127),9))","v":0.99999812300000002},{"$f":"VALUE(FIXED(EXP(M$4*-1*'PM2.5 reduction'!M127),9))","v":0.99999812300000002},{"$f":"VALUE(FIXED(EXP(N$4*-1*'PM2.5 reduction'!N127),9))","v":0.99999187599999995},{"$f":"VALUE(FIXED(EXP(O$4*-1*'PM2.5 reduction'!O127),9))","v":0.99999750499999995},{"$f":"VALUE(FIXED(EXP(P$4*-1*'PM2.5 reduction'!P127),9))","v":0.99999258499999999},{"$f":"VALUE(FIXED(EXP(Q$4*-1*'PM2.5 reduction'!Q127),9))","v":0.99999609099999998},{"$f":"VALUE(FIXED(EXP(R$4*-1*'PM2.5 reduction'!R127),9))","v":0.99999421799999999},{"$f":"VALUE(FIXED(EXP(S$4*-1*'PM2.5 reduction'!S127),9))","v":0.99999367900000002},{"$f":"VALUE(FIXED(EXP(T$4*-1*'PM2.5 reduction'!T127),9))","v":0.99998900300000004},{"$f":"VALUE(FIXED(EXP(U$4*-1*'PM2.5 reduction'!U127),9))","v":0.99999866900000001},{"$f":"VALUE(FIXED(EXP(V$4*-1*'PM2.5 reduction'!V127),9))","v":0.99999466100000001},{"$f":"VALUE(FIXED(EXP(W$4*-1*'PM2.5 reduction'!W127),9))","v":0.99999534899999998},{"$f":"VALUE(FIXED(EXP(X$4*-1*'PM2.5 reduction'!X127),9))","v":0.99999534899999998},{"$f":"VALUE(FIXED(EXP(Y$4*-1*'PM2.5 reduction'!Y127),9))","v":0.99999505},{"$f":"VALUE(FIXED(EXP(Z$4*-1*'PM2.5 reduction'!Z127),9))","v":0.99999039599999995},{"$f":"VALUE(FIXED(EXP(AA$4*-1*'PM2.5 reduction'!AA127),9))","v":0.99999320599999997},{"$f":"VALUE(FIXED(EXP(AB$4*-1*'PM2.5 reduction'!AB127),9))","v":0.99999289599999996},{"$f":"VALUE(FIXED(EXP(AC$4*-1*'PM2.5 reduction'!AC127),9))","v":0.99999222499999996},{"$f":"VALUE(FIXED(EXP(AD$4*-1*'PM2.5 reduction'!AD127),9))","v":0.99999829500000004},{"$f":"VALUE(FIXED(EXP(AE$4*-1*'PM2.5 reduction'!AE127),9))","v":0.99999812399999999},{"$f":"VALUE(FIXED(EXP(AF$4*-1*'PM2.5 reduction'!AF127),9))","v":0.99999519400000003},{"$f":"VALUE(FIXED(EXP(AG$4*-1*'PM2.5 reduction'!AG127),9))","v":0.99999812399999999},{"$f":"VALUE(FIXED(EXP(AH$4*-1*'PM2.5 reduction'!AH127),9))","v":0.99999431500000002},{"$f":"VALUE(FIXED(EXP(AI$4*-1*'PM2.5 reduction'!AI127),9))","v":0.99999265299999995},{"$f":"VALUE(FIXED(EXP(AJ$4*-1*'PM2.5 reduction'!AJ127),9))","v":0.99999533399999996},{"$f":"VALUE(FIXED(EXP(AK$4*-1*'PM2.5 reduction'!AK127),9))","v":0.99999781899999995},{"$f":"VALUE(FIXED(EXP(AL$4*-1*'PM2.5 reduction'!AL127),9))","v":0.99999733300000004},{"$f":"VALUE(FIXED(EXP(AM$4*-1*'PM2.5 reduction'!AM127),9))","v":0.99999387399999995},{"$f":"VALUE(FIXED(EXP(AN$4*-1*'PM2.5 reduction'!AN127),9))","v":0.99999824800000003},{"$f":"VALUE(FIXED(EXP(AO$4*-1*'PM2.5 reduction'!AO127),9))","v":0.99999824800000003},{"$f":"VALUE(FIXED(EXP(AP$4*-1*'PM2.5 reduction'!AP127),9))","v":0.99999624300000001},{"$f":"VALUE(FIXED(EXP(AQ$4*-1*'PM2.5 reduction'!AQ127),9))","v":0.99999455699999995},{"$f":"VALUE(FIXED(EXP(AR$4*-1*'PM2.5 reduction'!AR127),9))","v":0.99999408000000001},{"$f":"VALUE(FIXED(EXP(AS$4*-1*'PM2.5 reduction'!AS127),9))","v":0.99999800400000005},{"$f":"VALUE(FIXED(EXP(AT$4*-1*'PM2.5 reduction'!AT127),9))","v":1},{"$f":"VALUE(FIXED(EXP(AU$4*-1*'PM2.5 reduction'!AU127),9))","v":1},{"$f":"VALUE(FIXED(EXP(AV$4*-1*'PM2.5 reduction'!AV127),9))","v":0.99999696500000002},{"$f":"VALUE(FIXED(EXP(AW$4*-1*'PM2.5 reduction'!AW127),9))","v":0.99999480699999999},{"$f":"VALUE(FIXED(EXP(AX$4*-1*'PM2.5 reduction'!AX127),9))","v":0.99999573100000005},{"$f":"VALUE(FIXED(EXP(AY$4*-1*'PM2.5 reduction'!AY127),9))","v":0.99999501800000001},{"$f":"VALUE(FIXED(EXP(AZ$4*-1*'PM2.5 reduction'!AZ127),9))","v":0.99999459199999996},{"$f":"VALUE(FIXED(EXP(BA$4*-1*'PM2.5 reduction'!BA127),9))","v":0.99999422500000001},{"$f":"VALUE(FIXED(EXP(BB$4*-1*'PM2.5 reduction'!BB127),9))","v":0.99999487099999995},{"$f":"VALUE(FIXED(EXP(BC$4*-1*'PM2.5 reduction'!BC127),9))","v":0.99999866900000001}]
[null,"Male 55-59",{"$f":"VALUE(FIXED(EXP(C$4*-1*'PM2.5 reduction'!C128),9))","v":0.99999052600000005},{"$f":"VALUE(FIXED(EXP(D$4*-1*'PM2.5 reduction'!D128),9))","v":0.99999168100000002},{"$f":"VALUE(FIXED(EXP(E$4*-1*'PM2.5 reduction'!E128),9))","v":0.99999728600000004},{"$f":"VALUE(FIXED(EXP(F$4*-1*'PM2.5 reduction'!F128),9))","v":0.99999774100000005},{"$f":"VALUE(FIXED(EXP(G$4*-1*'PM2.5 reduction'!G128),9))","v":0.99999896499999996},{"$f":"VALUE(FIXED(EXP(H$4*-1*'PM2.5 reduction'!H128),9))","v":0.99999735599999995},{"$f":"VALUE(FIXED(EXP(I$4*-1*'PM2.5 reduction'!I128),9))","v":0.999997888},{"$f":"VALUE(FIXED(EXP(J$4*-1*'PM2.5 reduction'!J128),9))","v":0.99999571799999998},{"$f":"VALUE(FIXED(EXP(K$4*-1*'PM2.5 reduction'!K128),9))","v":0.99999576700000004},{"$f":"VALUE(FIXED(EXP(L$4*-1*'PM2.5 reduction'!L128),9))","v":0.99999826800000002},{"$f":"VALUE(FIXED(EXP(M$4*-1*'PM2.5 reduction'!M128),9))","v":0.99999826800000002},{"$f":"VALUE(FIXED(EXP(N$4*-1*'PM2.5 reduction'!N128),9))","v":0.99999177500000003},{"$f":"VALUE(FIXED(EXP(O$4*-1*'PM2.5 reduction'!O128),9))","v":0.99999765600000001},{"$f":"VALUE(FIXED(EXP(P$4*-1*'PM2.5 reduction'!P128),9))","v":0.99999238199999996},{"$f":"VALUE(FIXED(EXP(Q$4*-1*'PM2.5 reduction'!Q128),9))","v":0.99999601999999999},{"$f":"VALUE(FIXED(EXP(R$4*-1*'PM2.5 reduction'!R128),9))","v":0.99999431900000002},{"$f":"VALUE(FIXED(EXP(S$4*-1*'PM2.5 reduction'!S128),9))","v":0.99999382999999997},{"$f":"VALUE(FIXED(EXP(T$4*-1*'PM2.5 reduction'!T128),9))","v":0.99998913199999995},{"$f":"VALUE(FIXED(EXP(U$4*-1*'PM2.5 reduction'!U128),9))","v":0.99999866900000001},{"$f":"VALUE(FIXED(EXP(V$4*-1*'PM2.5 reduction'!V128),9))","v":0.99999474399999999},{"$f":"VALUE(FIXED(EXP(W$4*-1*'PM2.5 reduction'!W128),9))","v":0.99999544200000001},{"$f":"VALUE(FIXED(EXP(X$4*-1*'PM2.5 reduction'!X128),9))","v":0.99999544200000001},{"$f":"VALUE(FIXED(EXP(Y$4*-1*'PM2.5 reduction'!Y128),9))","v":0.99999506299999996},{"$f":"VALUE(FIXED(EXP(Z$4*-1*'PM2.5 reduction'!Z128),9))","v":0.99999061199999995},{"$f":"VALUE(FIXED(EXP(AA$4*-1*'PM2.5 reduction'!AA128),9))","v":0.999993307},{"$f":"VALUE(FIXED(EXP(AB$4*-1*'PM2.5 reduction'!AB128),9))","v":0.99999285699999996},{"$f":"VALUE(FIXED(EXP(AC$4*-1*'PM2.5 reduction'!AC128),9))","v":0.99999236000000002},{"$f":"VALUE(FIXED(EXP(AD$4*-1*'PM2.5 reduction'!AD128),9))","v":0.99999832700000002},{"$f":"VALUE(FIXED(EXP(AE$4*-1*'PM2.5 reduction'!AE128),9))","v":0.99999818399999996},{"$f":"VALUE(FIXED(EXP(AF$4*-1*'PM2.5 reduction'!AF128),9))","v":0.99999549200000004},{"$f":"VALUE(FIXED(EXP(AG$4*-1*'PM2.5 reduction'!AG128),9))","v":0.99999818399999996},{"$f":"VALUE(FIXED(EXP(AH$4*-1*'PM2.5 reduction'!AH128),9))","v":0.99999432799999999},{"$f":"VALUE(FIXED(EXP(AI$4*-1*'PM2.5 reduction'!AI128),9))","v":0.99999283100000003},{"$f":"VALUE(FIXED(EXP(AJ$4*-1*'PM2.5 reduction'!AJ128),9))","v":0.99999531699999999},{"$f":"VALUE(FIXED(EXP(AK$4*-1*'PM2.5 reduction'!AK128),9))","v":0.99999787100000004},{"$f":"VALUE(FIXED(EXP(AL$4*-1*'PM2.5 reduction'!AL128),9))","v":0.99999728700000001},{"$f":"VALUE(FIXED(EXP(AM$4*-1*'PM2.5 reduction'!AM128),9))","v":0.99999384499999999},{"$f":"VALUE(FIXED(EXP(AN$4*-1*'PM2.5 reduction'!AN128),9))","v":0.99999828700000004},{"$f":"VALUE(FIXED(EXP(AO$4*-1*'PM2.5 reduction'!AO128),9))","v":0.99999828700000004},{"$f":"VALUE(FIXED(EXP(AP$4*-1*'PM2.5 reduction'!AP128),9))","v":0.99999645000000004},{"$f":"VALUE(FIXED(EXP(AQ$4*-1*'PM2.5 reduction'!AQ128),9))","v":0.99999445099999995},{"$f":"VALUE(FIXED(EXP(AR$4*-1*'PM2.5 reduction'!AR128),9))","v":0.99999415899999999},{"$f":"VALUE(FIXED(EXP(AS$4*-1*'PM2.5 reduction'!AS128),9))","v":0.999997888},{"$f":"VALUE(FIXED(EXP(AT$4*-1*'PM2.5 reduction'!AT128),9))","v":1},{"$f":"VALUE(FIXED(EXP(AU$4*-1*'PM2.5 reduction'!AU128),9))","v":1},{"$f":"VALUE(FIXED(EXP(AV$4*-1*'PM2.5 reduction'!AV128),9))","v":0.99999698999999997},{"$f":"VALUE(FIXED(EXP(AW$4*-1*'PM2.5 reduction'!AW128),9))","v":0.99999481999999995},{"$f":"VALUE(FIXED(EXP(AX$4*-1*'PM2.5 reduction'!AX128),9))","v":0.99999566799999995},{"$f":"VALUE(FIXED(EXP(AY$4*-1*'PM2.5 reduction'!AY128),9))","v":0.99999501300000004},{"$f":"VALUE(FIXED(EXP(AZ$4*-1*'PM2.5 reduction'!AZ128),9))","v":0.99999445200000003},{"$f":"VALUE(FIXED(EXP(BA$4*-1*'PM2.5 reduction'!BA128),9))","v":0.99999440900000003},{"$f":"VALUE(FIXED(EXP(BB$4*-1*'PM2.5 reduction'!BB128),9))","v":0.99999492199999995},{"$f":"VALUE(FIXED(EXP(BC$4*-1*'PM2.5 reduction'!BC128),9))","v":0.99999866900000001}]
[null,"Male 60-64",{"$f":"VALUE(FIXED(EXP(C$4*-1*'PM2.5 reduction'!C129),9))","v":0.99999059400000001},{"$f":"VALUE(FIXED(EXP(D$4*-1*'PM2.5 reduction'!D129),9))","v":0.99999166299999998},{"$f":"VALUE(FIXED(EXP(E$4*-1*'PM2.5 reduction'!E129),9))","v":0.999997303},{"$f":"VALUE(FIXED(EXP(F$4*-1*'PM2.5 reduction'!F129),9))","v":0.99999782999999998},{"$f":"VALUE(FIXED(EXP(G$4*-1*'PM2.5 reduction'!G129),9))","v":0.999998936},{"$f":"VALUE(FIXED(EXP(H$4*-1*'PM2.5 reduction'!H129),9))","v":0.99999740699999995},{"$f":"VALUE(FIXED(EXP(I$4*-1*'PM2.5 reduction'!I129),9))","v":0.99999801099999996},{"$f":"VALUE(FIXED(EXP(J$4*-1*'PM2.5 reduction'!J129),9))","v":0.99999582200000003},{"$f":"VALUE(FIXED(EXP(K$4*-1*'PM2.5 reduction'!K129),9))","v":0.99999586500000004},{"$f":"VALUE(FIXED(EXP(L$4*-1*'PM2.5 reduction'!L129),9))","v":0.99999837300000005},{"$f":"VALUE(FIXED(EXP(M$4*-1*'PM2.5 reduction'!M129),9))","v":0.99999837300000005},{"$f":"VALUE(FIXED(EXP(N$4*-1*'PM2.5 reduction'!N129),9))","v":0.99999197500000003},{"$f":"VALUE(FIXED(EXP(O$4*-1*'PM2.5 reduction'!O129),9))","v":0.99999771900000001},{"$f":"VALUE(FIXED(EXP(P$4*-1*'PM2.5 reduction'!P129),9))","v":0.99999252500000002},{"$f":"VALUE(FIXED(EXP(Q$4*-1*'PM2.5 reduction'!Q129),9))","v":0.99999592999999998},{"$f":"VALUE(FIXED(EXP(R$4*-1*'PM2.5 reduction'!R129),9))","v":0.99999453500000002},{"$f":"VALUE(FIXED(EXP(S$4*-1*'PM2.5 reduction'!S129),9))","v":0.99999392099999995},{"$f":"VALUE(FIXED(EXP(T$4*-1*'PM2.5 reduction'!T129),9))","v":0.99998904799999999},{"$f":"VALUE(FIXED(EXP(U$4*-1*'PM2.5 reduction'!U129),9))","v":0.99999866900000001},{"$f":"VALUE(FIXED(EXP(V$4*-1*'PM2.5 reduction'!V129),9))","v":0.99999470700000004},{"$f":"VALUE(FIXED(EXP(W$4*-1*'PM2.5 reduction'!W129),9))","v":0.99999548900000002},{"$f":"VALUE(FIXED(EXP(X$4*-1*'PM2.5 reduction'!X129),9))","v":0.99999548900000002},{"$f":"VALUE(FIXED(EXP(Y$4*-1*'PM2.5 reduction'!Y129),9))","v":0.99999508199999998},{"$f":"VALUE(FIXED(EXP(Z$4*-1*'PM2.5 reduction'!Z129),9))","v":0.99999068800000002},{"$f":"VALUE(FIXED(EXP(AA$4*-1*'PM2.5 reduction'!AA129),9))","v":0.99999335600000006},{"$f":"VALUE(FIXED(EXP(AB$4*-1*'PM2.5 reduction'!AB129),9))","v":0.999992824},{"$f":"VALUE(FIXED(EXP(AC$4*-1*'PM2.5 reduction'!AC129),9))","v":0.999992451},{"$f":"VALUE(FIXED(EXP(AD$4*-1*'PM2.5 reduction'!AD129),9))","v":0.99999840600000001},{"$f":"VALUE(FIXED(EXP(AE$4*-1*'PM2.5 reduction'!AE129),9))","v":0.99999824800000003},{"$f":"VALUE(FIXED(EXP(AF$4*-1*'PM2.5 reduction'!AF129),9))","v":0.99999528900000001},{"$f":"VALUE(FIXED(EXP(AG$4*-1*'PM2.5 reduction'!AG129),9))","v":0.99999824800000003},{"$f":"VALUE(FIXED(EXP(AH$4*-1*'PM2.5 reduction'!AH129),9))","v":0.99999428000000001},{"$f":"VALUE(FIXED(EXP(AI$4*-1*'PM2.5 reduction'!AI129),9))","v":0.99999282700000003},{"$f":"VALUE(FIXED(EXP(AJ$4*-1*'PM2.5 reduction'!AJ129),9))","v":0.999995309},{"$f":"VALUE(FIXED(EXP(AK$4*-1*'PM2.5 reduction'!AK129),9))","v":0.99999795300000005},{"$f":"VALUE(FIXED(EXP(AL$4*-1*'PM2.5 reduction'!AL129),9))","v":0.99999727599999999},{"$f":"VALUE(FIXED(EXP(AM$4*-1*'PM2.5 reduction'!AM129),9))","v":0.99999385200000002},{"$f":"VALUE(FIXED(EXP(AN$4*-1*'PM2.5 reduction'!AN129),9))","v":0.99999824500000001},{"$f":"VALUE(FIXED(EXP(AO$4*-1*'PM2.5 reduction'!AO129),9))","v":0.99999824500000001},{"$f":"VALUE(FIXED(EXP(AP$4*-1*'PM2.5 reduction'!AP129),9))","v":0.99999614199999998},{"$f":"VALUE(FIXED(EXP(AQ$4*-1*'PM2.5 reduction'!AQ129),9))","v":0.99999444500000001},{"$f":"VALUE(FIXED(EXP(AR$4*-1*'PM2.5 reduction'!AR129),9))","v":0.99999424400000003},{"$f":"VALUE(FIXED(EXP(AS$4*-1*'PM2.5 reduction'!AS129),9))","v":0.99999801099999996},{"$f":"VALUE(FIXED(EXP(AT$4*-1*'PM2.5 reduction'!AT129),9))","v":1},{"$f":"VALUE(FIXED(EXP(AU$4*-1*'PM2.5 reduction'!AU129),9))","v":1},{"$f":"VALUE(FIXED(EXP(AV$4*-1*'PM2.5 reduction'!AV129),9))","v":0.99999714299999998},{"$f":"VALUE(FIXED(EXP(AW$4*-1*'PM2.5 reduction'!AW129),9))","v":0.99999475999999998},{"$f":"VALUE(FIXED(EXP(AX$4*-1*'PM2.5 reduction'!AX129),9))","v":0.999995776},{"$f":"VALUE(FIXED(EXP(AY$4*-1*'PM2.5 reduction'!AY129),9))","v":0.99999512999999995},{"$f":"VALUE(FIXED(EXP(AZ$4*-1*'PM2.5 reduction'!AZ129),9))","v":0.99999466800000003},{"$f":"VALUE(FIXED(EXP(BA$4*-1*'PM2.5 reduction'!BA129),9))","v":0.99999442599999999},{"$f":"VALUE(FIXED(EXP(BB$4*-1*'PM2.5 reduction'!BB129),9))","v":0.99999496700000001},{"$f":"VALUE(FIXED(EXP(BC$4*-1*'PM2.5 reduction'!BC129),9))","v":0.99999866900000001}]
[null,"Male 65-69",{"$f":"VALUE(FIXED(EXP(C$4*-1*'PM2.5 reduction'!C130),9))","v":0.99999039000000001},{"$f":"VALUE(FIXED(EXP(D$4*-1*'PM2.5 reduction'!D130),9))","v":0.99999183400000002},{"$f":"VALUE(FIXED(EXP(E$4*-1*'PM2.5 reduction'!E130),9))","v":0.99999731300000005},{"$f":"VALUE(FIXED(EXP(F$4*-1*'PM2.5 reduction'!F130),9))","v":0.99999779700000002},{"$f":"VALUE(FIXED(EXP(G$4*-1*'PM2.5 reduction'!G130),9))","v":0.99999893299999998},{"$f":"VALUE(FIXED(EXP(H$4*-1*'PM2.5 reduction'!H130),9))","v":0.99999739099999996},{"$f":"VALUE(FIXED(EXP(I$4*-1*'PM2.5 reduction'!I130),9))","v":0.99999807299999999},{"$f":"VALUE(FIXED(EXP(J$4*-1*'PM2.5 reduction'!J130),9))","v":0.99999575299999999},{"$f":"VALUE(FIXED(EXP(K$4*-1*'PM2.5 reduction'!K130),9))","v":0.99999583800000003},{"$f":"VALUE(FIXED(EXP(L$4*-1*'PM2.5 reduction'!L130),9))","v":0.99999818399999996},{"$f":"VALUE(FIXED(EXP(M$4*-1*'PM2.5 reduction'!M130),9))","v":0.99999818399999996},{"$f":"VALUE(FIXED(EXP(N$4*-1*'PM2.5 reduction'!N130),9))","v":0.99999199299999997},{"$f":"VALUE(FIXED(EXP(O$4*-1*'PM2.5 reduction'!O130),9))","v":0.99999769000000005},{"$f":"VALUE(FIXED(EXP(P$4*-1*'PM2.5 reduction'!P130),9))","v":0.99999252999999999},{"$f":"VALUE(FIXED(EXP(Q$4*-1*'PM2.5 reduction'!Q130),9))","v":0.99999604499999994},{"$f":"VALUE(FIXED(EXP(R$4*-1*'PM2.5 reduction'!R130),9))","v":0.99999449699999998},{"$f":"VALUE(FIXED(EXP(S$4*-1*'PM2.5 reduction'!S130),9))","v":0.99999420500000002},{"$f":"VALUE(FIXED(EXP(T$4*-1*'PM2.5 reduction'!T130),9))","v":0.99998946700000002},{"$f":"VALUE(FIXED(EXP(U$4*-1*'PM2.5 reduction'!U130),9))","v":0.99999866900000001},{"$f":"VALUE(FIXED(EXP(V$4*-1*'PM2.5 reduction'!V130),9))","v":0.99999486599999998},{"$f":"VALUE(FIXED(EXP(W$4*-1*'PM2.5 reduction'!W130),9))","v":0.999995513},{"$f":"VALUE(FIXED(EXP(X$4*-1*'PM2.5 reduction'!X130),9))","v":0.999995513},{"$f":"VALUE(FIXED(EXP(Y$4*-1*'PM2.5 reduction'!Y130),9))","v":0.99999513799999995},{"$f":"VALUE(FIXED(EXP(Z$4*-1*'PM2.5 reduction'!Z130),9))","v":0.99999047100000005},{"$f":"VALUE(FIXED(EXP(AA$4*-1*'PM2.5 reduction'!AA130),9))","v":0.99999342700000005},{"$f":"VALUE(FIXED(EXP(AB$4*-1*'PM2.5 reduction'!AB130),9))","v":0.99999309400000003},{"$f":"VALUE(FIXED(EXP(AC$4*-1*'PM2.5 reduction'!AC130),9))","v":0.99999238700000004},{"$f":"VALUE(FIXED(EXP(AD$4*-1*'PM2.5 reduction'!AD130),9))","v":0.99999831299999997},{"$f":"VALUE(FIXED(EXP(AE$4*-1*'PM2.5 reduction'!AE130),9))","v":0.99999814499999995},{"$f":"VALUE(FIXED(EXP(AF$4*-1*'PM2.5 reduction'!AF130),9))","v":0.999995089},{"$f":"VALUE(FIXED(EXP(AG$4*-1*'PM2.5 reduction'!AG130),9))","v":0.99999814499999995},{"$f":"VALUE(FIXED(EXP(AH$4*-1*'PM2.5 reduction'!AH130),9))","v":0.99999441300000003},{"$f":"VALUE(FIXED(EXP(AI$4*-1*'PM2.5 reduction'!AI130),9))","v":0.99999317799999998},{"$f":"VALUE(FIXED(EXP(AJ$4*-1*'PM2.5 reduction'!AJ130),9))","v":0.99999529300000001},{"$f":"VALUE(FIXED(EXP(AK$4*-1*'PM2.5 reduction'!AK130),9))","v":0.99999792600000004},{"$f":"VALUE(FIXED(EXP(AL$4*-1*'PM2.5 reduction'!AL130),9))","v":0.99999725699999997},{"$f":"VALUE(FIXED(EXP(AM$4*-1*'PM2.5 reduction'!AM130),9))","v":0.99999393700000005},{"$f":"VALUE(FIXED(EXP(AN$4*-1*'PM2.5 reduction'!AN130),9))","v":0.99999822299999996},{"$f":"VALUE(FIXED(EXP(AO$4*-1*'PM2.5 reduction'!AO130),9))","v":0.99999822299999996},{"$f":"VALUE(FIXED(EXP(AP$4*-1*'PM2.5 reduction'!AP130),9))","v":0.999996149},{"$f":"VALUE(FIXED(EXP(AQ$4*-1*'PM2.5 reduction'!AQ130),9))","v":0.99999433500000001},{"$f":"VALUE(FIXED(EXP(AR$4*-1*'PM2.5 reduction'!AR130),9))","v":0.99999440799999995},{"$f":"VALUE(FIXED(EXP(AS$4*-1*'PM2.5 reduction'!AS130),9))","v":0.99999807299999999},{"$f":"VALUE(FIXED(EXP(AT$4*-1*'PM2.5 reduction'!AT130),9))","v":1},{"$f":"VALUE(FIXED(EXP(AU$4*-1*'PM2.5 reduction'!AU130),9))","v":1},{"$f":"VALUE(FIXED(EXP(AV$4*-1*'PM2.5 reduction'!AV130),9))","v":0.99999717300000002},{"$f":"VALUE(FIXED(EXP(AW$4*-1*'PM2.5 reduction'!AW130),9))","v":0.99999493800000006},{"$f":"VALUE(FIXED(EXP(AX$4*-1*'PM2.5 reduction'!AX130),9))","v":0.99999567199999995},{"$f":"VALUE(FIXED(EXP(AY$4*-1*'PM2.5 reduction'!AY130),9))","v":0.99999509099999995},{"$f":"VALUE(FIXED(EXP(AZ$4*-1*'PM2.5 reduction'!AZ130),9))","v":0.99999452499999997},{"$f":"VALUE(FIXED(EXP(BA$4*-1*'PM2.5 reduction'!BA130),9))","v":0.99999427900000004},{"$f":"VALUE(FIXED(EXP(BB$4*-1*'PM2.5 reduction'!BB130),9))","v":0.99999496300000001},{"$f":"VALUE(FIXED(EXP(BC$4*-1*'PM2.5 reduction'!BC130),9))","v":0.99999866900000001}]
[null,"Male 70-74",{"$f":"VALUE(FIXED(EXP(C$4*-1*'PM2.5 reduction'!C131),9))","v":0.99999036500000005},{"$f":"VALUE(FIXED(EXP(D$4*-1*'PM2.5 reduction'!D131),9))","v":0.99999203800000003},{"$f":"VALUE(FIXED(EXP(E$4*-1*'PM2.5 reduction'!E131),9))","v":0.99999730899999995},{"$f":"VALUE(FIXED(EXP(F$4*-1*'PM2.5 reduction'!F131),9))","v":0.99999779700000002},{"$f":"VALUE(FIXED(EXP(G$4*-1*'PM2.5 reduction'!G131),9))","v":0.999998901},{"$f":"VALUE(FIXED(EXP(H$4*-1*'PM2.5 reduction'!H131),9))","v":0.99999739300000001},{"$f":"VALUE(FIXED(EXP(I$4*-1*'PM2.5 reduction'!I131),9))","v":0.99999796100000005},{"$f":"VALUE(FIXED(EXP(J$4*-1*'PM2.5 reduction'!J131),9))","v":0.99999585899999999},{"$f":"VALUE(FIXED(EXP(K$4*-1*'PM2.5 reduction'!K131),9))","v":0.99999595799999996},{"$f":"VALUE(FIXED(EXP(L$4*-1*'PM2.5 reduction'!L131),9))","v":0.99999820900000003},{"$f":"VALUE(FIXED(EXP(M$4*-1*'PM2.5 reduction'!M131),9))","v":0.99999820900000003},{"$f":"VALUE(FIXED(EXP(N$4*-1*'PM2.5 reduction'!N131),9))","v":0.99999209099999997},{"$f":"VALUE(FIXED(EXP(O$4*-1*'PM2.5 reduction'!O131),9))","v":0.99999770099999996},{"$f":"VALUE(FIXED(EXP(P$4*-1*'PM2.5 reduction'!P131),9))","v":0.99999249899999998},{"$f":"VALUE(FIXED(EXP(Q$4*-1*'PM2.5 reduction'!Q131),9))","v":0.99999606699999999},{"$f":"VALUE(FIXED(EXP(R$4*-1*'PM2.5 reduction'!R131),9))","v":0.99999438799999996},{"$f":"VALUE(FIXED(EXP(S$4*-1*'PM2.5 reduction'!S131),9))","v":0.99999421499999996},{"$f":"VALUE(FIXED(EXP(T$4*-1*'PM2.5 reduction'!T131),9))","v":0.99998951599999997},{"$f":"VALUE(FIXED(EXP(U$4*-1*'PM2.5 reduction'!U131),9))","v":0.99999866900000001},{"$f":"VALUE(FIXED(EXP(V$4*-1*'PM2.5 reduction'!V131),9))","v":0.99999469399999996},{"$f":"VALUE(FIXED(EXP(W$4*-1*'PM2.5 reduction'!W131),9))","v":0.999995466},{"$f":"VALUE(FIXED(EXP(X$4*-1*'PM2.5 reduction'!X131),9))","v":0.999995466},{"$f":"VALUE(FIXED(EXP(Y$4*-1*'PM2.5 reduction'!Y131),9))","v":0.99999504299999997},{"$f":"VALUE(FIXED(EXP(Z$4*-1*'PM2.5 reduction'!Z131),9))","v":0.99999060699999998},{"$f":"VALUE(FIXED(EXP(AA$4*-1*'PM2.5 reduction'!AA131),9))","v":0.99999345399999995},{"$f":"VALUE(FIXED(EXP(AB$4*-1*'PM2.5 reduction'!AB131),9))","v":0.99999329100000001},{"$f":"VALUE(FIXED(EXP(AC$4*-1*'PM2.5 reduction'!AC131),9))","v":0.99999244300000001},{"$f":"VALUE(FIXED(EXP(AD$4*-1*'PM2.5 reduction'!AD131),9))","v":0.99999832099999997},{"$f":"VALUE(FIXED(EXP(AE$4*-1*'PM2.5 reduction'!AE131),9))","v":0.99999813500000001},{"$f":"VALUE(FIXED(EXP(AF$4*-1*'PM2.5 reduction'!AF131),9))","v":0.99999514899999997},{"$f":"VALUE(FIXED(EXP(AG$4*-1*'PM2.5 reduction'!AG131),9))","v":0.99999813500000001},{"$f":"VALUE(FIXED(EXP(AH$4*-1*'PM2.5 reduction'!AH131),9))","v":0.99999438200000001},{"$f":"VALUE(FIXED(EXP(AI$4*-1*'PM2.5 reduction'!AI131),9))","v":0.99999323399999995},{"$f":"VALUE(FIXED(EXP(AJ$4*-1*'PM2.5 reduction'!AJ131),9))","v":0.99999530599999997},{"$f":"VALUE(FIXED(EXP(AK$4*-1*'PM2.5 reduction'!AK131),9))","v":0.99999784899999999},{"$f":"VALUE(FIXED(EXP(AL$4*-1*'PM2.5 reduction'!AL131),9))","v":0.99999721699999999},{"$f":"VALUE(FIXED(EXP(AM$4*-1*'PM2.5 reduction'!AM131),9))","v":0.99999385799999996},{"$f":"VALUE(FIXED(EXP(AN$4*-1*'PM2.5 reduction'!AN131),9))","v":0.99999828599999996},{"$f":"VALUE(FIXED(EXP(AO$4*-1*'PM2.5 reduction'!AO131),9))","v":0.99999828599999996},{"$f":"VALUE(FIXED(EXP(AP$4*-1*'PM2.5 reduction'!AP131),9))","v":0.99999629099999998},{"$f":"VALUE(FIXED(EXP(AQ$4*-1*'PM2.5 reduction'!AQ131),9))","v":0.99999420400000005},{"$f":"VALUE(FIXED(EXP(AR$4*-1*'PM2.5 reduction'!AR131),9))","v":0.99999442500000002},{"$f":"VALUE(FIXED(EXP(AS$4*-1*'PM2.5 reduction'!AS131),9))","v":0.99999796100000005},{"$f":"VALUE(FIXED(EXP(AT$4*-1*'PM2.5 reduction'!AT131),9))","v":1},{"$f":"VALUE(FIXED(EXP(AU$4*-1*'PM2.5 reduction'!AU131),9))","v":1},{"$f":"VALUE(FIXED(EXP(AV$4*-1*'PM2.5 reduction'!AV131),9))","v":0.99999720000000003},{"$f":"VALUE(FIXED(EXP(AW$4*-1*'PM2.5 reduction'!AW131),9))","v":0.99999495500000002},{"$f":"VALUE(FIXED(EXP(AX$4*-1*'PM2.5 reduction'!AX131),9))","v":0.99999574999999996},{"$f":"VALUE(FIXED(EXP(AY$4*-1*'PM2.5 reduction'!AY131),9))","v":0.99999509499999994},{"$f":"VALUE(FIXED(EXP(AZ$4*-1*'PM2.5 reduction'!AZ131),9))","v":0.99999459300000004},{"$f":"VALUE(FIXED(EXP(BA$4*-1*'PM2.5 reduction'!BA131),9))","v":0.99999410399999999},{"$f":"VALUE(FIXED(EXP(BB$4*-1*'PM2.5 reduction'!BB131),9))","v":0.99999493800000006},{"$f":"VALUE(FIXED(EXP(BC$4*-1*'PM2.5 reduction'!BC131),9))","v":0.99999866900000001}]
[null,"Male 75-79",{"$f":"VALUE(FIXED(EXP(C$4*-1*'PM2.5 reduction'!C132),9))","v":0.99999017300000004},{"$f":"VALUE(FIXED(EXP(D$4*-1*'PM2.5 reduction'!D132),9))","v":0.99999168500000002},{"$f":"VALUE(FIXED(EXP(E$4*-1*'PM2.5 reduction'!E132),9))","v":0.99999709800000003},{"$f":"VALUE(FIXED(EXP(F$4*-1*'PM2.5 reduction'!F132),9))","v":0.99999785100000005},{"$f":"VALUE(FIXED(EXP(G$4*-1*'PM2.5 reduction'!G132),9))","v":0.99999888299999995},{"$f":"VALUE(FIXED(EXP(H$4*-1*'PM2.5 reduction'!H132),9))","v":0.99999731199999997},{"$f":"VALUE(FIXED(EXP(I$4*-1*'PM2.5 reduction'!I132),9))","v":0.99999801499999996},{"$f":"VALUE(FIXED(EXP(J$4*-1*'PM2.5 reduction'!J132),9))","v":0.999995882},{"$f":"VALUE(FIXED(EXP(K$4*-1*'PM2.5 reduction'!K132),9))","v":0.99999614800000003},{"$f":"VALUE(FIXED(EXP(L$4*-1*'PM2.5 reduction'!L132),9))","v":0.99999811500000002},{"$f":"VALUE(FIXED(EXP(M$4*-1*'PM2.5 reduction'!M132),9))","v":0.99999811500000002},{"$f":"VALUE(FIXED(EXP(N$4*-1*'PM2.5 reduction'!N132),9))","v":0.99999227800000001},{"$f":"VALUE(FIXED(EXP(O$4*-1*'PM2.5 reduction'!O132),9))","v":0.99999756200000001},{"$f":"VALUE(FIXED(EXP(P$4*-1*'PM2.5 reduction'!P132),9))","v":0.999992675},{"$f":"VALUE(FIXED(EXP(Q$4*-1*'PM2.5 reduction'!Q132),9))","v":0.99999612100000002},{"$f":"VALUE(FIXED(EXP(R$4*-1*'PM2.5 reduction'!R132),9))","v":0.99999455599999998},{"$f":"VALUE(FIXED(EXP(S$4*-1*'PM2.5 reduction'!S132),9))","v":0.99999426400000002},{"$f":"VALUE(FIXED(EXP(T$4*-1*'PM2.5 reduction'!T132),9))","v":0.99998956699999997},{"$f":"VALUE(FIXED(EXP(U$4*-1*'PM2.5 reduction'!U132),9))","v":0.99999866900000001},{"$f":"VALUE(FIXED(EXP(V$4*-1*'PM2.5 reduction'!V132),9))","v":0.99999474300000002},{"$f":"VALUE(FIXED(EXP(W$4*-1*'PM2.5 reduction'!W132),9))","v":0.99999541999999997},{"$f":"VALUE(FIXED(EXP(X$4*-1*'PM2.5 reduction'!X132),9))","v":0.99999541999999997},{"$f":"VALUE(FIXED(EXP(Y$4*-1*'PM2.5 reduction'!Y132),9))","v":0.99999509900000005},{"$f":"VALUE(FIXED(EXP(Z$4*-1*'PM2.5 reduction'!Z132),9))","v":0.99999070800000001},{"$f":"VALUE(FIXED(EXP(AA$4*-1*'PM2.5 reduction'!AA132),9))","v":0.99999344099999998},{"$f":"VALUE(FIXED(EXP(AB$4*-1*'PM2.5 reduction'!AB132),9))","v":0.99999289000000002},{"$f":"VALUE(FIXED(EXP(AC$4*-1*'PM2.5 reduction'!AC132),9))","v":0.99999260499999998},{"$f":"VALUE(FIXED(EXP(AD$4*-1*'PM2.5 reduction'!AD132),9))","v":0.99999824599999998},{"$f":"VALUE(FIXED(EXP(AE$4*-1*'PM2.5 reduction'!AE132),9))","v":0.99999808199999995},{"$f":"VALUE(FIXED(EXP(AF$4*-1*'PM2.5 reduction'!AF132),9))","v":0.99999537100000002},{"$f":"VALUE(FIXED(EXP(AG$4*-1*'PM2.5 reduction'!AG132),9))","v":0.99999808199999995},{"$f":"VALUE(FIXED(EXP(AH$4*-1*'PM2.5 reduction'!AH132),9))","v":0.99999425200000003},{"$f":"VALUE(FIXED(EXP(AI$4*-1*'PM2.5 reduction'!AI132),9))","v":0.99999332699999999},{"$f":"VALUE(FIXED(EXP(AJ$4*-1*'PM2.5 reduction'!AJ132),9))","v":0.99999550400000004},{"$f":"VALUE(FIXED(EXP(AK$4*-1*'PM2.5 reduction'!AK132),9))","v":0.99999777499999998},{"$f":"VALUE(FIXED(EXP(AL$4*-1*'PM2.5 reduction'!AL132),9))","v":0.99999716699999996},{"$f":"VALUE(FIXED(EXP(AM$4*-1*'PM2.5 reduction'!AM132),9))","v":0.99999391900000001},{"$f":"VALUE(FIXED(EXP(AN$4*-1*'PM2.5 reduction'!AN132),9))","v":0.99999830700000003},{"$f":"VALUE(FIXED(EXP(AO$4*-1*'PM2.5 reduction'!AO132),9))","v":0.99999830700000003},{"$f":"VALUE(FIXED(EXP(AP$4*-1*'PM2.5 reduction'!AP132),9))","v":0.99999619299999998},{"$f":"VALUE(FIXED(EXP(AQ$4*-1*'PM2.5 reduction'!AQ132),9))","v":0.99999437899999999},{"$f":"VALUE(FIXED(EXP(AR$4*-1*'PM2.5 reduction'!AR132),9))","v":0.99999439199999995},{"$f":"VALUE(FIXED(EXP(AS$4*-1*'PM2.5 reduction'!AS132),9))","v":0.99999801499999996},{"$f":"VALUE(FIXED(EXP(AT$4*-1*'PM2.5 reduction'!AT132),9))","v":1},{"$f":"VALUE(FIXED(EXP(AU$4*-1*'PM2.5 reduction'!AU132),9))","v":1},{"$f":"VALUE(FIXED(EXP(AV$4*-1*'PM2.5 reduction'!AV132),9))","v":0.99999714100000003},{"$f":"VALUE(FIXED(EXP(AW$4*-1*'PM2.5 reduction'!AW132),9))","v":0.99999462100000003},{"$f":"VALUE(FIXED(EXP(AX$4*-1*'PM2.5 reduction'!AX132),9))","v":0.99999564299999999},{"$f":"VALUE(FIXED(EXP(AY$4*-1*'PM2.5 reduction'!AY132),9))","v":0.99999505399999999},{"$f":"VALUE(FIXED(EXP(AZ$4*-1*'PM2.5 reduction'!AZ132),9))","v":0.99999461499999998},{"$f":"VALUE(FIXED(EXP(BA$4*-1*'PM2.5 reduction'!BA132),9))","v":0.99999422900000001},{"$f":"VALUE(FIXED(EXP(BB$4*-1*'PM2.5 reduction'!BB132),9))","v":0.99999487200000003},{"$f":"VALUE(FIXED(EXP(BC$4*-1*'PM2.5 reduction'!BC132),9))","v":0.99999866900000001}]
[null,"Male 80-84",{"$f":"VALUE(FIXED(EXP(C$4*-1*'PM2.5 reduction'!C133),9))","v":0.99999017000000001},{"$f":"VALUE(FIXED(EXP(D$4*-1*'PM2.5 reduction'!D133),9))","v":0.99999179800000004},{"$f":"VALUE(FIXED(EXP(E$4*-1*'PM2.5 reduction'!E133),9))","v":0.99999716900000002},{"$f":"VALUE(FIXED(EXP(F$4*-1*'PM2.5 reduction'!F133),9))","v":0.99999778399999995},{"$f":"VALUE(FIXED(EXP(G$4*-1*'PM2.5 reduction'!G133),9))","v":0.999998948},{"$f":"VALUE(FIXED(EXP(H$4*-1*'PM2.5 reduction'!H133),9))","v":0.99999730399999998},{"$f":"VALUE(FIXED(EXP(I$4*-1*'PM2.5 reduction'!I133),9))","v":0.99999800900000002},{"$f":"VALUE(FIXED(EXP(J$4*-1*'PM2.5 reduction'!J133),9))","v":0.99999611899999996},{"$f":"VALUE(FIXED(EXP(K$4*-1*'PM2.5 reduction'!K133),9))","v":0.99999652500000002},{"$f":"VALUE(FIXED(EXP(L$4*-1*'PM2.5 reduction'!L133),9))","v":0.999998155},{"$f":"VALUE(FIXED(EXP(M$4*-1*'PM2.5 reduction'!M133),9))","v":0.999998155},{"$f":"VALUE(FIXED(EXP(N$4*-1*'PM2.5 reduction'!N133),9))","v":0.99999230100000003},{"$f":"VALUE(FIXED(EXP(O$4*-1*'PM2.5 reduction'!O133),9))","v":0.99999745399999995},{"$f":"VALUE(FIXED(EXP(P$4*-1*'PM2.5 reduction'!P133),9))","v":0.99999255300000001},{"$f":"VALUE(FIXED(EXP(Q$4*-1*'PM2.5 reduction'!Q133),9))","v":0.99999578700000002},{"$f":"VALUE(FIXED(EXP(R$4*-1*'PM2.5 reduction'!R133),9))","v":0.99999458200000002},{"$f":"VALUE(FIXED(EXP(S$4*-1*'PM2.5 reduction'!S133),9))","v":0.99999421499999996},{"$f":"VALUE(FIXED(EXP(T$4*-1*'PM2.5 reduction'!T133),9))","v":0.999989621},{"$f":"VALUE(FIXED(EXP(U$4*-1*'PM2.5 reduction'!U133),9))","v":0.99999866900000001},{"$f":"VALUE(FIXED(EXP(V$4*-1*'PM2.5 reduction'!V133),9))","v":0.99999472899999997},{"$f":"VALUE(FIXED(EXP(W$4*-1*'PM2.5 reduction'!W133),9))","v":0.99999544100000004},{"$f":"VALUE(FIXED(EXP(X$4*-1*'PM2.5 reduction'!X133),9))","v":0.99999544100000004},{"$f":"VALUE(FIXED(EXP(Y$4*-1*'PM2.5 reduction'!Y133),9))","v":0.99999513600000001},{"$f":"VALUE(FIXED(EXP(Z$4*-1*'PM2.5 reduction'!Z133),9))","v":0.99999049299999998},{"$f":"VALUE(FIXED(EXP(AA$4*-1*'PM2.5 reduction'!AA133),9))","v":0.99999336400000005},{"$f":"VALUE(FIXED(EXP(AB$4*-1*'PM2.5 reduction'!AB133),9))","v":0.99999297399999998},{"$f":"VALUE(FIXED(EXP(AC$4*-1*'PM2.5 reduction'!AC133),9))","v":0.99999252400000005},{"$f":"VALUE(FIXED(EXP(AD$4*-1*'PM2.5 reduction'!AD133),9))","v":0.99999836099999995},{"$f":"VALUE(FIXED(EXP(AE$4*-1*'PM2.5 reduction'!AE133),9))","v":0.999998155},{"$f":"VALUE(FIXED(EXP(AF$4*-1*'PM2.5 reduction'!AF133),9))","v":0.99999540799999997},{"$f":"VALUE(FIXED(EXP(AG$4*-1*'PM2.5 reduction'!AG133),9))","v":0.999998155},{"$f":"VALUE(FIXED(EXP(AH$4*-1*'PM2.5 reduction'!AH133),9))","v":0.99999420800000005},{"$f":"VALUE(FIXED(EXP(AI$4*-1*'PM2.5 reduction'!AI133),9))","v":0.99999321600000002},{"$f":"VALUE(FIXED(EXP(AJ$4*-1*'PM2.5 reduction'!AJ133),9))","v":0.99999550699999995},{"$f":"VALUE(FIXED(EXP(AK$4*-1*'PM2.5 reduction'!AK133),9))","v":0.99999799},{"$f":"VALUE(FIXED(EXP(AL$4*-1*'PM2.5 reduction'!AL133),9))","v":0.99999722300000005},{"$f":"VALUE(FIXED(EXP(AM$4*-1*'PM2.5 reduction'!AM133),9))","v":0.99999392899999995},{"$f":"VALUE(FIXED(EXP(AN$4*-1*'PM2.5 reduction'!AN133),9))","v":0.99999834799999998},{"$f":"VALUE(FIXED(EXP(AO$4*-1*'PM2.5 reduction'!AO133),9))","v":0.99999834799999998},{"$f":"VALUE(FIXED(EXP(AP$4*-1*'PM2.5 reduction'!AP133),9))","v":0.99999593099999995},{"$f":"VALUE(FIXED(EXP(AQ$4*-1*'PM2.5 reduction'!AQ133),9))","v":0.999994516},{"$f":"VALUE(FIXED(EXP(AR$4*-1*'PM2.5 reduction'!AR133),9))","v":0.99999435999999997},{"$f":"VALUE(FIXED(EXP(AS$4*-1*'PM2.5 reduction'!AS133),9))","v":0.99999800900000002},{"$f":"VALUE(FIXED(EXP(AT$4*-1*'PM2.5 reduction'!AT133),9))","v":1},{"$f":"VALUE(FIXED(EXP(AU$4*-1*'PM2.5 reduction'!AU133),9))","v":1},{"$f":"VALUE(FIXED(EXP(AV$4*-1*'PM2.5 reduction'!AV133),9))","v":0.99999719300000001},{"$f":"VALUE(FIXED(EXP(AW$4*-1*'PM2.5 reduction'!AW133),9))","v":0.99999451900000003},{"$f":"VALUE(FIXED(EXP(AX$4*-1*'PM2.5 reduction'!AX133),9))","v":0.99999580300000002},{"$f":"VALUE(FIXED(EXP(AY$4*-1*'PM2.5 reduction'!AY133),9))","v":0.99999508000000004},{"$f":"VALUE(FIXED(EXP(AZ$4*-1*'PM2.5 reduction'!AZ133),9))","v":0.99999465600000004},{"$f":"VALUE(FIXED(EXP(BA$4*-1*'PM2.5 reduction'!BA133),9))","v":0.99999430300000003},{"$f":"VALUE(FIXED(EXP(BB$4*-1*'PM2.5 reduction'!BB133),9))","v":0.99999500399999997},{"$f":"VALUE(FIXED(EXP(BC$4*-1*'PM2.5 reduction'!BC133),9))","v":0.99999866900000001}]
[null,"Male 85-89",{"$f":"VALUE(FIXED(EXP(C$4*-1*'PM2.5 reduction'!C134),9))","v":0.99999070099999998},{"$f":"VALUE(FIXED(EXP(D$4*-1*'PM2.5 reduction'!D134),9))","v":0.99999202399999998},{"$f":"VALUE(FIXED(EXP(E$4*-1*'PM2.5 reduction'!E134),9))","v":0.99999708200000004},{"$f":"VALUE(FIXED(EXP(F$4*-1*'PM2.5 reduction'!F134),9))","v":0.99999782500000001},{"$f":"VALUE(FIXED(EXP(G$4*-1*'PM2.5 reduction'!G134),9))","v":0.99999886699999996},{"$f":"VALUE(FIXED(EXP(H$4*-1*'PM2.5 reduction'!H134),9))","v":0.99999707900000001},{"$f":"VALUE(FIXED(EXP(I$4*-1*'PM2.5 reduction'!I134),9))","v":0.99999792499999995},{"$f":"VALUE(FIXED(EXP(J$4*-1*'PM2.5 reduction'!J134),9))","v":0.99999572999999997},{"$f":"VALUE(FIXED(EXP(K$4*-1*'PM2.5 reduction'!K134),9))","v":0.999995941},{"$f":"VALUE(FIXED(EXP(L$4*-1*'PM2.5 reduction'!L134),9))","v":0.99999808400000001},{"$f":"VALUE(FIXED(EXP(M$4*-1*'PM2.5 reduction'!M134),9))","v":0.99999808400000001},{"$f":"VALUE(FIXED(EXP(N$4*-1*'PM2.5 reduction'!N134),9))","v":0.99999218099999998},{"$f":"VALUE(FIXED(EXP(O$4*-1*'PM2.5 reduction'!O134),9))","v":0.99999730600000003},{"$f":"VALUE(FIXED(EXP(P$4*-1*'PM2.5 reduction'!P134),9))","v":0.99999286899999995},{"$f":"VALUE(FIXED(EXP(Q$4*-1*'PM2.5 reduction'!Q134),9))","v":0.99999584100000005},{"$f":"VALUE(FIXED(EXP(R$4*-1*'PM2.5 reduction'!R134),9))","v":0.99999422000000004},{"$f":"VALUE(FIXED(EXP(S$4*-1*'PM2.5 reduction'!S134),9))","v":0.99999429100000004},{"$f":"VALUE(FIXED(EXP(T$4*-1*'PM2.5 reduction'!T134),9))","v":0.99998954799999995},{"$f":"VALUE(FIXED(EXP(U$4*-1*'PM2.5 reduction'!U134),9))","v":0.99999866900000001},{"$f":"VALUE(FIXED(EXP(V$4*-1*'PM2.5 reduction'!V134),9))","v":0.99999454300000001},{"$f":"VALUE(FIXED(EXP(W$4*-1*'PM2.5 reduction'!W134),9))","v":0.999995415},{"$f":"VALUE(FIXED(EXP(X$4*-1*'PM2.5 reduction'!X134),9))","v":0.999995415},{"$f":"VALUE(FIXED(EXP(Y$4*-1*'PM2.5 reduction'!Y134),9))","v":0.99999489600000002},{"$f":"VALUE(FIXED(EXP(Z$4*-1*'PM2.5 reduction'!Z134),9))","v":0.99999059599999995},{"$f":"VALUE(FIXED(EXP(AA$4*-1*'PM2.5 reduction'!AA134),9))","v":0.99999331700000005},{"$f":"VALUE(FIXED(EXP(AB$4*-1*'PM2.5 reduction'!AB134),9))","v":0.999993091},{"$f":"VALUE(FIXED(EXP(AC$4*-1*'PM2.5 reduction'!AC134),9))","v":0.99999246200000003},{"$f":"VALUE(FIXED(EXP(AD$4*-1*'PM2.5 reduction'!AD134),9))","v":0.99999818600000001},{"$f":"VALUE(FIXED(EXP(AE$4*-1*'PM2.5 reduction'!AE134),9))","v":0.99999799},{"$f":"VALUE(FIXED(EXP(AF$4*-1*'PM2.5 reduction'!AF134),9))","v":0.99999509799999997},{"$f":"VALUE(FIXED(EXP(AG$4*-1*'PM2.5 reduction'!AG134),9))","v":0.99999799},{"$f":"VALUE(FIXED(EXP(AH$4*-1*'PM2.5 reduction'!AH134),9))","v":0.99999418200000001},{"$f":"VALUE(FIXED(EXP(AI$4*-1*'PM2.5 reduction'!AI134),9))","v":0.99999307699999995},{"$f":"VALUE(FIXED(EXP(AJ$4*-1*'PM2.5 reduction'!AJ134),9))","v":0.99999544900000004},{"$f":"VALUE(FIXED(EXP(AK$4*-1*'PM2.5 reduction'!AK134),9))","v":0.99999782299999995},{"$f":"VALUE(FIXED(EXP(AL$4*-1*'PM2.5 reduction'!AL134),9))","v":0.99999725399999995},{"$f":"VALUE(FIXED(EXP(AM$4*-1*'PM2.5 reduction'!AM134),9))","v":0.99999378699999997},{"$f":"VALUE(FIXED(EXP(AN$4*-1*'PM2.5 reduction'!AN134),9))","v":0.99999822500000002},{"$f":"VALUE(FIXED(EXP(AO$4*-1*'PM2.5 reduction'!AO134),9))","v":0.99999822500000002},{"$f":"VALUE(FIXED(EXP(AP$4*-1*'PM2.5 reduction'!AP134),9))","v":0.9999962},{"$f":"VALUE(FIXED(EXP(AQ$4*-1*'PM2.5 reduction'!AQ134),9))","v":0.99999462500000003},{"$f":"VALUE(FIXED(EXP(AR$4*-1*'PM2.5 reduction'!AR134),9))","v":0.99999437800000002},{"$f":"VALUE(FIXED(EXP(AS$4*-1*'PM2.5 reduction'!AS134),9))","v":0.99999792499999995},{"$f":"VALUE(FIXED(EXP(AT$4*-1*'PM2.5 reduction'!AT134),9))","v":1},{"$f":"VALUE(FIXED(EXP(AU$4*-1*'PM2.5 reduction'!AU134),9))","v":1},{"$f":"VALUE(FIXED(EXP(AV$4*-1*'PM2.5 reduction'!AV134),9))","v":0.99999667699999994},{"$f":"VALUE(FIXED(EXP(AW$4*-1*'PM2.5 reduction'!AW134),9))","v":0.99999460799999995},{"$f":"VALUE(FIXED(EXP(AX$4*-1*'PM2.5 reduction'!AX134),9))","v":0.99999556999999994},{"$f":"VALUE(FIXED(EXP(AY$4*-1*'PM2.5 reduction'!AY134),9))","v":0.99999510400000002},{"$f":"VALUE(FIXED(EXP(AZ$4*-1*'PM2.5 reduction'!AZ134),9))","v":0.999994736},{"$f":"VALUE(FIXED(EXP(BA$4*-1*'PM2.5 reduction'!BA134),9))","v":0.99999420900000002},{"$f":"VALUE(FIXED(EXP(BB$4*-1*'PM2.5 reduction'!BB134),9))","v":0.99999492000000001},{"$f":"VALUE(FIXED(EXP(BC$4*-1*'PM2.5 reduction'!BC134),9))","v":0.99999866900000001}]
[null,"Male 90+",{"$f":"VALUE(FIXED(EXP(C$4*-1*'PM2.5 reduction'!C135),9))","v":0.99999103700000003},{"$f":"VALUE(FIXED(EXP(D$4*-1*'PM2.5 reduction'!D135),9))","v":0.99999266399999998},{"$f":"VALUE(FIXED(EXP(E$4*-1*'PM2.5 reduction'!E135),9))","v":0.99999738299999996},{"$f":"VALUE(FIXED(EXP(F$4*-1*'PM2.5 reduction'!F135),9))","v":0.99999783200000003},{"$f":"VALUE(FIXED(EXP(G$4*-1*'PM2.5 reduction'!G135),9))","v":0.99999892400000001},{"$f":"VALUE(FIXED(EXP(H$4*-1*'PM2.5 reduction'!H135),9))","v":0.99999674400000005},{"$f":"VALUE(FIXED(EXP(I$4*-1*'PM2.5 reduction'!I135),9))","v":0.99999822500000002},{"$f":"VALUE(FIXED(EXP(J$4*-1*'PM2.5 reduction'!J135),9))","v":0.99999677200000003},{"$f":"VALUE(FIXED(EXP(K$4*-1*'PM2.5 reduction'!K135),9))","v":0.99999692900000003},{"$f":"VALUE(FIXED(EXP(L$4*-1*'PM2.5 reduction'!L135),9))","v":0.999997884},{"$f":"VALUE(FIXED(EXP(M$4*-1*'PM2.5 reduction'!M135),9))","v":0.999997884},{"$f":"VALUE(FIXED(EXP(N$4*-1*'PM2.5 reduction'!N135),9))","v":0.99999199500000002},{"$f":"VALUE(FIXED(EXP(O$4*-1*'PM2.5 reduction'!O135),9))","v":0.99999698699999995},{"$f":"VALUE(FIXED(EXP(P$4*-1*'PM2.5 reduction'!P135),9))","v":0.99999267000000003},{"$f":"VALUE(FIXED(EXP(Q$4*-1*'PM2.5 reduction'!Q135),9))","v":0.999996361},{"$f":"VALUE(FIXED(EXP(R$4*-1*'PM2.5 reduction'!R135),9))","v":0.99999339499999995},{"$f":"VALUE(FIXED(EXP(S$4*-1*'PM2.5 reduction'!S135),9))","v":0.99999364000000002},{"$f":"VALUE(FIXED(EXP(T$4*-1*'PM2.5 reduction'!T135),9))","v":0.99998856700000005},{"$f":"VALUE(FIXED(EXP(U$4*-1*'PM2.5 reduction'!U135),9))","v":0.99999866900000001},{"$f":"VALUE(FIXED(EXP(V$4*-1*'PM2.5 reduction'!V135),9))","v":0.99999487600000003},{"$f":"VALUE(FIXED(EXP(W$4*-1*'PM2.5 reduction'!W135),9))","v":0.99999512999999995},{"$f":"VALUE(FIXED(EXP(X$4*-1*'PM2.5 reduction'!X135),9))","v":0.99999512999999995},{"$f":"VALUE(FIXED(EXP(Y$4*-1*'PM2.5 reduction'!Y135),9))","v":0.99999541999999997},{"$f":"VALUE(FIXED(EXP(Z$4*-1*'PM2.5 reduction'!Z135),9))","v":0.99999085099999996},{"$f":"VALUE(FIXED(EXP(AA$4*-1*'PM2.5 reduction'!AA135),9))","v":0.99999316400000005},{"$f":"VALUE(FIXED(EXP(AB$4*-1*'PM2.5 reduction'!AB135),9))","v":0.99999363500000005},{"$f":"VALUE(FIXED(EXP(AC$4*-1*'PM2.5 reduction'!AC135),9))","v":0.99999236999999996},{"$f":"VALUE(FIXED(EXP(AD$4*-1*'PM2.5 reduction'!AD135),9))","v":0.99999826800000002},{"$f":"VALUE(FIXED(EXP(AE$4*-1*'PM2.5 reduction'!AE135),9))","v":0.99999811199999999},{"$f":"VALUE(FIXED(EXP(AF$4*-1*'PM2.5 reduction'!AF135),9))","v":0.99999574099999999},{"$f":"VALUE(FIXED(EXP(AG$4*-1*'PM2.5 reduction'!AG135),9))","v":0.99999811199999999},{"$f":"VALUE(FIXED(EXP(AH$4*-1*'PM2.5 reduction'!AH135),9))","v":0.99999413999999998},{"$f":"VALUE(FIXED(EXP(AI$4*-1*'PM2.5 reduction'!AI135),9))","v":0.99999236700000005},{"$f":"VALUE(FIXED(EXP(AJ$4*-1*'PM2.5 reduction'!AJ135),9))","v":0.99999533100000004},{"$f":"VALUE(FIXED(EXP(AK$4*-1*'PM2.5 reduction'!AK135),9))","v":0.99999800299999997},{"$f":"VALUE(FIXED(EXP(AL$4*-1*'PM2.5 reduction'!AL135),9))","v":0.999997154},{"$f":"VALUE(FIXED(EXP(AM$4*-1*'PM2.5 reduction'!AM135),9))","v":0.99999345799999995},{"$f":"VALUE(FIXED(EXP(AN$4*-1*'PM2.5 reduction'!AN135),9))","v":0.99999839899999998},{"$f":"VALUE(FIXED(EXP(AO$4*-1*'PM2.5 reduction'!AO135),9))","v":0.99999839899999998},{"$f":"VALUE(FIXED(EXP(AP$4*-1*'PM2.5 reduction'!AP135),9))","v":0.99999602700000001},{"$f":"VALUE(FIXED(EXP(AQ$4*-1*'PM2.5 reduction'!AQ135),9))","v":0.99999410099999997},{"$f":"VALUE(FIXED(EXP(AR$4*-1*'PM2.5 reduction'!AR135),9))","v":0.99999422900000001},{"$f":"VALUE(FIXED(EXP(AS$4*-1*'PM2.5 reduction'!AS135),9))","v":0.99999822500000002},{"$f":"VALUE(FIXED(EXP(AT$4*-1*'PM2.5 reduction'!AT135),9))","v":1},{"$f":"VALUE(FIXED(EXP(AU$4*-1*'PM2.5 reduction'!AU135),9))","v":1},{"$f":"VALUE(FIXED(EXP(AV$4*-1*'PM2.5 reduction'!AV135),9))","v":0.99999613700000001},{"$f":"VALUE(FIXED(EXP(AW$4*-1*'PM2.5 reduction'!AW135),9))","v":0.99999481099999998},{"$f":"VALUE(FIXED(EXP(AX$4*-1*'PM2.5 reduction'!AX135),9))","v":0.99999660400000001},{"$f":"VALUE(FIXED(EXP(AY$4*-1*'PM2.5 reduction'!AY135),9))","v":0.999994885},{"$f":"VALUE(FIXED(EXP(AZ$4*-1*'PM2.5 reduction'!AZ135),9))","v":0.999994622},{"$f":"VALUE(FIXED(EXP(BA$4*-1*'PM2.5 reduction'!BA135),9))","v":0.99999411999999999},{"$f":"VALUE(FIXED(EXP(BB$4*-1*'PM2.5 reduction'!BB135),9))","v":0.99999495800000004},{"$f":"VALUE(FIXED(EXP(BC$4*-1*'PM2.5 reduction'!BC135),9))","v":0.99999866900000001}]
["SIMD Q3","Female 0-4",{"$f":"VALUE(FIXED(EXP(C$4*-1*'PM2.5 reduction'!C136),9))","v":0.99998966700000003},{"$f":"VALUE(FIXED(EXP(D$4*-1*'PM2.5 reduction'!D136),9))","v":0.99999387799999995},{"$f":"VALUE(FIXED(EXP(E$4*-1*'PM2.5 reduction'!E136),9))","v":0.999998308},{"$f":"VALUE(FIXED(EXP(F$4*-1*'PM2.5 reduction'!F136),9))","v":0.999997841},{"$f":"VALUE(FIXED(EXP(G$4*-1*'PM2.5 reduction'!G136),9))","v":0.99999906900000002},{"$f":"VALUE(FIXED(EXP(H$4*-1*'PM2.5 reduction'!H136),9))","v":0.99999697799999998},{"$f":"VALUE(FIXED(EXP(I$4*-1*'PM2.5 reduction'!I136),9))","v":0.99999859899999999},{"$f":"VALUE(FIXED(EXP(J$4*-1*'PM2.5 reduction'!J136),9))","v":0.99999738599999999},{"$f":"VALUE(FIXED(EXP(K$4*-1*'PM2.5 reduction'!K136),9))","v":0.99999724300000004},{"$f":"VALUE(FIXED(EXP(L$4*-1*'PM2.5 reduction'!L136),9))","v":0.99999826999999997},{"$f":"VALUE(FIXED(EXP(M$4*-1*'PM2.5 reduction'!M136),9))","v":0.99999826999999997},{"$f":"VALUE(FIXED(EXP(N$4*-1*'PM2.5 reduction'!N136),9))","v":0.999991466},{"$f":"VALUE(FIXED(EXP(O$4*-1*'PM2.5 reduction'!O136),9))","v":0.99999723200000001},{"$f":"VALUE(FIXED(EXP(P$4*-1*'PM2.5 reduction'!P136),9))","v":0.99999313400000001},{"$f":"VALUE(FIXED(EXP(Q$4*-1*'PM2.5 reduction'!Q136),9))","v":0.99999652999999999},{"$f":"VALUE(FIXED(EXP(R$4*-1*'PM2.5 reduction'!R136),9))","v":0.99999391599999998},{"$f":"VALUE(FIXED(EXP(S$4*-1*'PM2.5 reduction'!S136),9))","v":0.99999372099999995},{"$f":"VALUE(FIXED(EXP(T$4*-1*'PM2.5 reduction'!T136),9))","v":0.99998913},{"$f":"VALUE(FIXED(EXP(U$4*-1*'PM2.5 reduction'!U136),9))","v":0.99999877500000001},{"$f":"VALUE(FIXED(EXP(V$4*-1*'PM2.5 reduction'!V136),9))","v":0.99999472700000003},{"$f":"VALUE(FIXED(EXP(W$4*-1*'PM2.5 reduction'!W136),9))","v":0.99999570100000001},{"$f":"VALUE(FIXED(EXP(X$4*-1*'PM2.5 reduction'!X136),9))","v":0.99999570100000001},{"$f":"VALUE(FIXED(EXP(Y$4*-1*'PM2.5 reduction'!Y136),9))","v":0.99999565899999998},{"$f":"VALUE(FIXED(EXP(Z$4*-1*'PM2.5 reduction'!Z136),9))","v":0.99998964199999996},{"$f":"VALUE(FIXED(EXP(AA$4*-1*'PM2.5 reduction'!AA136),9))","v":0.99999265299999995},{"$f":"VALUE(FIXED(EXP(AB$4*-1*'PM2.5 reduction'!AB136),9))","v":0.99999470400000001},{"$f":"VALUE(FIXED(EXP(AC$4*-1*'PM2.5 reduction'!AC136),9))","v":0.99999158399999999},{"$f":"VALUE(FIXED(EXP(AD$4*-1*'PM2.5 reduction'!AD136),9))","v":0.99999857000000003},{"$f":"VALUE(FIXED(EXP(AE$4*-1*'PM2.5 reduction'!AE136),9))","v":0.99999847799999997},{"$f":"VALUE(FIXED(EXP(AF$4*-1*'PM2.5 reduction'!AF136),9))","v":0.99999602399999998},{"$f":"VALUE(FIXED(EXP(AG$4*-1*'PM2.5 reduction'!AG136),9))","v":0.99999847799999997},{"$f":"VALUE(FIXED(EXP(AH$4*-1*'PM2.5 reduction'!AH136),9))","v":0.99999400800000005},{"$f":"VALUE(FIXED(EXP(AI$4*-1*'PM2.5 reduction'!AI136),9))","v":0.99999208900000003},{"$f":"VALUE(FIXED(EXP(AJ$4*-1*'PM2.5 reduction'!AJ136),9))","v":0.99999594800000002},{"$f":"VALUE(FIXED(EXP(AK$4*-1*'PM2.5 reduction'!AK136),9))","v":0.99999769100000002},{"$f":"VALUE(FIXED(EXP(AL$4*-1*'PM2.5 reduction'!AL136),9))","v":0.99999777999999995},{"$f":"VALUE(FIXED(EXP(AM$4*-1*'PM2.5 reduction'!AM136),9))","v":0.99999369800000004},{"$f":"VALUE(FIXED(EXP(AN$4*-1*'PM2.5 reduction'!AN136),9))","v":0.99999832300000002},{"$f":"VALUE(FIXED(EXP(AO$4*-1*'PM2.5 reduction'!AO136),9))","v":0.99999832300000002},{"$f":"VALUE(FIXED(EXP(AP$4*-1*'PM2.5 reduction'!AP136),9))","v":0.99999735199999995},{"$f":"VALUE(FIXED(EXP(AQ$4*-1*'PM2.5 reduction'!AQ136),9))","v":0.99999477800000003},{"$f":"VALUE(FIXED(EXP(AR$4*-1*'PM2.5 reduction'!AR136),9))","v":0.99999419899999997},{"$f":"VALUE(FIXED(EXP(AS$4*-1*'PM2.5 reduction'!AS136),9))","v":0.99999859899999999},{"$f":"VALUE(FIXED(EXP(AT$4*-1*'PM2.5 reduction'!AT136),9))","v":1},{"$f":"VALUE(FIXED(EXP(AU$4*-1*'PM2.5 reduction'!AU136),9))","v":1},{"$f":"VALUE(FIXED(EXP(AV$4*-1*'PM2.5 reduction'!AV136),9))","v":0.99999608500000003},{"$f":"VALUE(FIXED(EXP(AW$4*-1*'PM2.5 reduction'!AW136),9))","v":0.99999441099999997},{"$f":"VALUE(FIXED(EXP(AX$4*-1*'PM2.5 reduction'!AX136),9))","v":0.99999749699999996},{"$f":"VALUE(FIXED(EXP(AY$4*-1*'PM2.5 reduction'!AY136),9))","v":0.99999576700000004},{"$f":"VALUE(FIXED(EXP(AZ$4*-1*'PM2.5 reduction'!AZ136),9))","v":0.99999583700000005},{"$f":"VALUE(FIXED(EXP(BA$4*-1*'PM2.5 reduction'!BA136),9))","v":0.99999447200000002},{"$f":"VALUE(FIXED(EXP(BB$4*-1*'PM2.5 reduction'!BB136),9))","v":0.99999533299999999},{"$f":"VALUE(FIXED(EXP(BC$4*-1*'PM2.5 reduction'!BC136),9))","v":0.99999877500000001}]
[null,"Female 5-9",{"$f":"VALUE(FIXED(EXP(C$4*-1*'PM2.5 reduction'!C137),9))","v":0.99999024599999997},{"$f":"VALUE(FIXED(EXP(D$4*-1*'PM2.5 reduction'!D137),9))","v":0.99999424100000001},{"$f":"VALUE(FIXED(EXP(E$4*-1*'PM2.5 reduction'!E137),9))","v":0.99999833599999999},{"$f":"VALUE(FIXED(EXP(F$4*-1*'PM2.5 reduction'!F137),9))","v":0.99999787100000004},{"$f":"VALUE(FIXED(EXP(G$4*-1*'PM2.5 reduction'!G137),9))","v":0.99999908299999996},{"$f":"VALUE(FIXED(EXP(H$4*-1*'PM2.5 reduction'!H137),9))","v":0.99999704499999997},{"$f":"VALUE(FIXED(EXP(I$4*-1*'PM2.5 reduction'!I137),9))","v":0.99999865300000002},{"$f":"VALUE(FIXED(EXP(J$4*-1*'PM2.5 reduction'!J137),9))","v":0.99999728300000001},{"$f":"VALUE(FIXED(EXP(K$4*-1*'PM2.5 reduction'!K137),9))","v":0.99999730200000003},{"$f":"VALUE(FIXED(EXP(L$4*-1*'PM2.5 reduction'!L137),9))","v":0.99999811999999999},{"$f":"VALUE(FIXED(EXP(M$4*-1*'PM2.5 reduction'!M137),9))","v":0.99999811999999999},{"$f":"VALUE(FIXED(EXP(N$4*-1*'PM2.5 reduction'!N137),9))","v":0.99999157699999996},{"$f":"VALUE(FIXED(EXP(O$4*-1*'PM2.5 reduction'!O137),9))","v":0.99999717499999996},{"$f":"VALUE(FIXED(EXP(P$4*-1*'PM2.5 reduction'!P137),9))","v":0.999992942},{"$f":"VALUE(FIXED(EXP(Q$4*-1*'PM2.5 reduction'!Q137),9))","v":0.99999645599999998},{"$f":"VALUE(FIXED(EXP(R$4*-1*'PM2.5 reduction'!R137),9))","v":0.99999406400000002},{"$f":"VALUE(FIXED(EXP(S$4*-1*'PM2.5 reduction'!S137),9))","v":0.99999423600000004},{"$f":"VALUE(FIXED(EXP(T$4*-1*'PM2.5 reduction'!T137),9))","v":0.99998972699999999},{"$f":"VALUE(FIXED(EXP(U$4*-1*'PM2.5 reduction'!U137),9))","v":0.99999875100000002},{"$f":"VALUE(FIXED(EXP(V$4*-1*'PM2.5 reduction'!V137),9))","v":0.99999469299999999},{"$f":"VALUE(FIXED(EXP(W$4*-1*'PM2.5 reduction'!W137),9))","v":0.99999566600000001},{"$f":"VALUE(FIXED(EXP(X$4*-1*'PM2.5 reduction'!X137),9))","v":0.99999566600000001},{"$f":"VALUE(FIXED(EXP(Y$4*-1*'PM2.5 reduction'!Y137),9))","v":0.99999566699999998},{"$f":"VALUE(FIXED(EXP(Z$4*-1*'PM2.5 reduction'!Z137),9))","v":0.99999037999999996},{"$f":"VALUE(FIXED(EXP(AA$4*-1*'PM2.5 reduction'!AA137),9))","v":0.99999315499999997},{"$f":"VALUE(FIXED(EXP(AB$4*-1*'PM2.5 reduction'!AB137),9))","v":0.99999506999999999},{"$f":"VALUE(FIXED(EXP(AC$4*-1*'PM2.5 reduction'!AC137),9))","v":0.99999241800000005},{"$f":"VALUE(FIXED(EXP(AD$4*-1*'PM2.5 reduction'!AD137),9))","v":0.99999869200000002},{"$f":"VALUE(FIXED(EXP(AE$4*-1*'PM2.5 reduction'!AE137),9))","v":0.99999859499999999},{"$f":"VALUE(FIXED(EXP(AF$4*-1*'PM2.5 reduction'!AF137),9))","v":0.99999601999999999},{"$f":"VALUE(FIXED(EXP(AG$4*-1*'PM2.5 reduction'!AG137),9))","v":0.99999859499999999},{"$f":"VALUE(FIXED(EXP(AH$4*-1*'PM2.5 reduction'!AH137),9))","v":0.99999406000000002},{"$f":"VALUE(FIXED(EXP(AI$4*-1*'PM2.5 reduction'!AI137),9))","v":0.99999273300000002},{"$f":"VALUE(FIXED(EXP(AJ$4*-1*'PM2.5 reduction'!AJ137),9))","v":0.99999569499999996},{"$f":"VALUE(FIXED(EXP(AK$4*-1*'PM2.5 reduction'!AK137),9))","v":0.99999774600000002},{"$f":"VALUE(FIXED(EXP(AL$4*-1*'PM2.5 reduction'!AL137),9))","v":0.99999772399999998},{"$f":"VALUE(FIXED(EXP(AM$4*-1*'PM2.5 reduction'!AM137),9))","v":0.99999377300000003},{"$f":"VALUE(FIXED(EXP(AN$4*-1*'PM2.5 reduction'!AN137),9))","v":0.999998304},{"$f":"VALUE(FIXED(EXP(AO$4*-1*'PM2.5 reduction'!AO137),9))","v":0.999998304},{"$f":"VALUE(FIXED(EXP(AP$4*-1*'PM2.5 reduction'!AP137),9))","v":0.99999765699999998},{"$f":"VALUE(FIXED(EXP(AQ$4*-1*'PM2.5 reduction'!AQ137),9))","v":0.99999488199999997},{"$f":"VALUE(FIXED(EXP(AR$4*-1*'PM2.5 reduction'!AR137),9))","v":0.99999460900000003},{"$f":"VALUE(FIXED(EXP(AS$4*-1*'PM2.5 reduction'!AS137),9))","v":0.99999865300000002},{"$f":"VALUE(FIXED(EXP(AT$4*-1*'PM2.5 reduction'!AT137),9))","v":1},{"$f":"VALUE(FIXED(EXP(AU$4*-1*'PM2.5 reduction'!AU137),9))","v":1},{"$f":"VALUE(FIXED(EXP(AV$4*-1*'PM2.5 reduction'!AV137),9))","v":0.99999618199999996},{"$f":"VALUE(FIXED(EXP(AW$4*-1*'PM2.5 reduction'!AW137),9))","v":0.99999444999999998},{"$f":"VALUE(FIXED(EXP(AX$4*-1*'PM2.5 reduction'!AX137),9))","v":0.99999726799999999},{"$f":"VALUE(FIXED(EXP(AY$4*-1*'PM2.5 reduction'!AY137),9))","v":0.99999591099999996},{"$f":"VALUE(FIXED(EXP(AZ$4*-1*'PM2.5 reduction'!AZ137),9))","v":0.99999618700000004},{"$f":"VALUE(FIXED(EXP(BA$4*-1*'PM2.5 reduction'!BA137),9))","v":0.99999457400000002},{"$f":"VALUE(FIXED(EXP(BB$4*-1*'PM2.5 reduction'!BB137),9))","v":0.99999534499999998},{"$f":"VALUE(FIXED(EXP(BC$4*-1*'PM2.5 reduction'!BC137),9))","v":0.99999875100000002}]
[null,"Female 10-15",{"$f":"VALUE(FIXED(EXP(C$4*-1*'PM2.5 reduction'!C138),9))","v":0.99999128699999995},{"$f":"VALUE(FIXED(EXP(D$4*-1*'PM2.5 reduction'!D138),9))","v":0.99999527499999996},{"$f":"VALUE(FIXED(EXP(E$4*-1*'PM2.5 reduction'!E138),9))","v":0.99999846400000003},{"$f":"VALUE(FIXED(EXP(F$4*-1*'PM2.5 reduction'!F138),9))","v":0.99999788499999998},{"$f":"VALUE(FIXED(EXP(G$4*-1*'PM2.5 reduction'!G138),9))","v":0.99999909300000001},{"$f":"VALUE(FIXED(EXP(H$4*-1*'PM2.5 reduction'!H138),9))","v":0.99999717200000005},{"$f":"VALUE(FIXED(EXP(I$4*-1*'PM2.5 reduction'!I138),9))","v":0.99999867899999995},{"$f":"VALUE(FIXED(EXP(J$4*-1*'PM2.5 reduction'!J138),9))","v":0.99999717099999996},{"$f":"VALUE(FIXED(EXP(K$4*-1*'PM2.5 reduction'!K138),9))","v":0.99999724899999998},{"$f":"VALUE(FIXED(EXP(L$4*-1*'PM2.5 reduction'!L138),9))","v":0.99999812099999996},{"$f":"VALUE(FIXED(EXP(M$4*-1*'PM2.5 reduction'!M138),9))","v":0.99999812099999996},{"$f":"VALUE(FIXED(EXP(N$4*-1*'PM2.5 reduction'!N138),9))","v":0.99999174099999999},{"$f":"VALUE(FIXED(EXP(O$4*-1*'PM2.5 reduction'!O138),9))","v":0.99999751599999998},{"$f":"VALUE(FIXED(EXP(P$4*-1*'PM2.5 reduction'!P138),9))","v":0.99999324700000003},{"$f":"VALUE(FIXED(EXP(Q$4*-1*'PM2.5 reduction'!Q138),9))","v":0.99999640099999998},{"$f":"VALUE(FIXED(EXP(R$4*-1*'PM2.5 reduction'!R138),9))","v":0.999993943},{"$f":"VALUE(FIXED(EXP(S$4*-1*'PM2.5 reduction'!S138),9))","v":0.99999460500000004},{"$f":"VALUE(FIXED(EXP(T$4*-1*'PM2.5 reduction'!T138),9))","v":0.99998989699999996},{"$f":"VALUE(FIXED(EXP(U$4*-1*'PM2.5 reduction'!U138),9))","v":0.99999877999999998},{"$f":"VALUE(FIXED(EXP(V$4*-1*'PM2.5 reduction'!V138),9))","v":0.999994618},{"$f":"VALUE(FIXED(EXP(W$4*-1*'PM2.5 reduction'!W138),9))","v":0.99999576400000001},{"$f":"VALUE(FIXED(EXP(X$4*-1*'PM2.5 reduction'!X138),9))","v":0.99999576400000001},{"$f":"VALUE(FIXED(EXP(Y$4*-1*'PM2.5 reduction'!Y138),9))","v":0.99999554300000004},{"$f":"VALUE(FIXED(EXP(Z$4*-1*'PM2.5 reduction'!Z138),9))","v":0.99999068199999996},{"$f":"VALUE(FIXED(EXP(AA$4*-1*'PM2.5 reduction'!AA138),9))","v":0.999993358},{"$f":"VALUE(FIXED(EXP(AB$4*-1*'PM2.5 reduction'!AB138),9))","v":0.99999587199999995},{"$f":"VALUE(FIXED(EXP(AC$4*-1*'PM2.5 reduction'!AC138),9))","v":0.99999278000000003},{"$f":"VALUE(FIXED(EXP(AD$4*-1*'PM2.5 reduction'!AD138),9))","v":0.99999864800000005},{"$f":"VALUE(FIXED(EXP(AE$4*-1*'PM2.5 reduction'!AE138),9))","v":0.99999855000000004},{"$f":"VALUE(FIXED(EXP(AF$4*-1*'PM2.5 reduction'!AF138),9))","v":0.99999600700000002},{"$f":"VALUE(FIXED(EXP(AG$4*-1*'PM2.5 reduction'!AG138),9))","v":0.99999855000000004},{"$f":"VALUE(FIXED(EXP(AH$4*-1*'PM2.5 reduction'!AH138),9))","v":0.99999405699999999},{"$f":"VALUE(FIXED(EXP(AI$4*-1*'PM2.5 reduction'!AI138),9))","v":0.99999318400000003},{"$f":"VALUE(FIXED(EXP(AJ$4*-1*'PM2.5 reduction'!AJ138),9))","v":0.99999574800000002},{"$f":"VALUE(FIXED(EXP(AK$4*-1*'PM2.5 reduction'!AK138),9))","v":0.99999772600000003},{"$f":"VALUE(FIXED(EXP(AL$4*-1*'PM2.5 reduction'!AL138),9))","v":0.99999775599999996},{"$f":"VALUE(FIXED(EXP(AM$4*-1*'PM2.5 reduction'!AM138),9))","v":0.99999372600000003},{"$f":"VALUE(FIXED(EXP(AN$4*-1*'PM2.5 reduction'!AN138),9))","v":0.99999830599999995},{"$f":"VALUE(FIXED(EXP(AO$4*-1*'PM2.5 reduction'!AO138),9))","v":0.99999830599999995},{"$f":"VALUE(FIXED(EXP(AP$4*-1*'PM2.5 reduction'!AP138),9))","v":0.99999745799999995},{"$f":"VALUE(FIXED(EXP(AQ$4*-1*'PM2.5 reduction'!AQ138),9))","v":0.99999484900000002},{"$f":"VALUE(FIXED(EXP(AR$4*-1*'PM2.5 reduction'!AR138),9))","v":0.99999481599999995},{"$f":"VALUE(FIXED(EXP(AS$4*-1*'PM2.5 reduction'!AS138),9))","v":0.99999867899999995},{"$f":"VALUE(FIXED(EXP(AT$4*-1*'PM2.5 reduction'!AT138),9))","v":1},{"$f":"VALUE(FIXED(EXP(AU$4*-1*'PM2.5 reduction'!AU138),9))","v":1},{"$f":"VALUE(FIXED(EXP(AV$4*-1*'PM2.5 reduction'!AV138),9))","v":0.99999620899999997},{"$f":"VALUE(FIXED(EXP(AW$4*-1*'PM2.5 reduction'!AW138),9))","v":0.99999447900000005},{"$f":"VALUE(FIXED(EXP(AX$4*-1*'PM2.5 reduction'!AX138),9))","v":0.99999711499999999},{"$f":"VALUE(FIXED(EXP(AY$4*-1*'PM2.5 reduction'!AY138),9))","v":0.99999587999999995},{"$f":"VALUE(FIXED(EXP(AZ$4*-1*'PM2.5 reduction'!AZ138),9))","v":0.99999600099999997},{"$f":"VALUE(FIXED(EXP(BA$4*-1*'PM2.5 reduction'!BA138),9))","v":0.999994677},{"$f":"VALUE(FIXED(EXP(BB$4*-1*'PM2.5 reduction'!BB138),9))","v":0.99999533699999998},{"$f":"VALUE(FIXED(EXP(BC$4*-1*'PM2.5 reduction'!BC138),9))","v":0.99999877999999998}]
[null,"Female 16-19",{"$f":"VALUE(FIXED(EXP(C$4*-1*'PM2.5 reduction'!C139),9))","v":0.99998942499999999},{"$f":"VALUE(FIXED(EXP(D$4*-1*'PM2.5 reduction'!D139),9))","v":0.99999281500000003},{"$f":"VALUE(FIXED(EXP(E$4*-1*'PM2.5 reduction'!E139),9))","v":0.99999834200000004},{"$f":"VALUE(FIXED(EXP(F$4*-1*'PM2.5 reduction'!F139),9))","v":0.99999789500000003},{"$f":"VALUE(FIXED(EXP(G$4*-1*'PM2.5 reduction'!G139),9))","v":0.99999912300000005},{"$f":"VALUE(FIXED(EXP(H$4*-1*'PM2.5 reduction'!H139),9))","v":0.99999690799999996},{"$f":"VALUE(FIXED(EXP(I$4*-1*'PM2.5 reduction'!I139),9))","v":0.99999863600000005},{"$f":"VALUE(FIXED(EXP(J$4*-1*'PM2.5 reduction'!J139),9))","v":0.99999640599999995},{"$f":"VALUE(FIXED(EXP(K$4*-1*'PM2.5 reduction'!K139),9))","v":0.99999697600000004},{"$f":"VALUE(FIXED(EXP(L$4*-1*'PM2.5 reduction'!L139),9))","v":0.99999811900000002},{"$f":"VALUE(FIXED(EXP(M$4*-1*'PM2.5 reduction'!M139),9))","v":0.99999811900000002},{"$f":"VALUE(FIXED(EXP(N$4*-1*'PM2.5 reduction'!N139),9))","v":0.99999022900000001},{"$f":"VALUE(FIXED(EXP(O$4*-1*'PM2.5 reduction'!O139),9))","v":0.99999713899999998},{"$f":"VALUE(FIXED(EXP(P$4*-1*'PM2.5 reduction'!P139),9))","v":0.99999318100000001},{"$f":"VALUE(FIXED(EXP(Q$4*-1*'PM2.5 reduction'!Q139),9))","v":0.99999653399999999},{"$f":"VALUE(FIXED(EXP(R$4*-1*'PM2.5 reduction'!R139),9))","v":0.99999368799999999},{"$f":"VALUE(FIXED(EXP(S$4*-1*'PM2.5 reduction'!S139),9))","v":0.99999208299999998},{"$f":"VALUE(FIXED(EXP(T$4*-1*'PM2.5 reduction'!T139),9))","v":0.99998458700000004},{"$f":"VALUE(FIXED(EXP(U$4*-1*'PM2.5 reduction'!U139),9))","v":0.99999876700000001},{"$f":"VALUE(FIXED(EXP(V$4*-1*'PM2.5 reduction'!V139),9))","v":0.99999476499999995},{"$f":"VALUE(FIXED(EXP(W$4*-1*'PM2.5 reduction'!W139),9))","v":0.99999592599999998},{"$f":"VALUE(FIXED(EXP(X$4*-1*'PM2.5 reduction'!X139),9))","v":0.99999592599999998},{"$f":"VALUE(FIXED(EXP(Y$4*-1*'PM2.5 reduction'!Y139),9))","v":0.99999538099999996},{"$f":"VALUE(FIXED(EXP(Z$4*-1*'PM2.5 reduction'!Z139),9))","v":0.99998412000000003},{"$f":"VALUE(FIXED(EXP(AA$4*-1*'PM2.5 reduction'!AA139),9))","v":0.99999011000000004},{"$f":"VALUE(FIXED(EXP(AB$4*-1*'PM2.5 reduction'!AB139),9))","v":0.99999379499999996},{"$f":"VALUE(FIXED(EXP(AC$4*-1*'PM2.5 reduction'!AC139),9))","v":0.99998775100000004},{"$f":"VALUE(FIXED(EXP(AD$4*-1*'PM2.5 reduction'!AD139),9))","v":0.99999854700000002},{"$f":"VALUE(FIXED(EXP(AE$4*-1*'PM2.5 reduction'!AE139),9))","v":0.999998426},{"$f":"VALUE(FIXED(EXP(AF$4*-1*'PM2.5 reduction'!AF139),9))","v":0.99999596999999996},{"$f":"VALUE(FIXED(EXP(AG$4*-1*'PM2.5 reduction'!AG139),9))","v":0.999998426},{"$f":"VALUE(FIXED(EXP(AH$4*-1*'PM2.5 reduction'!AH139),9))","v":0.999994143},{"$f":"VALUE(FIXED(EXP(AI$4*-1*'PM2.5 reduction'!AI139),9))","v":0.99998939099999995},{"$f":"VALUE(FIXED(EXP(AJ$4*-1*'PM2.5 reduction'!AJ139),9))","v":0.99999565499999998},{"$f":"VALUE(FIXED(EXP(AK$4*-1*'PM2.5 reduction'!AK139),9))","v":0.99999777999999995},{"$f":"VALUE(FIXED(EXP(AL$4*-1*'PM2.5 reduction'!AL139),9))","v":0.99999758800000005},{"$f":"VALUE(FIXED(EXP(AM$4*-1*'PM2.5 reduction'!AM139),9))","v":0.99999385200000002},{"$f":"VALUE(FIXED(EXP(AN$4*-1*'PM2.5 reduction'!AN139),9))","v":0.99999829200000001},{"$f":"VALUE(FIXED(EXP(AO$4*-1*'PM2.5 reduction'!AO139),9))","v":0.99999829200000001},{"$f":"VALUE(FIXED(EXP(AP$4*-1*'PM2.5 reduction'!AP139),9))","v":0.99999739099999996},{"$f":"VALUE(FIXED(EXP(AQ$4*-1*'PM2.5 reduction'!AQ139),9))","v":0.99999473000000005},{"$f":"VALUE(FIXED(EXP(AR$4*-1*'PM2.5 reduction'!AR139),9))","v":0.99999249000000001},{"$f":"VALUE(FIXED(EXP(AS$4*-1*'PM2.5 reduction'!AS139),9))","v":0.99999863600000005},{"$f":"VALUE(FIXED(EXP(AT$4*-1*'PM2.5 reduction'!AT139),9))","v":1},{"$f":"VALUE(FIXED(EXP(AU$4*-1*'PM2.5 reduction'!AU139),9))","v":1},{"$f":"VALUE(FIXED(EXP(AV$4*-1*'PM2.5 reduction'!AV139),9))","v":0.99999610800000005},{"$f":"VALUE(FIXED(EXP(AW$4*-1*'PM2.5 reduction'!AW139),9))","v":0.99999450400000001},{"$f":"VALUE(FIXED(EXP(AX$4*-1*'PM2.5 reduction'!AX139),9))","v":0.99999606600000002},{"$f":"VALUE(FIXED(EXP(AY$4*-1*'PM2.5 reduction'!AY139),9))","v":0.99999527300000002},{"$f":"VALUE(FIXED(EXP(AZ$4*-1*'PM2.5 reduction'!AZ139),9))","v":0.999994669},{"$f":"VALUE(FIXED(EXP(BA$4*-1*'PM2.5 reduction'!BA139),9))","v":0.99999451800000005},{"$f":"VALUE(FIXED(EXP(BB$4*-1*'PM2.5 reduction'!BB139),9))","v":0.99999531699999999},{"$f":"VALUE(FIXED(EXP(BC$4*-1*'PM2.5 reduction'!BC139),9))","v":0.99999876700000001}]
[null,"Female 20-24",{"$f":"VALUE(FIXED(EXP(C$4*-1*'PM2.5 reduction'!C140),9))","v":0.99998721400000001},{"$f":"VALUE(FIXED(EXP(D$4*-1*'PM2.5 reduction'!D140),9))","v":0.99998994200000002},{"$f":"VALUE(FIXED(EXP(E$4*-1*'PM2.5 reduction'!E140),9))","v":0.99999822000000005},{"$f":"VALUE(FIXED(EXP(F$4*-1*'PM2.5 reduction'!F140),9))","v":0.99999785699999999},{"$f":"VALUE(FIXED(EXP(G$4*-1*'PM2.5 reduction'!G140),9))","v":0.99999915100000003},{"$f":"VALUE(FIXED(EXP(H$4*-1*'PM2.5 reduction'!H140),9))","v":0.99999699500000006},{"$f":"VALUE(FIXED(EXP(I$4*-1*'PM2.5 reduction'!I140),9))","v":0.99999858600000002},{"$f":"VALUE(FIXED(EXP(J$4*-1*'PM2.5 reduction'!J140),9))","v":0.99999517400000004},{"$f":"VALUE(FIXED(EXP(K$4*-1*'PM2.5 reduction'!K140),9))","v":0.99999708499999995},{"$f":"VALUE(FIXED(EXP(L$4*-1*'PM2.5 reduction'!L140),9))","v":0.99999808099999998},{"$f":"VALUE(FIXED(EXP(M$4*-1*'PM2.5 reduction'!M140),9))","v":0.99999808099999998},{"$f":"VALUE(FIXED(EXP(N$4*-1*'PM2.5 reduction'!N140),9))","v":0.99999000400000004},{"$f":"VALUE(FIXED(EXP(O$4*-1*'PM2.5 reduction'!O140),9))","v":0.999997201},{"$f":"VALUE(FIXED(EXP(P$4*-1*'PM2.5 reduction'!P140),9))","v":0.99999300300000005},{"$f":"VALUE(FIXED(EXP(Q$4*-1*'PM2.5 reduction'!Q140),9))","v":0.99999598999999995},{"$f":"VALUE(FIXED(EXP(R$4*-1*'PM2.5 reduction'!R140),9))","v":0.99999385200000002},{"$f":"VALUE(FIXED(EXP(S$4*-1*'PM2.5 reduction'!S140),9))","v":0.99998885100000001},{"$f":"VALUE(FIXED(EXP(T$4*-1*'PM2.5 reduction'!T140),9))","v":0.999983179},{"$f":"VALUE(FIXED(EXP(U$4*-1*'PM2.5 reduction'!U140),9))","v":0.99999877100000001},{"$f":"VALUE(FIXED(EXP(V$4*-1*'PM2.5 reduction'!V140),9))","v":0.99999463799999999},{"$f":"VALUE(FIXED(EXP(W$4*-1*'PM2.5 reduction'!W140),9))","v":0.99999618899999998},{"$f":"VALUE(FIXED(EXP(X$4*-1*'PM2.5 reduction'!X140),9))","v":0.99999618899999998},{"$f":"VALUE(FIXED(EXP(Y$4*-1*'PM2.5 reduction'!Y140),9))","v":0.99999491200000001},{"$f":"VALUE(FIXED(EXP(Z$4*-1*'PM2.5 reduction'!Z140),9))","v":0.99998336099999996},{"$f":"VALUE(FIXED(EXP(AA$4*-1*'PM2.5 reduction'!AA140),9))","v":0.99998830400000005},{"$f":"VALUE(FIXED(EXP(AB$4*-1*'PM2.5 reduction'!AB140),9))","v":0.99999093999999999},{"$f":"VALUE(FIXED(EXP(AC$4*-1*'PM2.5 reduction'!AC140),9))","v":0.99998608},{"$f":"VALUE(FIXED(EXP(AD$4*-1*'PM2.5 reduction'!AD140),9))","v":0.99999848599999996},{"$f":"VALUE(FIXED(EXP(AE$4*-1*'PM2.5 reduction'!AE140),9))","v":0.99999837199999997},{"$f":"VALUE(FIXED(EXP(AF$4*-1*'PM2.5 reduction'!AF140),9))","v":0.99999600499999997},{"$f":"VALUE(FIXED(EXP(AG$4*-1*'PM2.5 reduction'!AG140),9))","v":0.99999837199999997},{"$f":"VALUE(FIXED(EXP(AH$4*-1*'PM2.5 reduction'!AH140),9))","v":0.99999403399999998},{"$f":"VALUE(FIXED(EXP(AI$4*-1*'PM2.5 reduction'!AI140),9))","v":0.999986131},{"$f":"VALUE(FIXED(EXP(AJ$4*-1*'PM2.5 reduction'!AJ140),9))","v":0.99999583000000003},{"$f":"VALUE(FIXED(EXP(AK$4*-1*'PM2.5 reduction'!AK140),9))","v":0.99999774399999997},{"$f":"VALUE(FIXED(EXP(AL$4*-1*'PM2.5 reduction'!AL140),9))","v":0.99999758299999997},{"$f":"VALUE(FIXED(EXP(AM$4*-1*'PM2.5 reduction'!AM140),9))","v":0.99999379200000005},{"$f":"VALUE(FIXED(EXP(AN$4*-1*'PM2.5 reduction'!AN140),9))","v":0.99999826999999997},{"$f":"VALUE(FIXED(EXP(AO$4*-1*'PM2.5 reduction'!AO140),9))","v":0.99999826999999997},{"$f":"VALUE(FIXED(EXP(AP$4*-1*'PM2.5 reduction'!AP140),9))","v":0.99999719399999998},{"$f":"VALUE(FIXED(EXP(AQ$4*-1*'PM2.5 reduction'!AQ140),9))","v":0.99999458200000002},{"$f":"VALUE(FIXED(EXP(AR$4*-1*'PM2.5 reduction'!AR140),9))","v":0.99999024299999995},{"$f":"VALUE(FIXED(EXP(AS$4*-1*'PM2.5 reduction'!AS140),9))","v":0.99999858600000002},{"$f":"VALUE(FIXED(EXP(AT$4*-1*'PM2.5 reduction'!AT140),9))","v":1},{"$f":"VALUE(FIXED(EXP(AU$4*-1*'PM2.5 reduction'!AU140),9))","v":1},{"$f":"VALUE(FIXED(EXP(AV$4*-1*'PM2.5 reduction'!AV140),9))","v":0.99999628600000001},{"$f":"VALUE(FIXED(EXP(AW$4*-1*'PM2.5 reduction'!AW140),9))","v":0.99999429900000003},{"$f":"VALUE(FIXED(EXP(AX$4*-1*'PM2.5 reduction'!AX140),9))","v":0.99999461499999998},{"$f":"VALUE(FIXED(EXP(AY$4*-1*'PM2.5 reduction'!AY140),9))","v":0.99999507700000001},{"$f":"VALUE(FIXED(EXP(AZ$4*-1*'PM2.5 reduction'!AZ140),9))","v":0.99999398699999997},{"$f":"VALUE(FIXED(EXP(BA$4*-1*'PM2.5 reduction'!BA140),9))","v":0.99999447100000005},{"$f":"VALUE(FIXED(EXP(BB$4*-1*'PM2.5 reduction'!BB140),9))","v":0.99999546100000003},{"$f":"VALUE(FIXED(EXP(BC$4*-1*'PM2.5 reduction'!BC140),9))","v":0.99999877100000001}]
[null,"Female 25-29",{"$f":"VALUE(FIXED(EXP(C$4*-1*'PM2.5 reduction'!C141),9))","v":0.99998743999999995},{"$f":"VALUE(FIXED(EXP(D$4*-1*'PM2.5 reduction'!D141),9))","v":0.999990355},{"$f":"VALUE(FIXED(EXP(E$4*-1*'PM2.5 reduction'!E141),9))","v":0.99999819400000001},{"$f":"VALUE(FIXED(EXP(F$4*-1*'PM2.5 reduction'!F141),9))","v":0.99999798200000001},{"$f":"VALUE(FIXED(EXP(G$4*-1*'PM2.5 reduction'!G141),9))","v":0.999999007},{"$f":"VALUE(FIXED(EXP(H$4*-1*'PM2.5 reduction'!H141),9))","v":0.99999690500000005},{"$f":"VALUE(FIXED(EXP(I$4*-1*'PM2.5 reduction'!I141),9))","v":0.99999861300000004},{"$f":"VALUE(FIXED(EXP(J$4*-1*'PM2.5 reduction'!J141),9))","v":0.99999643900000001},{"$f":"VALUE(FIXED(EXP(K$4*-1*'PM2.5 reduction'!K141),9))","v":0.99999675899999996},{"$f":"VALUE(FIXED(EXP(L$4*-1*'PM2.5 reduction'!L141),9))","v":0.99999806899999999},{"$f":"VALUE(FIXED(EXP(M$4*-1*'PM2.5 reduction'!M141),9))","v":0.99999806899999999},{"$f":"VALUE(FIXED(EXP(N$4*-1*'PM2.5 reduction'!N141),9))","v":0.99999099300000005},{"$f":"VALUE(FIXED(EXP(O$4*-1*'PM2.5 reduction'!O141),9))","v":0.99999700800000002},{"$f":"VALUE(FIXED(EXP(P$4*-1*'PM2.5 reduction'!P141),9))","v":0.99999310900000005},{"$f":"VALUE(FIXED(EXP(Q$4*-1*'PM2.5 reduction'!Q141),9))","v":0.999995988},{"$f":"VALUE(FIXED(EXP(R$4*-1*'PM2.5 reduction'!R141),9))","v":0.99999349900000001},{"$f":"VALUE(FIXED(EXP(S$4*-1*'PM2.5 reduction'!S141),9))","v":0.99998985900000004},{"$f":"VALUE(FIXED(EXP(T$4*-1*'PM2.5 reduction'!T141),9))","v":0.99998592399999997},{"$f":"VALUE(FIXED(EXP(U$4*-1*'PM2.5 reduction'!U141),9))","v":0.99999879199999997},{"$f":"VALUE(FIXED(EXP(V$4*-1*'PM2.5 reduction'!V141),9))","v":0.999994457},{"$f":"VALUE(FIXED(EXP(W$4*-1*'PM2.5 reduction'!W141),9))","v":0.99999578700000002},{"$f":"VALUE(FIXED(EXP(X$4*-1*'PM2.5 reduction'!X141),9))","v":0.99999578700000002},{"$f":"VALUE(FIXED(EXP(Y$4*-1*'PM2.5 reduction'!Y141),9))","v":0.99999536300000003},{"$f":"VALUE(FIXED(EXP(Z$4*-1*'PM2.5 reduction'!Z141),9))","v":0.99998731399999996},{"$f":"VALUE(FIXED(EXP(AA$4*-1*'PM2.5 reduction'!AA141),9))","v":0.99999065200000004},{"$f":"VALUE(FIXED(EXP(AB$4*-1*'PM2.5 reduction'!AB141),9))","v":0.99999146800000005},{"$f":"VALUE(FIXED(EXP(AC$4*-1*'PM2.5 reduction'!AC141),9))","v":0.99998916000000004},{"$f":"VALUE(FIXED(EXP(AD$4*-1*'PM2.5 reduction'!AD141),9))","v":0.999998477},{"$f":"VALUE(FIXED(EXP(AE$4*-1*'PM2.5 reduction'!AE141),9))","v":0.99999837599999997},{"$f":"VALUE(FIXED(EXP(AF$4*-1*'PM2.5 reduction'!AF141),9))","v":0.99999598000000001},{"$f":"VALUE(FIXED(EXP(AG$4*-1*'PM2.5 reduction'!AG141),9))","v":0.99999837599999997},{"$f":"VALUE(FIXED(EXP(AH$4*-1*'PM2.5 reduction'!AH141),9))","v":0.99999400299999996},{"$f":"VALUE(FIXED(EXP(AI$4*-1*'PM2.5 reduction'!AI141),9))","v":0.99998790500000001},{"$f":"VALUE(FIXED(EXP(AJ$4*-1*'PM2.5 reduction'!AJ141),9))","v":0.99999575900000004},{"$f":"VALUE(FIXED(EXP(AK$4*-1*'PM2.5 reduction'!AK141),9))","v":0.99999770700000001},{"$f":"VALUE(FIXED(EXP(AL$4*-1*'PM2.5 reduction'!AL141),9))","v":0.99999766400000001},{"$f":"VALUE(FIXED(EXP(AM$4*-1*'PM2.5 reduction'!AM141),9))","v":0.99999377499999997},{"$f":"VALUE(FIXED(EXP(AN$4*-1*'PM2.5 reduction'!AN141),9))","v":0.999998265},{"$f":"VALUE(FIXED(EXP(AO$4*-1*'PM2.5 reduction'!AO141),9))","v":0.999998265},{"$f":"VALUE(FIXED(EXP(AP$4*-1*'PM2.5 reduction'!AP141),9))","v":0.99999721699999999},{"$f":"VALUE(FIXED(EXP(AQ$4*-1*'PM2.5 reduction'!AQ141),9))","v":0.99999443200000004},{"$f":"VALUE(FIXED(EXP(AR$4*-1*'PM2.5 reduction'!AR141),9))","v":0.99999149300000001},{"$f":"VALUE(FIXED(EXP(AS$4*-1*'PM2.5 reduction'!AS141),9))","v":0.99999861300000004},{"$f":"VALUE(FIXED(EXP(AT$4*-1*'PM2.5 reduction'!AT141),9))","v":1},{"$f":"VALUE(FIXED(EXP(AU$4*-1*'PM2.5 reduction'!AU141),9))","v":1},{"$f":"VALUE(FIXED(EXP(AV$4*-1*'PM2.5 reduction'!AV141),9))","v":0.99999608900000003},{"$f":"VALUE(FIXED(EXP(AW$4*-1*'PM2.5 reduction'!AW141),9))","v":0.99999425900000005},{"$f":"VALUE(FIXED(EXP(AX$4*-1*'PM2.5 reduction'!AX141),9))","v":0.99999630299999998},{"$f":"VALUE(FIXED(EXP(AY$4*-1*'PM2.5 reduction'!AY141),9))","v":0.99999499800000002},{"$f":"VALUE(FIXED(EXP(AZ$4*-1*'PM2.5 reduction'!AZ141),9))","v":0.99999422000000004},{"$f":"VALUE(FIXED(EXP(BA$4*-1*'PM2.5 reduction'!BA141),9))","v":0.99999466800000003},{"$f":"VALUE(FIXED(EXP(BB$4*-1*'PM2.5 reduction'!BB141),9))","v":0.99999533100000004},{"$f":"VALUE(FIXED(EXP(BC$4*-1*'PM2.5 reduction'!BC141),9))","v":0.99999879199999997}]
[null,"Female 30-34",{"$f":"VALUE(FIXED(EXP(C$4*-1*'PM2.5 reduction'!C142),9))","v":0.99998864600000004},{"$f":"VALUE(FIXED(EXP(D$4*-1*'PM2.5 reduction'!D142),9))","v":0.99999201100000001},{"$f":"VALUE(FIXED(EXP(E$4*-1*'PM2.5 reduction'!E142),9))","v":0.99999829799999995},{"$f":"VALUE(FIXED(EXP(F$4*-1*'PM2.5 reduction'!F142),9))","v":0.99999787600000001},{"$f":"VALUE(FIXED(EXP(G$4*-1*'PM2.5 reduction'!G142),9))","v":0.99999907499999996},{"$f":"VALUE(FIXED(EXP(H$4*-1*'PM2.5 reduction'!H142),9))","v":0.99999698800000003},{"$f":"VALUE(FIXED(EXP(I$4*-1*'PM2.5 reduction'!I142),9))","v":0.99999860399999996},{"$f":"VALUE(FIXED(EXP(J$4*-1*'PM2.5 reduction'!J142),9))","v":0.99999692500000004},{"$f":"VALUE(FIXED(EXP(K$4*-1*'PM2.5 reduction'!K142),9))","v":0.99999689999999997},{"$f":"VALUE(FIXED(EXP(L$4*-1*'PM2.5 reduction'!L142),9))","v":0.99999826800000002},{"$f":"VALUE(FIXED(EXP(M$4*-1*'PM2.5 reduction'!M142),9))","v":0.99999826800000002},{"$f":"VALUE(FIXED(EXP(N$4*-1*'PM2.5 reduction'!N142),9))","v":0.99999148000000004},{"$f":"VALUE(FIXED(EXP(O$4*-1*'PM2.5 reduction'!O142),9))","v":0.99999724599999995},{"$f":"VALUE(FIXED(EXP(P$4*-1*'PM2.5 reduction'!P142),9))","v":0.99999325500000003},{"$f":"VALUE(FIXED(EXP(Q$4*-1*'PM2.5 reduction'!Q142),9))","v":0.99999617600000001},{"$f":"VALUE(FIXED(EXP(R$4*-1*'PM2.5 reduction'!R142),9))","v":0.99999378000000005},{"$f":"VALUE(FIXED(EXP(S$4*-1*'PM2.5 reduction'!S142),9))","v":0.999991305},{"$f":"VALUE(FIXED(EXP(T$4*-1*'PM2.5 reduction'!T142),9))","v":0.99998719599999997},{"$f":"VALUE(FIXED(EXP(U$4*-1*'PM2.5 reduction'!U142),9))","v":0.99999876300000001},{"$f":"VALUE(FIXED(EXP(V$4*-1*'PM2.5 reduction'!V142),9))","v":0.99999455900000001},{"$f":"VALUE(FIXED(EXP(W$4*-1*'PM2.5 reduction'!W142),9))","v":0.99999564399999996},{"$f":"VALUE(FIXED(EXP(X$4*-1*'PM2.5 reduction'!X142),9))","v":0.99999564399999996},{"$f":"VALUE(FIXED(EXP(Y$4*-1*'PM2.5 reduction'!Y142),9))","v":0.99999536099999997},{"$f":"VALUE(FIXED(EXP(Z$4*-1*'PM2.5 reduction'!Z142),9))","v":0.999988514},{"$f":"VALUE(FIXED(EXP(AA$4*-1*'PM2.5 reduction'!AA142),9))","v":0.99999169600000004},{"$f":"VALUE(FIXED(EXP(AB$4*-1*'PM2.5 reduction'!AB142),9))","v":0.99999305800000005},{"$f":"VALUE(FIXED(EXP(AC$4*-1*'PM2.5 reduction'!AC142),9))","v":0.99999037099999999},{"$f":"VALUE(FIXED(EXP(AD$4*-1*'PM2.5 reduction'!AD142),9))","v":0.99999848499999999},{"$f":"VALUE(FIXED(EXP(AE$4*-1*'PM2.5 reduction'!AE142),9))","v":0.99999839199999996},{"$f":"VALUE(FIXED(EXP(AF$4*-1*'PM2.5 reduction'!AF142),9))","v":0.99999599699999997},{"$f":"VALUE(FIXED(EXP(AG$4*-1*'PM2.5 reduction'!AG142),9))","v":0.99999839199999996},{"$f":"VALUE(FIXED(EXP(AH$4*-1*'PM2.5 reduction'!AH142),9))","v":0.99999399499999997},{"$f":"VALUE(FIXED(EXP(AI$4*-1*'PM2.5 reduction'!AI142),9))","v":0.99998941200000002},{"$f":"VALUE(FIXED(EXP(AJ$4*-1*'PM2.5 reduction'!AJ142),9))","v":0.99999572699999995},{"$f":"VALUE(FIXED(EXP(AK$4*-1*'PM2.5 reduction'!AK142),9))","v":0.99999769199999999},{"$f":"VALUE(FIXED(EXP(AL$4*-1*'PM2.5 reduction'!AL142),9))","v":0.99999776200000001},{"$f":"VALUE(FIXED(EXP(AM$4*-1*'PM2.5 reduction'!AM142),9))","v":0.99999369199999999},{"$f":"VALUE(FIXED(EXP(AN$4*-1*'PM2.5 reduction'!AN142),9))","v":0.99999826400000003},{"$f":"VALUE(FIXED(EXP(AO$4*-1*'PM2.5 reduction'!AO142),9))","v":0.99999826400000003},{"$f":"VALUE(FIXED(EXP(AP$4*-1*'PM2.5 reduction'!AP142),9))","v":0.99999701399999996},{"$f":"VALUE(FIXED(EXP(AQ$4*-1*'PM2.5 reduction'!AQ142),9))","v":0.99999455500000001},{"$f":"VALUE(FIXED(EXP(AR$4*-1*'PM2.5 reduction'!AR142),9))","v":0.99999270399999995},{"$f":"VALUE(FIXED(EXP(AS$4*-1*'PM2.5 reduction'!AS142),9))","v":0.99999860399999996},{"$f":"VALUE(FIXED(EXP(AT$4*-1*'PM2.5 reduction'!AT142),9))","v":1},{"$f":"VALUE(FIXED(EXP(AU$4*-1*'PM2.5 reduction'!AU142),9))","v":1},{"$f":"VALUE(FIXED(EXP(AV$4*-1*'PM2.5 reduction'!AV142),9))","v":0.99999604900000005},{"$f":"VALUE(FIXED(EXP(AW$4*-1*'PM2.5 reduction'!AW142),9))","v":0.999994351},{"$f":"VALUE(FIXED(EXP(AX$4*-1*'PM2.5 reduction'!AX142),9))","v":0.999996946},{"$f":"VALUE(FIXED(EXP(AY$4*-1*'PM2.5 reduction'!AY142),9))","v":0.99999545199999995},{"$f":"VALUE(FIXED(EXP(AZ$4*-1*'PM2.5 reduction'!AZ142),9))","v":0.999995258},{"$f":"VALUE(FIXED(EXP(BA$4*-1*'PM2.5 reduction'!BA142),9))","v":0.99999477800000003},{"$f":"VALUE(FIXED(EXP(BB$4*-1*'PM2.5 reduction'!BB142),9))","v":0.99999548599999999},{"$f":"VALUE(FIXED(EXP(BC$4*-1*'PM2.5 reduction'!BC142),9))","v":0.99999876300000001}]
[null,"Female 35-39",{"$f":"VALUE(FIXED(EXP(C$4*-1*'PM2.5 reduction'!C143),9))","v":0.99998940000000003},{"$f":"VALUE(FIXED(EXP(D$4*-1*'PM2.5 reduction'!D143),9))","v":0.99999324099999998},{"$f":"VALUE(FIXED(EXP(E$4*-1*'PM2.5 reduction'!E143),9))","v":0.999998363},{"$f":"VALUE(FIXED(EXP(F$4*-1*'PM2.5 reduction'!F143),9))","v":0.99999786000000002},{"$f":"VALUE(FIXED(EXP(G$4*-1*'PM2.5 reduction'!G143),9))","v":0.99999903999999995},{"$f":"VALUE(FIXED(EXP(H$4*-1*'PM2.5 reduction'!H143),9))","v":0.99999686399999999},{"$f":"VALUE(FIXED(EXP(I$4*-1*'PM2.5 reduction'!I143),9))","v":0.99999866400000004},{"$f":"VALUE(FIXED(EXP(J$4*-1*'PM2.5 reduction'!J143),9))","v":0.99999690100000005},{"$f":"VALUE(FIXED(EXP(K$4*-1*'PM2.5 reduction'!K143),9))","v":0.99999721799999997},{"$f":"VALUE(FIXED(EXP(L$4*-1*'PM2.5 reduction'!L143),9))","v":0.99999809200000001},{"$f":"VALUE(FIXED(EXP(M$4*-1*'PM2.5 reduction'!M143),9))","v":0.99999809200000001},{"$f":"VALUE(FIXED(EXP(N$4*-1*'PM2.5 reduction'!N143),9))","v":0.99999148900000001},{"$f":"VALUE(FIXED(EXP(O$4*-1*'PM2.5 reduction'!O143),9))","v":0.99999687500000001},{"$f":"VALUE(FIXED(EXP(P$4*-1*'PM2.5 reduction'!P143),9))","v":0.999993303},{"$f":"VALUE(FIXED(EXP(Q$4*-1*'PM2.5 reduction'!Q143),9))","v":0.99999586100000004},{"$f":"VALUE(FIXED(EXP(R$4*-1*'PM2.5 reduction'!R143),9))","v":0.99999385799999996},{"$f":"VALUE(FIXED(EXP(S$4*-1*'PM2.5 reduction'!S143),9))","v":0.999992098},{"$f":"VALUE(FIXED(EXP(T$4*-1*'PM2.5 reduction'!T143),9))","v":0.99998709799999996},{"$f":"VALUE(FIXED(EXP(U$4*-1*'PM2.5 reduction'!U143),9))","v":0.99999876499999996},{"$f":"VALUE(FIXED(EXP(V$4*-1*'PM2.5 reduction'!V143),9))","v":0.99999459899999998},{"$f":"VALUE(FIXED(EXP(W$4*-1*'PM2.5 reduction'!W143),9))","v":0.99999570900000001},{"$f":"VALUE(FIXED(EXP(X$4*-1*'PM2.5 reduction'!X143),9))","v":0.99999570900000001},{"$f":"VALUE(FIXED(EXP(Y$4*-1*'PM2.5 reduction'!Y143),9))","v":0.99999540200000003},{"$f":"VALUE(FIXED(EXP(Z$4*-1*'PM2.5 reduction'!Z143),9))","v":0.99998921200000002},{"$f":"VALUE(FIXED(EXP(AA$4*-1*'PM2.5 reduction'!AA143),9))","v":0.99999238599999996},{"$f":"VALUE(FIXED(EXP(AB$4*-1*'PM2.5 reduction'!AB143),9))","v":0.99999415800000002},{"$f":"VALUE(FIXED(EXP(AC$4*-1*'PM2.5 reduction'!AC143),9))","v":0.99999125099999997},{"$f":"VALUE(FIXED(EXP(AD$4*-1*'PM2.5 reduction'!AD143),9))","v":0.99999847600000003},{"$f":"VALUE(FIXED(EXP(AE$4*-1*'PM2.5 reduction'!AE143),9))","v":0.99999837800000002},{"$f":"VALUE(FIXED(EXP(AF$4*-1*'PM2.5 reduction'!AF143),9))","v":0.99999602300000001},{"$f":"VALUE(FIXED(EXP(AG$4*-1*'PM2.5 reduction'!AG143),9))","v":0.99999837800000002},{"$f":"VALUE(FIXED(EXP(AH$4*-1*'PM2.5 reduction'!AH143),9))","v":0.99999406199999996},{"$f":"VALUE(FIXED(EXP(AI$4*-1*'PM2.5 reduction'!AI143),9))","v":0.99998996200000001},{"$f":"VALUE(FIXED(EXP(AJ$4*-1*'PM2.5 reduction'!AJ143),9))","v":0.99999572299999995},{"$f":"VALUE(FIXED(EXP(AK$4*-1*'PM2.5 reduction'!AK143),9))","v":0.99999771400000004},{"$f":"VALUE(FIXED(EXP(AL$4*-1*'PM2.5 reduction'!AL143),9))","v":0.99999766499999998},{"$f":"VALUE(FIXED(EXP(AM$4*-1*'PM2.5 reduction'!AM143),9))","v":0.99999376299999998},{"$f":"VALUE(FIXED(EXP(AN$4*-1*'PM2.5 reduction'!AN143),9))","v":0.99999822900000002},{"$f":"VALUE(FIXED(EXP(AO$4*-1*'PM2.5 reduction'!AO143),9))","v":0.99999822900000002},{"$f":"VALUE(FIXED(EXP(AP$4*-1*'PM2.5 reduction'!AP143),9))","v":0.99999727599999999},{"$f":"VALUE(FIXED(EXP(AQ$4*-1*'PM2.5 reduction'!AQ143),9))","v":0.99999450599999995},{"$f":"VALUE(FIXED(EXP(AR$4*-1*'PM2.5 reduction'!AR143),9))","v":0.99999340400000003},{"$f":"VALUE(FIXED(EXP(AS$4*-1*'PM2.5 reduction'!AS143),9))","v":0.99999866400000004},{"$f":"VALUE(FIXED(EXP(AT$4*-1*'PM2.5 reduction'!AT143),9))","v":1},{"$f":"VALUE(FIXED(EXP(AU$4*-1*'PM2.5 reduction'!AU143),9))","v":1},{"$f":"VALUE(FIXED(EXP(AV$4*-1*'PM2.5 reduction'!AV143),9))","v":0.99999612900000001},{"$f":"VALUE(FIXED(EXP(AW$4*-1*'PM2.5 reduction'!AW143),9))","v":0.99999444800000004},{"$f":"VALUE(FIXED(EXP(AX$4*-1*'PM2.5 reduction'!AX143),9))","v":0.99999670299999999},{"$f":"VALUE(FIXED(EXP(AY$4*-1*'PM2.5 reduction'!AY143),9))","v":0.99999570400000004},{"$f":"VALUE(FIXED(EXP(AZ$4*-1*'PM2.5 reduction'!AZ143),9))","v":0.99999569700000002},{"$f":"VALUE(FIXED(EXP(BA$4*-1*'PM2.5 reduction'!BA143),9))","v":0.99999465499999995},{"$f":"VALUE(FIXED(EXP(BB$4*-1*'PM2.5 reduction'!BB143),9))","v":0.99999532099999999},{"$f":"VALUE(FIXED(EXP(BC$4*-1*'PM2.5 reduction'!BC143),9))","v":0.99999876499999996}]
[null,"Female 40-44",{"$f":"VALUE(FIXED(EXP(C$4*-1*'PM2.5 reduction'!C144),9))","v":0.999989715},{"$f":"VALUE(FIXED(EXP(D$4*-1*'PM2.5 reduction'!D144),9))","v":0.999993931},{"$f":"VALUE(FIXED(EXP(E$4*-1*'PM2.5 reduction'!E144),9))","v":0.99999828300000004},{"$f":"VALUE(FIXED(EXP(F$4*-1*'PM2.5 reduction'!F144),9))","v":0.99999781399999998},{"$f":"VALUE(FIXED(EXP(G$4*-1*'PM2.5 reduction'!G144),9))","v":0.99999907499999996},{"$f":"VALUE(FIXED(EXP(H$4*-1*'PM2.5 reduction'!H144),9))","v":0.99999710900000005},{"$f":"VALUE(FIXED(EXP(I$4*-1*'PM2.5 reduction'!I144),9))","v":0.99999862500000003},{"$f":"VALUE(FIXED(EXP(J$4*-1*'PM2.5 reduction'!J144),9))","v":0.99999722499999999},{"$f":"VALUE(FIXED(EXP(K$4*-1*'PM2.5 reduction'!K144),9))","v":0.99999700499999999},{"$f":"VALUE(FIXED(EXP(L$4*-1*'PM2.5 reduction'!L144),9))","v":0.99999812499999996},{"$f":"VALUE(FIXED(EXP(M$4*-1*'PM2.5 reduction'!M144),9))","v":0.99999812499999996},{"$f":"VALUE(FIXED(EXP(N$4*-1*'PM2.5 reduction'!N144),9))","v":0.99999148100000002},{"$f":"VALUE(FIXED(EXP(O$4*-1*'PM2.5 reduction'!O144),9))","v":0.99999740800000003},{"$f":"VALUE(FIXED(EXP(P$4*-1*'PM2.5 reduction'!P144),9))","v":0.99999287299999995},{"$f":"VALUE(FIXED(EXP(Q$4*-1*'PM2.5 reduction'!Q144),9))","v":0.99999614100000001},{"$f":"VALUE(FIXED(EXP(R$4*-1*'PM2.5 reduction'!R144),9))","v":0.99999400599999999},{"$f":"VALUE(FIXED(EXP(S$4*-1*'PM2.5 reduction'!S144),9))","v":0.99999331800000002},{"$f":"VALUE(FIXED(EXP(T$4*-1*'PM2.5 reduction'!T144),9))","v":0.99998814800000002},{"$f":"VALUE(FIXED(EXP(U$4*-1*'PM2.5 reduction'!U144),9))","v":0.99999880699999999},{"$f":"VALUE(FIXED(EXP(V$4*-1*'PM2.5 reduction'!V144),9))","v":0.99999465700000001},{"$f":"VALUE(FIXED(EXP(W$4*-1*'PM2.5 reduction'!W144),9))","v":0.99999574700000005},{"$f":"VALUE(FIXED(EXP(X$4*-1*'PM2.5 reduction'!X144),9))","v":0.99999574700000005},{"$f":"VALUE(FIXED(EXP(Y$4*-1*'PM2.5 reduction'!Y144),9))","v":0.99999559000000005},{"$f":"VALUE(FIXED(EXP(Z$4*-1*'PM2.5 reduction'!Z144),9))","v":0.99998965399999995},{"$f":"VALUE(FIXED(EXP(AA$4*-1*'PM2.5 reduction'!AA144),9))","v":0.99999285500000001},{"$f":"VALUE(FIXED(EXP(AB$4*-1*'PM2.5 reduction'!AB144),9))","v":0.99999477299999995},{"$f":"VALUE(FIXED(EXP(AC$4*-1*'PM2.5 reduction'!AC144),9))","v":0.99999189600000005},{"$f":"VALUE(FIXED(EXP(AD$4*-1*'PM2.5 reduction'!AD144),9))","v":0.99999862399999995},{"$f":"VALUE(FIXED(EXP(AE$4*-1*'PM2.5 reduction'!AE144),9))","v":0.99999852499999997},{"$f":"VALUE(FIXED(EXP(AF$4*-1*'PM2.5 reduction'!AF144),9))","v":0.99999595699999999},{"$f":"VALUE(FIXED(EXP(AG$4*-1*'PM2.5 reduction'!AG144),9))","v":0.99999852499999997},{"$f":"VALUE(FIXED(EXP(AH$4*-1*'PM2.5 reduction'!AH144),9))","v":0.99999412399999998},{"$f":"VALUE(FIXED(EXP(AI$4*-1*'PM2.5 reduction'!AI144),9))","v":0.99999139500000001},{"$f":"VALUE(FIXED(EXP(AJ$4*-1*'PM2.5 reduction'!AJ144),9))","v":0.99999589099999997},{"$f":"VALUE(FIXED(EXP(AK$4*-1*'PM2.5 reduction'!AK144),9))","v":0.99999777999999995},{"$f":"VALUE(FIXED(EXP(AL$4*-1*'PM2.5 reduction'!AL144),9))","v":0.999997633},{"$f":"VALUE(FIXED(EXP(AM$4*-1*'PM2.5 reduction'!AM144),9))","v":0.99999381600000004},{"$f":"VALUE(FIXED(EXP(AN$4*-1*'PM2.5 reduction'!AN144),9))","v":0.99999829200000001},{"$f":"VALUE(FIXED(EXP(AO$4*-1*'PM2.5 reduction'!AO144),9))","v":0.99999829200000001},{"$f":"VALUE(FIXED(EXP(AP$4*-1*'PM2.5 reduction'!AP144),9))","v":0.99999739700000001},{"$f":"VALUE(FIXED(EXP(AQ$4*-1*'PM2.5 reduction'!AQ144),9))","v":0.99999463799999999},{"$f":"VALUE(FIXED(EXP(AR$4*-1*'PM2.5 reduction'!AR144),9))","v":0.99999413800000003},{"$f":"VALUE(FIXED(EXP(AS$4*-1*'PM2.5 reduction'!AS144),9))","v":0.99999862500000003},{"$f":"VALUE(FIXED(EXP(AT$4*-1*'PM2.5 reduction'!AT144),9))","v":1},{"$f":"VALUE(FIXED(EXP(AU$4*-1*'PM2.5 reduction'!AU144),9))","v":1},{"$f":"VALUE(FIXED(EXP(AV$4*-1*'PM2.5 reduction'!AV144),9))","v":0.99999622300000002},{"$f":"VALUE(FIXED(EXP(AW$4*-1*'PM2.5 reduction'!AW144),9))","v":0.99999453400000005},{"$f":"VALUE(FIXED(EXP(AX$4*-1*'PM2.5 reduction'!AX144),9))","v":0.99999737899999996},{"$f":"VALUE(FIXED(EXP(AY$4*-1*'PM2.5 reduction'!AY144),9))","v":0.99999589300000002},{"$f":"VALUE(FIXED(EXP(AZ$4*-1*'PM2.5 reduction'!AZ144),9))","v":0.99999605400000002},{"$f":"VALUE(FIXED(EXP(BA$4*-1*'PM2.5 reduction'!BA144),9))","v":0.99999450899999998},{"$f":"VALUE(FIXED(EXP(BB$4*-1*'PM2.5 reduction'!BB144),9))","v":0.99999538700000001},{"$f":"VALUE(FIXED(EXP(BC$4*-1*'PM2.5 reduction'!BC144),9))","v":0.99999880699999999}]
[null,"Female 45-49",{"$f":"VALUE(FIXED(EXP(C$4*-1*'PM2.5 reduction'!C145),9))","v":0.99999052600000005},{"$f":"VALUE(FIXED(EXP(D$4*-1*'PM2.5 reduction'!D145),9))","v":0.99999468199999997},{"$f":"VALUE(FIXED(EXP(E$4*-1*'PM2.5 reduction'!E145),9))","v":0.99999831699999997},{"$f":"VALUE(FIXED(EXP(F$4*-1*'PM2.5 reduction'!F145),9))","v":0.99999792700000001},{"$f":"VALUE(FIXED(EXP(G$4*-1*'PM2.5 reduction'!G145),9))","v":0.99999907099999996},{"$f":"VALUE(FIXED(EXP(H$4*-1*'PM2.5 reduction'!H145),9))","v":0.99999699900000005},{"$f":"VALUE(FIXED(EXP(I$4*-1*'PM2.5 reduction'!I145),9))","v":0.99999861800000001},{"$f":"VALUE(FIXED(EXP(J$4*-1*'PM2.5 reduction'!J145),9))","v":0.99999718800000004},{"$f":"VALUE(FIXED(EXP(K$4*-1*'PM2.5 reduction'!K145),9))","v":0.99999691800000001},{"$f":"VALUE(FIXED(EXP(L$4*-1*'PM2.5 reduction'!L145),9))","v":0.99999810099999997},{"$f":"VALUE(FIXED(EXP(M$4*-1*'PM2.5 reduction'!M145),9))","v":0.99999810099999997},{"$f":"VALUE(FIXED(EXP(N$4*-1*'PM2.5 reduction'!N145),9))","v":0.99999190900000001},{"$f":"VALUE(FIXED(EXP(O$4*-1*'PM2.5 reduction'!O145),9))","v":0.99999725100000003},{"$f":"VALUE(FIXED(EXP(P$4*-1*'PM2.5 reduction'!P145),9))","v":0.99999320000000003},{"$f":"VALUE(FIXED(EXP(Q$4*-1*'PM2.5 reduction'!Q145),9))","v":0.999996361},{"$f":"VALUE(FIXED(EXP(R$4*-1*'PM2.5 reduction'!R145),9))","v":0.99999381799999998},{"$f":"VALUE(FIXED(EXP(S$4*-1*'PM2.5 reduction'!S145),9))","v":0.99999405900000005},{"$f":"VALUE(FIXED(EXP(T$4*-1*'PM2.5 reduction'!T145),9))","v":0.99998853399999998},{"$f":"VALUE(FIXED(EXP(U$4*-1*'PM2.5 reduction'!U145),9))","v":0.99999876799999998},{"$f":"VALUE(FIXED(EXP(V$4*-1*'PM2.5 reduction'!V145),9))","v":0.99999473299999997},{"$f":"VALUE(FIXED(EXP(W$4*-1*'PM2.5 reduction'!W145),9))","v":0.99999587400000001},{"$f":"VALUE(FIXED(EXP(X$4*-1*'PM2.5 reduction'!X145),9))","v":0.99999587400000001},{"$f":"VALUE(FIXED(EXP(Y$4*-1*'PM2.5 reduction'!Y145),9))","v":0.99999559400000004},{"$f":"VALUE(FIXED(EXP(Z$4*-1*'PM2.5 reduction'!Z145),9))","v":0.999990147},{"$f":"VALUE(FIXED(EXP(AA$4*-1*'PM2.5 reduction'!AA145),9))","v":0.99999312600000001},{"$f":"VALUE(FIXED(EXP(AB$4*-1*'PM2.5 reduction'!AB145),9))","v":0.99999540399999998},{"$f":"VALUE(FIXED(EXP(AC$4*-1*'PM2.5 reduction'!AC145),9))","v":0.999992408},{"$f":"VALUE(FIXED(EXP(AD$4*-1*'PM2.5 reduction'!AD145),9))","v":0.99999851799999995},{"$f":"VALUE(FIXED(EXP(AE$4*-1*'PM2.5 reduction'!AE145),9))","v":0.99999840699999998},{"$f":"VALUE(FIXED(EXP(AF$4*-1*'PM2.5 reduction'!AF145),9))","v":0.99999597399999995},{"$f":"VALUE(FIXED(EXP(AG$4*-1*'PM2.5 reduction'!AG145),9))","v":0.99999840699999998},{"$f":"VALUE(FIXED(EXP(AH$4*-1*'PM2.5 reduction'!AH145),9))","v":0.99999407500000004},{"$f":"VALUE(FIXED(EXP(AI$4*-1*'PM2.5 reduction'!AI145),9))","v":0.99999232999999998},{"$f":"VALUE(FIXED(EXP(AJ$4*-1*'PM2.5 reduction'!AJ145),9))","v":0.99999581699999995},{"$f":"VALUE(FIXED(EXP(AK$4*-1*'PM2.5 reduction'!AK145),9))","v":0.99999782199999998},{"$f":"VALUE(FIXED(EXP(AL$4*-1*'PM2.5 reduction'!AL145),9))","v":0.99999761399999998},{"$f":"VALUE(FIXED(EXP(AM$4*-1*'PM2.5 reduction'!AM145),9))","v":0.99999370899999995},{"$f":"VALUE(FIXED(EXP(AN$4*-1*'PM2.5 reduction'!AN145),9))","v":0.99999826800000002},{"$f":"VALUE(FIXED(EXP(AO$4*-1*'PM2.5 reduction'!AO145),9))","v":0.99999826800000002},{"$f":"VALUE(FIXED(EXP(AP$4*-1*'PM2.5 reduction'!AP145),9))","v":0.99999740100000001},{"$f":"VALUE(FIXED(EXP(AQ$4*-1*'PM2.5 reduction'!AQ145),9))","v":0.99999480100000004},{"$f":"VALUE(FIXED(EXP(AR$4*-1*'PM2.5 reduction'!AR145),9))","v":0.99999450700000003},{"$f":"VALUE(FIXED(EXP(AS$4*-1*'PM2.5 reduction'!AS145),9))","v":0.99999861800000001},{"$f":"VALUE(FIXED(EXP(AT$4*-1*'PM2.5 reduction'!AT145),9))","v":1},{"$f":"VALUE(FIXED(EXP(AU$4*-1*'PM2.5 reduction'!AU145),9))","v":1},{"$f":"VALUE(FIXED(EXP(AV$4*-1*'PM2.5 reduction'!AV145),9))","v":0.99999609700000003},{"$f":"VALUE(FIXED(EXP(AW$4*-1*'PM2.5 reduction'!AW145),9))","v":0.99999450599999995},{"$f":"VALUE(FIXED(EXP(AX$4*-1*'PM2.5 reduction'!AX145),9))","v":0.99999745299999998},{"$f":"VALUE(FIXED(EXP(AY$4*-1*'PM2.5 reduction'!AY145),9))","v":0.99999590599999999},{"$f":"VALUE(FIXED(EXP(AZ$4*-1*'PM2.5 reduction'!AZ145),9))","v":0.99999594599999997},{"$f":"VALUE(FIXED(EXP(BA$4*-1*'PM2.5 reduction'!BA145),9))","v":0.99999466199999998},{"$f":"VALUE(FIXED(EXP(BB$4*-1*'PM2.5 reduction'!BB145),9))","v":0.99999534599999995},{"$f":"VALUE(FIXED(EXP(BC$4*-1*'PM2.5 reduction'!BC145),9))","v":0.99999876799999998}]
[null,"Female 50-54",{"$f":"VALUE(FIXED(EXP(C$4*-1*'PM2.5 reduction'!C146),9))","v":0.99999066599999997},{"$f":"VALUE(FIXED(EXP(D$4*-1*'PM2.5 reduction'!D146),9))","v":0.99999445300000001},{"$f":"VALUE(FIXED(EXP(E$4*-1*'PM2.5 reduction'!E146),9))","v":0.99999834499999996},{"$f":"VALUE(FIXED(EXP(F$4*-1*'PM2.5 reduction'!F146),9))","v":0.99999795499999999},{"$f":"VALUE(FIXED(EXP(G$4*-1*'PM2.5 reduction'!G146),9))","v":0.99999910599999997},{"$f":"VALUE(FIXED(EXP(H$4*-1*'PM2.5 reduction'!H146),9))","v":0.99999703500000003},{"$f":"VALUE(FIXED(EXP(I$4*-1*'PM2.5 reduction'!I146),9))","v":0.999998685},{"$f":"VALUE(FIXED(EXP(J$4*-1*'PM2.5 reduction'!J146),9))","v":0.99999726899999997},{"$f":"VALUE(FIXED(EXP(K$4*-1*'PM2.5 reduction'!K146),9))","v":0.99999696299999996},{"$f":"VALUE(FIXED(EXP(L$4*-1*'PM2.5 reduction'!L146),9))","v":0.99999811900000002},{"$f":"VALUE(FIXED(EXP(M$4*-1*'PM2.5 reduction'!M146),9))","v":0.99999811900000002},{"$f":"VALUE(FIXED(EXP(N$4*-1*'PM2.5 reduction'!N146),9))","v":0.99999194599999996},{"$f":"VALUE(FIXED(EXP(O$4*-1*'PM2.5 reduction'!O146),9))","v":0.99999730899999995},{"$f":"VALUE(FIXED(EXP(P$4*-1*'PM2.5 reduction'!P146),9))","v":0.99999302899999998},{"$f":"VALUE(FIXED(EXP(Q$4*-1*'PM2.5 reduction'!Q146),9))","v":0.99999607300000004},{"$f":"VALUE(FIXED(EXP(R$4*-1*'PM2.5 reduction'!R146),9))","v":0.99999378500000002},{"$f":"VALUE(FIXED(EXP(S$4*-1*'PM2.5 reduction'!S146),9))","v":0.99999412799999998},{"$f":"VALUE(FIXED(EXP(T$4*-1*'PM2.5 reduction'!T146),9))","v":0.99998872599999999},{"$f":"VALUE(FIXED(EXP(U$4*-1*'PM2.5 reduction'!U146),9))","v":0.99999880600000002},{"$f":"VALUE(FIXED(EXP(V$4*-1*'PM2.5 reduction'!V146),9))","v":0.99999447799999996},{"$f":"VALUE(FIXED(EXP(W$4*-1*'PM2.5 reduction'!W146),9))","v":0.99999585300000005},{"$f":"VALUE(FIXED(EXP(X$4*-1*'PM2.5 reduction'!X146),9))","v":0.99999585300000005},{"$f":"VALUE(FIXED(EXP(Y$4*-1*'PM2.5 reduction'!Y146),9))","v":0.99999546800000005},{"$f":"VALUE(FIXED(EXP(Z$4*-1*'PM2.5 reduction'!Z146),9))","v":0.99999057400000002},{"$f":"VALUE(FIXED(EXP(AA$4*-1*'PM2.5 reduction'!AA146),9))","v":0.99999320800000002},{"$f":"VALUE(FIXED(EXP(AB$4*-1*'PM2.5 reduction'!AB146),9))","v":0.99999517500000001},{"$f":"VALUE(FIXED(EXP(AC$4*-1*'PM2.5 reduction'!AC146),9))","v":0.99999252500000002},{"$f":"VALUE(FIXED(EXP(AD$4*-1*'PM2.5 reduction'!AD146),9))","v":0.999998524},{"$f":"VALUE(FIXED(EXP(AE$4*-1*'PM2.5 reduction'!AE146),9))","v":0.99999839400000001},{"$f":"VALUE(FIXED(EXP(AF$4*-1*'PM2.5 reduction'!AF146),9))","v":0.99999592900000001},{"$f":"VALUE(FIXED(EXP(AG$4*-1*'PM2.5 reduction'!AG146),9))","v":0.99999839400000001},{"$f":"VALUE(FIXED(EXP(AH$4*-1*'PM2.5 reduction'!AH146),9))","v":0.99999413400000003},{"$f":"VALUE(FIXED(EXP(AI$4*-1*'PM2.5 reduction'!AI146),9))","v":0.99999241699999997},{"$f":"VALUE(FIXED(EXP(AJ$4*-1*'PM2.5 reduction'!AJ146),9))","v":0.99999574300000005},{"$f":"VALUE(FIXED(EXP(AK$4*-1*'PM2.5 reduction'!AK146),9))","v":0.999997688},{"$f":"VALUE(FIXED(EXP(AL$4*-1*'PM2.5 reduction'!AL146),9))","v":0.99999762599999997},{"$f":"VALUE(FIXED(EXP(AM$4*-1*'PM2.5 reduction'!AM146),9))","v":0.99999385500000004},{"$f":"VALUE(FIXED(EXP(AN$4*-1*'PM2.5 reduction'!AN146),9))","v":0.99999830000000001},{"$f":"VALUE(FIXED(EXP(AO$4*-1*'PM2.5 reduction'!AO146),9))","v":0.99999830000000001},{"$f":"VALUE(FIXED(EXP(AP$4*-1*'PM2.5 reduction'!AP146),9))","v":0.99999742800000002},{"$f":"VALUE(FIXED(EXP(AQ$4*-1*'PM2.5 reduction'!AQ146),9))","v":0.99999463600000005},{"$f":"VALUE(FIXED(EXP(AR$4*-1*'PM2.5 reduction'!AR146),9))","v":0.99999454200000004},{"$f":"VALUE(FIXED(EXP(AS$4*-1*'PM2.5 reduction'!AS146),9))","v":0.999998685},{"$f":"VALUE(FIXED(EXP(AT$4*-1*'PM2.5 reduction'!AT146),9))","v":1},{"$f":"VALUE(FIXED(EXP(AU$4*-1*'PM2.5 reduction'!AU146),9))","v":1},{"$f":"VALUE(FIXED(EXP(AV$4*-1*'PM2.5 reduction'!AV146),9))","v":0.99999621400000005},{"$f":"VALUE(FIXED(EXP(AW$4*-1*'PM2.5 reduction'!AW146),9))","v":0.99999444100000001},{"$f":"VALUE(FIXED(EXP(AX$4*-1*'PM2.5 reduction'!AX146),9))","v":0.99999754600000001},{"$f":"VALUE(FIXED(EXP(AY$4*-1*'PM2.5 reduction'!AY146),9))","v":0.99999583700000005},{"$f":"VALUE(FIXED(EXP(AZ$4*-1*'PM2.5 reduction'!AZ146),9))","v":0.99999582099999995},{"$f":"VALUE(FIXED(EXP(BA$4*-1*'PM2.5 reduction'!BA146),9))","v":0.999994622},{"$f":"VALUE(FIXED(EXP(BB$4*-1*'PM2.5 reduction'!BB146),9))","v":0.999995419},{"$f":"VALUE(FIXED(EXP(BC$4*-1*'PM2.5 reduction'!BC146),9))","v":0.99999880600000002}]
[null,"Female 55-59",{"$f":"VALUE(FIXED(EXP(C$4*-1*'PM2.5 reduction'!C147),9))","v":0.99999083},{"$f":"VALUE(FIXED(EXP(D$4*-1*'PM2.5 reduction'!D147),9))","v":0.999994465},{"$f":"VALUE(FIXED(EXP(E$4*-1*'PM2.5 reduction'!E147),9))","v":0.99999825399999998},{"$f":"VALUE(FIXED(EXP(F$4*-1*'PM2.5 reduction'!F147),9))","v":0.99999785799999996},{"$f":"VALUE(FIXED(EXP(G$4*-1*'PM2.5 reduction'!G147),9))","v":0.99999907700000001},{"$f":"VALUE(FIXED(EXP(H$4*-1*'PM2.5 reduction'!H147),9))","v":0.99999696699999996},{"$f":"VALUE(FIXED(EXP(I$4*-1*'PM2.5 reduction'!I147),9))","v":0.99999865799999998},{"$f":"VALUE(FIXED(EXP(J$4*-1*'PM2.5 reduction'!J147),9))","v":0.99999739300000001},{"$f":"VALUE(FIXED(EXP(K$4*-1*'PM2.5 reduction'!K147),9))","v":0.99999715700000003},{"$f":"VALUE(FIXED(EXP(L$4*-1*'PM2.5 reduction'!L147),9))","v":0.99999810499999997},{"$f":"VALUE(FIXED(EXP(M$4*-1*'PM2.5 reduction'!M147),9))","v":0.99999810499999997},{"$f":"VALUE(FIXED(EXP(N$4*-1*'PM2.5 reduction'!N147),9))","v":0.99999179400000004},{"$f":"VALUE(FIXED(EXP(O$4*-1*'PM2.5 reduction'!O147),9))","v":0.999997201},{"$f":"VALUE(FIXED(EXP(P$4*-1*'PM2.5 reduction'!P147),9))","v":0.99999314399999994},{"$f":"VALUE(FIXED(EXP(Q$4*-1*'PM2.5 reduction'!Q147),9))","v":0.99999611099999997},{"$f":"VALUE(FIXED(EXP(R$4*-1*'PM2.5 reduction'!R147),9))","v":0.99999369800000004},{"$f":"VALUE(FIXED(EXP(S$4*-1*'PM2.5 reduction'!S147),9))","v":0.99999423499999995},{"$f":"VALUE(FIXED(EXP(T$4*-1*'PM2.5 reduction'!T147),9))","v":0.99998862799999999},{"$f":"VALUE(FIXED(EXP(U$4*-1*'PM2.5 reduction'!U147),9))","v":0.99999880100000005},{"$f":"VALUE(FIXED(EXP(V$4*-1*'PM2.5 reduction'!V147),9))","v":0.99999455900000001},{"$f":"VALUE(FIXED(EXP(W$4*-1*'PM2.5 reduction'!W147),9))","v":0.99999590199999999},{"$f":"VALUE(FIXED(EXP(X$4*-1*'PM2.5 reduction'!X147),9))","v":0.99999590199999999},{"$f":"VALUE(FIXED(EXP(Y$4*-1*'PM2.5 reduction'!Y147),9))","v":0.999995572},{"$f":"VALUE(FIXED(EXP(Z$4*-1*'PM2.5 reduction'!Z147),9))","v":0.99999054300000001},{"$f":"VALUE(FIXED(EXP(AA$4*-1*'PM2.5 reduction'!AA147),9))","v":0.99999322800000001},{"$f":"VALUE(FIXED(EXP(AB$4*-1*'PM2.5 reduction'!AB147),9))","v":0.99999516399999999},{"$f":"VALUE(FIXED(EXP(AC$4*-1*'PM2.5 reduction'!AC147),9))","v":0.99999256400000003},{"$f":"VALUE(FIXED(EXP(AD$4*-1*'PM2.5 reduction'!AD147),9))","v":0.99999848999999996},{"$f":"VALUE(FIXED(EXP(AE$4*-1*'PM2.5 reduction'!AE147),9))","v":0.99999838399999996},{"$f":"VALUE(FIXED(EXP(AF$4*-1*'PM2.5 reduction'!AF147),9))","v":0.99999595500000005},{"$f":"VALUE(FIXED(EXP(AG$4*-1*'PM2.5 reduction'!AG147),9))","v":0.99999838399999996},{"$f":"VALUE(FIXED(EXP(AH$4*-1*'PM2.5 reduction'!AH147),9))","v":0.99999407100000004},{"$f":"VALUE(FIXED(EXP(AI$4*-1*'PM2.5 reduction'!AI147),9))","v":0.99999244799999998},{"$f":"VALUE(FIXED(EXP(AJ$4*-1*'PM2.5 reduction'!AJ147),9))","v":0.99999582499999995},{"$f":"VALUE(FIXED(EXP(AK$4*-1*'PM2.5 reduction'!AK147),9))","v":0.99999770600000004},{"$f":"VALUE(FIXED(EXP(AL$4*-1*'PM2.5 reduction'!AL147),9))","v":0.99999765299999999},{"$f":"VALUE(FIXED(EXP(AM$4*-1*'PM2.5 reduction'!AM147),9))","v":0.99999384999999996},{"$f":"VALUE(FIXED(EXP(AN$4*-1*'PM2.5 reduction'!AN147),9))","v":0.99999826199999997},{"$f":"VALUE(FIXED(EXP(AO$4*-1*'PM2.5 reduction'!AO147),9))","v":0.99999826199999997},{"$f":"VALUE(FIXED(EXP(AP$4*-1*'PM2.5 reduction'!AP147),9))","v":0.99999740400000003},{"$f":"VALUE(FIXED(EXP(AQ$4*-1*'PM2.5 reduction'!AQ147),9))","v":0.99999466100000001},{"$f":"VALUE(FIXED(EXP(AR$4*-1*'PM2.5 reduction'!AR147),9))","v":0.99999456600000003},{"$f":"VALUE(FIXED(EXP(AS$4*-1*'PM2.5 reduction'!AS147),9))","v":0.99999865799999998},{"$f":"VALUE(FIXED(EXP(AT$4*-1*'PM2.5 reduction'!AT147),9))","v":1},{"$f":"VALUE(FIXED(EXP(AU$4*-1*'PM2.5 reduction'!AU147),9))","v":1},{"$f":"VALUE(FIXED(EXP(AV$4*-1*'PM2.5 reduction'!AV147),9))","v":0.999996098},{"$f":"VALUE(FIXED(EXP(AW$4*-1*'PM2.5 reduction'!AW147),9))","v":0.999994296},{"$f":"VALUE(FIXED(EXP(AX$4*-1*'PM2.5 reduction'!AX147),9))","v":0.99999762199999997},{"$f":"VALUE(FIXED(EXP(AY$4*-1*'PM2.5 reduction'!AY147),9))","v":0.99999578700000002},{"$f":"VALUE(FIXED(EXP(AZ$4*-1*'PM2.5 reduction'!AZ147),9))","v":0.99999566500000003},{"$f":"VALUE(FIXED(EXP(BA$4*-1*'PM2.5 reduction'!BA147),9))","v":0.99999459899999998},{"$f":"VALUE(FIXED(EXP(BB$4*-1*'PM2.5 reduction'!BB147),9))","v":0.99999550299999995},{"$f":"VALUE(FIXED(EXP(BC$4*-1*'PM2.5 reduction'!BC147),9))","v":0.99999880100000005}]
[null,"Female 60-64",{"$f":"VALUE(FIXED(EXP(C$4*-1*'PM2.5 reduction'!C148),9))","v":0.99999082699999997},{"$f":"VALUE(FIXED(EXP(D$4*-1*'PM2.5 reduction'!D148),9))","v":0.99999463799999999},{"$f":"VALUE(FIXED(EXP(E$4*-1*'PM2.5 reduction'!E148),9))","v":0.99999831800000005},{"$f":"VALUE(FIXED(EXP(F$4*-1*'PM2.5 reduction'!F148),9))","v":0.99999791599999999},{"$f":"VALUE(FIXED(EXP(G$4*-1*'PM2.5 reduction'!G148),9))","v":0.99999919900000001},{"$f":"VALUE(FIXED(EXP(H$4*-1*'PM2.5 reduction'!H148),9))","v":0.99999698599999998},{"$f":"VALUE(FIXED(EXP(I$4*-1*'PM2.5 reduction'!I148),9))","v":0.99999865700000001},{"$f":"VALUE(FIXED(EXP(J$4*-1*'PM2.5 reduction'!J148),9))","v":0.99999751199999998},{"$f":"VALUE(FIXED(EXP(K$4*-1*'PM2.5 reduction'!K148),9))","v":0.99999715099999997},{"$f":"VALUE(FIXED(EXP(L$4*-1*'PM2.5 reduction'!L148),9))","v":0.99999832},{"$f":"VALUE(FIXED(EXP(M$4*-1*'PM2.5 reduction'!M148),9))","v":0.99999832},{"$f":"VALUE(FIXED(EXP(N$4*-1*'PM2.5 reduction'!N148),9))","v":0.99999213499999995},{"$f":"VALUE(FIXED(EXP(O$4*-1*'PM2.5 reduction'!O148),9))","v":0.99999728399999999},{"$f":"VALUE(FIXED(EXP(P$4*-1*'PM2.5 reduction'!P148),9))","v":0.99999300199999996},{"$f":"VALUE(FIXED(EXP(Q$4*-1*'PM2.5 reduction'!Q148),9))","v":0.99999620300000003},{"$f":"VALUE(FIXED(EXP(R$4*-1*'PM2.5 reduction'!R148),9))","v":0.99999377499999997},{"$f":"VALUE(FIXED(EXP(S$4*-1*'PM2.5 reduction'!S148),9))","v":0.99999436799999997},{"$f":"VALUE(FIXED(EXP(T$4*-1*'PM2.5 reduction'!T148),9))","v":0.99998893},{"$f":"VALUE(FIXED(EXP(U$4*-1*'PM2.5 reduction'!U148),9))","v":0.99999876899999995},{"$f":"VALUE(FIXED(EXP(V$4*-1*'PM2.5 reduction'!V148),9))","v":0.99999472599999994},{"$f":"VALUE(FIXED(EXP(W$4*-1*'PM2.5 reduction'!W148),9))","v":0.99999580099999996},{"$f":"VALUE(FIXED(EXP(X$4*-1*'PM2.5 reduction'!X148),9))","v":0.99999580099999996},{"$f":"VALUE(FIXED(EXP(Y$4*-1*'PM2.5 reduction'!Y148),9))","v":0.99999570500000001},{"$f":"VALUE(FIXED(EXP(Z$4*-1*'PM2.5 reduction'!Z148),9))","v":0.99999050199999995},{"$f":"VALUE(FIXED(EXP(AA$4*-1*'PM2.5 reduction'!AA148),9))","v":0.99999330900000005},{"$f":"VALUE(FIXED(EXP(AB$4*-1*'PM2.5 reduction'!AB148),9))","v":0.99999526500000002},{"$f":"VALUE(FIXED(EXP(AC$4*-1*'PM2.5 reduction'!AC148),9))","v":0.99999260800000001},{"$f":"VALUE(FIXED(EXP(AD$4*-1*'PM2.5 reduction'!AD148),9))","v":0.99999861999999995},{"$f":"VALUE(FIXED(EXP(AE$4*-1*'PM2.5 reduction'!AE148),9))","v":0.99999851299999998},{"$f":"VALUE(FIXED(EXP(AF$4*-1*'PM2.5 reduction'!AF148),9))","v":0.999995933},{"$f":"VALUE(FIXED(EXP(AG$4*-1*'PM2.5 reduction'!AG148),9))","v":0.99999851299999998},{"$f":"VALUE(FIXED(EXP(AH$4*-1*'PM2.5 reduction'!AH148),9))","v":0.999994151},{"$f":"VALUE(FIXED(EXP(AI$4*-1*'PM2.5 reduction'!AI148),9))","v":0.99999260499999998},{"$f":"VALUE(FIXED(EXP(AJ$4*-1*'PM2.5 reduction'!AJ148),9))","v":0.99999578},{"$f":"VALUE(FIXED(EXP(AK$4*-1*'PM2.5 reduction'!AK148),9))","v":0.99999765500000004},{"$f":"VALUE(FIXED(EXP(AL$4*-1*'PM2.5 reduction'!AL148),9))","v":0.99999757300000003},{"$f":"VALUE(FIXED(EXP(AM$4*-1*'PM2.5 reduction'!AM148),9))","v":0.99999386000000001},{"$f":"VALUE(FIXED(EXP(AN$4*-1*'PM2.5 reduction'!AN148),9))","v":0.99999826199999997},{"$f":"VALUE(FIXED(EXP(AO$4*-1*'PM2.5 reduction'!AO148),9))","v":0.99999826199999997},{"$f":"VALUE(FIXED(EXP(AP$4*-1*'PM2.5 reduction'!AP148),9))","v":0.99999759099999996},{"$f":"VALUE(FIXED(EXP(AQ$4*-1*'PM2.5 reduction'!AQ148),9))","v":0.99999446299999994},{"$f":"VALUE(FIXED(EXP(AR$4*-1*'PM2.5 reduction'!AR148),9))","v":0.99999474399999999},{"$f":"VALUE(FIXED(EXP(AS$4*-1*'PM2.5 reduction'!AS148),9))","v":0.99999865700000001},{"$f":"VALUE(FIXED(EXP(AT$4*-1*'PM2.5 reduction'!AT148),9))","v":1},{"$f":"VALUE(FIXED(EXP(AU$4*-1*'PM2.5 reduction'!AU148),9))","v":1},{"$f":"VALUE(FIXED(EXP(AV$4*-1*'PM2.5 reduction'!AV148),9))","v":0.99999617900000004},{"$f":"VALUE(FIXED(EXP(AW$4*-1*'PM2.5 reduction'!AW148),9))","v":0.99999444599999998},{"$f":"VALUE(FIXED(EXP(AX$4*-1*'PM2.5 reduction'!AX148),9))","v":0.99999781200000004},{"$f":"VALUE(FIXED(EXP(AY$4*-1*'PM2.5 reduction'!AY148),9))","v":0.99999584399999997},{"$f":"VALUE(FIXED(EXP(AZ$4*-1*'PM2.5 reduction'!AZ148),9))","v":0.99999588800000005},{"$f":"VALUE(FIXED(EXP(BA$4*-1*'PM2.5 reduction'!BA148),9))","v":0.999994622},{"$f":"VALUE(FIXED(EXP(BB$4*-1*'PM2.5 reduction'!BB148),9))","v":0.999995576},{"$f":"VALUE(FIXED(EXP(BC$4*-1*'PM2.5 reduction'!BC148),9))","v":0.99999876899999995}]
[null,"Female 65-69",{"$f":"VALUE(FIXED(EXP(C$4*-1*'PM2.5 reduction'!C149),9))","v":0.99999073500000002},{"$f":"VALUE(FIXED(EXP(D$4*-1*'PM2.5 reduction'!D149),9))","v":0.99999483},{"$f":"VALUE(FIXED(EXP(E$4*-1*'PM2.5 reduction'!E149),9))","v":0.99999830499999998},{"$f":"VALUE(FIXED(EXP(F$4*-1*'PM2.5 reduction'!F149),9))","v":0.99999793100000001},{"$f":"VALUE(FIXED(EXP(G$4*-1*'PM2.5 reduction'!G149),9))","v":0.99999907399999999},{"$f":"VALUE(FIXED(EXP(H$4*-1*'PM2.5 reduction'!H149),9))","v":0.99999696999999999},{"$f":"VALUE(FIXED(EXP(I$4*-1*'PM2.5 reduction'!I149),9))","v":0.99999863099999997},{"$f":"VALUE(FIXED(EXP(J$4*-1*'PM2.5 reduction'!J149),9))","v":0.99999761899999995},{"$f":"VALUE(FIXED(EXP(K$4*-1*'PM2.5 reduction'!K149),9))","v":0.99999741900000005},{"$f":"VALUE(FIXED(EXP(L$4*-1*'PM2.5 reduction'!L149),9))","v":0.99999818100000004},{"$f":"VALUE(FIXED(EXP(M$4*-1*'PM2.5 reduction'!M149),9))","v":0.99999818100000004},{"$f":"VALUE(FIXED(EXP(N$4*-1*'PM2.5 reduction'!N149),9))","v":0.99999175200000001},{"$f":"VALUE(FIXED(EXP(O$4*-1*'PM2.5 reduction'!O149),9))","v":0.99999726200000005},{"$f":"VALUE(FIXED(EXP(P$4*-1*'PM2.5 reduction'!P149),9))","v":0.99999315899999996},{"$f":"VALUE(FIXED(EXP(Q$4*-1*'PM2.5 reduction'!Q149),9))","v":0.99999626500000005},{"$f":"VALUE(FIXED(EXP(R$4*-1*'PM2.5 reduction'!R149),9))","v":0.99999394900000005},{"$f":"VALUE(FIXED(EXP(S$4*-1*'PM2.5 reduction'!S149),9))","v":0.99999464999999998},{"$f":"VALUE(FIXED(EXP(T$4*-1*'PM2.5 reduction'!T149),9))","v":0.99998923799999995},{"$f":"VALUE(FIXED(EXP(U$4*-1*'PM2.5 reduction'!U149),9))","v":0.99999876099999996},{"$f":"VALUE(FIXED(EXP(V$4*-1*'PM2.5 reduction'!V149),9))","v":0.99999451100000003},{"$f":"VALUE(FIXED(EXP(W$4*-1*'PM2.5 reduction'!W149),9))","v":0.99999587099999998},{"$f":"VALUE(FIXED(EXP(X$4*-1*'PM2.5 reduction'!X149),9))","v":0.99999587099999998},{"$f":"VALUE(FIXED(EXP(Y$4*-1*'PM2.5 reduction'!Y149),9))","v":0.99999565899999998},{"$f":"VALUE(FIXED(EXP(Z$4*-1*'PM2.5 reduction'!Z149),9))","v":0.99999060299999998},{"$f":"VALUE(FIXED(EXP(AA$4*-1*'PM2.5 reduction'!AA149),9))","v":0.99999354100000004},{"$f":"VALUE(FIXED(EXP(AB$4*-1*'PM2.5 reduction'!AB149),9))","v":0.99999542799999996},{"$f":"VALUE(FIXED(EXP(AC$4*-1*'PM2.5 reduction'!AC149),9))","v":0.99999290100000005},{"$f":"VALUE(FIXED(EXP(AD$4*-1*'PM2.5 reduction'!AD149),9))","v":0.99999856600000003},{"$f":"VALUE(FIXED(EXP(AE$4*-1*'PM2.5 reduction'!AE149),9))","v":0.99999847900000005},{"$f":"VALUE(FIXED(EXP(AF$4*-1*'PM2.5 reduction'!AF149),9))","v":0.999995933},{"$f":"VALUE(FIXED(EXP(AG$4*-1*'PM2.5 reduction'!AG149),9))","v":0.99999847900000005},{"$f":"VALUE(FIXED(EXP(AH$4*-1*'PM2.5 reduction'!AH149),9))","v":0.99999432099999996},{"$f":"VALUE(FIXED(EXP(AI$4*-1*'PM2.5 reduction'!AI149),9))","v":0.99999289300000005},{"$f":"VALUE(FIXED(EXP(AJ$4*-1*'PM2.5 reduction'!AJ149),9))","v":0.99999575100000004},{"$f":"VALUE(FIXED(EXP(AK$4*-1*'PM2.5 reduction'!AK149),9))","v":0.99999766899999998},{"$f":"VALUE(FIXED(EXP(AL$4*-1*'PM2.5 reduction'!AL149),9))","v":0.99999762999999997},{"$f":"VALUE(FIXED(EXP(AM$4*-1*'PM2.5 reduction'!AM149),9))","v":0.99999401300000001},{"$f":"VALUE(FIXED(EXP(AN$4*-1*'PM2.5 reduction'!AN149),9))","v":0.99999827500000005},{"$f":"VALUE(FIXED(EXP(AO$4*-1*'PM2.5 reduction'!AO149),9))","v":0.99999827500000005},{"$f":"VALUE(FIXED(EXP(AP$4*-1*'PM2.5 reduction'!AP149),9))","v":0.99999758400000005},{"$f":"VALUE(FIXED(EXP(AQ$4*-1*'PM2.5 reduction'!AQ149),9))","v":0.99999472700000003},{"$f":"VALUE(FIXED(EXP(AR$4*-1*'PM2.5 reduction'!AR149),9))","v":0.99999493699999997},{"$f":"VALUE(FIXED(EXP(AS$4*-1*'PM2.5 reduction'!AS149),9))","v":0.99999863099999997},{"$f":"VALUE(FIXED(EXP(AT$4*-1*'PM2.5 reduction'!AT149),9))","v":1},{"$f":"VALUE(FIXED(EXP(AU$4*-1*'PM2.5 reduction'!AU149),9))","v":1},{"$f":"VALUE(FIXED(EXP(AV$4*-1*'PM2.5 reduction'!AV149),9))","v":0.99999610800000005},{"$f":"VALUE(FIXED(EXP(AW$4*-1*'PM2.5 reduction'!AW149),9))","v":0.99999466999999997},{"$f":"VALUE(FIXED(EXP(AX$4*-1*'PM2.5 reduction'!AX149),9))","v":0.99999780199999999},{"$f":"VALUE(FIXED(EXP(AY$4*-1*'PM2.5 reduction'!AY149),9))","v":0.99999582499999995},{"$f":"VALUE(FIXED(EXP(AZ$4*-1*'PM2.5 reduction'!AZ149),9))","v":0.999995776},{"$f":"VALUE(FIXED(EXP(BA$4*-1*'PM2.5 reduction'!BA149),9))","v":0.99999459300000004},{"$f":"VALUE(FIXED(EXP(BB$4*-1*'PM2.5 reduction'!BB149),9))","v":0.99999558499999996},{"$f":"VALUE(FIXED(EXP(BC$4*-1*'PM2.5 reduction'!BC149),9))","v":0.99999876099999996}]
[null,"Female 70-74",{"$f":"VALUE(FIXED(EXP(C$4*-1*'PM2.5 reduction'!C150),9))","v":0.99999177400000006},{"$f":"VALUE(FIXED(EXP(D$4*-1*'PM2.5 reduction'!D150),9))","v":0.99999547099999997},{"$f":"VALUE(FIXED(EXP(E$4*-1*'PM2.5 reduction'!E150),9))","v":0.99999840699999998},{"$f":"VALUE(FIXED(EXP(F$4*-1*'PM2.5 reduction'!F150),9))","v":0.99999800900000002},{"$f":"VALUE(FIXED(EXP(G$4*-1*'PM2.5 reduction'!G150),9))","v":0.99999920899999994},{"$f":"VALUE(FIXED(EXP(H$4*-1*'PM2.5 reduction'!H150),9))","v":0.99999695899999996},{"$f":"VALUE(FIXED(EXP(I$4*-1*'PM2.5 reduction'!I150),9))","v":0.99999864400000005},{"$f":"VALUE(FIXED(EXP(J$4*-1*'PM2.5 reduction'!J150),9))","v":0.99999749500000001},{"$f":"VALUE(FIXED(EXP(K$4*-1*'PM2.5 reduction'!K150),9))","v":0.99999727299999996},{"$f":"VALUE(FIXED(EXP(L$4*-1*'PM2.5 reduction'!L150),9))","v":0.99999825399999998},{"$f":"VALUE(FIXED(EXP(M$4*-1*'PM2.5 reduction'!M150),9))","v":0.99999825399999998},{"$f":"VALUE(FIXED(EXP(N$4*-1*'PM2.5 reduction'!N150),9))","v":0.99999205700000005},{"$f":"VALUE(FIXED(EXP(O$4*-1*'PM2.5 reduction'!O150),9))","v":0.99999712200000002},{"$f":"VALUE(FIXED(EXP(P$4*-1*'PM2.5 reduction'!P150),9))","v":0.99999277399999997},{"$f":"VALUE(FIXED(EXP(Q$4*-1*'PM2.5 reduction'!Q150),9))","v":0.99999645800000003},{"$f":"VALUE(FIXED(EXP(R$4*-1*'PM2.5 reduction'!R150),9))","v":0.999994037},{"$f":"VALUE(FIXED(EXP(S$4*-1*'PM2.5 reduction'!S150),9))","v":0.99999472899999997},{"$f":"VALUE(FIXED(EXP(T$4*-1*'PM2.5 reduction'!T150),9))","v":0.99998947400000004},{"$f":"VALUE(FIXED(EXP(U$4*-1*'PM2.5 reduction'!U150),9))","v":0.99999875400000005},{"$f":"VALUE(FIXED(EXP(V$4*-1*'PM2.5 reduction'!V150),9))","v":0.99999433500000001},{"$f":"VALUE(FIXED(EXP(W$4*-1*'PM2.5 reduction'!W150),9))","v":0.99999583199999997},{"$f":"VALUE(FIXED(EXP(X$4*-1*'PM2.5 reduction'!X150),9))","v":0.99999583199999997},{"$f":"VALUE(FIXED(EXP(Y$4*-1*'PM2.5 reduction'!Y150),9))","v":0.99999557100000003},{"$f":"VALUE(FIXED(EXP(Z$4*-1*'PM2.5 reduction'!Z150),9))","v":0.99999040400000005},{"$f":"VALUE(FIXED(EXP(AA$4*-1*'PM2.5 reduction'!AA150),9))","v":0.99999343600000001},{"$f":"VALUE(FIXED(EXP(AB$4*-1*'PM2.5 reduction'!AB150),9))","v":0.99999593099999995},{"$f":"VALUE(FIXED(EXP(AC$4*-1*'PM2.5 reduction'!AC150),9))","v":0.999992828},{"$f":"VALUE(FIXED(EXP(AD$4*-1*'PM2.5 reduction'!AD150),9))","v":0.99999853800000005},{"$f":"VALUE(FIXED(EXP(AE$4*-1*'PM2.5 reduction'!AE150),9))","v":0.99999837599999997},{"$f":"VALUE(FIXED(EXP(AF$4*-1*'PM2.5 reduction'!AF150),9))","v":0.99999586200000001},{"$f":"VALUE(FIXED(EXP(AG$4*-1*'PM2.5 reduction'!AG150),9))","v":0.99999837599999997},{"$f":"VALUE(FIXED(EXP(AH$4*-1*'PM2.5 reduction'!AH150),9))","v":0.99999413699999995},{"$f":"VALUE(FIXED(EXP(AI$4*-1*'PM2.5 reduction'!AI150),9))","v":0.99999313899999998},{"$f":"VALUE(FIXED(EXP(AJ$4*-1*'PM2.5 reduction'!AJ150),9))","v":0.999995729},{"$f":"VALUE(FIXED(EXP(AK$4*-1*'PM2.5 reduction'!AK150),9))","v":0.99999746700000003},{"$f":"VALUE(FIXED(EXP(AL$4*-1*'PM2.5 reduction'!AL150),9))","v":0.99999764000000002},{"$f":"VALUE(FIXED(EXP(AM$4*-1*'PM2.5 reduction'!AM150),9))","v":0.99999386300000004},{"$f":"VALUE(FIXED(EXP(AN$4*-1*'PM2.5 reduction'!AN150),9))","v":0.99999827600000002},{"$f":"VALUE(FIXED(EXP(AO$4*-1*'PM2.5 reduction'!AO150),9))","v":0.99999827600000002},{"$f":"VALUE(FIXED(EXP(AP$4*-1*'PM2.5 reduction'!AP150),9))","v":0.99999761099999995},{"$f":"VALUE(FIXED(EXP(AQ$4*-1*'PM2.5 reduction'!AQ150),9))","v":0.99999481300000004},{"$f":"VALUE(FIXED(EXP(AR$4*-1*'PM2.5 reduction'!AR150),9))","v":0.99999501800000001},{"$f":"VALUE(FIXED(EXP(AS$4*-1*'PM2.5 reduction'!AS150),9))","v":0.99999864400000005},{"$f":"VALUE(FIXED(EXP(AT$4*-1*'PM2.5 reduction'!AT150),9))","v":1},{"$f":"VALUE(FIXED(EXP(AU$4*-1*'PM2.5 reduction'!AU150),9))","v":1},{"$f":"VALUE(FIXED(EXP(AV$4*-1*'PM2.5 reduction'!AV150),9))","v":0.99999623800000004},{"$f":"VALUE(FIXED(EXP(AW$4*-1*'PM2.5 reduction'!AW150),9))","v":0.99999442999999999},{"$f":"VALUE(FIXED(EXP(AX$4*-1*'PM2.5 reduction'!AX150),9))","v":0.99999768200000005},{"$f":"VALUE(FIXED(EXP(AY$4*-1*'PM2.5 reduction'!AY150),9))","v":0.999995945},{"$f":"VALUE(FIXED(EXP(AZ$4*-1*'PM2.5 reduction'!AZ150),9))","v":0.99999605800000002},{"$f":"VALUE(FIXED(EXP(BA$4*-1*'PM2.5 reduction'!BA150),9))","v":0.99999433599999998},{"$f":"VALUE(FIXED(EXP(BB$4*-1*'PM2.5 reduction'!BB150),9))","v":0.99999567599999994},{"$f":"VALUE(FIXED(EXP(BC$4*-1*'PM2.5 reduction'!BC150),9))","v":0.99999875400000005}]
[null,"Female 75-79",{"$f":"VALUE(FIXED(EXP(C$4*-1*'PM2.5 reduction'!C151),9))","v":0.99999202099999995},{"$f":"VALUE(FIXED(EXP(D$4*-1*'PM2.5 reduction'!D151),9))","v":0.99999530999999997},{"$f":"VALUE(FIXED(EXP(E$4*-1*'PM2.5 reduction'!E151),9))","v":0.99999829600000001},{"$f":"VALUE(FIXED(EXP(F$4*-1*'PM2.5 reduction'!F151),9))","v":0.99999798299999998},{"$f":"VALUE(FIXED(EXP(G$4*-1*'PM2.5 reduction'!G151),9))","v":0.99999934999999995},{"$f":"VALUE(FIXED(EXP(H$4*-1*'PM2.5 reduction'!H151),9))","v":0.99999693199999995},{"$f":"VALUE(FIXED(EXP(I$4*-1*'PM2.5 reduction'!I151),9))","v":0.99999864500000002},{"$f":"VALUE(FIXED(EXP(J$4*-1*'PM2.5 reduction'!J151),9))","v":0.99999741900000005},{"$f":"VALUE(FIXED(EXP(K$4*-1*'PM2.5 reduction'!K151),9))","v":0.99999678700000005},{"$f":"VALUE(FIXED(EXP(L$4*-1*'PM2.5 reduction'!L151),9))","v":0.99999832600000005},{"$f":"VALUE(FIXED(EXP(M$4*-1*'PM2.5 reduction'!M151),9))","v":0.99999832600000005},{"$f":"VALUE(FIXED(EXP(N$4*-1*'PM2.5 reduction'!N151),9))","v":0.99999198700000003},{"$f":"VALUE(FIXED(EXP(O$4*-1*'PM2.5 reduction'!O151),9))","v":0.99999715099999997},{"$f":"VALUE(FIXED(EXP(P$4*-1*'PM2.5 reduction'!P151),9))","v":0.999992769},{"$f":"VALUE(FIXED(EXP(Q$4*-1*'PM2.5 reduction'!Q151),9))","v":0.99999664399999999},{"$f":"VALUE(FIXED(EXP(R$4*-1*'PM2.5 reduction'!R151),9))","v":0.99999407299999998},{"$f":"VALUE(FIXED(EXP(S$4*-1*'PM2.5 reduction'!S151),9))","v":0.999994732},{"$f":"VALUE(FIXED(EXP(T$4*-1*'PM2.5 reduction'!T151),9))","v":0.99998947299999996},{"$f":"VALUE(FIXED(EXP(U$4*-1*'PM2.5 reduction'!U151),9))","v":0.99999875199999999},{"$f":"VALUE(FIXED(EXP(V$4*-1*'PM2.5 reduction'!V151),9))","v":0.99999436600000002},{"$f":"VALUE(FIXED(EXP(W$4*-1*'PM2.5 reduction'!W151),9))","v":0.99999590100000002},{"$f":"VALUE(FIXED(EXP(X$4*-1*'PM2.5 reduction'!X151),9))","v":0.99999590100000002},{"$f":"VALUE(FIXED(EXP(Y$4*-1*'PM2.5 reduction'!Y151),9))","v":0.99999555399999995},{"$f":"VALUE(FIXED(EXP(Z$4*-1*'PM2.5 reduction'!Z151),9))","v":0.99999032200000004},{"$f":"VALUE(FIXED(EXP(AA$4*-1*'PM2.5 reduction'!AA151),9))","v":0.99999346200000006},{"$f":"VALUE(FIXED(EXP(AB$4*-1*'PM2.5 reduction'!AB151),9))","v":0.99999583599999997},{"$f":"VALUE(FIXED(EXP(AC$4*-1*'PM2.5 reduction'!AC151),9))","v":0.99999284200000005},{"$f":"VALUE(FIXED(EXP(AD$4*-1*'PM2.5 reduction'!AD151),9))","v":0.99999862299999998},{"$f":"VALUE(FIXED(EXP(AE$4*-1*'PM2.5 reduction'!AE151),9))","v":0.99999848499999999},{"$f":"VALUE(FIXED(EXP(AF$4*-1*'PM2.5 reduction'!AF151),9))","v":0.99999589499999997},{"$f":"VALUE(FIXED(EXP(AG$4*-1*'PM2.5 reduction'!AG151),9))","v":0.99999848499999999},{"$f":"VALUE(FIXED(EXP(AH$4*-1*'PM2.5 reduction'!AH151),9))","v":0.999994155},{"$f":"VALUE(FIXED(EXP(AI$4*-1*'PM2.5 reduction'!AI151),9))","v":0.99999308200000003},{"$f":"VALUE(FIXED(EXP(AJ$4*-1*'PM2.5 reduction'!AJ151),9))","v":0.999995623},{"$f":"VALUE(FIXED(EXP(AK$4*-1*'PM2.5 reduction'!AK151),9))","v":0.99999753800000002},{"$f":"VALUE(FIXED(EXP(AL$4*-1*'PM2.5 reduction'!AL151),9))","v":0.99999760100000001},{"$f":"VALUE(FIXED(EXP(AM$4*-1*'PM2.5 reduction'!AM151),9))","v":0.99999383799999997},{"$f":"VALUE(FIXED(EXP(AN$4*-1*'PM2.5 reduction'!AN151),9))","v":0.99999828000000002},{"$f":"VALUE(FIXED(EXP(AO$4*-1*'PM2.5 reduction'!AO151),9))","v":0.99999828000000002},{"$f":"VALUE(FIXED(EXP(AP$4*-1*'PM2.5 reduction'!AP151),9))","v":0.99999737},{"$f":"VALUE(FIXED(EXP(AQ$4*-1*'PM2.5 reduction'!AQ151),9))","v":0.99999480900000004},{"$f":"VALUE(FIXED(EXP(AR$4*-1*'PM2.5 reduction'!AR151),9))","v":0.99999494899999997},{"$f":"VALUE(FIXED(EXP(AS$4*-1*'PM2.5 reduction'!AS151),9))","v":0.99999864500000002},{"$f":"VALUE(FIXED(EXP(AT$4*-1*'PM2.5 reduction'!AT151),9))","v":1},{"$f":"VALUE(FIXED(EXP(AU$4*-1*'PM2.5 reduction'!AU151),9))","v":1},{"$f":"VALUE(FIXED(EXP(AV$4*-1*'PM2.5 reduction'!AV151),9))","v":0.99999609899999997},{"$f":"VALUE(FIXED(EXP(AW$4*-1*'PM2.5 reduction'!AW151),9))","v":0.99999444100000001},{"$f":"VALUE(FIXED(EXP(AX$4*-1*'PM2.5 reduction'!AX151),9))","v":0.99999792399999998},{"$f":"VALUE(FIXED(EXP(AY$4*-1*'PM2.5 reduction'!AY151),9))","v":0.99999576300000004},{"$f":"VALUE(FIXED(EXP(AZ$4*-1*'PM2.5 reduction'!AZ151),9))","v":0.99999562799999997},{"$f":"VALUE(FIXED(EXP(BA$4*-1*'PM2.5 reduction'!BA151),9))","v":0.99999470099999999},{"$f":"VALUE(FIXED(EXP(BB$4*-1*'PM2.5 reduction'!BB151),9))","v":0.999995682},{"$f":"VALUE(FIXED(EXP(BC$4*-1*'PM2.5 reduction'!BC151),9))","v":0.99999875199999999}]
[null,"Female 80-84",{"$f":"VALUE(FIXED(EXP(C$4*-1*'PM2.5 reduction'!C152),9))","v":0.99999197900000003},{"$f":"VALUE(FIXED(EXP(D$4*-1*'PM2.5 reduction'!D152),9))","v":0.99999487399999998},{"$f":"VALUE(FIXED(EXP(E$4*-1*'PM2.5 reduction'!E152),9))","v":0.99999823300000001},{"$f":"VALUE(FIXED(EXP(F$4*-1*'PM2.5 reduction'!F152),9))","v":0.999997896},{"$f":"VALUE(FIXED(EXP(G$4*-1*'PM2.5 reduction'!G152),9))","v":0.99999927899999996},{"$f":"VALUE(FIXED(EXP(H$4*-1*'PM2.5 reduction'!H152),9))","v":0.99999700400000002},{"$f":"VALUE(FIXED(EXP(I$4*-1*'PM2.5 reduction'!I152),9))","v":0.99999859499999999},{"$f":"VALUE(FIXED(EXP(J$4*-1*'PM2.5 reduction'!J152),9))","v":0.99999763799999997},{"$f":"VALUE(FIXED(EXP(K$4*-1*'PM2.5 reduction'!K152),9))","v":0.99999687699999995},{"$f":"VALUE(FIXED(EXP(L$4*-1*'PM2.5 reduction'!L152),9))","v":0.99999835400000003},{"$f":"VALUE(FIXED(EXP(M$4*-1*'PM2.5 reduction'!M152),9))","v":0.99999835400000003},{"$f":"VALUE(FIXED(EXP(N$4*-1*'PM2.5 reduction'!N152),9))","v":0.999991874},{"$f":"VALUE(FIXED(EXP(O$4*-1*'PM2.5 reduction'!O152),9))","v":0.99999727199999999},{"$f":"VALUE(FIXED(EXP(P$4*-1*'PM2.5 reduction'!P152),9))","v":0.99999310500000005},{"$f":"VALUE(FIXED(EXP(Q$4*-1*'PM2.5 reduction'!Q152),9))","v":0.99999656000000003},{"$f":"VALUE(FIXED(EXP(R$4*-1*'PM2.5 reduction'!R152),9))","v":0.99999373300000005},{"$f":"VALUE(FIXED(EXP(S$4*-1*'PM2.5 reduction'!S152),9))","v":0.99999461700000003},{"$f":"VALUE(FIXED(EXP(T$4*-1*'PM2.5 reduction'!T152),9))","v":0.99998970600000003},{"$f":"VALUE(FIXED(EXP(U$4*-1*'PM2.5 reduction'!U152),9))","v":0.99999871500000004},{"$f":"VALUE(FIXED(EXP(V$4*-1*'PM2.5 reduction'!V152),9))","v":0.99999425099999995},{"$f":"VALUE(FIXED(EXP(W$4*-1*'PM2.5 reduction'!W152),9))","v":0.99999573900000005},{"$f":"VALUE(FIXED(EXP(X$4*-1*'PM2.5 reduction'!X152),9))","v":0.99999573900000005},{"$f":"VALUE(FIXED(EXP(Y$4*-1*'PM2.5 reduction'!Y152),9))","v":0.99999572999999997},{"$f":"VALUE(FIXED(EXP(Z$4*-1*'PM2.5 reduction'!Z152),9))","v":0.99999040299999997},{"$f":"VALUE(FIXED(EXP(AA$4*-1*'PM2.5 reduction'!AA152),9))","v":0.99999322300000004},{"$f":"VALUE(FIXED(EXP(AB$4*-1*'PM2.5 reduction'!AB152),9))","v":0.99999553100000005},{"$f":"VALUE(FIXED(EXP(AC$4*-1*'PM2.5 reduction'!AC152),9))","v":0.99999256400000003},{"$f":"VALUE(FIXED(EXP(AD$4*-1*'PM2.5 reduction'!AD152),9))","v":0.99999858399999997},{"$f":"VALUE(FIXED(EXP(AE$4*-1*'PM2.5 reduction'!AE152),9))","v":0.99999846999999997},{"$f":"VALUE(FIXED(EXP(AF$4*-1*'PM2.5 reduction'!AF152),9))","v":0.99999565700000004},{"$f":"VALUE(FIXED(EXP(AG$4*-1*'PM2.5 reduction'!AG152),9))","v":0.99999846999999997},{"$f":"VALUE(FIXED(EXP(AH$4*-1*'PM2.5 reduction'!AH152),9))","v":0.999994041},{"$f":"VALUE(FIXED(EXP(AI$4*-1*'PM2.5 reduction'!AI152),9))","v":0.99999291300000004},{"$f":"VALUE(FIXED(EXP(AJ$4*-1*'PM2.5 reduction'!AJ152),9))","v":0.99999573900000005},{"$f":"VALUE(FIXED(EXP(AK$4*-1*'PM2.5 reduction'!AK152),9))","v":0.99999736900000002},{"$f":"VALUE(FIXED(EXP(AL$4*-1*'PM2.5 reduction'!AL152),9))","v":0.99999756500000003},{"$f":"VALUE(FIXED(EXP(AM$4*-1*'PM2.5 reduction'!AM152),9))","v":0.99999377199999995},{"$f":"VALUE(FIXED(EXP(AN$4*-1*'PM2.5 reduction'!AN152),9))","v":0.99999827799999996},{"$f":"VALUE(FIXED(EXP(AO$4*-1*'PM2.5 reduction'!AO152),9))","v":0.99999827799999996},{"$f":"VALUE(FIXED(EXP(AP$4*-1*'PM2.5 reduction'!AP152),9))","v":0.99999755300000004},{"$f":"VALUE(FIXED(EXP(AQ$4*-1*'PM2.5 reduction'!AQ152),9))","v":0.99999442599999999},{"$f":"VALUE(FIXED(EXP(AR$4*-1*'PM2.5 reduction'!AR152),9))","v":0.99999475999999998},{"$f":"VALUE(FIXED(EXP(AS$4*-1*'PM2.5 reduction'!AS152),9))","v":0.99999859499999999},{"$f":"VALUE(FIXED(EXP(AT$4*-1*'PM2.5 reduction'!AT152),9))","v":1},{"$f":"VALUE(FIXED(EXP(AU$4*-1*'PM2.5 reduction'!AU152),9))","v":1},{"$f":"VALUE(FIXED(EXP(AV$4*-1*'PM2.5 reduction'!AV152),9))","v":0.99999625299999995},{"$f":"VALUE(FIXED(EXP(AW$4*-1*'PM2.5 reduction'!AW152),9))","v":0.99999426000000002},{"$f":"VALUE(FIXED(EXP(AX$4*-1*'PM2.5 reduction'!AX152),9))","v":0.99999817199999996},{"$f":"VALUE(FIXED(EXP(AY$4*-1*'PM2.5 reduction'!AY152),9))","v":0.99999550000000004},{"$f":"VALUE(FIXED(EXP(AZ$4*-1*'PM2.5 reduction'!AZ152),9))","v":0.99999530299999995},{"$f":"VALUE(FIXED(EXP(BA$4*-1*'PM2.5 reduction'!BA152),9))","v":0.999994614},{"$f":"VALUE(FIXED(EXP(BB$4*-1*'PM2.5 reduction'!BB152),9))","v":0.99999566299999998},{"$f":"VALUE(FIXED(EXP(BC$4*-1*'PM2.5 reduction'!BC152),9))","v":0.99999871500000004}]
[null,"Female 85-89",{"$f":"VALUE(FIXED(EXP(C$4*-1*'PM2.5 reduction'!C153),9))","v":0.99999159599999998},{"$f":"VALUE(FIXED(EXP(D$4*-1*'PM2.5 reduction'!D153),9))","v":0.99999520900000005},{"$f":"VALUE(FIXED(EXP(E$4*-1*'PM2.5 reduction'!E153),9))","v":0.99999816699999999},{"$f":"VALUE(FIXED(EXP(F$4*-1*'PM2.5 reduction'!F153),9))","v":0.999997727},{"$f":"VALUE(FIXED(EXP(G$4*-1*'PM2.5 reduction'!G153),9))","v":0.99999927799999999},{"$f":"VALUE(FIXED(EXP(H$4*-1*'PM2.5 reduction'!H153),9))","v":0.99999690299999999},{"$f":"VALUE(FIXED(EXP(I$4*-1*'PM2.5 reduction'!I153),9))","v":0.99999869600000002},{"$f":"VALUE(FIXED(EXP(J$4*-1*'PM2.5 reduction'!J153),9))","v":0.99999743299999999},{"$f":"VALUE(FIXED(EXP(K$4*-1*'PM2.5 reduction'!K153),9))","v":0.99999677099999995},{"$f":"VALUE(FIXED(EXP(L$4*-1*'PM2.5 reduction'!L153),9))","v":0.99999841},{"$f":"VALUE(FIXED(EXP(M$4*-1*'PM2.5 reduction'!M153),9))","v":0.99999841},{"$f":"VALUE(FIXED(EXP(N$4*-1*'PM2.5 reduction'!N153),9))","v":0.99999160799999998},{"$f":"VALUE(FIXED(EXP(O$4*-1*'PM2.5 reduction'!O153),9))","v":0.99999706799999999},{"$f":"VALUE(FIXED(EXP(P$4*-1*'PM2.5 reduction'!P153),9))","v":0.99999218099999998},{"$f":"VALUE(FIXED(EXP(Q$4*-1*'PM2.5 reduction'!Q153),9))","v":0.999996412},{"$f":"VALUE(FIXED(EXP(R$4*-1*'PM2.5 reduction'!R153),9))","v":0.99999355400000001},{"$f":"VALUE(FIXED(EXP(S$4*-1*'PM2.5 reduction'!S153),9))","v":0.999994406},{"$f":"VALUE(FIXED(EXP(T$4*-1*'PM2.5 reduction'!T153),9))","v":0.99998948899999995},{"$f":"VALUE(FIXED(EXP(U$4*-1*'PM2.5 reduction'!U153),9))","v":0.99999874200000005},{"$f":"VALUE(FIXED(EXP(V$4*-1*'PM2.5 reduction'!V153),9))","v":0.99999413000000004},{"$f":"VALUE(FIXED(EXP(W$4*-1*'PM2.5 reduction'!W153),9))","v":0.99999589799999999},{"$f":"VALUE(FIXED(EXP(X$4*-1*'PM2.5 reduction'!X153),9))","v":0.99999589799999999},{"$f":"VALUE(FIXED(EXP(Y$4*-1*'PM2.5 reduction'!Y153),9))","v":0.99999554199999996},{"$f":"VALUE(FIXED(EXP(Z$4*-1*'PM2.5 reduction'!Z153),9))","v":0.99999039199999995},{"$f":"VALUE(FIXED(EXP(AA$4*-1*'PM2.5 reduction'!AA153),9))","v":0.999993154},{"$f":"VALUE(FIXED(EXP(AB$4*-1*'PM2.5 reduction'!AB153),9))","v":0.99999561699999995},{"$f":"VALUE(FIXED(EXP(AC$4*-1*'PM2.5 reduction'!AC153),9))","v":0.99999248500000004},{"$f":"VALUE(FIXED(EXP(AD$4*-1*'PM2.5 reduction'!AD153),9))","v":0.99999864599999999},{"$f":"VALUE(FIXED(EXP(AE$4*-1*'PM2.5 reduction'!AE153),9))","v":0.999998583},{"$f":"VALUE(FIXED(EXP(AF$4*-1*'PM2.5 reduction'!AF153),9))","v":0.999995623},{"$f":"VALUE(FIXED(EXP(AG$4*-1*'PM2.5 reduction'!AG153),9))","v":0.999998583},{"$f":"VALUE(FIXED(EXP(AH$4*-1*'PM2.5 reduction'!AH153),9))","v":0.99999402400000004},{"$f":"VALUE(FIXED(EXP(AI$4*-1*'PM2.5 reduction'!AI153),9))","v":0.99999243900000001},{"$f":"VALUE(FIXED(EXP(AJ$4*-1*'PM2.5 reduction'!AJ153),9))","v":0.99999562799999997},{"$f":"VALUE(FIXED(EXP(AK$4*-1*'PM2.5 reduction'!AK153),9))","v":0.99999707100000002},{"$f":"VALUE(FIXED(EXP(AL$4*-1*'PM2.5 reduction'!AL153),9))","v":0.99999770300000002},{"$f":"VALUE(FIXED(EXP(AM$4*-1*'PM2.5 reduction'!AM153),9))","v":0.99999365699999998},{"$f":"VALUE(FIXED(EXP(AN$4*-1*'PM2.5 reduction'!AN153),9))","v":0.99999848000000002},{"$f":"VALUE(FIXED(EXP(AO$4*-1*'PM2.5 reduction'!AO153),9))","v":0.99999848000000002},{"$f":"VALUE(FIXED(EXP(AP$4*-1*'PM2.5 reduction'!AP153),9))","v":0.99999755400000001},{"$f":"VALUE(FIXED(EXP(AQ$4*-1*'PM2.5 reduction'!AQ153),9))","v":0.99999452},{"$f":"VALUE(FIXED(EXP(AR$4*-1*'PM2.5 reduction'!AR153),9))","v":0.999994732},{"$f":"VALUE(FIXED(EXP(AS$4*-1*'PM2.5 reduction'!AS153),9))","v":0.99999869600000002},{"$f":"VALUE(FIXED(EXP(AT$4*-1*'PM2.5 reduction'!AT153),9))","v":1},{"$f":"VALUE(FIXED(EXP(AU$4*-1*'PM2.5 reduction'!AU153),9))","v":1},{"$f":"VALUE(FIXED(EXP(AV$4*-1*'PM2.5 reduction'!AV153),9))","v":0.99999603699999995},{"$f":"VALUE(FIXED(EXP(AW$4*-1*'PM2.5 reduction'!AW153),9))","v":0.99999427100000005},{"$f":"VALUE(FIXED(EXP(AX$4*-1*'PM2.5 reduction'!AX153),9))","v":0.99999783900000005},{"$f":"VALUE(FIXED(EXP(AY$4*-1*'PM2.5 reduction'!AY153),9))","v":0.99999569799999999},{"$f":"VALUE(FIXED(EXP(AZ$4*-1*'PM2.5 reduction'!AZ153),9))","v":0.99999553399999996},{"$f":"VALUE(FIXED(EXP(BA$4*-1*'PM2.5 reduction'!BA153),9))","v":0.99999445600000003},{"$f":"VALUE(FIXED(EXP(BB$4*-1*'PM2.5 reduction'!BB153),9))","v":0.99999557500000003},{"$f":"VALUE(FIXED(EXP(BC$4*-1*'PM2.5 reduction'!BC153),9))","v":0.99999874200000005}]
[null,"Female 90+",{"$f":"VALUE(FIXED(EXP(C$4*-1*'PM2.5 reduction'!C154),9))","v":0.99999170999999998},{"$f":"VALUE(FIXED(EXP(D$4*-1*'PM2.5 reduction'!D154),9))","v":0.99999488400000003},{"$f":"VALUE(FIXED(EXP(E$4*-1*'PM2.5 reduction'!E154),9))","v":0.99999791100000002},{"$f":"VALUE(FIXED(EXP(F$4*-1*'PM2.5 reduction'!F154),9))","v":0.99999754299999999},{"$f":"VALUE(FIXED(EXP(G$4*-1*'PM2.5 reduction'!G154),9))","v":0.99999919199999998},{"$f":"VALUE(FIXED(EXP(H$4*-1*'PM2.5 reduction'!H154),9))","v":0.99999700599999997},{"$f":"VALUE(FIXED(EXP(I$4*-1*'PM2.5 reduction'!I154),9))","v":0.99999865399999999},{"$f":"VALUE(FIXED(EXP(J$4*-1*'PM2.5 reduction'!J154),9))","v":0.99999814899999995},{"$f":"VALUE(FIXED(EXP(K$4*-1*'PM2.5 reduction'!K154),9))","v":0.99999730499999995},{"$f":"VALUE(FIXED(EXP(L$4*-1*'PM2.5 reduction'!L154),9))","v":0.999998316},{"$f":"VALUE(FIXED(EXP(M$4*-1*'PM2.5 reduction'!M154),9))","v":0.999998316},{"$f":"VALUE(FIXED(EXP(N$4*-1*'PM2.5 reduction'!N154),9))","v":0.99999173100000005},{"$f":"VALUE(FIXED(EXP(O$4*-1*'PM2.5 reduction'!O154),9))","v":0.99999713800000001},{"$f":"VALUE(FIXED(EXP(P$4*-1*'PM2.5 reduction'!P154),9))","v":0.99999172400000003},{"$f":"VALUE(FIXED(EXP(Q$4*-1*'PM2.5 reduction'!Q154),9))","v":0.99999656000000003},{"$f":"VALUE(FIXED(EXP(R$4*-1*'PM2.5 reduction'!R154),9))","v":0.99999299100000005},{"$f":"VALUE(FIXED(EXP(S$4*-1*'PM2.5 reduction'!S154),9))","v":0.99999396200000001},{"$f":"VALUE(FIXED(EXP(T$4*-1*'PM2.5 reduction'!T154),9))","v":0.99998926099999996},{"$f":"VALUE(FIXED(EXP(U$4*-1*'PM2.5 reduction'!U154),9))","v":0.99999871100000004},{"$f":"VALUE(FIXED(EXP(V$4*-1*'PM2.5 reduction'!V154),9))","v":0.99999403499999995},{"$f":"VALUE(FIXED(EXP(W$4*-1*'PM2.5 reduction'!W154),9))","v":0.999995576},{"$f":"VALUE(FIXED(EXP(X$4*-1*'PM2.5 reduction'!X154),9))","v":0.999995576},{"$f":"VALUE(FIXED(EXP(Y$4*-1*'PM2.5 reduction'!Y154),9))","v":0.99999634000000004},{"$f":"VALUE(FIXED(EXP(Z$4*-1*'PM2.5 reduction'!Z154),9))","v":0.99999043899999995},{"$f":"VALUE(FIXED(EXP(AA$4*-1*'PM2.5 reduction'!AA154),9))","v":0.99999328399999998},{"$f":"VALUE(FIXED(EXP(AB$4*-1*'PM2.5 reduction'!AB154),9))","v":0.99999535100000003},{"$f":"VALUE(FIXED(EXP(AC$4*-1*'PM2.5 reduction'!AC154),9))","v":0.99999264099999996},{"$f":"VALUE(FIXED(EXP(AD$4*-1*'PM2.5 reduction'!AD154),9))","v":0.99999860799999996},{"$f":"VALUE(FIXED(EXP(AE$4*-1*'PM2.5 reduction'!AE154),9))","v":0.99999847600000003},{"$f":"VALUE(FIXED(EXP(AF$4*-1*'PM2.5 reduction'!AF154),9))","v":0.99999556499999998},{"$f":"VALUE(FIXED(EXP(AG$4*-1*'PM2.5 reduction'!AG154),9))","v":0.99999847600000003},{"$f":"VALUE(FIXED(EXP(AH$4*-1*'PM2.5 reduction'!AH154),9))","v":0.99999442900000002},{"$f":"VALUE(FIXED(EXP(AI$4*-1*'PM2.5 reduction'!AI154),9))","v":0.99999236800000002},{"$f":"VALUE(FIXED(EXP(AJ$4*-1*'PM2.5 reduction'!AJ154),9))","v":0.99999542399999997},{"$f":"VALUE(FIXED(EXP(AK$4*-1*'PM2.5 reduction'!AK154),9))","v":0.99999662},{"$f":"VALUE(FIXED(EXP(AL$4*-1*'PM2.5 reduction'!AL154),9))","v":0.99999764999999996},{"$f":"VALUE(FIXED(EXP(AM$4*-1*'PM2.5 reduction'!AM154),9))","v":0.99999408000000001},{"$f":"VALUE(FIXED(EXP(AN$4*-1*'PM2.5 reduction'!AN154),9))","v":0.99999841899999997},{"$f":"VALUE(FIXED(EXP(AO$4*-1*'PM2.5 reduction'!AO154),9))","v":0.99999841899999997},{"$f":"VALUE(FIXED(EXP(AP$4*-1*'PM2.5 reduction'!AP154),9))","v":0.99999782500000001},{"$f":"VALUE(FIXED(EXP(AQ$4*-1*'PM2.5 reduction'!AQ154),9))","v":0.99999477599999997},{"$f":"VALUE(FIXED(EXP(AR$4*-1*'PM2.5 reduction'!AR154),9))","v":0.99999466800000003},{"$f":"VALUE(FIXED(EXP(AS$4*-1*'PM2.5 reduction'!AS154),9))","v":0.99999865399999999},{"$f":"VALUE(FIXED(EXP(AT$4*-1*'PM2.5 reduction'!AT154),9))","v":1},{"$f":"VALUE(FIXED(EXP(AU$4*-1*'PM2.5 reduction'!AU154),9))","v":1},{"$f":"VALUE(FIXED(EXP(AV$4*-1*'PM2.5 reduction'!AV154),9))","v":0.999995831},{"$f":"VALUE(FIXED(EXP(AW$4*-1*'PM2.5 reduction'!AW154),9))","v":0.99999460600000001},{"$f":"VALUE(FIXED(EXP(AX$4*-1*'PM2.5 reduction'!AX154),9))","v":0.99999835999999998},{"$f":"VALUE(FIXED(EXP(AY$4*-1*'PM2.5 reduction'!AY154),9))","v":0.99999564200000002},{"$f":"VALUE(FIXED(EXP(AZ$4*-1*'PM2.5 reduction'!AZ154),9))","v":0.99999568699999997},{"$f":"VALUE(FIXED(EXP(BA$4*-1*'PM2.5 reduction'!BA154),9))","v":0.99999525600000005},{"$f":"VALUE(FIXED(EXP(BB$4*-1*'PM2.5 reduction'!BB154),9))","v":0.999995513},{"$f":"VALUE(FIXED(EXP(BC$4*-1*'PM2.5 reduction'!BC154),9))","v":0.99999871100000004}]
[null,"Male 0-4",{"$f":"VALUE(FIXED(EXP(C$4*-1*'PM2.5 reduction'!C155),9))","v":0.99998994799999996},{"$f":"VALUE(FIXED(EXP(D$4*-1*'PM2.5 reduction'!D155),9))","v":0.99999391100000001},{"$f":"VALUE(FIXED(EXP(E$4*-1*'PM2.5 reduction'!E155),9))","v":0.99999825899999994},{"$f":"VALUE(FIXED(EXP(F$4*-1*'PM2.5 reduction'!F155),9))","v":0.99999790399999999},{"$f":"VALUE(FIXED(EXP(G$4*-1*'PM2.5 reduction'!G155),9))","v":0.999999003},{"$f":"VALUE(FIXED(EXP(H$4*-1*'PM2.5 reduction'!H155),9))","v":0.99999700800000002},{"$f":"VALUE(FIXED(EXP(I$4*-1*'PM2.5 reduction'!I155),9))","v":0.99999861899999998},{"$f":"VALUE(FIXED(EXP(J$4*-1*'PM2.5 reduction'!J155),9))","v":0.99999745200000001},{"$f":"VALUE(FIXED(EXP(K$4*-1*'PM2.5 reduction'!K155),9))","v":0.99999731400000003},{"$f":"VALUE(FIXED(EXP(L$4*-1*'PM2.5 reduction'!L155),9))","v":0.99999828000000002},{"$f":"VALUE(FIXED(EXP(M$4*-1*'PM2.5 reduction'!M155),9))","v":0.99999828000000002},{"$f":"VALUE(FIXED(EXP(N$4*-1*'PM2.5 reduction'!N155),9))","v":0.99999143700000004},{"$f":"VALUE(FIXED(EXP(O$4*-1*'PM2.5 reduction'!O155),9))","v":0.999996993},{"$f":"VALUE(FIXED(EXP(P$4*-1*'PM2.5 reduction'!P155),9))","v":0.99999340299999995},{"$f":"VALUE(FIXED(EXP(Q$4*-1*'PM2.5 reduction'!Q155),9))","v":0.99999608900000003},{"$f":"VALUE(FIXED(EXP(R$4*-1*'PM2.5 reduction'!R155),9))","v":0.999993837},{"$f":"VALUE(FIXED(EXP(S$4*-1*'PM2.5 reduction'!S155),9))","v":0.99999365399999995},{"$f":"VALUE(FIXED(EXP(T$4*-1*'PM2.5 reduction'!T155),9))","v":0.99998902300000003},{"$f":"VALUE(FIXED(EXP(U$4*-1*'PM2.5 reduction'!U155),9))","v":0.99999876799999998},{"$f":"VALUE(FIXED(EXP(V$4*-1*'PM2.5 reduction'!V155),9))","v":0.99999479899999999},{"$f":"VALUE(FIXED(EXP(W$4*-1*'PM2.5 reduction'!W155),9))","v":0.99999574099999999},{"$f":"VALUE(FIXED(EXP(X$4*-1*'PM2.5 reduction'!X155),9))","v":0.99999574099999999},{"$f":"VALUE(FIXED(EXP(Y$4*-1*'PM2.5 reduction'!Y155),9))","v":0.99999575100000004},{"$f":"VALUE(FIXED(EXP(Z$4*-1*'PM2.5 reduction'!Z155),9))","v":0.99998949999999998},{"$f":"VALUE(FIXED(EXP(AA$4*-1*'PM2.5 reduction'!AA155),9))","v":0.999992769},{"$f":"VALUE(FIXED(EXP(AB$4*-1*'PM2.5 reduction'!AB155),9))","v":0.99999475199999999},{"$f":"VALUE(FIXED(EXP(AC$4*-1*'PM2.5 reduction'!AC155),9))","v":0.999991713},{"$f":"VALUE(FIXED(EXP(AD$4*-1*'PM2.5 reduction'!AD155),9))","v":0.99999862900000003},{"$f":"VALUE(FIXED(EXP(AE$4*-1*'PM2.5 reduction'!AE155),9))","v":0.99999853800000005},{"$f":"VALUE(FIXED(EXP(AF$4*-1*'PM2.5 reduction'!AF155),9))","v":0.99999597900000003},{"$f":"VALUE(FIXED(EXP(AG$4*-1*'PM2.5 reduction'!AG155),9))","v":0.99999853800000005},{"$f":"VALUE(FIXED(EXP(AH$4*-1*'PM2.5 reduction'!AH155),9))","v":0.999994088},{"$f":"VALUE(FIXED(EXP(AI$4*-1*'PM2.5 reduction'!AI155),9))","v":0.99999191499999995},{"$f":"VALUE(FIXED(EXP(AJ$4*-1*'PM2.5 reduction'!AJ155),9))","v":0.99999588100000003},{"$f":"VALUE(FIXED(EXP(AK$4*-1*'PM2.5 reduction'!AK155),9))","v":0.99999775499999999},{"$f":"VALUE(FIXED(EXP(AL$4*-1*'PM2.5 reduction'!AL155),9))","v":0.99999774299999999},{"$f":"VALUE(FIXED(EXP(AM$4*-1*'PM2.5 reduction'!AM155),9))","v":0.999993786},{"$f":"VALUE(FIXED(EXP(AN$4*-1*'PM2.5 reduction'!AN155),9))","v":0.99999823600000004},{"$f":"VALUE(FIXED(EXP(AO$4*-1*'PM2.5 reduction'!AO155),9))","v":0.99999823600000004},{"$f":"VALUE(FIXED(EXP(AP$4*-1*'PM2.5 reduction'!AP155),9))","v":0.99999717200000005},{"$f":"VALUE(FIXED(EXP(AQ$4*-1*'PM2.5 reduction'!AQ155),9))","v":0.999994614},{"$f":"VALUE(FIXED(EXP(AR$4*-1*'PM2.5 reduction'!AR155),9))","v":0.99999423499999995},{"$f":"VALUE(FIXED(EXP(AS$4*-1*'PM2.5 reduction'!AS155),9))","v":0.99999861899999998},{"$f":"VALUE(FIXED(EXP(AT$4*-1*'PM2.5 reduction'!AT155),9))","v":1},{"$f":"VALUE(FIXED(EXP(AU$4*-1*'PM2.5 reduction'!AU155),9))","v":1},{"$f":"VALUE(FIXED(EXP(AV$4*-1*'PM2.5 reduction'!AV155),9))","v":0.99999638499999999},{"$f":"VALUE(FIXED(EXP(AW$4*-1*'PM2.5 reduction'!AW155),9))","v":0.99999444699999995},{"$f":"VALUE(FIXED(EXP(AX$4*-1*'PM2.5 reduction'!AX155),9))","v":0.99999758000000005},{"$f":"VALUE(FIXED(EXP(AY$4*-1*'PM2.5 reduction'!AY155),9))","v":0.99999570299999996},{"$f":"VALUE(FIXED(EXP(AZ$4*-1*'PM2.5 reduction'!AZ155),9))","v":0.99999566500000003},{"$f":"VALUE(FIXED(EXP(BA$4*-1*'PM2.5 reduction'!BA155),9))","v":0.999994783},{"$f":"VALUE(FIXED(EXP(BB$4*-1*'PM2.5 reduction'!BB155),9))","v":0.99999538399999999},{"$f":"VALUE(FIXED(EXP(BC$4*-1*'PM2.5 reduction'!BC155),9))","v":0.99999876799999998}]
[null,"Male 5-9",{"$f":"VALUE(FIXED(EXP(C$4*-1*'PM2.5 reduction'!C156),9))","v":0.99999048400000001},{"$f":"VALUE(FIXED(EXP(D$4*-1*'PM2.5 reduction'!D156),9))","v":0.99999459499999999},{"$f":"VALUE(FIXED(EXP(E$4*-1*'PM2.5 reduction'!E156),9))","v":0.99999845700000001},{"$f":"VALUE(FIXED(EXP(F$4*-1*'PM2.5 reduction'!F156),9))","v":0.99999791500000001},{"$f":"VALUE(FIXED(EXP(G$4*-1*'PM2.5 reduction'!G156),9))","v":0.99999914300000003},{"$f":"VALUE(FIXED(EXP(H$4*-1*'PM2.5 reduction'!H156),9))","v":0.999997095},{"$f":"VALUE(FIXED(EXP(I$4*-1*'PM2.5 reduction'!I156),9))","v":0.999998685},{"$f":"VALUE(FIXED(EXP(J$4*-1*'PM2.5 reduction'!J156),9))","v":0.99999729000000004},{"$f":"VALUE(FIXED(EXP(K$4*-1*'PM2.5 reduction'!K156),9))","v":0.99999703399999995},{"$f":"VALUE(FIXED(EXP(L$4*-1*'PM2.5 reduction'!L156),9))","v":0.99999823499999996},{"$f":"VALUE(FIXED(EXP(M$4*-1*'PM2.5 reduction'!M156),9))","v":0.99999823499999996},{"$f":"VALUE(FIXED(EXP(N$4*-1*'PM2.5 reduction'!N156),9))","v":0.99999178},{"$f":"VALUE(FIXED(EXP(O$4*-1*'PM2.5 reduction'!O156),9))","v":0.99999754399999996},{"$f":"VALUE(FIXED(EXP(P$4*-1*'PM2.5 reduction'!P156),9))","v":0.99999311700000004},{"$f":"VALUE(FIXED(EXP(Q$4*-1*'PM2.5 reduction'!Q156),9))","v":0.99999655899999995},{"$f":"VALUE(FIXED(EXP(R$4*-1*'PM2.5 reduction'!R156),9))","v":0.999993994},{"$f":"VALUE(FIXED(EXP(S$4*-1*'PM2.5 reduction'!S156),9))","v":0.99999427100000005},{"$f":"VALUE(FIXED(EXP(T$4*-1*'PM2.5 reduction'!T156),9))","v":0.99998963200000002},{"$f":"VALUE(FIXED(EXP(U$4*-1*'PM2.5 reduction'!U156),9))","v":0.99999874300000002},{"$f":"VALUE(FIXED(EXP(V$4*-1*'PM2.5 reduction'!V156),9))","v":0.99999455500000001},{"$f":"VALUE(FIXED(EXP(W$4*-1*'PM2.5 reduction'!W156),9))","v":0.99999581299999996},{"$f":"VALUE(FIXED(EXP(X$4*-1*'PM2.5 reduction'!X156),9))","v":0.99999581299999996},{"$f":"VALUE(FIXED(EXP(Y$4*-1*'PM2.5 reduction'!Y156),9))","v":0.99999542299999999},{"$f":"VALUE(FIXED(EXP(Z$4*-1*'PM2.5 reduction'!Z156),9))","v":0.99999020900000002},{"$f":"VALUE(FIXED(EXP(AA$4*-1*'PM2.5 reduction'!AA156),9))","v":0.99999313000000001},{"$f":"VALUE(FIXED(EXP(AB$4*-1*'PM2.5 reduction'!AB156),9))","v":0.99999532700000004},{"$f":"VALUE(FIXED(EXP(AC$4*-1*'PM2.5 reduction'!AC156),9))","v":0.99999239699999998},{"$f":"VALUE(FIXED(EXP(AD$4*-1*'PM2.5 reduction'!AD156),9))","v":0.99999864199999999},{"$f":"VALUE(FIXED(EXP(AE$4*-1*'PM2.5 reduction'!AE156),9))","v":0.999998532},{"$f":"VALUE(FIXED(EXP(AF$4*-1*'PM2.5 reduction'!AF156),9))","v":0.99999594300000005},{"$f":"VALUE(FIXED(EXP(AG$4*-1*'PM2.5 reduction'!AG156),9))","v":0.999998532},{"$f":"VALUE(FIXED(EXP(AH$4*-1*'PM2.5 reduction'!AH156),9))","v":0.99999406000000002},{"$f":"VALUE(FIXED(EXP(AI$4*-1*'PM2.5 reduction'!AI156),9))","v":0.99999280800000001},{"$f":"VALUE(FIXED(EXP(AJ$4*-1*'PM2.5 reduction'!AJ156),9))","v":0.999995623},{"$f":"VALUE(FIXED(EXP(AK$4*-1*'PM2.5 reduction'!AK156),9))","v":0.99999777700000003},{"$f":"VALUE(FIXED(EXP(AL$4*-1*'PM2.5 reduction'!AL156),9))","v":0.99999760800000004},{"$f":"VALUE(FIXED(EXP(AM$4*-1*'PM2.5 reduction'!AM156),9))","v":0.99999376399999995},{"$f":"VALUE(FIXED(EXP(AN$4*-1*'PM2.5 reduction'!AN156),9))","v":0.99999832},{"$f":"VALUE(FIXED(EXP(AO$4*-1*'PM2.5 reduction'!AO156),9))","v":0.99999832},{"$f":"VALUE(FIXED(EXP(AP$4*-1*'PM2.5 reduction'!AP156),9))","v":0.99999740400000003},{"$f":"VALUE(FIXED(EXP(AQ$4*-1*'PM2.5 reduction'!AQ156),9))","v":0.999994673},{"$f":"VALUE(FIXED(EXP(AR$4*-1*'PM2.5 reduction'!AR156),9))","v":0.99999461899999997},{"$f":"VALUE(FIXED(EXP(AS$4*-1*'PM2.5 reduction'!AS156),9))","v":0.999998685},{"$f":"VALUE(FIXED(EXP(AT$4*-1*'PM2.5 reduction'!AT156),9))","v":1},{"$f":"VALUE(FIXED(EXP(AU$4*-1*'PM2.5 reduction'!AU156),9))","v":1},{"$f":"VALUE(FIXED(EXP(AV$4*-1*'PM2.5 reduction'!AV156),9))","v":0.99999612400000004},{"$f":"VALUE(FIXED(EXP(AW$4*-1*'PM2.5 reduction'!AW156),9))","v":0.99999443200000004},{"$f":"VALUE(FIXED(EXP(AX$4*-1*'PM2.5 reduction'!AX156),9))","v":0.99999749299999996},{"$f":"VALUE(FIXED(EXP(AY$4*-1*'PM2.5 reduction'!AY156),9))","v":0.99999588900000003},{"$f":"VALUE(FIXED(EXP(AZ$4*-1*'PM2.5 reduction'!AZ156),9))","v":0.99999597299999998},{"$f":"VALUE(FIXED(EXP(BA$4*-1*'PM2.5 reduction'!BA156),9))","v":0.99999454899999995},{"$f":"VALUE(FIXED(EXP(BB$4*-1*'PM2.5 reduction'!BB156),9))","v":0.999995207},{"$f":"VALUE(FIXED(EXP(BC$4*-1*'PM2.5 reduction'!BC156),9))","v":0.99999874300000002}]
[null,"Male 10-15",{"$f":"VALUE(FIXED(EXP(C$4*-1*'PM2.5 reduction'!C157),9))","v":0.99999111200000002},{"$f":"VALUE(FIXED(EXP(D$4*-1*'PM2.5 reduction'!D157),9))","v":0.99999532899999999},{"$f":"VALUE(FIXED(EXP(E$4*-1*'PM2.5 reduction'!E157),9))","v":0.99999833800000004},{"$f":"VALUE(FIXED(EXP(F$4*-1*'PM2.5 reduction'!F157),9))","v":0.99999783499999995},{"$f":"VALUE(FIXED(EXP(G$4*-1*'PM2.5 reduction'!G157),9))","v":0.99999903899999998},{"$f":"VALUE(FIXED(EXP(H$4*-1*'PM2.5 reduction'!H157),9))","v":0.99999700700000005},{"$f":"VALUE(FIXED(EXP(I$4*-1*'PM2.5 reduction'!I157),9))","v":0.99999865099999996},{"$f":"VALUE(FIXED(EXP(J$4*-1*'PM2.5 reduction'!J157),9))","v":0.99999737399999999},{"$f":"VALUE(FIXED(EXP(K$4*-1*'PM2.5 reduction'!K157),9))","v":0.99999716100000002},{"$f":"VALUE(FIXED(EXP(L$4*-1*'PM2.5 reduction'!L157),9))","v":0.99999819700000003},{"$f":"VALUE(FIXED(EXP(M$4*-1*'PM2.5 reduction'!M157),9))","v":0.99999819700000003},{"$f":"VALUE(FIXED(EXP(N$4*-1*'PM2.5 reduction'!N157),9))","v":0.99999175200000001},{"$f":"VALUE(FIXED(EXP(O$4*-1*'PM2.5 reduction'!O157),9))","v":0.99999725699999997},{"$f":"VALUE(FIXED(EXP(P$4*-1*'PM2.5 reduction'!P157),9))","v":0.99999335600000006},{"$f":"VALUE(FIXED(EXP(Q$4*-1*'PM2.5 reduction'!Q157),9))","v":0.99999642200000005},{"$f":"VALUE(FIXED(EXP(R$4*-1*'PM2.5 reduction'!R157),9))","v":0.99999384899999999},{"$f":"VALUE(FIXED(EXP(S$4*-1*'PM2.5 reduction'!S157),9))","v":0.99999464500000002},{"$f":"VALUE(FIXED(EXP(T$4*-1*'PM2.5 reduction'!T157),9))","v":0.99998979600000004},{"$f":"VALUE(FIXED(EXP(U$4*-1*'PM2.5 reduction'!U157),9))","v":0.99999875100000002},{"$f":"VALUE(FIXED(EXP(V$4*-1*'PM2.5 reduction'!V157),9))","v":0.99999486500000001},{"$f":"VALUE(FIXED(EXP(W$4*-1*'PM2.5 reduction'!W157),9))","v":0.99999587099999998},{"$f":"VALUE(FIXED(EXP(X$4*-1*'PM2.5 reduction'!X157),9))","v":0.99999587099999998},{"$f":"VALUE(FIXED(EXP(Y$4*-1*'PM2.5 reduction'!Y157),9))","v":0.99999574700000005},{"$f":"VALUE(FIXED(EXP(Z$4*-1*'PM2.5 reduction'!Z157),9))","v":0.99999040900000002},{"$f":"VALUE(FIXED(EXP(AA$4*-1*'PM2.5 reduction'!AA157),9))","v":0.99999329999999997},{"$f":"VALUE(FIXED(EXP(AB$4*-1*'PM2.5 reduction'!AB157),9))","v":0.99999596899999998},{"$f":"VALUE(FIXED(EXP(AC$4*-1*'PM2.5 reduction'!AC157),9))","v":0.99999258999999996},{"$f":"VALUE(FIXED(EXP(AD$4*-1*'PM2.5 reduction'!AD157),9))","v":0.99999856799999998},{"$f":"VALUE(FIXED(EXP(AE$4*-1*'PM2.5 reduction'!AE157),9))","v":0.99999844500000001},{"$f":"VALUE(FIXED(EXP(AF$4*-1*'PM2.5 reduction'!AF157),9))","v":0.99999601000000005},{"$f":"VALUE(FIXED(EXP(AG$4*-1*'PM2.5 reduction'!AG157),9))","v":0.99999844500000001},{"$f":"VALUE(FIXED(EXP(AH$4*-1*'PM2.5 reduction'!AH157),9))","v":0.99999418100000004},{"$f":"VALUE(FIXED(EXP(AI$4*-1*'PM2.5 reduction'!AI157),9))","v":0.99999307000000004},{"$f":"VALUE(FIXED(EXP(AJ$4*-1*'PM2.5 reduction'!AJ157),9))","v":0.99999574800000002},{"$f":"VALUE(FIXED(EXP(AK$4*-1*'PM2.5 reduction'!AK157),9))","v":0.99999782100000001},{"$f":"VALUE(FIXED(EXP(AL$4*-1*'PM2.5 reduction'!AL157),9))","v":0.99999767100000003},{"$f":"VALUE(FIXED(EXP(AM$4*-1*'PM2.5 reduction'!AM157),9))","v":0.99999384800000002},{"$f":"VALUE(FIXED(EXP(AN$4*-1*'PM2.5 reduction'!AN157),9))","v":0.99999821200000005},{"$f":"VALUE(FIXED(EXP(AO$4*-1*'PM2.5 reduction'!AO157),9))","v":0.99999821200000005},{"$f":"VALUE(FIXED(EXP(AP$4*-1*'PM2.5 reduction'!AP157),9))","v":0.99999770200000004},{"$f":"VALUE(FIXED(EXP(AQ$4*-1*'PM2.5 reduction'!AQ157),9))","v":0.99999484199999999},{"$f":"VALUE(FIXED(EXP(AR$4*-1*'PM2.5 reduction'!AR157),9))","v":0.99999484599999999},{"$f":"VALUE(FIXED(EXP(AS$4*-1*'PM2.5 reduction'!AS157),9))","v":0.99999865099999996},{"$f":"VALUE(FIXED(EXP(AT$4*-1*'PM2.5 reduction'!AT157),9))","v":1},{"$f":"VALUE(FIXED(EXP(AU$4*-1*'PM2.5 reduction'!AU157),9))","v":1},{"$f":"VALUE(FIXED(EXP(AV$4*-1*'PM2.5 reduction'!AV157),9))","v":0.99999612400000004},{"$f":"VALUE(FIXED(EXP(AW$4*-1*'PM2.5 reduction'!AW157),9))","v":0.99999461899999997},{"$f":"VALUE(FIXED(EXP(AX$4*-1*'PM2.5 reduction'!AX157),9))","v":0.99999754200000002},{"$f":"VALUE(FIXED(EXP(AY$4*-1*'PM2.5 reduction'!AY157),9))","v":0.99999597799999995},{"$f":"VALUE(FIXED(EXP(AZ$4*-1*'PM2.5 reduction'!AZ157),9))","v":0.99999609599999995},{"$f":"VALUE(FIXED(EXP(BA$4*-1*'PM2.5 reduction'!BA157),9))","v":0.99999468899999999},{"$f":"VALUE(FIXED(EXP(BB$4*-1*'PM2.5 reduction'!BB157),9))","v":0.99999532800000002},{"$f":"VALUE(FIXED(EXP(BC$4*-1*'PM2.5 reduction'!BC157),9))","v":0.99999875100000002}]
[null,"Male 16-19",{"$f":"VALUE(FIXED(EXP(C$4*-1*'PM2.5 reduction'!C158),9))","v":0.99998994500000005},{"$f":"VALUE(FIXED(EXP(D$4*-1*'PM2.5 reduction'!D158),9))","v":0.99999395899999999},{"$f":"VALUE(FIXED(EXP(E$4*-1*'PM2.5 reduction'!E158),9))","v":0.99999833400000004},{"$f":"VALUE(FIXED(EXP(F$4*-1*'PM2.5 reduction'!F158),9))","v":0.99999787500000004},{"$f":"VALUE(FIXED(EXP(G$4*-1*'PM2.5 reduction'!G158),9))","v":0.99999913299999998},{"$f":"VALUE(FIXED(EXP(H$4*-1*'PM2.5 reduction'!H158),9))","v":0.99999684799999999},{"$f":"VALUE(FIXED(EXP(I$4*-1*'PM2.5 reduction'!I158),9))","v":0.99999861499999998},{"$f":"VALUE(FIXED(EXP(J$4*-1*'PM2.5 reduction'!J158),9))","v":0.99999694699999997},{"$f":"VALUE(FIXED(EXP(K$4*-1*'PM2.5 reduction'!K158),9))","v":0.99999686399999999},{"$f":"VALUE(FIXED(EXP(L$4*-1*'PM2.5 reduction'!L158),9))","v":0.99999818100000004},{"$f":"VALUE(FIXED(EXP(M$4*-1*'PM2.5 reduction'!M158),9))","v":0.99999818100000004},{"$f":"VALUE(FIXED(EXP(N$4*-1*'PM2.5 reduction'!N158),9))","v":0.99999068599999996},{"$f":"VALUE(FIXED(EXP(O$4*-1*'PM2.5 reduction'!O158),9))","v":0.99999689300000005},{"$f":"VALUE(FIXED(EXP(P$4*-1*'PM2.5 reduction'!P158),9))","v":0.99999320300000005},{"$f":"VALUE(FIXED(EXP(Q$4*-1*'PM2.5 reduction'!Q158),9))","v":0.999996353},{"$f":"VALUE(FIXED(EXP(R$4*-1*'PM2.5 reduction'!R158),9))","v":0.99999365799999995},{"$f":"VALUE(FIXED(EXP(S$4*-1*'PM2.5 reduction'!S158),9))","v":0.99999286600000004},{"$f":"VALUE(FIXED(EXP(T$4*-1*'PM2.5 reduction'!T158),9))","v":0.99998594299999999},{"$f":"VALUE(FIXED(EXP(U$4*-1*'PM2.5 reduction'!U158),9))","v":0.99999875299999996},{"$f":"VALUE(FIXED(EXP(V$4*-1*'PM2.5 reduction'!V158),9))","v":0.99999464900000001},{"$f":"VALUE(FIXED(EXP(W$4*-1*'PM2.5 reduction'!W158),9))","v":0.99999584500000005},{"$f":"VALUE(FIXED(EXP(X$4*-1*'PM2.5 reduction'!X158),9))","v":0.99999584500000005},{"$f":"VALUE(FIXED(EXP(Y$4*-1*'PM2.5 reduction'!Y158),9))","v":0.99999550400000004},{"$f":"VALUE(FIXED(EXP(Z$4*-1*'PM2.5 reduction'!Z158),9))","v":0.99998590600000004},{"$f":"VALUE(FIXED(EXP(AA$4*-1*'PM2.5 reduction'!AA158),9))","v":0.99999120799999996},{"$f":"VALUE(FIXED(EXP(AB$4*-1*'PM2.5 reduction'!AB158),9))","v":0.99999473699999997},{"$f":"VALUE(FIXED(EXP(AC$4*-1*'PM2.5 reduction'!AC158),9))","v":0.99998930500000005},{"$f":"VALUE(FIXED(EXP(AD$4*-1*'PM2.5 reduction'!AD158),9))","v":0.99999864699999996},{"$f":"VALUE(FIXED(EXP(AE$4*-1*'PM2.5 reduction'!AE158),9))","v":0.999998524},{"$f":"VALUE(FIXED(EXP(AF$4*-1*'PM2.5 reduction'!AF158),9))","v":0.99999595900000005},{"$f":"VALUE(FIXED(EXP(AG$4*-1*'PM2.5 reduction'!AG158),9))","v":0.999998524},{"$f":"VALUE(FIXED(EXP(AH$4*-1*'PM2.5 reduction'!AH158),9))","v":0.999994096},{"$f":"VALUE(FIXED(EXP(AI$4*-1*'PM2.5 reduction'!AI158),9))","v":0.99999054099999996},{"$f":"VALUE(FIXED(EXP(AJ$4*-1*'PM2.5 reduction'!AJ158),9))","v":0.99999572199999998},{"$f":"VALUE(FIXED(EXP(AK$4*-1*'PM2.5 reduction'!AK158),9))","v":0.99999777300000003},{"$f":"VALUE(FIXED(EXP(AL$4*-1*'PM2.5 reduction'!AL158),9))","v":0.99999778800000005},{"$f":"VALUE(FIXED(EXP(AM$4*-1*'PM2.5 reduction'!AM158),9))","v":0.99999383900000005},{"$f":"VALUE(FIXED(EXP(AN$4*-1*'PM2.5 reduction'!AN158),9))","v":0.99999830999999995},{"$f":"VALUE(FIXED(EXP(AO$4*-1*'PM2.5 reduction'!AO158),9))","v":0.99999830999999995},{"$f":"VALUE(FIXED(EXP(AP$4*-1*'PM2.5 reduction'!AP158),9))","v":0.99999762199999997},{"$f":"VALUE(FIXED(EXP(AQ$4*-1*'PM2.5 reduction'!AQ158),9))","v":0.99999470499999998},{"$f":"VALUE(FIXED(EXP(AR$4*-1*'PM2.5 reduction'!AR158),9))","v":0.99999332100000005},{"$f":"VALUE(FIXED(EXP(AS$4*-1*'PM2.5 reduction'!AS158),9))","v":0.99999861499999998},{"$f":"VALUE(FIXED(EXP(AT$4*-1*'PM2.5 reduction'!AT158),9))","v":1},{"$f":"VALUE(FIXED(EXP(AU$4*-1*'PM2.5 reduction'!AU158),9))","v":1},{"$f":"VALUE(FIXED(EXP(AV$4*-1*'PM2.5 reduction'!AV158),9))","v":0.99999611799999999},{"$f":"VALUE(FIXED(EXP(AW$4*-1*'PM2.5 reduction'!AW158),9))","v":0.99999442100000002},{"$f":"VALUE(FIXED(EXP(AX$4*-1*'PM2.5 reduction'!AX158),9))","v":0.99999702800000001},{"$f":"VALUE(FIXED(EXP(AY$4*-1*'PM2.5 reduction'!AY158),9))","v":0.99999564200000002},{"$f":"VALUE(FIXED(EXP(AZ$4*-1*'PM2.5 reduction'!AZ158),9))","v":0.99999544900000004},{"$f":"VALUE(FIXED(EXP(BA$4*-1*'PM2.5 reduction'!BA158),9))","v":0.99999451500000003},{"$f":"VALUE(FIXED(EXP(BB$4*-1*'PM2.5 reduction'!BB158),9))","v":0.99999523199999996},{"$f":"VALUE(FIXED(EXP(BC$4*-1*'PM2.5 reduction'!BC158),9))","v":0.99999875299999996}]
[null,"Male 20-24",{"$f":"VALUE(FIXED(EXP(C$4*-1*'PM2.5 reduction'!C159),9))","v":0.99998713400000006},{"$f":"VALUE(FIXED(EXP(D$4*-1*'PM2.5 reduction'!D159),9))","v":0.99999004000000002},{"$f":"VALUE(FIXED(EXP(E$4*-1*'PM2.5 reduction'!E159),9))","v":0.99999835199999998},{"$f":"VALUE(FIXED(EXP(F$4*-1*'PM2.5 reduction'!F159),9))","v":0.99999785399999996},{"$f":"VALUE(FIXED(EXP(G$4*-1*'PM2.5 reduction'!G159),9))","v":0.99999897699999996},{"$f":"VALUE(FIXED(EXP(H$4*-1*'PM2.5 reduction'!H159),9))","v":0.99999701500000004},{"$f":"VALUE(FIXED(EXP(I$4*-1*'PM2.5 reduction'!I159),9))","v":0.99999865200000004},{"$f":"VALUE(FIXED(EXP(J$4*-1*'PM2.5 reduction'!J159),9))","v":0.999995886},{"$f":"VALUE(FIXED(EXP(K$4*-1*'PM2.5 reduction'!K159),9))","v":0.99999722800000002},{"$f":"VALUE(FIXED(EXP(L$4*-1*'PM2.5 reduction'!L159),9))","v":0.99999815199999997},{"$f":"VALUE(FIXED(EXP(M$4*-1*'PM2.5 reduction'!M159),9))","v":0.99999815199999997},{"$f":"VALUE(FIXED(EXP(N$4*-1*'PM2.5 reduction'!N159),9))","v":0.99999011500000001},{"$f":"VALUE(FIXED(EXP(O$4*-1*'PM2.5 reduction'!O159),9))","v":0.99999725399999995},{"$f":"VALUE(FIXED(EXP(P$4*-1*'PM2.5 reduction'!P159),9))","v":0.99999305800000005},{"$f":"VALUE(FIXED(EXP(Q$4*-1*'PM2.5 reduction'!Q159),9))","v":0.99999608500000003},{"$f":"VALUE(FIXED(EXP(R$4*-1*'PM2.5 reduction'!R159),9))","v":0.99999385900000004},{"$f":"VALUE(FIXED(EXP(S$4*-1*'PM2.5 reduction'!S159),9))","v":0.99998993800000002},{"$f":"VALUE(FIXED(EXP(T$4*-1*'PM2.5 reduction'!T159),9))","v":0.999983756},{"$f":"VALUE(FIXED(EXP(U$4*-1*'PM2.5 reduction'!U159),9))","v":0.99999877800000003},{"$f":"VALUE(FIXED(EXP(V$4*-1*'PM2.5 reduction'!V159),9))","v":0.99999455800000003},{"$f":"VALUE(FIXED(EXP(W$4*-1*'PM2.5 reduction'!W159),9))","v":0.99999616800000002},{"$f":"VALUE(FIXED(EXP(X$4*-1*'PM2.5 reduction'!X159),9))","v":0.99999616800000002},{"$f":"VALUE(FIXED(EXP(Y$4*-1*'PM2.5 reduction'!Y159),9))","v":0.99999521300000005},{"$f":"VALUE(FIXED(EXP(Z$4*-1*'PM2.5 reduction'!Z159),9))","v":0.99998382200000002},{"$f":"VALUE(FIXED(EXP(AA$4*-1*'PM2.5 reduction'!AA159),9))","v":0.99998900300000004},{"$f":"VALUE(FIXED(EXP(AB$4*-1*'PM2.5 reduction'!AB159),9))","v":0.999990881},{"$f":"VALUE(FIXED(EXP(AC$4*-1*'PM2.5 reduction'!AC159),9))","v":0.99998683700000002},{"$f":"VALUE(FIXED(EXP(AD$4*-1*'PM2.5 reduction'!AD159),9))","v":0.99999856300000001},{"$f":"VALUE(FIXED(EXP(AE$4*-1*'PM2.5 reduction'!AE159),9))","v":0.99999848000000002},{"$f":"VALUE(FIXED(EXP(AF$4*-1*'PM2.5 reduction'!AF159),9))","v":0.999995949},{"$f":"VALUE(FIXED(EXP(AG$4*-1*'PM2.5 reduction'!AG159),9))","v":0.99999848000000002},{"$f":"VALUE(FIXED(EXP(AH$4*-1*'PM2.5 reduction'!AH159),9))","v":0.99999400699999996},{"$f":"VALUE(FIXED(EXP(AI$4*-1*'PM2.5 reduction'!AI159),9))","v":0.999987238},{"$f":"VALUE(FIXED(EXP(AJ$4*-1*'PM2.5 reduction'!AJ159),9))","v":0.99999568100000003},{"$f":"VALUE(FIXED(EXP(AK$4*-1*'PM2.5 reduction'!AK159),9))","v":0.99999775599999996},{"$f":"VALUE(FIXED(EXP(AL$4*-1*'PM2.5 reduction'!AL159),9))","v":0.99999767699999997},{"$f":"VALUE(FIXED(EXP(AM$4*-1*'PM2.5 reduction'!AM159),9))","v":0.99999380299999996},{"$f":"VALUE(FIXED(EXP(AN$4*-1*'PM2.5 reduction'!AN159),9))","v":0.99999831699999997},{"$f":"VALUE(FIXED(EXP(AO$4*-1*'PM2.5 reduction'!AO159),9))","v":0.99999831699999997},{"$f":"VALUE(FIXED(EXP(AP$4*-1*'PM2.5 reduction'!AP159),9))","v":0.99999707699999996},{"$f":"VALUE(FIXED(EXP(AQ$4*-1*'PM2.5 reduction'!AQ159),9))","v":0.99999474300000002},{"$f":"VALUE(FIXED(EXP(AR$4*-1*'PM2.5 reduction'!AR159),9))","v":0.999990983},{"$f":"VALUE(FIXED(EXP(AS$4*-1*'PM2.5 reduction'!AS159),9))","v":0.99999865200000004},{"$f":"VALUE(FIXED(EXP(AT$4*-1*'PM2.5 reduction'!AT159),9))","v":1},{"$f":"VALUE(FIXED(EXP(AU$4*-1*'PM2.5 reduction'!AU159),9))","v":1},{"$f":"VALUE(FIXED(EXP(AV$4*-1*'PM2.5 reduction'!AV159),9))","v":0.99999612400000004},{"$f":"VALUE(FIXED(EXP(AW$4*-1*'PM2.5 reduction'!AW159),9))","v":0.99999423499999995},{"$f":"VALUE(FIXED(EXP(AX$4*-1*'PM2.5 reduction'!AX159),9))","v":0.99999529300000001},{"$f":"VALUE(FIXED(EXP(AY$4*-1*'PM2.5 reduction'!AY159),9))","v":0.99999536499999997},{"$f":"VALUE(FIXED(EXP(AZ$4*-1*'PM2.5 reduction'!AZ159),9))","v":0.99999458200000002},{"$f":"VALUE(FIXED(EXP(BA$4*-1*'PM2.5 reduction'!BA159),9))","v":0.99999453299999996},{"$f":"VALUE(FIXED(EXP(BB$4*-1*'PM2.5 reduction'!BB159),9))","v":0.99999536700000002},{"$f":"VALUE(FIXED(EXP(BC$4*-1*'PM2.5 reduction'!BC159),9))","v":0.99999877800000003}]
[null,"Male 25-29",{"$f":"VALUE(FIXED(EXP(C$4*-1*'PM2.5 reduction'!C160),9))","v":0.999986877},{"$f":"VALUE(FIXED(EXP(D$4*-1*'PM2.5 reduction'!D160),9))","v":0.99998936800000005},{"$f":"VALUE(FIXED(EXP(E$4*-1*'PM2.5 reduction'!E160),9))","v":0.99999820299999997},{"$f":"VALUE(FIXED(EXP(F$4*-1*'PM2.5 reduction'!F160),9))","v":0.99999788999999994},{"$f":"VALUE(FIXED(EXP(G$4*-1*'PM2.5 reduction'!G160),9))","v":0.99999926900000002},{"$f":"VALUE(FIXED(EXP(H$4*-1*'PM2.5 reduction'!H160),9))","v":0.99999686499999996},{"$f":"VALUE(FIXED(EXP(I$4*-1*'PM2.5 reduction'!I160),9))","v":0.99999860699999998},{"$f":"VALUE(FIXED(EXP(J$4*-1*'PM2.5 reduction'!J160),9))","v":0.99999656699999995},{"$f":"VALUE(FIXED(EXP(K$4*-1*'PM2.5 reduction'!K160),9))","v":0.99999740599999998},{"$f":"VALUE(FIXED(EXP(L$4*-1*'PM2.5 reduction'!L160),9))","v":0.99999789500000003},{"$f":"VALUE(FIXED(EXP(M$4*-1*'PM2.5 reduction'!M160),9))","v":0.99999789500000003},{"$f":"VALUE(FIXED(EXP(N$4*-1*'PM2.5 reduction'!N160),9))","v":0.99999079700000004},{"$f":"VALUE(FIXED(EXP(O$4*-1*'PM2.5 reduction'!O160),9))","v":0.99999709299999995},{"$f":"VALUE(FIXED(EXP(P$4*-1*'PM2.5 reduction'!P160),9))","v":0.99999307400000004},{"$f":"VALUE(FIXED(EXP(Q$4*-1*'PM2.5 reduction'!Q160),9))","v":0.99999571899999995},{"$f":"VALUE(FIXED(EXP(R$4*-1*'PM2.5 reduction'!R160),9))","v":0.999993833},{"$f":"VALUE(FIXED(EXP(S$4*-1*'PM2.5 reduction'!S160),9))","v":0.99999009900000002},{"$f":"VALUE(FIXED(EXP(T$4*-1*'PM2.5 reduction'!T160),9))","v":0.99998592500000005},{"$f":"VALUE(FIXED(EXP(U$4*-1*'PM2.5 reduction'!U160),9))","v":0.99999876099999996},{"$f":"VALUE(FIXED(EXP(V$4*-1*'PM2.5 reduction'!V160),9))","v":0.99999451800000005},{"$f":"VALUE(FIXED(EXP(W$4*-1*'PM2.5 reduction'!W160),9))","v":0.99999571499999995},{"$f":"VALUE(FIXED(EXP(X$4*-1*'PM2.5 reduction'!X160),9))","v":0.99999571499999995},{"$f":"VALUE(FIXED(EXP(Y$4*-1*'PM2.5 reduction'!Y160),9))","v":0.99999543899999999},{"$f":"VALUE(FIXED(EXP(Z$4*-1*'PM2.5 reduction'!Z160),9))","v":0.99998648800000001},{"$f":"VALUE(FIXED(EXP(AA$4*-1*'PM2.5 reduction'!AA160),9))","v":0.99999028499999998},{"$f":"VALUE(FIXED(EXP(AB$4*-1*'PM2.5 reduction'!AB160),9))","v":0.99999040299999997},{"$f":"VALUE(FIXED(EXP(AC$4*-1*'PM2.5 reduction'!AC160),9))","v":0.99998874000000004},{"$f":"VALUE(FIXED(EXP(AD$4*-1*'PM2.5 reduction'!AD160),9))","v":0.99999856099999995},{"$f":"VALUE(FIXED(EXP(AE$4*-1*'PM2.5 reduction'!AE160),9))","v":0.99999845499999995},{"$f":"VALUE(FIXED(EXP(AF$4*-1*'PM2.5 reduction'!AF160),9))","v":0.99999591399999999},{"$f":"VALUE(FIXED(EXP(AG$4*-1*'PM2.5 reduction'!AG160),9))","v":0.99999845499999995},{"$f":"VALUE(FIXED(EXP(AH$4*-1*'PM2.5 reduction'!AH160),9))","v":0.99999394699999999},{"$f":"VALUE(FIXED(EXP(AI$4*-1*'PM2.5 reduction'!AI160),9))","v":0.99998808400000005},{"$f":"VALUE(FIXED(EXP(AJ$4*-1*'PM2.5 reduction'!AJ160),9))","v":0.99999581400000004},{"$f":"VALUE(FIXED(EXP(AK$4*-1*'PM2.5 reduction'!AK160),9))","v":0.99999770300000002},{"$f":"VALUE(FIXED(EXP(AL$4*-1*'PM2.5 reduction'!AL160),9))","v":0.99999757},{"$f":"VALUE(FIXED(EXP(AM$4*-1*'PM2.5 reduction'!AM160),9))","v":0.99999381099999995},{"$f":"VALUE(FIXED(EXP(AN$4*-1*'PM2.5 reduction'!AN160),9))","v":0.99999831400000005},{"$f":"VALUE(FIXED(EXP(AO$4*-1*'PM2.5 reduction'!AO160),9))","v":0.99999831400000005},{"$f":"VALUE(FIXED(EXP(AP$4*-1*'PM2.5 reduction'!AP160),9))","v":0.99999722000000002},{"$f":"VALUE(FIXED(EXP(AQ$4*-1*'PM2.5 reduction'!AQ160),9))","v":0.99999448899999999},{"$f":"VALUE(FIXED(EXP(AR$4*-1*'PM2.5 reduction'!AR160),9))","v":0.99999132000000002},{"$f":"VALUE(FIXED(EXP(AS$4*-1*'PM2.5 reduction'!AS160),9))","v":0.99999860699999998},{"$f":"VALUE(FIXED(EXP(AT$4*-1*'PM2.5 reduction'!AT160),9))","v":1},{"$f":"VALUE(FIXED(EXP(AU$4*-1*'PM2.5 reduction'!AU160),9))","v":1},{"$f":"VALUE(FIXED(EXP(AV$4*-1*'PM2.5 reduction'!AV160),9))","v":0.99999604900000005},{"$f":"VALUE(FIXED(EXP(AW$4*-1*'PM2.5 reduction'!AW160),9))","v":0.99999409299999997},{"$f":"VALUE(FIXED(EXP(AX$4*-1*'PM2.5 reduction'!AX160),9))","v":0.99999630100000003},{"$f":"VALUE(FIXED(EXP(AY$4*-1*'PM2.5 reduction'!AY160),9))","v":0.99999495800000004},{"$f":"VALUE(FIXED(EXP(AZ$4*-1*'PM2.5 reduction'!AZ160),9))","v":0.99999421799999999},{"$f":"VALUE(FIXED(EXP(BA$4*-1*'PM2.5 reduction'!BA160),9))","v":0.99999463399999999},{"$f":"VALUE(FIXED(EXP(BB$4*-1*'PM2.5 reduction'!BB160),9))","v":0.99999535100000003},{"$f":"VALUE(FIXED(EXP(BC$4*-1*'PM2.5 reduction'!BC160),9))","v":0.99999876099999996}]
[null,"Male 30-34",{"$f":"VALUE(FIXED(EXP(C$4*-1*'PM2.5 reduction'!C161),9))","v":0.99998752899999999},{"$f":"VALUE(FIXED(EXP(D$4*-1*'PM2.5 reduction'!D161),9))","v":0.99999053900000001},{"$f":"VALUE(FIXED(EXP(E$4*-1*'PM2.5 reduction'!E161),9))","v":0.99999825099999995},{"$f":"VALUE(FIXED(EXP(F$4*-1*'PM2.5 reduction'!F161),9))","v":0.99999784199999997},{"$f":"VALUE(FIXED(EXP(G$4*-1*'PM2.5 reduction'!G161),9))","v":0.99999905300000003},{"$f":"VALUE(FIXED(EXP(H$4*-1*'PM2.5 reduction'!H161),9))","v":0.99999688600000003},{"$f":"VALUE(FIXED(EXP(I$4*-1*'PM2.5 reduction'!I161),9))","v":0.99999857199999997},{"$f":"VALUE(FIXED(EXP(J$4*-1*'PM2.5 reduction'!J161),9))","v":0.99999668900000005},{"$f":"VALUE(FIXED(EXP(K$4*-1*'PM2.5 reduction'!K161),9))","v":0.99999691499999999},{"$f":"VALUE(FIXED(EXP(L$4*-1*'PM2.5 reduction'!L161),9))","v":0.99999817999999996},{"$f":"VALUE(FIXED(EXP(M$4*-1*'PM2.5 reduction'!M161),9))","v":0.99999817999999996},{"$f":"VALUE(FIXED(EXP(N$4*-1*'PM2.5 reduction'!N161),9))","v":0.99999156700000003},{"$f":"VALUE(FIXED(EXP(O$4*-1*'PM2.5 reduction'!O161),9))","v":0.99999703299999998},{"$f":"VALUE(FIXED(EXP(P$4*-1*'PM2.5 reduction'!P161),9))","v":0.99999304200000005},{"$f":"VALUE(FIXED(EXP(Q$4*-1*'PM2.5 reduction'!Q161),9))","v":0.99999605400000002},{"$f":"VALUE(FIXED(EXP(R$4*-1*'PM2.5 reduction'!R161),9))","v":0.99999372200000003},{"$f":"VALUE(FIXED(EXP(S$4*-1*'PM2.5 reduction'!S161),9))","v":0.99999086400000003},{"$f":"VALUE(FIXED(EXP(T$4*-1*'PM2.5 reduction'!T161),9))","v":0.99998684100000002},{"$f":"VALUE(FIXED(EXP(U$4*-1*'PM2.5 reduction'!U161),9))","v":0.99999876899999995},{"$f":"VALUE(FIXED(EXP(V$4*-1*'PM2.5 reduction'!V161),9))","v":0.99999433800000004},{"$f":"VALUE(FIXED(EXP(W$4*-1*'PM2.5 reduction'!W161),9))","v":0.99999565099999999},{"$f":"VALUE(FIXED(EXP(X$4*-1*'PM2.5 reduction'!X161),9))","v":0.99999565099999999},{"$f":"VALUE(FIXED(EXP(Y$4*-1*'PM2.5 reduction'!Y161),9))","v":0.99999523000000001},{"$f":"VALUE(FIXED(EXP(Z$4*-1*'PM2.5 reduction'!Z161),9))","v":0.99998769899999995},{"$f":"VALUE(FIXED(EXP(AA$4*-1*'PM2.5 reduction'!AA161),9))","v":0.99999112400000001},{"$f":"VALUE(FIXED(EXP(AB$4*-1*'PM2.5 reduction'!AB161),9))","v":0.99999163800000002},{"$f":"VALUE(FIXED(EXP(AC$4*-1*'PM2.5 reduction'!AC161),9))","v":0.99998965699999998},{"$f":"VALUE(FIXED(EXP(AD$4*-1*'PM2.5 reduction'!AD161),9))","v":0.99999840900000003},{"$f":"VALUE(FIXED(EXP(AE$4*-1*'PM2.5 reduction'!AE161),9))","v":0.99999833599999999},{"$f":"VALUE(FIXED(EXP(AF$4*-1*'PM2.5 reduction'!AF161),9))","v":0.99999595699999999},{"$f":"VALUE(FIXED(EXP(AG$4*-1*'PM2.5 reduction'!AG161),9))","v":0.99999833599999999},{"$f":"VALUE(FIXED(EXP(AH$4*-1*'PM2.5 reduction'!AH161),9))","v":0.99999406499999999},{"$f":"VALUE(FIXED(EXP(AI$4*-1*'PM2.5 reduction'!AI161),9))","v":0.99998897099999995},{"$f":"VALUE(FIXED(EXP(AJ$4*-1*'PM2.5 reduction'!AJ161),9))","v":0.99999586299999998},{"$f":"VALUE(FIXED(EXP(AK$4*-1*'PM2.5 reduction'!AK161),9))","v":0.99999768600000005},{"$f":"VALUE(FIXED(EXP(AL$4*-1*'PM2.5 reduction'!AL161),9))","v":0.99999763600000002},{"$f":"VALUE(FIXED(EXP(AM$4*-1*'PM2.5 reduction'!AM161),9))","v":0.99999380500000001},{"$f":"VALUE(FIXED(EXP(AN$4*-1*'PM2.5 reduction'!AN161),9))","v":0.99999830099999998},{"$f":"VALUE(FIXED(EXP(AO$4*-1*'PM2.5 reduction'!AO161),9))","v":0.99999830099999998},{"$f":"VALUE(FIXED(EXP(AP$4*-1*'PM2.5 reduction'!AP161),9))","v":0.99999713899999998},{"$f":"VALUE(FIXED(EXP(AQ$4*-1*'PM2.5 reduction'!AQ161),9))","v":0.999994461},{"$f":"VALUE(FIXED(EXP(AR$4*-1*'PM2.5 reduction'!AR161),9))","v":0.99999211700000001},{"$f":"VALUE(FIXED(EXP(AS$4*-1*'PM2.5 reduction'!AS161),9))","v":0.99999857199999997},{"$f":"VALUE(FIXED(EXP(AT$4*-1*'PM2.5 reduction'!AT161),9))","v":1},{"$f":"VALUE(FIXED(EXP(AU$4*-1*'PM2.5 reduction'!AU161),9))","v":1},{"$f":"VALUE(FIXED(EXP(AV$4*-1*'PM2.5 reduction'!AV161),9))","v":0.99999607499999998},{"$f":"VALUE(FIXED(EXP(AW$4*-1*'PM2.5 reduction'!AW161),9))","v":0.99999434499999995},{"$f":"VALUE(FIXED(EXP(AX$4*-1*'PM2.5 reduction'!AX161),9))","v":0.99999655399999998},{"$f":"VALUE(FIXED(EXP(AY$4*-1*'PM2.5 reduction'!AY161),9))","v":0.99999532700000004},{"$f":"VALUE(FIXED(EXP(AZ$4*-1*'PM2.5 reduction'!AZ161),9))","v":0.99999501800000001},{"$f":"VALUE(FIXED(EXP(BA$4*-1*'PM2.5 reduction'!BA161),9))","v":0.99999471100000004},{"$f":"VALUE(FIXED(EXP(BB$4*-1*'PM2.5 reduction'!BB161),9))","v":0.99999544299999998},{"$f":"VALUE(FIXED(EXP(BC$4*-1*'PM2.5 reduction'!BC161),9))","v":0.99999876899999995}]
[null,"Male 35-39",{"$f":"VALUE(FIXED(EXP(C$4*-1*'PM2.5 reduction'!C162),9))","v":0.99998836700000004},{"$f":"VALUE(FIXED(EXP(D$4*-1*'PM2.5 reduction'!D162),9))","v":0.99999191300000001},{"$f":"VALUE(FIXED(EXP(E$4*-1*'PM2.5 reduction'!E162),9))","v":0.99999829299999998},{"$f":"VALUE(FIXED(EXP(F$4*-1*'PM2.5 reduction'!F162),9))","v":0.99999788599999995},{"$f":"VALUE(FIXED(EXP(G$4*-1*'PM2.5 reduction'!G162),9))","v":0.99999910400000003},{"$f":"VALUE(FIXED(EXP(H$4*-1*'PM2.5 reduction'!H162),9))","v":0.99999689300000005},{"$f":"VALUE(FIXED(EXP(I$4*-1*'PM2.5 reduction'!I162),9))","v":0.99999863300000003},{"$f":"VALUE(FIXED(EXP(J$4*-1*'PM2.5 reduction'!J162),9))","v":0.99999682300000003},{"$f":"VALUE(FIXED(EXP(K$4*-1*'PM2.5 reduction'!K162),9))","v":0.99999676699999995},{"$f":"VALUE(FIXED(EXP(L$4*-1*'PM2.5 reduction'!L162),9))","v":0.999998214},{"$f":"VALUE(FIXED(EXP(M$4*-1*'PM2.5 reduction'!M162),9))","v":0.999998214},{"$f":"VALUE(FIXED(EXP(N$4*-1*'PM2.5 reduction'!N162),9))","v":0.99999109200000003},{"$f":"VALUE(FIXED(EXP(O$4*-1*'PM2.5 reduction'!O162),9))","v":0.999996942},{"$f":"VALUE(FIXED(EXP(P$4*-1*'PM2.5 reduction'!P162),9))","v":0.99999324899999997},{"$f":"VALUE(FIXED(EXP(Q$4*-1*'PM2.5 reduction'!Q162),9))","v":0.99999632900000002},{"$f":"VALUE(FIXED(EXP(R$4*-1*'PM2.5 reduction'!R162),9))","v":0.99999387299999998},{"$f":"VALUE(FIXED(EXP(S$4*-1*'PM2.5 reduction'!S162),9))","v":0.99999155500000003},{"$f":"VALUE(FIXED(EXP(T$4*-1*'PM2.5 reduction'!T162),9))","v":0.99998707200000003},{"$f":"VALUE(FIXED(EXP(U$4*-1*'PM2.5 reduction'!U162),9))","v":0.99999881800000001},{"$f":"VALUE(FIXED(EXP(V$4*-1*'PM2.5 reduction'!V162),9))","v":0.999994508},{"$f":"VALUE(FIXED(EXP(W$4*-1*'PM2.5 reduction'!W162),9))","v":0.99999555500000004},{"$f":"VALUE(FIXED(EXP(X$4*-1*'PM2.5 reduction'!X162),9))","v":0.99999555500000004},{"$f":"VALUE(FIXED(EXP(Y$4*-1*'PM2.5 reduction'!Y162),9))","v":0.99999524799999995},{"$f":"VALUE(FIXED(EXP(Z$4*-1*'PM2.5 reduction'!Z162),9))","v":0.99998867800000002},{"$f":"VALUE(FIXED(EXP(AA$4*-1*'PM2.5 reduction'!AA162),9))","v":0.999991878},{"$f":"VALUE(FIXED(EXP(AB$4*-1*'PM2.5 reduction'!AB162),9))","v":0.99999296500000001},{"$f":"VALUE(FIXED(EXP(AC$4*-1*'PM2.5 reduction'!AC162),9))","v":0.99999056600000003},{"$f":"VALUE(FIXED(EXP(AD$4*-1*'PM2.5 reduction'!AD162),9))","v":0.99999848700000005},{"$f":"VALUE(FIXED(EXP(AE$4*-1*'PM2.5 reduction'!AE162),9))","v":0.99999841700000003},{"$f":"VALUE(FIXED(EXP(AF$4*-1*'PM2.5 reduction'!AF162),9))","v":0.99999596599999996},{"$f":"VALUE(FIXED(EXP(AG$4*-1*'PM2.5 reduction'!AG162),9))","v":0.99999841700000003},{"$f":"VALUE(FIXED(EXP(AH$4*-1*'PM2.5 reduction'!AH162),9))","v":0.999993998},{"$f":"VALUE(FIXED(EXP(AI$4*-1*'PM2.5 reduction'!AI162),9))","v":0.99998967400000005},{"$f":"VALUE(FIXED(EXP(AJ$4*-1*'PM2.5 reduction'!AJ162),9))","v":0.99999587999999995},{"$f":"VALUE(FIXED(EXP(AK$4*-1*'PM2.5 reduction'!AK162),9))","v":0.99999767399999995},{"$f":"VALUE(FIXED(EXP(AL$4*-1*'PM2.5 reduction'!AL162),9))","v":0.99999772600000003},{"$f":"VALUE(FIXED(EXP(AM$4*-1*'PM2.5 reduction'!AM162),9))","v":0.99999373000000003},{"$f":"VALUE(FIXED(EXP(AN$4*-1*'PM2.5 reduction'!AN162),9))","v":0.99999829900000003},{"$f":"VALUE(FIXED(EXP(AO$4*-1*'PM2.5 reduction'!AO162),9))","v":0.99999829900000003},{"$f":"VALUE(FIXED(EXP(AP$4*-1*'PM2.5 reduction'!AP162),9))","v":0.99999683100000003},{"$f":"VALUE(FIXED(EXP(AQ$4*-1*'PM2.5 reduction'!AQ162),9))","v":0.99999433199999999},{"$f":"VALUE(FIXED(EXP(AR$4*-1*'PM2.5 reduction'!AR162),9))","v":0.99999285800000004},{"$f":"VALUE(FIXED(EXP(AS$4*-1*'PM2.5 reduction'!AS162),9))","v":0.99999863300000003},{"$f":"VALUE(FIXED(EXP(AT$4*-1*'PM2.5 reduction'!AT162),9))","v":1},{"$f":"VALUE(FIXED(EXP(AU$4*-1*'PM2.5 reduction'!AU162),9))","v":1},{"$f":"VALUE(FIXED(EXP(AV$4*-1*'PM2.5 reduction'!AV162),9))","v":0.99999601000000005},{"$f":"VALUE(FIXED(EXP(AW$4*-1*'PM2.5 reduction'!AW162),9))","v":0.99999431900000002},{"$f":"VALUE(FIXED(EXP(AX$4*-1*'PM2.5 reduction'!AX162),9))","v":0.99999685800000004},{"$f":"VALUE(FIXED(EXP(AY$4*-1*'PM2.5 reduction'!AY162),9))","v":0.99999536899999997},{"$f":"VALUE(FIXED(EXP(AZ$4*-1*'PM2.5 reduction'!AZ162),9))","v":0.99999517699999996},{"$f":"VALUE(FIXED(EXP(BA$4*-1*'PM2.5 reduction'!BA162),9))","v":0.99999450400000001},{"$f":"VALUE(FIXED(EXP(BB$4*-1*'PM2.5 reduction'!BB162),9))","v":0.99999543999999996},{"$f":"VALUE(FIXED(EXP(BC$4*-1*'PM2.5 reduction'!BC162),9))","v":0.99999881800000001}]
[null,"Male 40-44",{"$f":"VALUE(FIXED(EXP(C$4*-1*'PM2.5 reduction'!C163),9))","v":0.99998876800000003},{"$f":"VALUE(FIXED(EXP(D$4*-1*'PM2.5 reduction'!D163),9))","v":0.999992828},{"$f":"VALUE(FIXED(EXP(E$4*-1*'PM2.5 reduction'!E163),9))","v":0.99999828000000002},{"$f":"VALUE(FIXED(EXP(F$4*-1*'PM2.5 reduction'!F163),9))","v":0.99999790899999996},{"$f":"VALUE(FIXED(EXP(G$4*-1*'PM2.5 reduction'!G163),9))","v":0.99999910800000003},{"$f":"VALUE(FIXED(EXP(H$4*-1*'PM2.5 reduction'!H163),9))","v":0.99999703100000004},{"$f":"VALUE(FIXED(EXP(I$4*-1*'PM2.5 reduction'!I163),9))","v":0.99999869500000005},{"$f":"VALUE(FIXED(EXP(J$4*-1*'PM2.5 reduction'!J163),9))","v":0.999996938},{"$f":"VALUE(FIXED(EXP(K$4*-1*'PM2.5 reduction'!K163),9))","v":0.99999695700000002},{"$f":"VALUE(FIXED(EXP(L$4*-1*'PM2.5 reduction'!L163),9))","v":0.99999813500000001},{"$f":"VALUE(FIXED(EXP(M$4*-1*'PM2.5 reduction'!M163),9))","v":0.99999813500000001},{"$f":"VALUE(FIXED(EXP(N$4*-1*'PM2.5 reduction'!N163),9))","v":0.99999139000000004},{"$f":"VALUE(FIXED(EXP(O$4*-1*'PM2.5 reduction'!O163),9))","v":0.99999720299999995},{"$f":"VALUE(FIXED(EXP(P$4*-1*'PM2.5 reduction'!P163),9))","v":0.99999312799999995},{"$f":"VALUE(FIXED(EXP(Q$4*-1*'PM2.5 reduction'!Q163),9))","v":0.99999606900000004},{"$f":"VALUE(FIXED(EXP(R$4*-1*'PM2.5 reduction'!R163),9))","v":0.99999406199999996},{"$f":"VALUE(FIXED(EXP(S$4*-1*'PM2.5 reduction'!S163),9))","v":0.99999268299999999},{"$f":"VALUE(FIXED(EXP(T$4*-1*'PM2.5 reduction'!T163),9))","v":0.99998736700000002},{"$f":"VALUE(FIXED(EXP(U$4*-1*'PM2.5 reduction'!U163),9))","v":0.99999876799999998},{"$f":"VALUE(FIXED(EXP(V$4*-1*'PM2.5 reduction'!V163),9))","v":0.99999457300000005},{"$f":"VALUE(FIXED(EXP(W$4*-1*'PM2.5 reduction'!W163),9))","v":0.99999563499999999},{"$f":"VALUE(FIXED(EXP(X$4*-1*'PM2.5 reduction'!X163),9))","v":0.99999563499999999},{"$f":"VALUE(FIXED(EXP(Y$4*-1*'PM2.5 reduction'!Y163),9))","v":0.99999540799999997},{"$f":"VALUE(FIXED(EXP(Z$4*-1*'PM2.5 reduction'!Z163),9))","v":0.99998896999999998},{"$f":"VALUE(FIXED(EXP(AA$4*-1*'PM2.5 reduction'!AA163),9))","v":0.99999253200000005},{"$f":"VALUE(FIXED(EXP(AB$4*-1*'PM2.5 reduction'!AB163),9))","v":0.99999381899999995},{"$f":"VALUE(FIXED(EXP(AC$4*-1*'PM2.5 reduction'!AC163),9))","v":0.99999134599999995},{"$f":"VALUE(FIXED(EXP(AD$4*-1*'PM2.5 reduction'!AD163),9))","v":0.99999853400000005},{"$f":"VALUE(FIXED(EXP(AE$4*-1*'PM2.5 reduction'!AE163),9))","v":0.99999842699999997},{"$f":"VALUE(FIXED(EXP(AF$4*-1*'PM2.5 reduction'!AF163),9))","v":0.99999593200000003},{"$f":"VALUE(FIXED(EXP(AG$4*-1*'PM2.5 reduction'!AG163),9))","v":0.99999842699999997},{"$f":"VALUE(FIXED(EXP(AH$4*-1*'PM2.5 reduction'!AH163),9))","v":0.99999411299999996},{"$f":"VALUE(FIXED(EXP(AI$4*-1*'PM2.5 reduction'!AI163),9))","v":0.99999063300000002},{"$f":"VALUE(FIXED(EXP(AJ$4*-1*'PM2.5 reduction'!AJ163),9))","v":0.99999583700000005},{"$f":"VALUE(FIXED(EXP(AK$4*-1*'PM2.5 reduction'!AK163),9))","v":0.99999774399999997},{"$f":"VALUE(FIXED(EXP(AL$4*-1*'PM2.5 reduction'!AL163),9))","v":0.99999775499999999},{"$f":"VALUE(FIXED(EXP(AM$4*-1*'PM2.5 reduction'!AM163),9))","v":0.99999375899999998},{"$f":"VALUE(FIXED(EXP(AN$4*-1*'PM2.5 reduction'!AN163),9))","v":0.99999828499999999},{"$f":"VALUE(FIXED(EXP(AO$4*-1*'PM2.5 reduction'!AO163),9))","v":0.99999828499999999},{"$f":"VALUE(FIXED(EXP(AP$4*-1*'PM2.5 reduction'!AP163),9))","v":0.99999727199999999},{"$f":"VALUE(FIXED(EXP(AQ$4*-1*'PM2.5 reduction'!AQ163),9))","v":0.99999453800000004},{"$f":"VALUE(FIXED(EXP(AR$4*-1*'PM2.5 reduction'!AR163),9))","v":0.99999362899999999},{"$f":"VALUE(FIXED(EXP(AS$4*-1*'PM2.5 reduction'!AS163),9))","v":0.99999869500000005},{"$f":"VALUE(FIXED(EXP(AT$4*-1*'PM2.5 reduction'!AT163),9))","v":1},{"$f":"VALUE(FIXED(EXP(AU$4*-1*'PM2.5 reduction'!AU163),9))","v":1},{"$f":"VALUE(FIXED(EXP(AV$4*-1*'PM2.5 reduction'!AV163),9))","v":0.99999622899999996},{"$f":"VALUE(FIXED(EXP(AW$4*-1*'PM2.5 reduction'!AW163),9))","v":0.99999457000000003},{"$f":"VALUE(FIXED(EXP(AX$4*-1*'PM2.5 reduction'!AX163),9))","v":0.99999692200000001},{"$f":"VALUE(FIXED(EXP(AY$4*-1*'PM2.5 reduction'!AY163),9))","v":0.99999561800000003},{"$f":"VALUE(FIXED(EXP(AZ$4*-1*'PM2.5 reduction'!AZ163),9))","v":0.99999559699999996},{"$f":"VALUE(FIXED(EXP(BA$4*-1*'PM2.5 reduction'!BA163),9))","v":0.99999461300000003},{"$f":"VALUE(FIXED(EXP(BB$4*-1*'PM2.5 reduction'!BB163),9))","v":0.99999530599999997},{"$f":"VALUE(FIXED(EXP(BC$4*-1*'PM2.5 reduction'!BC163),9))","v":0.99999876799999998}]
[null,"Male 45-49",{"$f":"VALUE(FIXED(EXP(C$4*-1*'PM2.5 reduction'!C164),9))","v":0.99998941799999996},{"$f":"VALUE(FIXED(EXP(D$4*-1*'PM2.5 reduction'!D164),9))","v":0.99999340400000003},{"$f":"VALUE(FIXED(EXP(E$4*-1*'PM2.5 reduction'!E164),9))","v":0.99999834200000004},{"$f":"VALUE(FIXED(EXP(F$4*-1*'PM2.5 reduction'!F164),9))","v":0.99999792300000001},{"$f":"VALUE(FIXED(EXP(G$4*-1*'PM2.5 reduction'!G164),9))","v":0.99999911399999997},{"$f":"VALUE(FIXED(EXP(H$4*-1*'PM2.5 reduction'!H164),9))","v":0.99999708899999995},{"$f":"VALUE(FIXED(EXP(I$4*-1*'PM2.5 reduction'!I164),9))","v":0.999998622},{"$f":"VALUE(FIXED(EXP(J$4*-1*'PM2.5 reduction'!J164),9))","v":0.999997146},{"$f":"VALUE(FIXED(EXP(K$4*-1*'PM2.5 reduction'!K164),9))","v":0.99999702099999999},{"$f":"VALUE(FIXED(EXP(L$4*-1*'PM2.5 reduction'!L164),9))","v":0.99999809299999998},{"$f":"VALUE(FIXED(EXP(M$4*-1*'PM2.5 reduction'!M164),9))","v":0.99999809299999998},{"$f":"VALUE(FIXED(EXP(N$4*-1*'PM2.5 reduction'!N164),9))","v":0.99999144299999998},{"$f":"VALUE(FIXED(EXP(O$4*-1*'PM2.5 reduction'!O164),9))","v":0.999997358},{"$f":"VALUE(FIXED(EXP(P$4*-1*'PM2.5 reduction'!P164),9))","v":0.99999330900000005},{"$f":"VALUE(FIXED(EXP(Q$4*-1*'PM2.5 reduction'!Q164),9))","v":0.99999651300000003},{"$f":"VALUE(FIXED(EXP(R$4*-1*'PM2.5 reduction'!R164),9))","v":0.99999379700000002},{"$f":"VALUE(FIXED(EXP(S$4*-1*'PM2.5 reduction'!S164),9))","v":0.99999356900000003},{"$f":"VALUE(FIXED(EXP(T$4*-1*'PM2.5 reduction'!T164),9))","v":0.99998787099999997},{"$f":"VALUE(FIXED(EXP(U$4*-1*'PM2.5 reduction'!U164),9))","v":0.999998736},{"$f":"VALUE(FIXED(EXP(V$4*-1*'PM2.5 reduction'!V164),9))","v":0.99999449500000004},{"$f":"VALUE(FIXED(EXP(W$4*-1*'PM2.5 reduction'!W164),9))","v":0.99999583299999995},{"$f":"VALUE(FIXED(EXP(X$4*-1*'PM2.5 reduction'!X164),9))","v":0.99999583299999995},{"$f":"VALUE(FIXED(EXP(Y$4*-1*'PM2.5 reduction'!Y164),9))","v":0.99999539999999998},{"$f":"VALUE(FIXED(EXP(Z$4*-1*'PM2.5 reduction'!Z164),9))","v":0.99998935200000005},{"$f":"VALUE(FIXED(EXP(AA$4*-1*'PM2.5 reduction'!AA164),9))","v":0.99999277600000003},{"$f":"VALUE(FIXED(EXP(AB$4*-1*'PM2.5 reduction'!AB164),9))","v":0.99999437999999996},{"$f":"VALUE(FIXED(EXP(AC$4*-1*'PM2.5 reduction'!AC164),9))","v":0.999991717},{"$f":"VALUE(FIXED(EXP(AD$4*-1*'PM2.5 reduction'!AD164),9))","v":0.99999854799999999},{"$f":"VALUE(FIXED(EXP(AE$4*-1*'PM2.5 reduction'!AE164),9))","v":0.99999844000000004},{"$f":"VALUE(FIXED(EXP(AF$4*-1*'PM2.5 reduction'!AF164),9))","v":0.99999592100000001},{"$f":"VALUE(FIXED(EXP(AG$4*-1*'PM2.5 reduction'!AG164),9))","v":0.99999844000000004},{"$f":"VALUE(FIXED(EXP(AH$4*-1*'PM2.5 reduction'!AH164),9))","v":0.99999410399999999},{"$f":"VALUE(FIXED(EXP(AI$4*-1*'PM2.5 reduction'!AI164),9))","v":0.99999162799999997},{"$f":"VALUE(FIXED(EXP(AJ$4*-1*'PM2.5 reduction'!AJ164),9))","v":0.99999581999999998},{"$f":"VALUE(FIXED(EXP(AK$4*-1*'PM2.5 reduction'!AK164),9))","v":0.99999777000000001},{"$f":"VALUE(FIXED(EXP(AL$4*-1*'PM2.5 reduction'!AL164),9))","v":0.99999760599999998},{"$f":"VALUE(FIXED(EXP(AM$4*-1*'PM2.5 reduction'!AM164),9))","v":0.99999374699999999},{"$f":"VALUE(FIXED(EXP(AN$4*-1*'PM2.5 reduction'!AN164),9))","v":0.99999830199999995},{"$f":"VALUE(FIXED(EXP(AO$4*-1*'PM2.5 reduction'!AO164),9))","v":0.99999830199999995},{"$f":"VALUE(FIXED(EXP(AP$4*-1*'PM2.5 reduction'!AP164),9))","v":0.99999745699999998},{"$f":"VALUE(FIXED(EXP(AQ$4*-1*'PM2.5 reduction'!AQ164),9))","v":0.99999470899999998},{"$f":"VALUE(FIXED(EXP(AR$4*-1*'PM2.5 reduction'!AR164),9))","v":0.99999410899999996},{"$f":"VALUE(FIXED(EXP(AS$4*-1*'PM2.5 reduction'!AS164),9))","v":0.999998622},{"$f":"VALUE(FIXED(EXP(AT$4*-1*'PM2.5 reduction'!AT164),9))","v":1},{"$f":"VALUE(FIXED(EXP(AU$4*-1*'PM2.5 reduction'!AU164),9))","v":1},{"$f":"VALUE(FIXED(EXP(AV$4*-1*'PM2.5 reduction'!AV164),9))","v":0.99999627599999996},{"$f":"VALUE(FIXED(EXP(AW$4*-1*'PM2.5 reduction'!AW164),9))","v":0.999994512},{"$f":"VALUE(FIXED(EXP(AX$4*-1*'PM2.5 reduction'!AX164),9))","v":0.99999726700000002},{"$f":"VALUE(FIXED(EXP(AY$4*-1*'PM2.5 reduction'!AY164),9))","v":0.99999581500000001},{"$f":"VALUE(FIXED(EXP(AZ$4*-1*'PM2.5 reduction'!AZ164),9))","v":0.99999579400000005},{"$f":"VALUE(FIXED(EXP(BA$4*-1*'PM2.5 reduction'!BA164),9))","v":0.99999448700000004},{"$f":"VALUE(FIXED(EXP(BB$4*-1*'PM2.5 reduction'!BB164),9))","v":0.99999541400000003},{"$f":"VALUE(FIXED(EXP(BC$4*-1*'PM2.5 reduction'!BC164),9))","v":0.999998736}]
[null,"Male 50-54",{"$f":"VALUE(FIXED(EXP(C$4*-1*'PM2.5 reduction'!C165),9))","v":0.99998995499999999},{"$f":"VALUE(FIXED(EXP(D$4*-1*'PM2.5 reduction'!D165),9))","v":0.99999378699999997},{"$f":"VALUE(FIXED(EXP(E$4*-1*'PM2.5 reduction'!E165),9))","v":0.99999834099999996},{"$f":"VALUE(FIXED(EXP(F$4*-1*'PM2.5 reduction'!F165),9))","v":0.99999790399999999},{"$f":"VALUE(FIXED(EXP(G$4*-1*'PM2.5 reduction'!G165),9))","v":0.99999918200000004},{"$f":"VALUE(FIXED(EXP(H$4*-1*'PM2.5 reduction'!H165),9))","v":0.99999701900000004},{"$f":"VALUE(FIXED(EXP(I$4*-1*'PM2.5 reduction'!I165),9))","v":0.99999865700000001},{"$f":"VALUE(FIXED(EXP(J$4*-1*'PM2.5 reduction'!J165),9))","v":0.99999713800000001},{"$f":"VALUE(FIXED(EXP(K$4*-1*'PM2.5 reduction'!K165),9))","v":0.99999711300000005},{"$f":"VALUE(FIXED(EXP(L$4*-1*'PM2.5 reduction'!L165),9))","v":0.99999810499999997},{"$f":"VALUE(FIXED(EXP(M$4*-1*'PM2.5 reduction'!M165),9))","v":0.99999810499999997},{"$f":"VALUE(FIXED(EXP(N$4*-1*'PM2.5 reduction'!N165),9))","v":0.99999168199999999},{"$f":"VALUE(FIXED(EXP(O$4*-1*'PM2.5 reduction'!O165),9))","v":0.99999715300000003},{"$f":"VALUE(FIXED(EXP(P$4*-1*'PM2.5 reduction'!P165),9))","v":0.99999297499999995},{"$f":"VALUE(FIXED(EXP(Q$4*-1*'PM2.5 reduction'!Q165),9))","v":0.99999623299999996},{"$f":"VALUE(FIXED(EXP(R$4*-1*'PM2.5 reduction'!R165),9))","v":0.99999394600000002},{"$f":"VALUE(FIXED(EXP(S$4*-1*'PM2.5 reduction'!S165),9))","v":0.99999365399999995},{"$f":"VALUE(FIXED(EXP(T$4*-1*'PM2.5 reduction'!T165),9))","v":0.999987933},{"$f":"VALUE(FIXED(EXP(U$4*-1*'PM2.5 reduction'!U165),9))","v":0.99999875800000004},{"$f":"VALUE(FIXED(EXP(V$4*-1*'PM2.5 reduction'!V165),9))","v":0.99999458399999996},{"$f":"VALUE(FIXED(EXP(W$4*-1*'PM2.5 reduction'!W165),9))","v":0.999995831},{"$f":"VALUE(FIXED(EXP(X$4*-1*'PM2.5 reduction'!X165),9))","v":0.999995831},{"$f":"VALUE(FIXED(EXP(Y$4*-1*'PM2.5 reduction'!Y165),9))","v":0.99999542699999999},{"$f":"VALUE(FIXED(EXP(Z$4*-1*'PM2.5 reduction'!Z165),9))","v":0.99999011999999998},{"$f":"VALUE(FIXED(EXP(AA$4*-1*'PM2.5 reduction'!AA165),9))","v":0.999993083},{"$f":"VALUE(FIXED(EXP(AB$4*-1*'PM2.5 reduction'!AB165),9))","v":0.99999459700000004},{"$f":"VALUE(FIXED(EXP(AC$4*-1*'PM2.5 reduction'!AC165),9))","v":0.99999234999999997},{"$f":"VALUE(FIXED(EXP(AD$4*-1*'PM2.5 reduction'!AD165),9))","v":0.99999854799999999},{"$f":"VALUE(FIXED(EXP(AE$4*-1*'PM2.5 reduction'!AE165),9))","v":0.99999840900000003},{"$f":"VALUE(FIXED(EXP(AF$4*-1*'PM2.5 reduction'!AF165),9))","v":0.99999594800000002},{"$f":"VALUE(FIXED(EXP(AG$4*-1*'PM2.5 reduction'!AG165),9))","v":0.99999840900000003},{"$f":"VALUE(FIXED(EXP(AH$4*-1*'PM2.5 reduction'!AH165),9))","v":0.999994049},{"$f":"VALUE(FIXED(EXP(AI$4*-1*'PM2.5 reduction'!AI165),9))","v":0.99999170000000004},{"$f":"VALUE(FIXED(EXP(AJ$4*-1*'PM2.5 reduction'!AJ165),9))","v":0.99999590400000005},{"$f":"VALUE(FIXED(EXP(AK$4*-1*'PM2.5 reduction'!AK165),9))","v":0.99999768600000005},{"$f":"VALUE(FIXED(EXP(AL$4*-1*'PM2.5 reduction'!AL165),9))","v":0.99999766599999995},{"$f":"VALUE(FIXED(EXP(AM$4*-1*'PM2.5 reduction'!AM165),9))","v":0.99999382299999995},{"$f":"VALUE(FIXED(EXP(AN$4*-1*'PM2.5 reduction'!AN165),9))","v":0.99999826400000003},{"$f":"VALUE(FIXED(EXP(AO$4*-1*'PM2.5 reduction'!AO165),9))","v":0.99999826400000003},{"$f":"VALUE(FIXED(EXP(AP$4*-1*'PM2.5 reduction'!AP165),9))","v":0.99999737499999997},{"$f":"VALUE(FIXED(EXP(AQ$4*-1*'PM2.5 reduction'!AQ165),9))","v":0.99999469799999996},{"$f":"VALUE(FIXED(EXP(AR$4*-1*'PM2.5 reduction'!AR165),9))","v":0.99999429200000001},{"$f":"VALUE(FIXED(EXP(AS$4*-1*'PM2.5 reduction'!AS165),9))","v":0.99999865700000001},{"$f":"VALUE(FIXED(EXP(AT$4*-1*'PM2.5 reduction'!AT165),9))","v":1},{"$f":"VALUE(FIXED(EXP(AU$4*-1*'PM2.5 reduction'!AU165),9))","v":1},{"$f":"VALUE(FIXED(EXP(AV$4*-1*'PM2.5 reduction'!AV165),9))","v":0.99999621299999997},{"$f":"VALUE(FIXED(EXP(AW$4*-1*'PM2.5 reduction'!AW165),9))","v":0.99999431000000005},{"$f":"VALUE(FIXED(EXP(AX$4*-1*'PM2.5 reduction'!AX165),9))","v":0.99999716000000005},{"$f":"VALUE(FIXED(EXP(AY$4*-1*'PM2.5 reduction'!AY165),9))","v":0.99999571700000001},{"$f":"VALUE(FIXED(EXP(AZ$4*-1*'PM2.5 reduction'!AZ165),9))","v":0.99999560099999996},{"$f":"VALUE(FIXED(EXP(BA$4*-1*'PM2.5 reduction'!BA165),9))","v":0.99999481400000001},{"$f":"VALUE(FIXED(EXP(BB$4*-1*'PM2.5 reduction'!BB165),9))","v":0.99999541999999997},{"$f":"VALUE(FIXED(EXP(BC$4*-1*'PM2.5 reduction'!BC165),9))","v":0.99999875800000004}]
[null,"Male 55-59",{"$f":"VALUE(FIXED(EXP(C$4*-1*'PM2.5 reduction'!C166),9))","v":0.99998977899999997},{"$f":"VALUE(FIXED(EXP(D$4*-1*'PM2.5 reduction'!D166),9))","v":0.99999374100000005},{"$f":"VALUE(FIXED(EXP(E$4*-1*'PM2.5 reduction'!E166),9))","v":0.99999829900000003},{"$f":"VALUE(FIXED(EXP(F$4*-1*'PM2.5 reduction'!F166),9))","v":0.99999785500000005},{"$f":"VALUE(FIXED(EXP(G$4*-1*'PM2.5 reduction'!G166),9))","v":0.99999905899999997},{"$f":"VALUE(FIXED(EXP(H$4*-1*'PM2.5 reduction'!H166),9))","v":0.99999706700000002},{"$f":"VALUE(FIXED(EXP(I$4*-1*'PM2.5 reduction'!I166),9))","v":0.99999865799999998},{"$f":"VALUE(FIXED(EXP(J$4*-1*'PM2.5 reduction'!J166),9))","v":0.99999730799999997},{"$f":"VALUE(FIXED(EXP(K$4*-1*'PM2.5 reduction'!K166),9))","v":0.99999715},{"$f":"VALUE(FIXED(EXP(L$4*-1*'PM2.5 reduction'!L166),9))","v":0.99999802800000004},{"$f":"VALUE(FIXED(EXP(M$4*-1*'PM2.5 reduction'!M166),9))","v":0.99999802800000004},{"$f":"VALUE(FIXED(EXP(N$4*-1*'PM2.5 reduction'!N166),9))","v":0.99999163599999996},{"$f":"VALUE(FIXED(EXP(O$4*-1*'PM2.5 reduction'!O166),9))","v":0.99999741499999995},{"$f":"VALUE(FIXED(EXP(P$4*-1*'PM2.5 reduction'!P166),9))","v":0.99999272699999997},{"$f":"VALUE(FIXED(EXP(Q$4*-1*'PM2.5 reduction'!Q166),9))","v":0.99999606500000005},{"$f":"VALUE(FIXED(EXP(R$4*-1*'PM2.5 reduction'!R166),9))","v":0.99999362300000005},{"$f":"VALUE(FIXED(EXP(S$4*-1*'PM2.5 reduction'!S166),9))","v":0.99999397599999995},{"$f":"VALUE(FIXED(EXP(T$4*-1*'PM2.5 reduction'!T166),9))","v":0.99998819299999997},{"$f":"VALUE(FIXED(EXP(U$4*-1*'PM2.5 reduction'!U166),9))","v":0.99999876899999995},{"$f":"VALUE(FIXED(EXP(V$4*-1*'PM2.5 reduction'!V166),9))","v":0.99999449100000004},{"$f":"VALUE(FIXED(EXP(W$4*-1*'PM2.5 reduction'!W166),9))","v":0.99999585599999996},{"$f":"VALUE(FIXED(EXP(X$4*-1*'PM2.5 reduction'!X166),9))","v":0.99999585599999996},{"$f":"VALUE(FIXED(EXP(Y$4*-1*'PM2.5 reduction'!Y166),9))","v":0.99999550699999995},{"$f":"VALUE(FIXED(EXP(Z$4*-1*'PM2.5 reduction'!Z166),9))","v":0.99999021899999996},{"$f":"VALUE(FIXED(EXP(AA$4*-1*'PM2.5 reduction'!AA166),9))","v":0.99999312100000004},{"$f":"VALUE(FIXED(EXP(AB$4*-1*'PM2.5 reduction'!AB166),9))","v":0.99999448899999999},{"$f":"VALUE(FIXED(EXP(AC$4*-1*'PM2.5 reduction'!AC166),9))","v":0.99999241800000005},{"$f":"VALUE(FIXED(EXP(AD$4*-1*'PM2.5 reduction'!AD166),9))","v":0.99999849900000004},{"$f":"VALUE(FIXED(EXP(AE$4*-1*'PM2.5 reduction'!AE166),9))","v":0.99999839800000001},{"$f":"VALUE(FIXED(EXP(AF$4*-1*'PM2.5 reduction'!AF166),9))","v":0.99999592800000003},{"$f":"VALUE(FIXED(EXP(AG$4*-1*'PM2.5 reduction'!AG166),9))","v":0.99999839800000001},{"$f":"VALUE(FIXED(EXP(AH$4*-1*'PM2.5 reduction'!AH166),9))","v":0.99999405500000005},{"$f":"VALUE(FIXED(EXP(AI$4*-1*'PM2.5 reduction'!AI166),9))","v":0.99999208900000003},{"$f":"VALUE(FIXED(EXP(AJ$4*-1*'PM2.5 reduction'!AJ166),9))","v":0.999995725},{"$f":"VALUE(FIXED(EXP(AK$4*-1*'PM2.5 reduction'!AK166),9))","v":0.99999756500000003},{"$f":"VALUE(FIXED(EXP(AL$4*-1*'PM2.5 reduction'!AL166),9))","v":0.99999763500000005},{"$f":"VALUE(FIXED(EXP(AM$4*-1*'PM2.5 reduction'!AM166),9))","v":0.99999375499999998},{"$f":"VALUE(FIXED(EXP(AN$4*-1*'PM2.5 reduction'!AN166),9))","v":0.99999823399999999},{"$f":"VALUE(FIXED(EXP(AO$4*-1*'PM2.5 reduction'!AO166),9))","v":0.99999823399999999},{"$f":"VALUE(FIXED(EXP(AP$4*-1*'PM2.5 reduction'!AP166),9))","v":0.99999747000000005},{"$f":"VALUE(FIXED(EXP(AQ$4*-1*'PM2.5 reduction'!AQ166),9))","v":0.999994669},{"$f":"VALUE(FIXED(EXP(AR$4*-1*'PM2.5 reduction'!AR166),9))","v":0.99999438799999996},{"$f":"VALUE(FIXED(EXP(AS$4*-1*'PM2.5 reduction'!AS166),9))","v":0.99999865799999998},{"$f":"VALUE(FIXED(EXP(AT$4*-1*'PM2.5 reduction'!AT166),9))","v":1},{"$f":"VALUE(FIXED(EXP(AU$4*-1*'PM2.5 reduction'!AU166),9))","v":1},{"$f":"VALUE(FIXED(EXP(AV$4*-1*'PM2.5 reduction'!AV166),9))","v":0.99999607800000001},{"$f":"VALUE(FIXED(EXP(AW$4*-1*'PM2.5 reduction'!AW166),9))","v":0.99999435000000003},{"$f":"VALUE(FIXED(EXP(AX$4*-1*'PM2.5 reduction'!AX166),9))","v":0.99999746199999995},{"$f":"VALUE(FIXED(EXP(AY$4*-1*'PM2.5 reduction'!AY166),9))","v":0.99999571300000001},{"$f":"VALUE(FIXED(EXP(AZ$4*-1*'PM2.5 reduction'!AZ166),9))","v":0.99999555299999998},{"$f":"VALUE(FIXED(EXP(BA$4*-1*'PM2.5 reduction'!BA166),9))","v":0.99999475699999996},{"$f":"VALUE(FIXED(EXP(BB$4*-1*'PM2.5 reduction'!BB166),9))","v":0.99999546100000003},{"$f":"VALUE(FIXED(EXP(BC$4*-1*'PM2.5 reduction'!BC166),9))","v":0.99999876899999995}]
[null,"Male 60-64",{"$f":"VALUE(FIXED(EXP(C$4*-1*'PM2.5 reduction'!C167),9))","v":0.999989923},{"$f":"VALUE(FIXED(EXP(D$4*-1*'PM2.5 reduction'!D167),9))","v":0.99999394100000005},{"$f":"VALUE(FIXED(EXP(E$4*-1*'PM2.5 reduction'!E167),9))","v":0.99999831900000002},{"$f":"VALUE(FIXED(EXP(F$4*-1*'PM2.5 reduction'!F167),9))","v":0.99999788999999994},{"$f":"VALUE(FIXED(EXP(G$4*-1*'PM2.5 reduction'!G167),9))","v":0.99999913299999998},{"$f":"VALUE(FIXED(EXP(H$4*-1*'PM2.5 reduction'!H167),9))","v":0.99999704},{"$f":"VALUE(FIXED(EXP(I$4*-1*'PM2.5 reduction'!I167),9))","v":0.99999866500000001},{"$f":"VALUE(FIXED(EXP(J$4*-1*'PM2.5 reduction'!J167),9))","v":0.99999732299999999},{"$f":"VALUE(FIXED(EXP(K$4*-1*'PM2.5 reduction'!K167),9))","v":0.99999696199999999},{"$f":"VALUE(FIXED(EXP(L$4*-1*'PM2.5 reduction'!L167),9))","v":0.99999817499999999},{"$f":"VALUE(FIXED(EXP(M$4*-1*'PM2.5 reduction'!M167),9))","v":0.99999817499999999},{"$f":"VALUE(FIXED(EXP(N$4*-1*'PM2.5 reduction'!N167),9))","v":0.99999174000000002},{"$f":"VALUE(FIXED(EXP(O$4*-1*'PM2.5 reduction'!O167),9))","v":0.99999745299999998},{"$f":"VALUE(FIXED(EXP(P$4*-1*'PM2.5 reduction'!P167),9))","v":0.999992993},{"$f":"VALUE(FIXED(EXP(Q$4*-1*'PM2.5 reduction'!Q167),9))","v":0.99999636700000005},{"$f":"VALUE(FIXED(EXP(R$4*-1*'PM2.5 reduction'!R167),9))","v":0.99999366999999995},{"$f":"VALUE(FIXED(EXP(S$4*-1*'PM2.5 reduction'!S167),9))","v":0.99999409699999997},{"$f":"VALUE(FIXED(EXP(T$4*-1*'PM2.5 reduction'!T167),9))","v":0.99998844600000003},{"$f":"VALUE(FIXED(EXP(U$4*-1*'PM2.5 reduction'!U167),9))","v":0.99999879000000003},{"$f":"VALUE(FIXED(EXP(V$4*-1*'PM2.5 reduction'!V167),9))","v":0.99999470800000001},{"$f":"VALUE(FIXED(EXP(W$4*-1*'PM2.5 reduction'!W167),9))","v":0.99999580600000004},{"$f":"VALUE(FIXED(EXP(X$4*-1*'PM2.5 reduction'!X167),9))","v":0.99999580600000004},{"$f":"VALUE(FIXED(EXP(Y$4*-1*'PM2.5 reduction'!Y167),9))","v":0.99999569600000004},{"$f":"VALUE(FIXED(EXP(Z$4*-1*'PM2.5 reduction'!Z167),9))","v":0.99999031299999996},{"$f":"VALUE(FIXED(EXP(AA$4*-1*'PM2.5 reduction'!AA167),9))","v":0.99999314399999994},{"$f":"VALUE(FIXED(EXP(AB$4*-1*'PM2.5 reduction'!AB167),9))","v":0.999994728},{"$f":"VALUE(FIXED(EXP(AC$4*-1*'PM2.5 reduction'!AC167),9))","v":0.99999236899999999},{"$f":"VALUE(FIXED(EXP(AD$4*-1*'PM2.5 reduction'!AD167),9))","v":0.99999848000000002},{"$f":"VALUE(FIXED(EXP(AE$4*-1*'PM2.5 reduction'!AE167),9))","v":0.99999836399999997},{"$f":"VALUE(FIXED(EXP(AF$4*-1*'PM2.5 reduction'!AF167),9))","v":0.99999589899999997},{"$f":"VALUE(FIXED(EXP(AG$4*-1*'PM2.5 reduction'!AG167),9))","v":0.99999836399999997},{"$f":"VALUE(FIXED(EXP(AH$4*-1*'PM2.5 reduction'!AH167),9))","v":0.99999411400000005},{"$f":"VALUE(FIXED(EXP(AI$4*-1*'PM2.5 reduction'!AI167),9))","v":0.99999224399999997},{"$f":"VALUE(FIXED(EXP(AJ$4*-1*'PM2.5 reduction'!AJ167),9))","v":0.99999570000000004},{"$f":"VALUE(FIXED(EXP(AK$4*-1*'PM2.5 reduction'!AK167),9))","v":0.99999768300000003},{"$f":"VALUE(FIXED(EXP(AL$4*-1*'PM2.5 reduction'!AL167),9))","v":0.99999764099999999},{"$f":"VALUE(FIXED(EXP(AM$4*-1*'PM2.5 reduction'!AM167),9))","v":0.99999373000000003},{"$f":"VALUE(FIXED(EXP(AN$4*-1*'PM2.5 reduction'!AN167),9))","v":0.99999824800000003},{"$f":"VALUE(FIXED(EXP(AO$4*-1*'PM2.5 reduction'!AO167),9))","v":0.99999824800000003},{"$f":"VALUE(FIXED(EXP(AP$4*-1*'PM2.5 reduction'!AP167),9))","v":0.99999737799999999},{"$f":"VALUE(FIXED(EXP(AQ$4*-1*'PM2.5 reduction'!AQ167),9))","v":0.99999455400000004},{"$f":"VALUE(FIXED(EXP(AR$4*-1*'PM2.5 reduction'!AR167),9))","v":0.99999455199999998},{"$f":"VALUE(FIXED(EXP(AS$4*-1*'PM2.5 reduction'!AS167),9))","v":0.99999866500000001},{"$f":"VALUE(FIXED(EXP(AT$4*-1*'PM2.5 reduction'!AT167),9))","v":1},{"$f":"VALUE(FIXED(EXP(AU$4*-1*'PM2.5 reduction'!AU167),9))","v":1},{"$f":"VALUE(FIXED(EXP(AV$4*-1*'PM2.5 reduction'!AV167),9))","v":0.99999614599999997},{"$f":"VALUE(FIXED(EXP(AW$4*-1*'PM2.5 reduction'!AW167),9))","v":0.99999448599999996},{"$f":"VALUE(FIXED(EXP(AX$4*-1*'PM2.5 reduction'!AX167),9))","v":0.99999766199999995},{"$f":"VALUE(FIXED(EXP(AY$4*-1*'PM2.5 reduction'!AY167),9))","v":0.99999576000000001},{"$f":"VALUE(FIXED(EXP(AZ$4*-1*'PM2.5 reduction'!AZ167),9))","v":0.99999571600000003},{"$f":"VALUE(FIXED(EXP(BA$4*-1*'PM2.5 reduction'!BA167),9))","v":0.99999471200000001},{"$f":"VALUE(FIXED(EXP(BB$4*-1*'PM2.5 reduction'!BB167),9))","v":0.99999549899999995},{"$f":"VALUE(FIXED(EXP(BC$4*-1*'PM2.5 reduction'!BC167),9))","v":0.99999879000000003}]
[null,"Male 65-69",{"$f":"VALUE(FIXED(EXP(C$4*-1*'PM2.5 reduction'!C168),9))","v":0.99999062999999999},{"$f":"VALUE(FIXED(EXP(D$4*-1*'PM2.5 reduction'!D168),9))","v":0.99999465899999995},{"$f":"VALUE(FIXED(EXP(E$4*-1*'PM2.5 reduction'!E168),9))","v":0.99999832099999997},{"$f":"VALUE(FIXED(EXP(F$4*-1*'PM2.5 reduction'!F168),9))","v":0.99999795400000002},{"$f":"VALUE(FIXED(EXP(G$4*-1*'PM2.5 reduction'!G168),9))","v":0.99999919999999998},{"$f":"VALUE(FIXED(EXP(H$4*-1*'PM2.5 reduction'!H168),9))","v":0.99999708499999995},{"$f":"VALUE(FIXED(EXP(I$4*-1*'PM2.5 reduction'!I168),9))","v":0.99999865399999999},{"$f":"VALUE(FIXED(EXP(J$4*-1*'PM2.5 reduction'!J168),9))","v":0.99999742000000003},{"$f":"VALUE(FIXED(EXP(K$4*-1*'PM2.5 reduction'!K168),9))","v":0.99999720299999995},{"$f":"VALUE(FIXED(EXP(L$4*-1*'PM2.5 reduction'!L168),9))","v":0.99999825799999997},{"$f":"VALUE(FIXED(EXP(M$4*-1*'PM2.5 reduction'!M168),9))","v":0.99999825799999997},{"$f":"VALUE(FIXED(EXP(N$4*-1*'PM2.5 reduction'!N168),9))","v":0.99999175699999998},{"$f":"VALUE(FIXED(EXP(O$4*-1*'PM2.5 reduction'!O168),9))","v":0.999997421},{"$f":"VALUE(FIXED(EXP(P$4*-1*'PM2.5 reduction'!P168),9))","v":0.99999295099999996},{"$f":"VALUE(FIXED(EXP(Q$4*-1*'PM2.5 reduction'!Q168),9))","v":0.99999622899999996},{"$f":"VALUE(FIXED(EXP(R$4*-1*'PM2.5 reduction'!R168),9))","v":0.99999397899999998},{"$f":"VALUE(FIXED(EXP(S$4*-1*'PM2.5 reduction'!S168),9))","v":0.99999446000000003},{"$f":"VALUE(FIXED(EXP(T$4*-1*'PM2.5 reduction'!T168),9))","v":0.99998896900000001},{"$f":"VALUE(FIXED(EXP(U$4*-1*'PM2.5 reduction'!U168),9))","v":0.99999881300000004},{"$f":"VALUE(FIXED(EXP(V$4*-1*'PM2.5 reduction'!V168),9))","v":0.99999459700000004},{"$f":"VALUE(FIXED(EXP(W$4*-1*'PM2.5 reduction'!W168),9))","v":0.99999589300000002},{"$f":"VALUE(FIXED(EXP(X$4*-1*'PM2.5 reduction'!X168),9))","v":0.99999589300000002},{"$f":"VALUE(FIXED(EXP(Y$4*-1*'PM2.5 reduction'!Y168),9))","v":0.99999563300000005},{"$f":"VALUE(FIXED(EXP(Z$4*-1*'PM2.5 reduction'!Z168),9))","v":0.99999026499999999},{"$f":"VALUE(FIXED(EXP(AA$4*-1*'PM2.5 reduction'!AA168),9))","v":0.99999336500000002},{"$f":"VALUE(FIXED(EXP(AB$4*-1*'PM2.5 reduction'!AB168),9))","v":0.99999528500000001},{"$f":"VALUE(FIXED(EXP(AC$4*-1*'PM2.5 reduction'!AC168),9))","v":0.99999263199999999},{"$f":"VALUE(FIXED(EXP(AD$4*-1*'PM2.5 reduction'!AD168),9))","v":0.999998626},{"$f":"VALUE(FIXED(EXP(AE$4*-1*'PM2.5 reduction'!AE168),9))","v":0.99999852199999995},{"$f":"VALUE(FIXED(EXP(AF$4*-1*'PM2.5 reduction'!AF168),9))","v":0.99999588100000003},{"$f":"VALUE(FIXED(EXP(AG$4*-1*'PM2.5 reduction'!AG168),9))","v":0.99999852199999995},{"$f":"VALUE(FIXED(EXP(AH$4*-1*'PM2.5 reduction'!AH168),9))","v":0.99999423399999998},{"$f":"VALUE(FIXED(EXP(AI$4*-1*'PM2.5 reduction'!AI168),9))","v":0.99999263800000004},{"$f":"VALUE(FIXED(EXP(AJ$4*-1*'PM2.5 reduction'!AJ168),9))","v":0.99999573200000003},{"$f":"VALUE(FIXED(EXP(AK$4*-1*'PM2.5 reduction'!AK168),9))","v":0.99999766400000001},{"$f":"VALUE(FIXED(EXP(AL$4*-1*'PM2.5 reduction'!AL168),9))","v":0.99999757499999997},{"$f":"VALUE(FIXED(EXP(AM$4*-1*'PM2.5 reduction'!AM168),9))","v":0.99999395199999996},{"$f":"VALUE(FIXED(EXP(AN$4*-1*'PM2.5 reduction'!AN168),9))","v":0.99999825600000003},{"$f":"VALUE(FIXED(EXP(AO$4*-1*'PM2.5 reduction'!AO168),9))","v":0.99999825600000003},{"$f":"VALUE(FIXED(EXP(AP$4*-1*'PM2.5 reduction'!AP168),9))","v":0.99999746899999997},{"$f":"VALUE(FIXED(EXP(AQ$4*-1*'PM2.5 reduction'!AQ168),9))","v":0.99999466199999998},{"$f":"VALUE(FIXED(EXP(AR$4*-1*'PM2.5 reduction'!AR168),9))","v":0.99999483600000005},{"$f":"VALUE(FIXED(EXP(AS$4*-1*'PM2.5 reduction'!AS168),9))","v":0.99999865399999999},{"$f":"VALUE(FIXED(EXP(AT$4*-1*'PM2.5 reduction'!AT168),9))","v":1},{"$f":"VALUE(FIXED(EXP(AU$4*-1*'PM2.5 reduction'!AU168),9))","v":1},{"$f":"VALUE(FIXED(EXP(AV$4*-1*'PM2.5 reduction'!AV168),9))","v":0.99999625299999995},{"$f":"VALUE(FIXED(EXP(AW$4*-1*'PM2.5 reduction'!AW168),9))","v":0.99999456399999997},{"$f":"VALUE(FIXED(EXP(AX$4*-1*'PM2.5 reduction'!AX168),9))","v":0.99999762800000003},{"$f":"VALUE(FIXED(EXP(AY$4*-1*'PM2.5 reduction'!AY168),9))","v":0.999995839},{"$f":"VALUE(FIXED(EXP(AZ$4*-1*'PM2.5 reduction'!AZ168),9))","v":0.999995784},{"$f":"VALUE(FIXED(EXP(BA$4*-1*'PM2.5 reduction'!BA168),9))","v":0.99999465300000001},{"$f":"VALUE(FIXED(EXP(BB$4*-1*'PM2.5 reduction'!BB168),9))","v":0.99999562200000003},{"$f":"VALUE(FIXED(EXP(BC$4*-1*'PM2.5 reduction'!BC168),9))","v":0.99999881300000004}]
[null,"Male 70-74",{"$f":"VALUE(FIXED(EXP(C$4*-1*'PM2.5 reduction'!C169),9))","v":0.99999080500000004},{"$f":"VALUE(FIXED(EXP(D$4*-1*'PM2.5 reduction'!D169),9))","v":0.99999497900000001},{"$f":"VALUE(FIXED(EXP(E$4*-1*'PM2.5 reduction'!E169),9))","v":0.99999838799999996},{"$f":"VALUE(FIXED(EXP(F$4*-1*'PM2.5 reduction'!F169),9))","v":0.99999798100000004},{"$f":"VALUE(FIXED(EXP(G$4*-1*'PM2.5 reduction'!G169),9))","v":0.99999917599999999},{"$f":"VALUE(FIXED(EXP(H$4*-1*'PM2.5 reduction'!H169),9))","v":0.99999704},{"$f":"VALUE(FIXED(EXP(I$4*-1*'PM2.5 reduction'!I169),9))","v":0.99999864599999999},{"$f":"VALUE(FIXED(EXP(J$4*-1*'PM2.5 reduction'!J169),9))","v":0.999997731},{"$f":"VALUE(FIXED(EXP(K$4*-1*'PM2.5 reduction'!K169),9))","v":0.99999742599999997},{"$f":"VALUE(FIXED(EXP(L$4*-1*'PM2.5 reduction'!L169),9))","v":0.99999822500000002},{"$f":"VALUE(FIXED(EXP(M$4*-1*'PM2.5 reduction'!M169),9))","v":0.99999822500000002},{"$f":"VALUE(FIXED(EXP(N$4*-1*'PM2.5 reduction'!N169),9))","v":0.99999185800000001},{"$f":"VALUE(FIXED(EXP(O$4*-1*'PM2.5 reduction'!O169),9))","v":0.99999726499999997},{"$f":"VALUE(FIXED(EXP(P$4*-1*'PM2.5 reduction'!P169),9))","v":0.99999269400000002},{"$f":"VALUE(FIXED(EXP(Q$4*-1*'PM2.5 reduction'!Q169),9))","v":0.999996365},{"$f":"VALUE(FIXED(EXP(R$4*-1*'PM2.5 reduction'!R169),9))","v":0.99999395199999996},{"$f":"VALUE(FIXED(EXP(S$4*-1*'PM2.5 reduction'!S169),9))","v":0.99999478200000003},{"$f":"VALUE(FIXED(EXP(T$4*-1*'PM2.5 reduction'!T169),9))","v":0.99998888799999996},{"$f":"VALUE(FIXED(EXP(U$4*-1*'PM2.5 reduction'!U169),9))","v":0.99999873699999997},{"$f":"VALUE(FIXED(EXP(V$4*-1*'PM2.5 reduction'!V169),9))","v":0.99999434700000001},{"$f":"VALUE(FIXED(EXP(W$4*-1*'PM2.5 reduction'!W169),9))","v":0.99999590800000004},{"$f":"VALUE(FIXED(EXP(X$4*-1*'PM2.5 reduction'!X169),9))","v":0.99999590800000004},{"$f":"VALUE(FIXED(EXP(Y$4*-1*'PM2.5 reduction'!Y169),9))","v":0.99999554700000004},{"$f":"VALUE(FIXED(EXP(Z$4*-1*'PM2.5 reduction'!Z169),9))","v":0.99999037599999996},{"$f":"VALUE(FIXED(EXP(AA$4*-1*'PM2.5 reduction'!AA169),9))","v":0.99999346300000003},{"$f":"VALUE(FIXED(EXP(AB$4*-1*'PM2.5 reduction'!AB169),9))","v":0.99999554599999996},{"$f":"VALUE(FIXED(EXP(AC$4*-1*'PM2.5 reduction'!AC169),9))","v":0.99999280599999996},{"$f":"VALUE(FIXED(EXP(AD$4*-1*'PM2.5 reduction'!AD169),9))","v":0.99999859300000005},{"$f":"VALUE(FIXED(EXP(AE$4*-1*'PM2.5 reduction'!AE169),9))","v":0.99999849299999999},{"$f":"VALUE(FIXED(EXP(AF$4*-1*'PM2.5 reduction'!AF169),9))","v":0.99999586200000001},{"$f":"VALUE(FIXED(EXP(AG$4*-1*'PM2.5 reduction'!AG169),9))","v":0.99999849299999999},{"$f":"VALUE(FIXED(EXP(AH$4*-1*'PM2.5 reduction'!AH169),9))","v":0.99999426899999999},{"$f":"VALUE(FIXED(EXP(AI$4*-1*'PM2.5 reduction'!AI169),9))","v":0.99999307000000004},{"$f":"VALUE(FIXED(EXP(AJ$4*-1*'PM2.5 reduction'!AJ169),9))","v":0.999995788},{"$f":"VALUE(FIXED(EXP(AK$4*-1*'PM2.5 reduction'!AK169),9))","v":0.99999763799999997},{"$f":"VALUE(FIXED(EXP(AL$4*-1*'PM2.5 reduction'!AL169),9))","v":0.99999757},{"$f":"VALUE(FIXED(EXP(AM$4*-1*'PM2.5 reduction'!AM169),9))","v":0.99999402299999995},{"$f":"VALUE(FIXED(EXP(AN$4*-1*'PM2.5 reduction'!AN169),9))","v":0.99999828199999996},{"$f":"VALUE(FIXED(EXP(AO$4*-1*'PM2.5 reduction'!AO169),9))","v":0.99999828199999996},{"$f":"VALUE(FIXED(EXP(AP$4*-1*'PM2.5 reduction'!AP169),9))","v":0.99999753499999999},{"$f":"VALUE(FIXED(EXP(AQ$4*-1*'PM2.5 reduction'!AQ169),9))","v":0.999994877},{"$f":"VALUE(FIXED(EXP(AR$4*-1*'PM2.5 reduction'!AR169),9))","v":0.99999499700000005},{"$f":"VALUE(FIXED(EXP(AS$4*-1*'PM2.5 reduction'!AS169),9))","v":0.99999864599999999},{"$f":"VALUE(FIXED(EXP(AT$4*-1*'PM2.5 reduction'!AT169),9))","v":1},{"$f":"VALUE(FIXED(EXP(AU$4*-1*'PM2.5 reduction'!AU169),9))","v":1},{"$f":"VALUE(FIXED(EXP(AV$4*-1*'PM2.5 reduction'!AV169),9))","v":0.99999632800000005},{"$f":"VALUE(FIXED(EXP(AW$4*-1*'PM2.5 reduction'!AW169),9))","v":0.99999454099999996},{"$f":"VALUE(FIXED(EXP(AX$4*-1*'PM2.5 reduction'!AX169),9))","v":0.99999802500000001},{"$f":"VALUE(FIXED(EXP(AY$4*-1*'PM2.5 reduction'!AY169),9))","v":0.99999590699999996},{"$f":"VALUE(FIXED(EXP(AZ$4*-1*'PM2.5 reduction'!AZ169),9))","v":0.99999590699999996},{"$f":"VALUE(FIXED(EXP(BA$4*-1*'PM2.5 reduction'!BA169),9))","v":0.99999444400000004},{"$f":"VALUE(FIXED(EXP(BB$4*-1*'PM2.5 reduction'!BB169),9))","v":0.99999567099999997},{"$f":"VALUE(FIXED(EXP(BC$4*-1*'PM2.5 reduction'!BC169),9))","v":0.99999873699999997}]
[null,"Male 75-79",{"$f":"VALUE(FIXED(EXP(C$4*-1*'PM2.5 reduction'!C170),9))","v":0.99999192100000001},{"$f":"VALUE(FIXED(EXP(D$4*-1*'PM2.5 reduction'!D170),9))","v":0.99999523499999998},{"$f":"VALUE(FIXED(EXP(E$4*-1*'PM2.5 reduction'!E170),9))","v":0.99999835699999995},{"$f":"VALUE(FIXED(EXP(F$4*-1*'PM2.5 reduction'!F170),9))","v":0.99999799499999997},{"$f":"VALUE(FIXED(EXP(G$4*-1*'PM2.5 reduction'!G170),9))","v":0.99999916600000005},{"$f":"VALUE(FIXED(EXP(H$4*-1*'PM2.5 reduction'!H170),9))","v":0.99999687000000004},{"$f":"VALUE(FIXED(EXP(I$4*-1*'PM2.5 reduction'!I170),9))","v":0.99999866500000001},{"$f":"VALUE(FIXED(EXP(J$4*-1*'PM2.5 reduction'!J170),9))","v":0.99999749500000001},{"$f":"VALUE(FIXED(EXP(K$4*-1*'PM2.5 reduction'!K170),9))","v":0.99999687500000001},{"$f":"VALUE(FIXED(EXP(L$4*-1*'PM2.5 reduction'!L170),9))","v":0.99999837800000002},{"$f":"VALUE(FIXED(EXP(M$4*-1*'PM2.5 reduction'!M170),9))","v":0.99999837800000002},{"$f":"VALUE(FIXED(EXP(N$4*-1*'PM2.5 reduction'!N170),9))","v":0.99999184900000004},{"$f":"VALUE(FIXED(EXP(O$4*-1*'PM2.5 reduction'!O170),9))","v":0.99999707500000001},{"$f":"VALUE(FIXED(EXP(P$4*-1*'PM2.5 reduction'!P170),9))","v":0.99999317200000004},{"$f":"VALUE(FIXED(EXP(Q$4*-1*'PM2.5 reduction'!Q170),9))","v":0.99999669400000002},{"$f":"VALUE(FIXED(EXP(R$4*-1*'PM2.5 reduction'!R170),9))","v":0.99999389299999997},{"$f":"VALUE(FIXED(EXP(S$4*-1*'PM2.5 reduction'!S170),9))","v":0.99999484000000005},{"$f":"VALUE(FIXED(EXP(T$4*-1*'PM2.5 reduction'!T170),9))","v":0.99998928799999998},{"$f":"VALUE(FIXED(EXP(U$4*-1*'PM2.5 reduction'!U170),9))","v":0.99999874300000002},{"$f":"VALUE(FIXED(EXP(V$4*-1*'PM2.5 reduction'!V170),9))","v":0.99999428199999996},{"$f":"VALUE(FIXED(EXP(W$4*-1*'PM2.5 reduction'!W170),9))","v":0.99999595600000002},{"$f":"VALUE(FIXED(EXP(X$4*-1*'PM2.5 reduction'!X170),9))","v":0.99999595600000002},{"$f":"VALUE(FIXED(EXP(Y$4*-1*'PM2.5 reduction'!Y170),9))","v":0.99999548199999999},{"$f":"VALUE(FIXED(EXP(Z$4*-1*'PM2.5 reduction'!Z170),9))","v":0.99999000500000002},{"$f":"VALUE(FIXED(EXP(AA$4*-1*'PM2.5 reduction'!AA170),9))","v":0.99999331199999997},{"$f":"VALUE(FIXED(EXP(AB$4*-1*'PM2.5 reduction'!AB170),9))","v":0.99999580300000002},{"$f":"VALUE(FIXED(EXP(AC$4*-1*'PM2.5 reduction'!AC170),9))","v":0.999992565},{"$f":"VALUE(FIXED(EXP(AD$4*-1*'PM2.5 reduction'!AD170),9))","v":0.99999849200000002},{"$f":"VALUE(FIXED(EXP(AE$4*-1*'PM2.5 reduction'!AE170),9))","v":0.99999837899999999},{"$f":"VALUE(FIXED(EXP(AF$4*-1*'PM2.5 reduction'!AF170),9))","v":0.999995839},{"$f":"VALUE(FIXED(EXP(AG$4*-1*'PM2.5 reduction'!AG170),9))","v":0.99999837899999999},{"$f":"VALUE(FIXED(EXP(AH$4*-1*'PM2.5 reduction'!AH170),9))","v":0.99999412200000004},{"$f":"VALUE(FIXED(EXP(AI$4*-1*'PM2.5 reduction'!AI170),9))","v":0.99999312799999995},{"$f":"VALUE(FIXED(EXP(AJ$4*-1*'PM2.5 reduction'!AJ170),9))","v":0.99999580799999999},{"$f":"VALUE(FIXED(EXP(AK$4*-1*'PM2.5 reduction'!AK170),9))","v":0.99999754200000002},{"$f":"VALUE(FIXED(EXP(AL$4*-1*'PM2.5 reduction'!AL170),9))","v":0.99999758900000002},{"$f":"VALUE(FIXED(EXP(AM$4*-1*'PM2.5 reduction'!AM170),9))","v":0.99999375199999996},{"$f":"VALUE(FIXED(EXP(AN$4*-1*'PM2.5 reduction'!AN170),9))","v":0.99999831400000005},{"$f":"VALUE(FIXED(EXP(AO$4*-1*'PM2.5 reduction'!AO170),9))","v":0.99999831400000005},{"$f":"VALUE(FIXED(EXP(AP$4*-1*'PM2.5 reduction'!AP170),9))","v":0.99999792099999996},{"$f":"VALUE(FIXED(EXP(AQ$4*-1*'PM2.5 reduction'!AQ170),9))","v":0.99999475299999996},{"$f":"VALUE(FIXED(EXP(AR$4*-1*'PM2.5 reduction'!AR170),9))","v":0.999994983},{"$f":"VALUE(FIXED(EXP(AS$4*-1*'PM2.5 reduction'!AS170),9))","v":0.99999866500000001},{"$f":"VALUE(FIXED(EXP(AT$4*-1*'PM2.5 reduction'!AT170),9))","v":1},{"$f":"VALUE(FIXED(EXP(AU$4*-1*'PM2.5 reduction'!AU170),9))","v":1},{"$f":"VALUE(FIXED(EXP(AV$4*-1*'PM2.5 reduction'!AV170),9))","v":0.99999605800000002},{"$f":"VALUE(FIXED(EXP(AW$4*-1*'PM2.5 reduction'!AW170),9))","v":0.99999446800000003},{"$f":"VALUE(FIXED(EXP(AX$4*-1*'PM2.5 reduction'!AX170),9))","v":0.99999799099999997},{"$f":"VALUE(FIXED(EXP(AY$4*-1*'PM2.5 reduction'!AY170),9))","v":0.99999591399999999},{"$f":"VALUE(FIXED(EXP(AZ$4*-1*'PM2.5 reduction'!AZ170),9))","v":0.99999587300000004},{"$f":"VALUE(FIXED(EXP(BA$4*-1*'PM2.5 reduction'!BA170),9))","v":0.99999452},{"$f":"VALUE(FIXED(EXP(BB$4*-1*'PM2.5 reduction'!BB170),9))","v":0.99999564799999996},{"$f":"VALUE(FIXED(EXP(BC$4*-1*'PM2.5 reduction'!BC170),9))","v":0.99999874300000002}]
[null,"Male 80-84",{"$f":"VALUE(FIXED(EXP(C$4*-1*'PM2.5 reduction'!C171),9))","v":0.99999183300000005},{"$f":"VALUE(FIXED(EXP(D$4*-1*'PM2.5 reduction'!D171),9))","v":0.99999503999999995},{"$f":"VALUE(FIXED(EXP(E$4*-1*'PM2.5 reduction'!E171),9))","v":0.99999823499999996},{"$f":"VALUE(FIXED(EXP(F$4*-1*'PM2.5 reduction'!F171),9))","v":0.99999796100000005},{"$f":"VALUE(FIXED(EXP(G$4*-1*'PM2.5 reduction'!G171),9))","v":0.99999932499999999},{"$f":"VALUE(FIXED(EXP(H$4*-1*'PM2.5 reduction'!H171),9))","v":0.99999709699999995},{"$f":"VALUE(FIXED(EXP(I$4*-1*'PM2.5 reduction'!I171),9))","v":0.999998634},{"$f":"VALUE(FIXED(EXP(J$4*-1*'PM2.5 reduction'!J171),9))","v":0.99999762999999997},{"$f":"VALUE(FIXED(EXP(K$4*-1*'PM2.5 reduction'!K171),9))","v":0.99999687000000004},{"$f":"VALUE(FIXED(EXP(L$4*-1*'PM2.5 reduction'!L171),9))","v":0.99999835599999998},{"$f":"VALUE(FIXED(EXP(M$4*-1*'PM2.5 reduction'!M171),9))","v":0.99999835599999998},{"$f":"VALUE(FIXED(EXP(N$4*-1*'PM2.5 reduction'!N171),9))","v":0.99999168299999996},{"$f":"VALUE(FIXED(EXP(O$4*-1*'PM2.5 reduction'!O171),9))","v":0.99999750600000004},{"$f":"VALUE(FIXED(EXP(P$4*-1*'PM2.5 reduction'!P171),9))","v":0.999992938},{"$f":"VALUE(FIXED(EXP(Q$4*-1*'PM2.5 reduction'!Q171),9))","v":0.999996722},{"$f":"VALUE(FIXED(EXP(R$4*-1*'PM2.5 reduction'!R171),9))","v":0.99999405799999996},{"$f":"VALUE(FIXED(EXP(S$4*-1*'PM2.5 reduction'!S171),9))","v":0.99999460900000003},{"$f":"VALUE(FIXED(EXP(T$4*-1*'PM2.5 reduction'!T171),9))","v":0.999989515},{"$f":"VALUE(FIXED(EXP(U$4*-1*'PM2.5 reduction'!U171),9))","v":0.99999874},{"$f":"VALUE(FIXED(EXP(V$4*-1*'PM2.5 reduction'!V171),9))","v":0.99999430899999997},{"$f":"VALUE(FIXED(EXP(W$4*-1*'PM2.5 reduction'!W171),9))","v":0.99999585499999999},{"$f":"VALUE(FIXED(EXP(X$4*-1*'PM2.5 reduction'!X171),9))","v":0.99999585499999999},{"$f":"VALUE(FIXED(EXP(Y$4*-1*'PM2.5 reduction'!Y171),9))","v":0.99999571899999995},{"$f":"VALUE(FIXED(EXP(Z$4*-1*'PM2.5 reduction'!Z171),9))","v":0.99999027299999999},{"$f":"VALUE(FIXED(EXP(AA$4*-1*'PM2.5 reduction'!AA171),9))","v":0.99999336400000005},{"$f":"VALUE(FIXED(EXP(AB$4*-1*'PM2.5 reduction'!AB171),9))","v":0.99999557400000005},{"$f":"VALUE(FIXED(EXP(AC$4*-1*'PM2.5 reduction'!AC171),9))","v":0.99999270100000004},{"$f":"VALUE(FIXED(EXP(AD$4*-1*'PM2.5 reduction'!AD171),9))","v":0.99999865099999996},{"$f":"VALUE(FIXED(EXP(AE$4*-1*'PM2.5 reduction'!AE171),9))","v":0.99999849900000004},{"$f":"VALUE(FIXED(EXP(AF$4*-1*'PM2.5 reduction'!AF171),9))","v":0.99999576800000001},{"$f":"VALUE(FIXED(EXP(AG$4*-1*'PM2.5 reduction'!AG171),9))","v":0.99999849900000004},{"$f":"VALUE(FIXED(EXP(AH$4*-1*'PM2.5 reduction'!AH171),9))","v":0.99999417000000002},{"$f":"VALUE(FIXED(EXP(AI$4*-1*'PM2.5 reduction'!AI171),9))","v":0.99999286799999998},{"$f":"VALUE(FIXED(EXP(AJ$4*-1*'PM2.5 reduction'!AJ171),9))","v":0.99999561599999998},{"$f":"VALUE(FIXED(EXP(AK$4*-1*'PM2.5 reduction'!AK171),9))","v":0.99999749699999996},{"$f":"VALUE(FIXED(EXP(AL$4*-1*'PM2.5 reduction'!AL171),9))","v":0.99999759899999996},{"$f":"VALUE(FIXED(EXP(AM$4*-1*'PM2.5 reduction'!AM171),9))","v":0.99999404000000003},{"$f":"VALUE(FIXED(EXP(AN$4*-1*'PM2.5 reduction'!AN171),9))","v":0.99999833800000004},{"$f":"VALUE(FIXED(EXP(AO$4*-1*'PM2.5 reduction'!AO171),9))","v":0.99999833800000004},{"$f":"VALUE(FIXED(EXP(AP$4*-1*'PM2.5 reduction'!AP171),9))","v":0.99999742300000005},{"$f":"VALUE(FIXED(EXP(AQ$4*-1*'PM2.5 reduction'!AQ171),9))","v":0.99999475999999998},{"$f":"VALUE(FIXED(EXP(AR$4*-1*'PM2.5 reduction'!AR171),9))","v":0.99999493699999997},{"$f":"VALUE(FIXED(EXP(AS$4*-1*'PM2.5 reduction'!AS171),9))","v":0.999998634},{"$f":"VALUE(FIXED(EXP(AT$4*-1*'PM2.5 reduction'!AT171),9))","v":1},{"$f":"VALUE(FIXED(EXP(AU$4*-1*'PM2.5 reduction'!AU171),9))","v":1},{"$f":"VALUE(FIXED(EXP(AV$4*-1*'PM2.5 reduction'!AV171),9))","v":0.99999617299999999},{"$f":"VALUE(FIXED(EXP(AW$4*-1*'PM2.5 reduction'!AW171),9))","v":0.99999428300000004},{"$f":"VALUE(FIXED(EXP(AX$4*-1*'PM2.5 reduction'!AX171),9))","v":0.99999808700000004},{"$f":"VALUE(FIXED(EXP(AY$4*-1*'PM2.5 reduction'!AY171),9))","v":0.99999574599999996},{"$f":"VALUE(FIXED(EXP(AZ$4*-1*'PM2.5 reduction'!AZ171),9))","v":0.99999564600000002},{"$f":"VALUE(FIXED(EXP(BA$4*-1*'PM2.5 reduction'!BA171),9))","v":0.999994524},{"$f":"VALUE(FIXED(EXP(BB$4*-1*'PM2.5 reduction'!BB171),9))","v":0.99999582499999995},{"$f":"VALUE(FIXED(EXP(BC$4*-1*'PM2.5 reduction'!BC171),9))","v":0.99999874}]
[null,"Male 85-89",{"$f":"VALUE(FIXED(EXP(C$4*-1*'PM2.5 reduction'!C172),9))","v":0.99999084500000002},{"$f":"VALUE(FIXED(EXP(D$4*-1*'PM2.5 reduction'!D172),9))","v":0.99999471100000004},{"$f":"VALUE(FIXED(EXP(E$4*-1*'PM2.5 reduction'!E172),9))","v":0.99999831500000003},{"$f":"VALUE(FIXED(EXP(F$4*-1*'PM2.5 reduction'!F172),9))","v":0.999997778},{"$f":"VALUE(FIXED(EXP(G$4*-1*'PM2.5 reduction'!G172),9))","v":0.99999940799999998},{"$f":"VALUE(FIXED(EXP(H$4*-1*'PM2.5 reduction'!H172),9))","v":0.99999700400000002},{"$f":"VALUE(FIXED(EXP(I$4*-1*'PM2.5 reduction'!I172),9))","v":0.99999869299999999},{"$f":"VALUE(FIXED(EXP(J$4*-1*'PM2.5 reduction'!J172),9))","v":0.99999772899999995},{"$f":"VALUE(FIXED(EXP(K$4*-1*'PM2.5 reduction'!K172),9))","v":0.99999709800000003},{"$f":"VALUE(FIXED(EXP(L$4*-1*'PM2.5 reduction'!L172),9))","v":0.99999842299999997},{"$f":"VALUE(FIXED(EXP(M$4*-1*'PM2.5 reduction'!M172),9))","v":0.99999842299999997},{"$f":"VALUE(FIXED(EXP(N$4*-1*'PM2.5 reduction'!N172),9))","v":0.99999163000000002},{"$f":"VALUE(FIXED(EXP(O$4*-1*'PM2.5 reduction'!O172),9))","v":0.99999737399999999},{"$f":"VALUE(FIXED(EXP(P$4*-1*'PM2.5 reduction'!P172),9))","v":0.99999288900000005},{"$f":"VALUE(FIXED(EXP(Q$4*-1*'PM2.5 reduction'!Q172),9))","v":0.99999663800000005},{"$f":"VALUE(FIXED(EXP(R$4*-1*'PM2.5 reduction'!R172),9))","v":0.99999360999999998},{"$f":"VALUE(FIXED(EXP(S$4*-1*'PM2.5 reduction'!S172),9))","v":0.99999452700000002},{"$f":"VALUE(FIXED(EXP(T$4*-1*'PM2.5 reduction'!T172),9))","v":0.999989087},{"$f":"VALUE(FIXED(EXP(U$4*-1*'PM2.5 reduction'!U172),9))","v":0.99999867799999997},{"$f":"VALUE(FIXED(EXP(V$4*-1*'PM2.5 reduction'!V172),9))","v":0.99999438600000001},{"$f":"VALUE(FIXED(EXP(W$4*-1*'PM2.5 reduction'!W172),9))","v":0.99999581599999998},{"$f":"VALUE(FIXED(EXP(X$4*-1*'PM2.5 reduction'!X172),9))","v":0.99999581599999998},{"$f":"VALUE(FIXED(EXP(Y$4*-1*'PM2.5 reduction'!Y172),9))","v":0.99999555500000004},{"$f":"VALUE(FIXED(EXP(Z$4*-1*'PM2.5 reduction'!Z172),9))","v":0.99999011299999996},{"$f":"VALUE(FIXED(EXP(AA$4*-1*'PM2.5 reduction'!AA172),9))","v":0.99999333700000004},{"$f":"VALUE(FIXED(EXP(AB$4*-1*'PM2.5 reduction'!AB172),9))","v":0.99999532800000002},{"$f":"VALUE(FIXED(EXP(AC$4*-1*'PM2.5 reduction'!AC172),9))","v":0.999992785},{"$f":"VALUE(FIXED(EXP(AD$4*-1*'PM2.5 reduction'!AD172),9))","v":0.99999867200000003},{"$f":"VALUE(FIXED(EXP(AE$4*-1*'PM2.5 reduction'!AE172),9))","v":0.99999855000000004},{"$f":"VALUE(FIXED(EXP(AF$4*-1*'PM2.5 reduction'!AF172),9))","v":0.99999565499999998},{"$f":"VALUE(FIXED(EXP(AG$4*-1*'PM2.5 reduction'!AG172),9))","v":0.99999855000000004},{"$f":"VALUE(FIXED(EXP(AH$4*-1*'PM2.5 reduction'!AH172),9))","v":0.99999400199999999},{"$f":"VALUE(FIXED(EXP(AI$4*-1*'PM2.5 reduction'!AI172),9))","v":0.99999267199999997},{"$f":"VALUE(FIXED(EXP(AJ$4*-1*'PM2.5 reduction'!AJ172),9))","v":0.99999599299999997},{"$f":"VALUE(FIXED(EXP(AK$4*-1*'PM2.5 reduction'!AK172),9))","v":0.99999715499999997},{"$f":"VALUE(FIXED(EXP(AL$4*-1*'PM2.5 reduction'!AL172),9))","v":0.99999761399999998},{"$f":"VALUE(FIXED(EXP(AM$4*-1*'PM2.5 reduction'!AM172),9))","v":0.99999380199999999},{"$f":"VALUE(FIXED(EXP(AN$4*-1*'PM2.5 reduction'!AN172),9))","v":0.99999826800000002},{"$f":"VALUE(FIXED(EXP(AO$4*-1*'PM2.5 reduction'!AO172),9))","v":0.99999826800000002},{"$f":"VALUE(FIXED(EXP(AP$4*-1*'PM2.5 reduction'!AP172),9))","v":0.999997574},{"$f":"VALUE(FIXED(EXP(AQ$4*-1*'PM2.5 reduction'!AQ172),9))","v":0.99999458399999996},{"$f":"VALUE(FIXED(EXP(AR$4*-1*'PM2.5 reduction'!AR172),9))","v":0.999994826},{"$f":"VALUE(FIXED(EXP(AS$4*-1*'PM2.5 reduction'!AS172),9))","v":0.99999869299999999},{"$f":"VALUE(FIXED(EXP(AT$4*-1*'PM2.5 reduction'!AT172),9))","v":1},{"$f":"VALUE(FIXED(EXP(AU$4*-1*'PM2.5 reduction'!AU172),9))","v":1},{"$f":"VALUE(FIXED(EXP(AV$4*-1*'PM2.5 reduction'!AV172),9))","v":0.99999612299999996},{"$f":"VALUE(FIXED(EXP(AW$4*-1*'PM2.5 reduction'!AW172),9))","v":0.99999415899999999},{"$f":"VALUE(FIXED(EXP(AX$4*-1*'PM2.5 reduction'!AX172),9))","v":0.99999818600000001},{"$f":"VALUE(FIXED(EXP(AY$4*-1*'PM2.5 reduction'!AY172),9))","v":0.99999554400000001},{"$f":"VALUE(FIXED(EXP(AZ$4*-1*'PM2.5 reduction'!AZ172),9))","v":0.99999532999999996},{"$f":"VALUE(FIXED(EXP(BA$4*-1*'PM2.5 reduction'!BA172),9))","v":0.99999472899999997},{"$f":"VALUE(FIXED(EXP(BB$4*-1*'PM2.5 reduction'!BB172),9))","v":0.99999541300000006},{"$f":"VALUE(FIXED(EXP(BC$4*-1*'PM2.5 reduction'!BC172),9))","v":0.99999867799999997}]
[null,"Male 90+",{"$f":"VALUE(FIXED(EXP(C$4*-1*'PM2.5 reduction'!C173),9))","v":0.999991729},{"$f":"VALUE(FIXED(EXP(D$4*-1*'PM2.5 reduction'!D173),9))","v":0.99999527700000002},{"$f":"VALUE(FIXED(EXP(E$4*-1*'PM2.5 reduction'!E173),9))","v":0.99999831900000002},{"$f":"VALUE(FIXED(EXP(F$4*-1*'PM2.5 reduction'!F173),9))","v":0.99999779300000002},{"$f":"VALUE(FIXED(EXP(G$4*-1*'PM2.5 reduction'!G173),9))","v":0.99999934599999996},{"$f":"VALUE(FIXED(EXP(H$4*-1*'PM2.5 reduction'!H173),9))","v":0.99999695},{"$f":"VALUE(FIXED(EXP(I$4*-1*'PM2.5 reduction'!I173),9))","v":0.99999869500000005},{"$f":"VALUE(FIXED(EXP(J$4*-1*'PM2.5 reduction'!J173),9))","v":0.99999733800000001},{"$f":"VALUE(FIXED(EXP(K$4*-1*'PM2.5 reduction'!K173),9))","v":0.99999654199999999},{"$f":"VALUE(FIXED(EXP(L$4*-1*'PM2.5 reduction'!L173),9))","v":0.99999828499999999},{"$f":"VALUE(FIXED(EXP(M$4*-1*'PM2.5 reduction'!M173),9))","v":0.99999828499999999},{"$f":"VALUE(FIXED(EXP(N$4*-1*'PM2.5 reduction'!N173),9))","v":0.99999240599999994},{"$f":"VALUE(FIXED(EXP(O$4*-1*'PM2.5 reduction'!O173),9))","v":0.99999723399999996},{"$f":"VALUE(FIXED(EXP(P$4*-1*'PM2.5 reduction'!P173),9))","v":0.999993189},{"$f":"VALUE(FIXED(EXP(Q$4*-1*'PM2.5 reduction'!Q173),9))","v":0.99999691599999996},{"$f":"VALUE(FIXED(EXP(R$4*-1*'PM2.5 reduction'!R173),9))","v":0.99999351800000003},{"$f":"VALUE(FIXED(EXP(S$4*-1*'PM2.5 reduction'!S173),9))","v":0.99999444000000004},{"$f":"VALUE(FIXED(EXP(T$4*-1*'PM2.5 reduction'!T173),9))","v":0.99998872500000002},{"$f":"VALUE(FIXED(EXP(U$4*-1*'PM2.5 reduction'!U173),9))","v":0.99999865200000004},{"$f":"VALUE(FIXED(EXP(V$4*-1*'PM2.5 reduction'!V173),9))","v":0.99999465099999996},{"$f":"VALUE(FIXED(EXP(W$4*-1*'PM2.5 reduction'!W173),9))","v":0.99999603400000003},{"$f":"VALUE(FIXED(EXP(X$4*-1*'PM2.5 reduction'!X173),9))","v":0.99999603400000003},{"$f":"VALUE(FIXED(EXP(Y$4*-1*'PM2.5 reduction'!Y173),9))","v":0.99999564900000004},{"$f":"VALUE(FIXED(EXP(Z$4*-1*'PM2.5 reduction'!Z173),9))","v":0.99999057199999997},{"$f":"VALUE(FIXED(EXP(AA$4*-1*'PM2.5 reduction'!AA173),9))","v":0.99999337099999996},{"$f":"VALUE(FIXED(EXP(AB$4*-1*'PM2.5 reduction'!AB173),9))","v":0.99999579400000005},{"$f":"VALUE(FIXED(EXP(AC$4*-1*'PM2.5 reduction'!AC173),9))","v":0.99999271700000003},{"$f":"VALUE(FIXED(EXP(AD$4*-1*'PM2.5 reduction'!AD173),9))","v":0.99999861199999995},{"$f":"VALUE(FIXED(EXP(AE$4*-1*'PM2.5 reduction'!AE173),9))","v":0.99999841199999995},{"$f":"VALUE(FIXED(EXP(AF$4*-1*'PM2.5 reduction'!AF173),9))","v":0.99999559199999999},{"$f":"VALUE(FIXED(EXP(AG$4*-1*'PM2.5 reduction'!AG173),9))","v":0.99999841199999995},{"$f":"VALUE(FIXED(EXP(AH$4*-1*'PM2.5 reduction'!AH173),9))","v":0.99999424999999997},{"$f":"VALUE(FIXED(EXP(AI$4*-1*'PM2.5 reduction'!AI173),9))","v":0.99999249599999995},{"$f":"VALUE(FIXED(EXP(AJ$4*-1*'PM2.5 reduction'!AJ173),9))","v":0.99999534099999998},{"$f":"VALUE(FIXED(EXP(AK$4*-1*'PM2.5 reduction'!AK173),9))","v":0.99999724599999995},{"$f":"VALUE(FIXED(EXP(AL$4*-1*'PM2.5 reduction'!AL173),9))","v":0.99999747699999997},{"$f":"VALUE(FIXED(EXP(AM$4*-1*'PM2.5 reduction'!AM173),9))","v":0.99999371299999995},{"$f":"VALUE(FIXED(EXP(AN$4*-1*'PM2.5 reduction'!AN173),9))","v":0.99999844699999996},{"$f":"VALUE(FIXED(EXP(AO$4*-1*'PM2.5 reduction'!AO173),9))","v":0.99999844699999996},{"$f":"VALUE(FIXED(EXP(AP$4*-1*'PM2.5 reduction'!AP173),9))","v":0.999997566},{"$f":"VALUE(FIXED(EXP(AQ$4*-1*'PM2.5 reduction'!AQ173),9))","v":0.99999438500000004},{"$f":"VALUE(FIXED(EXP(AR$4*-1*'PM2.5 reduction'!AR173),9))","v":0.99999490300000005},{"$f":"VALUE(FIXED(EXP(AS$4*-1*'PM2.5 reduction'!AS173),9))","v":0.99999869500000005},{"$f":"VALUE(FIXED(EXP(AT$4*-1*'PM2.5 reduction'!AT173),9))","v":1},{"$f":"VALUE(FIXED(EXP(AU$4*-1*'PM2.5 reduction'!AU173),9))","v":1},{"$f":"VALUE(FIXED(EXP(AV$4*-1*'PM2.5 reduction'!AV173),9))","v":0.99999578099999997},{"$f":"VALUE(FIXED(EXP(AW$4*-1*'PM2.5 reduction'!AW173),9))","v":0.99999461300000003},{"$f":"VALUE(FIXED(EXP(AX$4*-1*'PM2.5 reduction'!AX173),9))","v":0.99999842299999997},{"$f":"VALUE(FIXED(EXP(AY$4*-1*'PM2.5 reduction'!AY173),9))","v":0.99999599900000002},{"$f":"VALUE(FIXED(EXP(AZ$4*-1*'PM2.5 reduction'!AZ173),9))","v":0.99999597500000004},{"$f":"VALUE(FIXED(EXP(BA$4*-1*'PM2.5 reduction'!BA173),9))","v":0.99999433100000001},{"$f":"VALUE(FIXED(EXP(BB$4*-1*'PM2.5 reduction'!BB173),9))","v":0.99999561999999997},{"$f":"VALUE(FIXED(EXP(BC$4*-1*'PM2.5 reduction'!BC173),9))","v":0.99999865200000004}]
["SIMD Q4","Female 0-4",{"$f":"VALUE(FIXED(EXP(C$4*-1*'PM2.5 reduction'!C174),9))","v":0.99999078100000005},{"$f":"VALUE(FIXED(EXP(D$4*-1*'PM2.5 reduction'!D174),9))","v":0.99999421799999999},{"$f":"VALUE(FIXED(EXP(E$4*-1*'PM2.5 reduction'!E174),9))","v":0.99999825899999994},{"$f":"VALUE(FIXED(EXP(F$4*-1*'PM2.5 reduction'!F174),9))","v":0.99999804800000003},{"$f":"VALUE(FIXED(EXP(G$4*-1*'PM2.5 reduction'!G174),9))","v":0.99999751699999995},{"$f":"VALUE(FIXED(EXP(H$4*-1*'PM2.5 reduction'!H174),9))","v":0.99999654800000004},{"$f":"VALUE(FIXED(EXP(I$4*-1*'PM2.5 reduction'!I174),9))","v":0.99999887799999998},{"$f":"VALUE(FIXED(EXP(J$4*-1*'PM2.5 reduction'!J174),9))","v":0.999996581},{"$f":"VALUE(FIXED(EXP(K$4*-1*'PM2.5 reduction'!K174),9))","v":0.99999643299999996},{"$f":"VALUE(FIXED(EXP(L$4*-1*'PM2.5 reduction'!L174),9))","v":0.99999823200000004},{"$f":"VALUE(FIXED(EXP(M$4*-1*'PM2.5 reduction'!M174),9))","v":0.99999823200000004},{"$f":"VALUE(FIXED(EXP(N$4*-1*'PM2.5 reduction'!N174),9))","v":0.99999250299999998},{"$f":"VALUE(FIXED(EXP(O$4*-1*'PM2.5 reduction'!O174),9))","v":0.99999608200000001},{"$f":"VALUE(FIXED(EXP(P$4*-1*'PM2.5 reduction'!P174),9))","v":0.99999346600000005},{"$f":"VALUE(FIXED(EXP(Q$4*-1*'PM2.5 reduction'!Q174),9))","v":0.99999623699999995},{"$f":"VALUE(FIXED(EXP(R$4*-1*'PM2.5 reduction'!R174),9))","v":0.999994567},{"$f":"VALUE(FIXED(EXP(S$4*-1*'PM2.5 reduction'!S174),9))","v":0.99999287699999995},{"$f":"VALUE(FIXED(EXP(T$4*-1*'PM2.5 reduction'!T174),9))","v":0.99998902700000003},{"$f":"VALUE(FIXED(EXP(U$4*-1*'PM2.5 reduction'!U174),9))","v":1},{"$f":"VALUE(FIXED(EXP(V$4*-1*'PM2.5 reduction'!V174),9))","v":0.99999479800000002},{"$f":"VALUE(FIXED(EXP(W$4*-1*'PM2.5 reduction'!W174),9))","v":0.99999584699999999},{"$f":"VALUE(FIXED(EXP(X$4*-1*'PM2.5 reduction'!X174),9))","v":0.99999584699999999},{"$f":"VALUE(FIXED(EXP(Y$4*-1*'PM2.5 reduction'!Y174),9))","v":0.99999559800000004},{"$f":"VALUE(FIXED(EXP(Z$4*-1*'PM2.5 reduction'!Z174),9))","v":0.99998978900000002},{"$f":"VALUE(FIXED(EXP(AA$4*-1*'PM2.5 reduction'!AA174),9))","v":0.99999285199999999},{"$f":"VALUE(FIXED(EXP(AB$4*-1*'PM2.5 reduction'!AB174),9))","v":0.99999457599999997},{"$f":"VALUE(FIXED(EXP(AC$4*-1*'PM2.5 reduction'!AC174),9))","v":0.99999194599999996},{"$f":"VALUE(FIXED(EXP(AD$4*-1*'PM2.5 reduction'!AD174),9))","v":0.99999758500000002},{"$f":"VALUE(FIXED(EXP(AE$4*-1*'PM2.5 reduction'!AE174),9))","v":0.99999758800000005},{"$f":"VALUE(FIXED(EXP(AF$4*-1*'PM2.5 reduction'!AF174),9))","v":0.99999583199999997},{"$f":"VALUE(FIXED(EXP(AG$4*-1*'PM2.5 reduction'!AG174),9))","v":0.99999758800000005},{"$f":"VALUE(FIXED(EXP(AH$4*-1*'PM2.5 reduction'!AH174),9))","v":0.99999417000000002},{"$f":"VALUE(FIXED(EXP(AI$4*-1*'PM2.5 reduction'!AI174),9))","v":0.99999138600000004},{"$f":"VALUE(FIXED(EXP(AJ$4*-1*'PM2.5 reduction'!AJ174),9))","v":0.99999561299999995},{"$f":"VALUE(FIXED(EXP(AK$4*-1*'PM2.5 reduction'!AK174),9))","v":0.99999850300000004},{"$f":"VALUE(FIXED(EXP(AL$4*-1*'PM2.5 reduction'!AL174),9))","v":0.99999758100000002},{"$f":"VALUE(FIXED(EXP(AM$4*-1*'PM2.5 reduction'!AM174),9))","v":0.99999368600000005},{"$f":"VALUE(FIXED(EXP(AN$4*-1*'PM2.5 reduction'!AN174),9))","v":0.99999876200000004},{"$f":"VALUE(FIXED(EXP(AO$4*-1*'PM2.5 reduction'!AO174),9))","v":0.99999876200000004},{"$f":"VALUE(FIXED(EXP(AP$4*-1*'PM2.5 reduction'!AP174),9))","v":0.99999788099999998},{"$f":"VALUE(FIXED(EXP(AQ$4*-1*'PM2.5 reduction'!AQ174),9))","v":0.99999429699999998},{"$f":"VALUE(FIXED(EXP(AR$4*-1*'PM2.5 reduction'!AR174),9))","v":0.99999400900000002},{"$f":"VALUE(FIXED(EXP(AS$4*-1*'PM2.5 reduction'!AS174),9))","v":0.99999887799999998},{"$f":"VALUE(FIXED(EXP(AT$4*-1*'PM2.5 reduction'!AT174),9))","v":0.99999901499999999},{"$f":"VALUE(FIXED(EXP(AU$4*-1*'PM2.5 reduction'!AU174),9))","v":0.99999901499999999},{"$f":"VALUE(FIXED(EXP(AV$4*-1*'PM2.5 reduction'!AV174),9))","v":0.99999564399999996},{"$f":"VALUE(FIXED(EXP(AW$4*-1*'PM2.5 reduction'!AW174),9))","v":0.99999450599999995},{"$f":"VALUE(FIXED(EXP(AX$4*-1*'PM2.5 reduction'!AX174),9))","v":0.99999663999999999},{"$f":"VALUE(FIXED(EXP(AY$4*-1*'PM2.5 reduction'!AY174),9))","v":0.99999609700000003},{"$f":"VALUE(FIXED(EXP(AZ$4*-1*'PM2.5 reduction'!AZ174),9))","v":0.99999627700000004},{"$f":"VALUE(FIXED(EXP(BA$4*-1*'PM2.5 reduction'!BA174),9))","v":0.99999547200000005},{"$f":"VALUE(FIXED(EXP(BB$4*-1*'PM2.5 reduction'!BB174),9))","v":0.999995203},{"$f":"VALUE(FIXED(EXP(BC$4*-1*'PM2.5 reduction'!BC174),9))","v":1}]
[null,"Female 5-9",{"$f":"VALUE(FIXED(EXP(C$4*-1*'PM2.5 reduction'!C175),9))","v":0.99999133799999995},{"$f":"VALUE(FIXED(EXP(D$4*-1*'PM2.5 reduction'!D175),9))","v":0.99999528400000004},{"$f":"VALUE(FIXED(EXP(E$4*-1*'PM2.5 reduction'!E175),9))","v":0.99999833699999996},{"$f":"VALUE(FIXED(EXP(F$4*-1*'PM2.5 reduction'!F175),9))","v":0.99999798100000004},{"$f":"VALUE(FIXED(EXP(G$4*-1*'PM2.5 reduction'!G175),9))","v":0.99999748700000002},{"$f":"VALUE(FIXED(EXP(H$4*-1*'PM2.5 reduction'!H175),9))","v":0.99999665599999998},{"$f":"VALUE(FIXED(EXP(I$4*-1*'PM2.5 reduction'!I175),9))","v":0.99999882299999998},{"$f":"VALUE(FIXED(EXP(J$4*-1*'PM2.5 reduction'!J175),9))","v":0.99999655799999998},{"$f":"VALUE(FIXED(EXP(K$4*-1*'PM2.5 reduction'!K175),9))","v":0.99999604399999997},{"$f":"VALUE(FIXED(EXP(L$4*-1*'PM2.5 reduction'!L175),9))","v":0.99999832700000002},{"$f":"VALUE(FIXED(EXP(M$4*-1*'PM2.5 reduction'!M175),9))","v":0.99999832700000002},{"$f":"VALUE(FIXED(EXP(N$4*-1*'PM2.5 reduction'!N175),9))","v":0.999992714},{"$f":"VALUE(FIXED(EXP(O$4*-1*'PM2.5 reduction'!O175),9))","v":0.99999637600000002},{"$f":"VALUE(FIXED(EXP(P$4*-1*'PM2.5 reduction'!P175),9))","v":0.99999310600000002},{"$f":"VALUE(FIXED(EXP(Q$4*-1*'PM2.5 reduction'!Q175),9))","v":0.99999679699999999},{"$f":"VALUE(FIXED(EXP(R$4*-1*'PM2.5 reduction'!R175),9))","v":0.99999466999999997},{"$f":"VALUE(FIXED(EXP(S$4*-1*'PM2.5 reduction'!S175),9))","v":0.99999352900000005},{"$f":"VALUE(FIXED(EXP(T$4*-1*'PM2.5 reduction'!T175),9))","v":0.99998957700000002},{"$f":"VALUE(FIXED(EXP(U$4*-1*'PM2.5 reduction'!U175),9))","v":1},{"$f":"VALUE(FIXED(EXP(V$4*-1*'PM2.5 reduction'!V175),9))","v":0.99999475299999996},{"$f":"VALUE(FIXED(EXP(W$4*-1*'PM2.5 reduction'!W175),9))","v":0.99999580099999996},{"$f":"VALUE(FIXED(EXP(X$4*-1*'PM2.5 reduction'!X175),9))","v":0.99999580099999996},{"$f":"VALUE(FIXED(EXP(Y$4*-1*'PM2.5 reduction'!Y175),9))","v":0.99999550000000004},{"$f":"VALUE(FIXED(EXP(Z$4*-1*'PM2.5 reduction'!Z175),9))","v":0.99999020199999999},{"$f":"VALUE(FIXED(EXP(AA$4*-1*'PM2.5 reduction'!AA175),9))","v":0.99999316500000002},{"$f":"VALUE(FIXED(EXP(AB$4*-1*'PM2.5 reduction'!AB175),9))","v":0.99999560799999998},{"$f":"VALUE(FIXED(EXP(AC$4*-1*'PM2.5 reduction'!AC175),9))","v":0.999992357},{"$f":"VALUE(FIXED(EXP(AD$4*-1*'PM2.5 reduction'!AD175),9))","v":0.99999771199999998},{"$f":"VALUE(FIXED(EXP(AE$4*-1*'PM2.5 reduction'!AE175),9))","v":0.99999772799999997},{"$f":"VALUE(FIXED(EXP(AF$4*-1*'PM2.5 reduction'!AF175),9))","v":0.99999581900000001},{"$f":"VALUE(FIXED(EXP(AG$4*-1*'PM2.5 reduction'!AG175),9))","v":0.99999772799999997},{"$f":"VALUE(FIXED(EXP(AH$4*-1*'PM2.5 reduction'!AH175),9))","v":0.99999415999999997},{"$f":"VALUE(FIXED(EXP(AI$4*-1*'PM2.5 reduction'!AI175),9))","v":0.99999225899999999},{"$f":"VALUE(FIXED(EXP(AJ$4*-1*'PM2.5 reduction'!AJ175),9))","v":0.999995474},{"$f":"VALUE(FIXED(EXP(AK$4*-1*'PM2.5 reduction'!AK175),9))","v":0.99999833500000002},{"$f":"VALUE(FIXED(EXP(AL$4*-1*'PM2.5 reduction'!AL175),9))","v":0.99999760299999996},{"$f":"VALUE(FIXED(EXP(AM$4*-1*'PM2.5 reduction'!AM175),9))","v":0.99999366899999997},{"$f":"VALUE(FIXED(EXP(AN$4*-1*'PM2.5 reduction'!AN175),9))","v":0.99999885300000002},{"$f":"VALUE(FIXED(EXP(AO$4*-1*'PM2.5 reduction'!AO175),9))","v":0.99999885300000002},{"$f":"VALUE(FIXED(EXP(AP$4*-1*'PM2.5 reduction'!AP175),9))","v":0.99999786499999999},{"$f":"VALUE(FIXED(EXP(AQ$4*-1*'PM2.5 reduction'!AQ175),9))","v":0.99999431000000005},{"$f":"VALUE(FIXED(EXP(AR$4*-1*'PM2.5 reduction'!AR175),9))","v":0.999994461},{"$f":"VALUE(FIXED(EXP(AS$4*-1*'PM2.5 reduction'!AS175),9))","v":0.99999882299999998},{"$f":"VALUE(FIXED(EXP(AT$4*-1*'PM2.5 reduction'!AT175),9))","v":0.99999912800000001},{"$f":"VALUE(FIXED(EXP(AU$4*-1*'PM2.5 reduction'!AU175),9))","v":0.99999912800000001},{"$f":"VALUE(FIXED(EXP(AV$4*-1*'PM2.5 reduction'!AV175),9))","v":0.99999575500000004},{"$f":"VALUE(FIXED(EXP(AW$4*-1*'PM2.5 reduction'!AW175),9))","v":0.99999453100000002},{"$f":"VALUE(FIXED(EXP(AX$4*-1*'PM2.5 reduction'!AX175),9))","v":0.99999685599999999},{"$f":"VALUE(FIXED(EXP(AY$4*-1*'PM2.5 reduction'!AY175),9))","v":0.99999612900000001},{"$f":"VALUE(FIXED(EXP(AZ$4*-1*'PM2.5 reduction'!AZ175),9))","v":0.99999638800000001},{"$f":"VALUE(FIXED(EXP(BA$4*-1*'PM2.5 reduction'!BA175),9))","v":0.99999538600000004},{"$f":"VALUE(FIXED(EXP(BB$4*-1*'PM2.5 reduction'!BB175),9))","v":0.99999523800000001},{"$f":"VALUE(FIXED(EXP(BC$4*-1*'PM2.5 reduction'!BC175),9))","v":1}]
[null,"Female 10-15",{"$f":"VALUE(FIXED(EXP(C$4*-1*'PM2.5 reduction'!C176),9))","v":0.99999154000000001},{"$f":"VALUE(FIXED(EXP(D$4*-1*'PM2.5 reduction'!D176),9))","v":0.99999545499999998},{"$f":"VALUE(FIXED(EXP(E$4*-1*'PM2.5 reduction'!E176),9))","v":0.999998269},{"$f":"VALUE(FIXED(EXP(F$4*-1*'PM2.5 reduction'!F176),9))","v":0.99999804999999997},{"$f":"VALUE(FIXED(EXP(G$4*-1*'PM2.5 reduction'!G176),9))","v":0.99999747500000002},{"$f":"VALUE(FIXED(EXP(H$4*-1*'PM2.5 reduction'!H176),9))","v":0.99999662499999997},{"$f":"VALUE(FIXED(EXP(I$4*-1*'PM2.5 reduction'!I176),9))","v":0.99999887099999996},{"$f":"VALUE(FIXED(EXP(J$4*-1*'PM2.5 reduction'!J176),9))","v":0.99999689800000002},{"$f":"VALUE(FIXED(EXP(K$4*-1*'PM2.5 reduction'!K176),9))","v":0.99999568699999997},{"$f":"VALUE(FIXED(EXP(L$4*-1*'PM2.5 reduction'!L176),9))","v":0.99999825600000003},{"$f":"VALUE(FIXED(EXP(M$4*-1*'PM2.5 reduction'!M176),9))","v":0.99999825600000003},{"$f":"VALUE(FIXED(EXP(N$4*-1*'PM2.5 reduction'!N176),9))","v":0.99999268799999996},{"$f":"VALUE(FIXED(EXP(O$4*-1*'PM2.5 reduction'!O176),9))","v":0.99999629400000001},{"$f":"VALUE(FIXED(EXP(P$4*-1*'PM2.5 reduction'!P176),9))","v":0.999993566},{"$f":"VALUE(FIXED(EXP(Q$4*-1*'PM2.5 reduction'!Q176),9))","v":0.99999659799999996},{"$f":"VALUE(FIXED(EXP(R$4*-1*'PM2.5 reduction'!R176),9))","v":0.99999442400000005},{"$f":"VALUE(FIXED(EXP(S$4*-1*'PM2.5 reduction'!S176),9))","v":0.99999385699999999},{"$f":"VALUE(FIXED(EXP(T$4*-1*'PM2.5 reduction'!T176),9))","v":0.99998964899999998},{"$f":"VALUE(FIXED(EXP(U$4*-1*'PM2.5 reduction'!U176),9))","v":1},{"$f":"VALUE(FIXED(EXP(V$4*-1*'PM2.5 reduction'!V176),9))","v":0.99999460600000001},{"$f":"VALUE(FIXED(EXP(W$4*-1*'PM2.5 reduction'!W176),9))","v":0.99999584699999999},{"$f":"VALUE(FIXED(EXP(X$4*-1*'PM2.5 reduction'!X176),9))","v":0.99999584699999999},{"$f":"VALUE(FIXED(EXP(Y$4*-1*'PM2.5 reduction'!Y176),9))","v":0.99999575900000004},{"$f":"VALUE(FIXED(EXP(Z$4*-1*'PM2.5 reduction'!Z176),9))","v":0.99999029299999997},{"$f":"VALUE(FIXED(EXP(AA$4*-1*'PM2.5 reduction'!AA176),9))","v":0.99999338800000004},{"$f":"VALUE(FIXED(EXP(AB$4*-1*'PM2.5 reduction'!AB176),9))","v":0.99999567199999995},{"$f":"VALUE(FIXED(EXP(AC$4*-1*'PM2.5 reduction'!AC176),9))","v":0.999992679},{"$f":"VALUE(FIXED(EXP(AD$4*-1*'PM2.5 reduction'!AD176),9))","v":0.99999747299999997},{"$f":"VALUE(FIXED(EXP(AE$4*-1*'PM2.5 reduction'!AE176),9))","v":0.99999747299999997},{"$f":"VALUE(FIXED(EXP(AF$4*-1*'PM2.5 reduction'!AF176),9))","v":0.99999569600000004},{"$f":"VALUE(FIXED(EXP(AG$4*-1*'PM2.5 reduction'!AG176),9))","v":0.99999747299999997},{"$f":"VALUE(FIXED(EXP(AH$4*-1*'PM2.5 reduction'!AH176),9))","v":0.99999424800000003},{"$f":"VALUE(FIXED(EXP(AI$4*-1*'PM2.5 reduction'!AI176),9))","v":0.99999250200000001},{"$f":"VALUE(FIXED(EXP(AJ$4*-1*'PM2.5 reduction'!AJ176),9))","v":0.99999582600000003},{"$f":"VALUE(FIXED(EXP(AK$4*-1*'PM2.5 reduction'!AK176),9))","v":0.99999766700000003},{"$f":"VALUE(FIXED(EXP(AL$4*-1*'PM2.5 reduction'!AL176),9))","v":0.999997621},{"$f":"VALUE(FIXED(EXP(AM$4*-1*'PM2.5 reduction'!AM176),9))","v":0.99999386400000001},{"$f":"VALUE(FIXED(EXP(AN$4*-1*'PM2.5 reduction'!AN176),9))","v":0.99999882699999998},{"$f":"VALUE(FIXED(EXP(AO$4*-1*'PM2.5 reduction'!AO176),9))","v":0.99999882699999998},{"$f":"VALUE(FIXED(EXP(AP$4*-1*'PM2.5 reduction'!AP176),9))","v":0.999997951},{"$f":"VALUE(FIXED(EXP(AQ$4*-1*'PM2.5 reduction'!AQ176),9))","v":0.99999431599999999},{"$f":"VALUE(FIXED(EXP(AR$4*-1*'PM2.5 reduction'!AR176),9))","v":0.99999466599999998},{"$f":"VALUE(FIXED(EXP(AS$4*-1*'PM2.5 reduction'!AS176),9))","v":0.99999887099999996},{"$f":"VALUE(FIXED(EXP(AT$4*-1*'PM2.5 reduction'!AT176),9))","v":0.99999906000000005},{"$f":"VALUE(FIXED(EXP(AU$4*-1*'PM2.5 reduction'!AU176),9))","v":0.99999906000000005},{"$f":"VALUE(FIXED(EXP(AV$4*-1*'PM2.5 reduction'!AV176),9))","v":0.99999554499999999},{"$f":"VALUE(FIXED(EXP(AW$4*-1*'PM2.5 reduction'!AW176),9))","v":0.99999455299999995},{"$f":"VALUE(FIXED(EXP(AX$4*-1*'PM2.5 reduction'!AX176),9))","v":0.99999735499999998},{"$f":"VALUE(FIXED(EXP(AY$4*-1*'PM2.5 reduction'!AY176),9))","v":0.99999622799999999},{"$f":"VALUE(FIXED(EXP(AZ$4*-1*'PM2.5 reduction'!AZ176),9))","v":0.99999655099999996},{"$f":"VALUE(FIXED(EXP(BA$4*-1*'PM2.5 reduction'!BA176),9))","v":0.99999537000000005},{"$f":"VALUE(FIXED(EXP(BB$4*-1*'PM2.5 reduction'!BB176),9))","v":0.99999527700000002},{"$f":"VALUE(FIXED(EXP(BC$4*-1*'PM2.5 reduction'!BC176),9))","v":1}]
[null,"Female 16-19",{"$f":"VALUE(FIXED(EXP(C$4*-1*'PM2.5 reduction'!C177),9))","v":0.99998597},{"$f":"VALUE(FIXED(EXP(D$4*-1*'PM2.5 reduction'!D177),9))","v":0.99999011100000001},{"$f":"VALUE(FIXED(EXP(E$4*-1*'PM2.5 reduction'!E177),9))","v":0.99999832499999997},{"$f":"VALUE(FIXED(EXP(F$4*-1*'PM2.5 reduction'!F177),9))","v":0.99999800000000005},{"$f":"VALUE(FIXED(EXP(G$4*-1*'PM2.5 reduction'!G177),9))","v":0.99999751000000003},{"$f":"VALUE(FIXED(EXP(H$4*-1*'PM2.5 reduction'!H177),9))","v":0.99999670799999996},{"$f":"VALUE(FIXED(EXP(I$4*-1*'PM2.5 reduction'!I177),9))","v":0.99999882600000001},{"$f":"VALUE(FIXED(EXP(J$4*-1*'PM2.5 reduction'!J177),9))","v":0.99999625199999997},{"$f":"VALUE(FIXED(EXP(K$4*-1*'PM2.5 reduction'!K177),9))","v":0.99999618599999995},{"$f":"VALUE(FIXED(EXP(L$4*-1*'PM2.5 reduction'!L177),9))","v":0.99999833999999999},{"$f":"VALUE(FIXED(EXP(M$4*-1*'PM2.5 reduction'!M177),9))","v":0.99999833999999999},{"$f":"VALUE(FIXED(EXP(N$4*-1*'PM2.5 reduction'!N177),9))","v":0.999992781},{"$f":"VALUE(FIXED(EXP(O$4*-1*'PM2.5 reduction'!O177),9))","v":0.99999633899999996},{"$f":"VALUE(FIXED(EXP(P$4*-1*'PM2.5 reduction'!P177),9))","v":0.99999349299999996},{"$f":"VALUE(FIXED(EXP(Q$4*-1*'PM2.5 reduction'!Q177),9))","v":0.99999638700000004},{"$f":"VALUE(FIXED(EXP(R$4*-1*'PM2.5 reduction'!R177),9))","v":0.99999474899999996},{"$f":"VALUE(FIXED(EXP(S$4*-1*'PM2.5 reduction'!S177),9))","v":0.99999274500000002},{"$f":"VALUE(FIXED(EXP(T$4*-1*'PM2.5 reduction'!T177),9))","v":0.99998817900000003},{"$f":"VALUE(FIXED(EXP(U$4*-1*'PM2.5 reduction'!U177),9))","v":1},{"$f":"VALUE(FIXED(EXP(V$4*-1*'PM2.5 reduction'!V177),9))","v":0.99999462299999997},{"$f":"VALUE(FIXED(EXP(W$4*-1*'PM2.5 reduction'!W177),9))","v":0.99999596000000002},{"$f":"VALUE(FIXED(EXP(X$4*-1*'PM2.5 reduction'!X177),9))","v":0.99999596000000002},{"$f":"VALUE(FIXED(EXP(Y$4*-1*'PM2.5 reduction'!Y177),9))","v":0.99999548999999999},{"$f":"VALUE(FIXED(EXP(Z$4*-1*'PM2.5 reduction'!Z177),9))","v":0.99998934100000003},{"$f":"VALUE(FIXED(EXP(AA$4*-1*'PM2.5 reduction'!AA177),9))","v":0.99999289800000002},{"$f":"VALUE(FIXED(EXP(AB$4*-1*'PM2.5 reduction'!AB177),9))","v":0.99999057899999999},{"$f":"VALUE(FIXED(EXP(AC$4*-1*'PM2.5 reduction'!AC177),9))","v":0.99999195500000004},{"$f":"VALUE(FIXED(EXP(AD$4*-1*'PM2.5 reduction'!AD177),9))","v":0.99999751699999995},{"$f":"VALUE(FIXED(EXP(AE$4*-1*'PM2.5 reduction'!AE177),9))","v":0.99999751800000003},{"$f":"VALUE(FIXED(EXP(AF$4*-1*'PM2.5 reduction'!AF177),9))","v":0.999996212},{"$f":"VALUE(FIXED(EXP(AG$4*-1*'PM2.5 reduction'!AG177),9))","v":0.99999751800000003},{"$f":"VALUE(FIXED(EXP(AH$4*-1*'PM2.5 reduction'!AH177),9))","v":0.99999422000000004},{"$f":"VALUE(FIXED(EXP(AI$4*-1*'PM2.5 reduction'!AI177),9))","v":0.99999110899999999},{"$f":"VALUE(FIXED(EXP(AJ$4*-1*'PM2.5 reduction'!AJ177),9))","v":0.99999545999999995},{"$f":"VALUE(FIXED(EXP(AK$4*-1*'PM2.5 reduction'!AK177),9))","v":0.99999788300000003},{"$f":"VALUE(FIXED(EXP(AL$4*-1*'PM2.5 reduction'!AL177),9))","v":0.99999767299999998},{"$f":"VALUE(FIXED(EXP(AM$4*-1*'PM2.5 reduction'!AM177),9))","v":0.99999384700000005},{"$f":"VALUE(FIXED(EXP(AN$4*-1*'PM2.5 reduction'!AN177),9))","v":0.999998838},{"$f":"VALUE(FIXED(EXP(AO$4*-1*'PM2.5 reduction'!AO177),9))","v":0.999998838},{"$f":"VALUE(FIXED(EXP(AP$4*-1*'PM2.5 reduction'!AP177),9))","v":0.99999787200000001},{"$f":"VALUE(FIXED(EXP(AQ$4*-1*'PM2.5 reduction'!AQ177),9))","v":0.99999424299999995},{"$f":"VALUE(FIXED(EXP(AR$4*-1*'PM2.5 reduction'!AR177),9))","v":0.99999350399999998},{"$f":"VALUE(FIXED(EXP(AS$4*-1*'PM2.5 reduction'!AS177),9))","v":0.99999882600000001},{"$f":"VALUE(FIXED(EXP(AT$4*-1*'PM2.5 reduction'!AT177),9))","v":0.99999908999999998},{"$f":"VALUE(FIXED(EXP(AU$4*-1*'PM2.5 reduction'!AU177),9))","v":0.99999908999999998},{"$f":"VALUE(FIXED(EXP(AV$4*-1*'PM2.5 reduction'!AV177),9))","v":0.99999560399999998},{"$f":"VALUE(FIXED(EXP(AW$4*-1*'PM2.5 reduction'!AW177),9))","v":0.999994563},{"$f":"VALUE(FIXED(EXP(AX$4*-1*'PM2.5 reduction'!AX177),9))","v":0.99999627099999999},{"$f":"VALUE(FIXED(EXP(AY$4*-1*'PM2.5 reduction'!AY177),9))","v":0.99999610900000002},{"$f":"VALUE(FIXED(EXP(AZ$4*-1*'PM2.5 reduction'!AZ177),9))","v":0.99999621100000002},{"$f":"VALUE(FIXED(EXP(BA$4*-1*'PM2.5 reduction'!BA177),9))","v":0.99999538099999996},{"$f":"VALUE(FIXED(EXP(BB$4*-1*'PM2.5 reduction'!BB177),9))","v":0.99999550699999995},{"$f":"VALUE(FIXED(EXP(BC$4*-1*'PM2.5 reduction'!BC177),9))","v":1}]
[null,"Female 20-24",{"$f":"VALUE(FIXED(EXP(C$4*-1*'PM2.5 reduction'!C178),9))","v":0.999986924},{"$f":"VALUE(FIXED(EXP(D$4*-1*'PM2.5 reduction'!D178),9))","v":0.99998945500000003},{"$f":"VALUE(FIXED(EXP(E$4*-1*'PM2.5 reduction'!E178),9))","v":0.99999817999999996},{"$f":"VALUE(FIXED(EXP(F$4*-1*'PM2.5 reduction'!F178),9))","v":0.99999807500000004},{"$f":"VALUE(FIXED(EXP(G$4*-1*'PM2.5 reduction'!G178),9))","v":0.99999749999999998},{"$f":"VALUE(FIXED(EXP(H$4*-1*'PM2.5 reduction'!H178),9))","v":0.99999650100000004},{"$f":"VALUE(FIXED(EXP(I$4*-1*'PM2.5 reduction'!I178),9))","v":0.99999879599999997},{"$f":"VALUE(FIXED(EXP(J$4*-1*'PM2.5 reduction'!J178),9))","v":0.99999493699999997},{"$f":"VALUE(FIXED(EXP(K$4*-1*'PM2.5 reduction'!K178),9))","v":0.99999610800000005},{"$f":"VALUE(FIXED(EXP(L$4*-1*'PM2.5 reduction'!L178),9))","v":0.99999820699999997},{"$f":"VALUE(FIXED(EXP(M$4*-1*'PM2.5 reduction'!M178),9))","v":0.99999820699999997},{"$f":"VALUE(FIXED(EXP(N$4*-1*'PM2.5 reduction'!N178),9))","v":0.99999298599999997},{"$f":"VALUE(FIXED(EXP(O$4*-1*'PM2.5 reduction'!O178),9))","v":0.999995788},{"$f":"VALUE(FIXED(EXP(P$4*-1*'PM2.5 reduction'!P178),9))","v":0.99999350099999995},{"$f":"VALUE(FIXED(EXP(Q$4*-1*'PM2.5 reduction'!Q178),9))","v":0.99999608200000001},{"$f":"VALUE(FIXED(EXP(R$4*-1*'PM2.5 reduction'!R178),9))","v":0.99999446199999997},{"$f":"VALUE(FIXED(EXP(S$4*-1*'PM2.5 reduction'!S178),9))","v":0.99998969400000004},{"$f":"VALUE(FIXED(EXP(T$4*-1*'PM2.5 reduction'!T178),9))","v":0.99998617999999995},{"$f":"VALUE(FIXED(EXP(U$4*-1*'PM2.5 reduction'!U178),9))","v":1},{"$f":"VALUE(FIXED(EXP(V$4*-1*'PM2.5 reduction'!V178),9))","v":0.99999433999999998},{"$f":"VALUE(FIXED(EXP(W$4*-1*'PM2.5 reduction'!W178),9))","v":0.99999591499999996},{"$f":"VALUE(FIXED(EXP(X$4*-1*'PM2.5 reduction'!X178),9))","v":0.99999591499999996},{"$f":"VALUE(FIXED(EXP(Y$4*-1*'PM2.5 reduction'!Y178),9))","v":0.99999470999999995},{"$f":"VALUE(FIXED(EXP(Z$4*-1*'PM2.5 reduction'!Z178),9))","v":0.99998709699999999},{"$f":"VALUE(FIXED(EXP(AA$4*-1*'PM2.5 reduction'!AA178),9))","v":0.99999048400000001},{"$f":"VALUE(FIXED(EXP(AB$4*-1*'PM2.5 reduction'!AB178),9))","v":0.99998971999999997},{"$f":"VALUE(FIXED(EXP(AC$4*-1*'PM2.5 reduction'!AC178),9))","v":0.99998920400000002},{"$f":"VALUE(FIXED(EXP(AD$4*-1*'PM2.5 reduction'!AD178),9))","v":0.99999736400000006},{"$f":"VALUE(FIXED(EXP(AE$4*-1*'PM2.5 reduction'!AE178),9))","v":0.99999735099999998},{"$f":"VALUE(FIXED(EXP(AF$4*-1*'PM2.5 reduction'!AF178),9))","v":0.99999598899999997},{"$f":"VALUE(FIXED(EXP(AG$4*-1*'PM2.5 reduction'!AG178),9))","v":0.99999735099999998},{"$f":"VALUE(FIXED(EXP(AH$4*-1*'PM2.5 reduction'!AH178),9))","v":0.99999412499999996},{"$f":"VALUE(FIXED(EXP(AI$4*-1*'PM2.5 reduction'!AI178),9))","v":0.99998829199999995},{"$f":"VALUE(FIXED(EXP(AJ$4*-1*'PM2.5 reduction'!AJ178),9))","v":0.99999569799999999},{"$f":"VALUE(FIXED(EXP(AK$4*-1*'PM2.5 reduction'!AK178),9))","v":0.99999775999999996},{"$f":"VALUE(FIXED(EXP(AL$4*-1*'PM2.5 reduction'!AL178),9))","v":0.99999758999999999},{"$f":"VALUE(FIXED(EXP(AM$4*-1*'PM2.5 reduction'!AM178),9))","v":0.99999373999999996},{"$f":"VALUE(FIXED(EXP(AN$4*-1*'PM2.5 reduction'!AN178),9))","v":0.99999885799999999},{"$f":"VALUE(FIXED(EXP(AO$4*-1*'PM2.5 reduction'!AO178),9))","v":0.99999885799999999},{"$f":"VALUE(FIXED(EXP(AP$4*-1*'PM2.5 reduction'!AP178),9))","v":0.99999780199999999},{"$f":"VALUE(FIXED(EXP(AQ$4*-1*'PM2.5 reduction'!AQ178),9))","v":0.99999424599999998},{"$f":"VALUE(FIXED(EXP(AR$4*-1*'PM2.5 reduction'!AR178),9))","v":0.99999137100000002},{"$f":"VALUE(FIXED(EXP(AS$4*-1*'PM2.5 reduction'!AS178),9))","v":0.99999879599999997},{"$f":"VALUE(FIXED(EXP(AT$4*-1*'PM2.5 reduction'!AT178),9))","v":0.99999906199999999},{"$f":"VALUE(FIXED(EXP(AU$4*-1*'PM2.5 reduction'!AU178),9))","v":0.99999906199999999},{"$f":"VALUE(FIXED(EXP(AV$4*-1*'PM2.5 reduction'!AV178),9))","v":0.99999570599999998},{"$f":"VALUE(FIXED(EXP(AW$4*-1*'PM2.5 reduction'!AW178),9))","v":0.99999445899999995},{"$f":"VALUE(FIXED(EXP(AX$4*-1*'PM2.5 reduction'!AX178),9))","v":0.999994783},{"$f":"VALUE(FIXED(EXP(AY$4*-1*'PM2.5 reduction'!AY178),9))","v":0.99999527899999996},{"$f":"VALUE(FIXED(EXP(AZ$4*-1*'PM2.5 reduction'!AZ178),9))","v":0.999995038},{"$f":"VALUE(FIXED(EXP(BA$4*-1*'PM2.5 reduction'!BA178),9))","v":0.99999527700000002},{"$f":"VALUE(FIXED(EXP(BB$4*-1*'PM2.5 reduction'!BB178),9))","v":0.99999550800000003},{"$f":"VALUE(FIXED(EXP(BC$4*-1*'PM2.5 reduction'!BC178),9))","v":1}]
[null,"Female 25-29",{"$f":"VALUE(FIXED(EXP(C$4*-1*'PM2.5 reduction'!C179),9))","v":0.99998841000000005},{"$f":"VALUE(FIXED(EXP(D$4*-1*'PM2.5 reduction'!D179),9))","v":0.99999098500000005},{"$f":"VALUE(FIXED(EXP(E$4*-1*'PM2.5 reduction'!E179),9))","v":0.999998151},{"$f":"VALUE(FIXED(EXP(F$4*-1*'PM2.5 reduction'!F179),9))","v":0.99999800299999997},{"$f":"VALUE(FIXED(EXP(G$4*-1*'PM2.5 reduction'!G179),9))","v":0.99999747500000002},{"$f":"VALUE(FIXED(EXP(H$4*-1*'PM2.5 reduction'!H179),9))","v":0.99999639500000004},{"$f":"VALUE(FIXED(EXP(I$4*-1*'PM2.5 reduction'!I179),9))","v":0.99999885799999999},{"$f":"VALUE(FIXED(EXP(J$4*-1*'PM2.5 reduction'!J179),9))","v":0.99999567899999997},{"$f":"VALUE(FIXED(EXP(K$4*-1*'PM2.5 reduction'!K179),9))","v":0.99999556700000003},{"$f":"VALUE(FIXED(EXP(L$4*-1*'PM2.5 reduction'!L179),9))","v":0.99999817599999996},{"$f":"VALUE(FIXED(EXP(M$4*-1*'PM2.5 reduction'!M179),9))","v":0.99999817599999996},{"$f":"VALUE(FIXED(EXP(N$4*-1*'PM2.5 reduction'!N179),9))","v":0.99999277200000003},{"$f":"VALUE(FIXED(EXP(O$4*-1*'PM2.5 reduction'!O179),9))","v":0.99999533900000004},{"$f":"VALUE(FIXED(EXP(P$4*-1*'PM2.5 reduction'!P179),9))","v":0.99999342599999996},{"$f":"VALUE(FIXED(EXP(Q$4*-1*'PM2.5 reduction'!Q179),9))","v":0.99999645100000001},{"$f":"VALUE(FIXED(EXP(R$4*-1*'PM2.5 reduction'!R179),9))","v":0.9999943},{"$f":"VALUE(FIXED(EXP(S$4*-1*'PM2.5 reduction'!S179),9))","v":0.99998968200000005},{"$f":"VALUE(FIXED(EXP(T$4*-1*'PM2.5 reduction'!T179),9))","v":0.99998700799999996},{"$f":"VALUE(FIXED(EXP(U$4*-1*'PM2.5 reduction'!U179),9))","v":1},{"$f":"VALUE(FIXED(EXP(V$4*-1*'PM2.5 reduction'!V179),9))","v":0.999994359},{"$f":"VALUE(FIXED(EXP(W$4*-1*'PM2.5 reduction'!W179),9))","v":0.99999581699999995},{"$f":"VALUE(FIXED(EXP(X$4*-1*'PM2.5 reduction'!X179),9))","v":0.99999581699999995},{"$f":"VALUE(FIXED(EXP(Y$4*-1*'PM2.5 reduction'!Y179),9))","v":0.99999501800000001},{"$f":"VALUE(FIXED(EXP(Z$4*-1*'PM2.5 reduction'!Z179),9))","v":0.99998810500000002},{"$f":"VALUE(FIXED(EXP(AA$4*-1*'PM2.5 reduction'!AA179),9))","v":0.99999116200000004},{"$f":"VALUE(FIXED(EXP(AB$4*-1*'PM2.5 reduction'!AB179),9))","v":0.99999142200000002},{"$f":"VALUE(FIXED(EXP(AC$4*-1*'PM2.5 reduction'!AC179),9))","v":0.99998993700000005},{"$f":"VALUE(FIXED(EXP(AD$4*-1*'PM2.5 reduction'!AD179),9))","v":0.99999754699999999},{"$f":"VALUE(FIXED(EXP(AE$4*-1*'PM2.5 reduction'!AE179),9))","v":0.99999755099999998},{"$f":"VALUE(FIXED(EXP(AF$4*-1*'PM2.5 reduction'!AF179),9))","v":0.99999545000000001},{"$f":"VALUE(FIXED(EXP(AG$4*-1*'PM2.5 reduction'!AG179),9))","v":0.99999755099999998},{"$f":"VALUE(FIXED(EXP(AH$4*-1*'PM2.5 reduction'!AH179),9))","v":0.99999400800000005},{"$f":"VALUE(FIXED(EXP(AI$4*-1*'PM2.5 reduction'!AI179),9))","v":0.99998854699999995},{"$f":"VALUE(FIXED(EXP(AJ$4*-1*'PM2.5 reduction'!AJ179),9))","v":0.99999591700000001},{"$f":"VALUE(FIXED(EXP(AK$4*-1*'PM2.5 reduction'!AK179),9))","v":0.99999829900000003},{"$f":"VALUE(FIXED(EXP(AL$4*-1*'PM2.5 reduction'!AL179),9))","v":0.99999758299999997},{"$f":"VALUE(FIXED(EXP(AM$4*-1*'PM2.5 reduction'!AM179),9))","v":0.99999366199999995},{"$f":"VALUE(FIXED(EXP(AN$4*-1*'PM2.5 reduction'!AN179),9))","v":0.99999884800000005},{"$f":"VALUE(FIXED(EXP(AO$4*-1*'PM2.5 reduction'!AO179),9))","v":0.99999884800000005},{"$f":"VALUE(FIXED(EXP(AP$4*-1*'PM2.5 reduction'!AP179),9))","v":0.99999766499999998},{"$f":"VALUE(FIXED(EXP(AQ$4*-1*'PM2.5 reduction'!AQ179),9))","v":0.99999408499999998},{"$f":"VALUE(FIXED(EXP(AR$4*-1*'PM2.5 reduction'!AR179),9))","v":0.99999175699999998},{"$f":"VALUE(FIXED(EXP(AS$4*-1*'PM2.5 reduction'!AS179),9))","v":0.99999885799999999},{"$f":"VALUE(FIXED(EXP(AT$4*-1*'PM2.5 reduction'!AT179),9))","v":0.99999898899999995},{"$f":"VALUE(FIXED(EXP(AU$4*-1*'PM2.5 reduction'!AU179),9))","v":0.99999898899999995},{"$f":"VALUE(FIXED(EXP(AV$4*-1*'PM2.5 reduction'!AV179),9))","v":0.99999579199999999},{"$f":"VALUE(FIXED(EXP(AW$4*-1*'PM2.5 reduction'!AW179),9))","v":0.99999428300000004},{"$f":"VALUE(FIXED(EXP(AX$4*-1*'PM2.5 reduction'!AX179),9))","v":0.99999570299999996},{"$f":"VALUE(FIXED(EXP(AY$4*-1*'PM2.5 reduction'!AY179),9))","v":0.99999574400000002},{"$f":"VALUE(FIXED(EXP(AZ$4*-1*'PM2.5 reduction'!AZ179),9))","v":0.99999570800000004},{"$f":"VALUE(FIXED(EXP(BA$4*-1*'PM2.5 reduction'!BA179),9))","v":0.99999510400000002},{"$f":"VALUE(FIXED(EXP(BB$4*-1*'PM2.5 reduction'!BB179),9))","v":0.99999526699999997},{"$f":"VALUE(FIXED(EXP(BC$4*-1*'PM2.5 reduction'!BC179),9))","v":1}]
[null,"Female 30-34",{"$f":"VALUE(FIXED(EXP(C$4*-1*'PM2.5 reduction'!C180),9))","v":0.99998945900000002},{"$f":"VALUE(FIXED(EXP(D$4*-1*'PM2.5 reduction'!D180),9))","v":0.99999244200000004},{"$f":"VALUE(FIXED(EXP(E$4*-1*'PM2.5 reduction'!E180),9))","v":0.99999819099999998},{"$f":"VALUE(FIXED(EXP(F$4*-1*'PM2.5 reduction'!F180),9))","v":0.99999801399999999},{"$f":"VALUE(FIXED(EXP(G$4*-1*'PM2.5 reduction'!G180),9))","v":0.99999753000000002},{"$f":"VALUE(FIXED(EXP(H$4*-1*'PM2.5 reduction'!H180),9))","v":0.99999653099999997},{"$f":"VALUE(FIXED(EXP(I$4*-1*'PM2.5 reduction'!I180),9))","v":0.99999863600000005},{"$f":"VALUE(FIXED(EXP(J$4*-1*'PM2.5 reduction'!J180),9))","v":0.99999581199999998},{"$f":"VALUE(FIXED(EXP(K$4*-1*'PM2.5 reduction'!K180),9))","v":0.99999569499999996},{"$f":"VALUE(FIXED(EXP(L$4*-1*'PM2.5 reduction'!L180),9))","v":0.99999819700000003},{"$f":"VALUE(FIXED(EXP(M$4*-1*'PM2.5 reduction'!M180),9))","v":0.99999819700000003},{"$f":"VALUE(FIXED(EXP(N$4*-1*'PM2.5 reduction'!N180),9))","v":0.99999255099999995},{"$f":"VALUE(FIXED(EXP(O$4*-1*'PM2.5 reduction'!O180),9))","v":0.99999608500000003},{"$f":"VALUE(FIXED(EXP(P$4*-1*'PM2.5 reduction'!P180),9))","v":0.99999349900000001},{"$f":"VALUE(FIXED(EXP(Q$4*-1*'PM2.5 reduction'!Q180),9))","v":0.99999617699999999},{"$f":"VALUE(FIXED(EXP(R$4*-1*'PM2.5 reduction'!R180),9))","v":0.99999454600000004},{"$f":"VALUE(FIXED(EXP(S$4*-1*'PM2.5 reduction'!S180),9))","v":0.99999070999999995},{"$f":"VALUE(FIXED(EXP(T$4*-1*'PM2.5 reduction'!T180),9))","v":0.99998760900000006},{"$f":"VALUE(FIXED(EXP(U$4*-1*'PM2.5 reduction'!U180),9))","v":1},{"$f":"VALUE(FIXED(EXP(V$4*-1*'PM2.5 reduction'!V180),9))","v":0.999994516},{"$f":"VALUE(FIXED(EXP(W$4*-1*'PM2.5 reduction'!W180),9))","v":0.99999576999999995},{"$f":"VALUE(FIXED(EXP(X$4*-1*'PM2.5 reduction'!X180),9))","v":0.99999576999999995},{"$f":"VALUE(FIXED(EXP(Y$4*-1*'PM2.5 reduction'!Y180),9))","v":0.999995101},{"$f":"VALUE(FIXED(EXP(Z$4*-1*'PM2.5 reduction'!Z180),9))","v":0.99998888600000002},{"$f":"VALUE(FIXED(EXP(AA$4*-1*'PM2.5 reduction'!AA180),9))","v":0.99999185700000004},{"$f":"VALUE(FIXED(EXP(AB$4*-1*'PM2.5 reduction'!AB180),9))","v":0.99999286300000001},{"$f":"VALUE(FIXED(EXP(AC$4*-1*'PM2.5 reduction'!AC180),9))","v":0.99999067200000002},{"$f":"VALUE(FIXED(EXP(AD$4*-1*'PM2.5 reduction'!AD180),9))","v":0.99999734699999998},{"$f":"VALUE(FIXED(EXP(AE$4*-1*'PM2.5 reduction'!AE180),9))","v":0.99999733599999996},{"$f":"VALUE(FIXED(EXP(AF$4*-1*'PM2.5 reduction'!AF180),9))","v":0.99999560300000001},{"$f":"VALUE(FIXED(EXP(AG$4*-1*'PM2.5 reduction'!AG180),9))","v":0.99999733599999996},{"$f":"VALUE(FIXED(EXP(AH$4*-1*'PM2.5 reduction'!AH180),9))","v":0.99999410899999996},{"$f":"VALUE(FIXED(EXP(AI$4*-1*'PM2.5 reduction'!AI180),9))","v":0.99998937700000001},{"$f":"VALUE(FIXED(EXP(AJ$4*-1*'PM2.5 reduction'!AJ180),9))","v":0.99999563700000005},{"$f":"VALUE(FIXED(EXP(AK$4*-1*'PM2.5 reduction'!AK180),9))","v":0.99999844000000004},{"$f":"VALUE(FIXED(EXP(AL$4*-1*'PM2.5 reduction'!AL180),9))","v":0.99999753599999996},{"$f":"VALUE(FIXED(EXP(AM$4*-1*'PM2.5 reduction'!AM180),9))","v":0.99999372099999995},{"$f":"VALUE(FIXED(EXP(AN$4*-1*'PM2.5 reduction'!AN180),9))","v":0.99999869100000005},{"$f":"VALUE(FIXED(EXP(AO$4*-1*'PM2.5 reduction'!AO180),9))","v":0.99999869100000005},{"$f":"VALUE(FIXED(EXP(AP$4*-1*'PM2.5 reduction'!AP180),9))","v":0.99999767699999997},{"$f":"VALUE(FIXED(EXP(AQ$4*-1*'PM2.5 reduction'!AQ180),9))","v":0.99999410799999999},{"$f":"VALUE(FIXED(EXP(AR$4*-1*'PM2.5 reduction'!AR180),9))","v":0.99999263299999996},{"$f":"VALUE(FIXED(EXP(AS$4*-1*'PM2.5 reduction'!AS180),9))","v":0.99999863600000005},{"$f":"VALUE(FIXED(EXP(AT$4*-1*'PM2.5 reduction'!AT180),9))","v":0.99999912700000004},{"$f":"VALUE(FIXED(EXP(AU$4*-1*'PM2.5 reduction'!AU180),9))","v":0.99999912700000004},{"$f":"VALUE(FIXED(EXP(AV$4*-1*'PM2.5 reduction'!AV180),9))","v":0.99999579599999999},{"$f":"VALUE(FIXED(EXP(AW$4*-1*'PM2.5 reduction'!AW180),9))","v":0.99999442299999997},{"$f":"VALUE(FIXED(EXP(AX$4*-1*'PM2.5 reduction'!AX180),9))","v":0.99999585199999996},{"$f":"VALUE(FIXED(EXP(AY$4*-1*'PM2.5 reduction'!AY180),9))","v":0.99999590699999996},{"$f":"VALUE(FIXED(EXP(AZ$4*-1*'PM2.5 reduction'!AZ180),9))","v":0.99999598899999997},{"$f":"VALUE(FIXED(EXP(BA$4*-1*'PM2.5 reduction'!BA180),9))","v":0.99999515100000003},{"$f":"VALUE(FIXED(EXP(BB$4*-1*'PM2.5 reduction'!BB180),9))","v":0.99999524799999995},{"$f":"VALUE(FIXED(EXP(BC$4*-1*'PM2.5 reduction'!BC180),9))","v":1}]
[null,"Female 35-39",{"$f":"VALUE(FIXED(EXP(C$4*-1*'PM2.5 reduction'!C181),9))","v":0.99999040699999997},{"$f":"VALUE(FIXED(EXP(D$4*-1*'PM2.5 reduction'!D181),9))","v":0.99999363600000002},{"$f":"VALUE(FIXED(EXP(E$4*-1*'PM2.5 reduction'!E181),9))","v":0.99999817099999999},{"$f":"VALUE(FIXED(EXP(F$4*-1*'PM2.5 reduction'!F181),9))","v":0.99999802599999998},{"$f":"VALUE(FIXED(EXP(G$4*-1*'PM2.5 reduction'!G181),9))","v":0.99999749999999998},{"$f":"VALUE(FIXED(EXP(H$4*-1*'PM2.5 reduction'!H181),9))","v":0.99999661200000001},{"$f":"VALUE(FIXED(EXP(I$4*-1*'PM2.5 reduction'!I181),9))","v":0.99999881300000004},{"$f":"VALUE(FIXED(EXP(J$4*-1*'PM2.5 reduction'!J181),9))","v":0.99999633799999998},{"$f":"VALUE(FIXED(EXP(K$4*-1*'PM2.5 reduction'!K181),9))","v":0.99999586399999996},{"$f":"VALUE(FIXED(EXP(L$4*-1*'PM2.5 reduction'!L181),9))","v":0.99999814600000003},{"$f":"VALUE(FIXED(EXP(M$4*-1*'PM2.5 reduction'!M181),9))","v":0.99999814600000003},{"$f":"VALUE(FIXED(EXP(N$4*-1*'PM2.5 reduction'!N181),9))","v":0.99999264099999996},{"$f":"VALUE(FIXED(EXP(O$4*-1*'PM2.5 reduction'!O181),9))","v":0.99999638700000004},{"$f":"VALUE(FIXED(EXP(P$4*-1*'PM2.5 reduction'!P181),9))","v":0.99999351299999995},{"$f":"VALUE(FIXED(EXP(Q$4*-1*'PM2.5 reduction'!Q181),9))","v":0.99999662899999997},{"$f":"VALUE(FIXED(EXP(R$4*-1*'PM2.5 reduction'!R181),9))","v":0.99999434300000001},{"$f":"VALUE(FIXED(EXP(S$4*-1*'PM2.5 reduction'!S181),9))","v":0.99999184500000005},{"$f":"VALUE(FIXED(EXP(T$4*-1*'PM2.5 reduction'!T181),9))","v":0.99998816400000001},{"$f":"VALUE(FIXED(EXP(U$4*-1*'PM2.5 reduction'!U181),9))","v":1},{"$f":"VALUE(FIXED(EXP(V$4*-1*'PM2.5 reduction'!V181),9))","v":0.99999479199999997},{"$f":"VALUE(FIXED(EXP(W$4*-1*'PM2.5 reduction'!W181),9))","v":0.999995831},{"$f":"VALUE(FIXED(EXP(X$4*-1*'PM2.5 reduction'!X181),9))","v":0.999995831},{"$f":"VALUE(FIXED(EXP(Y$4*-1*'PM2.5 reduction'!Y181),9))","v":0.99999546500000003},{"$f":"VALUE(FIXED(EXP(Z$4*-1*'PM2.5 reduction'!Z181),9))","v":0.99998964899999998},{"$f":"VALUE(FIXED(EXP(AA$4*-1*'PM2.5 reduction'!AA181),9))","v":0.99999270900000004},{"$f":"VALUE(FIXED(EXP(AB$4*-1*'PM2.5 reduction'!AB181),9))","v":0.99999400599999999},{"$f":"VALUE(FIXED(EXP(AC$4*-1*'PM2.5 reduction'!AC181),9))","v":0.99999170299999995},{"$f":"VALUE(FIXED(EXP(AD$4*-1*'PM2.5 reduction'!AD181),9))","v":0.999997625},{"$f":"VALUE(FIXED(EXP(AE$4*-1*'PM2.5 reduction'!AE181),9))","v":0.99999763399999997},{"$f":"VALUE(FIXED(EXP(AF$4*-1*'PM2.5 reduction'!AF181),9))","v":0.99999602200000004},{"$f":"VALUE(FIXED(EXP(AG$4*-1*'PM2.5 reduction'!AG181),9))","v":0.99999763399999997},{"$f":"VALUE(FIXED(EXP(AH$4*-1*'PM2.5 reduction'!AH181),9))","v":0.99999414499999995},{"$f":"VALUE(FIXED(EXP(AI$4*-1*'PM2.5 reduction'!AI181),9))","v":0.99999043700000001},{"$f":"VALUE(FIXED(EXP(AJ$4*-1*'PM2.5 reduction'!AJ181),9))","v":0.99999541300000006},{"$f":"VALUE(FIXED(EXP(AK$4*-1*'PM2.5 reduction'!AK181),9))","v":0.99999817800000002},{"$f":"VALUE(FIXED(EXP(AL$4*-1*'PM2.5 reduction'!AL181),9))","v":0.99999758000000005},{"$f":"VALUE(FIXED(EXP(AM$4*-1*'PM2.5 reduction'!AM181),9))","v":0.999993719},{"$f":"VALUE(FIXED(EXP(AN$4*-1*'PM2.5 reduction'!AN181),9))","v":0.99999870099999999},{"$f":"VALUE(FIXED(EXP(AO$4*-1*'PM2.5 reduction'!AO181),9))","v":0.99999870099999999},{"$f":"VALUE(FIXED(EXP(AP$4*-1*'PM2.5 reduction'!AP181),9))","v":0.99999781099999996},{"$f":"VALUE(FIXED(EXP(AQ$4*-1*'PM2.5 reduction'!AQ181),9))","v":0.99999428999999995},{"$f":"VALUE(FIXED(EXP(AR$4*-1*'PM2.5 reduction'!AR181),9))","v":0.99999355700000003},{"$f":"VALUE(FIXED(EXP(AS$4*-1*'PM2.5 reduction'!AS181),9))","v":0.99999881300000004},{"$f":"VALUE(FIXED(EXP(AT$4*-1*'PM2.5 reduction'!AT181),9))","v":0.99999908400000004},{"$f":"VALUE(FIXED(EXP(AU$4*-1*'PM2.5 reduction'!AU181),9))","v":0.99999908400000004},{"$f":"VALUE(FIXED(EXP(AV$4*-1*'PM2.5 reduction'!AV181),9))","v":0.99999565899999998},{"$f":"VALUE(FIXED(EXP(AW$4*-1*'PM2.5 reduction'!AW181),9))","v":0.99999444500000001},{"$f":"VALUE(FIXED(EXP(AX$4*-1*'PM2.5 reduction'!AX181),9))","v":0.99999652800000005},{"$f":"VALUE(FIXED(EXP(AY$4*-1*'PM2.5 reduction'!AY181),9))","v":0.99999601800000004},{"$f":"VALUE(FIXED(EXP(AZ$4*-1*'PM2.5 reduction'!AZ181),9))","v":0.999996153},{"$f":"VALUE(FIXED(EXP(BA$4*-1*'PM2.5 reduction'!BA181),9))","v":0.99999542399999997},{"$f":"VALUE(FIXED(EXP(BB$4*-1*'PM2.5 reduction'!BB181),9))","v":0.99999512899999998},{"$f":"VALUE(FIXED(EXP(BC$4*-1*'PM2.5 reduction'!BC181),9))","v":1}]
[null,"Female 40-44",{"$f":"VALUE(FIXED(EXP(C$4*-1*'PM2.5 reduction'!C182),9))","v":0.99999061099999997},{"$f":"VALUE(FIXED(EXP(D$4*-1*'PM2.5 reduction'!D182),9))","v":0.99999459400000001},{"$f":"VALUE(FIXED(EXP(E$4*-1*'PM2.5 reduction'!E182),9))","v":0.99999830099999998},{"$f":"VALUE(FIXED(EXP(F$4*-1*'PM2.5 reduction'!F182),9))","v":0.99999797099999999},{"$f":"VALUE(FIXED(EXP(G$4*-1*'PM2.5 reduction'!G182),9))","v":0.99999752200000003},{"$f":"VALUE(FIXED(EXP(H$4*-1*'PM2.5 reduction'!H182),9))","v":0.99999652500000002},{"$f":"VALUE(FIXED(EXP(I$4*-1*'PM2.5 reduction'!I182),9))","v":0.99999875999999999},{"$f":"VALUE(FIXED(EXP(J$4*-1*'PM2.5 reduction'!J182),9))","v":0.99999653700000002},{"$f":"VALUE(FIXED(EXP(K$4*-1*'PM2.5 reduction'!K182),9))","v":0.99999598199999995},{"$f":"VALUE(FIXED(EXP(L$4*-1*'PM2.5 reduction'!L182),9))","v":0.99999834700000001},{"$f":"VALUE(FIXED(EXP(M$4*-1*'PM2.5 reduction'!M182),9))","v":0.99999834700000001},{"$f":"VALUE(FIXED(EXP(N$4*-1*'PM2.5 reduction'!N182),9))","v":0.99999292900000003},{"$f":"VALUE(FIXED(EXP(O$4*-1*'PM2.5 reduction'!O182),9))","v":0.99999596199999996},{"$f":"VALUE(FIXED(EXP(P$4*-1*'PM2.5 reduction'!P182),9))","v":0.99999332799999996},{"$f":"VALUE(FIXED(EXP(Q$4*-1*'PM2.5 reduction'!Q182),9))","v":0.99999655600000004},{"$f":"VALUE(FIXED(EXP(R$4*-1*'PM2.5 reduction'!R182),9))","v":0.99999438200000001},{"$f":"VALUE(FIXED(EXP(S$4*-1*'PM2.5 reduction'!S182),9))","v":0.99999270900000004},{"$f":"VALUE(FIXED(EXP(T$4*-1*'PM2.5 reduction'!T182),9))","v":0.99998843000000004},{"$f":"VALUE(FIXED(EXP(U$4*-1*'PM2.5 reduction'!U182),9))","v":1},{"$f":"VALUE(FIXED(EXP(V$4*-1*'PM2.5 reduction'!V182),9))","v":0.999994571},{"$f":"VALUE(FIXED(EXP(W$4*-1*'PM2.5 reduction'!W182),9))","v":0.99999581800000004},{"$f":"VALUE(FIXED(EXP(X$4*-1*'PM2.5 reduction'!X182),9))","v":0.99999581800000004},{"$f":"VALUE(FIXED(EXP(Y$4*-1*'PM2.5 reduction'!Y182),9))","v":0.999995407},{"$f":"VALUE(FIXED(EXP(Z$4*-1*'PM2.5 reduction'!Z182),9))","v":0.99998974900000004},{"$f":"VALUE(FIXED(EXP(AA$4*-1*'PM2.5 reduction'!AA182),9))","v":0.99999300700000004},{"$f":"VALUE(FIXED(EXP(AB$4*-1*'PM2.5 reduction'!AB182),9))","v":0.99999485399999999},{"$f":"VALUE(FIXED(EXP(AC$4*-1*'PM2.5 reduction'!AC182),9))","v":0.99999209600000005},{"$f":"VALUE(FIXED(EXP(AD$4*-1*'PM2.5 reduction'!AD182),9))","v":0.99999755999999995},{"$f":"VALUE(FIXED(EXP(AE$4*-1*'PM2.5 reduction'!AE182),9))","v":0.99999756200000001},{"$f":"VALUE(FIXED(EXP(AF$4*-1*'PM2.5 reduction'!AF182),9))","v":0.99999587999999995},{"$f":"VALUE(FIXED(EXP(AG$4*-1*'PM2.5 reduction'!AG182),9))","v":0.99999756200000001},{"$f":"VALUE(FIXED(EXP(AH$4*-1*'PM2.5 reduction'!AH182),9))","v":0.99999418200000001},{"$f":"VALUE(FIXED(EXP(AI$4*-1*'PM2.5 reduction'!AI182),9))","v":0.99999121700000004},{"$f":"VALUE(FIXED(EXP(AJ$4*-1*'PM2.5 reduction'!AJ182),9))","v":0.999995627},{"$f":"VALUE(FIXED(EXP(AK$4*-1*'PM2.5 reduction'!AK182),9))","v":0.99999802000000004},{"$f":"VALUE(FIXED(EXP(AL$4*-1*'PM2.5 reduction'!AL182),9))","v":0.99999762800000003},{"$f":"VALUE(FIXED(EXP(AM$4*-1*'PM2.5 reduction'!AM182),9))","v":0.99999382000000003},{"$f":"VALUE(FIXED(EXP(AN$4*-1*'PM2.5 reduction'!AN182),9))","v":0.99999884400000005},{"$f":"VALUE(FIXED(EXP(AO$4*-1*'PM2.5 reduction'!AO182),9))","v":0.99999884400000005},{"$f":"VALUE(FIXED(EXP(AP$4*-1*'PM2.5 reduction'!AP182),9))","v":0.99999787600000001},{"$f":"VALUE(FIXED(EXP(AQ$4*-1*'PM2.5 reduction'!AQ182),9))","v":0.99999423499999995},{"$f":"VALUE(FIXED(EXP(AR$4*-1*'PM2.5 reduction'!AR182),9))","v":0.99999405699999999},{"$f":"VALUE(FIXED(EXP(AS$4*-1*'PM2.5 reduction'!AS182),9))","v":0.99999875999999999},{"$f":"VALUE(FIXED(EXP(AT$4*-1*'PM2.5 reduction'!AT182),9))","v":0.99999913299999998},{"$f":"VALUE(FIXED(EXP(AU$4*-1*'PM2.5 reduction'!AU182),9))","v":0.99999913299999998},{"$f":"VALUE(FIXED(EXP(AV$4*-1*'PM2.5 reduction'!AV182),9))","v":0.99999569200000005},{"$f":"VALUE(FIXED(EXP(AW$4*-1*'PM2.5 reduction'!AW182),9))","v":0.999994457},{"$f":"VALUE(FIXED(EXP(AX$4*-1*'PM2.5 reduction'!AX182),9))","v":0.99999678299999994},{"$f":"VALUE(FIXED(EXP(AY$4*-1*'PM2.5 reduction'!AY182),9))","v":0.99999614800000003},{"$f":"VALUE(FIXED(EXP(AZ$4*-1*'PM2.5 reduction'!AZ182),9))","v":0.99999641900000003},{"$f":"VALUE(FIXED(EXP(BA$4*-1*'PM2.5 reduction'!BA182),9))","v":0.99999538799999999},{"$f":"VALUE(FIXED(EXP(BB$4*-1*'PM2.5 reduction'!BB182),9))","v":0.99999537599999999},{"$f":"VALUE(FIXED(EXP(BC$4*-1*'PM2.5 reduction'!BC182),9))","v":1}]
[null,"Female 45-49",{"$f":"VALUE(FIXED(EXP(C$4*-1*'PM2.5 reduction'!C183),9))","v":0.999990975},{"$f":"VALUE(FIXED(EXP(D$4*-1*'PM2.5 reduction'!D183),9))","v":0.99999498799999997},{"$f":"VALUE(FIXED(EXP(E$4*-1*'PM2.5 reduction'!E183),9))","v":0.99999833199999999},{"$f":"VALUE(FIXED(EXP(F$4*-1*'PM2.5 reduction'!F183),9))","v":0.99999802599999998},{"$f":"VALUE(FIXED(EXP(G$4*-1*'PM2.5 reduction'!G183),9))","v":0.999997519},{"$f":"VALUE(FIXED(EXP(H$4*-1*'PM2.5 reduction'!H183),9))","v":0.99999662600000006},{"$f":"VALUE(FIXED(EXP(I$4*-1*'PM2.5 reduction'!I183),9))","v":0.99999880799999996},{"$f":"VALUE(FIXED(EXP(J$4*-1*'PM2.5 reduction'!J183),9))","v":0.99999639799999995},{"$f":"VALUE(FIXED(EXP(K$4*-1*'PM2.5 reduction'!K183),9))","v":0.99999565199999996},{"$f":"VALUE(FIXED(EXP(L$4*-1*'PM2.5 reduction'!L183),9))","v":0.99999830199999995},{"$f":"VALUE(FIXED(EXP(M$4*-1*'PM2.5 reduction'!M183),9))","v":0.99999830199999995},{"$f":"VALUE(FIXED(EXP(N$4*-1*'PM2.5 reduction'!N183),9))","v":0.99999260300000004},{"$f":"VALUE(FIXED(EXP(O$4*-1*'PM2.5 reduction'!O183),9))","v":0.99999612400000004},{"$f":"VALUE(FIXED(EXP(P$4*-1*'PM2.5 reduction'!P183),9))","v":0.99999337099999996},{"$f":"VALUE(FIXED(EXP(Q$4*-1*'PM2.5 reduction'!Q183),9))","v":0.99999643500000002},{"$f":"VALUE(FIXED(EXP(R$4*-1*'PM2.5 reduction'!R183),9))","v":0.99999447399999997},{"$f":"VALUE(FIXED(EXP(S$4*-1*'PM2.5 reduction'!S183),9))","v":0.99999326099999997},{"$f":"VALUE(FIXED(EXP(T$4*-1*'PM2.5 reduction'!T183),9))","v":0.99998884300000002},{"$f":"VALUE(FIXED(EXP(U$4*-1*'PM2.5 reduction'!U183),9))","v":1},{"$f":"VALUE(FIXED(EXP(V$4*-1*'PM2.5 reduction'!V183),9))","v":0.99999464400000004},{"$f":"VALUE(FIXED(EXP(W$4*-1*'PM2.5 reduction'!W183),9))","v":0.99999592999999998},{"$f":"VALUE(FIXED(EXP(X$4*-1*'PM2.5 reduction'!X183),9))","v":0.99999592999999998},{"$f":"VALUE(FIXED(EXP(Y$4*-1*'PM2.5 reduction'!Y183),9))","v":0.99999538300000002},{"$f":"VALUE(FIXED(EXP(Z$4*-1*'PM2.5 reduction'!Z183),9))","v":0.99999023899999995},{"$f":"VALUE(FIXED(EXP(AA$4*-1*'PM2.5 reduction'!AA183),9))","v":0.99999324300000003},{"$f":"VALUE(FIXED(EXP(AB$4*-1*'PM2.5 reduction'!AB183),9))","v":0.99999517000000004},{"$f":"VALUE(FIXED(EXP(AC$4*-1*'PM2.5 reduction'!AC183),9))","v":0.99999258999999996},{"$f":"VALUE(FIXED(EXP(AD$4*-1*'PM2.5 reduction'!AD183),9))","v":0.999997472},{"$f":"VALUE(FIXED(EXP(AE$4*-1*'PM2.5 reduction'!AE183),9))","v":0.999997468},{"$f":"VALUE(FIXED(EXP(AF$4*-1*'PM2.5 reduction'!AF183),9))","v":0.99999635099999995},{"$f":"VALUE(FIXED(EXP(AG$4*-1*'PM2.5 reduction'!AG183),9))","v":0.999997468},{"$f":"VALUE(FIXED(EXP(AH$4*-1*'PM2.5 reduction'!AH183),9))","v":0.99999415400000002},{"$f":"VALUE(FIXED(EXP(AI$4*-1*'PM2.5 reduction'!AI183),9))","v":0.99999175299999998},{"$f":"VALUE(FIXED(EXP(AJ$4*-1*'PM2.5 reduction'!AJ183),9))","v":0.99999527600000004},{"$f":"VALUE(FIXED(EXP(AK$4*-1*'PM2.5 reduction'!AK183),9))","v":0.99999733199999996},{"$f":"VALUE(FIXED(EXP(AL$4*-1*'PM2.5 reduction'!AL183),9))","v":0.99999762400000003},{"$f":"VALUE(FIXED(EXP(AM$4*-1*'PM2.5 reduction'!AM183),9))","v":0.999993825},{"$f":"VALUE(FIXED(EXP(AN$4*-1*'PM2.5 reduction'!AN183),9))","v":0.99999879199999997},{"$f":"VALUE(FIXED(EXP(AO$4*-1*'PM2.5 reduction'!AO183),9))","v":0.99999879199999997},{"$f":"VALUE(FIXED(EXP(AP$4*-1*'PM2.5 reduction'!AP183),9))","v":0.9999979},{"$f":"VALUE(FIXED(EXP(AQ$4*-1*'PM2.5 reduction'!AQ183),9))","v":0.99999431100000002},{"$f":"VALUE(FIXED(EXP(AR$4*-1*'PM2.5 reduction'!AR183),9))","v":0.99999435400000003},{"$f":"VALUE(FIXED(EXP(AS$4*-1*'PM2.5 reduction'!AS183),9))","v":0.99999880799999996},{"$f":"VALUE(FIXED(EXP(AT$4*-1*'PM2.5 reduction'!AT183),9))","v":0.99999901800000002},{"$f":"VALUE(FIXED(EXP(AU$4*-1*'PM2.5 reduction'!AU183),9))","v":0.99999901800000002},{"$f":"VALUE(FIXED(EXP(AV$4*-1*'PM2.5 reduction'!AV183),9))","v":0.99999573799999997},{"$f":"VALUE(FIXED(EXP(AW$4*-1*'PM2.5 reduction'!AW183),9))","v":0.99999443799999999},{"$f":"VALUE(FIXED(EXP(AX$4*-1*'PM2.5 reduction'!AX183),9))","v":0.99999685800000004},{"$f":"VALUE(FIXED(EXP(AY$4*-1*'PM2.5 reduction'!AY183),9))","v":0.99999617900000004},{"$f":"VALUE(FIXED(EXP(AZ$4*-1*'PM2.5 reduction'!AZ183),9))","v":0.99999635899999995},{"$f":"VALUE(FIXED(EXP(BA$4*-1*'PM2.5 reduction'!BA183),9))","v":0.99999525499999997},{"$f":"VALUE(FIXED(EXP(BB$4*-1*'PM2.5 reduction'!BB183),9))","v":0.99999533399999996},{"$f":"VALUE(FIXED(EXP(BC$4*-1*'PM2.5 reduction'!BC183),9))","v":1}]
[null,"Female 50-54",{"$f":"VALUE(FIXED(EXP(C$4*-1*'PM2.5 reduction'!C184),9))","v":0.99999157500000002},{"$f":"VALUE(FIXED(EXP(D$4*-1*'PM2.5 reduction'!D184),9))","v":0.999995101},{"$f":"VALUE(FIXED(EXP(E$4*-1*'PM2.5 reduction'!E184),9))","v":0.999998202},{"$f":"VALUE(FIXED(EXP(F$4*-1*'PM2.5 reduction'!F184),9))","v":0.99999804599999997},{"$f":"VALUE(FIXED(EXP(G$4*-1*'PM2.5 reduction'!G184),9))","v":0.99999751699999995},{"$f":"VALUE(FIXED(EXP(H$4*-1*'PM2.5 reduction'!H184),9))","v":0.99999665000000004},{"$f":"VALUE(FIXED(EXP(I$4*-1*'PM2.5 reduction'!I184),9))","v":0.999998783},{"$f":"VALUE(FIXED(EXP(J$4*-1*'PM2.5 reduction'!J184),9))","v":0.99999632299999996},{"$f":"VALUE(FIXED(EXP(K$4*-1*'PM2.5 reduction'!K184),9))","v":0.99999546699999997},{"$f":"VALUE(FIXED(EXP(L$4*-1*'PM2.5 reduction'!L184),9))","v":0.999998269},{"$f":"VALUE(FIXED(EXP(M$4*-1*'PM2.5 reduction'!M184),9))","v":0.999998269},{"$f":"VALUE(FIXED(EXP(N$4*-1*'PM2.5 reduction'!N184),9))","v":0.99999275300000001},{"$f":"VALUE(FIXED(EXP(O$4*-1*'PM2.5 reduction'!O184),9))","v":0.99999618999999995},{"$f":"VALUE(FIXED(EXP(P$4*-1*'PM2.5 reduction'!P184),9))","v":0.99999350600000003},{"$f":"VALUE(FIXED(EXP(Q$4*-1*'PM2.5 reduction'!Q184),9))","v":0.99999615500000005},{"$f":"VALUE(FIXED(EXP(R$4*-1*'PM2.5 reduction'!R184),9))","v":0.99999444400000004},{"$f":"VALUE(FIXED(EXP(S$4*-1*'PM2.5 reduction'!S184),9))","v":0.999993307},{"$f":"VALUE(FIXED(EXP(T$4*-1*'PM2.5 reduction'!T184),9))","v":0.99998939899999995},{"$f":"VALUE(FIXED(EXP(U$4*-1*'PM2.5 reduction'!U184),9))","v":1},{"$f":"VALUE(FIXED(EXP(V$4*-1*'PM2.5 reduction'!V184),9))","v":0.99999456200000003},{"$f":"VALUE(FIXED(EXP(W$4*-1*'PM2.5 reduction'!W184),9))","v":0.99999599299999997},{"$f":"VALUE(FIXED(EXP(X$4*-1*'PM2.5 reduction'!X184),9))","v":0.99999599299999997},{"$f":"VALUE(FIXED(EXP(Y$4*-1*'PM2.5 reduction'!Y184),9))","v":0.99999534400000001},{"$f":"VALUE(FIXED(EXP(Z$4*-1*'PM2.5 reduction'!Z184),9))","v":0.99999033599999998},{"$f":"VALUE(FIXED(EXP(AA$4*-1*'PM2.5 reduction'!AA184),9))","v":0.99999325800000005},{"$f":"VALUE(FIXED(EXP(AB$4*-1*'PM2.5 reduction'!AB184),9))","v":0.99999531399999997},{"$f":"VALUE(FIXED(EXP(AC$4*-1*'PM2.5 reduction'!AC184),9))","v":0.99999265999999998},{"$f":"VALUE(FIXED(EXP(AD$4*-1*'PM2.5 reduction'!AD184),9))","v":0.99999738800000004},{"$f":"VALUE(FIXED(EXP(AE$4*-1*'PM2.5 reduction'!AE184),9))","v":0.99999737799999999},{"$f":"VALUE(FIXED(EXP(AF$4*-1*'PM2.5 reduction'!AF184),9))","v":0.99999598999999995},{"$f":"VALUE(FIXED(EXP(AG$4*-1*'PM2.5 reduction'!AG184),9))","v":0.99999737799999999},{"$f":"VALUE(FIXED(EXP(AH$4*-1*'PM2.5 reduction'!AH184),9))","v":0.99999416299999999},{"$f":"VALUE(FIXED(EXP(AI$4*-1*'PM2.5 reduction'!AI184),9))","v":0.99999187700000003},{"$f":"VALUE(FIXED(EXP(AJ$4*-1*'PM2.5 reduction'!AJ184),9))","v":0.99999544299999998},{"$f":"VALUE(FIXED(EXP(AK$4*-1*'PM2.5 reduction'!AK184),9))","v":0.99999780900000002},{"$f":"VALUE(FIXED(EXP(AL$4*-1*'PM2.5 reduction'!AL184),9))","v":0.99999756299999998},{"$f":"VALUE(FIXED(EXP(AM$4*-1*'PM2.5 reduction'!AM184),9))","v":0.99999366300000003},{"$f":"VALUE(FIXED(EXP(AN$4*-1*'PM2.5 reduction'!AN184),9))","v":0.99999881800000001},{"$f":"VALUE(FIXED(EXP(AO$4*-1*'PM2.5 reduction'!AO184),9))","v":0.99999881800000001},{"$f":"VALUE(FIXED(EXP(AP$4*-1*'PM2.5 reduction'!AP184),9))","v":0.99999805799999997},{"$f":"VALUE(FIXED(EXP(AQ$4*-1*'PM2.5 reduction'!AQ184),9))","v":0.9999943},{"$f":"VALUE(FIXED(EXP(AR$4*-1*'PM2.5 reduction'!AR184),9))","v":0.99999439499999998},{"$f":"VALUE(FIXED(EXP(AS$4*-1*'PM2.5 reduction'!AS184),9))","v":0.999998783},{"$f":"VALUE(FIXED(EXP(AT$4*-1*'PM2.5 reduction'!AT184),9))","v":0.99999896499999996},{"$f":"VALUE(FIXED(EXP(AU$4*-1*'PM2.5 reduction'!AU184),9))","v":0.99999896499999996},{"$f":"VALUE(FIXED(EXP(AV$4*-1*'PM2.5 reduction'!AV184),9))","v":0.99999574599999996},{"$f":"VALUE(FIXED(EXP(AW$4*-1*'PM2.5 reduction'!AW184),9))","v":0.99999459300000004},{"$f":"VALUE(FIXED(EXP(AX$4*-1*'PM2.5 reduction'!AX184),9))","v":0.99999672900000003},{"$f":"VALUE(FIXED(EXP(AY$4*-1*'PM2.5 reduction'!AY184),9))","v":0.99999621800000005},{"$f":"VALUE(FIXED(EXP(AZ$4*-1*'PM2.5 reduction'!AZ184),9))","v":0.999996357},{"$f":"VALUE(FIXED(EXP(BA$4*-1*'PM2.5 reduction'!BA184),9))","v":0.999995415},{"$f":"VALUE(FIXED(EXP(BB$4*-1*'PM2.5 reduction'!BB184),9))","v":0.99999548199999999},{"$f":"VALUE(FIXED(EXP(BC$4*-1*'PM2.5 reduction'!BC184),9))","v":1}]
[null,"Female 55-59",{"$f":"VALUE(FIXED(EXP(C$4*-1*'PM2.5 reduction'!C185),9))","v":0.99999148699999996},{"$f":"VALUE(FIXED(EXP(D$4*-1*'PM2.5 reduction'!D185),9))","v":0.99999511100000005},{"$f":"VALUE(FIXED(EXP(E$4*-1*'PM2.5 reduction'!E185),9))","v":0.99999827200000002},{"$f":"VALUE(FIXED(EXP(F$4*-1*'PM2.5 reduction'!F185),9))","v":0.99999800900000002},{"$f":"VALUE(FIXED(EXP(G$4*-1*'PM2.5 reduction'!G185),9))","v":0.99999751000000003},{"$f":"VALUE(FIXED(EXP(H$4*-1*'PM2.5 reduction'!H185),9))","v":0.99999642799999999},{"$f":"VALUE(FIXED(EXP(I$4*-1*'PM2.5 reduction'!I185),9))","v":0.99999872599999995},{"$f":"VALUE(FIXED(EXP(J$4*-1*'PM2.5 reduction'!J185),9))","v":0.99999623500000001},{"$f":"VALUE(FIXED(EXP(K$4*-1*'PM2.5 reduction'!K185),9))","v":0.99999572699999995},{"$f":"VALUE(FIXED(EXP(L$4*-1*'PM2.5 reduction'!L185),9))","v":0.99999826700000005},{"$f":"VALUE(FIXED(EXP(M$4*-1*'PM2.5 reduction'!M185),9))","v":0.99999826700000005},{"$f":"VALUE(FIXED(EXP(N$4*-1*'PM2.5 reduction'!N185),9))","v":0.99999241699999997},{"$f":"VALUE(FIXED(EXP(O$4*-1*'PM2.5 reduction'!O185),9))","v":0.999995776},{"$f":"VALUE(FIXED(EXP(P$4*-1*'PM2.5 reduction'!P185),9))","v":0.99999340199999998},{"$f":"VALUE(FIXED(EXP(Q$4*-1*'PM2.5 reduction'!Q185),9))","v":0.99999618800000001},{"$f":"VALUE(FIXED(EXP(R$4*-1*'PM2.5 reduction'!R185),9))","v":0.99999432099999996},{"$f":"VALUE(FIXED(EXP(S$4*-1*'PM2.5 reduction'!S185),9))","v":0.99999339399999998},{"$f":"VALUE(FIXED(EXP(T$4*-1*'PM2.5 reduction'!T185),9))","v":0.99998947299999996},{"$f":"VALUE(FIXED(EXP(U$4*-1*'PM2.5 reduction'!U185),9))","v":1},{"$f":"VALUE(FIXED(EXP(V$4*-1*'PM2.5 reduction'!V185),9))","v":0.99999468800000002},{"$f":"VALUE(FIXED(EXP(W$4*-1*'PM2.5 reduction'!W185),9))","v":0.99999592100000001},{"$f":"VALUE(FIXED(EXP(X$4*-1*'PM2.5 reduction'!X185),9))","v":0.99999592100000001},{"$f":"VALUE(FIXED(EXP(Y$4*-1*'PM2.5 reduction'!Y185),9))","v":0.99999537100000002},{"$f":"VALUE(FIXED(EXP(Z$4*-1*'PM2.5 reduction'!Z185),9))","v":0.99999017800000001},{"$f":"VALUE(FIXED(EXP(AA$4*-1*'PM2.5 reduction'!AA185),9))","v":0.99999320700000005},{"$f":"VALUE(FIXED(EXP(AB$4*-1*'PM2.5 reduction'!AB185),9))","v":0.99999531900000005},{"$f":"VALUE(FIXED(EXP(AC$4*-1*'PM2.5 reduction'!AC185),9))","v":0.99999262700000002},{"$f":"VALUE(FIXED(EXP(AD$4*-1*'PM2.5 reduction'!AD185),9))","v":0.99999742300000005},{"$f":"VALUE(FIXED(EXP(AE$4*-1*'PM2.5 reduction'!AE185),9))","v":0.99999741499999995},{"$f":"VALUE(FIXED(EXP(AF$4*-1*'PM2.5 reduction'!AF185),9))","v":0.99999617299999999},{"$f":"VALUE(FIXED(EXP(AG$4*-1*'PM2.5 reduction'!AG185),9))","v":0.99999741499999995},{"$f":"VALUE(FIXED(EXP(AH$4*-1*'PM2.5 reduction'!AH185),9))","v":0.999994155},{"$f":"VALUE(FIXED(EXP(AI$4*-1*'PM2.5 reduction'!AI185),9))","v":0.99999193900000005},{"$f":"VALUE(FIXED(EXP(AJ$4*-1*'PM2.5 reduction'!AJ185),9))","v":0.99999556000000001},{"$f":"VALUE(FIXED(EXP(AK$4*-1*'PM2.5 reduction'!AK185),9))","v":0.99999775499999999},{"$f":"VALUE(FIXED(EXP(AL$4*-1*'PM2.5 reduction'!AL185),9))","v":0.99999757600000005},{"$f":"VALUE(FIXED(EXP(AM$4*-1*'PM2.5 reduction'!AM185),9))","v":0.99999371100000001},{"$f":"VALUE(FIXED(EXP(AN$4*-1*'PM2.5 reduction'!AN185),9))","v":0.99999873699999997},{"$f":"VALUE(FIXED(EXP(AO$4*-1*'PM2.5 reduction'!AO185),9))","v":0.99999873699999997},{"$f":"VALUE(FIXED(EXP(AP$4*-1*'PM2.5 reduction'!AP185),9))","v":0.99999807500000004},{"$f":"VALUE(FIXED(EXP(AQ$4*-1*'PM2.5 reduction'!AQ185),9))","v":0.99999429299999998},{"$f":"VALUE(FIXED(EXP(AR$4*-1*'PM2.5 reduction'!AR185),9))","v":0.99999436399999997},{"$f":"VALUE(FIXED(EXP(AS$4*-1*'PM2.5 reduction'!AS185),9))","v":0.99999872599999995},{"$f":"VALUE(FIXED(EXP(AT$4*-1*'PM2.5 reduction'!AT185),9))","v":0.99999904699999997},{"$f":"VALUE(FIXED(EXP(AU$4*-1*'PM2.5 reduction'!AU185),9))","v":0.99999904699999997},{"$f":"VALUE(FIXED(EXP(AV$4*-1*'PM2.5 reduction'!AV185),9))","v":0.99999569700000002},{"$f":"VALUE(FIXED(EXP(AW$4*-1*'PM2.5 reduction'!AW185),9))","v":0.99999448400000002},{"$f":"VALUE(FIXED(EXP(AX$4*-1*'PM2.5 reduction'!AX185),9))","v":0.99999652100000003},{"$f":"VALUE(FIXED(EXP(AY$4*-1*'PM2.5 reduction'!AY185),9))","v":0.99999598899999997},{"$f":"VALUE(FIXED(EXP(AZ$4*-1*'PM2.5 reduction'!AZ185),9))","v":0.99999603100000001},{"$f":"VALUE(FIXED(EXP(BA$4*-1*'PM2.5 reduction'!BA185),9))","v":0.99999525},{"$f":"VALUE(FIXED(EXP(BB$4*-1*'PM2.5 reduction'!BB185),9))","v":0.99999555399999995},{"$f":"VALUE(FIXED(EXP(BC$4*-1*'PM2.5 reduction'!BC185),9))","v":1}]
[null,"Female 60-64",{"$f":"VALUE(FIXED(EXP(C$4*-1*'PM2.5 reduction'!C186),9))","v":0.99999170599999998},{"$f":"VALUE(FIXED(EXP(D$4*-1*'PM2.5 reduction'!D186),9))","v":0.99999524799999995},{"$f":"VALUE(FIXED(EXP(E$4*-1*'PM2.5 reduction'!E186),9))","v":0.99999825200000003},{"$f":"VALUE(FIXED(EXP(F$4*-1*'PM2.5 reduction'!F186),9))","v":0.99999799099999997},{"$f":"VALUE(FIXED(EXP(G$4*-1*'PM2.5 reduction'!G186),9))","v":0.99999750300000001},{"$f":"VALUE(FIXED(EXP(H$4*-1*'PM2.5 reduction'!H186),9))","v":0.99999645800000003},{"$f":"VALUE(FIXED(EXP(I$4*-1*'PM2.5 reduction'!I186),9))","v":0.99999872000000001},{"$f":"VALUE(FIXED(EXP(J$4*-1*'PM2.5 reduction'!J186),9))","v":0.999996302},{"$f":"VALUE(FIXED(EXP(K$4*-1*'PM2.5 reduction'!K186),9))","v":0.99999543099999999},{"$f":"VALUE(FIXED(EXP(L$4*-1*'PM2.5 reduction'!L186),9))","v":0.99999824500000001},{"$f":"VALUE(FIXED(EXP(M$4*-1*'PM2.5 reduction'!M186),9))","v":0.99999824500000001},{"$f":"VALUE(FIXED(EXP(N$4*-1*'PM2.5 reduction'!N186),9))","v":0.999992561},{"$f":"VALUE(FIXED(EXP(O$4*-1*'PM2.5 reduction'!O186),9))","v":0.99999579299999997},{"$f":"VALUE(FIXED(EXP(P$4*-1*'PM2.5 reduction'!P186),9))","v":0.99999363900000005},{"$f":"VALUE(FIXED(EXP(Q$4*-1*'PM2.5 reduction'!Q186),9))","v":0.99999663500000002},{"$f":"VALUE(FIXED(EXP(R$4*-1*'PM2.5 reduction'!R186),9))","v":0.99999417099999999},{"$f":"VALUE(FIXED(EXP(S$4*-1*'PM2.5 reduction'!S186),9))","v":0.99999350300000001},{"$f":"VALUE(FIXED(EXP(T$4*-1*'PM2.5 reduction'!T186),9))","v":0.99998940199999997},{"$f":"VALUE(FIXED(EXP(U$4*-1*'PM2.5 reduction'!U186),9))","v":1},{"$f":"VALUE(FIXED(EXP(V$4*-1*'PM2.5 reduction'!V186),9))","v":0.99999470999999995},{"$f":"VALUE(FIXED(EXP(W$4*-1*'PM2.5 reduction'!W186),9))","v":0.99999594599999997},{"$f":"VALUE(FIXED(EXP(X$4*-1*'PM2.5 reduction'!X186),9))","v":0.99999594599999997},{"$f":"VALUE(FIXED(EXP(Y$4*-1*'PM2.5 reduction'!Y186),9))","v":0.99999542200000002},{"$f":"VALUE(FIXED(EXP(Z$4*-1*'PM2.5 reduction'!Z186),9))","v":0.99999029800000006},{"$f":"VALUE(FIXED(EXP(AA$4*-1*'PM2.5 reduction'!AA186),9))","v":0.99999333000000001},{"$f":"VALUE(FIXED(EXP(AB$4*-1*'PM2.5 reduction'!AB186),9))","v":0.99999543300000004},{"$f":"VALUE(FIXED(EXP(AC$4*-1*'PM2.5 reduction'!AC186),9))","v":0.99999273600000005},{"$f":"VALUE(FIXED(EXP(AD$4*-1*'PM2.5 reduction'!AD186),9))","v":0.99999742199999997},{"$f":"VALUE(FIXED(EXP(AE$4*-1*'PM2.5 reduction'!AE186),9))","v":0.99999741200000003},{"$f":"VALUE(FIXED(EXP(AF$4*-1*'PM2.5 reduction'!AF186),9))","v":0.99999599699999997},{"$f":"VALUE(FIXED(EXP(AG$4*-1*'PM2.5 reduction'!AG186),9))","v":0.99999741200000003},{"$f":"VALUE(FIXED(EXP(AH$4*-1*'PM2.5 reduction'!AH186),9))","v":0.99999427500000004},{"$f":"VALUE(FIXED(EXP(AI$4*-1*'PM2.5 reduction'!AI186),9))","v":0.999991925},{"$f":"VALUE(FIXED(EXP(AJ$4*-1*'PM2.5 reduction'!AJ186),9))","v":0.99999566299999998},{"$f":"VALUE(FIXED(EXP(AK$4*-1*'PM2.5 reduction'!AK186),9))","v":0.99999769100000002},{"$f":"VALUE(FIXED(EXP(AL$4*-1*'PM2.5 reduction'!AL186),9))","v":0.999997578},{"$f":"VALUE(FIXED(EXP(AM$4*-1*'PM2.5 reduction'!AM186),9))","v":0.99999378500000002},{"$f":"VALUE(FIXED(EXP(AN$4*-1*'PM2.5 reduction'!AN186),9))","v":0.99999887200000004},{"$f":"VALUE(FIXED(EXP(AO$4*-1*'PM2.5 reduction'!AO186),9))","v":0.99999887200000004},{"$f":"VALUE(FIXED(EXP(AP$4*-1*'PM2.5 reduction'!AP186),9))","v":0.99999823200000004},{"$f":"VALUE(FIXED(EXP(AQ$4*-1*'PM2.5 reduction'!AQ186),9))","v":0.99999427500000004},{"$f":"VALUE(FIXED(EXP(AR$4*-1*'PM2.5 reduction'!AR186),9))","v":0.99999455699999995},{"$f":"VALUE(FIXED(EXP(AS$4*-1*'PM2.5 reduction'!AS186),9))","v":0.99999872000000001},{"$f":"VALUE(FIXED(EXP(AT$4*-1*'PM2.5 reduction'!AT186),9))","v":0.99999906100000002},{"$f":"VALUE(FIXED(EXP(AU$4*-1*'PM2.5 reduction'!AU186),9))","v":0.99999906100000002},{"$f":"VALUE(FIXED(EXP(AV$4*-1*'PM2.5 reduction'!AV186),9))","v":0.99999568000000005},{"$f":"VALUE(FIXED(EXP(AW$4*-1*'PM2.5 reduction'!AW186),9))","v":0.99999463200000005},{"$f":"VALUE(FIXED(EXP(AX$4*-1*'PM2.5 reduction'!AX186),9))","v":0.99999673300000003},{"$f":"VALUE(FIXED(EXP(AY$4*-1*'PM2.5 reduction'!AY186),9))","v":0.99999627400000002},{"$f":"VALUE(FIXED(EXP(AZ$4*-1*'PM2.5 reduction'!AZ186),9))","v":0.99999647300000005},{"$f":"VALUE(FIXED(EXP(BA$4*-1*'PM2.5 reduction'!BA186),9))","v":0.99999542900000005},{"$f":"VALUE(FIXED(EXP(BB$4*-1*'PM2.5 reduction'!BB186),9))","v":0.999995513},{"$f":"VALUE(FIXED(EXP(BC$4*-1*'PM2.5 reduction'!BC186),9))","v":1}]
[null,"Female 65-69",{"$f":"VALUE(FIXED(EXP(C$4*-1*'PM2.5 reduction'!C187),9))","v":0.99999202899999995},{"$f":"VALUE(FIXED(EXP(D$4*-1*'PM2.5 reduction'!D187),9))","v":0.99999531100000005},{"$f":"VALUE(FIXED(EXP(E$4*-1*'PM2.5 reduction'!E187),9))","v":0.99999823499999996},{"$f":"VALUE(FIXED(EXP(F$4*-1*'PM2.5 reduction'!F187),9))","v":0.99999793100000001},{"$f":"VALUE(FIXED(EXP(G$4*-1*'PM2.5 reduction'!G187),9))","v":0.99999749999999998},{"$f":"VALUE(FIXED(EXP(H$4*-1*'PM2.5 reduction'!H187),9))","v":0.99999643599999999},{"$f":"VALUE(FIXED(EXP(I$4*-1*'PM2.5 reduction'!I187),9))","v":0.99999873699999997},{"$f":"VALUE(FIXED(EXP(J$4*-1*'PM2.5 reduction'!J187),9))","v":0.99999621299999997},{"$f":"VALUE(FIXED(EXP(K$4*-1*'PM2.5 reduction'!K187),9))","v":0.99999571099999995},{"$f":"VALUE(FIXED(EXP(L$4*-1*'PM2.5 reduction'!L187),9))","v":0.999998316},{"$f":"VALUE(FIXED(EXP(M$4*-1*'PM2.5 reduction'!M187),9))","v":0.999998316},{"$f":"VALUE(FIXED(EXP(N$4*-1*'PM2.5 reduction'!N187),9))","v":0.99999273600000005},{"$f":"VALUE(FIXED(EXP(O$4*-1*'PM2.5 reduction'!O187),9))","v":0.99999581299999996},{"$f":"VALUE(FIXED(EXP(P$4*-1*'PM2.5 reduction'!P187),9))","v":0.99999360100000001},{"$f":"VALUE(FIXED(EXP(Q$4*-1*'PM2.5 reduction'!Q187),9))","v":0.99999644099999996},{"$f":"VALUE(FIXED(EXP(R$4*-1*'PM2.5 reduction'!R187),9))","v":0.99999394799999997},{"$f":"VALUE(FIXED(EXP(S$4*-1*'PM2.5 reduction'!S187),9))","v":0.99999382999999997},{"$f":"VALUE(FIXED(EXP(T$4*-1*'PM2.5 reduction'!T187),9))","v":0.99998974900000004},{"$f":"VALUE(FIXED(EXP(U$4*-1*'PM2.5 reduction'!U187),9))","v":1},{"$f":"VALUE(FIXED(EXP(V$4*-1*'PM2.5 reduction'!V187),9))","v":0.99999456499999995},{"$f":"VALUE(FIXED(EXP(W$4*-1*'PM2.5 reduction'!W187),9))","v":0.99999594800000002},{"$f":"VALUE(FIXED(EXP(X$4*-1*'PM2.5 reduction'!X187),9))","v":0.99999594800000002},{"$f":"VALUE(FIXED(EXP(Y$4*-1*'PM2.5 reduction'!Y187),9))","v":0.99999528999999998},{"$f":"VALUE(FIXED(EXP(Z$4*-1*'PM2.5 reduction'!Z187),9))","v":0.99999035400000003},{"$f":"VALUE(FIXED(EXP(AA$4*-1*'PM2.5 reduction'!AA187),9))","v":0.999993303},{"$f":"VALUE(FIXED(EXP(AB$4*-1*'PM2.5 reduction'!AB187),9))","v":0.99999550100000001},{"$f":"VALUE(FIXED(EXP(AC$4*-1*'PM2.5 reduction'!AC187),9))","v":0.999992769},{"$f":"VALUE(FIXED(EXP(AD$4*-1*'PM2.5 reduction'!AD187),9))","v":0.99999750300000001},{"$f":"VALUE(FIXED(EXP(AE$4*-1*'PM2.5 reduction'!AE187),9))","v":0.99999750300000001},{"$f":"VALUE(FIXED(EXP(AF$4*-1*'PM2.5 reduction'!AF187),9))","v":0.99999571499999995},{"$f":"VALUE(FIXED(EXP(AG$4*-1*'PM2.5 reduction'!AG187),9))","v":0.99999750300000001},{"$f":"VALUE(FIXED(EXP(AH$4*-1*'PM2.5 reduction'!AH187),9))","v":0.99999420000000006},{"$f":"VALUE(FIXED(EXP(AI$4*-1*'PM2.5 reduction'!AI187),9))","v":0.99999223599999998},{"$f":"VALUE(FIXED(EXP(AJ$4*-1*'PM2.5 reduction'!AJ187),9))","v":0.99999540799999997},{"$f":"VALUE(FIXED(EXP(AK$4*-1*'PM2.5 reduction'!AK187),9))","v":0.999997684},{"$f":"VALUE(FIXED(EXP(AL$4*-1*'PM2.5 reduction'!AL187),9))","v":0.99999755000000001},{"$f":"VALUE(FIXED(EXP(AM$4*-1*'PM2.5 reduction'!AM187),9))","v":0.999993719},{"$f":"VALUE(FIXED(EXP(AN$4*-1*'PM2.5 reduction'!AN187),9))","v":0.999998685},{"$f":"VALUE(FIXED(EXP(AO$4*-1*'PM2.5 reduction'!AO187),9))","v":0.999998685},{"$f":"VALUE(FIXED(EXP(AP$4*-1*'PM2.5 reduction'!AP187),9))","v":0.99999823799999998},{"$f":"VALUE(FIXED(EXP(AQ$4*-1*'PM2.5 reduction'!AQ187),9))","v":0.99999423600000004},{"$f":"VALUE(FIXED(EXP(AR$4*-1*'PM2.5 reduction'!AR187),9))","v":0.99999467799999997},{"$f":"VALUE(FIXED(EXP(AS$4*-1*'PM2.5 reduction'!AS187),9))","v":0.99999873699999997},{"$f":"VALUE(FIXED(EXP(AT$4*-1*'PM2.5 reduction'!AT187),9))","v":0.99999906100000002},{"$f":"VALUE(FIXED(EXP(AU$4*-1*'PM2.5 reduction'!AU187),9))","v":0.99999906100000002},{"$f":"VALUE(FIXED(EXP(AV$4*-1*'PM2.5 reduction'!AV187),9))","v":0.99999576300000004},{"$f":"VALUE(FIXED(EXP(AW$4*-1*'PM2.5 reduction'!AW187),9))","v":0.99999452499999997},{"$f":"VALUE(FIXED(EXP(AX$4*-1*'PM2.5 reduction'!AX187),9))","v":0.99999649999999995},{"$f":"VALUE(FIXED(EXP(AY$4*-1*'PM2.5 reduction'!AY187),9))","v":0.99999629700000003},{"$f":"VALUE(FIXED(EXP(AZ$4*-1*'PM2.5 reduction'!AZ187),9))","v":0.99999651000000001},{"$f":"VALUE(FIXED(EXP(BA$4*-1*'PM2.5 reduction'!BA187),9))","v":0.999995517},{"$f":"VALUE(FIXED(EXP(BB$4*-1*'PM2.5 reduction'!BB187),9))","v":0.99999549399999998},{"$f":"VALUE(FIXED(EXP(BC$4*-1*'PM2.5 reduction'!BC187),9))","v":1}]
[null,"Female 70-74",{"$f":"VALUE(FIXED(EXP(C$4*-1*'PM2.5 reduction'!C188),9))","v":0.99999198600000005},{"$f":"VALUE(FIXED(EXP(D$4*-1*'PM2.5 reduction'!D188),9))","v":0.99999564200000002},{"$f":"VALUE(FIXED(EXP(E$4*-1*'PM2.5 reduction'!E188),9))","v":0.99999830499999998},{"$f":"VALUE(FIXED(EXP(F$4*-1*'PM2.5 reduction'!F188),9))","v":0.99999808199999995},{"$f":"VALUE(FIXED(EXP(G$4*-1*'PM2.5 reduction'!G188),9))","v":0.99999750399999998},{"$f":"VALUE(FIXED(EXP(H$4*-1*'PM2.5 reduction'!H188),9))","v":0.99999654699999996},{"$f":"VALUE(FIXED(EXP(I$4*-1*'PM2.5 reduction'!I188),9))","v":0.99999883300000003},{"$f":"VALUE(FIXED(EXP(J$4*-1*'PM2.5 reduction'!J188),9))","v":0.99999612400000004},{"$f":"VALUE(FIXED(EXP(K$4*-1*'PM2.5 reduction'!K188),9))","v":0.99999556499999998},{"$f":"VALUE(FIXED(EXP(L$4*-1*'PM2.5 reduction'!L188),9))","v":0.99999832300000002},{"$f":"VALUE(FIXED(EXP(M$4*-1*'PM2.5 reduction'!M188),9))","v":0.99999832300000002},{"$f":"VALUE(FIXED(EXP(N$4*-1*'PM2.5 reduction'!N188),9))","v":0.99999258400000002},{"$f":"VALUE(FIXED(EXP(O$4*-1*'PM2.5 reduction'!O188),9))","v":0.999996353},{"$f":"VALUE(FIXED(EXP(P$4*-1*'PM2.5 reduction'!P188),9))","v":0.99999348399999999},{"$f":"VALUE(FIXED(EXP(Q$4*-1*'PM2.5 reduction'!Q188),9))","v":0.99999636599999997},{"$f":"VALUE(FIXED(EXP(R$4*-1*'PM2.5 reduction'!R188),9))","v":0.99999370799999998},{"$f":"VALUE(FIXED(EXP(S$4*-1*'PM2.5 reduction'!S188),9))","v":0.99999409500000003},{"$f":"VALUE(FIXED(EXP(T$4*-1*'PM2.5 reduction'!T188),9))","v":0.999989978},{"$f":"VALUE(FIXED(EXP(U$4*-1*'PM2.5 reduction'!U188),9))","v":1},{"$f":"VALUE(FIXED(EXP(V$4*-1*'PM2.5 reduction'!V188),9))","v":0.99999427699999999},{"$f":"VALUE(FIXED(EXP(W$4*-1*'PM2.5 reduction'!W188),9))","v":0.99999606900000004},{"$f":"VALUE(FIXED(EXP(X$4*-1*'PM2.5 reduction'!X188),9))","v":0.99999606900000004},{"$f":"VALUE(FIXED(EXP(Y$4*-1*'PM2.5 reduction'!Y188),9))","v":0.99999509200000003},{"$f":"VALUE(FIXED(EXP(Z$4*-1*'PM2.5 reduction'!Z188),9))","v":0.99999038200000001},{"$f":"VALUE(FIXED(EXP(AA$4*-1*'PM2.5 reduction'!AA188),9))","v":0.99999332500000004},{"$f":"VALUE(FIXED(EXP(AB$4*-1*'PM2.5 reduction'!AB188),9))","v":0.99999581000000004},{"$f":"VALUE(FIXED(EXP(AC$4*-1*'PM2.5 reduction'!AC188),9))","v":0.99999289099999999},{"$f":"VALUE(FIXED(EXP(AD$4*-1*'PM2.5 reduction'!AD188),9))","v":0.99999748399999999},{"$f":"VALUE(FIXED(EXP(AE$4*-1*'PM2.5 reduction'!AE188),9))","v":0.99999748099999997},{"$f":"VALUE(FIXED(EXP(AF$4*-1*'PM2.5 reduction'!AF188),9))","v":0.99999585700000004},{"$f":"VALUE(FIXED(EXP(AG$4*-1*'PM2.5 reduction'!AG188),9))","v":0.99999748099999997},{"$f":"VALUE(FIXED(EXP(AH$4*-1*'PM2.5 reduction'!AH188),9))","v":0.99999412600000004},{"$f":"VALUE(FIXED(EXP(AI$4*-1*'PM2.5 reduction'!AI188),9))","v":0.9999924},{"$f":"VALUE(FIXED(EXP(AJ$4*-1*'PM2.5 reduction'!AJ188),9))","v":0.999995576},{"$f":"VALUE(FIXED(EXP(AK$4*-1*'PM2.5 reduction'!AK188),9))","v":0.99999757899999997},{"$f":"VALUE(FIXED(EXP(AL$4*-1*'PM2.5 reduction'!AL188),9))","v":0.99999760000000004},{"$f":"VALUE(FIXED(EXP(AM$4*-1*'PM2.5 reduction'!AM188),9))","v":0.99999374500000004},{"$f":"VALUE(FIXED(EXP(AN$4*-1*'PM2.5 reduction'!AN188),9))","v":0.99999887099999996},{"$f":"VALUE(FIXED(EXP(AO$4*-1*'PM2.5 reduction'!AO188),9))","v":0.99999887099999996},{"$f":"VALUE(FIXED(EXP(AP$4*-1*'PM2.5 reduction'!AP188),9))","v":0.99999819700000003},{"$f":"VALUE(FIXED(EXP(AQ$4*-1*'PM2.5 reduction'!AQ188),9))","v":0.99999443399999999},{"$f":"VALUE(FIXED(EXP(AR$4*-1*'PM2.5 reduction'!AR188),9))","v":0.999994885},{"$f":"VALUE(FIXED(EXP(AS$4*-1*'PM2.5 reduction'!AS188),9))","v":0.99999883300000003},{"$f":"VALUE(FIXED(EXP(AT$4*-1*'PM2.5 reduction'!AT188),9))","v":0.99999898600000003},{"$f":"VALUE(FIXED(EXP(AU$4*-1*'PM2.5 reduction'!AU188),9))","v":0.99999898600000003},{"$f":"VALUE(FIXED(EXP(AV$4*-1*'PM2.5 reduction'!AV188),9))","v":0.99999576999999995},{"$f":"VALUE(FIXED(EXP(AW$4*-1*'PM2.5 reduction'!AW188),9))","v":0.99999439999999995},{"$f":"VALUE(FIXED(EXP(AX$4*-1*'PM2.5 reduction'!AX188),9))","v":0.99999650299999998},{"$f":"VALUE(FIXED(EXP(AY$4*-1*'PM2.5 reduction'!AY188),9))","v":0.99999647800000002},{"$f":"VALUE(FIXED(EXP(AZ$4*-1*'PM2.5 reduction'!AZ188),9))","v":0.99999671199999995},{"$f":"VALUE(FIXED(EXP(BA$4*-1*'PM2.5 reduction'!BA188),9))","v":0.99999538499999996},{"$f":"VALUE(FIXED(EXP(BB$4*-1*'PM2.5 reduction'!BB188),9))","v":0.999995368},{"$f":"VALUE(FIXED(EXP(BC$4*-1*'PM2.5 reduction'!BC188),9))","v":1}]
[null,"Female 75-79",{"$f":"VALUE(FIXED(EXP(C$4*-1*'PM2.5 reduction'!C189),9))","v":0.99999148500000001},{"$f":"VALUE(FIXED(EXP(D$4*-1*'PM2.5 reduction'!D189),9))","v":0.99999543499999999},{"$f":"VALUE(FIXED(EXP(E$4*-1*'PM2.5 reduction'!E189),9))","v":0.99999825200000003},{"$f":"VALUE(FIXED(EXP(F$4*-1*'PM2.5 reduction'!F189),9))","v":0.99999795300000005},{"$f":"VALUE(FIXED(EXP(G$4*-1*'PM2.5 reduction'!G189),9))","v":0.99999749100000002},{"$f":"VALUE(FIXED(EXP(H$4*-1*'PM2.5 reduction'!H189),9))","v":0.99999633200000004},{"$f":"VALUE(FIXED(EXP(I$4*-1*'PM2.5 reduction'!I189),9))","v":0.99999875299999996},{"$f":"VALUE(FIXED(EXP(J$4*-1*'PM2.5 reduction'!J189),9))","v":0.99999618599999995},{"$f":"VALUE(FIXED(EXP(K$4*-1*'PM2.5 reduction'!K189),9))","v":0.99999587999999995},{"$f":"VALUE(FIXED(EXP(L$4*-1*'PM2.5 reduction'!L189),9))","v":0.99999834799999998},{"$f":"VALUE(FIXED(EXP(M$4*-1*'PM2.5 reduction'!M189),9))","v":0.99999834799999998},{"$f":"VALUE(FIXED(EXP(N$4*-1*'PM2.5 reduction'!N189),9))","v":0.99999247700000005},{"$f":"VALUE(FIXED(EXP(O$4*-1*'PM2.5 reduction'!O189),9))","v":0.999995886},{"$f":"VALUE(FIXED(EXP(P$4*-1*'PM2.5 reduction'!P189),9))","v":0.99999328700000001},{"$f":"VALUE(FIXED(EXP(Q$4*-1*'PM2.5 reduction'!Q189),9))","v":0.99999617399999996},{"$f":"VALUE(FIXED(EXP(R$4*-1*'PM2.5 reduction'!R189),9))","v":0.99999379899999996},{"$f":"VALUE(FIXED(EXP(S$4*-1*'PM2.5 reduction'!S189),9))","v":0.99999387799999995},{"$f":"VALUE(FIXED(EXP(T$4*-1*'PM2.5 reduction'!T189),9))","v":0.99998982400000003},{"$f":"VALUE(FIXED(EXP(U$4*-1*'PM2.5 reduction'!U189),9))","v":1},{"$f":"VALUE(FIXED(EXP(V$4*-1*'PM2.5 reduction'!V189),9))","v":0.99999418299999998},{"$f":"VALUE(FIXED(EXP(W$4*-1*'PM2.5 reduction'!W189),9))","v":0.99999604099999995},{"$f":"VALUE(FIXED(EXP(X$4*-1*'PM2.5 reduction'!X189),9))","v":0.99999604099999995},{"$f":"VALUE(FIXED(EXP(Y$4*-1*'PM2.5 reduction'!Y189),9))","v":0.99999503099999998},{"$f":"VALUE(FIXED(EXP(Z$4*-1*'PM2.5 reduction'!Z189),9))","v":0.99999040299999997},{"$f":"VALUE(FIXED(EXP(AA$4*-1*'PM2.5 reduction'!AA189),9))","v":0.99999314399999994},{"$f":"VALUE(FIXED(EXP(AB$4*-1*'PM2.5 reduction'!AB189),9))","v":0.99999561699999995},{"$f":"VALUE(FIXED(EXP(AC$4*-1*'PM2.5 reduction'!AC189),9))","v":0.99999269300000004},{"$f":"VALUE(FIXED(EXP(AD$4*-1*'PM2.5 reduction'!AD189),9))","v":0.99999729999999998},{"$f":"VALUE(FIXED(EXP(AE$4*-1*'PM2.5 reduction'!AE189),9))","v":0.99999726899999997},{"$f":"VALUE(FIXED(EXP(AF$4*-1*'PM2.5 reduction'!AF189),9))","v":0.99999538799999999},{"$f":"VALUE(FIXED(EXP(AG$4*-1*'PM2.5 reduction'!AG189),9))","v":0.99999726899999997},{"$f":"VALUE(FIXED(EXP(AH$4*-1*'PM2.5 reduction'!AH189),9))","v":0.99999400199999999},{"$f":"VALUE(FIXED(EXP(AI$4*-1*'PM2.5 reduction'!AI189),9))","v":0.99999210000000005},{"$f":"VALUE(FIXED(EXP(AJ$4*-1*'PM2.5 reduction'!AJ189),9))","v":0.99999545099999998},{"$f":"VALUE(FIXED(EXP(AK$4*-1*'PM2.5 reduction'!AK189),9))","v":0.99999761600000003},{"$f":"VALUE(FIXED(EXP(AL$4*-1*'PM2.5 reduction'!AL189),9))","v":0.99999753499999999},{"$f":"VALUE(FIXED(EXP(AM$4*-1*'PM2.5 reduction'!AM189),9))","v":0.99999353899999999},{"$f":"VALUE(FIXED(EXP(AN$4*-1*'PM2.5 reduction'!AN189),9))","v":0.99999873299999997},{"$f":"VALUE(FIXED(EXP(AO$4*-1*'PM2.5 reduction'!AO189),9))","v":0.99999873299999997},{"$f":"VALUE(FIXED(EXP(AP$4*-1*'PM2.5 reduction'!AP189),9))","v":0.99999826400000003},{"$f":"VALUE(FIXED(EXP(AQ$4*-1*'PM2.5 reduction'!AQ189),9))","v":0.99999416799999996},{"$f":"VALUE(FIXED(EXP(AR$4*-1*'PM2.5 reduction'!AR189),9))","v":0.99999469200000002},{"$f":"VALUE(FIXED(EXP(AS$4*-1*'PM2.5 reduction'!AS189),9))","v":0.99999875299999996},{"$f":"VALUE(FIXED(EXP(AT$4*-1*'PM2.5 reduction'!AT189),9))","v":0.99999890599999997},{"$f":"VALUE(FIXED(EXP(AU$4*-1*'PM2.5 reduction'!AU189),9))","v":0.99999890599999997},{"$f":"VALUE(FIXED(EXP(AV$4*-1*'PM2.5 reduction'!AV189),9))","v":0.99999574800000002},{"$f":"VALUE(FIXED(EXP(AW$4*-1*'PM2.5 reduction'!AW189),9))","v":0.99999433000000004},{"$f":"VALUE(FIXED(EXP(AX$4*-1*'PM2.5 reduction'!AX189),9))","v":0.99999633200000004},{"$f":"VALUE(FIXED(EXP(AY$4*-1*'PM2.5 reduction'!AY189),9))","v":0.99999649300000004},{"$f":"VALUE(FIXED(EXP(AZ$4*-1*'PM2.5 reduction'!AZ189),9))","v":0.99999671499999998},{"$f":"VALUE(FIXED(EXP(BA$4*-1*'PM2.5 reduction'!BA189),9))","v":0.99999526900000002},{"$f":"VALUE(FIXED(EXP(BB$4*-1*'PM2.5 reduction'!BB189),9))","v":0.999995462},{"$f":"VALUE(FIXED(EXP(BC$4*-1*'PM2.5 reduction'!BC189),9))","v":1}]
[null,"Female 80-84",{"$f":"VALUE(FIXED(EXP(C$4*-1*'PM2.5 reduction'!C190),9))","v":0.99999121199999996},{"$f":"VALUE(FIXED(EXP(D$4*-1*'PM2.5 reduction'!D190),9))","v":0.999995466},{"$f":"VALUE(FIXED(EXP(E$4*-1*'PM2.5 reduction'!E190),9))","v":0.99999826199999997},{"$f":"VALUE(FIXED(EXP(F$4*-1*'PM2.5 reduction'!F190),9))","v":0.99999801200000005},{"$f":"VALUE(FIXED(EXP(G$4*-1*'PM2.5 reduction'!G190),9))","v":0.99999747400000005},{"$f":"VALUE(FIXED(EXP(H$4*-1*'PM2.5 reduction'!H190),9))","v":0.99999625400000003},{"$f":"VALUE(FIXED(EXP(I$4*-1*'PM2.5 reduction'!I190),9))","v":0.99999874499999997},{"$f":"VALUE(FIXED(EXP(J$4*-1*'PM2.5 reduction'!J190),9))","v":0.99999621900000002},{"$f":"VALUE(FIXED(EXP(K$4*-1*'PM2.5 reduction'!K190),9))","v":0.99999641100000003},{"$f":"VALUE(FIXED(EXP(L$4*-1*'PM2.5 reduction'!L190),9))","v":0.99999835999999998},{"$f":"VALUE(FIXED(EXP(M$4*-1*'PM2.5 reduction'!M190),9))","v":0.99999835999999998},{"$f":"VALUE(FIXED(EXP(N$4*-1*'PM2.5 reduction'!N190),9))","v":0.99999236599999997},{"$f":"VALUE(FIXED(EXP(O$4*-1*'PM2.5 reduction'!O190),9))","v":0.99999565499999998},{"$f":"VALUE(FIXED(EXP(P$4*-1*'PM2.5 reduction'!P190),9))","v":0.99999320199999997},{"$f":"VALUE(FIXED(EXP(Q$4*-1*'PM2.5 reduction'!Q190),9))","v":0.99999657399999997},{"$f":"VALUE(FIXED(EXP(R$4*-1*'PM2.5 reduction'!R190),9))","v":0.99999336299999997},{"$f":"VALUE(FIXED(EXP(S$4*-1*'PM2.5 reduction'!S190),9))","v":0.99999361099999995},{"$f":"VALUE(FIXED(EXP(T$4*-1*'PM2.5 reduction'!T190),9))","v":0.99999007200000001},{"$f":"VALUE(FIXED(EXP(U$4*-1*'PM2.5 reduction'!U190),9))","v":1},{"$f":"VALUE(FIXED(EXP(V$4*-1*'PM2.5 reduction'!V190),9))","v":0.99999347599999999},{"$f":"VALUE(FIXED(EXP(W$4*-1*'PM2.5 reduction'!W190),9))","v":0.99999593899999994},{"$f":"VALUE(FIXED(EXP(X$4*-1*'PM2.5 reduction'!X190),9))","v":0.99999593899999994},{"$f":"VALUE(FIXED(EXP(Y$4*-1*'PM2.5 reduction'!Y190),9))","v":0.99999473500000002},{"$f":"VALUE(FIXED(EXP(Z$4*-1*'PM2.5 reduction'!Z190),9))","v":0.99999031000000005},{"$f":"VALUE(FIXED(EXP(AA$4*-1*'PM2.5 reduction'!AA190),9))","v":0.99999297099999995},{"$f":"VALUE(FIXED(EXP(AB$4*-1*'PM2.5 reduction'!AB190),9))","v":0.99999561599999998},{"$f":"VALUE(FIXED(EXP(AC$4*-1*'PM2.5 reduction'!AC190),9))","v":0.99999253600000004},{"$f":"VALUE(FIXED(EXP(AD$4*-1*'PM2.5 reduction'!AD190),9))","v":0.99999734900000004},{"$f":"VALUE(FIXED(EXP(AE$4*-1*'PM2.5 reduction'!AE190),9))","v":0.99999733000000002},{"$f":"VALUE(FIXED(EXP(AF$4*-1*'PM2.5 reduction'!AF190),9))","v":0.99999496700000001},{"$f":"VALUE(FIXED(EXP(AG$4*-1*'PM2.5 reduction'!AG190),9))","v":0.99999733000000002},{"$f":"VALUE(FIXED(EXP(AH$4*-1*'PM2.5 reduction'!AH190),9))","v":0.99999388899999997},{"$f":"VALUE(FIXED(EXP(AI$4*-1*'PM2.5 reduction'!AI190),9))","v":0.99999201299999996},{"$f":"VALUE(FIXED(EXP(AJ$4*-1*'PM2.5 reduction'!AJ190),9))","v":0.99999561699999995},{"$f":"VALUE(FIXED(EXP(AK$4*-1*'PM2.5 reduction'!AK190),9))","v":0.99999743900000004},{"$f":"VALUE(FIXED(EXP(AL$4*-1*'PM2.5 reduction'!AL190),9))","v":0.99999751400000003},{"$f":"VALUE(FIXED(EXP(AM$4*-1*'PM2.5 reduction'!AM190),9))","v":0.999993405},{"$f":"VALUE(FIXED(EXP(AN$4*-1*'PM2.5 reduction'!AN190),9))","v":0.999998846},{"$f":"VALUE(FIXED(EXP(AO$4*-1*'PM2.5 reduction'!AO190),9))","v":0.999998846},{"$f":"VALUE(FIXED(EXP(AP$4*-1*'PM2.5 reduction'!AP190),9))","v":0.99999818500000004},{"$f":"VALUE(FIXED(EXP(AQ$4*-1*'PM2.5 reduction'!AQ190),9))","v":0.99999402500000001},{"$f":"VALUE(FIXED(EXP(AR$4*-1*'PM2.5 reduction'!AR190),9))","v":0.99999455900000001},{"$f":"VALUE(FIXED(EXP(AS$4*-1*'PM2.5 reduction'!AS190),9))","v":0.99999874499999997},{"$f":"VALUE(FIXED(EXP(AT$4*-1*'PM2.5 reduction'!AT190),9))","v":0.99999895000000005},{"$f":"VALUE(FIXED(EXP(AU$4*-1*'PM2.5 reduction'!AU190),9))","v":0.99999895000000005},{"$f":"VALUE(FIXED(EXP(AV$4*-1*'PM2.5 reduction'!AV190),9))","v":0.99999574199999997},{"$f":"VALUE(FIXED(EXP(AW$4*-1*'PM2.5 reduction'!AW190),9))","v":0.99999416100000005},{"$f":"VALUE(FIXED(EXP(AX$4*-1*'PM2.5 reduction'!AX190),9))","v":0.999996145},{"$f":"VALUE(FIXED(EXP(AY$4*-1*'PM2.5 reduction'!AY190),9))","v":0.99999629400000001},{"$f":"VALUE(FIXED(EXP(AZ$4*-1*'PM2.5 reduction'!AZ190),9))","v":0.99999643500000002},{"$f":"VALUE(FIXED(EXP(BA$4*-1*'PM2.5 reduction'!BA190),9))","v":0.99999510599999997},{"$f":"VALUE(FIXED(EXP(BB$4*-1*'PM2.5 reduction'!BB190),9))","v":0.99999561599999998},{"$f":"VALUE(FIXED(EXP(BC$4*-1*'PM2.5 reduction'!BC190),9))","v":1}]
[null,"Female 85-89",{"$f":"VALUE(FIXED(EXP(C$4*-1*'PM2.5 reduction'!C191),9))","v":0.999990881},{"$f":"VALUE(FIXED(EXP(D$4*-1*'PM2.5 reduction'!D191),9))","v":0.99999541700000005},{"$f":"VALUE(FIXED(EXP(E$4*-1*'PM2.5 reduction'!E191),9))","v":0.99999831699999997},{"$f":"VALUE(FIXED(EXP(F$4*-1*'PM2.5 reduction'!F191),9))","v":0.99999795400000002},{"$f":"VALUE(FIXED(EXP(G$4*-1*'PM2.5 reduction'!G191),9))","v":0.99999745100000004},{"$f":"VALUE(FIXED(EXP(H$4*-1*'PM2.5 reduction'!H191),9))","v":0.99999627300000005},{"$f":"VALUE(FIXED(EXP(I$4*-1*'PM2.5 reduction'!I191),9))","v":0.99999876700000001},{"$f":"VALUE(FIXED(EXP(J$4*-1*'PM2.5 reduction'!J191),9))","v":0.99999600499999997},{"$f":"VALUE(FIXED(EXP(K$4*-1*'PM2.5 reduction'!K191),9))","v":0.99999650699999998},{"$f":"VALUE(FIXED(EXP(L$4*-1*'PM2.5 reduction'!L191),9))","v":0.999998316},{"$f":"VALUE(FIXED(EXP(M$4*-1*'PM2.5 reduction'!M191),9))","v":0.999998316},{"$f":"VALUE(FIXED(EXP(N$4*-1*'PM2.5 reduction'!N191),9))","v":0.99999311300000004},{"$f":"VALUE(FIXED(EXP(O$4*-1*'PM2.5 reduction'!O191),9))","v":0.99999582799999998},{"$f":"VALUE(FIXED(EXP(P$4*-1*'PM2.5 reduction'!P191),9))","v":0.99999292500000003},{"$f":"VALUE(FIXED(EXP(Q$4*-1*'PM2.5 reduction'!Q191),9))","v":0.99999669700000005},{"$f":"VALUE(FIXED(EXP(R$4*-1*'PM2.5 reduction'!R191),9))","v":0.99999326499999996},{"$f":"VALUE(FIXED(EXP(S$4*-1*'PM2.5 reduction'!S191),9))","v":0.99999318400000003},{"$f":"VALUE(FIXED(EXP(T$4*-1*'PM2.5 reduction'!T191),9))","v":0.99999017899999998},{"$f":"VALUE(FIXED(EXP(U$4*-1*'PM2.5 reduction'!U191),9))","v":1},{"$f":"VALUE(FIXED(EXP(V$4*-1*'PM2.5 reduction'!V191),9))","v":0.99999353300000005},{"$f":"VALUE(FIXED(EXP(W$4*-1*'PM2.5 reduction'!W191),9))","v":0.99999580300000002},{"$f":"VALUE(FIXED(EXP(X$4*-1*'PM2.5 reduction'!X191),9))","v":0.99999580300000002},{"$f":"VALUE(FIXED(EXP(Y$4*-1*'PM2.5 reduction'!Y191),9))","v":0.99999471600000001},{"$f":"VALUE(FIXED(EXP(Z$4*-1*'PM2.5 reduction'!Z191),9))","v":0.999990147},{"$f":"VALUE(FIXED(EXP(AA$4*-1*'PM2.5 reduction'!AA191),9))","v":0.99999279900000004},{"$f":"VALUE(FIXED(EXP(AB$4*-1*'PM2.5 reduction'!AB191),9))","v":0.99999551099999995},{"$f":"VALUE(FIXED(EXP(AC$4*-1*'PM2.5 reduction'!AC191),9))","v":0.99999227400000001},{"$f":"VALUE(FIXED(EXP(AD$4*-1*'PM2.5 reduction'!AD191),9))","v":0.99999696000000005},{"$f":"VALUE(FIXED(EXP(AE$4*-1*'PM2.5 reduction'!AE191),9))","v":0.99999685500000002},{"$f":"VALUE(FIXED(EXP(AF$4*-1*'PM2.5 reduction'!AF191),9))","v":0.99999463300000002},{"$f":"VALUE(FIXED(EXP(AG$4*-1*'PM2.5 reduction'!AG191),9))","v":0.99999685500000002},{"$f":"VALUE(FIXED(EXP(AH$4*-1*'PM2.5 reduction'!AH191),9))","v":0.99999406099999999},{"$f":"VALUE(FIXED(EXP(AI$4*-1*'PM2.5 reduction'!AI191),9))","v":0.99999163400000002},{"$f":"VALUE(FIXED(EXP(AJ$4*-1*'PM2.5 reduction'!AJ191),9))","v":0.99999559599999999},{"$f":"VALUE(FIXED(EXP(AK$4*-1*'PM2.5 reduction'!AK191),9))","v":0.99999685400000005},{"$f":"VALUE(FIXED(EXP(AL$4*-1*'PM2.5 reduction'!AL191),9))","v":0.99999742999999996},{"$f":"VALUE(FIXED(EXP(AM$4*-1*'PM2.5 reduction'!AM191),9))","v":0.99999346300000003},{"$f":"VALUE(FIXED(EXP(AN$4*-1*'PM2.5 reduction'!AN191),9))","v":0.99999871600000001},{"$f":"VALUE(FIXED(EXP(AO$4*-1*'PM2.5 reduction'!AO191),9))","v":0.99999871600000001},{"$f":"VALUE(FIXED(EXP(AP$4*-1*'PM2.5 reduction'!AP191),9))","v":0.99999830300000003},{"$f":"VALUE(FIXED(EXP(AQ$4*-1*'PM2.5 reduction'!AQ191),9))","v":0.99999355000000001},{"$f":"VALUE(FIXED(EXP(AR$4*-1*'PM2.5 reduction'!AR191),9))","v":0.99999436399999997},{"$f":"VALUE(FIXED(EXP(AS$4*-1*'PM2.5 reduction'!AS191),9))","v":0.99999876700000001},{"$f":"VALUE(FIXED(EXP(AT$4*-1*'PM2.5 reduction'!AT191),9))","v":0.99999914199999995},{"$f":"VALUE(FIXED(EXP(AU$4*-1*'PM2.5 reduction'!AU191),9))","v":0.99999914199999995},{"$f":"VALUE(FIXED(EXP(AV$4*-1*'PM2.5 reduction'!AV191),9))","v":0.99999574099999999},{"$f":"VALUE(FIXED(EXP(AW$4*-1*'PM2.5 reduction'!AW191),9))","v":0.99999426999999996},{"$f":"VALUE(FIXED(EXP(AX$4*-1*'PM2.5 reduction'!AX191),9))","v":0.99999582200000003},{"$f":"VALUE(FIXED(EXP(AY$4*-1*'PM2.5 reduction'!AY191),9))","v":0.99999628799999996},{"$f":"VALUE(FIXED(EXP(AZ$4*-1*'PM2.5 reduction'!AZ191),9))","v":0.99999647199999997},{"$f":"VALUE(FIXED(EXP(BA$4*-1*'PM2.5 reduction'!BA191),9))","v":0.99999515900000002},{"$f":"VALUE(FIXED(EXP(BB$4*-1*'PM2.5 reduction'!BB191),9))","v":0.999995458},{"$f":"VALUE(FIXED(EXP(BC$4*-1*'PM2.5 reduction'!BC191),9))","v":1}]
[null,"Female 90+",{"$f":"VALUE(FIXED(EXP(C$4*-1*'PM2.5 reduction'!C192),9))","v":0.999990143},{"$f":"VALUE(FIXED(EXP(D$4*-1*'PM2.5 reduction'!D192),9))","v":0.99999555299999998},{"$f":"VALUE(FIXED(EXP(E$4*-1*'PM2.5 reduction'!E192),9))","v":0.99999810200000006},{"$f":"VALUE(FIXED(EXP(F$4*-1*'PM2.5 reduction'!F192),9))","v":0.99999809799999995},{"$f":"VALUE(FIXED(EXP(G$4*-1*'PM2.5 reduction'!G192),9))","v":0.99999743399999996},{"$f":"VALUE(FIXED(EXP(H$4*-1*'PM2.5 reduction'!H192),9))","v":0.99999618499999998},{"$f":"VALUE(FIXED(EXP(I$4*-1*'PM2.5 reduction'!I192),9))","v":0.99999861000000001},{"$f":"VALUE(FIXED(EXP(J$4*-1*'PM2.5 reduction'!J192),9))","v":0.99999673099999997},{"$f":"VALUE(FIXED(EXP(K$4*-1*'PM2.5 reduction'!K192),9))","v":0.99999645199999998},{"$f":"VALUE(FIXED(EXP(L$4*-1*'PM2.5 reduction'!L192),9))","v":0.99999839700000004},{"$f":"VALUE(FIXED(EXP(M$4*-1*'PM2.5 reduction'!M192),9))","v":0.99999839700000004},{"$f":"VALUE(FIXED(EXP(N$4*-1*'PM2.5 reduction'!N192),9))","v":0.99999372399999997},{"$f":"VALUE(FIXED(EXP(O$4*-1*'PM2.5 reduction'!O192),9))","v":0.99999487600000003},{"$f":"VALUE(FIXED(EXP(P$4*-1*'PM2.5 reduction'!P192),9))","v":0.99999295300000002},{"$f":"VALUE(FIXED(EXP(Q$4*-1*'PM2.5 reduction'!Q192),9))","v":0.99999751199999998},{"$f":"VALUE(FIXED(EXP(R$4*-1*'PM2.5 reduction'!R192),9))","v":0.99999301699999998},{"$f":"VALUE(FIXED(EXP(S$4*-1*'PM2.5 reduction'!S192),9))","v":0.99999290399999996},{"$f":"VALUE(FIXED(EXP(T$4*-1*'PM2.5 reduction'!T192),9))","v":0.99998968799999999},{"$f":"VALUE(FIXED(EXP(U$4*-1*'PM2.5 reduction'!U192),9))","v":1},{"$f":"VALUE(FIXED(EXP(V$4*-1*'PM2.5 reduction'!V192),9))","v":0.99999331400000002},{"$f":"VALUE(FIXED(EXP(W$4*-1*'PM2.5 reduction'!W192),9))","v":0.99999593099999995},{"$f":"VALUE(FIXED(EXP(X$4*-1*'PM2.5 reduction'!X192),9))","v":0.99999593099999995},{"$f":"VALUE(FIXED(EXP(Y$4*-1*'PM2.5 reduction'!Y192),9))","v":0.99999480299999999},{"$f":"VALUE(FIXED(EXP(Z$4*-1*'PM2.5 reduction'!Z192),9))","v":0.99998998800000005},{"$f":"VALUE(FIXED(EXP(AA$4*-1*'PM2.5 reduction'!AA192),9))","v":0.99999258599999996},{"$f":"VALUE(FIXED(EXP(AB$4*-1*'PM2.5 reduction'!AB192),9))","v":0.99999569499999996},{"$f":"VALUE(FIXED(EXP(AC$4*-1*'PM2.5 reduction'!AC192),9))","v":0.99999209700000002},{"$f":"VALUE(FIXED(EXP(AD$4*-1*'PM2.5 reduction'!AD192),9))","v":0.99999666200000004},{"$f":"VALUE(FIXED(EXP(AE$4*-1*'PM2.5 reduction'!AE192),9))","v":0.99999640000000001},{"$f":"VALUE(FIXED(EXP(AF$4*-1*'PM2.5 reduction'!AF192),9))","v":0.99999437000000002},{"$f":"VALUE(FIXED(EXP(AG$4*-1*'PM2.5 reduction'!AG192),9))","v":0.99999640000000001},{"$f":"VALUE(FIXED(EXP(AH$4*-1*'PM2.5 reduction'!AH192),9))","v":0.99999394900000005},{"$f":"VALUE(FIXED(EXP(AI$4*-1*'PM2.5 reduction'!AI192),9))","v":0.99999096499999995},{"$f":"VALUE(FIXED(EXP(AJ$4*-1*'PM2.5 reduction'!AJ192),9))","v":0.99999554599999996},{"$f":"VALUE(FIXED(EXP(AK$4*-1*'PM2.5 reduction'!AK192),9))","v":0.99999810600000005},{"$f":"VALUE(FIXED(EXP(AL$4*-1*'PM2.5 reduction'!AL192),9))","v":0.99999763500000005},{"$f":"VALUE(FIXED(EXP(AM$4*-1*'PM2.5 reduction'!AM192),9))","v":0.99999311899999999},{"$f":"VALUE(FIXED(EXP(AN$4*-1*'PM2.5 reduction'!AN192),9))","v":0.99999906800000005},{"$f":"VALUE(FIXED(EXP(AO$4*-1*'PM2.5 reduction'!AO192),9))","v":0.99999906800000005},{"$f":"VALUE(FIXED(EXP(AP$4*-1*'PM2.5 reduction'!AP192),9))","v":0.99999811999999999},{"$f":"VALUE(FIXED(EXP(AQ$4*-1*'PM2.5 reduction'!AQ192),9))","v":0.99999329999999997},{"$f":"VALUE(FIXED(EXP(AR$4*-1*'PM2.5 reduction'!AR192),9))","v":0.99999432799999999},{"$f":"VALUE(FIXED(EXP(AS$4*-1*'PM2.5 reduction'!AS192),9))","v":0.99999861000000001},{"$f":"VALUE(FIXED(EXP(AT$4*-1*'PM2.5 reduction'!AT192),9))","v":0.99999898700000001},{"$f":"VALUE(FIXED(EXP(AU$4*-1*'PM2.5 reduction'!AU192),9))","v":0.99999898700000001},{"$f":"VALUE(FIXED(EXP(AV$4*-1*'PM2.5 reduction'!AV192),9))","v":0.99999542500000005},{"$f":"VALUE(FIXED(EXP(AW$4*-1*'PM2.5 reduction'!AW192),9))","v":0.99999421300000002},{"$f":"VALUE(FIXED(EXP(AX$4*-1*'PM2.5 reduction'!AX192),9))","v":0.99999678800000003},{"$f":"VALUE(FIXED(EXP(AY$4*-1*'PM2.5 reduction'!AY192),9))","v":0.99999656100000001},{"$f":"VALUE(FIXED(EXP(AZ$4*-1*'PM2.5 reduction'!AZ192),9))","v":0.99999680000000002},{"$f":"VALUE(FIXED(EXP(BA$4*-1*'PM2.5 reduction'!BA192),9))","v":0.99999511799999996},{"$f":"VALUE(FIXED(EXP(BB$4*-1*'PM2.5 reduction'!BB192),9))","v":0.99999521499999999},{"$f":"VALUE(FIXED(EXP(BC$4*-1*'PM2.5 reduction'!BC192),9))","v":1}]
[null,"Male 0-4",{"$f":"VALUE(FIXED(EXP(C$4*-1*'PM2.5 reduction'!C193),9))","v":0.99999028099999998},{"$f":"VALUE(FIXED(EXP(D$4*-1*'PM2.5 reduction'!D193),9))","v":0.99999406000000002},{"$f":"VALUE(FIXED(EXP(E$4*-1*'PM2.5 reduction'!E193),9))","v":0.99999826400000003},{"$f":"VALUE(FIXED(EXP(F$4*-1*'PM2.5 reduction'!F193),9))","v":0.99999793699999995},{"$f":"VALUE(FIXED(EXP(G$4*-1*'PM2.5 reduction'!G193),9))","v":0.99999750600000004},{"$f":"VALUE(FIXED(EXP(H$4*-1*'PM2.5 reduction'!H193),9))","v":0.99999664099999996},{"$f":"VALUE(FIXED(EXP(I$4*-1*'PM2.5 reduction'!I193),9))","v":0.99999886199999999},{"$f":"VALUE(FIXED(EXP(J$4*-1*'PM2.5 reduction'!J193),9))","v":0.99999613600000004},{"$f":"VALUE(FIXED(EXP(K$4*-1*'PM2.5 reduction'!K193),9))","v":0.99999582600000003},{"$f":"VALUE(FIXED(EXP(L$4*-1*'PM2.5 reduction'!L193),9))","v":0.99999827699999999},{"$f":"VALUE(FIXED(EXP(M$4*-1*'PM2.5 reduction'!M193),9))","v":0.99999827699999999},{"$f":"VALUE(FIXED(EXP(N$4*-1*'PM2.5 reduction'!N193),9))","v":0.99999262499999997},{"$f":"VALUE(FIXED(EXP(O$4*-1*'PM2.5 reduction'!O193),9))","v":0.99999623400000004},{"$f":"VALUE(FIXED(EXP(P$4*-1*'PM2.5 reduction'!P193),9))","v":0.99999363600000002},{"$f":"VALUE(FIXED(EXP(Q$4*-1*'PM2.5 reduction'!Q193),9))","v":0.999996255},{"$f":"VALUE(FIXED(EXP(R$4*-1*'PM2.5 reduction'!R193),9))","v":0.99999426899999999},{"$f":"VALUE(FIXED(EXP(S$4*-1*'PM2.5 reduction'!S193),9))","v":0.99999290100000005},{"$f":"VALUE(FIXED(EXP(T$4*-1*'PM2.5 reduction'!T193),9))","v":0.99998926099999996},{"$f":"VALUE(FIXED(EXP(U$4*-1*'PM2.5 reduction'!U193),9))","v":1},{"$f":"VALUE(FIXED(EXP(V$4*-1*'PM2.5 reduction'!V193),9))","v":0.99999475299999996},{"$f":"VALUE(FIXED(EXP(W$4*-1*'PM2.5 reduction'!W193),9))","v":0.99999581699999995},{"$f":"VALUE(FIXED(EXP(X$4*-1*'PM2.5 reduction'!X193),9))","v":0.99999581699999995},{"$f":"VALUE(FIXED(EXP(Y$4*-1*'PM2.5 reduction'!Y193),9))","v":0.999995368},{"$f":"VALUE(FIXED(EXP(Z$4*-1*'PM2.5 reduction'!Z193),9))","v":0.99998999399999999},{"$f":"VALUE(FIXED(EXP(AA$4*-1*'PM2.5 reduction'!AA193),9))","v":0.99999294400000005},{"$f":"VALUE(FIXED(EXP(AB$4*-1*'PM2.5 reduction'!AB193),9))","v":0.99999452799999999},{"$f":"VALUE(FIXED(EXP(AC$4*-1*'PM2.5 reduction'!AC193),9))","v":0.99999205300000005},{"$f":"VALUE(FIXED(EXP(AD$4*-1*'PM2.5 reduction'!AD193),9))","v":0.99999746899999997},{"$f":"VALUE(FIXED(EXP(AE$4*-1*'PM2.5 reduction'!AE193),9))","v":0.99999746700000003},{"$f":"VALUE(FIXED(EXP(AF$4*-1*'PM2.5 reduction'!AF193),9))","v":0.99999581900000001},{"$f":"VALUE(FIXED(EXP(AG$4*-1*'PM2.5 reduction'!AG193),9))","v":0.99999746700000003},{"$f":"VALUE(FIXED(EXP(AH$4*-1*'PM2.5 reduction'!AH193),9))","v":0.99999418200000001},{"$f":"VALUE(FIXED(EXP(AI$4*-1*'PM2.5 reduction'!AI193),9))","v":0.99999143800000001},{"$f":"VALUE(FIXED(EXP(AJ$4*-1*'PM2.5 reduction'!AJ193),9))","v":0.999995254},{"$f":"VALUE(FIXED(EXP(AK$4*-1*'PM2.5 reduction'!AK193),9))","v":0.99999816100000005},{"$f":"VALUE(FIXED(EXP(AL$4*-1*'PM2.5 reduction'!AL193),9))","v":0.99999755199999996},{"$f":"VALUE(FIXED(EXP(AM$4*-1*'PM2.5 reduction'!AM193),9))","v":0.99999375800000001},{"$f":"VALUE(FIXED(EXP(AN$4*-1*'PM2.5 reduction'!AN193),9))","v":0.99999879700000005},{"$f":"VALUE(FIXED(EXP(AO$4*-1*'PM2.5 reduction'!AO193),9))","v":0.99999879700000005},{"$f":"VALUE(FIXED(EXP(AP$4*-1*'PM2.5 reduction'!AP193),9))","v":0.99999778299999997},{"$f":"VALUE(FIXED(EXP(AQ$4*-1*'PM2.5 reduction'!AQ193),9))","v":0.99999435299999995},{"$f":"VALUE(FIXED(EXP(AR$4*-1*'PM2.5 reduction'!AR193),9))","v":0.99999402599999998},{"$f":"VALUE(FIXED(EXP(AS$4*-1*'PM2.5 reduction'!AS193),9))","v":0.99999886199999999},{"$f":"VALUE(FIXED(EXP(AT$4*-1*'PM2.5 reduction'!AT193),9))","v":0.99999916},{"$f":"VALUE(FIXED(EXP(AU$4*-1*'PM2.5 reduction'!AU193),9))","v":0.99999916},{"$f":"VALUE(FIXED(EXP(AV$4*-1*'PM2.5 reduction'!AV193),9))","v":0.99999580200000004},{"$f":"VALUE(FIXED(EXP(AW$4*-1*'PM2.5 reduction'!AW193),9))","v":0.999994465},{"$f":"VALUE(FIXED(EXP(AX$4*-1*'PM2.5 reduction'!AX193),9))","v":0.99999628100000004},{"$f":"VALUE(FIXED(EXP(AY$4*-1*'PM2.5 reduction'!AY193),9))","v":0.99999607700000004},{"$f":"VALUE(FIXED(EXP(AZ$4*-1*'PM2.5 reduction'!AZ193),9))","v":0.99999626799999997},{"$f":"VALUE(FIXED(EXP(BA$4*-1*'PM2.5 reduction'!BA193),9))","v":0.99999528000000004},{"$f":"VALUE(FIXED(EXP(BB$4*-1*'PM2.5 reduction'!BB193),9))","v":0.99999512000000002},{"$f":"VALUE(FIXED(EXP(BC$4*-1*'PM2.5 reduction'!BC193),9))","v":1}]
[null,"Male 5-9",{"$f":"VALUE(FIXED(EXP(C$4*-1*'PM2.5 reduction'!C194),9))","v":0.99999094700000002},{"$f":"VALUE(FIXED(EXP(D$4*-1*'PM2.5 reduction'!D194),9))","v":0.999994834},{"$f":"VALUE(FIXED(EXP(E$4*-1*'PM2.5 reduction'!E194),9))","v":0.99999826400000003},{"$f":"VALUE(FIXED(EXP(F$4*-1*'PM2.5 reduction'!F194),9))","v":0.99999797899999998},{"$f":"VALUE(FIXED(EXP(G$4*-1*'PM2.5 reduction'!G194),9))","v":0.99999750700000001},{"$f":"VALUE(FIXED(EXP(H$4*-1*'PM2.5 reduction'!H194),9))","v":0.99999662300000003},{"$f":"VALUE(FIXED(EXP(I$4*-1*'PM2.5 reduction'!I194),9))","v":0.99999885300000002},{"$f":"VALUE(FIXED(EXP(J$4*-1*'PM2.5 reduction'!J194),9))","v":0.99999663900000002},{"$f":"VALUE(FIXED(EXP(K$4*-1*'PM2.5 reduction'!K194),9))","v":0.99999604499999994},{"$f":"VALUE(FIXED(EXP(L$4*-1*'PM2.5 reduction'!L194),9))","v":0.99999828599999996},{"$f":"VALUE(FIXED(EXP(M$4*-1*'PM2.5 reduction'!M194),9))","v":0.99999828599999996},{"$f":"VALUE(FIXED(EXP(N$4*-1*'PM2.5 reduction'!N194),9))","v":0.99999259399999996},{"$f":"VALUE(FIXED(EXP(O$4*-1*'PM2.5 reduction'!O194),9))","v":0.99999643500000002},{"$f":"VALUE(FIXED(EXP(P$4*-1*'PM2.5 reduction'!P194),9))","v":0.99999344700000004},{"$f":"VALUE(FIXED(EXP(Q$4*-1*'PM2.5 reduction'!Q194),9))","v":0.99999667400000003},{"$f":"VALUE(FIXED(EXP(R$4*-1*'PM2.5 reduction'!R194),9))","v":0.99999441600000005},{"$f":"VALUE(FIXED(EXP(S$4*-1*'PM2.5 reduction'!S194),9))","v":0.99999349900000001},{"$f":"VALUE(FIXED(EXP(T$4*-1*'PM2.5 reduction'!T194),9))","v":0.99998946799999999},{"$f":"VALUE(FIXED(EXP(U$4*-1*'PM2.5 reduction'!U194),9))","v":1},{"$f":"VALUE(FIXED(EXP(V$4*-1*'PM2.5 reduction'!V194),9))","v":0.99999496399999999},{"$f":"VALUE(FIXED(EXP(W$4*-1*'PM2.5 reduction'!W194),9))","v":0.99999579900000002},{"$f":"VALUE(FIXED(EXP(X$4*-1*'PM2.5 reduction'!X194),9))","v":0.99999579900000002},{"$f":"VALUE(FIXED(EXP(Y$4*-1*'PM2.5 reduction'!Y194),9))","v":0.99999569899999996},{"$f":"VALUE(FIXED(EXP(Z$4*-1*'PM2.5 reduction'!Z194),9))","v":0.99999012799999998},{"$f":"VALUE(FIXED(EXP(AA$4*-1*'PM2.5 reduction'!AA194),9))","v":0.99999323799999995},{"$f":"VALUE(FIXED(EXP(AB$4*-1*'PM2.5 reduction'!AB194),9))","v":0.99999521499999999},{"$f":"VALUE(FIXED(EXP(AC$4*-1*'PM2.5 reduction'!AC194),9))","v":0.99999250299999998},{"$f":"VALUE(FIXED(EXP(AD$4*-1*'PM2.5 reduction'!AD194),9))","v":0.99999756900000003},{"$f":"VALUE(FIXED(EXP(AE$4*-1*'PM2.5 reduction'!AE194),9))","v":0.999997574},{"$f":"VALUE(FIXED(EXP(AF$4*-1*'PM2.5 reduction'!AF194),9))","v":0.99999636999999997},{"$f":"VALUE(FIXED(EXP(AG$4*-1*'PM2.5 reduction'!AG194),9))","v":0.999997574},{"$f":"VALUE(FIXED(EXP(AH$4*-1*'PM2.5 reduction'!AH194),9))","v":0.99999417800000001},{"$f":"VALUE(FIXED(EXP(AI$4*-1*'PM2.5 reduction'!AI194),9))","v":0.99999218199999995},{"$f":"VALUE(FIXED(EXP(AJ$4*-1*'PM2.5 reduction'!AJ194),9))","v":0.99999561800000003},{"$f":"VALUE(FIXED(EXP(AK$4*-1*'PM2.5 reduction'!AK194),9))","v":0.99999830999999995},{"$f":"VALUE(FIXED(EXP(AL$4*-1*'PM2.5 reduction'!AL194),9))","v":0.99999761099999995},{"$f":"VALUE(FIXED(EXP(AM$4*-1*'PM2.5 reduction'!AM194),9))","v":0.999993664},{"$f":"VALUE(FIXED(EXP(AN$4*-1*'PM2.5 reduction'!AN194),9))","v":0.999998936},{"$f":"VALUE(FIXED(EXP(AO$4*-1*'PM2.5 reduction'!AO194),9))","v":0.999998936},{"$f":"VALUE(FIXED(EXP(AP$4*-1*'PM2.5 reduction'!AP194),9))","v":0.99999785200000002},{"$f":"VALUE(FIXED(EXP(AQ$4*-1*'PM2.5 reduction'!AQ194),9))","v":0.99999437599999996},{"$f":"VALUE(FIXED(EXP(AR$4*-1*'PM2.5 reduction'!AR194),9))","v":0.99999444199999998},{"$f":"VALUE(FIXED(EXP(AS$4*-1*'PM2.5 reduction'!AS194),9))","v":0.99999885300000002},{"$f":"VALUE(FIXED(EXP(AT$4*-1*'PM2.5 reduction'!AT194),9))","v":0.99999913500000004},{"$f":"VALUE(FIXED(EXP(AU$4*-1*'PM2.5 reduction'!AU194),9))","v":0.99999913500000004},{"$f":"VALUE(FIXED(EXP(AV$4*-1*'PM2.5 reduction'!AV194),9))","v":0.99999564699999999},{"$f":"VALUE(FIXED(EXP(AW$4*-1*'PM2.5 reduction'!AW194),9))","v":0.99999457999999997},{"$f":"VALUE(FIXED(EXP(AX$4*-1*'PM2.5 reduction'!AX194),9))","v":0.99999695499999997},{"$f":"VALUE(FIXED(EXP(AY$4*-1*'PM2.5 reduction'!AY194),9))","v":0.99999604200000003},{"$f":"VALUE(FIXED(EXP(AZ$4*-1*'PM2.5 reduction'!AZ194),9))","v":0.99999624399999998},{"$f":"VALUE(FIXED(EXP(BA$4*-1*'PM2.5 reduction'!BA194),9))","v":0.99999527700000002},{"$f":"VALUE(FIXED(EXP(BB$4*-1*'PM2.5 reduction'!BB194),9))","v":0.99999520500000005},{"$f":"VALUE(FIXED(EXP(BC$4*-1*'PM2.5 reduction'!BC194),9))","v":1}]
[null,"Male 10-15",{"$f":"VALUE(FIXED(EXP(C$4*-1*'PM2.5 reduction'!C195),9))","v":0.99999127099999996},{"$f":"VALUE(FIXED(EXP(D$4*-1*'PM2.5 reduction'!D195),9))","v":0.99999532400000002},{"$f":"VALUE(FIXED(EXP(E$4*-1*'PM2.5 reduction'!E195),9))","v":0.99999831500000003},{"$f":"VALUE(FIXED(EXP(F$4*-1*'PM2.5 reduction'!F195),9))","v":0.99999799499999997},{"$f":"VALUE(FIXED(EXP(G$4*-1*'PM2.5 reduction'!G195),9))","v":0.99999749900000001},{"$f":"VALUE(FIXED(EXP(H$4*-1*'PM2.5 reduction'!H195),9))","v":0.99999663599999999},{"$f":"VALUE(FIXED(EXP(I$4*-1*'PM2.5 reduction'!I195),9))","v":0.99999880500000005},{"$f":"VALUE(FIXED(EXP(J$4*-1*'PM2.5 reduction'!J195),9))","v":0.99999700800000002},{"$f":"VALUE(FIXED(EXP(K$4*-1*'PM2.5 reduction'!K195),9))","v":0.99999658800000002},{"$f":"VALUE(FIXED(EXP(L$4*-1*'PM2.5 reduction'!L195),9))","v":0.99999833900000001},{"$f":"VALUE(FIXED(EXP(M$4*-1*'PM2.5 reduction'!M195),9))","v":0.99999833900000001},{"$f":"VALUE(FIXED(EXP(N$4*-1*'PM2.5 reduction'!N195),9))","v":0.99999265500000001},{"$f":"VALUE(FIXED(EXP(O$4*-1*'PM2.5 reduction'!O195),9))","v":0.99999612999999998},{"$f":"VALUE(FIXED(EXP(P$4*-1*'PM2.5 reduction'!P195),9))","v":0.99999328399999998},{"$f":"VALUE(FIXED(EXP(Q$4*-1*'PM2.5 reduction'!Q195),9))","v":0.99999677799999998},{"$f":"VALUE(FIXED(EXP(R$4*-1*'PM2.5 reduction'!R195),9))","v":0.99999435999999997},{"$f":"VALUE(FIXED(EXP(S$4*-1*'PM2.5 reduction'!S195),9))","v":0.99999395800000002},{"$f":"VALUE(FIXED(EXP(T$4*-1*'PM2.5 reduction'!T195),9))","v":0.99998982300000006},{"$f":"VALUE(FIXED(EXP(U$4*-1*'PM2.5 reduction'!U195),9))","v":1},{"$f":"VALUE(FIXED(EXP(V$4*-1*'PM2.5 reduction'!V195),9))","v":0.99999469399999996},{"$f":"VALUE(FIXED(EXP(W$4*-1*'PM2.5 reduction'!W195),9))","v":0.99999584600000002},{"$f":"VALUE(FIXED(EXP(X$4*-1*'PM2.5 reduction'!X195),9))","v":0.99999584600000002},{"$f":"VALUE(FIXED(EXP(Y$4*-1*'PM2.5 reduction'!Y195),9))","v":0.99999584200000002},{"$f":"VALUE(FIXED(EXP(Z$4*-1*'PM2.5 reduction'!Z195),9))","v":0.99999036100000005},{"$f":"VALUE(FIXED(EXP(AA$4*-1*'PM2.5 reduction'!AA195),9))","v":0.99999338900000001},{"$f":"VALUE(FIXED(EXP(AB$4*-1*'PM2.5 reduction'!AB195),9))","v":0.99999558499999996},{"$f":"VALUE(FIXED(EXP(AC$4*-1*'PM2.5 reduction'!AC195),9))","v":0.999992726},{"$f":"VALUE(FIXED(EXP(AD$4*-1*'PM2.5 reduction'!AD195),9))","v":0.99999751299999995},{"$f":"VALUE(FIXED(EXP(AE$4*-1*'PM2.5 reduction'!AE195),9))","v":0.999997515},{"$f":"VALUE(FIXED(EXP(AF$4*-1*'PM2.5 reduction'!AF195),9))","v":0.99999640199999995},{"$f":"VALUE(FIXED(EXP(AG$4*-1*'PM2.5 reduction'!AG195),9))","v":0.999997515},{"$f":"VALUE(FIXED(EXP(AH$4*-1*'PM2.5 reduction'!AH195),9))","v":0.99999421899999996},{"$f":"VALUE(FIXED(EXP(AI$4*-1*'PM2.5 reduction'!AI195),9))","v":0.99999264099999996},{"$f":"VALUE(FIXED(EXP(AJ$4*-1*'PM2.5 reduction'!AJ195),9))","v":0.99999553399999996},{"$f":"VALUE(FIXED(EXP(AK$4*-1*'PM2.5 reduction'!AK195),9))","v":0.999997845},{"$f":"VALUE(FIXED(EXP(AL$4*-1*'PM2.5 reduction'!AL195),9))","v":0.99999759700000002},{"$f":"VALUE(FIXED(EXP(AM$4*-1*'PM2.5 reduction'!AM195),9))","v":0.99999386300000004},{"$f":"VALUE(FIXED(EXP(AN$4*-1*'PM2.5 reduction'!AN195),9))","v":0.99999884100000003},{"$f":"VALUE(FIXED(EXP(AO$4*-1*'PM2.5 reduction'!AO195),9))","v":0.99999884100000003},{"$f":"VALUE(FIXED(EXP(AP$4*-1*'PM2.5 reduction'!AP195),9))","v":0.99999812200000004},{"$f":"VALUE(FIXED(EXP(AQ$4*-1*'PM2.5 reduction'!AQ195),9))","v":0.999994351},{"$f":"VALUE(FIXED(EXP(AR$4*-1*'PM2.5 reduction'!AR195),9))","v":0.99999470300000004},{"$f":"VALUE(FIXED(EXP(AS$4*-1*'PM2.5 reduction'!AS195),9))","v":0.99999880500000005},{"$f":"VALUE(FIXED(EXP(AT$4*-1*'PM2.5 reduction'!AT195),9))","v":0.99999921300000005},{"$f":"VALUE(FIXED(EXP(AU$4*-1*'PM2.5 reduction'!AU195),9))","v":0.99999921300000005},{"$f":"VALUE(FIXED(EXP(AV$4*-1*'PM2.5 reduction'!AV195),9))","v":0.99999575900000004},{"$f":"VALUE(FIXED(EXP(AW$4*-1*'PM2.5 reduction'!AW195),9))","v":0.99999450499999998},{"$f":"VALUE(FIXED(EXP(AX$4*-1*'PM2.5 reduction'!AX195),9))","v":0.99999717600000004},{"$f":"VALUE(FIXED(EXP(AY$4*-1*'PM2.5 reduction'!AY195),9))","v":0.99999618300000004},{"$f":"VALUE(FIXED(EXP(AZ$4*-1*'PM2.5 reduction'!AZ195),9))","v":0.99999644700000001},{"$f":"VALUE(FIXED(EXP(BA$4*-1*'PM2.5 reduction'!BA195),9))","v":0.99999534899999998},{"$f":"VALUE(FIXED(EXP(BB$4*-1*'PM2.5 reduction'!BB195),9))","v":0.99999534199999995},{"$f":"VALUE(FIXED(EXP(BC$4*-1*'PM2.5 reduction'!BC195),9))","v":1}]
[null,"Male 16-19",{"$f":"VALUE(FIXED(EXP(C$4*-1*'PM2.5 reduction'!C196),9))","v":0.99998723700000003},{"$f":"VALUE(FIXED(EXP(D$4*-1*'PM2.5 reduction'!D196),9))","v":0.99999179100000002},{"$f":"VALUE(FIXED(EXP(E$4*-1*'PM2.5 reduction'!E196),9))","v":0.99999817999999996},{"$f":"VALUE(FIXED(EXP(F$4*-1*'PM2.5 reduction'!F196),9))","v":0.99999805399999997},{"$f":"VALUE(FIXED(EXP(G$4*-1*'PM2.5 reduction'!G196),9))","v":0.99999749900000001},{"$f":"VALUE(FIXED(EXP(H$4*-1*'PM2.5 reduction'!H196),9))","v":0.99999656599999998},{"$f":"VALUE(FIXED(EXP(I$4*-1*'PM2.5 reduction'!I196),9))","v":0.99999875999999999},{"$f":"VALUE(FIXED(EXP(J$4*-1*'PM2.5 reduction'!J196),9))","v":0.99999652400000005},{"$f":"VALUE(FIXED(EXP(K$4*-1*'PM2.5 reduction'!K196),9))","v":0.99999620600000005},{"$f":"VALUE(FIXED(EXP(L$4*-1*'PM2.5 reduction'!L196),9))","v":0.99999840299999998},{"$f":"VALUE(FIXED(EXP(M$4*-1*'PM2.5 reduction'!M196),9))","v":0.99999840299999998},{"$f":"VALUE(FIXED(EXP(N$4*-1*'PM2.5 reduction'!N196),9))","v":0.99999279799999996},{"$f":"VALUE(FIXED(EXP(O$4*-1*'PM2.5 reduction'!O196),9))","v":0.99999607300000004},{"$f":"VALUE(FIXED(EXP(P$4*-1*'PM2.5 reduction'!P196),9))","v":0.99999337099999996},{"$f":"VALUE(FIXED(EXP(Q$4*-1*'PM2.5 reduction'!Q196),9))","v":0.99999652299999997},{"$f":"VALUE(FIXED(EXP(R$4*-1*'PM2.5 reduction'!R196),9))","v":0.99999447600000002},{"$f":"VALUE(FIXED(EXP(S$4*-1*'PM2.5 reduction'!S196),9))","v":0.99999337499999996},{"$f":"VALUE(FIXED(EXP(T$4*-1*'PM2.5 reduction'!T196),9))","v":0.99998900700000004},{"$f":"VALUE(FIXED(EXP(U$4*-1*'PM2.5 reduction'!U196),9))","v":1},{"$f":"VALUE(FIXED(EXP(V$4*-1*'PM2.5 reduction'!V196),9))","v":0.99999479999999996},{"$f":"VALUE(FIXED(EXP(W$4*-1*'PM2.5 reduction'!W196),9))","v":0.99999602300000001},{"$f":"VALUE(FIXED(EXP(X$4*-1*'PM2.5 reduction'!X196),9))","v":0.99999602300000001},{"$f":"VALUE(FIXED(EXP(Y$4*-1*'PM2.5 reduction'!Y196),9))","v":0.99999556700000003},{"$f":"VALUE(FIXED(EXP(Z$4*-1*'PM2.5 reduction'!Z196),9))","v":0.99998933599999995},{"$f":"VALUE(FIXED(EXP(AA$4*-1*'PM2.5 reduction'!AA196),9))","v":0.99999301799999996},{"$f":"VALUE(FIXED(EXP(AB$4*-1*'PM2.5 reduction'!AB196),9))","v":0.99999215399999997},{"$f":"VALUE(FIXED(EXP(AC$4*-1*'PM2.5 reduction'!AC196),9))","v":0.99999216800000001},{"$f":"VALUE(FIXED(EXP(AD$4*-1*'PM2.5 reduction'!AD196),9))","v":0.99999757700000003},{"$f":"VALUE(FIXED(EXP(AE$4*-1*'PM2.5 reduction'!AE196),9))","v":0.99999758400000005},{"$f":"VALUE(FIXED(EXP(AF$4*-1*'PM2.5 reduction'!AF196),9))","v":0.99999606500000005},{"$f":"VALUE(FIXED(EXP(AG$4*-1*'PM2.5 reduction'!AG196),9))","v":0.99999758400000005},{"$f":"VALUE(FIXED(EXP(AH$4*-1*'PM2.5 reduction'!AH196),9))","v":0.99999419599999995},{"$f":"VALUE(FIXED(EXP(AI$4*-1*'PM2.5 reduction'!AI196),9))","v":0.99999176599999995},{"$f":"VALUE(FIXED(EXP(AJ$4*-1*'PM2.5 reduction'!AJ196),9))","v":0.99999571499999995},{"$f":"VALUE(FIXED(EXP(AK$4*-1*'PM2.5 reduction'!AK196),9))","v":0.999997574},{"$f":"VALUE(FIXED(EXP(AL$4*-1*'PM2.5 reduction'!AL196),9))","v":0.99999756299999998},{"$f":"VALUE(FIXED(EXP(AM$4*-1*'PM2.5 reduction'!AM196),9))","v":0.99999381300000001},{"$f":"VALUE(FIXED(EXP(AN$4*-1*'PM2.5 reduction'!AN196),9))","v":0.99999876499999996},{"$f":"VALUE(FIXED(EXP(AO$4*-1*'PM2.5 reduction'!AO196),9))","v":0.99999876499999996},{"$f":"VALUE(FIXED(EXP(AP$4*-1*'PM2.5 reduction'!AP196),9))","v":0.99999806800000002},{"$f":"VALUE(FIXED(EXP(AQ$4*-1*'PM2.5 reduction'!AQ196),9))","v":0.99999430099999997},{"$f":"VALUE(FIXED(EXP(AR$4*-1*'PM2.5 reduction'!AR196),9))","v":0.99999405200000002},{"$f":"VALUE(FIXED(EXP(AS$4*-1*'PM2.5 reduction'!AS196),9))","v":0.99999875999999999},{"$f":"VALUE(FIXED(EXP(AT$4*-1*'PM2.5 reduction'!AT196),9))","v":0.99999901499999999},{"$f":"VALUE(FIXED(EXP(AU$4*-1*'PM2.5 reduction'!AU196),9))","v":0.99999901499999999},{"$f":"VALUE(FIXED(EXP(AV$4*-1*'PM2.5 reduction'!AV196),9))","v":0.99999558899999996},{"$f":"VALUE(FIXED(EXP(AW$4*-1*'PM2.5 reduction'!AW196),9))","v":0.99999451100000003},{"$f":"VALUE(FIXED(EXP(AX$4*-1*'PM2.5 reduction'!AX196),9))","v":0.99999666600000003},{"$f":"VALUE(FIXED(EXP(AY$4*-1*'PM2.5 reduction'!AY196),9))","v":0.99999619799999995},{"$f":"VALUE(FIXED(EXP(AZ$4*-1*'PM2.5 reduction'!AZ196),9))","v":0.99999630699999997},{"$f":"VALUE(FIXED(EXP(BA$4*-1*'PM2.5 reduction'!BA196),9))","v":0.99999538799999999},{"$f":"VALUE(FIXED(EXP(BB$4*-1*'PM2.5 reduction'!BB196),9))","v":0.99999557100000003},{"$f":"VALUE(FIXED(EXP(BC$4*-1*'PM2.5 reduction'!BC196),9))","v":1}]
[null,"Male 20-24",{"$f":"VALUE(FIXED(EXP(C$4*-1*'PM2.5 reduction'!C197),9))","v":0.99998681499999997},{"$f":"VALUE(FIXED(EXP(D$4*-1*'PM2.5 reduction'!D197),9))","v":0.99998986999999995},{"$f":"VALUE(FIXED(EXP(E$4*-1*'PM2.5 reduction'!E197),9))","v":0.99999816799999997},{"$f":"VALUE(FIXED(EXP(F$4*-1*'PM2.5 reduction'!F197),9))","v":0.99999801200000005},{"$f":"VALUE(FIXED(EXP(G$4*-1*'PM2.5 reduction'!G197),9))","v":0.99999750200000004},{"$f":"VALUE(FIXED(EXP(H$4*-1*'PM2.5 reduction'!H197),9))","v":0.99999657099999995},{"$f":"VALUE(FIXED(EXP(I$4*-1*'PM2.5 reduction'!I197),9))","v":0.99999880299999999},{"$f":"VALUE(FIXED(EXP(J$4*-1*'PM2.5 reduction'!J197),9))","v":0.99999539800000004},{"$f":"VALUE(FIXED(EXP(K$4*-1*'PM2.5 reduction'!K197),9))","v":0.99999556300000003},{"$f":"VALUE(FIXED(EXP(L$4*-1*'PM2.5 reduction'!L197),9))","v":0.99999835299999995},{"$f":"VALUE(FIXED(EXP(M$4*-1*'PM2.5 reduction'!M197),9))","v":0.99999835299999995},{"$f":"VALUE(FIXED(EXP(N$4*-1*'PM2.5 reduction'!N197),9))","v":0.99999313899999998},{"$f":"VALUE(FIXED(EXP(O$4*-1*'PM2.5 reduction'!O197),9))","v":0.99999588800000005},{"$f":"VALUE(FIXED(EXP(P$4*-1*'PM2.5 reduction'!P197),9))","v":0.99999359700000001},{"$f":"VALUE(FIXED(EXP(Q$4*-1*'PM2.5 reduction'!Q197),9))","v":0.99999603400000003},{"$f":"VALUE(FIXED(EXP(R$4*-1*'PM2.5 reduction'!R197),9))","v":0.99999415700000005},{"$f":"VALUE(FIXED(EXP(S$4*-1*'PM2.5 reduction'!S197),9))","v":0.99999026599999996},{"$f":"VALUE(FIXED(EXP(T$4*-1*'PM2.5 reduction'!T197),9))","v":0.999986402},{"$f":"VALUE(FIXED(EXP(U$4*-1*'PM2.5 reduction'!U197),9))","v":1},{"$f":"VALUE(FIXED(EXP(V$4*-1*'PM2.5 reduction'!V197),9))","v":0.99999458500000005},{"$f":"VALUE(FIXED(EXP(W$4*-1*'PM2.5 reduction'!W197),9))","v":0.99999578499999997},{"$f":"VALUE(FIXED(EXP(X$4*-1*'PM2.5 reduction'!X197),9))","v":0.99999578499999997},{"$f":"VALUE(FIXED(EXP(Y$4*-1*'PM2.5 reduction'!Y197),9))","v":0.99999499800000002},{"$f":"VALUE(FIXED(EXP(Z$4*-1*'PM2.5 reduction'!Z197),9))","v":0.99998726100000002},{"$f":"VALUE(FIXED(EXP(AA$4*-1*'PM2.5 reduction'!AA197),9))","v":0.99999097100000001},{"$f":"VALUE(FIXED(EXP(AB$4*-1*'PM2.5 reduction'!AB197),9))","v":0.99999019300000003},{"$f":"VALUE(FIXED(EXP(AC$4*-1*'PM2.5 reduction'!AC197),9))","v":0.99998966700000003},{"$f":"VALUE(FIXED(EXP(AD$4*-1*'PM2.5 reduction'!AD197),9))","v":0.99999738599999999},{"$f":"VALUE(FIXED(EXP(AE$4*-1*'PM2.5 reduction'!AE197),9))","v":0.99999737799999999},{"$f":"VALUE(FIXED(EXP(AF$4*-1*'PM2.5 reduction'!AF197),9))","v":0.99999587400000001},{"$f":"VALUE(FIXED(EXP(AG$4*-1*'PM2.5 reduction'!AG197),9))","v":0.99999737799999999},{"$f":"VALUE(FIXED(EXP(AH$4*-1*'PM2.5 reduction'!AH197),9))","v":0.99999416500000005},{"$f":"VALUE(FIXED(EXP(AI$4*-1*'PM2.5 reduction'!AI197),9))","v":0.99998876800000003},{"$f":"VALUE(FIXED(EXP(AJ$4*-1*'PM2.5 reduction'!AJ197),9))","v":0.99999575200000002},{"$f":"VALUE(FIXED(EXP(AK$4*-1*'PM2.5 reduction'!AK197),9))","v":0.99999743699999999},{"$f":"VALUE(FIXED(EXP(AL$4*-1*'PM2.5 reduction'!AL197),9))","v":0.99999749100000002},{"$f":"VALUE(FIXED(EXP(AM$4*-1*'PM2.5 reduction'!AM197),9))","v":0.99999377899999997},{"$f":"VALUE(FIXED(EXP(AN$4*-1*'PM2.5 reduction'!AN197),9))","v":0.99999865899999996},{"$f":"VALUE(FIXED(EXP(AO$4*-1*'PM2.5 reduction'!AO197),9))","v":0.99999865899999996},{"$f":"VALUE(FIXED(EXP(AP$4*-1*'PM2.5 reduction'!AP197),9))","v":0.99999791999999998},{"$f":"VALUE(FIXED(EXP(AQ$4*-1*'PM2.5 reduction'!AQ197),9))","v":0.99999429399999995},{"$f":"VALUE(FIXED(EXP(AR$4*-1*'PM2.5 reduction'!AR197),9))","v":0.99999193799999997},{"$f":"VALUE(FIXED(EXP(AS$4*-1*'PM2.5 reduction'!AS197),9))","v":0.99999880299999999},{"$f":"VALUE(FIXED(EXP(AT$4*-1*'PM2.5 reduction'!AT197),9))","v":0.99999919199999998},{"$f":"VALUE(FIXED(EXP(AU$4*-1*'PM2.5 reduction'!AU197),9))","v":0.99999919199999998},{"$f":"VALUE(FIXED(EXP(AV$4*-1*'PM2.5 reduction'!AV197),9))","v":0.99999581699999995},{"$f":"VALUE(FIXED(EXP(AW$4*-1*'PM2.5 reduction'!AW197),9))","v":0.99999452099999997},{"$f":"VALUE(FIXED(EXP(AX$4*-1*'PM2.5 reduction'!AX197),9))","v":0.999995364},{"$f":"VALUE(FIXED(EXP(AY$4*-1*'PM2.5 reduction'!AY197),9))","v":0.99999566900000003},{"$f":"VALUE(FIXED(EXP(AZ$4*-1*'PM2.5 reduction'!AZ197),9))","v":0.99999561999999997},{"$f":"VALUE(FIXED(EXP(BA$4*-1*'PM2.5 reduction'!BA197),9))","v":0.99999534999999995},{"$f":"VALUE(FIXED(EXP(BB$4*-1*'PM2.5 reduction'!BB197),9))","v":0.99999532300000005},{"$f":"VALUE(FIXED(EXP(BC$4*-1*'PM2.5 reduction'!BC197),9))","v":1}]
[null,"Male 25-29",{"$f":"VALUE(FIXED(EXP(C$4*-1*'PM2.5 reduction'!C198),9))","v":0.99998814400000002},{"$f":"VALUE(FIXED(EXP(D$4*-1*'PM2.5 reduction'!D198),9))","v":0.99999069299999999},{"$f":"VALUE(FIXED(EXP(E$4*-1*'PM2.5 reduction'!E198),9))","v":0.99999819599999995},{"$f":"VALUE(FIXED(EXP(F$4*-1*'PM2.5 reduction'!F198),9))","v":0.99999806499999999},{"$f":"VALUE(FIXED(EXP(G$4*-1*'PM2.5 reduction'!G198),9))","v":0.99999753800000002},{"$f":"VALUE(FIXED(EXP(H$4*-1*'PM2.5 reduction'!H198),9))","v":0.99999641900000003},{"$f":"VALUE(FIXED(EXP(I$4*-1*'PM2.5 reduction'!I198),9))","v":0.99999882500000004},{"$f":"VALUE(FIXED(EXP(J$4*-1*'PM2.5 reduction'!J198),9))","v":0.99999554999999996},{"$f":"VALUE(FIXED(EXP(K$4*-1*'PM2.5 reduction'!K198),9))","v":0.99999524799999995},{"$f":"VALUE(FIXED(EXP(L$4*-1*'PM2.5 reduction'!L198),9))","v":0.99999804699999995},{"$f":"VALUE(FIXED(EXP(M$4*-1*'PM2.5 reduction'!M198),9))","v":0.99999804699999995},{"$f":"VALUE(FIXED(EXP(N$4*-1*'PM2.5 reduction'!N198),9))","v":0.99999291099999998},{"$f":"VALUE(FIXED(EXP(O$4*-1*'PM2.5 reduction'!O198),9))","v":0.99999592699999995},{"$f":"VALUE(FIXED(EXP(P$4*-1*'PM2.5 reduction'!P198),9))","v":0.99999360900000001},{"$f":"VALUE(FIXED(EXP(Q$4*-1*'PM2.5 reduction'!Q198),9))","v":0.99999611899999996},{"$f":"VALUE(FIXED(EXP(R$4*-1*'PM2.5 reduction'!R198),9))","v":0.99999401399999999},{"$f":"VALUE(FIXED(EXP(S$4*-1*'PM2.5 reduction'!S198),9))","v":0.99998986499999998},{"$f":"VALUE(FIXED(EXP(T$4*-1*'PM2.5 reduction'!T198),9))","v":0.99998725899999996},{"$f":"VALUE(FIXED(EXP(U$4*-1*'PM2.5 reduction'!U198),9))","v":1},{"$f":"VALUE(FIXED(EXP(V$4*-1*'PM2.5 reduction'!V198),9))","v":0.999994665},{"$f":"VALUE(FIXED(EXP(W$4*-1*'PM2.5 reduction'!W198),9))","v":0.99999576199999995},{"$f":"VALUE(FIXED(EXP(X$4*-1*'PM2.5 reduction'!X198),9))","v":0.99999576199999995},{"$f":"VALUE(FIXED(EXP(Y$4*-1*'PM2.5 reduction'!Y198),9))","v":0.99999508000000004},{"$f":"VALUE(FIXED(EXP(Z$4*-1*'PM2.5 reduction'!Z198),9))","v":0.99998786500000003},{"$f":"VALUE(FIXED(EXP(AA$4*-1*'PM2.5 reduction'!AA198),9))","v":0.99999114499999997},{"$f":"VALUE(FIXED(EXP(AB$4*-1*'PM2.5 reduction'!AB198),9))","v":0.99999101499999998},{"$f":"VALUE(FIXED(EXP(AC$4*-1*'PM2.5 reduction'!AC198),9))","v":0.99999000299999996},{"$f":"VALUE(FIXED(EXP(AD$4*-1*'PM2.5 reduction'!AD198),9))","v":0.99999705500000002},{"$f":"VALUE(FIXED(EXP(AE$4*-1*'PM2.5 reduction'!AE198),9))","v":0.99999704},{"$f":"VALUE(FIXED(EXP(AF$4*-1*'PM2.5 reduction'!AF198),9))","v":0.99999574199999997},{"$f":"VALUE(FIXED(EXP(AG$4*-1*'PM2.5 reduction'!AG198),9))","v":0.99999704},{"$f":"VALUE(FIXED(EXP(AH$4*-1*'PM2.5 reduction'!AH198),9))","v":0.99999408899999997},{"$f":"VALUE(FIXED(EXP(AI$4*-1*'PM2.5 reduction'!AI198),9))","v":0.99998867999999996},{"$f":"VALUE(FIXED(EXP(AJ$4*-1*'PM2.5 reduction'!AJ198),9))","v":0.999995984},{"$f":"VALUE(FIXED(EXP(AK$4*-1*'PM2.5 reduction'!AK198),9))","v":0.99999754299999999},{"$f":"VALUE(FIXED(EXP(AL$4*-1*'PM2.5 reduction'!AL198),9))","v":0.99999749299999996},{"$f":"VALUE(FIXED(EXP(AM$4*-1*'PM2.5 reduction'!AM198),9))","v":0.99999361499999995},{"$f":"VALUE(FIXED(EXP(AN$4*-1*'PM2.5 reduction'!AN198),9))","v":0.99999864500000002},{"$f":"VALUE(FIXED(EXP(AO$4*-1*'PM2.5 reduction'!AO198),9))","v":0.99999864500000002},{"$f":"VALUE(FIXED(EXP(AP$4*-1*'PM2.5 reduction'!AP198),9))","v":0.999997531},{"$f":"VALUE(FIXED(EXP(AQ$4*-1*'PM2.5 reduction'!AQ198),9))","v":0.99999406499999999},{"$f":"VALUE(FIXED(EXP(AR$4*-1*'PM2.5 reduction'!AR198),9))","v":0.99999179000000005},{"$f":"VALUE(FIXED(EXP(AS$4*-1*'PM2.5 reduction'!AS198),9))","v":0.99999882500000004},{"$f":"VALUE(FIXED(EXP(AT$4*-1*'PM2.5 reduction'!AT198),9))","v":0.99999898399999998},{"$f":"VALUE(FIXED(EXP(AU$4*-1*'PM2.5 reduction'!AU198),9))","v":0.99999898399999998},{"$f":"VALUE(FIXED(EXP(AV$4*-1*'PM2.5 reduction'!AV198),9))","v":0.99999576300000004},{"$f":"VALUE(FIXED(EXP(AW$4*-1*'PM2.5 reduction'!AW198),9))","v":0.99999448199999996},{"$f":"VALUE(FIXED(EXP(AX$4*-1*'PM2.5 reduction'!AX198),9))","v":0.99999562600000003},{"$f":"VALUE(FIXED(EXP(AY$4*-1*'PM2.5 reduction'!AY198),9))","v":0.99999569399999999},{"$f":"VALUE(FIXED(EXP(AZ$4*-1*'PM2.5 reduction'!AZ198),9))","v":0.99999566200000001},{"$f":"VALUE(FIXED(EXP(BA$4*-1*'PM2.5 reduction'!BA198),9))","v":0.99999538600000004},{"$f":"VALUE(FIXED(EXP(BB$4*-1*'PM2.5 reduction'!BB198),9))","v":0.99999521000000002},{"$f":"VALUE(FIXED(EXP(BC$4*-1*'PM2.5 reduction'!BC198),9))","v":1}]
[null,"Male 30-34",{"$f":"VALUE(FIXED(EXP(C$4*-1*'PM2.5 reduction'!C199),9))","v":0.99998895799999998},{"$f":"VALUE(FIXED(EXP(D$4*-1*'PM2.5 reduction'!D199),9))","v":0.99999189899999996},{"$f":"VALUE(FIXED(EXP(E$4*-1*'PM2.5 reduction'!E199),9))","v":0.999998214},{"$f":"VALUE(FIXED(EXP(F$4*-1*'PM2.5 reduction'!F199),9))","v":0.99999796500000004},{"$f":"VALUE(FIXED(EXP(G$4*-1*'PM2.5 reduction'!G199),9))","v":0.99999752900000005},{"$f":"VALUE(FIXED(EXP(H$4*-1*'PM2.5 reduction'!H199),9))","v":0.99999638499999999},{"$f":"VALUE(FIXED(EXP(I$4*-1*'PM2.5 reduction'!I199),9))","v":0.99999871500000004},{"$f":"VALUE(FIXED(EXP(J$4*-1*'PM2.5 reduction'!J199),9))","v":0.99999576899999998},{"$f":"VALUE(FIXED(EXP(K$4*-1*'PM2.5 reduction'!K199),9))","v":0.99999579299999997},{"$f":"VALUE(FIXED(EXP(L$4*-1*'PM2.5 reduction'!L199),9))","v":0.99999808099999998},{"$f":"VALUE(FIXED(EXP(M$4*-1*'PM2.5 reduction'!M199),9))","v":0.99999808099999998},{"$f":"VALUE(FIXED(EXP(N$4*-1*'PM2.5 reduction'!N199),9))","v":0.99999267300000005},{"$f":"VALUE(FIXED(EXP(O$4*-1*'PM2.5 reduction'!O199),9))","v":0.99999591399999999},{"$f":"VALUE(FIXED(EXP(P$4*-1*'PM2.5 reduction'!P199),9))","v":0.99999344800000001},{"$f":"VALUE(FIXED(EXP(Q$4*-1*'PM2.5 reduction'!Q199),9))","v":0.99999627199999996},{"$f":"VALUE(FIXED(EXP(R$4*-1*'PM2.5 reduction'!R199),9))","v":0.99999428499999998},{"$f":"VALUE(FIXED(EXP(S$4*-1*'PM2.5 reduction'!S199),9))","v":0.99999027299999999},{"$f":"VALUE(FIXED(EXP(T$4*-1*'PM2.5 reduction'!T199),9))","v":0.99998743099999998},{"$f":"VALUE(FIXED(EXP(U$4*-1*'PM2.5 reduction'!U199),9))","v":1},{"$f":"VALUE(FIXED(EXP(V$4*-1*'PM2.5 reduction'!V199),9))","v":0.99999433199999999},{"$f":"VALUE(FIXED(EXP(W$4*-1*'PM2.5 reduction'!W199),9))","v":0.99999580600000004},{"$f":"VALUE(FIXED(EXP(X$4*-1*'PM2.5 reduction'!X199),9))","v":0.99999580600000004},{"$f":"VALUE(FIXED(EXP(Y$4*-1*'PM2.5 reduction'!Y199),9))","v":0.99999496499999996},{"$f":"VALUE(FIXED(EXP(Z$4*-1*'PM2.5 reduction'!Z199),9))","v":0.99998864300000001},{"$f":"VALUE(FIXED(EXP(AA$4*-1*'PM2.5 reduction'!AA199),9))","v":0.99999164799999996},{"$f":"VALUE(FIXED(EXP(AB$4*-1*'PM2.5 reduction'!AB199),9))","v":0.99999226500000005},{"$f":"VALUE(FIXED(EXP(AC$4*-1*'PM2.5 reduction'!AC199),9))","v":0.99999036200000002},{"$f":"VALUE(FIXED(EXP(AD$4*-1*'PM2.5 reduction'!AD199),9))","v":0.999997315},{"$f":"VALUE(FIXED(EXP(AE$4*-1*'PM2.5 reduction'!AE199),9))","v":0.99999730899999995},{"$f":"VALUE(FIXED(EXP(AF$4*-1*'PM2.5 reduction'!AF199),9))","v":0.99999512899999998},{"$f":"VALUE(FIXED(EXP(AG$4*-1*'PM2.5 reduction'!AG199),9))","v":0.99999730899999995},{"$f":"VALUE(FIXED(EXP(AH$4*-1*'PM2.5 reduction'!AH199),9))","v":0.99999411599999999},{"$f":"VALUE(FIXED(EXP(AI$4*-1*'PM2.5 reduction'!AI199),9))","v":0.99998903100000003},{"$f":"VALUE(FIXED(EXP(AJ$4*-1*'PM2.5 reduction'!AJ199),9))","v":0.99999544699999998},{"$f":"VALUE(FIXED(EXP(AK$4*-1*'PM2.5 reduction'!AK199),9))","v":0.99999778399999995},{"$f":"VALUE(FIXED(EXP(AL$4*-1*'PM2.5 reduction'!AL199),9))","v":0.99999753199999997},{"$f":"VALUE(FIXED(EXP(AM$4*-1*'PM2.5 reduction'!AM199),9))","v":0.99999366700000003},{"$f":"VALUE(FIXED(EXP(AN$4*-1*'PM2.5 reduction'!AN199),9))","v":0.99999859800000002},{"$f":"VALUE(FIXED(EXP(AO$4*-1*'PM2.5 reduction'!AO199),9))","v":0.99999859800000002},{"$f":"VALUE(FIXED(EXP(AP$4*-1*'PM2.5 reduction'!AP199),9))","v":0.99999763100000005},{"$f":"VALUE(FIXED(EXP(AQ$4*-1*'PM2.5 reduction'!AQ199),9))","v":0.99999401700000001},{"$f":"VALUE(FIXED(EXP(AR$4*-1*'PM2.5 reduction'!AR199),9))","v":0.99999229199999995},{"$f":"VALUE(FIXED(EXP(AS$4*-1*'PM2.5 reduction'!AS199),9))","v":0.99999871500000004},{"$f":"VALUE(FIXED(EXP(AT$4*-1*'PM2.5 reduction'!AT199),9))","v":0.99999898200000004},{"$f":"VALUE(FIXED(EXP(AU$4*-1*'PM2.5 reduction'!AU199),9))","v":0.99999898200000004},{"$f":"VALUE(FIXED(EXP(AV$4*-1*'PM2.5 reduction'!AV199),9))","v":0.99999578099999997},{"$f":"VALUE(FIXED(EXP(AW$4*-1*'PM2.5 reduction'!AW199),9))","v":0.99999448300000005},{"$f":"VALUE(FIXED(EXP(AX$4*-1*'PM2.5 reduction'!AX199),9))","v":0.99999575799999996},{"$f":"VALUE(FIXED(EXP(AY$4*-1*'PM2.5 reduction'!AY199),9))","v":0.99999594800000002},{"$f":"VALUE(FIXED(EXP(AZ$4*-1*'PM2.5 reduction'!AZ199),9))","v":0.999996039},{"$f":"VALUE(FIXED(EXP(BA$4*-1*'PM2.5 reduction'!BA199),9))","v":0.99999487799999998},{"$f":"VALUE(FIXED(EXP(BB$4*-1*'PM2.5 reduction'!BB199),9))","v":0.99999506599999999},{"$f":"VALUE(FIXED(EXP(BC$4*-1*'PM2.5 reduction'!BC199),9))","v":1}]
[null,"Male 35-39",{"$f":"VALUE(FIXED(EXP(C$4*-1*'PM2.5 reduction'!C200),9))","v":0.99998981300000001},{"$f":"VALUE(FIXED(EXP(D$4*-1*'PM2.5 reduction'!D200),9))","v":0.99999313999999995},{"$f":"VALUE(FIXED(EXP(E$4*-1*'PM2.5 reduction'!E200),9))","v":0.99999818600000001},{"$f":"VALUE(FIXED(EXP(F$4*-1*'PM2.5 reduction'!F200),9))","v":0.99999811999999999},{"$f":"VALUE(FIXED(EXP(G$4*-1*'PM2.5 reduction'!G200),9))","v":0.999997527},{"$f":"VALUE(FIXED(EXP(H$4*-1*'PM2.5 reduction'!H200),9))","v":0.99999644499999996},{"$f":"VALUE(FIXED(EXP(I$4*-1*'PM2.5 reduction'!I200),9))","v":0.99999869399999997},{"$f":"VALUE(FIXED(EXP(J$4*-1*'PM2.5 reduction'!J200),9))","v":0.99999586699999998},{"$f":"VALUE(FIXED(EXP(K$4*-1*'PM2.5 reduction'!K200),9))","v":0.99999556599999995},{"$f":"VALUE(FIXED(EXP(L$4*-1*'PM2.5 reduction'!L200),9))","v":0.999998316},{"$f":"VALUE(FIXED(EXP(M$4*-1*'PM2.5 reduction'!M200),9))","v":0.999998316},{"$f":"VALUE(FIXED(EXP(N$4*-1*'PM2.5 reduction'!N200),9))","v":0.99999275099999996},{"$f":"VALUE(FIXED(EXP(O$4*-1*'PM2.5 reduction'!O200),9))","v":0.99999585099999999},{"$f":"VALUE(FIXED(EXP(P$4*-1*'PM2.5 reduction'!P200),9))","v":0.99999344599999995},{"$f":"VALUE(FIXED(EXP(Q$4*-1*'PM2.5 reduction'!Q200),9))","v":0.99999659100000005},{"$f":"VALUE(FIXED(EXP(R$4*-1*'PM2.5 reduction'!R200),9))","v":0.99999434499999995},{"$f":"VALUE(FIXED(EXP(S$4*-1*'PM2.5 reduction'!S200),9))","v":0.99999138899999995},{"$f":"VALUE(FIXED(EXP(T$4*-1*'PM2.5 reduction'!T200),9))","v":0.99998796999999995},{"$f":"VALUE(FIXED(EXP(U$4*-1*'PM2.5 reduction'!U200),9))","v":1},{"$f":"VALUE(FIXED(EXP(V$4*-1*'PM2.5 reduction'!V200),9))","v":0.99999440299999998},{"$f":"VALUE(FIXED(EXP(W$4*-1*'PM2.5 reduction'!W200),9))","v":0.99999578700000002},{"$f":"VALUE(FIXED(EXP(X$4*-1*'PM2.5 reduction'!X200),9))","v":0.99999578700000002},{"$f":"VALUE(FIXED(EXP(Y$4*-1*'PM2.5 reduction'!Y200),9))","v":0.99999510199999997},{"$f":"VALUE(FIXED(EXP(Z$4*-1*'PM2.5 reduction'!Z200),9))","v":0.99998897799999997},{"$f":"VALUE(FIXED(EXP(AA$4*-1*'PM2.5 reduction'!AA200),9))","v":0.99999220099999997},{"$f":"VALUE(FIXED(EXP(AB$4*-1*'PM2.5 reduction'!AB200),9))","v":0.99999349199999998},{"$f":"VALUE(FIXED(EXP(AC$4*-1*'PM2.5 reduction'!AC200),9))","v":0.99999093900000002},{"$f":"VALUE(FIXED(EXP(AD$4*-1*'PM2.5 reduction'!AD200),9))","v":0.99999726799999999},{"$f":"VALUE(FIXED(EXP(AE$4*-1*'PM2.5 reduction'!AE200),9))","v":0.99999724999999995},{"$f":"VALUE(FIXED(EXP(AF$4*-1*'PM2.5 reduction'!AF200),9))","v":0.99999575100000004},{"$f":"VALUE(FIXED(EXP(AG$4*-1*'PM2.5 reduction'!AG200),9))","v":0.99999724999999995},{"$f":"VALUE(FIXED(EXP(AH$4*-1*'PM2.5 reduction'!AH200),9))","v":0.99999405799999996},{"$f":"VALUE(FIXED(EXP(AI$4*-1*'PM2.5 reduction'!AI200),9))","v":0.99998995800000001},{"$f":"VALUE(FIXED(EXP(AJ$4*-1*'PM2.5 reduction'!AJ200),9))","v":0.99999548000000005},{"$f":"VALUE(FIXED(EXP(AK$4*-1*'PM2.5 reduction'!AK200),9))","v":0.99999763900000005},{"$f":"VALUE(FIXED(EXP(AL$4*-1*'PM2.5 reduction'!AL200),9))","v":0.99999754500000004},{"$f":"VALUE(FIXED(EXP(AM$4*-1*'PM2.5 reduction'!AM200),9))","v":0.99999365799999995},{"$f":"VALUE(FIXED(EXP(AN$4*-1*'PM2.5 reduction'!AN200),9))","v":0.99999857599999997},{"$f":"VALUE(FIXED(EXP(AO$4*-1*'PM2.5 reduction'!AO200),9))","v":0.99999857599999997},{"$f":"VALUE(FIXED(EXP(AP$4*-1*'PM2.5 reduction'!AP200),9))","v":0.99999757499999997},{"$f":"VALUE(FIXED(EXP(AQ$4*-1*'PM2.5 reduction'!AQ200),9))","v":0.99999405600000002},{"$f":"VALUE(FIXED(EXP(AR$4*-1*'PM2.5 reduction'!AR200),9))","v":0.99999308600000003},{"$f":"VALUE(FIXED(EXP(AS$4*-1*'PM2.5 reduction'!AS200),9))","v":0.99999869399999997},{"$f":"VALUE(FIXED(EXP(AT$4*-1*'PM2.5 reduction'!AT200),9))","v":0.99999907200000004},{"$f":"VALUE(FIXED(EXP(AU$4*-1*'PM2.5 reduction'!AU200),9))","v":0.99999907200000004},{"$f":"VALUE(FIXED(EXP(AV$4*-1*'PM2.5 reduction'!AV200),9))","v":0.999995784},{"$f":"VALUE(FIXED(EXP(AW$4*-1*'PM2.5 reduction'!AW200),9))","v":0.99999434099999995},{"$f":"VALUE(FIXED(EXP(AX$4*-1*'PM2.5 reduction'!AX200),9))","v":0.99999598499999998},{"$f":"VALUE(FIXED(EXP(AY$4*-1*'PM2.5 reduction'!AY200),9))","v":0.99999601199999999},{"$f":"VALUE(FIXED(EXP(AZ$4*-1*'PM2.5 reduction'!AZ200),9))","v":0.99999619399999995},{"$f":"VALUE(FIXED(EXP(BA$4*-1*'PM2.5 reduction'!BA200),9))","v":0.99999525199999995},{"$f":"VALUE(FIXED(EXP(BB$4*-1*'PM2.5 reduction'!BB200),9))","v":0.99999516899999996},{"$f":"VALUE(FIXED(EXP(BC$4*-1*'PM2.5 reduction'!BC200),9))","v":1}]
[null,"Male 40-44",{"$f":"VALUE(FIXED(EXP(C$4*-1*'PM2.5 reduction'!C201),9))","v":0.99998997899999997},{"$f":"VALUE(FIXED(EXP(D$4*-1*'PM2.5 reduction'!D201),9))","v":0.99999371299999995},{"$f":"VALUE(FIXED(EXP(E$4*-1*'PM2.5 reduction'!E201),9))","v":0.99999818699999998},{"$f":"VALUE(FIXED(EXP(F$4*-1*'PM2.5 reduction'!F201),9))","v":0.99999802800000004},{"$f":"VALUE(FIXED(EXP(G$4*-1*'PM2.5 reduction'!G201),9))","v":0.99999752900000005},{"$f":"VALUE(FIXED(EXP(H$4*-1*'PM2.5 reduction'!H201),9))","v":0.99999650399999995},{"$f":"VALUE(FIXED(EXP(I$4*-1*'PM2.5 reduction'!I201),9))","v":0.99999873399999994},{"$f":"VALUE(FIXED(EXP(J$4*-1*'PM2.5 reduction'!J201),9))","v":0.99999621699999997},{"$f":"VALUE(FIXED(EXP(K$4*-1*'PM2.5 reduction'!K201),9))","v":0.99999590599999999},{"$f":"VALUE(FIXED(EXP(L$4*-1*'PM2.5 reduction'!L201),9))","v":0.99999811199999999},{"$f":"VALUE(FIXED(EXP(M$4*-1*'PM2.5 reduction'!M201),9))","v":0.99999811199999999},{"$f":"VALUE(FIXED(EXP(N$4*-1*'PM2.5 reduction'!N201),9))","v":0.99999281600000001},{"$f":"VALUE(FIXED(EXP(O$4*-1*'PM2.5 reduction'!O201),9))","v":0.99999605000000003},{"$f":"VALUE(FIXED(EXP(P$4*-1*'PM2.5 reduction'!P201),9))","v":0.999993303},{"$f":"VALUE(FIXED(EXP(Q$4*-1*'PM2.5 reduction'!Q201),9))","v":0.99999660700000004},{"$f":"VALUE(FIXED(EXP(R$4*-1*'PM2.5 reduction'!R201),9))","v":0.99999464599999999},{"$f":"VALUE(FIXED(EXP(S$4*-1*'PM2.5 reduction'!S201),9))","v":0.99999220499999997},{"$f":"VALUE(FIXED(EXP(T$4*-1*'PM2.5 reduction'!T201),9))","v":0.999988141},{"$f":"VALUE(FIXED(EXP(U$4*-1*'PM2.5 reduction'!U201),9))","v":1},{"$f":"VALUE(FIXED(EXP(V$4*-1*'PM2.5 reduction'!V201),9))","v":0.99999454399999999},{"$f":"VALUE(FIXED(EXP(W$4*-1*'PM2.5 reduction'!W201),9))","v":0.999995772},{"$f":"VALUE(FIXED(EXP(X$4*-1*'PM2.5 reduction'!X201),9))","v":0.999995772},{"$f":"VALUE(FIXED(EXP(Y$4*-1*'PM2.5 reduction'!Y201),9))","v":0.99999527600000004},{"$f":"VALUE(FIXED(EXP(Z$4*-1*'PM2.5 reduction'!Z201),9))","v":0.99998925900000002},{"$f":"VALUE(FIXED(EXP(AA$4*-1*'PM2.5 reduction'!AA201),9))","v":0.99999269499999999},{"$f":"VALUE(FIXED(EXP(AB$4*-1*'PM2.5 reduction'!AB201),9))","v":0.99999405399999997},{"$f":"VALUE(FIXED(EXP(AC$4*-1*'PM2.5 reduction'!AC201),9))","v":0.99999162100000005},{"$f":"VALUE(FIXED(EXP(AD$4*-1*'PM2.5 reduction'!AD201),9))","v":0.99999726899999997},{"$f":"VALUE(FIXED(EXP(AE$4*-1*'PM2.5 reduction'!AE201),9))","v":0.99999724599999995},{"$f":"VALUE(FIXED(EXP(AF$4*-1*'PM2.5 reduction'!AF201),9))","v":0.99999614100000001},{"$f":"VALUE(FIXED(EXP(AG$4*-1*'PM2.5 reduction'!AG201),9))","v":0.99999724599999995},{"$f":"VALUE(FIXED(EXP(AH$4*-1*'PM2.5 reduction'!AH201),9))","v":0.99999416900000004},{"$f":"VALUE(FIXED(EXP(AI$4*-1*'PM2.5 reduction'!AI201),9))","v":0.99999073900000002},{"$f":"VALUE(FIXED(EXP(AJ$4*-1*'PM2.5 reduction'!AJ201),9))","v":0.99999550400000004},{"$f":"VALUE(FIXED(EXP(AK$4*-1*'PM2.5 reduction'!AK201),9))","v":0.99999800900000002},{"$f":"VALUE(FIXED(EXP(AL$4*-1*'PM2.5 reduction'!AL201),9))","v":0.99999752799999997},{"$f":"VALUE(FIXED(EXP(AM$4*-1*'PM2.5 reduction'!AM201),9))","v":0.99999374900000004},{"$f":"VALUE(FIXED(EXP(AN$4*-1*'PM2.5 reduction'!AN201),9))","v":0.99999875000000005},{"$f":"VALUE(FIXED(EXP(AO$4*-1*'PM2.5 reduction'!AO201),9))","v":0.99999875000000005},{"$f":"VALUE(FIXED(EXP(AP$4*-1*'PM2.5 reduction'!AP201),9))","v":0.99999791299999996},{"$f":"VALUE(FIXED(EXP(AQ$4*-1*'PM2.5 reduction'!AQ201),9))","v":0.999994257},{"$f":"VALUE(FIXED(EXP(AR$4*-1*'PM2.5 reduction'!AR201),9))","v":0.99999366899999997},{"$f":"VALUE(FIXED(EXP(AS$4*-1*'PM2.5 reduction'!AS201),9))","v":0.99999873399999994},{"$f":"VALUE(FIXED(EXP(AT$4*-1*'PM2.5 reduction'!AT201),9))","v":0.99999913799999995},{"$f":"VALUE(FIXED(EXP(AU$4*-1*'PM2.5 reduction'!AU201),9))","v":0.99999913799999995},{"$f":"VALUE(FIXED(EXP(AV$4*-1*'PM2.5 reduction'!AV201),9))","v":0.999995674},{"$f":"VALUE(FIXED(EXP(AW$4*-1*'PM2.5 reduction'!AW201),9))","v":0.99999449600000001},{"$f":"VALUE(FIXED(EXP(AX$4*-1*'PM2.5 reduction'!AX201),9))","v":0.99999635200000003},{"$f":"VALUE(FIXED(EXP(AY$4*-1*'PM2.5 reduction'!AY201),9))","v":0.99999610100000003},{"$f":"VALUE(FIXED(EXP(AZ$4*-1*'PM2.5 reduction'!AZ201),9))","v":0.99999638000000002},{"$f":"VALUE(FIXED(EXP(BA$4*-1*'PM2.5 reduction'!BA201),9))","v":0.99999522600000001},{"$f":"VALUE(FIXED(EXP(BB$4*-1*'PM2.5 reduction'!BB201),9))","v":0.99999510999999996},{"$f":"VALUE(FIXED(EXP(BC$4*-1*'PM2.5 reduction'!BC201),9))","v":1}]
[null,"Male 45-49",{"$f":"VALUE(FIXED(EXP(C$4*-1*'PM2.5 reduction'!C202),9))","v":0.99999083300000002},{"$f":"VALUE(FIXED(EXP(D$4*-1*'PM2.5 reduction'!D202),9))","v":0.99999454899999995},{"$f":"VALUE(FIXED(EXP(E$4*-1*'PM2.5 reduction'!E202),9))","v":0.99999824400000004},{"$f":"VALUE(FIXED(EXP(F$4*-1*'PM2.5 reduction'!F202),9))","v":0.99999798299999998},{"$f":"VALUE(FIXED(EXP(G$4*-1*'PM2.5 reduction'!G202),9))","v":0.99999751599999998},{"$f":"VALUE(FIXED(EXP(H$4*-1*'PM2.5 reduction'!H202),9))","v":0.99999658300000005},{"$f":"VALUE(FIXED(EXP(I$4*-1*'PM2.5 reduction'!I202),9))","v":0.999998842},{"$f":"VALUE(FIXED(EXP(J$4*-1*'PM2.5 reduction'!J202),9))","v":0.99999637799999996},{"$f":"VALUE(FIXED(EXP(K$4*-1*'PM2.5 reduction'!K202),9))","v":0.99999587000000001},{"$f":"VALUE(FIXED(EXP(L$4*-1*'PM2.5 reduction'!L202),9))","v":0.99999829799999995},{"$f":"VALUE(FIXED(EXP(M$4*-1*'PM2.5 reduction'!M202),9))","v":0.99999829799999995},{"$f":"VALUE(FIXED(EXP(N$4*-1*'PM2.5 reduction'!N202),9))","v":0.99999269599999996},{"$f":"VALUE(FIXED(EXP(O$4*-1*'PM2.5 reduction'!O202),9))","v":0.99999619299999998},{"$f":"VALUE(FIXED(EXP(P$4*-1*'PM2.5 reduction'!P202),9))","v":0.99999317899999995},{"$f":"VALUE(FIXED(EXP(Q$4*-1*'PM2.5 reduction'!Q202),9))","v":0.99999669400000002},{"$f":"VALUE(FIXED(EXP(R$4*-1*'PM2.5 reduction'!R202),9))","v":0.99999427500000004},{"$f":"VALUE(FIXED(EXP(S$4*-1*'PM2.5 reduction'!S202),9))","v":0.999992934},{"$f":"VALUE(FIXED(EXP(T$4*-1*'PM2.5 reduction'!T202),9))","v":0.999988506},{"$f":"VALUE(FIXED(EXP(U$4*-1*'PM2.5 reduction'!U202),9))","v":1},{"$f":"VALUE(FIXED(EXP(V$4*-1*'PM2.5 reduction'!V202),9))","v":0.99999468800000002},{"$f":"VALUE(FIXED(EXP(W$4*-1*'PM2.5 reduction'!W202),9))","v":0.99999589300000002},{"$f":"VALUE(FIXED(EXP(X$4*-1*'PM2.5 reduction'!X202),9))","v":0.99999589300000002},{"$f":"VALUE(FIXED(EXP(Y$4*-1*'PM2.5 reduction'!Y202),9))","v":0.999995411},{"$f":"VALUE(FIXED(EXP(Z$4*-1*'PM2.5 reduction'!Z202),9))","v":0.99998994200000002},{"$f":"VALUE(FIXED(EXP(AA$4*-1*'PM2.5 reduction'!AA202),9))","v":0.99999307800000004},{"$f":"VALUE(FIXED(EXP(AB$4*-1*'PM2.5 reduction'!AB202),9))","v":0.99999483199999994},{"$f":"VALUE(FIXED(EXP(AC$4*-1*'PM2.5 reduction'!AC202),9))","v":0.99999224099999995},{"$f":"VALUE(FIXED(EXP(AD$4*-1*'PM2.5 reduction'!AD202),9))","v":0.99999742300000005},{"$f":"VALUE(FIXED(EXP(AE$4*-1*'PM2.5 reduction'!AE202),9))","v":0.99999741600000003},{"$f":"VALUE(FIXED(EXP(AF$4*-1*'PM2.5 reduction'!AF202),9))","v":0.99999615500000005},{"$f":"VALUE(FIXED(EXP(AG$4*-1*'PM2.5 reduction'!AG202),9))","v":0.99999741600000003},{"$f":"VALUE(FIXED(EXP(AH$4*-1*'PM2.5 reduction'!AH202),9))","v":0.99999420500000002},{"$f":"VALUE(FIXED(EXP(AI$4*-1*'PM2.5 reduction'!AI202),9))","v":0.99999137599999999},{"$f":"VALUE(FIXED(EXP(AJ$4*-1*'PM2.5 reduction'!AJ202),9))","v":0.99999532499999999},{"$f":"VALUE(FIXED(EXP(AK$4*-1*'PM2.5 reduction'!AK202),9))","v":0.99999770600000004},{"$f":"VALUE(FIXED(EXP(AL$4*-1*'PM2.5 reduction'!AL202),9))","v":0.99999757199999995},{"$f":"VALUE(FIXED(EXP(AM$4*-1*'PM2.5 reduction'!AM202),9))","v":0.99999377300000003},{"$f":"VALUE(FIXED(EXP(AN$4*-1*'PM2.5 reduction'!AN202),9))","v":0.99999878900000005},{"$f":"VALUE(FIXED(EXP(AO$4*-1*'PM2.5 reduction'!AO202),9))","v":0.99999878900000005},{"$f":"VALUE(FIXED(EXP(AP$4*-1*'PM2.5 reduction'!AP202),9))","v":0.999997782},{"$f":"VALUE(FIXED(EXP(AQ$4*-1*'PM2.5 reduction'!AQ202),9))","v":0.99999422999999998},{"$f":"VALUE(FIXED(EXP(AR$4*-1*'PM2.5 reduction'!AR202),9))","v":0.99999414900000005},{"$f":"VALUE(FIXED(EXP(AS$4*-1*'PM2.5 reduction'!AS202),9))","v":0.999998842},{"$f":"VALUE(FIXED(EXP(AT$4*-1*'PM2.5 reduction'!AT202),9))","v":0.99999913500000004},{"$f":"VALUE(FIXED(EXP(AU$4*-1*'PM2.5 reduction'!AU202),9))","v":0.99999913500000004},{"$f":"VALUE(FIXED(EXP(AV$4*-1*'PM2.5 reduction'!AV202),9))","v":0.99999566299999998},{"$f":"VALUE(FIXED(EXP(AW$4*-1*'PM2.5 reduction'!AW202),9))","v":0.999994571},{"$f":"VALUE(FIXED(EXP(AX$4*-1*'PM2.5 reduction'!AX202),9))","v":0.99999661500000003},{"$f":"VALUE(FIXED(EXP(AY$4*-1*'PM2.5 reduction'!AY202),9))","v":0.99999613499999995},{"$f":"VALUE(FIXED(EXP(AZ$4*-1*'PM2.5 reduction'!AZ202),9))","v":0.99999633600000004},{"$f":"VALUE(FIXED(EXP(BA$4*-1*'PM2.5 reduction'!BA202),9))","v":0.99999528500000001},{"$f":"VALUE(FIXED(EXP(BB$4*-1*'PM2.5 reduction'!BB202),9))","v":0.99999536},{"$f":"VALUE(FIXED(EXP(BC$4*-1*'PM2.5 reduction'!BC202),9))","v":1}]
[null,"Male 50-54",{"$f":"VALUE(FIXED(EXP(C$4*-1*'PM2.5 reduction'!C203),9))","v":0.99999112599999995},{"$f":"VALUE(FIXED(EXP(D$4*-1*'PM2.5 reduction'!D203),9))","v":0.99999475800000004},{"$f":"VALUE(FIXED(EXP(E$4*-1*'PM2.5 reduction'!E203),9))","v":0.99999829200000001},{"$f":"VALUE(FIXED(EXP(F$4*-1*'PM2.5 reduction'!F203),9))","v":0.99999798299999998},{"$f":"VALUE(FIXED(EXP(G$4*-1*'PM2.5 reduction'!G203),9))","v":0.99999750300000001},{"$f":"VALUE(FIXED(EXP(H$4*-1*'PM2.5 reduction'!H203),9))","v":0.99999655499999995},{"$f":"VALUE(FIXED(EXP(I$4*-1*'PM2.5 reduction'!I203),9))","v":0.99999873699999997},{"$f":"VALUE(FIXED(EXP(J$4*-1*'PM2.5 reduction'!J203),9))","v":0.99999628200000001},{"$f":"VALUE(FIXED(EXP(K$4*-1*'PM2.5 reduction'!K203),9))","v":0.99999529799999998},{"$f":"VALUE(FIXED(EXP(L$4*-1*'PM2.5 reduction'!L203),9))","v":0.99999822999999999},{"$f":"VALUE(FIXED(EXP(M$4*-1*'PM2.5 reduction'!M203),9))","v":0.99999822999999999},{"$f":"VALUE(FIXED(EXP(N$4*-1*'PM2.5 reduction'!N203),9))","v":0.99999267199999997},{"$f":"VALUE(FIXED(EXP(O$4*-1*'PM2.5 reduction'!O203),9))","v":0.99999576199999995},{"$f":"VALUE(FIXED(EXP(P$4*-1*'PM2.5 reduction'!P203),9))","v":0.99999353300000005},{"$f":"VALUE(FIXED(EXP(Q$4*-1*'PM2.5 reduction'!Q203),9))","v":0.99999640199999995},{"$f":"VALUE(FIXED(EXP(R$4*-1*'PM2.5 reduction'!R203),9))","v":0.99999456200000003},{"$f":"VALUE(FIXED(EXP(S$4*-1*'PM2.5 reduction'!S203),9))","v":0.999992981},{"$f":"VALUE(FIXED(EXP(T$4*-1*'PM2.5 reduction'!T203),9))","v":0.99998865100000001},{"$f":"VALUE(FIXED(EXP(U$4*-1*'PM2.5 reduction'!U203),9))","v":1},{"$f":"VALUE(FIXED(EXP(V$4*-1*'PM2.5 reduction'!V203),9))","v":0.99999442000000005},{"$f":"VALUE(FIXED(EXP(W$4*-1*'PM2.5 reduction'!W203),9))","v":0.99999598700000003},{"$f":"VALUE(FIXED(EXP(X$4*-1*'PM2.5 reduction'!X203),9))","v":0.99999598700000003},{"$f":"VALUE(FIXED(EXP(Y$4*-1*'PM2.5 reduction'!Y203),9))","v":0.999995258},{"$f":"VALUE(FIXED(EXP(Z$4*-1*'PM2.5 reduction'!Z203),9))","v":0.99998999600000005},{"$f":"VALUE(FIXED(EXP(AA$4*-1*'PM2.5 reduction'!AA203),9))","v":0.99999318800000003},{"$f":"VALUE(FIXED(EXP(AB$4*-1*'PM2.5 reduction'!AB203),9))","v":0.99999498799999997},{"$f":"VALUE(FIXED(EXP(AC$4*-1*'PM2.5 reduction'!AC203),9))","v":0.999992518},{"$f":"VALUE(FIXED(EXP(AD$4*-1*'PM2.5 reduction'!AD203),9))","v":0.99999745799999995},{"$f":"VALUE(FIXED(EXP(AE$4*-1*'PM2.5 reduction'!AE203),9))","v":0.99999745399999995},{"$f":"VALUE(FIXED(EXP(AF$4*-1*'PM2.5 reduction'!AF203),9))","v":0.999996043},{"$f":"VALUE(FIXED(EXP(AG$4*-1*'PM2.5 reduction'!AG203),9))","v":0.99999745399999995},{"$f":"VALUE(FIXED(EXP(AH$4*-1*'PM2.5 reduction'!AH203),9))","v":0.99999412700000001},{"$f":"VALUE(FIXED(EXP(AI$4*-1*'PM2.5 reduction'!AI203),9))","v":0.99999137299999996},{"$f":"VALUE(FIXED(EXP(AJ$4*-1*'PM2.5 reduction'!AJ203),9))","v":0.99999542799999996},{"$f":"VALUE(FIXED(EXP(AK$4*-1*'PM2.5 reduction'!AK203),9))","v":0.99999778800000005},{"$f":"VALUE(FIXED(EXP(AL$4*-1*'PM2.5 reduction'!AL203),9))","v":0.99999758900000002},{"$f":"VALUE(FIXED(EXP(AM$4*-1*'PM2.5 reduction'!AM203),9))","v":0.99999375300000004},{"$f":"VALUE(FIXED(EXP(AN$4*-1*'PM2.5 reduction'!AN203),9))","v":0.99999879400000002},{"$f":"VALUE(FIXED(EXP(AO$4*-1*'PM2.5 reduction'!AO203),9))","v":0.99999879400000002},{"$f":"VALUE(FIXED(EXP(AP$4*-1*'PM2.5 reduction'!AP203),9))","v":0.99999811999999999},{"$f":"VALUE(FIXED(EXP(AQ$4*-1*'PM2.5 reduction'!AQ203),9))","v":0.99999436799999997},{"$f":"VALUE(FIXED(EXP(AR$4*-1*'PM2.5 reduction'!AR203),9))","v":0.99999425399999997},{"$f":"VALUE(FIXED(EXP(AS$4*-1*'PM2.5 reduction'!AS203),9))","v":0.99999873699999997},{"$f":"VALUE(FIXED(EXP(AT$4*-1*'PM2.5 reduction'!AT203),9))","v":0.99999902600000001},{"$f":"VALUE(FIXED(EXP(AU$4*-1*'PM2.5 reduction'!AU203),9))","v":0.99999902600000001},{"$f":"VALUE(FIXED(EXP(AV$4*-1*'PM2.5 reduction'!AV203),9))","v":0.99999575900000004},{"$f":"VALUE(FIXED(EXP(AW$4*-1*'PM2.5 reduction'!AW203),9))","v":0.99999443799999999},{"$f":"VALUE(FIXED(EXP(AX$4*-1*'PM2.5 reduction'!AX203),9))","v":0.99999672399999995},{"$f":"VALUE(FIXED(EXP(AY$4*-1*'PM2.5 reduction'!AY203),9))","v":0.99999622600000004},{"$f":"VALUE(FIXED(EXP(AZ$4*-1*'PM2.5 reduction'!AZ203),9))","v":0.99999638700000004},{"$f":"VALUE(FIXED(EXP(BA$4*-1*'PM2.5 reduction'!BA203),9))","v":0.99999541599999997},{"$f":"VALUE(FIXED(EXP(BB$4*-1*'PM2.5 reduction'!BB203),9))","v":0.99999543999999996},{"$f":"VALUE(FIXED(EXP(BC$4*-1*'PM2.5 reduction'!BC203),9))","v":1}]
[null,"Male 55-59",{"$f":"VALUE(FIXED(EXP(C$4*-1*'PM2.5 reduction'!C204),9))","v":0.99999115900000002},{"$f":"VALUE(FIXED(EXP(D$4*-1*'PM2.5 reduction'!D204),9))","v":0.99999479400000002},{"$f":"VALUE(FIXED(EXP(E$4*-1*'PM2.5 reduction'!E204),9))","v":0.99999822699999996},{"$f":"VALUE(FIXED(EXP(F$4*-1*'PM2.5 reduction'!F204),9))","v":0.99999806099999999},{"$f":"VALUE(FIXED(EXP(G$4*-1*'PM2.5 reduction'!G204),9))","v":0.99999751299999995},{"$f":"VALUE(FIXED(EXP(H$4*-1*'PM2.5 reduction'!H204),9))","v":0.99999648799999996},{"$f":"VALUE(FIXED(EXP(I$4*-1*'PM2.5 reduction'!I204),9))","v":0.999998787},{"$f":"VALUE(FIXED(EXP(J$4*-1*'PM2.5 reduction'!J204),9))","v":0.99999604200000003},{"$f":"VALUE(FIXED(EXP(K$4*-1*'PM2.5 reduction'!K204),9))","v":0.99999559800000004},{"$f":"VALUE(FIXED(EXP(L$4*-1*'PM2.5 reduction'!L204),9))","v":0.99999827399999996},{"$f":"VALUE(FIXED(EXP(M$4*-1*'PM2.5 reduction'!M204),9))","v":0.99999827399999996},{"$f":"VALUE(FIXED(EXP(N$4*-1*'PM2.5 reduction'!N204),9))","v":0.99999257100000005},{"$f":"VALUE(FIXED(EXP(O$4*-1*'PM2.5 reduction'!O204),9))","v":0.99999591200000004},{"$f":"VALUE(FIXED(EXP(P$4*-1*'PM2.5 reduction'!P204),9))","v":0.99999333700000004},{"$f":"VALUE(FIXED(EXP(Q$4*-1*'PM2.5 reduction'!Q204),9))","v":0.99999629800000001},{"$f":"VALUE(FIXED(EXP(R$4*-1*'PM2.5 reduction'!R204),9))","v":0.99999420400000005},{"$f":"VALUE(FIXED(EXP(S$4*-1*'PM2.5 reduction'!S204),9))","v":0.99999333199999996},{"$f":"VALUE(FIXED(EXP(T$4*-1*'PM2.5 reduction'!T204),9))","v":0.99998921799999996},{"$f":"VALUE(FIXED(EXP(U$4*-1*'PM2.5 reduction'!U204),9))","v":1},{"$f":"VALUE(FIXED(EXP(V$4*-1*'PM2.5 reduction'!V204),9))","v":0.99999476200000004},{"$f":"VALUE(FIXED(EXP(W$4*-1*'PM2.5 reduction'!W204),9))","v":0.99999598199999995},{"$f":"VALUE(FIXED(EXP(X$4*-1*'PM2.5 reduction'!X204),9))","v":0.99999598199999995},{"$f":"VALUE(FIXED(EXP(Y$4*-1*'PM2.5 reduction'!Y204),9))","v":0.99999530999999997},{"$f":"VALUE(FIXED(EXP(Z$4*-1*'PM2.5 reduction'!Z204),9))","v":0.999990343},{"$f":"VALUE(FIXED(EXP(AA$4*-1*'PM2.5 reduction'!AA204),9))","v":0.99999322000000002},{"$f":"VALUE(FIXED(EXP(AB$4*-1*'PM2.5 reduction'!AB204),9))","v":0.99999501199999996},{"$f":"VALUE(FIXED(EXP(AC$4*-1*'PM2.5 reduction'!AC204),9))","v":0.99999265500000001},{"$f":"VALUE(FIXED(EXP(AD$4*-1*'PM2.5 reduction'!AD204),9))","v":0.99999736900000002},{"$f":"VALUE(FIXED(EXP(AE$4*-1*'PM2.5 reduction'!AE204),9))","v":0.99999735599999995},{"$f":"VALUE(FIXED(EXP(AF$4*-1*'PM2.5 reduction'!AF204),9))","v":0.99999567199999995},{"$f":"VALUE(FIXED(EXP(AG$4*-1*'PM2.5 reduction'!AG204),9))","v":0.99999735599999995},{"$f":"VALUE(FIXED(EXP(AH$4*-1*'PM2.5 reduction'!AH204),9))","v":0.99999410300000002},{"$f":"VALUE(FIXED(EXP(AI$4*-1*'PM2.5 reduction'!AI204),9))","v":0.99999184100000005},{"$f":"VALUE(FIXED(EXP(AJ$4*-1*'PM2.5 reduction'!AJ204),9))","v":0.99999533799999996},{"$f":"VALUE(FIXED(EXP(AK$4*-1*'PM2.5 reduction'!AK204),9))","v":0.99999757199999995},{"$f":"VALUE(FIXED(EXP(AL$4*-1*'PM2.5 reduction'!AL204),9))","v":0.99999752900000005},{"$f":"VALUE(FIXED(EXP(AM$4*-1*'PM2.5 reduction'!AM204),9))","v":0.99999354100000004},{"$f":"VALUE(FIXED(EXP(AN$4*-1*'PM2.5 reduction'!AN204),9))","v":0.99999892099999999},{"$f":"VALUE(FIXED(EXP(AO$4*-1*'PM2.5 reduction'!AO204),9))","v":0.99999892099999999},{"$f":"VALUE(FIXED(EXP(AP$4*-1*'PM2.5 reduction'!AP204),9))","v":0.99999809100000003},{"$f":"VALUE(FIXED(EXP(AQ$4*-1*'PM2.5 reduction'!AQ204),9))","v":0.999994359},{"$f":"VALUE(FIXED(EXP(AR$4*-1*'PM2.5 reduction'!AR204),9))","v":0.99999434499999995},{"$f":"VALUE(FIXED(EXP(AS$4*-1*'PM2.5 reduction'!AS204),9))","v":0.999998787},{"$f":"VALUE(FIXED(EXP(AT$4*-1*'PM2.5 reduction'!AT204),9))","v":0.99999898899999995},{"$f":"VALUE(FIXED(EXP(AU$4*-1*'PM2.5 reduction'!AU204),9))","v":0.99999898899999995},{"$f":"VALUE(FIXED(EXP(AV$4*-1*'PM2.5 reduction'!AV204),9))","v":0.999995772},{"$f":"VALUE(FIXED(EXP(AW$4*-1*'PM2.5 reduction'!AW204),9))","v":0.99999454200000004},{"$f":"VALUE(FIXED(EXP(AX$4*-1*'PM2.5 reduction'!AX204),9))","v":0.99999627999999996},{"$f":"VALUE(FIXED(EXP(AY$4*-1*'PM2.5 reduction'!AY204),9))","v":0.99999610000000005},{"$f":"VALUE(FIXED(EXP(AZ$4*-1*'PM2.5 reduction'!AZ204),9))","v":0.99999616999999996},{"$f":"VALUE(FIXED(EXP(BA$4*-1*'PM2.5 reduction'!BA204),9))","v":0.99999526699999997},{"$f":"VALUE(FIXED(EXP(BB$4*-1*'PM2.5 reduction'!BB204),9))","v":0.99999537699999996},{"$f":"VALUE(FIXED(EXP(BC$4*-1*'PM2.5 reduction'!BC204),9))","v":1}]
[null,"Male 60-64",{"$f":"VALUE(FIXED(EXP(C$4*-1*'PM2.5 reduction'!C205),9))","v":0.99999144399999995},{"$f":"VALUE(FIXED(EXP(D$4*-1*'PM2.5 reduction'!D205),9))","v":0.99999497599999998},{"$f":"VALUE(FIXED(EXP(E$4*-1*'PM2.5 reduction'!E205),9))","v":0.99999828400000002},{"$f":"VALUE(FIXED(EXP(F$4*-1*'PM2.5 reduction'!F205),9))","v":0.99999797999999995},{"$f":"VALUE(FIXED(EXP(G$4*-1*'PM2.5 reduction'!G205),9))","v":0.99999752099999994},{"$f":"VALUE(FIXED(EXP(H$4*-1*'PM2.5 reduction'!H205),9))","v":0.99999652999999999},{"$f":"VALUE(FIXED(EXP(I$4*-1*'PM2.5 reduction'!I205),9))","v":0.99999866299999995},{"$f":"VALUE(FIXED(EXP(J$4*-1*'PM2.5 reduction'!J205),9))","v":0.99999610800000005},{"$f":"VALUE(FIXED(EXP(K$4*-1*'PM2.5 reduction'!K205),9))","v":0.999995309},{"$f":"VALUE(FIXED(EXP(L$4*-1*'PM2.5 reduction'!L205),9))","v":0.99999819300000004},{"$f":"VALUE(FIXED(EXP(M$4*-1*'PM2.5 reduction'!M205),9))","v":0.99999819300000004},{"$f":"VALUE(FIXED(EXP(N$4*-1*'PM2.5 reduction'!N205),9))","v":0.99999252599999999},{"$f":"VALUE(FIXED(EXP(O$4*-1*'PM2.5 reduction'!O205),9))","v":0.999995941},{"$f":"VALUE(FIXED(EXP(P$4*-1*'PM2.5 reduction'!P205),9))","v":0.99999368099999997},{"$f":"VALUE(FIXED(EXP(Q$4*-1*'PM2.5 reduction'!Q205),9))","v":0.99999663500000002},{"$f":"VALUE(FIXED(EXP(R$4*-1*'PM2.5 reduction'!R205),9))","v":0.99999441300000003},{"$f":"VALUE(FIXED(EXP(S$4*-1*'PM2.5 reduction'!S205),9))","v":0.99999311800000001},{"$f":"VALUE(FIXED(EXP(T$4*-1*'PM2.5 reduction'!T205),9))","v":0.99998897899999994},{"$f":"VALUE(FIXED(EXP(U$4*-1*'PM2.5 reduction'!U205),9))","v":1},{"$f":"VALUE(FIXED(EXP(V$4*-1*'PM2.5 reduction'!V205),9))","v":0.99999477000000003},{"$f":"VALUE(FIXED(EXP(W$4*-1*'PM2.5 reduction'!W205),9))","v":0.99999597399999995},{"$f":"VALUE(FIXED(EXP(X$4*-1*'PM2.5 reduction'!X205),9))","v":0.99999597399999995},{"$f":"VALUE(FIXED(EXP(Y$4*-1*'PM2.5 reduction'!Y205),9))","v":0.99999537299999997},{"$f":"VALUE(FIXED(EXP(Z$4*-1*'PM2.5 reduction'!Z205),9))","v":0.99999010200000005},{"$f":"VALUE(FIXED(EXP(AA$4*-1*'PM2.5 reduction'!AA205),9))","v":0.99999325800000005},{"$f":"VALUE(FIXED(EXP(AB$4*-1*'PM2.5 reduction'!AB205),9))","v":0.99999518499999995},{"$f":"VALUE(FIXED(EXP(AC$4*-1*'PM2.5 reduction'!AC205),9))","v":0.99999263299999996},{"$f":"VALUE(FIXED(EXP(AD$4*-1*'PM2.5 reduction'!AD205),9))","v":0.99999754100000005},{"$f":"VALUE(FIXED(EXP(AE$4*-1*'PM2.5 reduction'!AE205),9))","v":0.99999754299999999},{"$f":"VALUE(FIXED(EXP(AF$4*-1*'PM2.5 reduction'!AF205),9))","v":0.99999626799999997},{"$f":"VALUE(FIXED(EXP(AG$4*-1*'PM2.5 reduction'!AG205),9))","v":0.99999754299999999},{"$f":"VALUE(FIXED(EXP(AH$4*-1*'PM2.5 reduction'!AH205),9))","v":0.99999427200000002},{"$f":"VALUE(FIXED(EXP(AI$4*-1*'PM2.5 reduction'!AI205),9))","v":0.99999151100000006},{"$f":"VALUE(FIXED(EXP(AJ$4*-1*'PM2.5 reduction'!AJ205),9))","v":0.99999600499999997},{"$f":"VALUE(FIXED(EXP(AK$4*-1*'PM2.5 reduction'!AK205),9))","v":0.99999773999999997},{"$f":"VALUE(FIXED(EXP(AL$4*-1*'PM2.5 reduction'!AL205),9))","v":0.99999752600000003},{"$f":"VALUE(FIXED(EXP(AM$4*-1*'PM2.5 reduction'!AM205),9))","v":0.99999380599999999},{"$f":"VALUE(FIXED(EXP(AN$4*-1*'PM2.5 reduction'!AN205),9))","v":0.99999883300000003},{"$f":"VALUE(FIXED(EXP(AO$4*-1*'PM2.5 reduction'!AO205),9))","v":0.99999883300000003},{"$f":"VALUE(FIXED(EXP(AP$4*-1*'PM2.5 reduction'!AP205),9))","v":0.99999815299999995},{"$f":"VALUE(FIXED(EXP(AQ$4*-1*'PM2.5 reduction'!AQ205),9))","v":0.99999429500000003},{"$f":"VALUE(FIXED(EXP(AR$4*-1*'PM2.5 reduction'!AR205),9))","v":0.99999442299999997},{"$f":"VALUE(FIXED(EXP(AS$4*-1*'PM2.5 reduction'!AS205),9))","v":0.99999866299999995},{"$f":"VALUE(FIXED(EXP(AT$4*-1*'PM2.5 reduction'!AT205),9))","v":0.99999912700000004},{"$f":"VALUE(FIXED(EXP(AU$4*-1*'PM2.5 reduction'!AU205),9))","v":0.99999912700000004},{"$f":"VALUE(FIXED(EXP(AV$4*-1*'PM2.5 reduction'!AV205),9))","v":0.999995894},{"$f":"VALUE(FIXED(EXP(AW$4*-1*'PM2.5 reduction'!AW205),9))","v":0.99999463099999997},{"$f":"VALUE(FIXED(EXP(AX$4*-1*'PM2.5 reduction'!AX205),9))","v":0.99999649700000004},{"$f":"VALUE(FIXED(EXP(AY$4*-1*'PM2.5 reduction'!AY205),9))","v":0.99999618999999995},{"$f":"VALUE(FIXED(EXP(AZ$4*-1*'PM2.5 reduction'!AZ205),9))","v":0.99999631300000003},{"$f":"VALUE(FIXED(EXP(BA$4*-1*'PM2.5 reduction'!BA205),9))","v":0.99999537699999996},{"$f":"VALUE(FIXED(EXP(BB$4*-1*'PM2.5 reduction'!BB205),9))","v":0.99999553699999999},{"$f":"VALUE(FIXED(EXP(BC$4*-1*'PM2.5 reduction'!BC205),9))","v":1}]
[null,"Male 65-69",{"$f":"VALUE(FIXED(EXP(C$4*-1*'PM2.5 reduction'!C206),9))","v":0.99999200700000002},{"$f":"VALUE(FIXED(EXP(D$4*-1*'PM2.5 reduction'!D206),9))","v":0.99999541199999997},{"$f":"VALUE(FIXED(EXP(E$4*-1*'PM2.5 reduction'!E206),9))","v":0.99999830199999995},{"$f":"VALUE(FIXED(EXP(F$4*-1*'PM2.5 reduction'!F206),9))","v":0.99999792799999998},{"$f":"VALUE(FIXED(EXP(G$4*-1*'PM2.5 reduction'!G206),9))","v":0.99999750700000001},{"$f":"VALUE(FIXED(EXP(H$4*-1*'PM2.5 reduction'!H206),9))","v":0.99999647999999997},{"$f":"VALUE(FIXED(EXP(I$4*-1*'PM2.5 reduction'!I206),9))","v":0.99999875400000005},{"$f":"VALUE(FIXED(EXP(J$4*-1*'PM2.5 reduction'!J206),9))","v":0.99999617200000002},{"$f":"VALUE(FIXED(EXP(K$4*-1*'PM2.5 reduction'!K206),9))","v":0.99999561800000003},{"$f":"VALUE(FIXED(EXP(L$4*-1*'PM2.5 reduction'!L206),9))","v":0.99999823399999999},{"$f":"VALUE(FIXED(EXP(M$4*-1*'PM2.5 reduction'!M206),9))","v":0.99999823399999999},{"$f":"VALUE(FIXED(EXP(N$4*-1*'PM2.5 reduction'!N206),9))","v":0.99999257200000002},{"$f":"VALUE(FIXED(EXP(O$4*-1*'PM2.5 reduction'!O206),9))","v":0.99999594700000005},{"$f":"VALUE(FIXED(EXP(P$4*-1*'PM2.5 reduction'!P206),9))","v":0.99999369800000004},{"$f":"VALUE(FIXED(EXP(Q$4*-1*'PM2.5 reduction'!Q206),9))","v":0.99999638700000004},{"$f":"VALUE(FIXED(EXP(R$4*-1*'PM2.5 reduction'!R206),9))","v":0.99999410799999999},{"$f":"VALUE(FIXED(EXP(S$4*-1*'PM2.5 reduction'!S206),9))","v":0.999993778},{"$f":"VALUE(FIXED(EXP(T$4*-1*'PM2.5 reduction'!T206),9))","v":0.99998938500000001},{"$f":"VALUE(FIXED(EXP(U$4*-1*'PM2.5 reduction'!U206),9))","v":1},{"$f":"VALUE(FIXED(EXP(V$4*-1*'PM2.5 reduction'!V206),9))","v":0.99999459099999999},{"$f":"VALUE(FIXED(EXP(W$4*-1*'PM2.5 reduction'!W206),9))","v":0.99999607099999999},{"$f":"VALUE(FIXED(EXP(X$4*-1*'PM2.5 reduction'!X206),9))","v":0.99999607099999999},{"$f":"VALUE(FIXED(EXP(Y$4*-1*'PM2.5 reduction'!Y206),9))","v":0.99999529799999998},{"$f":"VALUE(FIXED(EXP(Z$4*-1*'PM2.5 reduction'!Z206),9))","v":0.99999023099999995},{"$f":"VALUE(FIXED(EXP(AA$4*-1*'PM2.5 reduction'!AA206),9))","v":0.999993303},{"$f":"VALUE(FIXED(EXP(AB$4*-1*'PM2.5 reduction'!AB206),9))","v":0.99999559900000001},{"$f":"VALUE(FIXED(EXP(AC$4*-1*'PM2.5 reduction'!AC206),9))","v":0.99999270699999998},{"$f":"VALUE(FIXED(EXP(AD$4*-1*'PM2.5 reduction'!AD206),9))","v":0.99999747699999997},{"$f":"VALUE(FIXED(EXP(AE$4*-1*'PM2.5 reduction'!AE206),9))","v":0.999997472},{"$f":"VALUE(FIXED(EXP(AF$4*-1*'PM2.5 reduction'!AF206),9))","v":0.99999585800000002},{"$f":"VALUE(FIXED(EXP(AG$4*-1*'PM2.5 reduction'!AG206),9))","v":0.999997472},{"$f":"VALUE(FIXED(EXP(AH$4*-1*'PM2.5 reduction'!AH206),9))","v":0.99999427900000004},{"$f":"VALUE(FIXED(EXP(AI$4*-1*'PM2.5 reduction'!AI206),9))","v":0.99999204200000003},{"$f":"VALUE(FIXED(EXP(AJ$4*-1*'PM2.5 reduction'!AJ206),9))","v":0.99999550299999995},{"$f":"VALUE(FIXED(EXP(AK$4*-1*'PM2.5 reduction'!AK206),9))","v":0.99999784800000002},{"$f":"VALUE(FIXED(EXP(AL$4*-1*'PM2.5 reduction'!AL206),9))","v":0.99999761600000003},{"$f":"VALUE(FIXED(EXP(AM$4*-1*'PM2.5 reduction'!AM206),9))","v":0.99999382599999997},{"$f":"VALUE(FIXED(EXP(AN$4*-1*'PM2.5 reduction'!AN206),9))","v":0.99999868300000005},{"$f":"VALUE(FIXED(EXP(AO$4*-1*'PM2.5 reduction'!AO206),9))","v":0.99999868300000005},{"$f":"VALUE(FIXED(EXP(AP$4*-1*'PM2.5 reduction'!AP206),9))","v":0.99999833500000002},{"$f":"VALUE(FIXED(EXP(AQ$4*-1*'PM2.5 reduction'!AQ206),9))","v":0.99999433299999996},{"$f":"VALUE(FIXED(EXP(AR$4*-1*'PM2.5 reduction'!AR206),9))","v":0.99999464900000001},{"$f":"VALUE(FIXED(EXP(AS$4*-1*'PM2.5 reduction'!AS206),9))","v":0.99999875400000005},{"$f":"VALUE(FIXED(EXP(AT$4*-1*'PM2.5 reduction'!AT206),9))","v":0.99999903199999995},{"$f":"VALUE(FIXED(EXP(AU$4*-1*'PM2.5 reduction'!AU206),9))","v":0.99999903199999995},{"$f":"VALUE(FIXED(EXP(AV$4*-1*'PM2.5 reduction'!AV206),9))","v":0.99999565899999998},{"$f":"VALUE(FIXED(EXP(AW$4*-1*'PM2.5 reduction'!AW206),9))","v":0.99999457800000002},{"$f":"VALUE(FIXED(EXP(AX$4*-1*'PM2.5 reduction'!AX206),9))","v":0.99999646600000003},{"$f":"VALUE(FIXED(EXP(AY$4*-1*'PM2.5 reduction'!AY206),9))","v":0.99999631099999997},{"$f":"VALUE(FIXED(EXP(AZ$4*-1*'PM2.5 reduction'!AZ206),9))","v":0.99999646399999997},{"$f":"VALUE(FIXED(EXP(BA$4*-1*'PM2.5 reduction'!BA206),9))","v":0.99999539500000001},{"$f":"VALUE(FIXED(EXP(BB$4*-1*'PM2.5 reduction'!BB206),9))","v":0.99999542799999996},{"$f":"VALUE(FIXED(EXP(BC$4*-1*'PM2.5 reduction'!BC206),9))","v":1}]
[null,"Male 70-74",{"$f":"VALUE(FIXED(EXP(C$4*-1*'PM2.5 reduction'!C207),9))","v":0.99999161800000003},{"$f":"VALUE(FIXED(EXP(D$4*-1*'PM2.5 reduction'!D207),9))","v":0.99999521099999999},{"$f":"VALUE(FIXED(EXP(E$4*-1*'PM2.5 reduction'!E207),9))","v":0.99999824299999995},{"$f":"VALUE(FIXED(EXP(F$4*-1*'PM2.5 reduction'!F207),9))","v":0.99999802900000001},{"$f":"VALUE(FIXED(EXP(G$4*-1*'PM2.5 reduction'!G207),9))","v":0.999997519},{"$f":"VALUE(FIXED(EXP(H$4*-1*'PM2.5 reduction'!H207),9))","v":0.99999649099999999},{"$f":"VALUE(FIXED(EXP(I$4*-1*'PM2.5 reduction'!I207),9))","v":0.999998779},{"$f":"VALUE(FIXED(EXP(J$4*-1*'PM2.5 reduction'!J207),9))","v":0.99999617299999999},{"$f":"VALUE(FIXED(EXP(K$4*-1*'PM2.5 reduction'!K207),9))","v":0.99999596300000004},{"$f":"VALUE(FIXED(EXP(L$4*-1*'PM2.5 reduction'!L207),9))","v":0.99999831500000003},{"$f":"VALUE(FIXED(EXP(M$4*-1*'PM2.5 reduction'!M207),9))","v":0.99999831500000003},{"$f":"VALUE(FIXED(EXP(N$4*-1*'PM2.5 reduction'!N207),9))","v":0.99999281799999995},{"$f":"VALUE(FIXED(EXP(O$4*-1*'PM2.5 reduction'!O207),9))","v":0.99999601599999999},{"$f":"VALUE(FIXED(EXP(P$4*-1*'PM2.5 reduction'!P207),9))","v":0.99999347900000002},{"$f":"VALUE(FIXED(EXP(Q$4*-1*'PM2.5 reduction'!Q207),9))","v":0.99999635799999997},{"$f":"VALUE(FIXED(EXP(R$4*-1*'PM2.5 reduction'!R207),9))","v":0.99999377599999995},{"$f":"VALUE(FIXED(EXP(S$4*-1*'PM2.5 reduction'!S207),9))","v":0.99999419700000003},{"$f":"VALUE(FIXED(EXP(T$4*-1*'PM2.5 reduction'!T207),9))","v":0.99998997499999998},{"$f":"VALUE(FIXED(EXP(U$4*-1*'PM2.5 reduction'!U207),9))","v":1},{"$f":"VALUE(FIXED(EXP(V$4*-1*'PM2.5 reduction'!V207),9))","v":0.99999436500000005},{"$f":"VALUE(FIXED(EXP(W$4*-1*'PM2.5 reduction'!W207),9))","v":0.99999598700000003},{"$f":"VALUE(FIXED(EXP(X$4*-1*'PM2.5 reduction'!X207),9))","v":0.99999598700000003},{"$f":"VALUE(FIXED(EXP(Y$4*-1*'PM2.5 reduction'!Y207),9))","v":0.99999517999999998},{"$f":"VALUE(FIXED(EXP(Z$4*-1*'PM2.5 reduction'!Z207),9))","v":0.99999042299999996},{"$f":"VALUE(FIXED(EXP(AA$4*-1*'PM2.5 reduction'!AA207),9))","v":0.99999332799999996},{"$f":"VALUE(FIXED(EXP(AB$4*-1*'PM2.5 reduction'!AB207),9))","v":0.99999542299999999},{"$f":"VALUE(FIXED(EXP(AC$4*-1*'PM2.5 reduction'!AC207),9))","v":0.99999286700000001},{"$f":"VALUE(FIXED(EXP(AD$4*-1*'PM2.5 reduction'!AD207),9))","v":0.99999745500000004},{"$f":"VALUE(FIXED(EXP(AE$4*-1*'PM2.5 reduction'!AE207),9))","v":0.99999744499999998},{"$f":"VALUE(FIXED(EXP(AF$4*-1*'PM2.5 reduction'!AF207),9))","v":0.99999595100000005},{"$f":"VALUE(FIXED(EXP(AG$4*-1*'PM2.5 reduction'!AG207),9))","v":0.99999744499999998},{"$f":"VALUE(FIXED(EXP(AH$4*-1*'PM2.5 reduction'!AH207),9))","v":0.99999409699999997},{"$f":"VALUE(FIXED(EXP(AI$4*-1*'PM2.5 reduction'!AI207),9))","v":0.999992561},{"$f":"VALUE(FIXED(EXP(AJ$4*-1*'PM2.5 reduction'!AJ207),9))","v":0.99999550800000003},{"$f":"VALUE(FIXED(EXP(AK$4*-1*'PM2.5 reduction'!AK207),9))","v":0.99999777199999995},{"$f":"VALUE(FIXED(EXP(AL$4*-1*'PM2.5 reduction'!AL207),9))","v":0.99999760500000001},{"$f":"VALUE(FIXED(EXP(AM$4*-1*'PM2.5 reduction'!AM207),9))","v":0.99999367800000005},{"$f":"VALUE(FIXED(EXP(AN$4*-1*'PM2.5 reduction'!AN207),9))","v":0.99999866999999998},{"$f":"VALUE(FIXED(EXP(AO$4*-1*'PM2.5 reduction'!AO207),9))","v":0.99999866999999998},{"$f":"VALUE(FIXED(EXP(AP$4*-1*'PM2.5 reduction'!AP207),9))","v":0.99999816399999997},{"$f":"VALUE(FIXED(EXP(AQ$4*-1*'PM2.5 reduction'!AQ207),9))","v":0.99999437000000002},{"$f":"VALUE(FIXED(EXP(AR$4*-1*'PM2.5 reduction'!AR207),9))","v":0.99999484199999999},{"$f":"VALUE(FIXED(EXP(AS$4*-1*'PM2.5 reduction'!AS207),9))","v":0.999998779},{"$f":"VALUE(FIXED(EXP(AT$4*-1*'PM2.5 reduction'!AT207),9))","v":0.99999901499999999},{"$f":"VALUE(FIXED(EXP(AU$4*-1*'PM2.5 reduction'!AU207),9))","v":0.99999901499999999},{"$f":"VALUE(FIXED(EXP(AV$4*-1*'PM2.5 reduction'!AV207),9))","v":0.99999571700000001},{"$f":"VALUE(FIXED(EXP(AW$4*-1*'PM2.5 reduction'!AW207),9))","v":0.99999440699999997},{"$f":"VALUE(FIXED(EXP(AX$4*-1*'PM2.5 reduction'!AX207),9))","v":0.99999629999999995},{"$f":"VALUE(FIXED(EXP(AY$4*-1*'PM2.5 reduction'!AY207),9))","v":0.99999644700000001},{"$f":"VALUE(FIXED(EXP(AZ$4*-1*'PM2.5 reduction'!AZ207),9))","v":0.99999671800000001},{"$f":"VALUE(FIXED(EXP(BA$4*-1*'PM2.5 reduction'!BA207),9))","v":0.99999553900000004},{"$f":"VALUE(FIXED(EXP(BB$4*-1*'PM2.5 reduction'!BB207),9))","v":0.99999545000000001},{"$f":"VALUE(FIXED(EXP(BC$4*-1*'PM2.5 reduction'!BC207),9))","v":1}]
[null,"Male 75-79",{"$f":"VALUE(FIXED(EXP(C$4*-1*'PM2.5 reduction'!C208),9))","v":0.99999200099999996},{"$f":"VALUE(FIXED(EXP(D$4*-1*'PM2.5 reduction'!D208),9))","v":0.99999563800000002},{"$f":"VALUE(FIXED(EXP(E$4*-1*'PM2.5 reduction'!E208),9))","v":0.99999831400000005},{"$f":"VALUE(FIXED(EXP(F$4*-1*'PM2.5 reduction'!F208),9))","v":0.99999795599999997},{"$f":"VALUE(FIXED(EXP(G$4*-1*'PM2.5 reduction'!G208),9))","v":0.99999749000000004},{"$f":"VALUE(FIXED(EXP(H$4*-1*'PM2.5 reduction'!H208),9))","v":0.99999647000000003},{"$f":"VALUE(FIXED(EXP(I$4*-1*'PM2.5 reduction'!I208),9))","v":0.99999872300000003},{"$f":"VALUE(FIXED(EXP(J$4*-1*'PM2.5 reduction'!J208),9))","v":0.99999628699999998},{"$f":"VALUE(FIXED(EXP(K$4*-1*'PM2.5 reduction'!K208),9))","v":0.999995678},{"$f":"VALUE(FIXED(EXP(L$4*-1*'PM2.5 reduction'!L208),9))","v":0.99999835999999998},{"$f":"VALUE(FIXED(EXP(M$4*-1*'PM2.5 reduction'!M208),9))","v":0.99999835999999998},{"$f":"VALUE(FIXED(EXP(N$4*-1*'PM2.5 reduction'!N208),9))","v":0.99999239799999995},{"$f":"VALUE(FIXED(EXP(O$4*-1*'PM2.5 reduction'!O208),9))","v":0.99999597100000004},{"$f":"VALUE(FIXED(EXP(P$4*-1*'PM2.5 reduction'!P208),9))","v":0.99999360999999998},{"$f":"VALUE(FIXED(EXP(Q$4*-1*'PM2.5 reduction'!Q208),9))","v":0.99999669700000005},{"$f":"VALUE(FIXED(EXP(R$4*-1*'PM2.5 reduction'!R208),9))","v":0.99999397000000001},{"$f":"VALUE(FIXED(EXP(S$4*-1*'PM2.5 reduction'!S208),9))","v":0.99999396200000001},{"$f":"VALUE(FIXED(EXP(T$4*-1*'PM2.5 reduction'!T208),9))","v":0.99998979799999999},{"$f":"VALUE(FIXED(EXP(U$4*-1*'PM2.5 reduction'!U208),9))","v":1},{"$f":"VALUE(FIXED(EXP(V$4*-1*'PM2.5 reduction'!V208),9))","v":0.99999438399999996},{"$f":"VALUE(FIXED(EXP(W$4*-1*'PM2.5 reduction'!W208),9))","v":0.99999592500000001},{"$f":"VALUE(FIXED(EXP(X$4*-1*'PM2.5 reduction'!X208),9))","v":0.99999592500000001},{"$f":"VALUE(FIXED(EXP(Y$4*-1*'PM2.5 reduction'!Y208),9))","v":0.99999512999999995},{"$f":"VALUE(FIXED(EXP(Z$4*-1*'PM2.5 reduction'!Z208),9))","v":0.99999027100000004},{"$f":"VALUE(FIXED(EXP(AA$4*-1*'PM2.5 reduction'!AA208),9))","v":0.99999321699999999},{"$f":"VALUE(FIXED(EXP(AB$4*-1*'PM2.5 reduction'!AB208),9))","v":0.99999577500000003},{"$f":"VALUE(FIXED(EXP(AC$4*-1*'PM2.5 reduction'!AC208),9))","v":0.99999279500000005},{"$f":"VALUE(FIXED(EXP(AD$4*-1*'PM2.5 reduction'!AD208),9))","v":0.99999731999999997},{"$f":"VALUE(FIXED(EXP(AE$4*-1*'PM2.5 reduction'!AE208),9))","v":0.99999729199999998},{"$f":"VALUE(FIXED(EXP(AF$4*-1*'PM2.5 reduction'!AF208),9))","v":0.99999543700000004},{"$f":"VALUE(FIXED(EXP(AG$4*-1*'PM2.5 reduction'!AG208),9))","v":0.99999729199999998},{"$f":"VALUE(FIXED(EXP(AH$4*-1*'PM2.5 reduction'!AH208),9))","v":0.99999405600000002},{"$f":"VALUE(FIXED(EXP(AI$4*-1*'PM2.5 reduction'!AI208),9))","v":0.999992243},{"$f":"VALUE(FIXED(EXP(AJ$4*-1*'PM2.5 reduction'!AJ208),9))","v":0.99999553399999996},{"$f":"VALUE(FIXED(EXP(AK$4*-1*'PM2.5 reduction'!AK208),9))","v":0.99999709599999997},{"$f":"VALUE(FIXED(EXP(AL$4*-1*'PM2.5 reduction'!AL208),9))","v":0.99999763799999997},{"$f":"VALUE(FIXED(EXP(AM$4*-1*'PM2.5 reduction'!AM208),9))","v":0.99999359399999999},{"$f":"VALUE(FIXED(EXP(AN$4*-1*'PM2.5 reduction'!AN208),9))","v":0.99999878900000005},{"$f":"VALUE(FIXED(EXP(AO$4*-1*'PM2.5 reduction'!AO208),9))","v":0.99999878900000005},{"$f":"VALUE(FIXED(EXP(AP$4*-1*'PM2.5 reduction'!AP208),9))","v":0.99999822000000005},{"$f":"VALUE(FIXED(EXP(AQ$4*-1*'PM2.5 reduction'!AQ208),9))","v":0.99999433999999998},{"$f":"VALUE(FIXED(EXP(AR$4*-1*'PM2.5 reduction'!AR208),9))","v":0.999994787},{"$f":"VALUE(FIXED(EXP(AS$4*-1*'PM2.5 reduction'!AS208),9))","v":0.99999872300000003},{"$f":"VALUE(FIXED(EXP(AT$4*-1*'PM2.5 reduction'!AT208),9))","v":0.99999909399999998},{"$f":"VALUE(FIXED(EXP(AU$4*-1*'PM2.5 reduction'!AU208),9))","v":0.99999909399999998},{"$f":"VALUE(FIXED(EXP(AV$4*-1*'PM2.5 reduction'!AV208),9))","v":0.99999564500000004},{"$f":"VALUE(FIXED(EXP(AW$4*-1*'PM2.5 reduction'!AW208),9))","v":0.99999439400000001},{"$f":"VALUE(FIXED(EXP(AX$4*-1*'PM2.5 reduction'!AX208),9))","v":0.99999658899999999},{"$f":"VALUE(FIXED(EXP(AY$4*-1*'PM2.5 reduction'!AY208),9))","v":0.99999645500000001},{"$f":"VALUE(FIXED(EXP(AZ$4*-1*'PM2.5 reduction'!AZ208),9))","v":0.99999672100000003},{"$f":"VALUE(FIXED(EXP(BA$4*-1*'PM2.5 reduction'!BA208),9))","v":0.99999543800000001},{"$f":"VALUE(FIXED(EXP(BB$4*-1*'PM2.5 reduction'!BB208),9))","v":0.99999534300000004},{"$f":"VALUE(FIXED(EXP(BC$4*-1*'PM2.5 reduction'!BC208),9))","v":1}]
[null,"Male 80-84",{"$f":"VALUE(FIXED(EXP(C$4*-1*'PM2.5 reduction'!C209),9))","v":0.99999150999999997},{"$f":"VALUE(FIXED(EXP(D$4*-1*'PM2.5 reduction'!D209),9))","v":0.99999540899999995},{"$f":"VALUE(FIXED(EXP(E$4*-1*'PM2.5 reduction'!E209),9))","v":0.99999825200000003},{"$f":"VALUE(FIXED(EXP(F$4*-1*'PM2.5 reduction'!F209),9))","v":0.99999796399999996},{"$f":"VALUE(FIXED(EXP(G$4*-1*'PM2.5 reduction'!G209),9))","v":0.99999750399999998},{"$f":"VALUE(FIXED(EXP(H$4*-1*'PM2.5 reduction'!H209),9))","v":0.99999635499999995},{"$f":"VALUE(FIXED(EXP(I$4*-1*'PM2.5 reduction'!I209),9))","v":0.99999872199999995},{"$f":"VALUE(FIXED(EXP(J$4*-1*'PM2.5 reduction'!J209),9))","v":0.99999629400000001},{"$f":"VALUE(FIXED(EXP(K$4*-1*'PM2.5 reduction'!K209),9))","v":0.99999595799999996},{"$f":"VALUE(FIXED(EXP(L$4*-1*'PM2.5 reduction'!L209),9))","v":0.99999823300000001},{"$f":"VALUE(FIXED(EXP(M$4*-1*'PM2.5 reduction'!M209),9))","v":0.99999823300000001},{"$f":"VALUE(FIXED(EXP(N$4*-1*'PM2.5 reduction'!N209),9))","v":0.99999263199999999},{"$f":"VALUE(FIXED(EXP(O$4*-1*'PM2.5 reduction'!O209),9))","v":0.99999601900000001},{"$f":"VALUE(FIXED(EXP(P$4*-1*'PM2.5 reduction'!P209),9))","v":0.99999321699999999},{"$f":"VALUE(FIXED(EXP(Q$4*-1*'PM2.5 reduction'!Q209),9))","v":0.99999636800000002},{"$f":"VALUE(FIXED(EXP(R$4*-1*'PM2.5 reduction'!R209),9))","v":0.99999389800000005},{"$f":"VALUE(FIXED(EXP(S$4*-1*'PM2.5 reduction'!S209),9))","v":0.99999387699999998},{"$f":"VALUE(FIXED(EXP(T$4*-1*'PM2.5 reduction'!T209),9))","v":0.99998993000000003},{"$f":"VALUE(FIXED(EXP(U$4*-1*'PM2.5 reduction'!U209),9))","v":1},{"$f":"VALUE(FIXED(EXP(V$4*-1*'PM2.5 reduction'!V209),9))","v":0.99999409399999994},{"$f":"VALUE(FIXED(EXP(W$4*-1*'PM2.5 reduction'!W209),9))","v":0.99999596300000004},{"$f":"VALUE(FIXED(EXP(X$4*-1*'PM2.5 reduction'!X209),9))","v":0.99999596300000004},{"$f":"VALUE(FIXED(EXP(Y$4*-1*'PM2.5 reduction'!Y209),9))","v":0.99999499400000003},{"$f":"VALUE(FIXED(EXP(Z$4*-1*'PM2.5 reduction'!Z209),9))","v":0.99999037499999999},{"$f":"VALUE(FIXED(EXP(AA$4*-1*'PM2.5 reduction'!AA209),9))","v":0.999993099},{"$f":"VALUE(FIXED(EXP(AB$4*-1*'PM2.5 reduction'!AB209),9))","v":0.99999556599999995},{"$f":"VALUE(FIXED(EXP(AC$4*-1*'PM2.5 reduction'!AC209),9))","v":0.99999262700000002},{"$f":"VALUE(FIXED(EXP(AD$4*-1*'PM2.5 reduction'!AD209),9))","v":0.99999739600000004},{"$f":"VALUE(FIXED(EXP(AE$4*-1*'PM2.5 reduction'!AE209),9))","v":0.99999737600000005},{"$f":"VALUE(FIXED(EXP(AF$4*-1*'PM2.5 reduction'!AF209),9))","v":0.99999496399999999},{"$f":"VALUE(FIXED(EXP(AG$4*-1*'PM2.5 reduction'!AG209),9))","v":0.99999737600000005},{"$f":"VALUE(FIXED(EXP(AH$4*-1*'PM2.5 reduction'!AH209),9))","v":0.999994096},{"$f":"VALUE(FIXED(EXP(AI$4*-1*'PM2.5 reduction'!AI209),9))","v":0.99999214000000003},{"$f":"VALUE(FIXED(EXP(AJ$4*-1*'PM2.5 reduction'!AJ209),9))","v":0.99999565300000004},{"$f":"VALUE(FIXED(EXP(AK$4*-1*'PM2.5 reduction'!AK209),9))","v":0.99999739300000001},{"$f":"VALUE(FIXED(EXP(AL$4*-1*'PM2.5 reduction'!AL209),9))","v":0.99999749900000001},{"$f":"VALUE(FIXED(EXP(AM$4*-1*'PM2.5 reduction'!AM209),9))","v":0.99999370700000001},{"$f":"VALUE(FIXED(EXP(AN$4*-1*'PM2.5 reduction'!AN209),9))","v":0.99999873299999997},{"$f":"VALUE(FIXED(EXP(AO$4*-1*'PM2.5 reduction'!AO209),9))","v":0.99999873299999997},{"$f":"VALUE(FIXED(EXP(AP$4*-1*'PM2.5 reduction'!AP209),9))","v":0.99999819899999998},{"$f":"VALUE(FIXED(EXP(AQ$4*-1*'PM2.5 reduction'!AQ209),9))","v":0.99999432399999999},{"$f":"VALUE(FIXED(EXP(AR$4*-1*'PM2.5 reduction'!AR209),9))","v":0.999994665},{"$f":"VALUE(FIXED(EXP(AS$4*-1*'PM2.5 reduction'!AS209),9))","v":0.99999872199999995},{"$f":"VALUE(FIXED(EXP(AT$4*-1*'PM2.5 reduction'!AT209),9))","v":0.99999903499999998},{"$f":"VALUE(FIXED(EXP(AU$4*-1*'PM2.5 reduction'!AU209),9))","v":0.99999903499999998},{"$f":"VALUE(FIXED(EXP(AV$4*-1*'PM2.5 reduction'!AV209),9))","v":0.99999568000000005},{"$f":"VALUE(FIXED(EXP(AW$4*-1*'PM2.5 reduction'!AW209),9))","v":0.99999431699999997},{"$f":"VALUE(FIXED(EXP(AX$4*-1*'PM2.5 reduction'!AX209),9))","v":0.99999645199999998},{"$f":"VALUE(FIXED(EXP(AY$4*-1*'PM2.5 reduction'!AY209),9))","v":0.99999629999999995},{"$f":"VALUE(FIXED(EXP(AZ$4*-1*'PM2.5 reduction'!AZ209),9))","v":0.99999644200000004},{"$f":"VALUE(FIXED(EXP(BA$4*-1*'PM2.5 reduction'!BA209),9))","v":0.99999529200000004},{"$f":"VALUE(FIXED(EXP(BB$4*-1*'PM2.5 reduction'!BB209),9))","v":0.99999549200000004},{"$f":"VALUE(FIXED(EXP(BC$4*-1*'PM2.5 reduction'!BC209),9))","v":1}]
[null,"Male 85-89",{"$f":"VALUE(FIXED(EXP(C$4*-1*'PM2.5 reduction'!C210),9))","v":0.99999105499999996},{"$f":"VALUE(FIXED(EXP(D$4*-1*'PM2.5 reduction'!D210),9))","v":0.99999561999999997},{"$f":"VALUE(FIXED(EXP(E$4*-1*'PM2.5 reduction'!E210),9))","v":0.99999822199999999},{"$f":"VALUE(FIXED(EXP(F$4*-1*'PM2.5 reduction'!F210),9))","v":0.99999805900000005},{"$f":"VALUE(FIXED(EXP(G$4*-1*'PM2.5 reduction'!G210),9))","v":0.99999749400000004},{"$f":"VALUE(FIXED(EXP(H$4*-1*'PM2.5 reduction'!H210),9))","v":0.999996251},{"$f":"VALUE(FIXED(EXP(I$4*-1*'PM2.5 reduction'!I210),9))","v":0.99999877199999998},{"$f":"VALUE(FIXED(EXP(J$4*-1*'PM2.5 reduction'!J210),9))","v":0.99999655300000001},{"$f":"VALUE(FIXED(EXP(K$4*-1*'PM2.5 reduction'!K210),9))","v":0.99999676699999995},{"$f":"VALUE(FIXED(EXP(L$4*-1*'PM2.5 reduction'!L210),9))","v":0.99999827200000002},{"$f":"VALUE(FIXED(EXP(M$4*-1*'PM2.5 reduction'!M210),9))","v":0.99999827200000002},{"$f":"VALUE(FIXED(EXP(N$4*-1*'PM2.5 reduction'!N210),9))","v":0.99999249599999995},{"$f":"VALUE(FIXED(EXP(O$4*-1*'PM2.5 reduction'!O210),9))","v":0.99999550999999998},{"$f":"VALUE(FIXED(EXP(P$4*-1*'PM2.5 reduction'!P210),9))","v":0.99999317099999996},{"$f":"VALUE(FIXED(EXP(Q$4*-1*'PM2.5 reduction'!Q210),9))","v":0.99999666499999995},{"$f":"VALUE(FIXED(EXP(R$4*-1*'PM2.5 reduction'!R210),9))","v":0.99999350300000001},{"$f":"VALUE(FIXED(EXP(S$4*-1*'PM2.5 reduction'!S210),9))","v":0.99999335600000006},{"$f":"VALUE(FIXED(EXP(T$4*-1*'PM2.5 reduction'!T210),9))","v":0.99998955599999995},{"$f":"VALUE(FIXED(EXP(U$4*-1*'PM2.5 reduction'!U210),9))","v":1},{"$f":"VALUE(FIXED(EXP(V$4*-1*'PM2.5 reduction'!V210),9))","v":0.99999361899999994},{"$f":"VALUE(FIXED(EXP(W$4*-1*'PM2.5 reduction'!W210),9))","v":0.99999625299999995},{"$f":"VALUE(FIXED(EXP(X$4*-1*'PM2.5 reduction'!X210),9))","v":0.99999625299999995},{"$f":"VALUE(FIXED(EXP(Y$4*-1*'PM2.5 reduction'!Y210),9))","v":0.99999493500000003},{"$f":"VALUE(FIXED(EXP(Z$4*-1*'PM2.5 reduction'!Z210),9))","v":0.99998997300000003},{"$f":"VALUE(FIXED(EXP(AA$4*-1*'PM2.5 reduction'!AA210),9))","v":0.99999277499999994},{"$f":"VALUE(FIXED(EXP(AB$4*-1*'PM2.5 reduction'!AB210),9))","v":0.99999575600000001},{"$f":"VALUE(FIXED(EXP(AC$4*-1*'PM2.5 reduction'!AC210),9))","v":0.99999235500000005},{"$f":"VALUE(FIXED(EXP(AD$4*-1*'PM2.5 reduction'!AD210),9))","v":0.99999717300000002},{"$f":"VALUE(FIXED(EXP(AE$4*-1*'PM2.5 reduction'!AE210),9))","v":0.99999712600000001},{"$f":"VALUE(FIXED(EXP(AF$4*-1*'PM2.5 reduction'!AF210),9))","v":0.99999469900000004},{"$f":"VALUE(FIXED(EXP(AG$4*-1*'PM2.5 reduction'!AG210),9))","v":0.99999712600000001},{"$f":"VALUE(FIXED(EXP(AH$4*-1*'PM2.5 reduction'!AH210),9))","v":0.99999377300000003},{"$f":"VALUE(FIXED(EXP(AI$4*-1*'PM2.5 reduction'!AI210),9))","v":0.99999167499999997},{"$f":"VALUE(FIXED(EXP(AJ$4*-1*'PM2.5 reduction'!AJ210),9))","v":0.99999571600000003},{"$f":"VALUE(FIXED(EXP(AK$4*-1*'PM2.5 reduction'!AK210),9))","v":0.99999708799999998},{"$f":"VALUE(FIXED(EXP(AL$4*-1*'PM2.5 reduction'!AL210),9))","v":0.99999752099999994},{"$f":"VALUE(FIXED(EXP(AM$4*-1*'PM2.5 reduction'!AM210),9))","v":0.99999320800000002},{"$f":"VALUE(FIXED(EXP(AN$4*-1*'PM2.5 reduction'!AN210),9))","v":0.99999866999999998},{"$f":"VALUE(FIXED(EXP(AO$4*-1*'PM2.5 reduction'!AO210),9))","v":0.99999866999999998},{"$f":"VALUE(FIXED(EXP(AP$4*-1*'PM2.5 reduction'!AP210),9))","v":0.99999824900000001},{"$f":"VALUE(FIXED(EXP(AQ$4*-1*'PM2.5 reduction'!AQ210),9))","v":0.99999385900000004},{"$f":"VALUE(FIXED(EXP(AR$4*-1*'PM2.5 reduction'!AR210),9))","v":0.999994465},{"$f":"VALUE(FIXED(EXP(AS$4*-1*'PM2.5 reduction'!AS210),9))","v":0.99999877199999998},{"$f":"VALUE(FIXED(EXP(AT$4*-1*'PM2.5 reduction'!AT210),9))","v":0.99999892999999995},{"$f":"VALUE(FIXED(EXP(AU$4*-1*'PM2.5 reduction'!AU210),9))","v":0.99999892999999995},{"$f":"VALUE(FIXED(EXP(AV$4*-1*'PM2.5 reduction'!AV210),9))","v":0.99999550500000001},{"$f":"VALUE(FIXED(EXP(AW$4*-1*'PM2.5 reduction'!AW210),9))","v":0.99999405100000005},{"$f":"VALUE(FIXED(EXP(AX$4*-1*'PM2.5 reduction'!AX210),9))","v":0.99999647400000002},{"$f":"VALUE(FIXED(EXP(AY$4*-1*'PM2.5 reduction'!AY210),9))","v":0.99999654900000001},{"$f":"VALUE(FIXED(EXP(AZ$4*-1*'PM2.5 reduction'!AZ210),9))","v":0.99999664700000002},{"$f":"VALUE(FIXED(EXP(BA$4*-1*'PM2.5 reduction'!BA210),9))","v":0.99999525199999995},{"$f":"VALUE(FIXED(EXP(BB$4*-1*'PM2.5 reduction'!BB210),9))","v":0.999995576},{"$f":"VALUE(FIXED(EXP(BC$4*-1*'PM2.5 reduction'!BC210),9))","v":1}]
[null,"Male 90+",{"$f":"VALUE(FIXED(EXP(C$4*-1*'PM2.5 reduction'!C211),9))","v":0.99998916500000001},{"$f":"VALUE(FIXED(EXP(D$4*-1*'PM2.5 reduction'!D211),9))","v":0.99999562799999997},{"$f":"VALUE(FIXED(EXP(E$4*-1*'PM2.5 reduction'!E211),9))","v":0.99999800999999999},{"$f":"VALUE(FIXED(EXP(F$4*-1*'PM2.5 reduction'!F211),9))","v":0.99999815199999997},{"$f":"VALUE(FIXED(EXP(G$4*-1*'PM2.5 reduction'!G211),9))","v":0.99999744000000002},{"$f":"VALUE(FIXED(EXP(H$4*-1*'PM2.5 reduction'!H211),9))","v":0.99999581800000004},{"$f":"VALUE(FIXED(EXP(I$4*-1*'PM2.5 reduction'!I211),9))","v":0.99999864599999999},{"$f":"VALUE(FIXED(EXP(J$4*-1*'PM2.5 reduction'!J211),9))","v":0.99999658999999996},{"$f":"VALUE(FIXED(EXP(K$4*-1*'PM2.5 reduction'!K211),9))","v":0.99999611499999996},{"$f":"VALUE(FIXED(EXP(L$4*-1*'PM2.5 reduction'!L211),9))","v":0.99999802100000001},{"$f":"VALUE(FIXED(EXP(M$4*-1*'PM2.5 reduction'!M211),9))","v":0.99999802100000001},{"$f":"VALUE(FIXED(EXP(N$4*-1*'PM2.5 reduction'!N211),9))","v":0.99999311000000002},{"$f":"VALUE(FIXED(EXP(O$4*-1*'PM2.5 reduction'!O211),9))","v":0.99999521000000002},{"$f":"VALUE(FIXED(EXP(P$4*-1*'PM2.5 reduction'!P211),9))","v":0.99999304300000003},{"$f":"VALUE(FIXED(EXP(Q$4*-1*'PM2.5 reduction'!Q211),9))","v":0.99999708200000004},{"$f":"VALUE(FIXED(EXP(R$4*-1*'PM2.5 reduction'!R211),9))","v":0.99999309700000005},{"$f":"VALUE(FIXED(EXP(S$4*-1*'PM2.5 reduction'!S211),9))","v":0.999992989},{"$f":"VALUE(FIXED(EXP(T$4*-1*'PM2.5 reduction'!T211),9))","v":0.99999027799999995},{"$f":"VALUE(FIXED(EXP(U$4*-1*'PM2.5 reduction'!U211),9))","v":1},{"$f":"VALUE(FIXED(EXP(V$4*-1*'PM2.5 reduction'!V211),9))","v":0.99999361799999997},{"$f":"VALUE(FIXED(EXP(W$4*-1*'PM2.5 reduction'!W211),9))","v":0.99999643400000005},{"$f":"VALUE(FIXED(EXP(X$4*-1*'PM2.5 reduction'!X211),9))","v":0.99999643400000005},{"$f":"VALUE(FIXED(EXP(Y$4*-1*'PM2.5 reduction'!Y211),9))","v":0.99999481999999995},{"$f":"VALUE(FIXED(EXP(Z$4*-1*'PM2.5 reduction'!Z211),9))","v":0.99998997999999995},{"$f":"VALUE(FIXED(EXP(AA$4*-1*'PM2.5 reduction'!AA211),9))","v":0.99999284799999999},{"$f":"VALUE(FIXED(EXP(AB$4*-1*'PM2.5 reduction'!AB211),9))","v":0.99999577100000003},{"$f":"VALUE(FIXED(EXP(AC$4*-1*'PM2.5 reduction'!AC211),9))","v":0.99999224499999995},{"$f":"VALUE(FIXED(EXP(AD$4*-1*'PM2.5 reduction'!AD211),9))","v":0.99999686799999998},{"$f":"VALUE(FIXED(EXP(AE$4*-1*'PM2.5 reduction'!AE211),9))","v":0.99999677300000001},{"$f":"VALUE(FIXED(EXP(AF$4*-1*'PM2.5 reduction'!AF211),9))","v":0.99999482799999995},{"$f":"VALUE(FIXED(EXP(AG$4*-1*'PM2.5 reduction'!AG211),9))","v":0.99999677300000001},{"$f":"VALUE(FIXED(EXP(AH$4*-1*'PM2.5 reduction'!AH211),9))","v":0.99999439300000004},{"$f":"VALUE(FIXED(EXP(AI$4*-1*'PM2.5 reduction'!AI211),9))","v":0.99999138300000001},{"$f":"VALUE(FIXED(EXP(AJ$4*-1*'PM2.5 reduction'!AJ211),9))","v":0.99999500900000005},{"$f":"VALUE(FIXED(EXP(AK$4*-1*'PM2.5 reduction'!AK211),9))","v":0.99999884999999999},{"$f":"VALUE(FIXED(EXP(AL$4*-1*'PM2.5 reduction'!AL211),9))","v":0.99999717700000001},{"$f":"VALUE(FIXED(EXP(AM$4*-1*'PM2.5 reduction'!AM211),9))","v":0.99999411199999999},{"$f":"VALUE(FIXED(EXP(AN$4*-1*'PM2.5 reduction'!AN211),9))","v":0.99999887700000001},{"$f":"VALUE(FIXED(EXP(AO$4*-1*'PM2.5 reduction'!AO211),9))","v":0.99999887700000001},{"$f":"VALUE(FIXED(EXP(AP$4*-1*'PM2.5 reduction'!AP211),9))","v":0.99999811500000002},{"$f":"VALUE(FIXED(EXP(AQ$4*-1*'PM2.5 reduction'!AQ211),9))","v":0.999993558},{"$f":"VALUE(FIXED(EXP(AR$4*-1*'PM2.5 reduction'!AR211),9))","v":0.99999442100000002},{"$f":"VALUE(FIXED(EXP(AS$4*-1*'PM2.5 reduction'!AS211),9))","v":0.99999864599999999},{"$f":"VALUE(FIXED(EXP(AT$4*-1*'PM2.5 reduction'!AT211),9))","v":0.999999313},{"$f":"VALUE(FIXED(EXP(AU$4*-1*'PM2.5 reduction'!AU211),9))","v":0.999999313},{"$f":"VALUE(FIXED(EXP(AV$4*-1*'PM2.5 reduction'!AV211),9))","v":0.99999553500000005},{"$f":"VALUE(FIXED(EXP(AW$4*-1*'PM2.5 reduction'!AW211),9))","v":0.99999456099999995},{"$f":"VALUE(FIXED(EXP(AX$4*-1*'PM2.5 reduction'!AX211),9))","v":0.999996679},{"$f":"VALUE(FIXED(EXP(AY$4*-1*'PM2.5 reduction'!AY211),9))","v":0.99999633399999999},{"$f":"VALUE(FIXED(EXP(AZ$4*-1*'PM2.5 reduction'!AZ211),9))","v":0.99999630100000003},{"$f":"VALUE(FIXED(EXP(BA$4*-1*'PM2.5 reduction'!BA211),9))","v":0.99999541300000006},{"$f":"VALUE(FIXED(EXP(BB$4*-1*'PM2.5 reduction'!BB211),9))","v":0.99999445300000001},{"$f":"VALUE(FIXED(EXP(BC$4*-1*'PM2.5 reduction'!BC211),9))","v":1}]
["SIMD Q5 (least deprived)","Female 0-4",{"$f":"VALUE(FIXED(EXP(C$4*-1*'PM2.5 reduction'!C212),9))","v":0.99999138600000004},{"$f":"VALUE(FIXED(EXP(D$4*-1*'PM2.5 reduction'!D212),9))","v":0.99999436100000005},{"$f":"VALUE(FIXED(EXP(E$4*-1*'PM2.5 reduction'!E212),9))","v":0.99999830000000001},{"$f":"VALUE(FIXED(EXP(F$4*-1*'PM2.5 reduction'!F212),9))","v":0.99999795499999999},{"$f":"VALUE(FIXED(EXP(G$4*-1*'PM2.5 reduction'!G212),9))","v":0.999998465},{"$f":"VALUE(FIXED(EXP(H$4*-1*'PM2.5 reduction'!H212),9))","v":0.99999665299999996},{"$f":"VALUE(FIXED(EXP(I$4*-1*'PM2.5 reduction'!I212),9))","v":0.99999875299999996},{"$f":"VALUE(FIXED(EXP(J$4*-1*'PM2.5 reduction'!J212),9))","v":0.99999656199999998},{"$f":"VALUE(FIXED(EXP(K$4*-1*'PM2.5 reduction'!K212),9))","v":0.99999580499999996},{"$f":"VALUE(FIXED(EXP(L$4*-1*'PM2.5 reduction'!L212),9))","v":0.99999801700000002},{"$f":"VALUE(FIXED(EXP(M$4*-1*'PM2.5 reduction'!M212),9))","v":0.99999801700000002},{"$f":"VALUE(FIXED(EXP(N$4*-1*'PM2.5 reduction'!N212),9))","v":0.99999441600000005},{"$f":"VALUE(FIXED(EXP(O$4*-1*'PM2.5 reduction'!O212),9))","v":0.99999626200000002},{"$f":"VALUE(FIXED(EXP(P$4*-1*'PM2.5 reduction'!P212),9))","v":0.99999327000000005},{"$f":"VALUE(FIXED(EXP(Q$4*-1*'PM2.5 reduction'!Q212),9))","v":0.99999749999999998},{"$f":"VALUE(FIXED(EXP(R$4*-1*'PM2.5 reduction'!R212),9))","v":0.99999296199999999},{"$f":"VALUE(FIXED(EXP(S$4*-1*'PM2.5 reduction'!S212),9))","v":0.999991937},{"$f":"VALUE(FIXED(EXP(T$4*-1*'PM2.5 reduction'!T212),9))","v":0.99998937799999998},{"$f":"VALUE(FIXED(EXP(U$4*-1*'PM2.5 reduction'!U212),9))","v":1},{"$f":"VALUE(FIXED(EXP(V$4*-1*'PM2.5 reduction'!V212),9))","v":0.999994936},{"$f":"VALUE(FIXED(EXP(W$4*-1*'PM2.5 reduction'!W212),9))","v":0.99999599100000003},{"$f":"VALUE(FIXED(EXP(X$4*-1*'PM2.5 reduction'!X212),9))","v":0.99999599100000003},{"$f":"VALUE(FIXED(EXP(Y$4*-1*'PM2.5 reduction'!Y212),9))","v":0.99999566299999998},{"$f":"VALUE(FIXED(EXP(Z$4*-1*'PM2.5 reduction'!Z212),9))","v":0.99999005900000004},{"$f":"VALUE(FIXED(EXP(AA$4*-1*'PM2.5 reduction'!AA212),9))","v":0.99999307699999995},{"$f":"VALUE(FIXED(EXP(AB$4*-1*'PM2.5 reduction'!AB212),9))","v":0.99999450499999998},{"$f":"VALUE(FIXED(EXP(AC$4*-1*'PM2.5 reduction'!AC212),9))","v":0.99999248500000004},{"$f":"VALUE(FIXED(EXP(AD$4*-1*'PM2.5 reduction'!AD212),9))","v":0.99999769000000005},{"$f":"VALUE(FIXED(EXP(AE$4*-1*'PM2.5 reduction'!AE212),9))","v":0.999997425},{"$f":"VALUE(FIXED(EXP(AF$4*-1*'PM2.5 reduction'!AF212),9))","v":0.99999723100000004},{"$f":"VALUE(FIXED(EXP(AG$4*-1*'PM2.5 reduction'!AG212),9))","v":0.999997425},{"$f":"VALUE(FIXED(EXP(AH$4*-1*'PM2.5 reduction'!AH212),9))","v":0.99999490999999996},{"$f":"VALUE(FIXED(EXP(AI$4*-1*'PM2.5 reduction'!AI212),9))","v":0.99999094399999999},{"$f":"VALUE(FIXED(EXP(AJ$4*-1*'PM2.5 reduction'!AJ212),9))","v":0.99999567499999997},{"$f":"VALUE(FIXED(EXP(AK$4*-1*'PM2.5 reduction'!AK212),9))","v":0.99999812499999996},{"$f":"VALUE(FIXED(EXP(AL$4*-1*'PM2.5 reduction'!AL212),9))","v":0.99999744800000001},{"$f":"VALUE(FIXED(EXP(AM$4*-1*'PM2.5 reduction'!AM212),9))","v":0.99999422500000001},{"$f":"VALUE(FIXED(EXP(AN$4*-1*'PM2.5 reduction'!AN212),9))","v":1},{"$f":"VALUE(FIXED(EXP(AO$4*-1*'PM2.5 reduction'!AO212),9))","v":1},{"$f":"VALUE(FIXED(EXP(AP$4*-1*'PM2.5 reduction'!AP212),9))","v":0.99999728499999996},{"$f":"VALUE(FIXED(EXP(AQ$4*-1*'PM2.5 reduction'!AQ212),9))","v":0.99999497500000001},{"$f":"VALUE(FIXED(EXP(AR$4*-1*'PM2.5 reduction'!AR212),9))","v":0.99999347599999999},{"$f":"VALUE(FIXED(EXP(AS$4*-1*'PM2.5 reduction'!AS212),9))","v":0.99999875299999996},{"$f":"VALUE(FIXED(EXP(AT$4*-1*'PM2.5 reduction'!AT212),9))","v":1},{"$f":"VALUE(FIXED(EXP(AU$4*-1*'PM2.5 reduction'!AU212),9))","v":1},{"$f":"VALUE(FIXED(EXP(AV$4*-1*'PM2.5 reduction'!AV212),9))","v":0.99999661900000003},{"$f":"VALUE(FIXED(EXP(AW$4*-1*'PM2.5 reduction'!AW212),9))","v":0.99999539299999995},{"$f":"VALUE(FIXED(EXP(AX$4*-1*'PM2.5 reduction'!AX212),9))","v":0.99999672299999998},{"$f":"VALUE(FIXED(EXP(AY$4*-1*'PM2.5 reduction'!AY212),9))","v":0.99999621500000002},{"$f":"VALUE(FIXED(EXP(AZ$4*-1*'PM2.5 reduction'!AZ212),9))","v":0.99999644700000001},{"$f":"VALUE(FIXED(EXP(BA$4*-1*'PM2.5 reduction'!BA212),9))","v":0.99999654000000004},{"$f":"VALUE(FIXED(EXP(BB$4*-1*'PM2.5 reduction'!BB212),9))","v":0.99999579699999996},{"$f":"VALUE(FIXED(EXP(BC$4*-1*'PM2.5 reduction'!BC212),9))","v":1}]
[null,"Female 5-9",{"$f":"VALUE(FIXED(EXP(C$4*-1*'PM2.5 reduction'!C213),9))","v":0.99999187300000003},{"$f":"VALUE(FIXED(EXP(D$4*-1*'PM2.5 reduction'!D213),9))","v":0.99999492599999995},{"$f":"VALUE(FIXED(EXP(E$4*-1*'PM2.5 reduction'!E213),9))","v":0.99999830199999995},{"$f":"VALUE(FIXED(EXP(F$4*-1*'PM2.5 reduction'!F213),9))","v":0.99999800999999999},{"$f":"VALUE(FIXED(EXP(G$4*-1*'PM2.5 reduction'!G213),9))","v":0.99999845700000001},{"$f":"VALUE(FIXED(EXP(H$4*-1*'PM2.5 reduction'!H213),9))","v":0.99999684499999997},{"$f":"VALUE(FIXED(EXP(I$4*-1*'PM2.5 reduction'!I213),9))","v":0.99999875100000002},{"$f":"VALUE(FIXED(EXP(J$4*-1*'PM2.5 reduction'!J213),9))","v":0.99999685400000005},{"$f":"VALUE(FIXED(EXP(K$4*-1*'PM2.5 reduction'!K213),9))","v":0.99999633499999996},{"$f":"VALUE(FIXED(EXP(L$4*-1*'PM2.5 reduction'!L213),9))","v":0.99999804999999997},{"$f":"VALUE(FIXED(EXP(M$4*-1*'PM2.5 reduction'!M213),9))","v":0.99999804999999997},{"$f":"VALUE(FIXED(EXP(N$4*-1*'PM2.5 reduction'!N213),9))","v":0.99999449900000004},{"$f":"VALUE(FIXED(EXP(O$4*-1*'PM2.5 reduction'!O213),9))","v":0.99999648299999999},{"$f":"VALUE(FIXED(EXP(P$4*-1*'PM2.5 reduction'!P213),9))","v":0.99999327599999999},{"$f":"VALUE(FIXED(EXP(Q$4*-1*'PM2.5 reduction'!Q213),9))","v":0.99999758000000005},{"$f":"VALUE(FIXED(EXP(R$4*-1*'PM2.5 reduction'!R213),9))","v":0.99999306399999999},{"$f":"VALUE(FIXED(EXP(S$4*-1*'PM2.5 reduction'!S213),9))","v":0.99999239699999998},{"$f":"VALUE(FIXED(EXP(T$4*-1*'PM2.5 reduction'!T213),9))","v":0.99998969800000004},{"$f":"VALUE(FIXED(EXP(U$4*-1*'PM2.5 reduction'!U213),9))","v":1},{"$f":"VALUE(FIXED(EXP(V$4*-1*'PM2.5 reduction'!V213),9))","v":0.99999500699999999},{"$f":"VALUE(FIXED(EXP(W$4*-1*'PM2.5 reduction'!W213),9))","v":0.99999596700000004},{"$f":"VALUE(FIXED(EXP(X$4*-1*'PM2.5 reduction'!X213),9))","v":0.99999596700000004},{"$f":"VALUE(FIXED(EXP(Y$4*-1*'PM2.5 reduction'!Y213),9))","v":0.99999585700000004},{"$f":"VALUE(FIXED(EXP(Z$4*-1*'PM2.5 reduction'!Z213),9))","v":0.99999013699999995},{"$f":"VALUE(FIXED(EXP(AA$4*-1*'PM2.5 reduction'!AA213),9))","v":0.999993303},{"$f":"VALUE(FIXED(EXP(AB$4*-1*'PM2.5 reduction'!AB213),9))","v":0.99999505099999997},{"$f":"VALUE(FIXED(EXP(AC$4*-1*'PM2.5 reduction'!AC213),9))","v":0.99999268200000002},{"$f":"VALUE(FIXED(EXP(AD$4*-1*'PM2.5 reduction'!AD213),9))","v":0.999997778},{"$f":"VALUE(FIXED(EXP(AE$4*-1*'PM2.5 reduction'!AE213),9))","v":0.99999757099999997},{"$f":"VALUE(FIXED(EXP(AF$4*-1*'PM2.5 reduction'!AF213),9))","v":0.99999706200000005},{"$f":"VALUE(FIXED(EXP(AG$4*-1*'PM2.5 reduction'!AG213),9))","v":0.99999757099999997},{"$f":"VALUE(FIXED(EXP(AH$4*-1*'PM2.5 reduction'!AH213),9))","v":0.99999491699999998},{"$f":"VALUE(FIXED(EXP(AI$4*-1*'PM2.5 reduction'!AI213),9))","v":0.99999138700000001},{"$f":"VALUE(FIXED(EXP(AJ$4*-1*'PM2.5 reduction'!AJ213),9))","v":0.99999553500000005},{"$f":"VALUE(FIXED(EXP(AK$4*-1*'PM2.5 reduction'!AK213),9))","v":0.99999808499999998},{"$f":"VALUE(FIXED(EXP(AL$4*-1*'PM2.5 reduction'!AL213),9))","v":0.99999746700000003},{"$f":"VALUE(FIXED(EXP(AM$4*-1*'PM2.5 reduction'!AM213),9))","v":0.99999432200000005},{"$f":"VALUE(FIXED(EXP(AN$4*-1*'PM2.5 reduction'!AN213),9))","v":1},{"$f":"VALUE(FIXED(EXP(AO$4*-1*'PM2.5 reduction'!AO213),9))","v":1},{"$f":"VALUE(FIXED(EXP(AP$4*-1*'PM2.5 reduction'!AP213),9))","v":0.99999737300000002},{"$f":"VALUE(FIXED(EXP(AQ$4*-1*'PM2.5 reduction'!AQ213),9))","v":0.99999492700000003},{"$f":"VALUE(FIXED(EXP(AR$4*-1*'PM2.5 reduction'!AR213),9))","v":0.99999384800000002},{"$f":"VALUE(FIXED(EXP(AS$4*-1*'PM2.5 reduction'!AS213),9))","v":0.99999875100000002},{"$f":"VALUE(FIXED(EXP(AT$4*-1*'PM2.5 reduction'!AT213),9))","v":1},{"$f":"VALUE(FIXED(EXP(AU$4*-1*'PM2.5 reduction'!AU213),9))","v":1},{"$f":"VALUE(FIXED(EXP(AV$4*-1*'PM2.5 reduction'!AV213),9))","v":0.99999676699999995},{"$f":"VALUE(FIXED(EXP(AW$4*-1*'PM2.5 reduction'!AW213),9))","v":0.99999536200000005},{"$f":"VALUE(FIXED(EXP(AX$4*-1*'PM2.5 reduction'!AX213),9))","v":0.99999695700000002},{"$f":"VALUE(FIXED(EXP(AY$4*-1*'PM2.5 reduction'!AY213),9))","v":0.999996255},{"$f":"VALUE(FIXED(EXP(AZ$4*-1*'PM2.5 reduction'!AZ213),9))","v":0.99999660000000001},{"$f":"VALUE(FIXED(EXP(BA$4*-1*'PM2.5 reduction'!BA213),9))","v":0.99999614999999997},{"$f":"VALUE(FIXED(EXP(BB$4*-1*'PM2.5 reduction'!BB213),9))","v":0.99999587000000001},{"$f":"VALUE(FIXED(EXP(BC$4*-1*'PM2.5 reduction'!BC213),9))","v":1}]
[null,"Female 10-15",{"$f":"VALUE(FIXED(EXP(C$4*-1*'PM2.5 reduction'!C214),9))","v":0.99999196999999995},{"$f":"VALUE(FIXED(EXP(D$4*-1*'PM2.5 reduction'!D214),9))","v":0.999995042},{"$f":"VALUE(FIXED(EXP(E$4*-1*'PM2.5 reduction'!E214),9))","v":0.99999832899999996},{"$f":"VALUE(FIXED(EXP(F$4*-1*'PM2.5 reduction'!F214),9))","v":0.999998002},{"$f":"VALUE(FIXED(EXP(G$4*-1*'PM2.5 reduction'!G214),9))","v":0.99999844100000002},{"$f":"VALUE(FIXED(EXP(H$4*-1*'PM2.5 reduction'!H214),9))","v":0.99999666899999995},{"$f":"VALUE(FIXED(EXP(I$4*-1*'PM2.5 reduction'!I214),9))","v":0.99999876700000001},{"$f":"VALUE(FIXED(EXP(J$4*-1*'PM2.5 reduction'!J214),9))","v":0.99999696199999999},{"$f":"VALUE(FIXED(EXP(K$4*-1*'PM2.5 reduction'!K214),9))","v":0.99999672699999997},{"$f":"VALUE(FIXED(EXP(L$4*-1*'PM2.5 reduction'!L214),9))","v":0.99999795499999999},{"$f":"VALUE(FIXED(EXP(M$4*-1*'PM2.5 reduction'!M214),9))","v":0.99999795499999999},{"$f":"VALUE(FIXED(EXP(N$4*-1*'PM2.5 reduction'!N214),9))","v":0.99999447200000002},{"$f":"VALUE(FIXED(EXP(O$4*-1*'PM2.5 reduction'!O214),9))","v":0.99999627599999996},{"$f":"VALUE(FIXED(EXP(P$4*-1*'PM2.5 reduction'!P214),9))","v":0.99999324999999994},{"$f":"VALUE(FIXED(EXP(Q$4*-1*'PM2.5 reduction'!Q214),9))","v":0.99999777899999998},{"$f":"VALUE(FIXED(EXP(R$4*-1*'PM2.5 reduction'!R214),9))","v":0.99999311999999996},{"$f":"VALUE(FIXED(EXP(S$4*-1*'PM2.5 reduction'!S214),9))","v":0.99999267700000005},{"$f":"VALUE(FIXED(EXP(T$4*-1*'PM2.5 reduction'!T214),9))","v":0.999989923},{"$f":"VALUE(FIXED(EXP(U$4*-1*'PM2.5 reduction'!U214),9))","v":1},{"$f":"VALUE(FIXED(EXP(V$4*-1*'PM2.5 reduction'!V214),9))","v":0.99999499000000003},{"$f":"VALUE(FIXED(EXP(W$4*-1*'PM2.5 reduction'!W214),9))","v":0.99999587300000004},{"$f":"VALUE(FIXED(EXP(X$4*-1*'PM2.5 reduction'!X214),9))","v":0.99999587300000004},{"$f":"VALUE(FIXED(EXP(Y$4*-1*'PM2.5 reduction'!Y214),9))","v":0.99999587300000004},{"$f":"VALUE(FIXED(EXP(Z$4*-1*'PM2.5 reduction'!Z214),9))","v":0.999990563},{"$f":"VALUE(FIXED(EXP(AA$4*-1*'PM2.5 reduction'!AA214),9))","v":0.99999349400000004},{"$f":"VALUE(FIXED(EXP(AB$4*-1*'PM2.5 reduction'!AB214),9))","v":0.99999519400000003},{"$f":"VALUE(FIXED(EXP(AC$4*-1*'PM2.5 reduction'!AC214),9))","v":0.99999294299999997},{"$f":"VALUE(FIXED(EXP(AD$4*-1*'PM2.5 reduction'!AD214),9))","v":0.99999769699999996},{"$f":"VALUE(FIXED(EXP(AE$4*-1*'PM2.5 reduction'!AE214),9))","v":0.99999740699999995},{"$f":"VALUE(FIXED(EXP(AF$4*-1*'PM2.5 reduction'!AF214),9))","v":0.99999725100000003},{"$f":"VALUE(FIXED(EXP(AG$4*-1*'PM2.5 reduction'!AG214),9))","v":0.99999740699999995},{"$f":"VALUE(FIXED(EXP(AH$4*-1*'PM2.5 reduction'!AH214),9))","v":0.99999500900000005},{"$f":"VALUE(FIXED(EXP(AI$4*-1*'PM2.5 reduction'!AI214),9))","v":0.99999176599999995},{"$f":"VALUE(FIXED(EXP(AJ$4*-1*'PM2.5 reduction'!AJ214),9))","v":0.99999535100000003},{"$f":"VALUE(FIXED(EXP(AK$4*-1*'PM2.5 reduction'!AK214),9))","v":0.99999823300000001},{"$f":"VALUE(FIXED(EXP(AL$4*-1*'PM2.5 reduction'!AL214),9))","v":0.99999750399999998},{"$f":"VALUE(FIXED(EXP(AM$4*-1*'PM2.5 reduction'!AM214),9))","v":0.99999431400000005},{"$f":"VALUE(FIXED(EXP(AN$4*-1*'PM2.5 reduction'!AN214),9))","v":1},{"$f":"VALUE(FIXED(EXP(AO$4*-1*'PM2.5 reduction'!AO214),9))","v":1},{"$f":"VALUE(FIXED(EXP(AP$4*-1*'PM2.5 reduction'!AP214),9))","v":0.99999740199999998},{"$f":"VALUE(FIXED(EXP(AQ$4*-1*'PM2.5 reduction'!AQ214),9))","v":0.99999506699999996},{"$f":"VALUE(FIXED(EXP(AR$4*-1*'PM2.5 reduction'!AR214),9))","v":0.99999406499999999},{"$f":"VALUE(FIXED(EXP(AS$4*-1*'PM2.5 reduction'!AS214),9))","v":0.99999876700000001},{"$f":"VALUE(FIXED(EXP(AT$4*-1*'PM2.5 reduction'!AT214),9))","v":1},{"$f":"VALUE(FIXED(EXP(AU$4*-1*'PM2.5 reduction'!AU214),9))","v":1},{"$f":"VALUE(FIXED(EXP(AV$4*-1*'PM2.5 reduction'!AV214),9))","v":0.99999656599999998},{"$f":"VALUE(FIXED(EXP(AW$4*-1*'PM2.5 reduction'!AW214),9))","v":0.99999555100000004},{"$f":"VALUE(FIXED(EXP(AX$4*-1*'PM2.5 reduction'!AX214),9))","v":0.99999700199999997},{"$f":"VALUE(FIXED(EXP(AY$4*-1*'PM2.5 reduction'!AY214),9))","v":0.99999621900000002},{"$f":"VALUE(FIXED(EXP(AZ$4*-1*'PM2.5 reduction'!AZ214),9))","v":0.99999655600000004},{"$f":"VALUE(FIXED(EXP(BA$4*-1*'PM2.5 reduction'!BA214),9))","v":0.99999619399999995},{"$f":"VALUE(FIXED(EXP(BB$4*-1*'PM2.5 reduction'!BB214),9))","v":0.99999594300000005},{"$f":"VALUE(FIXED(EXP(BC$4*-1*'PM2.5 reduction'!BC214),9))","v":1}]
[null,"Female 16-19",{"$f":"VALUE(FIXED(EXP(C$4*-1*'PM2.5 reduction'!C215),9))","v":0.99999126199999999},{"$f":"VALUE(FIXED(EXP(D$4*-1*'PM2.5 reduction'!D215),9))","v":0.99999448599999996},{"$f":"VALUE(FIXED(EXP(E$4*-1*'PM2.5 reduction'!E215),9))","v":0.99999827100000005},{"$f":"VALUE(FIXED(EXP(F$4*-1*'PM2.5 reduction'!F215),9))","v":0.99999797999999995},{"$f":"VALUE(FIXED(EXP(G$4*-1*'PM2.5 reduction'!G215),9))","v":0.99999842500000002},{"$f":"VALUE(FIXED(EXP(H$4*-1*'PM2.5 reduction'!H215),9))","v":0.99999658300000005},{"$f":"VALUE(FIXED(EXP(I$4*-1*'PM2.5 reduction'!I215),9))","v":0.99999873500000003},{"$f":"VALUE(FIXED(EXP(J$4*-1*'PM2.5 reduction'!J215),9))","v":0.99999691800000001},{"$f":"VALUE(FIXED(EXP(K$4*-1*'PM2.5 reduction'!K215),9))","v":0.99999663400000005},{"$f":"VALUE(FIXED(EXP(L$4*-1*'PM2.5 reduction'!L215),9))","v":0.99999788000000001},{"$f":"VALUE(FIXED(EXP(M$4*-1*'PM2.5 reduction'!M215),9))","v":0.99999788000000001},{"$f":"VALUE(FIXED(EXP(N$4*-1*'PM2.5 reduction'!N215),9))","v":0.99999199299999997},{"$f":"VALUE(FIXED(EXP(O$4*-1*'PM2.5 reduction'!O215),9))","v":0.99999605199999997},{"$f":"VALUE(FIXED(EXP(P$4*-1*'PM2.5 reduction'!P215),9))","v":0.99999324000000001},{"$f":"VALUE(FIXED(EXP(Q$4*-1*'PM2.5 reduction'!Q215),9))","v":0.99999764300000005},{"$f":"VALUE(FIXED(EXP(R$4*-1*'PM2.5 reduction'!R215),9))","v":0.99999315799999999},{"$f":"VALUE(FIXED(EXP(S$4*-1*'PM2.5 reduction'!S215),9))","v":0.99999154599999995},{"$f":"VALUE(FIXED(EXP(T$4*-1*'PM2.5 reduction'!T215),9))","v":0.99998860599999995},{"$f":"VALUE(FIXED(EXP(U$4*-1*'PM2.5 reduction'!U215),9))","v":1},{"$f":"VALUE(FIXED(EXP(V$4*-1*'PM2.5 reduction'!V215),9))","v":0.99999504400000006},{"$f":"VALUE(FIXED(EXP(W$4*-1*'PM2.5 reduction'!W215),9))","v":0.99999639699999998},{"$f":"VALUE(FIXED(EXP(X$4*-1*'PM2.5 reduction'!X215),9))","v":0.99999639699999998},{"$f":"VALUE(FIXED(EXP(Y$4*-1*'PM2.5 reduction'!Y215),9))","v":0.99999592900000001},{"$f":"VALUE(FIXED(EXP(Z$4*-1*'PM2.5 reduction'!Z215),9))","v":0.99998777100000003},{"$f":"VALUE(FIXED(EXP(AA$4*-1*'PM2.5 reduction'!AA215),9))","v":0.99999245699999995},{"$f":"VALUE(FIXED(EXP(AB$4*-1*'PM2.5 reduction'!AB215),9))","v":0.999994618},{"$f":"VALUE(FIXED(EXP(AC$4*-1*'PM2.5 reduction'!AC215),9))","v":0.99999169399999999},{"$f":"VALUE(FIXED(EXP(AD$4*-1*'PM2.5 reduction'!AD215),9))","v":0.99999767500000003},{"$f":"VALUE(FIXED(EXP(AE$4*-1*'PM2.5 reduction'!AE215),9))","v":0.99999748600000005},{"$f":"VALUE(FIXED(EXP(AF$4*-1*'PM2.5 reduction'!AF215),9))","v":0.99999713199999996},{"$f":"VALUE(FIXED(EXP(AG$4*-1*'PM2.5 reduction'!AG215),9))","v":0.99999748600000005},{"$f":"VALUE(FIXED(EXP(AH$4*-1*'PM2.5 reduction'!AH215),9))","v":0.999994838},{"$f":"VALUE(FIXED(EXP(AI$4*-1*'PM2.5 reduction'!AI215),9))","v":0.99999037000000002},{"$f":"VALUE(FIXED(EXP(AJ$4*-1*'PM2.5 reduction'!AJ215),9))","v":0.99999582099999995},{"$f":"VALUE(FIXED(EXP(AK$4*-1*'PM2.5 reduction'!AK215),9))","v":0.99999810700000002},{"$f":"VALUE(FIXED(EXP(AL$4*-1*'PM2.5 reduction'!AL215),9))","v":0.99999742599999997},{"$f":"VALUE(FIXED(EXP(AM$4*-1*'PM2.5 reduction'!AM215),9))","v":0.99999424000000003},{"$f":"VALUE(FIXED(EXP(AN$4*-1*'PM2.5 reduction'!AN215),9))","v":1},{"$f":"VALUE(FIXED(EXP(AO$4*-1*'PM2.5 reduction'!AO215),9))","v":1},{"$f":"VALUE(FIXED(EXP(AP$4*-1*'PM2.5 reduction'!AP215),9))","v":0.99999725100000003},{"$f":"VALUE(FIXED(EXP(AQ$4*-1*'PM2.5 reduction'!AQ215),9))","v":0.99999512499999998},{"$f":"VALUE(FIXED(EXP(AR$4*-1*'PM2.5 reduction'!AR215),9))","v":0.99999308499999995},{"$f":"VALUE(FIXED(EXP(AS$4*-1*'PM2.5 reduction'!AS215),9))","v":0.99999873500000003},{"$f":"VALUE(FIXED(EXP(AT$4*-1*'PM2.5 reduction'!AT215),9))","v":1},{"$f":"VALUE(FIXED(EXP(AU$4*-1*'PM2.5 reduction'!AU215),9))","v":1},{"$f":"VALUE(FIXED(EXP(AV$4*-1*'PM2.5 reduction'!AV215),9))","v":0.99999660000000001},{"$f":"VALUE(FIXED(EXP(AW$4*-1*'PM2.5 reduction'!AW215),9))","v":0.99999537999999999},{"$f":"VALUE(FIXED(EXP(AX$4*-1*'PM2.5 reduction'!AX215),9))","v":0.99999696400000004},{"$f":"VALUE(FIXED(EXP(AY$4*-1*'PM2.5 reduction'!AY215),9))","v":0.99999566600000001},{"$f":"VALUE(FIXED(EXP(AZ$4*-1*'PM2.5 reduction'!AZ215),9))","v":0.99999500100000005},{"$f":"VALUE(FIXED(EXP(BA$4*-1*'PM2.5 reduction'!BA215),9))","v":0.99999606399999996},{"$f":"VALUE(FIXED(EXP(BB$4*-1*'PM2.5 reduction'!BB215),9))","v":0.99999603400000003},{"$f":"VALUE(FIXED(EXP(BC$4*-1*'PM2.5 reduction'!BC215),9))","v":1}]
[null,"Female 20-24",{"$f":"VALUE(FIXED(EXP(C$4*-1*'PM2.5 reduction'!C216),9))","v":0.99998936800000005},{"$f":"VALUE(FIXED(EXP(D$4*-1*'PM2.5 reduction'!D216),9))","v":0.99999215500000005},{"$f":"VALUE(FIXED(EXP(E$4*-1*'PM2.5 reduction'!E216),9))","v":0.99999822599999999},{"$f":"VALUE(FIXED(EXP(F$4*-1*'PM2.5 reduction'!F216),9))","v":0.99999798299999998},{"$f":"VALUE(FIXED(EXP(G$4*-1*'PM2.5 reduction'!G216),9))","v":0.99999843399999999},{"$f":"VALUE(FIXED(EXP(H$4*-1*'PM2.5 reduction'!H216),9))","v":0.999996683},{"$f":"VALUE(FIXED(EXP(I$4*-1*'PM2.5 reduction'!I216),9))","v":0.99999875999999999},{"$f":"VALUE(FIXED(EXP(J$4*-1*'PM2.5 reduction'!J216),9))","v":0.99999621599999999},{"$f":"VALUE(FIXED(EXP(K$4*-1*'PM2.5 reduction'!K216),9))","v":0.99999616099999999},{"$f":"VALUE(FIXED(EXP(L$4*-1*'PM2.5 reduction'!L216),9))","v":0.99999796100000005},{"$f":"VALUE(FIXED(EXP(M$4*-1*'PM2.5 reduction'!M216),9))","v":0.99999796100000005},{"$f":"VALUE(FIXED(EXP(N$4*-1*'PM2.5 reduction'!N216),9))","v":0.99999236999999996},{"$f":"VALUE(FIXED(EXP(O$4*-1*'PM2.5 reduction'!O216),9))","v":0.99999623199999998},{"$f":"VALUE(FIXED(EXP(P$4*-1*'PM2.5 reduction'!P216),9))","v":0.99999326799999999},{"$f":"VALUE(FIXED(EXP(Q$4*-1*'PM2.5 reduction'!Q216),9))","v":0.99999763600000002},{"$f":"VALUE(FIXED(EXP(R$4*-1*'PM2.5 reduction'!R216),9))","v":0.99999310900000005},{"$f":"VALUE(FIXED(EXP(S$4*-1*'PM2.5 reduction'!S216),9))","v":0.99998917200000004},{"$f":"VALUE(FIXED(EXP(T$4*-1*'PM2.5 reduction'!T216),9))","v":0.99998648800000001},{"$f":"VALUE(FIXED(EXP(U$4*-1*'PM2.5 reduction'!U216),9))","v":1},{"$f":"VALUE(FIXED(EXP(V$4*-1*'PM2.5 reduction'!V216),9))","v":0.99999473500000002},{"$f":"VALUE(FIXED(EXP(W$4*-1*'PM2.5 reduction'!W216),9))","v":0.99999697200000004},{"$f":"VALUE(FIXED(EXP(X$4*-1*'PM2.5 reduction'!X216),9))","v":0.99999697200000004},{"$f":"VALUE(FIXED(EXP(Y$4*-1*'PM2.5 reduction'!Y216),9))","v":0.99999550800000003},{"$f":"VALUE(FIXED(EXP(Z$4*-1*'PM2.5 reduction'!Z216),9))","v":0.999986873},{"$f":"VALUE(FIXED(EXP(AA$4*-1*'PM2.5 reduction'!AA216),9))","v":0.99999087099999995},{"$f":"VALUE(FIXED(EXP(AB$4*-1*'PM2.5 reduction'!AB216),9))","v":0.99999232100000002},{"$f":"VALUE(FIXED(EXP(AC$4*-1*'PM2.5 reduction'!AC216),9))","v":0.99998995899999998},{"$f":"VALUE(FIXED(EXP(AD$4*-1*'PM2.5 reduction'!AD216),9))","v":0.99999757700000003},{"$f":"VALUE(FIXED(EXP(AE$4*-1*'PM2.5 reduction'!AE216),9))","v":0.99999730200000003},{"$f":"VALUE(FIXED(EXP(AF$4*-1*'PM2.5 reduction'!AF216),9))","v":0.99999685500000002},{"$f":"VALUE(FIXED(EXP(AG$4*-1*'PM2.5 reduction'!AG216),9))","v":0.99999730200000003},{"$f":"VALUE(FIXED(EXP(AH$4*-1*'PM2.5 reduction'!AH216),9))","v":0.99999472099999998},{"$f":"VALUE(FIXED(EXP(AI$4*-1*'PM2.5 reduction'!AI216),9))","v":0.99998752899999999},{"$f":"VALUE(FIXED(EXP(AJ$4*-1*'PM2.5 reduction'!AJ216),9))","v":0.99999592900000001},{"$f":"VALUE(FIXED(EXP(AK$4*-1*'PM2.5 reduction'!AK216),9))","v":0.99999819499999998},{"$f":"VALUE(FIXED(EXP(AL$4*-1*'PM2.5 reduction'!AL216),9))","v":0.99999752099999994},{"$f":"VALUE(FIXED(EXP(AM$4*-1*'PM2.5 reduction'!AM216),9))","v":0.99999428300000004},{"$f":"VALUE(FIXED(EXP(AN$4*-1*'PM2.5 reduction'!AN216),9))","v":1},{"$f":"VALUE(FIXED(EXP(AO$4*-1*'PM2.5 reduction'!AO216),9))","v":1},{"$f":"VALUE(FIXED(EXP(AP$4*-1*'PM2.5 reduction'!AP216),9))","v":0.99999746},{"$f":"VALUE(FIXED(EXP(AQ$4*-1*'PM2.5 reduction'!AQ216),9))","v":0.999994987},{"$f":"VALUE(FIXED(EXP(AR$4*-1*'PM2.5 reduction'!AR216),9))","v":0.99999096700000001},{"$f":"VALUE(FIXED(EXP(AS$4*-1*'PM2.5 reduction'!AS216),9))","v":0.99999875999999999},{"$f":"VALUE(FIXED(EXP(AT$4*-1*'PM2.5 reduction'!AT216),9))","v":1},{"$f":"VALUE(FIXED(EXP(AU$4*-1*'PM2.5 reduction'!AU216),9))","v":1},{"$f":"VALUE(FIXED(EXP(AV$4*-1*'PM2.5 reduction'!AV216),9))","v":0.99999660000000001},{"$f":"VALUE(FIXED(EXP(AW$4*-1*'PM2.5 reduction'!AW216),9))","v":0.99999504699999997},{"$f":"VALUE(FIXED(EXP(AX$4*-1*'PM2.5 reduction'!AX216),9))","v":0.99999622399999999},{"$f":"VALUE(FIXED(EXP(AY$4*-1*'PM2.5 reduction'!AY216),9))","v":0.99999619399999995},{"$f":"VALUE(FIXED(EXP(AZ$4*-1*'PM2.5 reduction'!AZ216),9))","v":0.99999498600000003},{"$f":"VALUE(FIXED(EXP(BA$4*-1*'PM2.5 reduction'!BA216),9))","v":0.99999655300000001},{"$f":"VALUE(FIXED(EXP(BB$4*-1*'PM2.5 reduction'!BB216),9))","v":0.99999574499999999},{"$f":"VALUE(FIXED(EXP(BC$4*-1*'PM2.5 reduction'!BC216),9))","v":1}]
[null,"Female 25-29",{"$f":"VALUE(FIXED(EXP(C$4*-1*'PM2.5 reduction'!C217),9))","v":0.99998929999999997},{"$f":"VALUE(FIXED(EXP(D$4*-1*'PM2.5 reduction'!D217),9))","v":0.99999153799999996},{"$f":"VALUE(FIXED(EXP(E$4*-1*'PM2.5 reduction'!E217),9))","v":0.99999816900000005},{"$f":"VALUE(FIXED(EXP(F$4*-1*'PM2.5 reduction'!F217),9))","v":0.99999779700000002},{"$f":"VALUE(FIXED(EXP(G$4*-1*'PM2.5 reduction'!G217),9))","v":0.999998473},{"$f":"VALUE(FIXED(EXP(H$4*-1*'PM2.5 reduction'!H217),9))","v":0.99999658000000002},{"$f":"VALUE(FIXED(EXP(I$4*-1*'PM2.5 reduction'!I217),9))","v":0.99999874499999997},{"$f":"VALUE(FIXED(EXP(J$4*-1*'PM2.5 reduction'!J217),9))","v":0.99999638000000002},{"$f":"VALUE(FIXED(EXP(K$4*-1*'PM2.5 reduction'!K217),9))","v":0.99999583400000003},{"$f":"VALUE(FIXED(EXP(L$4*-1*'PM2.5 reduction'!L217),9))","v":0.99999797800000001},{"$f":"VALUE(FIXED(EXP(M$4*-1*'PM2.5 reduction'!M217),9))","v":0.99999797800000001},{"$f":"VALUE(FIXED(EXP(N$4*-1*'PM2.5 reduction'!N217),9))","v":0.99999359200000004},{"$f":"VALUE(FIXED(EXP(O$4*-1*'PM2.5 reduction'!O217),9))","v":0.99999626200000002},{"$f":"VALUE(FIXED(EXP(P$4*-1*'PM2.5 reduction'!P217),9))","v":0.999993256},{"$f":"VALUE(FIXED(EXP(Q$4*-1*'PM2.5 reduction'!Q217),9))","v":0.99999721500000005},{"$f":"VALUE(FIXED(EXP(R$4*-1*'PM2.5 reduction'!R217),9))","v":0.99999322700000004},{"$f":"VALUE(FIXED(EXP(S$4*-1*'PM2.5 reduction'!S217),9))","v":0.99998886200000003},{"$f":"VALUE(FIXED(EXP(T$4*-1*'PM2.5 reduction'!T217),9))","v":0.99998675599999998},{"$f":"VALUE(FIXED(EXP(U$4*-1*'PM2.5 reduction'!U217),9))","v":1},{"$f":"VALUE(FIXED(EXP(V$4*-1*'PM2.5 reduction'!V217),9))","v":0.99999492099999998},{"$f":"VALUE(FIXED(EXP(W$4*-1*'PM2.5 reduction'!W217),9))","v":0.99999630799999994},{"$f":"VALUE(FIXED(EXP(X$4*-1*'PM2.5 reduction'!X217),9))","v":0.99999630799999994},{"$f":"VALUE(FIXED(EXP(Y$4*-1*'PM2.5 reduction'!Y217),9))","v":0.99999567099999997},{"$f":"VALUE(FIXED(EXP(Z$4*-1*'PM2.5 reduction'!Z217),9))","v":0.99998838800000001},{"$f":"VALUE(FIXED(EXP(AA$4*-1*'PM2.5 reduction'!AA217),9))","v":0.99999147099999997},{"$f":"VALUE(FIXED(EXP(AB$4*-1*'PM2.5 reduction'!AB217),9))","v":0.99999174199999996},{"$f":"VALUE(FIXED(EXP(AC$4*-1*'PM2.5 reduction'!AC217),9))","v":0.99999064400000004},{"$f":"VALUE(FIXED(EXP(AD$4*-1*'PM2.5 reduction'!AD217),9))","v":0.99999773400000003},{"$f":"VALUE(FIXED(EXP(AE$4*-1*'PM2.5 reduction'!AE217),9))","v":0.99999753599999996},{"$f":"VALUE(FIXED(EXP(AF$4*-1*'PM2.5 reduction'!AF217),9))","v":0.99999651099999998},{"$f":"VALUE(FIXED(EXP(AG$4*-1*'PM2.5 reduction'!AG217),9))","v":0.99999753599999996},{"$f":"VALUE(FIXED(EXP(AH$4*-1*'PM2.5 reduction'!AH217),9))","v":0.999994787},{"$f":"VALUE(FIXED(EXP(AI$4*-1*'PM2.5 reduction'!AI217),9))","v":0.99998779999999998},{"$f":"VALUE(FIXED(EXP(AJ$4*-1*'PM2.5 reduction'!AJ217),9))","v":0.99999576700000004},{"$f":"VALUE(FIXED(EXP(AK$4*-1*'PM2.5 reduction'!AK217),9))","v":0.99999819999999995},{"$f":"VALUE(FIXED(EXP(AL$4*-1*'PM2.5 reduction'!AL217),9))","v":0.99999740199999998},{"$f":"VALUE(FIXED(EXP(AM$4*-1*'PM2.5 reduction'!AM217),9))","v":0.99999411100000002},{"$f":"VALUE(FIXED(EXP(AN$4*-1*'PM2.5 reduction'!AN217),9))","v":1},{"$f":"VALUE(FIXED(EXP(AO$4*-1*'PM2.5 reduction'!AO217),9))","v":1},{"$f":"VALUE(FIXED(EXP(AP$4*-1*'PM2.5 reduction'!AP217),9))","v":0.99999719200000003},{"$f":"VALUE(FIXED(EXP(AQ$4*-1*'PM2.5 reduction'!AQ217),9))","v":0.99999486100000001},{"$f":"VALUE(FIXED(EXP(AR$4*-1*'PM2.5 reduction'!AR217),9))","v":0.99999105300000002},{"$f":"VALUE(FIXED(EXP(AS$4*-1*'PM2.5 reduction'!AS217),9))","v":0.99999874499999997},{"$f":"VALUE(FIXED(EXP(AT$4*-1*'PM2.5 reduction'!AT217),9))","v":1},{"$f":"VALUE(FIXED(EXP(AU$4*-1*'PM2.5 reduction'!AU217),9))","v":1},{"$f":"VALUE(FIXED(EXP(AV$4*-1*'PM2.5 reduction'!AV217),9))","v":0.99999655399999998},{"$f":"VALUE(FIXED(EXP(AW$4*-1*'PM2.5 reduction'!AW217),9))","v":0.99999529600000003},{"$f":"VALUE(FIXED(EXP(AX$4*-1*'PM2.5 reduction'!AX217),9))","v":0.99999645199999998},{"$f":"VALUE(FIXED(EXP(AY$4*-1*'PM2.5 reduction'!AY217),9))","v":0.99999598199999995},{"$f":"VALUE(FIXED(EXP(AZ$4*-1*'PM2.5 reduction'!AZ217),9))","v":0.99999563800000002},{"$f":"VALUE(FIXED(EXP(BA$4*-1*'PM2.5 reduction'!BA217),9))","v":0.99999608399999995},{"$f":"VALUE(FIXED(EXP(BB$4*-1*'PM2.5 reduction'!BB217),9))","v":0.99999553900000004},{"$f":"VALUE(FIXED(EXP(BC$4*-1*'PM2.5 reduction'!BC217),9))","v":1}]
[null,"Female 30-34",{"$f":"VALUE(FIXED(EXP(C$4*-1*'PM2.5 reduction'!C218),9))","v":0.99999005600000002},{"$f":"VALUE(FIXED(EXP(D$4*-1*'PM2.5 reduction'!D218),9))","v":0.99999278800000002},{"$f":"VALUE(FIXED(EXP(E$4*-1*'PM2.5 reduction'!E218),9))","v":0.99999826700000005},{"$f":"VALUE(FIXED(EXP(F$4*-1*'PM2.5 reduction'!F218),9))","v":0.99999800599999999},{"$f":"VALUE(FIXED(EXP(G$4*-1*'PM2.5 reduction'!G218),9))","v":0.99999845499999995},{"$f":"VALUE(FIXED(EXP(H$4*-1*'PM2.5 reduction'!H218),9))","v":0.99999684099999997},{"$f":"VALUE(FIXED(EXP(I$4*-1*'PM2.5 reduction'!I218),9))","v":0.99999872999999995},{"$f":"VALUE(FIXED(EXP(J$4*-1*'PM2.5 reduction'!J218),9))","v":0.99999635499999995},{"$f":"VALUE(FIXED(EXP(K$4*-1*'PM2.5 reduction'!K218),9))","v":0.99999609},{"$f":"VALUE(FIXED(EXP(L$4*-1*'PM2.5 reduction'!L218),9))","v":0.99999794500000005},{"$f":"VALUE(FIXED(EXP(M$4*-1*'PM2.5 reduction'!M218),9))","v":0.99999794500000005},{"$f":"VALUE(FIXED(EXP(N$4*-1*'PM2.5 reduction'!N218),9))","v":0.99999419099999998},{"$f":"VALUE(FIXED(EXP(O$4*-1*'PM2.5 reduction'!O218),9))","v":0.999996522},{"$f":"VALUE(FIXED(EXP(P$4*-1*'PM2.5 reduction'!P218),9))","v":0.99999325100000003},{"$f":"VALUE(FIXED(EXP(Q$4*-1*'PM2.5 reduction'!Q218),9))","v":0.99999735899999997},{"$f":"VALUE(FIXED(EXP(R$4*-1*'PM2.5 reduction'!R218),9))","v":0.99999313000000001},{"$f":"VALUE(FIXED(EXP(S$4*-1*'PM2.5 reduction'!S218),9))","v":0.99998972399999997},{"$f":"VALUE(FIXED(EXP(T$4*-1*'PM2.5 reduction'!T218),9))","v":0.99998707600000003},{"$f":"VALUE(FIXED(EXP(U$4*-1*'PM2.5 reduction'!U218),9))","v":1},{"$f":"VALUE(FIXED(EXP(V$4*-1*'PM2.5 reduction'!V218),9))","v":0.99999505499999997},{"$f":"VALUE(FIXED(EXP(W$4*-1*'PM2.5 reduction'!W218),9))","v":0.99999599299999997},{"$f":"VALUE(FIXED(EXP(X$4*-1*'PM2.5 reduction'!X218),9))","v":0.99999599299999997},{"$f":"VALUE(FIXED(EXP(Y$4*-1*'PM2.5 reduction'!Y218),9))","v":0.99999558200000005},{"$f":"VALUE(FIXED(EXP(Z$4*-1*'PM2.5 reduction'!Z218),9))","v":0.99998892900000003},{"$f":"VALUE(FIXED(EXP(AA$4*-1*'PM2.5 reduction'!AA218),9))","v":0.99999209899999997},{"$f":"VALUE(FIXED(EXP(AB$4*-1*'PM2.5 reduction'!AB218),9))","v":0.99999297200000004},{"$f":"VALUE(FIXED(EXP(AC$4*-1*'PM2.5 reduction'!AC218),9))","v":0.999991191},{"$f":"VALUE(FIXED(EXP(AD$4*-1*'PM2.5 reduction'!AD218),9))","v":0.99999759799999999},{"$f":"VALUE(FIXED(EXP(AE$4*-1*'PM2.5 reduction'!AE218),9))","v":0.99999747100000003},{"$f":"VALUE(FIXED(EXP(AF$4*-1*'PM2.5 reduction'!AF218),9))","v":0.99999673200000005},{"$f":"VALUE(FIXED(EXP(AG$4*-1*'PM2.5 reduction'!AG218),9))","v":0.99999747100000003},{"$f":"VALUE(FIXED(EXP(AH$4*-1*'PM2.5 reduction'!AH218),9))","v":0.99999476200000004},{"$f":"VALUE(FIXED(EXP(AI$4*-1*'PM2.5 reduction'!AI218),9))","v":0.99998851799999999},{"$f":"VALUE(FIXED(EXP(AJ$4*-1*'PM2.5 reduction'!AJ218),9))","v":0.99999611300000002},{"$f":"VALUE(FIXED(EXP(AK$4*-1*'PM2.5 reduction'!AK218),9))","v":0.99999807799999996},{"$f":"VALUE(FIXED(EXP(AL$4*-1*'PM2.5 reduction'!AL218),9))","v":0.99999750200000004},{"$f":"VALUE(FIXED(EXP(AM$4*-1*'PM2.5 reduction'!AM218),9))","v":0.99999407900000004},{"$f":"VALUE(FIXED(EXP(AN$4*-1*'PM2.5 reduction'!AN218),9))","v":1},{"$f":"VALUE(FIXED(EXP(AO$4*-1*'PM2.5 reduction'!AO218),9))","v":1},{"$f":"VALUE(FIXED(EXP(AP$4*-1*'PM2.5 reduction'!AP218),9))","v":0.99999719600000003},{"$f":"VALUE(FIXED(EXP(AQ$4*-1*'PM2.5 reduction'!AQ218),9))","v":0.999994681},{"$f":"VALUE(FIXED(EXP(AR$4*-1*'PM2.5 reduction'!AR218),9))","v":0.99999197299999998},{"$f":"VALUE(FIXED(EXP(AS$4*-1*'PM2.5 reduction'!AS218),9))","v":0.99999872999999995},{"$f":"VALUE(FIXED(EXP(AT$4*-1*'PM2.5 reduction'!AT218),9))","v":1},{"$f":"VALUE(FIXED(EXP(AU$4*-1*'PM2.5 reduction'!AU218),9))","v":1},{"$f":"VALUE(FIXED(EXP(AV$4*-1*'PM2.5 reduction'!AV218),9))","v":0.99999675099999996},{"$f":"VALUE(FIXED(EXP(AW$4*-1*'PM2.5 reduction'!AW218),9))","v":0.99999529700000001},{"$f":"VALUE(FIXED(EXP(AX$4*-1*'PM2.5 reduction'!AX218),9))","v":0.99999640899999998},{"$f":"VALUE(FIXED(EXP(AY$4*-1*'PM2.5 reduction'!AY218),9))","v":0.99999609700000003},{"$f":"VALUE(FIXED(EXP(AZ$4*-1*'PM2.5 reduction'!AZ218),9))","v":0.99999620600000005},{"$f":"VALUE(FIXED(EXP(BA$4*-1*'PM2.5 reduction'!BA218),9))","v":0.99999645400000003},{"$f":"VALUE(FIXED(EXP(BB$4*-1*'PM2.5 reduction'!BB218),9))","v":0.99999559900000001},{"$f":"VALUE(FIXED(EXP(BC$4*-1*'PM2.5 reduction'!BC218),9))","v":1}]
[null,"Female 35-39",{"$f":"VALUE(FIXED(EXP(C$4*-1*'PM2.5 reduction'!C219),9))","v":0.999990983},{"$f":"VALUE(FIXED(EXP(D$4*-1*'PM2.5 reduction'!D219),9))","v":0.99999377599999995},{"$f":"VALUE(FIXED(EXP(E$4*-1*'PM2.5 reduction'!E219),9))","v":0.99999829299999998},{"$f":"VALUE(FIXED(EXP(F$4*-1*'PM2.5 reduction'!F219),9))","v":0.99999803499999995},{"$f":"VALUE(FIXED(EXP(G$4*-1*'PM2.5 reduction'!G219),9))","v":0.99999845700000001},{"$f":"VALUE(FIXED(EXP(H$4*-1*'PM2.5 reduction'!H219),9))","v":0.99999675799999999},{"$f":"VALUE(FIXED(EXP(I$4*-1*'PM2.5 reduction'!I219),9))","v":0.99999875299999996},{"$f":"VALUE(FIXED(EXP(J$4*-1*'PM2.5 reduction'!J219),9))","v":0.99999675499999996},{"$f":"VALUE(FIXED(EXP(K$4*-1*'PM2.5 reduction'!K219),9))","v":0.99999617799999996},{"$f":"VALUE(FIXED(EXP(L$4*-1*'PM2.5 reduction'!L219),9))","v":0.99999793999999997},{"$f":"VALUE(FIXED(EXP(M$4*-1*'PM2.5 reduction'!M219),9))","v":0.99999793999999997},{"$f":"VALUE(FIXED(EXP(N$4*-1*'PM2.5 reduction'!N219),9))","v":0.99999396600000001},{"$f":"VALUE(FIXED(EXP(O$4*-1*'PM2.5 reduction'!O219),9))","v":0.99999635600000003},{"$f":"VALUE(FIXED(EXP(P$4*-1*'PM2.5 reduction'!P219),9))","v":0.99999324700000003},{"$f":"VALUE(FIXED(EXP(Q$4*-1*'PM2.5 reduction'!Q219),9))","v":0.99999747900000002},{"$f":"VALUE(FIXED(EXP(R$4*-1*'PM2.5 reduction'!R219),9))","v":0.99999301299999999},{"$f":"VALUE(FIXED(EXP(S$4*-1*'PM2.5 reduction'!S219),9))","v":0.99999107799999998},{"$f":"VALUE(FIXED(EXP(T$4*-1*'PM2.5 reduction'!T219),9))","v":0.99998841000000005},{"$f":"VALUE(FIXED(EXP(U$4*-1*'PM2.5 reduction'!U219),9))","v":1},{"$f":"VALUE(FIXED(EXP(V$4*-1*'PM2.5 reduction'!V219),9))","v":0.99999514599999995},{"$f":"VALUE(FIXED(EXP(W$4*-1*'PM2.5 reduction'!W219),9))","v":0.99999599400000005},{"$f":"VALUE(FIXED(EXP(X$4*-1*'PM2.5 reduction'!X219),9))","v":0.99999599400000005},{"$f":"VALUE(FIXED(EXP(Y$4*-1*'PM2.5 reduction'!Y219),9))","v":0.99999583700000005},{"$f":"VALUE(FIXED(EXP(Z$4*-1*'PM2.5 reduction'!Z219),9))","v":0.99998948399999998},{"$f":"VALUE(FIXED(EXP(AA$4*-1*'PM2.5 reduction'!AA219),9))","v":0.99999280099999999},{"$f":"VALUE(FIXED(EXP(AB$4*-1*'PM2.5 reduction'!AB219),9))","v":0.99999389400000005},{"$f":"VALUE(FIXED(EXP(AC$4*-1*'PM2.5 reduction'!AC219),9))","v":0.99999211099999996},{"$f":"VALUE(FIXED(EXP(AD$4*-1*'PM2.5 reduction'!AD219),9))","v":0.99999770700000001},{"$f":"VALUE(FIXED(EXP(AE$4*-1*'PM2.5 reduction'!AE219),9))","v":0.99999748799999999},{"$f":"VALUE(FIXED(EXP(AF$4*-1*'PM2.5 reduction'!AF219),9))","v":0.99999715600000005},{"$f":"VALUE(FIXED(EXP(AG$4*-1*'PM2.5 reduction'!AG219),9))","v":0.99999748799999999},{"$f":"VALUE(FIXED(EXP(AH$4*-1*'PM2.5 reduction'!AH219),9))","v":0.99999474700000002},{"$f":"VALUE(FIXED(EXP(AI$4*-1*'PM2.5 reduction'!AI219),9))","v":0.99998996100000004},{"$f":"VALUE(FIXED(EXP(AJ$4*-1*'PM2.5 reduction'!AJ219),9))","v":0.99999566500000003},{"$f":"VALUE(FIXED(EXP(AK$4*-1*'PM2.5 reduction'!AK219),9))","v":0.99999804999999997},{"$f":"VALUE(FIXED(EXP(AL$4*-1*'PM2.5 reduction'!AL219),9))","v":0.99999743399999996},{"$f":"VALUE(FIXED(EXP(AM$4*-1*'PM2.5 reduction'!AM219),9))","v":0.99999413999999998},{"$f":"VALUE(FIXED(EXP(AN$4*-1*'PM2.5 reduction'!AN219),9))","v":1},{"$f":"VALUE(FIXED(EXP(AO$4*-1*'PM2.5 reduction'!AO219),9))","v":1},{"$f":"VALUE(FIXED(EXP(AP$4*-1*'PM2.5 reduction'!AP219),9))","v":0.99999724700000003},{"$f":"VALUE(FIXED(EXP(AQ$4*-1*'PM2.5 reduction'!AQ219),9))","v":0.99999483199999994},{"$f":"VALUE(FIXED(EXP(AR$4*-1*'PM2.5 reduction'!AR219),9))","v":0.99999292699999998},{"$f":"VALUE(FIXED(EXP(AS$4*-1*'PM2.5 reduction'!AS219),9))","v":0.99999875299999996},{"$f":"VALUE(FIXED(EXP(AT$4*-1*'PM2.5 reduction'!AT219),9))","v":1},{"$f":"VALUE(FIXED(EXP(AU$4*-1*'PM2.5 reduction'!AU219),9))","v":1},{"$f":"VALUE(FIXED(EXP(AV$4*-1*'PM2.5 reduction'!AV219),9))","v":0.999996683},{"$f":"VALUE(FIXED(EXP(AW$4*-1*'PM2.5 reduction'!AW219),9))","v":0.999995199},{"$f":"VALUE(FIXED(EXP(AX$4*-1*'PM2.5 reduction'!AX219),9))","v":0.99999689999999997},{"$f":"VALUE(FIXED(EXP(AY$4*-1*'PM2.5 reduction'!AY219),9))","v":0.999996098},{"$f":"VALUE(FIXED(EXP(AZ$4*-1*'PM2.5 reduction'!AZ219),9))","v":0.99999621800000005},{"$f":"VALUE(FIXED(EXP(BA$4*-1*'PM2.5 reduction'!BA219),9))","v":0.99999624799999998},{"$f":"VALUE(FIXED(EXP(BB$4*-1*'PM2.5 reduction'!BB219),9))","v":0.99999580399999999},{"$f":"VALUE(FIXED(EXP(BC$4*-1*'PM2.5 reduction'!BC219),9))","v":1}]
[null,"Female 40-44",{"$f":"VALUE(FIXED(EXP(C$4*-1*'PM2.5 reduction'!C220),9))","v":0.99999154099999998},{"$f":"VALUE(FIXED(EXP(D$4*-1*'PM2.5 reduction'!D220),9))","v":0.99999448499999999},{"$f":"VALUE(FIXED(EXP(E$4*-1*'PM2.5 reduction'!E220),9))","v":0.99999829900000003},{"$f":"VALUE(FIXED(EXP(F$4*-1*'PM2.5 reduction'!F220),9))","v":0.99999799599999994},{"$f":"VALUE(FIXED(EXP(G$4*-1*'PM2.5 reduction'!G220),9))","v":0.99999845700000001},{"$f":"VALUE(FIXED(EXP(H$4*-1*'PM2.5 reduction'!H220),9))","v":0.99999671800000001},{"$f":"VALUE(FIXED(EXP(I$4*-1*'PM2.5 reduction'!I220),9))","v":0.99999876600000004},{"$f":"VALUE(FIXED(EXP(J$4*-1*'PM2.5 reduction'!J220),9))","v":0.99999677399999998},{"$f":"VALUE(FIXED(EXP(K$4*-1*'PM2.5 reduction'!K220),9))","v":0.99999617699999999},{"$f":"VALUE(FIXED(EXP(L$4*-1*'PM2.5 reduction'!L220),9))","v":0.99999799199999995},{"$f":"VALUE(FIXED(EXP(M$4*-1*'PM2.5 reduction'!M220),9))","v":0.99999799199999995},{"$f":"VALUE(FIXED(EXP(N$4*-1*'PM2.5 reduction'!N220),9))","v":0.99999443300000002},{"$f":"VALUE(FIXED(EXP(O$4*-1*'PM2.5 reduction'!O220),9))","v":0.99999635499999995},{"$f":"VALUE(FIXED(EXP(P$4*-1*'PM2.5 reduction'!P220),9))","v":0.99999330900000005},{"$f":"VALUE(FIXED(EXP(Q$4*-1*'PM2.5 reduction'!Q220),9))","v":0.99999763399999997},{"$f":"VALUE(FIXED(EXP(R$4*-1*'PM2.5 reduction'!R220),9))","v":0.99999307800000004},{"$f":"VALUE(FIXED(EXP(S$4*-1*'PM2.5 reduction'!S220),9))","v":0.99999187700000003},{"$f":"VALUE(FIXED(EXP(T$4*-1*'PM2.5 reduction'!T220),9))","v":0.99998904499999997},{"$f":"VALUE(FIXED(EXP(U$4*-1*'PM2.5 reduction'!U220),9))","v":1},{"$f":"VALUE(FIXED(EXP(V$4*-1*'PM2.5 reduction'!V220),9))","v":0.99999493800000006},{"$f":"VALUE(FIXED(EXP(W$4*-1*'PM2.5 reduction'!W220),9))","v":0.99999588500000003},{"$f":"VALUE(FIXED(EXP(X$4*-1*'PM2.5 reduction'!X220),9))","v":0.99999588500000003},{"$f":"VALUE(FIXED(EXP(Y$4*-1*'PM2.5 reduction'!Y220),9))","v":0.99999567099999997},{"$f":"VALUE(FIXED(EXP(Z$4*-1*'PM2.5 reduction'!Z220),9))","v":0.99998969000000004},{"$f":"VALUE(FIXED(EXP(AA$4*-1*'PM2.5 reduction'!AA220),9))","v":0.99999309199999997},{"$f":"VALUE(FIXED(EXP(AB$4*-1*'PM2.5 reduction'!AB220),9))","v":0.99999464999999998},{"$f":"VALUE(FIXED(EXP(AC$4*-1*'PM2.5 reduction'!AC220),9))","v":0.99999242899999996},{"$f":"VALUE(FIXED(EXP(AD$4*-1*'PM2.5 reduction'!AD220),9))","v":0.99999761600000003},{"$f":"VALUE(FIXED(EXP(AE$4*-1*'PM2.5 reduction'!AE220),9))","v":0.99999739099999996},{"$f":"VALUE(FIXED(EXP(AF$4*-1*'PM2.5 reduction'!AF220),9))","v":0.99999706899999996},{"$f":"VALUE(FIXED(EXP(AG$4*-1*'PM2.5 reduction'!AG220),9))","v":0.99999739099999996},{"$f":"VALUE(FIXED(EXP(AH$4*-1*'PM2.5 reduction'!AH220),9))","v":0.99999491600000001},{"$f":"VALUE(FIXED(EXP(AI$4*-1*'PM2.5 reduction'!AI220),9))","v":0.99999080100000004},{"$f":"VALUE(FIXED(EXP(AJ$4*-1*'PM2.5 reduction'!AJ220),9))","v":0.999995627},{"$f":"VALUE(FIXED(EXP(AK$4*-1*'PM2.5 reduction'!AK220),9))","v":0.99999812399999999},{"$f":"VALUE(FIXED(EXP(AL$4*-1*'PM2.5 reduction'!AL220),9))","v":0.99999740999999998},{"$f":"VALUE(FIXED(EXP(AM$4*-1*'PM2.5 reduction'!AM220),9))","v":0.99999424699999995},{"$f":"VALUE(FIXED(EXP(AN$4*-1*'PM2.5 reduction'!AN220),9))","v":1},{"$f":"VALUE(FIXED(EXP(AO$4*-1*'PM2.5 reduction'!AO220),9))","v":1},{"$f":"VALUE(FIXED(EXP(AP$4*-1*'PM2.5 reduction'!AP220),9))","v":0.99999745500000004},{"$f":"VALUE(FIXED(EXP(AQ$4*-1*'PM2.5 reduction'!AQ220),9))","v":0.99999495100000002},{"$f":"VALUE(FIXED(EXP(AR$4*-1*'PM2.5 reduction'!AR220),9))","v":0.99999351999999997},{"$f":"VALUE(FIXED(EXP(AS$4*-1*'PM2.5 reduction'!AS220),9))","v":0.99999876600000004},{"$f":"VALUE(FIXED(EXP(AT$4*-1*'PM2.5 reduction'!AT220),9))","v":1},{"$f":"VALUE(FIXED(EXP(AU$4*-1*'PM2.5 reduction'!AU220),9))","v":1},{"$f":"VALUE(FIXED(EXP(AV$4*-1*'PM2.5 reduction'!AV220),9))","v":0.99999666300000001},{"$f":"VALUE(FIXED(EXP(AW$4*-1*'PM2.5 reduction'!AW220),9))","v":0.99999538799999999},{"$f":"VALUE(FIXED(EXP(AX$4*-1*'PM2.5 reduction'!AX220),9))","v":0.99999690100000005},{"$f":"VALUE(FIXED(EXP(AY$4*-1*'PM2.5 reduction'!AY220),9))","v":0.99999620499999997},{"$f":"VALUE(FIXED(EXP(AZ$4*-1*'PM2.5 reduction'!AZ220),9))","v":0.99999655499999995},{"$f":"VALUE(FIXED(EXP(BA$4*-1*'PM2.5 reduction'!BA220),9))","v":0.99999651199999995},{"$f":"VALUE(FIXED(EXP(BB$4*-1*'PM2.5 reduction'!BB220),9))","v":0.99999584100000005},{"$f":"VALUE(FIXED(EXP(BC$4*-1*'PM2.5 reduction'!BC220),9))","v":1}]
[null,"Female 45-49",{"$f":"VALUE(FIXED(EXP(C$4*-1*'PM2.5 reduction'!C221),9))","v":0.99999171600000003},{"$f":"VALUE(FIXED(EXP(D$4*-1*'PM2.5 reduction'!D221),9))","v":0.99999469699999999},{"$f":"VALUE(FIXED(EXP(E$4*-1*'PM2.5 reduction'!E221),9))","v":0.99999826400000003},{"$f":"VALUE(FIXED(EXP(F$4*-1*'PM2.5 reduction'!F221),9))","v":0.99999799300000003},{"$f":"VALUE(FIXED(EXP(G$4*-1*'PM2.5 reduction'!G221),9))","v":0.99999843700000002},{"$f":"VALUE(FIXED(EXP(H$4*-1*'PM2.5 reduction'!H221),9))","v":0.99999667599999997},{"$f":"VALUE(FIXED(EXP(I$4*-1*'PM2.5 reduction'!I221),9))","v":0.99999876700000001},{"$f":"VALUE(FIXED(EXP(J$4*-1*'PM2.5 reduction'!J221),9))","v":0.99999676800000004},{"$f":"VALUE(FIXED(EXP(K$4*-1*'PM2.5 reduction'!K221),9))","v":0.99999639399999996},{"$f":"VALUE(FIXED(EXP(L$4*-1*'PM2.5 reduction'!L221),9))","v":0.999997947},{"$f":"VALUE(FIXED(EXP(M$4*-1*'PM2.5 reduction'!M221),9))","v":0.999997947},{"$f":"VALUE(FIXED(EXP(N$4*-1*'PM2.5 reduction'!N221),9))","v":0.99999452099999997},{"$f":"VALUE(FIXED(EXP(O$4*-1*'PM2.5 reduction'!O221),9))","v":0.99999634000000004},{"$f":"VALUE(FIXED(EXP(P$4*-1*'PM2.5 reduction'!P221),9))","v":0.99999328799999998},{"$f":"VALUE(FIXED(EXP(Q$4*-1*'PM2.5 reduction'!Q221),9))","v":0.99999766300000004},{"$f":"VALUE(FIXED(EXP(R$4*-1*'PM2.5 reduction'!R221),9))","v":0.99999319799999997},{"$f":"VALUE(FIXED(EXP(S$4*-1*'PM2.5 reduction'!S221),9))","v":0.999992192},{"$f":"VALUE(FIXED(EXP(T$4*-1*'PM2.5 reduction'!T221),9))","v":0.99998929700000005},{"$f":"VALUE(FIXED(EXP(U$4*-1*'PM2.5 reduction'!U221),9))","v":1},{"$f":"VALUE(FIXED(EXP(V$4*-1*'PM2.5 reduction'!V221),9))","v":0.99999489799999997},{"$f":"VALUE(FIXED(EXP(W$4*-1*'PM2.5 reduction'!W221),9))","v":0.99999599299999997},{"$f":"VALUE(FIXED(EXP(X$4*-1*'PM2.5 reduction'!X221),9))","v":0.99999599299999997},{"$f":"VALUE(FIXED(EXP(Y$4*-1*'PM2.5 reduction'!Y221),9))","v":0.99999571399999998},{"$f":"VALUE(FIXED(EXP(Z$4*-1*'PM2.5 reduction'!Z221),9))","v":0.99998994699999999},{"$f":"VALUE(FIXED(EXP(AA$4*-1*'PM2.5 reduction'!AA221),9))","v":0.99999325800000005},{"$f":"VALUE(FIXED(EXP(AB$4*-1*'PM2.5 reduction'!AB221),9))","v":0.99999485499999996},{"$f":"VALUE(FIXED(EXP(AC$4*-1*'PM2.5 reduction'!AC221),9))","v":0.99999265900000001},{"$f":"VALUE(FIXED(EXP(AD$4*-1*'PM2.5 reduction'!AD221),9))","v":0.99999769900000002},{"$f":"VALUE(FIXED(EXP(AE$4*-1*'PM2.5 reduction'!AE221),9))","v":0.999997468},{"$f":"VALUE(FIXED(EXP(AF$4*-1*'PM2.5 reduction'!AF221),9))","v":0.99999719300000001},{"$f":"VALUE(FIXED(EXP(AG$4*-1*'PM2.5 reduction'!AG221),9))","v":0.999997468},{"$f":"VALUE(FIXED(EXP(AH$4*-1*'PM2.5 reduction'!AH221),9))","v":0.99999488800000003},{"$f":"VALUE(FIXED(EXP(AI$4*-1*'PM2.5 reduction'!AI221),9))","v":0.99999115900000002},{"$f":"VALUE(FIXED(EXP(AJ$4*-1*'PM2.5 reduction'!AJ221),9))","v":0.99999549499999996},{"$f":"VALUE(FIXED(EXP(AK$4*-1*'PM2.5 reduction'!AK221),9))","v":0.99999811299999997},{"$f":"VALUE(FIXED(EXP(AL$4*-1*'PM2.5 reduction'!AL221),9))","v":0.99999743200000002},{"$f":"VALUE(FIXED(EXP(AM$4*-1*'PM2.5 reduction'!AM221),9))","v":0.99999436100000005},{"$f":"VALUE(FIXED(EXP(AN$4*-1*'PM2.5 reduction'!AN221),9))","v":1},{"$f":"VALUE(FIXED(EXP(AO$4*-1*'PM2.5 reduction'!AO221),9))","v":1},{"$f":"VALUE(FIXED(EXP(AP$4*-1*'PM2.5 reduction'!AP221),9))","v":0.99999739899999995},{"$f":"VALUE(FIXED(EXP(AQ$4*-1*'PM2.5 reduction'!AQ221),9))","v":0.99999497699999995},{"$f":"VALUE(FIXED(EXP(AR$4*-1*'PM2.5 reduction'!AR221),9))","v":0.99999375400000001},{"$f":"VALUE(FIXED(EXP(AS$4*-1*'PM2.5 reduction'!AS221),9))","v":0.99999876700000001},{"$f":"VALUE(FIXED(EXP(AT$4*-1*'PM2.5 reduction'!AT221),9))","v":1},{"$f":"VALUE(FIXED(EXP(AU$4*-1*'PM2.5 reduction'!AU221),9))","v":1},{"$f":"VALUE(FIXED(EXP(AV$4*-1*'PM2.5 reduction'!AV221),9))","v":0.99999654299999996},{"$f":"VALUE(FIXED(EXP(AW$4*-1*'PM2.5 reduction'!AW221),9))","v":0.99999532400000002},{"$f":"VALUE(FIXED(EXP(AX$4*-1*'PM2.5 reduction'!AX221),9))","v":0.99999683500000003},{"$f":"VALUE(FIXED(EXP(AY$4*-1*'PM2.5 reduction'!AY221),9))","v":0.999996251},{"$f":"VALUE(FIXED(EXP(AZ$4*-1*'PM2.5 reduction'!AZ221),9))","v":0.99999650399999995},{"$f":"VALUE(FIXED(EXP(BA$4*-1*'PM2.5 reduction'!BA221),9))","v":0.99999634500000001},{"$f":"VALUE(FIXED(EXP(BB$4*-1*'PM2.5 reduction'!BB221),9))","v":0.99999596800000001},{"$f":"VALUE(FIXED(EXP(BC$4*-1*'PM2.5 reduction'!BC221),9))","v":1}]
[null,"Female 50-54",{"$f":"VALUE(FIXED(EXP(C$4*-1*'PM2.5 reduction'!C222),9))","v":0.99999168100000002},{"$f":"VALUE(FIXED(EXP(D$4*-1*'PM2.5 reduction'!D222),9))","v":0.99999443700000001},{"$f":"VALUE(FIXED(EXP(E$4*-1*'PM2.5 reduction'!E222),9))","v":0.99999820800000006},{"$f":"VALUE(FIXED(EXP(F$4*-1*'PM2.5 reduction'!F222),9))","v":0.99999795700000005},{"$f":"VALUE(FIXED(EXP(G$4*-1*'PM2.5 reduction'!G222),9))","v":0.99999842900000002},{"$f":"VALUE(FIXED(EXP(H$4*-1*'PM2.5 reduction'!H222),9))","v":0.99999671099999998},{"$f":"VALUE(FIXED(EXP(I$4*-1*'PM2.5 reduction'!I222),9))","v":0.99999877599999998},{"$f":"VALUE(FIXED(EXP(J$4*-1*'PM2.5 reduction'!J222),9))","v":0.99999703399999995},{"$f":"VALUE(FIXED(EXP(K$4*-1*'PM2.5 reduction'!K222),9))","v":0.99999642399999999},{"$f":"VALUE(FIXED(EXP(L$4*-1*'PM2.5 reduction'!L222),9))","v":0.99999792600000004},{"$f":"VALUE(FIXED(EXP(M$4*-1*'PM2.5 reduction'!M222),9))","v":0.99999792600000004},{"$f":"VALUE(FIXED(EXP(N$4*-1*'PM2.5 reduction'!N222),9))","v":0.99999434200000004},{"$f":"VALUE(FIXED(EXP(O$4*-1*'PM2.5 reduction'!O222),9))","v":0.999996369},{"$f":"VALUE(FIXED(EXP(P$4*-1*'PM2.5 reduction'!P222),9))","v":0.99999323799999995},{"$f":"VALUE(FIXED(EXP(Q$4*-1*'PM2.5 reduction'!Q222),9))","v":0.999997786},{"$f":"VALUE(FIXED(EXP(R$4*-1*'PM2.5 reduction'!R222),9))","v":0.99999314699999997},{"$f":"VALUE(FIXED(EXP(S$4*-1*'PM2.5 reduction'!S222),9))","v":0.99999216499999999},{"$f":"VALUE(FIXED(EXP(T$4*-1*'PM2.5 reduction'!T222),9))","v":0.99998947299999996},{"$f":"VALUE(FIXED(EXP(U$4*-1*'PM2.5 reduction'!U222),9))","v":1},{"$f":"VALUE(FIXED(EXP(V$4*-1*'PM2.5 reduction'!V222),9))","v":0.99999476600000003},{"$f":"VALUE(FIXED(EXP(W$4*-1*'PM2.5 reduction'!W222),9))","v":0.99999600200000005},{"$f":"VALUE(FIXED(EXP(X$4*-1*'PM2.5 reduction'!X222),9))","v":0.99999600200000005},{"$f":"VALUE(FIXED(EXP(Y$4*-1*'PM2.5 reduction'!Y222),9))","v":0.99999576800000001},{"$f":"VALUE(FIXED(EXP(Z$4*-1*'PM2.5 reduction'!Z222),9))","v":0.99998999},{"$f":"VALUE(FIXED(EXP(AA$4*-1*'PM2.5 reduction'!AA222),9))","v":0.99999323500000004},{"$f":"VALUE(FIXED(EXP(AB$4*-1*'PM2.5 reduction'!AB222),9))","v":0.999994618},{"$f":"VALUE(FIXED(EXP(AC$4*-1*'PM2.5 reduction'!AC222),9))","v":0.99999266799999997},{"$f":"VALUE(FIXED(EXP(AD$4*-1*'PM2.5 reduction'!AD222),9))","v":0.99999760800000004},{"$f":"VALUE(FIXED(EXP(AE$4*-1*'PM2.5 reduction'!AE222),9))","v":0.99999735999999995},{"$f":"VALUE(FIXED(EXP(AF$4*-1*'PM2.5 reduction'!AF222),9))","v":0.99999700199999997},{"$f":"VALUE(FIXED(EXP(AG$4*-1*'PM2.5 reduction'!AG222),9))","v":0.99999735999999995},{"$f":"VALUE(FIXED(EXP(AH$4*-1*'PM2.5 reduction'!AH222),9))","v":0.99999476499999995},{"$f":"VALUE(FIXED(EXP(AI$4*-1*'PM2.5 reduction'!AI222),9))","v":0.99999119400000003},{"$f":"VALUE(FIXED(EXP(AJ$4*-1*'PM2.5 reduction'!AJ222),9))","v":0.99999559100000002},{"$f":"VALUE(FIXED(EXP(AK$4*-1*'PM2.5 reduction'!AK222),9))","v":0.99999827900000005},{"$f":"VALUE(FIXED(EXP(AL$4*-1*'PM2.5 reduction'!AL222),9))","v":0.99999746700000003},{"$f":"VALUE(FIXED(EXP(AM$4*-1*'PM2.5 reduction'!AM222),9))","v":0.99999414499999995},{"$f":"VALUE(FIXED(EXP(AN$4*-1*'PM2.5 reduction'!AN222),9))","v":1},{"$f":"VALUE(FIXED(EXP(AO$4*-1*'PM2.5 reduction'!AO222),9))","v":1},{"$f":"VALUE(FIXED(EXP(AP$4*-1*'PM2.5 reduction'!AP222),9))","v":0.999997527},{"$f":"VALUE(FIXED(EXP(AQ$4*-1*'PM2.5 reduction'!AQ222),9))","v":0.99999488800000003},{"$f":"VALUE(FIXED(EXP(AR$4*-1*'PM2.5 reduction'!AR222),9))","v":0.99999374900000004},{"$f":"VALUE(FIXED(EXP(AS$4*-1*'PM2.5 reduction'!AS222),9))","v":0.99999877599999998},{"$f":"VALUE(FIXED(EXP(AT$4*-1*'PM2.5 reduction'!AT222),9))","v":1},{"$f":"VALUE(FIXED(EXP(AU$4*-1*'PM2.5 reduction'!AU222),9))","v":1},{"$f":"VALUE(FIXED(EXP(AV$4*-1*'PM2.5 reduction'!AV222),9))","v":0.99999661500000003},{"$f":"VALUE(FIXED(EXP(AW$4*-1*'PM2.5 reduction'!AW222),9))","v":0.99999521899999999},{"$f":"VALUE(FIXED(EXP(AX$4*-1*'PM2.5 reduction'!AX222),9))","v":0.99999714100000003},{"$f":"VALUE(FIXED(EXP(AY$4*-1*'PM2.5 reduction'!AY222),9))","v":0.99999625700000006},{"$f":"VALUE(FIXED(EXP(AZ$4*-1*'PM2.5 reduction'!AZ222),9))","v":0.99999646799999997},{"$f":"VALUE(FIXED(EXP(BA$4*-1*'PM2.5 reduction'!BA222),9))","v":0.99999645199999998},{"$f":"VALUE(FIXED(EXP(BB$4*-1*'PM2.5 reduction'!BB222),9))","v":0.99999603400000003},{"$f":"VALUE(FIXED(EXP(BC$4*-1*'PM2.5 reduction'!BC222),9))","v":1}]
[null,"Female 55-59",{"$f":"VALUE(FIXED(EXP(C$4*-1*'PM2.5 reduction'!C223),9))","v":0.99999178},{"$f":"VALUE(FIXED(EXP(D$4*-1*'PM2.5 reduction'!D223),9))","v":0.99999450300000003},{"$f":"VALUE(FIXED(EXP(E$4*-1*'PM2.5 reduction'!E223),9))","v":0.99999822599999999},{"$f":"VALUE(FIXED(EXP(F$4*-1*'PM2.5 reduction'!F223),9))","v":0.99999790200000005},{"$f":"VALUE(FIXED(EXP(G$4*-1*'PM2.5 reduction'!G223),9))","v":0.999998422},{"$f":"VALUE(FIXED(EXP(H$4*-1*'PM2.5 reduction'!H223),9))","v":0.99999668399999997},{"$f":"VALUE(FIXED(EXP(I$4*-1*'PM2.5 reduction'!I223),9))","v":0.99999877999999998},{"$f":"VALUE(FIXED(EXP(J$4*-1*'PM2.5 reduction'!J223),9))","v":0.99999689899999999},{"$f":"VALUE(FIXED(EXP(K$4*-1*'PM2.5 reduction'!K223),9))","v":0.99999654900000001},{"$f":"VALUE(FIXED(EXP(L$4*-1*'PM2.5 reduction'!L223),9))","v":0.99999797000000001},{"$f":"VALUE(FIXED(EXP(M$4*-1*'PM2.5 reduction'!M223),9))","v":0.99999797000000001},{"$f":"VALUE(FIXED(EXP(N$4*-1*'PM2.5 reduction'!N223),9))","v":0.99999442299999997},{"$f":"VALUE(FIXED(EXP(O$4*-1*'PM2.5 reduction'!O223),9))","v":0.99999625400000003},{"$f":"VALUE(FIXED(EXP(P$4*-1*'PM2.5 reduction'!P223),9))","v":0.99999329000000003},{"$f":"VALUE(FIXED(EXP(Q$4*-1*'PM2.5 reduction'!Q223),9))","v":0.99999774299999999},{"$f":"VALUE(FIXED(EXP(R$4*-1*'PM2.5 reduction'!R223),9))","v":0.99999312799999995},{"$f":"VALUE(FIXED(EXP(S$4*-1*'PM2.5 reduction'!S223),9))","v":0.99999214599999997},{"$f":"VALUE(FIXED(EXP(T$4*-1*'PM2.5 reduction'!T223),9))","v":0.99998955899999997},{"$f":"VALUE(FIXED(EXP(U$4*-1*'PM2.5 reduction'!U223),9))","v":1},{"$f":"VALUE(FIXED(EXP(V$4*-1*'PM2.5 reduction'!V223),9))","v":0.99999479199999997},{"$f":"VALUE(FIXED(EXP(W$4*-1*'PM2.5 reduction'!W223),9))","v":0.99999615399999997},{"$f":"VALUE(FIXED(EXP(X$4*-1*'PM2.5 reduction'!X223),9))","v":0.99999615399999997},{"$f":"VALUE(FIXED(EXP(Y$4*-1*'PM2.5 reduction'!Y223),9))","v":0.99999575699999999},{"$f":"VALUE(FIXED(EXP(Z$4*-1*'PM2.5 reduction'!Z223),9))","v":0.99999011100000001},{"$f":"VALUE(FIXED(EXP(AA$4*-1*'PM2.5 reduction'!AA223),9))","v":0.99999324199999995},{"$f":"VALUE(FIXED(EXP(AB$4*-1*'PM2.5 reduction'!AB223),9))","v":0.99999468599999997},{"$f":"VALUE(FIXED(EXP(AC$4*-1*'PM2.5 reduction'!AC223),9))","v":0.99999271999999995},{"$f":"VALUE(FIXED(EXP(AD$4*-1*'PM2.5 reduction'!AD223),9))","v":0.99999769999999999},{"$f":"VALUE(FIXED(EXP(AE$4*-1*'PM2.5 reduction'!AE223),9))","v":0.99999746199999995},{"$f":"VALUE(FIXED(EXP(AF$4*-1*'PM2.5 reduction'!AF223),9))","v":0.99999694500000003},{"$f":"VALUE(FIXED(EXP(AG$4*-1*'PM2.5 reduction'!AG223),9))","v":0.99999746199999995},{"$f":"VALUE(FIXED(EXP(AH$4*-1*'PM2.5 reduction'!AH223),9))","v":0.99999470800000001},{"$f":"VALUE(FIXED(EXP(AI$4*-1*'PM2.5 reduction'!AI223),9))","v":0.99999107899999995},{"$f":"VALUE(FIXED(EXP(AJ$4*-1*'PM2.5 reduction'!AJ223),9))","v":0.99999585700000004},{"$f":"VALUE(FIXED(EXP(AK$4*-1*'PM2.5 reduction'!AK223),9))","v":0.99999813900000001},{"$f":"VALUE(FIXED(EXP(AL$4*-1*'PM2.5 reduction'!AL223),9))","v":0.99999760000000004},{"$f":"VALUE(FIXED(EXP(AM$4*-1*'PM2.5 reduction'!AM223),9))","v":0.99999418500000004},{"$f":"VALUE(FIXED(EXP(AN$4*-1*'PM2.5 reduction'!AN223),9))","v":1},{"$f":"VALUE(FIXED(EXP(AO$4*-1*'PM2.5 reduction'!AO223),9))","v":1},{"$f":"VALUE(FIXED(EXP(AP$4*-1*'PM2.5 reduction'!AP223),9))","v":0.99999743699999999},{"$f":"VALUE(FIXED(EXP(AQ$4*-1*'PM2.5 reduction'!AQ223),9))","v":0.99999505499999997},{"$f":"VALUE(FIXED(EXP(AR$4*-1*'PM2.5 reduction'!AR223),9))","v":0.99999378000000005},{"$f":"VALUE(FIXED(EXP(AS$4*-1*'PM2.5 reduction'!AS223),9))","v":0.99999877999999998},{"$f":"VALUE(FIXED(EXP(AT$4*-1*'PM2.5 reduction'!AT223),9))","v":1},{"$f":"VALUE(FIXED(EXP(AU$4*-1*'PM2.5 reduction'!AU223),9))","v":1},{"$f":"VALUE(FIXED(EXP(AV$4*-1*'PM2.5 reduction'!AV223),9))","v":0.99999662499999997},{"$f":"VALUE(FIXED(EXP(AW$4*-1*'PM2.5 reduction'!AW223),9))","v":0.99999509200000003},{"$f":"VALUE(FIXED(EXP(AX$4*-1*'PM2.5 reduction'!AX223),9))","v":0.99999695700000002},{"$f":"VALUE(FIXED(EXP(AY$4*-1*'PM2.5 reduction'!AY223),9))","v":0.99999630100000003},{"$f":"VALUE(FIXED(EXP(AZ$4*-1*'PM2.5 reduction'!AZ223),9))","v":0.99999642},{"$f":"VALUE(FIXED(EXP(BA$4*-1*'PM2.5 reduction'!BA223),9))","v":0.99999648500000005},{"$f":"VALUE(FIXED(EXP(BB$4*-1*'PM2.5 reduction'!BB223),9))","v":0.99999610800000005},{"$f":"VALUE(FIXED(EXP(BC$4*-1*'PM2.5 reduction'!BC223),9))","v":1}]
[null,"Female 60-64",{"$f":"VALUE(FIXED(EXP(C$4*-1*'PM2.5 reduction'!C224),9))","v":0.99999183599999997},{"$f":"VALUE(FIXED(EXP(D$4*-1*'PM2.5 reduction'!D224),9))","v":0.99999473999999999},{"$f":"VALUE(FIXED(EXP(E$4*-1*'PM2.5 reduction'!E224),9))","v":0.999998206},{"$f":"VALUE(FIXED(EXP(F$4*-1*'PM2.5 reduction'!F224),9))","v":0.99999798500000003},{"$f":"VALUE(FIXED(EXP(G$4*-1*'PM2.5 reduction'!G224),9))","v":0.99999841700000003},{"$f":"VALUE(FIXED(EXP(H$4*-1*'PM2.5 reduction'!H224),9))","v":0.99999670900000004},{"$f":"VALUE(FIXED(EXP(I$4*-1*'PM2.5 reduction'!I224),9))","v":0.99999875000000005},{"$f":"VALUE(FIXED(EXP(J$4*-1*'PM2.5 reduction'!J224),9))","v":0.99999681600000001},{"$f":"VALUE(FIXED(EXP(K$4*-1*'PM2.5 reduction'!K224),9))","v":0.99999669999999996},{"$f":"VALUE(FIXED(EXP(L$4*-1*'PM2.5 reduction'!L224),9))","v":0.99999799899999997},{"$f":"VALUE(FIXED(EXP(M$4*-1*'PM2.5 reduction'!M224),9))","v":0.99999799899999997},{"$f":"VALUE(FIXED(EXP(N$4*-1*'PM2.5 reduction'!N224),9))","v":0.999994418},{"$f":"VALUE(FIXED(EXP(O$4*-1*'PM2.5 reduction'!O224),9))","v":0.99999645000000004},{"$f":"VALUE(FIXED(EXP(P$4*-1*'PM2.5 reduction'!P224),9))","v":0.99999327000000005},{"$f":"VALUE(FIXED(EXP(Q$4*-1*'PM2.5 reduction'!Q224),9))","v":0.99999803399999998},{"$f":"VALUE(FIXED(EXP(R$4*-1*'PM2.5 reduction'!R224),9))","v":0.99999309800000002},{"$f":"VALUE(FIXED(EXP(S$4*-1*'PM2.5 reduction'!S224),9))","v":0.99999233300000001},{"$f":"VALUE(FIXED(EXP(T$4*-1*'PM2.5 reduction'!T224),9))","v":0.999989664},{"$f":"VALUE(FIXED(EXP(U$4*-1*'PM2.5 reduction'!U224),9))","v":1},{"$f":"VALUE(FIXED(EXP(V$4*-1*'PM2.5 reduction'!V224),9))","v":0.99999480399999996},{"$f":"VALUE(FIXED(EXP(W$4*-1*'PM2.5 reduction'!W224),9))","v":0.99999632999999999},{"$f":"VALUE(FIXED(EXP(X$4*-1*'PM2.5 reduction'!X224),9))","v":0.99999632999999999},{"$f":"VALUE(FIXED(EXP(Y$4*-1*'PM2.5 reduction'!Y224),9))","v":0.99999577399999995},{"$f":"VALUE(FIXED(EXP(Z$4*-1*'PM2.5 reduction'!Z224),9))","v":0.99999000999999998},{"$f":"VALUE(FIXED(EXP(AA$4*-1*'PM2.5 reduction'!AA224),9))","v":0.99999317499999996},{"$f":"VALUE(FIXED(EXP(AB$4*-1*'PM2.5 reduction'!AB224),9))","v":0.99999497400000004},{"$f":"VALUE(FIXED(EXP(AC$4*-1*'PM2.5 reduction'!AC224),9))","v":0.99999266099999995},{"$f":"VALUE(FIXED(EXP(AD$4*-1*'PM2.5 reduction'!AD224),9))","v":0.99999770099999996},{"$f":"VALUE(FIXED(EXP(AE$4*-1*'PM2.5 reduction'!AE224),9))","v":0.99999749999999998},{"$f":"VALUE(FIXED(EXP(AF$4*-1*'PM2.5 reduction'!AF224),9))","v":0.999996946},{"$f":"VALUE(FIXED(EXP(AG$4*-1*'PM2.5 reduction'!AG224),9))","v":0.99999749999999998},{"$f":"VALUE(FIXED(EXP(AH$4*-1*'PM2.5 reduction'!AH224),9))","v":0.99999469399999996},{"$f":"VALUE(FIXED(EXP(AI$4*-1*'PM2.5 reduction'!AI224),9))","v":0.99999120200000002},{"$f":"VALUE(FIXED(EXP(AJ$4*-1*'PM2.5 reduction'!AJ224),9))","v":0.99999590199999999},{"$f":"VALUE(FIXED(EXP(AK$4*-1*'PM2.5 reduction'!AK224),9))","v":0.99999824900000001},{"$f":"VALUE(FIXED(EXP(AL$4*-1*'PM2.5 reduction'!AL224),9))","v":0.99999761799999998},{"$f":"VALUE(FIXED(EXP(AM$4*-1*'PM2.5 reduction'!AM224),9))","v":0.99999415599999997},{"$f":"VALUE(FIXED(EXP(AN$4*-1*'PM2.5 reduction'!AN224),9))","v":1},{"$f":"VALUE(FIXED(EXP(AO$4*-1*'PM2.5 reduction'!AO224),9))","v":1},{"$f":"VALUE(FIXED(EXP(AP$4*-1*'PM2.5 reduction'!AP224),9))","v":0.99999755300000004},{"$f":"VALUE(FIXED(EXP(AQ$4*-1*'PM2.5 reduction'!AQ224),9))","v":0.99999496700000001},{"$f":"VALUE(FIXED(EXP(AR$4*-1*'PM2.5 reduction'!AR224),9))","v":0.999993884},{"$f":"VALUE(FIXED(EXP(AS$4*-1*'PM2.5 reduction'!AS224),9))","v":0.99999875000000005},{"$f":"VALUE(FIXED(EXP(AT$4*-1*'PM2.5 reduction'!AT224),9))","v":1},{"$f":"VALUE(FIXED(EXP(AU$4*-1*'PM2.5 reduction'!AU224),9))","v":1},{"$f":"VALUE(FIXED(EXP(AV$4*-1*'PM2.5 reduction'!AV224),9))","v":0.99999656599999998},{"$f":"VALUE(FIXED(EXP(AW$4*-1*'PM2.5 reduction'!AW224),9))","v":0.99999503999999995},{"$f":"VALUE(FIXED(EXP(AX$4*-1*'PM2.5 reduction'!AX224),9))","v":0.99999684},{"$f":"VALUE(FIXED(EXP(AY$4*-1*'PM2.5 reduction'!AY224),9))","v":0.99999651599999995},{"$f":"VALUE(FIXED(EXP(AZ$4*-1*'PM2.5 reduction'!AZ224),9))","v":0.99999667199999998},{"$f":"VALUE(FIXED(EXP(BA$4*-1*'PM2.5 reduction'!BA224),9))","v":0.99999640700000003},{"$f":"VALUE(FIXED(EXP(BB$4*-1*'PM2.5 reduction'!BB224),9))","v":0.99999624200000004},{"$f":"VALUE(FIXED(EXP(BC$4*-1*'PM2.5 reduction'!BC224),9))","v":1}]
[null,"Female 65-69",{"$f":"VALUE(FIXED(EXP(C$4*-1*'PM2.5 reduction'!C225),9))","v":0.99999178700000002},{"$f":"VALUE(FIXED(EXP(D$4*-1*'PM2.5 reduction'!D225),9))","v":0.99999458600000002},{"$f":"VALUE(FIXED(EXP(E$4*-1*'PM2.5 reduction'!E225),9))","v":0.99999818399999996},{"$f":"VALUE(FIXED(EXP(F$4*-1*'PM2.5 reduction'!F225),9))","v":0.99999776299999998},{"$f":"VALUE(FIXED(EXP(G$4*-1*'PM2.5 reduction'!G225),9))","v":0.999998414},{"$f":"VALUE(FIXED(EXP(H$4*-1*'PM2.5 reduction'!H225),9))","v":0.999996738},{"$f":"VALUE(FIXED(EXP(I$4*-1*'PM2.5 reduction'!I225),9))","v":0.99999875900000001},{"$f":"VALUE(FIXED(EXP(J$4*-1*'PM2.5 reduction'!J225),9))","v":0.99999688499999995},{"$f":"VALUE(FIXED(EXP(K$4*-1*'PM2.5 reduction'!K225),9))","v":0.99999695600000005},{"$f":"VALUE(FIXED(EXP(L$4*-1*'PM2.5 reduction'!L225),9))","v":0.99999805200000003},{"$f":"VALUE(FIXED(EXP(M$4*-1*'PM2.5 reduction'!M225),9))","v":0.99999805200000003},{"$f":"VALUE(FIXED(EXP(N$4*-1*'PM2.5 reduction'!N225),9))","v":0.99999439700000003},{"$f":"VALUE(FIXED(EXP(O$4*-1*'PM2.5 reduction'!O225),9))","v":0.99999655499999995},{"$f":"VALUE(FIXED(EXP(P$4*-1*'PM2.5 reduction'!P225),9))","v":0.99999326200000005},{"$f":"VALUE(FIXED(EXP(Q$4*-1*'PM2.5 reduction'!Q225),9))","v":0.99999808999999995},{"$f":"VALUE(FIXED(EXP(R$4*-1*'PM2.5 reduction'!R225),9))","v":0.999993091},{"$f":"VALUE(FIXED(EXP(S$4*-1*'PM2.5 reduction'!S225),9))","v":0.99999243900000001},{"$f":"VALUE(FIXED(EXP(T$4*-1*'PM2.5 reduction'!T225),9))","v":0.99998984400000002},{"$f":"VALUE(FIXED(EXP(U$4*-1*'PM2.5 reduction'!U225),9))","v":1},{"$f":"VALUE(FIXED(EXP(V$4*-1*'PM2.5 reduction'!V225),9))","v":0.99999464900000001},{"$f":"VALUE(FIXED(EXP(W$4*-1*'PM2.5 reduction'!W225),9))","v":0.99999629899999998},{"$f":"VALUE(FIXED(EXP(X$4*-1*'PM2.5 reduction'!X225),9))","v":0.99999629899999998},{"$f":"VALUE(FIXED(EXP(Y$4*-1*'PM2.5 reduction'!Y225),9))","v":0.99999578899999997},{"$f":"VALUE(FIXED(EXP(Z$4*-1*'PM2.5 reduction'!Z225),9))","v":0.99998990799999998},{"$f":"VALUE(FIXED(EXP(AA$4*-1*'PM2.5 reduction'!AA225),9))","v":0.99999324599999995},{"$f":"VALUE(FIXED(EXP(AB$4*-1*'PM2.5 reduction'!AB225),9))","v":0.99999486199999998},{"$f":"VALUE(FIXED(EXP(AC$4*-1*'PM2.5 reduction'!AC225),9))","v":0.99999274999999999},{"$f":"VALUE(FIXED(EXP(AD$4*-1*'PM2.5 reduction'!AD225),9))","v":0.99999773199999997},{"$f":"VALUE(FIXED(EXP(AE$4*-1*'PM2.5 reduction'!AE225),9))","v":0.99999746300000003},{"$f":"VALUE(FIXED(EXP(AF$4*-1*'PM2.5 reduction'!AF225),9))","v":0.99999724499999998},{"$f":"VALUE(FIXED(EXP(AG$4*-1*'PM2.5 reduction'!AG225),9))","v":0.99999746300000003},{"$f":"VALUE(FIXED(EXP(AH$4*-1*'PM2.5 reduction'!AH225),9))","v":0.99999476899999995},{"$f":"VALUE(FIXED(EXP(AI$4*-1*'PM2.5 reduction'!AI225),9))","v":0.99999123899999998},{"$f":"VALUE(FIXED(EXP(AJ$4*-1*'PM2.5 reduction'!AJ225),9))","v":0.99999594300000005},{"$f":"VALUE(FIXED(EXP(AK$4*-1*'PM2.5 reduction'!AK225),9))","v":0.99999815400000003},{"$f":"VALUE(FIXED(EXP(AL$4*-1*'PM2.5 reduction'!AL225),9))","v":0.99999763600000002},{"$f":"VALUE(FIXED(EXP(AM$4*-1*'PM2.5 reduction'!AM225),9))","v":0.99999417499999999},{"$f":"VALUE(FIXED(EXP(AN$4*-1*'PM2.5 reduction'!AN225),9))","v":1},{"$f":"VALUE(FIXED(EXP(AO$4*-1*'PM2.5 reduction'!AO225),9))","v":1},{"$f":"VALUE(FIXED(EXP(AP$4*-1*'PM2.5 reduction'!AP225),9))","v":0.999997688},{"$f":"VALUE(FIXED(EXP(AQ$4*-1*'PM2.5 reduction'!AQ225),9))","v":0.99999506699999996},{"$f":"VALUE(FIXED(EXP(AR$4*-1*'PM2.5 reduction'!AR225),9))","v":0.99999397000000001},{"$f":"VALUE(FIXED(EXP(AS$4*-1*'PM2.5 reduction'!AS225),9))","v":0.99999875900000001},{"$f":"VALUE(FIXED(EXP(AT$4*-1*'PM2.5 reduction'!AT225),9))","v":1},{"$f":"VALUE(FIXED(EXP(AU$4*-1*'PM2.5 reduction'!AU225),9))","v":1},{"$f":"VALUE(FIXED(EXP(AV$4*-1*'PM2.5 reduction'!AV225),9))","v":0.99999660700000004},{"$f":"VALUE(FIXED(EXP(AW$4*-1*'PM2.5 reduction'!AW225),9))","v":0.99999515800000005},{"$f":"VALUE(FIXED(EXP(AX$4*-1*'PM2.5 reduction'!AX225),9))","v":0.99999687100000001},{"$f":"VALUE(FIXED(EXP(AY$4*-1*'PM2.5 reduction'!AY225),9))","v":0.99999652100000003},{"$f":"VALUE(FIXED(EXP(AZ$4*-1*'PM2.5 reduction'!AZ225),9))","v":0.99999669700000005},{"$f":"VALUE(FIXED(EXP(BA$4*-1*'PM2.5 reduction'!BA225),9))","v":0.99999638599999996},{"$f":"VALUE(FIXED(EXP(BB$4*-1*'PM2.5 reduction'!BB225),9))","v":0.99999637699999999},{"$f":"VALUE(FIXED(EXP(BC$4*-1*'PM2.5 reduction'!BC225),9))","v":1}]
[null,"Female 70-74",{"$f":"VALUE(FIXED(EXP(C$4*-1*'PM2.5 reduction'!C226),9))","v":0.99999176700000003},{"$f":"VALUE(FIXED(EXP(D$4*-1*'PM2.5 reduction'!D226),9))","v":0.99999460900000003},{"$f":"VALUE(FIXED(EXP(E$4*-1*'PM2.5 reduction'!E226),9))","v":0.99999824999999998},{"$f":"VALUE(FIXED(EXP(F$4*-1*'PM2.5 reduction'!F226),9))","v":0.99999774799999996},{"$f":"VALUE(FIXED(EXP(G$4*-1*'PM2.5 reduction'!G226),9))","v":0.99999841300000003},{"$f":"VALUE(FIXED(EXP(H$4*-1*'PM2.5 reduction'!H226),9))","v":0.99999676999999998},{"$f":"VALUE(FIXED(EXP(I$4*-1*'PM2.5 reduction'!I226),9))","v":0.99999876600000004},{"$f":"VALUE(FIXED(EXP(J$4*-1*'PM2.5 reduction'!J226),9))","v":0.99999669199999996},{"$f":"VALUE(FIXED(EXP(K$4*-1*'PM2.5 reduction'!K226),9))","v":0.99999673099999997},{"$f":"VALUE(FIXED(EXP(L$4*-1*'PM2.5 reduction'!L226),9))","v":0.99999805100000005},{"$f":"VALUE(FIXED(EXP(M$4*-1*'PM2.5 reduction'!M226),9))","v":0.99999805100000005},{"$f":"VALUE(FIXED(EXP(N$4*-1*'PM2.5 reduction'!N226),9))","v":0.99999445399999998},{"$f":"VALUE(FIXED(EXP(O$4*-1*'PM2.5 reduction'!O226),9))","v":0.99999649599999996},{"$f":"VALUE(FIXED(EXP(P$4*-1*'PM2.5 reduction'!P226),9))","v":0.99999319600000003},{"$f":"VALUE(FIXED(EXP(Q$4*-1*'PM2.5 reduction'!Q226),9))","v":0.99999844400000004},{"$f":"VALUE(FIXED(EXP(R$4*-1*'PM2.5 reduction'!R226),9))","v":0.99999308899999995},{"$f":"VALUE(FIXED(EXP(S$4*-1*'PM2.5 reduction'!S226),9))","v":0.999992506},{"$f":"VALUE(FIXED(EXP(T$4*-1*'PM2.5 reduction'!T226),9))","v":0.99998988099999997},{"$f":"VALUE(FIXED(EXP(U$4*-1*'PM2.5 reduction'!U226),9))","v":1},{"$f":"VALUE(FIXED(EXP(V$4*-1*'PM2.5 reduction'!V226),9))","v":0.99999439700000003},{"$f":"VALUE(FIXED(EXP(W$4*-1*'PM2.5 reduction'!W226),9))","v":0.99999633600000004},{"$f":"VALUE(FIXED(EXP(X$4*-1*'PM2.5 reduction'!X226),9))","v":0.99999633600000004},{"$f":"VALUE(FIXED(EXP(Y$4*-1*'PM2.5 reduction'!Y226),9))","v":0.99999562600000003},{"$f":"VALUE(FIXED(EXP(Z$4*-1*'PM2.5 reduction'!Z226),9))","v":0.99999009400000005},{"$f":"VALUE(FIXED(EXP(AA$4*-1*'PM2.5 reduction'!AA226),9))","v":0.99999334399999995},{"$f":"VALUE(FIXED(EXP(AB$4*-1*'PM2.5 reduction'!AB226),9))","v":0.99999491799999995},{"$f":"VALUE(FIXED(EXP(AC$4*-1*'PM2.5 reduction'!AC226),9))","v":0.99999289599999996},{"$f":"VALUE(FIXED(EXP(AD$4*-1*'PM2.5 reduction'!AD226),9))","v":0.99999772300000001},{"$f":"VALUE(FIXED(EXP(AE$4*-1*'PM2.5 reduction'!AE226),9))","v":0.99999744499999998},{"$f":"VALUE(FIXED(EXP(AF$4*-1*'PM2.5 reduction'!AF226),9))","v":0.99999717399999999},{"$f":"VALUE(FIXED(EXP(AG$4*-1*'PM2.5 reduction'!AG226),9))","v":0.99999744499999998},{"$f":"VALUE(FIXED(EXP(AH$4*-1*'PM2.5 reduction'!AH226),9))","v":0.99999475299999996},{"$f":"VALUE(FIXED(EXP(AI$4*-1*'PM2.5 reduction'!AI226),9))","v":0.99999133600000001},{"$f":"VALUE(FIXED(EXP(AJ$4*-1*'PM2.5 reduction'!AJ226),9))","v":0.999995941},{"$f":"VALUE(FIXED(EXP(AK$4*-1*'PM2.5 reduction'!AK226),9))","v":0.999998202},{"$f":"VALUE(FIXED(EXP(AL$4*-1*'PM2.5 reduction'!AL226),9))","v":0.99999772899999995},{"$f":"VALUE(FIXED(EXP(AM$4*-1*'PM2.5 reduction'!AM226),9))","v":0.99999417800000001},{"$f":"VALUE(FIXED(EXP(AN$4*-1*'PM2.5 reduction'!AN226),9))","v":1},{"$f":"VALUE(FIXED(EXP(AO$4*-1*'PM2.5 reduction'!AO226),9))","v":1},{"$f":"VALUE(FIXED(EXP(AP$4*-1*'PM2.5 reduction'!AP226),9))","v":0.99999769000000005},{"$f":"VALUE(FIXED(EXP(AQ$4*-1*'PM2.5 reduction'!AQ226),9))","v":0.99999495299999996},{"$f":"VALUE(FIXED(EXP(AR$4*-1*'PM2.5 reduction'!AR226),9))","v":0.99999404000000003},{"$f":"VALUE(FIXED(EXP(AS$4*-1*'PM2.5 reduction'!AS226),9))","v":0.99999876600000004},{"$f":"VALUE(FIXED(EXP(AT$4*-1*'PM2.5 reduction'!AT226),9))","v":1},{"$f":"VALUE(FIXED(EXP(AU$4*-1*'PM2.5 reduction'!AU226),9))","v":1},{"$f":"VALUE(FIXED(EXP(AV$4*-1*'PM2.5 reduction'!AV226),9))","v":0.99999664899999996},{"$f":"VALUE(FIXED(EXP(AW$4*-1*'PM2.5 reduction'!AW226),9))","v":0.99999508400000003},{"$f":"VALUE(FIXED(EXP(AX$4*-1*'PM2.5 reduction'!AX226),9))","v":0.99999668600000002},{"$f":"VALUE(FIXED(EXP(AY$4*-1*'PM2.5 reduction'!AY226),9))","v":0.99999653499999996},{"$f":"VALUE(FIXED(EXP(AZ$4*-1*'PM2.5 reduction'!AZ226),9))","v":0.99999668200000003},{"$f":"VALUE(FIXED(EXP(BA$4*-1*'PM2.5 reduction'!BA226),9))","v":0.99999621999999999},{"$f":"VALUE(FIXED(EXP(BB$4*-1*'PM2.5 reduction'!BB226),9))","v":0.99999647400000002},{"$f":"VALUE(FIXED(EXP(BC$4*-1*'PM2.5 reduction'!BC226),9))","v":1}]
[null,"Female 75-79",{"$f":"VALUE(FIXED(EXP(C$4*-1*'PM2.5 reduction'!C227),9))","v":0.99999186399999995},{"$f":"VALUE(FIXED(EXP(D$4*-1*'PM2.5 reduction'!D227),9))","v":0.99999458500000005},{"$f":"VALUE(FIXED(EXP(E$4*-1*'PM2.5 reduction'!E227),9))","v":0.99999822199999999},{"$f":"VALUE(FIXED(EXP(F$4*-1*'PM2.5 reduction'!F227),9))","v":0.99999775700000004},{"$f":"VALUE(FIXED(EXP(G$4*-1*'PM2.5 reduction'!G227),9))","v":0.99999845300000001},{"$f":"VALUE(FIXED(EXP(H$4*-1*'PM2.5 reduction'!H227),9))","v":0.99999675899999996},{"$f":"VALUE(FIXED(EXP(I$4*-1*'PM2.5 reduction'!I227),9))","v":0.99999875100000002},{"$f":"VALUE(FIXED(EXP(J$4*-1*'PM2.5 reduction'!J227),9))","v":0.99999680099999999},{"$f":"VALUE(FIXED(EXP(K$4*-1*'PM2.5 reduction'!K227),9))","v":0.99999697200000004},{"$f":"VALUE(FIXED(EXP(L$4*-1*'PM2.5 reduction'!L227),9))","v":0.99999805200000003},{"$f":"VALUE(FIXED(EXP(M$4*-1*'PM2.5 reduction'!M227),9))","v":0.99999805200000003},{"$f":"VALUE(FIXED(EXP(N$4*-1*'PM2.5 reduction'!N227),9))","v":0.99999440699999997},{"$f":"VALUE(FIXED(EXP(O$4*-1*'PM2.5 reduction'!O227),9))","v":0.99999644600000004},{"$f":"VALUE(FIXED(EXP(P$4*-1*'PM2.5 reduction'!P227),9))","v":0.99999311099999999},{"$f":"VALUE(FIXED(EXP(Q$4*-1*'PM2.5 reduction'!Q227),9))","v":0.99999846699999995},{"$f":"VALUE(FIXED(EXP(R$4*-1*'PM2.5 reduction'!R227),9))","v":0.99999300800000002},{"$f":"VALUE(FIXED(EXP(S$4*-1*'PM2.5 reduction'!S227),9))","v":0.99999236499999999},{"$f":"VALUE(FIXED(EXP(T$4*-1*'PM2.5 reduction'!T227),9))","v":0.99998988700000002},{"$f":"VALUE(FIXED(EXP(U$4*-1*'PM2.5 reduction'!U227),9))","v":1},{"$f":"VALUE(FIXED(EXP(V$4*-1*'PM2.5 reduction'!V227),9))","v":0.99999435000000003},{"$f":"VALUE(FIXED(EXP(W$4*-1*'PM2.5 reduction'!W227),9))","v":0.99999648100000005},{"$f":"VALUE(FIXED(EXP(X$4*-1*'PM2.5 reduction'!X227),9))","v":0.99999648100000005},{"$f":"VALUE(FIXED(EXP(Y$4*-1*'PM2.5 reduction'!Y227),9))","v":0.99999573900000005},{"$f":"VALUE(FIXED(EXP(Z$4*-1*'PM2.5 reduction'!Z227),9))","v":0.99999019499999997},{"$f":"VALUE(FIXED(EXP(AA$4*-1*'PM2.5 reduction'!AA227),9))","v":0.99999319499999995},{"$f":"VALUE(FIXED(EXP(AB$4*-1*'PM2.5 reduction'!AB227),9))","v":0.99999487300000001},{"$f":"VALUE(FIXED(EXP(AC$4*-1*'PM2.5 reduction'!AC227),9))","v":0.99999276000000004},{"$f":"VALUE(FIXED(EXP(AD$4*-1*'PM2.5 reduction'!AD227),9))","v":0.99999754100000005},{"$f":"VALUE(FIXED(EXP(AE$4*-1*'PM2.5 reduction'!AE227),9))","v":0.999997256},{"$f":"VALUE(FIXED(EXP(AF$4*-1*'PM2.5 reduction'!AF227),9))","v":0.99999731700000005},{"$f":"VALUE(FIXED(EXP(AG$4*-1*'PM2.5 reduction'!AG227),9))","v":0.999997256},{"$f":"VALUE(FIXED(EXP(AH$4*-1*'PM2.5 reduction'!AH227),9))","v":0.99999470000000001},{"$f":"VALUE(FIXED(EXP(AI$4*-1*'PM2.5 reduction'!AI227),9))","v":0.99999120100000005},{"$f":"VALUE(FIXED(EXP(AJ$4*-1*'PM2.5 reduction'!AJ227),9))","v":0.99999637299999999},{"$f":"VALUE(FIXED(EXP(AK$4*-1*'PM2.5 reduction'!AK227),9))","v":0.99999846299999995},{"$f":"VALUE(FIXED(EXP(AL$4*-1*'PM2.5 reduction'!AL227),9))","v":0.99999773999999997},{"$f":"VALUE(FIXED(EXP(AM$4*-1*'PM2.5 reduction'!AM227),9))","v":0.99999407799999995},{"$f":"VALUE(FIXED(EXP(AN$4*-1*'PM2.5 reduction'!AN227),9))","v":1},{"$f":"VALUE(FIXED(EXP(AO$4*-1*'PM2.5 reduction'!AO227),9))","v":1},{"$f":"VALUE(FIXED(EXP(AP$4*-1*'PM2.5 reduction'!AP227),9))","v":0.99999768600000005},{"$f":"VALUE(FIXED(EXP(AQ$4*-1*'PM2.5 reduction'!AQ227),9))","v":0.99999482399999995},{"$f":"VALUE(FIXED(EXP(AR$4*-1*'PM2.5 reduction'!AR227),9))","v":0.999993927},{"$f":"VALUE(FIXED(EXP(AS$4*-1*'PM2.5 reduction'!AS227),9))","v":0.99999875100000002},{"$f":"VALUE(FIXED(EXP(AT$4*-1*'PM2.5 reduction'!AT227),9))","v":1},{"$f":"VALUE(FIXED(EXP(AU$4*-1*'PM2.5 reduction'!AU227),9))","v":1},{"$f":"VALUE(FIXED(EXP(AV$4*-1*'PM2.5 reduction'!AV227),9))","v":0.99999667699999994},{"$f":"VALUE(FIXED(EXP(AW$4*-1*'PM2.5 reduction'!AW227),9))","v":0.99999505899999996},{"$f":"VALUE(FIXED(EXP(AX$4*-1*'PM2.5 reduction'!AX227),9))","v":0.99999677799999998},{"$f":"VALUE(FIXED(EXP(AY$4*-1*'PM2.5 reduction'!AY227),9))","v":0.99999659699999999},{"$f":"VALUE(FIXED(EXP(AZ$4*-1*'PM2.5 reduction'!AZ227),9))","v":0.99999667299999995},{"$f":"VALUE(FIXED(EXP(BA$4*-1*'PM2.5 reduction'!BA227),9))","v":0.99999570000000004},{"$f":"VALUE(FIXED(EXP(BB$4*-1*'PM2.5 reduction'!BB227),9))","v":0.99999640499999998},{"$f":"VALUE(FIXED(EXP(BC$4*-1*'PM2.5 reduction'!BC227),9))","v":1}]
[null,"Female 80-84",{"$f":"VALUE(FIXED(EXP(C$4*-1*'PM2.5 reduction'!C228),9))","v":0.99999149700000001},{"$f":"VALUE(FIXED(EXP(D$4*-1*'PM2.5 reduction'!D228),9))","v":0.99999417099999999},{"$f":"VALUE(FIXED(EXP(E$4*-1*'PM2.5 reduction'!E228),9))","v":0.99999817499999999},{"$f":"VALUE(FIXED(EXP(F$4*-1*'PM2.5 reduction'!F228),9))","v":0.99999777099999998},{"$f":"VALUE(FIXED(EXP(G$4*-1*'PM2.5 reduction'!G228),9))","v":0.99999840200000001},{"$f":"VALUE(FIXED(EXP(H$4*-1*'PM2.5 reduction'!H228),9))","v":0.99999669000000002},{"$f":"VALUE(FIXED(EXP(I$4*-1*'PM2.5 reduction'!I228),9))","v":0.99999875100000002},{"$f":"VALUE(FIXED(EXP(J$4*-1*'PM2.5 reduction'!J228),9))","v":0.99999616300000005},{"$f":"VALUE(FIXED(EXP(K$4*-1*'PM2.5 reduction'!K228),9))","v":0.999996251},{"$f":"VALUE(FIXED(EXP(L$4*-1*'PM2.5 reduction'!L228),9))","v":0.99999811299999997},{"$f":"VALUE(FIXED(EXP(M$4*-1*'PM2.5 reduction'!M228),9))","v":0.99999811299999997},{"$f":"VALUE(FIXED(EXP(N$4*-1*'PM2.5 reduction'!N228),9))","v":0.99999428899999998},{"$f":"VALUE(FIXED(EXP(O$4*-1*'PM2.5 reduction'!O228),9))","v":0.99999643900000001},{"$f":"VALUE(FIXED(EXP(P$4*-1*'PM2.5 reduction'!P228),9))","v":0.99999309300000006},{"$f":"VALUE(FIXED(EXP(Q$4*-1*'PM2.5 reduction'!Q228),9))","v":0.99999860500000004},{"$f":"VALUE(FIXED(EXP(R$4*-1*'PM2.5 reduction'!R228),9))","v":0.99999285699999996},{"$f":"VALUE(FIXED(EXP(S$4*-1*'PM2.5 reduction'!S228),9))","v":0.99999214999999997},{"$f":"VALUE(FIXED(EXP(T$4*-1*'PM2.5 reduction'!T228),9))","v":0.99999004199999997},{"$f":"VALUE(FIXED(EXP(U$4*-1*'PM2.5 reduction'!U228),9))","v":1},{"$f":"VALUE(FIXED(EXP(V$4*-1*'PM2.5 reduction'!V228),9))","v":0.99999386099999998},{"$f":"VALUE(FIXED(EXP(W$4*-1*'PM2.5 reduction'!W228),9))","v":0.99999658400000002},{"$f":"VALUE(FIXED(EXP(X$4*-1*'PM2.5 reduction'!X228),9))","v":0.99999658400000002},{"$f":"VALUE(FIXED(EXP(Y$4*-1*'PM2.5 reduction'!Y228),9))","v":0.99999516899999996},{"$f":"VALUE(FIXED(EXP(Z$4*-1*'PM2.5 reduction'!Z228),9))","v":0.99999000900000001},{"$f":"VALUE(FIXED(EXP(AA$4*-1*'PM2.5 reduction'!AA228),9))","v":0.99999300599999996},{"$f":"VALUE(FIXED(EXP(AB$4*-1*'PM2.5 reduction'!AB228),9))","v":0.99999447600000002},{"$f":"VALUE(FIXED(EXP(AC$4*-1*'PM2.5 reduction'!AC228),9))","v":0.99999255099999995},{"$f":"VALUE(FIXED(EXP(AD$4*-1*'PM2.5 reduction'!AD228),9))","v":0.99999762599999997},{"$f":"VALUE(FIXED(EXP(AE$4*-1*'PM2.5 reduction'!AE228),9))","v":0.999997409},{"$f":"VALUE(FIXED(EXP(AF$4*-1*'PM2.5 reduction'!AF228),9))","v":0.99999701600000002},{"$f":"VALUE(FIXED(EXP(AG$4*-1*'PM2.5 reduction'!AG228),9))","v":0.999997409},{"$f":"VALUE(FIXED(EXP(AH$4*-1*'PM2.5 reduction'!AH228),9))","v":0.99999470300000004},{"$f":"VALUE(FIXED(EXP(AI$4*-1*'PM2.5 reduction'!AI228),9))","v":0.999991081},{"$f":"VALUE(FIXED(EXP(AJ$4*-1*'PM2.5 reduction'!AJ228),9))","v":0.99999580899999996},{"$f":"VALUE(FIXED(EXP(AK$4*-1*'PM2.5 reduction'!AK228),9))","v":0.99999850400000001},{"$f":"VALUE(FIXED(EXP(AL$4*-1*'PM2.5 reduction'!AL228),9))","v":0.99999780400000005},{"$f":"VALUE(FIXED(EXP(AM$4*-1*'PM2.5 reduction'!AM228),9))","v":0.99999423300000001},{"$f":"VALUE(FIXED(EXP(AN$4*-1*'PM2.5 reduction'!AN228),9))","v":1},{"$f":"VALUE(FIXED(EXP(AO$4*-1*'PM2.5 reduction'!AO228),9))","v":1},{"$f":"VALUE(FIXED(EXP(AP$4*-1*'PM2.5 reduction'!AP228),9))","v":0.99999771199999998},{"$f":"VALUE(FIXED(EXP(AQ$4*-1*'PM2.5 reduction'!AQ228),9))","v":0.99999465200000004},{"$f":"VALUE(FIXED(EXP(AR$4*-1*'PM2.5 reduction'!AR228),9))","v":0.99999371199999998},{"$f":"VALUE(FIXED(EXP(AS$4*-1*'PM2.5 reduction'!AS228),9))","v":0.99999875100000002},{"$f":"VALUE(FIXED(EXP(AT$4*-1*'PM2.5 reduction'!AT228),9))","v":1},{"$f":"VALUE(FIXED(EXP(AU$4*-1*'PM2.5 reduction'!AU228),9))","v":1},{"$f":"VALUE(FIXED(EXP(AV$4*-1*'PM2.5 reduction'!AV228),9))","v":0.99999651000000001},{"$f":"VALUE(FIXED(EXP(AW$4*-1*'PM2.5 reduction'!AW228),9))","v":0.99999494},{"$f":"VALUE(FIXED(EXP(AX$4*-1*'PM2.5 reduction'!AX228),9))","v":0.99999615399999997},{"$f":"VALUE(FIXED(EXP(AY$4*-1*'PM2.5 reduction'!AY228),9))","v":0.99999663999999999},{"$f":"VALUE(FIXED(EXP(AZ$4*-1*'PM2.5 reduction'!AZ228),9))","v":0.99999667199999998},{"$f":"VALUE(FIXED(EXP(BA$4*-1*'PM2.5 reduction'!BA228),9))","v":0.99999630299999998},{"$f":"VALUE(FIXED(EXP(BB$4*-1*'PM2.5 reduction'!BB228),9))","v":0.99999653099999997},{"$f":"VALUE(FIXED(EXP(BC$4*-1*'PM2.5 reduction'!BC228),9))","v":1}]
[null,"Female 85-89",{"$f":"VALUE(FIXED(EXP(C$4*-1*'PM2.5 reduction'!C229),9))","v":0.99999168400000005},{"$f":"VALUE(FIXED(EXP(D$4*-1*'PM2.5 reduction'!D229),9))","v":0.99999407500000004},{"$f":"VALUE(FIXED(EXP(E$4*-1*'PM2.5 reduction'!E229),9))","v":0.99999836600000003},{"$f":"VALUE(FIXED(EXP(F$4*-1*'PM2.5 reduction'!F229),9))","v":0.99999766999999995},{"$f":"VALUE(FIXED(EXP(G$4*-1*'PM2.5 reduction'!G229),9))","v":0.99999836900000005},{"$f":"VALUE(FIXED(EXP(H$4*-1*'PM2.5 reduction'!H229),9))","v":0.99999652699999997},{"$f":"VALUE(FIXED(EXP(I$4*-1*'PM2.5 reduction'!I229),9))","v":0.99999874099999997},{"$f":"VALUE(FIXED(EXP(J$4*-1*'PM2.5 reduction'!J229),9))","v":0.99999564600000002},{"$f":"VALUE(FIXED(EXP(K$4*-1*'PM2.5 reduction'!K229),9))","v":0.99999639600000001},{"$f":"VALUE(FIXED(EXP(L$4*-1*'PM2.5 reduction'!L229),9))","v":0.99999804699999995},{"$f":"VALUE(FIXED(EXP(M$4*-1*'PM2.5 reduction'!M229),9))","v":0.99999804699999995},{"$f":"VALUE(FIXED(EXP(N$4*-1*'PM2.5 reduction'!N229),9))","v":0.99999444000000004},{"$f":"VALUE(FIXED(EXP(O$4*-1*'PM2.5 reduction'!O229),9))","v":0.99999590800000004},{"$f":"VALUE(FIXED(EXP(P$4*-1*'PM2.5 reduction'!P229),9))","v":0.99999307599999998},{"$f":"VALUE(FIXED(EXP(Q$4*-1*'PM2.5 reduction'!Q229),9))","v":0.99999859300000005},{"$f":"VALUE(FIXED(EXP(R$4*-1*'PM2.5 reduction'!R229),9))","v":0.99999276800000003},{"$f":"VALUE(FIXED(EXP(S$4*-1*'PM2.5 reduction'!S229),9))","v":0.99999186299999998},{"$f":"VALUE(FIXED(EXP(T$4*-1*'PM2.5 reduction'!T229),9))","v":0.99998993199999997},{"$f":"VALUE(FIXED(EXP(U$4*-1*'PM2.5 reduction'!U229),9))","v":1},{"$f":"VALUE(FIXED(EXP(V$4*-1*'PM2.5 reduction'!V229),9))","v":0.99999415999999997},{"$f":"VALUE(FIXED(EXP(W$4*-1*'PM2.5 reduction'!W229),9))","v":0.99999675899999996},{"$f":"VALUE(FIXED(EXP(X$4*-1*'PM2.5 reduction'!X229),9))","v":0.99999675899999996},{"$f":"VALUE(FIXED(EXP(Y$4*-1*'PM2.5 reduction'!Y229),9))","v":0.99999501599999996},{"$f":"VALUE(FIXED(EXP(Z$4*-1*'PM2.5 reduction'!Z229),9))","v":0.99999015899999999},{"$f":"VALUE(FIXED(EXP(AA$4*-1*'PM2.5 reduction'!AA229),9))","v":0.99999283999999999},{"$f":"VALUE(FIXED(EXP(AB$4*-1*'PM2.5 reduction'!AB229),9))","v":0.99999437899999999},{"$f":"VALUE(FIXED(EXP(AC$4*-1*'PM2.5 reduction'!AC229),9))","v":0.99999249400000001},{"$f":"VALUE(FIXED(EXP(AD$4*-1*'PM2.5 reduction'!AD229),9))","v":0.99999749599999999},{"$f":"VALUE(FIXED(EXP(AE$4*-1*'PM2.5 reduction'!AE229),9))","v":0.99999721600000002},{"$f":"VALUE(FIXED(EXP(AF$4*-1*'PM2.5 reduction'!AF229),9))","v":0.99999755300000004},{"$f":"VALUE(FIXED(EXP(AG$4*-1*'PM2.5 reduction'!AG229),9))","v":0.99999721600000002},{"$f":"VALUE(FIXED(EXP(AH$4*-1*'PM2.5 reduction'!AH229),9))","v":0.99999451900000003},{"$f":"VALUE(FIXED(EXP(AI$4*-1*'PM2.5 reduction'!AI229),9))","v":0.99999088899999999},{"$f":"VALUE(FIXED(EXP(AJ$4*-1*'PM2.5 reduction'!AJ229),9))","v":0.99999474099999996},{"$f":"VALUE(FIXED(EXP(AK$4*-1*'PM2.5 reduction'!AK229),9))","v":0.99999824999999998},{"$f":"VALUE(FIXED(EXP(AL$4*-1*'PM2.5 reduction'!AL229),9))","v":0.99999807600000001},{"$f":"VALUE(FIXED(EXP(AM$4*-1*'PM2.5 reduction'!AM229),9))","v":0.99999389100000002},{"$f":"VALUE(FIXED(EXP(AN$4*-1*'PM2.5 reduction'!AN229),9))","v":1},{"$f":"VALUE(FIXED(EXP(AO$4*-1*'PM2.5 reduction'!AO229),9))","v":1},{"$f":"VALUE(FIXED(EXP(AP$4*-1*'PM2.5 reduction'!AP229),9))","v":0.99999752500000005},{"$f":"VALUE(FIXED(EXP(AQ$4*-1*'PM2.5 reduction'!AQ229),9))","v":0.99999456099999995},{"$f":"VALUE(FIXED(EXP(AR$4*-1*'PM2.5 reduction'!AR229),9))","v":0.99999342700000005},{"$f":"VALUE(FIXED(EXP(AS$4*-1*'PM2.5 reduction'!AS229),9))","v":0.99999874099999997},{"$f":"VALUE(FIXED(EXP(AT$4*-1*'PM2.5 reduction'!AT229),9))","v":1},{"$f":"VALUE(FIXED(EXP(AU$4*-1*'PM2.5 reduction'!AU229),9))","v":1},{"$f":"VALUE(FIXED(EXP(AV$4*-1*'PM2.5 reduction'!AV229),9))","v":0.99999649800000001},{"$f":"VALUE(FIXED(EXP(AW$4*-1*'PM2.5 reduction'!AW229),9))","v":0.99999477999999997},{"$f":"VALUE(FIXED(EXP(AX$4*-1*'PM2.5 reduction'!AX229),9))","v":0.99999557900000002},{"$f":"VALUE(FIXED(EXP(AY$4*-1*'PM2.5 reduction'!AY229),9))","v":0.99999663900000002},{"$f":"VALUE(FIXED(EXP(AZ$4*-1*'PM2.5 reduction'!AZ229),9))","v":0.99999656599999998},{"$f":"VALUE(FIXED(EXP(BA$4*-1*'PM2.5 reduction'!BA229),9))","v":0.99999621999999999},{"$f":"VALUE(FIXED(EXP(BB$4*-1*'PM2.5 reduction'!BB229),9))","v":0.99999671400000001},{"$f":"VALUE(FIXED(EXP(BC$4*-1*'PM2.5 reduction'!BC229),9))","v":1}]
[null,"Female 90+",{"$f":"VALUE(FIXED(EXP(C$4*-1*'PM2.5 reduction'!C230),9))","v":0.99999151600000002},{"$f":"VALUE(FIXED(EXP(D$4*-1*'PM2.5 reduction'!D230),9))","v":0.999993927},{"$f":"VALUE(FIXED(EXP(E$4*-1*'PM2.5 reduction'!E230),9))","v":0.99999822199999999},{"$f":"VALUE(FIXED(EXP(F$4*-1*'PM2.5 reduction'!F230),9))","v":0.99999754900000004},{"$f":"VALUE(FIXED(EXP(G$4*-1*'PM2.5 reduction'!G230),9))","v":0.99999831699999997},{"$f":"VALUE(FIXED(EXP(H$4*-1*'PM2.5 reduction'!H230),9))","v":0.99999612900000001},{"$f":"VALUE(FIXED(EXP(I$4*-1*'PM2.5 reduction'!I230),9))","v":0.99999879300000005},{"$f":"VALUE(FIXED(EXP(J$4*-1*'PM2.5 reduction'!J230),9))","v":0.999995364},{"$f":"VALUE(FIXED(EXP(K$4*-1*'PM2.5 reduction'!K230),9))","v":0.99999640400000001},{"$f":"VALUE(FIXED(EXP(L$4*-1*'PM2.5 reduction'!L230),9))","v":0.99999803399999998},{"$f":"VALUE(FIXED(EXP(M$4*-1*'PM2.5 reduction'!M230),9))","v":0.99999803399999998},{"$f":"VALUE(FIXED(EXP(N$4*-1*'PM2.5 reduction'!N230),9))","v":0.99999434099999995},{"$f":"VALUE(FIXED(EXP(O$4*-1*'PM2.5 reduction'!O230),9))","v":0.99999466100000001},{"$f":"VALUE(FIXED(EXP(P$4*-1*'PM2.5 reduction'!P230),9))","v":0.99999298400000003},{"$f":"VALUE(FIXED(EXP(Q$4*-1*'PM2.5 reduction'!Q230),9))","v":0.99999866400000004},{"$f":"VALUE(FIXED(EXP(R$4*-1*'PM2.5 reduction'!R230),9))","v":0.99999296800000004},{"$f":"VALUE(FIXED(EXP(S$4*-1*'PM2.5 reduction'!S230),9))","v":0.99999194800000002},{"$f":"VALUE(FIXED(EXP(T$4*-1*'PM2.5 reduction'!T230),9))","v":0.99998991699999995},{"$f":"VALUE(FIXED(EXP(U$4*-1*'PM2.5 reduction'!U230),9))","v":1},{"$f":"VALUE(FIXED(EXP(V$4*-1*'PM2.5 reduction'!V230),9))","v":0.99999390399999999},{"$f":"VALUE(FIXED(EXP(W$4*-1*'PM2.5 reduction'!W230),9))","v":0.99999689199999997},{"$f":"VALUE(FIXED(EXP(X$4*-1*'PM2.5 reduction'!X230),9))","v":0.99999689199999997},{"$f":"VALUE(FIXED(EXP(Y$4*-1*'PM2.5 reduction'!Y230),9))","v":0.99999462800000005},{"$f":"VALUE(FIXED(EXP(Z$4*-1*'PM2.5 reduction'!Z230),9))","v":0.99998978800000005},{"$f":"VALUE(FIXED(EXP(AA$4*-1*'PM2.5 reduction'!AA230),9))","v":0.99999273200000005},{"$f":"VALUE(FIXED(EXP(AB$4*-1*'PM2.5 reduction'!AB230),9))","v":0.99999426499999999},{"$f":"VALUE(FIXED(EXP(AC$4*-1*'PM2.5 reduction'!AC230),9))","v":0.99999234699999995},{"$f":"VALUE(FIXED(EXP(AD$4*-1*'PM2.5 reduction'!AD230),9))","v":0.99999728499999996},{"$f":"VALUE(FIXED(EXP(AE$4*-1*'PM2.5 reduction'!AE230),9))","v":0.99999679799999996},{"$f":"VALUE(FIXED(EXP(AF$4*-1*'PM2.5 reduction'!AF230),9))","v":0.99999759499999996},{"$f":"VALUE(FIXED(EXP(AG$4*-1*'PM2.5 reduction'!AG230),9))","v":0.99999679799999996},{"$f":"VALUE(FIXED(EXP(AH$4*-1*'PM2.5 reduction'!AH230),9))","v":0.99999497599999998},{"$f":"VALUE(FIXED(EXP(AI$4*-1*'PM2.5 reduction'!AI230),9))","v":0.99999074200000004},{"$f":"VALUE(FIXED(EXP(AJ$4*-1*'PM2.5 reduction'!AJ230),9))","v":0.99999531799999997},{"$f":"VALUE(FIXED(EXP(AK$4*-1*'PM2.5 reduction'!AK230),9))","v":0.99999857999999997},{"$f":"VALUE(FIXED(EXP(AL$4*-1*'PM2.5 reduction'!AL230),9))","v":0.99999814099999995},{"$f":"VALUE(FIXED(EXP(AM$4*-1*'PM2.5 reduction'!AM230),9))","v":0.99999502100000004},{"$f":"VALUE(FIXED(EXP(AN$4*-1*'PM2.5 reduction'!AN230),9))","v":1},{"$f":"VALUE(FIXED(EXP(AO$4*-1*'PM2.5 reduction'!AO230),9))","v":1},{"$f":"VALUE(FIXED(EXP(AP$4*-1*'PM2.5 reduction'!AP230),9))","v":0.99999745500000004},{"$f":"VALUE(FIXED(EXP(AQ$4*-1*'PM2.5 reduction'!AQ230),9))","v":0.99999427100000005},{"$f":"VALUE(FIXED(EXP(AR$4*-1*'PM2.5 reduction'!AR230),9))","v":0.99999337600000004},{"$f":"VALUE(FIXED(EXP(AS$4*-1*'PM2.5 reduction'!AS230),9))","v":0.99999879300000005},{"$f":"VALUE(FIXED(EXP(AT$4*-1*'PM2.5 reduction'!AT230),9))","v":1},{"$f":"VALUE(FIXED(EXP(AU$4*-1*'PM2.5 reduction'!AU230),9))","v":1},{"$f":"VALUE(FIXED(EXP(AV$4*-1*'PM2.5 reduction'!AV230),9))","v":0.99999622600000004},{"$f":"VALUE(FIXED(EXP(AW$4*-1*'PM2.5 reduction'!AW230),9))","v":0.99999495599999999},{"$f":"VALUE(FIXED(EXP(AX$4*-1*'PM2.5 reduction'!AX230),9))","v":0.99999528800000004},{"$f":"VALUE(FIXED(EXP(AY$4*-1*'PM2.5 reduction'!AY230),9))","v":0.99999679200000002},{"$f":"VALUE(FIXED(EXP(AZ$4*-1*'PM2.5 reduction'!AZ230),9))","v":0.99999671800000001},{"$f":"VALUE(FIXED(EXP(BA$4*-1*'PM2.5 reduction'!BA230),9))","v":0.99999531100000005},{"$f":"VALUE(FIXED(EXP(BB$4*-1*'PM2.5 reduction'!BB230),9))","v":0.99999685400000005},{"$f":"VALUE(FIXED(EXP(BC$4*-1*'PM2.5 reduction'!BC230),9))","v":1}]
[null,"Male 0-4",{"$f":"VALUE(FIXED(EXP(C$4*-1*'PM2.5 reduction'!C231),9))","v":0.99999153699999999},{"$f":"VALUE(FIXED(EXP(D$4*-1*'PM2.5 reduction'!D231),9))","v":0.99999434200000004},{"$f":"VALUE(FIXED(EXP(E$4*-1*'PM2.5 reduction'!E231),9))","v":0.99999830000000001},{"$f":"VALUE(FIXED(EXP(F$4*-1*'PM2.5 reduction'!F231),9))","v":0.99999812399999999},{"$f":"VALUE(FIXED(EXP(G$4*-1*'PM2.5 reduction'!G231),9))","v":0.99999847500000005},{"$f":"VALUE(FIXED(EXP(H$4*-1*'PM2.5 reduction'!H231),9))","v":0.99999686700000001},{"$f":"VALUE(FIXED(EXP(I$4*-1*'PM2.5 reduction'!I231),9))","v":0.99999874300000002},{"$f":"VALUE(FIXED(EXP(J$4*-1*'PM2.5 reduction'!J231),9))","v":0.99999669599999996},{"$f":"VALUE(FIXED(EXP(K$4*-1*'PM2.5 reduction'!K231),9))","v":0.99999619299999998},{"$f":"VALUE(FIXED(EXP(L$4*-1*'PM2.5 reduction'!L231),9))","v":0.99999792200000004},{"$f":"VALUE(FIXED(EXP(M$4*-1*'PM2.5 reduction'!M231),9))","v":0.99999792200000004},{"$f":"VALUE(FIXED(EXP(N$4*-1*'PM2.5 reduction'!N231),9))","v":0.99999432200000005},{"$f":"VALUE(FIXED(EXP(O$4*-1*'PM2.5 reduction'!O231),9))","v":0.99999663699999997},{"$f":"VALUE(FIXED(EXP(P$4*-1*'PM2.5 reduction'!P231),9))","v":0.99999331899999999},{"$f":"VALUE(FIXED(EXP(Q$4*-1*'PM2.5 reduction'!Q231),9))","v":0.99999751199999998},{"$f":"VALUE(FIXED(EXP(R$4*-1*'PM2.5 reduction'!R231),9))","v":0.99999302000000001},{"$f":"VALUE(FIXED(EXP(S$4*-1*'PM2.5 reduction'!S231),9))","v":0.99999190699999996},{"$f":"VALUE(FIXED(EXP(T$4*-1*'PM2.5 reduction'!T231),9))","v":0.99998936900000002},{"$f":"VALUE(FIXED(EXP(U$4*-1*'PM2.5 reduction'!U231),9))","v":1},{"$f":"VALUE(FIXED(EXP(V$4*-1*'PM2.5 reduction'!V231),9))","v":0.99999531100000005},{"$f":"VALUE(FIXED(EXP(W$4*-1*'PM2.5 reduction'!W231),9))","v":0.99999601000000005},{"$f":"VALUE(FIXED(EXP(X$4*-1*'PM2.5 reduction'!X231),9))","v":0.99999601000000005},{"$f":"VALUE(FIXED(EXP(Y$4*-1*'PM2.5 reduction'!Y231),9))","v":0.99999595500000005},{"$f":"VALUE(FIXED(EXP(Z$4*-1*'PM2.5 reduction'!Z231),9))","v":0.99998993300000005},{"$f":"VALUE(FIXED(EXP(AA$4*-1*'PM2.5 reduction'!AA231),9))","v":0.99999308899999995},{"$f":"VALUE(FIXED(EXP(AB$4*-1*'PM2.5 reduction'!AB231),9))","v":0.99999452700000002},{"$f":"VALUE(FIXED(EXP(AC$4*-1*'PM2.5 reduction'!AC231),9))","v":0.99999249199999996},{"$f":"VALUE(FIXED(EXP(AD$4*-1*'PM2.5 reduction'!AD231),9))","v":0.99999771800000004},{"$f":"VALUE(FIXED(EXP(AE$4*-1*'PM2.5 reduction'!AE231),9))","v":0.99999747500000002},{"$f":"VALUE(FIXED(EXP(AF$4*-1*'PM2.5 reduction'!AF231),9))","v":0.99999707800000004},{"$f":"VALUE(FIXED(EXP(AG$4*-1*'PM2.5 reduction'!AG231),9))","v":0.99999747500000002},{"$f":"VALUE(FIXED(EXP(AH$4*-1*'PM2.5 reduction'!AH231),9))","v":0.99999481800000001},{"$f":"VALUE(FIXED(EXP(AI$4*-1*'PM2.5 reduction'!AI231),9))","v":0.99999090700000004},{"$f":"VALUE(FIXED(EXP(AJ$4*-1*'PM2.5 reduction'!AJ231),9))","v":0.99999583700000005},{"$f":"VALUE(FIXED(EXP(AK$4*-1*'PM2.5 reduction'!AK231),9))","v":0.99999802100000001},{"$f":"VALUE(FIXED(EXP(AL$4*-1*'PM2.5 reduction'!AL231),9))","v":0.999997468},{"$f":"VALUE(FIXED(EXP(AM$4*-1*'PM2.5 reduction'!AM231),9))","v":0.99999412799999998},{"$f":"VALUE(FIXED(EXP(AN$4*-1*'PM2.5 reduction'!AN231),9))","v":1},{"$f":"VALUE(FIXED(EXP(AO$4*-1*'PM2.5 reduction'!AO231),9))","v":1},{"$f":"VALUE(FIXED(EXP(AP$4*-1*'PM2.5 reduction'!AP231),9))","v":0.99999729900000001},{"$f":"VALUE(FIXED(EXP(AQ$4*-1*'PM2.5 reduction'!AQ231),9))","v":0.999995046},{"$f":"VALUE(FIXED(EXP(AR$4*-1*'PM2.5 reduction'!AR231),9))","v":0.99999348799999999},{"$f":"VALUE(FIXED(EXP(AS$4*-1*'PM2.5 reduction'!AS231),9))","v":0.99999874300000002},{"$f":"VALUE(FIXED(EXP(AT$4*-1*'PM2.5 reduction'!AT231),9))","v":1},{"$f":"VALUE(FIXED(EXP(AU$4*-1*'PM2.5 reduction'!AU231),9))","v":1},{"$f":"VALUE(FIXED(EXP(AV$4*-1*'PM2.5 reduction'!AV231),9))","v":0.99999673600000005},{"$f":"VALUE(FIXED(EXP(AW$4*-1*'PM2.5 reduction'!AW231),9))","v":0.99999527600000004},{"$f":"VALUE(FIXED(EXP(AX$4*-1*'PM2.5 reduction'!AX231),9))","v":0.99999680599999996},{"$f":"VALUE(FIXED(EXP(AY$4*-1*'PM2.5 reduction'!AY231),9))","v":0.99999623999999998},{"$f":"VALUE(FIXED(EXP(AZ$4*-1*'PM2.5 reduction'!AZ231),9))","v":0.999996475},{"$f":"VALUE(FIXED(EXP(BA$4*-1*'PM2.5 reduction'!BA231),9))","v":0.99999632800000005},{"$f":"VALUE(FIXED(EXP(BB$4*-1*'PM2.5 reduction'!BB231),9))","v":0.99999577699999997},{"$f":"VALUE(FIXED(EXP(BC$4*-1*'PM2.5 reduction'!BC231),9))","v":1}]
[null,"Male 5-9",{"$f":"VALUE(FIXED(EXP(C$4*-1*'PM2.5 reduction'!C232),9))","v":0.99999194700000005},{"$f":"VALUE(FIXED(EXP(D$4*-1*'PM2.5 reduction'!D232),9))","v":0.99999494899999997},{"$f":"VALUE(FIXED(EXP(E$4*-1*'PM2.5 reduction'!E232),9))","v":0.99999834899999995},{"$f":"VALUE(FIXED(EXP(F$4*-1*'PM2.5 reduction'!F232),9))","v":0.99999805100000005},{"$f":"VALUE(FIXED(EXP(G$4*-1*'PM2.5 reduction'!G232),9))","v":0.99999846400000003},{"$f":"VALUE(FIXED(EXP(H$4*-1*'PM2.5 reduction'!H232),9))","v":0.99999672299999998},{"$f":"VALUE(FIXED(EXP(I$4*-1*'PM2.5 reduction'!I232),9))","v":0.99999875199999999},{"$f":"VALUE(FIXED(EXP(J$4*-1*'PM2.5 reduction'!J232),9))","v":0.99999687699999995},{"$f":"VALUE(FIXED(EXP(K$4*-1*'PM2.5 reduction'!K232),9))","v":0.99999625800000003},{"$f":"VALUE(FIXED(EXP(L$4*-1*'PM2.5 reduction'!L232),9))","v":0.99999799599999994},{"$f":"VALUE(FIXED(EXP(M$4*-1*'PM2.5 reduction'!M232),9))","v":0.99999799599999994},{"$f":"VALUE(FIXED(EXP(N$4*-1*'PM2.5 reduction'!N232),9))","v":0.99999463200000005},{"$f":"VALUE(FIXED(EXP(O$4*-1*'PM2.5 reduction'!O232),9))","v":0.99999634699999995},{"$f":"VALUE(FIXED(EXP(P$4*-1*'PM2.5 reduction'!P232),9))","v":0.99999323500000004},{"$f":"VALUE(FIXED(EXP(Q$4*-1*'PM2.5 reduction'!Q232),9))","v":0.99999772399999998},{"$f":"VALUE(FIXED(EXP(R$4*-1*'PM2.5 reduction'!R232),9))","v":0.99999305699999996},{"$f":"VALUE(FIXED(EXP(S$4*-1*'PM2.5 reduction'!S232),9))","v":0.99999251499999997},{"$f":"VALUE(FIXED(EXP(T$4*-1*'PM2.5 reduction'!T232),9))","v":0.99998989000000005},{"$f":"VALUE(FIXED(EXP(U$4*-1*'PM2.5 reduction'!U232),9))","v":1},{"$f":"VALUE(FIXED(EXP(V$4*-1*'PM2.5 reduction'!V232),9))","v":0.99999509600000003},{"$f":"VALUE(FIXED(EXP(W$4*-1*'PM2.5 reduction'!W232),9))","v":0.99999594000000003},{"$f":"VALUE(FIXED(EXP(X$4*-1*'PM2.5 reduction'!X232),9))","v":0.99999594000000003},{"$f":"VALUE(FIXED(EXP(Y$4*-1*'PM2.5 reduction'!Y232),9))","v":0.99999585599999996},{"$f":"VALUE(FIXED(EXP(Z$4*-1*'PM2.5 reduction'!Z232),9))","v":0.99999016299999999},{"$f":"VALUE(FIXED(EXP(AA$4*-1*'PM2.5 reduction'!AA232),9))","v":0.99999326600000005},{"$f":"VALUE(FIXED(EXP(AB$4*-1*'PM2.5 reduction'!AB232),9))","v":0.99999508000000004},{"$f":"VALUE(FIXED(EXP(AC$4*-1*'PM2.5 reduction'!AC232),9))","v":0.99999270200000001},{"$f":"VALUE(FIXED(EXP(AD$4*-1*'PM2.5 reduction'!AD232),9))","v":0.999997735},{"$f":"VALUE(FIXED(EXP(AE$4*-1*'PM2.5 reduction'!AE232),9))","v":0.99999749299999996},{"$f":"VALUE(FIXED(EXP(AF$4*-1*'PM2.5 reduction'!AF232),9))","v":0.99999708799999998},{"$f":"VALUE(FIXED(EXP(AG$4*-1*'PM2.5 reduction'!AG232),9))","v":0.99999749299999996},{"$f":"VALUE(FIXED(EXP(AH$4*-1*'PM2.5 reduction'!AH232),9))","v":0.99999485799999999},{"$f":"VALUE(FIXED(EXP(AI$4*-1*'PM2.5 reduction'!AI232),9))","v":0.99999148699999996},{"$f":"VALUE(FIXED(EXP(AJ$4*-1*'PM2.5 reduction'!AJ232),9))","v":0.99999575900000004},{"$f":"VALUE(FIXED(EXP(AK$4*-1*'PM2.5 reduction'!AK232),9))","v":0.99999811100000002},{"$f":"VALUE(FIXED(EXP(AL$4*-1*'PM2.5 reduction'!AL232),9))","v":0.999997417},{"$f":"VALUE(FIXED(EXP(AM$4*-1*'PM2.5 reduction'!AM232),9))","v":0.999994206},{"$f":"VALUE(FIXED(EXP(AN$4*-1*'PM2.5 reduction'!AN232),9))","v":1},{"$f":"VALUE(FIXED(EXP(AO$4*-1*'PM2.5 reduction'!AO232),9))","v":1},{"$f":"VALUE(FIXED(EXP(AP$4*-1*'PM2.5 reduction'!AP232),9))","v":0.99999740299999995},{"$f":"VALUE(FIXED(EXP(AQ$4*-1*'PM2.5 reduction'!AQ232),9))","v":0.999994995},{"$f":"VALUE(FIXED(EXP(AR$4*-1*'PM2.5 reduction'!AR232),9))","v":0.99999390200000005},{"$f":"VALUE(FIXED(EXP(AS$4*-1*'PM2.5 reduction'!AS232),9))","v":0.99999875199999999},{"$f":"VALUE(FIXED(EXP(AT$4*-1*'PM2.5 reduction'!AT232),9))","v":1},{"$f":"VALUE(FIXED(EXP(AU$4*-1*'PM2.5 reduction'!AU232),9))","v":1},{"$f":"VALUE(FIXED(EXP(AV$4*-1*'PM2.5 reduction'!AV232),9))","v":0.99999669499999999},{"$f":"VALUE(FIXED(EXP(AW$4*-1*'PM2.5 reduction'!AW232),9))","v":0.999995352},{"$f":"VALUE(FIXED(EXP(AX$4*-1*'PM2.5 reduction'!AX232),9))","v":0.999996985},{"$f":"VALUE(FIXED(EXP(AY$4*-1*'PM2.5 reduction'!AY232),9))","v":0.99999623100000001},{"$f":"VALUE(FIXED(EXP(AZ$4*-1*'PM2.5 reduction'!AZ232),9))","v":0.99999656000000003},{"$f":"VALUE(FIXED(EXP(BA$4*-1*'PM2.5 reduction'!BA232),9))","v":0.99999682700000003},{"$f":"VALUE(FIXED(EXP(BB$4*-1*'PM2.5 reduction'!BB232),9))","v":0.999995878},{"$f":"VALUE(FIXED(EXP(BC$4*-1*'PM2.5 reduction'!BC232),9))","v":1}]
[null,"Male 10-15",{"$f":"VALUE(FIXED(EXP(C$4*-1*'PM2.5 reduction'!C233),9))","v":0.99999187199999995},{"$f":"VALUE(FIXED(EXP(D$4*-1*'PM2.5 reduction'!D233),9))","v":0.99999506900000001},{"$f":"VALUE(FIXED(EXP(E$4*-1*'PM2.5 reduction'!E233),9))","v":0.99999831100000003},{"$f":"VALUE(FIXED(EXP(F$4*-1*'PM2.5 reduction'!F233),9))","v":0.99999802900000001},{"$f":"VALUE(FIXED(EXP(G$4*-1*'PM2.5 reduction'!G233),9))","v":0.99999843499999996},{"$f":"VALUE(FIXED(EXP(H$4*-1*'PM2.5 reduction'!H233),9))","v":0.99999660800000001},{"$f":"VALUE(FIXED(EXP(I$4*-1*'PM2.5 reduction'!I233),9))","v":0.99999874},{"$f":"VALUE(FIXED(EXP(J$4*-1*'PM2.5 reduction'!J233),9))","v":0.99999702499999998},{"$f":"VALUE(FIXED(EXP(K$4*-1*'PM2.5 reduction'!K233),9))","v":0.99999637699999999},{"$f":"VALUE(FIXED(EXP(L$4*-1*'PM2.5 reduction'!L233),9))","v":0.99999797400000001},{"$f":"VALUE(FIXED(EXP(M$4*-1*'PM2.5 reduction'!M233),9))","v":0.99999797400000001},{"$f":"VALUE(FIXED(EXP(N$4*-1*'PM2.5 reduction'!N233),9))","v":0.99999446199999997},{"$f":"VALUE(FIXED(EXP(O$4*-1*'PM2.5 reduction'!O233),9))","v":0.99999612000000004},{"$f":"VALUE(FIXED(EXP(P$4*-1*'PM2.5 reduction'!P233),9))","v":0.99999334699999998},{"$f":"VALUE(FIXED(EXP(Q$4*-1*'PM2.5 reduction'!Q233),9))","v":0.99999772499999995},{"$f":"VALUE(FIXED(EXP(R$4*-1*'PM2.5 reduction'!R233),9))","v":0.999993091},{"$f":"VALUE(FIXED(EXP(S$4*-1*'PM2.5 reduction'!S233),9))","v":0.99999275499999996},{"$f":"VALUE(FIXED(EXP(T$4*-1*'PM2.5 reduction'!T233),9))","v":0.99999011400000004},{"$f":"VALUE(FIXED(EXP(U$4*-1*'PM2.5 reduction'!U233),9))","v":1},{"$f":"VALUE(FIXED(EXP(V$4*-1*'PM2.5 reduction'!V233),9))","v":0.99999511900000004},{"$f":"VALUE(FIXED(EXP(W$4*-1*'PM2.5 reduction'!W233),9))","v":0.99999603500000001},{"$f":"VALUE(FIXED(EXP(X$4*-1*'PM2.5 reduction'!X233),9))","v":0.99999603500000001},{"$f":"VALUE(FIXED(EXP(Y$4*-1*'PM2.5 reduction'!Y233),9))","v":0.99999601500000002},{"$f":"VALUE(FIXED(EXP(Z$4*-1*'PM2.5 reduction'!Z233),9))","v":0.99999044299999995},{"$f":"VALUE(FIXED(EXP(AA$4*-1*'PM2.5 reduction'!AA233),9))","v":0.99999347000000005},{"$f":"VALUE(FIXED(EXP(AB$4*-1*'PM2.5 reduction'!AB233),9))","v":0.99999523099999998},{"$f":"VALUE(FIXED(EXP(AC$4*-1*'PM2.5 reduction'!AC233),9))","v":0.99999294900000002},{"$f":"VALUE(FIXED(EXP(AD$4*-1*'PM2.5 reduction'!AD233),9))","v":0.99999771900000001},{"$f":"VALUE(FIXED(EXP(AE$4*-1*'PM2.5 reduction'!AE233),9))","v":0.99999745699999998},{"$f":"VALUE(FIXED(EXP(AF$4*-1*'PM2.5 reduction'!AF233),9))","v":0.99999729000000004},{"$f":"VALUE(FIXED(EXP(AG$4*-1*'PM2.5 reduction'!AG233),9))","v":0.99999745699999998},{"$f":"VALUE(FIXED(EXP(AH$4*-1*'PM2.5 reduction'!AH233),9))","v":0.99999490899999999},{"$f":"VALUE(FIXED(EXP(AI$4*-1*'PM2.5 reduction'!AI233),9))","v":0.99999179599999999},{"$f":"VALUE(FIXED(EXP(AJ$4*-1*'PM2.5 reduction'!AJ233),9))","v":0.99999555699999998},{"$f":"VALUE(FIXED(EXP(AK$4*-1*'PM2.5 reduction'!AK233),9))","v":0.99999816500000005},{"$f":"VALUE(FIXED(EXP(AL$4*-1*'PM2.5 reduction'!AL233),9))","v":0.99999742999999996},{"$f":"VALUE(FIXED(EXP(AM$4*-1*'PM2.5 reduction'!AM233),9))","v":0.99999427299999999},{"$f":"VALUE(FIXED(EXP(AN$4*-1*'PM2.5 reduction'!AN233),9))","v":1},{"$f":"VALUE(FIXED(EXP(AO$4*-1*'PM2.5 reduction'!AO233),9))","v":1},{"$f":"VALUE(FIXED(EXP(AP$4*-1*'PM2.5 reduction'!AP233),9))","v":0.99999738900000001},{"$f":"VALUE(FIXED(EXP(AQ$4*-1*'PM2.5 reduction'!AQ233),9))","v":0.99999509399999997},{"$f":"VALUE(FIXED(EXP(AR$4*-1*'PM2.5 reduction'!AR233),9))","v":0.99999407600000001},{"$f":"VALUE(FIXED(EXP(AS$4*-1*'PM2.5 reduction'!AS233),9))","v":0.99999874},{"$f":"VALUE(FIXED(EXP(AT$4*-1*'PM2.5 reduction'!AT233),9))","v":1},{"$f":"VALUE(FIXED(EXP(AU$4*-1*'PM2.5 reduction'!AU233),9))","v":1},{"$f":"VALUE(FIXED(EXP(AV$4*-1*'PM2.5 reduction'!AV233),9))","v":0.99999653700000002},{"$f":"VALUE(FIXED(EXP(AW$4*-1*'PM2.5 reduction'!AW233),9))","v":0.99999549300000001},{"$f":"VALUE(FIXED(EXP(AX$4*-1*'PM2.5 reduction'!AX233),9))","v":0.99999714399999995},{"$f":"VALUE(FIXED(EXP(AY$4*-1*'PM2.5 reduction'!AY233),9))","v":0.99999628200000001},{"$f":"VALUE(FIXED(EXP(AZ$4*-1*'PM2.5 reduction'!AZ233),9))","v":0.99999653300000002},{"$f":"VALUE(FIXED(EXP(BA$4*-1*'PM2.5 reduction'!BA233),9))","v":0.99999626200000002},{"$f":"VALUE(FIXED(EXP(BB$4*-1*'PM2.5 reduction'!BB233),9))","v":0.99999598000000001},{"$f":"VALUE(FIXED(EXP(BC$4*-1*'PM2.5 reduction'!BC233),9))","v":1}]
[null,"Male 16-19",{"$f":"VALUE(FIXED(EXP(C$4*-1*'PM2.5 reduction'!C234),9))","v":0.99999155500000003},{"$f":"VALUE(FIXED(EXP(D$4*-1*'PM2.5 reduction'!D234),9))","v":0.99999486900000001},{"$f":"VALUE(FIXED(EXP(E$4*-1*'PM2.5 reduction'!E234),9))","v":0.99999828000000002},{"$f":"VALUE(FIXED(EXP(F$4*-1*'PM2.5 reduction'!F234),9))","v":0.99999792600000004},{"$f":"VALUE(FIXED(EXP(G$4*-1*'PM2.5 reduction'!G234),9))","v":0.99999844500000001},{"$f":"VALUE(FIXED(EXP(H$4*-1*'PM2.5 reduction'!H234),9))","v":0.99999667699999994},{"$f":"VALUE(FIXED(EXP(I$4*-1*'PM2.5 reduction'!I234),9))","v":0.99999875800000004},{"$f":"VALUE(FIXED(EXP(J$4*-1*'PM2.5 reduction'!J234),9))","v":0.99999683100000003},{"$f":"VALUE(FIXED(EXP(K$4*-1*'PM2.5 reduction'!K234),9))","v":0.99999636599999997},{"$f":"VALUE(FIXED(EXP(L$4*-1*'PM2.5 reduction'!L234),9))","v":0.99999789400000005},{"$f":"VALUE(FIXED(EXP(M$4*-1*'PM2.5 reduction'!M234),9))","v":0.99999789400000005},{"$f":"VALUE(FIXED(EXP(N$4*-1*'PM2.5 reduction'!N234),9))","v":0.99999194899999999},{"$f":"VALUE(FIXED(EXP(O$4*-1*'PM2.5 reduction'!O234),9))","v":0.99999620300000003},{"$f":"VALUE(FIXED(EXP(P$4*-1*'PM2.5 reduction'!P234),9))","v":0.99999320000000003},{"$f":"VALUE(FIXED(EXP(Q$4*-1*'PM2.5 reduction'!Q234),9))","v":0.99999774600000002},{"$f":"VALUE(FIXED(EXP(R$4*-1*'PM2.5 reduction'!R234),9))","v":0.99999307199999998},{"$f":"VALUE(FIXED(EXP(S$4*-1*'PM2.5 reduction'!S234),9))","v":0.99999190400000004},{"$f":"VALUE(FIXED(EXP(T$4*-1*'PM2.5 reduction'!T234),9))","v":0.99998924099999997},{"$f":"VALUE(FIXED(EXP(U$4*-1*'PM2.5 reduction'!U234),9))","v":1},{"$f":"VALUE(FIXED(EXP(V$4*-1*'PM2.5 reduction'!V234),9))","v":0.99999503000000001},{"$f":"VALUE(FIXED(EXP(W$4*-1*'PM2.5 reduction'!W234),9))","v":0.99999616199999997},{"$f":"VALUE(FIXED(EXP(X$4*-1*'PM2.5 reduction'!X234),9))","v":0.99999616199999997},{"$f":"VALUE(FIXED(EXP(Y$4*-1*'PM2.5 reduction'!Y234),9))","v":0.99999588500000003},{"$f":"VALUE(FIXED(EXP(Z$4*-1*'PM2.5 reduction'!Z234),9))","v":0.99998815500000005},{"$f":"VALUE(FIXED(EXP(AA$4*-1*'PM2.5 reduction'!AA234),9))","v":0.99999276000000004},{"$f":"VALUE(FIXED(EXP(AB$4*-1*'PM2.5 reduction'!AB234),9))","v":0.99999505499999997},{"$f":"VALUE(FIXED(EXP(AC$4*-1*'PM2.5 reduction'!AC234),9))","v":0.999992031},{"$f":"VALUE(FIXED(EXP(AD$4*-1*'PM2.5 reduction'!AD234),9))","v":0.99999772899999995},{"$f":"VALUE(FIXED(EXP(AE$4*-1*'PM2.5 reduction'!AE234),9))","v":0.99999743399999996},{"$f":"VALUE(FIXED(EXP(AF$4*-1*'PM2.5 reduction'!AF234),9))","v":0.99999676000000004},{"$f":"VALUE(FIXED(EXP(AG$4*-1*'PM2.5 reduction'!AG234),9))","v":0.99999743399999996},{"$f":"VALUE(FIXED(EXP(AH$4*-1*'PM2.5 reduction'!AH234),9))","v":0.99999486299999996},{"$f":"VALUE(FIXED(EXP(AI$4*-1*'PM2.5 reduction'!AI234),9))","v":0.99999090899999998},{"$f":"VALUE(FIXED(EXP(AJ$4*-1*'PM2.5 reduction'!AJ234),9))","v":0.99999581599999998},{"$f":"VALUE(FIXED(EXP(AK$4*-1*'PM2.5 reduction'!AK234),9))","v":0.99999834099999996},{"$f":"VALUE(FIXED(EXP(AL$4*-1*'PM2.5 reduction'!AL234),9))","v":0.99999746300000003},{"$f":"VALUE(FIXED(EXP(AM$4*-1*'PM2.5 reduction'!AM234),9))","v":0.99999422100000002},{"$f":"VALUE(FIXED(EXP(AN$4*-1*'PM2.5 reduction'!AN234),9))","v":1},{"$f":"VALUE(FIXED(EXP(AO$4*-1*'PM2.5 reduction'!AO234),9))","v":1},{"$f":"VALUE(FIXED(EXP(AP$4*-1*'PM2.5 reduction'!AP234),9))","v":0.99999754200000002},{"$f":"VALUE(FIXED(EXP(AQ$4*-1*'PM2.5 reduction'!AQ234),9))","v":0.999994987},{"$f":"VALUE(FIXED(EXP(AR$4*-1*'PM2.5 reduction'!AR234),9))","v":0.99999342499999999},{"$f":"VALUE(FIXED(EXP(AS$4*-1*'PM2.5 reduction'!AS234),9))","v":0.99999875800000004},{"$f":"VALUE(FIXED(EXP(AT$4*-1*'PM2.5 reduction'!AT234),9))","v":1},{"$f":"VALUE(FIXED(EXP(AU$4*-1*'PM2.5 reduction'!AU234),9))","v":1},{"$f":"VALUE(FIXED(EXP(AV$4*-1*'PM2.5 reduction'!AV234),9))","v":0.99999659699999999},{"$f":"VALUE(FIXED(EXP(AW$4*-1*'PM2.5 reduction'!AW234),9))","v":0.999995364},{"$f":"VALUE(FIXED(EXP(AX$4*-1*'PM2.5 reduction'!AX234),9))","v":0.99999692100000004},{"$f":"VALUE(FIXED(EXP(AY$4*-1*'PM2.5 reduction'!AY234),9))","v":0.99999559100000002},{"$f":"VALUE(FIXED(EXP(AZ$4*-1*'PM2.5 reduction'!AZ234),9))","v":0.99999512800000001},{"$f":"VALUE(FIXED(EXP(BA$4*-1*'PM2.5 reduction'!BA234),9))","v":0.99999629000000001},{"$f":"VALUE(FIXED(EXP(BB$4*-1*'PM2.5 reduction'!BB234),9))","v":0.99999601000000005},{"$f":"VALUE(FIXED(EXP(BC$4*-1*'PM2.5 reduction'!BC234),9))","v":1}]
[null,"Male 20-24",{"$f":"VALUE(FIXED(EXP(C$4*-1*'PM2.5 reduction'!C235),9))","v":0.99998976799999995},{"$f":"VALUE(FIXED(EXP(D$4*-1*'PM2.5 reduction'!D235),9))","v":0.99999291000000001},{"$f":"VALUE(FIXED(EXP(E$4*-1*'PM2.5 reduction'!E235),9))","v":0.99999821899999997},{"$f":"VALUE(FIXED(EXP(F$4*-1*'PM2.5 reduction'!F235),9))","v":0.99999791999999998},{"$f":"VALUE(FIXED(EXP(G$4*-1*'PM2.5 reduction'!G235),9))","v":0.99999844400000004},{"$f":"VALUE(FIXED(EXP(H$4*-1*'PM2.5 reduction'!H235),9))","v":0.99999670799999996},{"$f":"VALUE(FIXED(EXP(I$4*-1*'PM2.5 reduction'!I235),9))","v":0.99999875599999999},{"$f":"VALUE(FIXED(EXP(J$4*-1*'PM2.5 reduction'!J235),9))","v":0.999996463},{"$f":"VALUE(FIXED(EXP(K$4*-1*'PM2.5 reduction'!K235),9))","v":0.999996247},{"$f":"VALUE(FIXED(EXP(L$4*-1*'PM2.5 reduction'!L235),9))","v":0.99999796100000005},{"$f":"VALUE(FIXED(EXP(M$4*-1*'PM2.5 reduction'!M235),9))","v":0.99999796100000005},{"$f":"VALUE(FIXED(EXP(N$4*-1*'PM2.5 reduction'!N235),9))","v":0.99999195600000002},{"$f":"VALUE(FIXED(EXP(O$4*-1*'PM2.5 reduction'!O235),9))","v":0.99999627700000004},{"$f":"VALUE(FIXED(EXP(P$4*-1*'PM2.5 reduction'!P235),9))","v":0.99999317600000004},{"$f":"VALUE(FIXED(EXP(Q$4*-1*'PM2.5 reduction'!Q235),9))","v":0.99999760800000004},{"$f":"VALUE(FIXED(EXP(R$4*-1*'PM2.5 reduction'!R235),9))","v":0.999993154},{"$f":"VALUE(FIXED(EXP(S$4*-1*'PM2.5 reduction'!S235),9))","v":0.999989774},{"$f":"VALUE(FIXED(EXP(T$4*-1*'PM2.5 reduction'!T235),9))","v":0.99998697700000005},{"$f":"VALUE(FIXED(EXP(U$4*-1*'PM2.5 reduction'!U235),9))","v":1},{"$f":"VALUE(FIXED(EXP(V$4*-1*'PM2.5 reduction'!V235),9))","v":0.99999485099999996},{"$f":"VALUE(FIXED(EXP(W$4*-1*'PM2.5 reduction'!W235),9))","v":0.99999680099999999},{"$f":"VALUE(FIXED(EXP(X$4*-1*'PM2.5 reduction'!X235),9))","v":0.99999680099999999},{"$f":"VALUE(FIXED(EXP(Y$4*-1*'PM2.5 reduction'!Y235),9))","v":0.99999565199999996},{"$f":"VALUE(FIXED(EXP(Z$4*-1*'PM2.5 reduction'!Z235),9))","v":0.99998697299999995},{"$f":"VALUE(FIXED(EXP(AA$4*-1*'PM2.5 reduction'!AA235),9))","v":0.99999149600000004},{"$f":"VALUE(FIXED(EXP(AB$4*-1*'PM2.5 reduction'!AB235),9))","v":0.99999312600000001},{"$f":"VALUE(FIXED(EXP(AC$4*-1*'PM2.5 reduction'!AC235),9))","v":0.999990606},{"$f":"VALUE(FIXED(EXP(AD$4*-1*'PM2.5 reduction'!AD235),9))","v":0.999997672},{"$f":"VALUE(FIXED(EXP(AE$4*-1*'PM2.5 reduction'!AE235),9))","v":0.99999743100000005},{"$f":"VALUE(FIXED(EXP(AF$4*-1*'PM2.5 reduction'!AF235),9))","v":0.99999675600000004},{"$f":"VALUE(FIXED(EXP(AG$4*-1*'PM2.5 reduction'!AG235),9))","v":0.99999743100000005},{"$f":"VALUE(FIXED(EXP(AH$4*-1*'PM2.5 reduction'!AH235),9))","v":0.99999475900000001},{"$f":"VALUE(FIXED(EXP(AI$4*-1*'PM2.5 reduction'!AI235),9))","v":0.9999884},{"$f":"VALUE(FIXED(EXP(AJ$4*-1*'PM2.5 reduction'!AJ235),9))","v":0.99999647700000005},{"$f":"VALUE(FIXED(EXP(AK$4*-1*'PM2.5 reduction'!AK235),9))","v":0.99999811500000002},{"$f":"VALUE(FIXED(EXP(AL$4*-1*'PM2.5 reduction'!AL235),9))","v":0.99999742400000002},{"$f":"VALUE(FIXED(EXP(AM$4*-1*'PM2.5 reduction'!AM235),9))","v":0.99999428899999998},{"$f":"VALUE(FIXED(EXP(AN$4*-1*'PM2.5 reduction'!AN235),9))","v":1},{"$f":"VALUE(FIXED(EXP(AO$4*-1*'PM2.5 reduction'!AO235),9))","v":1},{"$f":"VALUE(FIXED(EXP(AP$4*-1*'PM2.5 reduction'!AP235),9))","v":0.99999736800000005},{"$f":"VALUE(FIXED(EXP(AQ$4*-1*'PM2.5 reduction'!AQ235),9))","v":0.99999504900000002},{"$f":"VALUE(FIXED(EXP(AR$4*-1*'PM2.5 reduction'!AR235),9))","v":0.99999169099999996},{"$f":"VALUE(FIXED(EXP(AS$4*-1*'PM2.5 reduction'!AS235),9))","v":0.99999875599999999},{"$f":"VALUE(FIXED(EXP(AT$4*-1*'PM2.5 reduction'!AT235),9))","v":1},{"$f":"VALUE(FIXED(EXP(AU$4*-1*'PM2.5 reduction'!AU235),9))","v":1},{"$f":"VALUE(FIXED(EXP(AV$4*-1*'PM2.5 reduction'!AV235),9))","v":0.99999666099999995},{"$f":"VALUE(FIXED(EXP(AW$4*-1*'PM2.5 reduction'!AW235),9))","v":0.99999511500000005},{"$f":"VALUE(FIXED(EXP(AX$4*-1*'PM2.5 reduction'!AX235),9))","v":0.99999649300000004},{"$f":"VALUE(FIXED(EXP(AY$4*-1*'PM2.5 reduction'!AY235),9))","v":0.99999591600000004},{"$f":"VALUE(FIXED(EXP(AZ$4*-1*'PM2.5 reduction'!AZ235),9))","v":0.99999494899999997},{"$f":"VALUE(FIXED(EXP(BA$4*-1*'PM2.5 reduction'!BA235),9))","v":0.99999654999999998},{"$f":"VALUE(FIXED(EXP(BB$4*-1*'PM2.5 reduction'!BB235),9))","v":0.99999586299999998},{"$f":"VALUE(FIXED(EXP(BC$4*-1*'PM2.5 reduction'!BC235),9))","v":1}]
[null,"Male 25-29",{"$f":"VALUE(FIXED(EXP(C$4*-1*'PM2.5 reduction'!C236),9))","v":0.99998934500000003},{"$f":"VALUE(FIXED(EXP(D$4*-1*'PM2.5 reduction'!D236),9))","v":0.99999160499999995},{"$f":"VALUE(FIXED(EXP(E$4*-1*'PM2.5 reduction'!E236),9))","v":0.99999815999999997},{"$f":"VALUE(FIXED(EXP(F$4*-1*'PM2.5 reduction'!F236),9))","v":0.99999788999999994},{"$f":"VALUE(FIXED(EXP(G$4*-1*'PM2.5 reduction'!G236),9))","v":0.999998473},{"$f":"VALUE(FIXED(EXP(H$4*-1*'PM2.5 reduction'!H236),9))","v":0.99999671800000001},{"$f":"VALUE(FIXED(EXP(I$4*-1*'PM2.5 reduction'!I236),9))","v":0.999998783},{"$f":"VALUE(FIXED(EXP(J$4*-1*'PM2.5 reduction'!J236),9))","v":0.99999639799999995},{"$f":"VALUE(FIXED(EXP(K$4*-1*'PM2.5 reduction'!K236),9))","v":0.99999597100000004},{"$f":"VALUE(FIXED(EXP(L$4*-1*'PM2.5 reduction'!L236),9))","v":0.99999798699999998},{"$f":"VALUE(FIXED(EXP(M$4*-1*'PM2.5 reduction'!M236),9))","v":0.99999798699999998},{"$f":"VALUE(FIXED(EXP(N$4*-1*'PM2.5 reduction'!N236),9))","v":0.99999343799999996},{"$f":"VALUE(FIXED(EXP(O$4*-1*'PM2.5 reduction'!O236),9))","v":0.99999622600000004},{"$f":"VALUE(FIXED(EXP(P$4*-1*'PM2.5 reduction'!P236),9))","v":0.99999318999999998},{"$f":"VALUE(FIXED(EXP(Q$4*-1*'PM2.5 reduction'!Q236),9))","v":0.99999751800000003},{"$f":"VALUE(FIXED(EXP(R$4*-1*'PM2.5 reduction'!R236),9))","v":0.99999311099999999},{"$f":"VALUE(FIXED(EXP(S$4*-1*'PM2.5 reduction'!S236),9))","v":0.99998931199999996},{"$f":"VALUE(FIXED(EXP(T$4*-1*'PM2.5 reduction'!T236),9))","v":0.99998719000000003},{"$f":"VALUE(FIXED(EXP(U$4*-1*'PM2.5 reduction'!U236),9))","v":1},{"$f":"VALUE(FIXED(EXP(V$4*-1*'PM2.5 reduction'!V236),9))","v":0.99999468400000002},{"$f":"VALUE(FIXED(EXP(W$4*-1*'PM2.5 reduction'!W236),9))","v":0.99999629499999998},{"$f":"VALUE(FIXED(EXP(X$4*-1*'PM2.5 reduction'!X236),9))","v":0.99999629499999998},{"$f":"VALUE(FIXED(EXP(Y$4*-1*'PM2.5 reduction'!Y236),9))","v":0.999995419},{"$f":"VALUE(FIXED(EXP(Z$4*-1*'PM2.5 reduction'!Z236),9))","v":0.99998812699999995},{"$f":"VALUE(FIXED(EXP(AA$4*-1*'PM2.5 reduction'!AA236),9))","v":0.99999152499999999},{"$f":"VALUE(FIXED(EXP(AB$4*-1*'PM2.5 reduction'!AB236),9))","v":0.99999179599999999},{"$f":"VALUE(FIXED(EXP(AC$4*-1*'PM2.5 reduction'!AC236),9))","v":0.99999074099999996},{"$f":"VALUE(FIXED(EXP(AD$4*-1*'PM2.5 reduction'!AD236),9))","v":0.99999759499999996},{"$f":"VALUE(FIXED(EXP(AE$4*-1*'PM2.5 reduction'!AE236),9))","v":0.99999730200000003},{"$f":"VALUE(FIXED(EXP(AF$4*-1*'PM2.5 reduction'!AF236),9))","v":0.99999644300000001},{"$f":"VALUE(FIXED(EXP(AG$4*-1*'PM2.5 reduction'!AG236),9))","v":0.99999730200000003},{"$f":"VALUE(FIXED(EXP(AH$4*-1*'PM2.5 reduction'!AH236),9))","v":0.99999469900000004},{"$f":"VALUE(FIXED(EXP(AI$4*-1*'PM2.5 reduction'!AI236),9))","v":0.99998831899999996},{"$f":"VALUE(FIXED(EXP(AJ$4*-1*'PM2.5 reduction'!AJ236),9))","v":0.99999633899999996},{"$f":"VALUE(FIXED(EXP(AK$4*-1*'PM2.5 reduction'!AK236),9))","v":0.99999808700000004},{"$f":"VALUE(FIXED(EXP(AL$4*-1*'PM2.5 reduction'!AL236),9))","v":0.99999746499999997},{"$f":"VALUE(FIXED(EXP(AM$4*-1*'PM2.5 reduction'!AM236),9))","v":0.99999409100000003},{"$f":"VALUE(FIXED(EXP(AN$4*-1*'PM2.5 reduction'!AN236),9))","v":1},{"$f":"VALUE(FIXED(EXP(AO$4*-1*'PM2.5 reduction'!AO236),9))","v":1},{"$f":"VALUE(FIXED(EXP(AP$4*-1*'PM2.5 reduction'!AP236),9))","v":0.99999732200000002},{"$f":"VALUE(FIXED(EXP(AQ$4*-1*'PM2.5 reduction'!AQ236),9))","v":0.99999496099999996},{"$f":"VALUE(FIXED(EXP(AR$4*-1*'PM2.5 reduction'!AR236),9))","v":0.99999127300000001},{"$f":"VALUE(FIXED(EXP(AS$4*-1*'PM2.5 reduction'!AS236),9))","v":0.999998783},{"$f":"VALUE(FIXED(EXP(AT$4*-1*'PM2.5 reduction'!AT236),9))","v":1},{"$f":"VALUE(FIXED(EXP(AU$4*-1*'PM2.5 reduction'!AU236),9))","v":1},{"$f":"VALUE(FIXED(EXP(AV$4*-1*'PM2.5 reduction'!AV236),9))","v":0.99999684499999997},{"$f":"VALUE(FIXED(EXP(AW$4*-1*'PM2.5 reduction'!AW236),9))","v":0.99999523300000004},{"$f":"VALUE(FIXED(EXP(AX$4*-1*'PM2.5 reduction'!AX236),9))","v":0.99999646200000003},{"$f":"VALUE(FIXED(EXP(AY$4*-1*'PM2.5 reduction'!AY236),9))","v":0.99999586600000001},{"$f":"VALUE(FIXED(EXP(AZ$4*-1*'PM2.5 reduction'!AZ236),9))","v":0.99999548400000005},{"$f":"VALUE(FIXED(EXP(BA$4*-1*'PM2.5 reduction'!BA236),9))","v":0.99999665599999998},{"$f":"VALUE(FIXED(EXP(BB$4*-1*'PM2.5 reduction'!BB236),9))","v":0.99999558200000005},{"$f":"VALUE(FIXED(EXP(BC$4*-1*'PM2.5 reduction'!BC236),9))","v":1}]
[null,"Male 30-34",{"$f":"VALUE(FIXED(EXP(C$4*-1*'PM2.5 reduction'!C237),9))","v":0.99998925999999999},{"$f":"VALUE(FIXED(EXP(D$4*-1*'PM2.5 reduction'!D237),9))","v":0.99999192100000001},{"$f":"VALUE(FIXED(EXP(E$4*-1*'PM2.5 reduction'!E237),9))","v":0.99999823799999998},{"$f":"VALUE(FIXED(EXP(F$4*-1*'PM2.5 reduction'!F237),9))","v":0.99999806499999999},{"$f":"VALUE(FIXED(EXP(G$4*-1*'PM2.5 reduction'!G237),9))","v":0.99999845399999998},{"$f":"VALUE(FIXED(EXP(H$4*-1*'PM2.5 reduction'!H237),9))","v":0.99999676299999996},{"$f":"VALUE(FIXED(EXP(I$4*-1*'PM2.5 reduction'!I237),9))","v":0.99999879999999997},{"$f":"VALUE(FIXED(EXP(J$4*-1*'PM2.5 reduction'!J237),9))","v":0.99999627700000004},{"$f":"VALUE(FIXED(EXP(K$4*-1*'PM2.5 reduction'!K237),9))","v":0.99999603100000001},{"$f":"VALUE(FIXED(EXP(L$4*-1*'PM2.5 reduction'!L237),9))","v":0.99999802100000001},{"$f":"VALUE(FIXED(EXP(M$4*-1*'PM2.5 reduction'!M237),9))","v":0.99999802100000001},{"$f":"VALUE(FIXED(EXP(N$4*-1*'PM2.5 reduction'!N237),9))","v":0.99999367299999997},{"$f":"VALUE(FIXED(EXP(O$4*-1*'PM2.5 reduction'!O237),9))","v":0.99999656999999997},{"$f":"VALUE(FIXED(EXP(P$4*-1*'PM2.5 reduction'!P237),9))","v":0.999993252},{"$f":"VALUE(FIXED(EXP(Q$4*-1*'PM2.5 reduction'!Q237),9))","v":0.99999730200000003},{"$f":"VALUE(FIXED(EXP(R$4*-1*'PM2.5 reduction'!R237),9))","v":0.99999307599999998},{"$f":"VALUE(FIXED(EXP(S$4*-1*'PM2.5 reduction'!S237),9))","v":0.99998936900000002},{"$f":"VALUE(FIXED(EXP(T$4*-1*'PM2.5 reduction'!T237),9))","v":0.99998685200000004},{"$f":"VALUE(FIXED(EXP(U$4*-1*'PM2.5 reduction'!U237),9))","v":1},{"$f":"VALUE(FIXED(EXP(V$4*-1*'PM2.5 reduction'!V237),9))","v":0.99999487399999998},{"$f":"VALUE(FIXED(EXP(W$4*-1*'PM2.5 reduction'!W237),9))","v":0.99999613899999995},{"$f":"VALUE(FIXED(EXP(X$4*-1*'PM2.5 reduction'!X237),9))","v":0.99999613899999995},{"$f":"VALUE(FIXED(EXP(Y$4*-1*'PM2.5 reduction'!Y237),9))","v":0.99999541199999997},{"$f":"VALUE(FIXED(EXP(Z$4*-1*'PM2.5 reduction'!Z237),9))","v":0.99998853200000004},{"$f":"VALUE(FIXED(EXP(AA$4*-1*'PM2.5 reduction'!AA237),9))","v":0.99999176499999998},{"$f":"VALUE(FIXED(EXP(AB$4*-1*'PM2.5 reduction'!AB237),9))","v":0.99999210199999999},{"$f":"VALUE(FIXED(EXP(AC$4*-1*'PM2.5 reduction'!AC237),9))","v":0.99999091399999995},{"$f":"VALUE(FIXED(EXP(AD$4*-1*'PM2.5 reduction'!AD237),9))","v":0.99999743100000005},{"$f":"VALUE(FIXED(EXP(AE$4*-1*'PM2.5 reduction'!AE237),9))","v":0.99999722199999996},{"$f":"VALUE(FIXED(EXP(AF$4*-1*'PM2.5 reduction'!AF237),9))","v":0.99999670600000001},{"$f":"VALUE(FIXED(EXP(AG$4*-1*'PM2.5 reduction'!AG237),9))","v":0.99999722199999996},{"$f":"VALUE(FIXED(EXP(AH$4*-1*'PM2.5 reduction'!AH237),9))","v":0.99999462100000003},{"$f":"VALUE(FIXED(EXP(AI$4*-1*'PM2.5 reduction'!AI237),9))","v":0.99998815699999999},{"$f":"VALUE(FIXED(EXP(AJ$4*-1*'PM2.5 reduction'!AJ237),9))","v":0.99999612900000001},{"$f":"VALUE(FIXED(EXP(AK$4*-1*'PM2.5 reduction'!AK237),9))","v":0.99999839899999998},{"$f":"VALUE(FIXED(EXP(AL$4*-1*'PM2.5 reduction'!AL237),9))","v":0.99999753800000002},{"$f":"VALUE(FIXED(EXP(AM$4*-1*'PM2.5 reduction'!AM237),9))","v":0.99999387100000003},{"$f":"VALUE(FIXED(EXP(AN$4*-1*'PM2.5 reduction'!AN237),9))","v":1},{"$f":"VALUE(FIXED(EXP(AO$4*-1*'PM2.5 reduction'!AO237),9))","v":1},{"$f":"VALUE(FIXED(EXP(AP$4*-1*'PM2.5 reduction'!AP237),9))","v":0.99999724700000003},{"$f":"VALUE(FIXED(EXP(AQ$4*-1*'PM2.5 reduction'!AQ237),9))","v":0.99999472199999995},{"$f":"VALUE(FIXED(EXP(AR$4*-1*'PM2.5 reduction'!AR237),9))","v":0.99999152599999996},{"$f":"VALUE(FIXED(EXP(AS$4*-1*'PM2.5 reduction'!AS237),9))","v":0.99999879999999997},{"$f":"VALUE(FIXED(EXP(AT$4*-1*'PM2.5 reduction'!AT237),9))","v":1},{"$f":"VALUE(FIXED(EXP(AU$4*-1*'PM2.5 reduction'!AU237),9))","v":1},{"$f":"VALUE(FIXED(EXP(AV$4*-1*'PM2.5 reduction'!AV237),9))","v":0.99999647199999997},{"$f":"VALUE(FIXED(EXP(AW$4*-1*'PM2.5 reduction'!AW237),9))","v":0.99999518700000001},{"$f":"VALUE(FIXED(EXP(AX$4*-1*'PM2.5 reduction'!AX237),9))","v":0.99999632599999999},{"$f":"VALUE(FIXED(EXP(AY$4*-1*'PM2.5 reduction'!AY237),9))","v":0.99999611899999996},{"$f":"VALUE(FIXED(EXP(AZ$4*-1*'PM2.5 reduction'!AZ237),9))","v":0.99999609700000003},{"$f":"VALUE(FIXED(EXP(BA$4*-1*'PM2.5 reduction'!BA237),9))","v":0.99999617699999999},{"$f":"VALUE(FIXED(EXP(BB$4*-1*'PM2.5 reduction'!BB237),9))","v":0.999995525},{"$f":"VALUE(FIXED(EXP(BC$4*-1*'PM2.5 reduction'!BC237),9))","v":1}]
[null,"Male 35-39",{"$f":"VALUE(FIXED(EXP(C$4*-1*'PM2.5 reduction'!C238),9))","v":0.999990131},{"$f":"VALUE(FIXED(EXP(D$4*-1*'PM2.5 reduction'!D238),9))","v":0.99999295700000002},{"$f":"VALUE(FIXED(EXP(E$4*-1*'PM2.5 reduction'!E238),9))","v":0.99999826400000003},{"$f":"VALUE(FIXED(EXP(F$4*-1*'PM2.5 reduction'!F238),9))","v":0.99999798200000001},{"$f":"VALUE(FIXED(EXP(G$4*-1*'PM2.5 reduction'!G238),9))","v":0.99999846000000003},{"$f":"VALUE(FIXED(EXP(H$4*-1*'PM2.5 reduction'!H238),9))","v":0.99999673499999997},{"$f":"VALUE(FIXED(EXP(I$4*-1*'PM2.5 reduction'!I238),9))","v":0.99999875900000001},{"$f":"VALUE(FIXED(EXP(J$4*-1*'PM2.5 reduction'!J238),9))","v":0.99999654400000004},{"$f":"VALUE(FIXED(EXP(K$4*-1*'PM2.5 reduction'!K238),9))","v":0.99999629599999995},{"$f":"VALUE(FIXED(EXP(L$4*-1*'PM2.5 reduction'!L238),9))","v":0.999997998},{"$f":"VALUE(FIXED(EXP(M$4*-1*'PM2.5 reduction'!M238),9))","v":0.999997998},{"$f":"VALUE(FIXED(EXP(N$4*-1*'PM2.5 reduction'!N238),9))","v":0.99999385699999999},{"$f":"VALUE(FIXED(EXP(O$4*-1*'PM2.5 reduction'!O238),9))","v":0.99999638899999999},{"$f":"VALUE(FIXED(EXP(P$4*-1*'PM2.5 reduction'!P238),9))","v":0.99999328099999996},{"$f":"VALUE(FIXED(EXP(Q$4*-1*'PM2.5 reduction'!Q238),9))","v":0.99999737300000002},{"$f":"VALUE(FIXED(EXP(R$4*-1*'PM2.5 reduction'!R238),9))","v":0.99999306399999999},{"$f":"VALUE(FIXED(EXP(S$4*-1*'PM2.5 reduction'!S238),9))","v":0.99999062999999999},{"$f":"VALUE(FIXED(EXP(T$4*-1*'PM2.5 reduction'!T238),9))","v":0.99998791399999998},{"$f":"VALUE(FIXED(EXP(U$4*-1*'PM2.5 reduction'!U238),9))","v":1},{"$f":"VALUE(FIXED(EXP(V$4*-1*'PM2.5 reduction'!V238),9))","v":0.99999522699999999},{"$f":"VALUE(FIXED(EXP(W$4*-1*'PM2.5 reduction'!W238),9))","v":0.99999599500000003},{"$f":"VALUE(FIXED(EXP(X$4*-1*'PM2.5 reduction'!X238),9))","v":0.99999599500000003},{"$f":"VALUE(FIXED(EXP(Y$4*-1*'PM2.5 reduction'!Y238),9))","v":0.99999574300000005},{"$f":"VALUE(FIXED(EXP(Z$4*-1*'PM2.5 reduction'!Z238),9))","v":0.99998916800000004},{"$f":"VALUE(FIXED(EXP(AA$4*-1*'PM2.5 reduction'!AA238),9))","v":0.999992557},{"$f":"VALUE(FIXED(EXP(AB$4*-1*'PM2.5 reduction'!AB238),9))","v":0.99999308799999997},{"$f":"VALUE(FIXED(EXP(AC$4*-1*'PM2.5 reduction'!AC238),9))","v":0.99999176599999995},{"$f":"VALUE(FIXED(EXP(AD$4*-1*'PM2.5 reduction'!AD238),9))","v":0.99999749900000001},{"$f":"VALUE(FIXED(EXP(AE$4*-1*'PM2.5 reduction'!AE238),9))","v":0.99999731300000005},{"$f":"VALUE(FIXED(EXP(AF$4*-1*'PM2.5 reduction'!AF238),9))","v":0.99999689300000005},{"$f":"VALUE(FIXED(EXP(AG$4*-1*'PM2.5 reduction'!AG238),9))","v":0.99999731300000005},{"$f":"VALUE(FIXED(EXP(AH$4*-1*'PM2.5 reduction'!AH238),9))","v":0.99999480799999996},{"$f":"VALUE(FIXED(EXP(AI$4*-1*'PM2.5 reduction'!AI238),9))","v":0.99998942899999999},{"$f":"VALUE(FIXED(EXP(AJ$4*-1*'PM2.5 reduction'!AJ238),9))","v":0.99999575500000004},{"$f":"VALUE(FIXED(EXP(AK$4*-1*'PM2.5 reduction'!AK238),9))","v":0.99999806300000005},{"$f":"VALUE(FIXED(EXP(AL$4*-1*'PM2.5 reduction'!AL238),9))","v":0.99999737600000005},{"$f":"VALUE(FIXED(EXP(AM$4*-1*'PM2.5 reduction'!AM238),9))","v":0.99999408000000001},{"$f":"VALUE(FIXED(EXP(AN$4*-1*'PM2.5 reduction'!AN238),9))","v":1},{"$f":"VALUE(FIXED(EXP(AO$4*-1*'PM2.5 reduction'!AO238),9))","v":1},{"$f":"VALUE(FIXED(EXP(AP$4*-1*'PM2.5 reduction'!AP238),9))","v":0.99999734399999995},{"$f":"VALUE(FIXED(EXP(AQ$4*-1*'PM2.5 reduction'!AQ238),9))","v":0.99999499700000005},{"$f":"VALUE(FIXED(EXP(AR$4*-1*'PM2.5 reduction'!AR238),9))","v":0.99999253600000004},{"$f":"VALUE(FIXED(EXP(AS$4*-1*'PM2.5 reduction'!AS238),9))","v":0.99999875900000001},{"$f":"VALUE(FIXED(EXP(AT$4*-1*'PM2.5 reduction'!AT238),9))","v":1},{"$f":"VALUE(FIXED(EXP(AU$4*-1*'PM2.5 reduction'!AU238),9))","v":1},{"$f":"VALUE(FIXED(EXP(AV$4*-1*'PM2.5 reduction'!AV238),9))","v":0.999996675},{"$f":"VALUE(FIXED(EXP(AW$4*-1*'PM2.5 reduction'!AW238),9))","v":0.99999532800000002},{"$f":"VALUE(FIXED(EXP(AX$4*-1*'PM2.5 reduction'!AX238),9))","v":0.99999659600000002},{"$f":"VALUE(FIXED(EXP(AY$4*-1*'PM2.5 reduction'!AY238),9))","v":0.99999607099999999},{"$f":"VALUE(FIXED(EXP(AZ$4*-1*'PM2.5 reduction'!AZ238),9))","v":0.99999616099999999},{"$f":"VALUE(FIXED(EXP(BA$4*-1*'PM2.5 reduction'!BA238),9))","v":0.99999630699999997},{"$f":"VALUE(FIXED(EXP(BB$4*-1*'PM2.5 reduction'!BB238),9))","v":0.99999577699999997},{"$f":"VALUE(FIXED(EXP(BC$4*-1*'PM2.5 reduction'!BC238),9))","v":1}]
[null,"Male 40-44",{"$f":"VALUE(FIXED(EXP(C$4*-1*'PM2.5 reduction'!C239),9))","v":0.99999127899999996},{"$f":"VALUE(FIXED(EXP(D$4*-1*'PM2.5 reduction'!D239),9))","v":0.99999419499999997},{"$f":"VALUE(FIXED(EXP(E$4*-1*'PM2.5 reduction'!E239),9))","v":0.99999828599999996},{"$f":"VALUE(FIXED(EXP(F$4*-1*'PM2.5 reduction'!F239),9))","v":0.99999797000000001},{"$f":"VALUE(FIXED(EXP(G$4*-1*'PM2.5 reduction'!G239),9))","v":0.99999844400000004},{"$f":"VALUE(FIXED(EXP(H$4*-1*'PM2.5 reduction'!H239),9))","v":0.99999669199999996},{"$f":"VALUE(FIXED(EXP(I$4*-1*'PM2.5 reduction'!I239),9))","v":0.99999878600000003},{"$f":"VALUE(FIXED(EXP(J$4*-1*'PM2.5 reduction'!J239),9))","v":0.99999681399999996},{"$f":"VALUE(FIXED(EXP(K$4*-1*'PM2.5 reduction'!K239),9))","v":0.99999652999999999},{"$f":"VALUE(FIXED(EXP(L$4*-1*'PM2.5 reduction'!L239),9))","v":0.99999795300000005},{"$f":"VALUE(FIXED(EXP(M$4*-1*'PM2.5 reduction'!M239),9))","v":0.99999795300000005},{"$f":"VALUE(FIXED(EXP(N$4*-1*'PM2.5 reduction'!N239),9))","v":0.999994461},{"$f":"VALUE(FIXED(EXP(O$4*-1*'PM2.5 reduction'!O239),9))","v":0.99999634800000003},{"$f":"VALUE(FIXED(EXP(P$4*-1*'PM2.5 reduction'!P239),9))","v":0.99999336100000003},{"$f":"VALUE(FIXED(EXP(Q$4*-1*'PM2.5 reduction'!Q239),9))","v":0.99999767699999997},{"$f":"VALUE(FIXED(EXP(R$4*-1*'PM2.5 reduction'!R239),9))","v":0.99999303299999998},{"$f":"VALUE(FIXED(EXP(S$4*-1*'PM2.5 reduction'!S239),9))","v":0.99999155200000001},{"$f":"VALUE(FIXED(EXP(T$4*-1*'PM2.5 reduction'!T239),9))","v":0.99998871600000006},{"$f":"VALUE(FIXED(EXP(U$4*-1*'PM2.5 reduction'!U239),9))","v":1},{"$f":"VALUE(FIXED(EXP(V$4*-1*'PM2.5 reduction'!V239),9))","v":0.99999495400000005},{"$f":"VALUE(FIXED(EXP(W$4*-1*'PM2.5 reduction'!W239),9))","v":0.99999590900000002},{"$f":"VALUE(FIXED(EXP(X$4*-1*'PM2.5 reduction'!X239),9))","v":0.99999590900000002},{"$f":"VALUE(FIXED(EXP(Y$4*-1*'PM2.5 reduction'!Y239),9))","v":0.99999577500000003},{"$f":"VALUE(FIXED(EXP(Z$4*-1*'PM2.5 reduction'!Z239),9))","v":0.99998938500000001},{"$f":"VALUE(FIXED(EXP(AA$4*-1*'PM2.5 reduction'!AA239),9))","v":0.99999288200000003},{"$f":"VALUE(FIXED(EXP(AB$4*-1*'PM2.5 reduction'!AB239),9))","v":0.99999437800000002},{"$f":"VALUE(FIXED(EXP(AC$4*-1*'PM2.5 reduction'!AC239),9))","v":0.99999216400000002},{"$f":"VALUE(FIXED(EXP(AD$4*-1*'PM2.5 reduction'!AD239),9))","v":0.99999767799999995},{"$f":"VALUE(FIXED(EXP(AE$4*-1*'PM2.5 reduction'!AE239),9))","v":0.99999744800000001},{"$f":"VALUE(FIXED(EXP(AF$4*-1*'PM2.5 reduction'!AF239),9))","v":0.99999713499999998},{"$f":"VALUE(FIXED(EXP(AG$4*-1*'PM2.5 reduction'!AG239),9))","v":0.99999744800000001},{"$f":"VALUE(FIXED(EXP(AH$4*-1*'PM2.5 reduction'!AH239),9))","v":0.99999477299999995},{"$f":"VALUE(FIXED(EXP(AI$4*-1*'PM2.5 reduction'!AI239),9))","v":0.99999044599999998},{"$f":"VALUE(FIXED(EXP(AJ$4*-1*'PM2.5 reduction'!AJ239),9))","v":0.99999577500000003},{"$f":"VALUE(FIXED(EXP(AK$4*-1*'PM2.5 reduction'!AK239),9))","v":0.99999822999999999},{"$f":"VALUE(FIXED(EXP(AL$4*-1*'PM2.5 reduction'!AL239),9))","v":0.99999747100000003},{"$f":"VALUE(FIXED(EXP(AM$4*-1*'PM2.5 reduction'!AM239),9))","v":0.99999424800000003},{"$f":"VALUE(FIXED(EXP(AN$4*-1*'PM2.5 reduction'!AN239),9))","v":1},{"$f":"VALUE(FIXED(EXP(AO$4*-1*'PM2.5 reduction'!AO239),9))","v":1},{"$f":"VALUE(FIXED(EXP(AP$4*-1*'PM2.5 reduction'!AP239),9))","v":0.99999739099999996},{"$f":"VALUE(FIXED(EXP(AQ$4*-1*'PM2.5 reduction'!AQ239),9))","v":0.99999486999999998},{"$f":"VALUE(FIXED(EXP(AR$4*-1*'PM2.5 reduction'!AR239),9))","v":0.99999328499999995},{"$f":"VALUE(FIXED(EXP(AS$4*-1*'PM2.5 reduction'!AS239),9))","v":0.99999878600000003},{"$f":"VALUE(FIXED(EXP(AT$4*-1*'PM2.5 reduction'!AT239),9))","v":1},{"$f":"VALUE(FIXED(EXP(AU$4*-1*'PM2.5 reduction'!AU239),9))","v":1},{"$f":"VALUE(FIXED(EXP(AV$4*-1*'PM2.5 reduction'!AV239),9))","v":0.99999659600000002},{"$f":"VALUE(FIXED(EXP(AW$4*-1*'PM2.5 reduction'!AW239),9))","v":0.99999516799999999},{"$f":"VALUE(FIXED(EXP(AX$4*-1*'PM2.5 reduction'!AX239),9))","v":0.99999686899999995},{"$f":"VALUE(FIXED(EXP(AY$4*-1*'PM2.5 reduction'!AY239),9))","v":0.99999619200000001},{"$f":"VALUE(FIXED(EXP(AZ$4*-1*'PM2.5 reduction'!AZ239),9))","v":0.99999652999999999},{"$f":"VALUE(FIXED(EXP(BA$4*-1*'PM2.5 reduction'!BA239),9))","v":0.99999629999999995},{"$f":"VALUE(FIXED(EXP(BB$4*-1*'PM2.5 reduction'!BB239),9))","v":0.99999582099999995},{"$f":"VALUE(FIXED(EXP(BC$4*-1*'PM2.5 reduction'!BC239),9))","v":1}]
[null,"Male 45-49",{"$f":"VALUE(FIXED(EXP(C$4*-1*'PM2.5 reduction'!C240),9))","v":0.999991454},{"$f":"VALUE(FIXED(EXP(D$4*-1*'PM2.5 reduction'!D240),9))","v":0.999994469},{"$f":"VALUE(FIXED(EXP(E$4*-1*'PM2.5 reduction'!E240),9))","v":0.99999828099999999},{"$f":"VALUE(FIXED(EXP(F$4*-1*'PM2.5 reduction'!F240),9))","v":0.99999801099999996},{"$f":"VALUE(FIXED(EXP(G$4*-1*'PM2.5 reduction'!G240),9))","v":0.99999842699999997},{"$f":"VALUE(FIXED(EXP(H$4*-1*'PM2.5 reduction'!H240),9))","v":0.99999672799999995},{"$f":"VALUE(FIXED(EXP(I$4*-1*'PM2.5 reduction'!I240),9))","v":0.99999877400000003},{"$f":"VALUE(FIXED(EXP(J$4*-1*'PM2.5 reduction'!J240),9))","v":0.99999680999999996},{"$f":"VALUE(FIXED(EXP(K$4*-1*'PM2.5 reduction'!K240),9))","v":0.99999632599999999},{"$f":"VALUE(FIXED(EXP(L$4*-1*'PM2.5 reduction'!L240),9))","v":0.99999798699999998},{"$f":"VALUE(FIXED(EXP(M$4*-1*'PM2.5 reduction'!M240),9))","v":0.99999798699999998},{"$f":"VALUE(FIXED(EXP(N$4*-1*'PM2.5 reduction'!N240),9))","v":0.99999447699999999},{"$f":"VALUE(FIXED(EXP(O$4*-1*'PM2.5 reduction'!O240),9))","v":0.99999634699999995},{"$f":"VALUE(FIXED(EXP(P$4*-1*'PM2.5 reduction'!P240),9))","v":0.99999332500000004},{"$f":"VALUE(FIXED(EXP(Q$4*-1*'PM2.5 reduction'!Q240),9))","v":0.99999771699999995},{"$f":"VALUE(FIXED(EXP(R$4*-1*'PM2.5 reduction'!R240),9))","v":0.99999311599999996},{"$f":"VALUE(FIXED(EXP(S$4*-1*'PM2.5 reduction'!S240),9))","v":0.99999204799999997},{"$f":"VALUE(FIXED(EXP(T$4*-1*'PM2.5 reduction'!T240),9))","v":0.99998912399999995},{"$f":"VALUE(FIXED(EXP(U$4*-1*'PM2.5 reduction'!U240),9))","v":1},{"$f":"VALUE(FIXED(EXP(V$4*-1*'PM2.5 reduction'!V240),9))","v":0.99999482200000001},{"$f":"VALUE(FIXED(EXP(W$4*-1*'PM2.5 reduction'!W240),9))","v":0.99999598199999995},{"$f":"VALUE(FIXED(EXP(X$4*-1*'PM2.5 reduction'!X240),9))","v":0.99999598199999995},{"$f":"VALUE(FIXED(EXP(Y$4*-1*'PM2.5 reduction'!Y240),9))","v":0.99999572299999995},{"$f":"VALUE(FIXED(EXP(Z$4*-1*'PM2.5 reduction'!Z240),9))","v":0.99998967599999999},{"$f":"VALUE(FIXED(EXP(AA$4*-1*'PM2.5 reduction'!AA240),9))","v":0.99999312399999996},{"$f":"VALUE(FIXED(EXP(AB$4*-1*'PM2.5 reduction'!AB240),9))","v":0.99999464999999998},{"$f":"VALUE(FIXED(EXP(AC$4*-1*'PM2.5 reduction'!AC240),9))","v":0.99999245699999995},{"$f":"VALUE(FIXED(EXP(AD$4*-1*'PM2.5 reduction'!AD240),9))","v":0.99999760100000001},{"$f":"VALUE(FIXED(EXP(AE$4*-1*'PM2.5 reduction'!AE240),9))","v":0.99999739899999995},{"$f":"VALUE(FIXED(EXP(AF$4*-1*'PM2.5 reduction'!AF240),9))","v":0.99999723699999998},{"$f":"VALUE(FIXED(EXP(AG$4*-1*'PM2.5 reduction'!AG240),9))","v":0.99999739899999995},{"$f":"VALUE(FIXED(EXP(AH$4*-1*'PM2.5 reduction'!AH240),9))","v":0.99999492300000004},{"$f":"VALUE(FIXED(EXP(AI$4*-1*'PM2.5 reduction'!AI240),9))","v":0.99999094899999996},{"$f":"VALUE(FIXED(EXP(AJ$4*-1*'PM2.5 reduction'!AJ240),9))","v":0.99999553500000005},{"$f":"VALUE(FIXED(EXP(AK$4*-1*'PM2.5 reduction'!AK240),9))","v":0.99999818299999998},{"$f":"VALUE(FIXED(EXP(AL$4*-1*'PM2.5 reduction'!AL240),9))","v":0.999997413},{"$f":"VALUE(FIXED(EXP(AM$4*-1*'PM2.5 reduction'!AM240),9))","v":0.99999437499999999},{"$f":"VALUE(FIXED(EXP(AN$4*-1*'PM2.5 reduction'!AN240),9))","v":1},{"$f":"VALUE(FIXED(EXP(AO$4*-1*'PM2.5 reduction'!AO240),9))","v":1},{"$f":"VALUE(FIXED(EXP(AP$4*-1*'PM2.5 reduction'!AP240),9))","v":0.99999743200000002},{"$f":"VALUE(FIXED(EXP(AQ$4*-1*'PM2.5 reduction'!AQ240),9))","v":0.99999490899999999},{"$f":"VALUE(FIXED(EXP(AR$4*-1*'PM2.5 reduction'!AR240),9))","v":0.99999360999999998},{"$f":"VALUE(FIXED(EXP(AS$4*-1*'PM2.5 reduction'!AS240),9))","v":0.99999877400000003},{"$f":"VALUE(FIXED(EXP(AT$4*-1*'PM2.5 reduction'!AT240),9))","v":1},{"$f":"VALUE(FIXED(EXP(AU$4*-1*'PM2.5 reduction'!AU240),9))","v":1},{"$f":"VALUE(FIXED(EXP(AV$4*-1*'PM2.5 reduction'!AV240),9))","v":0.99999670100000004},{"$f":"VALUE(FIXED(EXP(AW$4*-1*'PM2.5 reduction'!AW240),9))","v":0.99999534300000004},{"$f":"VALUE(FIXED(EXP(AX$4*-1*'PM2.5 reduction'!AX240),9))","v":0.99999691400000001},{"$f":"VALUE(FIXED(EXP(AY$4*-1*'PM2.5 reduction'!AY240),9))","v":0.99999619699999998},{"$f":"VALUE(FIXED(EXP(AZ$4*-1*'PM2.5 reduction'!AZ240),9))","v":0.99999643400000005},{"$f":"VALUE(FIXED(EXP(BA$4*-1*'PM2.5 reduction'!BA240),9))","v":0.99999634299999995},{"$f":"VALUE(FIXED(EXP(BB$4*-1*'PM2.5 reduction'!BB240),9))","v":0.99999592199999998},{"$f":"VALUE(FIXED(EXP(BC$4*-1*'PM2.5 reduction'!BC240),9))","v":1}]
[null,"Male 50-54",{"$f":"VALUE(FIXED(EXP(C$4*-1*'PM2.5 reduction'!C241),9))","v":0.99999154199999996},{"$f":"VALUE(FIXED(EXP(D$4*-1*'PM2.5 reduction'!D241),9))","v":0.99999446400000003},{"$f":"VALUE(FIXED(EXP(E$4*-1*'PM2.5 reduction'!E241),9))","v":0.99999825499999995},{"$f":"VALUE(FIXED(EXP(F$4*-1*'PM2.5 reduction'!F241),9))","v":0.99999794500000005},{"$f":"VALUE(FIXED(EXP(G$4*-1*'PM2.5 reduction'!G241),9))","v":0.99999844599999999},{"$f":"VALUE(FIXED(EXP(H$4*-1*'PM2.5 reduction'!H241),9))","v":0.99999667999999997},{"$f":"VALUE(FIXED(EXP(I$4*-1*'PM2.5 reduction'!I241),9))","v":0.99999877000000004},{"$f":"VALUE(FIXED(EXP(J$4*-1*'PM2.5 reduction'!J241),9))","v":0.99999676100000001},{"$f":"VALUE(FIXED(EXP(K$4*-1*'PM2.5 reduction'!K241),9))","v":0.99999644600000004},{"$f":"VALUE(FIXED(EXP(L$4*-1*'PM2.5 reduction'!L241),9))","v":0.99999792799999998},{"$f":"VALUE(FIXED(EXP(M$4*-1*'PM2.5 reduction'!M241),9))","v":0.99999792799999998},{"$f":"VALUE(FIXED(EXP(N$4*-1*'PM2.5 reduction'!N241),9))","v":0.99999455000000004},{"$f":"VALUE(FIXED(EXP(O$4*-1*'PM2.5 reduction'!O241),9))","v":0.99999620300000003},{"$f":"VALUE(FIXED(EXP(P$4*-1*'PM2.5 reduction'!P241),9))","v":0.99999319499999995},{"$f":"VALUE(FIXED(EXP(Q$4*-1*'PM2.5 reduction'!Q241),9))","v":0.99999772200000003},{"$f":"VALUE(FIXED(EXP(R$4*-1*'PM2.5 reduction'!R241),9))","v":0.99999315600000005},{"$f":"VALUE(FIXED(EXP(S$4*-1*'PM2.5 reduction'!S241),9))","v":0.99999200700000002},{"$f":"VALUE(FIXED(EXP(T$4*-1*'PM2.5 reduction'!T241),9))","v":0.99998919399999997},{"$f":"VALUE(FIXED(EXP(U$4*-1*'PM2.5 reduction'!U241),9))","v":1},{"$f":"VALUE(FIXED(EXP(V$4*-1*'PM2.5 reduction'!V241),9))","v":0.99999478799999997},{"$f":"VALUE(FIXED(EXP(W$4*-1*'PM2.5 reduction'!W241),9))","v":0.99999603000000004},{"$f":"VALUE(FIXED(EXP(X$4*-1*'PM2.5 reduction'!X241),9))","v":0.99999603000000004},{"$f":"VALUE(FIXED(EXP(Y$4*-1*'PM2.5 reduction'!Y241),9))","v":0.99999563199999997},{"$f":"VALUE(FIXED(EXP(Z$4*-1*'PM2.5 reduction'!Z241),9))","v":0.999989974},{"$f":"VALUE(FIXED(EXP(AA$4*-1*'PM2.5 reduction'!AA241),9))","v":0.99999323500000004},{"$f":"VALUE(FIXED(EXP(AB$4*-1*'PM2.5 reduction'!AB241),9))","v":0.99999466400000003},{"$f":"VALUE(FIXED(EXP(AC$4*-1*'PM2.5 reduction'!AC241),9))","v":0.99999265299999995},{"$f":"VALUE(FIXED(EXP(AD$4*-1*'PM2.5 reduction'!AD241),9))","v":0.99999760999999998},{"$f":"VALUE(FIXED(EXP(AE$4*-1*'PM2.5 reduction'!AE241),9))","v":0.99999734600000001},{"$f":"VALUE(FIXED(EXP(AF$4*-1*'PM2.5 reduction'!AF241),9))","v":0.99999711999999996},{"$f":"VALUE(FIXED(EXP(AG$4*-1*'PM2.5 reduction'!AG241),9))","v":0.99999734600000001},{"$f":"VALUE(FIXED(EXP(AH$4*-1*'PM2.5 reduction'!AH241),9))","v":0.99999480500000004},{"$f":"VALUE(FIXED(EXP(AI$4*-1*'PM2.5 reduction'!AI241),9))","v":0.99999103600000006},{"$f":"VALUE(FIXED(EXP(AJ$4*-1*'PM2.5 reduction'!AJ241),9))","v":0.999995674},{"$f":"VALUE(FIXED(EXP(AK$4*-1*'PM2.5 reduction'!AK241),9))","v":0.99999831500000003},{"$f":"VALUE(FIXED(EXP(AL$4*-1*'PM2.5 reduction'!AL241),9))","v":0.99999743699999999},{"$f":"VALUE(FIXED(EXP(AM$4*-1*'PM2.5 reduction'!AM241),9))","v":0.99999423399999998},{"$f":"VALUE(FIXED(EXP(AN$4*-1*'PM2.5 reduction'!AN241),9))","v":1},{"$f":"VALUE(FIXED(EXP(AO$4*-1*'PM2.5 reduction'!AO241),9))","v":1},{"$f":"VALUE(FIXED(EXP(AP$4*-1*'PM2.5 reduction'!AP241),9))","v":0.99999744099999999},{"$f":"VALUE(FIXED(EXP(AQ$4*-1*'PM2.5 reduction'!AQ241),9))","v":0.99999491200000001},{"$f":"VALUE(FIXED(EXP(AR$4*-1*'PM2.5 reduction'!AR241),9))","v":0.99999370099999996},{"$f":"VALUE(FIXED(EXP(AS$4*-1*'PM2.5 reduction'!AS241),9))","v":0.99999877000000004},{"$f":"VALUE(FIXED(EXP(AT$4*-1*'PM2.5 reduction'!AT241),9))","v":1},{"$f":"VALUE(FIXED(EXP(AU$4*-1*'PM2.5 reduction'!AU241),9))","v":1},{"$f":"VALUE(FIXED(EXP(AV$4*-1*'PM2.5 reduction'!AV241),9))","v":0.999996632},{"$f":"VALUE(FIXED(EXP(AW$4*-1*'PM2.5 reduction'!AW241),9))","v":0.99999527099999996},{"$f":"VALUE(FIXED(EXP(AX$4*-1*'PM2.5 reduction'!AX241),9))","v":0.99999682300000003},{"$f":"VALUE(FIXED(EXP(AY$4*-1*'PM2.5 reduction'!AY241),9))","v":0.999996357},{"$f":"VALUE(FIXED(EXP(AZ$4*-1*'PM2.5 reduction'!AZ241),9))","v":0.99999663000000005},{"$f":"VALUE(FIXED(EXP(BA$4*-1*'PM2.5 reduction'!BA241),9))","v":0.99999638300000004},{"$f":"VALUE(FIXED(EXP(BB$4*-1*'PM2.5 reduction'!BB241),9))","v":0.99999600799999999},{"$f":"VALUE(FIXED(EXP(BC$4*-1*'PM2.5 reduction'!BC241),9))","v":1}]
[null,"Male 55-59",{"$f":"VALUE(FIXED(EXP(C$4*-1*'PM2.5 reduction'!C242),9))","v":0.99999172800000002},{"$f":"VALUE(FIXED(EXP(D$4*-1*'PM2.5 reduction'!D242),9))","v":0.999994457},{"$f":"VALUE(FIXED(EXP(E$4*-1*'PM2.5 reduction'!E242),9))","v":0.999998214},{"$f":"VALUE(FIXED(EXP(F$4*-1*'PM2.5 reduction'!F242),9))","v":0.99999790200000005},{"$f":"VALUE(FIXED(EXP(G$4*-1*'PM2.5 reduction'!G242),9))","v":0.99999844299999996},{"$f":"VALUE(FIXED(EXP(H$4*-1*'PM2.5 reduction'!H242),9))","v":0.99999665900000001},{"$f":"VALUE(FIXED(EXP(I$4*-1*'PM2.5 reduction'!I242),9))","v":0.99999875900000001},{"$f":"VALUE(FIXED(EXP(J$4*-1*'PM2.5 reduction'!J242),9))","v":0.99999693899999997},{"$f":"VALUE(FIXED(EXP(K$4*-1*'PM2.5 reduction'!K242),9))","v":0.999996789},{"$f":"VALUE(FIXED(EXP(L$4*-1*'PM2.5 reduction'!L242),9))","v":0.99999796900000004},{"$f":"VALUE(FIXED(EXP(M$4*-1*'PM2.5 reduction'!M242),9))","v":0.99999796900000004},{"$f":"VALUE(FIXED(EXP(N$4*-1*'PM2.5 reduction'!N242),9))","v":0.99999441700000002},{"$f":"VALUE(FIXED(EXP(O$4*-1*'PM2.5 reduction'!O242),9))","v":0.99999629099999998},{"$f":"VALUE(FIXED(EXP(P$4*-1*'PM2.5 reduction'!P242),9))","v":0.99999327000000005},{"$f":"VALUE(FIXED(EXP(Q$4*-1*'PM2.5 reduction'!Q242),9))","v":0.99999780800000004},{"$f":"VALUE(FIXED(EXP(R$4*-1*'PM2.5 reduction'!R242),9))","v":0.99999315799999999},{"$f":"VALUE(FIXED(EXP(S$4*-1*'PM2.5 reduction'!S242),9))","v":0.99999222700000001},{"$f":"VALUE(FIXED(EXP(T$4*-1*'PM2.5 reduction'!T242),9))","v":0.99998951300000005},{"$f":"VALUE(FIXED(EXP(U$4*-1*'PM2.5 reduction'!U242),9))","v":1},{"$f":"VALUE(FIXED(EXP(V$4*-1*'PM2.5 reduction'!V242),9))","v":0.999994838},{"$f":"VALUE(FIXED(EXP(W$4*-1*'PM2.5 reduction'!W242),9))","v":0.99999611700000002},{"$f":"VALUE(FIXED(EXP(X$4*-1*'PM2.5 reduction'!X242),9))","v":0.99999611700000002},{"$f":"VALUE(FIXED(EXP(Y$4*-1*'PM2.5 reduction'!Y242),9))","v":0.99999575900000004},{"$f":"VALUE(FIXED(EXP(Z$4*-1*'PM2.5 reduction'!Z242),9))","v":0.99998977300000003},{"$f":"VALUE(FIXED(EXP(AA$4*-1*'PM2.5 reduction'!AA242),9))","v":0.99999322000000002},{"$f":"VALUE(FIXED(EXP(AB$4*-1*'PM2.5 reduction'!AB242),9))","v":0.99999463799999999},{"$f":"VALUE(FIXED(EXP(AC$4*-1*'PM2.5 reduction'!AC242),9))","v":0.99999266899999995},{"$f":"VALUE(FIXED(EXP(AD$4*-1*'PM2.5 reduction'!AD242),9))","v":0.99999779499999997},{"$f":"VALUE(FIXED(EXP(AE$4*-1*'PM2.5 reduction'!AE242),9))","v":0.99999758500000002},{"$f":"VALUE(FIXED(EXP(AF$4*-1*'PM2.5 reduction'!AF242),9))","v":0.99999690200000002},{"$f":"VALUE(FIXED(EXP(AG$4*-1*'PM2.5 reduction'!AG242),9))","v":0.99999758500000002},{"$f":"VALUE(FIXED(EXP(AH$4*-1*'PM2.5 reduction'!AH242),9))","v":0.99999475299999996},{"$f":"VALUE(FIXED(EXP(AI$4*-1*'PM2.5 reduction'!AI242),9))","v":0.99999117999999998},{"$f":"VALUE(FIXED(EXP(AJ$4*-1*'PM2.5 reduction'!AJ242),9))","v":0.99999570400000004},{"$f":"VALUE(FIXED(EXP(AK$4*-1*'PM2.5 reduction'!AK242),9))","v":0.99999818900000004},{"$f":"VALUE(FIXED(EXP(AL$4*-1*'PM2.5 reduction'!AL242),9))","v":0.99999760599999998},{"$f":"VALUE(FIXED(EXP(AM$4*-1*'PM2.5 reduction'!AM242),9))","v":0.99999417499999999},{"$f":"VALUE(FIXED(EXP(AN$4*-1*'PM2.5 reduction'!AN242),9))","v":1},{"$f":"VALUE(FIXED(EXP(AO$4*-1*'PM2.5 reduction'!AO242),9))","v":1},{"$f":"VALUE(FIXED(EXP(AP$4*-1*'PM2.5 reduction'!AP242),9))","v":0.99999750399999998},{"$f":"VALUE(FIXED(EXP(AQ$4*-1*'PM2.5 reduction'!AQ242),9))","v":0.99999498200000003},{"$f":"VALUE(FIXED(EXP(AR$4*-1*'PM2.5 reduction'!AR242),9))","v":0.99999376500000003},{"$f":"VALUE(FIXED(EXP(AS$4*-1*'PM2.5 reduction'!AS242),9))","v":0.99999875900000001},{"$f":"VALUE(FIXED(EXP(AT$4*-1*'PM2.5 reduction'!AT242),9))","v":1},{"$f":"VALUE(FIXED(EXP(AU$4*-1*'PM2.5 reduction'!AU242),9))","v":1},{"$f":"VALUE(FIXED(EXP(AV$4*-1*'PM2.5 reduction'!AV242),9))","v":0.999996565},{"$f":"VALUE(FIXED(EXP(AW$4*-1*'PM2.5 reduction'!AW242),9))","v":0.99999517800000004},{"$f":"VALUE(FIXED(EXP(AX$4*-1*'PM2.5 reduction'!AX242),9))","v":0.99999696299999996},{"$f":"VALUE(FIXED(EXP(AY$4*-1*'PM2.5 reduction'!AY242),9))","v":0.99999629199999995},{"$f":"VALUE(FIXED(EXP(AZ$4*-1*'PM2.5 reduction'!AZ242),9))","v":0.99999644700000001},{"$f":"VALUE(FIXED(EXP(BA$4*-1*'PM2.5 reduction'!BA242),9))","v":0.999996459},{"$f":"VALUE(FIXED(EXP(BB$4*-1*'PM2.5 reduction'!BB242),9))","v":0.99999613899999995},{"$f":"VALUE(FIXED(EXP(BC$4*-1*'PM2.5 reduction'!BC242),9))","v":1}]
[null,"Male 60-64",{"$f":"VALUE(FIXED(EXP(C$4*-1*'PM2.5 reduction'!C243),9))","v":0.99999153799999996},{"$f":"VALUE(FIXED(EXP(D$4*-1*'PM2.5 reduction'!D243),9))","v":0.99999443799999999},{"$f":"VALUE(FIXED(EXP(E$4*-1*'PM2.5 reduction'!E243),9))","v":0.99999816600000002},{"$f":"VALUE(FIXED(EXP(F$4*-1*'PM2.5 reduction'!F243),9))","v":0.99999790200000005},{"$f":"VALUE(FIXED(EXP(G$4*-1*'PM2.5 reduction'!G243),9))","v":0.99999842000000005},{"$f":"VALUE(FIXED(EXP(H$4*-1*'PM2.5 reduction'!H243),9))","v":0.99999673},{"$f":"VALUE(FIXED(EXP(I$4*-1*'PM2.5 reduction'!I243),9))","v":0.99999874899999996},{"$f":"VALUE(FIXED(EXP(J$4*-1*'PM2.5 reduction'!J243),9))","v":0.99999694400000005},{"$f":"VALUE(FIXED(EXP(K$4*-1*'PM2.5 reduction'!K243),9))","v":0.99999676400000004},{"$f":"VALUE(FIXED(EXP(L$4*-1*'PM2.5 reduction'!L243),9))","v":0.99999797899999998},{"$f":"VALUE(FIXED(EXP(M$4*-1*'PM2.5 reduction'!M243),9))","v":0.99999797899999998},{"$f":"VALUE(FIXED(EXP(N$4*-1*'PM2.5 reduction'!N243),9))","v":0.99999447900000005},{"$f":"VALUE(FIXED(EXP(O$4*-1*'PM2.5 reduction'!O243),9))","v":0.999996471},{"$f":"VALUE(FIXED(EXP(P$4*-1*'PM2.5 reduction'!P243),9))","v":0.99999326799999999},{"$f":"VALUE(FIXED(EXP(Q$4*-1*'PM2.5 reduction'!Q243),9))","v":0.99999795700000005},{"$f":"VALUE(FIXED(EXP(R$4*-1*'PM2.5 reduction'!R243),9))","v":0.99999312600000001},{"$f":"VALUE(FIXED(EXP(S$4*-1*'PM2.5 reduction'!S243),9))","v":0.99999228799999995},{"$f":"VALUE(FIXED(EXP(T$4*-1*'PM2.5 reduction'!T243),9))","v":0.99998958199999999},{"$f":"VALUE(FIXED(EXP(U$4*-1*'PM2.5 reduction'!U243),9))","v":1},{"$f":"VALUE(FIXED(EXP(V$4*-1*'PM2.5 reduction'!V243),9))","v":0.99999476700000001},{"$f":"VALUE(FIXED(EXP(W$4*-1*'PM2.5 reduction'!W243),9))","v":0.99999627199999996},{"$f":"VALUE(FIXED(EXP(X$4*-1*'PM2.5 reduction'!X243),9))","v":0.99999627199999996},{"$f":"VALUE(FIXED(EXP(Y$4*-1*'PM2.5 reduction'!Y243),9))","v":0.99999577699999997},{"$f":"VALUE(FIXED(EXP(Z$4*-1*'PM2.5 reduction'!Z243),9))","v":0.99998991800000003},{"$f":"VALUE(FIXED(EXP(AA$4*-1*'PM2.5 reduction'!AA243),9))","v":0.99999319900000005},{"$f":"VALUE(FIXED(EXP(AB$4*-1*'PM2.5 reduction'!AB243),9))","v":0.99999466000000004},{"$f":"VALUE(FIXED(EXP(AC$4*-1*'PM2.5 reduction'!AC243),9))","v":0.99999266099999995},{"$f":"VALUE(FIXED(EXP(AD$4*-1*'PM2.5 reduction'!AD243),9))","v":0.99999772600000003},{"$f":"VALUE(FIXED(EXP(AE$4*-1*'PM2.5 reduction'!AE243),9))","v":0.99999750899999995},{"$f":"VALUE(FIXED(EXP(AF$4*-1*'PM2.5 reduction'!AF243),9))","v":0.99999723600000001},{"$f":"VALUE(FIXED(EXP(AG$4*-1*'PM2.5 reduction'!AG243),9))","v":0.99999750899999995},{"$f":"VALUE(FIXED(EXP(AH$4*-1*'PM2.5 reduction'!AH243),9))","v":0.99999470599999996},{"$f":"VALUE(FIXED(EXP(AI$4*-1*'PM2.5 reduction'!AI243),9))","v":0.99999115500000002},{"$f":"VALUE(FIXED(EXP(AJ$4*-1*'PM2.5 reduction'!AJ243),9))","v":0.99999603800000003},{"$f":"VALUE(FIXED(EXP(AK$4*-1*'PM2.5 reduction'!AK243),9))","v":0.99999816100000005},{"$f":"VALUE(FIXED(EXP(AL$4*-1*'PM2.5 reduction'!AL243),9))","v":0.999997582},{"$f":"VALUE(FIXED(EXP(AM$4*-1*'PM2.5 reduction'!AM243),9))","v":0.99999416500000005},{"$f":"VALUE(FIXED(EXP(AN$4*-1*'PM2.5 reduction'!AN243),9))","v":1},{"$f":"VALUE(FIXED(EXP(AO$4*-1*'PM2.5 reduction'!AO243),9))","v":1},{"$f":"VALUE(FIXED(EXP(AP$4*-1*'PM2.5 reduction'!AP243),9))","v":0.99999755099999998},{"$f":"VALUE(FIXED(EXP(AQ$4*-1*'PM2.5 reduction'!AQ243),9))","v":0.99999497800000003},{"$f":"VALUE(FIXED(EXP(AR$4*-1*'PM2.5 reduction'!AR243),9))","v":0.999993837},{"$f":"VALUE(FIXED(EXP(AS$4*-1*'PM2.5 reduction'!AS243),9))","v":0.99999874899999996},{"$f":"VALUE(FIXED(EXP(AT$4*-1*'PM2.5 reduction'!AT243),9))","v":1},{"$f":"VALUE(FIXED(EXP(AU$4*-1*'PM2.5 reduction'!AU243),9))","v":1},{"$f":"VALUE(FIXED(EXP(AV$4*-1*'PM2.5 reduction'!AV243),9))","v":0.99999656699999995},{"$f":"VALUE(FIXED(EXP(AW$4*-1*'PM2.5 reduction'!AW243),9))","v":0.99999508000000004},{"$f":"VALUE(FIXED(EXP(AX$4*-1*'PM2.5 reduction'!AX243),9))","v":0.99999698199999998},{"$f":"VALUE(FIXED(EXP(AY$4*-1*'PM2.5 reduction'!AY243),9))","v":0.99999645199999998},{"$f":"VALUE(FIXED(EXP(AZ$4*-1*'PM2.5 reduction'!AZ243),9))","v":0.99999660300000004},{"$f":"VALUE(FIXED(EXP(BA$4*-1*'PM2.5 reduction'!BA243),9))","v":0.99999628399999996},{"$f":"VALUE(FIXED(EXP(BB$4*-1*'PM2.5 reduction'!BB243),9))","v":0.99999627000000002},{"$f":"VALUE(FIXED(EXP(BC$4*-1*'PM2.5 reduction'!BC243),9))","v":1}]
[null,"Male 65-69",{"$f":"VALUE(FIXED(EXP(C$4*-1*'PM2.5 reduction'!C244),9))","v":0.99999173699999999},{"$f":"VALUE(FIXED(EXP(D$4*-1*'PM2.5 reduction'!D244),9))","v":0.99999463099999997},{"$f":"VALUE(FIXED(EXP(E$4*-1*'PM2.5 reduction'!E244),9))","v":0.99999826400000003},{"$f":"VALUE(FIXED(EXP(F$4*-1*'PM2.5 reduction'!F244),9))","v":0.99999785100000005},{"$f":"VALUE(FIXED(EXP(G$4*-1*'PM2.5 reduction'!G244),9))","v":0.99999840500000003},{"$f":"VALUE(FIXED(EXP(H$4*-1*'PM2.5 reduction'!H244),9))","v":0.999996734},{"$f":"VALUE(FIXED(EXP(I$4*-1*'PM2.5 reduction'!I244),9))","v":0.99999877999999998},{"$f":"VALUE(FIXED(EXP(J$4*-1*'PM2.5 reduction'!J244),9))","v":0.99999669999999996},{"$f":"VALUE(FIXED(EXP(K$4*-1*'PM2.5 reduction'!K244),9))","v":0.99999683299999997},{"$f":"VALUE(FIXED(EXP(L$4*-1*'PM2.5 reduction'!L244),9))","v":0.99999800100000003},{"$f":"VALUE(FIXED(EXP(M$4*-1*'PM2.5 reduction'!M244),9))","v":0.99999800100000003},{"$f":"VALUE(FIXED(EXP(N$4*-1*'PM2.5 reduction'!N244),9))","v":0.999994355},{"$f":"VALUE(FIXED(EXP(O$4*-1*'PM2.5 reduction'!O244),9))","v":0.99999648100000005},{"$f":"VALUE(FIXED(EXP(P$4*-1*'PM2.5 reduction'!P244),9))","v":0.99999329299999995},{"$f":"VALUE(FIXED(EXP(Q$4*-1*'PM2.5 reduction'!Q244),9))","v":0.99999809900000003},{"$f":"VALUE(FIXED(EXP(R$4*-1*'PM2.5 reduction'!R244),9))","v":0.99999310900000005},{"$f":"VALUE(FIXED(EXP(S$4*-1*'PM2.5 reduction'!S244),9))","v":0.99999243199999999},{"$f":"VALUE(FIXED(EXP(T$4*-1*'PM2.5 reduction'!T244),9))","v":0.99998971999999997},{"$f":"VALUE(FIXED(EXP(U$4*-1*'PM2.5 reduction'!U244),9))","v":1},{"$f":"VALUE(FIXED(EXP(V$4*-1*'PM2.5 reduction'!V244),9))","v":0.99999460299999998},{"$f":"VALUE(FIXED(EXP(W$4*-1*'PM2.5 reduction'!W244),9))","v":0.99999629800000001},{"$f":"VALUE(FIXED(EXP(X$4*-1*'PM2.5 reduction'!X244),9))","v":0.99999629800000001},{"$f":"VALUE(FIXED(EXP(Y$4*-1*'PM2.5 reduction'!Y244),9))","v":0.99999565000000001},{"$f":"VALUE(FIXED(EXP(Z$4*-1*'PM2.5 reduction'!Z244),9))","v":0.99998994500000005},{"$f":"VALUE(FIXED(EXP(AA$4*-1*'PM2.5 reduction'!AA244),9))","v":0.99999322000000002},{"$f":"VALUE(FIXED(EXP(AB$4*-1*'PM2.5 reduction'!AB244),9))","v":0.99999487799999998},{"$f":"VALUE(FIXED(EXP(AC$4*-1*'PM2.5 reduction'!AC244),9))","v":0.999992722},{"$f":"VALUE(FIXED(EXP(AD$4*-1*'PM2.5 reduction'!AD244),9))","v":0.99999774399999997},{"$f":"VALUE(FIXED(EXP(AE$4*-1*'PM2.5 reduction'!AE244),9))","v":0.99999751299999995},{"$f":"VALUE(FIXED(EXP(AF$4*-1*'PM2.5 reduction'!AF244),9))","v":0.99999702099999999},{"$f":"VALUE(FIXED(EXP(AG$4*-1*'PM2.5 reduction'!AG244),9))","v":0.99999751299999995},{"$f":"VALUE(FIXED(EXP(AH$4*-1*'PM2.5 reduction'!AH244),9))","v":0.99999472300000003},{"$f":"VALUE(FIXED(EXP(AI$4*-1*'PM2.5 reduction'!AI244),9))","v":0.99999118799999998},{"$f":"VALUE(FIXED(EXP(AJ$4*-1*'PM2.5 reduction'!AJ244),9))","v":0.99999583800000003},{"$f":"VALUE(FIXED(EXP(AK$4*-1*'PM2.5 reduction'!AK244),9))","v":0.999998163},{"$f":"VALUE(FIXED(EXP(AL$4*-1*'PM2.5 reduction'!AL244),9))","v":0.99999764800000002},{"$f":"VALUE(FIXED(EXP(AM$4*-1*'PM2.5 reduction'!AM244),9))","v":0.99999420900000002},{"$f":"VALUE(FIXED(EXP(AN$4*-1*'PM2.5 reduction'!AN244),9))","v":1},{"$f":"VALUE(FIXED(EXP(AO$4*-1*'PM2.5 reduction'!AO244),9))","v":1},{"$f":"VALUE(FIXED(EXP(AP$4*-1*'PM2.5 reduction'!AP244),9))","v":0.99999764800000002},{"$f":"VALUE(FIXED(EXP(AQ$4*-1*'PM2.5 reduction'!AQ244),9))","v":0.99999501199999996},{"$f":"VALUE(FIXED(EXP(AR$4*-1*'PM2.5 reduction'!AR244),9))","v":0.99999396799999996},{"$f":"VALUE(FIXED(EXP(AS$4*-1*'PM2.5 reduction'!AS244),9))","v":0.99999877999999998},{"$f":"VALUE(FIXED(EXP(AT$4*-1*'PM2.5 reduction'!AT244),9))","v":1},{"$f":"VALUE(FIXED(EXP(AU$4*-1*'PM2.5 reduction'!AU244),9))","v":1},{"$f":"VALUE(FIXED(EXP(AV$4*-1*'PM2.5 reduction'!AV244),9))","v":0.99999663599999999},{"$f":"VALUE(FIXED(EXP(AW$4*-1*'PM2.5 reduction'!AW244),9))","v":0.99999507399999998},{"$f":"VALUE(FIXED(EXP(AX$4*-1*'PM2.5 reduction'!AX244),9))","v":0.999996671},{"$f":"VALUE(FIXED(EXP(AY$4*-1*'PM2.5 reduction'!AY244),9))","v":0.999996522},{"$f":"VALUE(FIXED(EXP(AZ$4*-1*'PM2.5 reduction'!AZ244),9))","v":0.99999670799999996},{"$f":"VALUE(FIXED(EXP(BA$4*-1*'PM2.5 reduction'!BA244),9))","v":0.99999654699999996},{"$f":"VALUE(FIXED(EXP(BB$4*-1*'PM2.5 reduction'!BB244),9))","v":0.99999632299999996},{"$f":"VALUE(FIXED(EXP(BC$4*-1*'PM2.5 reduction'!BC244),9))","v":1}]
[null,"Male 70-74",{"$f":"VALUE(FIXED(EXP(C$4*-1*'PM2.5 reduction'!C245),9))","v":0.99999186699999998},{"$f":"VALUE(FIXED(EXP(D$4*-1*'PM2.5 reduction'!D245),9))","v":0.99999482699999998},{"$f":"VALUE(FIXED(EXP(E$4*-1*'PM2.5 reduction'!E245),9))","v":0.99999819099999998},{"$f":"VALUE(FIXED(EXP(F$4*-1*'PM2.5 reduction'!F245),9))","v":0.999997782},{"$f":"VALUE(FIXED(EXP(G$4*-1*'PM2.5 reduction'!G245),9))","v":0.999998422},{"$f":"VALUE(FIXED(EXP(H$4*-1*'PM2.5 reduction'!H245),9))","v":0.99999678199999997},{"$f":"VALUE(FIXED(EXP(I$4*-1*'PM2.5 reduction'!I245),9))","v":0.99999877500000001},{"$f":"VALUE(FIXED(EXP(J$4*-1*'PM2.5 reduction'!J245),9))","v":0.99999687199999998},{"$f":"VALUE(FIXED(EXP(K$4*-1*'PM2.5 reduction'!K245),9))","v":0.99999707599999998},{"$f":"VALUE(FIXED(EXP(L$4*-1*'PM2.5 reduction'!L245),9))","v":0.99999802500000001},{"$f":"VALUE(FIXED(EXP(M$4*-1*'PM2.5 reduction'!M245),9))","v":0.99999802500000001},{"$f":"VALUE(FIXED(EXP(N$4*-1*'PM2.5 reduction'!N245),9))","v":0.99999446299999994},{"$f":"VALUE(FIXED(EXP(O$4*-1*'PM2.5 reduction'!O245),9))","v":0.99999656000000003},{"$f":"VALUE(FIXED(EXP(P$4*-1*'PM2.5 reduction'!P245),9))","v":0.99999321299999999},{"$f":"VALUE(FIXED(EXP(Q$4*-1*'PM2.5 reduction'!Q245),9))","v":0.99999839899999998},{"$f":"VALUE(FIXED(EXP(R$4*-1*'PM2.5 reduction'!R245),9))","v":0.99999311099999999},{"$f":"VALUE(FIXED(EXP(S$4*-1*'PM2.5 reduction'!S245),9))","v":0.999992624},{"$f":"VALUE(FIXED(EXP(T$4*-1*'PM2.5 reduction'!T245),9))","v":0.99998988600000005},{"$f":"VALUE(FIXED(EXP(U$4*-1*'PM2.5 reduction'!U245),9))","v":1},{"$f":"VALUE(FIXED(EXP(V$4*-1*'PM2.5 reduction'!V245),9))","v":0.99999459300000004},{"$f":"VALUE(FIXED(EXP(W$4*-1*'PM2.5 reduction'!W245),9))","v":0.99999633700000001},{"$f":"VALUE(FIXED(EXP(X$4*-1*'PM2.5 reduction'!X245),9))","v":0.99999633700000001},{"$f":"VALUE(FIXED(EXP(Y$4*-1*'PM2.5 reduction'!Y245),9))","v":0.99999574899999999},{"$f":"VALUE(FIXED(EXP(Z$4*-1*'PM2.5 reduction'!Z245),9))","v":0.99998998900000002},{"$f":"VALUE(FIXED(EXP(AA$4*-1*'PM2.5 reduction'!AA245),9))","v":0.99999334200000001},{"$f":"VALUE(FIXED(EXP(AB$4*-1*'PM2.5 reduction'!AB245),9))","v":0.99999510999999996},{"$f":"VALUE(FIXED(EXP(AC$4*-1*'PM2.5 reduction'!AC245),9))","v":0.99999284200000005},{"$f":"VALUE(FIXED(EXP(AD$4*-1*'PM2.5 reduction'!AD245),9))","v":0.99999775000000002},{"$f":"VALUE(FIXED(EXP(AE$4*-1*'PM2.5 reduction'!AE245),9))","v":0.99999746099999998},{"$f":"VALUE(FIXED(EXP(AF$4*-1*'PM2.5 reduction'!AF245),9))","v":0.99999723299999999},{"$f":"VALUE(FIXED(EXP(AG$4*-1*'PM2.5 reduction'!AG245),9))","v":0.99999746099999998},{"$f":"VALUE(FIXED(EXP(AH$4*-1*'PM2.5 reduction'!AH245),9))","v":0.99999486100000001},{"$f":"VALUE(FIXED(EXP(AI$4*-1*'PM2.5 reduction'!AI245),9))","v":0.99999137100000002},{"$f":"VALUE(FIXED(EXP(AJ$4*-1*'PM2.5 reduction'!AJ245),9))","v":0.99999610999999999},{"$f":"VALUE(FIXED(EXP(AK$4*-1*'PM2.5 reduction'!AK245),9))","v":0.99999825799999997},{"$f":"VALUE(FIXED(EXP(AL$4*-1*'PM2.5 reduction'!AL245),9))","v":0.999997676},{"$f":"VALUE(FIXED(EXP(AM$4*-1*'PM2.5 reduction'!AM245),9))","v":0.99999428400000001},{"$f":"VALUE(FIXED(EXP(AN$4*-1*'PM2.5 reduction'!AN245),9))","v":1},{"$f":"VALUE(FIXED(EXP(AO$4*-1*'PM2.5 reduction'!AO245),9))","v":1},{"$f":"VALUE(FIXED(EXP(AP$4*-1*'PM2.5 reduction'!AP245),9))","v":0.99999772799999997},{"$f":"VALUE(FIXED(EXP(AQ$4*-1*'PM2.5 reduction'!AQ245),9))","v":0.999995038},{"$f":"VALUE(FIXED(EXP(AR$4*-1*'PM2.5 reduction'!AR245),9))","v":0.99999412700000001},{"$f":"VALUE(FIXED(EXP(AS$4*-1*'PM2.5 reduction'!AS245),9))","v":0.99999877500000001},{"$f":"VALUE(FIXED(EXP(AT$4*-1*'PM2.5 reduction'!AT245),9))","v":1},{"$f":"VALUE(FIXED(EXP(AU$4*-1*'PM2.5 reduction'!AU245),9))","v":1},{"$f":"VALUE(FIXED(EXP(AV$4*-1*'PM2.5 reduction'!AV245),9))","v":0.99999666300000001},{"$f":"VALUE(FIXED(EXP(AW$4*-1*'PM2.5 reduction'!AW245),9))","v":0.99999517299999996},{"$f":"VALUE(FIXED(EXP(AX$4*-1*'PM2.5 reduction'!AX245),9))","v":0.99999682999999995},{"$f":"VALUE(FIXED(EXP(AY$4*-1*'PM2.5 reduction'!AY245),9))","v":0.99999658899999999},{"$f":"VALUE(FIXED(EXP(AZ$4*-1*'PM2.5 reduction'!AZ245),9))","v":0.99999678800000003},{"$f":"VALUE(FIXED(EXP(BA$4*-1*'PM2.5 reduction'!BA245),9))","v":0.99999630299999998},{"$f":"VALUE(FIXED(EXP(BB$4*-1*'PM2.5 reduction'!BB245),9))","v":0.99999639799999995},{"$f":"VALUE(FIXED(EXP(BC$4*-1*'PM2.5 reduction'!BC245),9))","v":1}]
[null,"Male 75-79",{"$f":"VALUE(FIXED(EXP(C$4*-1*'PM2.5 reduction'!C246),9))","v":0.99999186900000003},{"$f":"VALUE(FIXED(EXP(D$4*-1*'PM2.5 reduction'!D246),9))","v":0.99999472499999997},{"$f":"VALUE(FIXED(EXP(E$4*-1*'PM2.5 reduction'!E246),9))","v":0.99999820100000003},{"$f":"VALUE(FIXED(EXP(F$4*-1*'PM2.5 reduction'!F246),9))","v":0.99999773400000003},{"$f":"VALUE(FIXED(EXP(G$4*-1*'PM2.5 reduction'!G246),9))","v":0.99999842500000002},{"$f":"VALUE(FIXED(EXP(H$4*-1*'PM2.5 reduction'!H246),9))","v":0.99999670200000002},{"$f":"VALUE(FIXED(EXP(I$4*-1*'PM2.5 reduction'!I246),9))","v":0.99999876899999995},{"$f":"VALUE(FIXED(EXP(J$4*-1*'PM2.5 reduction'!J246),9))","v":0.999996895},{"$f":"VALUE(FIXED(EXP(K$4*-1*'PM2.5 reduction'!K246),9))","v":0.99999699399999997},{"$f":"VALUE(FIXED(EXP(L$4*-1*'PM2.5 reduction'!L246),9))","v":0.99999810200000006},{"$f":"VALUE(FIXED(EXP(M$4*-1*'PM2.5 reduction'!M246),9))","v":0.99999810200000006},{"$f":"VALUE(FIXED(EXP(N$4*-1*'PM2.5 reduction'!N246),9))","v":0.99999437700000005},{"$f":"VALUE(FIXED(EXP(O$4*-1*'PM2.5 reduction'!O246),9))","v":0.99999638199999996},{"$f":"VALUE(FIXED(EXP(P$4*-1*'PM2.5 reduction'!P246),9))","v":0.99999307800000004},{"$f":"VALUE(FIXED(EXP(Q$4*-1*'PM2.5 reduction'!Q246),9))","v":0.99999842100000003},{"$f":"VALUE(FIXED(EXP(R$4*-1*'PM2.5 reduction'!R246),9))","v":0.99999308799999997},{"$f":"VALUE(FIXED(EXP(S$4*-1*'PM2.5 reduction'!S246),9))","v":0.99999266799999997},{"$f":"VALUE(FIXED(EXP(T$4*-1*'PM2.5 reduction'!T246),9))","v":0.99999011500000001},{"$f":"VALUE(FIXED(EXP(U$4*-1*'PM2.5 reduction'!U246),9))","v":1},{"$f":"VALUE(FIXED(EXP(V$4*-1*'PM2.5 reduction'!V246),9))","v":0.99999427100000005},{"$f":"VALUE(FIXED(EXP(W$4*-1*'PM2.5 reduction'!W246),9))","v":0.99999638800000001},{"$f":"VALUE(FIXED(EXP(X$4*-1*'PM2.5 reduction'!X246),9))","v":0.99999638800000001},{"$f":"VALUE(FIXED(EXP(Y$4*-1*'PM2.5 reduction'!Y246),9))","v":0.99999577100000003},{"$f":"VALUE(FIXED(EXP(Z$4*-1*'PM2.5 reduction'!Z246),9))","v":0.99998999200000005},{"$f":"VALUE(FIXED(EXP(AA$4*-1*'PM2.5 reduction'!AA246),9))","v":0.99999323200000001},{"$f":"VALUE(FIXED(EXP(AB$4*-1*'PM2.5 reduction'!AB246),9))","v":0.999995046},{"$f":"VALUE(FIXED(EXP(AC$4*-1*'PM2.5 reduction'!AC246),9))","v":0.99999279799999996},{"$f":"VALUE(FIXED(EXP(AD$4*-1*'PM2.5 reduction'!AD246),9))","v":0.99999773599999997},{"$f":"VALUE(FIXED(EXP(AE$4*-1*'PM2.5 reduction'!AE246),9))","v":0.99999749100000002},{"$f":"VALUE(FIXED(EXP(AF$4*-1*'PM2.5 reduction'!AF246),9))","v":0.99999724199999995},{"$f":"VALUE(FIXED(EXP(AG$4*-1*'PM2.5 reduction'!AG246),9))","v":0.99999749100000002},{"$f":"VALUE(FIXED(EXP(AH$4*-1*'PM2.5 reduction'!AH246),9))","v":0.999994724},{"$f":"VALUE(FIXED(EXP(AI$4*-1*'PM2.5 reduction'!AI246),9))","v":0.99999158499999996},{"$f":"VALUE(FIXED(EXP(AJ$4*-1*'PM2.5 reduction'!AJ246),9))","v":0.99999621599999999},{"$f":"VALUE(FIXED(EXP(AK$4*-1*'PM2.5 reduction'!AK246),9))","v":0.99999837400000002},{"$f":"VALUE(FIXED(EXP(AL$4*-1*'PM2.5 reduction'!AL246),9))","v":0.99999765500000004},{"$f":"VALUE(FIXED(EXP(AM$4*-1*'PM2.5 reduction'!AM246),9))","v":0.99999396799999996},{"$f":"VALUE(FIXED(EXP(AN$4*-1*'PM2.5 reduction'!AN246),9))","v":1},{"$f":"VALUE(FIXED(EXP(AO$4*-1*'PM2.5 reduction'!AO246),9))","v":1},{"$f":"VALUE(FIXED(EXP(AP$4*-1*'PM2.5 reduction'!AP246),9))","v":0.99999771900000001},{"$f":"VALUE(FIXED(EXP(AQ$4*-1*'PM2.5 reduction'!AQ246),9))","v":0.999994987},{"$f":"VALUE(FIXED(EXP(AR$4*-1*'PM2.5 reduction'!AR246),9))","v":0.99999409299999997},{"$f":"VALUE(FIXED(EXP(AS$4*-1*'PM2.5 reduction'!AS246),9))","v":0.99999876899999995},{"$f":"VALUE(FIXED(EXP(AT$4*-1*'PM2.5 reduction'!AT246),9))","v":1},{"$f":"VALUE(FIXED(EXP(AU$4*-1*'PM2.5 reduction'!AU246),9))","v":1},{"$f":"VALUE(FIXED(EXP(AV$4*-1*'PM2.5 reduction'!AV246),9))","v":0.99999662099999997},{"$f":"VALUE(FIXED(EXP(AW$4*-1*'PM2.5 reduction'!AW246),9))","v":0.999995152},{"$f":"VALUE(FIXED(EXP(AX$4*-1*'PM2.5 reduction'!AX246),9))","v":0.99999688200000003},{"$f":"VALUE(FIXED(EXP(AY$4*-1*'PM2.5 reduction'!AY246),9))","v":0.99999653799999999},{"$f":"VALUE(FIXED(EXP(AZ$4*-1*'PM2.5 reduction'!AZ246),9))","v":0.99999663900000002},{"$f":"VALUE(FIXED(EXP(BA$4*-1*'PM2.5 reduction'!BA246),9))","v":0.99999640199999995},{"$f":"VALUE(FIXED(EXP(BB$4*-1*'PM2.5 reduction'!BB246),9))","v":0.99999645299999995},{"$f":"VALUE(FIXED(EXP(BC$4*-1*'PM2.5 reduction'!BC246),9))","v":1}]
[null,"Male 80-84",{"$f":"VALUE(FIXED(EXP(C$4*-1*'PM2.5 reduction'!C247),9))","v":0.99999184100000005},{"$f":"VALUE(FIXED(EXP(D$4*-1*'PM2.5 reduction'!D247),9))","v":0.99999447200000002},{"$f":"VALUE(FIXED(EXP(E$4*-1*'PM2.5 reduction'!E247),9))","v":0.99999826300000005},{"$f":"VALUE(FIXED(EXP(F$4*-1*'PM2.5 reduction'!F247),9))","v":0.99999786999999996},{"$f":"VALUE(FIXED(EXP(G$4*-1*'PM2.5 reduction'!G247),9))","v":0.99999841700000003},{"$f":"VALUE(FIXED(EXP(H$4*-1*'PM2.5 reduction'!H247),9))","v":0.99999691400000001},{"$f":"VALUE(FIXED(EXP(I$4*-1*'PM2.5 reduction'!I247),9))","v":0.99999875599999999},{"$f":"VALUE(FIXED(EXP(J$4*-1*'PM2.5 reduction'!J247),9))","v":0.99999655399999998},{"$f":"VALUE(FIXED(EXP(K$4*-1*'PM2.5 reduction'!K247),9))","v":0.99999681699999998},{"$f":"VALUE(FIXED(EXP(L$4*-1*'PM2.5 reduction'!L247),9))","v":0.99999815299999995},{"$f":"VALUE(FIXED(EXP(M$4*-1*'PM2.5 reduction'!M247),9))","v":0.99999815299999995},{"$f":"VALUE(FIXED(EXP(N$4*-1*'PM2.5 reduction'!N247),9))","v":0.99999419899999997},{"$f":"VALUE(FIXED(EXP(O$4*-1*'PM2.5 reduction'!O247),9))","v":0.99999661799999995},{"$f":"VALUE(FIXED(EXP(P$4*-1*'PM2.5 reduction'!P247),9))","v":0.99999309999999997},{"$f":"VALUE(FIXED(EXP(Q$4*-1*'PM2.5 reduction'!Q247),9))","v":0.99999868300000005},{"$f":"VALUE(FIXED(EXP(R$4*-1*'PM2.5 reduction'!R247),9))","v":0.99999290500000004},{"$f":"VALUE(FIXED(EXP(S$4*-1*'PM2.5 reduction'!S247),9))","v":0.99999242499999996},{"$f":"VALUE(FIXED(EXP(T$4*-1*'PM2.5 reduction'!T247),9))","v":0.99999009000000005},{"$f":"VALUE(FIXED(EXP(U$4*-1*'PM2.5 reduction'!U247),9))","v":1},{"$f":"VALUE(FIXED(EXP(V$4*-1*'PM2.5 reduction'!V247),9))","v":0.99999439099999998},{"$f":"VALUE(FIXED(EXP(W$4*-1*'PM2.5 reduction'!W247),9))","v":0.99999660599999995},{"$f":"VALUE(FIXED(EXP(X$4*-1*'PM2.5 reduction'!X247),9))","v":0.99999660599999995},{"$f":"VALUE(FIXED(EXP(Y$4*-1*'PM2.5 reduction'!Y247),9))","v":0.99999559400000004},{"$f":"VALUE(FIXED(EXP(Z$4*-1*'PM2.5 reduction'!Z247),9))","v":0.99998993199999997},{"$f":"VALUE(FIXED(EXP(AA$4*-1*'PM2.5 reduction'!AA247),9))","v":0.99999314800000005},{"$f":"VALUE(FIXED(EXP(AB$4*-1*'PM2.5 reduction'!AB247),9))","v":0.99999474799999999},{"$f":"VALUE(FIXED(EXP(AC$4*-1*'PM2.5 reduction'!AC247),9))","v":0.99999270900000004},{"$f":"VALUE(FIXED(EXP(AD$4*-1*'PM2.5 reduction'!AD247),9))","v":0.99999750200000004},{"$f":"VALUE(FIXED(EXP(AE$4*-1*'PM2.5 reduction'!AE247),9))","v":0.99999726799999999},{"$f":"VALUE(FIXED(EXP(AF$4*-1*'PM2.5 reduction'!AF247),9))","v":0.999997362},{"$f":"VALUE(FIXED(EXP(AG$4*-1*'PM2.5 reduction'!AG247),9))","v":0.99999726799999999},{"$f":"VALUE(FIXED(EXP(AH$4*-1*'PM2.5 reduction'!AH247),9))","v":0.99999474300000002},{"$f":"VALUE(FIXED(EXP(AI$4*-1*'PM2.5 reduction'!AI247),9))","v":0.99999124399999995},{"$f":"VALUE(FIXED(EXP(AJ$4*-1*'PM2.5 reduction'!AJ247),9))","v":0.99999609199999995},{"$f":"VALUE(FIXED(EXP(AK$4*-1*'PM2.5 reduction'!AK247),9))","v":0.99999834499999996},{"$f":"VALUE(FIXED(EXP(AL$4*-1*'PM2.5 reduction'!AL247),9))","v":0.99999776299999998},{"$f":"VALUE(FIXED(EXP(AM$4*-1*'PM2.5 reduction'!AM247),9))","v":0.99999398699999997},{"$f":"VALUE(FIXED(EXP(AN$4*-1*'PM2.5 reduction'!AN247),9))","v":1},{"$f":"VALUE(FIXED(EXP(AO$4*-1*'PM2.5 reduction'!AO247),9))","v":1},{"$f":"VALUE(FIXED(EXP(AP$4*-1*'PM2.5 reduction'!AP247),9))","v":0.99999781099999996},{"$f":"VALUE(FIXED(EXP(AQ$4*-1*'PM2.5 reduction'!AQ247),9))","v":0.99999485099999996},{"$f":"VALUE(FIXED(EXP(AR$4*-1*'PM2.5 reduction'!AR247),9))","v":0.99999390899999996},{"$f":"VALUE(FIXED(EXP(AS$4*-1*'PM2.5 reduction'!AS247),9))","v":0.99999875599999999},{"$f":"VALUE(FIXED(EXP(AT$4*-1*'PM2.5 reduction'!AT247),9))","v":1},{"$f":"VALUE(FIXED(EXP(AU$4*-1*'PM2.5 reduction'!AU247),9))","v":1},{"$f":"VALUE(FIXED(EXP(AV$4*-1*'PM2.5 reduction'!AV247),9))","v":0.99999680700000004},{"$f":"VALUE(FIXED(EXP(AW$4*-1*'PM2.5 reduction'!AW247),9))","v":0.99999505700000002},{"$f":"VALUE(FIXED(EXP(AX$4*-1*'PM2.5 reduction'!AX247),9))","v":0.99999652299999997},{"$f":"VALUE(FIXED(EXP(AY$4*-1*'PM2.5 reduction'!AY247),9))","v":0.99999661100000004},{"$f":"VALUE(FIXED(EXP(AZ$4*-1*'PM2.5 reduction'!AZ247),9))","v":0.99999661399999995},{"$f":"VALUE(FIXED(EXP(BA$4*-1*'PM2.5 reduction'!BA247),9))","v":0.99999603800000003},{"$f":"VALUE(FIXED(EXP(BB$4*-1*'PM2.5 reduction'!BB247),9))","v":0.99999634999999998},{"$f":"VALUE(FIXED(EXP(BC$4*-1*'PM2.5 reduction'!BC247),9))","v":1}]
[null,"Male 85-89",{"$f":"VALUE(FIXED(EXP(C$4*-1*'PM2.5 reduction'!C248),9))","v":0.999992047},{"$f":"VALUE(FIXED(EXP(D$4*-1*'PM2.5 reduction'!D248),9))","v":0.99999460500000004},{"$f":"VALUE(FIXED(EXP(E$4*-1*'PM2.5 reduction'!E248),9))","v":0.999998269},{"$f":"VALUE(FIXED(EXP(F$4*-1*'PM2.5 reduction'!F248),9))","v":0.99999790899999996},{"$f":"VALUE(FIXED(EXP(G$4*-1*'PM2.5 reduction'!G248),9))","v":0.99999839300000004},{"$f":"VALUE(FIXED(EXP(H$4*-1*'PM2.5 reduction'!H248),9))","v":0.99999659200000002},{"$f":"VALUE(FIXED(EXP(I$4*-1*'PM2.5 reduction'!I248),9))","v":0.99999876200000004},{"$f":"VALUE(FIXED(EXP(J$4*-1*'PM2.5 reduction'!J248),9))","v":0.99999604900000005},{"$f":"VALUE(FIXED(EXP(K$4*-1*'PM2.5 reduction'!K248),9))","v":0.99999628799999996},{"$f":"VALUE(FIXED(EXP(L$4*-1*'PM2.5 reduction'!L248),9))","v":0.999998159},{"$f":"VALUE(FIXED(EXP(M$4*-1*'PM2.5 reduction'!M248),9))","v":0.999998159},{"$f":"VALUE(FIXED(EXP(N$4*-1*'PM2.5 reduction'!N248),9))","v":0.99999443700000001},{"$f":"VALUE(FIXED(EXP(O$4*-1*'PM2.5 reduction'!O248),9))","v":0.99999620600000005},{"$f":"VALUE(FIXED(EXP(P$4*-1*'PM2.5 reduction'!P248),9))","v":0.99999322099999999},{"$f":"VALUE(FIXED(EXP(Q$4*-1*'PM2.5 reduction'!Q248),9))","v":0.99999863600000005},{"$f":"VALUE(FIXED(EXP(R$4*-1*'PM2.5 reduction'!R248),9))","v":0.99999301900000004},{"$f":"VALUE(FIXED(EXP(S$4*-1*'PM2.5 reduction'!S248),9))","v":0.99999192999999997},{"$f":"VALUE(FIXED(EXP(T$4*-1*'PM2.5 reduction'!T248),9))","v":0.99998974299999999},{"$f":"VALUE(FIXED(EXP(U$4*-1*'PM2.5 reduction'!U248),9))","v":1},{"$f":"VALUE(FIXED(EXP(V$4*-1*'PM2.5 reduction'!V248),9))","v":0.99999385399999996},{"$f":"VALUE(FIXED(EXP(W$4*-1*'PM2.5 reduction'!W248),9))","v":0.99999645400000003},{"$f":"VALUE(FIXED(EXP(X$4*-1*'PM2.5 reduction'!X248),9))","v":0.99999645400000003},{"$f":"VALUE(FIXED(EXP(Y$4*-1*'PM2.5 reduction'!Y248),9))","v":0.99999504500000003},{"$f":"VALUE(FIXED(EXP(Z$4*-1*'PM2.5 reduction'!Z248),9))","v":0.99999015099999999},{"$f":"VALUE(FIXED(EXP(AA$4*-1*'PM2.5 reduction'!AA248),9))","v":0.99999321500000005},{"$f":"VALUE(FIXED(EXP(AB$4*-1*'PM2.5 reduction'!AB248),9))","v":0.99999495999999999},{"$f":"VALUE(FIXED(EXP(AC$4*-1*'PM2.5 reduction'!AC248),9))","v":0.99999280300000004},{"$f":"VALUE(FIXED(EXP(AD$4*-1*'PM2.5 reduction'!AD248),9))","v":0.99999768},{"$f":"VALUE(FIXED(EXP(AE$4*-1*'PM2.5 reduction'!AE248),9))","v":0.99999738900000001},{"$f":"VALUE(FIXED(EXP(AF$4*-1*'PM2.5 reduction'!AF248),9))","v":0.99999744499999998},{"$f":"VALUE(FIXED(EXP(AG$4*-1*'PM2.5 reduction'!AG248),9))","v":0.99999738900000001},{"$f":"VALUE(FIXED(EXP(AH$4*-1*'PM2.5 reduction'!AH248),9))","v":0.99999494200000005},{"$f":"VALUE(FIXED(EXP(AI$4*-1*'PM2.5 reduction'!AI248),9))","v":0.99999071500000003},{"$f":"VALUE(FIXED(EXP(AJ$4*-1*'PM2.5 reduction'!AJ248),9))","v":0.99999554300000004},{"$f":"VALUE(FIXED(EXP(AK$4*-1*'PM2.5 reduction'!AK248),9))","v":0.99999841599999995},{"$f":"VALUE(FIXED(EXP(AL$4*-1*'PM2.5 reduction'!AL248),9))","v":0.99999795899999999},{"$f":"VALUE(FIXED(EXP(AM$4*-1*'PM2.5 reduction'!AM248),9))","v":0.99999456399999997},{"$f":"VALUE(FIXED(EXP(AN$4*-1*'PM2.5 reduction'!AN248),9))","v":1},{"$f":"VALUE(FIXED(EXP(AO$4*-1*'PM2.5 reduction'!AO248),9))","v":1},{"$f":"VALUE(FIXED(EXP(AP$4*-1*'PM2.5 reduction'!AP248),9))","v":0.99999773400000003},{"$f":"VALUE(FIXED(EXP(AQ$4*-1*'PM2.5 reduction'!AQ248),9))","v":0.99999479599999996},{"$f":"VALUE(FIXED(EXP(AR$4*-1*'PM2.5 reduction'!AR248),9))","v":0.99999374500000004},{"$f":"VALUE(FIXED(EXP(AS$4*-1*'PM2.5 reduction'!AS248),9))","v":0.99999876200000004},{"$f":"VALUE(FIXED(EXP(AT$4*-1*'PM2.5 reduction'!AT248),9))","v":1},{"$f":"VALUE(FIXED(EXP(AU$4*-1*'PM2.5 reduction'!AU248),9))","v":1},{"$f":"VALUE(FIXED(EXP(AV$4*-1*'PM2.5 reduction'!AV248),9))","v":0.99999640099999998},{"$f":"VALUE(FIXED(EXP(AW$4*-1*'PM2.5 reduction'!AW248),9))","v":0.99999512099999999},{"$f":"VALUE(FIXED(EXP(AX$4*-1*'PM2.5 reduction'!AX248),9))","v":0.99999600700000002},{"$f":"VALUE(FIXED(EXP(AY$4*-1*'PM2.5 reduction'!AY248),9))","v":0.99999656800000003},{"$f":"VALUE(FIXED(EXP(AZ$4*-1*'PM2.5 reduction'!AZ248),9))","v":0.99999663699999997},{"$f":"VALUE(FIXED(EXP(BA$4*-1*'PM2.5 reduction'!BA248),9))","v":0.99999713000000001},{"$f":"VALUE(FIXED(EXP(BB$4*-1*'PM2.5 reduction'!BB248),9))","v":0.99999663800000005},{"$f":"VALUE(FIXED(EXP(BC$4*-1*'PM2.5 reduction'!BC248),9))","v":1}]
[null,"Male 90+",{"$f":"VALUE(FIXED(EXP(C$4*-1*'PM2.5 reduction'!C249),9))","v":0.99999132400000001},{"$f":"VALUE(FIXED(EXP(D$4*-1*'PM2.5 reduction'!D249),9))","v":0.999994202},{"$f":"VALUE(FIXED(EXP(E$4*-1*'PM2.5 reduction'!E249),9))","v":0.999998304},{"$f":"VALUE(FIXED(EXP(F$4*-1*'PM2.5 reduction'!F249),9))","v":0.99999761499999995},{"$f":"VALUE(FIXED(EXP(G$4*-1*'PM2.5 reduction'!G249),9))","v":0.99999843600000005},{"$f":"VALUE(FIXED(EXP(H$4*-1*'PM2.5 reduction'!H249),9))","v":0.99999667000000003},{"$f":"VALUE(FIXED(EXP(I$4*-1*'PM2.5 reduction'!I249),9))","v":0.99999879400000002},{"$f":"VALUE(FIXED(EXP(J$4*-1*'PM2.5 reduction'!J249),9))","v":0.99999596999999996},{"$f":"VALUE(FIXED(EXP(K$4*-1*'PM2.5 reduction'!K249),9))","v":0.99999627099999999},{"$f":"VALUE(FIXED(EXP(L$4*-1*'PM2.5 reduction'!L249),9))","v":0.99999806599999996},{"$f":"VALUE(FIXED(EXP(M$4*-1*'PM2.5 reduction'!M249),9))","v":0.99999806599999996},{"$f":"VALUE(FIXED(EXP(N$4*-1*'PM2.5 reduction'!N249),9))","v":0.99999390300000002},{"$f":"VALUE(FIXED(EXP(O$4*-1*'PM2.5 reduction'!O249),9))","v":0.99999685599999999},{"$f":"VALUE(FIXED(EXP(P$4*-1*'PM2.5 reduction'!P249),9))","v":0.999993032},{"$f":"VALUE(FIXED(EXP(Q$4*-1*'PM2.5 reduction'!Q249),9))","v":0.99999880100000005},{"$f":"VALUE(FIXED(EXP(R$4*-1*'PM2.5 reduction'!R249),9))","v":0.99999289000000002},{"$f":"VALUE(FIXED(EXP(S$4*-1*'PM2.5 reduction'!S249),9))","v":0.99999165400000001},{"$f":"VALUE(FIXED(EXP(T$4*-1*'PM2.5 reduction'!T249),9))","v":0.99998968499999996},{"$f":"VALUE(FIXED(EXP(U$4*-1*'PM2.5 reduction'!U249),9))","v":1},{"$f":"VALUE(FIXED(EXP(V$4*-1*'PM2.5 reduction'!V249),9))","v":0.99999395000000002},{"$f":"VALUE(FIXED(EXP(W$4*-1*'PM2.5 reduction'!W249),9))","v":0.99999673700000002},{"$f":"VALUE(FIXED(EXP(X$4*-1*'PM2.5 reduction'!X249),9))","v":0.99999673700000002},{"$f":"VALUE(FIXED(EXP(Y$4*-1*'PM2.5 reduction'!Y249),9))","v":0.99999491399999996},{"$f":"VALUE(FIXED(EXP(Z$4*-1*'PM2.5 reduction'!Z249),9))","v":0.99999024299999995},{"$f":"VALUE(FIXED(EXP(AA$4*-1*'PM2.5 reduction'!AA249),9))","v":0.99999286600000004},{"$f":"VALUE(FIXED(EXP(AB$4*-1*'PM2.5 reduction'!AB249),9))","v":0.99999450700000003},{"$f":"VALUE(FIXED(EXP(AC$4*-1*'PM2.5 reduction'!AC249),9))","v":0.99999253399999999},{"$f":"VALUE(FIXED(EXP(AD$4*-1*'PM2.5 reduction'!AD249),9))","v":0.99999758599999999},{"$f":"VALUE(FIXED(EXP(AE$4*-1*'PM2.5 reduction'!AE249),9))","v":0.99999744499999998},{"$f":"VALUE(FIXED(EXP(AF$4*-1*'PM2.5 reduction'!AF249),9))","v":0.99999730600000003},{"$f":"VALUE(FIXED(EXP(AG$4*-1*'PM2.5 reduction'!AG249),9))","v":0.99999744499999998},{"$f":"VALUE(FIXED(EXP(AH$4*-1*'PM2.5 reduction'!AH249),9))","v":0.99999446800000003},{"$f":"VALUE(FIXED(EXP(AI$4*-1*'PM2.5 reduction'!AI249),9))","v":0.99999073599999999},{"$f":"VALUE(FIXED(EXP(AJ$4*-1*'PM2.5 reduction'!AJ249),9))","v":0.99999508100000001},{"$f":"VALUE(FIXED(EXP(AK$4*-1*'PM2.5 reduction'!AK249),9))","v":0.99999878099999995},{"$f":"VALUE(FIXED(EXP(AL$4*-1*'PM2.5 reduction'!AL249),9))","v":0.99999808499999998},{"$f":"VALUE(FIXED(EXP(AM$4*-1*'PM2.5 reduction'!AM249),9))","v":0.99999398299999998},{"$f":"VALUE(FIXED(EXP(AN$4*-1*'PM2.5 reduction'!AN249),9))","v":1},{"$f":"VALUE(FIXED(EXP(AO$4*-1*'PM2.5 reduction'!AO249),9))","v":1},{"$f":"VALUE(FIXED(EXP(AP$4*-1*'PM2.5 reduction'!AP249),9))","v":0.99999769500000002},{"$f":"VALUE(FIXED(EXP(AQ$4*-1*'PM2.5 reduction'!AQ249),9))","v":0.99999465899999995},{"$f":"VALUE(FIXED(EXP(AR$4*-1*'PM2.5 reduction'!AR249),9))","v":0.99999342700000005},{"$f":"VALUE(FIXED(EXP(AS$4*-1*'PM2.5 reduction'!AS249),9))","v":0.99999879400000002},{"$f":"VALUE(FIXED(EXP(AT$4*-1*'PM2.5 reduction'!AT249),9))","v":1},{"$f":"VALUE(FIXED(EXP(AU$4*-1*'PM2.5 reduction'!AU249),9))","v":1},{"$f":"VALUE(FIXED(EXP(AV$4*-1*'PM2.5 reduction'!AV249),9))","v":0.99999613799999998},{"$f":"VALUE(FIXED(EXP(AW$4*-1*'PM2.5 reduction'!AW249),9))","v":0.99999475599999998},{"$f":"VALUE(FIXED(EXP(AX$4*-1*'PM2.5 reduction'!AX249),9))","v":0.99999594700000005},{"$f":"VALUE(FIXED(EXP(AY$4*-1*'PM2.5 reduction'!AY249),9))","v":0.99999661900000003},{"$f":"VALUE(FIXED(EXP(AZ$4*-1*'PM2.5 reduction'!AZ249),9))","v":0.99999654900000001},{"$f":"VALUE(FIXED(EXP(BA$4*-1*'PM2.5 reduction'!BA249),9))","v":1},{"$f":"VALUE(FIXED(EXP(BB$4*-1*'PM2.5 reduction'!BB249),9))","v":0.99999651599999995},{"$f":"VALUE(FIXED(EXP(BC$4*-1*'PM2.5 reduction'!BC249),9))","v":1}]

{"sheet":"Eligible road length","index":20,"n_rows":55,"n_cols":3,"rows_kept":55,"cut":false,"hidden":true,"merged":[]}
["Length (km) of local roads and minor roads in urban settlements, by area"]
[null,"km","proportion of Scotland total"]
["Aberdeen City Local Authority",799.05849999999998,{"$f":"B3/15531.30316","v":5.1448258511747447E-2}]
["Aberdeen City Region Deal",1766.8074000000001,{"$f":"B4/15531.30316","v":0.11375783356996813}]
["Aberdeenshire Local Authority",967.74890000000005,6.2309575058220684E-2]
["Angus Local Authority",395.21809999999999,2.5446551131514967E-2]
["Argyll & Bute Local Authority",309.16070000000002,1.9905650982090548E-2]
["Ayrshire & Arran Health Board",1408.4328,9.0683491622733869E-2]
["Borders Health Board",397.8177,2.5613929230649313E-2]
["Clackmannanshire & Stirling IJB",332.3263,2.1397193562990115E-2]
["Clackmannanshire Local Authority",0,0]
["Dumfries & Galloway Health Board",503.17220000000003,3.2397294342685408E-2]
["Dumfries & Galloway Local Authority",503.17220000000003,3.2397294342685408E-2]
["Dundee City Local Authority",549.81369999999993,3.5400358510547542E-2]
["East Ayrshire Local Authority",456.50749999999999,2.9392736417360614E-2]
["East Dunbartonshire Local Authority",391.88220000000001,2.5231765548770605E-2]
["East Lothian Local Authority",325.02379999999999,2.0927014085790341E-2]
["East Renfrewshire Local Authority",334.35470000000004,2.1527794323216342E-2]
["Edinburgh & SE Scotland City Region Deal",1697.8416,0.10931739484505691]
["Edinburgh, City of Local Authority",0,0]
["Eilean Siar Local Authority",55.735550000000003,3.5885945580885824E-3]
["Falkirk Local Authority",556.94219999999996,3.5859334806777408E-2]
["Fife Health Board",0,0]
["Fife Local Authority",0,0]
["Forth Valley Health Board",889.2684999999999,5.7256528369767523E-2]
["Glasgow City Local Authority",1689.729,0.10879505619024953]
["Glasgow City Region Deal",6019.5950999999995,0.38757823718895201]
["Grampian Health Board",2141.4736000000003,0.13788112806369304]
["Greater Glasgow & Clyde Health Board",3688.8521000000001,0.23751079107775269]
["Highland Health Board",1213.4456,7.8129026746780725E-2]
["Highland Local Authority",904.28489999999999,5.822337576469018E-2]
["Inverclyde Local Authority",300.43559999999997,1.9343875842547136E-2]
["Inverness & Highland City Region Deal",904.28489999999999,5.822337576469018E-2]
["Lanarkshire Health Board",2330.7430000000004,0.15006744611119938]
["Lothian Health Board",1300.0239000000001,8.3703465614407599E-2]
["Midlothian Local Authority",288.8338,1.8596881216244317E-2]
["Moray Local Authority",374.6662,2.4123294493724891E-2]
["North Ayrshire Local Authority",529.51490000000001,3.409339799404186E-2]
["North Lanarkshire Local Authority",1176.0440000000001,7.5720883681469536E-2]
["Orkney Health Board",67.481639999999999,4.3448794544037475E-3]
["Orkney Islands Local Authority",67.481639999999999,4.3448794544037475E-3]
["Perth & Kinross Local Authority",532.95440000000008,3.4314853976490152E-2]
["Renfrewshire Local Authority",658.86300000000006,4.2421617375730893E-2]
["Scotland",15531.303159999999,1]
["Scottish Borders Local Authority",397.8177,2.5613929230649313E-2]
["Shetland Health Board",56.870370000000001,3.6616611892855487E-3]
["Shetland Islands Local Authority",56.870370000000001,3.6616611892855487E-3]
["South Ayrshire Local Authority",422.41040000000004,2.7197357211331392E-2]
["South Lanarkshire Local Authority",1154.6990000000001,7.4346562429729826E-2]
["Stirling Local Authority",332.3263,2.1397193562990115E-2]
["Tay Cities Region Deal ",1477.9862000000001,9.5161763618552664E-2]
["Tayside Health Board",1477.9862000000001,9.5161763618552664E-2]
["West Dunbartonshire Local Authority",313.58759999999995,2.0190681797238187E-2]
["West Lothian Local Authority",686.16630000000009,4.4179570312372948E-2]
["Western Isles Health Board",55.735550000000003,3.5885945580885824E-3]